{"text_format":"1","workbook":"xlsx","n_sheets":17,"sheets":["Reference","Src Proforma","Risk Summary","RiskSerializationData","NR_to_Cash","CGS Refueling","RiskRGCGSR26C11","Undistributed Reduction","CGS","Corps & Bureau O&M","Colville&Spokane","Salaries","F&W Expense","Interest","rsklibSimData","Output","Study Table"],"not_rendered":{"charts":0,"images":0,"macros":0,"external_links":0,"defined_names":82,"comments":6,"pivot_tables":0},"unopened":[],"bounds":{"document_bytes":16777216,"sheet_cells":100000,"rows_first":2000,"rows_last":500,"rows_between":2000,"halvings":0,"cell_chars":16384,"cell_head_chars":4096},"cells_cut":243,"cells_raw":0,"read":"whole","date_system":"1900"}

{"sheet":"Reference","index":0,"n_rows":15,"n_cols":1,"rows_kept":15,"cut":false,"hidden":false,"merged":[]}
[]
[]
["Tab Color Coding"]
["Pro Forma and Accrual to Cash"]
["Sumary Sheet (Aggregation of Pro Forma, ATC, and Risk Models)"]
["Revenue Model"]
["Expense Model"]
["Other"]
[]
["Cell Color Coding"]
["SME Input"]
["Worksheet Formula"]
["@Risk Output"]
["Linked to Summary"]
["@Risk Formula"]

{"sheet":"Src Proforma","index":1,"n_rows":233,"n_cols":8,"rows_kept":233,"cut":false,"hidden":false,"merged":[]}
[null,null,null,null,"Updated 6/14/17"]
["BP-18 Rate Case Initial Proposal - Revenue at Proposed Rates",null,null,null,{"$f":"TRIM(CONCATENATE(A2,B2,C2,D2))","v":"BP-18 Rate Case Initial Proposal - Revenue at Proposed Rates"},"FY17","FY18","FY19"]
["Category",null,null,null,null,"$ (000's)","$ (000's)","$ (000's)"]
[null,null,"Composite Revenue",null,"Composite Revenue",2407049.6085304972,2462544.0536440075,2477578.487752927]
[null,null,"Non-Slice Revenue",null,"Non-Slice Revenue",-260313.91377767929,-264902.09883056203,-267016.82349319808]
[null,null,"Slice",null,"Slice",0,0,0]
[null,null,"Tier 2",null,"Tier 2",27541.502950821585,38261.413151217486,43549.4355784]
[null,null,"Load Shaping Revenue",null,"Load Shaping Revenue",19200.637502957925,22841.757046924089,31940.568407787014]
[null,null,"Demand Revenue",null,"Demand Revenue",47804.789241613893,48363.677824876439,47951.141294282519]
[null,null,"Irrigation Rate Discount",null,"Irrigation Rate Discount",-22146.485482879998,-22127.669437439999,-22127.669437439999]
[null,null,"Low Density Discount",null,"Low Density Discount",-37383.165428116299,-41009.640637891593,-41970.543113243206]
[null,null,"RSS (Non-Federal)",null,"RSS (Non-Federal)",779.05800000000011,1210.3099774999998,1208.8835775]
[null,null,"Load Shaping True up",null,"Load Shaping True up",-2069.3270000000002,0,0]
[null,"PF customers (TRM) sub-total",null,null,"PF customers (TRM) sub-total",2180462.7045372161,2245181.8027386316,2271113.4805670148]
[null,null,"New Resource Firm Power",null,"New Resource Firm Power",-198.36099999999999,0,0]
[null,"NR sub-total",null,null,"NR sub-total",-198.36099999999999,0,0]
[null,null,"DSI - Alcoa",null,"DSI - Alcoa",4551.4835999999996]
[null,null,"DSI - Port Townsend",null,"DSI - Port Townsend",4446.5240000000003]
[null,"DSIs sub-total",null,null,"DSIs sub-total",8998.0076000000008,22708.478964220001,34012.566994629997]
[null,null,"FPS Presub",null,"FPS Presub",1536.37791752,0,0]
[null,null,"FPS Other",null,"FPS Other",2349.6880000000001,3920,3920]
[null,"FPS sub-total",null,null,"FPS sub-total",3886.0659175199999,3920,3920]
[null,null,"Firm Surplus Sale (Rate Case Only and includes Tier 2 sale)",null,"Firm Surplus Sale (Rate Case Only and includes Tier 2 sale)",0,36348.069485122433,0]
[null,null,"Committed sales (TF)",null,"Committed sales (TF)",269567.28717600001,0,0]
[null,null,null,"Balancing sales (unadjusted)","Balancing sales (unadjusted)",137680.8889455474,329348.753008125,334244.89675468754]
[null,null,null,"Cal ISO sales","Cal ISO sales",0,8564.9592401263053,9649.884724899428]
[null,null,null,"WAPA trasactions 15PM-12424","WAPA trasactions 15PM-12424",0,2317.94,0]
[null,null,null,"Forward DSI sale","Forward DSI sale",0,2297.8229071930054,0]
[null,null,null,"Other NSR (Clark Option) ","Other NSR (Clark Option)",1081.6863974999997,0,0]
[null,null,"Balancing sales",null,"Balancing sales",138762.57534304741,342529.47515544435,343894.78147958696]
[null,"Short-term market sales sub-total",null,null,"Short-term market sales sub-total",408329.86251904734,378877.5446405668,343894.78147958696]
[null,null,null,"PG&E (Wind Energy Exchange Delivery to BPA) 08PB-11984","PG&E (Wind Energy Exchange Delivery to BPA) 08PB-11984",556.67443000000003,565.05984000000001,129.23500000000001]
[null,null,null,"PG&E (Wind Energy Exchange Delivery to PG&E) 08PB-11984","PG&E (Wind Energy Exchange Delivery to PG&E) 08PB-11984",0,0,0]
[null,null,"Other Locational/Seasonal Exchange",null,"Other Locational/Seasonal Exchange",556.67443000000003,565.05984000000001,129.23500000000001]
[null,null,null,"Avista  (WNP-3 Exchange)DE-MS79-85BP92186","Avista (WNP-3 Exchange)DE-MS79-85BP92186",15958.618560000001,15958.618,15958.57878]
[null,null,null,"Puget Sound Energy (WNP-3 Exchange)DE-MS79-85BP92185","Puget Sound Energy (WNP-3 Exchange)DE-MS79-85BP92185",15958.618559999999,0,0]
[null,null,null,"PGE (WNP-3 Exchange Settlement)98PB-10359","PGE (WNP-3 Exchange Settlement)98PB-10359",3523.8099999999995,0,0]
[null,null,"WNP3 Settlement",null,"WNP3 Settlement",35441.047119999996,15958.618,15958.57878]
[null,"Long Term Contractual Obligations sub-total",null,null,"Long Term Contractual Obligations sub-total",35997.721550000002,16523.67784,16087.81378]
[null,null,"Canadian Entitlement Return for Canada (Total)",null,"Canadian Entitlement Return for Canada (Total)",0,0,0]
[null,"Canadian Entitlement Return",null,null,"Canadian Entitlement Return",0,0,0]
[null,null,null,"REC Revenue","REC Revenue",648.19406249999997,0,0]
[null,"Renewable Energy Certificates sub-total",null,null,"Renewable Energy Certificates sub-total",648.19406249999997,0,0]
[null,null,"Miscellaneous Credits",null,"Miscellaneous Credits",93.742000000000004,0,0]
[null,null,"Revenues from Slice Product Conversion",null,"Revenues from Slice Product Conversion",0,2033.16,2033.16]
[null,null,"Slice True up",null,"Slice True up",-5458.1808727541411,0,0]
[null,"Other Sales sub-total",null,null,"Other Sales sub-total",-5364.4388727541409,2033.1600000000005,2033.1600000000005]
["Gross Sales (400001)",null,null,null,"Gross Sales (400001)",2632759.7563135293,2669244.6641834183,2671061.8028212315]
[null,null,"Bookouts",null,"Bookouts",-9212.4423399999996,0,0]
["Bookout adjustment to Sales (400001)",null,null,null,"Bookout adjustment to Sales (400001)",-9212.4423399999996,0,0]
[null,null,"Lookback Adjustments",null,"Lookback Adjustments",-76537.616999999984,0,0]
["Provisions for Rate Refunds (449101)",null,null,null,"Provisions for Rate Refunds (449101)",-76537.616999999984,0,0]
[null,null,"GTA Delivery charge",null,"GTA Delivery charge",4202.5540000000001,3280,3280]
[null,null,"Energy Efficiency Revenues",null,"Energy Efficiency Revenues",7916.9010000000017,8000.0000000000009,8000.0000000000009]
[null,null,"Financial Swap Revenues",null,"Financial Swap Revenues",0,0,0]
[null,null,"Upper Baker revenues",null,"Upper Baker revenues",409.013088312484,395.21302696944201,400.02725123339297]
[null,null,"Miscellaneous US Bureau of Reclamation Revenues",null,"Miscellaneous US Bureau of Reclamation Revenues",75.042000000000002,0,0]
[null,null,"Miscellaneous US Corps of Engineers Revenues",null,"Miscellaneous US Corps of Engineers Revenues",0,0,0]
[null,null,null,"Irrigation Pumping Power","Irrigation Pumping Power",927.77091085533323,1253.5360000000001,1253.5360000000001]
[null,null,null,"Reserve Energy","Reserve Energy",9499.4879999999994,7756.4799999999987,7756.4799999999987]
[null,null,null,"USBR Owyhee Wheeling Project ","USBR Owyhee Wheeling Project",1463.5200000000002,1280.5319999999999,1280.5319999999999]
[null,null,null,"Downstream Benefits","Downstream Benefits",6564.7439999999997,6538.7619999999997,6538.7619999999997]
[null,null,null,"Downstream Benefits - Financial accrual (redist to FERC payment)","Downstream Benefits - Financial accrual (redist to FERC payment)",-1895.2783499999998,0,0]
[null,null,null,"Downstream Benefits (ASPRJ Bureau)","Downstream Benefits (ASPRJ Bureau)",842.92500000000007,0,0]
[null,null,null,"Downstream Benefits (ASPRJ CORP)","Downstream Benefits (ASPRJ CORP)",1038.57,0,0]
[null,null,"Downstream Benefits subtotal",null,"Downstream Benefits subtotal",6550.96065,6538.7619999999997,6538.7619999999997]
["Miscellaneous Revenues (400002)",null,null,null,"Miscellaneous Revenues (400002)",31045.249649167818,28504.52302696944,28509.337251233388]
[null,null,"Balancing Reserve Capacity","Balancing Reserve Capacity for Regulating Reserve","Balancing Reserve CapacityBalancing Reserve Capacity for Regulating Reserve",50834.796000000002,6911.6660000000011,7293.708999999998]
[null,null,null,"Balancing Reserve Capacity for VERBS (Wind and Solar) and DERBS","Balancing Reserve Capacity for VERBS (Wind and Solar) and DERBS",0,44474.630299999997,39488.624499999998]
[null,null,null,"Capacity Unavailable from FCRPS","Capacity Unavailable from FCRPS",-2228.6499999999996,0,0]
[null,null,null,"Expected Balancing Reserve Capacity Sales in Spring Months from FCRPS Above Planned","Expected Balancing Reserve Capacity Sales in Spring Months from FCRPS Above Planned",4000,0,0]
[null,null,null,"Operating Reserve - Spinning ","Operating Reserve - Spinning",24715.340640000002,24151.233912000003,22888.050605999997]
[null,null,null,"Operating Reserve - Supplemental ","Operating Reserve - Supplemental",22655.728670000004,19942.135616000003,18899.101008000001]
[null,null,null,"Operating Reserve - Spinning Adjustment for WNP-3 Settlement Agreements","Operating Reserve - Spinning Adjustment for WNP-3 Settlement Agreements",-53.886203999999999,0,0]
[null,null,null,"Operating Reserve - Supplemental Adjustment for WNP-3 Settlement Agreements","Operating Reserve - Supplemental Adjustment for WNP-3 Settlement Agreements",-49.395686999999995,0,0]
[null,null,null,"Energy Imbalance","Energy Imbalance",528.45900000000006,0,0]
[null,null,null,"Generation Imbalance","Generation Imbalance",5350.3040000000001,0,0]
[null,null,null,"Energy Imbalance Persistent Deviation","Energy Imbalance Persistent Deviation",133.00200000000001,0,0]
[null,null,null,"Generation Imbalance Persistent Deviation","Generation Imbalance Persistent Deviation",93.72999999999999,0,0]
[null,null,null,"Imbalance Adjustment for Third-Party Deployed Energy","Imbalance Adjustment for Third-Party Deployed Energy",0,0,0]
[null,null,null,"Settlement Annual Budget Adjustment","Settlement Annual Budget Adjustment",0,0,0]
[null,null,null,"Synchronous Condensing","Synchronous Condensing",1610.4680000000001,1272.6350000000002,1272.6350000000002]
[null,null,null,"Generation Dropping ","Generation Dropping",415.41666666666674,589.23199999999997,589.23199999999997]
[null,null,null,"Redispatch","Redispatch",221.90700000000001,225,225]
[null,null,null,"COE/Reclamation Network/Delivery Facilities Segmentation","COE/Reclamation Network/Delivery Facilities Segmentation",7367.0013333333345,8867.0000000000018,8867.0000000000018]
[null,null,null,"Station Service","Station Service",2479.1246666666666,1996.0090000000007,1996.0090000000007]
[null,null,null,"Operating Reserve Energy ","Operating Reserve Energy",548.255,0,0]
["Inter-Business Unit / Gen Inputs for Ancillary and Other Services (400003)",null,null,null,"Inter-Business Unit / Gen Inputs for Ancillary and Other Services (400003)",118621.60108566667,108429.54182800002,101519.36111399998]
[null,null,"4(h)(10)(c)",null,"4(h)(10)(c)",65465.911165331192,93171.954219980136,91525.516274761685]
[null,null,"Colville and Spokane Settlements",null,"Colville and Spokane Settlements",4600.000023333333,4599.9999633333327,4600]
["Treasury Credits (400005 and 400006)",null,null,null,"Treasury Credits (400005 and 400006)",70065.911188664511,97771.954183313472,96125.516274761685]
["TOTAL OPERATING REVENUES",null,null,null,"TOTAL OPERATING REVENUES",2766742.4588970281,2903950.6832217011,2897216.0174612268]
[null,null,"Augmentation Purchases",null,"Augmentation Purchases",0,0,12221.569277940949]
[null,"Augmentation Power Purchase total",null,null,"Augmentation Power Purchase total",0,0,12221.569277940949]
[null,null,null,"Balancing Purchases (unadjusted)","Balancing Purchases (unadjusted)",4112.0306429526636,21876.985405625001,15743.179916562502]
[null,null,null,"(Transmission re-dispatch for Gen Inputs adjustment)","(Transmission re-dispatch for Gen Inputs adjustment)",0,225,225]
[null,null,"Balancing Purchases",null,"Balancing Purchases",4112.0306429526636,22101.985405625001,15968.179916562502]
[null,null,null,"SILS Power Purchases (within year included in balancing purchases)","SILS Power Purchases (within year included in balancing purchases)",0,38381.735999999997,38440.767999999996]
[null,null,"Committed Purchases (TF)",null,"Committed Purchases (TF)",60444.846229999981,0,0]
[null,null,"Non Treaty Storage Agreement expense (TF)",null,"Non Treaty Storage Agreement expense (TF)",6560.8748120000009,0,0]
[null,null,"Libby Coordination Agreement (TF)",null,"Libby Coordination Agreement (TF)",4214.0054728000005,0,0]
[null,"Balancing Power Purchase sub-total",null,null,"Balancing Power Purchase sub-total",16234.1564248,60483.721405624994,54408.947916562494]
[null,"Non-Treaty Storage Agreement Expense - slice portion",null,null,"Non-Treaty Storage Agreement Expense - slice portion",2462.9294942999995,0,0]
[null,"Libby Coordination Agreement Expense - slice portion",null,null,"Libby Coordination Agreement Expense - slice portion",1581.9229395,0,0]
[null,"Rocky Brook Power Purchase",null,null,"Rocky Brook Power Purchase",0,0,0]
[null,null,null,"Tier 2 Short Term Power Purchase","Tier 2 Short Term Power Purchase",0,0,6850.3199999999988]
[null,null,null,"Tier 2 Short Term Forecasted Power Purchase","Tier 2 Short Term Forecasted Power Purchase",0,5555.316300891016,891.06222227602495]
[null,null,null,"Tier 2 Load Growth Term Power Purchase","Tier 2 Load Growth Term Power Purchase",2045.4599999999996,2163.7199999999998,2538.2099999999996]
[null,null,null,"Tier 2 Load Growth Forecasted Power Purchase","Tier 2 Load Growth Forecasted Power Purchase",0,156.20353627218995,29.122673790711218]
[null,null,null,"Tier 2 Vintage 12PM-10176","Tier 2 Vintage 12PM-10176",19179.129600000022,19906.223999999856,20772.588000000116]
[null,null,null,"Tier 2 Vintage 1 Forecasted Power Purchase ","Tier 2 Vintage 1 Forecasted Power Purchase",0,201.99268457647466,20.961124540929912]
[null,null,null,"Tier 2 Vintage 13PM-11134","Tier 2 Vintage 13PM-11134",5827.7904000000053,8965.8599999999988,10992.485999999948]
[null,null,null,"Tier 2 Vintage Forecasted Power Purchase","Tier 2 Vintage Forecasted Power Purchase",0,100.99634228823733,16.770487997828226]
[null,null,"Tier 2 Purchases",null,"Tier 2 Purchases",27052.380000000026,37050.312864027772,42111.52050860555]
[null,null,null,"Foote Creek I Wind Project (PacifiCorp)94MS-94375","Foote Creek I Wind Project (PacifiCorp)94MS-94375",3077.9947540000003,2241.9012674519995,2241.9012674519995]
[null,null,null,"Foote Creek I Wind Project (Storage for EWEB Amount)94MS-94375","Foote Creek I Wind Project (Storage for EWEB Amount)94MS-94375",46.326397500000006,0,15.75746516257465]
[null,null,null,"Foote Creek I Wind Project (Transmission for EWEB Amount)94MS-94375","Foote Creek I Wind Project (Transmission for EWEB Amount)94MS-94375",27.178153200000001,0,9.2443795620437932]
[null,null,null,"Foote Creek I Wind Project (EWEB)94MS-94375","Foote Creek I Wind Project (EWEB)94MS-94375",464.80818825,0,177.53410749834103]
[null,null,null,"Foote Creek I Wind Project (Settlement Credit to EWEB)15PM-12909","Foote Creek I Wind Project (Settlement Credit to EWEB)15PM-12909",0,358.75200000000012,358.75200000000012]
[null,null,null,"Foote Creek IV Wind Project (SeaWest Windpower Inc.)00PB-10652","Foote Creek IV Wind Project (SeaWest Windpower Inc.)00PB-10652",2149.1286519599998,1494.3960707399999,1494.3960707399999]
[null,null,null,"Foote Creek IV Wind Project (PacifiCorp) (Storage, Generation Control)00PB-10708","Foote Creek IV Wind Project (PacifiCorp) (Storage, Generation Control)00PB-10708",639.43712136872,443.99570738399996,452.87562153168005]
[null,null,null,"Foote Creek IV Wind Project (PacifiCorp) (UFT)00PB-10708","Foote Creek IV Wind Project (PacifiCorp) (UFT)00PB-10708",136.88640000000001,23.529387000000003,23.529387000000003]
[null,null,null,"Condon Wind Project (Condon Wind Power LLC)00PB-10692","Condon Wind Project (Condon Wind Power LLC)00PB-10692",7036.9980745119892,8121.9278097200004,8121.9278097200004]
[null,null,null,"Condon Wind Project Tx Loss Adjustment/Gen Imbalance","Condon Wind Project Tx Loss Adjustment/Gen Imbalance",18.37,0,0]
[null,null,null,"Condon Wind Project (Wind Balancing Service)00PB-10692","Condon Wind Project (Wind Balancing Service)00PB-10692",717.12,606,606]
[null,null,null,"Stateline Wind Project (PPM)01PB-10761","Stateline Wind Project (PPM)01PB-10761",8060.6949079851711,8093.6657999999998,8093.6657999999998]
[null,null,null,"Stateline Wind Project Credit for Losses","Stateline Wind Project Credit for Losses",-32.251000000000005,0,0]
[null,null,null,"Stateline Wind Project (Wind Balancing Service)01PB-10761","Stateline Wind Project (Wind Balancing Service)01PB-10761",646.27200000000005,1162.3499999999999,1317.5999999999997]
[null,null,null,"Klondike Wind Project (PPM/Northwestern Wind Power LLC)02PB-11093","Klondike Wind Project (PPM/Northwestern Wind Power LLC)02PB-11093",2267.3956769800002,2063.6133100000002,2063.6133100000002]
[null,null,null,"Ashland Solar 00PB-10651","Ashland Solar 00PB-10651",0,0,0]
[null,null,null,"Fourmile Hill Geothermal (Calpine Siskiyou Partners)93956","Fourmile Hill Geothermal (Calpine Siskiyou Partners)93956",0,0,0]
[null,null,"Renewable Purchases - general (excl. Klondike III)",null,"Renewable Purchases - general (excl. Klondike III)",25256.359325755882,24610.131352296001,24976.797218666637]
[null,null,null,"Klondike III Wind Project07PB-11860","Klondike III Wind Project07PB-11860",7916.6720928000004,6755.8853999999992,6755.8853999999992]
[null,null,null,"Klondike III Wind Project (Monthly True Up)07PB-11860","Klondike III Wind Project (Monthly True Up)07PB-11860",-2.1960000000000002,0,0]
[null,null,null,"Klondike III Wind Project (Wind Balancing Service)07PB-11860","Klondike III Wind Project (Wind Balancing Service)07PB-11860",878.5,196,0]
[null,null,null,"Critical Wind Quantity Expense Adjustment for Klondike III","Critical Wind Quantity Expense Adjustment for Klondike III",1135.1193264637177,1309.719918699187,1421.7522357723583]
[null,null,"Renewable Purchases - Klondike III",null,"Renewable Purchases - Klondike III",9928.0954192637182,8261.6053186991885,8177.6376357723575]
[null,null,"Critical Wind Quantity Expense Adjustment",null,"Critical Wind Quantity Expense Adjustment",1983.4860896533517,5134.1020813008117,5573.2687642276424]
[null,"Total Renewable Purchases",null,null,"Total Renewable Purchases",35184.454745019604,38005.838752295997,38727.703618666637]
["Power Purchases",null,null,null,"Power Purchases",47331.388858600025,105795.63958835196,116919.67533888135]
[null,null,"Columbia Generating Station",null,"Columbia Generating Station",318513.71800000005,270146,327354]
[null,null,"Bureau Of Reclamation",null,"Bureau Of Reclamation",157620.99999999997,164609,162623]
[null,null,"Corps of Engineers",null,"Corps of Engineers",243981,256057,256057]
[null,null,"Long-Term Contract Generating Projects",null,"Long-Term Contract Generating Projects",11570.352999999999,12595.027000000002,13687.338]
[null,"Operating Generation",null,null,"Operating Generation",731686.071,703407.027,759721.33799999999]
[null,null,"Colville Generation Settlement",null,"Colville Generation Settlement",16666.778000000002,22612.477999999999,22996.89]
[null,"Operating Generation Settlements and Other Payments",null,null,"Operating Generation Settlements and Other Payments",16666.778000000002,22612.477999999999,22996.89]
[null,null,"Trojan Decommissioning",null,"Trojan Decommissioning",299.99999999999994,1000,1000]
[null,null,"WNP-1&3 Decommissioning",null,"WNP-1&3 Decommissioning",465,500,534]
[null,"Non-Operating Generation",null,null,"Non-Operating Generation",764.99999999999989,1500,1534]
[null,null,"PNCA Headwater Benefits",null,"PNCA Headwater Benefits",2479.9999999999995,3100,3100]
[null,null,"Purchases for Service at Tier 2 Rates",null,"Purchases for Service at Tier 2 Rates",26582,37050.312864027772,42111.52050860555]
[null,null,"Other Power Purchases (e.g. Short term)",null,"Other Power Purchases (e.g. Short term)",79376.609591552653,60483.721405624994,54408.947916562494]
[null,"Gross Contracted Power Purchases (excluding bookout adjustments) <Note 1",null,null,"Gross Contracted Power Purchases (excluding bookout adjustments) <Note 1",108438.60959155268,100634.03426965277,99620.468425168045]
[null,"Bookout Adjustments to Contracted Power Purchases <Note 1",null,null,"Bookout Adjustments to Contracted Power Purchases <Note 1",-9212.4423399999996,0,0]
[null,null,"Augmentation Power Purchases",null,"Augmentation Power Purchases",0,0,12221.569277940949]
[null,"Augmentation Power Purchases",null,null,"Augmentation Power Purchases",0,0,12221.569277940949]
[null,null,"Residential Exchange Program",null,"Residential Exchange Program",219002.62799999997,317901.72179695696,317916.18454546644]
[null,null,"Other Settlements",null,"Other Settlements",0,0,0]
[null,"Exchanges & Settlements",null,null,"Exchanges & Settlements",219002.62799999997,317901.72179695696,317916.18454546644]
[null,null,"Renewable Conservation Rate Credit",null,"Renewable Conservation Rate Credit",0,0,0]
[null,null,"Renewables",null,"Renewables",40341.321999999993,38331.832000000002,39059.891000000003]
[null,"Renewable Generation",null,null,"Renewable Generation",40341.321999999993,38331.832000000002,39059.891000000003]
[null,null,"DSM Technology",null,"DSM Technology",0,0,0]
[null,null,"Conservation Purchases",null,"Conservation Purchases",76323.449000000008,71785,71785]
[null,null,"Conservation Infrastructure",null,"Conservation Infrastructure",22943.143999999997,27148.552,27282.626]
[null,null,"Low Income Weatherization & Tribal",null,"Low Income Weatherization & Tribal",5422.0000000000009,5523.3909999999996,5626.6790000000001]
[null,null,"Energy Efficiency Development",null,"Energy Efficiency Development",7916.9009999999998,8000,8000]
[null,null,"Legacy",null,"Legacy",590,590,590]
[null,null,"Market Transformation",null,"Market Transformation",12507.294999999998,12363.808000000001,12048.687]
[null,null,"Conservation Rate Credit (CRC)",null,"Conservation Rate Credit (CRC)",0,0,0]
[null,null,"DR & Smart Grid",null,"DR & Smart Grid",1188.2339999999999,856.25199999999995,854.08699999999999]
[null,"Generation Conservation",null,null,"Generation Conservation",126891.023,126267.003,126187.07900000001]
["Power System Generation Sub-Total",null,null,null,"Power System Generation Sub-Total",1234578.9892515528,1310654.0960666097,1379257.4202485755]
[null,null,"Information Technology",null,"Information Technology",7047.1570000000002,6976.1589999999997,7293.8649999999998]
[null,null,"Generation Project Coordination",null,"Generation Project Coordination",5962.759,6173.94,6408.9049999999997]
[null,null,"Slice Implementation",null,"Slice Implementation",488.95900000000006,1024.143,1061.3599999999999]
[null,"Power Services System Operations",null,null,"Power Services System Operations",13498.875,14174.241999999998,14764.130000000001]
[null,null,"Operations Scheduling",null,"Operations Scheduling",8897.6750000000011,10053.728999999999,10404.279]
[null,null,"Operations Planning",null,"Operations Planning",7613.3019999999997,8528.098,8415.7109999999993]
[null,"Power Services Scheduling",null,null,"Power Services Scheduling",16510.976999999999,18581.826999999997,18819.989999999998]
[null,null,"Power R&D",null,"Power R&D",4275.6980000000012,4704.933,4599.5190000000002]
[null,null,"Sales & Support",null,"Sales & Support",19588.128000000001,22885.138999999999,23485.271000000001]
[null,null,"Strategy, Finance & Risk Mgmt ",null,"Strategy, Finance & Risk Mgmt",14877.487999999999,16853.235000000001,19038.129000000001]
[null,null,"Executive & Administrative Services",null,"Executive & Administrative Services",3417.4749999999999,4118.5219999999999,4203.5300000000007]
[null,null,"Conservation Support",null,"Conservation Support",8239.36,9093.5630000000001,9408.5]
[null,"Power Services Marketing and Business Support",null,null,"Power Services Marketing and Business Support",50398.149000000005,57655.392,60734.949000000001]
["Power Non-Generation Operations",null,null,null,"Power Non-Generation Operations",80408.001000000004,90411.460999999996,94319.069000000003]
[null,null,"PS Transmission & Ancillary Services",null,"PS Transmission & Ancillary Services",112806.42248783699,108554.68112172533,104198.02993102539]
[null,null,"3rd Party GTA Wheeling",null,"3rd Party GTA Wheeling",92844.301999999996,91758.555999999997,92515.6]
[null,null,"PS - 3rd Party Trans & Ancillary Svcs",null,"PS - 3rd Party Trans & Ancillary Svcs",2337.9999999999995,2250.7890000000002,2292.2040000000002]
[null,null,"Generation Integration",null,"Generation Integration",12073.999999999998,12480,12634]
[null,null,"Wind Integration Team",null,"Wind Integration Team",0,0,0]
[null,null,"Telemetering/Equip Replacemt",null,"Telemetering/Equip Replacemt",0,0,0]
["Power Srvcs Trans Acquisition and Ancillary Services Sub-Total ",null,null,null,"Power Srvcs Trans Acquisition and Ancillary Services Sub-Total",220062.72448783697,215044.02612172533,211639.83393102538]
[null,null,"Fish & Wildlife",null,"Fish & Wildlife",263869.32900000003,276713.28200000001,276703.66800000001]
[null,null,"USF&W Lower Snake Hatcheries",null,"USF&W Lower Snake Hatcheries",31949.46799999999,33483.249000000003,33483.249000000003]
[null,null,"Planning Council",null,"Planning Council",11570,11624,11914]
[null,null,"Environmental Requirements",null,"Environmental Requirements",0,0,0]
["Fish and Wildlife/USF&W/Planning Council Sub-Total",null,null,null,"Fish and Wildlife/USF&W/Planning Council Sub-Total",307388.79699999996,321820.53100000002,322100.91700000002]
[null,null,"Additional Post-Retirement Contribution",null,"Additional Post-Retirement Contribution",14858.184000000001,14962.013000000001,15620.325999999999]
[null,null,"Agency Services G&A (Excludes Direct Project Support)",null,"Agency Services G&A (Excludes Direct Project Support)",58261.282000000007,64391.224999999999,65796.266000000003]
["BPA Internal Support Sub-Total",null,null,null,"BPA Internal Support Sub-Total",73119.466,79353.237999999998,81416.592000000004]
["Bad Debt Expense",null,null,null,"Bad Debt Expense",-2.79,0,0]
["Undistributed Reduction",null,null,null,"Undistributed Reduction",0,0,0]
["Other Income, Expenses, Adjustments",null,null,null,"Other Income, Expenses, Adjustments",993.43799999999999,-128728.35724599985,-74167.959000000148]
[null,null,"Columbia Generating Station Debt Svc",null,"Columbia Generating Station Debt Svc",119457,184736.58649999992,338591.63150000002]
[null,null,"WNP-1 Debt Svc",null,"WNP-1 Debt Svc",35089,60431.195999999996,40738.129999999997]
[null,null,"WNP-3 Debt Svc",null,"WNP-3 Debt Svc",59047.999999999993,236157.93562599999,32139.091999999997]
[null,null,"En Retired Debt",null,"En Retired Debt",0,0,0]
[null,null,"En Libor Interest Rate Swap",null,"En Libor Interest Rate Swap",0,0,0]
[null,"Energy Northwest Debt Service",null,null,"Energy Northwest Debt Service",213594,481325.71812599991,411468.85350000003]
[null,null,"Trojan Debt Svc",null,"Trojan Debt Svc",0,0,0]
[null,null,"Conservation Debt Svc",null,"Conservation Debt Svc",0,0,0]
[null,null,"Cowlitz Falls Debt Svc",null,"Cowlitz Falls Debt Svc",7301.9999999999982,7302.2420000000002,7303.5329999999994]
[null,null,"Northern Wasco Debt Svc",null,"Northern Wasco Debt Svc",1934.9999999999995,1933.8490000000002,1931.771]
[null,"Non-Energy Northwest Debt Service",null,null,"Non-Energy Northwest Debt Service",9236.9999999999982,9236.0910000000003,9235.3040000000001]
["Non-Federal Debt Service Sub-Total",null,null,null,"Non-Federal Debt Service Sub-Total",222831.00000000003,490561.80912599992,420704.15750000003]
["Depreciation",null,null,null,"Depreciation",142468.00000000003,144091.87550166668,144065.45318666665]
["Amortization",null,null,null,"Amortization",86933.999999999985,86795.866666666669,87458.299466666678]
["TOTAL OPERATING EXPENSES",null,null,null,"TOTAL OPERATING EXPENSES",2368781.6257393896,2610004.5462366682,2666793.7833329337]
[null,null,"Federal Appropriation",null,"Federal Appropriation",115582.3,83294,82687]
[null,null,"Capitalization Adjustment",null,"Capitalization Adjustment",-45936.999999999993,-45937,-45937]
[null,null,"Borrowings from US Treasury",null,"Borrowings from US Treasury",53895.938000000002,56449,63302]
[null,null,"Non-Federal Interest Expense (Pre-Pay Funds)",null,"Non-Federal Interest Expense (Pre-Pay Funds)",12468.924000000001,11627.714081461887,10747.46794684212]
[null,null,"AFUDC",null,"AFUDC",-9900.0000000000018,-8379.4153249999999,-8307.4349999999995]
[null,null,"Interest Income",null,"Interest Income",-1726.5360000000001,-1392.1690000000001,-2205.1315]
["Net Interest Expense (Income)",null,null,null,"Net Interest Expense (Income)",124383.626,95662.129756461902,100286.90144684212]
["TOTAL EXPENSES (incl. interest)",null,null,null,"TOTAL EXPENSES (incl. interest)",2493165.2517393897,2705666.6759931301,2767080.6847797758]
["NET REVENUES",null,null,null,"NET REVENUES",273577.20715763839,198284.00722857099,130135.33268145099]
[]
[]
[null,null,null,null,null,{"$f":"F222+F224","v":169478.23800000001},{"$f":"G222+G224","v":139743},145989]

{"sheet":"Risk Summary","index":2,"n_rows":51,"n_cols":24,"rows_kept":51,"cut":false,"hidden":false,"merged":[]}
[]
[null,null,null,null,null,null,null,null,null,null,null,null,null,null,null,null,null,null,null,null,"Outputs for Charting, etc"]
[null,null,"FY17","FY17","FY18","FY18","FY19","FY19",null,{"$f":"D3","v":"FY17"},{"$f":"F3","v":"FY18"},{"$f":"H3","v":"FY19"},null,null,null,{"$f":"J3","v":"FY17"},{"$f":"K3","v":"FY18"},{"$f":"L3","v":"FY19"},"FY18 and 19","Chart Names",{"$f":"Q3","v":"FY18"},{"$f":"R3","v":"FY19"},{"$f":"S3","v":"FY18 and 19"}]
[null,null,"Forecast","Modeled","Forecast","Modeled","Forecast","Modeled",null,"Delta","Delta","Delta",null,null,null,"Output"]
[null,"Revenue"]
[null,"Revenue delta from CGS Re-fuel outage duration (delta)",null,{"$f":"'CGS Refueling'!B5","v":{"$error":"#NAME?"}},null,{"$f":"'CGS Refueling'!C5","v":{"$error":"#NAME?"}},null,{"$f":"'CGS Refueling'!D5","v":{"$error":"#NAME?"}},null,{"$f":"D6-C6","v":{"$error":"#NAME?"}},{"$f":"F6-E6","v":{"$error":"#NAME?"}},{"$f":"H6-G6","v":{"$error":"#NAME?"}},null,null,null,{"$f":"_xll.RiskOutput($T6&\" / \"&P$3)+D6","v":{"$error":"#NAME?"}},{"$f":"_xll.RiskOutput($T6&\" / \"&Q$3)+F6","v":{"$error":"#NAME?"}},{"$f":"_xll.RiskOutput($T6&\" / \"&R$3)+H6","v":{"$error":"#NAME?"}},{"$f":"_xll.RiskOutput($T6&\" / \"&S$3)+Q6+R6","v":{"$error":"#NAME?"}},"CGS Outage Revenue Impact"]
[null,"Expense"]
[null,"Columbia Generating Station",{"$f":"IF(CategoryColumn=\"\",\"\",VLOOKUP(CategoryColumn,ProForma,MATCH(YearRow,ProFormaYears,0)+1,FALSE))","v":318513.71800000005},{"$f":"CGS!J4","v":{"$error":"#NAME?"}},{"$f":"IF(CategoryColumn=\"\",\"\",VLOOKUP(CategoryColumn,ProForma,MATCH(YearRow,ProFormaYears,0)+1,FALSE))","v":270146},{"$f":"CGS!K4","v":{"$error":"#NAME?"}},{"$f":"IF(CategoryColumn=\"\",\"\",VLOOKUP(CategoryColumn,ProForma,MATCH(YearRow,ProFormaYears,0)+1,FALSE))","v":327354},{"$f":"CGS!L4","v":{"$error":"#NAME?"}},null,{"$f":"IF(COUNT(C8:D8)>0,D8-C8,\"\")","v":{"$error":"#NAME?"}},{"$f":"IF(COUNT(E8:F8)>0,F8-E8,\"\")","v":{"$error":"#NAME?"}},{"$f":"IF(COUNT(G8:H8)>0,H8-G8,\"\")","v":{"$error":"#NAME?"}},null,null,null,{"$f":"_xll.RiskOutput($T8&\" / \"&P$3)+D8","v":{"$error":"#NAME?"}},{"$f":"_xll.RiskOutput($T8&\" / \"&Q$3)+F8","v":{"$error":"#NAME?"}},{"$f":"_xll.RiskOutput($T8&\" / \"&R$3)+H8","v":{"$error":"#NAME?"}},{"$f":"_xll.RiskOutput($T8&\" / \"&S$3)+Q8+R8","v":{"$error":"#NAME?"}},"CGS Total O&M"]
[null,"Bureau Of Reclamation",157620.99999999997,{"$f":"'Corps & Bureau O&M'!D22","v":{"$error":"#NAME?"}},164609,{"$f":"'Corps & Bureau O&M'!F22","v":{"$error":"#NAME?"}},162623,{"$f":"'Corps & Bureau O&M'!H22","v":{"$error":"#NAME?"}},null,{"$f":"IF(COUNT(C9:D9)>0,D9-C9,\"\")","v":{"$error":"#NAME?"}},{"$f":"IF(COUNT(E9:F9)>0,F9-E9,\"\")","v":{"$error":"#NAME?"}},{"$f":"IF(COUNT(G9:H9)>0,H9-G9,\"\")","v":{"$error":"#NAME?"}},null,null,null,{"$f":"_xll.RiskOutput($T9&\" / \"&P$3)+SUM(D9:D10)","v":{"$error":"#NAME?"}},{"$f":"_xll.RiskOutput($T9&\" / \"&Q$3)+SUM(F9:F10)","v":{"$error":"#NAME?"}},{"$f":"_xll.RiskOutput($T9&\" / \"&R$3)+SUM(H9:H10)","v":{"$error":"#NAME?"}},{"$f":"_xll.RiskOutput($T9&\" / \"&S$3)+Q9+R9","v":{"$error":"#NAME?"}},"Corps and Reclamation O&M"]
[null,"Corps of Engineers",243981,{"$f":"'Corps & Bureau O&M'!D5","v":{"$error":"#NAME?"}},256057,{"$f":"'Corps & Bureau O&M'!F5","v":{"$error":"#NAME?"}},256057,{"$f":"'Corps & Bureau O&M'!H5","v":{"$error":"#NAME?"}},null,{"$error":"#NAME?"},{"$error":"#NAME?"},{"$error":"#NAME?"}]
[null,"Colville Generation Settlement",16666.778000000002,{"$f":"'Colville&Spokane'!F5","v":{"$error":"#NAME?"}},22612.477999999999,{"$f":"'Colville&Spokane'!G5","v":{"$error":"#NAME?"}},22996.89,{"$f":"'Colville&Spokane'!H5","v":{"$error":"#NAME?"}},null,{"$error":"#NAME?"},{"$error":"#NAME?"},{"$error":"#NAME?"},null,null,null,{"$f":"_xll.RiskOutput($T11&\" / \"&P$3)+D11","v":{"$error":"#NAME?"}},{"$f":"_xll.RiskOutput($T11&\" / \"&Q$3)+F11","v":{"$error":"#NAME?"}},{"$f":"_xll.RiskOutput($T11&\" / \"&R$3)+H11","v":{"$error":"#NAME?"}},{"$f":"_xll.RiskOutput($T11&\" / \"&S$3)+Q11+R11","v":{"$error":"#NAME?"}},"Colville & Spokane Settlements"]
[null,null,"",null,"",null,"",null,null,"","",""]
[null,"Conservation Purchases",{"$f":"IF(CategoryColumn=\"\",\"\",VLOOKUP(CategoryColumn,ProForma,MATCH(YearRow,ProFormaYears,0)+1,FALSE))","v":76323.449000000008},{"$f":"_xll.RiskPert(C13*AVERAGE(1,0.9),C13,C13*AVERAGE(1,1.05))","v":{"$error":"#NAME?"}},71785,{"$f":"_xll.RiskPert(E13*0.9,E13,E13*1.05)","v":{"$error":"#NAME?"}},71785,{"$f":"_xll.RiskPert(G13*0.9,G13,G13*1.05)","v":{"$error":"#NAME?"}},null,{"$error":"#NAME?"},{"$error":"#NAME?"},{"$error":"#NAME?"},null,null,null,{"$f":"_xll.RiskOutput($T13&\" / \"&P$3)+D13","v":{"$error":"#NAME?"}},{"$f":"_xll.RiskOutput($T13&\" / \"&Q$3)+F13","v":{"$error":"#NAME?"}},{"$f":"_xll.RiskOutput($T13&\" / \"&R$3)+H13","v":{"$error":"#NAME?"}},{"$f":"_xll.RiskOutput($T13&\" / \"&S$3)+Q13+R13","v":{"$error":"#NAME?"}},"Conservation Acquisition",{"$f":"_xll.RiskOutput(,X13,1)+F13+F14","v":{"$error":"#NAME?"}},{"$f":"_xll.RiskOutput(,X13,2)+H13+H14","v":{"$error":"#NAME?"}},{"$f":"_xll.RiskOutput(,X13,3)+U13+V13","v":{"$error":"#NAME?"}},"Conservation Acq. & Weatherization"]
[null,"Low Income Weatherization & Tribal",5422.0000000000009,{"$f":"_xll.RiskPert(C14*AVERAGE(1,0.95),C14,C14*AVERAGE(1,1.05))","v":{"$error":"#NAME?"}},5523.3909999999996,{"$f":"_xll.RiskPert(E14*0.95,E14,E14*1.05)","v":{"$error":"#NAME?"}},5626.6790000000001,{"$f":"_xll.RiskPert(G14*0.95,G14,G14*1.05)","v":{"$error":"#NAME?"}},null,{"$error":"#NAME?"},{"$error":"#NAME?"},{"$error":"#NAME?"},null,null,null,{"$f":"_xll.RiskOutput($T14&\" / \"&P$3)+D14","v":{"$error":"#NAME?"}},{"$f":"_xll.RiskOutput($T14&\" / \"&Q$3)+F14","v":{"$error":"#NAME?"}},{"$f":"_xll.RiskOutput($T14&\" / \"&R$3)+H14","v":{"$error":"#NAME?"}},{"$f":"_xll.RiskOutput($T14&\" / \"&S$3)+Q14+R14","v":{"$error":"#NAME?"}},"Low Income Weatherization & Tribal"]
[null,null,null,null,"",null,"",null,null,"","",""]
[null,"3rd Party GTA Wheeling",{"$f":"IF(CategoryColumn=\"\",\"\",VLOOKUP(CategoryColumn,ProForma,MATCH(YearRow,ProFormaYears,0)+1,FALSE))","v":92844.301999999996},{"$f":"_xll.RiskPert(C16*AVERAGE(1,0.98),C16,C16*AVERAGE(1,1.01))","v":{"$error":"#NAME?"}},91758.555999999997,{"$f":"_xll.RiskPert(E16*0.96,E16,E16*1.02)","v":{"$error":"#NAME?"}},92515.6,{"$f":"_xll.RiskPert(G16*0.96,G16,G16*1.03)","v":{"$error":"#NAME?"}},null,{"$error":"#NAME?"},{"$error":"#NAME?"},{"$error":"#NAME?"},null,null,null,{"$f":"_xll.RiskOutput($T16&\" / \"&P$3)+D16","v":{"$error":"#NAME?"}},{"$f":"_xll.RiskOutput($T16&\" / \"&Q$3)+F16","v":{"$error":"#NAME?"}},{"$f":"_xll.RiskOutput($T16&\" / \"&R$3)+H16","v":{"$error":"#NAME?"}},{"$f":"_xll.RiskOutput($T16&\" / \"&S$3)+Q16+R16","v":{"$error":"#NAME?"}},"3rd Party GTA Wheeling"]
[null,"PS - 3rd Party Trans & Ancillary Svcs",2337.9999999999995,{"$f":"_xll.RiskPert(C17,C17,C17*AVERAGE(1,1.05))","v":{"$error":"#NAME?"}},{"$f":"IF(CategoryColumn=\"\",\"\",VLOOKUP(CategoryColumn,ProForma,MATCH(YearRow,ProFormaYears,0)+1,FALSE))","v":2250.7890000000002},{"$f":"_xll.RiskPert(E17,E17,E17*1.05^2)","v":{"$error":"#NAME?"}},2292.2040000000002,{"$f":"_xll.RiskPert(G17,G17,G17*1.05^3)","v":{"$error":"#NAME?"}},null,{"$error":"#NAME?"},{"$error":"#NAME?"},{"$error":"#NAME?"},null,null,null,{"$f":"_xll.RiskOutput($T17&\" / \"&P$3)+D17","v":{"$error":"#NAME?"}},{"$f":"_xll.RiskOutput($T17&\" / \"&Q$3)+F17","v":{"$error":"#NAME?"}},{"$f":"_xll.RiskOutput($T17&\" / \"&R$3)+H17","v":{"$error":"#NAME?"}},{"$f":"_xll.RiskOutput($T17&\" / \"&S$3)+Q17+R17","v":{"$error":"#NAME?"}},"3rd Party Trans & Ancillary Svcs"]
[null,null,"",null,"",null,"",null,null,"","",""]
[null,"INFORMATION TECHNOLOGY",7047.1570000000002,{"$f":"Salaries!F5","v":{"$error":"#NAME?"}},6976.1589999999997,{"$f":"Salaries!G5","v":{"$error":"#NAME?"}},7293.8649999999998,{"$f":"Salaries!H5","v":{"$error":"#NAME?"}},null,{"$error":"#NAME?"},{"$error":"#NAME?"},{"$error":"#NAME?"},null,null,null,{"$f":"_xll.RiskOutput($T19&\" / \"&P$3)+SUM(D19:D32)","v":{"$error":"#NAME?"}},{"$f":"_xll.RiskOutput($T19&\" / \"&Q$3)+SUM(F19:F32)","v":{"$error":"#NAME?"}},{"$f":"_xll.RiskOutput($T19&\" / \"&R$3)+SUM(H19:H32)","v":{"$error":"#NAME?"}},{"$f":"_xll.RiskOutput($T19&\" / \"&S$3)+Q19+R19","v":{"$error":"#NAME?"}},"Internal Operations"]
[null,"GENERATION PROJECT COORDINATION",5962.759,{"$f":"Salaries!F6","v":{"$error":"#NAME?"}},6173.94,{"$f":"Salaries!G6","v":{"$error":"#NAME?"}},6408.9049999999997,{"$f":"Salaries!H6","v":{"$error":"#NAME?"}},null,{"$error":"#NAME?"},{"$error":"#NAME?"},{"$error":"#NAME?"}]
[null,"SLICE IMPLEMENTATION",488.95900000000006,{"$f":"Salaries!F7","v":{"$error":"#NAME?"}},1024.143,{"$f":"Salaries!G7","v":{"$error":"#NAME?"}},1061.3599999999999,{"$f":"Salaries!H7","v":{"$error":"#NAME?"}},null,{"$error":"#NAME?"},{"$error":"#NAME?"},{"$error":"#NAME?"}]
[null,null,"",null,"",null,"",null,null,"","",""]
[null,"OPERATIONS SCHEDULING",8897.6750000000011,{"$f":"Salaries!F9","v":{"$error":"#NAME?"}},10053.728999999999,{"$f":"Salaries!G9","v":{"$error":"#NAME?"}},10404.279,{"$f":"Salaries!H9","v":{"$error":"#NAME?"}},null,{"$error":"#NAME?"},{"$error":"#NAME?"},{"$error":"#NAME?"}]
[null,"OPERATIONS PLANNING",7613.3019999999997,{"$f":"Salaries!F10","v":{"$error":"#NAME?"}},8528.098,{"$f":"Salaries!G10","v":{"$error":"#NAME?"}},8415.7109999999993,{"$f":"Salaries!H10","v":{"$error":"#NAME?"}},null,{"$error":"#NAME?"},{"$error":"#NAME?"},{"$error":"#NAME?"}]
[null,"POWER R&D",4275.6980000000012,{"$f":"Salaries!F11","v":{"$error":"#NAME?"}},4704.933,{"$f":"Salaries!G11","v":{"$error":"#NAME?"}},4599.5190000000002,{"$f":"Salaries!H11","v":{"$error":"#NAME?"}},null,{"$error":"#NAME?"},{"$error":"#NAME?"},{"$error":"#NAME?"}]
[null,null,"",null,"",null,"",null,null,"","",""]
[null,"SALES & SUPPORT",19588.128000000001,{"$f":"Salaries!F13","v":{"$error":"#NAME?"}},22885.138999999999,{"$f":"Salaries!G13","v":{"$error":"#NAME?"}},23485.271000000001,{"$f":"Salaries!H13","v":{"$error":"#NAME?"}},null,{"$error":"#NAME?"},{"$error":"#NAME?"},{"$error":"#NAME?"}]
[null,"STRATEGY, FINANCE & RISK MGMT",14877.487999999999,{"$f":"Salaries!F14","v":{"$error":"#NAME?"}},16853.235000000001,{"$f":"Salaries!G14","v":{"$error":"#NAME?"}},19038.129000000001,{"$f":"Salaries!H14","v":{"$error":"#NAME?"}},null,{"$error":"#NAME?"},{"$error":"#NAME?"},{"$error":"#NAME?"}]
[null,"Executive & Administrative Services",3417.4749999999999,{"$f":"Salaries!F15","v":{"$error":"#NAME?"}},4118.5219999999999,{"$f":"Salaries!G15","v":{"$error":"#NAME?"}},4203.5300000000007,{"$f":"Salaries!H15","v":{"$error":"#NAME?"}},null,{"$error":"#NAME?"},{"$error":"#NAME?"},{"$error":"#NAME?"}]
[null,"CONSERVATION SUPPORT",8239.36,{"$f":"Salaries!F16","v":{"$error":"#NAME?"}},9093.5630000000001,{"$f":"Salaries!G16","v":{"$error":"#NAME?"}},9408.5,{"$f":"Salaries!H16","v":{"$error":"#NAME?"}},null,{"$error":"#NAME?"},{"$error":"#NAME?"},{"$error":"#NAME?"}]
[null,null,"",null,"",null,"",null,null,"","","",null,null,null,{"$f":"_xll.RiskOutput($T31&\" / \"&P$3)+'F&W Expense'!G14","v":{"$error":"#NAME?"}},{"$f":"_xll.RiskOutput($T31&\" / \"&Q$3)+'F&W Expense'!I14","v":{"$error":"#NAME?"}},{"$f":"_xll.RiskOutput($T31&\" / \"&R$3)+'F&W Expense'!K14","v":{"$error":"#NAME?"}},{"$f":"_xll.RiskOutput($T31&\" / \"&S$3)+Q31+R31","v":{"$error":"#NAME?"}},"Leavenworth Complex O&M"]
[null,"Agency Services G&A (Excludes Direct Project Support)",58261.282000000007,{"$f":"Salaries!F18","v":{"$error":"#NAME?"}},64391.224999999999,{"$f":"Salaries!G18","v":{"$error":"#NAME?"}},65796.266000000003,{"$f":"Salaries!H18","v":{"$error":"#NAME?"}},null,{"$error":"#NAME?"},{"$error":"#NAME?"},{"$error":"#NAME?"},null,null,null,{"$f":"_xll.RiskOutput($T32&\" / \"&P$3)+'F&W Expense'!G18","v":{"$error":"#NAME?"}},{"$f":"_xll.RiskOutput($T32&\" / \"&Q$3)+'F&W Expense'!I18","v":{"$error":"#NAME?"}},{"$f":"_xll.RiskOutput($T32&\" / \"&R$3)+'F&W Expense'!K18","v":{"$error":"#NAME?"}},{"$f":"_xll.RiskOutput($T32&\" / \"&S$3)+Q32+R32","v":{"$error":"#NAME?"}},"COE Fish Passage Facilities"]
[null,null,"",null,"",null,"",null,null,"","",""]
[null,"Fish & Wildlife",263869.32900000003,{"$f":"'F&W Expense'!G6","v":{"$error":"#NAME?"}},276713.28200000001,{"$f":"'F&W Expense'!I6","v":{"$error":"#NAME?"}},276703.66800000001,{"$f":"'F&W Expense'!K6","v":{"$error":"#NAME?"}},null,{"$f":"IF(COUNT(C34:D34)>0,D34-C34,\"\")","v":{"$error":"#NAME?"}},{"$f":"IF(COUNT(E34:F34)>0,F34-E34,\"\")","v":{"$error":"#NAME?"}},{"$f":"IF(COUNT(G34:H34)>0,H34-G34,\"\")","v":{"$error":"#NAME?"}},null,null,null,{"$f":"_xll.RiskOutput($T34&\" / \"&P$3)+D34","v":{"$error":"#NAME?"}},{"$f":"_xll.RiskOutput($T34&\" / \"&Q$3)+F34","v":{"$error":"#NAME?"}},{"$f":"_xll.RiskOutput($T34&\" / \"&R$3)+H34","v":{"$error":"#NAME?"}},{"$f":"_xll.RiskOutput($T34&\" / \"&S$3)+Q34+R34","v":{"$error":"#NAME?"}},"F&W Direct Program"]
[null,"USF&W Lower Snake Hatcheries",31949.46799999999,{"$f":"'F&W Expense'!G24","v":{"$error":"#NAME?"}},33483.249000000003,{"$f":"'F&W Expense'!I24","v":{"$error":"#NAME?"}},33483.249000000003,{"$f":"'F&W Expense'!K24","v":{"$error":"#NAME?"}},null,{"$f":"IF(COUNT(C35:D35)>0,D35-C35,\"\")","v":{"$error":"#NAME?"}},{"$f":"IF(COUNT(E35:F35)>0,F35-E35,\"\")","v":{"$error":"#NAME?"}},{"$f":"IF(COUNT(G35:H35)>0,H35-G35,\"\")","v":{"$error":"#NAME?"}},null,null,null,{"$f":"_xll.RiskOutput($T35&\" / \"&P$3)+D35","v":{"$error":"#NAME?"}},{"$f":"_xll.RiskOutput($T35&\" / \"&Q$3)+F35","v":{"$error":"#NAME?"}},{"$f":"_xll.RiskOutput($T35&\" / \"&R$3)+H35","v":{"$error":"#NAME?"}},{"$f":"_xll.RiskOutput($T35&\" / \"&S$3)+Q35+R35","v":{"$error":"#NAME?"}},"F&W Lower Snake Hatcheries"]
[null,null,"",null,"",null,"",null,null,{"$f":"IF(COUNT(C36:D36)>0,D36-C36,\"\")","v":""},{"$f":"IF(COUNT(E36:F36)>0,F36-E36,\"\")","v":""},{"$f":"IF(COUNT(G36:H36)>0,H36-G36,\"\")","v":""}]
[null,"Non-Federal Debt Service Sub-Total",222831.00000000003,{"$f":"Interest!J5","v":{"$error":"#NAME?"}},490561.80912599992,{"$f":"Interest!K5","v":{"$error":"#NAME?"}},420704.15750000003,{"$f":"Interest!L5","v":{"$error":"#NAME?"}},null,{"$error":"#NAME?"},{"$error":"#NAME?"},{"$error":"#NAME?"},null,null,null,{"$f":"_xll.RiskOutput($T37&\" / \"&P$3)+SUM(D37:D39)","v":{"$error":"#NAME?"}},{"$f":"_xll.RiskOutput($T37&\" / \"&Q$3)+SUM(F37:F39)","v":{"$error":"#NAME?"}},{"$f":"_xll.RiskOutput($T37&\" / \"&R$3)+SUM(H37:H39)","v":{"$error":"#NAME?"}},{"$f":"_xll.RiskOutput($T37&\" / \"&S$3)+Q37+R37","v":{"$error":"#NAME?"}},"Interest and Appropriations"]
[null,"Borrowings from US Treasury",53895.938000000002,{"$f":"Interest!J6","v":{"$error":"#NAME?"}},56449,{"$f":"Interest!K6","v":{"$error":"#NAME?"}},63302,{"$f":"Interest!L6","v":{"$error":"#NAME?"}},null,{"$f":"IF(COUNT(C38:D38)>0,D38-C38,\"\")","v":{"$error":"#NAME?"}},{"$f":"IF(COUNT(E38:F38)>0,F38-E38,\"\")","v":{"$error":"#NAME?"}},{"$f":"IF(COUNT(G38:H38)>0,H38-G38,\"\")","v":{"$error":"#NAME?"}}]
[null,"FEDERAL APPROPRIATION",115582.3,{"$f":"Interest!J7","v":{"$error":"#NAME?"}},83294,{"$f":"Interest!K7","v":{"$error":"#NAME?"}},82687,{"$f":"Interest!L7","v":{"$error":"#NAME?"}},null,{"$error":"#NAME?"},{"$error":"#NAME?"},{"$error":"#NAME?"}]
[]
[null,"Total Revenue Delta","Increases Net Revenue",null,null,null,null,null,null,{"$f":"SUM(J6:J6)","v":{"$error":"#NAME?"}},{"$f":"SUM(K6:K6)","v":{"$error":"#NAME?"}},{"$f":"SUM(L6:L6)","v":{"$error":"#NAME?"}}]
[null,"RevenueSlice True-up","Increases Net Revenue",null,null,null,null,null,null,{"$f":"0*Slice0*-1","v":0},{"$f":"0*Slice1*-1","v":0},{"$f":"0*Slice2*-1","v":0}]
[null,"Base Expenses Delta","Decreases Net Revenue",null,null,null,null,null,null,{"$f":"SUM(J8:J39)","v":{"$error":"#NAME?"}},{"$f":"SUM(K8:K39)","v":{"$error":"#NAME?"}},{"$f":"SUM(L8:L39)","v":{"$error":"#NAME?"}}]
[null,"Undistributed Reduction Adjustment",null,null,null,null,null,null,null,{"$f":"'Undistributed Reduction'!B23","v":{"$error":"#NAME?"}},{"$f":"'Undistributed Reduction'!C23","v":{"$error":"#NAME?"}},{"$f":"'Undistributed Reduction'!D23","v":{"$error":"#NAME?"}}]
[null,"Total Expenses Delta",null,null,null,null,null,null,null,{"$f":"J43+J44","v":{"$error":"#NAME?"}},{"$f":"K43+K44","v":{"$error":"#NAME?"}},{"$f":"L43+L44","v":{"$error":"#NAME?"}}]
[null,"Expense Slice True-up","Decreases Net Revenue",null,null,null,null,null,null,{"$f":"(J45*Slice0*-1)","v":{"$error":"#NAME?"}},{"$f":"(K45*Slice1*-1)","v":{"$error":"#NAME?"}},{"$f":"(L45*Slice2*-1)","v":{"$error":"#NAME?"}}]
[]
[null,"Revenue Delta",null,null,null,null,null,null,null,{"$f":"J41+J42-J45-J46","v":{"$error":"#NAME?"}},{"$f":"K41+K42-K45-K46","v":{"$error":"#NAME?"}},{"$f":"L41+L42-L45-L46","v":{"$error":"#NAME?"}},null,null,null,{"$f":"_xll.RiskOutput($T48&\" / \"&P$3)+J48","v":{"$error":"#NAME?"}},{"$f":"_xll.RiskOutput($T48&\" / \"&Q$3)+K48","v":{"$error":"#NAME?"}},{"$f":"_xll.RiskOutput($T48&\" / \"&R$3)+L48","v":{"$error":"#NAME?"}},{"$f":"_xll.RiskOutput($T48&\" / \"&S$3)+Q48+R48","v":{"$error":"#NAME?"}},"NORM Summary Statistics"]
[]
[null,null,null,null,null,null,null,null,null,"Slice0","Slice1","Slice2"]
[null,null,null,null,null,null,null,null,null,0.26618700000000001,0.26595299999999999,0.26595299999999999]

{"sheet":"RiskSerializationData","index":3,"n_rows":10,"n_cols":6,"rows_kept":10,"cut":false,"hidden":true,"merged":[]}
[0,0]
[0]
[0]
[false,14000,6709.375,40000,100]
[false,14000,6709.375,40000,500]
[false,14000,6709.375,40000,1000]
[false,14000,6709.375,40000,1500]
[false,14000,6709.375,40000,2000]
[0]
[0,false,false,10,0.95,1]

{"sheet":"NR_to_Cash","index":4,"n_rows":48,"n_cols":7,"rows_kept":48,"cut":false,"hidden":false,"merged":[[5,2,5,4],[32,0,32,4]]}
[]
[]
["Table 2"]
[" TOOLKIT NET REVENUE TO CASH ADJUSTMENTS"]
["(in $Thousands)"]
[null,null,"NR to Cash"]
[]
[]
[null,null,"FY 2017","FY 2018","FY 2019",null,"Color Key:"]
[null,null,null,null,null,null,"SME Input"]
[1,"Non-cash Adj.",161809.924,146221,162210.22060017544,null,"Worksheet Formula"]
[2,"Cash Adj.",-571025.68521999987,-360706,-252195,null,"@Risk Output"]
[3,"Other",1542.7901575541441,0,0,null,"Linked to Summary"]
[null,null,null,null,null,null,"@Risk Formula"]
[5,"NORM Slice True Up Lagging out of this year",{"$f":"_xll.RiskOutput(,B15,1)+(-'Risk Summary'!J42+'Risk Summary'!J46)","v":{"$error":"#NAME?"}},{"$f":"_xll.RiskOutput(,B15,2)+(-'Risk Summary'!K42+'Risk Summary'!K46)","v":{"$error":"#NAME?"}},{"$f":"_xll.RiskOutput(,B15,3)+(-'Risk Summary'!L42+'Risk Summary'!L46)","v":{"$error":"#NAME?"}}]
[6,"NORM Slice True Up Lagging in from previous year",0,{"$f":"-C15","v":{"$error":"#NAME?"}},{"$f":"-D15","v":{"$error":"#NAME?"}},null,"Risk Adjustments On?"]
[null,null,null,null,null,null,true]
[7,"Net Revenue to Cash Adjustment",{"$f":"_xll.RiskOutput(,$B18&\" \"&C$9,1)+SUM(C11:C13)+IF(NrtcRiskOn,SUM(C15:C16,0))","v":{"$error":"#NAME?"}},{"$f":"_xll.RiskOutput(,$B18&\" \"&D$9,1)+SUM(D11:D13)+IF(NrtcRiskOn,SUM(D15:D16,0))","v":{"$error":"#NAME?"}},{"$f":"_xll.RiskOutput(,$B18&\" \"&E$9,1)+SUM(E11:E13)+IF(NrtcRiskOn,SUM(E15:E16,0))","v":{"$error":"#NAME?"}}]
[]
[null,"Interest Credit",-1726.5360000000001,-1483,-2341]
[null,"Repayment of Treasury Principal",160911,140454,252195]
[null,"Repayment of Treasury Interest",169478.23800000001,139743,145989]
[null,"Total Treasury Payment",{"$f":"C22+C21","v":330389.23800000001},{"$f":"D22+D21","v":280197},398184]
[]
[null,"(in $Thousands)",{"$f":"C9","v":"FY 2017"},{"$f":"D9","v":"FY 2018"},{"$f":"E9","v":"FY 2019"}]
[null,"PS NR",{"$f":"'Src Proforma'!F230","v":273577.20715763839},{"$f":"'Src Proforma'!G230","v":198284.00722857099},{"$f":"'Src Proforma'!H230","v":130135.33268145099}]
[]
[]
[null,"BOY Reserves for risk",158656,{"$f":"C30","v":{"$error":"#NAME?"}},{"$f":"D30","v":{"$error":"#NAME?"}}]
[null,"EOY Reserves for risk",{"$f":"C29+C26+C18","v":{"$error":"#NAME?"}},{"$f":"D29+D26+D18","v":{"$error":"#NAME?"}},{"$f":"E29+E26+E18","v":{"$error":"#NAME?"}}]
[]
[]
[]
["A","B","C","D","E"]
[]
[null,null,{"$f":"C9","v":"FY 2017"},{"$f":"D9","v":"FY 2018"},{"$f":"E9","v":"FY 2019"}]
[]
[1,"Non-cash Adj.",{"$f":"C11","v":161809.924},{"$f":"D11","v":146221},{"$f":"E11","v":162210.22060017544}]
[]
[2,"Cash Adj.",{"$f":"C12","v":-571025.68521999987},{"$f":"D12","v":-360706},{"$f":"E12","v":-252195}]
[]
[3,"Other",{"$f":"C13","v":1542.7901575541441},{"$f":"D13","v":0},{"$f":"E13","v":0}]
[]
[7,"NORM Slice True Up Lagging out of this year",{"$f":"C15","v":{"$error":"#NAME?"}},{"$f":"D15","v":{"$error":"#NAME?"}},{"$f":"E15","v":{"$error":"#NAME?"}}]
[]
[8,"NORM Slice True Up Lagging in from previous year",{"$f":"C16","v":0},{"$f":"D16","v":{"$error":"#NAME?"}},{"$f":"E16","v":{"$error":"#NAME?"}}]
[]
[9,"Net Revenue to Cash Adjustment",{"$f":"C18","v":{"$error":"#NAME?"}},{"$f":"D18","v":{"$error":"#NAME?"}},{"$f":"E18","v":{"$error":"#NAME?"}}]

{"sheet":"CGS Refueling","index":5,"n_rows":3208,"n_cols":12,"rows_kept":3208,"cut":false,"hidden":false,"merged":[]}
[]
[null,null,null,null,null,null,null,null,null,null,null,"Color Key:"]
[null,"FY17","FY18","FY19",null,null,null,null,null,null,null,"SME Input"]
["Slice Percent",{"$f":"Slice0","v":0.26618700000000001},{"$f":"Slice1","v":0.26595299999999999},{"$f":"Slice2","v":0.26595299999999999},"not trued up",null,"Output for Charts",null,null,null,null,"Worksheet Formula"]
["CGS Revenue Delta",{"$f":"_xll.RiskOutput(\"CGS Outage Revenue Impact / FY13\")+OFFSET(B8,_xll.RiskCurrentIter(),0)*(1-B4)","v":{"$error":"#NAME?"}},{"$f":"_xll.RiskOutput(\"CGS Outage Revenue Impact / FY14\")+OFFSET(C8,_xll.RiskCurrentIter(),0)*(1-C4)","v":{"$error":"#NAME?"}},{"$f":"_xll.RiskOutput(\"CGS Outage Revenue Impact / FY15\")+OFFSET(D8,_xll.RiskCurrentIter(),0)*(1-D4)","v":{"$error":"#NAME?"}},"($000)",null,{"$f":"_xll.RiskOutput(\"CGS Outage Revenue Impact / FY14 and FY15\")+(C5+D5)","v":{"$error":"#NAME?"}},null,null,null,null,"@Risk Output"]
[null,null,null,null,null,null,null,null,null,null,null,"Linked to Summary"]
[null,{"$f":"B3","v":"FY17"},{"$f":"C3","v":"FY18"},{"$f":"D3","v":"FY19"},null,null,null,null,null,null,null,"@Risk Formula"]
["MEAN",{"$f":"AVERAGE(B9:B3208)","v":4732.2710616270124},{"$f":"AVERAGE(C9:C3208)","v":0},{"$f":"AVERAGE(D9:D3208)","v":137.04495358446422}]
[1,5770.0862523811265,0,-633.5350333187439]
[2,4153.465685804701,0,1516.5491629433561]
[3,2497.3330247573895,0,2438.5616106763591]
[4,2261.7718044202752,0,2373.8905004527937]
[5,3712.2497310653598,0,90.063023777536955]
[6,7372.7603678612359,0,-465.91273877094301]
[7,4767.2878167690942,0,-4143.6446817904489]
[8,8608.5411072504048,0,-285.09237102187626]
[9,6335.096660610654,0,-22.903407118409451]
[10,7092.7747861681291,0,2756.6711495865129]
[11,3491.8237335294889,0,-7211.4147348994493]
[12,5184.0731297189986,0,-263.13675432446132]
[13,2014.3649813862262,0,-1205.8544814184243]
[14,5493.0792721293064,0,4000.9943431855791]
[15,4179.0560248499451,0,-1765.6814908487465]
[16,4924.8576418323664,0,1216.0946916047942]
[17,154.71677194229758,0,181.59694973111723]
[18,2300.7397365243155,0,451.26084948882067]
[19,3971.7995125324478,0,-2023.0930824327418]
[20,4116.7072675526169,0,-1398.477903203265]
[21,-1043.5814841719302,0,-1148.5162832532044]
[22,4213.9791778592698,0,-1207.8638052348426]
[23,5857.6761071993569,0,223.17972122347425]
[24,2504.0694964579716,0,4066.7168591313448]
[25,3815.4384500770025,0,4394.0880285404892]
[26,6042.1273336029963,0,-448.38820726809388]
[27,7170.9478719300023,0,945.79619024374551]
[28,7634.9935995184824,0,3770.8049065256096]
[29,6415.7145760981912,0,3610.6118088770659]
[30,3195.6999187147367,0,-1437.7422291431301]
[31,4332.938351429847,0,818.56968296472485]
[32,1845.0056342769817,0,650.02181094068794]
[33,4278.008860140264,0,93.610937654372677]
[34,3994.956824681793,0,380.19691231375219]
[35,655.09935810038405,0,-165.17827885944951]
[36,2362.9824057822525,0,3677.5944215623085]
[37,4881.1013385933848,0,-2361.6608714770027]
[38,6894.3915621745018,0,1411.9727287619417]
[39,1091.3996295882393,0,621.05892566577973]
[40,8113.9917019582854,0,-1416.4057434785639]
[41,787.81674353006861,0,176.73033991859566]
[42,4641.1464792356792,0,544.76406335761487]
[43,6880.1486488602341,0,-2866.3486626526897]
[44,5463.6213163728844,0,-8068.646808657345]
[45,2518.0275443257333,0,-89.802387392861732]
[46,7701.0998444209017,0,-9417.721261777433]
[47,4212.1069113538524,0,4.8512526784597805]
[48,10070.446240198156,0,2679.2021769141838]
[49,1985.613603579309,0,-188.9139529713913]
[50,7075.1381742086305,0,-474.24566858204787]
[51,6227.4738292859165,0,47.565303278146843]
[52,1106.0570094071059,0,785.97175500727656]
[53,1549.3166398684473,0,-74.237352881463607]
[54,6782.0146810613642,0,-90.764096326972748]
[55,6307.6880355030698,0,-7554.3540820076187]
[56,7155.6176042940488,0,2188.8498765386976]
[57,1029.7069736526071,0,-1125.9051687773044]
[58,12378.37396538855,0,-1297.2574610994625]
[59,2422.8611288724865,0,-5396.5090456893031]
[60,2954.4300062793177,0,3087.1678911194458]
[61,6183.7374510307627,0,2788.4375448131655]
[62,6464.3066604643445,0,2648.8609387805636]
[63,2562.364300324979,0,103.69902701726423]
[64,4168.3397308007225,0,-2732.9083845761888]
[65,2051.1742925352914,0,242.91287125698949]
[66,7449.1457961751812,0,-6021.6886972204848]
[67,6952.4948714666807,0,1811.9883084576459]
[68,4414.7332756410742,0,1931.0230570578387]
[69,3527.2977444595381,0,1320.6254223991866]
[70,2154.4916888834973,0,-1311.8265464640801]
[71,4537.5310405139917,0,3397.7398834330943]
[72,5714.7145021680453,0,4486.50846706005]
[73,7910.7238646548794,0,1491.8397542606103]
[74,9396.4537703399928,0,-866.95323777035412]
[75,2717.4004266658212,0,6510.0752644882323]
[76,2562.7157572806118,0,-6473.0126406535155]
[77,5435.0681899654255,0,2461.1233587215811]
[78,7289.5935178796535,0,-1393.4207749360564]
[79,7508.1809330711149,0,-211.9380237384334]
[80,-242.47334507751896,0,-4769.4957198953125]
[81,4900.3830598716349,0,250.22785556747775]
[82,2454.4711109409277,0,-2644.010991223427]
[83,8653.2302629511523,0,4359.4595695237331]
[84,6525.3365411792847,0,519.18072803979646]
[85,5748.1249562795374,0,-10.396003135904744]
[86,4891.9525182126781,0,-8935.8971605046463]
[87,3538.6450693566835,0,286.16171261687379]
[88,-260.69602534354374,0,-605.50995576817525]
[89,4670.3698538066201,0,2747.6442005038016]
[90,7276.0049637826687,0,1391.9923601475468]
[91,3691.9948632909573,0,210.11518702436692]
[92,4986.6591671362803,0,6596.2737434434785]
[93,7740.7581625462644,0,489.17423699817374]
[94,5920.8892698679811,0,-646.58707135454631]
[95,2957.834683019807,0,-21.950641899201774]
[96,7827.3787979644676,0,2436.7915288285044]
[97,5441.2306241401384,0,-1436.5525568828198]
[98,1777.2898887254264,0,-4123.1702093429803]
[99,5698.0217896667818,0,2079.6542130656044]
[100,7098.9119639423188,0,-3968.1304860551686]
[101,698.26748861127862,0,-6.8802693044408985]
[102,1480.3314913809572,0,-53.030061349171199]
[103,3430.7089352208986,0,552.99745557509198]
[104,7120.809579169103,0,34.844895639946465]
[105,1132.5561116887,0,-4089.1272314114799]
[106,5262.4070248761063,0,1264.2999290128093]
[107,5425.1031163201005,0,5470.8815419862567]
[108,6399.141663787821,0,113.89641214311186]
[109,3575.1019496001181,0,-2635.4890570899729]
[110,4132.1415359179609,0,5293.1780019096132]
[111,4846.0718579146269,0,1078.3044323366576]
[112,9173.5447887432911,0,-3053.7580698843653]
[113,6220.3836501522137,0,-6623.5342022659861]
[114,4531.9167306165982,0,-1022.6944750017303]
[115,1547.2237335938039,0,-958.68878161458122]
[116,3721.176125465106,0,47.624310183301667]
[117,2497.5794319353968,0,738.52454231135823]
[118,5619.4795642816252,0,-360.50217608565839]
[119,7880.6817072170033,0,-10.094546978137465]
[120,4441.0201677265522,0,-1204.1615841113164]
[121,6143.4198175685706,0,1603.3309365081273]
[122,4762.3065502097088,0,1504.2022889935033]
[123,4094.2200255985726,0,-193.4934346428563]
[124,6923.6691297602529,0,216.04539983537052]
[125,5274.8972095799418,0,-2311.4425566011055]
[126,7402.8688704366659,0,-10120.833469380785]
[127,9245.3484307615836,0,-9915.6449028909465]
[128,5865.2978464707539,0,-854.29285975080495]
[129,6532.9406192470478,0,-571.91303526782622]
[130,3069.6376870234753,0,-127.76615060354348]
[131,4569.1686981329822,0,151.58583393455964]
[132,2602.9533731391043,0,-602.64097488166499]
[133,2255.9701191242475,0,1416.794212383174]
[134,6693.2348210350929,0,707.37423385066256]
[135,4715.2587911552137,0,1198.2718080017967]
[136,4166.5692461440331,0,1249.3702009847659]
[137,4862.5318970346098,0,667.14008085353669]
[138,-420.2871220420829,0,-476.25986430937911]
[139,7167.3915018642529,0,75.067188917956159]
[140,7655.6894315533991,0,-1548.5249884626919]
[141,946.97538691054854,0,-7136.0485676028302]
[142,5958.6544543922928,0,1285.1922681791027]
[143,7257.1169532502008,0,-2549.8087266698294]
[144,3222.1907890593266,0,-2004.5865607742185]
[145,3176.3417794946663,0,-881.46903789401733]
[146,4387.6126032502625,0,-1548.0853908188799]
[147,5612.9472615010445,0,662.57727880562663]
[148,6724.3391309799617,0,4319.6353998648246]
[149,6699.2699528375324,0,3395.2310451439816]
[150,-623.88375135994329,0,2759.5210493130917]
[151,3810.9101045442444,0,457.87459929165669]
[152,4174.1750086797974,0,-78.252293209444801]
[153,3091.3827964578786,0,537.6141074304345]
[154,4729.2752949280575,0,393.53261316741509]
[155,4039.809562205653,0,1895.1745370907031]
[156,2100.012358961209,0,-6518.8107479734826]
[157,6960.3157549819098,0,3462.4852118757699]
[158,6807.5260973540489,0,361.13139516382546]
[159,6228.9667097351576,0,4402.2675640726575]
[160,1063.3784035509252,0,-1787.1120296191568]
[161,4202.2205324894858,0,-534.17927836976673]
[162,5745.9666501003576,0,2676.3353520084074]
[163,3375.3016183255295,0,36.879588950688266]
[164,6190.127762441025,0,-342.60071152949098]
[165,4346.4488459615877,0,-373.30893805661725]
[166,4676.4079161901127,0,-1571.0320470087684]
[167,5596.2363105001568,0,108.68141975266111]
[168,785.93267286311345,0,2417.7286414424375]
[169,7837.0777839299972,0,-4901.8699466101216]
[170,4059.814849085983,0,61.58340861420664]
[171,1914.6421042271959,0,-8280.9859792737734]
[172,3219.5382757783796,0,-1687.0610955989212]
[173,4891.2318613302423,0,-274.13506333612838]
[174,3114.139195779353,0,-271.5495295094737]
[175,3425.6041065524569,0,5321.3226909129617]
[176,6775.154110755544,0,280.0289685157731]
[177,4464.9356933955005,0,-433.26717359943257]
[178,3788.4099963355279,0,549.4345329711947]
[179,3786.638163553589,0,721.32501542697401]
[180,2573.982035440531,0,-7202.6984782357422]
[181,4764.4361806894231,0,2153.3989927008874]
[182,738.76960699623328,0,87.996031214171239]
[183,-258.90369350351898,0,-124.83835107855978]
[184,-1176.1169960890645,0,23.78000834894608]
[185,3912.563732946543,0,2427.783957955251]
[186,7297.8818252341425,0,3085.343733515052]
[187,5645.7832685574285,0,-1176.9187619396782]
[188,5227.975807453975,0,1052.4081815172485]
[189,2301.6917650517385,0,-808.97343652383461]
[190,4328.0720362956126,0,2898.6044900948191]
[191,3754.3401573358283,0,-105.68808145693222]
[192,-883.46098036091973,0,2898.8534016796584]
[193,5625.0023371045654,0,2943.168137486522]
[194,2620.0362876872373,0,641.56810355084122]
[195,5388.7576548541383,0,223.77622699052341]
[196,5595.9279234334417,0,-1374.2709354885264]
[197,6777.0655106215345,0,5925.8477955387189]
[198,3225.2803040598201,0,-2294.14431488931]
[199,4756.5537051746542,0,-1587.655339840989]
[200,5601.3590210625644,0,-4.4465030043388269]
[201,215.056777614716,0,-769.71266378992652]
[202,5589.4549803049595,0,-1674.2489693213529]
[203,2935.7500397850995,0,-7859.3043627738271]
[204,4741.4715916758505,0,1420.4261974558708]
[205,4549.3917544713977,0,909.61191559346457]
[206,9245.2980149063187,0,-638.169648871449]
[207,2085.004891662004,0,-682.18225497314609]
[208,2271.4139124882131,0,-20.655235051771974]
[209,3671.7646203157838,0,992.60767350068932]
[210,2882.2793898535792,0,-303.60637953499423]
[211,6048.1414334163228,0,4294.6955974208549]
[212,8797.8318108435924,0,3886.39088359071]
[213,6631.340539657599,0,3047.9995726591037]
[214,4062.196058743179,0,-1732.665053592596]
[215,4210.1456487214637,0,-153.66627571759801]
[216,7889.5792283586552,0,325.5377762035593]
[217,3441.8318694004392,0,319.46160782241151]
[218,3027.9606833936987,0,587.48533440719643]
[219,2118.8562994096706,0,2722.5396857519681]
[220,1553.1930400777633,0,3905.7969697502049]
[221,4237.7344629202471,0,3610.64904867328]
[222,8832.3678943600517,0,5118.3882186017909]
[223,510.7823995675771,0,-5875.8749107745452]
[224,7026.3588477068552,0,-5765.1867022380156]
[225,3571.2690012912681,0,3252.7210751146854]
[226,5277.3274720809659,0,-495.89041218691199]
[227,2089.6846475075763,0,-6831.3459602881831]
[228,3247.4876665732954,0,-915.24770863776507]
[229,937.21822959714962,0,994.50256787352419]
[230,8213.8164356622547,0,2742.046320793138]
[231,8757.5992346227868,0,-1536.2266116777309]
[232,4700.7723301618807,0,2614.5000974711238]
[233,3151.812760623905,0,1264.2591333810585]
[234,-941.97350459871529,0,1562.6651744907197]
[235,5764.4760936381863,0,1114.2344303389937]
[236,1128.7642719278517,0,912.61754873234679]
[237,3571.3453857040131,0,37.78497012266466]
[238,1221.0962204836412,0,8155.2016292376848]
[239,2563.1735121440011,0,-3925.4136699094288]
[240,6090.8175695865993,0,329.82469737842064]
[241,4239.7577722806709,0,-3602.3860416159073]
[242,8770.4366892970447,0,-962.73284239518887]
[243,6654.226761371594,0,-663.62772460902693]
[244,7031.5860045417876,0,6890.947656671904]
[245,6994.6409879753755,0,1236.1200845773024]
[246,8368.4737116826218,0,-2774.6894431899641]
[247,4558.1824607524932,0,1080.8626472854767]
[248,6699.6701521368113,0,187.72928753688677]
[249,425.10598909891007,0,-2865.4922669084162]
[250,1183.0215233090491,0,3216.8680670628919]
[251,6625.1931418458462,0,2044.3158540512827]
[252,6372.8428972618703,0,3640.5318824578239]
[253,5568.570985002365,0,1378.9244740282816]
[254,2930.7706622069863,0,1441.5637184260913]
[255,2324.3181973165656,0,590.78375651516535]
[256,5853.6984426232575,0,814.0496648142921]
[257,3348.8805804981348,0,2677.1973643745041]
[258,4866.5220783889363,0,437.90906664487943]
[259,5396.4083152703579,0,1736.6644911613198]
[260,4682.4633980946855,0,-951.7286335285047]
[261,3451.64914192887,0,-53.015342656576955]
[262,-595.09221693519294,0,-2190.9543584149792]
[263,5759.0885752504482,0,6549.8595569715226]
[264,7685.2381437764252,0,2646.5189160945929]
[265,4862.4765421891316,0,1237.5554571268453]
[266,-549.86071343341314,0,2919.1396906506679]
[267,-555.23448249306614,0,-2038.1483749436227]
[268,3034.4574001768715,0,-509.76791604110736]
[269,5605.7566254888934,0,643.85487812756003]
[270,7418.2027160176276,0,797.45187502297119]
[271,3067.7711719411113,0,-1652.9828281827292]
[272,5995.4962574768224,0,1039.900672319772]
[273,5536.6067537707186,0,2916.1163456425857]
[274,3028.2712981681798,0,1802.1426005640205]
[275,-932.31857886352839,0,3420.0583359650382]
[276,5779.1943291001899,0,210.46352186755468]
[277,5014.3713905249042,0,269.5802369572541]
[278,3673.1362036914988,0,836.33898937245613]
[279,5307.4609849849166,0,-431.13991293866354]
[280,2526.8912439477062,0,1750.0193692121713]
[281,5975.6592032369799,0,104.46357001589446]
[282,5029.9437649762622,0,4984.8629517080644]
[283,4673.395195611618,0,-757.84665627114168]
[284,6659.1699086044991,0,-4321.4121892763187]
[285,3320.2391555303702,0,4470.0064433862726]
[286,9230.9884884444291,0,-1420.1942847818241]
[287,2277.1464675147927,0,-190.31792984474043]
[288,3970.879048053167,0,-173.29988618388032]
[289,6664.9565723262276,0,-38.799078450421646]
[290,3760.7382778947863,0,433.96235261865542]
[291,1665.3736073631269,0,2582.3410078497027]
[292,3830.0518001819892,0,1641.3476623396507]
[293,4398.5293371870821,0,-105.1940235672854]
[294,3718.0903089090898,0,44.535921863022381]
[295,5479.1618100694113,0,-853.92392886938319]
[296,5992.6806557325126,0,-937.18790736429207]
[297,1971.2962049398132,0,586.27730644490862]
[298,7137.6955241799978,0,3876.569341741988]
[299,7728.2069848417477,0,-139.23175829583107]
[300,6152.1125794708914,0,2412.6990053344452]
[301,7931.7847592072749,0,-1471.074009340201]
[302,8648.2590903925557,0,2262.9870192146323]
[303,4725.0529265533351,0,-1487.6498347118411]
[304,5838.2234412337421,0,6.1717462815106403]
[305,4437.9329847542685,0,-2837.448029890093]
[306,3578.5207874192197,0,1229.0989946809675]
[307,3082.4043918476373,0,535.63915759092276]
[308,5441.620931999948,0,-9589.8490671310046]
[309,8863.5588470494531,0,2538.9874725933428]
[310,10352.241452134025,0,1106.6379240686329]
[311,8686.9140354511346,0,-438.4619109613364]
[312,2787.3768413972307,0,-563.8229013151639]
[313,3049.0504726290956,0,2970.1207389695255]
[314,3004.3171676897555,0,-406.09881345736278]
[315,3268.3450034109005,0,-329.78659276919865]
[316,5043.4083192048392,0,-329.48137060909943]
[317,556.58716054476622,0,258.86095441789587]
[318,2856.9088850210501,0,740.53345530635113]
[319,2387.9337067247102,0,2506.1931936091164]
[320,3294.2916442788091,0,767.77990739238885]
[321,4841.4318115798587,0,-2463.9630464291918]
[322,4124.0318073019589,0,244.92097606134357]
[323,3098.7062112987533,0,95.360047927066546]
[324,9151.2396120033682,0,5089.048612460304]
[325,6921.8466373660285,0,519.36253967064499]
[326,4034.866929265746,0,1653.7778450018238]
[327,3744.4300738000939,0,3619.4822266757274]
[328,-251.18702799466894,0,1744.1167050847471]
[329,4538.7926975938817,0,3099.2709843142457]
[330,5059.7561457411784,0,1312.6051407228256]
[331,4389.9939374680844,0,-673.39627994650596]
[332,8051.492349011136,0,16.770630362417787]
[333,4468.0174889197115,0,-1549.1616299077248]
[334,3792.1347380059606,0,3462.7393743642597]
[335,1728.098432122616,0,7792.6850329190038]
[336,2702.0107176243173,0,-35.370383422836674]
[337,5951.9721752835267,0,-1278.5140640787456]
[338,4417.47382673027,0,2822.8372839911781]
[339,5967.0642464124221,0,7309.4565899806139]
[340,813.69308676802075,0,-5004.6256976840441]
[341,3031.7608095862665,0,-75.565807754352662]
[342,3250.3226927502487,0,-1915.6730550413645]
[343,3088.2134636624733,0,-1095.5541155478322]
[344,3438.3689271194239,0,-239.48498143092885]
[345,5056.2631951574231,0,-1131.3025716918939]
[346,5423.336324225821,0,-1512.1562058892594]
[347,2274.2328799601987,0,138.39600102928932]
[348,3179.4094361332886,0,1270.4285508309683]
[349,4505.3571470205534,0,-3303.6506170674857]
[350,6751.3063377969092,0,2558.0295323552918]
[351,5565.6863448968625,0,662.05730582736112]
[352,6934.3915557699102,0,691.95071217325028]
[353,5042.6740866331766,0,982.47653744353784]
[354,4516.3116376200378,0,653.07868554909101]
[355,7887.3035743390928,0,-30.041437364180869]
[356,3673.6235051817007,0,-10.893721584089723]
[357,5616.2378155392798,0,-182.384131154372]
[358,2517.8518765238923,0,575.66899730666239]
[359,1917.4067780931068,0,615.3236440234848]
[360,3667.694864861669,0,6664.8559653205939]
[361,6010.2326008548844,0,-3830.1934896532125]
[362,4087.2885832699212,0,-2574.3826705266629]
[363,5716.1208791985518,0,196.64586049797302]
[364,2490.9216235980375,0,2756.5854775549774]
[365,2505.6957243376614,0,-6748.4257596754678]
[366,2117.2953900777065,0,662.45018560761491]
[367,3377.0301085207047,0,2719.3544851859001]
[368,-464.7053946074127,0,109.12879415845292]
[369,309.90357808113373,0,-220.70407907742481]
[370,2595.7438729464857,0,5519.4185038310661]
[371,-1003.5992188528122,0,2350.2915181199496]
[372,6937.899968790276,0,-3627.4937480151825]
[373,-3415.570840097163,0,-2758.9941563257648]
[374,3320.0612398812841,0,836.87057854462557]
[375,7707.9119766152016,0,-3126.8383250736215]
[376,5525.5881424835607,0,2476.348821842319]
[377,1499.5585052364083,0,-4542.4610229659447]
[378,6083.69839829579,0,-4720.713730453791]
[379,3668.962271300049,0,-897.98192172142421]
[380,6823.6395416486648,0,57.50011484005659]
[381,9821.3788443627927,0,-2080.7939962343885]
[382,7422.8995782390693,0,3920.8766548814651]
[383,4346.4840256763637,0,2933.3033222945423]
[384,4159.1931701300055,0,-15.585249295303466]
[385,3408.9028268609163,0,465.7211543163184]
[386,1811.296347184599,0,-810.42624850222808]
[387,2404.6826119949733,0,629.80775025459923]
[388,3749.0328981001053,0,590.57859920094802]
[389,3554.0214136490381,0,2545.9752325945096]
[390,2570.0069870124089,0,-15.68661933054932]
[391,4515.6836503079976,0,-6546.2905100697581]
[392,12079.800831083994,0,-5952.6537974231587]
[393,3008.8886837871455,0,217.84974445954924]
[394,1293.2114701267406,0,-25.360391325654955]
[395,4334.9564791779358,0,-1962.7671437292877]
[396,6349.4723892644979,0,1502.40867750403]
[397,3794.437199407882,0,-883.21581946601873]
[398,6743.387218321056,0,-2055.9800873218842]
[399,5337.9990305781494,0,50.229095077078071]
[400,3868.6849876696115,0,-782.80870430582377]
[401,2329.6123965609122,0,768.11965312978668]
[402,10035.841719974269,0,-3657.1539468067035]
[403,5967.16848993649,0,-7269.8742688111752]
[404,8399.4513590689185,0,-158.63883601038484]
[405,4062.5127514640244,0,3475.1970979415382]
[406,5220.9413662563056,0,547.39486184426551]
[407,800.46463342011532,0,1679.0984367499134]
[408,4286.1261197611129,0,2290.3103432645321]
[409,4857.2100581189588,0,4316.9677350956226]
[410,1674.041287889474,0,-1145.2560021781503]
[411,4481.854332021413,0,-193.67186310497576]
[412,6036.8585531055833,0,2088.8982904382819]
[413,1640.0897040462651,0,293.723509298203]
[414,4679.5428356938,0,3365.8372923312709]
[415,5170.0754938734071,0,-1250.7527482765345]
[416,2366.4888193156321,0,-698.32710866767138]
[417,5986.199931599187,0,1827.7750418076448]
[418,5362.4729439440771,0,-875.60902611059009]
[419,7424.9180801583698,0,579.35628361992872]
[420,6171.9880910413985,0,431.50388258764792]
[421,7811.4773852318658,0,2201.2473325709375]
[422,7197.8516470422092,0,-2157.5473985461717]
[423,3209.6544995195218,0,805.83835254883547]
[424,3755.5135359469277,0,2664.8777186969573]
[425,9277.1373849962984,0,918.0876574141223]
[426,1687.6610411521278,0,-664.52549483556595]
[427,6293.7496312857411,0,963.99358966807222]
[428,6852.1096550096281,0,-9241.8042108731606]
[429,526.52893172346853,0,147.96763128232985]
[430,2519.526972695443,0,-686.22137538759785]
[431,4317.8229687256598,0,430.17415660283461]
[432,5882.2888927486538,0,-220.63964748609126]
[433,2441.4251745012739,0,-1838.8668742271009]
[434,3005.9928620474466,0,-4705.972615806415]
[435,8490.6248345505464,0,-7845.8552684516981]
[436,5328.8079795178783,0,3115.8608878319947]
[437,5888.5651783298908,0,2202.8044028508539]
[438,3664.8115465221304,0,3713.8111643320517]
[439,6785.4098820953213,0,6317.53695947901]
[440,6420.1541100937975,0,-963.12966596938429]
[441,9214.6160012285181,0,2419.2699383406152]
[442,2963.2511101278851,0,916.73737713736818]
[443,2602.0307833033075,0,270.20954555330542]
[444,8210.4186549159276,0,4579.9929187466578]
[445,4557.9193037258956,0,1399.0317383127913]
[446,6609.0520527497356,0,539.78676791757414]
[447,8584.7730352812614,0,506.34005685198514]
[448,-612.18811639178273,0,1865.9925208784111]
[449,3543.7744997924319,0,16.957509032279511]
[450,1097.7630232168581,0,991.01418806299876]
[451,9193.3247930445832,0,-2550.8078897959895]
[452,7739.1077455339855,0,462.26041869186957]
[453,5144.041481202612,0,863.65552440572355]
[454,-1360.460032128027,0,1973.9688067211264]
[455,6818.4733157163355,0,4660.262157878713]
[456,4260.265428052573,0,1084.032058728764]
[457,3118.1207487757561,0,-7921.6437871597418]
[458,1162.5109716094476,0,467.80549027572857]
[459,4457.3688075895534,0,-2107.9755311354297]
[460,6751.7848334402033,0,126.47495513479825]
[461,2465.6948265528886,0,712.75133275953874]
[462,5479.8780158023164,0,-663.15727278171187]
[463,7984.957442594543,0,337.12794441578961]
[464,350.79741795224356,0,-81.214184123912617]
[465,3618.9968893965347,0,1358.9432793811875]
[466,7144.4120456907622,0,961.3042997613469]
[467,6119.6373327445144,0,1975.0556322017953]
[468,3692.0581663194689,0,-839.86082764959167]
[469,8944.1172455707401,0,-1057.3354142439421]
[470,6001.2506688155627,0,-1039.2782029478799]
[471,6395.1534836828041,0,2682.990697375576]
[472,6086.5634426687066,0,-2095.8473720436273]
[473,3687.2498475948214,0,-1571.7420291954147]
[474,4454.2894395881003,0,1917.7134193868906]
[475,9264.3617365813407,0,58.351637262272689]
[476,3554.1715432143178,0,-471.89474604954063]
[477,7430.0346439747482,0,2032.9926326014092]
[478,3589.708251253438,0,3021.3820688244186]
[479,4291.0155715558558,0,377.22654887510515]
[480,8140.4798461920973,0,-11.367756566033991]
[481,-1178.6091843745578,0,-588.1895995102393]
[482,3420.4419462517508,0,-3930.9599876379066]
[483,8726.8418259965438,0,3162.2194118880379]
[484,4714.2340655322932,0,1203.160158198174]
[485,1150.3202810721689,0,415.10905251467602]
[486,1763.3761478283452,0,-2907.2136072389412]
[487,3906.5325715846175,0,-1636.5604743422143]
[488,5077.7112389241547,0,697.23725191401422]
[489,3570.1727370123681,0,68.581746531419896]
[490,6483.9144719417091,0,-128.66660808371745]
[491,2150.8087513687528,0,3192.5101096767744]
[492,1179.9462051358651,0,524.79454570431176]
[493,8579.3293712690593,0,-50.761593305834509]
[494,2613.3350596151358,0,1701.9544202793008]
[495,1683.3740440795918,0,-3999.9700947374758]
[496,4651.9796226741037,0,1659.8242421496259]
[497,3479.8902885197585,0,1457.4753030758768]
[498,1372.5767132790329,0,-4095.6399002921848]
[499,5211.9176346549057,0,-732.25043576054816]
[500,6939.3684669036684,0,-965.99866031920078]
[501,6287.4304771377747,0,424.9704003385084]
[502,4158.7832811369362,0,-1237.3810382337263]
[503,3488.800696960142,0,3329.0958887275165]
[504,5644.8377936072175,0,1710.14447121287]
[505,6678.7348373333407,0,-432.15415336387588]
[506,5827.0494002577816,0,1038.0835718995877]
[507,2451.545963200595,0,15.640927944137262]
[508,6795.3471504733379,0,3758.8586139316139]
[509,8316.1042653733475,0,1418.0443436428061]
[510,6008.6645818016204,0,-21.876202566836604]
[511,3147.9569872115981,0,-316.46944487242763]
[512,4663.5300791530517,0,-1761.4469802278404]
[513,4739.0141604701967,0,5486.8675680893575]
[514,1184.3567978540168,0,-548.93070892547803]
[515,4350.0829217845121,0,147.52631461976782]
[516,7387.8725591026414,0,1205.399097879701]
[517,3986.8013698960604,0,495.84089162215309]
[518,4108.5432156524575,0,2990.7362208680479]
[519,7364.1504761850938,0,2803.1438786936751]
[520,2655.8463535339579,0,-2996.1815303879894]
[521,7822.249502897319,0,291.58225612722731]
[522,5668.2822619821973,0,-6870.4522870133469]
[523,521.6470681597998,0,-294.30210017555083]
[524,-584.11240574226804,0,1194.2982384602458]
[525,1505.6442449929207,0,1314.5546433988768]
[526,4665.2092010087154,0,-4230.0205599526789]
[527,5819.2193200581942,0,2111.8730457070469]
[528,4095.9046285408754,0,-798.35723106761372]
[529,1979.0381428458822,0,-1272.2319006183284]
[530,8870.2235326700866,0,-89.411566821627261]
[531,3517.6606755987755,0,2470.912531638372]
[532,5570.7833378830264,0,-1374.8764327527203]
[533,4935.0822216062315,0,22.83971515280124]
[534,7338.7717484061395,0,464.92231512244837]
[535,2289.6110779912628,0,445.78361655633393]
[536,6069.1613510073139,0,-2965.3417128331184]
[537,8500.1647609292922,0,-1425.1542808779552]
[538,1636.7785606798639,0,318.23537875694126]
[539,4303.0564296687098,0,254.95234362956248]
[540,3337.4353630641431,0,-4268.233252713344]
[541,8181.4141832931018,0,-3488.7184804812382]
[542,4700.3942860519346,0,4329.3628085682012]
[543,5091.8344174292815,0,-298.16912415856751]
[544,7278.7552507348555,0,1903.7225142259899]
[545,5884.4457206667275,0,-2118.4417745040851]
[546,3422.4824206884919,0,-9434.6529650537323]
[547,7399.3784218511501,0,-150.86235914253524]
[548,2713.0562159819829,0,-397.08579651706953]
[549,4502.7079029843444,0,-1306.9280837616011]
[550,625.73395008088517,0,122.53822771241194]
[551,6372.1164685829453,0,-875.95157237617832]
[552,6962.6848646438457,0,917.96020324811127]
[553,1646.0918682196716,0,-185.51173876185851]
[554,3304.0977342468113,0,-110.43098645447832]
[555,3875.9692250834787,0,-4007.8181082114738]
[556,7446.5916573715185,0,3748.7449803390132]
[557,4093.040720261276,0,323.71377154558559]
[558,6039.2354002466582,0,-219.96364096523513]
[559,6037.6003225721997,0,3293.0084973838666]
[560,4088.0769290888784,0,4716.5788405516287]
[561,2555.7585387787576,0,3703.5709214155354]
[562,-783.67873834740294,0,-105.35300728819122]
[563,3906.4676405703799,0,-3278.2666611385221]
[564,6236.100822186806,0,737.77744431224244]
[565,5226.6566221378362,0,1432.5194092079478]
[566,3877.0383691130905,0,1620.4527958456299]
[567,7770.8715354878696,0,-79.30929482838917]
[568,4160.5908811762656,0,956.19889795776817]
[569,-316.91312093146115,0,-1400.9178603778585]
[570,4669.2781108431227,0,-1794.4940068707062]
[571,7211.7316187593151,0,773.75271203406146]
[572,5498.5070800091135,0,-992.87155745090865]
[573,4772.226050651715,0,-302.30140077871528]
[574,3748.663049828187,0,-476.45518669869949]
[575,6352.7042067202256,0,4139.2800632960007]
[576,3598.9542283086912,0,-245.29911439552163]
[577,2330.8732208644578,0,1192.9769174959106]
[578,6392.1950508193868,0,1128.1055702167089]
[579,8463.3036737334951,0,-3100.477568453894]
[580,4442.7826149386274,0,-1690.1307144903114]
[581,6216.979280523411,0,3290.0122549206399]
[582,2667.2003527301658,0,-116.7660184512162]
[583,5362.8937188800164,0,-1314.101913460152]
[584,6049.2588863359033,0,-672.21641018976732]
[585,6709.0029037200957,0,2131.3472404473346]
[586,9738.4170305189655,0,521.36324891318554]
[587,5291.2589390089779,0,4150.6642725792535]
[588,3479.9702956858328,0,-505.54407292000485]
[589,5189.807217115499,0,-4059.8187195748624]
[590,5993.9638584855802,0,-3380.5434155580188]
[591,4804.5094816775418,0,-211.43831948762016]
[592,7312.2978101242306,0,147.96513961797498]
[593,160.44886624425516,0,1628.4692434814522]
[594,2389.1702885249106,0,-2846.7023771622503]
[595,5185.493612016412,0,-973.77708228809513]
[596,2227.9029000395399,0,5558.8522248356512]
[597,2551.5213486320026,0,1860.6338788013456]
[598,3828.3808841683594,0,-754.94528126503155]
[599,3163.2176850179653,0,3048.941947913504]
[600,5613.6667227111757,0,-2042.1789462443817]
[601,2713.1106421336913,0,-620.37458891881693]
[602,80.957524470148527,0,-101.25385544900236]
[603,4682.7183304918126,0,755.09110218081355]
[604,4693.0101372150903,0,-6230.1590222186514]
[605,4612.191628517041,0,-7397.0794241760586]
[606,6732.5157138895202,0,1767.7426844662336]
[607,5427.3085852247514,0,970.10797735852589]
[608,5062.4479728492424,0,79.852110782329461]
[609,5448.8176980514827,0,-7777.1271050397772]
[610,1951.6611364673495,0,4227.336514704597]
[611,5874.9924631972217,0,629.94878388652376]
[612,4448.2238472387135,0,-1426.0339279596244]
[613,3398.2063446157827,0,616.80381136186372]
[614,7091.3911070127579,0,-1643.6062395672507]
[615,7177.9622519747163,0,-3150.7419299174653]
[616,4688.3931515550312,0,-23.651667276184099]
[617,4396.2654418523525,0,-5326.6739445863259]
[618,11101.947708656295,0,3480.6007607947658]
[619,2236.5164896376441,0,-131.5516975045164]
[620,6498.9414181189659,0,5319.8418995848033]
[621,9186.0505939204559,0,376.66659057454103]
[622,2906.8073769701937,0,-2386.2757326574692]
[623,2472.1111887543202,0,-946.34034586121197]
[624,6705.2621918403074,0,-841.84609336200197]
[625,4590.3821744533398,0,462.32615259309728]
[626,3632.9269190540654,0,-639.76310238871258]
[627,5774.0070715240936,0,-54.427030691040734]
[628,7866.5343165966879,0,-3980.8653735119487]
[629,2548.5754917741788,0,2372.6093652280742]
[630,5576.642922773206,0,1779.9424738397568]
[631,8202.4950882691501,0,-2115.6924653482533]
[632,4043.7815454176734,0,-14.065057976063958]
[633,4918.0602673545209,0,-30.497473672692855]
[634,1368.3471986537988,0,1754.9002613180787]
[635,8089.3304765989715,0,-2459.3918242795735]
[636,6535.8655130605257,0,-1770.1533970125702]
[637,4988.2960424835455,0,-330.7031865534006]
[638,6506.9948587883564,0,1577.9980010073959]
[639,4302.4372964859513,0,3450.6091060791327]
[640,5072.8798443900068,0,949.63432796613824]
[641,2775.7579286184537,0,-306.5625697276119]
[642,7191.9577326230446,0,5814.1903484021441]
[643,2248.5086537397406,0,-88.00087027534461]
[644,4387.8589468747678,0,3908.1881119639247]
[645,7062.6168873055822,0,-3075.2895075360211]
[646,-331.08768714770281,0,-5856.421929700261]
[647,4892.3777344045056,0,-1633.5297170140216]
[648,5741.8997663246919,0,-1608.468523031471]
[649,5705.7932999574705,0,-116.77994346008911]
[650,2729.3651318623179,0,3632.1897632553691]
[651,2485.1375903488733,0,1656.2889902394784]
[652,4982.0642437378337,0,-3294.1676701798883]
[653,1832.6502292621451,0,487.90212237207703]
[654,3947.7360347242243,0,-686.46626713255796]
[655,5015.5096093340999,0,-566.9041510951979]
[656,6338.9919385981448,0,2705.2511706261394]
[657,2254.7600571707353,0,2105.0423485702049]
[658,9455.0709264707566,0,-1178.208535405219]
[659,2872.4437246419575,0,-119.6990759236562]
[660,4242.0310725271247,0,117.63944487086589]
[661,5767.1640956350939,0,-2199.7798425796441]
[662,2074.9314990316561,0,1997.2450302154207]
[663,6230.6188935020828,0,2296.5071046362805]
[664,-247.59302299538749,0,2468.2089813781326]
[665,4263.6819561212342,0,2440.2597360899563]
[666,3822.1091291067996,0,446.9399534406557]
[667,8075.7343479110514,0,1475.9178460005719]
[668,3599.9814081501136,0,1687.6101781830148]
[669,3744.963926310952,0,-2.139478982092089]
[670,5781.9711808692464,0,-924.08871352672918]
[671,5545.2853266493148,0,-879.22755976465294]
[672,4563.565670699385,0,1170.3259638612578]
[673,3191.5493657881325,0,-4487.0757936562832]
[674,4411.4611010828849,0,-1061.874238661999]
[675,7455.7353855723113,0,-1230.6855330019887]
[676,6805.2029005050863,0,391.02730530006608]
[677,5389.4070821618452,0,2917.5606295722714]
[678,7891.2087427819106,0,126.12853352989664]
[679,3234.8001103474226,0,3719.5230496100448]
[680,7096.5589214733354,0,-2083.9693718280064]
[681,5383.1594948934089,0,-1065.3105137300236]
[682,3892.5058593412678,0,1837.0018569877921]
[683,1792.0000443076678,0,-1388.3259216402466]
[684,6897.4227321898234,0,-239.41865845919361]
[685,2109.9380218845172,0,-5617.4829047708972]
[686,-2446.5520694160223,0,1796.3011489858568]
[687,2860.3284280669523,0,1339.4369979831315]
[688,5496.4736426220679,0,-1855.7729646436942]
[689,2637.6355188226944,0,-1991.3016254160818]
[690,3354.6650940210557,0,-21.082450676188571]
[691,5124.9390425428846,0,354.1919069812464]
[692,7777.6583617246743,0,-596.8808850572542]
[693,3793.9341064032624,0,2902.6869658015958]
[694,5860.2353918490026,0,1195.1272615206021]
[695,8308.6600472421906,0,-2087.9275936380473]
[696,5007.2469702546232,0,1497.8436475607245]
[697,2622.2594181945597,0,2020.7199416401643]
[698,8150.3360385657788,0,-5162.4870693367811]
[699,-382.64642178881456,0,393.57766826784683]
[700,237.38547894755266,0,-2205.7806497507099]
[701,3790.9458061583682,0,1708.3496639330244]
[702,2213.2054101075973,0,844.08838970048816]
[703,4035.1970678087146,0,-4794.2176702070683]
[704,3138.1957277186684,0,1837.322764031215]
[705,7738.719918835558,0,1803.7108390540827]
[706,7831.7473515307101,0,1124.9972978662956]
[707,4568.7920772069847,0,-7357.992578755101]
[708,5248.2041828931797,0,-874.59181118256629]
[709,196.17762890206953,0,-8286.2147824556032]
[710,6662.9241096128135,0,3081.2099722702674]
[711,8087.8048044724692,0,2583.8167575484849]
[712,7482.8462311812345,0,1647.0450964191682]
[713,7234.4333220896142,0,-6208.6401274201835]
[714,5196.4466636203088,0,2959.9342996401178]
[715,1883.7727634543835,0,304.52500818928667]
[716,6978.628428960973,0,-1114.6500488978993]
[717,2571.7360742382302,0,-2568.6833395032168]
[718,1234.5997066964349,0,1506.5001500316534]
[719,4218.9105185845128,0,2468.2365246814547]
[720,5500.8678871915236,0,-5918.8699726175137]
[721,5531.6942558662313,0,-1635.179061197673]
[722,2289.0478118148103,0,-3932.7899587361612]
[723,6082.4198386025564,0,2143.1385086502596]
[724,5369.7503520236232,0,2714.7091516047458]
[725,3474.7866216826715,0,2383.5032176278064]
[726,4266.2313933787082,0,2248.3682103994906]
[727,5571.2116042275411,0,2072.2981870562417]
[728,5878.8291374435648,0,-91.878694692749676]
[729,3890.5483473326872,0,981.03999646750162]
[730,5055.7686649636889,0,6375.6465567827372]
[731,5054.7334980058104,0,-3542.3416892589362]
[732,-1264.9388003501572,0,5583.3718290757943]
[733,8252.6792029493045,0,2369.002449826618]
[734,6230.3177256655199,0,3438.6939721459667]
[735,1003.0138821354535,0,8121.1239667846712]
[736,3826.6804427821635,0,-16.236160043340711]
[737,8852.1783216034073,0,1404.5331412324767]
[738,3056.6660235010268,0,1904.1037751874983]
[739,2786.3638718840657,0,496.12519732523151]
[740,6410.9246374341847,0,1972.3962606739865]
[741,7725.6588814311845,0,3015.0427437052472]
[742,1329.210799490382,0,-1844.9771903971487]
[743,971.28018763426519,0,2358.1508606122256]
[744,945.19973319357234,0,-5364.850757495512]
[745,8686.9756952376465,0,2577.3673449097209]
[746,4118.9794077416109,0,652.20591938417829]
[747,5755.1875777690848,0,2340.6626760442268]
[748,555.2819358916629,0,505.27349640996886]
[749,-2.6947698490700822,0,-584.56121822063051]
[750,3501.0704514840822,0,-5817.5482829270059]
[751,9877.4921562768977,0,-826.40468651243623]
[752,3504.9848449900001,0,422.92347379041871]
[753,6251.3287452846398,0,322.31771596549589]
[754,4062.3135337048366,0,-2654.9830894168181]
[755,7508.1590506403481,0,1403.7226270509163]
[756,-1905.4525893681603,0,-451.98830637232942]
[757,-1483.0856879782407,0,2617.3116760077082]
[758,3567.939963735399,0,1287.6310279995191]
[759,8553.8563757856518,0,3457.3651294623123]
[760,424.17028298313051,0,-2179.4791894621385]
[761,6211.1499910969542,0,-6036.2180926498322]
[762,2944.4425712769475,0,499.46458159462685]
[763,3032.8958849625838,0,-672.44759889030922]
[764,4964.5688518712468,0,7747.3903585479638]
[765,7314.8737797653257,0,7448.8437629204254]
[766,6048.284946615714,0,15.02158163212917]
[767,3754.2342387461867,0,-1645.6456355055334]
[768,10097.223228322338,0,2595.7690924453127]
[769,6634.8251730534903,0,2610.9706098911511]
[770,8162.9688667522605,0,-2858.1787674202064]
[771,7070.246015979923,0,-353.22783372989937]
[772,4636.1634495736016,0,5814.2652310864814]
[773,5948.4003781984375,0,-2640.1806772125983]
[774,2704.6543877252016,0,1811.7058995855618]
[775,6287.6464893639513,0,-1643.9154681429793]
[776,4689.2293108780077,0,-366.67386214631171]
[777,2565.0892193018194,0,-1145.1702577147767]
[778,776.26141620770886,0,640.24039797066951]
[779,4834.1368375218453,0,285.57976362899296]
[780,4671.4494979326682,0,-904.90077281788444]
[781,3590.4687476907511,0,-683.54483946238588]
[782,3285.447488316916,0,-1421.2636998270482]
[783,2204.8473427019894,0,3110.4050388627402]
[784,-257.5149074606062,0,-1658.2141572730884]
[785,5003.8515972978648,0,-125.0010230839741]
[786,39.339944634878179,0,2094.4477595710878]
[787,6972.2738844345358,0,-418.24058736465668]
[788,6938.8130500057796,0,190.49319494212526]
[789,4203.1182971949756,0,-42.661659306971686]
[790,4381.6581043877013,0,4513.9668328237403]
[791,3371.9034794305162,0,927.55205138430085]
[792,4923.4367209884103,0,1090.9201086175231]
[793,2264.4460023200295,0,2349.4577662024512]
[794,1135.0192731749651,0,-4411.601743726148]
[795,111.83263288435698,0,-1043.9496396102327]
[796,6498.2220189987438,0,-1853.312086341545]
[797,2526.4671221601993,0,1197.0917953765374]
[798,5511.0178658942386,0,-275.03488077857889]
[799,1232.6996628404818,0,2456.504730946479]
[800,3030.4027174609319,0,-1742.4635765799385]
[801,9741.5791217340957,0,434.28251994432918]
[802,4422.9587900407769,0,-3961.1510870684515]
[803,6002.4007069514755,0,-2077.5711037157234]
[804,6809.154645282435,0,-5511.3320628257561]
[805,4141.2401322603146,0,1309.2886704123048]
[806,-607.64020823356714,0,-443.18053286569221]
[807,1376.2159050648577,0,2335.8587447634995]
[808,5049.7443670524408,0,3103.8007876304664]
[809,4301.9911767628109,0,777.5953581253541]
[810,3736.9753798799975,0,-1019.9842970239074]
[811,2190.2911447854581,0,-5013.3560835290446]
[812,4640.250489574204,0,-138.09320742923987]
[813,5745.9300105580887,0,-8052.5340666089396]
[814,9650.1207827970356,0,-2245.1553175535746]
[815,9771.5703993282714,0,-10.752083757037822]
[816,4237.9609897517721,0,3123.0619172463621]
[817,5575.486337872946,0,228.7649073232709]
[818,3433.5923673326806,0,-531.61186533973512]
[819,8296.3195248749471,0,-3490.4907252009216]
[820,6493.8024935260837,0,-2629.6997569954374]
[821,7378.2643458639732,0,2780.9713476855177]
[822,8037.9422097854822,0,223.51195345925018]
[823,4816.3581476898325,0,-4330.0152275091541]
[824,5445.8311829799495,0,127.22653435290019]
[825,8993.2872615069646,0,-33.416370777716558]
[826,5143.8056262080481,0,173.03736728112025]
[827,6538.4193306506631,0,-1806.299905759281]
[828,-472.52283603919483,0,2245.6919327099181]
[829,3508.7284860299769,0,1623.4719560892499]
[830,5737.6065034274816,0,2178.3988131254778]
[831,3144.6961271100154,0,979.66434671175102]
[832,5376.8235875727132,0,-3789.811791497089]
[833,915.98981055978629,0,-126.85173769452631]
[834,7207.2495703259065,0,-4429.5419627703241]
[835,2893.254508073418,0,-511.00323216716839]
[836,3980.2095129495151,0,-2224.0457808897831]
[837,2867.7151396972554,0,-506.04381229976565]
[838,3726.7209658502243,0,-1788.0527784431979]
[839,4289.2456604451718,0,-1302.295216911954]
[840,1692.2508423841473,0,-81.929447480028671]
[841,7664.1289081478062,0,3059.6068866850501]
[842,5125.9433372383892,0,3564.0493252411843]
[843,6870.8770881415994,0,-1439.8310579155336]
[844,6866.4024130601392,0,2454.5669376469068]
[845,2797.9143444335805,0,-3396.4127768660665]
[846,6430.1711346305874,0,-4319.6890836708808]
[847,6367.7721508610121,0,-6442.5266140009671]
[848,5746.2915382909287,0,-1541.2096169058498]
[849,4615.5270348442891,0,-3045.767914957828]
[850,2876.7247645977568,0,-3841.0614120333225]
[851,4483.9390475724058,0,-2715.4073370420429]
[852,4189.1273018638085,0,-11090.184102262676]
[853,3897.2747564376759,0,-1573.0980512089302]
[854,3718.0386660000049,0,225.9320723135753]
[855,4524.9921343150727,0,913.1509010325625]
[856,4020.8315661411189,0,1914.8012599789536]
[857,3464.1650799113704,0,293.61043815759581]
[858,3608.8968695001176,0,-1925.0766755664429]
[859,4665.1912940982902,0,-1001.7846731270663]
[860,3922.1796469168057,0,1437.3567496293631]
[861,-892.32885246142621,0,2645.2381187886444]
[862,889.07277036994583,0,-3958.1227375327439]
[863,5644.5977527719187,0,1331.9887145847556]
[864,5677.9424935475181,0,810.74890471433469]
[865,3052.616613318874,0,249.70976157809821]
[866,3240.5827662331335,0,-643.17041796111346]
[867,1707.0468791095914,0,122.44691837858971]
[868,2634.3594792827853,0,1121.9595096307903]
[869,-1223.7007500443731,0,654.80305910505911]
[870,6450.0283021408704,0,3643.6234142049129]
[871,-1380.0396661608709,0,172.67991850890081]
[872,2810.7468658352891,0,-98.326206565191896]
[873,3874.9812752556536,0,6824.5028693295299]
[874,1095.4262263423066,0,-3906.2804777606998]
[875,5568.7195006149295,0,-656.92723203555261]
[876,6869.5654668388361,0,-46.963002933318947]
[877,6649.042201326617,0,-337.11004388646342]
[878,3917.3955953716622,0,-2749.1553927190062]
[879,7405.6582031234266,0,1706.922825786562]
[880,7615.986986427346,0,4715.2904618008597]
[881,8247.016920416414,0,-6600.8863750434421]
[882,8451.0494760488018,0,-109.7607947491567]
[883,4283.8845229650615,0,1589.7591779350814]
[884,3950.5754875071671,0,1666.5834394590893]
[885,5152.2460548606523,0,-1426.7557112938503]
[886,4425.8506804035896,0,720.22752457445495]
[887,7115.670648482499,0,4077.7014946194181]
[888,685.75984046136989,0,-484.4138170469862]
[889,2869.468408561931,0,672.75276790774944]
[890,7224.7016755143832,0,674.19449123905031]
[891,1126.2566520385924,0,-2016.4599686510255]
[892,4615.7988580721931,0,-3.512333810703486]
[893,1182.4573467837831,0,-6320.0302408225443]
[894,3469.4162072243876,0,-1897.757480060633]
[895,5122.7767260301443,0,-2116.5013141505474]
[896,3384.1162327772436,0,22.56787318980248]
[897,2506.7425960140972,0,-1885.8061553153154]
[898,612.92902057421657,0,1389.3309647726028]
[899,3495.4336353344006,0,-2389.3580471960163]
[900,3665.808682270213,0,951.38790754463457]
[901,-234.07422379089263,0,1658.9082206784249]
[902,6268.646275485683,0,-5197.8457617325321]
[903,3050.7900820982586,0,-2921.2870968105744]
[904,12151.374112981646,0,1264.9463969468748]
[905,4986.0299037532741,0,875.09594840523164]
[906,2775.8041653372911,0,-418.91500178674357]
[907,2508.9314984350403,0,597.34700729019255]
[908,5772.0331972800277,0,62.119383518894814]
[909,9680.1117009028949,0,-106.09745572851087]
[910,4273.3210908494621,0,-1528.3478197499239]
[911,6505.4985874693693,0,-90.600292887256515]
[912,97.259477291032951,0,8287.1388331627331]
[913,2367.2574078376629,0,4555.8329071014241]
[914,3142.3455209548083,0,60.742732641405716]
[915,6769.6176022578638,0,-2733.014165452917]
[916,5439.4186255413751,0,867.77081868476716]
[917,3874.9270875783513,0,5494.5106096393238]
[918,3559.8314103177704,0,737.76684172972716]
[919,3517.0155874930824,0,1123.3713240206139]
[920,5610.0205208930101,0,-1111.9131406905997]
[921,4051.116170796985,0,-665.07979675604508]
[922,3905.4489364645833,0,-2701.1772922243563]
[923,4880.9129598709178,0,517.38686234857698]
[924,2650.7275709052665,0,-1371.9372546376464]
[925,3448.2620510760339,0,1449.3538593598764]
[926,3383.7477374642067,0,-3372.621926061574]
[927,4162.2915967635026,0,-2686.0426538895658]
[928,1235.7757544848555,0,238.86411029923201]
[929,5134.9790243383786,0,625.30631025679008]
[930,1902.5072325861624,0,4131.4943697691424]
[931,3404.0807049622872,0,-329.04358873992521]
[932,6625.5354143546101,0,-8409.8370847152328]
[933,5203.707554208293,0,15.779605938696809]
[934,5451.4130350470623,0,618.84369909175211]
[935,5355.6905636414913,0,165.50404621078019]
[936,2734.6178601326201,0,-566.99373224008411]
[937,4221.5854680512039,0,-833.29980012107512]
[938,6447.704328794759,0,133.86487415870022]
[939,2915.5265309686647,0,3124.4081391098198]
[940,3840.0480690899976,0,-291.4573601480302]
[941,-819.31654761710502,0,1357.138314547416]
[942,7253.1248114327964,0,-3787.9838451276028]
[943,4771.2723711204799,0,-1450.8948469046074]
[944,6776.2969504356643,0,-705.22022190815608]
[945,286.27313500533126,0,3885.8176770848845]
[946,3255.9197375312128,0,-8368.2989938430164]
[947,9064.172613355493,0,3302.0199768810808]
[948,3807.2545297686088,0,-1493.2103853278986]
[949,4218.4455552291765,0,-12208.31051141028]
[950,4889.8871838348587,0,-3988.9124844309381]
[951,8809.7428759204086,0,-16.687469022950154]
[952,2588.6522673843324,0,-104.42064314904405]
[953,6009.4144899519306,0,51.472964449201555]
[954,7888.9030775521505,0,998.01149007772165]
[955,6177.0608319926478,0,2955.8625659952686]
[956,5219.7746209091601,0,1382.7390684685672]
[957,4326.1849176823234,0,-2296.7936304783216]
[958,10703.466703523362,0,3579.03784189313]
[959,3418.8226551365383,0,-175.88790766146781]
[960,3339.3043524958639,0,-2389.6811538906454]
[961,558.3731368398478,0,-1048.0644354832232]
[962,3264.2503474124105,0,808.55469481107173]
[963,7470.8336940597637,0,7026.5251846776982]
[964,-95.057934032608671,0,1369.5136262026208]
[965,1686.2824902419773,0,-3214.1995583862645]
[966,2549.878128507391,0,248.18753300066089]
[967,2363.1878739744993,0,775.05295168126372]
[968,2229.525735438604,0,492.39336805603057]
[969,1050.5587113758954,0,1790.5771321254722]
[970,3623.1846982583643,0,-8626.9825812627769]
[971,4733.7894666932498,0,6794.2783124549378]
[972,6484.4608964631161,0,1622.9854180133082]
[973,3761.3211521334179,0,2768.8662923699567]
[974,7847.6716054863173,0,-1232.9631893962112]
[975,4738.3258178767173,0,-2795.161390040249]
[976,6802.617882168418,0,-2515.4999575663664]
[977,3047.031907258819,0,-788.37220590413347]
[978,5311.4331736410295,0,96.295328371300343]
[979,7360.9998304005112,0,133.44315169793452]
[980,6772.4162412006526,0,813.22377839437991]
[981,2880.4742815292993,0,430.41303067656276]
[982,3759.2846307083696,0,-1972.2798832859569]
[983,5347.4038527797356,0,-5675.8695154340376]
[984,4783.8828600007673,0,-149.11132040826877]
[985,5035.7934357518843,0,-990.94924445264553]
[986,10814.453057806793,0,4455.3084629307268]
[987,10499.949065672903,0,-993.27367787888409]
[988,8382.1567872759006,0,27.484730716295346]
[989,7203.4223316241041,0,1582.7277662962078]
[990,-15.798020974766455,0,356.52050673517653]
[991,3588.8171931247507,0,206.05354502922347]
[992,313.96849291053621,0,-75.428330232553236]
[993,5126.222443555027,0,1253.4918642266994]
[994,2182.1870363603816,0,1446.8942743357716]
[995,7326.8647542255439,0,2685.5941249713287]
[996,2534.3294439133697,0,1360.5978818068309]
[997,4461.1224707637102,0,357.66538609888482]
[998,5317.264457229232,0,608.76114822573311]
[999,5929.3274282281,0,-539.67640391159625]
[1000,7705.5155177955676,0,-1222.873265529161]
[1001,2450.7281021411382,0,-3708.6373801436348]
[1002,3888.3369713032384,0,780.01945426125349]
[1003,7192.8600230355205,0,73.800982124156917]
[1004,49.61461105221359,0,2577.5174833077826]
[1005,5485.3992895316478,0,1053.8879678680958]
[1006,2139.6753512944688,0,-1161.9540587066822]
[1007,3113.8257495135995,0,1949.4913818441676]
[1008,9940.6132520158317,0,3100.8772582827323]
[1009,4617.9593998870396,0,-155.13133102029735]
[1010,175.54921719442675,0,5658.4082288582849]
[1011,53.716197772215423,0,-995.32473597466787]
[1012,5655.1245251729451,0,-8319.8983138117837]
[1013,10039.352239887981,0,127.13714805254563]
[1014,3436.3546971523028,0,352.04603401457712]
[1015,7348.1911887275173,0,2871.4911587333049]
[1016,5407.1154588445215,0,-1349.5721234431469]
[1017,5518.87736093269,0,-2681.4183989819162]
[1018,4297.7656146151867,0,2404.9927005857562]
[1019,6522.1029240196758,0,1462.4494500402066]
[1020,6692.0030683599598,0,-5133.5541695840875]
[1021,4790.9314314334188,0,344.10821424321199]
[1022,5456.2708294236836,0,-4533.3172516626491]
[1023,5272.0766347178678,0,3056.5086066946715]
[1024,4025.8962497674434,0,425.60539150279237]
[1025,6018.4266489197362,0,-799.59407841916959]
[1026,2158.4274317775526,0,-172.69789568978629]
[1027,2391.5820021740815,0,1752.5170070614263]
[1028,3328.7635105553322,0,2494.5142228120217]
[1029,4175.2872464450729,0,-1070.5788597285684]
[1030,6400.8345293896064,0,4190.2559892557019]
[1031,4863.0258965417361,0,2646.7994262013754]
[1032,2174.1160270326031,0,2485.4245098630327]
[1033,3990.6327533085537,0,3831.6407071987514]
[1034,1516.0539826604847,0,1949.6320735251588]
[1035,3649.0265927200462,0,2677.2685204077043]
[1036,4080.0078289856128,0,703.54084955961548]
[1037,4220.3955978037429,0,661.68893305472909]
[1038,9860.751946484037,0,-533.50258784813707]
[1039,4365.1357639584194,0,413.77843827543813]
[1040,6192.7780550298312,0,358.60573861693575]
[1041,2801.5018555133965,0,121.19236076012221]
[1042,6018.5275745716608,0,478.39570472349772]
[1043,3029.1626869995362,0,-1601.7509949724592]
[1044,8129.1911236658652,0,-1970.7822077501337]
[1045,5382.1648275315874,0,398.17565438091759]
[1046,4339.0731728749197,0,1882.749585859654]
[1047,3914.4546959115678,0,-7432.5868574052311]
[1048,6855.6377898633764,0,1292.1432168288516]
[1049,1876.6756504269213,0,213.49634447036911]
[1050,4985.2541778333507,0,1510.5081204515507]
[1051,5953.7368195893596,0,-333.17996989657155]
[1052,2992.7546680259202,0,-892.10527512070894]
[1053,5708.9277357252431,0,2914.0859469554589]
[1054,1300.2847950969144,0,-2434.17956280007]
[1055,9460.312155539079,0,1505.1780420551804]
[1056,1685.9782357801159,0,588.20547998616348]
[1057,4752.1358477475806,0,2725.9206112199117]
[1058,3846.9191783101091,0,-513.8141294329339]
[1059,5744.0632922365476,0,3307.9239617656767]
[1060,6013.3129055214522,0,-2882.9540331237913]
[1061,6097.3918862309592,0,1200.2197135325978]
[1062,601.9354052497406,0,-1608.7907928927125]
[1063,9111.5933032194189,0,334.74846713407175]
[1064,1862.0225415867878,0,493.52633612465831]
[1065,3894.1649705839118,0,-123.98766890505377]
[1066,2095.3683542045369,0,-4016.6782408051531]
[1067,8035.4387557553091,0,1039.2672413675004]
[1068,4773.1277932579578,0,-732.78482035077354]
[1069,7743.1714984920418,0,446.69797784265916]
[1070,4161.8461695053684,0,949.48597548828695]
[1071,6220.0590431401779,0,-1009.4814473844459]
[1072,4409.9644425163415,0,-8.2797469592172881]
[1073,6176.6295144702171,0,860.3818746969132]
[1074,5692.0916158891214,0,2156.0655596812967]
[1075,11880.482252806334,0,3318.2990303486627]
[1076,5901.0371452619811,0,-280.22725160010714]
[1077,3809.3033715027786,0,898.10684413617696]
[1078,4579.5716668399573,0,2008.0015449751552]
[1079,4279.576833005236,0,-1977.978033222538]
[1080,5600.5106052326155,0,-436.16655521989856]
[1081,7940.328610039247,0,5818.3635006892073]
[1082,5097.0582219931939,0,56.065755490724904]
[1083,4462.6292694240447,0,4387.2098469426546]
[1084,3657.2161069133867,0,-108.14712824713448]
[1085,2432.4118972520764,0,3472.1330409581051]
[1086,4965.2795187871443,0,234.70079863930263]
[1087,2865.2360633711969,0,3782.094786906413]
[1088,4414.9590015141403,0,2538.2298647098887]
[1089,8584.7508583282925,0,414.3624518037534]
[1090,6782.9060210075731,0,292.18756363044969]
[1091,6201.3982474070672,0,-23.453042449639373]
[1092,4891.4663061453612,0,-9000.8903233729616]
[1093,3699.8636625014324,0,422.94370270273708]
[1094,3733.8796759431375,0,-125.02516440552198]
[1095,10334.973356932915,0,405.60809690056095]
[1096,6665.5150697533518,0,13.239940677699929]
[1097,4230.8846734105146,0,405.46448948687276]
[1098,7716.1241579673078,0,149.51156957190409]
[1099,12160.399795337398,0,2.5425402404891488]
[1100,5520.8243066731175,0,-96.775593785901762]
[1101,5169.1161058653952,0,372.93807841148316]
[1102,4683.7551056877264,0,1410.302524047984]
[1103,-2450.4781740553572,0,1518.1376386181819]
[1104,641.97816047889319,0,835.67719225537951]
[1105,3331.6544500870159,0,-1598.2424130157999]
[1106,5693.602927772492,0,-461.32669142345947]
[1107,7653.8156580366885,0,-32.222296283401889]
[1108,1068.0514682277453,0,886.24338291480103]
[1109,5629.942460897727,0,4935.334361431851]
[1110,4922.1255817943256,0,608.4821581491575]
[1111,1426.2196785565295,0,4911.8871944956209]
[1112,2383.129749390534,0,46.232035335249336]
[1113,2118.9774291824169,0,4213.0815944451333]
[1114,10371.471891517993,0,674.84497545569286]
[1115,2248.5750681499394,0,-767.89011143697815]
[1116,2545.0580664366621,0,75.991185947703755]
[1117,4637.7244566136415,0,-45.299080438565959]
[1118,6691.197072860803,0,1778.6915762451977]
[1119,5390.3223540698373,0,-2073.8315142977995]
[1120,5695.3481376977425,0,1336.8047734037316]
[1121,3526.2100697211185,0,2526.9362908603925]
[1122,7920.3048922260195,0,4482.2334078696622]
[1123,6314.7204400793235,0,429.06974335041627]
[1124,3038.5823331514348,0,-357.31656767779498]
[1125,1978.6938037424507,0,899.35777774798544]
[1126,5536.2011859056283,0,1909.9047540598899]
[1127,7146.9350308234361,0,-397.08504431482271]
[1128,4473.3840050378058,0,1718.6838272591381]
[1129,4255.4682758222043,0,2956.748768181852]
[1130,34.735520742720411,0,479.80067882105953]
[1131,1451.2868914515516,0,-1713.9490254119171]
[1132,6563.0735043284021,0,-338.29881633257077]
[1133,5918.7120878191872,0,578.79645243366531]
[1134,4199.4598390839046,0,143.8280055033394]
[1135,9436.1370691931024,0,9870.965636408986]
[1136,6348.8021152344591,0,58.432530542408678]
[1137,941.80130188696796,0,-69.591831947280014]
[1138,2677.4664554704082,0,202.84224355486333]
[1139,5202.5545578252013,0,-1750.7973707341707]
[1140,1179.2324452760631,0,-4212.2912362590441]
[1141,3640.9476788070206,0,-1496.8422169036639]
[1142,3871.1182615658449,0,-1426.7864770490289]
[1143,2461.7179595372554,0,-8317.1519171495711]
[1144,1732.868388302807,0,910.42340749283755]
[1145,5605.1507534662142,0,673.74704995742513]
[1146,5066.1486457091605,0,118.76846730022314]
[1147,2265.2737362415164,0,4515.0212869631687]
[1148,3016.303037234693,0,3802.5053989998578]
[1149,4771.9742293005493,0,-83.415009746397175]
[1150,4857.7846058719551,0,1087.4028268087322]
[1151,3718.8972114846515,0,282.91646831727269]
[1152,1384.2237105253025,0,-46.494623356544629]
[1153,4892.9108315534977,0,327.06747497503204]
[1154,-349.77289049253932,0,-220.10751736857645]
[1155,6045.2342158497804,0,-921.69403832972046]
[1156,2235.9282562751505,0,-2793.8248072615888]
[1157,4636.7101485785524,0,3854.7656836860965]
[1158,-650.55951879818645,0,1051.7657001715443]
[1159,2328.6925385752238,0,88.451072510047538]
[1160,5577.3822390505211,0,-194.09865780898977]
[1161,5291.1790623743618,0,5054.4997312754294]
[1162,4382.0432828134581,0,1452.6766915491362]
[1163,2079.3918067714867,0,748.89397347850627]
[1164,5383.0115615782088,0,3361.6955665609835]
[1165,4575.685049672471,0,6238.2939920243898]
[1166,-575.94287429619169,0,-193.72924997481945]
[1167,3939.4648126029319,0,1124.6198041123116]
[1168,2789.284436578303,0,-7086.6472081322354]
[1169,3858.7090807577852,0,-609.61904436107352]
[1170,9031.5607381367336,0,-8829.3531272961718]
[1171,6042.879832166971,0,-339.11260123693171]
[1172,522.03105808136183,0,1347.4685193376872]
[1173,1378.8279977970831,0,-646.09337991614302]
[1174,1312.6680036718467,0,-81.172608777897551]
[1175,3891.5077072294371,0,-725.19092551560823]
[1176,5992.6060833432412,0,-304.78385938194594]
[1177,2816.5457873901728,0,-2400.589002871543]
[1178,4136.6672049165336,0,988.6518668049398]
[1179,6573.2166000635516,0,978.7713657044535]
[1180,3551.1123044518999,0,-21.062086618368703]
[1181,1186.4292651990113,0,1894.0248252490667]
[1182,6216.1377486191441,0,-3604.9856270448468]
[1183,5879.6100836885134,0,-467.44886246177697]
[1184,6481.6432005407805,0,591.8105686004584]
[1185,2439.8963765975659,0,4230.4215318498027]
[1186,4494.2378367334541,0,3466.9864012941116]
[1187,4839.864679614313,0,2973.0591754338902]
[1188,3287.943031011062,0,2522.4317948962935]
[1189,6195.7242829298957,0,808.23160923130661]
[1190,9145.4824242238774,0,1694.1270188201815]
[1191,7090.3411120925748,0,-3836.9765129555599]
[1192,5780.5780239994801,0,1017.7155651394766]
[1193,7765.6172472123981,0,620.54650038262548]
[1194,5803.7807967996569,0,-5978.1899918654799]
[1195,6042.1117992155787,0,-149.74486223635336]
[1196,4118.2522714693405,0,5058.02280395462]
[1197,6381.3274661285668,0,-2193.4050894796032]
[1198,14327.594749516968,0,-86.58598753467173]
[1199,11301.335684489248,0,8828.1676979299154]
[1200,4467.4558006419493,0,622.93575566483344]
[1201,774.54212706359772,0,617.88975650858561]
[1202,3678.89800587437,0,-3559.1380142964699]
[1203,5100.713174923836,0,634.74399304130088]
[1204,-22.859710813736275,0,-156.01181482394404]
[1205,4618.8384327465983,0,1494.3249743737374]
[1206,2862.8584454365732,0,-4512.6134376302316]
[1207,3085.7566767871654,0,-124.16929112795196]
[1208,3154.1101496528759,0,1607.2404129591318]
[1209,4182.2833775345407,0,1184.5155369179874]
[1210,8769.7961090774988,0,-1233.2046257670966]
[1211,6442.3608975788447,0,2131.9748360131048]
[1212,3572.5826579642762,0,2174.3607877432787]
[1213,6504.0891995522943,0,-1258.6356207401329]
[1214,5669.9948596918848,0,1815.342894374942]
[1215,5535.6491087227178,0,1894.5656329376984]
[1216,2087.1335470617573,0,-12.384407072458782]
[1217,8071.4678872350596,0,1543.6965581252116]
[1218,4052.6203289835662,0,1904.5433558397426]
[1219,5450.4031285170104,0,-3776.669202301674]
[1220,4878.0187439067113,0,-4954.1095861741078]
[1221,4322.5159730878659,0,2742.4496850139049]
[1222,4495.3672655023056,0,-2088.26907102209]
[1223,4983.3382696525223,0,-765.62532602008366]
[1224,8813.773737821668,0,3288.4678384853651]
[1225,3568.933004092848,0,-1302.4689798483571]
[1226,4857.4473239214713,0,-4036.8874933537231]
[1227,5731.0223456683398,0,1963.1766859033996]
[1228,6798.3963302922675,0,-173.13884760489219]
[1229,4769.1338361982616,0,-389.96257234025956]
[1230,2381.306951059858,0,2311.8330517946529]
[1231,5146.3772507489612,0,-332.9431600217718]
[1232,4769.3385110686268,0,1436.940814461823]
[1233,3855.7758600008165,0,-589.82176630217509]
[1234,6769.0489758437607,0,-2021.8698257177009]
[1235,2258.450387352244,0,-1185.5665669440552]
[1236,7374.7789427190382,0,-1550.6345427052859]
[1237,5155.8822244579342,0,-3536.3013966121212]
[1238,4330.4583738143338,0,1631.2178921275365]
[1239,10221.375822032112,0,895.77009861660338]
[1240,6525.1549793072736,0,-80.990285632975315]
[1241,11729.211721205989,0,-440.79220840895755]
[1242,8219.5909648558918,0,291.2228874182581]
[1243,4702.1542131643728,0,1079.4740692222904]
[1244,4113.9695269237645,0,2526.4878128788168]
[1245,3954.3532792302913,0,59.160397616674693]
[1246,5771.0782782010974,0,491.44069015553509]
[1247,910.97564545307023,0,216.14226734207088]
[1248,2262.1249210425431,0,34.224994636719828]
[1249,8027.2698455297223,0,-95.801872086289634]
[1250,6213.3405137522395,0,618.06889740000565]
[1251,222.33361083920843,0,18.287119279061795]
[1252,3681.1156631627173,0,520.58363555335757]
[1253,5340.2896792009742,0,-320.21185761148217]
[1254,5750.563451255668,0,1249.0122261755703]
[1255,5202.2881845375532,0,2756.7195749400853]
[1256,5822.7899371358835,0,1284.9236039680034]
[1257,3514.1794186773886,0,-1520.6775332543493]
[1258,10870.528489100328,0,1028.2255385428873]
[1259,6361.6800457758736,0,5282.7772682770919]
[1260,8158.0672394743733,0,-337.15844086649918]
[1261,4640.5687399091266,0,-645.69026039331209]
[1262,2502.5683340993546,0,2402.3199822442994]
[1263,1384.5168043437268,0,-4418.7197905744006]
[1264,2365.8379658862495,0,2283.1513276992464]
[1265,5457.3924754115433,0,880.11598661278765]
[1266,3487.1927657459419,0,3929.5815600248397]
[1267,3696.9586667662734,0,-487.98116893091941]
[1268,-263.35048208854244,0,-801.65931421739458]
[1269,2872.3252896076556,0,3029.6413228365018]
[1270,7118.9549495394813,0,5124.4391654186202]
[1271,4941.4254528940564,0,-764.33694376266692]
[1272,5117.1166305139159,0,-1240.7910880458612]
[1273,3507.6059644140519,0,-1580.352562655059]
[1274,4975.7827837616578,0,5396.3536148450185]
[1275,5643.1437956387863,0,58.781262536878486]
[1276,-278.92672372373158,0,4007.2200154431202]
[1277,5250.3740543442964,0,4066.2504087537327]
[1278,6068.8793524349821,0,829.70522157883875]
[1279,5301.7533536801138,0,1255.8345396127374]
[1280,1121.1501839644263,0,-1493.1920793611723]
[1281,1942.0237105027504,0,1036.0233458354587]
[1282,5197.4944068075638,0,303.28163584828542]
[1283,2375.3977971098411,0,6777.375980863073]
[1284,6336.0006114878015,0,257.32077230162236]
[1285,7921.5430297608909,0,1137.9308582224182]
[1286,8547.3671602181184,0,3416.649197035641]
[1287,4144.7562472938289,0,-7779.7023171357578]
[1288,5682.0926549983333,0,-582.67689710638126]
[1289,5014.1781285014267,0,4487.7414274635166]
[1290,8398.4147986656099,0,3116.6661134996316]
[1291,6967.2176532797057,0,-1756.1340875155813]
[1292,1928.7203526803814,0,1523.1733323644924]
[1293,3312.6426976195989,0,-2910.7644252211117]
[1294,1771.1022546927377,0,1392.0261567366742]
[1295,4008.2224531605293,0,6402.0448087044033]
[1296,6763.447847897397,0,3163.4777406822036]
[1297,2892.0978764104998,0,2776.6255570490466]
[1298,749.2656979048902,0,-208.10425648826418]
[1299,7673.6333821762146,0,2206.7888048692671]
[1300,7089.9558936145413,0,8725.4014775823416]
[1301,5292.2818712012622,0,1085.26799962729]
[1302,5008.053127607749,0,1912.5285783879604]
[1303,1117.3599371198361,0,-1241.3644191728035]
[1304,878.07778057105463,0,691.18915805608833]
[1305,5313.3970119199812,0,540.30010935885286]
[1306,7678.1721045129998,0,823.02295004935422]
[1307,3057.6116798863518,0,-118.86147255294277]
[1308,4081.6744157138278,0,971.1198092463718]
[1309,3302.8965699215387,0,4103.1864635105303]
[1310,3755.2909928063568,0,-55.856837155866039]
[1311,4328.9560296612908,0,-732.37238308017641]
[1312,-1150.3272688275297,0,-54.556399124003505]
[1313,2132.7148946579628,0,200.92375925300826]
[1314,2785.7479837737687,0,-1673.7177415179349]
[1315,4547.5297404929906,0,2514.6296798393973]
[1316,6372.9179076948285,0,1246.1300126054182]
[1317,5943.5297605190299,0,-215.90614330733081]
[1318,7216.1031037794055,0,851.33544862517863]
[1319,653.48356277909068,0,968.22531695460839]
[1320,5361.3493609095458,0,342.73006445484464]
[1321,2976.7008047523286,0,-2778.2246412225504]
[1322,2082.4688491890097,0,6845.959171647999]
[1323,3290.881836801836,0,-7380.7495255354224]
[1324,5648.1907300126832,0,647.91450732917951]
[1325,5456.0891080925376,0,2108.0622274122388]
[1326,2269.3390381008612,0,118.00689796615556]
[1327,6024.369698788747,0,-3684.8699947619475]
[1328,5593.821723855207,0,-573.13355641960857]
[1329,3130.0677515948287,0,-34.535657284432325]
[1330,5669.3718046104004,0,1415.3589341123643]
[1331,11707.552349425754,0,-354.41074326241261]
[1332,5831.8260088280258,0,-1065.157411962181]
[1333,2970.6067188374136,0,3394.0703950374759]
[1334,811.73432723116025,0,245.03098985123694]
[1335,901.99240047773128,0,-376.23007801315254]
[1336,4048.0359521109112,0,531.93624486906094]
[1337,4047.7262365515239,0,2138.3177761828342]
[1338,8287.2363387401638,0,7.0911545246533159]
[1339,8001.0411881266546,0,4673.8679569293581]
[1340,6390.5768455405705,0,2046.7564595293618]
[1341,2143.9272705465169,0,6366.4521645765553]
[1342,7693.7232117524854,0,-715.4605148746092]
[1343,996.08596788248633,0,744.75529141692186]
[1344,6061.8197087928902,0,-8813.3148121783615]
[1345,3978.8549093042757,0,839.25301742065403]
[1346,5291.1648565889463,0,-80.089013824999768]
[1347,6246.8587605953708,0,-2294.1421282447977]
[1348,3774.9710157313025,0,-5674.5401483414644]
[1349,7910.7471495096488,0,-3502.81451581478]
[1350,5566.3680342982188,0,-552.23686924618414]
[1351,2454.8630252587818,0,-2105.9611251349675]
[1352,4543.1787886467846,0,972.00153677111098]
[1353,3552.6764449130233,0,-94.359056913126622]
[1354,695.80293787661162,0,-7397.501629265219]
[1355,5067.1039827352197,0,3896.6097471986777]
[1356,4185.7458382181621,0,-917.34478557945602]
[1357,4592.0426241441282,0,-3023.3999108439616]
[1358,7554.6832818126932,0,1090.2905370981434]
[1359,6196.7442661780033,0,1268.8610131539097]
[1360,6100.4140700356047,0,-95.956580836025637]
[1361,8544.5463194146905,0,412.84455604336887]
[1362,-1912.1379012572186,0,1491.9489669139125]
[1363,4024.2524648926828,0,-2373.5380313886399]
[1364,4739.6571551395282,0,3920.6059843528492]
[1365,541.45098498517359,0,754.17257754923287]
[1366,589.33652094409274,0,1194.9105422708819]
[1367,2937.9756481066879,0,705.60879461420041]
[1368,6048.8154133128137,0,-1332.7499681421423]
[1369,7000.4484279115713,0,511.95476456100579]
[1370,2149.1163969639138,0,142.44697493343162]
[1371,1877.5920432299893,0,4828.9372376027404]
[1372,4411.5993084785296,0,-2476.8497129655748]
[1373,2998.4889240112907,0,-1321.2968778010052]
[1374,4889.9864415134361,0,-2198.742759129259]
[1375,6345.8085735405784,0,1134.1021950895743]
[1376,3301.3056407530448,0,-1225.3894626128097]
[1377,3975.7786412614664,0,1548.800858363194]
[1378,970.28661098633893,0,-2682.1659074490844]
[1379,6650.2840056658843,0,2589.2525188168943]
[1380,8158.4835850842137,0,-1598.8566821837665]
[1381,3244.6888778186335,0,-98.007558639285477]
[1382,3984.3787078964306,0,1140.8448114725868]
[1383,8122.7969222366446,0,-2640.1105334679719]
[1384,7211.5760684336547,0,336.5409065321652]
[1385,4990.7555387735983,0,2585.620415814084]
[1386,4778.9075518323571,0,4084.5825310227538]
[1387,3487.3927462984757,0,19.565853776531306]
[1388,6627.1226197126443,0,1649.8911565675382]
[1389,7116.0085099082589,0,1648.978921919391]
[1390,4814.0620784652419,0,234.84412968838666]
[1391,3283.3824323637455,0,1260.9079051913598]
[1392,5534.0272578053955,0,-844.01207951824165]
[1393,783.32343829484273,0,-707.79581330788517]
[1394,5764.6684254777638,0,1584.7659688871556]
[1395,1660.701635730522,0,-3669.5365070566882]
[1396,4777.3145141169152,0,-1677.7108708258922]
[1397,6221.7679065973771,0,4173.3051172802352]
[1398,4398.690532390342,0,-1440.9853070160536]
[1399,5324.1784424441939,0,1543.6702358364537]
[1400,338.71196809301381,0,3043.3780476438451]
[1401,4774.6605546781711,0,-80.457400543043207]
[1402,334.49509973695967,0,2866.9027996516093]
[1403,1988.4366541966447,0,-680.57937916308447]
[1404,4871.7567804871951,0,4175.2198030760492]
[1405,1953.560090179305,0,4329.8619692228331]
[1406,8263.1672358876822,0,-280.70458559052997]
[1407,5810.6068915042542,0,4925.2499866265262]
[1408,4155.7396074269564,0,977.79213725945306]
[1409,5466.5754717808541,0,-6482.3430432131854]
[1410,6250.2746606021965,0,-1802.0425840340667]
[1411,667.85591721189724,0,-3794.033734715832]
[1412,9480.9161038205075,0,3310.0547508473942]
[1413,9775.6797644676226,0,-4080.9593688176064]
[1414,2560.1510441191763,0,-155.75187556869517]
[1415,5424.3891890535861,0,2954.4959121516431]
[1416,3688.1684548635526,0,2351.4410410851588]
[1417,7570.4513078896825,0,3299.7206327605113]
[1418,4258.8665908310995,0,693.78956830846892]
[1419,6469.8904468787005,0,236.99630292644559]
[1420,-2689.6244307023107,0,5240.3876696742846]
[1421,3715.6557105885067,0,-1206.2475138375023]
[1422,6999.5723788772457,0,98.880160065534753]
[1423,1910.0665833771377,0,-2903.4497470871993]
[1424,7660.6401997668308,0,-7918.2837413910856]
[1425,7167.4353501278047,0,-164.64764299989122]
[1426,5617.0550975954884,0,746.59579302054613]
[1427,4820.3157702720491,0,3604.3396679099187]
[1428,2393.8985031987645,0,4896.4920013185383]
[1429,7805.8266650191008,0,-10271.915914673709]
[1430,2719.8169645555681,0,2768.3533497134795]
[1431,3513.0338450211684,0,-1039.6982387522792]
[1432,1359.5986038485225,0,75.195058687331326]
[1433,5891.7692740860639,0,-2395.2768992415367]
[1434,3234.59543600292,0,-142.57422954675425]
[1435,3874.5187428727577,0,2887.7093636734139]
[1436,9882.3431544570631,0,-55.248132003340153]
[1437,8530.3388622943567,0,2252.1446734406054]
[1438,4502.8006380940806,0,-680.8251685978139]
[1439,6323.4964555906754,0,-728.84308782044582]
[1440,4390.5477332870432,0,-393.2733254061821]
[1441,-99.175902720984695,0,-39.552206244415565]
[1442,6479.340372060552,0,-205.48587471846389]
[1443,3786.2680685271703,0,472.99207280348787]
[1444,4085.9104063178652,0,-3935.2188302141935]
[1445,5266.8154479241548,0,1835.8148627430173]
[1446,6009.3474480972773,0,1764.9082525114686]
[1447,5473.8189663133371,0,-1863.408427768494]
[1448,4018.9320931882407,0,-2061.5456289700924]
[1449,6427.4878006825084,0,1078.3776066306702]
[1450,6140.248086680579,0,2790.590424212412]
[1451,4128.0947319782344,0,-1773.4973036216395]
[1452,6441.8233465308786,0,3454.4683311902591]
[1453,4704.1838861182587,0,-321.34638093165881]
[1454,5119.046909616236,0,634.90041062534874]
[1455,4506.3846462991032,0,870.13156617568006]
[1456,8921.8663958334255,0,6804.6193032431784]
[1457,4452.840783828944,0,-7658.9851396895228]
[1458,7593.6240379786595,0,1885.629848818802]
[1459,4231.4865270413538,0,874.58686217725585]
[1460,2250.7042006041247,0,-184.14618519204407]
[1461,5586.3365350991571,0,-846.20568672065781]
[1462,4892.5402548080992,0,1712.8726242245152]
[1463,2656.1059913847967,0,-2171.2130413588579]
[1464,9748.6013166565408,0,1768.8552854422999]
[1465,4428.3162341870157,0,348.23747801361577]
[1466,6542.1491400268887,0,-391.04924153616986]
[1467,3797.4916464809685,0,2257.3333043626594]
[1468,6003.4518267657868,0,-4104.3874093991244]
[1469,4921.7052958381446,0,67.854969418490725]
[1470,4.2038378450105176,0,69.570755089375837]
[1471,6256.3692667257446,0,2721.5883374181831]
[1472,4713.0480848075995,0,1597.3750467210896]
[1473,4142.8030827013654,0,-2119.4255840835485]
[1474,7925.8370325212072,0,-27.937626961012107]
[1475,4291.6470898345533,0,-7594.9872360299833]
[1476,5135.6093587638943,0,927.46577618207073]
[1477,6331.3732947231456,0,3367.5187940374553]
[1478,3830.4329464475095,0,-819.3832778535882]
[1479,4284.1087305570345,0,2177.7754559806126]
[1480,4983.8712487399207,0,437.14895099862252]
[1481,1392.0255391939509,0,-1714.6873322607228]
[1482,5238.347221717926,0,55.344610256103635]
[1483,8434.5402115493926,0,1693.5645185688311]
[1484,3977.1233406598581,0,-2685.1962741060715]
[1485,4476.4320868087125,0,-84.210159061679889]
[1486,5186.4964204145263,0,186.2507338637844]
[1487,-1321.5247315937318,0,-1145.4891819935799]
[1488,5456.6607980132803,0,1782.6171051337037]
[1489,4684.4766809262073,0,1217.1104354039494]
[1490,3200.9673580445556,0,395.44212893411373]
[1491,4822.0678605635858,0,2365.6582282466729]
[1492,7506.561228092598,0,4005.7656722452789]
[1493,8086.0095157270443,0,383.11813809787424]
[1494,4241.8731515352292,0,-9091.7396124820625]
[1495,-708.7588803769961,0,1110.7101056681686]
[1496,-342.34606401084784,0,3194.3785544903481]
[1497,4808.7381945333946,0,851.92013429834333]
[1498,-161.08519987152013,0,-2027.90629992505]
[1499,7225.8493474748921,0,491.38510308103815]
[1500,7499.9722602950224,0,100.66332282290796]
[1501,3141.3074474534951,0,4608.1471400308201]
[1502,6066.9959406757325,0,-9061.9997427924391]
[1503,119.35892709270512,0,34.999968884949823]
[1504,3055.9122418609873,0,2189.4089068426811]
[1505,381.6005467023453,0,-421.93181114776399]
[1506,3451.1627760186948,0,4337.4727690295913]
[1507,3433.0636470111085,0,-1124.9163488134293]
[1508,4588.3039183135652,0,-488.85209951466788]
[1509,3176.5400093739331,0,-1130.7380961070767]
[1510,5385.7142080667836,0,-1297.5453225110657]
[1511,5203.9260986465333,0,-2642.1425386754345]
[1512,5143.6409107463614,0,2636.4380066007561]
[1513,3185.8410768651866,0,1678.7681868928626]
[1514,3631.7112854716061,0,3316.9902007542969]
[1515,267.84693917151253,0,317.05212210631964]
[1516,3642.7308685590278,0,67.653558744326091]
[1517,2338.0968663449021,0,1042.9202842866785]
[1518,8067.1421766390613,0,1587.6454537633672]
[1519,-317.81168361007138,0,3348.18540694693]
[1520,1935.797127202678,0,1273.9176963679677]
[1521,914.60835090669843,0,-2040.4288767304497]
[1522,1330.7198685481408,0,-39.611929948334883]
[1523,2951.5153791355888,0,1064.3792893629127]
[1524,6331.5072455703939,0,653.35753305486821]
[1525,1956.1948126201939,0,5415.1072048320912]
[1526,4858.74223674316,0,-1430.9281191428361]
[1527,3254.759549509457,0,440.60585066773399]
[1528,5167.4172477526408,0,-408.86175727739652]
[1529,2345.6194888325367,0,1509.864440446082]
[1530,2834.2997144482651,0,86.626265520631875]
[1531,4340.5803672785187,0,-1049.9561285488851]
[1532,4241.1847380439458,0,-2419.9084956973147]
[1533,6891.6760606150738,0,-427.69944316475295]
[1534,6932.9944322514184,0,-1001.0717678542902]
[1535,6128.1582726085007,0,-951.56090078325815]
[1536,6312.1324388371122,0,4197.3040302102645]
[1537,7938.8913821625065,0,-786.39601614999378]
[1538,6437.1315454074402,0,-2325.6369880293059]
[1539,-552.3402784516876,0,780.52692061831203]
[1540,1202.7848857392332,0,355.92965711080581]
[1541,3711.8818425762292,0,2269.8620827590125]
[1542,5836.6619856871439,0,-5340.00473049833]
[1543,2927.7146641457175,0,-91.981018309331887]
[1544,2957.6319059963162,0,1275.8232602352432]
[1545,5793.3520929646002,0,1020.1141530018698]
[1546,4366.581164069099,0,6063.4020449956943]
[1547,4617.2820833821688,0,-3004.0035419768997]
[1548,5601.8637325582622,0,-21.739736061643903]
[1549,8430.3318915874206,0,1440.7242603895202]
[1550,298.2679776953251,0,-1.6562688459199011]
[1551,8250.9687398349197,0,2711.3323329932014]
[1552,108.06162145252355,0,2912.7644912104238]
[1553,8236.9965924187618,0,2129.2567504178223]
[1554,2033.4799341244204,0,-1173.4563282526819]
[1555,6945.9411219421099,0,283.58683533688247]
[1556,4090.4090212766932,0,727.1043995451605]
[1557,4583.163460394092,0,-2333.1731439432033]
[1558,4912.3610208932514,0,-209.85084114355487]
[1559,-1315.0624785597649,0,2686.8793454201405]
[1560,-82.547711692598682,0,-984.88119823048964]
[1561,6521.9384222750232,0,-1806.7460344856881]
[1562,153.30848930566333,0,19.129866595088227]
[1563,5510.7105858988507,0,3677.3684257408268]
[1564,-2162.8831892027815,0,1334.1479648778329]
[1565,5766.9808477234174,0,-1593.6647997000409]
[1566,-572.95931531646977,0,-2000.7642390154217]
[1567,3451.9697061242059,0,28.751397797789707]
[1568,4167.7907185450076,0,-104.21556334171586]
[1569,2391.748435079056,0,-3066.430578725201]
[1570,-1291.7862567413911,0,-922.3769232845774]
[1571,1843.5826310397119,0,714.32819994567831]
[1572,6500.2782838312241,0,212.89684540236019]
[1573,7035.8829738469876,0,1132.2175177084689]
[1574,1038.9323092278955,0,-180.36425629534168]
[1575,7669.5345207125356,0,1134.1783813588381]
[1576,7840.9085976459037,0,75.100233435102169]
[1577,2659.733641350088,0,-673.59360719183621]
[1578,5203.7842651450037,0,4184.3780540153584]
[1579,-1406.6139359929837,0,-679.66492460810912]
[1580,3835.2537976625881,0,4854.9549122550607]
[1581,6790.2841149420037,0,955.07172533977121]
[1582,5647.5266104716457,0,-1052.5889201348821]
[1583,1912.6805016052122,0,5369.5685830900102]
[1584,4183.4171558285134,0,1771.3651041468615]
[1585,-1886.6018286096551,0,-1837.3449305172753]
[1586,8269.5085378092735,0,-102.06988121347941]
[1587,8569.2303722594297,0,645.73357705276464]
[1588,4865.1107099294359,0,2012.4227611254867]
[1589,6327.4830480279543,0,140.44324428506468]
[1590,6399.626214788419,0,4223.3691204512752]
[1591,5897.9411328285478,0,2191.5927941013215]
[1592,5643.8564718312527,0,-732.21539167895764]
[1593,3137.5519347768713,0,-1481.663236250321]
[1594,6842.1882396204528,0,-398.37756370057235]
[1595,4752.7428657606833,0,3218.320159837871]
[1596,8913.1170067972416,0,5010.5102829462521]
[1597,-7.1539026788824973,0,-53.072196777783397]
[1598,6067.1939869718753,0,18.99895481344678]
[1599,3184.7777799592327,0,-3152.6782901537995]
[1600,6226.6923946927182,0,-2575.5270015882688]
[1601,7748.5393795848649,0,772.09513416582195]
[1602,6044.864307319127,0,3561.7634060628502]
[1603,4386.8218671614004,0,-636.75291472661127]
[1604,5728.4326345231711,0,-4663.9917799442928]
[1605,4327.4778917428112,0,1897.7822630538196]
[1606,7055.156768682481,0,30.390806807051817]
[1607,11326.294222468732,0,3126.0093046941602]
[1608,642.89133893941118,0,872.31481561618193]
[1609,4225.3873467173707,0,4309.6751751309457]
[1610,8426.6431504192024,0,3029.7570035898216]
[1611,3337.3540247968217,0,2810.8294856390448]
[1612,5679.5269492423868,0,5019.1390803459435]
[1613,2782.9690658939066,0,-1723.9780395318328]
[1614,3473.8985816580171,0,-7491.9733017463623]
[1615,6497.4510981832109,0,8308.7487979051602]
[1616,5482.3711095078006,0,4121.7375404633131]
[1617,3037.0264413057407,0,-128.73139842439201]
[1618,6421.6053266563704,0,1268.630758919837]
[1619,5390.7801150411515,0,1044.013311671624]
[1620,3755.7969046693142,0,3632.3101953699702]
[1621,3503.0385827545533,0,-640.40565446791027]
[1622,9841.0954660822408,0,-665.64670901795455]
[1623,3108.7553430526377,0,-1793.4364216990891]
[1624,1220.6820696880779,0,899.29437199111089]
[1625,9995.9018644450662,0,-247.63762626025996]
[1626,5694.2515590769799,0,-919.64923908961748]
[1627,1223.2774094516674,0,-1033.7631154933038]
[1628,6271.5154551198193,0,-135.39095691438783]
[1629,9141.567124589159,0,-340.35940078213139]
[1630,3213.4446729720407,0,-3865.9166535453141]
[1631,1332.6127741432283,0,-28.757268954887429]
[1632,4246.7400552925219,0,707.71345419515762]
[1633,-3561.8172787896351,0,81.5920260869717]
[1634,3724.6467866764851,0,-164.62365744147263]
[1635,4585.3567075823694,0,687.80885234620314]
[1636,3971.0645835829291,0,5639.8192931673193]
[1637,2237.0795468766732,0,-36.699916166662028]
[1638,8960.8145395806259,0,-1843.7226789716387]
[1639,6714.2422315130943,0,3333.0566341278191]
[1640,6389.0355624803078,0,-10287.964486408431]
[1641,6233.2295294891228,0,6220.4290816309531]
[1642,1495.6067502626906,0,-762.26952877694771]
[1643,2126.0554799261272,0,541.13451531604608]
[1644,8207.3765874130859,0,1325.097459956821]
[1645,5598.2180939300433,0,-1087.6406383118235]
[1646,5551.0866259263839,0,-1081.5904810482721]
[1647,4990.3106829745266,0,1332.2403338709807]
[1648,2942.9769175528272,0,2130.2565213379971]
[1649,6829.4426994387541,0,-1108.3458387026801]
[1650,1795.110043628051,0,-311.4185356729555]
[1651,8544.7323730414682,0,2174.2109851284072]
[1652,2907.015607038571,0,-5367.5291441641521]
[1653,5742.0777295719054,0,1083.2957622567694]
[1654,1493.0282184743705,0,-1223.0808251039698]
[1655,5614.5170384477578,0,4.3537046303311149]
[1656,3168.9811915066225,0,-1596.3435132620991]
[1657,5198.0399486313136,0,458.52921652798659]
[1658,8784.8728030210586,0,3892.7369685067724]
[1659,5364.2768889674571,0,-224.07549628437619]
[1660,7036.2287273998872,0,-901.88877346442371]
[1661,6571.8435637151961,0,563.37410324531777]
[1662,4711.3429170835707,0,216.57825199446921]
[1663,-600.25121182832447,0,263.14820299295303]
[1664,6106.084339372961,0,-2449.3391952442789]
[1665,-307.05491191749024,0,1659.1511007144672]
[1666,5151.1859304874179,0,-5426.0363236889161]
[1667,7738.6250257326665,0,94.895890856675905]
[1668,2734.2953562737389,0,1429.6911391423462]
[1669,4519.6889560685986,0,-824.05736867828]
[1670,5178.1945472491425,0,1361.6075330798626]
[1671,7102.1716200295641,0,2679.948030067369]
[1672,2582.1912903281632,0,-1865.0974816408377]
[1673,-27.149931184305483,0,-20.495407036452544]
[1674,8163.4505808944368,0,-8027.1667431350515]
[1675,2921.0468542605154,0,89.909471404015989]
[1676,2212.8106711467135,0,-1320.1716547293399]
[1677,3072.4473124691713,0,-33.866515792000371]
[1678,4761.3826817454064,0,-2502.016672934742]
[1679,3153.6194940026785,0,1408.3992005473192]
[1680,6100.3931128619306,0,66.555427568385042]
[1681,4465.7833812327399,0,3634.1667678268655]
[1682,3878.3045203605852,0,-1130.4571010912459]
[1683,1014.5742717070353,0,-874.35868933843096]
[1684,5778.2591093424526,0,2967.1771932781676]
[1685,3753.5699114321942,0,1277.331165943478]
[1686,7500.8245794909217,0,2008.4896403349096]
[1687,5551.5708541632066,0,2990.2414298667809]
[1688,5896.3751520306969,0,558.74504667387487]
[1689,1014.4826985854227,0,-1805.2950289820815]
[1690,1130.2319035237381,0,64.163360304831457]
[1691,3024.5534276838398,0,238.75419521033174]
[1692,6131.8788161256052,0,237.93687353066912]
[1693,6885.0715756591244,0,-10897.049321789085]
[1694,830.8895268811375,0,763.85052435262639]
[1695,8152.2566371744406,0,-145.658836033894]
[1696,7963.2288360656985,0,980.74121977305253]
[1697,4162.313875228836,0,2731.6216490996903]
[1698,1978.8416526464891,0,-4382.4730040631166]
[1699,1696.0215921287695,0,3702.2940109334759]
[1700,5235.8640463922811,0,-930.57706989941585]
[1701,1625.0936201723039,0,3278.1622752034336]
[1702,2973.2728661406272,0,1692.4466052835246]
[1703,3383.6554347159754,0,-929.16099156238283]
[1704,3590.6784388035408,0,4067.1369381725763]
[1705,4301.7087102282821,0,423.36399921410941]
[1706,-2043.7475264504101,0,-1751.4096361157215]
[1707,4109.7870054007271,0,-3681.4043250500349]
[1708,2639.121883384008,0,-3592.2555203578427]
[1709,7550.5130143661372,0,1635.3458836028708]
[1710,8407.7264032120183,0,2214.6997236272932]
[1711,5069.4552726349302,0,-558.04740165021099]
[1712,3886.771915707578,0,-628.42036469890604]
[1713,7470.3575266067646,0,3263.3637662343408]
[1714,5890.5764242724708,0,310.00171581626961]
[1715,6171.7316530690268,0,-990.1011006571589]
[1716,5466.4159000343825,0,1131.5619999746177]
[1717,4747.4636130899489,0,804.91974991536881]
[1718,5246.5676143810115,0,-129.01334175590739]
[1719,6954.1874255732573,0,239.93907092356295]
[1720,4292.1724877550187,0,-5267.9085207255521]
[1721,11290.63522340696,0,2185.2993996205983]
[1722,6847.2758951876767,0,-870.15065852625116]
[1723,6255.6436008208875,0,-14.577790117169695]
[1724,4330.6519462259739,0,-1205.9295886509133]
[1725,3774.0593936475989,0,-977.5888859687559]
[1726,4597.1674298683865,0,111.4298317878812]
[1727,5766.7440599933498,0,-273.82208130147507]
[1728,3505.8447918751112,0,411.62724858192763]
[1729,6019.1188572595893,0,-206.59340810761853]
[1730,3529.5073799166453,0,-10.844528857252472]
[1731,5175.5432495760224,0,5646.4141937027944]
[1732,9283.5686903017977,0,1115.3878862863403]
[1733,2760.8258411662814,0,3459.1843183452961]
[1734,2419.3778598568479,0,519.19730224387638]
[1735,965.35233160672351,0,5240.2450321163669]
[1736,3588.1188629218932,0,-12985.489737091295]
[1737,10396.706993899777,0,-1266.2249680912482]
[1738,6409.7299682818657,0,-1083.7456578930867]
[1739,5492.004555897407,0,-144.22428032022555]
[1740,6227.7077807512424,0,-1215.9959376399906]
[1741,205.94423388657765,0,-30.466985103860829]
[1742,5533.1145078261052,0,-1789.0696759416956]
[1743,5003.2305120840965,0,-1137.3980636911374]
[1744,4460.5582579544352,0,1482.3593684353573]
[1745,3013.5757252456506,0,1433.6076794311759]
[1746,6582.1556395768794,0,-79.421195190640404]
[1747,3145.0842983366165,0,10.456270969259306]
[1748,9060.3121281166823,0,3983.3592742103347]
[1749,4867.5524256508634,0,-1665.6027842627507]
[1750,10108.760807318347,0,246.31756482208098]
[1751,1279.7763313523938,0,-11.216849939509135]
[1752,3729.7486576885917,0,4910.6310643549978]
[1753,4120.8612233119675,0,-634.37115652775424]
[1754,9403.4185561931736,0,-3508.8535834966078]
[1755,8688.2774331297733,0,-755.15513790221337]
[1756,2892.1299442843797,0,2059.8717550750771]
[1757,3840.6078334236267,0,920.29255689020806]
[1758,4544.1118878709576,0,2862.8398499881268]
[1759,1530.020545153317,0,-1400.2249534639761]
[1760,4281.9597609742614,0,-1545.7642625125609]
[1761,7298.9761261666572,0,272.1526162986903]
[1762,8155.2426195937378,0,778.86550744865337]
[1763,9497.8735576939398,0,-888.44657739220963]
[1764,232.96038428253968,0,119.20863544010034]
[1765,3789.2997399374062,0,5545.4718912992357]
[1766,4881.8699710780347,0,-3789.4567610272834]
[1767,6544.5329949399547,0,59.853958818705372]
[1768,4665.8385946566932,0,-1.5038778658982106]
[1769,6312.3221196237255,0,917.42900618867191]
[1770,-500.82080521192017,0,6408.0657313482825]
[1771,6974.6264400352993,0,1542.0692747607009]
[1772,1650.910943797852,0,-938.45765450523095]
[1773,1075.0381504324266,0,1445.4107731994625]
[1774,2068.7819082126093,0,-2313.2442055200686]
[1775,6445.9506391046525,0,-3951.3263367889685]
[1776,4781.2772158147927,0,390.56392612747271]
[1777,2812.734528733175,0,3457.3694956785766]
[1778,5628.7176673643889,0,3387.8038295587912]
[1779,1417.9934925414686,0,770.49394850839167]
[1780,3887.4207029110094,0,1623.8956082535167]
[1781,4232.4355751921121,0,3209.0965067731549]
[1782,5158.83378517868,0,-124.85904795933834]
[1783,4498.505799866939,0,-423.83823101108902]
[1784,2898.5232045401926,0,1846.4797264922699]
[1785,5732.7230919567701,0,5022.5922277864302]
[1786,6574.8266151991857,0,-7520.6800364981673]
[1787,9386.8642250700977,0,868.07502157035583]
[1788,4947.9720793686765,0,-329.66750207295473]
[1789,9326.5198436798564,0,-966.95630205035218]
[1790,5968.0123306894575,0,-2732.6175352027863]
[1791,872.85318191780107,0,1296.5876490112896]
[1792,8249.4111351862757,0,-1400.1526581691057]
[1793,5724.9937527500178,0,-4221.2288186117739]
[1794,3156.0648255845954,0,422.04235666409079]
[1795,2935.7817753782369,0,-7611.033403542172]
[1796,3946.9757608557802,0,3979.3760581845772]
[1797,3818.2622818722075,0,4546.9698971188936]
[1798,3513.6092324827659,0,-3070.5955752863019]
[1799,5026.3012514798465,0,427.6423698889551]
[1800,1069.859825210106,0,4787.4630885898068]
[1801,4826.668243959708,0,1096.0058215455265]
[1802,5798.859620125937,0,77.126560105498044]
[1803,1828.3205678379004,0,837.47965667164431]
[1804,6912.1415367108675,0,-1479.1002702444691]
[1805,3352.8626056889398,0,-25.29497794098701]
[1806,2117.7571229261112,0,-261.40752828989747]
[1807,4080.9133201715404,0,2608.5396178104575]
[1808,2712.7031867691157,0,430.0078675410507]
[1809,-1231.1638334244412,0,1336.6474779289144]
[1810,7548.7075366958443,0,2925.3128970953862]
[1811,9428.2719636804377,0,4337.2376320643225]
[1812,6306.5305765154199,0,1162.7365347335451]
[1813,1991.2295629938285,0,-206.71911623631209]
[1814,10261.967133221406,0,-1370.8518435900437]
[1815,4902.5763382404048,0,-1541.2800270663895]
[1816,5074.0006366038033,0,2238.8573490394942]
[1817,1813.1119844673217,0,-4388.0579057805289]
[1818,3313.5298337008803,0,882.67035728928522]
[1819,8208.9693293489054,0,-16729.961373660153]
[1820,2690.0275938151326,0,7155.4691266571999]
[1821,1747.2985930105197,0,-92.774624992578509]
[1822,4215.0095458226569,0,1648.7745929724988]
[1823,3476.4331157191014,0,2713.0259925097694]
[1824,9888.7672653883128,0,2333.4936342735423]
[1825,-2360.2339083698098,0,-455.37060033068281]
[1826,5912.3154344925761,0,-932.72507201449673]
[1827,3556.6754643155164,0,-254.8816382730584]
[1828,3001.0445743199402,0,2035.0640381794915]
[1829,2073.0240157907201,0,-1915.4924364608887]
[1830,7285.9523847233704,0,2644.4605354044438]
[1831,6563.9256369836512,0,-1706.6301075511708]
[1832,-367.51575638521405,0,2482.7096859645817]
[1833,5362.8929644614427,0,-669.78468657669112]
[1834,5734.6140533155212,0,1676.7234909635426]
[1835,9440.4884689896717,0,1186.2874384833683]
[1836,3704.4966765653708,0,-103.07996217254976]
[1837,4861.8810090375564,0,291.13138972143463]
[1838,4543.1258227414592,0,669.4579570778609]
[1839,1374.3353331107571,0,1054.1631208032129]
[1840,3569.9657430178117,0,53.431774963480066]
[1841,3934.1296243536808,0,644.76037692776561]
[1842,4918.6884292950645,0,3157.3826559234112]
[1843,5008.7572366921895,0,3369.5753099630811]
[1844,6301.3477330954283,0,920.13556818263044]
[1845,3623.5632356605843,0,1944.0496837030312]
[1846,6405.9594415662414,0,-807.46698037650935]
[1847,39.217641937467846,0,-886.41737429777254]
[1848,4976.3167992568096,0,-3318.0677115880749]
[1849,6083.0445458081804,0,749.3616203253124]
[1850,1062.8056007968846,0,1411.8449771350336]
[1851,6444.1347703470046,0,-1069.488107204983]
[1852,600.98325177216793,0,-28.583638003736016]
[1853,3127.4219134963396,0,2599.6725381009387]
[1854,63.221938208219576,0,-180.65622907088823]
[1855,2726.4828612163165,0,2576.716308890158]
[1856,8392.4996354483392,0,501.03837742119902]
[1857,10963.053042251711,0,216.94452260671488]
[1858,4179.0988582835007,0,2105.9290226007124]
[1859,5986.8590114909894,0,2767.8860872425748]
[1860,4805.2194311059784,0,1379.7338329435545]
[1861,4628.0346664299232,0,-2751.8516454977189]
[1862,4804.2235226181419,0,2706.1825417847103]
[1863,1622.5980104817463,0,-3108.4619249879179]
[1864,3158.0254207161188,0,1980.2442085861931]
[1865,1142.6272025758151,0,1168.6890549254415]
[1866,3715.4068808534516,0,-9217.2878142824484]
[1867,8800.8842188278595,0,1267.0027949713585]
[1868,6341.3348425607182,0,-7148.624249823044]
[1869,4026.8795300362599,0,5514.3264028512131]
[1870,4228.0172783624976,0,-587.89560165706996]
[1871,3896.704242002741,0,-4942.1407661331641]
[1872,2036.2760237984953,0,-306.32297859401035]
[1873,8278.3167823985968,0,3645.1041963050366]
[1874,5715.4290959412847,0,3058.5405081732761]
[1875,5085.4290465406375,0,-615.49848053532526]
[1876,4951.8463578297897,0,4306.2073657025867]
[1877,6720.3169904769302,0,-1933.0564062868223]
[1878,4153.9641377327616,0,2245.1485241430419]
[1879,4310.8616309348872,0,2993.7376310058335]
[1880,4370.1111954961725,0,250.34915086607714]
[1881,7015.9784437223598,0,94.143622415329844]
[1882,1142.7805666232398,0,-697.97174103753355]
[1883,3792.2670638972368,0,1314.2233513404544]
[1884,7397.5584495673129,0,903.78159129779476]
[1885,6266.3573919511327,0,1371.9095461264719]
[1886,7076.6651968027199,0,-3900.8603587954058]
[1887,3630.3529341980811,0,2152.8665046667602]
[1888,4530.4330462445178,0,-1049.3711610119467]
[1889,4279.8938053950906,0,-2597.4820063296006]
[1890,4124.3332879954232,0,-1559.7376019608903]
[1891,5842.6918069523663,0,-1059.7697474521817]
[1892,3564.8606128820293,0,-490.22891387577926]
[1893,5756.2130865969684,0,6020.3965773689442]
[1894,5216.8939437219924,0,20.577592737946862]
[1895,4902.1172516557754,0,1016.1947404553199]
[1896,3500.8065165015914,0,1095.4921140161343]
[1897,-507.71858461832312,0,1797.8698471803373]
[1898,885.0701273614718,0,-804.14888091457055]
[1899,2036.9130055512564,0,-1945.4722939256603]
[1900,-443.1719916178763,0,-2354.5867408000327]
[1901,11507.289795889883,0,-4886.1494808373027]
[1902,5472.9729103960781,0,-350.07843241678898]
[1903,2370.519036317296,0,-1922.8720390277467]
[1904,1020.6369519640074,0,1114.8120872792019]
[1905,1153.8405859424388,0,5196.7929312408796]
[1906,5726.6754953822337,0,1592.672051082794]
[1907,1529.2243829772237,0,-1915.166682806893]
[1908,-3.4007753900165993,0,73.749000511937211]
[1909,3862.6744710554572,0,-630.03972166843221]
[1910,7434.227365295912,0,-3526.2966563074574]
[1911,2099.8363089272639,0,-594.6813481416109]
[1912,5734.0568254671389,0,3678.2682053309177]
[1913,3412.7347710352697,0,308.82475992601707]
[1914,6024.2018869044314,0,-1364.0073245344684]
[1915,6970.2129824066242,0,-2832.8919582568865]
[1916,53.009462459995426,0,-2109.7961686012227]
[1917,5935.0944233611044,0,1310.3304213193569]
[1918,3733.7389007402862,0,-2980.4862463597979]
[1919,3378.3494892979115,0,-1768.4654274108398]
[1920,2451.8795111197178,0,227.98098951411754]
[1921,6278.7934216740814,0,184.83811428014178]
[1922,6750.1455192519916,0,-5163.4907488376439]
[1923,4949.6915247273118,0,-3400.5171080132727]
[1924,5099.6799647205262,0,1055.8208517088951]
[1925,4287.5778031855843,0,-3588.8270087226474]
[1926,2373.0721113962877,0,554.68323683452081]
[1927,4524.2738055378268,0,-168.63142306982678]
[1928,6113.0371840932758,0,1305.6338504555972]
[1929,5733.8804801308615,0,-1435.5804370350411]
[1930,3010.6904489857952,0,1387.1502537990068]
[1931,6667.8390461754234,0,680.12915717908118]
[1932,4635.3305613057864,0,-10074.409505786321]
[1933,6372.483818343203,0,1754.4103820912842]
[1934,5440.3358560028828,0,-1238.1890102469242]
[1935,5114.5016512828179,0,-3073.6378903843761]
[1936,6036.6009288313344,0,63.667652712247559]
[1937,3518.422235920043,0,-247.00130928392488]
[1938,9147.6749018537412,0,1124.3947387452884]
[1939,185.77587826178774,0,-1435.2829302568066]
[1940,8889.1935115737451,0,-2882.1444539299596]
[1941,1600.5485958856043,0,341.31030727265545]
[1942,5433.8270378656034,0,-1583.0322533356416]
[1943,5824.2477601359296,0,353.4978977047906]
[1944,7307.0001472080357,0,-4.88823421998325]
[1945,2112.0618334863066,0,2256.2568952314255]
[1946,3049.1725509729513,0,-2460.2327412037989]
[1947,3466.9646728372045,0,-2371.9200738307295]
[1948,2411.991293327228,0,740.09072857077444]
[1949,3253.9453380516729,0,-1495.4607132594788]
[1950,3542.738044591214,0,-6438.1335344858035]
[1951,-391.37079103431796,0,89.900192817679695]
[1952,5390.6311221061769,0,-2109.6700584102123]
[1953,4965.7506346417604,0,1410.0930649129418]
[1954,5705.5337645110458,0,-15.025655303432487]
[1955,3656.6669308123492,0,695.4958800298507]
[1956,2214.1206859934982,0,84.184492205026658]
[1957,6794.407643159182,0,543.11520878063072]
[1958,5346.5760963825924,0,1536.9607686090569]
[1959,4424.5607391253989,0,12.728364782401405]
[1960,4895.9282822152909,0,-423.11139885844005]
[1961,5505.2541760298509,0,2071.0564542552065]
[1962,3042.5723841258491,0,21.39046621688038]
[1963,4368.2593358509612,0,3566.0871401797799]
[1964,3560.3291303454725,0,-1075.5445368187359]
[1965,-257.84935240948397,0,-8119.3900550184462]
[1966,3868.0078858441411,0,1665.9719947856574]
[1967,6017.9023145869614,0,2536.7277615748412]
[1968,3200.5127287321252,0,696.78434392400811]
[1969,3689.2980220630861,0,-3602.3412823575118]
[1970,1187.3336061133909,0,1831.8951310238672]
[1971,7567.7436908284144,0,-2147.9222607149127]
[1972,-770.61321844442034,0,3596.0492297481633]
[1973,3130.8717450821878,0,-12.392811772819046]
[1974,8585.3084706252921,0,-7296.1302349661864]
[1975,5023.9012681913264,0,-33.553232663949792]
[1976,2641.7912943062256,0,-5322.1458387708699]
[1977,3888.2513936730656,0,1413.4973733902559]
[1978,6826.6080150348544,0,75.161891722573998]
[1979,4208.7760564506652,0,-371.67890167050098]
[1980,9185.1224221176381,0,-5615.4157196804454]
[1981,-644.63176643605186,0,-372.44903687372511]
[1982,7293.1880685102778,0,-321.77338907021209]
[1983,5734.3017589229421,0,2182.0376297020189]
[1984,4563.6786842074434,0,-351.142117389948]
[1985,4226.3907868922397,0,-535.96903445734574]
[1986,7850.1421917103044,0,-1107.1064300476105]
[1987,2085.2828720378448,0,3754.1076790288635]
[1988,6769.507510097148,0,1027.7063603176973]
[1989,5671.7837762723357,0,2706.3474646737127]
[1990,3422.4411047215317,0,1996.1825227718462]
[1991,2726.6108583324431,0,-1699.2313180133165]
[1992,6161.3644669347386,0,1443.4220208044167]
[1993,7151.7952693568686,0,2292.9463512207903]
[1994,2319.2521935303585,0,43.356548709818469]
[1995,4679.1472097334909,0,166.99739268799794]
[1996,7092.8827631434524,0,-1584.6938922107856]
[1997,3798.9736121748097,0,-442.7867946930516]
[1998,-355.21543195828087,0,-395.95239230465114]
[1999,3131.6680579410195,0,4965.4195843309863]
[2000,7560.054761132742,0,-98.246466079116971]
[2001,4850.3594597868305,0,-144.73693953897805]
[2002,6279.9063365041693,0,3679.4796900903957]
[2003,1112.8477088670224,0,197.01673239451847]
[2004,6045.8427095295647,0,-3027.3728387187734]
[2005,6810.6182866755607,0,812.01297408285382]
[2006,4358.106755631622,0,3101.3368333850926]
[2007,6829.9095457728081,0,-339.452307542124]
[2008,3254.112507738314,0,-959.85895518011694]
[2009,4992.3495836956099,0,-1534.50496299304]
[2010,1782.4984337028245,0,4132.7441273178083]
[2011,5069.754435224103,0,4852.4745226850791]
[2012,4307.5231745507044,0,-780.98941547676418]
[2013,7563.5475748689187,0,2731.2072879743723]
[2014,6740.141861454711,0,1102.1775488637224]
[2015,5158.209524734827,0,-528.05792320466287]
[2016,1257.1764624000355,0,3615.7139126421575]
[2017,5096.6360997505817,0,-93.977679079358552]
[2018,1911.9136409533508,0,3967.0067059479352]
[2019,5629.3910473157503,0,4457.1536639022252]
[2020,12940.456450190046,0,-584.34142323061826]
[2021,5194.9693787171564,0,3685.5131345810232]
[2022,6930.1620809392753,0,428.14952738706052]
[2023,5875.9689354336788,0,-11859.407281468977]
[2024,5972.9955494836104,0,-2569.0974996657937]
[2025,2363.5707762666116,0,-2648.3786895114213]
[2026,3957.7189534149661,0,3098.1671818037539]
[2027,3625.7503076677367,0,-100.24552119194142]
[2028,2250.8762579501049,0,3008.6204431036031]
[2029,5783.9420287639196,0,1609.3675642764151]
[2030,3571.9687992496442,0,-88.29997968099093]
[2031,1605.8484504271971,0,1333.780979451237]
[2032,5294.7155241105347,0,-894.5625399363737]
[2033,3394.0493587274709,0,-3839.0208651902699]
[2034,2466.7255671172034,0,-308.16967134051748]
[2035,3839.1275262040936,0,4073.1135292715762]
[2036,5597.3240660203419,0,2092.853483485062]
[2037,5725.6952038936797,0,1822.1194343195552]
[2038,586.65319091378763,0,202.58858161997836]
[2039,4695.2533860650037,0,-484.71969847609984]
[2040,4456.6686057785164,0,199.98749821056748]
[2041,3995.9597218587678,0,-839.89340712149431]
[2042,4146.5428905690887,0,-1321.8839282020863]
[2043,147.51629883234304,0,282.18434099455243]
[2044,4306.9414196548205,0,2449.8166992002816]
[2045,5401.3483275245526,0,-11.272910514421479]
[2046,3706.1995130520613,0,539.97954472667527]
[2047,2841.3182433390234,0,4565.9715514108511]
[2048,-82.465596658104801,0,-376.64801690105753]
[2049,2685.3408607584156,0,-1081.6177904583849]
[2050,3206.9368963348038,0,-803.48708162077401]
[2051,3453.7751881792565,0,3978.9806435429032]
[2052,7989.5717532671651,0,2366.4049359404758]
[2053,6801.2656209194201,0,5048.5721313319045]
[2054,3071.1486861459548,0,4629.195073500724]
[2055,3254.035578094783,0,-5573.8771470928414]
[2056,5927.2227192950595,0,-452.86356033964825]
[2057,4260.5629047850052,0,257.62471523561209]
[2058,3279.3793943845576,0,-873.86095978605272]
[2059,5906.4636631892326,0,4516.7567849754887]
[2060,2551.2969787291495,0,1315.8230833143919]
[2061,7179.1552167791742,0,88.727520743552191]
[2062,9560.6315275793022,0,-2306.6089564406002]
[2063,5251.2662094477755,0,-70.490817819037517]
[2064,4937.4129417535632,0,904.49773656167304]
[2065,3488.0049005950141,0,1070.8017105191332]
[2066,972.59677922828791,0,5150.6255676196579]
[2067,4589.4962537830343,0,1508.3727935715174]
[2068,8804.897394920732,0,848.08756244558049]
[2069,3428.7320356589553,0,1140.8348919914445]
[2070,4360.2124996342081,0,2644.8723068832132]
[2071,7927.2793728657907,0,1776.8001011863028]
[2072,8740.044095309735,0,-636.69582743723049]
[2073,6309.0186320869179,0,-120.15937578506502]
[2074,3689.9485132814857,0,-4447.9368303660003]
[2075,2649.7405589025348,0,-153.68424010630767]
[2076,8022.1293957340322,0,11.548786178083816]
[2077,4771.1302471337731,0,-65.856525052666171]
[2078,38.900094216737038,0,2986.6789757391361]
[2079,821.8261618172296,0,1755.9694688539375]
[2080,4906.0383797378381,0,-1383.7547907689304]
[2081,3559.840631337689,0,797.06585430398661]
[2082,7069.5188274649017,0,2387.6053086432098]
[2083,9702.0011667658109,0,-298.91455093832849]
[2084,2956.1573588370884,0,295.42249788761234]
[2085,3968.6908007443508,0,1.9621068135536157]
[2086,5959.5483944449479,0,1939.3988685174668]
[2087,-655.67209767528414,0,932.44033051323561]
[2088,6437.4966087589009,0,2838.9771276243805]
[2089,8328.9217586833493,0,142.77108781700301]
[2090,6214.7856545265977,0,-3018.5627780252184]
[2091,3082.0099587110499,0,-4656.526690906494]
[2092,4746.9593219921589,0,-159.66255943557744]
[2093,6849.3848102236107,0,1484.5397479937862]
[2094,5652.8734459283723,0,3045.8465996930422]
[2095,7239.1261220454489,0,194.24235480971734]
[2096,4803.430002045232,0,1175.8305626349379]
[2097,-1471.1923220350866,0,0.7743450194397995]
[2098,3578.5243661044924,0,-469.13037439009105]
[2099,3279.8660482990776,0,906.50910788576948]
[2100,4876.9697476285401,0,-1247.330292922451]
[2101,4719.936528450783,0,641.27333062518858]
[2102,2304.4072362230422,0,360.85966479132964]
[2103,1354.82065052083,0,2421.8360489520737]
[2104,4633.8531992593935,0,100.48811429664424]
[2105,4244.157773620218,0,8714.52750853822]
[2106,4181.8738233626882,0,3206.1107202988669]
[2107,7132.0957797710344,0,2787.6077412688223]
[2108,3883.3976293686401,0,191.02399934672223]
[2109,-954.81615182734515,0,3260.5494860464605]
[2110,1887.2883338117947,0,-28.937778406439271]
[2111,1065.9342883047866,0,5679.1774233864544]
[2112,5610.532717880651,0,242.84742593302622]
[2113,6802.9962534012466,0,148.04013434340129]
[2114,8232.1897385150678,0,-256.7953374747604]
[2115,2239.2575464348279,0,46.459948634294122]
[2116,5934.5287301821645,0,2443.9743867827679]
[2117,6057.7276847544699,0,2878.9092698573845]
[2118,5892.3960400762917,0,585.66326148339681]
[2119,3753.8987578454157,0,-61.851926605664772]
[2120,3810.4400009752544,0,1465.7723574230038]
[2121,4610.9272096621344,0,-1765.3538417285204]
[2122,5960.9360002159883,0,689.36502196008837]
[2123,2620.3357418797059,0,4937.4604005819965]
[2124,3001.0576136791938,0,-741.71596120838433]
[2125,4769.839911391633,0,1073.5131311972823]
[2126,7092.451898237925,0,-4168.4196103373024]
[2127,2213.2033283937199,0,-4788.3415590397517]
[2128,-1803.4162889268991,0,-1045.4912022718565]
[2129,6589.1004517194178,0,-2269.7694753755459]
[2130,5806.5754997700333,0,-2711.6998125642849]
[2131,6735.4943874435849,0,2617.2461766810284]
[2132,3431.9530016545941,0,481.02023659259567]
[2133,1373.1456344308742,0,1341.7344920154712]
[2134,3035.2037636672394,0,312.70280715100358]
[2135,3559.507535739207,0,208.91324546644532]
[2136,5959.6749223861207,0,-521.8042303445186]
[2137,4972.9020413017497,0,1085.3867903578664]
[2138,6158.4427533736944,0,-4737.488938864496]
[2139,1666.1596294903104,0,-228.45973543168213]
[2140,2326.9267568063369,0,1892.2784217984347]
[2141,6254.6743380660146,0,1723.3847282871243]
[2142,3529.6574781063691,0,-5640.2404877626068]
[2143,4039.04905782386,0,413.10014243890515]
[2144,1967.3151596023688,0,938.70607448625231]
[2145,4691.8645269656536,0,5544.6722164795829]
[2146,4719.2378173509442,0,1814.1090116004711]
[2147,6717.7076413675413,0,592.1807085563521]
[2148,4379.2472093756387,0,1687.2199826303136]
[2149,6321.9453581485204,0,193.14789564667873]
[2150,-1106.331396196899,0,1330.8341414709409]
[2151,5726.1011484451128,0,-3230.3571914992035]
[2152,3439.3802512757143,0,3343.7330632496642]
[2153,-702.31948337168262,0,468.32575915706832]
[2154,5506.283070593463,0,-810.8414496244784]
[2155,4893.7459301529143,0,143.50831878048621]
[2156,5688.3559961508527,0,6725.7925037397417]
[2157,7914.1010839520968,0,-214.55349569989602]
[2158,121.51617350149428,0,4801.2409022873962]
[2159,935.25150436905187,0,-5244.6326893243622]
[2160,-1037.8075207537279,0,-5681.1108377549663]
[2161,7024.7024536378794,0,-2017.394799959505]
[2162,6722.1465068637317,0,654.51630644577165]
[2163,8608.4994910096975,0,1475.3601419956351]
[2164,6421.7424165212751,0,97.82734887687144]
[2165,4189.5058469098103,0,714.91335666894247]
[2166,4353.0239915449647,0,2244.8571984443743]
[2167,6127.521022019032,0,534.17019002151824]
[2168,3035.158488452787,0,-1966.0898603989208]
[2169,5571.4238942535749,0,1008.932640677039]
[2170,3790.489881652079,0,2958.9298210594179]
[2171,6035.208198668789,0,-2236.8387869581607]
[2172,5841.0659142549885,0,1664.8666110539066]
[2173,6774.4918217093536,0,2312.2016383914024]
[2174,7319.5296363181842,0,1416.1849794427194]
[2175,5121.2127173618592,0,822.97356149660629]
[2176,888.82474474313244,0,466.19296861145961]
[2177,4281.1603445087394,0,-0.1887656436471585]
[2178,-418.17881466342294,0,2581.0826678962831]
[2179,2958.2751730712534,0,222.14103739042747]
[2180,-969.82435023556832,0,1452.9486287859484]
[2181,-412.97212523594447,0,-1511.9251903166385]
[2182,2746.0158254547359,0,2571.5133057316707]
[2183,3844.0467217776413,0,4296.3701653277403]
[2184,1343.1527349083703,0,4611.2617677383032]
[2185,4123.2050087127318,0,-177.66708541617791]
[2186,5872.9239510796133,0,1145.1027848458004]
[2187,2199.7083873032352,0,51.094566461301518]
[2188,1241.6308177810765,0,-330.99623244515465]
[2189,5406.9008975814295,0,3207.2743647027505]
[2190,3651.5461147874184,0,259.84879804918751]
[2191,5203.4728066678754,0,40.521171562202731]
[2192,6941.0873981221212,0,812.48729153002319]
[2193,6580.793470930751,0,-164.63051406022205]
[2194,4991.8749919839593,0,5306.6452218953236]
[2195,-300.89041248648232,0,-728.80891854409151]
[2196,3411.6824560226414,0,83.801538704501027]
[2197,956.2429590407163,0,1071.4954559132266]
[2198,485.39231852016394,0,6039.7524712424329]
[2199,3326.5982971452077,0,-2127.2009757580795]
[2200,5127.828784919614,0,2732.7832575551988]
[2201,5234.1336072543718,0,354.72063015154049]
[2202,4176.4887585008619,0,2617.6041373050639]
[2203,5126.3273919104768,0,1714.0042735288016]
[2204,5300.7334871452395,0,-531.97173602177759]
[2205,2071.8752458720414,0,250.09806552478858]
[2206,5038.230555231713,0,-1519.4490221481499]
[2207,-279.54993593859228,0,-7894.3727798312202]
[2208,4847.2112788176491,0,27.78750750992813]
[2209,5964.8012594590182,0,2000.6284835951142]
[2210,5599.2292302485366,0,2338.9341577728774]
[2211,7919.2307872207384,0,1255.0458648806068]
[2212,6437.075352919941,0,-450.66549943372672]
[2213,6733.6006339498736,0,360.26620082634491]
[2214,5799.7441918787881,0,-323.23752123685796]
[2215,270.91436725220348,0,3943.3405336319734]
[2216,9784.3811143513449,0,1697.7713339798386]
[2217,3094.875375404381,0,1237.6314688483496]
[2218,5057.194191398441,0,-1805.2003449094366]
[2219,4976.7813460269499,0,491.08947603405585]
[2220,5244.1383826508963,0,19.602066975402202]
[2221,4914.0482586942389,0,2249.8855138642848]
[2222,7627.5508685962113,0,2371.5691920398313]
[2223,5925.7199888898322,0,4363.4905421641561]
[2224,-502.63568125066638,0,-592.31208905701044]
[2225,5329.8345192203124,0,3840.267354552298]
[2226,8304.3611737658557,0,-928.78972342122665]
[2227,4529.6229060177902,0,2244.2706659902469]
[2228,4954.1295085611737,0,-956.43690313457898]
[2229,4047.4142938008199,0,4032.7250633432404]
[2230,7184.277900228627,0,1261.2077781628871]
[2231,4433.2183539763328,0,109.22678952787896]
[2232,4745.7360865083429,0,-522.25654298206825]
[2233,5619.6648996708082,0,204.59680423335223]
[2234,6038.9924269642015,0,2291.4487974257254]
[2235,4774.9261646759851,0,2664.8220008275766]
[2236,2117.5773202945593,0,447.26113377344495]
[2237,319.62150914282995,0,-200.36831187227745]
[2238,9163.9025893613707,0,-582.5282371414927]
[2239,2593.4070848445381,0,-106.87391579085831]
[2240,5490.147160792777,0,1903.6188812160617]
[2241,5964.4748464357572,0,306.96306670410041]
[2242,3204.7550794988929,0,2495.7709807039432]
[2243,4521.4362260005382,0,2637.0108320585041]
[2244,4904.5103335790891,0,1331.9359340473047]
[2245,3001.5687161192673,0,-477.77399971985648]
[2246,1582.0879956076908,0,2997.4222380843548]
[2247,9097.8175057295139,0,8.0304118013198931]
[2248,1041.1205516863115,0,50.614765917075808]
[2249,6195.9519444085317,0,921.95388885039893]
[2250,2550.9144644294724,0,3365.9562062456957]
[2251,2698.1698259120258,0,-1574.7925916718045]
[2252,2095.424469804826,0,620.28255577630534]
[2253,2099.3882719958879,0,-710.80207003707778]
[2254,4673.2393195490067,0,1635.0989353310874]
[2255,255.30125994343484,0,522.83101964963839]
[2256,5170.2878071263685,0,517.59888916777163]
[2257,7081.9004478062507,0,3052.9612392510262]
[2258,5304.4227574041779,0,1525.3076073334787]
[2259,3883.8480261432769,0,454.68597558505132]
[2260,2129.7146554840883,0,149.57825116187598]
[2261,4077.7895947720372,0,1899.1793883766732]
[2262,11320.470066700775,0,1322.535957404868]
[2263,5607.8853344067556,0,-956.68173378939673]
[2264,-1147.2370859471246,0,6835.3517911783847]
[2265,7538.2368268865375,0,754.69513882487763]
[2266,4596.2179211473449,0,-406.93715552415711]
[2267,8631.5985547213368,0,2512.6797570033541]
[2268,3665.3763308037232,0,7069.4852620969205]
[2269,1327.092815930806,0,-187.58986005308228]
[2270,7389.6736801457582,0,18.385610859717794]
[2271,6207.7631880639601,0,1298.1102510097637]
[2272,3935.833061071839,0,-1852.633263503473]
[2273,3930.2843397327897,0,-49.799166849992751]
[2274,5064.682297585221,0,48.945662360227281]
[2275,1005.5773762411694,0,4088.5213304210738]
[2276,3997.6365552993366,0,-1783.5428695641035]
[2277,6231.9479206750648,0,1960.0953220425636]
[2278,5190.6493041054164,0,67.047283858802004]
[2279,5999.194492014637,0,-2235.6115117201143]
[2280,5324.0062227667631,0,1383.5833311166989]
[2281,4789.8095961027648,0,1417.6753315230694]
[2282,904.51252603659191,0,1557.6807560235429]
[2283,8561.2864783393488,0,223.06954856210189]
[2284,4018.9042282367695,0,-785.87794584304936]
[2285,3245.5209220435845,0,5653.1550480808455]
[2286,2178.8792159877098,0,-213.35727928868809]
[2287,1122.3735801605883,0,-2362.5631047018919]
[2288,5963.9058634624798,0,2704.8237280846411]
[2289,2941.7486324185647,0,1078.2245603883725]
[2290,1774.3708206965059,0,3447.654990924294]
[2291,4467.9652241294461,0,-5711.2342617881886]
[2292,4525.6139286707912,0,-1791.801835614694]
[2293,5247.7039904315643,0,2.7608709370814726]
[2294,1878.5032066877134,0,-7831.736968059332]
[2295,4839.4280575995854,0,-84.771094562663322]
[2296,1596.6447155093351,0,-2256.1560611188715]
[2297,2913.0907754407999,0,-7384.9905714241704]
[2298,3186.5170185524667,0,-64.112425718100141]
[2299,7186.1763985750149,0,-2385.0195876845942]
[2300,4927.2021185367958,0,-2745.9635431682877]
[2301,2534.8374040110057,0,385.56869327968053]
[2302,3283.9595505588336,0,-5669.4853833685402]
[2303,5346.950637751791,0,1748.2764149486427]
[2304,5371.4964926444427,0,1084.83456922242]
[2305,5325.2036799435473,0,-8.2068505169871511]
[2306,1966.2317847542633,0,4939.0353565680352]
[2307,4983.7904438751484,0,505.64052021871555]
[2308,3151.560840804289,0,195.15917030065211]
[2309,4909.7837896092387,0,-2975.7922165919426]
[2310,3278.1820923136752,0,1787.6188840738387]
[2311,7332.4339328724072,0,351.0431062691876]
[2312,4328.5649141097338,0,-779.1898849138762]
[2313,6006.3864863537929,0,-4813.2967521307273]
[2314,6537.3424087463718,0,385.5015502547862]
[2315,1386.4941552792375,0,5569.5266112704348]
[2316,8495.9021361775031,0,2001.6582403829448]
[2317,-527.60653833975721,0,405.6748588743792]
[2318,2601.1732005762219,0,-482.91065531354786]
[2319,5424.9984875411428,0,1803.4688344063784]
[2320,6524.0644388415876,0,-3134.6521929983869]
[2321,-674.58977091340876,0,2456.1315324848556]
[2322,2630.4273691336284,0,-665.84814637245165]
[2323,7553.3694320901677,0,2710.9252543647613]
[2324,2175.036526674452,0,-148.68598733076604]
[2325,9252.0942795795818,0,-1058.8085555397668]
[2326,5834.6835797119256,0,-176.85277121059869]
[2327,9153.318026666615,0,-380.21820280298107]
[2328,3720.985109478137,0,1653.2698196377946]
[2329,4598.0949040191454,0,831.93327342473503]
[2330,4450.070702518633,0,1281.6428833316336]
[2331,4232.2076326028337,0,-6105.3799519501163]
[2332,6245.2440131153699,0,-4841.7292617413341]
[2333,1561.6037435835008,0,1690.5723160162306]
[2334,6665.8854486883811,0,1499.3961765822412]
[2335,2994.2847966819754,0,372.97740575378663]
[2336,1412.9956459187924,0,-4399.3687278681009]
[2337,6462.8011961920229,0,-21.091520084174562]
[2338,5186.9054349534417,0,556.69207481568139]
[2339,2907.8629464833666,0,-2365.6408974476308]
[2340,8463.7157926967629,0,-5635.7751668806632]
[2341,6904.1481861656412,0,52.292249930874512]
[2342,4977.9792123654197,0,-2561.3259581880097]
[2343,2923.7182624242023,0,-6860.0702017417998]
[2344,4110.8870569939045,0,-4043.3212980653852]
[2345,3159.5966047371912,0,3442.4295291896615]
[2346,5974.8588005103184,0,-1090.3665981817292]
[2347,1060.9160816867077,0,757.70993378334992]
[2348,5709.0228772411292,0,-471.92709264179786]
[2349,4373.2620230700823,0,-18.961280498630654]
[2350,4419.1006037877987,0,701.76583757502249]
[2351,2886.1588050081104,0,208.51543295693119]
[2352,689.05225753684749,0,-1098.1057700667216]
[2353,5116.5568014002956,0,-535.10558863822359]
[2354,3268.8853225705816,0,2318.8431831388916]
[2355,6454.6322246998325,0,-1636.3514435180082]
[2356,5895.0523674946462,0,4091.8437535146677]
[2357,4233.8759262375343,0,2876.8097850773779]
[2358,3590.2424540244297,0,-12585.040110759493]
[2359,3801.4393014822112,0,-621.97395654016907]
[2360,4993.4704293809436,0,-1362.7883215816378]
[2361,424.00647038227555,0,-4.6187809665073676]
[2362,4060.7581324422135,0,-7849.8111417645914]
[2363,3184.0773547862218,0,-1546.4123951926108]
[2364,565.96194362568724,0,-322.44018310421649]
[2365,3255.6941653337344,0,4588.1990347258679]
[2366,6178.6604233837588,0,1746.1225777149514]
[2367,1144.5071597277388,0,1499.1962588389374]
[2368,3134.0160257139196,0,285.25260353995054]
[2369,5297.3916151797075,0,462.60445385049093]
[2370,1521.7817920899197,0,-284.9141388486949]
[2371,3427.019460326344,0,1034.4608299163026]
[2372,6069.1014888798927,0,415.93446590597273]
[2373,2178.2058216272235,0,1308.0560653541379]
[2374,2013.8931730453883,0,-1181.4518974390894]
[2375,-190.41671396295794,0,1839.7484224090624]
[2376,6285.8208101213386,0,184.09932926508336]
[2377,3342.7800536573804,0,109.83140096192517]
[2378,2022.7454525148128,0,-958.04454467180835]
[2379,2927.9258380930232,0,-2141.0947287689664]
[2380,3259.9805315011349,0,-906.65817498866727]
[2381,8026.0755364253382,0,-401.68339482943759]
[2382,2880.2644279147057,0,2912.7564446904626]
[2383,1182.8354973871135,0,650.04135685957044]
[2384,5552.0463343827541,0,752.2153632324073]
[2385,5638.8428302817156,0,-3489.1828825115326]
[2386,5595.4950066822057,0,2855.5753051172346]
[2387,3744.2794730003206,0,666.00506647809618]
[2388,6108.1497198480556,0,-1272.873962302428]
[2389,2543.530577021028,0,-8518.6220556228327]
[2390,6297.4118781633151,0,343.22658824898213]
[2391,3637.5150795785312,0,100.55867903050114]
[2392,7780.3180031962866,0,-11112.530757405051]
[2393,2122.177833575166,0,-236.89519026575445]
[2394,4770.3554531899817,0,-1600.0656232428742]
[2395,1419.0749171679086,0,-1851.1954403060899]
[2396,4947.3273462744874,0,-2885.6947140710167]
[2397,3690.8379144377959,0,145.90701496137174]
[2398,4649.9950178510144,0,2926.4355313991887]
[2399,5657.7309200562277,0,-1233.8327929393513]
[2400,8332.8050641293667,0,-435.07673307897772]
[2401,5164.2702944894809,0,134.91539024368484]
[2402,6499.522132709536,0,542.09750584992173]
[2403,7347.6613236758476,0,-1642.5700056744336]
[2404,1432.6373244998315,0,981.64255727848104]
[2405,3507.1827317977818,0,3714.2995341823034]
[2406,8317.3027450598147,0,842.04533316609297]
[2407,3953.4719608441692,0,1898.6321783847959]
[2408,3026.9372368908898,0,986.43685284795674]
[2409,7430.6273045853122,0,57.385086992088745]
[2410,7914.2062946809265,0,-800.68214255801388]
[2411,1398.5658842730993,0,-1800.0542964606743]
[2412,-589.91857845783602,0,504.7660980656791]
[2413,4940.5339798963087,0,143.21433322113018]
[2414,3094.0968566616862,0,-43.93424390066108]
[2415,3399.754164336598,0,1656.4134783052434]
[2416,4383.8283882339783,0,1851.6317988373366]
[2417,5021.510507091516,0,-401.87612181493103]
[2418,6074.4066519196176,0,343.07005147275868]
[2419,7876.9113458148186,0,-745.88192657449986]
[2420,4438.1513630355666,0,-349.61083266804474]
[2421,5934.3691657432064,0,-1267.5970447868754]
[2422,3837.9863332946352,0,-906.57076744116159]
[2423,7484.7571488416997,0,1020.5581365733616]
[2424,4730.5327330473956,0,-1982.1791757340125]
[2425,4328.2891985182987,0,-7356.4998092754358]
[2426,1426.327420374173,0,-1058.6444052798527]
[2427,5754.7750613391463,0,2454.2789362138074]
[2428,1272.4531520919106,0,2512.7050945679034]
[2429,5020.0032227923857,0,-3782.2547204821435]
[2430,3147.6132413123751,0,2255.2036583118356]
[2431,3889.377635480359,0,2661.3986587080981]
[2432,3353.292919913923,0,-580.16841688771831]
[2433,1666.8070971713591,0,-2562.2262250460512]
[2434,3671.4513200920774,0,-1667.5007382497038]
[2435,2988.3270394769615,0,-74.781999660833421]
[2436,4800.417289804318,0,188.69017550924511]
[2437,3788.5106716433156,0,62.22838682920549]
[2438,4693.1113605000837,0,753.32328155058849]
[2439,3672.674013384204,0,2725.7821629090977]
[2440,5254.6090080251543,0,-1235.22980007867]
[2441,3672.9589491946408,0,819.6993472504322]
[2442,5061.0463652168746,0,-1122.1159011802904]
[2443,11396.434951838855,0,2948.6719398225719]
[2444,6085.7901340447534,0,-518.17768234589391]
[2445,4887.236882511148,0,2906.3976274485176]
[2446,4645.6013547081393,0,33.5029123357481]
[2447,-2192.00084457712,0,887.10100369704946]
[2448,6546.3028929201209,0,-280.33580563583865]
[2449,4183.2233505789454,0,1820.8100329209797]
[2450,-692.23315751766279,0,-37.545648810256878]
[2451,2159.1374970787224,0,6655.9296883582047]
[2452,6627.3918986732042,0,-1325.3760913224869]
[2453,2989.5365436327443,0,-9320.6644787413061]
[2454,4866.1081332423337,0,165.32863727084427]
[2455,7429.2876084615455,0,73.114385529482377]
[2456,1848.7151911789965,0,-2835.6311739143498]
[2457,5531.4433032053794,0,4757.420717119493]
[2458,7732.5342064026008,0,4666.151842596757]
[2459,6715.652746698016,0,-466.4461278080621]
[2460,8395.8017845861759,0,-280.49274211034265]
[2461,5385.5403780050583,0,-1227.7274139536225]
[2462,4715.4989585881731,0,1905.3601706969334]
[2463,-419.04605408352762,0,-6181.9683231536028]
[2464,644.477094316067,0,-5639.0781611907396]
[2465,5630.119741432859,0,-7574.4583482803791]
[2466,7760.2916370259009,0,5160.4783730256913]
[2467,5360.2422132919792,0,-541.9476087747604]
[2468,5467.532784295392,0,742.91157458856208]
[2469,6043.5579211897202,0,-66.741775960714847]
[2470,1250.8247758996915,0,3444.7437788291295]
[2471,2527.9097861880959,0,-899.29830512325839]
[2472,4225.1973977222642,0,-2755.0980134053711]
[2473,1444.0948348451052,0,1896.9242277350393]
[2474,4901.1570300265903,0,1794.2487559761585]
[2475,4282.9668856578992,0,-209.14078230185777]
[2476,2930.7724242881823,0,145.5453041137603]
[2477,216.28026822546906,0,-1914.9521268942774]
[2478,5666.4255400180828,0,-687.69147221251228]
[2479,3486.8596452984148,0,-4521.9073058821841]
[2480,1547.5296934350554,0,-344.49867883513281]
[2481,7411.6335169102222,0,366.75587326628334]
[2482,9902.6200411087848,0,-1800.2373338798395]
[2483,4956.9406793938488,0,-608.43145200706988]
[2484,5474.7891053781759,0,-7680.0944408148371]
[2485,1064.9349714862788,0,-4469.5981889569002]
[2486,3696.8903040729601,0,-268.84278955473059]
[2487,5164.4354484701589,0,-6512.8532469993379]
[2488,3216.8767530568375,0,592.858239868027]
[2489,3391.4179128406795,0,-1.1911989665200027]
[2490,4490.6143553471693,0,-6938.5570027290541]
[2491,971.74268360598933,0,-1372.4467835769035]
[2492,3156.591494973814,0,-1058.1151323374877]
[2493,8359.0868724943375,0,-3777.7969044409947]
[2494,2186.0380208594802,0,-1773.1708445203437]
[2495,6907.404755464876,0,968.74759264355259]
[2496,5358.8719583448692,0,-1178.763703812524]
[2497,-85.590619906977082,0,145.57951025965329]
[2498,1545.6456985331747,0,3480.9265576549788]
[2499,5308.1781339127983,0,1074.050246968221]
[2500,-1662.2817175881539,0,2321.4179348345833]
[2501,3686.0894119025797,0,-1666.6405878552007]
[2502,8117.0119698363196,0,-7516.1319109565684]
[2503,10072.385391406831,0,-362.78313730342268]
[2504,8187.743817999889,0,10.269651795677747]
[2505,6195.6655264346718,0,-1095.1695934053641]
[2506,2733.2956119352202,0,-149.35048487205137]
[2507,10556.765600135957,0,1826.2959631409735]
[2508,7166.0549228321888,0,-8333.3159927455799]
[2509,6275.4015535740991,0,-1372.153905714956]
[2510,5706.7997586770744,0,2428.7638631188606]
[2511,8171.3354652992857,0,2804.1443428974858]
[2512,5834.0267013970306,0,-6359.2219710765012]
[2513,3669.8333580423628,0,-282.15070928596265]
[2514,6112.8864756787043,0,4289.7101252343327]
[2515,3361.8956853519944,0,-57.111289726848469]
[2516,4890.5164590966551,0,150.86867685886682]
[2517,5847.0443960989915,0,-383.97779878104308]
[2518,2868.9423408491803,0,395.26139929664043]
[2519,2275.7563007687809,0,498.0259878503544]
[2520,2772.3635534428668,0,3478.1598058411691]
[2521,8501.8494319240563,0,-1331.6861756209278]
[2522,8507.0375322372238,0,4605.7936138419318]
[2523,2247.0648444624367,0,2398.6987177628189]
[2524,5510.1831956028182,0,-955.82082778623192]
[2525,2.003305771280441,0,3107.6722987237299]
[2526,4813.1146877902684,0,2416.4847960862307]
[2527,6550.6529742733892,0,396.06247229950947]
[2528,1739.9471926639503,0,-751.48188457167066]
[2529,3982.0244447383243,0,5376.5069863464032]
[2530,6604.0786889499423,0,-4937.1237361937356]
[2531,8547.0264454225671,0,-1069.2902581842741]
[2532,2297.9049141947544,0,480.39428196833182]
[2533,7819.7017518194298,0,-643.11958833441804]
[2534,3314.6547420348197,0,3774.0171136643453]
[2535,4552.4378527316985,0,1676.0017795419103]
[2536,944.30874850246414,0,4250.9806197970283]
[2537,4410.8759495802569,0,267.37731664245734]
[2538,-1903.865308364431,0,3852.2969333942001]
[2539,6234.741178854174,0,4394.6548564971163]
[2540,5337.8092286052988,0,-4185.2239576639568]
[2541,1189.342018891984,0,855.4780876207551]
[2542,2168.7450481979522,0,5918.9417077704702]
[2543,3771.9772990618658,0,2628.868249677168]
[2544,-21.361829201322209,0,-80.496546546797376]
[2545,1839.7955652361593,0,107.74761582197139]
[2546,2965.7614418389144,0,24.966114752201097]
[2547,3258.6133675292258,0,2997.301869863134]
[2548,8159.4359653711026,0,2209.755242623829]
[2549,11774.617774635892,0,2309.2795179643126]
[2550,3546.3795186344005,0,-303.15585157296522]
[2551,2724.3163708648126,0,-2125.8410490530077]
[2552,4981.4506171948033,0,2004.0471139315739]
[2553,1719.2348891263814,0,-407.44750182167769]
[2554,3262.4866592133808,0,54.387930896994057]
[2555,306.80886446856948,0,1233.8335111022727]
[2556,2039.9810319434309,0,486.18035169732264]
[2557,1821.5132565567237,0,2935.8733606569431]
[2558,3595.3003197321596,0,1925.1699506767638]
[2559,1829.1386571166117,0,-800.65098106635674]
[2560,2396.8962189900922,0,89.332589652727179]
[2561,1239.6675988685031,0,27.744328266942016]
[2562,2849.3871320526814,0,-380.43226594926148]
[2563,5051.6096017058462,0,-5905.4009754553053]
[2564,3595.6427048897986,0,-5603.8246863240111]
[2565,5717.595708469511,0,-315.23505124830979]
[2566,3402.3905239404849,0,2250.9048412429811]
[2567,574.91094953025618,0,656.96641203123352]
[2568,3589.6287522362227,0,2551.5048652830687]
[2569,6356.8570764421638,0,-674.31108831605661]
[2570,6915.4560348020068,0,1222.3530463349998]
[2571,7129.155803202374,0,-345.30894095568027]
[2572,7176.3844474363095,0,2487.8325541339741]
[2573,5012.9277147093126,0,4641.6637603223171]
[2574,1411.6094512549525,0,3635.1098242415856]
[2575,5417.4521462619714,0,-4423.1512862793297]
[2576,6078.5530237550465,0,-583.58904654090043]
[2577,5772.1631316887579,0,-349.65335188247349]
[2578,1433.4513203369165,0,-4641.5301564056826]
[2579,4020.7854821077694,0,-745.47439316564862]
[2580,5435.6849708734489,0,-545.16724844993632]
[2581,2808.8912139309118,0,132.39709922175234]
[2582,8145.355230475705,0,-521.46782185113364]
[2583,314.30507514370629,0,461.92549634814964]
[2584,6457.5536626279727,0,-939.37254162461329]
[2585,8075.1044625809827,0,1349.7419548988325]
[2586,7276.398252953546,0,424.65244975082391]
[2587,317.30212214537005,0,144.0496476717191]
[2588,4370.5922971058644,0,-667.04204115357334]
[2589,6137.563222062231,0,1965.4827970974345]
[2590,5555.3433971338518,0,-3221.1830263760794]
[2591,3337.7240393549787,0,1451.3747011774817]
[2592,4478.7072423852678,0,-182.58937611978638]
[2593,1589.6607761901637,0,-387.5211143794491]
[2594,7936.2383059965587,0,3649.1678367590835]
[2595,3120.3571478068907,0,-232.99950153221278]
[2596,5041.1860623986586,0,-406.70844241309845]
[2597,4031.0262495121451,0,82.4403522833816]
[2598,6143.0903071339671,0,-2408.9756517268602]
[2599,9358.101542117909,0,1878.9393155982068]
[2600,7630.1150188100873,0,-3341.0181424905377]
[2601,5282.7950063397684,0,387.59765082938986]
[2602,6859.6098989648635,0,-364.94149394636435]
[2603,6651.3042173242256,0,6142.9197049013583]
[2604,6107.4009125040657,0,2522.5992534621514]
[2605,-166.60923316737677,0,-616.68572985311118]
[2606,7759.8443201700002,0,423.70532643874418]
[2607,7367.2087379072145,0,116.43308884528332]
[2608,5163.3170765135283,0,1884.3718428178236]
[2609,6521.8662960261181,0,3285.6855589904444]
[2610,3570.4667162247115,0,-3766.7813248980879]
[2611,5520.3151736443906,0,188.07706825883798]
[2612,3593.1194788390503,0,190.89276804270594]
[2613,5802.2776919013741,0,-1.6229330354999545]
[2614,6808.6941235663871,0,-1726.9362444338383]
[2615,4182.661589555365,0,646.16354636517758]
[2616,-1461.1090136630048,0,-9089.9999466555364]
[2617,7919.9265285135716,0,2756.0488680576927]
[2618,3228.6917492690936,0,483.26476266651292]
[2619,6199.6680406015039,0,-793.92010806784367]
[2620,2727.1057900749729,0,4511.8131404945425]
[2621,-4062.1138957262347,0,296.72438675188164]
[2622,10527.233449354686,0,1025.568261051669]
[2623,5520.4162129391789,0,558.49575543661751]
[2624,991.18382185275618,0,-3011.1537397128845]
[2625,5099.1476188539164,0,2989.2065762148013]
[2626,6825.5702219239256,0,929.14347480402228]
[2627,9018.4721364859433,0,571.61163379607513]
[2628,2504.4583904043457,0,3447.2745632756787]
[2629,6142.3393236743141,0,-93.503575446332064]
[2630,6549.8847224756928,0,1111.9647105063902]
[2631,1678.4708053025063,0,-591.74783258215177]
[2632,7745.170911154989,0,1078.8166552578703]
[2633,6770.5424586641784,0,4868.7008576722137]
[2634,501.12050471560957,0,1421.224485630883]
[2635,8306.9425229661756,0,196.42188083616736]
[2636,7085.1334537595194,0,5717.4815637714373]
[2637,4805.3854313185539,0,-813.07724074645353]
[2638,5988.6715516456898,0,4908.8613195794369]
[2639,7394.8072013640167,0,2251.0945318653862]
[2640,11386.380446331332,0,5270.1432499846705]
[2641,7176.2023075923698,0,3545.5416654462751]
[2642,5870.4801190431363,0,-222.85004860512035]
[2643,5986.0822663280578,0,-356.55553250329211]
[2644,8073.2884870753724,0,-4291.8473033293603]
[2645,4132.8287872788114,0,2228.3281991912777]
[2646,8047.0314120640451,0,1908.8777548372564]
[2647,7220.0828783370498,0,-127.36267661441789]
[2648,4872.181012205463,0,110.70062377558845]
[2649,4980.0556489138171,0,-267.63380575501793]
[2650,7202.5367771589345,0,-925.90076049026038]
[2651,4682.382223029228,0,-511.72602777130862]
[2652,2018.9030342275903,0,749.67761710181787]
[2653,9030.6436340566142,0,1291.927616408082]
[2654,4321.4144501378996,0,-381.11303598988934]
[2655,4302.1731112920879,0,-3851.3643425049968]
[2656,6819.9316994310502,0,2841.4873390746543]
[2657,6637.5425708840867,0,1497.812655284021]
[2658,2584.339704186084,0,6175.6495407969196]
[2659,3991.6602753775451,0,3584.3076857873066]
[2660,8530.8772294873761,0,5427.6654806557544]
[2661,7763.4042883757238,0,192.627411574814]
[2662,2675.5179118399019,0,1049.4210181067419]
[2663,4578.7196155373585,0,-178.25814205556716]
[2664,-162.08120932275676,0,2415.2827998703456]
[2665,4916.9423585399636,0,-2156.2020802127895]
[2666,3660.8045419351083,0,628.6378230287072]
[2667,7315.0327638376675,0,-8.3266687720972001]
[2668,747.86351564299696,0,-1957.8280966197633]
[2669,4791.7686259820448,0,259.56993939748043]
[2670,4549.994124967996,0,1524.5295945745268]
[2671,5988.0931738391391,0,2487.8342230415396]
[2672,6448.2777068874302,0,-4848.4562835310735]
[2673,8523.5536736864196,0,-1557.5335377425263]
[2674,10172.26319325375,0,193.17898795009535]
[2675,7723.2964249027664,0,2006.3278452066984]
[2676,8192.3227241307904,0,94.331755187636006]
[2677,4254.7224416160961,0,-3634.3098438569859]
[2678,10678.82543080307,0,1433.2458757629502]
[2679,11963.969190519438,0,-2485.9163581248972]
[2680,5653.8860430164041,0,-3902.3924359413677]
[2681,4732.224851520361,0,-2635.6556841824568]
[2682,1468.9472401439068,0,818.03118226505467]
[2683,6646.1909256325107,0,2029.9974156117971]
[2684,5074.3498357165827,0,5883.001433417141]
[2685,8414.736202624601,0,7005.6962448631602]
[2686,1743.4869541173177,0,743.2836633324132]
[2687,5747.471518949922,0,-531.63150537335514]
[2688,6369.36095262042,0,4125.664334506092]
[2689,9017.5795082929653,0,-275.48067289791857]
[2690,3496.9756143710556,0,507.66984392172969]
[2691,1044.2396147959917,0,-201.20623695596748]
[2692,7754.2256996549349,0,-926.57122395413546]
[2693,6796.2632127233201,0,7229.5964200205708]
[2694,5680.0491499981135,0,220.14766386819539]
[2695,2582.6725297596122,0,3636.2494610295253]
[2696,8728.4707615624829,0,1363.6002309938699]
[2697,4971.0664487892736,0,770.301807361584]
[2698,5481.4723533114347,0,2226.3532984526692]
[2699,5139.4612886756804,0,-691.77718001820358]
[2700,7203.292004093877,0,87.549080227935534]
[2701,-288.65238316434989,0,-1392.7900647968872]
[2702,7001.3966458084979,0,373.32274440425005]
[2703,6136.2298173201616,0,4545.5887933626473]
[2704,8408.2916377696183,0,3522.426323470776]
[2705,9251.0832033422867,0,38.524544054104304]
[2706,10158.638593514417,0,-2169.0721926132824]
[2707,3336.7515165245559,0,1781.2090312585772]
[2708,4022.949566147774,0,-820.24602357669323]
[2709,4171.2086420710057,0,2368.8481763544814]
[2710,4370.2930665380072,0,-2071.6755195584965]
[2711,7040.2311612072854,0,685.42627929137257]
[2712,7505.952783785413,0,-6540.8741152606071]
[2713,7357.8744461138613,0,-25.049874331861869]
[2714,7454.5384236235404,0,842.60723490731391]
[2715,5149.2203326980125,0,-1847.1402922521127]
[2716,6978.8089862545694,0,3689.8535749555567]
[2717,7242.2911531819136,0,3872.0767430551018]
[2718,7838.9937799996305,0,104.04649701406645]
[2719,3161.9076738337776,0,429.50518802436699]
[2720,4919.0213839431999,0,-925.38748071107136]
[2721,8375.6531764855335,0,-779.3305893419307]
[2722,3716.2991254845019,0,48.910998693939604]
[2723,3626.9713126542038,0,2185.8388277142858]
[2724,8328.8097817945527,0,-198.22416560221785]
[2725,3794.4234437360174,0,1444.6259422627256]
[2726,6226.3223772128549,0,-4899.8770518786732]
[2727,3113.5357741927041,0,365.94462262711801]
[2728,5198.5348831925539,0,-1994.6053443153232]
[2729,5109.6910435342361,0,-175.75812824371923]
[2730,2711.9984563799976,0,-7435.7261010574948]
[2731,7792.1879773765513,0,590.41170502215141]
[2732,2981.0391380037831,0,334.4380353482718]
[2733,4946.1851864671708,0,-4003.820951721113]
[2734,3659.9869934937246,0,-328.60049804678704]
[2735,1362.1279510576453,0,-86.895212918601388]
[2736,459.60686719798105,0,-497.14547252798678]
[2737,3245.078418352412,0,-193.16572634163583]
[2738,6401.3333042290196,0,-4116.9663828561743]
[2739,5857.7530809590035,0,3583.591831757888]
[2740,-199.16555073024156,0,99.660816834697386]
[2741,5161.5735404612751,0,-315.42177005968603]
[2742,-1588.2487500203179,0,2476.4910396096047]
[2743,5846.5413178705639,0,730.51211844779743]
[2744,6365.3113875524223,0,3708.0148472889678]
[2745,5819.0911462418444,0,499.44067416599052]
[2746,6288.686530007818,0,-867.05803636661904]
[2747,5350.2717031691809,0,-1122.8036759206179]
[2748,6713.8057158293195,0,1475.1527537866327]
[2749,4766.7566237264673,0,1148.8173636842723]
[2750,4863.1159360534875,0,2746.3442379238863]
[2751,4978.3303085838807,0,292.68934868016794]
[2752,6806.9373683286394,0,1022.8548924184594]
[2753,3557.6760272363085,0,442.61555637468609]
[2754,3605.2260645498973,0,-985.34074288454099]
[2755,3227.9032748001946,0,1319.3894930463784]
[2756,6085.9546675525016,0,1369.4474690105728]
[2757,7851.1274583856239,0,3898.0416281663288]
[2758,7021.1936012873139,0,1265.2308167774188]
[2759,3766.0371760731305,0,-6551.154963928353]
[2760,6213.4459838712646,0,4198.8011505551876]
[2761,7961.156579602286,0,-3465.4172840478636]
[2762,8542.2762906799326,0,-358.7697456148195]
[2763,596.84871544854991,0,245.16877335374153]
[2764,5867.9364090756708,0,-4408.8849950501353]
[2765,1764.5543497721994,0,-3400.2063598596969]
[2766,3156.7679564617674,0,-399.96005967279262]
[2767,6095.6368907550695,0,2406.1771235796864]
[2768,5123.2650461387484,0,1639.6268192002644]
[2769,10470.078438162551,0,3552.6162661722401]
[2770,4975.5384005933911,0,-8777.8748420090287]
[2771,-878.11148931860419,0,-735.34343824932103]
[2772,7574.1460451060975,0,233.48182942419803]
[2773,3193.1956195058247,0,3211.3481869518646]
[2774,-982.84780717655667,0,-532.08563437486475]
[2775,6816.7900541485669,0,-5234.8839494789281]
[2776,4923.3437117953526,0,780.56361282076898]
[2777,5076.9103730912539,0,3454.5415233996391]
[2778,7185.4411852068752,0,2554.3123122137786]
[2779,3452.3020540160096,0,4098.0500137272675]
[2780,7867.1955903436183,0,1132.6084328537938]
[2781,5459.5917320544322,0,-83.514323183269568]
[2782,2586.0090411131778,0,24.866936793494069]
[2783,10279.209809632323,0,-4827.6836545273909]
[2784,5646.2266384416753,0,3822.7259254054125]
[2785,5312.4676321490715,0,14.729840252427872]
[2786,7272.7495092891031,0,3568.334826835373]
[2787,12730.351116387497,0,-1648.9991157711186]
[2788,529.93942155143566,0,4107.511585627366]
[2789,2607.7676026859572,0,40.575608886499928]
[2790,6604.4888268376035,0,1724.177964201135]
[2791,4102.9510523079098,0,-1841.2009382987403]
[2792,3370.2633371422644,0,13.783872434122843]
[2793,5750.9641543015505,0,383.59878339405816]
[2794,9519.6525076252874,0,592.38200599828019]
[2795,4427.429137655392,0,-8386.0571886669386]
[2796,8144.909315652043,0,241.14208394935562]
[2797,2072.1395544343341,0,1252.4733334003899]
[2798,7392.5595817675448,0,391.96792905657082]
[2799,10647.386861891926,0,516.39051374965607]
[2800,804.49338648096841,0,-1209.5746568679617]
[2801,4730.7168490093609,0,-625.60382101801156]
[2802,4037.8906400299638,0,2370.382987387693]
[2803,7782.683041441358,0,-163.99266284195846]
[2804,4181.8234567814789,0,3382.0299419180465]
[2805,2685.7440583963648,0,3322.2544977763159]
[2806,4700.927560695096,0,-9.7202746965594997]
[2807,9353.6053722698125,0,626.64561451667328]
[2808,8413.2650656995138,0,86.589938830744615]
[2809,1327.284112496684,0,6062.9975390697546]
[2810,5038.2773081141604,0,151.39540926084442]
[2811,8523.5831700337931,0,387.71531869127631]
[2812,-896.33598167476032,0,2867.3509574218051]
[2813,1238.3554194286689,0,-262.72940522981503]
[2814,9255.927484508622,0,938.37626345804529]
[2815,6363.2735941992996,0,1422.2912232308909]
[2816,8991.076596603767,0,-180.02758470736435]
[2817,-1446.8486420717613,0,379.16655719450858]
[2818,4043.0041539679846,0,53.10018869347244]
[2819,6231.5206827674301,0,-1.5782116494973122]
[2820,287.40918698450116,0,99.361610859782758]
[2821,7083.6898893636435,0,1166.5025992979181]
[2822,4684.5114119840764,0,-60.205171372578604]
[2823,11396.145710067171,0,-2213.0263431466378]
[2824,7525.6124472467664,0,-299.79509200883814]
[2825,5360.6835337876846,0,-264.02029951642237]
[2826,6746.8764383794869,0,351.53720067907398]
[2827,6484.6187749769797,0,-1213.0230130507623]
[2828,4827.039335053164,0,3298.2640505665868]
[2829,7298.7140023834299,0,-999.23593085317964]
[2830,-1135.894710155482,0,54.172895983352944]
[2831,3047.3331931915909,0,695.07778294466618]
[2832,5920.7951354965689,0,-1034.9477955144193]
[2833,330.10213686678793,0,836.84167415324714]
[2834,2638.3828870371885,0,-10860.752917312995]
[2835,5126.2651565963506,0,1949.9867741635624]
[2836,1489.3594082440491,0,901.77590565831281]
[2837,-532.83576899969785,0,315.7889714859777]
[2838,11278.879264765628,0,6161.8086681175637]
[2839,6200.7336491922269,0,3707.120950215422]
[2840,5292.0636675291626,0,286.74875945425782]
[2841,3483.6964376392152,0,-1279.4461122263572]
[2842,11388.184201160304,0,-1514.3285231138232]
[2843,4200.3658256304661,0,7660.1620401426981]
[2844,7462.3937704469517,0,-1500.7481302571045]
[2845,605.59679538973148,0,-5919.525042289024]
[2846,8011.2416732276097,0,901.8935170117428]
[2847,8057.1771508955317,0,-386.98597274403869]
[2848,6934.6744681977725,0,-324.07710195545161]
[2849,2519.9972756020343,0,1224.4006420674227]
[2850,10468.156807413714,0,5911.9646001347191]
[2851,8219.6013400191878,0,2623.2226863852416]
[2852,8826.1761538631818,0,-6335.1904655340904]
[2853,4235.8487658683462,0,1752.2983651332697]
[2854,8038.0394625768613,0,275.07434453752728]
[2855,8661.9351894615629,0,1604.9787161819022]
[2856,5975.0027457262768,0,2890.8433785490515]
[2857,4126.3855864923917,0,-430.79964584347084]
[2858,7914.4758893211765,0,93.547188538367607]
[2859,5409.8053666461965,0,-801.62890437880492]
[2860,6026.7683824966807,0,-750.98385294808213]
[2861,2455.8696892643875,0,541.46168641941597]
[2862,5646.9699342268132,0,-4010.117193052301]
[2863,6070.4463615585119,0,-8485.4685439144869]
[2864,10028.709773455021,0,2447.4810942810909]
[2865,2350.1653343197986,0,6294.9023078475311]
[2866,5961.7060746326124,0,-2585.1670398720435]
[2867,5257.6210543035158,0,311.14351844585877]
[2868,8351.859856984569,0,220.59328827315986]
[2869,-976.19762316919957,0,-2163.4227256199042]
[2870,15223.944390684095,0,-443.64263781834433]
[2871,237.99277634475914,0,2443.0568449417624]
[2872,608.44655471149736,0,2766.9585461542802]
[2873,4732.9317439005026,0,1823.9226788214082]
[2874,7494.0486002370626,0,1303.7939004302616]
[2875,5097.0965696523344,0,2064.2864343575229]
[2876,4839.6211209159555,0,1845.494471416077]
[2877,6224.4292663315864,0,348.14943436584582]
[2878,2802.6593574024855,0,-979.34032114275351]
[2879,7996.2783250851062,0,-612.13138458477408]
[2880,4449.1881905441378,0,-1958.9830296056145]
[2881,5921.546689498643,0,3480.5614089285136]
[2882,5143.5564315567708,0,-765.09259454722758]
[2883,7864.8315921658304,0,-4766.2612100553861]
[2884,7828.1646150697306,0,-2092.9442295055769]
[2885,8057.2821256918305,0,-360.85870262187404]
[2886,6368.9129894961643,0,-448.57890940805339]
[2887,3098.9821194919414,0,-1132.762744760264]
[2888,4394.7344477609713,0,3706.3302288060922]
[2889,8821.9265457068759,0,2098.0590099664028]
[2890,7023.6163900715919,0,464.16062492537139]
[2891,9526.4572672418835,0,439.04380626665153]
[2892,9653.4782443390086,0,-8189.8914669148944]
[2893,7303.0903832232307,0,4139.4303725888058]
[2894,3277.5437487830905,0,-1656.0893360530347]
[2895,2358.2797106403332,0,3984.1661380701698]
[2896,7903.1486869157789,0,8.871584202744673]
[2897,7396.3424141265914,0,-14.124224380740602]
[2898,1664.4431440690375,0,2962.8781911624615]
[2899,4777.6225542204747,0,2368.2577543896364]
[2900,10250.958045264906,0,-2294.637789781586]
[2901,10125.575000700774,0,-250.34631437865397]
[2902,5979.6616391652396,0,-13201.929996497305]
[2903,1544.9067540057579,0,703.24814392521716]
[2904,6552.8321159543502,0,3307.7814576298911]
[2905,9976.6570599848437,0,-2228.3292255778551]
[2906,5570.4482855480146,0,-4429.4410380573672]
[2907,7389.6127900767042,0,3651.9081253518589]
[2908,-1238.1225741259302,0,389.51420444999462]
[2909,4537.8842978341781,0,1654.1385325419596]
[2910,3421.1774896587208,0,-92.354304650739962]
[2911,7811.7055161679655,0,166.48021663015578]
[2912,9533.617539856943,0,873.30315544174869]
[2913,8221.1110961714348,0,97.23961044996733]
[2914,9047.8843709059729,0,-5519.3353537924422]
[2915,7257.8687152783159,0,1076.62522264011]
[2916,5836.6235571363013,0,2665.8420981123345]
[2917,4421.8790203286308,0,468.01206330834333]
[2918,10472.660141424896,0,-451.36429854187008]
[2919,4913.4065160231958,0,341.30438975435334]
[2920,3589.2061166079861,0,-3338.3858176772615]
[2921,7259.9687227004142,0,4084.5437364005752]
[2922,5951.4719128630268,0,1466.04060016726]
[2923,4776.846577095811,0,-1939.242856559451]
[2924,4415.8858380035035,0,95.265747342143385]
[2925,8661.5578390587089,0,-3130.4264616350474]
[2926,1935.3100667318217,0,1107.0853214262365]
[2927,6508.6893091331558,0,-343.94052222491854]
[2928,6559.6854449042849,0,1602.4773779265613]
[2929,10688.605660580917,0,-2144.7430513739041]
[2930,8387.9909541937141,0,-35.863142642175532]
[2931,2242.8468750550965,0,1884.1906411966183]
[2932,-3106.069046773302,0,577.83845306157855]
[2933,3672.4413090087064,0,249.87501828985592]
[2934,2822.2137350525236,0,-72.643676916905989]
[2935,6066.7210860546638,0,209.07886875627011]
[2936,2046.3526851111003,0,-2695.4512024443629]
[2937,8072.6572897293718,0,-11634.366136382636]
[2938,8126.5643205694678,0,1875.0320237557876]
[2939,5651.4372577030708,0,-7077.7440782988606]
[2940,7946.1682585605322,0,-571.62950551176311]
[2941,9408.8288061357271,0,267.12412342066693]
[2942,5822.3013633352348,0,-1573.4739544826868]
[2943,7256.4176937371367,0,3467.6818134327805]
[2944,4670.9914677288807,0,2659.1812260841489]
[2945,2734.8121426409898,0,-198.38659196974533]
[2946,1344.8279695198719,0,-731.80253333345911]
[2947,8455.9646738868705,0,-1033.6138395346568]
[2948,9153.6095065568206,0,-243.46738566219133]
[2949,230.3939886143321,0,2231.2270194845682]
[2950,9926.4716476750382,0,9440.8117515183676]
[2951,4513.504356651636,0,-567.96719579909973]
[2952,7596.4886554492314,0,2671.21511903392]
[2953,5039.5521525334534,0,-689.10977984481372]
[2954,3675.3103780759038,0,396.37653021608293]
[2955,4718.3268407656788,0,-2865.5074753472195]
[2956,3011.1077557575654,0,273.34835447769274]
[2957,4417.3903892010003,0,-609.37021433288032]
[2958,5027.843872090546,0,-56.212944529021819]
[2959,5079.1766162255381,0,-2238.5525360081656]
[2960,11772.758546503177,0,-3595.0739851795538]
[2961,8126.5968201763499,0,775.74481868992518]
[2962,7146.2883083743491,0,3902.8565969375809]
[2963,6616.3951976220751,0,593.39673211230286]
[2964,8263.1266788908615,0,772.86672377119066]
[2965,7763.9365926162536,0,782.7565697682461]
[2966,2031.2513252544627,0,-1958.4552700762692]
[2967,4762.278072955175,0,2900.1457284552907]
[2968,6580.4727764275776,0,-2545.1108394038215]
[2969,6661.7627219050137,0,3015.1843665891556]
[2970,11764.547072338089,0,-6625.8573666369366]
[2971,3506.7890411047174,0,556.48470956486722]
[2972,7217.1020409131497,0,-1791.0222253588274]
[2973,8303.3628583309946,0,-544.54425551078566]
[2974,6198.9276151853974,0,-997.99089840713896]
[2975,7097.9603716938364,0,963.08465058730917]
[2976,8907.2042452688147,0,1380.1417400944047]
[2977,7783.348526153819,0,597.38410667382027]
[2978,4746.6587405578066,0,1180.0895644442871]
[2979,747.17459057101701,0,-1985.0119528634129]
[2980,10121.233396161892,0,31.719660128372368]
[2981,6025.5407487330604,0,281.7671996862087]
[2982,4891.9344842565242,0,5248.6244243138244]
[2983,5229.0608086529392,0,-5244.1181376213081]
[2984,3745.7709647355209,0,1017.2195127990311]
[2985,5388.6354510965666,0,-178.77274228875015]
[2986,8581.9078886714105,0,-487.47747317975552]
[2987,4881.5737240771923,0,3324.0644923504788]
[2988,6032.8868318651985,0,-1133.492388679653]
[2989,4649.3876198186936,0,1163.2454793473212]
[2990,6285.4499901865338,0,-2323.2573384169882]
[2991,5159.4857897505144,0,-2979.3959035723087]
[2992,8058.945834147592,0,-4467.712659528338]
[2993,10690.457738449446,0,-10193.22486455678]
[2994,5158.1128774903154,0,-2327.0617944862656]
[2995,914.12710043504421,0,-2594.4665457147303]
[2996,3795.4335829546926,0,-948.10322716793667]
[2997,573.03347142848315,0,1705.9832644759526]
[2998,6929.0574190207017,0,3614.0616793338704]
[2999,2327.6355099065731,0,4584.3037054046654]
[3000,767.2715397174552,0,141.12589745552484]
[3001,5601.2244053819159,0,-7180.1943977747715]
[3002,2150.7118381782384,0,504.28980107656179]
[3003,5108.6694577180388,0,67.700056324197504]
[3004,4249.484426733794,0,3607.9496857618687]
[3005,3651.9479361497183,0,1623.1709266790717]
[3006,3320.4348460146775,0,-1250.3236212444499]
[3007,11436.125579925259,0,4933.8347907740972]
[3008,6245.6981272119638,0,-12377.21824484141]
[3009,7793.6757649387455,0,-5922.0985253665131]
[3010,5145.8786206955856,0,1797.0596487131584]
[3011,5792.6831389799345,0,1767.8866879934822]
[3012,6692.3380890206236,0,-125.99375921820554]
[3013,4281.7480783376213,0,-927.88842873816554]
[3014,9012.4396961538187,0,2630.4009884659795]
[3015,6303.8210183008659,0,3333.1700066471676]
[3016,4724.5306764160832,0,-2442.150290281917]
[3017,10022.944587271926,0,1297.3580265617582]
[3018,5477.5349054433727,0,-401.49111198064213]
[3019,4305.2044321501598,0,-498.42614645628447]
[3020,8594.9598036895404,0,-4710.2668042162786]
[3021,6643.5510563161006,0,-611.70779409531951]
[3022,4639.3961930137648,0,-324.08352806493446]
[3023,7312.9888275490757,0,4096.0185803872446]
[3024,3016.562862512264,0,3012.4597355852902]
[3025,6366.6644757903559,0,-2373.3883910771883]
[3026,8027.5421143692638,0,-8806.5584897088083]
[3027,6725.6085875372482,0,-897.80155742024112]
[3028,5801.2813316418342,0,-9391.1545988838989]
[3029,6659.1626757387603,0,-1193.3328856126561]
[3030,4784.7723308302775,0,-253.58820355423694]
[3031,5415.0820911411865,0,-180.79959035324941]
[3032,8302.0327443743881,0,2214.7998835066701]
[3033,2083.8157613651306,0,942.8244445887085]
[3034,11445.580685876752,0,2848.1567215540499]
[3035,1771.7869084117096,0,5431.8675855819201]
[3036,8526.6748278313171,0,-231.5112351743083]
[3037,5842.0944717924704,0,955.34260050549676]
[3038,4934.6036594033321,0,238.02729728079402]
[3039,5500.3926990981836,0,2757.5393606801854]
[3040,5851.7524140793739,0,2247.9110011736689]
[3041,6411.4618915229112,0,984.47866835197419]
[3042,6883.5030130177201,0,174.87786042339437]
[3043,6707.6479266399638,0,-143.41583679608377]
[3044,7717.8500056240155,0,4434.8537855790955]
[3045,5560.4596724907242,0,-5989.2240463422377]
[3046,-258.00166315939947,0,-5469.5607672876777]
[3047,4618.8631335518567,0,3606.5091280877641]
[3048,327.95442469104927,0,277.34744970719578]
[3049,5436.5628170803811,0,1893.2964786294071]
[3050,1939.6984384505408,0,586.96046438451526]
[3051,3428.6405477594039,0,-388.43590669169168]
[3052,13774.756963570846,0,-7336.2549399718018]
[3053,2196.9237055513472,0,-2349.6693548988173]
[3054,7208.3662772782618,0,4094.3167065944785]
[3055,7552.9663779675502,0,267.17069054337401]
[3056,4783.2798589508839,0,-822.46297562092752]
[3057,4405.6554492914747,0,1041.3840133502667]
[3058,7306.4846970190147,0,1306.5931578481816]
[3059,1265.2598941319422,0,-327.92244894387892]
[3060,6761.1881770393766,0,-754.27910194914421]
[3061,6129.8091587090858,0,3473.8704124739606]
[3062,3766.0878014653163,0,-2691.0656799960225]
[3063,6705.0888166879595,0,-56.214282751022346]
[3064,7179.090198512059,0,1386.0800693375463]
[3065,7423.14129473909,0,180.57063562220961]
[3066,7284.8204395888297,0,-1252.1632146662378]
[3067,4009.5808882918782,0,4579.2851284075859]
[3068,5669.0255167280902,0,-2533.730542360147]
[3069,9128.1910944100709,0,273.85362500332911]
[3070,8828.8290661263563,0,2609.5091442396488]
[3071,5954.5132533089145,0,3483.1102579446328]
[3072,9871.1349480647314,0,-1311.1026193324624]
[3073,6519.7240818217961,0,-112.58450845881035]
[3074,5532.8315519491071,0,-55.276557225500781]
[3075,9441.989028314365,0,576.22239238866371]
[3076,13918.510188710936,0,2156.5131265425389]
[3077,7966.9343439427703,0,1076.4051556285683]
[3078,4707.8504395456075,0,66.505687113867026]
[3079,9023.1779664479709,0,3438.4647511809071]
[3080,6129.942202661874,0,3535.4836179176141]
[3081,3912.3956050315564,0,-73.34978346465509]
[3082,7618.9329458675202,0,-8369.0102628824206]
[3083,6760.2711531345349,0,-7252.5370670623515]
[3084,6704.9237711016813,0,-1213.3605242939973]
[3085,8928.6626103523267,0,2086.9061071571723]
[3086,8417.7581268787035,0,335.64969781402135]
[3087,5722.2739467602032,0,-1451.5217467835068]
[3088,5839.0618001060993,0,2070.0122867821283]
[3089,9691.8592539766705,0,-1870.2430521459692]
[3090,3699.6191936480027,0,-1748.0618802575993]
[3091,10948.254571788788,0,4216.2061249644057]
[3092,9032.2398765935759,0,-3178.6397106889544]
[3093,6183.2756319167474,0,-1781.1874736998982]
[3094,8881.1576923071716,0,-326.78921330047888]
[3095,7441.3379879324111,0,-4510.8608847938785]
[3096,8277.79836520957,0,489.92381058353271]
[3097,5290.5606875089161,0,-562.14206224562622]
[3098,9085.1647821088718,0,55.217899165236176]
[3099,4549.2681474217607,0,2286.1026866171687]
[3100,4131.1462131660364,0,57.396165258002377]
[3101,9216.8836485027823,0,293.88586155802199]
[3102,2268.2934758590318,0,-9805.0418274376862]
[3103,-1359.0228840145448,0,1523.9806246062708]
[3104,7450.3935001115951,0,-6659.8818095071683]
[3105,8250.9907405991326,0,-4722.4761513720368]
[3106,311.14682927858416,0,524.0122309578054]
[3107,3882.0953713505496,0,51.936457332585462]
[3108,4290.1063859164524,0,-1893.1725640341674]
[3109,7524.5855876477963,0,635.59789094315249]
[3110,5539.6608970505076,0,410.83604034075216]
[3111,878.86305823766077,0,1825.5941617702481]
[3112,8722.2497503562299,0,3461.8836499990266]
[3113,6216.2994419947208,0,4541.36969671727]
[3114,3715.1739783785783,0,2227.557893042358]
[3115,621.10069309151788,0,-90.174743897279498]
[3116,4515.6056125465038,0,3078.5027720540165]
[3117,8021.6056745501555,0,2363.7147867633139]
[3118,6280.3520860062208,0,4139.8556894095582]
[3119,1982.1015293353953,0,408.4079137761463]
[3120,9884.9547945734575,0,374.28527569874768]
[3121,7058.7220893722761,0,1105.0357907882365]
[3122,6485.3703859759726,0,-192.46699579163828]
[3123,6142.2625520922102,0,210.96330223400537]
[3124,10067.670806948952,0,1338.2743288611289]
[3125,6006.0373981597595,0,3552.6616332910635]
[3126,6048.4487305254461,0,-2120.2481789703093]
[3127,10577.020420213797,0,958.59287218693123]
[3128,8564.4274946138066,0,260.28535083660563]
[3129,6450.0904813486513,0,-286.52524091095171]
[3130,5628.4375092114597,0,-956.74196089156567]
[3131,5341.8776770221457,0,1390.9017478892831]
[3132,431.00603880398575,0,2272.813155722371]
[3133,3467.2790629321908,0,1543.2276883089255]
[3134,5557.5336761437657,0,2085.1128867528209]
[3135,8120.2069283059718,0,1207.3262958875798]
[3136,9254.8473583201157,0,-1337.8440403229481]
[3137,5252.8770182850667,0,1011.0558888244591]
[3138,7866.2999194496351,0,-687.96393570890564]
[3139,9339.1505075091991,0,2659.2638089131651]
[3140,10612.887163296111,0,1400.8257564220844]
[3141,7778.0353801900537,0,-859.12981987035471]
[3142,7499.9120292262633,0,2842.2124794164461]
[3143,-41.20352470588184,0,1105.1588244299242]
[3144,1223.6469613203003,0,1961.9360183938179]
[3145,-155.96934759628704,0,2507.1332851906477]
[3146,4516.5479390709243,0,-6385.2124365452155]
[3147,9164.0738437223808,0,561.49210413810408]
[3148,5946.7734761821885,0,-964.06801727138463]
[3149,7693.6420279039503,0,445.76890897112503]
[3150,6735.4992094591707,0,2266.0335330084877]
[3151,7957.1649923258465,0,4390.6233108726319]
[3152,8742.6397871159807,0,3197.7378564867145]
[3153,4636.9357882524864,0,-1162.7019408683209]
[3154,9254.1038783354525,0,2859.4903519110203]
[3155,9989.7956664851135,0,-842.24186028270753]
[3156,2026.5779941383125,0,964.12631725125311]
[3157,7758.1770159899615,0,1262.2709062402364]
[3158,1380.3188280780469,0,73.11166431682642]
[3159,9239.2485091295166,0,1250.2468108360783]
[3160,2113.5366511423831,0,-4554.8695973506892]
[3161,2969.3177196190131,0,-3323.5869189167661]
[3162,5744.9443898696427,0,-4442.7463986343928]
[3163,8674.8901486633004,0,1201.5328507043291]
[3164,7232.9840761486221,0,-2125.3301247072354]
[3165,5859.2283686760493,0,1781.6324408471246]
[3166,5218.5777125214372,0,2668.7582830418633]
[3167,5791.728819756042,0,-68.036078902054641]
[3168,7722.0894621934531,0,-1901.9151745979507]
[3169,7103.5701909758982,0,321.76533136977059]
[3170,10821.652755704512,0,2089.9308978514546]
[3171,5857.056982434623,0,-2080.3415086713753]
[3172,6530.3233731360006,0,-632.27421765041561]
[3173,10226.691946287638,0,1025.6893038064095]
[3174,3259.3957089561563,0,-1245.3866674016201]
[3175,8208.3973339774675,0,3661.339261968521]
[3176,10098.099584840127,0,1091.4585729818177]
[3177,1924.2309088755246,0,788.62585854555005]
[3178,4795.5839486873265,0,-214.89862198717228]
[3179,4793.3695859733471,0,6.2072563517802326]
[3180,8676.1309414965217,0,-2000.4387278339157]
[3181,5107.7815433389223,0,344.72964825189905]
[3182,3245.5842028641073,0,995.29238366056154]
[3183,8001.7090630316325,0,2709.5436223436636]
[3184,4626.8785734864678,0,46.698586910811798]
[3185,4814.4730626312939,0,-2026.7895716527294]
[3186,6813.3030579865654,0,-1669.3657867881739]
[3187,623.55150882403132,0,-3484.7640578703895]
[3188,5893.8480142138324,0,-3068.1498077918923]
[3189,4193.9158500072426,0,-2517.429228639633]
[3190,2414.1963837933058,0,-8021.6570100391627]
[3191,7481.1961619879366,0,728.66195213312062]
[3192,8355.8020257968528,0,646.18092694620964]
[3193,6927.2926978002861,0,397.12257516728351]
[3194,6505.505789163366,0,-806.81845468514268]
[3195,312.47346811236145,0,-2832.3697950377477]
[3196,1272.2248985811837,0,1384.3739649610015]
[3197,7116.9388101056393,0,1048.1398063573276]
[3198,5587.6727107678425,0,3082.2122923519219]
[3199,6558.1894655404049,0,-6385.2587963370424]
[3200,6821.9597348885836,0,901.17200245276547]

{"sheet":"RiskRGCGSR26C11","index":6,"n_rows":2821,"n_cols":6,"rows_kept":2821,"cut":false,"hidden":true,"merged":[]}
[]
[]
[]
[]
[]
[]
[]
[]
[]
[]
[]
[]
[]
[]
[]
[]
[]
[]
[]
[]
[]
[]
[]
[]
[]
[]
[]
[]
[]
[]
[]
[]
["Del X","Del Y",null,null,"X1","Y1"]
[291056.5337796972,0.09,null,null,288867.20558004774,0.03]
[308900.89646924601,0.09,null,null,290113.37561995775,0.03]
[288028.26688984863,0.09,null,null,291359.54565986776,4.0000000000000008E-2]
[299978.71512447158,0.09,null,null,292605.71569977776,7.0000000000000007E-2]
[311950.44823462301,0.09,null,null,293851.88573968771,4.9999999999999989E-2]
[null,null,null,null,295098.05577959772,7.9999999999999988E-2]
[null,null,null,null,296344.22581950773,8.0000000000000016E-2]
[null,null,null,null,297590.39585941774,8.0000000000000016E-2]
[null,null,null,null,298836.56589932775,8.0000000000000016E-2]
[null,null,null,null,300082.73593923775,6.9999999999999951E-2]
[null,null,null,null,301328.90597914776,7.999999999999996E-2]
[null,null,null,null,302575.07601905771,7.0000000000000062E-2]
[null,null,null,null,303821.24605896772,5.9999999999999942E-2]
[null,null,null,null,305067.41609887773,4.0000000000000036E-2]
[null,null,null,null,306313.58613878774,5.0000000000000044E-2]
[null,null,null,null,307559.75617869775,2.9999999999999916E-2]
[null,null,null,null,308805.92621860775,2.0000000000000018E-2]
[null,null,null,null,310052.0962585177,2.0000000000000018E-2]
[null,null,null,null,311298.26629842771,1.0000000000000009E-2]
[null,null,null,null,312544.43633833772,1.0000000000000009E-2]
[null,null,null,null,313790.60637824773,0]
[]
[]
[]
[]
[]
[]
[]
[]
[]
[]
[]
[]
[]
[]
[]
[]
[]
[]
[]
[]
[]
[]
[]
[]
[]
[]
[]
[]
[]
[]
[]
[]
[]
[]
[]
[]
[]
[]
[]
[]
[]
[]
[]
[]
[]
[]
[]
[]
[]
[]
[]
[]
[]
[]
[]
[]
[]
[]
[]
[]
[]
[]
[]
[]
[]
[]
[]
[]
[]
[]
[]
[]
[]
[]
[]
[]
[]
[]
[]
[]
[]
[]
[]
[]
[]
[]
[]
[]
[]
[]
[]
[]
[]
[]
[]
[]
[]
[]
[]
[]
[]
[]
[]
[]
[]
[]
[]
[]
[]
[]
[]
[]
[]
[]
[]
[]
[]
[]
[]
[]
[]
[]
[]
[]
[]
[]
[]
[]
[]
[]
[]
[]
[]
[]
[]
[]
[]
[]
[]
[]
[]
[]
[]
[]
[]
[]
[]
[]
[]
[]
[]
[]
[]
[]
[]
[]
[]
[]
[]
[]
[]
[]
[]
[]
[]
[]
[]
[]
[]
[]
[]
[]
[]
[]
[]
[]
[]
[]
[]
[]
[]
[]
[]
[]
[]
[]
[]
[]
[]
[]
[]
[]
[]
[]
[]
[]
[]
[]
[]
[]
[]
[]
[]
[]
[]
[]
[]
[]
[]
[]
[]
[]
[]
[]
[]
[]
[]
[]
[]
[]
[]
[]
[]
[]
[]
[]
[]
[]
[]
[]
[]
[]
[]
[]
[]
[]
[]
[]
[]
[]
[]
[]
[]
[]
[]
[]
[]
[]
[]
[]
[]
[]
[]
[]
[]
[]
[]
[]
[]
[]
[]
[]
[]
[]
[]
[]
[]
[]
[]
[]
[]
[]
[]
[]
[]
[]
[]
[]
[]
[]
[]
[]
[]
[]
[]
[]
[]
[]
[]
[]
[]
[]
[]
[]
[]
[]
[]
[]
[]
[]
[]
[]
[]
[]
[]
[]
[]
[]
[]
[]
[]
[]
[]
[]
[]
[]
[]
[]
[]
[]
[]
[]
[]
[]
[]
[]
[]
[]
[]
[]
[]
[]
[]
[]
[]
[]
[]
[]
[]
[]
[]
[]
[]
[]
[]
[]
[]
[]
[]
[]
[]
[]
[]
[]
[]
[]
[]
[]
[]
[]
[]
[]
[]
[]
[]
[]
[]
[]
[]
[]
[]
[]
[]
[]
[]
[]
[]
[]
[]
[]
[]
[]
[]
[]
[]
[]
[]
[]
[]
[]
[]
[]
[]
[]
[]
[]
[]
[]
[]
[]
[]
[]
[]
[]
[]
[]
[]
[]
[]
[]
[]
[]
[]
[]
[]
[]
[]
[]
[]
[]
[]
[]
[]
[]
[]
[]
[]
[]
[]
[]
[]
[]
[]
[]
[]
[]
[]
[]
[]
[]
[]
[]
[]
[]
[]
[]
[]
[]
[]
[]
[]
[]
[]
[]
[]
[]
[]
[]
[]
[]
[]
[]
[]
[]
[]
[]
[]
[]
[]
[]
[]
[]
[]
[]
[]
[]
[]
[]
[]
[]
[]
[]
[]
[]
[]
[]
[]
[]
[]
[]
[]
[]
[]
[]
[]
[]
[]
[]
[]
[]
[]
[]
[]
[]
[]
[]
[]
[]
[]
[]
[]
[]
[]
[]
[]
[]
[]
[]
[]
[]
[]
[]
[]
[]
[]
[]
[]
[]
[]
[]
[]
[]
[]
[]
[]
[]
[]
[]
[]
[]
[]
[]
[]
[]
[]
[]
[]
[]
[]
[]
[]
[]
[]
[]
[]
[]
[]
[]
[]
[]
[]
[]
[]
[]
[]
[]
[]
[]
[]
[]
[]
[]
[]
[]
[]
[]
[]
[]
[]
[]
[]
[]
[]
[]
[]
[]
[]
[]
[]
[]
[]
[]
[]
[]
[]
[]
[]
[]
[]
[]
[]
[]
[]
[]
[]
[]
[]
[]
[]
[]
[]
[]
[]
[]
[]
[]
[]
[]
[]
[]
[]
[]
[]
[]
[]
[]
[]
[]
[]
[]
[]
[]
[]
[]
[]
[]
[]
[]
[]
[]
[]
[]
[]
[]
[]
[]
[]
[]
[]
[]
[]
[]
[]
[]
[]
[]
[]
[]
[]
[]
[]
[]
[]
[]
[]
[]
[]
[]
[]
[]
[]
[]
[]
[]
[]
[]
[]
[]
[]
[]
[]
[]
[]
[]
[]
[]
[]
[]
[]
[]
[]
[]
[]
[]
[]
[]
[]
[]
[]
[]
[]
[]
[]
[]
[]
[]
[]
[]
[]
[]
[]
[]
[]
[]
[]
[]
[]
[]
[]
[]
[]
[]
[]
[]
[]
[]
[]
[]
[]
[]
[]
[]
[]
[]
[]
[]
[]
[]
[]
[]
[]
[]
[]
[]
[]
[]
[]
[]
[]
[]
[]
[]
[]
[]
[]
[]
[]
[]
[]
[]
[]
[]
[]
[]
[]
[]
[]
[]
[]
[]
[]
[]
[]
[]
[]
[]
[]
[]
[]
[]
[]
[]
[]
[]
[]
[]
[]
[]
[]
[]
[]
[]
[]
[]
[]
[]
[]
[]
[]
[]
[]
[]
[]
[]
[]
[]
[]
[]
[]
[]
[]
[]
[]
[]
[]
[]
[]
[]
[]
[]
[]
[]
[]
[]
[]
[]
[]
[]
[]
[]
[]
[]
[]
[]
[]
[]
[]
[]
[]
[]
[]
[]
[]
[]
[]
[]
[]
[]
[]
[]
[]
[]
[]
[]
[]
[]
[]
[]
[]
[]
[]
[]
[]
[]
[]
[]
[]
[]
[]
[]
[]
[]
[]
[]
[]
[]
[]
[]
[]
[]
[]
[]
[]
[]
[]
[]
[]
[]
[]
[]
[]
[]
[]
[]
[]
[]
[]
[]
[]
[]
[]
[]
[]
[]
[]
[]
[]
[]
[]
[]
[]
[]
[]
[]
[]
[]
[]
[]
[]
[]
[]
[]
[]
[]
[]
[]
[]
[]
[]
[]
[]
[]
[]
[]
[]
[]
[]
[]
[]
[]
[]
[]
[]
[]
[]
[]
[]
[]
[]
[]
[]
[]
[]
[]
[]
[]
[]
[]
[]
[]
[]
[]
[]
[]
[]
[]
[]
[]
[]
[]
[]
[]
[]
[]
[]
[]
[]
[]
[]
[]
[]
[]
[]
[]
[]
[]
[]
[]
[]
[]
[]
[]
[]
[]
[]
[]
[]
[]
[]
[]
[]
[]
[]
[]
[]
[]
[]
[]
[]
[]
[]
[]
[]
[]
[]
[]
[]
[]
[]
[]
[]
[]
[]
[]
[]
[]
[]
[]
[]
[]
[]
[]
[]
[]
[]
[]
[]
[]
[]
[]
[]
[]
[]
[]
[]
[]
[]
[]
[]
[]
[]
[]
[]
[]
[]
[]
[]
[]
[]
[]
[]
[]
[]
[]
[]
[]
[]
[]
[]
[]
[]
[]
[]
[]
[]
[]
[]
[]
[]
[]
[]
[]
[]
[]
[]
[]
[]
[]
[]
[]
[]
[]
[]
[]
[]
[]
[]
[]
[]
[]
[]
[]
[]
[]
[]
[]
[]
[]
[]
[]
[]
[]
[]
[]
[]
[]
[]
[]
[]
[]
[]
[]
[]
[]
[]
[]
[]
[]
[]
[]
[]
[]
[]
[]
[]
[]
[]
[]
[]
[]
[]
[]
[]
[]
[]
[]
[]
[]
[]
[]
[]
[]
[]
[]
[]
[]
[]
[]
[]
[]
[]
[]
[]
[]
[]
[]
[]
[]
[]
[]
[]
[]
[]
[]
[]
[]
[]
[]
[]
[]
[]
[]
[]
[]
[]
[]
[]
[]
[]
[]
[]
[]
[]
[]
[]
[]
[]
[]
[]
[]
[]
[]
[]
[]
[]
[]
[]
[]
[]
[]
[]
[]
[]
[]
[]
[]
[]
[]
[]
[]
[]
[]
[]
[]
[]
[]
[]
[]
[]
[]
[]
[]
[]
[]
[]
[]
[]
[]
[]
[]
[]
[]
[]
[]
[]
[]
[]
[]
[]
[]
[]
[]
[]
[]
[]
[]
[]
[]
[]
[]
[]
[]
[]
[]
[]
[]
[]
[]
[]
[]
[]
[]
[]
[]
[]
[]
[]
[]
[]
[]
[]
[]
[]
[]
[]
[]
[]
[]
[]
[]
[]
[]
[]
[]
[]
[]
[]
[]
[]
[]
[]
[]
[]
[]
[]
[]
[]
[]
[]
[]
[]
[]
[]
[]
[]
[]
[]
[]
[]
[]
[]
[]
[]
[]
[]
[]
[]
[]
[]
[]
[]
[]
[]
[]
[]
[]
[]
[]
[]
[]
[]
[]
[]
[]
[]
[]
[]
[]
[]
[]
[]
[]
[]
[]
[]
[]
[]
[]
[]
[]
[]
[]
[]
[]
[]
[]
[]
[]
[]
[]
[]
[]
[]
[]
[]
[]
[]
[]
[]
[]
[]
[]
[]
[]
[]
[]
[]
[]
[]
[]
[]
[]
[]
[]
[]
[]
[]
[]
[]
[]
[]
[]
[]
[]
[]
[]
[]
[]
[]
[]
[]
[]
[]
[]
[]
[]
[]
[]
[]
[]
[]
[]
[]
[]
[]
[]
[]
[]
[]
[]
[]
[]
[]
[]
[]
[]
[]
[]
[]
[]
[]
[]
[]
[]
[]
[]
[]
[]
[]
[]
[]
[]
[]
[]
[]
[]
[]
[]
[]
[]
[]
[]
[]
[]
[]
[]
[]
[]
[]
[]
[]
[]
[]
[]
[]
[]
[]
[]
[]
[]
[]
[]
[]
[]
[]
[]
[]
[]
[]
[]
[]
[]
[]
[]
[]
[]
[]
[]
[]
[]
[]
[]
[]
[]
[]
[]
[]
[]
[]
[]
[]
[]
[]
[]
[]
[]
[]
[]
[]
[]
[]
[]
[]
[]
[]
[]
[]
[]
[]
[]
[]
[]
[]
[]
[]
[]
[]
[]
[]
[]
[]
[]
[]
[]
[]
[]
[]
[]
[]
[]
[]
[]
[]
[]
[]
[]
[]
[]
[]
[]
[]
[]
[]
[]
[]
[]
[]
[]
[]
[]
[]
[]
[]
[]
[]
[]
[]
[]
[]
[]
[]
[]
[]
[]
[]
[]
[]
[]
[]
[]
[]
[]
[]
[]
[]
[]
[]
[]
[]
[]
[]
[]
[]
[]
[]
[]
[]
[]
[]
[]
[]
[]
[]
[]
[]
[]
[]
[]
[]
[]
[]
[]
[]
[]
[]
[]
[]
[]
[]
[]
[]
[]
[]
[]
[]
[]
[]
[]
[]
[]
[]
[]
[]
[]
[]
[]
[]
[]
[]
[]
[]
[]
[]
[]
[]
[]
[]
[]
[]
[]
[]
[]
[]
[]
[]
[]
[]
[]
[]
[]
[]
[]
[]
[]
[]
[]
[]
[]
[]
[]
[]
[]
[]
[]
[]
[]
[]
[]
[]
[]
[]
[]
[]
[]
[]
[]
[]
[]
[]
[]
[]
[]
[]
[]
[]
[]
[]
[]
[]
[]
[]
[]
[]
[]
[]
[]
[]
[]
[]
[]
[]
[]
[]
[]
[]
[]
[]
[]
[]
[]
[]
[]
[]
[]
[]
[]
[]
[]
[]
[]
[]
[]
[]
[]
[]
[]
[]
[]
[]
[]
[]
[]
[]
[]
[]
[]
[]
[]
[]
[]
[]
[]
[]
[]
[]
[]
[]
[]
[]
[]
[]
[]
[]
[]
[]
[]
[]
[]
[]
[]
[]
[]
[]
[]
[]
[]
[]
[]
[]
[]
[]
[]
[]
[]
[]
[]
[]
[]
[]
[]
[]
[]
[]
[]
[]
[]
[]
[]
[]
[]
[]
[]
[]
[]
[]
[]
[]
[]
[]
[]
[]
[]
[]
[]
[]
[]
[]
[]
[]
[]
[]
[]
[]
[]
[]
[]
[]
[]
[]
[]
[]
[]
[]
[]
[]
[]
[]
[]
[]
[]
[]
[]
[]
[]
[]
[]
[]
[]
[]
[]
[]
[]
[]
[]
[]
[]
[]
[]
[]
[]
[]
[]
[]
[]
[]
[]
[]
[]
[]
[]
[]
[]
[]
[]
[]
[]
[]
[]
[]
[]
[]
[]
[]
[]
[]
[]
[]
[]
[]
[]
[]
[]
[]
[]
[]
[]
[]
[]
[]
[]
[]
[]
[]
[]
[]
[]
[]
[]
[]
[]
[]
[]
[]
[]
[]
[]
[]
[]
[]
[]
[]
[]
[]
[]
[]
[]
[]
[]
[]
[]
[]
[]
[]
[]
[]
[]
[]
[]
[]
[]
[]
[]
[]
[]
[]
[]
[]
[]
[]
[]
[]
[]
[]
[]
[]
[]
[]
[]
[]
[]
[]
[]
[]
[]
[]
[]
[]
[]
[]
[]
[]
[]
[]
[]
[]
[]
[]
[]
[]
[]
[]
[]
[]
[]
[]
[]
[]
[]
[]
[]
[]
[]
[]
[]
[]
[]
[]
[]
[]
[]
[]
[]
[]
[]
[]
[]
[]
[]
[]
[]
[]
[]
[]
[]
[]
[]
[]
[]
[]
[]
[]
[]
[]
[]
[]
[]
[]
[]
[]
[]
[]
[]
[]
[]
[]
[]
[]
[]
[]
[]
[]
[]
[]
[]
[]
[]
[]
[]
[]
[]
[]
[]
[]
[]
[]
[]
[]
[]
[]
[]
[]
[]
[]
[]
[]
[]
[]
[]
[]
[]
[]
[]
[]
[]
[]
[]
[]
[]
[]
[]
[]
[]
[]
[]
[]
[]
[]
[]
[]
[]
[]
[]
[]
[]
[]
[]
[]
[]
[]
[]
[]
[]
[]
[]
[]
[]
[]
[]
[]
[]
[]
[]
[]
[]
[]
[]
[]
[]
[]
[]
[]
[]
[]
[]
[]
[]
[]
[]
[]
[]
[]
[]
[]
[]
[]
[]
[]
[]
[]
[]
[]
[]
[]
[]
[]
[]
[]
[]
[]
[]
[]
[]
[]
[]
[]
[]
[]
[]
[]
[]
[]
[]
[]
[]
[]
[]
[]
[]
[]
[]
[]
[]
[]
[]
[]
[]
[]
[]
[]
[]
[]
[]
[]
[]
[]
[]
[]
[]
[]
[]
[]
[]
[]
[]
[]
[]
[]
[]
[]
[]
[]
[]
[]
[]
[]
[]
[]
[]
[]
[]
[]
[]
[]
[]
[]
[]
[]
[]
[]
[]
[]
[]
[]
[]
[]
[]
[]
[]
[]
[]
[]
[]
[]
[]
[]
[]
[]
[]
[]
[]
[]
[]
[]
[]
[]
[]
[]
[]
[]
[]
[]
[]
[]
[]
[]
[]
[]
[]
[]
[]
[]
[]
[]
[]
[]
[]
[]
[]
[]
[]
[]
[]
[]
[]
[]
[]
[]
[]
[]
[]
[]
[]
[]
[]
[]
[]
[]
[]
[]
[]
[]
[]
[]
[]
[]
[]
[]
[]
[]
[]
[]
[]
[]
[]
[]
[]
[]
[]
[]
[]
[]
[]
[]
[]
[]
[]
[]
[]
[]
[]
[]
[]
[]
[]
[]
[]
[]
[]
[]
[]
[]
[]
[]
[]
[]
[]
[]
[]
[]
[]
[]
[]
[]
[]
[]
[]
[]
[]
[]
[]
[]
[]
[]
[]
[]
[]
[]
[]
[]
[]
[]
[]
[]
[]
[]
[]
[]
[]
[]
[]
[]
[]
[]
[]
[]
[]
[]
[]
[]
[]
[]
[]
[]
[]
[]
[]
[]
[]
[]
[]
[]
[]
[]
[]
[]
[]
[]
[]
[]
[]
[]
[]
[]
[]
[]
[]
[]
[]
[]
[]
[]
[]
[]
[]
[]
[]
[]
[]
[]
[]
[]
[]
[]
[]
[]
[]
[]
[]
[]
[]
[]
[]
[]
[]
[]
[]
[null,"XFill1",{"$f":"\"CGS Total O&M / FY14\"","v":"CGS Total O&M / FY14"},"XLine1",{"$f":"\"CGS Total O&M / FY14\"","v":"CGS Total O&M / FY14"}]
[null,288867.20558004774,{"$f":"0","v":0},288867.20558004774,0]
[null,288867.20558004774,{"$f":"$F$34","v":0.03},288867.20558004774,0]
[null,288966.89918324054,0.03,288867.20558004774,{"$f":"$F$34","v":0.03}]
[null,289066.59278643335,0.03,290113.37561995775,{"$f":"$F$34","v":0.03}]
[null,289166.28638962616,0.03,290113.37561995775,0]
[null,289265.97999281896,0.03,290113.37561995775,{"$f":"$F$35","v":0.03}]
[null,289365.67359601177,0.03,291359.54565986776,{"$f":"$F$35","v":0.03}]
[null,289465.36719920451,0.03,291359.54565986776,0]
[null,289565.06080239732,0.03,291359.54565986776,{"$f":"$F$36","v":4.0000000000000008E-2}]
[null,289664.75440559012,0.03,292605.71569977776,{"$f":"$F$36","v":4.0000000000000008E-2}]
[null,289764.44800878293,0.03,292605.71569977776,0]
[null,289864.14161197573,0.03,292605.71569977776,{"$f":"$F$37","v":7.0000000000000007E-2}]
[null,289963.83521516854,0.03,293851.88573968771,{"$f":"$F$37","v":7.0000000000000007E-2}]
[null,290063.52881836134,0.03,293851.88573968771,0]
[null,290113.37561995775,0.03,293851.88573968771,{"$f":"$F$38","v":4.9999999999999989E-2}]
[null,290113.37561995775,0,295098.05577959772,{"$f":"$F$38","v":4.9999999999999989E-2}]
[null,290113.37561995775,{"$f":"0","v":0},295098.05577959772,0]
[null,290113.37561995775,{"$f":"$F$35","v":0.03},295098.05577959772,{"$f":"$F$39","v":7.9999999999999988E-2}]
[null,290213.06922315055,0.03,296344.22581950773,{"$f":"$F$39","v":7.9999999999999988E-2}]
[null,290312.76282634336,0.03,296344.22581950773,0]
[null,290412.45642953616,0.03,296344.22581950773,{"$f":"$F$40","v":8.0000000000000016E-2}]
[null,290512.15003272897,0.03,297590.39585941774,{"$f":"$F$40","v":8.0000000000000016E-2}]
[null,290611.84363592177,0.03,297590.39585941774,0]
[null,290711.53723911452,0.03,297590.39585941774,{"$f":"$F$41","v":8.0000000000000016E-2}]
[null,290811.23084230733,0.03,298836.56589932775,{"$f":"$F$41","v":8.0000000000000016E-2}]
[null,290910.92444550013,0.03,298836.56589932775,0]
[null,291010.61804869294,0.03,298836.56589932775,{"$f":"$F$42","v":8.0000000000000016E-2}]
[null,291110.31165188574,0.03,300082.73593923775,{"$f":"$F$42","v":8.0000000000000016E-2}]
[null,291210.00525507855,0.03,300082.73593923775,0]
[null,291309.69885827135,0.03,300082.73593923775,{"$f":"$F$43","v":6.9999999999999951E-2}]
[null,291359.54565986776,0.03,301328.90597914776,{"$f":"$F$43","v":6.9999999999999951E-2}]
[null,291359.54565986776,0,301328.90597914776,0]
[null,291359.54565986776,{"$f":"0","v":0},301328.90597914776,{"$f":"$F$44","v":7.999999999999996E-2}]
[null,291359.54565986776,{"$f":"$F$36","v":4.0000000000000008E-2},302575.07601905771,{"$f":"$F$44","v":7.999999999999996E-2}]
[null,291459.23926306056,4.0000000000000008E-2,302575.07601905771,0]
[null,291558.93286625337,4.0000000000000008E-2,302575.07601905771,{"$f":"$F$45","v":7.0000000000000062E-2}]
[null,291658.62646944617,4.0000000000000008E-2,303821.24605896772,{"$f":"$F$45","v":7.0000000000000062E-2}]
[null,291758.32007263898,4.0000000000000008E-2,303821.24605896772,0]
[null,291858.01367583178,4.0000000000000008E-2,303821.24605896772,{"$f":"$F$46","v":5.9999999999999942E-2}]
[null,291957.70727902453,4.0000000000000008E-2,305067.41609887773,{"$f":"$F$46","v":5.9999999999999942E-2}]
[null,292057.40088221733,4.0000000000000008E-2,305067.41609887773,0]
[null,292157.09448541014,4.0000000000000008E-2,305067.41609887773,{"$f":"$F$47","v":4.0000000000000036E-2}]
[null,292256.78808860295,4.0000000000000008E-2,306313.58613878774,{"$f":"$F$47","v":4.0000000000000036E-2}]
[null,292356.48169179575,4.0000000000000008E-2,306313.58613878774,0]
[null,292456.17529498856,4.0000000000000008E-2,306313.58613878774,{"$f":"$F$48","v":5.0000000000000044E-2}]
[null,292555.86889818136,4.0000000000000008E-2,307559.75617869775,{"$f":"$F$48","v":5.0000000000000044E-2}]
[null,292605.71569977776,4.0000000000000008E-2,307559.75617869775,0]
[null,292605.71569977776,0,307559.75617869775,{"$f":"$F$49","v":2.9999999999999916E-2}]
[null,292605.71569977776,{"$f":"0","v":0},308805.92621860775,{"$f":"$F$49","v":2.9999999999999916E-2}]
[null,292605.71569977776,{"$f":"$F$37","v":7.0000000000000007E-2},308805.92621860775,0]
[null,292705.40930297057,7.0000000000000007E-2,308805.92621860775,{"$f":"$F$50","v":2.0000000000000018E-2}]
[null,292805.10290616337,7.0000000000000007E-2,310052.0962585177,{"$f":"$F$50","v":2.0000000000000018E-2}]
[null,292904.79650935618,7.0000000000000007E-2,310052.0962585177,0]
[null,293004.49011254899,7.0000000000000007E-2,310052.0962585177,{"$f":"$F$51","v":2.0000000000000018E-2}]
[null,293104.18371574179,7.0000000000000007E-2,311298.26629842771,{"$f":"$F$51","v":2.0000000000000018E-2}]
[null,293203.87731893454,7.0000000000000007E-2,311298.26629842771,0]
[null,293303.57092212734,7.0000000000000007E-2,311298.26629842771,{"$f":"$F$52","v":1.0000000000000009E-2}]
[null,293403.26452532015,7.0000000000000007E-2,312544.43633833772,{"$f":"$F$52","v":1.0000000000000009E-2}]
[null,293502.95812851295,7.0000000000000007E-2,312544.43633833772,0]
[null,293602.65173170576,7.0000000000000007E-2,312544.43633833772,{"$f":"$F$53","v":1.0000000000000009E-2}]
[null,293702.34533489856,7.0000000000000007E-2,313790.60637824773,{"$f":"$F$53","v":1.0000000000000009E-2}]
[null,293802.03893809137,7.0000000000000007E-2,313790.60637824773,0]
[null,293851.88573968771,7.0000000000000007E-2,313790.60637824773,{"$f":"$F$54","v":0}]
[null,293851.88573968771,0,null,{"$f":"$F$54","v":0}]
[null,293851.88573968771,{"$f":"0","v":0},null,0]
[null,293851.88573968771,{"$f":"$F$38","v":4.9999999999999989E-2}]
[null,293951.57934288052,4.9999999999999989E-2]
[null,294051.27294607332,4.9999999999999989E-2]
[null,294150.96654926613,4.9999999999999989E-2]
[null,294250.66015245894,4.9999999999999989E-2]
[null,294350.35375565174,4.9999999999999989E-2]
[null,294450.04735884449,4.9999999999999989E-2]
[null,294549.74096203729,4.9999999999999989E-2]
[null,294649.4345652301,4.9999999999999989E-2]
[null,294749.1281684229,4.9999999999999989E-2]
[null,294848.82177161571,4.9999999999999989E-2]
[null,294948.51537480851,4.9999999999999989E-2]
[null,295048.20897800132,4.9999999999999989E-2]
[null,295098.05577959772,4.9999999999999989E-2]
[null,295098.05577959772,0]
[null,295098.05577959772,{"$f":"0","v":0}]
[null,295098.05577959772,{"$f":"$F$39","v":7.9999999999999988E-2}]
[null,295197.74938279053,7.9999999999999988E-2]
[null,295297.44298598333,7.9999999999999988E-2]
[null,295397.13658917614,7.9999999999999988E-2]
[null,295496.83019236894,7.9999999999999988E-2]
[null,295596.52379556175,7.9999999999999988E-2]
[null,295696.2173987545,7.9999999999999988E-2]
[null,295795.9110019473,7.9999999999999988E-2]
[null,295895.60460514011,7.9999999999999988E-2]
[null,295995.29820833291,7.9999999999999988E-2]
[null,296094.99181152572,7.9999999999999988E-2]
[null,296194.68541471852,7.9999999999999988E-2]
[null,296294.37901791133,7.9999999999999988E-2]
[null,296344.22581950773,7.9999999999999988E-2]
[null,296344.22581950773,0]
[null,296344.22581950773,{"$f":"0","v":0}]
[null,296344.22581950773,{"$f":"$F$40","v":8.0000000000000016E-2}]
[null,296443.91942270054,8.0000000000000016E-2]
[null,296543.61302589334,8.0000000000000016E-2]
[null,296643.30662908615,8.0000000000000016E-2]
[null,296743.00023227895,8.0000000000000016E-2]
[null,296842.69383547176,8.0000000000000016E-2]
[null,296942.3874386645,8.0000000000000016E-2]
[null,297042.08104185731,8.0000000000000016E-2]
[null,297141.77464505011,8.0000000000000016E-2]
[null,297241.46824824292,8.0000000000000016E-2]
[null,297341.16185143573,8.0000000000000016E-2]
[null,297440.85545462853,8.0000000000000016E-2]
[null,297540.54905782134,8.0000000000000016E-2]
[null,297590.39585941774,8.0000000000000016E-2]
[null,297590.39585941774,0]
[null,297590.39585941774,{"$f":"0","v":0}]
[null,297590.39585941774,{"$f":"$F$41","v":8.0000000000000016E-2}]
[null,297690.08946261054,8.0000000000000016E-2]
[null,297789.78306580335,8.0000000000000016E-2]
[null,297889.47666899615,8.0000000000000016E-2]
[null,297989.17027218896,8.0000000000000016E-2]
[null,298088.86387538176,8.0000000000000016E-2]
[null,298188.55747857451,8.0000000000000016E-2]
[null,298288.25108176732,8.0000000000000016E-2]
[null,298387.94468496012,8.0000000000000016E-2]
[null,298487.63828815293,8.0000000000000016E-2]
[null,298587.33189134573,8.0000000000000016E-2]
[null,298687.02549453854,8.0000000000000016E-2]
[null,298786.71909773134,8.0000000000000016E-2]
[null,298836.56589932775,8.0000000000000016E-2]
[null,298836.56589932775,0]
[null,298836.56589932775,{"$f":"0","v":0}]
[null,298836.56589932775,{"$f":"$F$42","v":8.0000000000000016E-2}]
[null,298936.25950252055,8.0000000000000016E-2]
[null,299035.95310571336,8.0000000000000016E-2]
[null,299135.64670890616,8.0000000000000016E-2]
[null,299235.34031209897,8.0000000000000016E-2]
[null,299335.03391529177,8.0000000000000016E-2]
[null,299434.72751848452,8.0000000000000016E-2]
[null,299534.42112167733,8.0000000000000016E-2]
[null,299634.11472487013,8.0000000000000016E-2]
[null,299733.80832806294,8.0000000000000016E-2]
[null,299833.50193125574,8.0000000000000016E-2]
[null,299933.19553444855,8.0000000000000016E-2]
[null,300032.88913764135,8.0000000000000016E-2]
[null,300082.73593923775,8.0000000000000016E-2]
[null,300082.73593923775,0]
[null,300082.73593923775,{"$f":"0","v":0}]
[null,300082.73593923775,{"$f":"$F$43","v":6.9999999999999951E-2}]
[null,300182.42954243056,6.9999999999999951E-2]
[null,300282.12314562337,6.9999999999999951E-2]
[null,300381.81674881617,6.9999999999999951E-2]
[null,300481.51035200898,6.9999999999999951E-2]
[null,300581.20395520178,6.9999999999999951E-2]
[null,300680.89755839453,6.9999999999999951E-2]
[null,300780.59116158733,6.9999999999999951E-2]
[null,300880.28476478014,6.9999999999999951E-2]
[null,300979.97836797294,6.9999999999999951E-2]
[null,301079.67197116575,6.9999999999999951E-2]
[null,301179.36557435856,6.9999999999999951E-2]
[null,301279.05917755136,6.9999999999999951E-2]
[null,301328.90597914776,6.9999999999999951E-2]
[null,301328.90597914776,0]
[null,301328.90597914776,{"$f":"0","v":0}]
[null,301328.90597914776,{"$f":"$F$44","v":7.999999999999996E-2}]
[null,301428.59958234057,7.999999999999996E-2]
[null,301528.29318553337,7.999999999999996E-2]
[null,301627.98678872618,7.999999999999996E-2]
[null,301727.68039191898,7.999999999999996E-2]
[null,301827.37399511179,7.999999999999996E-2]
[null,301927.06759830454,7.999999999999996E-2]
[null,302026.76120149734,7.999999999999996E-2]
[null,302126.45480469015,7.999999999999996E-2]
[null,302226.14840788295,7.999999999999996E-2]
[null,302325.84201107576,7.999999999999996E-2]
[null,302425.53561426856,7.999999999999996E-2]
[null,302525.22921746137,7.999999999999996E-2]
[null,302575.07601905771,7.999999999999996E-2]
[null,302575.07601905771,0]
[null,302575.07601905771,{"$f":"0","v":0}]
[null,302575.07601905771,{"$f":"$F$45","v":7.0000000000000062E-2}]
[null,302674.76962225052,7.0000000000000062E-2]
[null,302774.46322544332,7.0000000000000062E-2]
[null,302874.15682863613,7.0000000000000062E-2]
[null,302973.85043182893,7.0000000000000062E-2]
[null,303073.54403502174,7.0000000000000062E-2]
[null,303173.23763821449,7.0000000000000062E-2]
[null,303272.93124140729,7.0000000000000062E-2]
[null,303372.6248446001,7.0000000000000062E-2]
[null,303472.3184477929,7.0000000000000062E-2]
[null,303572.01205098571,7.0000000000000062E-2]
[null,303671.70565417851,7.0000000000000062E-2]
[null,303771.39925737132,7.0000000000000062E-2]
[null,303821.24605896772,7.0000000000000062E-2]
[null,303821.24605896772,0]
[null,303821.24605896772,{"$f":"0","v":0}]
[null,303821.24605896772,{"$f":"$F$46","v":5.9999999999999942E-2}]
[null,303920.93966216053,5.9999999999999942E-2]
[null,304020.63326535333,5.9999999999999942E-2]
[null,304120.32686854614,5.9999999999999942E-2]
[null,304220.02047173894,5.9999999999999942E-2]
[null,304319.71407493175,5.9999999999999942E-2]
[null,304419.40767812449,5.9999999999999942E-2]
[null,304519.1012813173,5.9999999999999942E-2]
[null,304618.79488451011,5.9999999999999942E-2]
[null,304718.48848770291,5.9999999999999942E-2]
[null,304818.18209089572,5.9999999999999942E-2]
[null,304917.87569408852,5.9999999999999942E-2]
[null,305017.56929728133,5.9999999999999942E-2]
[null,305067.41609887773,5.9999999999999942E-2]
[null,305067.41609887773,0]
[null,305067.41609887773,{"$f":"0","v":0}]
[null,305067.41609887773,{"$f":"$F$47","v":4.0000000000000036E-2}]
[null,305167.10970207053,4.0000000000000036E-2]
[null,305266.80330526334,4.0000000000000036E-2]
[null,305366.49690845615,4.0000000000000036E-2]
[null,305466.19051164895,4.0000000000000036E-2]
[null,305565.88411484176,4.0000000000000036E-2]
[null,305665.5777180345,4.0000000000000036E-2]
[null,305765.27132122731,4.0000000000000036E-2]
[null,305864.96492442011,4.0000000000000036E-2]
[null,305964.65852761292,4.0000000000000036E-2]
[null,306064.35213080572,4.0000000000000036E-2]
[null,306164.04573399853,4.0000000000000036E-2]
[null,306263.73933719133,4.0000000000000036E-2]
[null,306313.58613878774,4.0000000000000036E-2]
[null,306313.58613878774,0]
[null,306313.58613878774,{"$f":"0","v":0}]
[null,306313.58613878774,{"$f":"$F$48","v":5.0000000000000044E-2}]
[null,306413.27974198054,5.0000000000000044E-2]
[null,306512.97334517335,5.0000000000000044E-2]
[null,306612.66694836615,5.0000000000000044E-2]
[null,306712.36055155896,5.0000000000000044E-2]
[null,306812.05415475176,5.0000000000000044E-2]
[null,306911.74775794451,5.0000000000000044E-2]
[null,307011.44136113732,5.0000000000000044E-2]
[null,307111.13496433012,5.0000000000000044E-2]
[null,307210.82856752293,5.0000000000000044E-2]
[null,307310.52217071573,5.0000000000000044E-2]
[null,307410.21577390854,5.0000000000000044E-2]
[null,307509.90937710134,5.0000000000000044E-2]
[null,307559.75617869775,5.0000000000000044E-2]
[null,307559.75617869775,0]
[null,307559.75617869775,{"$f":"0","v":0}]
[null,307559.75617869775,{"$f":"$F$49","v":2.9999999999999916E-2}]
[null,307659.44978189055,2.9999999999999916E-2]
[null,307759.14338508336,2.9999999999999916E-2]
[null,307858.83698827616,2.9999999999999916E-2]
[null,307958.53059146897,2.9999999999999916E-2]
[null,308058.22419466177,2.9999999999999916E-2]
[null,308157.91779785452,2.9999999999999916E-2]
[null,308257.61140104732,2.9999999999999916E-2]
[null,308357.30500424013,2.9999999999999916E-2]
[null,308456.99860743294,2.9999999999999916E-2]
[null,308556.69221062574,2.9999999999999916E-2]
[null,308656.38581381855,2.9999999999999916E-2]
[null,308756.07941701135,2.9999999999999916E-2]
[null,308805.92621860775,2.9999999999999916E-2]
[null,308805.92621860775,0]
[null,308805.92621860775,{"$f":"0","v":0}]
[null,308805.92621860775,{"$f":"$F$50","v":2.0000000000000018E-2}]
[null,308905.61982180056,2.0000000000000018E-2]
[null,309005.31342499336,2.0000000000000018E-2]
[null,309105.00702818617,2.0000000000000018E-2]
[null,309204.70063137898,2.0000000000000018E-2]
[null,309304.39423457178,2.0000000000000018E-2]
[null,309404.08783776453,2.0000000000000018E-2]
[null,309503.78144095733,2.0000000000000018E-2]
[null,309603.47504415014,2.0000000000000018E-2]
[null,309703.16864734294,2.0000000000000018E-2]
[null,309802.86225053575,2.0000000000000018E-2]
[null,309902.55585372855,2.0000000000000018E-2]
[null,310002.24945692136,2.0000000000000018E-2]
[null,310052.0962585177,2.0000000000000018E-2]
[null,310052.0962585177,0]
[null,310052.0962585177,{"$f":"0","v":0}]
[null,310052.0962585177,{"$f":"$F$51","v":2.0000000000000018E-2}]
[null,310151.78986171051,2.0000000000000018E-2]
[null,310251.48346490331,2.0000000000000018E-2]
[null,310351.17706809612,2.0000000000000018E-2]
[null,310450.87067128893,2.0000000000000018E-2]
[null,310550.56427448173,2.0000000000000018E-2]
[null,310650.25787767448,2.0000000000000018E-2]
[null,310749.95148086728,2.0000000000000018E-2]
[null,310849.64508406009,2.0000000000000018E-2]
[null,310949.33868725289,2.0000000000000018E-2]
[null,311049.0322904457,2.0000000000000018E-2]
[null,311148.7258936385,2.0000000000000018E-2]
[null,311248.41949683131,2.0000000000000018E-2]
[null,311298.26629842771,2.0000000000000018E-2]
[null,311298.26629842771,0]
[null,311298.26629842771,{"$f":"0","v":0}]
[null,311298.26629842771,{"$f":"$F$52","v":1.0000000000000009E-2}]
[null,311397.95990162052,1.0000000000000009E-2]
[null,311497.65350481332,1.0000000000000009E-2]
[null,311597.34710800613,1.0000000000000009E-2]
[null,311697.04071119893,1.0000000000000009E-2]
[null,311796.73431439174,1.0000000000000009E-2]
[null,311896.42791758449,1.0000000000000009E-2]
[null,311996.12152077729,1.0000000000000009E-2]
[null,312095.8151239701,1.0000000000000009E-2]
[null,312195.5087271629,1.0000000000000009E-2]
[null,312295.20233035571,1.0000000000000009E-2]
[null,312394.89593354851,1.0000000000000009E-2]
[null,312494.58953674132,1.0000000000000009E-2]
[null,312544.43633833772,1.0000000000000009E-2]
[null,312544.43633833772,0]
[null,312544.43633833772,{"$f":"0","v":0}]
[null,312544.43633833772,{"$f":"$F$53","v":1.0000000000000009E-2}]
[null,312644.12994153053,1.0000000000000009E-2]
[null,312743.82354472333,1.0000000000000009E-2]
[null,312843.51714791614,1.0000000000000009E-2]
[null,312943.21075110894,1.0000000000000009E-2]
[null,313042.90435430175,1.0000000000000009E-2]
[null,313142.59795749449,1.0000000000000009E-2]
[null,313242.2915606873,1.0000000000000009E-2]
[null,313341.9851638801,1.0000000000000009E-2]
[null,313441.67876707291,1.0000000000000009E-2]
[null,313541.37237026572,1.0000000000000009E-2]
[null,313641.06597345852,1.0000000000000009E-2]
[null,313740.75957665133,1.0000000000000009E-2]
[null,313790.60637824773,1.0000000000000009E-2]
[null,313790.60637824773,0]

{"sheet":"Undistributed Reduction","index":7,"n_rows":23,"n_cols":7,"rows_kept":23,"cut":false,"hidden":false,"merged":[]}
[]
[]
[]
[]
["Undistributed Reduction",null,null,"$000",null,null,"Color Key:"]
[null,"Rates Values",null,null,null,null,"SME Input"]
[null,"FY 17","FY 18","FY 19",null,null,"Worksheet Formula"]
["Undistributed Reduction in Net Revenue Forecast",0,10000,10000,null,null,"@Risk Output"]
["Amount to be distributed",0,0,0,null,null,"Linked to Summary"]
["Remaining Undistributed Amount",{"$f":"B8-B9","v":0},{"$f":"C8-C9","v":10000},{"$f":"D8-D9","v":10000},null,null,"@Risk Formula"]
[]
["Base Expense Delta",{"$f":"'Risk Summary'!J43","v":{"$error":"#NAME?"}},{"$f":"'Risk Summary'!K43","v":{"$error":"#NAME?"}},{"$f":"'Risk Summary'!L43","v":{"$error":"#NAME?"}}]
["Undist Reduction Covered by expense Delta",{"$f":"MAX(MIN(-B12,B10),0)","v":{"$error":"#NAME?"}},{"$f":"MAX(MIN(-C12,C10),0)","v":{"$error":"#NAME?"}},{"$f":"MAX(MIN(-D12,D10),0)","v":{"$error":"#NAME?"}}]
["Amount not covered",{"$f":"B10-B13","v":{"$error":"#NAME?"}},{"$f":"C10-C13","v":{"$error":"#NAME?"}},{"$f":"D10-D13","v":{"$error":"#NAME?"}}]
[]
["Active Management Mitigation",{"$f":"_xll.RiskPert(B17,B18,B19)","v":{"$error":"#NAME?"}},{"$f":"_xll.RiskPert(C17,C18,C19)","v":{"$error":"#NAME?"}},{"$f":"_xll.RiskPert(D17,D18,D19)","v":{"$error":"#NAME?"}}]
["Min",0.25,0.25,0.25]
["M. Likely",0.75,0.75,0.75]
["Max",1,1,1]
[]
["Amount not realized",{"$f":"B14*(1-B16)","v":{"$error":"#NAME?"}},{"$f":"C14*(1-C16)","v":{"$error":"#NAME?"}},{"$f":"D14*(1-D16)","v":{"$error":"#NAME?"}}]
["Covered Amount",{"$f":"B13","v":{"$error":"#NAME?"}},{"$f":"C13","v":{"$error":"#NAME?"}},{"$f":"D13","v":{"$error":"#NAME?"}}]
["Expense Adjustment due to Undistributed Reduction",{"$f":"SUM(B21:B22)","v":{"$error":"#NAME?"}},{"$f":"SUM(C21:C22)","v":{"$error":"#NAME?"}},{"$f":"SUM(D21:D22)","v":{"$error":"#NAME?"}}]

{"sheet":"CGS","index":8,"n_rows":19,"n_cols":15,"rows_kept":19,"cut":false,"hidden":false,"merged":[]}
[]
[null,"($000)",null,"Rates Values",null,null,null,null,null,"@Risk",null,null,null,null,"Color Key:"]
[null,null,null,"FY 17","FY 18","FY 19",null,null,null,"FY 17","FY 18","FY 19",{"$f":"K3&\" and \"&L3","v":"FY 18 and FY 19"},null,"SME Input"]
["CGS","Total O&M",null,{"$f":"'Risk Summary'!C8","v":318513.71800000005},{"$f":"'Risk Summary'!E8","v":270146},{"$f":"'Risk Summary'!G8","v":327354},null,null,"CGS Total O&M",{"$f":"J5+J14","v":{"$error":"#NAME?"}},{"$f":"_xll.RiskOutput(\"CGS Total O&M / FY14\")+(K5+K14)","v":{"$error":"#NAME?"}},{"$f":"_xll.RiskOutput(\"CGS Total O&M / FY15\")+(L5+L14)","v":{"$error":"#NAME?"}},{"$f":"_xll.RiskOutput(\"CGS Total O&M / FY14 and FY 15\")+(K4+L4)","v":{"$error":"#NAME?"}},null,"Worksheet Formula"]
[null,null,null,null,null,null,null,"Pert","CGS Base O&M",{"$f":"_xll.RiskPert(J7,J9,J11)","v":{"$error":"#NAME?"}},{"$f":"_xll.RiskPert(K7,K9,K11)","v":{"$error":"#NAME?"}},{"$f":"_xll.RiskPert(L7,L9,L11)","v":{"$error":"#NAME?"}},null,null,"@Risk Output"]
[null,null,null,null,null,null,null,null,"Min percent of forecast",{"$f":"AVERAGE(97.5%,100%)","v":0.98750000000000004},0.96,0.96,null,null,"Linked to Summary"]
[null,null,null,null,null,null,null,null,"Min",{"$f":"(D$4-D$15)*(J6)","v":311407.32369806257},{"$f":"(E$4-E$15)*(K6)","v":256211.07328478398},{"$f":"(F$4-F$15)*(L6)","v":311036.8806833275},null,null,"@Risk Formula"]
[null,null,null,null,null,null,null,null,"Expected percent of forecast",1,1,1]
[null,null,null,null,null,null,null,null,"Expected",{"$f":"(D$4-D$15)*(J8)","v":315349.18855500006},{"$f":"(E$4-E$15)*(K8)","v":266886.53467164998},{"$f":"(F$4-F$15)*(L8)","v":323996.75071179948}]
[null,null,null,null,null,null,null,null,"Max Percent of forecast",{"$f":"AVERAGE(102.5%,100%)","v":1.0125},1.06,1.06]
[null,null,null,null,null,null,null,null,"Max",{"$f":"(D$4-D$15)*(J10)","v":319291.05341193755},{"$f":"(E$4-E$15)*(K10)","v":282899.726751949},{"$f":"(F$4-F$15)*(L10)","v":343436.55575450748}]
[]
[]
[null,null,null,"NEIL Premium","NEIL Premium","NEIL Premium",null,null,"NEIL Premium",{"$f":"_xll.RiskPert(J15,J16,J17)","v":{"$error":"#NAME?"}},{"$f":"_xll.RiskPert(K15,K16,K17)","v":{"$error":"#NAME?"}},{"$f":"_xll.RiskPert(L15,L16,L17)","v":{"$error":"#NAME?"}}]
[null,null,null,3164.5294450000001,{"$f":"D15*1.03","v":3259.4653283500002},{"$f":"E15*1.03","v":3357.2492882005004},null,"Pert","Low",{"$f":"J16*0.975+D19*0.5","v":2753.9519588750004},{"$f":"K16*0.95+E19","v":2760.8320619325},{"$f":"L16*0.95+F19","v":2853.7268237904755}]
[null,null,null,"EV Credit","EV Credit","EV Credit",null,null,"Base",{"$f":"D15+D17","v":2996.6994450000002},{"$f":"E15+E17","v":3259.4653283500002},{"$f":"F15+F17","v":3357.2492882005004}]
[null,null,null,-167.83,0,0,null,null,"High",{"$f":"J16*1.025","v":3071.6169311250001},{"$f":"K16*1.05","v":3422.4385947675005},{"$f":"L16*1.05","v":3525.1117526105254}]
[null,null,null,"Good case Credit","Good case Credit","Good case Credit"]
[null,null,null,-335.66,{"$f":"D19","v":-335.66},{"$f":"E19","v":-335.66}]

{"sheet":"Corps & Bureau O&M","index":9,"n_rows":94,"n_cols":15,"rows_kept":94,"cut":false,"hidden":false,"merged":[[67,0,67,8],[37,0,37,8]]}
[]
[null,null,"FY17","FY17","FY18","FY18","FY19","FY19"]
[null,null,"Input","@risk","Input","@risk","Input","@risk"]
[null,null,null,null,null,"CORPOM-1",null,"CORPOM-2",null,null,null,{"$f":"D2","v":"FY17"},{"$f":"F2","v":"FY18"},{"$f":"H2","v":"FY19"}]
["CORPS O&M",null,{"$f":"'Risk Summary'!C10","v":243981},{"$f":"D39+(D42+D47)+D53+D58+D64","v":{"$error":"#NAME?"}},{"$f":"'Risk Summary'!E10","v":256057},{"$f":"F39+(F42+F47)+F53+F58+F64","v":{"$error":"#NAME?"}},{"$f":"'Risk Summary'!G10","v":256057},{"$f":"H39+(H42+H47)+H53+H58+H64","v":{"$error":"#NAME?"}},null,"COE and Reclamination O&M",null,{"$f":"_xll.RiskOutput(\"COE and Reclamation O&M / \"&L4)+(D5+D22)","v":{"$error":"#NAME?"}},{"$f":"_xll.RiskOutput(\"COE and Reclamation O&M / \"&M4)+(F5+F22)","v":{"$error":"#NAME?"}},{"$f":"_xll.RiskOutput(\"COE and Reclamation O&M / \"&N4)+(H5+H22)","v":{"$error":"#NAME?"}},{"$f":"_xll.RiskOutput(\"COE and Reclamation / FY14 and FY15\")+(M5+N5)","v":{"$error":"#NAME?"}}]
["Fish Passage",null,null,null,null,null,null,null,null,null,null,{"$f":"_xll.RiskMean(L5)","v":{"$error":"#NAME?"}}]
["= Base O&M","Deterministic",null,{"$f":"D39","v":243981},null,{"$f":"F39","v":256057},null,{"$f":"H39","v":256057}]
[]
["+ Added Security costs if event occurs","RiskDiscrete",null,{"$f":"D42","v":{"$error":"#NAME?"}},null,{"$f":"F42","v":{"$error":"#NAME?"}},null,{"$f":"H42","v":{"$error":"#NAME?"}},null,"Color Key:"]
[null,null,null,null,null,null,null,null,null,"SME Input"]
["+ Added Fish Environmental Compliance costs if event occurs","RiskDiscrete",null,{"$f":"D47","v":{"$error":"#NAME?"}},null,{"$f":"F47","v":{"$error":"#NAME?"}},null,{"$f":"H47","v":{"$error":"#NAME?"}},null,"Worksheet Formula"]
[null,null,null,null,null,null,null,null,null,"@Risk Output"]
["- Non-Routine Extraordinary Maintenance Costs Reduction","RiskDiscrete",null,{"$f":"D53","v":{"$error":"#NAME?"}},null,{"$f":"F53","v":{"$error":"#NAME?"}},null,{"$f":"H53","v":{"$error":"#NAME?"}},null,"Linked to Summary"]
[]
["+ Catastrophic Event Cost","RiskDiscrete",null,{"$f":"D58","v":{"$error":"#NAME?"}},null,{"$f":"F58","v":{"$error":"#NAME?"}},null,{"$f":"H58","v":{"$error":"#NAME?"}}]
[]
["+ Additional System Needs Costs","RiskDiscrete",null,{"$f":"D64","v":{"$error":"#NAME?"}},null,{"$f":"F64","v":{"$error":"#NAME?"}},null,{"$f":"H64","v":{"$error":"#NAME?"}}]
[]
[null,"QC Check of totals",null,{"$f":"SUM(D7:D17)","v":{"$error":"#NAME?"}},null,{"$f":"SUM(F7:F17)","v":{"$error":"#NAME?"}},null,{"$f":"SUM(H7:H17)","v":{"$error":"#NAME?"}}]
[]
[null,null,null,"BUROM-1",null,"BUROM-1",null,"BUROM-2"]
["BUREAU O&M",null,{"$f":"'Risk Summary'!C9","v":157620.99999999997},{"$f":"D69+(D72+D75)+D81+D92","v":{"$error":"#NAME?"}},{"$f":"'Risk Summary'!E9","v":164609},{"$f":"F69+(F72+F75)+F81+F92","v":{"$error":"#NAME?"}},{"$f":"'Risk Summary'!G9","v":162623},{"$f":"H69+(H72+H75)+H81+H92","v":{"$error":"#NAME?"}}]
[]
["= Base O&M","RiskPert",null,{"$f":"D69","v":157620.99999999997},null,{"$f":"F69","v":164609},null,{"$f":"H69","v":162623}]
[]
["+ Added Security costs if event occurs","RiskDiscrete",null,{"$f":"D72","v":{"$error":"#NAME?"}},null,{"$f":"F72","v":{"$error":"#NAME?"}},null,{"$f":"H72","v":{"$error":"#NAME?"}}]
[]
["+ Added Fish Environmental Compliance costs if event occurs","RiskDiscrete",null,{"$f":"D75","v":{"$error":"#NAME?"}},null,{"$f":"F75","v":{"$error":"#NAME?"}},null,{"$f":"H75","v":{"$error":"#NAME?"}}]
[]
["- Non-Routine Extraordinary Maintenance Costs Reduction","RiskDiscrete",null,{"$f":"D81","v":{"$error":"#NAME?"}},null,{"$f":"F81","v":{"$error":"#NAME?"}},null,{"$f":"H81","v":{"$error":"#NAME?"}}]
[]
["+ Catastrophic Event Cost","RiskDiscrete",null,{"$f":"D86","v":{"$error":"#NAME?"}},null,{"$f":"F86","v":{"$error":"#NAME?"}},null,{"$f":"H86","v":{"$error":"#NAME?"}}]
[]
["+ Additional System Needs Costs","RiskDiscrete",null,{"$f":"D92","v":{"$error":"#NAME?"}},null,{"$f":"F92","v":{"$error":"#NAME?"}},null,{"$f":"H92","v":{"$error":"#NAME?"}}]
[]
[null,"QC Check of totals",null,{"$f":"SUM(D24:D34)","v":{"$error":"#NAME?"}},null,{"$f":"SUM(F24:F34)","v":{"$error":"#NAME?"}},null,{"$f":"SUM(H24:H34)","v":{"$error":"#NAME?"}}]
[]
["Corps of Engineers"]
["Base O&M","Deterministic",null,{"$f":"C5","v":243981},null,{"$f":"E5","v":256057},null,{"$f":"G5","v":256057}]
[]
["Security",null,null,"CORPO&MSEC-1",null,"CORPO&MSEC-1",null,"CORPO&MSEC-2"]
[null,null,null,{"$f":"_xll.RiskDiscrete(D43:E43,D44:E44)","v":{"$error":"#NAME?"}},null,{"$f":"_xll.RiskDiscrete(F43:G43,F44:G44)","v":{"$error":"#NAME?"}},null,{"$f":"_xll.RiskDiscrete(H43:I43,H44:I44)","v":{"$error":"#NAME?"}}]
[null,"Cost of an Event",null,3000,0,3000,0,3000,0]
[null,"Probability of an event",null,{"$f":"2%/2","v":0.01},{"$f":"1-D44","v":0.99},0.02,{"$f":"1-F44","v":0.98},0.02,{"$f":"1-H44","v":0.98}]
[]
["Fish - Environmental Compliance",null,null,"CORPO&Mecomp-1",null,"CORPO&Mecomp-1",null,"CORPO&Mecomp-2"]
[null,null,null,{"$f":"_xll.RiskDiscrete(D48:E48,D49:E49)","v":{"$error":"#NAME?"}},null,{"$f":"_xll.RiskDiscrete(F48:G48,F49:G49)","v":{"$error":"#NAME?"}},null,{"$f":"_xll.RiskDiscrete(H48:I48,H49:I49)","v":{"$error":"#NAME?"}}]
[null,"Cost of an Event",null,2000,0,2000,0,2000,0]
[null,"Probability of an event",null,{"$f":"2%/2","v":0.01},{"$f":"1-D49","v":0.99},0.02,{"$f":"1-F49","v":0.98},0.02,{"$f":"1-H49","v":0.98}]
[]
["Non-Routine Extraordinary Maintenance"]
[null,null,null,"CORPO&MNREMsav-1",null,"CORPO&MNREMsav-1",null,"CORPO&MNREMsav-2"]
[null,"EV Additional Annual Cost",null,{"$f":"_xll.RiskDiscrete(D54:E54,D55:E55)","v":{"$error":"#NAME?"}},null,{"$f":"_xll.RiskDiscrete(F54:G54,F55:G55)","v":{"$error":"#NAME?"}},null,{"$f":"_xll.RiskDiscrete(H54:I54,H55:I55)","v":{"$error":"#NAME?"}}]
[null,"Annual Cost (Additional)",null,5000,0,5000,0,5000,0]
[null,"Probability that Additional Costs will be provided",null,{"$f":"2.5%/2","v":1.2500000000000001E-2},{"$f":"1-D55","v":0.98750000000000004},2.5000000000000001E-2,{"$f":"1-F55","v":0.97499999999999998},2.5000000000000001E-2,{"$f":"1-H55","v":0.97499999999999998}]
[]
["Catastrophic Event",null,null,"CORPO&MNREM-1",null,"CORPO&MNREM-1",null,"CORPO&MNREM-2"]
[null,"EV Event Cost",null,{"$f":"_xll.RiskDiscrete(D59:E59,D60:E60)","v":{"$error":"#NAME?"}},null,{"$f":"_xll.RiskDiscrete(F59:G59,F60:G60)","v":{"$error":"#NAME?"}},null,{"$f":"_xll.RiskDiscrete(H59:I59,H60:I60)","v":{"$error":"#NAME?"}}]
[null,"Event Cost",null,30000,0,30000,0,30000,0]
[null,"Event Probability",null,{"$f":"1%/2","v":5.0000000000000001E-3},{"$f":"1-D60","v":0.995},0.01,{"$f":"1-F60","v":0.99},0.01,{"$f":"1-H60","v":0.99}]
[]
["New System Requirements/Needs (e.g. for compliance/regulations, etc.) "]
[null,null,null,"CORPO&MNREM-1",null,"CORPO&MNREM-1",null,"CORPO&MNREM-1"]
[null,"EV Additional Annual Cost",null,{"$f":"_xll.RiskDiscrete(D65:E65,D66:E66)","v":{"$error":"#NAME?"}},null,{"$f":"_xll.RiskDiscrete(F65:G65,F66:G66)","v":{"$error":"#NAME?"}},null,{"$f":"_xll.RiskDiscrete(H65:I65,H66:I66)","v":{"$error":"#NAME?"}}]
[null,"Annual Cost (Additional)",null,5000,0,5000,0,5000,0]
[null,"Probability of Additional Costs",null,{"$f":"10%/2","v":0.05},{"$f":"1-D66","v":0.95},0.1,{"$f":"1-F66","v":0.9},0.1,{"$f":"1-H66","v":0.9}]
[]
["Bureau"]
["Base O&M","RiskPert",null,{"$f":"C22","v":157620.99999999997},null,{"$f":"E22","v":164609},null,{"$f":"G22","v":162623}]
[]
["Security",null,null,"BURO&MSEC-1",null,"BURO&MSEC-1",null,"BURO&MSEC-2"]
[null,null,null,{"$f":"D42","v":{"$error":"#NAME?"}},null,{"$f":"F42","v":{"$error":"#NAME?"}},null,{"$f":"H42","v":{"$error":"#NAME?"}}]
[]
["Fish - Environmental Compliance",null,null,"BURO&Mecomp-1",null,"BURO&Mecomp-1",null,"BURO&Mecomp-2"]
[null,null,null,{"$f":"_xll.RiskDiscrete(D76:E76,D77:E77)","v":{"$error":"#NAME?"}},null,{"$f":"_xll.RiskDiscrete(F76:G76,F77:G77)","v":{"$error":"#NAME?"}},null,{"$f":"_xll.RiskDiscrete(H76:I76,H77:I77)","v":{"$error":"#NAME?"}}]
[null,"Cost of an Event",null,2000,0,2000,0,2000,0]
[null,"Probability of an event",null,{"$f":"2%/2","v":0.01},{"$f":"1-D77","v":0.99},0.02,{"$f":"1-F77","v":0.98},0.02,{"$f":"1-H77","v":0.98}]
[]
["Non-Routine Extraordinary Maintenance"]
[null,null,null,"BURO&MNREMsav-1",null,"BURO&MNREMsav-1",null,"BURO&MNREMsav-2"]
[null,"EV Additional Annual Cost",null,{"$f":"_xll.RiskDiscrete(D82:E82,D83:E83)","v":{"$error":"#NAME?"}},null,{"$f":"_xll.RiskDiscrete(F82:G82,F83:G83)","v":{"$error":"#NAME?"}},null,{"$f":"_xll.RiskDiscrete(H82:I82,H83:I83)","v":{"$error":"#NAME?"}}]
[null,"Annual Cost (Additional)",null,5000,0,5000,0,5000,0]
[null,"Probability that Additional Costs will be provided",null,{"$f":"2.5%/2","v":1.2500000000000001E-2},{"$f":"1-D83","v":0.98750000000000004},2.5000000000000001E-2,{"$f":"1-F83","v":0.97499999999999998},2.5000000000000001E-2,{"$f":"1-H83","v":0.97499999999999998}]
[]
["Catastrophic Event",null,null,"BURO&MNREM-1",null,"BURO&MNREM-1",null,"BURO&MNREM-2"]
[null,"EV Event Cost",null,{"$f":"_xll.RiskDiscrete(D87:E87,D88:E88)","v":{"$error":"#NAME?"}},null,{"$f":"_xll.RiskDiscrete(F87:G87,F88:G88)","v":{"$error":"#NAME?"}},null,{"$f":"_xll.RiskDiscrete(H87:I87,H88:I88)","v":{"$error":"#NAME?"}}]
[null,"Event Cost",null,30000,0,30000,0,30000,0]
[null,"Event Probability",null,{"$f":"1%/2","v":5.0000000000000001E-3},{"$f":"1-D88","v":0.995},0.01,{"$f":"1-F88","v":0.99},0.01,{"$f":"1-H88","v":0.99}]
[]
["New System Requirements/Needs (e.g. for compliance/regulations, etc.) "]
[null,null,null,"BURO&Mnsneedinc-1",null,"BURO&Mnsneedinc-1",null,"BURO&Mnsneedinc-2"]
[null,"EV Additional Annual Cost",null,{"$f":"_xll.RiskDiscrete(D93:E93,D94:E94)","v":{"$error":"#NAME?"}},null,{"$f":"_xll.RiskDiscrete(F93:G93,F94:G94)","v":{"$error":"#NAME?"}},null,{"$f":"_xll.RiskDiscrete(H93:I93,H94:I94)","v":{"$error":"#NAME?"}}]
[null,"Annual Cost (Additional)",null,5000,0,5000,0,5000,0]
[null,"Probability of Additional Costs",null,{"$f":"10%/2","v":0.05},{"$f":"1-D94","v":0.95},0.1,{"$f":"1-F94","v":0.9},0.1,{"$f":"1-H94","v":0.9}]

{"sheet":"Colville&Spokane","index":10,"n_rows":26,"n_cols":11,"rows_kept":26,"cut":false,"hidden":false,"merged":[]}
[]
["Colville & Spokane Settlements",null,null,null,null,null,null,null,null,null,"Color Key:"]
[null,"Rates Values (Colville Settlement Assumed)",null,null,null,"@Risk",null,null,null,null,"SME Input"]
[null,"FY 17","FY 18","FY 19",null,{"$f":"B4","v":"FY 17"},{"$f":"C4","v":"FY 18"},{"$f":"D4","v":"FY 19"},null,null,"Worksheet Formula"]
[null,{"$f":"'Risk Summary'!C11","v":16666.778000000002},{"$f":"'Risk Summary'!E11","v":22612.477999999999},{"$f":"'Risk Summary'!G11","v":22996.89},null,{"$f":"B5+F15*F16*F17","v":{"$error":"#NAME?"}},{"$f":"_xll.RiskOutput(\"Spokane Settlement / FY14\")+C5+G15*G16*G17","v":{"$error":"#NAME?"}},{"$f":"_xll.RiskOutput(\"Spokane Settlement / FY15\")+D5+H15*H16*H17","v":{"$error":"#NAME?"}},{"$f":"_xll.RiskOutput(\"Spokane Settlement / FY14 and FY15\")+H5+G5","v":{"$error":"#NAME?"}},null,"@Risk Output"]
[null,null,null,null,null,null,null,null,null,null,"Linked to Summary"]
[null,null,null,"Probability of Occurance ","discrete",{"$f":"_xll.RiskDiscrete(F8:G8,F9:G9)","v":{"$error":"#NAME?"}},null,null,null,null,"@Risk Formula"]
[null,null,null,"During Rate Period","multiplier",1,0]
[null,null,null,null,"probability",0.2,{"$f":"1-F9","v":0.8}]
[]
[null,null,null,"Year of Occurance (if occurs)","discrete",{"$f":"_xll.RiskDiscrete(F12:H12,F13:H13)","v":{"$error":"#NAME?"}}]
[null,null,null,null,"Year",1,2,3]
[null,null,null,null,"Probability",0,0.5,0.5]
[]
[null,null,null,null,"Forecast Colville Payment",{"$f":"B5","v":16666.778000000002},{"$f":"C5","v":22612.477999999999},{"$f":"D5","v":22996.89}]
[null,null,null,null,"Spokane Multiplier",0.25,{"$f":"F16","v":0.25},{"$f":"F16","v":0.25}]
[null,null,null,null,"Occurs this year?",{"$f":"AND($F$11<=F12,$F$7)","v":{"$error":"#NAME?"}},{"$f":"AND($F$11<=G12,$F$7)","v":{"$error":"#NAME?"}},{"$f":"AND($F$11<=H12,$F$7)","v":{"$error":"#NAME?"}}]
[]
[]
["Colville Settlement Calculation"]
["Colville Settlement Uncertainty has been removed from NORM for the initial proposal.  In evaluating and updating the model, we found that the model produced results that were, overall, counter-intuititve."]
["The settlement payment is calculated based on several uncertaintites including Power Sales Revenue and Power Sales MWh, and Grand Coolie Generation MWh.  The correlations between these items"]
["is not readily assessable in NORM, nor is the correlation between the level of the Colville Settlement Payment and Power Services Net Revenue.  When modeling the risk without correlations, Colville"]
["Settlement risk will increase BPA's net revenue risk, as measured by the standard deviation of net revenue.  We believe that, if correlations were taken into account, The "]
["Colville Settlement risk is likely to decrease or have minimal effect on overall Net Revenue uncertainty.  Riskmod contains models of some of the key uncertainties in the colville payment, "]
["along with implied correlation between those uncertainties.  Because of this, we plan to model the uncertainty in the Colville Settlement in Riskmod for the final proposal."]

{"sheet":"Salaries","index":11,"n_rows":27,"n_cols":11,"rows_kept":27,"cut":false,"hidden":false,"merged":[]}
[]
["VERBS Revenue",null,null,null,null,null,null,"$000",null,null,"Color Key:"]
[null,"Rates Values",null,null,null,"@Risk Revenue Adjustment",null,null,null,null,"SME Input"]
[null,"FY 17","FY 18","FY 19",null,"FY 17","FY 18","FY 19",null,null,"Worksheet Formula"]
["INFORMATION TECHNOLOGY",{"$f":"'Risk Summary'!C19","v":7047.1570000000002},{"$f":"'Risk Summary'!E19","v":6976.1589999999997},{"$f":"'Risk Summary'!G19","v":7293.8649999999998},null,{"$f":"B5*(B$21+B$27)/B$21","v":{"$error":"#NAME?"}},{"$error":"#NAME?"},{"$error":"#NAME?"},null,null,"@Risk Output"]
["GENERATION PROJECT COORDINATION",{"$f":"'Risk Summary'!C20","v":5962.759},{"$f":"'Risk Summary'!E20","v":6173.94},{"$f":"'Risk Summary'!G20","v":6408.9049999999997},null,{"$error":"#NAME?"},{"$error":"#NAME?"},{"$error":"#NAME?"},null,null,"Linked to Summary"]
["SLICE IMPLEMENTATION",{"$f":"'Risk Summary'!C21","v":488.95900000000006},{"$f":"'Risk Summary'!E21","v":1024.143},{"$f":"'Risk Summary'!G21","v":1061.3599999999999},null,{"$error":"#NAME?"},{"$error":"#NAME?"},{"$error":"#NAME?"},null,null,"@Risk Formula"]
[null,{"$f":"'Risk Summary'!C22","v":""},{"$f":"'Risk Summary'!E22","v":""},{"$f":"'Risk Summary'!G22","v":""}]
["OPERATIONS SCHEDULING",{"$f":"'Risk Summary'!C23","v":8897.6750000000011},{"$f":"'Risk Summary'!E23","v":10053.728999999999},{"$f":"'Risk Summary'!G23","v":10404.279},null,{"$f":"B9*(B$21+B$27)/B$21","v":{"$error":"#NAME?"}},{"$error":"#NAME?"},{"$error":"#NAME?"}]
["OPERATIONS PLANNING",{"$f":"'Risk Summary'!C24","v":7613.3019999999997},{"$f":"'Risk Summary'!E24","v":8528.098},{"$f":"'Risk Summary'!G24","v":8415.7109999999993},null,{"$error":"#NAME?"},{"$error":"#NAME?"},{"$error":"#NAME?"}]
["POWER R&D",{"$f":"'Risk Summary'!C25","v":4275.6980000000012},{"$f":"'Risk Summary'!E25","v":4704.933},{"$f":"'Risk Summary'!G25","v":4599.5190000000002},null,{"$error":"#NAME?"},{"$error":"#NAME?"},{"$error":"#NAME?"}]
[null,{"$f":"'Risk Summary'!C26","v":""},{"$f":"'Risk Summary'!E26","v":""},{"$f":"'Risk Summary'!G26","v":""}]
["SALES & SUPPORT",{"$f":"'Risk Summary'!C27","v":19588.128000000001},{"$f":"'Risk Summary'!E27","v":22885.138999999999},{"$f":"'Risk Summary'!G27","v":23485.271000000001},null,{"$f":"B13*(B$21+B$27)/B$21","v":{"$error":"#NAME?"}},{"$error":"#NAME?"},{"$error":"#NAME?"}]
["STRATEGY, FINANCE & RISK MGMT",{"$f":"'Risk Summary'!C28","v":14877.487999999999},{"$f":"'Risk Summary'!E28","v":16853.235000000001},{"$f":"'Risk Summary'!G28","v":19038.129000000001},null,{"$error":"#NAME?"},{"$error":"#NAME?"},{"$error":"#NAME?"}]
["Executive & Administrative Services",{"$f":"'Risk Summary'!C29","v":3417.4749999999999},{"$f":"'Risk Summary'!E29","v":4118.5219999999999},{"$f":"'Risk Summary'!G29","v":4203.5300000000007},null,{"$error":"#NAME?"},{"$error":"#NAME?"},{"$error":"#NAME?"}]
["CONSERVATION SUPPORT",{"$f":"'Risk Summary'!C30","v":8239.36},{"$f":"'Risk Summary'!E30","v":9093.5630000000001},{"$f":"'Risk Summary'!G30","v":9408.5},null,{"$error":"#NAME?"},{"$error":"#NAME?"},{"$error":"#NAME?"}]
[]
["Agency Services G&A (Excludes Direct Project Support)",{"$f":"'Risk Summary'!C32","v":58261.282000000007},{"$f":"'Risk Summary'!E32","v":64391.224999999999},{"$f":"'Risk Summary'!G32","v":65796.266000000003},null,{"$f":"B18*(B$21+B$27)/B$21","v":{"$error":"#NAME?"}},{"$f":"C18*(C$21+C$27)/C$21","v":{"$error":"#NAME?"}},{"$f":"D18*(D$21+D$27)/D$21","v":{"$error":"#NAME?"}}]
[]
[]
["Total",{"$f":"SUM(B5:B18)","v":138669.283},{"$f":"SUM(C5:C18)","v":154802.68599999999},{"$f":"SUM(D5:D18)","v":160115.33499999999}]
[]
["5% FTE Variance",-2,-10,-15]
["Expected FTE Variance",0,0,0]
["95% FTE Variance",2,10,15]
["Average Cost per FTE ($000)",108,108,108]
["Cost Delta",{"$f":"_xll.RiskOutput(,\"=Staffing Cost Delta\",1)+_xll.RiskPertAlt(5%,B23*B26,50%,B24*B26,95%,B25*B26)","v":{"$error":"#NAME?"}},{"$f":"_xll.RiskOutput(,\"=Staffing Cost Delta\",1)+_xll.RiskPertAlt(5%,C23*C26,50%,C24*C26,95%,C25*C26)","v":{"$error":"#NAME?"}},{"$f":"_xll.RiskOutput(,\"=Staffing Cost Delta\",1)+_xll.RiskPertAlt(5%,D23*D26,50%,D24*D26,95%,D25*D26)","v":{"$error":"#NAME?"}}]

{"sheet":"F&W Expense","index":12,"n_rows":27,"n_cols":14,"rows_kept":27,"cut":false,"hidden":false,"merged":[]}
[]
[null,null,null,null,null,null,null,null,null,null,null,null,null,"Color Key:"]
[null,null,null,null,null,null,null,null,null,null,null,null,null,"SME Input"]
[null,null,null,null,null,2017,"@risk",{"$f":"F4+1","v":2018},"@risk",{"$f":"+H4+1","v":2019},"@risk",null,null,"Worksheet Formula"]
[null,null,null,null,null,null,"FY 17",null,"FY 18",null,"FY 19","FY18 and FY19",null,"@Risk Output"]
[null,null,null,null,"F&W Roll Up (excludes Lower Snake Hatch)",null,{"$f":"G9+G14+G18","v":{"$error":"#NAME?"}},null,{"$f":"I9+I14+I18","v":{"$error":"#NAME?"}},null,{"$f":"K9+K14+K18","v":{"$error":"#NAME?"}},{"$f":"SUM(G6:K6)","v":{"$error":"#NAME?"}},null,"Linked to Summary"]
[null,null,null,null,null,null,null,null,null,null,null,null,null,"@Risk Formula"]
[]
["RiskPert",null,null,null,"F&W Direct Program Cost",{"$f":"'Risk Summary'!C34","v":263869.32900000003},{"$f":"_xll.RiskPert(F10,F11,F12)","v":{"$error":"#NAME?"}},{"$f":"'Risk Summary'!E34","v":276713.28200000001},{"$f":"_xll.RiskPert(H10,H11,H12)","v":{"$error":"#NAME?"}},{"$f":"'Risk Summary'!G34","v":276703.66800000001},{"$f":"_xll.RiskPert(J10,J11,J12)","v":{"$error":"#NAME?"}},{"$f":"_xll.RiskOutput(\"F&W Direct Program Cost / FY14 and FY15\")+(I9+K9)","v":{"$error":"#NAME?"}}]
[null,null,null,null,"Min",{"$f":"F9","v":263869.32900000003},null,{"$f":"H9*0.95","v":262877.61790000001},null,{"$f":"J9*0.95","v":262868.48459999997}]
[null,null,null,null,"Most Likely",{"$f":"F9","v":263869.32900000003},null,{"$f":"H9*0.975","v":269795.44994999998},null,{"$f":"J9*0.975","v":269786.07630000002}]
[null,null,null,null,"Max",{"$f":"F9","v":263869.32900000003},null,{"$f":"H9","v":276713.28200000001},null,{"$f":"J9","v":276703.66800000001}]
[]
["RiskDiscrete",null,null,null,"Reclamation - Leavenworth Complex O&M",0,{"$f":"_xll.RiskDiscrete(F16:G16,F15:G15)","v":{"$error":"#NAME?"}},0,{"$f":"_xll.RiskDiscrete(H16:I16,H15:I15)","v":{"$error":"#NAME?"}},0,{"$f":"_xll.RiskDiscrete(J16:K16,J15:K15)","v":{"$error":"#NAME?"}},{"$f":"_xll.RiskOutput(\"Leavenworth Complex O&M Impact on Net Revenue / FY14 and FY15\")+(I14+K14)","v":{"$error":"#NAME?"}}]
[null,null,null,null,"P",{"$f":"1%/2","v":5.0000000000000001E-3},{"$f":"1-F15","v":0.995},0.01,{"$f":"1-H15","v":0.99},0.01,{"$f":"1-J15","v":0.99}]
[null,null,null,null,"Value",1000,0,1000,0,1000,0]
[null,null,null,null,null,null," "]
["RiskDiscrete",null,null,null,"COE - Fish Passage Facilities",0,{"$f":"_xll.RiskDiscrete(F20:G20,F19:G19)","v":{"$error":"#NAME?"}},0,{"$f":"_xll.RiskDiscrete(H20:I20,H19:I19)","v":{"$error":"#NAME?"}},0,{"$f":"_xll.RiskDiscrete(J20:K20,J19:K19)","v":{"$error":"#NAME?"}},{"$f":"_xll.RiskOutput(\"COE - Fish Passage Facilities Impact on Net Revenue / FY14 and FY15\")+(I18+K18)","v":{"$error":"#NAME?"}}]
[null,null,null,null,"P",{"$f":"1%/2","v":5.0000000000000001E-3},{"$f":"1-F19","v":0.995},0.01,{"$f":"1-H19","v":0.99},0.01,{"$f":"1-J19","v":0.99}]
[null,null,null,null,"Value",1000,0,1000,0,1000,0]
[]
[]
[null,null,null,null,null,null,"FY 15",null,"FY 16",null,"FY 17","FY16 and FY17"]
["RiskPert",null,null,null,"              USF&W Lower Snake Hatcheries",{"$f":"'Risk Summary'!C35","v":31949.46799999999},{"$f":"_xll.RiskPert(F25,F26,F27)","v":{"$error":"#NAME?"}},{"$f":"'Risk Summary'!E35","v":33483.249000000003},{"$f":"_xll.RiskPert(H25,H26,H27)","v":{"$error":"#NAME?"}},{"$f":"'Risk Summary'!G35","v":33483.249000000003},{"$f":"_xll.RiskPert(J25,J26,J27)","v":{"$error":"#NAME?"}},{"$f":"_xll.RiskOutput(\"USF&W Lower Snake Hatcheries / FY14 and FY15\")+(I24+K24)","v":{"$error":"#NAME?"}}]
[null,null,null,null,"Min",{"$f":"F24","v":31949.46799999999},null,{"$f":"H27*0.9","v":30134.924100000004},null,{"$f":"J27*0.9","v":30134.924100000004}]
[null,null,null,null,"Most Likely",{"$f":"F24","v":31949.46799999999},null,{"$f":"H27*0.95","v":31809.08655},null,{"$f":"J27*0.95","v":31809.08655}]
[null,null,null,null,"Max",{"$f":"F24","v":31949.46799999999},null,{"$f":"H24","v":33483.249000000003},null,{"$f":"J24","v":33483.249000000003}]

{"sheet":"Interest","index":13,"n_rows":3212,"n_cols":16,"rows_kept":3212,"cut":false,"hidden":false,"merged":[]}
[]
["Interest Expense",null,null,null,null,null,null,"$000",null,null,null,null,null,"Color Key:"]
[null,"Rates Values",null,null,null,"@Risk Expense Adjustment",null,null,null,"Modeled Value",null,null,null,"SME Input"]
[null,"FY17","FY18","FY19",null,{"$f":"B4","v":"FY17"},{"$f":"C4","v":"FY18"},{"$f":"D4","v":"FY19"},null,{"$f":"B4","v":"FY17"},{"$f":"C4","v":"FY18"},{"$f":"D4","v":"FY19"},null,"Worksheet Formula"]
["Non-Federal Debt Service",{"$f":"'Risk Summary'!C37","v":222831.00000000003},{"$f":"'Risk Summary'!E37","v":490561.80912599992},{"$f":"'Risk Summary'!G37","v":420704.15750000003},null,{"$f":"OFFSET(F12,_xll.RiskCurrentIter(),0)*1000+OFFSET(B12,_xll.RiskCurrentIter(),0)*1000","v":{"$error":"#NAME?"}},{"$f":"OFFSET(G12,_xll.RiskCurrentIter(),0)*1000+OFFSET(C12,_xll.RiskCurrentIter(),0)*1000","v":{"$error":"#NAME?"}},{"$f":"OFFSET(H12,_xll.RiskCurrentIter(),0)*1000+OFFSET(D12,_xll.RiskCurrentIter(),0)*1000","v":{"$error":"#NAME?"}},null,{"$f":"_xll.RiskOutput(,A5,1)+B5+F5","v":{"$error":"#NAME?"}},{"$f":"_xll.RiskOutput(,A5,2)+C5+G5","v":{"$error":"#NAME?"}},{"$f":"_xll.RiskOutput(,A5,3)+D5+H5","v":{"$error":"#NAME?"}},null,"@Risk Output"]
["Federal Debt Service",{"$f":"'Risk Summary'!C38","v":53895.938000000002},{"$f":"'Risk Summary'!E38","v":56449},{"$f":"'Risk Summary'!G38","v":63302},null,{"$f":"OFFSET(J12,_xll.RiskCurrentIter(),0)*1000","v":{"$error":"#NAME?"}},{"$f":"OFFSET(K12,_xll.RiskCurrentIter(),0)*1000","v":{"$error":"#NAME?"}},{"$f":"OFFSET(L12,_xll.RiskCurrentIter(),0)*1000","v":{"$error":"#NAME?"}},null,{"$f":"_xll.RiskOutput(,A6,1)+B6+F6","v":{"$error":"#NAME?"}},{"$f":"_xll.RiskOutput(,A6,2)+C6+G6","v":{"$error":"#NAME?"}},{"$f":"_xll.RiskOutput(,A6,3)+D6+H6","v":{"$error":"#NAME?"}},null,"Linked to Summary"]
["Appropriations",{"$f":"'Risk Summary'!C39","v":115582.3},{"$f":"'Risk Summary'!E39","v":83294},{"$f":"'Risk Summary'!G39","v":82687},null,{"$f":"OFFSET(N12,_xll.RiskCurrentIter(),0)*1000","v":{"$error":"#NAME?"}},{"$f":"OFFSET(O12,_xll.RiskCurrentIter(),0)*1000","v":{"$error":"#NAME?"}},{"$f":"OFFSET(P12,_xll.RiskCurrentIter(),0)*1000","v":{"$error":"#NAME?"}},null,{"$f":"_xll.RiskOutput(,A7,1)+B7+F7","v":{"$error":"#NAME?"}},{"$f":"_xll.RiskOutput(,A7,2)+C7+G7","v":{"$error":"#NAME?"}},{"$f":"_xll.RiskOutput(,A7,3)+D7+H7","v":{"$error":"#NAME?"}},null,"@Risk Formula"]
[]
["Output from Interest Model.  Values in $M."]
[null,"Non-Federal TaxableBorrowings",null,null,null,"Non-Federal Tax Exempt Borrowings",null,null,null,"Federal Borrowings",null,null,null,"Appropriations"]
[null,{"$f":"B4","v":"FY17"},{"$f":"C4","v":"FY18"},{"$f":"D4","v":"FY19"},null,{"$f":"B11","v":"FY17"},{"$f":"C11","v":"FY18"},{"$f":"D11","v":"FY19"},null,{"$f":"B11","v":"FY17"},{"$f":"C11","v":"FY18"},{"$f":"D11","v":"FY19"},null,{"$f":"B11","v":"FY17"},{"$f":"C11","v":"FY18"},{"$f":"D11","v":"FY19"}]
["Average",{"$f":"AVERAGE(B13:B3212)","v":0},{"$f":"AVERAGE(C13:C3212)","v":-1.577210584358113E-14},{"$f":"AVERAGE(D13:D3212)","v":7.2878023060773955E-14},null,{"$f":"AVERAGE(F13:F3212)","v":0},{"$f":"AVERAGE(G13:G3212)","v":0},{"$f":"AVERAGE(H13:H3212)","v":0},null,{"$f":"AVERAGE(J13:J3212)","v":1.1581230766055662E-16},{"$f":"AVERAGE(K13:K3212)","v":-4.9911810795499886E-15},{"$f":"AVERAGE(L13:L3212)","v":2.6095792193814303E-15},null,{"$f":"AVERAGE(N13:N3212)","v":0},{"$f":"AVERAGE(O13:O3212)","v":0},{"$f":"AVERAGE(P13:P3212)","v":0}]
[1,0,-1.6920542694924408,-4.0980498370909411,null,0,0,0,null,-7.6854453960108916E-3,-0.14750446534146341,-0.53901338668834797,null,0,0,0]
[2,0,1.2011234079170043,3.4079192229990296,null,0,0,0,null,-4.0167315997656092E-2,-0.35167026916964916,1.2085547095995026,null,0,0,0]
[3,0,0.98600594970341082,2.8311998577714621,null,0,0,0,null,3.3406735984547881E-2,0.49533807916906336,1.5798029169602086,null,0,0,0]
[4,0,1.9066716308874039,5.4287430840208621,null,0,0,0,null,8.5108568323991399E-2,1.1976264070478819,3.2288872854922412,null,0,0,0]
[5,0,0.2289759994356482,0.93567022696739155,null,0,0,0,null,-2.1275255244652441E-2,-0.24782251184010784,-3.8512380998065053E-2,null,0,0,0]
[6,0,1.1448100610061374E-2,3.6594048054823358E-2,null,0,0,0,null,6.2343705584734781E-2,0.77291215208756514,1.0587896104877437,null,0,0,0]
[7,0,-1.9844650081216915,-4.8496264808205236,null,0,0,0,null,-1.0504385610880433E-2,-0.32646484887899985,-2.5103058336245159,null,0,0,0]
[8,0,1.3662608077190344,3.4938410180566932,null,0,0,0,null,6.5317915984767867E-3,0.14418372048079345,0.84465924037292284,null,0,0,0]
[9,0,1.6977708108067708,4.786611545161497,null,0,0,0,null,9.1119306405309602E-2,1.2557675882036319,3.1334466926614075,null,0,0,0]
[10,0,1.9372131587899948,5.2036065500915356,null,0,0,0,null,-1.9248072797151166E-2,-9.7517830507949835E-2,1.5169368387115427,null,0,0,0]
[11,0,1.6061634318355809,4.1513862972093847,null,0,0,0,null,4.5581510106032395E-3,0.20567235627007813,1.9285997653548148,null,0,0,0]
[12,0,1.366990550819688,3.8713965316212491,null,0,0,0,null,4.0841411045005313E-2,0.6293523529205941,2.2357710278391241,null,0,0,0]
[13,0,-0.87628937181723454,-2.3657924439689157,null,0,0,0,null,0.10632180348804042,1.4019869131096721,2.8459165683719365,null,0,0,0]
[14,0,0.45641292323868038,1.0685585026810658,null,0,0,0,null,2.0474601270437064E-2,0.32358084165777107,1.2836057456094749,null,0,0,0]
[15,0,-1.6140863395318137,-4.1942494576245082,null,0,0,0,null,6.7267942445580223E-2,0.72040199142939398,-8.8873182445171547E-2,null,0,0,0]
[16,0,-0.87482325244648751,-2.5218218674240704,null,0,0,0,null,-3.7030622620036181E-2,-0.49709504187053333,-1.2055531184777755,null,0,0,0]
[17,0,-0.45010079196578773,-1.4228167008457822,null,0,0,0,null,1.2771317915573888E-2,0.11008770336770886,-0.4505609069333914,null,0,0,0]
[18,0,-0.19646516008857726,-0.50675155051103504,null,0,0,0,null,2.172839873619745E-2,0.21661363921334942,-0.28993791397919633,null,0,0,0]
[19,0,0.58442999440684429,1.1861302776588782,null,0,0,0,null,-4.5581810225249569E-2,-0.48205065573726369,0.23373864531547223,null,0,0,0]
[20,0,0.51487790389429933,1.5118204449770565,null,0,0,0,null,-9.5844250654468516E-3,-0.10420202481852629,0.1116326799487033,null,0,0,0]
[21,0,-0.30037375974841235,-0.57459982598267378,null,0,0,0,null,-3.3442499932501563E-2,-0.38376348313439573,-0.2064067273006949,null,0,0,0]
[22,0,-1.5655186211569545,-4.7427076217360886,null,0,0,0,null,3.8661927124253967E-2,0.38196019949815674,-0.65089098325305172,null,0,0,0]
[23,0,0.53224247982980155,0.89170242401510036,null,0,0,0,null,5.9991384230235721E-2,0.85227014272021284,2.2550843593335776,null,0,0,0]
[24,0,-0.37127234691880767,-0.66556889644885819,null,0,0,0,null,-4.4540091450061936E-2,-0.59669432290491109,-1.1983500051256015,null,0,0,0]
[25,0,1.0659431438684077,3.0788572720777809,null,0,0,0,null,-4.2110198475693264E-2,-0.40108977581130695,0.87126230603672228,null,0,0,0]
[26,0,1.8208458436025539,4.6970997508103105,null,0,0,0,null,5.5584969038321164E-2,0.87424111275819361,3.2574241678107976,null,0,0,0]
[27,0,0.13180832274848764,0.36408218837637835,null,0,0,0,null,5.0574546040586657E-2,0.65325032287472007,1.1758488029473846,null,0,0,0]
[28,0,-0.4557448005583683,-0.90354659603189791,null,0,0,0,null,-1.8078864127441308E-2,-0.29134620288918361,-1.0374748073697373,null,0,0,0]
[29,0,1.569435978499252,4.2958874918114667,null,0,0,0,null,-1.1748864197802675E-2,-4.3904545467948079E-2,1.1559952820351609,null,0,0,0]
[30,0,0.29238479112550886,0.73765982943952257,null,0,0,0,null,2.4018351891568444E-2,0.33047798576638071,0.87690340015205215,null,0,0,0]
[31,0,-1.0592938056976891,-2.9418693290983575,null,0,0,0,null,7.149337836311434E-2,0.88697643045981023,1.1576998706731283,null,0,0,0]
[32,0,0.49892788174993441,1.6520457106522664,null,0,0,0,null,-2.82730957180608E-2,-0.28273626851729566,0.45452781213992421,null,0,0,0]
[33,0,-0.33140775035834669,-1.3410112728757013,null,0,0,0,null,2.5509779362448852E-2,0.33566688548287404,0.59985967946712482,null,0,0,0]
[34,0,-0.73028955641051474,-2.1283577552046697,null,0,0,0,null,-4.8376175270021235E-2,-0.63050724922098655,-1.243969725407096,null,0,0,0]
[35,0,0.41960734555393353,1.4314708727715844,null,0,0,0,null,-3.5048638995975406E-2,-0.39577939735148632,-1.5728311752176524E-2,null,0,0,0]
[36,0,-0.74156977026427917,-1.7821793431584227,null,0,0,0,null,-2.0070339001040736E-2,-0.3611757811620146,-1.7962253064575415,null,0,0,0]
[37,0,0.34844815310168631,1.2988323838758953,null,0,0,0,null,-8.5818842299227927E-2,-0.97169830223155162,-0.32014492569794312,null,0,0,0]
[38,0,-1.5037281284509008,-4.0593780853685093,null,0,0,0,null,-3.6166101924292829E-2,-0.56295128548779672,-2.0492820759167771,null,0,0,0]
[39,0,0.14189295323702025,0.58360573012924577,null,0,0,0,null,-2.9492902138342175E-3,-4.9625703307923687E-2,-0.1229376915870198,null,0,0,0]
[40,0,0.56960070987724432,1.4766202719903958,null,0,0,0,null,8.4167379410120535E-2,1.0816990431276572,1.9296015016478922,null,0,0,0]
[41,0,1.1601147283365918,3.3301631648770416,null,0,0,0,null,-4.1016262321458268E-2,-0.37468018223320271,1.0549768594526576,null,0,0,0]
[42,0,-1.8509602370690992,-5.1439447888260252,null,0,0,0,null,2.9373250482534616E-2,0.23992877416270586,-1.0183135873789324,null,0,0,0]
[43,0,0.3902080763169215,1.0904938361270979,null,0,0,0,null,1.1660819543054116E-3,2.4593710641615873E-2,8.6668662486412362E-2,null,0,0,0]
[44,0,-0.74710502294114844,-2.7073503924923936,null,0,0,0,null,-7.9938460450169432E-2,-1.0853912246676882,-2.6348235693895221,null,0,0,0]
[45,0,0.3893323229302223,1.0499088205635998,null,0,0,0,null,1.2258903330291218E-2,0.17987361617922851,0.65039603940985402,null,0,0,0]
[46,0,-0.73408307364373648,-2.3045787949277439,null,0,0,0,null,-5.3694459184838651E-2,-0.70010122162662358,-1.4745972951302355,null,0,0,0]
[47,0,0.47708203709131158,0.78130040822064617,null,0,0,0,null,6.3106532251752862E-2,0.91074531497011046,2.5410509197030149,null,0,0,0]
[48,0,2.8549753355015129E-2,0.117204732009086,null,0,0,0,null,7.0119653516441477E-2,0.85391365632370431,0.99847573956849378,null,0,0,0]
[49,0,-0.91513024824910649,-2.5283874152667414,null,0,0,0,null,-1.2858644188205176E-2,-0.22142415301196705,-1.0056917342160159,null,0,0,0]
[50,0,-0.47772974534784407,-0.70316835401952271,null,0,0,0,null,-3.7976419459238346E-2,-0.54505186741936906,-1.4167609280269571,null,0,0,0]
[51,0,0.21375905095578857,0.77247249336707313,null,0,0,0,null,-2.4310265936127282E-3,-5.3673858600541281E-2,-0.22905449679720186,null,0,0,0]
[52,0,-0.81563369735365088,-2.344572864546608,null,0,0,0,null,1.4612021783553076E-2,0.10361628459081203,-0.73864846840322207,null,0,0,0]
[53,0,-1.1925289805051633,-3.2707147565290287,null,0,0,0,null,1.5465283820012644E-2,9.986274865483119E-2,-0.8864365457456006,null,0,0,0]
[54,0,-2.9404546056803991,-7.7509100475607777,null,0,0,0,null,-7.4344159471270127E-2,-1.1247241334727933,-3.6523477171804588,null,0,0,0]
[55,0,-1.4628954236114968,-3.882621714005094,null,0,0,0,null,-8.0439708436905455E-2,-1.0746801340782759,-2.3211172431465021,null,0,0,0]
[56,0,-1.8323356775858228,-4.7013995759881873,null,0,0,0,null,2.0500384816717995E-2,0.1355603567391081,-0.97889999381843151,null,0,0,0]
[57,0,-0.47171546801231673,-1.1224046129930139,null,0,0,0,null,3.4300569713594767E-3,9.1190052709871454E-3,-0.4515017369775487,null,0,0,0]
[58,0,0.87104834521352681,2.1293778600525983,null,0,0,0,null,3.5456026429343125E-2,0.51364425807462888,1.6083270171875448,null,0,0,0]
[59,0,-1.3681470557480988,-3.848958247067356,null,0,0,0,null,1.3801434508254431E-2,3.1665084732131615E-2,-1.5439397699752335,null,0,0,0]
[60,0,-0.85578273044616615,-2.4834032840413203,null,0,0,0,null,-3.7168477315783717E-2,-0.50284354909259943,-1.2721591071289695,null,0,0,0]
[61,0,7.250920857461278E-2,0.13307609967381723,null,0,0,0,null,1.6890668355472656E-2,0.23315920846359767,0.63935389848069102,null,0,0,0]
[62,0,1.0769401230370914,2.9644056047027116,null,0,0,0,null,9.0970029277901002E-2,1.1995179416813397,2.4891031453569705,null,0,0,0]
[63,0,-0.75661198336196134,-2.5527441494693632,null,0,0,0,null,-4.7897884429061038E-2,-0.66042354584923757,-1.7518834706230955,null,0,0,0]
[64,0,-0.21473317230390968,-0.34417696934124981,null,0,0,0,null,-4.01007615429873E-2,-0.46521870653404312,-0.31060126268173555,null,0,0,0]
[65,0,-0.60720460249494312,-2.0020187299011085,null,0,0,0,null,-7.0601626496320416E-2,-0.92089939455543846,-1.890194637243134,null,0,0,0]
[66,0,1.2939160821057085,3.555225103929224,null,0,0,0,null,4.104862261909898E-2,0.59931143945341137,1.8725114463825776,null,0,0,0]
[67,0,0.48019783701206326,1.584393005273756,null,0,0,0,null,-2.3427615602517108E-2,-0.27729190878965071,-0.23565803428925938,null,0,0,0]
[68,0,-0.67049852943562471,-1.5243731454472873,null,0,0,0,null,-6.6823274987940521E-3,-0.19189386635001757,-1.4931029413124779,null,0,0,0]
[69,0,0.82209018811198253,2.4138161703543375,null,0,0,0,null,-4.5753321261057293E-2,-0.4557941454422571,0.66837427842358377,null,0,0,0]
[70,0,-3.7688872524926413E-2,-0.19975363481241221,null,0,0,0,null,-1.7988708058747308E-2,-0.17121808132401112,0.33519265089969486,null,0,0,0]
[71,0,-2.7388329104463263,-7.0728432173014406,null,0,0,0,null,-7.620413169032389E-2,-1.0646327385386229,-2.6884088375589088,null,0,0,0]
[72,0,1.2454982952729825,3.4436794923787093,null,0,0,0,null,2.8546664906653803E-2,0.44377762981388608,1.6604934689930124,null,0,0,0]
[73,0,1.7983667067009774,4.6827597442789628,null,0,0,0,null,5.9796096170287173E-2,0.93140585409276899,3.3959702762178385,null,0,0,0]
[74,0,-0.98500979764857766,-2.6818451293303953,null,0,0,0,null,-8.8570988999480838E-3,-0.18509585593904104,-1.0829991969995645,null,0,0,0]
[75,0,1.4967261720780607,4.1042997557389462,null,0,0,0,null,3.4837504283510325E-2,0.55516973227948707,2.1748680770006832,null,0,0,0]
[76,0,-1.165865338144862,-3.4525497829326706,null,0,0,0,null,-3.2995493117769288E-2,-0.49122787070627871,-1.6768943763497228,null,0,0,0]
[77,0,0.99272641940422723,2.92507746971686,null,0,0,0,null,-1.859008757427779E-2,-0.11763832796986116,1.1698383398395635,null,0,0,0]
[78,0,-0.4073189268522765,-0.78924267134346882,null,0,0,0,null,-1.873879873208608E-2,-0.26807489745053681,-0.84406081657454346,null,0,0,0]
[79,0,0.13982671351449244,0.96515748241179244,null,0,0,0,null,2.5319966578080937E-2,0.30459725064282883,0.19821340147733646,null,0,0,0]
[80,0,0.92442464653802559,2.7020009902132731,null,0,0,0,null,-2.9043267419409859E-2,-0.25914474073332167,0.8363333343288577,null,0,0,0]
[81,0,1.175065729231348,3.2415278969450809,null,0,0,0,null,1.3306859992585202E-2,0.22579130147792512,1.0335697965618855,null,0,0,0]
[82,0,1.2296672746707535,3.1589578568693542,null,0,0,0,null,-3.415811611782385E-2,-0.33904974292058521,0.50390406158987022,null,0,0,0]
[83,0,-2.5370728471819404,-6.7761454483702037,null,0,0,0,null,-7.3458861523680238E-2,-1.0756465017900865,-3.1915658822649458,null,0,0,0]
[84,0,1.9163683071272097,5.1956024450137193,null,0,0,0,null,-1.2306585322742706E-2,-1.9638586393100014E-2,1.5398668568830254,null,0,0,0]
[85,0,-0.15496397151587371,-0.16878948467518784,null,0,0,0,null,1.1585393201823991E-4,-4.556114200866887E-2,-0.50359230046729131,null,0,0,0]
[86,0,0.10182739357516948,0.30954279185737688,null,0,0,0,null,5.9750891735643734E-2,0.74490587482093817,1.0803121349015201,null,0,0,0]
[87,0,0.66738855487155702,1.7199758147495159,null,0,0,0,null,7.8337090599953793E-2,1.0195632896708631,1.945865707099667,null,0,0,0]
[88,0,1.7698859810031426,4.7525027206918606,null,0,0,0,null,4.1097096990375236E-3,0.18043295876865523,1.7641984647194622,null,0,0,0]
[89,0,1.4044810690495524,3.9548290088970899,null,0,0,0,null,1.372429919615189E-2,0.26427797212259246,1.4728155427449092,null,0,0,0]
[90,0,0.83309379067693223,2.4681355010432817,null,0,0,0,null,-4.4772758632035448E-2,-0.44594171913777791,0.66408026505932505,null,0,0,0]
[91,0,-0.34296148164357693,-0.99155512221494424,null,0,0,0,null,-3.3577466292703889E-2,-0.41861443831909034,-0.60124487241080715,null,0,0,0]
[92,0,1.8691870014197667,4.8840191181145931,null,0,0,0,null,1.3796101408548566E-2,0.36772754172980421,2.6810819646068378,null,0,0,0]
[93,0,1.6987004388177629,4.8130378101783133,null,0,0,0,null,6.5766288507532356E-2,0.95663615657467471,2.898556827834069,null,0,0,0]
[94,0,1.8429809151474019,4.8211245110609307,null,0,0,0,null,1.3796101408548395E-2,0.36311608182470628,2.6257444457456875,null,0,0,0]
[95,0,-0.99817322460397917,-3.265097823070493,null,0,0,0,null,-2.2635042338469531E-2,-0.3457649380417761,-1.376477433072836,null,0,0,0]
[96,0,1.1107254195959468,2.8658976446671511,null,0,0,0,null,1.5424451504996909E-2,0.26960106677607021,1.2075554447944779,null,0,0,0]
[97,0,-0.77240127345521248,-1.8164294821225484,null,0,0,0,null,-4.3045126744757287E-2,-0.64595169353637816,-2.1244404509960368,null,0,0,0]
[98,0,-0.35778500082607934,-1.4043166739982553,null,0,0,0,null,2.5509779362449022E-2,0.33257049942845335,0.56270304681406558,null,0,0,0]
[99,0,-1.6608344885964469E-2,0.27310489369027346,null,0,0,0,null,-2.7414045403353897E-2,-0.3514933386396169,-0.5068600636216033,null,0,0,0]
[100,0,-0.23217868276420631,1.7045831235584046E-2,null,0,0,0,null,1.6320948569148071E-2,0.15419234274972676,-0.40006871175527703,null,0,0,0]
[101,0,-1.5598574069292555,-4.7633156404087789,null,0,0,0,null,3.0959799013862721E-3,-0.12684374349123845,-2.1028751690803875,null,0,0,0]
[102,0,1.0324308961150472,2.9769755350493288,null,0,0,0,null,2.2949634970427554E-2,0.3104731427489123,0.84519028457148671,null,0,0,0]
[103,0,0.32653167764866159,1.2523651161124507,null,0,0,0,null,1.8660449475150529E-2,0.16732707489903259,-0.34257087658580349,null,0,0,0]
[104,0,1.8557612804114287,5.2286178927040305,null,0,0,0,null,7.9259525478154666E-2,1.1385813261529574,3.3294432214846639,null,0,0,0]
[105,0,1.8293449138522846,4.9215587354627059,null,0,0,0,null,-6.6532095120291502E-3,4.8923020711544266E-2,1.6029307810958817,null,0,0,0]
[106,0,-1.586240799251631,-4.2935130065426197,null,0,0,0,null,-5.2084706365551764E-2,-0.77473804952137926,-2.5236256433244382,null,0,0,0]
[107,0,-0.36066678002168917,-0.64618877064143454,null,0,0,0,null,-1.1865144187006536E-2,-0.20753106766549537,-0.85619102201526398,null,0,0,0]
[108,0,0.66142718025234903,1.7439056598352254,null,0,0,0,null,1.573911253502297E-2,0.2548816220488152,1.0913938904756832,null,0,0,0]
[109,0,7.0838973350491868E-3,0.27772054319216843,null,0,0,0,null,-3.3419613118649008E-2,-0.48986037322022458,-1.4935648018536631,null,0,0,0]
[110,0,1.2079743450224487,3.105184907381954,null,0,0,0,null,1.4805276765821418E-2,0.26199019978432081,1.1935604546031646,null,0,0,0]
[111,0,1.5142662008955359,3.8556554115051549,null,0,0,0,null,4.2495851464219069E-3,0.21861471486686787,2.1225011539101577,null,0,0,0]
[112,0,1.5325873425596037,4.2581404746075568,null,0,0,0,null,3.7001767277201621E-2,0.58403470385593304,2.2455388422718241,null,0,0,0]
[113,0,1.5354221287062737,4.1476814149566712,null,0,0,0,null,-3.5029030048564093E-2,-0.32250260418893684,0.87630769288717059,null,0,0,0]
[114,0,-2.2030695670372045,-5.7494457026359012,null,0,0,0,null,-2.311957991160608E-2,-0.37395621447065241,-1.3258019864391937,null,0,0,0]
[115,0,1.3688799086968155,3.8759309905263506,null,0,0,0,null,4.1616374742701565E-2,0.63642639152449465,2.2183642829900272,null,0,0,0]
[116,0,0.20370932444768186,4.468125752516789E-2,null,0,0,0,null,1.6143069444313197E-2,0.29300436548038034,1.3104474921386791,null,0,0,0]
[117,0,0.68192408313751007,1.7548610825877986,null,0,0,0,null,8.6047009361695875E-2,1.1137632796696626,2.058556310535296,null,0,0,0]
[118,0,-1.4293772195980836,-3.9389978462180952,null,0,0,0,null,-7.4747039825307587E-2,-1.0006914071588007,-2.22928555554802,null,0,0,0]
[119,0,-2.7131457711451912,-7.0095700478990803,null,0,0,0,null,-8.9530062165539159E-2,-1.2439023237494229,-3.0895970397945129,null,0,0,0]
[120,0,2.0874982396657362,5.727165476002825,null,0,0,0,null,1.9373919387117952E-2,0.34859555560624633,1.7947538919736143,null,0,0,0]
[121,0,-1.1997564748676977,-2.9789712353997166,null,0,0,0,null,-2.0266732730377896E-2,-0.33957833130720427,-1.4018310584522624,null,0,0,0]
[122,0,-0.23712534381345723,-0.56698463799427556,null,0,0,0,null,2.8842112820544288E-2,0.31121666605296194,-0.23082709486086969,null,0,0,0]
[123,0,-1.1930848913320116,-2.9956357679751453,null,0,0,0,null,-1.8695774453074819E-2,-0.37845356665612323,-2.2185113961040441,null,0,0,0]
[124,0,-0.62063151712547371,-1.5568889527856009,null,0,0,0,null,-1.4849899154649619E-2,-0.22760550344869535,-0.89030222468869036,null,0,0,0]
[125,0,-0.74736082944238658,-2.122250930458911,null,0,0,0,null,5.2221286747601422E-3,2.2766366645109882E-3,-0.70391983900889676,null,0,0,0]
[126,0,-0.42769947361769844,-1.2167581742046387,null,0,0,0,null,-3.1475855615368233E-2,-0.40939401430426825,-0.77106823220849396,null,0,0,0]
[127,0,1.2978600008865215,3.4860181614774266,null,0,0,0,null,1.9695454080552621E-2,0.31960198251264954,1.3371358759428877,null,0,0,0]
[128,0,2.1289694584738753E-3,-0.32760061529415541,null,0,0,0,null,6.112300140598103E-2,0.82629446726628797,1.7633015534977277,null,0,0,0]
[129,0,-1.0712744217407109,-2.8766680600153705,null,0,0,0,null,-5.5084038794825569E-4,-0.10799403499955497,-1.252817590032806,null,0,0,0]
[130,0,-0.21560221240258762,-0.80958478911405107,null,0,0,0,null,2.0869440225370225E-2,0.22755807127599748,-8.9889576145003952E-2,null,0,0,0]
[131,0,-0.1727333753865605,-0.17997618536574736,null,0,0,0,null,-4.0070145636682979E-2,-0.53283206072952183,-1.0488246397687218,null,0,0,0]
[132,0,0.47708203709131158,0.78130040822064617,null,0,0,0,null,6.3106532251752862E-2,0.91074531497011046,2.5410509197030149,null,0,0,0]
[133,0,-0.36325061177176393,-1.0429080516391187,null,0,0,0,null,9.63685120841609E-3,5.9269549564302908E-2,-0.60134219787920662,null,0,0,0]
[134,0,1.6213021589455074,4.2312241691141317,null,0,0,0,null,1.0245641499519365E-2,0.30184896258917887,2.3621596024974205,null,0,0,0]
[135,0,1.6293553563044116,4.2750780234721022,null,0,0,0,null,-2.1024961327415839E-2,-7.028069267705632E-2,2.0110241764319179,null,0,0,0]
[136,0,-0.75896107885849595,-2.3499984255056408,null,0,0,0,null,-5.5703219769852638E-2,-0.72457476083305483,-1.4906044938697778,null,0,0,0]
[137,0,0.20919949865781745,0.38276288495603511,null,0,0,0,null,-4.391420105313841E-3,-3.1004741790822663E-2,0.24483628164370383,null,0,0,0]
[138,0,-0.17096874473219215,-0.17768136136452084,null,0,0,0,null,-3.1954550784898686E-2,-0.38236190923233332,-0.46184105234880918,null,0,0,0]
[139,0,0.46745493355320106,0.74687752252993234,null,0,0,0,null,5.4699501981377747E-2,0.76507469956151186,1.8861648453622766,null,0,0,0]
[140,0,1.2860696863553658,3.7045525818533278,null,0,0,0,null,4.7391666156100257E-2,0.72748739947762986,2.5671817919444146,null,0,0,0]
[141,0,1.9247590805732415,5.0298195631057023,null,0,0,0,null,-6.3225175868680027E-3,0.12577510382617493,2.4170042725660896,null,0,0,0]
[142,0,0.49086646532202211,1.3777787899623144,null,0,0,0,null,7.1898193365873969E-2,0.914219319081647,1.5612813512594839,null,0,0,0]
[143,0,-0.29338197078726808,-0.47863199373317183,null,0,0,0,null,-4.7826795925425984E-2,-0.63204481453912831,-1.1887109139881431,null,0,0,0]
[144,0,-0.32157671139881133,-1.4920849481713303,null,0,0,0,null,-4.8098023990519607E-2,-0.61513171887262708,-1.2531510178742646,null,0,0,0]
[145,0,-2.1110616122461578E-2,-1.6497127182861733E-2,null,0,0,0,null,6.2279937876271389E-2,0.74838366851480531,0.59710677164388104,null,0,0,0]
[146,0,-1.113060391401461,-2.759934476733477,null,0,0,0,null,-4.2603244788943187E-2,-0.7051283320862376,-3.0245196649361494,null,0,0,0]
[147,0,2.2273748006784335,5.7313506553219051,null,0,0,0,null,9.4219773826725431E-2,1.370795353820452,4.1197628691409989,null,0,0,0]
[148,0,1.0682914250440845,2.8456882225701774,null,0,0,0,null,1.2449708292589833E-2,0.22282854787843825,1.0803836393915225,null,0,0,0]
[149,0,-0.65751983798434599,-1.7783357552396046,null,0,0,0,null,-3.6219000442456545E-2,-0.45125832047079167,-0.63233173798730058,null,0,0,0]
[150,0,9.8247739348371402E-3,3.4515180329624855E-2,null,0,0,0,null,-4.920330329388406E-2,-0.73471459087086899,-2.4493604056997103,null,0,0,0]
[151,0,-3.0806241511094647,-7.9567291562867464,null,0,0,0,null,-0.1059713674014585,-1.4750946318136402,-3.6757377371080691,null,0,0,0]
[152,0,-0.72519428862076896,-2.0530405339194329,null,0,0,0,null,1.2697653749629069E-2,0.10038414307906078,-0.49234125691858205,null,0,0,0]
[153,0,1.0825733917399702E-2,-0.27508006390666562,null,0,0,0,null,-9.0776758800219057E-2,-1.0498811444037592,-0.63983396755665312,null,0,0,0]
[154,0,-1.7128920497604176,-5.1313930486431563,null,0,0,0,null,1.0607919683992634E-2,3.0539678704624748E-2,-1.1917269329865376,null,0,0,0]
[155,0,-3.9812229024581029E-2,-0.10466846201483714,null,0,0,0,null,-5.1210249555237737E-2,-0.72211400320706431,-1.997294356504739,null,0,0,0]
[156,0,-2.8473134312946731,-7.3015738970814859,null,0,0,0,null,-8.7604057356445872E-2,-1.2576525767113991,-3.4928177139643268,null,0,0,0]
[157,0,1.6359793071059376,4.4293299745677359,null,0,0,0,null,1.4659481474562369E-2,0.29533916181391306,1.7227998029641567,null,0,0,0]
[158,0,-0.36123222871613508,-0.67825591028085186,null,0,0,0,null,-5.2599888208384696E-2,-0.65220653906986814,-0.90722872984329295,null,0,0,0]
[159,0,0.21990286259678396,8.527705139308818E-2,null,0,0,0,null,1.9953923318887519E-2,0.28068203610453474,0.62591044627885273,null,0,0,0]
[160,0,1.4350833690970703,3.9002190588056402,null,0,0,0,null,1.5035474373290697E-2,0.27761321880124251,1.3911754681413913,null,0,0,0]
[161,0,1.7634273129207159,5.0267327564709703,null,0,0,0,null,8.7410212679171026E-2,1.2275769120679989,3.3024008481003801,null,0,0,0]
[162,0,-2.733349602918008,-7.0671447439113146,null,0,0,0,null,-8.1484372723888726E-2,-1.1484257517720133,-2.9985786064181847,null,0,0,0]
[163,0,1.5683450339538212,4.6565252069426064,null,0,0,0,null,0.11216702662941878,1.4762062265017057,3.1746647594633579,null,0,0,0]
[164,0,0.53244042748252107,1.2825644003201888,null,0,0,0,null,1.1621033896044367E-2,0.2098103501412861,1.0759699513556515,null,0,0,0]
[165,0,-3.6594185908561484E-2,0.10494031497290417,null,0,0,0,null,-1.8500264502566324E-2,-0.26277378028263049,-0.83330982167409817,null,0,0,0]
[166,0,4.6151810787518115E-2,-0.38224034990484507,null,0,0,0,null,1.2727308833396079E-2,0.23096552250929289,0.99840669640597113,null,0,0,0]
[167,0,-0.89923316481196158,-2.9832427659883325,null,0,0,0,null,-2.3322276883945961E-2,-0.35292713731719505,-1.3504858369587018,null,0,0,0]
[168,0,-0.51828148708031951,-0.81694871906608024,null,0,0,0,null,-3.2338671501441638E-2,-0.48652143038362644,-1.4621783533607378,null,0,0,0]
[169,0,0.13932150469523003,8.8494715157103207E-2,null,0,0,0,null,-7.4004438129586557E-3,-7.0530039392589061E-2,0.14485175102844733,null,0,0,0]
[170,0,-1.5317480758201891,-3.7777871677475923,null,0,0,0,null,-1.1917909568199093E-2,-0.33602834128475206,-2.4645322497906927,null,0,0,0]
[171,0,0.9385035411904209,2.6698328449282562,null,0,0,0,null,3.0235027420001587E-2,0.45514655509365459,1.5247067711241835,null,0,0,0]
[172,0,2.1297756900534077,5.5658556431125037,null,0,0,0,null,0.10097736375182904,1.4567673220459483,4.2914627596563371,null,0,0,0]
[173,0,-0.56879359468825719,-1.6589562575249366,null,0,0,0,null,-2.9801767267030869E-2,-0.37801480155427364,-0.64057890497193148,null,0,0,0]
[174,0,0.65964327370078357,2.0279965773338264,null,0,0,0,null,-8.8140082526631261E-2,-1.0152417743082205,-0.57943090389571084,null,0,0,0]
[175,0,0.78218446831459365,1.8518464249755997,null,0,0,0,null,1.726003790314911E-2,0.28878275084713184,1.2901145898314754,null,0,0,0]
[176,0,0.96793011015772212,2.5872076043342824,null,0,0,0,null,1.4562848629694316E-2,0.25765704888302116,1.208335948525866,null,0,0,0]
[177,0,1.9526770107252014,5.0546260519337887,null,0,0,0,null,7.3899999955933646E-2,1.1098329760808339,3.6683573534185454,null,0,0,0]
[178,0,-0.69725784699939142,-1.5967152150897601,null,0,0,0,null,-2.0687025833272116E-2,-0.38934198714926149,-2.0592800554434727,null,0,0,0]
[179,0,1.6546294610869572,4.664900365548732,null,0,0,0,null,-1.5024312396665152E-2,1.5089149935120076E-3,2.162122594431672,null,0,0,0]
[180,0,-0.48747178058377177,-1.1613777959715517,null,0,0,0,null,-1.549505999503873E-2,-0.28420245807893391,-1.5153474198728327,null,0,0,0]
[181,0,1.7930843590778913,4.6296397947760051,null,0,0,0,null,0.10305012237724127,1.4461480771676278,3.8269002469954647,null,0,0,0]
[182,0,-1.6610769677179942,-5.0001533780815004,null,0,0,0,null,-6.0055027506772376E-3,-0.24043909336928937,-2.2801374359357869,null,0,0,0]
[183,0,-1.0729991838018687,-2.9985527027912249,null,0,0,0,null,2.492259045335345E-3,-6.3993302524488177E-2,-1.1565319653488151,null,0,0,0]
[184,0,0.4295946164236375,1.014431780588966,null,0,0,0,null,2.6390440772286639E-2,0.37118654121519284,1.0401154500890735,null,0,0,0]
[185,0,-0.25935730819265335,-0.43881698356416748,null,0,0,0,null,-3.7387233435015391E-2,-0.4168752521079323,-8.444517278903732E-2,null,0,0,0]
[186,0,0.59663435108633889,1.911770971146485,null,0,0,0,null,-2.8830012081111647E-2,-0.28710974565379638,0.47441637059465208,null,0,0,0]
[187,0,-0.51828148708031951,-0.81694871906608024,null,0,0,0,null,-3.2338671501441638E-2,-0.48652143038362644,-1.4621783533607378,null,0,0,0]
[188,0,0.52566945061941439,2.1759362970751099,null,0,0,0,null,9.9051305680191611E-3,0.17553329642660537,0.90704860382914199,null,0,0,0]
[189,0,0.56715974347770315,1.1077750471383843,null,0,0,0,null,-9.0315093455196518E-2,-1.0309762595590937,-0.47092826819172112,null,0,0,0]
[190,0,-0.48198811592380481,-0.78585412915323827,null,0,0,0,null,-5.077674346709949E-2,-0.69153489317459571,-1.502974487951702,null,0,0,0]
[191,0,-1.0260070266026178,-3.4436237599543094,null,0,0,0,null,-3.4336212656079682E-2,-0.49525175272415889,-1.6330780480890061,null,0,0,0]
[192,0,-0.55247111334697552,-1.1618482868835562,null,0,0,0,null,-1.2741331451380006E-2,-0.18526542055474055,-0.64775886250852999,null,0,0,0]
[193,0,0.96618380670091208,3.0778090161168001,null,0,0,0,null,9.106058986277793E-2,1.1523916156633132,2.0172837168235347,null,0,0,0]
[194,0,-0.71324024232193184,-2.4603370027035343,null,0,0,0,null,-2.8466471501210719E-2,-0.40243999501034433,-1.2826200437282895,null,0,0,0]
[195,0,-1.0207012963722863,-2.8118889009846098,null,0,0,0,null,7.089480877097174E-3,-2.3417404896511472E-2,-1.269530438867372,null,0,0,0]
[196,0,0.26506681781709629,0.35269734747965414,null,0,0,0,null,4.0948971085959442E-2,0.60416385974900999,1.7639484030433596,null,0,0,0]
[197,0,-0.2050009842003401,-0.27791811426424828,null,0,0,0,null,-4.8846581342250034E-2,-0.5702528701209203,-0.41810569219472382,null,0,0,0]
[198,0,0.39549785722941488,0.74457750587633931,null,0,0,0,null,4.6516027459390839E-2,0.64855652018816823,1.5817405257743193,null,0,0,0]
[199,0,-0.76084179633501481,-2.2155138030635717,null,0,0,0,null,-6.8246746279645373E-2,-0.86493956050522591,-1.4365336773754642,null,0,0,0]
[200,0,-1.0924934843764131,-3.5469870535067893,null,0,0,0,null,-5.6237187958955701E-2,-0.81838235734716813,-2.5867306403445109,null,0,0,0]
[201,0,0.7309248837575214,1.9568649153163933,null,0,0,0,null,2.0100737118893618E-2,0.31973512687403399,1.3179426770153804,null,0,0,0]
[202,0,-0.40554365374026385,-0.68268099737391463,null,0,0,0,null,-7.5876889519076944E-4,-9.3596837273697928E-2,-0.95087523172657162,null,0,0,0]
[203,0,2.0568473090859207,5.3133423045083834,null,0,0,0,null,5.0985386059387738E-2,0.85905915392343557,3.6991166394568902,null,0,0,0]
[204,0,-0.35909074687760223,-0.6087259470489953,null,0,0,0,null,-4.0489447204306882E-2,-0.55026574657717087,-1.1805461849859493,null,0,0,0]
[205,0,-2.0520552763919078,-4.9953897584247899,null,0,0,0,null,-1.5885660155123729E-2,-0.39257275562556515,-2.5919808080130897,null,0,0,0]
[206,0,0.2025088104704173,0.97060074150809672,null,0,0,0,null,2.6300961040931724E-2,0.32672655508354637,0.32450411493142384,null,0,0,0]
[207,0,-1.4240276570822061,-3.8391442663022537,null,0,0,0,null,-4.5046341552554568E-2,-0.66951591964253931,-2.1680926257440443,null,0,0,0]
[208,0,-0.61330623224048397,-1.7104097712184376,null,0,0,0,null,-5.0349829804221653E-2,-0.62834589373068317,-0.91759667081409135,null,0,0,0]
[209,0,-1.7395493551497838,-4.3756947901703898,null,0,0,0,null,-1.3777827791024776E-2,-0.24237027423755081,-0.94658087494886423,null,0,0,0]
[210,0,-0.71324024232193184,-2.4603370027035343,null,0,0,0,null,-2.8466471501210719E-2,-0.40243999501034433,-1.2826200437282895,null,0,0,0]
[211,0,-1.6729246542170568,-5.0467978045456912,null,0,0,0,null,-1.2342996818543157E-2,-0.31162514825150811,-2.2990110063130085,null,0,0,0]
[212,0,0.27818588020739299,0.70766291487305721,null,0,0,0,null,3.3999897893193805E-2,0.46030642106227426,1.1365757198172941,null,0,0,0]
[213,0,1.067959683229492,2.9723564413467831,null,0,0,0,null,3.9623456170383403E-2,0.57403284759154483,1.7161071415512743,null,0,0,0]
[214,0,0.87337673705115049,2.5500196754160496,null,0,0,0,null,-3.4787507688862032E-2,-0.31861266635662377,0.87015963775674388,null,0,0,0]
[215,0,2.3933787250953338,6.1896302740091054,null,0,0,0,null,0.10467983819848445,1.503875813135007,4.3476318055004999,null,0,0,0]
[216,0,1.0019545869725661,2.9022469756650024,null,0,0,0,null,-5.781770196839648E-2,-0.59383271275862348,0.63282747445314813,null,0,0,0]
[217,0,-0.36218664448185517,-1.0719196735442165,null,0,0,0,null,2.6623456926943732E-3,-3.0382179559116592E-2,-0.75997926288042439,null,0,0,0]
[218,0,8.1309935304901951E-2,0.40528389226215222,null,0,0,0,null,-2.4523251447563722E-2,-0.38410368990131338,-1.4212723069832973,null,0,0,0]
[219,0,-1.0357114367667928,-2.8866149612756633,null,0,0,0,null,1.7342719721499179E-2,0.14160258578515095,-0.63724915179620079,null,0,0,0]
[220,0,-1.6729246542170568,-5.0467978045456912,null,0,0,0,null,-1.2342996818543157E-2,-0.31162514825150811,-2.2990110063130085,null,0,0,0]
[221,0,-0.11614372852205998,-0.43711443790534393,null,0,0,0,null,3.361460849892467E-2,0.4082140623919322,0.43090769622369773,null,0,0,0]
[222,0,-0.85023575434133458,-2.4163614153585002,null,0,0,0,null,4.7856046229298957E-5,-6.9371840852513744E-2,-0.89256179253576917,null,0,0,0]
[223,0,-1.3665649779053237,-4.2714557678124763,null,0,0,0,null,-1.4551674271850174E-3,-0.19509781804242537,-2.3309840673804865,null,0,0,0]
[224,0,1.3185283224990836,3.4751729148095838,null,0,0,0,null,5.1307498032166166E-2,0.77651230717938236,2.7296861450355134,null,0,0,0]
[225,0,1.2325441171628373,3.4070708085637889,null,0,0,0,null,2.7581433373290849E-2,0.42718114927387707,1.5827838575578135,null,0,0,0]
[226,0,1.899753867135938,4.9573795958334088,null,0,0,0,null,2.0847452763181819E-2,0.44849681945802422,2.7195349185338964,null,0,0,0]
[227,0,-7.6711616636519472E-2,-0.5383289612796871,null,0,0,0,null,4.2434537999052793E-2,0.54881321318833121,0.89337593810583715,null,0,0,0]
[228,0,1.9626123713303114,5.4526818076826311,null,0,0,0,null,8.5138800961776784E-2,1.2207129518487199,3.5421645836060853,null,0,0,0]
[229,0,-0.2014243222869227,-0.32656167024844762,null,0,0,0,null,-5.5203148792354287E-2,-0.66228746141630379,-0.70142591706163515,null,0,0,0]
[230,0,0.82092456988804952,2.1694389094987492,null,0,0,0,null,9.0171069487405192E-2,1.1566006299991978,2.0266446099578861,null,0,0,0]
[231,0,-2.0113717133388183,-5.7103188568742844,null,0,0,0,null,3.0664750793262557E-2,0.23830229092477292,-1.2360298030337509,null,0,0,0]
[232,0,-0.76460213056148862,-2.051937404238859,null,0,0,0,null,-4.3236331158302957E-2,-0.5782988142475779,-1.2515849530842389,null,0,0,0]
[233,0,0.22753485565771733,0.95272359955957653,null,0,0,0,null,-9.8275806936688692E-2,-1.1223547960600382,-0.50559784618969206,null,0,0,0]
[234,0,-3.0216725139719385,-7.8222540153580118,null,0,0,0,null,-8.7144161794079369E-2,-1.278894431737247,-3.8106781736299529,null,0,0,0]
[235,0,0.2454752827921784,1.020719049635838,null,0,0,0,null,2.3330378223264062E-2,0.28029433760683425,0.12952242936519542,null,0,0,0]
[236,0,-7.7976246451007689E-2,-0.2998426315132674,null,0,0,0,null,-1.8264781606754356E-2,-0.17942664530570254,0.27067432294448374,null,0,0,0]
[237,0,0.93806433507045772,2.6064963621719506,null,0,0,0,null,9.4759270448831728E-2,1.2218966663891289,2.2549179375384885,null,0,0,0]
[238,0,1.7866126446819581,4.6320457563792514,null,0,0,0,null,9.5292680770864599E-2,1.3588463262835422,3.8062898328003176,null,0,0,0]
[239,0,-1.5751103238630839,-3.9347476355948019,null,0,0,0,null,-2.7458474771559452E-2,-0.37016052746793593,-0.68946499448549725,null,0,0,0]
[240,0,1.1854620139464787,3.4211004646630898,null,0,0,0,null,3.6352205596693297E-2,0.52105894198097846,1.5402705600547379,null,0,0,0]
[241,0,1.8783929348653001,5.088074631989417,null,0,0,0,null,-1.2850518670240035E-2,-2.3589243941186396E-2,1.5551203631593962,null,0,0,0]
[242,0,9.8104007079184152E-2,0.14581843015989579,null,0,0,0,null,5.0467213986036654E-3,6.9738043698717778E-2,0.22015017340920531,null,0,0,0]
[243,0,1.4594040873375562,4.0376814860801602,null,0,0,0,null,7.3543441772636695E-3,0.14489296175174241,0.8888696220505008,null,0,0,0]
[244,0,0.19652362217420705,-2.2815543184042327E-2,null,0,0,0,null,1.8910081631978073E-2,0.256802322687402,0.45795889448737215,null,0,0,0]
[245,0,-4.4371169592599471E-2,-7.128235745698476E-2,null,0,0,0,null,6.4006042007404007E-2,0.76376472052973532,0.55105975263673823,null,0,0,0]
[246,0,-0.50583319414846117,-1.2439145734554986,null,0,0,0,null,-2.5256271892573467E-2,-0.38409172136205327,-1.2624454882051614,null,0,0,0]
[247,0,-0.76664584461061891,-2.6094760121143117,null,0,0,0,null,-3.0921440077402565E-2,-0.43591407962395989,-1.362533955227027,null,0,0,0]
[248,0,-0.37960838970043914,-1.1347317851726548,null,0,0,0,null,-6.9316329478480265E-2,-0.80488986360724724,-0.52118549549021553,null,0,0,0]
[249,0,-1.062904163002786,-3.0020868619280301,null,0,0,0,null,-7.6528054525462604E-3,-0.17751775785957671,-1.259217508430742,null,0,0,0]
[250,0,1.9635641902241333E-2,0.37332705634598823,null,0,0,0,null,-5.9997957445412281E-2,-0.66548083233907351,-0.11194401434836618,null,0,0,0]
[251,0,-0.99751400988782735,-3.1850823008972582,null,0,0,0,null,-2.5557288151889908E-2,-0.37929976305874064,-1.3481402204101178,null,0,0,0]
[252,0,1.8188943821482244,4.9244238836242804,null,0,0,0,null,-1.4833055388758681E-3,0.12577510609952425,1.8616660842657802,null,0,0,0]
[253,0,1.4378077489356256,3.9843407910310198,null,0,0,0,null,8.0728557588055309E-3,0.17022499071932998,1.087351421499323,null,0,0,0]
[254,0,1.4574929524156124,3.9760697958280873,null,0,0,0,null,1.9242349114311934E-2,0.29843635218148029,1.1587326170379493,null,0,0,0]
[255,0,4.6466694888864367E-2,6.1287505029969908E-2,null,0,0,0,null,1.1767004093791854E-2,0.15923534458966607,0.42212347827006669,null,0,0,0]
[256,0,-1.950340087516117,-4.9335162482044037,null,0,0,0,null,-2.8950590462919819E-2,-0.45488092708046768,-1.5190627750322054,null,0,0,0]
[257,0,-6.3066106451364248E-2,-8.0510679103390423E-3,null,0,0,0,null,-9.0454836925030688E-3,-0.13849147497136982,-0.5612582935912942,null,0,0,0]
[258,0,0.53348851615995041,1.5037254465283185,null,0,0,0,null,2.8961283506574318E-2,0.39227423092633673,0.87091528759488213,null,0,0,0]
[259,0,-0.33348996652122875,-0.90534863579551894,null,0,0,0,null,1.6348331487168081E-2,0.14548046848115245,-0.43944412025194107,null,0,0,0]
[260,0,1.6762201490272164,4.560122968054646,null,0,0,0,null,-1.2391173196507452E-3,9.7288167802736095E-2,1.4546196332352739,null,0,0,0]
[261,0,-1.1793442558486167,-3.0648232747477522,null,0,0,0,null,-1.4470108665693659E-2,-0.25757811727340685,-1.2110643860721866,null,0,0,0]
[262,0,0.15390429986808341,0.51977369525303951,null,0,0,0,null,-1.874467714213722E-2,-0.45686405024518989,-3.0496649535735414,null,0,0,0]
[263,0,1.5336611312795503,4.1982215535062641,null,0,0,0,null,-4.4103094275267834E-3,4.4958209283860018E-2,1.2386784939900937,null,0,0,0]
[264,0,0.8318447927445668,2.2859528168041652,null,0,0,0,null,9.651050800418165E-2,1.2470580732757053,2.3008682316734377,null,0,0,0]
[265,0,-1.4607249640049977,-3.9066887963256085,null,0,0,0,null,-5.236362529362458E-2,-0.73403548985147515,-1.9883505311405569,null,0,0,0]
[266,0,-0.4924285070682945,-1.751424364974584,null,0,0,0,null,3.3035592893921543E-2,0.44522055369859115,0.93195089802963416,null,0,0,0]
[267,0,-0.60720460249494312,-2.0020187299011085,null,0,0,0,null,-7.0601626496320416E-2,-0.92089939455543846,-1.890194637243134,null,0,0,0]
[268,0,0.83257641492472068,2.7686019811146396,null,0,0,0,null,2.3387382512951888E-2,0.36350353739039382,1.2229292819126749,null,0,0,0]
[269,0,-0.38452394203309631,-1.0823875769167426,null,0,0,0,null,-2.9640990205712058E-2,-0.35073692798143291,-0.28199928852066658,null,0,0,0]
[270,0,1.4590170080992193,3.9576597924108063,null,0,0,0,null,1.5041437664978617E-2,0.28423049167405678,1.4697955881123599,null,0,0,0]
[271,0,0.66637761316719846,2.1357499714960939,null,0,0,0,null,-2.2916391440240942E-2,-0.20918870976396828,0.65376379719411126,null,0,0,0]
[272,0,-1.6565190994913064,-4.2343574552974603,null,0,0,0,null,-5.6543562286548478E-2,-0.77054971116192883,-1.7834889098358726,null,0,0,0]
[273,0,-1.6622325785421581,-4.3610308858386784,null,0,0,0,null,-7.4022558256189877E-2,-1.0135670208703951,-2.4393933532712073,null,0,0,0]
[274,0,0.41681173064846189,0.60259068981289599,null,0,0,0,null,4.6156622744145975E-2,0.66522868008534264,1.8100201619332474,null,0,0,0]
[275,0,1.0873337662715294,2.9936979655594622,null,0,0,0,null,0.10280101349499063,1.3526599975803666,2.7696828000846909,null,0,0,0]
[276,0,0.30340127702346037,0.83066919845805387,null,0,0,0,null,1.8642584067012989E-2,0.22556144808997305,0.21175382697899842,null,0,0,0]
[277,0,-1.6206914514940072,-4.201224365336544,null,0,0,0,null,4.6394600268991608E-2,0.42845748986530996,-0.86349584516075262,null,0,0,0]
[278,0,0.28964323198536296,0.81545180911383064,null,0,0,0,null,5.0870532652815027E-2,0.65424249332406448,1.1744234503257867,null,0,0,0]
[279,0,-0.37836107492622795,-0.71459245098803514,null,0,0,0,null,-5.7581031153790492E-2,-0.71254719852722248,-0.98949585427102282,null,0,0,0]
[280,0,1.8551644641838629,4.8008972426850018,null,0,0,0,null,-2.0746077507901133E-2,-7.3488442132526866E-2,1.9189682686495944,null,0,0,0]
[281,0,0.61639089628277177,1.3361176365413412,null,0,0,0,null,4.4243205210038071E-2,0.64597201849819519,1.9767031682013803,null,0,0,0]
[282,0,0.4505827769287698,0.71770218383054452,null,0,0,0,null,6.3169726223842815E-2,0.92185683367396909,2.6660475398334711,null,0,0,0]
[283,0,2.1183011504755287,5.4737274739854769,null,0,0,0,null,8.6051296508516936E-2,1.2378350440617352,3.5954300015092815,null,0,0,0]
[284,0,-0.72446559903531671,-1.6368619697125033,null,0,0,0,null,-1.8477569139616831E-2,-0.32781746182914412,-1.5528773481893259,null,0,0,0]
[285,0,2.1436930865391424,5.498370561133255,null,0,0,0,null,8.317099101783168E-2,1.2158792539199468,3.7072002921436544,null,0,0,0]
[286,0,0.12428772516514254,0.42031416774902752,null,0,0,0,null,1.7011878609856639E-2,0.18041092026468961,-0.129686083133387,null,0,0,0]
[287,0,1.6020709080780835,4.160332975569661,null,0,0,0,null,1.0251293347598391E-2,0.29385223474022948,2.249637709557621,null,0,0,0]
[288,0,-1.4240276570822061,-3.8391442663022537,null,0,0,0,null,-4.5046341552554568E-2,-0.66951591964253931,-2.1680926257440443,null,0,0,0]
[289,0,-2.8502811958037566,-7.5271891248992979,null,0,0,0,null,-8.0727666416808633E-2,-1.1851660490253144,-3.5376267070877656,null,0,0,0]
[290,0,1.1132345475874408,3.0649526026121823,null,0,0,0,null,5.2240094932593198E-2,0.7395356902670428,2.0448317636957691,null,0,0,0]
[291,0,0.56948252931062593,1.5507477270302044,null,0,0,0,null,7.7101784069392415E-2,0.99134735632408866,1.7821222610419791,null,0,0,0]
[292,0,-0.14854421769960935,-9.4023420038851321E-2,null,0,0,0,null,-1.0947592332148304E-2,-0.24162046415966507,-1.4808713670828693,null,0,0,0]
[293,0,1.3309626631690443,3.414048087096373,null,0,0,0,null,-2.5082020935032574E-3,5.1635295635942382E-3,0.44466075775957509,null,0,0,0]
[294,0,-0.10896739090742449,-0.43188340910190165,null,0,0,0,null,2.7799187739110779E-2,0.34388587084706979,0.41379805892836519,null,0,0,0]
[295,0,9.8247739348371402E-3,3.4515180329624855E-2,null,0,0,0,null,-4.920330329388406E-2,-0.73471459087086899,-2.4493604056997103,null,0,0,0]
[296,0,0.62655068848632067,1.6986016367999328,null,0,0,0,null,1.3607324737121586E-2,0.18942650871556815,0.42779518808960348,null,0,0,0]
[297,0,-0.49305476431499484,-1.9133332351969221,null,0,0,0,null,-2.5479579057578746E-2,-0.35130103983689243,-1.0432066236620958,null,0,0,0]
[298,0,2.1436930865391441,5.498370561133255,null,0,0,0,null,8.317099101783168E-2,1.2191020782763289,3.7458741844202414,null,0,0,0]
[299,0,-0.98545471395990536,-2.6169306428824783,null,0,0,0,null,-5.1829881263612779E-2,-0.68390871761945615,-1.4039512781135235,null,0,0,0]
[300,0,-0.35606175810969398,-0.83065213115474767,null,0,0,0,null,-1.0035806037671933E-2,-0.22736755979089049,-1.5579593461715304,null,0,0,0]
[301,0,1.2675576713869523,3.253273367691472,null,0,0,0,null,-3.4889702567575627E-2,-0.34358129093603657,0.52568535630132829,null,0,0,0]
[302,0,0.33329138341114778,0.92320097678586166,null,0,0,0,null,3.256338106902433E-2,0.42147024856911319,0.69459278369920141,null,0,0,0]
[303,0,-0.14031254797225848,-0.11075206331576191,null,0,0,0,null,-3.9494104510765735E-5,-5.0808277862542127E-2,-0.54857242894426239,null,0,0,0]
[304,0,-0.40960249757688505,-0.60070769122189815,null,0,0,0,null,-4.8805428862771463E-2,-0.64670942378127261,-1.2161326666388814,null,0,0,0]
[305,0,1.5082182238032837,3.8017464716897305,null,0,0,0,null,6.08345061670542E-3,0.22499163481845152,1.9456483386615,null,0,0,0]
[306,0,1.8356369460812547,4.7714498569283457,null,0,0,0,null,-2.8059796741614944E-2,-0.14832773146014278,1.9867031571715306,null,0,0,0]
[307,0,1.0682914250440845,2.8456882225701774,null,0,0,0,null,1.2449708292589833E-2,0.22282854787843825,1.0803836393915225,null,0,0,0]
[308,0,-1.6202642110124652,-4.8735256419305806,null,0,0,0,null,1.9043741375058289E-2,0.12766406458551774,-1.1408274775670397,null,0,0,0]
[309,0,-0.75481771870865666,-2.1999158266410888,null,0,0,0,null,2.2023552540043227E-2,0.20318454307575029,-0.58129055480695757,null,0,0,0]
[310,0,-1.9200279610030848,-4.6590932614681151,null,0,0,0,null,-1.4047627481564916E-2,-0.34019268941205338,-2.2036257547705973,null,0,0,0]
[311,0,0.84904165711743551,2.4391644287885357,null,0,0,0,null,3.5490611212953355E-2,0.5113162147942576,1.5083003605026823,null,0,0,0]
[312,0,-8.9421689171547775E-2,7.5610003914371185E-2,null,0,0,0,null,-1.371608836823424E-2,-0.21837087465448984,-0.91806064373367913,null,0,0,0]
[313,0,-0.2577277135432578,-0.85304322404934652,null,0,0,0,null,2.2533380313333511E-2,0.25863612558267507,6.8495352540605375E-2,null,0,0,0]
[314,0,-0.62375017305042635,-1.722531343006849,null,0,0,0,null,-3.8327878224559811E-2,-0.49079123471721775,-0.85285157443831483,null,0,0,0]
[315,0,1.2978600008865215,3.4860181614774266,null,0,0,0,null,1.9695454080552621E-2,0.31960198251264954,1.3371358759428877,null,0,0,0]
[316,0,-0.78567119316692147,-2.5002402118168976,null,0,0,0,null,-5.6720796990023414E-2,-0.76584203129757766,-1.8771474938308419,null,0,0,0]
[317,0,0.41813582506471902,1.429807755354348,null,0,0,0,null,-2.2867344377776475E-2,-0.25703742886601411,-8.314171495553091E-2,null,0,0,0]
[318,0,0.1095994840867752,0.6883801351690999,null,0,0,0,null,-2.4122628937806555E-2,-0.26564832279154599,9.0694840624528303E-3,null,0,0,0]
[319,0,1.169209530530432,3.2756205227674653,null,0,0,0,null,2.9652791569960982E-2,0.45125683202217531,1.5492729947448061,null,0,0,0]
[320,0,-0.71704781551694574,-1.6060376348184582,null,0,0,0,null,-1.5387059345638875E-2,-0.27465869217647559,-1.3344312417792135,null,0,0,0]
[321,0,-0.1925243893965653,-0.69275282808224437,null,0,0,0,null,2.3106818391524654E-2,0.28317544757216456,0.30372111819177372,null,0,0,0]
[322,0,0.70824074931351788,1.7975024915072717,null,0,0,0,null,3.6350557290111621E-2,0.52342354770188926,1.6061227466776764,null,0,0,0]
[323,0,0.69387692195696216,1.7924551396457027,null,0,0,0,null,1.6386097713622632E-2,0.23651133132075028,0.79168251008156587,null,0,0,0]
[324,0,1.0632993713898942,2.663257996356275,null,0,0,0,null,-2.0857215190957561E-2,-0.21751930294009525,0.17827705689488721,null,0,0,0]
[325,0,0.58073374896258612,1.7006787318685019,null,0,0,0,null,-2.0266413075691503E-3,-1.2565045005433604E-2,0.21059492824461995,null,0,0,0]
[326,0,-2.8569997546028625,-7.3658490327897708,null,0,0,0,null,-8.5869352230752219E-2,-1.1925391019024474,-2.9589675449160966,null,0,0,0]
[327,0,0.10631734931561368,0.2632783065172189,null,0,0,0,null,5.0233395642451287E-2,0.64010687891009543,1.0551407979538598,null,0,0,0]
[328,0,-1.1182638361565842,-3.0912802513506539,null,0,0,0,null,7.825758413552461E-2,1.0063722535881134,1.7233248791996265,null,0,0,0]
[329,0,2.1183011504755305,5.4693957296213336,null,0,0,0,null,8.8172783842440428E-2,1.2710032816908778,3.7177352692922905,null,0,0,0]
[330,0,0.20337838265451866,5.4042684332198408E-2,null,0,0,0,null,9.2278208676631838E-3,0.17053852835620273,0.73243679078939383,null,0,0,0]
[331,0,1.4384740252069059,3.6919808067460838,null,0,0,0,null,-3.6022330360823786E-2,-0.36289340328707748,0.45180901527146122,null,0,0,0]
[332,0,8.381785818429853E-2,0.16021685873706157,null,0,0,0,null,1.6890668355472541E-2,0.24273372708678562,0.75424812195894997,null,0,0,0]
[333,0,0.83608020163540098,2.4691593263937395,null,0,0,0,null,-4.3181302388412404E-2,-0.42181615101777425,0.74538284411306088,null,0,0,0]
[334,0,-1.5593888264865801,-3.7596911426868393,null,0,0,0,null,-3.3208773710285015E-2,-0.49189023301878387,-1.3328875466062564,null,0,0,0]
[335,0,1.5199880212784027,4.1867147589746381,null,0,0,0,null,8.085232837447523E-2,1.1459564752765119,3.3075577707930606,null,0,0,0]
[336,0,1.2266534931163768,3.3728228263079871,null,0,0,0,null,2.285781413287799E-2,0.36677314542427031,1.4814595301404478,null,0,0,0]
[337,0,0.24456620587868746,0.83002153646924848,null,0,0,0,null,-6.7909974974847383E-3,-9.451610650900602E-2,-0.15451716855813355,null,0,0,0]
[338,0,0.48956334956899084,1.3730982563724756,null,0,0,0,null,2.2970543583880669E-2,0.31057908922774458,0.63558497365205036,null,0,0,0]
[339,0,0.26643233136408528,1.1366391104224749,null,0,0,0,null,-1.6431972098907011E-2,-0.1818527554739976,0.13927472670719362,null,0,0,0]
[340,0,-0.73800726654476423,-2.2482809319681256,null,0,0,0,null,-4.5978665089005805E-2,-0.62044593727803754,-1.5130034815663349,null,0,0,0]
[341,0,-2.6607747409377769,-6.8592957905403491,null,0,0,0,null,-8.0020510200530512E-2,-1.125934002955808,-2.9327488232672438,null,0,0,0]
[342,0,-0.62925216220189761,-1.3745034998677366,null,0,0,0,null,9.287523247683907E-3,3.077563050171284E-2,-0.92418089252054414,null,0,0,0]
[343,0,0.81415371467072872,1.9218141721913926,null,0,0,0,null,1.6170801755045715E-2,0.26623611519504536,1.1643664391606798,null,0,0,0]
[344,0,-1.0096102537684493,-2.9377675626262061,null,0,0,0,null,1.7926003682437623E-2,0.12987458832062293,-0.90329311094119114,null,0,0,0]
[345,0,-1.2010463508102003,-3.9043535604355566,null,0,0,0,null,-1.1992412134577251E-2,-0.30416876998012138,-2.2587719041197452,null,0,0,0]
[346,0,-0.87055863763112029,-2.3572319495246701,null,0,0,0,null,-4.5473099105585391E-2,-0.58192572461229886,-1.0055145746679373,null,0,0,0]
[347,0,1.7343809434161703,4.888273831464816,null,0,0,0,null,0.10553598106762735,1.4323671234092936,3.5246657408580031,null,0,0,0]
[348,0,-1.7483161591402823,-4.3980477067068273,null,0,0,0,null,-2.9931415179800695E-2,-0.40964070177965006,-0.77056373135692413,null,0,0,0]
[349,0,-8.5230386599159831E-3,0.17322672811037773,null,0,0,0,null,-9.2449409319742132E-3,-0.13570240348302012,-0.5156435771253236,null,0,0,0]
[350,0,-2.0378344400442949,-5.4137298285298456,null,0,0,0,null,-6.5457398919527288E-2,-1.0185979093719153,-3.8054080047823589,null,0,0,0]
[351,0,0.41561517820511834,1.3509362666025191,null,0,0,0,null,-3.6451709456927633E-2,-0.62446467893435964,-2.684798535315029,null,0,0,0]
[352,0,-2.0369214521312879,-5.3086857980610223,null,0,0,0,null,-8.8091118338429336E-2,-1.2991773012570711,-4.21873778319683,null,0,0,0]
[353,0,-0.34773056480545711,-1.1846243708672264,null,0,0,0,null,1.7510551763750128E-2,0.1770159743297727,-0.27807575912600807,null,0,0,0]
[354,0,1.8772645710564249,4.735024242366948,null,0,0,0,null,0.10208100850365094,1.4377257649948834,3.8693933318986238,null,0,0,0]
[355,0,0.12228587236973544,-0.24593437062083831,null,0,0,0,null,-2.2148070387008147E-2,-0.31437615014250059,-1.0182914454788479,null,0,0,0]
[356,0,2.1436930865391424,5.498370561133255,null,0,0,0,null,8.317099101783168E-2,1.2158792539199468,3.7072002921436544,null,0,0,0]
[357,0,-0.90303146385584665,-2.5559429337954569,null,0,0,0,null,0.1035993094257555,1.3644171350916376,2.7198351426844276,null,0,0,0]
[358,0,-0.42207636561510842,-0.74076812229095235,null,0,0,0,null,-2.7066927153704796E-3,-0.11533542940516782,-0.95901254748586873,null,0,0,0]
[359,0,0.51487790389430488,1.5118204449770638,null,0,0,0,null,-7.8031997704353555E-3,-8.5987072636617992E-2,9.8939777508130641E-2,null,0,0,0]
[360,0,-0.97350663835914752,-3.245492793044519,null,0,0,0,null,-2.2463215293951691E-2,-0.34473764094783838,-1.3840284293237601,null,0,0,0]
[361,0,-0.49305476431499484,-1.9133332351969221,null,0,0,0,null,-2.5479579057578746E-2,-0.35130103983689243,-1.0432066236620958,null,0,0,0]
[362,0,1.4029172124306097,4.0247689429829698,null,0,0,0,null,-1.9672313258433972E-2,-6.527444154661953E-2,1.9580880109287937,null,0,0,0]
[363,0,-0.95508534109709398,-3.1201864885308535,null,0,0,0,null,-2.8454620453653035E-2,-0.41001708838880402,-1.3552918500834421,null,0,0,0]
[364,0,1.7449151651615085,4.6692064067263415,null,0,0,0,null,-7.2998883873514157E-3,0.10193866973667445,2.2799256274594044,null,0,0,0]
[365,0,-0.18962632174786451,-0.19714966765062855,null,0,0,0,null,-6.4457809745784404E-3,-0.11537737312714035,-0.4529674196268097,null,0,0,0]
[366,0,-1.5683005778726493,-4.0249485728313594,null,0,0,0,null,-5.7774795533589614E-2,-0.78124147221098061,-1.756733872356508,null,0,0,0]
[367,0,-1.9213255269000584,-5.6612065523197526,null,0,0,0,null,2.2072486254064758E-2,0.15768865117848327,-1.1453984813102289,null,0,0,0]
[368,0,0.41055017380824754,1.4304830364564842,null,0,0,0,null,1.6356298388014921E-2,0.18532331900257942,0.19323663515596126,null,0,0,0]
[369,0,-0.10493059993146016,-0.4041776921031342,null,0,0,0,null,1.9865789357839277E-2,0.24391101644675928,0.25899356648589311,null,0,0,0]
[370,0,0.94633463689582453,2.2426631495497422,null,0,0,0,null,3.6587693780883397E-2,0.52650092539232995,1.531092300731838,null,0,0,0]
[371,0,1.1992684092038799,3.261111011108289,null,0,0,0,null,4.8398932867076777E-2,0.68049884782406667,1.8102962062394437,null,0,0,0]
[372,0,-2.9727105051199252,-7.6460244077365349,null,0,0,0,null,-7.8382189843176492E-2,-1.1564386276051455,-3.4933563700176746,null,0,0,0]
[373,0,-0.4932019601698121,-0.8612184745434861,null,0,0,0,null,-5.5508873686202949E-3,-0.12074753232399144,-0.63211934882092102,null,0,0,0]
[374,0,-1.808000974293611,-4.4453004524408826,null,0,0,0,null,-1.4850515581661568E-2,-0.3615891661705673,-2.3655552260888033,null,0,0,0]
[375,0,-1.3783678313133114,-3.7300953139201591,null,0,0,0,null,-8.6600432719467449E-2,-1.1302622859783815,-2.179743645169514,null,0,0,0]
[376,0,-2.6305570802813945,-6.7860012105695713,null,0,0,0,null,-4.696448528053554E-2,-0.71657513652627769,-2.3681019460997157,null,0,0,0]
[377,0,-4.2769329307644509E-2,-0.21194673109093129,null,0,0,0,null,-1.7988708058747308E-2,-0.18045150182358885,0.22439160490475479,null,0,0,0]
[378,0,-0.70355104283350378,-1.6512237244062635,null,0,0,0,null,-7.30654934697198E-2,-0.98962092059860063,-2.32119918935269,null,0,0,0]
[379,0,-0.28871273959763127,-0.70538297445819631,null,0,0,0,null,3.0865519006933708E-2,0.33980282975236059,-0.16390226543920652,null,0,0,0]
[380,0,0.77384397553478812,1.832555351985873,null,0,0,0,null,5.3866280360120922E-2,0.73387855941958058,1.776207557177153,null,0,0,0]
[381,0,-0.4594269031272688,-1.1596443330762922,null,0,0,0,null,-5.8728989265839004E-3,-0.13272093302477062,-0.81515485387272935,null,0,0,0]
[382,0,-0.31297027115705894,-0.60483145336341837,null,0,0,0,null,-3.3442499932501507E-2,-0.38071525856291011,-0.16982803244288153,null,0,0,0]
[383,0,-1.5454098759831905,-4.7217763960632944,null,0,0,0,null,-1.7963850262458551E-2,-0.32507939668193464,-1.6821320812480007,null,0,0,0]
[384,0,-0.2756267840644705,-0.39813880070173763,null,0,0,0,null,-4.3283118564060884E-2,-0.57299531979948548,-1.0908495960921791,null,0,0,0]
[385,0,0.3024375354280055,1.0517412917577895,null,0,0,0,null,-2.4502233971348177E-2,-0.34983051133760362,-0.99835576080147437,null,0,0,0]
[386,0,-1.4157772937126283,-3.6104350641250567,null,0,0,0,null,-4.8487087540290477E-2,-0.77686045623769584,-3.1149001821526325,null,0,0,0]
[387,0,0.33469001213296362,0.94200584601497395,null,0,0,0,null,2.0197195127704445E-2,0.2528932780314781,0.30565341961964443,null,0,0,0]
[388,0,1.5768931933462917,4.4219142241247535,null,0,0,0,null,-1.8289981120986509E-2,-6.1249354859830421E-2,1.8129010093151119,null,0,0,0]
[389,0,-2.2052832422623125,-5.8675860424396742,null,0,0,0,null,-6.2004881956060159E-2,-1.0017707552089168,-4.0888289937700648,null,0,0,0]
[390,0,-0.74615517029895273,-2.0650467162871866,null,0,0,0,null,1.1224338428161843E-2,0.11703067891847604,-0.10093682103108222,null,0,0,0]
[391,0,-0.62812011282327507,-1.9986053516788307,null,0,0,0,null,-4.9144481429401365E-2,-0.65948060557409283,-1.5718280165923644,null,0,0,0]
[392,0,-1.842476085295355,-4.4729687597695742,null,0,0,0,null,-1.1326540422878053E-2,-0.30959675000368952,-2.1956579736169006,null,0,0,0]
[393,0,0.43645725433809823,1.5234667511462321,null,0,0,0,null,-2.0971378577470771E-2,-0.19555867538380789,0.47073560571499912,null,0,0,0]
[394,0,0.79199346075908938,2.6128214827515985,null,0,0,0,null,1.3266499432040803E-2,0.22234900365351767,1.0025258345516086,null,0,0,0]
[395,0,1.9391741168717727,5.0371056942446666,null,0,0,0,null,3.2371009681490648E-2,0.62520661175192072,3.3309301275657526,null,0,0,0]
[396,0,-0.63568422576975536,-1.7511730695332444,null,0,0,0,null,-3.7381878304875105E-2,-0.48136153084046329,-0.86456711731565161,null,0,0,0]
[397,0,1.823628248799374,4.7274847320657134,null,0,0,0,null,6.1166681915983699E-2,0.93788056806642184,3.2861472253373614,null,0,0,0]
[398,0,2.3041001923353508,6.2154890528449975,null,0,0,0,null,2.9330979060716175E-2,0.46758048402642272,1.8937559664393921,null,0,0,0]
[399,0,1.6397723568093006,4.3800816686936379,null,0,0,0,null,2.4005912750696438E-3,0.1380805787728632,1.4442546843948003,null,0,0,0]
[400,0,-0.23124613263265564,-0.69034026682233529,null,0,0,0,null,-2.5415850320299797E-2,-0.29112016070355368,-0.1354861014051239,null,0,0,0]
[401,0,-1.3524408761282867,-3.4055284258461977,null,0,0,0,null,-2.6481971210610654E-2,-0.46158558059077859,-2.2101311630952551,null,0,0,0]
[402,0,-0.10181473408170677,-0.34100025661535621,null,0,0,0,null,4.0631943377215804E-2,0.4925124829260103,0.51311312523745434,null,0,0,0]
[403,0,0.47454385519236347,1.1397734661032228,null,0,0,0,null,2.9741517940908353E-2,0.43143933991872108,1.3597123363176506,null,0,0,0]
[404,0,-0.38510495739793987,-1.036742841432897,null,0,0,0,null,-4.880151472163561E-3,-0.1300201748628815,-1.0784376826006628,null,0,0,0]
[405,0,-1.3914769680030039,-3.8480372423899025,null,0,0,0,null,-7.341712361007495E-2,-0.97720127696464898,-2.1229529336289161,null,0,0,0]
[406,0,-0.77044027183622343,-2.2280996512806088,null,0,0,0,null,1.4430749731947913E-2,9.7331789170263625E-2,-0.85519879726968429,null,0,0,0]
[407,0,0.82539457508321901,2.1346949725689046,null,0,0,0,null,3.7431989287433679E-3,0.12399043402014377,1.1108145395396458,null,0,0,0]
[408,0,-0.61530861630798062,-1.7630632559935984,null,0,0,0,null,-6.7074411646996221E-2,-0.81618493559442962,-0.97350701035930975,null,0,0,0]
[409,0,-0.80005432514990749,-2.472223587400753,null,0,0,0,null,-4.1093349070334455E-2,-0.55937189006273091,-1.4441139745861729,null,0,0,0]
[410,0,-0.28672419810844257,-0.37208307727049394,null,0,0,0,null,7.5406306731006798E-3,4.4974304504237804E-2,-0.36056089414929737,null,0,0,0]
[411,0,-0.64265748038138559,-1.2030174950742294,null,0,0,0,null,1.2044190865751772E-2,3.1363508321339398E-2,-1.1260546169135304,null,0,0,0]
[412,0,0.91008568649263,2.4194617982076814,null,0,0,0,null,3.0728018423751849E-2,0.43292945861487808,1.2121659714541202,null,0,0,0]
[413,0,1.5527711576601833,4.4838414508045243,null,0,0,0,null,8.61260205537763E-2,1.1667239075693587,2.70486371029522,null,0,0,0]
[414,0,0.8382468046617978,2.4657078376816064,null,0,0,0,null,-3.478750768886215E-2,-0.3263235815442031,0.77762865550580684,null,0,0,0]
[415,0,-1.8956631672181956,-5.5665751696338122,null,0,0,0,null,1.9077467630054856E-2,0.11102117285650911,-1.2910709557773408,null,0,0,0]
[416,0,-0.10181473408170677,-0.34100025661535621,null,0,0,0,null,4.0631943377215804E-2,0.4925124829260103,0.51311312523745434,null,0,0,0]
[417,0,-0.10981363189576586,-0.25549437689744808,null,0,0,0,null,-4.6255102847501291E-2,-0.69009367350272532,-2.2926855383528419,null,0,0,0]
[418,0,1.0585157104562204,2.6517772101154624,null,0,0,0,null,-2.3148142081689627E-2,-0.23793361223891499,0.23570769488568841,null,0,0,0]
[419,0,0.3546710672547797,1.3318833372387306,null,0,0,0,null,1.520181067815605E-2,0.18994150983982308,0.10197176576386846,null,0,0,0]
[420,0,-0.38428438806112353,-1.1133705397140001,null,0,0,0,null,1.741173527571533E-2,0.1440999269276699,-0.61169410475476249,null,0,0,0]
[421,0,1.7449151651615102,4.6692064067263495,null,0,0,0,null,-7.2998883873517002E-3,0.10093517646868531,2.2678837082435819,null,0,0,0]
[422,0,-1.4712742157685808,-3.9205113477338602,null,0,0,0,null,-9.0572059202071786E-2,-1.1944637291554692,-2.4231600338577484,null,0,0,0]
[423,0,-1.7510596758652208,-5.2627859241986004,null,0,0,0,null,1.1988793067509107E-2,2.0773501332087108E-2,-1.4776051426956474,null,0,0,0]
[424,0,2.1455585649758322,5.5990989799559392,null,0,0,0,null,0.10405800047943836,1.4871774601479346,4.2430271805322448,null,0,0,0]
[425,0,-0.74736082944238658,-2.122250930458911,null,0,0,0,null,5.2221286747601422E-3,2.2766366645109882E-3,-0.70391983900889676,null,0,0,0]
[426,0,1.5809382267800647,4.0618983794117085,null,0,0,0,null,-3.4254701813628118E-3,0.10835373982865712,1.8084315487242237,null,0,0,0]
[427,0,-1.3814292992227146,-3.784729196333712,null,0,0,0,null,-4.4106106854576867E-2,-0.65930878925432901,-2.1777617884738465,null,0,0,0]
[428,0,0.50062036306162372,1.1392205646265647,null,0,0,0,null,1.5778139709703737E-2,0.25647481646031245,1.0723209990529723,null,0,0,0]
[429,0,-0.32366121917449892,-0.56074400808213254,null,0,0,0,null,-4.6366526348526178E-2,-0.61316235063915792,-1.1614712226155679,null,0,0,0]
[430,0,1.0659431438684077,3.0788572720777809,null,0,0,0,null,-4.2110198475693264E-2,-0.40108977581130695,0.87126230603672228,null,0,0,0]
[431,0,-0.54571711066659923,-1.0890089952976632,null,0,0,0,null,-8.1493937486477527E-3,-0.1930098988775735,-1.1781444113593351,null,0,0,0]
[432,0,-1.6729246542170568,-5.0467978045456912,null,0,0,0,null,-1.2342996818543157E-2,-0.31162514825150811,-2.2990110063130085,null,0,0,0]
[433,0,-0.8896516907301939,-2.9602472281921002,null,0,0,0,null,-2.1606574098444638E-2,-0.33592702974605709,-1.3729573137912194,null,0,0,0]
[434,0,1.2095483997430383,3.3865602233463505,null,0,0,0,null,-3.4402152983570827E-2,-0.26997849922937894,1.4124237234602515,null,0,0,0]
[435,0,-0.87589468580834362,-2.4848865320235856,null,0,0,0,null,-4.2609388593058952E-3,-0.11710366063160199,-0.90398796302616025,null,0,0,0]
[436,0,0.71518276029434491,1.8599682158453505,null,0,0,0,null,8.8629868932954589E-2,1.1482334664444833,2.1360386722113724,null,0,0,0]
[437,0,1.1171231362250837,3.2131826707892395,null,0,0,0,null,-2.7682553476857153E-2,-0.20583790266200139,1.3149703650880256,null,0,0,0]
[438,0,0.40522967636328938,0.68646461150510008,null,0,0,0,null,-6.6769022365089886E-2,-0.73179262029300574,2.8311540935788797E-2,null,0,0,0]
[439,0,-2.8043592483146003,-7.239316867113561,null,0,0,0,null,-0.11032981845982857,-1.5597148604346338,-4.1443956759397773,null,0,0,0]
[440,0,-1.591137001584686,-4.0897814397067123,null,0,0,0,null,-5.6025287831429696E-2,-0.78002634142539773,-1.9783562185620358,null,0,0,0]
[441,0,2.08526283780588,5.3140071086024037,null,0,0,0,null,8.1861888946100345E-2,1.2008707579615465,3.6892764321523028,null,0,0,0]
[442,0,-0.17477221530638781,-0.27460856355559371,null,0,0,0,null,-6.3087807871102086E-3,-0.12909199207865094,-0.67593147784617391,null,0,0,0]
[443,0,1.2282220303997109,3.1731881601329222,null,0,0,0,null,-3.9723422486440541E-4,9.5536797265101087E-2,1.1634716085586005,null,0,0,0]
[444,0,6.217152559918759E-3,0.21546133884052687,null,0,0,0,null,-3.4388869086127899E-2,-0.51115890956150456,-1.6457014400533845,null,0,0,0]
[445,0,-0.85023575434133458,-2.4163614153585002,null,0,0,0,null,4.7856046229298957E-5,-6.9371840852513744E-2,-0.89256179253576917,null,0,0,0]
[446,0,0.3977082793087775,1.4512779369938871,null,0,0,0,null,-9.4286300118174043E-2,-1.0475455205970057,-0.11361256628959018,null,0,0,0]
[447,0,1.5752301491358449,4.0564611562264981,null,0,0,0,null,-1.3954179497005726E-4,0.14381537196318003,1.8008009513616525,null,0,0,0]
[448,0,1.5650749646437889,4.2134716729626449,null,0,0,0,null,-2.1240630840277733E-2,-9.4979346929476377E-2,1.7586313776235876,null,0,0,0]
[449,0,0.20919949865781745,0.38276288495603511,null,0,0,0,null,-4.391420105313841E-3,-3.1004741790822663E-2,0.24483628164370383,null,0,0,0]
[450,0,-1.7393278012419633,-5.2274631319433027,null,0,0,0,null,-1.6875790495799434E-2,-0.34998521207342492,-2.1407895151377452,null,0,0,0]
[451,0,-0.39359704245307514,-1.168304551778987,null,0,0,0,null,-6.9316329478480446E-2,-0.80521523813947626,-0.52508998987694577,null,0,0,0]
[452,0,-0.53555389138805731,-0.93690245668194261,null,0,0,0,null,1.2269946246823054E-2,7.5094609932109049E-2,-0.61397326881566916,null,0,0,0]
[453,0,1.2002057256177576,3.3894895394764828,null,0,0,0,null,3.6189432131835078E-2,0.55639095633084523,1.9682876349493053,null,0,0,0]
[454,0,2.0947588827694816,5.4679419777248839,null,0,0,0,null,9.7020077607252286E-2,1.4001050676516944,4.1301937005384062,null,0,0,0]
[455,0,0.54220558018672094,1.514353354396444,null,0,0,0,null,2.0733701575161207E-2,0.24804720580807862,0.18815443448399674,null,0,0,0]
[456,0,0.31237942690256387,1.2390495211204688,null,0,0,0,null,-2.201091614103251E-2,-0.24325414899774206,0.1391912953542451,null,0,0,0]
[457,0,-0.75848705658772819,-2.5429673113732134,null,0,0,0,null,-2.6025907805809139E-2,-0.36872194150111864,-1.1999747727276844,null,0,0,0]
[458,0,-0.50187196815237622,-1.491230944555973,null,0,0,0,null,-2.1142292441195594E-2,-0.27202434720483415,-0.49774544906938534,null,0,0,0]
[459,0,0.6818782220865196,1.6888720865171418,null,0,0,0,null,2.6944830519420919E-2,0.36637159264330693,0.92801240492227588,null,0,0,0]
[460,0,-0.29746346981544591,-1.3544559411724331,null,0,0,0,null,-1.9607200482997654E-2,-0.24662476109082035,-0.54168657109596463,null,0,0,0]
[461,0,0.21411122379540212,0.74510027058137351,null,0,0,0,null,5.8579930960172021E-2,0.73095201692169398,1.0998802556199845,null,0,0,0]
[462,0,-0.87482325244648751,-2.5218218674240704,null,0,0,0,null,-3.7030622620036181E-2,-0.49709504187053333,-1.2055531184777755,null,0,0,0]
[463,0,0.35311141973192206,1.0964287481600987,null,0,0,0,null,7.1561928020710014E-2,0.89098190262342269,1.3273526087483078,null,0,0,0]
[464,0,1.4313326365496595,3.8594596169479556,null,0,0,0,null,-2.9748343992589524E-2,-0.27521971758858582,0.72432897916099681,null,0,0,0]
[465,0,0.73109827674041483,1.963790033891557,null,0,0,0,null,8.8806923050860576E-2,1.1445544485189394,2.0748004696120659,null,0,0,0]
[466,0,-1.1133302873363591,-2.9449727735199196,null,0,0,0,null,-5.4037490115375474E-2,-0.716513810127829,-1.5192720902323162,null,0,0,0]
[467,0,2.1163086124454296,5.7721550086807039,null,0,0,0,null,2.3711645114463976E-2,0.40896249322589667,1.9549023623701323,null,0,0,0]
[468,0,0.28229936857739629,1.0266306338679061,null,0,0,0,null,-4.2058124535696378E-2,-0.48901921564749501,-0.31419317417152703,null,0,0,0]
[469,0,-0.35745299637566313,-0.99392832204785375,null,0,0,0,null,-1.7656987195810131E-2,-0.20201115890810162,-8.8520299618521675E-2,null,0,0,0]
[470,0,-1.1373582639969191,-3.068356902492531,null,0,0,0,null,-6.7759125350354971E-2,-0.90356004284656688,-1.9708141258640461,null,0,0,0]
[471,0,0.37768676888877234,1.0358105889033105,null,0,0,0,null,-9.2705158107280004E-3,-0.26535016227338293,-2.0060612504560269,null,0,0,0]
[472,0,1.7653649434584513,5.1854328506891978,null,0,0,0,null,0.12044697996704957,1.5978797287251374,3.5459992067552268,null,0,0,0]
[473,0,1.0383939515058755,2.577422579533668,null,0,0,0,null,4.6428920179279257E-2,0.65520854819700158,1.8658427236520985,null,0,0,0]
[474,0,1.6285410705096255,4.2816051108277531,null,0,0,0,null,-2.0919480515378838E-2,-7.2628807072992463E-2,1.9678209743582957,null,0,0,0]
[475,0,0.20370932444768186,4.468125752516789E-2,null,0,0,0,null,1.6143069444313197E-2,0.29300436548038034,1.3104474921386791,null,0,0,0]
[476,0,0.52762372739686181,1.156484753787161,null,0,0,0,null,9.3035854470944635E-3,0.15822961784953987,0.69101557278747716,null,0,0,0]
[477,0,-0.50035552982984155,-1.0174750392930292,null,0,0,0,null,-2.3717138973253553E-2,-0.37159726957562178,-1.2639807741811164,null,0,0,0]
[478,0,-1.4097366918891712,-3.8590987477778835,null,0,0,0,null,-8.3677492089221636E-2,-1.0943622653701714,-2.137837424250407,null,0,0,0]
[479,0,0.4295946164236375,1.014431780588966,null,0,0,0,null,2.6390440772286639E-2,0.37118654121519284,1.0401154500890735,null,0,0,0]
[480,0,-1.5454098759831905,-4.7217763960632944,null,0,0,0,null,-1.7963850262458551E-2,-0.32507939668193464,-1.6821320812480007,null,0,0,0]
[481,0,-1.7917627792998374,-4.4428186559473177,null,0,0,0,null,-4.134609567823043E-2,-0.5458707679804311,-0.89472731862709409,null,0,0,0]
[482,0,-0.64458556464593308,-2.4372008988323071,null,0,0,0,null,-7.2192988596655655E-2,-0.98025964066045346,-2.3972119188611214,null,0,0,0]
[483,0,-0.10708911605511821,-0.30330038188776964,null,0,0,0,null,1.4724171740845407E-2,0.15667343485382026,-6.8672633783775389E-2,null,0,0,0]
[484,0,-0.317932182743627,-0.28154400154096221,null,0,0,0,null,-2.8361773804623909E-2,-0.41700705019665019,-1.1433523930477931,null,0,0,0]
[485,0,-0.71123534972450575,-2.4463514592311983,null,0,0,0,null,-3.1328493214085651E-2,-0.431653632884756,-1.2683543765081196,null,0,0,0]
[486,0,1.899753867135938,4.9573795958334088,null,0,0,0,null,2.0847452763181819E-2,0.44849681945802422,2.7195349185338964,null,0,0,0]
[487,0,0.74555934123436962,1.9407849405514135,null,0,0,0,null,8.0093563400120221E-2,1.0278853072888168,1.7995690603744334,null,0,0,0]
[488,0,-0.52617361068433821,-0.90934449410386153,null,0,0,0,null,1.1795102836766432E-2,6.6929613640126256E-2,-0.65359326057312506,null,0,0,0]
[489,0,0.62248534446833215,1.3507443121866891,null,0,0,0,null,3.995283840985081E-2,0.58313831570026198,1.7725611744979723,null,0,0,0]
[490,0,-1.7842739695059462,-4.6653921290419165,null,0,0,0,null,2.4363310628051239E-2,0.19906929896333714,-0.9103401438342007,null,0,0,0]
[491,0,-0.88133950036638087,-2.17488450048933,null,0,0,0,null,-2.6290021636037351E-2,-0.42890848401327364,-1.7821656841117037,null,0,0,0]
[492,0,1.361569176724428,3.7608495179660313,null,0,0,0,null,1.8799782036967541E-2,0.32539590823845627,1.5319863453533871,null,0,0,0]
[493,0,-0.46720977116687207,-1.149810158700675,null,0,0,0,null,-3.1220071549354314E-2,-0.45325609970343883,-1.3118883059393958,null,0,0,0]
[494,0,-0.43500785166129391,-1.1877978546785235,null,0,0,0,null,9.0627844202310261E-3,6.8985233816593786E-2,-0.49853439766119118,null,0,0,0]
[495,0,0.48827198845068048,1.0835200162042966,null,0,0,0,null,2.2057109240322972E-2,0.31348912699185533,0.92281568202131892,null,0,0,0]
[496,0,0.50832311523292084,1.4595715944097829,null,0,0,0,null,2.2453075101751496E-2,0.28549079875864664,0.43336879722966476,null,0,0,0]
[497,0,1.2823125209268729,3.5273765571000184,null,0,0,0,null,2.5495460764500478E-2,0.3946118027234306,1.4629485315220228,null,0,0,0]
[498,0,-1.347416787132228,-4.2826509526800507,null,0,0,0,null,-8.9466893917322585E-2,-1.2551099344545973,-3.49158890430268,null,0,0,0]
[499,0,1.463869695264675,3.894057304004142,null,0,0,0,null,1.6134446508233907E-2,0.30448235611670404,1.5677848963372234,null,0,0,0]
[500,0,0.77812408671672706,2.7355275827315562,null,0,0,0,null,1.9931030229016981E-2,0.30904703765642078,1.1814751021177508,null,0,0,0]
[501,0,-0.22569800043304714,-0.26130780205617338,null,0,0,0,null,-4.9700680436826815E-2,-0.60196139679505267,-0.68819522567907554,null,0,0,0]
[502,0,0.68188527154702028,1.7750953880919698,null,0,0,0,null,3.342284694701874E-2,0.47535837610942144,1.4161825736010323,null,0,0,0]
[503,0,1.7516681463165369,4.4460582138828828,null,0,0,0,null,5.6148827194966486E-2,0.8675589214169277,3.0852023896609135,null,0,0,0]
[504,0,-0.11339932305538969,-0.16447441240623448,null,0,0,0,null,-4.5454415986000245E-2,-0.68967642930191597,-2.350537672728362,null,0,0,0]
[505,0,-1.7148341437440922,-4.310218672325056,null,0,0,0,null,-2.2900332621131895E-2,-0.37384458078955596,-1.3455568796194566,null,0,0,0]
[506,0,-1.4293871207935207,-3.5323257833773241,null,0,0,0,null,1.4884393678098946E-2,0.12983123444178182,-0.20759311345802053,null,0,0,0]
[507,0,0.62143020868694476,1.8850697959922691,null,0,0,0,null,-2.8741759952559676E-2,-0.41364590168843735,-1.2153809156289099,null,0,0,0]
[508,0,1.9209126269279113,4.9982607819837144,null,0,0,0,null,8.8170665631882403E-2,1.2742357706957246,3.7281908810072966,null,0,0,0]
[509,0,-1.347416787132228,-4.2826509526800507,null,0,0,0,null,-8.9466893917322585E-2,-1.2551099344545973,-3.49158890430268,null,0,0,0]
[510,0,1.8055636509243995,4.5753879766865504,null,0,0,0,null,5.1511332216295558E-2,0.82362162994369914,3.1698196792074267,null,0,0,0]
[511,0,-0.93022774003902309,-2.2409724841755159,null,0,0,0,null,-3.9746389550679113E-2,-0.58104129271150029,-1.8024586245774736,null,0,0,0]
[512,0,1.1171231362250837,3.2131826707892395,null,0,0,0,null,-2.7682553476857153E-2,-0.20583790266200139,1.3149703650880256,null,0,0,0]
[513,0,-1.4097366918891712,-3.8590987477778835,null,0,0,0,null,-8.3677492089221636E-2,-1.0943622653701714,-2.137837424250407,null,0,0,0]
[514,0,-0.4347675369310891,-0.72907353893175608,null,0,0,0,null,-2.1176199939758932E-3,-0.12673679487761819,-1.1660851024343537,null,0,0,0]
[515,0,1.2023181440029858,3.3899769066310399,null,0,0,0,null,-3.0239367008511295E-2,-0.22852236503234236,1.372101010979095,null,0,0,0]
[516,0,-0.30739689293343325,-1.0074604522439186,null,0,0,0,null,2.3723239858812178E-2,0.25929525552432731,-9.6951712736892653E-2,null,0,0,0]
[517,0,0.75696612073461622,2.2083120954285334,null,0,0,0,null,6.217092712626709E-3,8.2983947964134136E-2,0.28894491931877564,null,0,0,0]
[518,0,-0.2979553071451701,-0.49010445840814648,null,0,0,0,null,1.7029012446348019E-3,-4.855368494594859E-2,-0.73641485860682954,null,0,0,0]
[519,0,-1.7593737770041953,-4.3765443047023949,null,0,0,0,null,-1.3160534184272535E-2,-0.34647365327490204,-2.4255855496192051,null,0,0,0]
[520,0,-9.7939725684536821E-2,0.22449527367871633,null,0,0,0,null,-3.0132575368646997E-2,-0.413827381777297,-0.86380701526730264,null,0,0,0]
[521,0,0.53950158923220437,1.4508081483857749,null,0,0,0,null,2.2810421556611744E-2,0.29283090140287366,0.46517516203326159,null,0,0,0]
[522,0,1.2615502397451619,3.2388555317511636,null,0,0,0,null,-3.7001829866649641E-2,-0.37415820950005035,0.43756313701092586,null,0,0,0]
[523,0,1.8817732476396649,4.8422413387153282,null,0,0,0,null,3.2277437486094018E-2,0.64629383148851771,3.6082539871489172,null,0,0,0]
[524,0,1.6461024795280663,4.2660087470496215,null,0,0,0,null,1.1786381413810944E-2,0.33880731788639057,2.5948382244264612,null,0,0,0]
[525,0,-0.11312057932257084,-0.43262080131037511,null,0,0,0,null,2.0771556353749134E-2,0.25399105724658055,0.25794753337837389,null,0,0,0]
[526,0,1.5513288395643503,4.2831753226455769,null,0,0,0,null,9.3906004925730424E-2,1.317351863231871,3.6523437180128058,null,0,0,0]
[527,0,0.72101503826391855,1.8591110740077712,null,0,0,0,null,2.6972396766314546E-2,0.38879368868030362,1.0420087458431881,null,0,0,0]
[528,0,0.32717124974652873,0.94081917075446109,null,0,0,0,null,3.5653799842374725E-2,0.47404171949780721,0.9320163822107097,null,0,0,0]
[529,0,0.54700099553635118,1.6111279605090603,null,0,0,0,null,2.9435516981121793E-2,0.40008891529763785,0.88555029777870009,null,0,0,0]
[530,0,1.4364688885556898,3.7339400088772963,null,0,0,0,null,1.1175264108593638E-2,0.19242515399552668,0.90083853807193004,null,0,0,0]
[531,0,-0.46634065232250033,-0.88508159292433264,null,0,0,0,null,-1.4945064448078881E-2,-0.22885814886516254,-0.70296814655861095,null,0,0,0]
[532,0,-2.9595477594462407,-7.6497921312185024,null,0,0,0,null,-9.5477148009728188E-2,-1.3970049260032638,-4.1402255062992079,null,0,0,0]
[533,0,2.0271086741548405,5.2777716911987298,null,0,0,0,null,3.8551827991914651E-2,0.72692787734272135,3.7460930925105567,null,0,0,0]
[534,0,-0.2979553071451701,-0.49010445840814648,null,0,0,0,null,1.7029012446348019E-3,-4.855368494594859E-2,-0.73641485860682954,null,0,0,0]
[535,0,-0.48016481260045657,-0.72080832941352124,null,0,0,0,null,-3.1054668216270499E-2,-0.47125873832413617,-1.4517435441540691,null,0,0,0]
[536,0,1.3815185474792653,3.7048000176628486,null,0,0,0,null,1.2883429718252785E-2,0.21855321513781564,1.0177690357762221,null,0,0,0]
[537,0,0.55380172719864096,1.2926773803136893,null,0,0,0,null,1.8392870010137188E-2,0.28384304100548163,1.0424849879080793,null,0,0,0]
[538,0,0.10182739357516948,0.31745796826268635,null,0,0,0,null,5.5037840013467704E-2,0.69363795289837349,1.0832459838827053,null,0,0,0]
[539,0,0.71253434049028141,2.6031367150669102,null,0,0,0,null,2.2579745307139205E-2,0.35448425203195982,1.3783531510264766,null,0,0,0]
[540,0,0.10182739357516948,0.31745796826268635,null,0,0,0,null,5.5037840013467704E-2,0.69363795289837349,1.0832459838827053,null,0,0,0]
[541,0,0.64458200544379907,1.373063945082984,null,0,0,0,null,1.572169502650405E-2,0.27541279828006826,1.2660984600241099,null,0,0,0]
[542,0,1.5139925499938236,3.8766249599379519,null,0,0,0,null,-3.6285551502352859E-3,0.10504048343567865,1.7900064173333923,null,0,0,0]
[543,0,-0.26150937439718835,-0.66648475679532571,null,0,0,0,null,3.5781433930746689E-2,0.37942438507080167,-0.37046779756729664,null,0,0,0]
[544,0,1.5142662008955359,3.8556554115051549,null,0,0,0,null,4.2495851464219069E-3,0.21861471486686787,2.1225011539101577,null,0,0,0]
[545,0,0.88234461663893848,2.5981406929441362,null,0,0,0,null,-2.9405119067139138E-2,-0.26018977264071236,0.87000657775744916,null,0,0,0]
[546,0,-0.8192426394485246,-1.9288487605064875,null,0,0,0,null,-4.3045126744757287E-2,-0.63594788520687506,-2.0043947510419966,null,0,0,0]
[547,0,0.28964323198536296,0.81545180911383064,null,0,0,0,null,5.0870532652815027E-2,0.65424249332406448,1.1744234503257867,null,0,0,0]
[548,0,0.20664123771397863,1.4667341114109149E-3,null,0,0,0,null,1.8910081631978187E-2,0.24996111407888294,0.37586439118512133,null,0,0,0]
[549,0,-0.69171586952543662,-1.501782820485787,null,0,0,0,null,1.2257726400950275E-2,5.4659751628728374E-2,-1.0254466445222423,null,0,0,0]
[550,0,-0.9048909314258563,-2.660821235362564,null,0,0,0,null,-5.8518560277734085E-3,-0.1452041629202131,-1.080922018240104,null,0,0,0]
[551,0,0.92904132027729791,2.5172923113425787,null,0,0,0,null,-1.257071309515311E-3,1.9029823473570105E-2,0.47551339232718604,null,0,0,0]
[552,0,0.10062124051523279,0.50818550475098889,null,0,0,0,null,-6.6538543450114385E-3,-0.10460919258712238,-0.4803502251840473,null,0,0,0]
[553,0,-0.11721637788559019,-0.13906670154587483,null,0,0,0,null,9.7648732841747118E-3,7.5914580571818074E-2,-0.32555487193834415,null,0,0,0]
[554,0,1.4611696708017208,3.8700302921467808,null,0,0,0,null,5.5459802046292056E-2,0.82366198463923046,2.7470946767303648,null,0,0,0]
[555,0,-0.28196623793320214,-0.9577094991754711,null,0,0,0,null,1.9177514492934051E-2,0.20925257093988603,-7.4323501127564667E-2,null,0,0,0]
[556,0,6.5500334332500645E-3,-0.48980603093265379,null,0,0,0,null,4.2031720103152169E-2,0.57257303588153174,1.2658113879165067,null,0,0,0]
[557,0,-2.8028721367066338,-7.2357477992544448,null,0,0,0,null,-0.11026013436175355,-1.5645986119239623,-4.2121989947576148,null,0,0,0]
[558,0,1.0263856854105107,2.6365772036636481,null,0,0,0,null,4.5560186386849749E-3,0.13323614094523054,1.010874555280483,null,0,0,0]
[559,0,-0.71521049874208253,-2.4593136773670556,null,0,0,0,null,-3.0968779374661779E-2,-0.38577619713143302,-0.72810330627562869,null,0,0,0]
[560,0,-0.83020343987412892,-2.3114981450471679,null,0,0,0,null,-4.2034458690023313E-2,-0.53677182765160436,-0.92999085123213077,null,0,0,0]
[561,0,1.5160777665919758,4.023662758705985,null,0,0,0,null,6.1302211808013395E-2,0.8930925679818793,2.8298122287737022,null,0,0,0]
[562,0,-0.90663250169572895,-2.4932157777780448,null,0,0,0,null,-6.3256261984398696E-2,-0.77728862741186189,-1.004031939797198,null,0,0,0]
[563,0,1.5659205248599992,3.9796257890198685,null,0,0,0,null,4.4786321596000673E-3,0.21849486429114312,2.0908287412619502,null,0,0,0]
[564,0,0.83280119266679509,2.3802300412891126,null,0,0,0,null,-2.9547234330622531E-2,-0.4518903348843496,-1.543817667758336,null,0,0,0]
[565,0,1.6417124901405933,4.7194120919565972,null,0,0,0,null,8.2846494125988157E-2,1.1347668594470697,2.7720172318800143,null,0,0,0]
[566,0,1.2203831024874598,3.214648416657532,null,0,0,0,null,8.9828804920592236E-3,0.22305413359399154,1.6388645215717952,null,0,0,0]
[567,0,-0.15792487639590763,-8.7237363574669866E-2,null,0,0,0,null,-2.8641997009635191E-2,-0.37682744969388021,-0.64732477158313118,null,0,0,0]
[568,0,0.4321001317138089,1.4822029354298283,null,0,0,0,null,1.7865171279571938E-2,0.21500338053773158,0.35022615189224959,null,0,0,0]
[569,0,6.9785988560459367E-2,-0.31617364869134323,null,0,0,0,null,1.3399621999416808E-2,0.24700634089989307,1.1194928145178673,null,0,0,0]
[570,0,0.3814738390320126,1.4328032083302533,null,0,0,0,null,4.7650468526187692E-2,0.57856807709111213,0.80014687372567272,null,0,0,0]
[571,0,1.6131953609349494,4.5090394263375346,null,0,0,0,null,-1.8289981120986853E-2,-5.4350212645732428E-2,1.8956907158843241,null,0,0,0]
[572,0,0.68037687320805162,1.6784764407014008,null,0,0,0,null,5.0423524240715722E-2,0.70273709851077093,1.8586972865142561,null,0,0,0]
[573,0,-0.73008091995398905,-2.6200840899309186,null,0,0,0,null,-9.3056380554151247E-2,-1.2926682125961488,-3.4124741531872824,null,0,0,0]
[574,0,-1.6344151582798876,-4.2430386226198822,null,0,0,0,null,7.1512095847223858E-2,0.7572539392374128,-0.20687805776590903,null,0,0,0]
[575,0,-0.63900728729789258,-1.4724197154629945,null,0,0,0,null,-1.3300426175346445E-2,-0.25200988655246781,-1.3718149691142716,null,0,0,0]
[576,0,-0.44675786213968965,-0.69751978354009769,null,0,0,0,null,-5.0881482575778424E-2,-0.68711177743604734,-1.4463766347100209,null,0,0,0]
[577,0,-5.6017803318618463E-2,-0.15486942618644389,null,0,0,0,null,5.9930957120100797E-2,0.74523791256473759,1.0323165418119933,null,0,0,0]
[578,0,-3.0429763484445922,-7.8708929143090502,null,0,0,0,null,-9.1474517345227241E-2,-1.3462216962388767,-4.0503153579500832,null,0,0,0]
[579,0,0.47929894851330573,1.593195959327284,null,0,0,0,null,-2.9317954611616244E-2,-0.31131090851862792,0.24400255906863094,null,0,0,0]
[580,0,0.4108776630122975,0.81808350059601076,null,0,0,0,null,5.2342863337734857E-2,0.72879485841523362,1.7825827469714532,null,0,0,0]
[581,0,-0.88291507081269627,-2.4362939436587623,null,0,0,0,null,-5.7582901135537608E-2,-0.70844296020617459,-0.92676756537862826,null,0,0,0]
[582,0,-0.58548451097517684,-1.9374150223520483,null,0,0,0,null,-7.1841302017805961E-2,-0.93224696308595323,-1.8805852315129159,null,0,0,0]
[583,0,0.21529355044293516,0.23115767497677733,null,0,0,0,null,3.9338082488527333E-2,0.54423594889580729,1.2701334462346494,null,0,0,0]
[584,0,-1.0170676058169774,-2.7284993092378134,null,0,0,0,null,0.11092074026818927,1.455455615429174,2.876936202052264,null,0,0,0]
[585,0,1.8334591771529667,4.7504797532470402,null,0,0,0,null,6.7469181670104655E-2,1.0369403227701632,3.6514905834482523,null,0,0,0]
[586,0,-1.4426920099477847,-3.7729840504501482,null,0,0,0,null,0.10461419231544841,1.2968838152439339,1.7542219525418949,null,0,0,0]
[587,0,0.20315136118066221,1.068185929763029,null,0,0,0,null,3.1136743434260154E-2,0.38918659488980395,0.46738504577809725,null,0,0,0]
[588,0,-0.3892131071250533,-1.0961020760336033,null,0,0,0,null,-1.3960691784407119E-3,-7.3981740852352235E-2,-0.73501645268789073,null,0,0,0]
[589,0,0.18209506805044656,0.15061199449835841,null,0,0,0,null,5.232993497278602E-2,0.70575844279957978,1.4998471190115488,null,0,0,0]
[590,0,-0.70022665051136757,-2.423352441613337,null,0,0,0,null,-3.0968779374661835E-2,-0.3856343569199453,-0.7264012237377756,null,0,0,0]
[591,0,-0.33544159276801655,-0.82738676763184049,null,0,0,0,null,4.5504444673667311E-3,7.9190127426436441E-3,-0.50452652184867108,null,0,0,0]
[592,0,-0.48984181911344421,-1.2414779351114047,null,0,0,0,null,-5.8468731815052594E-3,-0.13417379435049953,-0.83605473135035935,null,0,0,0]
[593,0,-0.84103051919025351,-2.3751295621444077,null,0,0,0,null,9.26681904802171E-2,1.2325831381524868,2.5535481163892002,null,0,0,0]
[594,0,-9.0161318485745143E-2,0.10254268145260721,null,0,0,0,null,-4.282461142683508E-2,-0.55614719590030381,-0.93761549041854964,null,0,0,0]
[595,0,-1.4808243304584485,-4.5825401361192339,null,0,0,0,null,2.3347891218525773E-2,0.2217188686329673,-0.54854558010742038,null,0,0,0]
[596,0,-1.0712744217407109,-2.8766680600153705,null,0,0,0,null,-5.5084038794825569E-4,-0.10799403499955497,-1.252817590032806,null,0,0,0]
[597,0,-0.9500578231200052,-3.1375230406456831,null,0,0,0,null,-2.1536275838028644E-2,-0.33198175340056424,-1.3348702951043014,null,0,0,0]
[598,0,0.29885151370457969,1.1916122713445438,null,0,0,0,null,5.3783314270906433E-3,4.5483734691144494E-2,-4.4097896972634769E-2,null,0,0,0]
[599,0,-1.6917149530314564,-5.052044835767469,null,0,0,0,null,1.5258118262855816E-2,7.2563866317354953E-2,-1.3071036368160494,null,0,0,0]
[600,0,0.56090641760875037,1.532269073726704,null,0,0,0,null,6.3817889328714157E-3,0.11391314632899138,0.60956811641174136,null,0,0,0]
[601,0,-0.79795825501669604,-1.9000931756611898,null,0,0,0,null,-6.7597647566160393E-2,-0.88773378952859272,-1.8282179916044188,null,0,0,0]
[602,0,-1.6921437594740727,-4.171693848352275,null,0,0,0,null,-1.5507872519827061E-2,-0.34579457122607798,-2.0920435615254283,null,0,0,0]
[603,0,-1.2308865120343326,-4.0380640963972985,null,0,0,0,null,-1.7972489027757488E-2,-0.3638985920535433,-2.2124488477917659,null,0,0,0]
[604,0,-1.7184524842321298,-5.1325622280960017,null,0,0,0,null,2.1839606743423532E-2,0.15502432439153835,-1.174383004086627,null,0,0,0]
[605,0,1.9012316138145671,5.1133319782872206,null,0,0,0,null,1.1383878688161929E-2,0.2897009389197292,2.1307649520833838,null,0,0,0]
[606,0,-0.31872237901255723,-0.73990821229594439,null,0,0,0,null,-2.028205900893414E-2,-0.32696569099833961,-1.3867880028864856,null,0,0,0]
[607,0,-1.6622325785421581,-4.3610308858386784,null,0,0,0,null,-7.4022558256189877E-2,-1.0135670208703951,-2.4393933532712073,null,0,0,0]
[608,0,-1.3665649779053237,-4.2714557678124763,null,0,0,0,null,-1.4551674271850174E-3,-0.19509781804242537,-2.3309840673804865,null,0,0,0]
[609,0,-1.7393278012419651,-5.2139300076411015,null,0,0,0,null,-2.8522991334563073E-2,-0.49775297682799735,-2.3893792238180285,null,0,0,0]
[610,0,0.49892788174993441,1.6520457106522664,null,0,0,0,null,-2.82730957180608E-2,-0.28273626851729566,0.45452781213992421,null,0,0,0]
[611,0,1.1955621578541067,3.3342024489012982,null,0,0,0,null,1.0013167551945173E-2,0.19279799116827417,1.1009558993132269,null,0,0,0]
[612,0,-0.1646611197816128,-3.805312091745873E-2,null,0,0,0,null,-1.0243831613569626E-2,-0.13573651024083028,-0.39229642416321442,null,0,0,0]
[613,0,1.1838779459954893,3.3775938644766064,null,0,0,0,null,-4.1759190012164993E-2,-0.36149909274751463,1.3038981266742593,null,0,0,0]
[614,0,1.6157254949981508,4.5605024592608094,null,0,0,0,null,-1.3098125315775349E-2,2.1948733829213779E-2,2.1434564797768507,null,0,0,0]
[615,0,0.20982358180466873,0.97187356578642359,null,0,0,0,null,2.2619832839580398E-2,0.21437659073064697,-0.29669269261129011,null,0,0,0]
[616,0,-0.73072335285555523,-2.2784516047365542,null,0,0,0,null,-4.3778635246775763E-2,-0.5771416129751733,-1.2967879626413596,null,0,0,0]
[617,0,-0.50035552982984155,-1.0174750392930292,null,0,0,0,null,-2.3717138973253553E-2,-0.37159726957562178,-1.2639807741811164,null,0,0,0]
[618,0,1.740353041625669,4.6490004930076463,null,0,0,0,null,1.0212788260595801E-2,0.24885941353712132,1.7954497188126115,null,0,0,0]
[619,0,-1.4841810130668018,-4.548066879252052,null,0,0,0,null,2.656143080531689E-2,0.24320936142393113,-0.73290806752589566,null,0,0,0]
[620,0,1.9526770107252014,5.0546260519337887,null,0,0,0,null,7.3899999955933646E-2,1.1098329760808339,3.6683573534185454,null,0,0,0]
[621,0,-0.34644524706921404,-1.506019938029407,null,0,0,0,null,-3.4940444054829017E-2,-0.42692283848265561,-0.6869130075367611,null,0,0,0]
[622,0,-1.8512674175919437,-5.38243481339018,null,0,0,0,null,2.7311698654914552E-2,0.22144841606181853,-1.018929460379415,null,0,0,0]
[623,0,0.16985498068200286,0.18706969171867241,null,0,0,0,null,-1.2304694554406978E-3,3.5211050751868243E-3,0.22780707354744301,null,0,0,0]
[624,0,-0.86814965909313102,-2.4880988824228405,null,0,0,0,null,-3.5194594089181408E-2,-0.48334280344568015,-1.2987342453404489,null,0,0,0]
[625,0,-7.8444384190879644E-3,-0.26604938667148964,null,0,0,0,null,-8.6187676653346895E-2,-0.97875989519782802,-0.36959117764147598,null,0,0,0]
[626,0,-1.6914545869564481,-4.5401452355517611,null,0,0,0,null,-5.3161490953656881E-2,-0.76638643147252061,-2.2725175598688585,null,0,0,0]
[627,0,-1.2225833599553462,-3.1933609685274931,null,0,0,0,null,-4.4744441881797339E-2,-0.61699041817308076,-1.5406017476611269,null,0,0,0]
[628,0,-0.75534125736845814,-2.2711278167049387,null,0,0,0,null,-1.8581791867380217E-2,-0.29169018067904379,-1.1619774384826413,null,0,0,0]
[629,0,2.1436930865391424,5.498370561133255,null,0,0,0,null,8.317099101783168E-2,1.2158792539199468,3.7072002921436544,null,0,0,0]
[630,0,1.3318794882823513,3.4862424767161064,null,0,0,0,null,2.5322150682145377E-2,0.41973283559847735,1.7158436041947172,null,0,0,0]
[631,0,8.8928618782665586E-3,0.29411291801435435,null,0,0,0,null,-1.4572329974504101E-2,-0.21331620563217529,-0.72617748610258426,null,0,0,0]
[632,0,-1.2708819793896691,-3.4794430310788083,null,0,0,0,null,-7.1883102892317252E-2,-0.95548037509430384,-2.0543667741588543,null,0,0,0]
[633,0,0.56948252931062593,1.5507477270302044,null,0,0,0,null,7.7101784069392415E-2,0.99134735632408866,1.7821222610419791,null,0,0,0]
[634,0,1.2512494236192397,3.4603731599774621,null,0,0,0,null,2.1645471217183115E-2,0.34385963088848714,1.3616226866879624,null,0,0,0]
[635,0,0.54223371778584439,1.5362471886862841,null,0,0,0,null,3.3601177614021538E-2,0.44228811565781234,0.82301100982116981,null,0,0,0]
[636,0,-0.78359310098588686,-2.5023481947133912,null,0,0,0,null,-5.0724778992320918E-2,-0.68349798834024023,-1.6804238878264515,null,0,0,0]
[637,0,-0.11721637788559019,-0.13906670154587483,null,0,0,0,null,9.7648732841747118E-3,7.5914580571818074E-2,-0.32555487193834415,null,0,0,0]
[638,0,1.5214442742976371,4.1919759940231449,null,0,0,0,null,7.1007682465147756E-2,0.98439962275173365,2.4722548034680258,null,0,0,0]
[639,0,0.20370932444768186,4.468125752516789E-2,null,0,0,0,null,1.6143069444313197E-2,0.29300436548038034,1.3104474921386791,null,0,0,0]
[640,0,0.20982358180466873,0.97187356578642359,null,0,0,0,null,2.2619832839580398E-2,0.21437659073064697,-0.29669269261129011,null,0,0,0]
[641,0,0.85873944562522597,2.7699145229543065,null,0,0,0,null,7.920203521016396E-2,0.98303733732658016,1.5277142658847915,null,0,0,0]
[642,0,-0.17853947198458264,-0.58902361246067447,null,0,0,0,null,-3.5944299857722628E-2,-0.43760138061707859,-0.51363916808621068,null,0,0,0]
[643,0,-0.1978930691153655,-0.31728224099765795,null,0,0,0,null,-1.6947373090614348E-2,-0.30069583213945678,-1.4215090527466636,null,0,0,0]
[644,0,-0.13906068948477515,-0.48146137601036754,null,0,0,0,null,2.3896357474056742E-2,0.27443444853845267,9.0777449749137304E-2,null,0,0,0]
[645,0,1.886005922369357,4.8564781664926926,null,0,0,0,null,9.6570532298242195E-2,1.3918649336421758,4.0021706494135545,null,0,0,0]
[646,0,-0.2895193452954809,-0.61124389067601437,null,0,0,0,null,-1.499947706426218E-2,-0.24486075544768118,-0.92715096593415003,null,0,0,0]
[647,0,-1.6914545869564481,-4.5401452355517611,null,0,0,0,null,-5.3161490953656881E-2,-0.76638643147252061,-2.2725175598688585,null,0,0,0]
[648,0,-1.2418559717990429,-3.9931374279853991,null,0,0,0,null,-1.654245808303682E-2,-0.33988190373723776,-2.078371039399284,null,0,0,0]
[649,0,-0.35450832832912604,-0.92586654802697743,null,0,0,0,null,-9.0823683904578158E-3,-0.16585147482826051,-0.9618609651890474,null,0,0,0]
[650,0,2.2394520311736468,5.7957736904389892,null,0,0,0,null,9.8957545930435736E-2,1.4255848574711627,4.1705058659032952,null,0,0,0]
[651,0,-0.62781732655885203,-2.2476533628853503,null,0,0,0,null,-6.6190030542369133E-2,-0.82556125546714243,-1.3702204792053998,null,0,0,0]
[652,0,-0.39004017532127,-1.5159225351611603,null,0,0,0,null,4.0189502887388186E-2,0.53952172914611496,1.1064911066029053,null,0,0,0]
[653,0,-0.91537702446593361,-2.6306879499425921,null,0,0,0,null,-3.5066037634919951E-2,-0.47429314185760724,-1.192656604105665,null,0,0,0]
[654,0,-1.7325352152753768,-4.2831477862610194,null,0,0,0,null,-5.8994841480204341E-2,-0.75506278343807842,-1.0866272152914715,null,0,0,0]
[655,0,-1.4061835034498817,-3.9375321923662194,null,0,0,0,null,-3.2458358895228856E-2,-0.48462299667220032,-1.6445895124392991,null,0,0,0]
[656,0,-0.84917829261941369,-2.8036868460612459,null,0,0,0,null,-4.6742976032266313E-2,-0.66414970252955208,-1.9071956887732195,null,0,0,0]
[657,0,0.49086646532202211,1.3777787899623144,null,0,0,0,null,7.1898193365873969E-2,0.914219319081647,1.5612813512594839,null,0,0,0]
[658,0,-0.81730271731745052,-2.4242742659134455,null,0,0,0,null,-7.8331204513698936E-3,-0.15536515032290846,-0.95051071346998284,null,0,0,0]
[659,0,1.881149486516988,4.8778414790739406,null,0,0,0,null,-1.0531748687608172E-2,9.0161983612618318E-2,2.5590689150369834,null,0,0,0]
[660,0,0.46031024871007864,0.72973027890643427,null,0,0,0,null,4.6710256966690449E-2,0.67491418390224045,1.8588189993897322,null,0,0,0]
[661,0,-0.28605621513958068,-1.3757983582806774,null,0,0,0,null,-4.17575580221166E-2,-0.50535720049338029,-0.75617939306675541,null,0,0,0]
[662,0,1.8860059223693553,4.8564781664926926,null,0,0,0,null,9.1769221504744508E-2,1.3249397885503604,3.8461692161825667,null,0,0,0]
[663,0,0.64085669115630661,2.0179045873144204,null,0,0,0,null,-3.1780607924016581E-2,-0.32473693135943449,0.41236879339045479,null,0,0,0]
[664,0,0.27191444708381457,0.83034525659967762,null,0,0,0,null,4.2166941095362002E-2,0.52837395055929393,0.83528953911986903,null,0,0,0]
[665,0,-0.12386013815035403,-0.24021275234984205,null,0,0,0,null,3.966733757503107E-4,-5.4594118434797565E-3,-0.22861872756279991,null,0,0,0]
[666,0,0.96738922739310329,2.5819153667654247,null,0,0,0,null,3.2708243206473468E-2,0.47647664050500227,1.463252949911428,null,0,0,0]
[667,0,-0.12053835438573879,-2.9397951207422012E-2,null,0,0,0,null,-4.8947944166549177E-2,-0.56334253288309266,-0.31070673310350322,null,0,0,0]
[668,0,0.46401102041484954,1.5526073569860528,null,0,0,0,null,-3.1431524303293996E-2,-0.32432831465169965,0.37260295290549039,null,0,0,0]
[669,0,-0.85546875082237961,-2.2925874065245226,null,0,0,0,null,7.1455343039264676E-3,5.2778864625235657E-2,-0.35526509386906402,null,0,0,0]
[670,0,-2.8028721367066338,-7.2357477992544448,null,0,0,0,null,-0.11026013436175355,-1.5645986119239623,-4.2121989947576148,null,0,0,0]
[671,0,-0.98958187504738093,-2.6839888948488153,null,0,0,0,null,1.4730401589924782E-2,0.10631100688065999,-0.70923790938686582,null,0,0,0]
[672,0,-0.34773056480545711,-1.1846243708672264,null,0,0,0,null,1.7510551763750128E-2,0.1770159743297727,-0.27807575912600807,null,0,0,0]
[673,0,1.8675644381957155,5.2218128431658046,null,0,0,0,null,7.3912032930679453E-2,1.0521695480581184,2.9579910046043913,null,0,0,0]
[674,0,-0.18104840409106146,-0.47665552623190888,null,0,0,0,null,1.8774047476569137E-2,0.20064150558132951,-7.5452405893494875E-2,null,0,0,0]
[675,0,-0.95352253556858346,-3.1483132326512058,null,0,0,0,null,-9.4140072762823879E-2,-1.3341809276310441,-3.7647246443252698,null,0,0,0]
[676,0,-0.51868040207816191,-1.5483791584170103,null,0,0,0,null,-4.1299297236266852E-2,-0.52868642088389428,-0.93245415499056616,null,0,0,0]
[677,0,1.3290573452373884,3.4288226529006058,null,0,0,0,null,2.1591272001469292E-2,0.35648497759328257,1.4158027626202565,null,0,0,0]
[678,0,-0.57929110353175017,-1.5273505178657434,null,0,0,0,null,-8.444598640849052E-3,-0.17836867051186436,-1.0482628343433353,null,0,0,0]
[679,0,-0.79765343599511107,-2.2091735120951634,null,0,0,0,null,5.4433200806868736E-3,-1.7696299330989859E-2,-1.0066966784788782,null,0,0,0]
[680,0,-0.72025413880573252,-2.0431669311905933,null,0,0,0,null,5.8862622874097494E-3,-5.410172551129108E-3,-0.93168059570000694,null,0,0,0]
[681,0,1.8444062671701014,4.7761220882353079,null,0,0,0,null,-3.2080299554859268E-3,0.15003932125016309,2.2941936406816641,null,0,0,0]
[682,0,1.5659205248599992,3.9796257890198685,null,0,0,0,null,4.4786321596000673E-3,0.21849486429114312,2.0908287412619502,null,0,0,0]
[683,0,-1.3459631139387802,-4.2586368473711049,null,0,0,0,null,-1.4067478285112997E-2,-0.33512203562309967,-2.3408325955991893,null,0,0,0]
[684,0,-0.67393504055380071,-1.9926662497523575,null,0,0,0,null,9.11410401127057E-4,-6.8934308097096622E-2,-1.060894175057514,null,0,0,0]
[685,0,0.92217717104093211,2.5534665326019241,null,0,0,0,null,9.9383819806368762E-2,1.2893993073707462,2.438922522982506,null,0,0,0]
[686,0,1.2096932221820225,3.658469277261589,null,0,0,0,null,9.2270733526659626E-2,1.1962442930838724,2.3903647499561522,null,0,0,0]
[687,0,-4.4371169592599471E-2,-7.128235745698476E-2,null,0,0,0,null,6.4006042007404007E-2,0.76376472052973532,0.55105975263673823,null,0,0,0]
[688,0,0.83608020163540098,2.4691593263937395,null,0,0,0,null,-4.3181302388412404E-2,-0.42181615101777425,0.74538284411306088,null,0,0,0]
[689,0,-0.29610480199701672,-0.52480871325812772,null,0,0,0,null,-1.0316266440323148E-3,-8.8477320947015867E-2,-0.87598954597765988,null,0,0,0]
[690,0,-0.89902841668712608,-2.1609222880439485,null,0,0,0,null,-5.6044823782330243E-2,-0.74609305949711413,-1.6486935716518383,null,0,0,0]
[691,0,-0.18170869119595409,-1.5888705289376959E-2,null,0,0,0,null,8.0182006416829373E-3,7.4538331531319266E-2,-0.21707447980204234,null,0,0,0]
[692,0,-0.74513023783372223,-2.2700934118111689,null,0,0,0,null,-4.0871505811817997E-2,-0.55080133452586688,-1.3436978125652421,null,0,0,0]
[693,0,-0.8376928058090507,-2.7871790112023809,null,0,0,0,null,-7.2495784934031693E-2,-1.0075905530645477,-2.6487803935603043,null,0,0,0]
[694,0,0.56936595404988477,1.5613582741524805,null,0,0,0,null,8.6884308763979443E-3,0.13859995536569114,0.46717053750660853,null,0,0,0]
[695,0,-1.6325108565292066,-3.957553719491516,null,0,0,0,null,-2.0960797678548374E-2,-0.31235036783323905,-0.78788978828947076,null,0,0,0]
[696,0,-1.0827709470698355,-2.9486484239460187,null,0,0,0,null,-7.8325534024783674E-3,-0.20571967302879876,-1.4720827693455358,null,0,0,0]
[697,0,-1.7406264386188577,-4.3508470470225369,null,0,0,0,null,-5.7375502238895702E-3,-0.2611157290887513,-2.3793796696117022,null,0,0,0]
[698,0,-0.53555389138805909,-0.93690245668194261,null,0,0,0,null,1.3463124440169111E-2,9.0668934883189653E-2,-0.58566259305650969,null,0,0,0]
[699,0,-1.3459631139387802,-4.2586368473711049,null,0,0,0,null,-1.4067478285112997E-2,-0.33512203562309967,-2.3408325955991893,null,0,0,0]
[700,0,0.3165206784468646,0.89900325376725232,null,0,0,0,null,-6.3265922828042564E-3,-8.6399042448585539E-2,-0.26363536556200051,null,0,0,0]
[701,0,-1.8664076592193524,-4.8944420855268911,null,0,0,0,null,-8.9355748554411779E-2,-1.2944323594763691,-3.9917766471678804,null,0,0,0]
[702,0,1.7343809434161703,4.888273831464816,null,0,0,0,null,0.10553598106762735,1.4323671234092936,3.5246657408580031,null,0,0,0]
[703,0,-0.44527947960245184,-0.87422266397102799,null,0,0,0,null,-5.2635055986755448E-2,-0.70687864446106774,-1.467332572166375,null,0,0,0]
[704,0,1.1250382081266908,2.9666210341667685,null,0,0,0,null,2.2126784319489046E-2,0.34906668136350616,1.2505184087572161,null,0,0,0]
[705,0,1.1308072377399676,2.9855349615388187,null,0,0,0,null,1.8078965086596611E-2,0.31230934278268796,1.3426499030100241,null,0,0,0]
[706,0,0.35708249591549246,1.1470629116973288,null,0,0,0,null,2.0790021885993041E-3,2.9676475497965839E-2,0.18877109423500588,null,0,0,0]
[707,0,-0.34314407393575858,-0.42086684063239227,null,0,0,0,null,-2.8459766214536445E-2,-0.42369924736626674,-1.2267836005302997,null,0,0,0]
[708,0,-1.1751327266361005,-2.9376614639470646,null,0,0,0,null,-3.7933269492569879E-2,-0.64978899748197272,-2.9754378460052613,null,0,0,0]
[709,0,-0.21395838520057806,6.636900766727194E-2,null,0,0,0,null,8.2326638801943665E-3,6.1289060864522071E-2,-0.44160179162898566,null,0,0,0]
[710,0,-0.61418290485982474,-2.0266323902438743,null,0,0,0,null,-7.0571687575028422E-2,-0.91608287528754861,-1.8552450937308058,null,0,0,0]
[711,0,-0.49042712656363802,-1.0623728821189871,null,0,0,0,null,-1.2961327129876736E-2,-0.22784903687624955,-1.1543661822409121,null,0,0,0]
[712,0,-1.2880904213874673,-3.6533391918171692,null,0,0,0,null,2.1356191486254998E-2,0.1483180430529519,-1.1396936518730945,null,0,0,0]
[713,0,1.1392397700674866,3.2704622422494065,null,0,0,0,null,-4.1759190012164882E-2,-0.36664530481513702,1.2421435818627797,null,0,0,0]
[714,0,0.9073051014595348,2.5789966952095709,null,0,0,0,null,3.5490611212953584E-2,0.50651231492074478,1.4506535620204994,null,0,0,0]
[715,0,-0.50035552982984155,-1.0211666568886284,null,0,0,0,null,-2.1748671182759326E-2,-0.34254043118663774,-1.1719382661386444,null,0,0,0]
[716,0,-0.93974897019279346,-2.5778852257003817,null,0,0,0,null,-4.5139273590055325E-2,-0.60201058628893955,-1.3150956702079128,null,0,0,0]
[717,0,0.7082407493135161,1.8073948892967382,null,0,0,0,null,3.5880278359148858E-2,0.51676622984549792,1.5787455291874357,null,0,0,0]
[718,0,-1.0854979304921673,-2.910983352581912,null,0,0,0,null,-6.3816982742934278E-2,-0.84417975417201252,-1.769605391241752,null,0,0,0]
[719,0,-1.4809572627337202,-3.5626512504581189,null,0,0,0,null,3.1235234146896574E-4,-4.8836263903399416E-2,-0.39737685604393119,null,0,0,0]
[720,0,-0.20559364195454691,-0.26419422477103943,null,0,0,0,null,-3.1158452920872718E-3,-0.10084436576069948,-0.72836087491657597,null,0,0,0]
[721,0,-0.26099300173121265,-0.46167521318998478,null,0,0,0,null,-5.0446016443053736E-2,-0.58665770719992993,-0.40419266458164932,null,0,0,0]
[722,0,0.56404298402216413,1.5931968553771803,null,0,0,0,null,-4.056385505793912E-3,-4.2301590688751278E-2,8.4058863491685773E-2,null,0,0,0]
[723,0,-0.41041475796797022,-0.84529894338523448,null,0,0,0,null,-4.5333126764640727E-2,-0.56761756777460504,-0.88480688374440797,null,0,0,0]
[724,0,1.6469410508311157,4.4197786402318595,null,0,0,0,null,1.0446941612245325E-2,0.18798007968125421,0.97862729421766204,null,0,0,0]
[725,0,0.58903125813273249,1.4342466756711874,null,0,0,0,null,2.7868691316674188E-2,0.39111547571334176,1.1081684621447747,null,0,0,0]
[726,0,-1.4642033924062781,-4.0392942867526509,null,0,0,0,null,-8.5695712831848306E-2,-1.1206075059041678,-2.1988036673263598,null,0,0,0]
[727,0,0.78794736553043365,2.100227846987611,null,0,0,0,null,9.0512148371632462E-2,1.163478126232907,2.0767948598377952,null,0,0,0]
[728,0,-1.5054486854955593,-4.1440485040981221,null,0,0,0,null,-4.5482770382857439E-2,-0.66311582495215315,-2.051693023244483,null,0,0,0]
[729,0,-1.4353917144979296,-4.4489492734434828,null,0,0,0,null,-2.0225716714894022E-3,-0.1147627511769424,-1.260215105252577,null,0,0,0]
[730,0,-1.2954403926845826,-3.6153914237534845,null,0,0,0,null,-3.4606029907592699E-2,-0.52513496187471176,-1.8264492608881229,null,0,0,0]
[731,0,1.5051263331586451,3.8103674983031306,null,0,0,0,null,3.3427086261852423E-3,0.19534007620001922,1.9413372327123726,null,0,0,0]
[732,0,2.3933787250953338,6.1896302740091125,null,0,0,0,null,0.10428179001946904,1.5023831135226491,4.3822617697822457,null,0,0,0]
[733,0,-1.656974965033287,-4.2931874158033683,null,0,0,0,null,4.0991786423192934E-2,0.34711797335880601,-1.1421997373841877,null,0,0,0]
[734,0,0.14675387628554198,-0.10482620353255334,null,0,0,0,null,2.5229964146175461E-2,0.40897220149296482,1.5010729182190008,null,0,0,0]
[735,0,-1.2954403926845826,-3.6153914237534845,null,0,0,0,null,-3.4606029907592699E-2,-0.52513496187471176,-1.8264492608881229,null,0,0,0]
[736,0,-0.48233688775854899,-0.80413635908196734,null,0,0,0,null,1.3510125703246218E-2,0.10626828540323822,-0.40791221779111586,null,0,0,0]
[737,0,1.8212263431940172,4.6895189334518506,null,0,0,0,null,-2.1607383458657922E-2,-6.1786769212003489E-2,2.159895880969565,null,0,0,0]
[738,0,-0.21243220171381291,-0.32111370299736153,null,0,0,0,null,-4.0897440455740369E-3,-5.4717789012176582E-2,-0.21347413160123324,null,0,0,0]
[739,0,1.2921598012358191,3.3055661665116061,null,0,0,0,null,-3.3662045601882309E-2,-0.33060050065293944,0.53537680368392471,null,0,0,0]
[740,0,2.1913282256701367,5.6529523438573523,null,0,0,0,null,8.9172590413232292E-2,1.299551285715419,3.9382634977142335,null,0,0,0]
[741,0,1.5528295711848294,4.0936514917601166,null,0,0,0,null,1.5824245423250772E-2,0.27009728445226666,1.2512535196446442,null,0,0,0]
[742,0,-0.74435164140620325,-1.7064015528323799,null,0,0,0,null,-1.7335984481401626E-2,-0.3071325067856287,-1.4632939560440719,null,0,0,0]
[743,0,2.1749548792440874,5.6493625418001026,null,0,0,0,null,0.10003121006204441,1.4522725481641163,4.3578962029994512,null,0,0,0]
[744,0,-0.73682609431183299,-2.2166174343144012,null,0,0,0,null,1.76947228062906E-2,0.1711120374400516,-0.38882191230038732,null,0,0,0]
[745,0,-1.4885662047005062,-3.8780492094131405,null,0,0,0,null,6.3648191405067514E-2,0.68397968436137857,-0.10741610805824166,null,0,0,0]
[746,0,0.62487759512285268,1.3083766781614614,null,0,0,0,null,-1.7109145753287917E-2,-0.14294576030352163,0.54507942397928855,null,0,0,0]
[747,0,-0.5854845109751714,-1.9666102840416424,null,0,0,0,null,-6.3491031345290758E-2,-0.82322321084454053,-1.6686715626859405,null,0,0,0]
[748,0,0.36858455980896176,1.4708838374630868,null,0,0,0,null,2.3509707372293236E-2,0.25607364845102987,0.12013548039429953,null,0,0,0]
[749,0,1.0467209964394042,2.820480075720043,null,0,0,0,null,-7.45380490947241E-4,2.7721067574418157E-2,0.50235411807702257,null,0,0,0]
[750,0,-0.71521049874208253,-2.4593136773670556,null,0,0,0,null,-3.0968779374661779E-2,-0.38577619713143302,-0.72810330627562869,null,0,0,0]
[751,0,-0.27994044631898579,-1.3061060287234796,null,0,0,0,null,-1.3446911792920275E-2,-0.18258457235589684,-0.57356138086579445,null,0,0,0]
[752,0,0.86158095603783658,2.7666797414145039,null,0,0,0,null,1.4617236811382838E-2,0.22614743711699431,0.88834670842911512,null,0,0,0]
[753,0,-1.3677365380881292,-3.3919203903001907,null,0,0,0,null,-1.0524906888934026E-2,-0.23588972534988806,-1.4343066112977758,null,0,0,0]
[754,0,-7.7976246451007689E-2,-0.2998426315132674,null,0,0,0,null,-1.8264781606754356E-2,-0.17942664530570254,0.27067432294448374,null,0,0,0]
[755,0,-2.7238480616747509,-7.0352555451700249,null,0,0,0,null,-8.4590922031791083E-2,-1.1822212650912651,-3.0013908335513659,null,0,0,0]
[756,0,-1.5862407992516292,-4.2696106738710657,null,0,0,0,null,-4.832416493357454E-2,-0.7299550859310211,-2.4739992855392083,null,0,0,0]
[757,0,-1.3928309301749304,-3.8512867516025291,null,0,0,0,null,-7.341712361007495E-2,-0.98784880558184429,-2.2507232770352603,null,0,0,0]
[758,0,1.4026104553688383,3.8443518029158223,null,0,0,0,null,1.9052023968246373E-2,0.29418971193928611,1.1328958534122466,null,0,0,0]
[759,0,0.70878502561925782,1.841398927146729,null,0,0,0,null,7.7712583597001464E-2,1.0190571282672436,2.0196124323878939,null,0,0,0]
[760,0,-1.0883412672389021,-2.832096882577229,null,0,0,0,null,-3.8939518010398617E-3,-0.11581964389960103,-0.92762801548557039,null,0,0,0]
[761,0,-1.5570259363603201,-3.9930828215888976,null,0,0,0,null,-5.4200208821743215E-2,-0.75548817323335882,-1.9265475104318794,null,0,0,0]
[762,0,-0.79206496802283799,-2.3780194155154968,null,0,0,0,null,-4.6717947809150874E-2,-0.63148471238026926,-1.5478834637339569,null,0,0,0]
[763,0,6.2638481749745553E-2,0.39663973420034743,null,0,0,0,null,-3.0071708701841032E-2,-0.57281495233221991,-2.9144634973105896,null,0,0,0]
[764,0,0.74555934123436962,1.9407849405514135,null,0,0,0,null,8.0093563400120221E-2,1.0278853072888168,1.7995690603744334,null,0,0,0]
[765,0,1.155774049004789,3.0892855868519762,null,0,0,0,null,2.3208394401221768E-2,0.34844786652833226,1.1954538019755747,null,0,0,0]
[766,0,-1.1432742991666638,-2.8538889378940073,null,0,0,0,null,-3.3882605194189237E-2,-0.58787738179011739,-2.7638878887473837,null,0,0,0]
[767,0,6.2638481749745553E-2,0.39663973420034743,null,0,0,0,null,-3.2816571200609643E-2,-0.60584796024488152,-2.9485377424250654,null,0,0,0]
[768,0,-0.43893187551919438,-0.89085637378601679,null,0,0,0,null,-1.2792078562814311E-2,-0.22212094827240345,-1.0961295263087414,null,0,0,0]
[769,0,1.7732291911233569,4.3476934721698708,null,0,0,0,null,8.4748438378214649E-2,1.2057509260568049,3.3077163672138887,null,0,0,0]
[770,0,-0.85023575434133458,-2.4264686423288442,null,0,0,0,null,-3.7309506941698486E-3,-0.12408962791682643,-1.0532893407671982,null,0,0,0]
[771,0,-0.73072335285555523,-2.2784516047365542,null,0,0,0,null,-4.3778635246775763E-2,-0.5771416129751733,-1.2967879626413596,null,0,0,0]
[772,0,0.66459760246395672,1.9380290521317001,null,0,0,0,null,7.5013385161566363E-3,9.8936473159126764E-2,0.3054815315244741,null,0,0,0]
[773,0,0.6452144645538519,2.0112661667418359,null,0,0,0,null,-6.2576602820107324E-2,-0.67415110362102582,0.1772172752052211,null,0,0,0]
[774,0,-1.2118596605178864,-3.8951837580109494,null,0,0,0,null,1.170980314519403E-2,2.4504189607123406E-3,-1.682358453492885,null,0,0,0]
[775,0,-1.2316700575806736,-3.3040844619064011,null,0,0,0,null,-4.9414593551681887E-2,-0.65358093380998794,-1.377705572707524,null,0,0,0]
[776,0,-0.28083909303136717,-0.80617421917274623,null,0,0,0,null,-2.6979228704186255E-2,-0.30934017921593931,-0.14322946074771245,null,0,0,0]
[777,0,-0.78693068544627753,-2.2579797345631958,null,0,0,0,null,6.281611062533614E-3,1.5559308217410035E-2,-0.69248208689592139,null,0,0,0]
[778,0,2.1749548792440874,5.6536867396173038,null,0,0,0,null,9.7703809582964193E-2,1.414814442140464,4.2192314732013143,null,0,0,0]
[779,0,-0.58741618522806671,-1.4871899902287551,null,0,0,0,null,-2.7788237666375608E-2,-0.3965467954671667,-1.2191100899387202,null,0,0,0]
[780,0,-0.58824875134784638,-1.5805327259884288,null,0,0,0,null,-1.5582646131674722E-2,-0.26191330342403218,-1.2831617503237611,null,0,0,0]
[781,0,0.52127397044019386,1.5762499049095422,null,0,0,0,null,-3.5849288821883138E-2,-0.58455938372571381,-2.2796176464564124,null,0,0,0]
[782,0,-0.75481771870865666,-2.1999158266410888,null,0,0,0,null,2.2023552540043227E-2,0.20318454307575029,-0.58129055480695757,null,0,0,0]
[783,0,-0.63997926706740871,-2.4028945462506379,null,0,0,0,null,-8.8985395292870237E-2,-1.1693414113687532,-2.4507476419612395,null,0,0,0]
[784,0,-1.7875188986067352,-4.3689711324115414,null,0,0,0,null,-1.103001850167999E-2,-0.29440582704720147,-2.0630316466008298,null,0,0,0]
[785,0,1.34979824165617,3.7325992738022107,null,0,0,0,null,1.8582301659500557E-2,0.32184025486915013,1.5180259147473589,null,0,0,0]
[786,0,0.53520989504647509,1.482649965518438,null,0,0,0,null,2.3434138229308191E-2,0.30616096844002189,0.52137303100295684,null,0,0,0]
[787,0,-0.48443503488129319,-0.9757570184504657,null,0,0,0,null,-1.9823397698443899E-2,-0.31855907145563195,-1.1392936004705734,null,0,0,0]
[788,0,0.60985655282439255,1.216009616270574,null,0,0,0,null,-7.554925759787455E-2,-0.83580933078791264,-6.2939906188796163E-2,null,0,0,0]
[789,0,1.1837052998483104,3.3057459896873844,null,0,0,0,null,1.0016056060675453E-2,0.19881642162403751,1.1727957816299859,null,0,0,0]
[790,0,0.9575792660900152,2.7797755190930764,null,0,0,0,null,-4.1580539629567564E-2,-0.39051430093696854,0.9227324246275348,null,0,0,0]
[791,0,1.4284391023787757,3.7725743381817809,null,0,0,0,null,-3.9668040111756737E-2,-0.38500049298351313,0.70377110083301164,null,0,0,0]
[792,0,-1.3459631139387802,-4.2586368473711049,null,0,0,0,null,-1.4067478285112997E-2,-0.33512203562309967,-2.3408325955991893,null,0,0,0]
[793,0,0.71085947241728897,2.0621798336446227,null,0,0,0,null,-2.9691874472338328E-2,-0.4510994527338098,-1.5094095904759197,null,0,0,0]
[794,0,-0.71324024232193184,-2.4603370027035343,null,0,0,0,null,-2.8466471501210719E-2,-0.40243999501034433,-1.2826200437282895,null,0,0,0]
[795,0,-0.24709546012548889,-1.2194210422552934,null,0,0,0,null,-1.1728095018171416E-3,-1.5623333191456368E-2,-0.17944023052089325,null,0,0,0]
[796,0,1.6565384143672872,4.295265013169046,null,0,0,0,null,1.1803809009655027E-2,0.33990911711232363,2.6048642094022108,null,0,0,0]
[797,0,0.31014534943874605,0.58365877046110104,null,0,0,0,null,-6.2969641866513371E-3,-5.3596041224916915E-2,0.23722859898485693,null,0,0,0]
[798,0,6.3799648764537781E-2,0.15507308255860699,null,0,0,0,null,5.8155890957934449E-2,0.73878712206245567,1.1932768548772437,null,0,0,0]
[799,0,-1.1335688945953679,-3.1109882540896288,null,0,0,0,null,9.8835471366311937E-3,2.495387764982206E-2,-1.0542539535122051,null,0,0,0]
[800,0,0.73340758846338938,2.3170401213664737,null,0,0,0,null,-2.0621436476497307E-2,-0.17200913280886379,0.79508996679199118,null,0,0,0]
[801,0,-0.33069943345108188,-1.3182980882373303,null,0,0,0,null,-5.4904813884586415E-2,-0.6988568670728027,-1.3120778455097497,null,0,0,0]
[802,0,-0.53574279702594141,-1.461719534232383,null,0,0,0,null,-3.4504031045110142E-2,-0.40746787835755366,-0.32354498417280775,null,0,0,0]
[803,0,0.95020386885535668,2.485860802208117,null,0,0,0,null,3.5349847352778171E-3,9.7969854336182841E-2,0.70520130992392294,null,0,0,0]
[804,0,0.98772164579245691,2.9056726912726227,null,0,0,0,null,-2.9072724341551521E-2,-0.23081580030835813,1.1979231749118626,null,0,0,0]
[805,0,-0.43021771939708559,-0.95065701076023834,null,0,0,0,null,-1.3653085129725866E-2,-0.23706921744222564,-1.0100786121294478,null,0,0,0]
[806,0,-1.7838556441971505,-5.1863335214240287,null,0,0,0,null,1.3036125191646875E-2,9.4830469592352522E-3,-1.6883006228371595,null,0,0,0]
[807,0,-0.65636815961687356,-1.9600786903067273,null,0,0,0,null,1.2493224213287477E-2,8.9281183227749347E-2,-0.69935813185564255,null,0,0,0]
[808,0,-0.64220434210002708,-1.9771861161850683,null,0,0,0,null,7.3547053300074078E-2,0.9842180289273802,2.0524682000230934,null,0,0,0]
[809,0,-0.54069282329913404,-1.4106734387178221,null,0,0,0,null,-2.074491740440635E-2,-0.28902344029891808,-0.88028829147830767,null,0,0,0]
[810,0,0.51016537584167232,1.444665221123294,null,0,0,0,null,7.1898193365874191E-2,0.92571529500159067,1.7060790109323754,null,0,0,0]
[811,0,1.6596690390460718,4.5777727476914443,null,0,0,0,null,1.9309005864979099E-2,0.33641062425785911,1.6391596080519848,null,0,0,0]
[812,0,-0.10076731643021776,0.34517966904742209,null,0,0,0,null,2.3867881011115172E-2,0.26211214888134327,-0.13781718961682782,null,0,0,0]
[813,0,1.2533735951104645,3.19118845464725,null,0,0,0,null,9.3210682424651175E-3,0.20373304030824965,1.2027004305051814,null,0,0,0]
[814,0,0.65616427269412814,2.1884443766967743,null,0,0,0,null,-1.9176489105565624E-2,-0.17588515430837925,0.57416251996898426,null,0,0,0]
[815,0,-0.30069590069227342,-0.48190754874048436,null,0,0,0,null,-5.506963702438708E-2,-0.69214026578345789,-1.0581542660436172,null,0,0,0]
[816,0,-0.72892297278226759,-2.3297889173330186,null,0,0,0,null,-4.8008573055832698E-2,-0.64733169976169025,-1.590787688575805,null,0,0,0]
[817,0,-0.77240127345521248,-1.8164294821225484,null,0,0,0,null,-4.3045126744757287E-2,-0.64595169353637816,-2.1244404509960368,null,0,0,0]
[818,0,1.0286849728376875,2.8340075839133863,null,0,0,0,null,-6.4504069380930673E-3,-2.5163255056838352E-2,0.64654673677281604,null,0,0,0]
[819,0,-1.1949367798893544,-3.4353753228841959,null,0,0,0,null,1.5201964477171032E-2,7.7742820506441601E-2,-1.1719409126115752,null,0,0,0]
[820,0,-1.3388487217750609,-3.6836130924840109,null,0,0,0,null,-4.218867928051185E-2,-0.62005576769817072,-1.9560692586669137,null,0,0,0]
[821,0,-1.2010463508102003,-3.9043535604355566,null,0,0,0,null,-1.1992412134577251E-2,-0.30416876998012138,-2.2587719041197452,null,0,0,0]
[822,0,-1.2125451630825446,-3.9389924536592735,null,0,0,0,null,-1.9578684115795511E-2,-0.40032033515181864,-2.4026697410745799,null,0,0,0]
[823,0,-2.8914380986586674,-7.6332704307086239,null,0,0,0,null,-7.7743520214852146E-2,-1.1612937676700503,-3.6424677093947175,null,0,0,0]
[824,0,1.6214908138995305,4.4946283316364859,null,0,0,0,null,7.3897747383327606E-2,1.0804238402346182,3.3155667705189225,null,0,0,0]
[825,0,-0.99751400988782735,-3.1850823008972582,null,0,0,0,null,-2.5557288151889908E-2,-0.37929976305874064,-1.3481402204101178,null,0,0,0]
[826,0,-6.1310157044015795E-2,-0.4402285019975607,null,0,0,0,null,-9.0788151153394614E-2,-1.048295794089251,-0.61589235287832345,null,0,0,0]
[827,0,-0.56488057097267486,-1.4178321061108654,null,0,0,0,null,-3.3943785038008455E-2,-0.48888043308093709,-1.5289821981126042,null,0,0,0]
[828,0,-2.6160373579567531,-6.6699892662077147,null,0,0,0,null,-6.4421939846926596E-2,-0.94936739795110858,-2.8452013119542499,null,0,0,0]
[829,0,1.5199880212784027,4.1867147589746381,null,0,0,0,null,8.085232837447523E-2,1.1459564752765119,3.3075577707930606,null,0,0,0]
[830,0,0.21892454821349566,0.5343824813158935,null,0,0,0,null,2.4544528250363497E-2,0.34374604237113182,0.97494002073305819,null,0,0,0]
[831,0,-0.15438747460205923,-0.10281650875198102,null,0,0,0,null,-1.5500192262259077E-2,-0.18994106787347392,-0.32999489552194428,null,0,0,0]
[832,0,-1.6920542694924408,-4.0980498370909411,null,0,0,0,null,-7.6854453960108916E-3,-0.14750446534146341,-0.53901338668834797,null,0,0,0]
[833,0,-0.13594006851558696,-2.9922930385095241E-2,null,0,0,0,null,-2.7189918513951455E-2,-0.36617295723367627,-0.70806921283952762,null,0,0,0]
[834,0,1.9148742870128463,4.9424501947944011,null,0,0,0,null,7.3368633806386419E-2,1.0905399816095906,3.498070478394784,null,0,0,0]
[835,0,-0.51549725605680941,-1.3702123089215092,null,0,0,0,null,-9.8844703618050297E-4,-9.9429681082523536E-2,-1.2488022800884901,null,0,0,0]
[836,0,-0.17159163493132473,-9.6571971094963377E-2,null,0,0,0,null,-4.2459171430789186E-2,-0.55231447936689715,-0.93947766743721517,null,0,0,0]
[837,0,0.41238147915003176,1.1947183405917967,null,0,0,0,null,2.2353365820245871E-2,0.29763756410212228,0.57673937752518756,null,0,0,0]
[838,0,-1.5000999486718682,-4.5851464435791494,null,0,0,0,null,2.6668818478021591E-2,0.22366494683307156,-0.99014318132785772,null,0,0,0]
[839,0,-0.55329484208547364,-2.0409031260712798,null,0,0,0,null,-6.3016901802230796E-2,-0.77421222789461264,-1.1815396937587757,null,0,0,0]
[840,0,-0.39813496489575662,-1.6212544098295767,null,0,0,0,null,-4.0309554186008144E-2,-0.53835207634294424,-1.3683891460961386,null,0,0,0]
[841,0,-0.28981317734012191,-0.4914614080759202,null,0,0,0,null,-1.1639795534886104E-2,-0.20424243034879963,-1.0168728515705552,null,0,0,0]
[842,0,0.38688318957740375,0.9723455401795873,null,0,0,0,null,2.1146945192829492E-2,0.32737719646220559,1.255335003632339,null,0,0,0]
[843,0,-1.4295765349780432,-4.4098310386762245,null,0,0,0,null,2.5806545788521248E-2,0.19355365747399356,-1.213638476208809,null,0,0,0]
[844,0,1.4730921308374945,3.9913670276193809,null,0,0,0,null,-2.6705715507898447E-2,-0.22174153357058821,0.98146157427880465,null,0,0,0]
[845,0,-0.50645247356833167,-1.7842299088709697,null,0,0,0,null,-5.9182732321882897E-2,-0.76105731112058672,-1.4901437608367196,null,0,0,0]
[846,0,-0.48082523360896628,-1.4421753973486411,null,0,0,0,null,-2.9433395199588461E-2,-0.37003390211643639,-0.57505812248336585,null,0,0,0]
[847,0,-0.75045888006415584,-2.1880203439219548,null,0,0,0,null,-4.5520932625779269E-2,-0.57645538195054269,-0.95829532893203218,null,0,0,0]
[848,0,0.44143519045186258,1.222162923135067,null,0,0,0,null,1.7932209441428711E-2,0.23946535113452955,0.48327357011939237,null,0,0,0]
[849,0,1.2776632092374185,3.268290034910271,null,0,0,0,null,-3.9594209145613721E-2,-0.42396938721925742,0.17227470022889974,null,0,0,0]
[850,0,1.8389444651216436,4.7179199557180622,null,0,0,0,null,0.10144784425705103,1.4318718672073729,3.8578906908366917,null,0,0,0]
[851,0,0.4189189587854289,1.1192890884625886,null,0,0,0,null,3.1804932343099834E-2,0.43000511923388601,0.90161698312340011,null,0,0,0]
[852,0,0.64198893561304615,1.8968905453144471,null,0,0,0,null,-3.4210567885444958E-2,-0.51798911563416095,-1.7156180147500455,null,0,0,0]
[853,0,-1.1013006108763039,-2.8899275856497626,null,0,0,0,null,0.11061325548981887,1.438881664073987,2.7058059886431693,null,0,0,0]
[854,0,1.7634273129207159,5.0267327564709703,null,0,0,0,null,8.7410212679171026E-2,1.2275769120679989,3.3024008481003801,null,0,0,0]
[855,0,-0.8192426394485246,-1.9288487605064875,null,0,0,0,null,-4.3045126744757287E-2,-0.63594788520687506,-2.0043947510419966,null,0,0,0]
[856,0,-1.1663230368137483,-3.8093285901170968,null,0,0,0,null,-1.5536599684330724E-2,-0.34994535349372652,-2.3431092778223355,null,0,0,0]
[857,0,-0.17980353853821543,-0.62672553925884134,null,0,0,0,null,2.6281864444402458E-2,0.29765164344053757,3.9959177071392335E-2,null,0,0,0]
[858,0,1.4775811646075453E-2,-2.0419739192424458E-2,null,0,0,0,null,9.5775344646285131E-3,0.1268311413607853,0.31925880505814347,null,0,0,0]
[859,0,-0.74922588648030064,-2.1126991256095571,null,0,0,0,null,2.8080231684430713E-3,-4.347002376052933E-2,-0.97439378491813111,null,0,0,0]
[860,0,1.8417325512144962,4.704909405731458,null,0,0,0,null,4.0403051891103534E-2,0.74126396889317125,3.6484562350994345,null,0,0,0]
[861,0,-1.1604236423928906,-3.710743869353486,null,0,0,0,null,-0.10355521463695953,-1.4383981853224523,-3.7800995430807851,null,0,0,0]
[862,0,0.73571215490183928,1.9418732460681059,null,0,0,0,null,8.9086933856164077E-2,1.1402525486684163,1.979471638693918,null,0,0,0]
[863,0,-1.0710841017151069,-2.9576625742217364,null,0,0,0,null,4.3126171810491196E-3,-3.1821489554354231E-2,-1.0038079379885749,null,0,0,0]
[864,0,-1.4095281208154065,-3.8033240648544817,null,0,0,0,null,-4.1528839794135138E-2,-0.64920177900850373,-2.3848353132507074,null,0,0,0]
[865,0,-8.7344598124973347E-2,-0.26664305091942514,null,0,0,0,null,-1.4644352072615845E-2,-0.13459383318386425,0.33742124429953763,null,0,0,0]
[866,0,1.8627528339170694,5.1895243788623269,null,0,0,0,null,8.3029719072571825E-2,1.1633265167595974,3.07940170139763,null,0,0,0]
[867,0,0.6452144645538519,2.0112661667418359,null,0,0,0,null,-6.2576602820107324E-2,-0.67415110362102582,0.1772172752052211,null,0,0,0]
[868,0,1.7086744823598001,4.4494379409170941,null,0,0,0,null,1.5438262055978896E-2,0.3823841304949665,2.6328454274657123,null,0,0,0]
[869,0,0.50853097549181259,1.4379134629427937,null,0,0,0,null,1.8502255497424187E-2,0.23506314326447228,0.34630392313149788,null,0,0,0]
[870,0,0.22394169919970772,0.6220221741096903,null,0,0,0,null,1.2634812559991644E-2,0.12961063723373353,-0.17135917550584417,null,0,0,0]
[871,0,0.14398298426287146,0.35802599914474559,null,0,0,0,null,4.9607222342167176E-2,0.63339295065238455,1.0557022037789101,null,0,0,0]
[872,0,1.3533536707014919,3.523020235282369,null,0,0,0,null,-3.312632106720264E-2,-0.34104534759237776,0.32312966290412803,null,0,0,0]
[873,0,-1.4948325747232265,-4.0264168492494576,null,0,0,0,null,-3.9956853945664873E-2,-0.60291935981519507,-2.0326464994687741,null,0,0,0]
[874,0,-0.29885971394348415,-1.085027421906976,null,0,0,0,null,2.0211574175697876E-2,0.22227768143269896,-8.7047357223120347E-2,null,0,0,0]
[875,0,-0.1158938586580316,-6.1407291724935933E-2,null,0,0,0,null,-2.1509783451879514E-2,-0.37369587608384519,-1.6868433899772171,null,0,0,0]
[876,0,0.75985738631512145,2.3990122660155175,null,0,0,0,null,-2.0126406476825991E-2,-0.16852479493475403,0.77600452770477568,null,0,0,0]
[877,0,1.8188943821482244,4.9244238836242804,null,0,0,0,null,-1.4833055388758681E-3,0.12577510609952425,1.8616660842657802,null,0,0,0]
[878,0,-0.19048977186267621,-0.30302342916771885,null,0,0,0,null,-4.850582616947207E-2,-0.57283470076763388,-0.50437155834791336,null,0,0,0]
[879,0,-2.1660473478908608,-5.7628045211501808,null,0,0,0,null,-7.6499235030867849E-2,-1.1464443892059526,-3.9018262696841375,null,0,0,0]
[880,0,-5.3909051355127302E-2,7.1158449444417779E-2,null,0,0,0,null,-3.3275817196355036E-2,-0.49082369770160128,-1.5486017471845626,null,0,0,0]
[881,0,1.8817732476396649,4.8422413387153282,null,0,0,0,null,3.2277437486094018E-2,0.64629383148851771,3.6082539871489172,null,0,0,0]
[882,0,-0.42550912701939525,-1.0406696199323706,null,0,0,0,null,-2.2704686350167719E-2,-0.34507331479156256,-1.1201964398370656,null,0,0,0]
[883,0,1.3815185474792653,3.7048000176628486,null,0,0,0,null,1.2883429718252785E-2,0.21855321513781564,1.0177690357762221,null,0,0,0]
[884,0,0.67570291856161935,2.5307409455738745,null,0,0,0,null,2.0759318270348673E-2,0.3176602542969067,1.182104142172022,null,0,0,0]
[885,0,-0.42853327121873369,-1.6002562092512453,null,0,0,0,null,2.9191832023957431E-2,0.39244233666973466,0.81218047698661389,null,0,0,0]
[886,0,2.9669000068546666E-2,0.34350448747766493,null,0,0,0,null,-7.5599923912859027E-3,-0.17766822439993302,-1.1563441123369593,null,0,0,0]
[887,0,-0.15421001087064359,-0.17358591224555858,null,0,0,0,null,2.7669405789984012E-3,-2.9964493119117832E-2,-0.67549090842619264,null,0,0,0]
[888,0,1.441628533940877,3.8595179304141931,null,0,0,0,null,1.3054081819103374E-2,0.26353398409751844,1.4744139555648581,null,0,0,0]
[889,0,-2.7520099187015914,-7.105417362502954,null,0,0,0,null,-9.2424603525968846E-2,-1.3260965548708328,-3.685365912317673,null,0,0,0]
[890,0,-1.6325108565292066,-3.957553719491516,null,0,0,0,null,-2.0960797678548374E-2,-0.31235036783323905,-0.78788978828947076,null,0,0,0]
[891,0,0.61358121250963271,1.670309539048547,null,0,0,0,null,2.3621213270971168E-2,0.31168986662353199,0.60187831709318929,null,0,0,0]
[892,0,-1.4350177234688362,-3.9452039674113331,null,0,0,0,null,-7.6127790348902699E-2,-1.0148535608935045,-2.2177855144659442,null,0,0,0]
[893,0,7.2988599189691736E-2,0.13625848632091947,null,0,0,0,null,1.3791616499445467E-2,0.18338513503211015,0.44693436926913999,null,0,0,0]
[894,0,-1.2316700575806736,-3.3040844619064011,null,0,0,0,null,-4.9414593551681887E-2,-0.65358093380998794,-1.377705572707524,null,0,0,0]
[895,0,-0.71456773942651308,-2.0966904322162665,null,0,0,0,null,-6.0194097424743971E-2,-0.76165801997575999,-1.2441386177512976,null,0,0,0]
[896,0,-0.31297027115705894,-0.60483145336341837,null,0,0,0,null,-3.3442499932501507E-2,-0.38071525856291011,-0.16982803244288153,null,0,0,0]
[897,0,1.1132345475874408,3.0649526026121823,null,0,0,0,null,5.2240094932593198E-2,0.7395356902670428,2.0448317636957691,null,0,0,0]
[898,0,-0.68973847950669365,-2.0266395374708153,null,0,0,0,null,-4.8924225730043819E-2,-0.61264642290407934,-0.94322737792625777,null,0,0,0]
[899,0,1.8286645425416554,4.8854711337254049,null,0,0,0,null,1.2176881496348302E-2,0.3010292266673541,2.181463640681959,null,0,0,0]
[900,0,-1.1871079957015427,-3.2649795959992187,null,0,0,0,null,1.3087242261821758E-2,2.9331728927581024E-2,-1.4444760380893749,null,0,0,0]
[901,0,-1.4544969753331443,-3.8985395515393901,null,0,0,0,null,-8.4242014021223832E-2,-1.1139795192566935,-2.2851995096913051,null,0,0,0]
[902,0,2.1913282256701367,5.6529523438573523,null,0,0,0,null,8.9172590413232292E-2,1.299551285715419,3.9382634977142335,null,0,0,0]
[903,0,1.3962563256443119,3.5879063577536363,null,0,0,0,null,1.2047496740917665E-2,0.24660530727900731,1.3333562550571405,null,0,0,0]
[904,0,-0.65751983798434599,-1.7783357552396046,null,0,0,0,null,-3.6219000442456545E-2,-0.45125832047079167,-0.63233173798730058,null,0,0,0]
[905,0,-2.0618345405291532,-5.8381694702025193,null,0,0,0,null,1.2779789578006216E-2,-4.3114532076951942E-3,-1.7950720553045867,null,0,0,0]
[906,0,-1.4157772937126283,-3.6104350641250567,null,0,0,0,null,-4.8487087540290477E-2,-0.77686045623769584,-3.1149001821526325,null,0,0,0]
[907,0,0.2212969816773657,0.63181356197752025,null,0,0,0,null,3.4515405749734212E-3,-6.1523886669465353E-3,-0.5894518029879291,null,0,0,0]
[908,0,0.5931442715769063,1.5116068359077908,null,0,0,0,null,1.8640268011872081E-2,0.29206114825714846,1.1615687913157235,null,0,0,0]
[909,0,1.2786523399791367,3.5777614139437937,null,0,0,0,null,3.6189432131834738E-2,0.54935929014819795,1.8839076407575959,null,0,0,0]
[910,0,-0.80234029387377082,-1.8631621063263666,null,0,0,0,null,-2.9052519375262081E-2,-0.42986695514537587,-1.4103434532799584,null,0,0,0]
[911,0,0.58019093174568481,2.3379211105128705,null,0,0,0,null,1.8261027706228502E-2,0.29416241700963658,1.2159347030943426,null,0,0,0]
[912,0,0.90225281502382682,2.5142628352781538,null,0,0,0,null,9.9057204770634427E-2,1.2718503467532001,2.2808727698795299,null,0,0,0]
[913,0,-8.8542484167723159E-2,-1.664469480014668E-2,null,0,0,0,null,-1.4824511707986801E-2,-0.26784467919411692,-1.3025952947895529,null,0,0,0]
[914,0,0.3024375354280055,1.0517412917577895,null,0,0,0,null,-2.4502233971348177E-2,-0.34983051133760362,-0.99835576080147437,null,0,0,0]
[915,0,-0.35049597418701522,-0.68983827190893499,null,0,0,0,null,-4.4863857395175441E-2,-0.5264889795682911,-0.43473722074471882,null,0,0,0]
[916,0,-0.23521801863113798,-0.61482686547002963,null,0,0,0,null,2.7888050878240336E-2,0.28881832276497699,-0.23235397825553444,null,0,0,0]
[917,0,-1.0729991838018687,-2.9985527027912249,null,0,0,0,null,2.492259045335345E-3,-6.3993302524488177E-2,-1.1565319653488151,null,0,0,0]
[918,0,-0.51885626119516748,-1.2586720841111092,null,0,0,0,null,-4.9800744245646344E-3,-0.11175061579968587,-0.81324379889132614,null,0,0,0]
[919,0,-0.67393504055380071,-1.9926662497523575,null,0,0,0,null,9.11410401127057E-4,-6.8934308097096622E-2,-1.060894175057514,null,0,0,0]
[920,0,0.43891113593512637,0.73467688313891999,null,0,0,0,null,-7.3932436349607319E-2,-0.79572493751308682,0.18866758322228633,null,0,0,0]
[921,0,2.0238008479972014,5.2180356878202145,null,0,0,0,null,5.3374198592620076E-2,0.89121849251668206,3.7612256666016766,null,0,0,0]
[922,0,1.4407638303704444,3.8215670241052719,null,0,0,0,null,5.6005928612259996E-2,0.82111165823443844,2.6496119262114446,null,0,0,0]
[923,0,-0.36180641851370093,-0.89687961122884741,null,0,0,0,null,2.742553038486625E-2,0.32462661652668884,0.11485790884271774,null,0,0,0]
[924,0,-0.48016481260045657,-0.72080832941352124,null,0,0,0,null,-3.1054668216270499E-2,-0.47125873832413617,-1.4517435441540691,null,0,0,0]
[925,0,-1.0269475731485509,-3.4482644704532577,null,0,0,0,null,-3.8234015511990779E-2,-0.54372641795734122,-1.7173841194819579,null,0,0,0]
[926,0,1.2103510843663425,3.3527992115368979,null,0,0,0,null,0.10479698835590688,1.3805780079923198,2.8600217271219699,null,0,0,0]
[927,0,-1.0036906477449956,-3.2555323211310681,null,0,0,0,null,-9.4942147367120075E-2,-1.381052527662795,-4.219742839053306,null,0,0,0]
[928,0,0.56404298402216768,1.5863267257127227,null,0,0,0,null,-4.011041036999359E-4,2.4528601216761673E-3,0.14380425474228467,null,0,0,0]
[929,0,2.1455585649758322,5.5990989799559392,null,0,0,0,null,0.10405800047943836,1.4871774601479346,4.2430271805322448,null,0,0,0]
[930,0,0.54700099553635118,1.6111279605090603,null,0,0,0,null,2.9435516981121793E-2,0.40008891529763785,0.88555029777870009,null,0,0,0]
[931,0,0.97460578028901912,2.7965673608254948,null,0,0,0,null,1.7807367732688248E-2,0.28677592510557681,1.1022231106354994,null,0,0,0]
[932,0,1.0262910529433393,2.5483756229835852,null,0,0,0,null,4.6428920179279257E-2,0.65486865918654802,1.8617640555266517,null,0,0,0]
[933,0,0.87355380759579015,2.4231097933937344,null,0,0,0,null,9.8719120674079425E-2,1.2595697125747238,2.1742867453115284,null,0,0,0]
[934,0,0.74612136638247828,1.6059076563545023,null,0,0,0,null,-3.4759909710906416E-2,-0.33194282874732106,0.60931184128286264,null,0,0,0]
[935,0,-0.92924256660108773,-3.0980720418839627,null,0,0,0,null,-9.0501933136834911E-2,-1.2428560445574486,-3.151915195808626,null,0,0,0]
[936,0,0.34902708969106605,0.72955020251216773,null,0,0,0,null,2.1869897984857459E-2,0.30315551793306533,0.80861084139926975,null,0,0,0]
[937,0,0.63231492267666367,1.679482835340721,null,0,0,0,null,2.229847684935754E-2,0.34828783196589119,1.3667585507735529,null,0,0,0]
[938,0,-1.6729246542170568,-5.0467978045456912,null,0,0,0,null,-1.2342996818543157E-2,-0.31162514825150811,-2.2990110063130085,null,0,0,0]
[939,0,7.6693269078708909E-2,-0.26936931099312644,null,0,0,0,null,2.1568168944768731E-2,0.34790239733446104,1.237665212889824,null,0,0,0]
[940,0,-0.51049112189396328,-1.0644351778302661,null,0,0,0,null,-1.4978703557569532E-2,-0.2186114534541839,-0.75465700274461056,null,0,0,0]
[941,0,1.0636452221688415,2.9620017348012189,null,0,0,0,null,4.3565251437065737E-2,0.63161445439476116,1.8958825382286777,null,0,0,0]
[942,0,-0.69154585468917684,-2.0344275218685435,null,0,0,0,null,1.3869429569738656E-2,9.671142900179984E-2,-0.79273409714005172,null,0,0,0]
[943,0,1.5114572802144521,3.8530971497889621,null,0,0,0,null,3.6396362538447988E-3,0.21852267394375757,2.198765340005215,null,0,0,0]
[944,0,1.8556903802582057,5.0823715942283165,null,0,0,0,null,2.7171401230481878E-2,0.45001075247894184,1.9765637543015473,null,0,0,0]
[945,0,-1.0720205379701784,-3.3232234479642502,null,0,0,0,null,-3.0200648676045775E-2,-0.43186224831643993,-1.3637539258178659,null,0,0,0]
[946,0,-0.25800069943526616,-0.37439181550188366,null,0,0,0,null,-5.9211442711378709E-2,-0.72840389984920062,-0.9634266653700142,null,0,0,0]
[947,0,-1.4263118954415004,-3.4363262094028397,null,0,0,0,null,-3.9846857939318167E-4,-3.1480137525974894E-2,-8.8564269003240048E-2,null,0,0,0]
[948,0,1.7737666720912804,4.7760267575230753,null,0,0,0,null,5.5230623648641316E-3,0.19346500595740598,1.7284374181902566,null,0,0,0]
[949,0,-8.0762265798122831E-2,-0.23952610036150873,null,0,0,0,null,2.7282684435833746E-2,0.30475813120139628,-0.14380797968234765,null,0,0,0]
[950,0,-0.4594269031272688,-1.1596443330762922,null,0,0,0,null,-5.8728989265839004E-3,-0.13272093302477062,-0.81515485387272935,null,0,0,0]
[951,0,0.81595222433803793,2.7045266307975835,null,0,0,0,null,9.8687646068709115E-3,0.17029308131810011,0.81726119363255201,null,0,0,0]
[952,0,-0.40812936945660838,-0.64441442583973552,null,0,0,0,null,-2.897006145526717E-2,-0.43176335110032871,-1.2777898132760783,null,0,0,0]
[953,0,-0.20965971042541787,-0.69082746782035975,null,0,0,0,null,2.7979607541746419E-2,0.32060202033061341,0.10347268765364788,null,0,0,0]
[954,0,-0.83602812297570928,-2.3847219368894947,null,0,0,0,null,8.7280821604401246E-3,4.1727394533357255E-2,-0.70908994134067693,null,0,0,0]
[955,0,1.5768931933462917,4.4219142241247535,null,0,0,0,null,-1.8289981120986509E-2,-6.1249354859830421E-2,1.8129010093151119,null,0,0,0]
[956,0,-9.4367867520766591E-2,-0.56072501104038386,null,0,0,0,null,4.5631534015580656E-2,0.60133080566697938,1.0851973654942666,null,0,0,0]
[957,0,7.3465550429362342E-2,0.32672069660010311,null,0,0,0,null,-1.874467714213705E-2,-0.45766925290145899,-3.0593273854487779,null,0,0,0]
[958,0,1.5830675364391009,4.117789399378176,null,0,0,0,null,7.7085194521631026E-3,0.15757962260196745,0.93953685835973377,null,0,0,0]
[959,0,1.0337037246995242,2.8161251831843983,null,0,0,0,null,4.0067049899122992E-2,0.57389255295249131,1.6622791641761978,null,0,0,0]
[960,0,-2.9436998134064125,-7.5517537456281607,null,0,0,0,null,-7.0225122894486167E-2,-1.0258557073702896,-2.9997683983841523,null,0,0,0]
[961,0,-0.74156977026427917,-1.7821793431584227,null,0,0,0,null,-2.0070339001040736E-2,-0.3611757811620146,-1.7962253064575415,null,0,0,0]
[962,0,-0.80005432514990749,-2.472223587400753,null,0,0,0,null,-4.1093349070334455E-2,-0.55937189006273091,-1.4441139745861729,null,0,0,0]
[963,0,-0.89498448983931667,-2.1832633452000736,null,0,0,0,null,-5.1001279084014639E-2,-0.69823445507227921,-1.7401570740483112,null,0,0,0]
[964,0,1.2615502397451619,3.2388555317511636,null,0,0,0,null,-3.7001829866649641E-2,-0.37415820950005035,0.43756313701092586,null,0,0,0]
[965,0,-0.43070284279390941,-1.5755533964643691,null,0,0,0,null,-6.1895060275241519E-2,-0.78261569704909195,-1.4040291513687007,null,0,0,0]
[966,0,0.59231431249659183,1.8986179713953897,null,0,0,0,null,-3.2182637821907403E-2,-0.33584944629946856,0.33101263608502995,null,0,0,0]
[967,0,-0.75848705658772819,-2.5429673113732134,null,0,0,0,null,-2.6025907805809139E-2,-0.36872194150111864,-1.1999747727276844,null,0,0,0]
[968,0,1.1522385642958398E-2,0.26100089063072662,null,0,0,0,null,-4.1794653318583758E-2,-0.58337192308942665,-1.5142549624060411,null,0,0,0]
[969,0,-1.9495441414263988,-5.0708236557057607,null,0,0,0,null,-3.2713833481963717E-2,-0.50872415753966926,-1.662249886876205,null,0,0,0]
[970,0,-1.4146803841952278,-3.8524468906132898,null,0,0,0,null,6.7178394766066272E-3,-6.0624101282320222E-2,-1.6856945425620471,null,0,0,0]
[971,0,-1.0676546975807142,-3.3352163251596214,null,0,0,0,null,-3.2818033071887839E-2,-0.48522688396784086,-1.6599581692955616,null,0,0,0]
[972,0,0.7366126666645505,1.8876825462623528,null,0,0,0,null,-4.3685806934902873E-3,2.2660838548100401E-2,0.97216997699256902,null,0,0,0]
[973,0,1.8572752875381866,5.3250196891339803,null,0,0,0,null,0.11568923495916801,1.5613165216083498,3.7357371982632648,null,0,0,0]
[974,0,-0.22225354554729893,-0.52535016966112746,null,0,0,0,null,-4.7501740502216026E-2,-0.71315246415641198,-2.4048348557747232,null,0,0,0]
[975,0,1.4404075245961159,3.9125215267244711,null,0,0,0,null,1.8813819310386351E-2,0.29436100163907669,1.1652883180261671,null,0,0,0]
[976,0,0.79891703560806304,2.1442110607398281,null,0,0,0,null,9.8457539898184163E-2,1.260677886585202,2.2073891752418313,null,0,0,0]
[977,0,1.4871011971458483,4.0928971846548885,null,0,0,0,null,1.3705772086674017E-2,0.23314826931822608,1.1238721817480437,null,0,0,0]
[978,0,0.53950158923220437,1.474376970723446,null,0,0,0,null,2.1685133506833154E-2,0.27822400191849284,0.43176808160286601,null,0,0,0]
[979,0,-0.45859811253701993,-1.1267126065366755,null,0,0,0,null,-2.9762319022303529E-2,-0.4403144326059128,-1.3473578937699604,null,0,0,0]
[980,0,-0.50195003192264998,-1.2773318730262835,null,0,0,0,null,-2.8145854506824433E-3,-0.10071448506571597,-0.84372146317120855,null,0,0,0]
[981,0,-0.13203602629244052,0.14515804726511852,null,0,0,0,null,-3.5020808214909382E-2,-0.48219932903973678,-1.0475730224735962,null,0,0,0]
[982,0,0.8014521287827211,1.8913303660601741,null,0,0,0,null,1.5276656063271447E-2,0.24474047820871783,1.0244460266389432,null,0,0,0]
[983,0,1.2096932221820189,3.6535416747915805,null,0,0,0,null,9.7874997616736154E-2,1.2645896481145846,2.4760672205370611,null,0,0,0]
[984,0,-1.8824144210987488,-4.7595330212713165,null,0,0,0,null,3.3979388040706339E-3,-9.5134582997986397E-2,-1.4986002206907978,null,0,0,0]
[985,0,-1.1445918787230658,-2.9531761932752341,null,0,0,0,null,-1.3388152470781734E-5,-6.0389894691395968E-2,-0.74161420335006911,null,0,0,0]
[986,0,2.2910933398503075,6.1842726068808984,null,0,0,0,null,2.9551532844633528E-2,0.47284753199197349,1.9278474425489185,null,0,0,0]
[987,0,-0.14707968874762081,-0.2096836654213548,null,0,0,0,null,-5.4477385399158609E-3,-0.11497178465614434,-0.75392436995007661,null,0,0,0]
[988,0,1.2328520008498072,3.4411701938137194,null,0,0,0,null,8.9431719912611805E-3,0.18031827083093685,1.0890883497914075,null,0,0,0]
[989,0,-1.7838069872499747,-5.3175449551755296,null,0,0,0,null,2.3046877439796106E-2,0.18888320433923128,-0.92439079661338108,null,0,0,0]
[990,0,1.0844090571963971,2.9072078205657381,null,0,0,0,null,8.1819946643690855E-3,0.13284650440473797,0.58367463219778803,null,0,0,0]
[991,0,-1.4138534920074088,-3.8863252532046682,null,0,0,0,null,-7.6368001921015033E-2,-1.0116957523256196,-2.1479616805487676,null,0,0,0]
[992,0,0.59240254108718549,1.7611761851552366,null,0,0,0,null,3.0626226771040876E-2,0.40760898006144725,0.82445518695942155,null,0,0,0]
[993,0,-1.532836470065984,-4.6922661710505924,null,0,0,0,null,-5.5504759388289244E-3,-0.22091329938516263,-2.0870017721213734,null,0,0,0]
[994,0,1.7634273129207159,5.0267327564709703,null,0,0,0,null,8.7410212679171026E-2,1.2275769120679989,3.3024008481003801,null,0,0,0]
[995,0,-1.8399817036147723,-4.7324035883989275,null,0,0,0,null,3.6744691566353196E-2,0.30689943395011959,-1.0642056891855645,null,0,0,0]
[996,0,-0.28871273959763127,-0.70538297445819631,null,0,0,0,null,3.0865519006933708E-2,0.33980282975236059,-0.16390226543920652,null,0,0,0]
[997,0,0.71518276029433769,1.8599682158453361,null,0,0,0,null,8.9127642763955628E-2,1.1411611801254322,1.9854650906906208,null,0,0,0]
[998,0,0.41055017380824754,1.4304830364564842,null,0,0,0,null,1.6356298388014921E-2,0.18532331900257942,0.19323663515596126,null,0,0,0]
[999,0,-1.0598797122376782,-3.4687140003738239,null,0,0,0,null,-7.0880834649809404E-2,-1.0037300732452403,-2.8779418679286901,null,0,0,0]
[1000,0,-1.0215010295590874,-2.9858411269530625,null,0,0,0,null,2.1794558018123838E-2,0.17756988624843961,-0.83988669307814057,null,0,0,0]
[1001,0,-1.5598574069292517,-4.7633156404087638,null,0,0,0,null,3.5856334110754345E-3,-0.1099770424230037,-1.9651090195405414,null,0,0,0]
[1002,0,-9.5464830409173376E-2,8.1373474259526114E-3,null,0,0,0,null,-7.700372601600009E-3,-0.13922354969153183,-0.76675946609282619,null,0,0,0]
[1003,0,0.90225281502382682,2.5142628352781538,null,0,0,0,null,9.9057204770634427E-2,1.2718503467532001,2.2808727698795299,null,0,0,0]
[1004,0,8.8928618782665586E-3,0.29411291801435435,null,0,0,0,null,-1.4572329974504101E-2,-0.21331620563217529,-0.72617748610258426,null,0,0,0]
[1005,0,1.655553206024946,4.2499430651538352,null,0,0,0,null,3.9504826961417622E-3,0.11528282768903864,0.92963706203001129,null,0,0,0]
[1006,0,1.1215351088128191,2.8295529762596199,null,0,0,0,null,4.3839670498547263E-2,0.6152347587188679,1.7328712769491794,null,0,0,0]
[1007,0,-0.24645769600033965,-0.37627865229906454,null,0,0,0,null,1.4477667209206971E-3,-4.1650458209497629E-2,-0.63183670296991845,null,0,0,0]
[1008,0,0.51363018208611355,1.7267871708965394,null,0,0,0,null,-3.7193587487801494E-2,-0.46590426328696505,-0.69150692855430318,null,0,0,0]
[1009,0,1.9247498050535796,4.9910133816083251,null,0,0,0,null,-2.3558610297705E-2,-7.6310874351390334E-2,2.273499095281637,null,0,0,0]
[1010,0,-0.43788361160191924,-0.83402403530905578,null,0,0,0,null,-9.6396965233876697E-3,-0.19493980369433939,-1.0020502300080771,null,0,0,0]
[1011,0,-0.55052571285881824,-0.95480533800597189,null,0,0,0,null,-4.1826490732242802E-2,-0.58769248475405766,-1.4446417519683128,null,0,0,0]
[1012,0,0.90854456655644389,2.415763110360829,null,0,0,0,null,3.0728018423751224E-2,0.43793026141234531,1.2721756050238218,null,0,0,0]
[1013,0,0.13180832274848764,0.36408218837637835,null,0,0,0,null,5.0574546040586657E-2,0.65325032287472007,1.1758488029473846,null,0,0,0]
[1014,0,1.3494207628404928,3.4681673928469028,null,0,0,0,null,7.0482979663810284E-3,0.13801683009873977,0.78436465091415086,null,0,0,0]
[1015,0,1.0326201074712626,3.0134289993017518,null,0,0,0,null,-2.7732343790879042E-2,-0.20002658178162983,1.3901486636272602,null,0,0,0]
[1016,0,-0.10181473408170859,-0.34100025661536348,null,0,0,0,null,4.0631943377215519E-2,0.49055702960090003,0.48964768533615644,null,0,0,0]
[1017,0,1.2499477787762625,3.3546787523519086,null,0,0,0,null,7.7393221410869163E-3,0.14430883185765198,0.80176285240439393,null,0,0,0]
[1018,0,0.24430614639234774,1.0628591503944991,null,0,0,0,null,-2.5935952282198117E-2,-0.30496250576353939,-8.6446214532927113E-2,null,0,0,0]
[1019,0,2.1932776352436738,5.6933371561990933,null,0,0,0,null,0.10137726487535173,1.4623115879014139,4.3006854444904601,null,0,0,0]
[1020,0,1.5669205406210895,4.1286519818555538,null,0,0,0,null,1.5002870874312919E-2,0.26619896634293855,1.3068658356052838,null,0,0,0]
[1021,0,-0.19200230435296908,-0.19416628319187293,null,0,0,0,null,-4.3877841905174193E-2,-0.56383539709483743,-0.9062855554308662,null,0,0,0]
[1022,0,1.207279689434088,3.3771125410604657,null,0,0,0,null,3.7304324483026223E-2,0.5652782969760447,1.9784544897562772,null,0,0,0]
[1023,0,1.8286617715932425,5.2392603704481884,null,0,0,0,null,7.6672954742511082E-2,1.1092175051156956,3.3207788744797253,null,0,0,0]
[1024,0,-0.47513620102342063,-1.1563545189054638,null,0,0,0,null,4.4660802564904144E-2,0.51271365007111946,0.13023857508594666,null,0,0,0]
[1025,0,0.58583728659405276,1.3956331536540019,null,0,0,0,null,2.516789230309115E-2,0.37193579625882828,1.2305333712264073,null,0,0,0]
[1026,0,-0.39359704245307514,-1.168304551778987,null,0,0,0,null,-6.9316329478480446E-2,-0.80521523813947626,-0.52508998987694577,null,0,0,0]
[1027,0,-1.0745081627910367,-2.8202273670469293,null,0,0,0,null,6.0492866001176249E-3,-3.6645384923417623E-2,-1.2692311092416821,null,0,0,0]
[1028,0,-0.36375423199813667,-0.83522748612409492,null,0,0,0,null,-9.3861228312169948E-3,-0.14028755328523856,-0.58083779214950482,null,0,0,0]
[1029,0,1.6566562600901016,4.6534758981709308,null,0,0,0,null,0.10203635000851062,1.3968634469345733,3.56602661267409,null,0,0,0]
[1030,0,-0.39430686300030354,-1.6333604354908311,null,0,0,0,null,-2.9033734289624361E-2,-0.34324110213220593,-0.47376849654710529,null,0,0,0]
[1031,0,0.3040004955123386,1.0554923959601874,null,0,0,0,null,-2.4502233971348177E-2,-0.34440983797528041,-0.93330768045360668,null,0,0,0]
[1032,0,-3.0300378607055718,-7.8640282200075635,null,0,0,0,null,-7.8550584478431745E-2,-1.1744564518473017,-3.6878402060793705,null,0,0,0]
[1033,0,-1.3821330865980799,-3.5122820128057866,null,0,0,0,null,-4.2865309085515092E-2,-0.71164482466403478,-3.0580973606994992,null,0,0,0]
[1034,0,-0.20289360400033912,-0.35096556183740907,null,0,0,0,null,-3.8593446088281097E-3,-9.3779067233086613E-2,-0.72399325603367104,null,0,0,0]
[1035,0,-0.7241897068427916,-2.5075812814715244,null,0,0,0,null,-3.3293759879240443E-2,-0.4636771211088917,-1.3785500713594483,null,0,0,0]
[1036,0,-0.1158938586580316,-6.1407291724935933E-2,null,0,0,0,null,-2.1509783451879514E-2,-0.37369587608384519,-1.6868433899772171,null,0,0,0]
[1037,0,-0.73028955641051474,-2.1283577552046697,null,0,0,0,null,-4.8376175270021235E-2,-0.63050724922098655,-1.243969725407096,null,0,0,0]
[1038,0,1.6776112508295227,4.5371392461062641,null,0,0,0,null,-1.6130470958497824E-2,-2.198342663015046E-2,1.9738367430899817,null,0,0,0]
[1039,0,-0.21144995802442282,-0.3686965589839456,null,0,0,0,null,-8.4267277165729973E-3,-0.16358820362645018,-0.81207886413542296,null,0,0,0]
[1040,0,-0.77139625499205433,-1.7872425560153133,null,0,0,0,null,-3.0210505575642116E-2,-0.46300858718531979,-1.6455804496758102,null,0,0,0]
[1041,0,-0.95015839769991539,-2.5773286868041976,null,0,0,0,null,-6.0597599056405042E-2,-0.7501494785838595,-1.0161421588044905,null,0,0,0]
[1042,0,0.33477634553959618,1.3765735292536119,null,0,0,0,null,-2.480705048762644E-2,-0.28266424067531898,3.8313266783385189E-2,null,0,0,0]
[1043,0,1.5201466166982101,4.1451192310281115,null,0,0,0,null,-2.001475023404788E-2,-0.1530019656349923,0.92807588228403615,null,0,0,0]
[1044,0,0.71281077265987003,1.8722142327814144,null,0,0,0,null,7.9097104729169643E-2,1.0245581976828189,1.9097938708836555,null,0,0,0]
[1045,0,0.18456217116944754,0.30485226506999608,null,0,0,0,null,-1.3079247708176183E-2,-0.1413190349176757,7.1696997339739027E-2,null,0,0,0]
[1046,0,-0.33275930469909326,-1.1232546165078747,null,0,0,0,null,1.0827399533369317E-2,9.194614513849865E-2,-0.41666583323513262,null,0,0,0]
[1047,0,1.7653649434584513,5.1854328506891978,null,0,0,0,null,0.12044697996704957,1.5978797287251374,3.5459992067552268,null,0,0,0]
[1048,0,0.82245155477654408,2.4701926081783605,null,0,0,0,null,-2.8734295984978304E-2,-0.26778742762677576,0.70550472773682849,null,0,0,0]
[1049,0,0.56948252931062415,1.5549334496867231,null,0,0,0,null,8.2516218744189074E-2,1.0589482658469305,1.8809991127299581,null,0,0,0]
[1050,0,-1.6712228621165905,-4.6683358655624394,null,0,0,0,null,6.2844420907329945E-2,0.63746803591867229,-0.57722668646591047,null,0,0,0]
[1051,0,1.4714763052633353,4.0575759779637668,null,0,0,0,null,7.4877221812709588E-2,1.0288238358946191,2.5106130632484311,null,0,0,0]
[1052,0,-2.1775927062150058,-5.7054062144473496,null,0,0,0,null,-1.3298266780581571E-2,-0.27198915771592236,-1.3819335881649386,null,0,0,0]
[1053,0,0.52423294591090963,1.5564846414079947,null,0,0,0,null,2.6290760678584491E-2,0.35613977100088867,0.77326839815262061,null,0,0,0]
[1054,0,-0.58385164551943491,-1.7360685992462022,null,0,0,0,null,-4.3915478279600108E-2,-0.57237601454903142,-1.1236838053927822,null,0,0,0]
[1055,0,1.3446090887600985,3.4738513452246624,null,0,0,0,null,1.1882847417448829E-2,0.26555925581613427,1.5966512610840473,null,0,0,0]
[1056,0,0.5534491784346719,1.81963411552029,null,0,0,0,null,-3.1949431769617322E-2,-0.39754022487671048,-0.58133205821023515,null,0,0,0]
[1057,0,1.711425626230477,4.7019885569340261,null,0,0,0,null,1.8364911210518697E-2,0.33100797868876908,1.6989483556116793,null,0,0,0]
[1058,0,-0.17159163493132473,-9.6571971094963377E-2,null,0,0,0,null,-4.2459171430789186E-2,-0.55231447936689715,-0.93947766743721517,null,0,0,0]
[1059,0,-1.4114741442129015,-3.5126539384266509,null,0,0,0,null,5.8584997932459261E-3,5.1873132168206208E-2,3.5695084788796523E-2,null,0,0,0]
[1060,0,-1.9489776523819928,-5.5858842100794357,null,0,0,0,null,4.2921558011357774E-5,-0.19537088256195329,-2.4153737274618945,null,0,0,0]
[1061,0,-0.23422998139677839,-0.12630639592707302,null,0,0,0,null,9.9836308565967331E-3,0.10850718712908383,-6.0091154392866886E-2,null,0,0,0]
[1062,0,1.046720996439406,2.8204800757200501,null,0,0,0,null,2.4997033794615505E-3,6.5786576608328692E-2,0.53078915558999507,null,0,0,0]
[1063,0,-0.41009921696225682,-1.0840691253508339,null,0,0,0,null,-3.3579570253970703E-3,-8.5994055111638767E-2,-0.76394766600756703,null,0,0,0]
[1064,0,-0.74744717265573313,-2.2402773054623393,null,0,0,0,null,5.2429246269107978E-2,0.74986269143166373,2.0307381634548545,null,0,0,0]
[1065,0,8.6430091362639364E-2,0.80643470219517621,null,0,0,0,null,2.7053648245139301E-2,0.30946738677529539,1.4218859866930871E-2,null,0,0,0]
[1066,0,-0.4301218038598672,-1.1882451165607273,null,0,0,0,null,-2.1732811230958077E-2,-0.238929105891345,2.8144839130014587E-2,null,0,0,0]
[1067,0,-1.4415788316489251,-4.5841714006451513,null,0,0,0,null,-6.1632050767916953E-2,-0.91493614458772021,-3.0709641542344435,null,0,0,0]
[1068,0,0.73669226719282599,2.6680013399836899,null,0,0,0,null,1.8892177576083611E-2,0.30300525121192001,1.232050079218403,null,0,0,0]
[1069,0,0.19121045874714218,0.9297896814494816,null,0,0,0,null,2.2949225032224377E-3,-2.4520020890541672E-2,-0.49070022493868964,null,0,0,0]
[1070,0,1.4763888348582968,4.0797068166784811,null,0,0,0,null,6.8501042979629972E-2,0.95050542916258107,2.4050299060151263,null,0,0,0]
[1071,0,-0.10181473408170859,-0.34100025661536348,null,0,0,0,null,4.0631943377215519E-2,0.49055702960090003,0.48964768533615644,null,0,0,0]
[1072,0,7.250920857461278E-2,0.13307609967381723,null,0,0,0,null,1.6890668355472656E-2,0.23315920846359767,0.63935389848069102,null,0,0,0]
[1073,0,-0.53555389138805731,-0.93690245668194261,null,0,0,0,null,1.2269946246823054E-2,7.5094609932109049E-2,-0.61397326881566916,null,0,0,0]
[1074,0,-1.8186656213848291,-4.6460091499725387,null,0,0,0,null,-3.7883659713889416E-3,-0.15443399613334077,-1.233989878792443,null,0,0,0]
[1075,0,-2.8043592483146003,-7.239316867113561,null,0,0,0,null,-0.11032981845982857,-1.5597148604346338,-4.1443956759397773,null,0,0,0]
[1076,0,-0.64220434210002708,-1.9771861161850683,null,0,0,0,null,7.3547053300074078E-2,0.9842180289273802,2.0524682000230934,null,0,0,0]
[1077,0,-0.28232814285594759,-0.43091988965175554,null,0,0,0,null,-1.0940881447174547E-2,-0.18597907582224524,-0.71786656165663221,null,0,0,0]
[1078,0,1.630595481698796,4.4327495651787974,null,0,0,0,null,-2.6504966528878527E-3,8.0738130143285167E-2,1.4420408492952665,null,0,0,0]
[1079,0,0.49086646532202211,1.3777787899623144,null,0,0,0,null,7.1898193365873969E-2,0.914219319081647,1.5612813512594839,null,0,0,0]
[1080,0,1.9398478521228026,5.04482182141229,null,0,0,0,null,1.9493365508162128E-3,0.23691757442897324,2.6608335583694172,null,0,0,0]
[1081,0,-0.71273642335797927,-2.0619959458580706,null,0,0,0,null,6.9364897017075581E-3,2.5513133983577973E-2,-0.64586689429647959,null,0,0,0]
[1082,0,-0.45010079196578406,-1.4036297843960492,null,0,0,0,null,1.1598667638585938E-2,8.8575976705817988E-2,-0.54863325577855726,null,0,0,0]
[1083,0,1.3796749081532853,3.7200271856271794,null,0,0,0,null,-2.9361166110796318E-2,-0.27008689115563811,0.75349468906837502,null,0,0,0]
[1084,0,-0.6548231863927686,-1.7562531956141101,null,0,0,0,null,-4.0941151225435304E-2,-0.51238952428162066,-0.76703413631805228,null,0,0,0]
[1085,0,0.73864406528582371,1.7927323440515539,null,0,0,0,null,4.9646903216767159E-2,0.69083010654178634,1.8301714427059961,null,0,0,0]
[1086,0,1.7983667067009848,4.6662578241622832,null,0,0,0,null,6.7406990138951808E-2,1.0261900598808078,3.5306967108881691,null,0,0,0]
[1087,0,-0.48005973920721223,-1.4388815950875797,null,0,0,0,null,-2.1142292441195479E-2,-0.26328638390588277,-0.39288988948197584,null,0,0,0]
[1088,0,-0.78119070535504576,-2.2315140089399139,null,0,0,0,null,9.26681904802171E-2,1.2543923842665154,2.8152590697575395,null,0,0,0]
[1089,0,-0.48016481260045657,-0.72080832941352124,null,0,0,0,null,-3.1054668216270499E-2,-0.47125873832413617,-1.4517435441540691,null,0,0,0]
[1090,0,0.56441026426307872,1.6051468360546932,null,0,0,0,null,3.2877355145215517E-2,0.42384658319528534,0.71006187833804502,null,0,0,0]
[1091,0,2.1070842384051591,6.0636011868528437,null,0,0,0,null,0.15221305662762818,2.0267527131452687,4.5347195807775602,null,0,0,0]
[1092,0,-0.36986824005701058,-0.47252193967293715,null,0,0,0,null,7.850661163941822E-3,3.3759714693890601E-2,-0.52264219309102555,null,0,0,0]
[1093,0,1.3508007815288621,3.4467227040084398,null,0,0,0,null,6.3122178399560771E-3,0.15138564551144099,0.96026993669188598,null,0,0,0]
[1094,0,1.7278563997469101,4.6448583711055837,null,0,0,0,null,-1.7565909371822671E-2,-5.9522526083682352E-2,1.7593875275319115,null,0,0,0]
[1095,0,0.65058217720076572,1.3474988106836245,null,0,0,0,null,-2.3503009917827059E-2,-0.20398970362471391,0.6744510172106275,null,0,0,0]
[1096,0,-2.8673429131358006,-7.3642897914820606,null,0,0,0,null,-9.543676309064239E-2,-1.3476326130978313,-3.5517876275993769,null,0,0,0]
[1097,0,-1.0218847952042942,-2.7082451381085484,null,0,0,0,null,-4.8634279601317873E-2,-0.64544353546000544,-1.3674633043718822,null,0,0,0]
[1098,0,-2.7446582662117143,-7.2714543047660989,null,0,0,0,null,-7.4674623385519515E-2,-1.1298305952300078,-3.6842777099972954,null,0,0,0]
[1099,0,0.33634805637628234,0.94658896079785337,null,0,0,0,null,-1.2374577075053139E-3,-1.7557842802631056E-2,-0.10930673375001788,null,0,0,0]
[1100,0,-0.24486065341521862,-0.4394390767844743,null,0,0,0,null,-4.3307745414457373E-2,-0.51153143633657694,-0.45308587382459153,null,0,0,0]
[1101,0,-0.20749267518686793,-0.27774268904652855,null,0,0,0,null,-4.1224735953926485E-2,-0.5501743299445907,-1.0923469802251966,null,0,0,0]
[1102,0,-0.43909460014890828,-0.90851145822124091,null,0,0,0,null,-1.1882357292009545E-2,-0.21445119883962979,-1.1207205610776401,null,0,0,0]
[1103,0,1.6828743988522801,4.5336634467338079,null,0,0,0,null,-3.9550462582589319E-2,-0.35197935244017298,1.1281514545861537,null,0,0,0]
[1104,0,-0.17567624797713141,-0.56640806710530889,null,0,0,0,null,-2.8265737496899705E-2,-0.30184060192904055,0.11430871615514479,null,0,0,0]
[1105,0,-2.7468782127977103,-7.1065886364946564,null,0,0,0,null,-9.7588511705596542E-2,-1.377540291349028,-3.6496019920348699,null,0,0,0]
[1106,0,-0.70175861635896764,-2.2645944619171061,null,0,0,0,null,-4.8387443891685394E-2,-0.64774326703686891,-1.5457155455453904,null,0,0,0]
[1107,0,1.7668632657245107,4.6435590826634217,null,0,0,0,null,9.7086723774176958E-2,1.3627528191997618,3.6543003646933832,null,0,0,0]
[1108,0,1.4129138349834611,3.7775146225482383,null,0,0,0,null,-2.6837148183454815E-2,-0.22485789711907728,0.95220033473281729,null,0,0,0]
[1109,0,0.54468425108447449,1.2449738958814123,null,0,0,0,null,1.7579712743065842E-2,0.28466931402993123,1.172847329484608,null,0,0,0]
[1110,0,0.57312438730163739,1.5266529380443534,null,0,0,0,null,1.8862201324343176E-2,0.24766704994789687,0.45785514593811605,null,0,0,0]
[1111,0,0.90601160096597233,2.5903643670362579,null,0,0,0,null,7.1270166385083936E-3,0.15211040658562161,0.92341420658057538,null,0,0,0]
[1112,0,-0.50636289825758829,-0.7718879210029117,null,0,0,0,null,-3.7976419459238117E-2,-0.54610937880478649,-1.4294510646520067,null,0,0,0]
[1113,0,-0.23422998139677839,-0.12630639592707302,null,0,0,0,null,9.9836308565967331E-3,0.10850718712908383,-6.0091154392866886E-2,null,0,0,0]
[1114,0,2.5998473441708483E-2,6.7584279129601785E-2,null,0,0,0,null,-4.7820721904767598E-2,-0.69911632376549004,-2.181980033008371,null,0,0,0]
[1115,0,-0.64291968593654747,-1.347992353294736,null,0,0,0,null,-2.1770839275310323E-2,-0.36828573371179391,-1.4784441219756737,null,0,0,0]
[1116,0,-0.84917829261941369,-2.8036868460612459,null,0,0,0,null,-4.6742976032266313E-2,-0.66414970252955208,-1.9071956887732195,null,0,0,0]
[1117,0,0.95020386885535668,2.485860802208117,null,0,0,0,null,3.5349847352778171E-3,9.7969854336182841E-2,0.70520130992392294,null,0,0,0]
[1118,0,-0.76249925964871723,-2.0589533291207918,null,0,0,0,null,9.1096239943394441E-2,1.1943262714837939,2.3342846255800249,null,0,0,0]
[1119,0,-0.50195003192264998,-1.2773318730262835,null,0,0,0,null,-2.8145854506824433E-3,-0.10071448506571597,-0.84372146317120855,null,0,0,0]
[1120,0,-2.4370214519327567,-6.5111904832143956,null,0,0,0,null,-7.8678652270656527E-2,-1.1608081998724347,-3.5422652337282963,null,0,0,0]
[1121,0,0.80650021690086582,2.4757552444045867,null,0,0,0,null,-1.5845654112642195E-2,-0.10245687702872329,1.005500612682561,null,0,0,0]
[1122,0,-0.79197192196106336,-2.4498178664742007,null,0,0,0,null,-4.1137604610673006E-2,-0.55908814314722899,-1.4325632377330149,null,0,0,0]
[1123,0,-1.4750872058134155,-4.538399217595237,null,0,0,0,null,3.0113031836472713E-3,-7.0159512560262552E-2,-1.3935122151361139,null,0,0,0]
[1124,0,-0.14020446750439805,-0.48127579397074444,null,0,0,0,null,-2.4495847418178358E-2,-0.2668329016014177,3.6775629695403038E-2,null,0,0,0]
[1125,0,0.9864451158772245,2.8870859159343163,null,0,0,0,null,-2.5692784180377088E-2,-0.20548083760832286,1.0466086938006665,null,0,0,0]
[1126,0,-0.84477671366173124,-2.8638445968785673,null,0,0,0,null,-7.4755474894556473E-2,-1.0200991106308621,-2.5373156782399855,null,0,0,0]
[1127,0,-0.73390526261344347,-2.0901943855551579,null,0,0,0,null,4.6192989299875652E-3,-2.1700979722335433E-2,-0.96192295546020246,null,0,0,0]
[1128,0,-1.7750257958828262,-5.3228933916013554,null,0,0,0,null,1.2457748657306922E-2,3.3700655766421735E-2,-1.4046823680800298,null,0,0,0]
[1129,0,-0.17128156803336425,-0.49491811096399763,null,0,0,0,null,2.0288576066865346E-2,0.19790289166381173,-0.33098040008746105,null,0,0,0]
[1130,0,1.9191878633647939,4.88249438453406,null,0,0,0,null,8.9579889067750121E-2,1.3005674454537375,3.8225485308481293,null,0,0,0]
[1131,0,2.5998473441708483E-2,6.7584279129601785E-2,null,0,0,0,null,-4.7820721904767598E-2,-0.69911632376549004,-2.181980033008371,null,0,0,0]
[1132,0,1.089326308112899,3.1495238808416834,null,0,0,0,null,-2.6354034010238534E-2,-0.1921196109471939,1.3030954225959395,null,0,0,0]
[1133,0,0.56960070987724432,1.4766202719903958,null,0,0,0,null,8.4167379410120535E-2,1.0816990431276572,1.9296015016478922,null,0,0,0]
[1134,0,-1.3938341911691732,-3.618617183433904,null,0,0,0,null,4.7675209999637272E-2,0.51011130238932034,-0.22540983583418348,null,0,0,0]
[1135,0,0.67808292399838133,1.7716211663306094,null,0,0,0,null,7.9273243211867392E-2,1.0107149842833469,1.7027660444865795,null,0,0,0]
[1136,0,-1.3991054116777304,-3.9507787759879212,null,0,0,0,null,-3.476237519403412E-2,-0.50981125839584185,-1.6375058196716672,null,0,0,0]
[1137,0,-0.36986824005701058,-0.47252193967293715,null,0,0,0,null,7.850661163941822E-3,3.3759714693890601E-2,-0.52264219309102555,null,0,0,0]
[1138,0,-0.47961213951088211,-1.3105992508634225,null,0,0,0,null,-3.9095685022847361E-2,-0.47370383679353562,-0.51239555592286701,null,0,0,0]
[1139,0,1.5160777665919758,4.023662758705985,null,0,0,0,null,6.1302211808013395E-2,0.8930925679818793,2.8298122287737022,null,0,0,0]
[1140,0,1.7168482590856746,4.391682412262278,null,0,0,0,null,5.8317587718088759E-2,0.885022081330615,3.0087973727990684,null,0,0,0]
[1141,0,-1.7089488796007444,-4.7740972655264846,null,0,0,0,null,4.9123764998402979E-2,0.47607764114003931,-0.75593566301319881,null,0,0,0]
[1142,0,9.2676798567565125E-2,0.25748609018012941,null,0,0,0,null,6.3046130465323189E-2,0.79102638881207255,1.1899681869962004,null,0,0,0]
[1143,0,1.8620468843267608,5.4318701327806265,null,0,0,0,null,0.12919026881819848,1.7288745104544458,3.9767766756392047,null,0,0,0]
[1144,0,-1.9199235810680311,-5.6248001628734201,null,0,0,0,null,2.0782802286661364E-2,0.11146483832879403,-1.5108511447819801,null,0,0,0]
[1145,0,-2.0471603287212274,-5.4512164377107988,null,0,0,0,null,-7.8329486482089747E-2,-1.1784794544989972,-4.0733703946507518,null,0,0,0]
[1146,0,0.5931442715769063,1.5116068359077908,null,0,0,0,null,1.8640268011872081E-2,0.29206114825714846,1.1615687913157235,null,0,0,0]
[1147,0,-0.33544159276801655,-0.82738676763184049,null,0,0,0,null,4.5504444673667311E-3,7.9190127426436441E-3,-0.50452652184867108,null,0,0,0]
[1148,0,-1.5832929641718838,-4.8029555732812801,null,0,0,0,null,1.6359598111200229E-2,0.10438774715175532,-1.0545738234786368,null,0,0,0]
[1149,0,0.28092407541758618,1.2185747597717782,null,0,0,0,null,3.2956520586415652E-3,-1.3343885298074383E-2,-0.47710017762602364,null,0,0,0]
[1150,0,0.46870337870695039,1.4547285186273584,null,0,0,0,null,-1.6983564039319048E-2,-0.27340300846090665,-1.0776217508471455,null,0,0,0]
[1151,0,-0.70333088462653182,-2.3243204371244648,null,0,0,0,null,-3.7055536882778767E-2,-0.50093886750973893,-1.3151647008981382,null,0,0,0]
[1152,0,-2.8868184833537325,-7.4152385535017347,null,0,0,0,null,-7.3501358386412613E-2,-1.0768280262612815,-3.1789731401417738,null,0,0,0]
[1153,0,-0.79435800434612791,-2.5150765068720649,null,0,0,0,null,-5.2935080714469222E-2,-0.71897019839396037,-1.8163932365912587,null,0,0,0]
[1154,0,-1.0338952952215696,-2.8422039835829271,null,0,0,0,null,9.2524657813829094E-3,2.5634031588125255E-2,-0.95534350301470117,null,0,0,0]
[1155,0,1.240539433250393,3.4317782235245029,null,0,0,0,null,2.8536618500920156E-2,0.44926203037829965,1.7276324013227931,null,0,0,0]
[1156,0,1.2205924784077724,3.4144903005237577,null,0,0,0,null,3.9822866633902949E-2,0.58899908174002025,1.9153710151272862,null,0,0,0]
[1157,0,8.3414230098222103E-2,0.21140688541700364,null,0,0,0,null,6.1744110001586076E-2,0.77079455791162488,1.1093941392642919,null,0,0,0]
[1158,0,-1.4111654283967219,-3.8345664205948777,null,0,0,0,null,-4.7056641104814105E-2,-0.68816212200888094,-2.1288244281365296,null,0,0,0]
[1159,0,-0.14707968874762081,-0.2096836654213548,null,0,0,0,null,-5.4477385399158609E-3,-0.11497178465614434,-0.75392436995007661,null,0,0,0]
[1160,0,-0.71230928679696803,-2.09799828148503,null,0,0,0,null,5.6532000181001595E-2,0.77785670700404175,1.8295868815097309,null,0,0,0]
[1161,0,0.10062124051523279,0.50818550475098889,null,0,0,0,null,-6.6538543450114385E-3,-0.10460919258712238,-0.4803502251840473,null,0,0,0]
[1162,0,-0.10334898478993637,0.23360483794301398,null,0,0,0,null,-3.2982580344282045E-2,-0.45677074575281856,-1.0237163960549807,null,0,0,0]
[1163,0,1.2669331272066939,3.47655213026992,null,0,0,0,null,2.6455828752327305E-2,0.42340165812056968,1.6792015659024218,null,0,0,0]
[1164,0,0.80078437468829,2.593172176583197,null,0,0,0,null,1.4697433102482194E-2,0.2386963484195303,0.87284567152666936,null,0,0,0]
[1165,0,0.32731878944958587,0.95475356174267656,null,0,0,0,null,3.4710640789190679E-2,0.43806720125667742,0.62358385708190689,null,0,0,0]
[1166,0,1.638225366039016,4.4790243794205526,null,0,0,0,null,-2.174847967921812E-2,-0.10591728317693469,1.7096774539411126,null,0,0,0]
[1167,0,-0.87620729192145697,-2.5728846442497888,null,0,0,0,null,-3.6084406599261175E-2,-0.52916654416355047,-1.7023975819877706,null,0,0,0]
[1168,0,0.58634038686571144,1.5244410028350031,null,0,0,0,null,1.6001534293822658E-2,0.22656108056768517,0.7222259593833551,null,0,0,0]
[1169,0,0.91614427299132151,2.360671970921532,null,0,0,0,null,4.0182251381141273E-2,0.57092740817365484,1.6952953913914244,null,0,0,0]
[1170,0,-0.42162203888744987,-0.87405192220122985,null,0,0,0,null,-4.3876373851314099E-2,-0.54436719680024725,-0.78656452574502689,null,0,0,0]
[1171,0,0.6054934416447868,1.9330327884867657,null,0,0,0,null,-2.5405707901933739E-2,-0.24170222306579217,0.56486249446493098,null,0,0,0]
[1172,0,-0.36838089485510317,-0.96461661059092152,null,0,0,0,null,2.1242985470949462E-2,0.19991510736034707,-0.42209590127129559,null,0,0,0]
[1173,0,-0.41076184526001086,-0.98829918747273771,null,0,0,0,null,-2.162383752404054E-2,-0.32815575605806679,-1.0562294910694181,null,0,0,0]
[1174,0,-0.18170869119595409,-1.5888705289376959E-2,null,0,0,0,null,8.0182006416829373E-3,7.4538331531319266E-2,-0.21707447980204234,null,0,0,0]
[1175,0,-0.73107703607789332,-2.3235332087464338,null,0,0,0,null,-4.5997466526710752E-2,-0.61735906494266057,-1.5122965861245794,null,0,0,0]
[1176,0,-0.68399744290717901,-1.5774518721560744,null,0,0,0,null,-8.5786358705823313E-3,-0.18898312861627528,-1.2229745507239931,null,0,0,0]
[1177,0,2.0037347128489347,5.0995618443403004,null,0,0,0,null,7.2224381362686524E-2,1.0706102168586631,3.3972738867576737,null,0,0,0]
[1178,0,-2.0213612067463109,-5.3153585170997246,null,0,0,0,null,-2.0506535719505906E-3,-0.14408027063653753,-1.3583767236587918,null,0,0,0]
[1179,0,-1.0720205379701784,-3.3232234479642502,null,0,0,0,null,-3.0200648676045775E-2,-0.43186224831643993,-1.3637539258178659,null,0,0,0]
[1180,0,0.53055228154621004,2.122571090217316,null,0,0,0,null,2.0898315634530432E-2,0.30657046060546145,0.92960868048977141,null,0,0,0]
[1181,0,0.14477755074348353,0.63255562409404231,null,0,0,0,null,-2.3714252449097785E-2,-0.46419558937571764,-2.4471871166924246,null,0,0,0]
[1182,0,-0.65959792260935324,-1.502036974843475,null,0,0,0,null,-7.7560421343337111E-3,-0.19856444149253094,-1.4254045973019274,null,0,0,0]
[1183,0,1.0097378233538075,2.6878780639549587,null,0,0,0,null,6.9640188522092214E-3,0.20036948140303412,1.6463609967624033,null,0,0,0]
[1184,0,-0.2050009842003401,-0.27791811426424828,null,0,0,0,null,-4.8846581342250034E-2,-0.5702528701209203,-0.41810569219472382,null,0,0,0]
[1185,0,-0.11339932305538969,-0.16447441240623448,null,0,0,0,null,-4.5454415986000245E-2,-0.68967642930191597,-2.350537672728362,null,0,0,0]
[1186,0,-1.0883412672389021,-2.832096882577229,null,0,0,0,null,-3.8939518010398617E-3,-0.11581964389960103,-0.92762801548557039,null,0,0,0]
[1187,0,-1.2222469564355105,-4.0173291629601229,null,0,0,0,null,-1.7972489027757717E-2,-0.35177251392125525,-2.0669359102042835,null,0,0,0]
[1188,0,-0.85357361368583951,-2.8351510747539286,null,0,0,0,null,-3.6045466491809293E-2,-0.49538395160792154,-1.4011208281351719,null,0,0,0]
[1189,0,-0.35049597418701522,-0.66588136445431878,null,0,0,0,null,-4.3887041928766905E-2,-0.54575992312559085,-0.78613105699181685,null,0,0,0]
[1190,0,0.97459047157633905,2.5083155481855863,null,0,0,0,null,-1.2575703940166761E-2,-0.16235925114315705,-0.33105618996027258,null,0,0,0]
[1191,0,0.2442124481783485,0.16791798439627018,null,0,0,0,null,2.4342252240660854E-2,0.36606509751544491,1.1016953590312224,null,0,0,0]
[1192,0,0.88234461663893848,2.5981406929441362,null,0,0,0,null,-2.9405119067139138E-2,-0.26018977264071236,0.87000657775744916,null,0,0,0]
[1193,0,-2.1459079600843904,-5.7113225619291841,null,0,0,0,null,-5.0077027455424625E-2,-0.85799297452358592,-3.928142149367126,null,0,0,0]
[1194,0,-1.7503478216330768,-5.2443531057864163,null,0,0,0,null,2.979403014161676E-3,-9.3110017095933473E-2,-1.6785978743984051,null,0,0,0]
[1195,0,1.4594040873375562,4.0376814860801602,null,0,0,0,null,7.3543441772636695E-3,0.14489296175174241,0.8888696220505008,null,0,0,0]
[1196,0,1.2655184156254708,3.5834589110614905,null,0,0,0,null,3.1129168647157486E-2,0.47133793231706478,1.6164705316136352,null,0,0,0]
[1197,0,1.3461312987636485,3.7914592272407099,null,0,0,0,null,3.694042646953926E-2,0.56484273496857262,1.9684217252339222,null,0,0,0]
[1198,0,1.5223893275566625,4.1291224843000744,null,0,0,0,null,-4.8379414532438034E-2,-0.49629899117864079,0.55392251650243629,null,0,0,0]
[1199,0,-0.24355360857900815,-0.94728297026441577,null,0,0,0,null,5.8088514906211856E-2,0.76416137085756231,1.4153752574945939,null,0,0,0]
[1200,0,-2.8043592483146003,-7.239316867113561,null,0,0,0,null,-0.11032981845982857,-1.5597148604346338,-4.1443956759397773,null,0,0,0]
[1201,0,1.2262533407678711,3.3560912440850079,null,0,0,0,null,3.9209587789991077E-2,0.55824069985080405,1.6246106485305063,null,0,0,0]
[1202,0,1.8993004244269469,4.9269512481447597,null,0,0,0,null,6.499083851261088E-2,0.98693463622028954,3.3608492706376198,null,0,0,0]
[1203,0,-1.0024704490958556,-3.3208911358804833,null,0,0,0,null,-6.5046477609030887E-2,-0.92840755648269346,-2.73112131157544,null,0,0,0]
[1204,0,1.0118155576113295,2.971731181307121,null,0,0,0,null,-1.9544009542892524E-2,-0.12835370182686257,1.1633223543087587,null,0,0,0]
[1205,0,0.83413801004349442,2.4995258403397602,null,0,0,0,null,1.2582115814412589E-2,0.18003145835587203,0.63275301137390128,null,0,0,0]
[1206,0,1.0383939515058755,2.577422579533668,null,0,0,0,null,4.6428920179279257E-2,0.65520854819700158,1.8658427236520985,null,0,0,0]
[1207,0,-1.374016022991198,-3.7485768986041368,null,0,0,0,null,8.0881926734044218E-3,-4.2733733666364966E-2,-1.6591021946697111,null,0,0,0]
[1208,0,0.52115913014833859,1.2412852925812476,null,0,0,0,null,3.172963993620749E-2,0.45887098863198028,1.3944034685423066,null,0,0,0]
[1209,0,-1.5270093928526312,-3.9420666850259511,null,0,0,0,null,8.4704775862262008E-2,0.92604599337688975,8.3500042602794561E-2,null,0,0,0]
[1210,0,-8.9264670200091129E-2,-6.4091089010609725E-2,null,0,0,0,null,-2.8276371383932086E-2,-0.46109957969419518,-1.8454378162917855,null,0,0,0]
[1211,0,-3.0816464987496728,-7.9652898199631821,null,0,0,0,null,-9.5963747937505964E-2,-1.3598812559730378,-3.6218098806986854,null,0,0,0]
[1212,0,0.28004193724154902,0.51141058118783256,null,0,0,0,null,-6.2969641866514508E-3,-6.1273421268644594E-2,0.14510003846013933,null,0,0,0]
[1213,0,-0.30593019490538975,-0.75416681813391917,null,0,0,0,null,-3.9734169528422458E-2,-0.59429425623822685,-1.9937482255112153,null,0,0,0]
[1214,0,1.6836922054461156,4.735975052143564,null,0,0,0,null,9.205296893966243E-2,1.2651218099085773,3.2891297034067501,null,0,0,0]
[1215,0,-1.213135980254765,-3.9823871123296342,null,0,0,0,null,2.6054286591532332E-3,-0.108047677246881,-1.8265146336029321,null,0,0,0]
[1216,0,-0.442050316613042,-1.2168735471683541,null,0,0,0,null,-2.1732811230957962E-2,-0.22968921052319002,0.1390235835478561,null,0,0,0]
[1217,0,1.18468618424974,3.347660203223255,null,0,0,0,null,-3.0239367008511236E-2,-0.22528923597424455,1.4108985596762613,null,0,0,0]
[1218,0,1.5944877747553345,4.7192677848662425,null,0,0,0,null,0.11448668798303033,1.5076771445544372,3.2461204774194083,null,0,0,0]
[1219,0,1.7605046815771548,4.7787228535335817,null,0,0,0,null,7.5522102278491729E-3,0.22134799170938549,1.8185597698555538,null,0,0,0]
[1220,0,0.91291509787405989,2.5441744285818202,null,0,0,0,null,0.10513810643368361,1.3424593414785131,2.3250200434415675,null,0,0,0]
[1221,0,-6.1136618512973653E-2,-0.12932707727070375,null,0,0,0,null,6.8725643642574649E-2,0.83674081872043826,0.97068303165173342,null,0,0,0]
[1222,0,0.60981895077147785,1.2698546764170751,null,0,0,0,null,2.6585537015536716E-3,9.73090184310995E-2,0.84202166217584451,null,0,0,0]
[1223,0,-1.0466018438322608,-2.9448026979794086,null,0,0,0,null,-5.6942518151918758E-3,-0.18620050381060718,-1.5510756943689084,null,0,0,0]
[1224,0,0.3893323229302223,1.0499088205635998,null,0,0,0,null,1.2258903330291218E-2,0.17987361617922851,0.65039603940985402,null,0,0,0]
[1225,0,-0.2014243222869227,-0.32656167024844762,null,0,0,0,null,-5.5203148792354287E-2,-0.66228746141630379,-0.70142591706163515,null,0,0,0]
[1226,0,-0.44845496550325697,-1.1027233231210485,null,0,0,0,null,-2.3113415539540882E-2,-0.34880567907339899,-1.1107399034447918,null,0,0,0]
[1227,0,-1.0745081627910367,-2.8202273670469293,null,0,0,0,null,6.0492866001176249E-3,-3.6645384923417623E-2,-1.2692311092416821,null,0,0,0]
[1228,0,1.5288366864149212,4.0165878430804591,null,0,0,0,null,1.3726987898190544E-2,0.2615727876394458,1.4180334165702879,null,0,0,0]
[1229,0,0.75696612073461622,2.2083120954285334,null,0,0,0,null,6.217092712626709E-3,8.2983947964134136E-2,0.28894491931877564,null,0,0,0]
[1230,0,-0.93070992878221115,-2.7013395854701665,null,0,0,0,null,-3.6901699680194612E-2,-0.54273277574596523,-1.7627664075831018,null,0,0,0]
[1231,0,0.45355631436357363,1.0573885383403758,null,0,0,0,null,2.2358131949282038E-2,0.31769677725865497,0.96161843422691529,null,0,0,0]
[1232,0,-9.1212329761370711E-2,5.3352838558297665E-2,null,0,0,0,null,-3.2456230744178416E-2,-0.48128072400161637,-1.5259030056656848,null,0,0,0]
[1233,0,-0.51599419757925902,-1.0042419238533038,null,0,0,0,null,-1.5443288315182315E-2,-0.27160708043548309,-1.1483315375733765,null,0,0,0]
[1234,0,-0.21311714112577101,-1.1292211364503164,null,0,0,0,null,-2.3960254432243516E-2,-0.30464654174507177,-0.64217422432907911,null,0,0,0]
[1235,0,-0.37038771741470189,-0.55383446093916422,null,0,0,0,null,-2.8970061455267E-2,-0.43119997999194037,-1.2710293599754476,null,0,0,0]
[1236,0,0.3040004955123386,1.0554923959601874,null,0,0,0,null,-2.4502233971348177E-2,-0.34440983797528041,-0.93330768045360668,null,0,0,0]
[1237,0,1.5669205406210895,4.1286519818555538,null,0,0,0,null,1.5002870874312919E-2,0.26619896634293855,1.3068658356052838,null,0,0,0]
[1238,0,0.55770220745622279,1.5331191241908164,null,0,0,0,null,2.3552123820752228E-2,0.31221233370849222,0.57468921226080782,null,0,0,0]
[1239,0,1.5715417141993693,4.2343335049376254,null,0,0,0,null,6.9554341792885402E-2,1.0077802496125332,3.1372282278447927,null,0,0,0]
[1240,0,0.67004919454367884,1.6018333223400405,null,0,0,0,null,4.9347933968891311E-2,0.68337331700446791,1.7728594093054999,null,0,0,0]
[1241,0,-1.6957091365166435,-4.4576865432277266,null,0,0,0,null,-4.5717603341112127E-2,-0.69519625425535103,-2.5149692533809977,null,0,0,0]
[1242,0,-7.036754669621223E-2,1.5038207891971979E-2,null,0,0,0,null,-3.0862218348587704E-2,-0.47950342954062125,-1.7139016586797007,null,0,0,0]
[1243,0,-2.029282627876595,-5.3823869615771036,null,0,0,0,null,-6.8882772930526762E-2,-1.0337922329839757,-3.5905114632577204,null,0,0,0]
[1244,0,-0.5372573946931043,-1.1747655256297076,null,0,0,0,null,-1.2961327129876963E-2,-0.21759258778778895,-1.0312887931793593,null,0,0,0]
[1245,0,-0.13389785541378843,-0.32184771325788458,null,0,0,0,null,-8.4499542264133542E-3,-0.13026685198471297,-0.60296716166943953,null,0,0,0]
[1246,0,-1.3991054116777304,-3.9507787759879212,null,0,0,0,null,-3.476237519403412E-2,-0.50981125839584185,-1.6375058196716672,null,0,0,0]
[1247,0,-0.58548451097517684,-1.9374150223520483,null,0,0,0,null,-7.1841302017805961E-2,-0.93224696308595323,-1.8805852315129159,null,0,0,0]
[1248,0,-0.84296014616656789,-2.3049287222154673,null,0,0,0,null,-5.545843435691597E-2,-0.70601107270651386,-1.1790518987433096,null,0,0,0]
[1249,0,-0.35789264066462417,-1.0194712172927758,null,0,0,0,null,-3.6464528787998857E-2,-0.44844956993633511,-0.57514722112081285,null,0,0,0]
[1250,0,-1.5759774722174351,-4.2074551639228881,null,0,0,0,null,-4.7743890027519741E-2,-0.69898719166706547,-2.165077857017506,null,0,0,0]
[1251,0,1.3494207628404928,3.4681673928469028,null,0,0,0,null,7.0482979663810284E-3,0.13801683009873977,0.78436465091415086,null,0,0,0]
[1252,0,-0.52165476593168203,-1.2579029027695361,null,0,0,0,null,-1.9365422753626262E-2,-0.19916270569713379,0.19568681564604776,null,0,0,0]
[1253,0,-6.1136618512973653E-2,-0.12932707727070375,null,0,0,0,null,6.8725643642574649E-2,0.83674081872043826,0.97068303165173342,null,0,0,0]
[1254,0,-0.54864918516581562,-1.8661786396202733,null,0,0,0,null,-6.5063343698023801E-2,-0.83649345459657798,-1.6199215130941012,null,0,0,0]
[1255,0,-0.15438747460205923,-0.10281650875198102,null,0,0,0,null,-1.5500192262259077E-2,-0.18994106787347392,-0.32999489552194428,null,0,0,0]
[1256,0,0.94633463689582642,2.2374995421642088,null,0,0,0,null,2.6890483616865767E-2,0.41815173407320255,1.5161568381985344,null,0,0,0]
[1257,0,2.0124362149152164,5.1419364200868074,null,0,0,0,null,9.1629025686936927E-2,1.3314522693672752,3.9354838965203998,null,0,0,0]
[1258,0,-0.16696670053127127,-0.36805834127205889,null,0,0,0,null,-1.2347585759967729E-2,-0.20760791004873955,-0.98706542110669759,null,0,0,0]
[1259,0,-0.17159163493132473,-9.6571971094963377E-2,null,0,0,0,null,-4.2459171430789186E-2,-0.55231447936689715,-0.93947766743721517,null,0,0,0]
[1260,0,0.28229936857739629,1.0266306338679061,null,0,0,0,null,-4.2058124535696378E-2,-0.48901921564749501,-0.31419317417152703,null,0,0,0]
[1261,0,-1.7489340251825869,-4.5481021641881885,null,0,0,0,null,-6.9825956170814316E-2,-1.0410152731626832,-3.4982344383782036,null,0,0,0]
[1262,0,-0.84604665624672637,-2.3457054873886953,null,0,0,0,null,-5.8851410532746229E-2,-0.74348770863405567,-1.1845256084862048,null,0,0,0]
[1263,0,0.22394169919970772,0.6220221741096903,null,0,0,0,null,1.2634812559991644E-2,0.12961063723373353,-0.17135917550584417,null,0,0,0]
[1264,0,-0.32771199042489024,-0.71476622949027657,null,0,0,0,null,-2.9862652165874694E-3,-0.10289038816477022,-0.8067650154601288,null,0,0,0]
[1265,0,-0.94046418358464867,-3.0725502283603054,null,0,0,0,null,-2.507249459712409E-2,-0.3648511949292797,-1.2573334006269252,null,0,0,0]
[1266,0,0.15390429986808704,0.51977369525303951,null,0,0,0,null,-2.343249495237984E-2,-0.51321027786532158,-3.1070277340630854,null,0,0,0]
[1267,0,0.62143020868694476,1.8850697959922691,null,0,0,0,null,-2.8741759952559676E-2,-0.41364590168843735,-1.2153809156289099,null,0,0,0]
[1268,0,-0.97221616914361952,-2.5533966471485474,null,0,0,0,null,-6.6494293016768329E-4,-6.1069400721738019E-2,-0.69685426830633879,null,0,0,0]
[1269,0,-0.40554365374026385,-0.68268099737391463,null,0,0,0,null,-7.5876889519076944E-4,-9.3596837273697928E-2,-0.95087523172657162,null,0,0,0]
[1270,0,0.77384397553478812,1.832555351985873,null,0,0,0,null,5.3866280360120922E-2,0.73387855941958058,1.776207557177153,null,0,0,0]
[1271,0,-2.8367974279247554,-7.3173634487623236,null,0,0,0,null,-8.5464732394003984E-2,-1.1848988654046761,-2.920694525393599,null,0,0,0]
[1272,0,-1.734940281057221,-4.8212576710199571,null,0,0,0,null,6.2750201770671934E-2,0.6458415437553312,-0.46430766638714338,null,0,0,0]
[1273,0,-0.72828467576809452,-2.1522507801777029,null,0,0,0,null,-3.7385585084805315E-2,-0.50472470701429395,-1.2566983217617453,null,0,0,0]
[1274,0,0.42286687607607021,1.4688359872186121,null,0,0,0,null,2.8512466498275386E-2,0.32306997302179391,0.23393699537243445,null,0,0,0]
[1275,0,-0.47881498024606661,-1.8337975103747812,null,0,0,0,null,-3.2748616624738817E-2,-0.38366338619875662,-0.48099357509097174,null,0,0,0]
[1276,0,1.8790575236631595,4.8676491340286452,null,0,0,0,null,0.10299422835231536,1.4560418783975246,3.9625483234597669,null,0,0,0]
[1277,0,-0.42853327121873369,-1.6002562092512453,null,0,0,0,null,2.9191832023957431E-2,0.39244233666973466,0.81218047698661389,null,0,0,0]
[1278,0,-0.71138685728964624,-2.5158533095403328,null,0,0,0,null,-6.1070802924386894E-2,-0.9022521128194485,-2.9419716007452115,null,0,0,0]
[1279,0,-1.0889647964571159,-2.9010525667741458,null,0,0,0,null,0.11092074026818927,1.446457091671614,2.7689539169615274,null,0,0,0]
[1280,0,0.53704174935862103,1.4500679615914414,null,0,0,0,null,3.0098402092743358E-2,0.37056346971181303,0.439852968456933,null,0,0,0]
[1281,0,1.8772645710564249,4.735024242366948,null,0,0,0,null,0.10208100850365094,1.4377257649948834,3.8693933318986238,null,0,0,0]
[1282,0,-1.5273975646149465,-3.7184200732610262,null,0,0,0,null,-2.0143145560662903E-2,-0.35689384558306758,-1.612216132910933,null,0,0,0]
[1283,0,-0.51599419757925902,-1.0042419238533038,null,0,0,0,null,-1.5443288315182315E-2,-0.27160708043548309,-1.1483315375733765,null,0,0,0]
[1284,0,-0.2050009842003401,-0.27791811426424828,null,0,0,0,null,-4.8846581342250034E-2,-0.5702528701209203,-0.41810569219472382,null,0,0,0]
[1285,0,-1.8819980888533228,-4.936853678862601,null,0,0,0,null,4.609408150503441E-3,-8.7493893202691658E-2,-1.7737842907110279,null,0,0,0]
[1286,0,-0.29636915502797273,-0.733328930296404,null,0,0,0,null,1.6227953376399172E-2,0.139212588351249,-0.66607437651268264,null,0,0,0]
[1287,0,1.409772222751988,3.7760948494241822,null,0,0,0,null,1.4018243630621385E-2,0.22737578561021202,0.97818115637475789,null,0,0,0]
[1288,0,-1.5862407992516327,-4.2916409159138711,null,0,0,0,null,-4.2338023999588928E-2,-0.65645555661981692,-2.3816774634845133,null,0,0,0]
[1289,0,-0.4932019601698121,-0.8612184745434861,null,0,0,0,null,-5.5508873686202949E-3,-0.12074753232399144,-0.63211934882092102,null,0,0,0]
[1290,0,1.6962294527260384E-2,3.8630556416072069E-2,null,0,0,0,null,6.4843896987848718E-2,0.81452890654581189,1.2148978596299893,null,0,0,0]
[1291,0,-0.23411040464612234,3.4945071698406535E-2,null,0,0,0,null,1.428966193755133E-2,0.13631400056971962,-0.34500924740377015,null,0,0,0]
[1292,0,-2.2446471376970293E-3,-5.0880649122191247E-3,null,0,0,0,null,6.1754809851351011E-2,0.7474027652084978,0.8168339444557714,null,0,0,0]
[1293,0,-0.2789371187286106,-0.45422926684691628,null,0,0,0,null,-7.8227483598698202E-4,-7.4822656968486626E-2,-0.73553760256595702,null,0,0,0]
[1294,0,1.7644540493361711,4.9009395680729719,null,0,0,0,null,8.3657081449342002E-2,1.1755763139214641,3.1501221346399362,null,0,0,0]
[1295,0,-0.63770929767849882,-2.3801315155162373,null,0,0,0,null,-8.0682154633908848E-2,-1.0499777918820936,-2.1238024004379548,null,0,0,0]
[1296,0,1.7736842703446383,4.644448941886643,null,0,0,0,null,-4.2287821885047382E-3,0.16543836125109465,2.6446991851778439,null,0,0,0]
[1297,0,-0.37038771741470372,-0.55383446093917155,null,0,0,0,null,-2.9286946109928238E-2,-0.42870745824713868,-1.1992903246225468,null,0,0,0]
[1298,0,0.89797758046571108,2.6611232720305633,null,0,0,0,null,-2.4024779284796807E-2,-0.18544055053700687,1.062944903221225,null,0,0,0]
[1299,0,0.75316260547368441,1.8277228501709688,null,0,0,0,null,5.6227923650647368E-2,0.76834997936644045,1.8772018421068533,null,0,0,0]
[1300,0,1.0019545869725661,2.9098318067737927,null,0,0,0,null,-6.4318412235591094E-2,-0.66970198507124679,0.58525357937709122,null,0,0,0]
[1301,0,0.6818782220865196,1.6888720865171418,null,0,0,0,null,2.6944830519420919E-2,0.36637159264330693,0.92801240492227588,null,0,0,0]
[1302,0,-0.20289360400033365,-0.35096556183739447,null,0,0,0,null,-3.84038019161909E-3,-7.9374581986027801E-2,-0.5536427361405476,null,0,0,0]
[1303,0,2.0725875691391158,5.3854629849384583,null,0,0,0,null,9.4505136474495266E-2,1.3717365837847419,4.1092120978018682,null,0,0,0]
[1304,0,-8.3839094577468132E-2,0.11813409991935624,null,0,0,0,null,-4.1529885408160168E-2,-0.5165049567276665,-0.71866067927358013,null,0,0,0]
[1305,0,-0.11589385865802979,-7.1128110258789096E-2,null,0,0,0,null,-2.893271908800665E-2,-0.46578336932487763,-1.8206144945191918,null,0,0,0]
[1306,0,0.73381331869326827,1.7077263436095382,null,0,0,0,null,2.4675310642188093E-2,0.39310917584824073,1.5186947951844996,null,0,0,0]
[1307,0,1.1517742019094785,2.8857122646619318,null,0,0,0,null,-2.2874353408054274E-2,-0.24767031797697472,7.4584819179206535E-2,null,0,0,0]
[1308,0,-1.4237954613171424,-3.8856979013237871,null,0,0,0,null,-8.805178060040629E-2,-1.156104131191124,-2.3049910590891631,null,0,0,0]
[1309,0,1.4086326080724667,3.9875154109424549,null,0,0,0,null,4.2666153595143724E-2,0.65896264607157451,2.3577033177176965,null,0,0,0]
[1310,0,-1.4058361001334561E-2,-1.6339259242769914E-2,null,0,0,0,null,6.8725643642574538E-2,0.8428837590955518,1.0443983161530959,null,0,0,0]
[1311,0,-0.33410780939040707,-1.0159686852238956,null,0,0,0,null,-1.6772036436164511E-2,-0.21128584553479959,-0.34721705751662013,null,0,0,0]
[1312,0,-1.9213255269000584,-5.6612065523197526,null,0,0,0,null,2.2072486254064758E-2,0.15768865117848327,-1.1453984813102289,null,0,0,0]
[1313,0,-0.8376928058090507,-2.7871790112023809,null,0,0,0,null,-7.2495784934031693E-2,-1.0075905530645477,-2.6487803935603043,null,0,0,0]
[1314,0,-0.79435800434612613,-2.503754850445461,null,0,0,0,null,-6.1441658421483053E-2,-0.82785977859143622,-2.0031720026203073,null,0,0,0]
[1315,0,-1.5785594751289682,-4.1171701102718874,null,0,0,0,null,-4.6152701132393302E-2,-0.71603863941151846,-2.7255471588727778,null,0,0,0]
[1316,0,2.08526283780588,5.3140071086024037,null,0,0,0,null,8.1861888946100345E-2,1.2008707579615465,3.6892764321523028,null,0,0,0]
[1317,0,0.67570291856161935,2.5307409455738745,null,0,0,0,null,2.0759318270348673E-2,0.3176602542969067,1.182104142172022,null,0,0,0]
[1318,0,-0.21395838520057806,6.636900766727194E-2,null,0,0,0,null,8.2326638801943665E-3,6.1289060864522071E-2,-0.44160179162898566,null,0,0,0]
[1319,0,-0.66419280520853496,-2.0168482528366076,null,0,0,0,null,1.0233000190514815E-2,5.8269914827710635E-2,-0.7817819501566009,null,0,0,0]
[1320,0,-2.1368286988538348,-5.5951968976787754,null,0,0,0,null,-1.2705729364312105E-2,-0.25900272641202265,-1.3060958179943627,null,0,0,0]
[1321,0,2.0847115383855872,5.6083341382836664,null,0,0,0,null,2.2351978710305899E-2,0.36720089453324817,1.5930669837709066,null,0,0,0]
[1322,0,0.64198893561304615,1.8968905453144471,null,0,0,0,null,-3.4210567885444958E-2,-0.51798911563416095,-1.7156180147500455,null,0,0,0]
[1323,0,-0.39635886289109296,-1.1107913869759287,null,0,0,0,null,-2.9640990205711943E-2,-0.3435109436423327,-0.19528747645145994,null,0,0,0]
[1324,0,-0.19974827385908064,-0.23033965306502069,null,0,0,0,null,-2.7464454524859832E-2,-0.36976607073410289,-0.73325863505762756,null,0,0,0]
[1325,0,0.10182739357516948,0.31745796826268635,null,0,0,0,null,5.5037840013467704E-2,0.69363795289837349,1.0832459838827053,null,0,0,0]
[1326,0,-0.29000097390598967,-1.2989496088417583,null,0,0,0,null,-3.6241661599565649E-2,-0.45247697859761865,-0.80694183075059844,null,0,0,0]
[1327,0,0.51542659597419149,1.834776823693508,null,0,0,0,null,-2.1317469103084477E-2,-0.22308950650055248,0.2909327482255103,null,0,0,0]
[1328,0,-0.87589468580834362,-2.4848865320235709,null,0,0,0,null,-4.2811425566281402E-3,-0.12067869855518529,-0.94422153006261578,null,0,0,0]
[1329,0,-0.73682609431183299,-2.2166174343144012,null,0,0,0,null,1.76947228062906E-2,0.1711120374400516,-0.38882191230038732,null,0,0,0]
[1330,0,0.53950158923220437,1.4508081483857749,null,0,0,0,null,2.2810421556611744E-2,0.29283090140287366,0.46517516203326159,null,0,0,0]
[1331,0,-1.2880904213874673,-3.6533391918171692,null,0,0,0,null,2.1356191486254998E-2,0.1483180430529519,-1.1396936518730945,null,0,0,0]
[1332,0,1.9982497947373923,5.1482242850258775,null,0,0,0,null,4.4128423775919717E-2,0.78303123003868313,3.6854757753128395,null,0,0,0]
[1333,0,-0.10493059993146016,-0.4041776921031342,null,0,0,0,null,1.9865789357839277E-2,0.24391101644675928,0.25899356648589311,null,0,0,0]
[1334,0,-0.31297027115705894,-0.60483145336341837,null,0,0,0,null,-3.3442499932501507E-2,-0.38071525856291011,-0.16982803244288153,null,0,0,0]
[1335,0,-0.43481832907042006,-1.620137143356529,null,0,0,0,null,2.7644031627314859E-2,0.3574013516329787,0.56721888643068819,null,0,0,0]
[1336,0,1.1659258061710189,2.9638742207214599,null,0,0,0,null,1.438014065098156E-2,0.26858545477916684,1.3323111284433289,null,0,0,0]
[1337,0,0.18209506805044656,0.15061199449835841,null,0,0,0,null,5.232993497278602E-2,0.70575844279957978,1.4998471190115488,null,0,0,0]
[1338,0,1.3932756475110546,3.7596678941287172,null,0,0,0,null,0.11087991618912241,1.4777959258611617,3.2230870034085566,null,0,0,0]
[1339,0,-0.78693068544627753,-2.2579797345631958,null,0,0,0,null,6.281611062533614E-3,1.5559308217410035E-2,-0.69248208689592139,null,0,0,0]
[1340,0,0.82999873607624797,2.4913232250877408,null,0,0,0,null,-2.542261926062872E-2,-0.22865512394783674,0.72648397022308198,null,0,0,0]
[1341,0,1.0141563013021369,2.7058477865987589,null,0,0,0,null,-2.589249935559053E-3,7.1478102332409435E-2,1.3420334650840595,null,0,0,0]
[1342,0,-0.54850325934744615,-0.95583387786308593,null,0,0,0,null,5.9835343133689206E-3,-3.3014531492631248E-2,-1.0959873835729412,null,0,0,0]
[1343,0,2.1183011504755287,5.4737274739854769,null,0,0,0,null,8.6051296508516936E-2,1.2378350440617352,3.5954300015092815,null,0,0,0]
[1344,0,-2.7835472207311884,-7.1820351638057689,null,0,0,0,null,-5.4605968805671354E-2,-0.80507172997116228,-2.4358360730266395,null,0,0,0]
[1345,0,-0.74513023783372223,-2.2700934118111689,null,0,0,0,null,-4.0871505811817997E-2,-0.55080133452586688,-1.3436978125652421,null,0,0,0]
[1346,0,-2.0520552763919078,-5.0043068082586686,null,0,0,0,null,-9.5858020168203099E-3,-0.31772252263556766,-2.5263815348798926,null,0,0,0]
[1347,0,0.36338867175841733,1.0671574769934451,null,0,0,0,null,6.8484269827050581E-2,0.87710714173455284,1.5438327099615416,null,0,0,0]
[1348,0,0.49007370421616542,1.2850334598980044,null,0,0,0,null,-3.6056261606400995E-3,-0.15121156485939355,-1.3813683438038824,null,0,0,0]
[1349,0,-0.4653174542902343,-1.1013753145132505,null,0,0,0,null,2.8945410388687889E-2,0.33677891520095821,0.12356642704785555,null,0,0,0]
[1350,0,-1.0710841017151069,-2.9576625742217364,null,0,0,0,null,4.3126171810491196E-3,-3.1821489554354231E-2,-1.0038079379885749,null,0,0,0]
[1351,0,-2.1261902208268095,-5.6552204067403364,null,0,0,0,null,-6.740527285732964E-2,-1.0660370090451752,-4.1397417896489239,null,0,0,0]
[1352,0,-0.50583319414846117,-1.2439145734554986,null,0,0,0,null,-2.5256271892573467E-2,-0.38409172136205327,-1.2624454882051614,null,0,0,0]
[1353,0,-0.1280090509429101,-0.11445536110953253,null,0,0,0,null,-2.0486988057774512E-2,-0.26152961950094322,-0.55613238300636658,null,0,0,0]
[1354,0,0.24205311959159007,0.21716553273404862,null,0,0,0,null,7.3330974852906419E-2,1.045358383143278,2.8028224639473809,null,0,0,0]
[1355,0,0.50700583041054781,0.97360856951417374,null,0,0,0,null,-6.0414921008006786E-2,-0.63539668784660264,0.35729539761204798,null,0,0,0]
[1356,0,-0.8192946620828625,-2.4246159880195117,null,0,0,0,null,-1.7976548418114191E-2,-0.30050681665168211,-1.3476692054574013,null,0,0,0]
[1357,0,-0.63488402498426877,-1.6011128056436355,null,0,0,0,null,-3.7026516773046469E-2,-0.51910590466327544,-1.4703665582114662,null,0,0,0]
[1358,0,0.21679990589557202,6.1097495332738616E-2,null,0,0,0,null,1.9621387299940465E-2,0.29390910315728436,0.84994332355283042,null,0,0,0]
[1359,0,-1.4075390418925544,-4.5107157113266876,null,0,0,0,null,-8.725492464442311E-2,-1.2448005946090517,-3.6572195551983242,null,0,0,0]
[1360,0,-1.4100245133650533,-4.401703377700767,null,0,0,0,null,4.0339704794053487E-2,0.35451629914871319,-1.1998483222863761,null,0,0,0]
[1361,0,-0.10129487898502521,-0.21269517940118385,null,0,0,0,null,5.0757221912642363E-2,0.59219300665210173,0.23878940016800698,null,0,0,0]
[1362,0,0.27191444708381457,0.83034525659967762,null,0,0,0,null,4.2166941095362002E-2,0.52837395055929393,0.83528953911986903,null,0,0,0]
[1363,0,-0.42317229009148288,-1.6571409634376033,null,0,0,0,null,-5.1774478811185819E-2,-0.65419611555357005,-1.2159554417188339,null,0,0,0]
[1364,0,0.51363018208611355,1.7267871708965394,null,0,0,0,null,-3.7193587487801494E-2,-0.46590426328696505,-0.69150692855430318,null,0,0,0]
[1365,0,1.6214908138995305,4.4946283316364859,null,0,0,0,null,7.3897747383327606E-2,1.0804238402346182,3.3155667705189225,null,0,0,0]
[1366,0,-0.3964170909970326,-0.8856730628976075,null,0,0,0,null,-1.594614390553312E-2,-0.26551371874632423,-1.0320343591186647,null,0,0,0]
[1367,0,0.92877868100467453,2.5010479179837057,null,0,0,0,null,4.0692447170699777E-3,9.4568669325800325E-2,0.69953028359868408,null,0,0,0]
[1368,0,-1.2420422172205963,-3.3289776450422215,null,0,0,0,null,-5.3181858478411018E-2,-0.72309265322932426,-1.7239822439811068,null,0,0,0]
[1369,0,0.74621083760302642,1.7374803889929609,null,0,0,0,null,2.4675310642188208E-2,0.3939822186184565,1.5291713084270486,null,0,0,0]
[1370,0,0.20341742889163106,0.94671637977993672,null,0,0,0,null,-1.90773250631633E-2,-0.22140988705044129,-1.2223776564387664E-3,null,0,0,0]
[1371,0,0.28862387861804201,0.98481478648439225,null,0,0,0,null,-1.447195957140417E-2,-0.26623711102776271,-1.3038926086232205,null,0,0,0]
[1372,0,-0.45010079196578406,-1.4036297843960492,null,0,0,0,null,1.1598667638585938E-2,8.8575976705817988E-2,-0.54863325577855726,null,0,0,0]
[1373,0,-0.77044027183622343,-2.2280996512806088,null,0,0,0,null,1.4430749731947913E-2,9.7331789170263625E-2,-0.85519879726968429,null,0,0,0]
[1374,0,1.8055636509243995,4.5753879766865504,null,0,0,0,null,5.1511332216295558E-2,0.82362162994369914,3.1698196792074267,null,0,0,0]
[1375,0,0.94736541970250621,2.6146749983992703,null,0,0,0,null,1.1608042012700366E-2,0.20782129577707109,0.96189451061968434,null,0,0,0]
[1376,0,-0.21779510200364166,-0.72242183167266194,null,0,0,0,null,2.0709038009451661E-2,0.2263664545261754,-6.91849601870963E-2,null,0,0,0]
[1377,0,-1.1203699024830822,-3.1084515773725214,null,0,0,0,null,1.026825921559407E-3,-9.877999864756476E-2,-1.3814648586630027,null,0,0,0]
[1378,0,1.3691993219259766,3.7884773719074656,null,0,0,0,null,1.8752922025758154E-2,0.33626589848294225,1.6755288787960307,null,0,0,0]
[1379,0,0.56038564478094122,1.285777606041971,null,0,0,0,null,1.8210860157268256E-2,0.27635873565562358,1.0053867596434829,null,0,0,0]
[1380,0,-2.8525680068247312E-2,-0.36952345747221987,null,0,0,0,null,-9.0776758800218654E-2,-1.0566485743607801,-0.72104312704095719,null,0,0,0]
[1381,0,-1.2308865120343326,-4.0380640963972985,null,0,0,0,null,-1.7972489027757488E-2,-0.3638985920535433,-2.2124488477917659,null,0,0,0]
[1382,0,-1.2033239730681453,-3.142195961251411,null,0,0,0,null,-3.2158743241476259E-2,-0.47762457185669427,-1.5290677975290019,null,0,0,0]
[1383,0,-0.67757407904904543,-2.5179651560534402,null,0,0,0,null,-6.6625391031398584E-2,-0.89197978846679238,-2.0720684424306235,null,0,0,0]
[1384,0,1.5160777665919758,4.023662758705985,null,0,0,0,null,6.1302211808013395E-2,0.8930925679818793,2.8298122287737022,null,0,0,0]
[1385,0,-0.37960838970043914,-1.1347317851726548,null,0,0,0,null,-6.9316329478480265E-2,-0.80488986360724724,-0.52118549549021553,null,0,0,0]
[1386,0,0.94370453916069164,2.5338185055767899,null,0,0,0,null,2.4546018948602921E-2,0.35648310389130439,1.1214995738251019,null,0,0,0]
[1387,0,-0.22569800043304714,-0.26130780205617338,null,0,0,0,null,-4.9700680436826815E-2,-0.60196139679505267,-0.68819522567907554,null,0,0,0]
[1388,0,1.178622185389353,3.1621317144350103,null,0,0,0,null,2.0115495931344925E-2,0.30813816632761881,1.1244015396247524,null,0,0,0]
[1389,0,-1.3630376102800674,-4.3707973341998949,null,0,0,0,null,-8.2568469264074448E-2,-1.186164309941135,-3.5796097840854091,null,0,0,0]
[1390,0,-0.47772974534784407,-0.70316835401952271,null,0,0,0,null,-3.7976419459238346E-2,-0.54505186741936906,-1.4167609280269571,null,0,0,0]
[1391,0,-0.86961153239328814,-2.938004565967014,null,0,0,0,null,-5.681215123155698E-2,-0.85898903698822049,-3.0086809353475727,null,0,0,0]
[1392,0,-1.6730149552386137E-2,-0.28737509339140527,null,0,0,0,null,-7.855637748252349E-2,-0.87354880123767997,-0.11438954066839142,null,0,0,0]
[1393,0,-0.4326686787540639,-0.99573255444908859,null,0,0,0,null,-7.8397657500099745E-3,-0.16662188487761795,-0.93277652270757971,null,0,0,0]
[1394,0,0.66347912733528025,1.5921202133708647,null,0,0,0,null,4.5649706918755611E-2,0.64478930679048785,1.8102940971387034,null,0,0,0]
[1395,0,0.68037687320805162,1.6784764407014008,null,0,0,0,null,5.0423524240715722E-2,0.70273709851077093,1.8586972865142561,null,0,0,0]
[1396,0,0.57402839409719852,2.2269137603396882,null,0,0,0,null,1.9739455014727354E-2,0.29627970374881896,0.95908920002406373,null,0,0,0]
[1397,0,1.409772222751988,3.7760948494241822,null,0,0,0,null,1.4018243630621385E-2,0.22737578561021202,0.97818115637475789,null,0,0,0]
[1398,0,-0.43515935688622814,-0.85414153121876735,null,0,0,0,null,-1.6653951209392288E-2,-0.26963055931047802,-0.96710513566815282,null,0,0,0]
[1399,0,-1.5716900425834446,-3.9115991798762479,null,0,0,0,null,-2.3341544950385186E-2,-0.34756165666804734,-0.95032951796855558,null,0,0,0]
[1400,0,1.7732291911233569,4.3476934721698708,null,0,0,0,null,8.4748438378214649E-2,1.2057509260568049,3.3077163672138887,null,0,0,0]
[1401,0,0.10182739357516767,0.32930520678404718,null,0,0,0,null,6.055147187636277E-2,0.75594694598617296,1.0954039374480089,null,0,0,0]
[1402,0,1.7996417942992102,5.0254518976828697,null,0,0,0,null,6.9967073980564745E-2,1.0070455839813031,2.9497518475575744,null,0,0,0]
[1403,0,-1.4075390418925544,-4.5107157113266876,null,0,0,0,null,-8.725492464442311E-2,-1.2448005946090517,-3.6572195551983242,null,0,0,0]
[1404,0,4.3992569241188904E-2,5.2996828545539755E-2,null,0,0,0,null,-2.3907411861318905E-4,5.0193046614904237E-3,0.15565902981958424,null,0,0,0]
[1405,0,-0.44434801924973183,-0.94817566423105015,null,0,0,0,null,-3.7807502139245573E-2,-0.47669893265727931,-0.7755093564079143,null,0,0,0]
[1406,0,0.84054201341625956,2.7908713445113755,null,0,0,0,null,1.7996616538051E-2,0.2895605699784819,1.2227052841980477,null,0,0,0]
[1407,0,-0.18842698731379279,-0.59700984151328884,null,0,0,0,null,-2.8265737496899705E-2,-0.30123275550767992,0.12160287321147188,null,0,0,0]
[1408,0,-1.0457036088578406,-2.7877358893411581,null,0,0,0,null,-8.2008161556196349E-3,-0.21432667977772599,-1.5217062821741383,null,0,0,0]
[1409,0,0.29698585629975244,1.1918712784778036,null,0,0,0,null,-9.4011754986968246E-2,-1.0774653853709451,-0.48917619801609907,null,0,0,0]
[1410,0,-1.5221090723818125,-4.0918804436300711,null,0,0,0,null,-3.9956853945664929E-2,-0.60762376661362305,-2.0890993810498948,null,0,0,0]
[1411,0,-0.65200257798385797,-1.9449408990824522,null,0,0,0,null,2.7501610345794007E-2,0.28308911643257761,-0.34946747383132243,null,0,0,0]
[1412,0,-0.30739689293343325,-1.0074604522439186,null,0,0,0,null,2.3723239858812178E-2,0.25929525552432731,-9.6951712736892653E-2,null,0,0,0]
[1413,0,1.9372131587899948,5.2036065500915356,null,0,0,0,null,-1.9248072797151166E-2,-9.7517830507949835E-2,1.5169368387115427,null,0,0,0]
[1414,0,-0.16172968697606666,-0.33109966953156256,null,0,0,0,null,3.9667337575019702E-4,6.4384130450189335E-3,-8.5844828900804721E-2,null,0,0,0]
[1415,0,0.41055017380824754,1.4304830364564842,null,0,0,0,null,1.6356298388014921E-2,0.18532331900257942,0.19323663515596126,null,0,0,0]
[1416,0,-0.15674925439142681,-0.20583534820032948,null,0,0,0,null,-1.6846938636749031E-2,-0.25918341320723359,-0.99139943707477507,null,0,0,0]
[1417,0,0.66662421022419582,1.7449171757767108,null,0,0,0,null,9.1636266338514752E-2,1.1674998392561147,1.9740531513796922,null,0,0,0]
[1418,0,0.52275319013857369,1.5439832901843402,null,0,0,0,null,7.4393878255686443E-3,8.5087168002865837E-2,0.1392024469039061,null,0,0,0]
[1419,0,-6.1136618512973653E-2,-0.12932707727070375,null,0,0,0,null,6.8725643642574649E-2,0.83674081872043826,0.97068303165173342,null,0,0,0]
[1420,0,0.20315136118066221,1.068185929763029,null,0,0,0,null,3.1136743434260154E-2,0.38918659488980395,0.46738504577809725,null,0,0,0]
[1421,0,1.1885724615675244,3.0544722405025242,null,0,0,0,null,-3.854868414409901E-2,-0.40940146673089201,0.20908044588936173,null,0,0,0]
[1422,0,-0.37288228754074226,-0.49974763792070737,null,0,0,0,null,-2.8995827311227629E-2,-0.42793066771601207,-1.2049561578305621,null,0,0,0]
[1423,0,0.70326024479725313,1.9074611189340285,null,0,0,0,null,9.6618915786716563E-3,0.16340556278690019,0.78053704215100517,null,0,0,0]
[1424,0,-0.63997926706740871,-2.4028945462506379,null,0,0,0,null,-8.8985395292870237E-2,-1.1693414113687532,-2.4507476419612395,null,0,0,0]
[1425,0,-1.5554527401485174,-4.7476301713602078,null,0,0,0,null,-7.4125823363597196E-3,-0.24452212897356093,-2.127211030884955,null,0,0,0]
[1426,0,-1.2496580683118736,-4.1010013711783975,null,0,0,0,null,-2.587341248210771E-2,-0.469099048239631,-2.440932522097075,null,0,0,0]
[1427,0,-1.4058361001327284E-2,-1.6339259242755359E-2,null,0,0,0,null,6.6830941877508335E-2,0.82710200248560073,1.1051178698224393,null,0,0,0]
[1428,0,-0.7782120012328142,-2.1981538953422057,null,0,0,0,null,1.579842136839096E-2,0.12808011448824891,-0.58016381316918708,null,0,0,0]
[1429,0,1.5456137487566666,3.9360766826162799,null,0,0,0,null,1.1241483714319429E-3,0.16479924249168379,1.8910718129481139,null,0,0,0]
[1430,0,-0.21977105255593596,6.9359516714845082E-2,null,0,0,0,null,1.3222113090315702E-2,0.11997626380801557,-0.40014564070911729,null,0,0,0]
[1431,0,-0.46566464323680884,-1.0626714494944753,null,0,0,0,null,-1.2474891555309625E-2,-0.22676420107586909,-1.0535036430963409,null,0,0,0]
[1432,0,-1.8844857549243625,-5.3160335391125484,null,0,0,0,null,2.2334665340460733E-2,0.1163574709952527,-1.5829833453170614,null,0,0,0]
[1433,0,-0.74707518962039465,-2.3733542377445263,null,0,0,0,null,-4.0556225914700747E-2,-0.55053758407398978,-1.4152326604428962,null,0,0,0]
[1434,0,-0.44306905185503276,-1.1372686985498295,null,0,0,0,null,-6.4037714783287359E-3,-0.12080144282787023,-0.73581593842023718,null,0,0,0]
[1435,0,0.50844512164004119,1.3446580859449895,null,0,0,0,null,2.7095575641153745E-2,0.36071846403361996,0.68209016172121117,null,0,0,0]
[1436,0,-0.22225354554729893,-0.52535016966112746,null,0,0,0,null,-4.7501740502216026E-2,-0.71315246415641198,-2.4048348557747232,null,0,0,0]
[1437,0,0.67948980197870334,2.0887557323461805,null,0,0,0,null,-5.8650222550473419E-2,-0.63083698641239883,0.1871149753699283,null,0,0,0]
[1438,0,0.82539457508321901,2.1346949725689046,null,0,0,0,null,3.7431989287433679E-3,0.12399043402014377,1.1108145395396458,null,0,0,0]
[1439,0,1.2930728923129937,3.2552467349925065,null,0,0,0,null,1.7047807726594044E-2,0.29563769441768001,1.2597090894453686,null,0,0,0]
[1440,0,-2.7835472207311884,-7.1820351638057689,null,0,0,0,null,-5.4605968805671354E-2,-0.80507172997116228,-2.4358360730266395,null,0,0,0]
[1441,0,0.33469001213296179,0.91955955742943474,null,0,0,0,null,3.5415847071029814E-2,0.45033830451149698,0.6810865896078212,null,0,0,0]
[1442,0,2.2273748006784335,5.7313506553219051,null,0,0,0,null,9.4219773826725431E-2,1.370795353820452,4.1197628691409989,null,0,0,0]
[1443,0,-0.32623527386024942,-0.80524054906873066,null,0,0,0,null,-3.9842145152664953E-2,-0.61395699370860624,-2.2009345935779567,null,0,0,0]
[1444,0,-0.43515935688622814,-0.85414153121876735,null,0,0,0,null,-1.6653951209392288E-2,-0.26963055931047802,-0.96710513566815282,null,0,0,0]
[1445,0,-0.6414856491600458,-2.1758918720048896,null,0,0,0,null,-3.7055536882779107E-2,-0.49926273739327098,-1.2950511395005015,null,0,0,0]
[1446,0,-0.33935770327540921,-0.76566856484353052,null,0,0,0,null,-6.7082204609608884E-3,-0.10747759896108255,-0.53340515887528817,null,0,0,0]
[1447,0,1.819101298298452,4.4577865293901047,null,0,0,0,null,8.7244913244189259E-2,1.2465943285491239,3.4707821050865131,null,0,0,0]
[1448,0,0.16790656667662915,0.59905405823617186,null,0,0,0,null,4.987306484955701E-2,0.61475312836172091,0.84578981149920951,null,0,0,0]
[1449,0,2.2331499881369292,5.7730502565863429,null,0,0,0,null,9.2095299577379428E-2,1.3162905680801369,3.7359132207204055,null,0,0,0]
[1450,0,-0.32755040394301616,-1.0816738088594575,null,0,0,0,null,2.4480033400090976E-2,0.27400443514340533,-2.369677266758663E-2,null,0,0,0]
[1451,0,-1.4240276570822135,-3.8238036644715465,null,0,0,0,null,-3.4352437616621274E-2,-0.54153710307549041,-2.0411805974190758,null,0,0,0]
[1452,0,-1.5560946886142411,-3.8362190384533168,null,0,0,0,null,-1.1917909568198923E-2,-0.34931544490703254,-2.6239774932580731,null,0,0,0]
[1453,0,-5.6017803318618463E-2,-0.15486942618645116,null,0,0,0,null,6.4816011115291478E-2,0.80531603019218345,1.1215659406969534,null,0,0,0]
[1454,0,-0.21983076020393491,-0.36701234411593031,null,0,0,0,null,-6.0919368232035254E-3,-0.13267657120082732,-0.7393008570022066,null,0,0,0]
[1455,0,1.2564339289843538,3.5126422025186113,null,0,0,0,null,3.0489351323637493E-2,0.46400078038348785,1.5997773752419198,null,0,0,0]
[1456,0,0.17514910329643499,0.8858361442443784,null,0,0,0,null,-2.833934655782383E-2,-0.33657873019073214,-0.14985177263027072,null,0,0,0]
[1457,0,-0.91823165941692608,-2.5262436798383061,null,0,0,0,null,-4.4677766561098738E-2,-0.60840401428353375,-1.4527357339653135,null,0,0,0]
[1458,0,1.8208458436025539,4.6970997508103105,null,0,0,0,null,5.5584969038321164E-2,0.87424111275819361,3.2574241678107976,null,0,0,0]
[1459,0,0.53289346004618887,1.0357388806397212,null,0,0,0,null,-5.7934885372851394E-2,-0.61479834909694819,0.27711075876739777,null,0,0,0]
[1460,0,-1.8399817036147723,-4.7324035883989275,null,0,0,0,null,3.6744691566353196E-2,0.30689943395011959,-1.0642056891855645,null,0,0,0]
[1461,0,-1.7890984034075355,-4.4629614331118423,null,0,0,0,null,-1.5579821757588092E-2,-0.38888720138465577,-2.6217306898236568,null,0,0,0]
[1462,0,1.4790759974785015,4.0586394510708415,null,0,0,0,null,1.4577479229985727E-2,0.2558898448992295,1.2762704514798315,null,0,0,0]
[1463,0,1.5090434249358951,4.2737540986750249,null,0,0,0,null,5.3437258659065325E-2,0.80543262667244198,2.7142883644170541,null,0,0,0]
[1464,0,-0.62948911067740121,-1.9807284999304466,null,0,0,0,null,-4.7463433940143317E-2,-0.59791017501913579,-1.0724697271812438,null,0,0,0]
[1465,0,-1.4306513750838568,-3.9652811408106792,null,0,0,0,null,-8.4090419427568577E-2,-1.107998813756023,-2.282740700897095,null,0,0,0]
[1466,0,0.96345376073972877,2.7411912830040164,null,0,0,0,null,3.2001554735081018E-2,0.45174714930188292,1.2514464903340159,null,0,0,0]
[1467,0,-0.76460213056148862,-2.051937404238859,null,0,0,0,null,-4.3236331158302957E-2,-0.5782988142475779,-1.2515849530842389,null,0,0,0]
[1468,0,-0.2979553071451701,-0.49010445840814648,null,0,0,0,null,1.7029012446348019E-3,-4.855368494594859E-2,-0.73641485860682954,null,0,0,0]
[1469,0,1.5802363128043306,4.3034491748791623,null,0,0,0,null,-9.3483755512181689E-4,9.6601250599588642E-2,1.406820389268618,null,0,0,0]
[1470,0,1.6417124901405986,4.7194120919566194,null,0,0,0,null,8.2846494125987824E-2,1.1352864543158439,2.7782523703053483,null,0,0,0]
[1471,0,-0.6533902366632901,-1.3128209266145059,null,0,0,0,null,-2.1563921634801489E-2,-0.3455874551182751,-1.2316367810646189,null,0,0,0]
[1472,0,0.56453595281590241,1.6047763087917337,null,0,0,0,null,2.8942457532072068E-2,0.37114451932688464,0.6141448143824928,null,0,0,0]
[1473,0,-0.82543826154771882,-1.9437182535445536,null,0,0,0,null,-3.9586503445450436E-2,-0.58610486770614811,-1.8628168165417773,null,0,0,0]
[1474,0,-0.94783500425910461,-2.7079204031711268,null,0,0,0,null,-4.145375948806674E-2,-0.55259177257562353,-1.3017946300499716,null,0,0,0]
[1475,0,0.29325701091016343,0.46416741850182736,null,0,0,0,null,3.8746222438207099E-2,0.52807973296309774,1.1575659202135575,null,0,0,0]
[1476,0,0.6211858903018983,1.2743444278070093,null,0,0,0,null,-3.8383367114324815E-2,-0.39839431443427659,0.28742025030924195,null,0,0,0]
[1477,0,0.48671586918047072,1.7186224097862577,null,0,0,0,null,4.610229246103114E-2,0.55760567466220434,0.7439046348636803,null,0,0,0]
[1478,0,-0.78693068544627753,-2.2579797345632033,null,0,0,0,null,2.2841805614493751E-3,-4.0494757617457251E-2,-0.83747005077120407,null,0,0,0]
[1479,0,1.6061634318355809,4.1513862972093847,null,0,0,0,null,4.5581510106032395E-3,0.20567235627007813,1.9285997653548148,null,0,0,0]
[1480,0,1.8389444651216436,4.7179199557180622,null,0,0,0,null,0.10144784425705103,1.4318718672073729,3.8578906908366917,null,0,0,0]
[1481,0,2.1680992443218785,5.902477858491773,null,0,0,0,null,2.3321685132069093E-2,0.41035336399359768,2.0203278646368088,null,0,0,0]
[1482,0,1.5125437567892623,4.1182748317708899,null,0,0,0,null,-4.2208632108873587E-2,-0.40147468592246693,0.8792020107647549,null,0,0,0]
[1483,0,1.4814901070967117,4.0471634508467691,null,0,0,0,null,1.0426345287134211E-2,0.19051543307788144,1.0259574753233136,null,0,0,0]
[1484,0,0.36338867175842277,1.0751807207958772,null,0,0,0,null,5.6544012430368579E-2,0.73064291451775265,1.3589804810666319,null,0,0,0]
[1485,0,2.3041001923353508,6.2154890528449975,null,0,0,0,null,2.9330979060716175E-2,0.46758048402642272,1.8937559664393921,null,0,0,0]
[1486,0,0.19945121999759793,0.85055639440874797,null,0,0,0,null,-1.9241505409376716E-2,-0.22762137941199306,-7.7332865082647917E-2,null,0,0,0]
[1487,0,0.8382468046617978,2.4657078376816064,null,0,0,0,null,-3.478750768886215E-2,-0.3263235815442031,0.77762865550580684,null,0,0,0]
[1488,0,-0.6548231863927686,-1.7562531956141174,null,0,0,0,null,-3.43915748287867E-2,-0.44399340304953694,-0.81082476589065478,null,0,0,0]
[1489,0,-0.33260769798618278,-1.0219301250584394,null,0,0,0,null,-6.9935792853292753E-2,-0.80720648563889241,-0.46721579439471678,null,0,0,0]
[1490,0,-0.23309459057987988,-0.12358145796651661,null,0,0,0,null,9.9965755301401494E-3,0.13416186505663427,0.24605628382999931,null,0,0,0]
[1491,0,-0.24148591716915691,-0.8608277263962737,null,0,0,0,null,2.1701035454729949E-2,0.2455615639860862,3.454203787372899E-2,null,0,0,0]
[1492,0,1.0422247472015989,2.9835209047017708,null,0,0,0,null,-2.0534968475845346E-2,-0.13925584496948612,1.1632545255033584,null,0,0,0]
[1493,0,0.63589589708339189,1.6888767455458438,null,0,0,0,null,1.5673565688245843E-2,0.24523886879799919,0.98255357233037643,null,0,0,0]
[1494,0,0.96738922739310329,2.5819153667654247,null,0,0,0,null,3.2708243206473468E-2,0.47647664050500227,1.463252949911428,null,0,0,0]
[1495,0,0.49596044957202501,1.4596925574459019,null,0,0,0,null,6.5202555111104343E-2,0.8294496342657558,1.4292483179833033,null,0,0,0]
[1496,0,-0.45942690312727064,-1.1596443330762922,null,0,0,0,null,-5.872898926583844E-3,-0.13375184148668359,-0.82752575541569606,null,0,0,0]
[1497,0,1.7703820340855727,4.866697313365643,null,0,0,0,null,7.5715821710165929E-2,1.098733811464067,3.3099301702555275,null,0,0,0]
[1498,0,0.2387954965800618,0.10292543199071952,null,0,0,0,null,6.0149697666952873E-3,7.8302305377260378E-2,8.4234353368192391E-3,null,0,0,0]
[1499,0,-2.0887939770778612,-5.4969792415093686,null,0,0,0,null,-1.8909601121446882E-2,-0.33927196289105266,-1.4958645673250976,null,0,0,0]
[1500,0,1.8876465683614934,4.885739842398551,null,0,0,0,null,3.3544769036152562E-2,0.65514197394835993,3.5319058955559193,null,0,0,0]
[1501,0,-1.510802236354184,-3.6683049416406357,null,0,0,0,null,-1.0347246831514782E-2,-0.24734755698081334,-1.5784473265019769,null,0,0,0]
[1502,0,1.3643994962794004,3.5164433040934382,null,0,0,0,null,1.4548540786402555E-2,0.26662946338475285,1.2497014240196476,null,0,0,0]
[1503,0,1.4875244470478064,4.0985820726105739,null,0,0,0,null,8.4880207602929372E-2,1.1634389792267648,2.8273351305073922,null,0,0,0]
[1504,0,0.89309562930369246,2.4922855895498288,null,0,0,0,null,0.10000333399548976,1.2786563283682844,2.238226623989136,null,0,0,0]
[1505,0,0.20178917157163415,0.57322598314505013,null,0,0,0,null,1.3445219308732532E-2,0.15125800556077501,-6.6954837483026493E-3,null,0,0,0]
[1506,0,0.82092456988804952,2.1694389094987492,null,0,0,0,null,9.0171069487405192E-2,1.1566006299991978,2.0266446099578861,null,0,0,0]
[1507,0,1.4172985269238287,3.8885688749673717,null,0,0,0,null,3.2727538182904026E-2,0.50621005286033049,1.8538874359765287,null,0,0,0]
[1508,0,-0.10334898478993637,0.23360483794301398,null,0,0,0,null,-3.2982580344282045E-2,-0.45677074575281856,-1.0237163960549807,null,0,0,0]
[1509,0,0.50158665913646472,1.6200165597249361,null,0,0,0,null,-3.1252604541476443E-2,-0.30693839074098922,0.55405559374775837,null,0,0,0]
[1510,0,-1.45997620826813,-3.9646616110448014,null,0,0,0,null,-4.1338351312018573E-2,-0.61649062869465165,-2.0196748290001558,null,0,0,0]
[1511,0,-0.25684249722771713,-0.74333085022890732,null,0,0,0,null,2.1046447611099268E-2,0.20361022803505147,-0.36383594199351865,null,0,0,0]
[1512,0,-0.59780192374962093,-1.8088192264601022,null,0,0,0,null,1.0397216448476968E-2,6.8409264790022462E-2,-0.67217534819856883,null,0,0,0]
[1513,0,-2.8912278418114181,-7.4380520491081441,null,0,0,0,null,-0.10461708599957627,-1.4421510710655685,-3.4757482875845636,null,0,0,0]
[1514,0,-0.84312319565359573,-2.4059239625455158,null,0,0,0,null,7.4387728528724894E-3,2.3392367561077664E-2,-0.7616883316518106,null,0,0,0]
[1515,0,-0.15792487639590763,-8.7237363574669866E-2,null,0,0,0,null,-2.8641997009635191E-2,-0.37682744969388021,-0.64732477158313118,null,0,0,0]
[1516,0,-0.38998073933499111,-0.91205768609545335,null,0,0,0,null,-2.9963200733813665E-2,-0.45166798148137333,-1.6191483065666217,null,0,0,0]
[1517,0,1.766558472999801,4.7377433469125245,null,0,0,0,null,-1.7565909371822612E-2,-6.6097319990723005E-2,1.6804900006474164,null,0,0,0]
[1518,0,-0.72519428862076896,-2.0530405339194329,null,0,0,0,null,1.2697653749629069E-2,0.10038414307906078,-0.49234125691858205,null,0,0,0]
[1519,0,-0.38821254580745335,-0.89198191266947835,null,0,0,0,null,-2.5847952824761366E-3,-6.3098220288025919E-2,-0.53893931873582546,null,0,0,0]
[1520,0,-0.93022774003902309,-2.2409724841755159,null,0,0,0,null,-3.9746389550679113E-2,-0.58104129271150029,-1.8024586245774736,null,0,0,0]
[1521,0,-0.17807605935275023,-0.43949570717335884,null,0,0,0,null,-1.0202794963349618E-2,-0.1678997289470617,-0.77595228126722215,null,0,0,0]
[1522,0,-1.0081273600542864,-3.169879820966111,null,0,0,0,null,-3.1137577077273475E-2,-0.45160414666649468,-1.4769821570564563,null,0,0,0]
[1523,0,-1.4573259973592849,-4.5152269392869275,null,0,0,0,null,4.0041001768220841E-2,0.35093447785370246,-1.20340137841658,null,0,0,0]
[1524,0,-0.10896739090742449,-0.43188340910190165,null,0,0,0,null,2.7799187739110779E-2,0.34388587084706979,0.41379805892836519,null,0,0,0]
[1525,0,1.4404075245961159,3.9125215267244711,null,0,0,0,null,1.8813819310386351E-2,0.29436100163907669,1.1652883180261671,null,0,0,0]
[1526,0,-0.14076544890086551,-0.10876179785968271,null,0,0,0,null,8.1790858569347046E-3,3.8215822760515036E-2,-0.55407686263962752,null,0,0,0]
[1527,0,-0.48997028606049386,-1.2713250116370836,null,0,0,0,null,-1.7513112615139392E-2,-0.28259388458448209,-1.2654334910011966,null,0,0,0]
[1528,0,-0.97750806331052076,-2.7414184977681799,null,0,0,0,null,6.3780870100549694E-4,-0.12370980965882791,-1.6871043470252081,null,0,0,0]
[1529,0,1.1714273042356071,3.2800676126223696,null,0,0,0,null,-2.155050281093162E-2,-0.13829810103623458,1.2997203116968121,null,0,0,0]
[1530,0,1.1955621578541067,3.3342024489012982,null,0,0,0,null,1.0013167551945173E-2,0.19279799116827417,1.1009558993132269,null,0,0,0]
[1531,0,0.25061792013208833,0.83456760468881841,null,0,0,0,null,5.4086995605157145E-2,0.676020233786091,1.0412714909058596,null,0,0,0]
[1532,0,2.8600599123361461E-2,0.65566266637601078,null,0,0,0,null,2.3867881011114946E-2,0.23532881852285845,-0.45921715391859835,null,0,0,0]
[1533,0,2.0030360225685033,5.2455328453024705,null,0,0,0,null,-1.3572707796382132E-3,0.17803049175507932,2.4050261323217308,null,0,0,0]
[1534,0,-1.6442268549643868,-3.9997379682566825,null,0,0,0,null,-3.0624000256131011E-2,-0.41513027420493293,-0.72952379420373836,null,0,0,0]
[1535,0,1.1674530877275828,2.9851791261187319,null,0,0,0,null,-2.8836750626548054E-2,-0.29140933483776188,0.35651123204064061,null,0,0,0]
[1536,0,-0.31170657631436555,-1.33135714538076,null,0,0,0,null,-2.7744085417416558E-2,-0.36466729160459088,-0.87891598243340918,null,0,0,0]
[1537,0,-0.61998730510383393,-1.4939009967827006,null,0,0,0,null,-2.0752758478405839E-2,-0.25605017851790307,-0.30383454253227321,null,0,0,0]
[1538,0,-0.72422002985777367,-2.491249342779156,null,0,0,0,null,-3.9647707754791726E-2,-0.51334017496187334,-1.1105193338599748,null,0,0,0]
[1539,0,-3.0429763484445922,-7.8708929143090502,null,0,0,0,null,-9.1474517345227241E-2,-1.3462216962388767,-4.0503153579500832,null,0,0,0]
[1540,0,-0.74025311180038988,-2.5124874712841558,null,0,0,0,null,-2.2324848369479695E-2,-0.31909090476527219,-1.0779073337020382,null,0,0,0]
[1541,0,-1.0745081627910367,-2.8202273670469293,null,0,0,0,null,6.0492866001176249E-3,-3.6645384923417623E-2,-1.2692311092416821,null,0,0,0]
[1542,0,-0.16529863308488713,-0.51296867666963231,null,0,0,0,null,-1.5038242550127166E-2,-0.15184174209908724,0.16996621910352042,null,0,0,0]
[1543,0,0.51733013151317575,0.99838689216048082,null,0,0,0,null,-6.0414921008006731E-2,-0.63900456330732869,0.31400089208332793,null,0,0,0]
[1544,0,1.2621664466063012,3.4651120968289835,null,0,0,0,null,2.645582875232691E-2,0.41598226116671505,1.5901688024562173,null,0,0,0]
[1545,0,0.34745069197976775,0.56102289208947331,null,0,0,0,null,2.1584559655042936E-2,0.3253983326946136,0.95516183641436869,null,0,0,0]
[1546,0,1.1919513538979662,3.2593511256324343,null,0,0,0,null,5.3566907743125912E-2,0.75049971272438964,1.9581852992064779,null,0,0,0]
[1547,0,0.97157292616285851,3.0760513813850849,null,0,0,0,null,1.8407861514293019E-2,0.28286414227589102,1.0616132412422377,null,0,0,0]
[1548,0,-0.29399776104969533,-0.97296880504289585,null,0,0,0,null,2.3730399486760576E-2,0.27572099725617866,0.10833866570435929,null,0,0,0]
[1549,0,1.7232492067060101,4.4223191644794646,null,0,0,0,null,5.8960801801385687E-2,0.89325333035538557,3.0264916317764912,null,0,0,0]
[1550,0,-0.71893673904680688,-1.6440322677619916,null,0,0,0,null,-1.0719302137805982E-2,-0.24104964834263046,-1.5544352533457968,null,0,0,0]
[1551,0,-0.23054227089516463,-0.30864192545143304,null,0,0,0,null,-4.1683775237287536E-2,-0.48457571563678448,-0.32024571560105686,null,0,0,0]
[1552,0,-3.0816464987496728,-7.9652898199631821,null,0,0,0,null,-9.5963747937505964E-2,-1.3598812559730378,-3.6218098806986854,null,0,0,0]
[1553,0,-1.0269475731485509,-3.4482644704532577,null,0,0,0,null,-3.8234015511990779E-2,-0.54372641795734122,-1.7173841194819579,null,0,0,0]
[1554,0,0.77610550844389758,2.0161378188615999,null,0,0,0,null,9.2987434381223866E-2,1.2024902958036627,2.2165106635286831,null,0,0,0]
[1555,0,-0.4501007919657859,-1.396426576233178,null,0,0,0,null,1.2473243675395736E-2,0.10451752426992517,-0.48022109401027047,null,0,0,0]
[1556,0,0.57813771621456722,1.5756277729793946,null,0,0,0,null,2.3069269089842463E-2,0.3060863720535672,0.60428634969383344,null,0,0,0]
[1557,0,-1.3133345100853475,-3.3182278800805869,null,0,0,0,null,-4.2762785369239109E-2,-0.68045806176263524,-2.6763914138312939,null,0,0,0]
[1558,0,1.7606204754439549,4.5846881313501582,null,0,0,0,null,-6.4021106922064631E-3,0.1206439923140797,2.358887862915668,null,0,0,0]
[1559,0,-0.84604665624672637,-2.3457054873886953,null,0,0,0,null,-5.8851410532746229E-2,-0.74348770863405567,-1.1845256084862048,null,0,0,0]
[1560,0,0.83905844048024669,2.6522816917513339,null,0,0,0,null,2.4300770480928519E-2,0.35457868701124245,1.1198114451314141,null,0,0,0]
[1561,0,-1.575453821767751,-4.8045244076455713,null,0,0,0,null,-8.5782355927089497E-3,-0.19925051762388102,-1.4081920714136287,null,0,0,0]
[1562,0,0.76733946233329697,2.3084304640318658,null,0,0,0,null,1.1128000702747045E-2,0.16132990061565577,0.59899254408229174,null,0,0,0]
[1563,0,-1.8039762850832868,-4.6266112239684301,null,0,0,0,null,-4.4259141342268944E-2,-0.63381757383892456,-1.6197174258383567,null,0,0,0]
[1564,0,0.49892788174993441,1.6520457106522664,null,0,0,0,null,-2.82730957180608E-2,-0.28273626851729566,0.45452781213992421,null,0,0,0]
[1565,0,-0.35745299637566313,-0.99392832204785375,null,0,0,0,null,-1.7656987195810131E-2,-0.20201115890810162,-8.8520299618521675E-2,null,0,0,0]
[1566,0,-0.51001930419359454,-1.2308167140015358,null,0,0,0,null,-4.737193726717521E-3,-0.14665927907410059,-1.2703419766401167,null,0,0,0]
[1567,0,0.9073051014595348,2.5789966952095709,null,0,0,0,null,3.5490611212953584E-2,0.50651231492074478,1.4506535620204994,null,0,0,0]
[1568,0,-1.8659359865660698,-5.4952299360687178,null,0,0,0,null,1.9077467630054856E-2,0.11202252660627528,-1.2790547107801249,null,0,0,0]
[1569,0,-1.4399294755823848,-4.4342199482290887,null,0,0,0,null,2.1377722395074556E-3,-0.1251170093399096,-1.9543890230903818,null,0,0,0]
[1570,0,-0.95576960470681482,-2.568927520517529,null,0,0,0,null,-5.5982623213824412E-2,-0.72507593834515771,-1.3618644122876977,null,0,0,0]
[1571,0,-0.31092712583890536,-1.4354885439590652,null,0,0,0,null,-4.7058744337106988E-2,-0.56251844429221642,-0.74235772507406728,null,0,0,0]
[1572,0,-8.8756770327754572E-2,8.6461405568814376E-2,null,0,0,0,null,-4.3104613814670303E-2,-0.57054980101563613,-1.08598947790877,null,0,0,0]
[1573,0,0.57312438730163739,1.5266529380443534,null,0,0,0,null,1.8862201324343176E-2,0.24766704994789687,0.45785514593811605,null,0,0,0]
[1574,0,-0.17928884589293739,-0.52563352669401497,null,0,0,0,null,1.8574229861263516E-2,0.1796357439495814,-0.32329930223520204,null,0,0,0]
[1575,0,-2.8648531779558417,-7.3844754200818459,null,0,0,0,null,-7.276274540518364E-2,-1.0662963913838093,-3.1430193526499353,null,0,0,0]
[1576,0,-5.6662550566636126E-2,0.1542319365661533,null,0,0,0,null,-1.2230441750547187E-2,-0.19022221624807661,-0.77638209639141131,null,0,0,0]
[1577,0,-0.50869564656483812,-0.83858900870627262,null,0,0,0,null,3.9983225313029039E-3,-2.4646309085285794E-2,-0.71166968931928209,null,0,0,0]
[1578,0,-1.3556931402681802,-3.6661602186884918,null,0,0,0,null,-8.5033312400695879E-2,-1.0977004843149052,-1.9976749663878255,null,0,0,0]
[1579,0,1.5890031962156719,4.5307991466649478,null,0,0,0,null,7.1737352724452016E-2,1.0206940748515272,2.8757612251841311,null,0,0,0]
[1580,0,0.8186374073222723,2.3583670727170611,null,0,0,0,null,-3.2973785942385515E-2,-0.51826259598752134,-1.9121538165609053,null,0,0,0]
[1581,0,-0.33842373522445268,-0.99609855832586613,null,0,0,0,null,-2.7545383146621076E-2,-0.30261059655610917,1.5219580389144539E-2,null,0,0,0]
[1582,0,1.5768931933462917,4.4219142241247535,null,0,0,0,null,-1.8289981120986509E-2,-6.1249354859830421E-2,1.8129010093151119,null,0,0,0]
[1583,0,0.56441026426307872,1.6051468360546932,null,0,0,0,null,3.2877355145215517E-2,0.42384658319528534,0.71006187833804502,null,0,0,0]
[1584,0,-0.10981363189576586,-0.25549437689744808,null,0,0,0,null,-4.6255102847501291E-2,-0.69009367350272532,-2.2926855383528419,null,0,0,0]
[1585,0,0.38945264489256626,1.332934303492846,null,0,0,0,null,-8.6648570597403426E-2,-1.019054478389954,-0.81733217313492423,null,0,0,0]
[1586,0,-1.595769548942426,-4.2924796731289749,null,0,0,0,null,-4.172486130751378E-2,-0.65148773901193546,-2.4054287361330426,null,0,0,0]
[1587,0,-0.11754207221251455,-8.9334612156584628E-2,null,0,0,0,null,-2.0486988057774796E-2,-0.26448666231115658,-0.59161689672888673,null,0,0,0]
[1588,0,1.5090434249358951,4.2737540986750249,null,0,0,0,null,5.3437258659065325E-2,0.80543262667244198,2.7142883644170541,null,0,0,0]
[1589,0,0.62487759512285268,1.2927787061387135,null,0,0,0,null,-1.1998223235199305E-2,-7.0285705833556672E-2,0.75527747068880491,null,0,0,0]
[1590,0,-0.83110592220590118,-2.4451590513963164,null,0,0,0,null,-1.6536052315292694E-2,-0.25964797565341724,-1.0464411623769738,null,0,0,0]
[1591,0,-1.8862943920126363,-4.7688449514646489,null,0,0,0,null,-1.9509429395096502E-2,-0.38033363622260641,-1.8972162570961699,null,0,0,0]
[1592,0,0.40522967636328938,0.68646461150510008,null,0,0,0,null,-6.6769022365089886E-2,-0.73179262029300574,2.8311540935788797E-2,null,0,0,0]
[1593,0,1.6313034906590056,4.5524989376752707,null,0,0,0,null,-2.1076941821065644E-2,-9.1474513674541416E-2,1.8180779159490121,null,0,0,0]
[1594,0,1.9635641902241333E-2,0.37332705634598823,null,0,0,0,null,-5.9997957445412281E-2,-0.66548083233907351,-0.11194401434836618,null,0,0,0]
[1595,0,-0.43515935688622814,-0.85414153121876735,null,0,0,0,null,-1.6653951209392288E-2,-0.26963055931047802,-0.96710513566815282,null,0,0,0]
[1596,0,2.0381518711218778,5.2951929746984456,null,0,0,0,null,9.8376154352535258E-2,1.4020297628154959,3.9491679051637476,null,0,0,0]
[1597,0,-0.66000511924510652,-1.9526731518358937,null,0,0,0,null,8.5818810635198875E-2,1.159019621422307,2.5717042805144628,null,0,0,0]
[1598,0,-0.67393504055379894,-1.9926662497523431,null,0,0,0,null,4.3975413092541661E-3,-2.9113707986130066E-2,-1.0432162535987044,null,0,0,0]
[1599,0,-1.3645187602520983,-3.7492653722020695,null,0,0,0,null,-8.3290904751374573E-2,-1.1035254016066711,-2.3331423568744794,null,0,0,0]
[1600,0,-1.2109778440017871,-3.5296476495116296,null,0,0,0,null,-3.09399899794916E-2,-0.45537809901912352,-1.504422526946928,null,0,0,0]
[1601,0,1.080377701945612,2.8575322631221569,null,0,0,0,null,1.2268844758409841E-2,0.26307029447919106,1.686666957904541,null,0,0,0]
[1602,0,-8.4596328911737143E-2,-0.36711722099611505,null,0,0,0,null,2.2831500166887623E-2,0.28330711395115121,0.34370742546386102,null,0,0,0]
[1603,0,-0.232593357400252,-0.37329427138379107,null,0,0,0,null,-3.8447763434938567E-2,-0.42790272515353261,-7.2656724284155649E-2,null,0,0,0]
[1604,0,-1.1238452742933551,-2.8025474567821655,null,0,0,0,null,-3.6346518339322412E-2,-0.60320765705426949,-2.6318856166966396,null,0,0,0]
[1605,0,2.195959274267425,5.9612363455264061,null,0,0,0,null,3.2806298073457467E-2,0.53183730369704785,2.2236062028965242,null,0,0,0]
[1606,0,0.84823078145701769,2.1895018678660199,null,0,0,0,null,-2.9561761724867779E-3,4.4026105852796718E-2,1.035560114893844,null,0,0,0]
[1607,0,-1.0076394395203516,-2.9443032034970673,null,0,0,0,null,4.6040466662084899E-3,-6.1237556818675327E-2,-1.4455139896871332,null,0,0,0]
[1608,0,-1.8588608029030529,-5.4146717849869015,null,0,0,0,null,2.8212704406628233E-2,0.24281736024529618,-0.88542308514168322,null,0,0,0]
[1609,0,1.287350876894896,3.6008700738004262,null,0,0,0,null,-1.3882263042276407E-2,-3.8255278807649118E-2,1.4970656850947308,null,0,0,0]
[1610,0,-0.23502690733460621,1.9234707416493621E-2,null,0,0,0,null,9.1331036716052836E-3,7.0719293543369532E-2,-0.45810270863766345,null,0,0,0]
[1611,0,-0.47171546801231673,-1.1224046129930139,null,0,0,0,null,3.4300569713594767E-3,9.1190052709871454E-3,-0.4515017369775487,null,0,0,0]
[1612,0,-0.76183677179889309,-2.0744759119424199,null,0,0,0,null,-3.9091462491189759E-3,-6.0087248976538832E-2,-0.23412654598631344,null,0,0,0]
[1613,0,-0.33632989251855178,-0.80212914119334888,null,0,0,0,null,-2.1560275586008346E-2,-0.34699421265233921,-1.4758198872636676,null,0,0,0]
[1614,0,0.53648957705831524,1.2154089949557019,null,0,0,0,null,2.1890917897267229E-2,0.31634038096705719,0.99334192862743653,null,0,0,0]
[1615,0,-1.3524408761282867,-3.4055284258461977,null,0,0,0,null,-2.6481971210610654E-2,-0.46158558059077859,-2.2101311630952551,null,0,0,0]
[1616,0,1.3524781015103853,3.466967600340555,null,0,0,0,null,3.3584723141287325E-3,8.5030165038929226E-2,0.63802303038229002,null,0,0,0]
[1617,0,1.2979406242729965,3.5836142526201584,null,0,0,0,null,6.8545546584581812E-2,0.94687383665455305,2.3538745862154102,null,0,0,0]
[1618,0,-0.12700343860582872,-0.20589346428666613,null,0,0,0,null,6.6170187130140338E-3,4.6328473191862937E-2,-0.43716285804254224,null,0,0,0]
[1619,0,0.67427800468441279,1.7583157304841297,null,0,0,0,null,7.7249615906687205E-2,0.99981099427870868,1.8507269459770068,null,0,0,0]
[1620,0,-0.26283487413125478,-0.76427520474018096,null,0,0,0,null,1.5063385836394957E-2,0.13254601690471282,-0.4262387340542555,null,0,0,0]
[1621,0,-3.0816464987496728,-7.9652898199631821,null,0,0,0,null,-9.5963747937505964E-2,-1.3598812559730378,-3.6218098806986854,null,0,0,0]
[1622,0,-0.33240978454757714,-1.382538025745438,null,0,0,0,null,5.0880595891528227E-2,0.67572503672377204,1.34574429770614,null,0,0,0]
[1623,0,1.9209126269279113,4.9982607819837144,null,0,0,0,null,8.8170665631882403E-2,1.2742357706957246,3.7281908810072966,null,0,0,0]
[1624,0,1.2096932221820189,3.6535416747915805,null,0,0,0,null,9.7874997616736154E-2,1.2645896481145846,2.4760672205370611,null,0,0,0]
[1625,0,-1.573959623427476,-4.793687802120032,null,0,0,0,null,-2.7439564018982877E-3,-0.19825121330287676,-2.1890430301497292,null,0,0,0]
[1626,0,0.59663435108633889,1.911770971146485,null,0,0,0,null,-2.8830012081111647E-2,-0.28710974565379638,0.47441637059465208,null,0,0,0]
[1627,0,-9.4380577745840133E-2,2.5618929123738779E-3,null,0,0,0,null,8.1790858569348191E-3,4.4359547218290572E-2,-0.48035216914633566,null,0,0,0]
[1628,0,-0.66106411780639973,-2.4783412490710908,null,0,0,0,null,-6.8609051676400953E-2,-0.92884574925832841,-2.2526167667887496,null,0,0,0]
[1629,0,-2.6305570802813945,-6.7860012105695713,null,0,0,0,null,-4.696448528053554E-2,-0.71657513652627769,-2.3681019460997157,null,0,0,0]
[1630,0,-0.84477671366173124,-2.8638445968785673,null,0,0,0,null,-7.4755474894556473E-2,-1.0200991106308621,-2.5373156782399855,null,0,0,0]
[1631,0,1.0076574432226335,2.7672335278673201,null,0,0,0,null,9.9765086685671914E-3,0.19217126978074975,0.99654693070314893,null,0,0,0]
[1632,0,0.4521198756907579,1.023066009349779,null,0,0,0,null,1.2758877802035499E-2,0.20792414922664193,0.88816545497869448,null,0,0,0]
[1633,0,1.3393735040892079,3.4912715616243224,null,0,0,0,null,1.6531240466736676E-2,0.32240884988842572,1.6581055675416574,null,0,0,0]
[1634,0,-0.26283487413125478,-0.76427520474018096,null,0,0,0,null,1.5063385836394957E-2,0.13254601690471282,-0.4262387340542555,null,0,0,0]
[1635,0,0.84054201341626322,2.7615771907932505,null,0,0,0,null,1.7200599658331556E-2,0.26872596763485945,1.0829277498220145,null,0,0,0]
[1636,0,0.97617975514442878,2.8192675942931165,null,0,0,0,null,1.8191999057604904E-2,0.26458779851254532,0.9132182712242356,null,0,0,0]
[1637,0,-1.7395493551497838,-4.3756947901703898,null,0,0,0,null,-1.3777827791024776E-2,-0.24237027423755081,-0.94658087494886423,null,0,0,0]
[1638,0,1.6551073866583501,4.348337703813784,null,0,0,0,null,-1.3114679270843567E-2,3.4918199270526203E-2,2.2420975039508884,null,0,0,0]
[1639,0,-0.54744025291230713,-0.9510756242874413,null,0,0,0,null,-5.6469686580778106E-3,-0.130971810315752,-0.71852156805404233,null,0,0,0]
[1640,0,-1.4326872333356677,-3.7277862564210444,null,0,0,0,null,5.7834417002181171E-2,0.65941580609665562,0.27763714708205589,null,0,0,0]
[1641,0,1.0330488860270925,2.8017746574753475,null,0,0,0,null,-1.1070740083887927E-3,4.7233903514202209E-2,0.82127060763002735,null,0,0,0]
[1642,0,-9.363655963832207E-2,-3.3782116216949362E-2,null,0,0,0,null,-1.9229812036428429E-2,-0.30689345218196284,-1.1923527226248807,null,0,0,0]
[1643,0,1.8314814345598569,5.083683153843471,null,0,0,0,null,7.579308259165321E-2,1.1233466045090945,3.565708635534258,null,0,0,0]
[1644,0,1.4244674211847341,3.8167280296275057,null,0,0,0,null,9.7466189547055822E-3,0.16904295249126425,0.82975887531922854,null,0,0,0]
[1645,0,-0.13750059407887785,0.16151353900028334,null,0,0,0,null,1.43409687046518E-2,0.14502969968451451,-0.22027818348229267,null,0,0,0]
[1646,0,-1.4607249640049977,-3.9066887963256085,null,0,0,0,null,-5.236362529362458E-2,-0.73403548985147515,-1.9883505311405569,null,0,0,0]
[1647,0,1.8246208574770262,4.6888117237621847,null,0,0,0,null,4.0130079915284736E-2,0.7279453659357259,3.5268938761620627,null,0,0,0]
[1648,0,1.0568016409357788,3.2212143730646421,null,0,0,0,null,2.3198645975603314E-2,0.34251552060757423,1.1235068879434147,null,0,0,0]
[1649,0,1.1466348609853103,3.144103642399219,null,0,0,0,null,0.10221761184694453,1.3458438289296364,2.7695110643016561,null,0,0,0]
[1650,0,1.5978691110225154,4.1895715056823173,null,0,0,0,null,1.6411984697329216E-2,0.39882606668505921,2.7095160265417109,null,0,0,0]
[1651,0,-0.99751400988782735,-3.1850823008972582,null,0,0,0,null,-2.5557288151889908E-2,-0.37929976305874064,-1.3481402204101178,null,0,0,0]
[1652,0,-0.40953586712494328,-0.92673706193186811,null,0,0,0,null,-8.924421517663688E-3,-0.17685538123111655,-0.92724496345466834,null,0,0,0]
[1653,0,1.570997921719445,4.0319764002603984,null,0,0,0,null,3.7705938213327384E-3,0.2098357272714011,2.0790554781754107,null,0,0,0]
[1654,0,0.20664123771397863,1.4667341114109149E-3,null,0,0,0,null,1.8910081631978187E-2,0.24996111407888294,0.37586439118512133,null,0,0,0]
[1655,0,-0.231274694520509,-0.31282401846789437,null,0,0,0,null,-4.7137891171322846E-2,-0.62145521226830536,-1.1733976529454813,null,0,0,0]
[1656,0,1.7161975869138841,4.9519222534094949,null,0,0,0,null,9.0124498382739768E-2,1.2514072136681433,3.2186972224035961,null,0,0,0]
[1657,0,-1.5270093928526312,-3.9420666850259511,null,0,0,0,null,8.4704775862262008E-2,0.92604599337688975,8.3500042602794561E-2,null,0,0,0]
[1658,0,-0.71123534972450575,-2.4463514592311983,null,0,0,0,null,-3.1328493214085651E-2,-0.431653632884756,-1.2683543765081196,null,0,0,0]
[1659,0,1.2262533407678711,3.3560912440850079,null,0,0,0,null,3.9209587789991077E-2,0.55824069985080405,1.6246106485305063,null,0,0,0]
[1660,0,0.11770314914317896,0.65436102435814969,null,0,0,0,null,-2.246648942094356E-2,-0.27663418121463929,-0.23978859718756576,null,0,0,0]
[1661,0,-0.10334898478993637,0.23360483794301398,null,0,0,0,null,-3.2982580344282045E-2,-0.45677074575281856,-1.0237163960549807,null,0,0,0]
[1662,0,-1.2365038102021735,-3.3662254569976939,null,0,0,0,null,1.2363215298587988E-3,-0.12461687820032694,-1.7670825980726259,null,0,0,0]
[1663,0,0.97301007517065952,2.5954054014315697,null,0,0,0,null,3.0919306992569829E-2,0.45941720820854787,1.5038370764117572,null,0,0,0]
[1664,0,1.3690732094941522,3.510416922933655,null,0,0,0,null,5.8883199221606329E-3,0.15849289191096158,1.108619930075325,null,0,0,0]
[1665,0,0.3893323229302223,1.0499088205635998,null,0,0,0,null,1.2258903330291218E-2,0.17987361617922851,0.65039603940985402,null,0,0,0]
[1666,0,1.9247498050535814,4.9910133816083402,null,0,0,0,null,-2.3558610297705059E-2,-7.8058824449241906E-2,2.2525236941074218,null,0,0,0]
[1667,0,1.877264571056432,4.7527491359223273,null,0,0,0,null,0.10160442509921797,1.4313005321289738,3.8605901134429734,null,0,0,0]
[1668,0,-1.422976399909905,-4.4139694819439832,null,0,0,0,null,4.7571359277186274E-2,0.45966778491866261,-0.89079680598960842,null,0,0,0]
[1669,0,-0.74413914070034293,-2.3406313623253152,null,0,0,0,null,-6.0701462882485034E-2,-0.78316728433361005,-1.5472761785360709,null,0,0,0]
[1670,0,-0.86814965909313102,-2.4880988824228405,null,0,0,0,null,-3.5194594089181408E-2,-0.48334280344568015,-1.2987342453404489,null,0,0,0]
[1671,0,1.7579267379828853,4.5495013355449334,null,0,0,0,null,5.8432905346466842E-2,0.91406584089995702,3.357329023890423,null,0,0,0]
[1672,0,-2.0826771609798015E-2,-0.3785595374756085,null,0,0,0,null,5.9953298534798645E-2,0.78961880027444209,1.4787040128304252,null,0,0,0]
[1673,0,-0.51654574445755497,-1.4046397488338263,null,0,0,0,null,-7.6302406114732548E-3,-7.6648075835851162E-2,0.11589429549633497,null,0,0,0]
[1674,0,-1.4885662047005062,-3.8780492094131405,null,0,0,0,null,6.3648191405067736E-2,0.68417947289858516,-0.10501864561176989,null,0,0,0]
[1675,0,-1.0451242835919365,-2.7109763030739269,null,0,0,0,null,3.0821081359594586E-3,-7.4114733746121597E-2,-1.3119061555396874,null,0,0,0]
[1676,0,-2.1234755476273603,-5.5721203606683343,null,0,0,0,null,-2.1897009747940444E-2,-0.3949239246940624,-1.737317964555088,null,0,0,0]
[1677,0,-1.3415808014346422,-3.6785678154310881,null,0,0,0,null,-3.8351309931225902E-2,-0.57989251818414778,-1.9775993795634059,null,0,0,0]
[1678,0,-0.67514644499495624,-1.3869644010886113,null,0,0,0,null,-3.6896004885075287E-2,-0.5505666713035825,-1.6824792368542112,null,0,0,0]
[1679,0,-1.7838069872499747,-5.3175449551755296,null,0,0,0,null,2.3046877439796106E-2,0.18888320433923128,-0.92439079661338108,null,0,0,0]
[1680,0,0.44703039507213177,1.2180898862374379,null,0,0,0,null,1.4709531108179078E-2,0.20722439771168774,0.653318456488716,null,0,0,0]
[1681,0,-0.78243387704859557,-2.1618099153082584,null,0,0,0,null,5.7969809910061376E-3,-1.708106643033807E-2,-1.0347242125019256,null,0,0,0]
[1682,0,-0.79765343599511107,-2.2091735120951634,null,0,0,0,null,5.4433200806868736E-3,-1.7696299330989859E-2,-1.0066966784788782,null,0,0,0]
[1683,0,1.638225366039016,4.4790243794205526,null,0,0,0,null,-2.174847967921812E-2,-0.10591728317693469,1.7096774539411126,null,0,0,0]
[1684,0,1.1885724615675244,3.0544722405025242,null,0,0,0,null,-3.854868414409901E-2,-0.40940146673089201,0.20908044588936173,null,0,0,0]
[1685,0,1.1714273042356107,3.2800676126223771,null,0,0,0,null,-2.0837880671457584E-2,-0.13198328331324954,1.2755201239199123,null,0,0,0]
[1686,0,-2.8279817396193847,-7.3012371008666817,null,0,0,0,null,-9.3213444678980698E-2,-1.3238437941016901,-3.5827528725801132,null,0,0,0]
[1687,0,-1.9646989646622788,-5.5355261845471615,null,0,0,0,null,2.3975086938769381E-2,0.1526583145372806,-1.3838259173157421,null,0,0,0]
[1688,0,0.7309248837575214,1.9568649153163933,null,0,0,0,null,2.0100737118893618E-2,0.31973512687403399,1.3179426770153804,null,0,0,0]
[1689,0,-2.7446582662117143,-7.2714543047660989,null,0,0,0,null,-7.4674623385519515E-2,-1.1298305952300078,-3.6842777099972954,null,0,0,0]
[1690,0,-1.5067992607767975,-3.9492773622973254,null,0,0,0,null,5.4255523992223574E-2,0.54759524135767335,-0.51913141148963404,null,0,0,0]
[1691,0,-1.5134852324339336,-4.0302897781351712,null,0,0,0,null,-5.0923567668443408E-2,-0.71205434280288593,-1.9073782429029962,null,0,0,0]
[1692,0,-1.532836470065984,-4.6922661710505924,null,0,0,0,null,-5.5504759388289244E-3,-0.22091329938516263,-2.0870017721213734,null,0,0,0]
[1693,0,0.47153236799442494,1.351946002289893,null,0,0,0,null,7.0517272446169676E-2,0.89906226258988231,1.5685241833928703,null,0,0,0]
[1694,0,-1.3447376991959428,-3.643290884385773,null,0,0,0,null,1.3252457825741316E-2,2.8979806557913435E-2,-1.4760211648797412,null,0,0,0]
[1695,0,1.8510618620497481,4.9763905707689844,null,0,0,0,null,-1.3995412333621175E-2,-1.8405981395758317E-2,1.7705672333931397,null,0,0,0]
[1696,0,-1.4150555476072513,-3.6363160489845106,null,0,0,0,null,7.7056060292279599E-2,0.91560046482619595,0.82781805177006751,null,0,0,0]
[1697,0,-1.4251027930631535,-4.3950359676461526,null,0,0,0,null,1.6194792630534551E-2,8.4560300760907009E-2,-1.2766962937802964,null,0,0,0]
[1698,0,-0.19288424232112994,-0.27024726489091699,null,0,0,0,null,-1.6341898246392077E-2,-0.30201001241510766,-1.516995033641775,null,0,0,0]
[1699,0,1.5650749646437854,4.2134716729626449,null,0,0,0,null,-1.6447767903752946E-2,-3.4747846922324244E-2,1.8434210436122631,null,0,0,0]
[1700,0,1.0559730849837488,2.9435886055570006,null,0,0,0,null,4.2099264255499688E-2,0.60866379238650459,1.8048718118554425,null,0,0,0]
[1701,0,-0.21144995802442282,-0.3686965589839456,null,0,0,0,null,-8.4267277165729973E-3,-0.16358820362645018,-0.81207886413542296,null,0,0,0]
[1702,0,0.97805002217722536,2.8184605437600405,null,0,0,0,null,3.6865651004405094E-2,0.53770288559869639,1.6234994542458554,null,0,0,0]
[1703,0,-0.28027374962646356,-1.2774625322428184,null,0,0,0,null,-3.1459726147500019E-2,-0.40384295724234381,-0.84750270535582239,null,0,0,0]
[1704,0,0.67435156630120041,1.7699596550029746,null,0,0,0,null,2.8985247713497414E-3,0.11247347826626174,1.0809307181037802,null,0,0,0]
[1705,0,-0.57567350482984514,-1.643760198606411,null,0,0,0,null,-7.5540417160145409E-2,-0.91061288087761383,-0.98168331088466587,null,0,0,0]
[1706,0,-1.4394459640065762,-4.433517668344706,null,0,0,0,null,2.5806545788521474E-2,0.19628870614602784,-1.1808178921444268,null,0,0,0]
[1707,0,1.0828787672516829,2.9417587466006663,null,0,0,0,null,3.2871067173133039E-2,0.49519151283189694,1.6994616643396403,null,0,0,0]
[1708,0,0.71473379134497739,1.8603801704665894,null,0,0,0,null,9.2123681636942081E-2,1.1763228586951526,2.0155905652557231,null,0,0,0]
[1709,0,2.6527276436630928E-2,0.21454992544090054,null,0,0,0,null,2.0566218738096269E-2,0.230750092851119,-3.9601033062972423E-3,null,0,0,0]
[1710,0,1.7425559234088597,4.4927293266366908,null,0,0,0,null,5.5130261841098503E-2,0.84849518573396743,2.9997538546325266,null,0,0,0]
[1711,0,1.1810658724121659,3.2390107038084026,null,0,0,0,null,3.6696290843980309E-2,0.546814578714233,1.8272220740077354,null,0,0,0]
[1712,0,-1.7354411833329868,-4.31869252974783,null,0,0,0,null,-1.0696878413922093E-2,-0.31286811419749483,-2.3432069019781157,null,0,0,0]
[1713,0,1.4875244470478064,4.0985820726105739,null,0,0,0,null,8.4880207602929372E-2,1.1634389792267648,2.8273351305073922,null,0,0,0]
[1714,0,1.46224213604334,4.3932261604841774,null,0,0,0,null,0.10875682515872864,1.4315354735785359,3.0762246292857962,null,0,0,0]
[1715,0,-0.35599294124320841,-0.88584550123327788,null,0,0,0,null,3.7119044566707206E-2,0.41077599505999662,-0.1264442067896307,null,0,0,0]
[1716,0,0.13692162069160077,0.76605849203958498,null,0,0,0,null,-2.9118952320100335E-2,-0.32204970631936797,9.3807875460879594E-3,null,0,0,0]
[1717,0,-2.8683821662413211,-7.583711284537956,null,0,0,0,null,-8.1371423533179443E-2,-1.2109556263438672,-3.7648824431801766,null,0,0,0]
[1718,0,0.20341742889163106,0.94671637977993672,null,0,0,0,null,-1.90773250631633E-2,-0.22140988705044129,-1.2223776564387664E-3,null,0,0,0]
[1719,0,1.7690389487474549,4.4960787648925322,null,0,0,0,null,4.9984444872404936E-2,0.81676293697693114,3.2996777092208722,null,0,0,0]
[1720,0,-0.27909424932453475,-0.93953410758256362,null,0,0,0,null,2.3154295411685951E-2,0.25964861089968416,-1.5227639563494448E-2,null,0,0,0]
[1721,0,-1.3623599930139316,-3.3442696625636383,null,0,0,0,null,-5.8111868070185434E-3,-0.25188561789498365,-2.2488627650785493,null,0,0,0]
[1722,0,-0.23411040464612234,3.4945071698406535E-2,null,0,0,0,null,1.428966193755133E-2,0.13631400056971962,-0.34500924740377015,null,0,0,0]
[1723,0,0.42316449780724724,1.5013138638974415,null,0,0,0,null,-2.0280106044536752E-2,-0.16569427523021932,0.74760370635037909,null,0,0,0]
[1724,0,-1.31669662929082,-3.6304480705218376,null,0,0,0,null,-4.2581517672757856E-2,-0.62415849910139787,-1.9534473677291717,null,0,0,0]
[1725,0,0.12037508147265726,0.35405724281135192,null,0,0,0,null,5.4043254699585819E-2,0.67995575959104648,1.0543188409024551,null,0,0,0]
[1726,0,1.1970637488267148,3.05536517746099,null,0,0,0,null,-3.6877202790558103E-2,-0.39104645499556773,0.20460226593539482,null,0,0,0]
[1727,0,-0.95508534109709398,-3.1201864885308535,null,0,0,0,null,-2.8454620453653035E-2,-0.41001708838880402,-1.3552918500834421,null,0,0,0]
[1728,0,-0.50187196815237622,-1.491230944555973,null,0,0,0,null,-2.1142292441195594E-2,-0.27202434720483415,-0.49774544906938534,null,0,0,0]
[1729,0,-0.50920777041340626,-1.4070317502434773,null,0,0,0,null,-3.817105629254007E-2,-0.45821857471502242,-0.457768446209735,null,0,0,0]
[1730,0,0.2635732576942737,0.91111658823493058,null,0,0,0,null,8.6986816627416495E-3,9.0869489169527695E-2,4.8066371041495588E-2,null,0,0,0]
[1731,0,-0.52109947587750316,-1.6082819841528471,null,0,0,0,null,7.8049323398770984E-3,3.4782435928592349E-2,-0.71760789589750862,null,0,0,0]
[1732,0,0.91325002335950189,2.4110640269115904,null,0,0,0,null,-4.9054358044178913E-3,3.7792012429935309E-2,1.2406964314854232,null,0,0,0]
[1733,0,-0.31346285053352224,-1.3370003772597119,null,0,0,0,null,-3.3951335310822797E-2,-0.45406922254213261,-1.1429861888891137,null,0,0,0]
[1734,0,-1.0218847952042942,-2.7082451381085484,null,0,0,0,null,-4.8634279601317873E-2,-0.64544353546000544,-1.3674633043718822,null,0,0,0]
[1735,0,0.71173057094276915,1.6994711774852695,null,0,0,0,null,4.6782631448995859E-2,0.64587416731642866,1.650435151340258,null,0,0,0]
[1736,0,1.5005394642945431,4.356536756256741,null,0,0,0,null,8.5959653446162798E-2,1.1667032874405332,2.7358285439259671,null,0,0,0]
[1737,0,-0.48984181911344421,-1.2414779351114047,null,0,0,0,null,-5.8468731815052594E-3,-0.13417379435049953,-0.83605473135035935,null,0,0,0]
[1738,0,0.50158665913646472,1.6200165597249361,null,0,0,0,null,-3.1252604541476443E-2,-0.30693839074098922,0.55405559374775837,null,0,0,0]
[1739,0,0.68793352212469294,2.4433299090977161,null,0,0,0,null,2.4548613116954072E-2,0.36766028037241721,1.1392847189542807,null,0,0,0]
[1740,0,-2.7236900473279695,-7.041993176520144,null,0,0,0,null,-8.4990906316937634E-2,-1.1964982011686671,-3.1245526235715406,null,0,0,0]
[1741,0,0.67725148775338673,1.7689331617470525,null,0,0,0,null,8.9127642763955753E-2,1.1501139801673661,2.0928986911938301,null,0,0,0]
[1742,0,-0.29167609579985948,-0.63015044819469768,null,0,0,0,null,-5.9813379177919047E-3,-0.13735821886022223,-0.81481115200795462,null,0,0,0]
[1743,0,0.64171105211049695,2.1803645556180853,null,0,0,0,null,6.7664786158979667E-2,0.8183914991699921,1.0485221439578962,null,0,0,0]
[1744,0,-2.8644254416036183,-7.5722819923959612,null,0,0,0,null,-8.2228779642451177E-2,-1.2189776110665325,-3.743209424533041,null,0,0,0]
[1745,0,0.95649803490300112,2.5799718707717401,null,0,0,0,null,2.1869319400739586E-2,0.31718661564703504,0.97969644797679944,null,0,0,0]
[1746,0,0.74194137890445933,1.9458821774434982,null,0,0,0,null,8.4772342857373534E-2,1.0989938943458346,2.0606167835927152,null,0,0,0]
[1747,0,-1.4076282979000134,-3.6184906496871481,null,0,0,0,null,7.7405200507176058E-2,0.90834629138021317,0.69468146205194714,null,0,0,0]
[1748,0,2.1748801167314706,5.6500995331446244,null,0,0,0,null,9.5283940826109817E-2,1.380094858458816,4.1051456241867674,null,0,0,0]
[1749,0,-1.113060391401461,-2.759934476733477,null,0,0,0,null,-4.2603244788943187E-2,-0.7051283320862376,-3.0245196649361494,null,0,0,0]
[1750,0,6.5500334332500645E-3,-0.48980603093265379,null,0,0,0,null,4.2031720103152169E-2,0.57257303588153174,1.2658113879165067,null,0,0,0]
[1751,0,1.2023181440029858,3.3899769066310399,null,0,0,0,null,-3.0239367008511295E-2,-0.22852236503234236,1.372101010979095,null,0,0,0]
[1752,0,1.7130270955099149,4.3489383643713664,null,0,0,0,null,8.7957115187676155E-2,1.2671169018682604,3.6657841510514153,null,0,0,0]
[1753,0,-0.25935730819265335,-0.43881698356416748,null,0,0,0,null,-3.7387233435015391E-2,-0.4168752521079323,-8.444517278903732E-2,null,0,0,0]
[1754,0,-0.73641027428911732,-2.0351896994175402,null,0,0,0,null,-2.6011462355680238E-3,-5.8017124092380072E-2,-0.37942246365343091,null,0,0,0]
[1755,0,0.80397094368538635,2.1951000379320322,null,0,0,0,null,1.0834751439167178E-2,0.18200598628669376,0.85722092253332449,null,0,0,0]
[1756,0,-0.85911482951577089,-2.8626877638701624,null,0,0,0,null,-6.7459020128199945E-2,-0.94449734327584522,-2.568948408943994,null,0,0,0]
[1757,0,0.71253434049028141,2.6031367150669102,null,0,0,0,null,2.2579745307139205E-2,0.35448425203195982,1.3783531510264766,null,0,0,0]
[1758,0,-0.26165697007472954,-0.79292935256303465,null,0,0,0,null,-2.1751275423288634E-2,-0.23940115283419708,1.094949401300255E-3,null,0,0,0]
[1759,0,0.83280119266679509,2.3802300412891126,null,0,0,0,null,-2.9547234330622531E-2,-0.4518903348843496,-1.543817667758336,null,0,0,0]
[1760,0,1.1956012417775328,3.4876993165833627,null,0,0,0,null,-2.1682204783530893E-2,-0.13762784210183873,1.3432986378737186,null,0,0,0]
[1761,0,-1.734940281057221,-4.8212576710199571,null,0,0,0,null,6.2750201770671934E-2,0.6458415437553312,-0.46430766638714338,null,0,0,0]
[1762,0,-1.5785594751289682,-4.1171701102718874,null,0,0,0,null,-4.6152701132393302E-2,-0.71603863941151846,-2.7255471588727778,null,0,0,0]
[1763,0,-2.2280816180929577,-5.9130238906628296,null,0,0,0,null,-7.1331685640067519E-2,-1.1340954591157679,-4.4873534064749769,null,0,0,0]
[1764,0,1.4639608160213229,3.8620891954315595,null,0,0,0,null,-3.9093298249624528E-2,-0.37123489338909893,0.79674699404411153,null,0,0,0]
[1765,0,0.84744186922012521,2.5460701871146449,null,0,0,0,null,-2.3296820919177265E-2,-0.17973554838193287,1.0395011169783721,null,0,0,0]
[1766,0,1.0710124182856562,2.649651330828223,null,0,0,0,null,4.9015912669068254E-2,0.68204125600771481,1.8492674770382256,null,0,0,0]
[1767,0,-1.2898443250707696,-4.1573331840677783,null,0,0,0,null,9.4417276763670091E-4,-0.14501719234222127,-2.0555927648025718,null,0,0,0]
[1768,0,-0.36499114090675355,-0.90395552998763018,null,0,0,0,null,-4.8155762370474517E-2,-0.71342514164870319,-2.3037040318769688,null,0,0,0]
[1769,0,-0.10343321686835043,-0.19118814127304359,null,0,0,0,null,5.1585030631770791E-3,3.3583487633962253E-2,-0.38866545257383406,null,0,0,0]
[1770,0,0.14763707591660205,0.83890857857894297,null,0,0,0,null,2.6311824184320244E-2,0.33604537359928782,0.43489600219303609,null,0,0,0]
[1771,0,-0.99975965523614463,-2.7021065033369522,null,0,0,0,null,2.3993783778529973E-3,-4.8764459807101958E-2,-0.93965130750817838,null,0,0,0]
[1772,0,-1.1976647989482372,-3.4976963413831035,null,0,0,0,null,-3.0939989979491885E-2,-0.46575274974042075,-1.6289183356024586,null,0,0,0]
[1773,0,-0.16559307521870686,6.9837409317602572E-2,null,0,0,0,null,7.772944080783304E-3,0.10334326542477265,0.15081091892904805,null,0,0,0]
[1774,0,-1.2657424254478682,-3.4435783406361518,null,0,0,0,null,-6.9993198430881878E-2,-0.92083934177072391,-1.8854116588175347,null,0,0,0]
[1775,0,1.9066716308874039,5.4287430840208621,null,0,0,0,null,8.5108568323991399E-2,1.1976264070478819,3.2288872854922412,null,0,0,0]
[1776,0,1.8517326953119608,4.565967316439048,null,0,0,0,null,9.1820457708324685E-2,1.3068784737955403,3.5984249882680852,null,0,0,0]
[1777,0,0.42800394519683871,1.4254574242230955,null,0,0,0,null,-8.6711576712361016E-2,-1.010431359026561,-0.7055379335998041,null,0,0,0]
[1778,0,1.8691870014197667,4.8840191181145931,null,0,0,0,null,1.3796101408548566E-2,0.36772754172980421,2.6810819646068378,null,0,0,0]
[1779,0,-0.91166489292925146,-2.6175204740007318,null,0,0,0,null,-3.7386773103837867E-2,-0.51587330294656297,-1.3959476495677445,null,0,0,0]
[1780,0,-0.50726379111632736,-1.024097248400758,null,0,0,0,null,-1.7318444995548191E-2,-0.24051464539491371,-0.69673610947419007,null,0,0,0]
[1781,0,-0.27788081370699913,-1.2339225288096349,null,0,0,0,null,4.1208077414628237E-2,0.55645532035538059,1.1736906928439421,null,0,0,0]
[1782,0,0.9385035411904209,2.6698328449282562,null,0,0,0,null,3.0235027420001587E-2,0.45514655509365459,1.5247067711241835,null,0,0,0]
[1783,0,-8.383909457746995E-2,0.11813409991935624,null,0,0,0,null,-3.5708564714999225E-2,-0.45728319339298651,-0.77641385075465585,null,0,0,0]
[1784,0,1.9009796557158971,4.843071664762574,null,0,0,0,null,7.7122808439564039E-2,1.1160374094739518,3.2860619355859346,null,0,0,0]
[1785,0,0.65451547420429601,1.5769734442061745,null,0,0,0,null,4.5859496357645413E-2,0.63986878017206072,1.6934291505342154,null,0,0,0]
[1786,0,-0.6468530790907826,-1.8144176162063814,null,0,0,0,null,-3.870644276682407E-2,-0.47378369668418691,-0.5909402403963504,null,0,0,0]
[1787,0,-0.85404952282156044,-2.494305460326963,null,0,0,0,null,-1.7526054905641728E-2,-0.28465894504220612,-1.2343613746069895,null,0,0,0]
[1788,0,1.5859795129785252,4.4041257993971161,null,0,0,0,null,-1.8068856261040822E-2,-6.1315413130936573E-2,1.7835736145814263,null,0,0,0]
[1789,0,-0.41840282736431439,-0.73878700910029149,null,0,0,0,null,-9.6936542049201654E-3,-0.16127971565880853,-0.58053195009995762,null,0,0,0]
[1790,0,-1.0239227985352899,-3.3172738637713044,null,0,0,0,null,-9.414007276282399E-2,-1.3356239664405229,-3.7820411100390086,null,0,0,0]
[1791,0,-0.38428438806112353,-1.1133705397140001,null,0,0,0,null,1.741173527571533E-2,0.1440999269276699,-0.61169410475476249,null,0,0,0]
[1792,0,-1.4426920099477847,-3.7729840504501482,null,0,0,0,null,0.10461419231544841,1.2968838152439339,1.7542219525418949,null,0,0,0]
[1793,0,0.30488385237757759,0.78209238405499493,null,0,0,0,null,3.0302622272506768E-2,0.40946794261218838,1.0115285051426364,null,0,0,0]
[1794,0,-0.8896516907301939,-2.9602472281921002,null,0,0,0,null,-2.1606574098444638E-2,-0.33592702974605709,-1.3729573137912194,null,0,0,0]
[1795,0,-1.6914545869564499,-4.5247304663896939,null,0,0,0,null,-5.4925700111605635E-2,-0.78757732304193084,-2.2875040693038864,null,0,0,0]
[1796,0,-0.10493059993145652,-0.43406766822364445,null,0,0,0,null,1.8805886338355605E-2,0.22274509764242612,0.13653813851774249,null,0,0,0]
[1797,0,0.22896444011227321,0.47382633742688629,null,0,0,0,null,1.5046458643077017E-2,0.20848895690747848,0.56566322000681979,null,0,0,0]
[1798,0,-0.18374613697088352,-0.29212846649315904,null,0,0,0,null,-1.1686324790895413E-2,-0.18740248922426053,-0.81881064124129266,null,0,0,0]
[1799,0,-0.69459557384754411,-2.0422869129063765,null,0,0,0,null,-3.9057629334753756E-2,-0.53758306647212251,-1.4374107060882562,null,0,0,0]
[1800,0,-0.44598252974332536,-1.2389822931922463,null,0,0,0,null,-3.2428444231643254E-2,-0.37737509295698235,-0.23431679511530457,null,0,0,0]
[1801,0,-0.81730271731745052,-2.4242742659134455,null,0,0,0,null,-7.8331204513698936E-3,-0.15536515032290846,-0.95051071346998284,null,0,0,0]
[1802,0,0.97459047157633905,2.5083155481855863,null,0,0,0,null,-1.2575703940166761E-2,-0.16235925114315705,-0.33105618996027258,null,0,0,0]
[1803,0,-0.44198334159803926,-1.1943176166223202,null,0,0,0,null,-1.4077976571739611E-2,-0.15408125336709691,3.6173558748003418E-2,null,0,0,0]
[1804,0,0.75273742663483789,2.4091032620723274,null,0,0,0,null,1.759026026111269E-2,0.25660301492503002,0.6539150056564067,null,0,0,0]
[1805,0,0.64719174009993907,1.2661001032495334,null,0,0,0,null,-4.0336450841292899E-2,-0.39546934015758051,0.57620146289118201,null,0,0,0]
[1806,0,-7.5057722032232044E-2,-0.33743815462858767,null,0,0,0,null,3.9167533899182275E-2,0.48108014304893731,0.56726911320397999,null,0,0,0]
[1807,0,-2.5956248167034808,-6.712867632205838,null,0,0,0,null,-7.0945496190147367E-2,-0.98576840004028332,-2.4333646282826704,null,0,0,0]
[1808,0,1.1089135153867811,2.7812171326185124,null,0,0,0,null,-2.6656770041837773E-2,-0.29801591523663867,-3.2286372517020934E-2,null,0,0,0]
[1809,0,0.78873637340575442,2.2591997776821735,null,0,0,0,null,-2.495578080565997E-2,-0.39143106829163843,-1.4216918238373872,null,0,0,0]
[1810,0,-1.6368317813493414,-4.0828791335618151,null,0,0,0,null,-2.7458474771559681E-2,-0.38847660006676327,-0.90925786567139588,null,0,0,0]
[1811,0,-1.1759804629313111,-3.826065912626873,null,0,0,0,null,-1.4579950694368222E-2,-0.33466872590238839,-2.2783526248753661,null,0,0,0]
[1812,0,-0.38998073933499111,-0.91205768609545335,null,0,0,0,null,-2.9963200733813665E-2,-0.45166798148137333,-1.6191483065666217,null,0,0,0]
[1813,0,-0.90250676881679281,-2.3713451453962553,null,0,0,0,null,-5.5117291908958234E-2,-0.72902772205982369,-1.5046244398799244,null,0,0,0]
[1814,0,-0.10181473408170677,-0.34100025661535621,null,0,0,0,null,4.0631943377215804E-2,0.4925124829260103,0.51311312523745434,null,0,0,0]
[1815,0,1.5433214550106187,4.2815077968858679,null,0,0,0,null,8.9312776496284246E-2,1.2317675472903484,3.0823346026453038,null,0,0,0]
[1816,0,1.9071722209989965,5.1110554322471797,null,0,0,0,null,-1.3995412333620663E-2,-2.722076288090193E-2,1.6647898555713436,null,0,0,0]
[1817,0,-1.0654313050860855,-2.9644821767814502,null,0,0,0,null,7.8257584135524152E-2,0.97422941121494933,1.3376107707217271,null,0,0,0]
[1818,0,8.3817858184294894E-2,0.16021685873706884,null,0,0,0,null,2.0632516703553278E-2,0.28384142642903226,0.75361653211927115,null,0,0,0]
[1819,0,-1.1133302873363591,-2.9449727735199196,null,0,0,0,null,-5.4037490115375474E-2,-0.716513810127829,-1.5192720902323162,null,0,0,0]
[1820,0,0.11397979056182884,0.4981852084824277,null,0,0,0,null,-3.0841235095201227E-2,-0.4636769598692172,-1.5191829502891561,null,0,0,0]
[1821,0,1.3769003014185346,3.5193758029354867,null,0,0,0,null,6.5317915984769567E-3,0.15402296399199075,0.9627301625072614,null,0,0,0]
[1822,0,-1.734940281057221,-4.8212576710199571,null,0,0,0,null,6.2750201770671934E-2,0.6458415437553312,-0.46430766638714338,null,0,0,0]
[1823,0,0.83319399833189345,2.7924859088858209,null,0,0,0,null,1.548136009757377E-2,0.2540086681946932,1.1277049419645517,null,0,0,0]
[1824,0,-1.208621260632688,-2.9966040798085816,null,0,0,0,null,9.5270830302085305E-3,-3.1639611653196884E-2,-1.6174354655741845,null,0,0,0]
[1825,0,-0.33071202033144981,-0.30143031802986664,null,0,0,0,null,-2.9840322835188431E-2,-0.42715654743790127,-1.0766432242069641,null,0,0,0]
[1826,0,-1.5919162148605519,-3.9038063239857657,null,0,0,0,null,-8.7009343118546675E-3,-0.25547010069788578,-1.9099506681694511,null,0,0,0]
[1827,0,-1.1759804629313111,-3.826065912626873,null,0,0,0,null,-1.4579950694368222E-2,-0.33466872590238839,-2.2783526248753661,null,0,0,0]
[1828,0,-0.76460213056148862,-2.051937404238859,null,0,0,0,null,-4.3236331158302957E-2,-0.5782988142475779,-1.2515849530842389,null,0,0,0]
[1829,0,0.37141463468240182,1.4454861552075526,null,0,0,0,null,2.4623387674886088E-2,0.25106667628967533,-0.10716860097486279,null,0,0,0]
[1830,0,-0.2895193452954809,-0.61124389067601437,null,0,0,0,null,-1.499947706426218E-2,-0.24486075544768118,-0.92715096593415003,null,0,0,0]
[1831,0,1.3049783348272612,3.6005047579503953,null,0,0,0,null,6.8545546584582034E-2,0.94503853803627957,2.331851002796113,null,0,0,0]
[1832,0,-0.74615517029895273,-2.0650467162871866,null,0,0,0,null,1.1224338428161843E-2,0.11703067891847604,-0.10093682103108222,null,0,0,0]
[1833,0,1.7289052130459659,5.0781235288493116,null,0,0,0,null,0.13384984829959087,1.7696485223775971,3.8553868377532234,null,0,0,0]
[1834,0,-0.42207636561510842,-0.74076812229095235,null,0,0,0,null,-2.7066927153704796E-3,-0.11533542940516782,-0.95901254748586873,null,0,0,0]
[1835,0,-0.51463173206461033,-0.93578241638598414,null,0,0,0,null,-4.8829374259160889E-2,-0.66483451433299801,-1.4517443431979373,null,0,0,0]
[1836,0,-1.4808243304584485,-4.5825401361192339,null,0,0,0,null,2.3347891218525773E-2,0.2217188686329673,-0.54854558010742038,null,0,0,0]
[1837,0,1.3345974574174433,3.4659207917318344,null,0,0,0,null,1.9908187375253135E-2,0.37070663071073068,1.8115617345037207,null,0,0,0]
[1838,0,1.4829003522773274,3.9899047435622488,null,0,0,0,null,1.3494359544910538E-2,0.27299911727254494,1.535128558507673,null,0,0,0]
[1839,0,-0.11035275206128609,-2.8899928355742305E-2,null,0,0,0,null,-4.2878550267181424E-2,-0.52996723049033334,-0.78667949459876396,null,0,0,0]
[1840,0,1.5484612047377087,3.9143711900928757,null,0,0,0,null,4.2696992378997147E-3,0.21776423619391516,2.0880643918928072,null,0,0,0]
[1841,0,0.33477634553959618,1.3765735292536119,null,0,0,0,null,-2.480705048762644E-2,-0.28266424067531898,3.8313266783385189E-2,null,0,0,0]
[1842,0,-0.71138685728964624,-2.5158533095403328,null,0,0,0,null,-6.1070802924386894E-2,-0.9022521128194485,-2.9419716007452115,null,0,0,0]
[1843,0,-0.93022774003902309,-2.2409724841755159,null,0,0,0,null,-3.9746389550679113E-2,-0.58104129271150029,-1.8024586245774736,null,0,0,0]
[1844,0,-0.73072335285555889,-2.2649627176703873,null,0,0,0,null,-3.7788535512480112E-2,-0.4933317001462319,-1.0709137454407101,null,0,0,0]
[1845,0,-9.4367867520766591E-2,-0.56072501104038386,null,0,0,0,null,4.5631534015580656E-2,0.60133080566697938,1.0851973654942666,null,0,0,0]
[1846,0,-1.062904163002786,-3.0020868619280301,null,0,0,0,null,-7.6528054525462604E-3,-0.17751775785957671,-1.259217508430742,null,0,0,0]
[1847,0,1.7421733185060657,4.4877829024212046,null,0,0,0,null,5.7439782585986622E-2,0.88801342670850769,3.1879333602727784,null,0,0,0]
[1848,0,-0.14854421769960935,-9.4023420038851321E-2,null,0,0,0,null,-1.0947592332148304E-2,-0.24162046415966507,-1.4808713670828693,null,0,0,0]
[1849,0,0.14561851084328556,5.3706555188691711E-2,null,0,0,0,null,-1.2716409945978512E-2,-0.13647796918100721,4.8901266449694961E-2,null,0,0,0]
[1850,0,0.92792613431349313,2.6870034861493624,null,0,0,0,null,-2.8396267959255112E-2,-0.24436025079208504,0.92983427731765911,null,0,0,0]
[1851,0,-2.0520552763919078,-4.9953897584247899,null,0,0,0,null,-1.5885660155123729E-2,-0.39257275562556515,-2.5919808080130897,null,0,0,0]
[1852,0,-0.71521049874208253,-2.4593136773670556,null,0,0,0,null,-3.0968779374661779E-2,-0.38577619713143302,-0.72810330627562869,null,0,0,0]
[1853,0,-2.1092069330003307,-5.6001282879806462,null,0,0,0,null,-7.7320374816867973E-2,-1.1603973342456602,-3.9895876914199726,null,0,0,0]
[1854,0,0.45519855223242484,1.2906227427647172,null,0,0,0,null,2.2970543583881009E-2,0.32526833739594441,0.81185595167042268,null,0,0,0]
[1855,0,-0.19333883823351788,-0.66862371118016017,null,0,0,0,null,2.7524645110426831E-2,0.31784985311358288,0.12740250700935213,null,0,0,0]
[1856,0,-2.9317480342891957,-7.5366764790362941,null,0,0,0,null,-8.7810473681487797E-2,-1.2827574964728627,-3.769002067090518,null,0,0,0]
[1857,0,-1.5289198018963326,-4.1320402802183525,null,0,0,0,null,-4.0792957190122991E-2,-0.63812920064576151,-2.3681376192345378,null,0,0,0]
[1858,0,0.31923306137006513,1.3454190596983608,null,0,0,0,null,1.1741618916094638E-2,0.10139786085288414,-0.20659960633158697,null,0,0,0]
[1859,0,0.43381246753611596,1.135039122213493,null,0,0,0,null,-5.2509830516118544E-3,-0.15826610397334934,-1.2609690476764481,null,0,0,0]
[1860,0,0.55070435219960201,1.1027185235313082,null,0,0,0,null,-6.0846146290125545E-2,-0.65701669266112639,0.14383714338341089,null,0,0,0]
[1861,0,-1.4111654283967219,-3.8345664205948777,null,0,0,0,null,-4.7056641104814105E-2,-0.68816212200888094,-2.1288244281365296,null,0,0,0]
[1862,0,-0.15211170468705495,-0.46040838779989279,null,0,0,0,null,2.1416306936857893E-2,0.21192527431160033,-0.3109791118694375,null,0,0,0]
[1863,0,-1.9130101759352183,-4.9362675945812367,null,0,0,0,null,-2.7369820737317696E-2,-0.41949199499043061,-1.2672306663157689,null,0,0,0]
[1864,0,-0.6414856491600458,-2.1758918720048896,null,0,0,0,null,-3.7055536882779107E-2,-0.49926273739327098,-1.2950511395005015,null,0,0,0]
[1865,0,-1.573854817267369,-4.7621581282083572,null,0,0,0,null,2.6668818478021591E-2,0.23871398593434151,-0.80955471211261099,null,0,0,0]
[1866,0,0.44642628141147361,1.9264349670961018,null,0,0,0,null,7.2826309292535144E-3,0.13135278928337449,0.62488956257251627,null,0,0,0]
[1867,0,-1.494832574723223,-4.0264168492494576,null,0,0,0,null,-4.118520269081654E-2,-0.60878767946988321,-1.9409243009650017,null,0,0,0]
[1868,0,-0.58308594190269469,-1.9237442576384056,null,0,0,0,null,-4.9870111598479983E-2,-0.62382564101664051,-1.0778283946981719,null,0,0,0]
[1869,0,1.1851836851823609,3.2870865018800979,null,0,0,0,null,2.1542225829175209E-2,0.34040151482398595,1.3287467960222639,null,0,0,0]
[1870,0,-2.5722378521374432,-6.5648704522413679,null,0,0,0,null,-6.2373243839715937E-2,-0.91397067814018007,-2.6908685471749014,null,0,0,0]
[1871,0,-0.43724180689941933,-1.6909078037766521,null,0,0,0,null,-4.6865273907553788E-2,-0.58526620683446706,-1.0368115843690175,null,0,0,0]
[1872,0,-0.19646516008857726,-0.50675155051103504,null,0,0,0,null,2.172839873619745E-2,0.21661363921334942,-0.28993791397919633,null,0,0,0]
[1873,0,-0.25602453251208862,-0.26367230417949761,null,0,0,0,null,1.123301205419824E-2,9.1876652162379294E-2,-0.27416054565347076,null,0,0,0]
[1874,0,-1.4132335196167369,-4.3587309624451951,null,0,0,0,null,4.326082048693081E-3,-0.10091673794934559,-1.9438785015081668,null,0,0,0]
[1875,0,0.3177175890907547,0.81289335216661129,null,0,0,0,null,3.0302622272506879E-2,0.4039084805523207,0.94481496042422441,null,0,0,0]
[1876,0,1.5495451055710692,4.084639188122928,null,0,0,0,null,2.4322672869522364E-2,0.39975490996142254,1.6908184480824748,null,0,0,0]
[1877,0,-0.73028525342759532,-2.1115337023599348,null,0,0,0,null,4.2144076430364521E-3,-1.7715781413114199E-2,-0.81791022207160857,null,0,0,0]
[1878,0,-3.0240415845382467,-7.8144414198226153,null,0,0,0,null,-0.10543876868138029,-1.4781752201915779,-3.7815910527373671,null,0,0,0]
[1879,0,-0.47278516246626895,-1.0305195982573132,null,0,0,0,null,-5.7772483836865209E-2,-0.74815353310927002,-1.4276486393827728,null,0,0,0]
[1880,0,-0.16338981625056112,-9.15436381283289E-2,null,0,0,0,null,-4.0608690537736206E-2,-0.53693276138850432,-1.0168751578727098,null,0,0,0]
[1881,0,-0.48179072281499613,-1.8191505694411971,null,0,0,0,null,-4.0876976483536338E-2,-0.5065990425787541,-0.87814603271993108,null,0,0,0]
[1882,0,1.9101185769411733,4.8650050757032366,null,0,0,0,null,7.7122808439563928E-2,1.1234690451504239,3.3752415637036282,null,0,0,0]
[1883,0,0.20983344197997394,8.7561878455962874E-2,null,0,0,0,null,2.4270056897015991E-2,0.36110763295259224,1.0480480899119247,null,0,0,0]
[1884,0,0.10884390780992544,0.89079874872082287,null,0,0,0,null,2.5366398828716285E-2,0.28641188606601736,-2.6140030528255011E-2,null,0,0,0]
[1885,0,-1.2491043421747108,-4.0991036840805828,null,0,0,0,null,-3.8860305997505805E-2,-0.63928296348127966,-2.7712688496938864,null,0,0,0]
[1886,0,-0.47512030240931197,-1.214012718582635,null,0,0,0,null,-1.0478609594191368E-2,-0.16286919659882823,-0.74191873345851123,null,0,0,0]
[1887,0,1.9982497947373923,5.1482242850258695,null,0,0,0,null,4.4111165657400531E-2,0.79308919432697444,3.8084494184168687,null,0,0,0]
[1888,0,0.48172048751998048,1.5805424134900823,null,0,0,0,null,-3.3629677662932407E-2,-0.36166531591563128,0.20633776951641267,null,0,0,0]
[1889,0,-1.4894250360529622,-4.0970468307692496,null,0,0,0,null,9.4186181435092064E-3,-2.8140111787209206E-2,-1.674087008956656,null,0,0,0]
[1890,0,-1.8664076592193524,-4.8944420855268911,null,0,0,0,null,-8.9355748554411779E-2,-1.2944323594763691,-3.9917766471678804,null,0,0,0]
[1891,0,-0.9149953257818233,-2.513810396850189,null,0,0,0,null,-9.0102845017179904E-3,-0.1695031134758592,-0.87566578800775818,null,0,0,0]
[1892,0,-0.63488402498426877,-1.6011128056436355,null,0,0,0,null,-3.7026516773046469E-2,-0.51910590466327544,-1.4703665582114662,null,0,0,0]
[1893,0,-1.7369830383955032,-4.3268935361779297,null,0,0,0,null,-8.0843426387261271E-3,-0.28165277036607861,-2.3136356739685033,null,0,0,0]
[1894,0,1.8772645710564266,4.7527491359223131,null,0,0,0,null,0.10160442509921808,1.4275172844744766,3.8151911415889952,null,0,0,0]
[1895,0,-1.4376240657295276,-4.5768772458146634,null,0,0,0,null,-6.9903201149137548E-2,-1.0330430680912785,-3.4010908670323663,null,0,0,0]
[1896,0,-5.6017803318620281E-2,-0.15486942618645116,null,0,0,0,null,5.9930957120100686E-2,0.7540638361121873,1.1382276243813976,null,0,0,0]
[1897,0,-0.32623527386024942,-0.78416923060332921,null,0,0,0,null,-4.6758250690991474E-2,-0.69618564453567711,-2.2812353940052015,null,0,0,0]
[1898,0,-0.36397696690951309,-0.97289150120632983,null,0,0,0,null,9.7772390624350572E-3,4.9549642623070211E-2,-0.83651666802277036,null,0,0,0]
[1899,0,-0.23977536736129151,-0.40427823747896763,null,0,0,0,null,-4.4697808093470313E-2,-0.51630861181284216,-0.31686998136357941,null,0,0,0]
[1900,0,0.53289346004618887,1.0357388806397212,null,0,0,0,null,-5.7934885372851394E-2,-0.61479834909694819,0.27711075876739777,null,0,0,0]
[1901,0,-0.24486065341521862,-0.4394390767844743,null,0,0,0,null,-4.3307745414457373E-2,-0.51153143633657694,-0.45308587382459153,null,0,0,0]
[1902,0,1.3690732094941522,3.510416922933655,null,0,0,0,null,5.8883199221606329E-3,0.15849289191096158,1.108619930075325,null,0,0,0]
[1903,0,-1.6974753167004346,-4.73134175656367,null,0,0,0,null,6.2750201770672392E-2,0.64277727554292774,-0.50107888493603969,null,0,0,0]
[1904,0,-2.1872478249931775,-5.8245469495608635,null,0,0,0,null,-6.4760696981578575E-2,-1.0516595616847053,-4.3403388545163182,null,0,0,0]
[1905,0,-0.37038771741470372,-0.55383446093917155,null,0,0,0,null,-2.9286946109928238E-2,-0.42870745824713868,-1.1992903246225468,null,0,0,0]
[1906,0,-0.17071567724968736,-0.2321677669111159,null,0,0,0,null,-3.7135989634979411E-2,-0.55176470173674441,-1.7655769833871309,null,0,0,0]
[1907,0,-2.0113717133388183,-5.7103188568742844,null,0,0,0,null,3.0664750793262557E-2,0.23830229092477292,-1.2360298030337509,null,0,0,0]
[1908,0,0.47682521114058907,1.4055519726078929,null,0,0,0,null,6.9088791703005942E-2,0.88151371957735136,1.5478763863376443,null,0,0,0]
[1909,0,-1.3938341911691732,-3.618617183433904,null,0,0,0,null,4.7675209999637272E-2,0.51011130238932034,-0.22540983583418348,null,0,0,0]
[1910,0,-0.33069943345108188,-1.3182980882373303,null,0,0,0,null,-5.4904813884586415E-2,-0.6988568670728027,-1.3120778455097497,null,0,0,0]
[1911,0,1.1271130594488095,2.835823945190139,null,0,0,0,null,-2.4215790470296782E-2,-0.23316051996821169,0.43900912995022734,null,0,0,0]
[1912,0,0.85671378203326098,2.4546623569418951,null,0,0,0,null,-2.7740738935548279E-2,-0.42401103311893801,-1.4473304671303375,null,0,0,0]
[1913,0,1.2095773209211893,3.3945327683368234,null,0,0,0,null,3.3683173576486126E-2,0.5068505236910178,1.6841083069967027,null,0,0,0]
[1914,0,-0.91823165941692608,-2.5262436798383061,null,0,0,0,null,-4.4677766561098738E-2,-0.60840401428353375,-1.4527357339653135,null,0,0,0]
[1915,0,-0.54571711066659923,-1.0890089952976632,null,0,0,0,null,-8.1493937486477527E-3,-0.1930098988775735,-1.1781444113593351,null,0,0,0]
[1916,0,-1.3513246966712431,-3.82774237037445,null,0,0,0,null,-3.373538992659246E-2,-0.48298285053127621,-1.4532086477612502,null,0,0,0]
[1917,0,0.30186385385080755,0.2255851036752938,null,0,0,0,null,-4.0728343825654177E-3,-6.7015919885833677E-2,-0.41102260502141869,null,0,0,0]
[1918,0,-0.88221137144402018,-2.9851971735069966,null,0,0,0,null,-9.3056380554151136E-2,-1.2932067634347431,-3.4189367632504255,null,0,0,0]
[1919,0,1.8607487405831671,4.7258413668824577,null,0,0,0,null,3.4617536679502903E-2,0.67099984612557906,3.5699433524596826,null,0,0,0]
[1920,0,0.59889738253083846,1.4227631931210416,null,0,0,0,null,1.3459899847661119E-2,0.20554925626337445,0.74344124537023526,null,0,0,0]
[1921,0,0.44508905883778427,1.1770703109898895,null,0,0,0,null,-9.1435679554170979E-3,-0.23559921757481789,-1.6630118594784036,null,0,0,0]
[1922,0,-0.33819086201946263,-0.87937497030176015,null,0,0,0,null,-1.5415573443812435E-2,-0.16936104221240111,2.6044456366940721E-2,null,0,0,0]
[1923,0,1.6131953609349494,4.5090394263375346,null,0,0,0,null,-1.8289981120986853E-2,-5.4350212645732428E-2,1.8956907158843241,null,0,0,0]
[1924,0,-1.8659359865660698,-5.4952299360687178,null,0,0,0,null,1.9077467630054856E-2,0.11202252660627528,-1.2790547107801249,null,0,0,0]
[1925,0,0.9188968918383944,2.3990590121236237,null,0,0,0,null,-8.9530549401428631E-3,-1.1591620065291863E-2,1.181189266127487,null,0,0,0]
[1926,0,0.70569745000742479,1.6696735657961763,null,0,0,0,null,5.713726551219344E-2,0.7750097792695515,1.8356034212345367,null,0,0,0]
[1927,0,-0.31788158469730843,-0.89895693401979948,null,0,0,0,null,-1.7656987195809905E-2,-0.19337520141878575,1.5111190253246604E-2,null,0,0,0]
[1928,0,-0.63915083471775869,-2.2644835502086864,null,0,0,0,null,-5.3166449361322803E-2,-0.65607439131478984,-1.0591355154553348,null,0,0,0]
[1929,0,-1.8625573378098725,-5.3752175860945721,null,0,0,0,null,1.6074195984481322E-2,3.5659181198526312E-2,-1.7752123566198315,null,0,0,0]
[1930,0,-0.20922517707992666,-0.56272473563903624,null,0,0,0,null,1.8359784136950622E-2,0.18056348271681782,-0.27716745063900089,null,0,0,0]
[1931,0,0.16617751401822717,0.54457621398038458,null,0,0,0,null,-1.1395546166411748E-2,-0.37339788791513456,-3.0077136239926947,null,0,0,0]
[1932,0,1.7605046815771548,4.7787228535335817,null,0,0,0,null,7.5522102278491729E-3,0.22134799170938549,1.8185597698555538,null,0,0,0]
[1933,0,-0.58416459416343969,-1.7859890047501759,null,0,0,0,null,-5.0179561405329309E-2,-0.66492386871092912,-1.5028167345998191,null,0,0,0]
[1934,0,1.0272885199170561,2.8962973664324454,null,0,0,0,null,4.4587279513881695E-2,0.63813051125495712,1.822670029499921,null,0,0,0]
[1935,0,1.0838573788167705,2.980655114475383,null,0,0,0,null,1.9478710634776859E-2,0.28608521935817499,0.89988756180401108,null,0,0,0]
[1936,0,0.91036383244445274,2.6448539616636628,null,0,0,0,null,-2.792576849351491E-2,-0.23788826249174327,0.94539220744404517,null,0,0,0]
[1937,0,0.67427800468441279,1.7583157304841297,null,0,0,0,null,7.7249615906687205E-2,0.99981099427870868,1.8507269459770068,null,0,0,0]
[1938,0,1.2096932221820225,3.658469277261589,null,0,0,0,null,9.2270733526659626E-2,1.1962442930838724,2.3903647499561522,null,0,0,0]
[1939,0,1.7751813370527816,4.6031085499124096,null,0,0,0,null,5.7678018572201777E-2,0.89894977484588434,3.2749616812838429,null,0,0,0]
[1940,0,0.64085669115630661,2.0179045873144204,null,0,0,0,null,-3.1780607924016581E-2,-0.32473693135943449,0.41236879339045479,null,0,0,0]
[1941,0,0.96735744573228655,2.8362037441404828,null,0,0,0,null,-4.7260937243596743E-2,-0.44627981127446947,1.0108101644267773,null,0,0,0]
[1942,0,0.55380172719863918,1.2926773803136893,null,0,0,0,null,1.6141929795151725E-2,0.259778325690183,1.0508325125025622,null,0,0,0]
[1943,0,1.1956012417775328,3.4876993165833627,null,0,0,0,null,-2.1682204783530893E-2,-0.13762784210183873,1.3432986378737186,null,0,0,0]
[1944,0,0.22053684201972282,0.98184463419344681,null,0,0,0,null,-1.685310084381746E-2,-0.1459553844392367,0.5116854978033516,null,0,0,0]
[1945,0,1.6474009726963594,4.2686640143913177,null,0,0,0,null,4.5343469491122617E-3,0.11987736389525253,0.90341615415544585,null,0,0,0]
[1946,0,-0.76942685507416531,-2.1733214378155097,null,0,0,0,null,1.3240663284097764E-2,9.5409285173739589E-2,-0.63507387873220433,null,0,0,0]
[1947,0,-0.37038987249797356,-1.0351883220924574,null,0,0,0,null,-5.1401764401766744E-3,-0.14415622710059689,-1.2212154461072533,null,0,0,0]
[1948,0,-1.1272182092407474,-3.6310508297883426,null,0,0,0,null,-0.10355521463695964,-1.4536292680083052,-3.9628725353110132,null,0,0,0]
[1949,0,2.1932776352436738,5.6933371561990933,null,0,0,0,null,0.10137726487535173,1.4623115879014139,4.3006854444904601,null,0,0,0]
[1950,0,1.8212263431940172,4.6895189334518506,null,0,0,0,null,-2.1607383458657922E-2,-6.1786769212003489E-2,2.159895880969565,null,0,0,0]
[1951,0,-0.44204798438556647,-0.7672407178398134,null,0,0,0,null,-1.7940588769465649E-4,-9.0051539779710768E-2,-0.98381512440487495,null,0,0,0]
[1952,0,1.766558472999801,4.7377433469125245,null,0,0,0,null,-1.7565909371822612E-2,-6.6097319990723005E-2,1.6804900006474164,null,0,0,0]
[1953,0,1.5090434249358951,4.2737540986750249,null,0,0,0,null,5.3437258659065325E-2,0.80543262667244198,2.7142883644170541,null,0,0,0]
[1954,0,-1.0302243507644999,-2.8238418516158998,null,0,0,0,null,-6.8931202732290444E-3,-0.1903488214163235,-1.4176781296058871,null,0,0,0]
[1955,0,2.3562600398149733,6.1272142245462966,null,0,0,0,null,0.10177682534282979,1.4620035773924309,4.2320240219661098,null,0,0,0]
[1956,0,-1.2316700575806736,-3.3040844619064011,null,0,0,0,null,-4.9414593551681887E-2,-0.65358093380998794,-1.377705572707524,null,0,0,0]
[1957,0,-0.41655827884985774,-1.1826525177682705,null,0,0,0,null,1.5408203547570849E-2,0.11707778379482897,-0.66904043816060588,null,0,0,0]
[1958,0,1.8334591771529667,4.7504797532470402,null,0,0,0,null,6.7469181670104655E-2,1.0369403227701632,3.6514905834482523,null,0,0,0]
[1959,0,1.0221168841014205,2.792818368591361,null,0,0,0,null,-5.7288055057270523E-3,-1.904158762890347E-2,0.62991734797656684,null,0,0,0]
[1960,0,-0.31297027115705894,-0.60483145336341837,null,0,0,0,null,-3.3442499932501507E-2,-0.38071525856291011,-0.16982803244288153,null,0,0,0]
[1961,0,1.2835537819320162,3.3797263738159309,null,0,0,0,null,3.0896306342582818E-2,0.52408279198328367,2.3914138939155056,null,0,0,0]
[1962,0,1.4774687837895473,3.8917517756929882,null,0,0,0,null,-4.2558161006790156E-2,-0.42540252259408134,0.60427181012761144,null,0,0,0]
[1963,0,0.84700047403424472,2.2874375688472863,null,0,0,0,null,9.4582232659222373E-2,1.2167370909678612,2.1883649123850337,null,0,0,0]
[1964,0,-0.94864482860126731,-2.7768292920682214,null,0,0,0,null,1.37877368144064E-2,7.8534955905074644E-2,-0.97423564469156554,null,0,0,0]
[1965,0,1.8010152800474588,4.6651100130996346,null,0,0,0,null,5.7678018572201895E-2,0.89765082756002812,3.2593743138535536,null,0,0,0]
[1966,0,8.5684216821704462E-2,0.42479714244772915,null,0,0,0,null,-8.7544544414874387E-3,-0.13429297494697584,-0.56246320741615996,null,0,0,0]
[1967,0,-0.90250676881679281,-2.3713451453962553,null,0,0,0,null,-5.5117291908958234E-2,-0.72902772205982369,-1.5046244398799244,null,0,0,0]
[1968,0,1.8055636509244033,4.5753879766865575,null,0,0,0,null,5.1511332216295558E-2,0.82352419611402272,3.1686504732512986,null,0,0,0]
[1969,0,-2.8673429131358006,-7.3642897914820606,null,0,0,0,null,-9.543676309064239E-2,-1.3476326130978313,-3.5517876275993769,null,0,0,0]
[1970,0,-1.8846255871139002,-4.9264361747673826,null,0,0,0,null,-7.9092975788491282E-2,-1.1592639376540201,-3.7356638612079078,null,0,0,0]
[1971,0,0.56038564478094122,1.285777606041971,null,0,0,0,null,1.8210860157268256E-2,0.27635873565562358,1.0053867596434829,null,0,0,0]
[1972,0,-0.7241897068427825,-2.5075812814714955,null,0,0,0,null,-3.6557708551893539E-2,-0.50244944966221916,-1.4205998364520238,null,0,0,0]
[1973,0,-0.6130571052638607,-1.9806627870560696,null,0,0,0,null,-5.2205285664048744E-2,-0.66673158301624336,-1.2882155170480727,null,0,0,0]
[1974,0,-0.73311417621153485,-1.6011387565324184,null,0,0,0,null,6.498337781284249E-3,-1.3286165173703922E-2,-1.0805583483555019,null,0,0,0]
[1975,0,-0.90250676881679281,-2.3713451453962553,null,0,0,0,null,-5.5117291908958234E-2,-0.72902772205982369,-1.5046244398799244,null,0,0,0]
[1976,0,-0.16696670053127127,-0.36805834127205889,null,0,0,0,null,-1.2347585759967729E-2,-0.20760791004873955,-0.98706542110669759,null,0,0,0]
[1977,0,0.98346723943217873,2.7473812759592038,null,0,0,0,null,0.10592258182723384,1.3776256780111007,2.6418567997386089,null,0,0,0]
[1978,0,-1.9489776523819928,-5.5858842100794357,null,0,0,0,null,4.2921558011357774E-5,-0.19537088256195329,-2.4153737274618945,null,0,0,0]
[1979,0,0.90854456655644389,2.415763110360829,null,0,0,0,null,3.0728018423751224E-2,0.43793026141234531,1.2721756050238218,null,0,0,0]
[1980,0,-2.7583561033069053,-7.2992755521613759,null,0,0,0,null,-7.7375627658269816E-2,-1.1705891349209778,-3.8000159305933594,null,0,0,0]
[1981,0,-2.5972365119336702,-6.6836780733026027,null,0,0,0,null,-5.3887922420001191E-2,-0.79849282914860031,-2.4421337905462277,null,0,0,0]
[1982,0,-0.64220434210002708,-1.9771861161850683,null,0,0,0,null,7.3547053300074078E-2,0.9842180289273802,2.0524682000230934,null,0,0,0]
[1983,0,1.0998079594581396,2.9472862546421021,null,0,0,0,null,7.9484610783473499E-3,0.14205858737369273,0.73660729752608678,null,0,0,0]
[1984,0,-1.315472886654814,-4.2738157333993367,null,0,0,0,null,-2.9509328316721792E-2,-0.51704788103180821,-2.5303130301734056,null,0,0,0]
[1985,0,1.0429415225516059,2.8688929451325604,null,0,0,0,null,-4.0095547216523076E-3,1.4522407324376218E-2,0.81112082520349582,null,0,0,0]
[1986,0,-2.0471603287212239,-5.4512164377107908,null,0,0,0,null,-7.8329486482089636E-2,-1.1730564696368766,-4.0082945763053139,null,0,0,0]
[1987,0,-1.0598797122376782,-3.4687140003738239,null,0,0,0,null,-7.0880834649809404E-2,-1.0037300732452403,-2.8779418679286901,null,0,0,0]
[1988,0,0.72646937497681752,1.8856508089583004,null,0,0,0,null,2.4420574123475886E-2,0.36089661933247319,1.0503617708915809,null,0,0,0]
[1989,0,-2.9180616991851074,-7.5847748283624421,null,0,0,0,null,-7.8461365191990234E-2,-1.1787624468242948,-3.7641442191634522,null,0,0,0]
[1990,0,0.49596044957202501,1.4596925574459019,null,0,0,0,null,6.5202555111104343E-2,0.8294496342657558,1.4292483179833033,null,0,0,0]
[1991,0,0.78687550210973856,2.042249197432553,null,0,0,0,null,3.7431989287433111E-3,0.11994127051714258,1.062224577503639,null,0,0,0]
[1992,0,-1.1871079957015427,-3.2649795959992187,null,0,0,0,null,1.3087242261821758E-2,2.9331728927581024E-2,-1.4444760380893749,null,0,0,0]
[1993,0,0.27268220441628543,1.1620639177339909,null,0,0,0,null,1.0907463053904224E-2,6.1894511635385244E-2,-0.58918543553166824,null,0,0,0]
[1994,0,-0.30069590069227342,-0.48190754874048436,null,0,0,0,null,-5.506963702438708E-2,-0.69214026578345789,-1.0581542660436172,null,0,0,0]
[1995,0,-0.48241269527975056,-0.74259761093360432,null,0,0,0,null,-4.1604018488728856E-2,-0.58944772976719195,-1.4944075834125179,null,0,0,0]
[1996,0,-2.6160373579567531,-6.6699892662077147,null,0,0,0,null,-6.4421939846926596E-2,-0.94936739795110858,-2.8452013119542499,null,0,0,0]
[1997,0,-1.3701692926737306,-3.3902029958898274,null,0,0,0,null,7.3194197438673997E-3,6.6779744741028477E-2,3.4365569451507323E-2,null,0,0,0]
[1998,0,-0.43070284279390941,-1.5755533964643691,null,0,0,0,null,-6.1895060275241519E-2,-0.78261569704909195,-1.4040291513687007,null,0,0,0]
[1999,0,-0.49160298248846812,-1.4665853789625907,null,0,0,0,null,-2.2687058789418076E-2,-0.28272134848693803,-0.42220030648925966,null,0,0,0]
[2000,0,-0.43021771939708559,-0.95065701076023834,null,0,0,0,null,-1.3653085129725866E-2,-0.23706921744222564,-1.0100786121294478,null,0,0,0]
[2001,0,1.2910945327927439,3.3667624976751833,null,0,0,0,null,1.2537044647525761E-2,0.26532755909140271,1.5099788771705025,null,0,0,0]
[2002,0,-0.54714951092557562,-1.9009919498731469,null,0,0,0,null,-7.20594090723011E-2,-0.94803980119901732,-2.0440936308322817,null,0,0,0]
[2003,0,-0.4606772840119629,-1.1034483498312984,null,0,0,0,null,-1.0842041940445085E-2,-0.23012472446272569,-1.4750607006175886,null,0,0,0]
[2004,0,-0.11892979907090012,-0.14317891239062738,null,0,0,0,null,7.7600714026931994E-3,4.7634343681052085E-2,-0.40028386627197327,null,0,0,0]
[2005,0,-2.0495894572776487,-5.7992515393197825,null,0,0,0,null,2.1359777759568318E-2,0.12271750487830922,-1.3863929808413522,null,0,0,0]
[2006,0,-0.97350663835914752,-3.245492793044519,null,0,0,0,null,-2.2463215293951691E-2,-0.34473764094783838,-1.3840284293237601,null,0,0,0]
[2007,0,1.7880304446756545,4.6175104002106453,null,0,0,0,null,0.10267398660730413,1.4432781741138907,3.8421113319823199,null,0,0,0]
[2008,0,-1.7236891487375141,-5.1552544230089845,null,0,0,0,null,1.5050058324747794E-2,6.1341815082108044E-2,-1.4190802053695006,null,0,0,0]
[2009,0,1.2302779019568406,3.4996899426570964,null,0,0,0,null,-1.4494040107250668E-2,-4.364406260616488E-2,1.5250620291269805,null,0,0,0]
[2010,0,-1.1445918787230658,-2.9531761932752341,null,0,0,0,null,-1.3388152470781734E-5,-6.0389894691395968E-2,-0.74161420335006911,null,0,0,0]
[2011,0,-3.0914192621395871,-7.9826374227590424,null,0,0,0,null,-0.10011426782397535,-1.407680951297043,-3.6364562239212064,null,0,0,0]
[2012,0,1.4590170080992193,3.9576597924108063,null,0,0,0,null,1.5041437664978617E-2,0.28423049167405678,1.4697955881123599,null,0,0,0]
[2013,0,-0.74776627919019301,-1.6554943982241093,null,0,0,0,null,2.9641572098760661E-2,0.30197496172599042,-0.31499538135308469,null,0,0,0]
[2014,0,-0.26150937439719202,-0.69537927738435246,null,0,0,0,null,2.8693923759142363E-2,0.29686492095087397,-0.42340496662339866,null,0,0,0]
[2015,0,0.89629919181600415,2.7917844976611743,null,0,0,0,null,1.9754177702134768E-2,0.29332044460549789,0.9718125088957531,null,0,0,0]
[2016,0,1.3774308853063868,3.9464625116721872,null,0,0,0,null,-2.633697176624122E-2,-0.15323876002870021,1.7745461613707849,null,0,0,0]
[2017,0,-3.5540073285832474E-2,-0.12686375053735538,null,0,0,0,null,6.0236219200329004E-2,0.73412353694400645,0.85637389907694528,null,0,0,0]
[2018,0,1.6360012379841538,4.7076236514492411,null,0,0,0,null,6.4478854311153161E-2,0.93780539596287871,2.8455921755272828,null,0,0,0]
[2019,0,1.5188102279672966,4.308925143002452,null,0,0,0,null,7.5057819340199949E-2,1.0804581012618555,3.1568667270635595,null,0,0,0]
[2020,0,-1.4326872333356677,-3.7277862564210444,null,0,0,0,null,5.7834417002181171E-2,0.65941580609665562,0.27763714708205589,null,0,0,0]
[2021,0,2.1349050938705476,5.7679468757275387,null,0,0,0,null,2.999083190213412E-2,0.46829163476951269,1.8102048217611555,null,0,0,0]
[2022,0,1.333877526380058,3.5904615670247586,null,0,0,0,null,4.8136689871082008E-3,0.12045853945108592,0.90584134404654471,null,0,0,0]
[2023,0,1.9209126269279113,4.9982607819837144,null,0,0,0,null,8.8170665631882403E-2,1.2742357706957246,3.7281908810072966,null,0,0,0]
[2024,0,-0.36629755010721965,-0.73922221894787077,null,0,0,0,null,-1.0977775277625994E-2,-0.21319291232640988,-1.2289952038231859,null,0,0,0]
[2025,0,1.83894446512164,4.7397040492809976,null,0,0,0,null,0.10094973941864367,1.4232212943145632,3.828218397591463,null,0,0,0]
[2026,0,-1.3599677133437145,-3.7450823986209727,null,0,0,0,null,-4.1082879635293577E-2,-0.62006478878897264,-2.0942495921580155,null,0,0,0]
[2027,0,1.3708979765941367,4.1422604322660046,null,0,0,0,null,9.0091456136912426E-2,1.1751279319910273,2.4286070769421824,null,0,0,0]
[2028,0,-0.34314407393575674,-0.42086684063239227,null,0,0,0,null,-2.8459766214536501E-2,-0.42240389401646189,-1.2112393603326164,null,0,0,0]
[2029,0,-2.8683821662413211,-7.583711284537956,null,0,0,0,null,-8.1371423533179443E-2,-1.2109556263438672,-3.7648824431801766,null,0,0,0]
[2030,0,1.2254238347532882,3.4408035073697536,null,0,0,0,null,-3.6194317796186967E-2,-0.28499825690693886,1.4807346603575753,null,0,0,0]
[2031,0,-1.9389400311518148,-5.0773652882749669,null,0,0,0,null,-3.4452266905294097E-3,-0.1918028825442625,-1.9828323301155724,null,0,0,0]
[2032,0,1.8561309980323204,4.8035553284716661,null,0,0,0,null,0.11159527339050344,1.560525330377156,4.0756061931155454,null,0,0,0]
[2033,0,0.37711969665815015,0.63342230246483089,null,0,0,0,null,4.1395655897756003E-3,7.9158312982351167E-2,0.41518532412518472,null,0,0,0]
[2034,0,-0.83219155293242331,-2.2987293098598673,null,0,0,0,null,1.174155590931349E-2,5.7002352816830353E-2,-0.94626555574540905,null,0,0,0]
[2035,0,0.20337838265452229,5.404268433220568E-2,null,0,0,0,null,8.9304793640874892E-3,0.18459381301293251,0.94034928514214333,null,0,0,0]
[2036,0,-0.18183616001209338,-0.54196047104187894,null,0,0,0,null,1.7271470356547185E-2,0.16651393320386432,-0.31185390772257598,null,0,0,0]
[2037,0,-0.76460213056148862,-2.051937404238859,null,0,0,0,null,-4.3236331158302957E-2,-0.5782988142475779,-1.2515849530842389,null,0,0,0]
[2038,0,0.54220558018672094,1.514353354396444,null,0,0,0,null,2.0733701575161207E-2,0.24804720580807862,0.18815443448399674,null,0,0,0]
[2039,0,-6.826637243837104E-2,-0.32100585072411925,null,0,0,0,null,2.7766100414191159E-2,0.33836097715626329,0.35163758810495349,null,0,0,0]
[2040,0,-0.98127543509234416,-2.7376730458957317,null,0,0,0,null,2.7079065301196577E-3,-4.9274219874446315E-2,-0.99715226494877063,null,0,0,0]
[2041,0,1.4565488555218236,4.008599069810443,null,0,0,0,null,1.6367388129966399E-2,0.2660870467170407,1.1436540249010541,null,0,0,0]
[2042,0,-0.25562224941991918,-0.56998266589598645,null,0,0,0,null,-1.5661686879215837E-2,-0.23456611437998162,-0.86237168772596129,null,0,0,0]
[2043,0,1.3932756475110546,3.7596678941287172,null,0,0,0,null,0.11087991618912241,1.4777959258611617,3.2230870034085566,null,0,0,0]
[2044,0,1.4614639378940684,4.1595633297746319,null,0,0,0,null,5.068217181708741E-2,0.76488649209172577,2.5914062125895323,null,0,0,0]
[2045,0,-1.1747340593159696,-3.0963634847545838,null,0,0,0,null,-5.252451541645263E-2,-0.70103778830733154,-1.5270602568437097,null,0,0,0]
[2046,0,-2.3713083941354927,-6.3023941946944255,null,0,0,0,null,-7.6647682435617634E-2,-1.1058102729937682,-3.1339020688334278,null,0,0,0]
[2047,0,0.1091769293272082,-1.021649545411492E-2,null,0,0,0,null,-7.9108352773395729E-2,-0.87054661460294114,-6.8747632048543894E-3,null,0,0,0]
[2048,0,-1.7899550913449438,-4.5396800205498362,null,0,0,0,null,-3.3887578699944527E-2,-0.45614799990638583,-0.80545742951588906,null,0,0,0]
[2049,0,9.2676798567565125E-2,0.25748609018012941,null,0,0,0,null,6.30461304653233E-2,0.80125012766999226,1.3126530532912148,null,0,0,0]
[2050,0,-1.1309341996139046,-3.0003324386433814,null,0,0,0,null,0.10889107102164991,1.4485293002892876,3.057393882667002,null,0,0,0]
[2051,0,-0.60056303218980434,-1.8887533878358591,null,0,0,0,null,1.0711919090075014E-2,6.6433509967267129E-2,-0.73209198092338923,null,0,0,0]
[2052,0,1.7690389487474549,4.4960787648925322,null,0,0,0,null,4.9984444872404936E-2,0.81676293697693114,3.2996777092208722,null,0,0,0]
[2053,0,1.547407130126554,4.0229824551687781,null,0,0,0,null,2.9437172524640685E-3,9.5207364922642229E-2,0.81600230692492548,null,0,0,0]
[2054,0,1.3691993219259766,3.7884773719074656,null,0,0,0,null,1.8752922025758154E-2,0.33626589848294225,1.6755288787960307,null,0,0,0]
[2055,0,-0.47772974534784407,-0.70316835401952271,null,0,0,0,null,-3.7976419459238346E-2,-0.54505186741936906,-1.4167609280269571,null,0,0,0]
[2056,0,-0.60070208376400658,-1.2855186475791198,null,0,0,0,null,-1.5685933838379015E-2,-0.25283540637598434,-1.0999826309872187,null,0,0,0]
[2057,0,-0.47513620102342063,-1.1563545189054638,null,0,0,0,null,4.4660802564904144E-2,0.51271365007111946,0.13023857508594666,null,0,0,0]
[2058,0,-0.64458556464592953,-2.4439015766179799,null,0,0,0,null,-8.0191012962731914E-2,-1.0777125277079613,-2.5070533224844112,null,0,0,0]
[2059,0,1.3020887811154607,3.7479304253408627,null,0,0,0,null,4.8020159811808981E-2,0.73522416656939638,2.5750960014715019,null,0,0,0]
[2060,0,0.16912663731264546,0.34751882389323147,null,0,0,0,null,1.3781477055268852E-2,0.19902660223260046,0.63440635229433973,null,0,0,0]
[2061,0,1.6987004388177611,4.8130378101783133,null,0,0,0,null,6.5766288507532578E-2,0.95565725545108304,2.8868100143509325,null,0,0,0]
[2062,0,-0.90223629552580131,-2.9695122157533986,null,0,0,0,null,-7.1944770950914227E-2,-0.99586800098978256,-2.6033088202937544,null,0,0,0]
[2063,0,0.10182739357516948,0.31745796826268635,null,0,0,0,null,5.5037840013467704E-2,0.69363795289837349,1.0832459838827053,null,0,0,0]
[2064,0,-2.6081409351046676,-6.7157157328220567,null,0,0,0,null,-5.9664865758182827E-2,-0.87444059737428781,-2.6055067129077871,null,0,0,0]
[2065,0,-1.2118596605178846,-3.8884526694374508,null,0,0,0,null,2.0474842280850909E-2,0.11738099723490723,-1.4527247692874334,null,0,0,0]
[2066,0,1.046720996439406,2.8204800757200501,null,0,0,0,null,2.4997033794615505E-3,6.5786576608328692E-2,0.53078915558999507,null,0,0,0]
[2067,0,-0.25894357563324594,-1.2255156907732889,null,0,0,0,null,-1.5951814791064351E-2,-0.21395022703719316,-0.6086914219363061,null,0,0,0]
[2068,0,-1.1335688945953697,-3.1109882540896434,null,0,0,0,null,1.1922523851761582E-2,4.9285792963600215E-2,-1.0292343186579711,null,0,0,0]
[2069,0,-0.25014646079324304,-0.65054190443236437,null,0,0,0,null,-5.9106113304756604E-3,-4.5726628635482484E-2,0.25918377016475641,null,0,0,0]
[2070,0,-0.48198811592380481,-0.78585412915323827,null,0,0,0,null,-5.077674346709949E-2,-0.69153489317459571,-1.502974487951702,null,0,0,0]
[2071,0,1.9285829377901154,5.1729962902003175,null,0,0,0,null,-1.5401721183401093E-2,-4.7072557514992695E-2,1.6174131777960175,null,0,0,0]
[2072,0,1.9009052353397529,5.336963384531999,null,0,0,0,null,7.9259525478154444E-2,1.1312652994810515,3.2416509014218136,null,0,0,0]
[2073,0,0.46870337870695039,1.4547285186273584,null,0,0,0,null,-1.6983564039319048E-2,-0.27340300846090665,-1.0776217508471455,null,0,0,0]
[2074,0,-0.9827180708596388,-3.2366897902187848,null,0,0,0,null,-6.9733844144862417E-2,-1.0243949015686531,-3.2296873814470746,null,0,0,0]
[2075,0,-4.5653318848266282E-2,9.7959598080582508E-2,null,0,0,0,null,-2.8230646391762603E-2,-0.44106109892961742,-1.6045233153777336,null,0,0,0]
[2076,0,1.8333961953953894,4.6480163685605218,null,0,0,0,null,9.1720173766089999E-2,1.315578065579879,3.7431433388937547,null,0,0,0]
[2077,0,0.36338867175841549,1.0494279144475587,null,0,0,0,null,5.9098527168239399E-2,0.76362413170129462,1.4159043803884233,null,0,0,0]
[2078,0,0.73109827674041483,1.9637900338915641,null,0,0,0,null,9.0512148371632573E-2,1.1675913850036042,2.1261539650861341,null,0,0,0]
[2079,0,1.0169311396406666,2.8941238756952736,null,0,0,0,null,2.749587047814555E-2,0.40223013177756639,1.2453940523940363,null,0,0,0]
[2080,0,0.71518276029434491,1.8599682158453505,null,0,0,0,null,8.8629868932954589E-2,1.1482334664444833,2.1360386722113724,null,0,0,0]
[2081,0,-0.5396464049656533,-1.2425411829521691,null,0,0,0,null,-1.2895773391669252E-2,-0.23616989319650838,-1.1046451078416977,null,0,0,0]
[2082,0,0.82092456988804952,2.1694389094987492,null,0,0,0,null,9.0171069487405192E-2,1.1639849008726679,2.1152558604395271,null,0,0,0]
[2083,0,-1.7125763451709026,-4.2375725167468774,null,0,0,0,null,-8.1286755981784045E-3,-0.27238040481240477,-2.1764423082982356,null,0,0,0]
[2084,0,1.8920283265761719,4.8922457438126949,null,0,0,0,null,5.2414946100330498E-2,0.84885892921420869,3.3814672048234131,null,0,0,0]
[2085,0,-1.5751817554494556,-4.7653427798453629,null,0,0,0,null,2.6667848124609067E-2,0.23981558488155316,-0.79620743809562922,null,0,0,0]
[2086,0,-0.98500979764857766,-2.6818451293303953,null,0,0,0,null,-8.8570988999480838E-3,-0.18509585593904104,-1.0829991969995645,null,0,0,0]
[2087,0,-0.29502889588190556,-0.85741833617370866,null,0,0,0,null,-2.8513640779583453E-2,-0.32295326916748857,-0.1181560500441774,null,0,0,0]
[2088,0,-0.45010079196578406,-1.4036297843960492,null,0,0,0,null,1.1598667638585938E-2,8.8575976705817988E-2,-0.54863325577855726,null,0,0,0]
[2089,0,-0.24302539876623996,-0.72804602899916793,null,0,0,0,null,-2.8935164773403188E-2,-0.32753097201043874,-0.11057666241951665,null,0,0,0]
[2090,0,0.49036597440911828,1.645260781415891,null,0,0,0,null,-8.7244528333606519E-2,-0.96514275366594759,-5.8826217252604694E-2,null,0,0,0]
[2091,0,1.6417124901405933,4.7194120919565972,null,0,0,0,null,8.2846494125988157E-2,1.1347668594470697,2.7720172318800143,null,0,0,0]
[2092,0,-0.19974827385908064,-0.23033965306502069,null,0,0,0,null,-2.7464454524859832E-2,-0.36976607073410289,-0.73325863505762756,null,0,0,0]
[2093,0,0.51067494342968711,1.8077506574469953,null,0,0,0,null,-2.2149979156060852E-2,-0.23391293344970199,0.27981323176141815,null,0,0,0]
[2094,0,-0.45555289740053012,-0.85180454543180528,null,0,0,0,null,-4.9022309100924928E-2,-0.66047849140691872,-1.3754366957655912,null,0,0,0]
[2095,0,-0.27431282266001833,-0.41945975508711852,null,0,0,0,null,-4.0959396452638262E-2,-0.54549187867348881,-1.0651042259428978,null,0,0,0]
[2096,0,1.5612378253779242,4.2981483405968319,null,0,0,0,null,-2.3854051744868172E-2,-0.13430667879873817,1.6575101279369664,null,0,0,0]
[2097,0,0.68624474288393145,1.7652306659792156,null,0,0,0,null,7.8337090599953571E-2,1.0206166899297924,1.9585065102068437,null,0,0,0]
[2098,0,-0.89923316481196158,-2.9832427659883325,null,0,0,0,null,-2.3322276883945961E-2,-0.35292713731719505,-1.3504858369587018,null,0,0,0]
[2099,0,2.9669000068546666E-2,0.34350448747766493,null,0,0,0,null,-7.5599923912859027E-3,-0.17766822439993302,-1.1563441123369593,null,0,0,0]
[2100,0,-1.3878481010038832,-3.5434050016240728,null,0,0,0,null,-4.8285358072242955E-2,-0.76371907846841991,-2.9838319387036063,null,0,0,0]
[2101,0,-1.5054486854955575,-4.1223029010446774,null,0,0,0,null,-3.9919553540296762E-2,-0.59072112030802149,-1.9020132668179395,null,0,0,0]
[2102,0,-0.4409453872519189,-1.0777166444904287,null,0,0,0,null,-2.5909324327246564E-2,-0.38631488760382943,-1.1920831006098451,null,0,0,0]
[2103,0,-1.4573259973592849,-4.5152269392869275,null,0,0,0,null,4.0041001768220841E-2,0.35093447785370246,-1.20340137841658,null,0,0,0]
[2104,0,0.36346002120005505,0.97842503458682772,null,0,0,0,null,1.174373904051987E-2,0.17204548145795526,0.61964155406945431,null,0,0,0]
[2105,0,1.7579267379828889,4.5616975121446668,null,0,0,0,null,5.4028713888573124E-2,0.84967891540382878,3.1654195862181695,null,0,0,0]
[2106,0,-0.37990970585487593,-0.49662145758781118,null,0,0,0,null,7.8506611639418793E-3,3.8060005407712198E-2,-0.47103870452519186,null,0,0,0]
[2107,0,1.4141736835011907,3.7624913396815609,null,0,0,0,null,1.3499972634393885E-2,0.25579237044230924,1.3911694666731564,null,0,0,0]
[2108,0,0.52749315563771237,1.542097049161246,null,0,0,0,null,-6.4804293541392893E-3,-6.2149763499029176E-2,0.2103817922080998,null,0,0,0]
[2109,0,-0.36123222871613508,-0.67825591028085186,null,0,0,0,null,-5.2599888208384696E-2,-0.65220653906986814,-0.90722872984329295,null,0,0,0]
[2110,0,-2.9292220566933538,-7.6223801700201257,null,0,0,0,null,-8.3406421298845373E-2,-1.2407690404661997,-3.853594410893904,null,0,0,0]
[2111,0,-1.623344571336369,-4.2676996685447888,null,0,0,0,null,-8.4987470255161665E-2,-1.142181155798532,-2.5353945885445754,null,0,0,0]
[2112,0,-9.5461114189522051E-2,-0.28620309814890788,null,0,0,0,null,4.4380120560472448E-2,0.54722787684995544,0.68816357739134038,null,0,0,0]
[2113,0,-0.14969412671332794,-0.17473992309312597,null,0,0,0,null,-3.2609911339030871E-2,-0.51819452273025401,-1.953816551091706,null,0,0,0]
[2114,0,-1.6730149552386137E-2,-0.28737509339140527,null,0,0,0,null,-7.855637748252349E-2,-0.87354880123767997,-0.11438954066839142,null,0,0,0]
[2115,0,-2.1383652353611926,-5.6732843302729234,null,0,0,0,null,-6.074690884086232E-2,-0.98595781629150947,-4.0365980152233316,null,0,0,0]
[2116,0,-0.79765343599511107,-2.2091735120951634,null,0,0,0,null,5.4433200806868736E-3,-1.7696299330989859E-2,-1.0066966784788782,null,0,0,0]
[2117,0,-0.22150090946567433,-5.0108945673877317E-2,null,0,0,0,null,-2.8361773804623909E-2,-0.40412187272842859,-0.98873026342913728,null,0,0,0]
[2118,0,-0.34401126782186109,-0.80060154543826501,null,0,0,0,null,-2.0282059008934594E-2,-0.32966908430765124,-1.4192287225981637,null,0,0,0]
[2119,0,1.6696278201620207,4.5153651873562488,null,0,0,0,null,-3.536417173498984E-2,-0.30262792160998558,1.1605930335152044,null,0,0,0]
[2120,0,-1.3003494597668559,-3.4092865258717064,null,0,0,0,null,-5.1799890332537984E-2,-0.70374945103692244,-1.6682942162636392,null,0,0,0]
[2121,0,1.5977758188321567,4.0827277022577908,null,0,0,0,null,9.0284979689602043E-2,1.2643887961644977,3.3531886534427868,null,0,0,0]
[2122,0,-0.24645769600033965,-0.37627865229906454,null,0,0,0,null,1.4477667209206971E-3,-4.1650458209497629E-2,-0.63183670296991845,null,0,0,0]
[2123,0,1.5650749646437889,4.2134716729626449,null,0,0,0,null,-2.1240630840277733E-2,-9.4979346929476377E-2,1.7586313776235876,null,0,0,0]
[2124,0,1.582897488948569,4.3702681661947933,null,0,0,0,null,9.8517603317948843E-2,1.3909398736590801,3.9480596978728935,null,0,0,0]
[2125,0,1.8860059223693553,4.8564781664926926,null,0,0,0,null,9.1769221504744508E-2,1.3249397885503604,3.8461692161825667,null,0,0,0]
[2126,0,0.97406163422716419,3.0923641318982407,null,0,0,0,null,9.9985048580923205E-2,1.2675653419059045,2.2356423107084193,null,0,0,0]
[2127,0,-0.64291968593654747,-1.347992353294736,null,0,0,0,null,-2.1106788151997024E-2,-0.36136353311329278,-1.4830324630710019,null,0,0,0]
[2128,0,-2.0463551019787682,-5.4296305505382554,null,0,0,0,null,-4.4571658439011175E-2,-0.73658432408300634,-3.1411881330736322,null,0,0,0]
[2129,0,-1.2190978132451746,-3.4933618029381686,null,0,0,0,null,1.5201964477170917E-2,6.9322269038560078E-2,-1.2729875302261462,null,0,0,0]
[2130,0,-1.5371605000672934,-4.6931943588099605,null,0,0,0,null,-7.162392479451057E-3,-0.17163651418377596,-1.2637528003951046,null,0,0,0]
[2131,0,-1.4555353419758195,-3.9635146360884175,null,0,0,0,null,-4.9348991864240417E-2,-0.71877329220853337,-2.2038275486849925,null,0,0,0]
[2132,0,1.2837811637274972,3.5891077276926735,null,0,0,0,null,3.2824088559725455E-2,0.50850316219493019,1.8379131028071169,null,0,0,0]
[2133,0,-1.2993079273828243,-3.5527593962551691,null,0,0,0,null,-6.3302901827970576E-3,-0.20997066610072671,-1.8156532621584738,null,0,0,0]
[2134,0,1.6597190204344952,4.4863052865562709,null,0,0,0,null,1.4659481474562369E-2,0.29402652899336046,1.7070482091175327,null,0,0,0]
[2135,0,0.6054934416447868,1.9330327884867657,null,0,0,0,null,-2.5405707901933739E-2,-0.24170222306579217,0.56486249446493098,null,0,0,0]
[2136,0,0.34475796354683919,1.2163062869505739,null,0,0,0,null,-8.3557001875548223E-2,-1.0106413002962609,-1.1388322350015296,null,0,0,0]
[2137,0,1.785624789189773,5.1021934733675227,null,0,0,0,null,8.2725388785229087E-2,1.1922792961357236,3.5228169945815644,null,0,0,0]
[2138,0,-1.062904163002786,-3.0020868619280301,null,0,0,0,null,-7.6528054525462604E-3,-0.17751775785957671,-1.259217508430742,null,0,0,0]
[2139,0,-1.6958844381998097,-4.1272721590334331,null,0,0,0,null,-2.1666897753962418E-2,-0.33160105643344107,-0.90167993157338422,null,0,0,0]
[2140,0,-0.16985498269310484,-0.27167287070004387,null,0,0,0,null,-3.8593446088281665E-3,-9.5858644377244673E-2,-0.74894818176355327,null,0,0,0]
[2141,0,1.3283075069632815,3.4071947822399236,null,0,0,0,null,3.461878592270466E-3,8.7716884385879892E-2,0.65206141429227138,null,0,0,0]
[2142,0,-0.10076731643021776,0.34517966904742209,null,0,0,0,null,2.3867881011115172E-2,0.26211214888134327,-0.13781718961682782,null,0,0,0]
[2143,0,-0.72828467576809452,-2.1522507801777029,null,0,0,0,null,-3.7385585084805315E-2,-0.50472470701429395,-1.2566983217617453,null,0,0,0]
[2144,0,1.4639608160213229,3.8620891954315595,null,0,0,0,null,-3.9093298249624528E-2,-0.37123489338909893,0.79674699404411153,null,0,0,0]
[2145,0,1.7690389487474549,4.4960787648925322,null,0,0,0,null,4.9984444872404936E-2,0.81676293697693114,3.2996777092208722,null,0,0,0]
[2146,0,0.91036383244445274,2.6448539616636628,null,0,0,0,null,-2.792576849351491E-2,-0.23788826249174327,0.94539220744404517,null,0,0,0]
[2147,0,-2.7509062790489645,-7.275385244049434,null,0,0,0,null,-7.6737755380488687E-2,-1.1545972660127628,-3.7138581050417199,null,0,0,0]
[2148,0,-0.65954192589736882,-1.8452272651794557,null,0,0,0,null,-6.4518871819697204E-2,-0.78503646668145033,-0.93709411731865477,null,0,0,0]
[2149,0,-0.33348996652122875,-0.90534863579551894,null,0,0,0,null,1.6348331487168081E-2,0.14548046848115245,-0.43944412025194107,null,0,0,0]
[2150,0,1.400872097011379,3.6482459227156507,null,0,0,0,null,-2.610087892537814E-2,-0.22318730980464987,0.85160083622244198,null,0,0,0]
[2151,0,-0.15529976191298009,-0.49243455595583507,null,0,0,0,null,2.8601209590653296E-2,0.33239948251292933,0.17016464706048282,null,0,0,0]
[2152,0,-0.45723665436226474,-0.90712704516125087,null,0,0,0,null,-1.6011113898677251E-2,-0.2633876157713585,-0.97491479215268551,null,0,0,0]
[2153,0,-0.68131401297371308,-2.094364717955723,null,0,0,0,null,1.022495716376909E-2,4.5641622524476587E-2,-0.91129320140591519,null,0,0,0]
[2154,0,1.5068222922060541,3.9834543067680279,null,0,0,0,null,1.8949552242664879E-2,0.3353041099003094,1.6249866303608906,null,0,0,0]
[2155,0,-1.3991054116777304,-3.9507787759879212,null,0,0,0,null,-3.476237519403412E-2,-0.50981125839584185,-1.6375058196716672,null,0,0,0]
[2156,0,0.69042691164064129,2.1523233417383674,null,0,0,0,null,9.6754509372037768E-3,0.14038867011724596,0.54420669084496698,null,0,0,0]
[2157,0,0.39859816784891883,0.68497063332267139,null,0,0,0,null,4.1395655897755431E-3,8.8828704990221927E-2,0.5312300282196375,null,0,0,0]
[2158,0,0.70406492850644831,1.8524983534695203,null,0,0,0,null,8.7345289579121244E-2,1.1132982443374486,1.8855388937801363,null,0,0,0]
[2159,0,1.9526770107252032,5.0533447844917392,null,0,0,0,null,8.0573646075696781E-2,1.1855731275888466,3.6949480495040805,null,0,0,0]
[2160,0,4.4025274480562072E-2,0.41853766434263523,null,0,0,0,null,-1.4362960612618679E-2,-0.22097078316473834,-0.84916339046494982,null,0,0,0]
[2161,0,-1.0096102537684493,-2.9377675626262061,null,0,0,0,null,1.7926003682437623E-2,0.12987458832062293,-0.90329311094119114,null,0,0,0]
[2162,0,-0.74736082944238658,-2.122250930458911,null,0,0,0,null,5.2221286747601422E-3,2.2766366645109882E-3,-0.70391983900889676,null,0,0,0]
[2163,0,0.88763718425654226,2.1348928493859058,null,0,0,0,null,2.0802886201262027E-2,0.32773863077836812,1.3033387002056516,null,0,0,0]
[2164,0,1.3904209507917349,3.8328606523469424,null,0,0,0,null,1.6183262292245787E-2,0.26423044346789448,1.1506825629829327,null,0,0,0]
[2165,0,2.1183011504755305,5.4693957296213336,null,0,0,0,null,8.8172783842440428E-2,1.2710032816908778,3.7177352692922905,null,0,0,0]
[2166,0,0.50700583041054781,0.97360856951417374,null,0,0,0,null,-6.0414921008006786E-2,-0.63539668784660264,0.35729539761204798,null,0,0,0]
[2167,0,-1.44693759054598,-4.4802854914709318,null,0,0,0,null,1.3399981309149836E-2,7.2553384997764619E-2,-1.0333030464139992,null,0,0,0]
[2168,0,0.19121045874714218,0.9297896814494816,null,0,0,0,null,2.2949225032224377E-3,-2.4520020890541672E-2,-0.49070022493868964,null,0,0,0]
[2169,0,1.0559730849837488,2.9435886055570006,null,0,0,0,null,4.2099264255499688E-2,0.60866379238650459,1.8048718118554425,null,0,0,0]
[2170,0,0.31892262320812187,1.0554792171996379,null,0,0,0,null,2.0790021885993609E-3,3.4834137248715709E-2,0.25066303524400063,null,0,0,0]
[2171,0,0.58634038686571144,1.5244410028350031,null,0,0,0,null,1.6001534293822658E-2,0.22656108056768517,0.7222259593833551,null,0,0,0]
[2172,0,2.1608885341783846,5.5093264032321096,null,0,0,0,null,8.6785891507864504E-2,1.2731804234789161,3.9091353218613949,null,0,0,0]
[2173,0,0.29584751488356414,1.1929070994362192,null,0,0,0,null,-9.4046787394746562E-2,-1.0547721809606692,-0.22254908543536658,null,0,0,0]
[2174,0,-0.25602453251208501,-0.26367230417948301,null,0,0,0,null,1.2181919107220836E-2,0.10332572401103517,-0.26177734470763608,null,0,0,0]
[2175,0,-0.27788081370699913,-1.2339225288096349,null,0,0,0,null,4.1208077414628237E-2,0.55645532035538059,1.1736906928439421,null,0,0,0]
[2176,0,1.7950525440963974,5.2514268077235542,null,0,0,0,null,0.11418695822137812,1.5072739362015863,3.2784606288096185,null,0,0,0]
[2177,0,-0.68381121572626402,-2.4106729027918554,null,0,0,0,null,-2.9487657636012729E-2,-0.40656427123236699,-1.1995955367913667,null,0,0,0]
[2178,0,-0.53127417782284103,-1.1203349458775482,null,0,0,0,null,-1.7456489599898702E-2,-0.29762644512968017,-1.3722868895834546,null,0,0,0]
[2179,0,-1.5194558907454192,-4.0855682222493268,null,0,0,0,null,-4.0935605713581139E-2,-0.62728789858280021,-2.21189428518348,null,0,0,0]
[2180,0,-0.19288424232112994,-0.27024726489091699,null,0,0,0,null,-1.6341898246392077E-2,-0.30201001241510766,-1.516995033641775,null,0,0,0]
[2181,0,2.4865574564606923,6.4894570441118775,null,0,0,0,null,0.12042568861458011,1.7308222030275784,5.0290030096825609,null,0,0,0]
[2182,0,1.2812675790942467,3.2726104038160337,null,0,0,0,null,-3.5098027186178681E-2,-0.3483549574275685,0.50277742501096145,null,0,0,0]
[2183,0,-0.31170657631436555,-1.33135714538076,null,0,0,0,null,-2.7744085417416558E-2,-0.36466729160459088,-0.87891598243340918,null,0,0,0]
[2184,0,-0.50903130285405318,-1.2837938626261749,null,0,0,0,null,-3.394378503800817E-2,-0.511687667314628,-1.8026690089169242,null,0,0,0]
[2185,0,-0.63770929767849882,-2.3801315155162373,null,0,0,0,null,-8.0682154633908848E-2,-1.0499777918820936,-2.1238024004379548,null,0,0,0]
[2186,0,1.4756683315177523,3.9223740310115174,null,0,0,0,null,1.6638913822438043E-2,0.31613827556660362,1.6410662442610773,null,0,0,0]
[2187,0,-0.58233848161461177,-1.7651457404812319,null,0,0,0,null,8.6927000860922594E-3,4.5084687990542077E-2,-0.72685273222692559,null,0,0,0]
[2188,0,-0.79954037702380087,-2.3001382791408616,null,0,0,0,null,-3.9397540103348318E-2,-0.54958450893770072,-1.5312162295225316,null,0,0,0]
[2189,0,-0.16559307521870686,6.9837409317602572E-2,null,0,0,0,null,7.772944080783304E-3,0.10334326542477265,0.15081091892904805,null,0,0,0]
[2190,0,-1.7305768914734818,-4.2959725251640704,null,0,0,0,null,-5.0793199752359269E-2,-0.64824476510727436,-0.87619754636421932,null,0,0,0]
[2191,0,-1.5570259363603181,-4.007019445935839,null,0,0,0,null,-5.9677908984998737E-2,-0.82847680927601774,-2.0862596134600646,null,0,0,0]
[2192,0,-1.3914769680030039,-3.8480372423899025,null,0,0,0,null,-7.341712361007495E-2,-0.97720127696464898,-2.1229529336289161,null,0,0,0]
[2193,0,-0.27788081370699913,-1.2339225288096349,null,0,0,0,null,4.1208077414628237E-2,0.55645532035538059,1.1736906928439421,null,0,0,0]
[2194,0,1.7278563997469101,4.6448583711055837,null,0,0,0,null,-1.7565909371822671E-2,-5.9522526083682352E-2,1.7593875275319115,null,0,0,0]
[2195,0,0.30340127702346037,0.83066919845805387,null,0,0,0,null,1.8642584067012989E-2,0.22556144808997305,0.21175382697899842,null,0,0,0]
[2196,0,-1.2880904213874673,-3.6533391918171692,null,0,0,0,null,2.1356191486254998E-2,0.1483180430529519,-1.1396936518730945,null,0,0,0]
[2197,0,-0.75481771870865666,-2.1999158266410888,null,0,0,0,null,2.2023552540043227E-2,0.20318454307575029,-0.58129055480695757,null,0,0,0]
[2198,0,-1.8459477089729481,-4.7265485089235586,null,0,0,0,null,3.1817795740754662E-2,0.2870151764047123,-0.6360772908436011,null,0,0,0]
[2199,0,-0.1231687079129424,-0.27140855256189389,null,0,0,0,null,4.8194762302995742E-2,0.56578673334051477,0.26171612003047268,null,0,0,0]
[2200,0,-0.31072125813358614,-1.2810156005807802,null,0,0,0,null,2.8196198443649963E-2,0.3711517954290548,0.67494708878282839,null,0,0,0]
[2201,0,-0.10181473408170859,-0.34100025661536348,null,0,0,0,null,4.0631943377215519E-2,0.49055702960090003,0.48964768533615644,null,0,0,0]
[2202,0,1.3333967692938113,3.4898839511436162,null,0,0,0,null,2.0203798311054698E-2,0.3408466947819061,1.4313133715039184,null,0,0,0]
[2203,0,0.71085947241728897,2.0621798336446227,null,0,0,0,null,-2.9691874472338328E-2,-0.4510994527338098,-1.5094095904759197,null,0,0,0]
[2204,0,-0.24828182198175455,-0.33645418265643096,null,0,0,0,null,-4.4356038259523188E-2,-0.58718088665642154,-1.131918729930705,null,0,0,0]
[2205,0,-1.2743523265257881,-4.1201523875598145,null,0,0,0,null,9.4417276763653036E-4,-0.12623774431045875,-1.8302393884213888,null,0,0,0]
[2206,0,-1.1997564748676977,-2.9789712353997166,null,0,0,0,null,-2.0266732730377896E-2,-0.33957833130720427,-1.4018310584522624,null,0,0,0]
[2207,0,0.29076279074626837,1.1743550968439158,null,0,0,0,null,-2.5935952282198287E-2,-0.29329100994306556,5.3611735312788372E-2,null,0,0,0]
[2208,0,-0.76449677415434958,-2.2104550777898768,null,0,0,0,null,-4.9487159573982635E-2,-0.6454572830374582,-1.2767202030818481,null,0,0,0]
[2209,0,-1.3681470557480988,-3.848958247067356,null,0,0,0,null,1.3801434508254431E-2,3.1665084732131615E-2,-1.5439397699752335,null,0,0,0]
[2210,0,0.43030887896476272,1.4444903752456011,null,0,0,0,null,-2.4508324001909103E-2,-0.27559160017155138,-8.2843199777435081E-2,null,0,0,0]
[2211,0,-1.413627209063925,-4.3890079321577939,null,0,0,0,null,2.8893838108545369E-2,0.22485315796604755,-1.2431695959426579,null,0,0,0]
[2212,0,1.9373297653769259,5.4258031154818092,null,0,0,0,null,8.2401181265601336E-2,1.1922449072264454,3.5689131820322038,null,0,0,0]
[2213,0,1.2701672735705214,3.3341304272568961,null,0,0,0,null,1.2862443059446378E-2,0.27492351545816657,1.7491948450467825,null,0,0,0]
[2214,0,0.70317215644823594,2.1829119292765897,null,0,0,0,null,9.6754509372039485E-3,0.13361690639551399,0.46294552618415763,null,0,0,0]
[2215,0,-0.16466111978161463,-9.4332647306109726E-2,null,0,0,0,null,-9.533733787714653E-3,-0.12483956488716103,-0.33652452830478796,null,0,0,0]
[2216,0,-1.4348733414046764,-4.5667281322629281,null,0,0,0,null,-6.3211389942387716E-2,-0.95159047447865763,-3.3056470762902137,null,0,0,0]
[2217,0,0.34609839125847791,0.95094419136930086,null,0,0,0,null,5.2357738959320214E-2,0.68435188638497579,1.3394249345980389,null,0,0,0]
[2218,0,-0.98767925277915314,-3.2419888355550572,null,0,0,0,null,-2.0240609298152037E-2,-0.31968576206151011,-1.3690765695405316,null,0,0,0]
[2219,0,-0.79245903762920167,-2.5236264426573469,null,0,0,0,null,-5.0724778992320751E-2,-0.68165205668594631,-1.6582727079749493,null,0,0,0]
[2220,0,-0.34773056480545711,-1.1846243708672264,null,0,0,0,null,1.7510551763750128E-2,0.1770159743297727,-0.27807575912600807,null,0,0,0]
[2221,0,0.12106860603619862,0.32833204128657961,null,0,0,0,null,6.8118179023472919E-2,0.85970102839600349,1.3498668593076546,null,0,0,0]
[2222,0,1.6262185199799004,4.7516075971606115,null,0,0,0,null,6.6585502860774165E-2,0.98799364753190189,3.171873903337735,null,0,0,0]
[2223,0,1.5650749646437854,4.2134716729626449,null,0,0,0,null,-1.6447767903752946E-2,-3.4747846922324244E-2,1.8434210436122631,null,0,0,0]
[2224,0,-0.76774818857712668,-2.0447245877453679,null,0,0,0,null,-4.4980160963073959E-2,-0.61552146481067305,-1.6434067975546314,null,0,0,0]
[2225,0,0.84118272938493288,2.7297405563959329,null,0,0,0,null,2.5157393715766942E-2,0.38335840779036973,1.2457293400023008,null,0,0,0]
[2226,0,-1.3517411578758893,-3.8026444754003244,null,0,0,0,null,2.2012076733132005E-2,0.13231920339719819,-1.4183862619499124,null,0,0,0]
[2227,0,0.25418761452963734,0.72496330421078159,null,0,0,0,null,5.2882869197223388E-3,7.1524690302919219E-2,8.8943310171485795E-2,null,0,0,0]
[2228,0,2.0381518711218778,5.2951929746984456,null,0,0,0,null,9.8376154352535258E-2,1.4020297628154959,3.9491679051637476,null,0,0,0]
[2229,0,1.274811080757605,3.5108232261362864,null,0,0,0,null,2.9158466353697746E-2,0.43660361470932274,1.4828090154503626,null,0,0,0]
[2230,0,-0.37836107492622795,-0.71459245098803514,null,0,0,0,null,-5.7581031153790492E-2,-0.71254719852722248,-0.98949585427102282,null,0,0,0]
[2231,0,0.26843642417800945,0.2363945906516019,null,0,0,0,null,2.1581437491950226E-2,0.3254494665905977,0.98542450168402507,null,0,0,0]
[2232,0,0.26705497767701852,1.0047547535825943,null,0,0,0,null,-5.4210491503485968E-2,-0.64561241300409078,-0.59580335059335265,null,0,0,0]
[2233,0,-0.93974897019279346,-2.5778852257003817,null,0,0,0,null,-4.5139273590055325E-2,-0.60201058628893955,-1.3150956702079128,null,0,0,0]
[2234,0,-0.32905286630937192,-0.88025388326475518,null,0,0,0,null,6.8608170658323499E-3,3.3281613928374101E-2,-0.52210412557370733,null,0,0,0]
[2235,0,-1.2073700849326432,-3.943829724996089,null,0,0,0,null,-4.0668764909516427E-3,-0.19584353365012067,-2.0037168381432311,null,0,0,0]
[2236,0,-1.1793442558486167,-3.0648232747477522,null,0,0,0,null,-1.4470108665693659E-2,-0.25757811727340685,-1.2110643860721866,null,0,0,0]
[2237,0,0.38945264489256626,1.332934303492846,null,0,0,0,null,-8.6648570597403426E-2,-1.019054478389954,-0.81733217313492423,null,0,0,0]
[2238,0,1.3708979765941367,4.1422604322660046,null,0,0,0,null,9.0091456136912426E-2,1.1751279319910273,2.4286070769421824,null,0,0,0]
[2239,0,-0.59102810401412897,-2.1511878205920585,null,0,0,0,null,-5.619392436673553E-2,-0.80407692538940589,-2.3941919416395905,null,0,0,0]
[2240,0,-0.35195082716158865,-0.94889986862349174,null,0,0,0,null,-2.3739355771869385E-2,-0.27328654150375498,-0.15686591603104172,null,0,0,0]
[2241,0,1.5752301491358449,4.0564611562264981,null,0,0,0,null,-1.3954179497005726E-4,0.14381537196318003,1.8008009513616525,null,0,0,0]
[2242,0,-0.91513024824910649,-2.5283874152667414,null,0,0,0,null,-1.2858644188205176E-2,-0.22142415301196705,-1.0056917342160159,null,0,0,0]
[2243,0,1.0019545869725661,2.9022469756650024,null,0,0,0,null,-5.781770196839648E-2,-0.59383271275862348,0.63282747445314813,null,0,0,0]
[2244,0,-0.63915083471775869,-2.2644835502086864,null,0,0,0,null,-5.3166449361322803E-2,-0.65607439131478984,-1.0591355154553348,null,0,0,0]
[2245,0,-0.84743391931472256,-2.1103690416920946,null,0,0,0,null,-6.4699518828143145E-3,-0.10956670119229329,-0.45750691306393126,null,0,0,0]
[2246,0,-1.6608344885964469E-2,0.27310489369027346,null,0,0,0,null,-2.7414045403353897E-2,-0.3514933386396169,-0.5068600636216033,null,0,0,0]
[2247,0,1.0828787672516829,2.9417587466006663,null,0,0,0,null,3.2871067173133039E-2,0.49519151283189694,1.6994616643396403,null,0,0,0]
[2248,0,-0.82891961068621089,-2.2513149060277864,null,0,0,0,null,5.9597608361271455E-3,5.1468118638285888E-3,-0.75471070182568656,null,0,0,0]
[2249,0,-0.42420864673606412,-1.1563692346330936,null,0,0,0,null,-1.364700242009178E-3,-8.9493094142190782E-2,-1.0529842596317867,null,0,0,0]
[2250,0,-0.20965971042541787,-0.69082746782035975,null,0,0,0,null,2.7979607541746419E-2,0.32060202033061341,0.10347268765364788,null,0,0,0]
[2251,0,-0.62596563633456759,-2.3826352442871577,null,0,0,0,null,-5.9253964982829588E-2,-0.80861907728912497,-2.0421288273076388,null,0,0,0]
[2252,0,-0.86026719085439618,-2.4823349763965381,null,0,0,0,null,-4.6514422716819923E-2,-0.63703372617608334,-1.6300533066885945,null,0,0,0]
[2253,0,0.75985738631511957,2.3805993250292379,null,0,0,0,null,-1.7513662020027992E-2,-0.13308730118461973,0.84776209403418756,null,0,0,0]
[2254,0,-0.442050316613042,-1.2168735471683541,null,0,0,0,null,-2.1732811230957962E-2,-0.22968921052319002,0.1390235835478561,null,0,0,0]
[2255,0,-0.72519428862076896,-2.0530405339194329,null,0,0,0,null,1.2697653749629069E-2,0.10038414307906078,-0.49234125691858205,null,0,0,0]
[2256,0,0.50882641095042891,1.4701167963389381,null,0,0,0,null,2.6607814827426579E-2,0.36225011495946818,0.80325006848786507,null,0,0,0]
[2257,0,0.40521150882053919,1.4155602845939501,null,0,0,0,null,-3.3299752889697457E-2,-0.40201364003432538,-0.42464927474306385,null,0,0,0]
[2258,0,1.1041822110071224,3.0017107032129933,null,0,0,0,null,3.9660547138328471E-2,0.56266911583836277,1.5732760205924132,null,0,0,0]
[2259,0,-1.532836470065984,-4.6922661710505924,null,0,0,0,null,-5.5504759388289244E-3,-0.22091329938516263,-2.0870017721213734,null,0,0,0]
[2260,0,-0.80234029387377082,-1.8631621063263666,null,0,0,0,null,-2.9052519375262081E-2,-0.42986695514537587,-1.4103434532799584,null,0,0,0]
[2261,0,0.80300314267353134,2.3885832466345529,null,0,0,0,null,-3.7479944823395894E-2,-0.3491208341835354,0.87396811059760149,null,0,0,0]
[2262,0,0.96793011015772212,2.5872076043342824,null,0,0,0,null,1.4562848629694316E-2,0.25765704888302116,1.208335948525866,null,0,0,0]
[2263,0,-1.1899281011865241E-2,-0.33097567378185339,null,0,0,0,null,-8.4008214128675207E-2,-0.95351772592739414,-0.36362968682244534,null,0,0,0]
[2264,0,0.19660664830299901,0.89269783318772533,null,0,0,0,null,4.4148261079346865E-3,2.0656834478370002E-2,-0.22693202234761703,null,0,0,0]
[2265,0,-0.47512030240931197,-1.214012718582635,null,0,0,0,null,-1.0478609594191368E-2,-0.16286919659882823,-0.74191873345851123,null,0,0,0]
[2266,0,-0.47619419192491658,-1.8507042495610513,null,0,0,0,null,-3.053771025957144E-2,-0.4294475601371523,-1.3334461485223619,null,0,0,0]
[2267,0,-0.62377284931387478,-1.3020399454003273,null,0,0,0,null,-2.1770839275310264E-2,-0.36425833372132638,-1.4301153220900669,null,0,0,0]
[2268,0,1.795968786941623,4.6545004978024442,null,0,0,0,null,9.59686263959382E-2,1.3617190736250149,3.7515379783882561,null,0,0,0]
[2269,0,0.69358711998038414,1.8343665458801406,null,0,0,0,null,3.4278584956061647E-2,0.45053368986447184,0.86091501114844504,null,0,0,0]
[2270,0,0.60217182655393475,1.9123575931101222,null,0,0,0,null,4.6002429017881355E-3,6.6371533959638324E-2,0.32139887885497226,null,0,0,0]
[2271,0,1.1601147283365898,3.3301631648770345,null,0,0,0,null,-4.101626232145833E-2,-0.37608964653525256,1.0380632878280702,null,0,0,0]
[2272,0,-1.7063910368826201,-4.3628487542618748,null,0,0,0,null,-6.483739272165491E-2,-0.88411108938043892,-2.0701262277588031,null,0,0,0]
[2273,0,0.92431190902839988,2.6500008533087311,null,0,0,0,null,3.3892236083204637E-2,0.47945096919735714,1.3238308911791028,null,0,0,0]
[2274,0,-1.5641709941585942,-4.074452628728781,null,0,0,0,null,6.7267942445580556E-2,0.71582664571175159,-0.14377733105692095,null,0,0,0]
[2275,0,-1.0240730652405181,-2.7853315638094207,null,0,0,0,null,-5.78853306401017E-2,-0.75659075393997499,-1.4880193912938011,null,0,0,0]
[2276,0,-0.43669463947967962,-1.1486147273287497,null,0,0,0,null,-1.3205138786591476E-2,-0.22844980275836679,-1.1832516810662601,null,0,0,0]
[2277,0,1.6213021589455057,4.2106980001567793,null,0,0,0,null,1.0424171710247378E-2,0.30273339793673221,2.3408677028169294,null,0,0,0]
[2278,0,1.823628248799374,4.7274847320657134,null,0,0,0,null,6.1166681915983699E-2,0.93788056806642184,3.2861472253373614,null,0,0,0]
[2279,0,-1.0630982166444956,-2.9843939927287648,null,0,0,0,null,-5.1655300136867486E-3,-0.17467879782884574,-1.480932262236649,null,0,0,0]
[2280,0,0.46119651735192746,1.411855004698271,null,0,0,0,null,-9.7180986186708659E-3,-0.1009093692333272,0.16733123148243612,null,0,0,0]
[2281,0,-1.4033601951896508,-3.6082472031822763,null,0,0,0,null,7.7056060292279599E-2,0.91038673727194597,0.7652533211190603,null,0,0,0]
[2282,0,-0.49355057697073246,-1.0389499129353643,null,0,0,0,null,-6.2651929778988064E-2,-0.77774984810619663,-1.1187417077851678,null,0,0,0]
[2283,0,-0.2014160173303535,-0.32318180854729872,null,0,0,0,null,-3.016795525229338E-2,-0.46582587136735221,-1.6465045101002433,null,0,0,0]
[2284,0,-1.2222469564355105,-4.0173291629601229,null,0,0,0,null,-1.7972489027757717E-2,-0.35177251392125525,-2.0669359102042835,null,0,0,0]
[2285,0,-0.27800320418105001,-1.2674070339733443,null,0,0,0,null,-3.4702328620853845E-2,-0.44344560933792765,-0.89386464161920232,null,0,0,0]
[2286,0,0.97301007517065952,2.5954054014315697,null,0,0,0,null,3.0919306992569829E-2,0.45941720820854787,1.5038370764117572,null,0,0,0]
[2287,0,0.6496793087715923,2.039078869591096,null,0,0,0,null,-3.1780607924016463E-2,-0.31902925640062585,0.48086089289611844,null,0,0,0]
[2288,0,0.48827198845068048,1.0835200162042966,null,0,0,0,null,2.2057109240322972E-2,0.31348912699185533,0.92281568202131892,null,0,0,0]
[2289,0,-0.19194232702592673,-0.29514430371423078,null,0,0,0,null,-1.3939644720893341E-2,-0.2155845072253178,-0.87094269602556962,null,0,0,0]
[2290,0,-0.51463173206461033,-0.93578241638598414,null,0,0,0,null,-4.8829374259160889E-2,-0.66483451433299801,-1.4517443431979373,null,0,0,0]
[2291,0,-1.2419996031433602,-3.2692468699753228,null,0,0,0,null,-5.179989033253804E-2,-0.70549730133905819,-1.6892684198892385,null,0,0,0]
[2292,0,-0.82819077614933667,-2.4040331260610328,null,0,0,0,null,-4.0046672237674726E-2,-0.53282662515943136,-1.2401968572655278,null,0,0,0]
[2293,0,0.81547192146306957,2.1414465317424694,null,0,0,0,null,8.1689524365857955E-2,1.0769730994574565,2.2098513715780026,null,0,0,0]
[2294,0,2.1794577800069854,5.5538925932207421,null,0,0,0,null,8.6785891507864504E-2,1.2784138419365008,3.9719363433524011,null,0,0,0]
[2295,0,1.9247590805732415,5.0298195631057023,null,0,0,0,null,-6.3225175868680027E-3,0.12577510382617493,2.4170042725660896,null,0,0,0]
[2296,0,1.2979232057097396,3.3091825001418038,null,0,0,0,null,-3.5041633349483618E-2,-0.35321523516188519,0.42880864950070829,null,0,0,0]
[2297,0,2.4554678465528723,6.4148419803331125,null,0,0,0,null,0.12356791452454371,1.7642090344852595,5.0148711670595407,null,0,0,0]
[2298,0,1.6176095797750913,4.5468685559145374,null,0,0,0,null,0.10762773608274954,1.4618773983493092,3.6023051701093682,null,0,0,0]
[2299,0,-1.8659359865660698,-5.4952299360687178,null,0,0,0,null,1.9077467630054856E-2,0.11202252660627528,-1.2790547107801249,null,0,0,0]
[2300,0,1.9148742870128463,4.9424501947944011,null,0,0,0,null,7.3368633806386419E-2,1.0905399816095906,3.498070478394784,null,0,0,0]
[2301,0,-0.32002418964209939,-0.90057141528915241,null,0,0,0,null,-6.7586761373962642E-4,-6.1052346458019199E-2,-0.67334834044811209,null,0,0,0]
[2302,0,1.0346504253305537,2.8348344175892271,null,0,0,0,null,3.9660547138328582E-2,0.57073282879527687,1.6700405760753638,null,0,0,0]
[2303,0,-0.62812011282327507,-1.9986053516788307,null,0,0,0,null,-4.9144481429401365E-2,-0.65948060557409283,-1.5718280165923644,null,0,0,0]
[2304,0,-8.1425685755986701E-2,-0.28687785396562687,null,0,0,0,null,8.5978594538669312E-3,7.2017832850892777E-2,-0.29643979562611278,null,0,0,0]
[2305,0,-1.0729991838018687,-2.9985527027912249,null,0,0,0,null,2.492259045335345E-3,-6.3993302524488177E-2,-1.1565319653488151,null,0,0,0]
[2306,0,0.27773389226390827,0.96867012363275717,null,0,0,0,null,-3.9150006616336551E-3,-0.13438322806577072,-1.1241420110849685,null,0,0,0]
[2307,0,-0.77286637580573547,-2.2303976145577109,null,0,0,0,null,1.751782019814482E-2,0.1560450324050571,-0.49522529127441522,null,0,0,0]
[2308,0,1.8783929348653001,5.088074631989417,null,0,0,0,null,-1.2850518670240035E-2,-2.3589243941186396E-2,1.5551203631593962,null,0,0,0]
[2309,0,-0.94046418358464867,-3.0725502283603054,null,0,0,0,null,-2.507249459712409E-2,-0.3648511949292797,-1.2573334006269252,null,0,0,0]
[2310,0,0.13180832274848764,0.36408218837637835,null,0,0,0,null,5.0574546040586657E-2,0.65325032287472007,1.1758488029473846,null,0,0,0]
[2311,0,-0.47278516246626895,-1.0305195982573132,null,0,0,0,null,-5.7772483836865209E-2,-0.74815353310927002,-1.4276486393827728,null,0,0,0]
[2312,0,-0.17120726982813175,5.2776472870617E-2,null,0,0,0,null,5.1536865867360003E-3,3.6058513158203825E-2,-0.30304560430794664,null,0,0,0]
[2313,0,1.0422247472016006,2.9835209047017779,null,0,0,0,null,-2.4099345347441556E-2,-0.19298881490814621,0.97839104094105644,null,0,0,0]
[2314,0,-1.5532637584475306,-4.7020328057949667,null,0,0,0,null,2.8834809192109047E-2,0.25341249322996917,-0.89530267557385745,null,0,0,0]
[2315,0,-0.75346793712694304,-1.8052286041066692,null,0,0,0,null,-6.6722509806900407E-2,-0.88984366484842392,-1.9559575256656243,null,0,0,0]
[2316,0,-1.0391851305699966,-2.8949493498609735,null,0,0,0,null,2.8569759153297698E-3,-5.3826868379871481E-2,-1.0796432484419674,null,0,0,0]
[2317,0,-0.1284217338803719,-0.83689816221664659,null,0,0,0,null,2.0386677218848775E-2,0.27722540092813414,0.55233094990665632,null,0,0,0]
[2318,0,-0.48198811592380481,-0.78585412915323827,null,0,0,0,null,-5.077674346709949E-2,-0.69153489317459571,-1.502974487951702,null,0,0,0]
[2319,0,1.463869695264675,3.894057304004142,null,0,0,0,null,1.6134446508233907E-2,0.30448235611670404,1.5677848963372234,null,0,0,0]
[2320,0,-0.22990627860306995,-0.51911332864437276,null,0,0,0,null,-1.2347585759967899E-2,-0.20056242014370945,-0.90251954224631847,null,0,0,0]
[2321,0,-0.43070284279390941,-1.5755533964643691,null,0,0,0,null,-6.1895060275241519E-2,-0.78261569704909195,-1.4040291513687007,null,0,0,0]
[2322,0,0.18023611586398147,0.5121467921581061,null,0,0,0,null,1.2565027228082613E-2,0.1238682765191088,-0.24842966552669168,null,0,0,0]
[2323,0,1.8350653532733376,4.7384582894191629,null,0,0,0,null,2.47781969223758E-2,0.54231558169782967,3.3290011603968486,null,0,0,0]
[2324,0,1.8212263431940228,4.6948220975806469,null,0,0,0,null,-1.9950595116330818E-2,-3.5092372026468185E-2,2.2808901261233658,null,0,0,0]
[2325,0,-2.9595477594462407,-7.6497921312185024,null,0,0,0,null,-9.5477148009728188E-2,-1.3970049260032638,-4.1402255062992079,null,0,0,0]
[2326,0,0.22753485565771733,0.95272359955957653,null,0,0,0,null,-9.8275806936688692E-2,-1.1223547960600382,-0.50559784618969206,null,0,0,0]
[2327,0,2.3933787250953338,6.1896302740091054,null,0,0,0,null,0.10467983819848445,1.503875813135007,4.3476318055004999,null,0,0,0]
[2328,0,-0.97425976360798083,-3.1292721098256369,null,0,0,0,null,-2.6679904970518236E-2,-0.39098129548816907,-1.3409596997695152,null,0,0,0]
[2329,0,-0.86812010659381844,-2.3732250097419381,null,0,0,0,null,6.5246896014453284E-2,0.86122051965213264,1.7282575060416348,null,0,0,0]
[2330,0,-0.41985990939573642,-0.63721078195500735,null,0,0,0,null,-4.9364023382560109E-2,-0.66388155292477313,-1.3629533218820069,null,0,0,0]
[2331,0,-0.44675786213968788,-0.69050991908204018,null,0,0,0,null,-4.8439130680271489E-2,-0.65702154216847064,-1.4075587535547347,null,0,0,0]
[2332,0,-1.0800641236333339,-3.0224336893511135,null,0,0,0,null,-3.4326255830901004E-3,-0.15311759853769763,-1.4487655464808669,null,0,0,0]
[2333,0,-0.13240460155147776,-0.68993074995386994,null,0,0,0,null,5.1457460982208145E-2,0.6649289447101846,1.1110008254665262,null,0,0,0]
[2334,0,-1.0511745156262859,-3.4475615377583817,null,0,0,0,null,-8.7864466511594061E-2,-1.2267579546661354,-3.3231950288313383,null,0,0,0]
[2335,0,1.4774687837895435,3.8917517756929665,null,0,0,0,null,-4.1591446519740373E-2,-0.41487340320298155,0.60327302720484655,null,0,0,0]
[2336,0,2.4678885528840291,6.4446516755278793,null,0,0,0,null,0.12042568861458033,1.7280184543464612,4.9953580255091179,null,0,0,0]
[2337,0,1.886005922369357,4.8564781664926926,null,0,0,0,null,9.6570532298242195E-2,1.3918649336421758,4.0021706494135545,null,0,0,0]
[2338,0,-0.69135497994472461,-1.8882070578312122,null,0,0,0,null,8.4767661684264514E-2,1.1085269017777128,2.1361670595047215,null,0,0,0]
[2339,0,1.6298965429109085,4.3689249706895863,null,0,0,0,null,4.6446231508919592E-3,0.11168007179231154,0.82173619743796367,null,0,0,0]
[2340,0,1.649963658311157,4.7718574392380466,null,0,0,0,null,6.6144313983820494E-2,0.95770673860641453,2.8583076967476662,null,0,0,0]
[2341,0,0.33492118572845175,1.0068587543239482,null,0,0,0,null,5.6544012430368697E-2,0.73374023370352826,1.3961483112959359,null,0,0,0]
[2342,0,-2.8961294486458793,-7.4468415636793139,null,0,0,0,null,-0.10504058950126267,-1.4508230597893008,-3.5260330655917898,null,0,0,0]
[2343,0,-1.0212951920113955,-2.7480569931517604,null,0,0,0,null,-6.0658289794903279E-2,-0.75988900926838054,-1.1250053495369829,null,0,0,0]
[2344,0,-0.40806375852123344,-1.2041759680480899,null,0,0,0,null,-5.3047832376027487E-3,-0.13198219167314529,-0.92692147050055429,null,0,0,0]
[2345,0,-0.82837394485454385,-1.9256428686802247,null,0,0,0,null,-4.3674853252114135E-2,-0.63270402598744746,-1.9142402316403351,null,0,0,0]
[2346,0,0.24430614639234774,1.0628591503944991,null,0,0,0,null,-2.5935952282198117E-2,-0.30324206596386738,-6.5800936936862855E-2,null,0,0,0]
[2347,0,0.75536099559007019,2.3121926479209067,null,0,0,0,null,-2.5422619260628606E-2,-0.23667273570102315,0.63027262918483762,null,0,0,0]
[2348,0,-0.37288228754074226,-0.49974763792070737,null,0,0,0,null,-3.3462814959814013E-2,-0.48130482601171481,-1.2594920938927352,null,0,0,0]
[2349,0,1.3643994962794004,3.5164433040934382,null,0,0,0,null,1.4548540786402555E-2,0.26662946338475285,1.2497014240196476,null,0,0,0]
[2350,0,-0.97750806331052076,-2.7414184977681799,null,0,0,0,null,6.3780870100549694E-4,-0.12370980965882791,-1.6871043470252081,null,0,0,0]
[2351,0,-1.5888682426578415,-4.3443868505188581,null,0,0,0,null,-4.4610125747654425E-2,-0.67514970616402115,-2.3200116733758986,null,0,0,0]
[2352,0,7.5999901164710532E-2,0.10265074859769811,null,0,0,0,null,-1.6664024357153835E-3,-1.0441385222547069E-2,0.14762302954044934,null,0,0,0]
[2353,0,0.58654228554514887,1.6602070802751769,null,0,0,0,null,3.6275680187249693E-2,0.45790818550083257,0.69597395064429657,null,0,0,0]
[2354,0,1.4160057041309937,3.7579066290047267,null,0,0,0,null,1.2660924270311114E-2,0.22846165428375298,1.180717381871822,null,0,0,0]
[2355,0,-0.69135497994472461,-1.8882070578312122,null,0,0,0,null,8.4767661684264514E-2,1.1085269017777128,2.1361670595047215,null,0,0,0]
[2356,0,-0.74513023783372223,-2.2700934118111689,null,0,0,0,null,-4.0871505811817997E-2,-0.55080133452586688,-1.3436978125652421,null,0,0,0]
[2357,0,-0.41329723482279224,-1.6680438371694035,null,0,0,0,null,-2.5433160348020976E-2,-0.30451543616641813,-0.49471163529061962,null,0,0,0]
[2358,0,-1.7060538769794857,-5.1255558403545587,null,0,0,0,null,1.3376737064106577E-2,6.4579053965196184E-2,-1.1368700120181165,null,0,0,0]
[2359,0,0.19377886670943917,0.96227079525132286,null,0,0,0,null,-1.9134370407089818E-2,-0.22401567120225718,-9.9636853517913546E-3,null,0,0,0]
[2360,0,-2.7835472207311884,-7.1820351638057689,null,0,0,0,null,-5.4605968805671354E-2,-0.80507172997116228,-2.4358360730266395,null,0,0,0]
[2361,0,-0.22509244795108316,-0.58810169899198805,null,0,0,0,null,2.588959158054132E-2,0.2639278715861319,-0.27294804809687045,null,0,0,0]
[2362,0,-0.50195003192264998,-1.2773318730262835,null,0,0,0,null,-2.8145854506824433E-3,-0.10071448506571597,-0.84372146317120855,null,0,0,0]
[2363,0,-0.37990970585487593,-0.49662145758781118,null,0,0,0,null,7.8506611639418793E-3,3.8060005407712198E-2,-0.47103870452519186,null,0,0,0]
[2364,0,-0.64458556464593308,-2.4372008988323071,null,0,0,0,null,-7.2192988596655655E-2,-0.98025964066045346,-2.3972119188611214,null,0,0,0]
[2365,0,1.2220646850833909,3.1348535769406078,null,0,0,0,null,-3.854868414409901E-2,-0.4051365752852189,0.26025914323744292,null,0,0,0]
[2366,0,-0.22802088225833542,-0.8393895967678473,null,0,0,0,null,2.4685090181996713E-2,0.28070328220961621,4.4187160783716532E-2,null,0,0,0]
[2367,0,-0.11312057932257084,-0.43262080131037511,null,0,0,0,null,2.0771556353749134E-2,0.25399105724658055,0.25794753337837389,null,0,0,0]
[2368,0,0.96738922739310329,2.5819153667654247,null,0,0,0,null,3.2708243206473468E-2,0.47647664050500227,1.463252949911428,null,0,0,0]
[2369,0,-1.4293871207935207,-3.5323257833773241,null,0,0,0,null,1.4884393678098946E-2,0.12983123444178182,-0.20759311345802053,null,0,0,0]
[2370,0,-0.46566464323680884,-1.0626714494944753,null,0,0,0,null,-1.2474891555309625E-2,-0.22676420107586909,-1.0535036430963409,null,0,0,0]
[2371,0,-0.41655827884985774,-1.1826525177682705,null,0,0,0,null,1.5408203547570849E-2,0.11707778379482897,-0.66904043816060588,null,0,0,0]
[2372,0,-0.48016481260045657,-0.72080832941352124,null,0,0,0,null,-3.1054668216270499E-2,-0.47125873832413617,-1.4517435441540691,null,0,0,0]
[2373,0,1.3325872556716294,4.0306371841474027,null,0,0,0,null,9.09523367765359E-2,1.1866965573944079,2.4549728501666142,null,0,0,0]
[2374,0,-0.5480465288748565,-1.3768782736168577,null,0,0,0,null,-2.2096757147200264E-2,-0.26443624017625461,-0.24701718752435045,null,0,0,0]
[2375,0,-0.35049597418701522,-0.66588136445431878,null,0,0,0,null,-4.3887041928766905E-2,-0.54575992312559085,-0.78613105699181685,null,0,0,0]
[2376,0,1.5453233596556293,4.0634617024018009,null,0,0,0,null,1.4876695145336556E-2,0.35511320567614618,2.3883337561255868,null,0,0,0]
[2377,0,-0.37836107492622795,-0.71459245098803514,null,0,0,0,null,-5.7581031153790492E-2,-0.71254719852722248,-0.98949585427102282,null,0,0,0]
[2378,0,-0.67517249516734956,-2.0597659721174639,null,0,0,0,null,2.0392457000135211E-2,0.20243537324430508,-0.37183824988911873,null,0,0,0]
[2379,0,0.95385887100027866,2.680697532722399,null,0,0,0,null,0.10476860397374815,1.3408511082431995,2.3684229897438853,null,0,0,0]
[2380,0,0.4547757236502748,1.4184594210659343,null,0,0,0,null,-1.2558406896168321E-2,-0.24695483433643586,-1.3353793085906109,null,0,0,0]
[2381,0,-0.28502819444021588,-0.45105591905453912,null,0,0,0,null,-5.3522559736786886E-2,-0.70589546835559391,-1.3382470374779696,null,0,0,0]
[2382,0,1.7882196991665877,4.5337624924678019,null,0,0,0,null,5.1149151662006544E-2,0.81164203828435533,3.0738724124614345,null,0,0,0]
[2383,0,-1.4350177234688362,-3.9452039674113331,null,0,0,0,null,-7.6127790348902699E-2,-1.0148535608935045,-2.2177855144659442,null,0,0,0]
[2384,0,0.16593008017069588,0.5581738395730208,null,0,0,0,null,-2.2406727137018436E-2,-0.50110535473186613,-3.0798533900287186,null,0,0,0]
[2385,0,1.7579267379828853,4.5495013355449334,null,0,0,0,null,5.8432905346466842E-2,0.91406584089995702,3.357329023890423,null,0,0,0]
[2386,0,0.19377886670943917,0.96227079525132286,null,0,0,0,null,-1.9134370407089818E-2,-0.22401567120225718,-9.9636853517913546E-3,null,0,0,0]
[2387,0,-0.42481213421265418,-1.1175694063369011,null,0,0,0,null,1.0840844895886334E-3,-3.988367138965896E-2,-0.63802401353792448,null,0,0,0]
[2388,0,1.1802760297059049,3.275308128736615,null,0,0,0,null,2.1141238603145211E-2,0.33332583185691328,1.3023230930457612,null,0,0,0]
[2389,0,-0.52882533601507564,-0.90191699388702551,null,0,0,0,null,5.56438932758374E-3,-5.603802834235466E-3,-0.69399883186181255,null,0,0,0]
[2390,0,-1.7300474224058053,-5.1874437429660318,null,0,0,0,null,2.5127314331931359E-2,0.21187994390918721,-0.91769341125795834,null,0,0,0]
[2391,0,2.1549511743518526,5.5573557869245125,null,0,0,0,null,8.800266193035651E-2,1.2748614554729074,3.7864894470717152,null,0,0,0]
[2392,0,-0.1280090509429101,-0.11445536110953253,null,0,0,0,null,-2.0486988057774512E-2,-0.26152961950094322,-0.55613238300636658,null,0,0,0]
[2393,0,-0.8364797459420642,-2.0599909051407885,null,0,0,0,null,-3.035752634626681E-2,-0.47471791244480299,-1.7796801221825809,null,0,0,0]
[2394,0,1.3385207748813481,3.7169339078215269,null,0,0,0,null,2.9647612227496553E-2,0.45522131690001788,1.6407401181404893,null,0,0,0]
[2395,0,0.66570868593354315,2.0425535666924479,null,0,0,0,null,-8.0896306476700375E-2,-0.92935027016247018,-0.50491129273758995,null,0,0,0]
[2396,0,0.96453378650030752,2.7999512329229765,null,0,0,0,null,1.8192543107475274E-2,0.26813421387999459,0.962803866499089,null,0,0,0]
[2397,0,0.7587467760305171,2.0613317176660857,null,0,0,0,null,8.7092678365861508E-3,0.1475593840909778,0.71546774639311839,null,0,0,0]
[2398,0,0.96184091097835334,2.5436743369734249,null,0,0,0,null,3.24306143662327E-2,0.45820076010806859,1.2906789249649446,null,0,0,0]
[2399,0,1.0913966433120312,2.9255365474231878,null,0,0,0,null,1.5702561552703685E-2,0.23707578747928074,0.8513275758457276,null,0,0,0]
[2400,0,-0.21243220171381108,-0.32111370299736153,null,0,0,0,null,-1.9277652824355927E-2,-0.23683430380258413,-0.39406835028691783,null,0,0,0]
[2401,0,-1.1744646773461191,-2.9672122797294289,null,0,0,0,null,6.8807211982903592E-3,-6.0893186690974287E-2,-1.6438471480245826,null,0,0,0]
[2402,0,1.2454982952729825,3.4436794923787093,null,0,0,0,null,2.8546664906653803E-2,0.44377762981388608,1.6604934689930124,null,0,0,0]
[2403,0,1.8947466101946684,5.3849235393370476,null,0,0,0,null,8.2591455678625095E-2,1.162777056962953,3.1442613688967178,null,0,0,0]
[2404,0,1.4875244470478064,4.0985820726105739,null,0,0,0,null,8.4880207602929372E-2,1.1634389792267648,2.8273351305073922,null,0,0,0]
[2405,0,0.37895588417984799,1.3175053153285845,null,0,0,0,null,-3.6434373730855722E-2,-0.4049518392900982,5.3686448503540304E-2,null,0,0,0]
[2406,0,0.56057553519511927,1.8139622708798198,null,0,0,0,null,-3.4920579124846883E-2,-0.37227396269560903,0.25667484683609654,null,0,0,0]
[2407,0,2.1163086124454296,5.7721550086807039,null,0,0,0,null,2.3711645114463976E-2,0.40896249322589667,1.9549023623701323,null,0,0,0]
[2408,0,-1.0654313050860855,-2.9644821767814502,null,0,0,0,null,7.8257584135524152E-2,0.97422941121494933,1.3376107707217271,null,0,0,0]
[2409,0,0.74621083760302642,1.7374803889929609,null,0,0,0,null,2.4675310642188208E-2,0.3939822186184565,1.5291713084270486,null,0,0,0]
[2410,0,0.22463189055361726,0.25565352204730879,null,0,0,0,null,4.0560893894641653E-2,0.58317576192345044,1.5633174183905902,null,0,0,0]
[2411,0,0.59240254108718549,1.7611761851552366,null,0,0,0,null,3.0626226771040876E-2,0.40760898006144725,0.82445518695942155,null,0,0,0]
[2412,0,0.68922475954585205,1.794454288570545,null,0,0,0,null,7.7712583597001131E-2,1.0157727294205696,1.9801996462278657,null,0,0,0]
[2413,0,0.75967612092950365,1.9590094616443239,null,0,0,0,null,-7.4877793355065028E-3,-2.436715675031428E-2,0.80645425394624548,null,0,0,0]
[2414,0,1.602470755648028,4.1123179898006423,null,0,0,0,null,-2.4795275835009535E-4,6.3073261928630928E-2,0.85339284971019513,null,0,0,0]
[2415,0,1.1601147283365918,3.3301631648770416,null,0,0,0,null,-4.1016262321458268E-2,-0.37468018223320271,1.0549768594526576,null,0,0,0]
[2416,0,-1.3255799457994726E-2,-4.0333337250573094E-2,null,0,0,0,null,6.7676951427059914E-2,0.84606431195748244,1.2198454848006077,null,0,0,0]
[2417,0,-1.2743523265257881,-4.1201523875598145,null,0,0,0,null,9.4417276763653036E-4,-0.12623774431045875,-1.8302393884213888,null,0,0,0]
[2418,0,-0.6468530790907826,-1.8144176162063814,null,0,0,0,null,-3.870644276682407E-2,-0.47378369668418691,-0.5909402403963504,null,0,0,0]
[2419,0,-1.0610215185730139,-3.1243897460233128,null,0,0,0,null,8.9401134612364219E-3,2.5939759348309051E-2,-0.97355339199710944,null,0,0,0]
[2420,0,2.4865574564606923,6.4894570441118775,null,0,0,0,null,0.12042568861458011,1.7308222030275784,5.0290030096825609,null,0,0,0]
[2421,0,1.3283075069632815,3.4071947822399236,null,0,0,0,null,3.461878592270466E-3,8.7716884385879892E-2,0.65206141429227138,null,0,0,0]
[2422,0,-1.8149159044880725,-5.4160408728934417,null,0,0,0,null,1.198879306750905E-2,1.9519037958992156E-2,-1.4926587031727905,null,0,0,0]
[2423,0,1.3370244193334002,3.4133642182812109,null,0,0,0,null,-3.3087497157155268E-2,-0.31674180835130666,0.61418711919013369,null,0,0,0]
[2424,0,-1.2664915361379826E-2,0.18988140351609764,null,0,0,0,null,-4.3207809971749667E-2,-0.64930633842995666,-2.1578042764383607,null,0,0,0]
[2425,0,-1.8785683737516248,-5.2484385208186071,null,0,0,0,null,1.8012328834098697E-2,6.4943847171100064E-2,-1.6239580689267423,null,0,0,0]
[2426,0,-1.0800641236333339,-3.0224336893511135,null,0,0,0,null,-3.4326255830901004E-3,-0.15311759853769763,-1.4487655464808669,null,0,0,0]
[2427,0,-1.510802236354186,-3.6619723097124881,null,0,0,0,null,-1.6915581290982459E-2,-0.325013530517198,-1.6472360035160709,null,0,0,0]
[2428,0,-0.545717110666601,-1.0704641705814064,null,0,0,0,null,-5.1406693056579795E-3,-0.14205530436758546,-0.94519960164092121,null,0,0,0]
[2429,0,2.1436930865391424,5.498370561133255,null,0,0,0,null,8.317099101783168E-2,1.2158792539199468,3.7072002921436544,null,0,0,0]
[2430,0,-0.87628937181723454,-2.3657924439689157,null,0,0,0,null,0.10632180348804042,1.4019869131096721,2.8459165683719365,null,0,0,0]
[2431,0,2.1284567746989631,5.7452786291899027,null,0,0,0,null,2.3074975432005488E-2,0.37563778706910944,1.6106811034200836,null,0,0,0]
[2432,0,0.16166052167085218,0.47875803377088594,null,0,0,0,null,2.542645017375719E-3,1.8136989613160948E-2,-0.19940041062777164,null,0,0,0]
[2433,0,-0.6548231863927686,-1.7562531956141174,null,0,0,0,null,-3.43915748287867E-2,-0.44399340304953694,-0.81082476589065478,null,0,0,0]
[2434,0,-0.73087098481522117,-2.2217261199493805,null,0,0,0,null,-3.4771293639410769E-2,-0.47536658790368619,-1.2342494827165538,null,0,0,0]
[2435,0,-0.62161462133624623,-1.924078086065645,null,0,0,0,null,7.9390581020125472E-2,1.0719594023456984,2.3435926700649361,null,0,0,0]
[2436,0,0.63443688210703109,1.3487156490747438,null,0,0,0,null,8.5919630278145295E-3,0.17848900863869402,1.0448188548691177,null,0,0,0]
[2437,0,-1.3487766469556772,-3.5180537626091102,null,0,0,0,null,0.11789359148787282,1.5177430107158716,2.6850470034917451,null,0,0,0]
[2438,0,-0.23502690733460804,1.0111010460524995E-2,null,0,0,0,null,1.2340166745075522E-2,0.11715839919283917,-0.32945847751191104,null,0,0,0]
[2439,0,-0.9500578231200052,-3.1375230406456831,null,0,0,0,null,-2.1536275838028644E-2,-0.33198175340056424,-1.3348702951043014,null,0,0,0]
[2440,0,-1.4410193945127194,-3.7614696857016243,null,0,0,0,null,6.7706262413288351E-2,0.72488529711256799,-0.139373058215333,null,0,0,0]
[2441,0,-0.44675786213969332,-0.67652060439518391,null,0,0,0,null,-4.36998532037432E-2,-0.59908459972990291,-1.3345839948496687,null,0,0,0]
[2442,0,-0.51885626119516748,-1.2586720841111092,null,0,0,0,null,-4.9800744245646344E-3,-0.11175061579968587,-0.81324379889132614,null,0,0,0]
[2443,0,0.96453378650030752,2.7999512329229765,null,0,0,0,null,1.8192543107475274E-2,0.26813421387999459,0.962803866499089,null,0,0,0]
[2444,0,-2.1062918108783686,-5.5602599622129496,null,0,0,0,null,-2.131044507514963E-2,-0.38831115091903484,-1.7710190473343683,null,0,0,0]
[2445,0,0.77610550844389758,2.0161378188615999,null,0,0,0,null,9.2987434381223866E-2,1.2024902958036627,2.2165106635286831,null,0,0,0]
[2446,0,-0.67600152138429981,-1.9820032073604235,null,0,0,0,null,-5.3956957443564588E-2,-0.69109336748420813,-1.2156938645770314,null,0,0,0]
[2447,0,-0.31297027115706444,-0.60483145336343291,null,0,0,0,null,-3.0501834597580966E-2,-0.34516707127266638,-0.13141760916947531,null,0,0,0]
[2448,0,-2.9885739806368856,-7.7689154870501369,null,0,0,0,null,-7.1457752827692331E-2,-1.0968743665440606,-3.6979956174439321,null,0,0,0]
[2449,0,-0.94795558017745862,-2.674298846177793,null,0,0,0,null,6.765524680830538E-3,-3.4643075027109262E-2,-1.4154280630644207,null,0,0,0]
[2450,0,1.8320369773898419,5.1365469372317021,null,0,0,0,null,7.3912032930679578E-2,1.0549555008322431,2.9914224378938781,null,0,0,0]
[2451,0,-1.6451141410323853,-4.2679873861611632,null,0,0,0,null,-4.8171393379500327E-2,-0.68669072960257294,-1.906870275922276,null,0,0,0]
[2452,0,1.6696278201620207,4.5153651873562488,null,0,0,0,null,-3.536417173498984E-2,-0.30262792160998558,1.1605930335152044,null,0,0,0]
[2453,0,1.1851836851823609,3.2870865018800979,null,0,0,0,null,2.1542225829175209E-2,0.34040151482398595,1.3287467960222639,null,0,0,0]
[2454,0,-0.90113222029722961,-2.4622268402995688,null,0,0,0,null,-4.6119045711192484E-2,-0.610475195883183,-1.2784131573155937,null,0,0,0]
[2455,0,1.1841597978481113,3.322688643788315,null,0,0,0,null,3.1865868067056227E-2,0.48117437107164462,1.6151731667777822,null,0,0,0]
[2456,0,1.8314814345598569,5.083683153843471,null,0,0,0,null,7.579308259165321E-2,1.1233466045090945,3.565708635534258,null,0,0,0]
[2457,0,-1.4138534920074088,-3.8863252532046682,null,0,0,0,null,-7.6368001921015033E-2,-1.0116957523256196,-2.1479616805487676,null,0,0,0]
[2458,0,-1.4399294755823848,-4.4342199482290887,null,0,0,0,null,2.1377722395074556E-3,-0.1251170093399096,-1.9543890230903818,null,0,0,0]
[2459,0,1.4492220390035782,3.9341518665812618,null,0,0,0,null,1.503547437329081E-2,0.27321185229875938,1.3383590701115826,null,0,0,0]
[2460,0,1.4737613354840178,3.900250287384297,null,0,0,0,null,5.9984093629604274E-2,0.87213700196452559,2.7315883956367104,null,0,0,0]
[2461,0,-1.5054486854955593,-4.1440485040981221,null,0,0,0,null,-4.5482770382857439E-2,-0.66311582495215315,-2.051693023244483,null,0,0,0]
[2462,0,1.7766393709293151,4.7687108565146703,null,0,0,0,null,4.1097096990372964E-3,0.1817327494040028,1.7797959523436548,null,0,0,0]
[2463,0,0.453482468397855,0.7887035217740922,null,0,0,0,null,-8.0589519770578988E-2,-0.88737034935401338,-3.919545471783567E-2,null,0,0,0]
[2464,0,-0.95597438389456146,-2.5226976799335463,null,0,0,0,null,-5.2401359513674098E-2,-0.70477530271790689,-1.5745056280365717,null,0,0,0]
[2465,0,1.7006069421738101,4.5006142006884478,null,0,0,0,null,-1.8104912534802738E-2,-2.8953452655769978E-2,2.1350095296928155,null,0,0,0]
[2466,0,1.9148742870128463,4.9424501947944011,null,0,0,0,null,7.3368633806386419E-2,1.0905399816095906,3.498070478394784,null,0,0,0]
[2467,0,-0.56488057097267297,-1.4178321061108581,null,0,0,0,null,-4.1242462716250372E-2,-0.59468491422139691,-1.8352105182701708,null,0,0,0]
[2468,0,1.0682102346622468,2.6835292588796218,null,0,0,0,null,-2.2152238073998944E-2,-0.24228250168400428,4.6078122148392138E-2,null,0,0,0]
[2469,0,-0.46930666095970081,-0.88820340791330088,null,0,0,0,null,-1.0119436831839437E-2,-0.2107275050479975,-1.1294853476194402,null,0,0,0]
[2470,0,-0.86812010659381844,-2.3732250097419381,null,0,0,0,null,6.5246896014453284E-2,0.86122051965213264,1.7282575060416348,null,0,0,0]
[2471,0,-0.16559307521870686,6.9837409317602572E-2,null,0,0,0,null,7.772944080783304E-3,0.10334326542477265,0.15081091892904805,null,0,0,0]
[2472,0,-0.90709837791501557,-3.041862538449088,null,0,0,0,null,-0.10466750264727745,-1.4784243895816744,-4.1109263605228223,null,0,0,0]
[2473,0,1.8917183775044104,5.2385679864193229,null,0,0,0,null,7.1225573960337837E-2,1.0429572079178633,3.2108497644420821,null,0,0,0]
[2474,0,0.49086646532202211,1.3777787899623144,null,0,0,0,null,7.1898193365873969E-2,0.914219319081647,1.5612813512594839,null,0,0,0]
[2475,0,-0.15792487639590763,-8.7237363574677151E-2,null,0,0,0,null,-2.8641997009635076E-2,-0.36985260879554788,-0.56362668080316869,null,0,0,0]
[2476,0,-0.41076184526001086,-0.98829918747273771,null,0,0,0,null,-2.162383752404054E-2,-0.32815575605806679,-1.0562294910694181,null,0,0,0]
[2477,0,1.7521912484120548,4.570130531467206,null,0,0,0,null,1.5438262055978782E-2,0.38950416880498506,2.722401576876091,null,0,0,0]
[2478,0,-2.3927776375436114,-6.3732040907097547,null,0,0,0,null,-9.7063017322109604E-2,-1.3794290584661113,-3.7535004998349795,null,0,0,0]
[2479,0,-1.6108410428321913,-4.902979568878334,null,0,0,0,null,-1.6463245778525901E-2,-0.30526798935074384,-1.6456432537947077,null,0,0,0]
[2480,0,1.3201067016890029,3.6187065299439198,null,0,0,0,null,0.11211525708100402,1.4841905367283388,3.1520158331877499,null,0,0,0]
[2481,0,0.58947909562035605,1.6940564598290075,null,0,0,0,null,-3.2481223943769352E-3,-3.9060154228623106E-2,2.4568481214464553E-2,null,0,0,0]
[2482,0,-0.74467268260630226,-2.5229105167055677,null,0,0,0,null,-6.3206052169612184E-2,-0.8231547985587031,-1.7355985614877354,null,0,0,0]
[2483,0,-2.7468782127977103,-7.1065886364946564,null,0,0,0,null,-9.7588511705596542E-2,-1.377540291349028,-3.6496019920348699,null,0,0,0]
[2484,0,0.91792779044230699,2.5359947185874989,null,0,0,0,null,9.0466564364056132E-3,0.17809355449172018,0.97324603127323639,null,0,0,0]
[2485,0,-1.1861059026959155,-3.8568074682342921,null,0,0,0,null,-2.0070541805432014E-2,-0.39524672534336697,-2.302094337445673,null,0,0,0]
[2486,0,-1.0134889717981532,-3.4159638272122974,null,0,0,0,null,-4.0597999686036133E-2,-0.57742560039337054,-1.8097283977403422,null,0,0,0]
[2487,0,0.34745069197976775,0.56102289208947331,null,0,0,0,null,2.1584559655042936E-2,0.3253983326946136,0.95516183641436869,null,0,0,0]
[2488,0,-1.5102695846685583,-4.6516330060238982,null,0,0,0,null,1.8531612829902712E-2,0.14018424909165425,-0.89485305672959659,null,0,0,0]
[2489,0,-1.0745081627910367,-2.8202273670469293,null,0,0,0,null,6.0492866001176249E-3,-3.6645384923417623E-2,-1.2692311092416821,null,0,0,0]
[2490,0,-6.7599928979467219E-2,-0.50316501229644928,null,0,0,0,null,7.0398968672022708E-2,0.92439797716750494,1.7330988059293122,null,0,0,0]
[2491,0,-0.69950715926788321,-2.2335146068874092,null,0,0,0,null,-5.9126797925073561E-2,-0.76265060508959781,-1.5096248983289624,null,0,0,0]
[2492,0,-0.3893838370555186,-1.0688403257034442,null,0,0,0,null,-1.3103380106504005E-2,-0.20944167981400097,-0.91805204381000294,null,0,0,0]
[2493,0,-1.4469629544323144,-4.0046417763069844,null,0,0,0,null,-8.4133983245668328E-2,-1.0987739910908723,-2.1546933774796599,null,0,0,0]
[2494,0,-0.26147881603201312,-0.66058100932691011,null,0,0,0,null,-7.0647210266104711E-3,-0.11699286823532384,-0.60297796607585041,null,0,0,0]
[2495,0,-1.4410193945127194,-3.7614696857016243,null,0,0,0,null,6.7706262413288351E-2,0.72488529711256799,-0.139373058215333,null,0,0,0]
[2496,0,-1.8039642650368042,-4.3805403911490499,null,0,0,0,null,-1.2739786729295474E-2,-0.32169420417884431,-2.1490480438200028,null,0,0,0]
[2497,0,0.48671586918047072,1.7186224097862577,null,0,0,0,null,4.610229246103114E-2,0.55760567466220434,0.7439046348636803,null,0,0,0]
[2498,0,1.4319445065629661,3.8075023865928159,null,0,0,0,null,1.3072566650902843E-2,0.26550790144933401,1.5095844722610672,null,0,0,0]
[2499,0,-0.95015839769991539,-2.5773286868041976,null,0,0,0,null,-6.0597599056405042E-2,-0.7501494785838595,-1.0161421588044905,null,0,0,0]
[2500,0,1.1522385642958398E-2,0.26100089063072662,null,0,0,0,null,-4.1794653318583758E-2,-0.58337192308942665,-1.5142549624060411,null,0,0,0]
[2501,0,2.1549511743518526,5.5573557869245125,null,0,0,0,null,8.800266193035651E-2,1.2748614554729074,3.7864894470717152,null,0,0,0]
[2502,0,-0.87589468580834362,-2.4848865320235709,null,0,0,0,null,-4.2811425566281402E-3,-0.12067869855518529,-0.94422153006261578,null,0,0,0]
[2503,0,-0.27500992089300053,-0.83073162363556907,null,0,0,0,null,-1.5591828533963053E-2,-0.15768389696984014,0.17588197765163205,null,0,0,0]
[2504,0,-0.77552174765754534,-2.2429800519707497,null,0,0,0,null,-6.8147150648827454E-2,-0.86603416323961846,-1.4620313367615163,null,0,0,0]
[2505,0,-7.8444384190879644E-3,-0.26604938667148964,null,0,0,0,null,-8.6187676653346895E-2,-0.97875989519782802,-0.36959117764147598,null,0,0,0]
[2506,0,1.5090434249358877,4.2737540986750027,null,0,0,0,null,5.3437258659065207E-2,0.80808118700193787,2.7460710883710164,null,0,0,0]
[2507,0,0.62248534446833037,1.3302931714977384,null,0,0,0,null,2.7765464534651473E-2,0.41827786395237671,1.3974461224983787,null,0,0,0]
[2508,0,0.49036597440911828,1.645260781415891,null,0,0,0,null,-8.7244528333606519E-2,-0.96514275366594759,-5.8826217252604694E-2,null,0,0,0]
[2509,0,-1.5103944956036357,-3.8680602264716288,null,0,0,0,null,6.2226422399623456E-2,0.64010993722840248,-0.41621088119849081,null,0,0,0]
[2510,0,1.0595003462989043,2.8874296013771019,null,0,0,0,null,-7.0355262623581329E-3,-3.4367605270748752E-2,0.61947801415186043,null,0,0,0]
[2511,0,4.2738194148460021E-3,-0.2383815307931145,null,0,0,0,null,-9.4813979082488453E-2,-1.0856236397202883,-0.51686478242921297,null,0,0,0]
[2512,0,-1.0307191838260024,-2.8845346018600031,null,0,0,0,null,2.5522876775486906E-3,-5.2160601681814113E-2,-1.0157985435738666,null,0,0,0]
[2513,0,1.1529633916722286,3.3307493062831854,null,0,0,0,null,-4.3055833114941211E-2,-0.39006560170951432,1.1383529737539684,null,0,0,0]
[2514,0,-2.0245538035142583,-4.9099552834949431,null,0,0,0,null,-1.4047627481565371E-2,-0.35278596142343577,-2.3547450189071353,null,0,0,0]
[2515,0,0.65964327370078357,2.0279965773338264,null,0,0,0,null,-8.8140082526631261E-2,-1.0152417743082205,-0.57943090389571084,null,0,0,0]
[2516,0,-0.69510657928233743,-1.9939819936799832,null,0,0,0,null,1.1129313418653908E-2,7.6118678566289413E-2,-0.58265545787944206,null,0,0,0]
[2517,0,-2.0035352509197,-5.2721268889910133,null,0,0,0,null,-8.1838924645871881E-3,-0.24374856210087908,-1.9723701714801536,null,0,0,0]
[2518,0,0.21361970869917241,0.9835718813343628,null,0,0,0,null,2.3470740966919836E-3,-2.3129053643418048E-2,-0.48089262831115775,null,0,0,0]
[2519,0,0.50832311523292084,1.4595715944097829,null,0,0,0,null,2.2453075101751496E-2,0.28549079875864664,0.43336879722966476,null,0,0,0]
[2520,0,-1.8321377189306731,-5.0987707452937974,null,0,0,0,null,3.985709608297424E-2,0.35591909113955172,-1.0102974029148135,null,0,0,0]
[2521,0,-4.9252502358876883E-2,0.2110430556752981,null,0,0,0,null,-4.4714510843258497E-2,-0.55054771951031856,-0.70468788935662818,null,0,0,0]
[2522,0,8.8928618782665586E-3,0.29411291801435435,null,0,0,0,null,-1.4572329974504101E-2,-0.21331620563217529,-0.72617748610258426,null,0,0,0]
[2523,0,-1.5751817554494556,-4.7653427798453629,null,0,0,0,null,2.6667848124609067E-2,0.23981558488155316,-0.79620743809562922,null,0,0,0]
[2524,0,1.9663862875281592,5.102414903819998,null,0,0,0,null,3.068293782970221E-2,0.60674354056052748,3.332198757705104,null,0,0,0]
[2525,0,0.80650021690086582,2.4757552444045867,null,0,0,0,null,-1.5845654112642195E-2,-0.10245687702872329,1.005500612682561,null,0,0,0]
[2526,0,-7.7114230129849609E-2,2.0137188122454974E-2,null,0,0,0,null,-2.6116267596403703E-2,-0.42665500463089395,-1.7404830608972515,null,0,0,0]
[2527,0,-6.0384843921263379E-2,0.1326411512252671,null,0,0,0,null,-4.3109304486758843E-2,-0.48380167022022125,-0.18266453888916659,null,0,0,0]
[2528,0,0.90295058497497482,2.4425701705877292,null,0,0,0,null,7.3091264301414754E-3,0.13485857977549587,0.75162581909817161,null,0,0,0]
[2529,0,-1.0076394395203516,-2.9443032034970673,null,0,0,0,null,4.6040466662084899E-3,-6.1237556818675327E-2,-1.4455139896871332,null,0,0,0]
[2530,0,1.4378077489356256,3.9843407910310198,null,0,0,0,null,8.0728557588055309E-3,0.17022499071932998,1.087351421499323,null,0,0,0]
[2531,0,1.7595102082652756,4.5293914378433184,null,0,0,0,null,5.7439782585986622E-2,0.88526603768298173,3.1549646919664629,null,0,0,0]
[2532,0,0.58050131627728119,1.1744689135415174,null,0,0,0,null,-3.2828624312423358E-3,2.402235607975399E-2,0.73922270685941838,null,0,0,0]
[2533,0,1.3662608077190344,3.4938410180566932,null,0,0,0,null,6.5317915984767867E-3,0.14418372048079345,0.84465924037292284,null,0,0,0]
[2534,0,1.2031462288825552,3.2971422021890828,null,0,0,0,null,4.7327028272579355E-2,0.66739495565907148,1.7724613624774757,null,0,0,0]
[2535,0,1.8235835026975238,5.0129587587742721,null,0,0,0,null,9.5548023008116559E-2,1.3358758845899019,3.686103618185538,null,0,0,0]
[2536,0,1.2419210130980574,3.1637022578174729,null,0,0,0,null,1.0010334374104616E-2,0.21500200291863711,1.2469448524534201,null,0,0,0]
[2537,0,-1.1825395319093732,-3.2386491924657967,null,0,0,0,null,1.518661181867384E-2,9.2222609701798325E-2,-0.9365309476561452,null,0,0,0]
[2538,0,-1.0827709470698355,-2.9486484239460187,null,0,0,0,null,-7.8325534024783674E-3,-0.20571967302879876,-1.4720827693455358,null,0,0,0]
[2539,0,0.29591448159881473,1.0696403768884775,null,0,0,0,null,-6.9347058699018929E-2,-0.83810973033213754,-0.93460699800262592,null,0,0,0]
[2540,0,-1.5106346449635148,-4.6271810707051841,null,0,0,0,null,-1.9259995701475473E-2,-0.39818409546889505,-2.417387875856897,null,0,0,0]
[2541,0,-0.33140775035834669,-1.3410112728757013,null,0,0,0,null,2.5509779362448852E-2,0.33566688548287404,0.59985967946712482,null,0,0,0]
[2542,0,0.64719174009993907,1.2661001032495334,null,0,0,0,null,-4.0336450841292899E-2,-0.39546934015758051,0.57620146289118201,null,0,0,0]
[2543,0,1.2507093414990449,3.4443480770401584,null,0,0,0,null,1.0965237047993582E-2,0.19923677310361018,1.0233937786690295,null,0,0,0]
[2544,0,1.5217635997765975,4.3749937364068101,null,0,0,0,null,5.8981072586507539E-2,0.86534455583864023,2.6806196838686627,null,0,0,0]
[2545,0,1.9148742870128463,4.9424501947944011,null,0,0,0,null,7.3368633806386419E-2,1.0905399816095906,3.498070478394784,null,0,0,0]
[2546,0,1.5906650358737242,4.1643292523395647,null,0,0,0,null,3.0522827596686456E-2,0.57449802083002488,2.9577646155007349,null,0,0,0]
[2547,0,1.1308072377399676,2.9855349615388187,null,0,0,0,null,1.8078965086596611E-2,0.31230934278268796,1.3426499030100241,null,0,0,0]
[2548,0,-0.76366606453110031,-2.6601911624794154,null,0,0,0,null,-6.6627162721701605E-2,-0.9128473150240225,-2.3438149976731548,null,0,0,0]
[2549,0,-0.61165059108722564,-1.8519553973672664,null,0,0,0,null,-4.6679593967389507E-2,-0.61291680389333036,-1.3400009950815293,null,0,0,0]
[2550,0,-5.0731190141252228E-2,-0.13087396869484655,null,0,0,0,null,-5.2120657911015028E-2,-0.7458073065967501,-2.1614400942183676,null,0,0,0]
[2551,0,1.3875297116841812,3.5448863875730532,null,0,0,0,null,6.4952281875906687E-4,9.5298995641843243E-2,1.0345020212282579,null,0,0,0]
[2552,0,-2.1062918108783708,-5.5602599622129567,null,0,0,0,null,-2.1310445075149516E-2,-0.37991534418900391,-1.6702693665740116,null,0,0,0]
[2553,0,1.2096932221820189,3.6535416747915805,null,0,0,0,null,9.7874997616736154E-2,1.2645896481145846,2.4760672205370611,null,0,0,0]
[2554,0,1.0324308961150472,2.9769755350493288,null,0,0,0,null,2.2949634970427554E-2,0.3104731427489123,0.84519028457148671,null,0,0,0]
[2555,0,1.5495451055710692,4.084639188122928,null,0,0,0,null,2.4322672869522364E-2,0.39975490996142254,1.6908184480824748,null,0,0,0]
[2556,0,1.9240441717879584,5.3939176908682933,null,0,0,0,null,8.2401181265601336E-2,1.1937488681656396,3.5869607133025312,null,0,0,0]
[2557,0,-2.8558648559238371,-7.3795903589254088,null,0,0,0,null,-6.6720325316658835E-2,-0.94608661553815276,-2.5405926156940075,null,0,0,0]
[2558,0,0.46269845948200417,1.1077169815634988,null,0,0,0,null,2.8632431475115367E-2,0.40258577138639429,1.1389111747795178,null,0,0,0]
[2559,0,-2.8905273297117673E-2,-7.8491768268926537E-2,null,0,0,0,null,-5.2120657911014917E-2,-0.75399042236331393,-2.2596374834171473,null,0,0,0]
[2560,0,-0.25308973507060911,-0.36275583947249834,null,0,0,0,null,-5.0143540477769706E-2,-0.58961847075572316,-0.46406976528466837,null,0,0,0]
[2561,0,1.2669331272066939,3.47655213026992,null,0,0,0,null,2.6455828752327305E-2,0.42340165812056968,1.6792015659024218,null,0,0,0]
[2562,0,0.92683521784410916,2.8068207802998515,null,0,0,0,null,-2.1624317854002414E-2,-0.17848549288511184,0.85045541019380466,null,0,0,0]
[2563,0,-0.21983076020393491,-0.36701234411593031,null,0,0,0,null,-6.0919368232035254E-3,-0.13267657120082732,-0.7393008570022066,null,0,0,0]
[2564,0,1.8864311708509358,4.9180043388412811,null,0,0,0,null,-6.401634768429858E-4,0.19782902434505922,2.5357238078250774,null,0,0,0]
[2565,0,-0.79234163077613262,-2.3321266592720495,null,0,0,0,null,-3.3988463384118178E-2,-0.44101589400021385,-0.93991519117083222,null,0,0,0]
[2566,0,1.3904424901854691,3.7375480564778845,null,0,0,0,null,-2.2418846110001993E-2,-0.17694817030692048,0.94050035569520329,null,0,0,0]
[2567,0,1.7119443288516467,4.6056073618356388,null,0,0,0,null,4.3977882109966799E-3,0.11116342286695909,0.85243229642118967,null,0,0,0]
[2568,0,1.1465333951860157,3.2684717877537985,null,0,0,0,null,-1.8519921073926127E-2,-0.1082370751420085,1.2681934058565238,null,0,0,0]
[2569,0,-2.8975739703739056,-7.4352551580091966,null,0,0,0,null,-7.4137287749288419E-2,-1.0832105914498233,-3.1685074482565505,null,0,0,0]
[2570,0,-0.60460738972963368,-1.8398568790044592,null,0,0,0,null,2.651864877356485E-2,0.27674653784040765,-0.28826047937131077,null,0,0,0]
[2571,0,-0.23784211243379105,-0.31286756529685228,null,0,0,0,null,-6.4457809745787241E-3,-0.12369372406992533,-0.55276363094018233,null,0,0,0]
[2572,0,-0.26253976132365825,-1.217148693683499,null,0,0,0,null,-2.7965613746110649E-2,-0.39033834820591712,-1.1913762955868115,null,0,0,0]
[2573,0,-1.0264136698795336,-2.8708398522857315,null,0,0,0,null,7.6260186497103796E-2,0.99264852266270642,1.82229659636629,null,0,0,0]
[2574,0,2.0947588827694892,5.4593306589807256,null,0,0,0,null,9.9302209878761635E-2,1.4302966014009972,4.1825433829494179,null,0,0,0]
[2575,0,-0.18378883841521565,-0.1831812144830692,null,0,0,0,null,-8.9664716840450187E-3,-0.15071716030114202,-0.54437543343811923,null,0,0,0]
[2576,0,-1.5759774722174371,-4.169434399147387,null,0,0,0,null,-5.0694260885067594E-2,-0.73303437459869292,-2.1734542895431512,null,0,0,0]
[2577,0,1.5000551224788579,4.4868019378486714,null,0,0,0,null,0.10188212030737571,1.3478689478806947,2.9791949489586877,null,0,0,0]
[2578,0,0.64147846903441497,1.6422432802833209,null,0,0,0,null,8.6055392162885422E-2,1.1163090981604156,2.0959361801896557,null,0,0,0]
[2579,0,-0.86026719085439618,-2.4823349763965381,null,0,0,0,null,-4.6514422716819923E-2,-0.63703372617608334,-1.6300533066885945,null,0,0,0]
[2580,0,-0.40573324579978182,-1.660798052267477,null,0,0,0,null,-2.6686804388819381E-2,-0.30530724476166143,-0.32337358543825395,null,0,0,0]
[2581,0,-1.6914545869564481,-4.5401452355517611,null,0,0,0,null,-5.3161490953656881E-2,-0.76638643147252061,-2.2725175598688585,null,0,0,0]
[2582,0,-0.90663250169572895,-2.4932157777780448,null,0,0,0,null,-6.3256261984398696E-2,-0.77728862741186189,-1.004031939797198,null,0,0,0]
[2583,0,1.8513093631078954,4.8178533235251448,null,0,0,0,null,-1.545967349273218E-2,-7.3923897740014585E-3,2.0323347210569009,null,0,0,0]
[2584,0,-0.40240481776503112,-0.97342012678823808,null,0,0,0,null,-4.7996586243060618E-3,-0.1158386024289739,-0.73906752028509803,null,0,0,0]
[2585,0,-0.48198811592380481,-0.7858541291532456,null,0,0,0,null,-5.0776743467099379E-2,-0.69000029153274134,-1.4845592682494608,null,0,0,0]
[2586,0,1.7708099205957988,4.9879341826426824,null,0,0,0,null,7.1319157530897376E-2,1.0333711713170532,3.1019303275429886,null,0,0,0]
[2587,0,-3.9549687784547129E-2,0.1153211786005777,null,0,0,0,null,-3.9237064924639471E-2,-0.56126009172518121,-1.6177000840741129,null,0,0,0]
[2588,0,5.2059566612091657E-2,0.35475386890589289,null,0,0,0,null,-8.6903531598528042E-3,-0.12843532294695159,-0.49617597872994518,null,0,0,0]
[2589,0,-1.1335688945953679,-3.1109882540896288,null,0,0,0,null,9.8835471366311937E-3,2.495387764982206E-2,-1.0542539535122051,null,0,0,0]
[2590,0,-0.33979889081752662,-0.71768363059817053,null,0,0,0,null,-1.5515100149233319E-2,-0.25946155789778552,-1.0123220191391302,null,0,0,0]
[2591,0,-0.79230598080787973,-1.9047884419337571,null,0,0,0,null,-6.422474241521757E-2,-0.84053108161540235,-1.7022005775301623,null,0,0,0]
[2592,0,0.11442529561346601,0.26198201897672696,null,0,0,0,null,4.7881372986870473E-2,0.61757945467369968,1.0999259796392507,null,0,0,0]
[2593,0,-0.45010079196578956,-1.4228167008457895,null,0,0,0,null,1.2442585114062581E-2,0.10401226124390542,-0.48007348261954391,null,0,0,0]
[2594,0,-1.4082294099016017,-3.6767481268723423,null,0,0,0,null,3.2200469388835869E-2,0.33118876074236775,-0.3358818010911091,null,0,0,0]
[2595,0,0.27577079733883691,0.36451496157099611,null,0,0,0,null,3.6466079528854549E-2,0.53632546345293397,1.5668598093521906,null,0,0,0]
[2596,0,-0.41655827884985774,-1.1826525177682705,null,0,0,0,null,1.5408203547570849E-2,0.11707778379482897,-0.66904043816060588,null,0,0,0]
[2597,0,-0.93277022920889607,-2.5660246058646807,null,0,0,0,null,-6.0745397542728084E-2,-0.78029072118855669,-1.3824739933581696,null,0,0,0]
[2598,0,-0.84450079638338316,-1.9758666504993161,null,0,0,0,null,-2.8879640444761604E-2,-0.45517255116059002,-1.7031217757723207,null,0,0,0]
[2599,0,0.61655955293433728,1.2920830601794733,null,0,0,0,null,-1.8962808127943674E-2,-0.1549075672066183,0.65566131147611306,null,0,0,0]
[2600,0,1.6733760738016281,4.6079393116280913,null,0,0,0,null,7.4434857939850593E-2,1.0892198586611148,3.3532460908084505,null,0,0,0]
[2601,0,-0.84300911353589802,-2.3067579560719316,null,0,0,0,null,1.4537102195224178E-2,8.815181086630855E-2,-0.93814752421579395,null,0,0,0]
[2602,0,1.8429809151474019,4.8211245110609307,null,0,0,0,null,1.3796101408548395E-2,0.36311608182470628,2.6257444457456875,null,0,0,0]
[2603,0,-0.49201276738588784,-1.2196079117969785,null,0,0,0,null,-9.4725952356173471E-3,-0.15012947814012387,-0.66533296721615265,null,0,0,0]
[2604,0,0.50399757708631665,1.4491903028579254,null,0,0,0,null,2.2453075101751437E-2,0.29406976515551925,0.53631639399214692,null,0,0,0]
[2605,0,0.42730990493518767,1.4552799729091856,null,0,0,0,null,1.9494186118141046E-2,0.21518896106879948,0.12586470765279956,null,0,0,0]
[2606,0,1.4611696708017208,3.8700302921467808,null,0,0,0,null,5.5459802046292056E-2,0.82366198463923046,2.7470946767303648,null,0,0,0]
[2607,0,1.3896523246944161,3.6213184691549469,null,0,0,0,null,-2.6226734462632122E-2,-0.22061556162603119,0.89907474528338571,null,0,0,0]
[2608,0,-2.3619259473355232,-6.2472049887286776,null,0,0,0,null,-6.8677086798235615E-2,-0.99437336399555076,-2.8312386448853175,null,0,0,0]
[2609,0,1.8333182794783425,4.7266698278870969,null,0,0,0,null,0.10997658806338603,1.5347900722147232,3.9794308016306821,null,0,0,0]
[2610,0,-2.8905273297117673E-2,-7.8491768268926537E-2,null,0,0,0,null,-5.2120657911014917E-2,-0.75399042236331393,-2.2596374834171473,null,0,0,0]
[2611,0,-1.6442268549643868,-3.9997379682566825,null,0,0,0,null,-3.0624000256131011E-2,-0.41513027420493293,-0.72952379420373836,null,0,0,0]
[2612,0,-1.3630376102800674,-4.3707973341998949,null,0,0,0,null,-8.2568469264074448E-2,-1.186164309941135,-3.5796097840854091,null,0,0,0]
[2613,0,0.99224752978183828,2.8341397498096486,null,0,0,0,null,3.0256822068834083E-2,0.44182199860915261,1.3559849421264989,null,0,0,0]
[2614,0,-2.0826771609798015E-2,-0.3785595374756085,null,0,0,0,null,5.9953298534798645E-2,0.78961880027444209,1.4787040128304252,null,0,0,0]
[2615,0,-1.5289198018963326,-4.1320402802183525,null,0,0,0,null,-4.0792957190122991E-2,-0.63812920064576151,-2.3681376192345378,null,0,0,0]
[2616,0,0.28524660204927388,0.86234242851677123,null,0,0,0,null,3.9669094513324524E-2,0.50683978037547517,0.90659524574298489,null,0,0,0]
[2617,0,-0.3076178885356603,-1.4098879846495693,null,0,0,0,null,-3.618142749245936E-2,-0.43721038670679352,-0.64357941121657136,null,0,0,0]
[2618,0,0.3814738390320126,1.4328032083302533,null,0,0,0,null,4.7650468526187692E-2,0.57856807709111213,0.80014687372567272,null,0,0,0]
[2619,0,-1.4326872333356677,-3.7277862564210444,null,0,0,0,null,5.7834417002181171E-2,0.65941580609665562,0.27763714708205589,null,0,0,0]
[2620,0,-1.2678372739173391,-4.1589060543639134,null,0,0,0,null,-1.9344359993616535E-3,-0.15605705558457886,-1.8359402050059035,null,0,0,0]
[2621,0,-3.0502068111135778,-7.9148602252991695,null,0,0,0,null,-8.1663551543310856E-2,-1.2181728549141353,-3.8098324463509781,null,0,0,0]
[2622,0,0.94420513607205614,2.4350724046383259,null,0,0,0,null,-7.0323528590540149E-3,-0.11066945226464031,-0.45249937352232883,null,0,0,0]
[2623,0,1.3662608077190344,3.4938410180566932,null,0,0,0,null,6.5317915984767867E-3,0.14418372048079345,0.84465924037292284,null,0,0,0]
[2624,0,1.2085575901746888,3.3886752870098791,null,0,0,0,null,1.5062940897962448E-2,0.2692549867615926,1.3404442735383382,null,0,0,0]
[2625,0,-1.1259337115183916,-3.4229107236943093,null,0,0,0,null,-3.2896174503822123E-2,-0.4891040813868176,-1.6708903555949401,null,0,0,0]
[2626,0,0.28964323198536296,0.81545180911383064,null,0,0,0,null,5.0870532652815027E-2,0.65424249332406448,1.1744234503257867,null,0,0,0]
[2627,0,0.60318672460564815,1.2000020285455903,null,0,0,0,null,-7.3098638498683616E-2,-0.80817915657178219,-5.4859536688425581E-2,null,0,0,0]
[2628,0,-0.26709091843657551,-0.26852237633719778,null,0,0,0,null,-1.7161657152822158E-3,-1.3964483693706824E-2,-3.6928195901378788E-2,null,0,0,0]
[2629,0,-0.26919782717457202,-0.68235556441239897,null,0,0,0,null,-8.2683028574478505E-3,-0.15701182053241883,-0.94928201983253169,null,0,0,0]
[2630,0,-0.49275003402895889,-1.5402433237163422,null,0,0,0,null,1.3599014457910357E-2,0.13354240807498446,-0.28981209753593429,null,0,0,0]
[2631,0,-0.72446559903531671,-1.6368619697125033,null,0,0,0,null,-1.8477569139616831E-2,-0.32781746182914412,-1.5528773481893259,null,0,0,0]
[2632,0,1.3863590096767293,3.8592252231053936,null,0,0,0,null,8.1468218454747894E-3,0.17255561503219996,1.1057415781146156,null,0,0,0]
[2633,0,-9.5591802731771161E-2,-0.15164319343269744,null,0,0,0,null,1.2918437072875121E-4,-3.0732546950303911E-2,-0.46713810025344354,null,0,0,0]
[2634,0,1.6060974830013892,4.2150325909791864,null,0,0,0,null,-1.7820120937339652E-2,-3.4986539484556489E-2,2.0072641657633978,null,0,0,0]
[2635,0,-0.12053835438573879,-2.9397951207422012E-2,null,0,0,0,null,-4.8947944166549177E-2,-0.56334253288309266,-0.31070673310350322,null,0,0,0]
[2636,0,-0.21329369697017136,-0.46839414001659313,null,0,0,0,null,-1.5661686879215951E-2,-0.2437143350278502,-0.97215033550037699,null,0,0,0]
[2637,0,0.22896444011227504,0.47382633742689356,null,0,0,0,null,1.5046458643077187E-2,0.20420807856607917,0.51429267991000593,null,0,0,0]
[2638,0,0.34017556528374737,0.97356429323917837,null,0,0,0,null,3.327185895640463E-2,0.41515807681731437,0.54370169201176399,null,0,0,0]
[2639,0,1.5005394642945431,4.356536756256741,null,0,0,0,null,8.5959653446162798E-2,1.1667032874405332,2.7358285439259671,null,0,0,0]
[2640,0,0.18023611586398147,0.5121467921581061,null,0,0,0,null,1.2565027228082613E-2,0.1238682765191088,-0.24842966552669168,null,0,0,0]
[2641,0,0.18672151668152948,0.37244332119308821,null,0,0,0,null,1.5362781706442093E-2,0.20246346184199501,0.451602634856823,null,0,0,0]
[2642,0,0.88763718425654226,2.1348928493859058,null,0,0,0,null,2.0802886201262027E-2,0.32773863077836812,1.3033387002056516,null,0,0,0]
[2643,0,1.6828743988522801,4.5336634467338079,null,0,0,0,null,-3.9550462582589319E-2,-0.35197935244017298,1.1281514545861537,null,0,0,0]
[2644,0,-0.2026642228622004,-0.49439625289567629,null,0,0,0,null,4.232014207690861E-2,0.48292892463741643,4.3046536703528544E-2,null,0,0,0]
[2645,0,1.7425559234088597,4.4927293266366908,null,0,0,0,null,5.5130261841098503E-2,0.84849518573396743,2.9997538546325266,null,0,0,0]
[2646,0,0.90641185467721697,2.6950060890543099,null,0,0,0,null,-2.4795136919635013E-2,-0.21103120632304218,0.86036097028608127,null,0,0,0]
[2647,0,-0.36375423199813667,-0.83522748612409492,null,0,0,0,null,-9.3861228312169948E-3,-0.14028755328523856,-0.58083779214950482,null,0,0,0]
[2648,0,-2.6815414351532745,-6.9001513841046762,null,0,0,0,null,-5.9747922456636897E-2,-0.86970551561173581,-2.522239897074698,null,0,0,0]
[2649,0,-1.6314161587084399,-4.2311910163585704,null,0,0,0,null,6.5364364398438346E-2,0.68412624138763933,-0.2898801270723998,null,0,0,0]
[2650,0,0.47153236799442677,1.3519460022899001,null,0,0,0,null,7.1898193365873858E-2,0.91380509422911471,1.5631566016627076,null,0,0,0]
[2651,0,-0.26511176833346689,-0.47967333502969267,null,0,0,0,null,-4.678273636770541E-3,-5.1725429071483635E-2,-9.9095455233025861E-2,null,0,0,0]
[2652,0,1.5484612047377069,3.9143711900928757,null,0,0,0,null,4.2696992378998292E-3,0.21455027817903555,2.0494968957142374,null,0,0,0]
[2653,0,-1.4672257410988496,-3.9898516516939342,null,0,0,0,null,7.7155463372789654E-3,-6.1189210975574497E-2,-1.8315039793493453,null,0,0,0]
[2654,0,0.41891895878542162,1.1075822742843884,null,0,0,0,null,2.8248457218149666E-2,0.39087424008117067,0.93535014624873292,null,0,0,0]
[2655,0,1.5566392297873572,4.3301084820777174,null,0,0,0,null,3.4722156469990578E-2,0.53608073454435634,1.9326661365151485,null,0,0,0]
[2656,0,1.9393138670354546,5.2102419089967222,null,0,0,0,null,1.023489443455145E-2,0.26484071348213273,1.9926049788550262,null,0,0,0]
[2657,0,1.1089135153867811,2.7812171326185124,null,0,0,0,null,-2.6656770041837773E-2,-0.29801591523663867,-3.2286372517020934E-2,null,0,0,0]
[2658,0,-0.14969412671332794,-0.17473992309312597,null,0,0,0,null,-3.2609911339030871E-2,-0.51819452273025401,-1.953816551091706,null,0,0,0]
[2659,0,-1.236020319653937,-4.0646560720088383,null,0,0,0,null,-4.3865348826803369E-3,-0.19248924104889284,-1.9324601353008293,null,0,0,0]
[2660,0,-1.9017143850013254,-4.9314759626831215,null,0,0,0,null,-1.9495522434180883E-2,-0.32712163552943274,-1.1967622788825865,null,0,0,0]
[2661,0,-1.3665649779053237,-4.2714557678124763,null,0,0,0,null,-1.4551674271850174E-3,-0.19509781804242537,-2.3309840673804865,null,0,0,0]
[2662,0,1.8646164135165235,4.8010649368197846,null,0,0,0,null,3.2277437486094185E-2,0.63888744492269778,3.5193773483590411,null,0,0,0]
[2663,0,-1.7551700239315178,-4.7657655987685938,null,0,0,0,null,-5.8216169358421499E-2,-0.84649833632513127,-2.5932967960401618,null,0,0,0]
[2664,0,-0.1069305828282013,-0.30233006123369704,null,0,0,0,null,2.9593101937300616E-2,0.31597683055790732,-0.3141586975978462,null,0,0,0]
[2665,0,-0.26150937439718835,-0.66648475679532571,null,0,0,0,null,3.5781433930746689E-2,0.37942438507080167,-0.37046779756729664,null,0,0,0]
[2666,0,0.8748786228848876,2.2357896925161187,null,0,0,0,null,-3.6775441650567587E-3,4.2410631145040498E-2,1.1230384297541605,null,0,0,0]
[2667,0,1.8513093631078954,4.8178533235251448,null,0,0,0,null,-1.545967349273218E-2,-7.3923897740014585E-3,2.0323347210569009,null,0,0,0]
[2668,0,-0.2577277135432578,-0.85304322404934652,null,0,0,0,null,2.2533380313333511E-2,0.25863612558267507,6.8495352540605375E-2,null,0,0,0]
[2669,0,-1.4573259973592849,-4.5152269392869275,null,0,0,0,null,4.0041001768220841E-2,0.35093447785370246,-1.20340137841658,null,0,0,0]
[2670,0,-0.39635886289109296,-1.1107913869759287,null,0,0,0,null,-2.9640990205711943E-2,-0.3435109436423327,-0.19528747645145994,null,0,0,0]
[2671,0,-0.29699161613780234,-0.57771923673686976,null,0,0,0,null,-2.9360632502310295E-3,-0.10182578008990367,-0.92618456129133486,null,0,0,0]
[2672,0,-0.81212230672383157,-2.2663913098454942,null,0,0,0,null,-6.6468125393985639E-2,-0.80841057258120508,-0.95881231583256155,null,0,0,0]
[2673,0,2.0947588827694892,5.4593306589807256,null,0,0,0,null,9.9302209878761635E-2,1.4302966014009972,4.1825433829494179,null,0,0,0]
[2674,0,-1.3645187602520983,-3.7492653722020695,null,0,0,0,null,-8.3290904751374573E-2,-1.1035254016066711,-2.3331423568744794,null,0,0,0]
[2675,0,1.7248104561620639,4.4461120327956083,null,0,0,0,null,4.9755333653804031E-2,0.79837332601061006,3.126599410946139,null,0,0,0]
[2676,0,1.2037590247537919,3.0725369345314029,null,0,0,0,null,1.4075012366561453E-2,0.26569359874765269,1.3299690310097503,null,0,0,0]
[2677,0,-0.47512030240931197,-1.214012718582635,null,0,0,0,null,-1.0478609594191368E-2,-0.16286919659882823,-0.74191873345851123,null,0,0,0]
[2678,0,-0.81576352206475344,-2.3288375937711243,null,0,0,0,null,1.1700810038874011E-2,8.3246454927912966E-2,-0.59929262805880357,null,0,0,0]
[2679,0,0.66598030222620219,2.0968646958395767,null,0,0,0,null,2.2784126700495448E-2,0.33807022657790459,0.88701893312453461,null,0,0,0]
[2680,0,-0.77503446851823721,-1.8013377516770051,null,0,0,0,null,-2.0002548087440574E-2,-0.32756618288683331,-1.3705819923145099,null,0,0,0]
[2681,0,-0.11892979907090012,-0.14317891239062738,null,0,0,0,null,7.7600714026931994E-3,4.7634343681052085E-2,-0.40028386627197327,null,0,0,0]
[2682,0,2.2731773933335879,5.8375389773718558,null,0,0,0,null,9.3566622917716877E-2,1.3714730845767726,4.2105904353709338,null,0,0,0]
[2683,0,0.93507657922670118,2.999683353777713,null,0,0,0,null,1.853315690381362E-2,0.28259467857169968,1.0303936112004413,null,0,0,0]
[2684,0,-2.064884074390744,-5.8359586203912182,null,0,0,0,null,2.1359777759568373E-2,0.14084307969698512,-1.1688860830172381,null,0,0,0]
[2685,0,-2.7388329104463263,-7.0728432173014406,null,0,0,0,null,-7.620413169032389E-2,-1.0646327385386229,-2.6884088375589088,null,0,0,0]
[2686,0,-0.8668229638804642,-2.9305644203624905,null,0,0,0,null,-7.087466999921696E-2,-0.97637044585881538,-2.5318751562586876,null,0,0,0]
[2687,0,0.44508905883778427,1.1770703109898895,null,0,0,0,null,-9.1435679554170979E-3,-0.23559921757481789,-1.6630118594784036,null,0,0,0]
[2688,0,-0.63344609604093782,-1.8065932073527,null,0,0,0,null,-6.4389118576872933E-2,-0.78191904909555976,-0.91677505762915101,null,0,0,0]
[2689,0,-0.39413856530886732,-1.0439528409678169,null,0,0,0,null,1.0840844895884062E-3,-4.1495178746680725E-2,-0.6573621018221566,null,0,0,0]
[2690,0,-0.32086136639083818,-0.86455884924044224,null,0,0,0,null,3.0127593468177454E-3,-1.1929248250899037E-3,-0.4262868973982622,null,0,0,0]
[2691,0,1.638225366039016,4.4790243794205526,null,0,0,0,null,-2.174847967921812E-2,-0.10591728317693469,1.7096774539411126,null,0,0,0]
[2692,0,-0.7646021305614904,-2.0519374042388665,null,0,0,0,null,-4.323633115830313E-2,-0.57705520662701659,-1.2366616616374704,null,0,0,0]
[2693,0,1.1098346715007374,2.9767888334904784,null,0,0,0,null,1.9195842204014924E-2,0.30773607739217279,1.2085228122834997,null,0,0,0]
[2694,0,2.1680992443218785,5.902477858491773,null,0,0,0,null,2.3321685132069093E-2,0.41035336399359768,2.0203278646368088,null,0,0,0]
[2695,0,-0.36100445822952315,-0.75816127882753059,null,0,0,0,null,-3.5807071111142934E-3,-0.10511653190909329,-0.8890652128685288,null,0,0,0]
[2696,0,1.3896523246944161,3.6213184691549469,null,0,0,0,null,-2.6226734462632122E-2,-0.22061556162603119,0.89907474528338571,null,0,0,0]
[2697,0,1.7579267379828889,4.5616975121446668,null,0,0,0,null,5.4028713888573124E-2,0.84967891540382878,3.1654195862181695,null,0,0,0]
[2698,0,2.0970273337325618,5.3590717539472319,null,0,0,0,null,8.5478329634294428E-2,1.249138935472488,3.7998656675005549,null,0,0,0]
[2699,0,-0.18170869119595409,-1.5888705289376959E-2,null,0,0,0,null,8.0182006416829373E-3,7.4538331531319266E-2,-0.21707447980204234,null,0,0,0]
[2700,0,-2.0520552763919078,-5.0043068082586686,null,0,0,0,null,-9.5858020168203099E-3,-0.31772252263556766,-2.5263815348798926,null,0,0,0]
[2701,0,-0.17068458131809711,-0.39751779253224229,null,0,0,0,null,-1.3449513460742593E-2,-0.19978210873140687,-0.77179286765292632,null,0,0,0]
[2702,0,-1.16971885762885,-3.1954398819088894,null,0,0,0,null,-6.5110402934504749E-2,-0.86122815248932971,-1.8057670715741987,null,0,0,0]
[2703,0,0.10794643246976375,0.54581025240738379,null,0,0,0,null,-1.2089722849129259E-2,-0.17874973662425236,-0.63516285059282018,null,0,0,0]
[2704,0,0.4547757236502748,1.4184594210659343,null,0,0,0,null,-1.2558406896168321E-2,-0.24695483433643586,-1.3353793085906109,null,0,0,0]
[2705,0,0.20168535513276037,0.9223528252068427,null,0,0,0,null,9.5748181651543404E-3,9.1456032477560262E-2,-4.9443737990699448E-2,null,0,0,0]
[2706,0,-1.7107608118589579,-4.4423285037635578,null,0,0,0,null,-5.5583673481570658E-2,-0.84149660607123589,-3.0045383164423436,null,0,0,0]
[2707,0,0.98600594970341082,2.8311998577714621,null,0,0,0,null,3.3406735984547881E-2,0.49533807916906336,1.5798029169602086,null,0,0,0]
[2708,0,-1.7489340251825869,-4.5481021641881885,null,0,0,0,null,-6.9825956170814316E-2,-1.0410152731626832,-3.4982344383782036,null,0,0,0]
[2709,0,0.99224752978183828,2.8341397498096486,null,0,0,0,null,3.0256822068834083E-2,0.44182199860915261,1.3559849421264989,null,0,0,0]
[2710,0,-0.94019701686436929,-2.5774956314304798,null,0,0,0,null,-4.1965751124277292E-2,-0.55726575319778293,-1.1920626077416272,null,0,0,0]
[2711,0,1.3683144661636089,3.5736864236311159,null,0,0,0,null,2.5322150682145547E-2,0.41888340677064023,1.705650458260654,null,0,0,0]
[2712,0,-0.38904662670615653,-1.5752393713128185,null,0,0,0,null,-5.177447881118593E-2,-0.66088842546216342,-1.2962631606219328,null,0,0,0]
[2713,0,-0.37484468952771205,-0.89398837638032269,null,0,0,0,null,-2.9744092220236667E-3,-8.6376909949422959E-2,-0.61566635437321748,null,0,0,0]
[2714,0,-0.55437730539376751,-1.0608517551280601,null,0,0,0,null,-4.9769835089070513E-2,-0.68644865305867553,-1.586196824089082,null,0,0,0]
[2715,0,-0.38493018026788195,-0.88604976197148788,null,0,0,0,null,-3.4115680627314193E-3,-8.4609309172275965E-2,-0.70134009223406613,null,0,0,0]
[2716,0,1.8117288873899433,5.2212149926610287,null,0,0,0,null,7.1751254333458234E-2,1.0412602086981888,3.1481488950513556,null,0,0,0]
[2717,0,1.5160777665919758,4.023662758705985,null,0,0,0,null,6.1302211808013395E-2,0.8930925679818793,2.8298122287737022,null,0,0,0]
[2718,0,-0.2750099208930078,-0.82803265683323113,null,0,0,0,null,-2.5067118272690835E-2,-0.27972707546592662,-5.0027124125183037E-2,null,0,0,0]
[2719,0,0.52115913014833859,1.2412852925812476,null,0,0,0,null,3.172963993620749E-2,0.45887098863198028,1.3944034685423066,null,0,0,0]
[2720,0,0.19413984293302383,0.70210317381968346,null,0,0,0,null,-7.3442595421871031E-3,-0.10618609637717509,-0.223010366454404,null,0,0,0]
[2721,0,0.89437442683021617,2.4953547036134913,null,0,0,0,null,9.9057204770634538E-2,1.2701676955262655,2.2606809551563094,null,0,0,0]
[2722,0,-0.2014160173303535,-0.32318180854729872,null,0,0,0,null,-3.016795525229338E-2,-0.46582587136735221,-1.6465045101002433,null,0,0,0]
[2723,0,0.50625802876286985,2.0642648835373039,null,0,0,0,null,2.0898315634530148E-2,0.30109546929271253,0.8639087847368101,null,0,0,0]
[2724,0,-1.5863951609648101,-4.8158140595560104,null,0,0,0,null,-9.3650114816084054E-3,-0.29055970832950062,-2.4280301051143289,null,0,0,0]
[2725,0,-1.3739018587607825,-4.2847179097892001,null,0,0,0,null,-1.0973354336212538E-2,-0.3111705352341223,-2.4660476617646965,null,0,0,0]
[2726,0,2.1549511743518526,5.5573557869245125,null,0,0,0,null,8.800266193035651E-2,1.2748614554729074,3.7864894470717152,null,0,0,0]
[2727,0,-0.67889323119356226,-1.5920449764704026,null,0,0,0,null,-6.5917036124647777E-2,-0.87551069118961367,-1.8954728059943482,null,0,0,0]
[2728,0,1.7649678123634931,4.7406991159566969,null,0,0,0,null,5.6666104709194656E-3,0.19759391055510697,1.7646189842684763,null,0,0,0]
[2729,0,-0.67013017686278908,-1.4630124973948768,null,0,0,0,null,-9.5639297412290596E-3,-0.23200064747197394,-1.5790854363963298,null,0,0,0]
[2730,0,-0.36838089485510317,-0.96461661059092152,null,0,0,0,null,2.1242985470949462E-2,0.19991510736034707,-0.42209590127129559,null,0,0,0]
[2731,0,1.0636452221688415,2.9620017348012189,null,0,0,0,null,4.3565251437065737E-2,0.63161445439476116,1.8958825382286777,null,0,0,0]
[2732,0,0.44943050526812839,1.0740470748190782,null,0,0,0,null,1.9569437573416566E-2,0.29184070477217849,1.0226636763413335,null,0,0,0]
[2733,0,-0.44598252974332536,-1.2389822931922463,null,0,0,0,null,-3.2428444231643254E-2,-0.37737509295698235,-0.23431679511530457,null,0,0,0]
[2734,0,-2.8691944800749445,-7.5679818178315541,null,0,0,0,null,-7.8749547827193456E-2,-1.1580750392658319,-3.4614895509111592,null,0,0,0]
[2735,0,2.1748801167314706,5.6500995331446244,null,0,0,0,null,9.5283940826109817E-2,1.380094858458816,4.1051456241867674,null,0,0,0]
[2736,0,-0.3541200474993566,-1.0118787329319312,null,0,0,0,null,-2.2204316031139227E-3,-8.101370640073037E-2,-0.71058419921154925,null,0,0,0]
[2737,0,0.43708227864445509,1.3910635293539162,null,0,0,0,null,-1.0840988962271467E-2,-0.20030637857871988,-0.99620562259459622,null,0,0,0]
[2738,0,1.3896523246944217,3.6406148227199884,null,0,0,0,null,-3.2726765373052788E-2,-0.30044776458615163,0.79667758844652781,null,0,0,0]
[2739,0,-0.36123222871613508,-0.67825591028085186,null,0,0,0,null,-5.2599888208384696E-2,-0.65220653906986814,-0.90722872984329295,null,0,0,0]
[2740,0,1.6369815011173323,4.5972536841702096,null,0,0,0,null,9.8038572481663269E-2,1.3315620576735518,3.303098186782834,null,0,0,0]
[2741,0,-0.317932182743627,-0.28154400154096221,null,0,0,0,null,-2.8361773804623909E-2,-0.41700705019665019,-1.1433523930477931,null,0,0,0]
[2742,0,1.8212263431940228,4.6948220975806469,null,0,0,0,null,-1.9950595116330818E-2,-3.5092372026468185E-2,2.2808901261233658,null,0,0,0]
[2743,0,1.3476905519565534,3.6120209702131176,null,0,0,0,null,1.2091106120084249E-2,0.22669848970057957,1.2220319084846232,null,0,0,0]
[2744,0,-0.75848705658772819,-2.5429673113732134,null,0,0,0,null,-2.6025907805809139E-2,-0.36872194150111864,-1.1999747727276844,null,0,0,0]
[2745,0,1.2103510843663408,3.3444611860869702,null,0,0,0,null,9.8789492334629983E-2,1.3021528804484905,2.7104038053275543,null,0,0,0]
[2746,0,-1.1871079957015427,-3.2649795959992187,null,0,0,0,null,1.3087242261821758E-2,2.9331728927581024E-2,-1.4444760380893749,null,0,0,0]
[2747,0,-0.32923126326386409,-0.54863262350380682,null,0,0,0,null,-4.518150561868816E-2,-0.59943197854164287,-1.1498646010375269,null,0,0,0]
[2748,0,1.8771377547866359,4.8726199675813113,null,0,0,0,null,5.4501769075765823E-2,0.87184216054956865,3.383384211677043,null,0,0,0]
[2749,0,0.16912663731264546,0.34751882389323147,null,0,0,0,null,1.3781477055268852E-2,0.19902660223260046,0.63440635229433973,null,0,0,0]
[2750,0,6.4092233407222005E-2,-0.34694349621058063,null,0,0,0,null,3.5144672240952392E-2,0.49213081467041686,1.2136095824406039,null,0,0,0]
[2751,0,0.98483189450302777,2.7103020057491229,null,0,0,0,null,1.381958473583586E-2,0.23353099062160618,0.98324529705713215,null,0,0,0]
[2752,0,0.92544007754718949,2.7053300656341088,null,0,0,0,null,-2.2316301892451349E-2,-0.16059998175879356,1.1347669525037853,null,0,0,0]
[2753,0,-0.23763740403539668,-0.83214775167035981,null,0,0,0,null,1.7493165898270151E-2,0.18904751163669972,-0.11447417784667414,null,0,0,0]
[2754,0,-4.1309022511159125E-3,0.41264430390400958,null,0,0,0,null,-2.8036770508825328E-2,-0.31743908084733541,-9.463486016490788E-2,null,0,0,0]
[2755,0,0.67632041193030823,2.0989075170026408,null,0,0,0,null,-6.9907265536149621E-2,-0.78124995019298604,-0.16087461468682523,null,0,0,0]
[2756,0,2.1748801167314706,5.6500995331446244,null,0,0,0,null,9.5283940826109817E-2,1.380094858458816,4.1051456241867674,null,0,0,0]
[2757,0,0.82113335882674798,2.8078536781961301,null,0,0,0,null,1.9815227602310814E-2,0.31265282703892899,1.2173951550450548,null,0,0,0]
[2758,0,0.41681173064846189,0.60259068981289599,null,0,0,0,null,4.6156622744145975E-2,0.66522868008534264,1.8100201619332474,null,0,0,0]
[2759,0,1.9209126269279131,4.9850233439974767,null,0,0,0,null,8.8148254299916684E-2,1.2756475605133684,3.7443000493614091,null,0,0,0]
[2760,0,0.28229936857739629,1.0266306338679061,null,0,0,0,null,-4.2058124535696378E-2,-0.48901921564749501,-0.31419317417152703,null,0,0,0]
[2761,0,0.57700112970155537,1.6641093416238946,null,0,0,0,null,-4.5947372263879628E-3,-4.9452186114421239E-2,7.7617256410343546E-2,null,0,0,0]
[2762,0,1.6629009930980774,4.5596468149380236,null,0,0,0,null,0.10285423009224025,1.445970884074838,4.0464171500715569,null,0,0,0]
[2763,0,-0.86524748071037716,-2.1202131238654549,null,0,0,0,null,-3.992592352055243E-2,-0.61902203715040283,-2.2623912487922317,null,0,0,0]
[2764,0,-1.774048129998373,-5.316467532497823,null,0,0,0,null,1.5158260613777315E-2,6.0659590968153682E-2,-1.4417254258265275,null,0,0,0]
[2765,0,1.8282631119709112,5.1665083706488879,null,0,0,0,null,6.6334598242851997E-2,0.96330733555518322,2.9084117827285954,null,0,0,0]
[2766,0,-0.9096224573564814,-2.5650197383111082,null,0,0,0,null,8.4947321587486614E-3,-1.2852364657063844E-2,-1.3826184304570162,null,0,0,0]
[2767,0,1.7405036099822555,4.4017007199367217,null,0,0,0,null,8.9080770230246062E-2,1.2678696695022162,3.5135951911260164,null,0,0,0]
[2768,0,-0.59102810401412897,-2.1511878205920585,null,0,0,0,null,-5.619392436673553E-2,-0.80407692538940589,-2.3941919416395905,null,0,0,0]
[2769,0,0.89774694126418586,2.470389261014192,null,0,0,0,null,-9.2256006283253107E-3,-8.9385977991377333E-2,0.23327658416129271,null,0,0,0]
[2770,0,1.3392848216122439,3.4339318944122859,null,0,0,0,null,-3.86200354030845E-2,-0.38590093878853532,0.50841946736762833,null,0,0,0]
[2771,0,0.92596472706838906,2.4307954759854549,null,0,0,0,null,1.0355474067957686E-2,0.19513129051114175,1.0087501887652361,null,0,0,0]
[2772,0,0.94633463689582642,2.2374995421642088,null,0,0,0,null,2.6890483616865767E-2,0.41815173407320255,1.5161568381985344,null,0,0,0]
[2773,0,-0.75460035796971892,-1.8134527536514797,null,0,0,0,null,-2.0070339001040792E-2,-0.36125104437294797,-1.7971284649887276,null,0,0,0]
[2774,0,-1.3928309301749304,-3.8512867516025291,null,0,0,0,null,-7.341712361007495E-2,-0.98784880558184429,-2.2507232770352603,null,0,0,0]
[2775,0,0.41055017380824754,1.4304830364564842,null,0,0,0,null,1.6356298388014921E-2,0.18532331900257942,0.19323663515596126,null,0,0,0]
[2776,0,0.17656089170846098,0.65077615760581831,null,0,0,0,null,-2.6879142234336371E-2,-0.54740547252102711,-3.0340329766482426,null,0,0,0]
[2777,0,-0.38079477208383289,-1.0968201015298109,null,0,0,0,null,7.5591882812212248E-3,3.3727828128029616E-2,-0.6331698910040614,null,0,0,0]
[2778,0,-0.48997028606049386,-1.2713250116370836,null,0,0,0,null,-1.7513112615139392E-2,-0.28259388458448209,-1.2654334910011966,null,0,0,0]
[2779,0,-0.47976793447735872,-1.2532342854941598,null,0,0,0,null,-1.8322587842415375E-2,-0.27373783551736958,-1.0104427798585749,null,0,0,0]
[2780,0,0.36249871331998657,1.115003624988909,null,0,0,0,null,5.9783347389224618E-2,0.76235315474584331,1.3333207425404654,null,0,0,0]
[2781,0,1.7552238198275099,4.829612380450591,null,0,0,0,null,7.6998449722219614E-2,1.1147441967047806,3.3170164313204369,null,0,0,0]
[2782,0,1.7086744823598001,4.4494379409170941,null,0,0,0,null,1.5438262055978896E-2,0.3823841304949665,2.6328454274657123,null,0,0,0]
[2783,0,-1.7266094747202279,-5.1808238054096218,null,0,0,0,null,-2.2124278556347347E-2,-0.40014037072505559,-2.0368555036140168,null,0,0,0]
[2784,0,0.49922257787628405,0.80903461450659231,null,0,0,0,null,5.1303154180485366E-2,0.73719462549431314,2.0203261267722556,null,0,0,0]
[2785,0,-0.86812010659381844,-2.3732250097419381,null,0,0,0,null,6.5246896014453284E-2,0.86122051965213264,1.7282575060416348,null,0,0,0]
[2786,0,0.41243678002066553,1.5629585720081887,null,0,0,0,null,-2.4807050487626329E-2,-0.2778494718818465,9.6090492305043879E-2,null,0,0,0]
[2787,0,-1.6600042156018844,-4.3212845606831758,null,0,0,0,null,3.8170633621954893E-2,0.40012683470749016,-0.28649455685328212,null,0,0,0]
[2788,0,-0.10343321686835043,-0.19118814127304359,null,0,0,0,null,5.1585030631770791E-3,3.3583487633962253E-2,-0.38866545257383406,null,0,0,0]
[2789,0,0.62143020868694476,1.8850697959922691,null,0,0,0,null,-2.8741759952559676E-2,-0.41364590168843735,-1.2153809156289099,null,0,0,0]
[2790,0,-0.38751807252722575,-0.60587681883337796,null,0,0,0,null,-2.8936032878875153E-3,-0.11648210026403194,-0.93418488189846904,null,0,0,0]
[2791,0,1.3953702007756492,3.8575259709225791,null,0,0,0,null,7.1974247962898349E-2,0.99920382170039013,2.536374677215528,null,0,0,0]
[2792,0,0.36521257568330656,1.2897452462495349,null,0,0,0,null,-4.4350787355401738E-2,-0.53516514644271318,-0.57201384091090945,null,0,0,0]
[2793,0,1.8282631119709112,5.1665083706488879,null,0,0,0,null,6.6334598242851997E-2,0.96330733555518322,2.9084117827285954,null,0,0,0]
[2794,0,0.50243935497500747,1.25761927638622,null,0,0,0,null,1.9501582981202831E-2,0.30641535079780169,1.2185857288617081,null,0,0,0]
[2795,0,0.75967612092950365,1.9590094616443239,null,0,0,0,null,-7.4877793355065028E-3,-2.436715675031428E-2,0.80645425394624548,null,0,0,0]
[2796,0,1.6079548262689367,4.685819586583988,null,0,0,0,null,6.9161378401814605E-2,1.0199068326710932,3.2236365900280908,null,0,0,0]
[2797,0,0.91291509787405989,2.5441744285818202,null,0,0,0,null,0.10513810643368361,1.3424593414785131,2.3250200434415675,null,0,0,0]
[2798,0,0.34780501348858889,0.74948450348819462,null,0,0,0,null,2.5310288794171583E-2,0.37336551335490276,1.2115775560457223,null,0,0,0]
[2799,0,-1.7510596758652208,-5.2627859241986004,null,0,0,0,null,1.1988793067509107E-2,2.0773501332087108E-2,-1.4776051426956474,null,0,0,0]
[2800,0,-0.34458702107618228,-1.3726415225985038,null,0,0,0,null,2.7556257360140363E-2,0.36659428879256484,0.70085342348815538,null,0,0,0]
[2801,0,1.877264571056432,4.7527491359223273,null,0,0,0,null,0.10160442509921797,1.4313005321289738,3.8605901134429734,null,0,0,0]
[2802,0,-1.0264136698795336,-2.8708398522857315,null,0,0,0,null,7.6260186497103796E-2,0.99264852266270642,1.82229659636629,null,0,0,0]
[2803,0,-0.61127719513512779,-1.8954251503986161,null,0,0,0,null,6.8719946864549394E-2,0.91420891900932744,1.838427902796324,null,0,0,0]
[2804,0,-1.4808243304584485,-4.5825401361192339,null,0,0,0,null,2.3347891218525773E-2,0.2217188686329673,-0.54854558010742038,null,0,0,0]
[2805,0,-0.63887673790732147,-1.8899604870653639,null,0,0,0,null,9.5810444475467937E-2,1.3011902323710391,2.9676317952868665,null,0,0,0]
[2806,0,-0.86812010659381844,-2.3732250097419381,null,0,0,0,null,6.5246896014453284E-2,0.86122051965213264,1.7282575060416348,null,0,0,0]
[2807,0,1.1286210713017644,2.8906878893646861,null,0,0,0,null,-2.9104312302177675E-2,-0.29833983202109449,0.29721114302480056,null,0,0,0]
[2808,0,1.048219017098345,3.0260970923570132,null,0,0,0,null,-6.1469338531534107E-2,-0.62853880397913875,0.70284978567334111,null,0,0,0]
[2809,0,-2.8673429131358006,-7.3642897914820606,null,0,0,0,null,-9.543676309064239E-2,-1.3476326130978313,-3.5517876275993769,null,0,0,0]
[2810,0,-0.41009921696225682,-1.0840691253508339,null,0,0,0,null,-3.3579570253970703E-3,-8.5994055111638767E-2,-0.76394766600756703,null,0,0,0]
[2811,0,-0.10896739090742449,-0.43188340910190165,null,0,0,0,null,2.7799187739110779E-2,0.34388587084706979,0.41379805892836519,null,0,0,0]
[2812,0,0.83905844048024669,2.6522816917513339,null,0,0,0,null,2.4300770480928519E-2,0.35457868701124245,1.1198114451314141,null,0,0,0]
[2813,0,-1.315472886654814,-4.2738157333993367,null,0,0,0,null,-2.9509328316721792E-2,-0.51704788103180821,-2.5303130301734056,null,0,0,0]
[2814,0,1.0398824734757126,2.6944461189396023,null,0,0,0,null,4.7458383065354607E-3,0.1363006276662527,1.0108973460379276,null,0,0,0]
[2815,0,-0.37990970585487593,-0.49662145758781118,null,0,0,0,null,7.8506611639418793E-3,3.8060005407712198E-2,-0.47103870452519186,null,0,0,0]
[2816,0,-1.0036906477449956,-3.2555323211310681,null,0,0,0,null,-9.4942147367120075E-2,-1.381052527662795,-4.219742839053306,null,0,0,0]
[2817,0,7.8322417696921554E-2,0.43171089965853754,null,0,0,0,null,-7.6238876699838446E-3,-0.12645466076960749,-0.6059964478152069,null,0,0,0]
[2818,0,-2.6365029030640326,-6.7859736230106869,null,0,0,0,null,-5.5433429677528179E-2,-0.80909945551518014,-2.3438447170866383,null,0,0,0]
[2819,0,0.36127822013710648,1.189220938105551,null,0,0,0,null,-8.9413327320897913E-3,-0.15288744303096519,-0.66301142871643604,null,0,0,0]
[2820,0,9.8104007079184152E-2,0.14581843015989579,null,0,0,0,null,5.0467213986036654E-3,6.9738043698717778E-2,0.22015017340920531,null,0,0,0]
[2821,0,0.34017556528374737,0.97356429323917837,null,0,0,0,null,3.327185895640463E-2,0.41515807681731437,0.54370169201176399,null,0,0,0]
[2822,0,-0.85688197363326069,-2.3728739784621502,null,0,0,0,null,-4.2897027227951183E-2,-0.55105046748980835,-0.99246029724310569,null,0,0,0]
[2823,0,-0.47266989495049527,-1.8190493056654087,null,0,0,0,null,-3.3837441451802251E-2,-0.40873713541966483,-0.63815368856948773,null,0,0,0]
[2824,0,-0.73114909048281695,-2.4773561927214325,null,0,0,0,null,-2.5361797185320938E-2,-0.3603252360302549,-1.1868769089817761,null,0,0,0]
[2825,0,1.7128923676326613,4.5669978539994407,null,0,0,0,null,-1.911795066870144E-2,-4.4346932345696588E-2,2.080770752134609,null,0,0,0]
[2826,0,0.67266428726595773,1.7939977243740504,null,0,0,0,null,7.443106596049574E-3,0.14856698825142758,0.90689678365745929,null,0,0,0]
[2827,0,1.7006069421738066,4.4883977446044447,null,0,0,0,null,-1.9677353303672589E-2,-4.9092326432338268E-2,2.0921728099639623,null,0,0,0]
[2828,0,1.6213021589455057,4.2106980001567793,null,0,0,0,null,1.0424171710247378E-2,0.30273339793673221,2.3408677028169294,null,0,0,0]
[2829,0,0.70447177777199255,1.7199072615445183,null,0,0,0,null,4.4616683162013546E-2,0.62444688414227945,1.6837393161541403,null,0,0,0]
[2830,0,-0.15495643974781886,0.1210910174761375,null,0,0,0,null,4.059826063155185E-3,4.9885181448468756E-2,-2.8543357490027118E-2,null,0,0,0]
[2831,0,-1.7180722512361681,-5.147484181180662,null,0,0,0,null,1.8985196186591169E-2,0.13179381724204631,-1.0710580368599294,null,0,0,0]
[2832,0,-1.3630376102800674,-4.3707973341998949,null,0,0,0,null,-8.2568469264074448E-2,-1.186164309941135,-3.5796097840854091,null,0,0,0]
[2833,0,1.570997921719445,4.0319764002603984,null,0,0,0,null,3.7705938213327384E-3,0.2098357272714011,2.0790554781754107,null,0,0,0]
[2834,0,-0.19027273199618866,-0.39347075269972992,null,0,0,0,null,-4.3642482938173945E-2,-0.64883092937714992,-2.0950376415486316,null,0,0,0]
[2835,0,-7.9274981480981291E-2,-0.72823307436376494,null,0,0,0,null,4.4866945576753435E-2,0.60291511932889352,1.2513224620672299,null,0,0,0]
[2836,0,0.1109010087658935,-0.27888596759432405,null,0,0,0,null,-1.6303858535957432E-2,-0.2238377904572908,-0.6935631973881573,null,0,0,0]
[2837,0,0.54288951110473316,2.2483977009745795,null,0,0,0,null,1.6051859729559623E-2,0.26149269612066472,1.1155082253469772,null,0,0,0]
[2838,0,-0.65636815961687356,-1.9600786903067273,null,0,0,0,null,1.2493224213287477E-2,8.9281183227749347E-2,-0.69935813185564255,null,0,0,0]
[2839,0,1.6262185199799004,4.7516075971606115,null,0,0,0,null,6.6585502860774165E-2,0.98799364753190189,3.171873903337735,null,0,0,0]
[2840,0,1.7405036099822555,4.4017007199367217,null,0,0,0,null,8.9080770230246062E-2,1.2678696695022162,3.5135951911260164,null,0,0,0]
[2841,0,-9.1212329761370711E-2,5.3352838558297665E-2,null,0,0,0,null,-3.2456230744178416E-2,-0.48128072400161637,-1.5259030056656848,null,0,0,0]
[2842,0,-0.72025413880573252,-2.0431669311905933,null,0,0,0,null,5.8862622874097494E-3,-5.410172551129108E-3,-0.93168059570000694,null,0,0,0]
[2843,0,0.60981895077147785,1.2698546764170751,null,0,0,0,null,2.6585537015536716E-3,9.73090184310995E-2,0.84202166217584451,null,0,0,0]
[2844,0,1.9708693106330029,5.0825111231753475,null,0,0,0,null,4.4111165657400135E-2,0.79419734650181362,3.8226309845614996,null,0,0,0]
[2845,0,1.7488502777280701,5.0328569453505114,null,0,0,0,null,8.9196019013148831E-2,1.2480053538900493,3.3106794494414316,null,0,0,0]
[2846,0,-1.7890984034075355,-4.4629614331118423,null,0,0,0,null,-1.5579821757588092E-2,-0.38888720138465577,-2.6217306898236568,null,0,0,0]
[2847,0,0.16690865895906062,0.37632268613748604,null,0,0,0,null,2.1005359840391293E-2,0.29210255027888704,0.81313056345590662,null,0,0,0]
[2848,0,-0.41011221106254925,-1.0556318220048342,null,0,0,0,null,-2.8509408896705397E-3,-7.8207675740476587E-2,-0.69840302529649489,null,0,0,0]
[2849,0,0.47722739418487981,1.1141991299115035,null,0,0,0,null,2.1413229973769318E-2,0.3164106158412251,1.0709115579854551,null,0,0,0]
[2850,0,1.4485640132041027,3.8397767139124919,null,0,0,0,null,5.5459802046291938E-2,0.82588949395736744,2.7738247885480267,null,0,0,0]
[2851,0,0.72548661752894805,1.8707358099192062,null,0,0,0,null,1.9894530132856574E-2,0.28813975225667493,0.95099636492865469,null,0,0,0]
[2852,0,1.2095773209211893,3.3945327683368234,null,0,0,0,null,3.3683173576486126E-2,0.5068505236910178,1.6841083069967027,null,0,0,0]
[2853,0,2.3933787250953338,6.1896302740091125,null,0,0,0,null,0.10428179001946904,1.5023831135226491,4.3822617697822457,null,0,0,0]
[2854,0,1.2209052036178765,3.3913046838365628,null,0,0,0,null,3.2809731470070401E-2,0.48956491598632057,1.6231701646285874,null,0,0,0]
[2855,0,-1.5626585802985209,-4.0369708803668836,null,0,0,0,null,8.3091699628197541E-2,0.91607632919470328,0.18472052711832657,null,0,0,0]
[2856,0,-0.62813824034518617,-2.3926285255476687,null,0,0,0,null,-7.3796288331286916E-2,-1.0166681280027141,-2.6234686330429722,null,0,0,0]
[2857,0,-0.25935730819265335,-0.43881698356416748,null,0,0,0,null,-3.7387233435015391E-2,-0.4168752521079323,-8.444517278903732E-2,null,0,0,0]
[2858,0,-1.1625722959693157,-3.1641648151231929,null,0,0,0,null,-7.0957803713904186E-2,-0.93277544175162441,-1.9011201217038942,null,0,0,0]
[2859,0,1.8772645710564211,4.7527491359222989,null,0,0,0,null,0.10312642313995542,1.445449128178915,3.8294695246648951,null,0,0,0]
[2860,0,-0.59425654171470521,-1.4963779675070108,null,0,0,0,null,-3.6727594242027296E-2,-0.46820697642028336,-0.76829747035775287,null,0,0,0]
[2861,0,-0.6794793260136357,-2.1583477474400281,null,0,0,0,null,-4.5543542392221241E-2,-0.58838339268783968,-1.1857106392990282,null,0,0,0]
[2862,0,1.3690732094941522,3.510416922933655,null,0,0,0,null,5.8883199221606329E-3,0.15849289191096158,1.108619930075325,null,0,0,0]
[2863,0,-0.41011221106254925,-1.0556318220048342,null,0,0,0,null,-2.8509408896705397E-3,-7.8207675740476587E-2,-0.69840302529649489,null,0,0,0]
[2864,0,-0.63568422576975536,-1.7511730695332444,null,0,0,0,null,-3.7381878304875105E-2,-0.48136153084046329,-0.86456711731565161,null,0,0,0]
[2865,0,0.85671378203326098,2.4546623569418951,null,0,0,0,null,-2.7740738935548279E-2,-0.42401103311893801,-1.4473304671303375,null,0,0,0]
[2866,0,0.2442124481783485,0.16791798439627018,null,0,0,0,null,2.4342252240660854E-2,0.36606509751544491,1.1016953590312224,null,0,0,0]
[2867,0,-2.7583561033069053,-7.2992755521613759,null,0,0,0,null,-7.7375627658269816E-2,-1.1705891349209778,-3.8000159305933594,null,0,0,0]
[2868,0,1.6285410705096293,4.2816051108277611,null,0,0,0,null,-2.0794427889383599E-2,-6.5495023787723761E-2,2.0369194271501292,null,0,0,0]
[2869,0,0.19945121999759793,0.85055639440874797,null,0,0,0,null,-1.9241505409376716E-2,-0.22762137941199306,-7.7332865082647917E-2,null,0,0,0]
[2870,0,-2.7625537305467587,-7.1349085663140794,null,0,0,0,null,-7.9790102049798126E-2,-1.1682837668028287,-3.445803362446517,null,0,0,0]
[2871,0,-0.27578971444311356,-0.61838458195165735,null,0,0,0,null,-1.2985810344139339E-2,-0.21849728022525505,-1.0227613804993343,null,0,0,0]
[2872,0,-0.31426573670447944,-0.81024932716324105,null,0,0,0,null,-8.6072663125842715E-3,-0.16777886522370772,-1.0348257556676654,null,0,0,0]
[2873,0,1.3770137786664471,3.7266266807491264,null,0,0,0,null,1.3644071479673585E-2,0.22299024385567917,0.98213739042688031,null,0,0,0]
[2874,0,0.39324349196835462,1.2696755874546215,null,0,0,0,null,-2.5425320814290615E-2,-0.357578022203973,-0.96947842792951266,null,0,0,0]
[2875,0,1.4274320202541149,3.6654799948593864,null,0,0,0,null,-3.3092907258774631E-2,-0.32303573182026318,0.54341722340273924,null,0,0,0]
[2876,0,-0.3398045679562201,-0.40036912663104157,null,0,0,0,null,-1.8680490962378826E-4,-4.832056219594142E-2,-0.44665999405835827,null,0,0,0]
[2877,0,-2.8060320182126053,-7.4136977479350605,null,0,0,0,null,-8.665671595037043E-2,-1.2827381108064482,-3.9206999866617225,null,0,0,0]
[2878,0,1.6018692733142725,4.3408504712458456,null,0,0,0,null,8.4104182434991803E-3,0.18735631857364843,1.2486903775348983,null,0,0,0]
[2879,0,-0.36986824005701058,-0.47252193967293715,null,0,0,0,null,7.850661163941822E-3,3.3759714693890601E-2,-0.52264219309102555,null,0,0,0]
[2880,0,-0.89923316481196158,-2.9832427659883325,null,0,0,0,null,-2.3322276883945961E-2,-0.35292713731719505,-1.3504858369587018,null,0,0,0]
[2881,0,-0.21560221240258398,-0.80958478911404386,null,0,0,0,null,2.0869440225370395E-2,0.22837260773208526,-8.0115138671968456E-2,null,0,0,0]
[2882,0,-1.5593888264865801,-3.7596911426868393,null,0,0,0,null,-3.3208773710285015E-2,-0.49189023301878387,-1.3328875466062564,null,0,0,0]
[2883,0,-1.326412749337931,-4.3054974445180125,null,0,0,0,null,-5.0165496620022225E-2,-0.78274377451698729,-3.0024055851474114,null,0,0,0]
[2884,0,-0.79765343599511107,-2.2091735120951634,null,0,0,0,null,5.4433200806868736E-3,-1.7696299330989859E-2,-1.0066966784788782,null,0,0,0]
[2885,0,-0.54993033272364122,-1.4837788524170756,null,0,0,0,null,-3.3658564972366717E-2,-0.40587943039773111,-0.41603074051250222,null,0,0,0]
[2886,0,1.1055257522058128,3.1241427791364402,null,0,0,0,null,2.8696242903165681E-2,0.43398213675438002,1.4683885036244211,null,0,0,0]
[2887,0,-1.4326872333356677,-3.7277862564210444,null,0,0,0,null,5.7834417002181171E-2,0.65941580609665562,0.27763714708205589,null,0,0,0]
[2888,0,-0.96670104928831646,-2.3919977345342343,null,0,0,0,null,-1.7711043848183748E-2,-0.2693200918853299,-0.8789185555646436,null,0,0,0]
[2889,0,-1.3730447302584052,-4.3868895740325753,null,0,0,0,null,-7.5429372513499002E-2,-1.079547485406537,-3.2386603095728024,null,0,0,0]
[2890,0,-0.10693058282820675,-0.30233006123371159,null,0,0,0,null,2.9593101937300675E-2,0.32457161281005026,-0.21102131057213774,null,0,0,0]
[2891,0,0.18209506805044656,0.15061199449835841,null,0,0,0,null,5.232993497278602E-2,0.70575844279957978,1.4998471190115488,null,0,0,0]
[2892,0,-0.10708911605511821,-0.30330038188776964,null,0,0,0,null,1.4724171740845407E-2,0.15667343485382026,-6.8672633783775389E-2,null,0,0,0]
[2893,0,1.454487308069407,3.8354338174535658,null,0,0,0,null,-4.0821326576230492E-2,-0.39987690807362652,0.67470245649370553,null,0,0,0]
[2894,0,0.45355631436357363,1.0573885383403758,null,0,0,0,null,2.2358131949282038E-2,0.31769677725865497,0.96161843422691529,null,0,0,0]
[2895,0,0.41243678002066553,1.5629585720081887,null,0,0,0,null,-2.4807050487626329E-2,-0.2778494718818465,9.6090492305043879E-2,null,0,0,0]
[2896,0,-9.7939725684536821E-2,0.22449527367871633,null,0,0,0,null,-3.0132575368646997E-2,-0.413827381777297,-0.86380701526730264,null,0,0,0]
[2897,0,-5.6017803318620281E-2,-0.15486942618644389,null,0,0,0,null,6.1876783911843231E-2,0.76348761643759011,0.99446385177622865,null,0,0,0]
[2898,0,0.13261235512278471,0.56915103078667739,null,0,0,0,null,-3.6170568636584167E-2,-0.5197463021289086,-1.482257048437019,null,0,0,0]
[2899,0,-1.6921437594740727,-4.171693848352275,null,0,0,0,null,-1.5507872519827061E-2,-0.34579457122607798,-2.0920435615254283,null,0,0,0]
[2900,0,-1.8404964828407502,-4.7871804721787488,null,0,0,0,null,-5.8727964680715901E-2,-0.88016458938223607,-3.0473716405398772,null,0,0,0]
[2901,0,0.73109827674041483,1.963790033891557,null,0,0,0,null,8.8806923050860576E-2,1.1445544485189394,2.0748004696120659,null,0,0,0]
[2902,0,-1.6177998343346898,-4.1843160392914287,null,0,0,0,null,-5.3209055891240552E-2,-0.81612913573170676,-2.9566114343975425,null,0,0,0]
[2903,0,-0.37038771741470372,-0.55383446093917155,null,0,0,0,null,-2.9286946109928238E-2,-0.42870745824713868,-1.1992903246225468,null,0,0,0]
[2904,0,0.96738922739310329,2.5819153667654247,null,0,0,0,null,3.2708243206473468E-2,0.47647664050500227,1.463252949911428,null,0,0,0]
[2905,0,-0.60484543029270388,-1.9996143687248913,null,0,0,0,null,-2.4585285169262592E-2,-0.34196741702243255,-1.0217606784720921,null,0,0,0]
[2906,0,-1.4251027930631535,-4.4089093975063003,null,0,0,0,null,2.631339131715231E-2,0.22609688716350229,-0.89410437635151907,null,0,0,0]
[2907,0,1.6226205164999628,4.4122009410617249,null,0,0,0,null,1.3322445431337825E-2,0.28205870113641957,1.7542007970737032,null,0,0,0]
[2908,0,-0.90223629552580131,-2.9695122157533986,null,0,0,0,null,-7.1944770950914227E-2,-0.99586800098978256,-2.6033088202937544,null,0,0,0]
[2909,0,-0.44204798438556647,-0.7672407178398134,null,0,0,0,null,-1.7940588769465649E-4,-9.0051539779710768E-2,-0.98381512440487495,null,0,0,0]
[2910,0,-2.9296565351152277,-7.575513936572726,null,0,0,0,null,-0.10311145123112379,-1.4886151236562919,-4.2386974794070555,null,0,0,0]
[2911,0,-1.2254617726838168,-3.1605619902554389,null,0,0,0,null,-9.7016881716887726E-3,-0.19513330985465746,-1.0794983126193038,null,0,0,0]
[2912,0,-1.0140706418162682,-2.7518173283059806,null,0,0,0,null,1.8969453158916905E-2,0.16187006108350124,-0.59729155589689986,null,0,0,0]
[2913,0,-1.7719937021911101,-4.4068321251509985,null,0,0,0,null,-1.4450016569543778E-2,-0.36271405405780388,-2.4497445428269238,null,0,0,0]
[2914,0,-0.44964025992189088,-1.1228496272048434,null,0,0,0,null,-3.1857689246305367E-2,-0.49639456638830509,-1.8964578658505415,null,0,0,0]
[2915,0,-0.33632989251854817,-0.79481389049337303,null,0,0,0,null,-1.5223463007021223E-2,-0.268102134917518,-1.3517816543110202,null,0,0,0]
[2916,0,-0.31351218307960516,-0.56410648628905624,null,0,0,0,null,-1.6166831360492837E-2,-0.24094908920540276,-0.85805081068324585,null,0,0,0]
[2917,0,-2.0618345405291532,-5.8381694702025193,null,0,0,0,null,1.2779789578006216E-2,-4.3114532076951942E-3,-1.7950720553045867,null,0,0,0]
[2918,0,-1.0036906477449956,-3.2555323211310681,null,0,0,0,null,-9.4942147367120075E-2,-1.381052527662795,-4.219742839053306,null,0,0,0]
[2919,0,-1.0642785146127827,-2.9055718448517802,null,0,0,0,null,-6.8931202732290444E-3,-0.19312740939450304,-1.4510211853440451,null,0,0,0]
[2920,0,1.9031494023177038,5.1374169948622148,null,0,0,0,null,-2.1820211314862378E-3,0.10955202797612856,1.7531534931465103,null,0,0,0]
[2921,0,9.2676798567565125E-2,0.25748609018012941,null,0,0,0,null,6.30461304653233E-2,0.80125012766999226,1.3126530532912148,null,0,0,0]
[2922,0,0.13982671351449244,0.96515748241179244,null,0,0,0,null,2.5319966578080937E-2,0.30459725064282883,0.19821340147733646,null,0,0,0]
[2923,0,-1.4146803841952278,-3.8524468906132898,null,0,0,0,null,6.7178394766066272E-3,-6.0624101282320222E-2,-1.6856945425620471,null,0,0,0]
[2924,0,-0.32933957370102873,-0.52069697015197747,null,0,0,0,null,-3.9897441035629526E-2,-0.54117545609542228,-1.1448132870571643,null,0,0,0]
[2925,0,-1.1955111017319815,-3.847993369064854,null,0,0,0,null,4.9280969225811763E-3,-4.6459240825778576E-2,-1.3629475337176153,null,0,0,0]
[2926,0,-1.4626947444430425,-3.9722533072313744,null,0,0,0,null,-4.8294288785568483E-2,-0.70556673586072161,-2.178636622617534,null,0,0,0]
[2927,0,1.1170066146781263,3.184793479860069,null,0,0,0,null,-2.2755276407665347E-2,-0.15958884122574274,1.2126899448836557,null,0,0,0]
[2928,0,0.53112806483730679,1.509593621609798,null,0,0,0,null,3.3601177614021711E-2,0.44842055776860068,0.89660031515060468,null,0,0,0]
[2929,0,-0.35752297681692291,-1.3999217181196,null,0,0,0,null,-5.7262467979710893E-2,-0.72487038287533601,-1.3225875642936662,null,0,0,0]
[2930,0,-1.7369609646822137,-4.3721516304421675,null,0,0,0,null,-2.9284143774775714E-2,-0.4063340322597751,-0.8420437696133376,null,0,0,0]
[2931,0,1.5527711576601833,4.4838414508045243,null,0,0,0,null,8.61260205537763E-2,1.1667239075693587,2.70486371029522,null,0,0,0]
[2932,0,1.570997921719445,4.0319764002603984,null,0,0,0,null,3.7705938213327384E-3,0.2098357272714011,2.0790554781754107,null,0,0,0]
[2933,0,-0.9048909314258563,-2.660821235362564,null,0,0,0,null,-5.8518560277734085E-3,-0.1452041629202131,-1.080922018240104,null,0,0,0]
[2934,0,1.2085575901746943,3.3852296850193162,null,0,0,0,null,2.1676406715115091E-2,0.35784006889222109,1.5424762508103778,null,0,0,0]
[2935,0,-1.4555353419758195,-3.9635146360884175,null,0,0,0,null,-4.9348991864240417E-2,-0.71877329220853337,-2.2038275486849925,null,0,0,0]
[2936,0,1.6554033611879022,4.6700428631052349,null,0,0,0,null,0.10496715737290646,1.4266060641651266,3.5341468898537025,null,0,0,0]
[2937,0,1.2220646850833909,3.1348535769406078,null,0,0,0,null,-3.854868414409901E-2,-0.4051365752852189,0.26025914323744292,null,0,0,0]
[2938,0,1.0337037246995242,2.8161251831843983,null,0,0,0,null,4.0067049899122992E-2,0.57389255295249131,1.6622791641761978,null,0,0,0]
[2939,0,-1.1106260024872736,-2.9573316477062108,null,0,0,0,null,-6.3638998695987714E-2,-0.83924255821069438,-1.7331651738806322,null,0,0,0]
[2940,0,-0.72821721151002383,-1.7183160510639064,null,0,0,0,null,-7.1137960407590239E-2,-0.95731021780070202,-2.187345279637575,null,0,0,0]
[2941,0,-4.0826980588262816E-3,0.35164504188855789,null,0,0,0,null,-4.2881898692235326E-2,-0.51893284035973097,-0.56715937581327669,null,0,0,0]
[2942,0,-0.231274694520509,-0.31282401846789437,null,0,0,0,null,-4.7137891171322846E-2,-0.62145521226830536,-1.1733976529454813,null,0,0,0]
[2943,0,0.941273369049899,2.5310351692922413,null,0,0,0,null,3.9568301430724087E-3,0.10366514918756456,0.82352676570752736,null,0,0,0]
[2944,0,0.16297834725626673,0.67324881434909911,null,0,0,0,null,-3.2823961653776393E-2,-0.58187571059048238,-2.6636893718826324,null,0,0,0]
[2945,0,1.7295835102690253,4.8317372756667387,null,0,0,0,null,8.7647819133262431E-2,1.2059373369922177,2.9999217380825249,null,0,0,0]
[2946,0,-1.0269475731485509,-3.4482644704532577,null,0,0,0,null,-3.8234015511990779E-2,-0.54372641795734122,-1.7173841194819579,null,0,0,0]
[2947,0,-1.0451176798181003,-2.8777801762294621,null,0,0,0,null,-1.6449925908942761E-3,-9.2111276139655279E-2,-0.93122896099005448,null,0,0,0]
[2948,0,-0.43404129138823189,-1.0643180195610258,null,0,0,0,null,-2.8030151380972711E-2,-0.41248954865400356,-1.2445569094871243,null,0,0,0]
[2949,0,-1.623344571336369,-4.2676996685447888,null,0,0,0,null,-8.4987470255161665E-2,-1.142181155798532,-2.5353945885445754,null,0,0,0]
[2950,0,1.3690732094941522,3.510416922933655,null,0,0,0,null,5.8883199221606329E-3,0.15849289191096158,1.108619930075325,null,0,0,0]
[2951,0,-1.7024342445223957,-5.1058307691175431,null,0,0,0,null,1.3458719709578133E-2,4.0959159196553629E-2,-1.4457140687746104,null,0,0,0]
[2952,0,1.5406085495296939,3.9335006624980089,null,0,0,0,null,8.8282363144173809E-5,5.3280951496882153E-2,0.6948322203470052,null,0,0,0]
[2953,0,1.1728146180911225,3.220145742257817,null,0,0,0,null,5.3485163718145087E-2,0.75388869991148655,2.027422724827622,null,0,0,0]
[2954,0,0.31614161070579211,0.963669832932319,null,0,0,0,null,5.3783911848146945E-2,0.67845243974452119,1.108665734360573,null,0,0,0]
[2955,0,1.4814901070967117,4.0471634508467691,null,0,0,0,null,1.0426345287134211E-2,0.19051543307788144,1.0259574753233136,null,0,0,0]
[2956,0,-0.21672969414347973,-0.64402165655329735,null,0,0,0,null,-8.7173935367414971E-3,-7.7497283148645693E-2,0.23447160763875582,null,0,0,0]
[2957,0,-1.7325352152753768,-4.2831477862610194,null,0,0,0,null,-5.8994841480204341E-2,-0.75506278343807842,-1.0866272152914715,null,0,0,0]
[2958,0,-1.0676546975807142,-3.3352163251596214,null,0,0,0,null,-3.2818033071887839E-2,-0.48522688396784086,-1.6599581692955616,null,0,0,0]
[2959,0,0.13888942862728981,0.39849167598247004,null,0,0,0,null,5.4043254699585701E-2,0.68236340915791793,1.0832106357049343,null,0,0,0]
[2960,0,1.1286210713017644,2.8906878893646861,null,0,0,0,null,-2.9104312302177675E-2,-0.29833983202109449,0.29721114302480056,null,0,0,0]
[2961,0,-1.0748423202414306,-2.96072730721438,null,0,0,0,null,-1.2508092938587822E-2,-0.27292142311872797,-1.6788997523652907,null,0,0,0]
[2962,0,2.0271086741548405,5.2777716911987298,null,0,0,0,null,3.8551827991914651E-2,0.72692787734272135,3.7460930925105567,null,0,0,0]
[2963,0,-0.82705624561599689,-2.2310026491034587,null,0,0,0,null,2.6687551417206804E-3,-4.1976015721847939E-3,-0.43173376072490643,null,0,0,0]
[2964,0,-0.21634324513078174,-0.60873731600736214,null,0,0,0,null,1.4640362904162828E-2,0.12101047589078644,-0.5145477139988871,null,0,0,0]
[2965,0,1.4142809890150603,3.8502202872455382,null,0,0,0,null,-2.832310071835974E-2,-0.25690891566501611,0.7729478369265671,null,0,0,0]
[2966,0,-0.46720977116687207,-1.149810158700675,null,0,0,0,null,-3.1220071549354314E-2,-0.45325609970343883,-1.3118883059393958,null,0,0,0]
[2967,0,-1.386898132188864,-4.3080895212905528,null,0,0,0,null,-1.6504890669258997E-3,-0.14269567625293986,-1.6653512848229439,null,0,0,0]
[2968,0,1.22542383475329,3.4434880359697853,null,0,0,0,null,-3.4955244381876756E-2,-0.27314032817000861,1.4578658463517531,null,0,0,0]
[2969,0,-2.9180616991851074,-7.5847748283624421,null,0,0,0,null,-7.8461365191990234E-2,-1.1787624468242948,-3.7641442191634522,null,0,0,0]
[2970,0,-0.73927734689405589,-2.107961987616036,null,0,0,0,null,-5.2542093189566853E-2,-0.69712756997149428,-1.4748023584520962,null,0,0,0]
[2971,0,-0.58816915498041999,-1.5486578413425378,null,0,0,0,null,-1.1404725749907073E-2,-0.21706628435149924,-1.1236538604300985,null,0,0,0]
[2972,0,-1.7719937021911101,-4.4068321251509985,null,0,0,0,null,-1.4450016569543778E-2,-0.36271405405780388,-2.4497445428269238,null,0,0,0]
[2973,0,-0.86524748071037716,-2.1202131238654549,null,0,0,0,null,-3.992592352055243E-2,-0.61902203715040283,-2.2623912487922317,null,0,0,0]
[2974,0,1.9663763778902759,5.6260759781167069,null,0,0,0,null,0.12627906360705088,1.7069022891243486,4.1142807864980933,null,0,0,0]
[2975,0,-1.8071465884935642,-4.4211713111429489,null,0,0,0,null,-1.310016723716916E-2,-0.31826716068389033,-2.0770872460062781,null,0,0,0]
[2976,0,-1.284772732360403,-4.2009508869963827,null,0,0,0,null,1.9490862539485647E-3,-0.1093858024812298,-1.7679662613171641,null,0,0,0]
[2977,0,0.52397958224054852,1.468071833983071,null,0,0,0,null,3.3652026906946221E-2,0.44793519332722825,0.91110946863891518,null,0,0,0]
[2978,0,-1.9398660788208271,-5.5005969702711521,null,0,0,0,null,2.7863963061419326E-2,0.2199987585454628,-1.0780617286343694,null,0,0,0]
[2979,0,-0.2577277135432578,-0.88592069102745885,null,0,0,0,null,2.454495931798141E-2,0.2905687423017389,0.17898970852993443,null,0,0,0]
[2980,0,1.086602154977103,2.9077749395844874,null,0,0,0,null,2.3979294674312372E-2,0.35210552204081252,1.1377888394793445,null,0,0,0]
[2981,0,-0.25562224941991918,-0.56998266589598645,null,0,0,0,null,-1.5661686879215837E-2,-0.23456611437998162,-0.86237168772596129,null,0,0,0]
[2982,0,-1.3848785040536313E-3,-0.25054644287539851,null,0,0,0,null,-8.6187676653347006E-2,-0.9693445914129607,-0.25660753222305721,null,0,0,0]
[2983,0,-0.88305506677795897,-2.8762573769176742,null,0,0,0,null,-3.3584923381040938E-2,-0.46962078947020836,-1.4157554005269266,null,0,0,0]
[2984,0,-0.90052072569312802,-2.5648852248252441,null,0,0,0,null,-4.4065448304718188E-2,-0.60940738918933768,-1.6228237130106244,null,0,0,0]
[2985,0,0.29736154682664712,1.2040055178127731,null,0,0,0,null,-2.3306268345135321E-2,-0.21998131879848279,0.48556765195887786,null,0,0,0]
[2986,0,2.1163086124454296,5.7721550086807039,null,0,0,0,null,2.3711645114463976E-2,0.40896249322589667,1.9549023623701323,null,0,0,0]
[2987,0,1.4730921308374945,3.9913670276193809,null,0,0,0,null,-2.6705715507898447E-2,-0.22174153357058821,0.98146157427880465,null,0,0,0]
[2988,0,1.8349382599274595,5.2413834986957371,null,0,0,0,null,8.2581902084774755E-2,1.161677398386898,3.1323265403723197,null,0,0,0]
[2989,0,1.4601072767772638,3.9411545002438286,null,0,0,0,null,0.10911900510136133,1.4785097301064989,3.4752716762072233,null,0,0,0]
[2990,0,0.43477799965758457,0.86543111666887851,null,0,0,0,null,5.2972986278754373E-2,0.73060724269248478,1.7183327922078206,null,0,0,0]
[2991,0,1.18064314617132,3.3030612003055939,null,0,0,0,null,2.9652791569960927E-2,0.44200712678398757,1.4382765318865531,null,0,0,0]
[2992,0,0.67570291856161935,2.5307409455738745,null,0,0,0,null,2.0759318270348673E-2,0.3176602542969067,1.182104142172022,null,0,0,0]
[2993,0,1.5402113912604474,4.0633678599415868,null,0,0,0,null,1.5824245423250772E-2,0.27773414217997472,1.3428958123771408,null,0,0,0]
[2994,0,-1.0120134736196542,-2.5176905508114289,null,0,0,0,null,-1.4633869240370075E-2,-0.23897878647097423,-0.92969848496395935,null,0,0,0]
[2995,0,8.6430091362637546E-2,0.81694066264225695,null,0,0,0,null,2.9787315429845706E-2,0.3481405061130472,0.11970668689203739,null,0,0,0]
[2996,0,-0.39813496489575662,-1.6212544098295767,null,0,0,0,null,-4.0309554186008144E-2,-0.53835207634294424,-1.3683891460961386,null,0,0,0]
[2997,0,1.881149486516988,4.8778414790739406,null,0,0,0,null,-1.0531748687608172E-2,9.0161983612618318E-2,2.5590689150369834,null,0,0,0]
[2998,0,-0.7241897068427825,-2.5075812814714955,null,0,0,0,null,-3.6557708551893539E-2,-0.50244944966221916,-1.4205998364520238,null,0,0,0]
[2999,0,1.8093024161378271,4.613551296433485,null,0,0,0,null,5.8953219389868479E-2,0.90965431902399085,3.2343035139341736,null,0,0,0]
[3000,0,-0.70322119071113043,-2.0974912049580596,null,0,0,0,null,7.5358687791274971E-3,2.1302945778787944E-2,-0.85785227080623372,null,0,0,0]
[3001,0,0.65616427269412814,2.1884443766967814,null,0,0,0,null,-1.893222644043999E-2,-0.17034960418766332,0.60834644962097806,null,0,0,0]
[3002,0,0.88431589833810909,2.0948551716069268,null,0,0,0,null,3.5652801330140448E-2,0.53681157322103989,1.78087571113143,null,0,0,0]
[3003,0,0.30840497424705066,0.7782461924073214,null,0,0,0,null,2.1096702317331562E-2,0.31276248987002148,1.0725504417699812,null,0,0,0]
[3004,0,-0.89498448983931667,-2.1832633452000736,null,0,0,0,null,-5.1001279084014639E-2,-0.69823445507227921,-1.7401570740483112,null,0,0,0]
[3005,0,-6.1136618512973653E-2,-0.12932707727070375,null,0,0,0,null,6.8725643642574649E-2,0.83674081872043826,0.97068303165173342,null,0,0,0]
[3006,0,0.16593008017069588,0.5581738395730208,null,0,0,0,null,-2.2406727137018436E-2,-0.50110535473186613,-3.0798533900287186,null,0,0,0]
[3007,0,-0.3398045679562201,-0.40036912663104157,null,0,0,0,null,-1.8680490962378826E-4,-4.832056219594142E-2,-0.44665999405835827,null,0,0,0]
[3008,0,4.9476118596439848E-2,0.34251062476845984,null,0,0,0,null,-4.1506760999224242E-2,-0.59822974860218259,-1.7265907709208295,null,0,0,0]
[3009,0,0.41960734555393353,1.4314708727715844,null,0,0,0,null,-3.5048638995975406E-2,-0.39577939735148632,-1.5728311752176524E-2,null,0,0,0]
[3010,0,0.6452144645538519,2.0112661667418359,null,0,0,0,null,-6.2576602820107324E-2,-0.67415110362102582,0.1772172752052211,null,0,0,0]
[3011,0,-0.64291968593654747,-1.347992353294736,null,0,0,0,null,-2.1106788151997024E-2,-0.36136353311329278,-1.4830324630710019,null,0,0,0]
[3012,0,0.16617751401822353,0.51577601592995048,null,0,0,0,null,-1.4972318013923598E-2,-0.42260423277775133,-3.1396208021440359,null,0,0,0]
[3013,0,-2.9339853213153892,-7.6255984179556835,null,0,0,0,null,-7.0035030236548834E-2,-1.0714492887114246,-3.579181577728912,null,0,0,0]
[3014,0,1.4714763052633353,4.0575759779637668,null,0,0,0,null,7.4877221812709588E-2,1.0288238358946191,2.5106130632484311,null,0,0,0]
[3015,0,-0.75896107885849595,-2.3499984255056408,null,0,0,0,null,-5.5703219769852638E-2,-0.72457476083305483,-1.4906044938697778,null,0,0,0]
[3016,0,-2.7238480616747509,-7.0352555451700249,null,0,0,0,null,-8.4590922031791083E-2,-1.1822212650912651,-3.0013908335513659,null,0,0,0]
[3017,0,-2.7643772603782253,-7.3137263291325469,null,0,0,0,null,-7.7375627658270107E-2,-1.1709994097145564,-3.804939228116262,null,0,0,0]
[3018,0,0.29591448159881473,1.0696403768884775,null,0,0,0,null,-6.9347058699018929E-2,-0.83810973033213754,-0.93460699800262592,null,0,0,0]
[3019,0,0.57328412681510232,1.6551885346963973,null,0,0,0,null,-3.2481223943767075E-3,-3.9334912880341105E-2,2.1271377393815783E-2,null,0,0,0]
[3020,0,0.39610203479220402,0.78262199286778922,null,0,0,0,null,5.2342863337734739E-2,0.7254444827641191,1.7423782391580935,null,0,0,0]
[3021,0,-0.36578362943260434,-0.74282006864438876,null,0,0,0,null,-5.1484984804466196E-3,-0.12117084228157909,-0.86628385720299772,null,0,0,0]
[3022,0,0.99146572287095291,2.6183449330522199,null,0,0,0,null,-4.3731323761391537E-3,4.0108689047645384E-2,1.1983569765345055,null,0,0,0]
[3023,0,-0.16199585269304406,-0.18008529120796449,null,0,0,0,null,-1.3943438358708135E-2,-0.20738761062863068,-0.75339878817068162,null,0,0,0]
[3024,0,-1.656974965033287,-4.2931874158033683,null,0,0,0,null,4.0991786423192934E-2,0.34711797335880601,-1.1421997373841877,null,0,0,0]
[3025,0,-0.21354382545010048,-0.30495344215132353,null,0,0,0,null,-4.4622737866372407E-3,-0.11678597376527068,-0.75620622760306289,null,0,0,0]
[3026,0,1.8709128787069202,4.8534539803364822,null,0,0,0,null,5.285141927225976E-2,0.84990508510003115,3.3349803685025798,null,0,0,0]
[3027,0,-0.6744642169887447,-1.5871711234224277,null,0,0,0,null,9.8612079257231356E-3,3.2665543257207899E-2,-0.98694391086972244,null,0,0,0]
[3028,0,-1.3880400939218962,-4.3101435801414771,null,0,0,0,null,2.4941083870243689E-2,0.19145626935961535,-1.1245661603686932,null,0,0,0]
[3029,0,-1.1747340593159696,-3.0963634847545838,null,0,0,0,null,-5.252451541645263E-2,-0.70103778830733154,-1.5270602568437097,null,0,0,0]
[3030,0,-2.6160373579567531,-6.6699892662077147,null,0,0,0,null,-6.4421939846926596E-2,-0.94936739795110858,-2.8452013119542499,null,0,0,0]
[3031,0,0.65616427269412814,2.1884443766967814,null,0,0,0,null,-1.893222644043999E-2,-0.17034960418766332,0.60834644962097806,null,0,0,0]
[3032,0,-0.63239426843890401,-1.7640074924541187,null,0,0,0,null,-4.0334200205795638E-2,-0.50684838382924136,-0.77697312520737982,null,0,0,0]
[3033,0,6.217152559918759E-3,0.21546133884052687,null,0,0,0,null,-3.4388869086127899E-2,-0.51115890956150456,-1.6457014400533845,null,0,0,0]
[3034,0,1.1312215125026559,3.2465177887789758,null,0,0,0,null,2.9775511449939982E-2,0.41205321768647718,1.1682866320646499,null,0,0,0]
[3035,0,1.2085575901746888,3.3852296850192869,null,0,0,0,null,2.4919985115567384E-2,0.39871446313181969,1.597481955420506,null,0,0,0]
[3036,0,0.42730990493518767,1.4552799729091856,null,0,0,0,null,1.9494186118141046E-2,0.21518896106879948,0.12586470765279956,null,0,0,0]
[3037,0,0.51999090120517399,1.4760781115570207,null,0,0,0,null,1.9173183964545329E-2,0.25228427523678054,0.45381663146518986,null,0,0,0]
[3038,0,1.9031494023177038,5.1374169948622148,null,0,0,0,null,-2.1820211314862378E-3,0.10955202797612856,1.7531534931465103,null,0,0,0]
[3039,0,1.5142662008955359,3.8556554115051549,null,0,0,0,null,4.2495851464219069E-3,0.21861471486686787,2.1225011539101577,null,0,0,0]
[3040,0,-0.82543826154771882,-1.9437182535445536,null,0,0,0,null,-3.9586503445450436E-2,-0.58610486770614811,-1.8628168165417773,null,0,0,0]
[3041,0,3.4978067318374086E-2,0.16172449468763808,null,0,0,0,null,-1.5275280858037944E-3,-3.0255193923308069E-2,-0.24272381966719694,null,0,0,0]
[3042,0,0.25682787053258105,0.88887075530792203,null,0,0,0,null,-4.9330337488956389E-3,-6.2484495986699584E-2,-3.8189868488589128E-3,null,0,0,0]
[3043,0,1.1107254195959468,2.8658976446671511,null,0,0,0,null,1.5424451504996909E-2,0.26960106677607021,1.2075554447944779,null,0,0,0]
[3044,0,-0.87896239593013892,-2.3836243124212926,null,0,0,0,null,3.5493063674642824E-3,-2.2384680916223261E-2,-0.76458447937314489,null,0,0,0]
[3045,0,0.3624987133199829,1.1150036249889017,null,0,0,0,null,5.4330909201050819E-2,0.68949560768069662,1.1787520185976719,null,0,0,0]
[3046,0,-0.69658318915576634,-2.1374545483448384,null,0,0,0,null,1.102269634866849E-2,5.2632019501768809E-2,-0.94022171343627636,null,0,0,0]
[3047,0,0.41055017380824754,1.4304830364564842,null,0,0,0,null,1.6356298388014921E-2,0.18532331900257942,0.19323663515596126,null,0,0,0]
[3048,0,-0.94335400205998299,-3.1750279568012485,null,0,0,0,null,-0.10787146792440171,-1.5139813600506378,-4.1294102658924787,null,0,0,0]
[3049,0,-0.71893673904680688,-1.6440322677619916,null,0,0,0,null,-1.0719302137805982E-2,-0.24104964834263046,-1.5544352533457968,null,0,0,0]
[3050,0,-1.765226164057669,-4.3930919413927842,null,0,0,0,null,-1.702503619071746E-2,-0.40350872307574354,-2.5980966856541965,null,0,0,0]
[3051,0,-1.9104177706580268,-5.0050609151938916,null,0,0,0,null,4.6094081505032702E-3,-8.7262554126753461E-2,-1.7710082217997369,null,0,0,0]
[3052,0,6.0739612096695053E-2,0.48225066119588156,null,0,0,0,null,-7.4033432097837595E-2,-0.82800573807895583,-0.21925724529563376,null,0,0,0]
[3053,0,-0.21671460140163618,1.3575293300738849E-2,null,0,0,0,null,1.7806351210781488E-2,0.16717724006704429,-0.46763575119769302,null,0,0,0]
[3054,0,0.64323906960602839,1.5374890224896736,null,0,0,0,null,5.496360023134815E-2,0.75416645113389591,1.8811090722143162,null,0,0,0]
[3055,0,6.2638481749745553E-2,0.39663973420034743,null,0,0,0,null,-3.0071708701841032E-2,-0.57281495233221991,-2.9144634973105896,null,0,0,0]
[3056,0,1.5378086761449503,4.474109597265306,null,0,0,0,null,8.8473488923913185E-2,1.2238098786635692,3.1107104117746456,null,0,0,0]
[3057,0,1.6734270621882261,4.3893987364960267,null,0,0,0,null,9.6380995097988892E-2,1.3604393740619043,3.7076303405208493,null,0,0,0]
[3058,0,1.4364688885556898,3.7339400088772963,null,0,0,0,null,1.1175264108593638E-2,0.19242515399552668,0.90083853807193004,null,0,0,0]
[3059,0,-2.9276405640582324,-7.5101455123335832,null,0,0,0,null,-7.1060869196831106E-2,-1.0499533253657638,-3.184431791401741,null,0,0,0]
[3060,0,0.8868726823362213,2.7691608749096921,null,0,0,0,null,1.9754177702135053E-2,0.30490577318713896,1.1108364518754024,null,0,0,0]
[3061,0,-0.48541262842972355,-1.0024101807712795,null,0,0,0,null,-1.2792078562814424E-2,-0.21977875581596709,-1.0680232168314943,null,0,0,0]
[3062,0,1.9372131587899948,5.2036065500915356,null,0,0,0,null,-1.9248072797151166E-2,-9.7517830507949835E-2,1.5169368387115427,null,0,0,0]
[3063,0,-0.22045975420298783,-8.7895787057786945E-2,null,0,0,0,null,-3.0928169155911633E-2,-0.43292818703094327,-1.0030599442158163,null,0,0,0]
[3064,0,1.6079548262689367,4.685819586583988,null,0,0,0,null,6.9161378401814605E-2,1.0199068326710932,3.2236365900280908,null,0,0,0]
[3065,0,1.525605041074461,4.173476287891746,null,0,0,0,null,7.9351340137104723E-2,1.1414892574339475,3.4656714253437784,null,0,0,0]
[3066,0,-0.54186369803884193,-1.13639049014404,null,0,0,0,null,-1.2741331451380291E-2,-0.23616449018083857,-1.258547698021659,null,0,0,0]
[3067,0,0.53704174935862103,1.4500679615914414,null,0,0,0,null,3.0098402092743358E-2,0.37056346971181303,0.439852968456933,null,0,0,0]
[3068,0,0.64416374703910695,1.6642362759516327,null,0,0,0,null,8.6031669634082791E-2,1.1134345897284974,2.0589519161449061,null,0,0,0]
[3069,0,-0.48198811592380481,-0.78585412915323827,null,0,0,0,null,-5.077674346709949E-2,-0.69153489317459571,-1.502974487951702,null,0,0,0]
[3070,0,-0.1284217338803719,-0.83689816221664659,null,0,0,0,null,2.0386677218848775E-2,0.27722540092813414,0.55233094990665632,null,0,0,0]
[3071,0,-1.7086659163437652,-5.1445413254978121,null,0,0,0,null,-2.1102383611426204E-2,-0.40478375392928501,-2.2346697356373224,null,0,0,0]
[3072,0,0.9073051014595348,2.5789966952095709,null,0,0,0,null,3.5490611212953584E-2,0.50651231492074478,1.4506535620204994,null,0,0,0]
[3073,0,-0.90303146385584665,-2.5559429337954569,null,0,0,0,null,0.1035993094257555,1.3644171350916376,2.7198351426844276,null,0,0,0]
[3074,0,-0.61207182997294696,-1.4749038564685688,null,0,0,0,null,-1.9365422753626318E-2,-0.22511749997909647,-0.11577071573749709,null,0,0,0]
[3075,0,-0.61330623224048397,-1.7104097712184376,null,0,0,0,null,-5.0349829804221653E-2,-0.62834589373068317,-0.91759667081409135,null,0,0,0]
[3076,0,0.65143189193119544,2.0528011910102579,null,0,0,0,null,-8.1761582572532063E-2,-0.91583913611137269,-0.2034918820179846,null,0,0,0]
[3077,0,-0.66405711626258013,-2.0248185195701591,null,0,0,0,null,2.0532213474737774E-2,0.20926957669049354,-0.30517182046047309,null,0,0,0]
[3078,0,0.85671378203326098,2.4546623569418951,null,0,0,0,null,-2.7740738935548279E-2,-0.42401103311893801,-1.4473304671303375,null,0,0,0]
[3079,0,1.4927063144413732,3.8185352982860494,null,0,0,0,null,1.6071063883041461E-3,6.8528815751142252E-2,0.67732182007700981,null,0,0,0]
[3080,0,1.1426755839158287,3.2955566432889971,null,0,0,0,null,-3.2717675507823687E-2,-0.27652586533482187,1.1372054836579117,null,0,0,0]
[3081,0,-1.386898132188866,-4.3080895212905528,null,0,0,0,null,1.0849640864459388E-2,1.4395030322573802E-2,-1.4267797778233107,null,0,0,0]
[3082,0,0.47954779759932714,1.1514644718700293,null,0,0,0,null,2.3868946293451529E-2,0.34991504758618885,1.1490782981610064,null,0,0,0]
[3083,0,0.95757926609001331,2.7797755190930693,null,0,0,0,null,-4.4359643289127802E-2,-0.42819579380595951,0.83739619326159664,null,0,0,0]
[3084,0,-1.9706206107282525,-5.1214071820302047,null,0,0,0,null,-3.2627817018974554E-2,-0.49338020202250754,-1.4894765937848351,null,0,0,0]
[3085,0,1.3979561846973594,3.6317082361303692,null,0,0,0,null,2.3480004268826859E-2,0.39604998843669548,1.6454708690534499,null,0,0,0]
[3086,0,-1.5874182582884495,-4.1263262151203159,null,0,0,0,null,-4.3119450524623744E-2,-0.67649626912105398,-2.6600095452097703,null,0,0,0]
[3087,0,1.020804568229174,2.9501791575680616,null,0,0,0,null,3.6662465729676401E-2,0.51608998137946493,1.3926733615674638,null,0,0,0]
[3088,0,0.47464805786171926,1.1377109557845033,null,0,0,0,null,2.0618416849853133E-2,0.30218591929513694,1.0174569298785427,null,0,0,0]
[3089,0,0.1926053303292283,0.20225494571487071,null,0,0,0,null,-9.4889586515727611E-2,-1.0665639056956342,-0.28321402854681582,null,0,0,0]
[3090,0,-1.4550314147335339,-3.5020738690435684,null,0,0,0,null,-8.0923715908991761E-3,-0.16091097279476163,-0.64799716204527436,null,0,0,0]
[3091,0,-4.1309022511159125E-3,0.41264430390400958,null,0,0,0,null,-2.8036770508825328E-2,-0.31743908084733541,-9.463486016490788E-2,null,0,0,0]
[3092,0,-0.31426573670447944,-0.81024932716324105,null,0,0,0,null,-8.6072663125842715E-3,-0.16777886522370772,-1.0348257556676654,null,0,0,0]
[3093,0,4.947611859644712E-2,0.34251062476848165,null,0,0,0,null,-4.5556244226895561E-2,-0.65263987722982253,-1.8449805283999048,null,0,0,0]
[3094,0,-0.15243132326101658,-0.70829239418007639,null,0,0,0,null,6.2576040078865441E-2,0.83487855411642253,1.6742429831009396,null,0,0,0]
[3095,0,0.38536659456538291,1.2432227763307528,null,0,0,0,null,-2.5646258157132139E-2,-0.45199496136851391,-2.0351029873350344,null,0,0,0]
[3096,0,0.20399889060263376,1.0990685898425363,null,0,0,0,null,2.6510725992415756E-2,0.32517682147154936,0.29892173850949982,null,0,0,0]
[3097,0,1.2171453543736661,3.0922002151793495,null,0,0,0,null,-4.2567812744353603E-2,-0.46394177932740788,7.4713604859553015E-2,null,0,0,0]
[3098,0,-1.2467016033613618,-3.1244615913043088,null,0,0,0,null,-3.4314236501886683E-2,-0.59686685692116315,-2.8298845923478946,null,0,0,0]
[3099,0,-1.3730447302584052,-4.3868895740325753,null,0,0,0,null,-7.5429372513499002E-2,-1.079547485406537,-3.2386603095728024,null,0,0,0]
[3100,0,-0.73956815503582407,-2.0566471267564195,null,0,0,0,null,1.9194039210169933E-2,0.20113726313133337,-0.14622060582210542,null,0,0,0]
[3101,0,-0.19516316291206748,-0.16779967011594271,null,0,0,0,null,-3.7296437287299963E-2,-0.49960043787852737,-0.99822646755951427,null,0,0,0]
[3102,0,1.1265760245367218,3.0892190072503509,null,0,0,0,null,6.6688156846217341E-3,0.14386050154326857,0.94051580149186698,null,0,0,0]
[3103,0,0.59889738253083846,1.4227631931210416,null,0,0,0,null,1.3459899847661119E-2,0.20554925626337445,0.74344124537023526,null,0,0,0]
[3104,0,0.29201511607528846,0.33718530905635996,null,0,0,0,null,-9.4958713014788768E-2,-1.0599571979401143,-0.20189452070357219,null,0,0,0]
[3105,0,1.6339388115465572,4.6042144189769827,null,0,0,0,null,-1.3798091056277372E-2,1.6959469780395919E-2,2.1759807889373004,null,0,0,0]
[3106,0,1.8536208479197085,4.7234612843199866,null,0,0,0,null,8.7681816233743173E-2,1.2565843059563258,3.5834056674626154,null,0,0,0]
[3107,0,-0.10181473408170859,-0.34100025661536348,null,0,0,0,null,4.0631943377215519E-2,0.49055702960090003,0.48964768533615644,null,0,0,0]
[3108,0,0.66142718025234903,1.7439056598352254,null,0,0,0,null,1.573911253502297E-2,0.2548816220488152,1.0913938904756832,null,0,0,0]
[3109,0,1.2323511258488979,3.4399680938115269,null,0,0,0,null,4.9928751417401716E-3,0.12789876344652021,0.97484546623154533,null,0,0,0]
[3110,0,2.1349050938705476,5.7679468757275387,null,0,0,0,null,2.999083190213412E-2,0.46829163476951269,1.8102048217611555,null,0,0,0]
[3111,0,0.34127913258954506,0.94237157481400935,null,0,0,0,null,3.3575595626767721E-2,0.44496638261932364,0.84293407067959558,null,0,0,0]
[3112,0,-0.47342907108404325,-1.6655185588378445,null,0,0,0,null,-5.0119746083226745E-2,-0.61453058540555228,-0.93107872806433811,null,0,0,0]
[3113,0,8.5684216821704462E-2,0.42479714244772915,null,0,0,0,null,-8.7544544414874387E-3,-0.13429297494697584,-0.56246320741615996,null,0,0,0]
[3114,0,0.71518276029433769,1.8599682158453361,null,0,0,0,null,8.9127642763955628E-2,1.1411611801254322,1.9854650906906208,null,0,0,0]
[3115,0,-1.3303672477243671,-3.6053780765833436,null,0,0,0,null,-8.5033312400695713E-2,-1.1007289195681123,-2.0340161894263291,null,0,0,0]
[3116,0,-0.15421001087064359,-0.17358591224555858,null,0,0,0,null,2.7669405789984012E-3,-2.9964493119117832E-2,-0.67549090842619264,null,0,0,0]
[3117,0,-0.70022665051136757,-2.423352441613337,null,0,0,0,null,-3.0968779374661835E-2,-0.3856343569199453,-0.7264012237377756,null,0,0,0]
[3118,0,0.19741035539684526,1.1033582229294334,null,0,0,0,null,2.5319966578080937E-2,0.29237221369773397,5.1512958136197995E-2,null,0,0,0]
[3119,0,2.1932776352436738,5.6933371561990933,null,0,0,0,null,0.10137726487535173,1.4623115879014139,4.3006854444904601,null,0,0,0]
[3120,0,-5.0731190141252228E-2,-0.13087396869484655,null,0,0,0,null,-5.2120657911015028E-2,-0.7458073065967501,-2.1614400942183676,null,0,0,0]
[3121,0,-1.45997620826813,-3.9646616110448014,null,0,0,0,null,-4.1338351312018573E-2,-0.61649062869465165,-2.0196748290001558,null,0,0,0]
[3122,0,0.83608020163540098,2.4691593263937395,null,0,0,0,null,-4.3181302388412404E-2,-0.42181615101777425,0.74538284411306088,null,0,0,0]
[3123,0,0.88234461663893848,2.5981406929441362,null,0,0,0,null,-2.9405119067139138E-2,-0.26018977264071236,0.87000657775744916,null,0,0,0]
[3124,0,1.5010621834832691,4.1629657203335517,null,0,0,0,null,2.8034706477478095E-2,0.44532977208380814,1.7038230703036934,null,0,0,0]
[3125,0,-0.7782120012328142,-2.1981538953422057,null,0,0,0,null,1.579842136839096E-2,0.12808011448824891,-0.58016381316918708,null,0,0,0]
[3126,0,-0.66673809837379483,-1.478793662157259,null,0,0,0,null,-2.8334720357704894E-2,-0.4306807100213309,-1.4968818102374097,null,0,0,0]
[3127,0,1.2663452881139292,3.5527972265589995,null,0,0,0,null,-3.1412031353331489E-2,-0.23083200068462703,1.4983839187525119,null,0,0,0]
[3128,0,0.56747913773910108,1.3666573049359867,null,0,0,0,null,1.3728549783620281E-2,0.22807221509932696,1.016920233692119,null,0,0,0]
[3129,0,1.0467209964394042,2.820480075720043,null,0,0,0,null,-7.45380490947241E-4,2.7721067574418157E-2,0.50235411807702257,null,0,0,0]
[3130,0,1.240539433250393,3.4317782235245029,null,0,0,0,null,2.8536618500920156E-2,0.44926203037829965,1.7276324013227931,null,0,0,0]
[3131,0,1.8286645425416554,4.8854711337254049,null,0,0,0,null,1.2176881496348302E-2,0.3010292266673541,2.181463640681959,null,0,0,0]
[3132,0,-0.77139625499205433,-1.7872425560153133,null,0,0,0,null,-3.0210505575642116E-2,-0.46300858718531979,-1.6455804496758102,null,0,0,0]
[3133,0,0.29009338005681456,0.72560353701015989,null,0,0,0,null,3.0088113887399459E-2,0.40534124922043158,0.99082637345582403,null,0,0,0]
[3134,0,-0.65954192589736882,-1.8452272651794557,null,0,0,0,null,-6.4518871819697204E-2,-0.78503646668145033,-0.93709411731865477,null,0,0,0]
[3135,0,0.23551324279776964,0.67728051219444751,null,0,0,0,null,1.4373729421749317E-3,2.3726315444152532E-2,2.9810879070617375E-2,null,0,0,0]
[3136,0,1.361569176724428,3.7608495179660313,null,0,0,0,null,1.8799782036967541E-2,0.32539590823845627,1.5319863453533871,null,0,0,0]
[3137,0,-0.15674925439142681,-0.20583534820032948,null,0,0,0,null,-1.6846938636749031E-2,-0.25918341320723359,-0.99139943707477507,null,0,0,0]
[3138,0,0.12698797098961404,0.21949273009720491,null,0,0,0,null,1.1502814089419304E-2,0.15838572116641988,0.43185833199206169,null,0,0,0]
[3139,0,0.99272641940422723,2.92507746971686,null,0,0,0,null,-1.859008757427779E-2,-0.11763832796986116,1.1698383398395635,null,0,0,0]
[3140,0,-0.2537931821140646,-0.40501341953338121,null,0,0,0,null,-1.0592708598232718E-2,-0.16995893416759555,-0.73928921029131012,null,0,0,0]
[3141,0,1.8764496125476435,4.8403335409752106,null,0,0,0,null,-2.3934906246050217E-2,-8.6049910835354237E-2,2.1908373423934062,null,0,0,0]
[3142,0,-1.1930848913320116,-2.9956357679751453,null,0,0,0,null,-1.8695774453074819E-2,-0.37845356665612323,-2.2185113961040441,null,0,0,0]
[3143,0,2.1495178566076212,6.1654418705387508,null,0,0,0,null,0.15072943462025359,2.0129897652242135,4.5654023106983406,null,0,0,0]
[3144,0,1.3263255613581968,3.4021849817052208,null,0,0,0,null,1.6162373565054906E-2,0.28641082020170233,1.2776296886899108,null,0,0,0]
[3145,0,1.4871011971458483,4.0928971846548885,null,0,0,0,null,1.3705772086674017E-2,0.23314826931822608,1.1238721817480437,null,0,0,0]
[3146,0,-1.0466018438322608,-2.9448026979794086,null,0,0,0,null,-5.6942518151918758E-3,-0.18620050381060718,-1.5510756943689084,null,0,0,0]
[3147,0,1.8048519317697882,4.712459233433183,null,0,0,0,null,1.3240207911784353E-2,0.34366895014310922,2.4585909683629978,null,0,0,0]
[3148,0,0.1091769293272082,-1.021649545411492E-2,null,0,0,0,null,-7.9108352773395729E-2,-0.87054661460294114,-6.8747632048543894E-3,null,0,0,0]
[3149,0,-0.2701791229352839,-1.2377224610347257,null,0,0,0,null,-4.685416468049635E-2,-0.60324227364418226,-1.227089541012665,null,0,0,0]
[3150,0,-0.21329369697017136,-0.46839414001659313,null,0,0,0,null,-1.5661686879215951E-2,-0.2437143350278502,-0.97215033550037699,null,0,0,0]
[3151,0,1.740353041625669,4.6490004930076463,null,0,0,0,null,1.0212788260595801E-2,0.24885941353712132,1.7954497188126115,null,0,0,0]
[3152,0,-8.6546111500854755E-2,-6.6708842095729776E-2,null,0,0,0,null,-3.1834736571075266E-2,-0.50340562055176541,-1.8960544445377563,null,0,0,0]
[3153,0,-1.443729802639742,-3.9960545944754196,null,0,0,0,null,-4.8244930407587504E-2,-0.7225878406670363,-2.4094750723009017,null,0,0,0]
[3154,0,0.80203514727977743,2.1241042952388889,null,0,0,0,null,8.6698623274310813E-2,1.1081298294915922,1.9033579039951036,null,0,0,0]
[3155,0,-0.42938184284019915,-0.89004434767878415,null,0,0,0,null,-1.4068726274444316E-2,-0.23991979409520992,-1.1482759019213336,null,0,0,0]
[3156,0,0.41891895878542162,1.1075822742843884,null,0,0,0,null,2.8248457218149666E-2,0.39087424008117067,0.93535014624873292,null,0,0,0]
[3157,0,-0.84300911353589802,-2.3067579560719316,null,0,0,0,null,1.4537102195224178E-2,8.815181086630855E-2,-0.93814752421579395,null,0,0,0]
[3158,0,1.8046387847723291,5.1015173033175962,null,0,0,0,null,7.6814203834196917E-2,1.1078596677122314,3.2679524337687291,null,0,0,0]
[3159,0,-0.62161462133624623,-1.924078086065645,null,0,0,0,null,7.9390581020125472E-2,1.0719594023456984,2.3435926700649361,null,0,0,0]
[3160,0,-0.28851955414541408,-0.96215483915267397,null,0,0,0,null,2.5648028602133253E-2,0.28941482373600863,1.2794133333361969E-2,null,0,0,0]
[3161,0,0.85823549377364905,2.0986270165968963,null,0,0,0,null,3.5456026429343014E-2,0.51602112311317339,1.6368493976500904,null,0,0,0]
[3162,0,1.8627252988888357E-2,-0.46082070399912484,null,0,0,0,null,4.2031720103152113E-2,0.58569303839788245,1.4232514181127263,null,0,0,0]
[3163,0,-0.64458556464593308,-2.4372008988323071,null,0,0,0,null,-7.2192988596655655E-2,-0.98025964066045346,-2.3972119188611214,null,0,0,0]
[3164,0,-0.35745299637566313,-0.99392832204785375,null,0,0,0,null,-1.7656987195810131E-2,-0.20201115890810162,-8.8520299618521675E-2,null,0,0,0]
[3165,0,0.81547192146306957,2.1414465317424694,null,0,0,0,null,8.1689524365857955E-2,1.0769730994574565,2.2098513715780026,null,0,0,0]
[3166,0,1.4620390790088986,3.8887658666511054,null,0,0,0,null,1.1890105105995075E-2,0.24088350322086899,1.3496449138902207,null,0,0,0]
[3167,0,8.5684216821704462E-2,0.42479714244772915,null,0,0,0,null,-8.7544544414874387E-3,-0.13429297494697584,-0.56246320741615996,null,0,0,0]
[3168,0,1.2947410522643004,3.6004620192617223,null,0,0,0,null,1.8582301659500273E-2,0.31771781149896472,1.4685565943051588,null,0,0,0]
[3169,0,-0.70322119071113043,-2.0974912049580596,null,0,0,0,null,7.5358687791274971E-3,2.1302945778787944E-2,-0.85785227080623372,null,0,0,0]
[3170,0,-1.0357114367667928,-2.8866149612756633,null,0,0,0,null,1.7342719721499179E-2,0.14160258578515095,-0.63724915179620079,null,0,0,0]
[3171,0,0.11770314914317896,0.65436102435814969,null,0,0,0,null,-2.246648942094356E-2,-0.27663418121463929,-0.23978859718756576,null,0,0,0]
[3172,0,-2.3360870965578542,-6.2178630805080903,null,0,0,0,null,-7.4058022766944537E-2,-1.0721399090640706,-3.0716927779419056,null,0,0,0]
[3173,0,-1.2712937077741244,-4.183451829331112,null,0,0,0,null,8.7580714675658555E-4,-0.11816439835912479,-1.7389905562434906,null,0,0,0]
[3174,0,-0.97750806331052076,-2.7414184977681799,null,0,0,0,null,6.3780870100549694E-4,-0.12370980965882791,-1.6871043470252081,null,0,0,0]
[3175,0,-0.99975965523614463,-2.7021065033369522,null,0,0,0,null,2.3993783778529973E-3,-4.8764459807101958E-2,-0.93965130750817838,null,0,0,0]
[3176,0,-1.3878481010038832,-3.5434050016240728,null,0,0,0,null,-4.8285358072242955E-2,-0.76371907846841991,-2.9838319387036063,null,0,0,0]
[3177,0,-0.95358320638888106,-2.8185721011716525,null,0,0,0,null,2.0268982597522665E-2,0.15676764880235988,-0.89096665714364276,null,0,0,0]
[3178,0,0.58903125813273249,1.4342466756711874,null,0,0,0,null,2.7868691316674188E-2,0.39111547571334176,1.1081684621447747,null,0,0,0]
[3179,0,-0.90444711821380952,-2.591156511056266,null,0,0,0,null,-3.7408450242280539E-2,-0.51679545687742579,-1.408458866098681,null,0,0,0]
[3180,0,-1.4293772195980836,-3.9389978462180952,null,0,0,0,null,-7.4747039825307587E-2,-1.0006914071588007,-2.22928555554802,null,0,0,0]
[3181,0,0.36315067323272887,0.61748384726465155,null,0,0,0,null,-4.3008319019358513E-3,-2.3624947001739203E-2,0.28316964395228206,null,0,0,0]
[3182,0,-1.4885662047005062,-3.8780492094131405,null,0,0,0,null,6.3648191405067514E-2,0.68397968436137857,-0.10741610805824166,null,0,0,0]
[3183,0,0.48671586918047072,1.7186224097862577,null,0,0,0,null,4.610229246103114E-2,0.55760567466220434,0.7439046348636803,null,0,0,0]
[3184,0,-1.7410135161304279,-4.7193371603784469,null,0,0,0,null,-5.9575435122551826E-2,-0.87144285975484037,-2.7085304486251918,null,0,0,0]
[3185,0,-0.11721637788559019,-0.13906670154587483,null,0,0,0,null,9.7648732841747118E-3,7.5914580571818074E-2,-0.32555487193834415,null,0,0,0]
[3186,0,2.8600599123361461E-2,0.65566266637601078,null,0,0,0,null,2.3867881011114946E-2,0.23532881852285845,-0.45921715391859835,null,0,0,0]
[3187,0,-0.62082388633350272,-2.1038701116176819,null,0,0,0,null,-6.3061187068142482E-2,-0.83966127813155522,-1.9415894360574966,null,0,0,0]
[3188,0,1.9087313430128325,4.9139533499142782,null,0,0,0,null,-1.2430020505482958E-2,6.3891562935039475E-2,2.4750048270538318,null,0,0,0]
[3189,0,-0.15496397151587371,-0.16878948467518784,null,0,0,0,null,1.1585393201823991E-4,-4.556114200866887E-2,-0.50359230046729131,null,0,0,0]
[3190,0,0.34516777592474135,0.95088198622135678,null,0,0,0,null,-1.7572252668766681E-2,-0.37026856757787119,-2.1726040390667367,null,0,0,0]
[3191,0,1.8771377547866359,4.8726199675813113,null,0,0,0,null,5.4501769075765823E-2,0.87184216054956865,3.383384211677043,null,0,0,0]
[3192,0,-0.67013017686278908,-1.4630124973948768,null,0,0,0,null,-9.5639297412290596E-3,-0.23200064747197394,-1.5790854363963298,null,0,0,0]
[3193,0,-0.3816042586336571,-1.50053975670004,null,0,0,0,null,-3.0522129802291943E-2,-0.40873806879701713,-1.0516674710737934,null,0,0,0]
[3194,0,0.37768676888877234,1.0358105889033105,null,0,0,0,null,-9.2705158107280004E-3,-0.26535016227338293,-2.0060612504560269,null,0,0,0]
[3195,0,-1.0264136698795336,-2.8708398522857315,null,0,0,0,null,7.6260186497103796E-2,0.99264852266270642,1.82229659636629,null,0,0,0]
[3196,0,1.603564410920675,4.2198856715276412,null,0,0,0,null,8.8138598493278833E-2,1.2323658662716188,3.2454763784040916,null,0,0,0]
[3197,0,-0.89406235985788951,-2.6133854200517961,null,0,0,0,null,-3.6901699680194328E-2,-0.5272229397603978,-1.5766483757563219,null,0,0,0]
[3198,0,-0.24491417721243305,-0.62858886529178559,null,0,0,0,null,-8.8432051633323006E-3,-0.16241567406736795,-0.94824185994142318,null,0,0,0]
[3199,0,0.70824074931351788,1.7975024915072717,null,0,0,0,null,3.6350557290111621E-2,0.52342354770188926,1.6061227466776764,null,0,0,0]
[3200,0,0.30726862782696296,0.9066331738483786,null,0,0,0,null,3.2174358665800241E-2,0.40737488969195601,0.59006535859279396,null,0,0,0]

{"sheet":"rsklibSimData","index":14,"n_rows":1,"n_cols":244,"rows_kept":1,"cut":false,"hidden":true,"merged":[]}
["679804919f0cf2a3ec53f43aafc797ea0|1|7812431|b1d327e2d29b0d916999fa7a442d5388",{"$cut":{"chars":56520,"head":"21663107ba211fe104acd5d254e43166_x0016__x0017_ÐÏ_x0011_à¡±_x001A_á_x0016__x0016__x0016__x0016__x0016__x0016__x0016__x0016__x0016__x0016__x0016__x0016__x0016__x0016__x0016__x0016_>_x0016__x0003__x0016_þÿ\t_x0016__x0006__x0016__x0016__x0016__x0016__x0016__x0016__x0016__x0016__x0016__x0016__x0016_x_x0016__x0016__x0016__x0001__x0016__x0016__x0016__x0016__x0016__x0016__x0016__x0016__x0010__x0016__x0016__x0002__x0016__x0016__x0016__x0001__x0016__x0016__x0016_\u00816_x0016__x0016__x0001__x0016__x0016__x0016__x0016__x0016__x0016__x0016_h_x0016__x0016__x0016_ÿ_x0016__x0016__x0016_d_x0001__x0016__x0016_û_x0001__x0016__x0016_`_x0002__x0016__x0016_÷_x0002__x0016__x0016_\\_x0003__x0016__x0016_ó_x0003__x0016__x0016_X_x0004__x0016__x0016_ï_x0004__x0016__x0016_T_x0005__x0016__x0016_ë_x0005__x0016__x0016_P_x0006__x0016__x0016_ç_x0006__x0016__x0016_~_x0007__x0016__x0016_ã_x0007__x0016__x0016_z_x0008__x0016__x0016_ß_x0008__x0016__x0016_v\t_x0016__x0016_Û\t_x0016__x0016_r_x0017__x0016__x0016_×_x0017__x0016__x0016_n_x000B__x0016__x0016_Ó_x000B__x0016__x0016_j_x000C__x0016__x0016_Ï_x000C__x0016__x0016_f_x000D__x0016__x0016_ý_x000D__x0016__x0016_b_x000E__x0016__x0016_ù_x000E__x0016__x0016_^_x000F__x0016__x0016_õ_x000F__x0016__x0016_Z_x0010__x0016__x0016_ñ_x0010__x0016__x0016_V_x0011__x0016__x0016_í_x0011__x0016__x0016_R_x0012__x0016__x0016_é_x0012__x0016__x0016_\u0080_x0013__x0016__x0016_å_x0013__x0016__x0016_|_x0014__x0016__x0016_á_x0014__x0016__x0016_x_x0015__x0016__x0016__x0001__x0002_Ý_x0015__x0001__x0001_t_x0016__x0001__x0001_Ù_x0016__x0001__x0001_p_x0017__x0001__x0001_Õ_x0017__x0001__x0001_l_x0018__x0001__x0001_Ñ_x0018__x0001__x0001_h_x0019__x0001__x0001_ÿ_x0019__x0001__x0001_d_x001A__x0001__x0001_û_x001A__x0001__x0001_`_x001B__x0001__x0001_÷_x001B__x0001__x0001_\\_x001C__x0001__x0001_ó_x001C__x0001__x0001_X_x001D__x0001__x0001_ï_x001D__x0001__x0001_T_x001E__x0001__x0001_ë_x001E__x0001__x0001_P_x001F__x0001__x0001_ç_x001F__x0001__x0001_~ _x0001__x0001_ã _x0001__x0001_z!_x0001__x0001_ß!_x0001__x0001_v\"_x0001__x0001_Û\"_x0001__x0001_r#_x0001__x0001_×#_x0001__x0001_n$_x0001__x0001_Ó$_x0001__x0001_j%_x0001__x0001_Ï%_x0001__x0001_f&_x0001__x0001_ý&_x0001__x0001_b'_x0001__x0001__x0001_(_x0001__x0001_\u0080(_x0001__x0001__x0001_)_x0001__x0001_\u0080)_x0001__x0001__x0001_*_x0001__x0001_\u0080*_x0001__x0001__x0001_+_x0001__x0001_\u0080+_x0001__x0001__x0001_,_x0001__x0001_\u0080,_x0001__x0001__x0001_-_x0001__x0001_\u0080-_x0001__x0001__x0001_._x0001__x0001_\u0080._x0001__x0001__x0001_/_x0001__x0001_\u0080/_x0001__x0001__x0001_0_x0001__x0001_\u00800_x0001__x0001__x0001_1_x0001__x0001_}1_x0001__x0001__x0001_2_x0001__x0001_\u00802_x0001__x0001__x0001_3_x0001__x0001_\u00803_x0001__x0001__x0001_4_x0001__x0001_\u00804_x0001__x0001__x0001_5_x0001__x0001__x0001__x0002_\u00805_x0001__x0001__x0001_6_x0001__x0001_ýÿÿÿþÿÿÿþÿÿÿ7_x0001__x0001__x0001__x0005__x0001__x0001__x0001__x0006__x0001__x0001__x0001__x0007__x0001__x0001__x0001__x0008__x0001__x0001__x0001_\t_x0001__x0001__x0001__x0002__x0001__x0001__x0001__x000B__x0001__x0001__x0001__x000C__x0001__x0001__x0001__x000D__x0001__x0001__x0001__x000E__x0001__x0001__x0001__x000F__x0001__x0001__x0001__x0010__x0001__x0001__x0001__x0011__x0001__x0001__x0001__x0012__x0001__x0001__x0001__x0013__x0001__x0001__x0001__x0014__x0001__x0001__x0001__x0015__x0001__x0001__x0001__x0016__x0001__x0001__x0001__x0017__x0001__x0001__x0001__x0018__x0001__x0001__x0001__x0019__x0001__x0001__x0001__x001A__x0001__x0001__x0001__x001B__x0001__x0001__x0001__x001C__x0001__x0001__x0001__x001D__x0001__x0001__x0001__x001E__x0001__x0001__x0001__x001F__x0001__x0001__x0001_ _x0001__x0001__x0001_!_x0001__x0001__x0001_\"_x0001__x0001__x0001_#_x0001__x0001__x0001_$_x0001__x0001__x0001_%_x0001__x0001__x0001_&_x0001__x0001__x0001_'_x0001__x0001__x0001_(_x0001__x0001__x0001_)_x0001__x0001__x0001_*_x0001__x0001__x0001_+_x0001__x0001__x0001_,_x0001__x0001__x0001_-_x0001__x0001__x0001_._x0001__x0001__x0001_/_x0001__x0001__x0001_0_x0001__x0001__x0001_1_x0001__x0001__x0001_2_x0001__x0001__x0001_3_x0001__x0001__x0001_4_x0001__x0001__x0001_5_x0001__x0001__x0001_6_x0001__x0001__x0001__x0003__x0001__x0001__x0001_8_x0001__x0001__x0001_9_x0001__x"}},{"$cut":{"chars":53838,"head":"60b3761628f50efd79a8f93c721978d9_x0002__x0006_\u0093l§\u008f5bð@ðwÁ¢¬_x0006_ñ@tßL_x0002_²Âð@\u008d¡PÒ\u008fSñ@À°ª\u0086~Kð@³«_x0008_\tÿÐð@aµ\u0098\u0087Òfñ@í\\\u009bëM_x0018_ò@_x0003_Vù\u0084Ò\u008bñ@¢_x001A_µ\u0095ÕYñ@\u0094ì_x0008__x0008__x000F_Oð@\u009f\u009c\u0097_x0013_\\_x001C_ñ@ú_x000D_I¨¦_x001A_ñ@{µUvê0ñ@Þz²óZ\u007fñ@_x0008_\u008bé3H\u009cð@_x0008_'ªv\u0080ìð@2!¿\u009fS\u0092ñ@aé°n®¿ð@ðX¨ÞÈ\u009cð@Ñæó_x001F_¡ºñ@ÃÿÚ_x001B_\u0089,ñ@á5áàÚÍð@Zhç×hóð@2ðÉbîÇñ@Ù»8Z_x0004_dñ@_x0001_KVÇ*\u0087ñ@¾úÉ¦å6ð@_é_x001E_Rþ_x0005_ñ@èæÃ1«]ò@\u008eüX_x001F_¸Àñ@ÚKÉ_x0003__x0001__x0002_\u0098\u0089ñ@}Ô×óäEñ@¾Ùª&©pð@ _x0008_º<ÿhñ@,\u009e\u0096ÈëÔñ@[,_x0013__x000C_;9ñ@å\u009f6\u0097¯¨ñ@gFü\u0089²ûð@¸|µj\u0096@ñ@\u0092²_x000D_ÏË«ñ@\u0080\u008e*[)Bñ@c%_x0003_¿Z1ñ@\\_x001D__x0014_LLLò@ôÚu\u009fÂññ@ÿ\u009b\u009aZhRñ@øO\u0093\u008c:_x000D_ñ@é_x0002_^_x0018_ôGñ@_x0015_Ñ,}µðð@_x000E__x0007_ù_x0014__x000D_5ð@_x001A__x0012_\u0099\u009d_x0018__x0011_ò@Ã\u009eSn\t_x0013_ñ@H­·À¸_x000B_ò@_x0005_êJ_x0011_Hëð@b=ò(ûIñ@_x000E_97_x001B_K%ñ@$ì7 Ì_x0002_ñ@3ÒüuB_x0002_ñ@C_x001D__x0014_\"º«ñ@*9wuú[ñ@u\u0087\u0092bávñ@[ÿ\u0082õÙ8ñ@èaÖ^µTð@_x0001__x0008_³\u009d:½äQñ@ë_x001D_z_x0004_Ô\u008añ@{gº_x0010_%ùñ@hcÁ\u0098¸òð@JÐAÍkdñ@Ø_x0007_\u008aÞÅ;ñ@ðÂê¶$àñ@øÚU5.Áñ@\u0088ÑH¯\u008d\u009eñ@´¡VØÜþð@\u0084\u0080ðÒxêð@ê6ø_x0004_¢Oñ@­SHl\u008f_x0002_ò@_x0010_\u0095lÊÅ¬ñ@ÿ{eH_x0013_®ñ@4ÒX\u0092XÖð@9:0k\"_x0016_ñ@\u0088Þ*B©§ñ@½_x0005_à\u0098_x0004__x0003_ñ@2ëG°Íùñ@æIýWúñð@³i_x001F__x0006_[yñ@®õþàysñ@_x0002_\u0081¸Â}Îñ@\u007f\u009c\u0083~£_x0005_ò@Ø\u0096Ë©­_x0006_ñ@Ê\u0080:h@_x0016_ñ@¸{y´\"\u0080ñ@üJ]·9Dñ@\u007f_x000C__x000E_Ó¶_x001B_ñ@£áAÁ\u0090ið@\\ëtF_x0001__x0002_Éañ@b·\u008eI\u008e_x0003_ò@\"Å±õÕôð@T\u0081X\u008fO_x001D_ò@ÇUt_x0014_Ê'ò@ä?_x0002_o\u008drñ@d2vj\u0099Úñ@áÿh\u009b\u0091çñ@_x0012_\u0093_x001D_¿_x0018_Vñ@Üµ_x001A_¬\u0085Ãð@õî»O¾_x0018_ñ@çøj\u008c\u007fÁð@Å¾#C\u009bíñ@ç\u009e0CÅ\u007fñ@ª½zæé_x0008_ò@5ß_x0019_S_x0002_Sñ@)b\u0084\u0081w¹ð@¡eQ_x001F_\u009e_x001D_ò@­Lì\u0097ð-ñ@_x001F_`ÄÇ_x0019_âð@~\u009a\u0095To&ñ@\u0082½\u009f++*ñ@³v<wiàñ@µcÑçGùð@\u0093½_x000E_ÂË_x000B_ñ@4Þ´±è\u0087ñ@_x0004_·iõ·üð@¶åº\u008aï_x0003_ñ@\u0082×s[Ê#ò@}È<\\$\u0081ð@\u0099¼U+Ýnñ@Ð¶¡8¬(ò@_x0002__x0007_±W_x0017_-_x0006_ëñ@_x001A_Âe¨û>ò@\u009e_x0012__x0001_\u008ag^ñ@\u009e\u0094\u0088_x0008__x001A_Çð@ÜÇ­µ¯)ñ@ð@l_x001C_\u008cùñ@à%èâ[ôð@ô¿-«_x0010_kñ@1sÌ.Ò½ð@\u0091YÂ±CIñ@_x0010_ý:Çj ò@\u0094ïSõåJñ@ä«r_x0012_¥Oð@bbÿ\u008e·öð@J5_x001A_Þ\u0099_x0004_ò@¶¸ðøÄ9ñ@\u009a|X_x0013_´.ð@\u0093ÎÁBª¡ð@_x0003_ÄóT_x0016_%ñ@\u0099Î\u009c¿\u0089*ñ@Ùá3f¸_x001A_ò@\u009a_x0005_¿¨E³ð@M\u0086rSÚcñ@k¦nÉ\u008fÛñ@*Þé$bºð@_Çÿg\u0096®ñ@n_x001D_\u009d_x000C_Y¥ñ@_x0004_\u008a ÷¸Äñ@_x0015_9Ó \u0082\u0098ñ@_x001F_0kjØ§ñ@ËA\u0083ÉV\u009eñ@\u0095_x001D_Gñ_x0002__x0003_7\u007fñ@:E*\u008db&ò@äÎ\u008e_x0005_s@ñ@{_x000D_@Ð-_x0014_ò@_R\u0080ÿt\u0080ñ@åiíó6Üð@rL_x0013_uîêñ@°\u0090ßË®,ñ@_x001E_R5¤(Ðñ@ü_x0019_ôçë`ð@E\u0081þ½_x001B__x0018_ñ@°2`à«Òñ@hHdÎÛÀñ@ÿAég_x001E__x0002_ñ@þÐ?¦_x0010_Ìð@\u009do_x000C_6ñøñ@ àÓB{-ñ@ø¼å;¶\u0087ñ@%xDï_x001B_êñ@¡_x000F_-/\u0098µð@\u0084øï½É_x0014_ñ@;\u0093®_x0008_å_x0007_ñ@íÊ¯\u0080¦°ð@Ðqð\u0094Pmð@\u0098FÞfÛRð@\u0098¡\u0096úDLñ@×Éë_x0001_B4ñ@èj\u009c|{wñ@ðLûQ°\u009bñ@:o©Ë±Jñ@¦«>CHÐñ@Ã\u008cmtQ|ð@_x0002__x0005_\u0080_x000E_ñ\u007f\u0096Ïð@æ¡B¥³4ò@GwV_x0019_<Jñ@¾#Íð\u0086(ñ@Ñ-Þ_x001A_=\u0083ñ@:hå\u0088{åð@é9Éå7_x001A_ò@¡8IËtfð@u%@_x0004_pÃñ@_x0012_ª±_x0016__x000B_æð@b_x000B_\u0096ô0²ñ@ë6Úp8Kñ@_x001B_Ë¢I/\u009dð@\u0090sÎÎæ\u0088ñ@N¡\u0098DJ_x001C_ò@\u009fÁÝRÙ5ð@\u0082p`\u009fh1ò@_x0005_{\u0083\u0082§_x0012_ò@ÿ+Çåæ\u009eð@\u0085_x001B__x0002___x000C_-ñ@éÏ_x0001_Ñ-\u0086ð@\u0093µ_x000D_e_x0005_«ñ@§Þm{Ôöñ@3þ\u0087¯&)ñ@ý>_x0019_\u0091_x001D_fñ@41é³l\u0080ñ@ªøo\u0087Ozñ@dÕ§\u0094OCñ@\t_x001B__x0017_^äfñ@x_x0002_5R_x0003_Àñ@E^Z_x0017__x0012_óð@\\Bþà_x0001__x0002__x0004_áñ@¡_x0016_ï\u0083\u0093+ñ@LüÌä)2ò@_x0011_Ù_x0005_¼\\Ôñ@µó_x001F_4_x000D__x000B_ñ@R«3@*\u009añ@`?éËB\u0087ñ@\u0083b©ÆÈÝð@eEîM§¯ñ@zèO8b}ñ@_x0002_Ï³m)_x000E_ò@T\u0086ûô=ñð@ë\u008e3 /iñ@KØ¤(_x000D_Pñ@Ø\u008e7¡ækð@%õÜ\u0090\u009c?ñ@GFÌÛ_x0015_²ð@ÔZ´WQõñ@¯ç¾ø\\añ@\u0095$_x001E_,Wªð@´\u008b>\u0086\u0087ïð@_x0017_\u0094¯\u0089Â_x001F_ò@Æå~èt_x000E_ñ@øßÈo¦ªñ@\u00913_x0001_²d_x0004_ò@îE)9Ü<ñ@G_x0016_\u008c_x0017_A­ð@ü_x0016__x0006_,_x0006_Àð@Þ»åï;Úñ@Ò\u0090_x000E_Øº_x0010_ò@(QÇa,ðñ@Ò/_x001D_,\u009dÆð@_x0001__x0002_i5oSà\u0098ñ@6bf[Jôð@Ô\u009fºË'Ìñ@®1\u008aÐöPñ@è'_x000D_éÍ\u0085ñ@àê_x000F_¨ð¶ñ@Y_x0012_d/zßð@^¸_x0017_dB}ñ@z\u0097æÅ¿'ñ@+s\u0097ùc\u008dñ@r8à*\u0094_x0015_ò@-xëÁ_x0007_°ñ@o_x000C_}_x0002_ípñ@_x0012__x0004_¢_x0002_\u0085hñ@¬Ü¦_x000B_Ð ñ@9Ðe%\u009ceñ@ûCTrØ}ð@#W9&\u0082Ññ@E=Ñ_x0012_._x0004_ñ@¨êU¯RVñ@/\u0092_x0017_l}_x001B_ò@ÝMúHO¾ñ@)_x0004_\u0099g_x0014_Íñ@\u009f§ý\u0080è\u0091ñ@wC?ÒÚ\u0089ñ@zEõÂÕ)ò@Ä¹\u0097·_x0006__x0005_ñ@ó:<\u008fÖMñ@·µ\u008fbÆ[ñ@s²Y¨}#ñ@_x0018_\u0088Y\u0083¦¡ñ@_x0007_¢ Í_x0002__x0003_¨ÿñ@\u0088è-þ_x000C_,ñ@`2ÔmOuñ@Oæ\u008fÒPwñ@z}¶u¯:ñ@[_x0004_éj_x0019_çñ@bCÄ@±ðñ@8\u008a?B_x0019_\u0092ñ@ÞØ_x001B_n©_x000B_ñ@\u00859M_x0001_6Nð@_x000D_oÿ_x0001_(\u008bñ@*_x001F_ý6AÆð@µ°/]\u008eúñ@xG°Æä¹ñ@ó«\ttýÄð@Ã5\u0094ñ_x0011_6ñ@×ê_x000B_\u008aÑ:ð@\u008eXâ_x000C_f¹ñ@rä)_x0002_ Eð@\u009elZ*i\u0086ñ@Q' \u0088\u0094Að@âºkV#\u008dñ@@Ê$8Ú¾ð@t\u008awQ5Ëñ@­p¢c\u0082Ðñ@!\u009f_x0001_û_x0003_¯ð@_x0008_z§ïò_x0016_ò@_x0003_\u008a_x000E_òÎ`ð@t\u0095O>#_x0010_ò@\u009e×$ÜX\"ò@zIä®öOñ@\u0097_x000C_\u0096óÌ÷ñ@_x0001__x0002_¿ßD|"}},{"$cut":{"chars":52632,"head":"4fd3c9a1baec92abd52c71e3bf1d462d_x0003_\tÿ¹E_x0005__x0015_üñ@Ç¬:_x0001_Ó\u009eñ@`\u0087¿ýÑ_x000C_ñ@õ1Wg_x0016_÷ð@^×Ôo1Iñ@ò\u008e_x001D__x0005_ç\"ò@Õ\u008fãeB½ñ@lL©&µ ð@>ÏWþvlñ@ô7Ñ«<÷ñ@_x0002_/Ö__x0006_þñ@5_x0001_\\Éb¡ñ@kI)È\u0092Hò@Q`P\u009aU_x0012_ñ@òç_x000C_u\u0093´ñ@p_x0007_á¿­añ@ÉÜKÌ«_x0006_ñ@åÎ\u009cÍÅ_x0014_ñ@H_x0013_\u008e»1ýð@\\¥Ðâ=Ôð@0I\u009cD\u0099Îñ@¤u¦Í\u0096Mñ@í½\u0089_x0008_{jñ@¾\u0085kÕ#^ñ@_x0004_D¥\u009dp_x0012_ò@-\"_x000B__x0010_\u0081~ñ@üÚ7¢C\u008fð@s_x0006_ÿ\u0081Î_x0003_ñ@r2ü{\u009bXñ@\u0094_x000C_¢[Ü_x000F_ò@:ï\u008a_x0005_ëBñ@_x0012_0?R_x0007__x0008_\u0092fñ@ØAN_x0008_Sïñ@ÒïöÅP½ñ@w\u008dÙèÍ\u009fð@Ð_x0008_Âqo_x0003_ñ@çZ%¾_x001F_Ìð@¥Z_x0017_`_x0012__x0001_ò@ZC_x0002_üdèñ@Ø¬\u0087×÷Iñ@_x0010__x0007_¡\u007f½Añ@ÀUÒ¸_x0016__x0006_ñ@v_x000D__x0004_É\u009bÉñ@´i3È_x000B_\u0084ñ@J¨B_x0005_\u0096Oñ@Î×_x0015_a\u0095ýð@\u009b_x0016_[ÇÎªñ@_x0005_&ñúFøñ@Ózû_x0013_x\u0087ñ@ñz_x0008_¯\u008d5ñ@ZZ\u00832}7ò@\u0096C£lò¸ð@_x001A_\u008c6_x0004_ÚÁñ@§_x001F_Ø\u009d@iñ@UNÄH\u0080_x0002_ñ@__x000C__x001B_Q÷_x0006_ð@_x0016_(ã_x0005_¡µñ@À£Õ_x0008_Åºð@+~ûæt\u0093ñ@Ûó%!ü\u0080ð@¨§ÐS|Çð@<cÛ·_x000B__x001A_ñ@ãm,øìÆð@_x0001__x0002_0»Í5¦kñ@¬T±´kÿð@PÕW<_x0003_Úñ@¤W\u0082|\u009f\u008fñ@\u009c¡\u0089J_x0017_6ñ@ú\u009anÁ\u008edñ@d¸ÒÍbtñ@*KÎäµ\u008cñ@\u0082wdø\u0099Õð@\\Ç1¥eûð@_x001D_¼¥+|\u0094ð@0_x0003_\u0093\u0082\u0084\u008eñ@CS§î·ôñ@lz_x0016_¹þ\u0086ð@ò1\u0087ZÌ^ð@-×(\u008a*æñ@£Ò_x0019_:+\u008dñ@_x001A__x0018_±ûºýñ@\u00876\u008eé6Xñ@lçj\u0095\u00959ñ@bÃ_x001D_Íêpñ@ÈâCÄA°ñ@þ{\u0095rÂÏð@YZÒÌ\u0081Æñ@_x0004_W¦Ñüøñ@ò\u009d_x0004_ç£ßñ@|Úf_x0004_ìòï@\u0090Y;:Y®ð@¦|k_x0015_§)ñ@_x0007_Åxo_x000E_Fñ@hÖl_x0004_³lñ@\u0093\u0095åV_x0001__x0004_ô>ñ@û§bð¹\u009eñ@\u0086Z\u008eéy¤ð@ZþU, _ñ@\u0082h¸_x0001_s:ñ@\u007fÇG\u0080jËð@\u0093\u009dõ_x0003_x\u009eð@ø<s3\u009c®ñ@·g._x0017_#6ñ@Qø;¹ Nñ@^ã\u0082%Å\u009dñ@YÊ_x0014_j_x000E_Úð@gÜó_x0019_á¥ñ@_x0006_Vù\u0083ï?ñ@q^ã¨þ\u0084ñ@¼M5o¢7ñ@_x001B_1y)_¹ð@B_x0017__x0008_Ô÷!ò@{v\u0097çSsñ@¤_x001F_\u00825®\u009fñ@{\u009fñ_x0008__x0008_\u0084ð@_x0016_îTqõµñ@ª\u008a¼­Y%ò@]ë_x001E__x001B_ðçð@¦Úðê÷rñ@©¥cÌÍ]ñ@`\u009f¸e_x000E_éð@âl_x0010_o:²ñ@^É´håsñ@f¯X=Â_x0003_ñ@_x0017_iÅÌÊ\u009dð@E|\u0080¥ò_x0002_ñ@_x0001__x0003_÷\u0099¦9.Îñ@H_x000D_x_x0012_Ã­ñ@>Ôê_x000D_\u008b\tñ@*A\u0084/¥6ñ@_x0003__x0015_¼8_x001A_àñ@_x0002_[WÐ\u0085òð@\u0096\\½\u009azºñ@\u0082îo\u009bEÆñ@i_x0019_'>jòñ@d­£í_x0001_Ïñ@;\u0097S_x000D__x000C_ùð@­k³_x0008__x0017_2ñ@Ë_x001C__x0012_;¨.ñ@T© \"_x0007__x0013_ñ@Hìõç\u0083ªñ@p¸\u00811¾_x001E_ð@_x0011_\u0084¹AZ;ñ@DZ_x0016_J\u0094Lñ@¨\u0098Z\u0086Îtñ@\u009e_x0011_âM\u008e\u008eð@·Oâ_x0012_\u0084¢ñ@\u0095\u0089Ü_x001E_'Çð@×\u0094_x0014_?0Kñ@Õ\u008f\u008a\u009f7Öñ@ø\u007fA\u009b±0ò@>¢\u0084\u008b\u0099ñð@\u009a`íæì_x001A_ñ@\u0082\u0082ìgû\u0095ñ@Ì_x0005_\u009e|Îiñ@ÓÁö\u008dU_x0002_ñ@¨öÓ#!èñ@_x000F_Ð_x001B_¡_x0003__x0005__x0004_Zñ@Ð^`ïstñ@~3,¡@pñ@¤ÄRL,Õð@ÖÓÀÞãÕñ@óÈÂ'¹9ñ@ÖeiÂ[mñ@»P]ÅéOò@»+Ùe9\u0095ñ@z\u0098ì\u0081_x0003__x001D_ñ@_x0011_»]_\t_x000E_ò@ä\\\u0086\u0087jËñ@\u0099_x0008_R\u0098ò-ñ@\u009d^=\u009eÝÙñ@x¥\u009b§²Þð@U\u008e\u0098Q7èð@;:]ñý ñ@((4vOìð@)±_x0001_¸{qñ@ñÐÒÊ6\u0088ñ@_x0008__x0017__x0007_pR^ñ@\\\u0098\u009b7\"»ð@ø_x0012_§\u0081V_x000D_ñ@x*_x0002_\u0092¯/ð@áÞÔËÀÓñ@XÎ_x0006_\\¸ªñ@_x000B_åTÙ­_x000D_ò@_x0012_\t\u0082½M_x0005_ò@¨(öÑSÚñ@o\\äO_x0003_$ñ@ªßhL_x001D_Añ@\u009fº%$Ò\u008añ@_x0003__x0004_\u0095¯M²\u009a_x0011_ò@\u0086\u0081ÕÎ_x0016_wñ@\u0096_x0008_|\u0082_x0006_×ñ@1UÅÝ\\ðð@LÇO¼-_x0008_ò@£±¯{¼\u009eð@©ð_x001E_dwÂñ@À_x0019_ª_x000E__x0016_\u0088ñ@\u0092_x0018_\u0081!§èð@Î_x000F__x0012_-öãñ@\u008d£ç°J_x0006_ñ@î_x0018_y_x0016_Z¿ñ@_x0014_×_x0015_\u009an_x0017_ñ@KÏ8_x000D_r\u0081ñ@Å\u008cìª_x000E_Àñ@.,\u0080Å.:ñ@ð_x0001__x001F_«\u008eöñ@I8\u009d\u0092_x0012_×ñ@³_x0007_P°_x0018_8ò@\u0091¿wM%òð@\u0094(P_x001C_\u007f¾ñ@|ÀkhÂQñ@Õ¥¦_x0013_æ+ò@hä»Î_x0013_öñ@\u009485Ä\u009e_x0002_ò@â\u0094s8öÈð@EÃjº\u0089zñ@EÚí\\Ó7ñ@Ý\u0088ùþ÷4ñ@\u0082¸}ð\u0083\u008añ@Þ[_x001A_ýòcð@\u0098\u0095ÁA_x0002__x0003_\u009bññ@\u0085ÄÌrM_x0015_ñ@\u0094,ºä\u0093¬ñ@\u008d×.æhõð@\u008cmv\u0091>­ñ@ð\u009ekÉ'Æñ@Ä°ÒÉõ^ñ@_x0008__x000B_Êk7 ñ@gSî\u007fYññ@¡6_x0017_ýÒ¸ñ@C_x0007_\u008b'+sñ@r´$séCñ@?y_x0007_É!äð@1üæÑ_x000D_àñ@)r_x0015_¯Q\u0092ñ@_x000B_r\u0093OU_x0013_ò@_x0004_EF\u0084°\u0083ñ@+lÊ>ÉÙñ@\u0080O>¹\u008fjñ@ÊZ_x0012__x000E_¬Ùñ@Dû_x0001_é_x0015_\tò@,&yÈ*_x001F_ñ@_x000F__x0003_¬\u008cÔyð@¤çÌ_x001B_Ëyð@¸_x0003_h&\u009d_x0015_ñ@¬ç%_x0007_3iñ@¼\u008fÆ@>¥ñ@ÃÍâÆ7<ñ@(mÚq_x001C_-ò@Y¯­E\u0080¦ñ@¾íÜCaßñ@²õh _x0016_)ò@_x0001__x0005_ k ý´fñ@0\u0093SâM_x0007_ñ@rÀÒQ ãð@/ÊEº\u0084_x0018_ò@B¼_x0010_¸yäñ@ÿ7Û/ÁOñ@!)DÆ%\u0082ð@!_x000B_ìÙNlñ@Ü´$Q£zð@3'2\u0095Püð@\u0097\u009f_x0011_÷Ðhñ@N<i<dúð@á\u0080ñ®s!ñ@Vºgå«Pð@u²²Ú¹Vñ@\u008f_x0012_¬k70ñ@=\u0085\u0091Îè©ð@Wn_x0004_ål[ñ@ó_x0019_\u0090pµYñ@wÝæM\u008c©ñ@ÿÓ=ZûÏñ@QóDÙ_x0017_\u009dñ@M¶yðÑ´ñ@ü_x0003_M<_x0014_7ñ@®¿ÜP\u0086]ñ@\u0090BíhD³ð@_x0015_\u008cÓ>s9ð@_x0002_²±÷-_x0002_ò@X·-ªü§ñ@ý,ÜUý_x0002_ò@_x0003_Áê¸lbñ@ù±2M_x0002__x0005_¥ºñ@°_x0011_]\"¯_x000B_ò@h#åÇ{Iò@§\u0095Ë8_x0003_Xñ@G_x0004__x0014_ÓM×ñ@Ê\u0080¯¸¯\u0081ñ@&\u007f\u0089Ü\"_x0004_ñ@\u008eî¤ºFþð@L_x000D_\u008aîA\u0096ñ@©:þÁh`ñ@V_x000B_\u009b8j_x0012_ò@%Å­Ù¬Ðñ@p_x001B_F_x0017_Ç_x0010_ñ@ª\u008dÖø;óð@Ñ±âwÖ\"ò@¯Ú0^Û8ñ@é\u0082ú_x000D_\u0096\u007fñ@\u0087ôó¸_x0011_Ëñ@.®+ \\_x001C_ñ@\u008d\u007fÐ2ÁWñ@Dt_x0003_«Sâñ@\u0081\u0082_x001F_'_x0018_ìð@A\u0098_x000C_äSXð@%¤!\u009e_x000C_Öñ@ØÂ_x0008_\u009eîoð@ø¦ø<n+ñ@ÍÑwnª#ñ@iú*Uufñ@\u0089¦q¾#fñ@G[*%LPñ@_x00"}},{"$cut":{"chars":52152,"head":"491a1d83699bdc0ba38e3e4ae953fd44_x0006_\tçºó\u008dï_x001F_µ@:Oç_x0015_nÏ´@p_x0011_Æ´æKµ@M½Ë(\u0094@µ@Îñ\\\u009d\u008aZµ@NÀã_x0001_1\u009cµ@Ô\t\u009c_\u009d\\µ@]æëC7^µ@=Ð(]¤_x0007_µ@_x001F_o_x0018_\u0087-ö´@_x000C_\u0086_x001C_²ìvµ@½µ·ü\u0093'µ@_x0018_Ý°ó[9µ@(¾¦R\u008eiµ@.§b³Ì_x001A_µ@\u0085ç1bz_x0005_µ@YR¼_x0007__x0004_yµ@\u00900\u0081\u0092ó+µ@üû*_x0010_¥iµ@_x0002_ÙL}_x0013_\"µ@5\u0092î¯*ò´@\u008arÙ$T@µ@ßv_x000C_RZ\u008aµ@\u008crêèMnµ@×C«\u009aóÅ´@yÑ\u0098_x0008_ª%µ@_x0002_Ìk_x000F_ð\u008bµ@éª&`._x0006_µ@_x001A_ÅD&uvµ@<_x0008__x000F__x0003_å;µ@S\u009d_x001D_hÔ_x001C_µ@+Mw1_x0001__x0004__x0012_4µ@Ð¨_x0004_ec\tµ@_x001C_²&ÌÂ+µ@25ñþ\u0089bµ@Î\u009a_x0014_má!µ@5ÃtÃß(µ@£¢\u007fý\u0081Wµ@¶B_x001D_{ÿKµ@ÞpÁ¯!í´@\u009d\u009b«_x0019_a'µ@$Ä%§$Ä´@â,.\u0081«eµ@ÀºD§éRµ@Tú_x0012_c<;µ@\u009e0)\u0092¿_x0003_µ@Gø\u008b{\u0099qµ@ßW×µ³_x000C_µ@u¶Y»_x0004__x0002_µ@\u0094ØZ.­÷´@\u009fþ_x001F__x0019_\u008dmµ@_x001C_F_x0018_;`_x0016_µ@2Ô_x0010_¯(Cµ@\\\u0094\u0094Ðk^µ@àA|qC\u009fµ@ueO4úÓ´@\u0081ªi¸î\u008fµ@_x0005_¬yäG_x0002_µ@m\u008c_x0010__x001D_y^µ@Ø\u0089£VX\u009bµ@¾p\u0094_x001B_è-µ@º\u0087\u008967 µ@_x0002_)Ï_x0018_¿_x001D_µ@_x0002__x0004_?å3Ø4yµ@_x0001_¬\u009d^º\u007fµ@_x0005_\u0097_x0004_+-Dµ@0_x0010_ío{\tµ@½³b®\u0081lµ@÷_x0004_B\u00983\u0097µ@&º\u0095 RDµ@_x001C_\u0093´_x0016_·_x001E_µ@_x0016_þè\u0082_x0004_9µ@ym\u008a+Ïö´@¦;¼_x001E_\u008dFµ@g\u009e_x0001__x0015_Èä´@f}\u0098\u0087\u0092+µ@¯çºÛ_x000D_\u0093µ@_x000D_TØ\u0098jÃ´@.ø¨Â´Jµ@·ìS\u008a¨Õ´@\u0086\u009b¦B&_x0008_µ@6f_x001F_\u0095\u0093?µ@ôdù[_x0010_!µ@\u0080¥àJ×ë´@Ó;\u0089\u0090\u007fKµ@\u008b\u0094rëãë´@}e\u009e\u0088ù3µ@c{q:/jµ@\u0083Z_x0003_\u0089n*µ@áÛ\u0097\u009e\u0089_x0013_µ@PÁaÛþù´@\u0093_x000D_à¾_x001A_õ´@\u0090¤óyjÀ´@#_x000C_RÎU+µ@ü¾j^_x0005__x0007_¹_x001C_µ@´\u008dÜ_x000C_»Mµ@-_x0001_Íyö_x0002_µ@\u0099·G÷æ¢µ@6ÓêÛ_x0017_ä´@\u0094ê\u0090ÙB#µ@\u0084d_x0004_ÿn_x0019_µ@Ò×¹öD_x000F_µ@_x000F_3ú\u008aø=µ@\u0081_x001B_á[\u0089Þ´@Ò\u0098ä-äì´@ã\u009eôï\t_x0017_µ@_x000D_ú´\u009dl*µ@a_x0006_æKQ÷´@Û»à\u0090%_x0017_µ@ey¸íÇ4µ@a¤\u009a\u0090\u008cô´@Uzv_x001D__x000C_jµ@_x0010_½Ù<\u008apµ@PGá5\u0084Yµ@Ó\u0096Ø°óLµ@ÃÚeèfñ´@Ç_x0008__x0003_ø;_x0003_µ@~_x000C_Ì\u0088_x000C__x001B_µ@0c~ÙïUµ@¦\u0085Rr¯Yµ@açÉybJµ@¥_x0001_`+ÛEµ@²:\u008fRq_x0015_µ@Ð_x0001__x000E_\u008dÞXµ@_x0007__x0017_©áõ_x001B_µ@«0¤2Aö´@_x0001__x0004_\u0094¡®Vù%µ@QÃ[û\u009dKµ@3çø_x0002_î@µ@\u009aÐGø_x0016_nµ@Éí_x0013_Ù_x001A_Lµ@GëhXµ»´@¥XØèè\u008dµ@§§ø_x0011_O*µ@÷É_x0010_6è(µ@hú\u0080*bÊ´@XÅ@7M,µ@_x0005_\u0082X\u0081Öô´@_x001A__x0018_Sì_!µ@E_x0010_,_x0016_Å_x001C_µ@¯Øg\u008bsmµ@i¿Êl¾_x0013_µ@b\u00933è+ µ@Ö¨ç\u00894?µ@\u009c|;Ë§@µ@]_x000C_6H¹Gµ@ù°®Ê]_x0019_µ@n1}qÍ\u008fµ@\u0081:êw¡þ´@\u00954^úNå´@8tåÆ|_x0018_µ@)JÕí_x0007__x0005_µ@_x0003_*xm+_x001E_µ@W$Û\u008cz µ@c\u0087¥\u008fnô´@äm\u0099\u0083\u008e\u0083µ@\tðËäI_x001E_µ@ÅÈ°\u0084_x0001__x0004_×*µ@¢qÆºGî´@Ý¹û¡¥)µ@%\u0084¡_x0017_ïdµ@©µy\u008edaµ@qZÃ_x001E_\u008cgµ@Gí_x001D_~\u0088oµ@\u008b\u0095\u009f\\\u00861µ@]\u008cº\u0085\u009bnµ@vûêÀù_x001F_µ@äÙGsTÿ´@_x000F_#¼_x0018_3dµ@Í\u0083ìFø&µ@À_x000E_ý8_x001A_9µ@¸b$ØPRµ@QØ°\u0096\u0094_x001A_µ@_x0016_·JjàÒ´@¾¥µ±_x0002_ã´@W1\u0093ew_x0007_µ@_x000D_dþAÃgµ@Ã_x0017__x0016_ÈèÎ´@¯$¨\\ÝTµ@æHhNàMµ@X_x0003__x0015_ô»ø´@×-_x000E_»8lµ@Ëí_x0006__x0018_\u0096Rµ@_x0015_»´\u008d?Jµ@\u009b¾\tãh5µ@Töo\u0099\u0081zµ@ì_x0005_\u008bð_*µ@ý\u0086_x0015_aÓ+µ@\u0092q_x001D_!¥lµ@_x0001__x0007_ù_x0013__x001A_\u0093\t_x0003_µ@\u009ea¦\u007f\u0092_x001E_µ@z·\u0087_x0012_z#µ@¾PéP_x0014_kµ@{H\u007f9:Ù´@¼^øÔ7Ð´@Á¢¹éw\tµ@íÉá_x0015_Ëá´@\u0096Eç£Ü_x0016_µ@¥\u009e&0_x0004_@µ@\u0098Ã\u0093Âº_x0016_µ@ìµð»Ïå´@_x0005_×]Î3nµ@À_x0016_Å°_x000D_<µ@\u009aê±û@»´@ ×,\u0094Ì±´@_x0014_æ_x0018_\u008dÎó´@#_x0018_-_x0002_²ï´@¤\u008a\u0094_x0007__x0006_ò´@æðtøx_x0013_µ@¾üç\u0092ü5µ@?_-\u0083_x0015_\u008aµ@_x001B_ »_\u0094Ð´@·ê\u0085ë9_x0004_µ@oê+ÿÔJµ@èn\u0083\u0091Õ\tµ@)\u0096÷rÑé´@Á©1\u0090ñDµ@\u008fs3+°yµ@z¢Âs~_x0011_µ@Ú_x001A_Ô\u0082_x001C_\u0084µ@\u009fã\u008dd_x0007__x0008__x0005_.µ@'-ß\u008dÕ)µ@­í¨_x000B_ý-µ@r_x0015__x001F_´[Fµ@·h0h]\u0089µ@Yê$\u008b%ñ´@_x0001_@¸_x0001__x0015_dµ@«:$¯+_x001C_µ@\u0084ñ_x0010__x0002_O/µ@qZYI_x0004_-µ@\u0091r\u0088\u0099½û´@\u009b9_x001E_·j_x0003_µ@\u0094y_x0019_\u009a·vµ@_x0001_\u009b_x0010_\u008f_x0007_aµ@rê)n\tmµ@Þfw*)[µ@Ð¼7<ö_x0019_µ@A´Ñ _x001A_Wµ@t\u007fr_x000C_a%µ@QT_x001F__x0017_B\u0086µ@\u0090<¢ô\u009c2µ@>µ_x0016__x000C_\u0081,µ@\u0094¬\u009b­\u0097û´@\u0085Xg_||µ@_x0011__x0013_|\u0082dAµ@ÑN:ùÂUµ@væ_x0016_\u009f\u008e_x0016_µ@%&_x0010_zÄ_x001E_µ@Ö_x0006__x0018_|Ò_x0007_µ@_x0018__x0012_I\"LCµ@vjÊ\u009fºÕ´@pÝÍ_x001F_±%µ@_x0002__x0004_\u008aÄ4\u007fÄ>µ@¿F_x0007_\u0089Cé´@\u008f\u0088<iE6µ@ +\u0095ß4_x0018_µ@\u0093`_x0005_VKsµ@®d)Èß+µ@ðÉ6_x0008_öú´@9\u0095Ç$(jµ@ £R7ïEµ@]ÿ³4 ·´@'®ãLl_x0004_µ@õ+_x0010_ùAÌ´@ø>\u008b_x0003__x0014_ÿ´@Tö9P_Uµ@Ç\u008cs³\u0092;µ@\u0091_x0001__x0016_²Ä'µ@qå·ölå´@\u0099_x000E_å®Ìò´@_x001F_@ë\"L\u008bµ@_x0012_)À}m_µ@Y,9EÖCµ@ÂI=ýoOµ@_x0007_udÞïrµ@E\u0088ÛhK-µ@æï_x0016_²»Nµ@WÞ_x0004_%þ%µ@4\\ô_x0018__x0008_#µ@FP_x001B_÷Â_x0014_µ@?¿Î\u008a'2µ@äS&_x0011_U|µ@W*)µ_x001C_<µ@¥ÛKÓ_x0001__x0002_9_x000B_µ@_x000B_'ü_x001B_\u008b_x0008_µ@_x0003_H¾7ú$µ@_x000E__x0015_B_x001D_\u0098)µ@\u0089x«[3\u0090µ@]¯Öçsaµ@«,Sær\u008bµ@éÄã\u0083®_x0015_µ@ÅPë\u009b¥tµ@ß|._x000B_È^µ@§_x000B_¨î-5µ@\u0080Ô DÊYµ@À«c£¢?µ@_x0006_Ô¯_x0006_º_x000D_µ@xº\u0093:mõ´@Ïaf\u009c_x0002_Ü´@&otA_x001D_bµ@_x0002_(Xr&8µ@Æ\u0084\u0097c}æ´@\u008dÇ"}},{"$cut":{"chars":53052,"head":"5876fafea35fa354d2be4c6741a517df_x0002__x0003_64%,q_x0005_¶@/XÃ}S´µ@ý\u0086àfÅ¬µ@\u0097_x0010_¹ÉD_x0006_¶@U_x0001_ãypªµ@wM\u0096!Æ\u0081¶@ânA÷¾ÿ´@ñ1_x000C_3_x0003_éµ@H\u0095yëVÍµ@ARN\u008av_x001F_µ@H~s\u0095ª_x000E_µ@vÜK.¶õ´@»³&{¹Ðµ@\u008cyC:abµ@\u0083¶Mxd¨µ@(Úù¯Â[µ@\u0082D\u0092à_x0002_gµ@Q_x001A_\u0095P'Àµ@Ì\\ACM\u0080µ@i ñ°y¾µ@È¿W\u0096Ùµµ@\u009b_x000F_;7\u009cÊµ@¬÷àù¯Ò´@Ñqm_x0001_Àð´@*\u0081êJT¬µ@&ëèóà\u008eµ@_x0017_Î°%+÷´@D¶\t_x0002_\u0093_x000F_¶@æK_x0006_e_x0003_@µ@â_x001A_à÷±µµ@Ì¿êöÖ\u009eµ@_x0017_\u0087ªà_x0002__x0003__x0007__x001B_¶@X©eWø¾µ@[[{\u007f\u0080ÿµ@ç]ÞºT\u0085µ@¶\u008f5Î\u008c_x001B_µ@¬\u0082áÏhE¶@\u009cÿx_x0003_Ê_x001A_¶@ìm_x0012_µ_x0010_iµ@I\u0082_x0002_æy\u0084µ@\\Èòpm;µ@¥û\u0086åö^µ@aX_x0017_]\"\u009fµ@ÁP©_x000F_8_x000F_¶@g¨Ç_x0001_Ä_x001E_µ@­?\u008aC\t\u0088µ@_n3£B°µ@ÈÍ¤b\u0085Ïµ@_x0008_eÈKÁÆµ@\u008b\u008aÉ\u0098\u009cÍ´@M_x0018_ÛÔ\u0097Hµ@»£U½UÓµ@ð\u0090¬N+_x001A_µ@_x0010_\\¿Æ\u009a<¶@_x0012_\"_x0011_·Vã´@íò÷_x0014_Þ'µ@ À<ü\u008e¨µ@ v\u0087Y?nµ@_x001A_ç_x000C_ýí~µ@\u009e\"\t\u0091d¸µ@¨ÜôÙSµµ@L\u009aFÊ/·´@h*l÷%_x0012_µ@_x0001__x0008_\u0095\u009e¯;Ò_x0004_¶@|*Q ¬H¶@_x0004_¥Îõ(Öµ@kå_x0013_À_x0013_ÿ´@ÃdÑlJ µ@Ð¤ÙGEÇµ@_x001D_F_x000C_r \u0095µ@d\t\u0094¯_öµ@,D ø\u0088Êµ@½;Ù_x0006_ËXµ@®Å³êx,¶@ð«\u008bÃÓÃ´@_x0017_\u0087f½\u0087+µ@õÌ_x0011__x0015_8_x0008_¶@yYâ_x000C_É_x0014_¶@Ç_x0019__x0019__x001A_y\u008cµ@Ë+¸\u0082:Éµ@\u009a\u0082w_x0007_8Íµ@\u008a_x0016__x0013_]ü\u0097µ@\u0091_x0010__x0019_¡Çèµ@_x0008_ºõÉ¾Ë´@_x0002_#c_x0003__x0004_µµ@\t:Ä ýR¶@:MÙJa3µ@_x0004_Ð\u008b¿ýö´@p_x0005_¥\u0090\"t¶@ú@U_x001A_õì´@= âÝ[fµ@×gÝ_x000E_S`¶@ ékÖ\\\tµ@å_x0017_ÊD£xµ@¦¸ß _x0003__x0004_\u0089_x000C_¶@7ð_x001B_ÃA¼µ@7\u009b_x0001_sõ{¶@­¢9±¢\u008bµ@_x000D_KÍð\u0080Åµ@Í2Ì!_x0006_\u009dµ@J\u009e_x0016_´?\u008a¶@k¡N1\u0095\tµ@_x001B_{SËÆ-¶@÷|Ð¨Ó_x0008_µ@ííÛ6 \u008cµ@'$T¦_x0004__x0001_¶@iþÆn*¿µ@$ Xm_x000B_}µ@Ü÷ûÇ8Q¶@\u0096\u0090_x000F__x001C_*\u007fµ@¨ý\u0099gö µ@K?%äõò´@5¤æ¾Z_x0016_µ@âZZçü_x0018_¶@¹TLS°tµ@_x0002_ýÿ_x0017_VPµ@Ñ´;×iûµ@#FePï_x000C_¶@À\t¹_x001E_\u008btµ@\u0096¨÷½ÛJµ@ºnÉ¯\u009a_x0002_µ@¿^ÉU_x000C_£µ@6¼yDÁ_x001C_¶@ùi¨0Öó´@\u008bN¡_x0013__x0019_¹µ@Èe#&\u0084¬µ@_x0002__x0004_çqÃç_x001C_lµ@_x000E_Æ4ùøyµ@<Ò_x0015_\u008d_x0014_³µ@\u0095úP\u009e_x0003_ê´@ª\u0094\u0081!\u0097Jµ@Äâ_x0019_õOàµ@·tKêU#¶@U\u0094\u008d_x0010__x000F_1¶@\u008b\u007f_x000B_k:m¶@\u009d\u0094\u0098\"h­µ@+\u0090\u0088r:Äµ@°bá.ì_x000B_¶@\u0092\u0083_x0013_Yyà´@óýï\u0094_x001D_{µ@B¶_x0002_²\u00980µ@X_x0015_iÜ¸Mµ@ãøf35_x001A_¶@\u0096_x0007_\\a\u00986¶@ÈFë!_x0001_\u0092µ@·\u0088 Y_x0004_ùµ@èTYÁî\u0098µ@rH_x0008_s¾ÿµ@_x0001_W<å_x0018_0¶@@¹­Ðh_x0004_¶@¥~öH\u009f÷´@¾|Ö\u0085÷_µ@_x0005_ýd0fxµ@Hn\u009b¿¦Kµ@p ª¬_x0019__µ@vP_x0003_¸_x0016_¦µ@_x0018_7à\u0083Õ_x001B_¶@J d¨_x0001__x0003_ÛÄµ@{\u0087·s_x0008__x0018_¶@¦èî&è_x0012_¶@\u0089¯_x000E_D®¨µ@,/î(\u009f\u009dµ@/:Ñn}Íµ@.XÎÆiJ¶@2\u0084Ñt__x0006_¶@_x0002_{d«äìµ@<n_x0004__x0014_wöµ@_x0007_\u0099\u0097ûqÊµ@F°\u0093_x0002_{Aµ@2àh5\u0092_x0006_¶@_x0014_\u009a(¾}E¶@»ÍXG_x001F_Ëµ@qPÍhh>µ@ö5ªË\u009f^µ@_x0010_÷\u0097Çx_x001E_¶@\u0084nÂ°t_x0019_¶@\u0084È[n__x0005_µ@^­TAÄ§µ@ÞBú\u008fQ_x000B_¶@\u0089³<î× µ@_x0013_¥«,ÅBµ@·ê: YC¶@9z!_x0015_ÚÌµ@_x0005_UMi¾{µ@\u0094\u009eÄ_x0010_]nµ@\u008c._º\u0081ù´@(çF\u009d·_x0015_¶@\u0098UVWº½´@0®S\u0092þ_x0018_µ@_x0003__x0005_´\u008c°\u007f2cµ@_x0010_u_x0004_Ëè\u0082µ@<\u0083+\u0095öñ´@Gä`Éjü´@wRS_x0011_Pîµ@{í\u0089_x001E__x0010_+¶@\u0093¯_x0001_&_x001B_õµ@ð\u0091âÜ\u009c_x0014_¶@ñ_x0003_fþ\u0094\u008b¶@ÄÚÛÍÔp¶@Ã_x0004__x001B_\u0086+!¶@_x001D_\u008fÞ_x000E_âkµ@_x0013_×û\u0099Þgµ@ë=o\u0081_x001A_\u008b¶@úO×Z{¥µ@¡ÁQ\\ª©¶@@F<Q_x001D_Äµ@ýd8y\t\u0082µ@_x001A_Ä\u008f\u0097/n¶@âò5y3vµ@*³ý\u0090_x000F_<µ@:A¾ò\u0088¿µ@¡\u008cÌÃ_x0004_\u0090µ@8_x000B_¥\u0092\u007fæµ@_x0008_o_x0011_Ò¼Ôµ@\u0096Ý/°9u¶@°×343ìµ@|_x000E_AÃ>\u0081µ@Îllü6_x001D_¶@jýû¤\u0090Ãµ@\u009d_x0002_<_x000F__x000E_A¶@\u0084y¼V_x0001__x0003_\u0084£µ@Ò_x0019_º FÚµ@(zïÎjõ¶@Ç_x0011_\u008bËÕÖµ@_x0003_®Ñ¼l\u0081µ@ÞE,D\u0090\u0090µ@µY\u0080ùÈ2¶@G+®SÙ[¶@çÞu_x001A__x0002_Ûµ@_x0010_ßT[åpµ@s¢zF _¶@\\×U7\u0098¯µ@Ù]9Ùb°¶@\u008d_x0005_ãQ+:¶@£_x0010_Û\u0084\u0082_x0018_¶@sè¯u_x0008_éµ@\u0094'¢zï)¶@\u009buÑ·}1¶@LT\u008b¤\u0085_x0015_¶@\u009fy³Ýå\u0086µ@/6_x000E_dv_x0007_¶@à\u0090k`ÕW¶@\u0096/\u008bErX¶@Ö_x0005_'_x000F__x0007_J¶@VT_x0018_£\u009adµ@~òyS<g¶@\u0090¯_x000E_V_x000F_\u009dµ@[«\t\u0087åj¶@®+4kùúµ@xÃÎ\u0092p5µ@@t0.l¾µ@_x0004_¡^|7_x0019_¶@89-_x0011_É^_x0005_\tµ@ìWuÕ.Ê¶@_x000E_D(/é\u0083µ@ð¦ èû¥µ@_x0001__x0001_88_x0002__x0001_88_x0003__x0001_88_x0004__x0001_88_x0005__x0001_88_x0006__x0001_88_x0007__x0001_88_x0008__x0001_88\t_x0001_889_x0001_88_x000B__x0001_88_x000C__x0001_88_x000D__x0001_88_x000E__x0001_88_x000F__x0001_88_x0010__x0001_88_x0011__x0001_88_x0012__x0001_88_x0013__x0001_88_x0014__x0001_88_x0015__x0001_88_x0016__x0001_88_x0017__x0001_88_x0018__x0001_88_x0019__x0001_88_x001A__x0001_88_x001B__x0001_88_x001C__x0001_88_x001D__x0001_88_x001E__x0001_88_x001F__x0001_88 _x0001_88!_x0001_88\"_x0001_88#_x0001_88$_x0001_88%_x0001_88&_x0001_88'_x0001_88(_x0001_88)_x0001_88*_x0001_88+_x0001_88,_x0001_88-_x0001_88._x0001_88/_x0001_880_x0001_881_x0001_882_x0001_883_x0001_884_x0001_885_x0001_886_x0"}},{"$cut":{"chars":51510,"head":"f479002bf55c77a7f5fd7f18ab9e452f_x0003__x0004_r4\u008c±C\u009cö@æ_x0011_\u0080G_x0002_\u008fö@_µ\u0095_x0016_o\u009bö@`ZN@}Áö@\tfÏ\u008eÖ ö@ÞÇs¦\u009f\u0098ö@cÝ\u0097*Ò¶ö@ñ_x0001_è\u0095*©ö@Y_x000D_\u009dì_x0008_¬ö@Ù]ï¿x\u0085ö@>^j×¯«ö@\u008f_x0006_9ÅÑ\u0097ö@é_x0001_Ã_x0013_ý\u0096ö@1úüé_x0016_¥ö@=YT¦\u009azö@2²_x000F_|Aªö@_x0018_Æ_x0010_\u0081ö\u009eö@_x0007_¬Î\u0088ä\u009fö@ì\u008f6_x0003__x0014_µö@¾_x000C_r²ª ö@C\u0091±5ì¢ö@ùgÌXß\u009bö@ì5\u0086 _x0016_­ö@J_x000D__x001A_­k¦ö@ýN(Ie\u0084ö@\u0089æjö_x001D_\u009cö@j*á_x0016_Ä¤ö@;g<_x0003_Î¨ö@¸æ+r¦\u0096ö@\u0098\u008e`\\`¦ö@\u0080¬\u009dÉ7¨ö@Ë¬\u008b\u008a_x0002__x0003_\u0089¥ö@dZ_x0015_·L\u0091ö@_x0015_¯\u009a_x0016_\u0082¸ö@ôCû\tM\u0099ö@³Ê·x\u0083\u0086ö@Ûi<\u009aÊ|ö@_x0017_ò§_x001A_\u0086§ö@Í±\u0080sÒ¬ö@QâºòP¬ö@_x000D_\u008eñG­¢ö@\u0098¢ÊË_x0001_\u009dö@(üe\u009fï­ö@_x0019_À|N_x0005_\u008dö@f{_x001C_¡ \u008cö@\u0092DV_x001A_ß¡ö@áÖ/ÿI­ö@\u0089!yB_x000F_\u009dö@#ÇÄ_x0012_è¡ö@wçw_x0014_&ºö@Ô_x001E_:÷`¤ö@(¦qw&°ö@_x0017_úÒ§ê¤ö@FÇëª\u0094\u0099ö@_x0011_ÑÄ_x0001_Ö\u009bö@\u007f\u008eë_x0018__x000B_¤ö@1#\u0096qÇ«ö@Êl\u0081\u0090â¨ö@_x0015_§_x0006_©i\u0093ö@÷rpÄw\u0096ö@êkÓ\t\u0095Åö@.3_x000E__x0014_Ñ ö@(å·_x000B_|\u009fö@_x0001__x0003_?\u0092_x001A_\u009c_x0002_\u0096ö@ûÙþ*y\u009eö@;\u0095\u008c¾Ã\u0085ö@þ\u008fC¨&»ö@ S¡9_x000F_¦ö@Q\u0099µvc¤ö@)\u0099Wã[\u009dö@p²_x001F_rB¾ö@ÄüðJ&\u009eö@ßÉ/ _x000F_¢ö@Võ\u0087Ô\u008d¬ö@M\u0095\u0084ÂG\u009dö@I¶Á£\u0083\u0090ö@+j¾%;\u0094ö@5pxü_x001C_½ö@\u0084ÑÓoD\u009eö@Bd§_x0004_à°ö@_x0008_âf\u007fÙ\u009bö@\u0082m\u0094Ò\"­ö@¾Õ\u008bU\u0081©ö@_x0008_Á\u008cÞ«¯ö@¥:©õ_x001F_\u0099ö@Ci_x0019_TÓ\u009eö@ÿ¨\u0084oÑªö@ô»_x0007_Ä¡ªö@\u007fnf\\ü\u0094ö@[þªîÔ\u0093ö@\u008aÏð\u0086B ö@Ò_x0001_ÐÂÕ©ö@\u0096n_x0017_Ò:¶ö@\u0095l&_x0001_.£ö@ë¸Í\u009c_x0001__x0003_û»ö@Ät_x001B_h_x0002_±ö@ñ\u0087)_x0012_Ñ½ö@_x0007_ü\u009aÇ\u0093®ö@ZÉ9û_x0004_\u008cö@f\u009f¯\u009f·¼ö@´è_x0001_ÏA¦ö@\u0097f[\u0090Á¨ö@õâç3$¦ö@£9\u0098/\u0094\u0092ö@båõÜM®ö@\u0093ÓÍê_x000F_\u009cö@j\u0085Ã_x0011_ß\u0098ö@\u0099Â³ÐÜ±ö@\"þªÃüºö@ï¡G\u0085(´ö@\u0095\u008d Ê\u0093ªö@¯\u00953o%\u0088ö@Ü\u009e\u0094ª ºö@×ÕËW4\u009fö@jð°_x001D_\u0090\u0097ö@eåSI³¦ö@¯~,àK¶ö@¼½C4}\u0097ö@\u0080Ã·\u008dØ½ö@Ðq\u0095@\u0083\u008bö@~_x0017_·_x0015_½\u009aö@_x0005_>¤\u009e¶\u009eö@ú×_x0007_\u008añºö@Ø\u0096BH\u008dµö@9ZÍ&8\u008fö@)ÐÛw\u009a¯ö@_x0007_\tS_x000D_o§\u0093³ö@¨V_x000F_Y<¦ö@ä\u0099A¶\u009b´ö@©á\u0084¨_x0002_\u009eö@e0Ì´¦´ö@8û_x0004_hÛµö@úÜe4&\u0089ö@jGåF>\u0086ö@£Òyª\u0083¦ö@M3\u0093_x0019__x001E_¿ö@\u008d.\u0090_x001F_$\u0099ö@³üÍØ\u007f¹ö@JUô_x001D_\u008d\u0096ö@\u0083Ë²Û\u0096·ö@[~¨d¸¶ö@5_x0001_ôý_x0006_«ö@×I¥µÀ½ö@±Íê¿\u0087 ö@'¡\u0081¾Í¯ö@_x0005_43Õ\u0098¬ö@\u0087ú¸0,§ö@_x0019_1Üm¹¬ö@èÍ_x001E_×¶\u0095ö@_x001F_k\u0089æìªö@ÍIYy$¥ö@)_x0005_Å\u0086\"¸ö@ÝLp6÷¬ö@\u0091\u0093\t´½¤ö@å'¡'w\u0099ö@iD_x0003_xÅ¯ö@jåò_x0008_F©ö@µÃ~\u0098_x0003__x0005_ù³ö@Vç5#\u007f\u008dö@\"\u0097_Ï\u009f ö@_x0014__x0008_ñö¢¬ö@_x0010_ì9Ìç\u009cö@E±å\\\u008d\u0093ö@\u0092ê_x0005_%­¨ö@_x000C_\u0092_x001D_¸\u008c¨ö@×´N5Ý­ö@_x001F_P _x0014_M³ö@\u0094¢\u0095àCµö@×R_x0002_D_x0017_\u0086ö@¤2ê+½\u009cö@¬_x0011_Gú\u0094ºö@_x000D_\u0085ÙÀq\u009cö@ßPÖè%¥ö@6a\u0090F¨¢ö@dFE4\u008b«ö@\\Ø³H\u008f\u0094ö@ª¸\u0085_x000C__x0001_ ö@¤µý§¯¢ö@û\"zHÓ\u008cö@øVã¬.¤ö@_x0004_\u009fé_x0008_i¡ö@Úö\"»ð ö@\u0098\u0092_x000F_\u009aM¢ö@_x0003_\u0080_x0017_\u0097:Ãö@9\u0095_x001E_¢_x001E_\u0097ö@YÕf^\u009d\u0093ö@\"_x0002_Ó\u008c\u008e°ö@_x0012_}¨$_x0006_²ö@H_x001F_=_x0019_³±ö@_x0001__x0004_jÿ+ÉÂ¢ö@_x000F_°·é)¬ö@é½_x001E__x001D_³\u0094ö@¸¾5_x000D_Þ\u0093ö@Ón_x0013_®lºö@.l;_x001C__x001E_¹ö@çE.aû¬ö@¿-!YÔ²ö@1í/«%«ö@«ÆäÙ2·ö@u'òöU¢ö@YKÙ\u008b0£ö@\u0098\u008e/©< ö@_x0003_-_x001D_\u008cw´ö@\u0080l#ÜÓ®ö@Î_x0005_ËÉD\u0083ö@\u0099$\u0098U\u0095\u0098ö@ÇvO_x0008_|§ö@_x0002_ù3ÎÜ\u0095ö@Ý\u0088M»_x000E_­ö@D\u0093çq\u009b²ö@ÓÉîÖáªö@Zæ\u0098d?Âö@^\u0093\u0098Ü\\¤ö@YB#_$\u0084ö@þ\u009aH)¦µö@³_x0003_~^_x0004_®ö@c\u009aµ\u0080L¬ö@Q¨\"\"D\u0095ö@Lr§\tU¥ö@¹Òabø¨ö@ êl~_x0004__x0005_Ò\u0095ö@ÁP\"\u008a«\u008dö@\u009e{_x0017_ç\u0091¹ö@I«ÊTà²ö@Ò\u0084\u0081©\u009c¬ö@_x001C__x0012_\u009e y\u009dö@Ç0Ô_x0002_§¬ö@S_x0008_¾²:§ö@\"\u0082$Æ\u0097\u007fö@2WëÍ\u0086\u009bö@\u0085_x000E__ìa\u008dö@\u0083\u0090¬_x001B_l¢ö@W°³@\u0080 ö@å­_x0015_1*\u009cö@\u008f`6]\u0098»ö@ùÂ_x0016_N²\u0091ö@mWC¥\u0084´ö@\u00987\u008fyý²ö@R>_x0015__x0001_C°ö@­ÝE\"à£ö@ÞB\u0093z}\u0091ö@\u008bØúA_x001B_\u0093ö@\u007f\u0096Õ%:\u009bö@_x000D_\u0080øÕê\u0088ö@Õ_x000B_x_x0002_>\u009bö@)\u0087\u009e¿æªö@_x0003_\u008f®!¨¿ö@p\u008cû_x0003_éÀö@Á\u0099_x0005_\u007f\"\u009eö@_x0019_\u0089£_x0015_±\u009aö@xÖ@_x001D_c\u009bö@y\u009b\u0094OJ\u0098ö@_x0001__x0002_B#úÄ­ºö@\u0081Kd3\u0081ªö@:Â_x0003_\u0095_x001E_\u0098ö@\u008cG\u0089×ê\u0081ö@)ý\u0093/²¶ö@ØàÉ_x0019_D¸ö@UfâpW¤ö@$\u0089õ÷2²ö@Ç«OZù½ö@%<{h_x0003_ºö@\u0099\u0087\u008f\u007fÅ\u0097ö@<.!Éù\u009bö@ÈÃ\u0089zz¨ö@_x001F_ë\"A/\u0085ö@¬@â\u008bK\u009aö@³_x0015_æ{q\u0093ö@¹Áz§\u0082³ö@S4`Éû¾ö@5Ú¸\u009fÇ¡ö@¯Äh¯ý©ö@¾ÙÇB¬ ö@\u008eÞåN4Âö@9_x0011_\u009dzÊ½ö@µºB?\u0085\u0093ö@Àë¢è/¹ö@ªë*Ä\u0094\u009fö@a-\u0089¸Ý\u0094ö@C_x001D_z(î ö@¶\u009fD_x001A_>¡ö@[_x0002_\u009bª/¥ö@ý_x000B_Æ\u008e¨­ö@É#3_x001D__x0002__x0003_]¯ö@K_x001A_\u0093/_x0002_ ö@Ö`\u0099'd¸ö@ÉW-Zl«ö@Ï\tý\u0094i\u0099ö@°_x0015_.\u009fÍ\u0090ö@_x001F_;1E¢«ö@\u0082QNQ3\u009cö@kM_x000B_(÷Âö@n\u0085Ä,3\u0095ö@Ì_x0019_MÓ@³ö@Â»¸&Ð\u0088ö@|>É÷\u0084\u0089ö@É_x000B__x000C_;ß³ö@B\u0087\u009bø&\u009bö@Ôy_x0013_Ðï©ö@#SZN_x0012_\u0094ö@«8À\u0083Þ§ö@ñ_x001F_v¹a\u0092ö@J«\t\u0090_x000E_¤ö@¸\u0083ïx\u0093|ö@¿úA#S\u0082ö@_x001A__x0001_ú§8\u0090ö@l£Jö\u009a«ö@sò_x000C_é_x001C_§ö@ÀþáG¥\u0094ö@jrÈj\u009c\u0097ö@ýé´7sªö@ÑiHYï\u009aö@\u0080V h_x001F_\u009dö@+\u0084Ý$`§ö@³_x0011_Hø«Äö@_x0001__x0004_~Z»+\u008b½ö@\u0098ÿ\u0085¨ßªö@ñ`$\u0091Ê«ö@_x001A_[_x000B_À{¯ö@ÛÀoA\u0095\u0096ö@_x0002_\u0081F«?\u0099ö@òQeÐý\u009bö@¤EèbÓ³ö@\"¢_x0013_C\u0085¬ö@\u009d\u0091>_x001D_©ºö@=¦ÕnH¯ö@G[Hn­\u008fö@.R_x0019_1_x0014_Àö@½÷áß¡Àö@sTÈ_x0007_\u008f\u009eö@WUîÜÑ¢ö@=öGx ´ö@\u009bÎÏâ_x001F_¦ö@áaÓ^_x0018_¹ö@9#{¨¢±ö@ìw_x0012_\u0097é ö@¸í_x001C_è%¢ö@J²_x0003_§²\u009dö@Þ¹7+~¸ö@MI%Í'¦ö@\u0092TÕð/§ö@"}},{"$cut":{"chars":51258,"head":"43bac8e883dcfa6d6392052c0466056b_x0001__x0002__x0007_$¡Õ°Ýõ@Ããô_x0007_!ìõ@k¿æ1)¯ö@_x001A_< _x001C_n1ö@_x000D_\u0085î5Ð\u0094ö@_x0004__x000F_`Ü_x0017_Uö@`oÑ_x001C_1_x0002_ö@\\_x000F__x001A_ö_x0010_Åõ@Écºømpö@Ù_x0010_<åw\u009fö@¹J\\_x0013_¡ªö@)'_x0013_\u009edKö@\u008a ðq¥\u008aö@ã_x001D_T**Zö@_x000B_`7PI_x001E_ö@W!5[ûtö@\u0088z}ÂAzö@w¸\u008e©L\u0095ö@Ñé^'\u008d3ö@üz\u0087gw\u0083ö@£\u007fH¥ù_x000B_ö@â±\u0096\u0090ø2ö@Ù;ù\u0087:\u0088ö@L{p\u0094_x0002_Åö@,â àIoö@%_x0001_,>´Cö@Í&Ñû_x000B_ºö@nC_x0015_áÂRö@OÝ¡)W_x001C_ö@ú\u0081_x0010_m:\u0092ö@\u008a\u0082¤TE\u008bö@à°Kú_x0003__x0005_ýGö@\u0080\u0094_x0013_ÏØTö@$uRß\u0085åõ@æ,°çIqö@Ötú\"íþõ@)\u0081\u0086ø\u0091Eö@\u009fùh Ü>ö@½_x000E_Þ©ÚUö@£_x0002_Nã«(ö@_x0007_Rt\u008cc\u0094ö@_x000C_\u0080ªÜu<ö@\u0086-±_x0011_*mö@®_x0003_V*é_x0010_ö@_x000F__x0005_ÝT_x000F__ö@\u0084Ú\u0087ÝÁ|ö@÷_x0016__x0016_}_x0014_\u0096ö@1´Cy_x0011_dö@qÚ_x0004_G\u0087¹ö@_x0001_\u0095æÚn[ö@\"]àÐSÊõ@\u0081Ma[ëvö@æ}RÜ.?ö@\u009aç_x0014_¾8cö@\u008f=¤_x0013__Üõ@éÒajDdö@_x0005_ò,?_x0016_}ö@_x0007_ ~øØGö@ì_x0006_\u0089_¸iö@\u0093%¬¯+=ö@kvÿïæ\u008bö@f®*æ|Qö@\u0085]Ì,_x0014__x001C_ö@_x0001__x0002_\u0082Ønª´\u0095ö@gn\u007fk¹×õ@V_x0019_[!zõõ@-_x0007_âí_x0005_#ö@·_x0017_Ë\u009dJÖõ@\u008fS_x0010_ö\u008d%ö@IÇå©B_x000B_ö@\u0095¢V6o£ö@`/qéû¥ö@øú´µ/îõ@Iêr<p~ö@ÐÒ[nô1ö@6Wñ_x001F__x001B_nö@\t#¾]ª$ö@^j\u0088_x0015_4\u0097ö@_x0010_Ì_x0019_x²þõ@p_x000D_Ì\u0083£dö@\u0081½Ì¬`1ö@Ê¨mx\u0094}ö@ëk_x0011_ë\u0084±ö@[ÇU\u0095\u0091_x000D_ö@¹©ïÇ\u008c ö@ÿX_x001E_Ü@\u0099ö@âà\u008a;\u0088tö@\u0096·{¹ô_x0017_ö@_x0002_ê\u0094óÝ1ö@ý)Íb_x0008__x0013_ö@`Þ\u0082±ü\u009cö@×îi\u0086ÒGö@NG_x0003_ìo\u0088ö@X_x001E__x0001__x001A_I3ö@z\u0095FÈ_x0002__x0004_\u008eUö@+_x0010_L_x0019_þ{ö@LÀv_x001A_¥öõ@`\u008e³_x000E_:_x001E_ö@c\u009eÆ;@0ö@q_x0017_¯,Ó\u0090ö@_x0005_\u0087_x0003_\u007fÙpö@\u0086ÑB3ÝBö@æUoÝ]Vö@Ô\u009c#5*¨ö@Qµj>{\u0081ö@3(=á^$ö@JW³Ë¼\\ö@rÿ{Cà%ö@0Ôí6°bö@pè_x0001_ç°ýõ@l*\u0098üµ\u008fö@&»`\u0082_x000B_ ö@v¦ë£f\u0082ö@C:2Ö§@ö@ïª¢\u0096gjö@ú+_x001A_w[\u0084ö@._x0019__x000E_ÚxCö@Åâpý×Mö@\u0097_x000C_ÞÃÚiö@Q\u0087Ùït_x0007_ö@çº_x0019_t_x001D_?ö@9]í¾qíõ@çõ\u0094\u0086®_x001A_ö@\u008eðnä½²ö@È_x0013_k\u0093\u0095_x0019_ö@\u009c¦\u0086M÷2ö@_x0002__x0003_TF§3A»õ@\u008c;_x0019_\u009b_\u0084ö@#øÇ\u0081¼Ñõ@ÛZ_x000C_õB`ö@W\u008c_x0019_\\·=ö@Ù\u008dÎhÙ~ö@é\u0088N\u0088p!ö@ªõG`\u0090tö@©\u0086\u0086­\u0095Øõ@Î¿±_x0002_Uûõ@_x0008_7\u009f\u0090\"³ö@Tú.#\u0095qö@f¢ZÚ_x001A__x0013_ö@vÒËª_x0018_\u008aö@Eàñ*o_x0003_ö@_x0004_©×¬*øõ@yÆ]_x0019_Zbö@_x0016_º½ ë¯õ@_x0010_Î&:_x0015_7ö@wæ\u0083Ú_x0001_7ö@w_x0003__x000C_õØ^ö@Õ\u009e_x000B_°_x000C_\u0087ö@J\t_x001A_Ë_x0013_bö@_x0013__x0002_X_x0007_¨eö@Æ\u0088Ú°Þ\u0099ö@_£q\u008bàSö@ødy\u0081{4ö@+®ÉK¼_x0005_ö@ÊbØH7½ö@w_x0012_\u0089_x000D_Fvö@±+º/hDö@7ÞEt_x0001__x0002_¡|ö@\u0085\u0099\"Ï_x0012_£ö@_x001B_Ã\u0081\u0091©_x0014_ö@Ô»mü6&ö@äÁÍj Tö@¬NÎl\u0094Pö@\u008eeyò\u0091Iö@tôP¥\u009bcö@ißÓi|_x001D_ö@9­+.¸Iö@õÏC\u0083o\u0092ö@çìÆ _x0019_Qö@jÄKÅKaö@¼¦ÎâóZö@f_x0017_NAÆbö@O_x000C_ç\u009dDÿõ@Õ¢\u009a;_x0006_Jö@\u0093ª\u0089RÈ\u008dö@DO¾_x0002__x000D_nö@ÛçMü¹_x000F_ö@ÍòJ¿_x0001_»ö@Â÷ü·\u0093xö@_x0008_ÿ|\u00997\u0084ö@ôÄt`_x0014_Oö@C\u0095ÖV$£ö@äi5_x0003_~\u0082ö@EïqÛ_x0004_ðõ@¸¸$©¨\u0084ö@ÔmnJPnö@\u008dëøÜ¤?ö@\u009e_x0002_ÿV\u009fGö@FlJùÂSö@_x0001__x0002_ð|\u008e_x0001_\u0095\u0093ö@_x0002_c\u0085ëÉ¬ö@¨¡ç\u008efaö@sþ_x0018_û|:ö@_x0010_\u007f]¯<2ö@VØå/)\u0094ö@Re~£.öõ@_x001A_e4_x0001_£äõ@ ±q`$_x0010_ö@ä£_x001F_I\u008e\u0091ö@\u0093¶_x0002__x0005_Ú½ö@}\u008a \u009dÔcö@63_x0013_íX\u0095ö@\u0086¸\u0098Ø»fö@\u0095_x0015__x0002_Ä@Ïõ@Ï2ñàE<ö@9ÃÜÁ±gö@\u0085_x000C_ _x0007_étö@I_x0019__x001F__x0001_µßõ@_ú+ÑÃOö@)_x001C_ª\u0095>\u008bö@Ð¶\u008eüo9ö@_x0002_¢µAZcö@_x001A_2_x001F_*$-ö@_x000D_\u0091Ü¼÷[ö@V½A7Û\u009eõ@ _Dñ±_x0003_ö@q£_x0018_±_x0005_hö@ø\u008bÀ\u009añVö@\u0084\u0082X\u009e\u0084@ö@E_x0019__x0019_\u008e_x000F_3ö@_x0017__x0013_Î©_x0003__x0004_L6ö@÷Å8é5\u0094ö@¤º*9mPö@k\u008b0Ty_x000B_ö@`oÊJ\u0081Íõ@N_x0003_9ó6Bö@ò\u0085U>?Eö@w_x0012_ã÷\u009d0ö@Ì¾ÀÑÉ,ö@·t\u0091_x0001_\u0094³ö@Aú[\u009e_x0008_&ö@$_x0011_Þw¾7ö@_x0001_»þÄ_x0007_'ö@³4_x0019_yþ\u008aö@º_x0003_-{\u008c=ö@îß_x0015_\u0083¾lö@6YÝ_ÖTö@íÓÓy\u0094Jö@¡\u009d_x0006_r_x001A_Yö@£\u0081ç_x001C_%Tö@Z/ÑÃ\"½õ@3_x0015_\u009c\u0093ó ö@I_x0019_¬Q³_x0019_ö@F_x000F_`_x0015_\u0082\u0089ö@éGUW2!ö@_x0002_Ô6\u007f\u0080­ö@ÙmY-\u008b{ö@\u0098\u0081\u0097³mµö@È\u008feÃôµö@¡\u008c\u0098KAtö@_x0001_ýb·_x001F_Eö@3?XÞµ\u008cö@_x0002__x0004__x0012_½\u009a\u0097ç_x001B_ö@_x001A_±_x000E_£ù_x0008_ö@T:_x000E_6\u008cûõ@Á/ä²\u0081Üõ@\u0094w_x001B_áNÚõ@Ú\u0088F_x0014_\u008edö@_x001A_@%_x0011_æ\u009dö@C¾·&Ü}ö@_x0002_Í_x0001_ÕÆ³ö@\u0097c\u009dim\u0095ö@¿¥\u0090=\\Yö@X_x001E_20_x0003_õõ@_N¾´ßVö@ð/üîo®ö@=uWÏé_x0003_ö@P\"\u0090ÉÆZö@×_x0002_gjQ\u009bö@S=±ÖçSö@_x000D_ÇnU\u0099Bö@º_x0002_9_x0016__x001B_;ö@'\u0085\ttîñõ@\u0095ºc¤«\u0099ö@Ü__x000E_7Jwö@!à0Î¯Éõ@ìÇ7îÒ\u009dö@{ñ_x0012_ê_x0003_Oö@_x0010_*¯ÙC\u0091ö@¾ÿÊ\u0080\u0094$ö@_x0016_\t_x0013_ú\u009cÁõ@Å9Ö\u00917{ö@_x0018_w8-î6ö@4î!É_x0003__x0008_\u0098_x000E_ö@\u0089Z_x0019__x0006__x0019_\u0099ö@üwÂ0AIö@úàëeø_x0005_ö@²¯_x0016_QÌ ö@Ì:b_x0012_[{ö@\u0081<|aþæõ@Ô&©\u0084 /ö@_x0015_\u0081TI,Mö@ú²Ð¬ìFö@2~Rt_x0012_\u0098ö@_x0005_æÂG\u009fÕõ@nN\u0085¤u_x001C_ö@Mfu_x0019_ Cö@$wkyÑQö@8¿Ü%_x001D_\u0083ö@ÏpÁ\u008dt_x0001_ö@_x0006_bVii\u008aö@NS/_x001F_Â+ö@x$ï-\u0083_x001D_ö@\u0090u_x0013_¬_x0004_Ûõ@0j\u008b=\u0088âõ@_x0007_\u0080Ê(*)ö@_x0010_{(^læõ@Q\u0081ÝÝ|gö@é_x0002_&]\"\u0092ö@:\u008a\\ÍÑ\\ö@¾µ+¬"}},{"$cut":{"chars":49464,"head":"78f873b63434bd06583fb9aac8c86d92_x0001__x0003_þ|Ö\u0093ç3ö@ãAÚõ¼ûö@}æYq]|ö@_x000F_\u009b²Âçcö@Ð_x0006_w%²¿ö@ÝÙw¶_x000B_\u0097ö@_x0001_©`Û&Mö@\\ÖU``rö@¥\u0085_x000C_#É{ö@»@p\u0089³sö@©laé_x000E_\u008cö@_4_x001B_idsö@êÄ_x000C_é\u009b`ö@=\u0090fë2(ö@º5·èµ/ö@»º?Â\u0093_x0012_ö@Né\u0096¡\u009asö@_x0005_½ór_x0011_.ö@B_x001F_\u009dÕo»ö@|+Ì\u0080n*÷@PQÈ¢\u009c\u0098ö@_x0015_ó_x0003_{&aö@«wO\u0083\u0096­ö@DEÓÞ£Ýö@b¸\u008bÁ¤\u009bö@j\u009b%ãá_x0013_ö@àÉ¦_x0002_\u0091µö@ÚÁq^?_x0002_÷@¬Á0§^«ö@4û_x0013_\u0085û\u0091ö@\u00922_x0001__x000D__x0018_¢ö@8È\u009cØ_x0002__x0006__x0013_Uö@½´\u0083ÕB5ö@_EÿDßAö@c», _x001C_\u0098ö@_x0007_|È\u009fý\u008aö@_x0018_\u0084¡xüÂö@cÅrSyiö@¨_x0006__x000B_À0\u0087ö@åfÆ_x0016_\u007fÉö@Y²E_x0008_P\"÷@\u0081Â\u0094á-\u0081ö@Sê\u009bÄ\u0082sö@'¿rÕ \u0080ö@äB£_x000D_ßÚõ@g_x0004_¸_x000C_¨Òö@æ:X_x000C_>_x000D_ö@?y­I}Æö@JºED@kö@_x0002_2<î,¶ö@X\u009d.1$ªö@_x001E_\u0094_x0003_Gµªö@\u0097[\u0090\u0088|_x001A_ö@á1½bø8ö@»6­À¥åö@_x0016_\u0081ÛÏ_x0001_\u0080ö@_x0010_no_x0008__x0005__x0014_ö@ø_x000B_0X/`ö@?ÛÈª\u009bGö@©_x001D_PO{vö@eõ_x0019_UÕ+ö@\u009b?hê\u0086_x000B_÷@cÇ¸i\u008acö@_x0001__x0002_÷ùì¨\u007fSö@}ë´YP ö@©_x0018_éð=Vö@\u0090?[ê_x000F_áö@àÁã¡Úªö@­_x000F_í¾_x001F_zö@\u0095\u008f¡\u0094F\u0087ö@\\?_x0008_¤k\u0098ö@V?öL_x001D_éö@!\u009dv@_x0014_]ö@\\i»_»Hö@¹N^¿_x0012__x0003_÷@_x001D_Htº\u0084nö@_x0012_\u0088\\i\u009aRö@×û¬'¸Tö@(\u0091$T\u008f÷ö@Nªº'oâö@¹HØacjö@·À»\u00947@ö@\u008fò_ý³Nö@Pþ\u008a_x0003_`oö@_x0010_;Ö_x001E_Ëãö@/\u0093÷\u008eÕ ö@!ï\u009a\\Îñö@5¦8ûÇSö@K\u009cä_x0011_Ñ¦ö@¢ü_x0010_é'öö@t¬\u0082e\u00988ö@îÉea7\u0084ö@_x0010_d[üðØö@S¯\u0092r2éö@\u0093ûyV_x0001__x0002__x0017_Ûö@_x0006_¤º\u0091aËö@_x0005_;Þ°_x000C_¡ö@ä^\u0099¹F½ö@'¢P³µ\u0096ö@áõcýÕ\u0083ö@_x001E_A£_}tö@ y Ùq\u008cö@Ô_x0004_ä¡_x000D_\u009aö@(ycWÿ\u0096ö@\u008b>^âÎVö@Â_x0011_\u00901\u008d@ö@ât!!'_x000F_ö@¿1b_x001F_\u008aYö@s\u0093áJÝ$÷@%\u0097¯È\u0082¹ö@|5_x0014_´9Üõ@W8G\u009d5îö@\u009aß.Ì$\u008bö@\u0098%ÞÞÞkö@m²_x0005_\u0090eÞö@,5È_x000B_q+ö@.]S\u0088°-÷@V9§ëfÃö@øsanõ_x001B_÷@É_x0012_åúÒ_x0014_ö@+©\u009b_x000E_\u0095àö@ãÛ@ôYvö@×[\u0091_x001C_fïö@\u009açâ+Ïõö@þ&ÇÊIrö@?_x0008_PÞ`6ö@_x0004__x0005_Ì¶Jï]Xö@\tG\u009bJ_x0004_¶ö@\u009cHÊkhJö@Èô\u009c_x0004_l`ö@¢É'_x0011__x0008_ÿõ@w_x0006__x0001_Y Vö@Á_x001E_¯E|_x0001_ö@¢M \u0089,8ö@­/_x0002_¶_x0001_¬ö@·K¦Èi3ö@_x0010__x0013_,¥××ö@¬C_x0017_Ú¾~ö@í<_x0014_ö\u0096¬ö@_x0010_\u0099ëüë_x0003_÷@dÜùsG~ö@`9!È%\u009dö@Ë7b/u^ö@¨ä\u008bÕË_x000D_÷@JËæjÝýõ@Y±T_x001C_Ïiö@GxÏZÿñö@Þá÷_x0013_\u007fáö@Ãx2©Û¼ö@_x0019_Êpî\u009b,÷@ö¢¥Ê\u009cÁö@_x001D_ÛþÆ_x0017__x000B_÷@ý³_x000C_;\u0095çö@N_x0011_Ó{l\u0085ö@^µ<@ï_x0018_ö@bÖ\u009fªùÍö@yv\u007f+°Tö@_x000B_\u0089³ß_x0004__x0005_ARö@û\u008bÙ_x0005_¤bö@¦ç_x0019_*êúö@xªà._x000C_\u008bö@u\u009fð|_x0003_×ö@£èÅ¼_x0012_mö@_x0001__x000C_®´¥Öö@_x0005_dÕúÐDö@\u008b«¥¦í+ö@¼ôdNKÜö@Yó\u008dÍ\u008f\u0081ö@_x0001_[úÃ¤æö@½Æ]N_x0015__x000E_ö@ ÷j:Ú9ö@6Á%RÒ¢ö@f,)_x0013_¼\u008eö@_x001D_G)õ_x0016_\u0098ö@÷\u0086ù«Eæö@\u0099\u008b_x0002_\u008c\u0096Ãö@\"~ä.O_x001E_ö@zK/\u008b_x0006_Äö@ÚÙ_x0006_w7Iö@&'þQ5õö@Tgm_x000F_m/ö@3\u008dÛEåÿö@/\u0086\u0089ï\u0090Tö@§\u009cÆD_x0010_íö@Ð\u0083\u0096 ì\"ö@\u0090ù\u0097ý-Âö@\u008d¦Û\u007fqÙõ@_x0012_\u009fóßëÔõ@_x0018_ õCFâö@_x0001__x0007_õÈ\u00926Hµö@]³©Iû¨ö@¢·\u008caP²ö@ÐÚ©°_x0002_:ö@ÁÞ¸¶ôyö@EAC_x0013_Fyö@Åò^à\u0095\u009cö@Ï±ò_x0002_±^ö@âÇp\u0085»´ö@\u0096_x0011_½(!dö@ÿ\u008d\u009fô\u008c×õ@H.jT\u00965ö@Föx}ÑYö@¿;\u008eî_x0006_Pö@m_x000C_&\u0093vªö@¹\u008f¥l _x0004_÷@e¹ô\u0099ÖÒö@=(ã\u0098ì_x0011_÷@\u009e±S²¿)ö@\t_x0005__ïSòö@¹\u008cà\u0085{\u0088ö@ÝyG@\u0092iö@{_x0019_n_x000D_\u009c±ö@Ç\u0085Ú\u0087Ýhö@\u007f\u009a_x0013__x0005_|\u0084ö@#\u009cÝ\u009f9xö@_x0016_ê]º£_x0012_ö@ÔðØ­gçö@P_x000B_u_x001E_Ufö@_x0004__x000F__x0003__x001B_\u0080Ãö@LM,5\u0095³ö@\u0086C_x0016_Q_x0002__x0004_¦dö@\u0088oîZ8_x0003_÷@íÙ6áÈ7ö@ÅË\u0080×=®ö@â«ÌB¬ìö@¢%j\u009b½èö@2ç_x0011_©äsö@_x0011_º'\u008eJeö@WLpö2Ðö@ýzB®iÐö@:nMÆ%Æö@¬S²è_x001B__x0007_ö@ \u009dñDÂ_x0006_÷@¾±_x001C_\u0087R\u0092ö@±¨cù2Êö@6_x0001_]#´'ö@_x0018_Ñïàl\u009fö@:_x0005_¥\t¨Èö@_x001F_ëî¶_x001B_\u0080ö@\u0081\u008e\u0089hÊ_x0014_÷@\u0095æ^\u0084ß¥ö@6ø_x0008_þÇ\u0099ö@ÀWò1ÇÒö@_x001A_wè¡Ídö@>H`\u0080_x0016_âö@»U_x001A_=Yqö@\u0085´¿\u008cÇÙö@_x000F_Õß[ (ö@ÏGW\u0082ª7ö@N_x0013_\\\u0092\u0093_x001E_ö@\u0095\u007fÐ\u008f_x0014_ûö@k\u0093Ý-\u008blö@_x0002__x0004_\u0083¦<Úôúõ@\u0088,_x000F_É¬õö@ÖÉUL/<ö@ÞÜ\u009e1&¹ö@Ú_x0016_ ìú_x000F_÷@ðc1°\u0088§ö@_x001A_£\u009eE\u0082üö@Ç&váH\u008fö@¼Eé´\u0081¬ö@_x0017_ð_x0001_ò_x0013_|ö@\u0083\u00931ûRûõ@øÌÄäËÝö@²ôÍ_x001B_§ëö@\u0090Çõ\u008eþ_x001D_ö@üH RÎzö@â$,ä\u0081Nö@Jð_x000F_þÝ°ö@¢ÅÙö*Ýö@_x000B_¢ç\u008aL)ö@_x0014_ü\u009e×>Îö@_x0014_Ô&]Â¹ö@ü\u0084j\u0086ù7÷@3?\u0089.\u0084xö@î\u0095ì]{Ôö@A\u00936::\u0086ö@_x0003_ÒÁ@_x0001_»ö@zý$æ_x0007_ ö@\u00833ßEÑJö@§3_x0006__x000D_ýXö@üÒs»[Ýö@É÷_x0019_\u0089P\u008cö@î#Ëp_x0005__x0007__x0011_ïõ@_x0003__x000E_ï¸º!ö@!æ¶\u0081ù$ö@O\u008aÂ\u0086Ú\u0098ö@_x001A_§f\u007f¶\u008bö@\u0094gJj]_x000D_ö@}_x000F__x000E_N<hö@_x000B_1v³Ä\u009aö@n3·zÓ_ö@_x000C__x0006_\u009f¤W_x001C_÷@ù,,èªÛö@-_x001E__x0002_t&£ö@?\u00887\"³ôö@_x0005_÷l)ý_x0004_ö@\u009aðûµq\u009eö@Ò¡nïz²ö@Åºb\u0099ª_x0005_÷@]J9N¡wö@_x0017_ê_x0010_å\\\u0089ö@õ_x000E_8R\u008dÓö@ç_x000B_\u0094\u0083`\u008bö@nî\":\\±ö@÷|v_x0001_²¶ö@ü\u009d_x0011_ßîÃö@Ò£\u009aÃÂÌö@ÈPØ¦{Vö@å<B<$\u0096ö@YìyoËmö@(bØ#\u0087bö@¨7Ùoì{ö@Ln_x001F_F<Ýö@öòI¼\u007f\u0097ö@_x0001__x0002_nÈ_x0007_\u0091²\u009dö@òì|1\u0094äö@\u0098F\u0090ÌB\u0086ö@Ã\u009fÄ~Ã ö@WnÂlsdö@_x0004_oªÐÂ_x0017_ö@\u0082._x000F_ni_x001"}},{"$cut":{"chars":52584,"head":"eba2273844352a34d92d395ed442127d_x0004__x0005_¼YZ\u0080ËH¢@¾/_x001B_£_x0001_k¢@l±©_x001E_^\\¢@®_x0002__x0001_lRM¢@`¾ô_x0017_ÉM¢@ÏMÂ;pM¢@_\u0098_x0010_øÎ}¢@A\u008cÃ_x0005_¼D¢@_x0008_´\u008c¨uo¢@_¢\u0089H_x0003_F¢@_x0003_~\\_x000D_ú[¢@ PfÊÎR¢@ºÔúÖ]I¢@-\u0080î_x0012_öJ¢@¾\u008cÌh¶G¢@Ç°ÔQ_x0011_F¢@\u0080nëé0m¢@ç\\âØ\tb¢@m\u008c \u009b<I¢@Í[ÈB+O¢@;Sañ\u0097d¢@_x0004_ñÁd>N¢@_x001A__x001A_© þ{¢@\u0093`\u0081)óZ¢@wÚÁ\u0085'Y¢@¤÷\u0085\u0087ÖE¢@ÎcBV)h¢@\u0085X3G­T¢@\u008cÍ¡\u008c)V¢@_x000F_:\u009bõå]¢@À_x0018_cK¬a¢@ª7\u0095\u0096_x0001__x0002_eD¢@[ÙR3ÞM¢@Lj[_x0012_¹N¢@k¡_x0006__x000B_]Y¢@°k_x0002_¾bK¢@Õß\u009d\u0087ñK¢@Epµõ(P¢@_x0014_½R{¡a¢@ _x0001_dU&Z¢@+4_x0014_Í¯D¢@_x0006_#·$µZ¢@¿_x0006_õ_x000E_SR¢@\" _x0007_üYR¢@_x001F_vÁ_x0016_\u008dD¢@%\u008e*\u0091.G¢@Þ\u009eò¢6`¢@ô\u0087\u0098[7M¢@Ä_x0001_]³ÓW¢@ÙÏåÊðO¢@wØw\u009aTk¢@Ñ_x0008_­\\NY¢@½\u0082rØúN¢@?©\u0094î_x001B_D¢@\u0095Pq_x0011_\u0099H¢@\u0095y_x0010__x001A_\u009fK¢@_x0004_¨\u008f \u008dp¢@0CY\u0093ÖK¢@_x001E_OEn\u009eQ¢@\u0089d\u0095%à]¢@áíªÿÍT¢@ò[E\u00994M¢@<_x0006_¢\u0083GI¢@_x0001__x0003_²_x000F__x001B_oÐK¢@z¯û9^U¢@ÐË\u0081ÛvG¢@ ØT\u0085ÂN¢@_x001A_awÆÛL¢@_x0019_£I>zk¢@¥ÉçÒ_x001F_U¢@V°Ö_x0002__x0003_R¢@c²ôl_x001C_O¢@ò3AZ_x001D_W¢@ð«ïE\u0092d¢@ÈÄÄv\u0085P¢@ëD\u0098ú.{¢@_x0004_Y§F\u0087W¢@¨_x0012_ÚÇ_x0008_D¢@ÜeÉ9Zl¢@è¯´SOf¢@Ñ²tÆQL¢@\u0081À_x0004_Õ7U¢@×M¡~ÕF¢@5¥%_x000B_{G¢@\u008a¦%q7e¢@._x0015_\u0097¯AI¢@£ù½o_x001F_t¢@Ãõ~WÈG¢@~P_x001A__x0001_*g¢@BºEY4d¢@_x001A_\u009bVé_x0019_K¢@7-*VPQ¢@_x0011_\u0090eý_x0013_S¢@s<1Fò_¢@|³¿\u008d_x0002__x0003_~`¢@á_x0008_ÊÎ>M¢@\t_x000F_¬9`D¢@4A9\u0095ðF¢@6_x0016_®_x0015_6D¢@Þ_x001B_%½âK¢@s_x000B_\t_x0011_ÚL¢@_x0005_2\u009c_x0004_;I¢@_x001B_Pß\u0091kW¢@:ø3_ÓM¢@Ui\u0093\u0092_x0017_H¢@_x0010_;ô¯_x0015_K¢@9z¯_x0002_Ìo¢@â¶\u0088+âR¢@_x000E_ßv\u0088ÎO¢@\u0093_x0011_Ñ_x000D_GI¢@_x0010_*\u0081òn]¢@TP¢>?]¢@\"1 nÀq¢@ÕÊ±_x0019_ôS¢@\u008dìmm\u008eK¢@`v\u0084[fV¢@µwjÑÔ~¢@\u0098äÛûFG¢@ìä !ÞF¢@þ \u0093p_x0016_^¢@$\u009eV\u009bfb¢@¡ò_x0018__x0012__x0015_Z¢@_x0001_\u0085\u007fÔmJ¢@À§\u0096_x0017_xF¢@ ¬¯\u0093ÎY¢@Ã_x0012_Û\"[N¢@_x0003__x0004_¡\u008f]íßZ¢@\u0091Ve_x0002_óL¢@@f_x0014_Æõf¢@[{´²KD¢@Ão9\u0096_x0002_D¢@\u009eIo±dF¢@ûô\u0081_x0015_MM¢@\u008d\u009e\u0089?ãQ¢@æ¸§!zJ¢@É·A2\u008bK¢@§T_x000D_\u009cß`¢@Ç\u0085úXmQ¢@¬_x0008_Úµ(W¢@,Fk\u0081¯G¢@%v«\u0092\u0099T¢@\u008c\tãå8^¢@±F_x001C_ O_¢@_x0010__x000B_\u0080Z_x0003_\u0087¢@\u0095GÚÍÊc¢@ñèË_x0014_ÕM¢@CìBÃyT¢@°Á|_x0018_\u0093n¢@@zÁ_x0001_±Q¢@à·ÝýÍJ¢@\u0080_x001B__x0016_ô+G¢@T\u009e_x0019_pqD¢@\u0098¹\u009c\u0093_x0016_U¢@:\u0095_%_x001A_T¢@_x000B_Y«ó\u009aK¢@³¹©HDi¢@çv\u008cioN¢@ÅÃ²×_x0001__x0003_\u0082G¢@_x000C_öã\u0085xV¢@{mõ_x000C_È\\¢@Ú«W¡ÉW¢@&°_x0002_HÜ]¢@\u0088Þû`ÚD¢@_x0007_ªì\u0087_x0003_H¢@_x001F__x001D_Dd¢F¢@rl¹ºpP¢@\u0098FCL_x000F_K¢@â¬@º\u0087S¢@\u0097DwÑ!K¢@Ob^?\u009bz¢@Êx$7?Y¢@\u0080îó¾-J¢@:1!aB\\¢@×@\u0086Pba¢@6àKV\u0083m¢@H/_x000F_Ý\\e¢@$_x0001__x0011_Z\u009eM¢@ReÊ¯_x0006_Y¢@©dalèZ¢@\u0086HB\u009a_x000C_j¢@OÍ¾¦\u009bY¢@\u0093±ÖKÑH¢@y\u008c½\u008d|N¢@Ô=ºR_x0006_L¢@d\u00926\u008eæY¢@FÉx¢_x0007_J¢@p\")N\u0099b¢@àv_x0014__x000C__x0013_H¢@_ì0>ªD¢@_x0001__x0002_ú{pÚ_x001B_K¢@¡U\t¯\u008ah¢@áÛY\u0083\u009fF¢@Ä<$ÿ]k¢@v\u0096¯_x000C_ÎE¢@ôY`»\u008dR¢@_x001B_¹µ_x0002_ËD¢@QÜT!QG¢@\u0096Be¬=b¢@F\t³ÑzI¢@=!3÷Îa¢@[_x001E_dÁ.F¢@_x001B_5w!_x0017_Å¡@P_x001E_O¿õ¥¡@_x0005_`ù¶ÇÚ¡@)ujÕ_x0014_Ï¡@a<@\u0084\u0098Â¡@l_x000C_×H¨\u0097¡@\u0096L£_x0006_ío¢@X_x0004_V`§¶¡@o/\u0090\u0095ù\u0086¢@ìæÀù\u0099©¡@\u0093©\\üäÕ¡@_x001F_åxÝþÐ¡@YX_x0015_k_x0011_Ç¡@_1ãq% ¢@uuä¾j¤¡@Ôægé\u0085Ý¡@B´I¾½­¡@ì:´¦çà¡@\"Ö_x0013_\\|î¡@ý%¨\u0081_x0002__x0004_cø¡@_x001D_aÖ\u0080òÂ¡@â$_x001E_\u009d_x0001_\u0081¢@rÔL¡y³¡@b±ü_x001B_%Ð¡@e3Xº_x001E_k¢@=¼Â¿\u0080ö¡@2v_x0003_%L°¡@òÉI(_x0017_¼¡@c£_x000B_|9ç¡@|\u0088*2R_x0004_¢@3¤¼Õ_x0019_#¢@ù:_ñ\u0083Ö¡@K\u0090ÿ@Î¯¡@H¬[\u0096¦¨¡@:iA¼_x0014_=¢@\u0086åî+°N¢@_x001B_\u009cÚ\u0089ú£¡@¦\u008f_x000D_g_x001F_©¡@\u009aì,¦}\u0099¡@â¾µHý,¢@¼_¶_x0007_?¤¡@§_x0015_\u0080×*À¡@\u009aµY0\u0084\u009f¡@ñoð­\u0087ô¡@A¢&\u0098õ\u0097¡@[Ú\u0082ü¤C¢@8±\u0080¸j_x0012_¢@y_x0017__x000D_ý\u008bæ¡@×ðF_x001C_Z\u0083¢@ðÍúá_x0018__x0010_¢@½¿_x0002_«EJ¢@89_x000C_f_x001F_ÿ0Ñ¡@¤F·Ù¤\u0099¡@Ú_x000B_3}J%¢@Æî¥Ë®±¡@_x0001__x0002_88_x0002__x0002_88_x0003__x0002_88_x0004__x0002_88_x0005__x0002_88_x0006__x0002_88_x0007__x0002_88_x0008__x0002_88\t_x0002_889_x0002_88_x000B__x0002_88_x000C__x0002_88_x000D__x0002_88_x000E__x0002_88_x000F__x0002_88_x0010__x0002_88_x0011__x0002_88_x0012__x0002_88_x0013__x0002_88_x0014__x0002_88_x0015__x0002_88_x0016__x0002_88_x0017__x0002_88_x0018__x0002_88_x0019__x0002_88_x001A__x0002_88_x001B__x0002_88_x001C__x0002_88_x001D__x0002_88_x001E__x0002_88_x001F__x0002_88 _x0002_88!_x0002_88\"_x0002_88#_x0002_88$_x0002_88%_x0002_88&_x0002_88'_x0002_88(_x0002_88)_x0002_88*_x0002_88+_x0002_88,_x0002_88-_x0002_88._x0002_88/_x0002_880_x0002_881_x0002_882_x0002_883_x0002_884_x0002_885_x0002_886_x0002_887_x0002_88_x0001__x0003_8_x0002__x0001__x0001_9_x0002__x0001__x0001_:_x0002__x0001__x0001_;_x0002__x0001__x0001_<_x0002__x0001__x0001_=_x0002__x0001__x0001_>_x0002__x0001__x0"}},{"$cut":{"chars":54642,"head":"348bdbc9be00240a86f5eb0eda6979e5_x0001__x0002__x0010_dåÖòõ¡@¦l_x001D_×_x000C__x0016_¢@û|_x0012_X\u0090A¢@_x001C_q\\\u0091Ëo¢@\u0084Ìx_x0014_À\u0094¢@\u0082\u0094¸G©A¢@ÓJ_x000B_w\u008cj¢@_x0017_Æ9«>6¢@_x0019_LÁµøñ¡@ÓÏ{ô|,¢@;\\\t_x001C_x\u009d¢@\u0084p\"È2J¢@\u008fu\u008aAÉÇ¢@B:\u0094§^_x0010_¢@yÖÿ\"_x000B__x000C_£@\u009cÓiW68¢@%´\u00991£_x0005_¢@*©,#¢_x001C_¢@\u008b?Ïcy)¢@¬ö¯*{å¢@Ë±\u007fBÿÙ¢@§!±kU°¢@\u0084Z_x0006_ZÛy¢@_x001E_\u009e¥òfó¡@Í_x0008_(CªÉ¢@ÐAZ\u009f\u0092a¢@t\u009aü_x0018_:í¡@d>CÅD_x001A_¢@i\u007f-h$õ¡@°¾¥_x0014__x001D__x001D_¢@ê¾$dÚ_x001D_¢@×)m$_x0002__x0007_.}¢@_x000D_5f_x0014_¡!¢@jDC_x0004_BS¢@ùt\u00971Þ+¢@+ØÅLÊ_x0019_¢@¯=BpØì¡@_x000F_-_x000B_Eâí¡@_x0016_ný¯\u0081H¢@_x000E_eî\u009d¼ô¡@X?ÓCÂ.¢@Ã_x000C__x000D_\u0098¥@¢@º~Ð=_x001F_Ð¢@\tÖÕ«Ë¿¢@ ÊÉRà4¢@dWó±3¡¢@Å¨·_x0012_Y_x001F_¢@a±ÙßÕÝ¢@Cò_x0005_K³ø¡@}\u0094ãMD\u0086£@@~ã_x001F_\u0086B¢@^¢)|¿ê¢@ëÔ\u0094®ós¢@ËþòYD_x0004_¢@`_x0007_/=ré¢@89JÅ;\u0084¢@\u008bãÈ\u008dû_x0002_¢@Âý_x000D_é<¢¢@Ô_x0004_(_x0003_Cl¢@_x001B_CJ__x0018_,¢@\u0091æ\u008fða6¢@ \u0097_x0006_æ[(£@\u0097[_x0001_Os_x000B_¢@_x0002__x0003_X¸º_x000F_Õó¡@¯,rË©:£@µ³B\u0090\u0093=¢@L_x0001_Y¥.é¡@l*_x001D_ckè¡@þ\u0087üZ_x001C_s£@*¶¢Û#ò¡@þ\u0097·ùh_x0001_¢@øÊ@\\_x0017_ø¢@u>_x000C__x001E_yÞ¢@\u009f\u0090E_x0019_Õu¢@C0L\u0096Àð¢@8Wà÷!í¡@gL\u009c_x0004_ú\t¢@Í_x0014_a\u008ckü¡@\u0095ÁºõC·¢@æ\u0085Q«ãz¢@_x0010_üB¼´ü¢@k^îk)_x0002_¢@cËvUÛq¢@ÁTO\u009clË¢@£å:_x0017_ì_x0011_£@¦¥Á©\u009am¢@\u008aÍ\u008fb\u0083_x000E_£@{Ã´\u008f\u0084ð¡@\u0089X´%\tG¢@|'_x0002_Î¦4¢@{_x0003_õ2\u0086´¢@_x0008_Tïõf/¢@¦>×!&9¢@óK\u0087Ùs(¢@YÿÎ1_x0001__x0002_M*¢@j\u007féèÏÁ¢@\u0081:\u0095_x0016_ÇU¢@ÅRó9§þ¢@Ø#WèEb£@m_x0008_,¯_x0007__x0006_£@æ\u00867³>_x001F_¢@´Z^_x000E_\u008d_x0010_¢@X\u009e[*ÔÏ¢@G3±\\ò_x0006_¢@äÄ_x0006__x0019_uø¡@V®L¥4ò¢@T/\u0091_x0003_Ô_x001C_¢@Dù\u009fÖ°J¢@Y¼W\u0085_x0012_©¢@>_x001B_P,÷\u0092¢@Õ\u008fè¨p_x0008_¢@¾\u00881 E'¢@èpþo¤\u008e¢@Õ\u009b£)_x001C_/¢@ñòà\u0091@\u0096£@ÈE=ÛÐW¢@_x0017_e\u0096\u008d_x0008_<¢@²«¨4³«£@[\u009aïàm1¢@Ö\u009d\u0085¼\u008cî¡@ð_x000E_¡_x000D_fÄ¢@Î­C\u008aä]¢@µ_x0010_éî_x000C_ë¡@Sw¥@\u0086=¢@_x001F__x0013_>yÄ\u008b¢@¬ezÎ\u0094ä¢@_x0002__x0003_ÓÅÂ_x0017_\u008b®¢@Ø0\u0094þ9ì¡@ºjJ\u009f_x000E_4¢@È\u009d\u0083Ú\u009d\"¢@Ou UÕs¢@èÍµ­Z\t¢@_x000B__x0015__x0018_U\u009aú¢@à_x0003_¹{ô_x001C_¢@_x001D_5\u007f\tO\"¢@K_x0005_a\"_x000D_{£@\u0099´¦zJ'¢@ª8S_x0014_\u0087f¢@_x0019_qºæ`ï¡@Ò\u009e_x001E_0è\u0098¢@'\u0091*äÅ*£@&¯\u009b\u0094\u0084L¢@_x0004_èîÃn\u0085¢@Dó'­)ê¡@N\u0086_x0006_î··¢@Â²wÇ1L¢@)/±$_x0007_\u008f¢@Ì_x0017_Ã©Qê¡@ÝaéW¥_x0013_¢@_x0005_Iït\u008e@¢@ë\u0088¹C®Z¢@Ý_x0005_w\u0099w_x0006_¢@_x0014_\u009bnù\u009a\u009f¢@¹_x001F_yL_x001D_P¢@_x0001__x0001__x000C_P16¢@ñ\u0087Ul·ò¡@_x001D_\u008eZ6|J¢@\u0091ç\" _x0002__x0004_Lê¡@\u0094\u0093_x0010_qëé¡@âï\u009b\u009fë_x0004_¢@_x0014_\u0087_x0002_<¬\u0093¢@\t¬öµ=_x0004_¢@\u0086\u0081\u0093Ì\u008e\u007f¢@I\u0093%íól¢@-÷H\u0086ê~¢@©ü­lty¢@ë_x0018_×åP_x0003_¢@ÏsL¯_x0010__x000B_¢@)Os_x0014_Ú ¢@@4?_x0011_eó¢@Ae_x0019_û»T¢@è\u0090xÂ¿I£@ÑÍá2Âx¢@\u0083ÔAÞü{¢@z5B5I(¢@gà±©ë_x0001_¢@ :ÓÇÑ_x0003_¢@a3y\u0084üÒ¢@·Ç_x000B_\u009f5j¢@g\u0086_x0001_v[\u009b¢@Ð/õè_x0001_³¢@÷ª;Æ\u0097_x000F_¢@¦B_x001F_ÂÄ\u009c¢@\u008e_x0008_Ô\u0081=ù¡@o£_x0005_`Ün¢@Ë¤Öúþø¡@_x0010_\t_x0002__x0014_ø_x0011_¢@_x0016_\u009f\u0082 ú\u0097£@\"\u009eëùd ¢@_x0001__x0002_gOTm2_x001B_¢@j`­]:K¢@ü¼_'¼\u0089¢@¬`skj¯¢@x.\u009eÚ \u0097¢@d_x0002_\u009dÎ\u0085_x0015_¢@»\u009a±á_x0012_®¢@Xæ\u0096Äe@¢@®U\u0098¼e_x000E_¢@£.¨³Ì ¢@½#z:­ñ¡@ïX\"5AA¢@\u008a»Pëbù¡@_x001D_aLÖ3E¢@,0\u0080°\u009d¹¢@­_x0016__x0008_·0,¢@ÑIÀÅg\u008d¢@À_x000B_Æ_x0010__x0002_¦¢@éS9_x0011_`m¢@²b\u008aÍèB¢@Ú§\u0091_x0001_øb¢@\u0087&\u008e_x0013_Íi¢@xçk²\u0081ù¡@_x001B_R_x0005_ØHJ¢@ë±E¶_x0015_¤¢@\u009b\u007fbZÜ(¢@Dyw&Vp¢@¦ãÚ\u008b`A¢@A\u0088_x0002_Å#_£@ãÕ·\u0087Å_x0006_¢@Q+uþ%_x0002_¢@_x0010_Õ=á_x0005__x0007_,;¢@\u008fâ¶jàÖ¢@®\u008eVÚÒ_x000E_¢@ÂÁ^b_x0001_ü¡@9m_x0005__ÕÌ¢@_x0002_8j±_x001B_N¢@ L\u0082¶Þ`¢@Ú>ÿ1P\u008d£@H_x0014_½_x0003_#¾¢@Ä¨seX\u009c¢@m\u0088b µ_x0004_¢@7B»Q_x0005_'¢@íÁI_x0007_J`£@Óp\u0082_x001A_% ¢@29:T¤1¢@Y^¯\u0088 _x0012_¢@@\u008a£×ß_x000B_¢@]\t¤¼Å\u0088¢@îÞNê3_x001E_¢@m¨ß\u008fVX¢@|Ö\u0080¬u_x0003_¢@<Æ¡_x001B_Øb¢@ã_x000B_;ç¶2¢@_x0006_ê^Eªõ¡@4\u0090aBíó¢@êßÂp_x0004_+¢@\u009e_x000C_Ï~_x0001_R¢@;]r¯¾®£@çs_x0011__x0010_ì\u0092¢@ëÿýÏñó¡@_x0018__x0004_©\u0094_x0019__¢@î\u0086¹èÞ|¢@_x0006__x0008_à_x000E_\u009c=ã\t¢@ýHÊW_x0008_x¢@zà(èI\u008d¢@\u009f.ñ{d)¢@$¨ÈÑÏ}£@¤\u0083\u0081OP­¢@fkö_x0004_Õ0¢@PÒî_x0001_\u008bí¡@ïû_x0014_ÐF_x0002_¢@])\u0094ö`P¢@´_x0016_|òOW¢@÷~¡_x0013_NÐ¢@_x0018_\u009b_x0011_ÉHL¢@xdµ\u0087´T£@_x001B__x0004_Ç\u0094_x0013_}¢@æwtÅ_x001C_\u0098¢@|\u0099(\u009dø_x0014_£@P\u0089°\u009eS5¢@ð_x0004_#¦1_x0013_¢@®_x0016_X÷>_x0005_£@hYí_x0003_Â_x0004_¢@_x001E_9Ü1ÁR¢@Úc4«Êþ¡@a¯­ê|o¢@_x000B__x001E_\u009a;:¬¢@{_x0010_\tÍÐæ¢@ d_x001D_ðMz¢@ æÇ\\\u007f_x001E_¢@²y_x001C_d_x0002_7¢@$'{\u0085_x0007__x0019_¢@6¯¿\u008eâ*¢@®Ws5_x0001__x0002_n_x0015_¢@©xÖS_x0012_a¢@\u0096\u009bf¶_x0015_w¢@®Ã¸ÞWé¡@_x001A__x0016_§`\u008c_x0006_¢@òþ«\u009ap_x001C_¢@ï_x000E_â\u009c_x0007_ù¡@\u0080j_x001F_\u008cç_x0004_£@OZµY`_x001B_¢@_x0006_|\u0091¾+C¢@©õ8³»f¢@ iª_x0018_}Y¢@Ê\u0091×Ä1D¢@¸,O!vè¡@h%Gò¦\u0088¢@ÍÇ\u0083Ïì_x0011_¢@_x000C_a_x000E__x0008_!\t¢@d_x0016_\u0094\u0083Tf¢@Bz\u0090ýGq¢@\u0097\u0094yØåª¢@ø(à\u0088B²¢@\t_x001D_8»ìº¢@,cß\u0095Þ)£@"}},{"$cut":{"chars":51426,"head":"83d7b166366687cf608ed58742dde736_x0001__x0006_eO_x001C_±Ïðß?Õj¤¥3\u0097æ?Êa_x001A_Xð_x001D_ê?\u0080ð\u0085ç3Xæ?_x000D_i*_x000E_\u009dçã?Õ+ErºÉê?ðÀD»U\u0088ç?_x0007_øB_x0005_ñ¾é?¢¬Ct¹°ï?;9Â\u0096Í¤á?m_x001C_6Ò_x001B_\u0080å?ÐU_x0010_bÓ\"ç?\u0095Öm_x000E_ïþß?ªÿ\u0095\u0082²yë?¼a\u009ceªëí?ÌãÏ{#Oç?b&ó\"Ovì?[²\u008dU§9æ?_x0003_ÂL»\u0086_x0004_ì?ô\u0094_x000D_\u0089=ìé?ÊÎ_x0015_Òà\"î?&3Ñ_x0002_x\u0090ì?\u008e_x000F_Wew_x0018_å?H\u008b\u008d,9dæ?BýÿìTCå?\u0085øz_x0005_Î_x0005_æ?$³P_x001D_°Nß?¯sY_x0016_\u0084¤ä?q\u0099Ù_x0013_,¡è?ª¢A\u0088õcå?ØÜ1\u0092\u008f±í?vÅAD_x0001__x0003_Ò_x0007_ä?\\m¼\u0092±Óê?W_x0005__x001E_ÉÊ¡ì?èúuÜ_x0012_/ß?¶4_x0002_¬*\tÜ?Ï_x001D_WJf_x0003_é?à\u007f\u0089:#_x0004_ç?\u0095_x000B__x0019__x0014_þ_x001A_ä?\u009f#Zã~éç?j\tÙ/_x000D_sç?\u0090A¼?\u008b\u009cë?\u0088ÓÐYoXÞ?ÌÜO÷háí?­a>)\u0086hå?¶³i_x001B_Ä_x0011_ä?_x000C_$ø\u0099Ö_x0010_é?¯\u008bknÂðâ?ÁkVP$)ê?\u0097ùùGôçæ?I¤è_x0004_ñ\u007fÞ?_x0010_½&Ýl'è?\\ßY_x0008__x0010_Wè?hWj_x001A_aÕè?\u009cÿ|_x0003_3Õé?lô©í¡\u0095ã?I<Òµ÷-á?\u008cøô¶Ì_x0002_è?â¢aÃ?áà?>®ºtÄ\u0085ê?_x0005_\u009bùÉË9Û?òI\u0096\u008f\u0097úç?\u009c9è\u009e®'í?_x0005__x0006_~\u0097_x0014_ÅÌ8é?V2w#\u0092_x0006_ï?(\u0094ª_x0011__x001A_#í?è©wÜ_x0011_gæ?å>\u0091KP_x0013_ê?F_x0017_\u0099tµ;ã?V#<\u0080_x000F_Õà?¬¾nè¬Wå?-\u0087÷W²rä?_x0004_Óã¬:\u008eí?ºÏ\u008dðpWÛ?_x0008__x0005__x001D_w_x001A_Xè?Òæ¨Î\u008béì?\u0087\u008f\u008a_x001A_Q\u0087ë?_x0016_·\u0085¯P\u0089æ?ÚUý_x0001_ø\u0085å?ÈÁÈK||í?¾\u008d\"µ5Hé?_x0001__x0003_Ip_rå?\\5«_x0018_IJè?\u008fö_x001D_>Wyë?HSã50[ã?æèG_x0014_ï\u009dé?@.¹®_x001A_ïê?_x001A_\u0092@ï_x0002_Ææ?9ô¿OÂré?_x001D_Êhú\"®ß?x^æ:_x001F_\u009cã?_x0008_\u009fWÔ*_x001A_Ü?Ì\"ç®FBå?ñ\u0083;Fj3æ?ð;\t¶_x0002__x0004_-_x001F_æ?\u0081\u008cV­ÀZì?Ru¹&\u0098;é?péÇ\u0084¯óå?Tfâf[_x0002_ä?|P8_x0012_þ\tÝ?|LòÊeåí?_x0010__x0015_\u0096_x000B_Mnå?,Ãeú_x000B_jè?_x000F_gÈI1ýä?UÐøÐ_x0010_rç?`\t£\u008aÛ±ê?\u0096(øæx_x000B_ç?;Jõv[\u0093æ?)É\u0096\u008b_x000F_\u009cè?ÎM÷(Úué?\u008c¶\u0084¦ÝFå?¶Ã®_x0019_z6Ü?y\u0096p*Djë?R\u008b[D\u009f\tè?64ü\u008d'Cæ?_x000C_©ÑÎ»8í?ê\u009a Â_x001A_^à?°d<5e_x0003_à?îcpfClî?íg¼õ\u0088Åå?¼Ú_x000B_o\u0090\u008bê?ØSÓr\u0098Xì?çáV\u008f{_x0001_ë?Ó°_x000F_ÏB?ã?¸ñ\u0089\u0090ô9å?0å¼b\u008fNÜ?_x0003__x0005_\u0088{×M\u0091¤æ?3=ÃN_x0007_Sæ?Tµ\u009eÓ¯Hã?i\u009e\u009dýÛQì?ÌÓT\u0091æ¿ä?\u0080\u0093Î\u0088_x0004_câ?ü×ø_x001C_Á0ç?\u0092m¹\u0085ÄØé?JN\u0088U^\u0084ì?ÄV¸[p]ä?L´\u009e¥ýmé?~_x0001_9_x0016_Ò¨Ù?;_x001C_Q³_x000C_¿ã?Î»×\\« ì?d\u008a\u009f«_x0012_Yê?Û_x0008_¨\"?ëè?þx þ\u008fÉá?_x001A_sÛ_Îÿé?Õ_x0002_ç\u0098t_x0008_è?_x0002_6_x0005_Àó_x0015_ç?D\u008fóY-$ì?¨\u008cÌX¬\u0084á?qÖ+(iGã?é§\u009e¯¨øê?¢5XY17ã?_x0001_Uúxo_x000E_ä?8\u0081¡_x0010_I-ã?S^b±_x0010_°å?qW»ý9µÚ?_x000E_$³\u008a®õå?_x0012__x0015_G_x0005_\u0087Xé?\u0088Æ\u0089/_x0001__x0003_0Þé?8_x0016_5\u0083a¯ì?¬_x0012__x0017_1\u0094bã?Y\u0088É_x0008__x000B_\u0091î?&¾_x0013_{\u0087\u009fë?ù¼_x0012_'W\u008aè?_x0012_êP}®¼Þ?:è\u008agÃié?Ø\u0088ûVhÎè?Òxw\"\u0088Ïç?d¬0a\\´ä?lÀÞÁ¬aÛ?m\u008dýA]\u007fç?\u0083õ_x0019_¼Ù_ä?Þ¢#C\u0091Îã?\u009b*_x001A_WBÎë?Ù_x000F_§#§!í?_x0002_$Aö½_é?ý\u009d\u0093\u0097\u0085òæ?RÌïù\u0087­ê?ÍÓ_\u0092v_x0010_ä?_x0018__x000C_\u0082KÙ\u0092ç?\u0092Ðà7Û\u008cë?¹_x001D_¦\u0093ÀÊç?äô]_x0003_Ð_x0013_æ?d\u009b\teþ©ë?ïZ\u0084l\t#á?\u0084_x0001_g~ß\u0093è?^pù+\u0092Sê?­,ó½¼ìæ?\u009cl\u0091 ítç?\u0084ç_x0015__x001E_G§í?_x0003__x0005_¾³\u008fK\u009bÝé?ÜÅ_x0015_\u0086y«ã?>\u008dÕ@~wç?-c_x0010__x000C__\u0082å?\"ñ®IuÂá?4z2_x0013_ªðé?\u008d\u008c4\"\u009c~â?Õ'Cv$\u0094é?º_x0002_ªè\u008a\u008aï? /ÅX·_x0004_ß?¨²_x000D_zÿ%ï?_x000F__x001D__x001A_Ð_x0002_úã?l_x0013_,_x0011_xzä? _x001C_»öz_x000F_ç?<¯9_x000F_ÚÁå?ó\u0095_x0008_ã,oê?_x0013_\u009cylò\u0082æ?ÄVï§_x001F_yã?ñÂÀÒÍHì?c³j\"­\u0093å?J_x0010_@Ánóà?:§_x0008_vÛöè?(å\u0082g\u008b Ù?óa\u008bÒÁ\u0081Ý?DË¸§\u009f+ë?ÉviI5aè?à)A\u0096\u009fLå?ÈR_x0001_pa\u0080ê?\u009a_x000E_õI_x0010_Kç?ÛÚ_x0015__x0012__x0006_Èç?&^U«²Cà?\u0098Ì_x000E_¬_x0005__x0007_&µÛ?4Õx_x0014_¨\u008dç?j1#pºVæ?_x0010_Jê$Ë_x0004_ê?öæ\u0080 íûâ?éÎ¤YmÑÝ?\u008a\u008e_x0012_h_x000F_Àé?Ü×\\_x0013__x0019_éé?_x0007_(ûSá°ã?¦_x0019_\u0084É_x0011__x001B_ç?TL|¦\u0098_x0012_ç?¾ý\u009c/T\tí?fýkk'_x001B_æ?ÎRjÄ_x0002_Õî?ª»Us\u0080¹è?äðÃ\u0085ê_x001D_ã?\u008c_x0001_V8y¶å?Z\u0081ÚÆ_x0003_¿è?xú;ÜHËã?`8UK\u0097¬è?_x0008_\u0099ñFp/å?åÓþ\u0087a;ê?B_x000D_Éðø\u0095â?Ðá²©ªÉ×?/îÒ¿\"Íæ?xs_x001A_åtäç?©Züíî¦ê?(_x0005__x0019_#OÊè?:g\u0083;s_x0006_ã?_x0004_\u0098\u0080_x0015_1_x000B_è??½_x000B__x0017_aàé?HZÍã_x0008_-Þ?_x0002__x0004_w_x0008_U­R»à?ûv'_x0003_VEä?àÜÙ*þ_x0001_ã?ôç]\u008f\u0083_x0003_ç?)á\u0093¬ª_x000D_ç?u­pÊ©±ß?î?O_x0002_¥ªê? Ï¢X_x000C_ùê?ãÎÑ³_x0002_\u0096Ü?÷|4°ò\u0097á?Ls=þí\u0090ä?^«_x001C_Í÷£é?ê<Æõñ0æ?\u009b}_x0019_dÝÄå?\u0097_x0008_ô_x0003_4\"æ?òcþK±\u0085í?\u0096ºÓ\u009d\u0087_x000C_à?_x0006_\u0088Ë<¦_x0018_æ?:[[Y'´ã?`ìuôÜ=Ù?D\u0093n¼$Vç?qð_x0011_ª_x000C__x0016_ä?8_x0010_Ý_x0013_ßúí?\u009dªVxy¦å?Ø<9\u0092\u0097Ûã?üê»ç¡tâ?Ã¿¶_x0006_ª\u0091á?N\u008aßÙ±úå?x%_x0006_STáá?ª_x0005_gì_x0012_Râ?ZPu®Jøå?ýÄ¸_x0007__x0002__x0003_P8ä?\"_x0013_\\ðæßë?_x0003_¨W\u0082Cïæ?iÝê&t\u0090ë?_x0003_RÐ_x0014__x0003_¦ë?y_x0011_<ßq\u008dç?^\u0095\u008b'Svâ?¤#ãH_x000E_Oå?¾yxó´nç?5_x0004_Rî#µë?°\tMî,3ä?d\u009ee\u009f îá?\u0082Ü?/ï:é?2¼`|æpä?ÀÉ¶w_x0001_Rç?Ðoö\u0089B×á?ævÛtô³è?\u008cÎÀ­õ_x001F_é?,ú\u0092_x001E_I!ç?\u0084Ê_x0018_\u0086%TÞ?-_x0014_AÜ\u0086ûå?\u008bN'_x001B_áÍè?snªÔ_x001B_êâ?ÌÒ\u008a\tã¾à? (_x0016_\u009ff\u0081ä?pUÚ§!¬å?*ZÁFÂ_x0013_ã?\u0086\u0087jÑd¯è?ÄEÙ*#cá?!öºÄý_"}},{"$cut":{"chars":51786,"head":"60793c4033d2e443f4f75dc95ccb7572_x0002_\t_x0012_vD^=]á?\u0083B Ñ-_x0003_ç?ÒE^N_x0001_ëã?w°=\u0087#Ñæ?pe±òÍZà?è²1¢R\u0097â?\u0082_x0005_Í^x\u0088å?\u0086V½_x001C__x0018_gí?\t¿3\u0097Èoâ?\u0087È½Ôxôè?fÂ_x0013_Ãliè?q\u0086M_x0007_\u0095·ã?_x001A_<Ó\u008d_x000E_·é?_x0013_\u0092Ðù_x0018_$æ?äÌþ¨_x0010_Bé?=\u007f#_x0004_¨\u0094è?~\u008b¬DØlê?.ßÔ\"+¿î?´hW¿\u009eLâ?ìT]\u008eó_Û?\u009eÁ`ÿùdâ?Ê/ó\u0098å;ë?ÄÃ_x0012_ßV_ç?èÈÓ\u0086_x0004_\u008fë?Àq\u0086\u0085I\u0083ì?Èg»>\u009c æ?\u0093®ù\u00802tê?_x0006_gnw_x0008_Âç?&©(â²¼ä?\u00931,¯Ååå?÷ÐojÆYí?³)er_x0001__x0003__x0005_¾è?´¿Ó¨nÂå?Fz¬Ò_x0008_\u0095ã?_x0002_êÕ²ªýå?\u0086á'»_x0007_»Ý?+ÈBÁ4Oê?ð'0]Ö\u0080ë?®iÎÜ\tEì?Ø\u0080ujÉjæ?\u0086|_x0013_Jõ_x0017_é?ÿ\u008f_x0014_ü_x0005_Wà?\u0094v_x0007_¤G\u009bå?dÆºfäôç?ôi\u0086ú@câ?D\u0089«!y_x0011_ã?ê\u008dÝUà!ê?Áâµ0\u0090pÞ?>²®Ö5¿ç?_x0007__4éyëâ?aM~\u0099kÒì?_x000E_I±Ò\t\u0097Û?r\u0098ô]\u0091ìì?\u0086\u008b|_x001A_Ñmë?£õÇ\u008f_x0002_îâ?¬9ð_x0007__x0014_Êæ?&_x0001_·÷ÿ_x001B_ã?_x001C__x0002_ÀÌÙcä?\u009b+]SD_x001E_Ø?>¶\u0085ù>¢ê?oÒua·4å?ëáHZ_x001A_oê?2ß\u009a 2_x0003_é?_x0002__x0007_H3ãõ_x0003_\u009cä?9__x001A_ù\u0086Üß?_x0019_¥5_x000E_ï\u007fä?ï]^®ÇÞæ?\u008c\u0093Ü»îGà?_x0006_æ{Ò\u008dõê?æõ\u0085Þ£¨è?_x0007_úÊQîÑé?¬:ñ._x0017_Èé?@ñ¡³Æ2è?HïæØÜÒâ?5^3_x0007_2<è?%^]ç_x0001_÷Þ?t_x0011_ÎÀwÃè?\u009aÌ_x001D_9ó_x0011_ã?¢\u008dúèA¥á?\u008a)_x0012_¿Töæ? /\u00821S!ï?ðæ|%pèâ?ö\u0091Ú<G|Ú?\u008eÏkGÑ_x0005_í?)Ê_x0010__±Tç?h6C¶÷_x0015_é?\u008eßÀx¾5ã?uÝh6_x000C_»å?DôË·b\u008eì?Ååª~¦¼Ü?\u0092ð ¦Ì£á?Cg_x0004_ö\u0099)æ?Ù¤Q_x0010_\u008dSé?\u009d.p\"_x0005_\u0095í?\u009eS7_x000B__x0002__x0003_Î¼ì?z\u0093d_x0019_~(ç?T[»¶_x001E__x0016_ß?\u009b_x0015_A·ùPã?J%_x001F_ÕÍ¦æ?H\u0085Å\u0098_x0004__x000C_à?p×c_x001E_þOç?_x0006_÷ÛÉN_x001E_î?_x001A_øÖ:_x0014_âí?*ûDmu>ä?uø\u009b_x0018_z&è?yÇ[=J\u0095Þ?à_x0016_\u009cñbrå?_x001A_:¼á\u0096hë?¦Ar_5¦à?\u008c6¥_x000B_\\Úá?ÒdvÃ_x0001_ å?öBzSøiâ?_x000C_æ\u009d=Þ_x001D_æ?^Ïì÷M;ê?<\u0098êðs°ë?¦¿]íð_x001F_à?B\u009f(Q«%ã?®â_x001F_\u0095ØGå?_x0012_õ]_x0005_\u0091Òä?\u008beT\u0091_x0011_ÚÝ?\u0088\u0094SU_x000D_¶ê?¤Ý¿ñðrë?_x0003_\"uj¥Àï?hcÃz³\u0095æ?ðód$Gßà?¹_x000B_Q\"\u009cÕå?_x0003__x0004_;\u0087²nÔ5ç?ó8\u0081Uý?â?µoñª¥_x001D_å?º÷§P¶ìî?:+\u009f¦\u0088ké?_x0001__x0007_­_x000E_\u0097àë?_x0002_\u0090X^ýzá?\u008eÀåH\t.Ú?D\tp7¸Ûà?Ì\u0084jáõ~ç?\u0092«çXnQè?¹N_x0015__x0016_\u0081ýæ?_x0017_í_x001E_«Ån×?ôu>-gÁê?ZËL\u009eÖHâ?ªL#Qc\u0096Ý?~Èè\u0082º_x0005_Ú?Ó\u0093¶,³£è?pRX\u008d\u00973ç?_x0016_:H\u0089#Rí?ð_x0004_Ðå2¸å?ì0HÌc9Þ?_x0010_\u00872_x0012_Çûå?ø_x0013_e_x000C_\u009a>à?¸_x001A_\u009d¸q<ç?\u0083ø_x0012__x0016_Ý^à?8â#AÞbë?@û\u0092)r é?£$uý+<ì?\u00864_x0008_<\u0091¶á?\u009fî]_x0007_\u0090jì?²N\u008dô_x0001__x0002_®iç?\u0081_x001F_ ÝCWê?%\u008c\u0081¤±Oå?V_x0010_¦Ã\u0086>í?@jj\u009b\u009bCà?§ÁÍ\u0085_x0008_Eí?ÃMz\u008fB®ì?n_x001E_q\u008e Ýç?_x0007_\u009e¼±¨\u008cá?j\u0095!\u0096G\u0099í?ùw4_x0016_òxí?¹Th_x001A_]­ê?HAqÄÕSã?\u009e¼^½¶+æ?²#_x0008__x0015_¢\"ë?<_^g/Èâ?Ø_x0006_q_x000E_5/ç?@->_x001A_îjß?¬ê:é _x000B_ê?\u008dl}hªáç?¹Ó\u007f_x0019_Õ\u009aÚ??å\u009cølââ?JWüï«\u0096å?\u0096_x0004__x001E_Ï\u008c¯ç?¤_x001B_Øóö(Þ?ÒÝFÔ_x000F_\u0099ë?E\u0080ÿ\u008eÞ­á?Êj®[I\u008dí?vóé_x0011__x0017__x0002_ì?_x001C_R\u009d¥z_x0013_ç?\u0092®_x000F__x000B_²Wä?6<2\u0095\u008a\u0093æ?_x0004__x0005_MÀ­¥_x000B_!í?J_x0011_³È©(é?Ì¹ôº¿(æ?®¸_x001F_f\u0098Áæ?\u0090¥X\u0091_x0002_6â?%_x0004_q©\t^ã?\"[_x0001_pÛTà?+_x000B_õhîòê?M_x0005__x0012_|\u0089?â?£û½ÝRÔà?Rò\u0090AÐ_x000B_ã?_x0012_¤_x0007_h`Jí?â\u0091álðëí?\u0080Q[k¥pæ?f³_x000F_Õ¼Hæ?ç_x0004_¢wvÁê?\u0098w5l\u0080íâ?äk <_x0011_\u0085ç?¶_x0015_@\u0090Î\u0090ì?LX\u009aÅÌ?ì?~v_x001D_Cô_x0002_Ý?eþÀ\u0099iFä?_x0012_¥G\"_x000F_Ãë?ïè\u009f\u0094»[í?´l)ð\u0093Oã? _x0006_\u0091W\u0083_x0011_ä?ÜÙ!*Ôïâ?\u0085_x000B_¹±¦_x0003_Û?âQ.Yì_x000C_ë?ý9/w\u0081-è?\u009eÀb\u00978_x000E_ë?nÔTï_x0003__x0004_\u008bgç?f_x000D_.3wÚé?=-x0^\u0087è?6WÑ\u0090½¹ã?NO_x001D_è»¾Ý?z\u009aÆ)_x0017__x001B_å?vHã¶Í\u0089ê?uc_x0012_9\u0093\u0094é?!úkHè_x0007_é?_x0016_ßv2_x000F_Ëå?¢À_x0014__x0019_\u008fúã?4\u008bhÆ_x0002__x0012_ë?­Ë»LæKè?Bc\u009bÎ~_x0010_ä?ô\u009cÈÃbìá?]StËþ6æ?«üÞ6\u0095_x001D_è?w\u009e 5µ\u0080ì?\u0089_x0001__x0006_¶\u0099\u0095ë?_x0005_Aé\u0091c.æ?Ø7âjArä?B+_x000C_\u009bã×ê?Ýàµ_x0016_jÎç?:\u0082W×\u0084áâ?\u0085ì_x000C_Ê¼_x000B_î?'Zq¶Ð±ã?_x000F_Ï_x0011_ÿPcÞ?_x0004_Â\u0092Ã.×ã?ÒXãt¨{ç?¿Ñ¤_x0006_-Íç?FÜ_x0018_^TMì?â_x000F_ÐL+ î?_x0001__x0005_0\u0080ã\u0098H½ç?_x001F__x0013_uíH(å?\u008dÑ_x0018_Ñ_x000B__x001E_ê?`Q³\t*Ìä?c\u008c-GHþá?\u0095Û_x0019_|_x000D_\u0085ë?Â_x0012_úûÑÕç?#\u0081ûH«\"ç?);{\u0084ÄLë?\u0082ó£¦e_x000C_å?_x0004_|Ú_x000C_&Þê?\u009c\"*_x0002_c\u008dè?_x000E_LD/_x0005_¢ã?ÄsøÙpÿã?\u0097Æ_x000B_\u0085_x001A_×è?ldd\u007f\u008e_x0010_æ?\u0092æá\u008eTvÜ?\u009c_x0002_¹«<3í?/Iÿ½Î¶æ?ê?_x0016_ÑèJß?Il_x0013_¬ý¦ç?\u0094&\u008fS §æ?Z¦s±YÂè?¢d&Rn_x001B_ë?^ù°_x0007_\u0094õè?Äó×´l°ê?ç_x0011_í_x0011_Øóì?|\u0098Àö_x000F_õë?´O¯ÿ_x001E__x0003_å?0ÉÇ·ÆYå?\u0086ß¦<_x000B__x0018_æ?_x001E_ÿ6)_x0004_\t@åÝ?`ÌNOÓ_x000C_é?TÁcEò\u009bá?¶Çï\u008eecê?¬Gí;°¡ì?\u00801èA®6í?Vo_x0002_×_x0006_ðè?¼dÁ\u0093·½ê?ÌçK¶Q¯ã?Ï»_x001D_ï&_x0006_å?»Öä½Àaæ?24Óòú|â?:Í\u009d\u0089Ìwã?â_x0019_ fItâ?:Þ=\u0090(ôæ? ü=9_x0003_5á?yð4_x0005__x001C_8æ?Aöô6\u0080\u0084æ?_x0016_(Ö_x0008_ê à?XV*w_x0005_%é?¢\u0090Ý_x0006_'^å?_x0006_úEQD_x000F_ç?ôÄ°¤+_x000D_á?H¬@x\u009d\u0094á?Ö­:_x001A_¹Pß?\u008fN\u008ck5ûé?_x0018_å¸ÿz_x001D_é?¬@¦ÊÀøì?2_x0007_â(º1ç?äÓ_x0001_\u0081Ç¦"}},{"$cut":{"chars":75522,"head":"dbb33d6bdb2bd60431e06eb6ca3e563c_x0002__x0005_ÔðÕ_x000D_\u008e¦â?ã?ç\u0099_x0018_Aä?¸\u00969}ÜXä?_x0010_n{æÖ7ì?é^dë[¿å?\u0085)\tÆ4Äå?+¾_x0003__x001E_yÖî?6Ã8qVñè?ûQßR\u0098êê?ïÓ_x0007_O5¡ç?@W\u00988Û%æ?}¥­\u007fî\u009dí?_x001E_\tfÅqùé?f*\u009bOÞxÝ?m|P\u008e¼RØ?¤!e\u0080_x0010_Êì?6ò_x001E_Ìh&è?½rz\u0080æ/à?\u0080Í_x000D_ä(Èè?j°ÃiÝËé?º\u008c¦_x001B_#Éç?\u0087\u0080ú_x0003__x0004_áà?öus]§×é?RÐçÄa¾æ?îúEF_x000B_\u0080ë?T_x0001_c^þÄç?Rµêä3ãå?\u0092_x0017_â\u0093Àhê?\u008eU¶OLýå?_x0016_HåÓ_x0012_­è?êvNO]Uë?\u008eàì¸_x0001__x0003_¨5ä?Õ\u008a¬\u009aN½ä?{.þ_x0001__x0011_5ì?¸k>\u009fÊ#ã?vÂ0*z«è?¤ìÉÑ\u0092@ã?¨Ðý%ý\u0092é?&§_x0018_é_x001D_Nà?\u0080æ9&°Àæ?Ç_x0003_ÿèÈCê?\u009e\u0092;G_x0007_âí?Ñ8¨íí_x0019_è?ü\u0085kS*Jé?èøD_x001B_\u0096¼ì?Ü_x0008_Ðç\u008f_x000C_è?4ó8Ü{_x0005_ë?W7Û|\u0083\u0084ä?øT¯ \u0097^á?¼À\u0082Æqãâ?¢î;òÕÈí?¨N»bX_x0007_Ø?\u0095éOvI\u008bì?4ØÜ_x0019_ðÌê?Z\u0086ät_x000C_Þè?dâö¼±¿ì?ìÙÑa\u008aËæ?_x0003_½º*°æè?_x0002_\u0085¦_x001B_­_x0016_ä?ç?Ïs\u009aæå?F² Ì\u009f\u0086ç?ÿ,\u0098_x0018_Ü\u008bã?þ­*_x0012_\\\\ã?_x0001__x0002_ZbòE¶aá?`\u007f_x001A_Q¥Èè?zD_x001E__x0006_Íkë?b l¢¥\u009eë?ØB\u007fq¼ÃÝ?d_x0017_\u0093\u0084z$ê?Ïçº_x0010_¼§è?êY\u008fU_x0007__x0007_í?]¬¡Nc_x000D_ã?\\}\u008d±\u0091[ä?ÔxdÙk\u0081ã?\u0099wÙ_x0010_a_x001B_é?¾p _x000F_n²Ù?_x0001_ÿH[\u0091»ã?èì¼ÓRpâ?\"n,:@hæ?UDI\u0090\u0090ëÝ?îO]¹_x001F_Ëê?\"<koÛ\u009aà?¬^\u0082¸Ðéç?ßs\u0087Õ_x001D_\u0081é?mÛr\u0081_x0019_«ã?<·Ä\"Egæ?©_x0019_ÓF_x000E_Iç?\u0097'}£\u008d_x001C_í?³>»_x0008_\u0094_x0017_é?µ¡_x0013_Í3_x0014_é?¼¥C1k¯å?_x0019_$ö¿çwå?\u009b¦}6ß\u0087æ?´~£»b@ä?(_x0015_Ú[_x0002__x0003_î¨í?¾\u008bðì\u0099vã?£ä|o__x0007_ë?Ö_x000D_ÑàJ_x0017_å?¶._x0010_3ª(é?ú0¼t\u008anè?¨\u0082PÝLsè?R\u008a_x0017_L_x0019_»Ý?ENOr?\u008aá?\u0098ýÝÝ_x000D_cé?^\u0094=_x000E_\u0098Çä?)±gúF«å?_x0004_FïrÙ_â?_x0016_º2û\"uè?_x000F_j_x0008_A_x0018_ëæ?þ.ù²1¸á?\u0092\u008b\\ù/*è?ÈË51IÁè?FQ_x0016_ÂõÖß?2\u0099_x0013_èÇ0æ?Åq_x001F_z+#é?0\u0085_x0001_úZ\u009cæ?_x0013_\u009d_x0011_¦<\u009aç?&)© +_x0019_å?ô\u009e_x0012_\u008eò.ê?\u0094_x001C_!z¸öã?°»k¶y\u0099ê?V\u007f\u0080È*½í?!ÌÙïY\u0093å?\u008c\u0099ë _x0014_þã?zÞ_x0006_Òaùç?h¯_x0004_\u0089áyæ?_x0001__x0002_Ê_x0008_-_x000B_O\u0099ì? _x000B_\u0082_x001F_´³ç?¾é\u007fé#\u008bæ?ÉÇ®GÄ¾å?_x0007_ÓcK·Îå?÷¢ªfh1ê?_x0017__x0004_ºT\u0097Oä?.y9IþVá?,u_x000E_úñGä?U¸\u009aÓî¡ê?Ä\u0094_x0019_$\u0099\u007få?¦\u008e\u0080_x0015__x0013_dâ?YvÉ_x0010_»îæ?\u008aì_x000F_\u0089\u007fÙå?èâañ?ãè?úCÓFÿµç?_x0002_\u008e\u0097¡\u0098_x0004_à?\u0092£kt\u0095tÞ?_x0006_²PÎñ[ß?g,\u0083ë¸_x0005_ç?êìîÛíkÙ?õrDñ]<à?µ^Úüëté?êßàPJIè?_x001E_\u0093¥©\u0085¡ä?í\u0080zr\u008f:ï?´ÿalÞ\u009bæ?¼9d\u009f¿@ì?\u0097H/o¹_x001D_ä?(ùz`z\"ã?h±ºN\u0086Åë?U\u007f\u0092_x0008__x0003__x0005_'¤Ý?FK\u0096KOLâ?Î__x0005_þ·>Þ?¨\u008aÞO¿Õì?î³è0J¸å?0_x0013_\u008b4Åòë?\u008b_x000F_}Üdºì?Ú¿=ø\u008aãä?$ì­_x0001__x001D_0í?Ã_x0005__x0013_^3²â?bNQg}_x0016_æ?þ_x001C_¬\u009d¶_x0019_á?¬BEÑ/(á?_1\u009cØ_x0002_õì?\u008aÇùJÊ»á?ø\u009aF\u0087ä¨ë? º\u008eä[Äá?÷³uts#é?TªëÑóVè?C*Î-r/è?Ü!w_x0015_Z_x000C_è?¦×ð\"_x0011_õâ?§7ç¹6ðè?@_x0007__x0004__x0004_0må?*¦E\u0086_x001F_\u0091ç?n¶¨¬_x0019_Åà?_x000F_\\îó\u008e¼ä?º§¨S\u0091_x0006_è?\u0081r_x001D_y_x0017_mæ?_x0005_\u0090\u0087\u0099\u0099Áë?°/ab\u009f«ë?l\u0092Ù(í å?_x0001__x0002_¯Û\"ÞW\u007fç?âG_x0001_­V*å?\u0095×K ®(è?¿]Ì_x0019_\"¨î?´ß¿UTjä?LI\u0099åE\u0081å?\u009e³6¼ \u0096ì?-^óPÜ\u0096á?\u009e§F\u00805?î?\u0087,ó;æÉî?ð\"àTÿ@å?vìÅOE\u008bê?Yw\u009dÏÊJ_x0013_Aî_x0006_Ïµ¢\\_x0013_A\u00968IÏþ _x0013_A\u0096&n\u008f]8_x0013_A_x0011_\u009a\u0094\u0097OK_x0013_A±pR^ÝZ_x0013_A_x000C_·e_x001F_0e_x0013_A\u0096U_xÜ__x0013_A_x000E_O\u0082û)H_x0013_A£\u0081_x0006_à_x0014_K_x0013_A\t&è_x0017_]Q_x0013_A)\u008bW5\u0081@_x0013_A¥E_x0004_\u0088fU_x0013_A)x_x001C_¾¨C_x0013_A_x001A_Gì@÷;_x0013_A¤©þ\u009fÄU_x0013_A_x0019__x0014_àü_x0001_M_x0013_Aê\u007fz;_x0001_2_x0013_A¤l1¸_x001E_2_x0013_A©__x000E_u_x0001__x0002_ö/_x0013_Aû¯§ûÙa_x0013_AQ*ï/_x0012_5_x0013_A)¯ Æ>\\_x0013_AZ_x000B_\u009f²?-_x0013_A_x0010__x0003_\u009b+ÖQ_x0013_A7¥\u0087dÙB_x0013_A§ûñÇÁN_x0013_AØFñ× I_x0013_Aj³:H\u0083_x001F__x0013_A~î!_x001C_ý(_x0013_A>Ï!áJh_x0013_AaÈPÖ§0_x0013_AW\u0096S_x0007_\u008c0_x0013_A\u0095%úô­(_x0013_Ak·ê´ý_x0014__x0013_AFWÊHäA_x0013_AL_x000C_Z¨¶0_x0013_A_x001D_TèïÌ_x0010__x0013_A`%¦O65_x0013_A{²_x0003_µËi_x0013_A¦\u008a_x001A_\u0099\u009e9_x0013_A×)ìÉË[_x0013_AÜF_x000E_ßÌQ_x0013_A\u008fyj%\u0097._x0013_A\u0088Õ!_x001A_ÜI_x0013_AWåØ\u0085\u00963_x0013_A¾²åß_x000E_C_x0013_A_x000D_ël©f_x000F__x0013_A#\u009a\u0084ùM4_x0013_A_x001D_à¹T­+_x0013_AëQï|_x0003_A_x0013_A89Öð\u0085bòT_x0013_AøÿÛ©\u0093b_x0013_A¥_x0010_\u0085{_I_x0013_ADH®p¼I_x0013_A_x0001__x0003_88_x0002__x0003_88_x0003__x0003_88_x0004__x0003_88_x0005__x0003_88_x0006__x0003_88_x0007__x0003_88_x0008__x0003_88\t_x0003_889_x0003_88_x000B__x0003_88_x000C__x0003_88_x000D__x0003_88_x000E__x0003_88_x000F__x0003_88_x0010__x0003_88_x0011__x0003_88_x0012__x0003_88_x0013__x0003_88_x0014__x0003_88_x0015__x0003_88_x0016__x0003_88_x0017__x0003_88_x0018__x0003_88_x0019__x0003_88_x001A__x0003_88_x001B__x0003_88_x001C__x0003_88_x001D__x0003_88_x001E__x0003_88_x001F__x0003_88 _x0003_88!_x0003_88\"_x0003_88#_x0003_88$_x0003_88%_x0003_88&_"}},{"$cut":{"chars":77322,"head":"635efa0f6dd58b15bcc629ac15e6b6ea_x0001__x0003_æÁ\u008f´_x001A_w_x0010_A_x0015_ß_x0007_éÐ_x0019__x0010_AJÇ_x0006_;^)_x0010_A\u008dÔY0Ëc_x0010_AAé_x0004__x0017_IS_x0010_A¬`À_x0008_\u0091#_x0010_A_x0005_{úØ!L_x0010_A\u0095Ä\u008e\u008e_x001C_¡_x000F_AF{ø\u0096_x001E_c_x0010_Aç½_x0012_o\u009cz_x0010_A-_x0016_ÿ$_¤_x0010_AZ\u0091,@R¨_x0010_Ab_x0017_1*=!_x0010_A\u009dL3\u0082á_x0002__x0011_A\u009fá\u008c\u0082@Ñ_x000F_A\u009f¥a\tó\t_x0010_AOky:\u0094_x0004__x0010_A\u009d|\u009bîAß_x0010_AöÅ\u0085þ;r_x0010_AJ_x0017_\u0091kÁT_x0010_A÷Ú²\u0083XÙ_x0010_A\u0080Vê5\u0085­_x0010_A\u008a+.^ú_x000C__x0010_Aª-¨Æ±E_x0010_AªÛº.1«_x0010_AEý?5Ü¥_x000F_A3_x001A__x0004_´Ï\u008e_x000F_A6þlÏ¶_x000C__x0011_A\u0096_x000E_ÈãüO_x0010_Aí¾>6ý\u008d_x0010_A\u0081\\2×lÐ_x0010_A*3l_x0018__x0001__x0002_a¾_x0010_A_x0011__x001E_\tW7u_x0010_A\u0086¿ò\u0097m\u0093_x000F_AÙYSÞÞO_x0010_AõßLI¯}_x0010_A_x001D_áº¬_x0017_6_x0010_A£\u0089U\u009e\u008d\u0097_x0010_AÓ\u0080_x000F_ÜÃ_x001E__x0010_A¨nÿü_x0003_Ý_x0010_AÝ»Y\tÑ_x0010__x0010_AÍ_x0017_IB§y_x0010_A¡§M#tG_x0010_A*\u0088³¦h5_x0010_A_x000B_\u008dìa_x0018_\u0098_x0010_A\\öRe2)_x0010_A\u008a³Øìèg_x0010_A\u008f}·\u009el=_x0010_A_x000B_ö7|Å«_x0010_A°\u008a_x000B_s§©_x000F_AêBmú_x0011_E_x0010_A³Q3Íó?_x0010_Aõ_x0016_´5Ð:_x0010_AÜ¤@V9V_x0010_A¸_x0013_²0\u009f>_x0010_Að¦_x000E__x0008_!!_x0010_AÙ÷_x001B_L­j_x0010_A¶\u0086é>I_x000F__x0010_AÆ_x0018_\u008dÁê_x001B__x0010_AH,Gñ<\u0097_x0010_A4\u0085\u008aQ\u009d_x000F__x0010_A?$Q\u0098å6_x0010_A_x0002_ø\tµS\u0080_x0010_A_x0003__x0004_\u0084\u008b`ÖÍ´_x0010_A#°äF_x001E_Z_x0010_AÍ\u0087ýaz_x0017__x0010_Aã]¡J\u0094\\_x0010_A\u0083$Ð^Þ;_x0010_A\u008dÄª\u0087Ý\u0095_x0010_AÃjtx_x0005_\u008a_x0010_A{\u009bÖyæ\u009c_x0010_A@_x001A_,UM)_x0010_Að_x0002_Í_x0001_Ô2_x0010_A`ùd*ØD_x0010_AbLhò_x0017_Î_x0010_AÜî\u0092\u0087X2_x0010_AN¼©>Ä,_x0011_A|¾¥{}_x0007__x0010_A;Â´\u008fdf_x0010_A®øÆ¢\u0089\u0091_x0010_A_x0005__x0015_°W«þ_x000F_A[ÐM_x0006_Å_x0008__x0011_Aôí\"jÈ1_x0010_A6\u0083\u00978§W_x0010_A~-õE\u0091_x0012__x0010_AV=\u009a\u0080ûJ_x0010_AGSÕh\u0080)_x0010_Aû¸Ç_x0004_4¢_x000F_A_x0014_ô\u0086_x0010_¢_x000E__x0010_A`R°büc_x0010_A_x0012_\u009f\u0089Æ\u0088`_x0010_A\"\u009eÿÉþÔ_x000F_A¢6´¡òm_x0010_Ajûæ\u0097µ¡_x000F_AMÔ¿v_x0004_\tk<_x0010_A_x0007_WË_x0004_üt_x0010_A/þ\u0082_x001C_\u008d¥_x0010_Aj_x0018_\u0095\u009aÖ_x0014__x0011_A\u0083h16Ó_x000B__x0010_A(ÿ\u0090\u008a_x0008_s_x0010_Af_>'_x0018_r_x0010_AJs(ãtb_x0010_As_x0018_\u0095«ÅÐ_x000F_Aé\u0096êàc#_x0010_A\u009dÓ§4#è_x000F_A\u009d¦½\u009a\tÁ_x0010_A/_x0017__x0006_\"R~_x0010_Azç@äÈ÷_x000F_A_x0004_¦ÅN_x001F_t_x0010_A=_x0002_þ{_x0006_ _x000F_Aº@\u0098¹_x0017_N_x0010_A!^*Øà\u0084_x0010_AGsÏTÁi_x0010_Ai_x0018_¯ëUµ_x0010_AäêöQ_x0003_Ò_x0010_Aþ_x001D__x0008_ò1¥_x0010_AqHß¢(Â_x0010_A_x001B_·GRY@_x0010_A¤_x0001__x0004_)ýq_x0010_A\u009f_x0012_~ï\u0087\u0099_x0010_ArÁ\u00986þÑ_x000F_A\u0084ynnË\u0090_x000F_A\u0081å7¹aª_x0010_A2[M_x001E_Vû_x000F_AÖ]_x0005_\u009d¬\u0099_x0010_A_x0003_$sY`6_x0010_A_x0002__x0003_\u0092_x0007__x0003__x0011_\u0091³_x000F_A\u0099\u008cã´\u008bõ_x0010_AðuiÒÓ\u0086_x0010_A¡²ßÐk^_x0010_AX-1½¢o_x0010_AV\u0095;K.©_x0010_A\u0095~k´*Î_x000F_A,ÓS\u009bè\u008e_x0010_A\u00984x_x001F_JÄ_x000F_Ai\u009f»_x001A_Ïw_x0010_A_x000E_;ÇÖ_x001E_\u008c_x0010_ApµËé%_x000D__x0010_AWÜØkM}_x0010_A_x001A_Nffu\u009f_x0010_A_x0001__x0014_H_x001E__x000C_V_x0010_AEÉ_x000D_ÚÕ$_x0010_At¦Þí_x001F_Þ_x0010_A°²ê\u009b_x0018_\u008d_x000F_A·ÉK&\u0096á_x0010_A_x000B_4ãRL_x0012__x0010_AB{\u0087_x0005_\u009ef_x0010_Aöå_x000F_ú\u009a_x0016__x0010_A´]«3\u008cï_x000F_A\u008bª\u0084I_x0005_ô_x0010_ATè_x0013_¢\u009e'_x0010_A®X_x000F_¡Ô3_x0010_Ahön§\u0092ß_x000F_A_x000E__x0013_õî~²_x0010_AÜúxïFg_x0010_A;<ÓÏè¿_x0010_A4GÕ_x0011__x0017_,_x0010_A×Þ\u0086?_x0001__x0002_¥8_x0010_Au\u008b\tÆ´L_x0010_AI\u009c\t\u0091_x000D_c_x0010_AÅå´¯V®_x0010_A_x000F__x0001__x001C_·§\u0094_x0010_A~ÆðZÖ\u008f_x0010_A¤e^¤\u009eì_x0010_A\u0090Z¬_x000E_æ!_x0010_AÃ\u009dbÚÐ/_x0010_A§È_x0003_~7\u0088_x0010_A8í­»\u0094_x0018__x0010_AJ£÷_x0006_°´_x0010_AP_x001B_A>,h_x0010_AÈ\u009f[t9@_x0010_At·\u009a\u0083C4_x0010_AD7\u0094G\u008d_x0001__x0010_Ara)v~m_x0010_AÝg\tEúS_x0010_AVæ\u009d³Ü*_x0010_Aüî¢\u0085\u00953_x0010_Aq¯§¿\u008a¶_x0010_A pÐD_x0011_¬_x0010_A\u008d´fè\u008d_x001A__x0010_AËòÚ+²m_x0010_A¹8òHÐ]_x0010_A_x000C_\u008a\u0095Ä\u0092_x0006__x0010_A¼P·\u0083qÝ_x0010_A\u0081Htç±)_x0010_An-º@(k_x0010_A_x000B_m@¬Éª_x0010_A~_x000C_?\u009eãµ_x000F_A°·Ë×õ _x0010_A_x0005__x000E_cç\u008c}_x0005_¨_x0010_AÒ¼_x000C_\u008dþ_x0001__x0010_A}õt_x000B_ËÎ_x0010_A\u0084Ê :5H_x0010_A_x0006_\u009ei\u0088±_x001F__x0010_A¦+_x001F_&x'_x0010_A,¿\u008bðz_x0010__x0011_Aý_x001C_4û'j_x0010_AÅ*nÐöí_x000F_A\t\u009eð\u0094cð_x000F_AÔ_x0011_DM_x001D__x0008__x0010_A:»_x0007_Öìä_x0010_A_x000F_\u0081Bý¸«_x0010_AíµÅ½\u008b-_x0010_A_x0011_õwòOl_x0010_A»\u0080)Ñò\u009b_x0010_A¡Ê\u009a&dj_x0010_A_x000D__x001F_\u0095\u0085x2_x0010_ASD)7CA_x0010_AºÁ=Òø2_x0010_AÈ\u0080{_x000E_ãX_x0010_A\u0080_x0002_\u0095\u0089uk_x0010_AE_x000C_~\u0085rx_x0010_A\u009e_x0007_&\u0088áI_x0010_A_¡5C¢_x0011__x0010_A\u0087\u0094TÉßB_x0010_Aj_x0019_ã\u0094_x00"}},{"$cut":{"chars":62622,"head":"4faef72139346c0a993b2c37fa0c2940_x0001__x0007_oDï\u0090_x000F_æ_x0013_A\u0088&Ó\u0084\"-_x0014_Aq'¹²ì»_x0013_A¢®{ô_x0003_\u008b_x0013_A¥ÌU·ïu_x0013_AÛ_x0012__x0012_\u0097½ï_x0013_A\u0091OûL6~_x0014_Av\u0097%\u007faÖ_x0013_A£ö_x000F_Êßv_x0013_AñÖ;ùP]_x0014_A\u0091jtCþC_x0013_A>K%,mh_x0013_AY(\u009aÜ&ó_x0013_A9×*ÔtA_x0013_AE[Ø¹¹H_x0013_ADê`Çi8_x0013_A_x0002_\u008e_x0002_¹·_x001E__x0014_AÞÚ_x0013_{\u009a6_x0014_Aêå_x0017_BU&_x0013_AÌm3!ZÐ_x0013_A!·\u0086_x000D_)\u0080_x0013_A¡\u0098i9éC_x0013_ARë$±T\u0084_x0013_A_x0004_hÄ§!Ô_x0013_Ads\u0094ú\u0083\u0090_x0013_AÌ_x0004_É;Íõ_x0013_A\u0095\u0089k£_x001E_\u0093_x0013_A_x0006_ý76g¥_x0013_Aâ­oc\u009dÿ_x0013_Az½\u009b.É`_x0013_A\u0088DÚÍÉ _x0013_A_x0005_uzÀ_x0001__x0002_¬\u009e_x0013_AñÚ2\u0080\"q_x0013_A(£_x001D_§E<_x0014_A\u008aøÔ2)Õ_x0013_Aíñi \u008ac_x0013_AÔ\u0090ä\u009f~ _x0014_A\u0096`G\u008a\u0093X_x0014_A,M\u009b&\u008b_x000B__x0014_A\u0084 ¹°_x0019_A_x0013_Aá&bÌTf_x0014_AJN\u0088 ßZ_x0013_A\u008a\tÜÕ^r_x0014_A] jh&t_x0013_A\"uW_x000C_'D_x0013_A-\u0094\u008e'\u0094_x0002__x0014_A]\u009c¼82F_x0013_A$¶\t¬i=_x0014_AÙ3Ó¦±\u008b_x0014_A\u0087ýÃ_x001D_3£_x0014_A74ø/Ú\u009d_x0013_AHmü\u0089:,_x0014_AÆß8§2ï_x0013_AS\u0085Ð¿<\u009d_x0013_AKm _x0016_7r_x0013_A_x0016_Ú»¯çú_x0013_AÀ_x000B__x0007__x001E_k«_x0013_Aú_x0016_\u0093)·\u0084_x0013_A_x001F_þ_x001E__x000C_=\u0088_x0014_A5Dfa_x0008_\u009c_x0013_A_x0018_\u0098_x0011_~~ë_x0013_AK_x0011_µæ¢_x000D__x0014_AúÊ¸éò__x0013_A_x0004__x0005_U°+áaª_x0013_AZH\u009e|8f_x0013_AD,q/ÔG_x0014_A\u0096_x0014_o_x0004_¥\u008c_x0013_Aëc_x0014_x1ª_x0013_A<ãwb\u009cR_x0014_AdÜ·_x000F_Ýk_x0014_A)´¸E½E_x0013_Ar\u0080ÛQF­_x0013_AÈ%_\tÐ_x001D__x0014_A _x0005_S1\u0094%_x0013_A_x0010_\u008a¢\u0087ý_x000B__x0014_AÎ±ToÎ{_x0013_A_x0001_:\u009aÅ_x0001_L_x0013_A;_x0018_\u0080a$R_x0013_Aª_x0003_×¤ÓÅ_x0013_A§ÀÍ=?_x0011__x0014_AË=ñ±_x001B_²_x0014_Aìý¿qÌm_x0014_AP+_x001C_ù8ú_x0013_AS¢\u008duóÃ_x0013_Aú|PòBõ_x0013_AöëNU_x0019_f_x0014_Aõ_x0006_¤\u0087èí_x0013_AÉQTD\u0082\u0082_x0013_Aÿn\u0098\u0092g\u0098_x0013_A\u009f«sÖU\u0090_x0013_AC._x0010__x0002_üH_x0014_A\u0095á_x0013_m_x0017_è_x0013_A4*_x000B_1\u0080n_x0013_A'GÐw\u0095Ñ_x0013_A_x001E_s 3_x0002__x0004_\u0098~_x0013_A¼ÏæÍ_x0006_2_x0014_A_x0014_WO_x000E_¤\u0083_x0013_AàÆnRmä_x0013_AÝ\u0082ÝèZ._x0014_Aá\u0093r_x0014_à3_x0013_A²_x0013_ÅòB0_x0014_Aæò+_x0017_Ë_x0002__x0014_A[\u0082ðPÓÃ_x0013_AØ\"\u0086Ó_x0015_¬_x0013_AÕÙû_x0014_[Þ_x0013_A\u0086Out?_x001B__x0014_Aà_x0006_jn¶[_x0013_A¥í©yd_x0004__x0014_A<_x001A_k_x0013_\u0092_x0017__x0014_A{ó³¾Al_x0013_A¼\u0091%`_x001F__x0005__x0014_AHZÅ?E_x0001__x0014_A÷_«_x000E_>Ó_x0013_A\u0092«\u009d5ì¤_x0014_A%Ñ'þ\u008c®_x0013_A597L\u0098Ú_x0013_A\u0082_x0003_ß_x0017_ã@_x0014_A@KëÙ|_x001C__x0014_Aû7ó_x0014_6Ð_x0014_A_x0017_Ï_x0004__x0002_\u0099\u0088_x0013_Aåæ§àÎ_x0014__x0014_A1\u008búÄ¿D_x0014_A\u0087EñIºA_x0014_AÊ³¢_x000E_Â^_x0013_A¬?k\u0082\u008e__x0014_Adh\u009e¢;\u009b_x0013_A_x0001__x0002_\u0096\u0096_x0008_Eï_x0007__x0014_A5_x000F_l_x001C_H\u009e_x0014_A,×_x0004_ ]\\_x0014_A\u008dà6\u009cQ÷_x0013_A¼'_x0012_ÄÂT_x0013_ATÖ/Ï_x001E_\u009d_x0013_A«(\u0090\u0092éÊ_x0013_AßÑ·\u0099\u0096\u0092_x0013_A%Q9·_x0003__x0002__x0014_A4¿_x0010_AÆá_x0013_A\u008bw&©6 _x0014_A\\'¡ï22_x0014_A\u0086p\u0099~\u0097L_x0013_APiPÕÿÿ_x0013_Ax%ýÔu\u009b_x0014_A¶\u0083åÚîy_x0013_AðKQì(\u008f_x0013_A_x0001_°4;]¿_x0013_A»îe\u0095h\u0096_x0013_An{'4`\u008f_x0013_A1Q_x0012_\u0090T\u009d_x0013_A\u009fç_x001B_ß\\Ü_x0013_A7Î95_x0005_\u0089_x0014_A\u008b:}LêÛ_x0013_A¨#\u0090qp^_x0013_Ak¬]&V!_x0014_A\u0082Î¦ú/«_x0013_ASÏ1ÊÆù_x0013_A,SYØ_x0004_ _x0013_A_x001E_$ÞÇWg_x0013_A\\IB_x0016_G\u0099_x0013_A¥ÚÉK_x0002__x0004_SQ_x0013_A\u0081\u0091_x0016_­\u0099n_x0013_AyòY_x001A_áø_x0013_A¸V\"\u0087>T_x0013_Aìæ\u009d\u0099á1_x0014_A·w/'¬7_x0014_A_x0017_ç_x0008_Ê_x0007_\u0093_x0013_A?Î¼\u00894\u0094_x0014_A\u0095S+K\u007fÀ_x0013_A\u007f¯LPÂ\u008e_x0013_A¹G_x0011_>ç\u009d_x0014_AýµÑH D_x0014_A_x0011_\u009cë_x0001_´»_x0013_A\u008b1_x0012_²V_x000F__x0014_A_x0003_ÃòÃ*_x0007__x0014_A\u0087?fHµð_x0013_A\u0085.¿]\u0092Ê_x0013_ANIXu_x000E_G_x0013_A_x001F_<_x0011_}mÓ_x0013_A°zæ¤_x001E__x0004__x0014_A_x0018_þ\u0083¢~\u0096_x0013_Aì\u0091ô/Ý_x0004__x0014_AFeGÊ_x000B__x0006__x0014_A\u008eô_x0014_ºËD_x0014_Alj\"_x001D_Ü¸_x0013_A_x000D_h~ÉA7_x0014_A©\u008bµ_x0010_Ñ¡_x0013_AmÚd¼æ7_x0014_A` Ê±¾U_x0014_A²)_x0004_\\_x0002_\u0095_x0013_AÊ¡R_x0013_Wå_x0013_A½TÐ=T_x001F__x0014_A_x0002__x0005_9®W\u0090\u007f»_x0013_A\u009e¨³8_x0018__x0017__x0014_A Ly^x_x0010__x0014_A^\u008e«ÉÏ\u0097_x0013_Am\u009a\u0086äÂU_x0013_AO_x001B__x000E_0\u008fT_x0013_AÍ¹\u009f¶AÃ_x0013_A}\u0081ä·ß%_x0014_ALÅå\u009b\u007fÆ_x0013_AJJ_x0016_Å\u0082w_x0013_A\u0086z±Øû±_x0013_AoDwX\u0083J_x0013_AK¹ø\u0085}ú_x0013_AÒ\u0099\\\tF@_x0014_A\u008dÜêb}ø_x0013_A_x001A_Rñ\u0096¸ñ_x0013_AaR\u0091è\u009f=_x0014_A\u0083_x0007__x0015_¢úR_x0013_AÔÓ*Þ_£_x0013_AX6º®\u008d\u0088_x0013_A?Ê\u0080Ã\u00805_x0014_A¦\u00823XÖ©_x0013_A\u0092ú¦_x001B_\u008cÐ_x0013_A_x0004_]&§ó_x0012__x0014_A_x000B_ñ\u008b|_x0016_z_x0014_A_x0019__x000E_\u0099\u008eæw_x0013_AÔFÜó_x0010_$_x0013_Ak_x0016_wç\u009cÊ_x0013_AØ3_x000C_<÷_x0003__x00"}},{"$cut":{"chars":51558,"head":"0b92bf9730b6094cf906d79aab4084dc_x0001__x0002_»Òä­ê_x001B_§@-\u0091\u0091ÉÓK§@_x0016_ö«_x000E_â?§@Ü_x0015_ËN\u0083Ô§@õ°`z_x0019_m§@ß\u008cFzv\u0082§@yÜá=dm§@|\u0089ÿspz§@_x0018_3\u009bþÖ\u008a§@<qPªÕ §@ðYÓÞÚõ¦@ÞqT¤rd§@\u009c$+¥ä\u009f¦@Õ_x001A_ã\u009cåH§@,m_x0002_k\u008dz§@_x000D_\\hÈG\u009c¦@·\u0084ù_x0015_m3§@h_x001C_1Å\u0086Ó§@<îßvY ¦@&K0\tQ:§@_x0015__x000B_KÜ\u008d\u008c§@b`£:æ\u0093§@03&Å\u0091<§@õ-øµëÇ§@^ÒÃwE_x001F_§@Sqþì_x0012_ÿ¦@qÌ÷( ¸§@Ñ_x0010_(.}m¦@æ°iêØ\u008f§@\u0098l\u0083Ïûð¦@§Æ\u0086¡'ä¦@\u0083Snz_x0001__x0003_*\u0081§@=Èî_x0004_\u007f\u0084§@:qÄoeX¦@F¶_x0010_\u009aÂ×§@?lÅÄ<O¦@d_x0002_%Ã(v§@©&Oúî\u008e§@ÒÌ¡\u0089DÆ§@Ñ\u0084GXÅb§@1_x001A_iÛ_x000E_¼§@o\u0084\u0087él§¦@Nø_x0006_BMæ¦@_x001C__x001D_(}_x0001_ä§@_x001D__x0007_\u0085üäp§@YÚ^Ø\u0083\u007f§@kûÑ|7®§@_x000E_ÅG/¦¶§@±¡=\u008aãD§@w±\u0096,³n§@ø\u0099\u009d\u0080'¶§@ò\u008dÁC*é¦@Dv¤àwÕ§@\u0080R:_x0003_)Ý§@v\u0090éîh1§@ÈÉë_x001F_q\u008e¦@áØv\u009eDÜ¦@\u0099øÁl0m§@^$P÷Ë&§@_x0006_¹­µN´¦@Ëý9ìÎc§@µ_x0019_\u008b¼pJ§@)_x0017__x001F_¦_x0006_\u0098§@_x0001__x0002_\u0096B+Á½v§@Ú\u009c\u0082b_x0015_²§@\"]Æ\u0080Ñ\u0082§@®]Ïï\u0097\u009c§@_x0011_®<]_x0006_\u0082§@Ò!ðBù°¦@8G,d Ú§@]sîÀz9§@_Æá :Á§@¾Ü\u008bà\u0084_x001D_§@@_x001C_¥_x0004_QY¦@_x0001__x001F__x0002_%ê|§@Xj_x0003_¥×$§@Õ­É¾¼¹§@&fº_x0015_h\u0080§@_x0003_s_x0003_×EI§@Bj+\u0090¹\u008b¦@`¸r_x0006_¯q§@Ú\u0092·\u0081£X§@¨¨Qf¡]§@H\u008aÀç!ð§@\u009a\u009azðg\u0093¦@'KÜ¤VÊ§@Ä»_x0005_1\u0098_§@FV\u0096ÂHo§@èd·\u009ePc§@á\u0097æYR¢§@aàÞÔ_x0003_±§@üX@V¸¬§@U\u0087Á£op¦@E\u007fÆ¿_x0013_è¦@î¦YÏ_x0001__x0002_Â\u0094§@_x001C_ñ\u009d~±\u0092§@2_x001B_åIî­¦@«\u008c)\u009fq_x000B_§@º\u009fKã±Ë§@ª¢Î½¿³§@\u00885uU\t7¦@\u0099Õ\u008b_x0017_\u0085ì¦@Û\"\u0097ð_x0017_À§@¦Ä/·åY§@éhx²_x0016_\"§@ÿ¯M\u0082I_x0014_¦@\u0089H4²_x0003_õ¦@VÝAôÝÛ¦@úýl9cA§@\u008c È\u0091_x0016_í¦@_\u0084yÝ_x0006__x001A_§@>7â_x001C_Íâ§@áÂÝú\u00896§@\u009bk·PN_x0018_§@_x000D_V_x001E_'/_x000D_§@Í.\u0084F2M§@I_x0016_\u0099Å¶³¦@\u0094´\u0088\u009c\u0099À¦@.62F®»§@_x0017_\u0081Ï«yì§@_x0004_6çvI-§@\u0088$_x0017_Oi´§@2N\u0093\u0085Qí¦@K(8t@&§@LÚ{ û\u008e§@®IlÏ_x000B_ø¦@_x0002__x0003_%_x0019_/)_x001E_«§@_x0019_Ñ\u0097¨ÊT¦@*²\u009cb\u0089\u008c§@Ô¯\u008e\u009b¤_x0011_§@rh_x0016_2÷Ã¦@Ö(ÊÕ¥¨§@:t\u008f0¥e§@\u0088Ê_x000C_µ\u008f_x0016_§@\u009fm\u0080ø' §@·xxS\u009d\u008b§@ÙN:SR\u0092§@m&\u0084OÖÐ¦@ößú_x0014__x0008_5§@w\u0082O¿ ³§@ôÏ\u008aù¬_x001D_§@j\u009ap1\u0094_x001E_§@\u0090}ÕÞ_x0016_·§@¢@_x000F_\\µZ§@mõ_x0008_Ä_x001A_Ó¦@´óp_x0016_N¬¦@>¢\u0091°_x0003_#§@íí[_x0004__x0016_à¦@\u008aJörÛº¦@¶SZô4á§@üÔcô\u0085C§@{_x0010_f¼rm§@t:f?=±§@,\u008d\u0099d¦\u0085§@\u009di\u00946_x000D_\u0084§@_ïx_x0001_¯E§@¾_Ë\u0087_x0018_\u008e§@^æ´\u0080_x0001__x0002_hO§@X|Ã¹_x0010_p§@¡_x000F_È\u0092øÎ¦@_x0015_¸Î±V\u008c§@Á@1GÞn§@p-_x001B_V´ù§@\u0088¨î]_x0006_\u008a¦@K_x000C_Zïþ_x0006_§@Ø%]=-\u0093§@¶\u009c^áYÆ§@4Ëí(ö¿¦@2_x000B_y¢^_x0005_§@3ÑTÂÂQ§@ºì³vT\u0094§@d&q\u0099\"\u009c¦@ºÇ²æÜ\u0094§@á(¨p£8§@&PIÓJ\u0097¦@>Ì_x001B_=_x0001_\u0090§@ôÔÒ}ê¢¦@_x0002__x001B_Ñèîs¦@®\u0094rËã\u009c§@¬¹\u0098\u009d54§@_!VîCB§@¸\u0082\u0095hOB¦@r ]_x0015_\u008eä§@£|±\\â_x0008_§@wk¸\u0091g|¦@B¢\u009fWö\u009a§@_x0016_U;I¤v§@éJ\u008aØ\\É§@Wî¼.ÂB¦@_x0001__x0003_0h_x0010_#»È§@=zé­Ñë¦@_x001D_3²4_x0008_l§@ÒÈ\u0080%÷u§@èDJ`Îæ¦@¥_x0001_Jåèè§@_x0002_ü\u0083Ê_x0017_o§@òKÔG!,§@¬_x0019_2ê²ð§@\u008bù&Eþr§@v_x000F_»L¤ë¦@Ë¡Í\u008c\u0082a§@CÉÊP\u0094P§@òY\u0084º@Ì§@rMÅU¦ ¦@\u0083ãNF%J§@ïã\u0084_x000C__x0018_Ì¦@ì1ÑpõD¦@L¼v\u008f_x000F_r§@8&ú~_x0008_J¦@nÂ_x001E_I_x001B__x0016_§@ÆX\u008c_x0016_~\u0099§@ë\u0096òpµ_x0012_§@_x000C_\u008c_x000F_@\u0095(§@ÆóFAD\u0080§@Ã\u0085\u0099E]¡§@Lù\u0084f_x0019_Í¦@>G·ÜN\u009f§@_x000C_Dê_x000F__x0018__x0014_§@aõº._x001A_!§@s÷·Ã¿T§@?_x000C_ùÚ_x0003__x0006_Íe§@nïÐ¯:\u0082§@:'£?_x0006_w§@G¾MBÕ6§@u\u009a¹¯:Â§@>_x000B_Ü_x001B_\u00943§@_x000F_x\u009f_x000C__x0005_9§@Í«ag¿î§@ó_x0017__x001A_;~f§@\u008eÕ*ãï¸§@É»ÖA\u0092_x0004_§@&b\u0087Ú¤l¦@Xm-_x0010_>i§@a0\u0098\u0085Á_x001E_¦@i_x000D_Ø´Ì_x0019_§@_x001E_*\u0095'_x0001__x0010_§@êcÆÉÏ{§@¿_x0018_x$3Ì¦@Åvzµ \u0097§@¥}=_x0002_V¬§@È&[~/\u0086¦@®\u0086>_x000C_\u008a¸§@á]_x0012_ó©\u0084¦@#ÇE­üV§@F\u009cP3iG§@6r5Wµó¦@_x000C_éø.a_x0002_§@ÅF$¾û´¦@î\u008bã¢$_x0018_§@_x0014_>\u008dU\u0092Å¦@íkeòÂõ¦@Õ¼_x001E_Þ^Å¦@_x0001__x0002__x001E__x0003_v_x0002_\u009få§@*_x0017_³_x001A_p\u008e§@öw&\u0088\u009a²¦@*·O¸Æn§@_\u008c|¡\u0093ò¦@Ï^oaL¤¦@~®È<oº§@5¼zö\u0087ù¦@aü6/_x0013_L§@Ê±¹dà]§@0G°Maü¦@W=iT\u009c_x0015_§@DÌY@5\u0084§@sêçìs\u0090¦@+Ü_x001C_¯µ½§@_x001C_Ö\u0096_x0014_u¼§@$P\u008fOÝR§@Ãq·_x001B_´×§@£Ìa\"Y}§@yÛ\u008e%%_x0019_§@\u009cþfm(.§@\u0081_x0013_\u0084_x000F_;_x0002_§@\u009a¹«\u008b\u008dÎ¦@;+ñpåÉ§@vEè¹Ä·§@2_x000C_®\u009cÇ4§@\u0085b_x001E_¸¢K§@_x0008_ùÀ_x0002_r;§@\u00966_x0005_Þ\u0089A¦@5j_x000B_±[½§@\u0095§ÏÀ^W§@II¾_x0002__x0006__x000B__x001F__x0003_§@¿1_x0004_õ_x0005_K§@\u0095_x0004_(l°_x0002_§@XÎX³¡\t§@_x000B__x0001_U_x000F_C{§@ÍIïÔÁô¦@Â_x001B_fß\tº¦@Ó÷s_x0008_\u0091\u0095§@m_x0012_\u009e´_x001F_O§@(}\u009cèO¡¦@_x0018_ E\u008b`\u0098§@Á_x0017_®W\u008d!§@©½_x0008_2~\u008f§@vïØ_x0005_{_x0016_§@2ãÛ\u0091ðÝ§@c_x0001_\u0082_x000F_}0¦@\u009a\u009aË¹\u0092_x000F_§@¿_x0011_§¿D²§@9*@ûÍ@§@ë¼\u0098¦5Ø§@¿  ÙÉ\u0096§@I¡£ºñ_§@lW®·bq§@CWu4_x000D_¯§@8Ö\u008aÙú~¦@Ì>_x0002_¸aë¦@0° Ì_x0015_\u0095§@¯^ä._x0002_¤§@Ä³#·_x0006_ï¦@_x0007_ã\u008e\u0098zþ¦@_x001D_ïÀú\u0087_x0011_§@óú4f`_x000E_§@_x0001__x0005_,]H¾½Æ§@_x0002_§;ÿJ©§@QéA¦_x0018_£¦@\u0090·\u007f\tëú¦@þ_x0013_:ø1\u0094¦@)>ó_x0010_â+§@CW<\u0095»\u008a§@\u009cf§£7u¦@|XmÑ¡Û"}},{"$cut":{"chars":78186,"head":"94cf7860687f84a37594f5c11fcd7a69_x0003__x0004_ÁÒ\tBú¡©@Aþ\u0098o\u0082Lª@ü_x001D_\u0084k·(©@_x0005_<_x001A_V\u0094÷§@d$¦³@ÿ¨@\u0090ûU\u0097\tX§@Î_x0017_lã\u0081¦©@\u008enÛ_x0004_\u0099Ô©@´V¼è41¨@\u0089rp3Ú:ª@+_x000C_fÂN&ª@_x001D_6ZmÞfª@9h«øI\u0087©@jÇ _x0002__x0002__x0006_ª@Æ_x000C__x0007__x0001_ÿè¨@CÚ\u0080\u009f\u009c\u0095§@bÉ_x0010_ÎÇÇ¨@HàTw~.¨@âh_x0003__x0013_RÕ¨@¸ó_x0010_cgW¨@Û\u0088À_x0008__x0002__x000F_©@O³\u0091þdÜ¨@%_x001E_ô%*+§@_x0004_7÷\u0089\u0085_x0010_©@&\u009d°bõ:©@0\u0083ø£«_x0012_©@ä\u0081Õl1_x0017_©@¤ïkÇ\u009bî¨@fæÕî_x0018_¬ª@\u008f39%_x001C__x0007_¨@>q\u0091\\vï©@ÕÆ^e_x0004__x0006_é1©@\u009a-êØ_x000B_H§@¡2suVÅ¨@\u009aÔ)Gñ¨©@f@è¨x°¨@An_x0019_6»Ð©@¡¹Ârò\u008c§@8l_x0013_qV³©@²U_x001D_\u0098^k©@IË~/Q-¨@ï\u0094$ßâÃ¨@ä\u009fotýP©@_x0001_p\u0081W_x0014_Î©@pUývHÊ¨@_x001D_\u0085»\u0090_x000C_\"¦@_x000B_\u0098½\u008eêL©@_x0001_c´«_x001E_Xª@L¼ò_x0003_ Ä¨@á_x000F_Ç\u0084àë©@\u0085\u0084Éä\u008a\u009d©@Âqá³ v©@4ý_x0007_ðÌ_x0005_©@Ü;©!!b§@l¾\u009bÿ´è¨@-_x000E_~!¥ï©@¢<e_x0012_&kª@@?£;\u009b±§@a\u009e ¶´h¨@Aá_x0002_l³¡¨@Z÷ûE_x0012__x0011_ª@\u009b\u0095ì\"{*§@xÔÈAõ\u0089¨@_x0002__x0005__x0016_-ÓËQs¨@óéMs®¦§@ìÚZ_zµ¨@_x000E_!He±ý¨@\u008c_x0013_jº\u0096R¨@(µ¿üAù¨@®T­Ïra©@_x0018_\u0091ÛÚõh¨@/.XÕ~y¨@ÁÔ_x0002_p\u0080Á¨@\u0082°\u0092DÝ_x001C_ª@,Îß?Èà§@®_x0008_qøpY©@¬XUoÖË¨@_x0004_¤F&\u009bÏ©@\u008b_x0004_M_x0017_õø§@ÑßÏíÝ>ª@\u008au\\¹t_x001D_©@ó¬ëòïS¨@º¡\u0099»6¸©@°äHg¾Ù©@_x001E_\u008d\u008b_x001F_Üº©@ó\u009fçÝp\u0093©@úfV´_x0003_D©@>B©U¸u¨@_x0017_¹Ì,?¶¦@ZF]_x000C_Y\u0086§@n_(\u009cçç¨@ïýaØ¥n©@\u0095z2N\u0093¼¨@_x0018_q_x0014_ÿ_x0001_\"©@NçÇ×_x0001__x0003_\"\u009b¨@\u0085\u0098\u0098]\u008eBª@\u0087ù÷}|\u0080¨@]ÁFôæI¨@\u0080Ö_x000B__x0010_~_x0015_©@u_x000F_#%¢\\¨@Ýð8S_x000E_Ü¨@äjØ_x0006_hÁ§@ÖP\u0082N[\u0096©@¼î.\u009b_x001E__x0015_©@\u0096_x0010_¯\t_x0003_\u0090©@à\u0098\u009eÎV9ª@\u0099OÛ\u0093_x0016_Ð©@KÌ_x0014_Ý{\u0095ª@×Àì\u0089c_x0010_¨@_x0017_¤\"}\u008dg©@ÎU\u009f¿Xxª@mk©_x001C_\u009f_x000F_©@¢\u009d¦_x0014_¡¶©@NÇ½LN_x0006_¨@Øå^_x0012_Ø_x000B_¨@+8êª2?¨@\u0082:§_x0002_p_x0011_¨@*A2-Þ÷¨@\u0087¦ì§á®©@4ª_x000C_ëõ{©@mn ¡|¡©@Ý?_x0013_\u0082~eª@MËÚ\\_x0003_Ú¨@û§E¾_x000B_[§@YÌ\u0089lå\u0093©@n°\u008b_x000D_ñ,©@_x0005__x0006_&µ_x0005__x0018_\u0089uª@ö_x000F__x0002_P\u0094Ä©@02¿_x0019_V5¨@SàÃª74ª@<oñw-f©@²B¢o_x001C_\u009a¨@ä«_x000B_E\u009a]©@ºÀ.$\u0093b¨@i:_x001F_T_x0017_¾©@|Î!Qh\u008b©@f\u009a_x000D_q»ú©@ÒÎNÛ}µ©@U!1>ü\u0088©@{&\u0092ð\u0081ù©@ÔÁ:¤O¤¦@ÍwL\u0080H±¨@_x0001_IT\u008a\u008d1©@_x0018_H_x0005_aD&¨@®_x001E_µUÖñ¨@\u0085F\tôÔ]©@\u009bþ`Ê_x0006__x0003_©@Ð_x0012_Jý·_x001E_©@ÆÉ\u009f\u008e|_x0011_§@{÷Jh\u0092\u008f©@\u0090°_x001C_\u0095\u009e¤©@l¬\u009e\u008cà_x0015_¨@fùðNz#ª@XR{·â\u008a©@Ã9ñw°Aª@`_x001D_òº\u0089Ò¦@Âð£ôM_x0005_ª@;\u0083_x0019__x0004__x0002__x0003_´º©@ÐüÐ\u0098\u0092z©@'\u0098ÆõV,¨@Ê#B\u0089P\u0084§@_ýÈLqÐ¨@q>x..U¨@²_x0011_Õ·¬Jª@øÐ«:Ñ:¨@c\u009a`_x0006_\u0084(¨@\u008c(ObiË©@h®E~ê\u009eª@&rs9ú«©@Á¼\u0096\u008am.ª@v_x001C_í_x001B_\u008bÇ§@úè¿{\u009a$¨@àFdÓ_x000B__x001F_ª@R\u008e_fÍû¨@¨p_x0007_´G_x0001_©@I\u009b£¦_x000D_\u009f¨@-_x0006_ö\u0087\u0094}©@2!å¥ì\"©@]_x0004_fG`@ª@®_x0019_Ðù_x0006_ó¨@\u0080\u0098_x000F_]h-©@{§þ?\u007fß©@\u0080\"º_x001E_¹6ª@ÍbÁ_x000C_Ôê¨@ú_x0011_O^Å[ª@H£+Óm\u009b©@_x0004_a\u0080ÉÙ/©@2ò\u0094íBy©@Æº?àÄ\u0097¨@_x0001__x0003_,\u008fÈOVø§@¼QJ?Ê\u0098ª@_x0013_\u007fÓ[5ù©@ïaî\u0088z2¨@kW_x0007_q_x0003_P©@/\u008a-D_x0016_b©@öó\u008fåßÃ©@&\\Ù$ jª@\u0089©_x001C_)Ð¬§@]_x000E_\u0092\u0090=_x0014_¨@'_x0017_~\u008a_x001C_ñ©@Pw¨U2÷¨@_®_x000B_lQ¨ª@_x0016_wM£_x0002_ðª@\u0082ð\u0089\u009c\u0084H¨@_x0019_ÐÉ\\\u0091è©@>'A\u009eñâª@UÇ\u0085\u009dHFª@ÛSª¦(\u0088¨@\u009c_x0008_ÃÁÜÞ§@·áBë\u008fß©@m[æ_x0007_Ó_x0002_«@~e_x001A_evÓª@$\u0096_x0017_A4ÿ©@O3ú\u0089Ãéª@\u008a÷[ÚÃ\u0086ª@a_x000D__x001A_=6I¨@ø÷KA\u0080B«@Z´p\u009d_x0006_²ª@«»<ÛÃ_x000D_«@ªÅ·iÖòª@6_x0008_Ø\u0093_x0001__x0002_öæª@öCÜ&Éeª@´ùìXùË§@8\u0091Z»G¿©@_x0005_&³\u009f«_x0016_©@_x001D_:k¸\u009c5ª@èp_x0015_¥6ïª@n4OFÙ'©@Æ_x000D_ÄäðÉª@_x0005_L\u008dá»ô©@.â\u009bË+í©@ú:_x0004_ a_x001C_¨@_x000E_ºD¹¹_x0017_©@_x000E_Å\u0083¸J®©@#u_x0006_H¦ó¨@8»\u0083_x0003_8Ûª@:_x001A_¡_x001F_eë§@_x0001_z\u00976%øª@§C&zÎ¬ª@ä¢_çö\"ª@I3_x001B_ReJ©@Pæ~ÏN/ª@coX^©)©@\u008eÕ4_x0010_{bª@,\u0094fnêY©@Æ:B_x0007_\\7«@3àå _x001F_\u0094ª@=Ã_x000E_\u009c+Pª@¬x\u008fÌ0áª@Z!~Ásàª@­á\u008e-¤Kª@iØ\u0093=\u0096ý©@89¾Ç5HÚ\u008e©@Væz÷méª@_x000F_¾O\u0092öÔ¨@\u0091¨6qzo©@_x0001__x0004_88_x0002__x0004_88_x0003__x0004_88_x0004__x0004_88_x0005__x0004_88_x0006__x0004_88_x0007__x0004_88_x0008__x0004_88\t_x0004_889_x0004_88_x000B__x0004_88_x000C__x0004_88_x000D__x0004_88_x000E__x0004_88_x000F__x0004_88_x0010__x0004_88_x0011__x0004_88_x0012__x0004_88_x0013__x0004_88_x0014__x0004_88_x0015__x0004_88_x0016__x0004_88_x0017__x0004_88_x0018__x0004_88_x0019__x0004_88_x001A__x0004_88_x001B__x0004_88_x001C__x0004_88_x001D__x0004_88_x001E__x0004_88_x001F__x0004_88 _x0004_88!_x0004_88\"_x0004_88#_x0004_88$_x0004_88%_x0004_88&_x0004_88'_x0004_88(_x0004_88)_x0004_88*_x0004_88+_x0004_88,_x0004_88-_x0004_88._x0004_88/_x0004_880_x0004_881_x0004_882_x0004_883_x0004_884_x0004_885_x0004_886_x0004_887_x0004_88_x0001__x0002_8_x0004__x0001__x0001_9_x0004__x0001__x0001_:_x0004__x0001__x0001_;_x000"}},{"$cut":{"chars":225774,"head":"e12dab2afcbeb7250249c04826f99cb6_x0001__x0002__x0001__x0001__x0001__x0001__x0001__x0001__x0001__x0001__x0001__x0001__x0001__x0001__x0001__x0001__x0001__x0001__x0001__x0001__x0001__x0001__x0001__x0001__x0001__x0001__x0001__x0001__x0001__x0001__x0001__x0001__x0001__x0001__x0001__x0001__x0001__x0001__x0001__x0001__x0001__x0001__x0001__x0001__x0001__x0001__x0001__x0001__x0001__x0001__x0001__x0001__x0001__x0001__x0001__x0001__x0001__x0001__x0001__x0001__x0001__x0001__x0001__x0001__x0001__x0001__x0001__x0001__x0001__x0001__x0001__x0001__x0001__x0001__x0001__x0001__x0001__x0001__x0001__x0001__x0001__x0001__x0001__x0001__x0001__x0001__x0001__x0001__x0001__x0001__x0001__x0001__x0001__x0001__x0001__x0001__x0001__x0001__x0001__x0001__x0001__x0001__x0001__x0001__x0001__x0001__x0001__x0001__x0001__x0001__x0001__x0001__x0001__x0001__x0001__x0001__x0001__x0001__x0001__x0001__x0001__x0001__x0001__x0001__x0001__x0001__x0001__x0001__x0001__x0001__x0001__x0001__x0001__x0001__x0001__x0001__x0001__x0001__x0001__x0001__x0001__x0001__x0001__x0001__x0001__x0001__x0001__x0001__x0001__x0001__x0001__x0001__x0001__x0001__x0001__x0001__x0001__x0001__x0001__x0001__x0001__x0001__x0001__x0001__x0001__x0001__x0001__x0001__x0001__x0001__x0001__x0001__x0001__x0001__x0001__x0001__x0001__x0001__x0001__x0001__x0001__x0001__x0001__x0001__x0001__x0001__x0001__x0001__x0001__x0001__x0001__x0001__x0001__x0001__x0001__x0001__x0001__x0001__x0001__x0001__x0001__x0001__x0001__x0001__x0001__x0001__x0001__x0001__x0001__x0001__x0001__x0001__x0001__x0001__x0001__x0001__x0001__x0001__x0001__x0001__x0001__x0001__x0001__x0001__x0001__x0001__x0001__x0001__x0001__x0001__x0001__x0001__x0001__x0001__x0001__x0001__x0001__x0001__x0001__x0001__x0001__x0001__x0001__x0001__x0001__x0001__x0001__x0001__x0001__x0001__x0001__x0001__x0001__x0001__x0001__x0002__x0001__x0001__x0001__x0001__x0001__x0001__x0001__x0001__x0001__x0001__x0001__x0001__x0001__x0001__x0001__x0001__x0001__x0001__x0001__x0001__x0001__x0001__x0001__x0001__x0001__x0001__x0001__x0001__x0001__x0001__x0001__x0001__x0001__x0001__x0001__x0001__x0001__x0001__x0001__x0001__x0001__x0001__x0001__x0001__x0001__x0001__x0001__x0001__x0001__x0001__x0001__x0001__x0001__x0001__x0001__x0001__x0001__x0001__x0001__x0001__x0001__x0001__x0001__x0001__x0001__x0001__x0001__x0001__x0001__x0001__x0001__x0001__x0001__x0001__x0001__x0001__x0001__x0001__x0001__x0001__x0001__x0001__x0001__x0001__x0001__x0001__x0001__x0001__x0001__x0001__x0001__x0001__x0001__x0001__x0001__x0001__x0001__x0001__x0001__x0001__x0001__x0001__x0001__x0001__x0001__x0001__x0001__x0001__x0001__x0001__x0001__x0001__x0001__x0001__x0001__x0001__x0001__x0001__x0001__x0001__x0001__x0001__x0001__x0001__x0001__x0001__x0001__x0001__x0001__x0001__x0001__x0001__x0001__x0001__x0001__x0001__x0001__x0001__x0001__x0001__x0001__x0001__x0001__x0001__x0001__x0001__x0001__x0001__x0001__x0001__x0001__x0001__x0001__x0001__x0001__x0001__x0001__x0001__x0001__x0001__x0001__x0001__x0001__x0001__x0001__x0001__x0001__x0001__x0001__x0001__x0001__x0001__x0001__x0001__x0001__x0001__x0001__x0001__x0001__x0001__x0001__x0001__x0001__x0001__x0001__x0001__x0001__x0001__x0001__x0001__x0001__x0001__x0001__x0001__x0001__x0001__x0001__x0001__x0001__x0001__x0001__x0001__x0001__x0001__x0001__x0001__x0001__x0001__x0001__x0001__x0001__x0001__x0001__x0001__x0001__x0001__x0001__x0001__x0001__x0001__x0001__x0001__x0001__x0001__x0001__x0001__x0001__x0001__x0001__x0001__x0001__x0001__x0001__x0001__x0001__x0001__x0001__x0001__x0001__x0001__x0001__x0001__x0001__x0001__x0001__x0001__x0001__x0001__x0001__x0001__x0001__x0001__x0001__x0002__x0001__x0001__x0001__x0001__x0001__x0001__x0001__x0001__x0001__x0001__x0001__x0001__x0001__x0001__x0001__x0001__x0001__x0001__x0001__x0001__x0001__x0001__x0001__x0001__x0001__x0001__x0001__x0001__x0001__x0001__x0001__x0001__x0001__x0001__x0001__x0001__x0001__x0001__x0001__x0001__x0001__x0001__x0001__x0001__x0001__x0001__x0001__x0001__x0001__x0001__x0001__x0001__x0001__x0001__x0001__x0001__x0001__x0001__x0001__x0001__x0001__x0001__x0001__x0001__x0001__x0001__x0001__x0001__x0001__x0001__x00"}},{"$cut":{"chars":226158,"head":"28528814b81b8eb8f982cab5d48ce5a6_x0001__x0002__x0001__x0001__x0001__x0001__x0001__x0001__x0001__x0001__x0001__x0001__x0001__x0001__x0001__x0001__x0001__x0001__x0001__x0001__x0001__x0001__x0001__x0001__x0001__x0001__x0001__x0001__x0001__x0001__x0001__x0001__x0001__x0001__x0001__x0001__x0001__x0001__x0001__x0001__x0001__x0001__x0001__x0001__x0001__x0001__x0001__x0001__x0001__x0001__x0001__x0001__x0001__x0001__x0001__x0001__x0001__x0001__x0001__x0001__x0001__x0001__x0001__x0001__x0001__x0001__x0001__x0001__x0001__x0001__x0001__x0001__x0001__x0001__x0001__x0001__x0001__x0001__x0001__x0001__x0001__x0001__x0001__x0001__x0001__x0001__x0001__x0001__x0001__x0001__x0001__x0001__x0001__x0001__x0001__x0001__x0001__x0001__x0001__x0001__x0001__x0001__x0001__x0001__x0001__x0001__x0001__x0001__x0001__x0001__x0001__x0001__x0001__x0001__x0001__x0001__x0001__x0001__x0001__x0001__x0001__x0001__x0001__x0001__x0001__x0001__x0001__x0001__x0001__x0001__x0001__x0001__x0001__x0001__x0001__x0001__x0001__x0001__x0001__x0001__x0001__x0001__x0001__x0001__x0001__x0001__x0001__x0001__x0001__x0001__x0001__x0001__x0001__x0001__x0001__x0001__x0001__x0001__x0001__x0001__x0001__x0001__x0001__x0001__x0001__x0001__x0001__x0001__x0001__x0001__x0001__x0001__x0001__x0001__x0001__x0001__x0001__x0001__x0001__x0001__x0001__x0001__x0001__x0001__x0001__x0001__x0001__x0001__x0001__x0001__x0001__x0001__x0001__x0001__x0001__x0001__x0001__x0001__x0001__x0001__x0001__x0001__x0001__x0001__x0001__x0001__x0001__x0001__x0001__x0001__x0001__x0001__x0001__x0001__x0001__x0001__x0001__x0001__x0001__x0001__x0001__x0001__x0001__x0001__x0001__x0001__x0001__x0001__x0001__x0001__x0001__x0001__x0001__x0001__x0001__x0001__x0001__x0001__x0001__x0001__x0001__x0001__x0001__x0001__x0001__x0001__x0001__x0001__x0001__x0001__x0001__x0001__x0001__x0001__x0001__x0002__x0001__x0001__x0001__x0001__x0001__x0001__x0001__x0001__x0001__x0001__x0001__x0001__x0001__x0001__x0001__x0001__x0001__x0001__x0001__x0001__x0001__x0001__x0001__x0001__x0001__x0001__x0001__x0001__x0001__x0001__x0001__x0001__x0001__x0001__x0001__x0001__x0001__x0001__x0001__x0001__x0001__x0001__x0001__x0001__x0001__x0001__x0001__x0001__x0001__x0001__x0001__x0001__x0001__x0001__x0001__x0001__x0001__x0001__x0001__x0001__x0001__x0001__x0001__x0001__x0001__x0001__x0001__x0001__x0001__x0001__x0001__x0001__x0001__x0001__x0001__x0001__x0001__x0001__x0001__x0001__x0001__x0001__x0001__x0001__x0001__x0001__x0001__x0001__x0001__x0001__x0001__x0001__x0001__x0001__x0001__x0001__x0001__x0001__x0001__x0001__x0001__x0001__x0001__x0001__x0001__x0001__x0001__x0001__x0001__x0001__x0001__x0001__x0001__x0001__x0001__x0001__x0001__x0001__x0001__x0001__x0001__x0001__x0001__x0001__x0001__x0001__x0001__x0001__x0001__x0001__x0001__x0001__x0001__x0001__x0001__x0001__x0001__x0001__x0001__x0001__x0001__x0001__x0001__x0001__x0001__x0001__x0001__x0001__x0001__x0001__x0001__x0001__x0001__x0001__x0001__x0001__x0001__x0001__x0001__x0001__x0001__x0001__x0001__x0001__x0001__x0001__x0001__x0001__x0001__x0001__x0001__x0001__x0001__x0001__x0001__x0001__x0001__x0001__x0001__x0001__x0001__x0001__x0001__x0001__x0001__x0001__x0001__x0001__x0001__x0001__x0001__x0001__x0001__x0001__x0001__x0001__x0001__x0001__x0001__x0001__x0001__x0001__x0001__x0001__x0001__x0001__x0001__x0001__x0001__x0001__x0001__x0001__x0001__x0001__x0001__x0001__x0001__x0001__x0001__x0001__x0001__x0001__x0001__x0001__x0001__x0001__x0001__x0001__x0001__x0001__x0001__x0001__x0001__x0001__x0001__x0001__x0001__x0001__x0001__x0001__x0001__x0001__x0001__x0001__x0001__x0001__x0001__x0001__x0001__x0001__x0001__x0001__x0001__x0002__x0001__x0001__x0001__x0001__x0001__x0001__x0001__x0001__x0001__x0001__x0001__x0001__x0001__x0001__x0001__x0001__x0001__x0001__x0001__x0001__x0001__x0001__x0001__x0001__x0001__x0001__x0001__x0001__x0001__x0001__x0001__x0001__x0001__x0001__x0001__x0001__x0001__x0001__x0001__x0001__x0001__x0001__x0001__x0001__x0001__x0001__x0001__x0001__x0001__x0001__x0001__x0001__x0001__x0001__x0001__x0001__x0001__x0001__x0001__x0001__x0001__x0001__x0001__x0001__x0001__x0001__x0001__x0001__x0001__x0001__x00"}},{"$cut":{"chars":226878,"head":"6092126e60b25dade29d0591e1033a04_x0001__x0002__x0001__x0001__x0001__x0001__x0001__x0001__x0001__x0001__x0001__x0001__x0001__x0001__x0001__x0001__x0001__x0001__x0001__x0001__x0001__x0001__x0001__x0001__x0001__x0001__x0001__x0001__x0001__x0001__x0001__x0001__x0001__x0001__x0001__x0001__x0001__x0001__x0001__x0001__x0001__x0001__x0001__x0001__x0001__x0001__x0001__x0001__x0001__x0001__x0001__x0001__x0001__x0001__x0001__x0001__x0001__x0001__x0001__x0001__x0001__x0001__x0001__x0001__x0001__x0001__x0001__x0001__x0001__x0001__x0001__x0001__x0001__x0001__x0001__x0001__x0001__x0001__x0001__x0001__x0001__x0001__x0001__x0001__x0001__x0001__x0001__x0001__x0001__x0001__x0001__x0001__x0001__x0001__x0001__x0001__x0001__x0001__x0001__x0001__x0001__x0001__x0001__x0001__x0001__x0001__x0001__x0001__x0001__x0001__x0001__x0001__x0001__x0001__x0001__x0001__x0001__x0001__x0001__x0001__x0001__x0001__x0001__x0001__x0001__x0001__x0001__x0001__x0001__x0001__x0001__x0001__x0001__x0001__x0001__x0001__x0001__x0001__x0001__x0001__x0001__x0001__x0001__x0001__x0001__x0001__x0001__x0001__x0001__x0001__x0001__x0001__x0001__x0001__x0001__x0001__x0001__x0001__x0001__x0001__x0001__x0001__x0001__x0001__x0001__x0001__x0001__x0001__x0001__x0001__x0001__x0001__x0001__x0001__x0001__x0001__x0001__x0001__x0001__x0001__x0001__x0001__x0001__x0001__x0001__x0001__x0001__x0001__x0001__x0001__x0001__x0001__x0001__x0001__x0001__x0001__x0001__x0001__x0001__x0001__x0001__x0001__x0001__x0001__x0001__x0001__x0001__x0001__x0001__x0001__x0001__x0001__x0001__x0001__x0001__x0001__x0001__x0001__x0001__x0001__x0001__x0001__x0001__x0001__x0001__x0001__x0001__x0001__x0001__x0001__x0001__x0001__x0001__x0001__x0001__x0001__x0001__x0001__x0001__x0001__x0001__x0001__x0001__x0001__x0001__x0001__x0001__x0001__x0001__x0001__x0001__x0001__x0001__x0001__x0001__x0002__x0001__x0001__x0001__x0001__x0001__x0001__x0001__x0001__x0001__x0001__x0001__x0001__x0001__x0001__x0001__x0001__x0001__x0001__x0001__x0001__x0001__x0001__x0001__x0001__x0001__x0001__x0001__x0001__x0001__x0001__x0001__x0001__x0001__x0001__x0001__x0001__x0001__x0001__x0001__x0001__x0001__x0001__x0001__x0001__x0001__x0001__x0001__x0001__x0001__x0001__x0001__x0001__x0001__x0001__x0001__x0001__x0001__x0001__x0001__x0001__x0001__x0001__x0001__x0001__x0001__x0001__x0001__x0001__x0001__x0001__x0001__x0001__x0001__x0001__x0001__x0001__x0001__x0001__x0001__x0001__x0001__x0001__x0001__x0001__x0001__x0001__x0001__x0001__x0001__x0001__x0001__x0001__x0001__x0001__x0001__x0001__x0001__x0001__x0001__x0001__x0001__x0001__x0001__x0001__x0001__x0001__x0001__x0001__x0001__x0001__x0001__x0001__x0001__x0001__x0001__x0001__x0001__x0001__x0001__x0001__x0001__x0001__x0001__x0001__x0001__x0001__x0001__x0001__x0001__x0001__x0001__x0001__x0001__x0001__x0001__x0001__x0001__x0001__x0001__x0001__x0001__x0001__x0001__x0001__x0001__x0001__x0001__x0001__x0001__x0001__x0001__x0001__x0001__x0001__x0001__x0001__x0001__x0001__x0001__x0001__x0001__x0001__x0001__x0001__x0001__x0001__x0001__x0001__x0001__x0001__x0001__x0001__x0001__x0001__x0001__x0001__x0001__x0001__x0001__x0001__x0001__x0001__x0001__x0001__x0001__x0001__x0001__x0001__x0001__x0001__x0001__x0001__x0001__x0001__x0001__x0001__x0001__x0001__x0001__x0001__x0001__x0001__x0001__x0001__x0001__x0001__x0001__x0001__x0001__x0001__x0001__x0001__x0001__x0001__x0001__x0001__x0001__x0001__x0001__x0001__x0001__x0001__x0001__x0001__x0001__x0001__x0001__x0001__x0001__x0001__x0001__x0001__x0001__x0001__x0001__x0001__x0001__x0001__x0001__x0001__x0001__x0001__x0001__x0001__x0001__x0001__x0001__x0001__x0001__x0001__x0001__x0001__x0001__x0002__x0001__x0001__x0001__x0001__x0001__x0001__x0001__x0001__x0001__x0001__x0001__x0001__x0001__x0001__x0001__x0001__x0001__x0001__x0001__x0001__x0001__x0001__x0001__x0001__x0001__x0001__x0001__x0001__x0001__x0001__x0001__x0001__x0001__x0001__x0001__x0001__x0001__x0001__x0001__x0001__x0001__x0001__x0001__x0001__x0001__x0001__x0001__x0001__x0001__x0001__x0001__x0001__x0001__x0001__x0001__x0001__x0001__x0001__x0001__x0001__x0001__x0001__x0001__x0001__x0001__x0001__x0001__x0001__x0001__x0001__x00"}},{"$cut":{"chars":224664,"head":"0afb11588f800723931b5229179a9664_x0001__x0002__x0001__x0001__x0001__x0001__x0001__x0001__x0001__x0001__x0001__x0001__x0001__x0001__x0001__x0001__x0001__x0001__x0001__x0001__x0001__x0001__x0001__x0001__x0001__x0001__x0001__x0001__x0001__x0001__x0001__x0001__x0001__x0001__x0001__x0001__x0001__x0001__x0001__x0001__x0001__x0001__x0001__x0001__x0001__x0001__x0001__x0001__x0001__x0001__x0001__x0001__x0001__x0001__x0001_@\u009f@_x0001__x0001__x0001__x0001__x0001__x0001__x0001__x0001__x0001__x0001__x0001__x0001__x0001__x0001__x0001__x0001__x0001__x0001__x0001__x0001__x0001__x0001__x0001__x0001__x0001__x0001__x0001__x0001__x0001__x0001__x0001__x0001__x0001__x0001__x0001__x0001__x0001__x0001__x0001__x0001__x0001__x0001__x0001__x0001__x0001__x0001__x0001__x0001__x0001__x0001__x0001__x0001__x0001__x0001__x0001__x0001__x0001__x0001__x0001__x0001__x0001__x0001__x0001__x0001__x0001__x0001__x0001__x0001__x0001__x0001__x0001__x0001__x0001__x0001__x0001__x0001__x0001__x0001__x0001__x0001__x0001__x0001__x0001__x0001__x0001__x0001__x0001__x0001__x0001__x0001__x0001__x0001__x0001__x0001__x0001__x0001__x0001__x0001__x0001__x0001__x0001__x0001__x0001__x0001__x0001__x0001__x0001__x0001__x0001__x0001__x0001__x0001__x0001__x0001__x0001__x0001__x0001__x0001__x0001__x0001__x0001__x0001__x0001__x0001__x0001__x0001__x0001__x0001__x0001__x0001__x0001__x0001__x0001__x0001__x0001__x0001__x0001__x0001__x0001__x0001__x0001__x0001__x0001__x0001__x0001__x0001__x0001__x0001__x0001__x0001__x0001__x0001__x0001__x0001__x0001__x0001__x0001__x0001__x0001__x0001__x0001__x0001__x0001__x0001__x0001__x0001__x0001__x0001__x0001__x0001__x0001__x0001__x0001__x0001__x0001__x0001__x0001__x0001__x0001__x0001__x0001__x0001__x0001__x0001__x0001__x0001__x0001__x0001__x0001__x0001__x0001__x0001__x0001__x0001__x0001__x0001__x0001__x0002__x0001__x0001__x0001__x0001__x0001__x0001__x0001__x0001__x0001__x0001__x0001__x0001__x0001__x0001__x0001__x0001__x0001__x0001__x0001__x0001__x0001__x0001__x0001__x0001__x0001__x0001__x0001__x0001__x0001__x0001__x0001__x0001__x0001__x0001__x0001__x0001__x0001__x0001__x0001__x0001__x0001__x0001__x0001__x0001__x0001__x0001__x0001__x0001__x0001__x0001__x0001__x0001__x0001__x0001__x0001__x0001__x0001__x0001__x0001__x0001__x0001__x0001__x0001__x0001__x0001__x0001__x0001__x0001__x0001__x0001__x0001__x0001__x0001_@\u009f@_x0001__x0001__x0001__x0001__x0001__x0001__x0001__x0001__x0001__x0001__x0001__x0001__x0001__x0001__x0001__x0001__x0001__x0001__x0001__x0001__x0001__x0001__x0001__x0001__x0001__x0001__x0001__x0001__x0001__x0001__x0001__x0001__x0001__x0001__x0001__x0001__x0001__x0001__x0001__x0001__x0001__x0001__x0001__x0001__x0001__x0001__x0001__x0001__x0001__x0001__x0001__x0001__x0001__x0001__x0001__x0001__x0001__x0001__x0001__x0001__x0001__x0001__x0001__x0001__x0001__x0001__x0001__x0001__x0001__x0001__x0001__x0001__x0001__x0001__x0001__x0001__x0001__x0001__x0001__x0001__x0001__x0001__x0001__x0001__x0001__x0001__x0001__x0001__x0001__x0001__x0001__x0001__x0001__x0001__x0001__x0001__x0001__x0001__x0001__x0001__x0001__x0001__x0001__x0001__x0001__x0001__x0001__x0001__x0001__x0001__x0001__x0001__x0001__x0001__x0001__x0001__x0001__x0001__x0001__x0001__x0001__x0001__x0001__x0001__x0001__x0001__x0001__x0001__x0001__x0001__x0001__x0001__x0001__x0001__x0001__x0001__x0001__x0001__x0001__x0001__x0001__x0001__x0001__x0001__x0001__x0001__x0001__x0001__x0001__x0001__x0001__x0001__x0001__x0001__x0001__x0001__x0001__x0001__x0001__x0001__x0001__x0001__x0001__x0001__x0001__x0001__x0001__x0001__x0001__x0001__x0001__x0001__x0001__x0001__x0001__x0001__x0001__x0002__x0001__x0001__x0001__x0001__x0001__x0001__x0001__x0001__x0001__x0001__x0001__x0001__x0001__x0001__x0001__x0001__x0001__x0001__x0001__x0001__x0001__x0001__x0001__x0001__x0001__x0001__x0001__x0001__x0001__x0001__x0001__x0001__x0001__x0001__x0001__x0001__x0001__x0001__x0001__x0001__x0001__x0001__x0001__x0001__x0001__x0001__x0001__x0001__x0001__x0001__x0001__x0001__x0001__x0001__x0001__x0001__x0001__x0001__x0001__x0001__x0001__x0001__x0001__x0001__x0001__x0001__x0001__x0001__x0001__x0001__x0001__x0001__x0001__x0001__x0001__x000"}},{"$cut":{"chars":225612,"head":"2c1ed555289b6bb1b8f3c43472b5b550_x0001__x0002__x0001__x0001__x0001__x0001__x0001__x0001__x0001__x0001__x0001__x0001__x0001__x0001__x0001__x0001__x0001__x0001__x0001__x0001__x0001__x0001__x0001__x0001__x0001__x0001__x0001__x0001__x0001__x0001__x0001__x0001__x0001__x0001__x0001__x0001__x0001__x0001__x0001__x0001__x0001__x0001__x0001__x0001__x0001__x0001__x0001__x0001__x0001__x0001__x0001__x0001__x0001__x0001__x0001__x0001__x0001__x0001__x0001__x0001__x0001__x0001__x0001__x0001__x0001__x0001__x0001__x0001__x0001__x0001__x0001__x0001__x0001__x0001__x0001__x0001__x0001__x0001__x0001__x0001__x0001__x0001__x0001__x0001__x0001__x0001__x0001__x0001__x0001__x0001__x0001__x0001__x0001__x0001__x0001__x0001__x0001__x0001__x0001__x0001__x0001__x0001__x0001__x0001__x0001__x0001__x0001__x0001__x0001__x0001__x0001__x0001__x0001__x0001__x0001__x0001__x0001__x0001__x0001__x0001__x0001__x0001__x0001__x0001__x0001__x0001__x0001__x0001__x0001__x0001__x0001__x0001__x0001__x0001__x0001__x0001__x0001__x0001__x0001__x0001__x0001__x0001__x0001__x0001__x0001__x0001__x0001__x0001__x0001__x0001__x0001__x0001__x0001__x0001__x0001__x0001__x0001__x0001__x0001__x0001__x0001__x0001__x0001__x0001__x0001__x0001__x0001__x0001__x0001__x0001__x0001__x0001__x0001__x0001__x0001__x0001__x0001__x0001__x0001__x0001__x0001__x0001__x0001__x0001__x0001__x0001__x0001__x0001__x0001__x0001__x0001__x0001__x0001__x0001__x0001__x0001__x0001__x0001__x0001__x0001__x0001__x0001__x0001__x0001__x0001__x0001__x0001__x0001__x0001__x0001__x0001__x0001__x0001__x0001__x0001__x0001__x0001__x0001__x0001__x0001__x0001__x0001__x0001__x0001__x0001__x0001__x0001__x0001__x0001__x0001__x0001__x0001__x0001__x0001__x0001__x0001__x0001__x0001__x0001__x0001__x0001__x0001__x0001__x0001__x0001__x0001__x0001__x0001__x0001__x0001__x0001__x0001__x0001__x0001__x0001__x0002__x0001__x0001__x0001__x0001__x0001__x0001__x0001__x0001__x0001__x0001__x0001__x0001__x0001__x0001__x0001__x0001__x0001__x0001__x0001__x0001__x0001__x0001__x0001__x0001__x0001__x0001__x0001__x0001__x0001__x0001__x0001__x0001__x0001__x0001__x0001__x0001__x0001__x0001__x0001__x0001__x0001__x0001__x0001__x0001__x0001__x0001__x0001__x0001__x0001__x0001__x0001__x0001__x0001__x0001__x0001__x0001__x0001__x0001__x0001__x0001__x0001__x0001__x0001__x0001__x0001__x0001__x0001__x0001__x0001__x0001__x0001__x0001__x0001__x0001__x0001__x0001__x0001__x0001__x0001__x0001__x0001__x0001__x0001__x0001__x0001__x0001__x0001__x0001__x0001__x0001__x0001__x0001__x0001__x0001__x0001__x0001__x0001__x0001__x0001__x0001__x0001__x0001__x0001__x0001__x0001__x0001__x0001__x0001__x0001__x0001__x0001__x0001__x0001__x0001__x0001__x0001__x0001__x0001__x0001__x0001__x0001__x0001__x0001__x0001__x0001__x0001__x0001__x0001__x0001__x0001__x0001__x0001__x0001__x0001__x0001__x0001__x0001__x0001__x0001__x0001__x0001__x0001__x0001__x0001__x0001__x0001__x0001__x0001__x0001__x0001__x0001__x0001__x0001__x0001__x0001__x0001__x0001__x0001__x0001__x0001__x0001__x0001__x0001__x0001__x0001__x0001__x0001__x0001__x0001__x0001__x0001__x0001__x0001__x0001__x0001__x0001__x0001__x0001__x0001__x0001__x0001__x0001__x0001__x0001__x0001__x0001__x0001__x0001__x0001__x0001__x0001__x0001__x0001__x0001__x0001__x0001__x0001__x0001__x0001__x0001__x0001__x0001__x0001__x0001__x0001__x0001__x0001__x0001__x0001__x0001__x0001__x0001__x0001__x0001__x0001__x0001__x0001__x0001__x0001__x0001__x0001__x0001__x0001__x0001__x0001__x0001__x0001__x0001__x0001__x0001__x0001__x0001__x0001__x0001__x0001__x0001__x0001__x0001__x0001__x0001__x0001__x0001__x0001__x0001__x0001__x0001__x0001__x0001__x0001__x0001__x0001__x0001__x0001__x0002__x0001__x0001__x0001__x0001__x0001__x0001__x0001__x0001__x0001__x0001__x0001__x0001__x0001__x0001__x0001__x0001__x0001__x0001__x0001__x0001__x0001__x0001__x0001__x0001__x0001__x0001__x0001__x0001__x0001__x0001__x0001__x0001__x0001__x0001__x0001__x0001__x0001__x0001__x0001__x0001__x0001__x0001__x0001__x0001__x0001__x0001__x0001__x0001__x0001__x0001__x0001__x0001__x0001__x0001__x0001__x0001__x0001__x0001__x0001__x0001__x0001__x0001__x0001__x0001__x0001__x0001__x0001__x0001__x0001__x0001__x00"}},{"$cut":{"chars":226068,"head":"bb9ae4014da29545abf896025045d6d7_x0001__x0002__x0001__x0001__x0001__x0001__x0001__x0001__x0001__x0001__x0001__x0001__x0001__x0001__x0001__x0001__x0001__x0001__x0001__x0001__x0001__x0001__x0001__x0001__x0001__x0001__x0001__x0001__x0001__x0001__x0001__x0001__x0001__x0001__x0001__x0001__x0001__x0001__x0001__x0001__x0001__x0001__x0001__x0001__x0001__x0001__x0001__x0001__x0001__x0001__x0001__x0001__x0001__x0001__x0001__x0001__x0001__x0001__x0001__x0001__x0001__x0001__x0001__x0001__x0001__x0001__x0001__x0001__x0001__x0001__x0001__x0001__x0001__x0001__x0001__x0001__x0001__x0001__x0001__x0001__x0001__x0001__x0001__x0001__x0001__x0001__x0001__x0001__x0001__x0001__x0001__x0001__x0001__x0001__x0001__x0001__x0001__x0001__x0001__x0001__x0001__x0001__x0001__x0001__x0001__x0001__x0001__x0001__x0001__x0001__x0001__x0001__x0001__x0001__x0001__x0001__x0001__x0001__x0001__x0001__x0001__x0001__x0001__x0001__x0001__x0001__x0001__x0001__x0001__x0001__x0001__x0001__x0001__x0001__x0001__x0001__x0001__x0001__x0001__x0001__x0001__x0001__x0001__x0001__x0001__x0001__x0001__x0001__x0001__x0001__x0001__x0001__x0001__x0001__x0001__x0001__x0001__x0001__x0001__x0001__x0001__x0001__x0001__x0001__x0001__x0001__x0001__x0001__x0001__x0001__x0001__x0001__x0001__x0001__x0001__x0001__x0001__x0001__x0001__x0001__x0001__x0001__x0001__x0001__x0001__x0001__x0001__x0001__x0001__x0001__x0001__x0001__x0001__x0001__x0001__x0001__x0001__x0001__x0001__x0001__x0001__x0001__x0001__x0001__x0001__x0001__x0001__x0001__x0001__x0001__x0001__x0001__x0001__x0001__x0001__x0001__x0001__x0001__x0001__x0001__x0001__x0001__x0001__x0001__x0001__x0001__x0001__x0001__x0001__x0001__x0001__x0001__x0001__x0001__x0001__x0001__x0001__x0001__x0001__x0001__x0001__x0001__x0001__x0001__x0001__x0001__x0001__x0001__x0001__x0001__x0001__x0001__x0001__x0001__x0001__x0002__x0001__x0001__x0001__x0001__x0001__x0001__x0001__x0001__x0001__x0001__x0001__x0001__x0001__x0001__x0001__x0001__x0001__x0001__x0001__x0001__x0001__x0001__x0001__x0001__x0001__x0001__x0001__x0001__x0001__x0001__x0001__x0001__x0001__x0001__x0001__x0001__x0001__x0001__x0001__x0001__x0001__x0001__x0001__x0001__x0001__x0001__x0001__x0001__x0001__x0001__x0001__x0001__x0001__x0001__x0001__x0001__x0001__x0001__x0001__x0001__x0001__x0001__x0001__x0001__x0001__x0001__x0001__x0001__x0001__x0001__x0001__x0001__x0001__x0001__x0001__x0001__x0001__x0001__x0001__x0001__x0001__x0001__x0001__x0001__x0001__x0001__x0001__x0001__x0001__x0001__x0001__x0001__x0001__x0001__x0001__x0001__x0001__x0001__x0001__x0001__x0001__x0001__x0001__x0001__x0001__x0001__x0001__x0001__x0001__x0001__x0001__x0001__x0001__x0001__x0001__x0001__x0001__x0001__x0001__x0001__x0001__x0001__x0001__x0001__x0001__x0001__x0001__x0001__x0001__x0001__x0001__x0001__x0001__x0001__x0001__x0001__x0001__x0001__x0001__x0001__x0001__x0001__x0001__x0001__x0001__x0001__x0001__x0001__x0001__x0001__x0001__x0001__x0001__x0001__x0001__x0001__x0001__x0001__x0001__x0001__x0001__x0001__x0001__x0001__x0001__x0001__x0001__x0001__x0001__x0001__x0001__x0001__x0001__x0001__x0001__x0001__x0001__x0001__x0001__x0001__x0001__x0001__x0001__x0001__x0001__x0001__x0001__x0001__x0001__x0001__x0001__x0001__x0001__x0001__x0001__x0001__x0001__x0001__x0001__x0001__x0001__x0001__x0001__x0001__x0001__x0001__x0001__x0001__x0001__x0001__x0001__x0001__x0001__x0001__x0001__x0001__x0001__x0001__x0001__x0001__x0001__x0001__x0001__x0001__x0001__x0001__x0001__x0001__x0001__x0001__x0001__x0001__x0001__x0001__x0001__x0001__x0001__x0001__x0001__x0001__x0001__x0001__x0001__x0001__x0001__x0001__x0001__x0001__x0001__x0001__x0001__x0001__x0001__x0002__x0001__x0001__x0001__x0001__x0001__x0001__x0001__x0001__x0001__x0001__x0001__x0001__x0001__x0001__x0001__x0001__x0001__x0001__x0001__x0001__x0001__x0001__x0001__x0001__x0001__x0001__x0001__x0001__x0001__x0001__x0001__x0001__x0001__x0001__x0001__x0001__x0001__x0001__x0001__x0001__x0001__x0001__x0001__x0001__x0001__x0001__x0001__x0001__x0001__x0001__x0001__x0001__x0001__x0001__x0001__x0001__x0001__x0001__x0001__x0001__x0001__x0001__x0001__x0001__x0001__x0001__x0001__x0001__x0001__x0001__x00"}},{"$cut":{"chars":225924,"head":"e6cb1bdba0e23b4e2439f3188a712252_x0001__x0002__x0001__x0001__x0001__x0001__x0001__x0001__x0001__x0001__x0001__x0001__x0001__x0001__x0001__x0001__x0001__x0001__x0001__x0001__x0001__x0001__x0001__x0001__x0001__x0001__x0001__x0001__x0001__x0001__x0001__x0001__x0001__x0001__x0001__x0001__x0001__x0001__x0001__x0001__x0001__x0001__x0001__x0001__x0001__x0001__x0001__x0001__x0001__x0001__x0001__x0001__x0001__x0001__x0001__x0001__x0001__x0001__x0001__x0001__x0001__x0001__x0001__x0001__x0001__x0001__x0001__x0001__x0001__x0001__x0001__x0001__x0001__x0001__x0001__x0001__x0001__x0001__x0001__x0001__x0001__x0001__x0001__x0001__x0001__x0001__x0001__x0001__x0001__x0001__x0001__x0001__x0001__x0001__x0001__x0001__x0001__x0001__x0001__x0001__x0001__x0001__x0001__x0001__x0001__x0001__x0001__x0001__x0001__x0001__x0001__x0001__x0001__x0001__x0001__x0001__x0001__x0001__x0001__x0001__x0001__x0001__x0001__x0001__x0001__x0001__x0001__x0001__x0001__x0001__x0001__x0001__x0001__x0001__x0001__x0001__x0001__x0001__x0001__x0001__x0001__x0001__x0001__x0001__x0001__x0001__x0001__x0001__x0001__x0001__x0001__x0001__x0001__x0001__x0001__x0001__x0001__x0001__x0001__x0001__x0001__x0001__x0001__x0001__x0001__x0001__x0001__x0001__x0001__x0001__x0001__x0001__x0001__x0001__x0001__x0001__x0001__x0001__x0001__x0001__x0001__x0001__x0001__x0001__x0001__x0001__x0001__x0001__x0001__x0001__x0001__x0001__x0001__x0001__x0001__x0001__x0001__x0001__x0001__x0001__x0001__x0001__x0001__x0001__x0001__x0001__x0001__x0001__x0001__x0001__x0001__x0001__x0001__x0001__x0001__x0001__x0001__x0001__x0001__x0001__x0001__x0001__x0001__x0001__x0001__x0001__x0001__x0001__x0001__x0001__x0001__x0001__x0001__x0001__x0001__x0001__x0001__x0001__x0001__x0001__x0001__x0001__x0001__x0001__x0001__x0001__x0001__x0001__x0001__x0001__x0001__x0001__x0001__x0001__x0001__x0002__x0001__x0001__x0001__x0001__x0001__x0001__x0001__x0001__x0001__x0001__x0001__x0001__x0001__x0001__x0001__x0001__x0001__x0001__x0001__x0001__x0001__x0001__x0001__x0001__x0001__x0001__x0001__x0001__x0001__x0001__x0001__x0001__x0001__x0001__x0001__x0001__x0001__x0001__x0001__x0001__x0001__x0001__x0001__x0001__x0001__x0001__x0001__x0001__x0001__x0001__x0001__x0001__x0001__x0001__x0001__x0001__x0001__x0001__x0001__x0001__x0001__x0001__x0001__x0001__x0001__x0001__x0001__x0001__x0001__x0001__x0001__x0001__x0001__x0001__x0001__x0001__x0001__x0001__x0001__x0001__x0001__x0001__x0001__x0001__x0001__x0001__x0001__x0001__x0001__x0001__x0001__x0001__x0001__x0001__x0001__x0001__x0001__x0001__x0001__x0001__x0001__x0001__x0001__x0001__x0001__x0001__x0001__x0001__x0001__x0001__x0001__x0001__x0001__x0001__x0001__x0001__x0001__x0001__x0001__x0001__x0001__x0001__x0001__x0001__x0001__x0001__x0001__x0001__x0001__x0001__x0001__x0001__x0001__x0001__x0001__x0001__x0001__x0001__x0001__x0001__x0001__x0001__x0001__x0001__x0001__x0001__x0001__x0001__x0001__x0001__x0001__x0001__x0001__x0001__x0001__x0001__x0001__x0001__x0001__x0001__x0001__x0001__x0001__x0001__x0001__x0001__x0001__x0001__x0001__x0001__x0001__x0001__x0001__x0001__x0001__x0001__x0001__x0001__x0001__x0001__x0001__x0001__x0001__x0001__x0001__x0001__x0001__x0001__x0001__x0001__x0001__x0001__x0001__x0001__x0001__x0001__x0001__x0001__x0001__x0001__x0001__x0001__x0001__x0001__x0001__x0001__x0001__x0001__x0001__x0001__x0001__x0001__x0001__x0001__x0001__x0001__x0001__x0001__x0001__x0001__x0001__x0001__x0001__x0001__x0001__x0001__x0001__x0001__x0001__x0001__x0001__x0001__x0001__x0001__x0001__x0001__x0001__x0001__x0001__x0001__x0001__x0001__x0001__x0001__x0001__x0001__x0001__x0001__x0001__x0001__x0001__x0001__x0001__x0002__x0001__x0001__x0001__x0001__x0001__x0001__x0001__x0001__x0001__x0001__x0001__x0001__x0001__x0001__x0001__x0001__x0001__x0001__x0001__x0001__x0001__x0001__x0001__x0001__x0001__x0001__x0001__x0001__x0001__x0001__x0001__x0001__x0001__x0001__x0001__x0001__x0001__x0001__x0001__x0001__x0001__x0001__x0001__x0001__x0001__x0001__x0001__x0001__x0001__x0001__x0001__x0001__x0001__x0001__x0001__x0001__x0001__x0001__x0001__x0001__x0001__x0001__x0001__x0001__x0001__x0001__x0001__x0001__x0001__x0001__x00"}},{"$cut":{"chars":225762,"head":"09ded9d141cfd880b42cdce913961cbc_x0001__x0002__x0001__x0001__x0001__x0001__x0001__x0001__x0001__x0001__x0001__x0001__x0001__x0001__x0001_\u0088³@_x0001__x0001__x0001__x0001__x0001__x0001__x0001__x0001__x0001__x0001__x0001__x0001__x0001__x0001__x0001__x0001__x0001__x0001__x0001__x0001__x0001__x0001__x0001__x0001__x0001__x0001__x0001__x0001__x0001__x0001__x0001__x0001__x0001__x0001__x0001__x0001__x0001__x0001__x0001__x0001__x0001__x0001__x0001__x0001__x0001__x0001__x0001__x0001__x0001__x0001__x0001__x0001__x0001__x0001__x0001__x0001__x0001__x0001__x0001__x0001__x0001__x0001__x0001__x0001__x0001__x0001__x0001__x0001__x0001__x0001__x0001__x0001__x0001__x0001__x0001__x0001__x0001__x0001__x0001__x0001__x0001__x0001__x0001__x0001__x0001__x0001__x0001__x0001__x0001__x0001__x0001__x0001__x0001__x0001__x0001__x0001__x0001__x0001__x0001__x0001__x0001__x0001__x0001__x0001__x0001__x0001__x0001__x0001__x0001__x0001__x0001__x0001__x0001__x0001__x0001__x0001__x0001__x0001__x0001__x0001__x0001__x0001__x0001__x0001__x0001__x0001__x0001__x0001__x0001__x0001__x0001__x0001__x0001_\u0088³@_x0001__x0001__x0001__x0001__x0001__x0001__x0001__x0001__x0001__x0001__x0001__x0001__x0001__x0001__x0001__x0001__x0001__x0001__x0001__x0001__x0001__x0001__x0001__x0001__x0001__x0001__x0001__x0001__x0001_\u0088³@_x0001__x0001__x0001__x0001__x0001__x0001__x0001__x0001__x0001__x0001__x0001__x0001__x0001__x0001__x0001__x0001__x0001__x0001__x0001__x0001__x0001__x0001__x0001__x0001__x0001__x0001__x0001__x0001__x0001__x0001__x0001__x0001__x0001__x0001__x0001__x0001__x0001__x0001__x0001__x0001__x0001__x0001__x0001__x0001__x0001__x0001__x0001__x0001__x0001__x0001__x0001__x0001__x0001__x0001__x0001__x0001__x0001__x0001__x0001__x0001__x0001__x0001__x0001__x0001__x0001__x0001__x0001__x0001__x0001__x0002__x0001__x0001__x0001__x0001__x0001__x0001__x0001__x0001__x0001__x0001__x0001__x0001__x0001__x0001__x0001__x0001__x0001__x0001__x0001__x0001__x0001__x0001__x0001__x0001__x0001__x0001__x0001__x0001__x0001__x0001__x0001__x0001__x0001__x0001__x0001__x0001__x0001__x0001__x0001__x0001__x0001__x0001__x0001__x0001__x0001__x0001__x0001__x0001__x0001__x0001__x0001__x0001__x0001__x0001__x0001__x0001__x0001__x0001__x0001__x0001__x0001__x0001__x0001__x0001__x0001__x0001__x0001__x0001__x0001__x0001__x0001__x0001__x0001__x0001__x0001__x0001__x0001__x0001__x0001__x0001__x0001__x0001__x0001__x0001__x0001__x0001__x0001__x0001__x0001__x0001__x0001__x0001__x0001__x0001__x0001__x0001__x0001__x0001__x0001__x0001__x0001__x0001__x0001__x0001__x0001__x0001__x0001__x0001__x0001__x0001__x0001__x0001__x0001__x0001__x0001__x0001__x0001__x0001__x0001__x0001__x0001__x0001__x0001__x0001__x0001__x0001__x0001__x0001__x0001__x0001__x0001__x0001__x0001__x0001__x0001__x0001__x0001__x0001__x0001__x0001__x0001__x0001__x0001__x0001__x0001__x0001__x0001__x0001__x0001__x0001__x0001__x0001__x0001__x0001__x0001__x0001__x0001__x0001__x0001__x0001__x0001__x0001__x0001__x0001__x0001__x0001__x0001__x0001__x0001__x0001__x0001__x0001__x0001__x0001__x0001__x0001__x0001__x0001__x0001__x0001__x0001__x0001__x0001__x0001__x0001__x0001__x0001__x0001__x0001__x0001__x0001__x0001__x0001__x0001__x0001__x0001__x0001__x0001__x0001__x0001__x0001__x0001__x0001__x0001__x0001__x0001__x0001__x0001__x0001__x0001__x0001__x0001__x0001__x0001__x0001__x0001__x0001__x0001__x0001__x0001__x0001__x0001__x0001__x0001__x0001__x0001__x0001__x0001__x0001__x0001__x0001__x0001__x0001__x0001__x0001__x0001__x0001__x0001__x0001__x0001__x0001__x0001__x0001__x0001__x0001__x0001__x0001__x0001__x0001__x0001__x0001__x0001__x0001__x0002__x0001__x0001__x0001__x0001__x0001__x0001__x0001__x0001__x0001__x0001__x0001__x0001__x0001__x0001__x0001__x0001__x0001__x0001__x0001__x0001__x0001__x0001__x0001__x0001__x0001__x0001__x0001__x0001__x0001__x0001__x0001__x0001__x0001__x0001__x0001__x0001__x0001__x0001__x0001__x0001__x0001__x0001__x0001__x0001__x0001__x0001__x0001__x0001__x0001__x0001__x0001__x0001__x0001__x0001__x0001__x0001__x0001__x0001__x0001__x0001__x0001__x0001__x0001__x0001__x0001__x0001__x0001__x0001__x0001__x0001__x0001__x0001__x0001__x0001__x0001__x0001__x0001__x0001__x"}},{"$cut":{"chars":226098,"head":"2c71c67a938e0854aa089ade98503cbf_x0001__x0002__x0001__x0001__x0001__x0001__x0001__x0001__x0001__x0001__x0001__x0001__x0001__x0001__x0001__x0001__x0001__x0001__x0001__x0001__x0001__x0001__x0001__x0001__x0001__x0001__x0001__x0001__x0001__x0001__x0001__x0001__x0001__x0001__x0001__x0001__x0001__x0001__x0001__x0001__x0001__x0001__x0001__x0001__x0001__x0001__x0001__x0001__x0001__x0001__x0001__x0001__x0001__x0001__x0001__x0001__x0001__x0001__x0001__x0001__x0001__x0001__x0001__x0001__x0001__x0001__x0001__x0001__x0001__x0001__x0001__x0001__x0001__x0001__x0001__x0001__x0001__x0001__x0001__x0001__x0001__x0001__x0001__x0001__x0001__x0001__x0001__x0001__x0001__x0001__x0001__x0001__x0001__x0001__x0001__x0001__x0001__x0001__x0001__x0001__x0001__x0001__x0001__x0001__x0001__x0001__x0001__x0001__x0001__x0001__x0001__x0001__x0001__x0001__x0001__x0001__x0001__x0001__x0001__x0001__x0001__x0001__x0001__x0001__x0001__x0001__x0001__x0001__x0001__x0001__x0001__x0001__x0001__x0001__x0001__x0001__x0001__x0001__x0001__x0001__x0001__x0001__x0001__x0001__x0001__x0001__x0001__x0001__x0001__x0001__x0001__x0001__x0001__x0001__x0001__x0001__x0001__x0001__x0001__x0001__x0001__x0001__x0001__x0001__x0001__x0001__x0001__x0001__x0001__x0001__x0001__x0001__x0001__x0001__x0001__x0001__x0001__x0001__x0001__x0001__x0001__x0001__x0001__x0001__x0001__x0001__x0001__x0001__x0001__x0001__x0001__x0001__x0001__x0001__x0001__x0001__x0001__x0001__x0001__x0001__x0001__x0001__x0001__x0001__x0001__x0001__x0001__x0001__x0001__x0001__x0001__x0001__x0001__x0001__x0001__x0001__x0001__x0001__x0001__x0001__x0001__x0001__x0001__x0001__x0001__x0001__x0001__x0001__x0001__x0001__x0001__x0001__x0001__x0001__x0001__x0001__x0001__x0001__x0001__x0001__x0001__x0001__x0001__x0001__x0001__x0001__x0001__x0001__x0001__x0001__x0001__x0001__x0001__x0001__x0001__x0002__x0001__x0001__x0001__x0001__x0001__x0001__x0001__x0001__x0001__x0001__x0001__x0001__x0001__x0001__x0001__x0001__x0001__x0001__x0001__x0001__x0001__x0001__x0001__x0001__x0001__x0001__x0001__x0001__x0001__x0001__x0001__x0001__x0001__x0001__x0001__x0001__x0001__x0001__x0001__x0001__x0001__x0001__x0001__x0001__x0001__x0001__x0001__x0001__x0001__x0001__x0001__x0001__x0001__x0001__x0001__x0001__x0001__x0001__x0001__x0001__x0001__x0001__x0001__x0001__x0001__x0001__x0001__x0001__x0001__x0001__x0001__x0001__x0001__x0001__x0001__x0001__x0001__x0001__x0001__x0001__x0001__x0001__x0001__x0001__x0001__x0001__x0001__x0001__x0001__x0001__x0001__x0001__x0001__x0001__x0001__x0001__x0001__x0001__x0001__x0001__x0001__x0001__x0001__x0001__x0001__x0001__x0001__x0001__x0001__x0001__x0001__x0001__x0001__x0001__x0001__x0001__x0001__x0001__x0001__x0001__x0001__x0001__x0001__x0001__x0001__x0001__x0001__x0001__x0001__x0001__x0001__x0001__x0001__x0001__x0001__x0001__x0001__x0001__x0001__x0001__x0001__x0001__x0001__x0001__x0001__x0001__x0001__x0001__x0001__x0001__x0001__x0001__x0001__x0001__x0001__x0001__x0001__x0001__x0001__x0001__x0001__x0001__x0001__x0001__x0001__x0001__x0001__x0001__x0001__x0001__x0001__x0001__x0001__x0001__x0001__x0001__x0001__x0001__x0001__x0001__x0001__x0001__x0001__x0001__x0001__x0001__x0001__x0001__x0001__x0001__x0001__x0001__x0001__x0001__x0001__x0001__x0001__x0001__x0001__x0001__x0001__x0001__x0001__x0001__x0001__x0001__x0001__x0001__x0001__x0001__x0001__x0001__x0001__x0001__x0001__x0001__x0001__x0001__x0001__x0001__x0001__x0001__x0001__x0001__x0001__x0001__x0001__x0001__x0001__x0001__x0001__x0001__x0001__x0001__x0001__x0001__x0001__x0001__x0001__x0001__x0001__x0001__x0001__x0001__x0001__x0001__x0001__x0001__x0001__x0001__x0001__x0001__x0001__x0002__x0001__x0001__x0001__x0001__x0001__x0001__x0001__x0001__x0001__x0001__x0001__x0001__x0001__x0001__x0001__x0001__x0001__x0001__x0001__x0001__x0001__x0001__x0001__x0001__x0001__x0001__x0001__x0001__x0001__x0001__x0001__x0001__x0001__x0001__x0001__x0001__x0001__x0001__x0001__x0001__x0001__x0001__x0001__x0001__x0001__x0001__x0001__x0001__x0001__x0001__x0001__x0001__x0001__x0001__x0001__x0001__x0001__x0001__x0001__x0001__x0001__x0001__x0001__x0001__x0001__x0001__x0001__x0001__x0001__x0001__x00"}},{"$cut":{"chars":225168,"head":"0eef2774ef97009a6606c9974cacc402_x0001__x0002__x0001__x0001__x0001__x0001__x0001__x0001__x0001__x0001__x0001__x0001__x0001__x0001__x0001__x0001__x0001__x0001__x0001__x0001__x0001__x0001__x0001__x0001__x0001__x0001__x0001__x0001__x0001__x0001__x0001__x0001__x0001__x0001__x0001__x0001__x0001__x0001__x0001__x0001__x0001__x0001__x0001__x0001__x0001__x0001__x0001__x0001__x0001__x0001__x0001__x0001__x0001__x0001__x0001__x0001__x0001__x0001__x0001__x0001__x0001__x0001__x0001__x0001__x0001__x0001__x0001__x0001__x0001__x0001__x0001__x0001__x0001__x0001__x0001__x0001__x0001__x0001__x0001__x0001__x0001__x0001__x0001__x0001__x0001__x0001__x0001__x0001__x0001__x0001__x0001__x0001__x0001__x0001__x0001__x0001__x0001__x0001__x0001__x0001__x0001__x0001__x0001__x0001__x0001__x0001__x0001__x0001__x0001__x0001__x0001__x0001__x0001__x0001__x0001__x0001__x0001__x0001__x0001__x0001__x0001__x0001__x0001__x0001__x0001__x0001__x0001__x0001__x0001__x0001__x0001__x0001__x0001__x0001__x0001__x0001__x0001__x0001__x0001__x0001__x0001__x0001__x0001__x0001__x0001__x0001__x0001__x0001__x0001__x0001__x0001__x0001__x0001__x0001__x0001__x0001__x0001__x0001__x0001__x0001__x0001__x0001__x0001__x0001__x0001__x0001__x0001_LÝ@_x0001__x0001__x0001__x0001__x0001__x0001__x0001__x0001__x0001__x0001__x0001__x0001__x0001__x0001__x0001__x0001__x0001__x0001__x0001__x0001__x0001__x0001__x0001__x0001__x0001__x0001__x0001__x0001__x0001__x0001__x0001__x0001__x0001__x0001__x0001__x0001__x0001__x0001__x0001__x0001__x0001__x0001__x0001__x0001__x0001__x0001__x0001__x0001__x0001__x0001__x0001__x0001__x0001__x0001__x0001__x0001__x0001__x0001__x0001__x0001__x0001__x0001__x0001__x0001__x0001__x0001__x0001__x0001__x0001__x0001__x0001__x0001__x0001__x0001__x0001__x0001__x0001__x0001__x0001__x0001__x0001__x0001__x0001__x0001__x0001__x0002__x0001__x0001__x0001__x0001__x0001__x0001__x0001__x0001__x0001__x0001__x0001__x0001__x0001__x0001__x0001__x0001__x0001__x0001__x0001__x0001__x0001__x0001__x0001__x0001__x0001__x0001__x0001__x0001__x0001__x0001__x0001__x0001__x0001__x0001__x0001__x0001__x0001__x0001__x0001__x0001__x0001__x0001__x0001__x0001__x0001__x0001__x0001__x0001__x0001__x0001__x0001__x0001__x0001__x0001__x0001__x0001__x0001__x0001__x0001__x0001__x0001__x0001__x0001__x0001__x0001__x0001__x0001__x0001__x0001__x0001__x0001__x0001__x0001__x0001__x0001__x0001__x0001__x0001__x0001__x0001__x0001__x0001__x0001__x0001__x0001__x0001__x0001__x0001__x0001__x0001__x0001__x0001__x0001__x0001__x0001__x0001__x0001__x0001__x0001__x0001__x0001__x0001__x0001__x0001__x0001__x0001__x0001__x0001__x0001__x0001__x0001__x0001__x0001__x0001__x0001__x0001__x0001__x0001__x0001__x0001__x0001__x0001__x0001__x0001__x0001__x0001__x0001__x0001__x0001__x0001__x0001__x0001__x0001__x0001__x0001__x0001__x0001__x0001__x0001__x0001__x0001__x0001__x0001__x0001__x0001__x0001__x0001__x0001__x0001__x0001__x0001__x0001__x0001__x0001__x0001__x0001__x0001__x0001__x0001__x0001__x0001__x0001__x0001__x0001__x0001__x0001__x0001__x0001__x0001__x0001__x0001__x0001__x0001__x0001__x0001__x0001__x0001__x0001__x0001__x0001__x0001__x0001__x0001__x0001__x0001__x0001__x0001__x0001__x0001__x0001__x0001__x0001__x0001__x0001__x0001__x0001__x0001__x0001__x0001__x0001__x0001__x0001__x0001__x0001__x0001__x0001__x0001__x0001__x0001__x0001__x0001__x0001__x0001__x0001__x0001__x0001__x0001__x0001__x0001__x0001__x0001__x0001__x0001__x0001__x0001__x0001__x0001__x0001__x0001__x0001__x0001__x0001__x0001__x0001__x0001__x0001__x0001__x0001__x0001__x0001__x0001__x0001__x0001__x0001__x0001__x0001__x0001__x0001__x0001__x0001__x0001__x0001__x0001__x0002__x0001__x0001__x0001__x0001__x0001__x0001__x0001__x0001__x0001__x0001__x0001__x0001__x0001__x0001__x0001__x0001__x0001__x0001__x0001__x0001__x0001__x0001__x0001__x0001__x0001__x0001__x0001__x0001__x0001__x0001__x0001__x0001__x0001__x0001__x0001__x0001__x0001__x0001__x0001__x0001__x0001__x0001__x0001__x0001__x0001__x0001__x0001__x0001__x0001__x0001__x0001__x0001__x0001__x0001__x0001__x0001__x0001__x0001__x0001__x0001__x0001__x0001__x0001__x0001__x0001__x0001__x0001__x0001__x0001__x0001__x0001__x0001__x0001__"}},{"$cut":{"chars":221460,"head":"93849fd0385d87fd88984feb0ec2473e_x0001__x0002__x0001__x0001__x0001__x0001__x0001__x0001__x0001__x0001__x0001__x0001__x0001__x0001__x0001__x0001__x0001__x0001__x0001__x0001__x0001__x0001__x0001__x0001__x0001__x0001__x0001__x0001__x0001__x0001__x0001__x0001__x0001__x0001__x0001__x0001__x0001__x0001__x0001__x0001__x0001__x0001__x0001__x0001__x0001__x0001__x0001__x0001__x0001__x0001__x0001__x0001__x0001__x0001__x0001__x0001__x0001__x0001__x0001__x0001__x0001__x0001__x0001_\u0088³@_x0001__x0001__x0001__x0001__x0001__x0001__x0001__x0001__x0001__x0001__x0001__x0001__x0001__x0001__x0001__x0001__x0001__x0001__x0001__x0001__x0001__x0001__x0001__x0001__x0001__x0001__x0001__x0001__x0001__x0001__x0001__x0001__x0001__x0001__x0001__x0001__x0001__x0001__x0001__x0001__x0001__x0001__x0001__x0001__x0001__x0001__x0001__x0001__x0001__x0001__x0001__x0001__x0001__x0001__x0001__x0001__x0001__x0001__x0001__x0001__x0001__x0001__x0001__x0001__x0001__x0001__x0001__x0001__x0001__x0001__x0001__x0001__x0001__x0001__x0001__x0001__x0001__x0001__x0001__x0001__x0001__x0001__x0001__x0001__x0001__x0001__x0001__x0001__x0001__x0001__x0001__x0001__x0001__x0001__x0001__x0001__x0001__x0001__x0001__x0001__x0001__x0001__x0001__x0001__x0001__x0001__x0001__x0001__x0001__x0001__x0001__x0001__x0001__x0001__x0001__x0001__x0001__x0001__x0001__x0001__x0001__x0001__x0001__x0001__x0001__x0001__x0001__x0001__x0001__x0001__x0001__x0001__x0001_\u0088³@_x0001__x0001__x0001__x0001__x0001__x0001__x0001__x0001__x0001__x0001__x0001__x0001__x0001__x0001__x0001__x0001__x0001__x0001__x0001__x0001__x0001__x0001__x0001__x0001__x0001__x0001__x0001__x0001__x0001__x0001__x0001__x0001__x0001__x0001__x0001__x0001__x0001__x0001__x0001__x0001__x0001__x0001__x0001__x0001__x0001__x0001__x0001__x0001__x0001__x0001__x0001__x0001__x0001__x0002__x0001__x0001__x0001__x0001__x0001__x0001__x0001__x0001__x0001__x0001__x0001__x0001__x0001__x0001__x0001__x0001__x0001__x0001__x0001__x0001__x0001__x0001__x0001__x0001__x0001__x0001__x0001__x0001__x0001__x0001__x0001__x0001__x0001__x0001__x0001__x0001__x0001__x0001__x0001__x0001__x0001__x0001__x0001__x0001__x0001__x0001__x0001__x0001__x0001__x0001__x0001__x0001__x0001__x0001__x0001__x0001__x0001_\u0088³@_x0001__x0001__x0001__x0001__x0001__x0001__x0001__x0001__x0001__x0001__x0001__x0001__x0001__x0001__x0001__x0001__x0001__x0001__x0001__x0001__x0001__x0001__x0001__x0001__x0001__x0001__x0001__x0001__x0001_\u0088³@_x0001__x0001__x0001__x0001__x0001__x0001__x0001__x0001__x0001__x0001__x0001__x0001__x0001__x0001__x0001__x0001__x0001__x0001__x0001__x0001__x0001__x0001__x0001__x0001__x0001__x0001__x0001__x0001__x0001__x0001__x0001__x0001__x0001__x0001__x0001__x0001__x0001__x0001__x0001__x0001__x0001__x0001__x0001__x0001__x0001__x0001__x0001__x0001__x0001__x0001__x0001__x0001__x0001__x0001__x0001__x0001__x0001__x0001__x0001__x0001__x0001__x0001__x0001__x0001__x0001__x0001__x0001__x0001__x0001__x0001__x0001__x0001__x0001__x0001__x0001__x0001__x0001__x0001__x0001__x0001__x0001__x0001__x0001__x0001__x0001__x0001__x0001__x0001__x0001__x0001__x0001__x0001__x0001_\u0088³@_x0001__x0001__x0001__x0001__x0001__x0001__x0001__x0001__x0001__x0001__x0001__x0001__x0001__x0001__x0001__x0001__x0001__x0001__x0001__x0001__x0001__x0001__x0001__x0001__x0001__x0001__x0001__x0001__x0001__x0001__x0001__x0001__x0001__x0001__x0001__x0001__x0001__x0001__x0001__x0001__x0001__x0001__x0001__x0001__x0001__x0001__x0001__x0001__x0001__x0001__x0001__x0001__x0001__x0001__x0001__x0001__x0001__x0001__x0001__x0001__x0001__x0001__x0001__x0001__x0001__x0002__x0001__x0001__x0001__x0001__x0001_\u0088³@_x0001__x0001__x0001__x0001__x0001__x0001__x0001__x0001__x0001__x0001__x0001__x0001__x0001__x0001__x0001__x0001__x0001__x0001__x0001__x0001__x0001__x0001__x0001__x0001__x0001__x0001__x0001__x0001__x0001__x0001__x0001__x0001__x0001__x0001__x0001__x0001__x0001__x0001__x0001__x0001__x0001__x0001__x0001__x0001__x0001__x0001__x0001__x0001__x0001__x0001__x0001__x0001__x0001__x0001__x0001__x0001__x0001__x0001__x0001__x0001__x0001__x0001__x0001__x0001__x0001__x0001__x0001__x0001__x0001__x0001__x0001__x0001__x0001__x0001__x0001__x0001__x0001__x0001_"}},{"$cut":{"chars":219930,"head":"23b60fef8f162e7bca2b7cad38aa8e51_x0001__x0002__x0001__x0001__x0001__x0001__x0001__x0001__x0001__x0001__x0001__x0001__x0001__x0001__x0001__x0001__x0001__x0001__x0001__x0001__x0001__x0001__x0001__x0001__x0001__x0001__x0001__x0001__x0001__x0001__x0001_\u0088³@_x0001__x0001__x0001__x0001__x0001__x0001__x0001__x0001__x0001__x0001__x0001__x0001__x0001__x0001__x0001__x0001__x0001__x0001__x0001__x0001__x0001__x0001__x0001__x0001__x0001__x0001__x0001__x0001__x0001__x0001__x0001__x0001__x0001__x0001__x0001__x0001__x0001__x0001__x0001__x0001__x0001__x0001__x0001__x0001__x0001__x0001__x0001__x0001__x0001__x0001__x0001__x0001__x0001__x0001__x0001__x0001__x0001__x0001__x0001__x0001__x0001__x0001__x0001__x0001__x0001__x0001__x0001__x0001__x0001__x0001__x0001__x0001__x0001__x0001__x0001__x0001__x0001__x0001__x0001__x0001__x0001__x0001__x0001__x0001__x0001__x0001__x0001__x0001__x0001__x0001__x0001__x0001__x0001__x0001__x0001__x0001__x0001__x0001__x0001__x0001__x0001__x0001__x0001__x0001__x0001__x0001__x0001__x0001__x0001__x0001__x0001__x0001__x0001__x0001__x0001__x0001__x0001__x0001__x0001__x0001__x0001__x0001__x0001__x0001__x0001_\u0088³@_x0001__x0001__x0001__x0001__x0001__x0001__x0001__x0001__x0001__x0001__x0001__x0001__x0001__x0001__x0001__x0001__x0001__x0001__x0001__x0001__x0001__x0001__x0001__x0001__x0001__x0001__x0001__x0001__x0001__x0001__x0001__x0001__x0001__x0001__x0001__x0001__x0001__x0001__x0001__x0001__x0001__x0001__x0001__x0001__x0001__x0001__x0001__x0001__x0001__x0001__x0001__x0001__x0001__x0001__x0001__x0001__x0001__x0001__x0001__x0001__x0001_\u0088³@_x0001__x0001__x0001__x0001__x0001__x0001__x0001__x0001__x0001__x0001__x0001__x0001__x0001_\u0088³@_x0001__x0001__x0001__x0001__x0001__x0001__x0001__x0001__x0001__x0001__x0001__x0001__x0001__x0002__x0001__x0001__x0001__x0001__x0001__x0001__x0001__x0001__x0001__x0001__x0001__x0001__x0001__x0001__x0001__x0001__x0001__x0001__x0001__x0001__x0001__x0001__x0001__x0001__x0001__x0001__x0001__x0001__x0001__x0001__x0001__x0001__x0001__x0001__x0001__x0001__x0001__x0001__x0001__x0001__x0001__x0001__x0001__x0001__x0001__x0001__x0001__x0001__x0001__x0001__x0001__x0001__x0001__x0001__x0001__x0001__x0001__x0001__x0001__x0001__x0001__x0001__x0001__x0001__x0001__x0001__x0001__x0001__x0001__x0001__x0001__x0001__x0001__x0001__x0001__x0001__x0001__x0001__x0001__x0001__x0001__x0001__x0001__x0001__x0001__x0001__x0001__x0001__x0001__x0001__x0001__x0001__x0001__x0001__x0001__x0001__x0001__x0001__x0001__x0001__x0001__x0001__x0001__x0001__x0001__x0001__x0001__x0001__x0001__x0001__x0001__x0001__x0001__x0001__x0001__x0001__x0001__x0001__x0001__x0001__x0001__x0001__x0001__x0001__x0001__x0001__x0001__x0001__x0001__x0001__x0001__x0001__x0001__x0001__x0001__x0001__x0001__x0001__x0001__x0001__x0001__x0001__x0001__x0001__x0001__x0001__x0001__x0001__x0001__x0001__x0001__x0001__x0001__x0001__x0001__x0001__x0001__x0001__x0001__x0001__x0001_\u0088³@_x0001__x0001__x0001__x0001__x0001__x0001__x0001__x0001__x0001__x0001__x0001__x0001__x0001__x0001__x0001__x0001__x0001__x0001__x0001__x0001__x0001__x0001__x0001__x0001__x0001__x0001__x0001__x0001__x0001__x0001__x0001__x0001__x0001__x0001__x0001__x0001__x0001__x0001__x0001__x0001__x0001__x0001__x0001__x0001__x0001__x0001__x0001__x0001__x0001__x0001__x0001__x0001__x0001__x0001__x0001__x0001__x0001__x0001__x0001__x0001__x0001__x0001__x0001__x0001__x0001__x0001__x0001__x0001__x0001__x0001__x0001__x0001__x0001__x0001__x0001__x0001__x0001__x0001__x0001__x0001__x0001__x0001__x0001__x0001__x0001__x0001__x0001__x0001__x0001__x0002__x0001__x0001__x0001__x0001__x0001__x0001__x0001__x0001__x0001__x0001__x0001__x0001__x0001_\u0088³@_x0001__x0001__x0001__x0001__x0001__x0001__x0001__x0001__x0001__x0001__x0001__x0001__x0001__x0001__x0001__x0001__x0001__x0001__x0001__x0001__x0001__x0001__x0001__x0001__x0001__x0001__x0001__x0001__x0001__x0001__x0001__x0001__x0001__x0001__x0001__x0001__x0001__x0001__x0001__x0001__x0001__x0001__x0001__x0001__x0001_\u0088³@_x0001__x0001__x0001__x0001__x0001__x0001__x0001__x0001__x0001__x0001__x0001__x0001__x0001__x0001__x0001__x0001__x0001__x0001__x0001__x0001__x0001__x0001__x0001__x0001__x00"}},{"$cut":{"chars":226554,"head":"39c1ac7c3108605776f1b3683ac5213f_x0001__x0002__x0001__x0001__x0001__x0001__x0001__x0001__x0001__x0001__x0001__x0001__x0001__x0001__x0001__x0001__x0001__x0001__x0001__x0001__x0001__x0001__x0001__x0001__x0001__x0001__x0001__x0001__x0001__x0001__x0001__x0001__x0001__x0001__x0001__x0001__x0001__x0001__x0001__x0001__x0001__x0001__x0001__x0001__x0001__x0001__x0001__x0001__x0001__x0001__x0001__x0001__x0001__x0001__x0001__x0001__x0001__x0001__x0001__x0001__x0001__x0001__x0001__x0001__x0001__x0001__x0001__x0001__x0001__x0001__x0001__x0001__x0001__x0001__x0001__x0001__x0001__x0001__x0001__x0001__x0001__x0001__x0001__x0001__x0001__x0001__x0001__x0001__x0001__x0001__x0001__x0001__x0001__x0001__x0001__x0001__x0001__x0001__x0001__x0001__x0001__x0001__x0001__x0001__x0001__x0001__x0001__x0001__x0001__x0001__x0001__x0001__x0001__x0001__x0001__x0001__x0001__x0001__x0001__x0001__x0001__x0001__x0001__x0001__x0001__x0001__x0001__x0001__x0001__x0001__x0001__x0001__x0001__x0001__x0001__x0001__x0001__x0001__x0001__x0001__x0001__x0001__x0001__x0001__x0001__x0001__x0001__x0001__x0001__x0001__x0001__x0001__x0001__x0001__x0001__x0001__x0001__x0001__x0001__x0001__x0001__x0001__x0001__x0001__x0001__x0001__x0001__x0001__x0001__x0001__x0001__x0001__x0001__x0001__x0001__x0001__x0001__x0001__x0001__x0001__x0001__x0001__x0001__x0001__x0001__x0001__x0001__x0001__x0001__x0001__x0001__x0001__x0001__x0001__x0001__x0001__x0001__x0001__x0001__x0001__x0001__x0001__x0001__x0001__x0001__x0001__x0001__x0001__x0001__x0001__x0001__x0001__x0001__x0001__x0001__x0001__x0001__x0001__x0001__x0001__x0001__x0001__x0001__x0001__x0001__x0001__x0001__x0001__x0001__x0001__x0001__x0001__x0001__x0001__x0001__x0001__x0001__x0001__x0001__x0001__x0001__x0001__x0001__x0001__x0001__x0001__x0001__x0001__x0001__x0001__x0001__x0001__x0001__x0001__x0001__x0002__x0001__x0001__x0001__x0001__x0001__x0001__x0001__x0001__x0001__x0001__x0001__x0001__x0001__x0001__x0001__x0001__x0001__x0001__x0001__x0001__x0001__x0001__x0001__x0001__x0001_@\u009f@_x0001__x0001__x0001__x0001__x0001__x0001__x0001__x0001__x0001__x0001__x0001__x0001__x0001__x0001__x0001__x0001__x0001__x0001__x0001__x0001__x0001__x0001__x0001__x0001__x0001__x0001__x0001__x0001__x0001__x0001__x0001__x0001__x0001__x0001__x0001__x0001__x0001__x0001__x0001__x0001__x0001__x0001__x0001__x0001__x0001__x0001__x0001__x0001__x0001__x0001__x0001__x0001__x0001__x0001__x0001__x0001__x0001__x0001__x0001__x0001__x0001__x0001__x0001__x0001__x0001__x0001__x0001__x0001__x0001__x0001__x0001__x0001__x0001__x0001__x0001__x0001__x0001__x0001__x0001__x0001__x0001__x0001__x0001__x0001__x0001__x0001__x0001__x0001__x0001__x0001__x0001__x0001__x0001__x0001__x0001__x0001__x0001__x0001__x0001__x0001__x0001__x0001__x0001__x0001__x0001__x0001__x0001__x0001__x0001__x0001__x0001__x0001__x0001__x0001__x0001__x0001__x0001__x0001__x0001__x0001__x0001__x0001__x0001__x0001__x0001__x0001__x0001__x0001__x0001__x0001__x0001__x0001__x0001__x0001__x0001__x0001__x0001__x0001__x0001__x0001__x0001__x0001__x0001__x0001__x0001__x0001__x0001__x0001__x0001__x0001__x0001__x0001__x0001__x0001__x0001__x0001__x0001__x0001__x0001__x0001__x0001__x0001__x0001__x0001__x0001__x0001__x0001__x0001__x0001__x0001__x0001__x0001__x0001__x0001__x0001__x0001__x0001__x0001__x0001__x0001__x0001__x0001__x0001__x0001__x0001__x0001__x0001__x0001__x0001__x0001__x0001__x0001__x0001__x0001__x0001__x0001__x0001__x0001__x0001__x0001__x0001__x0001__x0001__x0001__x0001__x0001__x0001__x0001__x0001__x0001__x0001__x0001__x0001__x0001__x0001__x0001__x0001__x0001__x0001__x0001__x0001__x0001__x0001__x0001__x0001__x0002__x0001__x0001__x0001__x0001__x0001__x0001__x0001__x0001__x0001__x0001__x0001__x0001__x0001__x0001__x0001__x0001__x0001__x0001__x0001__x0001__x0001__x0001__x0001__x0001__x0001__x0001__x0001__x0001__x0001__x0001__x0001__x0001__x0001__x0001__x0001__x0001__x0001__x0001__x0001__x0001__x0001__x0001__x0001__x0001__x0001__x0001__x0001__x0001__x0001__x0001__x0001__x0001__x0001__x0001__x0001__x0001__x0001__x0001__x0001__x0001__x0001__x0001__x0001__x0001__x0001__x0001__x0001__x0001__x0001__x0001__x0001__x0001__x0001__"}},{"$cut":{"chars":225396,"head":"0d28c809fd9d3cb77ca5b38656790941_x0001__x0002__x0001__x0001__x0001__x0001__x0001__x0001__x0001__x0001__x0001__x0001__x0001__x0001__x0001__x0001__x0001__x0001__x0001__x0001__x0001__x0001__x0001__x0001__x0001__x0001__x0001__x0001__x0001__x0001__x0001__x0001__x0001__x0001__x0001__x0001__x0001__x0001__x0001__x0001__x0001__x0001__x0001__x0001__x0001__x0001__x0001__x0001__x0001__x0001__x0001__x0001__x0001__x0001__x0001__x0001__x0001__x0001__x0001__x0001__x0001__x0001__x0001_@\u009f@_x0001__x0001__x0001__x0001__x0001__x0001__x0001__x0001__x0001__x0001__x0001__x0001__x0001__x0001__x0001__x0001__x0001__x0001__x0001__x0001__x0001__x0001__x0001__x0001__x0001__x0001__x0001__x0001__x0001__x0001__x0001__x0001__x0001__x0001__x0001__x0001__x0001__x0001__x0001__x0001__x0001__x0001__x0001__x0001__x0001__x0001__x0001__x0001__x0001__x0001__x0001__x0001__x0001__x0001__x0001__x0001__x0001__x0001__x0001__x0001__x0001__x0001__x0001__x0001__x0001__x0001__x0001__x0001__x0001__x0001__x0001__x0001__x0001__x0001__x0001__x0001__x0001__x0001__x0001__x0001__x0001__x0001__x0001__x0001__x0001__x0001__x0001__x0001__x0001__x0001__x0001__x0001__x0001__x0001__x0001__x0001__x0001__x0001__x0001__x0001__x0001__x0001__x0001__x0001__x0001__x0001__x0001__x0001__x0001__x0001__x0001__x0001__x0001__x0001__x0001__x0001__x0001__x0001__x0001__x0001__x0001__x0001__x0001__x0001__x0001__x0001__x0001__x0001__x0001__x0001__x0001__x0001__x0001__x0001__x0001__x0001__x0001__x0001__x0001__x0001__x0001__x0001__x0001__x0001__x0001__x0001__x0001__x0001__x0001__x0001__x0001__x0001__x0001__x0001__x0001__x0001__x0001__x0001__x0001__x0001__x0001__x0001__x0001__x0001__x0001__x0001__x0001__x0001__x0001__x0001__x0001__x0001__x0001__x0001__x0001__x0001__x0001__x0001__x0001__x0001__x0001__x0001__x0001__x0001__x0001__x0001__x0001__x0001__x0001__x0002__x0001__x0001__x0001__x0001__x0001__x0001__x0001__x0001__x0001__x0001__x0001__x0001__x0001__x0001__x0001__x0001__x0001__x0001__x0001__x0001__x0001__x0001__x0001__x0001__x0001__x0001__x0001__x0001__x0001__x0001__x0001__x0001__x0001__x0001__x0001__x0001__x0001__x0001__x0001__x0001__x0001__x0001__x0001__x0001__x0001__x0001__x0001__x0001__x0001__x0001__x0001__x0001__x0001__x0001__x0001__x0001__x0001__x0001__x0001__x0001__x0001__x0001__x0001__x0001__x0001__x0001__x0001__x0001__x0001__x0001__x0001__x0001__x0001__x0001__x0001__x0001__x0001__x0001__x0001__x0001__x0001__x0001__x0001__x0001__x0001__x0001__x0001__x0001__x0001__x0001__x0001__x0001__x0001__x0001__x0001__x0001__x0001__x0001__x0001__x0001__x0001__x0001__x0001__x0001__x0001__x0001__x0001__x0001__x0001__x0001__x0001__x0001__x0001__x0001__x0001__x0001__x0001__x0001__x0001__x0001__x0001__x0001__x0001__x0001__x0001__x0001__x0001__x0001__x0001__x0001__x0001__x0001__x0001__x0001__x0001__x0001__x0001__x0001__x0001__x0001__x0001__x0001__x0001__x0001__x0001__x0001__x0001__x0001__x0001__x0001__x0001__x0001__x0001__x0001__x0001__x0001__x0001__x0001__x0001__x0001__x0001__x0001__x0001__x0001__x0001__x0001__x0001__x0001__x0001__x0001__x0001__x0001__x0001__x0001__x0001__x0001__x0001__x0001__x0001__x0001__x0001__x0001__x0001__x0001__x0001__x0001__x0001__x0001__x0001__x0001__x0001__x0001__x0001__x0001__x0001__x0001__x0001__x0001__x0001__x0001__x0001__x0001__x0001__x0001__x0001__x0001__x0001__x0001__x0001__x0001__x0001__x0001__x0001__x0001__x0001__x0001__x0001__x0001__x0001__x0001__x0001__x0001__x0001__x0001__x0001__x0001__x0001__x0001__x0001__x0001__x0001__x0001__x0001__x0001__x0001__x0001__x0001__x0001__x0001__x0001__x0001__x0001__x0001__x0001__x0001__x0001__x0001__x0001__x0001__x0001__x0001__x0001__x0001__x0002__x0001__x0001__x0001__x0001__x0001__x0001__x0001__x0001__x0001__x0001__x0001__x0001__x0001__x0001__x0001__x0001__x0001__x0001__x0001__x0001__x0001__x0001__x0001__x0001__x0001__x0001__x0001__x0001__x0001__x0001__x0001__x0001__x0001__x0001__x0001__x0001__x0001__x0001__x0001__x0001__x0001__x0001__x0001__x0001__x0001__x0001__x0001__x0001__x0001__x0001__x0001__x0001__x0001__x0001__x0001__x0001__x0001__x0001__x0001__x0001__x0001__x0001__x0001__x0001__x0001__x0001__x0001__x0001__x0001__x0001__x0001__x0001__x0001__"}},{"$cut":{"chars":226608,"head":"746aab07dc4b47430dd307fe882dab34_x0001__x0002__x0001__x0001__x0001__x0001__x0001__x0001__x0001__x0001__x0001__x0001__x0001__x0001__x0001__x0001__x0001__x0001__x0001__x0001__x0001__x0001__x0001__x0001__x0001__x0001__x0001__x0001__x0001__x0001__x0001__x0001__x0001__x0001__x0001__x0001__x0001__x0001__x0001__x0001__x0001__x0001__x0001__x0001__x0001__x0001__x0001__x0001__x0001__x0001__x0001__x0001__x0001__x0001__x0001__x0001__x0001__x0001__x0001__x0001__x0001__x0001__x0001__x0001__x0001__x0001__x0001__x0001__x0001__x0001__x0001__x0001__x0001__x0001__x0001__x0001__x0001__x0001__x0001__x0001__x0001__x0001__x0001__x0001__x0001__x0001__x0001__x0001__x0001__x0001__x0001__x0001__x0001__x0001__x0001__x0001__x0001__x0001__x0001__x0001__x0001__x0001__x0001__x0001__x0001__x0001__x0001__x0001__x0001__x0001__x0001__x0001__x0001__x0001__x0001__x0001__x0001__x0001__x0001__x0001__x0001__x0001__x0001__x0001__x0001__x0001__x0001__x0001__x0001__x0001__x0001__x0001__x0001__x0001__x0001__x0001__x0001__x0001__x0001__x0001__x0001__x0001__x0001__x0001__x0001__x0001__x0001__x0001__x0001__x0001__x0001__x0001__x0001__x0001__x0001__x0001__x0001__x0001__x0001__x0001__x0001__x0001__x0001__x0001__x0001__x0001__x0001__x0001__x0001__x0001__x0001__x0001__x0001__x0001__x0001__x0001__x0001__x0001__x0001__x0001__x0001__x0001__x0001__x0001__x0001__x0001__x0001__x0001__x0001__x0001__x0001__x0001__x0001__x0001__x0001__x0001__x0001__x0001__x0001__x0001__x0001__x0001__x0001__x0001__x0001__x0001__x0001__x0001__x0001__x0001__x0001__x0001__x0001__x0001__x0001__x0001__x0001__x0001__x0001__x0001__x0001__x0001__x0001__x0001__x0001__x0001__x0001__x0001__x0001__x0001__x0001__x0001__x0001__x0001__x0001__x0001__x0001__x0001__x0001__x0001__x0001__x0001__x0001__x0001__x0001__x0001__x0001__x0001__x0001__x0001__x0001__x0001__x0001__x0001__x0001__x0002__x0001__x0001__x0001__x0001__x0001__x0001__x0001__x0001__x0001__x0001__x0001__x0001__x0001__x0001__x0001__x0001__x0001__x0001__x0001__x0001__x0001__x0001__x0001__x0001__x0001__x0001__x0001__x0001__x0001__x0001__x0001__x0001__x0001_@\u009f@_x0001__x0001__x0001__x0001__x0001__x0001__x0001__x0001__x0001__x0001__x0001__x0001__x0001__x0001__x0001__x0001__x0001__x0001__x0001__x0001__x0001__x0001__x0001__x0001__x0001__x0001__x0001__x0001__x0001__x0001__x0001__x0001__x0001__x0001__x0001__x0001__x0001__x0001__x0001__x0001__x0001__x0001__x0001__x0001__x0001__x0001__x0001__x0001__x0001__x0001__x0001__x0001__x0001__x0001__x0001__x0001__x0001__x0001__x0001__x0001__x0001__x0001__x0001__x0001__x0001__x0001__x0001__x0001__x0001__x0001__x0001__x0001__x0001__x0001__x0001__x0001__x0001__x0001__x0001__x0001__x0001__x0001__x0001__x0001__x0001__x0001__x0001__x0001__x0001__x0001__x0001__x0001__x0001__x0001__x0001__x0001__x0001__x0001__x0001__x0001__x0001__x0001__x0001__x0001__x0001__x0001__x0001__x0001__x0001__x0001__x0001__x0001__x0001__x0001__x0001__x0001__x0001__x0001__x0001__x0001__x0001__x0001__x0001__x0001__x0001__x0001__x0001__x0001__x0001__x0001__x0001__x0001__x0001__x0001__x0001__x0001__x0001__x0001__x0001__x0001__x0001__x0001__x0001__x0001__x0001__x0001__x0001__x0001__x0001__x0001__x0001__x0001__x0001__x0001__x0001__x0001__x0001__x0001__x0001__x0001__x0001__x0001__x0001__x0001__x0001__x0001__x0001__x0001__x0001__x0001__x0001__x0001__x0001__x0001__x0001__x0001__x0001__x0001__x0001__x0001__x0001__x0001__x0001__x0001__x0001__x0001__x0001__x0001__x0001__x0001__x0001__x0001__x0001__x0001__x0001__x0001__x0001__x0001__x0001__x0001__x0001__x0001__x0001__x0001__x0001__x0001__x0001__x0001__x0001__x0001__x0001__x0001__x0001__x0001__x0001__x0001__x0001__x0002__x0001__x0001__x0001__x0001__x0001__x0001__x0001__x0001__x0001__x0001__x0001__x0001__x0001__x0001__x0001__x0001__x0001__x0001__x0001__x0001__x0001__x0001__x0001__x0001__x0001__x0001__x0001__x0001__x0001__x0001__x0001__x0001__x0001__x0001__x0001__x0001__x0001__x0001__x0001__x0001__x0001__x0001__x0001__x0001__x0001__x0001__x0001__x0001__x0001__x0001__x0001__x0001__x0001__x0001__x0001__x0001__x0001__x0001__x0001__x0001__x0001__x0001__x0001__x0001__x0001__x0001__x0001__x0001__x0001__x0001__x0001__x0001__x0001__"}},{"$cut":{"chars":224268,"head":"9cb87d8f8c854bc1ddcc9ee33b1828e0_x0001__x0002__x0001__x0001__x0001__x0001__x0001__x0001__x0001__x0001__x0001__x0001__x0001__x0001__x0001__x0001__x0001__x0001__x0001__x0001__x0001__x0001__x0001__x0001__x0001__x0001__x0001__x0001__x0001__x0001__x0001__x0001__x0001__x0001__x0001__x0001__x0001__x0001__x0001__x0001__x0001__x0001__x0001__x0001__x0001__x0001__x0001__x0001__x0001__x0001__x0001__x0001__x0001__x0001__x0001__x0001__x0001__x0001__x0001__x0001__x0001__x0001__x0001__x0001__x0001__x0001__x0001__x0001__x0001__x0001__x0001__x0001__x0001__x0001__x0001__x0001__x0001__x0001__x0001__x0001__x0001__x0001__x0001__x0001__x0001__x0001__x0001__x0001__x0001__x0001__x0001__x0001__x0001__x0001__x0001__x0001__x0001__x0001__x0001__x0001__x0001__x0001__x0001__x0001__x0001__x0001__x0001__x0001__x0001__x0001__x0001__x0001__x0001__x0001__x0001__x0001__x0001__x0001__x0001__x0001__x0001__x0001__x0001__x0001__x0001__x0001__x0001__x0001__x0001__x0001__x0001__x0001__x0001__x0001__x0001__x0001__x0001__x0001__x0001__x0001__x0001__x0001__x0001__x0001__x0001__x0001__x0001__x0001__x0001__x0001__x0001__x0001__x0001__x0001__x0001__x0001__x0001__x0001__x0001__x0001__x0001__x0001__x0001__x0001__x0001__x0001__x0001__x0001__x0001__x0001__x0001__x0001__x0001__x0001__x0001__x0001__x0001__x0001__x0001__x0001__x0001__x0001__x0001__x0001__x0001__x0001__x0001__x0001__x0001__x0001__x0001__x0001__x0001__x0001__x0001__x0001__x0001__x0001__x0001__x0001__x0001__x0001__x0001__x0001__x0001__x0001__x0001__x0001__x0001__x0001__x0001__x0001__x0001__x0001__x0001__x0001__x0001__x0001__x0001__x0001__x0001__x0001__x0001__x0001__x0001__x0001__x0001__x0001__x0001__x0001__x0001__x0001__x0001__x0001__x0001__x0001__x0001__x0001__x0001__x0001__x0001__x0001__x0001__x0001__x0001__x0001__x0001__x0001__x0001__x0001__x0001__x0001__x0001__x0001__x0001__x0002__x0001__x0001__x0001__x0001__x0001__x0001__x0001__x0001__x0001__x0001__x0001__x0001__x0001__x0001__x0001__x0001__x0001__x0001__x0001__x0001__x0001__x0001__x0001__x0001__x0001__x0001__x0001__x0001__x0001__x0001__x0001__x0001__x0001__x0001__x0001__x0001__x0001__x0001__x0001__x0001__x0001__x0001__x0001__x0001__x0001__x0001__x0001__x0001__x0001__x0001__x0001__x0001__x0001__x0001__x0001__x0001__x0001__x0001__x0001__x0001__x0001__x0001__x0001__x0001__x0001__x0001__x0001__x0001__x0001__x0001__x0001__x0001__x0001__x0001__x0001__x0001__x0001__x0001__x0001__x0001__x0001__x0001__x0001__x0001__x0001__x0001__x0001__x0001__x0001__x0001__x0001__x0001__x0001__x0001__x0001__x0001__x0001__x0001__x0001__x0001__x0001__x0001__x0001__x0001__x0001__x0001__x0001__x0001__x0001__x0001__x0001__x0001__x0001__x0001__x0001__x0001__x0001__x0001__x0001__x0001__x0001__x0001__x0001__x0001__x0001__x0001__x0001__x0001__x0001__x0001__x0001__x0001__x0001__x0001__x0001__x0001__x0001__x0001__x0001__x0001__x0001__x0001__x0001__x0001__x0001__x0001__x0001__x0001__x0001__x0001__x0001__x0001__x0001__x0001__x0001__x0001__x0001__x0001__x0001__x0001__x0001__x0001__x0001__x0001__x0001__x0001__x0001__x0001__x0001__x0001__x0001__x0001__x0001__x0001__x0001__x0001__x0001__x0001__x0001__x0001__x0001__x0001__x0001__x0001__x0001__x0001__x0001__x0001__x0001__x0001__x0001__x0001__x0001__x0001__x0001__x0001__x0001__x0001__x0001__x0001__x0001__x0001__x0001__x0001__x0001__x0001__x0001__x0001__x0001__x0001__x0001__x0001__x0001__x0001__x0001__x0001__x0001__x0001__x0001__x0001__x0001__x0001__x0001__x0001__x0001__x0001__x0001__x0001__x0001__x0001__x0001__x0001__x0001__x0001__x0001__x0001__x0001__x0001__x0001__x0001__x0001__x0001__x0001__x0001__x0001__x0001__x0001__x0001__x0001__x0001__x0001__x0001__x0001__x0002__x0001__x0001__x0001__x0001__x0001__x0001__x0001__x0001__x0001__x0001__x0001__x0001__x0001__x0001__x0001__x0001__x0001__x0001__x0001__x0001__x0001__x0001__x0001__x0001__x0001__x0001__x0001__x0001__x0001__x0001__x0001__x0001__x0001__x0001__x0001__x0001__x0001__x0001__x0001__x0001__x0001__x0001__x0001__x0001__x0001__x0001__x0001__x0001__x0001__x0001__x0001__x0001__x0001__x0001__x0001__x0001__x0001__x0001__x0001__x0001__x0001__x0001__x0001__x0001__x0001__x0001__x0001__x0001__x0001__x0001__x00"}},{"$cut":{"chars":226446,"head":"8f8287e3843f4b4144c5136f4129e552_x0001__x0002__x0001__x0001__x0001__x0001__x0001__x0001__x0001__x0001__x0001__x0001__x0001__x0001__x0001__x0001__x0001__x0001__x0001__x0001__x0001__x0001__x0001__x0001__x0001__x0001__x0001__x0001__x0001__x0001__x0001__x0001__x0001__x0001__x0001__x0001__x0001__x0001__x0001__x0001__x0001__x0001__x0001__x0001__x0001__x0001__x0001__x0001__x0001__x0001__x0001__x0001__x0001__x0001__x0001__x0001__x0001__x0001__x0001__x0001__x0001__x0001__x0001__x0001__x0001__x0001__x0001__x0001__x0001__x0001__x0001__x0001__x0001__x0001__x0001__x0001__x0001__x0001__x0001__x0001__x0001__x0001__x0001__x0001__x0001__x0001__x0001__x0001__x0001__x0001__x0001__x0001__x0001__x0001__x0001__x0001__x0001__x0001__x0001__x0001__x0001__x0001__x0001__x0001__x0001__x0001__x0001__x0001__x0001__x0001__x0001__x0001__x0001__x0001__x0001__x0001__x0001__x0001__x0001__x0001__x0001__x0001__x0001__x0001__x0001__x0001__x0001__x0001__x0001__x0001__x0001__x0001__x0001__x0001__x0001__x0001__x0001__x0001__x0001__x0001__x0001__x0001__x0001__x0001__x0001__x0001__x0001__x0001__x0001__x0001__x0001__x0001__x0001__x0001__x0001__x0001__x0001__x0001__x0001__x0001__x0001__x0001__x0001__x0001__x0001__x0001__x0001__x0001__x0001__x0001__x0001__x0001__x0001__x0001__x0001__x0001__x0001__x0001__x0001__x0001__x0001__x0001__x0001__x0001__x0001__x0001__x0001__x0001__x0001__x0001__x0001__x0001__x0001__x0001__x0001__x0001__x0001__x0001__x0001__x0001__x0001__x0001__x0001__x0001__x0001__x0001__x0001__x0001__x0001__x0001__x0001__x0001__x0001__x0001__x0001__x0001__x0001__x0001__x0001__x0001__x0001__x0001__x0001__x0001__x0001__x0001__x0001__x0001__x0001__x0001__x0001__x0001__x0001__x0001__x0001__x0001__x0001__x0001__x0001__x0001__x0001__x0001__x0001__x0001__x0001__x0001__x0001__x0001__x0001__x0001__x0001__x0001__x0001__x0001__x0001__x0002__x0001__x0001__x0001__x0001__x0001__x0001__x0001__x0001__x0001__x0001__x0001__x0001__x0001__x0001__x0001__x0001__x0001__x0001__x0001__x0001__x0001__x0001__x0001__x0001__x0001__x0001__x0001__x0001__x0001__x0001__x0001__x0001__x0001__x0001__x0001__x0001__x0001__x0001__x0001__x0001__x0001_\u0088³@_x0001__x0001__x0001__x0001__x0001__x0001__x0001__x0001__x0001__x0001__x0001__x0001__x0001__x0001__x0001__x0001__x0001__x0001__x0001__x0001__x0001__x0001__x0001__x0001__x0001__x0001__x0001__x0001__x0001__x0001__x0001__x0001__x0001__x0001__x0001__x0001__x0001__x0001__x0001__x0001__x0001__x0001__x0001__x0001__x0001__x0001__x0001__x0001__x0001__x0001__x0001__x0001__x0001__x0001__x0001__x0001__x0001__x0001__x0001__x0001__x0001__x0001__x0001__x0001__x0001__x0001__x0001__x0001__x0001__x0001__x0001__x0001__x0001__x0001__x0001__x0001__x0001__x0001__x0001__x0001__x0001__x0001__x0001__x0001__x0001__x0001__x0001__x0001__x0001__x0001__x0001__x0001__x0001__x0001__x0001__x0001__x0001__x0001__x0001__x0001__x0001__x0001__x0001__x0001__x0001__x0001__x0001__x0001__x0001__x0001__x0001__x0001__x0001__x0001__x0001__x0001__x0001__x0001__x0001__x0001__x0001__x0001__x0001__x0001__x0001__x0001__x0001__x0001__x0001__x0001__x0001__x0001__x0001__x0001__x0001__x0001__x0001__x0001__x0001__x0001__x0001__x0001__x0001__x0001__x0001__x0001__x0001__x0001__x0001__x0001__x0001__x0001__x0001__x0001__x0001__x0001__x0001__x0001__x0001__x0001__x0001__x0001__x0001__x0001__x0001__x0001__x0001__x0001__x0001__x0001__x0001__x0001__x0001__x0001__x0001__x0001__x0001__x0001__x0001__x0001__x0001__x0001__x0001__x0001__x0001__x0001__x0001__x0001__x0001__x0001__x0001__x0001__x0001__x0001__x0001__x0001__x0001__x0001__x0001__x0001__x0001__x0001__x0001__x0001__x0001__x0001__x0001__x0001__x0001__x0002__x0001__x0001__x0001__x0001__x0001__x0001__x0001__x0001__x0001__x0001__x0001__x0001__x0001__x0001__x0001__x0001__x0001__x0001__x0001__x0001__x0001__x0001__x0001__x0001__x0001__x0001__x0001__x0001__x0001__x0001__x0001__x0001__x0001__x0001__x0001__x0001__x0001__x0001__x0001__x0001__x0001__x0001__x0001__x0001__x0001__x0001__x0001__x0001__x0001__x0001__x0001__x0001__x0001__x0001__x0001__x0001__x0001__x0001__x0001__x0001__x0001_\u0088³@_x0001__x0001__x0001__x0001__x0001__x0001__x0001__x0001__x0001__x0001__x0001__x000"}},{"$cut":{"chars":226326,"head":"28395b5e248f6257c6ff7972180a6acb_x0001__x0002__x0001__x0001__x0001__x0001__x0001__x0001__x0001__x0001__x0001__x0001__x0001__x0001__x0001__x0001__x0001__x0001__x0001__x0001__x0001__x0001__x0001__x0001__x0001__x0001__x0001__x0001__x0001__x0001__x0001__x0001__x0001__x0001__x0001__x0001__x0001__x0001__x0001__x0001__x0001__x0001__x0001__x0001__x0001__x0001__x0001__x0001__x0001__x0001__x0001__x0001__x0001__x0001__x0001__x0001__x0001__x0001__x0001__x0001__x0001__x0001__x0001__x0001__x0001__x0001__x0001__x0001__x0001__x0001__x0001__x0001__x0001__x0001__x0001__x0001__x0001__x0001__x0001__x0001__x0001__x0001__x0001__x0001__x0001__x0001__x0001__x0001__x0001__x0001__x0001__x0001__x0001__x0001__x0001__x0001__x0001__x0001__x0001__x0001__x0001__x0001__x0001__x0001__x0001__x0001__x0001__x0001__x0001__x0001__x0001__x0001__x0001__x0001__x0001__x0001__x0001__x0001__x0001__x0001__x0001__x0001__x0001__x0001__x0001__x0001__x0001__x0001__x0001__x0001__x0001__x0001__x0001__x0001__x0001__x0001__x0001__x0001__x0001__x0001__x0001__x0001__x0001__x0001__x0001__x0001__x0001__x0001__x0001__x0001__x0001__x0001__x0001__x0001__x0001__x0001__x0001__x0001__x0001__x0001__x0001__x0001__x0001__x0001__x0001__x0001__x0001__x0001__x0001__x0001__x0001__x0001__x0001__x0001__x0001__x0001__x0001__x0001__x0001__x0001__x0001__x0001__x0001__x0001__x0001__x0001__x0001__x0001__x0001__x0001__x0001__x0001__x0001__x0001__x0001__x0001__x0001__x0001__x0001__x0001__x0001__x0001__x0001__x0001__x0001__x0001__x0001__x0001__x0001__x0001__x0001__x0001__x0001__x0001__x0001__x0001__x0001__x0001__x0001__x0001__x0001__x0001__x0001__x0001__x0001__x0001__x0001__x0001__x0001__x0001__x0001__x0001__x0001__x0001__x0001__x0001__x0001__x0001__x0001__x0001__x0001__x0001__x0001__x0001__x0001__x0001__x0001__x0001__x0001__x0001__x0001__x0001__x0001__x0001__x0001__x0002__x0001__x0001__x0001__x0001__x0001__x0001__x0001__x0001__x0001__x0001__x0001__x0001__x0001__x0001__x0001__x0001__x0001__x0001__x0001__x0001__x0001__x0001__x0001__x0001__x0001__x0001__x0001__x0001__x0001__x0001__x0001__x0001__x0001__x0001__x0001__x0001__x0001__x0001__x0001__x0001__x0001__x0001__x0001__x0001__x0001__x0001__x0001__x0001__x0001__x0001__x0001__x0001__x0001__x0001__x0001__x0001__x0001__x0001__x0001__x0001__x0001__x0001__x0001__x0001__x0001__x0001__x0001__x0001__x0001__x0001__x0001__x0001__x0001__x0001__x0001__x0001__x0001__x0001__x0001__x0001__x0001__x0001__x0001__x0001__x0001__x0001__x0001__x0001__x0001__x0001__x0001__x0001__x0001__x0001__x0001__x0001__x0001__x0001__x0001__x0001__x0001__x0001__x0001__x0001__x0001__x0001__x0001__x0001__x0001__x0001__x0001__x0001__x0001__x0001__x0001__x0001__x0001__x0001__x0001__x0001__x0001__x0001__x0001__x0001__x0001__x0001__x0001__x0001__x0001__x0001__x0001__x0001__x0001__x0001__x0001__x0001__x0001__x0001__x0001__x0001__x0001__x0001__x0001__x0001__x0001__x0001__x0001__x0001__x0001__x0001__x0001__x0001__x0001__x0001__x0001__x0001__x0001__x0001__x0001__x0001__x0001__x0001__x0001__x0001__x0001__x0001__x0001__x0001__x0001__x0001__x0001__x0001__x0001__x0001__x0001__x0001__x0001__x0001__x0001__x0001__x0001__x0001__x0001__x0001__x0001__x0001__x0001__x0001__x0001__x0001__x0001__x0001__x0001__x0001__x0001__x0001__x0001__x0001__x0001__x0001__x0001__x0001__x0001__x0001__x0001__x0001__x0001__x0001__x0001__x0001__x0001__x0001__x0001__x0001__x0001__x0001__x0001__x0001__x0001__x0001__x0001__x0001__x0001__x0001__x0001__x0001__x0001__x0001__x0001__x0001__x0001__x0001__x0001__x0001__x0001__x0001__x0001__x0001__x0001__x0001__x0001__x0001__x0001__x0001__x0001__x0001__x0001__x0001__x0001__x0001__x0001__x0001__x0001__x0002__x0001__x0001__x0001__x0001__x0001__x0001__x0001__x0001__x0001__x0001__x0001__x0001__x0001__x0001__x0001__x0001__x0001__x0001__x0001__x0001__x0001__x0001__x0001__x0001__x0001__x0001__x0001__x0001__x0001__x0001__x0001__x0001__x0001__x0001__x0001__x0001__x0001__x0001__x0001__x0001__x0001__x0001__x0001__x0001__x0001__x0001__x0001__x0001__x0001__x0001__x0001__x0001__x0001__x0001__x0001__x0001__x0001__x0001__x0001__x0001__x0001__x0001__x0001__x0001__x0001__x0001__x0001__x0001__x0001__x0001__x00"}},{"$cut":{"chars":226842,"head":"cfb382ff8cc403a342199efa6dd6bc61_x0001__x0002__x0001__x0001__x0001__x0001__x0001__x0001__x0001__x0001__x0001__x0001__x0001__x0001__x0001__x0001__x0001__x0001__x0001__x0001__x0001__x0001__x0001__x0001__x0001__x0001__x0001__x0001__x0001__x0001__x0001__x0001__x0001__x0001__x0001__x0001__x0001__x0001__x0001__x0001__x0001__x0001__x0001__x0001__x0001__x0001__x0001__x0001__x0001__x0001__x0001__x0001__x0001__x0001__x0001__x0001__x0001__x0001__x0001__x0001__x0001__x0001__x0001__x0001__x0001__x0001__x0001__x0001__x0001__x0001__x0001__x0001__x0001__x0001__x0001__x0001__x0001__x0001__x0001__x0001__x0001__x0001__x0001__x0001__x0001__x0001__x0001__x0001__x0001__x0001__x0001__x0001__x0001__x0001__x0001__x0001__x0001__x0001__x0001__x0001__x0001__x0001__x0001__x0001__x0001__x0001__x0001__x0001__x0001__x0001__x0001__x0001__x0001__x0001__x0001__x0001__x0001__x0001__x0001__x0001__x0001__x0001__x0001__x0001__x0001__x0001__x0001__x0001__x0001__x0001__x0001__x0001__x0001__x0001__x0001__x0001__x0001__x0001__x0001__x0001__x0001__x0001__x0001__x0001__x0001__x0001__x0001__x0001__x0001__x0001__x0001__x0001__x0001__x0001__x0001__x0001__x0001__x0001__x0001__x0001__x0001__x0001__x0001__x0001__x0001__x0001__x0001__x0001__x0001__x0001__x0001__x0001__x0001__x0001__x0001__x0001__x0001__x0001__x0001__x0001__x0001__x0001__x0001__x0001__x0001__x0001__x0001__x0001__x0001__x0001__x0001__x0001__x0001__x0001__x0001__x0001__x0001__x0001__x0001__x0001__x0001__x0001__x0001__x0001__x0001__x0001__x0001__x0001__x0001__x0001__x0001__x0001__x0001__x0001__x0001__x0001__x0001__x0001__x0001__x0001__x0001__x0001__x0001__x0001__x0001__x0001__x0001__x0001__x0001__x0001__x0001__x0001__x0001__x0001__x0001__x0001__x0001__x0001__x0001__x0001__x0001__x0001__x0001__x0001__x0001__x0001__x0001__x0001__x0001__x0001__x0001__x0001__x0001__x0001__x0001__x0002__x0001__x0001__x0001__x0001__x0001__x0001__x0001__x0001__x0001__x0001__x0001__x0001__x0001__x0001__x0001__x0001__x0001__x0001__x0001__x0001__x0001__x0001__x0001__x0001__x0001__x0001__x0001__x0001__x0001__x0001__x0001__x0001__x0001__x0001__x0001__x0001__x0001__x0001__x0001__x0001__x0001__x0001__x0001__x0001__x0001__x0001__x0001__x0001__x0001__x0001__x0001__x0001__x0001__x0001__x0001__x0001__x0001__x0001__x0001__x0001__x0001__x0001__x0001__x0001__x0001__x0001__x0001__x0001__x0001__x0001__x0001__x0001__x0001__x0001__x0001__x0001__x0001__x0001__x0001__x0001__x0001__x0001__x0001__x0001__x0001__x0001__x0001__x0001__x0001__x0001__x0001__x0001__x0001__x0001__x0001__x0001__x0001__x0001__x0001__x0001__x0001__x0001__x0001__x0001__x0001__x0001__x0001__x0001__x0001__x0001__x0001__x0001__x0001__x0001__x0001__x0001__x0001__x0001__x0001__x0001__x0001__x0001__x0001__x0001__x0001__x0001__x0001__x0001__x0001__x0001__x0001__x0001__x0001__x0001__x0001__x0001__x0001__x0001__x0001__x0001__x0001__x0001__x0001__x0001__x0001__x0001__x0001__x0001__x0001__x0001__x0001__x0001__x0001__x0001__x0001__x0001__x0001__x0001__x0001__x0001__x0001__x0001__x0001__x0001__x0001__x0001__x0001__x0001__x0001__x0001__x0001__x0001__x0001__x0001__x0001__x0001__x0001__x0001__x0001__x0001__x0001__x0001__x0001__x0001__x0001__x0001__x0001__x0001__x0001__x0001__x0001__x0001__x0001__x0001__x0001__x0001__x0001__x0001__x0001__x0001__x0001__x0001__x0001__x0001__x0001__x0001__x0001__x0001__x0001__x0001__x0001__x0001__x0001__x0001__x0001__x0001__x0001__x0001__x0001__x0001__x0001__x0001__x0001__x0001__x0001__x0001__x0001__x0001__x0001__x0001__x0001__x0001__x0001__x0001__x0001__x0001__x0001__x0001__x0001__x0001__x0001__x0001__x0001__x0001__x0001__x0001__x0001__x0001__x0001__x0001__x0001__x0001__x0001__x0002__x0001__x0001__x0001__x0001__x0001__x0001__x0001__x0001__x0001__x0001__x0001__x0001__x0001__x0001__x0001__x0001__x0001__x0001__x0001__x0001__x0001__x0001__x0001__x0001__x0001__x0001__x0001__x0001__x0001__x0001__x0001__x0001__x0001__x0001__x0001__x0001__x0001__x0001__x0001__x0001__x0001__x0001__x0001__x0001__x0001__x0001__x0001__x0001__x0001__x0001__x0001__x0001__x0001__x0001__x0001__x0001__x0001__x0001__x0001__x0001__x0001__x0001__x0001__x0001__x0001__x0001__x0001__x0001__x0001__x0001__x00"}},{"$cut":{"chars":221454,"head":"d20a78e1fd7af270707bd0b1cfd405a7_x0001__x0002__x0001__x0001__x0001__x0001__x0001__x0001__x0001__x0001__x0001__x0001__x0001__x0001__x0001__x0001__x0001__x0001__x0001__x0001__x0001__x0001__x0001__x0001__x0001__x0001__x0001__x0001__x0001__x0001__x0001__x0001__x0001__x0001__x0001__x0001__x0001__x0001__x0001__x0001__x0001__x0001__x0001__x0001__x0001__x0001__x0001__x0001__x0001__x0001__x0001__x0001__x0001__x0001__x0001__x0001__x0001__x0001__x0001__x0001__x0001__x0001__x0001__x0001__x0001__x0001__x0001__x0001__x0001__x0001__x0001__x0001__x0001__x0001__x0001__x0001__x0001__x0001__x0001__x0001__x0001__x0001__x0001__x0001__x0001__x0001__x0001__x0001__x0001__x0001__x0001__x0001__x0001__x0001__x0001__x0001__x0001__x0001__x0001__x0001__x0001__x0001__x0001__x0001__x0001__x0001__x0001__x0001__x0001__x0001__x0001__x0001__x0001__x0001__x0001__x0001__x0001__x0001__x0001__x0001__x0001__x0001__x0001__x0001__x0001__x0001__x0001__x0001__x0001__x0001__x0001__x0001__x0001__x0001__x0001__x0001__x0001__x0001__x0001__x0001__x0001__x0001__x0001__x0001__x0001__x0001__x0001__x0001__x0001__x0001__x0001__x0001__x0001__x0001__x0001__x0001__x0001__x0001__x0001__x0001__x0001__x0001__x0001__x0001__x0001__x0001__x0001__x0001__x0001__x0001__x0001__x0001__x0001__x0001__x0001__x0001__x0001__x0001__x0001__x0001__x0001__x0001__x0001__x0001__x0001__x0001__x0001__x0001__x0001__x0001__x0001__x0001__x0001__x0001__x0001__x0001__x0001__x0001__x0001__x0001__x0001__x0001__x0001__x0001__x0001__x0001__x0001__x0001__x0001__x0001__x0001__x0001__x0001__x0001__x0001__x0001__x0001__x0001__x0001__x0001__x0001__x0001__x0001__x0001__x0001__x0001__x0001__x0001__x0001__x0001__x0001__x0001__x0001__x0001__x0001__x0001__x0001__x0001__x0001__x0001__x0001__x0001__x0001__x0001__x0001__x0001__x0001__x0001__x0001__x0001__x0001__x0001__x0001__x0001__x0001__x0002__x0001__x0001__x0001__x0001__x0001__x0001__x0001__x0001__x0001__x0001__x0001__x0001__x0001__x0001__x0001__x0001__x0001__x0001__x0001__x0001__x0001__x0001__x0001__x0001__x0001__x0001__x0001__x0001__x0001__x0001__x0001__x0001__x0001__x0001__x0001__x0001__x0001__x0001__x0001__x0001__x0001__x0001__x0001__x0001__x0001__x0001__x0001__x0001__x0001__x0001__x0001__x0001__x0001__x0001__x0001__x0001__x0001__x0001__x0001__x0001__x0001__x0001__x0001__x0001__x0001__x0001__x0001__x0001__x0001__x0001__x0001__x0001__x0001__x0001__x0001__x0001__x0001__x0001__x0001__x0001__x0001__x0001__x0001__x0001__x0001__x0001__x0001__x0001__x0001__x0001__x0001__x0001__x0001__x0001__x0001__x0001__x0001__x0001__x0001__x0001__x0001__x0001__x0001__x0001__x0001__x0001__x0001__x0001__x0001__x0001__x0001__x0001__x0001__x0001__x0001__x0001__x0001__x0001__x0001__x0001__x0001__x0001__x0001__x0001__x0001__x0001__x0001__x0001__x0001__x0001__x0001__x0001__x0001__x0001__x0001__x0001__x0001__x0001__x0001__x0001__x0001__x0001__x0001__x0001__x0001__x0001__x0001__x0001__x0001__x0001__x0001__x0001__x0001__x0001__x0001__x0001__x0001__x0001__x0001__x0001__x0001__x0001__x0001__x0001__x0001__x0001__x0001__x0001__x0001__x0001__x0001__x0001__x0001__x0001__x0001__x0001__x0001__x0001__x0001__x0001__x0001__x0001__x0001__x0001__x0001__x0001__x0001__x0001__x0001__x0001__x0001__x0001__x0001__x0001__x0001__x0001__x0001__x0001__x0001__x0001__x0001__x0001__x0001__x0001__x0001__x0001__x0001__x0001__x0001__x0001__x0001__x0001__x0001__x0001__x0001__x0001__x0001__x0001__x0001__x0001__x0001__x0001__x0001__x0001__x0001__x0001__x0001__x0001__x0001__x0001__x0001__x0001__x0001__x0001__x0001__x0001__x0001__x0001__x0001__x0001__x0001__x0001__x0001__x0001__x0001__x0001__x0001__x0001__x0001__x0001__x0001__x0001__x0001__x0002__x0001__x0001__x0001__x0001__x0001__x0001__x0001__x0001__x0001__x0001__x0001__x0001__x0001__x0001__x0001__x0001__x0001__x0001__x0001__x0001__x0001__x0001__x0001__x0001__x0001__x0001__x0001__x0001__x0001__x0001__x0001__x0001__x0001__x0001__x0001__x0001__x0001__x0001__x0001__x0001__x0001__x0001__x0001__x0001__x0001__x0001__x0001__x0001__x0001__x0001__x0001__x0001__x0001__x0001__x0001__x0001__x0001__x0001__x0001__x0001__x0001__x0001__x0001__x0001__x0001__x0001__x0001__x0001__x0001__x0001__x00"}},{"$cut":{"chars":220380,"head":"dafdfb79e3db513ed92f44c3c2e9913c_x0001__x0002__x0001__x0001__x0001__x0001__x0001_\u0088³@_x0001__x0001__x0001__x0001__x0001__x0001__x0001__x0001__x0001__x0001__x0001__x0001__x0001__x0001__x0001__x0001__x0001__x0001__x0001__x0001__x0001__x0001__x0001__x0001__x0001__x0001__x0001__x0001__x0001__x0001__x0001__x0001__x0001__x0001__x0001__x0001__x0001__x0001__x0001__x0001__x0001__x0001__x0001__x0001__x0001__x0001__x0001__x0001__x0001__x0001__x0001__x0001__x0001__x0001__x0001__x0001__x0001__x0001__x0001__x0001__x0001__x0001__x0001__x0001__x0001__x0001__x0001__x0001__x0001__x0001__x0001__x0001__x0001__x0001__x0001__x0001__x0001__x0001__x0001__x0001__x0001__x0001__x0001__x0001__x0001__x0001__x0001__x0001__x0001__x0001__x0001__x0001__x0001__x0001__x0001__x0001__x0001__x0001__x0001__x0001__x0001__x0001__x0001__x0001__x0001__x0001__x0001__x0001__x0001__x0001__x0001__x0001__x0001__x0001__x0001__x0001__x0001__x0001__x0001__x0001__x0001__x0001__x0001__x0001__x0001__x0001__x0001__x0001__x0001__x0001__x0001__x0001__x0001__x0001__x0001__x0001__x0001__x0001__x0001__x0001__x0001__x0001__x0001__x0001__x0001__x0001__x0001__x0001__x0001__x0001__x0001__x0001__x0001__x0001__x0001__x0001__x0001__x0001__x0001__x0001__x0001__x0001__x0001__x0001__x0001__x0001__x0001__x0001__x0001__x0001__x0001__x0001__x0001__x0001__x0001__x0001__x0001__x0001__x0001__x0001__x0001__x0001__x0001__x0001__x0001__x0001__x0001__x0001__x0001__x0001__x0001__x0001__x0001__x0001__x0001__x0001__x0001__x0001__x0001__x0001__x0001__x0001__x0001__x0001__x0001__x0001__x0001__x0001__x0001__x0001__x0001__x0001__x0001_\u0088³@_x0001__x0001__x0001__x0001__x0001_\u0088³@_x0001__x0001__x0001__x0001__x0001__x0001__x0001__x0001__x0001__x0001__x0001__x0001__x0001__x0001__x0001__x0001__x0001__x0001__x0001__x0001__x0001__x0002__x0001__x0001__x0001__x0001__x0001__x0001__x0001__x0001__x0001__x0001__x0001__x0001__x0001__x0001__x0001__x0001__x0001__x0001__x0001__x0001__x0001__x0001__x0001__x0001__x0001__x0001__x0001__x0001__x0001__x0001__x0001__x0001__x0001__x0001__x0001__x0001__x0001__x0001__x0001__x0001__x0001__x0001__x0001__x0001__x0001__x0001__x0001__x0001__x0001__x0001__x0001__x0001__x0001__x0001__x0001__x0001__x0001__x0001__x0001__x0001__x0001__x0001__x0001__x0001__x0001__x0001__x0001__x0001__x0001__x0001__x0001__x0001__x0001__x0001__x0001__x0001__x0001__x0001__x0001__x0001__x0001__x0001__x0001__x0001__x0001__x0001__x0001__x0001__x0001__x0001__x0001__x0001__x0001__x0001__x0001__x0001__x0001__x0001__x0001__x0001__x0001__x0001__x0001__x0001__x0001__x0001__x0001__x0001__x0001__x0001__x0001__x0001__x0001__x0001__x0001__x0001__x0001__x0001__x0001__x0001__x0001__x0001__x0001__x0001__x0001__x0001__x0001__x0001__x0001__x0001__x0001__x0001__x0001__x0001__x0001__x0001__x0001__x0001__x0001__x0001__x0001__x0001__x0001__x0001__x0001__x0001__x0001__x0001__x0001__x0001__x0001__x0001__x0001__x0001__x0001__x0001__x0001__x0001__x0001__x0001__x0001__x0001__x0001__x0001__x0001__x0001__x0001__x0001__x0001__x0001__x0001__x0001__x0001__x0001__x0001__x0001__x0001__x0001__x0001__x0001__x0001__x0001__x0001__x0001__x0001__x0001__x0001__x0001__x0001__x0001__x0001__x0001__x0001_\u0088³@_x0001__x0001__x0001__x0001__x0001__x0001__x0001__x0001__x0001__x0001__x0001__x0001__x0001__x0001__x0001__x0001__x0001__x0001__x0001__x0001__x0001__x0001__x0001__x0001__x0001__x0001__x0001__x0001__x0001_\u0088³@_x0001__x0001__x0001__x0001__x0001_\u0088³@_x0001__x0001__x0001__x0001__x0001__x0001__x0001__x0001__x0001__x0001__x0001__x0001__x0001__x0001__x0001__x0001__x0001__x0002__x0001__x0001__x0001__x0001__x0001__x0001__x0001__x0001__x0001__x0001__x0001__x0001__x0001_\u0088³@_x0001__x0001__x0001__x0001__x0001__x0001__x0001__x0001__x0001__x0001__x0001__x0001__x0001__x0001__x0001__x0001__x0001__x0001__x0001__x0001__x0001__x0001__x0001__x0001__x0001__x0001__x0001__x0001__x0001_\u0088³@_x0001__x0001__x0001__x0001__x0001__x0001__x0001__x0001__x0001__x0001__x0001__x0001__x0001__x0001__x0001__x0001__x0001__x0001__x0001__x0001__x0001__x0001__x0001__x0001__x0001__x0001__x0001__x0001__x0001__x0001__x0001__x0001__x0001__x0001__x0001__x0001__x0001__x0001__x0001__x0001__x0001__x0001__x0001__"}},{"$cut":{"chars":217680,"head":"8fbbcb909796d603b240e398e4961ec1_x0001__x0002__x0001__x0001__x0001__x0001__x0001__x0001__x0001__x0001__x0001__x0001__x0001__x0001__x0001__x0001__x0001__x0001__x0001__x0001__x0001__x0001__x0001__x0001__x0001__x0001__x0001__x0001__x0001__x0001__x0001__x0001__x0001__x0001__x0001__x0001__x0001__x0001__x0001_\u0088³@_x0001__x0001__x0001__x0001__x0001__x0001__x0001__x0001__x0001__x0001__x0001__x0001__x0001__x0001__x0001__x0001__x0001__x0001__x0001__x0001__x0001__x0001__x0001__x0001__x0001__x0001__x0001__x0001__x0001__x0001__x0001__x0001__x0001__x0001__x0001__x0001__x0001__x0001__x0001__x0001__x0001__x0001__x0001__x0001__x0001__x0001__x0001__x0001__x0001__x0001__x0001__x0001__x0001__x0001__x0001__x0001__x0001__x0001__x0001__x0001__x0001_\u0088³@_x0001__x0001__x0001__x0001__x0001_\u0088³@_x0001__x0001__x0001__x0001__x0001__x0001__x0001__x0001__x0001__x0001__x0001__x0001__x0001__x0001__x0001__x0001__x0001__x0001__x0001__x0001__x0001__x0001__x0001__x0001__x0001__x0001__x0001__x0001__x0001__x0001__x0001__x0001__x0001__x0001__x0001__x0001__x0001__x0001__x0001__x0001__x0001__x0001__x0001__x0001__x0001__x0001__x0001__x0001__x0001__x0001__x0001__x0001__x0001_\u0088³@_x0001__x0001__x0001__x0001__x0001__x0001__x0001__x0001__x0001__x0001__x0001__x0001__x0001__x0001__x0001__x0001__x0001__x0001__x0001__x0001__x0001__x0001__x0001__x0001__x0001__x0001__x0001__x0001__x0001__x0001__x0001__x0001__x0001__x0001__x0001__x0001__x0001__x0001__x0001__x0001__x0001__x0001__x0001__x0001__x0001__x0001__x0001__x0001__x0001__x0001__x0001__x0001__x0001__x0001__x0001__x0001__x0001__x0001__x0001__x0001__x0001__x0001__x0001__x0001__x0001__x0001__x0001__x0001__x0001_\u0088³@_x0001__x0001__x0001__x0001__x0001__x0001__x0001__x0001__x0001__x0001__x0001__x0001__x0001__x0002__x0001__x0001__x0001__x0001__x0001__x0001__x0001__x0001__x0001__x0001__x0001__x0001__x0001__x0001__x0001__x0001__x0001_\u0088³@_x0001__x0001__x0001__x0001__x0001__x0001__x0001__x0001__x0001__x0001__x0001__x0001__x0001__x0001__x0001__x0001__x0001__x0001__x0001__x0001__x0001__x0001__x0001__x0001__x0001__x0001__x0001__x0001__x0001__x0001__x0001__x0001__x0001__x0001__x0001__x0001__x0001__x0001__x0001__x0001__x0001__x0001__x0001__x0001__x0001__x0001__x0001__x0001__x0001__x0001__x0001__x0001__x0001__x0001__x0001__x0001__x0001__x0001__x0001__x0001__x0001__x0001__x0001__x0001__x0001__x0001__x0001__x0001__x0001__x0001__x0001__x0001__x0001__x0001__x0001__x0001__x0001__x0001__x0001__x0001__x0001__x0001__x0001__x0001__x0001_\u0088³@_x0001__x0001__x0001__x0001__x0001_\u0088³@_x0001__x0001__x0001__x0001__x0001__x0001__x0001__x0001__x0001__x0001__x0001__x0001__x0001__x0001__x0001__x0001__x0001__x0001__x0001__x0001__x0001__x0001__x0001__x0001__x0001__x0001__x0001__x0001__x0001__x0001__x0001__x0001__x0001__x0001__x0001__x0001__x0001__x0001__x0001__x0001__x0001__x0001__x0001__x0001__x0001__x0001__x0001__x0001__x0001__x0001__x0001__x0001__x0001__x0001__x0001__x0001__x0001__x0001__x0001__x0001__x0001__x0001__x0001__x0001__x0001__x0001__x0001__x0001__x0001__x0001__x0001__x0001__x0001__x0001__x0001__x0001__x0001__x0001__x0001__x0001__x0001__x0001__x0001__x0001__x0001__x0001__x0001__x0001__x0001__x0001__x0001__x0001__x0001__x0001__x0001__x0001__x0001__x0001__x0001__x0001__x0001__x0001__x0001__x0001__x0001__x0001__x0001__x0001__x0001__x0001__x0001__x0001__x0001__x0001__x0001__x0001__x0001__x0001__x0001__x0001__x0001__x0001__x0001__x0001__x0001__x0001__x0001__x0001__x0001__x0001__x0001__x0001__x0001__x0001__x0001__x0001__x0001__x0002__x0001__x0001__x0001__x0001__x0001__x0001__x0001__x0001__x0001__x0001__x0001__x0001__x0001__x0001__x0001__x0001__x0001__x0001__x0001__x0001__x0001__x0001__x0001__x0001__x0001__x0001__x0001__x0001__x0001__x0001__x0001__x0001__x0001__x0001__x0001__x0001__x0001_\u0088³@_x0001__x0001__x0001__x0001__x0001__x0001__x0001__x0001__x0001__x0001__x0001__x0001__x0001__x0001__x0001__x0001__x0001__x0001__x0001__x0001__x0001__x0001__x0001__x0001__x0001__x0001__x0001__x0001__x0001__x0001__x0001__x0001__x0001__x0001__x0001__x0001__x0001__x0001__x0001__x0001__x0001__x0001__x0001__x0001__x0001__x0001__x0001__x0001__x0001__x0001__x0001__x0001__x0001__x000"}},{"$cut":{"chars":207066,"head":"58018f24998aac0eaab8225c1ad6f2c6_x0001__x0002__x0001__x0001__x0001__x0001__x0001__x0001__x0001__x0001__x0001__x0001__x0001__x0001__x0001__x0001__x0001__x0001__x0001__x0001__x0001__x0001__x0001__x0001__x0001__x0001__x0001__x0001__x0001__x0001__x0001__x0001_ð?_x0001__x0001__x0001__x0001__x0001__x0001_ð?_x0001__x0001__x0001__x0001__x0001__x0001__x0001__x0001__x0001__x0001__x0001__x0001__x0001__x0001__x0001__x0001__x0001__x0001__x0001__x0001__x0001__x0001__x0001__x0001__x0001__x0001__x0001__x0001__x0001__x0001__x0001__x0001__x0001__x0001__x0001__x0001__x0001__x0001_ð?_x0001__x0001__x0001__x0001__x0001__x0001__x0001__x0001__x0001__x0001__x0001__x0001__x0001__x0001__x0001__x0001__x0001__x0001__x0001__x0001__x0001__x0001__x0001__x0001__x0001__x0001__x0001__x0001__x0001__x0001__x0001__x0001__x0001__x0001__x0001__x0001__x0001__x0001__x0001__x0001__x0001__x0001__x0001__x0001__x0001__x0001_ð?_x0001__x0001__x0001__x0001__x0001__x0001__x0001__x0001__x0001__x0001__x0001__x0001__x0001__x0001__x0001__x0001__x0001__x0001__x0001__x0001__x0001__x0001__x0001__x0001__x0001__x0001__x0001__x0001__x0001__x0001__x0001__x0001__x0001__x0001__x0001__x0001__x0001__x0001__x0001__x0001__x0001__x0001__x0001__x0001__x0001__x0001__x0001__x0001__x0001__x0001__x0001__x0001__x0001__x0001__x0001__x0001__x0001__x0001__x0001__x0001__x0001__x0001__x0001__x0001__x0001__x0001__x0001__x0001__x0001__x0001__x0001__x0001__x0001__x0001__x0001__x0001__x0001__x0001__x0001__x0001__x0001__x0001__x0001__x0001__x0001__x0001__x0001__x0001__x0001__x0001__x0001__x0001__x0001__x0001__x0001__x0001__x0001__x0001__x0001__x0001__x0001__x0001__x0001__x0001__x0001__x0001__x0001__x0001__x0001__x0001__x0001__x0001__x0001__x0001__x0001__x0001__x0001__x0001__x0001__x0001__x0001__x0001__x0001__x0001__x0001__x0002__x0001__x0001__x0001__x0001__x0001__x0001__x0001__x0001__x0001__x0001__x0001__x0001__x0001__x0001__x0001__x0001__x0001__x0001__x0001__x0001__x0001__x0001__x0001__x0001__x0001__x0001__x0001__x0001__x0001__x0001__x0001__x0001__x0001__x0001__x0001__x0001__x0001__x0001__x0001__x0001__x0001__x0001__x0001__x0001__x0001__x0001__x0001__x0001__x0001__x0001_ð?_x0001__x0001__x0001__x0001__x0001__x0001__x0001__x0001__x0001__x0001__x0001__x0001__x0001__x0001__x0001__x0001__x0001__x0001__x0001__x0001__x0001__x0001__x0001__x0001__x0001__x0001__x0001__x0001__x0001__x0001__x0001__x0001__x0001__x0001__x0001__x0001__x0001__x0001__x0001__x0001__x0001__x0001__x0001__x0001__x0001__x0001__x0001__x0001__x0001__x0001__x0001__x0001__x0001__x0001__x0001__x0001__x0001__x0001__x0001__x0001__x0001__x0001_ð?_x0001__x0001__x0001__x0001__x0001__x0001__x0001__x0001__x0001__x0001__x0001__x0001__x0001__x0001__x0001__x0001__x0001__x0001__x0001__x0001__x0001__x0001__x0001__x0001__x0001__x0001__x0001__x0001__x0001__x0001__x0001__x0001__x0001__x0001__x0001__x0001__x0001__x0001__x0001__x0001__x0001__x0001__x0001__x0001__x0001__x0001__x0001__x0001__x0001__x0001__x0001__x0001__x0001__x0001_ð?_x0001__x0001__x0001__x0001__x0001__x0001_ð?_x0001__x0001__x0001__x0001__x0001__x0001__x0001__x0001__x0001__x0001__x0001__x0001__x0001__x0001_ð?_x0001__x0001__x0001__x0001__x0001__x0001__x0001__x0001__x0001__x0001__x0001__x0001__x0001__x0001__x0001__x0001__x0001__x0001__x0001__x0001__x0001__x0001__x0001__x0001__x0001__x0001__x0001__x0001__x0001__x0001_ð?_x0001__x0001__x0001__x0001__x0001__x0001__x0001__x0001__x0001__x0001__x0001__x0001__x0001__x0001__x0001__x0001__x0001__x0001__x0001__x0001__x0001__x0001__x0001__x0001__x0001__x0002__x0001__x0001__x0001__x0001__x0001__x0001__x0001__x0001__x0001__x0001__x0001__x0001__x0001__x0001__x0001__x0001__x0001__x0001__x0001__x0001__x0001__x0001__x0001__x0001__x0001__x0001__x0001__x0001__x0001__x0001__x0001__x0001__x0001__x0001__x0001__x0001__x0001__x0001__x0001__x0001__x0001__x0001__x0001__x0001__x0001__x0001__x0001__x0001__x0001__x0001__x0001__x0001__x0001__x0001__x0001__x0001__x0001__x0001__x0001__x0001__x0001__x0001__x0001__x0001__x0001__x0001__x0001__x0001__x0001__x0001__x0001__x0001__x0001__x0001__x0001__x0001__x0001__x0001__x0001__x0001__x0001__x0001__x0001__x0001__x0001__x0001__x0001__x000"}},{"$cut":{"chars":61368,"head":"3818c3ec206ee16bad71874f0a2c48e8_x0001__x0002__x0001__x0001__x0001__x0001__x0001__x0001__x0008_@_x0001__x0001__x0001__x0001__x0001__x0001__x0001_@_x0001__x0001__x0001__x0001__x0001__x0001__x0001_@_x0001__x0001__x0001__x0001__x0001__x0001__x0001_@_x0001__x0001__x0001__x0001__x0001__x0001__x0001_@_x0001__x0001__x0001__x0001__x0001__x0001__x0008_@_x0001__x0001__x0001__x0001__x0001__x0001__x0008_@_x0001__x0001__x0001__x0001__x0001__x0001__x0001_@_x0001__x0001__x0001__x0001__x0001__x0001__x0001_@_x0001__x0001__x0001__x0001__x0001__x0001__x0001_@_x0001__x0001__x0001__x0001__x0001__x0001__x0008_@_x0001__x0001__x0001__x0001__x0001__x0001__x0008_@_x0001__x0001__x0001__x0001__x0001__x0001__x0008_@_x0001__x0001__x0001__x0001__x0001__x0001__x0001_@_x0001__x0001__x0001__x0001__x0001__x0001__x0001_@_x0001__x0001__x0001__x0001__x0001__x0001__x0008_@_x0001__x0001__x0001__x0001__x0001__x0001__x0001_@_x0001__x0001__x0001__x0001__x0001__x0001__x0001_@_x0001__x0001__x0001__x0001__x0001__x0001__x0008_@_x0001__x0001__x0001__x0001__x0001__x0001__x0008_@_x0001__x0001__x0001__x0001__x0001__x0001__x0001_@_x0001__x0001__x0001__x0001__x0001__x0001__x0001_@_x0001__x0001__x0001__x0001__x0001__x0001__x0001_@_x0001__x0001__x0001__x0001__x0001__x0001__x0008_@_x0001__x0001__x0001__x0001__x0001__x0001__x0001_@_x0001__x0001__x0001__x0001__x0001__x0001__x0008_@_x0001__x0001__x0001__x0001__x0001__x0001__x0008_@_x0001__x0001__x0001__x0001__x0001__x0001__x0001_@_x0001__x0001__x0001__x0001__x0001__x0001__x0001_@_x0001__x0001__x0001__x0001__x0001__x0001__x0008_@_x0001__x0001__x0001__x0001__x0001__x0001__x0008_@_x0001__x0001__x0001__x0001__x0001__x0002__x0001__x0001__x0008_@_x0001__x0001__x0001__x0001__x0001__x0001__x0001_@_x0001__x0001__x0001__x0001__x0001__x0001__x0001_@_x0001__x0001__x0001__x0001__x0001__x0001__x0008_@_x0001__x0001__x0001__x0001__x0001__x0001__x0001_@_x0001__x0001__x0001__x0001__x0001__x0001__x0001_@_x0001__x0001__x0001__x0001__x0001__x0001__x0008_@_x0001__x0001__x0001__x0001__x0001__x0001__x0008_@_x0001__x0001__x0001__x0001__x0001__x0001__x0001_@_x0001__x0001__x0001__x0001__x0001__x0001__x0008_@_x0001__x0001__x0001__x0001__x0001__x0001__x0008_@_x0001__x0001__x0001__x0001__x0001__x0001__x0008_@_x0001__x0001__x0001__x0001__x0001__x0001__x0008_@_x0001__x0001__x0001__x0001__x0001__x0001__x0008_@_x0001__x0001__x0001__x0001__x0001__x0001__x0008_@_x0001__x0001__x0001__x0001__x0001__x0001__x0008_@_x0001__x0001__x0001__x0001__x0001__x0001__x0008_@_x0001__x0001__x0001__x0001__x0001__x0001__x0008_@_x0001__x0001__x0001__x0001__x0001__x0001__x0001_@_x0001__x0001__x0001__x0001__x0001__x0001__x0008_@_x0001__x0001__x0001__x0001__x0001__x0001__x0008_@_x0001__x0001__x0001__x0001__x0001__x0001__x0001_@_x0001__x0001__x0001__x0001__x0001__x0001__x0001_@_x0001__x0001__x0001__x0001__x0001__x0001__x0001_@_x0001__x0001__x0001__x0001__x0001__x0001__x0008_@_x0001__x0001__x0001__x0001__x0001__x0001__x0001_@_x0001__x0001__x0001__x0001__x0001__x0001__x0008_@_x0001__x0001__x0001__x0001__x0001__x0001__x0001_@_x0001__x0001__x0001__x0001__x0001__x0001__x0001_@_x0001__x0001__x0001__x0001__x0001__x0001__x0008_@_x0001__x0001__x0001__x0001__x0001__x0001__x0008_@_x0001__x0001__x0001__x0001__x0001__x0001__x0008_@_x0001__x0002__x0001__x0001__x0001__x0001__x0001__x0001__x0008_@_x0001__x0001__x0001__x0001__x0001__x0001__x0001_@_x0001__x0001__x0001__x0001__x0001__x0001__x0008_@_x0001__x0001__x0001__x0001__x0001__x0001__x0008_@_x0001__x0001__x0001__x0001__x0001__x0001__x0001_@_x0001__x0001__x0001__x0001__x0001__x0001__x0001_@_x0001__x0001__x0001__x0001__x0001__x0001__x0008_@_x0001__x0001__x0001__x0001__x0001__x0001__x0008_@_x0001__x0001__x0001__x0001__x0001__x0001__x0008_@_x0001__x0001__x0001__x0001__x0001__x0001__x0001_@_x0001__x0001__x0001__x0001__x0001__x0001__x0001_@_x0001__x0001__x0001__x0001__x0001__x0001__x0001_@_x0001__x0001__x0001__x0001__x0001__x0001__x0001_@_x0001__x0001__x0001__x0001__x0001__x0001__x0008_@_x0001__x0001__x0001__x0001__x0001__x0001__x0008_@_x0001__x0001__x0001__x0001__x0001__x0001__x0008_@_x0001__x0001__x0001__x0001__x0001__x0001__x0008_@_x0001__x0001__x0001__"}},{"$cut":{"chars":52092,"head":"6db8897b1a566b727053355f20f19b4c_x0001__x0005_TM±_x0014_Í&\u0084@¯©_x0015_\u0089 m\u0089ÀÄª\u0081ØFsrÀ¸_x000B_Zk²\u0096fÀ¾ÄÉ_x0012_½y\u0090À\u0080×\u009a÷Ë_x0004_`@.\u008c¼_x001F_ö°\u0095À@_x001D_§³W_x001D_\u0089ÀÅ$\u0093\u0098'È\u0098À,Mb_x000C_ª,\u0085@Ä#«ÑÑ_x0013_\u008e@à_x001A_e_?2~À_x0003_G*\u008e¼_x0017_\u0093À_x000C_ëÿ_x000D_·Kp@\u0090 m\u009dþ_x0011_`@`<Ua\u0098ÝL@°x& ¾_x0002_\u0094@Ø×_x0016_._x001B_.qÀlÀ_x001F_M\u0090m\u0094@\u0090lÆ¢¯sf@$ì|Ï\u008f0\u0083@_x0001_:{¤+j7ÀÀ×Wfutj@ ËÎ¦;~|@P®\u009eLÕ\u008e\u0086À_x0004_¨Û_x0001_RâxÀø»\u008c_x001C__x000E_!oÀ\u0084g\"\" 3s@p_x0013_¯_x000C_z_x0014_oÀ/½åàþ~\u0094À\u0090o\u0092\u0094\u0084*X@Y_x0003_ºÞ_x0002__x0003_;G\u008bÀsØ\u0096ô}Ê\u008dÀ\u009f:Kâ9ö\u0090ÀìÇi\u009aÊÜ\u008eÀ\u0080_x0002_¨_x001D_|\u0087;À_x0008_L,û4°n@.zDpñg\u0090@xÇ_x0007_g\u0091ô~À$1\u0087(Z_x0001_sÀ_x0002_/_x0002_Q\tÀZ@8Ð§\u0097_x001C_\u0094xÀ¬\u008d\u0093sÎ\u007f\u0087@_x0018_´ÔÊGöq@_x0002_=1_x000B_»_x0019_\u008c@à.È_ØhT@(³Ï\u008aÈa\u0087@Ý>f·_x0011_í\u008fÀö\u00848À\u0099G\u0085À 1\u0084~B \u0088@¶_x0004__x0018_1 !\u0086ÀÀ\u009d_x000D_D\u0085_x0005_l@H?Ñ§3_x001C_}@¤ºm_x0007_aD{À8=çþÄuz@_x000E__x001F_+_x001A_ÖH\u0095À_x0002_N¡!ª{_x0007_À_x001E_/~_x001A__x0011_Ü\u0084À\u008c6Ln}â\u0083@`ä§\u008aSýp@ÈA(xkUq@`£XñË~w@ ¥_x0014_\u0083uà\u0095À_x0002__x0005_è\u008b\u0092\u0094L_x001B_\u0086@Ä¤_x0003_»Lo\u0080Àì{:'  \u0081@X_x0005_¹\u008e+#\u0080@ñ®9¢Mõ\u0095ÀðWýF]\u009eu@ÖÛÚú-­\u0091@J`oh_x0011_°\u008eÀ`_x0014_ô{-ÃwÀP*_x0013_89â\u007f@8)ËÀüH\u0086@\u0084ÛÝ\u009bfO\u0081@ÈÍÃ_x0001_PY\u0085@_x000C_°S#\u0092c\u008b@À$Óµg¤\\@l_x0002__x001F_¬NØ\u0083@ôf½\u008f¯_x0008_yÀ¤´B3_x001B__x001E_qÀd^\u0099`ûº\u0093À0+.ºm1c@°íT¯\u0086Ão@üªô]ÂÆ\u0080ÀX\u008erª)6u@\u009c\u0080\u0086¥_x0004_÷zÀ Ð»SvÖbÀ \u009f_x0001__x0019_\u0099ªf@\u0090S_x0003_\u008e®Ë\u0083@\u0088ÖÍþ¦\u0086hÀð\u0095ÕãÖP\u0084@Ø\u009a\u0089cÏ×jÀ_x0010_½^£_x001C_\ty@à<Â\u0080_x0001__x0002_ñëQÀhq¶´Å\u0082\u0091À0àOèf¤{@h\u009cý[¡¬qÀ\u0080Î\u009d0UúPÀ_x0004_3¥_x000F_ùi\u0090@p_x0018_}}£=fÀ <O$ÿHn@Áé©5zj\u008aÀxWoÞ}\u009b\u0089@hn_x001E_9¢J|Àð_x000F_ËLÍ¬jÀXÂTt_x0014_½}@tâ_x001A__x001B_¶/\u0086À,\u0086ä0¦r\u0086@\\_x0017_\u0092o¬_x0010_\u008b@°Ïbÿ\u0088\t^@_x0004_ëÈ\u0089É_x000B_\u0081@\u0090àñjÅ\u0083`À¸#_x000B_\u007f\u0093«\u0087Àa¶_x000F_¡+À\u0089Àl#þvõKq@\u008cÀ ã}ôwÀÈ_x0011__x0016_¿¦ûsÀ8ôMå¦_x000D_|@¬V¹._x000E_H\u0081À`_x000B_t!2Ø\u007f@üÔZW¸;\u0092ÀÏÅO\u009fAl\u0090À_x0018_Ù²\u009f/¬\u0085À ßÃ¸\u008cVY@_x0001_ Eº5ätÀ_x0001__x0005_ ­Ú_x0005_À\u0096\\@pÛ_x0015_Åy>sÀ \u007f`h_x0011_þj@\u0080_x0018_Jx¦$DÀñ/*-\u0098Å\u0094À²%ûÉp_x0008_\u0083Àø õ+N\u009doÀ\u0090_x0013_Îm\u0098©\u0082@X¼_x0010_Îìµ\u0086@\u0098²A]\u0087J{@ \u008e3\u0093_x000D_Ç~@\u0084´\u009fÃÄúuÀlðþª_x0016_X\u0091@Lçc_x0004_\u0095G\u0084@ _x0013_ê_x001B_á\u0095[À5_\u0099,_x001C_\u0094\u008dÀÔ@ZÆÅ_x001F_wÀ\u0084¯_x000C_É_x001D_ëwÀ0_x001C_ª?\u008a\u0096\u008d@_x0001_/r_x0010__x001F_ýR@Äûu3E\u009a\u0081À¤º³_x0002__x000F_«\u008b@ø1\u0083Ê5qs@py_x0004_¨¡Õz@À\u0095oTÕ*yÀ&\u0099êD_x001C_'\u0089À¥ðQ¶_x0003_²\u008bÀ_x0018_\u0087_x0007_qû;i@°É_x0014_$5bnÀÔÖÝ\\\u009f0\u0094@¨\u0082ÊÑ\u008eUzÀ\u0092¨_x0019_\u0085_x0001__x0004_£b\u0091@ØMû_x0001_M\u008at@\u0084nnu¹Ä\u008e@_x0001_gZ¯V·lÀ8\u009a\u008fñ³/eÀ¬þ_x0002_«Ãf\u0083@2\u0094-\u009a!¤\u0090ÀäØÓ£ö3p@Hô_x000C_¼ý_x0007_uÀ_x0001_\u0090ÒæV\u009dB@<élÓ_x0003_Ä\u0082À_x0001_\u0088úzm_x0019__x000F_@âÊc«_x0019__x001F_\u0091@8g\u0093\u0086± \u0090À(%_x0013_\u0092ü¿\u0082À¨ ö7 p\u0086@\u0096¯_x0017__x000C_¹ý\u0083ÀÐá\u0093¤]´l@_x0010_Âæ_x000E_bTs@¨÷Xn\t_x001C_uÀ¼E4å¡ì{ÀÔ\u008fÓ\u0082\u0092E\u0089@\u0080_x0002_\u0085ì6vuÀÀ_x000B_#\tG RÀ\u0080\u0092\u0089¯\t¾C@@\u009d2!A­\u0084Ànê¾\u0090+ù\u0081Ànù_x0002_e_x0019_±\u008fÀ\"í\u0088%$ó\u0092@ÓÀ_x0008_uÄ\u0097\u0091À_x0001_V\u0091_x0006_»A(@èMçEãd\u0083@_x0001__x0005_ñRA¶;(\u008eÀ´ÑÍ\u0082Ïe}ÀÌ\u0080xÜÂÙqÀü_x0001_Fz_x0006__x0007_q@Ø_x0014_g\u0097T_x0003_\u0096@_x0018_\u0085_x0012_-!er@_x0010_I¯¢\u0091\u0082u@|/}\u0080_x0007_\u0099\u0091@_x0010_öÅÕ\u009eY\u0086@z¨_x0012_6_x0001_\u008d\u0083ÀðûJH\u008dës@L·_x000F_yÇ\u0095r@Ø\"ÿ¯HÇ\u0081@Lc£_x001C_È\u009dp@\u0084_x0007_\u0094ÝÕ_x001E_zÀ\\æG_x000D_êÆ\u008a@Hkd'_x0004__x001B_mÀ ä-$_x001A_îlÀÐs_x001E_¶;_x0004_\u0087À¨Edút\u0097lÀ`Ø_x001E_¾'vxÀ_x0006_®\u0085ëMç\u0087Àð0kä_x0002_{t@H­$HT\u008as@ ÷\"DVP\u0080@pÅlþ\u008f´\u0085@<Å­+®\u0093zÀ\u0082\u0091mB\u0099\u009d\u0094ÀêÕ±_x0002_è_x0016_\u0090@À_x000D_\u008c×Ç\u008b\u0082@È_x001D_Ýïc\u0085\u0084@_x0008_Û×ä_x0001__x0002_×_x0013_aÀ_x0014_PÙÁÊÅ\u008d@°<C3_x0004_BrÀpã\u009fÒ|­Z@_x0014_¿\u008d\t i\u0089@@Ïí\u009a\u0089ùv@\u0088\u0080\u0085=êôz@àyÿ\u0098fÀn@_x0004_\\ÉxÆ\u008a\u0083@èåôKÅX{@X4B1_x0001_\u009ec@ s\u0083_x0001_!\u0094n@\\¥_x0010__x000D_Ô_x0011_\u0084@(_x0019_\u008d\u0083r x@X¾IÕÐ\u007f\u0083@¸\u0085´¥|_x0004_x@_x0018_bF\u0086÷_x0008_a@\u00829Pñl\t\u0093À_x0004_\tQ_x0018_\"ÏrÀà\u008aË°\u008f¥SÀÀ÷KÒ÷->À\u0080p9_x001A_-[AÀ_x0001_µÜ¿_x0010_Öa@0\u009dgÝ÷¸xÀ\u0080]ZN_x000F_c)ÀXôb×J\u0084c@àÛ}%H\u009fAÀ`\u0096_ã_x000C_ºo@hO_³ª\u0090\u0084@èM]°½GjÀÈ_x001D_\u0089¥e¦\u0085ÀHwÐÕ*\u0084k@_x0001__x0002_¾ÝqG\u00851\u008fÀÀºçÊ²_x000E_PÀ$\u0086\u0085_x0012_\u009bG\u0086ÀbÝ§W/,\u0097Àä¶;:{2\u0093À@\u008d¬|1_x0005_\u008d@ÄèÊb£\t\u0086@pÂÛ\u008e?X}@@\\w_x0010_\u0098\u009el@¯_x0013_\u009bx_x000C_\u0088\u0087ÀÐ]ÑÐÚáz@\u0090´É×ÀM{À@{Á_x001F_A_x0004_k@_x0014_É÷ß$c\u0087ÀÐ©1_x0014_*®xÀ0hf@_x000D_äP@_x000E__x000D_3_x0016_|_x0010_\u0090À(\u009aôj=Í|@_x0018_×\u0081_x001A_·Êx@ c-:_x0014_À]À_x000C_Û_x001A_\u0092¤o\u008e@D_x001C_\u0094\u0091kf\u0082@hÿ\u0097ñ_x0008_í~@È»Eb\u009fo\u008f@ \u008f \u008e_x0012_|X@_x0006_+½_@¹\u0084ÀÜ\u009a&@C×\u0081@_x0001_ªc\u0089_x000F__x000E__x0007_À !1\u0080!_x000C_\u0090@Ð)8Èå\u0098n@\u0094Üëï4M\u008aÀ@çÜ_x0003__x0003__x0007_\u008e·i@_x0002_B_x001D__x0012__x0004_Ó\u0082Àbð«LÄ\u009e\u0081À\u0080=_x0002_S9½R@LÉñÙ/§\u0091@8\u008bØÙ¥l|@¨µá\u009bôY{À\u0084_x000C_&ÕG#}À,_x001D__x0008_®_x0001__x0012_}À(¢Z_x0013_mÉqÀ@c}Ã¾û@À_x0003_\u007fÿÄ#_f@¿bùíi«\u0093À\u0084@ØA^à\u0084@8=¹zGhh@0§\u0092_x000D__x001E_Ñ\u0086ÀÀ_x001B_µ° ÃU@,¯\u0088«£Á\u0091À_x0010_o»Ü \\cÀ F×ÝJ\u008eoÀ4¯eÈ&_"}},{"$cut":{"chars":70398,"head":"7fbb5f1ee8be93a8a3e8169b77e24658_x0001__x0003__x0016_ç¥¨ü¸\u0093À\u0080dÍ(n)`@_x0001_c¦AVÍs@_x0010__x001F_\u0080YG6cÀH¤\u0099\u007fÓÓ\u0084@bNo\u008c\u0096_x0013_\u008dÀ _x0010_\u009e«¯gzÀ\u0080_x001D_\u0091Ü\u0094Ë=@h%_x0008_èÙ+\u008a@PyxnEétÀrª_x001F_\u0084ùO\u009c@xä\u0087Bxüp@`_x0006_W<_x0011_#`ÀPÉõï¾Ò\u0087À&àr©Êq\u008bÀ\"\"M©´+\u009aÀð\"_x0014_ïJ´u@pÙ_^$fv@X®ÄtUítÀ¤o¦|\u0082¢\u008c@_x0002_|ò¼è¡\u0093ÀZ\u009fÍ Ð.\u009c@Z·òÈ©8\u009a@PR(àA¥\u0084@ÆCï7_x0010_>\u0085À®Íòâ|}\u008fÀÆ¶Wý \u0080\u0091@\u009c\u0092_x000E_0k=\u0087@@5²×\u008f\u008b\u008a@(\u0095ù¤ÿ3\u0086@\u0080ÞÍn¬_W@èìüÝ_x0003__x0004_\u0083\u0089z@zd_x000D_\u0084û!\u009f@Ô|\u0083\u0087¶/\u0083@ £_x001C_Öï_x000C_\u008c@_x0003_@©D5d_x0013_@*ØC<ËP\u009e@Ø\u009a_x0012_¿£\u008fsÀ H\u0086.cÔ\\À_x0002_<JW_x0005_\u0088\u0087ÀÄ³/ {/\u009fÀ 2_x0019_«2#\u0090@ìQÝ÷Ô\u0080\u0093@_x0002_ý'\u008d0t\u0095@²H_x0001_âß\u007f\u0098À¤±1 Jû\u0088À_x0002_\"_x0016_wq \u0090@T%IêRc\u009eÀ¬wrF~_x001D_\u0089À@ûsÖÓýtÀÖ\u0086oÝý_x0005_\u0089ÀÀÁq|\u008dYoÀàôö_x0007_'\u008e\u0091@|\\_x000F_Ø0í\u009fÀÐpR\"G÷\u007f@(Å®|=þ\u0088@@_x0017_X_x001F_/;y@hõÿD`h\u0083@î§_x0002_[\u0091°\u0081À°|ï_x000E__x0018_ zÀZ? \u0090 1\u009a@ÔUÚ_x000B_óq\u0095@\u0091MfÍ°\u008b\u0092À_x0001__x0005_æ\u0082F_x001B_«Ë\u0093@ðkç4â¹l@à¢ú°ººU@\u0093\u0090\u007f\u0084\u0093Ë\u009eÀ`_x0002_±z`\u008eq@p*\\W$\u009e|@äÏLeô\u0099\u0081@ÎÛÑ_x000D__x0016_ª\u0097@P1Âêú²eÀp>ÜÛàT`À\u0080\u0086_x0004_Ò_x001D_îR@\u0090a\u0091Ðd'kÀ\u0080Ý\t\u0097.ÜjÀ\u00901õ3ÛÜlÀÂÜÔ] I\u0090ÀàXú_x0015_ö_x0003_u@_x0018_2Äã=\"qÀÔ_x0003_­CÌ7\u0087À@>ãÒ\u008fÄIÀZç`Ì\"¤\u0082ÀÀµD\u0082.gs@PÃIi7`\u0084À;y~\u0096ß\u009d ÀêÝ±Ô_x0010_ÿ\u0098À`\u0085\u008df&_x000E_RÀ3ñmè(ç\u009dÀ¦Ç\u0087¨[Á\u0094@°iV4_x0010_ ¡Àö_x0013_Óf[_x001C_\u0097@ Ám\u0095_x001A_\u0098\u0085@ ¿ý©²\u0080\u0084À\u0098\u0082F_x0006__x0001__x0002_\u0086q\u0083@\u0080\u0097:U\u0080ú\u008e@_x0008_?_x000E_¸MÒ\u008b@È³Ã1ä\u0099\u0096À\u009el_x001A_Ä²­\u0093@È_x0011_fKño\u0091@$Þæ;\u008bJ\u0088@\u0080WãØìÉZÀ\u0090Ê \u009bã@gÀx¤@_x001E_\u0096=\u008a@h9Àt¨>\u0089@zÝD>û\u009d\u0095À_x0018__x001C_½\u0085_x0017_q}ÀH\u0086\u008b\u008a\u008eÂq@2Ýi\u009aåL\u009eÀ_x0010_)û¾\u0098+\u007f@ØZ,¶_x000C_{uÀl\u0098[_x0017_\u009c_x0012_\u0091Àz_x001D_\u007f×<w\u0094ÀX_x0017__x001E_\u009b_x0014_6s@Ï¬ã¤è¥\u0096À\u008c]_x0014_àhS\u0082À\u0088\u0091b'U\u009e\u0096@_x001A__x001C__x0011_p\u0091¿\u0099@_x0001_·ü14ÉO@`·!_x001F_hþxÀùaµô\u009d1\u0092À8¯zþ$ÀvÀ>¨\u0090øùË\u008fÀ °]2m4\u0081@NÁÂ\\bÎ\u0091@Àv\u0085î¤XK@_x0001_\tJzFøY\u009e\u0092À`9c_x0006_*Ö\u0081@ào_x0016_|tÌb@_x001E_^ÌµøM\u0098À\u0088\u008bµ}Ð-vÀ\t_x000F_\u0092Sf'\u008eÀú«\"_x0004__x0018__x0016_\u009c@_x001A_\u009dÏÜä_x000D_\u0091@ \u0080Vª\u0089_x0003_\u007f@N_x0019_\u0082²S\u009b\u0081À°­Ò½tønÀ_x0001_Õ¥_x001F_[UGÀ_x0011_Ýã$UÁ\u0096ÀJ_x000F_Ì_x0008_ÙJ\u0096@Ìy\u0090_x0004_¥ä\u008b@ ¨ù\u0080{_x0012_Q@_x0001_L\u0088«Á\u009d_x0017_À3\u009a¢ï­© @_x0002_¨FMbÈ\u0088À}kºfÊK\u0091ÀÕÌÃ_x000C_;y ÀôöÝ\u0094_x0003_å\u008c@ª:ò×$Ù\u009aÀ_x001B_\u009f\u008cÆ_x0016_È\u0096À5T¡·Û_x0015_\u0091Àr_x0018_Æ.9_x0007_\u0095@(¦j~gs\u008b@\u008b&tÚ\u007f\u0083\u009bÀ\u0092þ&âk®\u009aÀêªyù\u0080í\u0081ÀvZE_x0014_¹3\u0097@ø_x0005_æm_x0002__x0003_\u009eõ\u0096Àè\u007f2¾dD\u008d@Nl\u0086_x0017_¤8\u009b@_x0018__x001A__x0017_)\u0081ß\u0096@$C·z°_x000D_\u0085@P¸­ü)_x001C_\u0099ÀÞõz\u0088 ¸\u0088À §îÇ_x0002__x0001_k@Hà]Òoz|ÀP_x0007_èïÃ[\u0091À\u0080\u008bzMg_x0013_\u0081@PF6z~7nÀ\u008a_x000E_ÌÔ2H\u0092@_x0010_ã¦Ä_x0013_ÀmÀL2\u009f\u00938»\u0092@g\u008bÃÕ£N À_x0018_ÛF\u0088é×wÀú»j_x000D_¼\u0090\u0085ÀÍ_x0019_ÛW\u00813\u0094ÀÀó;TÍkC@àW¡<\u0094ËjÀàzqmsÚV@\u0088¨{\u009d\u008d'\u0086@(65¸Ãå\u0088Àv\u0088:º_x000E_ó\u0091ÀÈùI ×[\u0081@Ä2¹½¶J\u0080À¤ÿ\u0098ã¹_x0015_\u0085@(,¦_x001E_~\u009c\u007fÀàRÜbüJ|@øôÛ\u008f\u0091_x0010_~@R,H\u0088(Å\u0084À_x0003__x0007_Nð»á _x000C_\u0098@ì&q_x0004__x000D_Y¢À;h\u0089ÏjÚ\u0092À¸Þ_x0017_S»Cu@\u009e\u0094ÿmü\u0097\u0094@(é_x0006_ö«r\u0090ÀCF\u008a±_x001D_\u0090¡@ö2_x001B_-9\u0087\u0097@þ_x0005__x0004_ñÅÕ\u0094@è.ÀEhïqÀ@\u0094_x0006__x0016_XØBÀ_x0006_h@Bqe\u0099@+ñ$+U\u009a\u0097ÀÂ~\\1»V\u009bÀ\u0098ÜÁ½\u008dÜs@ðåé>Èu\u007f@Èß\u0090\u008ewn\u0082@àÕ\u0083_x001F_\u0080?U@ \u0088ù\u0085³_x0010_uÀà_x001E_h§N¸}@ØY\u0083\u008f4f\u0083@Ô¦s_x001B_f_x001A_\u008fÀà._x000C_ø\u0095£\u008e@ö\u008e\u0086Ù\u009c`\u009c@@\u008e_x0014_U_x0001_äUÀH?gøËJy@p\u009199û\u008eu@_x0010_Ð¿2BíuÀ._x0018_ûÍ _x0012_\u0085ÀH_x000C_»µÝó}@Nf&á;­\u0099À\u0090_x0002_­c_x0001__x0003_ÑddÀ2_x0004_H±s¸\u009f@_x0001_F}_x0015_\u00819aÀÌ\u009b\u0093w~¼\u0080@T7_x000C_Jç\u008e\u0090@\u0084W|U_x0001_\u0085\u0081@Bè_x0004_Ø\u008f?\u009f@rá¾sÏr\u0096@(`\u009e1ÉU\u008e@¸ðÄ_x000E_#Ò\u007fÀáU?#ð+\u0090À6,_x0003_Øe_x001A_\u0090@`5ðõôwk@|Z«þ7_x0018_\u009aÀ\u0090%ú\u0087R_x0019_\u008c@ v·»\u0086wyÀ\u0088×\u0082ÎÉÉ\u0095Àb_¿ÝòÎ\u008aÀ\u0096\u009f¨_x001C_ùV\u0087À\u0084Ý\u0080_x0016_]ì\u0090@@\u0092\u007f_x0016_\u009f^}À|ÈÓp_x0008_¸\u008d@pOµ¹$wh@Èô_x001C_\u0094Øð{À\u008c¤à(\u009e\u0080¢À_x0010_©ºDT³`ÀxÀC_x000B_©\u008aw@_x0001_\u0087WYõ¸!@§íh±_x000E_³\u009bÀVk\u0097e¤²\u0090À_x0002_À\u0092Å__x000F_\u0090À\u0090\tnQ\u0082wtÀ_x0002__x0006__x0002_ÕÑtu\u009e\\À\u0088:6! ê\u0085À<CJM\u009a¿\u0093@ô\u008cT1PÎ\u0086@êà^â\"Å\u009fÀ21,_x0001_[_x0003_\u008fÀP´Gk°kfÀ\u0080SsÇ21l@_x001E_(SýPí\u009b@0¨W\u0096É\u0094{Àà¶#\u008a_x0005_ùy@ú\u0083Ó¡rÝ\u0096@_x0010_ø_x0012_Õñ\u0092`ÀÈêàF¼.sÀH^ù\u008b_x0005_¥r@TÊ\u0098_x0015_B\u007f\u008eÀ0Ðm_x000B_fåy@ök_x0008_«Ü\u0089\u0099@|d_x001D_ ò\t\u008f@à+êä&ï\u0089@Ê´ýÏLæ\u0083À^_x0007_*Ö[Ê\u0095@°FP_x001B__x0005_ztÀ,Þù_x0013__x0006_7\u0094@°Ùg$g3\u0092@`hò¨È¢W@\u0090-ß »(bÀ_x000C_ö\u0096ñ©_x001D_\u0080@Ë¡\u0098±oÇ¡Àª_x0004_÷_x0002_o³\u0093À*g?*\u007fÜ\u0097@_x000E_\u009a_x0010_e_x0001__x0003_~_x0016_\u008fÀ_x000B_ò]\u0098u½\u0091À\u0090¤Ã.J{q@$\u0086_x000B_qäÀ\u008bÀQ_x0019_ù\u0085{\u0092\u0099À¼¨¼º¼Ô\u008c@h7L_x0017_²;\u007fÀ\u0090\u0099×\u009c`_x001C_pÀX¯\u0083;_IwÀü\u0088ÄÌË\u0098\u008fÀò_x0001_6ðÒô\u0098@SÛ]\u009d\u008bs\u0096À¬_x0002_.Ò*Î\u0080Àp\u0081ê>6WqÀY_x0006_tzk\u007f\u0096À@ç©þÅQd@`àBGycg@\u0080O_x000C_*rÐu@:ÊciiU\u0091À \u0084\u009cõW\u0083\u0080@Ô6.ÍwÊ\u0094@0\u009eªL²_x0012_\u0086@Àù~Ï\u0086_x0014_qÀ\u0098t_x0014__x0018_1¬w@ÊuEÿ<_x000D_\u008aÀ`Þ¯µå®\u0085À_x0014__x0013_`Ïz\u0096\u008b@ñ±ä\u007f#_x0018_ @èíè\u008e\u0094Q\u008eÀ á_x0006_\u0089¶va@\u008f¼Ã_x0007_\u0081)\u0094ÀJæé\u009a\u009cØ\u0098@_x0001__x0002_(³fýÍ?}@\u0080\u008cg_x0010__x0010_©8ÀÐæO_x0015_ÿ#lÀ´ðZ_x0007_)\u0083\u0082@ÈE¼6;Ü{À²wSTÔÝ\u008fÀU¿¯_x000C_gB @\u0084\u009cÎFbÝ\u0095@"}},{"$cut":{"chars":75372,"head":"730e3792a35c80b9544ba8a07d9dfa23_x0001__x0002_B`åPõ_x001A__x0010_AB`åPõ_x001A__x0010_AB`åPõ_x001A__x0010_AB`åPõ_x001A__x0010_AB`åPõ_x001A__x0010_AB`åPõ_x001A__x0010_AB`åPõ_x001A__x0010_AB`åPõ_x001A__x0010_AB`åPõ_x001A__x0010_AB`åPõ_x001A__x0010_AB`åPõ_x001A__x0010_AB`åPõ_x001A__x0010_AB`åPõ_x001A__x0010_AB`åPõ_x001A__x0010_AB`åPõ_x001A__x0010_AB`åPõ_x001A__x0010_AB`åPõ_x001A__x0010_AB`åPõ_x001A__x0010_AB`åPõ_x001A__x0010_AB`åPõ_x001A__x0010_AB`åPõ_x001A__x0010_AB`åPõ_x001A__x0010_AB`åPõ_x001A__x0010_AB`åPõ_x001A__x0010_AB`åPõ_x001A__x0010_AB`åPõ_x001A__x0010_AB`åPõ_x001A__x0010_AB`åPõ_x001A__x0010_AB`åPõ_x001A__x0010_AB`åPõ_x001A__x0010_AB`åPõ_x001A__x0010_AB`åP_x0001__x0002_õ_x001A__x0010_AB`åPõ_x001A__x0010_AB`åPõ_x001A__x0010_AB`åPõ_x001A__x0010_AB`åPõ_x001A__x0010_AB`åPõ_x001A__x0010_AB`åPõ_x001A__x0010_AB`åPõ_x001A__x0010_AB`åPõ_x001A__x0010_AB`åPõ_x001A__x0010_AB`åPõ_x001A__x0010_AB`åPõ_x001A__x0010_AB`åPõ_x001A__x0010_AB`åPõ_x001A__x0010_AB`åPõ_x001A__x0010_AB`åPõ_x001A__x0010_AB`åPõ_x001A__x0010_AB`åPõ_x001A__x0010_AB`åPõ_x001A__x0010_AB`åPõ_x001A__x0010_AB`åPõ_x001A__x0010_AB`åPõ_x001A__x0010_AB`åPõ_x001A__x0010_AB`åPõ_x001A__x0010_AB`åPõ_x001A__x0010_AB`åPõ_x001A__x0010_AB`åPõ_x001A__x0010_AB`åPõ_x001A__x0010_AB`åPõ_x001A__x0010_AB`åPõ_x001A__x0010_AB`åPõ_x001A__x0010_AB`åPõ_x001A__x0010_A_x0001__x0002_B`åPõ_x001A__x0010_AB`åPõ_x001A__x0010_AB`åPõ_x001A__x0010_AB`åPõ_x001A__x0010_AB`åPõ_x001A__x0010_AB`åPõ_x001A__x0010_AB`åPõ_x001A__x0010_AB`åPõ_x001A__x0010_AB`åPõ_x001A__x0010_AB`åPõ_x001A__x0010_AB`åPõ_x001A__x0010_AB`åPõ_x001A__x0010_AB`åPõ_x001A__x0010_AB`åPõ_x001A__x0010_AB`åPõ_x001A__x0010_AB`åPõ_x001A__x0010_AB`åPõ_x001A__x0010_AB`åPõ_x001A__x0010_AB`åPõ_x001A__x0010_AB`åPõ_x001A__x0010_AB`åPõ_x001A__x0010_AB`åPõ_x001A__x0010_AB`åPõ_x001A__x0010_AB`åPõ_x001A__x0010_AB`åPõ_x001A__x0010_AB`åPõ_x001A__x0010_AB`åPõ_x001A__x0010_AB`åPõ_x001A__x0010_AB`åPõ_x001A__x0010_AB`åPõ_x001A__x0010_AB`åPõ_x001A__x0010_AB`åP_x0001__x0002_õ_x001A__x0010_AB`åPõ_x001A__x0010_AB`åPõ_x001A__x0010_AB`åPõ_x001A__x0010_AB`åPõ_x001A__x0010_AB`åPõ_x001A__x0010_AB`åPõ_x001A__x0010_AB`åPõ_x001A__x0010_AB`åPõ_x001A__x0010_AB`åPõ_x001A__x0010_AB`åPõ_x001A__x0010_AB`åPõ_x001A__x0010_AB`åPõ_x001A__x0010_AB`åPõ_x001A__x0010_AB`åPõ_x001A__x0010_AB`åPõ_x001A__x0010_AB`åPõ_x001A__x0010_AB`åPõ_x001A__x0010_AB`åPõ_x001A__x0010_AB`åPõ_x001A__x0010_AB`åPõ_x001A__x0010_AB`åPõ_x001A__x0010_AB`åPõ_x001A__x0010_AB`åPõ_x001A__x0010_AB`åPõ_x001A__x0010_AB`åPõ_x001A__x0010_AB`åPõ_x001A__x0010_AB`åPõ_x001A__x0010_AB`åPõ_x001A__x0010_AB`åPõ_x001A__x0010_AB`åPõ_x001A__x0010_AB`åPõ_x001A__x0010_A_x0001__x0002_B`åPõ_x001A__x0010_AB`åPõ_x001A__x0010_AB`åPõ_x001A__x0010_AB`åPõ_x001A__x0010_AB`åPõ_x001A__x0010_AB`åPõ_x001A__x0010_AB`åPõ_x001A__x0010_AB`åPõ_x001A__x0010_AB`åPõ_x001A__x0010_AB`åPõ_x001A__x0010_AB`åPõ_x001A__x0010_AB`åPõ_x001A__x0010_AB`åPõ_x001A__x0010_AB`åPõ_x001A__x0010_AB`åPõ_x001A__x0010_AB`åPõ_x001A__x0010_AB`åPõ_x001A__x0010_AB`åPõ_x001A__x0010_AB`åPõ_x001A__x0010_AB`åPõ_x001A__x0010_AB`åPõ_x001A__x0010_AB`åPõ_x001A__x0010_AB`åPõ_x001A__x0010_AB`åPõ_x001A__x0010_AB`åPõ_x001A__x0010_AB`åPõ_x001A__x0010_AB`åPõ_x001A__x0010_AB`åPõ_x001A__x0010_AB`åPõ_x001A__x0010_AB`åPõ_x001A__x0010_AB`åPõ_x001A__x0010_AB`åP_x0001__x0002_õ_x001A__x0010_AB`åPõ_x001A__x0010_AB`åPõ_x001A__x0010_AB`åPõ_x001A__x0010_AB`åPõ_x001A__x0010_AB`åPõ_x001A__x0010_AB`åPõ_x001A__x0010_AB`åPõ_x001A__x0010_AB`åPõ_x001A__x0010_AB`åPõ_x001A__x0010_AB`åPõ_x001A__x0010_AB`åPõ_x001A__x0010_AB`åPõ_x001A__x0010_AB`åPõ_x001A__x0010_AB`åPõ_x001A__x0010_AB`åPõ_x001A__x0010_AB`åPõ_x001A__x0010_AB`åPõ_x001A__x0010_AB`åPõ_x001A__x0010_AB`åPõ_x001A__x0010_AB`åPõ_x001A__x0010_AB`åPõ_x001A__x0010_AB`åPõ_x001A__x0010_AB`åPõ_x001A__x0010_AB`åPõ_x001A__x0010_AB`åPõ_x001A__x0010_AB`åPõ_x001A__x0010_AB`åPõ_x001A__x0010_AB`åPõ_x001A__x0010_AB`åPõ_x001A__x0010_AB`åPõ_x001A__x0010_AB`åPõ_x001A__x0010_A_x0001__x0002_B`åPõ_x001A__x0010_AB`åPõ_x001A__x0010_AB`åPõ_x001A__x0010_AB`åPõ_x001A__x0010_AB`åPõ_x001A__x0010_AB`åPõ_x001A__x0010_AB`åPõ_x001A__x0010_AB`åPõ_x001A__x0010_AB`åPõ_x001A__x0010_AB`åPõ_"}},{"$cut":{"chars":95994,"head":"94415e080d101326c16f259c2c569e73_x0003__x0004_$^3\u009c}´_x0010_A®Sà[:h_x0010_AÈÑY}]g_x0010_AYÑ_x0016_Ùçr_x0010_A¾Í_x000B_È_x0006_w_x0010_AY\\ø_x0012_{o_x0010_A_x0011_ ñ;_x0012_M_x0010_A_x001D_\"_x0017_ùK)_x0010_A0_x0001_B¼H}_x0010_A!\u009e,ys\u009b_x0010_A¼'¶S\u0089\u0094_x0010_AÍ\u0096A¿¢e_x0010_A¤µ,}ïª_x0010_A_x0005_Ýmù°g_x0010_AÎ²¶ÆGi_x0010_A?ê\u009dÁÂ´_x0010_Ag\u008cV£ås_x0010_A\u0083{È\u008dÂ<_x0010_A38Ã\u0085:£_x0010_A\u008d{_x001D_ÔG\u0082_x0010_A_x0002_æÁû/\\_x0010_AÙ¿_x000C_n¨f_x0010_Að_x000E_ñ\u0096\u0083\u0081_x0010_AJêóÔ\u007f\u007f_x0010_Ab¨xw'\u008b_x0010_AY_x0004_ñ\u0097\u0081t_x0010_Aò¾_x0016_ÐúO_x0010_AàglìÀ~_x0010_AÖú\u0094Ùó|_x0010_AR·¯_é\u0084_x0010_AÎª_x0011_'¯\u008d_x0010_AÁå_x0007_s_x0001__x0005__x0016_h_x0010_AõË}\u0089BK_x0010_Aèê)PwS_x0010_Aâú,q\\m_x0010_AÂ±\u0086_x0015_û _x0010_A1·_x0014_è_x000E_|_x0010_A_x0003_¬®fïÆ_x0010_A/¶-±Jh_x0010_AûÇ¹:sM_x0010_A_x0002_w*DâÀ_x0010_A¡§º¾\u007f¡_x0010_A_x001B_xH_x0019_t\u008b_x0010_AÓ_x001C__x000C_Tx#_x0010_ASnö_x000E_\"¬_x0010_Awêp_{¹_x0010_A_x000F_9Èãys_x0010_AâïOb_x0004_\u008c_x0010_AÒ5jô_x0008_\u008b_x0010_A?NMNf~_x0010_ARWö¢É\u008e_x0010_A_x001E_°\u008aÀñ_x001B__x0010_A¡ü_x0013__x0005_ït_x0010_A¼_x0002_Bb\u008bx_x0010_A}Çl½ý__x0010_A\u00835__x000B_Åµ_x0010_AÑ¬M_x0012_ñJ_x0010_A»_x001B_¹´_x0017_²_x0010_Am_x0002_\u009c\u0081¨^_x0010_Ai\u009b#_x000F__x001C_\u0083_x0010_A ´\u0083\u0095_x0019_P_x0010_AÕj.åf\u0099_x0010_AàB¸0Mo_x0010_A_x0003__x0005_¶Í\u009bÌ\u009bN_x0010_Ag\u0097½ä_x0017_;_x0010_Au_x000B_7_x0005_ou_x0010_A=_x0004_ígLW_x0010_AÔËÎ÷?¬_x0010_A_x000B_ñç³öv_x0010_Aø\u008etMq@_x0010_Aö}9_x000E__x0006_½_x0010_A|y¡:sr_x0010_A\u0096Ô`­½¨_x0010_AUý_x0012_¥c\u009b_x0010_AÄÃ_x0006__x000F_\u0095!_x0010_AÝOmÔä\u0098_x0010_Aô_x0001_à\u0085_x001F_À_x0010_A^ÃÎ³_x0018_B_x0010_A¾\u009eÝM~w_x0010_An?9Ä@@_x0010_Ap¥ø\u009a\u0094³_x0010_A¸ä\u0096Õ^X_x0010_AÀmÇ_x0017__x0016_2_x0010_Aö_x0003_=G=D_x0010_A}¼j:_x0015_\u009b_x0010_A:Ý¦É´ª_x0010_A·Ö\u00850_x0006_\u0084_x0010_An_x0002_\töÝE_x0010_A}<_x0018_\u0081tB_x0010_AfÙ\tr_x0010_}_x0010_A_x0014__x0013_oªGw_x0010_A>$(_x001B_u\u0092_x0010_AtÞ_x0005_%mO_x0010_AAò\u009fÃµª_x0010_A\u0085_x000E_Pn_x0002__x0003_<\u007f_x0010_A_x0006_º\u008bkY _x0010_A\u009aH¥ðà\u009b_x0010_ANz\u009eÕ\u0087y_x0010_A;\\í\u0090_x000D_~_x0010_AÒñ3X=v_x0010_A0._x0018_üõÄ_x0010_A\u00910êHMl_x0010_Aú'§ãÝ]_x0010_AÚ¿Å#ð\u0084_x0010_A±_x000D_Ø¬Hµ_x0010_A3ÂH_x0003_v\u0091_x0010_A\u009a¾ç_x0001_-¬_x0010_AÖ\u008b£V\t)_x0010_A\u008e\u0097CÅÎ\u009e_x0010_Ah`º'ÿ1_x0010_A\u0083\u008ah#\\k_x0010_A¾t®\u0087wV_x0010_A$?¶Æ.ª_x0010_A)_x000E_ïÙ~\\_x0010_A\u008c_x000D_gõî\u0086_x0010_Ac|\u0086\u0085,N_x0010_Aàßº(Va_x0010_A¯*ý+uw_x0010_A\u0085Âbi¹\u0098_x0010_A¼\u00859_x0002_vl_x0010_A´<¾ü§}_x0010_A_x000C_Ó¨7\u0088}_x0010_Aÿå|P·9_x0010_AÓõÒáÄD_x0010_A¡B©f5W_x0010_A¦ù_x0010__x000F_Â\u0086_x0010_A_x0001__x0002_ÒD|yÏ\u007f_x0010_AO£Á_x0014_H\u008f_x0010_AÔê\u009fZÖB_x0010_Aúô¾\\_x0017_i_x0010_A\\\u008esÝv\u0084_x0010_A_x000E_&d _x0005_`_x0010_A_x0001_'/)\u0089Ñ_x0010_AõS\u0098¬\u009bØ_x0010_A_x0012_\u0096§\u009c\u007fs_x0010_A\u0090\u008e\u009ePü\u0095_x0010_AÆß(÷NM_x0010_A%u¾\u0089kw_x0010_Aî¼7/_x0010_r_x0010_A_x001E_\u0085\"\u008b\u0089­_x0010_A8`Ã_x0008_Ëm_x0010_Aû[$_x0002_¾t_x0010_A>)°Ü\u0080\u008e_x0010_A\u008dyz\u008b\u0092v_x0010_A_x0001_Ã8\u0095_x0001_\"_x0010_AEñ_x0007_ªôj_x0010_A\u0095Ô\u0080\u009bO\u0094_x0010_Að¼bHÅX_x0010_A÷ly_x000D_\u00904_x0010_AjqÅûý\u0082_x0010_A0ÐÓ\u0084XZ_x0010_A¯ÜÇM|H_x0010_AÖå|\u008a_x0001_\u009b_x0010_A¯¶z_x001B__x0002_p_x0010_A_x001B_Ìª.Ãd_x0010_A»ð_x000D_\u008dA|_x0010_A\u008b{åç4a_x0010_A\u009a\u0095Uù_x0001__x0002_g±_x0010_AD_x000C_µ(ÏV_x0010_AB_x0017_ÒìG£_x0010_A&\u0090Ð\u0094)p_x0010_AoO¤¼èT_x0010_AÁÈq»Y\u0083_x0010_Ao`Ê×¯K_x0010_A\u0082_x0013_ü_x001C_ï\u008a_x0010_Afoë¥â¨_x0010_AÂ_x001F_÷(Ò\u0081_x0010_A_x000C_\\ 2\u009b\u009e_x0010_AÎÕ_x0018_ãSU_x0010_A°Åh70j_x0010_AÒ_x001F_.®5\u008e_x0010_AæÃûÂ²\u0084_x0010_A8_x001E_\u0085±\u0099j_x0010_ASÅ¼_x0005_ãp_x0010_A_x0019_õ*_x001F_\u0091g_x0010_A6hø¯P]_x0010_A_x0018_^ é±w_x0010_A\tý_x0010_Á÷L_x0010_A3_x0003_·_x0007_úª_x0010_AÐ\u009cài£?_x0010_A_x0018_Pt_x0017_p>_x0010_A!Rõ\u0086\u008cÃ_x0010_A\u0085Ìwê¡g_x0010_A¦î\u0097X_x000B_\u009c_x0010_A\u0087EmË\u0091`_x0010_A_x001F_jQÝ\u008aK_x0010_AõÐR_x0001_½\u0088_x0010_A_x000E_5²<~j_x0010_A_x0011_`,¶ \u009a_x0010_A_x0001__x0002_'_x0005_Êb2x_x0010_A_x001A_øô­l=_x0010_Ag_x000C_\u0082Èù\u009a_x0010_A\u009cD\u0093¡/\u0084_x0010_Aí!ð\u009c\u0089t_x0010_A!âÉ_x0006_©\u0080_x0010_A_x0004_(\u009a\u00981\u0081_x0010_AÜ\u007f¤Gb¹_x0010_AÛÍE]e\u009f_x0010_A¬_x0011_7\u008d¶\u0094_x0010_A\u009eØ½(_i_x0010_A\\R²íL\u0084_x0010_A¥P½\t>5_x0010_Aô\u0089Î\u0087\u007f(_x0010_A_x0014_ÞgÇ\u009a\u009d_x0010_Auå©\u0082Û_x0012__x0010_A\u0094O/_x0008_\\w_x0010_AÅ_x001D_!0±p_x0010_Ab_x000C_\u008a\u0081R¯_x0010_A\u008bÏ<#_x0001_\u0080_x0010_A\u0085é~/\u0080\u0080_x0010_A\t5×ó<<_x0010_Aû÷Ðüòp_x0010_Aeû\u0096H¯\u009b_x0010_A_x0016_H\u008fëR©_x0010_A\u0097]3êhX_x0010_AÀÙw_x0004_Ü9_x0010_Aâ_x0005_\u008b\u0096\u00824_x0010_A8ctîâ\u0084_x0010_A®9¶Æ_x0008_o_x0010_A_x001D__x0012_ûL#n_x0010_A_x0018_ï¹ß_x0001__x0003_¬Ç_x"}},{"$cut":{"chars":227220,"head":"0224f1e286d3409bb50c720012cca942_x0001__x0002__x0001__x0001__x0001__x0001__x0001__x0001__x0001__x0001__x0001__x0001__x0001__x0001__x0001__x0001__x0001__x0001__x0001__x0001__x0001__x0001__x0001__x0001__x0001__x0001__x0001__x0001__x0001__x0001__x0001__x0001__x0001__x0001__x0001__x0001__x0001__x0001__x0001__x0001__x0001__x0001__x0001__x0001__x0001__x0001__x0001__x0001__x0001__x0001__x0001__x0001__x0001__x0001__x0001__x0001__x0001__x0001__x0001__x0001__x0001__x0001__x0001__x0001__x0001__x0001__x0001__x0001__x0001__x0001__x0001__x0001__x0001__x0001__x0001__x0001__x0001__x0001__x0001__x0001__x0001__x0001__x0001__x0001__x0001__x0001__x0001__x0001__x0001__x0001__x0001__x0001__x0001__x0001__x0001__x0001__x0001__x0001__x0001__x0001__x0001__x0001__x0001__x0001__x0001__x0001__x0001__x0001__x0001__x0001__x0001__x0001__x0001__x0001__x0001__x0001__x0001__x0001__x0001__x0001__x0001__x0001__x0001__x0001__x0001__x0001__x0001__x0001__x0001__x0001__x0001__x0001__x0001__x0001__x0001__x0001__x0001__x0001__x0001__x0001__x0001__x0001__x0001__x0001__x0001__x0001__x0001__x0001__x0001__x0001__x0001__x0001__x0001__x0001__x0001__x0001__x0001__x0001__x0001__x0001__x0001__x0001__x0001__x0001__x0001__x0001__x0001__x0001__x0001__x0001__x0001__x0001__x0001__x0001__x0001__x0001__x0001__x0001__x0001__x0001__x0001__x0001__x0001__x0001__x0001__x0001__x0001__x0001__x0001__x0001__x0001__x0001__x0001__x0001__x0001__x0001__x0001__x0001__x0001__x0001__x0001__x0001__x0001__x0001__x0001__x0001__x0001__x0001__x0001__x0001__x0001__x0001__x0001__x0001__x0001__x0001__x0001__x0001__x0001__x0001__x0001__x0001__x0001__x0001__x0001__x0001__x0001__x0001__x0001__x0001__x0001__x0001__x0001__x0001__x0001__x0001__x0001__x0001__x0001__x0001__x0001__x0001__x0001__x0001__x0001__x0001__x0001__x0001__x0001__x0001__x0001__x0001__x0001__x0001__x0001__x0002__x0001__x0001__x0001__x0001__x0001__x0001__x0001__x0001__x0001__x0001__x0001__x0001__x0001__x0001__x0001__x0001__x0001__x0001__x0001__x0001__x0001__x0001__x0001__x0001__x0001__x0001__x0001__x0001__x0001__x0001__x0001__x0001__x0001__x0001__x0001__x0001__x0001__x0001__x0001__x0001__x0001__x0001__x0001__x0001__x0001__x0001__x0001__x0001__x0001__x0001__x0001__x0001__x0001__x0001__x0001__x0001__x0001__x0001__x0001__x0001__x0001__x0001__x0001__x0001__x0001__x0001__x0001__x0001__x0001__x0001__x0001__x0001__x0001__x0001__x0001__x0001__x0001__x0001__x0001__x0001__x0001__x0001__x0001__x0001__x0001__x0001__x0001__x0001__x0001__x0001__x0001__x0001__x0001__x0001__x0001__x0001__x0001__x0001__x0001__x0001__x0001__x0001__x0001__x0001__x0001__x0001__x0001__x0001__x0001__x0001__x0001__x0001__x0001__x0001__x0001__x0001__x0001__x0001__x0001__x0001__x0001__x0001__x0001__x0001__x0001__x0001__x0001__x0001__x0001__x0001__x0001__x0001__x0001__x0001__x0001__x0001__x0001__x0001__x0001__x0001__x0001__x0001__x0001__x0001__x0001__x0001__x0001__x0001__x0001__x0001__x0001__x0001__x0001__x0001__x0001__x0001__x0001__x0001__x0001__x0001__x0001__x0001__x0001__x0001__x0001__x0001__x0001__x0001__x0001__x0001__x0001__x0001__x0001__x0001__x0001__x0001__x0001__x0001__x0001__x0001__x0001__x0001__x0001__x0001__x0001__x0001__x0001__x0001__x0001__x0001__x0001__x0001__x0001__x0001__x0001__x0001__x0001__x0001__x0001__x0001__x0001__x0001__x0001__x0001__x0001__x0001__x0001__x0001__x0001__x0001__x0001__x0001__x0001__x0001__x0001__x0001__x0001__x0001__x0001__x0001__x0001__x0001__x0001__x0001__x0001__x0001__x0001__x0001__x0001__x0001__x0001__x0001__x0001__x0001__x0001__x0001__x0001__x0001__x0001__x0001__x0001__x0001__x0001__x0001__x0001__x0001__x0001__x0001__x0001__x0001__x0001__x0001__x0001__x0002__x0001__x0001__x0001__x0001__x0001__x0001__x0001__x0001__x0001__x0001__x0001__x0001__x0001__x0001__x0001__x0001__x0001__x0001__x0001__x0001__x0001__x0001__x0001__x0001__x0001__x0001__x0001__x0001__x0001__x0001__x0001__x0001__x0001__x0001__x0001__x0001__x0001__x0001__x0001__x0001__x0001__x0001__x0001__x0001__x0001__x0001__x0001__x0001__x0001__x0001__x0001__x0001__x0001__x0001__x0001__x0001__x0001__x0001__x0001__x0001__x0001__x0001__x0001__x0001__x0001__x0001__x0001__x0001__x0001__x0001__x00"}},{"$cut":{"chars":225954,"head":"7d9083f101e909e40abe388a7b720046_x0001__x0002__x0001__x0001__x0001__x0001__x0001__x0001__x0001__x0001__x0001__x0001__x0001__x0001__x0001__x0001__x0001__x0001__x0001__x0001__x0001__x0001__x0001__x0001__x0001__x0001__x0001__x0001__x0001__x0001__x0001__x0001__x0001__x0001__x0001__x0001__x0001__x0001__x0001__x0001__x0001__x0001__x0001__x0001__x0001__x0001__x0001__x0001__x0001__x0001__x0001__x0001__x0001__x0001__x0001__x0001__x0001__x0001__x0001__x0001__x0001__x0001__x0001__x0001__x0001__x0001__x0001__x0001__x0001__x0001__x0001__x0001__x0001__x0001__x0001__x0001__x0001__x0001__x0001__x0001__x0001__x0001__x0001__x0001__x0001__x0001__x0001__x0001__x0001__x0001__x0001__x0001__x0001__x0001__x0001__x0001__x0001__x0001__x0001__x0001__x0001__x0001__x0001__x0001__x0001__x0001__x0001__x0001__x0001__x0001__x0001__x0001__x0001__x0001__x0001__x0001__x0001__x0001__x0001__x0001__x0001__x0001__x0001__x0001__x0001__x0001__x0001__x0001__x0001__x0001__x0001__x0001__x0001__x0001__x0001__x0001__x0001__x0001__x0001__x0001__x0001__x0001__x0001__x0001__x0001__x0001__x0001__x0001__x0001__x0001__x0001__x0001__x0001__x0001__x0001__x0001__x0001__x0001__x0001__x0001__x0001__x0001__x0001__x0001__x0001__x0001__x0001__x0001__x0001__x0001__x0001__x0001__x0001__x0001__x0001__x0001__x0001__x0001__x0001__x0001__x0001__x0001__x0001__x0001__x0001__x0001__x0001__x0001__x0001__x0001__x0001__x0001__x0001__x0001__x0001__x0001__x0001__x0001__x0001__x0001__x0001__x0001__x0001__x0001__x0001__x0001__x0001__x0001__x0001__x0001__x0001__x0001__x0001__x0001__x0001__x0001__x0001__x0001__x0001__x0001__x0001__x0001__x0001__x0001__x0001__x0001__x0001__x0001__x0001__x0001__x0001__x0001__x0001__x0001__x0001__x0001__x0001__x0001__x0001__x0001__x0001__x0001__x0001__x0001__x0001__x0001__x0001__x0001__x0001__x0001__x0001__x0001__x0001__x0001__x0001__x0002__x0001__x0001__x0001__x0001__x0001__x0001__x0001__x0001__x0001__x0001__x0001__x0001__x0001__x0001__x0001__x0001__x0001__x0001__x0001__x0001__x0001__x0001__x0001__x0001__x0001__x0001__x0001__x0001__x0001__x0001__x0001__x0001__x0001__x0001__x0001__x0001__x0001__x0001__x0001__x0001__x0001__x0001__x0001__x0001__x0001__x0001__x0001__x0001__x0001__x0001__x0001__x0001__x0001__x0001__x0001__x0001__x0001__x0001__x0001__x0001__x0001__x0001__x0001__x0001__x0001__x0001__x0001__x0001__x0001__x0001__x0001__x0001__x0001__x0001__x0001__x0001__x0001__x0001__x0001__x0001__x0001__x0001__x0001__x0001__x0001__x0001__x0001__x0001__x0001__x0001__x0001__x0001__x0001__x0001__x0001__x0001__x0001__x0001__x0001__x0001__x0001__x0001__x0001__x0001__x0001__x0001__x0001__x0001__x0001__x0001__x0001__x0001__x0001__x0001__x0001__x0001__x0001__x0001__x0001__x0001__x0001__x0001__x0001__x0001__x0001__x0001__x0001__x0001__x0001__x0001__x0001__x0001__x0001__x0001__x0001__x0001__x0001__x0001__x0001__x0001__x0001__x0001__x0001__x0001__x0001__x0001__x0001__x0001__x0001__x0001__x0001__x0001__x0001__x0001__x0001__x0001__x0001__x0001__x0001__x0001__x0001__x0001__x0001__x0001__x0001__x0001__x0001__x0001__x0001__x0001__x0001__x0001__x0001__x0001__x0001__x0001__x0001__x0001__x0001__x0001__x0001__x0001__x0001__x0001__x0001__x0001__x0001__x0001__x0001__x0001__x0001__x0001__x0001__x0001__x0001__x0001__x0001__x0001__x0001__x0001__x0001__x0001__x0001__x0001__x0001__x0001__x0001__x0001__x0001__x0001__x0001__x0001__x0001__x0001__x0001__x0001__x0001__x0001__x0001__x0001__x0001__x0001__x0001__x0001__x0001__x0001__x0001__x0001__x0001__x0001__x0001__x0001__x0001__x0001__x0001__x0001__x0001__x0001__x0001__x0001__x0001__x0001__x0001__x0001__x0001__x0001__x0001__x0001__x0001__x0001__x0001__x0001__x0001__x0002__x0001__x0001__x0001__x0001__x0001__x0001__x0001__x0001__x0001__x0001__x0001__x0001__x0001__x0001__x0001__x0001__x0001__x0001__x0001__x0001__x0001__x0001__x0001__x0001__x0001__x0001__x0001__x0001__x0001__x0001__x0001__x0001__x0001__x0001__x0001__x0001__x0001__x0001__x0001__x0001__x0001__x0001__x0001__x0001__x0001__x0001__x0001__x0001__x0001__x0001__x0001__x0001__x0001__x0001__x0001__x0001__x0001__x0001__x0001__x0001__x0001__x0001__x0001__x0001__x0001__x0001__x0001__x0001__x0001__x0001__x00"}},{"$cut":{"chars":227220,"head":"9e4b9ca41fe740c848f21d53a9d5c629_x0001__x0002__x0001__x0001__x0001__x0001__x0001__x0001__x0001__x0001__x0001__x0001__x0001__x0001__x0001__x0001__x0001__x0001__x0001__x0001__x0001__x0001__x0001__x0001__x0001__x0001__x0001__x0001__x0001__x0001__x0001__x0001__x0001__x0001__x0001__x0001__x0001__x0001__x0001__x0001__x0001__x0001__x0001__x0001__x0001__x0001__x0001__x0001__x0001__x0001__x0001__x0001__x0001__x0001__x0001__x0001__x0001__x0001__x0001__x0001__x0001__x0001__x0001__x0001__x0001__x0001__x0001__x0001__x0001__x0001__x0001__x0001__x0001__x0001__x0001__x0001__x0001__x0001__x0001__x0001__x0001__x0001__x0001__x0001__x0001__x0001__x0001__x0001__x0001__x0001__x0001__x0001__x0001__x0001__x0001__x0001__x0001__x0001__x0001__x0001__x0001__x0001__x0001__x0001__x0001__x0001__x0001__x0001__x0001__x0001__x0001__x0001__x0001__x0001__x0001__x0001__x0001__x0001__x0001__x0001__x0001__x0001__x0001__x0001__x0001__x0001__x0001__x0001__x0001__x0001__x0001__x0001__x0001__x0001__x0001__x0001__x0001__x0001__x0001__x0001__x0001__x0001__x0001__x0001__x0001__x0001__x0001__x0001__x0001__x0001__x0001__x0001__x0001__x0001__x0001__x0001__x0001__x0001__x0001__x0001__x0001__x0001__x0001__x0001__x0001__x0001__x0001__x0001__x0001__x0001__x0001__x0001__x0001__x0001__x0001__x0001__x0001__x0001__x0001__x0001__x0001__x0001__x0001__x0001__x0001__x0001__x0001__x0001__x0001__x0001__x0001__x0001__x0001__x0001__x0001__x0001__x0001__x0001__x0001__x0001__x0001__x0001__x0001__x0001__x0001__x0001__x0001__x0001__x0001__x0001__x0001__x0001__x0001__x0001__x0001__x0001__x0001__x0001__x0001__x0001__x0001__x0001__x0001__x0001__x0001__x0001__x0001__x0001__x0001__x0001__x0001__x0001__x0001__x0001__x0001__x0001__x0001__x0001__x0001__x0001__x0001__x0001__x0001__x0001__x0001__x0001__x0001__x0001__x0001__x0001__x0001__x0001__x0001__x0001__x0001__x0002__x0001__x0001__x0001__x0001__x0001__x0001__x0001__x0001__x0001__x0001__x0001__x0001__x0001__x0001__x0001__x0001__x0001__x0001__x0001__x0001__x0001__x0001__x0001__x0001__x0001__x0001__x0001__x0001__x0001__x0001__x0001__x0001__x0001__x0001__x0001__x0001__x0001__x0001__x0001__x0001__x0001__x0001__x0001__x0001__x0001__x0001__x0001__x0001__x0001__x0001__x0001__x0001__x0001__x0001__x0001__x0001__x0001__x0001__x0001__x0001__x0001__x0001__x0001__x0001__x0001__x0001__x0001__x0001__x0001__x0001__x0001__x0001__x0001__x0001__x0001__x0001__x0001__x0001__x0001__x0001__x0001__x0001__x0001__x0001__x0001__x0001__x0001__x0001__x0001__x0001__x0001__x0001__x0001__x0001__x0001__x0001__x0001__x0001__x0001__x0001__x0001__x0001__x0001__x0001__x0001__x0001__x0001__x0001__x0001__x0001__x0001__x0001__x0001__x0001__x0001__x0001__x0001__x0001__x0001__x0001__x0001__x0001__x0001__x0001__x0001__x0001__x0001__x0001__x0001__x0001__x0001__x0001__x0001__x0001__x0001__x0001__x0001__x0001__x0001__x0001__x0001__x0001__x0001__x0001__x0001__x0001__x0001__x0001__x0001__x0001__x0001__x0001__x0001__x0001__x0001__x0001__x0001__x0001__x0001__x0001__x0001__x0001__x0001__x0001__x0001__x0001__x0001__x0001__x0001__x0001__x0001__x0001__x0001__x0001__x0001__x0001__x0001__x0001__x0001__x0001__x0001__x0001__x0001__x0001__x0001__x0001__x0001__x0001__x0001__x0001__x0001__x0001__x0001__x0001__x0001__x0001__x0001__x0001__x0001__x0001__x0001__x0001__x0001__x0001__x0001__x0001__x0001__x0001__x0001__x0001__x0001__x0001__x0001__x0001__x0001__x0001__x0001__x0001__x0001__x0001__x0001__x0001__x0001__x0001__x0001__x0001__x0001__x0001__x0001__x0001__x0001__x0001__x0001__x0001__x0001__x0001__x0001__x0001__x0001__x0001__x0001__x0001__x0001__x0001__x0001__x0001__x0001__x0001__x0001__x0001__x0001__x0001__x0001__x0002__x0001__x0001__x0001__x0001__x0001__x0001__x0001__x0001__x0001__x0001__x0001__x0001__x0001__x0001__x0001__x0001__x0001__x0001__x0001__x0001__x0001__x0001__x0001__x0001__x0001__x0001__x0001__x0001__x0001__x0001__x0001__x0001__x0001__x0001__x0001__x0001__x0001__x0001__x0001__x0001__x0001__x0001__x0001__x0001__x0001__x0001__x0001__x0001__x0001__x0001__x0001__x0001__x0001__x0001__x0001__x0001__x0001__x0001__x0001__x0001__x0001__x0001__x0001__x0001__x0001__x0001__x0001__x0001__x0001__x0001__x00"}},{"$cut":{"chars":225492,"head":"22c80645d43f4c690e45912ed35a2b79_x0001__x0002__x0001__x0001__x0001__x0001__x0001__x0001__x0001__x0001__x0001__x0001__x0001__x0001__x0001__x0001__x0001__x0001__x0001__x0001__x0001__x0001__x0001__x0001__x0001__x0001__x0001__x0001__x0001__x0001__x0001__x0001__x0001__x0001__x0001__x0001__x0001__x0001__x0001__x0001__x0001__x0001__x0001__x0001__x0001__x0001__x0001__x0001__x0001__x0001__x0001__x0001__x0001__x0001__x0001__x0001__x0001__x0001__x0001__x0001__x0001__x0001__x0001__x0001__x0001__x0001__x0001__x0001__x0001__x0001__x0001__x0001__x0001__x0001__x0001__x0001__x0001__x0001__x0001__x0001__x0001__x0001__x0001__x0001__x0001__x0001__x0001__x0001__x0001__x0001__x0001__x0001__x0001__x0001__x0001__x0001__x0001__x0001__x0001__x0001__x0001__x0001__x0001__x0001__x0001__x0001__x0001__x0001__x0001__x0001__x0001__x0001__x0001__x0001__x0001__x0001__x0001__x0001__x0001__x0001__x0001__x0001__x0001__x0001__x0001__x0001__x0001__x0001__x0001__x0001__x0001__x0001__x0001__x0001__x0001__x0001__x0001__x0001__x0001__x0001__x0001__x0001__x0001__x0001__x0001__x0001__x0001__x0001__x0001__x0001__x0001__x0001__x0001__x0001__x0001__x0001__x0001__x0001__x0001__x0001__x0001__x0001__x0001__x0001__x0001__x0001__x0001__x0001__x0001__x0001__x0001__x0001__x0001__x0001__x0001__x0001__x0001__x0001__x0001__x0001__x0001__x0001__x0001__x0001__x0001__x0001__x0001__x0001__x0001__x0001__x0001__x0001__x0001__x0001__x0001__x0001__x0001__x0001__x0001__x0001__x0001__x0001__x0001__x0001__x0001__x0001__x0001__x0001__x0001__x0001__x0001__x0001__x0001__x0001__x0001__x0001__x0001__x0001__x0001__x0001__x0001__x0001__x0001__x0001__x0001__x0001__x0001__x0001__x0001__x0001__x0001__x0001__x0001__x0001__x0001__x0001__x0001__x0001__x0001__x0001__x0001__x0001__x0001__x0001__x0001__x0001__x0001__x0001__x0001__x0001__x0001__x0001__x0001__x0001__x0001__x0002__x0001__x0001__x0001__x0001__x0001__x0001__x0001__x0001__x0001__x0001__x0001__x0001__x0001__x0001__x0001__x0001__x0001__x0001__x0001__x0001__x0001__x0001__x0001__x0001__x0001__x0001__x0001__x0001__x0001__x0001__x0001__x0001__x0001__x0001__x0001__x0001__x0001__x0001__x0001__x0001__x0001__x0001__x0001__x0001__x0001__x0001__x0001__x0001__x0001__x0001__x0001__x0001__x0001__x0001__x0001__x0001__x0001__x0001__x0001__x0001__x0001__x0001__x0001__x0001__x0001__x0001__x0001__x0001__x0001__x0001__x0001__x0001__x0001__x0001__x0001__x0001__x0001__x0001__x0001__x0001__x0001__x0001__x0001__x0001__x0001__x0001__x0001__x0001__x0001__x0001__x0001__x0001__x0001__x0001__x0001__x0001__x0001__x0001__x0001__x0001__x0001__x0001__x0001__x0001__x0001__x0001__x0001__x0001__x0001__x0001__x0001__x0001__x0001__x0001__x0001__x0001__x0001__x0001__x0001__x0001__x0001__x0001__x0001__x0001__x0001__x0001__x0001__x0001__x0001__x0001__x0001__x0001__x0001__x0001__x0001__x0001__x0001__x0001__x0001__x0001__x0001__x0001__x0001__x0001__x0001__x0001__x0001__x0001__x0001__x0001__x0001__x0001__x0001__x0001__x0001__x0001__x0001__x0001__x0001__x0001__x0001__x0001__x0001__x0001__x0001__x0001__x0001__x0001__x0001__x0001__x0001__x0001__x0001__x0001__x0001__x0001__x0001__x0001__x0001__x0001__x0001__x0001__x0001__x0001__x0001__x0001__x0001__x0001__x0001__x0001__x0001__x0001__x0001__x0001__x0001__x0001__x0001__x0001__x0001__x0001__x0001__x0001__x0001__x0001__x0001__x0001__x0001__x0001__x0001__x0001__x0001__x0001__x0001__x0001__x0001__x0001__x0001__x0001__x0001__x0001__x0001__x0001__x0001__x0001__x0001__x0001__x0001__x0001__x0001__x0001__x0001__x0001__x0001__x0001__x0001__x0001__x0001__x0001__x0001__x0001__x0001__x0001__x0001__x0001__x0001__x0001__x0001__x0001__x0001__x0001__x0001__x0001__x0001__x0002__x0001__x0001__x0001__x0001__x0001__x0001__x0001__x0001__x0001__x0001__x0001__x0001__x0001__x0001__x0001__x0001__x0001__x0001__x0001__x0001__x0001_@\u008f@_x0001__x0001__x0001__x0001__x0001__x0001__x0001__x0001__x0001__x0001__x0001__x0001__x0001__x0001__x0001__x0001__x0001__x0001__x0001__x0001__x0001__x0001__x0001__x0001__x0001__x0001__x0001__x0001__x0001__x0001__x0001__x0001__x0001__x0001__x0001__x0001__x0001__x0001__x0001__x0001__x0001__x0001__x0001__x0001__x0001__x0001__x0001__x0001__x0001__"}},{"$cut":{"chars":159942,"head":"1033ded3c044dc97488d129d8782a085_x0001__x0002__x0001__x0001__x0001__x0001__x0001__x0001__x0001__x0001__x0001__x0001__x0001__x0001__x0001__x0001__x0001__x0001__x0001__x0001__x0001__x0001__x0001_@\u008f@_x0001__x0001__x0001__x0001__x0001__x0001__x0001__x0001__x0001__x0001__x0001__x0001__x0001__x0001__x0001__x0001__x0001__x0001__x0001__x0001__x0001__x0001__x0001__x0001__x0001__x0001__x0001__x0001__x0001__x0001__x0001__x0001__x0001__x0001__x0001__x0001__x0001__x0001__x0001__x0001__x0001__x0001__x0001__x0001__x0001__x0001__x0001__x0001__x0001__x0001__x0001__x0001__x0001__x0001__x0001__x0001__x0001__x0001__x0001__x0001__x0001__x0001__x0001__x0001__x0001__x0001__x0001__x0001__x0001__x0001__x0001__x0001__x0001__x0001__x0001__x0001__x0001__x0001__x0001__x0001__x0001__x0001__x0001__x0001__x0001__x0001__x0001__x0001__x0001__x0001__x0001__x0001__x0001__x0001__x0001__x0001__x0001__x0001__x0001__x0001__x0001__x0001__x0001__x0001__x0001__x0001__x0001__x0001__x0001__x0001__x0001__x0001__x0001__x0001__x0001__x0001__x0001__x0001__x0001__x0001__x0001__x0001__x0001__x0001__x0001__x0001__x0001__x0001__x0001__x0001__x0001__x0001__x0001__x0001__x0001__x0001__x0001__x0001__x0001__x0001__x0001__x0001__x0001__x0001__x0001__x0001__x0001__x0001__x0001__x0001__x0001__x0001__x0001__x0001__x0001__x0001__x0001__x0001__x0001__x0001__x0001__x0001__x0001__x0001__x0001__x0001__x0001__x0001__x0001__x0001__x0001__x0001__x0001__x0001__x0001__x0001__x0001__x0001__x0001__x0001__x0001__x0001__x0001__x0001__x0001__x0001__x0001__x0001__x0001__x0001__x0001__x0001__x0001__x0001__x0001__x0001__x0001__x0001__x0001__x0001__x0001__x0001__x0001__x0001__x0001__x0001__x0001__x0001__x0001__x0001__x0001__x0001__x0001__x0001__x0001__x0001__x0001__x0001__x0001__x0001__x0001__x0001__x0001__x0001__x0001__x0001__x0001__x0001__x0001__x0002__x0001__x0001__x0001__x0001__x0001__x0001__x0001__x0001__x0001__x0001__x0001__x0001__x0001__x0001__x0001__x0001__x0001__x0001__x0001__x0001__x0001__x0001__x0001__x0001__x0001__x0001__x0001__x0001__x0001__x0001__x0001__x0001__x0001__x0001__x0001__x0001__x0001__x0001__x0001__x0001__x0001__x0001__x0001__x0001__x0001__x0001__x0001__x0001__x0001__x0001__x0001__x0001__x0001__x0001__x0001__x0001__x0001__x0001__x0001__x0001__x0001__x0001__x0001__x0001__x0001__x0001__x0001__x0001__x0001__x0001__x0001__x0001__x0001__x0001__x0001__x0001__x0001__x0001__x0001__x0001__x0001__x0001__x0001__x0001__x0001__x0001__x0001__x0001__x0001__x0001__x0001__x0001__x0001__x0001__x0001__x0001__x0001__x0001__x0001__x0001__x0001__x0001__x0001__x0001__x0001_@\u008f@_x0001__x0001__x0001__x0001__x0001__x0001__x0001__x0001__x0001__x0001__x0001__x0001__x0001__x0001__x0001__x0001__x0001__x0001__x0001__x0001__x0001__x0001__x0001__x0001__x0001__x0001__x0001__x0001__x0001__x0001__x0001__x0001__x0001__x0001__x0001__x0001__x0001__x0001__x0001__x0001__x0001__x0001__x0001__x0001__x0001__x0001__x0001__x0001__x0001__x0001__x0001__x0001__x0001__x0001__x0001__x0001__x0001__x0001__x0001__x0001__x0001__x0001__x0001__x0001__x0001__x0001__x0001__x0001__x0001__x0001__x0001__x0001__x0001__x0001__x0001__x0001__x0001__x0001__x0001__x0001__x0001__x0001__x0001__x0001__x0001__x0001__x0001__x0001__x0001__x0001__x0001__x0001__x0001__x0001__x0001__x0001__x0001__x0001__x0001__x0001__x0001__x0001__x0001__x0001__x0001__x0001__x0001__x0001__x0001__x0001__x0001__x0001__x0001__x0001__x0001__x0001__x0001__x0001__x0001__x0001__x0001__x0001__x0001__x0001__x0001__x0001__x0001__x0001__x0001__x0001__x0001__x0001__x0001__x0001__x0001__x0001__x0001__x0001__x0001__x0001__x0001__x0001__x0001__x0001__x0001__x0002__x0001__x0001__x0001__x0001__x0001__x0001__x0001__x0001__x0001__x0001__x0001__x0001__x0001__x0001__x0001__x0001__x0001__x0001__x0001__x0001__x0001__x0001__x0001__x0001__x0001__x0001__x0001__x0001__x0001__x0001__x0001__x0001__x0001__x0001__x0001__x0001__x0001__x0001__x0001__x0001__x0001__x0001__x0001__x0001__x0001__x0001__x0001__x0001__x0001__x0001__x0001__x0001__x0001__x0001__x0001__x0001__x0001__x0001__x0001__x0001__x0001__x0001__x0001__x0001__x0001__x0001__x0001__x0001__x0001__x0001__x0001__x0001__x0001__x0001__x0001__x000"}},{"$cut":{"chars":45804,"head":"94959d13e0cc80fea23b1f4ad1e42b68_x0001__x0002_\u009fE¶ó]3ß@\u009fE¶ó]3ß@\u009fE¶ó]3ß@\u009fE¶ó]3ß@\u009fE¶ó]3ß@\u009fE¶ó]3ß@\u009fE¶ó]3ß@\u009fE¶ó]3ß@\u009fE¶ó]3ß@\u009fE¶ó]3ß@\u009fE¶ó]3ß@\u009fE¶ó]3ß@\u009fE¶ó]3ß@\u009fE¶ó]3ß@\u009fE¶ó]3ß@\u009fE¶ó]3ß@\u009fE¶ó]3ß@\u009fE¶ó]3ß@\u009fE¶ó]3ß@\u009fE¶ó]3ß@\u009fE¶ó]3ß@\u009fE¶ó]3ß@\u009fE¶ó]3ß@\u009fE¶ó]3ß@\u009fE¶ó]3ß@\u009fE¶ó]3ß@\u009fE¶ó]3ß@\u009fE¶ó]3ß@\u009fE¶ó]3ß@\u009fE¶ó]3ß@\u009fE¶ó]3ß@\u009fE¶ó_x0001__x0002_]3ß@\u009fE¶ó]3ß@\u009fE¶ó]3ß@\u009fE¶ó]3ß@\u009fE¶ó]3ß@\u009fE¶ó]3ß@\u009fE¶ó]3ß@\u009fE¶ó]3ß@\u009fE¶ó]3ß@\u009fE¶ó]3ß@\u009fE¶ó]3ß@\u009fE¶ó]3ß@\u009fE¶ó]3ß@\u009fE¶ó]3ß@\u009fE¶ó]3ß@\u009fE¶ó]3ß@\u009fE¶ó]3ß@\u009fE¶ó]3ß@\u009fE¶ó]3ß@\u009fE¶ó]3ß@\u009fE¶ó]3ß@\u009fE¶ó]3ß@\u009fE¶ó]3ß@\u009fE¶ó]3ß@\u009fE¶ó]3ß@\u009fE¶ó]3ß@\u009fE¶ó]3ß@\u009fE¶ó]3ß@\u009fE¶ó]3ß@\u009fE¶ó]3ß@\u009fE¶ó]3ß@\u009fE¶ó]3ß@_x0001__x0002_\u009fE¶ó]3ß@\u009fE¶ó]3ß@\u009fE¶ó]3ß@\u009fE¶ó]3ß@\u009fE¶ó]3ß@\u009fE¶ó]3ß@\u009fE¶ó]3ß@\u009fE¶ó]3ß@\u009fE¶ó]3ß@\u009fE¶ó]3ß@\u009fE¶ó]3ß@\u009fE¶ó]3ß@\u009fE¶ó]3ß@\u009fE¶ó]3ß@\u009fE¶ó]3ß@\u009fE¶ó]3ß@\u009fE¶ó]3ß@\u009fE¶ó]3ß@\u009fE¶ó]3ß@\u009fE¶ó]3ß@\u009fE¶ó]3ß@\u009fE¶ó]3ß@\u009fE¶ó]3ß@\u009fE¶ó]3ß@\u009fE¶ó]3ß@\u009fE¶ó]3ß@\u009fE¶ó]3ß@\u009fE¶ó]3ß@\u009fE¶ó]3ß@\u009fE¶ó]3ß@\u009fE¶ó]3ß@\u009fE¶ó_x0001__x0002_]3ß@\u009fE¶ó]3ß@\u009fE¶ó]3ß@\u009fE¶ó]3ß@\u009fE¶ó]3ß@\u009fE¶ó]3ß@\u009fE¶ó]3ß@\u009fE¶ó]3ß@\u009fE¶ó]3ß@\u009fE¶ó]3ß@\u009fE¶ó]3ß@\u009fE¶ó]3ß@\u009fE¶ó]3ß@\u009fE¶ó]3ß@\u009fE¶ó]3ß@\u009fE¶ó]3ß@\u009fE¶ó]3ß@\u009fE¶ó]3ß@\u009fE¶ó]3ß@\u009fE¶ó]3ß@\u009fE¶ó]3ß@\u009fE¶ó]3ß@\u009fE¶ó]3ß@\u009fE¶ó]3ß@\u009fE¶ó]3ß@\u009fE¶ó]3ß@\u009fE¶ó]3ß@\u009fE¶ó]3ß@\u009fE¶ó]3ß@\u009fE¶ó]3ß@\u009fE¶ó]3ß@\u009fE¶ó]3ß@_x0001__x0002_\u009fE¶ó]3ß@\u009fE¶ó]3ß@\u009fE¶ó]3ß@\u009fE¶ó]3ß@\u009fE¶ó]3ß@\u009fE¶ó]3ß@\u009fE¶ó]3ß@\u009fE¶ó]3ß@\u009fE¶ó]3ß@\u009fE¶ó]3ß@\u009fE¶ó]3ß@\u009fE¶ó]3ß@\u009fE¶ó]3ß@\u009fE¶ó]3ß@\u009fE¶ó]3ß@\u009fE¶ó]3ß@\u009fE¶ó]3ß@\u009fE¶ó]3ß@\u009fE¶ó]3ß@\u009fE¶ó]3ß@\u009fE¶ó]3ß@\u009fE¶ó]3ß@\u009fE¶ó]3ß@\u009fE¶ó]3ß@\u009fE¶ó]3ß@\u009fE¶ó]3ß@\u009fE¶ó]3ß@\u009fE¶ó]3ß@\u009fE¶ó]3ß@\u009fE¶ó]3ß@\u009fE¶ó]3ß@\u009fE¶ó_x0001__x0002_]3ß@\u009fE¶ó]3ß@\u009fE¶ó]3ß@\u009fE¶ó]3ß@\u009fE¶ó]3ß@\u009fE¶ó]3ß@\u009fE¶ó]3ß@\u009fE¶ó]3ß@\u009fE¶ó]3ß@\u009fE¶ó]3ß@\u009fE¶ó]3ß@\u009fE¶ó]3ß@\u009fE¶ó]3ß@\u009fE¶ó]3ß@\u009fE¶ó]3ß@\u009fE¶ó]3ß@\u009fE¶ó]3ß@\u009fE¶ó]3ß@\u009fE¶ó]3ß@\u009fE¶ó]3ß@\u009fE¶ó]3ß@\u009fE¶ó]3ß@\u009fE¶ó]3ß@\u009fE¶ó]3ß@\u009fE¶ó]3ß@\u009fE¶ó]3ß@\u009fE¶ó]3ß@\u009fE¶ó]3ß@\u009fE¶ó]3ß@\u009fE¶ó]3ß@\u009fE¶ó]3ß@\u009fE¶ó]3ß@_x0001__x0002_\u009fE¶ó]3ß@\u009fE¶ó]3ß@\u009fE¶ó]3ß@\u009fE¶ó]3ß@\u009fE¶ó]3ß@\u009fE¶ó]3ß@\u009fE¶ó]3ß@\u009fE¶ó]3ß@\u009fE¶ó]3ß@\u009fE¶ó]3ß@\u009fE¶ó]3ß@\u009fE¶ó]3ß@\u009fE¶ó]3ß@\u009fE¶ó]3ß@\u009fE¶ó]3ß@\u009fE¶ó]3ß@\u009fE¶ó]3ß@\u009fE¶ó]3ß@\u009fE¶ó]3ß@\u009fE¶ó]3ß@\u009fE¶ó]3ß@\u009fE¶ó]3ß@\u009fE¶ó]3ß@\u009fE¶ó]3ß@\u009fE¶ó]3ß@\u009fE¶ó]3ß@\u009fE¶ó]3ß@\u009fE¶ó]3ß@\u009fE¶ó]3ß@\u009fE¶ó]3ß@\u009fE¶ó]3ß@\u009fE¶ó_x0001__x0002_]3ß@\u009fE¶ó]3ß@\u009fE¶ó]3ß@\u009fE¶ó]3ß@\u009fE¶ó]3ß@\u009fE¶ó]3ß@\u009fE¶ó]3ß@\u009fE¶ó]3ß@\u009fE¶ó]3ß@\u009fE¶ó]3ß@\u009fE¶ó]3ß@\u009fE¶ó]3ß@\u009fE¶ó]3ß@\u009fE¶ó]3ß@\u009fE¶ó]3ß@\u009fE¶ó]3ß@\u009fE¶ó]3ß@\u009fE¶ó]3ß@\u009fE¶ó]3ß@\u009fE¶ó]3ß@\u009fE¶ó]3ß@\u009fE¶ó]3ß@\u009fE¶ó]3ß@\u009fE¶ó]3ß@\u009fE¶ó]3ß@\u009fE¶ó]3ß@\u009fE¶ó]3ß@\u009fE¶ó]3ß@\u009fE¶ó]3ß@\u009fE¶ó]3ß@\u009fE¶ó]3ß@\u009fE¶ó]3ß@_x0001__x0002_\u009fE¶ó]3ß@\u009fE¶ó]3ß@\u009fE¶ó]3ß@\u009fE¶ó]3ß@\u009fE¶ó]3ß@\u009fE¶ó]3ß@\u009fE¶ó]3ß@\u009fE¶ó]3ß@\u009fE¶ó]3ß@\u009fE¶ó]3ß@\u009fE¶ó]3ß@\u009fE¶ó]3ß@\u009fE¶ó]3ß@\u009fE¶ó]3ß@\u009fE¶ó]3ß@\u009fE¶ó]3ß@\u009fE¶ó]3ß@\u009fE¶ó]3ß@\u009fE¶ó]3ß@\u009fE¶ó]3ß@\u009fE¶ó]3ß@\u009fE¶ó]3ß@\u009fE¶ó]3ß@\u009fE¶ó]3ß@\u009fE¶ó]3ß@\u009fE¶ó]3ß@\u009fE¶ó]3ß@\u009fE¶ó]3ß@\u009fE¶ó]3ß@\u009fE¶ó]3ß@\u009fE¶ó]3ß@\u009fE¶ó_x0001__x0002_]3ß@\u009fE¶ó]3ß@\u009fE¶ó]3ß@\u009fE¶ó]3ß@\u009fE¶ó]3ß@\u009fE¶ó]3ß@\u009fE¶ó]3ß@\u009fE¶ó]3ß@\u009fE¶ó]3ß@\u009fE¶ó]3ß@\u009fE¶ó]3ß@\u009fE¶ó]3ß@\u009fE¶ó]3ß@\u009fE¶ó]3ß@\u009fE¶ó]3ß@\u009fE¶ó]3ß@\u009fE¶ó]3ß@\u009fE¶ó]3ß@\u009fE¶ó]3ß@\u009fE¶ó]3ß@\u009fE¶ó]3ß@\u009fE¶ó]3ß@\u009fE¶ó]3ß@\u009fE¶ó]3ß@\u009fE¶ó]3ß@\u009fE¶ó]3ß@\u009fE¶ó]3ß@\u009fE¶ó]3ß@\u009fE¶ó]3ß@\u009fE¶ó]3ß@\u009fE¶ó]3ß@\u009fE¶ó]3ß@_x0001__x0002_\u009fE¶ó]3ß@\u009fE¶ó]3ß@\u009fE¶ó]3ß@\u009fE¶ó]3ß@\u009fE¶ó]3ß@\u009fE¶ó]3ß@\u009fE¶ó]3ß@\u009fE¶ó]3ß@\u009fE¶ó]3ß@\u009fE¶ó]3ß@\u009fE¶ó]3ß@\u009fE¶ó]3ß@\u009fE¶ó]3ß@\u009fE¶ó]3ß@\u009fE¶ó]3ß@\u009fE¶ó]3ß@\u009fE¶ó]3ß@\u009fE¶ó]3ß@\u009fE¶ó]3ß@\u009fE¶ó]3ß@\u009fE¶ó]3ß@\u009fE¶ó]3ß@\u009fE¶ó]3ß@\u009fE¶ó]3ß@\u009fE¶ó]3ß@\u009fE¶ó]3ß@\u009fE¶ó]3ß@\u009fE¶ó]3ß@\u009fE¶ó]3ß@\u009fE¶ó]3ß@\u009fE¶ó]3ß@\u009fE¶ó_x0001__x0002_]3ß@\u009fE¶ó]3ß@\u009fE¶ó]3ß@\u009fE¶ó]3ß@\u009fE¶ó]3ß@\u009fE¶ó]3ß@\u009fE¶ó]3ß@\u009fE¶ó]3ß@\u009fE¶ó]3ß@\u009fE¶ó]3ß@\u009fE¶ó]3ß@\u009fE¶ó]3ß@\u009fE¶ó]3ß@\u009fE¶ó]3ß@\u009fE¶ó]3ß@\u009fE¶ó]3ß@\u009fE¶ó]3ß@\u009fE¶ó]3ß@\u009fE¶ó]3ß@\u009fE¶ó]3ß@\u009fE¶ó]3ß@\u009fE¶ó]3ß@\u009fE¶ó]3ß@\u009fE¶ó]3ß@\u009fE¶ó]3ß@\u009fE¶ó]3ß@\u009fE¶ó]3ß@\u009fE¶ó]3ß@\u009fE¶ó]3ß@\u009fE¶ó]3ß@\u009fE¶ó]3ß@\u009fE¶ó]3ß@_x0001__x0002_\u009fE¶ó]3ß@\u009fE¶ó]3ß@\u009fE¶ó]3ß@\u009fE¶ó]3ß@\u009fE¶ó]3ß@\u009fE¶ó]3ß@\u009fE¶ó]3ß@\u009fE¶ó]3ß@\u009fE¶ó]3ß@\u009fE¶ó]3ß@\u009fE¶ó]3ß@\u009fE¶ó]3ß@\u009fE¶ó]3ß@\u009fE¶ó]3ß@\u009fE¶ó]3ß@\u009fE¶ó]3ß@\u009fE¶ó]3ß@\u009fE¶ó]3ß@\u009fE¶ó]3ß@\u009fE¶ó]3ß@\u009fE¶ó]3ß@\u009fE¶ó]3ß@\u009fE¶ó]3ß@\u009fE¶ó]3ß@\u009fE¶ó]3ß@\u009fE¶ó]3ß@\u009fE¶ó]3ß@\u009fE¶ó]3ß@\u009fE¶ó]3ß@\u009fE¶ó]3ß@\u009fE¶ó]3ß@\u009fE¶ó_x0001__x0002_]3ß@\u009fE¶ó]3ß@\u009fE¶ó]3ß@\u009fE¶ó]3ß@\u009fE¶ó]3ß@\u009fE¶ó]3ß@\u009fE¶ó]3ß@\u009fE¶ó]3ß@\u009fE¶ó]3ß@\u009fE¶ó]3ß@\u009fE¶ó]3ß@\u009fE¶ó]3ß@\u009fE¶ó]3ß@\u009fE¶ó]3ß@\u009fE¶ó]3ß@\u009fE¶ó]3ß@\u009fE¶ó]3ß@\u009fE¶ó]3ß@\u009fE¶ó]3ß@\u009fE¶ó]3ß@\u009fE¶ó]3ß@\u009fE¶ó]3ß@\u009fE¶ó]3ß@\u009fE¶ó]3ß@\u009fE¶ó]3ß@\u009fE¶ó]3ß@\u009fE¶ó]3ß@\u009fE¶ó]3ß@\u009fE¶ó]3ß@\u009fE¶ó]3ß@\u009fE¶ó]3ß@\u009fE¶ó]3ß@_x0001__x0002_\u009fE¶ó]3ß@\u009fE¶ó]3ß@\u009fE¶ó]3ß@\u009fE¶ó]3ß@\u009fE¶ó]3ß@\u009fE¶ó]3ß@\u009fE¶ó]3ß@\u009fE¶ó]3ß@\u009fE¶ó]3ß@\u009fE¶ó]3ß@\u009fE¶ó]3ß@\u009fE¶ó]3ß@\u009fE¶ó]3ß@\u009fE¶ó]3ß@\u009fE¶ó]3ß@\u009fE¶ó]3ß@\u009fE¶ó]3ß@\u009fE¶ó]3ß@\u009fE¶ó]3ß@\u009fE¶ó]3ß@\u009fE¶ó]3ß@\u009fE¶ó]3ß@\u009fE¶ó]3ß@\u009fE¶ó]3ß@\u009fE¶ó]3ß@\u009fE¶ó]3ß@\u009fE¶ó]3ß@\u009fE¶ó]3ß@\u009fE¶ó]3ß@\u009fE¶ó]3ß@\u009fE¶ó]3ß@\u009fE¶ó_x0001__x0002_]3ß@\u009fE¶ó]3ß@\u009fE¶ó]3ß@\u009fE¶ó]3ß@\u009fE¶ó]3ß@\u009fE¶ó]3ß@\u009fE¶ó]3ß@\u009fE¶ó]3ß@"}},{"$cut":{"chars":51864,"head":"6e5be842185e78640cf8f0341a10b732_x0001__x0002_¢?¿H_x001C_\tà@è£®Ó^7ß@_x001D_¿\u008b¦R_x000D_ß@«ã_x0003_u¦oß@èõ\u0080_x000E_aÝÞ@®ð¿[\u0097ÔÝ@àè\u008c2¤¶Þ@ª_x0007__x0002_àÂCÞ@ÆSôq\u0097\u008dß@ðÓyJø0ß@_x0002_£÷\u0099ÂÌÞ@ö\u008a)qÕåÝ@\"þ²mMTÞ@n¥Ñ\u0087ö¶ß@e\u009fÙ_x000D__x000D_êß@_x0010_®\"á_x0003_AÞ@×·Q5ý_x001B_ß@tK\u0095§k\u009cß@¸qxb/_x0019_Þ@\u0084§ßÒRíÞ@/*h}_x0012_\u009aÞ@_x0006_@ëPTyÞ@:bé_x0015_èEß@<\u0086\u008c}¤¸Þ@ë0n_x0019_¾\u0083ß@Äs;5D9Þ@Fy¸±e>Þ@!D½Âl|Þ@\u0084ªü\u009e\u00998ß@°^ç[0nß@}¢aìý#ß@f,\\_x0010__x0001__x0007_\u009bUÞ@Ç\u0092\u0088P8ÕÞ@7\u0096¢Ù¦\\ß@_x001A_r¤åAÙß@_x0014_\u0089T¥\u009c¼Þ@Ë_x0013_\u0094ª\u0089_x0003_à@à,|ü_x0012_\u0080Þ@*çaú\u008b_x001F_ß@Æ\u0096²O'YÞ@x\u0097öHììÞ@_x0001_²\u007ffú#Þ@¬ã§ìÿ`ß@å¯_x0016_\u0090_x0010_\u0090Þ@f÷_x001F__x0006_Ð ß@ûà_x0017_\u0082°ùÞ@¥³k6\u009fÑÞ@Ç\u0096¨p~_x0002_ß@,kÆ`_x0003_%ß@«UÐK/_x0016_ß@CÄ`\u0098zYß@\u0094Ä_x0003_l/+ß@\u0091f|pÈvÞ@ò7\u0081_x0004_£\u008bÞ@\u0083%´.K[ß@õP\u009a£ØNÞ@°Ø_x0012__x001C__x0008_!ß@p²¸à1OÞ@_x000E_HEIQvß@\u0098\u008d/W\u0086¸Þ@f_x001A_Ì7n¿Þ@Dg²*Ú2ß@_x0016__x0005_èn\u009eOß@_x0001__x0004_`sÞ×o\u0084ß@Õ_x001D_qþö_x0002_ß@{íc_x0008_Y¡ß@\u0086\u0092õ%ÿ°Þ@àï/P_x0007_ÔÞ@\u008dUv\u0086\u0085cß@'w:_x0007_'_x001C_ß@_x001C__x000C_À|\u0095(ß@wi_x0019_Pchß@\u0086Í_x000C_4__x0015_ß@GF^SØáÞ@&Ü­£\u008f]Þ@RÍßÈspß@\u00949¯´3oß@{Yî¡_x000B_ïß@x_x0005_v\u009b\t:ß@Ö*dÿò\u0085ß@mÊÎÜû\u009aß@Z_x0001_öMáÞÞ@\u009c\t£Ëð\u0093Þ@_x0003_>òø\u009b\u0097ß@1Pú÷ì$ß@ [Æ7BüÞ@_x0014__x0017_-µô\u0090Þ@ºûiQ\u009d_Þ@¨&µ}àÑÞ@T_x001D_¶ÆxuÞ@%\u0085_x0015_6òéÞ@wåè_x000C_:&à@®\u008e?»_x0017_uß@ :·\u0097õ_x0008_ß@°¦®_x0001__x0003__x0007_Ù\u009fÞ@r_x0016_\u0086_x0017_gJß@Àâ°Ëý!ß@ìx_x0010_nkøß@gE?_x0007_ÌòÝ@Fæ_x001D__x0011_\u0095_x0019_ß@T7ðnã\u0088Þ@\u0080j¹¹Î_x0006_Þ@èþ4V_x001E_ ß@\t'+_x0001_ßµß@Ó'_x000B_J\u0096&Þ@ *Òè>ïß@Ðm\u0097_x001B__x0015__x0005_à@\"_BdR_x001C_à@³éî_x0007_¤\u008bß@ón_x000B__x001F_×hÞ@_x001C_®_x000B_Jèxß@i\u0080~Zs\u0082ß@l\u0085Ï\u00803 Þ@(Ò\u0097FÇÆÞ@`þ/Hõ_x000D_ß@`.\u009dÅ§Gß@_x0002_ej±Ë1à@ò¿¢}/xß@k_x000F_Â%\u0087+ß@YÞË\u008d_x0006_æß@_x0006_åq_x0008_|»Þ@Âï\u009af}_x0012_Þ@Ê©Þ&_x0018__x000E_à@_x0004_\u0095ñà°\u0093Þ@üÝÊ©öÞÝ@f±ãï_x000B_äÞ@_x0002__x0003__x000F_\u0083©øäcß@Uó5\u009a\u008a\u007fß@};&ã+ÄÞ@6}ª\t¤_x0006_à@_x000D_Õnî(_x0014_ß@8n\u0097àÛ\u0094Þ@ù§nº\u009dHß@¸\u0080Çº»ÊÞ@\u0086_x0015_È_x001C_]_x0019_à@Ír(ö_x0012_Nß@\u008ew*Ó²_x0011_à@\u0080ü]\u0084y5ß@_x0014_\u008có\u009aûÕß@\u008a¬u}ÒæÞ@ÎÈÉ_x0010__x001F_Õß@_x000B_¦\u008aL,_x0013_Þ@£_x0015_Cm\u0092õÞ@nÃsKÞýß@üýÍ ïÎÞ@l0ñÞ_x001B_3ß@©eÔØ\u0083\tÞ@íPe_x000F_åÇÞ@¢-ÀÜ¾ ß@xtu_x0018__x0008_\u0081Þ@à\u008c\u009a\u0082S×ß@À2¡v\u0083,ß@,Ü÷Òê`ß@¿ö#9£_x000B_ß@_x0001_Kÿ_x0008_AÆÞ@s*»l{\u0099ß@)¶\u0083(òÐÞ@~Ñw\u0094_x0003__x0004__x001A_ÊÞ@Q=ûé´êÞ@óe©¥\u0098Aß@©ÎòÈÆ1Þ@xøHf³Kß@Ú\u009f8ÌÉcß@§©Ol»kß@ê\u0099_x001A__x0013_`_x0002_à@·¨ÑÓ[:ß@á2_x0011__x0012_[2ß@ýW_x0012_=À\u009eÞ@_x0016_\u0087_x000C_=_x000E_þÝ@ä_x0013_»Þ\trß@÷CÉ_ÿÊß@*\u009c_x0011_0Q´ß@Ó)æ_x0015_?_x0010_à@VB°£ÍÕÞ@\u0098w_x0006_7)_x0001_Þ@½\u0093XäÜÌÝ@c¢Ãº\u0098¢ß@Ù½z\u0085\u0095Ðß@ÆøoG_x000C_ëÞ@¼ó)¢ê ß@FÁP¯7ÛÞ@\u008at²\u0097\u0094³Þ@'³_x0004_.è·Þ@_x001D_\\\u0095Õ)_x000D_à@\u009bÁ0äW6Þ@Qå+_(ÐÞ@ \u0098Ê_x0010_©®ß@_x0014_[ê]ºÀÞ@\u0096½åh\u0097­Þ@_x0001__x0003_\u008c\u0090u\u009fë!Þ@ZIë\u0084\u0094÷Ý@\u0091¾´YfUß@uÍ\u0091_x0016_-nÞ@_x0014_\u0089ö\u0086V²Þ@Û¾l¿¬`Þ@\tÁ_x0004__x000C_Q­Þ@¶é\u0090Û_x0017_\u0080ß@_x0017_;bÏ6SÞ@ºèhhSJß@×õrå\\:à@aTù;NqÞ@»øýÄÖÿÞ@~!X]I¦ß@g(\u0098f_x0015_~ß@dì¿ÞWBß@û_x0016_`Mu{ß@BRñøÂYß@w¬_x0010__x000D_ÙäÞ@Í02Ê\u009afÞ@\u0092zþw_x0018_ñÞ@*\u0091ÁÈ\t£Þ@S\u0093_x0012_È´¾Þ@LB_x0016_Ø_x000E__x0002_à@_x001C_¿Ðý\u0093[ß@¬\u009c_x0018_fX_x001D_à@iNÁ×ð\u0086ß@\u008aþ¡®\u0091©Ý@\u009dñØ2\u0083ÛÞ@\u0087~´×\u0098|ß@±bÓ§´ ß@\"r'\u0087_x0002__x0003_,ÚÝ@_x0004_§ð}¿_x0013_ß@*¤_x001C_:V\u009dß@Ú.êÙ<\u009fß@_x0008_£Ä\u007fÐ_x0001_Þ@_x000E_ës-[Cß@V\u009d\u0097,\u0084~ß@L\u0085_x000F_å¿\u0080ß@fËÿj_x0006__x000E_à@ñ_x000E_\u008cn_x0004_¸ß@É9D³³~ß@Ñ+Ã¥\u0081\u0088Þ@\u007f\u009b}¿D_x0002_ß@È%Éà\u008bàÞ@\u007fÝ\tE4Òß@_x001F__x001F_\u0086_x0017__x0006_áÝ@\u0090F\u009f_x0006_\u0087×ß@«\u0095Ï@\u008e9ß@\u0082D\u009b¦qýÞ@m4B#i£Þ@©\u008bÒì_zÞ@¼\u0087zx!Èß@ÁwGSc8ß@0z3\u0089¢ZÞ@ý(ñM_x0017_øÞ@?+(\u008d\u007f_x001D_à@A_x0011_\u0099÷1\u0081Þ@1ü¼°-\u008aß@¢x1]\u008bßß@Ó\u007fç£?Êß@[C\u0087\"kñß@ä×\u0081f:9ß@_x0003__x0004__x0008_|8\u0088ØÎß@\u007f\u009a{\u0082Ö\u0096ß@_x0014_\u0092s16Sß@F>\u0085\\ö¹Þ@f¤ðë_x0018_>ß@íÍ®¯KJÞ@¨*/vä\tß@_x000E__x001B_»ø\u008fÈÞ@vÛÀ+nÑß@_x0012_q\u0095J\u0084ôÝ@ _x000C_ö\u0096âûÞ@\u0081_x001C_7\u0097ú¿ß@|6\\_x001E_ Òß@áº\u009c\u0086_x0001_Äß@\u009fzQB\u0093±Þ@ÓL_x0011__x0002_?°ß@G\u0086Ò'1ÌÞ@_x0015_b  õ_x000F_ß@*É\u008cÿ\u0096zÞ@Ð\u0097\u0092%eåß@|y^­_x0002_Rß@_x001E__x0002__x001E_$dùÞ@Qã2\u0091\u0094_x0005_à@_x0005_âîUT!à@n_x0005_)ý_x0003__x0011_ß@\u0086_x0007_>ô¿Yß@¾Ôsg_x0018__x001C_Þ@m»õ_x0017_âTÞ@\u0092fåë_x0005_ÖÞ@7\t)\u0085ëøÞ@ïoÒ÷_x0003_ÚÞ@ÍÏÓd_x0001__x0003__x001A_0ß@þc_x0007_²N_x0003_ß@óæ_x0018_\u0086\u0087bß@\u008c\u0086R{i\\ß@_x0008_,VÂ×§ß@¨\u007f+ÅÔrß@Í\u009cê§áaß@É_x0013_¶¾k§ß@\u0091æ\u0093`Ã_x001B_à@\u009b¹^ô¶äÝ@æõ1V'\u009bß@VÏ\u0081ÌV\u0086ß@b¶óÔCÎÞ@_x0002_²Pr¶¯Þ@®¢´º_x001F_[Þ@¡ËiA_x001D__x0018_à@_x001C_K_x0005_e}%Þ@ñ2Oh®_x001F_à@\u0084ôyî\u0092·Þ@\u0085ª7l_x0007_\u0094ß@GÅ_x0007_î__x001B_Þ@¶Ó_x0015_2*bß@_x0019_D_x0005__x0008_pMß@_x000D_Xç\u009aa½ß@!LÑ¿Ú\u0095Þ@C_x0016_nyDâÝ@i\u0088¬_x0004_\u00877ß@Dú_x001D_ÛìâÝ@\u0090_x0006_ÉJÊ\u009dÞ@>\u0094õ\u009eçwÞ@õÎ&_x001B_ÒÔÝ@\u0097V"}},{"$cut":{"chars":53982,"head":"2296ea496e8b24b8c4eb13d745844eb2_x0001__x0002_\u0094M_x0006_=b%à@è\u009b²­3òÞ@_x0001_\u0094üòñ_x0003_ß@wÍ_x0002_\"üqÞ@Å!9?#¨ß@éÉC\u009f«ÖÞ@û_x0008_=9_x0006_6Þ@ÉR0ãàÈÝ@\u0094é\u0093ògþß@\u008dx\u009fìXþÝ@(Ê_x0002_Íã\u0084ß@\u008alÏÇ_x0016_AÞ@»Wµ´_úÝ@\u0099<_x0005__x001E__x0019__x0013_ß@_x001E_ý/ /ãÞ@Å±Ü_x0018_¢¶Þ@Î¡Ó4\u0088kß@¦'4\u0085N<ß@¤¦¶\u0092_x000F_Hß@ÝºG_x000E_&.Þ@A§Õç_x001F_Wß@»V@+ª_x0015_Þ@&ÝÞ£ñ,Þ@>_x000E_¢ß>\u0080Þ@ÝúL\u0084\u0081Jß@A¶{Ê] Þ@\u009bá\u0097÷ÃwÞ@\"ãÜ¯) ß@þß¬]\u0098\u0086Þ@¦K_x000E_îÜ»ß@Û°ªq­ãÝ@·\u009dïÍ_x0002__x0004_^iß@Ó\u008eÝûZPß@&Hm\u0097\u0098ÑÞ@u_x0013_&ýú_x0011_à@B_x0008_\u0095G\u0085Ãß@âQÐ&2\u008aÞ@qlö.=¾ß@×%Ó S\u009cß@i\u009d_x0010_ÒL§Þ@7vµ\"*_x0003_à@k\u0098Ë²áÙÞ@æCN\u008d êÝ@={Í´³Xß@_x0019_ü_x001C_.MûÝ@\u0094Â\u008fy\tâß@>±)³á«ß@N¢Õî÷AÞ@;àíÇwWÞ@4WZ(\u0097_x0003_ß@\u0098\u008df_x0005_ËöÞ@â;GbÎ)ß@\u008d\u008d:vË\u009bÞ@ò7o\u0087Q_x0002_ß@æ°VÃ\u0087\"Þ@Ý!¬LRÐß@_x001E_¤_x000B_ªáNà@%ôÛä1_x0006_à@$R Ié_x0018_Þ@\u0085x\u008fmé¾Þ@/øJÖ_x0001_úÞ@|_x000E_;\u0091Ï\u0099ß@\u008a5Ømù_x0008_à@_x000B__x000D_tµÀ!_x0008_ÂÞ@ÌB\u008aÛ\u0081|Þ@\"F_x0005_°¥_x0017_ß@i·ö×ºãÞ@û\u0088`P_x0005_¦Þ@¦\u0087\u0086rÄ_x0017_ß@Õu¥s_x0005_Qß@£¢þÐ×\u009dÞ@BÒÉ}HHÞ@ò{_x0017_³áìß@º\u0095\u009dwL|Þ@0`Q&£_x000C_à@ñ_x001C_ê\u008d¨Rß@g\"H,Ö3ß@?²¿_x001F_\t³ß@b\u0084\u0098_x0001_²fÞ@\u0095_x0011_G±C/à@\u00952\u008f\u0080\u008dîÞ@xUã_x0019_I6Þ@f°\u008bN5_x0003_ß@\u009cc¼zTYÞ@_x001C__x001A_x^_x001B__x0002_ß@«¾\u0085w_x0007_üÝ@Ù/_x001E__x0004_è\u009dÞ@°Êñ§¯CÞ@`à´X3Âß@E_x0004_\u009aº\u0081aÞ@]\u0091ãX0gß@\u0092òOçS¢Þ@\u0096\u008e_x0006_\u0088$¢ß@¦_x0012_ª±¤îÝ@ê\u0097@ü_x0001__x0002_ Ïß@=R÷8ÀÇß@%6L2N}ß@<\u0096_x000D_=!Pß@ßb!<g_x000B_ß@_x0007_H|Ú:,ß@\u0096c\u0084=!Æß@T³x¦Ç0ß@ïqà\tº\u008cß@âªÞ×_x0005_·Þ@Ni_x0016_o<ÂÞ@ÄP\u0087¯_x000D_ÊÞ@Ùµ_x0015_ S\u009bÞ@NK0ñµþÝ@óSM\u0082ö+ß@½_x0015_¸Û\u007f_x0001_ß@\u0094ã\u009b_x001C_\u0088Þß@ \u0088\\ÝcEß@cbs\u0098gaß@UK\u0083Q3\u0090Þ@7!_x0001_«Y(ß@8ñ¾Ïk±Þ@Ì`ZriÁÞ@²Å_x0002_é\u0086<Þ@ù\u0082-\u008b'ÞÝ@\u0099ÛN\u009f\u0088=Þ@['\u008e]Ô7ß@1L-q;KÞ@ì\u0082_x0019_g\u0096}ß@%ûéAä_x0001_Þ@rá0ÙÖñÝ@÷ðå²Î£Þ@_x0001__x0002_(¡\u008f=n\u0098Þ@ý\u008f\u0097·\u0096HÞ@÷þé9\u0084\u0096Þ@ÝNÄiövß@Mü¿ÇöÙÝ@_x0018_1l\u008d\u008c_x000D_Þ@$¡ë°|Âß@ê_x0018_({°]Þ@ùúäx_x000E__x000D_Þ@.¨N\u00932ÖÞ@a_x0002_ÕN¸½Þ@ì¦$=©_x0001_à@ñ\u0083\u0086å_x0007_@Þ@(_x0006__x0015_p\u0094ðÝ@ëû¸j_x0001__x001B_ß@Px_x0014___x0006__x001C_Þ@þ·éëüÆÞ@´\u0099ó\u0084¥_x0018_Þ@zí\u0085/ëÅÞ@(ëÁ\u009e½4ß@¸:./\u0081kÞ@_x0001__x0006_hüd_x0017_Þ@\u0094âf\"QýÞ@<ì\u0091_x000E_äeß@¦_x0014_\u008dóLNß@Î_x0016_¡øk_x0016_à@a\u0081¸QðôÞ@\u0088\u0097¶\u009e7\u009bß@_x0012_±øÉâ\u0089Þ@ëë\u008e³(Eß@_}o\\>7Þ@\u0090óI²_x0003__x0005_j+Þ@ÞÞÏòMØÞ@á¸=\u0082o.Þ@*ÍÒ­MÞß@ ükNgæÞ@÷¤\u0089¯4ôÞ@_x0014_àÇ\u009døÏß@ðã9\u009bnÈÞ@ù«&Q|_x0015_ß@{ÜÉ[Ì¥Ý@_x001A_r­ãoáÝ@Éø¤_x001F__x001C_úÞ@\u009aup\u008cg¬ß@_x0002_Å\\\u0090_x001F_9Þ@s\u0087ñ_x0001_\u0085Mß@\u0095ès.0úÞ@$Y_x001E_\\\u009d_x0004_ß@<Ë7¹0ÐÞ@½<_x0014_®<nÞ@\t\u009f?\u0088åÜÞ@ \u0085¾cË_x001F_Þ@Ü\u009e\u0097\u0098.%Þ@Á¶¨yÉÀÞ@çÞðg¿\u0083Ý@¥8\u0086È¡üÞ@_x001C_\u0083Æû<¹Þ@Ì©ÆH0®Þ@ø½_x0001_Ó _x0018_Þ@bVJ³ýïÞ@\u009aó-²ùÇß@:ºNÀÕ_x001F_ß@Fÿ_x001B_%½\u0088Þ@_x0001__x0002_ÍÛ\u0086GÅÿÞ@+\u008b\u009e\u0080?BÞ@K1¾]_x0019_\u0095Þ@|_x0008__x000F_\u0090u.à@î\u0095}!_x0015_bÞ@j_x0014_%Å\u00983Þ@Ktykðìß@*²HÊìXß@t\u009de¤ô\u0092ß@ÿ²\u0096v\u0088Èß@æàùÃêÉÞ@<¾ÙaçÍß@<6¤1\u0085ÓoÀ_x0014_¹^n°_x0006_Y@À÷ïE¦\\H@èVv_x000B_\tøD@\u0082Q`}lrg@P\u009b·3\u0080_x0015_IÀxM\\â\\5F@ *_x000B__x0013__x001B__x001C_@À@Ó¢\u0087[_x0018__x0017_À\u0086_x000C_½\u0082ûDjÀÓh]%¨_x0010_cÀõ\u009b~[Î\u0089pÀ ²Õõ,DE@ ¾Oj»\u0080IÀ¯§+Ü_x0008_Åq@_x0012_Ûa\\ü^pÀ Ú¢_x000E__x0011__x0018_C@È\u0090µH3_DÀ¸$H\u009dÒ¦CÀ_x0001_bµY_x0001__x0002_ÙÝò?´_x000E_\\Y¸¦lÀô_x0013_[_x0018__x0003_ôb@ô,÷\u0081®{TÀ®Á\u0083^N\u009ff@_x000E_=à×_x0004_ÿo@´ÆM\u0088a\u0099W@¡ó\u00875â_x0015_q@²\"ª_x001F_ö_x0002_f@`3Î5QKZ@ð\u008dïà_x000D_n2ÀpI2ÏËª<@²+Â,!bmÀ®~\tÏÏ `@\u0080q\u008eó®Ñ#@\u009e\u009dV\u007f\u009c_x0016_h@À\u0084\u009dKä_x0005_GÀàÇÒ_x000D__x0005_IO@ )³w_x0003_£GÀ<\u009b^Dt¬X@Pjp:sØ_@Øíz\u0081U½N@`Ów_x0003_\u0081]NÀ\\HyÑp_x0013_Q@_x001C_mïG\u0085Ï`@d_x001F_õ§\u0088_x0018_[Àj|áÓµÛbÀ_x000E_ÒP 4Vi@_x0015_<i(e_x000B_`ÀP_x0011_\u0096ÁXt6@î_x0004_ÿ\u009f\u0090­YÀö_x000E_²)du[À89@ön3_x000D_ù`@0¬LÎªQVÀ¿v$ø¼\u008aaÀÈy2_x001F_¡¿\\@_x0001__x000D_88_x0002__x000D_88_x0003__x000D_88_x0004__x000D_88_x0005__x000D_88_x0006__x000D_88_x0007__x000D_88_x0008__x000D_88\t_x000D_889_x000D_88_x000B__x000D_88_x000C__x000D_88_x000D__x000D_88_x000E__x000D_88_x000F__x000D_88_x0010__x000D_88_x0011__x000D_88_x0012__x000D_88_x0013__x000D_88_x0014__x000D_88_x0015__x000D_88_x0016__x000D_88_x0017__x000D_88_x0018__x000D_88_x0019__x000D_88_x001A__x000D_88_x001B__x000D_88_x001C__x000D_88_x001D__x000D_88_x001E__x000D_88_x001F__x000D_88 _x000D_88!_x000D_88\"_x000D_88#_x000D_88$_x000D_88%_x000D_88&_x000D_88'_x000D_88(_x000D_88)_x000D_88*_x000D_88+_x000D_88,_x000D_88-_x000D_88._x000D_88/_x000D_880_x000D_881_x000D_882_x000D_883_x000D_884_x000D_885_x000D_886_x000D_887_x000D_88_x0001__x0002_8_x000D__x0001__x0001_9_x000D__x0001__x0001_:_x000D__x0001__x0001_;_x000D__x0001__x0001_<_x000D__x0001__x0001_=_x000D__x0001__x0001_>_x000D__x0001__x0001_?_x000D_"}},{"$cut":{"chars":52092,"head":"6db8897b1a566b727053355f20f19b4c_x0001__x0005_TM±_x0014_Í&\u0084@¯©_x0015_\u0089 m\u0089ÀÄª\u0081ØFsrÀ¸_x000B_Zk²\u0096fÀ¾ÄÉ_x0012_½y\u0090À\u0080×\u009a÷Ë_x0004_`@.\u008c¼_x001F_ö°\u0095À@_x001D_§³W_x001D_\u0089ÀÅ$\u0093\u0098'È\u0098À,Mb_x000C_ª,\u0085@Ä#«ÑÑ_x0013_\u008e@à_x001A_e_?2~À_x0003_G*\u008e¼_x0017_\u0093À_x000C_ëÿ_x000D_·Kp@\u0090 m\u009dþ_x0011_`@`<Ua\u0098ÝL@°x& ¾_x0002_\u0094@Ø×_x0016_._x001B_.qÀlÀ_x001F_M\u0090m\u0094@\u0090lÆ¢¯sf@$ì|Ï\u008f0\u0083@_x0001_:{¤+j7ÀÀ×Wfutj@ ËÎ¦;~|@P®\u009eLÕ\u008e\u0086À_x0004_¨Û_x0001_RâxÀø»\u008c_x001C__x000E_!oÀ\u0084g\"\" 3s@p_x0013_¯_x000C_z_x0014_oÀ/½åàþ~\u0094À\u0090o\u0092\u0094\u0084*X@Y_x0003_ºÞ_x0002__x0003_;G\u008bÀsØ\u0096ô}Ê\u008dÀ\u009f:Kâ9ö\u0090ÀìÇi\u009aÊÜ\u008eÀ\u0080_x0002_¨_x001D_|\u0087;À_x0008_L,û4°n@.zDpñg\u0090@xÇ_x0007_g\u0091ô~À$1\u0087(Z_x0001_sÀ_x0002_/_x0002_Q\tÀZ@8Ð§\u0097_x001C_\u0094xÀ¬\u008d\u0093sÎ\u007f\u0087@_x0018_´ÔÊGöq@_x0002_=1_x000B_»_x0019_\u008c@à.È_ØhT@(³Ï\u008aÈa\u0087@Ý>f·_x0011_í\u008fÀö\u00848À\u0099G\u0085À 1\u0084~B \u0088@¶_x0004__x0018_1 !\u0086ÀÀ\u009d_x000D_D\u0085_x0005_l@H?Ñ§3_x001C_}@¤ºm_x0007_aD{À8=çþÄuz@_x000E__x001F_+_x001A_ÖH\u0095À_x0002_N¡!ª{_x0007_À_x001E_/~_x001A__x0011_Ü\u0084À\u008c6Ln}â\u0083@`ä§\u008aSýp@ÈA(xkUq@`£XñË~w@ ¥_x0014_\u0083uà\u0095À_x0002__x0005_è\u008b\u0092\u0094L_x001B_\u0086@Ä¤_x0003_»Lo\u0080Àì{:'  \u0081@X_x0005_¹\u008e+#\u0080@ñ®9¢Mõ\u0095ÀðWýF]\u009eu@ÖÛÚú-­\u0091@J`oh_x0011_°\u008eÀ`_x0014_ô{-ÃwÀP*_x0013_89â\u007f@8)ËÀüH\u0086@\u0084ÛÝ\u009bfO\u0081@ÈÍÃ_x0001_PY\u0085@_x000C_°S#\u0092c\u008b@À$Óµg¤\\@l_x0002__x001F_¬NØ\u0083@ôf½\u008f¯_x0008_yÀ¤´B3_x001B__x001E_qÀd^\u0099`ûº\u0093À0+.ºm1c@°íT¯\u0086Ão@üªô]ÂÆ\u0080ÀX\u008erª)6u@\u009c\u0080\u0086¥_x0004_÷zÀ Ð»SvÖbÀ \u009f_x0001__x0019_\u0099ªf@\u0090S_x0003_\u008e®Ë\u0083@\u0088ÖÍþ¦\u0086hÀð\u0095ÕãÖP\u0084@Ø\u009a\u0089cÏ×jÀ_x0010_½^£_x001C_\ty@à<Â\u0080_x0001__x0002_ñëQÀhq¶´Å\u0082\u0091À0àOèf¤{@h\u009cý[¡¬qÀ\u0080Î\u009d0UúPÀ_x0004_3¥_x000F_ùi\u0090@p_x0018_}}£=fÀ <O$ÿHn@Áé©5zj\u008aÀxWoÞ}\u009b\u0089@hn_x001E_9¢J|Àð_x000F_ËLÍ¬jÀXÂTt_x0014_½}@tâ_x001A__x001B_¶/\u0086À,\u0086ä0¦r\u0086@\\_x0017_\u0092o¬_x0010_\u008b@°Ïbÿ\u0088\t^@_x0004_ëÈ\u0089É_x000B_\u0081@\u0090àñjÅ\u0083`À¸#_x000B_\u007f\u0093«\u0087Àa¶_x000F_¡+À\u0089Àl#þvõKq@\u008cÀ ã}ôwÀÈ_x0011__x0016_¿¦ûsÀ8ôMå¦_x000D_|@¬V¹._x000E_H\u0081À`_x000B_t!2Ø\u007f@üÔZW¸;\u0092ÀÏÅO\u009fAl\u0090À_x0018_Ù²\u009f/¬\u0085À ßÃ¸\u008cVY@_x0001_ Eº5ätÀ_x0001__x0005_ ­Ú_x0005_À\u0096\\@pÛ_x0015_Åy>sÀ \u007f`h_x0011_þj@\u0080_x0018_Jx¦$DÀñ/*-\u0098Å\u0094À²%ûÉp_x0008_\u0083Àø õ+N\u009doÀ\u0090_x0013_Îm\u0098©\u0082@X¼_x0010_Îìµ\u0086@\u0098²A]\u0087J{@ \u008e3\u0093_x000D_Ç~@\u0084´\u009fÃÄúuÀlðþª_x0016_X\u0091@Lçc_x0004_\u0095G\u0084@ _x0013_ê_x001B_á\u0095[À5_\u0099,_x001C_\u0094\u008dÀÔ@ZÆÅ_x001F_wÀ\u0084¯_x000C_É_x001D_ëwÀ0_x001C_ª?\u008a\u0096\u008d@_x0001_/r_x0010__x001F_ýR@Äûu3E\u009a\u0081À¤º³_x0002__x000F_«\u008b@ø1\u0083Ê5qs@py_x0004_¨¡Õz@À\u0095oTÕ*yÀ&\u0099êD_x001C_'\u0089À¥ðQ¶_x0003_²\u008bÀ_x0018_\u0087_x0007_qû;i@°É_x0014_$5bnÀÔÖÝ\\\u009f0\u0094@¨\u0082ÊÑ\u008eUzÀ\u0092¨_x0019_\u0085_x0001__x0004_£b\u0091@ØMû_x0001_M\u008at@\u0084nnu¹Ä\u008e@_x0001_gZ¯V·lÀ8\u009a\u008fñ³/eÀ¬þ_x0002_«Ãf\u0083@2\u0094-\u009a!¤\u0090ÀäØÓ£ö3p@Hô_x000C_¼ý_x0007_uÀ_x0001_\u0090ÒæV\u009dB@<élÓ_x0003_Ä\u0082À_x0001_\u0088úzm_x0019__x000F_@âÊc«_x0019__x001F_\u0091@8g\u0093\u0086± \u0090À(%_x0013_\u0092ü¿\u0082À¨ ö7 p\u0086@\u0096¯_x0017__x000C_¹ý\u0083ÀÐá\u0093¤]´l@_x0010_Âæ_x000E_bTs@¨÷Xn\t_x001C_uÀ¼E4å¡ì{ÀÔ\u008fÓ\u0082\u0092E\u0089@\u0080_x0002_\u0085ì6vuÀÀ_x000B_#\tG RÀ\u0080\u0092\u0089¯\t¾C@@\u009d2!A­\u0084Ànê¾\u0090+ù\u0081Ànù_x0002_e_x0019_±\u008fÀ\"í\u0088%$ó\u0092@ÓÀ_x0008_uÄ\u0097\u0091À_x0001_V\u0091_x0006_»A(@èMçEãd\u0083@_x0001__x0005_ñRA¶;(\u008eÀ´ÑÍ\u0082Ïe}ÀÌ\u0080xÜÂÙqÀü_x0001_Fz_x0006__x0007_q@Ø_x0014_g\u0097T_x0003_\u0096@_x0018_\u0085_x0012_-!er@_x0010_I¯¢\u0091\u0082u@|/}\u0080_x0007_\u0099\u0091@_x0010_öÅÕ\u009eY\u0086@z¨_x0012_6_x0001_\u008d\u0083ÀðûJH\u008dës@L·_x000F_yÇ\u0095r@Ø\"ÿ¯HÇ\u0081@Lc£_x001C_È\u009dp@\u0084_x0007_\u0094ÝÕ_x001E_zÀ\\æG_x000D_êÆ\u008a@Hkd'_x0004__x001B_mÀ ä-$_x001A_îlÀÐs_x001E_¶;_x0004_\u0087À¨Edút\u0097lÀ`Ø_x001E_¾'vxÀ_x0006_®\u0085ëMç\u0087Àð0kä_x0002_{t@H­$HT\u008as@ ÷\"DVP\u0080@pÅlþ\u008f´\u0085@<Å­+®\u0093zÀ\u0082\u0091mB\u0099\u009d\u0094ÀêÕ±_x0002_è_x0016_\u0090@À_x000D_\u008c×Ç\u008b\u0082@È_x001D_Ýïc\u0085\u0084@_x0008_Û×ä_x0001__x0002_×_x0013_aÀ_x0014_PÙÁÊÅ\u008d@°<C3_x0004_BrÀpã\u009fÒ|­Z@_x0014_¿\u008d\t i\u0089@@Ïí\u009a\u0089ùv@\u0088\u0080\u0085=êôz@àyÿ\u0098fÀn@_x0004_\\ÉxÆ\u008a\u0083@èåôKÅX{@X4B1_x0001_\u009ec@ s\u0083_x0001_!\u0094n@\\¥_x0010__x000D_Ô_x0011_\u0084@(_x0019_\u008d\u0083r x@X¾IÕÐ\u007f\u0083@¸\u0085´¥|_x0004_x@_x0018_bF\u0086÷_x0008_a@\u00829Pñl\t\u0093À_x0004_\tQ_x0018_\"ÏrÀà\u008aË°\u008f¥SÀÀ÷KÒ÷->À\u0080p9_x001A_-[AÀ_x0001_µÜ¿_x0010_Öa@0\u009dgÝ÷¸xÀ\u0080]ZN_x000F_c)ÀXôb×J\u0084c@àÛ}%H\u009fAÀ`\u0096_ã_x000C_ºo@hO_³ª\u0090\u0084@èM]°½GjÀÈ_x001D_\u0089¥e¦\u0085ÀHwÐÕ*\u0084k@_x0001__x0002_¾ÝqG\u00851\u008fÀÀºçÊ²_x000E_PÀ$\u0086\u0085_x0012_\u009bG\u0086ÀbÝ§W/,\u0097Àä¶;:{2\u0093À@\u008d¬|1_x0005_\u008d@ÄèÊb£\t\u0086@pÂÛ\u008e?X}@@\\w_x0010_\u0098\u009el@¯_x0013_\u009bx_x000C_\u0088\u0087ÀÐ]ÑÐÚáz@\u0090´É×ÀM{À@{Á_x001F_A_x0004_k@_x0014_É÷ß$c\u0087ÀÐ©1_x0014_*®xÀ0hf@_x000D_äP@_x000E__x000D_3_x0016_|_x0010_\u0090À(\u009aôj=Í|@_x0018_×\u0081_x001A_·Êx@ c-:_x0014_À]À_x000C_Û_x001A_\u0092¤o\u008e@D_x001C_\u0094\u0091kf\u0082@hÿ\u0097ñ_x0008_í~@È»Eb\u009fo\u008f@ \u008f \u008e_x0012_|X@_x0006_+½_@¹\u0084ÀÜ\u009a&@C×\u0081@_x0001_ªc\u0089_x000F__x000E__x0007_À !1\u0080!_x000C_\u0090@Ð)8Èå\u0098n@\u0094Üëï4M\u008aÀ@çÜ_x0003__x0003__x0007_\u008e·i@_x0002_B_x001D__x0012__x0004_Ó\u0082Àbð«LÄ\u009e\u0081À\u0080=_x0002_S9½R@LÉñÙ/§\u0091@8\u008bØÙ¥l|@¨µá\u009bôY{À\u0084_x000C_&ÕG#}À,_x001D__x0008_®_x0001__x0012_}À(¢Z_x0013_mÉqÀ@c}Ã¾û@À_x0003_\u007fÿÄ#_f@¿bùíi«\u0093À\u0084@ØA^à\u0084@8=¹zGhh@0§\u0092_x000D__x001E_Ñ\u0086ÀÀ_x001B_µ° ÃU@,¯\u0088«£Á\u0091À_x0010_o»Ü \\cÀ F×ÝJ\u008eoÀ4¯eÈ&_"}},{"$cut":{"chars":44394,"head":"c05f1e56858dfd468363d130f09b21db_x0001__x0003__x0016_ç¥¨ü¸\u0093À\u0080dÍ(n)`@_x0001_c¦AVÍs@_x0010__x001F_\u0080YG6cÀH¤\u0099\u007fÓÓ\u0084@bNo\u008c\u0096_x0013_\u008dÀ _x0010_\u009e«¯gzÀ\u0080_x001D_\u0091Ü\u0094Ë=@h%_x0008_èÙ+\u008a@PyxnEétÀrª_x001F_\u0084ùO\u009c@xä\u0087Bxüp@`_x0006_W<_x0011_#`ÀPÉõï¾Ò\u0087À&àr©Êq\u008bÀ\"\"M©´+\u009aÀð\"_x0014_ïJ´u@pÙ_^$fv@X®ÄtUítÀ¤o¦|\u0082¢\u008c@_x0002_|ò¼è¡\u0093ÀZ\u009fÍ Ð.\u009c@Z·òÈ©8\u009a@PR(àA¥\u0084@ÆCï7_x0010_>\u0085À®Íòâ|}\u008fÀÆ¶Wý \u0080\u0091@\u009c\u0092_x000E_0k=\u0087@@5²×\u008f\u008b\u008a@(\u0095ù¤ÿ3\u0086@\u0080ÞÍn¬_W@èìüÝ_x0003__x0004_\u0083\u0089z@zd_x000D_\u0084û!\u009f@Ô|\u0083\u0087¶/\u0083@ £_x001C_Öï_x000C_\u008c@_x0003_@©D5d_x0013_@*ØC<ËP\u009e@Ø\u009a_x0012_¿£\u008fsÀ H\u0086.cÔ\\À_x0002_<JW_x0005_\u0088\u0087ÀÄ³/ {/\u009fÀ 2_x0019_«2#\u0090@ìQÝ÷Ô\u0080\u0093@_x0002_ý'\u008d0t\u0095@²H_x0001_âß\u007f\u0098À¤±1 Jû\u0088À_x0002_\"_x0016_wq \u0090@T%IêRc\u009eÀ¬wrF~_x001D_\u0089À@ûsÖÓýtÀÖ\u0086oÝý_x0005_\u0089ÀÀÁq|\u008dYoÀàôö_x0007_'\u008e\u0091@|\\_x000F_Ø0í\u009fÀÐpR\"G÷\u007f@(Å®|=þ\u0088@@_x0017_X_x001F_/;y@hõÿD`h\u0083@î§_x0002_[\u0091°\u0081À°|ï_x000E__x0018_ zÀZ? \u0090 1\u009a@ÔUÚ_x000B_óq\u0095@\u0091MfÍ°\u008b\u0092À_x0001__x0005_æ\u0082F_x001B_«Ë\u0093@ðkç4â¹l@à¢ú°ººU@\u0093\u0090\u007f\u0084\u0093Ë\u009eÀ`_x0002_±z`\u008eq@p*\\W$\u009e|@äÏLeô\u0099\u0081@ÎÛÑ_x000D__x0016_ª\u0097@P1Âêú²eÀp>ÜÛàT`À\u0080\u0086_x0004_Ò_x001D_îR@\u0090a\u0091Ðd'kÀ\u0080Ý\t\u0097.ÜjÀ\u00901õ3ÛÜlÀÂÜÔ] I\u0090ÀàXú_x0015_ö_x0003_u@_x0018_2Äã=\"qÀÔ_x0003_­CÌ7\u0087À@>ãÒ\u008fÄIÀZç`Ì\"¤\u0082ÀÀµD\u0082.gs@PÃIi7`\u0084À;y~\u0096ß\u009d ÀêÝ±Ô_x0010_ÿ\u0098À`\u0085\u008df&_x000E_RÀ3ñmè(ç\u009dÀ¦Ç\u0087¨[Á\u0094@°iV4_x0010_ ¡Àö_x0013_Óf[_x001C_\u0097@ Ám\u0095_x001A_\u0098\u0085@ ¿ý©²\u0080\u0084À\u0098\u0082F_x0006__x0001__x0002_\u0086q\u0083@\u0080\u0097:U\u0080ú\u008e@_x0008_?_x000E_¸MÒ\u008b@È³Ã1ä\u0099\u0096À\u009el_x001A_Ä²­\u0093@È_x0011_fKño\u0091@$Þæ;\u008bJ\u0088@\u0080WãØìÉZÀ\u0090Ê \u009bã@gÀx¤@_x001E_\u0096=\u008a@h9Àt¨>\u0089@zÝD>û\u009d\u0095À_x0018__x001C_½\u0085_x0017_q}ÀH\u0086\u008b\u008a\u008eÂq@2Ýi\u009aåL\u009eÀ_x0010_)û¾\u0098+\u007f@ØZ,¶_x000C_{uÀl\u0098[_x0017_\u009c_x0012_\u0091Àz_x001D_\u007f×<w\u0094ÀX_x0017__x001E_\u009b_x0014_6s@Ï¬ã¤è¥\u0096À\u008c]_x0014_àhS\u0082À\u0088\u0091b'U\u009e\u0096@_x001A__x001C__x0011_p\u0091¿\u0099@_x0001_·ü14ÉO@`·!_x001F_hþxÀùaµô\u009d1\u0092À8¯zþ$ÀvÀ>¨\u0090øùË\u008fÀ °]2m4\u0081@NÁÂ\\bÎ\u0091@Àv\u0085î¤XK@_x0001_\tJzFøY\u009e\u0092À`9c_x0006_*Ö\u0081@ào_x0016_|tÌb@_x001E_^ÌµøM\u0098À\u0088\u008bµ}Ð-vÀ\t_x000F_\u0092Sf'\u008eÀú«\"_x0004__x0018__x0016_\u009c@_x001A_\u009dÏÜä_x000D_\u0091@ \u0080Vª\u0089_x0003_\u007f@N_x0019_\u0082²S\u009b\u0081À°­Ò½tønÀ_x0001_Õ¥_x001F_[UGÀ_x0011_Ýã$UÁ\u0096ÀJ_x000F_Ì_x0008_ÙJ\u0096@Ìy\u0090_x0004_¥ä\u008b@ ¨ù\u0080{_x0012_Q@_x0001_L\u0088«Á\u009d_x0017_À3\u009a¢ï­© @_x0002_¨FMbÈ\u0088À}kºfÊK\u0091ÀÕÌÃ_x000C_;y ÀôöÝ\u0094_x0003_å\u008c@ª:ò×$Ù\u009aÀ_x001B_\u009f\u008cÆ_x0016_È\u0096À5T¡·Û_x0015_\u0091Àr_x0018_Æ.9_x0007_\u0095@(¦j~gs\u008b@\u008b&tÚ\u007f\u0083\u009bÀ\u0092þ&âk®\u009aÀêªyù\u0080í\u0081ÀvZE_x0014_¹3\u0097@ø_x0005_æm_x0002__x0003_\u009eõ\u0096Àè\u007f2¾dD\u008d@Nl\u0086_x0017_¤8\u009b@_x0018__x001A__x0017_)\u0081ß\u0096@$C·z°_x000D_\u0085@P¸­ü)_x001C_\u0099ÀÞõz\u0088 ¸\u0088À §îÇ_x0002__x0001_k@Hà]Òoz|ÀP_x0007_èïÃ[\u0091À\u0080\u008bzMg_x0013_\u0081@PF6z~7nÀ\u008a_x000E_ÌÔ2H\u0092@_x0010_ã¦Ä_x0013_ÀmÀL2\u009f\u00938»\u0092@g\u008bÃÕ£N À_x0018_ÛF\u0088é×wÀú»j_x000D_¼\u0090\u0085ÀÍ_x0019_ÛW\u00813\u0094ÀÀó;TÍkC@àW¡<\u0094ËjÀàzqmsÚV@\u0088¨{\u009d\u008d'\u0086@(65¸Ãå\u0088Àv\u0088:º_x000E_ó\u0091ÀÈùI ×[\u0081@Ä2¹½¶J\u0080À¤ÿ\u0098ã¹_x0015_\u0085@(,¦_x001E_~\u009c\u007fÀàRÜbüJ|@øôÛ\u008f\u0091_x0010_~@R,H\u0088(Å\u0084À_x0003__x0007_Nð»á _x000C_\u0098@ì&q_x0004__x000D_Y¢À;h\u0089ÏjÚ\u0092À¸Þ_x0017_S»Cu@\u009e\u0094ÿmü\u0097\u0094@(é_x0006_ö«r\u0090ÀCF\u008a±_x001D_\u0090¡@ö2_x001B_-9\u0087\u0097@þ_x0005__x0004_ñÅÕ\u0094@è.ÀEhïqÀ@\u0094_x0006__x0016_XØBÀ_x0006_h@Bqe\u0099@+ñ$+U\u009a\u0097ÀÂ~\\1»V\u009bÀ\u0098ÜÁ½\u008dÜs@ðåé>Èu\u007f@Èß\u0090\u008ewn\u0082@àÕ\u0083_x001F_\u0080?U@ \u0088ù\u0085³_x0010_uÀà_x001E_h§N¸}@ØY\u0083\u008f4f\u0083@Ô¦s_x001B_f_x001A_\u008fÀà._x000C_ø\u0095£\u008e@ö\u008e\u0086Ù\u009c`\u009c@@\u008e_x0014_U_x0001_äUÀH?gøËJy@p\u009199û\u008eu@_x0010_Ð¿2BíuÀ._x0018_ûÍ _x0012_\u0085ÀH_x000C_»µÝó}@Nf&á;­\u0099À\u0090_x0002_­c_x0001__x0003_ÑddÀ2_x0004_H±s¸\u009f@_x0001_F}_x0015_\u00819aÀÌ\u009b\u0093w~¼\u0080@T7_x000C_Jç\u008e\u0090@\u0084W|U_x0001_\u0085\u0081@Bè_x0004_Ø\u008f?\u009f@rá¾sÏr\u0096@(`\u009e1ÉU\u008e@¸ðÄ_x000E_#Ò\u007fÀáU?#ð+\u0090À6,_x0003_Øe_x001A_\u0090@`5ðõôwk@|Z«þ7_x0018_\u009aÀ\u0090%ú\u0087R_x0019_\u008c@ v·»\u0086wyÀ\u0088×\u0082ÎÉÉ\u0095Àb_¿ÝòÎ\u008aÀ\u0096\u009f¨_x001C_ùV\u0087À\u0084Ý\u0080_x0016_]ì\u0090@@\u0092\u007f_x0016_\u009f^}À|ÈÓp_x0008_¸\u008d@pOµ¹$wh@Èô_x001C_\u0094Øð{À\u008c¤à(\u009e\u0080¢À_x0010_©ºDT³`ÀxÀC_x000B_©\u008aw@_x0001_\u0087WYõ¸!@§íh±_x000E_³\u009bÀVk\u0097e¤²\u0090À_x0002_À\u0092Å__x000F_\u0090À\u0090\tnQ\u0082wtÀ_x0002__x0006__x0002_ÕÑtu\u009e\\À\u0088:6! ê\u0085À<CJM\u009a¿\u0093@ô\u008cT1PÎ\u0086@êà^â\"Å\u009fÀ21,_x0001_[_x0003_\u008fÀP´Gk°kfÀ\u0080SsÇ21l@_x001E_(SýPí\u009b@0¨W\u0096É\u0094{Àà¶#\u008a_x0005_ùy@ú\u0083Ó¡rÝ\u0096@_x0010_ø_x0012_Õñ\u0092`ÀÈêàF¼.sÀH^ù\u008b_x0005_¥r@TÊ\u0098_x0015_B\u007f\u008eÀ0Ðm_x000B_fåy@ök_x0008_«Ü\u0089\u0099@|d_x001D_ ò\t\u008f@à+êä&ï\u0089@Ê´ýÏLæ\u0083À^_x0007_*Ö[Ê\u0095@°FP_x001B__x0005_ztÀ,Þù_x0013__x0006_7\u0094@°Ùg$g3\u0092@`hò¨È¢W@\u0090-ß »(bÀ_x000C_ö\u0096ñ©_x001D_\u0080@Ë¡\u0098±oÇ¡Àª_x0004_÷_x0002_o³\u0093À*g?*\u007fÜ\u0097@_x000E_\u009a_x0010_e_x0001__x0003_~_x0016_\u008fÀ_x000B_ò]\u0098u½\u0091À\u0090¤Ã.J{q@$\u0086_x000B_qäÀ\u008bÀQ_x0019_ù\u0085{\u0092\u0099À¼¨¼º¼Ô\u008c@h7L_x0017_²;\u007fÀ\u0090\u0099×\u009c`_x001C_pÀX¯\u0083;_IwÀü\u0088ÄÌË\u0098\u008fÀò_x0001_6ðÒô\u0098@SÛ]\u009d\u008bs\u0096À¬_x0002_.Ò*Î\u0080Àp\u0081ê>6WqÀY_x0006_tzk\u007f\u0096À@ç©þÅQd@`àBGycg@\u0080O_x000C_*rÐu@:ÊciiU\u0091À \u0084\u009cõW\u0083\u0080@Ô6.ÍwÊ\u0094@0\u009eªL²_x0012_\u0086@Àù~Ï\u0086_x0014_qÀ\u0098t_x0014__x0018_1¬w@ÊuEÿ<_x000D_\u008aÀ`Þ¯µå®\u0085À_x0014__x0013_`Ïz\u0096\u008b@ñ±ä\u007f#_x0018_ @èíè\u008e\u0094Q\u008eÀ á_x0006_\u0089¶va@\u008f¼Ã_x0007_\u0081)\u0094ÀJæé\u009a\u009cØ\u0098@_x0001__x0002_(³fýÍ?}@\u0080\u008cg_x0010__x0010_©8ÀÐæO_x0015_ÿ#lÀ´ðZ_x0007_)\u0083\u0082@ÈE¼6;Ü{À²wSTÔÝ\u008fÀU¿¯_x000C_gB @\u0084\u009cÎFbÝ\u0095@"}},{"$cut":{"chars":106056,"head":"cb0e38b20505883b967b4abe73013e36_x0001__x0002_ÍÌÌÌä7ü@ÍÌÌÌä7ü@ÍÌÌÌä7ü@ÍÌÌÌä7ü@ÍÌÌÌä7ü@ÍÌÌÌä7ü@ÍÌÌÌä7ü@ÍÌÌÌä7ü@ÍÌÌÌä7ü@ÍÌÌÌä7ü@ÍÌÌÌä7ü@ÍÌÌÌä7ü@ÍÌÌÌä7ü@ÍÌÌÌä7ü@ÍÌÌÌä7ü@ÍÌÌÌä7ü@ÍÌÌÌä7ü@ÍÌÌÌä7ü@ÍÌÌÌä7ü@ÍÌÌÌä7ü@ÍÌÌÌä7ü@ÍÌÌÌä7ü@ÍÌÌÌä7ü@ÍÌÌÌä7ü@ÍÌÌÌä7ü@ÍÌÌÌä7ü@ÍÌÌÌä7ü@ÍÌÌÌä7ü@ÍÌÌÌä7ü@ÍÌÌÌä7ü@ÍÌÌÌä7ü@ÍÌÌÌ_x0001__x0002_ä7ü@ÍÌÌÌä7ü@ÍÌÌÌä7ü@ÍÌÌÌä7ü@ÍÌÌÌä7ü@ÍÌÌÌä7ü@ÍÌÌÌä7ü@ÍÌÌÌä7ü@ÍÌÌÌä7ü@ÍÌÌÌä7ü@ÍÌÌÌä7ü@ÍÌÌÌä7ü@ÍÌÌÌä7ü@ÍÌÌÌä7ü@ÍÌÌÌä7ü@ÍÌÌÌä7ü@ÍÌÌÌä7ü@ÍÌÌÌä7ü@ÍÌÌÌä7ü@ÍÌÌÌä7ü@ÍÌÌÌä7ü@ÍÌÌÌä7ü@ÍÌÌÌä7ü@ÍÌÌÌä7ü@ÍÌÌÌä7ü@ÍÌÌÌä7ü@ÍÌÌÌä7ü@ÍÌÌÌä7ü@ÍÌÌÌä7ü@ÍÌÌÌä7ü@ÍÌÌÌä7ü@ÍÌÌÌä7ü@_x0001__x0002_ÍÌÌÌä7ü@ÍÌÌÌä7ü@ÍÌÌÌä7ü@ÍÌÌÌä7ü@ÍÌÌÌä7ü@ÍÌÌÌä7ü@ÍÌÌÌä7ü@ÍÌÌÌä7ü@ÍÌÌÌä7ü@ÍÌÌÌä7ü@ÍÌÌÌä7ü@ÍÌÌÌä7ü@ÍÌÌÌä7ü@ÍÌÌÌä7ü@ÍÌÌÌä7ü@ÍÌÌÌä7ü@ÍÌÌÌä7ü@ÍÌÌÌä7ü@ÍÌÌÌä7ü@ÍÌÌÌä7ü@ÍÌÌÌä7ü@ÍÌÌÌä7ü@ÍÌÌÌä7ü@ÍÌÌÌä7ü@ÍÌÌÌä7ü@ÍÌÌÌä7ü@ÍÌÌÌä7ü@ÍÌÌÌä7ü@ÍÌÌÌä7ü@ÍÌÌÌä7ü@ÍÌÌÌä7ü@ÍÌÌÌ_x0001__x0002_ä7ü@ÍÌÌÌä7ü@ÍÌÌÌä7ü@ÍÌÌÌä7ü@ÍÌÌÌä7ü@ÍÌÌÌä7ü@ÍÌÌÌä7ü@ÍÌÌÌä7ü@ÍÌÌÌä7ü@ÍÌÌÌä7ü@ÍÌÌÌä7ü@ÍÌÌÌä7ü@ÍÌÌÌä7ü@ÍÌÌÌä7ü@ÍÌÌÌä7ü@ÍÌÌÌä7ü@ÍÌÌÌä7ü@ÍÌÌÌä7ü@ÍÌÌÌä7ü@ÍÌÌÌä7ü@ÍÌÌÌä7ü@ÍÌÌÌä7ü@ÍÌÌÌä7ü@ÍÌÌÌä7ü@ÍÌÌÌä7ü@ÍÌÌÌä7ü@ÍÌÌÌä7ü@ÍÌÌÌä7ü@ÍÌÌÌä7ü@ÍÌÌÌä7ü@ÍÌÌÌä7ü@ÍÌÌÌä7ü@_x0001__x0002_ÍÌÌÌä7ü@ÍÌÌÌä7ü@ÍÌÌÌä7ü@ÍÌÌÌä7ü@ÍÌÌÌä7ü@ÍÌÌÌä7ü@ÍÌÌÌä7ü@ÍÌÌÌä7ü@ÍÌÌÌä7ü@ÍÌÌÌä7ü@ÍÌÌÌä7ü@ÍÌÌÌä7ü@ÍÌÌÌä7ü@ÍÌÌÌä7ü@ÍÌÌÌä7ü@ÍÌÌÌä7ü@ÍÌÌÌä7ü@ÍÌÌÌä7ü@ÍÌÌÌä7ü@ÍÌÌÌä7ü@ÍÌÌÌä7ü@ÍÌÌÌä7ü@ÍÌÌÌä7ü@ÍÌÌÌä7ü@ÍÌÌÌä7ü@ÍÌÌÌä7ü@ÍÌÌÌä7ü@ÍÌÌÌä7ü@ÍÌÌÌä7ü@ÍÌÌÌä7ü@ÍÌÌÌä7ü@ÍÌÌÌ_x0001__x0002_ä7ü@ÍÌÌÌä7ü@ÍÌÌÌä7ü@ÍÌÌÌä7ü@ÍÌÌÌä7ü@ÍÌÌÌä7ü@ÍÌÌÌä7ü@ÍÌÌÌä7ü@ÍÌÌÌä7ü@ÍÌÌÌä7ü@ÍÌÌÌä7ü@ÍÌÌÌä7ü@ÍÌÌÌä7ü@ÍÌÌÌä7ü@ÍÌÌÌä7ü@ÍÌÌÌä7ü@ÍÌÌÌä7ü@ÍÌÌÌä7ü@ÍÌÌÌä7ü@ÍÌÌÌä7ü@ÍÌÌÌä7ü@ÍÌÌÌä7ü@ÍÌÌÌä7ü@ÍÌÌÌä7ü@ÍÌÌÌä7ü@ÍÌÌÌä7ü@ÍÌÌÌä7ü@ÍÌÌÌä7ü@ÍÌÌÌä7ü@ÍÌÌÌä7ü@ÍÌÌÌä7ü@ÍÌÌÌä7ü@_x0001__x0002_ÍÌÌÌä7ü@ÍÌÌÌä7ü@ÍÌÌÌä7ü@ÍÌÌÌä7ü@ÍÌÌÌä7ü@ÍÌÌÌä7ü@ÍÌÌÌä7ü@ÍÌÌÌä7ü@ÍÌÌÌä7ü@ÍÌÌÌä7ü@ÍÌÌÌä7ü@ÍÌÌÌä7ü@ÍÌÌÌä7ü@ÍÌÌÌä7ü@ÍÌÌÌä7ü@ÍÌÌÌä7ü@ÍÌÌÌä7ü@ÍÌÌÌä7ü@ÍÌÌÌä7ü@ÍÌÌÌä7ü@ÍÌÌÌä7ü@ÍÌÌÌä7ü@ÍÌÌÌä7ü@ÍÌÌÌä7ü@ÍÌÌÌä7ü@ÍÌÌÌä7ü@ÍÌÌÌä7ü@ÍÌÌÌä7ü@ÍÌÌÌä7ü@ÍÌÌÌä7ü@ÍÌÌÌä7ü@ÍÌÌÌ_x0001__x0002_ä7ü@ÍÌÌÌä7ü@ÍÌÌÌä7ü@ÍÌÌÌä7ü@ÍÌÌÌä7ü@ÍÌÌÌä7ü@ÍÌÌÌä7ü@ÍÌÌÌä7ü@ÍÌÌÌä7ü@ÍÌÌÌä7ü@ÍÌÌÌä7ü@ÍÌÌÌä7ü@ÍÌÌÌä7ü@ÍÌÌÌä7ü@ÍÌÌÌä7ü@ÍÌÌÌä7ü@ÍÌÌÌä7ü@ÍÌÌÌä7ü@ÍÌÌÌä7ü@ÍÌÌÌä7ü@ÍÌÌÌä7ü@ÍÌÌÌä7ü@ÍÌÌÌä7ü@ÍÌÌÌä7ü@ÍÌÌÌä7ü@ÍÌÌÌä7ü@ÍÌÌÌä7ü@ÍÌÌÌä7ü@ÍÌÌÌä7ü@ÍÌÌÌä7ü@ÍÌÌÌä7ü@ÍÌÌÌä7ü@_x0001__x0002_ÍÌÌÌä7ü@ÍÌÌÌä7ü@ÍÌÌÌä7ü@ÍÌÌÌä7ü@ÍÌÌÌä7ü@ÍÌÌÌä7ü@ÍÌÌÌä7ü@ÍÌÌÌä7ü@ÍÌÌÌä7ü@ÍÌÌÌä7ü@ÍÌÌÌä7ü@ÍÌÌÌä7ü@ÍÌÌÌä7ü@ÍÌÌÌä7ü@ÍÌÌÌä7ü@ÍÌÌÌä7ü@ÍÌÌÌä7ü@ÍÌÌÌä7ü@ÍÌÌÌä7ü@ÍÌÌÌä7ü@ÍÌÌÌä7ü@ÍÌÌÌä7ü@ÍÌÌÌä7ü@ÍÌÌÌä7ü@ÍÌÌÌä7ü@ÍÌÌÌä7ü@ÍÌÌÌä7ü@ÍÌÌÌä7ü@ÍÌÌÌä7ü@ÍÌÌÌä7ü@ÍÌÌÌä7ü@ÍÌÌÌ_x0001__x0002_ä7ü@ÍÌÌÌä7ü@ÍÌÌÌä7ü@ÍÌÌÌä7ü@ÍÌÌÌä7ü@ÍÌÌÌä7ü@ÍÌÌÌä7ü@ÍÌÌÌä7ü@ÍÌÌÌä7ü@ÍÌÌÌä7ü@ÍÌÌÌä7ü@ÍÌÌÌä7ü@ÍÌÌÌä7ü@ÍÌÌÌä7ü@ÍÌÌÌä7ü@ÍÌÌÌä7ü@ÍÌÌÌä7ü@ÍÌÌÌä7ü@ÍÌÌÌä7ü@ÍÌÌÌä7ü@ÍÌÌÌä7ü@ÍÌÌÌä7ü@ÍÌÌÌä7ü@ÍÌÌÌä7ü@ÍÌÌÌä7ü@ÍÌÌÌä7ü@ÍÌÌÌä7ü@ÍÌÌÌä7ü@ÍÌÌÌä7ü@ÍÌÌÌä7ü@ÍÌÌÌä7ü@ÍÌÌÌä7ü@_x0001__x0002_ÍÌÌÌä7ü@ÍÌÌÌä7ü@ÍÌÌÌä7ü@ÍÌÌÌä7ü@ÍÌÌÌä7ü@ÍÌÌÌä7ü@ÍÌÌÌä7ü@ÍÌÌÌä7ü@ÍÌÌÌä7ü@ÍÌÌÌä7ü@ÍÌÌÌä7ü@ÍÌÌÌä7ü@ÍÌÌÌä7ü@ÍÌÌÌä7ü@ÍÌÌÌä7ü@ÍÌÌÌä7ü@ÍÌÌÌä7ü@ÍÌÌÌä7ü@ÍÌÌÌä7ü@ÍÌÌÌä7ü@ÍÌÌÌä7ü@ÍÌÌÌä7ü@ÍÌÌÌä7ü@ÍÌÌÌä7ü@ÍÌÌÌä7ü@ÍÌÌÌä7ü@ÍÌÌÌä7ü@ÍÌÌÌä7ü@ÍÌÌÌä7ü@ÍÌÌÌä7ü@ÍÌÌÌä7ü@ÍÌÌÌ_x0001__x0002_ä7ü@ÍÌÌÌä7ü@ÍÌÌÌä7ü@ÍÌÌÌä7ü@ÍÌÌÌä7ü@ÍÌÌÌä7ü@ÍÌÌÌä7ü@ÍÌÌÌä7ü@ÍÌÌÌä7ü@ÍÌÌÌä7ü@ÍÌÌÌä7ü@ÍÌÌÌä7ü@ÍÌÌÌä7ü@ÍÌÌÌä7ü@ÍÌÌÌä7ü@ÍÌÌÌä7ü@ÍÌÌÌä7ü@ÍÌÌÌä7ü@ÍÌÌÌä7ü@ÍÌÌÌä7ü@ÍÌÌÌä7ü@ÍÌÌÌä7ü@ÍÌÌÌä7ü@ÍÌÌÌä7ü@ÍÌÌÌä7ü@ÍÌÌÌä7ü@ÍÌÌÌä7ü@ÍÌÌÌä7ü@ÍÌÌÌä7ü@ÍÌÌÌä7ü@ÍÌÌÌä7ü@ÍÌÌÌä7ü@_x0001__x0002_ÍÌÌÌä7ü@ÍÌÌÌä7ü@ÍÌÌÌä7ü@ÍÌÌÌä7ü@ÍÌÌÌä7ü@ÍÌÌÌä7ü@ÍÌÌÌä7ü@ÍÌÌÌä7ü@ÍÌÌÌä7ü@ÍÌÌÌä7ü@ÍÌÌÌä7ü@ÍÌÌÌä7ü@ÍÌÌÌä7ü@ÍÌÌÌä7ü@ÍÌÌÌä7ü@ÍÌÌÌä7ü@ÍÌÌÌä7ü@ÍÌÌÌä7ü@ÍÌÌÌä7ü@ÍÌÌÌä7ü@ÍÌÌÌä7ü@ÍÌÌÌä7ü@ÍÌÌÌä7ü@ÍÌÌÌä7ü@ÍÌÌÌä7ü@ÍÌÌÌä7ü@ÍÌÌÌä7ü@ÍÌÌÌä7ü@ÍÌÌÌä7ü@ÍÌÌÌä7ü@ÍÌÌÌä7ü@ÍÌÌÌ_x0001__x0002_ä7ü@ÍÌÌÌä7ü@ÍÌÌÌä7ü@ÍÌÌÌä7ü@ÍÌÌÌä7ü@ÍÌÌÌä7ü@ÍÌÌÌä7ü@ÍÌÌÌä7ü@ÍÌÌÌä7ü@ÍÌÌÌä7ü@ÍÌÌÌä7ü@ÍÌÌÌä7ü@ÍÌÌÌä7ü@ÍÌÌÌä7ü@ÍÌÌÌä7ü@ÍÌÌÌä7ü@ÍÌÌÌä7ü@ÍÌÌÌä7ü@ÍÌÌÌä7ü@ÍÌÌÌä7ü@ÍÌÌÌä7ü@ÍÌÌÌä7ü@ÍÌÌÌä7ü@ÍÌÌÌä7ü@ÍÌÌÌä7ü@ÍÌÌÌä7ü@ÍÌÌÌä7ü@ÍÌÌÌä7ü@ÍÌÌÌä7ü@ÍÌÌÌä7ü@ÍÌÌÌä7ü@ÍÌÌÌä7ü@_x0001__x0002_ÍÌÌÌä7ü@ÍÌÌÌä7ü@ÍÌÌÌä7ü@ÍÌÌÌä7ü@ÍÌÌÌä7ü@ÍÌÌÌä7ü@ÍÌÌÌä7ü@ÍÌÌÌä7ü@ÍÌÌÌä7ü@ÍÌÌÌä7ü@ÍÌÌÌä7ü@ÍÌÌÌä7ü@ÍÌÌÌä7ü@ÍÌÌÌä7ü@ÍÌÌÌä7ü@ÍÌÌÌä7ü@ÍÌÌÌä7ü@ÍÌÌÌä7ü@ÍÌÌÌä7ü@ÍÌÌÌä7ü@ÍÌÌÌä7ü@ÍÌÌÌä7ü@ÍÌÌÌä7ü@ÍÌÌÌä7ü@ÍÌÌÌä7ü@ÍÌÌÌä7ü@ÍÌÌÌä7ü@ÍÌÌÌä7ü@ÍÌÌÌä7ü@ÍÌÌÌä7ü@ÍÌÌÌä7ü@ÍÌÌÌ_x0001__x0002_ä7ü@ÍÌÌÌä7ü@ÍÌÌÌä7ü@ÍÌÌÌä7ü@ÍÌÌÌä7ü@ÍÌÌÌä7ü@ÍÌÌÌä7ü@ÍÌÌÌä7ü@"}},{"$cut":{"chars":120636,"head":"3c01bd87e7d939e4f838ccee7a8928b6_x0001__x0002__x0001__x0001__x0001__x0001_àUô@_x0001__x0001__x0001__x0001_àUô@_x0001__x0001__x0001__x0001_àUô@_x0001__x0001__x0001__x0001_àUô@_x0001__x0001__x0001__x0001_àUô@_x0001__x0001__x0001__x0001_àUô@_x0001__x0001__x0001__x0001_àUô@_x0001__x0001__x0001__x0001_àUô@_x0001__x0001__x0001__x0001_àUô@_x0001__x0001__x0001__x0001_àUô@_x0001__x0001__x0001__x0001_àUô@_x0001__x0001__x0001__x0001_àUô@_x0001__x0001__x0001__x0001_àUô@_x0001__x0001__x0001__x0001_àUô@_x0001__x0001__x0001__x0001_àUô@_x0001__x0001__x0001__x0001_àUô@_x0001__x0001__x0001__x0001_àUô@_x0001__x0001__x0001__x0001_àUô@_x0001__x0001__x0001__x0001_àUô@_x0001__x0001__x0001__x0001_àUô@_x0001__x0001__x0001__x0001_àUô@_x0001__x0001__x0001__x0001_àUô@_x0001__x0001__x0001__x0001_àUô@_x0001__x0001__x0001__x0001_àUô@_x0001__x0001__x0001__x0001_àUô@_x0001__x0001__x0001__x0001_àUô@_x0001__x0001__x0001__x0001_àUô@_x0001__x0001__x0001__x0001_àUô@_x0001__x0001__x0001__x0001_àUô@_x0001__x0001__x0001__x0001_àUô@_x0001__x0001__x0001__x0001_àUô@_x0001__x0001__x0001__x0001__x0001__x0002_àUô@_x0001__x0001__x0001__x0001_àUô@_x0001__x0001__x0001__x0001_àUô@_x0001__x0001__x0001__x0001_àUô@_x0001__x0001__x0001__x0001_àUô@_x0001__x0001__x0001__x0001_àUô@_x0001__x0001__x0001__x0001_àUô@_x0001__x0001__x0001__x0001_àUô@_x0001__x0001__x0001__x0001_àUô@_x0001__x0001__x0001__x0001_àUô@_x0001__x0001__x0001__x0001_àUô@_x0001__x0001__x0001__x0001_àUô@_x0001__x0001__x0001__x0001_àUô@_x0001__x0001__x0001__x0001_àUô@_x0001__x0001__x0001__x0001_àUô@_x0001__x0001__x0001__x0001_àUô@_x0001__x0001__x0001__x0001_àUô@_x0001__x0001__x0001__x0001_àUô@_x0001__x0001__x0001__x0001_àUô@_x0001__x0001__x0001__x0001_àUô@_x0001__x0001__x0001__x0001_àUô@_x0001__x0001__x0001__x0001_àUô@_x0001__x0001__x0001__x0001_àUô@_x0001__x0001__x0001__x0001_àUô@_x0001__x0001__x0001__x0001_àUô@_x0001__x0001__x0001__x0001_àUô@_x0001__x0001__x0001__x0001_àUô@_x0001__x0001__x0001__x0001_àUô@_x0001__x0001__x0001__x0001_àUô@_x0001__x0001__x0001__x0001_àUô@_x0001__x0001__x0001__x0001_àUô@_x0001__x0001__x0001__x0001_àUô@_x0001__x0002__x0001__x0001__x0001__x0001_àUô@_x0001__x0001__x0001__x0001_àUô@_x0001__x0001__x0001__x0001_àUô@_x0001__x0001__x0001__x0001_àUô@_x0001__x0001__x0001__x0001_àUô@_x0001__x0001__x0001__x0001_àUô@_x0001__x0001__x0001__x0001_àUô@_x0001__x0001__x0001__x0001_àUô@_x0001__x0001__x0001__x0001_àUô@_x0001__x0001__x0001__x0001_àUô@_x0001__x0001__x0001__x0001_àUô@_x0001__x0001__x0001__x0001_àUô@_x0001__x0001__x0001__x0001_àUô@_x0001__x0001__x0001__x0001_àUô@_x0001__x0001__x0001__x0001_àUô@_x0001__x0001__x0001__x0001_àUô@_x0001__x0001__x0001__x0001_àUô@_x0001__x0001__x0001__x0001_àUô@_x0001__x0001__x0001__x0001_àUô@_x0001__x0001__x0001__x0001_àUô@_x0001__x0001__x0001__x0001_àUô@_x0001__x0001__x0001__x0001_àUô@_x0001__x0001__x0001__x0001_àUô@_x0001__x0001__x0001__x0001_àUô@_x0001__x0001__x0001__x0001_àUô@_x0001__x0001__x0001__x0001_àUô@_x0001__x0001__x0001__x0001_àUô@_x0001__x0001__x0001__x0001_àUô@_x0001__x0001__x0001__x0001_àUô@_x0001__x0001__x0001__x0001_àUô@_x0001__x0001__x0001__x0001_àUô@_x0001__x0001__x0001__x0001__x0001__x0002_àUô@_x0001__x0001__x0001__x0001_àUô@_x0001__x0001__x0001__x0001_àUô@_x0001__x0001__x0001__x0001_àUô@_x0001__x0001__x0001__x0001_àUô@_x0001__x0001__x0001__x0001_àUô@_x0001__x0001__x0001__x0001_àUô@_x0001__x0001__x0001__x0001_àUô@_x0001__x0001__x0001__x0001_àUô@_x0001__x0001__x0001__x0001_àUô@_x0001__x0001__x0001__x0001_àUô@_x0001__x0001__x0001__x0001_àUô@_x0001__x0001__x0001__x0001_àUô@_x0001__x0001__x0001__x0001_àUô@_x0001__x0001__x0001__x0001_àUô@_x0001__x0001__x0001__x0001_àUô@_x0001__x0001__x0001__x0001_àUô@_x0001__x0001__x0001__x0001_àUô@_x0001__x0001__x0001__x0001_àUô@_x0001__x0001__x0001__x0001_àUô@_x0001__x0001__x0001__x0001_àUô@_x0001__x0001__x0001__x0001_àUô@_x0001__x0001__x0001__x0001_àUô@_x0001__x0001__x0001__x0001_àUô@_x0001__x0001__x0001__x0001_àUô@_x0001__x0001__x0001__x0001_àUô@_x0001__x0001__x0001__x0001_àUô@_x0001__x0001__x0001__x0001_àUô@_x0001__x0001__x0001__x0001_àUô@_x0001__x0001__x0001__x0001_àUô@_x0001__x0001__x0001__x0001_àUô@_x0001__"}},{"$cut":{"chars":52008,"head":"3b272cb823f23f02a5a1274d691f896e_x0005__x0006_o\u0081?\u008aÛ´ñ@ÐhJ_x001A_W`ò@U¦½_x0011_|_x0014_ò@Ø_x001B__x001E__x0012_õ¦ò@\u009aäWÄ_x0003_§ñ@\u0096°p\u0091\u008d3ò@½_x0003_ÆfëÇò@°j¿pËyó@a\u0093n\u00813ìò@Ü\u009fÚÐ\"­ò@_x001F_±iÇ\u0093\u009cñ@³òi¢Ñmò@bª\u0098ËLoò@?\u0085jë¼\u008fò@Õ9tT¾Ûò@\u0085l\"ÄIûñ@\u008aª\u0084ÿX7ò@_x0008_\u0084_x0001_36æò@_x001A_\u0086¢`E_x0012_ò@\u007fG\u0095?Âíñ@\u0092_x0007_Úå_x000D__x001B_ó@-_ôçT\u0088ò@&;[ËP'ò@¶_x001F_~_x0004_lEò@_x000C_5\u0084_x0008_\u0086\"ó@­A\u0094_x0019_£¿ò@}%â_x000C_Ãâò@TE!®_x0018_\u0097ñ@ZmkÜgbò@\u00816ãåÎ±ó@_x0002_W \u007fÏ_x000C_ó@×ätÏ_x0002__x0005_\u009b×ò@?Ñ+VÙ\u0097ò@GCªè½Ôñ@_x001F_,Ë6\u008eÀò@Mzèß_x001D_&ó@\u0084_x001B_¢\u0093û\u008bò@\u007fk³£_x0001__x0003_ó@fûa_x0011__x0019_Mò@_x000D_UöÄ_x0004_\u0090ò@Ò¶õSÑ_x0008_ó@_x001C_A¤_x0001_H\u0099ò@\u008e+ËÙB\u0094ò@rÑf_x0007_¼¥ó@\u007f\"S_x0012_¥Có@Oû5k\u0086¤ò@Î?L%\u0095oò@}*\u0099~~¥ò@\u00916Êz_x000E_Jò@¹ä\tkp\u0093ñ@_x000B_õ \u0084\u009aqó@\u009bÇ?8_x0016_lò@zLûÃ{_ó@;^4½\u0090@ò@\u0080Þþm_x001F_\u009fò@_x000D_>1øå\u0086ò@îQ«Ï\u0086Yò@\u0084_x0019_s Unò@e²Â­<ÿò@_x0012__x0019__x0018_\u008f=®ò@\u0098ÚbKBÎò@\u0093~+\tª\u008cò@ï+Åc\\°ñ@_x0001__x0002_å\u009d@Íc¶ò@²|\u007fÂ_x0013_óò@_x000E_MÏ¬1Mó@&\u0093\u0083åLMò@+.ª±Gºò@_x000B_ü;æh\u0094ò@D¢ÔÉ*7ó@_x001D_ÏÚ:_x0004__x001D_ó@_x000B_IË·qöò@_x0005_\u009977÷Lò@_x001B_û þñNò@[K;ý\u009f¬ò@}±ù3\u0081Só@_x000D_é&±p_x0006_ó@:2n¦øÿò@_x0015_p_x001C_´82ò@@´;d=sò@\u0088ìx_x001F_\u0085_x000D_ó@´zÂ¼ëTò@;½¯\u009c\u009ePó@¯\u0094ÑÆdKò@\u008bsÏ¹tÏò@HDÙ¡]Îò@;Ânu-%ó@¤÷6y\u0090bó@-¬5@ØWò@§¿\u0097÷èiò@îû2PbÛò@_x001F_1<W}\u009dò@¯\u008a\u009eøÐnò@_x001B_r_x0006_\u008c;¹ñ@_x000C_McÜ_x0002__x0003_\u0095¬ò@RÒ\u0098UZgó@\u008b\u0092\u009f\"ÔVò@ïìH_x0005_\u008evó@\u00950¼ '\u0086ó@éØ,\u008fÄÏò@ÀÜâ¬8/ó@MÀü\u0087ñ@ó@­;\\$ø¨ò@(¢v;\u0096_x0019_ò@g_x000C_\"º\u008diò@Ú\u0092_-u_x001B_ò@\tÿµ\u0080rQó@aÈÚ½_x001C_Ïò@¥ÚîJ^[ó@_x0003__x0012_¤èÀ«ò@ø¶_oI_x0014_ò@íÜMQ^~ó@²\u0091P²;\u008cò@¶x`Ýi7ò@¹$É\u0095_x000F_|ò@_x001B_i\u0099\u009a_x0001_\u0088ò@¸Ã¢tù/ó@@/eücOò@ë\u009a1ËÁcò@ú_x0004_Jò\u0092çò@»¯Gô*]ò@à\u0091_x0010_Óù_ò@_x0017_SØsÁ{ó@\u009a}6É[Öñ@\u009f\u0081â\u009f¯Ðò@t\u0099{vm~ó@_x0002__x0004_ÞRN\u008dICó@ÌR\u008c_x0016__x0003_\u009bó@¾\u0091_x001E_³_x001B_ºò@Æµx¹µ ò@_x0007_N\u008b)g\u0085ò@ÆØýÛ½Eó@úb\t\u0088øLò@Z_x000F_ò_x0017_¤Èò@5Z_x0017_m_x001C_\tò@Áç_x0007__x001D_¨\u0095ò@tx_x0008_Þ\u0092\u0084ó@ØP«³¶£ò@>_x000B_&Ð_x0012_±ñ@ÂÆ _x0013_\\Mò@2îv_Rbó@jBHM_x0006_\u0089ò@kI<|÷\u008eñ@A_x000D_«2\u009dòñ@±7_x001D_êê\u0083ò@_x0011_!bî_x000F_uò@÷_x0002_¸®_x0014_{ó@W£j\\¤_x000D_ò@3ÁÚÕd½ò@¬_x0013_óFÏ9ó@\u0096_x001E_Â\u0084j_x0014_ò@_x001F_¶tU_x0003__x0008_ó@_áN_x0017_W_x0006_ó@%_x0014_ì=Y)ó@6ÛúÉÂæò@_x001E_B\u0094\u009f_x0012__x0001_ó@b1_x0016_m¾ùò@\\\u0092c_x000F__x0001__x0004_·Òò@ñ²ðóL~ó@Ç\u008f_x000B_dà\u0091ò@$_x0005_»·_x0013_mó@ü-JÔnÚò@_x0008_\u0094\u0081D_x001E_4ò@Rc¬$µ@ó@¦£¡ÿ_x000E_\u0092ò@'ÛT¿\u009d.ó@O_x0004_ø\u0088!¹ñ@_x0013_Î§òáyò@®y\u0093Ði+ó@ë\"<Éq_x001E_ó@8SË¢\u0081Zò@<_x0014_`TQ!ò@o¸(þåPó@[>N\u0083_x0008_\u0084ò@Ø\u0083oË\u0084Ùò@TÖ£8µDó@à_x0002_Õ:_x0006__x0003_ò@ºÄª9êcò@_x001D_äRéÃfò@åKwô_x0004__x0003_ò@ÚÝã\u0080\u008d¾ñ@\u008c\u0080ä\u00822£ñ@yZvw¨\u009eò@Î_x0004__x0011__x0001_D\u008dò@¥,\u0099_x0017_3Òò@¾ïìÆ\u0095ÿò@ÐX¼N÷§ò@Þ_x001D_)¥È0ó@\u009fS\u008a@\u0094Íñ@_x0001__x0002_T¸AY\u008c&ò@ÑB_x0002_=\u0098\u008aó@\u0085cÅ_x0015_³\u009eò@$-?ÄC{ò@Úþ_x0014_ªíÜò@mÊ=l\u009c:ò@yÐ_x0019_7zxó@w_x0007_)V$»ñ@C_x0004_óV®_x001B_ó@^àâ~¡;ò@\t_x0001_\u0091«±_x000F_ó@Ó\u008ad_x0015_ò¤ò@µÙ_x000E__x0014_\u0086ùñ@+Ñ_x0010_°èÚò@ÆGýÎ°pó@ÓÅf_x001C_&\u0086ñ@Kq\u0096·G\u0091ó@_x000D_\u009ac&fpó@<\u009bÄ\u008e%éñ@GÝ/Øe\u0084ò@\u0094u\u0081_x001F_;ßñ@_x0008_«¹<þ_x0004_ó@\\1wwYTó@Kí¥Ëg\u0082ò@KÐ3¢Qµò@aÜ©;NÞò@¢}_x001C_¥_x0007_×ò@5_x001F_Sæ\u0090\u009fò@éçt +¹ò@\"ã_x000F_\u00806_x000B_ó@b.&«\u0096Cò@_x0003_4\u007fÜ_x0001__x0002_g0ó@7$_x0016_ßO\u0084ò@\u009fü_x0008_\u0082¯\u0087ó@ÀEG_x0005_H2ó@çá(\u0085xkò@ &)º\u0093òò@=¶O}FÝò@úÞ79j-ò@wÍ_x001C_f3_x0008_ó@}9\u009bË\u008dÐò@r2d_x000D_\u0082ió@³í_x0012_DÅPò@\u0092>A9Õ¼ò@O_x0002__x0006_\u009a!¬ò@pÅ}o\u0098Àñ@_x000D_¸\u0093a\u008d\u009dò@îø­_x0003_a_x0004_ò@ãæ[ zCó@þ¤Võÿ½ò@¯6\u0091$Y\tò@\u0099_x0016_äZ.=ò@ÞÄ¬UÕxó@\u009bò¬Ð_x000D_bò@_x001A_öíÔ×ýò@\u0094¬{àHYó@\u00919äÀ\u0092\u009eò@³\u0084&_x0018_\u008c_x0001_ò@_x0005_¿_x0004_¡¢$ò@ä\u0090¯Å_x0005_5ó@ÂÓu\u0089N]ó@Ù§pÂ§Có@q»CJå)ò@_x0001__x0002_YÁG¬Iôò@©þ:!\u009eRò@\u00802U\u009d-_x001C_ó@IÒ>ed§ò@ ùw\u0086µãò@Î\u008cä\u008aö_x0017_ó@@!~\u0082\u00913ò@g£\u008a\u0095\u0084Ïò@îm\u0085·_x001E_xò@Os6_x0006_^äò@\u0098_x0017_d$êsó@Å_x000F_\u008f§ý_x000D_ó@\u0091F_x001D_a\u009fÄò@3_x0013_\u0089\u008b\u0089Áò@äj$Q2úò@§ñ\u008eøÝ¿ò@Ô$%sÚÌñ@ÝD{\u0098Ã,ó@KW_x001B_a\u0097^ò@_x001D_/£R¨©ò@Ë²¯\u008d\u0092tó@H¾û\u0087\u0097_x001B_ó@Ô_x000F_bä\u0083*ó@_x000E_\u0094 \u009f¶öò@2U&Q\u0097éò@\u0096|Ô(È\u0082ó@]\u0083'®_x0003_cò@7\tã\u0093À®ò@.Ä_x0013_[_x0012_µò@\u009dS9g)\u0087ò@ä_x0007_7\u008dêÿò@d\u008a_x0010_ò_x0006__x0007_Â^ó@>\u0099\u009eX\u009f\u0084ò@_x000F_X\u00985«Éò@¿\u0089¡ÂSÈò@_x0014_¥Ì÷(\u008eò@_x0004_,õF+Jó@n82_x0014_\u0086Pó@è_x0004_ùÙ\u0091æò@_x0007_¡A_x0003_7gò@_x001D_S\u0084Î¿©ñ@@ñi_x0010_\u008bÛò@AÝM±¡*ò@@Özý\u009aQó@\u0084þb_x001E_µ_x0017_ó@D±k\u0097 'ò@Ï_x0018_q©¿\u008bò@ú[F¥_\u0091ñ@r¿_x0012_q\u0086_x000D_ó@$j¥_x001C_ð\u009dñ@Áµá´\u009eáò@#0æOÇ\u009fñ@íÔÝ_x0005_\u0088ãò@< \u0092¾Î!ò@m_x0002_@³×&ó@Mðd¿£#ó@ _x0010_\u0083\u008e\u008c_x0001_ò@)Ý´·:xó@Ô_x0018_U»°¸ñ@ðhIìV]ó@m{_x0015_\u009damó@\u0089Ø\u0091_x0004_y¡ò@[\tï\u0090Z_ó@_x0001__x0002_^\u0093_x0013_¬6´ò@Û_x0004_\u009eÜ_x000F_®ò@´ö½Üe_"}},{"$cut":{"chars":66738,"head":"23e36b7b731646d3595a47918119b036_x0006__x000C_+_x0010_ â\u0089Xò@­¦Y\u0085G7ó@ÒÞ_x0002_'-çò@\tt=çô\u008aò@}_x001D_UTÍ¿ò@_x0005_þó_x0004_®Íò@_x001E_(h<gðò@@\u00910o\u009bAò@LÉËµ³eò@Jºz\"Óëñ@f´k\u008e_x0015_÷ò@^dLý_x0013_Xó@`hv,kÛñ@bå_x001F_ÆþÄñ@(Æï8ÌSó@}\u0088r¼ñêò@\"_x0015_öLNjó@Ã1Ôvá´ò@£¼.©E\u008cò@_x0008_ýæL¡Ôò@RqÝ\u008bì_x000C_ó@­\u0099#\u008a_x0002_-ò@j_x0012_ç_x0012_ý-ó@_x000F_×F¨_x0013_bó@_x0001__x0005_>{©1ó@å\u0081_x000B_8\u0091\\ñ@ÏC[æD_x0007_ò@Qw_x001F_PX\u0082ò@>'Íös±ò@_x0001_bÁõþÇò@L{_x0012_3þ\u009aò@_x0003__x0006_¾Ð_x0001__x0002_ß_x0005_ó@_x0010_Ó\u008f¥ò÷ñ@Éèÿ2_x000C_¹ò@_x0018_`v¢Â\u009dò@Õ_x0012_\u0084\tÂ,ò@V\u0095Éh\u008d_x000B_ò@¿Ï\u008c_x0008_É_x000D_ó@E*r¾ô\u009dò@i¢¼ÛN§ò@_x0001_aaõ¢þò@\u009fyØÅ\u00817ò@ÈâÇb_x0011_ýò@IZ>Ùq¤ò@ÆqÁ\u008b_x000E_æò@vÉ_x0005__x0002_t\u008dò@\u0097N_æü_x001A_ò@£_x000B_=öU\u008có@öø&Å_x000C_Óò@\u0092ß\u0092À _x0004_ó@÷ãç\u009bÑîñ@³\u009fn\t~_x001A_ó@\u009eD\u0083¡g\u008aó@'Ëÿ¦\u009eCò@µ\u0086Kº©Ùò@q_x0016_<D_x000F_Áò@\u0082õDê¾Oò@¥ËöEû_x0016_ó@_x0010_ÿ÷_x000F_¿Ìò@ü;_x0012_2_x0008__ò@\u008ab\u0094H¬òñ@\u0087¼,_x0007__x001C__ò@Ñ\u0084ÛÑg2ó@_x0003__x000B_J_x001D__x0007_¼Ù\tó@~wN_x001F_\"nò@uâ¸;ä\u0096ò@f®æ[\u0088Aó@k÷_x0002_S{Tò@ë¡Û7_x0008__x000F_ó@O\u008fÖWo+ó@¼8\u009e\u0083êQó@§WûHß4ó@\u0094$_x0013_\u008c\u0080Uò@Á_x001D_Ã$·\u008eò@ »ËÅs\u0095ò@\u0084¡\u0083zWxò@ÿ³_x0003_>\u008a_x0002_ó@½ç?_x0004_K\u0086ñ@ø\u0082\u008d_x000B_?\u0093ò@©p¼_x0005_¨°ò@à_x001F_´æ%Õò@vg_cööñ@_x0006_4_x001C_.0_x0002_ó@Ø·#û_x001E_*ò@×J_x001C_Yj®ò@ÅH¾WQ?ó@\u009fÉÌóÕ\u0099ó@@\u0097J§ Kò@y_x0003__x0010_d«\u007fò@Ù\u0097(£ª_x0001_ó@\u008a_x0011_ô\u0095\u0087Íò@?Ð\u009c Øiò@s.\u0099ÐÜJó@\u0096Íii<¸ò@Þà.Ù_x0002__x0003_fÒò@_x0017_ÿØDüÚò@n\u0087U7Ä5ò@%Jsf²7ó@®T F¾\u009cò@2­=üÑÐò@L5ÅxMµó@ôDìÌÓîò@Ä»ûÓI~ò@_x0006_.\u0081púnó@\u009eUÖÕñ!ó@\u009cã \u0083å\u0099ò@Q\u0082_x0004_É\u00855ó@±ö_x0001_N|:ò@_x0018_æ,W/Eò@\\¨BÁ_x0004_|ò@Y»_x0007_ô\u008cLò@ù¥q\u0091ÀÑò@E\u0098U__x000D_æò@_x0006__x001A_0_x0016_\u0081¼ò@Wé1Òl_x0014_ò@¹\u009a.\u0086Ëdò@W_x0011__x0012_æ1\u0091ñ@\u00804»·_x001D_;ó@·_x000B_äÃ9_x0004_ó@ë[POñqó@\u009ejU_x001B_·wó@¹_x0019_\u009ayÓ8ó@Ó$HÂ|\u008fò@\u009aÇâ£_x001A_\u0099ò@\u0083Õ_x0015_c_x0004_ìò@\u0086ÿxRÆmó@_x0006__x0008_óÃ­\u0089¢×ò@?Ü_x001F_¯ê5ó@óaª_x000E__x0016_Mò@\u008eÚ¡­_x0003_có@=_x001B_4_x000B_\u009bùñ@yDm\u0080Ð-ó@Ô½á$lëò@Ø±]IJNò@_x0007_s¦¸\u0098Fó@?vvcfkò@XßÕÆ<(ó@9fE_x0004_u\u007fò@ØÌ\u0081òµæò@\u0085dÞ&\\_x001E_ó@öÀ_x000E_þ_x000B_\u009cò@bwý_x0008_\"Ró@\u0088AGÇÀ-ó@UäIÚh\u008có@_x0002_þ\u0099±@Qò@_x0005_ã­Kü_x0012_ó@ü×_x000F_®s°ò@h_x000C_\\Û\u0099\u008dó@¹z\u0095\u008bñ]ó@AS»¥hió@\u008dÂ_x0001_Òp1ò@¤\u009e¶n\u0089×ò@4t +ä\u0090ò@×T®Î\u009a\u0094ò@§_x001C_\u0081_x0004_\u009d÷ò@&=TÙXÌñ@¢\u0080il_x000D_Oó@òÅÂy_x0003__x0005_}zò@ç~i7\u0095_x0011_ó@_5._x001D_¡Pò@L@ü\u009b_x0002__x000F_ó@¦^\u0090]\u0094(ó@¼¢\u007fn¶Àò@\u0082¯\u0080C\u009c_x0002_ó@b§_x000B_4_x001B_Nó@Iãf_x0002_¡_x001E_ó@¼U´h°Ûò@\u009d& ;Ñ\u009eò@_x0007_Ò\u0085ØÉAò@Ö!øÉk3ó@_x001B_\u0082_x0001_`,òò@Ïr\u009f\u008b÷yó@Mð àõîò@Éè&_S,ó@_x0002__.ØÜÉò@u\\b/©:ó@ÇUKÚ_x0018_fó@Â_x0011_õEr}ò@:M_x0016_\t|Öñ@\u009bxÓkã×ñ@Cä÷\\°pò@þ_x001A_§?_x0002_Àò@·\u008d_x001B__x0010_\u0098_x0004_ó@_x0016_Ñ_x0001_Vi\u0098ò@\u0097Aé\u0088è\u0085ó@¥ô6\u0093©_x0007_ó@L%\u0097p\u009f9ó@BÉI\u0095\u0080\u0088ó@æ\u009cP\u0092\u0099Àò@_x0001__x0002_»îÃÄ_x000C_rò@ ÅÆúÍEò@\tñ}@¶nó@3_x0012_B4k>ó@CC;ÁÕµò@_x0011_\u0095E\u0089´çñ@a\u0081²¤hÌò@_x001E_!&u×Ïñ@üwmx6jò@L_x0019_|_x0007_ûÉò@_x0011_¥U\u0099üQò@âÞV2_x000E_\u0086ò@§ Û73¼ñ@Fñ\u008bHÜºò@*\u0092\u0087_x0003_e\u0089ò@_x000D_/µ<_x001F_\tò@âá_x001F_T}½ò@\u008bS8\u008f\"¶ò@:¼(db_x0005_ó@ö_x0014_^R_x000E_-ó@J¶}Ìàýò@_x0004_\u008dügl_x0012_ó@l6YÕè\u0098ò@{P§\\M¼ò@ý&aíö_x0008_ò@_x000E_è³_x000B_h\u009dñ@è×ÃRòkó@»_x0005_/[\"_x000D_ó@\u009añ_x0018_t\tió@\u009b\u0090ÃN_x001D_¼ò@UÊq\u0098_x0004__x001D_ó@ýî/¥_x0002__x0004_Okó@d_x000C_ãK7¤ó@1\u009aÚIü¸ò@_x0007_îü\u0091_x0007_3ó@¦Q#ì=ßò@\u0090üm\"\u0081iò@;ÝÛ³£^ò@ 9±x]üò@_x0001_;dâ\u008dÁò@I;g¼\u008amó@ú­\u008e\u0090\u00862ó@_x001A_G<j_x0003_mò@\u008a\u0099èØ¹Lò@p*Øq_x0013_yó@C\u0081ÛÄÊ\u0091ò@îZ[\u0089Ûàò@âµ¢\u007fÆ+ó@¥{_x0002_¢nvò@Ï}£. Äò@Uµ_x0013_ç\"Kó@F¡Ðñ_x0003_Hò@¼i\u009cï\u0098°ñ@R ü\u0096s2ó@ÃÀªOµÙñ@_x000C__x000E_»5Ã\u0099ò@\u008cÁ\u0081k\u007f\u0088ò@\u009d\u0095'ÚÔÊò@èf\u00848HÂò@\u0088Ë±ÏÄ¹ò@¨\u0090ªÆ.öò@\u0092XÃ\u009dòÚò@úeªÖ_x000E_!ó@_x0003__x000B_y>­\u0097iaó@1ýÂ_x0004_%_x0008_ó@ÿ3m!\u007fÔñ@Ô_x001E_\u00937\"ÿò@G\u0080\u008f¹£Àò@\u0093_x0018_¥_x0005_±Fó@ê\u0082\u0092j¨tó@\t×fÿ\u008b«ó@\u009c_x001D_\u008e#×(ò@_x001E_¶lAé'ó@8¨,`D6ò@\\ÒKêÔgó@\u008aÌ\"Æøáò@4Æö3ËÖò@õA¡\u0087záò@o»\u0090AÅ\u0097ò@Ñ_x0016_yõAªò@>MI·Ó®ò@_x0012_´!$Ççñ@°°È\u008e_x001F_oó@\u0080\u008fI©_x0019_\u0080ò@ Év \u0096Oò@¯Øõ\u008eÞ_x0003_ó@_x0012_5¹»_x001B_dò@]_x0004_Ë_x0002_\"£ñ@¤Å_x0001_ôµßò@Ö_x0018_\u0084NzÀò@ª_x0012_H_x001B__x0007_\u007fó@$YÅ_x000E_K_x0018_ó@~O¡NR_x001D_ó@´³¤ù_x0006_\u0086ò@w?_x000D_M_x0001__x0003_%_x001E_ò@¯£°¥Ô\u0097ò@ºS_x0007_/éÅò@K\u0093_x0019_Á¡bò@°_x0002__x0015_Î_x001A_sò@\u009bq\u0094!ìüò@èÕæh|õò@Më2\u0085_x001A_Vó@¿$¬å\u008fjò@Õr\u0086\u0080ÃPó@Ã³Ä_x0016__x001C_¯ò@=\"Ê#Qbó@\u008c\u009as\u0086íyò@+_x0005_½Põ²ò@Q¨À\u009d°Bó@1ÝÏÉýññ@%_x001E_ôÀ)2ò@.\u0099-@\u0090-ó@|úGVÕOó@^èë_x0019_E­ó@WG&_x000E_©¬ò@×òW_x0016_'_x001A_ó@Øq°aüëò@K8Î*_x001D_¸ñ@¨_x001F_\u0095»_x0011__x001E_ò@Gl½$_x0005_gó@v|2I$ ò@n\"-T»_x0007_ó@_x0010_ â_x0012_Ynó@ì\u0085Û_x0007_5°ò@7H¢Ö$\u007fò@øô\u009c~_x0001_aò@_x0001"}},{"$cut":{"chars":55566,"head":"7b026e0f1c9da5b8e645f00e6fdf2202_x0005__x0006__x0014__x0001_²\u009f_x0004_-_x0003_A<î\u008c\u009d@×_x0002_A\u008c[°ó¢m_x0002_Aª#b\u0099SÅ_x0002_AÚä.,¥ú_x0002_AFo\u0085%g8_x0003_Aü\u008f_x0004_c{\u0092_x0002_A_x001E_ÚW`\u0083_x000B__x0002_A\u009b\u0097\u0098_x001B_aÎ_x0002_AS`\u008e8\u008d\u0082_x0002_ARfð;i_x001F__x0003_Aª_x0005_#\"ÁÕ_x0001_AÃ.¢pIÁ_x0002_A_x0003_ý_x000F_á_x000B_\u0092_x0002_AjÃ9%T\u0083_x0002_AäðÏð_x0011_\u0093_x0002_AàQ_x0016_\"\u007f\u009d_x0002_A÷_x001B_\u007f>é8_x0003_ANJ$Îa\u008a_x0002_AN _x0004_³\u0095ï_x0002_AJ¤x\u008cÂ\u008f_x0002_A\u0082*.Êu\u0086_x0002_AìïFO>_x0014__x0003_A_x0012_±^îÒ¨_x0002_Aê'_x001B_>^ _x0003_A\u0091êÈ±ö_x0018__x0003_AÎX­3;Ä_x0002_A«Ñ\u007f^\u0099ª_x0002_A$>\u008aùÀ\u0085_x0002_A¹_x0015_f3m\u0091_x0002_Añ¯Ïãc_x001A__x0003_Aà_x0003_u\u0082_x0004__x000C_¸)_x0003_A~êÿH ¬_x0002_Aÿ}¸X_x0001_\u009c_x0003_A_x001C_µïÀA9_x0002_A_x0014_y\u009a8çC_x0003_AÀ¬(É´¥_x0001_A_x001E_2r_x000D_ä_x001F__x0003_AðÙÐ_x001C_\u009a\u0097_x0002_A>\u0084,V«\t_x0002_A@V7¿)\u0092_x0002_AK_x0005__x0018_D1ð_x0002_Aqü\u009b«\u009bá_x0002_A_x000E_·òÓ_x0019__x000F__x0002_A_x0010_\u0093a¨k_x000B__x0003_A_x0014_t\u0092-`£_x0002_A_x0018_}2\u009f§£_x0002_A¦\u0080_x0011_w5_x0006__x0003_Aª _x0016_¼\u0087ª_x0002_AHV®£_x0014_Ð_x0002_A)êO5AÕ_x0002_A¦T_x000B_äK=_x0003_A\u0086&^h·c_x0002_AxEú®+~_x0002_AÈxFãGñ_x0002_A(_x0007_ð\u009d\u0099K_x0002_A\u0089Õþ_x0014_np_x0002_A_x000C_:\u008alrê_x0002_AÞ_x0016_\u0091_x0010__x001F__x0006__x0002_Aÿß\u0098Â_x0018__x0011__x0003_AÚ_x0004__x0005_\u0084Hö_x0002_A¤_x0008_8]Ã½_x0002_AÆkÅ×¬\u009b_x0002_A_x0001__x0006_¥BÐ\"ïi_x0002_A¯_x0005_'\u009cC_x0018__x0002_Ac`_x001A_ïËà_x0002_A^ê_x0007_\u009d©º_x0002_A/Ò_x0012_ë°\u0091_x0002_A_x0010_dsrðÀ_x0002_AÀ$ºmüÌ_x0002_A.µ¹Çô¿_x0002_A;P¥Ù6ö_x0002_AO\u007fdeâ¹_x0002_AR\u007ff_x001C_>ï_x0002_Aí\u009b_x000C_Yál_x0002_A_x0015_|_x0002_\u009c9Þ_x0002_Ap`x.B\u0097_x0002_A_x0012_¹¦ï¡^_x0002_A\u0086_x0015___x000B_=D_x0002_AñÔ\u008cà__x0004__x0003_A¸_x000E_ª¥[ç_x0002_Aî94RJ\u0093_x0002_AQnÝuíu_x0003_A\"¥gT_x001A_x_x0002_A|\u0097Q$©ì_x0002_Amr\u0083h_x000B_«_x0002_A¶}Ôì®Â_x0002_A_x0018_z¢Ä\u0091¡_x0002_AþézÉÈ]_x0002_AÂ_x001C_\u009dï\u0083\u0098_x0002_Aû±é\u0085ì\u0085_x0002_A>\u0093\"_x0004_·\u0084_x0002_AÃ?[UU_x0019__x0003_A\"T\"DÍ_x0007__x0003_Aæ¿$Ê_x0005__x0006_uÇ_x0002_A\u0098î\u0093³Ý\u0096_x0002_A'Èê\u0098]ü_x0002_A_x0011_í7Ë_x0012__x0010__x0003_AHOÏwÑÍ_x0002_AlÅ40;\t_x0003_A(Ä¾Y!Ü_x0002_A¦×_x0017_Ñû_x001C__x0002_AmïJ_x0018_aö_x0002_Aøº9b_x0003_b_x0003_Aüo\u0098\u0098D\\_x0002_A?td_x0004_µ\u0099_x0002_A^q=_x0007_m\u0097_x0002_A]A1j¼Y_x0002_AÈ_x0007__x0007__x001D_¡Ó_x0002_AO!lì,ê_x0002_AÐ\u008dp£2_x0012__x0003_AGa&½¾ê_x0002_AI9ê¡À-_x0002_AÂ_x0010__x0012__x0007_\u0080\u008b_x0002_A_x0005__x0006_,¶F7_x0002_A®\u008bù0\u008fp_x0002_AÛk,+Äÿ_x0001_AóL\u009a\u007f: _x0002_AêÆ-²p?_x0003_AÆ\u0090ô½¡+_x0002_A\u0096_x0013_\u009dÂ@\u009d_x0002_A_x0016_\u0093_x0018__x0019_¼__x0003_AÀöRºU´_x0002_AJân¦ê×_x0002_A´Ô\u008d'@Õ_x0002_Aw_x0005_¤_x0016_ß¾_x0002_A_x0001__x0007_ª¾Á\u0091Ô\u009e_x0002_A\u0094Aeu§_x0005__x0002_Aä°­«Ç¸_x0002_A\u008c_x0001_Éq\u0080&_x0003_A¦Ïâ_x0011_»:_x0003_A>Òr5_x0007__x000C__x0003_A,U\u0092\u009b{j_x0002_A_x000E_Lå/k_x001E__x0003_A_x0002_¢ùxvÂ_x0002_AR¼\u0080\u0094³l_x0002_A\u0089ôìÚ_x000B_L_x0003_AiÆ\u0089_x0002_\u0088\u0085_x0002_AÈ»A±sà_x0002_A\u0086l:fö¹_x0002_Af(_x0004_) ¶_x0002_A\u008a-\u0094°n¦_x0002_A_x0019_\u0093ª_x0003_ãÃ_x0002_Aø_x0018_.Ä.ï_x0002_AÏ>½]uò_x0002_A\t#S¦Èð_x0002_Aü\u009aáµ\u0092\u0095_x0003_A\u0091Ê_x000F_àÍª_x0002_Ak×|_x0006_ü<_x0002_AfsÒû©_x0001__x0003_AÞè¸|6¸_x0002_A®åÆ$9o_x0002_AÊ\u0088ZT¬à_x0002_AüÅ\u008af\u0095È_x0002_A_x000E_&Jõ{\u0083_x0002_A\u0090áÐÏ>«_x0002_A·\u0082³j\u008a®_x0002_A\u0084\u0084ø\u0087_x0004__x0005_Â|_x0002_A\u0096§\u00986Gy_x0002_A,ýÐÈ\u0081¹_x0001_A(®=©I\u0099_x0002_A¦1\u0096\"ø4_x0002_A6\u0080_x000C_4\u007fÒ_x0002_AL_x0007_\\_x0006_vé_x0002_A8ÔúRÿ×_x0002_ASñgDì&_x0002_A2º+Dº_x000F__x0003_AJµå3'\u008d_x0002_A_x0013_}%_x0015__x0007_D_x0003_A\u0082ÏÉ\tÇ´_x0002_A-yÆ_x0010_ü\u009b_x0002_AÎ~+\u0091]\u0090_x0002_A\u00925Ë_x000E_¯Ñ_x0002_A_x0005__x0018_\u00944_x0005_³_x0002_Ab \u0087=Ó·_x0002_AAb\u009bK\u0097F_x0003_A{vfîôî_x0002_A6.þ$Ï7_x0002_A_x0007_ç\u0091,bd_x0002_A¤Õ\u008a\u0089\u0099*_x0003_AÐnp¨_x0017_[_x0002_Aþ\u0083\u0085j£ß_x0002_A_x0004_¶´$7;_x0003_A_x0010_b\u009cÂ«E_x0002_A_x0006_ÚÔéý\u008e_x0002_AÚ\u008fì_kÅ_x0002_Aädw_x000B_{A_x0003_AVø<Þ:[_x0003_A­_x0011_Ô«_x001B_á_x0002_A_x0007__x000B_\u0094_x001A_\u009dB_x000D_µ_x0002_Aû/i´)§_x0002_A\u009a?Ï©Ìé_x0002_AS85úÝÝ_x0002_AD]:ØU\u008d_x0002_A_x000B_Ñ_x001B_úð±_x0002_A3_x0005_\u0089Br_x0010__x0003_AªÙ(\u008a5¼_x0002_AS_x0006_g>_x0016_ÿ_x0002_Ak¯IJ_x001F_x_x0002_A¾¸±êç\u009d_x0002_A¼Ï\\hNà_x0002_A%X_x000E__x0004_È_x001A__x0002_A\u008dv_x0013_cèy_x0002_A_x000B_ ¿é_x001D_\u008c_x0002_A0aë\u0090\u008b`_x0002_A\u008c¡\u0090\u009d£{_x0002_A_x000E_D_x0019_Ê§Y_x0003_A_x0006__x0004_£_x0008_oæ_x0001_AX\u0092ß_x0015_\\_x001E__x0003_A.¸Ø_x001D_PÅ_x0002_A°KªÎ]â_x0002_Aa1_x0015_Ã@Ç_x0002_A_x001F_Í>ºK\u0081_x"}},{"$cut":{"chars":53070,"head":"66c31ddd1e89bc4d56f07c6625f704b9_x0001__x0002_\u009fÛî)ïQê@0_x0008_L/ Nê@í0ØçrUê@Á_x0008_H_x001C_¡Sê@u$\u009eù\u009dJê@¢\u0097\u0091<\u0095Yê@yò/_x0001_1Nê@CIÊ\tøPê@£»µÌÍKê@T5¥u\u009cLê@\u0090Ñ\u0090\u0090+Iê@ç\u0096I\u0099ZNê@\u0091èÝæ_x001E_Oê@jØ å<Hê@_x0013__x000E_L_x0016_ZZê@HÔQ\u0083_x0007_Jê@TAC_x001B_kFê@ýGôþQGê@2»ýèRHê@M3z_x0013_\u0096Pê@G_x001C_Õü\u0088Wê@Ô°\u0098CYPê@bDe_x0013_rPê@gïrÓ?Oê@ütÏÀ_x001D_Vê@_x0008_.&9oPê@¦4ìB\u0099Wê@ö\u007f_x001C_\u00939Rê@%\u007ft!_x001C_Tê@x_x0005_D;mJê@_x0007_\u0095\u0090\u0083ðHê@0_x0008_L/_x0001__x0002_ Nê@.òSRóKê@\u008aþz\u0092±Lê@Úö_x0015_Õ¶Tê@z3\u009dt_x001B_Tê@gûwÔmSê@r¬Ñ\u008ecSê@\u0098\u0098ú0¸Pê@£\u0090²_x0001_\u0086Qê@Ï³u?_x000B_Lê@íþ\u0095\"ÍPê@Ãû®(`Pê@_x000B_æ3\u0099ëRê@í\u0085_x0003_\u0098oQê@_x0004_xç\u009aÈWê@ÞD_x0006_¾^Rê@úsäj\tSê@_x001B_à_x0007_!\u0082Cê@»¨\u0092ÿ¦Oê@êàÿ6ÝNê@ÿ_x0018_^\u0084\u0091Qê@\u009ab8ò¼Gê@b¡¹Ñ7Sê@wºèÙÜWê@M\u0087¨¸;Mê@ÜÑê*_x000D_\\ê@/555_x0002_]ê@G_x000D_Ü\u009fcRê@>\u009et_x0011__x001C_Hê@6ÚQ&vSê@_x0010_oc«dOê@\u009c6â_x0013_\u0096Nê@_x0001__x0002_<Æ\u0088P Mê@7\u009d_x001B_.£Yê@I?FBéZê@_x000F_×_x001B_KfOê@»¸4*ÁTê@Ê\u009c\u0088_x0007_¿[ê@ãu_x0003_)¥Jê@\u0097zÁc\u008aSê@\u009e\u0094^½ZNê@ËÜ.·mUê@o\u0089£1ñ]ê@t\u0084\u008dR\u0092Nê@kMJÒ²Jê@.)6¥ÅFê@_x0005_!ý_x000B_\u008fSê@\u0093oöO\u0086Mê@Ôó\u0082q1Qê@_x000D_óå_x000C_çLê@;\u009dZ4YRê@\u0080_x0008_\u0081ÒùSê@Ôîå\u0081rKê@éÛ_x0004_íéLê@_x0007_}J`íSê@]«\u008e1\u009aKê@ëç_x0003_7\u0093Uê@¢µ*Î\u0091Sê@uo\u009a\u008c!Eê@5Oc_x000F_ûOê@Ù:ßÖ|Mê@eÐ^\u0095êOê@_x0012_âW7LKê@ò-_x0004_s_x0001__x0002_ÐXê@@ýòUÉMê@Ê\u009cö[NTê@\u008dñ\u0092Ø«Kê@_x001B_ÞÞõ³Lê@\u008c&­F\u0090Gê@/Kª9dSê@¬\u0086®\u0087TLê@_x0005_º_x0008_kÓQê@_x0019_v\u0098»¬Rê@Ü¨QV_x001F_Eê@7R\"zDOê@¯Ú\u0088Õó[ê@·äù<_x0012_Vê@5èçªõRê@NªºÉ\u009dQê@e®ý¸½Tê@\u008b_x0018_`o0Uê@\u008cÖ\"/ºJê@eï\u009aßåOê@\u008dÚ¾_x0019_\"\\ê@\u0084h3ó\\Fê@\u008e\u008bß\u008eVQê@_x000E_ùÚ_x0003__x001F_Mê@_x0002_ CA(Tê@']¦_x0016_ª]ê@»\u0098ª'zJê@ÿqR0ÓKê@ØèÝ6\u0098Kê@jP\\_x000D_QMê@¬Ui \u007fTê@ª\u008bÃ\u0090÷Rê@_x0001__x0002_À_x001B__x0011_NsMê@_x0005_3¼Ô_x0010_Mê@:6`TµRê@\u007fcð)æPê@q#_x0013_0\u008fTê@¸õ_x001B_­\u0083Rê@_x0015_c¢G7Mê@\u008cÊìÕÀTê@h\u0080\u007fiíHê@Î_x001D__x000E__x0003_,Qê@_x000C__x0013_é\u009bWSê@#\u0085ùéâNê@6&&_x001B_nRê@K=_x0019_\"«Nê@Æ\u008d _x000C_«Oê@\u0081_x0012_X_x0019__x0001_Nê@JÊOÀ§Nê@GÙ\u009f[Õcê@j\u009fB6_x0003_Sê@KëÇ\u0099´Rê@GþÈÌGPê@ _x0014_á³¥Rê@0Wx\u008c_x001A_Gê@qhÇ®\"Kê@'\u009d\u008e×_x0008_Oê@üæAÓDRê@D_x001B_ïM_x0003_Mê@)H -öJê@áÅ7_Ô[ê@Ñ!_x0017_Ñ;Oê@Â u÷\u0085Tê@Ø\u0084\t4_x0001__x0002_ÏRê@zÆ_x000D__x0012_\u0098Zê@ñW¼\u0083êZê@_x0016__x000E_¿À2Tê@yPÝ\u009blUê@*tò_x0007_?Vê@\u0091'\"×÷Gê@x\u0090_x000E_þÈNê@\u009aú­_x0014_4[ê@}GÖ\u007fzRê@eï\u009aßåOê@tªO¦PSê@\u009fÛî)ïQê@æì§û(Sê@\u0099Z\u009d_x0016_/Nê@§_x0003_Æ(¼Gê@_x0013_Iµ_x0002__x001A_Qê@s^_x0006_m_x0012_Qê@h½ÍËJQê@÷RqâôJê@ç÷\u0099\u009f\u0086Sê@ãNjÐyTê@aU_x0012_òPLê@%\u0083X_x001C_¦Gê@èY®ctPê@?z_x0014_ÂòXê@Mj_x0013_JÁVê@j¨!\u009a\u008bIê@_x0019__x001D_ð}6Rê@gùÆÉùSê@aþÙ_x000E__x001C_Iê@\u00806^ApOê@_x0005__x0006_\u0099á+¹_x0001_Qê@H¿3´ËNê@Ç\u0098\u0096_x0012_ÎWê@û0bøËOê@Q_x0004_ÏN-Mê@qÍ_x0007_\\ÕOê@r5\u008bW\u0086Zê@ò®~s_x0002_\\ê@ÍI_)aLê@j.\u008f_x0008_ãOê@\u0082\u007fÜ;\u0089Uê@a3q\u0098_x0003_Uê@_x000E_\u0080kÛ¯}ë@\u009b«'\u008d*dë@Óg\u008bÑ_x0006_Îë@_x0014_Ë\u0086_x000B_Ô%ì@E¦û­%që@\"\u0093Y0½ðë@d>õ_x001F_Qgë@_x0014_Æ\tá%¢ë@í\"_x0015_\u0090_x0018_-ì@ð¶îmï\u0083ë@èKñ\u0083Õ©ë@Ó¡yFËÞë@AÍÊ\u0094_?ì@\u0089>A\u0096\u0092¸ë@Q!_x001D_Ý,êë@JÀjõüQë@_x0002_KwÎâ\u009dë@_x001C_´î¢3«ë@#8_x0007_aÞSë@n?_x0003_\u0089_x0003__x0004__x0019_\u0083ë@WÑ\u008b\u0091'`ë@GLô¹Þ¿ë@\u0092X_x0002_¥¨úë@ÑT_x001B_È\u0089Eë@Oz\u008e ý]ë@c_x001A_2·gýë@_x000C__x001E_¥_x0002_Èáë@&ëçë´kë@­©ö_x000D_£\u008aë@RÎ¨Ko¹ë@v_x0017_ë>ÿþë@¤_x0001_}pÈlë@d9 W_x0015_ºë@_x001E_H\u009dÄOAë@_x0019_I-_x000F_§^ë@=/_x0003_`úbë@_x0018__x0014_\u0082§©_x0016_ë@\u0098¼_x0011_\u008fÁIë@o_x000E_=úë\u0089ë@y±\u008f^V_x0017_ì@\"xò;Jaë@Æ\u0097\u0084¸_x001D_®ë@¡u­ÿ2\u0093ë@Üg_x0016_{s_x0008_ë@áê©ô\u009b¦ë@_x0003_ÝÊÂ\u009c8ë@»Ç\u009eÙ÷_x0001_ì@Ã/¬<Ýúë@£©Vmrtë@C#_x001A_WþKë@\u0092_x0016_Àoj\u0089ë@_x0002__x0006_Rv\u009a¸_x0013_\u009dë@%_x0011_£\u009b\u009b\u009cë@_x000D__x0006_æÓ\u0088_x0003_ë@_x001D_uW<Ê\të@\u0092Aqî_x0011_¡ë@^$äÎC\u0091ë@_x0017__x001C_Ã\u009dTÐë@²Æ_H_x0015_\u0094ë@WU¥_x0001_EQë@_x000D_Y<_x0018_E­ë@Ónú\u0092_x0010_&ì@¥ùOr\u0092=ë@\u009c'[_x0002_ùUë@Æè(8_x0003__x001D_ë@cßO÷\tÛë@áå®¨vmë@vere#xë@(L\\\u0096&Wë@°Pz_x0005_¹zë@¶_x001B_\u009bÀ_x000B__x000B_ë@aëWâ\u0098Çë@ì¸Áü\u008c_x0004_ì@\u0096\u0086¿îüxë@¯crn\u0085Õë@_x001A_~Hµ¸Rë@ª8Ñ\u0092k\u0081ë@l©p\u009a\u009dnë@Oa­_x001C_3¶ë@\u0080®H^»oë@_x001F_zWRY¬ë@Ü\u0088\u0081h¾eë@YzÛO_x0002__x0003_«\të@¿D³\u0090«\u008dë@_x000B_ê_x001F__x000B_n\u008aë@F1íü<íë@Q_x000F_x_x0006_\u0092_x000F_ì@üXÌÚ­¦ë@øÊ%å(±ë@§ÓoÝaXë@Cs\u0085VÌ[ë@_x0002_\u0098_x0005_H_x0017_¾ë@l_x0008_e[´_x0007_ì@_x0019_;ñ¶\u0083½ë@ã§ \u0085çdë@>dð;Ó±ë@.ÿ¹\u008ba?ë@s_x0004_\u0088A²¹ë@ â\u009160dë@vû«'f£ë@]¦_x000D__x0002_E\u0080ë@_x001D_Cü#ï¶ë@VÇew_x0003_¥ë@èM9\u009ar_x001E_ì@4»b\u0089=\u0096ë@[øåaH/ë@_x0018_b~_x0001_/vë@cq?6ü¯ë@\u0099\u0094ÒwäRë@Eu·¯ß°ë@2\u0083¾«s«ë@ÉBK_x001C_!Ùë@¶\u009eªêÏgë@_x0013_é°faaë@_x0005__x0007_ Öÿ¤­ßë@o_x0013_Ã#À´ë@]|ÉlX_x001B_ì@_x0017__x0018_þß\t_x0013_ë@ºñ) £ôê@y¡Ê_x000E_³»ë@ªWO~­eë@t¥íî_x0006_·ë@­Ça|Ñ`ë@H;·\u009f¬së@^\"5Úh\u0090ë@"}},{"$cut":{"chars":58680,"head":"01bb50e2c8777039d5f8833963a31634_x0002__x0003_¤ä¢<\u0087_x0014_ï@¨ó\"Å¯tï@_x000D_\u00870³ÄLï@À2X_x001A_¶Õï@ÖÎ+P_x0016_Ñï@ê±¼Ó0>í@nfóæãÎî@^äÅëE=î@¾Ã\u009bòó3î@JK_x001C_!Êiï@¼q\u0096èuîì@\u0082Áö_x0014_@_x0007_ï@_x0008_úÜ¥\u0092Çï@(»_x001A_pçtî@î\u008fÈE­ýí@³\t1E\u0084\u0087ï@Ï_x0002_¯ú.(ð@£_x0007_nÙ\u0097Xð@\u00967<_x001A__x0007_Äï@_x000C_\u0086KR,#ï@r68yß\u008cî@NT\u0099_x001B_;¤ï@üÕ,)ó\u008dî@ê¦»&¯©î@_x0004__x0003_¤?>\u0080î@à°_x0015_Åø_x0013_ð@ª\tçM\u008csî@)\u0096\u009b\u008a.¤î@rmMÖ%Lî@¥á\u008a&äAî@_x0005_+_x0007_Þ<ãî@_x000D_Ø_x0001_¯_x0001__x0003_\\Eî@_x0018_x_x0002_.ò4ï@\u0087x6_x0006_9_x0004_î@_x001E_Ü$\u009b>ãí@°ô\t£1Ôí@¶6n¾óUî@¤Ê|z_x0018_óï@¬+®Èf;î@\u008cf¦iÓ·í@ø_x001F_\u0085\u0082`Åí@ö_x0002_fÝ_x0013_¾í@íHÖã\u0090!ï@_x0012_(º\u0096^rï@(y±\u0083¶·î@´&t½¼\u008bï@_x001C_z{\u009b®ôï@_x0003_NvÕ©Ãî@_x001C_\u0092_x0002_É¦Fî@ëv\u007f\u009dÀJî@_x0012_µ_x0018_d.Éï@7__x001C_ñ\"\u008dî@Ü7¸·¥Yð@_x0014_k¤Èâ\u0092î@pNÜAbiî@xç\u008bÓ9_x0005_ï@qê_x000F_\u0081hFî@x _x0012__x0015_\u008dºî@1I&p¯Ìí@`°{¾,(î@fîÒ¸\u0080Wî@ê\u0088e4_x0013_\\ð@b9Îþ:¿ï@_x0001__x0002_=ª_x0008_Rú\u008dî@ÖÖbCôçí@_x001C_ý\u008fé\u0083Çï@_x000E_¢_x000C_íó\u0092ï@¼D1Z Oï@_x0007_Ì\u0082o²_x0016_î@k4}>_x000E_Àî@!Í¬_x0013_ä_x000E_ð@\u009b_x0008_ÛQ\u008e\u008cï@_x0002_NvÕ©Ãî@ú DÛ¶§ï@¢^ï\u008b\u008b¨î@¤_x0003_×µ_x000F_7î@ÚKÞà_x0018_ôî@%áúº\u0082nð@@}I+Ûtî@1I&p¯Ìí@Rûq ôäí@Â!ùr\u0084pî@mØ_x0006__x0018__x0008_yð@ì\u0097Õñx=î@Ê1%·_x000F_sï@øb_x0019_ýªSî@r2Úíë`î@_x0014_Ï¶\"-_x001B_î@Úåê¼Yúí@F[Ô_x0001_é«ï@\u009a9<¨ïqî@a§F_x001A_Q_x0014_ð@K5>5_x001A_Ñï@¥xiB:\u008aî@!_x0007__x001C_µ_x0001__x0002_Âdð@àË'ÍK_x001C_ï@X\u008bçC)Qï@_x0014_Ab3,Ìî@¤i*_x0018_¨\u009fï@.BqbéÁî@DäcKS_x0017_ï@ÀÜY\u0084W¼î@ÿ¾Õ¡9Úì@\u0080Ú_x000B_c_x0018_\u0090î@î\u0098a\u0093ýÅî@á¤'Û?-ð@^_x0013_ä\u0085Qßî@8´¶Ï(_x0012_í@_x0006_ô\u008fw1tî@_x000E_<;°¹\u0099ï@dnÜ\u0096·eî@­UÏ´éjî@Ö]\u008f8Jtî@¯ø&_x0019_Ã_x0003_ð@_x001E_e_x000C_\u0085_x001A_îï@Vy`[%Äí@býêb#dî@{u§ÂÎ_x000C_ð@Î_x000C__x0004_ÖÅ\tð@\u0094\\~é¡-ï@\"LB@ìEï@\u0082¬£U@{î@¾ÒBÎ©_x001A_î@À\u0088Ü\u009d\u009dÍî@²û\u0084«É@î@\u0090_x0015__x0004__x0007_§\u009dí@_x0003__x0005_´_x0012__x000B_u%#ï@\u008cµÚ\u0086C\u0086î@ú_x0019_ôY½0î@N_x001D_¿ÙS¿í@x¥\tÌ\u008a\u009fî@Vy`[%Äí@F×_x0015_«ËÇî@®Ö´%Çõì@Ìâß¦ªPð@¼\u009d\u0091[U1î@FöÍ\u0096_x0010_\u0085ï@´e_x0001_Ì\u0094\u0090ï@0ÑÍ¬X_x0003_ï@¨\u0094¾ìfOî@×_*ýÑtí@P{_x001F_¾\u008c±î@811(Ø_x0003_î@].<HtXî@H\u0096\u009aÍIZî@\u009eý8\u0098_x0004_\u0084ï@þåúé_x0014_\u009eï@rJ¹ùAVî@:_x0008_Eð\\Dî@È_x0006_`Û_x0017_®ï@ì\u008b¢ \u008c_x000B_î@_x0003_\u0098Ëð_x0013_·î@lr¶s´\u008dî@W_x0016_±Õ9¶î@w°5âAóî@C$_x0002_.&zî@ºRË_x0012__x0014_cï@N¹_x0005_d_x0001__x0002_Esï@\u008eu[HæÕí@_x0008_æ}oYìï@²êÀÒIèí@à\u0096Û_x001D_9Kî@D¡§\u009fq_x0004_î@ÙA\u009cÊjÛï@Ý\u008250D\u0086ð@dXÀ\u009bùYî@¼\u0096XUb¤ï@D¡§\u009fq_x0004_î@\u008a¢_x001C_ÏÂµî@,\u0091_x000E_«¼öï@ÖöéÓ_x0010_Îî@o\u0099Æ_x000E_¬+ï@_x0013_aI7\u0084jð@Ô:Õ_x001C_(\u0085ï@\u0088~é\u0097Ö1î@ÔôØV¾\u0084ð@µùä²%¸î@H'>¯RÛî@2(¤\u008aâ,ï@Vø\u008e\u0082*_x0018_î@ØúÚUÄ÷î@ønïT\u008b'ï@\u0096\t·±¼\u008dî@\u009aþ*\t_x000E_¡î@\u008aF<_x0018_ËWï@ï\u0080=0v5î@0¶_x000D_\u0094\u0095_x0002_ï@Ö¢J~\u0093qí@8UÚ_x0005_\u0080³í@_x0001__x0003_t_x001E_êÚhÏí@tÆÔª\\vï@ Î_x000B_\u00993åï@\u0083_x0011_LçËtî@_x001C_gËzî÷í@nCªºC'î@(°_x0007_+q|í@4_x001A_¾5²Éï@~¸\u008b\u0085.~ï@pVj\u0096C\u008fí@ÖeÐÊ.xí@\u0080¤ëÚ»_î@¹w=v_x001B_Cð@pn¸½_x0016_eî@_x001C_\u0092_x0002_É¦Fî@´Ì´hï_x000E_ï@\u0095!ëóæþî@^\u008a\u008c\u0087t_x0016_î@_x0008_Éòk\u0089<î@_x001C_ïA¨ØÖî@\u0086\u0080¾\u00920\u0092î@Y>_x001D_´_x0013_|ð@2ª$z\\Pî@*üðÒZHî@§\u007f=<ÌËí@ÎgÆ³_x0016_ î@l*Q_x0013_h¶í@\u008dDÀüÞæí@_x000C_*KÔ\u0080¦ï@Ã¶Þïë)ï@\u009a/Ó\u009aVZî@:ÛIì_x0001__x0003_áàî@r\t_x000B_wY{ï@ÂÅ_x0005_p_x0017_\\ï@v§Û¬¸@ï@Vy`[%Äí@¦\u0083¢ä_x0012_,î@_x001D__x000E_\u009a(lHî@Â®¡éQÒî@ö<ÍÓ-_x0017_ð@|Ñ®Pg_x0006_ï@pÂþÛè}ï@Lâ\u009cß÷dî@ª\t_x0002_á\"Lï@0\"J\u0082½Dî@_x001E_Z}\u008fNÀî@t\u0082!qæ@ï@Þ_x001C_¦\u008a}~ï@^j_x0002_|}jî@?7La¶_x0015_î@_x000C__x0010_/\u008aT\u0091î@f\u009d~ûNéï@_x001E_óPÆ¶zî@RïA\u0087_x0002_¾ï@nX\u0082_x001B_¥µï@#)\u0095Ù\u0085×î@_x001C_<íi_x0016_\u007fï@ø_x0013_]3\u00850ï@y¨@_x0010_{dî@ðSAËæ!î@_x0011_PÓç1ßí@Ø_x001D_Þ~\u00919ï@_x001C_<_x000B_äAVî@_x0003__x0005_T_x000C_¢È=ôí@B»\u008fLgÎí@|*{\u0091j¼í@µN\u0086_x0008_q!í@²ö}_x0011_\u0099Cð@\u008a|P\u0083;@î@d`ØqÃ\u009bî@\u0086CÕ\u0091 )î@\u0086;Ú\u008e_x0019_\u0085í@._x0011_¡ì_x0018_Cð@B\\¦_x0014_\u009ebï@ÊÝÐ)\u0080¿î@k_x0014_V\u0092_¥î@¸'_x0002_É=\u0090î@_x000B_ô­ _x0001_Oð@6µ¸S¦Lî@ZÇò¶Psî@B_x000E_û¨×0ï@îý_x000E_kûlî@\u0086'Ôº_x000E_Uî@w|_x001D_\u008c³=î@F\u0095\u0099_x0011_¤iî@\u009e\u0089Y¸ª\u0085ï@|W\u009a\u0091_x000B_Qî@_x0004_l7Åncï@{¬Of{.î@YQÜ#Þ î@ìVª\u008cöpî@~_x001F__x0016_Á(%ï@j\"XÊHþî@ç_x0008_E@~eð@&dS¾_x0003__x0004_sYï@\u0084!99L_x0012_î@öXTå|_x001D_ð@\u009d²ßiÆBð@_x0012__x0010_3^3îí@ÜËË\u0080ÜÃí@_x0016__x001D_\u0094±¾íî@\u0098\u008b!H¨_x0010_ï@ß+_x001D_fónî@ö,½LgXð@p_x0007_\u008bÐ<_x0010_í@½_x0007_ª_x0017_/àï@<;_%Fkî@J%_x001D_E¥¾í@DSÕzí_x0012_ï@Ùq^mÖ4ð@\u0095!ëóæþî@FóÞ\u0086í_x0018_ð@É_x0003_½¹\t_x0014_ï@\u009c^¢\u0081TÓî@2_x000F_tx¶lï@\u0098Ñ2&$_x0011_ï@\u0098XàO«êí@o´_x000C_|ÞÝî@Â_x0005_ó_x0002_å_x0015_î@þH_x0017_%ÀIï@=ó\u008fPuÑï@åª1_x001C_´©î@_x001E_á2\u008f_x0005__x0001_í@;°|¾,'î@#ÔT_x0010_äUð@\u0086ÍÃ¶¹\\î@_x0003__x0005_\u008aêð\u009bøgï@ßö!U\u0083|ï@"}},{"$cut":{"chars":74646,"head":"3211213a9183aaeb926c860d3f547ced_x0007_\tþÛ×\u0082¢Ü_x0018_ÁÍs\u007fV^Þ_x0018_Á\u0094t \u00885ä_x0018_ÁL·5æ_x0008_à_x0018_Á@=_x0001_¡ìØ_x0018_ÁÛiðÆ}Ü_x0018_Áð_x0003_H_x0002_«×_x0018_Ááh?£_x0001_Ò_x0018_Á^ \\!_x0004_Û_x0018_ÁZ9\u0089X\u007fç_x0018_Á_â1\u008fïì_x0018_Áázþ_x000E_dá_x0018_Á,_x0005__x0008_P>Ò_x0018_Áy\u008b\u0084¾6Õ_x0018_Á3\u0088ö\u0090êÊ_x0018_Ák±EÎáÝ_x0018_ÁÔ\u008d_x001B_  Ü_x0018_ÁMk\u0080_x0017_Xè_x0018_Á\u0080d&»\u0083Ð_x0018_ÁZõ\u0099¦\u0097â_x0018_Á¾L\u008c`_x000D_ú_x0018_Á\u0087÷$_x000D_ÄÛ_x0018_Á\u0095kWÏ\u009eØ_x0018_Áï®Á_x0010_\u0099å_x0018_Á_x0015_pè_x0001_.Ý_x0018_Á_x000E_Pº¯q÷_x0018_Á&ïï×¯ö_x0018_Á>Þ\u0086LáÓ_x0018_Á\\\u0086ùûÜÙ_x0018_ÁÞ_x0019_£_x0006__x000E_ô_x0018_Áâ\u007fß_x0003_ôØ_x0018_ÁIÁ_x000F_F_x0001__x0002_\u008fÙ_x0018_Áj}_x0006_µNÏ_x0018_Á\u008e@_x000B_Ø_x0016_Ý_x0018_Á_x0019_8ÿ¼òÖ_x0018_Á\\?_x0006_7_x0016_ß_x0018_Á\u0099S ÝÈã_x0018_ÁV_x0016__x0001__x000F_\\Û_x0018_Á\u0082Ã\u00868_x001E_à_x0018_Á\u0085êa9vâ_x0018_Ámñõ_x000E_Jæ_x0018_Á_x000E_ýM4Qã_x0018_Á_x000D_sÝçpè_x0018_ÁÓ_ê\u0096üá_x0018_Áòu_x001E_\u0088ûÝ_x0018_Á¡Õ­p_x0014_ç_x0018_Á\u008c_x0007_µ_x001F_3Ø_x0018_Á%1#e_Þ_x0018_Á8û±(öÝ_x0018_Á_x0015_\u008b1\u0095Ãä_x0018_Á2\\\u008c»\u009dü_x0018_Á_x000D_}_x001D_©,à_x0018_ÁS_x0002_\u0090¨[×_x0018_Áí°\u0096pÑÓ_x0018_ÁâÇÔd#Ú_x0018_Áä\u00866â+ß_x0018_Á\u009cÈ­ã¹Þ_x0018_Á\u009f¨'¯åå_x0018_ÁÉõ.\u008emë_x0018_Á¾¬/|_x000B__x0003__x0019_ÁýÙn9mô_x0018_Á\u0084©\u008c_x0019_ôã_x0018_Á 9£ø«ß_x0018_Á_x0001__x0003_¸pÁ\u009a_x000F_Ü_x0018_Án_x0002_ÃÞ\tä_x0018_Á¼FùîvÝ_x0018_Á\u0091\u0093BÉ<Þ_x0018_Áo\u0090Þ¨\u0080Ü_x0018_Á\u009d¬§ÅLâ_x0018_Á1\u0090=\u0081_x0011_ä_x0018_Á=@Îü\u0086ë_x0018_ÁN_x0014_\u008c\u009bHÙ_x0018_Á¯¹\u008e®Üà_x0018_ÁI_x0005_Cî_x000C__x0002__x0019_Á_x000F_õyÓB×_x0018_Áï¶\u0089_x0006_\u009aâ_x0018_Á_Þ y_x0012_æ_x0018_ÁZ¹_x0012_\u009eüç_x0018_Á>ã©ó¨ß_x0018_Á\u009c&¦_x001C_\u009dø_x0018_ÁæØä7×à_x0018_Á¨|Ë_x0014_WÛ_x0018_Áp_x0019_l8\u0091ÿ_x0018_Á$ÖÛHuÝ_x0018_Á\u008fáöô_x001E_ú_x0018_Ásk¬RXõ_x0018_Á_x0006__x0016_\"ê\u0083Û_x0018_Á_x0004_é\u0097_x001D_Åç_x0018_Ám_fÛGÛ_x0018_Áò_x0012_ï_x001F_âÓ_x0018_ÁÅ)¦oÀÜ_x0018_Á®á_x0005_íwç_x0018_Áß_x0001_fL&Ù_x0018_Á»\u0088Z\u0086aß_x0018_ÁnÖ_x0014_D_x0001__x0002_µÞ_x0018_Áñ_x0019_1% à_x0018_Á½ð\u0092ØHÞ_x0018_Á_x0011_\"\u0094§_x0002_Õ_x0018_Á¾¸/¡_x0013_Ø_x0018_ÁO¬nd\u009eì_x0018_Á½ähØA×_x0018_ÁÀG_x0019_l÷ò_x0018_Á\u0084ã\u009c¯Xæ_x0018_Á<kè¸_x001B_Ú_x0018_Á·\u0086ß_x001E_µÚ_x0018_Á\u0081_ßìÉÛ_x0018_Á\u0099\u0091Sì_x001B_Ý_x0018_Áï¨_x0018_,_x0014_Ú_x0018_Á_x001A_dVo\u008dÚ_x0018_Áé\u008fd_x0010_\u0095å_x0018_ÁÜ\u0099BÊ\u0083å_x0018_Á°fº\u009d$ã_x0018_Á\u0088¼\u0091H\u0085Õ_x0018_ÁJÜ-_x0003_>à_x0018_Á©^\u0081\u008eÆÞ_x0018_Ád½-@_x0003_â_x0018_Á1Éó9÷æ_x0018_Á_x0010_FîkÔH_x0019_Á\u0081\u008fë3\tâ_x0018_Á5EÎûµ×_x0018_Áð`_x001C_Ç´õ_x0018_ÁX\u0097JWÄÓ_x0018_Á\u0087\u009eÉ_x0004_Eß_x0018_ÁcÎ_x0003_U_x0011_ñ_x0018_Áè_x0005__x0003_ÞËë_x0018_ÁÌþDÄFÖ_x0018_Á_x0002__x0003__x0002__x0004_>\u007fLö_x0018_Á_x000E_Y\u0086\u008c|é_x0018_Áù/_x0004_%~á_x0018_Á\u0090|)«%×_x0018_Áßé+:eæ_x0018_Á_x0004_\u007f_x001C_åZÜ_x0018_Á_x000B__x0017_\u009f\u0091?Ø_x0018_Á<®\u0088L©í_x0018_Á\u0092_x0010_ÚY-Þ_x0018_Á\u009f+üQ;_x0002__x0019_Á_x000F_!g¥k×_x0018_Á/¡\u0082~\u0090×_x0018_ÁJR9ËôÚ_x0018_Á2{S\u009f_x0017_Ö_x0018_Áf÷î&óÝ_x0018_Á& \u0081ÖùÛ_x0018_Á_x0004_¼«niÕ_x0018_Á¥ÍÚõÕã_x0018_ÁF\u0088_x0017__x0002_%ð_x0018_ÁNy^MÛà_x0018_Á¼fÍÆøÕ_x0018_ÁY\u0080\u009c=Íã_x0018_ÁÚ_x0011_Ï@°_x0001__x0019_ÁÅ]Bb\u008a×_x0018_Á\u0086-cè\u008aì_x0018_Áß0^_x0001_}à_x0018_Á\u0081_x0005_¶_x000C_þá_x0018_Á\u00856 Æ_x0010_ß_x0018_Á>_x000B_¨{)Ù_x0018_ÁS$0 Ëæ_x0018_ÁIayñPé_x0018_Á´@¾ð_x0001__x0002__x0016_õ_x0018_ÁüLÏ\u0098§ü_x0018_Á_x0015_S\u008dQ à_x0018_Á)5iÐUå_x0018_Á_x0019_?ÿ~\u009bá_x0018_Á]B=OBß_x0018_Á¢_x001F_¿\u0089\u0089á_x0018_Á¼º\\s_x0004_ã_x0018_Á,u£ëRä_x0018_Á±©\u009e_x0008_Hä_x0018_Á\u0090_x0013_1û_x001B_è_x0018_Áx÷¥h_x0008_×_x0018_Ád¯ÏÍ_x000C_Ü_x0018_Á\u008bèËGúø_x0018_Á,pÊø_x0013_â_x0018_Á4_x0019_±_x0014_Uã_x0018_Áû;_x001A_Z\u008bÏ_x0018_Áf[_x001D_¨ÎØ_x0018_Á6\u0089_x0006_zºË_x0018_ÁUQ'\u008aQÞ_x0018_Á¼Ë_x0019_^·Ú_x0018_Á\u0088\u008aõKEÕ_x0018_Á\u0098Ð_x0016_:½ê_x0018_Á×n®µ\u009eØ_x0018_Á\u0086J$níç_x0018_ÁTâzÍ\u008b×_x0018_Áä8RÉ©â_x0018_Á\u009c_x000C_½ªíÖ_x0018_ÁUÁ²_x0011_îâ_x0018_Á\u008e\u0095_x001C_3tß_x0018_ÁH4\u0083ò3Ö_x0018_ÁÂ_x0006_x-7á_x0018_Á_x0004__x0006_\u0087õ¬Ù_x001D_Ù_x0018_ÁV_x000F_-õ`×_x0018_Á\u0090]#\u008f.ñ_x0018_Á\u009eú»÷AÝ_x0018_Áý¡Ïã_x001A_à_x0018_Á_x0018_\u0093_x0003_\u0080-ç_x0018_ÁÐ»ø¾{ø_x0018_ÁL¹1K»ã_x0018_Á_x0019_ß÷¶ùã_x0018_ÁIÑ&MiÙ_x0018_Á?_x0005_6XÛã_x0018_Áþ_x0018__x0016__x0001_\u008cð_x0018_ÁçúL¹_x0008_å_x0018_ÁÍ±Ñì_x0015_Ô_x0018_ÁC~\u008c_x0013_£ä_x0018_Áß¢bÉ:Ú_x0018_Á_x000D_¯¼,Âä_x0018_Á\u008cDC_x001D__x0002_æ_x0018_Á\u007f¯÷GÚà_x0018_ÁÂ_x001F_à \u0081æ_x0018_Á_x0007_ÐÆ)Áê_x0018_Á\u0092ý¨]+ä_x0018_Áo_x0018_U\"Ià_x0018_Á2A9x>Û_x0018_Á$ju0#å_x0018_Áõ;hCåØ_x0018_Á_x0018__x000C_ÃÆ\u0099á_x0018_Áõ³Vt@à_x0018"}},{"$cut":{"chars":57852,"head":"28eb3737805686fe1e34653d42012578_x0003__x0004_é\u009b¹_x0001_lX_x0004_Á¥\u008cf¿ä%_x0004_Á/¬_x000E_tö_x001C__x0004_ÁÐ\u0088\u0089ê#&_x0004_Á­\u008a=¯u'_x0004_Á_x000B_s`\u0085Âà\tÁê\u0089Ùi-;_x0004_Á§_x001E_bË_x0005__x0005__x0004_Á_x001C_p\u0091|¶d_x0004_ÁCF\u008d\u008cæ-_x0004_Á?Ñæ±°7_x0004_Á_x0012_¡È\u0087_÷\tÁ4_x0002_&]èâ\tÁ\u0095¼\tì\u0081O_x0004_Á­ÁU`\u00818_x0004_Á[ÜÝíêR_x0004_Á_x000C_8ß~(A_x0004_Á½ê«êuö\tÁ_x0016_*\u0095Êµ_x0005__x0004_Á=\u008e}uex_x0004_Á_x0003_¤Yu_x0002_=_x0004_Á\u0086x_x0006_/1._x0004_Áa\u008bhª¹O_x0004_Áb¨sr¢_x0011__x0004_Á³_x0010_È\u0094É_x0018__x0004_Á'j8@X_x0017__x0004_Á\u0086±Ä'\u0090×_x0004_Á^/þ_x0015_o<_x0004_ÁæÙbr°Y_x0004_Áä_x0005_Y_x0018_¤\\_x0004_Á\u0096¦òÄè&_x0004_Á8ôÊE_x0001__x0004_ëÜ\tÁæ\u0082W¬âo_x0004_Á~Ã\u008bûõ5_x0004_ÁíW2\\f_x000D__x0004_ÁQÏ?_x0002_Äs_x0004_Á\u008d¼E\u008bã¯\tÁ\u008d_x001B_Äì¡X_x0004_Á`_x000E_Æ\u008bûý\tÁ³Q\u0089l×à\tÁF(a_x0013_ \u0081_x0004_ÁMb[<õ_x0005__x0004_Á?% o»ü\tÁ_x0004_5µïøD_x0004_ÁØ}v_x001E_pq_x0004_ÁQii§÷}_x0004_Á+\u0088Ù­7=_x0004_Á_x001A_Ò#\u0091_x001F__x0014__x0004_Á_x0004_Ë¼¶u;_x0004_Á_¤£a×C_x0004_ÁRY²)Ý#_x0004_Á\u0092Ùg6_x0016_:_x0004_Á¥_x0003_]_x000F__x0018__x0007__x0004_Áàø,_x001C_P)_x0004_Áb¶§ú£þ\tÁîÍ\u0093Å6S_x0004_Á¸É0±D4_x0004_Á\"îuÇ\u0088&_x0004_Á\u0086x»®¬_x0010__x0004_Á?ÏÄh¿_x001F__x0004_Á_x001B_ZDE(*_x0004_Áóõì_x001A_25_x0004_Á\u0099;;_x0015_+2_x0004_Á_x0002__x0003_:=f\u0088,$_x0003_Á k>S_x0001_Þ\tÁ3_x0005_ÐÖp_x000B__x0003_Ápi_x001F_ÀG9_x0003_Á\u0081\u0090=\u0092¿4_x0003_ÁYoÏ_Àö\tÁÂ>y`¨X_x0003_ÁýNwÃkC_x0003_Áö_x0011_CJP_x0012__x0003_Áñ^_x0011_,_x000C__x000B__x0003_Á\u0099\u009c_x000F_¹ÜO_x0003_Á\u00857t\tp-_x0003_Á:>_x0008_\u0087¥\u0084_x0003_Á\u0082ZLÌ\u0085_x0013__x0003_Á<õqIÒ7_x0003_ÁMáÕ|\u0086&_x0003_ÁNOK T\u0086_x0003_Á_x0001__x000C_p_x0005_\t$_x0003_Á_x0007_ üó`G_x0003_Á©_x001B_Ëò\u0098ø\tÁõRu¾\u0081Ü_x0003_Á\u009a¯(çø'_x0003_Á736_x0019_«1_x0003_ÁDÐÿöy/_x0003_Án_x0003_uúìA_x0003_Áéàca±©_x0003_ÁrÌ%,Ö\t_x0003_Á_x001D_\u0083_x001D__x0004_ø9_x0003_Á_x000F_µ_x0019_~g\u009d_x0003_Á´Q\u0091ïI _x0003_ÁdM#!_x0011_9_x0003_Á0qÒ_x0013__x0001__x0003__x0010_4_x0003_Ág.Ï`_x0005_\"_x0003_Áø_x000B_ê_x001A_°G_x0003_ÁE`ÖO_x0017_,_x0003_Á_x0005_&_x000C_Aú_x0013__x0003_Á\u0090©Ó:äz_x0003_Ás\u008cok+H_x0003_Á+TÀ_]+_x0003_ÁH¸Z_x0018_NG_x0003_Á\u009e_x0014_¯z_x0017_\u0098_x0003_Á¢Ø{_x000B_ÇÆ\tÁ´ÆzÈ_ _x0003_Á Ïf)§7_x0003_Á»Z|/_x0017_7_x0003_Á_x0003_Q\u0096\u0094K_x0011__x0003_Á¿¶\u0097VGI_x0003_Á2\u0097¨\u0090\u009b_x0012__x0003_ÁÚ´_x0006_kÄù\tÁ|Þ!ûw÷\tÁ\u0090\u0097\t?ß=\tÁ)_x000D_\u0089_x0010__x0012_Ö\tÁüî.ð=)_x0003_Á_x0004_\u008a®\u009a_x0002__x0008__x0003_Á§À\u0089ç_x0007_*_x0003_Á_x000D_\"_x0010_¶±\u0099_x0003_ÁÚï\u0086á_x000D_L_x0003_Áì9\u009eMÌW_x0003_ÁÆ\u0086ó!/ÿ\tÁ6JÚ·G6_x0003_ÁÕ_x001A_\u009a_x0011_4?_x0003_Á_x0003_³ÁÅ«_x000E__x0003_ÁÇ&\u0098v«_x001D__x0003_Á_x0001__x0003_\u0089d_x0008_`+G_x0003_Á*eê^v\u0083_x0003_Á!o_x001D_ê\u009dI_x0003_Áym\u0098\u0085xh_x0003_Á}\"_x001D_VÐN_x0003_Áq:\u0082Ï \u008c_x0003_Áè_x0015_Ý^6T_x0003_Áû²)õÊ_x0003__x0003_Áx\u009eV9\u008fd_x0003_Áþ1ÖZn5_x0003_Á¨L\u0088²¢_x0004__x0003_ÁÍ\u0081¢Ì_x001B__x0017__x0003_Á_x0005_'¿_x000F_ç`_x0003_Áèî­z¨._x0003_ÁÝ\u0084º\u0086T_x001F__x0003_Á½¢ö£¨\"_x0003_ÁV¾¬_x0016_T_x0013__x0003_ÁBU,_x001C_-U_x0003_Á=\u0082ñ\u0086©ö\tÁ\u0082ó!_x0006_Ç'_x0003_Á\u0087Ç\u0096Q_x0018_!_x0003_ÁÇ¡dÿâÁ_x0003_Á ±3VÄa_x0003_Á_x0014__x0017_Èù\u0099<_x0003_ÁwöY\u009cì«_x0003_Á_x001B_^p\u0093_x0005_1_x0003_Áø\u00854ÁN5_x0003_Áj\u009f¼F¦&_x0003_Á¦fs_x0018_¼;_x0003_Á\u0092É\u007f_x0002_\u008a*_x0003_ÁNÌE_x0016_6(_x0003_ÁFõ×i_x0002__x0004_âû\tÁ_x001B_ßÕ$t1_x0004_Á\u008aÔ_x0005__x0001_&;_x0004_ÁÏ\u007f×\"¸=_x0004_Á.ªèÄS._x0004_Á.ì1P<A_x0004_Á_x000D_ûæ\u0087_x0007_0_x0004_Á\\¶7Ó\u0091@_x0004_ÁHC7íG3_x0004_Á$¼^h¡&_x0004_Á\u009c´<-Z<_x0004_ÁÍÌ\u0082.G9_x0004_Á'\u0084ùçe@_x0004_Á\u0091\u0089½\u007fÇ^_x0004_Áð,aÕ_R_x0004_ÁpQ u\u008d/_x0004_Á\u009d6_x0003_BE#_x0004_ÁzjZ$U[_x0004_ÁuÇÒ_x0015_)_x001A__x0004_ÁûnW_x0019_3._x0004_ÁrèÒU_x001D_>_x0004_Áª>_x0004_çÀ^_x0004_ÁÁDLÝT_x001B__x0004_Á_x0002_WO\u008båA_x0004_Á`µÙB_8_x0004_ÁUß·/²3_x0004_Á§ï\"\u0088GM_x0004_Á\u0094Ñ±_x0017_\u0097«\tÁØe«\u009a§@_x0004_ÁX_x0011_¹=Õ6_x0004_ÁH>-ä.D_x0004_Á0 \\ß\\=_x0004_Á_x0001__x0002__x0011_|ôËÌ,_x0002_Á_x0016_Z_x0003_ë\u0097Z_x0002_ÁB|_x0003_~\u008d-_x0002_Á<ëòA\u009fB_x0002_ÁXß_x0001_Þá&_x0002_Á}â¾U¶0_x0002_Á\u0087gU_x0013_®5_x0002_ÁOeÛ¨¦E_x0002_Á\u008e\u008eÐ¾\u008ex_x0002_Á®U_x0017_÷¤º_x0002_Á\u0095\u009c:I°c_x0002_Áø1rb¯N_x0002_Á°_x000C_Ð± ö\tÁ´\u0085B_x0018_³,_x0002_ÁÜLÚþå#_x0002_ÁÙå_x000D_\u0092ÒZ_x0002_Áb\t«ÄÂI_x0002_Á®·\u0092WJX_x0002_Á~f\u0090²çè\tÁzG>Íh_x0014__x0002_Á\u009c½Å¾o\\_x0002_Án=¤_x0007_ëD_x0002_Á\u0085BÈ-_x001D_^_x0002_Á}´\u0093tF$_x0002_Á\u008ds¾k@\u008c_x0002_Á\u0084òÉÉ_x0015_ú\tÁ_x000D_µ\u00852\u0098\\_x0002_Á4|\u008b_x0018_\"_x0012__x0002_Á*9¶Ä\u009e^_x0002_ÁU»\u007f\u009bû,_x0002_Áxex.àA_x0002_Á©zÄ¼_x0001__x0003_\u00806_x0003_Áñ#ú¹ôC_x0003_Á\u008b_x001B__x0019_¤ìò\tÁÅø©!À\u0087_x0003_Á!ï4i\u009d-"}},{"$cut":{"chars":139578,"head":"5f5f76404b0312174dbd7ca955197ffa_x0001__x0002_C¢ë7kSõÀ>Ä_x000C_B \u008föÀoÂ.¡\u008eøõÀ[hS_\tÎõÀ3\u0084I_x0002_E¨öÀ¶1_x0011_~_x0008_ÜõÀg\u0081º8µxõÀh\"¢¡ÑföÀ²Ã_x0012_m\u008e\u008cõÀE._x001A_ß9Í÷À)_x0003_ªZ»\töÀ0Jxÿ\\_x0005_öÀôB\u008c¢!uõÀ\u0080\u0080~\u0098ï0öÀÅ_x001B_eÛ\u0094­öÀdDn\u0090}îõÀ_x0006_wZ{hsöÀ.ÚGÊ_x0013_¹õÀ_x0011_ÿã>­möÀ_x0018_¢ØÛi\u009föÀ%\u008e[L[zöÀHºôU\u008fãõÀc¡²ý¸êõÀÚ_x0016_ùÓWüõÀe!,_x0002_í\u0098õÀ\u0099_x0015_~g_x0015_>õÀBBgò\u008d\u008föÀ{\u00905Ñ$ÞõÀóì?\u0082#\u008bõÀ9t\u008bª×£õÀ_x000C_±_x0001_\"tÎõÀÆ_x0019_Bø_x0003__x0006_D[öÀPËÓR4ÚöÀ}QÛ_x0017_Ñ5öÀe¼È\u008aUùõÀðÞuX_cõÀ÷vû_x0017_¬_x0018_öÀ\u0091}ÝSQ»õÀ\u00821ûâ.­öÀ_x0004_¬ùê/\töÀt¬_x0011_ElÓõÀ»$§mÀÍõÀÐb\u0099\u0080_x001D_]öÀ&\u008a \u0094ºÑõÀ`\\Äb=UõÀ¹_x0007__x0005_p\u0096\u0095õÀß÷§)~\"öÀÚÎÂ\\_x0002_¥õÀÊ_x0001_U%\u0085_x0014_öÀÛE\u009dj\u0091´öÀL¯l\u0088J\u0093õÀ_x001F_FBÁÝdõÀü¯¡BïJöÀQmÎ_x000B_ºðõÀb_Á%'°õÀI\u0088\u009d_x000D_\"ðõÀÚX½M_x0013_0öÀ\u0092\u0093ÒãìÛõÀÃ*¸\u008dãûöÀò6<\u009bÇ»õÀf/Ü]!jöÀ_x000B_ã_x0017_¬ÐíõÀ=zG.§\u0093õÀ_x0001__x0003_yJC$Ñ_x001F_öÀDb_x0013_ânSöÀ¨¦%º¥¹öÀmúË*6áõÀ_x001C_Nc\u008d_x0003_BöÀn\u0086\u0099Ï_x0004_íõÀFÉVw4_x000B_öÀ1\u0093\t4\u0092gõÀ9\u008f»´6_x0004_öÀ°F\u0094aRiöÀ_x001F_^²4UãôÀ_x0012_\u0089 ´ö\u0087öÀ7jîòÉ=õÀæ_x0001_ÍmüUöÀSÁK8®qõÀ,z\u0099N_x000C_ÈöÀ-_x0004_t²AÞöÀ'ø\u008fY/\u0098õÀlÿ¾Ý\u0091ãõÀ¨_x0010_\u0088³K_x001B_öÀD\u0095_x001E_°\u0088öõÀX\u0094¶\u0094ÌßõÀB*_x001B_$uÎõÀ¨ë_x000F_\"\u008c2öÀ\u008aÕîKjâöÀ×;­fÆoöÀçèô¸AÒõÀ_x0002_øVü\u0095÷õÀB_x001D_C._x0002_uöÀ\u009f0_x000C_ï£>öÀ<3\u0092ck\u0091õÀ_x001C_U¹S_x0006__x0007_ÙóöÀüµni\u0092ëõÀ(b\u009ada2öÀ\u0080²_x0001_B04öÀ\u0098è¤hCWöÀ$_x0005_\\\u0088?±öÀÆe[\\·#öÀÚã_x001B_ÉziöÀc\u008b~ØâY÷À_x0012_.t_x0017_È\u0098÷À9ë\u0083öã_x000F_öÀ¬ÛÂuÜ¨öÀÊ_x000B_ñ_x000D_F~öÀ\u0099á\u0081ýã\töÀÎÂñ ~TõÀ'3._x0004_`\u0088öÀê¼\u008fb£ÚõÀØõ\u0088_x0007_&_x000E_öÀ\t´`/_x0004_ÔõÀº\u0080_x0013_²ÎöõÀïLsÀTªõÀJ¥@û2_x0002_öÀÏ¯_x0003__x001E_¥^õÀ\u0099_x000C_\u0097°ÿ_x0014_öÀj¼Ôæ\u0092ùõÀ_x001B_\u0089EÚF\töÀuv%_x000B__x0002_ËöÀ__x0003_d_x0015_YcõÀ_x0005_ ï _x0014_föÀâúç\u009bð\\öÀÐñ\u008aúü_x0006_öÀàzgf\u009bÀõÀ_x0001__x0002_â39è_x0007_äõÀ`oÛF3%öÀ_x000E_Ö_x001A_\u0080¢9öÀ\u0084_x0005__x0002_!ü_x001E_÷Àü1¦ì½8öÀ>_x0014_ì¿Þ\u009cöÀÌ<w÷SmõÀ£w%E¶gõÀ5vÁcP\u0081öÀ_x001D_{\u009eXD\töÀ¬\u0098ã9b\u0095öÀ¼Ì)×£2øÀ5þù¼W_x0012_öÀxS\u0081_x0004_/\\öÀÚ0¯H\u0090³õÀÂ_x001F_h\u008b_x0011_¡õÀ¤_x001D_è_x0017_\u0085vöÀ*J_x001B_÷=)÷ÀO·t\u0092§_x001F_÷ÀJAò_x0004_O_x0017_öÀ\u0080\u0081â\u007fd_x0006_öÀÙ°_x000D_À-ÙöÀ\u0098ÆQForöÀö_x001B_ó_x0017__x0006_aöÀ[&8$9âõÀÅ\u008cqJÜÐõÀÆÆ£â½¸ôÀ\u0096×å\u0083È\u008eõÀ_x0013_\\\u0087$c³öÀX8O_x0015_\u008cÆõÀ_x0019_Ú\u0087þÛ\u0086öÀ*\u009a2_x0002__x0002__x0003_J\u0098õÀ\u0094\u0096,\u0083hóõÀR¡P2``õÀ¥Ë6;køõÀ_x001C_[pµlêõÀÚÇß±d;öÀ×pY_\u008f®õÀ¢\u009fDòìÿõÀ[å³GÒÖõÀ·¢'_x0006_gùöÀÞ,@ÊÞèõÀÔBìi\u0087ìöÀ\u009d&\u0094G_x0001_ïõÀÎgûô_x0004_ÙôÀ\u0093\"@_x000B_à3õÀ_x001B_M¾\u0086câõÀ²Ù­âo\u009eõÀß®ö³Û,öÀ\u0085_x0011_aDü\u0085õÀô_x001E_Æ\u008f_x0016_eöÀÃµÐÒì_x0019_öÀ_x0005_ô­_x0003_qîõÀw,_x0006_f_x0016_öõÀu5 ´_x0006_\u0089õÀ/ÿõ|_x0005_KöÀ\u009d?Å?ÐYöÀ \u007f8ÞÉ+öÀ¼o\u0097¬_x0003_)öÀ\u0084M6\u0082ºAõÀ\u0091£ÚlÊÙõÀ\u008dE_x0005_[ËnöÀp _á\u008d³õÀ_x0002__x0003_\u008dìüÒQ×õÀ}_x0013_»\u009e·}õÀ\u0087iðÖ¿\u0083öÀæ9âÒ12öÀL\u009a_x0012_ìû\töÀ¤_x0006_\u009eÍ§Y÷À_x0018_Ü:E\u008fÛõÀè>q_x000D_Ü\u0099öÀqÀ®û¤OõÀh¸t~\u0099ÞõÀ\u009cO¨Q¶´ôÀÂÀÑô´ßõÀ_x0001__x0002__x0002__x0002_x3_x000B_A_x0001__x0002__x0002__x0002_x3_x000B_A_x0001__x0002__x0002__x0002_x3_x000B_A_x0001__x0002__x0002__x0002_x3_x000B_A_x0001__x0002__x0002__x0002_x3_x000B_A_x0001__x0002__x0002__x0002_x3_x000B_A_x0001__x0002__x0002__x0002_x3_x000B_A_x0001__x0002__x0002__x0002_x3_x000B_A_x0001__x0002__x0002__x0002_x3_x000B_A_x0001__x0002__x0002__x0002_x3_x000B_A_x0001__x0002__x0002__x0002_x3_x000B_A_x0001__x0002__x0002__x0002_x3_x000B_A_x0001__x0002__x0002__x0002_x3_x000B_A_x0001__x0002__x0002__x0002_x3_x000B_A_x0001__x0002__x0002__x0002_x3_x000B_A_x0001__x0002__x0002__x0002_x3_x000B_A_x0001__x0002__x0002__x0002_x3_x000B_A_x0001__x0002__x0002__x0002_x3_x000B_A_x0001__x0002__x0002__x0002_x3_x000B_A_x0001__x0002__x0002__x0002__x0002__x0003_x3_x000B_A_x0001__x0002__x0002__x0002_x3_x000B_A_x0001__x0002__x0002__x0002_x3_x000B_A_x0001__x0002__x0002__x0002_x3_x000B_A_x0001__x0002__x0002__x0002_x3_x000B_A_x0001__x0002__x0002__x0002_x3_x000B_A_x0001__x0002__x0002__x0002_x3_x000B_A_x0001__x0002__x0002__x0002_x3_x000B_A_x0001__x0002__x0002__x0002_x3_x000B_A_x0001__x0002__x0002__x0002_x3_x000B_A_x0001__x0002__x0002__x0002_x3_x000B_A_x0001__x0002__x0002__x0002_x3_x000B_A_x0001__x0002__x0002__x0002_x3_x000B_A_x0001__x0002__x0002__x0002_x3_x000B_A_x0001__x0002__x0002__x0002_x3_x000B_A_x0001__x0002__x0002__x0002_x3_x000B_A_x0001__x0002__x0002__x0002_x3_x000B_A_x0001__x0002__x0002__x0002_x3_x000B_A_x0001__x0002__x0002__x0002_x3_x000B_A_x0001__x0002__x0002__x0002_x3_x000B_A_x0001__x0002__x0002__x0002_x3_x000B_A_x0001__x0002_"}},{"$cut":{"chars":76416,"head":"8085ff821610404ee015364ab95e87b6_x0002__x0005_@t_x0014_£Ç÷_x001D_A_x0019_¶ea_x001E_ò_x001D_AØ\u0095Á!ýö_x001D_A_x001A_9\u0098_x0004_<_x0005__x001E_A\u008d\u0093v¾¨û_x001D_A\u0080Ø®é\u009eå_x001D_A%Fl\u0093}×_x001D_Ah4_x0015_5_x000B_ç_x001D_Am\u0083~4_x000C_ê_x001D_A3~P*'ð_x001D_A´£ÃT{Á_x001D_AÏ_x0015_«n\u0084ø_x001D_Ak\u009eE¿r÷_x001D_Aø3\u0083\u0093;ã_x001D_A\u008cágLáç_x001D_Aq_x0003_$idô_x001D_A_x001C__x0011_Q÷\"á_x001D_AÌ_x000F_¾_x0012_­_x000D__x001E_A7Eíw|Ú_x001D_A\u0093ó\u0089×3ô_x001D_A\u009dÅRbòê_x001D_A\u008e_x000B_å\u009dßó_x001D_AXttT_x0016_æ_x001D_A­¡ZxÉë_x001D_AJ²\u0085Þ_é_x001D_A\u0080_x001A_K_x001D_ãã_x001D_A^ÚZ\u0097\u009eï_x001D_A_x000F_>nðãÙ_x001D_Ai\u0083\u0089#Jà_x001D_AÊ\u008aU_x0001_/â_x001D_A_x0015_¼~¤²õ_x001D_Aïàn`_x0004__x0006_\u0098Ö_x001D_A¸v·ÜÊù_x001D_A_x0018_¹Jg\u008fä_x001D_A±×U©\u0096Ö_x001D_A$·Á°ËÝ_x001D_Aä\u007f3m-Ö_x001D_A«²·)¼_x000E__x001E_AÇ3ÔX_x000C_ì_x001D_AïtbN_x000E_×_x001D_AGõ_x0001_ú¬Û_x001D_A¹eàìÙÕ_x001D_AÚ(²òÒø_x001D_AªÕ1|µ_x0003__x001E_A-ñ\u008e\u0097tî_x001D_A_x0019_Í\u008f¿\u0086_x0003__x001E_AÚ¯s#F_x0006__x001E_A_x0003_\u008eä\u0087Nô_x001D_AHêÔW\u009cå_x001D_A°\u0083{Ð5é_x001D_A\"E_x000F_¦8_x000C__x001E_Ah\t0\u0083ÖÙ_x001D_A_ÓÍñ\u0089_x000F__x001E_A¬­\u009ct\u009dë_x001D_Aá\u009bµ*_x001A_Ô_x001D_A_x0004_\u0095_x000B_¨®ó_x001D_AöJK£vã_x001D_Aª_x000F_×Ûçð_x001D_AsH_x000C_k\u0099Ö_x001D_AÈ6/çìÝ_x001D_A\\ô_x0018_ß9å_x001D_Aü_x0004_D_x0002_\u0086_x0012__x001E_A8_x001A_$ÁÖ_x0005__x001E_A_x0001_\t_x000C_éÕÎ*ñ_x001D_AÆëeµ+Ý_x001D_A\u0092°§*íù_x001D_Annô;\u0094_x0004__x001E_AË=ß+\u0080ù_x001D_AJ©5ÝÈä_x001D_A\u0097\\ù^2ï_x001D_A_x001B_^{_x0003_Í_x0008__x001E_A\u0094¬ä_x0012_6ô_x001D_A_x0003_\u008eä\u0087Nô_x001D_A\u0096Â¼1rþ_x001D_A¤. _x0014_=î_x001D_AâÐ\tªïí_x001D_AO$fþÚî_x001D_A+\t\u009cB\u007f_x000E__x001E_AâE¼(\u0081ì_x001D_AsH_x000C_k\u0099Ö_x001D_A£§_x0007_Ð\u009fÝ_x001D_AûM_x0004_4}ë_x001D_A>Él_x000B__x0005__x0014__x001E_AÎE\u009a÷7ç_x001D_A\u0084Îg_x0013_ïê_x001D_A_x0014_Óxº¹â_x001D_A\u0090_x000D_|_x0018_õÕ_x001D_A 2£\u0080_x000E_Û_x001D_A\u008a/ù\u0085Âã_x001D_A%6Î³²ø_x001D_Afÿ\u008f_x0006_Bä_x001D_A_x0007_\u0085\u009eÕk_x000E__x001E_A.]=z8ø_x001D_A\u0088_x0010_û_x0002_\u008fì_x001D_A+\t\u009cB_x0001__x0004_\u007f_x000E__x001E_AüøË©_x0004_û_x001D_A¬WðäFõ_x001D_A\u0089xÃË_x0017_ï_x001D_Aà&_x001D_Ë$_x0001__x001E_An'E_x0015_%ï_x001D_A5vÔGGø_x001D_A\u0080O\u008b\\©ã_x001D_A_x000D__x001F_z¿;Å_x001D_AEy´è\u0090á_x001D_A\u0084XrP\u0098ë_x001D_AÍ\u009c\u0087~5_x000E__x001E_A ¯ú_x0004_3î_x001D_AHöw%!â_x001D_A)4Ð\u0083ìè_x001D_Am<DwË_x0005__x001E_A^{t_x0012_úç_x001D_A\\3m\u009f\u0090ä_x001D_A#\u0090N8Æå_x001D_Aô_x0006_\u0090ÜØ_x000D__x001E_AS\u0098)ë~\t_x001E_AZüPbÿÛ_x001D_ATA_x0010_\u007f\u007fæ_x001D_AúÙ÷ñoÿ_x001D_AÓ\u008fg_x0002_î_x0003__x001E_Aú¤wÀUð_x001D_AUç«\u008e_x0017_þ_x001D_A¹O:Ñfì_x001D_A_x0019_Cr_x001F_ûâ_x001D_A\u009aaØf0î_x001D_A\u009eu.·bå_x001D_Aß£_x001C_wðã_x001D_A_x0001__x0004_@/H³ìù_x001D_AX\u008dm1\u0085×_x001D_A `_x0018_'_x001C_à_x001D_A\u009cf_x0012_»ÔÕ_x001D_AÛ8\\_x0005_©è_x001D_AZüPbÿÛ_x001D_AÄA¸Qùõ_x001D_A\u0094_x001B__x001A_\u009bÝÓ_x001D_A\u0098\u008e¡Â _x000C__x001E_A_x000E_ [_x001E__x0012_ê_x001D_Aª\u008e«c\u009b_x0002__x001E_Ae_x000E_(w²_x0002__x001E_AÜU_x0005_\u0091\u009bö_x001D_A\u0087h_x0003_©ªë_x001D_Aë_x0008_¢´ªÞ_x001D_A\u009a\u0098(g¯í_x001D_AS_x001D_@\u0081nç_x001D_A8Ü*\u0087]é_x001D_A_x0018__x001A_ôßæÜ_x001D_A\u008aÏ_x0011_2Ô_x0002__x001E_A_x000B__x000B_øt4ÿ_x001D_A°\u0083{Ð5é_x001D_Aá{\u0099=Xâ_x001D_A \u0083_x0012_3_x0018_ü_x001D_A_x0002_\tª>_x0011_à_x001D_A_x0014_ØNhãÙ_x001D_A\u007fÙ§ÜÐí_x001D_A\u008e_x0014_¶Cóì_x001D_A\u0096\u0087\u008fh×ù_x001D_A\u009f6Õ\u0093\u009dê_x001D_AîZ._x0001_Ã_x0004__x001E_Aw¨\u008d\\_x0002__x0007_;ú_x001D_A[mEl&Ú_x001D_A:·¥_x0006_Wý_x001D_AÊP_x0017_q\u0081Ù_x001D_A¸ëm«\u0099Ú_x001D_Aé9\u0095yÉÜ_x001D_As_x0001_é½\u008b_x0008__x001E_A\u009b\t\\Àl_x0016__x001E_AÝJ.V#×_x001D_AÏ«\u0083@Ró_x001D_Aé9\u0095yÉÜ_x001D_Aêk\u0092ã}é_x001D_AP\tR$|_x000D__x001E_A¨pø\u0081µí_x001D_A_x0017_v.à7_x0005__x001E_A\u008cê¥\u008cD_x0013__x001E_A\u0082¢_x0006_\u008eJ\t_x001E_Ab×vÔeå_x001D_A_x0004_dW_x000E__x0003__x0013__x001E_AÝÛ\u009fî\u0083å_x001D_Ar\\ÀøÄÙ_x001D_AoÒ3¿Êú_x001D_A\u008cágLáç_x001D_Ah_\"\u0093Éö_x001D_A¯jØ_x001E_b_x0001__x001E_A<\u008bþdÚå_x001D_A\u0091*\u0087y§ì_x001D_Alªq\u008f}þ_x001D_AM|TJ¨Û_x001D_A``ÞTÏï_x001D_A_x0018_?!ØwÆ_x001D_Aur÷E>Ø_x001D_A_x0002__x0008_\u0096*¬éCÛ_x001D_A_x0003_½¦­ñ_x0006__x001E_A5Hi`_x001A_ü_x001D_A÷]_x0016_ß_x0005_à_x001D_A_x0003_wü!³Ø_x001D_Az\u008c_x0004_ú¦ä_x001D_A\u0099¯YÊ_x0001_ò_x001D_A\u0084yOy­ü_x001D_A_x0014_Ô+U_x0016__x0003__x001E_A7¥©#*ß_x001D_A\u0099¯YÊ_x0001_ò_x001D_A4óM\u0082+ê_x001D_A\u009d\u009a<'¼_x000C__x001E_A¨ð!K¾ã_x001D_AHêÔW\u009cå_x001D_A+m} iû_x001D_AD_x001F_(_x0018__x001C_û_x001D_Aè­@Ì_x0017_Þ_x001D_A¢óg\u008eÈÝ_x001D_A\u0090RPá£ì_x001D_A¦ë\u0085\u0083»ä_x001D_A_x0004_dW_x000E__x0003__x0013__x001E_AÒ_x0010__\u0092Ùç_x001D_AQÚÒ=Öç_x001D_A³;_x0017_U,ù"}},{"$cut":{"chars":63300,"head":"2c8a03874776204a0e74e1243c98e668_x0002__x0004_\u009e?egoñ_x0019_A¥ÎÏÙ¥²_x0019_A9ò_x0005_p_x0006_ü_x0019_Aÿ?dÄ_x0005_g_x0019_A`M_x0008_\u009eT®_x0019_A_x0017_[fí¯\u009e_x0019_Aej\u0089_x001D__x001C_Ù_x0019_ANÉ3\u0097,¤_x0019_A^´º¯ñ\u0081_x0019_Aô_x001A_x_x001D_ À_x0019_A@ª´_x001B_\u0091m_x0019_A\u0085¡ÌÝ_x001C_\u008f_x0019_A_x0011_ãÆÉÂ\u009d_x0019_A¯%c_x000E_Ïþ_x0019_A_x000B_é7;T¨_x0019_AòÉè\u008fÚÃ_x0019_AP)âIIª_x0019_A\u008cÎwLÄÈ_x0019_AVM+\u0090 Å_x0019_A_x0001_VZR{«_x0019_AC_x000D_¬_1¾_x0019_A¾±Ú\u0084:Ý_x0019_A\u008aâ²£±¥_x0019_Aê=wyNË_x0019_Ah¿C_x000D_õ\u0087_x0019_Aù\tü_x001B_Rc_x0019_AÜ;à\u009flm_x0019_A³çàE?­_x0019_A~ð°_x0003_(\u008b_x0019_AY\u0091Íï_x0002_ë_x0019_AhÔl_x0011_\u0096®_x0019_AF9·ñ_x0002__x0003_å\u009c_x0019_AW\u009aï~pZ_x0019_Ava\u008a6k\u0088_x0019_A¥÷!\u008e»\u009b_x0019_ADö(C\u0083Â_x0019_AëÍ´:K¥_x0019_ARa&§#Î_x0019_A±\u0091îhÛÎ_x0019_A#Çï\u009d]à_x0019_A_x0006_³E}H=_x0019_A\u0084MDÞÞ»_x0019_AdÞY_x0008__x000E__x0007__x001A_AX/õªë _x0019_AÅ_x001E_Z_x0010_( _x0019_A_x0002_É_x0002__x0010_\u0081\u008b_x0019_Aìj«ô\u0089¡_x0019_Aô£¯Æ'ó_x0019_Aç¸¢ØÜ¶_x0019_A\u0080$¾Ô´_x0007__x001A_AøºLï\u0099\u009c_x0019_A\\ÜSjÁq_x0019_AO_x0010_üÀ\u008fq_x0019_AaÒü&_x0015_«_x0019_A|¾£\u0094Ä§_x0019_A\u00907å2cä_x0019_Avà}ùW»_x0019_AôxÀ§_x0007_\u0086_x0019_A¥Ál_x0007_åö_x0019_ArÎä\u0095¯½_x0019_A_x001B_g_x0001__x0004_\u008fc_x0019_A\"ÂÅÈÄg_x0019_A_x0008_ñ_x0013_0ëì_x0019_A_x0002__x0003_\u0082_x001F_z¥Gð_x0019_ASËK·\u008d\u008e_x0019_A§Md\u0081\u008bo_x0019_A/_'eUØ_x0019_A\u0081È`áp\u008d_x0019_Aú\u0088P6Ø¥_x0019_Aö-<m¾ð_x0019_A(_x001D_CG>÷_x0019_A\u008e±¦Xý\u0098_x0019_A5_8¼\u0093Æ_x0019_A¥ÒÉÁ!\u008f_x0019_AØ\u0082Éò0\u0083_x0019_A\u008do·LÁ´_x0019_Añ\\ù_x0001_jÁ_x0019_AÈ« _x001E_[È_x0019_A\u0086$_x0008_¶8\u008a_x0019_Aø,Ù,^î_x0019_A@\u008dPO8÷_x0019_A\u009ej\u009b\u008aº\t_x001A_A_x0004_.µºÙí_x0019_A»V§H½ì_x0019_Ae\u008dVZM¾_x0019_Aòò_x0011_\u0096\u009e_x000E__x001A_AÊ\"_x0007_ÛÊº_x0019_AÊ_x0014__x001B_v_x0007_Ô_x0019_A_x000C_ø_x0001_\u009e_x000F_\u0092_x0019_A_x0008_úÔè\u0088\u009d_x0019_A|öÝM\u0092«_x0019_Aí+°Q_x000D_ _x0019_Aß¸¯¶_x001E_Ü_x0019_A®C_x0011_#äÇ_x0019_AÚ\u0095\u009dJ_x0001__x0002_ØÕ_x0019_A\u0088uufOÄ_x0019_AK¡{_x000D_b\u009b_x0019_Aç1Tk\u008bù_x0019_A°_x001F_ìT_x001C_¯_x0019_AÎd\u0089¶\u009cW_x0019_Aýìà\u0096×ù_x0019_Aþ_x000E__x0005_i/t_x0019_A309grä_x0019_A¾\u0085Rõ\u008aí_x0019_AWD¹ÅqÔ_x0019_A;Î¯\u0088u¶_x0019_Añ+¹bfÏ_x0019_AæÖÎçBê_x0019_AXQ¢_x000C_'±_x0019_Ai¶<²ÐÆ_x0019_AuPÊû\u008do_x0019_A_x0011_G}Nã¡_x0019_Aü`dZ=\u0091_x0019_A\u0090QûkH9_x0019_AFq$ïè\u0087_x0019_A;>8®#¬_x0019_A¿\u009d5f@\u009f_x0019_Að\u009cw\u009a\u0087÷_x0019_AÌôÅwl\u008d_x0019_AI*Í³\u0090\u009f_x0019_AÎÉt½|\u008a_x0019_AÍ_x0004_­¥¢¦_x0019_A\u0086äW_x001C_ù{_x0019_AWèä¸óf_x0019_AÎH«_x0018_Á¦_x0019_A_x001B_ÈR·¢ê_x0019_A_x0002__x0003__x001F_ñ2\u0095Í«_x0019_AUÔwT£\u0099_x0019_AF_x0002_½ôª\u0082_x0019_A\\ì\u0083æÀà_x0019_AÞq\u0096p\u0099á_x0019_Aó×\u0081æ\u008aº_x0019_AÊ±ÙG¿·_x0019_A_x0005_áéÂvÿ_x0019_Aµº\u0099­_x0001_o_x0019_Al\u0084´X%Ü_x0019_AL)\u00903³\u0098_x0019_A\u0087Ç¨_x0006_)\u0096_x0019_Am÷ó¡\u0093\u0086_x0019_A'\u008dï_x000E_\u00852_x0019_Aø_x0001__x001C_®>\u0086_x0019_AÚÅt¸o\u0081_x0019_A3çZÁ|¥_x0019_Av#u-_x001A_½_x0019_Aï0_x0011__x0014_¥ã_x0019_A4´¸¸D¶_x0019_Ae(Õ_x0008_nà_x0019_Aw_x0002_åÕ\u0090Ý_x0019_A7@9ÁL\u009e_x0019_Aº»_x001A_è\u0099ò_x0019_A;á<\u0080Ð\u0093_x0019_ADÆò_x000F_®¨_x0019_A\u0097_x001D_\u0081x_x000B_1_x0019_AgVv\u0092\u009fw_x0019_AR_x0011_h._x0001_Í_x0019_AªGwì®\u0097_x0019_A\u0094\u0099_x001E_$_x001F_Æ_x0019_A¿Hî·_x0003__x0004_§y_x0019_AF/ía#õ_x0019_AÜdÜÎÙ\u0088_x0019_A\u0083{»ÁñÖ_x0019_A·\\I\u0088nb_x0019_AA>_x0013_Z\u0092Ñ_x0019_Aéûb/6e_x0019_A_x0007_t_x0016_ÐPÇ_x0019_A_x0006_ ­êø\u009d_x0019_A:_x0001_÷\\E\u009a_x0019_AZYå\u009dÌÕ_x0019_A¸QÓµ£W_x0019_AJ\u0092_x000D_À7h_x0019_AÐ½\u007fë\\\u0085_x0019_AúÏ_x0002_­_x0012_\u0097_x0019_A¦aÂyÚ®_x0019_A\u0080xã=[Å_x0019_AUu\u008c_x0018_J¥_x0019_Aw(sº_x001E_:_x0019_A\u008euÈ\u008eé¯_x0019_Aë\u0094\"Ff _x0019_AèO7ý7t_x0019_Að.\u009bÓKô_x0019_A!\u0097)_x0019_ZÒ_x0019_AÌ4[<ð\u009d_x0019_A\u0089_x000C_rI\u0098ò_x0019_AèÞ£7\u0095Æ_x0019_A_x001B_¾\t§\u0082©_x0019_A_x001E_¼_x0001_^TÂ_x0019_AN?_x0018_¶nj_x0019_A`_x001C_£J_x001B_¬_x0019_A\u0082_x001F_z¥Gð_x0019_A_x0001__x0004_qÒ¬¾³Á_x0019_A\u008fOiþK\u0087_x0019_A(¹_x000C_@ýb_x0019_AdÌ_x0004_}:¸_x0019_A­21 ¢ô_x0019_Aí\u0089/ðU³_x0019_AÅ_x001E_Z_x0010_( _x0019_AàÖâf=_x0001__x001A_A_x0013_÷øïý\u008e_x0019_A_x0010_N_x0004_÷]\u008e_x0019_A_x0010_ó\u0089\u0091ër_x0019_A_x0016_?_x0016__x0004_Zv_x0019_A\u008fCQÂ&Ú_x0019_A2æ>)Ä§_x0019_AÏ3òs«§_x0019_AX+¯p¶\u0081_x0019_Aß=L\u0093¥_x0004__x001A_AsT1£¶Ï_x0019_AÕ³Ìj\u007f\u007f_x0019_AÂF_ñåX_x0019_AmN<_x001C_Äå_x0019_A-Ò\u009e\u0091Í­_x0019_AÃÏô_x0002_÷\u009b_x0019_AC8ò¹_x0016_\u008d_x0019_AM_x0017__x0004__x001D_ø _x0019_Añ@_x0017_D~À_x0019_AÖ_x0003_,\u0084Jx_x0019_A¾M_x001A_\u0080¬ã_x0019_A¡QF_x0016_\u007få_x0019_AÈ`__x000E_Iª_x0019_A4\u0088\u0096äùÈ_x0019_A\u009ahx\u0087_x0002__x0004_\u008f¡_x0019_A\u0097_x001D_\u0081x_x000B_1_x0019_A\u0081uWzæ\u0097_x0019_AÃ_x001C_R¬\u0099û_x"}},{"$cut":{"chars":51978,"head":"1d7d8469e7de735526a9b5427c4a89d9_x0004__x0006__x0011_V_x001A__x001C_;Ôq@{_x000C_ó_x0008_ûøvÀ_x0013_IË\u00943.8À7ô÷\u00863ô\u0081À_x000E__x0011_]A\u0088_x0002_yÀ\u0089¥äWi\u0089_x001D_@Òm\u008aÚ~Ðr@l_x001B_Û\u0092¦\\\u0095À#\u0085$[¡#\u0092@\u0090n_x0019_.×\u007f1À¦Am¢Ô²\u0086@»^ì½sá_@î¾¨:_x0015_a\u0086@VµG´\u0086w\u007f@êè_x0017_kØ¤GÀ\u007fõt\"5ír@_x0019__x0001_¨\u0092àÓs@Å\\M«¬V\u009cÀ¯8ØzÔ¶+@º\u0090\u0098\u0090 ídÀ_x0004_)2øÆX\u0081@®_x0003_µ\u008añÕZÀCì_x0005_b§ç~@¨KU\u0080Å*\u0090À.8Q_x0007_ö¬\u008bÀå\u0095lÊJXTÀ\u008fQ_x0016_ë{Òg@B)±¤ÝªbÀÞ\u0081í©º_x0019_b@É\u008e¼£¸¶\u008c@_x001A_Øh~_x0003_ó\u0082@(\u0091J_x0010__x0001__x0008_R\u008bp@r@óCD\u0092x@_x0003_Ô_x0015_©ñA^Àõ_x0001_ËÂ%\u0081TÀ×°|ý3K\u008a@«h\u0082=\u0087_x000C_iÀ\u0094ÅSH¸#G@<'æß<=\u0087À·_x0006_±ti¬_@[ªNYd8\u0084@ÅnnI\u0082ñsÀ¶_x000E_Ù_x0008_Q#\u0093À§5c\u0088_x0019_gd@å_x0014_´\u0084\u0086H\u008c@9Ã\u009b°Û\u009c\u0093@Ìè_x0013_á}_x0006_\u0082@_x000B_fÌSeP|@åa\u0081_x001F_Ëù5@ï¨²ò¬b\u0081@W_x000D_'|ÈYzÀËð¯¤._x001C_S@ÑÔÓÿóÄD@ñ§w=$HwÀ_x000E_>_x0018__x0019_e¹\u009cÀðd_x0002__x0018_$°aÀG\u0081 ï_x001E_º_x001F_@_x0005_³\u0089_x0007_\u0096¶\u0080À±É%\u0088b@\u0099ÀÔíu¯ó_x0004_\u0082ÀZ`À_x0014_\u0095¥\u0084@\u0085_x0016_°z¸½_x001A_À¡kâÒ_x001B__x0007_~@_x0001__x0002_\u0094ó\u0097^©\u0094\u0098Àl]CÖ_x0003_Oz@î\\¾D\u0090OjÀUP_x0018_²PPm@äõ^öß¼\u0082@n_x0006_üÞÝ\u0085\u0082ÀGèW\u008f_x0017_·\u008b@â^>\u008cbÑc@Aø¸â_x0018_\u009e\u007fÀX`J_x0017_Ö²\u0095Àj.ÓÊ\u0086\u0087\u0085ÀÞzntqjh@_x0001_w\u0094À7Î\u0083@\u0083\u009e«ÔJ*\u008f@\"W_x000C_\u0090ÈÇs@ÄD²ñ§×\u008bÀ_x001D_Ãó\u008d8vaÀñ_x001A__x0001_.:\u0083wÀ¡ìTþ_x0005_\u008cR@Ä*1þú\u009b\u009bÀ\u007f¼\u008aák_x001A_k@_x0019_Fs©_x001E_çyÀt\\tï\u009f3tÀoúâ'd®\u0098À\u0087ûF\u0096ÓógÀð0Î·ÈJ\u0081Àþ\u0085é\u00857¦\u0084À¨\u0093ã;dVvÀ¯îB¾à3c@\u0093D[\u008a+º\u0085À_x000F_/^É±gr@_x0011_}¯r_x0001__x0002_üÌ~@\u008d\u007f\u0084FÚª\u0085@\\n\u0082-$le@©ICÿ\u0091µ~@­_x001E_þ$\u0085_x001D_\u008cÀÂzg)à·e@ò9\"  \u008dx@\"ÑÎqL_x0007__ÀP_x0012_:DD°\u0086@jøäd[g{@º\u009a­º_x0016_ß\u0096ÀvývB\\V\u0086@ß_x0017_F\u0097Üf`ÀW»^n\u0085/VÀ\u008d2¾\u0086\u0096Ñ}À\u009bö¼ävÙ_x001F_@Ì\u0084<\u009b_x000B_o6@«Åè,\u0097¦\u0081ÀQ¸*a2å\u0081À2¯f¤\u0091_x0005_¾À¯_x000F_Èñn_x001B_\u0097ÀÚ<÷'§_x000D_\u0081À_\u0083-wØJ\u0092À\u0085º\u0096\u008f*½\u008aÀJ\u0095ÜÀ?_x001C_AÀ\u008c<'\u0082\u009aÀ\u008c@Ê¿\u009fê\u008cÈ\u0089À.\u0089\u009cº_x0010_ê\u0098À\u0089+#\u009agúk@3_x0004_\u0086bËÞp@\u0085äA_x001B_`l^@_x001A_l\u008bg'Ô\u0092À_x0002__x0003_§\u0094_x0005_!wÚ\u008cÀÖ\u0083\u008c.\u009a©x@|\u007f¿T_x0010_ìt@d\u008dÏI]ª\u0084@&vØ.I.}@_x000C_3lÑé¡\u0085@GfÄù5_x0003_f@è­#Bà³\u0095Àû\u0090%G\u0087\u0084\u008c@\u0096ó<G\u009e `@ÖÈ\"}±~\u0099Àd!\u007f¾@Ó\u0088À§ \u009aÏôÆg@é_x0016_ã®e_x0014_~@ÊUïÑ¼Øc@_x000C_>_x0003_\u009bWÂ~@µ[\u009a_x001D_ã\u0099\u0090ÀÉ_x0004_<M_/\u008a@ÏÉ]»þ*\u0082ÀË¬*¾]½qÀ\u0088y_x0017_Mí3\u008f@°\u0086z°\u009ds\u008a@zÐ âÃ_x000F_\u008f@\u0094éC_x0012_ \t\u0082@_x0015_«_x000D_?_x000B_¯e@ÿ<_A\u0093¸gÀËÔ\\Ç?ÿ{@_x0015_¾bë\u009b_x0019_{ÀÞ\u0090\u0098_x0018_Ú\u009ay@P,_x0015_D_x0017_¢mÀ_x0002__x0017_\u007fPm_x0001_yÀü\u009b-_x0008__x0001__x0002_\"Á\u0098ÀCl!éh\u0091y@\u0095_x0003_ü×ÍXtÀ%Òg_x001C__x000C_Q{@~ãOjó'e@õ\u008c1\u009bå9v@À«R\u0083ãTkÀfÒu«\"z\u0080@+a\u008b\u0087\u0096_x0014_YÀ\u008c!%_x0003_C_x0002_\u0080@À¥¾;_x0010_:q@å)G\u0092Ï_x0012_pÀÚo§n\u0097_x001F_z@HÃr¼Þñp@E¸iq\\¬\u008a@òú\u0083QW_x0001_\u0080Àæ©ïû5\u0083{ÀXWÌ\u0089^Æ\u008c@5\u009d\u0097ð¿ª\u0087ÀU¤_x0016_V_x001A_¡gÀ`@y\u0083Þd|ÀÔ_x001B_´Û;S|@0©,j¤¤\u0090ÀÈÉ\u007f§\u0094_x0013_U@º_x0016_EwåÜÐ¿è\u0087_x0012_>\u0085ÎKÀ¶\u009bVGG\u0082\u0092@¾\u009bJFêÖ\u0096À_x0006_¼×6v_x000D_\\Àã_x0005_0ç\u0082g_@7ó-_VÜu@õ,Wy $S@_x0002__x0004_Kl¾#Ý\u0095bÀ­\tÖOù;z@ã^<b_x000F_zwÀªÊ_x0018_çY(8ÀËB_x000C_ß°;x@_x0017_\u0089e\u0094_x0007_\u0091w@p<Ù¾_x001F__x0017_y@_x0005_.ófº${@%·9®`©\u0089@\u0091ÑDü'ã\u008aÀªéR­_x0004_º\u0081Àøõ\u0088\u009f¹ÓpÀ4-~¼\u0080­s@Æ~¸º_x001C_J\u007fÀé\u009ed_x0004_ëÃc@_x0007_`sOÛÒ\u0092@RÆQ;j¢\u0082@_x0016_ÁÍð¾ q@õ\u0090F_x001D_þ_x0004_jÀØì³/·Ð\u008bÀC±®[h\u0096w@ÓsJ±_x000D_Áe@=\u0081&\u0096\u0083ß\u0093@_x0019_AÙG4òuÀv(\u0096oiÔ\u0080@vñë\u008e_x0014_\u008a¦ÀN\u0083_x0004_\u0099H_x0003_c@Ó_x001A_!ç_x001A_Ö`@\u009d#>_x001E_\u0094£tÀ_x000D_¿_x0007_Â_x0001_'xÀ¨fú\u0080y\u0095{@t_x000B_%Ç_x0004__x0005__x001D_pzÀ\u009d\u007f5_x0008_\u009d_x0002_\u0084@\u00908_x0005__x001D_Ò<q@DTë\u008cü_x000D_]@Í1ÀÖ9YzÀ_x0008_X\u0089÷\u009cæ\u008dÀN_x001D_õ¿Kâd@áþ±E_x000E_)B@ã\u009d6_x000B_\u009bßTÀ!ùZxc\u008a\u0080@T^%w8Æ\u0084À{õ­.ø¾gÀþü#C\u008co\u0085À_x000C_G-\u008eÁè\\@_x0007__x001A_\u008eô*lz@6_x0018_ý¦Å¸\u008d@\u008bvÙoCØ\u0083@¥2\u008e0T¶|@º7\u0090)fÂ|@g©+JèI~@¨_x0010_1¹sô{ÀùêI¾(Åv@á:t\u0082Û\u008ey@°a­¯_x0013_\"\u008aÀ_x000F_XÈ´a{t@%_x0003_Ñ_bg\u0080@J­_x0018_*v_x0018_p@0mAåÛ}\u009aÀc¤\u009bI_x0012__g@\u0086ÐÀ\"P\u0085\u0089À_x0001_$ëÎè\u0083p@_x0014_~â_x001E_I\u0093\u0088@_x0002__x0005_,ãQ©æ7\u0086À1¸_x000F_ç\u0084\u009e\u0082@ÛBÑ_x0006_\u009cØ\u0083@M`ç\u0096_x0001__x0008_{@_x0006_?_x0005__x001E_\u007f_x000C_DÀ\u0098í~Õ®O\u008aÀyÏ;¨EI~@aóëá)Ê\u009fÀUí½ó¹_x0012_\u0081@³Ð¤|_x0016_Õ\u0084@Û/úïAEqÀRÁ.ó)ÿ\u0090@y`Õ¿3<k@µ2\u008fBÚ_x0003_\u0088Àî_x001B_óô\\´AÀùT¢.(¼x@ì)_x0014_ý\u008a-gÀÛ\u009c£1ÊN\u0099À¹³\u0083ÏÀ\u0080R@_x001B_\u0099_x001B_s4_x001C_M@¯Ð\u009d9?ÃvÀH¾Gíï\u0097\u0080À\u0099é(¦\u0089\u0097{@p\u0081\u008b\u0097a¨HÀ»\u0083ÏxE{\u008dÀxp\u008fÅ\u008cÚ\u009bÀç<èÏf_x001C_\u0097À,¸_x0004_öNü{@Vó\u008d8Á_x001D_e@_x000F_I×ýéÿ\u0080ÀtÙG[ÉÈJÀÅ¹¶Ã_x0001__x0002_*_x0011_\u0088@G5\u008e¯ô_x000B_\u0093@_x001E_ØEÕx\u0098v@éË_x001D_×Ð\u0091\u0093À1ílæ Ó3À9#\u007f:ZD\u0084@£\u008f\u0083¡fÇ'@ü¼ Wû®pÀT³âØ_x001F_ \u008b@l»_x001E_rÏ*\u0089@¬\u009f½¬_x001C__x0013_~@A4_x000B_ÄÐä\u0083@»1#\u0086D·bÀ93k·1ÞpÀ\u008b%±\u0093àUE@Þv_x0005_Ò\u009d$\u0093@\u0087Îà_x0007_úô\u0097À³\u0081_x001B_×_x0018__x001B_\u0084Àí5l_x0008_\u0090´g@rbÄ\u0084_Ê\u008c@_x001A_cÉhÅ6~@_x0006_GÃL_x0001_#v@òJ×';x\u0082@\u009b_x0002_§g_x0003_vh@7_x001E_ü®_x0003_ô\u0086@¬_x0004_\u0081­~Ý\u0098À\u008e _x0019__x001B__x0006_\u008d\u0083À\u009a®q:Äd\u0087@\u0095Eô»\u0085gx@\u0098'nH6¡d@\u00972³0\u0082_x0016_vÀ_x000E_~\u009bä\u008akj@_x0001__x000"}},{"$cut":{"chars":53646,"head":"502f02b262e1ba8a6c4661cf06a64f36_x0001__x0002_vIïzm_x0008_\u0080ÀÚb=\u0095_x001F_{\u009b@_x0008_U_x0017_Iûò¡À\u008d;_x0004_KA\u0090sÀËodÌ-< @en_x000C_¤¼_x0013_¦ÀW×Ç±ÂÀY@ðïý¥Åê\u0096@Ú_x000D_#_x0005_Ë$\u009dÀ¼f_x000C_{seqÀ_x0013_DÖ_x0002_\u0093\u0086\u0080À¿<Ý\\ö©K@P\u0084x6¼ï\u0086À6m\t5Ây\u0083@\u008d_x0014_\u0093oG-¦ÀRZö·®ÎjÀ_x0018_sÆ_x0013_z ¤@û_x000D_%Üì_x001F_§@\u0090\u009e[\u008f_x000E__x001D_\u0091@Tìð\u008fã\u0088y@SMGí_x0019_ò\u0099@âW\"Ë5.\u0083À:ÃÖÏjn\u0081À\u0094\u0098_ä'(A@Lqg\u0095_x001C__x0002_\u009bÀó\\ÏB_x000F_¹\u0083@æïP¦ÚÎ\u0083@âúè_x0007_\u0095Z\u008fÀ\t¶©-j¿\u0097Àõ,\u009a\u009c\u0092YyÀ_x0002_-d,E_x0017_\u009b@Ý§Ð&_x0002__x0003_\u009e;rÀ×ïA2_x0006__x001C_:Àu_x000B_a²\u009bñ\u0093@ú.\u0094\u0095\u008eã\u009fÀ_x0001_ií;u\u008e§À'½#gl_x0012_\"ÀéFO¡÷jtÀØ_x0019_8_x001E_\u0080}\u0085@UñªÌ,_x001B_nÀÔ£\u0092hlbrÀ_x000C_Í{+÷\u0083\u0088À\u0099\u0097'üÎ¥R@\u009d_x0018__x0011_\u0094\u0090ÿ\u008cÀå\"Ö¢ÙíkÀü%á­ÙF\u0080ÀÅÄ\u0095ì_x0013_þ\u0090@\u0084_x0012_C\u0086¬D\u0097ÀÚBlGÔmfÀB\u008d\u0080ès_x0010_¢@\u0097)`\u0089\tÍ`À­L\u008b{_x000B__x000E_\u0082@qQø\u0081\u0082}\u0082À_x0016_Qª\u0087>ÂmÀ\u009d\u0080u\u0099ª\u0092}À3sÏkÑFbÀ&ï_x0017_ø:ª_@\u0091\u0090\u0084A\u009cè\u009dÀK#À _x0014__x0006_\u0091@^:¾Ù»#5@Î_x001C_ÙþapsÀkx_x0005_éÇ_x0018_sÀd_x0012__x0013_\u009fÃôzÀ_x0001__x0002_\u009dÔY\u009a\u008f,AÀó\u0083\u007f\\\u008a\u009a£À#ª\u009c6´w\u0083@_x0013_÷[~V_x001E_R@$RcÏ _x0007_kÀ_x0018_\u0094©_x0010_ý\u0095\u0082ÀxG¥_x0005_lò_x001E_À×ó_R|±¢Àù¦}\u008a\u0081÷EÀóxðCëbNÀ\u009a_x0005_$K2[\u0096À.\u0099ZT¥h\u0096@?J\u009cákB\u0088ÀÄAÉ¼\u009e_x000D_|À¶xH\u0099Îºb@Ø¨«\u0091_x0018_!LÀØ%_x0016_¤:X\u0081À~×\u0099ûÑ*\u0099À\u0082Å6\tL&\u0085À\u0096u®äÙ\u0098r@®\u0091Kªì³\u0084ÀÃ¦'$Fy{À\u009a[j¢õ_x001A_tÀÐ_x0005_¼Úl_x0005_\u0094ÀÁ_x0008_±\u0080ß`_À\u0087oáµÄ_x0004_>À\u0094]ß\u008d_x0006_Y\u0090À_x0004_\tµoÄ!\u0080ÀøÅïÞb_x001F_u@d\\=ÓG\u0090\u0082@¾ÊûÌ/ëtÀ+)Îu_x0001__x0002_hN\u0094@}â\u008f\u008a*Ð\u0092À¬ûËÔ\u0097d\u0083ÀsW,¨ªï\u0085@_x0019_ê\u008fÌ×¶\u0090@Â¬_x0001_R_x001D_)¤@.u{^Ýzr@LWx\u009eã1\u0096@*N\u008d¯´Á\u0095À®ä#O\u0083=\u0080À\u008d<\u0081oX:RÀt\u009a°xf\u0081k@\u0094,S{\u009c¤\u008fÀ_x001D__x0019_\u0083ºÚÕbÀ;Þ­oùF§À\u0087Ñ\u009bÉþ\u0085\u0094@Í@\u0092ÝàY~À\u009e_x0013_Æ\u009båíWÀ#cyä[_x000C_\u009fÀè¶êÛ.¯\u0082À¬2_x0010_\u0091_x000C_ÿgÀ_x0011_xéFuº\u0096@s_x001D_ä\u0087Ý6NÀ¶â^ ¸Â\u0081@:h\"òÿ_x0010_yÀtñ\u007f¶8^VÀ\u0082_x0014_Ø£Üç©@aíÁáíÒx@ÆnçãÂ\u0091\u0095@_x000C_¥¹vhÜ\u008d@g>Á¦_¯lÀ jP_x0019_\u00907\u008cÀ_x0001__x0004__x0003_æü\u009fÞì\u0080ÀtVìM¿s{@_x0001_~/_x001A_\u008e_x001F_w@_x001B_2\u0085\u008bõ\u009a?À]ú«\tâ_x0013_qÀVÈ\u008d_x001A_ÚumÀ\u008cjL/_x0006_|\u009fÀ8\u00860_x001C_M0¡À\t\u009féæz;\u0098@w8í\u009c+}fÀ_x000B_#_x001F_z\u0091Ù\u0096@_x0002_ÝgD¤\u009a$Àr$ø{@\u008dd@'0º-°\u0094\u0085ÀFFyýÃ_x0007_n@_x0014_¸¡_x0007_\u0099\u0086\u009dÀ)J,Û0_x001D_bÀ×û\tÎîï\u0084À\\$©ýP\u0082¡@o0ñ\u0080æ\u0091_x0019_ÀÔþ\u008e_x0003_oí[@ýÑ8Úq\u0084ZÀ\u0083_ÔÄðÀ\u008d@Ý÷ºP)_x001E_\u0094@\u008eïËI_x001A_°_x001B_À\u007f@\u0090_x001B_§j\u0085À_x0015_\u0098äÓÔ_x0018_³Àôuº_x0004_\u007f6pÀÜ;³­Ô\u009avÀg-ä.s_x001E_pÀÿ4G_x001E_§\u009a @Ê®\u0080\\_x0001__x0007__x0005_ýyÀÙ~ÍÞ²Ý\u009eÀ\u0080g_x0015_\t\u0092_x0014_hÀ\\s#8\u0099äcÀ·_x0008_¾ËæÛoÀ\u0085×\u009b0Iù\u0090@\u0091ôñÖ\u0094_x0015_t@°Ô_x0017_ÓÉäxÀT_x000E_µlF\u0097jÀZ¡\u0081,\u0095\u007fQÀ'lz_x001B_\u0091x\u0084À%ÞÓO=ÓsÀü\u009c±´Ò[\u009fÀ¤Ç 4Î7¥À_x0003__x0006_}?6UªÀi½6zÊì\u0085@ÿeåÜY\u0087uÀ\u0084¬â]ãðmÀ!Ü¾ß)5\u008aÀ_x0018_\u0084^\u0085Ñø\u008eÀûÌz\u0087A_x0017_NÀ\u0091Â{+Î_x0015_\u0082À_x0005_½\u009d.QvgÀ$³\\<\u009aÊ\u0099@Ò_x0002_ë>L_x0002_?À_x0008_Üs¥Òm\u007f@ò_x0011_½+A¶@À_x0011__x0004_iðÓ\u0096o@@PÜ·ôâ\u0097ÀU¬\u009fñê\u0093\u0086Àp_x0011_'Mú®¡@_x001F_­ÕÎñ\u0084\u0091À_x0004__x0007_R\u0096_x0014__x000D_Ãb\u0087À\u007f??i¥ChÀõ_eN_x0001_¾\u0087À_x000D_oÎªgW^@T7¦\"ø©jÀäÐ¢_x0004_ ôjÀo\u009b_x001A__x0005_¥;ªÀE_x0014_\u007fÑ½I\u008aÀ_x000C_Ì\u0099^í\u0083\u0080ÀAiÂJÖ\u0084{À¾[ÐÙè¸©À·M_x001C_¬_x000C_÷\u0083Àb±üãÂu®@pMl5 \u009f\u0096ÀÂ4Xû\u0093l°À©~[Ãta\u0089@eÔ\u00985­ÐMÀEÿ_x0005_EÙ¦\u009fÀìÓ_x000E_k\u007ft\u009c@_x0018_}\u009dÁü2yÀÇ\u0090&´v\"¦À\u0098_x0018_\u00824d_x000D_\u007f@÷)´ÛcÝ\u0081À=_x0003_yÍcu¡À)ñ&Ñ_x001E_¿wÀÜ_x0002_Ì\u008dÊ^\u0087@\u0084ù*À_x0013_æ\u0096@Ê\u0093ö _x000B_¡_x001D_À\u008a_x0006__x001A_ý|5hÀúïË4c_x0019_²À7D_x000F_\u0080}G¦À·_x0007_\\ó_x0001__x0002__x001C_À\u0082À2|&ññi\u008eÀ»·À­->\u0099@\u0083Ì\u0082w_x0006_¦UÀ\u0082_x0011_¤Oïà£À_x000E_ö\u008b\u0081\u008f\u0086qÀ&¥##m¬pÀÇ\u0091_x001A_ ¨z\u0093@_x0008_Ü0B\u0083a{ÀûâöR\u0080~uÀçq«Z_x0003_bªÀ_x0015_ ¦cÝøgÀ\u009a_x000E_\u0098{X#\u008cÀh¬\u008e÷·ÏhÀdÙYî¯2\u0080@ÏfÄ\u009d©¦`ÀÀôE_x001D_\u009c_x0014_\u0088Àþ_x0006_È\u009fs\u0094¦À\u0086+_x000F_\u0092_x001C_?\u008e@_x001C_øw1>åZÀ[_x000F_\u0082ùG0f@é\u0086!>\\_x001A_q@t&Á_x0014_\u008cþ¡@±Ña¸°x\u0098À`R¼\u0086\u008fÓ¡@ýaà!\u009d\u007f\u0095Àá÷×\u0080r©HÀN_x0004_º_x0001_t£RÀ¬_x0013_#êÁê}À\u0088\u0090|\u009d\u0087ð\u0087Àð»A_x0011_\u0080l\u0091@á_x0012_\u0088­[=@À_x0001__x0003_µÕ÷Háñ§@_x0011_\u0088_x0006_2âë @_x0004_à\u008aÙÕ¿\u009b@B0 ÛÊe{@E_x000B_Ú\u0091\u008f_x0003_^Àöë~ðào\u0099À}ÎBÛÃÄ\u0091Àè_x0015__x0014_\u0085_x001A_\u0099\u0099@îîî4iÓgÀ\u0086\u0087§B-]\u0089À\u009b{ÓOUopÀbk\u009cwi-\u0086Àæ ]ðéerÀ¸-_x0001_3\u008a6µÀ­^_x0003_»h_x001F_\u008fÀ*×Gs0BRÀ_x0006_1pèL\t\u008e@ãáÕ\u0087¯·hÀ|¿©²Ð[_x0019_À\u0089@cÊ\u009a\u008c\u0095@- EÂ_x0016_x»ÀN¨\u0087·ïë§ÀÞ¥_x0002_©75[À~{RÂ<ê¬À_x000B_ÙïO>_x000F_\u009fÀIh*òqÓ\u008dÀ±\u008eL\u008f_x0005_~°@\u0085¡1³Uc\u0084ÀYÙ[Âö)gÀ_x000E_¯ügE1aÀ_x0004_\u0094á§_x000D__x0016_sÀ_x0018_øÝ»_x0001__x0002_½ò @_Õ_x0008_Í_x000D_O\u009aÀÏèÛ4*h\u0087@Ô_x0016_æqh\u008ecÀ\u0084­ì#ö9\u0087À_x0004__x0010_ÎÀ\u008e8·À_x000E_Õð±\u0085£\u0090ÀN±×\"\\$\u0083À\u00913\u009e_x0012_iDvÀX_x000B__x0012_y\u0094g\u0085Àì_x0001_r_x0017_ó#\u0084À·UïU­J\u0081ÀIn¹\u0081åÃYÀ:}¾\u0080ÿ_x0019_£ÀJüæÑÎ\u009atÀA#ûê_x0002_F\u009b@_x0005_\u0092q(\u0084´\u0087ÀÌú@øim|ÀmÀ@çkµ\u009e@ª¼ËJ\u0088õ\u0094ÀØ$oÔy¶\u0092@kójÅ_x0001_¤sÀ\"_x001D_\u0095Sò_x0005_oÀî{_x001D_E¡d§@_x0005_©åädO\u009fÀVêÁïÅlyÀ\u008b«\u0085Êc_x001C_\u0095@Îþ\u009fH=þ\u0098ÀÙÛn!þÂ\u0082@õMdp\\º¨À;ã7\u009f_x0006_JEÀyàå\u0090\u008b_x0013_nÀ_x0002__x0003__x0010_\u0096A_x000E_"}},{"$cut":{"chars":112938,"head":"143b9c646eb1745ed53b54772b2c7717_x0001__x0004__x0013_\u0085{ü0Ú§@\u009a³ELÂ_x0011_mÀZ{N_x0003_ÁÄª@\u0086$cú_x000F_¬´@\u009aÜé\u007fÀ\u0085¯@·GÍÐ×[«@)nÄ¦¢}¥@_x000F_y#j²5²@_x000F_\"]6ë¡¤@\u0083ÿÃE³¹\u009a@i§ü_x0002_­R²@'ðNu{B¸@\u0086°_x0011_áWx©@$\u008bÎ§_x0019_Ò±@Ùq4¹ç\u0094\u009e@\u007fÉÖå¸¾®@©+_x0006_Z_x0006_W±@ìeèN';³@\u007f¦òP-ê»@\u0087_x001B_CÕ\u0096U®@íK\u0098}Kó£@ùÜ\u0080-²À­@_x001A_ú\u0081×r.±@_x000B_`©_x0018_9\u008b«@:\u008d_x0011_ôÛõ´@½úT`So]@Æg>_x001E_Ñd\u009b@Y¹á\u0080]º­@?DuÙt\u008b\u0099@Õ:+¯[A\u009d@_x0016_Þj\u009e¡ò¥@Æ\u008a_x0014_§_x0002__x0003_k\"¢@ÛêÄ±a_x0017_°@AÂ_x001B_×©_x001B_\u009f@Ãkuü.´M@\t¤_x000C_«zØª@|Ö_x0013_m\u0095çª@A§þëøpª@'_x000C_nUhL³@î\u0090AZB_x001D_¯@·Ú®¿Ç_x0005_­@ø\u0090_x0001_\u0097Ó<¯@K_x0002_^_x0004_\u009e`\u0096@½ï_x000E_V%×°@°Ã\u00827T\u0080©@Â¡§ÅK{£@\u0086ù\u0086FÁS´@Ãî_x0011_2H\u0093´@Òµ\u009aÄÎàª@ÆG Î_x0012_4©@\u0095_x0016_éèÀÒ¿@E\u0083ÒO½¤\u0099@¸V\u008dø_x0001_¡²@_x000E_rlå×Tº@}¬H(_x001B_ª @k_x000B_\u0091ñDX\u009c@P\u0094³\u0097h8³@Vö¸×öPª@Y_x000D_,+ÇÓ¤@¢V\u008b\u009c_x0003_\u008d°@\u009eOp­\u0090\u008c¶@X!__x0018_¶8\u009d@\u009cyê_x0017_mø¯@_x0001__x0006__x0003_Ð\u009b÷_x0018_\u0083·@_x001E_ñ\u0085IÂ.§@\u00976¨\u0084ß1¬@\u0097j\u0082@ã`\u008f@O\u0095+M_x000E_0·@Éünc_x001A_¼²@\u0087\t°õó\u0098¬@_x000D_/íÛê¦²@·0Gl^ª¨@D_x0002_y!_x0017__x0015_­@Oh_x0004_\u008c\u008cÓ\u009f@\u0098\u0086_x0017_U\u008d\u009d´@æ¾\u0092\u0084ðÇ\u0099@_x000B_æIb¼'©@ÎÏ«Ü£>´@\\9Þ:\u009b^nÀ£¦\u009aF._x000C_¬@,_x0015_¶_x000E_{u°@ô'\u008b<üZ°@¸X¾Ü_K\u009f@ê _x0013_M\u0081~\u009c@Q\u009c·\u0098Î\u008f¬@CeßMJ_x0003_\u0095@÷|ËÏÌ¡¦@T÷(näÀ¬@\u007f[#{¢+²@-RÃùIÚ\u0099@¢h£_x0003_A_x001A_»@õmàO¬w @®¼t_x0010_·Q¨@þÿÕ_x001D__x0005_\u0088°@/\u009e\u009bc_x0001__x0002_rÊ\u0097@$\u008b¼ð_x001B_Ü±@ùKY»ûµfÀ_x000B_À_x000C_\u0091}q¨@åìZ>mé¥@Ïos/_x0014_&·@m\tì\"m£¤@b«kØ4x¥@ýòÞ·â\u0092°@.n_x0005_©gÊ¯@_x0016_ø´\u008d\u009b)ª@@ð\\6_x0001_L¢@Ôº¦_x0001_`J©@]\u0094·\u0094_x001D__µ@äL0_x0011_¿\u0081³@_x001A_l_x0018_K¢å®@ Ánë«\u009e¶@W._x0013__x000C_z\u008b¢@Ï¾Ã_x0014_\u008cW´@/G\u008cÿvÜ®@\u008c\u008cl(¾P¦@º\u0093@Âø\u008b\u0094@!\u0090­ kÅ³@Êz_x0001_&31\u0098@çCá1?_x000D_\u009cÀè_x0007_Uräe @æ_x0003_'\u0083Ä\u0082¯@Ãd\u0089û_x001F_>\u009e@ì³dÊd;£@k^×h~a­@\u008b¿äÈXK¶@L¹Ï\u008a_x0013_À¥@_x0003__x0005_çæ?!QÌ°@y_\u0091´_x0003_Ñ·@Ë_x0019_8_x000E_Ä´¬@)|ï_x0003_þ_x0010_\u009e@_x0008_Sò\u0091Ò\\·@H%a\u009a§\u008cqÀúJ2$JÆe@¹Í_x001B_Í°»¥@\u0097;\u0095ËP`\u0099@!wfþ(\"§@ØÊ¼\u0098²ý¡@¶=ªõÅ.¶@#|¡»\ts¶@=¤³-G1ª@ðG-¢f_x0016_®@_\u009c¸n¥þa@_x000C__x0001_Ø_x001F_W_x0019_³@Ô\u0084Ð±ï.·@¨þ÷\u0084_x0002_sµ@G]Õ¡¸¼´@`÷ü²pÊ­@¢'\u008d_x0007_Y\u0099\u0095@òÛ\u008b_x001D__x0002__x0001_´@ø±J\u0086±|\u009d@_x0015_eØö¸O\u008c@|]\u0088cÈ/¨@\u007fæÝ{7\u0089¯@8M_x0010_Tu¶¯@vE\u008b¢î>\u009a@\u0085ßùÖ[o±@ð¦×_x0004_ÉÈ®@ªV¶ë_x0002__x0003_¯ë£@&wâk;u¨@N\u0096_x0002_{tð¯@4_x0002_5_x0014_öÙ°@*áW²ÞM¦@ÐÊ<@úû¬@D°uSuú¬@_x0014_r¡_x0003_Ô_x0001_\u008dÀ¨RV\\ì§·@k&9]ãÛ±@Å3_x000F_o2_x0002_\u0087@%vý½\"ð¥@äï ñ×_¹@ù_x0003_5ã_x0003_\u0086¡@(ëØ_x001C_®ò\u009f@}¡²zk`²@Id_x001C_]0%¶@`¢_x0017_'#{\u008e@*re{çE\u0086@À\u009b_x001B_\u007fÌ¬\u0085@\u008fA>\u009e\u009dæ¸@2_x0001_³_x000B__x001F_\u009d§@¾_x000F__x0018_A;\u007f°@-B¯Ô\u0091wy@ÆE_x000B__x001B_ª£ÿ¿·ææ_x0013_C_x0012_¤@ ÇJn;P¼@T]kÃ_x0001__x0018_¤@:·¶iNë±@îÑyûôI§@¶\u0094_x0003_°\u0095\u0085µ@N_x0003_8ÈûØ\u0095À_x0006__x000C_UÌxð:_x0001_\u0091ÀPræÅft¤@ÇË\u0095Vî\u0084¸@?_x001E_¥Ê/ts@²_x0017_w\u0096ÒÍ±@_x0015_õ>)Wá @z_x0011_¸'(c¡@S\t_x0008_]!v¬@\u007f\u0095uÝ¿÷´@_x0013_é_x001F_dOV±@ä\u0083½ÐÏ\u0085¥@û\u0085\\Byñ¼@Ç»$\u0091¸_x0004_³@Ý=k¹_x0017_f·@ÕÁb_x000C_=D´@\u008ciÇm'\u0094ª@ÊÑ|v_x0003__x000D_±@·_x0010_z\u009a×_x0002_\u009f@ç8yìô_x0005_²@\u009aÑ\\ì_x0008_âª@\u009b¡3ê.i\u009d@Y_x000F_3¶_x000B_Í\u0081@ãq_x0006_u´¶«@Y}dÔðÇª@Ùº_x0006__x001D_w\u0095¤@¡1GãÎÕ¢@ö\u0087©VÈG\u0099@S´ÿ_x001B_ø\u009egÀ_x0007_µO_È¯¬@\u008eÃ°ê?Þ<@_x0013_´_x0012_`Xü³@Uûo\u008d_x0001__x0003_Êã³@4¹Ã_x000E_\u009b_x0018_¨@/yÃ¦¢_x001E_©@ ï\u0098v±T£@Æ_x0005_\u0089\u0084Ã9¬@_Rt;¸ö\u0099@Õ\u0098^\u009b\"_x0007_\u008a@£[e\u0081_x001C_\u0084T@_x0006_¿ÎÓz ²@éÐ_x0008_SÑ÷\u009c@\u0093[\u008bô_x001C_\u0098¯@©_x0014_5|\u0091D\u008c@mt_x0003_q\u007f_¡@_x001D_2\u009cU\u007fì»@ c@Ó?[©@,BiÁ£4±@O´6m¥\u0084³@ ü7¬Ê½§@ÜÀÞüNÞ{À\u0093=Ðº_x0014_\u008f\u008f@¨®.Ù\"ó¬@%·pÏ¶©¨@gñYs{l¥@86at_x000E__x001D_\u0099@$þÖú&\u009aª@ßêÝ)px°@\u009cs2Sb©»@SÖ3a\u0081_x0002_¼@ìuaâ½K¨@Hlà\u008cºö¯@×+\t¼:¯£@:\u008clvòÇ·@_x0004__x0006_d\u0087©\u0097<\u009d²@P2ß+D&µ@\u009a´[³X_x0006_·@\u008c,_x000E_É\u009c\u009c«@Ie_x0001_\u0085q8¯@väx_x001F_dÇ¹@ÿ¢õÐ.}­@7\u009b\u0081#ú½²@,nF÷ä«uÀ\u007fÅ\u0090K\u0080_x001D_¤@¶B®\u008aTr°@v\u0089Xà<_x0007_¢@Õã+\u0085*Ó®@_x0015_!\u008edR_x0001_\u0085@)\u008cpÿÅ¨´@dN¬-7\u0096 @}¨Ö~uÑ¦@f_x0001_\u0086¹»p @O_x0003_×½n]¥@JDã)_x0002_\u0097¨@Ý\u007foÃ.g\u0093@²_x000C_È\u0094\tøµ@.¯@¼÷b­@ÑG¡]ð±³@´\u0085FÅ§®³@=\u0085ßµJ_x0006_ @Ã_x001D_>_x000D_\u008bn²@üç._x0005_Á@²@äw(_x0014_´x°@c_x0003_,_x0013_Þuª@§\u0084NÀô} @ÒæöÚ_x0001__x0002_¾´©@-_x000F_!x_x0012__x0004_¨@Ú_x001E__x0018_ä½W¦@×òñ±°P¥@ÓxÏ_x0001_ÿð©@\u0093·Þ²_x0013__x000D_§@þ_x0017_ÿF_x0019_Ü£@OºÕÈ\u0082°¤@r_x000E_¸\u008bÁ¾ª@s4­öJ|¦@\u0097°\u0085\u008bkv\u0084ÀöÖ,%Nc\u0084@rñ'G_x0014_.°@?R¶J\u008cF°@vaxy_x0019_\u0080¡@ògo©ö\u0093¢@ç\u008a;Þ\u009c\u0092\u0093@¬LAI\u00824\u009e@_x0007_ÖUz½_x000F_\u008cÀcú¢W_x001D_}²@_x001E_]ïC\u0087¥\u008fÀ\u0093,Ç_x000B_ _x001D_ @\u008aZöô_x0005_7¦@\u009eý0<´_x001E_\u0089@wÅ¦*Ìì¯@¤\u0083:øù°³@_x0014_I¦R'_x000F_³@_x0004_\u0084j\u0089Eu¦@P_x0002_|F^:µ@\u008eÉ\u007fÓµÔµ@]c\u008dªÄ£·@À\u008f\u009en}9¸@_x0001__x0007_¹/'ë#\u008f¨@\u00808_x0001_¡÷¥¦@Wü_x001D_ý\u0091\u0089­@\u0094É_x0006_X~_©@´½_x000D_V\u0092e´@¬_x0015_\u008d_x0003_\u0083s"}},{"$cut":{"chars":131910,"head":"722922998876df96f59d515e5690dba2_x0001__x0002__x0001__x0001__x0001__x0001__x0001__x0001__x0001__x0001__x0001__x0001__x0001__x0001__x0001__x0001__x0001__x0001__x0001__x0001__x0001__x0001__x0001__x0001__x0001__x0001__x0001__x0001__x0001__x0001__x0001__x0001__x0001__x0001__x0001__x0001__x0001__x0001__x0001__x0001__x0001__x0001__x0001__x0001__x0001__x0001__x0001__x0001__x0001__x0001__x0001__x0001__x0001__x0001__x0001__x0001__x0001__x0001__x0001__x0001__x0001__x0001__x0001__x0001__x0001__x0001__x0001__x0001__x0001__x0001__x0001__x0001__x0001__x0001__x0001__x0001__x0001__x0001__x0001__x0001__x0001__x0001__x0001__x0001__x0001__x0001__x0001__x0001__x0001__x0001__x0001__x0001__x0001__x0001__x0001__x0001__x0001__x0001__x0001__x0001__x0001__x0001__x0001__x0001__x0001__x0001__x0001__x0001__x0001__x0001__x0001__x0001__x0001__x0001__x0001__x0001__x0001__x0001__x0001__x0001__x0001__x0001__x0001__x0001__x0001__x0001__x0001__x0001__x0001__x0001__x0001__x0001__x0001__x0001__x0001__x0001__x0001__x0001__x0001__x0001__x0001__x0001__x0001__x0001__x0001__x0001__x0001__x0001__x0001__x0001__x0001__x0001__x0001__x0001__x0001__x0001__x0001__x0001__x0001__x0001__x0001__x0001__x0001__x0001__x0001__x0001__x0001__x0001__x0001__x0001__x0001__x0001__x0001__x0001__x0001__x0001__x0001__x0001__x0001__x0001__x0001__x0001__x0001__x0001__x0001__x0001__x0001__x0001__x0001__x0001__x0001__x0001__x0001__x0001__x0001__x0001__x0001__x0001__x0001__x0001__x0001__x0001__x0001__x0001__x0001__x0001__x0001__x0001__x0001__x0001__x0001__x0001__x0001__x0001__x0001__x0001__x0001__x0001__x0001__x0001__x0001__x0001__x0001__x0001__x0001__x0001__x0001__x0001__x0001__x0001__x0001__x0001__x0001__x0001__x0001__x0001__x0001__x0001__x0001__x0001__x0001__x0001__x0001__x0001__x0001__x0001__x0001__x0001__x0001__x0001__x0001__x0001__x0001__x0001__x0001__x0002__x0001__x0001__x0001__x0001__x0001__x0001__x0001__x0001__x0001__x0001__x0001__x0001__x0001__x0001__x0001__x0001__x0001__x0001__x0001__x0001__x0001__x0001__x0001__x0001__x0001__x0001__x0001__x0001__x0001__x0001__x0001__x0001__x0001__x0001__x0001__x0001__x0001__x0001__x0001__x0001__x0001__x0001__x0001__x0001__x0001__x0001__x0001__x0001__x0001__x0001__x0001__x0001__x0001__x0001__x0001__x0001__x0001__x0001__x0001__x0001__x0001__x0001__x0001__x0001__x0001__x0001__x0001__x0001__x0001__x0001__x0001__x0001__x0001__x0001__x0001__x0001__x0001__x0001__x0001__x0001__x0001__x0001__x0001__x0001__x0001__x0001__x0001__x0001__x0001__x0001__x0001__x0001__x0001__x0001__x0001__x0001__x0001__x0001__x0001__x0001__x0001__x0001__x0001__x0001__x0001__x0001__x0001__x0001__x0001__x0001__x0001__x0001__x0001__x0001__x0001__x0001__x0001__x0001__x0001__x0001__x0001__x0001__x0001__x0001__x0001__x0001__x0001__x0001__x0001__x0001__x0001__x0001__x0001__x0001__x0001__x0001__x0001__x0001__x0001__x0001__x0001__x0001__x0001__x0001__x0001__x0001__x0001__x0001__x0001__x0001__x0001__x0001__x0001__x0001__x0001__x0001__x0001__x0001__x0001__x0001__x0001__x0001__x0001__x0001__x0001__x0001__x0001__x0001__x0001__x0001__x0001__x0001__x0001__x0001__x0001__x0001__x0001__x0001__x0001__x0001__x0001__x0001__x0001__x0001__x0001__x0001__x0001__x0001__x0001__x0001__x0001__x0001__x0001__x0001__x0001__x0001__x0001__x0001__x0001__x0001__x0001__x0001__x0001__x0001__x0001__x0001__x0001__x0001__x0001__x0001__x0001__x0001__x0001__x0001__x0001__x0001__x0001__x0001__x0001__x0001__x0001__x0001__x0001__x0001__x0001__x0001__x0001__x0001__x0001__x0001__x0001__x0001__x0001__x0001__x0001__x0001__x0001__x0001__x0001__x0001__x0001__x0001__x0001__x0001__x0001__x0001__x0001__x0001__x0001__x0001__x0001__x0001__x0001__x0002__x0001__x0001__x0001__x0001__x0001__x0001__x0001__x0001__x0001__x0001__x0001__x0001__x0001__x0001__x0001__x0001__x0001__x0001__x0001__x0001__x0001__x0001__x0001__x0001__x0001__x0001__x0001__x0001__x0001__x0001__x0001__x0001__x0001__x0001__x0001__x0001__x0001__x0001__x0001__x0001__x0001__x0001__x0001__x0001__x0001__x0001__x0001__x0001__x0001__x0001__x0001__x0001__x0001__x0001__x0001__x0001__x0001__x0001__x0001__x0001__x0001__x0001__x0001__x0001__x0001__x0001__x0001__x0001__x0001__x0001__x00"}},{"$cut":{"chars":51246,"head":"58f25af98596a8422ab14f9af553ca2c_x0003__x0004_æËq8Ï\u008c\u0096ÀÆ$wòÔ$\u0087@ãf®³ü÷ @ª0íyÇ§\u0099ÀÅFj\u0082\\_x0018_\u0093@Dw=_x0007__x000F_\u0085\u009a@JÐ\u0099r/>\u0090@\u009c6°hÏà\u0082@=\tû_x001F_Rcu@£\u008e_x0017_xm¼Á¿¾q»@\u008b\u009a\u009d@\u0095Ñâ\u0097ûad@Í¯4]!ª\u0090@Ë_x0019__x0006_îKW\u0091À<ä|Nr~\u009d@8É¼ªy£¨@_x0001_Ç_x001E__x0007_Äqª@_x0012_\u0096uÌOM`Àk_x000B_[_yD\u008a@_x0018_eâ|¾ÀB@×Ú\u0098ôï^nÀtGW\u008b\u0094d¢@NM])¸×g@_úÜè\u0093¾=@\u0095_x0013_^_x001A_;£\u0082@vúñ -6^À_x0002_¢9m§n®@Áa\\_x0004_×·\u0080À?\u008bW\u0089ÓÁN@pþ!e9\u0094\u0088@N\u0093\u0093QvQ±@6P¡ª_x0002__x0007_Üe\u0098Àm_x000E_ñ$÷W\u009f@0µ³_x0017__x001B_Fp@_x0004_÷\u009d!Ç_x0005_\u009e@_x000F__x0017__x0014_\u0087£¨\u0093@N\u0087ÈHàgxÀÆ_x000C_gô­òf@\u0093\u0095_x0003_Scm\u0091Àµå95×¢¶ÀÇû´Ø·e4@ã|!ª8ò\u0096@r}vç\u008cÓ\u009a@m¾Gé_x0019_Ê\u008c@É\u009cÍ[ô¬tÀ}._x0001_¸<\u0087p@-Ûse°¨mÀËÃÒÏ1\u009d¦@_x0007_>.Ïùx\u0093@cï\u008d[Öc\u008c@_x000D_ÒÖWh´\u0094Àdêÿ^¹\u0087v@\u0099H\u0091Õ_x0015_Ç,@_x0012_ï\u009d;_x0016_Î\u0099@p*_x001D_}_3\u009b@úâ_x001D_¨_x0003__x0006_©@ÝOìÿ\u008e,{Àá*.\u009bß_x0005_¦@,7ÉÕ3N\u0085ÀîFÎÀ\u0099½\u0099@\u008aÆ_x001E_\u009f\u008eð\u0085ÀpnTbk §@#-#JIî\u008c@_x0002__x0005_{_x0003_\u0088À]_x000B_T@Û10\tÆõwÀÖ_x001C_¨ àÅb@ªi·Ü_x001F_H\u009a@æÕ_x0003__x001B_k\u0090\u009e@ajµ\u0099ø\u0084t@^ò_x001E_a\u008dbbÀ_x0018_åOQ¦¹zÀv°\u0097\u009eÔ\u009cSÀ=»Á_x0006_bÕ\u0095@È_x001D_Ä_x0001_i*l@\u0094ÿ\u0094\u0084_x000D_ \u009c@[K\u0096rÂ>\u009e@©ýÁì \u008d\u008e@åÂ¹NVëuÀ¶Vìb\u007f0¡@\u0098Vë',\u0094_x0017_@©1q¹©\u0093B@íSóT_x000F_&\u0085@Û_x0012_±D\u008aM£@z²¦_x0019_ã_x000F_\u0092ÀÀ2ê\u0095_x0010_u|@_x0004_j_x0018_Ö_x0018_N\u0080ÀN¹%7õÀ\u0092@ê97J\u0085üw@Û¸_x001A__x0012__x0012_¿w@ºÞN¹_x0008_\u0082¡@Î 9_x0003_\u0097~\u0091@wþ¥\u008c,Üt@'+_x000F_±\ts[@;MÕ_x0004_YÈ\u0095@ü¹¡¬_x0001__x0008_mV\u008e@\u008d_x0012_²®þñ\u0085À+\u009b\u0098/x\u0099³@\u0084aà\u0086ÚO\u0081@ÆO¦?`«rÀ_x0002_Â_x000D_=³Ñ\u009c@_x000B_we\u009eUE´@±Úr\u008cd6aÀ³Ú\u0089îæý*@\u0092ãÚÑýÆ\u008d@$\u0089m÷­?\u0095À/_x0003__x0017_ê_x0007_GBÀ^×_x0012_[ÖöA@B¾_x0008_iUr§@c_x000C_ 2Ñt\u0094ÀÊeNW5{\u0096@5ø\u00938¡\u009bH@m±=ú,¤\u0099Àhù\u008bêë¼\u008f@?\u0080_x001D_±\u008fB\u0090@h_x001C_G¿¤Ý\u0091@çL\u0089_x0005_Ëwd@[\u009c\u0091\u0085ø_x0006_\u0082À2¾_x0004_w®5°@DA7_x001B_¨\u0093cÀ¡Ï\u0099ïí_x0018_\u009bÀã_x000D__x000E_øÞ_x0005_\u009f@V\u0086¬r½»\u0088@*_x0004_\u008cJ{Å£@_x0004_ÊôzP`°À_x0002_\u009f_x0010_*_x0011_\u008d\u0094ÀÓ#bË~6_x0001_@_x0001__x0002_¼ÚHïÜt¶À¡K_x0002_\u0082ì_x001C_OÀIO_x000C_\u0094\u007fà\u0099À!Ñá_x001F_î,µÀö¿\u0099Và\u0087GÀ\\û+«ÝZ\u009bÀ_x0007_QÍJª~\u009fÀ¤^Z\u009fh°q@[\u008b\\2«A°Àþí¼ªD_x000D_\u0094@/ñ_x0003_v\u008eâ\u0088@«5!\u008eË_x0018__x0018_À>\u009c+Ú÷R¬@ð\u0084ã\\\u009f2w@«¯6.1èa@\u0097ç{!¾_x0010_¡Àå\u0090\\ýÈ\u0080\u0094@cì\u009c_x0002_ê_x001A_p@÷C¸+²ß\u0081À\u0088vÄ@_\u009a«ÀÁú_x0017_¿\u009e¯q@ï\u0089\u008b®\u0096ð¯@+³ ²>õ\u0096@ûÒÈô\u008c\u009cr@Ä_mwª'vÀ6\u0088+ÔR¯\u0094@ Ó¹Íöù¡ÀêOt÷©+\u009c@Ï²Pª8\u008c~À%_x0004_tDÉ_x0017_\u009f@­_x0011_©Ä_x001E_I[À_x001A_\u008c¹Ñ_x0001__x0002_¸I\u0088À0)\u008c_x0012_/:`À³\u007f_x0012_\u0089\u0091qqÀf \t\u009eOö\u0092@\u00894_x000B_Ìl_x0015_\u0083@{ÈêõIf\u008d@Þ\u0092@Æ¢\u0081±Àè\u008f_x000D__x001A__x001D_Ä«À_x001C_JÔ\u0090Öc\u0093@«_x001F_ÑQ\u00822\u0091@¡x\"ò\u0086_x001C_q@\\vLÔ¯:©ÀN¿C\u0099Þö.À9¦_x0017_Ú5\u008ay@¹Óÿf÷!\u009bÀ¤Ò°\u0081ì(°À:Ê\u0095«F1C@NRÇ×\u0088`\u009dÀ¯áê+\u009d«³ÀG1óÉù/§À©;'eÏ½£@ï&\u009cê_x0002__x0003_\u0089À¹ÑØÀ\u008ea\u0081@_x0008__\u0091ªª¦uÀÍ_x001D_ïÖAÖ+ÀÇ&¨i_x0008__x0019_\u0080@+¥\u0096\u0091ì!c@ÄÕ¥n}0\u0089À¯Fã³®\u008cxÀ?µ==\u008f\u0098\u009a@h\tO®¢Ä\u0092À£è\\_x0015_6w§@_x0007_\tÛ\u0087ø[m\u007f @n lf_x0001__x000B_ÂÀ\u0097:ö_x000B_î\u0088|À\u0080ýÖ0ÎB\u008fÀ»ÄV?\u008b_x001F__x000B_ÀM_x0003_\u0099\\!\u0082¶ÀÎÑ|¹\u008e¼\u0091À@@¥Àõ\u0095mÀô_x000E_2PèOª@®_x0019_k´ñ_x0006_\u0094@_x0004__x001E_q_x000C_ì1\u0091@ÛÖ,2q,j@9_x0008_\u0093±,9u@_x001D_Vàæ}$jÀS²_x0001_2¾º\u0087@B_x0012__x000B__x0012__x000C__x0015_s@&_x000B_»¤e_x0001_\u008e@P A_x0005_î_x0019_\u008bÀõ\u0085ÇäØ_x0019_\u0095@7_x000C_öäfä`@yé_x000C_0Å'T@_x000D_*<oÿù\u0085À¿_x0012_._x001A_¨\u008e\u0098À+Î]Ú<Ì\u0084Àøí¬þ«mrÀ*Ê;D3´ @ÄÊ#_x0014_\u0093Ò}@oo2\u009cJA\u0081@_x000F_«íÍr_x0002_¤À6»ÅÂ@` @ïÖ[x_x0010_\u008e~@Ó½Ód_x0001__x0002_Ë2\u008dÀ\u0082þ §_x0011_m¸Àñ_x0012_Îé8~o@_x001E_ªê %tR@nÿv¯_x001E_Ý¿Àp®Õî\u008c¼eÀV²rî_x0017_Z\u0092À¾QÖ4u;\u0095ÀÏô·\u0099x\u008c À\u0084_x0006_R_x001B_\u0091ÆZ@ÇWQNHÈ @ñög³\u0087M\u008cÀ0uðJÞõsÀK_x001E_Sò0ÂX@ç\u0094_x0001_ÿÌÞx@\u0095[tóäÖ\u0092À3Å_þ\u0092\u0084\u0086@\u0083_x0014_9ÜðL¥@\u007fhÌ\u008aÎP\u0083@+æd³½Æ\u0095@ÄüÅdº \u0086@Ä×ÆöÉ_x000F_E@\u009e\u0087Ç_x0016_è]\u0082ÀØê;>L¥\u0094À_é\u0099FZ(w@à%ù:_x0011_HZ@gk¶qù_x001F_@À{HÀ\u0097\u008aÿ\u0092@{<\u00923½<\u0095@_x0008_\u008akuïorÀf\u0080Ñ\u009b\u008bzo@]N8`_x0019__x001C_\u0081À_x0005__x0006_ª\tÌ¯_x0017__x0006_pÀ»ôctÎ_x0013_\u008dÀ´Þds¹Ë\u0084À>´3â_x0019_i\u0087@Ñ\u0095Nû_x000C_¼\u0096À²Ñé@_x0004__x0018_µÀ\u008eØ)_x000C_ÂH\u0088ÀÉ´»o9&\u009c@\u0083_x000D_©HÆÑ\u009c@_x0007_Ö!\u0099´°¥À 5ø°³Ý\u0099@\"Iíæ]\u0086\u009e@ù°_x0010_&ï\u009dzÀ\u0080K\u008b\u008a-c\u009dÀ_x0013_ã_x0004_}_x0018_ \u0093Àë_x0002_CJ^rKÀÖ_x0011__x0003__x0017_=Pa@Î*p_x0013_ÛÖF@ä\u0093Ð,ÌG\u0081@\u009c\u0094/¬hC\u009f@\u0090ÍqÜ»U\u008cÀ_x0010_n­0\u0095Í\u0082@C¬n\u008a|½\u0089ÀM\\_x0011_víè @ÁL\u0091MÞÅwÀc_x0004_LkÝª @ß&#þ»\u00978@Á\u00819_x0001_dY\u0084@ÂÔ|óò¸iÀ_x001F__x001B_í\u0095=â\u0094@ü_x0018_qém\u008f;À®dtå_x0001__x0003_Ã_x0015_³@L\tòS_x001B_g\u008eÀ~\u009cÑHÎ¹ºÀ·_x0019__x000B_²ùV^@çd:¿®ÕJ@\u0094åè_x001D_ùB À²©W?WH«@·OZzYÂª@qÓ¤IKfuÀmäÅ¨¢¼iÀpPãO­)\u008cÀäÕ'ä~Ú\u0095@2w_x000D_õÚ¹±ÀYI31Y+°À8\u009fH(_x0002_¸µÀ»(ø<_x0011_\u0098­@_x001F_'\u009dN_x0003_ÝxÀZÄ7ö§_x0003_\u0081@I^4Ãì~HÀy¾_x0012_*5Á£@_x001D_o{\u008d_x0004_¡\u0084À_x0011_h\u0086X|\u0099\u009fÀóö@å¹Á\u0095@_x0015__x0014_4m@\u0094\u0094@\u008fëtý\u009c0cÀ_x0007__x0010__x0014_ò\u0092µZ@\u009de_x0014_Ò¨ö\u0095Àá}_x000D__x000B_Ä\u008c\u007fÀÍR\u0088Á\u0095î©Àú\u0091fd_x001A_\u009coÀÎ\u008dFïtÓp@7BeÓÕ¥\u0094À_x0001_\t_x000B_õ$càé{ÀÎy"}},{"$cut":{"chars":74478,"head":"0558608a5887c34ca8eb659f7a1ba9f1_x0005__x0006_ùzödôåY@x[å£\u0099\u0096´À\u0085_x001E_ß6Â\"w@ªÆ\u008c\u0085öØH@y\u0081]-Ï°¤@\u009dXô[ï\u009d\u0092@%Ê6Ô^®\u008cÀ~_x000B__x0017_PUK¬@Ð¼°Þº¾ÁÀ_x0010_6\u0089A_x0019_û°Àþ«_x0018_F\u0081\u009c\u0094@ù¾w_x0001_ÙF\u0094@_x001B_r\u0095Ó_x000F__x001F_WÀ¥Ä±äèH\u0085Àí\u008e¶_x0010_Z+\u009e@¸zË)h_x001D_£@\t0µÄ\u009c_x0002_\u009cÀ\u008b_x001D_¿ú\u0092Â\u008d@\tæÈÝikrÀ/û_x000F_8äÝvÀQb\u0086K_x001D__x0003_«À_x0015_\u008dù8[_x0010_|ÀgÈ>³\u008f¼mÀ¢_x000C__x0004__x001E_W}§@HÜËõ\u0092F¡@_x0018_¡Vê¶8\u009bÀ*ûæ\u0086m@¹ÀqÀ_x0015_s:\u0098\u0084À¦4_x0014_\u0082\u008cíºÀF¢¶_x000B_³_\u008bÀ?<F?©DgÀw)_x0006_\u0088_x0002__x0004_ä\u0096`À¶{\u0085\u009f_x0011_g\u0099@BuÄ \u009e \u0085@©¢\u0087\u009e\\U @2h\u008d_x0001_~&¯@·³\u0092\u0086_x0015_>eÀG2\u0087\u0086!ê\u0085@ö_x0015_\u0095¥$×e@Ò´Ak§ \u009f@ ;_x0001__x0010_JÈ\u0099@2ò|\u0099:\u0095\u0086@ßEÑPË_x000B_`@6:u£\u0088QZÀ_x0005_(t@Èn©@^3±7_,±À\u0085¸õOÔ]¯ÀFIúÄ±®¤@È7_x0010__x0008_Ári@¯\u008bñ_x000B__x0013_·\u0095@ò°¥\u0080´íz@Âi-Y_x0015_ÒqÀ;ù_x0005_ë'\tµÀ.]¯*_x0012_ó\u009aÀ\u009aJ\u009e\u007f×z§@ê2:þ´\u0083h@'_x0002_­ÔÏÝ\u0082À©Ï:_x0003_fã\u0087@3VÍiÎø\u008d@ïÊEU¼_x0016_nÀ[$=_x0016_iM\u0081À_x001C_Ë_x001E_ã÷ë£@÷¦©\u0089yÝ\u009eÀ_x0004__x0005_$ì|PÈ¡DÀÎ\tTU\u0095Ë\u008f@\u0086®CÁ\u0083\u0091`@_x0002_¸{W,¹\u008cÀ¿Ãs.ÒBª@òlÔ[\u0082_x000F_\u009dÀ'_x001B_å\u0091¯ i@R\u0080Xj_x0002_î\u009d@»4s\u0084\u0088ù£@%w9\u009dI_x0013_\u008eÀÝ?3È_x001B_©TÀ#_x001A_H÷¬IDÀ\u0099¢õÎ\u0096oz@ i_x000C_\u008fí»\u0098@Ñb_x000D_I_x000E_±\u0088@úõÖ_x000E_¾hH@_x000B_÷îMý·£@<âø_x001A_lF¤@»w6ÕÌëJÀ\u0096SK3?ÿ·À´»Ñü³Ë´À\u0088Õ/)OÕ\u008bÀk®\u0091u\u008cï\u0097@\u0082²\t³>Ìn@\u0082UüÓð¥\u0090À!\u009d_x0001_ûñ½\u0097@_x0003_\u0098é\u009cbs\u0095ÀN\u0094®h£_x000C_\u0094À¥÷?sÉ-¨@_x0002_]\"¹\u008a:¢Àj^®ºæm\u0094À[ó_x001A_Õ_x0001__x0002__x001D_ümÀü² (^Þ©À8Â\u008f\u009d_x0008_zv@Ò+\u0095_x0017_8ÊyÀ­P\u0080_x000C_*DD@\u009f\u008aèam8\u009a@©ØªnÔ_x0010_E@\u0091ÖÊ­;÷j@à<Æ\u008d\\_x001D_¼Àô~9\u0091±z\u0091@¨ñ/\u0090ª_x0018_³À_x0016_\u0092\u008bõ\t_x0015_«À_x001E__x001B_]Éd_x0002_x@Fp\u0081³Ø_x000F_C@Ê2\u008dçµ¶\u0095À¤k®\u0089ð(}@\u0093h&Û*Ùr@_x001F_ÌÈ¤Ið\u0094@GL¤à^Ú£@\u0095\u0081´X(_x000B_ª@8oz\\\u0087\u008c\u0099@ñè\u007fìQ\u008cPÀ\u0090\u008e_x0004__x000D_\u0088§¡@ÔF1\u009dO_x001C_\u009b@ªY'\u0082²½§@_x001D__x0005_BP¦¼r@_SóBã+q@¦_x0004_7\u0087/Y\u0089@q;àJô¨aÀ$_x0004_w_l[c@¸'ä\u009cÙ²\u008e@¥d\u0082'¤_¤@_x0001__x0003_y\u008c£\u007frQ\u0098À¹º1À7ý\u0085@ÛÁFJùág@\u0089ò~öUJjÀ_x0014_å79Yò\u0085ÀT¼_x001F_æåç\u008f@Tßi_x001E_h_x0011_\u009a@_x000F__x0002__x0007_å4³\u0091@\u00819O\u008fHê\u0097@h#_x001D_¼ß±\u008b@úèx¿R°\u008eÀö'ÕâL1\u0087@\u009bbP?÷\u008f\u007fÀcÒH6_x0019_\u0080\u009e@è\u008b~x_x0016__x0011_\u0090@;\u009f?\"\"µ\u0083ÀÝw_x001C_\u0095¢L @ñLö|èY\u0089@OV,í\u009c\u0080\u0096@\u0080a\u0093'jÁ\u009c@êpØÈ_x000B_O²À÷_x0014_/ä\u0095Ây@\"öé°^_x001D_\u0086À3\u00965þqst@F\u009a\u009e_x001E_\u0080ý\u0099@q\u0083k_x0005_Ù-©@n,2k\u0094V¢@¶äV®Ò«\u008aÀPÏ3)_x0001_f @\u0087°¨üõQ\u0083À±\u009bÇU¶_x001D_\u0086@zÏ#\u0085_x0002__x0005_\u0087ô\u008c@\u009d!_x0002_KmÕJ@Ny\u0092[ë­\u008c@\u009b_x0007_Â_x0005_ú_x001E_ªÀµ=_x0018_\u0088V_x000F_£À¬ò\u007f\u008c^z©À´0ôHÚ\u008f\u008b@2æ6j^`\u0098À)Öï15o\u0094@~R_x001F_Þù\u009b\u009e@h¼_x001B_õ\u0088øHÀ´KGiaÐ\u0095À_x0008_ke¨_x001B_\u0086m@ãqþ_x0015_nø\u0097@.à_x0007__x0016_FÜ\u0097À_x0001_\u008eÔdç_x0001_}ÀÒ\u0094X¶;\u0087\u0087@tö|÷`\u0091\u008cÀ_x0019_Ã_x001B_±0ÿ¤@_x001A__x0015_U\u0083t\t\u0089@\u0082>\\\u0089_x001B__x0017_\u0082@X_x0011_´®Ü·cÀq\u008fe\u009dÅ9_x0012_@\u009c~/_x0008_ªñ\u0096À¤}\u0099H\u0087¡o@\u008c\u008dÐ)»Ô\u0086@_x0003_¹\u0081¾º_x0013_\u009f@;\u0094,â´#A@?\u009d_x0019__x0004_\t?\u0097À¤cá`\u0092%\u0093À_x001F_\"\u0084_x0011_öû£Àí1._x0013_U\u0098¡À_x0002__x0003_ÿcö>¥ß\u009cÀK\u008a\u0094ôE_x0002_·À_x000F_ë\t_x001A_ú¶\u0080@_x0018_ì\u0088_x0017_<¥}@8|;-_x001B_8r@_x0005_Þúúð\u0081\u0082À{(Öb/> Ààë\u0096\u007f\u0090Á\u008f@_x0001__x001A_è/_x0012__x000B_\u0088@0_x0015_ 5ú¬¡@ð\u0090_x000D_\u007f_x0014_O²À_x0004_¬µU_x0005_¬\u0084@_x0014_\u008cQÇ'x_x0013_A\u0084«Z²»\u008a_x0013_A_x001C_\u0090Z] O_x0013_AðÞ_x0014_É¨e_x0013_AIl§\u0090dy_x0013_AÂI%Ø3\u008a_x0013_A\u009dÒµ/8\u0092_x0013_A\u0081_x0001_ì)a\u008e_x0013_A_x000D_4wÏkt_x0013_Av4ËgÐx_x0013_A_x000F_uÂ_x000F_¹\u0080_x0013_A_x0006_9\u00869Nn_x0013_Alq§_x001A_Ü\u0083_x0013_A\u009fÌNùar_x0013_A_x0003_ËCô9j_x0013_A\u0080oæ¼Ö\u0083_x0013_A\ta_x000F_\u008bÏz_x0013_A_x0010_V_x0017_-¯`_x0013_AÆì\u009fË)`_x0013_AOî? _x0002__x0004_o^_x0013_A-,å@ë\u0090_x0013_AFz¼_x0014_\u0093d_x0013_A\u008a\u007f\u0094_x0007_U\u008a_x0013_A|ð±\u0095ÆZ_x0013_A^é*õ_x0007_\u007f_x0013_A_x0017_\u008fBc0r_x0013_A_x0003_Þ\u009b<\u0095|_x0013_AÔkÍ½Õv_x0013_A ÖbQZN_x0013_Aç_x001E_6õ³W_x0013_Aè\u0094±_x0014_N\u0096_x0013_AÂ\u0099{<Û__x0013_AÀf±\u009do^_x0013_A£³\u0083© W_x0013_A\u008ee¥Qø@_x0013_A¨f\u0080Zyn_x0013_A\u008aìýíV__x0013_A_x0018_\"¼_x0001_Ý>_x0013_Aòß\u009f¯%b_x0013_AE\u008b»\u008aù\u0096_x0013_A_x0004_M\"ÜÇh_x0013_Atâ¢LÃ\u008a_x0013_A7³8\u008ez~_x0013_A«º`'ÁZ_x0013_A°¾¬*_x000B_x_x0013_A¼~?:¦a_x0013_AGó\u0093Ý´r_x0013_AòþÔ_x001E_c>_x0013_Að@:Ô!d_x0013_Aå\u0097û_x001D_ÏX_x0013_AW_x0016_½ß\u0084o_x0013_A_x0005__x0007_¼ñó\u0091\u0082\u0083_x0013_A\u008b\u0097p\u00808\u0091_x0013_A=ý%\u0081¦w_x0013_A¾¢æ_x0006_ûv_x0013_An\u009d¬.ûw_x0013_AjÕXaôZ_x0013_Aý\\ã_x0001_Ot_x0013_ANM\u0084¨ôC_x0013_A)_x0011_\\êDu_x0013_Ag¼_x001B_Oõd_x0013_Aö\u0094;F_x0004_\u0083_x0013_AûiE¤/ _x0013_A_x0002_è\u009at]]_x0013_Aþ\u007fµ_x0006_\u0085__x0013_A¤½\u007fAm}_x0013_A_x0014_|_x000B_k\u0083l_x0013_A *5á_x000D_]_x0013_A±ø?lÏ\u0085_x0013_A²4úöbz_x0013_A)/_x0011_B©m_x0013_AÌ«#_x0003_¥^_x0013_A£ßÈý_x0004_{_x0013_AÿþLÀ:`_x0013_A\u008f³2}Ap_x0013_At\u008feÈòd_x0013_A\u009e¼êg[|_x0013_A[ê_x0005_Tr^_x0013_Aö_x0004_tk´M_x0013_Aé Ê¸Pr_x0013_A\u0091O_x0004_1®]_x0013_Aÿ²_x000C_üjf_x"}},{"$cut":{"chars":75240,"head":"efbe55f11cc3dac381abad2032cf2db9_x0002__x0004__Nÿ\u008dE«_x0010_AD8Q÷9M_x0010_AæpaÑoY_x0010_A¥qöpè\u0096_x0010_A%_x001C_ßZ_x0015_\u0086_x0010_A_x0014_\u0089Ø_x0019_¶S_x0010_A×·\u0087_x001E__x001C_{_x0010_A\u008bR7¨_x000B_ý_x000F_Aø_x0008_¯¬d\u0097_x0010_A(ê¦Á¬«_x0010_Aó×Vr>Ó_x0010_AmGM¬~Ü_x0010_A\u008aIÏ{¸T_x0010_A_x0006_Ëf\u0097_x000C_6_x0011_A¯Üå·û_x001A__x0010_A\u0083Wòz_x0012_:_x0010_A¬_x000F_6Dã6_x0010_Aõ',Ý\u0097_x000F__x0011_A_x0016_ù_x0004_/s¤_x0010_AàÅ)­\u009f\u0085_x0010_AeÓBDö_x0008__x0011_A\\_x001D__x0014_åBß_x0010_AË¯_x000E_DË>_x0010_A}_x0001_B+_x0004_w_x0010_A_x001D_n~#ìÛ_x0010_Aã\u0085_x001B_E¡_x0003__x0010_A4\u008bÎàoñ_x000F_A%©r9_x000E_A_x0011_Aý¯YÑ_x0003_\u007f_x0010_A\u007f\u0089(_x0014__x001C_¾_x0010_A_x000D_=»sg_x0003__x0011_Ae_x000D_õí_x0007__x000B_\u0084í_x0010_AxÆÆ¼\u0090©_x0010_A:\"ôxß÷_x000F_ATÆ_x001A_h¹\u007f_x0010_A_x001E_KmhÁ²_x0010_A\u009cS·_x0005__x0002_j_x0010_Awi\u009aè¥Ë_x0010_A«_x001E_ÙpaP_x0010_A_x000D_D\u009cRk_x000F__x0011_A®_x0006_Xß±B_x0010_A\u008b~«WÉ©_x0010_Aåú<Ñ\u0083z_x0010_A\u0086I×\u0089ih_x0010_A_x000B_C_x0011_ôøÅ_x0010_A?\u0081ÂXë[_x0010_A5HÅ\u008d+\u0099_x0010_A\u0086C² ×o_x0010_A_x0010_¼ï|ùÛ_x0010_A\u0081_x001E_(\u0083 _x0001__x0010_ArÝêçõs_x0010_A<ØÉ\u0096¨s_x0010_A8®{_x0003_wo_x0010_A\u0083\u0087Ö_x0014_«\u0089_x0010_AU_x0008_3_x0004_îq_x0010_A\u0096ê¾0_x0005_R_x0010_AÆ]_x0019_\u008d_x001D_\u009f_x0010_Auoß\u007fi@_x0010_Af\u0096\u009b¹_x0008_P_x0010_A9Þ_x001A_Ù®Ç_x0010_A\u008by¾Ï\t<_x0010_A÷\u0092\u00867_x001B_g_x0010_A\u009cTD°£´_x0010_A_x0004__x0005_\u0090cA=¹ç_x0010_A&L\u0091zÇ\u008e_x0010_A·&Ä7@I_x0010_Ad{ÉîS\u008f_x0010_A`ª:W_x0010_p_x0010_A®¸ØnnÉ_x0010_AÚ¬)¯_x000F_º_x0010_Aÿ®_x001E_0_x0011_Ï_x0010_A©Íb¦F\\_x0010_A_x0001_\u0097Î¯Ýf_x0010_Aq_x001B_æÏÓw_x0010_AÎ1*ÐA_x0002__x0011_AQ¸'\u0092ìa_x0010_A_x001B_N¿\u0085WZ_x0011_A\u007f\u008d\u0089½9;_x0010_A!U_x001F_¾\u009c\u0095_x0010_A^%9\u008bá½_x0010_AÓ_x0003_ìÓ;4_x0010_AèÈ\u009fæ_x000C_<_x0011_AgM1Óÿ^_x0010_Aè)\u0096öy\u008a_x0010_A\u0099\u009cì-yC_x0010_AÄ\u009ccíÒ}_x0010_A\u0094_x000D_l¡°^_x0010_A\u009d52\u0080á_x0004__x0010_A\u0083WC~V>_x0010_APu+;\t\u0099_x0010_AÐJw&-\u0090_x0010_AO1à\u0088&_x001F__x0010_A]\u0089^ö}\u009e_x0010_A_x000E_+Û{_x000D__x0001__x0010_A òf_x0001__x0001__x0003_ïm_x0010_A\u009ceí_x0014_Ø¨_x0010_AÎö¨ÖÍØ_x0010_Ai±çÝ¾B_x0011_A't_x0001_º+=_x0010_AÈ>,Qí¦_x0010_AÔ_x001C_Ý'T¥_x0010_A($\u0087YÑ\u0091_x0010_A\u0088w\u0098Ù@_x001B__x0010_A×îGUaX_x0010_Ah¡vAÅ'_x0010_A/X_x001D_æÁð_x0010_A\"_x000C_-`²²_x0010_A¼\u009a\u009a½\u0082._x0010_Abè\u0090/Ü¡_x0010_Al£\u0087%\u009c_x0001__x0010_AÀF\u0095\u009eÙ\u0081_x0010_A£ =)\u0097¸_x0010_AuH\u0091àÃ\u009d_x0010_AÍtÆíyæ_x0010_A\u0090²áòb_x0007__x0011_A\u0085_x0011__x001F_gwØ_x0010_A<pÄ\u0081}ö_x0010_AÝ¥È¿_x0002_t_x0010_A*p§¯1¢_x0010_AMæùÐ=Ê_x0010_A G¢7ì_x0018__x0010_Aa\u0089Ç¾_x0010_ø_x000F_A\\D÷\u0095ÔÚ_x0010_A«lT¼{._x0010_A_x001F_Wÿ$CÊ_x0010_APá3,]f_x0010_A_x0001__x0005_h7\u008dL_x0004__x000E__x0010_AÉ\u0095NÉ\u0092&_x0011_A_x0014__x0004_·_x000C_`¸_x0010_Axt_x0002_\u0083\u0080\u0093_x0010_A%Âüéb¢_x0010_A]V/\u009fÔÜ_x0010_A_x0003_ã®´5_x001B__x0010_A7#\u0083_x001B_ÝÂ_x0010_A\u009aùÉ\"Ä_x0013__x0010_A&5uKíª_x0010_A=öõ½~½_x0010_AÆ_x001F_î3¦=_x0010_A°7\u009d^\u0093°_x0010_Aw\u009dÙéýÏ_x0010_AÃÖÐsÍ\u0087_x0010_AZ§À1ÔX_x0010_A\u008a¶ÑéD_x000D__x0011_A\u0089ø\u009c\u009aVõ_x000F_AÈe\u0086Øß_x0014__x0011_AO_x0017_ql\u0084F_x0010_AÉ½Ü\u009eÉ\u0097_x0010_A_x0014_½e×4F_x0010_ASwÄÝÙ)_x0010_AÔ²´\u009f;&_x0011_AÜ_x001A_xì([_x0010_AU-ã-ág_x0010_A\u008f\u0094Awû!_x0010_A\u0094\t#;_x0018_å_x0010_AVÂÕ$/\u0097_x0010_A Z¯\u0083¿ð_x0010_AÕ(o\u008cÿ^_x0010_A\u0086\u009eÓ²_x0002__x0004_zk_x0010_AãªF]\"|_x0010_A EÐn_x0004_\u0095_x0010_Ai\u0098¢Ë·Þ_x0010_AÃ\u0089\u007f\u0083_x0011_Ç_x0010_A\u0098_x001D_\u008e_x0005__Ã_x0010_A_x001F_X[¹Ú_x001C__x0011_AÃå\u0096\u0081\"T_x0010_A÷_x0018_D_x0019_\u0098d_x0010_A)æÔDÉ¹_x0010_A¼çA)_x0001_H_x0010_A´ëL?ãè_x0010_AµµÀàT\u0096_x0010_AÔÔ³Áqr_x0010_AâaÌlAb_x0010_Aaý\u00971\u0097._x0010_A\u009cm`CB¡_x0010_A-£¥ûÒ\u0085_x0010_AxF¯rj]_x0010_AKn_x0003__x0002__x0008_g_x0010_AÐ_x001A_:¥Øæ_x0010_AE\t_x001A_©µÝ_x0010_A\u008f²ÚM5L_x0010_A_x0011_Ç_x0014_í_x0004_¢_x0010_Aq4¸Z_x0017_\u008f_x0010_Aß\tP\u008a¢;_x0010_AÓÐ&\u007f_x0016__x0010__x0011_A\u009aÊcy²\\_x0010_A_x0015_¬»_x001A_â\u009e_x0010_Aì\u0093\u0095Â¿Ú_x0010_A@Ä÷½Ý_x000D__x0010_AÏXéáÕO_x0010_A_x0002__x0003_Ø_x0018__x0016_C_x0012_Ü_x0010_Ae/×=_x000F_3_x0010_A_öÐ_x001D_Ê_x0001__x0011_A»ï_x0002_áöx_x0010_A^²Â_ÒR_x0010_A_x001D_é$r=Y_x0010_A'y\u0094ïCB_x0011_A( \"K_x000F_\u0099_x0010_Añ~r_x001F__x000D_)_x0010_ABê\u009b¬g*_x0010_Auq\\²g6_x0010_A\"Ï¢\u0091>_x0014__x0011_A;1Ñt_x0019_Þ_x0010_AtÓp2\u0082__x0010_AÒ¿\u0096ö'\u009e_x0010_An1À\u0096ßÎ_x0010_AH7ÝrÅ\u009b_x0010_AÞ_x0013__x0015_ºae_x0010_A?,-nVr_x0010_A¾÷µ{âc_x0010_A_x0008__x0005_ÃÏ­\u008b_x0010_A_x000E_{ZèÃ\u009f_x0010_A\u0081_x000F__x001A_\u008bè¨_x0010_AYSe\u0099I{_x0010_Aý×t9EB_x0010_A®¦\u0086B,v_x0010_At¤ªMl_x0002__x0011_A¹ñ¦(:_x0005__x0011_A°npcÙ6_x0010_A\u0091\u0089-_x0012_ ¨_x0010_A"}},{"$cut":{"chars":64404,"head":"4d506573766a1063ccd9f4d4e868f12a_x0001__x0003_^\u009an_x0019_&\u009c_x0013_Aèmë\u008d«~_x0014_Aî_x001F_\u008b|_x000D_Â_x0013_ATCî./Þ_x0013_A_x000E_e_x0003_^\u0098\u0087_x0014_Aùc\u009e\u0098d\u009f_x0014_AÁaµt³z_x0013_AÃ%.ëÆâ_x0013_AéOÞÃãN_x0014_AqG¡\u0093qY_x0013_A9\u008dN%_x0003_@_x0014_A\u009c^ðÞM®_x0013_AÜçÜ_x0008__x0002_}_x0013_A¦Áù[ \u0085_x0013_A`w²Ì_x0013_õ_x0013_A\u009e¹í\u0099\u0081B_x0014_A,é_x0014_Ubã_x0014_AVãC\\À¡_x0014_A\u009dýÆ6f*_x0014_A_x0016_Î<tuõ_x0013_AI\u0083¡\u009aÙ*_x0014_AEâ1Ç\u0082\u0098_x0014_A7\u0084\u0082_x0007_À!_x0014_A£_x0016_sîdµ_x0013_A~N_x0018_&©Í_x0013_A*~:éðÅ_x0013_A>\u0098þå_x0017_\u007f_x0014_A_x001B_=3.\u0086_x001A__x0014_AßÐä~6¢_x0013_AKõP©È_x0007__x0014_Ah_x0001_\u009f}ì´_x0013_Aýq_x0012_\u0087_x0002__x0003_vf_x0014_A\u0084\u0080ÀÉ®³_x0013_AöÀS8E_x001A__x0014_A8_÷îQ^_x0014_A/¸öY@h_x0013_AØåð_x0017_\u008ff_x0014_A¬&Î\u009b=3_x0014_AUL\u0086_x001C__x000E_ô_x0013_A\u0092ID,×Þ_x0013_Að\u008b6ÞÇ_x0013__x0014_AcN_x001E__x001E_lO_x0014_AÃàX_x000E_æ\u0090_x0013_AÏo¥Ð·@_x0014_A_x000E_\u009dF8\u0090L_x0014_APí¿­³¡_x0013_AøâV¡~:_x0014_A=Þq\u0087Ø2_x0014_Az\u009dé\u0099~_x0005__x0014_A_x0017_Äm.\u009bÖ_x0014_A ¢$Nuà_x0013_A2Å_x000F_K§_x000B__x0014_A_x0013_GÓ\u0096êv_x0014_A_x0011_®ÌßöO_x0014_AoJN`_x0015__x0001__x0015_AtÐ|_x001A_\u0091½_x0013_A_x0006_?<y¸K_x0014_AB\u009c\u0084þ_x0015_{_x0014_A_x000E_ä¥\u0081Üv_x0014_A°_x0001_ÎèÙ\u0093_x0013_A)Ï®$Ï\u0093_x0014_AÄ¡x`ÂÎ_x0013_Añ|~e_x0018_<_x0014_A_x0001__x0002__x0013_Þ£\u009a#Õ_x0014_A´(_x000B_tÃ\u008f_x0014_A¿_x0016_²K\u0084,_x0014_Aï\u0085\t§$\u008b_x0013_A¶^\u008dÈ^Ï_x0013_A0\u0091´\u009d\u008e_x0001__x0014_A®|?\u0085ÒÄ_x0013_AC{L]ê>_x0014_A¢0^·ä_x0013__x0014_A½_x000E_ÒßÉÐ_x0014_AsW\u008fÝ_x001C_f_x0014_AXÆ\tM}\u0083_x0013_A¸)¿¯_x0015_4_x0014_Aé'É<þÐ_x0014_A_x0004_îôYl¬_x0013_AÌ½_x000E_-?Ã_x0013_A_x0002_ÖÀM_x0006_õ_x0013_Aÿ\u009f`?ÎÊ_x0013_A\u0086\u0080æ\u0099ÈÂ_x0013_At¶\u009f>.Ó_x0013_A\u009f_x0003__x001A_¦_x0008__x000F__x0014_A\u0090\u0082\u0094n\u008f¿_x0014_A©_x0017_×þ\u009a_x000D__x0014_A_x001A__x0007_Ø]â\u0091_x0013_A\u0086+´\u0081æT_x0014_AýMúÐ_x0008_ß_x0013_AÉ_x001E_Uý\u009b+_x0014_A®_ß\u0092tÕ_x0013_AE_x000F_lW®\u009a_x0013_A\u0084\u0089,_x0007_ãÌ_x0013_A÷#®¿9\u0087_x0013_A½ôÍ_x0001__x0001__x0002_ï _x0013_A\u008e\u0099S]%+_x0014_A\u0090_x0012_Y\u009c\u008c\u0088_x0013_A_x0019_é_x0004_eÍf_x0014_Ah\u0090ÂÖ\u009am_x0014_A_x000B_ý_x0006_t°Ç_x0013_A\tm1Û_x001A_É_x0014_AGÕ¯\u0095zô_x0013_AæÆL&=Å_x0013_A¹_x000D_\u009f*ùÑ_x0014_A¢_x0013_iò\u0098y_x0014_Aé\u0080_x001D__x000C_Rë_x0013_AÁ_x0011_\u0082\u009f³D_x0014_AÔ_x0004_´»_x001C_=_x0014_A}§y_x000E_é$_x0014_AAÓ\u009bÁÈü_x0013_AÛ¤WïU|_x0013_Agaæ¿¦_x0006__x0014_AdÏßH @_x0014_A©Å\u009e°QÉ_x0013_A\u0098Z\u0082±ß>_x0014_A\u008bî_x000E_\tÆ8_x0014_AàÉc\"`v_x0014_Aßêô_x000C_5ï_x0013_A¤\\ÎX\u0087k_x0014_AwêI_x0003_¤Ö_x0013_A»¼ Zom_x0014_AõÅ/¨_x001F_\u008a_x0014_AÔ/V_x000F_\u0093Ã_x0013_AZD(m~_x0019__x0014_A6_x0016_ôNcU_x0014_A}2\u009b^_x0011_ë_x0013_A_x0005__x0008_ãw_x0003__x0014_)J_x0014_A_x0006_ô?ý}C_x0014_A»¯ú_x0004_$Ë_x0013_A×Do÷i\u0088_x0013_Aéç¤ýý\u0086_x0013_AÇÇÎ8þõ_x0013_A_x0011_?_x0005_\u0089_x0013_Y_x0014_A\u009cË\\Rhü_x0013_Asè2_x001F_(«_x0013_A^oì`vç_x0013_A)ò_x000D_nö\u007f_x0013_AV'å¦÷/_x0014_A{VW\u0082_x000E_u_x0014_Ao_x0001_\u0086K¤,_x0014_A©´¢½ú%_x0014_Apo)â\u0096s_x0014_AP_x0002_)TÏ\u0083_x0013_A=`ºå_x001E_Ú_x0013_A_x0002_\u0091*Ö¬·_x0013_A\u008d_x000B_íÓ·h_x0014_A\u008bÂüíóÞ_x0013_A\u009e£ò\u0099_x0010__x0007__x0014_A2Ö.V\u0089D_x0014_A(þ\u007fhéª_x0014_AºÛÞÇc®_x0013_AîÍ^_x0006__x001D_U_x0013_A\u0084Q_x0017_Äþû_x0013_A_x0018__x000B_{ä¨5_x0014_A¡\u0092¬älÐ_x0013_A}Ä·-!¥_x0013_A&Y9m\u008b³_x0013_A¤|Å4_x0003__x0007_¿L_x0014_AoÐÀ\u008dÅ_x0017__x0014_AhzD_x000D_l1_x0014_A_x000E_yº)ì_x0004__x0014_A£_x0018_y¯~µ_x0013_AD_x0010_·FE_x0018__x0014_ARï_x0003_\u0093C\u008f_x0013_A\u0088EôEUÏ_x0013_AÙ\u0099CÈ\u0096\u0096_x0014_A§7K¿_x0018_Q_x0014_A\u009fì\u0087ÌPf_x0013_AS×m_x001D_ôa_x0014_A_x000C_wU_x000B_\u00814_x0014_Aàn\u0086:±·_x0013_A=Û±_x0002_ú}_x0014_AZwRHªÊ_x0013_A_x001D__x000B__x0007_c##_x0014_AØe_x0005_§|ú_x0013_Aåy,ö­_x0015__x0014_A#K\\W\u0094ì_x0013_A6(_x000D__x0002_á\u0095_x0013_A_x0001_\u0089_x0012_\u0095§\u0082_x0013_Aù\u009dyÆ4³_x0013_A_x0016__x0015_[_x0002_Ó_x000D__x0014_Aø\u008bMÅ8Ó_x0013_A9vH/\u0092ß_x0013_A%ð_x000D_I_x0006_Ñ_x0013_AíßÎ\t\u0083_x000E__x0014_A\u0082_x000B_\u0093Å9:_x0014_AváòÉ\"p_x0014_Aâ_x001E_Äý¶\u009c_x0014_AÿI9ÅXâ_x0013_A_x0001__x0002_\u0099©8\u0085\u0099R_x0014_A¿øõV{é_x0013_A£§\u009f\u0094Çþ_x0013_A<_x0016_8b\u0085>_x0014_A+Ü'\tð\u0085_x0013_A²õ >0Ú_x0013_A_x0001_Õ\t1ù_x000C__x0014_A¢_x0013__x0005__x000C_Ó7_x0014_AF_x0003_q¥y\u0080_x0013_Aßâä²o_x001D__x0014_AQ?UObÑ_x0013_Ao _x000C_ä³_x0011__x0014_A_x0003_\u009aO<l_x001E__x0014_AëõÄ[9ð_x0013_AL_x001A_Î\u009f±`_x0014_A\u0084;|×Ìá_x0013_A[o\u008e\u009c,Ç_x0013_A\"9Æ_x0008_\u009dz_x0013_Aý_x001F_\t\u008c_x0019_E_x0014_A\u007f\u0090QÔtO_x0014_Aü7É¨k\u008d_x0013_ABhðê`Ý_x0014_A^»YL ù_x0013_A\u008a( ¤_x001C_´_x0013_A9Ë`÷ýw_x0014_A¥åÝ_"}},{"$cut":{"chars":143562,"head":"ec2b50daa41fa5c5634ce8c4b2f2c4a2_x0001__x0002_Hfvc@±\"A_x0010__x0017_î_x000C_h\u0089\"A_x000C_Ôç\u0083Yô!A²z½¢b6\"An\u009fnì\u008b \"A\u009e;~~\u009cå!AJ\u0087Û±14\"AÞ'/î\u009c_x0012_\"A\u0094¦¯Z_x0007_ó!A_x001D_\u0092bè\u0088¶\"A*áæ]Aø!AÜÛ_x0019_\u0090áU\"AðxÅMÞÈ!A\u0094bÄm>R\"A4\u0085_x0004_×þé!AFÌO¹-K\"A¤ØÁ&_x0016_¬\"A\u008a=á\u009b%_x0003_\"AÜ_x0006__x0004_¨ß_\"AÁ² \u0085·\u008b\"Ad´d1Ï·\"Ab}WÏY_x0002_\"A\tÇÿÞ\u009aï!AéØóÀs\u0087\"A:KãU6_x0012_\"An\u009eUs9Ñ!AÊÛ\u008c\u0085h9\"Ac§\u0098Cë`\"A.Ã!3Ç@\"A`Y©B_x0018_\u0093\"A\u0092|ºp:<\"A\u0092zNÅ_x0001__x0004__x0016_º!A¬«Å7?V\"A_x0012_\u0092¹_x0003_\u0088\u0081\"Ao\u0083X,¯\t\"AÑÐ+¿^%\"AH_x0016_L¯'ý!AX_x0007_\u008a«An\"ALT_x0005__x0003_¨_x0014_\"A¤>XLC_x0003_\"Aù7Ý_x0019_+>\"AÃãÍ«-L\"A!®ñz\u007fF\"A64ÎÞT¾\"A\u009eÏ¢î¦/\"A¸ò^H)F\"AjÛåE\u0091|\"A\u0098î!â_x0010_ê!A\u0086_x0017_ïs_x000B_&\"A_x0002_:å_x0018_$\t\"AR´_x000D_°U\u008c\"Acã;_x0003_05\"A_x000C_c=4ùÆ!A*1Jg\u007fB\"AYÍ_x0018__x0005_ç|\"AÕs\u0093»Y\u008c\"A¶\t©oÒ_x0001_\"A|\u008a0\u0091h_x001B_\"AØ1{\\_x001E_]\"AÉ_x001A_¦O\u007f_x001C_\"Ad_x0001__x000F_ò×$\"A3\u009fð_x0013_{_x0011_\"Ad}c_x0018_\u0083\u0080\"A_x0001__x0003_R_x001C_\u0091hXe\"Aºø\u008f}_C\"AþùÜ_x0015_?\"\"A2ùÒD\u007f_x001B_\"A½6¯øÙ!\"A&ÅEç+&\"A\u0095k[_x0006_ms\"A_x0001_°ø\u0084J5\"AÉà4Â]_x000D_\"A7^@_x0001_®\u009b\"A_x0010_å\u0080lèo\"AdÔEÐÒv\"A\u0092¤ªSB[\"AUÅrÝþÎ!A\u0086\u0097¶øqÿ!A\u0084\u0097þ_x001B_g.\"Abô6\u009b\u009e\u0080\"A\u008e¦(:ûw\"A\tÆ`\u0082_x0002__\"AÅFÂ/_x0011__x001B_\"A\u008c\u008a-ÓSã!A\u0090\u0080 Î{ \"AÎba_x0012_ìs\"A2ÓB¯g\"\"A~çoÅäU\"A\u0092°æ>%_x000C_\"A\u0094P_x000E_m¦0\"AÂys_x0008_B_x0012_\"A|¨zJ_x001E_\u008e\"A¢\u0085°ÕÙø!A:\u009b_x0019__x001B__x001F_k\"A_x001C_ÎNo_x0003__x0004_¾ò!A_x0002_\u008fÐ4 ß!AáÓ>_x0008_PC\"A<òy\u0097\u008a.\"Ap_x001E__x0011_«\u008as\"AµÿHø9\u009c\"A&\u0089\u008bi_¡\"A\u0094*ã®_x0004_\u0099\"A~5úé\\9\"A¦ç9\u0085!X\"AÅ_x0014__x001B_Üö\t\"A+§´k\\#\"ATÕj\u0097{f\"AGº[\u0088GG\"A*9\u009b_x0004__x0008__x0002_\"A?Ç:õðf\"At_x0013_{Ç&!\"Aò_x000E_ûdÓx\"AtÊ]LûÏ!Aß4øÃ{\u0087\"A\u0099\u009dÙ&=i\"A;Â\u0082¡×r\"AóAÞïÃ^\"A\u00832ö/m~\"A\u008cr$_x000D__x0007_X\"At^\u0096_x0019_£o\"AÀ¸à¿\u0084\u0082\"AþÄÎl_x001E_\u0090\"AïÇ7\u0080ûx\"Aô_x000D__x0004_¯)A\"Ajk3ðÁî!A_x0001_£©^?®\"A_x0001__x0002__x0007_¡\u009d\u008dC¯\"A,_x0017_jó½q\"AbI_x001A_3_x001F_=\"A(_x0008__x001E_5ÒE\"AÉºÚÌZA\"AÔªáJÚ\u0086\"ADÈ\u0086_x0001_îN\"A\u008e+\u0096T«;\"AÃ\u009f_x001F_8_x001B_³\"AØ5ÍÚ_x0012_9\"A0î§_x0010__x0005_:\"AfU\u008aÍ\u0083$\"Al?: ;\u0088\"A_x0012_Nº\u0091ø \"AÎ_x001E_\u0096L>*\"A¼®,\u009c\u008a_x0014_\"AÆï?ø1_x000E_\"AÖåÍ\u008bî·\"A_x0010_fº\u009dP.\"AÚmÒkåÌ!A=±µ_x001A_ì}\"A6kÿ=Ey\"At_x000B_È\u008frQ\"A_x0006__x0005_ÿ<Ût\"AÃ²¾OÛ\u0087\"Aì_A;_x0006_ª\"A\u008e7\u0089\u0090iÒ!AïÉ_x0005_\u0098Ë'\"A@3\u0095A5°\"A$~_x001A_Ï\\~\"AÄ\u009bD·íJ\"A<×ÊJ_x0001__x0003_í\u0086\"Aç_x001D__x0003_Ú8Þ\"A\u009cì´ÈF°\"A_x0002_?~Êõ_x0012_\"A JZ8o$\"A_x0002_ú:kÏO\"AÝ\u00870\u0093\u008cW\"AB}åÄE½!A^\u009f%_x001F_ÝÛ!AÎ\u0092è_x000E__x000F__x0006_\"A\u0082gç_x0014_¿o\"Aqç(-5\t\"AðâÜ1Ûß!A\u0085ÕGwìz\"A_x0002_\u0087Ñ_x0002_¼K\"A_x001A_É\u008bÇ¤5\"A_x0002_Lù$_x0005_L\"A¦%ä_x0005_ÞZ\"A&ç_x0006_p_x0011__x0015_\"AT_x000B_\u0097my#\"Ab(£3F\u009a\"Aw¹¼>_x000B_\u0091\"A\u0082À\u0082,_x0015_\u009c\"AN\u0095\u0088I÷b\"Ac_x001B_4\u008dº2\"A\u008eê_x0001_\u008btV\"A£_x0001__x0011__v_x0011_\"A8\\AÄpç!A\u0086q¬\u009aB\u009f\"A\u008cÊ-×¯_x0017_\"A´[4û>%\"Af\u008fB(£\u008c\"A_x0003__x0004_Þ\u0096Ç)ê\u007f\"A\u0092%î _x001A_*\"Auþ\u008c\u0084r¥\"Aê\u0092ðwé,\"AÒ+¿Øê_x001A_\"AT¼\u0090¿_x0014_?\"A\u009d­\u009e\u0086_x0001_þ!A_x0014_l¸\u008eoí!A<\u00915Y»m\"Aò(äújÎ\"At¿o/NÑ\"AÞ\t¬`Q=\"AÕ=q_x0018_ÂF\"AØ8ÿºº\u0092\"AðU\u008dqgF\"Av\u008e\u0085#_x000C__x0003_\"A\u009cî? ×(\"A0_x000D_=Nù\u009b\"Aà_x0014_g\u0099_x000F_Ï!Aª\u009dÓñO\"\"Ap\u0098f÷:«\"A_x0016__x0015_\u009bÞ_x001E_ü!A\u0092_x000D_åpª\u0083\"A_x000E_\u0091ºÙZY\"A\u0084w\u0091øW<\"AD%dÄ'!\"A°OÃÖ2q\"A_x0002_\u0093[£·Z\"Aö¿æ?\u008d0\"A?,F_x0019_\u008d\u0095\"A~Na®\u0097b\"A|¾õ2_x0001__x0005_jw\"Ag_x000E_¹>ðÁ!A\u008c\t½_x0002__x0012_ÿ!A2.¨¿NÚ\"AõÝ\u0097ê8P\"A\u008c×´[ÿ|\"A_FI_x0014_;\u0081\"Adj_x0017_ø`_x000F_\"A\u0092àrÞR3\"AP_x000D_(='B\"Ap5=ÔÓ\u0083\"APtù\u0092N\u008c\"A<Î¢:Ö_x0008_\"Aº_x0004_\u009e \u0092Z\"ArÅö_x001C_?\u0092\"A¶b¶ÎÔ¦\"A\u0084A÷_x0005_X7\"A.­i_x000E_¾¸\"AD%9L$)\"AË±lD½_x0014_\"AÀ¤V_x0014_\u0097_x0003_\"A|á/õ_x001D_¬\"AÆ\u009dº$ÞC\"AúÇlÅw_x0005_\"Aü+\u0095f½\u0098\"AælÎ_x0002_oê!A¦o\u0082ûÐn\"A>-Ì®&\u008f\"A\"ð,MG<\"A_x0004_\u007f<§_x001E_õ!A8ä\u0087ÀãQ\"A_x000E_³KF\u008fP\"A_x0001__x0003_´s#4©n\"A¸»±_x000B_Q#\"ARü\u0097\\_x001C_\u0083\"A$Fik-\u0090\"A\u0089®d\u009aq\u0090\"A¬R<-ª/\"A7=Ö'¬ï!Aà\u0086T!t:\"Aâ@c\u0092w@\"A\u009b'¨U²_x001F_\"AÿjÂE³\u009c\"Aø\u009e_x001F_\u008d¾\\\"AÜl³}|í!A6\u009d\u0099[äm\"A\u0081íßÒ`ö!A4\u0085_x0008_\u0093_x0007_\u0087\"AXîjfYL\"AN\"û_x0014_Ò\u0089\"AÜ_x001D_\u009a?Þ¥\"Al[Æ_x000E_\u0081[\"A8@³Ø$Æ\"A\u0086?îMFs\"A8_\u0096_x0002_ðO\"AÚ;Ð­¹D\"AJ_x000F_#ò8/\"Awð'úþó!A·±4Îw_x000B_\"Aæ/(\u009aö¢\"A_x000C_`­\u0080±\u0090\"A\u009e_x0011_\u008d½r\u0088\"AÔ\u0099ÕqÃ5\"Ax\u008c_x000E_Î_x0004__x000B_g_x000D_\"AÈo¸hÉo\"A_x001A_´l»\u0088;\"A¢Öm)±W\"AÜêO_x0012_f_x0001_\"AWM:RT\u0080\"A8_x0008_'i\u0095®\"ALSßÏ«_x0014_\"An×}lÓ\u0082\"Aæ>1\u009c\tø!A÷\u0084\u0088ë»+\"A²ECc¹\"\"A¸\u0085Ò\u0083ì}\"ArM_x0007_(Rý!A`úÿ_x0014_Õ4\"A6J«ò:_x0004_\"AéÔöd&\u0082\"ABwï_x001B_â?\"A\u0088_x0002_òù_x0010__x000C_\"Aä_x0005_\"_x001E_ÊÝ!A_x0006_t¿=©_x001E_\"A_x000F_\t\u0091±NÞ!A\\ \u0097÷$H\"AL;¥_x001D_÷_x0007_\"ANd_x0010_³Ì\u009b\"A[Û\u008f§ó×\"A_x0011_Rõ_x000C_ë\u0083\"AZ_x0001_ª_x0006_KT\"A¯_x000E__x000E_;Þ¼!Au-\u0081_x0015_Íã!Aµ8òe|G\"AR\u007fâÔþ_x0003_\"A_x0006__x0007_=\u0088\u0085pÏ\u0084\"Aþä½ÞÏp\"A®*_x001E_Ý-|\"AÆN-ð,¬\"Aô\u0098ç³z$\"Aä\u0090É(à¶\"As±©¥"}},{"$cut":{"chars":161694,"head":"e1b5276f37bf2bae579e046ef69914dd_x0001__x0002__x0001__x0001__x0001__x0001__x0008_\u0083_x0018_A_x0001__x0001__x0001__x0001__x0008_\u0083_x0018_A_x0001__x0001__x0001__x0001__x0008_\u0083_x0018_A_x0001__x0001__x0001__x0001__x0008_\u0083_x0018_A_x0001__x0001__x0001__x0001__x0008_\u0083_x0018_A_x0001__x0001__x0001__x0001__x0008_\u0083_x0018_A_x0001__x0001__x0001__x0001_H¢_x0018_A_x0001__x0001__x0001__x0001__x0008_\u0083_x0018_A_x0001__x0001__x0001__x0001__x0008_\u0083_x0018_A_x0001__x0001__x0001__x0001__x0008_\u0083_x0018_A_x0001__x0001__x0001__x0001_(Ñ_x0018_A_x0001__x0001__x0001__x0001__x0008_\u0083_x0018_A_x0001__x0001__x0001__x0001__x0008_\u0083_x0018_A_x0001__x0001__x0001__x0001__x0008_\u0083_x0018_A_x0001__x0001__x0001__x0001__x0008_\u0083_x0018_A_x0001__x0001__x0001__x0001__x0008_\u0083_x0018_A_x0001__x0001__x0001__x0001__x0008_\u0083_x0018_A_x0001__x0001__x0001__x0001__x0008_\u0083_x0018_A_x0001__x0001__x0001__x0001__x0008_\u0083_x0018_A_x0001__x0001__x0001__x0001_(Ñ_x0018_A_x0001__x0001__x0001__x0001__x0008_\u0083_x0018_A_x0001__x0001__x0001__x0001__x0008_\u0083_x0018_A_x0001__x0001__x0001__x0001__x0008_\u0083_x0018_A_x0001__x0001__x0001__x0001__x0008_\u0083_x0018_A_x0001__x0001__x0001__x0001__x0008_\u0083_x0018_A_x0001__x0001__x0001__x0001__x0008_\u0083_x0018_A_x0001__x0001__x0001__x0001_(Ñ_x0018_A_x0001__x0001__x0001__x0001__x0008_\u0083_x0018_A_x0001__x0001__x0001__x0001__x0008_\u0083_x0018_A_x0001__x0001__x0001__x0001__x0008_\u0083_x0018_A_x0001__x0001__x0001__x0001__x0008_\u0083_x0018_A_x0001__x0001__x0001__x0001__x0001__x0002__x0008_\u0083_x0018_A_x0001__x0001__x0001__x0001__x0008_\u0083_x0018_A_x0001__x0001__x0001__x0001__x0008_\u0083_x0018_A_x0001__x0001__x0001__x0001__x0008_\u0083_x0018_A_x0001__x0001__x0001__x0001__x0008_\u0083_x0018_A_x0001__x0001__x0001__x0001__x0008_\u0083_x0018_A_x0001__x0001__x0001__x0001__x0008_\u0083_x0018_A_x0001__x0001__x0001__x0001__x0008_\u0083_x0018_A_x0001__x0001__x0001__x0001__x0008_\u0083_x0018_A_x0001__x0001__x0001__x0001_H¢_x0018_A_x0001__x0001__x0001__x0001_Èà_x0018_A_x0001__x0001__x0001__x0001__x0008_\u0083_x0018_A_x0001__x0001__x0001__x0001__x0008_\u0083_x0018_A_x0001__x0001__x0001__x0001_H_x001F__x0019_A_x0001__x0001__x0001__x0001__x0008_\u0083_x0018_A_x0001__x0001__x0001__x0001__x0008_\u0083_x0018_A_x0001__x0001__x0001__x0001__x0008_\u0083_x0018_A_x0001__x0001__x0001__x0001__x0008_\u0083_x0018_A_x0001__x0001__x0001__x0001__x0008_\u0083_x0018_A_x0001__x0001__x0001__x0001__x0008_\u0083_x0018_A_x0001__x0001__x0001__x0001__x0008_\u0083_x0018_A_x0001__x0001__x0001__x0001__x0008_\u0083_x0018_A_x0001__x0001__x0001__x0001__x0008_\u0083_x0018_A_x0001__x0001__x0001__x0001__x0008_\u0083_x0018_A_x0001__x0001__x0001__x0001__x0008_\u0083_x0018_A_x0001__x0001__x0001__x0001__x0008_\u0083_x0018_A_x0001__x0001__x0001__x0001__x0008_\u0083_x0018_A_x0001__x0001__x0001__x0001__x0008_\u0083_x0018_A_x0001__x0001__x0001__x0001__x0008_\u0083_x0018_A_x0001__x0001__x0001__x0001__x0008_\u0083_x0018_A_x0001__x0001__x0001__x0001__x0008_\u0083_x0018_A_x0001__x0001__x0001__x0001__x0008_\u0083_x0018_A_x0001__x0002__x0001__x0001__x0001__x0001__x0008_\u0083_x0018_A_x0001__x0001__x0001__x0001__x0008_\u0083_x0018_A_x0001__x0001__x0001__x0001__x0008_\u0083_x0018_A_x0001__x0001__x0001__x0001__x0008_\u0083_x0018_A_x0001__x0001__x0001__x0001__x0008_\u0083_x0018_A_x0001__x0001__x0001__x0001__x0008_\u0083_x0018_A_x0001__x0001__x0001__x0001__x0008_\u0083_x0018_A_x0001__x0001__x0001__x0001__x0008_\u0083_x0018_A_x0001__x0001__x0001__x0001_(Ñ_x0018_A_x0001__x0001__x0001__x0001_(Ñ_x0018_A_x0001__x0001__x0001__x0001__x0008_\u0083_x0018_A_x0001__x0001__x0001__x0001__x0008_\u0083_x0018_A_x0001__x0001__x0001__x0001__x0008_\u0083_x0018_A_x0001__x0001__x0001__x0001__x0008_\u0083_x0018_A_x0001__x0001__x0001__x0001_H¢_x0018_A_x0001__x0001__x0001__x0001__x0008_\u0083_x0018_A_x0001__x0001__x0001__x0001__x0008_\u0083_x0018_A_x0001__x0001__x0001__x0001__x0008_\u0083_x0018_A_x0001__x0001__x0001__x0001_H¢_x0018_A_x0001__x0001__x0001__x0001__x0008_\u0083_x0018_A_x0001__x0001__x0001__x0001__x0008_\u0083_x0018_A_x0001__x0001__x0001__x0001_Èà_x0018_A_x0001__x0001__x0001__x0001__x0008_\u0083_x0018_A_x0001__x0001__x0001__x0001__x0008_\u0083_x0018_A_x0001__x0001__x0001__x0001__x0008_\u0083_x0018_A_x0001__x0001__x0001__x0001__x0008_\u0083_x0018_A_x0001__x0001__x0001__x0001_Èà_x0018_A_x0001__x0001__x0001__x0001__x0008_\u0083_x0018_A_x0001__x0001__x0001__x0001__x0008_\u0083_x0018_A_x0001__x0001__x0001__x0001__x0008_\u0083_x0018_A_x"}},{"$cut":{"chars":150456,"head":"ba9670a740b6ff0930f2e7a3f73bd259_x0001__x0002__x0001__x0001__x0001__x0001__x0001_Ü_x0019_A_x0001__x0001__x0001__x0001_à\u008d_x0019_A_x0001__x0001__x0001__x0001_à\u008d_x0019_A_x0001__x0001__x0001__x0001_à\u008d_x0019_A_x0001__x0001__x0001__x0001_à\u008d_x0019_A_x0001__x0001__x0001__x0001_ ë_x0019_A_x0001__x0001__x0001__x0001_à\u008d_x0019_A_x0001__x0001__x0001__x0001_à\u008d_x0019_A_x0001__x0001__x0001__x0001__x0001_Ü_x0019_A_x0001__x0001__x0001__x0001_à\u008d_x0019_A_x0001__x0001__x0001__x0001_à\u008d_x0019_A_x0001__x0001__x0001__x0001_à\u008d_x0019_A_x0001__x0001__x0001__x0001_à\u008d_x0019_A_x0001__x0001__x0001__x0001_à\u008d_x0019_A_x0001__x0001__x0001__x0001_à\u008d_x0019_A_x0001__x0001__x0001__x0001_à\u008d_x0019_A_x0001__x0001__x0001__x0001_à\u008d_x0019_A_x0001__x0001__x0001__x0001_à\u008d_x0019_A_x0001__x0001__x0001__x0001_à\u008d_x0019_A_x0001__x0001__x0001__x0001_à\u008d_x0019_A_x0001__x0001__x0001__x0001_à\u008d_x0019_A_x0001__x0001__x0001__x0001_à\u008d_x0019_A_x0001__x0001__x0001__x0001_à\u008d_x0019_A_x0001__x0001__x0001__x0001_à\u008d_x0019_A_x0001__x0001__x0001__x0001_à\u008d_x0019_A_x0001__x0001__x0001__x0001_ ë_x0019_A_x0001__x0001__x0001__x0001_à\u008d_x0019_A_x0001__x0001__x0001__x0001_à\u008d_x0019_A_x0001__x0001__x0001__x0001_à\u008d_x0019_A_x0001__x0001__x0001__x0001_à\u008d_x0019_A_x0001__x0001__x0001__x0001_à\u008d_x0019_A_x0001__x0001__x0001__x0001__x0001__x0002_à\u008d_x0019_A_x0001__x0001__x0001__x0001_à\u008d_x0019_A_x0001__x0001__x0001__x0001_ ­_x0019_A_x0001__x0001__x0001__x0001_à\u008d_x0019_A_x0001__x0001__x0001__x0001_ ë_x0019_A_x0001__x0001__x0001__x0001__x0001_Ü_x0019_A_x0001__x0001__x0001__x0001_ ë_x0019_A_x0001__x0001__x0001__x0001__x0001_Ü_x0019_A_x0001__x0001__x0001__x0001_à\u008d_x0019_A_x0001__x0001__x0001__x0001_@û_x0019_A_x0001__x0001__x0001__x0001_ ë_x0019_A_x0001__x0001__x0001__x0001_à\u008d_x0019_A_x0001__x0001__x0001__x0001_à\u008d_x0019_A_x0001__x0001__x0001__x0001__x0001_Ü_x0019_A_x0001__x0001__x0001__x0001_à\u008d_x0019_A_x0001__x0001__x0001__x0001_à\u008d_x0019_A_x0001__x0001__x0001__x0001_à\u008d_x0019_A_x0001__x0001__x0001__x0001_à\u008d_x0019_A_x0001__x0001__x0001__x0001_à\u008d_x0019_A_x0001__x0001__x0001__x0001__x0001_Ü_x0019_A_x0001__x0001__x0001__x0001_à\u008d_x0019_A_x0001__x0001__x0001__x0001_à\u008d_x0019_A_x0001__x0001__x0001__x0001_à\u008d_x0019_A_x0001__x0001__x0001__x0001_à\u008d_x0019_A_x0001__x0001__x0001__x0001_à\u008d_x0019_A_x0001__x0001__x0001__x0001_à\u008d_x0019_A_x0001__x0001__x0001__x0001_à\u008d_x0019_A_x0001__x0001__x0001__x0001_à\u008d_x0019_A_x0001__x0001__x0001__x0001_à\u008d_x0019_A_x0001__x0001__x0001__x0001_ *_x001A_A_x0001__x0001__x0001__x0001__x0001_Ü_x0019_A_x0001__x0001__x0001__x0001_à\u008d_x0019_A_x0001__x0002__x0001__x0001__x0001__x0001_à\u008d_x0019_A_x0001__x0001__x0001__x0001_à\u008d_x0019_A_x0001__x0001__x0001__x0001_à\u008d_x0019_A_x0001__x0001__x0001__x0001_à\u008d_x0019_A_x0001__x0001__x0001__x0001_à\u008d_x0019_A_x0001__x0001__x0001__x0001_à\u008d_x0019_A_x0001__x0001__x0001__x0001_à\u008d_x0019_A_x0001__x0001__x0001__x0001_ *_x001A_A_x0001__x0001__x0001__x0001_à\u008d_x0019_A_x0001__x0001__x0001__x0001_à\u008d_x0019_A_x0001__x0001__x0001__x0001__x0001_Ü_x0019_A_x0001__x0001__x0001__x0001_à\u008d_x0019_A_x0001__x0001__x0001__x0001_à\u008d_x0019_A_x0001__x0001__x0001__x0001_à\u008d_x0019_A_x0001__x0001__x0001__x0001_à\u008d_x0019_A_x0001__x0001__x0001__x0001_`Ì_x0019_A_x0001__x0001__x0001__x0001_à\u008d_x0019_A_x0001__x0001__x0001__x0001_à\u008d_x0019_A_x0001__x0001__x0001__x0001_ *_x001A_A_x0001__x0001__x0001__x0001_à\u008d_x0019_A_x0001__x0001__x0001__x0001_à\u008d_x0019_A_x0001__x0001__x0001__x0001_à\u008d_x0019_A_x0001__x0001__x0001__x0001_à\u008d_x0019_A_x0001__x0001__x0001__x0001_à\u008d_x0019_A_x0001__x0001__x0001__x0001_à\u008d_x0019_A_x0001__x0001__x0001__x0001_à\u008d_x0019_A_x0001__x0001__x0001__x0001_à\u008d_x0019_A_x0001__x0001__x0001__x0001_à\u008d_x0019_A_x0001__x0001__x0001__x0001_à\u008d_x0019_A_x0001__x0001__x0001__x0001__x0001_Ü_x0019_A_x0001__x0001__x0001__x0001__x0001_Ü_x0019_A_x0001__x0001__x0001__x0001__x0001__x0002_à\u008d_x0019_A_x0001__x0001__x0001__x0001_à\u008d_x0019_A_x0001__x0001__x0001__x0001_à\u008d_x0019_A_x0001__x0001__x0001__x0001_à\u008d_x0019_A_x0001__x0001__x0001__x0001_à\u008d_x0019_A_x0001__x0001__x0001__x0001__x0001_Ü_x0019_A_x0001__x0001__x0001__x0001_à\u008d_x0019_A_x0001__x0001__x0001__x0001_à\u008d_x0019_A_x0001__x0001__x0001__x0001_à\u008d_x0019_A_x0001__x0001__x0001__x0001_"}},{"$cut":{"chars":91458,"head":"8e4bbc02d5a1dd6fdff22094e2b22911_x0001__x0002__x0001__x0001__x0001__x0001_d\u009d)A_x0001__x0001__x0001__x0001_d\u009d)A_x0001__x0001__x0001__x0001_d\u009d)A_x0001__x0001__x0001__x0001_d\u009d)A_x0001__x0001__x0001__x0001_$û)A_x0001__x0001__x0001__x0001__x0004_­)A_x0001__x0001__x0001__x0001_\u0084ë)A_x0001__x0001__x0001__x0001__x0014_Ô)A_x0001__x0001__x0001__x0001_d\u009d)A_x0001__x0001__x0001__x0001_d\u009d)A_x0001__x0001__x0001__x0001_d\u009d)A_x0001__x0001__x0001__x0001_d\u009d)A_x0001__x0001__x0001__x0001_tÄ)A_x0001__x0001__x0001__x0001_tÄ)A_x0001__x0001__x0001__x0001_tÄ)A_x0001__x0001__x0001__x0001_tÄ)A_x0001__x0001__x0001__x0001_d\u009d)A_x0001__x0001__x0001__x0001_tÄ)A_x0001__x0001__x0001__x0001_tÄ)A_x0001__x0001__x0001__x0001_d\u009d)A_x0001__x0001__x0001__x0001_\u0084ë)A_x0001__x0001__x0001__x0001_\u0084ë)A_x0001__x0001__x0001__x0001_d\u009d)A_x0001__x0001__x0001__x0001_d\u009d)A_x0001__x0001__x0001__x0001_d\u009d)A_x0001__x0001__x0001__x0001_d\u009d)A_x0001__x0001__x0001__x0001_\u0084ë)A_x0001__x0001__x0001__x0001_d\u009d)A_x0001__x0001__x0001__x0001_tÄ)A_x0001__x0001__x0001__x0001_Tó)A_x0001__x0001__x0001__x0001_d\u009d)A_x0001__x0001__x0001__x0001__x0001__x0002_d\u009d)A_x0001__x0001__x0001__x0001_d\u009d)A_x0001__x0001__x0001__x0001_tÄ)A_x0001__x0001__x0001__x0001_tÄ)A_x0001__x0001__x0001__x0001_tÄ)A_x0001__x0001__x0001__x0001_d\u009d)A_x0001__x0001__x0001__x0001_d\u009d)A_x0001__x0001__x0001__x0001_\u0084ë)A_x0001__x0001__x0001__x0001_d\u009d)A_x0001__x0001__x0001__x0001_d\u009d)A_x0001__x0001__x0001__x0001_tÄ)A_x0001__x0001__x0001__x0001_d\u009d)A_x0001__x0001__x0001__x0001_DÌ)A_x0001__x0001__x0001__x0001__x0014_Ô)A_x0001__x0001__x0001__x0001_tÄ)A_x0001__x0001__x0001__x0001_d\u009d)A_x0001__x0001__x0001__x0001_d\u009d)A_x0001__x0001__x0001__x0001_tÄ)A_x0001__x0001__x0001__x0001_tÄ)A_x0001__x0001__x0001__x0001_tÄ)A_x0001__x0001__x0001__x0001_d\u009d)A_x0001__x0001__x0001__x0001_tÄ)A_x0001__x0001__x0001__x0001_Ä\u0087*A_x0001__x0001__x0001__x0001_d\u009d)A_x0001__x0001__x0001__x0001_d\u009d)A_x0001__x0001__x0001__x0001_d\u009d)A_x0001__x0001__x0001__x0001_\u0094_x0012_*A_x0001__x0001__x0001__x0001_tÄ)A_x0001__x0001__x0001__x0001_d\u009d)A_x0001__x0001__x0001__x0001__x0004_­)A_x0001__x0001__x0001__x0001__x0014_Ô)A_x0001__x0001__x0001__x0001_\u0084ë)A_x0001__x0003__x0001__x0001__x0001__x0001_d\u009d)A_x0001__x0001__x0001__x0001_tÄ)A_x0001__x0001__x0001__x0001_d\u009d)A_x0001__x0001__x0001__x0001_tÄ)A_x0001__x0001__x0001__x0001_Ô®*A_x0001__x0001__x0001__x0001_d\u009d)A_x0001__x0001__x0001__x0001_d\u009d)A_x0001__x0001__x0001__x0001_tÄ)A_x0001__x0001__x0001__x0001_d\u009d)A_x0001__x0001__x0001__x0001_d\u009d)A_x0001__x0001__x0001__x0001_d\u009d)A_x0001__x0001__x0001__x0001_tÄ)A_x0001__x0001__x0001__x0001_tÄ)A_x0001__x0001__x0001__x0001_tÄ)A_x0001__x0001__x0001__x0001_ô_x0002_*A_x0001__x0001__x0001__x0001_d\u009d)A_x0001__x0001__x0001__x0001_d\u009d)A_x0001__x0001__x0001__x0001_d\u009d)A_x0001__x0001__x0001__x0001_d\u009d)A_x0001__x0001__x0001__x0001_d\u009d)A_x0001__x0001__x0001__x0001_d\u009d)A_x0001__x0001__x0001__x0001_tÄ)A_x0001__x0001__x0001__x0001_tÄ)A_x0001__x0001__x0001__x0001_tÄ)A_x0001__x0001__x0001__x0001_Ä\u0087*A_x0001__x0001__x0001__x0001_d\u009d)A_x0001__x0001__x0001__x0001_$û)A_x0001__x0001__x0001__x0001_\u0084ë)A_x0001__x0001__x0001__x0001_d\u009d)A_x0001__x0001__x0001__x0001_d\u009d)A_x0001__x0001__x0001__x0001_tÄ)A_x0001__x0001__x0001__x0001__x0001__x0002_d\u009d)A_x0001__x0001__x0001__x0001_tÄ)A_x0001__x0001__x0001__x0001_d\u009d)A_x0001__x0001__x0001__x0001_tÄ)A_x0001__x0001__x0001__x0001__x0004_­)A_x0001__x0001__x0001__x0001_tÄ)A_x0001__x0001__x0001__x0001_d\u009d)A_x0001__x0001__x0001__x0001_d\u009d)A_x0001__x0001__x0001__x0001_tÄ)A_x0001__x0001__x0001__x0001_tÄ)A_x0001__x0001__x0001__x0001_tÄ)A_x0001__x0001__x0001__x0001_tÄ)A_x0001__x0001__x0001__x0001_d\u009d)A_x0001__x0001__x0001__x0001__x0014_Ô)A_x0001__x0001__x0001__x0001_d\u009d)A_x0001__x0001__x0001__x0001_Ô®*A_x0001__x0001__x0001__x0001_Ä\u0087*A_x0001__x0001__x0001__x0001_d\u009d)A_x0001__x0001__x0001__x0001_d\u009d)A_x0001__x0001__x0001__x0001_d\u009d)A_x0001__x0001__x0001__x0001_tÄ)A_x0001__x0001__x0001__x0001_tÄ)A_x0001__x0001__x0001__x0001_d\u009d)A_x0001__x0001__x0001__x0001_d\u009d)A_x0001__x0001__x0001__x0001__x0004_­)A_x0001__x0001__x0001__x0001_tÄ)A_x0001__x0001__x0001__x0001_d\u009d)A_x0001__x0001__x0001__x0001__x0004_­)A_x0001__x0001__x0001__x0001__x0004_­)A"}},{"$cut":{"chars":74604,"head":"44264c40f18fa72bf944e87ea52cc24c_x0001__x0002__x0013_\u0083ÀÊ±FÐ@_x0013_\u0083ÀÊ±FÐ@_x0013_\u0083ÀÊ±FÐ@_x0013_\u0083ÀÊ±FÐ@_x0013_\u0083ÀÊ±FÐ@_x0013_\u0083ÀÊ±FÐ@_x0013_\u0083ÀÊ±FÐ@_x0013_\u0083ÀÊ±FÐ@_x0013_\u0083ÀÊ±FÐ@_x0013_\u0083ÀÊ±FÐ@_x0013_\u0083ÀÊ±FÐ@_x0013_\u0083ÀÊ±FÐ@_x0013_\u0083ÀÊ±FÐ@_x0013_\u0083ÀÊ±FÐ@_x0013_\u0083ÀÊ±FÐ@_x0013_\u0083ÀÊ±FÐ@_x0013_\u0083ÀÊ±FÐ@_x0013_\u0083ÀÊ±FÐ@_x0013_\u0083ÀÊ±FÐ@_x0013_\u0083ÀÊ±FÐ@_x0013_\u0083ÀÊ±FÐ@_x0013_\u0083ÀÊ±FÐ@_x0013_\u0083ÀÊ±FÐ@_x0013_\u0083ÀÊ±FÐ@_x0013_\u0083ÀÊ±FÐ@_x0013_\u0083ÀÊ±FÐ@_x0013_\u0083ÀÊ±FÐ@_x0013_\u0083ÀÊ±FÐ@_x0013_\u0083ÀÊ±FÐ@_x0013_\u0083ÀÊ±FÐ@_x0013_\u0083ÀÊ±FÐ@_x0013_\u0083ÀÊ_x0001__x0002_±FÐ@_x0013_\u0083ÀÊ±FÐ@_x0013_\u0083ÀÊ±FÐ@_x0013_\u0083ÀÊ±FÐ@_x0013_\u0083ÀÊ±FÐ@_x0013_\u0083ÀÊ±FÐ@_x0013_\u0083ÀÊ±FÐ@_x0013_\u0083ÀÊ±FÐ@_x0013_\u0083ÀÊ±FÐ@_x0013_\u0083ÀÊ±FÐ@_x0013_\u0083ÀÊ±FÐ@_x0013_\u0083ÀÊ±FÐ@_x0013_\u0083ÀÊ±FÐ@_x0013_\u0083ÀÊ±FÐ@_x0013_\u0083ÀÊ±FÐ@_x0013_\u0083ÀÊ±FÐ@_x0013_\u0083ÀÊ±FÐ@_x0013_\u0083ÀÊ±FÐ@_x0013_\u0083ÀÊ±FÐ@_x0013_\u0083ÀÊ±FÐ@_x0013_\u0083ÀÊ±FÐ@_x0013_\u0083ÀÊ±FÐ@_x0013_\u0083ÀÊ±FÐ@_x0013_\u0083ÀÊ±FÐ@_x0013_\u0083ÀÊ±FÐ@_x0013_\u0083ÀÊ±FÐ@_x0013_\u0083ÀÊ±FÐ@_x0013_\u0083ÀÊ±FÐ@_x0013_\u0083ÀÊ±FÐ@_x0013_\u0083ÀÊ±FÐ@_x0013_\u0083ÀÊ±FÐ@_x0013_\u0083ÀÊ±FÐ@_x0001__x0002__x0013_\u0083ÀÊ±FÐ@_x0013_\u0083ÀÊ±FÐ@_x0013_\u0083ÀÊ±FÐ@_x0013_\u0083ÀÊ±FÐ@_x0013_\u0083ÀÊ±FÐ@_x0013_\u0083ÀÊ±FÐ@_x0013_\u0083ÀÊ±FÐ@_x0013_\u0083ÀÊ±FÐ@_x0013_\u0083ÀÊ±FÐ@_x0013_\u0083ÀÊ±FÐ@_x0013_\u0083ÀÊ±FÐ@_x0013_\u0083ÀÊ±FÐ@_x0013_\u0083ÀÊ±FÐ@_x0013_\u0083ÀÊ±FÐ@_x0013_\u0083ÀÊ±FÐ@_x0013_\u0083ÀÊ±FÐ@_x0013_\u0083ÀÊ±FÐ@_x0013_\u0083ÀÊ±FÐ@_x0013_\u0083ÀÊ±FÐ@_x0013_\u0083ÀÊ±FÐ@_x0013_\u0083ÀÊ±FÐ@_x0013_\u0083ÀÊ±FÐ@_x0013_\u0083ÀÊ±FÐ@_x0013_\u0083ÀÊ±FÐ@_x0013_\u0083ÀÊ±FÐ@_x0013_\u0083ÀÊ±FÐ@_x0013_\u0083ÀÊ±FÐ@_x0013_\u0083ÀÊ±FÐ@_x0013_\u0083ÀÊ±FÐ@_x0013_\u0083ÀÊ±FÐ@_x0013_\u0083ÀÊ±FÐ@_x0013_\u0083ÀÊ_x0001__x0002_±FÐ@_x0013_\u0083ÀÊ±FÐ@_x0013_\u0083ÀÊ±FÐ@_x0013_\u0083ÀÊ±FÐ@_x0013_\u0083ÀÊ±FÐ@_x0013_\u0083ÀÊ±FÐ@_x0013_\u0083ÀÊ±FÐ@_x0013_\u0083ÀÊ±FÐ@_x0013_\u0083ÀÊ±FÐ@_x0013_\u0083ÀÊ±FÐ@_x0013_\u0083ÀÊ±FÐ@_x0013_\u0083ÀÊ±FÐ@_x0013_\u0083ÀÊ±FÐ@_x0013_\u0083ÀÊ±FÐ@_x0013_\u0083ÀÊ±FÐ@_x0013_\u0083ÀÊ±FÐ@_x0013_\u0083ÀÊ±FÐ@_x0013_\u0083ÀÊ±FÐ@_x0013_\u0083ÀÊ±FÐ@_x0013_\u0083ÀÊ±FÐ@_x0013_\u0083ÀÊ±FÐ@_x0013_\u0083ÀÊ±FÐ@_x0013_\u0083ÀÊ±FÐ@_x0013_\u0083ÀÊ±FÐ@_x0013_\u0083ÀÊ±FÐ@_x0013_\u0083ÀÊ±FÐ@_x0013_\u0083ÀÊ±FÐ@_x0013_\u0083ÀÊ±FÐ@_x0013_\u0083ÀÊ±FÐ@_x0013_\u0083ÀÊ±FÐ@_x0013_\u0083ÀÊ±FÐ@_x0013_\u0083ÀÊ±FÐ@_x0001__x0002__x0013_\u0083ÀÊ±FÐ@_x0013_\u0083ÀÊ±FÐ@_x0013_\u0083ÀÊ±FÐ@_x0013_\u0083ÀÊ±FÐ@_x0013_\u0083ÀÊ±FÐ@_x0013_\u0083ÀÊ±FÐ@_x0013_\u0083ÀÊ±FÐ@_x0013_\u0083ÀÊ±FÐ@_x0013_\u0083ÀÊ±FÐ@_x0013_\u0083ÀÊ±FÐ@_x0013_\u0083ÀÊ±FÐ@_x0013_\u0083ÀÊ±FÐ@_x0013_\u0083ÀÊ±FÐ@_x0013_\u0083ÀÊ±FÐ@_x0013_\u0083ÀÊ±FÐ@_x0013_\u0083ÀÊ±FÐ@_x0013_\u0083ÀÊ±FÐ@_x0013_\u0083ÀÊ±FÐ@_x0013_\u0083ÀÊ±FÐ@_x0013_\u0083ÀÊ±FÐ@_x0013_\u0083ÀÊ±FÐ@_x0013_\u0083ÀÊ±FÐ@_x0013_\u0083ÀÊ±FÐ@_x0013_\u0083ÀÊ±FÐ@_x0013_\u0083ÀÊ±FÐ@_x0013_\u0083ÀÊ±FÐ@_x0013_\u0083ÀÊ±FÐ@_x0013_\u0083ÀÊ±FÐ@_x0013_\u0083ÀÊ±FÐ@_x0013_\u0083ÀÊ±FÐ@_x0013_\u0083ÀÊ±FÐ@_x0013_\u0083ÀÊ_x0001__x0002_±FÐ@_x0013_\u0083ÀÊ±FÐ@_x0013_\u0083ÀÊ±FÐ@_x0013_\u0083ÀÊ±FÐ@_x0013_\u0083ÀÊ±FÐ@_x0013_\u0083ÀÊ±FÐ@_x0013_\u0083ÀÊ±FÐ@_x0013_\u0083ÀÊ±FÐ@_x0013_\u0083ÀÊ±FÐ@_x0013_\u0083ÀÊ±FÐ@_x0013_\u0083ÀÊ±FÐ@_x0013_\u0083ÀÊ±FÐ@_x0013_\u0083ÀÊ±FÐ@_x0013_\u0083ÀÊ±FÐ@_x0013_\u0083ÀÊ±FÐ@_x0013_\u0083ÀÊ±FÐ@_x0013_\u0083ÀÊ±FÐ@_x0013_\u0083ÀÊ±FÐ@_x0013_\u0083ÀÊ±FÐ@_x0013_\u0083ÀÊ±FÐ@_x0013_\u0083ÀÊ±FÐ@_x0013_\u0083ÀÊ±FÐ@_x0013_\u0083ÀÊ±FÐ@_x0013_\u0083ÀÊ±FÐ@_x0013_\u0083ÀÊ±FÐ@_x0013_\u0083ÀÊ±FÐ@_x0013_\u0083ÀÊ±FÐ@_x0013_\u0083ÀÊ±FÐ@_x0013_\u0083ÀÊ±FÐ@_x0013_\u0083ÀÊ±FÐ@_x0013_\u0083ÀÊ±FÐ@_x0013_\u0083ÀÊ±FÐ@_x0001__x0002__x0013_\u0083ÀÊ±FÐ@_x0013_\u0083ÀÊ±FÐ@_x0013_\u0083ÀÊ±FÐ@_x0013_\u0083ÀÊ±FÐ@_x0013_\u0083ÀÊ±FÐ@_x0013_\u0083ÀÊ±FÐ@_x0013_\u0083ÀÊ±FÐ@_x0013_\u0083ÀÊ±FÐ@_x0013_\u0083ÀÊ±FÐ@_x0013_\u0083ÀÊ±FÐ@_x0013_\u0083ÀÊ±FÐ@_x0013_\u0083ÀÊ±FÐ@_x0013_\u0083ÀÊ±FÐ@_x0013_\u0083ÀÊ±FÐ@_x0013_\u0083ÀÊ±FÐ@_x0013_\u0083ÀÊ±FÐ@_x0013_\u0083ÀÊ±FÐ@_x0013_\u0083ÀÊ±FÐ@_x0013_\u0083ÀÊ±FÐ@_x0013_\u0083ÀÊ±FÐ@_x0013_\u0083ÀÊ±FÐ@_x0013_\u0083ÀÊ±FÐ@_x0013_\u0083ÀÊ±FÐ@_x0013_\u0083ÀÊ±FÐ@_x0013_\u0083ÀÊ±FÐ@_x0013_\u0083ÀÊ±FÐ@_x0013_\u0083ÀÊ±FÐ@_x0013_\u0083ÀÊ±FÐ@_x0013_\u0083ÀÊ±FÐ@_x0013_\u0083ÀÊ±FÐ@_x0013_\u0083ÀÊ±FÐ@_x0013_\u0083ÀÊ_x0001__x0002_±FÐ@_x0013_\u0083ÀÊ±FÐ@_x0013_\u0083ÀÊ±FÐ@_x0013_\u0083ÀÊ±FÐ@_x0013_\u0083ÀÊ±FÐ@_x0013_\u0083ÀÊ±FÐ@_x0013_\u0083ÀÊ±FÐ@_x0013_\u0083ÀÊ±FÐ@_x0013_\u0083ÀÊ±FÐ@_x0013_\u0083ÀÊ±FÐ@_x0013_\u0083ÀÊ±FÐ@_x0013_\u0083ÀÊ±FÐ@_x0013_\u0083ÀÊ±FÐ@_x0013_\u0083ÀÊ±FÐ@_x0013_\u0083ÀÊ±FÐ@_x0013_\u0083ÀÊ±FÐ@_x0013_\u0083ÀÊ±FÐ@_x0013_\u0083ÀÊ±FÐ@_x0013_\u0083ÀÊ±FÐ@_x0013_\u0083ÀÊ±FÐ@_x0013_\u0083ÀÊ±FÐ@_x0013_\u0083ÀÊ±FÐ@_x0013_\u0083ÀÊ±FÐ@_x0013_\u0083ÀÊ±FÐ@_x0013_\u0083ÀÊ±FÐ@_x0013_\u0083ÀÊ±FÐ@_x0013_\u0083ÀÊ±FÐ@_x0013_\u0083ÀÊ±FÐ@_x0013_\u0083ÀÊ±FÐ@_x0013_\u0083ÀÊ±FÐ@_x0013_\u0083ÀÊ±FÐ@_x0013_\u0083ÀÊ±FÐ@_x0001__x0002__x0013_\u0083ÀÊ±FÐ@_x0013_\u0083ÀÊ±FÐ@_x0013_\u0083ÀÊ±FÐ@_x0013_\u0083ÀÊ±FÐ@_x0013_\u0083ÀÊ±FÐ@_x0013_\u0083ÀÊ±FÐ@_x0013_\u0083ÀÊ±FÐ@_x0013_\u0083ÀÊ±FÐ@_x0013_\u0083ÀÊ±FÐ@_x0013_\u0083ÀÊ±FÐ@_x0013_\u0083ÀÊ±FÐ@_x0013_\u0083ÀÊ±FÐ@_x0013_\u0083ÀÊ±FÐ@_x0013_\u0083ÀÊ±FÐ@_x0013_\u0083ÀÊ±FÐ@_x0013_\u0083ÀÊ±FÐ@_x0013_\u0083ÀÊ±FÐ@_x0013_\u0083ÀÊ±FÐ@_x0013_\u0083ÀÊ±FÐ@_x0013_\u0083ÀÊ±FÐ@_x0013_\u0083ÀÊ±FÐ@_x0013_\u0083ÀÊ±FÐ@_x0013_\u0083ÀÊ±FÐ@_x0013_\u0083ÀÊ±FÐ@_x0013_\u0083ÀÊ±FÐ@_x0013_\u0083ÀÊ±FÐ@_x0013_\u0083ÀÊ±FÐ@_x0013_\u0083ÀÊ±FÐ@_x0013_\u0083ÀÊ±FÐ@_x00"}},{"$cut":{"chars":42912,"head":"637d85f80ac8354ff8ca82f80833e80e_x0001__x0002_ßO\u008d\u0097_x001E__x0015_Ö@ßO\u008d\u0097_x001E__x0015_Ö@×£p=f\u009aÛ@ßO\u008d\u0097_x001E__x0015_Ö@ßO\u008d\u0097_x001E__x0015_Ö@ßO\u008d\u0097_x001E__x0015_Ö@ßO\u008d\u0097_x001E__x0015_Ö@ßO\u008d\u0097_x001E__x0015_Ö@×£p=f\u009aÛ@ßO\u008d\u0097_x001E__x0015_Ö@ßO\u008d\u0097_x001E__x0015_Ö@ßO\u008d\u0097_x001E__x0015_Ö@ßO\u008d\u0097_x001E__x0015_Ö@ßO\u008d\u0097_x001E__x0015_Ö@ßO\u008d\u0097_x001E__x0015_Ö@ßO\u008d\u0097_x001E__x0015_Ö@ßO\u008d\u0097_x001E__x0015_Ö@ßO\u008d\u0097_x001E__x0015_Ö@ßO\u008d\u0097_x001E__x0015_Ö@ßO\u008d\u0097_x001E__x0015_Ö@ßO\u008d\u0097_x001E__x0015_Ö@ßO\u008d\u0097_x001E__x0015_Ö@ßO\u008d\u0097_x001E__x0015_Ö@ßO\u008d\u0097_x001E__x0015_Ö@×£p=f\u009aÛ@ßO\u008d\u0097_x001E__x0015_Ö@ßO\u008d\u0097_x001E__x0015_Ö@ßO\u008d\u0097_x001E__x0015_Ö@×£p=f\u009aÛ@ßO\u008d\u0097_x001E__x0015_Ö@ßO\u008d\u0097_x001E__x0015_Ö@ßO\u008d\u0097_x0001__x0002__x001E__x0015_Ö@ßO\u008d\u0097_x001E__x0015_Ö@ßO\u008d\u0097_x001E__x0015_Ö@ßO\u008d\u0097_x001E__x0015_Ö@ßO\u008d\u0097_x001E__x0015_Ö@ßO\u008d\u0097_x001E__x0015_Ö@ßO\u008d\u0097_x001E__x0015_Ö@ßO\u008d\u0097_x001E__x0015_Ö@ßO\u008d\u0097_x001E__x0015_Ö@ßO\u008d\u0097_x001E__x0015_Ö@ßO\u008d\u0097_x001E__x0015_Ö@ßO\u008d\u0097_x001E__x0015_Ö@ßO\u008d\u0097_x001E__x0015_Ö@ßO\u008d\u0097_x001E__x0015_Ö@ßO\u008d\u0097_x001E__x0015_Ö@ßO\u008d\u0097_x001E__x0015_Ö@ßO\u008d\u0097_x001E__x0015_Ö@ßO\u008d\u0097_x001E__x0015_Ö@ßO\u008d\u0097_x001E__x0015_Ö@ßO\u008d\u0097_x001E__x0015_Ö@ßO\u008d\u0097_x001E__x0015_Ö@ßO\u008d\u0097_x001E__x0015_Ö@ßO\u008d\u0097_x001E__x0015_Ö@ßO\u008d\u0097_x001E__x0015_Ö@ßO\u008d\u0097_x001E__x0015_Ö@ßO\u008d\u0097_x001E__x0015_Ö@ßO\u008d\u0097_x001E__x0015_Ö@ßO\u008d\u0097_x001E__x0015_Ö@ßO\u008d\u0097_x001E__x0015_Ö@ßO\u008d\u0097_x001E__x0015_Ö@ßO\u008d\u0097_x001E__x0015_Ö@ßO\u008d\u0097_x001E__x0015_Ö@_x0001__x0002_ßO\u008d\u0097_x001E__x0015_Ö@×£p=f\u009aÛ@ßO\u008d\u0097_x001E__x0015_Ö@ßO\u008d\u0097_x001E__x0015_Ö@×£p=f\u009aÛ@ßO\u008d\u0097_x001E__x0015_Ö@ßO\u008d\u0097_x001E__x0015_Ö@ßO\u008d\u0097_x001E__x0015_Ö@ßO\u008d\u0097_x001E__x0015_Ö@ßO\u008d\u0097_x001E__x0015_Ö@ßO\u008d\u0097_x001E__x0015_Ö@ßO\u008d\u0097_x001E__x0015_Ö@×£p=f\u009aÛ@ßO\u008d\u0097_x001E__x0015_Ö@ßO\u008d\u0097_x001E__x0015_Ö@ßO\u008d\u0097_x001E__x0015_Ö@ßO\u008d\u0097_x001E__x0015_Ö@ßO\u008d\u0097_x001E__x0015_Ö@ßO\u008d\u0097_x001E__x0015_Ö@ßO\u008d\u0097_x001E__x0015_Ö@ßO\u008d\u0097_x001E__x0015_Ö@ßO\u008d\u0097_x001E__x0015_Ö@ßO\u008d\u0097_x001E__x0015_Ö@×£p=f\u009aÛ@ßO\u008d\u0097_x001E__x0015_Ö@ßO\u008d\u0097_x001E__x0015_Ö@×£p=f\u009aÛ@ßO\u008d\u0097_x001E__x0015_Ö@ßO\u008d\u0097_x001E__x0015_Ö@ßO\u008d\u0097_x001E__x0015_Ö@ßO\u008d\u0097_x001E__x0015_Ö@ßO\u008d\u0097_x0001__x0002__x001E__x0015_Ö@ßO\u008d\u0097_x001E__x0015_Ö@ßO\u008d\u0097_x001E__x0015_Ö@ßO\u008d\u0097_x001E__x0015_Ö@ßO\u008d\u0097_x001E__x0015_Ö@ßO\u008d\u0097_x001E__x0015_Ö@ßO\u008d\u0097_x001E__x0015_Ö@ßO\u008d\u0097_x001E__x0015_Ö@ßO\u008d\u0097_x001E__x0015_Ö@×£p=f\u009aÛ@ßO\u008d\u0097_x001E__x0015_Ö@ßO\u008d\u0097_x001E__x0015_Ö@ßO\u008d\u0097_x001E__x0015_Ö@ßO\u008d\u0097_x001E__x0015_Ö@ßO\u008d\u0097_x001E__x0015_Ö@ßO\u008d\u0097_x001E__x0015_Ö@ßO\u008d\u0097_x001E__x0015_Ö@×£p=f\u009aÛ@×£p=f\u009aÛ@ßO\u008d\u0097_x001E__x0015_Ö@ßO\u008d\u0097_x001E__x0015_Ö@ßO\u008d\u0097_x001E__x0015_Ö@ßO\u008d\u0097_x001E__x0015_Ö@ßO\u008d\u0097_x001E__x0015_Ö@ßO\u008d\u0097_x001E__x0015_Ö@ßO\u008d\u0097_x001E__x0015_Ö@ßO\u008d\u0097_x001E__x0015_Ö@ßO\u008d\u0097_x001E__x0015_Ö@ßO\u008d\u0097_x001E__x0015_Ö@ßO\u008d\u0097_x001E__x0015_Ö@ßO\u008d\u0097_x001E__x0015_Ö@ßO\u008d\u0097_x001E__x0015_Ö@_x0001__x0002_ßO\u008d\u0097_x001E__x0015_Ö@ßO\u008d\u0097_x001E__x0015_Ö@ßO\u008d\u0097_x001E__x0015_Ö@ßO\u008d\u0097_x001E__x0015_Ö@ßO\u008d\u0097_x001E__x0015_Ö@×£p=f\u009aÛ@ßO\u008d\u0097_x001E__x0015_Ö@×£p=f\u009aÛ@ßO\u008d\u0097_x001E__x0015_Ö@ßO\u008d\u0097_x001E__x0015_Ö@ßO\u008d\u0097_x001E__x0015_Ö@ßO\u008d\u0097_x001E__x0015_Ö@ßO\u008d\u0097_x001E__x0015_Ö@ßO\u008d\u0097_x001E__x0015_Ö@ßO\u008d\u0097_x001E__x0015_Ö@ßO\u008d\u0097_x001E__x0015_Ö@ßO\u008d\u0097_x001E__x0015_Ö@ßO\u008d\u0097_x001E__x0015_Ö@ßO\u008d\u0097_x001E__x0015_Ö@ßO\u008d\u0097_x001E__x0015_Ö@ßO\u008d\u0097_x001E__x0015_Ö@ßO\u008d\u0097_x001E__x0015_Ö@ßO\u008d\u0097_x001E__x0015_Ö@ßO\u008d\u0097_x001E__x0015_Ö@ßO\u008d\u0097_x001E__x0015_Ö@ßO\u008d\u0097_x001E__x0015_Ö@ßO\u008d\u0097_x001E__x0015_Ö@ßO\u008d\u0097_x001E__x0015_Ö@×£p=f\u009aÛ@ßO\u008d\u0097_x001E__x0015_Ö@ßO\u008d\u0097_x001E__x0015_Ö@ßO\u008d\u0097_x0001__x0002__x001E__x0015_Ö@ßO\u008d\u0097_x001E__x0015_Ö@ßO\u008d\u0097_x001E__x0015_Ö@ßO\u008d\u0097_x001E__x0015_Ö@ßO\u008d\u0097_x001E__x0015_Ö@ßO\u008d\u0097_x001E__x0015_Ö@ßO\u008d\u0097_x001E__x0015_Ö@ßO\u008d\u0097_x001E__x0015_Ö@ßO\u008d\u0097_x001E__x0015_Ö@ßO\u008d\u0097_x001E__x0015_Ö@ßO\u008d\u0097_x001E__x0015_Ö@×£p=f\u009aÛ@×£p=f\u009aÛ@ßO\u008d\u0097_x001E__x0015_Ö@ßO\u008d\u0097_x001E__x0015_Ö@ßO\u008d\u0097_x001E__x0015_Ö@×£p=f\u009aÛ@×£p=f\u009aÛ@ßO\u008d\u0097_x001E__x0015_Ö@ßO\u008d\u0097_x001E__x0015_Ö@×£p=f\u009aÛ@ßO\u008d\u0097_x001E__x0015_Ö@ßO\u008d\u0097_x001E__x0015_Ö@ßO\u008d\u0097_x001E__x0015_Ö@ßO\u008d\u0097_x001E__x0015_Ö@ßO\u008d\u0097_x001E__x0015_Ö@ßO\u008d\u0097_x001E__x0015_Ö@ßO\u008d\u0097_x001E__x0015_Ö@ßO\u008d\u0097_x001E__x0015_Ö@ßO\u008d\u0097_x001E__x0015_Ö@ßO\u008d\u0097_x001E__x0015_Ö@ßO\u008d\u0097_x001E__x0015_Ö@_x0001__x0002_ßO\u008d\u0097_x001E__x0015_Ö@ßO\u008d\u0097_x001E__x0015_Ö@ßO\u008d\u0097_x001E__x0015_Ö@ßO\u008d\u0097_x001E__x0015_Ö@ßO\u008d\u0097_x001E__x0015_Ö@ßO\u008d\u0097_x001E__x0015_Ö@ßO\u008d\u0097_x001E__x0015_Ö@ßO\u008d\u0097_x001E__x0015_Ö@ßO\u008d\u0097_x001E__x0015_Ö@ßO\u008d\u0097_x001E__x0015_Ö@ßO\u008d\u0097_x001E__x0015_Ö@ßO\u008d\u0097_x001E__x0015_Ö@\\\u008fÂõ8uÖ@\\\u008fÂõ8uÖ@\\\u008fÂõ8uÖ@\\\u008fÂõ8uÖ@\\\u008fÂõ8uÖ@\\\u008fÂõ8uÖ@\\\u008fÂõ8uÖ@\\\u008fÂõ8uÖ@\\\u008fÂõ8uÖ@\\\u008fÂõ8uÖ@\\\u008fÂõ8uÖ@\\\u008fÂõ8uÖ@\\\u008fÂõ8uÖ@\\\u008fÂõ8uÖ@\\\u008fÂõ8uÖ@3333\u0087_x0012_Ü@\\\u008fÂõ8uÖ@\\\u008fÂõ8uÖ@3333\u0087_x0012_Ü@\\\u008fÂõ_x0001__x0002_8uÖ@"}},{"$cut":{"chars":41232,"head":"3f2ba65e32b742bd843b282610723fd1_x0001__x0002_\u0085ëQ¸vÖë@\u009eï§Æ+Eæ@\u009eï§Æ+Eæ@\u0089A`åÒ_x0013_é@\u009eï§Æ+Eæ@\u009eï§Æ+Eæ@\u009eï§Æ+Eæ@\u009eï§Æ+Eæ@\u009eï§Æ+Eæ@\u0085ëQ¸vÖë@\u009eï§Æ+Eæ@\u009eï§Æ+Eæ@\u0089A`åÒ_x0013_é@\u009eï§Æ+Eæ@\u009eï§Æ+Eæ@\u009eï§Æ+Eæ@\u0085ëQ¸vÖë@\u009eï§Æ+Eæ@\u009eï§Æ+Eæ@\u0085ëQ¸vÖë@\u009eï§Æ+Eæ@\u009eï§Æ+Eæ@\u009eï§Æ+Eæ@\u009eï§Æ+Eæ@\u0089A`åÒ_x0013_é@\u0085ëQ¸vÖë@\u009eï§Æ+Eæ@\u009eï§Æ+Eæ@\u0085ëQ¸vÖë@\u009eï§Æ+Eæ@\u009eï§Æ+Eæ@\u009eï§Æ_x0001__x0002_+Eæ@\u009eï§Æ+Eæ@\u009eï§Æ+Eæ@\u009eï§Æ+Eæ@\u009eï§Æ+Eæ@\u009eï§Æ+Eæ@\u009eï§Æ+Eæ@\u009eï§Æ+Eæ@\u009eï§Æ+Eæ@\u0085ëQ¸vÖë@\u009eï§Æ+Eæ@\u009eï§Æ+Eæ@\u009eï§Æ+Eæ@\u009eï§Æ+Eæ@\u009eï§Æ+Eæ@\u0085ëQ¸vÖë@\u0089A`åÒ_x0013_é@\u009eï§Æ+Eæ@\u009eï§Æ+Eæ@\u009eï§Æ+Eæ@\u009eï§Æ+Eæ@\u009eï§Æ+Eæ@\u009eï§Æ+Eæ@\u009eï§Æ+Eæ@\u009eï§Æ+Eæ@\u009eï§Æ+Eæ@\u009eï§Æ+Eæ@\u009eï§Æ+Eæ@\u0085ëQ¸vÖë@\u009eï§Æ+Eæ@\u009eï§Æ+Eæ@\u009eï§Æ+Eæ@_x0001__x0002_\u009eï§Æ+Eæ@\u0085ëQ¸vÖë@\u0085ëQ¸vÖë@\u0085ëQ¸vÖë@\u009eï§Æ+Eæ@\u0089A`åÒ_x0013_é@\u009eï§Æ+Eæ@\u009eï§Æ+Eæ@\u009eï§Æ+Eæ@\u009eï§Æ+Eæ@\u009eï§Æ+Eæ@\u009eï§Æ+Eæ@\u009eï§Æ+Eæ@\u009eï§Æ+Eæ@\u0089A`åÒ_x0013_é@\u009eï§Æ+Eæ@\u0085ëQ¸vÖë@\u009eï§Æ+Eæ@\u0085ëQ¸vÖë@\u0089A`åÒ_x0013_é@\u009eï§Æ+Eæ@\u009eï§Æ+Eæ@\u0085ëQ¸vÖë@\u0089A`åÒ_x0013_é@\u009eï§Æ+Eæ@\u009eï§Æ+Eæ@\u0085ëQ¸vÖë@\u0089A`åÒ_x0013_é@\u0085ëQ¸vÖë@\u009eï§Æ+Eæ@\u009eï§Æ+Eæ@\u009eï§Æ_x0001__x0002_+Eæ@\u009eï§Æ+Eæ@\u009eï§Æ+Eæ@\u0089A`åÒ_x0013_é@\u009eï§Æ+Eæ@\u009eï§Æ+Eæ@\u0085ëQ¸vÖë@\u009eï§Æ+Eæ@\u009eï§Æ+Eæ@\u009eï§Æ+Eæ@\u009eï§Æ+Eæ@\u009eï§Æ+Eæ@\u009eï§Æ+Eæ@\u009eï§Æ+Eæ@\u009eï§Æ+Eæ@\u009eï§Æ+Eæ@\u009eï§Æ+Eæ@\u0085ëQ¸vÖë@\u009eï§Æ+Eæ@\u009eï§Æ+Eæ@\u009eï§Æ+Eæ@\u009eï§Æ+Eæ@\u009eï§Æ+Eæ@\u009eï§Æ+Eæ@\u009eï§Æ+Eæ@\u0089A`åÒ_x0013_é@\u0089A`åÒ_x0013_é@\u009eï§Æ+Eæ@\u009eï§Æ+Eæ@\u009eï§Æ+Eæ@\u009eï§Æ+Eæ@\u009eï§Æ+Eæ@_x0001__x0002_\u0085ëQ¸vÖë@\u009eï§Æ+Eæ@\u009eï§Æ+Eæ@\u009eï§Æ+Eæ@\u009eï§Æ+Eæ@\u0089A`åÒ_x0013_é@\u0085ëQ¸vÖë@\u009eï§Æ+Eæ@\u009eï§Æ+Eæ@\u009eï§Æ+Eæ@\u009eï§Æ+Eæ@\u009eï§Æ+Eæ@\u009eï§Æ+Eæ@\u009eï§Æ+Eæ@\u0089A`åÒ_x0013_é@\u009eï§Æ+Eæ@\u009eï§Æ+Eæ@\u0089A`åÒ_x0013_é@\u009eï§Æ+Eæ@\u009eï§Æ+Eæ@\u009eï§Æ+Eæ@\u0085ëQ¸vÖë@\u009eï§Æ+Eæ@\u0089A`åÒ_x0013_é@\u009eï§Æ+Eæ@\u009eï§Æ+Eæ@\u009eï§Æ+Eæ@\u009eï§Æ+Eæ@\u009eï§Æ+Eæ@\u009eï§Æ+Eæ@\u0085ëQ¸vÖë@\u009eï§Æ_x0001__x0002_+Eæ@\u009eï§Æ+Eæ@\u009eï§Æ+Eæ@\u009eï§Æ+Eæ@\u0089A`åÒ_x0013_é@\u009eï§Æ+Eæ@\u009eï§Æ+Eæ@\u0089A`åÒ_x0013_é@\u0089A`åÒ_x0013_é@\u0085ëQ¸vÖë@\u0089A`åÒ_x0013_é@\u009eï§Æ+Eæ@\u0089A`åÒ_x0013_é@\u009eï§Æ+Eæ@\u009eï§Æ+Eæ@\u009eï§Æ+Eæ@\u009eï§Æ+Eæ@\u009eï§Æ+Eæ@\u009eï§Æ+Eæ@\u009eï§Æ+Eæ@\u009eï§Æ+Eæ@\u009eï§Æ+Eæ@\u009eï§Æ+Eæ@\u009eï§Æ+Eæ@\u009eï§Æ+Eæ@\u009eï§Æ+Eæ@\u009eï§Æ+Eæ@\u009eï§Æ+Eæ@\u009eï§Æ+Eæ@\u009eï§Æ+Eæ@\u0089A`åÒ_x0013_é@\u009eï§Æ+Eæ@_x0001__x0002_\u009eï§Æ+Eæ@\u009eï§Æ+Eæ@\u009eï§Æ+Eæ@\u009eï§Æ+Eæ@\u009eï§Æ+Eæ@\u009eï§Æ+Eæ@\u009eï§Æ+Eæ@\u009eï§Æ+Eæ@\u009eï§Æ+Eæ@\u009eï§Æ+Eæ@\u009eï§Æ+Eæ@\u0085ëQ¸vÖë@\u009eï§Æ+Eæ@\u009eï§Æ+Eæ@\u0089A`åÒ_x0013_é@\u009eï§Æ+Eæ@\u009eï§Æ+Eæ@\u009eï§Æ+Eæ@\u009eï§Æ+Eæ@\u009eï§Æ+Eæ@\u009eï§Æ+Eæ@\u009eï§Æ+Eæ@\u009eï§Æ+Eæ@\u009eï§Æ+Eæ@\u0089A`åÒ_x0013_é@\u009eï§Æ+Eæ@\u009eï§Æ+Eæ@\u009eï§Æ+Eæ@\u009eï§Æ+Eæ@\u009eï§Æ+Eæ@\u009eï§Æ+Eæ@\u0085ëQ¸_x0001__x0002_vÖë@\u009eï§Æ+Eæ@\u009eï§Æ+Eæ@\u009eï§Æ+Eæ@\u009eï§Æ+Eæ@\u009eï§Æ+Eæ@\u009eï§Æ+Eæ@\u009eï§Æ+Eæ@\u009eï§Æ+Eæ@\u009eï§Æ+Eæ@\u009eï§Æ+Eæ@\u009eï§Æ+Eæ@\u009eï§Æ+Eæ@\u0089A`åÒ_x0013_é@\u009eï§Æ+Eæ@\u009eï§Æ+Eæ@\u009eï§Æ+Eæ@\u009eï§Æ+Eæ@\u009eï§Æ+Eæ@\u009eï§Æ+Eæ@\u009eï§Æ+Eæ@\u009eï§Æ+Eæ@\u009eï§Æ+Eæ@\u009eï§Æ+Eæ@\u009eï§Æ+Eæ@\u009eï§Æ+Eæ@\u009eï§Æ+Eæ@\u009eï§Æ+Eæ@\u009eï§Æ+Eæ@\u009eï§Æ+Eæ@\u0085ëQ¸vÖë@\u009eï§Æ+Eæ@_x0001__x0002_\u009eï§Æ+Eæ@\u009eï§Æ+Eæ@\u0089A`åÒ_x0013_é@\u009eï§Æ+Eæ@\u009eï§Æ+Eæ@\u009eï§Æ+Eæ@\u0089A`åÒ_x0013_é@\u009eï§Æ+Eæ@\u009eï§Æ+Eæ@\u009eï§Æ+Eæ@\u0089A`åÒ_x0013_é@\u009eï§Æ+Eæ@\u009eï§Æ+Eæ@\u009eï§Æ+Eæ@\u009eï§Æ+Eæ@\u009eï§Æ+Eæ@\u009eï§Æ+Eæ@\u009eï§Æ+Eæ@\u009eï§Æ+Eæ@\u009eï§Æ+Eæ@\u009eï§Æ+Eæ@\u009eï§Æ+Eæ@\u009eï§Æ+Eæ@\u009eï§Æ+Eæ@\u009eï§Æ+Eæ@\u009eï§Æ+Eæ@\u009eï§Æ+Eæ@\u009eï§Æ+Eæ@\u009eï§Æ+Eæ@\u009eï§Æ+Eæ@\u009eï§Æ+Eæ@\u009eï§Æ_x0001__x0002_+Eæ@\u009eï§Æ+Eæ@\u009eï§Æ+Eæ@\u009eï§Æ+Eæ@\u009eï§Æ+Eæ@\u009eï§Æ+Eæ@\u009eï§Æ+Eæ@\u009eï§Æ+Eæ@\u009eï§Æ+Eæ@\u009eï§Æ+Eæ@\u009eï§Æ+Eæ@\u009eï§Æ+Eæ@\u0085ëQ¸vÖë@\u009eï§Æ+Eæ@\u009eï§Æ+Eæ@\u009eï§Æ+Eæ@\u009eï§Æ+Eæ@\u009eï§Æ+Eæ@\u009eï§Æ+Eæ@\u0089A`åÒ_x0013_é@\u009eï§Æ+Eæ@\u009eï§Æ+Eæ@\u009eï§Æ+Eæ@\u009eï§Æ+Eæ@\u009eï§Æ+Eæ@\u009eï§Æ+Eæ@\u009eï§Æ+Eæ@\u009eï§Æ+Eæ@\u009eï§Æ+Eæ@\u0085ëQ¸vÖë@\u009eï§Æ+Eæ@\u009eï§Æ+Eæ@_x0001__x0002_\u009eï§Æ+Eæ@\u009eï§Æ+Eæ@\u0089A`åÒ_x0013_é@\u009eï§Æ+Eæ@\u009eï§Æ+Eæ@\u009eï§Æ+Eæ@\u009eï§Æ+Eæ@\u009eï§Æ+Eæ@\u009eï§Æ+Eæ@\u009eï§Æ+Eæ@\u009eï§Æ+Eæ@\u009eï§Æ+Eæ@\u009eï§Æ+Eæ@\u009eï§Æ+Eæ@\u009eï§Æ+Eæ@\u0085ëQ¸vÖë@\u0089A`åÒ_x0013_é@\u009eï§Æ+Eæ@\u009eï§Æ+Eæ@\u009eï§Æ+Eæ@\u0085ëQ¸vÖë@\u009eï§Æ+Eæ@\u009eï§Æ+Eæ@\u009eï§Æ+Eæ@\u009eï§Æ+Eæ@\u0089A`åÒ_x0013_é@\u009eï§Æ+Eæ@\u009eï§Æ+Eæ@\u009eï§Æ+Eæ@\u009eï§Æ+Eæ@\u009eï§Æ+Eæ@\u009eï§Æ_x0001__x0002_+Eæ@\u009eï§Æ+Eæ@\u0085ëQ¸vÖë@\u009eï§Æ+Eæ@\u009eï§Æ+Eæ@\u009eï§Æ+Eæ@\u009eï§Æ+Eæ@\u009eï§Æ+Eæ@\u009eï§Æ+Eæ@\u009eï§Æ+Eæ@\u009eï§Æ+Eæ@\u009eï§Æ+Eæ@\u009eï§Æ+Eæ@\u009eï§Æ+Eæ@\u009eï§Æ+Eæ@\u009eï§Æ+Eæ@\u009eï§Æ+Eæ@\u009eï§Æ+Eæ@\u009eï§Æ+Eæ@\u009eï§Æ+Eæ@\u009eï§Æ+Eæ@\u0085ëQ¸vÖë@\u009eï§Æ+Eæ@\u0089A`åÒ_x0013_é@\u009eï§Æ+Eæ@\u0089A`åÒ_x0013_é@\u009eï§Æ+Eæ@\u009eï§Æ+Eæ@\u009eï§Æ+Eæ@\u009eï§Æ+Eæ@\u009eï§Æ+Eæ@\u0089A`åÒ_x0013_é@_x0001__x0002_\u009eï§Æ+Eæ@\u009eï§Æ+Eæ@\u009eï§Æ+Eæ@\u0085ëQ¸vÖë@\u009eï§Æ+Eæ@\u009eï§Æ+Eæ@\u0089A`åÒ_x0013_é@\u009eï§Æ+Eæ@\u0089A`åÒ_x0013_é@\u009eï§Æ+Eæ@\u009eï§Æ+Eæ@\u009eï§Æ+Eæ@\u009eï§Æ+Eæ@\u0089A`åÒ_x0013_é@\u009eï§Æ+Eæ@\u0085ëQ¸vÖë@\u009eï§Æ+Eæ@\u009eï§Æ+Eæ@\u0089A`åÒ_x0013_é@\u009eï§Æ+Eæ@\u009eï§Æ+Eæ@\u009eï§Æ+Eæ@\u009eï§Æ+Eæ@\u009eï§Æ+Eæ@\u009eï§Æ+Eæ@\u009eï§Æ+Eæ@\u009eï§Æ+Eæ@\u009eï§Æ+Eæ@\u009eï§Æ+Eæ@\u0089A`åÒ_x0013_é@\u0085ëQ¸vÖë@\u009eï§Æ_x0001__x0002_+Eæ@\u009eï§Æ+Eæ@\u009eï§Æ+Eæ@\u0089A`åÒ_x0013_é@\u009eï§Æ+Eæ@\u009eï§Æ+Eæ@\u009eï§Æ+Eæ@\u009eï§Æ+Eæ@\u009eï§Æ+Eæ@\u009eï§Æ+Eæ@\u0089A`åÒ_x0013_é@\u0085ëQ¸vÖë@\u009eï§Æ+Eæ@\u009eï§Æ+Eæ@\u009eï§Æ+Eæ@\u0089A`åÒ_x0013_é@\u009eï§Æ+Eæ@\u009eï§Æ+Eæ@\u0085ëQ¸vÖë@\u009eï§Æ+Eæ@\u009eï§Æ+Eæ@\u009eï§Æ+Eæ@\u009eï§Æ+Eæ@\u0085ëQ¸vÖë@\u009eï§Æ+Eæ@\u009eï§Æ+Eæ@\u009eï§Æ+Eæ@\u0089A`åÒ_x0013_é@\u0085ëQ¸vÖë@\u009eï§Æ+Eæ@\u009eï§Æ+Eæ@\u009eï§Æ+Eæ@_x0001__x0002_\u009eï§Æ+Eæ@\u009eï§Æ+Eæ@\u0089A`åÒ_x0013_é@\u009eï§Æ+Eæ@\u009eï§Æ+Eæ@\u009eï§Æ+Eæ@\u009eï§Æ+Eæ@"}},{"$cut":{"chars":50820,"head":"7759d32e604dd73c52bd4c847d0f5f76_x0002__x0003_M_x0012_÷ØÙ«ò@ðÝâÙVõò@0âõ1æ\u0099ò@»_x0010_{øF\u008fò@_x001E_\u008e \u0099\u0094kò@_x0013_+Ó\u0085Àµò@°/_x0015_j;}ò@_x0015_µW\u0085¼úñ@\u0085\u0099ÿÍß¿ò@_x0007_'YÈÏ\u008cò@_x0014_7T{_x000C_öò@Þ\u009dLæÁeò@_x001E_w³?$+ò@¿:\u0083bW_ò@\u0089²_x001F_gÜ÷ñ@¨R\u0093Xc\u0082ò@o_x001D_\u0094\u0099\u007fúò@_x0017_Ý\u0095Á<\u008cò@Q¸#_x0014_É?ò@Á?SÚÅJò@°.\u0090Å§Fò@4«T\u009f_x0011_´ò@ýòþÑ8[ò@É ¨\\N)ò@ø.á\u0086ª!ò@üÖ_x0001_^\u009f\u0085ò@RÁöm_x0007_³ò@°\u009b\u0082Åä5ò@\"E\u0087Ä_x0005_Ýò@P\u009d½Ñ^%ò@ð,@:Ç\u0082ò@\u0098_x001F__ð_x0001__x0004_\u0088\u0093ò@·_x0014_µ(_x001A_pò@_x0015_£_x0002_Ê_x000B__x000F_ò@#s>\u0096{¾ò@\u0097\u008c@Ù_x001A_àò@\u009e\t°(p\u0093ò@_x0004_&Í\u0080sSò@_x0002_\u0098\u0084sÕ¼ò@È³<Û°_x0003_ó@H_x000C_\u0099ùBæò@\u008a_x0019_?à_\u0090ò@v¦u&Ã_x0007_ó@ã8Pn*Íò@QW_x0015_ùùnò@@_x0019_\u009c£\u0080Tò@ÿcã&u\u009fò@}&ñø=\u0081ò@Ä1}á_x0012_¼ò@\u0088qêf=Îò@_x0016_©äwúYò@²ç_x0014_¶7¸ò@Ô  _x0003__x0002_\u009cò@zmßñIIò@\u0090\u0087\u009b·\u008f\u008aò@ûÞ¾\u0096ü_x000C_ò@Rð_x0016__x0008_âvò@Í_x0017_¼²ÐÕò@ÔX»íð­ò@g\u0083_x000C__x001D_{_x0007_ó@tÖ2kÞ~ò@\u0085ÔAÓ5Kò@?\u0091­tú\u009fò@_x0005__x0007_6~bÃï4ò@'$-_x0006_Ûlò@_x0004_\u0096û¾h`ò@\u0095h×s_x0002_Æò@w±vçzvò@·hÜ^_x0010_ãò@\u008f_x000B_âÍòdò@_x0013_ÑôôïÆò@x(¸\u0096úDò@_x0001_\u008a_x0003_é\u0091jò@¾ì]÷ÖÆò@¼%úÜ}_x001B_ò@~E'Ì_x0016__x0005_ó@N_x0006__x000D_ç¿ñò@¬\u0093¶F[\u009cò@_x001E_xÊïÂ©ò@¬L5Q$}ò@\u0083æ8È¦\u0090ò@Â§µë_x001B_óò@\u0085W­\u0085J_x0007_ó@J<GW_x0004_\u0097ò@_x0003_A_x0016_Òáâò@)\u0086%¾_x0003_Òò@ÍÑb\u0084*³ò@.>õ_x0017_^Ûò@U\u0098ê\u00916\u009bò@\u0091_x0012_à¿&dò@ÆÃþi1Èò@-Ïa;·¿ò@³Ân_x000B_I_x0018_ò@ô\u007fçÙòòò@Õ\u0088lÒ_x0001__x0002_\u008eÁò@®\u0082ÄM_x000F_Ûò@Är\u0085\u008f_x0005_\u009eò@Ñ_x000F_èO_x0019_\u0085ò@ýÓ\u0080_x0008_Â²ò@w\u009fwW¿0ò@UD)¦÷.ò@nÉ®üÏDò@þA³\u0091½,ò@ÿ\u0096ð¶`2ò@³A2Jnaò@ì8Bò&@ò@únÙÀ~_x000C_ò@_x0003_@8ÊÉqò@é·YfBGò@º\u0091g[Ö\u008bò@|öba\u0086\u007fò@(Q,\u008bàïò@y\u008eç_x0006_C~ò@ñKQ»_x000F_.ò@Mý ¶Èxò@_x000C_9ZÙ>Ìò@z_x001E__x0010_ÀWPò@3[eÑ\u008eCò@_x0012_9 Pc¹ò@_x0003_6î6a­ò@tVÇ±@\u0082ò@Á\u00849áx<ò@¸¬¢­Û°ò@_bÐ\"ÜÏò@_x000B_ËÁ\u0080\u009aÎò@b\u0083Zôø}ò@_x0004__x0005_\u009eDcÇ:×ò@=z)_x0011_¬[ò@Á×$Ä¿\u009fò@ñpÕQ`Uò@eÜêùhïò@\u0095PË£²4ò@\u0098<|úCAò@\u009d_x0018_«dü¿ò@¨>hVIÞò@õÜ?·T\u0087ò@à1_x0003__x0014_^¡ò@ÑÎ¨#è±ò@o_x001B_ÎéOFò@²\u0082dcq¶ò@_x0001_,%cô_x0018_ò@®í\u0080s_x0002_Ïñ@9\u0083\u0086,»fò@_x0019_O_x0012_qÐXò@k\u009d3ÍyÁò@ØBÿ sbò@ck]_x001D_kXò@\u0080_x000E_é\"_x000B_²ò@éç¤OJÊò@£O_x000C_§¶Iò@\u008bA;_x0018_èßò@\u0082_x001B_.1ÐGò@\u0097v£'_x000F_øò@è\u0097¢Ñ_¥ò@Zü;F!jò@_x001E_ô_x0010_à`\u0092ò@ø/·\\ü\u0098ò@jÀ\u009bÅ_x0001__x0003_~\u009fò@ÑRoÇéþò@I):Aj\u0080ò@¿_x0002_\u0086³¾ßò@ª&_x0007__x001D_î«ò@#_x001A_2ál¼ò@9ÆÌB\"oò@·2·µÄ*ò@\u0096J\u0091!_x0006_»ò@&è9_x0017_[²ò@ëv2\u0099zÖò@ëñù=GÚò@oDN\u0097¥¹ò@'Ö\\PáÐò@7ç'\u009f°Ãò@_x0010_\u008c¥³èÐò@]«^\u0081_x001D_Wò@H|î§_x0017_ ò@-÷¤\t#&ò@Å_x0014_ÓÒ_x001A_cò@flÈÐ<yò@_x000C__x0012_\u009dûUVò@B_x001A_7q\u0083óò@X_x0002_?ÚR\u008fò@ÐC_x001C_ÏÝ\u008bò@(ëûØ+Àò@_x0005_Â\u0093l´¾ò@ØäÓ3¡Bò@l_x0012_S\u009c¨Åò@Ì6\u009d÷¬µò@ÜzÂ_x0018_!\u0080ò@\u0087ÄlÎ?sò@_x0001__x0004_7Í\u0089F|kò@_x0002_[Ù¤N×ò@°A£Å_x0008_Ñò@Öé¢k\u009aÇò@xîÂE¤xò@\t\u0084_÷@_x0002_ó@¤V~;6°ò@ 9;½¬Zò@«<\u0087jÈ¸ò@G_x0018_É_x000D_¡]ò@QbZª¥_x0008_ó@p\t°¬\u0096Äò@¶Aäç±7ò@°Kí2öKò@ï»N_x0017_~\u0099ò@_x0001_\u009e_x001B_\u0085R;ò@H¢¸_x000C_½.ò@§ç]õ_x000E_Lò@¨h-p/àò@_x0010_3ä¨GXò@_x0002_ùíñ_x0012_¾ò@8_x001C_éÆN¢ò@\u0081\u0097ä®B¹ò@­ÐAø§¥ò@ÆHÝé\u008e·ò@ëi+ìJ\u009dò@ØèÆQï³ò@¹ÖÏv²_x0014_ò@â_x0013_-§¹ýò@fÔ_x0017_[\u009c«ò@æÉ\u0095_x0003_ñ\u009aò@\u008baÇÉ_x000C__x000F__x0001_±ò@}k6ÁÁÉò@EXÃèôÝò@`\u009bÉ÷¹_x0017_ò@_x000C_Öú_x0019__x0013_Îò@æÍ_x0003__x000C_\u008b¶ò@ÉÆû_x000B_÷_x0010_ò@_x0007_Ø_x001B_zÄ_x001A_ò@_x000B_ _x0005_åÐmò@«\u0089é_x0014_ú{ò@°\u0095\u009d!_x0002_{ò@Ñ\\ù_x001F__x001D_[ò@Y_x0002_%[\u008cþò@è\u0099ß\u0092_x0001_?ò@¸0é_x0006__x0004_\u0088ò@BÑÀ_x0012_d]ò@± $A_x000E_ëò@zj7?Y¼ò@\u009e_x001C_òâ\u0080¬ò@Õû_x0006_9_x0007_\\ò@ê\u0096S_x0005_¹«ò@<{Fô\u0098bò@{\u008dD_x0001_¨\u0083ò@|üèTÂ&ò@nÖ,x_x0017_±ò@À±b_x001C_Gwò@\u0084\u0083qìv»ò@ô£vÁú\u008eò@Ë\u0097\t_x0012_c¼ò@o%\u0088`D ò@_x001B__x0008_\u0091«\u0085\u0084ò@i_x000D_Ø#\u0088Fò@_x0001__x0004_Ó&¼Ón¬ò@w;\u008f@Ð\u0089ò@»\u0099aókªò@Â_x000D_\u0095ÝüÌò@\u009a\u0082l\u0096¾Ðò@ä­né_x000E_Rò@13v¯@Àò@,¸Ç­<gò@ú<s:\u008f@ò@CÀc÷|Çò@¶Ë_x0002_í\u0083Vò@_x0016_\u0096\u0099_x0016_\u0094)ò@?²wá\u0084ôò@W­Í\u008f_x0004_Ãò@æ\u008c<_x0002_2æò@\u0083~GMyEò@R_x0014_8¾p\u0098ò@Ü«_x0007_ÔÔÅò@7°_x001F__x0015_¥eò@\u008f·1_x0008_6¢ò@_x0011_¤°ç÷¢ò@Ò\u0083kü\u008eKò@v=\u0096È\u0096aò@¥_x0012_Û|¯?ò@_x001F__x000E_Âq\u0092Ìò@\u008e_x0010__x0014_c\u009cËò@^®áS_x0015_Ñò@?8kWyêò@ºÖä_x0007_ÿ²ò@_x0003_Ðc]\u009eÿñ@nsnÔÕ|ò@\u007fEÔ¨_x0002__x0005_\u008a_x0004_ó@_x001F_\u0098Jr\u0096&ò@5_x0005_.õ\u009c\u0095ò@D÷Â_x000E_^\u0084ò@_x001D_åk_x000C_k_x0010_ò@iSâ\u009d\u0086Þò@0K_x0018_:\u0095 ò@\u009eª±~-Õò@>MI_Ù»ò@ÞÂ%À$Éò@`\u009f6/+äò@\u009a@qì²\u0095ò@dÁõÏ»ôñ@¤Õýü\u007fFò@_x0008_9\u0095×aNò@©ö\u0088_x000B_=2ò@?_x0002_=\u008fî§ò@Z})¯K*ò@\u0097±µ_x0001_ø_x0014_ò@kvMx-\u0095ò@?\u008e¤À\u0093­ò@À\u0094µÓ_x0003_­ò@\u0088_x0015_fÖ(\u009dò@D]eð\u008f°ò@Ì_x0001_Ðâ,Âò@÷j\u0097½Ç«ò@Þn#wÞWò@8\tÐ\u009e0Ïò@9Àï_x0003_sxò@>?­3_x0001_dò@FDÀÝÝ\u0092ò@³_x000F__x0015_²Tèò@_x0002__x0004__x0019_¾\u009ck_x0002_¿ò@\u009e@\u008aq\u008dnò@L¤ÙH_x001A_¥ò@[\u0086c2îÏò@£\u0092í÷fÑò@ó_x0018_\u0094Qç_x0002_ó@Ù*_x"}},{"$cut":{"chars":53856,"head":"79d34de156a577a4595b644ab452d0f1_x0002__x0003__x0011_H\"q+íð@QÈÙ×¤&ò@\u009e/\u0080!ÙRñ@\u0093¿ûj\u008b_x0007_ñ@\u007f\u00846ty_x0007_ò@.ÐWªÇíð@/*\u0095Ì»Gñ@:\u0099ê}z\u008eñ@_2\u0095\u0098âgñ@xëù\u0097Ö_x001A_ñ@_x0011_±ÆÙâgð@_x0011_¥\u009aOw\u0091ñ@\u0083}\u0095Mö\u0093ñ@\u008b¡Ú\u0098ø¥ð@Ò\u0089xe\u0098_x0019_ñ@ÿð\u0094¯Úóñ@Ù£$\\çàð@_x0015_\u009d\\No¥ñ@\u009düW_x0001_:Sò@cõ,\u0083\u0089Õñ@_x001D__x001F_³£\u008aPñ@\u0090á_x001D__x001D__x000C__x0003_ñ@_x0015_ý`ïh_x0006_ò@@n_x0014_~\u008dÚñ@L_x001C_ÛëV\u008eð@_x001C_ÄA_x000D_U_x0014_ñ@ÑëqIÍ_x000C_ñ@¬Éúýr)ñ@\u009cÓ_x000C_\u008dØÆñ@\u0091YF\u0088å[ñ@ÀîÈ¥tüñ@l´q°_x0003__x0005__x0001_¹ð@ý\u0095_x0015_òWµñ@\u0087ç?ÄÊ¡ñ@<«P\u0087²\u0096ñ@y±ÝÚüÛñ@¯¬ãâÍ¥ñ@_x000C_\u008bæ_x000B__x0004_\u009eð@çvOÔeyñ@PßÂY®¤ñ@_x0003_q¦N«_x001C_ñ@é%w_x0001_|_x0018_ñ@/R_x000C_«J½ñ@\u0090=\u0097º;·ñ@b_Æ_x001D_õ\u0090ñ@\\¦_x0006_ß5\u0085ñ@mZ\u0095_x0005_\u0080}ñ@< \u0097¢_x0002_jñ@Þïz_x0019_M\u008eñ@®\u009b\u0083üCæð@àÐ ß\u0080±ð@i¬ÖÒ*_x000F_ñ@HªÛÈÐ!ñ@¼×-oÔ\u0093ñ@\t_x0002_Ù_x000B__x0004_\u0096ñ@¦ýl_x001C_\u0098|ð@Ê-o.:«ñ@\u0096`èxâøñ@´ØV_x0013_\u009a\u0090ñ@rêW¾«6ñ@_x000E_`]t_x0006_\u009bñ@\u0094pÈó_x0018_äð@3\u0083VK\\½ñ@_x0002__x0005_)Ø\u008d\u0094ÿ§ð@½D^¸_x0006_Öñ@Î\u009e°õ\u0091äñ@½_x0015_@Nû¬ñ@&½(`Ueñ@8®\u009d<\u008f\u0083ð@}D9bñbñ@y_x0001_ðk\u0094)ñ@\tÌ_x001A__x0003_\u0098\u009fñ@\u0092ª¹_x0014_0\u0095ñ@;_x0004_ïÚÿ_x0007_ò@*À~W*8ò@\u008cBÉ_x0008_rzñ@\u0081¦\u0080'oÃð@@ÿ_x000E__x0008_ÂBñ@\u0080\u0084+¤¡Kñ@$\u0094\u0099|\u0096 ñ@|U\u0081Õ/_x0006_ñ@÷\u0099g~@>ò@\u0094f³¦_x0005__x000C_ò@_x001B_ü\u0091ýyîñ@W-Ïê8_x0001_ñ@êaD§h¬ñ@?¸ëÝ_x000E_Éð@C\u0084©=2_x001B_ñ@as_x000C_\u00916Ûñ@vG­_x000B_©ëð@_x0002_ªÆ:Ñ\u0098ð@Û\u0084_x000C_µtLñ@Ï_x0008_ëÞ_\tñ@Ñøh\u0085¦\u008eñ@wC9ý_x0003__x0004_\u0099cñ@À_x0011_ýFÑ´ð@ÎC\u00905\u0081_x0004_ñ@¬È\u0099)â[ð@Í_x0019_ü~_x0003_Iñ@J­Î¿_x0002__x0015_ò@!ÕZ)³_x0008_ñ@_x0018_¼§_x000B_Öåð@ø´_x001D_ho\u0091ñ@c\u0096_x0005_Î|èð@½Fj\"S\u009fñ@1Ð¢F_x0004_Åñ@Ê\u009cþîë\u009añ@(\u0093ðÏ\u0087Ùð@;\u0099é¢ä1ò@dÌÃ*K2ñ@RÂóûÈ8ñ@Hu_x0002_¹Ì_x0007_ò@ì\u008dô8TÐñ@ðôÙ¦_x000C_\"ñ@\u009b&_x0003_6\u0099þð@7_x001C_wî®ãñ@u#_x0001_\u0082è$ñ@\u0098i´¡Xöñ@V_x001A_;\u0095¶Cò@{_x0004_GMNÏð@aJ\u0086~'Ñð@rAW·_x0006_¾ñ@_x000F_/MÉ\u0083Öñ@â\u0099ËP£ôñ@)ñ\u0083ßÜ_x001F_ñ@/×~_x000E_å_x0008_ñ@_x0002__x0003_ÈãÖzè_x0013_ñ@É\u0080\u0086Fü_x0018_ñ@þtî#\u0093\u0081ñ@õ«I H.ñ@vn«P¶_x0019_ñ@¬O\u0082H\t_x001B_ò@25ÖAQßð@Iî\u008c·vµñ@ÎkWã_x001C_©ñ@Q|\\8êçñ@JUÊ_x0001_ºøñ@3¢9}_x0012_kð@Á!\u0081Û®èð@e2®Ð9Õð@_x0012__x0015_¥ºË\u009fñ@A\u0089ÆÐµRñ@óB\u0093?©Qò@\u00939\u009foa\u008dð@Ù-\u0093_x001A_Ìäñ@û_x0014_ý\u007f_x000D_Nñ@ãè\u0099ÊH\u0090ñ@_x0018_fñâÚ×ð@ä\u0081Ý^_Ûð@\u0080yÉÉF\u0097ñ@¼ÝäLÅÅñ@Ú\u009d\u008bII\u0092ñ@_x0012_i¬\u0080x(ò@iBCÓ_x001E_9ñ@Å?èùo_x0014_ò@É2Vñ*´ð@Ç£)ý¶óñ@+ûû\u0098_x0002__x0003_a÷ñ@?TñK\u0089\u0090ñ@Ý!cëJ_x0019_ò@\u0084Êõ\"°\u0093ñ@D4_x000B_ì\u0097Ìñ@2Nª1cúñ@qä_x0001_ØÔ¨ñ@L\u008cmÀ4òð@\u0092V`C)åñ@Ç²É\u0088°\\ñ@Ýsô_x000F_£¼ñ@½yÝi\u008a©ð@!_x0013_ý\\9hñ@Ó?qÚ+:ñ@\u0091s_x0010_`\u0083Cñ@_x0001_6¿ï\u008f.ñ@\u0099_x001E_Â'_x0006_\u007fñ@[\\º}_x001C_öñ@\u0094í\u0080½'ññ@ÍÑ_x0018__x0015_)_x0008_ñ@ëÄfW_x000F_²ð@úã_x0008_aõáñ@_x001B__x000D_çÀÌ$ò@_x0002_)Q/%¤ñ@y_x001C_ í&Æð@´æ\u009d_x0005_!=ñ@ø+å\u008eª½ñ@/{Î\u008eæeð@Y\u009e£}ª²ñ@HZú5À_x0015_ò@3Ö\u0085\u0089bmð@Ï½~öøeñ@_x0001__x0002_k_x000B_î¶_x0003_òñ@{e\u0080Ñ\u0088«ñ@¾_x0002__x0002_5¨;ñ@\u008bÏd¦ 3ñ@dH\u0081f\u0082¨ð@\u0099Þ·1\u0090\u008bñ@¡?_x0007_Äû.ñ@_x0017_µ\u009fG&àð@¨_x0010_o¿Z\u0097ð@®§\u007f_x001F_ORñ@\u0085y#a5¯ð@\u0091°r\u0098_x000F__x000F_ò@:_x0002_cD\u009a\u008añ@T¨ËÈ>Øñ@\u0091<Ú_x0007_V{ð@ÉùÁH«Ýñ@â¾Uä_x0011_9ò@\u008bÞ_x0017__x0018_eOñ@®Í_x000C_(P­ñ@.Û\u0099³cøñ@¶Ã_x0003_v_x000E_7ñ@ÆtÑ\u00953_x001D_ñ@\u0084æN_x000E_{Ìñ@ïåWK\u0081\u0085ñ@x_x0010_\u0091»^Êð@&¤\u008c\u0094Rðñ@â]ãú|dñ@æwÒ_x0012_Ð¶ñ@ \u009du_x0018_[Uñ@ø\u0084øl½Îñ@c\u0099Ì[ï%ñ@ç9Ü°_x0001__x0003_R£ñ@\u0092ã9\u0092\u008dÌð@/î=vH^ñ@»_x0002__x0004_/y\tò@_x0002_¬_x0006_Vå1ñ@vËÍt]\u008cð@àã_x0019_\u0098²_x000C_ñ@Íä_x000F_×\u0087 ñ@_x000B_¯û°±lñ@®¤ôo¡4ñ@aºâV\u0084\u0087ð@KëÏ©_x000B_Èð@sÑÊ«_x0006_Õð@\tâ3Ó¯_x0018_ò@^\u008b_x0012_<_x0006_[ñ@¬]\u007fò_x0004_añ@ºðç 8ïñ@Ç/h­\u0085_x0018_ò@ _x0002_º<½üñ@D_x0006_$§|fñ@ó_x0019_ÜÞîÀð@\u009b#Ù;_x000C_Éñ@U\u008bð_x0002_^\u008bñ@<8àj_x0005__x0018_ñ@ñà_x0013_¹Ó£ñ@Ö\u008aû\u009d\u0093Ôð@èWÌ9_x0014_µñ@þÕVL/\u008cñ@2öò\u008fi_x000E_ñ@0û³Â\u0090Jð@Q\u0085\u0091 A\\ñ@6\u0098\u009eÿÓ\u007fð@_x0002__x0003_ï%[S¬hñ@\u007fÍÀÔ\u008báð@Nz¶}#Hñ@Ú\u008a,Éºãñ@\u0085_x0014_îÝØoñ@Êv­S\u0094³ñ@\u0096Äí´»Áð@KAV¥\u0093&ñ@è`Ã_x0011_3Gñ@¨w7_x0003_\u008a\tð@\u0082!Fÿæ¾ñ@ç\u0086_x0003_¥_x0002_\u0099ñ@°CíÀcmñ@Ò\u0087<¹Z!ò@_x0007_ _x0001_Ûó_x0013_ò@u_x000E__x000C_û@{ñ@\u0091ÊLDW:ò@â#B_x0005_ò_x000E_ñ@Lös_x001F_D\u0085ñ@¡xGó\u0098Úð@-Û¡U\u0091\u0083ñ@¶ÎÐ\u009b»#ñ@ô\u009c\u008eñò_x000F_ò@5_x001C__à\u0083\u0086ñ@_x001C_A_x000F_]_x001B_Ýñ@\"_x0001_ê\u0095`\u0098ñ@_x0014_#\u0085\u0089\u0092Åð@¨WÒ\u009e<\u0089ñ@]û¬ÿ ¦ñ@;_x000E__x0017_Ü³_x0007_ñ@§_x0012__x001F_\u0099eìñ@iÑ¥!_x0001__x0003__x0011__x0013_ò@EÃ_x0005_ô³{ñ@«_x001E_ñ_x0012_Jrñ@Ìbå#Å8ò@ûò_x001B_Q/^ð@ÂwÎ_x0008__x0014_}ñ@\u0088¹_x0010__x000C_Áîï@_x001A_Ã¦\u008bN+ð@ºb>ªÛxñ@°z_x0012_rÝ_x001F_ò@\u0088ñ>\u0086ÐÂñ@_x0015_\u008d_x001A_[Ñ_x0017_ò@óvá]ÇÑñ@Ó0|2ujñ@éú\u0082µº_ñ@nßål»äñ@UwB_x001C_(qñ@Áf7º}Fñ@ü8(ûjeð@=\u0091*}_x0019_Ðð@y\u0092½n\u0080_x0011_ò@yC}¨ûðñ@ nÿ\u0087´_x0014_ò@¸§\u0096ßR8ð@òt\u0098nlÉñ@\\£nt_x0002_5ñ@{:_x0010__x001A_\u0099Ðñ@o6_x001B_R`_x0010_ò@Jø½\u009e½&ñ@éð\u0086_x0007_ Mñ@\u009f\u0087iqÉ_x0005_ò@_x0013_g÷@\u008cqñ@"}},{"$cut":{"chars":72738,"head":"1781243d749d76fb9b8ed22f5a361be3_x0002__x0003_Kö¸óS+ñ@>+_x0001_Ûé@ñ@®\u008d_x0016_7®°ñ@_x000D_FòÏ]¼ñ@'§K\\|8ò@â.}pÚ_x0011_ñ@\\ÿ\u009aw\u009czñ@\u008a)­Ê\u0086 ñ@_x0006_Ã\u0089¬¦\u008dñ@\u0089\u0084\u008cSSÌñ@\"_x0015__x0013__x0004_*åð@vÖ\u0089_x0017_¹añ@_x0012_ËÚ_x001D_¡_x0011_ñ@_x0002__x0004_0a@_x001C_ò@èOD6?Èñ@­X_x001F_¦y_x0010_ñ@\u008f¾Üiá\u0082ñ@8âÂi»\u0082ñ@?3¬F'&ñ@\u009eÒOÏ¼_x0005_ñ@ÿ¡ß×j\u0095ñ@Û_x0016_È\u0092ó.ñ@Îc\u008eäFÒñ@¡v\u009fæ_x0019_Xñ@_x000F_FàÌE§ñ@bRõ\u0089_x0001_Óð@±6Û«\u0084ôñ@\u009c\u008b*ã®\u0097ñ@Ý=\u008a2\u008f3ñ@J2%ùýmð@íÇO\u008f¢®ð@Q+!£_x0002__x0003_\u0094±ñ@6÷~z\u0087_x0008_ñ@'·¯_x001F__x000E_oñ@\t&7tZ>ñ@io_?\u009eÈñ@ºØñË¸ºñ@,Dþ{_x0016_Êð@UY_x000E_s2?ñ@\u0097[Þlepð@_x0016_acÏÎ_x0019_ñ@dM\u0082_x000F_÷¯ñ@fÅ£\u009a:\u009dñ@º_x0001_a½p\u0098ñ@\u008aá`æá´ð@åw\tÙ\u0098Ãñ@¼\u009awÑÁrñ@R¯\u008eâ%Áñ@{·ôK\u0082©ð@\u0096_x000E_otm£ñ@ÐúÎ}Òwñ@.ÄwÏ¬Kñ@\u0092;×_x0008_d\u0091ñ@]»_x0012_¬º_x0018_ò@ïza_x0001_®Âð@\u0084Ø\u0081Bnwñ@#n4\u0086èWñ@\u0093\u008b Þ\u008c*ñ@î\"ù_x0017_9Ëð@\u0080k¤qä)ñ@FC&D2/ò@_x000D_Ç_x000C_ý\u0092Sò@òL~Ó_x0017__x0008_ñ@_x0004__x0007_~lLd\u0090Äñ@â\u0088_x001A_gÂµñ@²_x0013_Þ<Ò_x0015_ò@ÏØ\u007f_x0007_é¾ñ@¬B_x001B_JÝ_x0001_ñ@#í¿<\u0084rñ@_x001D_avrWåñ@°&KºW¶ñ@ ô^K±òð@L=q­\u0091Fð@\u009bgaw»Æð@F\u0082xvK\u008fð@HrøM~_x0015_ñ@L]¼F[Öñ@FXç_x000C_0@ñ@_x0002_¿7C\u009apñ@Yÿ¬É/_x0014_ò@2Ä%Ý7üð@Øã{_x001A__x0018_\u009cñ@'/\u009f_x0015__x001D__x0003_ñ@\u0092]N\u0088A\u0090ñ@>Ü\u0080:>!ò@/à¹¿_x0005_(ñ@£Ì*_x000C_G·ñ@ßÝÑDÿ\u0090ñ@M\u009eQ\u009c\u0093´ð@_x0006_ê³Ý\"_x0013_ñ@xåJg=qñ@ø\u009e®-¢`ñ@þÈ8Ís_x0002_ò@\u008dµ¢\u009cL©ð@Îÿ{a_x0001__x0002_q=ñ@þ[_x0016_Ê\u008b.ñ@ùpöy_x000F_=ò@\u009d_x0008_«_x0011_#Cð@\u0086à¿N&Òñ@Ì ¦`©\u0091ð@_x0005__±WÈ½ñ@[\u0081M0\u0085\u008bñ@:H\u0094.&ôñ@ÚMo®W_x000B_ñ@Jç²D`gñ@.Ñ8_x0016_\u0086äñ@#JÒ\u008cË-ñ@ü_x0005_Q\u0094¦_x0012_ò@:_x0016_É+´\u0081ð@m\\_x001C_\u0089É^ñ@½=\u0081µµ}ñ@_x0001_zlR}Yð@b_x0005_v±uÖñ@è(2ª_x0001_9ñ@\u0087·c_x001C_Tið@¿\u0092\u009dk»=ñ@\u0084ã¬Y_x0003_Lñ@tªÝ_®îñ@ä#üfÅ\u0087ñ@fê\u0097_x000C_L_x0010_ò@¯_x0006__x001C_||<ñ@;Ëtcn\u0080ñ@\u009c²X_x0008_7Õñ@Ä\u009f_x000F_Ö§_x0017_ñ@ïº_x001A_jLÃð@yoú!¤Hð@_x0005__x0007_²ÅR\\_x0001_¢ñ@\u009a_x001B_\u0097\u0085u}ñ@_x0012__x0002_\u008a_x0010__x0016__x001E_ò@Ï\u0084¥_x001B_Ô¼ñ@¡N_x0012_^µ`ñ@\u008bÂÊâ {ð@«³^Ç=>ñ@gl_x0011_\u009fv\u0080ð@~_x0004_\u008d\u0097F\u0088ñ@Õ4ñFn_x001B_ñ@_x0012_úsLÜ\u0081ñ@ÂÁðT+<ò@En\u009d^Wäñ@_x0015__x0019_âÿE`ñ@_x000F_\u0089\u009c9·jñ@o«Ýx{\u009cñ@\u008eú¥.¸wñ@$y3óq_ñ@-\u009b\u0098$§°ð@|_x0017_f_x0010_D\u0082ñ@}V»\u0097öiñ@_x001C_ÆµÜ\u0088#ñ@_x0006_c É>&ñ@W_x001B_ø\u008f \u009bñ@_x000C_?\u009c·_\u0089ñ@M/TÙ_x000B_çñ@Ñ%ô!Ì<ñ@_x001E_¦ûý\u008fÿñ@\u0091lðù_x0003__x000D_ñ@_x000D_,ï`\u0088öñ@ß22ðÎ¡ð@Åà¨+_x0001__x0002_U¦ñ@ú\u008bn\u008bTëñ@CÌ03Ú{ð@(=@\u0080xBñ@ã´Ú\u009dC\u0087ñ@Ïiú\u0091Zañ@UÒk\u0087²Cñ@¶_x0017_P_x001F__x000F__x0019_ò@bìÍäO_x0005_ñ@_x0006_©_x0008_Ïráñ@_x0019_ö5Ã¿Pñ@_x0001_r\u0087ûMZò@wÐ\u0085_x000B_\u0080'ñ@\u009c£R`Æ_x0004_ò@\tíZ_x001B_½_x001F_ñ@u_|_x0013_|üñ@\u0087Þ.¿âËð@\u009cü}}±äñ@\u0087t6jäÁñ@\u008eJ_x000D_\u0084Tyñ@(ÂÏWí]ñ@ÍKSuçnð@_x000C_Â_x001E__x0016_àëñ@x_x0017_Á\u0084_x000F__x001E_ñ@·\u009c¦Có`ò@\u0097\u0097R~NLñ@~_x0007_'iî\u008eñ@Ì Lü=+ò@-FrãâÅð@\u008eô* \u0099Zð@ÅdÂûb\u009fð@\u008c\u0097_x0013_ø¸Ëñ@_x0002__x0003__x0019_Ð_x0012__x001E_3Àñ@ß©\u0094K}Üð@\u009d\u008f\u0094_x001B_>Éñ@{éqcB_x0008_ñ@_x000C_²5\u0089nÑð@\u008aF¡_x0002_úQñ@èµFé\u0088Rò@{Ä-*_x0017_0ò@\u008e*WKÜïð@½c§)³,ñ@ÁÚñ\u0093\u0085_x0012_ñ@è0R;z\u0081ð@_x001D_\u0084&_x000D__x0003_Ï_x0002_AxqÍ`°\u0088_x0001_A1\u0087²8»Õ_x0001_AÚIc2C¦_x0002_Aëí¨Ð\u0082×_x0001_A?_x0002_Úyõ5_x0001_A!\u007f\u0093vÝx_x0001_A_x0018_w_x0015_Ø±¥_x0001_AS2K\"pÞ_x0001_A_x0004_@Å[ç\u0085_x0001_AD_x0005_ûÄ!E_x0001_A_x0010_2ûÄg\u0094_x0001_A\u0098ã_x001D_ñº¬_x0001_A\u0094¡_x000B_LE1_x0001_AgÆ¦_x0004_W?_x0001_AF8\u0087\u009e§R_x0001_A>¿Øï 5_x0001_A_x001E_kÂáY¼_x0001_A\u0080ÑG\tã&_x0001_AV²¹*_x0003__x0007_¢À_x0001_Al/¹µ­c_x0001_AÞÔq\u0081À¶_x0001_A\u008c_x0011_\u008c_x001A_ªÖ_x0001_Aâðº|°á_x0001_A_x001C_Ò\\;³¥_x0001_A×\u0092n¦3k_x0001_A.#G\u009bÆX_x0001_AÞX¦[6\u008c_x0003_Aâ5\u0088´'â_x0001_A¾B£\u0086_z_x0001_A¦Ö\u009aµÂØ_x0001_A,Ç÷_x0004_ÑO_x0001_Aôs¡g~._x0001_A_x0016_/i\u0092\u0084\u008b_x0003_A\u0086ë\u0090·õ\u0082_x0001_Aääß_x0018_Õ\u009a_x0001_A_x0018_*5\tÖÒ_x0001_AÜ_x0004_\u0090\u0093._x001E__x0002_A@ÌE=\u008dy_x0001_A'ùµâ\u0090d_x0001_A_x0008_\u0083ývÔ%_x0001_A\"Ü_x0001_\u0083Ô _x0001_A\\ÀP§ ô_x0003_A0_x0019__x0013_6dë_x0003_A_x0019_Fu_x0007_Ïó_x0001_A\u0096[/_x0003_Q_x0005__x0001_AÞ#;H¤8_x0001_A\u0097£ûro\u007f_x0001_AN·,­Ëó_x0001_AÀµ²tßJ_x0001_A_x0006_*¢_x0001__x0004_Ø_x0001_A_x0003__x0005_À>*_x0019_´%_x0001_ArûSxKö_x0003_Aú_x0011__x0015__x0002_ìf_x0001_AÀ«ñº_x0010_å_x0003_Ah[;ÜbN_x0001_A\u0096_x0018_N I¦_x0001_A8{\u00942µÕ_x0001_A&²\u0095aã{_x0001_AÚ_x0017_\u0086_x0004_v»_x0001_A¤ölÈ_x001E_o_x0001_A\u008côñ¨½\u008a_x0003_A\u009bÜçg³_x0011__x0001_A\u00991\u0086YóÝ_x0001_A\u0097n¯XbF_x0001_AÆÅÐ_x0017__x0001_ñ_x0003_A*fç\u0084d/_x0001_A_x0012_9\tZHx_x0001_A2í\\D·_x0004__x0001_AÆ´_x001C_\u0093¦Y_x0001_A\t~Å#UË_x0001_Ajð Ùv£_x0001_AÒ¤¨â,\u0097_x0001_AÝ]æü¦Á_x0001_A¨Ð_x001B_yM\u008e_x0001_A_x0018_\u009c9Ã\u00951_x0001_A\u0094R<\u0088¨/_x0001_A\"Ú_x001E_[¬#_x0001_AÌÑðÂaê_x0003_A¬\u0097Ïîê?_x0001_A\u0084¸:duZ_x0001_Aáêk\u0083Ã\u008b_x0001_A\u008d?¹\u0093_x"}},{"$cut":{"chars":52734,"head":"39d12172113a974f2bffe8bb5b6ee7cd_x0001__x0008_ã¸Ë\u0099b,µ@í_x0011_â_x0006_\u009d\u0080µ@m\u0089Ò_x001C_V~µ@E_x0002_\u0090a1þ´@\u0084 \u0096)ÓÝ´@nWòhV_x001F_µ@x_x0010_@¸Ð'µ@\u008e\u0087_x0013__x0007_4Eµ@!_x001D__x0015_kÀhµ@åT!d##µ@&°v2ð_x001C_µ@\u009e_x000F__x0011_ä_x001A_Hµ@¢\u009b\u0084K¦\tµ@_x0006_\u009a·_x0016_çWµ@*=UN_x001F_uµ@_x0007_l<M5Vµ@_x001E__x0019__x000C_F\u0095_x0003_µ@¦¶Ù_x001A_¹ä´@_x000F_\u0081_x0007_ ñ_x0005_µ@I\u0087\u009cª?Ú´@_x001A_xÐ²ñ.µ@_x0014_g\u009fªWIµ@z´Ä¿c_x0012_µ@\u0089_x000C_Ø-ÃQµ@zcàµ_x0007_&µ@\u008cÿÞ\u0084¹_x0006_µ@ÔmGÆ_x0008_Tµ@°o¹]!&µ@¥zÚ\u0092rhµ@Úz_x0011_ßÞ4µ@+³_x0008_w_x0004_Ì´@s\u0082Gï_x0002__x0005_^{µ@G_x000F_'wÆ\u0088µ@ âã_x001A_­_x001F_µ@<ñ\u0087·\u008eQµ@Ç\u0099Ý×3mµ@¢¸$v\u0089*µ@'¸\u0081Á×ú´@ó'Bâ¡Tµ@Q¥\u0084\u00962È´@m\u0093Ù_x0003_(\u007fµ@ÝäÅ5_x001C_\u0080µ@$¶Ã«¥ì´@_x000C_ 9_x000B_[\u0085µ@ô_x0001__x001F_q¹_x001A_µ@ùB§¥Ùû´@eÃyð,_x000B_µ@aõ\u0098_x0018_!Bµ@_x0016__x0015__x001C_Xó_x0010_µ@*_x000D_±á_Mµ@ã|óPçÊ´@[Ý\u0095_x001A_S_x000B_µ@·ÎÛHa-µ@_x000F_<+Òí^µ@}\u0091ÆÕL4µ@]\u0084AìM\u0089µ@|_x0014_A+ß_x0019_µ@__x001D_n_x001E_ý9µ@TAÉ_x0003_XSµ@_x0007_,L×¶_x0013_µ@dñ\u0088Ê\u009f_x001B_µ@²ý_x0004_þ\u008að´@¶Ø®¶ö~µ@_x0001__x0005__x001F_§¾ÄG µ@°~0ÐPjµ@ë\u008c%KVõ´@´3+ª0%µ@qH\\\u0094É_x0003_µ@tÈìÓ\u008e>µ@¯¿«Øá_x001A_µ@×Ý_x000E_£È_x001E_µ@!«%ãe{µ@©ç\u0084C_x0004_Gµ@\\Ú¸_x0016__x001B__x0013_µ@Ï\u0091_x000F_\u0089\u008f_x001B_µ@Ç&ñXkÙ´@íj²[9ä´@\u0091Có\t_x0017__x0013_µ@]ÖKd\u0098tµ@Ø¨!Ö_x0016_Sµ@_x0008_cÔ`M\u0098µ@[¢¼_Ý_x0001_µ@fÛY';_x001C_µ@B&¦\tK_x0012_µ@_x0016_iFý\tKµ@öÿÈ_x0018_ô.µ@©$O\u009eø7µ@\u008aªU:®_x001B_µ@½\u0090î\u009eueµ@ß½Ñ+ÒSµ@_x001D_{_x000B_ï_x0017__x0002_µ@:è¯¦¨6µ@\u0092IaßD_x000C_µ@ÍÊ\"É\u0090þ´@J8\u0096·_x0003__x0004_>_x0006_µ@ìâ\u0093á\u008alµ@Ù\u0086Ë·WEµ@_x001F_ÿ¬_x001E_\u008fXµ@ºeô{äú´@*\u009b\u0080Ñî_x0006_µ@'5Ø¹^&µ@Q_x0018_\"_x0017_|\u0080µ@%\u008e\u0087_x001E_\u008f`µ@\u00863\u0097é¤Uµ@ÙEÛrGÙ´@Ð\u0095B_x0006_Ì×´@aHg_x0007_y÷´@\u008f\u008eWÍ×ß´@\u0084Ú\"k_x0001__x0012_µ@\u009bxX_x0002__x0006_8µ@¾_x0015_@o_x0007_û´@ð\u0092\u0084\u009c_x000B_'µ@\u009bwÇ¦ë\"µ@íÞ_x001E_÷_x0010_)µ@ÜElòõ?µ@¬N\u0097_x000F_\u0092Ú´@JG¼·~4µ@ p®qµ^µ@-u<°2Yµ@_x0011__x0010_·\u0081­Ñ´@1\u0095_\u0095_x000E_%µ@\u00904K[0;µ@_x0019_ö\u009bµÁ_x000C_µ@°`\u009d5Oò´@\u0093-?©ã\u0082µ@\u0092¹<_x000B_\u0084Oµ@_x0002__x0004_\\Û*5rÞ´@_Û_x0004_\u008e¤_x000C_µ@,è\u0091ÚÚã´@%§\u008fû¿_x0018_µ@»c_x0006__x0008_ãUµ@a¼e\u0088\u008aæ´@Ø=©\u009bÛö´@\u008cËI=?å´@o'Äe§Rµ@\u0097_x0015_÷ËAiµ@/`Ëÿuû´@B±_x0007_À¶zµ@Î÷.xÝ_x0012_µ@yÜüP_x0014_fµ@|_x001F_n@Ú7µ@ÝDl\u008fkcµ@\u0080©_x0004__x0003_Wî´@¦è\u0093\u009d\u009a;µ@r_x0011_i\u009bk>µ@_x001A_\u0082\u007fH_x0001_#µ@_x0004_øg8ÆÙ´@R\u0097j\u009d_x000C_ñ´@LÕ¹7\u008fí´@A\u009bH02_x001C_µ@×0v$°Î´@Å4Á_x0003_E7µ@\u0089íov\u009c_x0001_µ@GZóh_x001E_pµ@Î\u0099Z¡[Hµ@®ká_x0002__x001F_iµ@\u0084úØ¶¥Kµ@ ¿_x0004_ñ_x0002__x0003_­_x0011_µ@O\u0099¡x¶Ü´@PµS êqµ@?\u0096,ë­?µ@îx\tQ»Fµ@?½_x001E_ÚÊ\"µ@¾ D^F\u0084µ@_x0007_ëJ¥>)µ@ù\u008dðu/Ë´@V\u008c\u0081N_x001D_\"µ@\u0094\u0081\u0093\u009e2ï´@õú7û\\_x0013_µ@£@§S¨8µ@SÏ\u008b§'Hµ@#Õü\u0095\u0099gµ@2_x0015_7e_x0005_ÿ´@6kº_x0016_ÎZµ@p»_x000C_ç\u0082Vµ@î<î_x0004_³ê´@|º_x000F_OBù´@ô_x0012_\u0095Å\u009fü´@½aí0_x001D_3µ@_x0004_üvî¤Û´@\u0091ÿÿ\u0098ª#µ@à_x0016_'\u0083Òï´@#ÚùÖ_x000B__x0001_µ@'Ø(°9\\µ@\u0084\u0089Ó_x000D_s8µ@ÐÖª8_x001F_Û´@#{HÏïå´@\u008eaç.Á5µ@Î.uq_x0019_Iµ@_x0005__x0007_b_x001F__x000F__x0004_¢_x0007_µ@C\u0084à_x0002_Ìî´@%Òß_x0013_û_x000F_µ@F%D*1_x000F_µ@ò©ÓcT_x0001_µ@­d_x0018_\u009fË_x000E_µ@q_x000F_î\t\u009c_x001C_µ@]Â_x001E_ùþ4µ@ \u008d\u0092.}\"µ@#\u007f_x000E_Ö\u0096\u0097µ@tþd?àï´@|%R\u0087û>µ@ª_x0012_AB|ñ´@reã_x0014_5qµ@_x0004_\u0080\u009b\u009d5|µ@\u009c\u009fPðC}µ@=\u008eî_x0016_x_x0010_µ@\u0094lø_x001A__x0005__x001E_µ@m\u0082\u009d~f µ@ÿ>(Ô0õ´@\u0089\u0093_x001E__x000D_yCµ@R¸\u0080@5í´@î\t1ÐJ8µ@-³¢g~Qµ@_x000F_'Mþ¤ù´@î_x001E_¼ßÑ\u007fµ@_x0015__x0006_+Õ,ô´@ëj_x0003_\u0095¡jµ@_x001E_ýIÎúpµ@ß_x000F_2«±=µ@ é®\u0081a_x0015_µ@\u0098_x0008_\u0090\u009e_x0001__x0007_r.µ@{yìf£û´@<_x001D_í5\u009c\u0092µ@m_x000C_¹Q\u0082Ô´@röM_x0011__x0005_=µ@ky\u009e\u0089+Dµ@&O²²ÿ_x0013_µ@.k\u008d\tsLµ@_x0019_3`í)_x000F_µ@Sz6ûÍdµ@\u008co÷\"[>µ@â\u009d±=WCµ@_x0008__x0008_§ð_x0012__x0006_µ@4I(Þ%_x0012_µ@\u009cxõ7\u0089ê´@B_x0007_G\u0095\u009d&µ@m¶_x0006_GÂ1µ@º_x0002_­_x0004_û_µ@³ÓpzP_x0011_µ@ÃøÂJ~Ç´@_x0003_oEá5=µ@ë_x0007_l\u0085_x001B_Uµ@ü`Á`~_x0016_µ@Õk%h\u0092\\µ@¶\u0096\u0095ØÌ&µ@{LÈpGIµ@_x0018_\u009d2G_x0008__x001A_µ@æ_x0019_Ý\u008d_x0005_Vµ@ò$Záß#µ@_x0012_M&çà:µ@ªßÉ!ÿTµ@A³_x000F_Ý_x0008_\u009eµ@_x0002__x0008_b_x0017_Û_x0001_Ï_x0012_µ@_x0006_U£_x001C_Ü6µ@4G\u0093!ñ_x0014_µ@À_x0008_nY_x001F_æ´@[_x0008_áìvKµ@\u008aÅ4Z¤hµ@ËýÛÙW!µ@[AÂ_x001B_Lbµ@_x000D_*ï\t(_x0001_µ@\u0096Ï\u007fÑMLµ@@_x0015__x0011_\u0098_x001B_>µ@\u0080*ó/s&µ@03\u009aæfë´@_x0003_§bû\u0086^µ@6\u0091ä&ûÒ´@±â\u0084}á_x0005_µ@\u0084É©w,0µ@\u009f¨\t\u0088_x001A_8µ@_x0004_\u008f}aÍõ´@¤\u0085~Ë'mµ@_x0001_\u0083©¯'Ò´@\u0088_x0013_´÷.Ü´@\u0094'8ú\u009c8µ@×_x0004__x0011_;!ñ´@ÛL²V\u009b_x0003_µ@`\u0092_x001E_fk_x0007_µ@¸}*\u0086\u008d\u008eµ@èa\u009c³`qµ@-3#]â,µ@\u0091Ì_x0006_Æúý´@<ëèG{Jµ@\thjÿ_x0001__x0002_ Pµ@F_x0012_5¶Çð´@#_x0004_Í>_x0010_wµ@ÿ^\u0084eDÑ´@)±U\u009d\"Ú´@þ­*ÖÑî´@\u0088Ál­á3µ@ìÈ.\u0093\u0085ø´@\u009c\u008c\u0093\u0084=Yµ@°Q\u0086ab_x001F_µ@<]m_x000B_u%µ@[l(¬k&µ@|\u009d\u009dN_x0019_Aµ@Y6F_x0004__x0003_7µ@"}},{"$cut":{"chars":52152,"head":"1c1b8b4c6d14c0366790928e43c3219d_x0003__x0004_ðÝ\u0099_x001C_Óðµ@'µ=_x0001_JFµ@¡eJµOTµ@¼´\u0088\"-©µ@\\-l\u009døsµ@\u008fX_x0018_\u0091xnµ@HD|_x0003_ÂGµ@ý\u008c_x001D_Zpwµ@Çô_x000F_D±Uµ@óLk¿_x0019__x0016_µ@J\u008dÀ;ÊÉµ@G\u0086\u0084QÏ_x0001_¶@_x000E_¡*Ûûàµ@é_x001C__x001E_\u0092Î¶µ@Ñº_x0019_×e\u0084µ@_x0002__\u0083h?eµ@µ\u008c_x0008__x0013_§sµ@Þ}_x001F_%_x0006_\u008aµ@±ög(V£µ@öÝP_x001A_©_x000D_µ@O\u009fêúÑ_x0018_µ@_x0011_\tX\u0092e\u008aµ@rLP\u0095\u0080!¶@Ju`m%_x000C_µ@¾)û¨-@µ@ÙÌaFE¦µ@t\u0090\u0099-\u0081_x001A_¶@w\t³þMÓµ@Ë_x0012_¹C\"_x0004_µ@¥`x\u008cÐ\u0083µ@_x0016__x001E_8>#rµ@$!ì:_x0001__x0003_NUµ@b²£Ë_x0001_Ò´@á² ÎxØµ@_x0010_ÿ<\u0086òðµ@\u0096_x0007__x0018_ÔFwµ@\u0089-_x0004__h_x000D_µ@Ï_x001F_@ñ`zµ@\u008aè<ÂåHµ@_x0008_Ò<µ\u0097\u008fµ@ÕßÇ+4\\µ@Í`p\u0086ÈÂµ@¶e'Nècµ@,î_x0008__x0002_|\u008eµ@&_x001B_K§_x0002_|µ@AP+×Û+¶@D$O`2bµ@¸*_x0005_Ä_x000C_Èµ@\u0082C_x0008__x000B_rCµ@=s_x001C_Ã«3¶@Wò´êù_x000C_µ@¼#\u0098*¬¬µ@F\\_x0006_!\u00808¶@û|_x0015__x000E_C\u0096µ@V_x0002_RÄt_x0007_µ@='ðøõçµ@¬c_x001C_¯ì\u0096µ@níb}ñ_x000F_µ@\u0086Ò\u008c{ã@¶@¨\u0093q\u0090\u009bÝµ@[:ó!\t?µ@;_x000C_R­\u009dSµ@£\u0098«>Rmµ@_x0003__x0007_SÙ\u0090_x0004_åßµ@_x000D_[_x0015_\"\u008aSµ@_x0006__x001B__x0005__x0002_%1µ@÷îÖÐø0µ@Ñ\u0087\u0096zÓHµ@¼Ô\u0086Ü>£µ@¹4¥s\u008ewµ@ù®Áb\\ø´@_x0004_¸m~kðµ@»Y_x0002_µ,Ðµ@X±\\_x001F_|±µ@¨NÅ_x0001_ª_x0004_¶@tPü±=èµ@¸w£î\u009f_µ@Æ\u0097ñ_x0018__x0001_»µ@¾\taÁ\u0092Áµ@ºÆE_x0017_\u0082Eµ@âYQ\u0098°_x001B_¶@_x001B_¯_x0016_¤_x001F_ý´@Ý _x001F_Î[`µ@l¸<\u0084U_x0011_¶@T­T¤«\u009e´@ÏDgÝ|_x0002_µ@_x001E_Ôñ_x0006_q\u0090µ@\u0094¥eU\u0083Dµ@-+-h\u007fãµ@C_x000E_ÈòÆ#µ@}Ü\t~__x0003_µ@u\u008ff\u008b¢6µ@¯\u008cÄwo_x000E_µ@Ø_x0018__x0011_ÖG_x0002_¶@_x0008_±â`_x0003__x0004_¨èµ@rñT9u_x0018_µ@_x0018_öN¯>\u0098µ@ÖZ¼_x000D_jþ´@WÎ§\u008a\u008b\u0085µ@x<¹j»ã´@G\u0098\u008d_x0019_Ô°µ@î\u008f\u0093íeIµ@ÊÝ\"_x000E_N¢µ@\u00839\u008fæüÒµ@\u0082ÒÑ\u0084_x0013_8¶@~Ògå¸üµ@$>fé\u0097æ´@Dð_x0003_JÍ>µ@_x000D_\u009f_x0014__x0002_Ü5µ@O_x000B_:_x001F_eù´@ø§(ã'Yµ@¶_x0007_\u00851ý,µ@ØÕ \u008d\u0089¼µ@É\u008f_x001A_\u0080íû´@_x001C_\u009b#¥\u0095#µ@_x000F_ù\u008dpíÔµ@·\u008e(_x0001__x001A_Ö´@d\u0081\u0091FÆgµ@±ur\u009fðWµ@»§hì)Åµ@v\u00802\u0089_x0007__x0007_¶@¯æÍ\u0094K¥µ@_x0017_ï®l\u0098#¶@ý·. eëµ@Z)þÈ°Âµ@èÐù_x000E_\u0093ò´@_x0002__x0003_¿ÚÀÿ¦vµ@Ï9ê´Vµµ@\u009ac\"_x0019_Æ\u0098µ@ÐtM_x0006__x0016_Ñµ@\u0088`&Ô}lµ@\u007fÖ\u008a\u008a_x0004_±µ@C×ßÒÎ9¶@ ¥\u0083Ve:µ@ [¨àôøµ@ÌY_x001D_\u008d_x0014_Qµ@þ_x0001_\u008c_x0016_\u0086cµ@#ôò4©\u008eµ@Ã\u007f±~á¼µ@(¬\u0095_x000B_\tNµ@}t!«&yµ@J5PA\u0095Qµ@Ðh2ë\u0096\u0098µ@Âü÷\u0092$§µ@_x0014_ramÛwµ@\u009b\u0092_x0011_\u0082oRµ@]SNÁÑ_x000F_¶@å{\\\u009c(µ´@íYÅoà_x000E_¶@XÍ8pC_x0019_µ@* Å½¶,µ@°8ÿ\u0090Ö½µ@%2\u009e:\u008c\u008cµ@BF)\"¦_x001A_¶@ÛEÅá_x0017__x0006_µ@gÅæ\u0098_x0001_j¶@º9{Wå\u0095µ@+rýË_x0004__x0007_hªµ@\u008aÔd;\u008b©µ@_x0002_\u008f\u0089_x000E_=\t¶@¥·_x0010_\u0091_x0016_\u008cµ@ôp`Õÿûµ@¸Êg)m\u0093µ@\u009cßÿY£(µ@ò§ø\u008f«\u009fµ@°T\u0092_x0004_FG¶@\u0086úÖÂ/B¶@Xb9\u009cÇ_x000E_µ@²zíÙ\u009atµ@Wä\u008cv2Xµ@ëÆ³_x001A__x0016__x000E_¶@ðqcÉ¿\u0084µ@öL`·¢C¶@¶Óa\u0091Ü_x0004_µ@\u009f_x001C_g\u007f_x0002_\u008eµ@_x0013_þ\u007f4ø¶µ@\u009a\u009fÊ7\u0098·µ@_x0006_Õ²Pú_x000E_µ@ú!°_x0005_Ç\u0082µ@\u009dj~Ä.öµ@_x0001__x0001_\u0086_x0003_\u0090ªµ@_x0005__x0016_h'\u0095ýµ@Ê\u008aow¾+¶@\u0085ÝO¹Kvµ@_x0018_d\u0087ÂZ\u0093µ@Ú\u008bÌ¦òXµ@§_x0004_\u009bKþöµ@,àQk_x0019_²µ@þýß2Ø\u008fµ@_x0002__x0003_V`«ß©Aµ@\\á\u007fÔü©µ@_x001F__x0006_m¿_x000B_¹µ@'¶ü¯Ë¡µ@¡Z\u009bIÞÛ´@ª>_x0005_&\u008dT¶@Ã­é\u0098Ï_x001F_µ@:\u008e4Þ_x0002_=µ@&Ó\u0087_x0005_Ó³µ@54S\u0098µmµ@¢_x0008_ü´_x0001__x0015_µ@mBe½18µ@ÇP\u0084qÚ µ@l\u008e_x0001_ÿ_x0013_¨µ@\u0083\u0086Ú_x001C_\u008f'¶@?Ã|_x000F_-vµ@¨_x0003__x001C_¿\tÀµ@Ì½üª3Òµ@¾_x0013__ì_x0017_ó´@¾WJZ´_x001E_¶@Y:dw4a¶@Ó_x0010__x0019_]µëµ@0ÎF\u008f\u0098àµ@\u0088½Ã8N(µ@ ÚI\u0080\u0094ñµ@_x001C_YkôñW¶@\u0090 õ¹\u008bßµ@U\u0096\t¶âûµ@À\u0089\u009e^´\u008bµ@3PY\\ç\u0092µ@_x0002_3_x0006_àCñµ@ðªþü_x0001__x0002_¿\\µ@\u0092ÎTÌ_x0013_¢µ@3Ã(¦øËµ@\u0098.7.Æ\"¶@I\u008dT7º@¶@F½\u0084¬¦\u009aµ@µhG_x0017__x001B_\t¶@`æ´\u009a_x001B__x0001_¶@B£ZW£eµ@_x0001__x0005_L_x0008_±\u0097µ@Õ_x0006__x0008_éà#¶@<d¹Ôõà´@\u009eí@%pH¶@1\u00895É$#¶@g\u0089#ÍË>¶@¸Ó¬s-#µ@cSÄ1¾ô´@_x0005_óË \u008e_x001B_¶@cûÉ_x0019_\u0080Iµ@BÊ·ñBoµ@Å_x0005_t©\t:¶@0^à\u008a_x001C_*µ@Â)M!|\u0099µ@/Ö«ßÒ_x0017_µ@´_x0004_ÏËÉ_x0011_µ@Wpºç\u0091\u009cµ@_x000C_\u0083_x0013_£ûQµ@\u0098k)_x0003_\u0097.µ@)lø_x0010_âÿ´@Å¢_x0004_lvbµ@%¼OÙÉ\u0086µ@_x0018_¦1Ri_x000B_µ@_x0001__x0002_FæóÌ_x001F_\u008bµ@|\u0095ò$\u008aî´@\u0091øðÅ¹&µ@Ç~ÍÔ§Ãµ@¾¨Gb\u008bmµ@y_x0014_\u008dªLãµ@\u00913é\u008cz µ@÷_x0008_Ë)_x0002_«µ@aÌ`D.sµ@PÁH`ö1¶@_x001D_^#_x001B_4?µ@DÌ¢\tMúµ@_x001B_\"EÀä·µ@TýrèÉ\u009cµ@_x0003_à_x001B_\u007f(ýµ@\u0096qkæ¯Qµ@CO¸ñÞ5¶@ô£ø{|zµ@`u\u0083ù\u008c_x0001_µ@¸!\u0097cüÒ´@\u0096\\_x0004_Ú-½µ@¸ DLH\u0084µ@¾tcåÄ\u008dµ@¬)s_x0012_4_x000C_µ@Æ4rØÓPµ@_mÓ+Ó_x000C_¶@\u0095l!¶H\\¶@Ü&TõÐÿµ@%»ûç¢Pµ@/kû£\u008f&µ@\u0098bâd(zµ@C³F'_x0003__x0005_ÆØµ@øËÕ©X\u0098¶@âS\"°S_x0001_¶@Ðj\u0099\u0094²¦µ@J\u0083_x001E_G¶hµ@êíÑâª*¶@±K%\u0097â»µ@¨°\u008aÍ\u008e²µ@u:_x0007_ÇMlµ@<_x0002_\u009bd%iµ@_x0016_i\u0081\u0087Ç_x000D_¶@ò_x001F_æØÝþ´@\u0085\u009fï?>_x0015_¶@§éÎY\u0098´µ@ô£\u007fm:À´@$\u0092WAQ1µ@£EÝD\u009a\u0087µ@Ò\u009b>¸_x001A_Âµ@6wÛèÿ_x0011_µ@îR£7Àg¶@\u0095_x0002_ _x0018__x001F_0µ@éó_x001D_6\u009e\u007fµ@Ì\u0086Âd_x0002_xµ@_x0015_9\u0082|Dàµ@ß_x0007_)\u009er­µ@\u009dáù%Ô_x0002_¶@_x0004_Ñæ_x0012_º_x000C_µ@_}\u0081ì\u008eóµ@Õµûl'\u0081µ@_À^\u007f\u0082.µ@^s(Ñ[hµ@\u009e\u008eÒ¼KVµ@_x0003"}},{"$cut":{"chars":54354,"head":"735ff7c58e5f50c5bf3df47aabd11047_x0002__x0003_3Í.&Sqµ@yÕ±üè4¶@_x0008_B\u0083ä®)¶@?n Î\u009e­µ@ïèÿ=\u0084×µ@¨v#_x0011_\u008cèµ@Ö0|CEûµ@Q_x000C_\t]qw¶@\u0099iZ\u0082¹\u0095µ@<£¥aW2µ@_x0002_£_x0001_¿\u0084oµ@â}_x0010_êáeµ@_x0018_Íc5_x0015_?µ@þ¢3[©\u0089¶@/\u009dtÁï=¶@\u0086Ô{'/_x000F_¶@_x0010_L8_x001D_Ë_x0003_¶@_x0018_û6¾Ä{µ@\u0088ÑÙ$Ï\u0091¶@eîÞÎLWµ@\u0099_x000B_¨ì_x0012_2¶@AÉUË¤¦µ@4\u009dü¦\u009bVµ@èÛýfÊÄµ@0©*mü\u0090µ@ÐÛ=U\u008fV¶@éÌ¢BX~¶@_x000E_;?6°%¶@·´\u0090\u009bxÎµ@ãº;_x000B_.ñµ@HýÂíê_x000F_¶@´\u00930¿_x0001__x0005_0¼µ@þF\u0083(\u009d_x0004_¶@_x0013_KA×{Êµ@_x0017_Uh£µÏ¶@u±uÏ0­µ@\\¸þ-}\u0087¶@Ê\u0088ºE\u0091\u0093¶@ÆP_x001A_á­åµ@_x0015_Î_£ýU¶@ï_x0002_ì$_x0001_7¶@V1C\u009b-eµ@_x0012_e_x0008_÷æ µ@\u007fmA_x0013_Ô~¶@5þBpGÞµ@\u0082©º;WÜµ@S¿N\u008b·_x0015_¶@%_x0003_Âý}\u008b¶@ÛE¥V_x001B__x000C_¶@¸:_x0004_#_ôµ@¿ãÿJÝðµ@Ó¾¬Ù÷e¶@ÖÖ¬¶_x000F_Úµ@0V_x0007_n_x0016_åµ@ØÄÜ r,¶@´Ðþø!äµ@âÎ\"&:èµ@iÓuPb©µ@·LÖ²_x0019_ûµ@_x001A_G_x000C_0¶Vµ@³Ë¥_x0004_§\u0080¶@é Ä_x0002_\u008d½µ@Îá_x0015_*m®¶@_x0001__x0002_¿¶½Û\u0093T¶@ú}Ùhô0¶@_x000F_§\u0093:à_x0006_¶@\u0080_x0005_ò2@I¶@lm3 ý9¶@\u0087Ò\u0081\u0080\u0089_x0016_¶@É\u009dÇ\"_Lµ@id_x0002_ _x001D_wµ@D«WûâL¶@_x001C_8CI\u0091_x001F_¶@èþ'O\u0099~¶@£·²ëî\u008cµ@H_x001A_~«¡a¶@\u0089@6¨\\\u0091¶@_x000F_r\u009eYÀK¶@\u009eÀñ|*0¶@ìrÁµ§®µ@·H\u0094±õÅµ@º_x0012_¾¬ßZ¶@_x0016_6åÉD`¶@.j\u0090_x0003_|íµ@!¹ê_x0001_+v¶@\u0090ewº¨è´@ÿ»_x001E_ÇjÏµ@°l_x001D__x0004_mmµ@_x0004_û2Ú\u0092H¶@eç ½òÉµ@pn|ª=$¶@¥³ýÌÂZ¶@ü\u009a§érgµ@\u0097§C_x0013_±íµ@s=l7_x0001__x0003_\u009c\u0094¶@-ã;\t`[µ@ ÁDÕÃW¶@3vª\u009b_x0018_7¶@ìÞ_x0005_m$U¶@_x000F_N\u008d­_x0005_£¶@U!²îÎbµ@_x0002_\u0092«ä§P¶@¸°°À\u008c#¶@_x0007__x0017_><ÿjµ@bv¹±Oµµ@_x0007_õGc×b¶@<!gù]\u0084µ@Ì,;\u009b®zµ@\u0083\u0089_x001F_\u008eG_x0013_µ@Uúè\u0082óm¶@_x000E_û_x0017_yE\u0093¶@_x0003_ßÉ_x0005_q»µ@_x0012_Ã_x000C_Áâæµ@\u009f¬!¯_x000E_ýµ@£0uù\tØµ@¡_x001F_ÓEÌp¶@ò\u0083µ2éM¶@,_x000B_\u0081[\u0099Ýµ@èwÚÆôó´@È\u0097O+·Å¶@K[v\u0094_x0017_\"¶@Å\u009aN_x0018_åSµ@>_x000E_=x¿eµ@RoÛ=_x000B_þµ@î_x000B_I;LW¶@¨f\u0091\u008c ?¶@_x0001__x0002_þ\u009dÈ´H¥µ@¨w~&¦ºµ@_x0007__x0017_õëìêµ@H5)á\u0093ðµ@]Ö#­Ö\u0084µ@_x000D_\u0080MÅL\u008fµ@&¬-ÐÃcµ@¨Ï_x0007_ñU_x001C_µ@_x000E_5ÿ¿K\u009fµ@\u0099uOg¶¦µ@\u0096\u0097_x0004_\u007fïñµ@IÙ_x0011_\u008b\u0094{µ@_x0005_Ä$0\u009cpµ@dª|_F7¶@§Á_x0006_\\wlµ@Y¦ÓäLA¶@Ì6\u0082EYl¶@_x000F_G¢ÿ_x0008_\u009cµ@ö~ï¥û»µ@[\u008f_x0001_-8Àµ@¿6Ò_x000D_ßÒ¶@\u008a_x0001_½§*_x000D_¶@#Ög¿è¦µ@_x001D_c¤É]Ðµ@\u008f+_x0013_bhÄµ@\u009e¤j[B³µ@A)_x000F_\u009d\u0080t¶@-_x0003_ÖÂ¸×µ@\u00959u\u0094]\u0096µ@JÆËyÕ±µ@\"_x0015_;4ß\u0098µ@\t©_x0003__x000B__x0002__x0003_ó@¶@D\u0094\u008eÑ_x000E_Üµ@MX\u0089gi\u0099µ@é\u0081ßDêÈµ@\u0082bö\u008e\\n¶@³«Ñ4²`µ@\u00834_x000C_ù_x001F_vµ@½à=_x001D_ûËµ@î4T\u0090]áµ@}å_x0001_;\t\u009fµ@`P:r\u008a\u0089¶@\u0096_x0007_j¦°{¶@órßª²£µ@G\u0084ûóæ;¶@ëB\u0092À®Ïµ@­\u009bp'ã`¶@­\u009d_x0010_X¡²¶@ô\u0091°Ø_x0011_@¶@(¾'ÿ]-¶@_x0002_ò§&g[¶@{\u0093jxëïµ@\u009c\u0089Ð\u0088\u00838¶@I)l\u008cxòµ@ßã_x0010_\u0093Öq¶@wµD\u0088\u008c\u0095¶@@Õ-¢bK¶@¡ø_x0010_>-\u0087¶@\u008bUxÓa±¶@ E<Wj\u0095µ@¸ÿ\tNîl¶@Ì¼fÄlÿµ@\u0080S_x0006_*ª4¶@_x0001__x0008_­×b[iÎ¶@8\\{£«|µ@_x0003_¾\u0088ûÀ~µ@Æ_x0015_\u008c\u0098l(¶@UPðT_x0003_,¶@¨_x0010_G+7_x0005_¶@Ò§Å_x0006_?èµ@!D}1\u0088E¶@_x0013_?Q4_x001A__x0017_¶@F\u0097Õ\u009bÇ\u008dµ@Lg£\u009eh_x0018_¶@¼Ñ*\u0094\u0095\u0098µ@\u0088%ß\u0080\to¶@¢`BÄ¾J¶@DN_x0007_0_x0012_±¶@Ú\u008c_x001A_2&\u008a¶@HTR_x0004_ô_x0015_µ@´)\u008bs\u0081S¶@\u0086_x0002_7_x0011_¥¤µ@:_x0017_)\"\u009d_x001B_¶@h\u0097×lë_x000D_¶@+\u0080L\u0086\u008f`µ@}_x000D_\u008dÉ_x0006__x0001_¶@Ãpî_x001A_Ö ¶@_x0019_H\u007fkM¢¶@bU\u0095_x000F__x0018_>¶@,Mÿ\u008eÔ?¶@b`*­¡q¶@ÇµæÁ_x000F_èµ@`X#c_)¶@ºæãõ_x000D_]¶@üD¥î_x0001__x0002_þ_¶@îlô_x0007_D_x0017_¶@Ä_x001D_ÝÊ_x0003_iµ@Ï^\u0088ïéìµ@±)yø£_x001C_¶@?º¸_x0010_Vêµ@¯¢l\u0095VÃµ@.Ò#hÛ­µ@\u008f¥l\u0088¶T¶@\u009fÍIÄ_x0019_W¶@Ì\u008f°\u0095ñJ¶@\"é_x0011_x\u0093_x0005_¶@_x001D_\u0081_x0002_ÃÃ_x001A_¶@ê\u0097¥OQãµ@_x0015_]«~_x001F_Çµ@\u009eÏÞ¦\u009b©µ@#±¯0Ä\u0082¶@:ª/¶E\u0086µ@ì£nzÛÔµ@ÐÓ¿J.@¶@Ä9*'µ!¶@í&_x0004_T¶öµ@8Q kPñµ@^5t_x0015_\"Íµ@_x0007_¼ï_x000F_Vºµ@_x0014_\u008fô\u0089£úµ@\u0088\u0081C«2Ã¶@Tùàr_x0010_d¶@_x000C_sýÅ_x0017_°µ@é_x0003_ð_x0001__x0004_\u0084µ@±_x001D_¿Cñ¹µ@ßc7¥8\u009cµ@_x0003__x0004__x001A_¢!O1_x001F_¶@\u0095F¢<\u0096Rµ@·_x0010_ÏCÌãµ@ø¢u9\u008d>¶@Ëv\u008b£f_µ@A]IùaÛµ@­W_x000B_I*Áµ@Ò_x000E_v\u0086_x001B_\u009d¶@Òpb\u0092Ø)¶@mãÕ^_x000F__x0001_¶@b&×_x0008__x000F_Öµ@^\u008b¼ó¼_x001A_¶@\u009a_x000B_\u008eóôy¶@_x0016_Iw\u0084\u009exµ@$aÁÐ_x001F_(µ@Úö\tx³!µ@¶zÈ#mV¶@Ò#=\u0082_x001C_rµ@áäB­+\u0080µ@x ?_x000D_Þ%¶@òKÒ¡ZB¶@;\u009d=\u0089¨p¶@H_x000C_ð½bMµ@g|qÊ~p¶@c_x0008_¿r$´µ@Äp\u0099R.A¶@\u009f\\ÿvç\u0083¶@I9ôCÅÆµ@Çª_x0002_8Í\u0093µ@yHÛà_x0012_6¶@ßø8_x001C_¶o¶@ccÃæ_x0001__x0005_\u0098Wµ@Î\u0085'F_Gµ@H_x0012_¡¸4Zµ@=<_x000E_ÕP\u009e¶@sñn+;o¶@qt¤Ú\u009dg¶@\"__x000E_+\t\u009b¶@H¼ÁA_x001B_ãµ@õ|\u008b\u008e_x0008_Ýµ@ïó3Ñ_x0018_©µ@i¹\u0085³\u009e¸¶@%Íæ_x0005_bÑµ@ZÈ$Ø\u0080\u008aµ@ÊéÛiÌ/¶@_x000E__x001D_\u009b$Á7¶@\u007fïä0ó\u0088µ@=÷.È£\u008a¶@®àëu\u0094xµ@\u0092X/\u009c64¶@\u0091_x0003_\u009c >_x0013_¶@_x0012__x0019__x0011_)\u009d\u0085¶@¿ö/_x0004__x001B_aµ@_x0005_µ6Õxk¶@72_x0004_%V\u007f¶@\u0085Í§÷£ñµ@¶é[Òzþµ@\u009e_x000F_xk13¶@F!_x0002__x0019_\u0084¶µ@P|\u0083Ú\u009a_µ@;z²·õZ¶@@\u0096_x0006_^çz¶@ÃÚá¢ðI¶@_x0001__x0004_\u0084\u0089\u0081_x001A_$h¶@ÊêüV¢qµ@f¦ÌÒë_x0015_¶@×ëDBÂ\u0083µ@Çÿ_x001F_bÃY¶@\u0082N1_x001B__x0017_Xµ@ÀjF_"}},{"$cut":{"chars":51528,"head":"f455b5fa390fa128f3a2dcbd7194b91a_x0003__x0005_³@_x0012_ì\u0092_x0003_Æ@õ%_x0001_0\u008cÇÅ@¼mé©óÏÅ@_x000B_6,è\u0091_x0002_Æ@ßH4 ôÉÅ@äªAdûBÆ@ 2auÈ_x0008_Å@Ü\u0094\u0096W´dÆ@Ö_x0013_ïmý1Æ@¸K\u008f\u0084_x000D_ÉÅ@,Þ\tý¡\u009fÅ@_x0017_3L\u0097D{Å@ø{Xô\u009a_x000D_Æ@=Kp_x0012_fzÅ@Ræ{y ÙÅ@Èð+8s_x001C_Æ@\u008eñÑ±óMÅ@Z_x0008__x001B_\u008d äÅ@ª_x0004_\u0097ë=ÉÅ@_x0010__x0002_{\u009eÕ,Æ@¿ª`O\u0084\u0095Å@\u0095À_x000B_üî¨Å@þ1ÌN`aÅ@`Y¬>[ZÅ@þòi{D²Å@\u0099_x0007_;»_x0013_ÿÅ@ûÌá(]¹Å@âÍùH¿8Æ@ãÙKù)\u0083Å@Û¹_x001C__x0004_\u0086\u0089Å@_x000C_êw(_x000E_rÅ@¦Ïe\u0096_x0002__x0003_è_x0006_Æ@Â_x001F_Ï¯.»Å@bÇ_x000D__x0001_}tÆ@¦t\u009dK_x0012_\u009fÅ@\u0082!\u0083åì¬Å@$K;ÁþúÅ@èÃË\u009a¥:Æ@½P\u009bÆ¬ÉÅ@\u009e¯Ð@\u007fªÅ@yÄ\\>_x0014_ÜÅ@_x0019_u:ú&tÅ@_x0002_¢~ËÛ¼Å@_x0014_j\u0084_x001C_\u008c_x0005_Æ@\u008ad/?_x0005_½Å@¹_x001B_.è·\u0089Å@ÈJ\u007f_x0002_Ö_x0011_Æ@$\u0096ãaÁáÅ@ú¡_x0007_\u008dãwÅ@òe_x0003_ê\u007f#Å@_x0012_M/¢¡sÅ@_x0006_h\u0087«_x0018_\u0083Å@¤²¦9ûÆÅ@Q_x0003_ÿÊµ\\Æ@=¡\u0085+ÀÚÅ@0dÄzö}Å@Ú_x0013_j¯ëÓÅ@s\u0080À#ûjÅ@_x0008_-|ÚÑzÅ@Tö\u0098\u0093_x000D_¤Å@àþ7§a¿Å@\u007f]ðï-_x0014_Å@ì¢ÏôäNÅ@_x0003__x0004_NûC ÿ_x0001_Æ@ª¾_x000C_­lïÅ@´ê*Â,\u009cÅ@_x001A_bÕ_x001B_F^Å@0ü_x0002__x001F_ÜüÅ@_x000E_\u0091\u0098\tî_x0011_Æ@Nó¨T»\u009fÅ@.c_x001A_JaÙÅ@_x0002_4M4éËÅ@\u0082l\u009e¼øÃÅ@¼SÃ\u009a~ÔÅ@bC9½\u0099|Å@Be³\u0080Å\u009fÅ@Ù\u009c2Xu3Æ@\u009aäaõ\u0085;Æ@g\u0089)¼òÜÅ@_x0018_éQÖU_x0006_Æ@f7o3£\u0095Å@\"ÿ«_x0006_I\u0085Å@_x0003_B\u0093_x0010_äæÅ@_x0019_|³ÊW\tÅ@xñtùÇÿÅ@2_x001B_È¸_x001B_ãÅ@_x0010_þDÎ`£Å@ðK_x0012_\u0084_x000B_²Å@ìg_x0019_l_x000C_ZÆ@\u0082Ý_x000C_o7´Å@XZF,\u0098rÅ@_x0006_³_x0010_ûX?Æ@±ÑÀ_x0011_<\u0097Å@º\u00968\u0092_x001F_öÅ@=_x0004_å_x0016__x0003__x0006_Ö!Æ@è_x000E_,Á.(Æ@òÒ_x001C_òU8Æ@_x0002_üÝ\u008a_x000D_¨Å@rçY_x0011__x0003_áÅ@f%C\u008e0$Æ@ê\u0092äb_x0004_YÆ@\u0096k^«O{Å@ÒOX\"qgÆ@\t_x0011_e_x001D_ãuÅ@_x0006__x0018_EzyØÅ@_x001E_2\u0092ÑKúÅ@T_x0008__x0003_ÏÏöÅ@Y÷íÂý\u0097Å@YþÝÆ_x0019_BÆ@_x001A__x0010_b_x001F_äÒÅ@_x0006_`.\u008f8òÅ@hÖB7\u008flÅ@9¯_x0010_ñ_x0001_\u008dÅ@Ê-eK\u009d!Æ@ø\u0083¨_x001F_äçÅ@¶]\u00831ô\u009aÅ@_x0014_üª_x0001_²ïÅ@&{Á¨_x000C__x000C_Æ@\u0086_x0005_Ò\u0098tÍÅ@êásÃw\u0089Å@\u0094,ìz_x001F_IÅ@X_x0017_Øý_x0019_xÅ@°5,_x001A_\u0081¾Å@M\u008b\u0082ù_x0008_/Å@ô)½Ñ_x0018_÷Å@&É\u0087ëæ\u0096Å@_x0001__x0002__x001E_¯¡ÈÙ¹Å@\u0092_x0017_K_x000C_§¬Å@ÙæHñé_x0005_Æ@\u009c_x001E__x001B_NÖ_x0011_Å@{_x001C_ôÑ\u0093»Å@»ø_åZ_x0013_Æ@\u008d_x001D_ÐÌ¡lÆ@1¢¢Ñ5ìÅ@\u0085²_x0006_¸-_x0014_Æ@Xë¼+8³Å@&e9_x001E_\u009fWÆ@_x0018_\u009bÆÿ9_x0007_Æ@X\u0090ô®©²Å@v/à°«\u0080Å@_x0003_i\u008b\u0098_x0017_^Å@FÖ_x000C_\u008drØÅ@®ªÔ\u0096×\u009aÅ@íF'T\u009b¡Å@À\u0083_x0006_(1_x0003_Æ@zæ]_x0015_å¦Å@^\u0086¹êwÛÅ@r_x0016_\u0088ÓÝ¤Å@µ·þâ¦ïÅ@>mÔ²¡õÅ@l\u0084ùz¨¸Å@<¾ÆC_x0014_^Å@ze_x001C_ÀV\\Å@\u0085s\u007f¡æKÅ@N¤Ýæ½_x0005_Æ@_x000E_`Öø>ÓÅ@\u008erK\u0098*\u007fÆ@!ú\u0090_x0010__x0001__x0002_·æÅ@\u009aQ¦Y°ñÅ@%£ÃhR#Æ@_x001E_Ë_x0010_è\u0091\u0081Å@Øê>7\u0087«Å@ÌÅÖ_x0017_*ÜÅ@gh_x000D_*_x000F_fÆ@_x0011_`_x000E_t|_x001A_Æ@Îâî\u0081_x001C_ÿÅ@¬§<_x000C_æ\u0099Å@Dt\u009fóe_x0005_Æ@_x001C_?3 _\u0091Å@@Åæ\u0092\u008eÆÅ@DP\u0089éè_x000D_Æ@´b8/_ìÅ@rÙºc2\u008bÅ@\u0086%>L_x001F_ÓÅ@V×\u0086µG\u008cÆ@_x0018_RK\u008e_x001B_bÆ@\"_x0008_Ã\u0096ß\u0090Å@Q\u008eut\t_x0004_Æ@PE//=ÐÅ@§Çù\u0097m×Å@7\u0080ýÜØ\u008fÅ@ÐÐòüð2Æ@äL(_x0016_\u0095ÏÅ@_x001E_I´r`fÅ@í_x0019_S\u0098þÈÅ@áý\u0087\u0090ï_x0003_Å@2N_x0014_ïð9Æ@\u008aÓP;ô¶Å@\u009d\u0080w_x000B_-_x001E_Å@_x0001__x0006__x000E__x0003_#LÊ~Å@ßGµ´\u009eäÅ@h_x0018__x0011_Ýí\u0084Å@_x0002_¯fd»\u0084Å@fðï_{\u008dÅ@â3_x0004_4@ÞÅ@²5\u0089Í\u008d®Å@_x0007_3¹¯Í_x0011_Æ@_x0008_FJ¡_x0012_àÅ@,êòÉ&9Æ@xJ_x001E_8©þÅ@_x0008_L3¬Ñ_x001C_Æ@\u0094²a+¡\u0096ö@\u008c#R+_x0004_\u0093ö@ÿê\tO$µö@ð@\u009a'\u0098©ö@á\u007fq_x0006_ª®ö@ÆE@!e²ö@Û2\u007f,\u008c¡ö@\u009eb÷_x001F_mµö@Sã÷\u008f_x000B_\u008fö@\u009f\u0097v\u009b\u0087±ö@{_x0016_k\u008dJªö@¼_x001B_Në_x0016_»ö@øÿwGÝ·ö@¦þ_x000C_a³®ö@ß)TÙ`°ö@u_x0002__x001C_:_x0019_\u008fö@ºÚÎß°Àö@\u0097æØâÌ\u0091ö@`ïÃö_x0005_\u009fö@Á\u0098¢\t_x0003__x0007_¦\u0093ö@O\u0093×VN´ö@¥K#_x0018_1\u0093ö@®\u009bàø\u0083¤ö@E\u0085\u0085¹ñ¬ö@%ÜÃ\u0099BÀö@º±UöÕ\u0099ö@Ë÷vÖRµö@©_x001C_;-À¾ö@º_x0016_{3_x0006_©ö@øÃ\u0093Í8Àö@}\u008d\u009d0V£ö@{ì(B9¯ö@\u0087©_x000F_\u00854\u0099ö@OfA&_x0005_¬ö@ù\u0092Õ<R¨ö@à¨g<®·ö@MÊüIZ³ö@_x001F_Z^7_x0006_·ö@_x0001_3àL_\u009eö@\u0083WGçX¹ö@\u008fy{E\u009b½ö@oþ_x0002_­»§ö@ÂòÅ´\u0086\u0096ö@u?*ÆE«ö@C(ý9\u0082®ö@û_x0012_~[Y­ö@f7G¿u\u0098ö@ÿ_x0008_\u0088*\\±ö@_x0016_ã_x0004_g_x0007_Ãö@V\u0092=«\u0094\u008cö@H_x0001_\u008d:_\u0098ö@_x0002__x0005_Õ+\u007f6B¤ö@Jüèú\u009e¯ö@_x0006_y\u0094I¿\u009dö@_x000D_AGÎB±ö@Zö/_x000C_! ö@¨WÔÑõvö@\\_x001A__x001B_Óù¤ö@Mp_x001F_\u008d\u009e°ö@Õüyµ\u009f¨ö@Õ·_x0002_Ä_x0004_\u0097ö@Z-Tón±ö@_x000C_øüö\u0093°ö@Æñ\u009e¥_x001C_\u0089ö@/S6Ç\u008aªö@_x0016_R­B\t\u009eö@_x0018_\u0087Ìóâ\u008dö@L4F·_x0007_¸ö@Ã_x0001_dÌA\u0097ö@_x000C_\u0088]¡T\u0094ö@s__x0016__x0018_m\u0092ö@Ó956O§ö@Lð%®Y©ö@\u009d\u008bUZô§ö@[?´_x0004__x0003_\u008eö@i\u009e=\u0087y ö@í\u0088Í[\txö@xUWçm«ö@C2_x000F_g¾®ö@®þ\u0082\u0088ù«ö@rN\u0086_x0011_\u0089\u009dö@3\u0086Û{æ\u008cö@{ô÷\u008f_x0001__x0005_E¥ö@\u0087¯Úåf²ö@Èdï/³¶ö@öÆ_x0012_ôF­ö@_x0013_Û\u0096¬]\u0086ö@á)B\u0085_x000C_\u009fö@aÃh³·\u0096ö@ZC_x000F_p·§ö@¬­¹/P¦ö@\u0089_x0006_@X_x001B_£ö@~õy_x0004_ó\u009fö@Ã\u0080_x001C_:\"Àö@Átm\u009dÿ¼ö@iËãhL\u0088ö@qz-s%\u008dö@õ\u009b_x0015_¼\u0094¢ö@Ó¥Eû_x0003_\u0094ö@\u009d\"¨\u0087å©ö@¨L¬\u007f²¨ö@ÏÎuPØ©ö@_x0008_WHì¿·ö@e_x0005_±\u0099_x0016_´ö@Ià»\u0092@§ö@¶4Ô?Ç¨ö@?\u009cïP-\u0094ö@_x000D_ÎD\u008fÚ­ö@>ü$æ3¯ö@ûh1ì"}},{"$cut":{"chars":51204,"head":"3a11673d9f58d47e171332ddf243bb16_x0003__x0004_¹õ°\u0092\u0084äõ@\u0098Q\u0083s·\u0097ö@p·_x0001_Ù\u0097\u009aö@9èä\u0083JNö@\u0090x¦\u0088à*ö@ß_x0002_èÏÆçõ@\u0081}\u008b¦ý\u0080ö@Gd¬$\u0091\u0089ö@le\u0081_x001D_KPö@h»\u0088®_x0006_gö@4ÊãFì\u0085ö@]¯t­ Pö@ÈÁ6Ù³\u009dö@\u007f\u008cÿù$ëõ@úýF´_x001A_Dö@ø\\Ì_x000C_óbö@¶â[xmÆö@p_x0011_Z%Ò ö@_x0010_òx\u0093¾_x000B_ö@Fo\"*\u0098(ö@bd\u008bdSKö@ç\u008bÇ>(tö@÷åpÙ»>ö@±}òl\u00928ö@dÞÅÄËVö@\u0094\u0091_x001B_×\u008a×õ@ï(à_x0008__x0001_eö@ý\u0085@lûÓõ@<¸Ùs_x0011__x0005_ö@ë|CuwÁö@_x0001_¿\u0096\"_x0008_¿ö@\u009c¯B'_x0006__x000C_tlö@p±_x0018_û_x0019_Hö@]}¬_x0006_«Ðö@à;ãb_x0015_hö@_x0004__x000B_.N_x000F_´ö@\u009aú_x0012__x0003_ñUö@9µ£3\u0094ìõ@$_x0001_Mx¯\u0092ö@®ü+e8zö@\u009c]ü_x0001_Å\u0082ö@àôÙÈr-ö@¶®eÚ_x0010_jö@\u009aHQ3|\u007fö@x¿h¤\u0081\u0093ö@¢Ç_x0007__x0005_L@ö@Ïs9u&Nö@\t÷A\u008bE_x001C_ö@ú_x0006_1,Õ¬ö@­z-Iv&ö@\u0098·\u0094iïÎö@MxAø\u008f\u0083ö@\u0091Ø_x0018_\u009arïõ@Íâ½ï\u0090pö@fI½_x0012_>_x0010_ö@\u008e_x001D_G¼ztö@{ë2\u008c]êõ@½Æ_x0002__x001F_ _x0016_ö@_x0008_½!÷\u0097\u007fö@®=ïúì!ö@Ó¤,ý æõ@ëÐ\u009fÀèûõ@³Â#Nú`ö@_x0003__x0005_ó\u0085Aáðùõ@\u008b\u0080\u0085K_x0002_dö@·êØÅ\u008c9ö@íj]cÔÂö@³\u008al_x0004_\u0094Èõ@k\u0091p_x000E__x0015_4ö@5v_ò_x0017_uö@Ë@·_x0011_ÉXö@ú â5Ôoö@_x0002_H~Â0\u0087ö@ðw_x0018_õã7ö@\u0087­ì¡øãõ@\u0094ç[à+vö@J\u0081Ì\u0088¯^ö@N«ð\u0085_x0001_Íõ@Ç_x0014_Á\u008f¹\u0098ö@\u0097¿W§\u009fjö@U}B_x001D_ò_x000C_ö@H/neí-ö@)XØR\u0095wö@DoG´_x000D_rö@_x001E_å,¢\t}ö@-v_x0016_u°\u0082ö@vÏ\u0096ìÎ&ö@¸^Ç¿î\u0087ö@qÌðÅcãõ@f\u0094!)È_x0015_ö@½\u009eG{_x0018_;ö@ÓÉ»4ûHö@ò¸$ôùpö@7\u009a¤A³hö@nt\u009c=_x0002__x000C_\u0086_x001F_ö@Ç\u0084Ï\u009bÿHö@\u008aÔ_x0007_öUUö@Ì¨_x0013_'_x0012_Vö@ïü£Ë_x0017_Éö@_x000D_\u0091æÏÏ\u0088ö@ç¾Zâ§Yö@\u0094?\t\u0089_x0004__x001F_ö@_x0003__x0005_ú]\u0085_x0019_ö@åúã\u0098Âvö@_x0016_qM?J'ö@ÕYÆ_x0002_µ_x0019_ö@\u009eÑZ\u0091Ëèõ@\t_x0006__x0010__x0003__x000F_wö@\u0083_x001C_øq\u009b\u0084ö@Ôv_x0008_5Q_x0004_ö@mcvU«üõ@_x000B_èµLë¿ö@D_x001F_QÂ\u009d\\ö@ú\u008a£\u009d_x000C_\u009cö@i.²Ýctö@_¤«Â\u008aNö@`'Qì\u008f±ö@¶ÌõÛbxö@ ö>i\u008a»ö@_x0001_ïø#ØYö@\\h\u0084·vFö@ _x000E_½_x0002__x0017_aö@¬;A­Ó\u0090ö@*)«,×Nö@Ðº\u0098¼ÿ\u0086ö@ð_x0002_OõÍ\u0083ö@_x0002__x0003_­_x0010_¯ÿK_x001F_ö@Ð_x001E_-há[ö@\u009f:\u0084t+µö@ÚN×Â¤\u009fö@Ú_x0017__x001D_GO.ö@{_x0011_\u0087Å_\u0085ö@Òh_x0018_ðÇàõ@¤a\u008baÙ_x001B_ö@;\u009aÄöÑ<ö@\u0099æ\u0093\u0094_x0015_vö@_x0004_Ï~ÐuÌõ@\u00846_x0008_~cëõ@`ÚÄ\u0084Lhö@i°ùNÒ\u009cö@$¾Þæ_x001A_@ö@õ´ÚMâDö@Û1·_x0016_¿\u008cö@tíM_x0017_0_x000D_ö@\u0089£>¥7_x0001_ö@fW_x0019_Px\u0097ö@z`FþL\u0087ö@_x0018_\u008fÈsöýõ@vBÂ´VMö@*üå\u0083Ø\u0098ö@G\u009a+_x0016_ñ\u0089ö@}·,ï×Ýõ@_x000C_ëæ×_x001B_¤ö@jN_x001A_\u008e´4ö@\u009fm(\u009f' ö@s_x000C_ô_x0014_\u0091Tö@_x0004_?2:ITö@JE_x0004_£_x0002__x0003_9fö@\u0089_x0019_wôöcö@æ\u007fÕ>4]ö@ÿKæh¡ïõ@ç²UÈ6\u008dö@áK:<¼5ö@â;db_x0015_¦ö@YÃæ\u0094ì´ö@·ü\u009a¿T²ö@0vè§Pjö@v_x0004__x001F_$Z¶ö@\u008dG<ò6\u007fö@§Åª_x0010_\u0088*ö@z_x0013_ñ[Ügö@·OÈ_x0001_\u0087´ö@xL\\iZ-ö@_x0001__x001C_'¾çêõ@þ\u009fþÿ_x000B_Tö@UJhQ©Gö@x_x0004_JO\u009b¢ö@ø<_x001C_µr.ö@í\tp-Óòõ@\u0082\u0098b_x0011_ vö@ü>¤m¦¶ö@6ÅÞa\u0098Eö@¶_x0019_ =]/ö@©~J_x000C_¹\u0090ö@\u0089_x0016_\u0083ö\u0092|ö@NGÊÏµvö@ãCf®}¶ö@!\u008e:£/^ö@¦ªb¼Y\u008fö@_x0002__x0004_#k_x0008_Y\u009chö@_x0005_jñ6ÿ_x0003_ö@_x0008_óa³yVö@_x000E_ó¬yÚéõ@|MÃ'twö@\u0095j¬_x0008_Æõõ@%\u009dº2Y\u0092ö@\u0081\u0097_x001C_8\u008exö@î62Rí'ö@_x0017_'°\u0081°zö@îìÑRñ'ö@°_x001D_Õ\u009bi\u0094ö@22ç\u008f_x001E_uö@\u0086í\u009bò$_ö@è|R-|_x0014_ö@\u00965\u009c÷R\u0091ö@»!Ñåù¦ö@l9}º×\u0081ö@²\u0087<¢eÌö@)ÃÃa§vö@Ä¨Â\u0097\u0090àõ@|ãÿ°gèõ@\u0083_x0019__x0003__x0001_ä\u009aö@üf¶WîËõ@\u0097äM\u0090¾rö@0­õ\u0095§fö@¸®8\u0096Ò\u0082ö@ÔoE_x000D_b\u0093ö@_x001C_GA>kkö@'Ñ\u0089\u00896Nö@ÀäeÕùÐõ@_x000B_G.ï_x0006__x0007__x001D_\u0088ö@¸²ùUÆVö@\u0091ê_x0014_4³\u008dö@\u009cÞ½bê{ö@_x0016_AP¤9\u0093ö@Ò@ZÝ¬½ö@!/Drpdö@¡-_x001F_Ðô-ö@´\u0091ð]\u0084\u0083ö@\u009b$uÂI\u008aö@¹ý\u0080\u009fTDö@2/²!4nö@ÿÌÐÚ<_x000F_ö@Ù_x0010_òëÙâõ@\u008aXy¾ò©ö@ÙôéªM\u0097ö@ôu^\u0093-+ö@Ð\u008e]_x001C__x0007_³ö@ÌÕèLr2ö@á_x0001__x0002__x0011__x0012_öõ@Ø]_x0006_ïd_x0019_ö@{\u008f0è3®ö@Äg_x001D_*øÎõ@_x001D_Þ\u009bÅ\u008f_x0004_ö@á§\"Y[ßõ@µo%_x0008_kgö@ô{IH8Qö@ªÛ\u009bØ\u0093{ö@\"²]\u0099_x0003_^ö@Ç8we\u0096°ö@<Å°\u008f_x0005__x0006_ö@Ì\u0085ÛoÛ(ö@_x0003__x0004_\u0082Î\u0090'\u009fBö@Ö1_x0015__x0013_>~ö@Ð\u0088ù\u009d_x0001_<ö@$\u009fØ(6Oö@8Í·*P}ö@\\ÐÐly\u0091ö@æèrÝKHö@¿ây'áAö@BÌM ¤\u007fö@Ó\u0095]^(sö@C\u008f9QM5ö@ü\u0093 Ò7iö@F\"î\u0080å@ö@èïMmÏeö@ó\u008dF¿Ôïõ@ÍXeÄ°\u0080ö@S\\ô\u009a\u0093Rö@Ì_ßû_x0003__x0002_ö@C\u007fåmå\u0095ö@Ìo{\u009e¦+ö@¯\u0088°\u0091ëWö@_x001F_zÓ__x0001_~ö@ÝÛÞè_x001C_6ö@áàî ~Xö@°Ô\u0087_x0014_òqö@ªÉje\u0084aö@)Ö\"Å»zö@É¯²e}_x0012_ö@l>¤KÅ\tö@Ø_x0001_Ëá°óõ@\u0084_x0011_wo_x000D_&ö@DRu#_x0002__x0003_Û_x0002_ö@\u0096{\"\u0096¸¿ö@ÙhêÒ5gö@_x000C_._x000E_ÜK\u0098ö@\u0086·d\u0094{¡ö@\u0094î\u0094_x0007_=pö@f\"_2_x0008_Bö@_x0018_·¡\u0099nßõ@\u009eí@#ñ¢ö@\u008f¾ögËJö@wñ_x0018_¬m^ö@KÂ®QË_x0012_ö@G\u009c;Ø¸gö@_x0001_÷§Ã\u009aQö@1L\u007f_x0018_¦Øõ@ãÚ¶\u0099á¤ö@ÍC%c _x001D_ö@ÍÉ_V¸üõ@\u0083\u009a_x001D_AÇÎö@.b_x001C_5\u0091;ö@ÌÞ²Ú´Hö@PË\u0098Ð¼_x0017_ö@Ûl2¶w8ö@Yd3_x001F_Gâõ@¶5±WNiö@K}û\"Ü_x000C_ö@\u0091´ê\u009dP,ö@§_x001C_'úã\u008aö@èÍØ<÷@ö@\u008aI^k\u00829ö@TÀã_x0014_ iö@\u0099H\u009cÏ±±õ@_x0003__x0008_`\"¬|¾_x0003_ö@Ú\u008fÖ£n8ö@¼_x0002_¸Ñä_x0007_ö@è\u0081UÞÇ\u0091ö@O*m_x0013_i°ö@Õ\u008fIåÏ{ö@H6Eæ1åõ@«Ün¼Y\u009aö@aý8Z_x0017_fö@¶_x0014_¨YÞ¸ö@_x000D_\u0084P!eÄõ@L¿_x0004_&t_x0006_ö@þKÊ_x0007_F\u009cö@àÌ\u0093É_x0001_\u0099ö@´k'\u008a_x0002_Yö@Q\u0095Ò\u008d4Ùõ@Æ_x0005_"}},{"$cut":{"chars":63906,"head":"4fce64e4709e43bafa6063c05b7502a2_x0002__x0003_ö>3_x000C_f_x001F_ö@Q`¥Õ\u0091Ýö@\u0098_x0016_\u008f8Voö@_x0002_õð²+Ëõ@_x0011_Sõ¦\u0089yö@î´_x001A__x0010_Á¼ö@óëýé_x001D_®ö@p_x000E_Yfe-ö@\u0093²\u008dLë\u0099ö@°¯ô$A\u0098ö@L¨þ& _x0005_ö@ç\u008bÞ\u007fúDö@UíT'\u0095>ö@Îî_x0015_­·}ö@¶Ô\u0089=¶_x0010_÷@òZ\u0080_x0001_´Lö@üâ\u008fB\u0084Ýö@hP{ª_x001C_}ö@§\u0086cYïGö@gÝýs\u0099·ö@iÇj·B\u009aö@Ò_x0003_\u0097´àJö@\"ödp@Êö@c:g\u008f2cö@IS_x0008_c\u008f\u009aö@_x000C_4Ú_x0016_\u008aÅö@y#ÝP`¾ö@Oê-¢\u0098(ö@\u0094ÈbÇÖëö@Ô\u00834_x0008_<Åö@¼#óÃcØö@ÅÜèo_x0003__x0005_wPö@_x0001_ùua\u0088\u009cö@\u0090ÿ%_x0010_Ð_x000D_ö@_x000F_Ô=Ú2nö@³_x0012_\u0080_x000C_@ ö@ÔAh]úÿö@ø\u008bªU_x001F_rö@\u0098\u0092\u009f¹ù_x000C_÷@?\u0084_x0016_RR4ö@µ_]sÝ¶ö@½é¶fm ö@ÍÃq_x001A_D_x001F_ö@9]ýè _x0005_ö@å$ÎsÑ\u0087ö@OÙ\u0085|×Îö@ü\u009bçãU³ö@ì_x0004_\"â¨Øö@ÐÝ#d_x0002_Wö@Ëïnn2\\ö@\u009eêdöm\u0096ö@_x001E_\u008ewË=Kö@v!_x001C__x001A__x0018_¨ö@øÕ#»cGö@_x0005_Ã#c\u0085fö@2\u0084_x0006_\u009dç¸ö@FÇ¢q\u008e¨ö@Ä_x0008_KQé_x001D_ö@\u0080ÿRß_Âö@?ø%[INö@¡_x0005_ª\u0088¸×ö@5_x0013_\u0095_x0002_Bóö@_x0007_N\u009d_x001E_\u00812ö@_x0002__x0003_û4¸³e~ö@í y«¡%ö@$pVóQ ö@ß_x001A_n9=³ö@~ò¤Î}@ö@/Ñ0pm$ö@_x0011_Ú\u0098Ø2øö@_x0014_õçõ7\u008aö@Lì\u009c_x001D_\u008eWö@(ø-b°gö@mùy<¿³ö@×{\u008b\u0094\u0099Oö@ÒüÐë_¯ö@Iw%5\u0090©ö@_x0012_4¸U<\u009dö@Æu¦<_x001B_\u009bö@_x0002_Ù¢\u009cBËö@\\;_x001A_úö\u0084ö@\u0097&[\u009aìIö@\u0096 £¸\u009f~ö@í\u009dútßqö@H8M_x0001_p¼ö@BÅÚ»è\u0098ö@_x001B__x001D_l9Ø_x0005_÷@Ù_x0004_­¦­\t÷@eÂ5\u00989óö@ôÉ+Be\u009cö@ÊÑØ©6«ö@°vÈ­°\u008cö@`\u0095_x0012_Uö_x001A_ö@\u009eh_+UYö@z{_x000D__x0004__x0001__x0002_\u009b\u0080ö@_x0001_VÚPá_x0006_÷@×ù²¥P)÷@_x0014_:U_d_x0011_ö@`_x0005_´\u0098=èö@\u0089_x001E_ìZúFö@8_x0004_)Zc7ö@ñóÿ}_x000D_¾ö@ôøAjlâõ@¢\u008bx{xKö@\u009fÑ7bûøö@_x0004_(ø$!Òö@\u0092§ñ©uÕö@su_x001D_®ÓÛö@_x000D_\tB\u0096f\u0080ö@jÉ¼è?\"ö@W_x0003_è\u0097J\u008aö@töZ.\u008d:ö@Ûe[ÙÈáö@ño\u008fXÈÊö@_x001C_%_x0017_Cÿªö@_x000B_¥_x001A_1lQö@ù¤âtÒ|ö@Í?­_x0004_>²ö@1Lñ,_x0006_°ö@:\u0085àCo\u0092ö@_x001C_¶S_µ\u0094ö@½§þê{dö@Ü¯_x0017_°6\u0085ö@IÁe/\u009dÍö@ûÏ\u0083,g\u0094ö@©\u008a;fÆÓö@_x0004__x0005_wa_x0010_/¡òö@aæ\u0098(\u008c{ö@R_x000E_ôÄ¡×ö@ªöþ÷p_x001A_÷@¯×Ó,×ºö@_x0019_U¢æ*fö@\u0088\u0089Òz¨oö@¼\u0091q\u0093_x0005_½ö@_x000F_:9eÛ\u008cö@*sÔ#ò½ö@_x0002_\u0085Ö_x001F_e¨ö@;7^Í_x0017_æö@x%\u0095_x001E_¸_x000B_÷@_x0003_\u0094\u0098u_x001B_Xö@åVÔ«ù\u0095ö@NY\u009d\\vÆö@Lî\u008d_x000E__x0001_{ö@ìtæ\u009b_x0011_úö@\u0092^Q~l±ö@â\u008b\u0095_x0001__x0001_tö@\u009f?íÈÕ_x001E_÷@_x0015_«Þ_x001B_I³ö@_x0013_9^â\\_x0005_÷@¨\u0091\u0094ç}¥ö@»Ý_x0007__x001D_ \u0096ö@Ùí¹_x0005_T\u0087ö@.Aöæj_x0003_ö@.¾¥ÝPûö@ù-!\u008a_x0003_=ö@_x0015_r:_x0003_Ð~ö@)d=­\u008déö@Ç¿ºs_x0001__x0002_Ò_x0016_÷@3S\u0082[\u0088\u0091ö@ü-\u008cÌÝ\u0085ö@m_x0003_»æà`ö@v×o¡÷Æö@Mg)\u0088{9ö@©s»àVáö@ú_x0007__x0015_|\u0089_x0008_ö@Ñ®rÁÔØö@l¿ÆÁv\u0085ö@ÐQ_x0013_¡mxö@#\"Ë?#Äö@\u008bq+!ñ2ö@\u008fNÕ_x0007_¬Éö@_x0005_Ï_x0002_]6¨ö@_x0012_Y[·4_x0011_÷@[Q\u009c\u0097._x000C_ö@ 6ÿiolö@öu,Ö¹[ö@§¹_x0015_¥v¿ö@ _x001A_§mõ\u0080ö@pÓ\u0091VP_x0015_ö@75:b)¥ö@¤3¥n\u0098¦ö@?:_x0016_P\u0090\u0090ö@J&®íÛ_x0016_ö@_x001A_Í²_x001A__*ö@ h½§ííö@\u0098aòá\u0083/ö@ðf*øiËö@¡\u008f[\u008cû³ö@\u009d_¿_x0011__x0019_\u0090ö@_x0003_\t¢x\"ë\u0091aö@Im\u0088,íYö@>üj_x0002__x000E_eö@L_x0011_%¯\u009bñö@u_x0012_jþæ_x001B_ö@\u0082bð_x0001_.³ö@~_x0008_úù\u0097úö@\u0083Yþe\u009b\u009aö@í\u008b­ë¦¥ö@»_x001B_w¬_x000E_\u0086ö@\u0091ªe86Óö@_x0005__x001E_3_x001B_íèö@â'Àm[íö@9¿\u0082i\u007f ö@9©\u00959R£ö@\u0082\u008eL\u008c_x000F_\u008dö@òc!ÖK×ö@\u0096\u008aÖ#Ã°ö@_x0005_6ç1B£ö@½ÛÎÑ_x000F_\u0088ö@\u0097ÀºMµºö@H\u009e»~_x0007_\u0086ö@nNú\u0090Ç_x0001_ö@\u009f\u0095X\u0084_x0015_Àö@_x0006__x0004_B_x000B__x001B_\\ö@Hþ_x0001_0yeö@_x0014_ØX\u008b\u0098Xö@U\u0097BÛ7Gö@V\u0089Ïæ{ýõ@û\u0094Ç#\u0083_x0011_÷@\u008e_x000F_Á~ZÛö@_x0006_-Þæ_x0001__x0007_\u009bkö@äI_x0008__x0014_Í¿ö@c\\£<Îæö@r.7,Â­ö@ü.3\u008a\u0096=ö@Õ<çù%_ö@ïwÎl ?ö@Å°×1\u008c>ö@R4\u009aÛÀ\u0088ö@\u008d\u009bñá¤\u0083ö@x_x0011_ïL\u008cÑö@K_x000C_wZ_x0011_\u008fö@z±ä_x0010__x0016_\u0087ö@NÅ(Ç¬}ö@\u009d\u0097õ\u0093}_x0017_÷@\u008a¶DC_x0002__x001A_÷@âÉ¦_x0003_/-ö@$è_x000B_\u0095Ãóõ@_x0016_[¡_x001D_(ýö@²Y´\u0096¥\u008cö@\u009c#ñÜ_x0006_#ö@_x0004_\u0096\\Í/íö@úV¾r_©ö@xNÊ\u0086Íôö@<ó %_x0018_Gö@û>ÐM³\u0080ö@\u008cze\u008c\u009f°ö@\u0099\u009aä4½©ö@i_x0019__x0011_I_x0005_\u009fö@ðPzýxËö@\u009c1_x000C_%\u0094Vö@_x0008_?õ{'Yö@_x0002__x0005_>p@)_x001E_Dö@és<zC\u009fö@ÙÐ\u009c«Y0ö@%\u0090#<ä¿ö@\u008fë\u0097M4\u008fö@zBP¯´\"÷@\u008fE<á¾Íö@Ó_x000F_»\u0094\u0098\u008bö@SÈ²ü§Mö@ý+>\\òQö@|ÍÉòÈïö@°¡5üDqö@\u0081à&Ñ_x0003_­ö@wª_x001E__x0001__x0002_õö@\u0087uý\u0095\u0086\u008aö@ÝY¶¶pYö@úwi|_x001E_Eö@÷4_x000B_>«Xö@z  ¹º\u0087ö@\u0080ìrÀº]ö@`áé_x000C_Tøö@7fìß!Lö@ÈNO@_x001A_Öö@%_x0007_ë/©\u0086ö@_x0004_KÄ\u0091\u0094_x001B_ö@×<û>Cdö@L]Þ[F¦ö@_x001F_\u0080_x0007_Bp_x000E_ö@_x0019_Ñ\\åÒ_x001C_÷@\t¢¶_x001C_\u009eêö@xè!¨_:ö@»\u0092Î_x0019__x0001__x0002_ÈLö@¶_x0016_ø_x0008_~_x0015_÷@ê>ý­ù_x0019_ö@\u009f\u0096\u0085\u0088Òßö@\u0098BÍîÚHö@_x0014_8ô¡_x0016_Rö@ïûøÅï\u0083ö@;ÃÃ_x001B_J_x0019_ö@_x0016_lñßuFö@Ls_x001C__x0008__x001F__x0004_÷@ü[´ÙFÝö@M_x0006_,mønö@ÿ_x0010_«Û_x001D_<ö@\u009e\u0083_x0010_×\u0084àõ@,\u009fÁíî÷ö@´\u008e(\u0088½êö@ò_x001F_õ_x001F_V¸ö@I«B¼\u009b9ö@_x0002_ÕÞ\u009cìµö@_x0001__x0013_¡Ê_x0004_\u0092ö@ô_x001C_µGÆ»ö@_x0003__x0006__x0017_\u007f©\u009aö@\u008dû=,÷Sö@é>-_x0016_ù ö@ùÀîZE\u009eö@i¬ÍÝ_x0019_\u0089ö@Ö±_x000D__x0018_Kîö@È-_x0007__x000F_d\t÷@]Þ1_x0017_6\u0089ö@\u0095lW£_x0012__"}},{"$cut":{"chars":56868,"head":"c3e4620c27fc2e29cb1e07e49b8ef4bb_x0001__x0003_ò9¶Ý(7_x0006_AÌô3_x0016_¦]_x0006_A_x0008_ªÁ7Þ´_x0006_AdjÃÀ{¸_x0006_A`_x0013_\u008d_x001A_ºt_x0006_A°\u009cýË_x0010__x001D__x0006_A,¬Ê<i\u0089_x0006_A`\u0092ÈiÙ\u0087_x0006_A$·(9&+_x0006_A\u009d¥1_x001E_È_x001A__x0006_ApØqìõ\u009a_x0006_A`\u0096FGÆg_x0006_A\u0081rÓ5D,_x0006_Aõ_x001E_~_x0002_4k_x0006_A¥f_(\u0094®_x0006_AÅ­l;Ç¾_x0006_A2é´mC3_x0006_AôRûG%/_x0006_Aé^^\u008amj_x0006_AðcJ_x001D_Ë\u0096_x0006_A\u0085#Eâ5ª_x0006_A\u0080ya¹\u008b\u0092_x0006_AÀ¾%N6¥_x0006_AÜ ñ_x0015_n/_x0006_A3F$Ùèe_x0006_A`úó]M¡_x0006_A2ÚF_x0002_*Y_x0006_AÒcøÜ¢\\_x0006_A0TÞ`_u_x0006_A°G_x0001_\u0095]Ä_x0006_A\"_x0006_½ªû\u009e_x0006_Ah\u0085s\u008d_x0002__x0003_6°_x0006_ALÆz\u009f\u0094\u0082_x0006_AÚG¤\u0096Ð\u0087_x0006_A?_x001E__x000F_\u009d`U_x0006_A_x0019_¿@z\u009c¥_x0006_AÄQY­\t>_x0006_A\u0082\u008eÃ_x000B_öh_x0006_A²_x0006_w\u008b_`_x0006_A\u009a¢I´Àa_x0006_A£G1©q=_x0006_AÞâÒô3O_x0006_A.\u0096I_x0007_ô_x0001__x0006_AXãúÃo`_x0006_Aªør1-È_x0006_A\u008aZYºñ«_x0006_Aa_x0003_ðþo_x001F__x0006_AIí\u0098øZf_x0006_Aà_x000E_?bCT_x0006_A\u008aå\u0096b]n_x0006_A²è_x0016_\u009cF _x0006_Añ_x001A_\u009775M_x0006_ATÀ¦_x0001_|·_x0006_AN)ëÝ3v_x0006_Að\u008eóß_x0003_¼_x0006_Ad'_x000D_õÇi_x0006_Ar$íVU¯_x0006_A\u0097é\u008e_x001D_\u0082_x001B__x0006_A\u0089»\u0081ÐOÊ_x0006_AX:D\u0084æt_x0006_AÍÙ\u0096\u0099\u0084Z_x0006_A¸-Ò$/0_x0006_A\u008c\u009bz\u0090_x0003_l_x0006_A_x0001__x0002_ð#p\u0098ýu_x0006_A_x001D_Ç\u008c=}?_x0006_A#ÄØë»O_x0006_Aè_x000D__õj&_x0006_AÊBcq³~_x0006_AÐçsÙ>!_x0006_AÞ_x000F__x0012_\u0097_x000F_X_x0006_A ÿLG3\u0096_x0006_Aæ\tÛdø_x001E__x0006_Ax­9_x000D_\u008e\u0083_x0006_A\u0088¾;s_x0011_Y_x0006_AR_x0013_ª+E®_x0006_A¡fàÂÒâ_x0006_A_x000E__x0008_ý÷õ7_x0006_A¦)äµs\u009d_x0006_A_x0010__x001A_<ý)L_x0006_A_x001E_w\u0082_x001C_ø¶_x0006_A_x001C_ô|\u008eÛ*_x0006_A_x0014_\\f\u0096:v_x0006_ABm\u0082)q\u008f_x0006_AsHkÀçÑ_x0006_A|_x001E_ñVM+_x0006_A$\u0090æ³]¯_x0006_A<o\u007f®_x0006_\u009d_x0006_A\u00865)%_x000E_\u009d_x0006_Aoù_x0002_VS±_x0006_AE\u0099_x001B_Ã\u0097J_x0006_Aj_x000D_\u0082bèQ_x0006_A27Ã³_x001E_\u009d_x0006_A\u0086Á}-±U_x0006_A_x001A__x0003_ÂÂð:_x0006_Aá8\u0090æ_x0003__x0004_à>_x0006_A\u0086°\u009c_x0011_\u0090À_x0006_A_x0004_À¦¢X)_x0006_A Á^~C\u009b_x0006_AúÏíïþ\u0086_x0006_A\\²c_x0014_e²_x0006_A¬/È\u0083ër_x0006_A\\X\u0098ß¿V_x0006_A\\Ï¿à_x0008_»_x0006_AX_x0007_\u009celj_x0006_AnM*\u008b_x0002_\u0081_x0006_A «A~çh_x0006_Aæ¬\u0093ê\u0080k_x0006_AìNÖÝ|¶_x0006_A¶ñÙæ_x0008_S_x0006_AnÝFÛ-\u0083_x0006_A^>çcÜ·_x0006_AØ#:WØg_x0006_Aúé±\u0083kA_x0006_Aú±_x0001_<\u0096\u0092_x0006_A\u0084s\u0080hÖd_x0006_A_x001C_?\u0084\u009cCÇ_x0006_AH¨G\u009d,%_x0006_A\u0090»³\u009a/Ì_x0006_AMÓ_x0007_#wG_x0006_A_x0014_f\u008e\u0099Ì\u008e_x0006_Arÿ¨¼g'_x0006_A¶lg_x000C_ù\u0080_x0006_A°@­\u008d£_x000D__x0006_Ag(µÍúH_x0006_A\u0096ËÂß\u0083Â_x0006_A-,¾ðG\u0089_x0006_A_x0001__x0004_Î_x0002_º¨4\u0083_x0006_AF\u0087±B\u0090\u008d_x0006_AF_x001F_%Àb\u0080_x0006_AøÔµ_áZ_x0006_A_x0018_Èy7{n_x0006_Aò|«\u008d¿F_x0006_A(TæôBt_x0006_Aí\u0095\u009aò_x001F_e_x0006_A_x000E_[À+Ñ`_x0006_A\u008dÏ\u008fìáø_x0005_A~Ç- b*_x0006_AM_x0017_ÿ¿IK_x0006_A_x001A_a0u´J_x0006_A=#\t\u009f\u007fY_x0006_A_x0010_º.uIì_x0006_A_x0004_ágdÙ\u0091_x0006_A¦ãD_x0012__x0003_¶_x0006_AÒ©áuÔg_x0006_A8k\u0086m-w_x0006_A_x0005_ê9t_x0013_\u0084_x0006_A_x0018_XM9º\u008e_x0006_A\u009e¥X\u0093ï¨_x0006_AªM\t¤0\u0097_x0006_A\u0084½_x000B_¡©\u0091_x0006_A@®Ó\u009c¦\u0092_x0006_A´ W®\u008dO_x0006_AÂÐ¥&b\u009e_x0006_A×¦_x000B_KÝ_x001D__x0006_A\u0091ëCºÖ\u009d_x0006_Az:\u008b,ë[_x0006_Ac+Úl_x000F_\u008c_x0006_A\u0081Yv\\_x0002__x0003_Ý\u009f_x0006_A¬ròqfb_x0006_Aª&`7èM_x0006_ApRâ_x0017_n¬_x0006_A4éÄÒ]¬_x0006_AäA_x001D_sXv_x0006_AÀ{\tÜ`\\_x0006_AÈS6_x0004_X£_x0006_Aò¹ì\t(\u0088_x0006_Aèþò#ÿ\u0099_x0006_A\u008c~Å_x0014_ÒB_x0006_Aþ3ÎÑ_x000B_§_x0006_A4Ô\u0080sÑ9_x0006_A\u0098\u0082NÂcª_x0006_AÔ{\u0092¸ú=_x0006_A5Õ_x0006_hî[_x0006_AÄä¦BA¸_x0006_Aê¢_x000B_{.~_x0006_Aq':~\u0085½_x0006_Aá3òó¡~_x0006_A\u009c\u008b\u008f_x001A_ep_x0006_A4\u008b#»ñ®_x0006_A¥E\u0088\u009c¤R_x0006_A_x000E_1\u0094\u0091¡Ä_x0006_Aù\u009d«M5F_x0006_A\u008eñ\u0082C¤Î_x0006_A(ß_p¥\"_x0006_AÖZÜa_x001D_[_x0006_AKM`lV_x0001__x0006_AXàõÃ]·_x0006_AM\u0084ëë¾b_x0006_AÎ_x0014_C\\\t_x000E__x0006_A_x0001__x0002_3#á»½Ö_x0006_AÐz¥2.<_x0006_A2d_x0005_û·§_x0006_AÜ0_x0011_!4\u0099_x0006_A_x000C_ä,µò\u0099_x0006_A\u0087§rný\u009e_x0006_Aºèðq\u0091O_x0006_A¸,_x001A_\u008ap«_x0006_A®±ÓWV\u009c_x0006_A\u0094¿R_x0016_w_x0018__x0006_AÕ}}P©Á_x0006_AæG_x0008_»¿\u0081_x0006_AÅVeÛ\u00947_x0006_A+Úq\u0098_x0008_5_x0006_ARZ_x0017_½SF_x0006_A\u009c_x0003_\u009d½Û©_x0006_A{º+¬ÒË_x0006_Ab\u0094®FÈ@_x0006_AÐ_x000B_\u007f\u0085ø|_x0006_A\u0090Ê0| «_x0006_A_x0016_»/=_x0010_\u009d_x0006_AÂéhÆ\u0097b_x0006_ApÚ\u0087kø\u0087_x0006_A\u009a$Ôÿ_x0015_\u0082_x0006_Añ£\u0093*õ\u0085_x0006_AB4_x0001_«s(_x0006_AÀK1¹°[_x0006_A_x0004_w3?ª_x0019__x0006_A´iý¢êÆ_x0006_AI\u007fÂ_x001F_Ü\u009a_x0006_AÓeÛ\u0093\\_x001E__x0006_A_x001F_\u008fþ\u0089_x0001__x0004_pD_x0006_AA_x0017_0Ä\u009aX_x0006_A\u0090@d\u009aHe_x0006_A`Åb_x000F_ó«_x0006_A_x0011_wDH©._x0006_ArCM/8N_x0006_A¹é_x0008_\"\u0094\u0098_x0006_Að&_x0004_WJ\u007f"}},{"$cut":{"chars":53262,"head":"bd6f470c7a45e777957746344da7ba33_x0004__x0005_¼YZ\u0080ËH¢@¾/_x001B_£_x0001_k¢@l±©_x001E_^\\¢@®_x0002__x0001_lRM¢@`¾ô_x0017_ÉM¢@ÏMÂ;pM¢@_\u0098_x0010_øÎ}¢@A\u008cÃ_x0005_¼D¢@_x0008_´\u008c¨uo¢@_¢\u0089H_x0003_F¢@_x0003_~\\_x000D_ú[¢@ PfÊÎR¢@ºÔúÖ]I¢@-\u0080î_x0012_öJ¢@¾\u008cÌh¶G¢@Ç°ÔQ_x0011_F¢@\u0080nëé0m¢@ç\\âØ\tb¢@m\u008c \u009b<I¢@Í[ÈB+O¢@;Sañ\u0097d¢@_x0004_ñÁd>N¢@_x001A__x001A_© þ{¢@\u0093`\u0081)óZ¢@wÚÁ\u0085'Y¢@¤÷\u0085\u0087ÖE¢@ÎcBV)h¢@\u0085X3G­T¢@\u008cÍ¡\u008c)V¢@_x000F_:\u009bõå]¢@À_x0018_cK¬a¢@ª7\u0095\u0096_x0001__x0002_eD¢@[ÙR3ÞM¢@Lj[_x0012_¹N¢@k¡_x0006__x000B_]Y¢@°k_x0002_¾bK¢@Õß\u009d\u0087ñK¢@Epµõ(P¢@_x0014_½R{¡a¢@ _x0001_dU&Z¢@+4_x0014_Í¯D¢@_x0006_#·$µZ¢@¿_x0006_õ_x000E_SR¢@\" _x0007_üYR¢@_x001F_vÁ_x0016_\u008dD¢@%\u008e*\u0091.G¢@Þ\u009eò¢6`¢@ô\u0087\u0098[7M¢@Ä_x0001_]³ÓW¢@ÙÏåÊðO¢@wØw\u009aTk¢@Ñ_x0008_­\\NY¢@½\u0082rØúN¢@?©\u0094î_x001B_D¢@\u0095Pq_x0011_\u0099H¢@\u0095y_x0010__x001A_\u009fK¢@_x0004_¨\u008f \u008dp¢@0CY\u0093ÖK¢@_x001E_OEn\u009eQ¢@\u0089d\u0095%à]¢@áíªÿÍT¢@ò[E\u00994M¢@<_x0006_¢\u0083GI¢@_x0001__x0003_²_x000F__x001B_oÐK¢@z¯û9^U¢@ÐË\u0081ÛvG¢@ ØT\u0085ÂN¢@_x001A_awÆÛL¢@_x0019_£I>zk¢@¥ÉçÒ_x001F_U¢@V°Ö_x0002__x0003_R¢@c²ôl_x001C_O¢@ò3AZ_x001D_W¢@ð«ïE\u0092d¢@ÈÄÄv\u0085P¢@ëD\u0098ú.{¢@_x0004_Y§F\u0087W¢@¨_x0012_ÚÇ_x0008_D¢@ÜeÉ9Zl¢@è¯´SOf¢@Ñ²tÆQL¢@\u0081À_x0004_Õ7U¢@×M¡~ÕF¢@5¥%_x000B_{G¢@\u008a¦%q7e¢@._x0015_\u0097¯AI¢@£ù½o_x001F_t¢@Ãõ~WÈG¢@~P_x001A__x0001_*g¢@BºEY4d¢@_x001A_\u009bVé_x0019_K¢@7-*VPQ¢@_x0011_\u0090eý_x0013_S¢@s<1Fò_¢@|³¿\u008d_x0002__x0003_~`¢@á_x0008_ÊÎ>M¢@\t_x000F_¬9`D¢@4A9\u0095ðF¢@6_x0016_®_x0015_6D¢@Þ_x001B_%½âK¢@s_x000B_\t_x0011_ÚL¢@_x0005_2\u009c_x0004_;I¢@_x001B_Pß\u0091kW¢@:ø3_ÓM¢@Ui\u0093\u0092_x0017_H¢@_x0010_;ô¯_x0015_K¢@9z¯_x0002_Ìo¢@â¶\u0088+âR¢@_x000E_ßv\u0088ÎO¢@\u0093_x0011_Ñ_x000D_GI¢@_x0010_*\u0081òn]¢@TP¢>?]¢@\"1 nÀq¢@ÕÊ±_x0019_ôS¢@\u008dìmm\u008eK¢@`v\u0084[fV¢@µwjÑÔ~¢@\u0098äÛûFG¢@ìä !ÞF¢@þ \u0093p_x0016_^¢@$\u009eV\u009bfb¢@¡ò_x0018__x0012__x0015_Z¢@_x0001_\u0085\u007fÔmJ¢@À§\u0096_x0017_xF¢@ ¬¯\u0093ÎY¢@Ã_x0012_Û\"[N¢@_x0003__x0004_¡\u008f]íßZ¢@\u0091Ve_x0002_óL¢@@f_x0014_Æõf¢@[{´²KD¢@Ão9\u0096_x0002_D¢@\u009eIo±dF¢@ûô\u0081_x0015_MM¢@\u008d\u009e\u0089?ãQ¢@æ¸§!zJ¢@É·A2\u008bK¢@§T_x000D_\u009cß`¢@Ç\u0085úXmQ¢@¬_x0008_Úµ(W¢@,Fk\u0081¯G¢@%v«\u0092\u0099T¢@\u008c\tãå8^¢@±F_x001C_ O_¢@_x0010__x000B_\u0080Z_x0003_\u0087¢@\u0095GÚÍÊc¢@ñèË_x0014_ÕM¢@CìBÃyT¢@°Á|_x0018_\u0093n¢@@zÁ_x0001_±Q¢@à·ÝýÍJ¢@\u0080_x001B__x0016_ô+G¢@T\u009e_x0019_pqD¢@\u0098¹\u009c\u0093_x0016_U¢@:\u0095_%_x001A_T¢@_x000B_Y«ó\u009aK¢@³¹©HDi¢@çv\u008cioN¢@ÅÃ²×_x0001__x0003_\u0082G¢@_x000C_öã\u0085xV¢@{mõ_x000C_È\\¢@Ú«W¡ÉW¢@&°_x0002_HÜ]¢@\u0088Þû`ÚD¢@_x0007_ªì\u0087_x0003_H¢@_x001F__x001D_Dd¢F¢@rl¹ºpP¢@\u0098FCL_x000F_K¢@â¬@º\u0087S¢@\u0097DwÑ!K¢@Ob^?\u009bz¢@Êx$7?Y¢@\u0080îó¾-J¢@:1!aB\\¢@×@\u0086Pba¢@6àKV\u0083m¢@H/_x000F_Ý\\e¢@$_x0001__x0011_Z\u009eM¢@ReÊ¯_x0006_Y¢@©dalèZ¢@\u0086HB\u009a_x000C_j¢@OÍ¾¦\u009bY¢@\u0093±ÖKÑH¢@y\u008c½\u008d|N¢@Ô=ºR_x0006_L¢@d\u00926\u008eæY¢@FÉx¢_x0007_J¢@p\")N\u0099b¢@àv_x0014__x000C__x0013_H¢@_ì0>ªD¢@_x0001__x0002_ú{pÚ_x001B_K¢@¡U\t¯\u008ah¢@áÛY\u0083\u009fF¢@Ä<$ÿ]k¢@v\u0096¯_x000C_ÎE¢@ôY`»\u008dR¢@_x001B_¹µ_x0002_ËD¢@QÜT!QG¢@\u0096Be¬=b¢@F\t³ÑzI¢@=!3÷Îa¢@[_x001E_dÁ.F¢@_x001B_5w!_x0017_Å¡@P_x001E_O¿õ¥¡@_x0005_`ù¶ÇÚ¡@)ujÕ_x0014_Ï¡@a<@\u0084\u0098Â¡@l_x000C_×H¨\u0097¡@\u0096L£_x0006_ío¢@X_x0004_V`§¶¡@o/\u0090\u0095ù\u0086¢@ìæÀù\u0099©¡@\u0093©\\üäÕ¡@_x001F_åxÝþÐ¡@YX_x0015_k_x0011_Ç¡@_1ãq% ¢@uuä¾j¤¡@Ôægé\u0085Ý¡@B´I¾½­¡@ì:´¦çà¡@\"Ö_x0013_\\|î¡@ý%¨\u0081_x0002__x0004_cø¡@_x001D_aÖ\u0080òÂ¡@â$_x001E_\u009d_x0001_\u0081¢@rÔL¡y³¡@b±ü_x001B_%Ð¡@e3Xº_x001E_k¢@=¼Â¿\u0080ö¡@2v_x0003_%L°¡@òÉI(_x0017_¼¡@c£_x000B_|9ç¡@|\u0088*2R_x0004_¢@3¤¼Õ_x0019_#¢@ù:_ñ\u0083Ö¡@K\u0090ÿ@Î¯¡@H¬[\u0096¦¨¡@:iA¼_x0014_=¢@\u0086åî+°N¢@_x001B_\u009cÚ\u0089ú£¡@¦\u008f_x000D_g_x001F_©¡@\u009aì,¦}\u0099¡@â¾µHý,¢@¼_¶_x0007_?¤¡@§_x0015_\u0080×*À¡@\u009aµY0\u0084\u009f¡@ñoð­\u0087ô¡@A¢&\u0098õ\u0097¡@[Ú\u0082ü¤C¢@8±\u0080¸j_x0012_¢@y_x0017__x000D_ý\u008bæ¡@×ðF_x001C_Z\u0083¢@ðÍúá_x0018__x0010_¢@½¿_x0002_«EJ¢@_x0003__x0006__x000C_f_x001F_ÿ0Ñ¡@¤F·Ù¤\u0099¡@Ú_x000B_3}J%¢@Æî¥Ë®±¡@\t^Gf_x0001_2¢@6½_x001D_\u007f_x0005_¬¡@*2\u009f¹¥´¡@_x000F_6¢ì­÷¡@~ëxë_x0010_~¢@iT¶â¤-¢@½_x001B_éÚ\u008f¾¡@©Ïã\u009a¯\u0097¡@§¾_x001B_@Z¬¡@\u0095ùACüê¡@3tÝ§+Ç¡@Ù' _x001A_7°¡@\u0096«_x0016_Cê\u009a¡@_x0016_jg_x0005_M\u0096¡@-Qå_x001C_\u009e×¡@æu\u0097vçÜ¡@4ø'å(]¢@yp_x0019_[q\u0098¡@Jä_x0018_\u0088_x0004__x0003_¢@ïp\u008cíK_x0002_¢@®Ç.;è¯¡@_x000F_Õ\u0096\u0085W®¡@ùÝ­WX\u0081¢@Ò\u0099ÆÀÓ_x0016_¢@)\u007f\u008dü\u0099\u009e¡@ÃYÒ\u009açÂ¡@\u0092]Á\u008d\u0082\u009c¡@\u0093.&d_x0002__x0004_#°¡@_x0003_båÔ\u0091\u009e¡@È\u008dv_x0001_T`¢@`«_x0010_ò¸·¡@®pø\u008c_x001C_×¡@ñ\u0095¨!^§¡@­_x0002_Æ¯ÚÌ¡@JóÖy\u0080\u009b¡@@ô]>n3¢@_x0010__x0005_ÅN_x0018_Î¡@~vvL×÷¡@aÄþ?_x0017_\u0092¢@÷ ûç'À¡@_x0002_ðÉÝU_x0002_¢@\u0087¹_x001C_ýVÀ¡@ÿÇ#2\u0098ë¡@õs[Ç?®¡@ü½Ô \u008b_x0018_¢@\u0093\u008f\u0092äÃô¡@_x0005_B_x000B__x0004__x0008_M¢@äqCÖK_x001E_¢@²\u0092BÅC\u0096¡@p-_x0014_jE¶¡@Ûÿ/V®!¢@%N_x001C_¡;\u0099¡@M£½Y_x0013_ð¡@_\u009c\u0087 !ó¡@?$ã³s_x0011_¢@p\u0091\u009a9\u009e¦¡@ò_x000C_ì:¢F¢@±\u0099º^%°¡@w¯\u0080ü5_x0006_¢@_x0002__x0003_6uX\u009f\u008bÚ¡@Ú-b#\u009dè¡@ÑnãW¼É¡@Â9/|KË¡@\u00930û\u009fËË¡@T_x0016_[_x000D_õ¨¡@ôl:_x0011_\u0095Á¡@z&¨ô·Ü¡@Bo\\,=_x0003_¢@ß_x0011_×¦Xå¡@\u0094\u0092S\u0086o\t¢@"}},{"$cut":{"chars":53820,"head":"d95d8a980d007249c2b3ffcc309b32b8_x0001__x0002__x0010_dåÖòõ¡@¦l_x001D_×_x000C__x0016_¢@û|_x0012_X\u0090A¢@_x001C_q\\\u0091Ëo¢@\u0084Ìx_x0014_À\u0094¢@\u0082\u0094¸G©A¢@ÓJ_x000B_w\u008cj¢@_x0017_Æ9«>6¢@_x0019_LÁµøñ¡@ÓÏ{ô|,¢@;\\\t_x001C_x\u009d¢@\u0084p\"È2J¢@\u008fu\u008aAÉÇ¢@B:\u0094§^_x0010_¢@yÖÿ\"_x000B__x000C_£@\u009cÓiW68¢@%´\u00991£_x0005_¢@*©,#¢_x001C_¢@\u008b?Ïcy)¢@¬ö¯*{å¢@Ë±\u007fBÿÙ¢@§!±kU°¢@\u0084Z_x0006_ZÛy¢@_x001E_\u009e¥òfó¡@Í_x0008_(CªÉ¢@ÐAZ\u009f\u0092a¢@t\u009aü_x0018_:í¡@d>CÅD_x001A_¢@i\u007f-h$õ¡@°¾¥_x0014__x001D__x001D_¢@ê¾$dÚ_x001D_¢@×)m$_x0002__x0007_.}¢@_x000D_5f_x0014_¡!¢@jDC_x0004_BS¢@ùt\u00971Þ+¢@+ØÅLÊ_x0019_¢@¯=BpØì¡@_x000F_-_x000B_Eâí¡@_x0016_ný¯\u0081H¢@_x000E_eî\u009d¼ô¡@X?ÓCÂ.¢@Ã_x000C__x000D_\u0098¥@¢@º~Ð=_x001F_Ð¢@\tÖÕ«Ë¿¢@ ÊÉRà4¢@dWó±3¡¢@Å¨·_x0012_Y_x001F_¢@a±ÙßÕÝ¢@Cò_x0005_K³ø¡@}\u0094ãMD\u0086£@@~ã_x001F_\u0086B¢@^¢)|¿ê¢@ëÔ\u0094®ós¢@ËþòYD_x0004_¢@`_x0007_/=ré¢@89JÅ;\u0084¢@\u008bãÈ\u008dû_x0002_¢@Âý_x000D_é<¢¢@Ô_x0004_(_x0003_Cl¢@_x001B_CJ__x0018_,¢@\u0091æ\u008fða6¢@ \u0097_x0006_æ[(£@\u0097[_x0001_Os_x000B_¢@_x0002__x0003_X¸º_x000F_Õó¡@¯,rË©:£@µ³B\u0090\u0093=¢@L_x0001_Y¥.é¡@l*_x001D_ckè¡@þ\u0087üZ_x001C_s£@*¶¢Û#ò¡@þ\u0097·ùh_x0001_¢@øÊ@\\_x0017_ø¢@u>_x000C__x001E_yÞ¢@\u009f\u0090E_x0019_Õu¢@C0L\u0096Àð¢@8Wà÷!í¡@gL\u009c_x0004_ú\t¢@Í_x0014_a\u008ckü¡@\u0095ÁºõC·¢@æ\u0085Q«ãz¢@_x0010_üB¼´ü¢@k^îk)_x0002_¢@cËvUÛq¢@ÁTO\u009clË¢@£å:_x0017_ì_x0011_£@¦¥Á©\u009am¢@\u008aÍ\u008fb\u0083_x000E_£@{Ã´\u008f\u0084ð¡@\u0089X´%\tG¢@|'_x0002_Î¦4¢@{_x0003_õ2\u0086´¢@_x0008_Tïõf/¢@¦>×!&9¢@óK\u0087Ùs(¢@YÿÎ1_x0001__x0002_M*¢@j\u007féèÏÁ¢@\u0081:\u0095_x0016_ÇU¢@ÅRó9§þ¢@Ø#WèEb£@m_x0008_,¯_x0007__x0006_£@æ\u00867³>_x001F_¢@´Z^_x000E_\u008d_x0010_¢@X\u009e[*ÔÏ¢@G3±\\ò_x0006_¢@äÄ_x0006__x0019_uø¡@V®L¥4ò¢@T/\u0091_x0003_Ô_x001C_¢@Dù\u009fÖ°J¢@Y¼W\u0085_x0012_©¢@>_x001B_P,÷\u0092¢@Õ\u008fè¨p_x0008_¢@¾\u00881 E'¢@èpþo¤\u008e¢@Õ\u009b£)_x001C_/¢@ñòà\u0091@\u0096£@ÈE=ÛÐW¢@_x0017_e\u0096\u008d_x0008_<¢@²«¨4³«£@[\u009aïàm1¢@Ö\u009d\u0085¼\u008cî¡@ð_x000E_¡_x000D_fÄ¢@Î­C\u008aä]¢@µ_x0010_éî_x000C_ë¡@Sw¥@\u0086=¢@_x001F__x0013_>yÄ\u008b¢@¬ezÎ\u0094ä¢@_x0002__x0003_ÓÅÂ_x0017_\u008b®¢@Ø0\u0094þ9ì¡@ºjJ\u009f_x000E_4¢@È\u009d\u0083Ú\u009d\"¢@Ou UÕs¢@èÍµ­Z\t¢@_x000B__x0015__x0018_U\u009aú¢@à_x0003_¹{ô_x001C_¢@_x001D_5\u007f\tO\"¢@K_x0005_a\"_x000D_{£@\u0099´¦zJ'¢@ª8S_x0014_\u0087f¢@_x0019_qºæ`ï¡@Ò\u009e_x001E_0è\u0098¢@'\u0091*äÅ*£@&¯\u009b\u0094\u0084L¢@_x0004_èîÃn\u0085¢@Dó'­)ê¡@N\u0086_x0006_î··¢@Â²wÇ1L¢@)/±$_x0007_\u008f¢@Ì_x0017_Ã©Qê¡@ÝaéW¥_x0013_¢@_x0005_Iït\u008e@¢@ë\u0088¹C®Z¢@Ý_x0005_w\u0099w_x0006_¢@_x0014_\u009bnù\u009a\u009f¢@¹_x001F_yL_x001D_P¢@_x0001__x0001__x000C_P16¢@ñ\u0087Ul·ò¡@_x001D_\u008eZ6|J¢@\u0091ç\" _x0002__x0004_Lê¡@\u0094\u0093_x0010_qëé¡@âï\u009b\u009fë_x0004_¢@_x0014_\u0087_x0002_<¬\u0093¢@\t¬öµ=_x0004_¢@\u0086\u0081\u0093Ì\u008e\u007f¢@I\u0093%íól¢@-÷H\u0086ê~¢@©ü­lty¢@ë_x0018_×åP_x0003_¢@ÏsL¯_x0010__x000B_¢@)Os_x0014_Ú ¢@@4?_x0011_eó¢@Ae_x0019_û»T¢@è\u0090xÂ¿I£@ÑÍá2Âx¢@\u0083ÔAÞü{¢@z5B5I(¢@gà±©ë_x0001_¢@ :ÓÇÑ_x0003_¢@a3y\u0084üÒ¢@·Ç_x000B_\u009f5j¢@g\u0086_x0001_v[\u009b¢@Ð/õè_x0001_³¢@÷ª;Æ\u0097_x000F_¢@¦B_x001F_ÂÄ\u009c¢@\u008e_x0008_Ô\u0081=ù¡@o£_x0005_`Ün¢@Ë¤Öúþø¡@_x0010_\t_x0002__x0014_ø_x0011_¢@_x0016_\u009f\u0082 ú\u0097£@\"\u009eëùd ¢@_x0001__x0002_gOTm2_x001B_¢@j`­]:K¢@ü¼_'¼\u0089¢@¬`skj¯¢@x.\u009eÚ \u0097¢@d_x0002_\u009dÎ\u0085_x0015_¢@»\u009a±á_x0012_®¢@Xæ\u0096Äe@¢@®U\u0098¼e_x000E_¢@£.¨³Ì ¢@½#z:­ñ¡@ïX\"5AA¢@\u008a»Pëbù¡@_x001D_aLÖ3E¢@,0\u0080°\u009d¹¢@­_x0016__x0008_·0,¢@ÑIÀÅg\u008d¢@À_x000B_Æ_x0010__x0002_¦¢@éS9_x0011_`m¢@²b\u008aÍèB¢@Ú§\u0091_x0001_øb¢@\u0087&\u008e_x0013_Íi¢@xçk²\u0081ù¡@_x001B_R_x0005_ØHJ¢@ë±E¶_x0015_¤¢@\u009b\u007fbZÜ(¢@Dyw&Vp¢@¦ãÚ\u008b`A¢@A\u0088_x0002_Å#_£@ãÕ·\u0087Å_x0006_¢@Q+uþ%_x0002_¢@_x0010_Õ=á_x0005__x0007_,;¢@\u008fâ¶jàÖ¢@®\u008eVÚÒ_x000E_¢@ÂÁ^b_x0001_ü¡@9m_x0005__ÕÌ¢@_x0002_8j±_x001B_N¢@ L\u0082¶Þ`¢@Ú>ÿ1P\u008d£@H_x0014_½_x0003_#¾¢@Ä¨seX\u009c¢@m\u0088b µ_x0004_¢@7B»Q_x0005_'¢@íÁI_x0007_J`£@Óp\u0082_x001A_% ¢@29:T¤1¢@Y^¯\u0088 _x0012_¢@@\u008a£×ß_x000B_¢@]\t¤¼Å\u0088¢@îÞNê3_x001E_¢@m¨ß\u008fVX¢@|Ö\u0080¬u_x0003_¢@<Æ¡_x001B_Øb¢@ã_x000B_;ç¶2¢@_x0006_ê^Eªõ¡@4\u0090aBíó¢@êßÂp_x0004_+¢@\u009e_x000C_Ï~_x0001_R¢@;]r¯¾®£@çs_x0011__x0010_ì\u0092¢@ëÿýÏñó¡@_x0018__x0004_©\u0094_x0019__¢@î\u0086¹èÞ|¢@_x0006__x0008_à_x000E_\u009c=ã\t¢@ýHÊW_x0008_x¢@zà(èI\u008d¢@\u009f.ñ{d)¢@$¨ÈÑÏ}£@¤\u0083\u0081OP­¢@fkö_x0004_Õ0¢@PÒî_x0001_\u008bí¡@ïû_x0014_ÐF_x0002_¢@])\u0094ö`P¢@´_x0016_|òOW¢@÷~¡_x0013_NÐ¢@_x0018_\u009b_x0011_ÉHL¢@xdµ\u0087´T£@_x001B__x0004_Ç\u0094_x0013_}¢@æwtÅ_x001C_\u0098¢@|\u0099(\u009dø_x0014_£@P\u0089°\u009eS5¢@ð_x0004_#¦1_x0013_¢@®_x0016_X÷>_x0005_£@hYí_x0003_Â_x0004_¢@_x001E_9Ü1ÁR¢@Úc4«Êþ¡@a¯­ê|o¢@_x000B__x001E_\u009a;:¬¢@{_x0010_\tÍÐæ¢@ d_x001D_ðMz¢@ æÇ\\\u007f_x001E_¢@²y_x001C_d_x0002_7¢@$'{\u0085_x0007__x0019_¢@6¯¿\u008eâ*¢@®Ws5_x0001__x0002_n_x0015_¢@©xÖS_x0012_a¢@\u0096\u009bf¶_x0015_w¢@®Ã¸ÞWé¡@_x001A__x0016_§`\u008c_x0006_¢@òþ«\u009ap_x001C_¢@ï_x000E_â\u009c_x0007_ù¡@\u0080j_x001F_\u008cç_x0004_£@OZµY`_x001B_¢@_x0006_|\u0091¾+C¢@©õ8³»f¢@ iª_x0018_}Y¢@Ê\u0091×Ä1D¢@¸,O!vè¡@h%Gò¦\u0088¢@ÍÇ\u0083Ïì_x0011_¢@_x000C_a_x000E__x0008_!\t¢@d_x0016_\u0094\u0083Tf¢@Bz\u0090ýGq¢@\u0097\u0094yØåª¢@ø(à\u0088B²¢@\t_x001D_8»ìº¢@,cß\u0095Þ)£@"}},{"$cut":{"chars":64170,"head":"8a8a98ef55dd12451714a2ba7ff6eade_x0001__x0002__x000D__x000F_4WfÎ±@2\u0088X\u0087±â±@bÚçw\u0083_x0007_²@\u0092=|_x0002_å_²@VopbÈÞ±@°Ó\u008fi\u008d_x001A_²@_x0018_Þ\u0083_x001A_kæ±@êí\u009fÿ\u008a\t²@¦Z0\\vú±@\u008e)5\u009d_x0018__x0004_²@,¿Æ\u008f\u0091Ý±@l8_x001D_©ì4²@_x000D_ðN\u009d\u0090N²@¢&¤c$ë±@\u0084¹âªÆ_x0018_²@\u0080S¦Õ],²@XN°\u0098@ü±@_x001E_p\u008a\u008b¿_x0007_²@Ôèéèn@²@JfV_x001B_\u0097â±@t^ui\tF²@\u008as_x001C_Å_x0008__x000F_²@Ö3\të\u008fm²@Z\u0087Êuð ²@X_x0018_I\u0097\u009c_x0014_²@v½ÈÔ-ì±@.Í\u0094_x0003_oî±@xÑõD¯_x0011_²@L`²ß¿(²@P_x0014_\u0096£\u008c7²@`\u0099|åhô±@0\u0088¦Ú_x0001__x0010_Ô$²@Me\têkD²@h²{_x0003_3n²@\u0086\u0089\u0097Yn_x0005_²@^\u0091Øfü1²@_x0002_Ö Þ<_x0008_²@:Øíõ·]²@_x0017_³_x0018_Pc_x0006_²@\u0087¤²Ê/ú±@\\\u007fÞó{_x0006_²@Î_x000F_zo_x0018_)²@®_x0018_ í£°²@¡ÿáBYë±@¤PÅÈ¶*²@P^û\u009at_x0016_²@\u0093ÛükíÑ±@_x001B_©Cj_x000F_;²@ ®à^X£²@@²±üýä±@>_x0003__x0001_íaî±@lk\"\u0091\u0097ï±@_x0006_NÃ_x0015_õæ±@ºñ»a]K²@Ñ_x000E_Mÿ_x000D__x001F_²@_x0007_É)¹@_x000B_²@^@\u0089¼Ì_x0006_²@îí gÔ\u0098²@\u0084+ìÃb1²@Ô_x001B_õu»_x000C_²@\u0096\u0088W;ûà±@)_x0004_ñ5%ä±@+~\u007f\u0095òÄ±@_x0003__x0004_2MÉ@[3²@Ø\u009a_x0019__x0007_Åà±@\u0090Úäú ü±@ ¼Ðñ_x0013_É±@n\tWç_x000F__x0001_²@xÅ\u008b¡\u0088ð±@~I\u008dØÙô±@ªNÄåHü±@\u0096uÞlu_x000F_²@¼2\u008bºªþ±@®fæOÍé±@\u009a©¥_x0019_¢5²@ÜË\u0099ó_x0007_ç±@ºó_x0014_`*÷±@_x0018_\u008c³8_x0014_.²@XÁxì/5²@0_x0004__x0005_g¹_x0018_²@Ú(_x000B_dªÇ²@ä@\u008eÚÒS²@T\u009f=)\u0091'²@\u0098DEXîó±@=_x0002_A£_x0019_\u008f²@\u009a Ò\u009b|Ò±@_x000B__x000E_\u008eS»_x001D_²@÷\u009dé$t_x0001_²@V_x0011_6å>Ð±@ø_x0003_2_x0010_¨â±@þtí(Ï!²@ÌC\u0091?_x0008_Ú±@tT'êªØ±@qNZ%@Û±@\u0084»6Ù_x0001__x0002_0R²@~_x0012_PDHÓ±@\u0096_x001C_M\u0080\u0086õ±@ê§ÉÍaÓ±@Á_x0016__x0013_gXÎ²@|dÜßx{²@+ _x000B_¶\u0084Î²@Jë\u0094\u0097_x0003_\u0081²@ÿ´nQð_x0003_²@PÛ\\éá)²@H\u0089P¼nÌ±@ÒÛÂ»¸0²@\u0092_x0011_f\u0086\u008fy²@~_x001A_»,(Á²@ÄÆIP/k²@iSi£e_x0006_²@_x000D_Î¡IWV²@v}_x0001_2¥N²@C_x0017_¾_x001A_²_x0016_²@4¾Íy\u009f_x0014_²@¸ÆÂ\u008f\u009cZ²@\\È=ªuN²@ADüÊt\\²@üY1ÊÕê±@¦ÿ\u009d­¹_x0019_²@UIì>lÝ±@9ìÂ^~_x0006_²@ë¢À\\%÷±@q_x0003__x0004_V\u0095_x0014_²@óv\u0099_x0004_\u0098_x0017_²@Üôá_x0003_×î±@Ó\u0095pßk_x000C_²@_x0001__x0002_s6_x0003_ÐÜq²@Æ9øë_x0001_ÿ±@Ië_x000D_ HÜ±@Æ½´\u0084¿þ±@l!_x000C__x0018_¯u²@¤ÿ\u008b9¿_x0019_²@ZÃ(Ìá_x001C_²@R\u0095H-\u0091B²@R\u0097X\u0094ô/²@¼¨\u0081;Ãn²@\u008aLX¥þL²@\u008e£\u0081âå#²@^&_x0016_íPá±@ í¾ÈXÈ±@\u0090ì\u009e\u0097Mí±@®1êÎ¡ì±@¦k\u0095>´_x0007_²@Ög¾\u009cUE²@t±nÙ^F²@«+D¼ëV²@È\u009b;ÔåG²@Û\u0087\u0092\u008c_x0010_1²@0VÍñ\u009aï±@_x000E__x0004_\\\u0089÷_x0004_²@Æ\u0091\t>Ë\u0091²@B\u009ckÅ_x001E_ß±@\u0086àyZÀA²@bL¤&2ÿ±@ì)Âi_x0014_Õ±@â~ûÒ\u0080_x000E_²@¾X4\u009bhZ²@\u008b_x001D_t·_x0001__x0002_%5²@_x000E_·Êz½\u0088²@hÌUî\u009b«²@_x001C_þ*\u0085H_x0012_²@T^\u008f_x0011_jò±@û´H_x001F_34²@_x0010_w_x0010__x000B_§ö±@p9_x0019_±i_x001F_²@_x0002_14xÏÕ±@_x0008_øía¹ó±@û_É-Õô±@Z<_x0015_guô±@0:Ã1µG²@úD\\_x0011_»f²@ø$sk~ÿ±@oIí_x001E_\u009fð±@Î-_x0001_vDð±@â_x001E_ÂÛÈ ²@~ª_x000B_Å¾Ì±@$_x0011_ÑJ^ñ±@\u0096xÃ\u0085ñ4²@ÚæÞ¾A~²@2w¾'§_x0016_²@øv¹ÚéÆ±@Í·q¥9$²@8V<·_x0005_ý±@\u007fû­_x0003_ÃM²@¶µÚü\u0097á±@PBÛ6Ê_x0014_²@_x001B_ªQ >X²@hÏÖ¶4å±@\\·\u008bt\u009cÔ±@_x0004__x0007_\u009e\u007fx´®?²@­¼¡Î\u0090\u0098²@_x000C_ð_x0003__x001F_BÜ±@ZÐzk8ù±@IxTÑgA²@ÖS_x0014_'öõ±@öóøùÜ\u009e²@=}\u0089_x0005_Õ_x001B_²@â\u0087Ç_x000C_,ð±@h¦õÁö\u0084²@àÆ\"Ü_x000D_A²@úÍ(NTÙ±@sÊ_x001D_RÑ_x001B_²@7_x0004_#\tï_x0019_²@Ë#_x0006__x001E_\u008cì±@^à_x000D_×x!²@Ä$\u0088c.'²@_x000E_\u0088êÍåï±@È5_x0003_\u0087_x000C_'²@Î·_x000B_B_x0006__x0017_²@\u007f\u008a|Ê*Ò±@_x0002_^äê_x0005_\u0092²@!T_x000B_ d$²@NV_x0001_âÖ5²@\u008e_x000D_¢Þ=_x0017_²@ìëpÐ\u008cÝ±@)¢7[\u0095-²@zÌöÁðó±@_x0014_c\u008eéÂ-²@Òä-_x000E_¬B²@Îác_x0008_÷Ì±@îÉ'5_x0001__x0002_~ó±@à\u0097õ\u0090C,²@À\u0089N5÷â±@D_x001C_._x001A_»)²@\u0098IUð3î±@¶_x000B_\u008dD\u008d=²@_x001D_õÁ_x0008_ª3²@[_x001B_Ò\u007fz5²@\u0087é2¬W/²@\u0090²à1D_x0006_²@Àuñ\u008f_x0016_I²@VÁßIÊY²@ÔÝ?â¸_x001B_²@x_x0019_\u009cd6V²@=dýÁÕð±@_x0002_A_x0010_4\u0083ü±@_x0011_\u0089_x0005_î6_x0005_²@_x0014_a>y_x000D_Ý±@ÕÜ|m.'²@\u0080è¹_÷÷±@¡f³_x0019_®å±@µÂ/\u009bb*²@ïÈú_x0004_5_x0006_²@ÞÖvàÏS²@ÓÝ_x0008_±\u0083ç±@Á,_x0018_ø\u007fX²@_x0008_zz«Z\u009e²@?|±\u009f¨H²@é5Äl\u0083_x0017_²@<c¼\u008c\u008c'²@T?_x0017_ª%û²@<Q¤¾ë_x0019_²@_x0004__x0006_PgZ_x0003_1!²@ªÕ?0\"ø±@\u0084WÇ_x0016_v¥²@¾ø5Kðé±@x\u009fgª_x0014_ë±@Æ¿nÏ(Æ±@Sú^WÃ_x0005_²@/_x001F_:F\u0090Û±@\u0094x,ùBç±@\u0092\u008d\"ý_x0001_Ü±@Ú)\u008dýuó±@Õô5Ã_x0002_l²@>z_x001D_Á_x0005_/²@\"åÊ\u0092k_x001D_²@¨ÐÝ\u0088\u0080t²@t\tltAÔ±@é\u008cw!à_x0003_²@bÖ^&Le²@Í_x0013_\u008b_x000B_\u0081'²@\u0097_x0016_ô\u0099Í­²@¦Áf>¾\u0082²@\u008dPóü¦=²@_x001D_ìKÓ ó±@T\u009e]Ôè_x000F_²@´ýÿCÌ\"²@Ò?7A8c²@i_x001E__x001E_pyL²@g(_x001F__x0003_æ_x001B_²@Rì¡}+\u0082²@J¶ò_x0012_Ùñ±@(W9_x0019_}í±@&Óòu_x0001__x0006_Ä_x001E_²@U©¤s\"ô±@ØÙ_x0006_.\t(²@7-É?%Ç±@_x000E_«.\u0098_w²@8þcík_x001C_²@Ú\u0084cxL4²@¥¨7oñB²@Í,_x001D_æîã±@:_x0016_Y¼S÷±@F]&_x0006_ýN²@¸ÍAwz_x0002_²@åáÿ¸îQ²@X_x0013_%.\u0094Õ±@H\tÞp¾o²@¾ÉO9Ê_x0003_²@ðÚò\u0094Ðÿ±@È#_x0004_ÊÌç±@Ká¼÷U_x001D_²@Ñ$Õ:è_x0001_²@ À±>Ä_x0019_²@HÏì-·Ù±@4³K¾£\u0095²@\u008e»u_x001F_Ùí±@«³ëEK3²@\u0097_x0019_Èn_x000B__x0012_²@Ä<_x0010_\u0083ê_x0003_²@@,ÑJ"}},{"$cut":{"chars":76104,"head":"5a29ac8ee221416999ae33650dbf1241_x0001__x0002_8×5Á¦ë_x0001_A&\u009f_x0007__x000F_Óô_x0001_A$Jò_x0001_3é_x0001_A_x0006_ ÙÚãô_x0001_A_x001E_|æ\u0081oç_x0001_Aac²ÙÎï_x0001_Aû\u008e_x0011_\u0092Fð_x0001_AÚúëuóñ_x0001_Að¥¾¦æó_x0001_A_x0010_f(É_x0004_ò_x0001_A¨È¦Ó\u008eí_x0001_AOÓ_x000E_E\u008eò_x0001_AtL44\u0091ó_x0001_Aj§@ì¥ë_x0001_A_x0008_v6ãâî_x0001_A«ò_x001D_éEï_x0001_Aþï_x001D_è\u0085í_x0001_A-ð+/§ê_x0001_A»:á:\u008cò_x0001_ASo_x000B_B_x000F_ò_x0001_A§âM\u0083ºò_x0001_AÝG\u009c-óò_x0001_AKÿ4\u008e_x0002_õ_x0001_A!ó%\u007fLï_x0001_A\u008c\\·¦ºë_x0001_AÊ§Ö§+î_x0001_A8\u008e«¡pë_x0001_AÇ^\u008eh¥ï_x0001_A¼$_x0010_ 1í_x0001_A_x000E_5Æ¾¤ì_x0001_A\u0086>_x0004_`Äí_x0001_A?C|ó_x0001__x0006_!æ_x0001_A¦_x000E_¼).î_x0001_A_x0016__x0015_<_x0016_\u008eô_x0001_Aíòß_x000B_îë_x0001_A_x001E_ÇÜ_x0006_[ò_x0001_A#9p¨\u0084ð_x0001_Aâ[é8\u008dî_x0001_Ai_x0006_ _x0007__x0015_ò_x0001_A_x0019_gê_x0015_ëê_x0001_A¯/Ño¤ò_x0001_A¼%_x0002_D\u0094ê_x0001_AÖêÆ.yê_x0001_A^%t^_x0005_ë_x0001_AR\u009fU5íç_x0001_A\u009a_x0019_¸4_x0008_ï_x0001_A¤HÁîtõ_x0001_Aê_x0018_\u008a\u0096\u0093ê_x0001_A­»\u0094g\u0081ñ_x0001_Af²¾\u0097¯î_x0001_A-Ò®øEì_x0001_A¬\u008d\u009bîÇí_x0001_AOÄÎg'î_x0001_AÖ\u009eA_x0003__x0014_ó_x0001_Aê0ÖÄþì_x0001_AáNl@\u0094í_x0001_Að0*{±ó_x0001_A\u0090ñ8\u008cõë_x0001_Aî_x0006_Ä_x0004_ëñ_x0001_A|_x0006_Æ_x000B_Jé_x0001_AqY_x0003_ï$í_x0001_Ah\\R|\u0099ï_x0001_AQD$_x0004_oñ_x0001_A_x0002__x0003_ö.7î«ò_x0002_A;_x0015_(\u0082\u0090ê_x0002_A_x001C_\u0095GeÞô_x0002_Ab¸_x0003_8yè_x0002_A_x000E_\u009ch@!é_x0002_AËñYì\u009bë_x0002_Ap_x0010_wâDì_x0002_A)\u0097bd_x000F_í_x0002_A¢ôd_x0010_>í_x0002_AãG_x0004_3×æ_x0002_A\u0098&_x0004_S|ð_x0002_APôQp½ä_x0002_A_x0012_[_x0014_bnò_x0002_A_x0018_jw\tÂí_x0002_AD\u0094×ãÐë_x0002_Al\t`_x0001__x000B_î_x0002_A\u0087N\u009dÄ\u009bó_x0002_A©U°_x0002_ ð_x0002_A: _x001A__x0012_Üî_x0002_A\u009a*³f-ô_x0002_A\u009bSRwóè_x0002_Aï\u0091ÐÊ¾í_x0002_AËþï_x001C_1å_x0002_AcWl ·å_x0002_A¦¦\u009e_x001E_2ç_x0002_AÍ-¢öËæ_x0002_AAæ!õÃï_x0002_A¦R<<\u0093í_x0002_Aâ©_x001F_h\u0081ë_x0002_Aº5\u0089\u0084hé_x0002_A\\\u0094o¯\u009aì_x0002_A.Â0±_x0001__x0004_Uò_x0001_Aø±ÿ__x0002_ç_x0001_A\tþ?_x0002_\u009cí_x0001_A§®¿\u008f-ð_x0001_AT±_x0001_m¤ð_x0001_A¢3wFÿò_x0001_AtP1ç\u0086ï_x0001_AÒ¡I_x0007_5ó_x0001_A_x0011_Ì^\u0098@ò_x0001_AÇ\u0097\\¢Óõ_x0001_A\u0098ô\u008d\u009b¡î_x0001_AìÅ\u0096Õ]è_x0001_Aø¦\u0099à_x0018_æ_x0001_Aþ\u009fÊYàë_x0001_A¶U\u009a\u008d0ì_x0001_AS2Âz_x0014_é_x0001_AÙpFÏdê_x0001_AÙ\u0082¨_x0011_øî_x0001_A¸lÂ\u009fÑç_x0001_AW÷\u0092\u008bÿë_x0001_A¤f¸_x0006_%ó_x0001_AxXþbvì_x0001_A$\u0091áþ.ì_x0001_A\u0098=_x0003_\u0082Æó_x0001_A_x0006_\u008e_x0018_@\u008cë_x0001_AD_x0005_µt«è_x0001_AÀ%b_x0016_Öñ_x0001_Ad\tµ%_x0005_ì_x0001_A¾¥3\u008a\u0088ï_x0001_A\u008f\u007fDJ\u0089ê_x0001_AÃyÄ_x001D_Äë_x0001_Aèù\u0097Ú\u009fí_x0001_A_x0002__x0005_\u0094^YHHï_x0002_AVÇ´\u0096üõ_x0002_A\u0088¼\u009e \u0082î_x0002_A_À\u009f°Úî_x0002_AlÑáËøñ_x0002_Ax_HPaì_x0002_AÏzÇùÓî_x0002_A\u007fCn¤Üì_x0002_Aû_x001F_\u0093Ánô_x0002_Aü\u0094 _x0004_.æ_x0002_A¢ÛÇ_x0001_zæ_x0002_AÕÍÖ#Àï_x0002_AqÅ½=\u0085é_x0002_AÊ³õKKô_x0002_A \u008d\u0091[æð_x0002_AÇ(Å_x0011_áé_x0002_A¥_x0003_æ½\u008eï_x0002_A_x0008_LVYÏê_x0002_A\u0082,\u009bçJë_x0002_A_x0004_\u009dÙM¸ñ_x0002_A_x001C_=U_x0006_)ë_x0002_AJ>\u008f5lë_x0002_A\u008eÓ4\u008d\u0081ä_x0002_A_x000C_£,õþñ_x0002_AD¯Vfpê_x0002_A±÷s\u009dÊí_x0002_Aò_x0018_º_x0017_Oô_x0002_Aº*ÀeSò_x0002_A[\u009e\"òßì_x0002_A \"\"jÿë_x0002_AÝ\u0084P_x0014_\u0081õ_x0002_A\u0086µª_x0017__x0002__x0004_&ç_x0002_A_x0010_M_x001A_²=î_x0002_A~¬Ñf6ð_x0002_AUf_x0010_Ó\u008có_x0002_A\u008d[_\u0091¬å_x0002_A©C$|Lë_x0002_A/È\u0099q_x000D_é_x0002_A_x0008_xtÝ«î_x0002_A¶=HS_x0001_ð_x0002_A&ªìe\u0098ì_x0002_AB\u009d¡_ëò_x0002_Aë÷à2_x000B_ô_x0002_A_x0019_pÚC_x0016_ö_x0002_A\u0094®Í iò_x0002_A\u008fu¤C\u0095ç_x0002_A;_x000E_)¿\u0085ñ_x0002_A\u0086_x0010_)Ø2ó_x0002_A¸Q\u0095'¸ã_x0002_A\u0090Ý$_x000E_ëë_x0002_AY\u007fÂrÙé_x0002_AIºúô\u0093æ_x0002_AT\u0081Êvòë_x0002_AÒKX_x000F_&í_x0002_A;_x001F_ÍT~ê_x0002_Ax½_x000C_\u009dÌï_x0002_AÖ ´Sïï_x0002_AÃ©mÆ©ð_x0002_A\\^<W\u0083î_x0002_A4Ô·¦ãì_x0002_A&¶¤Ì¸ð_x0002_A_x000F_\u0091h_x001A_Âò_x0002_AJNç_x0003_õò_x0002_A_x0002__x0003_´_x0008__x0016_XÁó_x0002_A_x001C_ê¿g3ì_x0002_AYrKÏNë_x0002_A­*í\u0094Çð_x0002_A_x0014_F\u00817@í_x0002_A_x0003_C\u0086æ{ó_x0002_A\u0096\u009dúYµè_x0002_Aläy_x0008_|é_x0002_AÖ/M\u0090\u009fë_x0002_AÖÑSyÖô_x0002_At«yn¦î_x0002_A_x0008_§<B_x000B_í_x0002_AA+B_x001D_nê_x0002_AÒx\u008aë_x0007_ï_x0002_AHU\u009dÝuç_x0002_A¤¢Ë°7í_x0002_A*¥_x0006_ÌRí_x0002_AæØ.Bvó_x0002_AOZsnîô_x0002_A\u0090ôÖ<mé_x0002_AVðö?_x001A_í_x0002_A_x0002_ÂD@Jå_x0002_AÈ\u008fS_x0010_\tí_x0002_A/_x0004__x0001__x001E_\u0091ï_x0002_A9©¿ø\u0093î_x0002_Að^E/Óð_x0002_A\u0091¢p`fé_x0002_A\u008a/ßðÈì_x0002_AªÕ¼_x0011_ ï_x0002_A\u0098Ç_x001F_[)ó_x0002_A_x001B_p)_x0012_\u0091ñ_x0002_ADæE\u0095_x0002__x0004_¼ê_x0002_A`ªÆ\u0086Eí_x0002_AvØÊ 4ì_x0002_AGÁwÆ­ï_x0002_A>bí:éí_x0002_Aæ>û\u0082½ì_x00"}},{"$cut":{"chars":74946,"head":"2cdb749e7805e59e5d97a37b43e3923a_x0005__x0006_¹Ï\u0080åÎÅ_x0002_A_x0010__x0003_\u0090|$Ñ_x0002_A@z­M÷ò_x0002_AÀ_x0008__x001C_Èêü_x0002_A^\u0091ÁåîÂ_x0002_A§¬á¯\u0094Ù_x0002_AÍ_x0018_Ë\u0098\u0084â_x0002_AÄv\\\u009aôø_x0002_Aù¼kN\u0086ï_x0002_A\u0085\u009a®xgý_x0002_A\u008f_x000F_µ¹Eà_x0002_A!VÁ]qÎ_x0002_AÞ_x0012_D\u0092Ãæ_x0002_A>*Ü\u008e_x001C_ï_x0002_A=§\u009fO°Î_x0002_A8_x0013_¾\"Iþ_x0002_AJµ\u009d_x0012_}ñ_x0002_A\u0091)z\u009b\\Ý_x0002_Aò£Jh\u0096Ï_x0002_A_x0002_\u0085_x0012__x0001_ûÚ_x0002_Aá\u0092> ñÃ_x0002_Aº_x0017_6w_x001A_þ_x0002_AÑ1wc&»_x0002_A\\´.e0ò_x0002_A¨¨Ä_x001A_»_x0002__x0003_Au¦}_x000B__x0004__x0005__x0003_Aæ¸,«gò_x0002_A\u0081«CBfç_x0002_A\u00817\u009e0rè_x0002_A|ü¦{\u0083Ý_x0002_ACõ_x001A_Ïfà_x0002_A¶_x000C_ðc_x0001__x0005_cñ_x0002_Aö%meNé_x0002_A/_x0016_§CÖí_x0002_A~{dè~û_x0002_A}æÇ\u009fTÞ_x0002_AvÐäT5è_x0002_A¤êUï\u009b_x0007__x0003_AÉVò_x001F_MÙ_x0002_A\u008aOþ¢_x001C_Ò_x0002_Aj\u0089Ö_x0012_±à_x0002_Aê)Ô_x000F_ÆË_x0002_AgS+Ã@Ò_x0002_A\u0099Jµg>ý_x0002_A\u009eãÊA3_x0004__x0003_A_x000C_3cÿKá_x0002_A´\u009f_M_x000B_è_x0002_A_x0016_q)÷]_x000C__x0003_Ar©¾F%Þ_x0002_AÜy_x001C_ \u0083È_x0002_A¨\u0080Í_x0016_éï_x0002_Aº\"Tey×_x0002_AÚÏ¥\u009a}ç_x0002_A\u0090\u008eëz_x0015_ï_x0002_A_x001A_\u0097\u009b-Rû_x0002_AÔ«8\\_x0019_è_x0002_AD\u009c¨\u0083ª_x000B__x0003_A0¡,\u008e+ñ_x0002_A\u0086Q`1ßæ_x0002_A­t^_x0012_Ïä_x0002_A?\u009agIÏý_x0002_Axø\\_x000E_ª_x0002__x0003_A_x001F_Ø\u007f_x0017_jÖ_x0002_A_x0004__x0006_\\_x0001_|¯_x0006_î_x0002_AtÎ_x0013_-1è_x0002_AvÖå\u009b9È_x0002_A¤\"3NÀß_x0002_AP¬ðVÎô_x0002_A\u0096ÕqsRÙ_x0002_A_x000D_\u009d\u0094pÚ_x000C__x0003_Aú'\u0098ßÿè_x0002_Aþ¾F2_x0013_×_x0002_Az.=/üå_x0002_Aú¾&¡tð_x0002_A_x0011_ðàiNÒ_x0002_AS_x001D_iÒIÿ_x0002_A\u0092Ü±ß_x0011__x0010__x0003_A_x0005_îãNÚà_x0002_AVë\u0088¼wé_x0002_A«\u0087?ÔEú_x0002_A_x0018_'d_x001D_Óñ_x0002_A±É\u0091*OØ_x0002_AÇ\u009cÚ¤ôÝ_x0002_A_x001E_í]É¨æ_x0002_Aº_x001D_&D.à_x0002_A:üMÏùÏ_x0002_A_x000B_ü_x0002_¸ÔÞ_x0002_A\u0086Ò\u0087P§×_x0002_Aúon¦¯ã_x0002_AÀ0ÉÄä_x0001__x0003_Al½ ¿là_x0002_AzöÙÕPÛ_x0002_A(H\u009a«\u008aî_x0002_A_x001A_K\u0085PÂó_x0002_ALuø_x0014_\t_x000B_xñ_x0002_A._x001C_ê¾_x0017_Ê_x0002_AÖéÊ&\u0084å_x0002_A\u0081 _x0005_å\u0088Þ_x0002_A|P`n&_x000D__x0003_A:ÖHjöÅ_x0002_AFz^Ðüî_x0002_AÚ_x0001_ý[¦Ö_x0002_A_x001B_I¾¯\u0087×_x0002_A_x0016_À_x0004_^1é_x0002_A|ðß²O_x0007__x0003_A+n(­\u009fá_x0002_Aõ³_x0008_È1_x0003__x0003_Aî\u0092\\_x0006__x0005_ï_x0002_A_x0017_ëoß\u0090ú_x0002_A,\u008b)\u0085¼Ï_x0002_Aw \u0085dn×_x0002_AôXe_x0003_±¾_x0002_Ar_x000C_w¼Kæ_x0002_A@;5¡\u0098_x0004__x0003_Aÿvì\t0á_x0002_A_x0006__x000C_Wvw_x0006__x0003_AT¡·\u0093{ï_x0002_AÜù\u0080êTÜ_x0002_A_x000C_»,Ð_x0011_Å_x0002_Aë´\u0094_x001A_xá_x0002_A³\u0089±µbä_x0002_AðãE-ßÈ_x0002_A0\u0080°W_x0007_é_x0002_AP_x0012_\u0097¡ZÌ_x0002_A*Ñ\u0094\u0098nç_x0002_ACfQ_x001D_\u0088Û_x0002_A_x0004__x0006_Hóo+ÊÃ_x0002_A\u009ctO\u008f_x0019_Ó_x0002_AýjÀ^/â_x0002_A_x0008_½R_x0011_1É_x0002_AY__x001F_Dªï_x0002_A_x001A_\u0098\u009bõ±_x000B__x0003_A\u0080+_x0002_\u0091;_x000D__x0003_Ak\u0088ÁRq_x000F__x0003_A>6Õ\u0084\u0094è_x0002_A_x001F_áT½_x001F_Ü_x0002_A¼\u009f]_x0017_]_x0001__x0003_AÜù&ð_x000F_á_x0002_A·\u0093I®wÕ_x0002_Aö°*R)Ü_x0002_A\u008b\u009d\u0081Óµî_x0002_A|»$hõ_x0005__x0003_A÷_x001E_ æ¸ó_x0002_A­µLI¯Ù_x0002_A¢@Vú-_x0005__x0003_A_x0007_¦£_x0013_#ç_x0002_ADPÆ_x0016__x0001_Ð_x0002_A_x0017__x0005_._x000E_<à_x0002_AÂ\u0095¨ÕÌ_x0010__x0003_A.ÿ\u0086t¯Ì_x0002_A¤0ó_x001D_[×_x0002_A¨¾ö#[_x0006__x0003_A_x000E_ØÀ_ö¿_x0002_A.\u0099¬\u009bî_x0012__x0003_A\u007f.±Cnð_x0002_A_x000C_©ÕÆ_x0013_á_x0002_A_x001E_\u009d\u0098?aî_x0002_AÕ-\u0094_x001F__x0001__x0004_\u0080Õ_x0002_Aî\u008cW»_x000B_Ä_x0002_A´\u0092_x000E__x0011_Kµ_x0002_Aäe_x000F_\u008b_x0006_Ê_x0002_AÝW¤è\u009fâ_x0002_Aò\u009aÔöÃõ_x0002_AÖH#_x0003_yÄ_x0002_A_x000B_Eë[èô_x0002_AÊ\u009afÔ¹æ_x0002_Aô*£¶5¿_x0002_A\tÒ_x0013_§çÙ_x0002_A>éPùFÚ_x0002_A¨\"æ,fÔ_x0002_A¡Ûõ\u009eÃ_x0007__x0003_A_x000F_äçi¸Ó_x0002_AÙV\u0086I\u0080ß_x0002_AH\u0099ÛýÒî_x0002_AfN_x0007_\u0097\u0097Ö_x0002_AW_x001F_Ý÷ní_x0002_A\u0082c[äaØ_x0002_A¯M\\\u008b_x0012_Ö_x0002_AK_x000D_\u008f_x0008_¸Ú_x0002_A@{/åÍß_x0002_A_x0001_dT\u0087rÉ_x0002_A\u007fªÜ\u0085\u008bä_x0002_A>-_x0018_Yéæ_x0002_ADðaKp_x0008__x0003_A^¦eå_x001A_ñ_x0002_A_x0013_¶Tûðå_x0002_A¶\u008fA\u0092Ï\t_x0003_A\u009e\u0090Bájÿ_x0002_ApMn¡gî_x0002_A_x0001__x0004_WqW_Kí_x0002_A®C\u0090IOÈ_x0002_ArÊÈX¢ê_x0002_Ajïß_x000D_ÙÔ_x0002_A_x0014_X\u0086 Xó_x0002_AÚÅeÑëÔ_x0002_Aê/{\u0098$_x0005__x0003_ASu_x0016_\u009b[æ_x0002_AÇ&dl¯ä_x0002_AV«nÆ\u0083ì_x0002_A¢L\u0092¿¬ç_x0002_A=x_x0014__x0014_Îú_x0002_AwÒ{Û¤p_x0003_Aì6À\u008bÁ¸_x0003_A_x000E_7Ò}É¢_x0003_A1<TÖ¢\u0084_x0003_A\u0092¼'ömu_x0003_A\u007f<°ºÚ\u009c_x0003_Aq\u0084ïÚö\u008e_x0003_AÀÊÝ_x001C_¨m_x0003_A\u0082_x0007_éDd«_x0003_A\u009b|c_x000F_zn_x0003_AÂ$\u0098_x001C_\u0099\u0095_x0003_AÚAùæ9\u0091_x0003_A\u0098\u0090]\u009eÛk_x0003_A_x0018_ xæ2\u0090_x0003_A&<Q°\u0084\u009d_x0003_A \"÷¨p\u0099_x0003_A|/)_"}},{"$cut":{"chars":128340,"head":"181d1f5526d822449746e955da7f11f4_x0005__x0006__x0005_´f)\t&_x0013_A _x0001__x000B_ñ_x0002_9_x0013_AÚ\u009f¡ÂÿF_x0013_A_x0015_üè|ì:_x0013_AöÒã°¸_x001A__x0013_A_x0019_\u007fal\u008f7_x0013_AVÿå\u008dC-_x0013_ANp\u009a-\u009cJ_x0013_AsÛ_x0003_¯$0_x0013_A_x0012__x0008_`¹bM_x0013_AV,(Ùgd_x0013_A_x001E_\u0099I8\u009b_x000F__x0013_Aj\u0092DÑÞ_x0004__x0013_A®g\u0083_x0010_¡\\_x0013_A\u0082_x0017_\u0084ØÞ_x001D__x0013_Akf9_x0011_¯H_x0013_A¢*ß»\u00833_x0013_A¢vÍ\\Þ&_x0013_An7Þ_x0003_9@_x0013_AãdHhïJ_x0013_AÓ66Å.9_x0013_A\u008aî<É\u0087*_x0013_AQ_x000B__x0011__x0003_õ,_x0013_A\u0091_x001F_ÿ|gW_x0013_AÒÿ¹\u009f,>_x0013_AðæAY_x000C_:_x0013_AÖÅO_x0002__x0013_,_x0013_A\u009e)ó_x0013_¬%_x0013_A4n½{ZF_x0013_AYÆt%½_x000E__x0013_A¤F\u008ar+E_x0013_A\u008cÌb_x001A__x0001__x0002_Ï#_x0013_A~#þ\u008c_x0002__x0016__x0013_A._x0016_`ÿ\u009a\"_x0013_A2§ÙÂÐ>_x0013_AÝ'¦\u0086\u008c2_x0013_AçØ_x0004__x0003_9M_x0013_AâÌ»_x0008_ÏP_x0013_A¸_x0004_\u0085¢×0_x0013_A«t2_x0003_²@_x0013_A×\u0084´g\u0082D_x0013_A_x000D_öõk\u0093=_x0013_A\u0087_x0008_n,¥=_x0013_AVA²_x0011_ý2_x0013_AÂÈ_x000B_._x0017_=_x0013_AÈ\u0091\u009a_x0013_9G_x0013_AH×k_x0017_É]_x0013_AÆîï\u0098_x0006__x001F__x0013_AfE\u0098ØRF_x0013_A_x0004_ix_x0014__x001E_6_x0013_A\u0088ç]¸\u0089N_x0013_Aæ²µsÁH_x0013_Aú_x0019__x001E_\u0091Ç<_x0013_An¹\u008dCö#_x0013_A\u0094¡ É_x001A_N_x0013_AT\u008b\u009eñ_x0001_)_x0013_A_x0014__x0019__x001A__x0005_çC_x0013_AF:ze\u0094%_x0013_A\u0082úÚf¿;_x0013_A×_x0018_ËãÔV_x0013_A:C÷@õM_x0013_AÅq_x0004_¥9$_x0013_A_x000C_^7\\c3_x0013_A_x0001__x0002_:²åxÍ0_x0013_AK¾¨qÐ_x001B__x0013_AdjC^²B_x0013_Ad3·QëC_x0013_A¤IyYA_x0013__x0013_A\u0087_x0008_BC_x0014_L_x0013_Ak_x001C_Â\u008cU]_x0013_A\\\u0084á\u009cé&_x0013_A½Þôè?+_x0013_A_x0001_o\u009e²¢J_x0013_AbéOA_x001E_*_x0013_Ai_x001E_yÕ\u0094:_x0013_A_x0011_hæòsY_x0013_A_x001E_ð_x0010_e×D_x0013_AòÅðO_x001E_;_x0013_Aü*)\u0083ï;_x0013_AeS_x001D_}_+_x0013_AmÇ_x0011__x0019_âO_x0013_AZ8\\)Æ_x0016__x0013_A>\u008c\u0091I\u00841_x0013_A¼­ú¨å2_x0013_A_x0010_/Å°(*_x0013_A¢^µà\u009aB_x0013_AÜål_x000D__x001F_,_x0013_AÆ\u0095~DÁ+_x0013_Aù\u0090¬ßb)_x0013_Aª\u0092ÒK\u0087S_x0013_AbÍ_x0018_\u0090(6_x0013_A<_x001A__x001D_¥ø<_x0013_A,ÙÊº2_x001D__x0013_AºJ¥\tp._x0013_A_x0014__x0019_ÿÈ_x0002__x0006__x0018_._x0013_Aùpß<\u0088%_x0013_A_x0012_\u0095\u009c1%N_x0013_A`©_x001D_¾¦J_x0013_Az\u008f:¾ÿ_x001C__x0013_Aº§_x0008_543_x0013_A\u009a\u00891\u009ei#_x0013_AàØZ¢_x000F_7_x0013_A\u0089a\u0090ë\tN_x0013_A/¾%È\u0091Z_x0013_Aêx0«\u0095_x0019__x0013_A\tÙ\u0084þ\u008d_x0012__x0013_A_x000C_xÿ:*>_x0013_AÈ\u009e_x0005__x0003_B*_x0013_A\\\u0086®\u0097_x001B_1_x0013_AZ'd_x0001_\u008b-_x0013_A:ê7\u0087 _x001D__x0013_A_x001A_\u0098êÿ]H_x0013_A\u0080¿BþOU_x0013_AÁó1!§$_x0013_Aööþ¹f_x0006__x0013_A\u0083­ÞEU9_x0013_Av_x0011_¼ ì4_x0013_A.æ\u008d_x0004_p_x0010__x0013_A¢\\\u009d¦á_x001F__x0013_A\u0091Ë0Ð¨%_x0013_AÇëw,¥)_x0013_A_x0012_¤\u0090_x0008_F<_x0013_Aø¨\u0095_x001B_­_x001B__x0013_A©Ï°¼Ù'_x0013_A 3\u0087±\u008cI_x0013_AÙ\u0088\u0092©Î_x0016__x0013_A_x0001__x0002_Âî\u008e¼\u00839_x0013_A\u0084°Ñä\u009e+_x0013_AX&|\u008b{E_x0013_AÍ_x001C_\u0096\u0080_x0014_ _x0013_Añ_x0002_n_x001A_~*_x0013_A®µÏ§_x000C_F_x0013_A`Ã_x0011_©U2_x0013_A¥Yã_/;_x0013_AÔ\u008eæ_x0018_¸#_x0013_AXÑ\u0093\u0083\u0091B_x0013_Alêï_x000B_ÑX_x0013_AHórÏk0_x0013_Ant]ú_x0014_E_x0013_A_x0004_f%=ÇT_x0013_A\u00882{L_x0017_=_x0013_Aþ|_x000F_l__x001D__x0013_A\u0094'ó[GC_x0013_A\u008aµ=©ñ _x0013_A\u0080_x000D_«Wp\\_x0013_A_x0018_° ¤&C_x0013_A,_x0010_.|¡+_x0013_A°É´_x0007__x0017_6_x0013_A0[®+ E_x0013_A_x001A_/\u008d\u008e,H_x0013_AU7\u008a!p+_x0013_AT,o_x000F_C7_x0013_AÍ_x0015__x0001_/\u00971_x0013_A\u0080_x0018__x0005__x0003_Ó?_x0013_A0)½ü\u0088&_x0013_A_x0018_M\u0087ÚbQ_x0013_A\u0086rù]LC_x0013_A\u0096d£_x0012__x0001__x0002__x0008_?_x0013_AZ=43_x0015_>_x0013_AÃ¿¸ý,M_x0013_A) _x001F_È_x0010_,_x0013_A¨ñH\tz5_x0013_A_x000E_sQbO4_x0013_A_x0008_\u008bãû_x001E_6_x0013_AÔBö\u0085\u00919_x0013_AF_x0017_Y\u007fËG_x0013_A@MYz\u007fM_x0013_A,y{\u0086:*_x0013_AÐqU$~ _x0013_AD-U!ÔO_x0013_Aº\tË\u0097®9_x0013_AÀ\u0082w»\u008f+_x0013_AV\u0082ùÚØ7_x0013_AËSy¶ý5_x0013_A_x0016_:yE\u0086,_x0013_A®\u0081Þë®[_x0013_A_x0004_Û\u009b[Á8_x0013_A_x0016_H±(?F_x0013_AWõÃG_x0004_Q_x0013_A\u0086ST\u008dO+_x0013_Aäs_x001A__x000C__x000D_=_x0013_A_x0016_<o_})_x0013_AÜcíª_x000D_8_x0013_ALÞÝ¥O._x0013_A\u008ckt_x000C_i_x001E__x0013_A©þ_x0003_\u008d\u009aQ_x0013_AÆSé\u008eõ_x0019__x0013_AÚõ=ÃxI_x0013_A_x0010__x0001_¹Ü\u009eY_x0013_A_x0002__x0007_FÆH\u0087_x0004_,_x0013_A¿\u007fÕ_x0002_-3_x0013_AúFÒ=\u00812_x0013_A\u008c6ÇøhC_x0013_A-_x0005_ÄUÉX_x0013_AbÄ2X^*_x0013_AàËY#~B_x0013_Az/_x000D_ÞüX_x0013_AÒô¡Ó_x0006_)_x0013_A¤äÍî¾&_x0013_A\u0084º_x0001_\u0099O\"_x0013_Ax_x0015_.+\u009d._x0013_A!é¡,\u009a'_x0013_A\u009eyÖaG'_x0013_AÆ§TWÚ _x0013_AèÂ\u0091`'+_x0013_A\u00889(+m-_x0013_A\\DÈ\u008fY2_x0013_Az_x0012_tÛð_x001A__x0013_A&Õ¨_x0003_!!_x0013_A_x0011_Rß_x0018_\u009d_x001B__x"}},{"$cut":{"chars":227022,"head":"34ecf711e0d6de37134b683fcd95da04_x0001__x0002__x0001__x0001__x0001__x0001__x0001__x0001__x0001__x0001__x0001__x0001__x0001__x0001__x0001__x0001__x0001__x0001__x0001__x0001__x0001__x0001__x0001__x0001__x0001__x0001__x0001__x0001__x0001__x0001__x0001__x0001__x0001__x0001__x0001__x0001__x0001__x0001__x0001__x0001__x0001__x0001__x0001__x0001__x0001__x0001__x0001__x0001__x0001__x0001__x0001__x0001__x0001__x0001__x0001__x0001__x0001__x0001__x0001__x0001__x0001__x0001__x0001__x0001__x0001__x0001__x0001__x0001__x0001__x0001__x0001__x0001__x0001__x0001__x0001__x0001__x0001__x0001__x0001__x0001__x0001__x0001__x0001__x0001__x0001__x0001__x0001__x0001__x0001__x0001__x0001__x0001__x0001__x0001__x0001__x0001__x0001__x0001__x0001__x0001__x0001__x0001__x0001__x0001__x0001__x0001__x0001__x0001__x0001__x0001__x0001__x0001__x0001__x0001__x0001__x0001__x0001__x0001__x0001__x0001__x0001__x0001__x0001__x0001__x0001__x0001__x0001__x0001__x0001__x0001__x0001__x0001__x0001__x0001__x0001__x0001__x0001__x0001__x0001__x0001__x0001__x0001__x0001__x0001__x0001__x0001__x0001__x0001__x0001__x0001__x0001__x0001__x0001__x0001__x0001__x0001__x0001__x0001__x0001__x0001__x0001__x0001__x0001__x0001__x0001__x0001__x0001__x0001__x0001__x0001__x0001__x0001__x0001__x0001__x0001__x0001__x0001__x0001__x0001__x0001__x0001__x0001__x0001__x0001__x0001__x0001__x0001__x0001__x0001__x0001__x0001_@\u008f@_x0001__x0001__x0001__x0001__x0001__x0001__x0001__x0001__x0001__x0001__x0001__x0001__x0001__x0001__x0001__x0001__x0001__x0001__x0001__x0001__x0001__x0001__x0001__x0001__x0001__x0001__x0001__x0001__x0001__x0001__x0001__x0001__x0001__x0001__x0001__x0001__x0001__x0001__x0001__x0001__x0001__x0001__x0001__x0001__x0001__x0001__x0001__x0001__x0001__x0001__x0001__x0001__x0001__x0001__x0001__x0001__x0001__x0001__x0001__x0001__x0001__x0002__x0001__x0001__x0001__x0001__x0001__x0001__x0001__x0001__x0001__x0001__x0001__x0001__x0001__x0001__x0001__x0001__x0001__x0001__x0001__x0001__x0001__x0001__x0001__x0001__x0001__x0001__x0001__x0001__x0001__x0001__x0001__x0001__x0001__x0001__x0001__x0001__x0001__x0001__x0001__x0001__x0001__x0001__x0001__x0001__x0001__x0001__x0001__x0001__x0001__x0001__x0001__x0001__x0001__x0001__x0001__x0001__x0001__x0001__x0001__x0001__x0001__x0001__x0001__x0001__x0001__x0001__x0001__x0001__x0001__x0001__x0001__x0001__x0001__x0001__x0001__x0001__x0001__x0001__x0001__x0001__x0001__x0001__x0001__x0001__x0001__x0001__x0001__x0001__x0001__x0001__x0001__x0001__x0001__x0001__x0001__x0001__x0001__x0001__x0001__x0001__x0001__x0001__x0001__x0001__x0001__x0001__x0001__x0001__x0001__x0001__x0001__x0001__x0001__x0001__x0001__x0001__x0001__x0001__x0001__x0001__x0001__x0001__x0001__x0001__x0001__x0001__x0001__x0001__x0001__x0001__x0001__x0001__x0001__x0001__x0001__x0001__x0001__x0001__x0001__x0001__x0001__x0001__x0001__x0001__x0001__x0001__x0001__x0001__x0001__x0001__x0001__x0001__x0001__x0001__x0001__x0001__x0001__x0001__x0001__x0001__x0001__x0001__x0001__x0001__x0001__x0001__x0001__x0001__x0001__x0001__x0001__x0001__x0001__x0001__x0001__x0001__x0001__x0001__x0001__x0001__x0001__x0001__x0001__x0001__x0001__x0001__x0001__x0001__x0001__x0001__x0001__x0001__x0001__x0001__x0001__x0001__x0001__x0001__x0001__x0001__x0001__x0001__x0001__x0001__x0001__x0001__x0001__x0001__x0001__x0001__x0001__x0001__x0001__x0001__x0001__x0001__x0001__x0001__x0001__x0001__x0001__x0001__x0001__x0001__x0001__x0001__x0001__x0001__x0001__x0001__x0001__x0001__x0001__x0001__x0001__x0001__x0001__x0001__x0001__x0001__x0001__x0001__x0001__x0001__x0001__x0001__x0001__x0001__x0001__x0001__x0001__x0001__x0001__x0002__x0001__x0001__x0001__x0001__x0001__x0001__x0001__x0001__x0001__x0001__x0001__x0001__x0001__x0001__x0001__x0001__x0001__x0001__x0001__x0001__x0001__x0001__x0001__x0001__x0001__x0001__x0001__x0001__x0001__x0001__x0001__x0001__x0001__x0001__x0001__x0001__x0001__x0001__x0001__x0001__x0001__x0001__x0001__x0001__x0001__x0001__x0001__x0001__x0001__x0001__x0001__x0001__x0001__x0001__x0001__x0001__x0001__x0001__x0001__x0001__x0001__x0001__x0001__x0001__x0001__x0001__x0001__x0001__x0001__x0001__x0001__x0001__x0001__"}},{"$cut":{"chars":226026,"head":"c87ea9f5172db3a24e1b113e14ed4b7b_x0001__x0002__x0001__x0001__x0001__x0001__x0001__x0001__x0001__x0001__x0001__x0001__x0001__x0001__x0001__x0001__x0001__x0001__x0001__x0001__x0001__x0001__x0001__x0001__x0001__x0001__x0001__x0001__x0001__x0001__x0001__x0001__x0001__x0001__x0001__x0001__x0001__x0001__x0001__x0001__x0001__x0001__x0001__x0001__x0001__x0001__x0001__x0001__x0001__x0001__x0001__x0001__x0001__x0001__x0001__x0001__x0001__x0001__x0001__x0001__x0001__x0001__x0001__x0001__x0001__x0001__x0001__x0001__x0001__x0001__x0001__x0001__x0001__x0001__x0001__x0001__x0001__x0001__x0001__x0001__x0001__x0001__x0001__x0001__x0001__x0001__x0001__x0001__x0001__x0001__x0001__x0001__x0001__x0001__x0001__x0001__x0001__x0001__x0001__x0001__x0001__x0001__x0001__x0001__x0001__x0001__x0001__x0001__x0001__x0001__x0001__x0001__x0001__x0001__x0001__x0001__x0001__x0001__x0001__x0001__x0001__x0001__x0001__x0001__x0001__x0001__x0001__x0001__x0001__x0001__x0001__x0001__x0001__x0001__x0001__x0001__x0001__x0001__x0001__x0001__x0001__x0001__x0001__x0001__x0001__x0001__x0001__x0001__x0001__x0001__x0001__x0001__x0001__x0001__x0001__x0001__x0001__x0001__x0001__x0001__x0001__x0001__x0001__x0001__x0001__x0001__x0001__x0001__x0001__x0001__x0001__x0001__x0001__x0001__x0001__x0001__x0001__x0001__x0001__x0001__x0001__x0001__x0001__x0001__x0001__x0001__x0001__x0001__x0001__x0001__x0001__x0001__x0001__x0001__x0001__x0001__x0001__x0001__x0001__x0001__x0001__x0001__x0001__x0001__x0001__x0001__x0001__x0001__x0001__x0001__x0001__x0001__x0001__x0001__x0001__x0001__x0001__x0001__x0001__x0001__x0001__x0001__x0001__x0001__x0001__x0001__x0001__x0001__x0001__x0001__x0001__x0001__x0001__x0001__x0001__x0001__x0001__x0001__x0001__x0001__x0001__x0001__x0001__x0001__x0001__x0001__x0001__x0001__x0001__x0001__x0001__x0001__x0001__x0001__x0001__x0002__x0001__x0001__x0001__x0001__x0001__x0001__x0001__x0001__x0001__x0001__x0001__x0001__x0001__x0001__x0001__x0001__x0001__x0001__x0001__x0001__x0001__x0001__x0001__x0001__x0001__x0001__x0001__x0001__x0001__x0001__x0001__x0001__x0001__x0001__x0001__x0001__x0001__x0001__x0001__x0001__x0001__x0001__x0001__x0001__x0001__x0001__x0001__x0001__x0001__x0001__x0001__x0001__x0001__x0001__x0001__x0001__x0001__x0001__x0001__x0001__x0001__x0001__x0001__x0001__x0001__x0001__x0001__x0001__x0001__x0001__x0001__x0001__x0001__x0001__x0001__x0001__x0001__x0001__x0001__x0001__x0001__x0001__x0001__x0001__x0001__x0001__x0001__x0001__x0001__x0001__x0001__x0001__x0001__x0001__x0001__x0001__x0001__x0001__x0001__x0001__x0001__x0001__x0001__x0001__x0001__x0001__x0001__x0001__x0001__x0001__x0001__x0001__x0001__x0001__x0001__x0001__x0001__x0001__x0001__x0001__x0001__x0001__x0001__x0001__x0001__x0001__x0001__x0001__x0001__x0001__x0001__x0001__x0001__x0001__x0001__x0001__x0001__x0001__x0001__x0001__x0001__x0001__x0001__x0001__x0001__x0001__x0001__x0001__x0001__x0001__x0001__x0001__x0001__x0001__x0001__x0001__x0001__x0001__x0001__x0001__x0001__x0001__x0001__x0001__x0001__x0001__x0001__x0001__x0001__x0001__x0001__x0001__x0001__x0001__x0001__x0001__x0001__x0001__x0001__x0001__x0001__x0001__x0001__x0001__x0001__x0001__x0001__x0001__x0001__x0001__x0001__x0001__x0001__x0001__x0001__x0001__x0001__x0001__x0001__x0001__x0001__x0001__x0001__x0001__x0001__x0001__x0001__x0001__x0001__x0001__x0001__x0001__x0001__x0001__x0001__x0001__x0001__x0001__x0001__x0001__x0001__x0001__x0001__x0001__x0001__x0001__x0001__x0001__x0001__x0001__x0001__x0001__x0001__x0001__x0001__x0001__x0001__x0001__x0001__x0001__x0001__x0001__x0001__x0001__x0001__x0001__x0001__x0001__x0001__x0001__x0001__x0001__x0001__x0002__x0001__x0001__x0001__x0001__x0001__x0001__x0001__x0001__x0001__x0001__x0001__x0001__x0001__x0001__x0001__x0001__x0001__x0001__x0001__x0001__x0001__x0001__x0001__x0001__x0001__x0001__x0001__x0001__x0001_@\u008f@_x0001__x0001__x0001__x0001__x0001__x0001__x0001__x0001__x0001__x0001__x0001__x0001__x0001__x0001__x0001__x0001__x0001__x0001__x0001__x0001__x0001__x0001__x0001__x0001__x0001__x0001__x0001__x0001__x0001__x0001__x0001__x0001__x0001__x0001__x0001__x0001__x0001__x0001__x0001__x0001__x0001__"}},{"$cut":{"chars":225768,"head":"4c1d430a81c1c56a02d692ce801f982f_x0001__x0002__x0001__x0001__x0001__x0001__x0001__x0001__x0001__x0001__x0001__x0001__x0001__x0001__x0001__x0001__x0001__x0001__x0001__x0001__x0001__x0001__x0001__x0001__x0001__x0001__x0001__x0001__x0001__x0001__x0001__x0001__x0001__x0001__x0001__x0001__x0001__x0001__x0001__x0001__x0001__x0001__x0001__x0001__x0001__x0001__x0001__x0001__x0001__x0001__x0001__x0001__x0001__x0001__x0001__x0001__x0001__x0001__x0001__x0001__x0001__x0001__x0001__x0001__x0001__x0001__x0001__x0001__x0001__x0001__x0001__x0001__x0001__x0001__x0001__x0001__x0001__x0001__x0001__x0001__x0001__x0001__x0001__x0001__x0001__x0001__x0001__x0001__x0001__x0001__x0001__x0001__x0001__x0001__x0001__x0001__x0001__x0001__x0001__x0001__x0001__x0001__x0001__x0001__x0001__x0001__x0001__x0001__x0001__x0001__x0001__x0001__x0001__x0001__x0001__x0001__x0001__x0001__x0001__x0001__x0001__x0001__x0001__x0001__x0001__x0001__x0001__x0001__x0001__x0001__x0001__x0001__x0001__x0001__x0001__x0001__x0001__x0001__x0001__x0001__x0001__x0001__x0001__x0001__x0001__x0001__x0001__x0001__x0001__x0001__x0001__x0001__x0001__x0001__x0001__x0001__x0001__x0001__x0001__x0001__x0001__x0001__x0001__x0001__x0001__x0001__x0001__x0001__x0001__x0001__x0001__x0001__x0001__x0001__x0001__x0001__x0001__x0001__x0001__x0001__x0001__x0001__x0001__x0001__x0001__x0001__x0001__x0001__x0001__x0001__x0001__x0001__x0001__x0001__x0001__x0001__x0001__x0001__x0001__x0001__x0001__x0001__x0001__x0001__x0001__x0001__x0001__x0001__x0001__x0001__x0001__x0001__x0001__x0001__x0001__x0001__x0001__x0001__x0001__x0001__x0001__x0001__x0001__x0001__x0001__x0001__x0001__x0001__x0001__x0001__x0001__x0001__x0001__x0001__x0001__x0001__x0001__x0001__x0001__x0001__x0001__x0001__x0001__x0001__x0001__x0001__x0001__x0001__x0001__x0001__x0001__x0001__x0001__x0001__x0001__x0002__x0001__x0001__x0001__x0001__x0001__x0001__x0001__x0001__x0001__x0001__x0001__x0001__x0001__x0001__x0001__x0001__x0001__x0001__x0001__x0001__x0001__x0001__x0001__x0001__x0001__x0001__x0001__x0001__x0001__x0001__x0001__x0001__x0001__x0001__x0001__x0001__x0001__x0001__x0001__x0001__x0001__x0001__x0001__x0001__x0001__x0001__x0001__x0001__x0001__x0001__x0001__x0001__x0001__x0001__x0001__x0001__x0001__x0001__x0001__x0001__x0001__x0001__x0001__x0001__x0001__x0001__x0001__x0001__x0001__x0001__x0001__x0001__x0001__x0001__x0001__x0001__x0001__x0001__x0001__x0001__x0001__x0001__x0001__x0001__x0001__x0001__x0001__x0001__x0001__x0001__x0001__x0001__x0001__x0001__x0001__x0001__x0001__x0001__x0001__x0001__x0001__x0001__x0001__x0001__x0001__x0001__x0001__x0001__x0001__x0001__x0001__x0001__x0001__x0001__x0001__x0001__x0001__x0001__x0001__x0001__x0001__x0001__x0001__x0001__x0001__x0001__x0001__x0001__x0001__x0001__x0001__x0001__x0001__x0001__x0001__x0001__x0001__x0001__x0001__x0001__x0001__x0001__x0001__x0001__x0001__x0001__x0001__x0001__x0001__x0001__x0001__x0001__x0001__x0001__x0001__x0001__x0001__x0001__x0001__x0001__x0001__x0001__x0001__x0001__x0001__x0001__x0001__x0001__x0001__x0001__x0001__x0001__x0001__x0001__x0001__x0001__x0001__x0001__x0001__x0001__x0001__x0001__x0001__x0001__x0001__x0001__x0001__x0001__x0001__x0001__x0001__x0001__x0001__x0001__x0001__x0001__x0001__x0001__x0001__x0001__x0001__x0001__x0001__x0001__x0001__x0001__x0001__x0001__x0001__x0001__x0001__x0001__x0001__x0001__x0001__x0001__x0001__x0001__x0001__x0001__x0001__x0001__x0001__x0001__x0001__x0001__x0001__x0001__x0001__x0001__x0001__x0001__x0001__x0001__x0001__x0001__x0001__x0001__x0001__x0001__x0001__x0001__x0001__x0001__x0001__x0001__x0001__x0001__x0001__x0001__x0001__x0001__x0001__x0002__x0001__x0001__x0001__x0001__x0001__x0001__x0001__x0001__x0001__x0001__x0001__x0001__x0001__x0001__x0001__x0001__x0001__x0001__x0001__x0001__x0001__x0001__x0001__x0001__x0001__x0001__x0001__x0001__x0001__x0001__x0001__x0001__x0001__x0001__x0001__x0001__x0001__x0001__x0001__x0001__x0001__x0001__x0001__x0001__x0001__x0001__x0001__x0001__x0001__x0001__x0001__x0001__x0001__x0001__x0001__x0001__x0001__x0001__x0001__x0001__x0001__x0001__x0001__x0001__x0001__x0001__x0001__x0001__x0001__x0001__x00"}},{"$cut":{"chars":227148,"head":"5a04d038d64b3b0af37398dfcf339f87_x0001__x0002__x0001__x0001__x0001__x0001__x0001__x0001__x0001__x0001__x0001__x0001__x0001__x0001__x0001__x0001__x0001__x0001__x0001__x0001__x0001__x0001__x0001__x0001__x0001__x0001__x0001__x0001__x0001__x0001__x0001__x0001__x0001__x0001__x0001__x0001__x0001__x0001__x0001__x0001__x0001__x0001__x0001__x0001__x0001__x0001__x0001__x0001__x0001__x0001__x0001__x0001__x0001__x0001__x0001__x0001__x0001__x0001__x0001__x0001__x0001__x0001__x0001__x0001__x0001__x0001__x0001__x0001__x0001__x0001__x0001__x0001__x0001__x0001__x0001__x0001__x0001__x0001__x0001__x0001__x0001__x0001__x0001__x0001__x0001__x0001__x0001__x0001__x0001__x0001__x0001__x0001__x0001__x0001__x0001__x0001__x0001__x0001__x0001__x0001__x0001__x0001__x0001__x0001__x0001__x0001__x0001__x0001__x0001__x0001__x0001__x0001__x0001__x0001__x0001__x0001__x0001__x0001__x0001__x0001__x0001__x0001__x0001__x0001__x0001__x0001__x0001__x0001__x0001__x0001__x0001__x0001__x0001__x0001__x0001__x0001__x0001__x0001__x0001__x0001__x0001__x0001__x0001__x0001__x0001__x0001__x0001__x0001__x0001__x0001__x0001__x0001__x0001__x0001__x0001__x0001__x0001__x0001__x0001__x0001__x0001__x0001__x0001__x0001__x0001__x0001__x0001__x0001__x0001__x0001__x0001__x0001__x0001__x0001__x0001__x0001__x0001__x0001__x0001__x0001__x0001__x0001__x0001__x0001__x0001__x0001__x0001__x0001__x0001__x0001__x0001__x0001__x0001__x0001__x0001__x0001__x0001__x0001__x0001__x0001__x0001__x0001__x0001__x0001__x0001__x0001__x0001__x0001__x0001__x0001__x0001__x0001__x0001__x0001__x0001__x0001__x0001__x0001__x0001__x0001__x0001__x0001__x0001__x0001__x0001__x0001__x0001__x0001__x0001__x0001__x0001__x0001__x0001__x0001__x0001__x0001__x0001__x0001__x0001__x0001__x0001__x0001__x0001__x0001__x0001__x0001__x0001__x0001__x0001__x0001__x0001__x0001__x0001__x0001__x0001__x0002__x0001__x0001__x0001__x0001__x0001__x0001__x0001__x0001__x0001__x0001__x0001__x0001__x0001__x0001__x0001__x0001__x0001__x0001__x0001__x0001__x0001__x0001__x0001__x0001__x0001__x0001__x0001__x0001__x0001__x0001__x0001__x0001__x0001__x0001__x0001__x0001__x0001__x0001__x0001__x0001__x0001__x0001__x0001__x0001__x0001__x0001__x0001__x0001__x0001__x0001__x0001__x0001__x0001__x0001__x0001__x0001__x0001__x0001__x0001__x0001__x0001__x0001__x0001__x0001__x0001__x0001__x0001__x0001__x0001__x0001__x0001__x0001__x0001__x0001__x0001__x0001__x0001__x0001__x0001__x0001__x0001__x0001__x0001__x0001__x0001__x0001__x0001__x0001__x0001__x0001__x0001__x0001__x0001__x0001__x0001__x0001__x0001__x0001__x0001__x0001__x0001__x0001__x0001__x0001__x0001__x0001__x0001__x0001__x0001__x0001__x0001__x0001__x0001__x0001__x0001__x0001__x0001__x0001__x0001__x0001__x0001__x0001__x0001__x0001__x0001__x0001__x0001__x0001__x0001__x0001__x0001__x0001__x0001__x0001__x0001__x0001__x0001__x0001__x0001__x0001__x0001__x0001__x0001__x0001__x0001__x0001__x0001__x0001__x0001__x0001__x0001__x0001__x0001__x0001__x0001__x0001__x0001__x0001__x0001__x0001__x0001__x0001__x0001__x0001__x0001__x0001__x0001__x0001__x0001__x0001__x0001__x0001__x0001__x0001__x0001__x0001__x0001__x0001__x0001__x0001__x0001__x0001__x0001__x0001__x0001__x0001__x0001__x0001__x0001__x0001__x0001__x0001__x0001__x0001__x0001__x0001__x0001__x0001__x0001__x0001__x0001__x0001__x0001__x0001__x0001__x0001__x0001__x0001__x0001__x0001__x0001__x0001__x0001__x0001__x0001__x0001__x0001__x0001__x0001__x0001__x0001__x0001__x0001__x0001__x0001__x0001__x0001__x0001__x0001__x0001__x0001__x0001__x0001__x0001__x0001__x0001__x0001__x0001__x0001__x0001__x0001__x0001__x0001__x0001__x0001__x0001__x0001__x0001__x0001__x0001__x0001__x0001__x0001__x0002__x0001__x0001__x0001__x0001__x0001__x0001__x0001__x0001__x0001__x0001__x0001__x0001__x0001__x0001__x0001__x0001__x0001__x0001__x0001__x0001__x0001__x0001__x0001__x0001__x0001__x0001__x0001__x0001__x0001__x0001__x0001__x0001__x0001__x0001__x0001__x0001__x0001__x0001__x0001__x0001__x0001__x0001__x0001__x0001__x0001__x0001__x0001__x0001__x0001__x0001__x0001__x0001__x0001__x0001__x0001__x0001__x0001__x0001__x0001__x0001__x0001__x0001__x0001__x0001__x0001__x0001__x0001__x0001__x0001__x0001__x00"}},{"$cut":{"chars":226950,"head":"dedb5616de938f0cf36dbd16e23cb0d3_x0001__x0002__x0001__x0001__x0001__x0001__x0001__x0001__x0001__x0001__x0001__x0001__x0001__x0001__x0001__x0001__x0001__x0001__x0001__x0001__x0001__x0001__x0001__x0001__x0001__x0001__x0001__x0001__x0001__x0001__x0001__x0001__x0001__x0001__x0001__x0001__x0001__x0001__x0001__x0001__x0001__x0001__x0001__x0001__x0001__x0001__x0001__x0001__x0001__x0001__x0001__x0001__x0001__x0001__x0001__x0001__x0001__x0001__x0001__x0001__x0001__x0001__x0001__x0001__x0001__x0001__x0001__x0001__x0001__x0001__x0001__x0001__x0001__x0001__x0001__x0001__x0001__x0001__x0001__x0001__x0001__x0001__x0001__x0001__x0001__x0001__x0001__x0001__x0001__x0001__x0001__x0001__x0001__x0001__x0001__x0001__x0001__x0001__x0001__x0001__x0001__x0001__x0001__x0001__x0001__x0001__x0001__x0001__x0001__x0001__x0001__x0001__x0001__x0001__x0001__x0001__x0001__x0001__x0001__x0001__x0001__x0001__x0001__x0001__x0001__x0001__x0001__x0001__x0001__x0001__x0001__x0001__x0001__x0001__x0001__x0001__x0001__x0001__x0001__x0001__x0001__x0001__x0001__x0001__x0001__x0001__x0001__x0001__x0001__x0001__x0001__x0001__x0001__x0001__x0001__x0001__x0001__x0001__x0001__x0001__x0001__x0001__x0001__x0001__x0001__x0001__x0001__x0001__x0001__x0001__x0001__x0001__x0001__x0001__x0001__x0001__x0001__x0001__x0001__x0001__x0001__x0001__x0001__x0001__x0001__x0001__x0001__x0001__x0001__x0001__x0001__x0001__x0001__x0001__x0001__x0001__x0001__x0001__x0001__x0001__x0001__x0001__x0001__x0001__x0001__x0001__x0001__x0001__x0001__x0001__x0001__x0001__x0001__x0001__x0001__x0001__x0001__x0001__x0001__x0001__x0001__x0001__x0001__x0001__x0001__x0001__x0001__x0001__x0001__x0001__x0001__x0001__x0001__x0001__x0001__x0001__x0001__x0001__x0001__x0001__x0001__x0001__x0001__x0001__x0001__x0001__x0001__x0001__x0001__x0001__x0001__x0001__x0001__x0001__x0001__x0002__x0001__x0001__x0001__x0001__x0001__x0001__x0001__x0001__x0001__x0001__x0001__x0001__x0001__x0001__x0001__x0001__x0001__x0001__x0001__x0001__x0001__x0001__x0001__x0001__x0001__x0001__x0001__x0001__x0001__x0001__x0001__x0001__x0001__x0001__x0001__x0001__x0001__x0001__x0001__x0001__x0001__x0001__x0001__x0001__x0001__x0001__x0001__x0001__x0001__x0001__x0001__x0001__x0001__x0001__x0001__x0001__x0001__x0001__x0001__x0001__x0001__x0001__x0001__x0001__x0001__x0001__x0001__x0001__x0001__x0001__x0001__x0001__x0001__x0001__x0001__x0001__x0001__x0001__x0001__x0001__x0001__x0001__x0001__x0001__x0001__x0001__x0001__x0001__x0001__x0001__x0001__x0001__x0001__x0001__x0001__x0001__x0001__x0001__x0001__x0001__x0001__x0001__x0001__x0001__x0001__x0001__x0001__x0001__x0001__x0001__x0001__x0001__x0001__x0001__x0001__x0001__x0001__x0001__x0001__x0001__x0001__x0001__x0001__x0001__x0001__x0001__x0001__x0001__x0001__x0001__x0001__x0001__x0001__x0001__x0001__x0001__x0001__x0001__x0001__x0001__x0001__x0001__x0001__x0001__x0001__x0001__x0001__x0001__x0001__x0001__x0001__x0001__x0001__x0001__x0001__x0001__x0001__x0001__x0001__x0001__x0001_@\u008f@_x0001__x0001__x0001__x0001__x0001__x0001__x0001__x0001__x0001__x0001__x0001__x0001__x0001__x0001__x0001__x0001__x0001__x0001__x0001__x0001__x0001_@\u008f@_x0001__x0001__x0001__x0001__x0001__x0001__x0001__x0001__x0001__x0001__x0001__x0001__x0001__x0001__x0001__x0001__x0001__x0001__x0001__x0001__x0001__x0001__x0001__x0001__x0001__x0001__x0001__x0001__x0001__x0001__x0001__x0001__x0001__x0001__x0001__x0001__x0001__x0001__x0001__x0001__x0001__x0001__x0001__x0001__x0001__x0001__x0001__x0001__x0001__x0001__x0001__x0001__x0001__x0001__x0001__x0001__x0001__x0001__x0001__x0001__x0001__x0001__x0001__x0001__x0001__x0002__x0001__x0001__x0001__x0001__x0001__x0001__x0001__x0001__x0001__x0001__x0001__x0001__x0001__x0001__x0001__x0001__x0001__x0001__x0001__x0001__x0001__x0001__x0001__x0001__x0001__x0001__x0001__x0001__x0001__x0001__x0001__x0001__x0001__x0001__x0001__x0001__x0001__x0001__x0001__x0001__x0001__x0001__x0001__x0001__x0001__x0001__x0001__x0001__x0001__x0001__x0001__x0001__x0001__x0001__x0001__x0001__x0001__x0001__x0001__x0001__x0001__x0001__x0001__x0001__x0001__x0001__x0001__x0001__x0001__x0001__x0001__x0001__x0001__x0001__x0001__x000"}},{"$cut":{"chars":225558,"head":"9bef7867b635eb117f7a9929203af533_x0001__x0002__x0001__x0001__x0001__x0001__x0001__x0001__x0001__x0001__x0001__x0001__x0001__x0001__x0001__x0001__x0001__x0001__x0001__x0001__x0001__x0001__x0001__x0001__x0001__x0001__x0001__x0001__x0001__x0001__x0001__x0001__x0001__x0001__x0001__x0001__x0001__x0001__x0001__x0001__x0001__x0001__x0001__x0001__x0001__x0001__x0001__x0001__x0001__x0001__x0001__x0001__x0001__x0001__x0001__x0001__x0001__x0001__x0001__x0001__x0001__x0001__x0001__x0001__x0001__x0001__x0001__x0001__x0001__x0001__x0001__x0001__x0001__x0001__x0001__x0001__x0001__x0001__x0001__x0001__x0001__x0001__x0001__x0001__x0001__x0001__x0001__x0001__x0001__x0001__x0001__x0001__x0001__x0001__x0001__x0001__x0001__x0001__x0001__x0001__x0001__x0001__x0001__x0001__x0001__x0001__x0001__x0001__x0001__x0001__x0001__x0001__x0001__x0001__x0001__x0001__x0001__x0001__x0001__x0001__x0001__x0001__x0001__x0001__x0001__x0001__x0001__x0001__x0001__x0001__x0001__x0001__x0001__x0001__x0001__x0001__x0001__x0001__x0001__x0001__x0001__x0001__x0001__x0001__x0001__x0001__x0001__x0001__x0001__x0001__x0001__x0001__x0001__x0001__x0001__x0001__x0001__x0001__x0001__x0001__x0001__x0001__x0001__x0001__x0001__x0001__x0001__x0001__x0001__x0001__x0001__x0001__x0001__x0001__x0001__x0001__x0001__x0001__x0001__x0001__x0001__x0001__x0001__x0001__x0001__x0001__x0001__x0001__x0001__x0001__x0001__x0001__x0001__x0001__x0001__x0001__x0001__x0001__x0001__x0001__x0001__x0001__x0001__x0001__x0001__x0001__x0001__x0001__x0001__x0001__x0001__x0001__x0001__x0001__x0001__x0001__x0001__x0001__x0001__x0001__x0001__x0001__x0001__x0001__x0001__x0001__x0001__x0001__x0001__x0001__x0001__x0001__x0001__x0001__x0001__x0001__x0001__x0001__x0001__x0001__x0001__x0001__x0001__x0001__x0001__x0001__x0001__x0001__x0001__x0001__x0001__x0001__x0001__x0001__x0001__x0002__x0001__x0001__x0001__x0001__x0001__x0001__x0001__x0001__x0001__x0001__x0001__x0001__x0001__x0001__x0001__x0001__x0001__x0001__x0001__x0001__x0001__x0001__x0001__x0001__x0001__x0001__x0001__x0001__x0001__x0001__x0001__x0001__x0001__x0001__x0001__x0001__x0001__x0001__x0001__x0001__x0001__x0001__x0001__x0001__x0001__x0001__x0001__x0001__x0001__x0001__x0001__x0001__x0001__x0001__x0001__x0001__x0001__x0001__x0001__x0001__x0001__x0001__x0001__x0001__x0001_@\u008f@_x0001__x0001__x0001__x0001__x0001__x0001__x0001__x0001__x0001__x0001__x0001__x0001__x0001__x0001__x0001__x0001__x0001__x0001__x0001__x0001__x0001__x0001__x0001__x0001__x0001__x0001__x0001__x0001__x0001__x0001__x0001__x0001__x0001__x0001__x0001__x0001__x0001__x0001__x0001__x0001__x0001__x0001__x0001__x0001__x0001__x0001__x0001__x0001__x0001__x0001__x0001__x0001__x0001__x0001__x0001__x0001__x0001__x0001__x0001__x0001__x0001__x0001__x0001__x0001__x0001__x0001__x0001__x0001__x0001__x0001__x0001__x0001__x0001__x0001__x0001__x0001__x0001__x0001__x0001__x0001__x0001__x0001__x0001__x0001__x0001__x0001__x0001__x0001__x0001__x0001__x0001__x0001__x0001__x0001__x0001__x0001__x0001__x0001__x0001__x0001__x0001__x0001__x0001__x0001__x0001__x0001__x0001__x0001__x0001__x0001__x0001__x0001__x0001__x0001__x0001__x0001__x0001__x0001__x0001__x0001__x0001__x0001__x0001__x0001__x0001__x0001__x0001__x0001__x0001__x0001__x0001__x0001__x0001__x0001__x0001__x0001__x0001__x0001__x0001__x0001__x0001__x0001__x0001__x0001__x0001__x0001__x0001__x0001__x0001__x0001__x0001__x0001__x0001__x0001__x0001__x0001__x0001__x0001__x0001__x0001__x0001__x0001__x0001__x0001__x0001__x0001__x0001__x0001__x0001__x0001__x0001__x0001__x0001__x0001__x0001__x0001__x0001__x0001__x0001__x0001__x0001__x0001__x0001__x0001__x0001__x0002__x0001__x0001__x0001__x0001__x0001__x0001__x0001__x0001__x0001__x0001__x0001__x0001__x0001__x0001__x0001__x0001__x0001__x0001__x0001__x0001__x0001__x0001__x0001__x0001__x0001__x0001__x0001__x0001__x0001__x0001__x0001__x0001__x0001__x0001__x0001__x0001__x0001__x0001__x0001__x0001__x0001__x0001__x0001__x0001__x0001__x0001__x0001__x0001__x0001__x0001__x0001__x0001__x0001__x0001__x0001__x0001__x0001__x0001__x0001__x0001__x0001__x0001__x0001__x0001__x0001__x0001__x0001__x0001__x0001__x0001__x0001__x0001__x0001__"}},{"$cut":{"chars":87996,"head":"60b184380b9d86c35784573a8e69fbc9_x0001__x0002__x0001__x0001__x0001__x0001__x0001__x0001__x0001__x0001__x0001__x0001__x0001__x0001__x0001__x0001__x0001__x0001__x0001__x0001__x0001__x0001__x0001__x0001__x0001__x0001__x0001__x0001__x0001__x0001__x0001__x0001__x0001__x0001__x0001__x0001__x0001__x0001__x0001__x0001__x0001__x0001__x0001__x0001__x0001__x0001__x0001__x0001__x0001__x0001__x0001__x0001__x0001__x0001__x0001__x0001__x0001__x0001__x0001__x0001__x0001__x0001__x0001__x0001__x0001__x0001__x0001__x0001__x0001__x0001__x0001__x0001__x0001__x0001__x0001__x0001__x0001__x0001__x0001__x0001__x0001__x0001__x0001__x0001__x0001__x0001__x0001__x0001__x0001__x0001__x0001__x0001__x0001__x0001__x0001__x0001__x0001__x0001__x0001__x0001__x0001__x0001__x0001__x0001__x0001__x0001__x0001__x0001__x0001__x0001__x0001__x0001__x0001__x0001__x0001__x0001__x0001__x0001__x0001__x0001__x0001__x0001__x0001__x0001__x0001__x0001__x0001__x0001__x0001__x0001__x0001__x0001__x0001__x0001__x0001__x0001__x0001__x0001__x0001__x0001__x0001__x0001__x0001__x0001__x0001__x0001__x0001__x0001__x0001__x0001__x0001__x0001__x0001__x0001__x0001__x0001__x0001__x0001__x0001__x0001__x0001__x0001__x0001__x0001__x0001__x0001__x0001__x0001__x0001__x0001__x0001__x0001__x0001__x0001__x0001__x0001__x0001__x0001__x0001__x0001__x0001__x0001__x0001__x0001__x0001__x0001__x0001__x0001__x0001__x0001__x0001__x0001__x0001__x0001__x0001__x0001__x0001__x0001__x0001__x0001__x0001__x0001__x0001__x0001__x0001__x0001__x0001__x0001__x0001__x0001__x0001__x0001__x0001__x0001__x0001__x0001__x0001__x0001__x0001__x0001__x0001__x0001__x0001__x0001__x0001__x0001__x0001__x0001__x0001__x0001__x0001__x0001__x0001__x0001__x0001__x0001__x0001__x0001__x0001__x0001__x0001__x0001__x0001__x0001__x0001__x0001__x0001__x0001__x0001__x0001__x0001__x0001__x0001__x0001__x0001__x0002__x0001__x0001__x0001__x0001__x0001__x0001__x0001__x0001__x0001__x0001__x0001__x0001__x0001__x0001__x0001__x0001__x0001__x0001__x0001__x0001__x0001__x0001__x0001__x0001__x0001__x0001__x0001__x0001__x0001__x0001__x0001__x0001__x0001__x0001__x0001__x0001__x0001__x0001__x0001__x0001__x0001__x0001__x0001__x0001__x0001__x0001__x0001__x0001__x0001__x0001__x0001__x0001__x0001__x0001__x0001__x0001__x0001__x0001__x0001__x0001__x0001__x0001__x0001__x0001__x0001__x0001__x0001__x0001__x0001__x0001__x0001__x0001__x0001__x0001__x0001__x0001__x0001__x0001__x0001__x0001__x0001__x0001__x0001__x0001__x0001__x0001__x0001__x0001__x0001__x0001__x0001__x0001__x0001__x0001__x0001__x0001__x0001__x0001__x0001__x0001__x0001__x0001__x0001__x0001__x0001__x0001__x0001__x0001__x0001__x0001__x0001__x0001__x0001_@\u008f@_x0001__x0001__x0001__x0001__x0001__x0001__x0001__x0001__x0001__x0001__x0001__x0001__x0001__x0001__x0001__x0001__x0001__x0001__x0001__x0001__x0001__x0001__x0001__x0001__x0001__x0001__x0001__x0001__x0001__x0001__x0001__x0001__x0001__x0001__x0001__x0001__x0001__x0001__x0001__x0001__x0001__x0001__x0001__x0001__x0001__x0001__x0001__x0001__x0001__x0001__x0001__x0001__x0001__x0001__x0001__x0001__x0001__x0001__x0001__x0001__x0001__x0001__x0001__x0001__x0001__x0001__x0001__x0001__x0001__x0001__x0001__x0001__x0001__x0001__x0001__x0001__x0001__x0001__x0001__x0001__x0001__x0001__x0001__x0001__x0001__x0001__x0001__x0001__x0001__x0001__x0001__x0001__x0001__x0001__x0001__x0001__x0001__x0001__x0001__x0001__x0001__x0001__x0001__x0001__x0001__x0001__x0001__x0001__x0001__x0001__x0001__x0001__x0001__x0001__x0001__x0001__x0001__x0001__x0001__x0001__x0001__x0001__x0001__x0001__x0001_@\u008f@_x0001__x0001__x0001__x0001__x0001__x0001__x0001__x0001__x0001__x0002__x0001__x0001__x0001__x0001__x0001__x0001__x0001__x0001__x0001__x0001__x0001__x0001__x0001__x0001__x0001__x0001__x0001__x0001__x0001__x0001__x0001_@\u008f@_x0001__x0001__x0001__x0001__x0001__x0001__x0001__x0001__x0001__x0001__x0001__x0001__x0001__x0001__x0001__x0001__x0001__x0001__x0001__x0001__x0001__x0001__x0001__x0001__x0001__x0001__x0001__x0001__x0001__x0001__x0001__x0001__x0001__x0001__x0001__x0001__x0001__x0001__x0001__x0001__x0001__x0001__x0001__x0001__x0001__x0001__x0001__x0001__x0001__x0001__x0001__x0001__x0001__x0001__x"}},{"$cut":{"chars":74472,"head":"a449c4763335b1f9eb5a775e0e06babd_x0003__x0004_p\u008e_x0018_ÝeÉ_x0010_A¸_x001A_\u0097¼o­_x0010_A4Ó9¶Ly_x0010_AY\u009fW³Ox_x0010_A_x0007__x0017_e`¸U_x0010_A\u008d\u008f®7!\u0084_x0010_A·½{é_x0014_¬_x0010_AM_x0010_ó\u0085G,_x0010_A­Ù_x001D_R^|_x0010_A_x001D_-¼¯\u0080d_x0010_A6à\u0096\u0082½\u0093_x0010_Aö \u0099\u008cid_x0010_Af¼ß!ñ¨_x0010_A)D¿ê_x0014_\u0093_x0010_AðÀM\u0094Ýg_x0010_A¬Ûò:_x001E_\u0094_x0010_Aéý(Ö\"|_x0010_A_x0001_c\u008beÍ¶_x0010_A]ãNùìz_x0010_Aß´5&^¥_x0010_Aá_x000F__x000E__x0002_Ib_x0010_AçÒù!-\u0080_x0010_Ag\u0081_x0015_Å$\u0086_x0010_A_x000D_á\u00963«8_x0010_A|®4\u0089\u0089D_x0010_A_k¨¸¤U_x0010_A_x001C_+¡\u009e]\u0091_x0010_Aª¬DV 7_x0010_Ai¥êà_x0018_\u0087_x0010_AèD¤A®\u0085_x0010_Aº\u008bµz~J_x0010_A\u0091ùÿF_x0002__x0003_ê\u0081_x0010_A\u0094\u0086Ì_x001A_<`_x0010_A(\u0097_x001E_\u0097¤d_x0010_A\u0081«ï_x0001_ÌI_x0010_A$ã\u008d\u009cüI_x0010_AaÆ_x0003_2È3_x0010_A0_x0014_\u0088_x0012_\u0080I_x0010_An;a§ùj_x0010_AH_x001D_nê\u008fN_x0010_AÝ|@Ô25_x0010_Aï\u008bÛÖÕ½_x0010_AH:1ó~\u0087_x0010_A¶XÖ\u0093ºe_x0010_Au!êÆÄÏ_x0010_A\u0095J>¤O¬_x0010_A_x000C_¥¨a.\u0088_x0010_An_x0002__x001A_B\u0086 _x0010_Aªc_x001E_\u0084\u0080`_x0010_A_x000B_\u0083>;E\u0083_x0010_A_x0016_\u0081Îè;\u0088_x0010_Aö\u0090§:A\u0086_x0010_A;\u0095çj9U_x0010_A·\u008f_x0018_Jþ}_x0010_Aç_x0017__x000C_ð_x000B_´_x0010_Aè\u0097õ|_x000F_\u0086_x0010_A\u009c&_x0018_E)¼_x0010_A¤%¹\u0085Á2_x0010_A{/_x0001_H³>_x0010_AÈ\u0096FÐ_x0011_\u008a_x0010_Ag_x001D__x0012_åÎC_x0010_A7_x000D__x0013_Àÿ\u008a_x0010_A\u008d$×¯x\u0084_x0010_A_x0001__x0003_õÑ Î\u008c\u009e_x0010_AsÅr Û:_x0010_AT_x0017_KÄ÷]_x0010_A_x0018_ðõ A³_x0010_A_x001C_%ÿ\u0081sI_x0010_A·VòvÍ~_x0010_Aß[_x0013_\u007f8G_x0010_A_x001C_´ÙåZ\u0081_x0010_A·³_x0001_%é`_x0010_Ay~\u0097¼z\u008d_x0010_A\u0092IN½\u0090\u009a_x0010_At·$_x001C__x0011_L_x0010_A\u0094_x000E_ßóï\u0093_x0010_A·\u0097ò9$°_x0010_A9TlôßÇ_x0010_A+?[ÿú\u0099_x0010_A6Ävy÷\u0080_x0010_AYS>ïNÄ_x0010_A_x000D_\u008fÒ\u0090\u0092s_x0010_Aí_x001B_2Ã_x000E_\u0082_x0010_Aú_x000F_\u0088t9\u0093_x0010_A@\u008fÿù²O_x0010_Au¤\u008fãc°_x0010_A5ó5*\u00826_x0010_AÃ¨Ï\u0090z\u0087_x0010_AÅ\u009d\u008c\u0093îh_x0010_AgÑUÀ¡\u009f_x0010_A)$þç_x000C_A_x0010_AÃ¾\u009eLÇc_x0010_AsÎ_x0017_;2q_x0010_A\u00898çÌ\u007fL_x0010_A¡_x0002_]­_x0001__x0002_$È_x0010_AÈqMó7\u0086_x0010_AU_x0008_Ðó[M_x0010_A!_x0001__x0010_:\u008d\u0080_x0010_A»\u0083í*Õ2_x0010_AW_x000E_ïÃ¨±_x0010_Ahèºü6¡_x0010_A_x000F_%â¦I{_x0010_A6ê|\u0087©z_x0010_AW\u0091\u0094]¥G_x0010_A_x001E_\u008f T}j_x0010_A\u0092Ü>Z3k_x0010_AÐæÅ2ãn_x0010_AÜ=AÀ_x0001_B_x0010_A\tvuv·\u008a_x0010_Ao¹\u0087\u008f\u0084~_x0010_AÏ¸ÏÜ\u0099\u007f_x0010_A\\À\u0093(N__x0010_A?\u0089ü´(\u0096_x0010_AOWH½ª\u0087_x0010_A½îÈÝ5Â_x0010_AêcI¾V\u0093_x0010_A«_x001F_ Àêq_x0010_A__x000B_FS5\u0080_x0010_AúÂ2:;Ã_x0010_AQæt\u009a¸\u009b_x0010_AÁo_x001C_0's_x0010_A\u009f\u008cQÃtg_x0010_AøD_x0016_·ªm_x0010_AOä_x0010_qè¡_x0010_Aû¦UÒ_x0015_l_x0010_A´µy_x001D_Á{_x0010_A_x0001__x0002_'_x0002_vðcn_x0010_A×Þ%_x0011__x001A_f_x0010_A\u0090\u0094_x0002__x0011_\u0098~_x0010_A/¾%áW·_x0010_Aá\u0086_x001B_\u0085._x001E__x0010_AHó§ösf_x0010_AÄP_x001C_\u0096\u00909_x0010_A©_x001E__x000B_6/t_x0010_A÷\u0095µqoZ_x0010_Aíà¯üì\u008d_x0010_A_x000B_ì\u0087=Aw_x0010_A©#_x0005_¢Þ\u0085_x0010_A_x0005_rAjÚM_x0010_A³)v_x0014_ª´_x0010_At_x000F__x0019_]!=_x0010_A*_x0011_§_x001E_¬{_x0010_A4u3²q\u009c_x0010_A_x0007_î/K\u0088\u0090_x0010_A\u007f\u0094×1U3_x0010_AZÚ\u0093r\u0091&_x0010_AÄ&¼(_x0015_\u0088_x0010_Apv\u0088w_x0014_S_x0010_ATÇ­_x001A_­d_x0010_A÷_x000D_K#é£_x0010_AcÛ_x001F_®x|_x0010_A®Ð4\u0089p¯_x0010_A¤é_x0004_y\u009eP_x0010_A%²;._Ç_x0010_AsÿÎïñ\u0090_x0010_A\u0087£lï\u0080c_x0010_Aq­_x000B_ó_x0005_\u0094_x0010_AÆ\u008a«_x0010__x0002__x0005_ Y_x0010_A×\u009a>·«h_x0010_AÚë«6Rª_x0010_AÅ°\u0086ZrP_x0010_AÖY\u008e\u0095§J_x0010_A\u0097Ê±ÿàk_x0010_A_x0016_Ph¿\u0090º_x0010_A¿^9\u008dOL_x0010_A_x001C_\u0097Ò§\u0098X_x0010_AC°;4jL_x0010_A\u0092ï`4¯\u0086_x0010_A\u0090HÕ¾_x0001_H_x0010_Aas\u009fýÀ\u008f_x0010_A_x000F_7(x_x000D_\u008e_x0010_Aª_x0007_3®ús_x0010_A¤ã­\u0088(i_x0010_A^\u009b`îÝ\u0098_x0010_A( îãöV_x0010_Að¦Á^_x0004_z_x0010_A\u008d÷X`å¥_x0010_AwÂP_x001E_&\u0087_x0010_AÍâ\u007f\u009a_x001B_j_x0010_AÏéYHas_x0010_AýZ\u0088_x000D_XT_x0010_Ads¡_x0011_KT_x0010_AMItÑfC_x0010_AO_x0015_Yþô?_x0010_A%'L\u0080_x0017_m_x0010_AÙÃ_x001D_ÎQi_x0010_A_x0016_}ÄÌ\u0086W_x0010_Ah£«ý¥¼_x0010_A+\u0081Í_x0003_Z]_x0010_A_x0001__x0003_â_x001C_Y\u0088_x001E_V_x0010_AüyH_x0002_Ñd_x0010_A_x001A_\u009cÁ&\u009eQ_x0010_AÓÊÜp|¨_x0010_A\u0097[\u0083_x0006__x0005_¦_x0010_Ax_ñ[\u0081¶_x0010_Aã©bÏùt_x0010_A_x0018_K\u0086a_x0015_s_x0010_Aþú{¯lª_x0010_A3ÔÙ\u0093}G_x0010_AG%s|ÍM_x0010_AúÌKÜÄ\u0088_x0010_A°êchmk_x0010_A_x000C_h\u008aYËV_x0010_A$&_x001F_ï_x000E_q_x0010_A_x0004_R_x0012_Ûh_x0016__x0010_A:û\u0091Ìª®_x0010_A\\¶\u0080\u009597_x0010_AëÄ\u008aÉãr_x0010_AE5f¾Þ\u008e_x0010_AH0\u0091±»u_x0010_A¾LoäÁ\u0082_x0010_A0áåÊ.T_x0010_A\u0097*ÅàÛs_x0010_A\u0094F{I G_x0010_A\u0084_x000F_Ìk_x000E_*_x0010_A´j_x0019_³_x0007_D_x0010_A_x001A_;_x0006_%\u009eq_x0010_AÏ_x0011_Å÷î4_x0010_AD_x0006_ Ûõ5_x0010_A¯w \u0091²z_x0010_A=+5ò_x0004__x0007_\"³_x0010_A_x0005_\"õ_x0008_ú._x0010"}},{"$cut":{"chars":59328,"head":"f52251e56ed0a32099c1042f32443d0c_x0004__x0005_ÙL%\u009f¤j_x0010_A¡¦äÜ\u0092d_x0010_A¶¨Ãj\u0085;_x0010_AD-\u0084Uk\u009e_x0010_AÔ_x0017_A'ZÐ_x0010_AnÞáD\u0097h_x0010_Aª_x0003_NU\u0080\u0083_x0010_Aº_x000D_¬õ\u0094\u0082_x0010_AEÉ\u008d9.Æ_x0010_A+hël_x0015_Z_x0010_AkLÇu\\§_x0010_A\u009e6oá_x001F_x_x0010_A\u00827]Ttk_x0010_AB_x000F_szÂc_x0010_Aª÷Ù@_x000F_o_x0010_Aã~\u0086F¥N_x0010_AÔ¬G[_x0016_4_x0010_A(Äð_x0012_\u009a3_x0010_Añ\u009e²âþ¢_x0010_Ak_x0010_«\u0094Ô#_x0010_A]² Ø¦\u0095_x0010_A_x0001_ \u0097Ko\\_x0010_A%M\u0081do\u009b_x0010_AuÙû\t\u009d¢_x0010_A_x0002__x0006_BSå\u0082_x0010_AM_x0007_\u009d_x0017_\u009bV_x0010_AY9_x000B__\u0099W_x0010_AÝã\u0082r+¯_x0010_A\u00845÷ã¹±_x0010_AèKÐ\u0093N¢_x0010_A\u0085½-8à©_x0010_A¥_x000F_O_x0013__x000B__x000E_w§_x0010_A?_x0017_VðqJ_x0010_A\u009f\t_x0016_´z\u0089_x0010_A²_x0007_zuÇ\u0097_x0010_AElS\u009eëc_x0010_AsÚ²\u0082qQ_x0010_A\u009bñ¨\u0083¶@_x0010_A_x0001_ZX:»Q_x0010_A¥¯IZs\\_x0010_A_x000F_&Ã6à\u0092_x0010_A]xyÀÃO_x0010_AÄ\u008dÛ\u0081Üw_x0010_AW\u0083Ê!Á°_x0010_AM_x0001_\u0093Grx_x0010_Aò]Õ!ì\u0081_x0010_AQ\u008e_x0008_®_x0014_[_x0010_A!fáãÈ¨_x0010_A\t\u0092Ki\u0087m_x0010_ADÒW_x0003_T{_x0010_Aº_x0013_Ûì¡Y_x0010_AÐa#8T¬_x0010_A\u008b_x0007_o\u009e~\u0087_x0010_A_x0004_WÖ Vv_x0010_A9ÿå_x000C_Þ\u008b_x0010_A_x0006_àß _x001A_'_x0010_A\u0081Ý\u008fí\u009eM_x0010_A_x0005_?½#¥\u0086_x0010_A8\u0083è_x000B__x0018_\u0087_x0010_Añ³\u0096_x0002_þe_x0010_AR\u009eæÉîw_x0010_A»Ö_x000D_=ìZ_x0010_AÙ\u008f ¬³W_x0010_A_x0002__x0003_ó_x0012_\u0091bQn_x0010_A>@~\u009emÈ_x0010_A\u0093_x0006_\u009d,û²_x0010_AnßDÉ\u0099I_x0010_A\u008cR£êID_x0010_AÉh]%§r_x0010_Al¬_x001C_ï÷v_x0010_A è¼_x0006_¸G_x0010_AK_x0001_\u0082_x0008_q\u008d_x0010_A\u00862î_x0001_=¸_x0010_Ac_x0017_âcÉu_x0010_A+ö+ÚDy_x0010_A\u0084d1å¸N_x0010_AoZ_x0006_å\u0087\u007f_x0010_A7_x000E_;taZ_x0010_Aý\u008adÆë\u0089_x0010_A\u0080b\u008f(f¤_x0010_AÃ­ù|7\u008a_x0010_AÛN\u008c>¬\u0098_x0010_A\u0083_x000B_ìÚðe_x0010_A72\u0080Qn\u0094_x0010_A\u008bî\u0087B;¥_x0010_AúitÜÞU_x0010_A¡(¼\u008d_x001E_\u007f_x0010_A\tÃ°?¶\u0095_x0010_AAá\u009c8þc_x0010_A\u0095T\u0087­é\u008e_x0010_A/\u009b5Q¯=_x0010_A*Ô­U\u0088r_x0010_AC!8ê7\u008b_x0010_AJ_x0006_pa\u0094u_x0010_A¹\u0084p\u009f_x0004__x0005_!t_x0010_Ad÷À_x000E__x0003_z_x0010_AYÝ²ôèª_x0010_A¹óZ\u008b\u0085N_x0010_Aì9_x001B_É\u009f\u0096_x0010_AXº@õä\u0083_x0010_A%³I(Ô\u009f_x0010_AÄ\u008eN'kS_x0010_AªîzÒlm_x0010_A_x0006_^`_x0018__x000F_\u009d_x0010_A¹_x0013_Ö~eG_x0010_AJ_x0015_mì¼M_x0010_A.KñMPw_x0010_AáÛ_x000D_3À;_x0010_AÏñ_x0005_t\\W_x0010_A§Q\u0086³cj_x0010_A>XHÚ|u_x0010_Ax_x000B_\u0093\u0099úh_x0010_A7£×)ß|_x0010_AL_x0001_\u0097_x0013_·d_x0010_A±_x0002_aÃ³©_x0010_A5½\u009eøÛ§_x0010_A_x0003_\u008c¤u_x0006_¶_x0010_A¾\u0094ÐïFG_x0010_A_x0007_ã\u0091Óm\u0088_x0010_A@æ\u0084¬û_x0018__x0010_A\u0080_x0006_ ×Gx_x0010_A¶1¼_x0014_·__x0010_AÒï_x0013_æÙ\u0089_x0010_A»K´\u0087z\u008e_x0010_A\u009f}³q\u0086\u0082_x0010_ACg_x0015_ª¹Á_x0010_A_x0002__x0003_ö\u008eóc¨\u008d_x0010_ASm².hs_x0010_AX\u0086jÏ_x001F_T_x0010_Ar_x0005_fB¿u_x0010_A\u00862_x0012_g>G_x0010_AQê3¹\u0099L_x0010_A\u0083îCMb@_x0010_A\u008cPË_x001F_\u008aT_x0010_A\"aº+%\u0082_x0010_AÈ\u0096Ó±,\u0085_x0010_AÌ_x0012_ZE_x0007_§_x0010_Ay@_x000C_à£Q_x0010_A_x0016_ï)b²]_x0010_A/ÍZOp+_x0010_Aý\u009cÂ3C©_x0010_A\u0095²*»_i_x0010_A¬g#ävZ_x0010_A®\u008e¹:é\u008f_x0010_AZ,f\u0093Í<_x0010_A¬Á6\u0096_x0001_'_x0010_A8=_x0013_õ_x001F_|_x0010_A-\u0082LEêB_x0010_AáP\u0082µ\u009fg_x0010_AÀ}\u0097m\u008es_x0010_A\u0085Ç\u0096É_x001B_¦_x0010_Að_x0017_£\u0086_x0007_0_x0010_A\u0095ë_x0005__x000B_ï®_x0010_AoÅpóa{_x0010_A³_x0008_\u0092¿\u0085\u0088_x0010_AúáµaëP_x0010_A2y6HÃµ_x0010_Aj@©_x0018__x0001__x0003_aR_x0010_A _x001F_á\u0087ß\u0094_x0010_A0x\u0096²Ùt_x0010_A6ZþP»}_x0010_AÌ^fà^\u0084_x0010_Aú¯\u0096sÉ?_x0010_Ar_x0018_\u0097_x0004_¦P_x0010_AºêÔ_x0008_×i_x0010_ArË\u0087©I«_x0010_A\u0085T_x001E_Nïg_x0010_Ayß§_x0016_\u0092^_x0010_A{@õ_x0003_ÇÉ_x0010_Aö_x0013__x0002_¸_x001B_\u0085_x0010_Aª½³_x0012__x000C_H_x0010_A_x0004_ì®ÿÌ«_x0010_A`8?ç</_x0010_A\u0097ÂÀ\u0092_x0016_3_x0010_AW¦½\u0082£¬_x0010_A\u0097C\u0091\u008fL`_x0010_AÄ_x000C_¡j_x000E_3_x0010_A_x0012_?³r\u009d\u0099_x0010_A¬òò;Ö2_x0010_AA-µr_x0006_¥_x0010_AnA\u0096 \u0084\u0094_x0010_Aõó;³\u0080«_x0010_A«hC_¼~_x0010_A¤\u009e}\u0093~O_x0010_Ab¦\\H\u0098;_x0010_A¤§\u009dK¤É_x0010_A\u0090\u007f\"Ü_x0013_Ä_x0010_A0\u008c²hà\u0099_x0010_A_x0013_~¬Lá`_x0010_A_x0001__x0002_©èM?^¬_x0010_A\u0098ëR\u009b\u0094¦_x0010_AðH\\ð´X_x0010_Aë_[á\u0083@_x0010_AoÀ_x0012__x001D_A~_x0010_AbÐ_x0014_/©t_x0010_AíHñ§Ðl_x0010_A\u0080-_x0005_éfF_x0010_Aä¥äÿÅ\u0084_x0010_A__x0008_;u­m_x0010_AX/~¦µA_x0010_A\u009aÿ(:ÜM_x0010_A¾àr2oD_x0010_AýÐP]ä8_x0010_A4 _x0015__x000C_Úd_x0010_A\t_x001F__x0004_×ñ\u009d_x0010_AÎJ¸_x001C_´\u008c_x0010_A<Cç\u008f_x0011_v_x0010_A\u0082_x0011__x0018_°\u00960_x0010_Aþ5Ü\u0083ÖJ_x0010_Aô[0;¹\u0098_x0010_Aëdß\u008c_x001E_|_x0010_A\u0097iàE@a_x0010_Aá°ow%q_x0010_AÜìþ_x0019_6¹_x0010_A2;³åÅ0_x0010_AC@_x000B_â\u0091Y_x0010_A5>8\u008f_x0018_%_x0010_A±ÊÔYÔ\u0096_x0010_Aj%%Zó_x001C__x0010_A#)³_x0005_\u0094v_x0010_AgIWÉ_x0004__x0007_ül_x0010_A_x001E_cåi_x001E_\u008e_x0010_A_x0010__x001C_*E¼\u008a_x0010_AãúKt§\u0089_x0010_Ad6DþÌm_x0010"}},{"$cut":{"chars":39840,"head":"235c74142752091b60866a46669bb823_x0001__x0005_Ñ_x0014_XÍ9n A|¹êÕû\u0086 ASóðÒ)\u008d AJ=Vßå[ AO1E\"«^ Aµl~_¬° AHGà_x001E__x0005_\u0096 A\u0081_x001C_½åWl AWk\u009f§Ë\u008c A:ÊtÉx[ Aö¦sÝªp A&_x000F_¼£\u0099\u0089 A\u0086\u0093ÚiÕt AX$­._x0007_\u0083 AW_x0002_ó¯\u0099a AåuHÛå\u008f Aªo\t_x0008_â¥ AM_x0004_õ\u008bä\u008f A\u009cö¶¬öH A®³ÁSF\u008c A\\\u008b¶\u0094G\u009e A/ÂµË>\u0088 A¶áße-\u009f A_x0016_U·/_x0006_| Af\u007fð_x0003_&\u009d Ao×\\w¯} AÈ+~;:| A\u0084ø\u008cÂ»° A\u0082å\\Ì»K AL±¸àS\u0094 Al,Ä29\u008b A¢óÑq_x0003__x0004_²v Af­YR\u0091\u0080 A&<x\u009d·> Am/ë¼\u0095H A_x001B_íº_x000D_´\u0082 A_x0008_Ø_x0003_®_x0012_c A[ÇV\u009b8k A_x0016_\u0084yÔ\u009f\u008e AL\u0082Ó¡,\u0098 A')º_x0016__x001C_\u0091 A#&Èqó\u009d AÆ©º¶_x0016_\u0089 A(ª`_x000B_¾\u009a A2L_x001E__x0002__x0013_S A_x0006_¦©O_x0003_\u0096 AwZè\u008e:K AN\u0091Ç\u0096Âs A\u009aM ,*| AÐjÕf_x0007_h A_x000E_}8à\u009cY A_x0018_9Éç_x0001_a ADY¿ÔÍc AËè¼_x0001_o{ AïªÎèJ² Aa_x0015_\u008d,O§ AòôOÓ_x001C_u A_x000E_C®{Ëe A_x0017_¥ñ^[  Aö_x0015_¥&³\u009a A  1\tcA Aó_x000F_ôS_x0005_Q AæÚ¼%£J A_x0001__x0003_\u0090:\u009c»s\u0095 AÂ¨¡Ý1a Ae÷'÷1o A_x001E_:¸^ÖF AÙèÞjwo Ah\u0088gmï] AºÁ_x000F_\u0080_x0007_w AÃûäÝÜ\u008b AñÂÍ«Èr AqJ\u0093ûT\u0081 AHõk\u008e \u009a AaÎ÷_x0014_ { AX>iÌH¬ A_x001A__x0014_wEg\u009f AéêXÙÓe A _x000E_Ù 4k A_x000C_­_x001E_\u0090ì\u009a AV=úâVx A_x0002_È-Uå\u009c A _x0006_}\u0098_x0015_\u0086 A¦6_x001B_ªv\u008d Ap46$I} Ah_x0010_îçý\u008e A_x000C_\u0086F\u0080È° A_x0018_\u009a&æ­N A_x0001_2Á\u0086èn A\u007f~Z»_x0002_\u007f AÄIV\u0090\u0088m A\u0080\u0083æ±ð' A§§ËÛek A_x000E_|É_x0005_B~ AvÉ4a_x0002__x0005_P\u0081 AÄB!=Ö\u0080 A\u0090¡_x000F_Á_x000F_\u0084 A_x0016_úÉ;Õ\u0097 A¤kÚ©ë\u0085 Aà{ÇAc\u008e A>\u0095_x0017_¼¤[ A\u009bõT1þ\u0094 A¥½\t¦_x0003_\u009e Aëå»Hæy A_°3Eí\u009c A\u0088ä^Ê\u008f[ A[_x0001_Æ¦Õ¹ AªY¼ñH] AÊlPý\"w A_x0008_¼Ø_x001E_\u0080m Ab&µk¿k A_x0018_Ü¼ý_x0005_v A\u0086|¤Ú \u0095 AL_x001E_y\u007fë\u0098 A_x0004__x001B_6@è\u0080 A\u008aJ\u0081hF5 AìiÖ|_x0006_ª AOÜâY\u009e\u0080 A4>d,\u0081U A\u0085p_x0014_Z©b Ab_x0006_l¼æ\u009b A®kÑÿ¸\u008a A©_x0002__x0004_&_x001E_p ARû\u0089ï°p Aö\u0097\\¹8\u009a Aâ:í¼_x0001_N A_x0001__x0002_ÖK.ÒZ\u0090 A_x0016_Ó\u00980Ï\u0098 A_x000C_ïËáOR Ar§º_x001C_3: AÔ+_x001D_2Êk A\u0098ÀJâ²{ A_x0010_æd\u0092G\u009b A,_x0002_½_x0013_¶{ A÷wßwLj AyÍÎÕ\u0095| A·,\u0092ÙÎu A8¼]..u A$îÁÞh\u009b A¨+_x001C_É\u0085\u0092 A~ªé\u009c¹¨ AÖ_x000D__x001F_EÞ² Ay\u0094ÕPÍ£ AÜk_x0002_¢!{ A÷\u0092Ä\u008cu\u008f AÊâúñjl A(Zê¬Ar AôñÛ\u009f\u0096Z A[\u0081d_x0002_!c Aò¥é_x0003_Ð\u008c Ai\u008dfà\u009a\u008e AÌ\u008a4üj\u0085 A-½_x000D_,é\u008a A´.mÍýz A(é\u009dXkj A_x0006_z\u0082\tûV A_x001F__x0011_Gj\u0094\u007f AìÁO!_x0001__x0007_\u0080¡ A_x001B_B%YJe ALAfV¨\u009b AÈñW_x0004__x0019_¬ A_x0008_\"@@¬\u007f AB\u0094_x001F_\u008cx\u008b A_x001E_W[8`\u009a A\u0088.10_x0017_\u008a A;¢\u009eÖ¼u AuM#Ä¨\u0099 A 5þB\u0099~ Az\u008dÙS\u008bm AÎÐ¯A1\u0081 A%jÂTiy Ab®\u0092ÖUo A\u0098$K¶B} Aàc°ø\u0081g A-_x0018_\u0099\u0091Ì\u0080 Aý\u0096_x0003__x0006_n\u0088 A^ü\u008cÃG± A\u009a\u009a­èôg Aí_çè¦g A¢ãÆ1ß\u0086 AÀäK|@\u0086 AærÔß\u009d\u008b AÎÛ_x0013__x0015_ü\u0094 AO_x0015_²l_x0005_U A8Ó°_x0002__x0016_\u0084 AÍ°3·_x0014_p A\u0086ï0Ý³\u0086 ANëîNo® AäG_x001F_\u0097»n A_x0003__x0004_&_x0019_E%üº Av½yR·u Af_x0002_-/\u0082v Aü=_x001B_ù5\u0088 AË{Ê;Îe AH²¯µ_x001D_\u0082 AS¥fÚ\u0084T A_x0008__x0016_®úÏZ A\u0096\u0080_x0005_¯Ù{ Au3_x001B_%/\u0092 Ay½i÷bs AÌªòd#k AxªÐ_x0018_¶\u0082 Aæ1cýän Arú\u009fÆÁN A \u0088b@Üh A`Ñÿ_x0019_}q AðµP+_x000B_~ Aùù/.Ñe AÑ½|¥qQ A¨ñ29r\u0086 AoÆ¤\"çe Aî\u0090º¥\u008c^ A_x0003_F\u008f\u0092¼o Aá_x0001_\u0080æ÷o AO­{½/m AäZ_x000E_Óy\u008f A>R[\u007fGa AÒh_~_x001B_\u008a A;¨yv\u008dw A`I\u008ax\u0084\u0080 AÊ\u0087Éa_x0001__x0003_sp A\u0098ÎNhñh A?Vé\u0093@G A\u0096__x000C_{)\\ AmÐ³\u008cÍP A_x0010_\u009eó_x000C__x0003_\u0084 At#(\u0096_x0004_\u008a Aa \u0082_x001D_æ§ A\u0084\u009aÀúBs A°ÎCµ\u009dW A_x001D__x001F_Ów0[ AÆp_x000E_\u00997Ô AìÙu:\u0087\u0082 A_x0018_¯_QÛe AËÆ\u0097T_x0002_¿ A_x0012_y¸O_x001D_~ A_x0010_EÒ_x001E_O\u0084 AµËG3_x0007_\\ A\u0090±\u0090ã\u007f\u0088 Aâ·\u0084V\u0084¼ Ar\u0088ä¼èY AÜ\u0091cê<\u008d A¦¢Y¼\u0092s A2LVn\u0085~ AÖ¼a_x0003_Ü\u0095 Aî/îPÓi Auÿ×\u008dþv A\u0096Nÿ3(\u0086 AãO\u0088.²y AÇ\u0094\u0088\tä^ A+\u009d\u008a8\u0082t A_x0002_\u0082ó_x000B_º~ A_x0001__x0003_\u0087ÐVrµn A¢ÏÛMDr AÍ_x0015_Ûö\u0085l A\u0086 |8N\u0085 AÀ0¤Õ_x001E_r AÛ\"Ù_x0013__x0012_R An¡£\u0094i\u009d AÛOx`[\u0092 Ad_x0011_9w_x0004_\u009b AªxmµÕX AÈ\u0082¸_x0011_é\u0087 Av!]\u0099\u0088f Aì_x0017__x0018__o\u008f A4í_x0015_¢_x001E_W AN\u009b¹_x000C_Ü\u0090 ArÒ\u0098_x0015_ái AR @_x001F_ý\u0088 A_x0003_S>®^\u0098 A_x0001_\u0086_x0002__x000C_C\u0084 A«_x0004_/¥;I A.æ3ö_x0002_| AÁj_x001C_ÁUp AZ_x0018_±+<j A6Ï_x0006_\u00991u AÔ:»í#G A_x0011_ó<8Lg AxZ}øÈI A~_x0007_i_x0003_þ\u0096 AR\u009a#ù_x0014_\u0093 AC|ºÑ_x0005_] A\\«Ó*\u0089\u0091 A_x0006_\u0087Ãð_x0001__x0003__x0017_ª AøCø­>\u0085 A\u0084\u008f_x0004_é<  AÆâ\u009c±pu A\u009d°ä4²° AmRU\u0083_x0006_\u0097 A*§ß¹\u0082Z AT\u009eÅ_x0008_Ëe A\u0090\u0092·ÍÃ­ A_x0016_\u0096\u0091_o_ A@__x0003__x000F__x0003_` AÅl\u0098S\u0090t A \u0085þ\u009cß\u0090 A\u0098÷ _x0002_ãf A×ðkÇ_x001B_e A\u0086Bâ\u0087\u0082F AN¬ø_x001D_9k A_x001A__x001E_9Þ;\u008b A;j_x0010_ÝÎ_ A83_x001E_»\u0096y A$¿ü.és A¸îyÐµ\u0097 A¶\u0099è\u0085µ\u0097 AÛÔm$Ý\u0093 AHÇÇ¢û\u009b Aø®_x0005_Q2k A\u009d_x001E_\u009a(ío A'á_x000E_ï»\u0086 Aêé\u009c>\u0090= Aðûzí4H A\u009aJÖP#7 A÷_x0007_h<li A_x0002__x0003_\u008aª+/`u A×X\u008c³û_ AØåqýlt A_x0001_\u008e_x0016_ý\u0098s A_x0010_n°«\u0080p A·\u0085dåJ\u008c AÒRØ@Ø| A\u0091c\u0093¯k7 Aø\u0082©¨q\u009d Ap×?ìG\u0085 A\u0096K/ûjf A`±Z²Àb AB\u0085_x0011_{Cc AÒð\u0094\u0085_x000C_j A_x0004_|\u0083Mö\u0092 ALo_x001D_\u0087òa AT\u0080Îg\u0088a A_x0014_£.WÃu A\u0082J_x000B_Ç?k A×ï_x0002"}},{"$cut":{"chars":50898,"head":"68df55cf28f4e5de6851b4d5bba03a2e_x0001__x0002_\u009fE¶ó]3ß@\u009fE¶ó]3ß@\u009fE¶ó]3ß@\u009fE¶ó]3ß@\u009fE¶ó]3ß@\u009fE¶ó]3ß@\u009fE¶ó]3ß@\u009fE¶ó]3ß@\u009fE¶ó]3ß@\u009fE¶ó]3ß@\u009fE¶ó]3ß@\u009fE¶ó]3ß@\u009fE¶ó]3ß@\u009fE¶ó]3ß@\u009fE¶ó]3ß@\u009fE¶ó]3ß@\u009fE¶ó]3ß@\u009fE¶ó]3ß@\u009fE¶ó]3ß@\u009fE¶ó]3ß@\u009fE¶ó]3ß@\u009fE¶ó]3ß@\u009fE¶ó]3ß@\u009fE¶ó]3ß@\u009fE¶ó]3ß@\u009fE¶ó]3ß@\u009fE¶ó]3ß@\u009fE¶ó]3ß@\u009fE¶ó]3ß@\u009fE¶ó]3ß@\u009fE¶ó]3ß@\u009fE¶ó_x0001__x0002_]3ß@\u009fE¶ó]3ß@\u009fE¶ó]3ß@\u009fE¶ó]3ß@\u009fE¶ó]3ß@\u009fE¶ó]3ß@\u009fE¶ó]3ß@\u009fE¶ó]3ß@\u009fE¶ó]3ß@\u009fE¶ó]3ß@\u009fE¶ó]3ß@\u009fE¶ó]3ß@\u009fE¶ó]3ß@\u009fE¶ó]3ß@\u009fE¶ó]3ß@\u009fE¶ó]3ß@\u009fE¶ó]3ß@\u009fE¶ó]3ß@\u009fE¶ó]3ß@\u009fE¶ó]3ß@\u009fE¶ó]3ß@\u009fE¶ó]3ß@\u009fE¶ó]3ß@\u009fE¶ó]3ß@\u009fE¶ó]3ß@\u009fE¶ó]3ß@\u009fE¶ó]3ß@\u009fE¶ó]3ß@\u009fE¶ó]3ß@\u009fE¶ó]3ß@\u009fE¶ó]3ß@\u009fE¶ó]3ß@_x0001__x0002_\u009fE¶ó]3ß@\u009fE¶ó]3ß@\u009fE¶ó]3ß@\u009fE¶ó]3ß@\u009fE¶ó]3ß@\u009fE¶ó]3ß@\u009fE¶ó]3ß@\u009fE¶ó]3ß@\u009fE¶ó]3ß@\u009fE¶ó]3ß@\u009fE¶ó]3ß@\u009fE¶ó]3ß@\u009fE¶ó]3ß@\u009fE¶ó]3ß@\u009fE¶ó]3ß@\u009fE¶ó]3ß@\u009fE¶ó]3ß@\u009fE¶ó]3ß@\u009fE¶ó]3ß@\u009fE¶ó]3ß@\u009fE¶ó]3ß@\u009fE¶ó]3ß@\u009fE¶ó]3ß@\u009fE¶ó]3ß@\u009fE¶ó]3ß@\u009fE¶ó]3ß@\u009fE¶ó]3ß@\u009fE¶ó]3ß@\u009fE¶ó]3ß@\u009fE¶ó]3ß@\u009fE¶ó]3ß@\u009fE¶ó_x0001__x0002_]3ß@\u009fE¶ó]3ß@\u009fE¶ó]3ß@\u009fE¶ó]3ß@\u009fE¶ó]3ß@\u009fE¶ó]3ß@\u009fE¶ó]3ß@\u009fE¶ó]3ß@\u009fE¶ó]3ß@\u009fE¶ó]3ß@\u009fE¶ó]3ß@\u009fE¶ó]3ß@\u009fE¶ó]3ß@\u009fE¶ó]3ß@\u009fE¶ó]3ß@\u009fE¶ó]3ß@\u009fE¶ó]3ß@\u009fE¶ó]3ß@\u009fE¶ó]3ß@\u009fE¶ó]3ß@\u009fE¶ó]3ß@\u009fE¶ó]3ß@\u009fE¶ó]3ß@\u009fE¶ó]3ß@\u009fE¶ó]3ß@\u009fE¶ó]3ß@\u009fE¶ó]3ß@\u009fE¶ó]3ß@\u009fE¶ó]3ß@\u009fE¶ó]3ß@\u009fE¶ó]3ß@\u009fE¶ó]3ß@_x0001__x0002_\u009fE¶ó]3ß@\u009fE¶ó]3ß@\u009fE¶ó]3ß@\u009fE¶ó]3ß@\u009fE¶ó]3ß@\u009fE¶ó]3ß@\u009fE¶ó]3ß@\u009fE¶ó]3ß@\u009fE¶ó]3ß@\u009fE¶ó]3ß@\u009fE¶ó]3ß@\u009fE¶ó]3ß@\u009fE¶ó]3ß@\u009fE¶ó]3ß@\u009fE¶ó]3ß@\u009fE¶ó]3ß@\u009fE¶ó]3ß@\u009fE¶ó]3ß@\u009fE¶ó]3ß@\u009fE¶ó]3ß@\u009fE¶ó]3ß@\u009fE¶ó]3ß@\u009fE¶ó]3ß@\u009fE¶ó]3ß@\u009fE¶ó]3ß@\u009fE¶ó]3ß@\u009fE¶ó]3ß@\u009fE¶ó]3ß@\u009fE¶ó]3ß@\u009fE¶ó]3ß@\u009fE¶ó]3ß@\u009fE¶ó_x0001__x0002_]3ß@\u009fE¶ó]3ß@\u009fE¶ó]3ß@\u009fE¶ó]3ß@\u009fE¶ó]3ß@\u009fE¶ó]3ß@\u009fE¶ó]3ß@\u009fE¶ó]3ß@\u009fE¶ó]3ß@\u009fE¶ó]3ß@\u009fE¶ó]3ß@\u009fE¶ó]3ß@\u009fE¶ó]3ß@\u009fE¶ó]3ß@\u009fE¶ó]3ß@\u009fE¶ó]3ß@\u009fE¶ó]3ß@\u009fE¶ó]3ß@\u009fE¶ó]3ß@\u009fE¶ó]3ß@\u009fE¶ó]3ß@\u009fE¶ó]3ß@\u009fE¶ó]3ß@\u009fE¶ó]3ß@\u009fE¶ó]3ß@\u009fE¶ó]3ß@\u009fE¶ó]3ß@\u009fE¶ó]3ß@\u009fE¶ó]3ß@\u009fE¶ó]3ß@\u009fE¶ó]3ß@\u009fE¶ó]3ß@_x0001__x0003_\u009fE¶ó]3ß@\u009fE¶ó]3ß@\u009fE¶ó]3ß@\u009fE¶ó]3ß@\u009fE¶ó]3ß@\u009fE¶ó]3ß@\u009fE¶ó]3ß@\u009fE¶ó]3ß@\u009fE¶ó]3ß@\u009fE¶ó]3ß@\u009fE¶ó]3ß@\u009fE¶ó]3ß@:|U\u008a½éÞ@+\u0097_x0002_T NÞ@CÁl÷Ñ\u0091ß@¯Y\u0086sÞ¬Þ@æàê\u007fÄ=Þ@\u008a\u0088;õ_x000F__x0014_Þ@_x000D_j\u0086!_x001F_-à@ï5_x0019_\u0093ö/ß@í[´_x000D_â®Þ@ò[_x0008_óÎ_x0013_ß@)÷1\u0083\u009eIß@\u009bP4\u00888çÞ@\u0087_x0019__x000E__x001D_\u008e¼ß@&Ó_x0012_N»_x0017_ß@;óÈÁÊÒß@._x0003_2ñ4\u0092ß@èL_x001B_ËÆÁÞ@8_x0014_·pM_x000C_ß@[ÔkÝV_x001B_à@¡_µ\u007f_x0004__x0007_,\u009aß@ÿ_x000B_^¥r¨Þ@ñ\u0090ö_x0004_\u009d_x0011_ß@_x0005__x001E_ñ9\u0082vÞ@A_x0004_Mò\u0090hß@_x001A_P\u009dèU3ß@_x0011_ø\u0097/FÔß@x&z*)Jß@q¿©\u0097JáÞ@/\u008aÙçßàß@_x0004_²A_x000F_fcß@_x0002_Ã_Ô|\u0081Þ@w@_x0003_>û¥Þ@%røÃ©Fß@öy6,/_x000F_ß@ùWf£éHß@ÚûÝÚÔ­Þ@·Ì\u0094\u0090¾Çß@ç_x0017_\u0085_x0001_/Éß@\u0097é\u008fÎ\u0095tß@jÿ0_x0013_¡_x0015_ß@DÏ_x0011_+_x0007_[ß@\u0084kÏ/¶Üß@\u0094é\u008dâ®õÝ@$=_x0014_ÔäÌß@¢ã<¦_x000C_¬Þ@6ó^ýð!à@ªá©_x0006_t_x000F_ß@LDâ1%_x0014_à@¡cûý\u0091Tß@¹pípÖ\u0081Þ@X_x0005_Ü²~åÞ@_x0002__x0004_\u0084r¹_x0004_¨ìß@Û`FÏ|dß@ªv8âã|Þ@\u0095Z)\u0099ÎõÞ@â\\&Ö\u009f«ß@\u0085¯p_x0007_\u0095ÀÞ@b¢¥vôRß@_x000C_¼îÀ_x001D_êÞ@ð_x0010_\tr\u0081\u0090ß@æ\u0082·ë<~ß@\u0084W¼4$¯Þ@_x0005__x000C__x0017_\u0080V?Þ@\u0094§\u009b§]ëÞ@#<Æ¡ðÈß@­_x001A_îù\u0087Pß@_x0007_\u0084V_x0016_Ç/ß@!8O_x0019_·ïÞ@ù \u0096\u0098\u009a«Þ@¸®qÜ®þß@_x0014_\u008a_x0016_c÷ªÞ@B\u0086ò ÄÂÞ@×\u0097³ ²_x0001_ß@_x001D_AÛi_sß@Q\u0086`Ln)ß@@èEG¨øß@\u008a\u0088ðN1#à@>ñ¤¡_x001A_gß@by ê¯\u009aß@_x0019_>Yx,_x001B_Þ@H)nÏ\u0093åÞ@éÜh_x001F__x0003_«ß@\u0081°Û_x0008__x0003__x0005_Î_x0014_ß@ÛÄÕÞµ¶ß@`\u0097_x000E_m_x001D_Fß@:\u008b\u0080_x001C__x000C_\u0091ß@Ù:l\u0089±uß@óR\"©\u0081ìÞ@¨\u009e­*Ó_x000E_à@ÄXPUZ£Þ@´_x001D_EpoHß@'ûÀ}ÌóÞ@8Ú_x001C_vBBß@øý_x0007_â¡éÝ@Ø_x0001_Õ²_x0002_sß@_x000B_û\u008f\u009eæ>Þ@­ì_x0017_l[=Þ@¢)_x001A_tÿ\u0084ß@Åä^ßJ8Þ@_x0004_Ï\u009fZ¿èÝ@ç_x001F_g[n_x0017_à@c¼-_x001E__x0017_PÞ@B\u008föd\\_x0012_ß@ºH_x0002__x0011_\u0086Kß@nPY`_x000F_Ñß@{Ø_x0001_Ð¢_ß@ÞC¡RJ5ß@_x0005_KÀ\u008b\u0082_x0011_ß@2$<´úbÞ@_x0006_dXÎ_x001A__x001E_Þ@\u009cÛJ:Ü7ß@+èõÜÿ¤ß@Æ;ÿ¥_x000F_ìÞ@]}±È\u009f\u0087Þ@_x0001__x0004_ü_x000B_â4jzÞ@¥y\u009aË$\u007fÞ@_x0018_cç_x0005_X\u008eß@ôÄ\u009fA¨_x0016_Þ@@¿_x0012_®Ûºß@uØ\u0099oû¯Þ@Ú_x0014_pôìjß@\u0081bx\u008dy\u008fÞ@°\u0094^ã¡\u0092ß@BXM_x0013_jlÞ@ÞÃp1_x001F_\u009bÞ@+¡ÍªO_x0010_ß@°«_x000F_`c(Þ@ô\u0084\u009aê_x001F_­Þ@¿Í\u0092\u008e:1Þ@¹jú_x0003_´¨Þ@×_x0002_\u009d\u0091ZÕß@.\u009cºÆÝ­ß@%\u0089\u008fàÿ¤Þ@x$\u0097ö\u0080oÞ@g5(E²iß@MPu_x001F__x0018__ß@\u0098û;\u0090ë\u008cß@_x0016_éÿÿ\u009e=ß@è!{±ú\u009dÞ@R\u0083ìÈ¶?Þ@Î»£OÍÚÞ@wfnA_4ß@_x0017_­¤À_ÉÞ@£àª\u007f\u0098_x000F_ß@-_x0003__x001C_£¦ÐÞ@\u009fÐ¬\u0083_x0004__x0007_\u0087\u008bß@-\u0089-/IÍÞ@\u008eâR\u008f!ûÞ@_x001B_0-§_x000F__x0008_Þ@!¸´¤_x0014_HÞ@>ß/?:cß@ÿ_x0016_\u007f`¬_x0002_à@µ=\u007fÆ[GÞ@åû¿±_x0001_ËÞ@{CóJ+jß@¶ú-G\u0092_x000D_ß@³1_x0004_Ï9äÝ@iì¢ÕUXß@\u0091ðá_x0001_øÿÞ@¾ÆÀ/èëÞ@^\u008aÚ\u0086_x001E_yß@~Y[Õgxß@³D\u00938½nÞ@9I&g_x0005_õÞ@Ç¤ÛT\u0085[ß@@½0ÍM\u0081Þ@Õiíúà÷Þ@_x0017_ÅÙ(ªÿÞ@Ù¢~Oä_x0003_ß@²Ö·Ë\u0086\u0088ß@JICA7BÞ@ñ_x0017_v\u0097w\"ß@2ñ@ýñïÞ@H #oèvß@ñ¼@Ì¾:ß@íäû\"\u0088-Þ@@Õ¨½E_x0006_Þ@_x0002__x0004_ª$-3w\tà@K_x0014_\u0090¼¥_x0006_ß@\u0090p¬Ä|þß@s(_x0017_»A-Þ@¢\u008d¶¬L³Ý@ÃÃ¿\u009dZ­ß@"}},{"$cut":{"chars":53442,"head":"3e54f7b9a1d58143656c75036f301cc4_x0003__x0005_÷oµ\u0097­_x001C_à@.ÿ½Ð_x0012_\u0088Þ@Í_x0007_V.H¡ß@\u009c}¬ðè[Þ@ä_x0014_MIÓzÞ@³_x0008_$_x001B_ÓtÞ@â\u0089\u0092\u008dÑÃß@_x0005_Ýb\t¥®Þ@ÍÓÆ\u0082úiß@\u009e\u0083hµË³Þ@EBrüe\u009bß@_x0001_\u008c:cî=Þ@\t~\u00928TäÞ@X`Aþçsß@BÑÿ¿7µÞ@f¶å¢_x001D_ÚÞ@ÈÁý_x0015_½1ß@_x000E_{CÙæ¥ß@J\u0096S2Å\u0088ß@\"*\u0091¾\u007fÓß@|9\u0086_Cwß@_x000F_7S_x001D_i.ß@\u0083\"qH¶ýÞ@¾ñì!:éß@©¤êÈ\u009eúÞ@_x001D_4¦ÔØþß@\u008d_x0004_v`ó\u009bÞ@Ñ_x001E_z8rgÞ@`_}²_x0002_ÜÞ@bJo-}sÞ@øÕ\u009cÖ+äß@\u009bï×\"_x0001__x0003_ô#ß@@ÈÙ_x0010_À\u009eÞ@ÉGq\u0087O_x0008_ß@´)W\u007fb·Þ@\u0089Vá\u0090ò_x000D_à@\\¸\u007f_x000B__x001B_~Þ@\u008c\u0095v¬¯rÞ@_x0015__x001B_w{\u0080 Þ@ÐÂ&¸\u0083\u0099ß@I»ÉQ§6à@z(_x001C_a#\u0099ß@¤ìð_x0007_7­ß@z»Í¤ÀÂÞ@_x001B_ig´ÁGÞ@]\u0092M§ØDß@>lÔ~²ÌÝ@{mÞVV{Þ@_x000B_Ú\u008ah\u0086\u0090Ý@ö\\=Ô\u009f\u0084ß@_x001D_!¨9\\½Ý@$z_x001F_Lµâß@ÌÅKª<|ß@_x0011_hôx¯\u007fß@l/gºcéß@_x0012_fNÜ^5ß@u\"\u0081Gð\u0097Ý@ÇN6\u0084r¬Þ@àñ_x000F_&gÀÝ@\u008eª_x0012_SæåÞ@±i_x0012_\u009c_x000D_ªß@_x000D_Çk_x0002_°ÃÝ@9$µâ\u009a_x001D_ß@_x0001__x0002_ámñÎ¡Íß@8\u0093­/«yß@_x0017_gºüo6ß@\u009dú³?LPß@×áöÏ¬ôÝ@k_x0013_y¸ëMß@HóÈfÂ_x001A_ß@W+b°k·ß@Y­[Øí_x0010_à@¸±r\u009f @ß@³\u0081lPÚ_x0017_Þ@PEemç_x0014_Þ@_x001F_k_x0004_Ã8\u0084ß@Ü\u0089¼âJ7à@ÈáK_x001A_\u008c_Þ@Bù_x0001_j~Yß@\u008d¶=\u008c\u0095%ß@RÄ\u0092!`îÞ@7\u0088ùÞZ¤Þ@_x000E_Å«\u008aMùÞ@Ø±°_x0002_{%ß@Äé¿«~âÝ@3_x0007_fù\u0092&ß@ñrâ$Fºß@E%_x0003_\u009efQß@b½º­ú\u0099Þ@$JÑóº%ß@r\u007f$ûêBß@Ò_x0013_«\u0090)\u009bÞ@_x0008_ú8­2lß@_x0007_¬_x0006_£°öß@ô#P]_x0001__x0002_Z³Þ@zÐ\u009dÑÍQÞ@ÿñä#_x001C_\u0093ß@\tþCÒ´ØÝ@Ân_x0014_ÌA_x0016_ß@´Y\u009e9ªaß@P\u0089êa_x001F__x000F_à@ÆeÓw+Uß@8è_x001E_&¡_x0016_Þ@·[\u008d\u0097_x001E_<à@\u009dÊU\u0096ã¨ß@(,\u0085_x0016_9^ß@_x0015_@ nÑeÞ@î._x000D_Þ_x0014_ÏÞ@5H\u0094²ÜèÞ@Qªÿ\u0091Â\u0083Þ@2}_x0012_ÅgÊß@r5<\u0095\u008c*ß@+\u0099Þ_x0004_ü÷ß@ä®]5¢Óß@ÁM¡PÌúÞ@XcúÜØ»Þ@_x0010_\u008fJ¯ÞÀß@©ÝË/éÄÞ@_x0005_¸?\u0087ïñÞ@\u0082£mù\u008fóÞ@Ã?_x0005__ÖÕÝ@\u0092_x0001_\u008d¦_x001C__x000B_ß@,C4~]òß@_x000D_\u008fr°Ü°Þ@ÔÀ\u0094æRÔÝ@gá\t\u0095¡\u0098ß@_x0002__x0003_\u008dbvF}áÞ@òçêZÜGß@MOD3Ëcß@¡M¬,;_x0010_Þ@\"\u008cçÈÆÑÞ@\u008bm\u008c_x0015_W\u009aÞ@§îl\u0083\u0094_x0011_ß@\u0087~ÄYE/Þ@(\u009f \u0091#¶Þ@Ú8_x0003_øî_x0003_à@X\u0089_´DvÞ@/öàZMÝÝ@z_x001D_3ï\u0098\u0087Þ@ÌÖÁ\u009e°çÞ@OßÄÈª_x0015_à@ú_x0017_­ö¤bß@¦\u0085\u0081ç_x0001__x0001_ß@h_x0010_2_x001F_H¹ß@[Õ_x0016_\u009b\u0092ÁÞ@\u009aûÄ¢&_x0005_ß@B*ýæ\t_x0002_Þ@ÎOá]g´ß@´)_x001B_ùw`ß@ öQ+|°ß@é_x001D__x0010_½I à@.\u008cRQ_x0005_VÞ@ó¤výØ\u008eÞ@_x001F_ÍÃo½_x0001_à@öõ\u0093Ð~\u009fß@qQOz©_x0003_à@\u008fÁÕ½Ø©Þ@¾\u0084\u0096Þ_x0005__x0006_#8ß@\u0096ÁµÉÝ¹ß@-[\u0090\u007feÉÞ@_x0016_³âÁÆ\u009aÞ@o¾Ù\u0082GØß@Øù¹v¦:ß@\u0093J)ò_x0007_Dß@Ã!±aüáÝ@À¸\u0095_x0004_>\u0083ß@_x001F_ÄñùkYß@·ë_x001D_\u0097æ¿Þ@4_x0002_*\u0094\u0082®ß@ì\u0087\u00948_\u0090ß@Z\u0096\u009dö£¬ß@ºªÒ\u0089_\u0099Þ@Kux[\u0080Uß@J#b_x0003_\u0093nÞ@_x000E_+\u0080_x0006_º\u008cÞ@@\t(_x0010_qoß@\u009foü\u0090ÙbÞ@í\u0094eC¦_x000D_ß@ºj­ªÑ\u0094Þ@µ²w=\u00960ß@Ù\u007fª\\!Oß@¦%]_x001D_x\u008bÞ@\u0089¤\u0094¹­4ß@\u0095-Å_x0012_+¢ß@×®=\u008bâ\u0094ß@ý×nò_x0007_%ß@\u009dìªê\u0090úÞ@\u009e­´¸\u0089_x0001_ß@\"Ê_x0016_Ô\u009b5ß@_x0002__x0007_í~QWW_x0002_à@\u008cæ\u009dÖ³\u0084Þ@_x000C_Á_x0004_|_x0002_QÞ@À}G¤_x0004_/à@êÆ_x0001_¾\u009b_x0007_Þ@\u0082Âäá\u009c\u009bß@]?Ë_x0007_Å_Þ@_x0005_:sWf\u0084Þ@\u008bq_x0019__+£ß@¤J7\u008eö·ß@u/4_x001E__x0019_\"à@¯_x000F_[GØdÞ@[\u00995ù¬\u009dÞ@p_x0010_ç_x0003_û¾Ý@yIî\\À_x0004_ß@´¸uÒcÌÞ@m\u008e\u009f^Ð?ß@»ì_x001F_p_x001D_\u0089ß@\u0099©tx_x0015_îÞ@ªe\u0090É^ùÞ@×_x000D_\u0094\u008eã3ß@`«)òÇÎß@\u008c:,~Ä­Þ@Á_x0006_Ò5NÇÞ@Åf_Êe_x001F_à@ü>á_x0008_%þÞ@õD_x0001_p\u0083µß@p}D¯_x001D_¯Þ@Ù\u0087iQ^_x000D_ß@BâÎ _x0004_Ñß@Â ÊBG*ß@m\u0086\u008fË_x0005__x0007_3pÞ@âZ*y(ZÞ@Ð}\u009d_x0004__x0003_`Þ@?Å\"T[ÄÞ@¢X\u0098ü_x0013_?Þ@DDT_x0013_pQÞ@¶F_x0002_ãàðÞ@HÌ×D¿!à@0\u009cQ´\u009aAÞ@G\u0080%mg_x0017_ß@`4óZÇkÞ@ B¼î­)Þ@\"_x0007_Õ\u0086%ßß@:^tºU_x001D_Þ@\u0094Á_x0006__x0015_¢ÿÞ@o\u009e\u0080ß\u0082]ß@¨_x0017_ºí_x0002_\u0081ß@B5_x0012_-\u0083öÞ@\u009bi_\u0098øÃÞ@_x001D_ÆÂü(_x0014_Þ@ª\\6°%áß@07_x000F_0P×Þ@~¾¾\t_x0001__x0015_ß@[M\u00810ãiÞ@¼m\u009cÎ#úß@fuDÍwsß@àG¹çìrß@\u0087Nw_x0018_ÇÝÞ@ª¸añ_x000C_\u0084ß@¿C»åh§ß@õÄ_x0008_Ø_x0007_[ß@D«_x0003_Qª\u008dÞ@_x0001__x0005_¬À>ô´ÎÞ@LqÉ|ê ß@©9Ý¥Ì:ß@Å%_x0003_ã_x000F_ÐÞ@_x0004_ò©Ôå\u0093Þ@_x0001__x0014_]_x0005_pAß@y\u008c6Gm¸ß@_x0018_Åttÿ_x0018_ß@\u0091­*$_x0015_ÛÞ@qÛ\u008d+Î,ß@n*\u008f_x000C_¼\u008bß@T\u0090ÇÌ¹ÐÝ@_x0005_8w*o ß@_x0012_\u0080L9_x0002_¤ß@-éµ_x000F_U;ß@ú¹î¹jÒß@Öv]eþßÞ@\u0082HBÁfõß@¾ê\u0082_x0003_-yÞ@cÙ_x001A_\u009cgfß@_x000C__x000D_~a²åÞ@@_x0011_Éü=\u0088Þ@·7S+2_x000C_Þ@\u009a\u0088\u009a\u0098\u0093ÐÞ@vò_x0010_«KâÞ@RrÛ=\u0087ÎÞ@\u008e,$\u008fÔôÞ@_x0017__x0010_»ï³ïß@_x0006_Tè/\u008f=ß@1 $'z\u0087ß@\u0095ôA@ê_x000C_à@1\u008b_x0004_¨_x0001__x0002_áÉß@·Ó\u0099\u008cT+ß@_x0005_\u008dÍ_Ó\u0092Þ@­+E\u0089_x000E_¼ß@\u009f_x0012_¤Z1_x0005_Þ@Þö1ª_x0003_HÞ@ùÃE¿n>Þ@Æ_x000F__x001C_B­\u0097ß@§_x0017_í_x0015_H_x0019_à@_x0014_ â_x0002_\u008f'ß@¹_x001A_ÒÉlyß@\u009f\u008d§¸_x0013_Wß@\u009eß[Èw1à@Ná¢\u009cRKß@ç\u0099S\u0094b_x001F_ß@_x001D_ç1ÉÙ_x001E_ß@\u0095SH_x001E__x000F_éÞ@=×ª_x000F_Ôuß@di0 LFß@{$î_x0018_AIÞ@ÿ\u008a\u009f\u009cöKÞ@ ;¼¶O?Þ@\u0086\"EÎo\u0096ß@¸¥I_x0015_ú®Þ@Aæ>¯©^ß@rÐTiÄ£ß@ä_x0013__x000D_\u0094ÌUÞ@jÕÁ\u007fSËÞ@.0í/ïöÞ@³ò\u009bµJµÞ@÷\"PkU_x0007_à@\u0099\u008b#kØíß@_x0003__x0006__x0013_\u0080Ü\u009bK)ß@fÙÒ!£Fß@©½_x000E_SºÚÞ@\\Ë_x0003_Þä±Þ@ÇÓ\u0091F8yß@/I_\u0080Â_x0015_Þ@éutD\u009b'à@â?¿BÁaß@"}},{"$cut":{"chars":63912,"head":"454e982389b6b8b0579ea7528e2fae02_x0002__x0004_Ü7ÿ\u009cxðî@×Ã²¨rþï@nq\u008a_x001E__x0003_üî@d\u0083df_x001E_Çî@ª_x0006_£\u0087Ô{î@,M<¿ºÙî@áS`\"C_x0010_ð@_x000C__x0007_×¡/Àî@$¥a_x0008_\"\u0091ï@æ-ì³_x0004_\u0095ï@f´µz§Ïî@ë¨ÀÑ\u0080Çï@øwPì·Ðî@¸¹L0\u0092íî@¤½TFM¹ï@¨_x001A_\u0097\\ÒJï@¤\u0095e·N_x0019_ï@\"ckQð¦ï@Ä_x0015_®{Bòî@è_x001D_ô0ð\u0091ï@,¢×(º%ï@½j7ä| î@ô\u009b\u0092\u009d_x0001_óî@\u009a_x0012_c.ø³î@^\u008e_x0010_Â-/ï@@)¯aÜ+ï@2_x0013__x0016_ÿ¾\u009aï@Ìc\u0095_x000B_EÂî@ò_x0002_\u007f,g²ï@.L_x000E_o~yï@2§´&¿Ñî@Ht_x0016__x000B__x0001__x0002_F\"ï@´÷Üñ°\u0089î@ÝÔn©Laï@HÆþÉÞÄî@_x000B_¯°Æ'_x0007_î@_x001D_éFlx:ï@¼YÏ_x001E_;*î@ç,»!.óî@PÝM]_x0013_eï@°lrLÖ{î@iËîGÈÔî@bwb__x001C_Ìî@:è\u0085\u0081\u0090Dï@Ö1Ë÷+Jï@¾Úf~¿]ï@ÝÛ$_x0014__x0016__x0018_ï@âëùð\u0085=î@®¡T`Ù:ï@_x000E_õò\u0088\u009d_x000E_ï@2Ä?\u0090î_x0006_ð@W6PÃÖ\u0084ï@óº\u0092_x0003_e÷î@n;ÏSrºî@è¢_x0002__x0005_i_x0013_ð@*ñà`=\u008cî@8Üú_x0016_{\u0086î@4Í¦ÔKZî@\u0086ÅýÜ\t_x0015_ï@p\u007fþýYôî@`Nñ÷Î­ï@\u0082Á¼\u009c<\"ï@¨_x0012_B¿j9ï@_x0003__x0004_¡_x000C_h¸ ¬ï@@EàÑáGï@_x000C_\u0083_x0001_V°:î@tC_x0010_=_x000D__x0016_ï@\u0082UK¡'_x0001_ï@®_x0001_êñ×¾ï@i\u008eÝ\u007fÄ_x0016_ï@_x0003_ù`t#eï@\u0094ÙêêvIï@Å_x000B_²Ö\u007fYï@Þ\u0089ø@þõî@*I\u0095\u0091_x000C_\\ï@¶_x0018_¬\u0083\u0085¶î@$\u0082\u0097,é_x0002_ï@2q9#:fï@_x001E_#jü\u0090^ï@NÄ£æ\u0097¸ï@à\u0097_x000D_PW^ï@\u0096}\u007fùóýî@\u009dãV\u009e8ºî@ò¯\u0088\u0088ê!ï@úìè_x0018_5Gï@ÊnN_x0010_¶-ï@\u0094à\u0082¤Ð­ï@ï_x001D_VÛj\"ï@[øúT1_x0006_ï@_x0014_k\"_x0014_1\u0093î@æ_x0003_7\u009fl_x000C_ï@h*\u0084_x000E_û_x0005_ï@nh¬û\"Äî@\u008a¿éØ_x001C_\u0098î@:Ñu/_x0001__x0005_DÃî@¥dd¤ _x0004_ï@ÎÙéO_x0002_Åî@µ¼ë\u009bD\u008dî@øXwL_x000F__x0018_ï@|Aæã\u0080\u008aî@æ_x000C_Ù¤\u0097`ï@FÞîÍSÒî@_x001E_­_x001E_¶ñLï@\u009aRµº¨Èî@7 Ä^\u008f¾î@_x0004_\u0087áz_x0008_%ï@Âá'æ=%ï@ÊÁ4_x0003__x000E_ãî@¸_x001E_\u008bÀ.Éî@Þ%£?<³ï@r_x0014_\u0082»´ëï@Põ×h\u0087oï@5¬_x000E_®'ùî@Z\u008bÓqÂ£î@ÞBqðkéî@®íhbÅÔî@¾¸­´_x0013_åî@`'%§¦_x0003_ð@Î\u0097_x001C__x0013__x001E_Ôï@ÞË0®\táî@^~ösÃ2ï@sd|]¶_x0001_ð@$\u0084½\"_x000B_ðî@\u008e>\u008bªô¼î@\u008cÞ3YÕÊï@\u009e_x000B_§\u008cíkï@_x0002__x0003_ö_x0010_\u009e\u008fÄUï@\u008a§?4Z`î@|»6²|aî@ý©joÒHï@BÑ±cµ\u0092ï@¶G=á _x0001_ï@_x0001_ \u0084VÀVï@£´æQ\u008e0ï@î\"yUåüî@\u0092f#_x001F_D²ï@²_x001D_W@[øî@i&_x0018_æ\u0081\u0085î@Y_x001B_dÈ)Wî@×_x0006_\u0095\u009fä\u0099ï@+Ø\u009f¥.'ï@\u009bÖÑ+_x001C_Ìî@_x001E_í\\Úá\u0081ï@¼æ\u0086yY\u009aï@,_x0019_-ñ­×î@V&\u0081d_x001A_Pï@¦à\t\u009an_x001B_ï@j;¡pà±î@_x000C__x0004_·:\u0087©î@_x0004_}\u0082\u009eÛ_x000F_ï@ñ«Ó¢\u0087¤î@`<vÊ_x0017_Èî@ù\u009fñ_x0003_ß_x001B_ï@²è¡¬¬\u0096ï@z_x0018_\u0099ô|_x0017_î@cÒ\u009d\u0087x>ï@¹Uï \"sï@2_x001C_(&_x0001__x0003_û8ï@jL°_x0019_rºî@_x0018__dëO\u008cî@_x0008__x0017_\u009b_x0013_¬vî@}l*ï_x000C_Íî@E(­}W\u009cï@ìÖ«î\u008deï@Ó\u0095½\u008a_x0011_aï@J-ÆNO´ï@d]¸_x0005_Ï\"î@_x001A_)éÀ\u009eüî@¾C$3e\u008cî@ð¾\u008aÐÕ\u009bï@p*ÌNñ.ï@_x001C_5e);Yï@_x0019_\u008e3O_x0007_+ï@\u008f55\u007fß&ï@_x0008_ª©ÓO\u009fî@¾úØ_x001D_w\u0099ï@8\u009a_x0003_Î»Íî@_x001A_¢T\u009e_x0002_\u009fî@\u009e q\u0087oÇî@t\u008fÙõLûî@¿Ã_x001C_ì_x0012_^ï@_x0017_ð£\u0097ë¼ï@²\u008d \u0090\u0090^î@¨8ÐB%òî@;ÉÉ¥pWï@\u0091_x000D_A\u009c6Öî@8L._x0013_ÐÐï@ÎeóóÀMï@\\*·\u0090l\"ð@_x0003__x0005_þ4E_x0001_7_x000C_ï@\t´)\u008dÌoî@¦À©]qÇï@®J¶Ñ_x0004_µî@j%¸u2°î@âª_x0018_>õÓî@_x0007_7¯\tÏ³î@\u0094Yù°S¸î@¥§x\u0093±\u0083ï@IÜ\u0087Ë]Tî@>\u0098«køØî@ê¦¹:;\u009aî@\u0095ó¾·-øî@:\u0083­oß3ï@¥_x0013_x\u0096\"/ï@Zu©Ô_x001B_¦î@\u0086ìlI_x0019_Óî@p,aÔÚ_x0006_î@½eÙ±V»î@\u009aÙ¨\u0091\u0084Öï@ð\u0092}¸Ç_x001B_ï@_x0004_Ê_x0002_í®vî@Q\u0088ß]\u0087Wï@FÈ\u0092_x0010__x001F_2ï@ýü\u0097\"ÓZï@T5\u008aYBRï@ZcÃùC~ï@\u0084_x000E_U`Ëßî@éýJ\t\u009b_x0004_ð@\u0098\u009aô_x0007_¯pî@­IsÌ\u009etî@HMöö_x0001__x0003_ysï@_x001A_¶\u0086Ã4èî@Ø\u0081_x001E__x0015_ã\u0093ï@\u008a\"_x000B_\u0099:.ï@\u008cÿòÎ<÷î@®À«òÓÌî@\u008fJÅUß¯ï@_x001E__x0008_«ßß_x001A_ï@_x001E_¿ÿ_x0001_´_x0005_ï@PyÔê-_x0004_ï@`_x001E_õr±Üî@\u0098_x0016_8ó_x000D_\u0097î@_x0014_óË\u0099\u008bÙî@¶m_x0004_ ­uï@6/\u0080}þwï@_x0006__x0005_â¢Lkï@_x0017__x000C_Á_x0001_Ó_x0018_ï@äÐ_x000F__x0013_¬äî@_x0016_$Ï(iIï@\u0088<X_J_x0007_ï@èè,ÁíÃî@Ü_x001B_1\u0096éÃî@ÂK²a_x0006_rï@\\_x000D__x0007_:1\u0095ï@\u0094_x001E_={O(ï@_x001E_åý\u0098\u0098Mï@2_x0002_åÎ_x000C_Uî@E¾0\u0082\u0086\u009eï@ô_x0003_1_x000D_î_x001F_ï@\u0098\u009d,\u0092\u0083üï@l<_x000E_\u007fð=î@Ð#BÙVTï@_x0001__x0002__x001C_\u009bñå_x0003_¬ï@újJ\u009cÕ9ï@\u0093A\u0081_x000E_\u0080¿î@*È\u009d\u0092}Zï@f/_x0015_T¾Çî@É4êæÙCï@õìññÎWï@Úó_x001B__x000C_±\u0081î@ÕàÜpy¼î@\u008aÔ÷>¶Jï@ZÁ_x0015_.\u0091Íï@\u0086eÆ\u009eb\u0091ï@Ì\u009b\u008d_x0001_öóî@_x0014_Î1¡_x001B_?ï@Ðü\u0082\u0090_x0007_!ï@[c\u0086ÖÙ_x0015_ï@_x000E__x0001__x0008__x0013_ò\u0096î@\u0090ûëÁ?\u007fî@¦\u0096<Çø¦ï@F$!ÍÇ_x0017_î@]õGoÃÚï@{å¯°á/ï@èÑ¼¿dÇï@ô~\u007f_x0003_:_x0014_ï@Ì\u0098Æ\u0091+âî@zÿ\u0095_x0016_éÝî@r_x0005__x0007_]E\u0087î@¿Ðú_x0015_gÍï@_x000E_+F|\u009bNî@ÜT\u0080ío_x001F_ï@Ðæ_x0013_q·_x0004_ï@¶qQg_x0001__x0002_Îêî@rÝ«Bq\u009eî@f\u0090_x000D_å\u0097üî@\u009a32eÊfî@_x0002_7]LE-ï@äksd]Úï@È³_x000D_Þ\u008a!ï@jµ\u00807Ê8ï@×\u0080KÞ\u009eVî@~À9.\u0089Pï@_x0014_ïR'}\u007fî@¸úé\u0096\u008f?ï@ê_x001F_&6_x0019__x0012_ð@Üæ8 ¦_x0007_î@Á®³W»{î@_x0006_ÁñÌÓUï@_x000E_EêÛ¥\u0094ï@\u008a_x0011__x000E_\u008bý\u008fî@[LrO¢Íî@Â\u0082_x000B_^sõî@ª_x0014_¸\u009d'¹î@\u0082hÏ\u0089_x0014_Hî@´I=Å:êî@\"W«$V?ï@\\\\D¬\u0094Áï@â\\Ë$R\u0093ï@òD\u009aqfÈî@²c¥éNQï@ÇZýsxüî@Àªù_x000D_&_x0019_ï@\u009f\u0086_x001D_P"}},{"$cut":{"chars":57120,"head":"7f8dcf8cfb6f74b8b20c4e8f0abcfad3_x0001__x0002_ô/+_x001C_üð_x0017_A8\u0089_x0018_e ñ_x0017_A\tM0eðñ_x0017_AL_x0001_;¯Äñ_x0017_A_x001F__x001B_R_x0012_\u009bñ_x0017_A\u009ea\u0093[zð_x0017_A_x0016_ó\\Q=ó_x0017_A®)\"-ôð_x0017_A±\u0097\u009cþuñ_x0017_AK:ÒdÔñ_x0017_A\u0095Ùu\u0084¡ñ_x0017_Ar\u009bb®íð_x0017_A_x0015_\u0092DI_x0001_ñ_x0017_A¥4{_x0012_»ñ_x0017_AøÀºKgñ_x0017_A_x0017_N¯oXò_x0017_A_x000F_Ñ\u0081Êìñ_x0017_A±JB~Ïñ_x0017_Aí\u0082ÔÞDò_x0017_A$à¦ïçð_x0017_A~qñä_x001A_ñ_x0017_AýÚ¸å\u008eñ_x0017_Af4P_x0005_~ñ_x0017_A=_x0004__x001C_¾_x0007_ò_x0017_A9H_x001D_b?ò_x0017_AºÙÃÀOñ_x0017_Aµ½_x001C_\u0098sò_x0017_A¸N_x0006_À¾ñ_x0017_A_x0005_¢î½`ñ_x0017_AÁ\u009d?_x0008_?ñ_x0017_AÇ©_x0011_4_x000F_ò_x0017_AÊüLë_x0001__x0002_\u0084ð_x0017_A\u007fr~\u009cæñ_x0017_Ax£\u009d\t«ñ_x0017_AôÀ_x0018_ÍZñ_x0017_A\u008aa_Þ}ñ_x0017_AµÞ\u0095ÓTó_x0017_A\u0090¥û_x0010_^ò_x0017_AåX\\Zçñ_x0017_A·3_x000F_ã0ñ_x0017_A]Ë8\u009aÑð_x0017_A\u0099\u009b\\\u0085\\ò_x0017_AÆÆ_x0015__x0006_âò_x0017_A_x001D_(\"iíð_x0017_A´^¦! ñ_x0017_A@W_x0010_¦þñ_x0017_Aªïd\u009eÉò_x0017_Au\u00925JÀñ_x0017_A_x0018__x0007_a_x0014_®ñ_x0017_A*$_x001E_-\tó_x0017_AÂÊ\"XÚð_x0017_AsÏ¹G\\ñ_x0017_Aº_x001B_â_x000F_\u008dñ_x0017_A¼\t\u0087$Jñ_x0017_A\u0092_x0015__x0015_¡Pò_x0017_A\u009f\u0096^ÔUñ_x0017_Aà_x001D_1.-ò_x0017_AÚ_x000B_\u00841\u009dñ_x0017_AEÉn¢_x0011_ñ_x0017_A_x0018_Ò\u009fÀ_x0005_ñ_x0017_AÈlëÃ4ñ_x0017_A\u0087òÈµ_x001B_ó_x0017_Aô_x0003_w_x0018_0ó_x0017_A_x0001__x0002_Â8t©»ñ_x0017_AØV_x0014_ÉHñ_x0017_A9¨A9Ãó_x0017_A_x0002_\u0085\u0083v\u0083ó_x0017_AIò\tC!ò_x0017_A\u009di1múò_x0017_AÜ¡\u009f?Òñ_x0017_Aµ½_x001C_\u0098sò_x0017_A\tUÃ__x0010_ñ_x0017_Aj\u008aëW÷ñ_x0017_Aö_x0006_ÉëÞñ_x0017_A¬VÀJÅñ_x0017_Aãºõ_x0005__x001B_ò_x0017_AÝçÇ\u008c¡ñ_x0017_A\u0093?z©pñ_x0017_A¼_x0011__x000C_@\u009fò_x0017_AâD°Üíð_x0017_AâI_x0016_\u0091éñ_x0017_A9|û\u008dtñ_x0017_A,~\u008eJHò_x0017_AC©Ü_x000F_Êð_x0017_AÉ]Aaàñ_x0017_A\u0086b«\u007f&ò_x0017_Að¡SØ\tñ_x0017_A_x0012_\u009eb}_x0015_ò_x0017_A$ÀÈ\u008f£ñ_x0017_AZ\u0097+_Ýð_x0017_A_x0002_ÅL6_x0007_ò_x0017_A_x0010_í\u0095_x0010_8ò_x0017_AAwM&\u0085ñ_x0017_A¾È_x001C__x000B_Wð_x0017_An#IÙ_x0001__x0003_Kð_x0017_AÖÆÝ«wó_x0017_AoC};jñ_x0017_A±\u0094\u0088ðÙò_x0017_Aö¹ó~_x000F_ñ_x0017_A\u0088Ì_x0003_2_x0013_ñ_x0017_A7_x0012_´8Çñ_x0017_Ayì&È¢ò_x0017_A_x0013_\u0090\u007f~uð_x0017_A\u0094_x001D__x0012_\u0096.ñ_x0017_Aúü\u009d§¶ó_x0017_A_x000B_äï;Wó_x0017_A3-Ì_x0005_(ó_x0017_Aÿ\\Î\u0087çñ_x0017_A&Q}\u0087Ýò_x0017_AÖÝÇ ·ò_x0017_APú%Ê0ð_x0017_AQ\u008d\u009fQâð_x0017_AË,\u009d»¿ñ_x0017_A\u0084\u008a©@&ñ_x0017_A7ÿK5mñ_x0017_A&+óBoñ_x0017_Ap_x001B_Ê_x0019_Oñ_x0017_A«òj%_x000F_ò_x0017_A_x0002_ÿÓ\u0080×ñ_x0017_AÐwñ\u0082\"ñ_x0017_A5ßPIÎñ_x0017_AÔ-_x0002__x000E_fò_x0017_A\u009b\u009a\u007f\u0098_x0007_ò_x0017_A3-Ì_x0005_(ó_x0017_A¢@Jw1ñ_x0017_A¿â'8oñ_x0017_A_x0002__x0003__x0008_¢}u_x0003_ò_x0017_ABà_x001D_j\u0088ñ_x0017_Aw/3\u0087úð_x0017_A_x0007_^§\u0082<ò_x0017_Ah\u0095\u0093±Éñ_x0017_AÿýÉZôñ_x0017_A&x_x0017_.´ð_x0017_A_x0007__x0004_ÜÁ:ñ_x0017_A|\u008d>±7ò_x0017_A_x000C_$É\t(ò_x0017_A¨úóÈWò_x0017_A³ÄT}_x0010_ò_x0017_AÕLl_x000D_£ñ_x0017_Aþa¶\u0095_x0012_ò_x0017_A¾S»»Xñ_x0017_AÚ¤çÂ@ó_x0017_Ag÷¡\u0090|ñ_x0017_Ay\u008dag%ñ_x0017_Aé¤ru_x0010_ò_x0017_Aôp¼ îð_x0017_A_x0015_\u0085\u0096\u0085&ò_x0017_A-1Ã_x0006_xó_x0017_A/Aç·¢ñ_x0017_AS_\u009cÜþð_x0017_A<|q\u008c¡ò_x0017_A}ÌÚp¤ð_x0017_A\u008319S{ñ_x0017_A§Ï_x0001_¯¾ò_x0017_ABà_x001D_j\u0088ñ_x0017_A6\u0084ÐIÙñ_x0017_AØ_x001F_W\u0084)ò_x0017_AC\u008c¥5_x0002__x0003_ëñ_x0017_AÒõ_x0014_v9ò_x0017_AÁ_x0014_pö4ó_x0017_AKF\t_x0001_\u0083ñ_x0017_A¯â\u009a\u0085[ñ_x0017_A\u0089îÝ\u008aKò_x0017_A0èä]\u0091ð_x0017_AÙJà¸_x001D_ò_x0017_Ak\u0094_x0002_Ê÷ñ_x0017_A\u0093>©¬Vò_x0017_AS\u0091\"Ã_x0013_ò_x0017_A_x0001_@e×\u0087ñ_x0017_AÀ_x000C_\u0092yðñ_x0017_A\u00822\u007f#Gò_x0017_AUÔ\\Q_x001F_ó_x0017_Aói_x000B_y(ó_x0017_A_x0001_Îé6Cñ_x0017_AXú\tEIñ_x0017_AÖÄoÌ3ò_x0017_AZhzû_x000D_ó_x0017_A­ç:§7ò_x0017_Aº=_x0011_2wò_x0017_AØÜ÷tOò_x0017_AUÉeÍ_x000B_ó_x0017_A\u008bØ9_x0002_·ñ_x0017_A²ñÎõÓñ_x0017_A·3_x000F_ã0ñ_x0017_Aã_x0006_é¨ãò_x0017_A}\u007f\u008bºØñ_x0017_A_x0012_\u008aP :ñ_x0017_A_x000C_`c¶øñ_x0017_Aúü\u009d§¶ó_x0017_A_x0001__x0002_Dù¬Ìâñ_x0017_A q<è_x0004_ò_x0017_AÐj_x001D_\u009aPñ_x0017_A\u0080\"ê_x001E_(ñ_x0017_A¯3V_x0001__x001D_ò_x0017_A7_x0012_´8Çñ_x0017_AL!(J\u0091ñ_x0017_AU¨ªcÀñ_x0017_A\u0098\u008aÎ¢!ó_x0017_A& ==~ó_x0017_A´¡|@1ò_x0017_ANha_x001F_ßñ_x0017_A´G½bKñ_x0017_A¯EèÝIñ_x0017_A2¾ª\u0083_x0012_ó_x0017_AöÓáQ÷ñ_x0017_ADë¿\u0086¬ó_x0017_Awñ_x0002_P_x0006_ò_x0017_AZÇ\u0090Î~ñ_x0017_Aà¹ìÆãò_x0017_A*ô_x000F_'&ñ_x0017_A]¤_x001D__x0008_Áñ_x0017_AÙJà¸_x001D_ò_x0017_ANõÐµ\u007fñ_x0017_A;EØæHó_x0017_A³\u009eÉ_x001F_ýð_x0017_AàWÕñZñ_x0017_A`_x001D_ù_x001E_·ð_x0017_ATù\u009b_x0003_ðñ_x0017_A\u008b;¢\u0099üò_x0017_A£\u00864D_x0014_ñ_x0017_A3ÖÌ~_x0001__x0006_Gñ_x0017_A_x000F_\u0085ó_x001E_+ò_x0017_A1'Ïy"}},{"$cut":{"chars":50754,"head":"4a426e2a69b1d9a9808d55b3d033d5ee_x0006__x0008_4\u0090!Èí6#AYþa?_x000D_@#A_x001B_·\u0089ß[G#A¬\u009e_x0003_ô_x001B_A#A27,.Ï/#A_x001F_~\u009fÓPB#A_x0006_-\u0088D£9#A)´4^99#A\u0090øi_x001C_ø7#A_x0001_\u0097.Fq<#Au\u009b¶¾_x0007_<#Aÿ¬C_x000D_i4#A¾áÊÃ@:#AÀ\u008eÀ¿ö_x001C_#AkÝñ7ÊO#AÚ.ì\u008bª0#A_x0017_÷Æz½_x001D_#ATÜjÝ\u0082_x001D_#A_x0006__x001F_N:_x0005_8#AÅ!E\u0084m@#A\u0086é_x0016_¶_x0004_E#A_x001D_?\u0095µs8#A_x0002__x0015__ÄPD#AduðÙ^9#Az&~ç_x0005_2#AÿQjõ¬9#AHê_x0011_A\u0083Q#AîÿY_x0005_>7#AÅµZsè2#AÁ&_x0016__x0013_\u009a-#AÂ\u0098\tÏf #AYþa?_x0001__x0003__x000D_@#APØ_x0008_\"[3#A_x0013_Ê_x0017_¼O8#AË2ï*PH#A\u0084U\u0090)ÐH#AÀ ±\u009dFA#A\u008e°)+JB#Aq¢g_x0005_ûK#Ad'MaËI#Aº¹0\u0088:1#A\u00869b_x0010_K<#A2\u008d_x0014_NÆ=#A_x001D_ünE_x0003_G#Aç´\u0091ì65#AÀg]\u009byD#AÞ_x000D_F·97#Ax6\u0080]é@#A5.\u0091ò_x000E_)#AÂþ=¥Á4#Aÿ¢_x0002_&P+#A\u009d;òA¦,#A+_x0019__x0004__x0016_C6#Aü¼$\u008bÞ;#Ao-æm,G#A/iëCE8#A\u009aúøÚÔQ#A\u0095KãYõS#AVµ_x0005_hûH#A_x000D_}3n._x001D_#AD|×,\u0091E#A°¥H<¿6#AçÔG_x0002_¡J#A_x0003__x0004_\u0097\u0087¥×&7#A¨_x001F_qWÉP#A;¨\u008dÎ_x0017_Q#A¥_x0013_×\u008f-6#A}\t%ÔXC#Aºõ\u009eÐüI#A_x001E_ê}\u0092_x0016_3#A¦_x0002_À9k=#A¿\u0094_x0004_¸¾+#A±)Ê@MG#A\u009av¼cÜ?#AXèU=·5#AÊNbP\u008e2#A2tÃÍ0:#AS`_x000D__x000B_´8#A_x0003_x_x0014__x0006_£?#Af¿¨_x0016_tH#AJ­íê_x0005_C#Aû1¯\u009c\u00881#A¦Î?\u008b¼B#A_x0006_>\u009cbd@#Aô;Û\u009d_x0001_)#AZãn¡EJ#A\u0092Ó_x0008_Ê\u0091*#A\\+HhCH#A%ÑDISB#Ae_{³m5#A_x001B_%Å»¡/#A:ðpz¾9#Aú²o\u0087}8#Aj\u0097mJ\u008b7#A¬4A\u0083_x0001__x0004_\u0096A#A-x\u008c\\¼;#A0²<øc@#AdÀ\u0080_x0006_$B#As\u00898{Ú-#A_x0016_ß_x000E_o_x0018_)#A<æ§Á_x000C_8#A\u008a_x0014_O_x0017_Ô6#A_x0003__x001C_Æ}.F#Ae\u009aó\u0082\u008aB#Ay5í»A6#A_x000C_K1j'I#A!±O_x0007_\u008eT#AÞëS_x001A_K?#A)_x0019_a<jC#A·@7_x001E_âF#A_x001E_aÿ_x0002_\u0098P#A¹îù_x001B_fB#Aìªí²Á3#A9\u009e\u0096fà;#AÆ¸^NÂJ#Axì_x0008_mC)#A_x0016_-íDÑ:#A_x0004_ÌoåÅ3#AÐ¨ò._x0015_@#ALkôËÐX#A+ë\u008f\u008a_x0008_6#A8\u0082@¯_x0008_,#A×gw%~?#AÁy\u008dí_x001D_A#AÄ)ôfvK#A\u008a_x001A_¿Z-7#A_x0002__x0004_\u0087µ×Ç®3#A}__x0013_¥XD#A«®\u0090¸xB#A<ú\u009b\u0080¦D#A,4\u009f8uI#A_x0017_{{_x0001_åL#A_x0008_JþÎ\u009c2#Aß}Í|°A#Aä°\"vø0#A_x0015_$í_x0018_H>#A_x001B_ae\u008coI#AÔ'¿À_x0001_9#AbW\u009a]|>#Ac_x0015_`Ë_x0017_C#A·`0_x001D_ò8#AEwëj>J#Aeÿ\u0094\u008aú/#A\u0095Å,¢Æ\\#ARÄL_x0017_ÛH#AÙÔÿ_x001D_²I#Aìsx_x0003_ 2#A_x0012_Ìö¨_x0004_M#Aæ_þàN6#Ayx\u0084Æn5#A6þ(\u009a¯8#A¨¯_x000C__x000B_ÌK#AçVü¶¥7#A\u009b\u009e£ûT+#A3\u0099½ò-K#AO\u009bÕ_x0003__x0007_7#AÆìc4\u0095B#A6cUç_x0001__x0004_[6#AWíz\u009d_x0002_S#AHæÌNÆ?#Aò\u0089¦hC<#A9_x000D_©!þF#AçþBBú@#A]_x0003_\u0087í\u008f/#Ap_x0001_ °â7#A\u0090\u008b_x001F_\u0082_x0004_K#A_x0004_v¢v\u008fI#A9\u009e\u0096fà;#AIô5\u0089ÚH#A4\u0090!Èí6#A|r\u008afE5#A_x0003_\u0087\u0095Á_x0003_;#A¤®_x000B_*¡!#A?à¸³f1#A\u009c·¸.§3#AÄôì\u0091_x0010_4#AOjà{r+#AÄÿ´ü_x0007_6#A4vfééC#Añõ_x0012_\"'1#A\u007f·\"{E)#AjÀq«è>#A\u0082^ùqø5#AY(çBjD#A¼©\u009b´Ø'#Aæ\u0095À_x0003_ï;#A\u008ed\"zQ>#AKIÞ¥Ø0#A\u009dJ3ÝªK#A_x0002__x0003_K_x0015_j\u0091°:#A¬Ìªj_x000F_<#AÜ9ý\u0093»Q#A_x0019_[J[55#AÙ8_x0002_ï_x0014_6#A\"w\u009dJ\"=#A_x0016_c\u0084_x0016_þ;#A\"_x000E_\u0093ziR#A´ø2_x000C_'1#A_x0001_\u007fcõ_x0012_9#A`\u0080dòàE#A,äÀçÖA#A_x0003_ùD0_x0010_'!A1\"KC[o!A\u0096\u0087_x000F_RÀm!A_x0001_¢c\u0093í\u008e!Aâ_x0006_u¡LR!A\u0085»_x0012__x0015_ÙS!Ad\u0085KsÊ_x0011_!A\u0080¶ÅP/m!A_x001C_0un*\u0089!A¯åÚfË\u007f!AL_x0008_\u0081IÊz!A\u008f1n¦_x0002_{!Aâ_x0012_1\u0090_x0003_O!A#1¼¤ª]!A*)Ù_x0011_Ô)!A_x0019_°¥\u0090+.!A~_x0008_N\u008f§<!A°Y¢ï_x0010_E!AæO\u0087_x000D_bV!A\u008dÔ£8_x0002__x0005_ùW!AWãHM0E!A£|'_x001E_'!!Aj_x001B_yãßc!A¥\u0092)zº<!AÀ.Ý\u008d&j!AÉæâ\\o\u0089!A_x001C_¼N-RW!A_x000E_t®E <!A_x000C_Æ\u009e_x0014_âu!A_x0012_x_x0003_qçW!AÖ\u0095àùY=!A\u0092\u009eHv¿[!AR0_x0006__x0003_\u0080E!A Mø¨ñ0!AFÌÔÌYV!A_x0004_\u009bu\u0081U/!Aº[\u009e°ïR!A_x0016_.£þ\u0090_x001B_!Aáü¬¦ãN!A\u0082'0Âæe!Aä_x001B_U\u0098\u008cm!A>ôYÌ%_x001B_!A¸ÛÖ£|T!AèN\u0092÷\u008d!!AJrºì\u0092X!A*]{öÃ-!Aø_x0017_\u0085_x0004_?e!AR\u009c_x0005_­_x0001_T!A_x001A_\u008f_x001D_(®/!AÎûØtº:!A\u0086|§&\u0089O!A_x0001__x0002_ IQß33!A(Y,_x0003_Ð*!A\u0090_x0019_ªÌ3ò A\u008c?KÖÒ_x001A_!AV B·é_x001E_!A\u0096¼\u0096\u0080þ>!Av\u0082\u0089¹}h!A@óÚ\u0084(!!AÂ_x001A_²0ó-!Aà\u008eÌ,SQ!ASº_x001E_Uåu!ATkL_x000F_©)!A\u008ci/Â,F!A¶aeãá,!AdöÀÉ±u!AöôñÈÓU!A<2â\\·3!A\u009cW&²^c!A}\u008ej1YL!A_\u0081\u0096Ï_x0007_ÿ A ;2©*s!A)_x0016_iÆg\u008a!A\u009eLX à-!AJ_x0003_\u0092¦X|!A\u009aþ:m7#!A\u0087Ô\u0088%Hk!AV_x0012_Aµ\u0087>!AGU\u0088_x000E_aT!A(mÐûîf!A.¹¨\u0082°l!A_7ñ\tèg!A\u009eOpä_x0001__x0004_jý A -ì@é\u007f!Ap\u007f*\u008d\tF!AÖÌ\\_x0006_&V!AµÊ\u007fÿíg!A>\u009d¥·3~!AH\u0083¦\u009a±u!A_x000F_¼_x001C_¿Âc!AÅñ_x0004_·Ø>!AXôd\u0084d\u0086!AÊ;_x0018_\u0081\u0089\u0087!A_x001F_¿\u008b_x000D_x\u0085!AæÝ_x001B_*_x0007_'!A\u0092.\u009f8_x001D_k!A^÷;\u0093\u0080,!Aj\u007fv_x0016_·D!Aî4þÍvI!A3ØìDLH!A_x0003__x000F_òî¥_x0015_!A<&\u008a¥&i!A;gJçeR!Aî2îo&\u008e!A_x001E_ÁEKC~!A\u0081¹¦\t_x0008__x0016_!A+¨/\u008e\u008d?!A\u0094\u007f_x0002_êpa!A2+a ÊA!A_x0016_íCÎßl!A\u009f.Í þy!A_x0014_Cs¬_x0019_~!Aî._x0010_K\u008ar!AÐ¼ÒÑ_x0003__x0014_!A_x0001__x0002_+îÑçæz!AâP\u008f\u0092àU!A5dX&_x0015_i!AÀÍ\u0089¿_x0019__x001B_!AdR_x0017_ûcü AJ=['_x000E_\u0086!A\u008a\u0094Ýµ_x0010_)!A'd_x0008_±_x000E_E!Aô¿J_x0005_\u008e\"!A{ÓÁî+8!A\u008c¾"}},{"$cut":{"chars":52356,"head":"52f3418e71730836e094579edc2a8fc3_x0002__x0006_[$bËu%2A\u008c¹\u009fªãV2AÕ\u009aO_x0012_×\\2A¹ù$¿ÕP2AZø{_x001A_´-2AÝÅ_x0012__x000B_ÌA2A¢û\u0093_x0006_\u0098g2A2ì_x001E_Ï_x0001_K2Ab_x0003__x0001_Y_x0011_H2A»ZH_Á[2AFæ¹)_x000F_=2A\u0092W \u0096_x0008_;2Aô®_x000D_¨ÆB2A5_x0005_~|.s2AI2_x0011_1­;2AjÛzv\u008f_x001F_2AÌxd¸à%2A\u0089o_x001A_á]:2A_x0018_WwH_x0005_y2ACïÕ¶ö/2A\u009eÏI_x0004_ÂB2AV_x0016_°óh/2A*Û÷\u0097_x0014_%2A¢öÕ\t\u0095&2A0\u0082\u008fÁu+2Aî.Ð_x001C_¾T2AÜ_x0004_\u0087\u0083Ê22Azå@0\u0086h2A:¸\u0086½QR2AFHQ\u0093Z82A\u008bÈI\u008fOr2AO¨_x0019_\\_x0001__x0003_\u0080N2A¦3ËãgM2AÔçÊÐoA2A0_x001F_5_x0001_7Y2Aêa&ûÅ?2A¹y_x0011_ÜÖK2A4ô\u009alK62A_x0016_º\u0090\u008cþ_x0005_2AÍW_x000D_x_x0011_32AN®I\u008dd=2AÉJ$\u0081!o2AlÜ¨s±A2AîT¬9Õ_x001F_2A_x0017_ª8Äý52AÀ³e\"H]2A_x000E_3\u0089±À62AÜ¼'¿_x0006_42A\\øltQ52A\u009a~Zº.g2Al×'Ötb2A}_x0006_{im#2A_x0002_+o\u0089ñ42A\u009a\t¢îé_2A_x0018_\u009cø¼Ìd2A_x001F_í7#uH2A$OÙÅòQ2A3_x0013__x0014_\u0096Ì<2AÞÁ²:w.2AúÏDÕqB2A;\u0098k>\u009802A;_x000B_O¹T'2A\u0086×_x001A_vvN2A_x0002__x0003_3àq©£)2A_x0008__x0003_¬¾x-2APÿkÿ©!2A?1A\u0084_x0016_<2A}_x0006_{im#2A~BÆt'G2Amxjè¶_x0014_2A¶ë}§_x0001_q2A_x0004__x0007_Ö@ 62Aâ^_x0001_6_x0001_Z2ADN DQZ2A4*B\u008f\u0080J2A¬\u0095_x000D_yW:2A_x000D_P_x0012_ò\u008b%2Am;\u0084_x0010_¶A2A_x0012_ØÇÒ¡.2A_x001C_Õ\u008eóN82A[ÅQ)\u0099,2A ÷º*kX2A_B.o\tY2AfÝ:÷é72A\u0082\u0083æ9\u008b.2AJ§0_x001D_ÉU2Aè$@³ó)2A\u008b@_x001E_%T.2AÈ\u00838ù²>2A_x0010_´²r_x0014_=2Aü\u008b·ö\\L2A\u009dÐ_x0016_Ô192A´T/K_x0007_`2An\u009fK\u0087\u0088Q2AX@Ê_x000E__x0001__x0002_O!2Aºñ1j¶[2A_x0014_O_x001C_©_x0019_#2AP_x0004_Õ¥j'2A¨Aó\u008cg'2A7¨D#â`2A\u009d£Ù\u009eI|2A_x001B_\u0086ô¸l)2A\u0080º}ðeK2A¨Aó\u008cg'2AøWuÙ\u0091=2Aüÿ-Òfe2AZ®\u0092:¤@2A\u0088\u009e\tx\u0088V2AZÚÝ_x000F_àv2A<_x0002_jÌÅ_2AÀËvÉH32AV\u0095ês_x0008_y2AÃY/Ðb72A_x000C_\u008f/ê_x000F_12A^£ÄZåL2Aîo ú_x0011_02A6'ç¤mL2A(¢->óT2AÁB_x001D_\u0090_x0005_32A¤Ò1Æ\u009f:2A91²¸LV2Aa9_x0005__x001D_¨*2Aô\u009d:e§B2A¤S<@O_x000D_2Adø()b 2AõfàF£\"2A_x0004__x0005_ªø²_x0003_Ø]2A8¨ôÑ\u009aY2Aãh°_x0014_b02A_x0007_­zÒ\u009d#2A&Ú\u0099\u0083à.2Az|e÷ñ72A\u0082_x0017_éÃOY2A_x0018_Ø\u008cíbZ2A© Â\t_x0011_'2AG\u008dðÛ®72A0þ\u008aím92A²þH[Pm2A¤^_x001D_â_22Aù_x001C_²Ü²02A\u0092\u0097ã_x0002_\u0085O2A8_x0013_p\u00835L2A­_â_x0003_C)2A_x000E__x001F_ôì_x001E_*2AÂr8bÂ=2AÖJ(\"<52A_x0007__x000B_w§\\x2AHØ_x001C_´[52A/./_x001C_D52A}¥?PÇ@2A´\u0096\u0087 Á62Av_ö_x0004_¿)2A_x0010_Û_x0003__x0005_\u0084\"2A¦ªõ:Ð^2A\u009eÏH\\ãN2Aá¯_x0001_ì_82A\u009a_x0010_d_x0015_eG2ApÝµ_x0007__x0002__x0003_«Z2A_x001D_õ_x001E_\u008asT2A¹2,ÀUY2A}_x0006_{im#2A\u009a_x001B_4\u007fòF2AÔÅOTË02A_x000E_\u0097õbH=2A|ô_x001A_\u008b\u0086f2A\u009dè>gûG2A_x000C_ê@ç,L2AÍ»_x0001__x001C_,/2AèrÃ~_x001F_R2AxåÍ_x0008_z52A\\\u0080Î}_x001D_92A\\\u0081Ô3UT2A:úäwÂV2A¿S®ñ\u008192A\u009býºõü!2AÀ#]q+72A\u0088m,CgE2AÜÌãI\u009572A_x001C_pn\u0097°U2AX{\u0088úÚc2Ai1\u0087¬6E2AÙ<Oö Z2A_x0018_¯FÚpP2A¢³\u0092_x0011_á92A_x0008_#¦\"_x0015_/2AæÑd¾Ö.2Aú_x000E_ì_x0003_JU2A\u0082«Øti-2AH\u009d9a_x0017_&2A_x0001_\tH3D Ñ%2AHê]p³$2AÃu\"\u007få_x0007_2A,Ê\u008d_x0013_Öl2A§8*î¯,2AÊ×d=P;2Aöe-d%42Aéü_x000C__­_x0010_2A¯Ö_x0003_/vk2AÐ_x001E_°õÝK2AY@¡Ó¼@2A2_x001F_<Xy*2A\u009ar\u0088Üí>2Aê%Íæ{p2A\u009eñl_x0006_$72A\u0084\u0095È_x0002_æ<2AªÕ\u0081qwM2AÂ©ó=_x0002_)2A¬ÒH_x0004__x0001_22A[ü_x0005_Öo42A²t¦\u0093ó;2A\u008e\u0094UèCO2A¹_gyú(2AKÌT%_x0016_\\2Aô»J_x0015__x0008_22Aä\u0086¼ß\u009182A<Ê\u0097¼L22A\u0084·¼M_x0018_M2Ax\u009a¥9\u008cT2AZ}ö\u0097_x000C_r2Ao|ùËûN2A_x0016_\u0091-=_x0001__x0002_÷D2Aô¸_x0013_m_D2A~\u0099½_x001A_þo2A_x000C_ÎW\u0088¹.2A_x0008_v§BÑ%2A`äa_x000C_ñA2A(_x0018_£i~E2AÆ¤\u0084-\u009e42A|a+T~n2A\u0082\u009f'M\\_x001C_2A\u0084ûµFkZ2Aà{,\u0097ý/2AK_x0015_Í_x0013_\u008f#2AÚroÎ.C2A0¹Øøäo2A8_x0013_p\u00835L2AHâ_x0001_O\u009bg2A_x0005_\u00953Ç¥M2A ÿ\u0094.êF2A6\u0094_x001D__x0012_UL2AØÊÂlÀV2Aäe¾&é#2AlþOOå>2AüDO _x0008_;2A~_x001A_æP|R2AÜ\u0084à¹àe2AìBF?£=2A Ï_x0016_Ø_x0014__x0011_2A_x000E_fcÊß;2A:\u0093n\u0087¨n2AMÍ£\u0084R82A\u0096R\u0081\u009bx\\2A_x0002__x0003_V^Å,(V2A_x0010_ ÊÌ\u008d@2A!ûµ _x0005_@2A_x0010_ý_x001D_·¼?2AÉ©\u009f_x000F_E_2A8@®_x0013_±\t2A3àq©£)2An\u0095ñlCP2A_x0010_ _x0019__x001B_!\"2AÙÔ\u0080\u0088_x000D_G2A_x000E__x001F_ôì_x001E_*2A\u008eÐléô02A0Ý!\u009f\t>2A_x0005_Wo\u0085ø^2Ap«ý¶_x0015_32A6\t]\u0098²g2AUò_x0016_¼Ú,2A¢\"FÀ\u0095!2AZÚÝ_x000F_àv2A¶^C_x0017_j]2Aª\u0092^\u0085_x0006_62A\"W@\u0094â_x001D_2AO\u0085^þï 2A_x0012__x0016__x0015_yÇD2Aü_x0019__x0001_Y¬Q2A\u0098)¶¥?`2Aê,ú@,22ATw_x0002_-_x0012_U2A¢¡\u00944ÿ^2A¨´çV:=2A\u009aã\u008cõËC2A¼bûg_x0003__x0006_ô;2A_x0010_\u008fÖb¬@2A_x000C_h´ã_x0019_/2AÎ3¡q792A_x0002_+o\u0089ñ42AârN\u007füE2AÂlP?<r2A½\u0082d_x0005_ãe2AÍ_x0002_ßÃ\u0092@2AÌa¿ý\u009172Ad!à¤u)2A\u0094Õv·)f2A_x0003_)ÃòA_x001D_2Aâ`ì\u0097¾L2Apÿ,Ôhx2Ax\u0088_x001B_¼9Q2A}\u0095\u0088#îW2A¢ª_x0019_D\u0091[2AIa\u0097|_x0010_^2AïpZ]_x000B_N2Ay\u009czáß\"2A<YnOTL2A_x0001_i\u008eÏ\u0080S2Añ·¦\u009bS_x001F_2AN\u009f²Û6I2A_x0001_G\u0099ÅÑ92A\u009e®N_x001C__]2A._x0004_xøg62AZ5_x001F_Ï+b2Aä<e\u009aZh2AìYA_x001B_\u0097+2A:_x0005_Y¾±:2A_x0006__x0007_u¼»HO02A_x0010_F\u0098©Ýd2A_x001E_\u0091ß &C2A_x0012_²_x0004__x0005_¿92AÎ_x0003_ðÿaU2AÒs¢Þû82A\u0086&Ý\u008déA2A¹_x0002_¡Ú\u009542A"}},{"$cut":{"chars":51840,"head":"00c1ea2dbb67c0cd158c3dd12701606e_x0001__x0002_ð_x001D_\u008b\u008b_x0012__\u0092@¨$ÌM_x000B__x001D_°@\u0083s¹ØÂudÀ\u007fJÐ(ûé\u009b@eõ óÒ$´@Ñ\u008f_x001E_¥)¤¢@E\tþf$»¾@_x0011_¥©_x0011_P\u009a»@cöæåV¦°@,\u0091£OG\u009c§@­Ä\u009dWu\u009b¤@_x0010_°\u0089lk_x0011_\u0082@ëgõ\u008eèúÂ@Ï_x0003_I¹_x0004_aÂ@¼_x001E_|\u0091_x0003_,·@@æhR¦O²@«ô\u009b\u0084âe¬@Køâ\u0098\u009c@±@_x0010_¿¸àÔ.¸@;|\u0091éË_x000F_²@~!íD¨\\¸À|¨\u009a­B¾­@/³\u009bòßsº@_x0017_óV\u0090º[\u0087@.«\u0089\t\u008e4¹@_x0004_\"m\u008füÂ\u0096@|_x0013_ç\\nJ|@¤b¶ý_x000B_y·@_x0019_Á_x0019_2ÇÉ¨@®_x0016_~µ`¶£@¡$fg9é«@#_x0002__x0016_h_x0002__x0003_]\u009f¯@Ü¢øyI´°@ë$ì\u0097\u007f2´@¹vZ³_x001B_Ð°@_x001F_\u0080_x0005_\u0087\u0090_x0013_ª@IpÎ\u0094\u008c_x0005_»@sÑ¨Åàó¼@I©&Q¿A¬@_x0006_\u0094Ãrh»±@DL_x001D_0c_x001B_£@_x000E_'¶_x0001_ÒHtÀk_x000B__x0006_{­_x001D_¬@Ä\u008f*²Å\u0092¥@\u0088B;øsÏ¬@û_x0019_?Kv_x0003_§@\u0094marsç·@E­Yù]_x001D_²@Ç¶Y@\u008ft¬@_x001F_ÿãÚ\u0089q°@_x0010_½_x000F_ð 1jÀåc\u0094jê_x0007_ª@_£WÊM¹¹@/© øÁ.·@5éãâ_x001C__x0004_´@_x001C_;**_x0003_\u0095­@Ýnç­8Á»@÷Ä´_x0002_*_x0001_¤@-O;o_x000D_c®@[(þ\u008cãp¥À6k\u0081$^K\u0099ÀÌì;X\u0092.­@Åw\u0084ï7_x001B_¯@_x0001__x0003_\u0090Ã_x0015_Ì_x0018_C§@Xk\u0087_x001E_\u009bvº@ÝrRM¿|¯@_x000D_©(z,Eµ@ñÿ¹.d2­@_x0018_\u008câ\u0097_x001F_í°@\\ç®;\u009c6©@üä+µÝ\u0084\u009aÀC_x000E__x0012_ÝzÝ·@]Ã\u008bÓÈo¬@Ñ\u0082ì®+\u0094¤ÀLls_x0017_h_x000B_¾@5±Ô!y\u009f§@¥&\u0095ay­§@ì_x001D_ó{Îä«@iUO§\u009a_x0008_©@8·l\u0080~_x000B_\u008bÀ­^àKÈ_x0004_®@¶¬K_x0014_>_x0002_¡@(øyÝ$À\u0095À_x0011_ÃßJT;»@¨/Mñ\u00812\u0095À(\u0085¸_x001A_>sbÀb_x0018_s\u0096§B³@_x0003_¤#Ý\u0090\\\u009fÀ9Ïi¹K2´@1-_x0012__x0016_Ì_x0014_·@\u009e0à5_x0002_o©@\u0098\u0084\u009f&\u009cô£@'B_V\u0088\u008a»@p£3\u0081Sè¸@\u0099£úû_x0004__x0005_U´¬@\u0085³_x001D__x0016_ª\u008frÀ\u0086_x000E_\u0094ïá_x000E_x@Iªçß\u009d£¶@Æú/ÜÙ4\u0099@¶j\u0091¶_x001D_£ª@¬'!Ñ\u0093Ó¼@Î\u0093ðo{_x001D_\u0086À«:óÆ\u009f£¬@Û)À\u0080AÒ\u0096@\t3îïrk«@\u0089X_x0004_+\t2\u0095@*¥»!_x0019_`ª@sÖ´_Ðr®@\u0097bÀz\u00905²@Ü_x001F_daP>\u009a@ýÌËb5á©@q´\u0081ÆS_x001B_¬@_x0012_×Ò¯ÛD·@ªAÇR_x001F_\u0089¤@;d\u0088g_x0003__x001D_©@Ldv_x001E_ÔÝe@í¨C©\\Æ\u009b@JN_x0002_i\u008a_x000F_ÐÀ\u008e\u008c_x0004_ã_x000D__x0006_·@\u009cäã\u0088új\u0098@êÛ_x0001_¥W7 ÀµÉ_x0019__x0015_äµ¨@4|xii{\u0096@j*a_x0007_/ÿ\u007fÀ(eöX½¤¦@ õñ]_x000B_9«@_x0001__x0002_ ¯jHp«AÀ_x0015__x0016_¢_x0013_\u0092`\u0090@\u009d_x001A_ÀY_x0012_,®@Ã2\u008a¶TA¬@ ,o£å_x0013_\u0094@Ðo4\u008d¿A°@!òS\u008c_Í²@¥_x001C_%¶ÆH§@whÑm\u009en¶@hNð+\u007fÂ\u008aÀ¬\u0081_x0013_Ñ_x001D_O¹@ä~rAuß½@\u0091\u0092Û4_x0006_;·@Ó4\u008f ß0\u009a@y\u0090_x0018_\u0082N§\u0098@¼\u0088Üd\u0095n­@nÉòÊ\u0099T¹@Å\u008b´X\u00814\u009c@¾°\u008b_x001C_U\u0089uÀ¨±_x0011_\u008e\u0095Q±@|\t¤\u0084_x000B_»´@\u009c×\u009d¼ìÕ§@H}9_x001C_$n\u0097À\u0097J\u009cnKL¿@ç{\u009b1@ò\u0099À³x6ï_x0001_\u009e¸@h\u0088+4Î¡N@\u009b_x0008_\u0091nÆ\u008e¹@¥ße8=°§@\u009e­*=ì\u0087°@¾=\u007fe\u009fm\u009a@À_\\Ï_x0001__x0003_188À_x000F_G_x0002__x0017_~u\u0091À\u0092c\u0097\u0089]n\u0084À®÷[N!ã\u0084À\u0087\u008d_x000B_¹Åã²@è_x0012_°+Ã_x0005_\u0082@\u0087_x0001_ÌÀ_x0018__x0003_°@¥g£__x001D_è\u009bÀú= ½ý´­@\u0093_x0007_i©§R\u008aÀïÖ_x0003_3`o\u0096@\u0086ÏMÅöm³@+­é¤úÂ¥@u_x000D_ùÏO\u009d³À-_x0008_,TÐ\u009e\u0094@\u0087®¡×\u008a£±@\"ÚàGégÀ@\u008d¹KëÎy¢@__x000F_r5_x0007_¡Â@R\u0099tÏêï¸@\u007fgbæè\"©@Î®ªS_x0017_\u009d·@Àæ_x0018_\"âB¤ÀÂ\u009fõþìa±@[Õ_x0017_ò?\u009b®@Ò6?_x0014_BQ·@¯ò±\u0089¡Ì\u0093@H¬ÅkÜ\u008b³@nÔ<~u\u007f\u0098Àiâ¨_x0012__x001C_b¹@Jñx¤_x001C_OÀ@ÂG#×7Ò¬@_x0001__x0003_rú+Í!/¸@ÞIMÖ¯\u0096¹@Ì_x0002_°`\"x\u0099@ùc\u00967Û^³@ß_x0004_ê_x0002_ªr¤@³é÷eúï¯@\u0088;I÷Ò(\u007fÀþÒ_x0001_µ«G¸@\u0098\u0095/þ\u008eRwÀ;©¶â <·@_x0019_u+_x0014_5_x0018_\u009f@_x001C_÷yû9ý\u009e@/ô\u008dÃJ_x000B_´@Øû(ú]×º@ÈÑöâò\\¥@_x0011_E0{*³µ@õôY_x0018_ýÚ¤@\u0094T÷_x0002_\u009ab±@W\u0090Âe7\u0097À@CG³\u0097ïjuÀf×Z\u0099¹_x0002_\u0098@_x001C_¢¯rs\u0095¶@\u0082àª#(X¥@'°q½NÜ´@Âl¨V_x0002_õ\u0096@_x000E_Ö>A\"(°@òÛÉ_x0008_ýÒ²@²¨R_x000C__x001A_Ø°@ws~yOª¡@T³Ñ×UÌ¸@ºë\u0094_x0017_Hï¨@Ë\u0093´\u0083_x0001__x0008_Çg¨@\t®Ñx½Ý²@'ËL_x0001_\u007f\u0086³@ÀV¡\u0084¿_x0010_ª@ý\u0093Å_x0001_nè\u0098@!)_x000F_®_x0002_ù¼@¶Í\u0084a4^¦@]Â7êOF¥@\u0087I¸É_x0016_¸³@\u0084éQ;\u007f\u0081º@\u0088_x0008_íÓ¤ø¯@Pz#$\u00891\u0097À$\u0081òðí\u009f\u0087@¼®_x0007_Õ_x0003_d`À:q:Ì$3±@_x000C_!\u007f\"_x0019_a¶@\u0086í$_x001B_\u0081o\u0095@í<m_x0002__x001C_ï¥@ä@mJW_x0011_\u0083@ÎÙxx\u0094Ñ\u0095@Øè_x0005_ÉÁª¨@¤\u0094èªþô·@_x0011_¼_x0006_tpI\u008a@\u008a_x0004_£_x000B_\"\t\u0099Àã_\u008eÊÔ(²@êÿ_x000E_zbÊ²@¶/©0\u008d\u0097«@\u0092_x0016_m¶ô[£@uF\u009cëi\u008e\u009e@ùY¡¨µÐ³@,n}±!ò­ÀE<òÊ]àÀ@_x0001__x0004_\u0088Ü¤\u009aÍó¡@Ûs\u008eèþ_x001D_³@\u0082&\u008bë\u009e_x0005_}@EÈ\u008cÏé4¹@_x0007_éËÓxª£@zÑ',*Sº@¢-(²2\tµ@Òè'Å*L±@Ø`9Ó\u0095Ú³@â_x0012_«qº$µ@À\"\u0085We(¼@¶_x000B_ý{=_x0017_ZÀ\u009d)\u008f_x0013_Ñx±@\u008eð_x0002_³lo\u009bÀµ¸\u0086_x0019_)ý³@õ_x0019_¹\u009d_x0015_Ú½@_x0018_|ð_x0017__x0002_k­@<í_x0014_áàN\u008eÀ_x0018_t¸Õ*\u008f±@¤\u00989Ê´Ó¦@·kõÔt=¡@\u007fZSÁ¸ä\u0094@\u0094:w¡Ó_x000B_¹@+ÄãË\u007f( @¨Û[­_x001D_\u008c\u0084@\u0086\u0080\tÀ_x0004_\u009f©@_x000F_ÿü_x0012__x0003_Q¯@üÌ,_x0015_\u0088\u0089\u008f@AÅMí_x001D_k¸@C\u0086úmàà¼@Lñ_x000C_pÖ¥²@pIþ9_x0002__x0005__x0005_Ï\u0093ÀÃ\u009bÔ7Ü\u008e¶@_x0002_\u008b\u008d^²\u0098aÀO_x0018_x_x0001_]\u008dº@x¹¥Cj_x0002_©@A_x001B_E_x0014_d]¤@É¸_x0005_ð}_x000C_\u0098@(w_x000F_ßØðCÀjLU«*D @4\u0085Å´\u009crª@\u0094¾`¢4á²@aQþ\u008d_x000E_\u008a¤@z}8h4ÓÁ@¨_x001B_¨ë»1¹@_x0014_ ö\u0080_x000D_´¯@ü+5H_x0017_ß£@¾Gº\u0088µ\\­@jFÚÓ_x000D_`²@¤ Èì_x0004_*\u007f@ßÔó\u008c[Ì¨@_x0007_#©»*H\u0093@ãÄð«_x000E_O²@ê\u008eÞ\u0087o_x000D_¶@*_x0001_\u0097÷|¾\u009bÀ\\)\u0080~Á¯\u0086À\u0088¾DÔ_x0006_r\u0099ÀÂ!\u0088ØÈÒ³@_x000C_VØód\u0093¶@¶,_x0013_¶¹Ï\u0089@Æ_x0003_{vqò°@X_x001C_ªÃ K·@çê¦µpú¬@"}},{"$cut":{"chars":53874,"head":"859f1ec30e10ab2ac2f2f087d99ff1f1_x0001__x0003_\u0083_x0015_rr\u008a.À@Ë\u009fæ_x0007_±Â£@ÿwMy,1rÀÊ\u0094Ðª\u0094s\u0091@I_x0012_\u0095¾HË©@þ¥ô_x0002_+·\u0093ÀÉñ}'\u0090Ñ\u0095Àð÷_x0019_°_x000D_L\u0091@_x0011_«Ú_x0004_#\u007f\u0085À_x0005_q_x001A__x000F_Vâ²À_x001C_\u0096¬_x0014_ñ5\u0084@\u008aÅ¦2\u0093Õ¶À\u0098_x0015_Ë[_x0011__x001D_´@øÎ_x0008_{?_x0002_P@<7+>Ö3\u009bÀ-_x0008_çB#Á¿À_x0016_­o:]_x0011_YÀ\u009eu\\û_x0019_ë\u009eÀû&_x0013__x0013_è\u009bYÀpÎ<\u00810ÒÌÀí\u008eA_x0018_kL\u0081Àz_x0016_){¤_x0018_\u0092ÀÌà/\u0091:P±À{É5Å\u0098m¡À\u0084ÜN=_x000F_5ÈÀÀÏd÷ÊP\u0096@®û°\u008d__x0006_\u009fÀhÚ_x0010_ç½FÂÀÒU\u0083.@P\u0084À\\\u0099]M_x001B_­ZÀ_x0002_\u009bBSc\u0095\u008b@îÇ_x0008_ü_x0001__x0002_Z«§@}\u007fç\u008dP'\u009bÀ¢\\yzÛº\u0098@\u0098\u008bD\u0097£¸_À>ØÑÓ³m¸ÀÏêßLºD\u0092À\u008f\u0096AîËìIÀk\\_x000B_ÿO¤eÀî.Y\u0086_x0018_¦¿À5µ_x001A_Û¬_x000E_´@!1'_x000C_\u009bD©@P_x000D_Lk_x0013__x0013_\u0092À-òF\u0097÷î\u008eÀ0pw\u007f\u0099ñ\u0093@GÝÒ»¼2¢ÀF`º?sÖ£@t÷ª7 P¨@ºªÏ_x0016_u»©@°:E\u0093_x000E_òJ@K=æÙ¥<­@øú_x0013_òí_x000F_\u0090À¥ _x000E_íýÁf@¢Ö¬\u009ct\u0084\u009eÀ_x001A_íIä ¦ÂÀÀ:?%Ñ\u0082LÀ\"\u008c_x001E__x001A_ø_x0016_·À`zïÀ-_x0004_jÀ\u0090+\u009f¼_x0016_ËKÀ¾bîs¾c\u0086À]x;³Ä±¨@a_x0018_êzÏ\u0086\u009cÀ´ÀH<qi²À_x0002__x0004_\u0086%e\u0098 _x0001_¹ÀK!\u008b=_x0017_Å\u0096À-\u0095_x0006_z(¢©À_x000C_½¸°D>\u0098Àv\u0088²_x0004__x0001_É¸À_x001A_sÊdÃ_x001C_¦ÀËü_x001E_OáÐ\u0084ÀÄ_x001D_Êº3\u0084¡À\u0082_x000F_Gï-çlÀÕ£Þ_x0014_VÁ\u0088À_x0006_!Õyz5\\À\u008díñÓ°\u0091®À_x0018_´Í×»À\u0094@ªÎßTiÿ\u009b@v6i_x000C_ÿã¢@X¢\u0093\u0095Á6\u0080ÀfOm_x0003_Ç_x0005_\u0091ÀöGv|À_x0019_ª@Sî_x0010_BKûeÀhÅUOOã®@\u0096êÕþ¶ÕÄÀÔq£._x001C_«\u009bÀö\u008c_x001E_H(\u0097v@,Bï/\u0091¬ÄÀ\u00987î\u0098\u0099å\u0086À-Ìý­QG\u0084@ªÐü3\u0081\u0099~ÀÁy&_x0016_­a8À§@P\u009fâ*rÀºÑÀ\u0090N¸\u0080À_x001B_®\u0092E_x0015_ã[@ò§\u009bå_x0001__x0002_D\u0090\u008b@@cB²\u0080G\u009fÀ¾$£vl_x0004__Àda «%_x0003_\u007f@v\u008d_x0004_¯|\u009b\u0084ÀT_x0006_bâ5¦\u0086À_x000C_m¦­Å¶_ÀÖ0ï\u007fÝj\u0085Àô¤?_x000D__x0016_\u009b @4H$è{_x000E_|À_x001E_\u0087\u0090 ×¿\u0099À\u0086Ê_x0008_P¸ÕyÀÓ¦Xu_x000C_\\«À_x0010_\u008ffsÙö\u0088ÀÀïI¢½Q\u0097À/\u0096'fì+jÀ¿e·WËñ\u0095ÀÚåªln\u0081qÀ©G_x000E_Ó¤_x0016_~À\u0088¨\u008aÅpv¤À_x000E_ò\u0095_x0014_]j§Ày7õ_x0018_pD\u0093À½¶-\u009d¥ê\u0096Àîkù\u009eÐÖ\u008aÀïTKä÷´\u0082À)SÎÉJ¦\u0081@\u0082\tñ«\u008du½@0¸Ä_x000E_x­\u009dÀ$\u008dF\u009e\u0090wwÀòB9ôH?\u008dÀ\u008b6ÌìYþ\u0090ÀK_x0007_Á«£ÍnÀ_x0001__x0004_Aæ_x000F_,-D¥ÀìZ_x0005_*UZ\u008dÀþËA_x0003_g\u0098\u009cÀ\u008e_x0004_e_x000D__x0017_s\u009b@WoB\u008f_x000D_Ù\u008a@<Ç\u009d\u0083\u009fz~@ãïÂZ_x0016__x0002_\u008aÀH\u0096\"_x0001_¡¤°À_x0017_rT\u0088cÉÌÀ¤©£Þ\u0095i¸ÀV{\u008b9çç«À\u008aL\u0080_x0001_´å¶@'xÈ\u009eÖã\u0092Àå\u008fw_x0003_Sª\u0095@C\u008ab\u0093&þ\u0081Àìù_x001F_\u0095Ê`\u0087ÀÂ\u0081µÚ¦Ñ¦À0%_x0007__x0002_\u0086Ñµ@$¢\u008a_x001C_ÚPaÀ\u0082¥ú¢\u0082s§À\u0090IZ_x001E_y7\u0097À%Û!ÆÇH\u0085ÀZn%bî$JÀo,Íø_x0018_|ºÀÈ½a!hï©ÀÒÖrp_x0018_k¬ÀêfÌLð\u0095¦@þ¯B¬µ_x001B_´À(_x0013_ÁvZ¶\u008cÀ ;3!èõ}ÀÎ\u0093Ô3:_x0012_\u009dÀ\u0081¼\u0090_x0002__x0001__x0004__x0010_y\\À\u009d\\E1Þ\u0094·@ü\u0090AÑ6|½ÀqÊö i¾\u0090À±.~!KÃ\u008bÀú°\"f\u007f¦ÆÀ$=ë\u00896\u0090°@_x0005_ôóÁ'2ºÀü_1_x000E__x0014_N¼ÀNò_x000F_$¹¶\u0092ÀO®±ô©puÀ\u00878Þ_x001D_½µ\u008fÀd\u0088+CEÝ§ÀÀërx^Ö Àë%_x0007_Ð¦ç\u0096ÀÀ¤¶£M^\u0086ÀÊan;;Ú»ÀpG·\u008b_x000E_Ó{ÀDñc_x0017_~¦£À_x000E_\u009e\u0087\t_x0011_q=@¨aÛ£Gw\u008cÀçÐd¯àuÍÀ_x001E_-\u0088¦uN{À\u008e_x0007_j\u0094åQÀÀç\u009euÜ&n\u009c@_x001A_þ_x0003_Ë Ç«Àd¤\u0091w¨¨ÁÀ<É\u008e||ÃY@4Õ îè¸®@¾\u0087§²\u0085JuÀÜÖ\u0084ü6\u0094±@Ô_x0002__x001A_6_x0014_\"¤À_x0001__x0004_DíTÁ@²»À_x001C_X­*®\u008b\u008dÀäÑ_x001C_oÁ6\u009eÀJò\u0097J\u008bÉ¨À\u0080äñ§ð©\u0087À\u008e\u008c3Ó\u0085yqÀ~\u007f;åK_x0004_Æ@\u0082ä«âg_x0017_³@^[>¬!õ^@×\u0099\u0093É_x0014_¶\u008fÀÜ\u009f×È\u0095â°ÀEß¥e_x000B_/\u0090Àþ»6õBE®ÀÁ§\täó· @¢_x0015_p5LM7À_x0004_/=$¶'µÀ_x000C_âQª{_x0002_ÁÀV^¡Ð~µ¼À(L_x0013_Éñ\u0089©@\u0087©¢âF_x0003_»Ànw\u0081¥gN\u0098ÀX*_x0012_²=_x000B_\u0083À¦é(ï¬ ¤À¦NANk\u0082²@æ\u0092e¤_x0001_9\u0099@\u0086¼ìi$\u007f¯@\u0089Ô\u0095z]H¡ÀöA_x0011_s_x000B_ú¬@ânÄÐÌ¸¦À¾_x0005_Ò³\u0099_x001A_|À_x001B__x0002_°¼`=\u008f@R\u0084q$_x0001__x0002_ko»À/(^ë$\u0084¡@fCþ)*ÕHÀ¢¿_x0011__(»¤À¼~fõÂ\u009bnÀ\u0098Vw4k\u0090\u0090@¼XèCÂzfÀ*Ð_x0003_û\u009a{\u009dÀÊ¨@Ä\u009c\u0084®@÷_x0001_ïÔNÙb@^_x0003_¸z[Ã­Àw_x000C_^__x0010__x0004_\u0095À._x000D_ÚïÙâWÀT\u007fÿèC\\\u0087@T£õùwâ\u0098Àä5vdfè\u009bÀâ¼0_x001C_\\[ À\u00954£9_x0015__x000F_\u0090@hÈª_x0007_P_x0008_\u008fÀü;þÎ^5®Àd´·\u007f_x0019_h\u009e@Ë_x001F_\u0096_x0004_\u009c¥©À\"_x0002_D»Ò\u008f¥À_x0016_âãþuÆµÀ_x001F_e²AÈÈ\u0093ÀTB¶xeð\u008eÀ_x0008_Û_x0019_\u0095g?«@¢P\u0098\u009fnï«@æX,Ï!\u0081³@Kq\u007fÀ*_x0012_\u008b@îB\u008b_x0003_ã@5À\u007fdè\u009cpl;À_x0001__x0002_^=\u0086eoJ\u0096À4Ý²eøÒ\u009cÀ4_f_x0006_ïã¦ÀÝ¦w_x0008_É\\\u0092ÀÏ_x001A_àÙ¾ñ¯ÀÑ~a&xx¨@|­g_x0008_O¤\u0097@¢´@j±G\u009dÀ_x0012_ÁÜ+4_x0001_o@Çþ:\u0084nç¹@_x001D_\u0087«Â{P\u008cÀÜgç|aé\u0092À$e»±FCµ@T_x001B_îá\u008dZ;@Ø'Jb\u0080\u0093\u009dÀ_x0016_3,ÚÇAp@Ä\u0088¢Qßä¥À_x0010_/3h7û·À\u0086b]Û²\u0092\u009d@À_x000F_,_x001F_¿Ö\u0098@ÝÃ\"sÍq\u008aÀò\u0082=HMl£@X¶_x000B_E³¡©À*\\uå¶µd@_x000D__x0015_*\u008eÐé¥Àâ¦Z~S?sÀv;s\u0098óÓ\u0087@\u009aå¶>½_x0007_lÀ\u0090Cd1t1µ@]_x0018_lBÝQEÀÅÀ¼OÚ»\u008f@ÞëSù_x0002__x0006__x000C_#ÕÀ2S\u008e÷®g\u0095À½_x001E_µù\u0098\u0082r@t:\u0088.\u009f!\u008aÀ§»-þ:?¡À1û»)ïj\u009b@\u009e\u009d_x001A_>é\u0098´@Ð1\u0096§#\u009d¬@²P³V_x0019_t À~UP7\u0087ãa@X_x0011_×]\"Q¹À2!_x000F_ËD_x0003_\u009eÀõ\u0092N\u008añP\u0086Àýr\u008cn¿Ï³À_x000F_+ÀÂË\u0084\u0090À(#_x000B__x0019_ÏÃbÀT_x0006_\u008dj_x0003_-\u0083À÷Y\u0083Ñ<ê\u0093À²_x0019_\u0088\u0097Ö1\u009f@ØÓ9\u0084À\u0086tÀ Où¹_x0015_\u0091\u0088Àí_x000B_&\u0091V_x0001_\u0092À¨K¿Ø |rÀ¾®_x000B_/âD¢@pKùÆ\u0089(_x0004_À\u008a\u0094âËõ<\u0091Àlåù_x000E_YL\u008f@¸%d±)±zÀ\\Bvy<\u009e\u008fÀdÆÓØ[_x0005_°À×ßcYLã\u008cÀ_x000D_\u008cÉ¯Í_x0005_¸À_x0001__x0002_¢y,Ã,J¸Àôê\u008a¿_x001B_\u0087\u008eÀ¤±=\u009e_x0005_:\u008bÀx\u0096\u009b3]_x0005_\u009a@_x0006_ÙX\u009e_x00"}},{"$cut":{"chars":51786,"head":"8ff3b979f9620e9783409f4be201202d_x0001__x0002_ÃÝ_x0015_;ÁE·@ý=Yo_x000F_Æ»À¤]íä\u007fi·Àë»ª+1D\u0090@\u0089C_x0003_¥»Ï\u0082@Âµ_x0003_|åú´À&_x0005_¶\u007f_x0005_~³@\u008dëy@8´¥@Ú¾ÇÜF\u0087ÂÀ]_x000B_Â\u0086«:ÙÀpu¨_x0019_âÊ\u008cÀ\u009d_x0019_­\u008e|ó\u008a@67¬CR\u009e¬@\u007f'¿\u0090¼_x0004_\u0097À.T5ÓS0ËÀF*váÄÉ¡@à÷º6\u008crG@\u0080ã\u0087Sq?Ç@2~_x0004__x0019_\u0093D£ÀëèR_x001F_:å¹À_x0005_k_x001F_\u008cî_x0014_²À\u008c_x000E__x0015_«_x001B_Y\u0093À\u009a_x0004_Ð/ß\u0093\u0092À_\u009d-%x¿¦@@Ü¬þ\u008d\u008e\u0099@ç²\u009c¦_x0018__x0002_À@ø\u007f×\u0092ËFÆÀq_x0013_ñm\u008dØ¡À)®s{Ý\u0086¸ÀÐJÈßÆì\u009a@N &_x000B_.$¹@\u0092d\u0099p_x0001__x0002_\u0095Ç´À\u008a]?\u0084ÇxÀÀÁnâ±&=\u0097@äùãÁ\"_x001E_¬À@¶\u0097³om¡@ùÄQxE\u008e\u0099Àqâý_x0002__x0013_c£@ [Ë}K&·Àâ\u0090\u0083¯kÔ\u0082@_x001B_Y>$A/£@§Z\u0085zj\u0094z@Ìg<·ô °À:!®§½q\u008eÀÜ\u0084Æ_x0011_A2Ã@Õ_x000D__x001F_9P7\u0097ÀCSÜ\u009dU\u008f¦À_x0004_×ñð\u00828¡@\u0096&¸»î3\u0098À*_x0014__x0013_3ZL\u0081ÀsNìpp\u009d±@\u0087<,ñ<\u0081¾@&ÂÅ_x0010_JÛÄÀ#e\\}_x0005__x0015_ ÀaøK_x0014_q_x0002_³@FCHíóÃa@Äu84ªP¥À\u009cõ<þ\u0099\u0099©ÀRÚUï\u008eT½À*m1ýY^£@\u0082Ñ_x0006_Í_x0014_2¹À¨*IÄ&Ý @ÖØOí.Ï\u0093@_x0002__x0005_b\u008a_x0014_E_x0017_\u0091\u009dÀ_x0003_ÞH?ökÃÀ\u009aOæ_x0012_\u008c)ºÀK#\u0094_x0013_X_x0016_r@ðÜ@_x0012_bo\u007fÀöÃY\"¨\u008c§À>r@öSÒ\u0084À¦ \u009bö¡n\u009a@\u009b6°_x0016_(©\u009d@_x0004_p¡¸fô·À\\+\u007fKPü¿@¸Ô_x0016_vB_x000B_£À\u008a»}\u009fÀi¹@_x0008_²\u0090m|¸­À_x0014_¨_x0003_á\u0086á»@_x0010_t²¿õ%ÂÀ\u0086öøð_x0010_ëÁÀjÛWÜ_x0001_\u009e¢@\u008c\u009a\u0083=\u0094Ë\u008fÀ¢¯~-\u0086ÞºÀÌiÿ_x001D_S­»À°\u008eíÑ.$\u0090Àz÷Íõqa£@@\u0088~_x0019_\u009añ¶À¦ÒVÀâøÆÀÚûÄo3_x0015_®À_x0001__x0019_:¡K?¤Àö\\\u0084\u009d_x000B_ÿ¤ÀSÆÑÈ¥J\u0097À\u008b$¸Ã0Æ­À¸¢_x000C_.ãù¡@ËP(}_x0001__x0002_¥\\¾À2«$6mÃ·À_x0003_`êb^²®Àþ_x0018_O÷_x0017_¬\u0091ÀÂí1¹_x0015_ï\u0092À}pëÂ_x0019_p\u0083@^Ëh\u008e¶¸\u0090ÀXÀÛ¬<G\u008bÀ`|Ã&\u0097_x0002_ÚÀÜ\u009a\u0080âÂGÒÀùô¢\u008fÈþ·ÀÙ:ÜP³ÕÄÀæ_x0004_Ë_x000C_ÑHÀÀt_x0014_b2¾6\u0092Àrnÿ _x0013_­¢À/_x0008_+ËeÓ¡À·m8I\u0090@p@\u0084Ë­ÿ¼ûX@\u009eMâËS \u0095À \u008eFP¤(\u009b@\u007f#À,_¹±@\u009eÒvkÃX«@\u0097_x0007_í\u0086¸QÁ@\u0098t\u0096\u008f_x0011_¥\u009f@Õ=i_x0001_)\"\u009d@¾×®\u0092»_x001F_\u0086ÀÜ·_x000C_@Ó¯[@_x0001_< _x000D__x0016_\u008dÀ@÷Û_x0008_\u0080Ö\u0098\u0092Àõ\u007f\u008aÈÞü\u0099À@Ò_x0007_8\u0081æFÀ>_x0007_\u0095xý_x0007_¤@_x0001__x0003_k\u0095D\tuî À_x0001_D{-J~SÀZÙ\u0082D\u008dP\u009aÀÚ_x0014_ðà_x001D__x0005_ÊÀ .Ñ^`Ù°À:}Åö0üºÀ\u0091¤9£µq¡@Å¶¼¨5i\u0096@Ü¿_x0011_\u0082\u008bVoÀ0¤¿¦W+wÀ\u0083\u0085\u0083\u008d¢k®Àü_x0010_\u0083_x000C__x0003_é×ÀÔ\u009dÓ¯\u007fñ\u0092À_x000F_½¿©_x0018__x0018_±À_x0001_Ç©Vºk²@}=¾/>T\u009fÀö\u0089&è|u®À\u009e_x000F_M\tÐYÌÀªED\u0095\\4µÀ_x000B_ÄöwÒ£{@ T\u0080½(\u0094³À9\u0088f0H/ÃÀSâ_x000C_Rè8«Àp´Æ_x0002_/\u0097\u0087ÀßF¶b6`¤@_x0018_>Kvéë§@^\u0090¥?s_x0015_§@vÌ»ÃX_x000E_¨@©´¯eO_x0004_¼ÀÜêG|³¿\u008a@øÕèYd±p@®_x0019_Í\u0082_x0001__x0002_uO¯@×Õ\\\u0094³I´ÀWTò;_x0010_¬»@_x0013_6ùÉ)®­ÀJ\u009cà8õÚ£À\u0099/ÎHÀI©À\u0080·p_x0005_B\u0096³@\u0087DLé\u008b~§À¹?\u0093R_x0006__x0018_¡@_x000E_ÙÓ\u008b\u0098¿ÂÀ_x0001_ºó¯»\u008e\u0092À¬*W4_x000B_\u0086ÉÀ~ ïòÀ'³À Ü¸Ë\u008c9º@\u0086². Ýí Àl¢±©¹ù¢@ÜJ0î_x0007__­@_x0015__x001A_t;Ï\u0086®ÀHÈ_x001F_ß_x0007_\"µ@ªú~ú\u009c]ºÀ_x0012_\u0098ãWíì\u0090À7ä=_x0019_7Ë\u0094ÀÜ_x001D_½ú@®zÀ$1,\u0092Y6¿@\u0096Î\u0086]eQ«ÀÞ\"/·¹-¡À:¹_x001C_j>CxÀ_x000F__x001A_ôÇ._\u0096À<SlÚ\u0088P¢@¹\u009eò¤%m\u009dÀÑÏ\u008a_x0005_%J\u0098À­_x0010__x0002__x001D_ $¢À_x0004__x0006_óÊ_x001A_r_x0015_H£À\u009c\tÆç_x0014_î\u008fÀ_x000C_Ðá»h3¾ÀÁÉ³Eéy\u009bÀ\u0086\u007fß_x000E_)_x0005_\u0091À¼[OrÁhÐÀ\u009f_x0005_ÉÎd´ÃÀ¥\u009e_x0015_¦¬\u0081ÀÀ\u0090©Òà\u009d[º@®2WÙ+ö @_x0014_\u009aU-w\u0086\u007f@\u0098._x0012_ê\u0093ã:ÀxÍ_x0002_µTxÂ@QñäÓÍ¡¦À>ý_x000B__x0003_M\u0086ÂÀdú\u0094içã£À_x0001_'_x0014_V37¢@Ç_x0018_Hb)4»À6¨Ò¬\u008e»\u008e@\\å(¥Ìà\u0097Àèù~_x0003_Ñ:ÅÀ\u008cln\u0093\u008e_x0005_\u0083À_x0013_³m6öO½À2P\u007f\u0086`®¾À±,½\u008e\u009f\u008b£Àp\u008a_x000F_SW\u0091°@Ðr_x0011_v*M¢@¸yF\u0080Ð\\S@ÝêøAÚ\u009c\u009cÀ\u0098§_x0002_yT#ÄÀ\u008c}~ß¤]ÐÀýN\u0096\u0094_x0002__x0004__x001F_¨¼À\u0091/Rª_x000F_\u0097®ÀÙpËð÷ã¥@\"ÂÆ,¸Y\u0083Àôtb\u0098U-¼À[\u008cÎ\u0081ë¬\u0093@~À_x001D_÷N¸¢@¸ë\u009eï2Ê\u0087@Q?I_x001F_\u008d_x0008_­@Ôø_x0010_ìh_x001E_}À\u009d3øjêsÆÀyl_x0005_ðg}lÀ@±è_x0019__x000C_\u0086£À3;Éî9ô«À2®\u009c\u009f\ttÆ@¢\u008aáGáM\u0096@æ7hÈ_x0003_ú¦@à)»%Ê'¦Àr9-·¯¾´@êÏÂ\u009c_x0013_p}À_µ\u008c¦_x0005__x0004_§@\u0080µç\u009fm\u009b_x0018_Àu\u0095QÜ½\u007fµ@¥·¸\u008aTñ¹Àêc\u008a-2_x0014_v@_x0008__x0013_¤#_x0001_S\u0098À(H\u008elÞÛ\u0093Àbé_x000F_§E6³ÀÍ_x0005_¢(_x0011_,\u0097Àg×\u0080_x000D_Ã_x001E_±ÀÜ³@v¢'¸@´x:\u0088_x0016_ý\u0082À\t_x000E__x001A_K=_x000F_JôÀ@>kÏ\u008f¾\u008e°@#_x0018_\t!_x0002_¹Ê@_x0008_álõ³\u0094¾ÀáößÖ\u0086Ø¶@\u0089tVJ\u0081¯·ÀÈ_x0012_ôP^ð½ÀVQê\u0085n_x0017_\u0086ÀÀJ Í\\\u008cj@¸¢\u0082_x0003_Y]¬@_x0001_baìQ­\u0087@_x0012_­_x0016_%\u0098y¡@ôv\u008a°Ú\u0090ªÀâ`ð³_x0007__x0018_ÎÀÇfÃ\u0085²G·ÀL(_x0006_¾)_x000B_\u0091@vQ\u0098§ÓÞ³@è°º\u0097Ë2ª@_x0011_ý_x0015_Âl_x001A_§Àä¼äºS_x0005_±@ÔJ!8Z_x0015_ÐÀº)_x000C_e_x000D_ùÊÀ.\u0090_x000C_Ô\u009cP\u0096À½&!fÙ¤·À\u008dÝ}X\u009amÇÀÐ-?_x001E_<<¤À_x0017__x001A_ä¶ûjÇ@JÂ_x0004___x0014_Ñ³À\u008d\\ô_x000D_\u008f\u009c¯ÀW+;_x0007_7q²ÀÌØ?Û®F\u0090À1Ê!É_x0001__x0003_(_x0013_Ì@\u009e_x0016_<¿¿a¸ÀÕ&_x000B_aÇU\u0092@\u0090Ä¯SÐÚÀÀQ¼\tÙè_x0010_¯À¹_x0014_ô_x0005_\u0089ÔÐÀSïA!M@ºÀwjý¶Þu³À_x000B_0Û»kÆºÀ`\tËÉCÀ\u0086À\u007fO\u0095°ÝLÁÀÏu_x0004__x001E_\u0085*¨À«Ò·ùl\u0086¢@åßy\u008f2F¸À±À_x0016_»\u008e¬ Àv\u0089á_x0008_1e\u0095@\u0080f.\\_x0012_i6@iðHy,ã±ÀY<r\\\u0097_x0003_´@ç¦ù*¡Á§@~ýê7+_x0002_¥@6\u0095/.\u009a\u008e\u0086À_x001C_/r³_x0006_«ÅÀ¦°s_Þò¼@Õ\u0095pgÏ_x0012_ºÀÄÀ,%ª¥\u009bÀ~Õ8Vn\\\u0090@â\u0093_x000D_Å_¢¶À`p_x001B__x0012_zÇ_@|\u0098ùî_x0011__x0007_ÈÀTÿÂ²>º¿Àý _x0010_fR ¼À_x0001__x0005_n\u0081_x"}},{"$cut":{"chars":114150,"head":"596910ffd06991e42a2d150c23d3cf48_x0001__x0006__x001E_ñ\u0085IÂ.§@\u00976¨\u0084ß1¬@\u0097j\u0082@ã`\u008f@O\u0095+M_x000E_0·@Éünc_x001A_¼²@\u0087\t°õó\u0098¬@_x000D_/íÛê¦²@·0Gl^ª¨@D_x0002_y!_x0017__x0015_­@Oh_x0004_\u008c\u008cÓ\u009f@\u0098\u0086_x0017_U\u008d\u009d´@æ¾\u0092\u0084ðÇ\u0099@_x000B_æIb¼'©@ÎÏ«Ü£>´@\\9Þ:\u009b^nÀ£¦\u009aF._x000C_¬@,_x0015_¶_x000E_{u°@ô'\u008b<üZ°@¸X¾Ü_K\u009f@ê _x0013_M\u0081~\u009c@Q\u009c·\u0098Î\u008f¬@CeßMJ_x0003_\u0095@÷|ËÏÌ¡¦@T÷(näÀ¬@\u007f[#{¢+²@-RÃùIÚ\u0099@¢h£_x0003_A_x001A_»@õmàO¬w @®¼t_x0010_·Q¨@þÿÕ_x001D__x0005_\u0088°@/\u009e\u009bcrÊ\u0097@$\u008b¼ð_x0001__x0002__x001B_Ü±@ùKY»ûµfÀ_x000B_À_x000C_\u0091}q¨@åìZ>mé¥@Ïos/_x0014_&·@m\tì\"m£¤@b«kØ4x¥@ýòÞ·â\u0092°@.n_x0005_©gÊ¯@_x0016_ø´\u008d\u009b)ª@@ð\\6_x0001_L¢@Ôº¦_x0001_`J©@]\u0094·\u0094_x001D__µ@äL0_x0011_¿\u0081³@_x001A_l_x0018_K¢å®@ Ánë«\u009e¶@W._x0013__x000C_z\u008b¢@Ï¾Ã_x0014_\u008cW´@/G\u008cÿvÜ®@\u008c\u008cl(¾P¦@º\u0093@Âø\u008b\u0094@!\u0090­ kÅ³@Êz_x0001_&31\u0098@çCá1?_x000D_\u009cÀè_x0007_Uräe @æ_x0003_'\u0083Ä\u0082¯@Ãd\u0089û_x001F_>\u009e@ì³dÊd;£@k^×h~a­@\u008b¿äÈXK¶@L¹Ï\u008a_x0013_À¥@çæ?!QÌ°@_x0003__x0005_y_\u0091´_x0003_Ñ·@Ë_x0019_8_x000E_Ä´¬@)|ï_x0003_þ_x0010_\u009e@_x0008_Sò\u0091Ò\\·@H%a\u009a§\u008cqÀúJ2$JÆe@¹Í_x001B_Í°»¥@\u0097;\u0095ËP`\u0099@!wfþ(\"§@ØÊ¼\u0098²ý¡@¶=ªõÅ.¶@#|¡»\ts¶@=¤³-G1ª@ðG-¢f_x0016_®@_\u009c¸n¥þa@_x000C__x0001_Ø_x001F_W_x0019_³@Ô\u0084Ð±ï.·@¨þ÷\u0084_x0002_sµ@G]Õ¡¸¼´@`÷ü²pÊ­@¢'\u008d_x0007_Y\u0099\u0095@òÛ\u008b_x001D__x0002__x0001_´@ø±J\u0086±|\u009d@_x0015_eØö¸O\u008c@|]\u0088cÈ/¨@\u007fæÝ{7\u0089¯@8M_x0010_Tu¶¯@vE\u008b¢î>\u009a@\u0085ßùÖ[o±@ð¦×_x0004_ÉÈ®@ªV¶ë¯ë£@&wâk_x0002__x0003_;u¨@N\u0096_x0002_{tð¯@4_x0002_5_x0014_öÙ°@*áW²ÞM¦@ÐÊ<@úû¬@D°uSuú¬@_x0014_r¡_x0003_Ô_x0001_\u008dÀ¨RV\\ì§·@k&9]ãÛ±@Å3_x000F_o2_x0002_\u0087@%vý½\"ð¥@äï ñ×_¹@ù_x0003_5ã_x0003_\u0086¡@(ëØ_x001C_®ò\u009f@}¡²zk`²@Id_x001C_]0%¶@`¢_x0017_'#{\u008e@*re{çE\u0086@À\u009b_x001B_\u007fÌ¬\u0085@\u008fA>\u009e\u009dæ¸@2_x0001_³_x000B__x001F_\u009d§@¾_x000F__x0018_A;\u007f°@-B¯Ô\u0091wy@ÆE_x000B__x001B_ª£ÿ¿·ææ_x0013_C_x0012_¤@ ÇJn;P¼@T]kÃ_x0001__x0018_¤@:·¶iNë±@îÑyûôI§@¶\u0094_x0003_°\u0095\u0085µ@N_x0003_8ÈûØ\u0095ÀUÌxð:_x0001_\u0091À_x0001__x0006_PræÅft¤@ÇË\u0095Vî\u0084¸@?_x001E_¥Ê/ts@²_x0017_w\u0096ÒÍ±@_x0015_õ>)Wá @z_x0011_¸'(c¡@S\t_x0008_]!v¬@\u007f\u0095uÝ¿÷´@_x0013_é_x001F_dOV±@ä\u0083½ÐÏ\u0085¥@û\u0085\\Byñ¼@Ç»$\u0091¸_x0004_³@Ý=k¹_x0017_f·@ÕÁb_x0006_=D´@\u008ciÇm'\u0094ª@ÊÑ|v_x0003__x000D_±@·_x0010_z\u009a×_x0002_\u009f@ç8yìô_x0005_²@\u009aÑ\\ì_x0008_âª@\u009b¡3ê.i\u009d@Y_x000F_3¶_x000B_Í\u0081@ãq_x0001_u´¶«@Y}dÔðÇª@Ùº_x0001__x001D_w\u0095¤@¡1GãÎÕ¢@ö\u0087©VÈG\u0099@S´ÿ_x001B_ø\u009egÀ_x0007_µO_È¯¬@\u008eÃ°ê?Þ<@_x0013_´_x0012_`Xü³@Uûo\u008dÊã³@4¹Ã_x000E__x0001__x0003_\u009b_x0018_¨@/yÃ¦¢_x001E_©@ ï\u0098v±T£@Æ_x0005_\u0089\u0084Ã9¬@_Rt;¸ö\u0099@Õ\u0098^\u009b\"_x0007_\u008a@£[e\u0081_x001C_\u0084T@_x0006_¿ÎÓz ²@éÐ_x0008_SÑ÷\u009c@\u0093[\u008bô_x001C_\u0098¯@©_x0014_5|\u0091D\u008c@mt_x0003_q\u007f_¡@_x001D_2\u009cU\u007fì»@ c@Ó?[©@,BiÁ£4±@O´6m¥\u0084³@ ü7¬Ê½§@ÜÀÞüNÞ{À\u0093=Ðº_x0014_\u008f\u008f@¨®.Ù\"ó¬@%·pÏ¶©¨@gñYs{l¥@86at_x000E__x001D_\u0099@$þÖú&\u009aª@ßêÝ)px°@\u009cs2Sb©»@SÖ3a\u0081_x0002_¼@ìuaâ½K¨@Hlà\u008cºö¯@×+\t¼:¯£@:\u008clvòÇ·@d\u0087©\u0097<\u009d²@_x0004__x0006_P2ß+D&µ@\u009a´[³X_x0006_·@\u008c,_x000E_É\u009c\u009c«@Ie_x0001_\u0085q8¯@väx_x001F_dÇ¹@ÿ¢õÐ.}­@7\u009b\u0081#ú½²@,nF÷ä«uÀ\u007fÅ\u0090K\u0080_x001D_¤@¶B®\u008aTr°@v\u0089Xà<_x0007_¢@Õã+\u0085*Ó®@_x0015_!\u008edR_x0001_\u0085@)\u008cpÿÅ¨´@dN¬-7\u0096 @}¨Ö~uÑ¦@f_x0001_\u0086¹»p @O_x0003_×½n]¥@JDã)_x0002_\u0097¨@Ý\u007foÃ.g\u0093@²_x000C_È\u0094\tøµ@.¯@¼÷b­@ÑG¡]ð±³@´\u0085FÅ§®³@=\u0085ßµJ_x0006_ @Ã_x001D_>_x000D_\u008bn²@üç._x0005_Á@²@äw(_x0014_´x°@c_x0003_,_x0013_Þuª@§\u0084NÀô} @ÒæöÚ¾´©@-_x000F_!x_x0001__x0002__x0012__x0004_¨@Ú_x001E__x0018_ä½W¦@×òñ±°P¥@ÓxÏ_x0001_ÿð©@\u0093·Þ²_x0013__x000D_§@þ_x0017_ÿF_x0019_Ü£@OºÕÈ\u0082°¤@r_x000E_¸\u008bÁ¾ª@s4­öJ|¦@\u0097°\u0085\u008bkv\u0084ÀöÖ,%Nc\u0084@rñ'G_x0014_.°@?R¶J\u008cF°@vaxy_x0019_\u0080¡@ògo©ö\u0093¢@ç\u008a;Þ\u009c\u0092\u0093@¬LAI\u00824\u009e@_x0007_ÖUz½_x000F_\u008cÀcú¢W_x001D_}²@_x001E_]ïC\u0087¥\u008fÀ\u0093,Ç_x000B_ _x001D_ @\u008aZöô_x0005_7¦@\u009eý0<´_x001E_\u0089@wÅ¦*Ìì¯@¤\u0083:øù°³@_x0014_I¦R'_x000F_³@_x0004_\u0084j\u0089Eu¦@P_x0002_|F^:µ@\u008eÉ\u007fÓµÔµ@]c\u008dªÄ£·@À\u008f\u009en}9¸@¹/'ë#\u008f¨@_x0001__x0007_\u00808_x0001_¡÷¥¦@Wü_x001D_ý\u0091\u0089­@\u0094É_x0006_X~_©@´½_x000D_V\u0092e´@¬_x0015_\u008d_x0003_\u0083s\u007f@Þl_x0005_sNs @z[\u0093{\u0094µ´@Ó\u008bÕµ±Ó\u0089@%ðÃ3Dvª@8ã\u0099Þ\u009e_x001D_\u008b@?5²0Îã£@µA/_x0001_R^­@æ_x0014_Ãñ\u009df£@@­øÔë½\u009c@\u00882\u008a\u008fg_x001C_|@\u0083\u0098¿Aý\t¤@X@_x0005_@\t_x0004_¥@Þ£_x0004_à\u0088xeÀò4û\u009d_x0003_ø±@÷\u0087m9k}¡@>\u0081\u009d_x000B_kjÁ@àÙ*\u008b \u0095¬@î_x001F_TJ¯Ó\u009f@Õoy XÄ\u009c@ôø\u009fÎ\u0097\u008b°@zO\u0080Md¿»@rN\u008f_x001B_£\u007f¨@_x0002_o}ÆÑ¥²@Ö¼ò{²×Q@È_x0007__x0012_>\u007f$\u009b@N_x001C_\u008d¹É_x0003_¢@´á\u009a&_x0001__x0002_¢g³@_x0014_Î=>_x0008_/¯@_x0002_\u009a_x0010_\u0099ñ6¦@ÃGGJ\u0080h¤@Ä_x0002_[Ü©)¤@\u0088\u0086©»´_x0014_°@¢èïþ\u00859§@\u009e.Ö_x0007_½c¦@¶FÊÑZû«@t¯á«\u008dd\u009e@GY\u0082PÂÄ£@Q~_x0005_\u007f_x0013_f£@j}H÷¯Ü§@óXòb V\u008c@\u0088ZÂ\u008d:p­@jZ\u009e\u0091VÐ\u0095@¿M]×ê\u0083£@<CÊmçý²@õàj´_x0018_Õ­@ Å\u0095°¢@¯@6Ñ\u0087\u0095&´®@±I_x001C_äÊZ\u009f@+Ølfµ3¨@ÇÏ_x0002_Åh{²@_x001D_\u0094å_x000C_ç¶ @F\"\u0089_x001F_Á_x0003_¦@ãLí_x0012_ÍÉ\u0082ÀXèfñoÊ´@\u0088à¬\u0081qZ«@ØöCè\u0088l³@_x0016_óÆ4EBj@5s/óxª¢@_x0001__x0002_<#ä^hû¹@ú\u0085D0 Ó¥@Õ1E²_x0019_/¨@¡é \u008b\u0086_x0008_¬@ÀÕr/´@¹@;/JÄX®\u009d@uânVÉ9±@@_x0005_LÉú\u009c¶@Ü(öºÎ´±@Î;sL­ì­@xä"}},{"$cut":{"chars":129876,"head":"fed42f9a2af703f8b0371f941790220c_x0001__x0002__x0001__x0001__x0001__x0001__x0001__x0001__x0001__x0001__x0001__x0001__x0001__x0001__x0001__x0001__x0001__x0001__x0001__x0001__x0001__x0001__x0001__x0001__x0001__x0001__x0001__x0001__x0001__x0001__x0001__x0001__x0001__x0001__x0001__x0001__x0001__x0001__x0001__x0001__x0001__x0001__x0001__x0001__x0001__x0001__x0001__x0001__x0001__x0001__x0001__x0001__x0001__x0001__x0001__x0001__x0001__x0001__x0001__x0001__x0001__x0001__x0001__x0001__x0001__x0001__x0001__x0001__x0001__x0001__x0001__x0001__x0001__x0001__x0001__x0001__x0001__x0001__x0001__x0001__x0001__x0001__x0001__x0001__x0001__x0001__x0001__x0001__x0001__x0001__x0001__x0001__x0001__x0001__x0001__x0001__x0001__x0001__x0001__x0001__x0001__x0001__x0001__x0001__x0001__x0001__x0001__x0001__x0001__x0001__x0001__x0001__x0001__x0001__x0001__x0001__x0001__x0001__x0001__x0001__x0001__x0001__x0001__x0001__x0001__x0001__x0001__x0001__x0001__x0001__x0001__x0001__x0001__x0001__x0001__x0001__x0001__x0001__x0001__x0001__x0001__x0001__x0001__x0001__x0001__x0001__x0001__x0001__x0001__x0001__x0001__x0001__x0001__x0001__x0001__x0001__x0001__x0001__x0001__x0001__x0001__x0001__x0001__x0001__x0001__x0001__x0001__x0001__x0001__x0001__x0001__x0001__x0001__x0001__x0001__x0001__x0001__x0001__x0001__x0001__x0001__x0001__x0001__x0001__x0001__x0001__x0001__x0001__x0001__x0001__x0001__x0001__x0001__x0001__x0001__x0001__x0001__x0001__x0001__x0001__x0001__x0001__x0001__x0001__x0001__x0001__x0001__x0001__x0001__x0001__x0001__x0001__x0001__x0001__x0001__x0001__x0001__x0001__x0001__x0001__x0001__x0001__x0001__x0001__x0001__x0001__x0001__x0001__x0001__x0001__x0001__x0001__x0001__x0001__x0001__x0001__x0001__x0001__x0001__x0001__x0001__x0001__x0001__x0001__x0001__x0001__x0001__x0001__x0001__x0001__x0001__x0001__x0001__x0001__x0001__x0002__x0001__x0001__x0001__x0001__x0001__x0001__x0001__x0001__x0001__x0001__x0001__x0001__x0001__x0001__x0001__x0001__x0001__x0001__x0001__x0001__x0001__x0001__x0001__x0001__x0001__x0001__x0001__x0001__x0001__x0001__x0001__x0001__x0001__x0001__x0001__x0001__x0001__x0001__x0001__x0001__x0001__x0001__x0001__x0001__x0001__x0001__x0001__x0001__x0001__x0001__x0001__x0001__x0001__x0001__x0001__x0001__x0001__x0001__x0001__x0001__x0001__x0001__x0001__x0001__x0001__x0001__x0001__x0001__x0001__x0001__x0001__x0001__x0001__x0001__x0001__x0001__x0001__x0001__x0001__x0001__x0001__x0001__x0001__x0001__x0001__x0001__x0001__x0001__x0001__x0001__x0001__x0001__x0001__x0001__x0001__x0001__x0001__x0001__x0001__x0001__x0001__x0001__x0001__x0001__x0001__x0001__x0001__x0001__x0001__x0001__x0001__x0001__x0001__x0001__x0001__x0001__x0001__x0001__x0001__x0001__x0001__x0001__x0001__x0001__x0001__x0001__x0001__x0001__x0001__x0001__x0001__x0001__x0001__x0001__x0001__x0001__x0001__x0001__x0001__x0001__x0001__x0001__x0001__x0001__x0001__x0001__x0001__x0001__x0001__x0001__x0001__x0001__x0001__x0001__x0001__x0001__x0001__x0001__x0001__x0001__x0001__x0001__x0001__x0001__x0001__x0001__x0001__x0001__x0001__x0001__x0001__x0001__x0001__x0001__x0001__x0001__x0001__x0001__x0001__x0001__x0001__x0001__x0001__x0001__x0001__x0001__x0001__x0001__x0001__x0001__x0001__x0001__x0001__x0001__x0001__x0001__x0001__x0001__x0001__x0001__x0001__x0001__x0001__x0001__x0001__x0001__x0001__x0001__x0001__x0001__x0001__x0001__x0001__x0001__x0001__x0001__x0001__x0001__x0001__x0001__x0001__x0001__x0001__x0001__x0001__x0001__x0001__x0001__x0001__x0001__x0001__x0001__x0001__x0001__x0001__x0001__x0001__x0001__x0001__x0001__x0001__x0001__x0001__x0001__x0001__x0001__x0001__x0001__x0001__x0001__x0001__x0001__x0001__x0002__x0001__x0001__x0001__x0001__x0001__x0001__x0001__x0001__x0001__x0001__x0001__x0001__x0001__x0001__x0001__x0001__x0001__x0001__x0001__x0001__x0001__x0001__x0001__x0001__x0001__x0001__x0001__x0001__x0001__x0001__x0001__x0001__x0001__x0001__x0001__x0001__x0001__x0001__x0001__x0001__x0001__x0001__x0001__x0001__x0001__x0001__x0001__x0001__x0001__x0001__x0001__x0001__x0001__x0001__x0001__x0001__x0001__x0001__x0001__x0001__x0001__x0001__x0001__x0001__x0001__x0001__x0001__x0001__x0001__x0001__x00"}},{"$cut":{"chars":53286,"head":"ef13585d4465d03f30e45a9a4b5d6d7d_x0002__x0005_Û10\tÆõwÀÖ_x001C_¨ àÅb@ªi·Ü_x001F_H\u009a@æÕ_x0003__x001B_k\u0090\u009e@ajµ\u0099ø\u0084t@^ò_x001E_a\u008dbbÀ_x0018_åOQ¦¹zÀv°\u0097\u009eÔ\u009cSÀ=»Á_x0006_bÕ\u0095@È_x001D_Ä_x0001_i*l@\u0094ÿ\u0094\u0084_x000D_ \u009c@[K\u0096rÂ>\u009e@©ýÁì \u008d\u008e@åÂ¹NVëuÀ¶Vìb\u007f0¡@\u0098Vë',\u0094_x0017_@©1q¹©\u0093B@íSóT_x000F_&\u0085@Û_x0012_±D\u008aM£@z²¦_x0019_ã_x000F_\u0092ÀÀ2ê\u0095_x0010_u|@_x0004_j_x0018_Ö_x0018_N\u0080ÀN¹%7õÀ\u0092@ê97J\u0085üw@Û¸_x001A__x0012__x0012_¿w@ºÞN¹_x0008_\u0082¡@Î 9_x0003_\u0097~\u0091@wþ¥\u008c,Üt@'+_x000F_±\ts[@;MÕ_x0004_YÈ\u0095@ü¹¡¬mV\u008e@\u008d_x0012_²®_x0001__x0008_þñ\u0085À+\u009b\u0098/x\u0099³@\u0084aà\u0086ÚO\u0081@ÆO¦?`«rÀ_x0002_Â_x000D_=³Ñ\u009c@_x000B_we\u009eUE´@±Úr\u008cd6aÀ³Ú\u0089îæý*@\u0092ãÚÑýÆ\u008d@$\u0089m÷­?\u0095À/_x0003__x0017_ê_x0007_GBÀ^×_x0012_[ÖöA@B¾_x0008_iUr§@c_x000C_ 2Ñt\u0094ÀÊeNW5{\u0096@5ø\u00938¡\u009bH@m±=ú,¤\u0099Àhù\u008bêë¼\u008f@?\u0080_x001D_±\u008fB\u0090@h_x001C_G¿¤Ý\u0091@çL\u0089_x0005_Ëwd@[\u009c\u0091\u0085ø_x0006_\u0082À2¾_x0004_w®5°@DA7_x001B_¨\u0093cÀ¡Ï\u0099ïí_x0018_\u009bÀã_x000D__x000E_øÞ_x0005_\u009f@V\u0086¬r½»\u0088@*_x0004_\u008cJ{Å£@_x0004_ÊôzP`°À_x0002_\u009f_x0010_*_x0011_\u008d\u0094ÀÓ#bË~6_x0001_@¼ÚHïÜt¶À_x0001__x0002_¡K_x0002_\u0082ì_x001C_OÀIO_x000C_\u0094\u007fà\u0099À!Ñá_x001F_î,µÀö¿\u0099Và\u0087GÀ\\û+«ÝZ\u009bÀ_x0007_QÍJª~\u009fÀ¤^Z\u009fh°q@[\u008b\\2«A°Àþí¼ªD_x000D_\u0094@/ñ_x0003_v\u008eâ\u0088@«5!\u008eË_x0018__x0018_À>\u009c+Ú÷R¬@ð\u0084ã\\\u009f2w@«¯6.1èa@\u0097ç{!¾_x0010_¡Àå\u0090\\ýÈ\u0080\u0094@cì\u009c_x0002_ê_x001A_p@÷C¸+²ß\u0081À\u0088vÄ@_\u009a«ÀÁú_x0017_¿\u009e¯q@ï\u0089\u008b®\u0096ð¯@+³ ²>õ\u0096@ûÒÈô\u008c\u009cr@Ä_mwª'vÀ6\u0088+ÔR¯\u0094@ Ó¹Íöù¡ÀêOt÷©+\u009c@Ï²Pª8\u008c~À%_x0004_tDÉ_x0017_\u009f@­_x0011_©Ä_x001E_I[À_x001A_\u008c¹Ñ¸I\u0088À0)\u008c_x0012__x0001__x0002_/:`À³\u007f_x0012_\u0089\u0091qqÀf \t\u009eOö\u0092@\u00894_x000B_Ìl_x0015_\u0083@{ÈêõIf\u008d@Þ\u0092@Æ¢\u0081±Àè\u008f_x000D__x001A__x001D_Ä«À_x001C_JÔ\u0090Öc\u0093@«_x001F_ÑQ\u00822\u0091@¡x\"ò\u0086_x001C_q@\\vLÔ¯:©ÀN¿C\u0099Þö.À9¦_x0017_Ú5\u008ay@¹Óÿf÷!\u009bÀ¤Ò°\u0081ì(°À:Ê\u0095«F1C@NRÇ×\u0088`\u009dÀ¯áê+\u009d«³ÀG1óÉù/§À©;'eÏ½£@ï&\u009cê_x0002__x0003_\u0089À¹ÑØÀ\u008ea\u0081@_x0008__\u0091ªª¦uÀÍ_x001D_ïÖAÖ+ÀÇ&¨i_x0008__x0019_\u0080@+¥\u0096\u0091ì!c@ÄÕ¥n}0\u0089À¯Fã³®\u008cxÀ?µ==\u008f\u0098\u009a@h\tO®¢Ä\u0092À£è\\_x0015_6w§@Û\u0087ø[m\u007f @_x0007_\tn lf_x0001__x000B_ÂÀ\u0097:ö_x000B_î\u0088|À\u0080ýÖ0ÎB\u008fÀ»ÄV?\u008b_x001F__x000B_ÀM_x0003_\u0099\\!\u0082¶ÀÎÑ|¹\u008e¼\u0091À@@¥Àõ\u0095mÀô_x000E_2PèOª@®_x0019_k´ñ_x0006_\u0094@_x0004__x001E_q_x000C_ì1\u0091@ÛÖ,2q,j@9_x0008_\u0093±,9u@_x001D_Vàæ}$jÀS²_x0001_2¾º\u0087@B_x0012__x000B__x0012__x000C__x0015_s@&_x000B_»¤e_x0001_\u008e@P A_x0005_î_x0019_\u008bÀõ\u0085ÇäØ_x0019_\u0095@7_x000C_öäfä`@yé_x000C_0Å'T@_x000D_*<oÿù\u0085À¿_x0012_._x001A_¨\u008e\u0098À+Î]Ú<Ì\u0084Àøí¬þ«mrÀ*Ê;D3´ @ÄÊ#_x0014_\u0093Ò}@oo2\u009cJA\u0081@_x000F_«íÍr_x0002_¤À6»ÅÂ@` @ïÖ[x_x0010_\u008e~@Ó½ÓdË2\u008dÀ\u0082þ §_x0001__x0002__x0011_m¸Àñ_x0012_Îé8~o@_x001E_ªê %tR@nÿv¯_x001E_Ý¿Àp®Õî\u008c¼eÀV²rî_x0017_Z\u0092À¾QÖ4u;\u0095ÀÏô·\u0099x\u008c À\u0084_x0006_R_x001B_\u0091ÆZ@ÇWQNHÈ @ñög³\u0087M\u008cÀ0uðJÞõsÀK_x001E_Sò0ÂX@ç\u0094_x0001_ÿÌÞx@\u0095[tóäÖ\u0092À3Å_þ\u0092\u0084\u0086@\u0083_x0014_9ÜðL¥@\u007fhÌ\u008aÎP\u0083@+æd³½Æ\u0095@ÄüÅdº \u0086@Ä×ÆöÉ_x000F_E@\u009e\u0087Ç_x0016_è]\u0082ÀØê;>L¥\u0094À_é\u0099FZ(w@à%ù:_x0011_HZ@gk¶qù_x001F_@À{HÀ\u0097\u008aÿ\u0092@{<\u00923½<\u0095@_x0008_\u008akuïorÀf\u0080Ñ\u009b\u008bzo@]N8`_x0019__x001C_\u0081Àª\tÌ¯_x0017__x0002_pÀ_x0005__x0006_»ôctÎ_x0013_\u008dÀ´Þds¹Ë\u0084À>´3â_x0019_i\u0087@Ñ\u0095Nû_x000C_¼\u0096À²Ñé@_x0004__x0018_µÀ\u008eØ)_x000C_ÂH\u0088ÀÉ´»o9&\u009c@\u0083_x000D_©HÆÑ\u009c@_x0007_Ö!\u0099´°¥À 5ø°³Ý\u0099@\"Iíæ]\u0086\u009e@ù°_x0010_&ï\u009dzÀ\u0080K\u008b\u008a-c\u009dÀ_x0013_ã_x0004_}_x0018_ \u0093Àë_x0002_CJ^rKÀÖ_x0011__x0003__x0017_=Pa@Î*p_x0013_ÛÖF@ä\u0093Ð,ÌG\u0081@\u009c\u0094/¬hC\u009f@\u0090ÍqÜ»U\u008cÀ_x0010_n­0\u0095Í\u0082@C¬n\u008a|½\u0089ÀM\\_x0011_víè @ÁL\u0091MÞÅwÀc_x0004_LkÝª @ß&#þ»\u00978@Á\u00819_x0001_dY\u0084@ÂÔ|óò¸iÀ_x001F__x001B_í\u0095=â\u0094@ü_x0018_qém\u008f;À®dtåÃ_x0015_³@L\tòS_x0001__x0003__x001B_g\u008eÀ~\u009cÑHÎ¹ºÀ·_x0019__x000B_²ùV^@çd:¿®ÕJ@\u0094åè_x001D_ùB À²©W?WH«@·OZzYÂª@qÓ¤IKfuÀmäÅ¨¢¼iÀpPãO­)\u008cÀäÕ'ä~Ú\u0095@2w_x000D_õÚ¹±ÀYI31Y+°À8\u009fH(_x0002_¸µÀ»(ø<_x0011_\u0098­@_x001F_'\u009dN_x0003_ÝxÀZÄ7ö§_x0003_\u0081@I^4Ãì~HÀy¾_x0012_*5Á£@_x001D_o{\u008d_x0004_¡\u0084À_x0011_h\u0086X|\u0099\u009fÀóö@å¹Á\u0095@_x0015__x0014_4m@\u0094\u0094@\u008fëtý\u009c0cÀ_x0007__x0010__x0014_ò\u0092µZ@\u009de_x0014_Ò¨ö\u0095Àá}_x000D__x000B_Ä\u008c\u007fÀÍR\u0088Á\u0095î©Àú\u0091fd_x001A_\u009coÀÎ\u008dFïtÓp@7BeÓÕ¥\u0094À_x000B_õ$càé{À_x0001_\tÎyiß\u008c_x0005_¶Àü÷_x0006_PÊ¡©Àwè_x000B_ÙûªhÀæU_x0007_\u008a½¬²Àïnl_x0016_ù2{@wÂá`_x000D_ûë¿\u0089È\u0089_x0019_:å³À_x0004_[\u0094_x0007_\u0086{\u008fÀ_x001D_2e`¦E\u0088À¦r=5)ª¥Àä_x0002_©ê\\V\u0094ÀØ_x0010__x0003_¡Ù8\u0086@K~xÈ$\t\u008bÀWN\u0084T.·Z@#d_x0013_ÐSö£@Tbª_x0015_:£\u0088@\\:t\u0096_x001E_ \u009a@Tq´ñ\u0091_x001D_\u0093Àå4H¯1\u008dµÀ®a?HÌ¤pÀ_x001C_}J0T'_x001E_@Ê¾_x0016_e?_x001F_\u0089À¢2\u0080nVh[À!o )Yò\u0094@¦ÿ¼¬_x000B_å·ÀñRð¼Íy\u008fÀ_x0010_\u009bÙ«NÛ\u009b@_x0008_S,[¿_x0014_ @»ÑhÂ÷;²ÀBçí\u0088\u0094ãiÀ`}>\u009c²\u0099¨@¯îÓ?_x0001__x0002__x0010_öDÀ\u008c+°(©¯[@}_x001A_cY¹\u009dqÀ¡^\u0098B?\"r@¼ [_x0014_1Ùv@_x000D_o\u008fúCò£@°0¸t)\u008c\u008eÀ^c\u0095ë¼iª@_x0006_\u0084¯Ç_x0007_\u0083\u009b@ _x0004_Euðì\u0085Àv\u008cîäZÒ¡@£,äï@·\u009b@\u0093W¾Ï§+r@!`qóû<\u0081Àç_x0004_Á·7Õ®@TZlg)P¬À\u0084mMBF\u0087\u0088À\u0082_x0010_¡\u0098_x001C__x0002_v@.2Á²G\u0081}ÀáÆ2¤\u009c¤¥@H\u0088\u0088j_x000E_9\u0093@ÈC_x0003_ÒÖ`¨@¨ÿ_x001F_\u0080\u008f\u0088h@õz&µ\u0088_x0017_¦@²\u008d\u008d4Ä3©@\u009cFº[M_x0001_¨Àÿ\u0094ªa°\u009f\u0083@sº_x0013__x0002_Èø°@z«äõÙ&\u009e@};_x0019_ºK\u008bMÀ_x001D_AvHàÅS@m$_x0005_\u0081\u0088S2@"}},{"$cut":{"chars":74262,"head":"05a034e605b8afc971527627c9ba3557_x0005__x0006_ùzödôåY@x[å£\u0099\u0096´À\u0085_x001E_ß6Â\"w@ªÆ\u008c\u0085öØH@y\u0081]-Ï°¤@\u009dXô[ï\u009d\u0092@%Ê6Ô^®\u008cÀ~_x000B__x0017_PUK¬@Ð¼°Þº¾ÁÀ_x0010_6\u0089A_x0019_û°Àþ«_x0018_F\u0081\u009c\u0094@ù¾w_x0001_ÙF\u0094@_x001B_r\u0095Ó_x000F__x001F_WÀ¥Ä±äèH\u0085Àí\u008e¶_x0010_Z+\u009e@¸zË)h_x001D_£@\t0µÄ\u009c_x0002_\u009cÀ\u008b_x001D_¿ú\u0092Â\u008d@\tæÈÝikrÀ/û_x000F_8äÝvÀQb\u0086K_x001D__x0003_«À_x0015_\u008dù8[_x0010_|ÀgÈ>³\u008f¼mÀ¢_x000C__x0004__x001E_W}§@HÜËõ\u0092F¡@_x0018_¡Vê¶8\u009bÀ*ûæ\u0086m@¹ÀqÀ_x0015_s:\u0098\u0084À¦4_x0014_\u0082\u008cíºÀF¢¶_x000B_³_\u008bÀ?<F?©DgÀw)_x0006_\u0088_x0002__x0004_ä\u0096`À¶{\u0085\u009f_x0011_g\u0099@BuÄ \u009e \u0085@©¢\u0087\u009e\\U @2h\u008d_x0001_~&¯@·³\u0092\u0086_x0015_>eÀG2\u0087\u0086!ê\u0085@ö_x0015_\u0095¥$×e@Ò´Ak§ \u009f@ ;_x0001__x0010_JÈ\u0099@2ò|\u0099:\u0095\u0086@ßEÑPË_x000B_`@6:u£\u0088QZÀ_x0005_(t@Èn©@^3±7_,±À\u0085¸õOÔ]¯ÀFIúÄ±®¤@È7_x0010__x0008_Ári@¯\u008bñ_x000B__x0013_·\u0095@ò°¥\u0080´íz@Âi-Y_x0015_ÒqÀ;ù_x0005_ë'\tµÀ.]¯*_x0012_ó\u009aÀ\u009aJ\u009e\u007f×z§@ê2:þ´\u0083h@'_x0002_­ÔÏÝ\u0082À©Ï:_x0003_fã\u0087@3VÍiÎø\u008d@ïÊEU¼_x0016_nÀ[$=_x0016_iM\u0081À_x001C_Ë_x001E_ã÷ë£@÷¦©\u0089yÝ\u009eÀ_x0004__x0005_$ì|PÈ¡DÀÎ\tTU\u0095Ë\u008f@\u0086®CÁ\u0083\u0091`@_x0002_¸{W,¹\u008cÀ¿Ãs.ÒBª@òlÔ[\u0082_x000F_\u009dÀ'_x001B_å\u0091¯ i@R\u0080Xj_x0002_î\u009d@»4s\u0084\u0088ù£@%w9\u009dI_x0013_\u008eÀÝ?3È_x001B_©TÀ#_x001A_H÷¬IDÀ\u0099¢õÎ\u0096oz@ i_x000C_\u008fí»\u0098@Ñb_x000D_I_x000E_±\u0088@úõÖ_x000E_¾hH@_x000B_÷îMý·£@<âø_x001A_lF¤@»w6ÕÌëJÀ\u0096SK3?ÿ·À´»Ñü³Ë´À\u0088Õ/)OÕ\u008bÀk®\u0091u\u008cï\u0097@\u0082²\t³>Ìn@\u0082UüÓð¥\u0090À!\u009d_x0001_ûñ½\u0097@_x0003_\u0098é\u009cbs\u0095ÀN\u0094®h£_x000C_\u0094À¥÷?sÉ-¨@_x0002_]\"¹\u008a:¢Àj^®ºæm\u0094À[ó_x001A_Õ_x0001__x0002__x001D_ümÀü² (^Þ©À8Â\u008f\u009d_x0008_zv@Ò+\u0095_x0017_8ÊyÀ­P\u0080_x000C_*DD@\u009f\u008aèam8\u009a@©ØªnÔ_x0010_E@\u0091ÖÊ­;÷j@à<Æ\u008d\\_x001D_¼Àô~9\u0091±z\u0091@¨ñ/\u0090ª_x0018_³À_x0016_\u0092\u008bõ\t_x0015_«À_x001E__x001B_]Éd_x0002_x@Fp\u0081³Ø_x000F_C@Ê2\u008dçµ¶\u0095À¤k®\u0089ð(}@\u0093h&Û*Ùr@_x001F_ÌÈ¤Ið\u0094@GL¤à^Ú£@\u0095\u0081´X(_x000B_ª@8oz\\\u0087\u008c\u0099@ñè\u007fìQ\u008cPÀ\u0090\u008e_x0004__x000D_\u0088§¡@ÔF1\u009dO_x001C_\u009b@ªY'\u0082²½§@_x001D__x0005_BP¦¼r@_SóBã+q@¦_x0004_7\u0087/Y\u0089@q;àJô¨aÀ$_x0004_w_l[c@¸'ä\u009cÙ²\u008e@¥d\u0082'¤_¤@_x0001__x0003_y\u008c£\u007frQ\u0098À¹º1À7ý\u0085@ÛÁFJùág@\u0089ò~öUJjÀ_x0014_å79Yò\u0085ÀT¼_x001F_æåç\u008f@Tßi_x001E_h_x0011_\u009a@_x000F__x0002__x0007_å4³\u0091@\u00819O\u008fHê\u0097@h#_x001D_¼ß±\u008b@úèx¿R°\u008eÀö'ÕâL1\u0087@\u009bbP?÷\u008f\u007fÀcÒH6_x0019_\u0080\u009e@è\u008b~x_x0016__x0011_\u0090@;\u009f?\"\"µ\u0083ÀÝw_x001C_\u0095¢L @ñLö|èY\u0089@OV,í\u009c\u0080\u0096@\u0080a\u0093'jÁ\u009c@êpØÈ_x000B_O²À÷_x0014_/ä\u0095Ây@\"öé°^_x001D_\u0086À3\u00965þqst@F\u009a\u009e_x001E_\u0080ý\u0099@q\u0083k_x0005_Ù-©@n,2k\u0094V¢@¶äV®Ò«\u008aÀPÏ3)_x0001_f @\u0087°¨üõQ\u0083À±\u009bÇU¶_x001D_\u0086@zÏ#\u0085_x0002__x0005_\u0087ô\u008c@\u009d!_x0002_KmÕJ@Ny\u0092[ë­\u008c@\u009b_x0007_Â_x0005_ú_x001E_ªÀµ=_x0018_\u0088V_x000F_£À¬ò\u007f\u008c^z©À´0ôHÚ\u008f\u008b@2æ6j^`\u0098À)Öï15o\u0094@~R_x001F_Þù\u009b\u009e@h¼_x001B_õ\u0088øHÀ´KGiaÐ\u0095À_x0008_ke¨_x001B_\u0086m@ãqþ_x0015_nø\u0097@.à_x0007__x0016_FÜ\u0097À_x0001_\u008eÔdç_x0001_}ÀÒ\u0094X¶;\u0087\u0087@tö|÷`\u0091\u008cÀ_x0019_Ã_x001B_±0ÿ¤@_x001A__x0015_U\u0083t\t\u0089@\u0082>\\\u0089_x001B__x0017_\u0082@X_x0011_´®Ü·cÀq\u008fe\u009dÅ9_x0012_@\u009c~/_x0008_ªñ\u0096À¤}\u0099H\u0087¡o@\u008c\u008dÐ)»Ô\u0086@_x0003_¹\u0081¾º_x0013_\u009f@;\u0094,â´#A@?\u009d_x0019__x0004_\t?\u0097À¤cá`\u0092%\u0093À_x001F_\"\u0084_x0011_öû£Àí1._x0013_U\u0098¡À_x0006__x0007_ÿcö>¥ß\u009cÀK\u008a\u0094ôE_x0006_·À_x000F_ë\t_x001A_ú¶\u0080@_x0018_ì\u0088_x0017_<¥}@8|;-_x001B_8r@_x0005_Þúúð\u0081\u0082À{(Öb/> Ààë\u0096\u007f\u0090Á\u008f@_x0001__x001A_è/_x0012__x000B_\u0088@0_x0015_ 5ú¬¡@ð\u0090_x000D_\u007f_x0014_O²À_x0004_¬µU_x0005_¬\u0084@·Ìos_x0007_s_x0010_AóÑ\u0095\u007f\u008f¡_x0010_A\u0085,* _x000F_D_x0010_AT¤éf\u009c_x0017__x0011_A1~_x000D_|5C_x0010_A,_x0018_5Ô;_x000D__x0011_ArOÂ4DG_x0010_AS_x000B_BC_x0008_l_x0010_A\\ü\u009a\u0088Ú¬_x0010_A_x001F__x0014_¾ÍBÏ_x0010_A_x000F__x000D_¼\u0083_x0003_·_x0010_Aî] U¡A_x0010_A_x0002_ýÐ-P[_x0010_A\u009a_x0015_§;â\u0081_x0010_AüèiÀìí_x0010_Aêæ,ñ_x0019_W_x0010_A¼2£í_x0003_\u009f_x0010_Aq\u0093åä_x0016_ú_x000F_A@_x001B__x0019_à$ê_x0010_A`B _x0013__x0002__x0006_Çÿ_x0010_A»&2=\t³_x0010_AE\u0098ñãêg_x0010_A;¦\u0094»ª¢_x0010_AÒÑÉ\u009a¢³_x0010_A·R<b\"\u0093_x0010_AÿVHè¨_x001F__x0010_Aë±x\"\u0098\u0094_x0010_AR\u009eÎª_x0004_}_x0010_A#ÿÑv_x0019_\u009a_x0010_AD_x0008_J\u0092×y_x0010_Aô_x001B__x0013_\u0091È\u009f_x0010_A\u009f%~rþÇ_x0010_A\u0090ßt_x000C_CÐ_x0010_A>´cÖË_x0012__x0010_A\u0087Q\"c_x001A_4_x0010_AÀ\u009aêÀ8\u0092_x0010_Aß¡_x001F_TÓ_x000E__x0010_A33\\2_x0004__x0005__x0010_A_x0011_f\u0099ù¥m_x0010_A0Ú7=ª _x0010_A\u0097yU¥¡\u009c_x0010_AA\u0090¼_x0006_y_x001F__x0010_Aâ_x0013_\u0097ëò­_x0010_AiÍ\u0082wä©_x0010_Aonû4\u0084C_x0010_Ap_x0001_o_x0017_Ä_x001A__x0010_AGÿØ\u0080_x0003_©_x0010_A_x001D_T¬\u0090õ8_x0010_AÍ_x0013_¶_x001D_\u009dî_x0010_AMÞBCæh_x0010_ABê©»;Õ_x0010_A_x0001__x0004_ _x000B_À½\u009cJ_x0011_AÛ\u0093ê; ã_x0010_AôÜNÈ£!_x0010_Ae_x000B_p°ò_x000B__x0011_A°`\u0092ÜÛ>_x0010_A'\u0080&¹_x0012_è_x0010_A¦Êp.Vç_x0010_AhgGÁ\\\u009b_x0010_A.[Q\u0093/¶_x0010_ABR\u009c5ö\"_x0010_A¤4\u009eÏ\u0090÷_x0010_A¥J\u0088¤ØJ_x0010_A\u0089\u009f5_x0011_\u008f¢_x0010_ArDõ\u0082Ø\u009a_x0010_A_x0001_\u0099¿ixÍ_x0010_A`\u008fE~Y[_x0010_AP\u0081Ìù\t\\_x0010_AT¬J¡_x0015_k_x0010_AÆ_x0003_-FáÄ_x0010_A6V@p_x0004_Ú_x0010_A£+l_x001E_ÔD_x0010_An_x001C_Ê_x0012_úÁ_x0010_A6ü\u007f§\u0092¢_x0010_A\u009c\u0094_x001D__x001C__x0013_0_x00"}},{"$cut":{"chars":68574,"head":"9e47bd7fbda840bcfda24b7e3edb5c64_x0001__x0004_&®65Üá_x0013_A!_x0014_ßX\\ã_x0013_AnD_x001D_rÆ!_x0014_ANÛ·ÚÇU_x0014_A\u0096_x0014_G\u0084\u0094_x0003__x0014_AnQX_x000E_9ä_x0013_A·=$\u0080&Ø_x0013_AmTr¡öm_x0014_A_x001A__x0002_\u0084r\u0087\u0090_x0014_A\\uÄ¨MH_x0014_A$°àâ¼O_x0014_Ab_x000C_\u008d\u007fÅ¦_x0013_A\u0089\u0084\u00876£¡_x0013_A_x0015_+_x0002_ì0\u0086_x0013_AÖZÇì¡\u009a_x0014_AÁ'x\u009e+¦_x0013_Ai\u009bÝê;\u0086_x0013_AOÝ\u008bZ_x0006_¶_x0013_Aîó_x001C_T\u008fN_x0014_A\u009d_x0003_\u008eÕÑ!_x0014_AÎi_x000B_¸q]_x0014_A$nê8Jo_x0013_A¹â¢wVÎ_x0013_A=Å×Naj_x0013_AøR_x0018_\u0098_x0017__x0010__x0014_A_x000E_Î\u0091Â_ _x0013_AÝ\u0097¸~\u0095Z_x0013_A_x0011_%\u0099_x0018_ÕË_x0014_A`\u0095V¿ý_x0017__x0014_Al5Å\u009dn~_x0014_A_Ãøÿ¨\u0089_x0013_A÷¨ßU_x0001__x0002_xÙ_x0013_AW_x0017_n\u008f\u0083Ð_x0013_A¹\u008fb4ºß_x0013_AÎìùØn¸_x0013_Aþ_x0007_¿¶\"J_x0014_A\u008bJ^¯\u0093¹_x0013_AÇè×\u0081æÃ_x0013_A[\"\u0090tÍ%_x0014_A>5È\u009a£\u009a_x0013_AÌ\u0082%E[¶_x0013_A\u009dÞ|àí¥_x0014_AªÙ¼\u008b*Ø_x0013_A_x001A_¬Ö\u009aî_x0013__x0014_AÐPßÂrÑ_x0013_A\u0088É_x0014_að+_x0014_A_x0007_]UÃßÜ_x0013_APU¸\u008f\u0085©_x0014_AG\u009aØ_x0001_çX_x0014_A2_ü]v&_x0014_A_x0006__x000F_5\u0089à·_x0014_A\u0086i\u0093>í«_x0013_A_x0011_Úï\u008e\u009aì_x0013_A_x000D_»£Ê_x000E_¿_x0014_A:\u0089<»Lº_x0014_A_x000B_~]\u007fÉ\u009c_x0014_A»_x0001_qÙ_x0001_t_x0014_A_x001C_Sµ¸\\5_x0014_A9yÒRs#_x0014_A\u0081¯<Æ\u0092_x0006__x0014_A°æZ\u0087\u009aì_x0013_Ao\u0082Ó_x0017_F\u008c_x0013_A¤_x0012__x001D_|_x0017_{_x0014_A_x0002__x0005_5Ü¹_x0007_,ì_x0014_Akõì®ßÉ_x0013_A_x000E_;QòÌ¤_x0013_Amb_x0010_â\u0094\u009a_x0014_A>Z_x0006_\u008a\u009f^_x0014_Ahi!¥òâ_x0013_A\u0099«Í¾qî_x0013_A®_x0007_\u008aAëí_x0013_A¡\u008e¿iîU_x0014_A5?ú_x001F_A_x0007__x0014_A`ÀÊÄn\u008f_x0013_A.Ò\u0082_x001C_<ÿ_x0013_A_x000B_â¬ÌÌÆ_x0013_A_x0004_KdÐê¹_x0013_A¬Ý#/Cv_x0014_A ¿Þ9CÈ_x0013_A],ç\u0086ª®_x0013_Af\u0082gR\u007fx_x0013_AÉÚ(CJ\u009a_x0013_A_x0016_¾_x0016_T/_x0001__x0014_AG³&_x000C_._x0003__x0014_A_x001E__x0003_ûæÉ¾_x0013_Aó_x000B_\u0093ê\u009e_x001D__x0014_Aq\u0086Å\u008f±B_x0014_Aéyë²ª_x0013__x0014_A7\u0081ÃL«_x0004__x0014_A2PÑ\t3 _x0014_A¹QÒþÁO_x0014_ArA\u00874_x000C__x001C__x0014_AB®\u0090£ÎK_x0014_A_x0018_Ä\u0094Ø°_x000C__x0014_A¼á\u0088÷_x0001__x0003__x0004_Ð_x0013_AL÷\u0084\u0085\u008c_x000B__x0014_A\u0095\t{_x001D_µ_x0001__x0014_AMä_x001D_\u0086ü]_x0014_AZ1±_x000D_ú _x0013_A¬<h=é\u0093_x0013_AÄ_x0010_Õ±´M_x0014_A_x000D_ø6\u0097z_x0011__x0014_A\u0097¡_x0015_¾_x0006_g_x0014_A\u008b_x0008_\u0080zù\u008b_x0014_Açc\u008cS\u0099ð_x0013_Aü,²ö%8_x0014_A\u0093ßø\u0098]j_x0013_A{æf´Ãä_x0013_A2_x000E_nÿFö_x0013_A?±¼ÛL\u008d_x0013_AË;§\u007f_x0014_\u008c_x0014_Alo=_x000F_\\\u009c_x0013_A>\u0089hè_x0017_ã_x0013_AjJ¦;Bó_x0013_AuÃÚtÃú_x0013_AêÓÇ3ÿ9_x0014_A~\u008e_x0015_\u0080·\u008e_x0013_A_x0013_}\"½\u0086>_x0014_A¤jv¹O´_x0013_A_x001C_ö\u008b_x000D_ÕC_x0014_A_x0007__x0010_Ñ~_x0010_Ø_x0013_Aàìå©Rþ_x0013_A_x0002_u_x0013_M_x0004_f_x0014_Aö\u0082Ìÿîþ_x0013_AN*p3RU_x0014_AeèÉ\u0098ïË_x0013_A_x0001__x0002_m\u008eQÏ\u0089_x001F__x0014_APÉQ0_x0015_]_x0013_A\u008fÌ?)_x000D_ù_x0013_A\u0082_x001C_íÀ\u009d/_x0014_A³\u0099ø©r_x0019__x0014_Aam_x0010_°Fl_x0014_A¤|Ä£P\u0099_x0014_A§E\u008f9\u009ep_x0013_Aã@_x0004_\u008d\u0082\u0094_x0013_A\u0094£c|ö-_x0014_A\u0093_¼,«\u0082_x0014_AÜ_x0017_f-¤à_x0013_A¹\u0092Ý»\u0084é_x0013_AèVêä_x001D_\u007f_x0014_AP­_x001D_é\u0084L_x0014_A\u0080~ \u0097_x001E_¶_x0013_A¦_x001B_{O_x0001__x000F__x0014_Aÿí¤8.k_x0014_A_x0017_åÃFl§_x0013_A.tÕa&ª_x0014_AY-ô(\u0098Þ_x0013_Að_x001D_lB_x000C__x0019__x0014_AíÚ,\u0081G\u0093_x0013_A\u009aïþ9ñt_x0014_A ¨_x001E__x000B_\u008bÂ_x0014_Aú=ô%XÂ_x0013_AH1ÿ¿S5_x0014_A_x0013_¤\t.|ª_x0013_Aô4¯$+\u0080_x0013_AÆ_x000E_Ô2,Î_x0013_AdBQ_x0014_\u008b\u007f_x0013_Aß5_x0017_¢_x0001__x0002_yÁ_x0013_A£ø£_x0005_Q·_x0013_AÁãq\u0091;M_x0014_A%_x001F_aWE9_x0014_Aµ´ÀÑäb_x0014_Aéq_x001F_Ã$Ý_x0013_Ac\u0080t\u0092\u0099m_x0013_Acó\u009b\u0096\\P_x0013_A_x0008_\u0098\u0096_x000D_Û\u0091_x0013_An6I£\u0083u_x0014_A)Ø¿_x0013_¤Â_x0013_AÆAk#v\u0088_x0013_A±\u008dM\u009bê¨_x0013_AEKóÍ@\u0091_x0014_AÐ@_x000D_Tob_x0013_AbÙÅÛãO_x0014_A\u008ci\u0090wCØ_x0013_A_x0001_àû6ñè_x0013_Af_x0005_·cI\u0088_x0014_As_x0018_ôÊ®__x0014_A_x000D_yà_¾_x0016__x0014_A\u0095\u009e°*6_x0017__x0014_A£½B}lE_x0014_A\u009a¯_x000B_Ãb¬_x0013_AOÔÖ\u009c.¶_x0013_A$h\u008d[Ó=_x0014_A¤_x0016_\\\u0099Ú+_x0014_AÇUö÷n>_x0014_A¼o_x001A_¶¥û_x0013_AwdB\u009f¸m_x0014_ADsËVþP_x0014_A_x0014_K%!¼¾_x0013_A_x0001__x0004_Ï¯\u008eNr_x0016__x0014_AL\u0085i_x0002__x0017__x000B__x0014_A$±_x0016_\u008býÏ_x0013_A0äð\u008eº\u008d_x0014_AC£\u008du7p_x0014_AHknz_x000E_Ý_x0013_A\u0085{/úW÷_x0013_AªGÊJKS_x0014_A£úJ×°à_x0014_A!²Ì­Së_x0013_A*x$çû¡_x0014_Aê§¥¿¯_x0018__x0014_A\u009e\u0099þ6Q[_x0014_AÖ-\u009d$¨Ë_x0013_AÚx²TËP_x0014_A_x000C_.Ï\u009cÒ\u0080_x0013_Av&ì\u008a_x0003_,_x0014_AA\u0099¡%_x0007_f_x0014_AF_x0004_¨ÖÅ _x0014_Aý¸\u0084ß¾__x0014_A86ØÇÙ\u008c_x0014_A¥O\"¿Â\u008f_x0014_AÂ(\u008eÓ_x001B_\t_x0014_Aº_x0010_îó!&_x0014_AÎ5Ûrx¤_x0014_Aü_x0004_>_x0007_p¤_x0013_A_x0007_ß|¾rL_x0014_Aªb_x0004_IÚ\u0096_x0013_AEVæ·ù:_x0014_A>@<¨í_x0"}},{"$cut":{"chars":119808,"head":"f1ecd0beee9a512ea4ed225a5f39c058_x0001__x0003_\u0082N\u0090¾Ä \"A_x000E_®\u009cç=\u009d\"A_x0006__x0001_QJwe\"A\\®ç_x0012_e?\"A\u009bôJJ­j\"AÈ5·ì_x0013_k\"A_x000C_2_x001B_l»C\"A©\u008a_x001F_Eµ_x000F_\"AçQv_x0005_&/\"Af\u009b +©ë!Av8WØp*\"A=_x0007_ßÅ²?\"A_x001F_,fÑ_x000D__x0013_\"Aâÿ¹ôr,\"A`Ç9Mþ.\"AÊôs?\u0085O\"A^o¬ÛÙÚ\"A¬\u009fáî\u0087h\"AuníÆóY\"AB&Áó¾+\"A_x0005_t_x0016_®ü+\"AÆÍ]®¡\u0088\"ADó \u009a¹|\"Að_x0005_e\u0082;A\"A_x0002_\u008d¨2ýé!A/O\u00991¡Q\"Aç_x001E__x001B_4\\Z\"AÎ_x001E_\u0090v¤-\"AzW_x0001_\u008cùý!A:Ù è;_x000F_\"A_x0014_HÛôN_x0007_\"AàI\t®_x0002__x0003_ð\\\"Ax¦Ó¯/í!A¥©ãaC(\"AÜ_x0011_ËÁ¢a\"AC!t_x0008_å_x0018_\"Agh62Ð±\"A:g\u007fÿq©\"A\u0086ß§å->\"A`Ñúo_x0016_W\"AÐã\u0096C´A\"AØÑ2çÅ´\"A_x000B_\u0089ÿzDú!AB«\u0097T\u009dv\"A\u0081üÉZ\u008fn\"A6\u008acþ\u0083,\"AàÎÒØËt\"A¼ÿîÚs`\"A®m\u0088´_x000D_ \"Aný\u0084\u0086EÈ\"AÔ701ë.\"A\u007f~_x0017_ø\tI\"An$®e_x0001_\u0098\"A>Ò@\u0090sG\"A_x0015_¾zðúµ\"A*_x000B_¹Ç9_x0011_\"Aü_x001D_\u009c\u00814|\"A_x0008_wúØ\u0091\u007f\"A.%ø¾1\u007f\"Aà_x000F_Wÿ5E\"A»~ë8a\u008d\"ANÑ_é\u0098J\"A:íÑ=s\u0082\"A_x0001__x0003_o\u0082ªCàÃ\"AR_x0001_W~_x001C_\u008e\"A\"_x0018__x0014_²Ù(\"A]\u0088ãèÅù!AÜª¬ØDö!A*uE!;_x001F_\"A&Æ±\u008e,é!A2_x000F_®_x000F_\u0081\u0086\"AÖ~\u008d\u008a¥p\"A_x0006__x0003__x0016_F{µ\"A\u008ch;7_x0003_\u0084\"A8éJ&MO\"A_x001C__x000F_©áQ\\\"A\u0082Î &2Â\"A1'áB_x001A_ö!AÒÝ{_x0019__x0013_3\"A_x001C_.e_x0005_\u009a$\"A_x001E_:\u0085æ\u0083_x0004_\"A_x0012_ÌÍe¼f\"AÁ\u009béI7ô!AÙ++_x0015_iM\"A_x0014__x0003__Ø§s\"Aw¿Ë4ÆA\"A4Li_x0012_Æ-\"A\u0086\u008c>:~]\"AnºÅïì_x001A_\"A_x0012_Y_x0002_q_x001F_R\"A¶ô»C¡1\"Aj±ªw¯Þ!A94e Kï!AS\u0095@rÆÐ!AÈ_x001E__x0015_x_x0003__x0006_»3\"AF_x0015_ò\u0082_x0007_p\"AäÕ\"qQ_x0012_\"A_x0013_- ¶Iw\"A\u008eUÿm_x0005_P\"AfÎ_x0010_»>_x0008_\"A\u0093M1@u\u008b\"ATèH\u0099ºN\"AÛ\"ß\u008b_x0001_ý!AB-¿þ\u0082\u0088\"An\\oú)~\"A\u0080¬RÛA9\"A_x001A_>\u008e\u007f_x0004_\u0092\"Að½K\u007f_x0007_c\"A_x001E_âÿ\u009fÂ.\"A[üï \u0093a\"Aºü*¸°E\"A \u0089c·_x001E_\u009a\"AÂ\u009fzL_x001A_p\"A>?ðüÛu\"AV\u008ft\\Çx\"AGÄ¿\u0085 K\"A`r~¼{¸\"Aôá¢W\u0086p\"A_x0006__x000C_%øme\"A#*¡ÒYf\"Ag[VG¨×\"A\u0098%_x0017_¥EJ\"A4Ê¼­\u008dÞ!ADÒ_x0002_Á`(\"A\u0098-ap%\u009b\"AÚ_x0010_ZÏ¡_x0008_\"A_x0002__x0003_U_r._x001E_\\\"AP'âÜã4\"A¦\u0083ã__x001D__x0014_\"A%Ù¢ìrÞ!A¡×}X,\"\"A¦¡û\u0081Og\"A9âàUK[\"Az\u009b\u0088'\u00950\"A¦2\u0095¬a!\"A¼\u008dN\u008cöí!AB=(>Ý.\"AÖ_x0005_¸_x0001__x001A_\u0093\"Aä½_x001D_Z\u009dM\"A\u008cH$Pï%\"A_x001B_U\u0097\u0081$1\"A©<_x001C_\\0p\"AJ/G'\u0083Â!Aêé_x0010_\u0091_x000D_.\"AþT\tøóç!A_x0017_Î@÷ì\u0083\"Aß6nj\u008eV\"AÔëÄïÄJ\"AC¥_x0004_p`F\"A¦\u0084\u009ay½©\"A\u0099j9Ó6_x0019_\"Að*ôü\u009fö!A\u009c\u0092o\u008fôA\"A\u009adR_x000D_ç¶\"A6&\u009fÖl_x0005_\"A¦P_x0013_\u0099Ê6\"A:%h¹\u008d\"\"A.ñ_x000B_e_x0001__x0004_¿i\"A×{_x0002_õÿ5\"A\\3·\u0085\u009et\"A\u009aÊCjJd\"Aµ¸Æ!_x0019__x0013_\"Aª_x0015_=IÃ_x0008_\"Ak=PuZ\"\"A_x0014_\u0080»ûâ.\"A\u0098aO[_x0003_U\"A>>¥r:q\"AÍ_x001D_8'>ô!A®Þ-®_x0004_W\"Aþ0 ÑA$\"A¶ÓÓ¦±2\"A\u0095\\Ø_x001E_\u007f9\"Aìê]Ã !\"A6nl,i6\"A_zq·â+\"AT_x0014_àúñ\u0097\"AJÎòS\u0097A\"A,HW^Ë&\"A\u0094_x0003__x000D__x0001_wé!A+jÙ7þ_x001A_\"A\u0092øÄý~H\"Adk\u008b0<_x001A_\"A_x000C__x0007_,4\u0095C\"A\"B\u009fu_x001A_@\"A(aUoGz\"AÎ\"=\u008b[4\"A;íú\u009cÀP\"A*_x001E_26\to\"Añ~Ys\u009f_x0003_\"A_x0002_\t\u0094\u0080È×½\u0082\"A_x001F_Å_x0018__x0005_\u0099>\"AÀ_x0012_¥\u0095:=\"AP\u009e?J)a\"A¼ÜB8\u0084ï!A_x0016_%#>\u0084_x0007_\"A_x000E_9æF\u0089_x000B_\"A\tt)Ûí<\"AzO_x001E_Ñ\u008bî!AÔx\u008aù,p\"A_x0004_áAë_û!A\tÚ×ÜVO\"A%íS¸ðn\"AjSXîé@\"A\"®\u0084)sJ\"A¹?_x0003_Ç\"J\"AÚµrÑH_x000D_\"A_x0002_Ì\\ª'â!A>X\u009e\u009eÎf\"A¸\u0094?\u008c#d\"A_x0018_\u0096\u009226>\"Aø_x0014_XWH°\"A_x0008_9;ÐòG\"Aìaö[U_x000E_\"Ap\u008b.@_x001D_\u007f\"AMRkÝa\u0082\"A_x000E_¥*Ï½4\"AB%]_x0001_o*\"AõTd¡!\u0080\"A_x0006_4LµOÄ!AÐp_x0016__x0016_\u007fÈ\"AØ\u0084¡ø_x0001__x0003_2ù!A\u0088þR8\u0099\u0092\"Aø\u00852Îy¼\"A&/\"Em_x0007_\"A¼f8#Ç´\"Ad\\(ú\u0096l\"A\u0098®å¥Ïp\"Ah\u0090³,÷N\"A®_x001C__x001C_\u0094G2\"Ajûº_x0010__x000B_z\"A_x0006_úùå»\u009e\"A¢-¸\u0086¹>\"AÁ\u0081E_x000D_Û:\"Aô¸¼Àõ£\"Aþ_x000D_ø%÷o\"A^_x0005_5H,1\"A|'\u008bã_x000E_ã!A_x0003_TÕÝ}k\"ApSXÃ_x0004_é!Aí£®x!P\"Af9jb(E\"AxJ\u0081Úçs\"A®w!\u0089}5\"AÌ\u0081l@%\u008c\"Ao\u0086\u008b-/È\"A5Â_x0002_£7*\"Ap´/üÄ\u009c\"Ao%ä%OÝ\"AjÒþ\u0087[_x001B_\"A6=¹H¢3\"A_x0006_Lé*_x000D_c\"A$Ñ+T¯þ!A_x0003__x0004_ÖÓÙ2ÉG\"AîÔ_­¹;\"A&æü¦\u00914\"AÚ¢\u009b9w_x000D_\"A_x0004_á ä_x000D_4\"A\u0082\u009c\u0089ò\u009e_x0005_\"A¾Èa1Ók\"ANE\u0098Í_x000E_¾\"A=\u0090ª\u0080f\u009d\"Az\u0096¯G%_x000E_\"A8î¯Å_x001A_A\"A_x0018_rQûëB\"Ar¤_x0013_oFÎ!AX^\u0098|Ùx\"A¢ ÉeBa\"AºÊx_x0001_K*\"Ai30_x0007_ux\"AÈî_x0018_Õ~d\"A\u0082²_x0002_+K_x0014_\"AHúcí]5\"A_x0010_=_x0006_é\\N\"Aºù|\u008aO7\"A_x0007_:ÖÓÉF\"A\u0086<Kñ0-\"A_x0002__x0010_³ox_x0017_\"A\u008eWÿùch\"A¨_x0014_Æ¹å\u008f\"AÂ³Ø.xÑ!A_x000F_«~\\\u008a}\"AL\u0086¥1Iì!ATü_x001F_ÞÙK\"A¬m\u008c\u0091_x0004__x0005_'L\"A_x0019_4Ç_x000D__x001B_E\"Aò\u0096Ù_x000E__x001A_x\"Aà_x0007_é}X£\"A\u0080_x0003_X\u008b]L\"AÒDåÓþ&\"Aú_x000B_õ\u008e_x0015_\u008e\"A_x001E_t*Âfc\"A¾\u008a½\u0095ÁA\"A ýbH·N\"A_x0018_'\u0088\u00838,\"At_x0017_ÑOgQ\"AïûDx³?\"AD\u0089´_x0014_XÒ!AãN_x001C_\u0082r_x001B_\"A_x001D_8|_x001A_\u0092K\"ArBü_¬\u0095\"A,´+&°\u008d\"A\u0084_x001D_÷X¨¡\"AÅ¹aKÈO\"A_x0002_é\u0088\u0098\u0094°\"ABaÊ­\u0084±\"A\u0090@Ã_x0001_ûÒ\"A9èf\u0088 E\"AÜx´°Ü÷!A_x001E_SÏQ'\u007f\"AB\u008e._x0004_\u009cz\"AòÈåI\u008f_x0005_\"AÂ¶O:[U\"A<Y_x000F_Ç\u0092I\"A`$_x0012_m\u009a\u008b\"AÈsÅnî\u0081\"A_x0002__x0004__x000F__x000E_â×^_\"AÒv_x001B_],_x0015_\"Av®éÃÐO\"Aju×KÂp\"Aô\\{\u008fU\u008f\"A³\u0093$fq\u009d\"A`ÁóÇ¯~\"ANð_x0003__x001A_Æl\"A"}},{"$cut":{"chars":164448,"head":"593e41eda343c38e3c5e55a4eabbc25d_x0001__x0002__x0001__x0001__x0001__x0001__x0008_\u0083_x0018_A_x0001__x0001__x0001__x0001__x0008_\u0083_x0018_A_x0001__x0001__x0001__x0001__x0008_\u0083_x0018_A_x0001__x0001__x0001__x0001__x0008_\u0083_x0018_A_x0001__x0001__x0001__x0001__x0008_\u0083_x0018_A_x0001__x0001__x0001__x0001__x0008_\u0083_x0018_A_x0001__x0001__x0001__x0001__x0008_\u0083_x0018_A_x0001__x0001__x0001__x0001__x0008_\u0083_x0018_A_x0001__x0001__x0001__x0001_(Ñ_x0018_A_x0001__x0001__x0001__x0001__x0008_\u0083_x0018_A_x0001__x0001__x0001__x0001__x0008_\u0083_x0018_A_x0001__x0001__x0001__x0001__x0008_\u0083_x0018_A_x0001__x0001__x0001__x0001__x0008_\u0083_x0018_A_x0001__x0001__x0001__x0001__x0008_\u0083_x0018_A_x0001__x0001__x0001__x0001__x0008_\u0083_x0018_A_x0001__x0001__x0001__x0001__x0008_\u0083_x0018_A_x0001__x0001__x0001__x0001__x0008_\u0083_x0018_A_x0001__x0001__x0001__x0001__x0008_\u0083_x0018_A_x0001__x0001__x0001__x0001_(Ñ_x0018_A_x0001__x0001__x0001__x0001__x0008_\u0083_x0018_A_x0001__x0001__x0001__x0001__x0008_\u0083_x0018_A_x0001__x0001__x0001__x0001__x0008_\u0083_x0018_A_x0001__x0001__x0001__x0001_(Ñ_x0018_A_x0001__x0001__x0001__x0001__x0008_\u0083_x0018_A_x0001__x0001__x0001__x0001__x0008_\u0083_x0018_A_x0001__x0001__x0001__x0001__x0008_\u0083_x0018_A_x0001__x0001__x0001__x0001__x0008_\u0083_x0018_A_x0001__x0001__x0001__x0001__x0008_\u0083_x0018_A_x0001__x0001__x0001__x0001_(Ñ_x0018_A_x0001__x0001__x0001__x0001__x0008_\u0083_x0018_A_x0001__x0001__x0001__x0001__x0008_\u0083_x0018_A_x0001__x0001__x0001__x0001__x0001__x0002__x0008_\u0083_x0018_A_x0001__x0001__x0001__x0001__x0008_\u0083_x0018_A_x0001__x0001__x0001__x0001__x0008_\u0083_x0018_A_x0001__x0001__x0001__x0001_(Ñ_x0018_A_x0001__x0001__x0001__x0001__x0008_\u0083_x0018_A_x0001__x0001__x0001__x0001__x0008_\u0083_x0018_A_x0001__x0001__x0001__x0001__x0008_\u0083_x0018_A_x0001__x0001__x0001__x0001__x0008_\u0083_x0018_A_x0001__x0001__x0001__x0001__x0008_\u0083_x0018_A_x0001__x0001__x0001__x0001_(Ñ_x0018_A_x0001__x0001__x0001__x0001__x0008_\u0083_x0018_A_x0001__x0001__x0001__x0001__x0008_\u0083_x0018_A_x0001__x0001__x0001__x0001__x0008_\u0083_x0018_A_x0001__x0001__x0001__x0001__x0008_\u0083_x0018_A_x0001__x0001__x0001__x0001__x0008_\u0083_x0018_A_x0001__x0001__x0001__x0001__x0008_\u0083_x0018_A_x0001__x0001__x0001__x0001__x0008_\u0083_x0018_A_x0001__x0001__x0001__x0001__x0008_\u0083_x0018_A_x0001__x0001__x0001__x0001_ÈW_x001A_A_x0001__x0001__x0001__x0001_(Ñ_x0018_A_x0001__x0001__x0001__x0001__x0008_\u0083_x0018_A_x0001__x0001__x0001__x0001_(Ñ_x0018_A_x0001__x0001__x0001__x0001__x0008_\u0083_x0018_A_x0001__x0001__x0001__x0001__x0008_\u0083_x0018_A_x0001__x0001__x0001__x0001__x0008_\u0083_x0018_A_x0001__x0001__x0001__x0001_(Ñ_x0018_A_x0001__x0001__x0001__x0001_(Ñ_x0018_A_x0001__x0001__x0001__x0001__x0008_\u0083_x0018_A_x0001__x0001__x0001__x0001__x0008_\u0083_x0018_A_x0001__x0001__x0001__x0001__x0008_\u0083_x0018_A_x0001__x0001__x0001__x0001_(Ñ_x0018_A_x0001__x0001__x0001__x0001_(Ñ_x0018_A_x0001__x0002__x0001__x0001__x0001__x0001__x0008_\u0083_x0018_A_x0001__x0001__x0001__x0001__x0008_\u0083_x0018_A_x0001__x0001__x0001__x0001__x0008_\u0083_x0018_A_x0001__x0001__x0001__x0001__x0008_\u0083_x0018_A_x0001__x0001__x0001__x0001__x0008_\u0083_x0018_A_x0001__x0001__x0001__x0001__x0008_\u0083_x0018_A_x0001__x0001__x0001__x0001_(Ñ_x0018_A_x0001__x0001__x0001__x0001__x0008_\u0083_x0018_A_x0001__x0001__x0001__x0001__x0008_\u0083_x0018_A_x0001__x0001__x0001__x0001_(Ñ_x0018_A_x0001__x0001__x0001__x0001__x0008_\u0083_x0018_A_x0001__x0001__x0001__x0001__x0008_\u0083_x0018_A_x0001__x0001__x0001__x0001__x0008_\u0083_x0018_A_x0001__x0001__x0001__x0001__x0008_\u0083_x0018_A_x0001__x0001__x0001__x0001__x0008_\u0083_x0018_A_x0001__x0001__x0001__x0001_(Ñ_x0018_A_x0001__x0001__x0001__x0001__x0008_\u0083_x0018_A_x0001__x0001__x0001__x0001__x0008_\u0083_x0018_A_x0001__x0001__x0001__x0001__x0008_\u0083_x0018_A_x0001__x0001__x0001__x0001__x0008_\u0083_x0018_A_x0001__x0001__x0001__x0001__x0008_\u0083_x0018_A_x0001__x0001__x0001__x0001__x0008_\u0083_x0018_A_x0001__x0001__x0001__x0001__x0008_\u0083_x0018_A_x0001__x0001__x0001__x0001__x0008_\u0083_x0018_A_x0001__x0001__x0001__x0001__x0008_\u0083_x0018_A_x0001__x0001__x0001__x0001__x0008_\u0083_x0018_A_x0001__x0001__x0001__x0001__x0008_\u0083_x0018_A_x0001__x0001__x0001__x0001__x0008_\u0083_x0018_A_x0001__x0001__x0001__x0001__x0008_\u0083_x0018_A_x0001__x0001__x0001__x0001__x0008_\u0083_x0018_A_x0001__x0001__x0001__x000"}},{"$cut":{"chars":155700,"head":"af4b71f594d6b062c47e388ce9b8404e_x0001__x0002__x0001__x0001__x0001__x0001_è¬_x0019_A_x0001__x0001__x0001__x0001_è¬_x0019_A_x0001__x0001__x0001__x0001_è¬_x0019_A_x0001__x0001__x0001__x0001__x0008_û_x0019_A_x0001__x0001__x0001__x0001_è¬_x0019_A_x0001__x0001__x0001__x0001__x0008_û_x0019_A_x0001__x0001__x0001__x0001_è¬_x0019_A_x0001__x0001__x0001__x0001_è¬_x0019_A_x0001__x0001__x0001__x0001_è¬_x0019_A_x0001__x0001__x0001__x0001__x0008_û_x0019_A_x0001__x0001__x0001__x0001__x0008_û_x0019_A_x0001__x0001__x0001__x0001_è¬_x0019_A_x0001__x0001__x0001__x0001_è¬_x0019_A_x0001__x0001__x0001__x0001_è¬_x0019_A_x0001__x0001__x0001__x0001_(Ì_x0019_A_x0001__x0001__x0001__x0001_è¬_x0019_A_x0001__x0001__x0001__x0001_è¬_x0019_A_x0001__x0001__x0001__x0001_è¬_x0019_A_x0001__x0001__x0001__x0001_è¬_x0019_A_x0001__x0001__x0001__x0001__x0008_û_x0019_A_x0001__x0001__x0001__x0001_è¬_x0019_A_x0001__x0001__x0001__x0001_è¬_x0019_A_x0001__x0001__x0001__x0001_è¬_x0019_A_x0001__x0001__x0001__x0001_è¬_x0019_A_x0001__x0001__x0001__x0001_(Ì_x0019_A_x0001__x0001__x0001__x0001_è¬_x0019_A_x0001__x0001__x0001__x0001_è¬_x0019_A_x0001__x0001__x0001__x0001__x0008_û_x0019_A_x0001__x0001__x0001__x0001_è¬_x0019_A_x0001__x0001__x0001__x0001__x0008_û_x0019_A_x0001__x0001__x0001__x0001_è¬_x0019_A_x0001__x0001__x0001__x0001__x0001__x0002_¨_x0002__x001A_A_x0001__x0001__x0001__x0001_è¬_x0019_A_x0001__x0001__x0001__x0001_è¬_x0019_A_x0001__x0001__x0001__x0001__x0008_û_x0019_A_x0001__x0001__x0001__x0001__x0008_û_x0019_A_x0001__x0001__x0001__x0001_è¬_x0019_A_x0001__x0001__x0001__x0001_è¬_x0019_A_x0001__x0001__x0001__x0001_è¬_x0019_A_x0001__x0001__x0001__x0001_è¬_x0019_A_x0001__x0001__x0001__x0001__x0008_û_x0019_A_x0001__x0001__x0001__x0001__x0008_û_x0019_A_x0001__x0001__x0001__x0001_è¬_x0019_A_x0001__x0001__x0001__x0001__x0008_û_x0019_A_x0001__x0001__x0001__x0001_è¬_x0019_A_x0001__x0001__x0001__x0001__x0008_û_x0019_A_x0001__x0001__x0001__x0001_è¬_x0019_A_x0001__x0001__x0001__x0001_è¬_x0019_A_x0001__x0001__x0001__x0001_è¬_x0019_A_x0001__x0001__x0001__x0001_è¬_x0019_A_x0001__x0001__x0001__x0001_è¬_x0019_A_x0001__x0001__x0001__x0001__x0008_û_x0019_A_x0001__x0001__x0001__x0001__x0008_û_x0019_A_x0001__x0001__x0001__x0001_è¬_x0019_A_x0001__x0001__x0001__x0001_è¬_x0019_A_x0001__x0001__x0001__x0001_è¬_x0019_A_x0001__x0001__x0001__x0001_è¬_x0019_A_x0001__x0001__x0001__x0001_è¬_x0019_A_x0001__x0001__x0001__x0001_è¬_x0019_A_x0001__x0001__x0001__x0001_è¬_x0019_A_x0001__x0001__x0001__x0001_è¬_x0019_A_x0001__x0001__x0001__x0001_è¬_x0019_A_x0001__x0001__x0001__x0001_è¬_x0019_A_x0001__x0002__x0001__x0001__x0001__x0001_è¬_x0019_A_x0001__x0001__x0001__x0001__x0008_û_x0019_A_x0001__x0001__x0001__x0001_è¬_x0019_A_x0001__x0001__x0001__x0001_è¬_x0019_A_x0001__x0001__x0001__x0001_è¬_x0019_A_x0001__x0001__x0001__x0001_è¬_x0019_A_x0001__x0001__x0001__x0001_è¬_x0019_A_x0001__x0001__x0001__x0001__x0008_û_x0019_A_x0001__x0001__x0001__x0001_è¬_x0019_A_x0001__x0001__x0001__x0001_è¬_x0019_A_x0001__x0001__x0001__x0001_è¬_x0019_A_x0001__x0001__x0001__x0001_è¬_x0019_A_x0001__x0001__x0001__x0001_è¬_x0019_A_x0001__x0001__x0001__x0001_è¬_x0019_A_x0001__x0001__x0001__x0001_è¬_x0019_A_x0001__x0001__x0001__x0001__x0008_û_x0019_A_x0001__x0001__x0001__x0001__x0008_û_x0019_A_x0001__x0001__x0001__x0001_H_x001A__x001A_A_x0001__x0001__x0001__x0001_(I_x001A_A_x0001__x0001__x0001__x0001_è¬_x0019_A_x0001__x0001__x0001__x0001_è¬_x0019_A_x0001__x0001__x0001__x0001__x0008_û_x0019_A_x0001__x0001__x0001__x0001__x0008_û_x0019_A_x0001__x0001__x0001__x0001__x0008_û_x0019_A_x0001__x0001__x0001__x0001_è¬_x0019_A_x0001__x0001__x0001__x0001_è¬_x0019_A_x0001__x0001__x0001__x0001_è¬_x0019_A_x0001__x0001__x0001__x0001_è¬_x0019_A_x0001__x0001__x0001__x0001_è¬_x0019_A_x0001__x0001__x0001__x0001__x0008_û_x0019_A_x0001__x0001__x0001__x0001_è¬_x0019_A_x0001__x0001__x0001__x0001__x0001__x0002_è¬_x0019_A_x0001__x0001__x0001__x0001_è¬_x0019_A_x0001__x0001__x0001__x0001_è¬_x0019_A_x0001__x0001__x0001__x0001__x0008_û_x0019_A_x0001__x0001__x0001__x0001_è¬_x0019_A_x0001__x0001__x0001__x0001_è¬_x0019_A_x0001__x0001__x0001__x0001_è¬_x0019_A_x0001__x0001_"}},{"$cut":{"chars":113946,"head":"212f98d3ab425528a86e5b437841f6dd_x0001__x0002__x0001__x0001__x0001__x0001_\u0084ë)A_x0001__x0001__x0001__x0001_d\u009d)A_x0001__x0001__x0001__x0001_d\u009d)A_x0001__x0001__x0001__x0001_d\u009d)A_x0001__x0001__x0001__x0001_tÄ)A_x0001__x0001__x0001__x0001_DÌ)A_x0001__x0001__x0001__x0001_\u0084ë)A_x0001__x0001__x0001__x0001_d\u009d)A_x0001__x0001__x0001__x0001_d\u009d)A_x0001__x0001__x0001__x0001__x0014_Ô)A_x0001__x0001__x0001__x0001_d\u009d)A_x0001__x0001__x0001__x0001_d\u009d)A_x0001__x0001__x0001__x0001_d\u009d)A_x0001__x0001__x0001__x0001_tÄ)A_x0001__x0001__x0001__x0001_¤¼)A_x0001__x0001__x0001__x0001_d\u009d)A_x0001__x0001__x0001__x0001_d\u009d)A_x0001__x0001__x0001__x0001_\u0084ë)A_x0001__x0001__x0001__x0001_d\u009d)A_x0001__x0001__x0001__x0001_tÄ)A_x0001__x0001__x0001__x0001_d\u009d)A_x0001__x0001__x0001__x0001_d\u009d)A_x0001__x0001__x0001__x0001_d\u009d)A_x0001__x0001__x0001__x0001_d\u009d)A_x0001__x0001__x0001__x0001_d\u009d)A_x0001__x0001__x0001__x0001_d\u009d)A_x0001__x0001__x0001__x0001_d\u009d)A_x0001__x0001__x0001__x0001__x0014_Ô)A_x0001__x0001__x0001__x0001_tÄ)A_x0001__x0001__x0001__x0001_tÄ)A_x0001__x0001__x0001__x0001_d\u009d)A_x0001__x0001__x0001__x0001__x0001__x0003_tÄ)A_x0001__x0001__x0001__x0001_tÄ)A_x0001__x0001__x0001__x0001_DÌ)A_x0001__x0001__x0001__x0001_d\u009d)A_x0001__x0001__x0001__x0001_tÄ)A_x0001__x0001__x0001__x0001_\u0084ë)A_x0001__x0001__x0001__x0001_d\u009d)A_x0001__x0001__x0001__x0001_tÄ)A_x0001__x0001__x0001__x0001_tÄ)A_x0001__x0001__x0001__x0001_d\u009d)A_x0001__x0001__x0001__x0001_tÄ)A_x0001__x0001__x0001__x0001_\u0084ë)A_x0001__x0001__x0001__x0001_Tó)A_x0001__x0001__x0001__x0001_d\u009d)A_x0001__x0001__x0001__x0001_tÄ)A_x0001__x0001__x0001__x0001_ô_x0002_*A_x0001__x0001__x0001__x0001_d\u009d)A_x0001__x0001__x0001__x0001_d\u009d)A_x0001__x0001__x0001__x0001_d\u009d)A_x0001__x0001__x0001__x0001_d\u009d)A_x0001__x0001__x0001__x0001_tÄ)A_x0001__x0001__x0001__x0001_d\u009d)A_x0001__x0001__x0001__x0001_d\u009d)A_x0001__x0001__x0001__x0001_d\u009d)A_x0001__x0001__x0001__x0001_d\u009d)A_x0001__x0001__x0001__x0001_d\u009d)A_x0001__x0001__x0001__x0001_4\"*A_x0001__x0001__x0001__x0001_d\u009d)A_x0001__x0001__x0001__x0001_d\u009d)A_x0001__x0001__x0001__x0001_d\u009d)A_x0001__x0001__x0001__x0001_äÛ)A_x0001__x0001__x0001__x0001_d\u009d)A_x0001__x0002__x0001__x0001__x0001__x0001_d\u009d)A_x0001__x0001__x0001__x0001_d\u009d)A_x0001__x0001__x0001__x0001_d\u009d)A_x0001__x0001__x0001__x0001__x0014_Ô)A_x0001__x0001__x0001__x0001_d\u009d)A_x0001__x0001__x0001__x0001_\u0084ë)A_x0001__x0001__x0001__x0001_Ä\u0087*A_x0001__x0001__x0001__x0001__x0014_Ô)A_x0001__x0001__x0001__x0001_tÄ)A_x0001__x0001__x0001__x0001_tÄ)A_x0001__x0001__x0001__x0001_d\u009d)A_x0001__x0001__x0001__x0001_d\u009d)A_x0001__x0001__x0001__x0001_tÄ)A_x0001__x0001__x0001__x0001_d\u009d)A_x0001__x0001__x0001__x0001_d\u009d)A_x0001__x0001__x0001__x0001__x0004_­)A_x0001__x0001__x0001__x0001_tÄ)A_x0001__x0001__x0001__x0001_d\u009d)A_x0001__x0001__x0001__x0001_tÄ)A_x0001__x0001__x0001__x0001_d\u009d)A_x0001__x0001__x0001__x0001_d\u009d)A_x0001__x0001__x0001__x0001_d\u009d)A_x0001__x0001__x0001__x0001_d\u009d)A_x0001__x0001__x0001__x0001_d\u009d)A_x0001__x0001__x0001__x0001_tÄ)A_x0001__x0001__x0001__x0001_d\u009d)A_x0001__x0001__x0001__x0001_d\u009d)A_x0001__x0001__x0001__x0001__x0004_­)A_x0001__x0001__x0001__x0001_tÄ)A_x0001__x0001__x0001__x0001_d\u009d)A_x0001__x0001__x0001__x0001_d\u009d)A_x0001__x0001__x0001__x0001__x0001__x0002_d\u009d)A_x0001__x0001__x0001__x0001_d\u009d)A_x0001__x0001__x0001__x0001_d\u009d)A_x0001__x0001__x0001__x0001_tÄ)A_x0001__x0001__x0001__x0001__x0014_Ô)A_x0001__x0001__x0001__x0001_d\u009d)A_x0001__x0001__x0001__x0001_d\u009d)A_x0001__x0001__x0001__x0001_tÄ)A_x0001__x0001__x0001__x0001_tÄ)A_x0001__x0001__x0001__x0001__x0004_­)A_x0001__x0001__x0001__x0001_tÄ)A_x0001__x0001__x0001__x0001_d\u009d)A_x0001__x0001__x0001__x0001_d\u009d)A_x0001__x0001__x0001__x0001_\u0084ë)A_x0001__x0001__x0001__x0001_d\u009d)A_x0001__x0001__x0001__x0001_d\u009d)A_x0001__x0001__x0001__x0001__x0004_­)A_x0001__x0001__x0001__x0001_d\u009d)A_x0001__x0001__x0001__x0001_d\u009d)A_x0001__x0001__x0001__x0001_d\u009d)A_x0001__x0001__x0001__x0001__x0014_Ô)A_x0001__x0001__x0001__x0001_d_x001A_*A_x0001__x0001__x0001__x0001_d\u009d)A_x0001__x0001__x0001__x0001_d\u009d)A_x0001__x0001__x0001__x0001_d\u009d)A_x0001__x0001__x0001__x0001_tÄ)A_x0001__x0001__x0001__x0001_d\u009d)A_x0001__x0001__x0001__x0001_tÄ)A_x0001__x0001__x0001__x0001_d\u009d)A"}},{"$cut":{"chars":56166,"head":"35cc930f6d41d4e957bac138c1b44b18_x0001__x0002_ßO\u008d\u0097_x001E__x0015_Ö@ßO\u008d\u0097_x001E__x0015_Ö@ßO\u008d\u0097_x001E__x0015_Ö@ßO\u008d\u0097_x001E__x0015_Ö@ßO\u008d\u0097_x001E__x0015_Ö@×£p=f\u009aÛ@ßO\u008d\u0097_x001E__x0015_Ö@ßO\u008d\u0097_x001E__x0015_Ö@ßO\u008d\u0097_x001E__x0015_Ö@ßO\u008d\u0097_x001E__x0015_Ö@ßO\u008d\u0097_x001E__x0015_Ö@ßO\u008d\u0097_x001E__x0015_Ö@ßO\u008d\u0097_x001E__x0015_Ö@ßO\u008d\u0097_x001E__x0015_Ö@ßO\u008d\u0097_x001E__x0015_Ö@ßO\u008d\u0097_x001E__x0015_Ö@ßO\u008d\u0097_x001E__x0015_Ö@ßO\u008d\u0097_x001E__x0015_Ö@ßO\u008d\u0097_x001E__x0015_Ö@ßO\u008d\u0097_x001E__x0015_Ö@ßO\u008d\u0097_x001E__x0015_Ö@ßO\u008d\u0097_x001E__x0015_Ö@ßO\u008d\u0097_x001E__x0015_Ö@ßO\u008d\u0097_x001E__x0015_Ö@ßO\u008d\u0097_x001E__x0015_Ö@ßO\u008d\u0097_x001E__x0015_Ö@ßO\u008d\u0097_x001E__x0015_Ö@ßO\u008d\u0097_x001E__x0015_Ö@ßO\u008d\u0097_x001E__x0015_Ö@ßO\u008d\u0097_x001E__x0015_Ö@ßO\u008d\u0097_x001E__x0015_Ö@ßO\u008d\u0097_x0001__x0002__x001E__x0015_Ö@ßO\u008d\u0097_x001E__x0015_Ö@ßO\u008d\u0097_x001E__x0015_Ö@ßO\u008d\u0097_x001E__x0015_Ö@ßO\u008d\u0097_x001E__x0015_Ö@ßO\u008d\u0097_x001E__x0015_Ö@×£p=f\u009aÛ@×£p=f\u009aÛ@ßO\u008d\u0097_x001E__x0015_Ö@×£p=f\u009aÛ@ßO\u008d\u0097_x001E__x0015_Ö@ßO\u008d\u0097_x001E__x0015_Ö@ßO\u008d\u0097_x001E__x0015_Ö@ßO\u008d\u0097_x001E__x0015_Ö@ßO\u008d\u0097_x001E__x0015_Ö@ßO\u008d\u0097_x001E__x0015_Ö@ßO\u008d\u0097_x001E__x0015_Ö@ßO\u008d\u0097_x001E__x0015_Ö@ßO\u008d\u0097_x001E__x0015_Ö@ßO\u008d\u0097_x001E__x0015_Ö@ßO\u008d\u0097_x001E__x0015_Ö@ßO\u008d\u0097_x001E__x0015_Ö@ßO\u008d\u0097_x001E__x0015_Ö@ßO\u008d\u0097_x001E__x0015_Ö@ßO\u008d\u0097_x001E__x0015_Ö@ßO\u008d\u0097_x001E__x0015_Ö@ßO\u008d\u0097_x001E__x0015_Ö@ßO\u008d\u0097_x001E__x0015_Ö@ßO\u008d\u0097_x001E__x0015_Ö@ßO\u008d\u0097_x001E__x0015_Ö@×£p=f\u009aÛ@ßO\u008d\u0097_x001E__x0015_Ö@_x0001__x0002_×£p=f\u009aÛ@ßO\u008d\u0097_x001E__x0015_Ö@ßO\u008d\u0097_x001E__x0015_Ö@ßO\u008d\u0097_x001E__x0015_Ö@×£p=f\u009aÛ@ßO\u008d\u0097_x001E__x0015_Ö@ßO\u008d\u0097_x001E__x0015_Ö@ßO\u008d\u0097_x001E__x0015_Ö@ßO\u008d\u0097_x001E__x0015_Ö@ßO\u008d\u0097_x001E__x0015_Ö@ßO\u008d\u0097_x001E__x0015_Ö@ßO\u008d\u0097_x001E__x0015_Ö@ßO\u008d\u0097_x001E__x0015_Ö@ßO\u008d\u0097_x001E__x0015_Ö@ßO\u008d\u0097_x001E__x0015_Ö@ßO\u008d\u0097_x001E__x0015_Ö@ßO\u008d\u0097_x001E__x0015_Ö@ßO\u008d\u0097_x001E__x0015_Ö@ßO\u008d\u0097_x001E__x0015_Ö@ßO\u008d\u0097_x001E__x0015_Ö@ßO\u008d\u0097_x001E__x0015_Ö@ßO\u008d\u0097_x001E__x0015_Ö@ßO\u008d\u0097_x001E__x0015_Ö@ßO\u008d\u0097_x001E__x0015_Ö@ßO\u008d\u0097_x001E__x0015_Ö@ßO\u008d\u0097_x001E__x0015_Ö@ßO\u008d\u0097_x001E__x0015_Ö@ßO\u008d\u0097_x001E__x0015_Ö@ßO\u008d\u0097_x001E__x0015_Ö@×£p=f\u009aÛ@ßO\u008d\u0097_x001E__x0015_Ö@ßO\u008d\u0097_x0001__x0002__x001E__x0015_Ö@ßO\u008d\u0097_x001E__x0015_Ö@×£p=f\u009aÛ@ßO\u008d\u0097_x001E__x0015_Ö@ßO\u008d\u0097_x001E__x0015_Ö@ßO\u008d\u0097_x001E__x0015_Ö@ßO\u008d\u0097_x001E__x0015_Ö@×£p=f\u009aÛ@ßO\u008d\u0097_x001E__x0015_Ö@ßO\u008d\u0097_x001E__x0015_Ö@ßO\u008d\u0097_x001E__x0015_Ö@ßO\u008d\u0097_x001E__x0015_Ö@ßO\u008d\u0097_x001E__x0015_Ö@ßO\u008d\u0097_x001E__x0015_Ö@ßO\u008d\u0097_x001E__x0015_Ö@ßO\u008d\u0097_x001E__x0015_Ö@ßO\u008d\u0097_x001E__x0015_Ö@ßO\u008d\u0097_x001E__x0015_Ö@ßO\u008d\u0097_x001E__x0015_Ö@ßO\u008d\u0097_x001E__x0015_Ö@ßO\u008d\u0097_x001E__x0015_Ö@ßO\u008d\u0097_x001E__x0015_Ö@ßO\u008d\u0097_x001E__x0015_Ö@ßO\u008d\u0097_x001E__x0015_Ö@ßO\u008d\u0097_x001E__x0015_Ö@ßO\u008d\u0097_x001E__x0015_Ö@×£p=f\u009aÛ@ßO\u008d\u0097_x001E__x0015_Ö@ßO\u008d\u0097_x001E__x0015_Ö@ßO\u008d\u0097_x001E__x0015_Ö@ßO\u008d\u0097_x001E__x0015_Ö@ßO\u008d\u0097_x001E__x0015_Ö@_x0001__x0002_ßO\u008d\u0097_x001E__x0015_Ö@ßO\u008d\u0097_x001E__x0015_Ö@ßO\u008d\u0097_x001E__x0015_Ö@ßO\u008d\u0097_x001E__x0015_Ö@ßO\u008d\u0097_x001E__x0015_Ö@ßO\u008d\u0097_x001E__x0015_Ö@ßO\u008d\u0097_x001E__x0015_Ö@ßO\u008d\u0097_x001E__x0015_Ö@×£p=f\u009aÛ@ßO\u008d\u0097_x001E__x0015_Ö@ßO\u008d\u0097_x001E__x0015_Ö@ßO\u008d\u0097_x001E__x0015_Ö@ßO\u008d\u0097_x001E__x0015_Ö@×£p=f\u009aÛ@ßO\u008d\u0097_x001E__x0015_Ö@ßO\u008d\u0097_x001E__x0015_Ö@ßO\u008d\u0097_x001E__x0015_Ö@ßO\u008d\u0097_x001E__x0015_Ö@ßO\u008d\u0097_x001E__x0015_Ö@ßO\u008d\u0097_x001E__x0015_Ö@ßO\u008d\u0097_x001E__x0015_Ö@ßO\u008d\u0097_x001E__x0015_Ö@ßO\u008d\u0097_x001E__x0015_Ö@ßO\u008d\u0097_x001E__x0015_Ö@ßO\u008d\u0097_x001E__x0015_Ö@ßO\u008d\u0097_x001E__x0015_Ö@ßO\u008d\u0097_x001E__x0015_Ö@ßO\u008d\u0097_x001E__x0015_Ö@ßO\u008d\u0097_x001E__x0015_Ö@ßO\u008d\u0097_x001E__x0015_Ö@ßO\u008d\u0097_x001E__x0015_Ö@ßO\u008d\u0097_x0001__x0002__x001E__x0015_Ö@ßO\u008d\u0097_x001E__x0015_Ö@×£p=f\u009aÛ@ßO\u008d\u0097_x001E__x0015_Ö@ßO\u008d\u0097_x001E__x0015_Ö@ßO\u008d\u0097_x001E__x0015_Ö@ßO\u008d\u0097_x001E__x0015_Ö@ßO\u008d\u0097_x001E__x0015_Ö@ßO\u008d\u0097_x001E__x0015_Ö@ßO\u008d\u0097_x001E__x0015_Ö@ßO\u008d\u0097_x001E__x0015_Ö@ßO\u008d\u0097_x001E__x0015_Ö@×£p=f\u009aÛ@ßO\u008d\u0097_x001E__x0015_Ö@ßO\u008d\u0097_x001E__x0015_Ö@×£p=f\u009aÛ@ßO\u008d\u0097_x001E__x0015_Ö@ßO\u008d\u0097_x001E__x0015_Ö@ßO\u008d\u0097_x001E__x0015_Ö@ßO\u008d\u0097_x001E__x0015_Ö@ßO\u008d\u0097_x001E__x0015_Ö@×£p=f\u009aÛ@ßO\u008d\u0097_x001E__x0015_Ö@ßO\u008d\u0097_x001E__x0015_Ö@×£p=f\u009aÛ@ßO\u008d\u0097_x001E__x0015_Ö@ßO\u008d\u0097_x001E__x0015_Ö@ßO\u008d\u0097_x001E__x0015_Ö@ßO\u008d\u0097_x001E__x0015_Ö@ßO\u008d\u0097_x001E__x0015_Ö@ßO\u008d\u0097_x001E__x0015_Ö@ßO\u008d\u0097_x001E__x0015_Ö@_x0001__x0002_ßO\u008d\u0097_x001E__x0015_Ö@ßO\u008d\u0097_x001E__x0015_Ö@ßO\u008d\u0097_x001E__x0015_Ö@×£p=f\u009aÛ@ßO\u008d\u0097_x001E__x0015_Ö@ßO\u008d\u0097_x001E__x0015_Ö@ßO\u008d\u0097_x001E__x0015_Ö@ßO\u008d\u0097_x001E__x0015_Ö@ßO\u008d\u0097_x001E__x0015_Ö@ßO\u008d\u0097_x001E__x0015_Ö@ßO\u008d\u0097_x001E__x0015_Ö@ßO\u008d\u0097_x001E__x0015_Ö@ßO\u008d\u0097_x001E__x0015_Ö@ßO\u008d\u0097_x001E__x0015_Ö@ßO\u008d\u0097_x001E__x0015_Ö@ßO\u008d\u0097_x001E__x0015_Ö@ßO\u008d\u0097_x001E__x0015_Ö@×£p=f\u009aÛ@ßO\u008d\u0097_x001E__x0015_Ö@ßO\u008d\u0097_x001E__x0015_Ö@ßO\u008d\u0097_x001E__x0015_Ö@ßO\u008d\u0097_x"}},{"$cut":{"chars":39384,"head":"d8741a12e1fea6d3c7ad3f5cc35595a5_x0001__x0002_\\\u008fÂõ8uÖ@\\\u008fÂõ8uÖ@\\\u008fÂõ8uÖ@\\\u008fÂõ8uÖ@\\\u008fÂõ8uÖ@\\\u008fÂõ8uÖ@\\\u008fÂõ8uÖ@\\\u008fÂõ8uÖ@\\\u008fÂõ8uÖ@\\\u008fÂõ8uÖ@\\\u008fÂõ8uÖ@3333\u0087_x0012_Ü@\\\u008fÂõ8uÖ@\\\u008fÂõ8uÖ@\\\u008fÂõ8uÖ@\\\u008fÂõ8uÖ@\\\u008fÂõ8uÖ@\\\u008fÂõ8uÖ@\\\u008fÂõ8uÖ@\\\u008fÂõ8uÖ@3333\u0087_x0012_Ü@\\\u008fÂõ8uÖ@\\\u008fÂõ8uÖ@\\\u008fÂõ8uÖ@\\\u008fÂõ8uÖ@\\\u008fÂõ8uÖ@3333\u0087_x0012_Ü@3333\u0087_x0012_Ü@3333\u0087_x0012_Ü@\\\u008fÂõ8uÖ@\\\u008fÂõ8uÖ@\\\u008fÂõ_x0001__x0002_8uÖ@3333\u0087_x0012_Ü@3333\u0087_x0012_Ü@\\\u008fÂõ8uÖ@3333\u0087_x0012_Ü@\\\u008fÂõ8uÖ@\\\u008fÂõ8uÖ@3333\u0087_x0012_Ü@3333\u0087_x0012_Ü@\\\u008fÂõ8uÖ@\\\u008fÂõ8uÖ@\\\u008fÂõ8uÖ@\\\u008fÂõ8uÖ@\\\u008fÂõ8uÖ@\\\u008fÂõ8uÖ@\\\u008fÂõ8uÖ@\\\u008fÂõ8uÖ@\\\u008fÂõ8uÖ@\\\u008fÂõ8uÖ@3333\u0087_x0012_Ü@3333\u0087_x0012_Ü@\\\u008fÂõ8uÖ@\\\u008fÂõ8uÖ@\\\u008fÂõ8uÖ@3333\u0087_x0012_Ü@\\\u008fÂõ8uÖ@3333\u0087_x0012_Ü@\\\u008fÂõ8uÖ@\\\u008fÂõ8uÖ@\\\u008fÂõ8uÖ@\\\u008fÂõ8uÖ@\\\u008fÂõ8uÖ@_x0001__x0002_3333\u0087_x0012_Ü@\\\u008fÂõ8uÖ@3333\u0087_x0012_Ü@\\\u008fÂõ8uÖ@\\\u008fÂõ8uÖ@\\\u008fÂõ8uÖ@\\\u008fÂõ8uÖ@\\\u008fÂõ8uÖ@\\\u008fÂõ8uÖ@\\\u008fÂõ8uÖ@\\\u008fÂõ8uÖ@\\\u008fÂõ8uÖ@\\\u008fÂõ8uÖ@\\\u008fÂõ8uÖ@3333\u0087_x0012_Ü@\\\u008fÂõ8uÖ@\\\u008fÂõ8uÖ@\\\u008fÂõ8uÖ@\\\u008fÂõ8uÖ@\\\u008fÂõ8uÖ@3333\u0087_x0012_Ü@3333\u0087_x0012_Ü@\\\u008fÂõ8uÖ@\\\u008fÂõ8uÖ@\\\u008fÂõ8uÖ@\\\u008fÂõ8uÖ@3333\u0087_x0012_Ü@\\\u008fÂõ8uÖ@\\\u008fÂõ8uÖ@\\\u008fÂõ8uÖ@\\\u008fÂõ8uÖ@\\\u008fÂõ_x0001__x0002_8uÖ@3333\u0087_x0012_Ü@\\\u008fÂõ8uÖ@\\\u008fÂõ8uÖ@\\\u008fÂõ8uÖ@\\\u008fÂõ8uÖ@3333\u0087_x0012_Ü@\\\u008fÂõ8uÖ@\\\u008fÂõ8uÖ@\\\u008fÂõ8uÖ@3333\u0087_x0012_Ü@\\\u008fÂõ8uÖ@\\\u008fÂõ8uÖ@\\\u008fÂõ8uÖ@\\\u008fÂõ8uÖ@\\\u008fÂõ8uÖ@3333\u0087_x0012_Ü@\\\u008fÂõ8uÖ@\\\u008fÂõ8uÖ@\\\u008fÂõ8uÖ@\\\u008fÂõ8uÖ@\\\u008fÂõ8uÖ@\\\u008fÂõ8uÖ@\\\u008fÂõ8uÖ@\\\u008fÂõ8uÖ@3333\u0087_x0012_Ü@\\\u008fÂõ8uÖ@\\\u008fÂõ8uÖ@\\\u008fÂõ8uÖ@\\\u008fÂõ8uÖ@\\\u008fÂõ8uÖ@3333\u0087_x0012_Ü@_x0001__x0002_3333\u0087_x0012_Ü@\\\u008fÂõ8uÖ@\\\u008fÂõ8uÖ@3333\u0087_x0012_Ü@\\\u008fÂõ8uÖ@\\\u008fÂõ8uÖ@\\\u008fÂõ8uÖ@\\\u008fÂõ8uÖ@3333\u0087_x0012_Ü@\\\u008fÂõ8uÖ@3333\u0087_x0012_Ü@\\\u008fÂõ8uÖ@\\\u008fÂõ8uÖ@3333\u0087_x0012_Ü@3333\u0087_x0012_Ü@\\\u008fÂõ8uÖ@\\\u008fÂõ8uÖ@3333\u0087_x0012_Ü@\\\u008fÂõ8uÖ@\\\u008fÂõ8uÖ@3333\u0087_x0012_Ü@3333\u0087_x0012_Ü@\\\u008fÂõ8uÖ@3333\u0087_x0012_Ü@\\\u008fÂõ8uÖ@3333\u0087_x0012_Ü@\\\u008fÂõ8uÖ@\\\u008fÂõ8uÖ@\\\u008fÂõ8uÖ@\\\u008fÂõ8uÖ@3333\u0087_x0012_Ü@\\\u008fÂõ_x0001__x0002_8uÖ@\\\u008fÂõ8uÖ@\\\u008fÂõ8uÖ@\\\u008fÂõ8uÖ@\\\u008fÂõ8uÖ@\\\u008fÂõ8uÖ@\\\u008fÂõ8uÖ@\\\u008fÂõ8uÖ@\\\u008fÂõ8uÖ@\\\u008fÂõ8uÖ@3333\u0087_x0012_Ü@3333\u0087_x0012_Ü@\\\u008fÂõ8uÖ@\\\u008fÂõ8uÖ@\\\u008fÂõ8uÖ@3333\u0087_x0012_Ü@\\\u008fÂõ8uÖ@\\\u008fÂõ8uÖ@\\\u008fÂõ8uÖ@\\\u008fÂõ8uÖ@\\\u008fÂõ8uÖ@\\\u008fÂõ8uÖ@\\\u008fÂõ8uÖ@\\\u008fÂõ8uÖ@\\\u008fÂõ8uÖ@\\\u008fÂõ8uÖ@3333\u0087_x0012_Ü@\\\u008fÂõ8uÖ@\\\u008fÂõ8uÖ@3333\u0087_x0012_Ü@\\\u008fÂõ8uÖ@\\\u008fÂõ8uÖ@_x0001__x0002_3333\u0087_x0012_Ü@\\\u008fÂõ8uÖ@\\\u008fÂõ8uÖ@\\\u008fÂõ8uÖ@3333\u0087_x0012_Ü@\\\u008fÂõ8uÖ@\\\u008fÂõ8uÖ@3333\u0087_x0012_Ü@\\\u008fÂõ8uÖ@\\\u008fÂõ8uÖ@\\\u008fÂõ8uÖ@\\\u008fÂõ8uÖ@\\\u008fÂõ8uÖ@\\\u008fÂõ8uÖ@\\\u008fÂõ8uÖ@3333\u0087_x0012_Ü@\\\u008fÂõ8uÖ@\\\u008fÂõ8uÖ@\\\u008fÂõ8uÖ@3333\u0087_x0012_Ü@3333\u0087_x0012_Ü@3333\u0087_x0012_Ü@3333\u0087_x0012_Ü@\\\u008fÂõ8uÖ@3333\u0087_x0012_Ü@\\\u008fÂõ8uÖ@\\\u008fÂõ8uÖ@3333\u0087_x0012_Ü@\\\u008fÂõ8uÖ@\\\u008fÂõ8uÖ@\\\u008fÂõ8uÖ@3333_x0001__x0002_\u0087_x0012_Ü@\\\u008fÂõ8uÖ@\\\u008fÂõ8uÖ@\\\u008fÂõ8uÖ@\\\u008fÂõ8uÖ@\\\u008fÂõ8uÖ@\\\u008fÂõ8uÖ@\\\u008fÂõ8uÖ@3333\u0087_x0012_Ü@\\\u008fÂõ8uÖ@\\\u008fÂõ8uÖ@\\\u008fÂõ8uÖ@\\\u008fÂõ8uÖ@\\\u008fÂõ8uÖ@\\\u008fÂõ8uÖ@\\\u008fÂõ8uÖ@\\\u008fÂõ8uÖ@\\\u008fÂõ8uÖ@3333\u0087_x0012_Ü@3333\u0087_x0012_Ü@3333\u0087_x0012_Ü@\\\u008fÂõ8uÖ@\\\u008fÂõ8uÖ@\\\u008fÂõ8uÖ@\\\u008fÂõ8uÖ@3333\u0087_x0012_Ü@\\\u008fÂõ8uÖ@3333\u0087_x0012_Ü@\\\u008fÂõ8uÖ@\\\u008fÂõ8uÖ@\\\u008fÂõ8uÖ@\\\u008fÂõ8uÖ@_x0001__x0002_\\\u008fÂõ8uÖ@\\\u008fÂõ8uÖ@\\\u008fÂõ8uÖ@\\\u008fÂõ8uÖ@\\\u008fÂõ8uÖ@\\\u008fÂõ8uÖ@\\\u008fÂõ8uÖ@\\\u008fÂõ8uÖ@\\\u008fÂõ8uÖ@\\\u008fÂõ8uÖ@\\\u008fÂõ8uÖ@\\\u008fÂõ8uÖ@3333\u0087_x0012_Ü@3333\u0087_x0012_Ü@\\\u008fÂõ8uÖ@3333\u0087_x0012_Ü@\\\u008fÂõ8uÖ@\\\u008fÂõ8uÖ@\\\u008fÂõ8uÖ@\\\u008fÂõ8uÖ@\\\u008fÂõ8uÖ@\\\u008fÂõ8uÖ@\\\u008fÂõ8uÖ@\\\u008fÂõ8uÖ@\\\u008fÂõ8uÖ@\\\u008fÂõ8uÖ@\\\u008fÂõ8uÖ@\\\u008fÂõ8uÖ@\\\u008fÂõ8uÖ@\\\u008fÂõ8uÖ@\\\u008fÂõ8uÖ@3333_x0001__x0002_\u0087_x0012_Ü@\\\u008fÂõ8uÖ@\\\u008fÂõ8uÖ@\\\u008fÂõ8uÖ@\\\u008fÂõ8uÖ@\\\u008fÂõ8uÖ@\\\u008fÂõ8uÖ@\\\u008fÂõ8uÖ@\\\u008fÂõ8uÖ@\\\u008fÂõ8uÖ@\\\u008fÂõ8uÖ@\\\u008fÂõ8uÖ@\\\u008fÂõ8uÖ@3333\u0087_x0012_Ü@\\\u008fÂõ8uÖ@\\\u008fÂõ8uÖ@\\\u008fÂõ8uÖ@\\\u008fÂõ8uÖ@3333\u0087_x0012_Ü@\\\u008fÂõ8uÖ@\\\u008fÂõ8uÖ@\\\u008fÂõ8uÖ@\\\u008fÂõ8uÖ@\\\u008fÂõ8uÖ@\\\u008fÂõ8uÖ@3333\u0087_x0012_Ü@\\\u008fÂõ8uÖ@\\\u008fÂõ8uÖ@\\\u008fÂõ8uÖ@\\\u008fÂõ8uÖ@3333\u0087_x0012_Ü@3333\u0087_x0012_Ü@_x0001__x0002_\\\u008fÂõ8uÖ@3333\u0087_x0012_Ü@\\\u008fÂõ8uÖ@\\\u008fÂõ8uÖ@\\\u008fÂõ8uÖ@3333\u0087_x0012_Ü@3333\u0087_x0012_Ü@\\\u008fÂõ8uÖ@\\\u008fÂõ8uÖ@\\\u008fÂõ8uÖ@\\\u008fÂõ8uÖ@\\\u008fÂõ8uÖ@\\\u008fÂõ8uÖ@\\\u008fÂõ8uÖ@3333\u0087_x0012_Ü@\\\u008fÂõ8uÖ@\\\u008fÂõ8uÖ@\\\u008fÂõ8uÖ@\\\u008fÂõ8uÖ@\\\u008fÂõ8uÖ@\\\u008fÂõ8uÖ@\\\u008fÂõ8uÖ@3333\u0087_x0012_Ü@\\\u008fÂõ8uÖ@3333\u0087_x0012_Ü@\\\u008fÂõ8uÖ@\\\u008fÂõ8uÖ@\\\u008fÂõ8uÖ@\\\u008fÂõ8uÖ@\\\u008fÂõ8uÖ@\\\u008fÂõ8uÖ@\\\u008fÂõ_x0001__x0002_8uÖ@\\\u008fÂõ8uÖ@3333\u0087_x0012_Ü@\\\u008fÂõ8uÖ@\\\u008fÂõ8uÖ@\\\u008fÂõ8uÖ@\\\u008fÂõ8uÖ@\\\u008fÂõ8uÖ@3333\u0087_x0012_Ü@\\\u008fÂõ8uÖ@\\\u008fÂõ8uÖ@\\\u008fÂõ8uÖ@\\\u008fÂõ8uÖ@\\\u008fÂõ8uÖ@\\\u008fÂõ8uÖ@\\\u008fÂõ8uÖ@3333\u0087_x0012_Ü@\\\u008fÂõ8uÖ@\\\u008fÂõ8uÖ@\\\u008fÂõ8uÖ@3333\u0087_x0012_Ü@\\\u008fÂõ8uÖ@3333\u0087_x0012_Ü@\\\u008fÂõ8uÖ@\\\u008fÂõ8uÖ@\\\u008fÂõ8uÖ@3333\u0087_x0012_Ü@3333\u0087_x0012_Ü@\\\u008fÂõ8uÖ@3333\u0087_x0012_Ü@\\\u008fÂõ8uÖ@\\\u008fÂõ8uÖ@_x0001__x0002_3333\u0087_x0012_Ü@\\\u008fÂõ8uÖ@\\\u008fÂõ8uÖ@3333\u0087_x0012_Ü@\\\u008fÂõ8uÖ@\\\u008fÂõ8uÖ@\\\u008fÂõ8uÖ@\\\u008fÂõ8uÖ@\\\u008fÂõ8uÖ@\\\u008fÂõ8uÖ@\\\u008fÂõ8uÖ@3333\u0087_x0012_Ü@\\\u008fÂõ8uÖ@\\\u008fÂõ8uÖ@\\\u008fÂõ8uÖ@3333\u0087_x0012_Ü@\\\u008fÂõ8uÖ@\\\u008fÂõ8uÖ@\\\u008fÂõ8uÖ@\\\u008fÂõ8uÖ@\\\u008fÂõ8uÖ@\\\u008fÂõ8uÖ@3333\u0087_x0012_Ü@\\\u008fÂõ8uÖ@\\\u008fÂõ8uÖ@3333\u0087_x0012_Ü@3333\u0087_x0012_Ü@3333\u0087_x0012_Ü@\\\u008fÂõ8uÖ@\\\u008fÂõ8uÖ@\\\u008fÂõ8uÖ@\\\u008fÂõ_x0001__x0002_8uÖ@\\\u008fÂõ8uÖ@\\\u008fÂõ8uÖ@3333\u0087_x0012_Ü@\\\u008fÂõ8uÖ@3333"}},{"$cut":{"chars":75786,"head":"322f9ffa9aeb55d3b6a42ab974d15d0f_x0001__x0002_\u009eï§Æ+Eæ@\u009eï§Æ+Eæ@\u0085ëQ¸vÖë@\u009eï§Æ+Eæ@\u009eï§Æ+Eæ@\u009eï§Æ+Eæ@\u009eï§Æ+Eæ@\u009eï§Æ+Eæ@\u0085ëQ¸vÖë@\u009eï§Æ+Eæ@\u0089A`åÒ_x0013_é@\u009eï§Æ+Eæ@\u009eï§Æ+Eæ@\u009eï§Æ+Eæ@\u009eï§Æ+Eæ@\u009eï§Æ+Eæ@\u009eï§Æ+Eæ@\u009eï§Æ+Eæ@\u0089A`åÒ_x0013_é@\u009eï§Æ+Eæ@\u009eï§Æ+Eæ@\u009eï§Æ+Eæ@\u009eï§Æ+Eæ@\u009eï§Æ+Eæ@\u0085ëQ¸vÖë@\u009eï§Æ+Eæ@\u009eï§Æ+Eæ@\u009eï§Æ+Eæ@\u0085ëQ¸vÖë@\u009eï§Æ+Eæ@\u0089A`åÒ_x0013_é@\u009eï§Æ_x0001__x0002_+Eæ@\u009eï§Æ+Eæ@\u009eï§Æ+Eæ@\u009eï§Æ+Eæ@\u009eï§Æ+Eæ@\u009eï§Æ+Eæ@\u009eï§Æ+Eæ@\u009eï§Æ+Eæ@\u009eï§Æ+Eæ@\u009eï§Æ+Eæ@\u009eï§Æ+Eæ@\u009eï§Æ+Eæ@\u009eï§Æ+Eæ@\u009eï§Æ+Eæ@\u009eï§Æ+Eæ@\u009eï§Æ+Eæ@\u009eï§Æ+Eæ@\u009eï§Æ+Eæ@\u009eï§Æ+Eæ@\u0089A`åÒ_x0013_é@\u009eï§Æ+Eæ@\u009eï§Æ+Eæ@\u009eï§Æ+Eæ@\u009eï§Æ+Eæ@\u009eï§Æ+Eæ@\u009eï§Æ+Eæ@\u009eï§Æ+Eæ@\u009eï§Æ+Eæ@\u009eï§Æ+Eæ@\u0089A`åÒ_x0013_é@\u009eï§Æ+Eæ@\u009eï§Æ+Eæ@_x0001__x0002_\u0089A`åÒ_x0013_é@\u0085ëQ¸vÖë@\u009eï§Æ+Eæ@\u009eï§Æ+Eæ@\u0085ëQ¸vÖë@\u009eï§Æ+Eæ@\u009eï§Æ+Eæ@\u009eï§Æ+Eæ@\u009eï§Æ+Eæ@\u009eï§Æ+Eæ@\u009eï§Æ+Eæ@\u009eï§Æ+Eæ@\u0085ëQ¸vÖë@\u0089A`åÒ_x0013_é@\u009eï§Æ+Eæ@\u009eï§Æ+Eæ@\u009eï§Æ+Eæ@\u009eï§Æ+Eæ@\u009eï§Æ+Eæ@\u009eï§Æ+Eæ@\u009eï§Æ+Eæ@\u009eï§Æ+Eæ@\u009eï§Æ+Eæ@\u0085ëQ¸vÖë@\u009eï§Æ+Eæ@\u009eï§Æ+Eæ@\u0085ëQ¸vÖë@\u009eï§Æ+Eæ@\u009eï§Æ+Eæ@\u009eï§Æ+Eæ@\u0089A`åÒ_x0013_é@\u009eï§Æ_x0001__x0002_+Eæ@\u009eï§Æ+Eæ@\u009eï§Æ+Eæ@\u009eï§Æ+Eæ@\u009eï§Æ+Eæ@\u0089A`åÒ_x0013_é@\u0089A`åÒ_x0013_é@\u009eï§Æ+Eæ@\u009eï§Æ+Eæ@\u0085ëQ¸vÖë@\u009eï§Æ+Eæ@\u009eï§Æ+Eæ@\u0089A`åÒ_x0013_é@\u009eï§Æ+Eæ@\u009eï§Æ+Eæ@\u009eï§Æ+Eæ@\u009eï§Æ+Eæ@\u0085ëQ¸vÖë@\u0085ëQ¸vÖë@\u009eï§Æ+Eæ@\u009eï§Æ+Eæ@\u009eï§Æ+Eæ@\u009eï§Æ+Eæ@\u009eï§Æ+Eæ@\u009eï§Æ+Eæ@\u009eï§Æ+Eæ@\u009eï§Æ+Eæ@\u009eï§Æ+Eæ@\u009eï§Æ+Eæ@\u009eï§Æ+Eæ@\u009eï§Æ+Eæ@\u009eï§Æ+Eæ@_x0001__x0002_\u0089A`åÒ_x0013_é@\u009eï§Æ+Eæ@\u0089A`åÒ_x0013_é@\u009eï§Æ+Eæ@\u009eï§Æ+Eæ@\u0085ëQ¸vÖë@\u009eï§Æ+Eæ@\u0085ëQ¸vÖë@\u009eï§Æ+Eæ@\u009eï§Æ+Eæ@\u009eï§Æ+Eæ@\u009eï§Æ+Eæ@\u009eï§Æ+Eæ@\u0089A`åÒ_x0013_é@\u009eï§Æ+Eæ@\u0089A`åÒ_x0013_é@\u009eï§Æ+Eæ@\u009eï§Æ+Eæ@\u009eï§Æ+Eæ@\u009eï§Æ+Eæ@\u009eï§Æ+Eæ@\u0089A`åÒ_x0013_é@\u009eï§Æ+Eæ@\u009eï§Æ+Eæ@\u009eï§Æ+Eæ@\u009eï§Æ+Eæ@\u009eï§Æ+Eæ@\u009eï§Æ+Eæ@\u0085ëQ¸vÖë@\u009eï§Æ+Eæ@\u009eï§Æ+Eæ@\u009eï§Æ_x0001__x0002_+Eæ@\u009eï§Æ+Eæ@\u009eï§Æ+Eæ@\u009eï§Æ+Eæ@\u009eï§Æ+Eæ@\u009eï§Æ+Eæ@\u009eï§Æ+Eæ@\u009eï§Æ+Eæ@\u009eï§Æ+Eæ@\u009eï§Æ+Eæ@\u009eï§Æ+Eæ@\u0085ëQ¸vÖë@\u0085ëQ¸vÖë@\u009eï§Æ+Eæ@\u0089A`åÒ_x0013_é@\u009eï§Æ+Eæ@\u0085ëQ¸vÖë@\u0085ëQ¸vÖë@\u009eï§Æ+Eæ@\u0089A`åÒ_x0013_é@\u0085ëQ¸vÖë@\u0089A`åÒ_x0013_é@\u009eï§Æ+Eæ@\u009eï§Æ+Eæ@\u009eï§Æ+Eæ@\u0089A`åÒ_x0013_é@\u009eï§Æ+Eæ@\u009eï§Æ+Eæ@\u009eï§Æ+Eæ@\u009eï§Æ+Eæ@\u009eï§Æ+Eæ@\u009eï§Æ+Eæ@_x0001__x0002_\u009eï§Æ+Eæ@\u0089A`åÒ_x0013_é@\u009eï§Æ+Eæ@\u0089A`åÒ_x0013_é@\u009eï§Æ+Eæ@\u009eï§Æ+Eæ@\u0089A`åÒ_x0013_é@\u009eï§Æ+Eæ@\u009eï§Æ+Eæ@\u0089A`åÒ_x0013_é@\u009eï§Æ+Eæ@\u009eï§Æ+Eæ@_x0012_,n\u008céU A_x0002_ç©­_x0007_7 Az_x0018_rÌ_x0014_| AÉ_x0014_\u007fÏ£b A÷\u008aèg/d AU$:Ä\u0085` AÐËÓö5µ Aô_x001E_¡Kìk A\u0088Ä_x0006_ÐH\u0086 A(Í%ÓýM AN,_x0018_>Êq AªN_x000D__x0008__x0007_\u008a A6@w\u0096A\u0091 A Y_x0005__x001E_{_ A\u00924_x0002_óp5 A>W\u00933åw AHp4Cø\u0083 AÉ­üF,\u0083 Aút®\u0088_x001B_r AØ_x001C_QÊ_x0003__x0005_Öµ A´¸K_x0010__x001C_l A`ïï¾c* Afè?¾\u007f\u0083 Að_x0003__x0018_³z\u009d A}ôêB\u0085\\ A¬le_x0012_#` A:\u0089ÈLvc AÎ$¥5²y A®ÚE|Ev AT\u008cZì~§ AÙE 59m Aº+\u0082t¯X Aù\u0097|ü$\u0089 AØnëa_x0001_\u008a AB\u008fn_x0011_Is A÷Ð]\u0099_x0004_w AÈ`i_æa A\u0097¨Ñ\u0086ûc A>=0îä  A_x0005_õf\"Éc A\u0088_x0005__x0015_\u0095wk A´\u0084_x0002__x0010__x0007_q Azú\u008b\"õª A(ÚNöç\u007f A©½eüAe AªB¶ÕËz A31÷IQ| AÊÊ\u0087uÆ\u008a AØéÁbüY Aa6ßßKN Ai)×©¢? A_x0002__x0003_rØ_x001B_³Ü\\ A µÿ/pu AcE\u009f£î\u0094 A\"W¨vf\u008f A¸ÓúHè\u0088 AÚè\u008b©zo A\u0092Ç1_x0001_\u0089l Az_x000C_A·7\u0086 AV&=QWw A³\u007f]É»b Ax\u008dú1AM AIS3¶·± AÐøÜå¿c Al\u0096j{\u0083z A®._x000E_PÏ6 A_x001C_nfc8B Aò· UÆm A_x0002_¾\u0097_x001D_¦b AT_x0006__x001C_Hãa AðëÐ¥8y A «QO@\u0083 AX_x0010_)_x0010__x0010_~ A~_x001C_EÝnp A\u008a!_\u0089Ó\u008f A\u0090´m\u009ce\u0087 AÿÙ\u0091à_x000D_\u0086 A(/F_x001F_º\u009e Aæ\u008f_x001F__x001C_ñ¦ AÖyó¼\u0081w AX_x0015_)vNu A+:\u009cc,` Alí_x0008_^_x0001__x0002_æ< AnÛÝÎN_ AagO5ôc A\u0094_x000C_(h_x001F_j A&\u0089,ÙÝ} AìÒqðïY A\u008a$\u0083]ð\\ AþÐ>ÿ¼\u0091 AÀY WM\u0093 AT\u008aR\u0099ß} A,ù\u0082À\u0082\u0086 Að+à Ô± AÓN\u008dùE© A_x0002_mF_x0013_\u009a\u0097 AÂy«x+i A§þû]%\u008b Aä¶\u009dk+T AÃ H\u0086 \u0081 A¤uP._x0008_f Añº_\u0094ªp Aw\u009a5ú4\u0082 A.¢_x0016_øÓy A_x0011_\u0094±\u009a\u0085s A[Øv½òu A_x0006_ø\"Mß\u0082 A\u0090j÷Ï«a A\\r\u0080þNm AP+t\u0094_= ANÿ¡éÏW A?BÆÃ\"\u009d An4_x0008_á&\u0096 A²,4µc¦ A_x0001__x0003_ùº3ß\u0087\u0083 A\u009a_x0004_Æ×´s A_x001E_\u009c_x0007__x0014_J\u0096 A(þíLI\u0083 A¸Ä\u0090\u0083_x0018_c A\u0080_x0019_ñ+Än A\u008e\u009fs_x000C__x001F_´ AoXÇË¥\u008b A_x0001__x001E_Aª_x001B_\u0090 Ag_x0011_½àY\u0099 A©=ízZ\u0088 A}oO}nº A\u0092;_x001F__x001A_øx A)gsî\u009fq Ad\u009e_x0017_É_x0010_H Aª=²c\u008b\u0095 AÐ_x000B_~Çòp A £\u009eöôR A×I\u0086+_x001B_K A_x0008_ ¦@§~ A¾¨\\81X AË\u0098öl÷r A_x0018_4®Ü_x001C_n A_x000F_;g=_x0012_h A¤\u0093Ñ³ð\u007f A¤½u0ÚU AÜ_x0002_&\u0099_x0015_O AðËLG\u0085¤ A[\u0085Ë<%\u0081 A×Æ\u0092ÍÅ] A{p\u0081_x0007_¹\u0090 Aª^@Ó_x0001__x0003_\u008fe Adc\u008eoÕ® Az§#\u0093do Aq©ÁG2o A%íaZ·G A,¤[Î_x0015_\u0097 AÈHf÷_x000E_\u008f A·[Ø-¶\u0080 A­eótñ\u0097 A,.\u009a0_x0006_È A:¡>CµM A\u0084sl¸éA A!¥\u009bR¥_ A6L¸_x000B_Âc A¬Ûº\u0096¶S A5\u008bHo²\u0080 Aè\u0092_x0003_ú_x0011_U Aô\u009b\\ÎRj AËih³¥z AÄGÏB\u0099\u009c A_x0018_\"_x0017_ì½U A|ÄlB_x0014_  Aie_x0015_\u0088¤U At_x0015_ß_x001F_¡» A_x0014_{7\u008cìs A´ìn!Î] A_x0001_¿_x0007_\u0094ÆU Amó^¿?k A´Pé_x001B_´\u0088 A*Ð_x0007__x0008_¾M As/²_x001A__x0002_b A_x000E_±[e·b A_x0002__x0004_f¼\u0090n¾\u008b AÓw/6û\u0092 A²FHj\tI A4uÿ'K\u0087 A¤¸ª\u0095_x0004_\u0092 AFÈfµMb A_x0015_\u007f_x0004_ó\u0085p AMÇ:_"}},{"$cut":{"chars":223806,"head":"bce6cf73aece750ef43408993c408f34_x0001__x0002__x0001__x0001__x0001__x0001__x0001__x0001__x0001__x0001__x0001__x0001__x0001__x0001__x0001__x0001__x0001__x0001__x0001__x0001__x0001__x0001__x0001__x0001__x0001__x0001__x0001__x0001__x0001__x0001__x0001__x0001__x0001__x0001__x0001__x0001__x0001__x0001__x0001__x0001__x0001__x0001__x0001__x0001__x0001__x0001__x0001__x0001__x0001__x0001__x0001__x0001__x0001__x0001__x0001__x0001__x0001__x0001__x0001__x0001__x0001__x0001__x0001__x0001__x0001__x0001__x0001__x0001__x0001__x0001__x0001__x0001__x0001__x0001__x0001__x0001__x0001__x0001__x0001__x0001__x0001__x0001__x0001__x0001__x0001__x0001__x0001__x0001__x0001__x0001__x0001__x0001__x0001__x0001__x0001__x0001__x0001__x0001__x0001__x0001__x0001__x0001__x0001__x0001__x0001__x0001__x0001__x0001__x0001__x0001__x0001__x0001__x0001__x0001__x0001__x0001__x0001__x0001__x0001__x0001__x0001__x0001__x0001__x0001__x0001__x0001__x0001__x0001__x0001__x0001__x0001__x0001__x0001__x0001__x0001__x0001__x0001__x0001__x0001__x0001__x0001__x0001__x0001__x0001__x0001__x0001__x0001__x0001__x0001__x0001__x0001__x0001__x0001__x0001__x0001__x0001__x0001__x0001__x0001__x0001__x0001__x0001__x0001__x0001__x0001__x0001__x0001__x0001__x0001__x0001__x0001__x0001__x0001__x0001__x0001__x0001__x0001__x0001__x0001__x0001__x0001__x0001__x0001__x0001__x0001__x0001__x0001__x0001__x0001__x0001__x0001__x0001__x0001__x0001__x0001__x0001__x0001__x0001__x0001__x0001__x0001__x0001__x0001__x0001__x0001__x0001__x0001_@\u008f@_x0001__x0001__x0001__x0001__x0001__x0001__x0001__x0001__x0001__x0001__x0001__x0001__x0001__x0001__x0001__x0001__x0001__x0001__x0001__x0001__x0001__x0001__x0001__x0001__x0001__x0001__x0001__x0001__x0001__x0001__x0001__x0001__x0001__x0001__x0001__x0001__x0001__x0001__x0001__x0001__x0001__x0001__x0001__x0001__x0001__x0002__x0001__x0001__x0001__x0001__x0001__x0001__x0001__x0001__x0001__x0001__x0001__x0001__x0001__x0001__x0001__x0001__x0001__x0001__x0001__x0001__x0001__x0001__x0001__x0001__x0001__x0001__x0001__x0001__x0001__x0001__x0001__x0001__x0001__x0001__x0001__x0001__x0001__x0001__x0001__x0001__x0001__x0001__x0001__x0001__x0001__x0001__x0001__x0001__x0001__x0001__x0001__x0001__x0001__x0001__x0001__x0001__x0001__x0001__x0001__x0001__x0001__x0001__x0001__x0001__x0001__x0001__x0001__x0001__x0001__x0001__x0001__x0001__x0001__x0001__x0001__x0001__x0001__x0001__x0001__x0001__x0001__x0001__x0001__x0001__x0001__x0001__x0001__x0001__x0001__x0001__x0001__x0001__x0001__x0001__x0001__x0001__x0001__x0001__x0001__x0001__x0001__x0001__x0001__x0001__x0001__x0001__x0001__x0001__x0001__x0001__x0001__x0001__x0001__x0001__x0001__x0001__x0001__x0001__x0001__x0001__x0001__x0001__x0001__x0001__x0001__x0001__x0001__x0001__x0001__x0001__x0001__x0001__x0001__x0001__x0001__x0001__x0001__x0001__x0001__x0001__x0001__x0001__x0001__x0001__x0001__x0001__x0001__x0001__x0001__x0001__x0001__x0001__x0001__x0001__x0001__x0001__x0001__x0001__x0001__x0001__x0001__x0001__x0001__x0001__x0001__x0001__x0001__x0001__x0001__x0001__x0001__x0001__x0001__x0001__x0001__x0001__x0001__x0001__x0001__x0001__x0001__x0001__x0001__x0001__x0001__x0001__x0001__x0001__x0001__x0001__x0001__x0001__x0001__x0001__x0001__x0001__x0001__x0001__x0001__x0001__x0001__x0001__x0001__x0001__x0001__x0001__x0001__x0001__x0001__x0001__x0001__x0001__x0001__x0001__x0001__x0001__x0001__x0001__x0001__x0001__x0001__x0001__x0001__x0001__x0001__x0001__x0001__x0001__x0001__x0001__x0001__x0001__x0001__x0001__x0001__x0001__x0001__x0001__x0001__x0001__x0001__x0001__x0001__x0001__x0001__x0001__x0001__x0001__x0001__x0001__x0001__x0001__x0001__x0002__x0001__x0001__x0001__x0001__x0001__x0001__x0001__x0001__x0001__x0001__x0001__x0001__x0001__x0001__x0001__x0001__x0001__x0001__x0001__x0001__x0001__x0001__x0001__x0001__x0001__x0001__x0001__x0001__x0001__x0001__x0001__x0001__x0001__x0001__x0001__x0001__x0001__x0001__x0001__x0001__x0001__x0001__x0001__x0001__x0001__x0001__x0001__x0001__x0001__x0001__x0001__x0001__x0001__x0001__x0001__x0001__x0001__x0001__x0001__x0001__x0001__x0001__x0001__x0001__x0001__x0001__x0001__x0001__x0001__x0001__x0001__x0001__x0001__"}},{"$cut":{"chars":130140,"head":"910e355fa3791ade7ab6681639fd8456_x0001__x0002__x0001__x0001__x0001__x0001__x0001__x0001__x0001__x0001__x0001__x0001__x0001__x0001__x0001__x0001__x0001__x0001__x0001__x0001__x0001__x0001__x0001__x0001__x0001__x0001__x0001__x0001__x0001__x0001__x0001__x0001__x0001__x0001__x0001__x0001__x0001__x0001__x0001_@\u008f@_x0001__x0001__x0001__x0001__x0001__x0001__x0001__x0001__x0001__x0001__x0001__x0001__x0001__x0001__x0001__x0001__x0001__x0001__x0001__x0001__x0001__x0001__x0001__x0001__x0001__x0001__x0001__x0001__x0001__x0001__x0001__x0001__x0001__x0001__x0001__x0001__x0001__x0001__x0001__x0001__x0001__x0001__x0001__x0001__x0001__x0001__x0001__x0001__x0001__x0001__x0001__x0001__x0001__x0001__x0001__x0001__x0001__x0001__x0001__x0001__x0001__x0001__x0001__x0001__x0001__x0001__x0001__x0001__x0001__x0001__x0001__x0001__x0001__x0001__x0001__x0001__x0001__x0001__x0001__x0001__x0001__x0001__x0001__x0001__x0001__x0001__x0001__x0001__x0001__x0001__x0001__x0001__x0001__x0001__x0001__x0001__x0001__x0001__x0001__x0001__x0001__x0001__x0001__x0001__x0001__x0001__x0001__x0001__x0001__x0001__x0001__x0001__x0001__x0001__x0001__x0001__x0001__x0001__x0001__x0001__x0001__x0001__x0001__x0001__x0001__x0001__x0001__x0001__x0001__x0001__x0001__x0001__x0001__x0001__x0001__x0001__x0001__x0001__x0001__x0001__x0001__x0001__x0001__x0001__x0001__x0001__x0001__x0001__x0001__x0001__x0001__x0001__x0001__x0001__x0001__x0001__x0001__x0001__x0001__x0001__x0001__x0001__x0001__x0001__x0001__x0001__x0001__x0001__x0001__x0001__x0001__x0001__x0001__x0001__x0001__x0001__x0001__x0001__x0001__x0001__x0001__x0001__x0001__x0001__x0001__x0001__x0001__x0001__x0001__x0001__x0001__x0001__x0001__x0001__x0001__x0001__x0001__x0001__x0001__x0001__x0001__x0001__x0001__x0001__x0001__x0001__x0001__x0001__x0001__x0001__x0001__x0001__x0001__x0002__x0001__x0001__x0001__x0001__x0001__x0001__x0001__x0001__x0001__x0001__x0001__x0001__x0001__x0001__x0001__x0001__x0001__x0001__x0001__x0001__x0001__x0001__x0001__x0001__x0001__x0001__x0001__x0001__x0001__x0001__x0001__x0001__x0001__x0001__x0001__x0001__x0001__x0001__x0001__x0001__x0001__x0001__x0001__x0001__x0001__x0001__x0001__x0001__x0001__x0001__x0001__x0001__x0001__x0001__x0001__x0001__x0001__x0001__x0001__x0001__x0001__x0001__x0001__x0001__x0001__x0001__x0001__x0001__x0001__x0001__x0001__x0001__x0001__x0001__x0001__x0001__x0001__x0001__x0001__x0001__x0001__x0001__x0001__x0001__x0001__x0001__x0001__x0001__x0001__x0001__x0001__x0001__x0001__x0001__x0001__x0001__x0001__x0001__x0001__x0001__x0001__x0001__x0001__x0001__x0001__x0001__x0001__x0001__x0001__x0001__x0001__x0001__x0001__x0001__x0001__x0001__x0001__x0001__x0001__x0001__x0001__x0001__x0001__x0001__x0001__x0001__x0001__x0001__x0001__x0001__x0001__x0001__x0001__x0001__x0001__x0001__x0001__x0001__x0001__x0001__x0001__x0001__x0001__x0001__x0001__x0001__x0001__x0001__x0001__x0001__x0001__x0001__x0001__x0001__x0001__x0001__x0001__x0001__x0001__x0001__x0001_@\u008f@_x0001__x0001__x0001__x0001__x0001__x0001__x0001__x0001__x0001__x0001__x0001__x0001__x0001__x0001__x0001__x0001__x0001__x0001__x0001__x0001__x0001_@\u008f@_x0001__x0001__x0001__x0001__x0001__x0001__x0001__x0001__x0001__x0001__x0001__x0001__x0001__x0001__x0001__x0001__x0001__x0001__x0001__x0001__x0001__x0001__x0001__x0001__x0001__x0001__x0001__x0001__x0001__x0001__x0001__x0001__x0001__x0001__x0001__x0001__x0001__x0001__x0001__x0001__x0001__x0001__x0001__x0001__x0001__x0001__x0001__x0001__x0001__x0001__x0001__x0001__x0001__x0001__x0001__x0001__x0001__x0001__x0001__x0001__x0001__x0001__x0001__x0001__x0001__x0002__x0001__x0001__x0001__x0001__x0001__x0001__x0001__x0001__x0001__x0001__x0001__x0001__x0001__x0001__x0001__x0001__x0001__x0001__x0001__x0001__x0001__x0001__x0001__x0001__x0001__x0001__x0001__x0001__x0001__x0001__x0001__x0001__x0001__x0001__x0001__x0001__x0001__x0001__x0001__x0001__x0001__x0001__x0001__x0001__x0001__x0001__x0001__x0001__x0001__x0001__x0001__x0001__x0001__x0001__x0001__x0001__x0001__x0001__x0001__x0001__x0001__x0001__x0001__x0001__x0001__x0001__x0001__x0001__x0001__x0001__x0001__x0001__x0001__x0001__x0001__x0001__x0001__x0001__x"}},{"$cut":{"chars":145866,"head":"d3e02caccd0e3f73f747650318bf9a70_x0003__x0006_êâtW\"\tï@6MÈµéCï@_x0013_gÜø\u0086Tî@6N$ï_x0015_£î@;¼¾ôO}ï@ð_Ç\u0093 åî@2ÇR¸l>ï@_x001C_!Ô\\´lï@\\\u009f\u0087[\u0094eï@>_x000E_YÚ\u008cYî@¹_x0002__x0010_sö¼î@&,BL{2ï@_x0001_ÿÒlæÈï@ãs\u00815ô[ï@\u0094 <_x0003_\u007fìî@*Ûz_x0005_ßEï@Ö\u0090Õ8eôï@_x0013_>èz$\u007fï@/÷ª,5×î@>v@õ_x0011_çî@(Ø3ã\u009a»î@¶Õ_x0004_}81ï@65_x001A_ÃÆÖî@\u0094_x0011__x0001_ciºî@\u0090\u00868_Õ\u0096î@$Ã±â\u009bøî@=Ì½¥µ_x000C_ï@¼È_x000D_¾jaï@\u0087ª»}4½ï@e¯\u0092$\u008eüî@ÒH\u0083_x0004__x0004__x000F_ï@4\u0099ãÞ_x0004__x0007_\u009c\u0099î@¨w_º\u009cæî@ºw¬2O}ï@\u0087í\u009b¬¦zî@\u0096$b3hñî@ìá_x001F__x001D_ÂÎî@ZÍR_x001E_¾Jî@ö¡§R¬bï@h\u0098¿vÉeï@NV¾>_x000E__x000E_î@(»_x0005_?\u009bÏî@è\u008cöc\u0087\u008eï@,Æ\u0085¡r®ï@T_x0013_S¸G×ï@F 5¤\"_x000B_ï@\u0088rá_x0008_«]ï@V£µÆì¦î@:_x0001_\"{+oî@Ìa¾¬ûaî@=¾nÓ\u00873ï@Al\u009eÎÕ_x0003_ï@ò\u0099z{åjï@ev¬\u0086k_x0006_ï@Ï¶³#Z¼î@È_x0016_\u0097\u0081ôªï@¾_x001B_1NÆFî@\u009e³_x000B_óF\u008fî@øá×_x001F__x0019_Dï@\u009fvÏÆXôî@ì\u0095óAçÔî@ô²\u009fP+-ï@þá_x0002_\u0093ãøî@_x0002__x0004_\u0080Ø\u0089ðk_x0007_ï@éJó×Ëöî@Ö_áãÎ¥ï@&_x000B_g~cøî@¶k\u009d\t±Úî@<9\u0085Ë\u009dñî@µB_x0017_X´Çî@_x000E_|_x001B_¬êvï@HYô¹A\u0085ï@êór>ööï@h½d.r\u0082ï@l_x000D__x001D__x0012__x001D_`ï@\u008e_x0001_ñ\u0080:_x0003_ï@_x0008_Þ\u0090\"°{ï@óZ¶\u0084}èî@\u0096_x001C__x000D_\u0098\u0097ÿî@òÈÐ\u0096aáî@´ÒgY'Zï@_x000F_\u0097bð>_x0010_ï@>\u0088õPk\u0096î@Ú_x001A_Xkõ{ï@,\t1\u008eDIï@_x0015_\u008d¾²+\u0090î@dÑ-F²\u0097ï@Ñô¸\u0095_x0015_ùî@`±+èòÁî@N=_x000D_<3¤î@ãLÃ_x0004_-æî@²_x001A_²WsÌï@Ö°)7çcî@8\u0088?\u0083Ã_x0017_ï@5±æÔ_x0002__x0005_\u008cgï@f>mª\u0094×î@}G_x0008_\u0092ò£î@79_x0012_0\u008b÷î@`\u0083L\u008fÖxï@8yßD!Jï@vi~\u0087>Zï@0_x0002_«i_x001E__x0008_ï@>S\u0080\u008bâOï@Þ_x000F_Mz®!ï@ì´ùÙí\u007fî@2_x000C_\u0090L0\u009cï@À¤zÂ_x0007_,ï@Fµ\\\u008f_x0014_\u0083ï@â3`Ö´_x0016_ð@!_x001E_yáèQï@H¶\u009cýÞôî@\u009f_x0014_\u0083fÑwî@ó\u0095BP\"Èî@&ã%XáÛî@é_x0001__x0003_\u00999®î@Ot§\u0083«_x0011_ï@¼újÄL\u0088î@A`ñ$EZï@YH\u0096FNÔî@\u008ezÏÎà\u0086ï@}_x001F_À\u0089Ä²î@c_x0017_5T\u009fRî@L\u009cJã_x0011_Bï@«àÖf\u008a`ï@U\u0093\u0087É7_x0005_ï@+Ê_x0004_ÛYKî@_x0001__x0005__Ú!I\u0095Iî@øiÕ§KWï@¢E\u0085\u0098,_x0002_ï@¶ÔV¥Y®î@Ö\u0096­<&ôî@f1\u0094=i_x0019_ï@\u0099?¹}ù'ï@ \u009dm_x0014_ªçî@\u0094_x001C_Lþ¸Úî@®Ø_x000F_svLï@\u0095;®70\u009fî@¢Ëá{ÜBï@ª¶{Ú¢_x0003_ð@2;§p\u0086\u009dï@ê\u008d\u0098zËuï@ê_x000C_.UIÒï@bÔ\u009c0í×î@ÆÄ\"é_x0016_·î@Àª\u0090*dÔî@_x001C_ùæEÞåî@ð(_x001E__x0014_ZÕî@8èYp_x0019_\u0092ï@_x001E_Tv_v\u008dï@hO=ÿ0Áî@è&<_x0019_ø_x0007_ð@OÜ\u0097ýå_x000F_ï@ÿcE\u0090 \u0096î@1'g\u0086_x0011_\u009dî@_x0005_.N<3uï@Ô`n_x001C_S_x0004_ï@\u008b±x\u009a\u009f_x0001_î@Ô­ï\\_x0001_\tªÈî@ü°\u008c¤ø>ï@ØpL@$]ï@æ)ïz³Ïí@_x0008_@Nz]Fï@J©Í×&_x000B_ï@\u0088_x0007__x0003_û-Âî@¾ù_x0019_\u0097Õ_x0002_ï@^\u009c&.i_x001F_ï@ÎÐíï\u0094hï@gö\u009fÒ¬¦î@P;_x001C_,ì¡î@L_x0006__x0010_QÌõî@)IÜ\u0098¸öî@<µ_x0005_¼]¥î@!ÉL:áÊî@_x0008_æ\u009fH4ñî@\u0080,(9tàî@þÿ8Ñ\u0080Þî@zËFaú_x0014_ï@üD_x0006_lÕ¼ï@Â'ù*_x001D_¾ï@+ÃÑy 5ï@c_x0019_÷\u008caÍî@J'P«_x000B_6ï@hÒ_x0003__x001B_Ãøî@¤¾\u0081ãÀ\u009fï@_x0011_jÄúÍSï@Üº\"_x0016_ä\u009fï@O´¾µÊKï@\"_x001F_ü§Î\u008fï@6_x0005__x000E_Z¢_x0004_ï@_x0007__x0008__x000B_xYs´_x001C_ï@_x0001_ýÞT__x0001_ï@ IÒTßÂî@\u0092_x0004_J\u00800Pï@¼KÏÀÁ\u0084î@6ifû§xï@_x001D_ñ'ßlÙî@_x0010_½ó \u008d0ï@_x0018_²>o(\u0091î@iì\u0093_x0005_DIï@\u009dª\u0086G£_x001E_ï@\u0091(!_x0006_Ñëï@\u0089­.C-^ï@_x0010_·Èáß\u008cî@I7¤.ãwï@Î_x0015_:Ø÷hï@d_x0008_õO\u0099òî@TùÝ_x0005_Ò\u0085î@Ó5æ|ù]ï@ÌC_x0006_§3Fï@ÿ\u0081*ÍÐLï@4ý_x0004_°_x000F_ùï@Ê¦yÿf_x0003_ð@î_x0012_ðWÿdï@ä;@ÚþØî@_x0016_óOx\u0097+î@*6j%ärî@pÐ8\u009c\u0092.ï@ËôE\u008a]öî@.Ga*Ú¯î@\u0098ü_x0002_úæÑî@6_x000C_tR_x0002__x0003__x0011_\u009dî@\u008dKdç¦%ï@;¼ßÔV\u009fï@\u009cÎ=¢_x000C_zï@ª6:1\u008bHï@®óñ>½_x0014_ï@s_x0008_ø,\u008f°ï@Ø9>xlnï@6ø©u\u0081_x0018_ï@\u0096ñ\u008eÒã\u0080ï@\u0090²*_x000C_!\u0094ï@¢Ì¿½\u0094Þî@ä¶Ë~§5ï@R¡Ð¯Þêî@\u0088ô_x0004_\u008dC¢ï@r¤¼\u0082Nèî@\u0084¬ø¶û¤ï@>D8_x001E_ùLï@,\u0091\u0093ð\u009d¯ï@,\u0081Â(_x0001_Çî@¨î>DÓ\u0096ï@\u0099d\\d_x001D_Êî@Ì£\u009e®ÌZï@¡pþ_x000F_SGï@t\u009b_x0008_\u008eó\u009cî@~H~ÿ¾{ï@_x0002_x»ù!Jî@þ@_x0011__x001A_\u009cþî@Ø_x001F__x0003_\u008eÓfï@Lÿ¹AîÂî@W\u0090:Ø¼Wï@ô¸_x0007_,v_x000F_ï@_x0002__x0003_Y1¸êhãî@4@Å\u009cqxî@nb_x000C_$môî@¦^D1«}ï@RÑ^1Å5ï@$î\u008e¿¬¼ï@2_x0019_m_x0015_ \u0088î@\u0088[_x0012_¬Jõî@lÄ_x0001_·rkï@ÐLº\u008e%[î@L_x0011_`WÜ/ï@Nh7©|_x000B_ï@¦\u0090_x001F_ã+¡ï@¾_x001E_·»Ý1ï@>C\u009f¢ú_x0012_ï@o\u007f82bbî@´ÚH¼´_x0015_ð@ê\u0084Ë¡½yî@b_x0008_\u008e_x0019_\u0089´î@_x000D_$2)_x0004_Bï@_x0008_E\u0087Hýãî@¯ë9@oýî@½%Çõ»#ï@Yæ¸©ò\\ï@\u009e$\u008eX\u007f¥î@_x001E__x0010_ë4_x001A_Êî@zØ{<õ\u0087î@bÌ\\\u0082e$ï@­PW[V@î@Öøn*E<ï@\u009cËÐ\u0088ÞÇî@Ú`oO_x0001__x0004_´)ï@øGkC\u00828ï@à_x0002_üåt¥ï@²_x000F__x0018_O%_x0005_ð@öÙ¤´_x0003_÷î@\u008aµ\u009bW*ïî@²\u008aê_x0004_7Hï@ü}'ÖäÄî@\u009e\u00944>é_x000E_ï@nhß³Y î@h+=_x0013_ý\u0096ï@Æ¾Ó»Èíî@ª\u009c§ïªªî@Ð`a\u0084U_x0012_ï@pªksuYï@\u008c\u009f¾)W_x0012_ï@\u0082/©{?_x0014_ï@Ö_x0015_Þ5c:î@_x0011_ÂÓ^_x0019__x0001_ï@Ò_x0007_\u0086*\u0080\u0080ï@¼Ç\u0092¤7.î@ðá\u008f¹3.ï@f<\u0087\u008dÈ°î@&ë¯îä_x0015_ï@T<eÜ*\u0090ï@d_x0006_Ãxt¬ï@~Ûh¥A\u0089î@ÍW;öAGî@_x0017_a'\u008a\u0087\u0081ï@Õò²£À_x001C_ï@^_x0010_á2·Ôî@´»c _x0011_»î@_x0001__x0004_à\u0082_x0005_0Û?ï@¬__x0005__x0019_(´ï@¾V\u008ex=íî@_x0006_Ôë\u009d\u009e\u0083î@S_x000C_Z\u0080:_x0003_ï@àý@ø¢_x001C_ï@_x0003_%_x000C_\u0092Vþî@((æKãÇî@ú%\"kOZï@8V0µ_x0006"}},{"$cut":{"chars":73890,"head":"3e65cea93c65854238720eff7436374c_x0001__x0002__x0001__x0001__x0001__x0001__x0008_\u0083_x0018_A_x0001__x0001__x0001__x0001__x0008_\u0083_x0018_A_x0001__x0001__x0001__x0001__x0008_\u0083_x0018_A_x0001__x0001__x0001__x0001__x0008_\u0083_x0018_A_x0001__x0001__x0001__x0001__x0008_\u0083_x0018_A_x0001__x0001__x0001__x0001__x0008_\u0083_x0018_A_x0001__x0001__x0001__x0001__x0008_\u0083_x0018_A_x0001__x0001__x0001__x0001_(Ñ_x0018_A_x0001__x0001__x0001__x0001_(Ñ_x0018_A_x0001__x0001__x0001__x0001__x0008_\u0083_x0018_A_x0001__x0001__x0001__x0001__x0008_\u0083_x0018_A_x0001__x0001__x0001__x0001__x0008_\u0083_x0018_A_x0001__x0001__x0001__x0001__x0008_\u0083_x0018_A_x0001__x0001__x0001__x0001_H¢_x0018_A_x0001__x0001__x0001__x0001__x0008_\u0083_x0018_A_x0001__x0001__x0001__x0001__x0008_\u0083_x0018_A_x0001__x0001__x0001__x0001__x0008_\u0083_x0018_A_x0001__x0001__x0001__x0001_H¢_x0018_A_x0001__x0001__x0001__x0001__x0008_\u0083_x0018_A_x0001__x0001__x0001__x0001__x0008_\u0083_x0018_A_x0001__x0001__x0001__x0001_Èà_x0018_A_x0001__x0001__x0001__x0001__x0008_\u0083_x0018_A_x0001__x0001__x0001__x0001__x0008_\u0083_x0018_A_x0001__x0001__x0001__x0001__x0008_\u0083_x0018_A_x0001__x0001__x0001__x0001__x0008_\u0083_x0018_A_x0001__x0001__x0001__x0001_Èà_x0018_A_x0001__x0001__x0001__x0001__x0008_\u0083_x0018_A_x0001__x0001__x0001__x0001__x0008_\u0083_x0018_A_x0001__x0001__x0001__x0001__x0008_\u0083_x0018_A_x0001__x0001__x0001__x0001__x0008_\u0083_x0018_A_x0001__x0001__x0001__x0001__x0008_\u0083_x0018_A_x0001__x0001__x0001__x0001__x0001__x0002__x0008_\u0083_x0018_A_x0001__x0001__x0001__x0001__x0008_\u0083_x0018_A_x0001__x0001__x0001__x0001__x0008_\u0083_x0018_A_x0001__x0001__x0001__x0001__x0008_\u0083_x0018_A_x0001__x0001__x0001__x0001__x0008_\u0083_x0018_A_x0001__x0001__x0001__x0001__x0008_\u0083_x0018_A_x0001__x0001__x0001__x0001__x0008_\u0083_x0018_A_x0001__x0001__x0001__x0001__x0008_\u0083_x0018_A_x0001__x0001__x0001__x0001__x0008_\u0083_x0018_A_x0001__x0001__x0001__x0001__x0008_\u0083_x0018_A_x0001__x0001__x0001__x0001__x0008_\u0083_x0018_A_x0001__x0001__x0001__x0001_(Ñ_x0018_A_x0001__x0001__x0001__x0001__x0008_\u0083_x0018_A_x0001__x0001__x0001__x0001__x0008_\u0083_x0018_A_x0001__x0001__x0001__x0001__x0008_\u0083_x0018_A_x0001__x0001__x0001__x0001_H¢_x0018_A_x0001__x0001__x0001__x0001__x0008_\u0083_x0018_A_x0001__x0001__x0001__x0001__x0008_\u0083_x0018_A_x0001__x0001__x0001__x0001__x0008_\u0083_x0018_A_x0001__x0001__x0001__x0001__x0008_\u0083_x0018_A_x0001__x0001__x0001__x0001__x0008_\u0083_x0018_A_x0001__x0001__x0001__x0001_(Ñ_x0018_A_x0001__x0001__x0001__x0001__x0008_\u0083_x0018_A_x0001__x0001__x0001__x0001__x0008_\u0083_x0018_A_x0001__x0001__x0001__x0001__x0008_\u0083_x0018_A_x0001__x0001__x0001__x0001_H¢_x0018_A_x0001__x0001__x0001__x0001__x0008_\u0083_x0018_A_x0001__x0001__x0001__x0001__x0008_\u0083_x0018_A_x0001__x0001__x0001__x0001_H¢_x0018_A_x0001__x0001__x0001__x0001__x0008_\u0083_x0018_A_x0001__x0001__x0001__x0001__x0008_\u0083_x0018_A_x0001__x0001__x0001__x0001__x0008_\u0083_x0018_A_x0001__x0002__x0001__x0001__x0001__x0001_(Ñ_x0018_A_x0001__x0001__x0001__x0001__x0008_\u0083_x0018_A_x0001__x0001__x0001__x0001__x0008_\u0083_x0018_A_x0001__x0001__x0001__x0001__x0008_\u0083_x0018_A_x0001__x0001__x0001__x0001__x0008_\u0083_x0018_A_x0001__x0001__x0001__x0001_(Ñ_x0018_A_x0001__x0001__x0001__x0001__x0008_\u0083_x0018_A_x0001__x0001__x0001__x0001__x0008_\u0083_x0018_A_x0001__x0001__x0001__x0001__x0008_\u0083_x0018_A_x0001__x0001__x0001__x0001__x0008_\u0083_x0018_A_x0001__x0001__x0001__x0001_(Ñ_x0018_A_x0001__x0001__x0001__x0001__x0008_\u0083_x0018_A_x0001__x0001__x0001__x0001__x0008_\u0083_x0018_A_x0001__x0001__x0001__x0001__x0008_\u0083_x0018_A_x0001__x0001__x0001__x0001_(Ñ_x0018_A_x0001__x0001__x0001__x0001__x0008_\u0083_x0018_A_x0001__x0001__x0001__x0001__x0008_\u0083_x0018_A_x0001__x0001__x0001__x0001__x0008_\u0083_x0018_A_x0001__x0001__x0001__x0001__x0008_\u0083_x0018_A_x0001__x0001__x0001__x0001__x0008_\u0083_x0018_A_x0001__x0001__x0001__x0001__x0008_\u0083_x0018_A_x0001__x0001__x0001__x0001_(Ñ_x0018_A_x0001__x0001__x0001__x0001_(Ñ_x0018_A_x0001__x0001__x0001__x0001__x0008_\u0083_x0018_A_x0001__x0001__x0001__x0001_H_x001F__x0019_A_x0001__x0001__x0001__x0001__x0008_\u0083_x0018_A_x0001__x0001__x0001__x0001__x0008_\u0083_x0018_A_x0001__x0001__x0001__x0001_(Ñ_x0018_A_x0001__x0001__x0001__x0001__x0008_\u0083_x0018_A_x0001__x0001__x0001__x0001_H¢_x0018_A_x0001__x0001__x0001__x0001__x0008_\u0083_x0018_A"}},{"$cut":{"chars":52830,"head":"3e9e0635ef4092e83e2b90af7c06d35d_x0005_\t_x0008_ÍÚ_x0017_+Æ @@»Ç;=×fÀü4|×_x001E_º³À _x0004_¸ÕÊÈ¥À*êy1Ú}\u0091À\u0080_x001C_£Ïï®º@_x000E_G§ë«p°À_x0004__x0001_(_x000F_8DsÀp6â;ÏÞ»Àn\u0088Ë³+ÇÃÀÞî_x000F_¢ªc\u009f@_x0015__x0019_%&0ÜÃ@\u007fÌm¨ºÀ°@<µ/ßh©¹À¯¤Ç_x0006_­=½À_x0002_/w}ðH¬@>s@7Éæª@´\u008ecNA¨\u009eÀc>Ï±Zr±ÀæQ\u008bÙ§ ³@l&è5i@¥À_x001E_ë_x0016_\u0099\u0099\u008f\u0097@6Öô_x000B_õ\u009c´@¼_x0003__x0007_³9±·@\u0096d ÌPÓ¼@r_x000E_ü\u008d_x001B_ð®À\"Õ_x0017_×ôk¡@_x0013_õËÃé_x0005_ÐÀ¬²è]å¾§À_x0013_6_x000E_ÈÛ'§À7Eão5]²@_x0006_\u008fÐø_x0003__x0004_`¦\u0093@\u0088Yþ_x0001_ç£¦@DzyV\u009ex\u008a@_x0012_jùÊ\u0081rZ@>±ó·ÎR¤À\u0098\u009d7t¹TJÀÀ_x0016_ªµ©\u008c³@_x001C_\u0092¨t[h±@_x0006_#_x000D_E_x0015_E\u0096@êE]r\u007fqº@_x0004_ã_x0004_\u0083\u0089jÓÀ\\®ü·_x000D_Ú\u0082À\u0083Ùæ9=\u0089\u008eÀP-\u0088mQ\u0085º@Ô_x000F_Äö_x0003_ó\u0084@HåjÇRz_x001A_À\u0092¯tÐE_x001A_¼ÀÞÁªã\u0093ú®Àú\u0090_x0016_ñ5.\u0096À\u0093{-_x0005_\u0095~½ÀQ_x0005_6êhC¨@|,\u0099Ûv©´@\u0080,µ»ÓcÃÀ·5·_x0014_l×ÂÀøH\u0086\u0081æ\u0088¿ÀT£_x001F__x0014_k7ÃÀÐ_x000D_m\u008b¦_x0014_³ÀÝ«QÝ_x000B_ú¾@_x0004_\u0095_x0016_§£MqÀ4Ð¦±\u008f,\u0091@ôñ_x0002_\u0087à^À@Í&\u0094\"ùj»À_x0001__x0003_°àG_x0002__x000E_R¿À\u0098°_x0013_\u008d\u0083\u0094\u009b@¦Tuó¨\u0084Ë@ÿM¹ÙôQÇÀxsi_x0015_ï\u0089\u0082ÀeÊ_x001A_\u008f\u0091DÄÀ¼ð_x0005__x0012_\u0081ó¿ÀÞß_x0004_¡Û}}@À|'Ï\u0096º¹À(\u008c_x0014_ù_x000C_\\wÀJH_x0017_è6\u0085\u0095@öKÆ\"_x0004_Ë\u009e@\u0085c@dbT®Àpe¡o)#\u008c@_x001F_Í\u0084fë\u009f¼À,_x0018_ \u0089¶i\u009b@ñ\u0089ê_x0011__x000E_4µ@ù\u009fDÛ^NÂ@\u008aK_x001C_¾&ë£À_Ú\u009e\u009bE\u0081\u009e@_x0010_:\u0090}1H\u008cÀ_x0016_%_x001B_F_x0002_÷¨@ìI$U=\u0087¸Àë'¼_x0007_\u008aÎ\u0092@S^\u009e\u008315\u0090@_x0007_¾_x0012_¹á\u009b©À­\u0096g\u0097ì_x0013_\u009aÀ_x0016__x0004__x000F_Kß=±ÀÜ¬K_x001D_\u0092û\u008cÀB$ø;1ã»À¦#êû¢_\u0081@i7_x000D_\u009e_x0002__x0003_áaµ@É\u0082äsÞ_x0013_\u0093@j`ü\u0098q4\u009f@¥ñõHÜÕ\u008eÀ}p&\u009cH¼Å@._x000E_õ`_±\u0096À\tªÔ!Jô¿À\u0090a_x0001_<Od§À¤Rá_x001A_\u008eÿÊÀx_x0019_îÔ_x0012_\u008a³@\u008eÃû4\u00831\u0085À¾¨\u009f{ms´ÀýX­\u0097ì\u0085´@ÿ\u009dþZºá«À×ågÿ_x0007__x0005_¸ÀúnZ_x001B_ó£«@\u0097_x0018_ÏQ@P³À\u0090QGó°+v@_x0002_¢åxÄõ£@Vbm§­b²@t\u0087_x0017_Ïm_x0012_\u0098À\u009eJ[uì&\u0087@_x0003_ú_x0010_Â_x001C_#¬@\u0091Ücò_x001A_i\u008bÀñJC§Ô\u0096¢@EóÉÂ¶_x001E_\u0089Àf_x0001_\u00937æo\u0081ÀD ý[Ñ\u008f\u009b@¦ë§\u0091_\u008b«À¼\u008av\u0092r_x0018_\u008a@rl«_x001C_\u0090_x000B_yÀ\u007f_x001F_¼ÑéfÉ@_x0002__x0004_z\u0085õ!_x001C_MÁÀ\u0084Õ6_x001E_l¥¦@_x001E_\u0098<\u0099:º®@2_x0007_´$Le³Àôz\u009c:É§·@PôÇ_x001E_Âæ\u008fÀ¢i\u009b\u0081\u009d_x0019_¥@\u007fÄ¡µ*Êº@\\æ\u009b\u0080_x001D_!¿@Ñ\u0086ËÖ78\u009aÀ¨ùÈ\u0088º5g@q_x0001_µü®\u007f\u009a@ZÜ_x001E__x0019_Q4tÀ\u0085¯\u008aD§$±Àl¤\u0086¬:Ìª@sGH(üR\u009cÀÎ,\u009c_x0003_<_x0006_ª@_x0016_F×ò9î§À>\u0089zwÚ¯¬@_x0011_ µd_x0010_#«À/¯_x0013_Õ_x000E__x001A_¤À\u009cË9¤1_x0005_\u008c@ 5DÝ_x0001_\u0080±@-ü3_x0004_hÛÉÀ_x0002__x0004_çº_x0002__x0011_¿À:g²H0°¶@\u0098RnÅù` À\tµ³#É¿ÙÀ%_x0002_\u009d\u009cw&\u0081@G¦1_x0015_ÇC£@æFS\u0090Eµ¢@-Ô9Ó_x0002__x0003__x001B_ó\u0081@4D\u00896âÍª@\u008bà_x000F_kÛÞ\u007f@\u009fD»dD* @¼\u0090_x0001_k_x0001_\u008d\u0084@N_x0017_qh\u00860¯ÀÖA_x000C_b®¸´@¦âr_x001B_·¢\u0087ÀbR<3Æyy@}_¦ð~\u008d¥ÀØèÒzÊ £@6Èï¬Úù¸@u\"\u00950í\u0082r@ôçö\u008e¡ÚÃÀdX\u009b÷_x0015_cx@p\u0087é_x0018_ôRÒÀP_E_x0006_4V²@¬_x0014_¿S]_x0018_\u009d@n±YLv\u009b\u0098@®_x001A_\u008bÒÇ_x001B_\u0098@\u008c_x000D_WG_x001A_\u0084\u007f@\u0094M\u008cí_¼\u009cÀ_x0008_±_x0006_\u009f\\\u009aÁÀçZ1uê \u0080À² Þleª¹À6\u0091_x0013_õq?±ÀØøaà&ÖvÀR»#¶\u008cû @n\u0098½¿\u0080\t\u009d@ù_x0016_\u009bSô\u008bÇÀk\u0090áw#z¥À\u0082\u0085zrº_x0010_±@_x0002__x0004_\u009f\tc,ul\u009f@\u007f_x001B__x0001_£\u0081ù\u0095À_x0016__x0013_@_x0017_\u0097ò¼@ÿè§á\u0084ÛÈÀeã\u0096ø4,rÀ9øHìG_x0003_p@u8\u0089_x000D_i_x000C_\u0097ÀÇFLZ\u009a´º@qd4,¹\u009cÉÀ_x001A__x0010_÷Ùl3\u008d@\u0088\u0082_x0015_øÍ\u007f´ÀÐe½V7I²À_x001A_\u0099]e\u009få\u007fÀ#_x000F_Êïõ¿¸À\u0083ß=\u0097õQ\u0094ÀLoq¸\u009cØÁ@_x000F_¬\u008a2+`\u008bÀö_x0002_\u0084ÙÙ_x0012_¹Àðß<_x0002_f4²À-__x0011_`®.¡À1`{düp\u0092ÀKÐ\u0087\u008cÃ¯©Àö_x000C_ù¶»'\u0091Àà!6<\u0098U{@!óà¯Å\u007f­Àz·OQ_x000D_ú\u0096@áXÎUMD±À\u0083ïêR2Å\u0097ÀèæºµßXÄÀ<\u0087[`Ù_x0019_ËÀOÕõªüÿ¤ÀXÎ\u0099:_x0001__x0002_ê²¶ÀHÀ\u008bH<\u009a½@´àÙrÃvvÀß_x000E__x0001_$º\u008d°@_x0015_c_x0018_Pæ\u0096\u0092@*j_x0006_»_x0007_¸\u0090À¿3\u0089¢ß(¤ÀzÙ8_x0003_§,©@h\u0095_x001F_´\u0099a«À3n:\u0086\u0095õÕÀ\u0080nÁú\u0096Ý&Àì½c_x0011_yAu@\u0092\u0081Fºª7Æ@lU­T\u008d1²@_x000E__x0003_ÉË\u0099|¢À°r<°¥³±@²Âð`@ë\u009fÀx_x0006_?b;.´ÀêñGf\u008fX®@lC_x001E__x0018_ß\u0093\u008dÀ\u009c\u009dD\u0097 \u008e©ÀÜÜ´2hØ¬@ºNLï7_x0011_£Àì_x0006_H#_x0003_\u008e\u0094ÀH¼J³O:¦ÀH|M´|_x0014_\u0089ÀÎ_x001D_9}¢~¥À5p=vüë³@\u00984ÔDòâ®À¦_x0004_\u0088N\tíÇÀæ¶_x0004_Y`E\u0085Àx~E_x0018_´`gÀ_x0003__x0006_ªz_x0001_C©+³ÀÚ#_x000E_Ì)5©ÀB\u0083qéõ¿¢ÀÉCOÇÄj¹@Ñ_x0005_ñ6´ÿ\u008aÀáóâ\u009f\u0097_x0015_È@PI_x000D_·½c¸Àk_x0002_(2<\u0098·À\u0085#@¤ÉÝ»@_x0012_IW±ëmÇÀö_x0018_§ÿëc®À_x0016_\u0087_x0006_0\\oÄ@\u0086_x0004__x001C_È-]§À+_x0012_b\u0090\"j¤Àw!©þ_x0011_HÀÀrÓ_x0013_Þ!j¯Àà0ù`çmnÀtV¹ _x0014_sÃ@VÚÎÈmQÁÀ_x0014_{b\u0083\u0095_x0001_¾ÀØ£à_x0013_bå©@¾¸~[ø_²@ö\u008a\u009f\u008e\u009ab\u008c@_x0018_0ÌÊsÞQÀ_x0001__x0014_SÛÿf£ÀLh54L¬±Àf­Õ´âñ\u0090Àú\u0098m¡_x0013_:\u008cÀÉoð§à\u0092µ@`_x0001_c\u007fh¬¿@\u0084X*wT5\u008f@¤\u0084ºv_x0001__x0002__x0005_Éº@7]G¢8»j@î_x001F_[Aÿ\u0091Ç@BÙÍÒx_x0010_\u009dÀ¤lERM!\u0082@6+_x0002_\"gó\u0090ÀÃ/¯\u00980_x0012_v@Eê_x000E_¯\u009eÓÊÀ\u0082îøªí°\u0091À6ìäè\u008fÔ£À',èÝYi¡@â)\tú~\u0095\u0085À\u008e_x0012_ùM¢M§ÀÕßº_x001C_\u0096\u0088\u0081ÀÀ_x0004_f¨ß\u008f¸À-çÀ\u0094b¼¢@3·9Û_x001A_¨wÀ<³\u009a.õ\u009b¼À;_x0006_º_x001C_YO\u0095Àúc½¹¥N\u008a@Âëµ\u0094Ý_x0013_M@'l÷_x0014_¹_x001D_³@`|ÜØÜ_³ÀD#é@\u009a_x0008_Î@._x0001_!\u0085\u007fÚ\u009b@}\u0081^]-_x0007_´@H'ñ$\u009e)\u0092ÀÁÜ\u0094³DÔ¬À¹vö\u0086\u0099¥¹À"}},{"$cut":{"chars":63486,"head":"8d7b0d1826c6e2a0a3b4abc4dd7661a2_x0001__x0002_ð_x001D_\u008b\u008b_x0012__\u0092@¨$ÌM_x000B__x001D_°@\u0083s¹ØÂudÀ\u007fJÐ(ûé\u009b@eõ óÒ$´@Ñ\u008f_x001E_¥)¤¢@E\tþf$»¾@_x0011_¥©_x0011_P\u009a»@cöæåV¦°@,\u0091£OG\u009c§@­Ä\u009dWu\u009b¤@_x0010_°\u0089lk_x0011_\u0082@ëgõ\u008eèúÂ@Ï_x0003_I¹_x0004_aÂ@¼_x001E_|\u0091_x0003_,·@@æhR¦O²@«ô\u009b\u0084âe¬@Køâ\u0098\u009c@±@_x0010_¿¸àÔ.¸@;|\u0091éË_x000F_²@~!íD¨\\¸À|¨\u009a­B¾­@/³\u009bòßsº@_x0017_óV\u0090º[\u0087@.«\u0089\t\u008e4¹@_x0004_\"m\u008füÂ\u0096@|_x0013_ç\\nJ|@¤b¶ý_x000B_y·@_x0019_Á_x0019_2ÇÉ¨@®_x0016_~µ`¶£@¡$fg9é«@#_x0002__x0016_h_x0002__x0003_]\u009f¯@Ü¢øyI´°@ë$ì\u0097\u007f2´@¹vZ³_x001B_Ð°@_x001F_\u0080_x0005_\u0087\u0090_x0013_ª@IpÎ\u0094\u008c_x0005_»@sÑ¨Åàó¼@I©&Q¿A¬@_x0006_\u0094Ãrh»±@DL_x001D_0c_x001B_£@_x000E_'¶_x0001_ÒHtÀk_x000B__x0006_{­_x001D_¬@Ä\u008f*²Å\u0092¥@\u0088B;øsÏ¬@û_x0019_?Kv_x0003_§@\u0094marsç·@E­Yù]_x001D_²@Ç¶Y@\u008ft¬@_x001F_ÿãÚ\u0089q°@_x0010_½_x000F_ð 1jÀåc\u0094jê_x0007_ª@_£WÊM¹¹@/© øÁ.·@5éãâ_x001C__x0004_´@_x001C_;**_x0003_\u0095­@Ýnç­8Á»@÷Ä´_x0002_*_x0001_¤@-O;o_x000D_c®@[(þ\u008cãp¥À6k\u0081$^K\u0099ÀÌì;X\u0092.­@Åw\u0084ï7_x001B_¯@_x0001__x0003_\u0090Ã_x0015_Ì_x0018_C§@Xk\u0087_x001E_\u009bvº@ÝrRM¿|¯@_x000D_©(z,Eµ@ñÿ¹.d2­@_x0018_\u008câ\u0097_x001F_í°@\\ç®;\u009c6©@üä+µÝ\u0084\u009aÀC_x000E__x0012_ÝzÝ·@]Ã\u008bÓÈo¬@Ñ\u0082ì®+\u0094¤ÀLls_x0017_h_x000B_¾@5±Ô!y\u009f§@¥&\u0095ay­§@ì_x001D_ó{Îä«@iUO§\u009a_x0008_©@8·l\u0080~_x000B_\u008bÀ­^àKÈ_x0004_®@¶¬K_x0014_>_x0002_¡@(øyÝ$À\u0095À_x0011_ÃßJT;»@¨/Mñ\u00812\u0095À(\u0085¸_x001A_>sbÀb_x0018_s\u0096§B³@_x0003_¤#Ý\u0090\\\u009fÀ9Ïi¹K2´@1-_x0012__x0016_Ì_x0014_·@\u009e0à5_x0002_o©@\u0098\u0084\u009f&\u009cô£@'B_V\u0088\u008a»@p£3\u0081Sè¸@\u0099£úû_x0004__x0005_U´¬@\u0085³_x001D__x0016_ª\u008frÀ\u0086_x000E_\u0094ïá_x000E_x@Iªçß\u009d£¶@Æú/ÜÙ4\u0099@¶j\u0091¶_x001D_£ª@¬'!Ñ\u0093Ó¼@Î\u0093ðo{_x001D_\u0086À«:óÆ\u009f£¬@Û)À\u0080AÒ\u0096@\t3îïrk«@\u0089X_x0004_+\t2\u0095@*¥»!_x0019_`ª@sÖ´_Ðr®@\u0097bÀz\u00905²@Ü_x001F_daP>\u009a@ýÌËb5á©@q´\u0081ÆS_x001B_¬@_x0012_×Ò¯ÛD·@ªAÇR_x001F_\u0089¤@;d\u0088g_x0003__x001D_©@Ldv_x001E_ÔÝe@í¨C©\\Æ\u009b@JN_x0002_i\u008a_x000F_ÐÀ\u008e\u008c_x0004_ã_x000D__x0006_·@\u009cäã\u0088új\u0098@êÛ_x0001_¥W7 ÀµÉ_x0019__x0015_äµ¨@4|xii{\u0096@j*a_x0007_/ÿ\u007fÀ(eöX½¤¦@ õñ]_x000B_9«@_x0001__x0002_ ¯jHp«AÀ_x0015__x0016_¢_x0013_\u0092`\u0090@\u009d_x001A_ÀY_x0012_,®@Ã2\u008a¶TA¬@ ,o£å_x0013_\u0094@Ðo4\u008d¿A°@!òS\u008c_Í²@¥_x001C_%¶ÆH§@whÑm\u009en¶@hNð+\u007fÂ\u008aÀ¬\u0081_x0013_Ñ_x001D_O¹@ä~rAuß½@\u0091\u0092Û4_x0006_;·@Ó4\u008f ß0\u009a@y\u0090_x0018_\u0082N§\u0098@¼\u0088Üd\u0095n­@nÉòÊ\u0099T¹@Å\u008b´X\u00814\u009c@¾°\u008b_x001C_U\u0089uÀ¨±_x0011_\u008e\u0095Q±@|\t¤\u0084_x000B_»´@\u009c×\u009d¼ìÕ§@H}9_x001C_$n\u0097À\u0097J\u009cnKL¿@ç{\u009b1@ò\u0099À³x6ï_x0001_\u009e¸@h\u0088+4Î¡N@\u009b_x0008_\u0091nÆ\u008e¹@¥ße8=°§@\u009e­*=ì\u0087°@¾=\u007fe\u009fm\u009a@À_\\Ï_x0001__x0003_188À_x000F_G_x0002__x0017_~u\u0091À\u0092c\u0097\u0089]n\u0084À®÷[N!ã\u0084À\u0087\u008d_x000B_¹Åã²@è_x0012_°+Ã_x0005_\u0082@\u0087_x0001_ÌÀ_x0018__x0003_°@¥g£__x001D_è\u009bÀú= ½ý´­@\u0093_x0007_i©§R\u008aÀïÖ_x0003_3`o\u0096@\u0086ÏMÅöm³@+­é¤úÂ¥@u_x000D_ùÏO\u009d³À-_x0008_,TÐ\u009e\u0094@\u0087®¡×\u008a£±@\"ÚàGégÀ@\u008d¹KëÎy¢@__x000F_r5_x0007_¡Â@R\u0099tÏêï¸@\u007fgbæè\"©@Î®ªS_x0017_\u009d·@Àæ_x0018_\"âB¤ÀÂ\u009fõþìa±@[Õ_x0017_ò?\u009b®@Ò6?_x0014_BQ·@¯ò±\u0089¡Ì\u0093@H¬ÅkÜ\u008b³@nÔ<~u\u007f\u0098Àiâ¨_x0012__x001C_b¹@Jñx¤_x001C_OÀ@ÂG#×7Ò¬@_x0001__x0003_rú+Í!/¸@ÞIMÖ¯\u0096¹@Ì_x0002_°`\"x\u0099@ùc\u00967Û^³@ß_x0004_ê_x0002_ªr¤@³é÷eúï¯@\u0088;I÷Ò(\u007fÀþÒ_x0001_µ«G¸@\u0098\u0095/þ\u008eRwÀ;©¶â <·@_x0019_u+_x0014_5_x0018_\u009f@_x001C_÷yû9ý\u009e@/ô\u008dÃJ_x000B_´@Øû(ú]×º@ÈÑöâò\\¥@_x0011_E0{*³µ@õôY_x0018_ýÚ¤@\u0094T÷_x0002_\u009ab±@W\u0090Âe7\u0097À@CG³\u0097ïjuÀf×Z\u0099¹_x0002_\u0098@_x001C_¢¯rs\u0095¶@\u0082àª#(X¥@'°q½NÜ´@Âl¨V_x0002_õ\u0096@_x000E_Ö>A\"(°@òÛÉ_x0008_ýÒ²@²¨R_x000C__x001A_Ø°@ws~yOª¡@T³Ñ×UÌ¸@ºë\u0094_x0017_Hï¨@Ë\u0093´\u0083_x0001__x0008_Çg¨@\t®Ñx½Ý²@'ËL_x0001_\u007f\u0086³@ÀV¡\u0084¿_x0010_ª@ý\u0093Å_x0001_nè\u0098@!)_x000F_®_x0002_ù¼@¶Í\u0084a4^¦@]Â7êOF¥@\u0087I¸É_x0016_¸³@\u0084éQ;\u007f\u0081º@\u0088_x0008_íÓ¤ø¯@Pz#$\u00891\u0097À$\u0081òðí\u009f\u0087@¼®_x0007_Õ_x0003_d`À:q:Ì$3±@_x000C_!\u007f\"_x0019_a¶@\u0086í$_x001B_\u0081o\u0095@í<m_x0002__x001C_ï¥@ä@mJW_x0011_\u0083@ÎÙxx\u0094Ñ\u0095@Øè_x0005_ÉÁª¨@¤\u0094èªþô·@_x0011_¼_x0006_tpI\u008a@\u008a_x0004_£_x000B_\"\t\u0099Àã_\u008eÊÔ(²@êÿ_x000E_zbÊ²@¶/©0\u008d\u0097«@\u0092_x0016_m¶ô[£@uF\u009cëi\u008e\u009e@ùY¡¨µÐ³@,n}±!ò­ÀE<òÊ]àÀ@_x0001__x0004_\u0088Ü¤\u009aÍó¡@Ûs\u008eèþ_x001D_³@\u0082&\u008bë\u009e_x0005_}@EÈ\u008cÏé4¹@_x0007_éËÓxª£@zÑ',*Sº@¢-(²2\tµ@Òè'Å*L±@Ø`9Ó\u0095Ú³@â_x0012_«qº$µ@À\"\u0085We(¼@¶_x000B_ý{=_x0017_ZÀ\u009d)\u008f_x0013_Ñx±@\u008eð_x0002_³lo\u009bÀµ¸\u0086_x0019_)ý³@õ_x0019_¹\u009d_x0015_Ú½@_x0018_|ð_x0017__x0002_k­@<í_x0014_áàN\u008eÀ_x0018_t¸Õ*\u008f±@¤\u00989Ê´Ó¦@·kõÔt=¡@\u007fZSÁ¸ä\u0094@\u0094:w¡Ó_x000B_¹@+ÄãË\u007f( @¨Û[­_x001D_\u008c\u0084@\u0086\u0080\tÀ_x0004_\u009f©@_x000F_ÿü_x0012__x0003_Q¯@üÌ,_x0015_\u0088\u0089\u008f@AÅMí_x001D_k¸@C\u0086úmàà¼@Lñ_x000C_pÖ¥²@pIþ9_x0002__x0005__x0005_Ï\u0093ÀÃ\u009bÔ7Ü\u008e¶@_x0002_\u008b\u008d^²\u0098aÀO_x0018_x_x0001_]\u008dº@x¹¥Cj_x0002_©@A_x001B_E_x0014_d]¤@É¸_x0005_ð}_x000C_\u0098@(w_x000F_ßØðCÀjLU«*D @4\u0085Å´\u009crª@\u0094¾`¢4á²@aQþ\u008d_x000E_\u008a¤@z}8h4ÓÁ@¨_x001B_¨ë»1¹@_x0014_ ö\u0080_x000D_´¯@ü+5H_x0017_ß£@¾Gº\u0088µ\\­@jFÚÓ_x000D_`²@¤ Èì_x0004_*\u007f@ßÔó\u008c[Ì¨@_x0007_#©»*H\u0093@ãÄð«_x000E_O²@ê\u008eÞ\u0087o_x000D_¶@*_x0001_\u0097÷|¾\u009bÀ\\)\u0080~Á¯\u0086À\u0088¾DÔ_x0006_r\u0099ÀÂ!\u0088ØÈÒ³@_x000C_VØód\u0093¶@¶,_x0013_¶¹Ï\u0089@Æ_x0003_{vqò°@X_x001C_ªÃ K·@çê¦µpú¬@"}},{"$cut":{"chars":57060,"head":"84c00c6b3b24432b39741627a32691ff_x0001__x0003_Ä h!PÛ_x0018_ÁgÉfÔ-å_x0018_Á\u0091îGØ9Þ_x0018_Á _x0002_cr\u0085Ø_x0018_Á\u009e¯MÑ&ë_x0018_Á§\u0085\u0096V_x0008_Ô_x0018_ÁÏ©_x000C_¶iß_x0018_ÁÙß\u0096hËé_x0018_Áû{u¸\u0096÷_x0018_Á2\u009bÃ¥§ì_x0018_ÁÌ£/\u0094ÖÞ_x0018_Á`ç}Æü×_x0018_ÁÌÛó¼NÒ_x0018_Á\u0085.:ðñÜ_x0018_Á½_x0003_W¶Ïï_x0018_Á_x0013_ðo©_x0012_ä_x0018_Á¢±é°Äç_x0018_ÁLLþ!»à_x0018_ÁÆb\\Ý\u007fý_x0018_ÁC_x0001_â\u0094\u0080Þ_x0018_Ám\u008e_x0008_ª]è_x0018_Á²_x000E_ZÊðæ_x0018_Á\u0095_x0014_\u0086F\u0092ú_x0018_ÁzúÐ\\âä_x0018_Á³_x0018_ºF\u0089ê_x0018_Á^&!þ6ì_x0018_Á\u0080*m{yç_x0018_Á=iFf}ß_x0018_Á=_#øÀì_x0018_Á_x000F_ÚëõIÝ_x0018_Á¼\u0085A£0Ú_x0018_Á[ï:u_x0001__x0002__x000E_×_x0018_ÁM\u0081Ø]6ß_x0018_ÁÉ`Þ}6Ú_x0018_Áª°ð¤òï_x0018_Á¬_x0004_Yæ,ß_x0018_Á_x000D_)6\u009aÀÛ_x0018_Á\u0088N%WÔã_x0018_Á\u0092_x0014_<À\u008bÖ_x0018_Á]ø\u0084_x000B__x0002_Û_x0018_Á6ß_x0018_ùÂø_x0018_Á_x001C_ö<´¸Ö_x0018_Á^_x001A_ñ½ðã_x0018_Á\u0087_x0017_µÚFã_x0018_Á(áÿGXé_x0018_ÁÞLç_x0008_Äá_x0018_Á©Ä/&\u008aá_x0018_Áþ¥ô-·ê_x0018_Á÷Æ\u008e{Öê_x0018_ÁXÌï(úY_x0019_Á«ùOQÿø_x0018_Á9-òµjê_x0018_Á_x001E__Õº.ô_x0018_Áøü¥wBï_x0018_Á\u00808\\Älâ_x0018_Áý_x001D__x001D_\u0095\u0083Ó_x0018_Á{\u0081Ó(Èî_x0018_Á$Î_x0018_óÍú_x0018_Á6íj\u0095dÞ_x0018_Á_x001A_\u0090\u0085/¬Ý_x0018_Á}}\\_x001C_ýß_x0018_Á_x0007_½Å\t¸ô_x0018_Áe´î_x001D_Qð_x0018_Á_x0002__x0005_z\u008eÒ{¹Û_x0018_Á»_x0001_IÞ¨Ü_x0018_ÁÔI¹³\u008e×_x0018_Á}{_x0012_P\u0098Ú_x0018_Á\u0081{uí_x0012_×_x0018_Á_x000E_ù\u009e\u009b\"ß_x0018_ÁIU Â\u0097÷_x0018_ÁÓ\u009eº\u009e¡Ó_x0018_ÁýI\u0095ÎÏß_x0018_ÁdTÛ\u0093bû_x0018_Á,q½\u0082Mî_x0018_ÁW>Ä_x0003_ëÞ_x0018_ÁÕxòÈ^Ú_x0018_Á°óÃÊhß_x0018_Á_x000B_owL3Ú_x0018_Á÷Ë{Å}ò_x0018_Á\u0099\u0093·2ÌÔ_x0018_Á\u0080à»aùê_x0018_ÁF¼Í9Sæ_x0018_ÁÞ¥·ëIÒ_x0018_ÁXô\u0085_x0013_ªÔ_x0018_Á3!m_x0002_\\Ò_x0018_Á¦_x000F_U_x0012_ßØ_x0018_ÁæOö_x0002_.ß_x0018_Á\u0083]ÆôÚä_x0018_ÁfZl_x0012_äÚ_x0018_ÁK_x0005_YIªè_x0018_Áw_x000B_Ø+}Û_x0018_ÁA´F%\u0098å_x0018_ÁaQ²=$è_x0018_Á7_f_x0004_¥ú_x0018_Á@é#\u0088_x0001__x0003_\u007fÛ_x0018_Á\u009c0Ô_x0015_úæ_x0018_Á¦_x0017_W\u009f_x000F_Û_x0018_Á\u009fçðã>ß_x0018_Á8e÷hUÜ_x0018_Áð\u009bÎ~Nå_x0018_Á²v_x0008_Ñ¦Ù_x0018_ÁQªÆ+uã_x0018_Á_x0003_\u009fÜÀÞÙ_x0018_ÁòAO^\u0095Ý_x0018_ÁeÃB\u0096èå_x0018_Á¿\u0087\u0082ü[Û_x0018_Áê_x0014_¯j§Ý_x0018_Á¿|%´\u008dÔ_x0018_Á\u0098ó_x0006__x000E_äé_x0018_Á\u0085-Ý¯Äè_x0018_ÁoK_x0019_³\u0080Ó_x0018_Áj}VB¹í_x0018_Ápô¨_x0005_Øä_x0018_Áë_x000F_ÿ_x0019_ýè_x0018_Á\u0094Dg_x0013_ÏÚ_x0018_ÁD^È\u0086\u0088ò_x0018_Á\u009e¹_x0013_©\u0092à_x0018_Á_x000F_\u0089,ðäá_x0018_Á/\"\u0088VÂâ_x0018_ÁÿÚ_x0016_\u009baÏ_x0018_Á7|¤Ìºø_x0018_Á_x0017_\u009fÁ¹¤ã_x0018_Á\u009b¾/jíß_x0018_Á_x001E_fÆÌlÜ_x0018_Á(\u009cV ±à_x0018_Ái©_x0002_\u009e6ä_x0018_Á_x0002__x0003__x0019_<_x0003_äTÛ_x0018_Á³À6fÂç_x0018_ÁþÍÅ\u0083Dâ_x0018_Á\u008an&öÔÛ_x0018_Á9_x0018_y ÿÛ_x0018_ÁL{n_x001A_\u009eÛ_x0018_ÁÏtÄ³_x001A_Û_x0018_Á¿_x0014__x0007_2_x000F_Õ_x0018_Á_x0004_T\\vUï_x0018_Á_x0010_Û´çÀê_x0018_ÁØ_x0013_ÆÐ_x0018_æ_x0018_Á_x0010__x0012_/\u0082øÜ_x0018_Á»ß\u008ci¶é_x0018_Á_x0007_åüdkß_x0018_Á;¾_x000E__x0007__x0011_Ï_x0018_Á¸\u0088@­\u0092Ø_x0018_Á+þ¡²\u009bÝ_x0018_ÁmÚ!B%å_x0018_Á\u0091_x000B_ö=Ìï_x0018_ÁïEGHþÛ_x0018_ÁM_x0008_¨À+ß_x0018_Á_x001A__x000B_È^_x0004_Î_x0018_Áë'po`ç_x0018_Á\u0087f¦­yÙ_x0018_Á~\t|_x000B_ø_x000E__x0019_ÁK_x0010_Ky\u0083ß_x0018_ÁxM_x0001__x001F_Éß_x0018_Á$ÁeÇ_x000C_ç_x0018_Á\u008b³Î¢íç_x0018_Á_x0001_óý\u0083þÚ_x0018_ÁÞúÏé\u007fè_x0018_ÁÛ_x0016_Ú\u0093_x0001__x0006_â×_x0018_Á_x000D_ïÖ­\u0094Ý_x0018_Áæb\u0095_x0002__x0013_à_x0018_Á§áÓ0zè_x0018_ÁGöÙ0×ð_x0018_Á÷2æ\u0098Gß_x0018_Á_x000B__x0004_ì\u0099Rá_x0018_Á_x0005_å_x000E_Ü1ã_x0018_Á_x001E__x0004_¢°\u009eÙ_x0018_ÁJÄ\u0099þFì_x0018_ÁZ_x0007_dÁÛä_x0018_Á\u0099Ã\u007f¨\u009bì_x0018_ÁÇNEV_x0015_à_x0018_Á_x0014__x000E_¡×HÛ_x0018_Á_x000F_³\u008a\u007f_x0007_Ó_x0018_ÁàD¦À÷×_x0018_Á_x000E__x000E_RM¶Ú_x0018_Á\u008dÍÓH³Ú_x0018_Á±¦KhQÚ_x0018_Áß}Lÿàè_x0018_Á \u009f.\u00982Ü_x0018_Á\u008c\u0094}+\u0080Û_x0018_ÁL_x0008_6ìôî_x0018_Á\u0085ÿð\tÅÜ_x0018_Á_x0019_I.1°Ù_x0018_Áp«ÓÄÝÝ_x0018_Á_x0008_sC¾aü_x0018_Á&þ_x0014__x0001_øÞ_x0018_Á_x0003_\u0092o\u008a¦î_x0018_ÁÒv*èÂÝ_x0018_Á\\ÀÎ=\u009aÕ_x0018_Á\u008dÚ²Õÿì_x0018_Á_x0003__x0004_¿©ê\u009f\u0094Ø_x0018_ÁúÈZ\u0094÷×_x0018_ÁÃwøá!Û_x0018_Áí!WF\u0084â_x0018_Á_x0012_ñÈ¹_x000B_ï_x0018_Á§\"ô\u0090QÚ_x0018_Á\u008e_x001D_@_x000C_®_x0001__x0019_Á¤Rd\u0085ZÙ_x0018_Á3ß_x001F_Wy×_x0018_Á'0Ú25æ_x0018_ÁÚ_x0002_k¸äÐ_x0018_Áï6æ[|Þ_x0018_Á4y\u007fÏåí_x0018_Á4ÙE\u0085qâ_x0018_Á_x0006_\u0089RØ´Û_x0018_Á Ô½\u0093Éä_x0018_Á8Õ\u008f¬2û_x0018_Á`9QÖ»à_x0018_Á¾\u0098º_x0003_ûà_x0018_Á_x000F_\u0099,²\u0094ç_x0018_ÁzÕTÚ/ê_x0018_Áa§ôÿýÚ_x0018_Á÷íj%©â_x0018_Á]\u0099_x001A_\u0085¡ð_x0018_Á_x000B_Á#o¾ý_x0018_ÁØ_x0019_.I_x0003_ù_x0018_Ám° ÎäÚ_x0018_ÁÝ_x001F_7*@ß_x0018_Á@_x001D_]×cê_x0018_ÁÚ_x000B_©(ºâ_x0018_Á>VüLÛÕ_x0018_Áf£®í_x0004__x0005_×Î_x0018_Á%à(Ä=Ü_x0018_ÁgO5³uõ_x0018_ÁOËá03â_x0018_Á"}},{"$cut":{"chars":73836,"head":"aaba9924c0f82074e9d5a80c37a21dbf_x0003__x0006_ìg_x000E_]¾_x000D_»ÀNÅ÷\t«Ý\u009a@¶ó\u0094S_x000D__x0001_i@+\u0093x£N¦\u0082À_x000E_]^z,¦\u0099À\"ÜÚ}\u0098Z5ÀX_x0019_\u009eß_x001E_Ì¹À\u0084ú¬u\u009dP^À\u0083AX\u008d\u0093÷dÀ\u0095b\u0080æ0Ú®ÀMXöeÀì®@«.~ÓI½ À\u009f.»Cn[\u0093À_x0005_òÀ_x0002_üØy@\u009a_x000D__x0015_\u0091ÞhcÀ0Q_x000C_Û§ï\u0097À\u009c_x0001_÷°¥]±À_x000D_>Tkæ/\u009dÀåäÏÍ_x001F_ª\u0089@i)\u009b÷_x000F_\u0092\u009cÀ_x000B_dùÐ_x0011_õ\u0092À£_x0011__x0018_F÷¾\u008bÀ<éÏv?¡«À\u0090a\u0086_x0004_Ï¦uÀ_x001E_â_x0010_i\u009c¶TÀÄT²\u0085w\u008f¦ÀnIZo5C\u0096À\u0084ümê\\&\u008d@_x0016_6ÄëK\u009e\u0099@ÑßzuSÞ\u008cÀ2Bfm÷_x0005_¬@ÚÜzñ_x0002__x0003_uö©À¢oÚeKÃ\u009aÀ6_x0018_\u0087åËE\u009e@Ì_x0004_=_x0013_ð_x0010_§@{._x0001__x0013_\u0080Ò»@©(\u0090õ½\u0080\u0089@örf\u0084/¡®@_x001D_L\u008c|^_x0006_®À·vh\u009f\u007fi\u0096ÀªXa_x0012_´'iÀC¨ßF­ú\u0082@N¥Õ\u0090\u008cÕ¥À\u0092\u0094_x000C_\u0087OþyÀO×_x0014_5É_x000F_ÀÀÀ!ö¹­R¬@\u009bKp\u0094Vñ\u0094À\u0098&ì_x0013_÷\u0082pÀÌWH_x001B_~lµÀüj{eñÈ\u0099À5\u0087pèÌ\u008e\u0080À@pE´§]¯@#Iï¼-ÙdÀ½`_x0004_\u0090\u009d\u0082\u0098@\u009aào©ÔK\u0091ÀFß\u009b\u009f]ÞnÀ\u009c\u008bîÃ_x0016_àÁ@P+\u009aD_x0002_!\u0091@å_x0012_NC4Ä­@_x0005_«oÿÂ\u009a¤@Ö²æ_x0010__x000B_Ë\u0083Àú=u6_x£À\u009aR´_x000C_\u007f[\u0097À_x0001__x0003_Cj\u0080\u008eAñ\u0092@àÇ~_x000E_,é\u008f@ù\u009c \u0094ãÎUÀ_x0002_;GþU\u0091\u0087ÀrK¤_x0013_ÿS\u0084À¹cø_x0018_\u008b¹µÀÜQ`Ò\u008d¸·Àx¶¸®\u007f¸°@$½\u0083y_x0013_\t\u007fÀª_x0015_ó\u008c\u0096\u0088¯@\u007f_x001D_ÁÚ+o<ÀG_x001E__x0002_h±\\|@¨BîM>È\u009dÀ_x001E_²nØ­¸\u0084@ç¥\u0083_x001F_\u008d_´Àü]û_x0018_xÿxÀ¼íé3àä\u009cÀNJ_x0015_Ì¼)¸@ä_w/Æ¤1À\u008b¡Ï¹8Es@a]#1\"LrÀ_x0013_E\u008e_x0004_Ï\u0087¤@z\u008c\u0090ubÃ«@_x001C_^vúæ_x001A_3ÀÈW0°;\u008e\u009dÀì\u0083î®½ZÊÀ^7ª·Ð_\u0086À\u0092ðÍ$_x0002_2\u008fÀüMZp¡>\u0086ÀÐ<,Ô_x0008_ê¶@6|ac°î\u0091À.÷\u0081Ú_x0001__x0004_KLµÀèj.\u0087¦\u009d\u0080ÀRéö.òs{À_x0012_[ÕC³û\u0085À®_x0014_³\u0091¡l§@¨_x001A_ò@\u008b·\u008b@\u0092\u0093õúR-\u0091À\u008b­hv Y\u0082À_x0013_A_x0019__x0007_÷%hÀxP£\u009e%@\u009cÀþ#\u0093sý[\u008bÀ_x000F_Q¯÷R£µÀDB\u0094ó_x000F_H½À:_x0007_{Ë\u008a+ÂÀT\u0081_x0019_òÓA\u009e@ÐøüpÖµ\u008dÀ§vé®ä¨\u0084À:àØ¥m_x0015_¢ÀA¶@d_x0002__¥À\u0081N6!^ÃdÀ´\u009d_x001D_äFõ\u0098À§§À_x0005_t0\u0080À³\u0086ÊDæË±@L\u0080¯Þ\u008ceUÀÆ(Ô\u0084¾¯\u0095@_x0007_ó_x0016_4 _x0010_WÀ<¸ÝÐ\tÌ\u0085@F\u0090dkj{°ÀB\u009d²Úw(\u009fÀ$_x0003__x0007_ _g¸@\u0090FQN]-¨ÀÚ`¡¶õ\" À_x0003__x0005_¸ã©*\"¾\u0080À³9ÍFëa À\u009d>¾©¡ït@«Â\u009a­_x0006_f\u0082Àg;GØ1\u0099\u0082À´e_x000F_|æ_x0019_ÂÀ\u009b/»\u009c #¢ÀÄð_x0014_'¬Ê\u0096À_x0004_óë]_x000C_ý\u0092ÀT1_x0002_ì°¿ÁÀ&Ìt²h\u008d\u009bÀ_x0014_\u008cQÇ'x_x0013_A\u0084«Z²»\u008a_x0013_A_x001C_\u0090Z] O_x0013_AðÞ_x0014_É¨e_x0013_AIl§\u0090dy_x0013_AÂI%Ø3\u008a_x0013_A\u009dÒµ/8\u0092_x0013_A\u0081_x0001_ì)a\u008e_x0013_A_x000D_4wÏkt_x0013_Av4ËgÐx_x0013_A_x000F_uÂ_x000F_¹\u0080_x0013_A_x0006_9\u00869Nn_x0013_Alq§_x001A_Ü\u0083_x0013_A\u009fÌNùar_x0013_A_x0005_ËCô9j_x0013_A\u0080oæ¼Ö\u0083_x0013_A\ta_x000F_\u008bÏz_x0013_A_x0010_V_x0017_-¯`_x0013_AÆì\u009fË)`_x0013_AOî? o^_x0013_A-,å@_x0002__x0004_ë\u0090_x0013_AFz¼_x0014_\u0093d_x0013_A\u008a\u007f\u0094_x0007_U\u008a_x0013_A|ð±\u0095ÆZ_x0013_A^é*õ_x0007_\u007f_x0013_A_x0017_\u008fBc0r_x0013_A_x0003_Þ\u009b<\u0095|_x0013_AÔkÍ½Õv_x0013_A ÖbQZN_x0013_Aç_x001E_6õ³W_x0013_Aè\u0094±_x0014_N\u0096_x0013_AÂ\u0099{<Û__x0013_AÀf±\u009do^_x0013_A£³\u0083© W_x0013_A\u008ee¥Qø@_x0013_A¨f\u0080Zyn_x0013_A\u008aìýíV__x0013_A_x0018_\"¼_x0001_Ý>_x0013_Aòß\u009f¯%b_x0013_AE\u008b»\u008aù\u0096_x0013_A_x0004_M\"ÜÇh_x0013_Atâ¢LÃ\u008a_x0013_A7³8\u008ez~_x0013_A«º`'ÁZ_x0013_A°¾¬*_x000B_x_x0013_A¼~?:¦a_x0013_AGó\u0093Ý´r_x0013_AòþÔ_x001E_c>_x0013_Að@:Ô!d_x0013_Aå\u0097û_x001D_ÏX_x0013_AW_x0016_½ß\u0084o_x0013_A¼ñó\u0091\u0082\u0083_x0013_A_x0001__x0002_\u008b\u0097p\u00808\u0091_x0013_A=ý%\u0081¦w_x0013_A¾¢æ_x0006_ûv_x0013_A\u0081!_x0001__x0001_\u0082!_x0001__x0001_\u0083!_x0001__x0001_\u0084!_x0001__x0001_\u0085!_x0001__x0001_\u0086!_x0001__x0001_\u0087!_x0001__x0001_\u0088!_x0001__x0001_\u0089!_x0001__x0001_\u008a!_x0001__x0001_\u008b!_x0001__x0001_\u008c!_x0001__x0001_\u008d!_x0001__x0001_\u008e!_x0001__x0001_\u008f!_x0001__x0001_\u0090!_x0001__x0001_\u0091!_x0001__x0001_\u0092!_x0001__x0001_\u0093!_x0001__x0001_\u0094!_x0001__x0001_\u0095!_x0001__x0001_\u0096!_x0001__x0001_\u0097!_x0001__x0001_\u0098!_x0001__x0001_\u0099!_x0001__x0001_\u009a!_x0001__x0001_\u009b!_x0001__x0001_\u009c!_x0001__x0001_\u009d!_x0001__x0001_\u009e!_x0001__x0001_\u009f!_x0001__x0001_ !_x0001__x0001_¡!_x0001__x0001_¢!_x0001__x0001_£!_x0001__x0001_¤!_x0001__x0001_¥!_x0001__x0001_¦!_x0001__x0001_§!_x0001__x0001_¨!_x0001__x0001_©!_x0001__x0001_ª!_x0001__x0001_«!_x0001__x0001_¬!_x0001__x0001_­!_x0001__x0001_®!_x0001__x0001_¯!_x0001__x0001_°!_x0001__x0001_±!_x0001__x0001_²!_x0001__x0001_³!_x0001__x0001_´!_x0001__x0001_µ!_x0001__x0001_¶!_x0001__x0001_·!_x0001__x0001_¸!_x0001__x0001_¹!_x0001__x0001__x0001__x0002_º!_x0001__x0001_»!_x0001__x0001_¼!_x0001__x0001_½!_x0001__x0001_¾!_x0001__x0001_¿!_x0001__x0001_À!_x0001__x0001_Á!_x0001__x0001_Â!_x0001__x0001_Ã!_x0001__x0001_Ä!_x0001__x0001_Å!_x0001__x0001_Æ!_x0001__x0001_Ç!_x0001__x0001_È!_x0001__x0001_É!_x0001__x0001_Ê!_x0001__x0001_Ë!_x0001__x0001_Ì!_x0001__x0001_Í!_x0001__x0001_Î!_x0001__x0001_Ï!_x0001__x0001_Ð!_x0001__x0001_Ñ!_x0001__x0001_Ò!_x0001__x0001_Ó!_x0001__x0001_Ô!_x0001__x0001_Õ!_x0001__x0001_Ö!_x00"}},{"$cut":{"chars":105348,"head":"1c22b1aae59408664b2985e0f9ad0dd3_x0001__x0004_&®65Üá_x0013_A!_x0014_ßX\\ã_x0013_AnD_x001D_rÆ!_x0014_ANÛ·ÚÇU_x0014_A\u0096_x0014_G\u0084\u0094_x0003__x0014_AnQX_x000E_9ä_x0013_A·=$\u0080&Ø_x0013_AmTr¡öm_x0014_A_x001A__x0002_\u0084r\u0087\u0090_x0014_A\\uÄ¨MH_x0014_A$°àâ¼O_x0014_Ab_x000C_\u008d\u007fÅ¦_x0013_A\u0089\u0084\u00876£¡_x0013_A_x0015_+_x0002_ì0\u0086_x0013_AÖZÇì¡\u009a_x0014_AÁ'x\u009e+¦_x0013_Ai\u009bÝê;\u0086_x0013_AOÝ\u008bZ_x0006_¶_x0013_Aîó_x001C_T\u008fN_x0014_A\u009d_x0003_\u008eÕÑ!_x0014_AÎi_x000B_¸q]_x0014_A$nê8Jo_x0013_A¹â¢wVÎ_x0013_A=Å×Naj_x0013_AøR_x0018_\u0098_x0017__x0010__x0014_A_x000E_Î\u0091Â_ _x0013_AÝ\u0097¸~\u0095Z_x0013_A_x0011_%\u0099_x0018_ÕË_x0014_A`\u0095V¿ý_x0017__x0014_Al5Å\u009dn~_x0014_A_Ãøÿ¨\u0089_x0013_A÷¨ßU_x0001__x0002_xÙ_x0013_AW_x0017_n\u008f\u0083Ð_x0013_A¹\u008fb4ºß_x0013_AÎìùØn¸_x0013_Aþ_x0007_¿¶\"J_x0014_A\u008bJ^¯\u0093¹_x0013_AÇè×\u0081æÃ_x0013_A[\"\u0090tÍ%_x0014_A>5È\u009a£\u009a_x0013_AÌ\u0082%E[¶_x0013_A\u009dÞ|àí¥_x0014_AªÙ¼\u008b*Ø_x0013_A_x001A_¬Ö\u009aî_x0013__x0014_AÐPßÂrÑ_x0013_A\u0088É_x0014_að+_x0014_A_x0007_]UÃßÜ_x0013_APU¸\u008f\u0085©_x0014_AG\u009aØ_x0001_çX_x0014_A2_ü]v&_x0014_A_x0006__x000F_5\u0089à·_x0014_A\u0086i\u0093>í«_x0013_A_x0011_Úï\u008e\u009aì_x0013_A_x000D_»£Ê_x000E_¿_x0014_A:\u0089<»Lº_x0014_A_x000B_~]\u007fÉ\u009c_x0014_A»_x0001_qÙ_x0001_t_x0014_A_x001C_Sµ¸\\5_x0014_A9yÒRs#_x0014_A\u0081¯<Æ\u0092_x0006__x0014_A°æZ\u0087\u009aì_x0013_Ao\u0082Ó_x0017_F\u008c_x0013_A¤_x0012__x001D_|_x0017_{_x0014_A_x0002__x0005_5Ü¹_x0007_,ì_x0014_Akõì®ßÉ_x0013_A_x000E_;QòÌ¤_x0013_Amb_x0010_â\u0094\u009a_x0014_A>Z_x0006_\u008a\u009f^_x0014_Ahi!¥òâ_x0013_A\u0099«Í¾qî_x0013_A®_x0007_\u008aAëí_x0013_A¡\u008e¿iîU_x0014_A5?ú_x001F_A_x0007__x0014_A`ÀÊÄn\u008f_x0013_A.Ò\u0082_x001C_<ÿ_x0013_A_x000B_â¬ÌÌÆ_x0013_A_x0004_KdÐê¹_x0013_A¬Ý#/Cv_x0014_A ¿Þ9CÈ_x0013_A],ç\u0086ª®_x0013_Af\u0082gR\u007fx_x0013_AÉÚ(CJ\u009a_x0013_A_x0016_¾_x0016_T/_x0001__x0014_AG³&_x000C_._x0003__x0014_A_x001E__x0003_ûæÉ¾_x0013_Aó_x000B_\u0093ê\u009e_x001D__x0014_Aq\u0086Å\u008f±B_x0014_Aéyë²ª_x0013__x0014_A7\u0081ÃL«_x0004__x0014_A2PÑ\t3 _x0014_A¹QÒþÁO_x0014_ArA\u00874_x000C__x001C__x0014_AB®\u0090£ÎK_x0014_A_x0018_Ä\u0094Ø°_x000C__x0014_A¼á\u0088÷_x0001__x0003__x0004_Ð_x0013_AL÷\u0084\u0085\u008c_x000B__x0014_A\u0095\t{_x001D_µ_x0001__x0014_AMä_x001D_\u0086ü]_x0014_AZ1±_x000D_ú _x0013_A¬<h=é\u0093_x0013_AÄ_x0010_Õ±´M_x0014_A_x000D_ø6\u0097z_x0011__x0014_A\u0097¡_x0015_¾_x0006_g_x0014_A\u008b_x0008_\u0080zù\u008b_x0014_Açc\u008cS\u0099ð_x0013_Aü,²ö%8_x0014_A\u0093ßø\u0098]j_x0013_A{æf´Ãä_x0013_A2_x000E_nÿFö_x0013_A?±¼ÛL\u008d_x0013_AË;§\u007f_x0014_\u008c_x0014_Alo=_x000F_\\\u009c_x0013_A>\u0089hè_x0017_ã_x0013_AjJ¦;Bó_x0013_AuÃÚtÃú_x0013_AêÓÇ3ÿ9_x0014_A~\u008e_x0015_\u0080·\u008e_x0013_A_x0013_}\"½\u0086>_x0014_A¤jv¹O´_x0013_A_x001C_ö\u008b_x000D_ÕC_x0014_A_x0007__x0010_Ñ~_x0010_Ø_x0013_Aàìå©Rþ_x0013_A_x0002_u_x0013_M_x0004_f_x0014_Aö\u0082Ìÿîþ_x0013_AN*p3RU_x0014_AeèÉ\u0098ïË_x0013_A_x0001__x0002_m\u008eQÏ\u0089_x001F__x0014_APÉQ0_x0015_]_x0013_A\u008fÌ?)_x000D_ù_x0013_A\u0082_x001C_íÀ\u009d/_x0014_A³\u0099ø©r_x0019__x0014_Aam_x0010_°Fl_x0014_A¤|Ä£P\u0099_x0014_A§E\u008f9\u009ep_x0013_Aã@_x0004_\u008d\u0082\u0094_x0013_A\u0094£c|ö-_x0014_A\u0093_¼,«\u0082_x0014_AÜ_x0017_f-¤à_x0013_A¹\u0092Ý»\u0084é_x0013_AèVêä_x001D_\u007f_x0014_AP­_x001D_é\u0084L_x0014_A\u0080~ \u0097_x001E_¶_x0013_A¦_x001B_{O_x0001__x000F__x0014_Aÿí¤8.k_x0014_A_x0017_åÃFl§_x0013_A.tÕa&ª_x0014_AY-ô(\u0098Þ_x0013_Að_x001D_lB_x000C__x0019__x0014_AíÚ,\u0081G\u0093_x0013_A\u009aïþ9ñt_x0014_A ¨_x001E__x000B_\u008bÂ_x0014_Aú=ô%XÂ_x0013_AH1ÿ¿S5_x0014_A_x0013_¤\t.|ª_x0013_Aô4¯$+\u0080_x0013_AÆ_x000E_Ô2,Î_x0013_AdBQ_x0014_\u008b\u007f_x0013_Aß5_x0017_¢_x0001__x0002_yÁ_x0013_A£ø£_x0005_Q·_x0013_AÁãq\u0091;M_x0014_A%_x001F_aWE9_x0014_Aµ´ÀÑäb_x0014_Aéq_x001F_Ã$Ý_x0013_Ac\u0080t\u0092\u0099m_x0013_Acó\u009b\u0096\\P_x0013_A_x0008_\u0098\u0096_x000D_Û\u0091_x0013_An6I£\u0083u_x0014_A)Ø¿_x0013_¤Â_x0013_AÆAk#v\u0088_x0013_A±\u008dM\u009bê¨_x0013_AEKóÍ@\u0091_x0014_AÐ@_x000D_Tob_x0013_AbÙÅÛãO_x0014_A\u008ci\u0090wCØ_x0013_A_x0001_àû6ñè_x0013_Af_x0005_·cI\u0088_x0014_As_x0018_ôÊ®__x0014_A_x000D_yà_¾_x0016__x0014_A\u0095\u009e°*6_x0017__x0014_A£½B}lE_x0014_A\u009a¯_x000B_Ãb¬_x0013_AOÔÖ\u009c.¶_x0013_A$h\u008d[Ó=_x0014_A¤_x0016_\\\u0099Ú+_x0014_AÇUö÷n>_x0014_A¼o_x001A_¶¥û_x0013_AwdB\u009f¸m_x0014_ADsËVþP_x0014_A_x0014_K%!¼¾_x0013_A_x0001__x0004_Ï¯\u008eNr_x0016__x0014_AL\u0085i_x0002__x0017__x000B__x0014_A$±_x0016_\u008býÏ_x0013_A0äð\u008eº\u008d_x0014_AC£\u008du7p_x0014_AHknz_x000E_Ý_x0013_A\u0085{/úW÷_x0013_AªGÊJKS_x0014_A£úJ×°à_x0014_A!²Ì­Së_x0013_A*x$çû¡_x0014_Aê§¥¿¯_x0018__x0014_A\u009e\u0099þ6Q[_x0014_AÖ-\u009d$¨Ë_x0013_AÚx²TËP_x0014_A_x000C_.Ï\u009cÒ\u0080_x0013_Av&ì\u008a_x0003_,_x0014_AA\u0099¡%_x0007_f_x0014_AF_x0004_¨ÖÅ _x0014_Aý¸\u0084ß¾__x0014_A86ØÇÙ\u008c_x0014_A¥O\"¿Â\u008f_x0014_AÂ(\u008eÓ_x001B_\t_x0014_Aº_x0010_îó!&_x0014_AÎ5Ûrx¤_x0014_Aü_x0004_>_x0007_p¤_x0013_A_x0007_ß|¾rL_x0014_Aªb_x0004_IÚ\u0096_x0013_AEVæ·ù:_x0014_A>@<¨í_x0"}},{"$cut":{"chars":99354,"head":"a87bb58988213467fdf0ed53943fd567_x0001__x0002__x0001__x0001__x0001__x0001_è¬_x0019_A_x0001__x0001__x0001__x0001_è¬_x0019_A_x0001__x0001__x0001__x0001_è¬_x0019_A_x0001__x0001__x0001__x0001_è¬_x0019_A_x0001__x0001__x0001__x0001_è¬_x0019_A_x0001__x0001__x0001__x0001_è¬_x0019_A_x0001__x0001__x0001__x0001_(I_x001A_A_x0001__x0001__x0001__x0001_H_x001A__x001A_A_x0001__x0001__x0001__x0001_è¬_x0019_A_x0001__x0001__x0001__x0001_è¬_x0019_A_x0001__x0001__x0001__x0001_è¬_x0019_A_x0001__x0001__x0001__x0001_è¬_x0019_A_x0001__x0001__x0001__x0001_è¬_x0019_A_x0001__x0001__x0001__x0001_è¬_x0019_A_x0001__x0001__x0001__x0001__x0008_û_x0019_A_x0001__x0001__x0001__x0001__x0008_û_x0019_A_x0001__x0001__x0001__x0001_è¬_x0019_A_x0001__x0001__x0001__x0001_è¬_x0019_A_x0001__x0001__x0001__x0001__x0008_û_x0019_A_x0001__x0001__x0001__x0001_è¬_x0019_A_x0001__x0001__x0001__x0001_è¬_x0019_A_x0001__x0001__x0001__x0001__x0008_û_x0019_A_x0001__x0001__x0001__x0001_è¬_x0019_A_x0001__x0001__x0001__x0001_è¬_x0019_A_x0001__x0001__x0001__x0001_è¬_x0019_A_x0001__x0001__x0001__x0001_è¬_x0019_A_x0001__x0001__x0001__x0001__x0008_û_x0019_A_x0001__x0001__x0001__x0001_è¬_x0019_A_x0001__x0001__x0001__x0001__x0008_û_x0019_A_x0001__x0001__x0001__x0001_è¬_x0019_A_x0001__x0001__x0001__x0001_è¬_x0019_A_x0001__x0001__x0001__x0001__x0001__x0002_è¬_x0019_A_x0001__x0001__x0001__x0001_è¬_x0019_A_x0001__x0001__x0001__x0001_è¬_x0019_A_x0001__x0001__x0001__x0001_è¬_x0019_A_x0001__x0001__x0001__x0001__x0008_û_x0019_A_x0001__x0001__x0001__x0001_è¬_x0019_A_x0001__x0001__x0001__x0001_è¬_x0019_A_x0001__x0001__x0001__x0001__x0008_û_x0019_A_x0001__x0001__x0001__x0001_è¬_x0019_A_x0001__x0001__x0001__x0001_è¬_x0019_A_x0001__x0001__x0001__x0001__x0008_û_x0019_A_x0001__x0001__x0001__x0001_è¬_x0019_A_x0001__x0001__x0001__x0001_¨_x0002__x001A_A_x0001__x0001__x0001__x0001_è¬_x0019_A_x0001__x0001__x0001__x0001_è¬_x0019_A_x0001__x0001__x0001__x0001_è¬_x0019_A_x0001__x0001__x0001__x0001_è¬_x0019_A_x0001__x0001__x0001__x0001__x0008_û_x0019_A_x0001__x0001__x0001__x0001_è¬_x0019_A_x0001__x0001__x0001__x0001__x0008_û_x0019_A_x0001__x0001__x0001__x0001_è¬_x0019_A_x0001__x0001__x0001__x0001__x0008_û_x0019_A_x0001__x0001__x0001__x0001_¨\u0081_x001B_A_x0001__x0001__x0001__x0001_è¬_x0019_A_x0001__x0001__x0001__x0001_è¬_x0019_A_x0001__x0001__x0001__x0001_è¬_x0019_A_x0001__x0001__x0001__x0001__x0008_û_x0019_A_x0001__x0001__x0001__x0001__x0008_û_x0019_A_x0001__x0001__x0001__x0001_è¬_x0019_A_x0001__x0001__x0001__x0001_(Ì_x0019_A_x0001__x0001__x0001__x0001_(Ì_x0019_A_x0001__x0001__x0001__x0001_(I_x001A_A_x0001__x0002__x0001__x0001__x0001__x0001_è¬_x0019_A_x0001__x0001__x0001__x0001__x0008_û_x0019_A_x0001__x0001__x0001__x0001_è¬_x0019_A_x0001__x0001__x0001__x0001_è¬_x0019_A_x0001__x0001__x0001__x0001_¨\u0081_x001B_A_x0001__x0001__x0001__x0001_è¬_x0019_A_x0001__x0001__x0001__x0001_è¬_x0019_A_x0001__x0001__x0001__x0001_è¬_x0019_A_x0001__x0001__x0001__x0001_è¬_x0019_A_x0001__x0001__x0001__x0001_è¬_x0019_A_x0001__x0001__x0001__x0001_è¬_x0019_A_x0001__x0001__x0001__x0001_è¬_x0019_A_x0001__x0001__x0001__x0001_è¬_x0019_A_x0001__x0001__x0001__x0001_è¬_x0019_A_x0001__x0001__x0001__x0001_H_x001A__x001A_A_x0001__x0001__x0001__x0001_è¬_x0019_A_x0001__x0001__x0001__x0001_è¬_x0019_A_x0001__x0001__x0001__x0001_è¬_x0019_A_x0001__x0001__x0001__x0001_è¬_x0019_A_x0001__x0001__x0001__x0001_è¬_x0019_A_x0001__x0001__x0001__x0001_è¬_x0019_A_x0001__x0001__x0001__x0001_è¬_x0019_A_x0001__x0001__x0001__x0001__x0008_û_x0019_A_x0001__x0001__x0001__x0001__x0008_û_x0019_A_x0001__x0001__x0001__x0001_¨\u0081_x001B_A_x0001__x0001__x0001__x0001_è¬_x0019_A_x0001__x0001__x0001__x0001__x0008_û_x0019_A_x0001__x0001__x0001__x0001__x0008_û_x0019_A_x0001__x0001__x0001__x0001_è¬_x0019_A_x0001__x0001__x0001__x0001_è¬_x0019_A_x0001__x0001__x0001__x0001__x0008_û_x0019_A_x0001__x0001__x0001__x0001__x0001__x0002_è¬_x0019_A_x0001__x0001__x0001__x0001__x0008_û_x0019_A_x0001__x0001__x0001__x0001_è¬_x0019_A_x0001__x0001__x0001__x0001__x0008_û_x0019_A_x0001__x0001__x0001__x0001_è¬_x0019_A_x0001__x0001__x0001__x0001_è¬_x0019_A_x0001__x0001__x0001__x0001_è¬_x0019_A_x0001__x0001__x0001"}},{"$cut":{"chars":51396,"head":"aafa34e5396549ae7dc2946d904041ae_x0002__x0004_º\u0090_x001F_°9/ò@\u008f[_x0013_é»\u0098ò@ä\u0097õ!tHò@\u0095\u008b\u009c¼_x0005__ò@¼_x0002_Ë0åÔò@\u00897OìÂ;ò@´¸Ù\u00835Ðò@y\u0088í!§\u0085ò@Ê_x0001__x000E_ì9òò@uFFÇ\u0086ãò@øS±=ú\u0084ò@Õöù¦Â_ò@_x000D__x0019__x000E_\u0080_x0017__x0017_ò@ÏÑc£ß¡ò@¯_x001E_ùæCÍò@+ê_x0004_ègíò@\u009f\u009f¾Ú¬ ò@_x000D__x0001__x0007__x0012_Þ_x0013_ò@­rÔi®×ò@ñ/þë\u007f-ò@S\u0085ÎLõµò@í*ÔFX«ò@_x0004_]âHÏ³ò@v\u009fËÜ_´ò@u_x0016_s`X_x0003_ó@\u009dÕ«~@\u0095ò@óá_x0003_æQçò@æ}Ð÷s/ò@>_x0017__x000F_mÑ\u0090ò@½àu[x¬ò@¿Ê&&.\u0096ò@_x000F_ïæ/_x0004_\t!¦ò@S\u008b_x0018__x0019_\u0087iò@0èÈ;aTò@L;Í_x001A_D\u0099ò@(l\u0095_x0008_ Öò@­(¿ïM[ò@\u0089é\u0083_x0005__x0001_Øò@A¿\u0083_x000E_êLò@\u0092W\u0081\u0096þ«ò@çôKl¡Ñò@\u009f_x001A__x0002_\u0096e.ò@î¬¨_x000B_5\u0081ò@ÄåLå_x000F_áò@^\tÛØ\"yò@cä\u0084'ègò@_x0010_Í\u0082Ño\u0097ò@6å~°å\u0098ò@t\u00819\u0094_x0012_Ðò@É´?¾\u009azò@,\u0098_x000B_Z_x0003_cò@H4NÊ´ôò@_x0004_ÀÝåopò@ôöW*âüò@_x001D_â2ð8|ò@ÏpE\u008cóLò@Ì\u0086Þ¡.eò@\\lwüÿ\u0090ò@TÛy§\u0097³ò@;Ù]P_x001B_®ò@\u0081ô¿]_x0017_µò@Ãcü_x0006_D¸ò@n_x0003_P+_x0007_mò@_x0001__x0004_ñyý\u009fÇMò@\u0092uG¸)fò@õ´Ý:pÅò@¢_x001B_\u0096ÎY¨ò@¼C\u0085 ±fò@nm_x0001_\u009bË\u008fò@®(mWÂ\u0091ò@í_x0006_ì\u0091Tdò@üÍ\u0085åä\u0089ò@y:x~_x000F_\u008fò@¿\u0080Sà\\_x0002_ó@\u0092]µÊÖtò@-\u0093õ\\Z#ò@X¤Õà4\u0085ò@\u0095ßgsB_x0008_ò@_x0019_é\u0082r³·ò@ñ¡¼_x001D_¼¬ò@o\u009eÐ_x0016_|£ò@ñ1_x001D_gÕÒò@_x0003_\u009bú\u0086r(ò@±_x0010_W\u0090&_x001A_ò@\\©hrvCò@÷Y£\u0082\u0084Lò@S_x0011_\u008dk_x001F_=ò@_x0019_ºýJ«Òò@u&_x0017_Á_x000B_¶ò@_KüMM²ò@®n\u009fÂD+ò@_x001A_C_x001E_o;£ò@Oî3\u0083nwò@Ó4â\u009d\u009e¦ò@\u0096À¬ç_x0001__x0004_0¶ò@hà_x0016_a&Iò@_x0006_\u0082\u008bö§¨ò@,ÝûÂ_x0002_äò@þå_x000F_öB1ò@°§\u008bai\u0086ò@Ñ_x001C_\u0084Åp\u009bò@\u0094¼\tr_x0012_îò@\u008a\u0095à}_x0015_«ò@¯b\u0093# Þò@áK6_x0007_b§ò@í+V3{\u0096ò@¸7yª_x001F_Òò@×Sú\u0089_x0017_Dò@\u0099/Ï!9Úò@,ìÑË\u0082µò@º_x0001_°_x0017__x000F_Zò@,ÁÆ )ÿñ@r/ì>Iôò@\u0089_x001F_CîkËò@_x0003_;üuÿ@ò@E\"P{e«ò@\u0086\u0082þïj\u008cò@¶'±Õ_x0019_Õò@bg½Ñ_x001F_¯ò@Í0_x0010__x001E_«Bò@_x0016_|ÇÙ­\u0081ò@K°_x001C__x0014_9cò@_x0012_I\u007fô(Þò@\u0095«¶ J\u0091ò@`»Vº¥\u0098ò@Ú^?n³Ûò@_x0002__x0003_Ù»Ð_x0002_È\u0092ò@{Ý±\u008e_x000B_ªò@Ì!vMNÈò@¸Á\u0082åù±ò@G\u0080_x0018_\u009b¹rò@øAy\u0086ô\u0092ò@Ó%\u009b*\u0089;ò@-_x0005_=#gvò@_x0015_$(:qÕò@G_x0008_;O_x0016_öò@^ÄF\u009aiZò@¤#_x0008_\u0099S\u0096ò@´h#nª§ò@\u008a\u0097òÏ¨Æò@B!bÖ\u0095/ò@Ü«_x0015_Ox ò@°KÍ\u0081ª]ò@Ò¯\u007fFî¸ò@]øv_x001E_Ðåò@\u0098\u0089_x0015_\u009cÚdò@I[_x000D_~\u0080µò@_x0015_u9Ô`uò@¢\u0099¶7R¿ò@Z\u0081ÚH_x001A_iò@_x0001_VvY²\u008aò@Z¡¬ù4aò@ð:î²_x000C_ãò@RCk'ûÊò@s4àxM³ò@Þ¥Ä_x000B_XQò@i%\u008d_x001A_\u009b×ò@_x0015_\u0094\u0092ø_x0002__x0003_V|ò@À\u0092Ú8\u0082\u008cò@\u008b_x000F_GVm¨ò@Y_x0015_;®y\u0097ò@ÿ<ûò\u0092·ò@\u008bJ©Ï(Lò@ÛxÁ\u008c\u0082`ò@út¶%_x001D_\u009fò@¦\"\u009f~_x0010_#ò@Z_x000B_Ð_x001A_\u0088\u0098ò@É ¤\u0089Ñ½ò@Ë_x0018_¦\u0095\u008aÇò@HO`b*£ò@\u0092Û\u0088~_x0017_\u0099ò@|0?¾_x0015_!ò@/$\u009ec\u009b\u009fò@cà-\u008a,Äò@Ê\u008b:Ð_x0013_Nò@ËäJ\u0096_x0018_\u0082ò@äz/Ùv¦ò@¥-Pô¨_x000E_ò@_x0013_PmOkºò@O\u009d0adtò@Û]~oÂ_x0012_ò@?_x0003__x001A_¨_x001D_\u0093ò@k_x0001_\u008bå|Æò@\u0088_x0007_\u0098Ç_x0014_Íò@!oä\u0083®Lò@éÌÞ_x001D_Påò@àg+t¨rò@!v\u009d\u0084Ùeò@*È_x0019_YK¥ò@_x0001__x0002_¦À_x001C_\u008eÎ\u0094ò@$ù{ëòzò@ö¨ì¼p\u0091ò@q|GEKtò@u¨|:_x0010_Èò@\u0092ì\u008c=\u008fÍò@O?OÔ_x0019_ªò@«k\u0082É'rò@\tXÜ¦«pò@Ï_x001E_\u0081ÆUgò@²iê_x000F_á\u0083ò@ÒÔBìr\u009eò@8;rìwÑò@\u008bÕ£ÊÔ¦ò@;\u0091Ë_x0017_]\u0097ò@_x0005_è\u0093³¦{ò@2Éznî¾ò@IÖ_x0007_k_Öò@q/\u009döº\u0091ò@q&s¯Â¦ò@6]û\u00904_x000F_ó@_y_x001C_ôÉnò@Ò÷2ÿz]ò@¤d\u0093QOñò@pc¹\u0097_x001B_\u0080ò@¢ì)_x001A_Ä\u009eò@Ö\u0091o$ìAò@\u0097_x001B_\u008f´_x0007_Vò@_x0007__x0004__x001F_´Ü\u0090ò@\u0084\u0095cQP\u0080ò@iÕ«Pøuò@_x0006_n¹ó_x0001__x0002__x0016_ññ@oÆ\u009b_x001E_2xò@_x0008_çä\u0087é_x0007_ò@ºíãÄ(°ò@ç¿¦îÉ\u008eò@_x000B_Ê\u0082~1Îò@ú½¤ø«zò@y{º¯a_x001D_ò@úa_x0017_(_x000C_>ò@_x001E_ èm2ïò@²aW_x0015_â\u0096ò@¿Ù,÷;Ùò@JÆ¡_x0016_ÌUò@·Â®\u0081´¬ò@_x0005_p\u0092)b_x0013_ò@ièQQ_x0004_fò@_x0018_ØÂ\u0099ìÖò@VóÿÇX¶ò@áO=ùv\u0091ò@_x0007_Q¶_x001E_ÆQò@_x0006_HN\u0090ë~ò@î_x0015_-.Y\"ò@éA\u0087]ièñ@_x0008_.úEä\u0087ò@ú[¥\u0093\t¢ò@hðü¦q_x0018_ò@_x0014_wÃÛ\u0095qò@\u008d_x000F_L·w\\ò@\u0099ç?þ_x0001_tò@Æþ_x0016_R½úò@{òÁ,W½ò@ õdä\u0084>ò@_x0002__x0007_Ó,¢E\u0095{ò@I[Ö_x001A__x0003_çò@\u0090_x0004_Î\u0091¼¿ò@ÊÁ_x000F_!zÏò@?3FQ_x0006_Ôò@^eÝða\u0098ò@á5\u009apJ¤ò@w_x0005__x0014_\u009b^Äò@Ú;_x0014__x0016_=\\ò@_x0006__x000E_y_x0010_p_x0001_ó@Lê_x0015__x0011_f4ò@_x0018_(\u0087\u009a_x0016_tò@Üýùö¢aò@e:\u0088Kè\u0094ò@{ºôýo£ò@\u0080Ñ§ÐÒlò@d¶<Í0Ýò@­h\u0087A\u009dþò@Y\u0088ôXÈ©ò@}¥³CÒ_x0018_ò@am#ÄÆÎò@Ï_x001C_Ï_x0002_Ç|ò@\u0095+GFÄXò@_x0010_ûú\u008f\u009foò@^ö_x0001_ÐI^ò@ò­}_x0016_8üò@$ù_x000D_Kÿ\u008aò@_\u009f.@ùOò@¤}ÔyI\u008cò@q\u007f1gâ\u0095ò@_x000C_ ÁöÎ_ò@ 3\u0082Ç_x0001__x0002_öiò@\u0097_x000E_nÑ_x0001_Iò@oB\u0086aÌgò@]tô>NYò@^Ò¦\u0085i=ò@i\t _x001B_÷:ò@_x001A_ù\u009dûQkò@ÖªÒS\u0099tò@÷í_x0013_qû\u0094ò@PÄ\u0082Ñÿ\u0081ò@\u0097\u007fþ\tñºò@O_x0013_\u008f_x001C_~\u009aò@ÕU²àÍoò@\u0089\u008fÆ_x001B_¸Tò@È\\·Á£_x0008_ò@\"²WºP_x0006_ó@?_x0010_ÿ\u0098j\u0092ò@B9¥ê§\u0089ò@O0¤MÇRò@ñò\"ã²\u009fò@_\u0083\u0087\u009eYcò@6\t6Ýü\u009dò@O¶_x0006_s;îò@½À:h*Aò@ÜèþVCQò@\u008a_x0006_#¾Á´ò@)iz%`mò@_x0004__x001C_\u009fû\u009eDò@þworS¢ò@>\u009c^Rc\u0087ò@Òr_x001F_÷Ièò@_x0017_ðV_x0016_SÄò@_x0001__x0004_\u009dY_x0010_þ\u0093âò@_x001A_\u0087á.\u0082\u0086ò@À×_x0002_c_x000D_ºò@_x0012_\u0081\u007fI\u0095_x0003_ó@\u0095dÍ¦p©ò@öyÙ]AÝò@éÉ:«u\u0087ò@\\+"}},{"$cut":{"chars":73290,"head":"9d5ce0827ecf7157a24caad4cefbc13d_x0004__x0007_â\u0088_x001A_gÂµñ@²_x0013_Þ<Ò_x0015_ò@ÏØ\u007f_x0007_é¾ñ@¬B_x001B_JÝ_x0001_ñ@#í¿<\u0084rñ@_x001D_avrWåñ@°&KºW¶ñ@ ô^K±òð@L=q­\u0091Fð@\u009bgaw»Æð@F\u0082xvK\u008fð@HrøM~_x0015_ñ@L]¼F[Öñ@FXç_x000C_0@ñ@_x0002_¿7C\u009apñ@Yÿ¬É/_x0014_ò@2Ä%Ý7üð@Øã{_x001A__x0018_\u009cñ@'/\u009f_x0015__x001D__x0003_ñ@\u0092]N\u0088A\u0090ñ@>Ü\u0080:>!ò@/à¹¿_x0005_(ñ@£Ì*_x000C_G·ñ@ßÝÑDÿ\u0090ñ@M\u009eQ\u009c\u0093´ð@_x0006_ê³Ý\"_x0013_ñ@xåJg=qñ@ø\u009e®-¢`ñ@þÈ8Ís_x0002_ò@\u008dµ¢\u009cL©ð@Îÿ{aq=ñ@þ[_x0016_Ê_x0002__x0004_\u008b.ñ@ùpöy_x000F_=ò@\u009d_x0008_«_x0011_#Cð@\u0086à¿N&Òñ@Ì ¦`©\u0091ð@_x0005__±WÈ½ñ@[\u0081M0\u0085\u008bñ@:H\u0094.&ôñ@ÚMo®W_x000B_ñ@Jç²D`gñ@.Ñ8_x0016_\u0086äñ@#JÒ\u008cË-ñ@ü_x0005_Q\u0094¦_x0012_ò@:_x0016_É+´\u0081ð@m\\_x001C_\u0089É^ñ@½=\u0081µµ}ñ@_x0002_zlR}Yð@b_x0005_v±uÖñ@è(2ª_x0002_9ñ@\u0087·c_x001C_Tið@¿\u0092\u009dk»=ñ@\u0084ã¬Y_x0003_Lñ@tªÝ_®îñ@ä#üfÅ\u0087ñ@fê\u0097_x000C_L_x0010_ò@¯_x0006__x001C_||<ñ@;Ëtcn\u0080ñ@\u009c²X_x0008_7Õñ@Ä\u009f_x000F_Ö§_x0017_ñ@ïº_x001A_jLÃð@yoú!¤Hð@²ÅR\\_x0001_¢ñ@_x0001__x0005_\u009a_x001B_\u0097\u0085u}ñ@_x0012__x0002_\u008a_x0010__x0016__x001E_ò@Ï\u0084¥_x001B_Ô¼ñ@¡N_x0012_^µ`ñ@\u008bÂÊâ {ð@«³^Ç=>ñ@gl_x0011_\u009fv\u0080ð@~_x0004_\u008d\u0097F\u0088ñ@Õ4ñFn_x001B_ñ@_x0012_úsLÜ\u0081ñ@ÂÁðT+<ò@En\u009d^Wäñ@_x0015__x0019_âÿE`ñ@_x000F_\u0089\u009c9·jñ@o«Ýx{\u009cñ@\u008eú¥.¸wñ@$y3óq_ñ@-\u009b\u0098$§°ð@|_x0017_f_x0010_D\u0082ñ@}V»\u0097öiñ@_x001C_ÆµÜ\u0088#ñ@_x0006_c É>&ñ@W_x001B_ø\u008f \u009bñ@_x000C_?\u009c·_\u0089ñ@M/TÙ_x000B_çñ@Ñ%ô!Ì<ñ@_x001E_¦ûý\u008fÿñ@\u0091lðù_x0003__x000D_ñ@_x000D_,ï`\u0088öñ@ß22ðÎ¡ð@Åà¨+U¦ñ@ú\u008bn\u008b_x0001__x0002_Tëñ@CÌ03Ú{ð@(=@\u0080xBñ@ã´Ú\u009dC\u0087ñ@Ïiú\u0091Zañ@UÒk\u0087²Cñ@¶_x0017_P_x001F__x000F__x0019_ò@bìÍäO_x0005_ñ@_x0006_©_x0008_Ïráñ@_x0019_ö5Ã¿Pñ@_x0001_r\u0087ûMZò@wÐ\u0085_x000B_\u0080'ñ@\u009c£R`Æ_x0004_ò@\tíZ_x001B_½_x001F_ñ@u_|_x0013_|üñ@\u0087Þ.¿âËð@\u009cü}}±äñ@\u0087t6jäÁñ@\u008eJ_x000D_\u0084Tyñ@(ÂÏWí]ñ@ÍKSuçnð@_x000C_Â_x001E__x0016_àëñ@x_x0017_Á\u0084_x000F__x001E_ñ@·\u009c¦Có`ò@\u0097\u0097R~NLñ@~_x0007_'iî\u008eñ@Ì Lü=+ò@-FrãâÅð@\u008eô* \u0099Zð@ÅdÂûb\u009fð@\u008c\u0097_x0013_ø¸Ëñ@_x0019_Ð_x0012__x001E_3Àñ@_x0001__x0002_ß©\u0094K}Üð@\u009d\u008f\u0094_x001B_>Éñ@{éqcB_x0008_ñ@_x000C_²5\u0089nÑð@\u008aF¡_x0001_úQñ@èµFé\u0088Rò@{Ä-*_x0017_0ò@\u008e*WKÜïð@½c§)³,ñ@ÁÚñ\u0093\u0085_x0012_ñ@è0R;z\u0081ð@ßO\u008d\u0097_x001E__x0015_Ö@ßO\u008d\u0097_x001E__x0015_Ö@ßO\u008d\u0097_x001E__x0015_Ö@ßO\u008d\u0097_x001E__x0015_Ö@ßO\u008d\u0097_x001E__x0015_Ö@ßO\u008d\u0097_x001E__x0015_Ö@ßO\u008d\u0097_x001E__x0015_Ö@ßO\u008d\u0097_x001E__x0015_Ö@ßO\u008d\u0097_x001E__x0015_Ö@ßO\u008d\u0097_x001E__x0015_Ö@ßO\u008d\u0097_x001E__x0015_Ö@ßO\u008d\u0097_x001E__x0015_Ö@ßO\u008d\u0097_x001E__x0015_Ö@ßO\u008d\u0097_x001E__x0015_Ö@ßO\u008d\u0097_x001E__x0015_Ö@×£p=f\u009aÛ@ßO\u008d\u0097_x001E__x0015_Ö@ßO\u008d\u0097_x001E__x0015_Ö@×£p=f\u009aÛ@ßO\u008d\u0097_x001E__x0015_Ö@ßO\u008d\u0097_x0001__x0002__x001E__x0015_Ö@×£p=f\u009aÛ@ßO\u008d\u0097_x001E__x0015_Ö@ßO\u008d\u0097_x001E__x0015_Ö@ßO\u008d\u0097_x001E__x0015_Ö@ßO\u008d\u0097_x001E__x0015_Ö@ßO\u008d\u0097_x001E__x0015_Ö@ßO\u008d\u0097_x001E__x0015_Ö@ßO\u008d\u0097_x001E__x0015_Ö@ßO\u008d\u0097_x001E__x0015_Ö@ßO\u008d\u0097_x001E__x0015_Ö@ßO\u008d\u0097_x001E__x0015_Ö@ßO\u008d\u0097_x001E__x0015_Ö@ßO\u008d\u0097_x001E__x0015_Ö@ßO\u008d\u0097_x001E__x0015_Ö@ßO\u008d\u0097_x001E__x0015_Ö@ßO\u008d\u0097_x001E__x0015_Ö@ßO\u008d\u0097_x001E__x0015_Ö@ßO\u008d\u0097_x001E__x0015_Ö@ßO\u008d\u0097_x001E__x0015_Ö@ßO\u008d\u0097_x001E__x0015_Ö@×£p=f\u009aÛ@ßO\u008d\u0097_x001E__x0015_Ö@ßO\u008d\u0097_x001E__x0015_Ö@ßO\u008d\u0097_x001E__x0015_Ö@ßO\u008d\u0097_x001E__x0015_Ö@×£p=f\u009aÛ@ßO\u008d\u0097_x001E__x0015_Ö@ßO\u008d\u0097_x001E__x0015_Ö@ßO\u008d\u0097_x001E__x0015_Ö@ßO\u008d\u0097_x001E__x0015_Ö@ßO\u008d\u0097_x001E__x0015_Ö@_x0001__x0002_ßO\u008d\u0097_x001E__x0015_Ö@ßO\u008d\u0097_x001E__x0015_Ö@ßO\u008d\u0097_x001E__x0015_Ö@\u0081\"_x0001__x0001_\u0082\"_x0001__x0001_\u0083\"_x0001__x0001_\u0084\"_x0001__x0001_\u0085\"_x0001__x0001_\u0086\"_x0001__x0001_\u0087\"_x0001__x0001_\u0088\"_x0001__x0001_\u0089\"_x0001__x0001_\u008a\"_x0001__x0001_\u008b\"_x0001__x0001_\u008c\"_x0001__x0001_\u008d\"_x0001__x0001_\u008e\"_x0001__x0001_\u008f\"_x0001__x0001_\u0090\"_x0001__x0001_\u0091\"_x0001__x0001_\u0092\"_x0001__x0001_\u0093\"_x0001__x0001_\u0094\"_x0001__x0001_\u0095\"_x0001__x0001_\u0096\"_x0001__x0001_\u0097\"_x0001__x0001_\u0098\"_x0001__x0001_\u0099\"_x0001__x0001_\u009a\"_x0001__x0001_\u009b\"_x0001__x0001_\u009c\"_x0001__x0001_\u009d\"_x0001__x0001_\u009e\"_x0001__x0001_\u009f\"_x0001__x0001_ \"_x0001__x0001_¡\"_x0001__x0001_¢\"_x0001__x0001_£\"_x0001__x0001_¤\"_x0001__x0001_¥\"_x0001__x0001_¦\"_x0001__x0001_§\"_x0001__x0001_¨\"_x0001__x0001_©\"_x0001__x0001_ª\"_x0001__x0001_«\"_x0001__x0001_¬\"_x0001__x0001_­\"_x0001__x0001_®\"_x0001__x0001_¯\"_x0001__x0001_°\"_x0001__x0001_±\"_x0001__x0001_²\"_x0001__x0001_³\"_x0001__x0001_´\"_x0001__x0001_µ\"_x0001__x0001_¶\"_x0001__x0001_·\"_x0001__x0001_¸\"_x0001__x0001_¹\"_x0001__x0001__x0001__x0002_º\"_x0001__x0001_»\"_x0001__x0001_¼\"_x0001__x0001_½\"_x0001__x0001_¾\"_x0001__x0001_¿\"_x0001__x0001_À\"_x0001__x0001_Á\"_x0001__x0001_Â\"_x0001__x0001_Ã\"_x0001__x0001_Ä\"_x0001__x0001_Å\"_x0001__x0001_Æ\"_x0001__x0001_Ç\"_x0001__x0001_È\"_x0001__x0001_É\"_x0001__x0001_Ê\"_x0001__x0001_Ë\"_x0001"}},{"$cut":{"chars":52140,"head":"8f459fc817371aca88297c33feea77b8_x0001__x0003_È\u008a¶ÎÖ0÷@aTØ !_x0018_÷@ÅÑ_x0008_<sM÷@¾ÈËà`9÷@E:5Ë¯6÷@àÅ\"\u008eÌ/÷@ÚÉ_x001C_l;Q÷@_x000C_NìÕë0÷@ij¡u³4÷@s_x001F_\u0085û_x001E_?÷@=¬É_x001C_\u009d/÷@¯_x0006_©ä_x0010_#÷@_x001A_6_x0017_Ä­&÷@ÊR\t¢_x0002_P÷@çª5ü\u009a0÷@¸½ì\u0093_x001F_C÷@y-T¥;/÷@¸^\u009dá\u0085?÷@TòOWÇ;÷@*¿ÿ!\u007fB÷@àyó@\u0095+÷@ÀÃ_x0004__x0004_ý0÷@#\u0088«q_=÷@Sâ_x000D_µ¬=÷@S³0²E'÷@ÿ\u009bE_x0013_Þ&÷@ÛõW|\u00892÷@úl´\\}=÷@)Í÷õ\u009fH÷@_x0002_cÒ\u0099\u00995÷@fÌ_x000C_2´N÷@YÁ\u008d\u0090_x0001__x0004__x0012_D÷@\u0082_x0010_C\u0098`P÷@M6Æî\u0096A÷@­Ê t\u0082_x001E_÷@cì _x0006_JP÷@µÕg×y8÷@l\u007f¾e¬<÷@_x0002__x0019_µ\u0097ø8÷@¤Ê}_x0018_!&÷@®rIÜñ@÷@T+ ¬5.÷@P_ë²\u0094+÷@Qý$Ì°D÷@;ÜlÅÏM÷@Î\u0086[K{F÷@_x001E_0ã\u0086R=÷@Àæá_x0019_Õ_x001B_÷@©F>Z?M÷@ðBÁþ_x0003_2÷@u_x0010_\u007fR_x0007_*÷@6]ýÐ_x0006_:÷@_x001E_Ä\u0083cdI÷@ÀÆ\u009fd»*÷@]\u0081¥\u0098_x000F_Q÷@lvN_x0010_ï_x001E_÷@ò\u0092;_x0007_ø,÷@¢\u0091\u0081\u0081y1÷@½$\u008c)ÁM÷@åÎKjÅG÷@J_x0019_è4a!÷@¿+£_x0011_\u009fB÷@è/ý|ÚE÷@_x0002__x0004_Ã­rs]8÷@_x0004_À:_x001B_ÒF÷@\u0089.;/U0÷@7Qú7 G÷@Ó_x0017_§ÞkH÷@Ýb¡iI_x001B_÷@Ã \t_x0010_\u0086_x0018_÷@i¥\u0096ÒÐ8÷@±Ýû¼kQ÷@\u0081\u0085³\u0090P+÷@_x000D_^¯C»L÷@«EslÀ(÷@D\u0086<\u008eXJ÷@¥\u008eÿ êH÷@*m_x0001_61=÷@_x000B_ù\u0090\u0083\u008cP÷@O»ÿºd3÷@_x0017__x0003_?2,B÷@éÄQÖ/?÷@mY_x0011_¿_x000D_:÷@ãfSÇÎ?÷@ÍU\u008f_x000D_8)÷@»\u0094_x001F_*2=÷@|Ç{|P8÷@ð6\u0098\u0092>K÷@B\u0086{1_x001B_?÷@²E\u009a\u0085o9÷@§Ð/g¢-÷@Ñ-ß|;B÷@´_x0012_»_x0016_4<÷@\u008e_x000B_Uø¹G÷@b¥ÇZ_x0002__x0003_\u009a ÷@ þ_x0003_\"¯3÷@×¨¾Ì+?÷@¡dU_x0017_¥/÷@_x000E_B\u0082\u008e¿&÷@_x000F__x0006_¤±#;÷@ãg\u0093eÖ:÷@\u0089v»ÿKA÷@U\u0084TrªF÷@Éc[\u0095VH÷@F_x001E_\"§g_x0018_÷@\u0093ï\u0099Þr/÷@\u0085_x0018_ì_x000F_ëM÷@Çeëº2/÷@]ý7_x001B_^7÷@_x0015_\u008aC_x0001_Ù4÷@:\u0098þu³>÷@_x0019_¤W_x001F__x0015_(÷@\u0098\u009dùú63÷@±e_x001F_\u009fd5÷@SÜÇ§Ó_x001F_÷@sHcøÖ6÷@>\u0094W|Ü3÷@ö\u0081Å\u0096ã3÷@I²_x001E_SN6÷@à\u009c¬¢ÝU÷@¸Õ_x001B_Z\u008a)÷@\u0091\"_x0001_º{&÷@%_x001C_ë\u008eÿB÷@\u008eEJ_x0006_ûE÷@n£ïÒND÷@[K`&O5÷@_x0001__x0002_\u008bÍp\u008bV?÷@o$P_x001A_('÷@¿6Z·W&÷@½*rMkM÷@,¾Q_x000B_\u009cK÷@Â\u009f\u008aô(A÷@§Ã\u0098âxE÷@¬_x0017_È\u0083\u008f=÷@K§tã\u0090I÷@ñ¾m\u008fq5÷@âbìWÛ5÷@^V\u0093§\u00873÷@ûZæ*<G÷@µ\u008a]­ÎA÷@¥_x0008_\u009a¢_x0008__x0016_÷@\\pë_x0006_ó*÷@_x0008__x0016_ÚèÒ:÷@æ¦Ôê\"(÷@&ÆÊEÆ?÷@_x0004_\u009a_x0019_\u0091\u0095E÷@®/¤w(>÷@î$!ûÀT÷@\u0080Gä¤þ6÷@\tí \u0083Ò_x0016_÷@Nl²\u009e_x0006_I÷@_x001E_åÓ\u0097«@÷@B7tÛå>÷@wüj¿û'÷@Üè_x0001_W×7÷@\\DÊ:u;÷@¥&U(v(÷@Ó©Rc_x0001__x0004_ñ_x001F_÷@\u008aÿh\u008b9L÷@ö\u009b§î|E÷@>KRÆÕ>÷@þ0ÂZ\u009e/÷@Ù\u0080}º,?÷@­¸_x001B_£_x0008_:÷@Cè\u0084_x0008_Ã_x0011_÷@.°\u008a63.÷@{²ì<È_x001F_÷@¼Új\u009d\u009b4÷@ÖzÄè¬2÷@_x000D_¦n_x001C_s.÷@_x0006_zXÎ_x001B_N÷@a\u008bì_x000F__x0017_$÷@ß°o{²F÷@g\u0089S\u009d\u009aE÷@_x0012_¹õ2±C÷@_x0001_O_x001B_äå6÷@\t2×«_x0006_$÷@~ñ\u0089ua%÷@±ÔFw\u008e-÷@u¦ö[_x0003__x001C_÷@_x0005_á`ïu-÷@8'_x0007_VÏ=÷@Øé_x0002_ì\u009fS÷@© È^ØT÷@·Ð\u008cF¹0÷@Q_x0018_\u008f_x001A_!-÷@¤é_x000B_¼é-÷@á-cÐ½+÷@´_x0003_W«èL÷@_x0004__x0005_{$XIæ=÷@è_x0002__x0003_¢\u0098*÷@²_x0016__x001E__x0012_Þ_x0014_÷@õ_x0012_ô«_x0012_I÷@ìeQ^\u0084K÷@_x0005_ÞH\u008b§6÷@_x0018_\u0090\u0096(¥D÷@ðÜöÁ_x0013_Q÷@È&Â\u0082>L÷@\u008bË_x001E_Í(*÷@wg!¾\u0092.÷@%_x0004_Ç_x0007_Õ:÷@Ê_x0019_\u00873Â_x0018_÷@·íýÈ¬,÷@_x0001_÷å_x001D_#&÷@\u009c|6|µF÷@Ó_x0017_IÍªR÷@âsÖÑ 4÷@U)Û(:<÷@=\tc´_x0010_3÷@Ø®_x0016__x0011_vT÷@N\u0080\tù`Q÷@taÙ}c&÷@éòû_×K÷@ùwÒÎ,2÷@ê}U×=(÷@v%_x001B__x000F__x0019_3÷@_x001B_&es_x0015_5÷@G*ô3u7÷@²_x0008_ÄUÉ?÷@Á\u009c_x000E_\u008cäA÷@\u009c_g<_x0001__x0002_G2÷@O²\u0094_x000B_ìJ÷@a\u0099Û_x0008_¤=÷@_x001A_+½±Ø+÷@ë¢8x_x0010_$÷@H^\u00915_x0003_?÷@fÎ\u0082+G/÷@l\u0090e©¨V÷@\u0082)s,V(÷@ªÍuÉ_x001E_F÷@u2í8_x0018__x001B_÷@_x0016_\u0084\u0082êv_x001C_÷@#\u009d.Ï_x001B_F÷@õ_x001F_*òÐ-÷@_x0006_wkê_x001A_<÷@\u0095á;\u00908&÷@^[N_x0014_::÷@í°\u0095>\u0092$÷@½>±T¬6÷@\u0089_x001B_\u0095_x000F_§_x000F_÷@\u008e¢$÷ñ_x0014_÷@_x0017_Ò\u008f7¥\"÷@\u0080æÐ\u008bl>÷@§ü<{ê9÷@Wf_x000F_è$(÷@_x0011_õRª[,÷@_x0008__x0002_tÐ6=÷@\u008bqQ\u0088G-÷@Ëo%X&1÷@ü\th\u009c¢:÷@îI_x0003_ÒØV÷@XQ ­\u0096P÷@_x0004__x0005_'¨È_x0015_+>÷@_x001E_%é1Î>÷@@; &-B÷@J\u0091¶}À)÷@Z\"_x0002_[F,÷@_x0016_Û¦_x001E_S/÷@³Ù>?gF÷@ñY]û;?÷@ñ\u008cX_x0001_AM÷@PX<ÑwA÷@Q³Bó_x0012_#÷@BdÓ¾8R÷@ÆßÄ°¥S÷@_x0015_QZz(1÷@TH¬>²5÷@_x000C_\u0082s\"\tG÷@\u009b_x000B_\"0\u00908÷@Ü\u0085)þLK÷@1_x0006_Üp\u0092D÷@_x0004_S_x0007_³V3÷@1)mlS4÷@'cW`#0÷@Ô»È_x0011_$K÷@FÓµ¢b8÷@ðLÈ(þ9÷@¤\u0083vh\u0085*÷@_x001B_ËØ\u0088[E÷@Éí'ªÂ9÷@»O_x001B_Ü¨0÷@5¸5DüF÷@\u008bmk\u0081_x0003_F÷@ÅN3__x0001__x0003_G+÷@\u0093RüÂÞ;÷@ò¡_x001A_.p9÷@¾\u0080\u008c&}_x001A_÷@\u0084A:Í\u009d=÷@Ì_x0006__x0004_Cø@÷@\u0089äH\u0089ä?÷@DàELÄ\"÷@\u0088e-áe7÷@\\¹_x0015_ë_x0016_B÷@{Á³}í ÷@þo^-\u0096=÷@3§MD\u008d<÷@-s\"6(,÷@ã7â)mL÷@º\u0086Pð_x000E_F÷@\u009a\u0090L~<@÷@A\\6è4;÷@;dX!ÏG÷@Cä_x001C_\u0091DP÷@¶ùeÒOC÷@h_x0018_\u008evî?÷@_x0002_7ïGÈL÷@.UBaú3÷@\u0083ï*_x0012__x0013_S÷@¯TW_x0008_ÿ6÷@mÊô­Â9÷@_x001A_RnxLD÷@©üö)\u009f8÷@\u008c× [ÈF÷@\u0099ËH¹_x000E_<÷@`_x001F_pý_x0013_B÷@_x0001__x0002_6ý¨mi<÷@[êÍN^K÷@Ò\u009e!_x0008_hE÷@s./pTI÷@§@4Ã_x0001_@÷@\u0098CÍ-_x000C__x001C_÷@ÿ_x0010_ªR±<÷@C'ÒnaA÷@æÙbò¤ ÷@_x0012_æ¨-éD÷@\u0097=¤\u0099½/÷@ÖZ_x001A_D2F"}},{"$cut":{"chars":64920,"head":"121daeccb871dded65b2b76dabc3d46b_x0001__x0005_ÄÙ+¼ý®ö@¨\u008eÓ1ún÷@_x0011_6û:@_x0002_÷@c\u007fÚl_x0014_]ö@¾@_x000D_5\u007f\t÷@I\u0085°hÂP÷@¯R_x0013_[b?÷@_x0004_tñU\u008d¾ö@îy¯F±,÷@I§\u0080\u008d\u008e(÷@\u007f_x000F_/è¬\u0094ö@ÎÇÏÌ§Öö@°E`â¢Öö@\u0089û\u0088å¯_x000F_÷@û¤\u009c}'¤÷@p_x0003_YÆ\u007fâö@Èeî\u009eOm÷@G<P^(_x0010_÷@^bnÑ\u0080Øö@$ØK\u009a_x0001_I÷@øÔ®´¡1÷@sï_x0014_ä¢Úö@mËF\u0086Gd÷@ÊNî\u009a÷÷ö@!M½_x000F__x0014_.÷@kQ\u0094\u0097êV÷@.Ê](ùM÷@¬¾Vyjºö@É2ùµ \u007f÷@Ë«_x0007_*æW÷@QÉÇçWj÷@,ðÌ¶_x0003__x0004_mãö@n]$H\u00842÷@\u0086Ü\u0083\u0089i¡ö@û\u0089\u0096<³_x0001_÷@y(H½30÷@Ç_ÐH*\u0092÷@_x0006_Û»gÕ_x0006_÷@|{\u0091[R ÷@Ì\u0093{D­Æö@%ß\u0087_x0018_ËI÷@Ðáy©\u00941÷@w¡}Õm»ö@_x000F__x0017_±·©\u009bö@Éù%Ç_x0004__x001B_÷@_x0019__x0002_óÚI^÷@è1¨9¤B÷@]Ï¿_x0003_yi÷@°O1\u008b\u008eóö@\u008aÜæc¦ìö@\u008e' _x000E_C&÷@\u0080_x001C_å·¼Üö@ú\u008c*åÐ9÷@ìâaÂ7Ýö@µ\tÑ_x0007_@øö@_x0001__x000F_½Ý¶I÷@×§Vq½;÷@_x0012_a³¶_x0019_±ö@ÑýÁùBU÷@:\u0095\u0082<ûáö@\u0093-_x001C__x000D_½h÷@G\u0090\u008a\u008aÄ\u0083÷@I_x001B__x0012_\u0099þÁö@_x0002__x0004_\u009b\u0099ß2\u0097_x0013_÷@Í_x000C_õ_x001C_\u008c¶ö@-å²\u0083­²ö@Oxk6\u0094B÷@0Lj_x000B_µÐö@æ½ó_x001A_ë³ö@R_x0011_jöü\u0088÷@®ø\u008c/_x0018__x001D_÷@_x0018_õ¸Z_x001B_êö@0¶¢\u0080Ôùö@u\u0091J\u0091³C÷@Ê8¤e´ãö@_x001C__x0016_û9?@÷@Ó\\c÷I;÷@_x0012_\u0095ÒõË2÷@Û_x001A_µu½+÷@ÅylQC\\÷@¸Î¾Ù­ ÷@\u0091bÁ_x001B_Dáö@\u0087A\u0096_Ó_x0013_÷@x\u0087\t_x0014_e_x0003_÷@\\$ .·U÷@È#\u0089\u009b\")÷@.\u0093z~$\u0097÷@\u0095_x0016_Ê·M\u009c÷@Ì×¼z_x0016_\u0083÷@­\t¼²Q,÷@|ÓÄï.@÷@½_x0001_É_x0002_Þ_x001C_÷@Õ_x0016_]Øs«ö@_x001B_Uo~)éö@\u0098Q$£_x0002__x0008_\u0083_x0017_÷@Ø>'Eî\u0096÷@Á\u0089jbR»÷@\u0096ôð°é¡ö@sªõ=7\u0084÷@ÿfØ;)àö@'ô\u007f¹NÔö@\u0080_x001C_Ox\u0089S÷@í_x0019_X¢stö@Åcý\u008bªÞö@¡Ow\u0094×\u0088÷@_x0019_¼Ê®_x0006_c÷@_x0017__x0004_\u0094_x0007_`m÷@Ù}Ü8^v÷@³3¿ô\u008e_x0017_÷@\u0082ÃN_x001A__x0019_´ö@q\u0088_x0013_¹ö!÷@+Ð5_x0005_>Îö@}ùòÊ©r÷@ª\u0099\\­\u009bZ÷@_x0011_÷£¸ï=÷@NÍ_x0001__x0003_oåö@³_x0002__x0011__x0007_`_x0015_÷@*ûêIÞB÷@jî_x000B_aNB÷@q_x001C_üa_x0001_#÷@O\u009aÒa:&÷@_x0019_pCõ_x0017_ôö@\u008cÙ\u0083¿\u009f_x0015_÷@ú¦u¶ª_÷@Fdì)Á%÷@¡\u0091¼_x0007_Ôd÷@_x0001__x0003_TcÑôC\u0089÷@OWu¤Õ_x000C_÷@ª_x001D_É'_x001D_h÷@8\u009e\u008aÙ°¬÷@­öV\u0089_x0015_U÷@_x000F_SÍF4úö@ ØSUÃ_x0004_÷@V5GC_x0007_T÷@Ð\u0087U\u0092_x0018_\"÷@à_x0015_usTM÷@Ü»¸Þ9>÷@âõ\u009cúív÷@Û ùK÷\u009b÷@øÞz_x0005_îçö@\"ý´_x0015_ê%÷@=Ö_x000F_\"tW÷@­¯UC¦_x0003_÷@pªD±à\u008c÷@ì_x0001_W\t|F÷@1ô\u008a_x0011_V_x0008_÷@`Î\u008eûî±÷@\u007f­ÈÏ¾F÷@vË\u0095¿\u009e\u009a÷@_x0004__x001C_Ò_x0006_\u00998÷@P\u00868_x001A_í/÷@òZí¿g_x0017_÷@VM\u0086ô0\u0099ö@Ynÿ`,\u008c÷@ä_x0015_\u0082vþÌö@)\u0099N©_x0002__x0013_÷@\u0083\u008d3¿Î\u0080÷@aÑ\u0095ò_x0002__x0003_n©÷@®5;_x0019_¼(÷@G_x0012_'´º!÷@Ã_x0017__x000F_Þíôö@¨_x0008_ò_x0010_bY÷@\u008eÒ:,,Ìö@@Y}\t s÷@_x0007_×è_x0017_Ì\u009dö@_x001B_¯ª¾êh÷@|ùò¹\u009f_x0015_÷@³\"(\u0080_x000C__x0003_÷@oÍgø\u0088U÷@KÕ9_x0001_;Çö@\u009ct3\u0093îb÷@_x0011_¨]_x0014_o9÷@*%×>B¡÷@Ô\u0083¨ò_x0015_\u009dö@Ñ¶_x0019_Y\u0086_x0002_÷@9î\u008c¿\u009eëö@\u008d¦ãAºQ÷@\u009aÕÅ\u009f_x0006__x0013_÷@>ø_x0003_6\u009a¯ö@@\u0092|ÖÌ8÷@»|(sP6÷@&\u009drwp$÷@AÝ!yé©ö@x_x0001_b\u009f ¿ö@iùtÆO~÷@'xö7±Àö@!F\u009a´¨`÷@\u0097\u008a_x001B__x0007_ÂC÷@µå\u0084)w ÷@_x0001__x0003__x001F_®ÙÆoøö@_x001C_:C\u008c¨ðö@_x0006_|\u009c_x001F_¹ôö@\u009c A¨z\u0083÷@_x0004_ìqìW°ö@_x000E_&µ\u0084÷C÷@Ð\u0086_x0011_\u0093_x000F_\u0092÷@\u0095ÿôûD*÷@2_x001A_à\u009du5÷@zÀ_x0012_§þ ÷@j\u0080ú¼yg÷@ô\u007fÙÒ¼y÷@\u0088_x0017_uÛ_x0015_}÷@_x0015_wçêû4÷@3µÂ\u008eÑ3÷@ï!EÄ:_x001D_÷@_x0016_u|%\u008ek÷@6Õù³k@÷@ÄFF_x0016__x0010_3÷@|6Ó_x000E_j_x0018_÷@÷æ¬Y6J÷@_x0013_\u009cÔáÖ_x001F_÷@_x0013__x0018_\u007f\u0085A\u0095ö@\u0084\u0082÷_zU÷@\u007fd4âãïö@å_x001A_\u0087Á_x0014_öö@#v\u0091V;ëö@µ(pM\u0085Øö@x2Ân\u0094\u0090ö@ªm_x000F_xç ÷@62Ëg<k÷@_x0002_8±T_x0001__x0002_ìúö@\u0088DBSBR÷@9_x0001_O¶Av÷@Ôì\u008a8­B÷@;\u008c@¥ Íö@_\u008a\u0087_x0006_\u009dóö@_x000F_Ç¬fzÕö@Ïñú_x001E_\u009bÑö@9»_x000E_«P_x001C_÷@\u009d~ÿÁl_x0015_÷@\u0096\u0099ec\u0083g÷@ÆW·®_x0002_'÷@õg9_x0014__x0008__x001B_÷@_x000D_ÉPF©_x0015_÷@\u0087ºþ®¶©÷@àÎ\u00922\u009fª÷@iwË\u007f|¿ö@ªè±jÑ\u0083ö@|Ú _x0011_¬\u008f÷@¡«\u009fìÿ_x001B_÷@;ñk«ÿ³ö@\u0091?i6\u008f\u0082÷@ôS¤?ë;÷@éÎÒ\"-\u0088÷@¹_x0006_ü\u009fâØö@£|&W _x0011_÷@\u0086C­ñBK÷@\u0086Æw¬_x0018_>÷@Æ®¦'\u009a2÷@\"*û\u007f_x0007_]÷@\"W\u009e_x0014_²ïö@\u0092$_x001D_K_x0004_íö@_x0002__x0003_\u0093®qµ(Øö@Õ\u0099[_x0019__x0004_1÷@òè£_x001B_#Éö@ ¾¿§aQ÷@h²_x0001_ÐÈ ÷@ì\u008dÓå&²÷@\u0080_x0015_Á9ï^÷@p O¸ø_x001B_÷@Üô_x001C_£zÞö@_x0012_×ÿûkâö@_x0014_Ó¾¢P\u007f÷@§[\u008fp\u0083_x0005_÷@\u0093C©\\ZA÷@\u0098í_x001F_êÝ\u0084÷@_x0010_dÙ4» ÷@D8_x001D_×»èö@í83ò_x0004_Öö@²¯6Í_x001F_ïö@_x000C__x0004_\u009d¬Ö_x0019_÷@§ãqI`úö@½½H6w\u008d÷@l_x0001_vÀ\u0093âö@_x0012_÷hN_x0014_h÷@?9iN_x001B__x0018_÷@(«®.k¬ö@Ä,Ò\" üö@ôà&X#9÷@_x0008_q_x0008_e2¡ö@§=\u0096HÍµ÷@@9 ß»z÷@ì¹b_x0017_¼Êö@×cüE_x0005__x0007_Ýàö@\u0087\u008b\u0088_x0018_ü§÷@øc äcªö@¬¡à\u008a\u0081o÷@WÖ)l«Þö@»ó@ÒÌäö@þ_x000F_\u008e_x000B_;_x0018_÷@_x0007_\u0099×ý_x0013_°ö@â_x0019_-»_x001A_Öö@\t«_x0006_-i\u0095÷@ÆÞm¹¼o÷@\u00852ZÏÄ_x0001_÷@\u0084­S\toÐö@MÕÆQÛpö@Pþ©µÔ\u0091÷@_x0017_ì_x000E_/Àz÷@÷_x0002_S\tÁG÷@Wz_x0014__x000B_CÊö@_x0004_ûËW4J÷@Çf_x0017_ú½\"÷@{>É_x0005_\u0082O÷@­\u0090l)ý*÷@5R\u00940ýîö@·0;\u0081÷1÷@)ùñÜ\u009c2÷@¯ê­y5_x001C_÷@åÁêuN\u0081÷@Â\u008cW_x0017_ý\u009c÷@_x000C_\u008b&_\u0085_x001A_÷@R,­_x0004_±¯÷@>Î_x0003_á"}},{"$cut":{"chars":80796,"head":"100300e9feefb9c75999b45ac3f2f877_x0004__x0006_k\u008e\u0081,0Í_x0002_A\u008a_x0005_\u0092G\tÌ_x0002_A+Æyz?Ç_x0002_AA«{_x0014_\u0091_x0005__x0003_A_x0015_½§ÐñÖ_x0002_AEµ\u009e_x001A__x000F_Ñ_x0002_AìñWkhÅ_x0002_A_x0006_&sÓðÑ_x0002_A^_x0012_Bãªâ_x0002_Av:íõ+ç_x0002_A&ø«ÎýÄ_x0002_A.ar»?ù_x0002_Ay¿¦üZÎ_x0002_A_x001A__x000C_h­[à_x0002_A¡Ê\u0080Óxã_x0002_AØ_x000F_+\u0099$Ü_x0002_A¿ºÚ_x0003_ºô_x0002_A`_x0004_\u0099Ï\u0091Ó_x0002_A¦*u\u0084\u008dû_x0002_A°y\u007fÚ\u0088Ù_x0002_AßZD0CÐ_x0002_AÎv\u0096ìôÞ_x0002_A¸Ñ£ÈMú_x0002_A\u009e·ã©_x001B_ã_x0002_A´·ÞÑ_x0014_È_x0002_Aúø\u009d'êÛ_x0002_Aïµª¿\u008a¾_x0002_Aj_x0007_¥\u008fòá_x0002_A\u0089¼Ì_x0001_lë_x0002_A_x0002_öX\u0095\u0088º_x0002_A\u0093½Ï_x001B_êî_x0002_Að9~V_x0001__x0005_\\ç_x0002_A_x0007_1¸_x000E_2Ø_x0002_A>Gû¨×ÿ_x0002_A\u00986vÇ~þ_x0002_A_x0010_ÎvÔ(è_x0002_AºëÛÉÕã_x0002_A\u008c_x0014_m_x0016_ÄÐ_x0002_A»/´\u008a\u0090Ì_x0002_A_x0019__x0001_¿{ÿâ_x0002_A¹;£wÛÏ_x0002_A\u008c\u0092e\u009dzÙ_x0002_Avç_x000E_<\u0089æ_x0002_A¯&õ°\tÑ_x0002_AÐÀ$ô\u0096Î_x0002_AÙ|_x000B_ÙsÆ_x0002_A_x0018_\u0097/~|Ø_x0002_A_x0014_Í_x0011_l0Ó_x0002_AàË³ó\u0084Ú_x0002_AlH¶½½é_x0002_At\u009aÏ8\u0093_x0001__x0003_A®ús~ÄÇ_x0002_A_x0010_Wè(qÖ_x0002_A_x001D_%\u0081Rªö_x0002_AÎ;WÀ_x0011_Æ_x0002_A±ÜïçêÈ_x0002_A°\u007fÄÑóù_x0002_A,17\u0092_x0004_è_x0002_AÑñA_x0012_yë_x0002_A\u0084Ø5|\u0098_x0013__x0003_A\u0098$_x0018_\u0088\u0098Ö_x0002_Aj4UG6Ô_x0002_A¯¥¿_x0003__x000D_ë_x0002_A_x0005__x0006_y_x001E__x0014_'SÎ_x0002_A_x0017_\u0097¸w\u008cß_x0002_Aèv-\u009b\u0088_x000C__x0003_A_x0003_\u008e®µÐé_x0002_A\u0090_x000F_\u009bÝ_x0004__x0016__x0003_AÅëõérø_x0002_AFú³S|ç_x0002_A\u0090¸/aIÊ_x0002_A>¶Z\u009a®¾_x0002_Ap\u0090£¨ÿö_x0002_Aäòÿ_x000D_5Á_x0002_A1¸ò\t¥é_x0002_Ac_x0018_\u008f\u0093ßô_x0002_A ÀUkõÎ_x0002_A¨nCÁ_x001F_Ê_x0002_A\u0096ñY_x0003_êÉ_x0002_A_x000D_±×ÈQÀ_x0002_A_x0016_õ$ý\u0088_x0001__x0003_AÂ7Òs\u0090ø_x0002_A\u009aÀxX3ë_x0002_ASK«q ß_x0002_AJ(V0çÕ_x0002_AAøÐ\u007fFã_x0002_A_x0018_,VC»ÿ_x0002_A\u0080ß_x0007_ÆÑÑ_x0002_A`ÞÂç8Ì_x0002_AÚ_x0011_\u0095¡Ä¿_x0002_A\u0082_x0015_Û_x001B__x001B_Ë_x0002_A_x001E_¿aÈ«Ð_x0002_A\u0096v_x000B__x0002_Ró_x0002_Aáø\u008a`\u008bÝ_x0002_Adl¶_x001E_\t_x000C__x000E_Í_x0002_AùÕR?Ìä_x0002_A²_x000B__x0015_Ò_x0011__x000F__x0003_ALu{\u009b#_x0007__x0003_A(\u008ca·\u009fÏ_x0002_A/x\u0096A_x0015__x0001__x0003_AHeÓ*Þ_x0012__x0003_A9`Õ_x0004_°â_x0002_A\u009aÍ·Ê'_x0006__x0003_A¤?_x0003_Ü\u0080_x0005__x0003_AØ\u009d[µ=É_x0002_AÙS_x0013_ßËÏ_x0002_A?`ä;eÝ_x0002_AÖ\u0092¤_x000D_zô_x0002_A_x001A_{ëÊHê_x0002_AL_x0008_dC_x0005_Ñ_x0002_A¨aÌ\u0086Mø_x0002_A£Ó·_x0003_;Ê_x0002_Aé\u008d_x001F_6uÙ_x0002_ATG{Õêí_x0002_Aj\u0092\u0088«]ó_x0002_A|n\u0093jiÕ_x0002_Ab«ÖÓåú_x0002_Aà\u0095\u0084Ù\u009aæ_x0002_A_x0008_Ñ¾á,Ð_x0002_A®gg_x000C_ãþ_x0002_A2IÑQ#î_x0002_AÜ5²û_x0015_Û_x0002_AØù\u0092P\u0092â_x0002_AêÛØ¤Zå_x0002_AÛe©¹_x000D_É_x0002_A_x0006_kdAºÀ_x0002_A_x0001__x0006_|Ã\"æ)÷_x0002_AD\u0086\u0087_x001E_Zà_x0002_A\u0090Ì1¾bâ_x0002_A,\u0081_x0004_02É_x0002_A_x0001_ë¤\u0084èØ_x0002_A_x0001__x0013_£8xØ_x0002_AÜ%.%\u009dÚ_x0002_A\u0084ÑI_x0004_îõ_x0002_AHc\u0082¢ÇÛ_x0002_AnÜ_x0010_%´ã_x0002_AÄ\u0080­\\\u009eñ_x0002_ATãuUDÞ_x0002_A6c«'þÕ_x0002_AIÒqaþ_x0008__x0003_A{\u008a_x0018_(\tæ_x0002_AÜöQØ å_x0002_ApßvÏ\u0082ë_x0002_A\u0084çLOÁâ_x0002_Aý²í5fÿ_x0002_A4Ú©^%ð_x0002_AzÆD_x001F_iÐ_x0002_A³_x0003_rV´Û_x0002_A3T_x0003_jHÍ_x0002_A\u0080Ô!¬\u0097ú_x0002_A\u009aÙjÈrÚ_x0002_AÔî35lá_x0002_A8Ç_x001F_XàÕ_x0002_A_x0001_X_x001D__x0005_øá_x0002_Aê\u0096úG}ô_x0002_Aú}úëeé_x0002_ABû÷\u008b_x001A_ô_x0002_AlwÈ0_x0008__x000C_gè_x0002_AêwJw=Ë_x0002_A­\t¢ÍÆ½_x0002_AÝ_x0012_\u0081x.Ò_x0002_Az,shÉÚ_x0002_AÁÐ\u0096_x001F_Âÿ_x0002_AdºCouÈ_x0002_A²²àWòö_x0002_AÆàb\u009f_x000C__x0005__x0003_A\u008dNÃè\\_x0007__x0003_A\u0081ªÚ_x0006_½Æ_x0002_A_x001A_Y¶_x001B_gÞ_x0002_AX\u0085\u0098²%Ó_x0002_A&_x000F_ae2õ_x0002_A»_x000F_«)Õð_x0002_A_x0006_\u0096aÜcé_x0002_Aê'_x001F_0à_x0010__x0003_A>\u008b:\u0089_x0001_Á_x0002_A²YÂ£,ú_x0002_Aúü5.ù_x0003__x0003_AÎÙ\u0097©ÿá_x0002_Ad`\u008cÊ\u0083Ù_x0002_A\u0092]_x0017_S4ú_x0002_AwÖñ-ø_x0001__x0003_AÔx_x001A_z>ß_x0002_AbM\u0087_x000B__x0015_í_x0002_AUÌ\u0084Æfê_x0002_AÝV'*Èí_x0002_A_x0012_\u008b&w`Ì_x0002_A¢[\u0082_x001F_ù¿_x0002_A_x0008_ _x0004_\u0081&Ã_x0002_A:o¨ëÏð_x0002_A_x0004__x0006__x0010__x001D_1Ä\tÝ_x0002_Aí\u0088¼tH\t_x0003_A­Rå«_x0012__x000C__x0003_A)o½NÁö_x0002_A\u0086 _x0001_\u0092®ê_x0002_AäØÞ¯Uè_x0002_A_x0010_aä\u0096Èù_x0002_A\u0088Oñ_x0011_!á_x0002_ADI-\u0081|Ü_x0002_A?Mú8sÑ_x0002_AÞ\\G:¨Æ_x0002_A_x001F_>J]_x0014_Ó_x0002_A_x001C_Ù\u00952-Ç_x0002_A}Í1àõÍ_x0002_A<UDEÐè_x0002_AØhè;_x001D_Ã_x0002_AQM\u009d_x001A__x0005__x000B__x0003_A\u009dK_x0010_U\u008fõ_x0002_A_x0008_(ÅÈ~É_x0002_Al\u008f_x0004_=Ýø_x0002_AP_x0017__x0018_JTã_x0002_A(þ²_x0002_çó_x0002_AÆ\u0096\u0084=\u0088ã_x0002_AÁ_x0010_<\"LÂ_x0002_A×Ô>ÇÏÌ_x0002_A´l)Î'á_x0002_AWÚh«êë_x0002_A_x000E_ÓËÜNå_x0002_AÎÞM¦!_x000"}},{"$cut":{"chars":71346,"head":"e3a827ed433fa09bd0e51776321be465_x0001__x0002_\u009cÄ 0+_x000E__x0012_A\u009cÄ 0Ë_x001D__x0012_A\u009cÄ 0+_x000E__x0012_A\u009cÄ 0+_x000E__x0012_A\u009cÄ 0+_x000E__x0012_A\u009cÄ 0+_x000E__x0012_A\u009cÄ 0+_x000E__x0012_A\u009cÄ 0+_x000E__x0012_A\u009cÄ 0+_x000E__x0012_A\u009cÄ 0+_x000E__x0012_A\u009cÄ 0+_x000E__x0012_A\u009cÄ 0+_x000E__x0012_A\u009cÄ 0+_x000E__x0012_A\u009cÄ 0+_x000E__x0012_A\u009cÄ 0+_x000E__x0012_A\u009cÄ 0+_x000E__x0012_A\u009cÄ 0+_x000E__x0012_A\u009cÄ 0+_x000E__x0012_A\u009cÄ 0+_x000E__x0012_A\u009cÄ 0+_x000E__x0012_A\u009cÄ 0+_x000E__x0012_A\u009cÄ 0+_x000E__x0012_A\u009cÄ 0+_x000E__x0012_A\u009cÄ 0+_x000E__x0012_A\u009cÄ 0+_x000E__x0012_A\u009cÄ 0+_x000E__x0012_A\u009cÄ 0+_x000E__x0012_A\u009cÄ 0+_x000E__x0012_A\u009cÄ 0+_x000E__x0012_A\u009cÄ 0+_x000E__x0012_A\u009cÄ 0+_x000E__x0012_A\u009cÄ 0_x0001__x0002_+_x000E__x0012_A\u009cÄ 0+_x000E__x0012_A\u009cÄ 0+_x000E__x0012_A\u009cÄ 0+_x000E__x0012_A\u009cÄ 0+_x000E__x0012_A\u009cÄ 0+_x000E__x0012_A\u009cÄ 0+_x000E__x0012_A\u009cÄ 0+_x000E__x0012_A\u009cÄ 0+_x000E__x0012_A\u009cÄ 0+_x000E__x0012_A\u009cÄ 0+_x000E__x0012_A\u009cÄ 0+_x000E__x0012_A\u009cÄ 0+_x000E__x0012_A\u009cÄ 0+_x000E__x0012_A\u009cÄ 0+_x000E__x0012_A\u009cÄ 0+_x000E__x0012_A\u009cÄ 0+_x000E__x0012_A\u009cÄ 0+_x000E__x0012_A\u009cÄ 0+_x000E__x0012_A\u009cÄ 0+_x000E__x0012_A\u009cÄ 0+_x000E__x0012_A\u009cÄ 0+_x000E__x0012_A\u009cÄ 0+_x000E__x0012_A\u009cÄ 0+_x000E__x0012_A\u009cÄ 0+_x000E__x0012_A\u009cÄ 0+_x000E__x0012_A\u009cÄ 0+_x000E__x0012_A\u009cÄ 0+_x000E__x0012_A\u009cÄ 0+_x000E__x0012_A\u009cÄ 0+_x000E__x0012_A\u009cÄ 0+_x000E__x0012_A\u009cÄ 0+_x000E__x0012_A_x0001__x0002_\u009cÄ 0+_x000E__x0012_A\u009cÄ 0+_x000E__x0012_A\u009cÄ 0+_x000E__x0012_A\u009cÄ 0+_x000E__x0012_A\u009cÄ 0+_x000E__x0012_A\u009cÄ 0+_x000E__x0012_A\u009cÄ 0+_x000E__x0012_A\u009cÄ 0Ë_x001D__x0012_A\u009cÄ 0+_x000E__x0012_A\u009cÄ 0+_x000E__x0012_A\u009cÄ 0+_x000E__x0012_A\u009cÄ 0+_x000E__x0012_A\u009cÄ 0+_x000E__x0012_A\u009cÄ 0+_x000E__x0012_A\u009cÄ 0+_x000E__x0012_A\u009cÄ 0+_x000E__x0012_A\u009cÄ 0+_x000E__x0012_A\u009cÄ 0+_x000E__x0012_A\u009cÄ 0+_x000E__x0012_A\u009cÄ 0+_x000E__x0012_A\u009cÄ 0+_x000E__x0012_A\u009cÄ 0+_x000E__x0012_A\u009cÄ 0+_x000E__x0012_A\u009cÄ 0+_x000E__x0012_A\u009cÄ 0+_x000E__x0012_A\u009cÄ 0+_x000E__x0012_A\u009cÄ 0+_x000E__x0012_A\u009cÄ 0+_x000E__x0012_A\u009cÄ 0+_x000E__x0012_A\u009cÄ 0+_x000E__x0012_A\u009cÄ 0+_x000E__x0012_A\u009cÄ 0_x0001__x0002_+_x000E__x0012_A\u009cÄ 0+_x000E__x0012_A\u009cÄ 0+_x000E__x0012_A\u009cÄ 0+_x000E__x0012_A\u009cÄ 0+_x000E__x0012_A\u009cÄ 0+_x000E__x0012_A\u009cÄ 0+_x000E__x0012_A\u009cÄ 0+_x000E__x0012_A\u009cÄ 0+_x000E__x0012_A\u009cÄ 0+_x000E__x0012_A\u009cÄ 0+_x000E__x0012_A\u009cÄ 0+_x000E__x0012_A\u009cÄ 0+_x000E__x0012_A\u009cÄ 0+_x000E__x0012_A\u009cÄ 0+_x000E__x0012_A\u009cÄ 0+_x000E__x0012_A\u009cÄ 0+_x000E__x0012_A\u009cÄ 0+_x000E__x0012_A\u009cÄ 0+_x000E__x0012_A\u009cÄ 0+_x000E__x0012_A\u009cÄ 0+_x000E__x0012_A\u009cÄ 0+_x000E__x0012_A\u009cÄ 0+_x000E__x0012_A\u009cÄ 0+_x000E__x0012_A\u009cÄ 0+_x000E__x0012_A\u009cÄ 0+_x000E__x0012_A\u009cÄ 0+_x000E__x0012_A\u009cÄ 0+_x000E__x0012_A\u009cÄ 0+_x000E__x0012_A\u009cÄ 0+_x000E__x0012_A\u009cÄ 0+_x000E__x0012_A\u009cÄ 0+_x000E__x0012_A_x0002__x0003_\u009cÄ 0+_x000E__x0012_A\u009cÄ 0+_x000E__x0012_A\u009cÄ 0+_x000E__x0012_A\u009cÄ 0+_x000E__x0012_A\u009cÄ 0+_x000E__x0012_A\u009cÄ 0+_x000E__x0012_A\u009cÄ 0+_x000E__x0012_A\u009cÄ 0+_x000E__x0012_A\u009cÄ 0+_x000E__x0012_A\u009cÄ 0+_x000E__x0012_A\u009cÄ 0+_x000E__x0012_AhÄ_x0003_\u009bÿ_x0015__x0012_A_x0001_\u009f|ò_x0019__x0013__x0012_AËÃÉ¾G\u009c_x0012_A_x0015_Ï#·O_x0006__x0012_A?¿ýªÑh_x0012_Av\u009f®^òa_x0012_A_x0012_NÞÜr¦_x0012_A¹_x0008_ïWr\u0087_x0012_A2pu~«y_x0012_A_x0012_j®_x001D_G&_x0012_A_x001E_\u0092³s#n_x0012_Aµ½\u0093B_x0010_\u0085_x0012_Aç#\u0081Âl£_x0012_Aî+b_x0015_3G_x0012_A#\u009f_x000E_Õ£#_x0012_AIOÊx+0_x0012_AûNE_x0012__x0018_\u0084_x0012_AÊ)èµ-R_x0012_A6èF_x0012_ýR_x0012_AüÈìàr«_x0012_AÖº¦ý_x0001__x0002_¹z_x0012_AYf8ÆA_x0013__x0012_A\u009b\u0080L}ÊP_x0012_A_x0006_{é _x000C_\u0094_x0012_AMõ¨u_x0010__x001E__x0012_AV2_x0012_vìA_x0012_Aä\u007fp\u009a×_x001F__x0012_AN¿þOF\u008d_x0012_APd×:>n_x0012_A\u0099ZÎgó\u0084_x0012_A._x000E_í} ]_x0012_A\u0093Ë_x000E_E^T_x0012_Aaù­¬ö\u0086_x0012_Au«\u0092@Z\u008e_x0012_A9L_x001A_?]E_x0012_A\u009b§Ý½ÄÉ_x0012_A_x0018_´úuKu_x0012_A_x0018_óvéFd_x0012_A¶qò\u0099_x0001_µ_x0012_AG_x0010__x0004_#%n_x0012_AX-Æ¶Å\u0083_x0012_A_x001C_ë\"*:C_x0012_Aj§_x0010_H\"\u0095_x0012_AÈùb\u008cëe_x0012_A±¥Þ,ïX_x0012_Au8ù\u007f\u0086s_x0012_A~\u0084ÜËëY_x0012_A\u009fO_x0004_¾Èn_x0012_A_x000E_JÂ£m]_x0012_AH\u0081±\u008aâ?_x0012_AT_x001B__x0014_\u009b^D_x0012_AÁÆ~\u0092`K_x0012_A_x0001__x0002_<íR\u0098\u0095h_x0012_A=9n\u009a2¬_x0012_AÅôîFW^_x0012_A\u0081#_x0001__x0001_\u0082#_x0001__x0001_\u0083#_x0001__x0001_\u0084#_x0001__x0001_\u0085#_x0001__x0001_\u0086#_x0001__x0001_\u0087#_x0001__x0001_\u0088#_x0001__x0001_\u0089#_x0001__x0001_\u008a#_x0001__x0001_\u008b#_x0001__x0001_\u008c#_x0001__x0001_\u008d#_x0001__x0001_\u008e#_x0001__x000"}},{"$cut":{"chars":50862,"head":"4441756ed759eae59184dd2a067eb56e_x0002__x0006_s<¿äÜ*#Aq\u0088,GsH#AhÁ_x001B_Ö·H#A%\u0084s©òC#A¿\u0080¢oË0#Aæ\u0095À_x0003_ï;#A\u0080\tYNÕO#A\u0081\u0087®_x000B_#@#A_x0012_ÇÂ_x0004_\u0092?#A_x0014_Bü+¥J#ALî'Vq7#A<LÁp\\8#A_x0018__x001C_£]P=#A*\u009a&\\ÝU#AÎ2©Û_x0014_8#A¨Ë«ï_x000D_)#AÖðz$æ/#AÄ¤_x000D_æ08#AÞÔ(±ãX#A\u007fBpÜæ0#AjüÓ\u0094l=#A_x0003_¹%Gf1#A-à_x0018_lÒ(#A×-X_x0001_|-#AlÈVön0#AI²1Ê;G#A_x0005__x0004_SH¨4#A¡Æ¾=¨K#A,\u0098._x0011_ E#A\u009a\u008c\u009aÊ_x0012_6#A_x0017_üy\u0082WU#ANë\u0096Û_x0001__x0003_¹>#As\u009eî1\u0082B#AÎ´©ú>;#AÚÌ\u0098Y\u0089G#Ab_x001B_BÛé6#As_ÑûX=#AÛÿ_x000C_=ü5#AnÌ?­\"_x001A_#AÝ\u0087\u0096_x0013_[5#AÒõf0ì:#A0Ï_x0012__x0016__x0011_S#AøÂðÍh<#A?o_x0019_6b*#A5\u008buâ_x0012_4#Aã_x0019_ñ³lI#A_x0010_ÜwLV6#A A5ëâ5#A_x0018_%%J\u00966#A±íi\u0082ÖK#A^¦ór2J#A)_x0003_­r_x001F_/#A'\u007f*ás6#A_x0002_ñmÅ\u0088M#A\u0095ÃG~_x000D_O#A\u0081EÅgàA#A×gw%~?#A\u009a¾9t@9#Aû¢_x0013_`g/#A\u0090a_x000C_Gk;#AôµNÁ!2#AJY1_x000D_×-#A%qÑ\u008cÉA#A_x0001__x0002_\t]Så_x000F_-#A\u009b4_x0013_£02#Aw[H\"\u009e,#Az¾,ÙÇ8#A)_x0002_­r_x001F_/#A-Ö\u008cÜ_x000D_>#A$Õ.ð\u008f##AÅ`H_x001D_ÿT#A5 PMA3#A\u009cÖùÓÅG#A\u00904öÙ\u0087G#A_x0007_ªÝ\"G?#A_x0010_ô}îC6#A_x001A_\u008aYÆÿ-#Al_x0015_\u0094G_x0010_;#Avm1_x0016_M0#Aûwà_x0010_¥6#A_x0002_\u0097Ð_x0012_Z3#A;\u0083£ÎJB#A±)Ê@MG#AW\\\u008aÓ«5#A_x0007_-a_x0019_60#A_x000F_\u0089Ø¡ÓE#A]GLC.-#AÂ£ü_x0007_N0#A?7_x0003_¾Ü9#AÃ_x0002__x001C_Q¢5#A\u0089«Ý_x0019_U@#AjÃ¸\u008d\u009d4#A|.äu\u0097J#A4vfééC#A ³_x0017_ÿ_x0001__x0002__x000F_(#AÈÑ_x001F_x\u0080K#Aê?>}P+#A\\£/O%0#Aèã°w_x0008_.#Atø_x0012_\u008d\u008aI#AryU$±Z#Az&~ç_x0005_2#AÊ:_x0006__x0012_\u0099@#Aèã°w_x0008_.#AGê%{Q9#A¢\u009aU\u007f_x0001_J#A»-zQ+:#A¸h¢¼ÄC#AS_x0014_\u0095`\u0087W#AË\u0095Òx\u007fJ#AÃ}c¦_x0002_4#AÙ ·_x0012_\u0098X#A\u0098æ¬0Ö7#A\u0082^ùqø5#Am7_{_x0005_@#A«?ë3@1#A¥oFï\"A#A<ú\u009b\u0080¦D#AÀ\u008f_x0015_¥§3#Aë\u0083v\u0091¤8#Aíµ5_x0013_ÁD#Af) ]º/#AJïýÏ>:#A_x0017_÷Æz½_x001D_#AM³ú9)*#A_x001E_p?B¨)#A_x0001__x0006_ßJõ7\u0083I#Aª\u008etMÁI#A}ÑâKÙ2#Añc_x000C_\u00970*#A£_x000D_Ö\u0084\"1#A/iëCE8#Aû»î\u0081_x001C_J#A_x0002_­ä_x000F__x0002_H#Aþ¢\u009cP».#Alÿ_x0004_3_x0003_8#A_x0005__x000B_:\u0083_x0017_7#A\u009e®_x0017_\u0094\u0087S#A}B­÷¤4#A2öhã\t2#A\u0086_x001F_¸¯8B#Au\u009b¶¾_x0007_<#AX§½ÌÎ2#AËÑÃ_x001D_\u0087-#Aê0|B¥7#A_\u009b à:6#AnA*(MX#A_x0017_õ9±\u00914#A\u0085ëLK\u009d5#Aª_x0012_$_x000C_Ã;#A *_x0016_Zò7#A\u0090Ì_x0015_ú_x001E_.#AE_x001F_ÐÄý+#A\u0096Ç.åPI#Aü\u0094'\\ÔB#AÜAJ¡û5#Aõ?s¶}:#A_x0002_×d©_x0001__x0003__x000E_G#A'à\u0088¿¯@#Ay,×~hD#A)_x0003_­r_x001F_/#A\"_x0010_g#I>#A\t²ýA\u008a3#AÞ_x0015_@.4:#Aò\u009bh\u0083ÚK#At°\u0084·B>#A(ý²Ê\u0086B#A_x0011_Cbc\u00983#A\u0082$Hj¤@#A?Wr\u008164#A\u0084_x001E_h2ã4#A]_x0002_8÷qD#A_x000B_¾_x0010_n+B#A®`\\_x000B__x000B_7#A©²\u0080ßd.#A_x0002_\u0098½qÓ7#A_x0010_¹G¥í>#A&©\u008b/Æ5#AE_x000D_-ayG#ABd_x000F_ÇÙK#A`¤ÓN\u0084=#A@®ÞÔ£G#A=^.-_x0002_@#A2À'ò\u007f4#AÉRá_x001B_\u00811#Am¬\u008dé,1#A%[d©_x0018_D#Ak_x001E_÷:\u00873#AÒ\u0084,Ïó,#A_x0002__x0003_js!0\u007f0#A±-#ã§/#Ab\u0094\u008e'\u0098_x001C_#AKO\u0093r]Q#AXê\u009eý\u007f1#A?\u0089_x0006_h\u00963#A\u0093p£_x0018__x0006_4#AÂ\u0098\tÏf #AÅÐÚ\u0081_x0015_Q#A\u0084i\u009dõ¦@#A0_x000B__x000F_ö\u00909#AZE3\u0080â-#A\u0086@gdU8#AªÇ`r¼S#A\"B®Ãs7#A½\u008cWÎ\u00996#AÚÌ_x0005_¨ÍA#A¹3\u008d¿H2#A._x0016_§\u009aâ1#A8Kè¤ð4#Aí&Í\u0081e8#A_x0001__x0015_\u0097#ÖA#A°)\u008f\u0092\u00992#A\u007f?ÇQ_x0008_F#AªCC\u0099Z2#A_x0011_ eæ\u009b5#A¾\u009c+Êã1#AÄ\u008cYk\u0093A#A_x0012_g\u0082_x0001_íB#Aø_x0012_<@ÏU#Ah\u0084fwãB#A×*.\u009e_x0002__x0005_9=#A[\u0091ÅÇä>#Aq\u008ao \u009fS#AÀP¹<ã0#A_x0006_OÛ_x0014_i0#A\u009e\u0091\u0080P-=#A½N_x0008_Õ\\=#A}j÷9_x0010_6#A\u0089¥}\u009coP#A')\u007fùó'#A±c3\u008céJ#A¬_x001A_\u009cÎ£3#AVU\u0090(,,#AÎ±Ë½\u0085:#A;jæÆåS#Au\u009b¶¾_x0007_<#AeDH¼\u0097L#AÀ_x0018_vÎ_x0010_B#A¤\u009a_x0011_¹_x0004_?#AåMÀ^TB#A%J\"<*D#A_x0001_3H_x001D_Þ+#A_x0005_\u0099Et¨;#A_x000D__x000D_Tpn8#A3.\u008fHà@#A:í_x000C_õrK#A\u0089|$øJ6#A^Ì\u0080¢`\"#Aòà_x001A_'_x0002_8#Acõ\u009dÀ_x0001_P#A4ó_x000F_t<6#A3Õ_x0003_ÃÁH#A_x0003__x0005_T\u008e7X_x0004_D#A4Ê¶où;#Awn«\u009e_x0019_;#A_x0016_-íDÑ:#AÐS{ñ\u0093I#A_x0019__x000F_Âge_x001C_#A\t]Så_x000F_-#A¯¥_x0010_)|C#AtÇ,à_x001D_)#AàÚ\u009f]B>#AËÑÃ_x001D_\u0087-#AÕ_x0006_¯*¹0#Aù_x0002_H?Ö6#A_x000E_a¢(»J#A\u0093Õ3Ù_x0014_2#A_x0017_{{_x0001_åL#AªìÒ_x0010_63#A_x0008_ªNª0(#AS_x0014_\u0095`\u0087W#A®¶mW_x0017_I#A`úÚ_x000F_\u00983#Am_x0012_\u0086S_x001D_,#A_x0001_\u009a¾W +#A®ÛMèï=#A2\u008dr_x0007_,C#A©%:¤\u0089J#A98)4¡2#A ä/S_x0016_C#A-b_x0017_Ó=M#A¥|_x000B_Øx9#Aè\u009f_x0011_Õâ;#A\u008açù¥_x0003__x0004_g5#A\u0095Ó Ñ¬<#Ae\u0098_x001E_¢_3#A}.\u008dgT7#A'\u007f*ás6#A¢)\u009býw9#AMÃ,¨_x0007_S#A4Î\u0085^íM#AÌÁ6B÷;#A¥_x0018_jÅÒ4#A\u009df0Eü/#A·Á÷y\u007fP#A©FÄ! )#Aô_x000B_%\u009c®@#AO_x000C__x001E__x0017_£X#AO\u008eNÌ§C#A_x000D_§´a_x001C_F#A%\u008d_x000B_ðcI#A\u0082Ì\u0083ÝëL#AH_x000C_¯ù}?#Aî\u0099ÈkI+#As\u0082ÄûYA#A_x0002__x0005_âÒêC#AÍ_x000D_Æ\u0084À,#A\u0080ó@Ï\u0092?#AÌ_x0001_Ái\u008f6#Að_x0016_:#\u0080I#A[ë_x000B_ó\u009b7#A\u0082P_x0002_\u0094ÅI#A_x0018_¢@_x0005_EN#Aë2IÚ\u00810#A+ _x001E_Ï\u008c4#A_x0003__x0005_ÿjÀ_x0008_Þ0#A¬Dä_x0014_ K#AMÕ'\u009c_x0001_>#A<\u0095\u0094R¡7#AMwÞ_x001B_öC#A_x001F__x0018_3Õ±5#Aû4¼\u0080_x001F_=#AF¯L_x0004__x000D_6#A_x000E_öêç_x"}},{"$cut":{"chars":51468,"head":"710b320ab7548f04fb3b604e93ae0fde_x0001__x0006_\u0081O{Í£_x0011_o@o_x0002__x0017_}j_«@6\u0082d\u0089\u009e®n@JÃâ_x0006_\u0090Ì\u0096@\u008dÚ_x000D_»êí«@Ê ûï0f\u0096@\u0096j_x0019_\u009a\u009e¯·@_x0017_ñ©_x001C_æ§°@\u0091_x001D_¢M_x0012_Ó§@C^1gãV¯@É£\u008ce\u0088ê±@°\u009a\t:M¡~@\u0094\u0090l08-»@½û_Y\u0085_x0005_¼@çº¼?°Z\u009d@\u0093~è\u007fù_x0018_¯@Î_x001E_7_x0017_Ú$¥@îe\u007f«K³µ@ÌÉõ_lj¨@1-d\u0091°\u008b²@á\u0081­¹¹Ö\u009eÀ_x0011_0¹c1M¥@_x000F_\u0090\u0093\u0090`_x0010_´@Ö^­Ù\u0086æ\u0095@_x0013_É·4zõµ@\u008f\u0085_x000E_§\u008e\u008b´@vx­8Þ_x0019_°@ïGr¶k¢«@)\"¹_x0003_²r\u009b@\u0097l\u0085__x0004_`¶@_x0014_]¤\"Y/\u009f@Ö¥_x000E_ß_x0006__x0007_Ñ#¤@\u0096¹Po\u0087-\u008f@\u0082\u008f\u0080ötã°@#\u009e_x0004_&-\u008b¢@\\<\u0084-X6¦@SÛv¸ÊS¼@ªôßm¬s¸@h\u009aÔbmÐ©@Éé?\u008fC ²@_x0005__x0007__x000D_\u0098®+©@U\u008fÔD³1RÀh\u008cVË\u009f\u0092²@\u008dm^QÓ´¥@F¢×\u009d\u0096l§@ií&_x001D_·1®@ýÞO¾¼9±@ëÌmß\u0084a¯@&_x000D__x001F__x000B_J_x0007_§@¦®\u0093ø\u0092l²@ä\u0091_x0003_;Ë\u0099±@_GäÈ\u007fª§@_x0002_N»ý_x0017_w²@´´]\u008aû÷ª@í+¹©ØX­@*_x000D__x001E_ñ¯Õ©@zL\u0091Fû\u0092¹@Q©CÛ_x001A_\u0087©@_x0005_Ò+ÏLÄµ@_x0001_ElY=B¨@o~;NbÎ\u0099@E³_x001A_\u008dS_x0003_°@\u0096H2Vk_x000C_¬@_x0002__x0003_ÄQý%Wt\u009e@ËØ+\u007f¦ñ»@\u0085²À®_x001C_c©@l_x0001_fÎ¶À²@-üT'LÅ¥@PÖý6i5±@¢[_x0004__x0002_97¬@çe^Í»­_x0008_@ýñGN_x0001_ï±@\u008fc·íý_x0004_«@}_x0010_rä_x0015_À§@ñÏ[_x000E__x0015_¸¶@_x000D_Øúh\u0088\u009a¨@_x0010_4Ì`'q­@LU¦E_x000B_&²@Vq\u0090\u009a¤õ¥@×\u009eö'x\u008f¨@-©®\u0082u\u0092¬@ßó_x0013_9äë\u008f@­+\u009c@ï_x0007_®@kJË_x0010_`-¸@ÁÚ\u0092ûíÌ¦@Æ/îeº©©@¶jVEÖ»­@\u008bn/'_x0004_N\u008eÀ.¨±VVH¯@åêMM_x000F_Ûª@d\u0087ßªÒY¢@Ê_x0012_\u0096þý¤«@ð4ã\u0086i\u0084µ@ÀÍGp\u009e-·@\u0085ð>»_x0001__x0006_{Q¨@\u008aËt\u0097Å@\u0080ÀºÌìÊùfoÀ_x0019__x001C_&àm\u0091«@\u0090v_x001D_â5\u008d]À¦(v_x0014_l¶´@\u0081¤¹¿\u0093\u007fµ@c_x001F_7µC_x0002_¢@\u0085£²]_x0006_d±@ÝS¢\u0093\u0093åU@ !º®ï\u0084¡@æÜ±_x0004_`\u0080q@öÃ_x0003_'_x0004_É£@\u008a¹z_x0016_t®£@oa0_x0004_êMª@\u0085Ò`_x0003_ù5¢@\u0081,ÕÕ6à®@¶L\u0088ÐjÕ­@iË=îð|­@\u009a\u0085Ê\u0089\u009fC¢@®I±pþÑ¤@ÒÎa_x000B_\u0096\u0091h@`Úó¡*â¤@a6ûKçÎ\u009a@8gä_x0017_Æ_x001F_·@\u0082\u008e_x0003_êÛ&mÀ_x0005_1ai_x000D_2\u0096@;\t{D6ù\u0084@l_x000F_@_x000E_ÿ\u0083\u008e@\u0093Op\u0080¸ë @\u0081¦\u0080o$&²@áØ\u0081»ìm\u0096@_x0003__x000B__x0007_\u009aÐ_x0001_ÑÚ«@gå\u0096_x000D_Å¨¢@:¦éýÕ\u009f­@\u008cÓÏúûä\u009a@@1Ð#±? @_x000C_Ûü=Yâ¨@\\î_x0006__x0016_yP¨@@\u0082\u0086\u00943Á³@_x001B__x001B_O}\u0085ß³@\u009e\u009b¹_x0015_ì\u0090±@êîfÂì_x0017_²@\u0084WJe©Á¶@\u008a1\u0088\u009b¦s²@\u0089.Æ_x0018__x0008_UyÀM_x0017_t_x0017_ô\u0094\u008b@<ÃF\u0080§G¥@qo\u0098¸_x0004_»°@²4\tHÊÈ @_x0012_/J\u008e²ô @\u00806<±<\u009b°@_x000D_\u009df_x000F_\u0082_x0008_©@_x0007_Á×wqxª@(\u0084-n¸_x000E_°@áÁÄ\u0081I*¸@}òèôî[k@\u0087¹*_x000B_«¦·@óì,k_x0002_ÓS@µwDIj\u009c·@%_x0014_ËªÆP\u0097@üv¿\u009a_x0005_é³@O_x000D_%Í0s§@?'î®_x0002__x0004_^Fª@+lÏ=\u0082)¬@_x0017_jÆ\\_x0014_(\u008eÀ:_x001B_\u009b÷\u008bINÀ\u00991\\_x0019_â±²@=o²_x001B_ü_x001F_\\@\u0086Ù¢\u0081©\u0097¯@_x0010_áèq\u009bÌ\u0098À_x0001_Í:±â\u0087°@òÐ_x0014_²_x001E_GzÀ\u0090@pS3Ê£@%¦«_x000D_Âä§@üd\u0091fbl\u009b@ºÀ_x0014_·o\u009f\u008dÀuÐÉ-a#\u0095@ç\u0097ü_x001B_ý¡²@Óô\u0086»_x0005_+´@!@,h_x000E_Ó\u0087@Sñ_x0001__x000F__x0001_üµ@*ò©ºÂy¶@ÅE²_x000D_ý~\u009e@\u0095\u009a§\u00865Õ­@éÀ¿0Ä \u0090Àþ\u0091MÛ·ü¥@b¶Z{Ìv³@_x0007_\u0091X{:0°@È45_x0003_3î\u0095@_x0003_\u0090ï_x0018_±û§@S0ÀÛ¦¡\u0095À4_¸ÚE´·@¬P_x000B_p6\u0090¸@7Ós¸)ä«@_x0003__x0007_Ø­#w0#²@6öX_x0003_!X²@î_x000F_gbüç°@2Ö_x0016__x0006_\u0089-°@p9:·Àü¡@A¿_ýâ\u009c³@+R\u0089¾??«@\u008c_x0007_9¦\u008f\u008c¹@)ß_x0010_*\u009eÿ_x0014_ÀÎÄù\u0091/d±@ÉÀh_x000B__x0010_B¢@ ÐÑR:Ù±@_x0005_U_x0002_\u009bú5¶@Ê;\u0095ÍÌS±@³¡\u0089½6&©@k\\\u009a,\u0099k°@_x0014_`C{_x001E_Ï¨@¦ïØn*9´@\u0090_x0003_|ã°;À@_x0008_4_x0016_>1|}@ \u0097_x0003_ÐI9¨@Vÿä\u008d\u0094'¸@[FJÏü!£@áÕ\tñµG°@\u0095\u009a_x0018_,·è\u009f@\u009eeòEbê£@_x0016__x0016_S_x0001_ê\u009f²@&c\u008d_x0004__x0012_n¯@\u0096\u008eH_x000E_8i¡@\u008a\u0095\u0086éAh²@ht\u009b(¦ç®@]_x0003_\u009aí_x0002__x0005__x001A_\u0088¥@½=^\u0087&_x0015_¤@KÞë_x0016_\u00865¼@Åê¸{}Ò¡@\u008fMgÛ_x0004_þ\u008b@!(\u008dk_x001F_§¼@'*¼_x000C_\u0084R°@¿¿ÈBA_x000D_\u008c@ïë.\u009c_x001E_ú±@\u0099\u0082dg34º@_x001B_f0\u008c\"l¢@·÷\u0096Î_x001B_\u008f\u008e@_x0003__x0001_mI X¨@«_x0006_Àgjk¤À>AprcZ¥@\u0099W\u0092¶\u0096Iª@+Ê'¢\tÄ¦@p(%hd¦\u0099@@\\Rì\u008f¯¹@×_x000F_N\u008cÿ>³@¡ÿ\u007f{[P²@@¸E]_x0006_Þ±@â½\u008c\u0092û%\u0091@­¾\u00943\u0082`\u0098@¾\u0099\u009bü­\u0086·@/¿'\u0093_x000B__x000C_°@¢â\u008bGëÒ¯@óô\u0084âè\u009b¬@)¦>\u007f0ß @g9s©\u0088\u0093³@}ÐB°_x0019_\u0095\u0094@Ì_x001B_¡V<~¸@_x0004__x0005_½®Vdiª @/ü+}\u009cu°@_x001B_Â_x001E__x0004_j_x001E_\u0091@©arn_x0001__x0018_°@\\R\u009b_x0012_á*¢@_x0010_hÝPÇÌ­@çS\u00930t.¹@_x000F_\t_\u0092ÀÀ®@0:8¯F+´@\u0085\u0084ð_x0015_\u0081Ö²@éâ²F}_x0002_«@lºLå\u008d\u0087{À_x001D_÷y\\¹\u0080±@_x0007_Õá²D*lÀDxà¯_x0003_\u0088­@,_x0010_%\"´.¶@\u0093®Â\u008dØY\u009f@Yöº\u00886é©@\u0080EÅ'§¯­@8\u0086ÿuª[´@b¨\u0089Ôa\u009b\u009d@~_x0016_1ìGì3À_x0015_r\u009d7rf·@nµ~_x001A__x0001_¿ @_x0004_AÀ-(_\u0099@;0x_x001C_4\u009d¡@ÞÓ;ÔíK«@ÉÜ¡~U_x0014_¢@Ñå½:\u008c|±@¥P\u0089\u008c_x0019_\u009a©@ïØq\u008aæ;¦@_x0008__x0007_:ô_x0001__x0005__x000F_D\u0087@&;_x0003_b)\u0090°@N´/8Ö\u0084¥@¸_ÀÜ3\u0080µ@\u0087\tÀ5¡Ó¯@ E\u008e4Öæ°@_x000D_î[U\u0086C\u0087@F4Áé_x0007_ë\u0089@äY­ÊéV¡@Yß_x0002__x0003_§\u0093±@Âñ_x001F_ãZ¼³@fë·\u0083½_x000D_\u0083@\u007fEÇ];^·@w¸äU\u0085Ó¶@-ú_x0013_V¸Ü§@\u0086À\u0087_x001F_f°\u0096@{%|2@r\u0093@\u008c±_x0001_KJ_x0004_®@_x0015_¾4._x000F_¢\u0092@_x001F_Ôe_x000E_§_x000B_¡@\u0081\u009b Ñðe£@¼\u0090\u0095åÅ\u0095¤@_x0008__x0013_&¯L©¨@\u0097ÖÚüén\u0097Àb[ôX¡\u008f§@é\u0093\u0092ß|B\u009e@4«¨#ª¤µ@`{ií²_x0019_¸@\u008bþ'z_x0010__x0010_­@ªpRØSH¦@\u0098À\u0091pØiµ@¢âõà\u0094â°@_x0002__x0006_µ¿\u0084\u009cå°±@W\u00925s§V¯@\u0088\u0091¬C\u00807«@z_x001C_1Á"}},{"$cut":{"chars":185340,"head":"35f6fba04f88015ee8d1791a7eecae87_x0002__x0005_Û10\tÆõwÀÖ_x001C_¨ àÅb@ªi·Ü_x001F_H\u009a@æÕ_x0003__x001B_k\u0090\u009e@ajµ\u0099ø\u0084t@^ò_x001E_a\u008dbbÀ_x0018_åOQ¦¹zÀv°\u0097\u009eÔ\u009cSÀ=»Á_x0006_bÕ\u0095@È_x001D_Ä_x0001_i*l@\u0094ÿ\u0094\u0084_x000D_ \u009c@[K\u0096rÂ>\u009e@©ýÁì \u008d\u008e@åÂ¹NVëuÀ¶Vìb\u007f0¡@\u0098Vë',\u0094_x0017_@©1q¹©\u0093B@íSóT_x000F_&\u0085@Û_x0012_±D\u008aM£@z²¦_x0019_ã_x000F_\u0092ÀÀ2ê\u0095_x0010_u|@_x0004_j_x0018_Ö_x0018_N\u0080ÀN¹%7õÀ\u0092@ê97J\u0085üw@Û¸_x001A__x0012__x0012_¿w@ºÞN¹_x0008_\u0082¡@Î 9_x0003_\u0097~\u0091@wþ¥\u008c,Üt@'+_x000F_±\ts[@;MÕ_x0004_YÈ\u0095@ü¹¡¬mV\u008e@\u008d_x0012_²®_x0001__x0008_þñ\u0085À+\u009b\u0098/x\u0099³@\u0084aà\u0086ÚO\u0081@ÆO¦?`«rÀ_x0002_Â_x000D_=³Ñ\u009c@_x000B_we\u009eUE´@±Úr\u008cd6aÀ³Ú\u0089îæý*@\u0092ãÚÑýÆ\u008d@$\u0089m÷­?\u0095À/_x0003__x0017_ê_x0007_GBÀ^×_x0012_[ÖöA@B¾_x0008_iUr§@c_x000C_ 2Ñt\u0094ÀÊeNW5{\u0096@5ø\u00938¡\u009bH@m±=ú,¤\u0099Àhù\u008bêë¼\u008f@?\u0080_x001D_±\u008fB\u0090@h_x001C_G¿¤Ý\u0091@çL\u0089_x0005_Ëwd@[\u009c\u0091\u0085ø_x0006_\u0082À2¾_x0004_w®5°@DA7_x001B_¨\u0093cÀ¡Ï\u0099ïí_x0018_\u009bÀã_x000D__x000E_øÞ_x0005_\u009f@V\u0086¬r½»\u0088@*_x0004_\u008cJ{Å£@_x0004_ÊôzP`°À_x0002_\u009f_x0010_*_x0011_\u008d\u0094ÀÓ#bË~6_x0001_@¼ÚHïÜt¶À_x0001__x0002_¡K_x0002_\u0082ì_x001C_OÀIO_x000C_\u0094\u007fà\u0099À!Ñá_x001F_î,µÀö¿\u0099Và\u0087GÀ\\û+«ÝZ\u009bÀ_x0007_QÍJª~\u009fÀ¤^Z\u009fh°q@[\u008b\\2«A°Àþí¼ªD_x000D_\u0094@/ñ_x0003_v\u008eâ\u0088@«5!\u008eË_x0018__x0018_À>\u009c+Ú÷R¬@ð\u0084ã\\\u009f2w@«¯6.1èa@\u0097ç{!¾_x0010_¡Àå\u0090\\ýÈ\u0080\u0094@cì\u009c_x0002_ê_x001A_p@÷C¸+²ß\u0081À\u0088vÄ@_\u009a«ÀÁú_x0017_¿\u009e¯q@ï\u0089\u008b®\u0096ð¯@+³ ²>õ\u0096@ûÒÈô\u008c\u009cr@Ä_mwª'vÀ6\u0088+ÔR¯\u0094@ Ó¹Íöù¡ÀêOt÷©+\u009c@Ï²Pª8\u008c~À%_x0004_tDÉ_x0017_\u009f@­_x0011_©Ä_x001E_I[À_x001A_\u008c¹Ñ¸I\u0088À0)\u008c_x0012__x0001__x0002_/:`À³\u007f_x0012_\u0089\u0091qqÀf \t\u009eOö\u0092@\u00894_x000B_Ìl_x0015_\u0083@{ÈêõIf\u008d@Þ\u0092@Æ¢\u0081±Àè\u008f_x000D__x001A__x001D_Ä«À_x001C_JÔ\u0090Öc\u0093@«_x001F_ÑQ\u00822\u0091@¡x\"ò\u0086_x001C_q@\\vLÔ¯:©ÀN¿C\u0099Þö.À9¦_x0017_Ú5\u008ay@¹Óÿf÷!\u009bÀ¤Ò°\u0081ì(°À:Ê\u0095«F1C@NRÇ×\u0088`\u009dÀ¯áê+\u009d«³ÀG1óÉù/§À©;'eÏ½£@ï&\u009cê_x0002__x0003_\u0089À¹ÑØÀ\u008ea\u0081@_x0008__\u0091ªª¦uÀÍ_x001D_ïÖAÖ+ÀÇ&¨i_x0008__x0019_\u0080@+¥\u0096\u0091ì!c@ÄÕ¥n}0\u0089À¯Fã³®\u008cxÀ?µ==\u008f\u0098\u009a@h\tO®¢Ä\u0092À£è\\_x0015_6w§@Û\u0087ø[m\u007f @_x0007_\tn lf_x0001__x000B_ÂÀ\u0097:ö_x000B_î\u0088|À\u0080ýÖ0ÎB\u008fÀ»ÄV?\u008b_x001F__x000B_ÀM_x0003_\u0099\\!\u0082¶ÀÎÑ|¹\u008e¼\u0091À@@¥Àõ\u0095mÀô_x000E_2PèOª@®_x0019_k´ñ_x0006_\u0094@_x0004__x001E_q_x000C_ì1\u0091@ÛÖ,2q,j@9_x0008_\u0093±,9u@_x001D_Vàæ}$jÀS²_x0001_2¾º\u0087@B_x0012__x000B__x0012__x000C__x0015_s@&_x000B_»¤e_x0001_\u008e@P A_x0005_î_x0019_\u008bÀõ\u0085ÇäØ_x0019_\u0095@7_x000C_öäfä`@yé_x000C_0Å'T@_x000D_*<oÿù\u0085À¿_x0012_._x001A_¨\u008e\u0098À+Î]Ú<Ì\u0084Àøí¬þ«mrÀ*Ê;D3´ @ÄÊ#_x0014_\u0093Ò}@oo2\u009cJA\u0081@_x000F_«íÍr_x0002_¤À6»ÅÂ@` @ïÖ[x_x0010_\u008e~@Ó½ÓdË2\u008dÀ\u0082þ §_x0001__x0002__x0011_m¸Àñ_x0012_Îé8~o@_x001E_ªê %tR@nÿv¯_x001E_Ý¿Àp®Õî\u008c¼eÀV²rî_x0017_Z\u0092À¾QÖ4u;\u0095ÀÏô·\u0099x\u008c À\u0084_x0006_R_x001B_\u0091ÆZ@ÇWQNHÈ @ñög³\u0087M\u008cÀ0uðJÞõsÀK_x001E_Sò0ÂX@ç\u0094_x0001_ÿÌÞx@\u0095[tóäÖ\u0092À3Å_þ\u0092\u0084\u0086@\u0083_x0014_9ÜðL¥@\u007fhÌ\u008aÎP\u0083@+æd³½Æ\u0095@ÄüÅdº \u0086@Ä×ÆöÉ_x000F_E@\u009e\u0087Ç_x0016_è]\u0082ÀØê;>L¥\u0094À_é\u0099FZ(w@à%ù:_x0011_HZ@gk¶qù_x001F_@À{HÀ\u0097\u008aÿ\u0092@{<\u00923½<\u0095@_x0008_\u008akuïorÀf\u0080Ñ\u009b\u008bzo@]N8`_x0019__x001C_\u0081Àª\tÌ¯_x0017__x0002_pÀ_x0005__x0006_»ôctÎ_x0013_\u008dÀ´Þds¹Ë\u0084À>´3â_x0019_i\u0087@Ñ\u0095Nû_x000C_¼\u0096À²Ñé@_x0004__x0018_µÀ\u008eØ)_x000C_ÂH\u0088ÀÉ´»o9&\u009c@\u0083_x000D_©HÆÑ\u009c@_x0007_Ö!\u0099´°¥À 5ø°³Ý\u0099@\"Iíæ]\u0086\u009e@ù°_x0010_&ï\u009dzÀ\u0080K\u008b\u008a-c\u009dÀ_x0013_ã_x0004_}_x0018_ \u0093Àë_x0002_CJ^rKÀÖ_x0011__x0003__x0017_=Pa@Î*p_x0013_ÛÖF@ä\u0093Ð,ÌG\u0081@\u009c\u0094/¬hC\u009f@\u0090ÍqÜ»U\u008cÀ_x0010_n­0\u0095Í\u0082@C¬n\u008a|½\u0089ÀM\\_x0011_víè @ÁL\u0091MÞÅwÀc_x0004_LkÝª @ß&#þ»\u00978@Á\u00819_x0001_dY\u0084@ÂÔ|óò¸iÀ_x001F__x001B_í\u0095=â\u0094@ü_x0018_qém\u008f;À®dtåÃ_x0015_³@L\tòS_x0001__x0003__x001B_g\u008eÀ~\u009cÑHÎ¹ºÀ·_x0019__x000B_²ùV^@çd:¿®ÕJ@\u0094åè_x001D_ùB À²©W?WH«@·OZzYÂª@qÓ¤IKfuÀmäÅ¨¢¼iÀpPãO­)\u008cÀäÕ'ä~Ú\u0095@2w_x000D_õÚ¹±ÀYI31Y+°À8\u009fH(_x0002_¸µÀ»(ø<_x0011_\u0098­@_x001F_'\u009dN_x0003_ÝxÀZÄ7ö§_x0003_\u0081@I^4Ãì~HÀy¾_x0012_*5Á£@_x001D_o{\u008d_x0004_¡\u0084À_x0011_h\u0086X|\u0099\u009fÀóö@å¹Á\u0095@_x0015__x0014_4m@\u0094\u0094@\u008fëtý\u009c0cÀ_x0007__x0010__x0014_ò\u0092µZ@\u009de_x0014_Ò¨ö\u0095Àá}_x000D__x000B_Ä\u008c\u007fÀÍR\u0088Á\u0095î©Àú\u0091fd_x001A_\u009coÀÎ\u008dFïtÓp@7BeÓÕ¥\u0094À_x000B_õ$càé{À_x0001_\tÎyiß\u008c_x0005_¶Àü÷_x0006_PÊ¡©Àwè_x000B_ÙûªhÀæU_x0007_\u008a½¬²Àïnl_x0016_ù2{@wÂá`_x000D_ûë¿\u0089È\u0089_x0019_:å³À_x0004_[\u0094_x0007_\u0086{\u008fÀ_x001D_2e`¦E\u0088À¦r=5)ª¥Àä_x0002_©ê\\V\u0094ÀØ_x0010__x0003_¡Ù8\u0086@K~xÈ$\t\u008bÀWN\u0084T.·Z@#d_x0013_ÐSö£@Tbª_x0015_:£\u0088@\\:t\u0096_x001E_ \u009a@Tq´ñ\u0091_x001D_\u0093Àå4H¯1\u008dµÀ®a?HÌ¤pÀ_x001C_}J0T'_x001E_@Ê¾_x0016_e?_x001F_\u0089À¢2\u0080nVh[À!o )Yò\u0094@¦ÿ¼¬_x000B_å·ÀñRð¼Íy\u008fÀ_x0010_\u009bÙ«NÛ\u009b@_x0008_S,[¿_x0014_ @»ÑhÂ÷;²ÀBçí\u0088\u0094ãiÀ`}>\u009c²\u0099¨@¯îÓ?_x0001__x0002__x0010_öDÀ\u008c+°(©¯[@}_x001A_cY¹\u009dqÀ¡^\u0098B?\"r@¼ [_x0014_1Ùv@_x000D_o\u008fúCò£@°0¸t)\u008c\u008eÀ^c\u0095ë¼iª@_x0006_\u0084¯Ç_x0007_\u0083\u009b@ _x0004_Euðì\u0085Àv\u008cîäZÒ¡@£,äï@·\u009b@\u0093W¾Ï§+r@!`qóû<\u0081Àç_x0004_Á·7Õ®@TZlg)P¬À\u0084mMBF\u0087\u0088À\u0082_x0010_¡\u0098_x001C__x0002_v@.2Á²G\u0081}ÀáÆ2¤\u009c¤¥@H\u0088\u0088j_x000E_9\u0093@ÈC_x0003_ÒÖ`¨@¨ÿ_x001F_\u0080\u008f\u0088h@õz&µ\u0088_x0017_¦@²\u008d\u008d4Ä3©@\u009cFº[M_x0001_¨Àÿ\u0094ªa°\u009f\u0083@sº_x0013__x0002_Èø°@z«äõÙ&\u009e@};_x0019_ºK\u008bMÀ_x001D_AvHàÅS@m$_x0005_\u0081\u0088S2@"}},{"$cut":{"chars":96978,"head":"827852ef5035b4348ea31156975b0e9a_x0001__x0002__x0001__x0001__x0001__x0001__x0001__x0001__x0001__x0001__x0001__x0001__x0001__x0001__x0001__x0001__x0001__x0001__x0001__x0001__x0001__x0001__x0001__x0001__x0001__x0001__x0001__x0001__x0001__x0001__x0001__x0001__x0001__x0001__x0001__x0001__x0001__x0001__x0001__x0001__x0001__x0001__x0001__x0001__x0001__x0001__x0001__x0001__x0001__x0001__x0001__x0001__x0001__x0001__x0001__x0001__x0001__x0001__x0001__x0001__x0001__x0001__x0001__x0001__x0001__x0001__x0001__x0001__x0001__x0001__x0001__x0001__x0001__x0001__x0001__x0001__x0001__x0001__x0001__x0001__x0001__x0001__x0001__x0001__x0001__x0001__x0001__x0001__x0001__x0001__x0001__x0001__x0001__x0001__x0001__x0001__x0001__x0001__x0001__x0001__x0001__x0001__x0001__x0001__x0001__x0001__x0001__x0001__x0001__x0001__x0001__x0001__x0001__x0001__x0001__x0001__x0001__x0001__x0001__x0001__x0001__x0001__x0001__x0001__x0001__x0001__x0001__x0001__x0001__x0001__x0001__x0001__x0001__x0001__x0001__x0001__x0001__x0001__x0001__x0001__x0001__x0001__x0001__x0001__x0001__x0001__x0001__x0001__x0001__x0001__x0001__x0001__x0001__x0001__x0001__x0001__x0001__x0001__x0001__x0001__x0001__x0001__x0001__x0001__x0001__x0001__x0001__x0001__x0001__x0001__x0001__x0001__x0001__x0001__x0001__x0001__x0001__x0001__x0001__x0001__x0001__x0001__x0001__x0001__x0001__x0001__x0001__x0001__x0001__x0001__x0001__x0001__x0001__x0001__x0001__x0001__x0001__x0001__x0001__x0001__x0001__x0001__x0001__x0001__x0001__x0001__x0001__x0001__x0001__x0001__x0001__x0001__x0001__x0001__x0001__x0001__x0001__x0001__x0001__x0001__x0001__x0001__x0001__x0001__x0001__x0001__x0001__x0001__x0001__x0001__x0001__x0001__x0001__x0001__x0001__x0001__x0001__x0001__x0001__x0001__x0001__x0001__x0001__x0001__x0001__x0001__x0001__x0001__x0001__x0001__x0001__x0001__x0001__x0001__x0001__x0002__x0001__x0001__x0001__x0001__x0001__x0001__x0001__x0001__x0001__x0001__x0001__x0001__x0001__x0001__x0001__x0001__x0001__x0001__x0001__x0001__x0001__x0001__x0001__x0001__x0001__x0001__x0001__x0001__x0001__x0001__x0001__x0001__x0001__x0001__x0001__x0001__x0001__x0001__x0001__x0001__x0001__x0001__x0001__x0001__x0001__x0001__x0001__x0001__x0001__x0001__x0001__x0001__x0001__x0001__x0001__x0001__x0001__x0001__x0001__x0001__x0001__x0001__x0001__x0001__x0001__x0001__x0001__x0001__x0001__x0001__x0001__x0001__x0001__x0001__x0001__x0001__x0001__x0001__x0001__x0001__x0001__x0001__x0001__x0001__x0001__x0001__x0001__x0001__x0001__x0001__x0001__x0001__x0001__x0001__x0001__x0001__x0001__x0001__x0001__x0001__x0001__x0001__x0001__x0001__x0001__x0001__x0001__x0001__x0001__x0001__x0001__x0001__x0001__x0001__x0001__x0001__x0001__x0001__x0001__x0001__x0001__x0001__x0001__x0001__x0001__x0001__x0001__x0001__x0001__x0001__x0001__x0001__x0001__x0001__x0001__x0001__x0001__x0001__x0001__x0001__x0001__x0001__x0001__x0001__x0001__x0001__x0001__x0001__x0001__x0001__x0001__x0001__x0001__x0001__x0001__x0001__x0001__x0001__x0001__x0001__x0001__x0001__x0001__x0001__x0001__x0001__x0001__x0001__x0001__x0001__x0001__x0001__x0001__x0001__x0001__x0001__x0001__x0001__x0001__x0001__x0001__x0001__x0001__x0001__x0001__x0001__x0001__x0001__x0001__x0001__x0001__x0001__x0001__x0001__x0001__x0001__x0001__x0001__x0001__x0001__x0001__x0001__x0001__x0001__x0001__x0001__x0001__x0001__x0001__x0001__x0001__x0001__x0001__x0001__x0001__x0001__x0001__x0001__x0001__x0001__x0001__x0001__x0001__x0001__x0001__x0001__x0001__x0001__x0001__x0001__x0001__x0001__x0001__x0001__x0001__x0001__x0001__x0001__x0001__x0001__x0001__x0001__x0001__x0001__x0001__x0001__x0001__x0001__x0001__x0001__x0001__x0001__x0001__x0002__x0001__x0001__x0001__x0001__x0001__x0001__x0001__x0001__x0001__x0001__x0001__x0001__x0001__x0001__x0001__x0001__x0001__x0001__x0001__x0001__x0001__x0001__x0001__x0001__x0001__x0001__x0001__x0001__x0001__x0001__x0001__x0001__x0001__x0001__x0001__x0001__x0001__x0001__x0001__x0001__x0001__x0001__x0001__x0001__x0001__x0001__x0001__x0001__x0001__x0001__x0001__x0001__x0001__x0001__x0001__x0001__x0001__x0001__x0001__x0001__x0001__x0001__x0001__x0001__x0001__x0001__x0001__x0001__x0001__x0001__x00"}},{"$cut":{"chars":168936,"head":"d2d305cbe3e56f8e2f0bb8b4213b8e08_x0001__x0002__x0001__x0001__x0001__x0001__x0008_\u0083_x0018_A_x0001__x0001__x0001__x0001__x0008_\u0083_x0018_A_x0001__x0001__x0001__x0001__x0008_\u0083_x0018_A_x0001__x0001__x0001__x0001__x0008_\u0083_x0018_A_x0001__x0001__x0001__x0001_(Ñ_x0018_A_x0001__x0001__x0001__x0001_(Ñ_x0018_A_x0001__x0001__x0001__x0001__x0008_\u0083_x0018_A_x0001__x0001__x0001__x0001__x0008_\u0083_x0018_A_x0001__x0001__x0001__x0001__x0008_\u0083_x0018_A_x0001__x0001__x0001__x0001__x0008_\u0083_x0018_A_x0001__x0001__x0001__x0001__x0008_\u0083_x0018_A_x0001__x0001__x0001__x0001_(Ñ_x0018_A_x0001__x0001__x0001__x0001_ÈW_x001A_A_x0001__x0001__x0001__x0001__x0008_\u0083_x0018_A_x0001__x0001__x0001__x0001__x0008_\u0083_x0018_A_x0001__x0001__x0001__x0001__x0008_\u0083_x0018_A_x0001__x0001__x0001__x0001__x0008_\u0083_x0018_A_x0001__x0001__x0001__x0001__x0008_\u0083_x0018_A_x0001__x0001__x0001__x0001__x0008_\u0083_x0018_A_x0001__x0001__x0001__x0001_(Ñ_x0018_A_x0001__x0001__x0001__x0001__x0008_\u0083_x0018_A_x0001__x0001__x0001__x0001__x0008_\u0083_x0018_A_x0001__x0001__x0001__x0001__x0008_\u0083_x0018_A_x0001__x0001__x0001__x0001__x0008_\u0083_x0018_A_x0001__x0001__x0001__x0001__x0008_\u0083_x0018_A_x0001__x0001__x0001__x0001_(Ñ_x0018_A_x0001__x0001__x0001__x0001__x0008_\u0083_x0018_A_x0001__x0001__x0001__x0001__x0008_\u0083_x0018_A_x0001__x0001__x0001__x0001__x0008_\u0083_x0018_A_x0001__x0001__x0001__x0001__x0008_\u0083_x0018_A_x0001__x0001__x0001__x0001__x0008_\u0083_x0018_A_x0001__x0001__x0001__x0001__x0001__x0002_(Ñ_x0018_A_x0001__x0001__x0001__x0001__x0008_\u0083_x0018_A_x0001__x0001__x0001__x0001__x0008_\u0083_x0018_A_x0001__x0001__x0001__x0001__x0008_\u0083_x0018_A_x0001__x0001__x0001__x0001__x0008_\u0083_x0018_A_x0001__x0001__x0001__x0001__x0008_\u0083_x0018_A_x0001__x0001__x0001__x0001__x0008_\u0083_x0018_A_x0001__x0001__x0001__x0001__x0008_\u0083_x0018_A_x0001__x0001__x0001__x0001__x0008_\u0083_x0018_A_x0001__x0001__x0001__x0001__x0008_\u0083_x0018_A_x0001__x0001__x0001__x0001__x0008_\u0083_x0018_A_x0001__x0001__x0001__x0001__x0008_\u0083_x0018_A_x0001__x0001__x0001__x0001__x0008_\u0083_x0018_A_x0001__x0001__x0001__x0001_(Ñ_x0018_A_x0001__x0001__x0001__x0001__x0008_\u0083_x0018_A_x0001__x0001__x0001__x0001__x0008_\u0083_x0018_A_x0001__x0001__x0001__x0001__x0008_\u0083_x0018_A_x0001__x0001__x0001__x0001__x0008_\u0083_x0018_A_x0001__x0001__x0001__x0001__x0008_\u0083_x0018_A_x0001__x0001__x0001__x0001_H_x001F__x0019_A_x0001__x0001__x0001__x0001__x0008_\u0083_x0018_A_x0001__x0001__x0001__x0001__x0008_\u0083_x0018_A_x0001__x0001__x0001__x0001__x0008_\u0083_x0018_A_x0001__x0001__x0001__x0001__x0008_\u0083_x0018_A_x0001__x0001__x0001__x0001__x0008_\u0083_x0018_A_x0001__x0001__x0001__x0001__x0008_\u0083_x0018_A_x0001__x0001__x0001__x0001__x0008_\u0083_x0018_A_x0001__x0001__x0001__x0001__x0008_\u0083_x0018_A_x0001__x0001__x0001__x0001__x0008_\u0083_x0018_A_x0001__x0001__x0001__x0001__x0008_\u0083_x0018_A_x0001__x0001__x0001__x0001__x0008_\u0083_x0018_A_x0001__x0001__x0001__x0001__x0008_\u0083_x0018_A_x0001__x0002__x0001__x0001__x0001__x0001__x0008_\u0083_x0018_A_x0001__x0001__x0001__x0001__x0008_\u0083_x0018_A_x0001__x0001__x0001__x0001_(Ñ_x0018_A_x0001__x0001__x0001__x0001__x0008_\u0083_x0018_A_x0001__x0001__x0001__x0001__x0008_\u0083_x0018_A_x0001__x0001__x0001__x0001__x0008_\u0083_x0018_A_x0001__x0001__x0001__x0001__x0008_\u0083_x0018_A_x0001__x0001__x0001__x0001__x0008_\u0083_x0018_A_x0001__x0001__x0001__x0001__x0008_\u0083_x0018_A_x0001__x0001__x0001__x0001__x0008_\u0083_x0018_A_x0001__x0001__x0001__x0001__x0008_\u0083_x0018_A_x0001__x0001__x0001__x0001__x0008_\u0083_x0018_A_x0001__x0001__x0001__x0001__x0008_\u0083_x0018_A_x0001__x0001__x0001__x0001__x0008_\u0083_x0018_A_x0001__x0001__x0001__x0001_(Ñ_x0018_A_x0001__x0001__x0001__x0001__x0008_\u0083_x0018_A_x0001__x0001__x0001__x0001__x0008_\u0083_x0018_A_x0001__x0001__x0001__x0001_(Ñ_x0018_A_x0001__x0001__x0001__x0001__x0008_\u0083_x0018_A_x0001__x0001__x0001__x0001__x0008_\u0083_x0018_A_x0001__x0001__x0001__x0001_(Ñ_x0018_A_x0001__x0001__x0001__x0001__x0008_\u0083_x0018_A_x0001__x0001__x0001__x0001__x0008_\u0083_x0018_A_x0001__x0001__x0001__x0001__x0008_\u0083_x0018_A_x0001__x0001__x0001__x0001__x0008_\u0083_x0018_A_x0001__x0001__x0001__x0001__x0008_\u0083_x0018_A_x0001__x0001__x0001__x0001__x0008_\u0083_x0018_A_x0001__x0001__x0001__x0001_(Ñ_x0018_A_x0001__x0001__x0001__x0001_(Ñ_x0018_A_x0001__x0001__x0001__x0001__x0008_\u0083_x0018_A_x0001__x0001_"}},{"$cut":{"chars":99882,"head":"4cc1f0e7928a8196c9d4a0b2aa0ed69e_x0001__x0002__x0001__x0001__x0001__x0001_à\u008d_x0019_A_x0001__x0001__x0001__x0001_à\u008d_x0019_A_x0001__x0001__x0001__x0001_à\u008d_x0019_A_x0001__x0001__x0001__x0001_à\u008d_x0019_A_x0001__x0001__x0001__x0001_`I_x001A_A_x0001__x0001__x0001__x0001_ ­_x0019_A_x0001__x0001__x0001__x0001_à\u008d_x0019_A_x0001__x0001__x0001__x0001_à\u008d_x0019_A_x0001__x0001__x0001__x0001_à\u008d_x0019_A_x0001__x0001__x0001__x0001_à\u008d_x0019_A_x0001__x0001__x0001__x0001_à\u008d_x0019_A_x0001__x0001__x0001__x0001_à\u008d_x0019_A_x0001__x0001__x0001__x0001__x0001_Ü_x0019_A_x0001__x0001__x0001__x0001__x0001_Ü_x0019_A_x0001__x0001__x0001__x0001_à\u008d_x0019_A_x0001__x0001__x0001__x0001_à\u008d_x0019_A_x0001__x0001__x0001__x0001_à\u008d_x0019_A_x0001__x0001__x0001__x0001__x0001_Ü_x0019_A_x0001__x0001__x0001__x0001_à\u008d_x0019_A_x0001__x0001__x0001__x0001_à\u008d_x0019_A_x0001__x0001__x0001__x0001_ *_x001A_A_x0001__x0001__x0001__x0001__x0001_Ü_x0019_A_x0001__x0001__x0001__x0001_à\u008d_x0019_A_x0001__x0001__x0001__x0001_à\u008d_x0019_A_x0001__x0001__x0001__x0001_à\u008d_x0019_A_x0001__x0001__x0001__x0001_à\u008d_x0019_A_x0001__x0001__x0001__x0001__x0001_Ü_x0019_A_x0001__x0001__x0001__x0001_à\u008d_x0019_A_x0001__x0001__x0001__x0001_à\u008d_x0019_A_x0001__x0001__x0001__x0001_À9_x001A_A_x0001__x0001__x0001__x0001_à\u008d_x0019_A_x0001__x0001__x0001__x0001__x0001__x0002_à\u008d_x0019_A_x0001__x0001__x0001__x0001_à\u008d_x0019_A_x0001__x0001__x0001__x0001__x0001_Ü_x0019_A_x0001__x0001__x0001__x0001__x0001_Ü_x0019_A_x0001__x0001__x0001__x0001_à\u008d_x0019_A_x0001__x0001__x0001__x0001_à\u008d_x0019_A_x0001__x0001__x0001__x0001_à\u008d_x0019_A_x0001__x0001__x0001__x0001__x0001_Ü_x0019_A_x0001__x0001__x0001__x0001_à\u008d_x0019_A_x0001__x0001__x0001__x0001_à\u008d_x0019_A_x0001__x0001__x0001__x0001_à\u008d_x0019_A_x0001__x0001__x0001__x0001_à\u008d_x0019_A_x0001__x0001__x0001__x0001_à\u008d_x0019_A_x0001__x0001__x0001__x0001_@û_x0019_A_x0001__x0001__x0001__x0001__x0001_Ü_x0019_A_x0001__x0001__x0001__x0001_à\u008d_x0019_A_x0001__x0001__x0001__x0001_à\u008d_x0019_A_x0001__x0001__x0001__x0001_à\u008d_x0019_A_x0001__x0001__x0001__x0001__x0001_Ü_x0019_A_x0001__x0001__x0001__x0001_à\u008d_x0019_A_x0001__x0001__x0001__x0001_à\u008d_x0019_A_x0001__x0001__x0001__x0001_à\u008d_x0019_A_x0001__x0001__x0001__x0001_à\u008d_x0019_A_x0001__x0001__x0001__x0001_à\u008d_x0019_A_x0001__x0001__x0001__x0001_à\u008d_x0019_A_x0001__x0001__x0001__x0001_à\u008d_x0019_A_x0001__x0001__x0001__x0001_ *_x001A_A_x0001__x0001__x0001__x0001_à\u008d_x0019_A_x0001__x0001__x0001__x0001_à\u008d_x0019_A_x0001__x0001__x0001__x0001_à\u008d_x0019_A_x0001__x0001__x0001__x0001__x0001_Ü_x0019_A_x0001__x0001__x0001__x0001_à\u008d_x0019_A_x0001__x0002__x0001__x0001__x0001__x0001_à\u008d_x0019_A_x0001__x0001__x0001__x0001_à\u008d_x0019_A_x0001__x0001__x0001__x0001_à\u008d_x0019_A_x0001__x0001__x0001__x0001__x0001_Ü_x0019_A_x0001__x0001__x0001__x0001__x0001_Ü_x0019_A_x0001__x0001__x0001__x0001_à\u008d_x0019_A_x0001__x0001__x0001__x0001_à\u008d_x0019_A_x0001__x0001__x0001__x0001__x0001_Ü_x0019_A_x0001__x0001__x0001__x0001_à\u008d_x0019_A_x0001__x0001__x0001__x0001_à\u008d_x0019_A_x0001__x0001__x0001__x0001_à\u008d_x0019_A_x0001__x0001__x0001__x0001__x0001_Ü_x0019_A_x0001__x0001__x0001__x0001__x0001_Ü_x0019_A_x0001__x0001__x0001__x0001__x0001_Ü_x0019_A_x0001__x0001__x0001__x0001_ ë_x0019_A_x0001__x0001__x0001__x0001_à\u008d_x0019_A_x0001__x0001__x0001__x0001_à\u008d_x0019_A_x0001__x0001__x0001__x0001_à\u008d_x0019_A_x0001__x0001__x0001__x0001_à\u008d_x0019_A_x0001__x0001__x0001__x0001_à\u008d_x0019_A_x0001__x0001__x0001__x0001_à\u008d_x0019_A_x0001__x0001__x0001__x0001__x0001_Ü_x0019_A_x0001__x0001__x0001__x0001_à\u008d_x0019_A_x0001__x0001__x0001__x0001_à\u008d_x0019_A_x0001__x0001__x0001__x0001_à\u008d_x0019_A_x0001__x0001__x0001__x0001_à\u008d_x0019_A_x0001__x0001__x0001__x0001_@û_x0019_A_x0001__x0001__x0001__x0001__x0001_Ü_x0019_A_x0001__x0001__x0001__x0001_à\u008d_x0019_A_x0001__x0001__x0001__x0001_à\u008d_x0019_A_x0001__x0001__x0001__x0001_à\u008d_x0019_A_x0001__x0001__x0001__x0001__x0001__x0002_à\u008d_x0019_A_x0001__x0001__x0001__x0001_à\u008d_x0019_A_x0001__x0001__x0001__x0001_à\u008d_x0019_A_x0001__x0001__x0001__x0001_à\u008d_x0019_A_x0001__x0001__x0001__x0001_ ­_x0019_A_x0001__x0001__x0001__x0001__x0001_Ü_x0019_A_x0001__x0001__x0001__x0001_à\u008d_x0019_A_x0001__x0001__x0001__x0001_à\u008d_x0019_A_x0001__x000"}},{"$cut":{"chars":56808,"head":"ab672f325046d4137fe3f4958cd0c34f_x0002__x0003__x0011_H\"q+íð@QÈÙ×¤&ò@\u009e/\u0080!ÙRñ@\u0093¿ûj\u008b_x0007_ñ@\u007f\u00846ty_x0007_ò@.ÐWªÇíð@/*\u0095Ì»Gñ@:\u0099ê}z\u008eñ@_2\u0095\u0098âgñ@xëù\u0097Ö_x001A_ñ@_x0011_±ÆÙâgð@_x0011_¥\u009aOw\u0091ñ@\u0083}\u0095Mö\u0093ñ@\u008b¡Ú\u0098ø¥ð@Ò\u0089xe\u0098_x0019_ñ@ÿð\u0094¯Úóñ@Ù£$\\çàð@_x0015_\u009d\\No¥ñ@\u009düW_x0001_:Sò@cõ,\u0083\u0089Õñ@_x001D__x001F_³£\u008aPñ@\u0090á_x001D__x001D__x000C__x0003_ñ@_x0015_ý`ïh_x0006_ò@@n_x0014_~\u008dÚñ@L_x001C_ÛëV\u008eð@_x001C_ÄA_x000D_U_x0014_ñ@ÑëqIÍ_x000C_ñ@¬Éúýr)ñ@\u009cÓ_x000C_\u008dØÆñ@\u0091YF\u0088å[ñ@ÀîÈ¥tüñ@l´q°_x0003__x0005__x0001_¹ð@ý\u0095_x0015_òWµñ@\u0087ç?ÄÊ¡ñ@<«P\u0087²\u0096ñ@y±ÝÚüÛñ@¯¬ãâÍ¥ñ@_x000C_\u008bæ_x000B__x0004_\u009eð@çvOÔeyñ@PßÂY®¤ñ@_x0003_q¦N«_x001C_ñ@é%w_x0001_|_x0018_ñ@/R_x000C_«J½ñ@\u0090=\u0097º;·ñ@b_Æ_x001D_õ\u0090ñ@\\¦_x0006_ß5\u0085ñ@mZ\u0095_x0005_\u0080}ñ@< \u0097¢_x0002_jñ@Þïz_x0019_M\u008eñ@®\u009b\u0083üCæð@àÐ ß\u0080±ð@i¬ÖÒ*_x000F_ñ@HªÛÈÐ!ñ@¼×-oÔ\u0093ñ@\t_x0002_Ù_x000B__x0004_\u0096ñ@¦ýl_x001C_\u0098|ð@Ê-o.:«ñ@\u0096`èxâøñ@´ØV_x0013_\u009a\u0090ñ@rêW¾«6ñ@_x000E_`]t_x0006_\u009bñ@\u0094pÈó_x0018_äð@3\u0083VK\\½ñ@_x0002__x0005_)Ø\u008d\u0094ÿ§ð@½D^¸_x0006_Öñ@Î\u009e°õ\u0091äñ@½_x0015_@Nû¬ñ@&½(`Ueñ@8®\u009d<\u008f\u0083ð@}D9bñbñ@y_x0001_ðk\u0094)ñ@\tÌ_x001A__x0003_\u0098\u009fñ@\u0092ª¹_x0014_0\u0095ñ@;_x0004_ïÚÿ_x0007_ò@*À~W*8ò@\u008cBÉ_x0008_rzñ@\u0081¦\u0080'oÃð@@ÿ_x000E__x0008_ÂBñ@\u0080\u0084+¤¡Kñ@$\u0094\u0099|\u0096 ñ@|U\u0081Õ/_x0006_ñ@÷\u0099g~@>ò@\u0094f³¦_x0005__x000C_ò@_x001B_ü\u0091ýyîñ@W-Ïê8_x0001_ñ@êaD§h¬ñ@?¸ëÝ_x000E_Éð@C\u0084©=2_x001B_ñ@as_x000C_\u00916Ûñ@vG­_x000B_©ëð@_x0002_ªÆ:Ñ\u0098ð@Û\u0084_x000C_µtLñ@Ï_x0008_ëÞ_\tñ@Ñøh\u0085¦\u008eñ@wC9ý_x0003__x0004_\u0099cñ@À_x0011_ýFÑ´ð@ÎC\u00905\u0081_x0004_ñ@¬È\u0099)â[ð@Í_x0019_ü~_x0003_Iñ@J­Î¿_x0002__x0015_ò@!ÕZ)³_x0008_ñ@_x0018_¼§_x000B_Öåð@ø´_x001D_ho\u0091ñ@c\u0096_x0005_Î|èð@½Fj\"S\u009fñ@1Ð¢F_x0004_Åñ@Ê\u009cþîë\u009añ@(\u0093ðÏ\u0087Ùð@;\u0099é¢ä1ò@dÌÃ*K2ñ@RÂóûÈ8ñ@Hu_x0002_¹Ì_x0007_ò@ì\u008dô8TÐñ@ðôÙ¦_x000C_\"ñ@\u009b&_x0003_6\u0099þð@7_x001C_wî®ãñ@u#_x0001_\u0082è$ñ@\u0098i´¡Xöñ@V_x001A_;\u0095¶Cò@{_x0004_GMNÏð@aJ\u0086~'Ñð@rAW·_x0006_¾ñ@_x000F_/MÉ\u0083Öñ@â\u0099ËP£ôñ@)ñ\u0083ßÜ_x001F_ñ@/×~_x000E_å_x0008_ñ@_x0002__x0003_ÈãÖzè_x0013_ñ@É\u0080\u0086Fü_x0018_ñ@þtî#\u0093\u0081ñ@õ«I H.ñ@vn«P¶_x0019_ñ@¬O\u0082H\t_x001B_ò@25ÖAQßð@Iî\u008c·vµñ@ÎkWã_x001C_©ñ@Q|\\8êçñ@JUÊ_x0001_ºøñ@3¢9}_x0012_kð@Á!\u0081Û®èð@e2®Ð9Õð@_x0012__x0015_¥ºË\u009fñ@A\u0089ÆÐµRñ@óB\u0093?©Qò@\u00939\u009foa\u008dð@Ù-\u0093_x001A_Ìäñ@û_x0014_ý\u007f_x000D_Nñ@ãè\u0099ÊH\u0090ñ@_x0018_fñâÚ×ð@ä\u0081Ý^_Ûð@\u0080yÉÉF\u0097ñ@¼ÝäLÅÅñ@Ú\u009d\u008bII\u0092ñ@_x0012_i¬\u0080x(ò@iBCÓ_x001E_9ñ@Å?èùo_x0014_ò@É2Vñ*´ð@Ç£)ý¶óñ@+ûû\u0098_x0002__x0003_a÷ñ@?TñK\u0089\u0090ñ@Ý!cëJ_x0019_ò@\u0084Êõ\"°\u0093ñ@D4_x000B_ì\u0097Ìñ@2Nª1cúñ@qä_x0001_ØÔ¨ñ@L\u008cmÀ4òð@\u0092V`C)åñ@Ç²É\u0088°\\ñ@Ýsô_x000F_£¼ñ@½yÝi\u008a©ð@!_x0013_ý\\9hñ@Ó?qÚ+:ñ@\u0091s_x0010_`\u0083Cñ@_x0001_6¿ï\u008f.ñ@\u0099_x001E_Â'_x0006_\u007fñ@[\\º}_x001C_öñ@\u0094í\u0080½'ññ@ÍÑ_x0018__x0015_)_x0008_ñ@ëÄfW_x000F_²ð@úã_x0008_aõáñ@_x001B__x000D_çÀÌ$ò@_x0002_)Q/%¤ñ@y_x001C_ í&Æð@´æ\u009d_x0005_!=ñ@ø+å\u008eª½ñ@/{Î\u008eæeð@Y\u009e£}ª²ñ@HZú5À_x0015_ò@3Ö\u0085\u0089bmð@Ï½~öøeñ@_x0001__x0002_k_x000B_î¶_x0003_òñ@{e\u0080Ñ\u0088«ñ@¾_x0002__x0002_5¨;ñ@\u008bÏd¦ 3ñ@dH\u0081f\u0082¨ð@\u0099Þ·1\u0090\u008bñ@¡?_x0007_Äû.ñ@_x0017_µ\u009fG&àð@¨_x0010_o¿Z\u0097ð@®§\u007f_x001F_ORñ@\u0085y#a5¯ð@\u0091°r\u0098_x000F__x000F_ò@:_x0002_cD\u009a\u008añ@T¨ËÈ>Øñ@\u0091<Ú_x0007_V{ð@ÉùÁH«Ýñ@â¾Uä_x0011_9ò@\u008bÞ_x0017__x0018_eOñ@®Í_x000C_(P­ñ@.Û\u0099³cøñ@¶Ã_x0003_v_x000E_7ñ@ÆtÑ\u00953_x001D_ñ@\u0084æN_x000E_{Ìñ@ïåWK\u0081\u0085ñ@x_x0010_\u0091»^Êð@&¤\u008c\u0094Rðñ@â]ãú|dñ@æwÒ_x0012_Ð¶ñ@ \u009du_x0018_[Uñ@ø\u0084øl½Îñ@c\u0099Ì[ï%ñ@ç9Ü°_x0001__x0003_R£ñ@\u0092ã9\u0092\u008dÌð@/î=vH^ñ@»_x0002__x0004_/y\tò@_x0002_¬_x0006_Vå1ñ@vËÍt]\u008cð@àã_x0019_\u0098²_x000C_ñ@Íä_x000F_×\u0087 ñ@_x000B_¯û°±lñ@®¤ôo¡4ñ@aºâV\u0084\u0087ð@KëÏ©_x000B_Èð@sÑÊ«_x0006_Õð@\tâ3Ó¯_x0018_ò@^\u008b_x0012_<_x0006_[ñ@¬]\u007fò_x0004_añ@ºðç 8ïñ@Ç/h­\u0085_x0018_ò@ _x0002_º<½üñ@D_x0006_$§|fñ@ó_x0019_ÜÞîÀð@\u009b#Ù;_x000C_Éñ@U\u008bð_x0002_^\u008bñ@<8àj_x0005__x0018_ñ@ñà_x0013_¹Ó£ñ@Ö\u008aû\u009d\u0093Ôð@èWÌ9_x0014_µñ@þÕVL/\u008cñ@2öò\u008fi_x000E_ñ@0û³Â\u0090Jð@Q\u0085\u0091 A\\ñ@6\u0098\u009eÿÓ\u007fð@_x0002__x0003_ï%[S¬hñ@\u007fÍÀÔ\u008báð@Nz¶}#Hñ@Ú\u008a,Éºãñ@\u0085_x0014_îÝØoñ@Êv­S\u0094³ñ@\u0096Äí´»Áð@KAV¥\u0093&ñ@è`Ã_x0011_3Gñ@¨w7_x0003_\u008a\tð@\u0082!Fÿæ¾ñ@ç\u0086_x0003_¥_x0002_\u0099ñ@°CíÀcmñ@Ò\u0087<¹Z!ò@_x0007_ _x0001_Ûó_x0013_ò@u_x000E__x000C_û@{ñ@\u0091ÊLDW:ò@â#B_x0005_ò_x000E_ñ@Lös_x001F_D\u0085ñ@¡xGó\u0098Úð@-Û¡U\u0091\u0083ñ@¶ÎÐ\u009b»#ñ@ô\u009c\u008eñò_x000F_ò@5_x001C__à\u0083\u0086ñ@_x001C_A_x000F_]_x001B_Ýñ@\"_x0001_ê\u0095`\u0098ñ@_x0014_#\u0085\u0089\u0092Åð@¨WÒ\u009e<\u0089ñ@]û¬ÿ ¦ñ@;_x000E__x0017_Ü³_x0007_ñ@§_x0012__x001F_\u0099eìñ@iÑ¥!_x0001__x0003__x0011__x0013_ò@EÃ_x0005_ô³{ñ@«_x001E_ñ_x0012_Jrñ@Ìbå#Å8ò@ûò_x001B_Q/^ð@ÂwÎ_x0008__x0014_}ñ@\u0088¹_x0010__x000C_Áîï@_x001A_Ã¦\u008bN+ð@ºb>ªÛxñ@°z_x0012_rÝ_x001F_ò@\u0088ñ>\u0086ÐÂñ@_x0015_\u008d_x001A_[Ñ_x0017_ò@óvá]ÇÑñ@Ó0|2ujñ@éú\u0082µº_ñ@nßål»äñ@UwB_x001C_(qñ@Áf7º}Fñ@ü8(ûjeð@=\u0091*}_x0019_Ðð@y\u0092½n\u0080_x0011_ò@yC}¨ûðñ@ nÿ\u0087´_x0014_ò@¸§\u0096ßR8ð@òt\u0098nlÉñ@\\£nt_x0002_5ñ@{:_x0010__x001A_\u0099Ðñ@o6_x001B_R`_x0010_ò@Jø½\u009e½&ñ@éð\u0086_x0007_ Mñ@\u009f\u0087iqÉ_x0005_ò@_x0013_g÷@\u008cqñ@"}},{"$cut":{"chars":43140,"head":"6e18c008240b3049fbb8a5b28d9183bf_x0001__x0002__x0013_\u0083ÀÊ±FÐ@_x0013_\u0083ÀÊ±FÐ@_x0013_\u0083ÀÊ±FÐ@_x0013_\u0083ÀÊ±FÐ@_x0013_\u0083ÀÊ±FÐ@_x0013_\u0083ÀÊ±FÐ@_x0013_\u0083ÀÊ±FÐ@_x0013_\u0083ÀÊ±FÐ@_x0013_\u0083ÀÊ±FÐ@_x0013_\u0083ÀÊ±FÐ@_x0013_\u0083ÀÊ±FÐ@_x0013_\u0083ÀÊ±FÐ@_x0013_\u0083ÀÊ±FÐ@_x0013_\u0083ÀÊ±FÐ@_x0013_\u0083ÀÊ±FÐ@_x0013_\u0083ÀÊ±FÐ@_x0013_\u0083ÀÊ±FÐ@_x0013_\u0083ÀÊ±FÐ@_x0013_\u0083ÀÊ±FÐ@_x0013_\u0083ÀÊ±FÐ@_x0013_\u0083ÀÊ±FÐ@_x0013_\u0083ÀÊ±FÐ@_x0013_\u0083ÀÊ±FÐ@_x0013_\u0083ÀÊ±FÐ@_x0013_\u0083ÀÊ±FÐ@_x0013_\u0083ÀÊ±FÐ@_x0013_\u0083ÀÊ±FÐ@_x0013_\u0083ÀÊ±FÐ@_x0013_\u0083ÀÊ±FÐ@_x0013_\u0083ÀÊ±FÐ@_x0013_\u0083ÀÊ±FÐ@_x0013_\u0083ÀÊ_x0001__x0002_±FÐ@_x0013_\u0083ÀÊ±FÐ@_x0013_\u0083ÀÊ±FÐ@_x0013_\u0083ÀÊ±FÐ@_x0013_\u0083ÀÊ±FÐ@_x0013_\u0083ÀÊ±FÐ@_x0013_\u0083ÀÊ±FÐ@_x0013_\u0083ÀÊ±FÐ@_x0013_\u0083ÀÊ±FÐ@_x0013_\u0083ÀÊ±FÐ@_x0013_\u0083ÀÊ±FÐ@_x0013_\u0083ÀÊ±FÐ@_x0013_\u0083ÀÊ±FÐ@_x0013_\u0083ÀÊ±FÐ@_x0013_\u0083ÀÊ±FÐ@_x0013_\u0083ÀÊ±FÐ@_x0013_\u0083ÀÊ±FÐ@_x0013_\u0083ÀÊ±FÐ@_x0013_\u0083ÀÊ±FÐ@_x0013_\u0083ÀÊ±FÐ@_x0013_\u0083ÀÊ±FÐ@_x0013_\u0083ÀÊ±FÐ@_x0013_\u0083ÀÊ±FÐ@_x0013_\u0083ÀÊ±FÐ@_x0013_\u0083ÀÊ±FÐ@_x0013_\u0083ÀÊ±FÐ@_x0013_\u0083ÀÊ±FÐ@_x0013_\u0083ÀÊ±FÐ@_x0013_\u0083ÀÊ±FÐ@_x0013_\u0083ÀÊ±FÐ@_x0013_\u0083ÀÊ±FÐ@_x0013_\u0083ÀÊ±FÐ@_x0001__x0002__x0013_\u0083ÀÊ±FÐ@_x0013_\u0083ÀÊ±FÐ@_x0013_\u0083ÀÊ±FÐ@_x0013_\u0083ÀÊ±FÐ@_x0013_\u0083ÀÊ±FÐ@_x0013_\u0083ÀÊ±FÐ@_x0013_\u0083ÀÊ±FÐ@_x0013_\u0083ÀÊ±FÐ@_x0013_\u0083ÀÊ±FÐ@_x0013_\u0083ÀÊ±FÐ@_x0013_\u0083ÀÊ±FÐ@_x0013_\u0083ÀÊ±FÐ@_x0013_\u0083ÀÊ±FÐ@_x0013_\u0083ÀÊ±FÐ@_x0013_\u0083ÀÊ±FÐ@_x0013_\u0083ÀÊ±FÐ@_x0013_\u0083ÀÊ±FÐ@_x0013_\u0083ÀÊ±FÐ@_x0013_\u0083ÀÊ±FÐ@_x0013_\u0083ÀÊ±FÐ@_x0013_\u0083ÀÊ±FÐ@_x0013_\u0083ÀÊ±FÐ@_x0013_\u0083ÀÊ±FÐ@_x0013_\u0083ÀÊ±FÐ@_x0013_\u0083ÀÊ±FÐ@_x0013_\u0083ÀÊ±FÐ@_x0013_\u0083ÀÊ±FÐ@_x0013_\u0083ÀÊ±FÐ@_x0013_\u0083ÀÊ±FÐ@_x0013_\u0083ÀÊ±FÐ@_x0013_\u0083ÀÊ±FÐ@_x0013_\u0083ÀÊ_x0001__x0002_±FÐ@_x0013_\u0083ÀÊ±FÐ@_x0013_\u0083ÀÊ±FÐ@_x0013_\u0083ÀÊ±FÐ@_x0013_\u0083ÀÊ±FÐ@_x0013_\u0083ÀÊ±FÐ@_x0013_\u0083ÀÊ±FÐ@_x0013_\u0083ÀÊ±FÐ@_x0013_\u0083ÀÊ±FÐ@_x0013_\u0083ÀÊ±FÐ@_x0013_\u0083ÀÊ±FÐ@_x0013_\u0083ÀÊ±FÐ@_x0013_\u0083ÀÊ±FÐ@_x0013_\u0083ÀÊ±FÐ@_x0013_\u0083ÀÊ±FÐ@_x0013_\u0083ÀÊ±FÐ@_x0013_\u0083ÀÊ±FÐ@_x0013_\u0083ÀÊ±FÐ@_x0013_\u0083ÀÊ±FÐ@_x0013_\u0083ÀÊ±FÐ@_x0013_\u0083ÀÊ±FÐ@_x0013_\u0083ÀÊ±FÐ@_x0013_\u0083ÀÊ±FÐ@_x0013_\u0083ÀÊ±FÐ@_x0013_\u0083ÀÊ±FÐ@_x0013_\u0083ÀÊ±FÐ@_x0013_\u0083ÀÊ±FÐ@_x0013_\u0083ÀÊ±FÐ@_x0013_\u0083ÀÊ±FÐ@_x0013_\u0083ÀÊ±FÐ@_x0013_\u0083ÀÊ±FÐ@_x0013_\u0083ÀÊ±FÐ@_x0001__x0002__x0013_\u0083ÀÊ±FÐ@_x0013_\u0083ÀÊ±FÐ@_x0013_\u0083ÀÊ±FÐ@_x0013_\u0083ÀÊ±FÐ@_x0013_\u0083ÀÊ±FÐ@_x0013_\u0083ÀÊ±FÐ@_x0013_\u0083ÀÊ±FÐ@_x0013_\u0083ÀÊ±FÐ@_x0013_\u0083ÀÊ±FÐ@_x0013_\u0083ÀÊ±FÐ@_x0013_\u0083ÀÊ±FÐ@\\\u008fÂõ8uÖ@\\\u008fÂõ8uÖ@\\\u008fÂõ8uÖ@\\\u008fÂõ8uÖ@\\\u008fÂõ8uÖ@\\\u008fÂõ8uÖ@\\\u008fÂõ8uÖ@\\\u008fÂõ8uÖ@\\\u008fÂõ8uÖ@\\\u008fÂõ8uÖ@\\\u008fÂõ8uÖ@\\\u008fÂõ8uÖ@\\\u008fÂõ8uÖ@\\\u008fÂõ8uÖ@\\\u008fÂõ8uÖ@3333\u0087_x0012_Ü@\\\u008fÂõ8uÖ@\\\u008fÂõ8uÖ@3333\u0087_x0012_Ü@\\\u008fÂõ8uÖ@\\\u008fÂõ_x0001__x0002_8uÖ@3333\u0087_x0012_Ü@\\\u008fÂõ8uÖ@\\\u008fÂõ8uÖ@\\\u008fÂõ8uÖ@\\\u008fÂõ8uÖ@\\\u008fÂõ8uÖ@3333\u0087_x0012_Ü@\\\u008fÂõ8uÖ@\\\u008fÂõ8uÖ@\\\u008fÂõ8uÖ@\\\u008fÂõ8uÖ@\\\u008fÂõ8uÖ@\\\u008fÂõ8uÖ@3333\u0087_x0012_Ü@\\\u008fÂõ8uÖ@\\\u008fÂõ8uÖ@\\\u008fÂõ8uÖ@\\\u008fÂõ8uÖ@\\\u008fÂõ8uÖ@\\\u008fÂõ8uÖ@3333\u0087_x0012_Ü@\\\u008fÂõ8uÖ@\\\u008fÂõ8uÖ@\\\u008fÂõ8uÖ@\\\u008fÂõ8uÖ@3333\u0087_x0012_Ü@\\\u008fÂõ8uÖ@3333\u0087_x0012_Ü@\\\u008fÂõ8uÖ@\\\u008fÂõ8uÖ@\\\u008fÂõ8uÖ@_x0001__x0002_\\\u008fÂõ8uÖ@\\\u008fÂõ8uÖ@\\\u008fÂõ8uÖ@\u0081%_x0001__x0001_\u0082%_x0001__x0001_\u0083%_x0001__x0001_\u0084%_x0001__x0001_\u0085%_x0001__x0001_\u0086%_x0001__x0001_\u0087%_x0001__x0001_\u0088%_x0001__x0001_\u0089%_x0001__x0001_\u008a%_x0001__x0001_\u008b%_x0001__x0001_\u008c%_x0001__x0001_\u008d%_x0001__x0001_\u008e%_x0001__x0001_\u008f%_x0001__x0001_\u0090%_x0001__x0001_\u0091%_x0001__x0001_\u0092%_x0001__x0001_\u0093%_x0001__x0001_\u0094%_x0001__x0001_\u0095%_x0001__x0001_\u0096%_x0001__x0001_\u0097%_x0001__x0001_\u0098%_x0001__x0001_\u0099%_x0001__x0001_\u009a%_x0001__x0001_\u009b%_x0001__x0001_\u009c%_x0001__x0001_\u009d%_x0001__x0001_\u009e%_x0001__x0001_\u009f%_x0001__x0001_ %_x0001__x0001_¡%_x0001__x0001_¢%_x0001__x0001_£%_x0001__x0001_¤%_x0001__x0001_¥%_x0001__x0001_¦%_x0001__x0001_§%_x0001__x0001_¨%_x0001__x0001_©%_x0001__x0001_ª%_x0001__x0001_«%_x0001__x0001_¬%_x0001__x0001_­%_x0001__x0001_®%_x0001__x0001_¯%_x0001__x0001_°%_x0001__x0001_±%_x0001__x0001_²%_x0001__x0001_³%_x0001__x0001_´%_x0001__x0001_µ%_x0001__x0001_¶%_x0001__x0001_·%_x0001__x0001_¸%_x0001__x0001_¹%_x0001__x0001__x0001__x0002_º%_x0001__x0001_»%_x0001__x0001_¼%_x0001__x0001_½%_x0001__x0001_¾%_x0001__x0001_¿%_x0001__x0001_À%_x0001__x0001_Á%_x0001__x0001_Â%_x0001__x0001_Ã%_x0001__x0001_Ä%_x0001__x0001_Å%_x0001__x0001_Æ%_x0001__x0001_Ç%_x0001__x0001_È%_x0001__x0001_É%_x0001__x0001_Ê%_x0001__x0001_Ë%_x0001__x0001_Ì%_x0001__x0001_Í%_x0001__x0001_Î%_x0001__x0001_Ð%_x0001__x0001_ýÿÿÿÑ%_x0001__x0001_Ò%_x0001__x0001_Ó%_x0001__x0001_Ô%_x0001__x0001_Õ%_x0001__x0001_Ö%_x0001__x0001_×%_x0001__x0001_Ø%_x0001__x0001_Ù%_x0001__x0001_Ú%_x0001__x0001_Û%_x0001__x0001_Ü%_x0001__x0001_Ý%_x0001__x0001_Þ%_x0001__x0001_ß%_x0001__x0001_à%_x0001__x0001_á%_x0001__x0001_â%_x00"}},{"$cut":{"chars":60336,"head":"1c74bb5ed642e82860397c2ae8cd9889_x0005__x0008__x0016_5\u0080×Éñö@_x0011_Nw¸}Çö@\u0093Ìpg.Q÷@>s_x000D_\u0081³Yö@Âº \u009e_x000E_Áö@ð¸¶±\u0093_x0004_÷@&\u0092þÍÛìö@só¿®Ïýö@^1@AÉ_x0015_÷@¹\u0088\"\u0088±Äö@_x0004_\u0092Ñ_x000E_Çrö@ _x0001__x0004_`á_x0007_÷@fÓOó©ìö@h#Båt]ö@QA:Eu'÷@*«å èûö@F-_x0006_Å¬\u009bö@(a\u008aÓøºö@b\u008dd_x0017_Ö_x0004_÷@\u0082s_x000B_<»_x0005_÷@´F#\u0099±_x0008_÷@¸t^`/_x0012_÷@/4Ê0\u0093´ö@_x0003__x001E_ÝZ`_x001D_÷@_x0001_Fux\u0082qö@ÀOuëJ¤ö@_x000E_Þ·\u0081+Èö@òcç&³Øö@\u0095B»ï°ýö@_x0015_*mS\u0082öö@_x000E_)_x0002_ ¦¬ö@ç|_x0018_Ü_x0002__x0003_dØö@_x001C__x0011_Ò¥áâö@\tMd%·äö@âÞ/_x001B_\u0090V÷@;_x0002_§¬¶_x0015_÷@(_x001C_}MÃéö@êü\u008c\"Ø®ö@é4_x0017_;<©ö@>?¶\u0083ß_x0007_÷@|iÞ_ò·ö@~¿º}\u0085¨ö@Ôºu%_x0010_xö@xJZ_x001A_*_x0004_÷@³)3\u0085\u0097_x0015_÷@kq{­\u0093\u0092ö@\u0084\u00800âþ\u008aö@/èá|àN÷@\u0091ÚKA×êö@²\u008c¸_x0017_ñ)÷@5_x001F_ý_x001A__x0018__x0001_÷@¢wRß\u0087Ýö@ ù\u008dÏÍ>÷@¨\u0080¶r#_x0005_÷@í°ýHÀL÷@ðz_x0006_B9èö@öº_x001A_,$×ö@~Ñ_x000F_Zæñö@Ã÷l\u0081\u0087_x001F_÷@\u0098©G\u0090µßö@3Øë\u009bê_x0015_÷@\u0080²_x0015_ÀÃ_x0011_÷@E7¤ñê¬ö@_x0002__x0003_2\u0098Êí×èö@7_x000C_#_x001E_\u0090E÷@½_x0018_­SÕ0÷@XIA\u0089\u0096»ö@q_x000C__x001C_ÿ_x0008__x0017_÷@,?Þ/\u008dmö@/_wÀö©ö@k_x000E_CÄçÊö@\u0092ä\u009e\u009a_x0008__x0006_÷@_x0002_\u008f\u0080À¯Zö@¯/_x0005_:Fyö@¼ÄÙ_x0007_âõö@@{ËW¬.÷@ª_x0001_+­mÎö@y4¾º-Òö@¶·ã_x0010__x0012__x001B_÷@Þ_x0014_Æð§\u009bö@%:{¯[\u008eö@XÄï\u009a$.÷@ØÒ¶¬_x0005__x0015_÷@ÊÜ\u008cÝþ\u008fö@ãý÷úGÚö@ÇÌÜÑµ&÷@PU#_x0018__x000B__x001C_÷@±s|»«jö@_x0014_ZÔ\u008a\u00938÷@d_x0003_nF±Áö@¿:êÉæ¬ö@0_x0008_·jÔáö@ð{UF_x000E_áö@§,_x001F_[¨öö@¬±\u0099\u0086_x0003__x0007_\u0089òö@vê\u007fg0ëö@äÛ\t.f|ö@JîF61_x001F_÷@ÀM\u0084\u009aÖÅö@ß\u0082çvp7÷@_x001E_5\u009c:_x001F_C÷@\u009d_x000E__x0006_Ñ\u008dB÷@*|µ³_x0008_ûö@Ú=¶_x0001__x001F_H÷@~tà!__x000D_÷@=Ö\u008c2`¸ö@\u009fÑ_x0008_ú^øö@\u0080¡s_x001D_·G÷@§_x001B_þÖ\u009a¼ö@\u0093kÑ_x0003_nyö@PàP¶\u0095âö@Û\\³}¸Öö@½\u0086 \"G1÷@Aä\u0083_\u009c½ö@Ãè@ZD\u0086ö@_x0007_ú_x0002_¶å_x0005_÷@0épc/D÷@Ö_x001D_+ýåÓö@_x000E_é\u008c­X¾ö@©_x000F_ºÒ_x0006_!÷@½u]\u008dn_x0007_÷@-ù_x0006__x0007_Ë_x0004_÷@_x0018_:;KNE÷@Hð£¢´ìö@D_x0010_³-¼#÷@´YdÎ_x000F_öö@_x0001__x0002_¦» \u007f_x0007_\u0095ö@¥Ö_x000B_\u008b{ãö@Í_x001E__x000D_\u008a |ö@yÈüì\u0093_x0004_÷@Ç$Ã³ò\u0083ö@VRÁ_x0004__x0006_&÷@\u0089%èzÆ_x0007_÷@½Tj¯¿·ö@EÆÐ°@_x0002_÷@_x0016_ê¯9\u0080¹ö@ã\u009c¼`H$÷@z¸çÀx\t÷@çMêV7íö@È_x001F_Wx\u0096¢ö@[_x001A__x001F_O\\ ÷@cI\u008c·ú7÷@òw&_x0013_ª_x000F_÷@kÀ¹\u008e_x0001_Z÷@_x0019_a\u0091<o_x0003_÷@Tûºh_x000D_pö@N_x0018__x0006_ö_vö@Hø¤\u008c_x0007_,÷@8Ð+_x000B__x0018_Yö@ë{Î^°_x0001_÷@ÃÉ\u0096!>÷ö@u`êú­_x0013_÷@l\u009d6_x0002_\u0095$÷@I$\u008dà)úö@,Ç_x0004_nAßö@'ªRH³_ö@¶[8ïo_x0016_÷@ë\u009fäÕ_x0001__x0002__x0013_æö@YÍ:ç+_x001D_÷@×0_x001A_Î(\t÷@b\"íç\"!÷@°ÙMéuN÷@KËg\u0082oòö@\u0094áWb¿ºö@Ý©Õaô_x0010_÷@ë_x001E_suª_x0017_÷@£\"+ÌÀÒö@\u0087£âÇ¬ûö@û0sLÐ\u009dö@ém9E®pö@_x000F_a_x0003__x001E_!:÷@\u0080\u0092øx¢&÷@\u008at_x0019_é_x0019_»ö@_x0002_Z_x0011_¯\"B÷@_x0001_é´ÖÔÁö@ó¦æÎµ\u0083ö@\u0090ÊÝBÎªö@\u0099\u009bJXd=÷@1_x000C_mDm^ö@_x0013_Ïn¿¯\u0092ö@Ac_x001B_ý*mö@\u008f_È \u008bõö@«(ÞÈkÞö@ØÈàöÖ_x0002_÷@\u009e4¼,Xìö@k%:\u009c6A÷@¯µ_x0012_@Þ\u008cö@_x0003_ *Ë³¶ö@ºµs_x001D_\u008cÑö@_x0004__x0006_õ_x0003_q¦¤_x000C_÷@T#Ù^_x001A_Éö@Ëé\u008a¼=ßö@ç\u009fXôê_x000F_÷@Ç_x0010_y#\u0085_x001E_÷@z\u008cäÈ&×ö@å%i\u009aÁÎö@w\u00896\"7_x000F_÷@0\u008b\u0081ø_x0014__x0002_÷@Ü_x001F_ÉÜ>Çö@¦>_x0004__x0017_Döö@l *ÁÙÍö@_x0003_Í\tè ôö@S^p%ø}ö@iï äñ_x000E_÷@ÓðK7Háö@_x0006_q²wZ\u008fö@v\u0099O¼Õ$÷@Y´J°u¸ö@),÷¥Rêö@T_x0004_ëî¿_x0006_÷@\u008aÒ>wLÅö@·-4Rrìö@\"ÊW¾2_x0004_÷@nd_x0013__x001B_Öïö@ÿ¨_x0002_7a\t÷@\u008aÇH_x0001_\u0091\u009fö@×[EÔß\u0098ö@_x000D_å^\u0097º\u0080ö@Ï¥¶Î\u0091¶ö@\u008dr&Ö\u0095\u008dö@d_x0005_>\u009f_x0001__x0002__M÷@2 k¡Bùö@×Ì^Hü$÷@\u0088$¤|û0÷@]_x000F__x000C_Öwýö@s;\u0094¢\u0090Ïö@°äWü\u0086lö@Ú\u007fó[_x000D_1÷@õ_x000D_:¬ñÝö@Ó\u0096¹\u009eßìö@2\u0085ziX¢ö@ûS\"½_x0014_õö@§^ý@Öâö@n.£éUeö@ù[TÃ=3÷@I\u0095\u008fÝì©ö@ãåJ\u009f,\u008dö@\u009dZAot[÷@ßÞ_x0002_±[Éö@$\u0092_x000F_ÞrÖö@Q\u0086õ)û¦ö@Ãw38*Êö@É]­_x000E_8uö@_x001A_ùº³vöö@o6Bº\u0098\u009bö@]N±Û6¼ö@:à¾;}_x0019_÷@\u009a \u0090OaÎö@q0÷'iÈö@åÁ\u009c$²öö@®ùM\u008a¬Bö@ö°Còâ\u008fö@_x0001__x0003_·¾ü+ãÆö@ÞwTq_x0017_\u0095ö@_x0006_þÅ×£ ÷@_x0001_Ñ¨'\u0096=÷@»\u0080_x000D_%\u009c_x0008_÷@%F÷&arö@wX_x0005__x0015_Ó)÷@\"¤ñ5\u0084óö@D\u0084\u0090n¸F÷@.93ï®Rö@w_x0008_¥_x0006_\u0092\u0094ö@êò_x0003__x0012_d,÷@_x0014_´dE\u0089'÷@â\u0080;2_x000B_éö@\u0095û-\u0081Zfö@_x0018_s]aj\u009cö@ùWe\u0096£Öö@Ýé\u0081¯È\u0089ö@¥ï_x001D_4ÁÕö@\u009c''[Rìö@1>p±_x0008_øö@/s\u00961_x000E_\u0097ö@ÏFìNøÑö@ö^Vz_x001A__x0014_÷@¡Ð>'\u008b§ö@%É\u0082\u0085²_x0002_÷@\u0086Äï¸_x000D_ïö@E\u009a_x0012_ò_x0016_áö@ òmHâvö@®(_x0004_\u0097KÙö@Ä%ééÍ_x000B_÷@5.K¶_x0002__x0003_\u009cùö@_x0006_`\u008cm¢D÷@EÒÚäQÂö@eG_x000E_\\ÓÔö@äî_x0012_³l\u0092ö@Å`ù_x001F_íôö@C\u0095dCr_x0017_÷@?Sz_x001F_\u0083ûö@ó\u008eºýr¼ö@\u0095_x001B_1Áx\u0090ö@ÿ\u008c;Jlëö@_x0008_*òñÀ\u009fö@AÇùª¶³ö@4}¯\u0098hÛö@\u009eÀ¡%_x000D_»ö@®5ÔE_x0007_D÷@=%\u0092Á\u009dåö@Ä\u0090_x0006_T\u009cÁö@èÜ_x001F_rQ¦ö@\u009d²D_x0001_lDö@\u009fÍ¨z_x0018_)÷@ÂyÄ^\u0094\u0083ö@_x000B_Öö?<¹ö@_x001E__x0008_óÒ_x000B_½ö@¥Ûù_x0006_öI÷@Ç.,\u0090\u009a\u0093ö@Åb(l\u009dîö@Ú\u0095&BV_x0002_÷@pN¾£³H÷@\u009eÛ\u008a_x001D_\u0087\u009f"}},{"$cut":{"chars":72690,"head":"56179af2f5041d1e8e1004353961359c_x0001__x0007_\u009að_x0003_\u0093Bê_x0001_A5H_x0005_ü¶ó_x0001_AÀ¥wýbå_x0001_A/J_x0016_¾Qè_x0001_ADéÏ\u0090]ï_x0001_ARíÄ\"äå_x0001_A\u0084Eq@Ïî_x0001_A\u0097\\)rOé_x0001_A`<_Æ\\ì_x0001_A°_x000C_¯´³ï_x0001_AÏî^¦_x0012_ò_x0001_A\u0082\u0092_x0005__x0002_dî_x0001_Ab¨Ó_x001D_Ãè_x0001_A\\_x000B_\u007f§Êå_x0001_A\u00906Â0<è_x0001_A¯_x001C__x001D_Ó_x0006_æ_x0001_A\"HºH\u0094ð_x0001_A÷_x0015_wx>è_x0001_A/P_x001D_)Né_x0001_AÆ5@\\Añ_x0001_A½\u0091?xúé_x0001_A\u0082FÅïúí_x0001_A¶,_x0019_^¡ë_x0001_Az ç¾àå_x0001_ARi6r_x001D_ê_x0001_Aür\\P|î_x0001_AÅ\u0085ý»°ë_x0001_A_x0007_\u0087É2\u0083ë_x0001_A_x000F_N|i,é_x0001_A_x001F_BËmÁå_x0001_AÈ_x001E_/aIí_x0001_A8_x0004_M_x001C__x0002__x0005_×è_x0002_A½,\u009ah¹ò_x0002_Akü\u008b\u0093}ò_x0002_A\u008eñ\u0093]7è_x0002_AÄËÝn_x0018_ñ_x0002_AÚxÔHvë_x0002_A«BY©©ê_x0002_A\u008eF«¼çñ_x0002_A¹\u008fÜ+Ûå_x0002_AÀºîÀòì_x0002_A\u0080p9&Oè_x0002_A(Æø_x0003_ ï_x0002_A\u008euar\u007fé_x0002_A_x0010_T¹¯\u009cô_x0002_Að\u0093_x0001_.øó_x0002_A_x0010_[_x000E_\u0080_x0002_è_x0002_Aå5\u0080à±ë_x0002_AXU\u0098]óê_x0002_Aò\u0095î\\Að_x0002_AlEÅ®ãé_x0002_AÏ_x000C_\u009e*_x001A_ê_x0002_Agw2\u0092\u0098é_x0002_A>Pý&Èê_x0002_AÊ5±\u00858ð_x0002_Aµ_x0015_ù_x0015_°î_x0002_A[ê?_x0004_Éæ_x0002_A_x0013_O\u009f¥ýê_x0002_A4\u00973^Xé_x0002_A\u0095ÿzUAë_x0002_AjÚ­MTì_x0002_A^Ù\u0099k ì_x0002_AzÐZW\u009eë_x0002_A_x0002__x0003_b\u008d_x0012_\u008c¦ì_x0002_A^½)Ð~í_x0002_A²Ëeußï_x0002_A_x0012_\u0081_x0019_wHè_x0002_A_x0003_F\u0097è§é_x0002_Ao_x000C_e_x001C_]í_x0002_AJòô_x0017_üê_x0002_AØDõ&jò_x0002_A_x0016_2_x0011__x001A_Ìî_x0002_AÆL\u0092L!í_x0002_A*|Õ\tuí_x0002_Ak.ÌÜwî_x0002_Aè_x0006_\u009dYeð_x0002_AøÃm_x001F_rì_x0002_A\u0097²Þe ñ_x0002_AÀ\u0081)ÅÆî_x0002_Ak90û°õ_x0002_ATÿ\u009f\"/ë_x0002_AP¸£ì_x000F_ï_x0002_Aç\u008arÜcì_x0002_A_x0003_\u0082_x001D_>ßð_x0002_A4_x0014_öÎúð_x0002_A¯*í\u0099»ì_x0002_AB\u0090\\êìë_x0002_A2`ükBò_x0002_A\u008a8\u0083\u0092\u0082ñ_x0002_A±kf_x001B_}ï_x0002_AwÇ_x0008_ý7ð_x0002_Aô_x0001_Ë_x0006_¿å_x0002_AlY\tè³ä_x0002_A\u0082ËßÉaè_x0002_Aý_x001F__x0003_Î_x0002__x0003_Êõ_x0002_A!_x000C_\u008ec_x001D_æ_x0002_AðVé»\u0086æ_x0002_A­ÿ_x0002_lðñ_x0002_A\u009c =ÐQò_x0002_At-_x001A__x0007_æê_x0002_A\u0098\u0098¨_x0013__x0019_ô_x0002_A\u008e\u008fÏÏ_x001F_í_x0002_A`\u0091Ïgýò_x0002_A*ý_x0017_^ í_x0002_A½gC Êî_x0002_A\u00997M\u007fäë_x0002_A¾ö_\u0081uñ_x0002_A\u009dÀÏ_x0015__x000C_î_x0002_A7Y©qÉí_x0002_A]%>1úò_x0002_AÔÁT\u0091 é_x0002_AH\\º3òç_x0002_AÀ&\u0095P¾ï_x0002_Axg%e\u0084ô_x0002_AÄ_x0019_\u008fÿ\u0093ó_x0002_A\u0084ì_x0010__x0001_\u007fè_x0002_A^_x001F_v\u007fLó_x0002_A_x0019__Ï_x001E_\u0089ë_x0002_Añ\u009c-ü\u008bå_x0002_AçåÞ-_x001A_é_x0002_A\u009a\u0094\u008bÙ_x0015_ñ_x0002_A#_x000D_\u0087©\u0089ç_x0002_A}á_x0018_`_x0018_ö_x0002_AÿäÙ¢\u0096ï_x0002_Ao´)XVæ_x0002_A Õ_x000C_;µð_x0002_A_x0001__x0003_äü ÈLé_x0001_AÞ®\u008b_x000C_¤ë_x0001_AB`Èíxí_x0001_A±¶Ñ_x000B_*ð_x0001_AZ,ò³²æ_x0001_A\u0092\u009f×²_x0019_ê_x0001_AÿGmþ¢ì_x0001_A;\u0091_x0012_\u008doí_x0001_A7\u008f¹ù\u0088ì_x0001_A1°íkÍõ_x0001_AUÔË¦Îê_x0001_A¸_x0005_ô­hô_x0001_AÎº¢4Þé_x0001_A_x000E_á:z_x0006_ò_x0001_Ac0¼\u0096Âì_x0001_A_x000E_|õ_x000F_¼í_x0001_A_x001D__x000D_\u0093Ð\u008aì_x0001_Am×\u008b¯Îð_x0001_Aªzv-¶ì_x0001_A¸Pí&9ë_x0001_A|2½rHí_x0001_Aúy¿_x0019_&ò_x0001_AÉ\u007fªÍ×õ_x0001_A_x001E__x0008_ÓV_x0019_è_x0001_A_x0012_á@=¾è_x0001_ATë4ºgí_x0001_A_x0018_bD_x0018_cì_x0001_ADJ\u007f:_x0002_é_x0001_AR _x001B_è\u009cè_x0001_Af}#¼Üó_x0001_A_x0019_N\u0095\u009aIæ_x0001_Ar_x000C__x0019_Þ_x0001__x0002_aî_x0001_Awô_x0018_E!î_x0001_AËën\u009c_x0015_ì_x0001_AEÇG\u008eèö_x0001_Aµ-°j¥ê_x0001_A·Ó\"ïié_x0001_Aá_x0001_p\u0090Rë_x0001_ABdgiBï_x0001_A_x001D_÷áa\u0080ç_x0001_AÐÀ_x000F_ijí_x0001_AÎV_x001C_!Ïï_x0001_A_x001D_LÖ_x0004__x0015_í_x0001_AN\u009fÞ_x000B_gì_x0001_Añ9_x0019_\u008e\\ó_x0001_A_x0014_\u0087ã×-ð_x0001_A;8Â¢`ò_x0001_A_x001F_\\ä\u0091_x001E_ê_x0001_AÒð.-Nê_x0001_AUÂ7\u008a½ç_x0001_A_x000C_êGÕ\u0081ï_x0001_Az.\u0081MÅë_x0001_A¦\u007f.#äì_x0001_Aø0_x001D__x001C_]ê_x0001_A+oi\u009e\u0086ê_x0001_AÒm|g\u0094é_x0001_AÉqæé\u0080ë_x0001_A_x000E_S[\u0094Lè_x0001_A£\u0084_x000F_\\°è_x0001_AÍß\u00836 ë_x0001_Ac5\u009aü é_x0001_A£1ä\u0080Zí_x0001_A\u009a«lø\u009bõ_x0001_A_x0002__x0006_#_x0017_\u009cxBç_x0002_Ay_x0014_hùßé_x0002_A&°]_x0003__x0017_ê_x0002_AÉÇ= Gé_x0002_A®\u0088cã\\è_x0002_Añy_x0016_1Lñ_x0002_A%µ_x0007_r«ç_x0002_A_x0016_0z\u0098*ì_x0002_A?±çqWì_x0002_A°\u009b\u008dÑëð_x0002_Aq7S«_x0002_ë_x0002_AÈ|_x0004__x0001_+ë_x0002_Aº+À_x0015_òæ_x0002_A_x001F_l}¤°ï_x0002_Avs+H\u008dé_x0002_AK¼Â¾(í_x0002_A_x0012_\u008c[&\u009aó_x0002_A8ë\u0086j\u008cí_x0002_Alk\u008aÃÀì_x0002_A*_x0005__x0011_xjð_x0002_A«ç|µ_x0019_î_x0002_A_ù\u009dÈ>ë_x0002_A_x0016_IJÐ\u007fí_x0002_Aü\u0086Ø®*å_x0002_A2\u0094±\u0098\\æ_x0002_AöY|»\u0091ì_x0002_AN|q>Ôñ_x0002_A\u0090\u009býUËë_x0002_AÙsÈÚÕè_x0002_AGñë?Qì_x0002_AFNr\u0086ëí_x0002_AÐ_x0015_\u008c¾_x0001__x0004_Àñ_x0001_A_x0018_Læº\u0084ê_x0001"}},{"$cut":{"chars":73254,"head":"ab16bc7d935cd4add0a6a9d6d54514fb_x0007_\t=Ð\u009aFû\u009d_x0003_Aê\\\u0096óq¹_x0003_A\u008dm\u0091©gh_x0003_AÖ5Ö°Üi_x0003_Az¸Ëm¾q_x0003_Aæ_x000E_¸è~\u008e_x0003_A\u0096#úxÜy_x0003_A\u0082×_x001F_+th_x0003_A@½\u0085_x000D_¬\u0093_x0003_A_x000E_Su \"\u008f_x0003_AÅë<~_x0011_Ì_x0003_Aé\"#/ë\u008d_x0003_A\u008b_x0010_²\u0089¨©_x0003_A_x0001_Þ¹\u008aN\u0083_x0003_Aî\u0092ldút_x0003_A_x0006_ÌÍ_x0002_Â\u008e_x0003_A?Xå\u0088_x001A_¡_x0003_A\u0094$M_x001A_'p_x0003_A\u0098Îþé3z_x0003_A_x0002_üAÀ\u008ew_x0003_Av\u008e3ÉF\u008e_x0003_AÚ\u0095¥R!x_x0003_A\\ö_\u007fD\u0097_x0003_A\u008c\u0090._x000E_g¿_x0003_Al_x0016_°¾\u0086k_x0003_AèzcÌg\u0098_x0003_Aîa*_x0004_@³_x0003_A\u009fHÔWýo_x0003_A_x0008_ºA}_x0011_}_x0003_Ae/\u00885D\u0093_x0003_Aò|MÔ_x001C_¯_x0003_AÆ\u008eÚ_x0005__x0002__x0004_Â\u0081_x0003_A@_x001A_Æ©9a_x0003_Aºè_x0010_\u008e_x0014_\u0083_x0003_A_x001D_üû_x0019__x001C_Î_x0003_A@Æ,_x000C_Á\u0088_x0003_A_x000E_oZ|ª¢_x0003_Aåz¼_x001D_Rª_x0003_Aþ`_x001B__x000F_Gs_x0003_A\u0088ð\u0097 Ú\u0097_x0003_Aß¦\u00803ò«_x0003_AÈ_x001A_\u008b_x0019_Ø\u0083_x0003_A8\u0099 Ø´z_x0003_A_x0003_z_x0017_­\u0080p_x0003_Aß@\u008eòú\u008c_x0003_A ÷cø_x0014_\u0084_x0003_AH_x0008_j_x0018_\u0094\u008f_x0003_AÆ\u0086_x000C__x0013__x0011_\u0082_x0003_A\u0086\u0096#<w`_x0003_AµÐ\u0099ú­s_x0003_A_x0001_Ý_x000B_\u009ckn_x0003_A\u0095>\u0097ä'X_x0003_A%_OÅT\u008a_x0003_A>ÙéµÑ\u0098_x0003_A_x0017_\u009eR\u0094-Â_x0003_A§« ï\u0082a_x0003_A_x001C_x\u008b@e­_x0003_Ax´«\u0097Î\u009c_x0003_A_x000F_?_x001C_ã_x0018_\u0082_x0003_AI7TçÚª_x0003_At_x0017_M{\u0082\u0092_x0003_AD\u0091«÷ \u0095_x0003_Aë¡6ë2\u007f_x0003_A_x0001__x0002_nmn_x0003_æ\u0086_x0003_A|ÐºèÖ\u008c_x0003_A×\u009aôB=\u009f_x0003_A_x001C_¾_x0001_Z!v_x0003_A\u0086\u0089\u009dM\u0090\u009f_x0003_Aöw)®Ç\u0094_x0003_A7_x0007_d®À\u0083_x0003_A\u0094îÂS\u009d\u009f_x0003_A\u0080õòù_x0002_b_x0003_Av\u007f\u009aï¿³_x0003_A¶Fç_x001D_Mk_x0003_A\u0098{_x0007_Kw\u0082_x0003_AÚ­Ö\u0094æ¦_x0003_A\u0098qê¢3__x0003_A\u009cò¦Ã_x0015_g_x0003_A_x001C_~\u0099$9}_x0003_AX7øÄ»¢_x0003_A\u00867\u0099/v\u0093_x0003_A ¿p«>i_x0003_A¼\\_x000F_é7|_x0003_A(_x0015_m§A\u0099_x0003_A_x000E__x0013_þ\u009câl_x0003_Al_x001D_\u008ay'¬_x0003_A¬·ö_x0014_èÃ_x0003_AûõÕà$x_x0003_ABC>3CÃ_x0003_AÁ£S­_x000E_\u008e_x0003_Aaíjwhe_x0003_A_x001C_\u0086É¹\u008b\u009c_x0003_Aâ_x0014_Zù\u0080P_x0003_ARº\u0089g1\u0087_x0003_AG#gÍ_x0001__x0004_Ò\u0080_x0003_AøíµC_x0012_x_x0003_Aþ\u009b¼<ó~_x0003_Amê½©Ý\u0099_x0003_Ap\u008eÕ_x0008_g|_x0003_A\u0096\u0084e_x000D_¶°_x0003_A\u0087Ö_x001F_JS¯_x0003_A¾\u0095H.¬\u0085_x0003_Ay¸_x0008__\u0087c_x0003_A`àÙ±$|_x0003_A_x0012_\u0092_ò\u0090 _x0003_Aò\u008d £1\u008f_x0003_A_x0005_Êrl§Ã_x0003_AÞË5_x001A_¡¯_x0003_A@_x0002_ÆÕø\u0084_x0003_A_x001F_t¹¯¬\u008f_x0003_Aò#×¤Ùq_x0003_AX¬pÈØB_x0003_A_x000C_§\u0091å¾\u0084_x0003_AÜ_x0007_Xe4\u0082_x0003_Ah\u007fõ)Ë¢_x0003_AAÑ_x001A_\u0098g\u0092_x0003_ApÚPvE¹_x0003_A]q¥\u0093_x001F_\u0088_x0003_A.`@Ô7¥_x0003_A_x0008_þ[ù\u009a¨_x0003_A_x001F_Õ\\§ì\u007f_x0003_Að¤UóîÌ_x0003_A¡õgi¡\u0087_x0003_A_x0010_Æ¡\u009eì\u009e_x0003_Al*/e>\u0093_x0003_AºøµW_x001F_¤_x0003_A_x0002__x0005_\u008cJW\u00919\u0092_x0003_Aî;ãt_x0004_b_x0003_A_x001F_¯\u0091äô®_x0003_AÇ_x0019_Ø\u0095¸\u009f_x0003_AY/\u008cU_x001B_\u0083_x0003_A¼],\u009bT\u009f_x0003_AÊf\u0098\u008a\u009e}_x0003_AlQÛ\u009d#\u0084_x0003_Aðizr¿¤_x0003_Aê\u009fú_x0017_3n_x0003_AÊJt_x0003__x000E_\u0087_x0003_A®_K+ó\u009d_x0003_A@_£Sëx_x0003_AÚ_x0015_o8_x0014_v_x0003_AÆP_x0001_IÏ__x0003_Ah?\u0085±å\u008c_x0003_Aè¾,[Ê\u008e_x0003_A\u0080Õ£¯à\u0086_x0003_AÂog_x001D_?r_x0003_AP 2_x0010_­·_x0003_A_x001E_/\u008a_x0003_³\u0090_x0003_AÂ\u0083h[¼¨_x0003_Aù½°\u0090_x0017_m_x0003_AÈ\u0098o:&´_x0003_A\u0088ÍÂ\u0084qx_x0003_A`Ï2_x000C_Sp_x0003_AjH$Ö_x0006_£_x0003_AN\u0088Hû¡\u0098_x0003_Aè½¿Øw¨_x0003_A|¿\u008f\u0085ïd_x0003_Ax_x0015_ÈéÝ\u0095_x0003_AOO_x0019__x0001__x0004__x0006_J­_x0003_AÚ\u0084ÁËã¢_x0003_Ah_x0007_^\tT\u0084_x0003_A<_x0011_«\u008a+z_x0003_Acé\u009bÎÑ·_x0003_A\u0099ãyÙ1u_x0003_A_x001A_/¿´mN_x0003_A¸ÜVíjÒ_x0003_A\u009bRü\u008aXr_x0003_A§Áu¦\u008eª_x0003_A¬ó_x0015_Á¬K_x0003_A(_x0001_Ðy\u008c¤_x0003_AÌÞOq¬\\_x0003_A\u008asKóJ£_x0003_A_x0008_y\u008c#Êg_x0003_AbÁ\u0092ØI²_x0003_Aúº§Ï;\u0086_x0003_A\\À*Ñs^_x0003_AP0_x000E_Ó~»_x0003_A_x0010_7$£_x0014_¦_x0003_A`æ_x001A_*e\u0092_x0003_AÀKñc_x0005_o_x0003_A\\d\u008c_x0017_ØR_x0003_AP;¬1ìL_x0003_Az\u009c~*Y\u0096_x0003_Axê_x0001_Q]©_x0003_A~kÛ8ø\u009e_x0003_A_x001C_ýT9\u0089}_x0003_AìÖ\u009c5ñ\u009a_x0003_AªN\u0086P_x0002_¶_x0003_Ae\u0099ãÉÜq_x0003_ArqÿöÎ¯_x0003_A_x0007__x0008_^Íª\u009bê{_x0003_A_x001A_\u0088ÕÈp\u009e_x0003_AÚ]3_x0005_ \u0082_x0003_A¥\u0093Öï¹£_x0003_A\u0085x=¯¤n_x0003_A_x0016__x001F_-9_x0004_\u0084_x0003_AtÊbes\u0086_x0003_AÞ\u0085@þ9¥_x0003_A(b©%Py_x0003_A_x0015_¼3½\u0095}_x0003_A¨Ð\u0098oÆl_x0003_A\u0099sD¥`\u008a_x0003_A®vãk:½_x0003_AkO3\u0085êa_x0003_Aç\u008b)\u0089þ¡_x0003_A_x0019_\u009c½\u008c>¼_x0003_AÄßB_x001F_Á«_x0003_Ajxþ[4Ä_x0003_A\u0081#÷·a¥_x0003_Awm_x001F_G÷n_x0003_AÄÝÏÝ\u0092\u009d_x0003_A\tç¥\u008a\\t_x0003_A`ðÊ¤é»_x0003_A1Â-°_\u0086_x0003_AlO\u009f­~²_x0003_Aºâ\u0080,ª\u0090_x0003_A\u0086e¤_x0001_¯\u008b_x0003_AÍ<\u0090_x0002_2¢_x0003_AÂ+Î7v®_x0003_AZ_x0006_-\u0090â\u0099_x0003_AÈèØy\u009f\u009a_x0003_A°_x0006_vw_x0004__x0006_G§_x0003_Aé_x0018__x0005_Ê]­_x0003_AÏÒß_x001F_e¡_x0003_A<ë\u0089ý\u009bw_x0003_AÆ_x0001__x00"}},{"$cut":{"chars":70782,"head":"54350a5eb81fd89ab280674061b8952f_x0001__x0002_X*p¸¥5_x0012_A\u009c\u0089\u008a\u009fã{_x0012_A_x0001_þ_x001D_oÙD_x0012_A/\u008aÙ\u00931\u009c_x0012_A¼ßÂ\u008dÓf_x0012_AP_x0006_?ÇÏ*_x0012_A\\X_x001A_\u009a\u0092¡_x0012_A^Ù®Í(`_x0012_A-vlZý\u009f_x0012_AOä_x0019_iB\u0093_x0012_Ay_x000B__x0002_\u008fp_x000D__x0012_A@=\u009fÏÅ\u008a_x0012_AÌ_x001D_>\u0086S\u009f_x0012_A¦0,Øw8_x0012_Aü\u0095âË^q_x0012_AF\u00958!}C_x0012_AGÄÈB\u0084\u009a_x0012_A-×_x001D_(09_x0012_AÏ_x000C_P9\u00830_x0012_A_x0013_ÚjÙ 8_x0012_AÔº_x0001_µ¿¤_x0012_AÉ_x0018_]Ò¨\u008b_x0012_A«ð_x0014__x001D_í~_x0012_AÌõ}ý`A_x0012_A\u0092ï\u0091#¹&_x0012_Aªó®?ün_x0012_A_x0001_V»_x0011_\"a_x0012_A&-Õ)û\u0081_x0012_A·_x001E_ÀÔY?_x0012_AÎXcrÂ\u0091_x0012_A¦Ô:¬qx_x0012_AÐ_x0006_ï¥_x0001__x0003_Ù\u0091_x0012_Aâ_x000F__x000D_\u00914\u0094_x0012_Aa3y\u0082ke_x0012_Aï7X0,\u0084_x0012_AÊcâåqV_x0012_AüÎã /²_x0012_AíQ±\"Ìd_x0012_A\u0086±+_x0007_ºP_x0012_Að_x0014_½Ûès_x0012_AVª_x0007_½_x001F_´_x0012_A_x0017_þ6\u009bë\u0082_x0012_A*f\u009c¡)«_x0012_A \u009a_x0002_¬b!_x0012_A»-±1_x0008_\u0097_x0012_AQ2\u0094_x0017_Á_x000C__x0012_AMò_x0015_A_x0019_f_x0012_AæN_x0007_^2^_x0012_A©\u008d´Yþ\u009c_x0012_APÎæÎ\\O_x0012_Ay`+Ziu_x0012_A_x0012_*2_x0018_,:_x0012_A¢×`:mA_x0012_AÐ:i\u0099Ap_x0012_A8\u009bÐÆ!\u0085_x0012_AY,®Møa_x0012_AÛ\u00813U\u007ft_x0012_Ay_x001C_zúYq_x0012_A\u007fÇ:+_x000F_%_x0012_A_x0014_òmn{)_x0012_A?\u0091·é_x001C_U_x0012_A L_x0001_\u0091Õs_x0012_A(jE\"Bo_x0012_A_x0001__x0002_/Fi(fu_x0012_A,àgb\u0092._x0012_A\u0099ªFS]__x0012_Aà\u0085°¶\u009ay_x0012_ATkìzbK_x0012_A_x000C__x000F__x001E_Kâ²_x0012_A_x0007_òèm_x0017_Ô_x0012_Aa¡*w\u0080W_x0012_AX\u0091[öL|_x0012_A}T[=g<_x0012_A¬êú^Ìv_x0012_AüLýÑ°f_x0012_Aw_x001E_Ô+\u008d£_x0012_AãBûÀÍR_x0012_A_x0017_¦$Ì\u008bk_x0012_Ayk_x0006_üN\u008e_x0012_A_x0010_%4.Lb_x0012_Aþ\u008e\u009f_x0004_µ_x0016__x0012_A7ù\u0092\u009a\u0085U_x0012_Aè®«Õ9\u0090_x0012_A³Z«ùz9_x0012_A!V_x0012_Sl_x001B__x0012_Aê_x0008_bàÍh_x0012_A@li4\\A_x0012_A\\jh\u008bÅ,_x0012_A,\u008d'_x000B_\u009e\u0093_x0012_A_x0012_/®-àV_x0012_A\u009dâ_x000D_ÆÇN_x0012_AÀj),_x0002_y_x0012_A\u0090ºðN_x0001_H_x0012_A÷'\u008c¡8\u0090_x0012_A\u0091!DQ_x0001__x0002_ÚO_x0012_A\u009e\u008f³ª°\u0095_x0012_A\u0082¯U»\u0083V_x0012_A\u0096õ<-_x000C_F_x0012_A\u008fæ:I{o_x0012_A\u0098jëi_x000F_4_x0012_A¢ù_x000E__x001C_qt_x0012_AN|\u0090ïë _x0012_AA\u009drÒÒa_x0012_AV\u0084úQ_x000B_\u007f_x0012_AÂb#/Ó;_x0012_AÒÓE£_x0007_g_x0012_A,RÎ@Ô\u0089_x0012_AÎõzÌ\u0081u_x0012_A\u009a_x0001_0¦_x0010_r_x0012_Aµ+_x0013_«ýY_x0012_A|\u0094\u009bHmC_x0012_A¾\u008eqKWc_x0012_Ax%¾úts_x0012_AÜl³ ¼9_x0012_AýìÆæ~\u009c_x0012_A<v_x0003__x0008_@&_x0012_AÁ_x000F_¤ý¼(_x0012_A_x0013_\u009dé\"þ _x0012_AÝÚèS¢]_x0012_A6_x0017__x000D_Nû\u008a_x0012_AÏvm­©I_x0012_A\u008dfýMtJ_x0012_AOá|w\u0083z_x0012_A\u0094\u0091\u0091ÛÆ[_x0012_AP\tS_x0016_¶~_x0012_APÞ¦f\u0098r_x0012_A_x0001__x0002_!á_x001D_Q´/_x0012_AhW´»_x000C_\u0093_x0012_AêÑ\u007f­ªd_x0012_A/p«Gý^_x0012_A¤_x0004_dSuj_x0012_Aèë`=¿v_x0012_A½^×é_x0015_¨_x0012_A_x0008_t÷§\u009c\u0099_x0012_A_x000F_èMlWz_x0012_A¿Ò\u0093òEa_x0012_A¹½Õ\u0081S~_x0012_AÆßÐ5¶ñ_x0017_A_x001A_caH4ñ_x0017_A\u0081«5\u0094Zò_x0017_A\u0086Îâb)ó_x0017_AÛÂÙÙ\u007fñ_x0017_Aú ªSÎò_x0017_AE\u009c8ïªñ_x0017_A±?D_x0014_ïñ_x0017_AöºámAó_x0017_A_x0007_z¯õ\u0087ñ_x0017_Aå5B/çñ_x0017_A_x0005_!QQxò_x0017_A& ==~ó_x0017_A¿%´Ù&ò_x0017_AÆÆ_x0015__x0006_âò_x0017_Ad¼ZÔ@ñ_x0017_A»¢\u008a\t_x0008_ò_x0017_A\\¡\u0097Ý+ò_x0017_AZ6ð\u009f_x001E_ñ_x0017_Af¿B\u009d®ñ_x0017_AØ\u0091\u0097._x0001__x0002_Oñ_x0017_Aþ~\u0086\u0099oò_x0017_A_x001D_³ãêÄò_x0017_A÷\u0089¨Ê\"ñ_x0017_A_x001D_gÞ\u0082,ñ_x0017_AEe¸J³ò_x0017_A¼_x0011__x000C_@\u009fò_x0017_A¡\u0083ô¢\u008cñ_x0017_A_x0007__x0004_àô¥ñ_x0017_A;_x001C_\u0081_x0006_5ò_x0017_A_x001B_sîìòò_x0017_A;Þ_x000F_Ücñ_x0017_A\u008aß¹ý:ò_x0017_A\u0099.\u0082r_x0013_ñ_x0017_AÞÙçÁHñ_x0017_A.S¯«\u0084ñ_x0017_A#­7­}ð_x0017_A0¦\u009fIDñ_x0017_AÇ\u0089£'Éñ_x0017_A´Ç_x001B_\u009f%ó_x0017_A·3_x000F_ã0ñ_x0017_A\u0081¥ëqJò_x0017_Aë¨Ç\u009dÙñ_x0017_Aê~º2\u0095ð_x0017_A_x0004_:Ôü_x0005_ò_x0017_A¥ö\u0095,þð_x0017_A_x0007__x0010_Í`Ñò_x0017_A2¹<níò_x0017_A\u0095Ùu\u0084¡ñ_x0017_AðÄÛ_x000B_=ñ_x0017_A\u0095<W:Ëñ_x0017_AE_x001C_lf_x000F_ò_x0017_A_x0001__x0002_;¢)Ð_x0012_ò_x0017_A{îJ\u0093«ð_x0017_AñWs1\u0093ð_x0017_A\u0081&_x0001__x0001_\u0082&_x0001__x0001_\u0083&_x0001__x0001_\u0084&_x0001__x0001_\u0085&_x0001__x0001_\u0086&_x0001__x0001_\u0087&_x0001__x0001_\u0088&_x0001__x0001_\u0089&_x0001__x0001_\u008a&_x0001__x0001_\u008b&_x0001__x0001_\u008c&_x0001__x0001_\u008d&_x0001__x0001_\u008e&_x0001__x0001_\u008f&_x0001__x0001_\u0090&_x0001__x0001_\u0091&_x0001__x0001_\u0092&_x0001__x0001_\u0093&_x0001__x0001_\u0094&_x0001__x0001_\u0095&_x0001__x0001_\u0096&_x0001__x0001_\u0097&_x0001__x0001_\u0098&_x0001__x0001_\u0099&_x0001__x0001_\u009a&_x0001__x0001_\u009b&_x0001__x0001_\u009c&_x0001__x0001_\u009d&_x0001__x0001_\u009e&_x0001__x0001_\u009f&_x0001__x0001_ &_x0001__x0001_¡&_x0001__x0001_¢&_x0001__x0001_£&_x0001__x0001_¤&_x0001__x0001_¥&_x0001__x0001_¦&_x0001__x0001_§&_x"}},{"$cut":{"chars":115038,"head":"502dfa948362b0605ed76552fb4002ee_x0001__x0002_C_x000C__x0005_²_x000E_ !A¦ê_x0012__x000E_Te!ABt\u0083Nöp!AMoÖÔ¸]!AöoUÅ\u009c*!AÔõd_x0012_©G!AÄíÎÆZ\u007f!AâP\u008f\u0092àU!A²??­\u0090P!Abs\u0094\u0092Ýl!A@ÞKý¬B!Aèb\u007f»´=!AÐAxò<H!A@pÕ\u009c\u007f\u0090!AÄ1y\u0086E?!A,ëIý_x0010__x0016_!AÂ_x0001_NLÛ_x001B_!AN:'Ü\u008a<!ARÙÅß&\u0099!A_x0007_\u009c;\u0091_x0006_/!AÒ¢¿s_x0017_H!A¨s: k-!A&ÖÖÃV!!Al¿S_x0012_®_x001F_!Aó;È\u008c|&!A\u0094«no@b!A²_x0005_»¾ì0!AT_x0004_Ã\"d\u0085!AGØÞi\u0083_!Añ_x0003__x0008_\\¢:!Aÿ\u0094_x0019_\u009cG\u008f!APe\u009cÜ_x0001__x0003_F^!AØÈ§\u0095MX!AÚ_x001A_ì¦ G!A\u0087qÑ¦äj!As¨_x0003__x001B_¢H!Aÿ\u0093Q¼TZ!A\u008eè(\u009c\u009a6!A¿§ákÚñ A½'\u0084ÜÇ0!AËf,êÜ?!AbÆ5ì1\u008b!Aáõ`_x0019_úF!A\u009c:?=H_x0015_!AùÈû¥è7!A\u009cMÚ\u0090#q!A_x000D_\u008a\u009a_x0016_+7!A\u00998_x001A_\u0093*2!A Ë´\u009e_x000C_4!A\u0084_x000F_Kò\u0086\u0082!Az_x0008_\\9·z!AÑ_x0002_I`»_x0017_!AÞÖ³1o3!A2\"Ö_x0017_Kr!A\u009bt©û\u008bz!A½\u0094ªÞ\tO!Ar6;fgd!AÌgî·X@!AÂàQ_x0015_\u0087-!Ac>}cxI!A\u0082z\u0088»_x000E_/!A,½leÒ !Aæ=d_#[!A_x0001__x0006_]c\u0090m7&!AvßDÚÀ(!A(£\u008fÜµ_x0016_!A_x0004_¤U/e?!AÑ_x0002_I`»_x0017_!AÏ®ÿ_x000C_AP!A¶_x001B_¦àÝ_x0005_!A¨v³1_x0004_\u008d!AÓí[4ÿ8!A'ç_x0008_\u0098<l!AùgJ¯_x001A_m!Abª¦û¹U!AG7\u009d_x0003_k>!A_x0001__x0016_Ë_x001D__x0018__x001D_!AnatÙ[H!A®B^\u008fö,!A<2=Öø9!A¬óÒ?Ø%!A_x0004_kÒ\u0086\u008bn!A_x000D_[\u0092\u009dÅj!Au^ë_x001A_(:!AüÙkZà,!A\u0085Å\u0088\u0098¾e!Ar_x0002_4#¹&!ATÝ?BZ,!ARÐm4\u0089C!A^]I\u0094\u0086D!Apl\u0091ÓdX!AÐÝt_x001A_Æ=!Aìzz wu!A¨È0%'_!A\u008fÍ|_x001E__x0002__x0003_\u008e_x001A_!A¬_x0011_D\\ìk!A?^úÔâ_x001A_!ACezü¯_x001E_!Ag\u009f5¢Æ !AúWv¹9x!AÈÍ]_x0019_â\u009d!A¼åj\u008aÓ !A6:õÎ2V!Ag\u009f5¢Æ !A¨ÅÄ7ÒA!AVe_x0006_%Í\u0080!Aú.«#_x001D_G!AXÔp3Li!A` &¿8\u0096!A®~_x0001_ _x000C_u!A¾_x0019_\u008aì\u00862!AÒ\t_x001E_Õx\u0099!AîÌ±oï6!A\u0097¿eb',!AN_x000F_*:ÅY!A0 UÀã.!AÆÞ\u0087Z¸W!A_x0014_J¿û?e!AÂõ${c2!A\\!íú\u009a<!A\u0085¬.^Øg!A\\IjÜ\u0095%!A\u009eLwú_x000F_K!A0°±_x0005_áü A|=W_x0018_\u009b_x0016_!AÌ]\u0081K\u009e_x001B_!A_x0001__x0004_v¦pÏ,r!AÆÁtVti!AI_x0001_~Ýê-!A_x001D_öè_x000D__x000B__x001D_!Aª¦]\u0082\u009e,!AÆ\u008fßª\u009e7!A\tsã_x0005_\u0083h!A._x0003_5ËÃl!AT\u009eçÂf_x001F_!A\"_x001B_Ü\u0084Z7!AZñÛWÄ;!AÆNz\"_x0019_\u0087!AÊz\u008dÌ_x001A_0!AÀCûÕ[/!A\u009d_x000F__x000F_VÑ\\!Aû\u008a)Hc\\!A_x0002__x0018__x0007_;·_x001F_!APl$¼¶&!A\u009a´ô\u0081ßC!ALú/d=4!A ÔÃ&l\u0098!Ax»ÿ¶%6!AÙp_x0011_íê4!AP8[\u0094ËE!AÇ_x0002_ùæ\u008f5!A[òÖ_x0007__%!AÜ\u00967O_x0004__x0019_!A·\u008d¼\u0090Ot!AA_x0004_j\\òZ!Aæ_x001D_¹6Ä:!A>áTtLT!AÞã_x0006_f_x0004__x0006_Gn!A_x0013__x0006_µT7h!Aù8\u0081_x0001_Cn!AÑ_x0002_I`»_x0017_!A_x0012_'_x0001_Û\u009bO!A Ù¡f_x000C_.!A=_x0018_«\u0097\\@!A_x0005_MÍ\u00922\u0081!AÆ ù_x0016_´Q!AðÖÎ_x0003_ÓU!A\u00894¡Ô¿*!ANÁ>\u0093\u009ac!A°s)\u0090½6!A4â4ÉW=!AZ_x0004_qp8d!Ai6¹\u0081Yk!AÐF_x0004_Øø;!A\u008dHõ_x000B_\u0095_x0015_!A\u007f¯üp\u00836!A_x0004_\"_x0011_áàK!A\u0092ð;dd9!AòÒ¯Íçc!Ao\u0092_x0001_.Ü{!Ar¾:_x0006_éL!ArË¿_x0017_\u009em!Aòÿ^\u0087ß`!A_x0012_§ý0B?!AHój)©,!A^÷;\u0093\u0080,!AÐÂsl{f!A\u009a8º®K'!A¿µFó:_x001F_!A_x0001__x0002_'óf_x0010_$_x001B_!Aà¦\u0098ý¾_x0019_!A$W¶Ö2ó A_x000C_E\u0088´N\u0088!Aö\u0086µÞß'!AT&Ã_x0012__x0002_C!AY[·¯D4!A_x0010_a_x0010_ïó_x0001_!A\u0099Ü,ÜÖ\u0085!A_x001C_ÔÂõ_x0014_W!A\u0082u3±èG!A_x0002_ùD0_x0010_'!A­¤©T\u0086E!A*\u00849[;\u008d!A_x0019_¡+IÔ6!AJ\u009e972C!AyÞý:!Y!AË_x001F_Z¼»_x001F_!A*\u008fêm_x001D_2!A~­#_x0007_ï3!AvÂ\u007f¥\u0081?!A_x001A__x0014__x0014_­±\\!AÂ\u0095?`[_x001F_!A_x0017_Yâø#r!A>4R\u0091µ1!A¸í_x0013_Ù\u0087;!Aº÷_x0003_¯µ2!ADâ_x001F_0\u009dX!AÞÍÈq+f!A½ç°ïI\u008e!Avt\u008c _x0014_[!AU÷,Ü_x0002__x0003_´L!A\u008dàa_x0012_ÚI!A\u008c¨_x000B_\u0095\\\u008c!AXKöÓ\u008f,!A_x000B_\u009dsp9_x001B_!A\"7CÈ´F!A\u0094á=þ\u009fM!A_x000F_ß_x0011_!,3!Ap_x001D_Ù_x000B_\u008d\u008c!AÞ_x0015_Ð Ä_x0010_!AV\u00938_x0001_íi!A_x0013_Ý¼_W,!A@Õ\tÿñ_x001A_!Aæ3_x0013_ß×K!A&_x0008_Ë*ä\u008b!Aû\u008a)Hc\\!A,\u0080¹á\u009e\u0082!AJ_x0011_ñ¿:Y!A\u009cd_x0018_¤ÏN!A\u0086ÚzÅUV!A\u008cKc\u009dVi!AÈ\u009840ô_x001B_!AÎcZ*\"B!Aê|JÐ¡=!AÊ_x0006_=Y_x0018_d!A~_x001C_´~N\u0080!AN\th\u0086ûD!AâÒ¬_x000D_Éÿ A*ë«m¿?!A_x0012_1?NO\u008d!Af§7\u0095h:!AøÏþs/p!A_x0002__x0003_X.S_x0001_Lh!AëuÝ)\"E!AË\u0087À¢ðD!A\tÍN)¨D!AÂÿÃ-öt!AVq\u009a¿üö A]c\u0090m7&!A,\u0085Ò°_x0003_]!A¬x_x0006_V$_x001B_!AÒÎa³ØO!APl$¼¶&!AH\u009a*¨01!Af·ûþ<E!AüL<â5s!AM\u0081Ç\u0094_x0016_4!AT\u0097>/\u0080\u0082!A_x0002_øZg\u007f&!A;\u009b=Öú_x001A_!A` &¿8\u0096!A¾_x0006__x0019_×¼q!Aó*âút8!AÖ\u009búÔ§_x000F_!A\u009dpþ¤¿_x0016_!AuPÜ\t\u009fK!AÅ¦\u008fª,`!A\u0086-2§õu!A\u009c!ËM·1!A\u0088_x0003_Ñ_x0006__x000E_g!A_x0016_á_x0011_\u0096Àp!A¬ìÃÕû@!AL'_x0008__x0016_µK!AîÝü)_x0003__x0006_\u0081B!A\u008cJ_x000C_ô«D!A²7J%Ô*!A_x001E_9µ{_x001A_;!AÞÖ³1o3!A\"¼_x0001__x0001_\u0081R!A8_x0016_tÖp\u0091!AF7C¬Ø}!AÎC\u0087E.E!Aòª_x0014_6Q:!A*Ü\u008f_x0004_ï\"!AréõôÓ{!AX_x000B_ÂÃã_x0010_!AÐµ³\u0093ÎX!A\u0090ò;\u0091.\u0098!A¢\u0082è«Ë^!Aí\u0083\\å¿i!A_x001E_È'\u0098¾m!A_x0010_öª_x001B_5o!A\u0096Õ_x0005_Á\u0098\\!A_x0004_\u009f,Wv_x001A_!A_x0004_0_x0018_£NW!A_x0003_Í:Ì_x0016_c!A_x0015_b\u0087²æ_x0011_!A_x001D_K$èÚR!A6\u008cq!_x0014_=!AKFc_x0015_>q!A_x0002__x001D_äý35!A1_x001A_<_x0006_\u0092z!A¯×\u0089/p\u0082!Aî\u00809\\¬&!AHê\u0093­Ö@!A_x0002__x0007_ë_x000D_·\u0088À/!AsGL>_x001B_~!AîL\u0097¥KH!AèÎt·Ü;!AP\u0090_x0001_äÍf!A\u0084Ï_x00"}},{"$cut":{"chars":226242,"head":"4823c4181556b78fcdb925f639c382f2_x0001__x0002__x0001__x0001__x0001__x0001__x0001__x0001__x0001__x0001__x0001__x0001__x0001__x0001__x0001__x0001__x0001__x0001__x0001__x0001__x0001__x0001__x0001__x0001__x0001__x0001__x0001__x0001__x0001__x0001__x0001__x0001__x0001__x0001__x0001__x0001__x0001__x0001__x0001__x0001__x0001__x0001__x0001__x0001__x0001__x0001__x0001__x0001__x0001__x0001__x0001__x0001__x0001__x0001__x0001__x0001__x0001__x0001__x0001__x0001__x0001__x0001__x0001__x0001__x0001__x0001__x0001__x0001__x0001__x0001__x0001__x0001__x0001__x0001__x0001__x0001__x0001__x0001__x0001__x0001__x0001__x0001__x0001__x0001__x0001__x0001__x0001__x0001__x0001__x0001__x0001__x0001__x0001__x0001__x0001__x0001__x0001__x0001__x0001__x0001__x0001__x0001__x0001__x0001__x0001__x0001__x0001__x0001__x0001__x0001__x0001__x0001__x0001__x0001__x0001__x0001__x0001__x0001__x0001__x0001__x0001__x0001__x0001__x0001__x0001__x0001__x0001__x0001__x0001__x0001__x0001__x0001__x0001__x0001__x0001__x0001__x0001__x0001__x0001__x0001__x0001__x0001__x0001__x0001__x0001__x0001__x0001__x0001__x0001__x0001__x0001__x0001__x0001__x0001__x0001__x0001__x0001__x0001__x0001__x0001__x0001__x0001__x0001__x0001__x0001__x0001__x0001__x0001__x0001__x0001__x0001__x0001__x0001__x0001__x0001__x0001__x0001__x0001__x0001__x0001__x0001__x0001__x0001__x0001__x0001__x0001__x0001__x0001__x0001__x0001__x0001__x0001__x0001__x0001__x0001__x0001__x0001__x0001__x0001__x0001__x0001__x0001__x0001__x0001__x0001__x0001__x0001__x0001__x0001__x0001__x0001__x0001__x0001__x0001__x0001__x0001__x0001__x0001__x0001__x0001__x0001__x0001__x0001__x0001__x0001__x0001__x0001__x0001__x0001__x0001__x0001__x0001__x0001__x0001__x0001__x0001__x0001__x0001__x0001__x0001__x0001__x0001__x0001__x0001__x0001__x0001__x0001__x0001__x0001__x0001__x0001__x0001__x0001__x0001__x0001__x0002__x0001__x0001__x0001__x0001__x0001__x0001__x0001__x0001__x0001__x0001__x0001__x0001__x0001__x0001__x0001__x0001__x0001__x0001__x0001__x0001__x0001__x0001__x0001__x0001__x0001__x0001__x0001__x0001__x0001__x0001__x0001__x0001__x0001__x0001__x0001__x0001__x0001__x0001__x0001__x0001__x0001__x0001__x0001__x0001__x0001__x0001__x0001__x0001__x0001__x0001__x0001__x0001__x0001__x0001__x0001__x0001__x0001__x0001__x0001__x0001__x0001__x0001__x0001__x0001__x0001__x0001__x0001__x0001__x0001__x0001__x0001__x0001__x0001__x0001__x0001__x0001__x0001__x0001__x0001__x0001__x0001__x0001__x0001__x0001__x0001__x0001__x0001__x0001__x0001__x0001__x0001__x0001__x0001__x0001__x0001__x0001__x0001__x0001__x0001__x0001__x0001__x0001__x0001__x0001__x0001__x0001__x0001__x0001__x0001__x0001__x0001__x0001__x0001__x0001__x0001__x0001__x0001__x0001__x0001__x0001__x0001__x0001__x0001__x0001__x0001__x0001__x0001__x0001__x0001__x0001__x0001__x0001__x0001__x0001__x0001__x0001__x0001__x0001__x0001__x0001__x0001__x0001__x0001__x0001__x0001__x0001__x0001__x0001__x0001__x0001__x0001__x0001__x0001__x0001__x0001__x0001__x0001__x0001__x0001__x0001__x0001__x0001__x0001__x0001__x0001__x0001__x0001__x0001__x0001__x0001__x0001__x0001__x0001__x0001__x0001__x0001__x0001__x0001__x0001__x0001__x0001__x0001__x0001__x0001__x0001__x0001__x0001__x0001__x0001__x0001__x0001__x0001__x0001__x0001__x0001__x0001__x0001__x0001__x0001__x0001__x0001__x0001__x0001__x0001__x0001__x0001__x0001__x0001__x0001__x0001__x0001__x0001__x0001__x0001__x0001__x0001__x0001__x0001__x0001__x0001__x0001__x0001__x0001__x0001__x0001__x0001__x0001__x0001__x0001__x0001__x0001__x0001__x0001__x0001__x0001__x0001__x0001__x0001__x0001__x0001__x0001__x0001__x0001__x0001__x0001__x0001__x0001__x0001__x0001__x0001__x0001__x0001__x0001__x0002__x0001__x0001__x0001__x0001__x0001__x0001__x0001__x0001__x0001__x0001__x0001__x0001__x0001__x0001__x0001__x0001__x0001__x0001__x0001__x0001__x0001__x0001__x0001__x0001__x0001__x0001__x0001__x0001__x0001__x0001__x0001__x0001__x0001__x0001__x0001__x0001__x0001__x0001__x0001__x0001__x0001__x0001__x0001__x0001__x0001__x0001__x0001__x0001__x0001__x0001__x0001__x0001__x0001__x0001__x0001__x0001__x0001__x0001__x0001__x0001__x0001__x0001__x0001__x0001__x0001__x0001__x0001__x0001__x0001__x0001__x00"}},{"$cut":{"chars":227616,"head":"f91704691ca1a13d411d1dcdd440a4d9_x0001__x0002__x0001__x0001__x0001__x0001__x0001__x0001__x0001__x0001__x0001__x0001__x0001__x0001__x0001__x0001__x0001__x0001__x0001__x0001__x0001__x0001__x0001__x0001__x0001__x0001__x0001__x0001__x0001__x0001__x0001__x0001__x0001__x0001__x0001__x0001__x0001__x0001__x0001__x0001__x0001__x0001__x0001__x0001__x0001__x0001__x0001__x0001__x0001__x0001__x0001__x0001__x0001__x0001__x0001__x0001__x0001__x0001__x0001__x0001__x0001__x0001__x0001__x0001__x0001__x0001__x0001__x0001__x0001__x0001__x0001__x0001__x0001__x0001__x0001__x0001__x0001__x0001__x0001__x0001__x0001__x0001__x0001__x0001__x0001__x0001__x0001__x0001__x0001__x0001__x0001__x0001__x0001__x0001__x0001__x0001__x0001__x0001__x0001__x0001__x0001__x0001__x0001__x0001__x0001__x0001__x0001__x0001__x0001__x0001__x0001__x0001__x0001__x0001__x0001__x0001__x0001__x0001__x0001__x0001__x0001__x0001__x0001__x0001__x0001__x0001__x0001__x0001__x0001__x0001__x0001__x0001__x0001__x0001__x0001__x0001__x0001__x0001__x0001__x0001__x0001__x0001__x0001__x0001__x0001__x0001__x0001__x0001__x0001__x0001__x0001__x0001__x0001__x0001__x0001__x0001__x0001__x0001__x0001__x0001__x0001__x0001__x0001__x0001__x0001__x0001__x0001__x0001__x0001__x0001__x0001__x0001__x0001__x0001__x0001__x0001__x0001__x0001__x0001__x0001__x0001__x0001__x0001__x0001__x0001__x0001__x0001__x0001__x0001__x0001__x0001__x0001__x0001__x0001__x0001__x0001__x0001__x0001__x0001__x0001__x0001__x0001__x0001__x0001__x0001__x0001__x0001__x0001__x0001__x0001__x0001__x0001__x0001__x0001__x0001__x0001__x0001__x0001__x0001__x0001__x0001__x0001__x0001__x0001__x0001__x0001__x0001__x0001__x0001__x0001__x0001__x0001__x0001__x0001__x0001__x0001__x0001__x0001__x0001__x0001__x0001__x0001__x0001__x0001__x0001__x0001__x0001__x0001__x0001__x0001__x0001__x0001__x0001__x0001__x0001__x0002__x0001__x0001__x0001__x0001__x0001__x0001__x0001__x0001__x0001__x0001__x0001__x0001__x0001__x0001__x0001__x0001__x0001__x0001__x0001__x0001__x0001__x0001__x0001__x0001__x0001__x0001__x0001__x0001__x0001__x0001__x0001__x0001__x0001__x0001__x0001__x0001__x0001__x0001__x0001__x0001__x0001__x0001__x0001__x0001__x0001__x0001__x0001__x0001__x0001__x0001__x0001__x0001__x0001__x0001__x0001__x0001__x0001__x0001__x0001__x0001__x0001__x0001__x0001__x0001__x0001__x0001__x0001__x0001__x0001__x0001__x0001__x0001__x0001__x0001__x0001__x0001__x0001__x0001__x0001__x0001__x0001__x0001__x0001__x0001__x0001__x0001__x0001__x0001__x0001__x0001__x0001__x0001__x0001__x0001__x0001__x0001__x0001__x0001__x0001__x0001__x0001__x0001__x0001__x0001__x0001__x0001__x0001__x0001__x0001__x0001__x0001__x0001__x0001__x0001__x0001__x0001__x0001__x0001__x0001__x0001__x0001__x0001__x0001__x0001__x0001__x0001__x0001__x0001__x0001__x0001__x0001__x0001__x0001__x0001__x0001__x0001__x0001__x0001__x0001__x0001__x0001__x0001__x0001__x0001__x0001__x0001__x0001__x0001__x0001__x0001__x0001__x0001__x0001__x0001__x0001__x0001__x0001__x0001__x0001__x0001__x0001__x0001__x0001__x0001__x0001__x0001__x0001__x0001__x0001__x0001__x0001__x0001__x0001__x0001__x0001__x0001__x0001__x0001__x0001__x0001__x0001__x0001__x0001__x0001__x0001__x0001__x0001__x0001__x0001__x0001__x0001__x0001__x0001__x0001__x0001__x0001__x0001__x0001__x0001__x0001__x0001__x0001__x0001__x0001__x0001__x0001__x0001__x0001__x0001__x0001__x0001__x0001__x0001__x0001__x0001__x0001__x0001__x0001__x0001__x0001__x0001__x0001__x0001__x0001__x0001__x0001__x0001__x0001__x0001__x0001__x0001__x0001__x0001__x0001__x0001__x0001__x0001__x0001__x0001__x0001__x0001__x0001__x0001__x0001__x0001__x0001__x0001__x0001__x0001__x0001__x0001__x0001__x0001__x0002__x0001__x0001__x0001__x0001__x0001__x0001__x0001__x0001__x0001__x0001__x0001__x0001__x0001__x0001__x0001__x0001__x0001__x0001__x0001__x0001__x0001__x0001__x0001__x0001__x0001__x0001__x0001__x0001__x0001__x0001__x0001__x0001__x0001__x0001__x0001__x0001__x0001__x0001__x0001__x0001__x0001__x0001__x0001__x0001__x0001__x0001__x0001__x0001__x0001__x0001__x0001__x0001__x0001__x0001__x0001__x0001__x0001__x0001__x0001__x0001__x0001__x0001__x0001__x0001__x0001__x0001__x0001__x0001__x0001__x0001__x00"}},{"$cut":{"chars":65946,"head":"29bc450eb7c6cc825f42f8d60a264c3a_x0001__x0002__x0001__x0001__x0001__x0001__x0001__x0001__x0001__x0001__x0001__x0001__x0001__x0001__x0001__x0001__x0001__x0001__x0001__x0001__x0001__x0001__x0001__x0001__x0001__x0001__x0001__x0001__x0001__x0001__x0001__x0001__x0001__x0001__x0001__x0001__x0001__x0001__x0001__x0001__x0001__x0001__x0001__x0001__x0001__x0001__x0001__x0001__x0001__x0001__x0001__x0001__x0001__x0001__x0001__x0001__x0001__x0001__x0001__x0001__x0001__x0001__x0001__x0001__x0001__x0001__x0001__x0001__x0001__x0001__x0001__x0001__x0001__x0001__x0001__x0001__x0001__x0001__x0001__x0001__x0001__x0001__x0001__x0001__x0001__x0001__x0001__x0001__x0001__x0001__x0001__x0001__x0001__x0001__x0001__x0001__x0001__x0001__x0001__x0001__x0001__x0001__x0001__x0001__x0001__x0001__x0001__x0001__x0001__x0001__x0001__x0001__x0001__x0001__x0001__x0001__x0001__x0001__x0001__x0001__x0001__x0001__x0001__x0001__x0001__x0001__x0001__x0001__x0001__x0001__x0001__x0001__x0001__x0001__x0001__x0001__x0001__x0001__x0001__x0001__x0001__x0001__x0001__x0001__x0001__x0001__x0001__x0001__x0001__x0001__x0001__x0001__x0001__x0001__x0001__x0001__x0001__x0001__x0001__x0001__x0001__x0001__x0001__x0001__x0001__x0001__x0001__x0001__x0001__x0001__x0001__x0001__x0001__x0001__x0001__x0001__x0001__x0001__x0001__x0001__x0001__x0001__x0001__x0001__x0001__x0001__x0001__x0001__x0001__x0001__x0001__x0001__x0001__x0001__x0001__x0001__x0001__x0001__x0001__x0001__x0001__x0001__x0001__x0001__x0001__x0001__x0001__x0001__x0001__x0001__x0001__x0001__x0001__x0001__x0001__x0001__x0001__x0001__x0001__x0001__x0001__x0001__x0001__x0001__x0001__x0001__x0001__x0001__x0001__x0001__x0001__x0001__x0001__x0001__x0001__x0001__x0001__x0001__x0001__x0001__x0001__x0001__x0001__x0001__x0001__x0001__x0001__x0001__x0001__x0001__x0001__x0001__x0001__x0001__x0001__x0002__x0001__x0001__x0001__x0001__x0001__x0001__x0001__x0001__x0001__x0001__x0001__x0001__x0001__x0001__x0001__x0001__x0001__x0001__x0001__x0001__x0001__x0001__x0001__x0001__x0001__x0001__x0001__x0001__x0001__x0001__x0001__x0001__x0001__x0001__x0001__x0001__x0001__x0001__x0001__x0001__x0001__x0001__x0001__x0001__x0001__x0001__x0001__x0001__x0001__x0001__x0001__x0001__x0001__x0001__x0001__x0001__x0001__x0001__x0001__x0001__x0001__x0001__x0001__x0001__x0001__x0001__x0001__x0001__x0001__x0001__x0001__x0001__x0001__x0001__x0001__x0001__x0001__x0001__x0001__x0001__x0001__x0001__x0001__x0001__x0001__x0001__x0001__x0001__x0001__x0001__x0001__x0001__x0001__x0001__x0001__x0001__x0001__x0001__x0001__x0001__x0001__x0001__x0001__x0001__x0001__x0001__x0001__x0001__x0001__x0001__x0001__x0001__x0001__x0001__x0001__x0001__x0001__x0001__x0001__x0001__x0001__x0001__x0001__x0001__x0001__x0001__x0001__x0001__x0001__x0001__x0001__x0001__x0001__x0001__x0001__x0001__x0001__x0001__x0001__x0001__x0001__x0001__x0001__x0001__x0001__x0001__x0001__x0001__x0001__x0001__x0001__x0001__x0001__x0001__x0001__x0001__x0001__x0001__x0001__x0001__x0001__x0001__x0001__x0001__x0001__x0001__x0001__x0001__x0001__x0001__x0001__x0001__x0001__x0001__x0001__x0001__x0001__x0001__x0001__x0001__x0001__x0001__x0001__x0001__x0001__x0001__x0001__x0001__x0001__x0001__x0001__x0001__x0001__x0001__x0001__x0001__x0001__x0001__x0001__x0001__x0001__x0001__x0001__x0001__x0001__x0001__x0001__x0001__x0001__x0001__x0001__x0001__x0001__x0001__x0001__x0001__x0001__x0001__x0001__x0001__x0001__x0001__x0001__x0001__x0001__x0001__x0001__x0001__x0001__x0001__x0001__x0001__x0001__x0001__x0001__x0001__x0001__x0001__x0001__x0001__x0001__x0001__x0001__x0001__x0001__x0001__x0001__x0001__x0001__x0001__x0001__x0001__x0001__x0002__x0001__x0001__x0001__x0001__x0001__x0001__x0001__x0001__x0001__x0001__x0001__x0001__x0001__x0001__x0001__x0001__x0001__x0001__x0001__x0001__x0001__x0001__x0001__x0001__x0001__x0001__x0001__x0001__x0001__x0001__x0001__x0001__x0001__x0001__x0001__x0001__x0001__x0001__x0001__x0001__x0001__x0001__x0001__x0001__x0001__x0001__x0001__x0001__x0001__x0001__x0001__x0001__x0001__x0001__x0001__x0001__x0001__x0001__x0001__x0001__x0001__x0001__x0001__x0001__x0001__x0001__x0001__x0001__x0001__x0001__x00"}},{"$cut":{"chars":93432,"head":"397a2b497ed2093bee341bcf5302bc53_x0002__x0004__x0002__x0002__x0002__x0002__x0002__x0002__x0002__x0002__x0002__x0002__x0002__x0002__x0002__x0003__x0002__x0002__x0002_P14_x001F__x0002__x0002__x0002_=RiskOutput($T14&\" / \"&P$3)+D14_x0002__x0002__x0002__x0002__x0002__x0002__x0002__x0002__x0001__x0002__x0002__x0002_)_x0002__x0002__x0002__x0001__x0002__x0002__x0002__x001B__x0002__x0002__x0002__x0002__x0002__x0002__x0002_)_x0002__x0002__x0002_Low Income Weatherization & Tribal / FY17_x0002__x0002__x0002__x0002__x0002__x0002__x0002__x0002__x0002__x0002_ÿÿÿÿÿÿÿÿÿÿÿÿÿÿÿÿÿÿÿÿÿÿÿÿÿÿÿÿÿÿÿÿÿÿÿÿÿÿÿÿÿÿ_x0002__x0002__x0003__x0002__x0002__x0002_Q14_x001F__x0002__x0002__x0002_=RiskOutput($T14&\" / \"&Q$3)+F14_x0002__x0002__x0002__x0002__x0002__x0002__x0002__x0002__x0001__x0002__x0002__x0002_*_x0002__x0002__x0002__x0001__x0002__x0002__x0002__x001B__x0002__x0002__x0002__x0002__x0002__x0002__x0002__x0002__x0004_)_x0002__x0002__x0002_Low Income Weatherization & Tribal / FY18_x0002__x0002__x0002__x0002__x0002__x0002__x0002__x0002__x0002__x0002_ÿÿÿÿÿÿÿÿÿÿÿÿÿÿÿÿÿÿÿÿÿÿÿÿÿÿÿÿÿÿÿÿÿÿÿÿÿÿÿÿÿÿ_x0002__x0002__x0003__x0002__x0002__x0002_R14_x001F__x0002__x0002__x0002_=RiskOutput($T14&\" / \"&R$3)+H14_x0002__x0002__x0002__x0002__x0002__x0002__x0002__x0002__x0001__x0002__x0002__x0002_+_x0002__x0002__x0002__x0001__x0002__x0002__x0002__x001B__x0002__x0002__x0002__x0002__x0002__x0002__x0002_)_x0002__x0002__x0002_Low Income Weatherization & Tribal / FY19_x0002__x0002__x0002__x0002__x0002__x0002__x0002__x0002__x0002__x0002_ÿÿÿÿÿÿÿÿÿÿÿÿÿÿÿÿÿÿÿÿÿÿÿÿÿÿÿÿ_x0002__x0004_ÿÿÿÿÿÿÿÿÿÿÿÿÿÿ_x0002__x0002__x0003__x0002__x0002__x0002_S14#_x0002__x0002__x0002_=RiskOutput($T14&\" / \"&S$3)+Q14+R14_x0002__x0002__x0002__x0002__x0002__x0002__x0002__x0002__x0001__x0002__x0002__x0002_,_x0002__x0002__x0002__x0001__x0002__x0002__x0002__x001B__x0002__x0002__x0002__x0002__x0002__x0002__x0002_0_x0002__x0002__x0002_Low Income Weatherization & Tribal / FY18 and 19_x0002__x0002__x0002__x0002__x0002__x0002__x0002__x0002__x0002__x0002_ÿÿÿÿÿÿÿÿÿÿÿÿÿÿÿÿÿÿÿÿÿÿÿÿÿÿÿÿÿÿÿÿÿÿÿÿÿÿÿÿÿÿ_x0002__x0002__x0003__x0002__x0002__x0002_D166_x0002__x0002__x0002_=RiskPert(C16*AVERAGE(1,0.98),C16,C16*AVERAGE_x0002__x0004_(1,1.01))%_x0002__x0002__x0002_3rd Party GTA Wheeling_x0001_B16_x0001_D4_x0001_Modeled_x0001__x0002__x0002__x0002__x0002__x0002__x0002__x0002__x0006__x0002__x0002__x0002__x0001__x0002__x0002__x0002_6_x0002__x0002__x0002_ _x0002__x0002__x0002_3rd Party GTA Wheeling / Modeled_x0001__x0002__x0002__x0002__x0002__x0002__x0002__x0002__x0002__x0002__x0002__x0002__x0002__x0002__x0002__x0002__x0002__x0002__x0002__x0002__x0003__x0002__x0002__x0002_F16 _x0002__x0002__x0002_=RiskPert(E16*0.96,E16,E16*1.02)%_x0002__x0002__x0002_3rd Party GTA Wheeling_x0001_B16_x0001_F4_x0001_Modeled_x0001__x0002__x0002__x0002__x0002__x0002__x0002__x0002__x0007__x0002__x0002__x0002__x0001__x0002__x0002__x0002_ _x0002__x0002__x0002_ _x0002__x0002__x0002_3rd Party GTA Whee_x0002__x0004_ling / Modeled_x0001__x0002__x0002__x0002__x0002__x0002__x0002__x0002__x0002__x0002__x0002__x0002__x0002__x0002__x0002__x0002__x0002__x0002__x0002__x0002__x0003__x0002__x0002__x0002_H16 _x0002__x0002__x0002_=RiskPert(G16*0.96,G16,G16*1.03)%_x0002__x0002__x0002_3rd Party GTA Wheeling_x0001_B16_x0001_H4_x0001_Modeled_x0001__x0002__x0002__x0002__x0002__x0002__x0002__x0002__x0008__x0002__x0002__x0002__x0001__x0002__x0002__x0002_ _x0002__x0002__x0002_ _x0002__x0002__x0002_3rd Party GTA Wheeling / Modeled_x0001__x0002__x0002__x0002__x0002__x0002__x0002__x0002__x0002__x0002__x0002__x0002__x0002__x0002__x0002__x0002__x0002__x0002__x0002__x0002__x0003__x0002__x0002__x0002_P16_x001F__x0002__x0002__x0002_=RiskOutput($T16&\" / \"&P$3)+D16_x0002__x0002__x0002__x0002__x0002__x0002__x0002__x0002__x0001__x0002__x0002__x0002_-_x0002__x0002__x0002__x0002__x0004__x0001__x0002__x0002__x0002__x001B__x0002__x0002__x0002__x0002__x0002__x0002__x0002__x001D__x0002__x0002__x0002_3rd Party GTA Wheeling / FY17_x0002__x0002__x0002__x0002__x0002__x0002__x0002__x0002__x0002__x0002_ÿÿÿÿÿÿÿÿÿÿÿÿÿÿÿÿÿÿÿÿÿÿÿÿÿÿÿÿÿÿÿÿÿÿÿÿÿÿÿÿÿÿ_x0002__x0002__x0003__x0002__x0002__x0002_Q16_x001F__x0002__x0002__"}},{"$cut":{"chars":93774,"head":"2234b9f4c1be6643597fab9a9d645c75_x0001__x0002__x0001__x0001__x0001__x0001__x0001__x0001__x0001__x0001__x0001__x0003__x0001__x0001__x0001_D31(_x0001__x0001__x0001_=RiskData('Risk Summary'!L$48,$A31)/1000_x0001__x0001__x0001__x0001__x0001__x0001__x0001__x0001__x0001__x0001__x0001__x0001__x0003__x0001__x0001__x0001_G31&_x0001__x0001__x0001_=(RiskData(NR_to_Cash!C$18,$A31))/1000_x0001__x0001__x0001__x0001__x0001__x0001__x0001__x0001__x0001__x0001__x0001__x0001__x0003__x0001__x0001__x0001_H31&_x0001__x0001__x0001_=(RiskData(NR_to_Cash!D$18,$A31))/1000_x0001__x0001__x0001__x0001__x0001__x0001__x0001__x0001__x0001__x0001__x0001__x0001__x0003__x0001__x0001__x0001_I31&_x0001__x0001__x0001_=(RiskData(NR_to_Cash!E$18,$A31))/1000_x0001__x0001__x0001__x0001__x0001__x0001__x0001__x0001__x0001__x0001__x0002__x0001__x0001__x0001__x0003__x0001__x0001__x0001_B32(_x0001__x0001__x0001_=RiskData('Risk Summary'!J$48,$A32)/1000_x0001__x0001__x0001__x0001__x0001__x0001__x0001__x0001__x0001__x0001__x0001__x0001__x0003__x0001__x0001__x0001_C32(_x0001__x0001__x0001_=RiskData('Risk Summary'!K$48,$A32)/1000_x0001__x0001__x0001__x0001__x0001__x0001__x0001__x0001__x0001__x0001__x0001__x0001__x0003__x0001__x0001__x0001_D32(_x0001__x0001__x0001_=RiskData('Risk Summary'!L$48,$A32)/1000_x0001__x0001__x0001__x0001__x0001__x0001__x0001__x0001__x0001__x0001__x0001__x0001__x0003__x0001__x0001__x0001_G32&_x0001__x0001__x0001_=(RiskData(NR_to_Cash!C$18,$A32))/1000_x0001__x0001__x0001__x0001__x0001__x0001__x0001__x0001__x0001__x0001__x0001__x0001__x0002__x0001__x0003__x0001__x0001__x0001_H32&_x0001__x0001__x0001_=(RiskData(NR_to_Cash!D$18,$A32))/1000_x0001__x0001__x0001__x0001__x0001__x0001__x0001__x0001__x0001__x0001__x0001__x0001__x0003__x0001__x0001__x0001_I32&_x0001__x0001__x0001_=(RiskData(NR_to_Cash!E$18,$A32))/1000_x0001__x0001__x0001__x0001__x0001__x0001__x0001__x0001__x0001__x0001__x0001__x0001__x0003__x0001__x0001__x0001_B33(_x0001__x0001__x0001_=RiskData('Risk Summary'!J$48,$A33)/1000_x0001__x0001__x0001__x0001__x0001__x0001__x0001__x0001__x0001__x0001__x0001__x0001__x0003__x0001__x0001__x0001_C33(_x0001__x0001__x0001_=RiskData('Risk Summary'!K$48,$A33)/1000_x0001__x0001__x0001__x0001__x0001__x0001__x0001__x0001__x0001__x0001__x0001__x0001__x0003__x0001__x0001__x0001__x0002__x0001_D33(_x0001__x0001__x0001_=RiskData('Risk Summary'!L$48,$A33)/1000_x0001__x0001__x0001__x0001__x0001__x0001__x0001__x0001__x0001__x0001__x0001__x0001__x0003__x0001__x0001__x0001_G33&_x0001__x0001__x0001_=(RiskData(NR_to_Cash!C$18,$A33))/1000_x0001__x0001__x0001__x0001__x0001__x0001__x0001__x0001__x0001__x0001__x0001__x0001__x0003__x0001__x0001__x0001_H33&_x0001__x0001__x0001_=(RiskData(NR_to_Cash!D$18,$A33))/1000_x0001__x0001__x0001__x0001__x0001__x0001__x0001__x0001__x0001__x0001__x0001__x0001__x0003__x0001__x0001__x0001_I33&_x0001__x0001__x0001_=(RiskData(NR_to_Cash!E$18,$A33))/1000_x0001__x0001__x0001__x0001__x0001__x0001__x0001__x0001__x0001__x0001__x0001__x0001__x0003__x0001__x0001__x0001_B34(_x0001__x0001__x0002__x0001__x0001_=RiskData('Risk Summary'!J$48,$A34)/1000_x0001__x0001__x0001__x0001__x0001__x0001__x0001__x0001__x0001__x0001__x0001__x0001__x0003__x0001__x0001__x0001_C34(_x0001__x0001__x0001_=RiskData('Risk Summary'!K$48,$A34)/1000_x0001__x0001__x0001__x0001__x0001__x0001__x0001__x0001__x0001__x0001__x0001__x0001__x0003__x0001__x0001__x0001_D34(_x0001__x0001__x0001_=RiskData('Risk Summary'!L$48,$A34)/1000_x0001__x0001__x0001__x0001__x0001__x0001__x0001__x0001__x0001__x0001__x0001__x0001__x0003__x0001__x0001__x0001_G34&_x0001__x0001__x0001_=(RiskData(NR_to_Cash!C$18,$A34))/1000_x0001__x0001__x0001__x0001__x0001__x0001__x0001__x0001__x0001__x0001__x0001__x0001__x0003__x0001__x0001__x0001_H34&_x0001__x0001__x0001__x0001__x0002_=(RiskData(NR_to_Cash!D$18,$A34))/1000_x0001__x0001__x0001__x0001__x0001__x0001__x0001__x0001__x0001__x0001__x0001__x0001__x0003__x0001__x0001__x0001_I34&_x0001__x0001__x0001_=(RiskData(NR_to_Cash!E$18,$A34))/1000_x0001__x0001__x0001__x0001__x0001__x0001__x0001__x0001__x0001__x0001__x0001__x0001__x0003__x0001__x0001__x0001_B35(_x0001__x0001__"}},{"$cut":{"chars":91536,"head":"21a5b2a63c3129740dd233281de07656_x0001__x0002_1000_x0001__x0001__x0001__x0001__x0001__x0001__x0001__x0001__x0001__x0001__x0001__x0001__x0004__x0001__x0001__x0001_C116)_x0001__x0001__x0001_=RiskData('Risk Summary'!K$48,$A116)/1000_x0001__x0001__x0001__x0001__x0001__x0001__x0001__x0001__x0001__x0001__x0001__x0001__x0004__x0001__x0001__x0001_D116)_x0001__x0001__x0001_=RiskData('Risk Summary'!L$48,$A116)/1000_x0001__x0001__x0001__x0001__x0001__x0001__x0001__x0001__x0001__x0001__x0001__x0001__x0004__x0001__x0001__x0001_G116'_x0001__x0001__x0001_=(RiskData(NR_to_Cash!C$18,$A116))/1000_x0001__x0001__x0001__x0001__x0001__x0001__x0001__x0001__x0001__x0001__x0001__x0001__x0004__x0001__x0001__x0001_H116'_x0001__x0001__x0001_=(RiskData(NR_to_Cash!D$18,$A11_x0001__x0002_6))/1000_x0001__x0001__x0001__x0001__x0001__x0001__x0001__x0001__x0001__x0001__x0001__x0001__x0004__x0001__x0001__x0001_I116'_x0001__x0001__x0001_=(RiskData(NR_to_Cash!E$18,$A116))/1000_x0001__x0001__x0001__x0001__x0001__x0001__x0001__x0001__x0001__x0001__x0001__x0001__x0004__x0001__x0001__x0001_B117)_x0001__x0001__x0001_=RiskData('Risk Summary'!J$48,$A117)/1000_x0001__x0001__x0001__x0001__x0001__x0001__x0001__x0001__x0001__x0001__x0001__x0001__x0004__x0001__x0001__x0001_C117)_x0001__x0001__x0001_=RiskData('Risk Summary'!K$48,$A117)/1000_x0001__x0001__x0001__x0001__x0001__x0001__x0001__x0001__x0001__x0001__x0001__x0001__x0004__x0001__x0001__x0001_D117)_x0001__x0001__x0001_=RiskData('Risk Summary'!L$_x0001__x0002_48,$A117)/1000_x0001__x0001__x0001__x0001__x0001__x0001__x0001__x0001__x0001__x0001__x0001__x0001__x0004__x0001__x0001__x0001_G117'_x0001__x0001__x0001_=(RiskData(NR_to_Cash!C$18,$A117))/1000_x0001__x0001__x0001__x0001__x0001__x0001__x0001__x0001__x0001__x0001__x0001__x0001__x0004__x0001__x0001__x0001_H117'_x0001__x0001__x0001_=(RiskData(NR_to_Cash!D$18,$A117))/1000_x0001__x0001__x0001__x0001__x0001__x0001__x0001__x0001__x0001__x0001__x0001__x0001__x0004__x0001__x0001__x0001_I117'_x0001__x0001__x0001_=(RiskData(NR_to_Cash!E$18,$A117))/1000_x0001__x0001__x0001__x0001__x0001__x0001__x0001__x0001__x0001__x0001__x0001__x0001__x0004__x0001__x0001__x0001_B118)_x0001__x0001__x0001_=RiskData('Risk Summary'!_x0001__x0002_J$48,$A118)/1000_x0001__x0001__x0001__x0001__x0001__x0001__x0001__x0001__x0001__x0001__x0001__x0001__x0004__x0001__x0001__x0001_C118)_x0001__x0001__x0001_=RiskData('Risk Summary'!K$48,$A118)/1000_x0001__x0001__x0001__x0001__x0001__x0001__x0001__x0001__x0001__x0001__x0001__x0001__x0004__x0001__x0001__x0001_D118)_x0001__x0001__x0001_=RiskData('Risk Summary'!L$48,$A118)/1000_x0001__x0001__x0001__x0001__x0001__x0001__x0001__x0001__x0001__x0001__x0001__x0001__x0004__x0001__x0001__x0001_G118'_x0001__x0001__x0001_=(RiskData(NR_to_Cash!C$18,$A118))/1000_x0001__x0001__x0001__x0001__x0001__x0001__x0001__x0001__x0001__x0001__x0001__x0001__x0004__x0001__x0001__x0001_H118'_x0001__x0001__x0001_=(RiskData(NR_to_Ca_x0001__x0002_sh!D$18,$A118))/1000_x0001__x0001__x0001__x0001__x0001__x0001__x0001__x0001__x0001__x0001__x0001__x0001__x0004__x0001__x0001__x0001_I118'_x0001__x0001__x0001_=(RiskData(NR_to_Cash!E$18,$A118))/1000_x0001__x0001__x0001__x0001__x0001__x0001__x0001__x0001__x0001__x0001__x0001__x0001__x0004__x0001__x0001__x0001_B119)_x0001__x0001__x0001_=RiskData('Risk Summary'!J$48,$A119)/1000_x0001__x0001__x0001__x0001__x0001__x0001__x0001__x0001__x0001__x0001__x0001__x0001__x0004__x0001__x0001__x0001_C119)_x0001__x0001__x0001_=RiskData('Risk Summary'!K$48,$A119)/1000_x0001__x0001__x0001__x0001__x0001__x0001__x0001__x0001__x0001__x0001__x0001__x0001__x0004__x0001__x0001__x0001_D119)_x0001__x0001__x0001_=RiskData('Risk_x0001__x0002_ Summary'!L$48,$A119)/1000_x0001__x0001__x0001__x0001__x0001__x0001__x0001__x0001__x0001__x0001__x0001__x0001__x0004__x0001__x0001__x0001_G119'_x0001__x0001__x0001_=(RiskData(NR_to_Cash!C$18,$A119))/1000_x0001__x0001__x0001__x0001__x0001__x0001__x0001__x0001__x0001__x0001__x0001__x0001__x0004__x0001__x0001__x0001_H119'_x0001__x0001__x0001_=(RiskData(NR_to_Cash!D$18,$A119))/1000_x0001__x0001__x0001__x0001__x0001__x0001__x0001__x0001__x00"}},{"$cut":{"chars":92154,"head":"1ffe10aa69b73195fd0c0ade47b176e2_x0001__x0002_1000_x0001__x0001__x0001__x0001__x0001__x0001__x0001__x0001__x0001__x0001__x0001__x0001__x0004__x0001__x0001__x0001_C200)_x0001__x0001__x0001_=RiskData('Risk Summary'!K$48,$A200)/1000_x0001__x0001__x0001__x0001__x0001__x0001__x0001__x0001__x0001__x0001__x0001__x0001__x0004__x0001__x0001__x0001_D200)_x0001__x0001__x0001_=RiskData('Risk Summary'!L$48,$A200)/1000_x0001__x0001__x0001__x0001__x0001__x0001__x0001__x0001__x0001__x0001__x0001__x0001__x0004__x0001__x0001__x0001_G200'_x0001__x0001__x0001_=(RiskData(NR_to_Cash!C$18,$A200))/1000_x0001__x0001__x0001__x0001__x0001__x0001__x0001__x0001__x0001__x0001__x0001__x0001__x0004__x0001__x0001__x0001_H200'_x0001__x0001__x0001_=(RiskData(NR_to_Cash!D$18,$A20_x0001__x0002_0))/1000_x0001__x0001__x0001__x0001__x0001__x0001__x0001__x0001__x0001__x0001__x0001__x0001__x0004__x0001__x0001__x0001_I200'_x0001__x0001__x0001_=(RiskData(NR_to_Cash!E$18,$A200))/1000_x0001__x0001__x0001__x0001__x0001__x0001__x0001__x0001__x0001__x0001__x0001__x0001__x0004__x0001__x0001__x0001_B201)_x0001__x0001__x0001_=RiskData('Risk Summary'!J$48,$A201)/1000_x0001__x0001__x0001__x0001__x0001__x0001__x0001__x0001__x0001__x0001__x0001__x0001__x0004__x0001__x0001__x0001_C201)_x0001__x0001__x0001_=RiskData('Risk Summary'!K$48,$A201)/1000_x0001__x0001__x0001__x0001__x0001__x0001__x0001__x0001__x0001__x0001__x0001__x0001__x0004__x0001__x0001__x0001_D201)_x0001__x0001__x0001_=RiskData('Risk Summary'!L$_x0001__x0002_48,$A201)/1000_x0001__x0001__x0001__x0001__x0001__x0001__x0001__x0001__x0001__x0001__x0001__x0001__x0004__x0001__x0001__x0001_G201'_x0001__x0001__x0001_=(RiskData(NR_to_Cash!C$18,$A201))/1000_x0001__x0001__x0001__x0001__x0001__x0001__x0001__x0001__x0001__x0001__x0001__x0001__x0004__x0001__x0001__x0001_H201'_x0001__x0001__x0001_=(RiskData(NR_to_Cash!D$18,$A201))/1000_x0001__x0001__x0001__x0001__x0001__x0001__x0001__x0001__x0001__x0001__x0001__x0001__x0004__x0001__x0001__x0001_I201'_x0001__x0001__x0001_=(RiskData(NR_to_Cash!E$18,$A201))/1000_x0001__x0001__x0001__x0001__x0001__x0001__x0001__x0001__x0001__x0001__x0001__x0001__x0004__x0001__x0001__x0001_B202)_x0001__x0001__x0001_=RiskData('Risk Summary'!_x0001__x0002_J$48,$A202)/1000_x0001__x0001__x0001__x0001__x0001__x0001__x0001__x0001__x0001__x0001__x0001__x0001__x0004__x0001__x0001__x0001_C202)_x0001__x0001__x0001_=RiskData('Risk Summary'!K$48,$A202)/1000_x0001__x0001__x0001__x0001__x0001__x0001__x0001__x0001__x0001__x0001__x0001__x0001__x0004__x0001__x0001__x0001_D202)_x0001__x0001__x0001_=RiskData('Risk Summary'!L$48,$A202)/1000_x0001__x0001__x0001__x0001__x0001__x0001__x0001__x0001__x0001__x0001__x0001__x0001__x0004__x0001__x0001__x0001_G202'_x0001__x0001__x0001_=(RiskData(NR_to_Cash!C$18,$A202))/1000_x0001__x0001__x0001__x0001__x0001__x0001__x0001__x0001__x0001__x0001__x0001__x0001__x0004__x0001__x0001__x0001_H202'_x0001__x0001__x0001_=(RiskData(NR_to_Ca_x0001__x0002_sh!D$18,$A202))/1000_x0001__x0001__x0001__x0001__x0001__x0001__x0001__x0001__x0001__x0001__x0001__x0001__x0004__x0001__x0001__x0001_I202'_x0001__x0001__x0001_=(RiskData(NR_to_Cash!E$18,$A202))/1000_x0001__x0001__x0001__x0001__x0001__x0001__x0001__x0001__x0001__x0001__x0001__x0001__x0004__x0001__x0001__x0001_B203)_x0001__x0001__x0001_=RiskData('Risk Summary'!J$48,$A203)/1000_x0001__x0001__x0001__x0001__x0001__x0001__x0001__x0001__x0001__x0001__x0001__x0001__x0004__x0001__x0001__x0001_C203)_x0001__x0001__x0001_=RiskData('Risk Summary'!K$48,$A203)/1000_x0001__x0001__x0001__x0001__x0001__x0001__x0001__x0001__x0001__x0001__x0001__x0001__x0004__x0001__x0001__x0001_D203)_x0001__x0001__x0001_=RiskData('Risk_x0001__x0002_ Summary'!L$48,$A203)/1000_x0001__x0001__x0001__x0001__x0001__x0001__x0001__x0001__x0001__x0001__x0001__x0001__x0004__x0001__x0001__x0001_G203'_x0001__x0001__x0001_=(RiskData(NR_to_Cash!C$18,$A203))/1000_x0001__x0001__x0001__x0001__x0001__x0001__x0001__x0001__x0001__x0001__x0001__x0001__x0004__x0001__x0001__x0001_H203'_x0001__x0001__x0001_=(RiskData(NR_to_Cash!D$18,$A203))/1000_x0001__x0001__x0001__x0001__x0001__x0001__x0001__x0001__x00"}},{"$cut":{"chars":91536,"head":"a3ebfb90fe13ffc80158a759b44b5c09_x0001__x0002_1000_x0001__x0001__x0001__x0001__x0001__x0001__x0001__x0001__x0001__x0001__x0001__x0001__x0004__x0001__x0001__x0001_I282'_x0001__x0001__x0001_=(RiskData(NR_to_Cash!E$18,$A282))/1000_x0001__x0001__x0001__x0001__x0001__x0001__x0001__x0001__x0001__x0001__x0001__x0001__x0004__x0001__x0001__x0001_B283)_x0001__x0001__x0001_=RiskData('Risk Summary'!J$48,$A283)/1000_x0001__x0001__x0001__x0001__x0001__x0001__x0001__x0001__x0001__x0001__x0001__x0001__x0004__x0001__x0001__x0001_C283)_x0001__x0001__x0001_=RiskData('Risk Summary'!K$48,$A283)/1000_x0001__x0001__x0001__x0001__x0001__x0001__x0001__x0001__x0001__x0001__x0001__x0001__x0004__x0001__x0001__x0001_D283)_x0001__x0001__x0001_=RiskData('Risk Summary'!L$48,$_x0001__x0002_A283)/1000_x0001__x0001__x0001__x0001__x0001__x0001__x0001__x0001__x0001__x0001__x0001__x0001__x0004__x0001__x0001__x0001_G283'_x0001__x0001__x0001_=(RiskData(NR_to_Cash!C$18,$A283))/1000_x0001__x0001__x0001__x0001__x0001__x0001__x0001__x0001__x0001__x0001__x0001__x0001__x0004__x0001__x0001__x0001_H283'_x0001__x0001__x0001_=(RiskData(NR_to_Cash!D$18,$A283))/1000_x0001__x0001__x0001__x0001__x0001__x0001__x0001__x0001__x0001__x0001__x0001__x0001__x0004__x0001__x0001__x0001_I283'_x0001__x0001__x0001_=(RiskData(NR_to_Cash!E$18,$A283))/1000_x0001__x0001__x0001__x0001__x0001__x0001__x0001__x0001__x0001__x0001__x0001__x0001__x0004__x0001__x0001__x0001_B284)_x0001__x0001__x0001_=RiskData('Risk Summary'!J$48_x0001__x0002_,$A284)/1000_x0001__x0001__x0001__x0001__x0001__x0001__x0001__x0001__x0001__x0001__x0001__x0001__x0004__x0001__x0001__x0001_C284)_x0001__x0001__x0001_=RiskData('Risk Summary'!K$48,$A284)/1000_x0001__x0001__x0001__x0001__x0001__x0001__x0001__x0001__x0001__x0001__x0001__x0001__x0004__x0001__x0001__x0001_D284)_x0001__x0001__x0001_=RiskData('Risk Summary'!L$48,$A284)/1000_x0001__x0001__x0001__x0001__x0001__x0001__x0001__x0001__x0001__x0001__x0001__x0001__x0004__x0001__x0001__x0001_G284'_x0001__x0001__x0001_=(RiskData(NR_to_Cash!C$18,$A284))/1000_x0001__x0001__x0001__x0001__x0001__x0001__x0001__x0001__x0001__x0001__x0001__x0001__x0004__x0001__x0001__x0001_H284'_x0001__x0001__x0001_=(RiskData(NR_to_Cash!D_x0001__x0002_$18,$A284))/1000_x0001__x0001__x0001__x0001__x0001__x0001__x0001__x0001__x0001__x0001__x0001__x0001__x0004__x0001__x0001__x0001_I284'_x0001__x0001__x0001_=(RiskData(NR_to_Cash!E$18,$A284))/1000_x0001__x0001__x0001__x0001__x0001__x0001__x0001__x0001__x0001__x0001__x0001__x0001__x0004__x0001__x0001__x0001_B285)_x0001__x0001__x0001_=RiskData('Risk Summary'!J$48,$A285)/1000_x0001__x0001__x0001__x0001__x0001__x0001__x0001__x0001__x0001__x0001__x0001__x0001__x0004__x0001__x0001__x0001_C285)_x0001__x0001__x0001_=RiskData('Risk Summary'!K$48,$A285)/1000_x0001__x0001__x0001__x0001__x0001__x0001__x0001__x0001__x0001__x0001__x0001__x0001__x0004__x0001__x0001__x0001_D285)_x0001__x0001__x0001_=RiskData('Risk Sum_x0001__x0002_mary'!L$48,$A285)/1000_x0001__x0001__x0001__x0001__x0001__x0001__x0001__x0001__x0001__x0001__x0001__x0001__x0004__x0001__x0001__x0001_G285'_x0001__x0001__x0001_=(RiskData(NR_to_Cash!C$18,$A285))/1000_x0001__x0001__x0001__x0001__x0001__x0001__x0001__x0001__x0001__x0001__x0001__x0001__x0004__x0001__x0001__x0001_H285'_x0001__x0001__x0001_=(RiskData(NR_to_Cash!D$18,$A285))/1000_x0001__x0001__x0001__x0001__x0001__x0001__x0001__x0001__x0001__x0001__x0001__x0001__x0004__x0001__x0001__x0001_I285'_x0001__x0001__x0001_=(RiskData(NR_to_Cash!E$18,$A285))/1000_x0001__x0001__x0001__x0001__x0001__x0001__x0001__x0001__x0001__x0001__x0001__x0001__x0004__x0001__x0001__x0001_B286)_x0001__x0001__x0001_=RiskData('Risk S_x0001__x0002_ummary'!J$48,$A286)/1000_x0001__x0001__x0001__x0001__x0001__x0001__x0001__x0001__x0001__x0001__x0001__x0001__x0004__x0001__x0001__x0001_C286)_x0001__x0001__x0001_=RiskData('Risk Summary'!K$48,$A286)/1000_x0001__x0001__x0001__x0001__x0001__x0001__x0001__x0001__x0001__x0001__x0001__x0001__x0004__x0001__x0001__x0001_D286)_x0001__x0001__x0001_=RiskData('Risk Summary'!L$48,$A286)/1000_x0001__x0001__x0001__x0001__x0001__x0001__x0001__x0001__x"}},{"$cut":{"chars":92310,"head":"3d35dc891bac68a21c25b9d41b23d642_x0001__x0002_1000_x0001__x0001__x0001__x0001__x0001__x0001__x0001__x0001__x0001__x0001__x0001__x0001__x0004__x0001__x0001__x0001_I366'_x0001__x0001__x0001_=(RiskData(NR_to_Cash!E$18,$A366))/1000_x0001__x0001__x0001__x0001__x0001__x0001__x0001__x0001__x0001__x0001__x0001__x0001__x0004__x0001__x0001__x0001_B367)_x0001__x0001__x0001_=RiskData('Risk Summary'!J$48,$A367)/1000_x0001__x0001__x0001__x0001__x0001__x0001__x0001__x0001__x0001__x0001__x0001__x0001__x0004__x0001__x0001__x0001_C367)_x0001__x0001__x0001_=RiskData('Risk Summary'!K$48,$A367)/1000_x0001__x0001__x0001__x0001__x0001__x0001__x0001__x0001__x0001__x0001__x0001__x0001__x0004__x0001__x0001__x0001_D367)_x0001__x0001__x0001_=RiskData('Risk Summary'!L$48,$_x0001__x0002_A367)/1000_x0001__x0001__x0001__x0001__x0001__x0001__x0001__x0001__x0001__x0001__x0001__x0001__x0004__x0001__x0001__x0001_G367'_x0001__x0001__x0001_=(RiskData(NR_to_Cash!C$18,$A367))/1000_x0001__x0001__x0001__x0001__x0001__x0001__x0001__x0001__x0001__x0001__x0001__x0001__x0004__x0001__x0001__x0001_H367'_x0001__x0001__x0001_=(RiskData(NR_to_Cash!D$18,$A367))/1000_x0001__x0001__x0001__x0001__x0001__x0001__x0001__x0001__x0001__x0001__x0001__x0001__x0004__x0001__x0001__x0001_I367'_x0001__x0001__x0001_=(RiskData(NR_to_Cash!E$18,$A367))/1000_x0001__x0001__x0001__x0001__x0001__x0001__x0001__x0001__x0001__x0001__x0001__x0001__x0004__x0001__x0001__x0001_B368)_x0001__x0001__x0001_=RiskData('Risk Summary'!J$48_x0001__x0002_,$A368)/1000_x0001__x0001__x0001__x0001__x0001__x0001__x0001__x0001__x0001__x0001__x0001__x0001__x0004__x0001__x0001__x0001_C368)_x0001__x0001__x0001_=RiskData('Risk Summary'!K$48,$A368)/1000_x0001__x0001__x0001__x0001__x0001__x0001__x0001__x0001__x0001__x0001__x0001__x0001__x0004__x0001__x0001__x0001_D368)_x0001__x0001__x0001_=RiskData('Risk Summary'!L$48,$A368)/1000_x0001__x0001__x0001__x0001__x0001__x0001__x0001__x0001__x0001__x0001__x0001__x0001__x0004__x0001__x0001__x0001_G368'_x0001__x0001__x0001_=(RiskData(NR_to_Cash!C$18,$A368))/1000_x0001__x0001__x0001__x0001__x0001__x0001__x0001__x0001__x0001__x0001__x0001__x0001__x0004__x0001__x0001__x0001_H368'_x0001__x0001__x0001_=(RiskData(NR_to_Cash!D_x0001__x0002_$18,$A368))/1000_x0001__x0001__x0001__x0001__x0001__x0001__x0001__x0001__x0001__x0001__x0001__x0001__x0004__x0001__x0001__x0001_I368'_x0001__x0001__x0001_=(RiskData(NR_to_Cash!E$18,$A368))/1000_x0001__x0001__x0001__x0001__x0001__x0001__x0001__x0001__x0001__x0001__x0001__x0001__x0004__x0001__x0001__x0001_B369)_x0001__x0001__x0001_=RiskData('Risk Summary'!J$48,$A369)/1000_x0001__x0001__x0001__x0001__x0001__x0001__x0001__x0001__x0001__x0001__x0001__x0001__x0004__x0001__x0001__x0001_C369)_x0001__x0001__x0001_=RiskData('Risk Summary'!K$48,$A369)/1000_x0001__x0001__x0001__x0001__x0001__x0001__x0001__x0001__x0001__x0001__x0001__x0001__x0004__x0001__x0001__x0001_D369)_x0001__x0001__x0001_=RiskData('Risk Sum_x0001__x0002_mary'!L$48,$A369)/1000_x0001__x0001__x0001__x0001__x0001__x0001__x0001__x0001__x0001__x0001__x0001__x0001__x0004__x0001__x0001__x0001_G369'_x0001__x0001__x0001_=(RiskData(NR_to_Cash!C$18,$A369))/1000_x0001__x0001__x0001__x0001__x0001__x0001__x0001__x0001__x0001__x0001__x0001__x0001__x0004__x0001__x0001__x0001_H369'_x0001__x0001__x0001_=(RiskData(NR_to_Cash!D$18,$A369))/1000_x0001__x0001__x0001__x0001__x0001__x0001__x0001__x0001__x0001__x0001__x0001__x0001__x0004__x0001__x0001__x0001_I369'_x0001__x0001__x0001_=(RiskData(NR_to_Cash!E$18,$A369))/1000_x0001__x0001__x0001__x0001__x0001__x0001__x0001__x0001__x0001__x0001__x0001__x0001__x0004__x0001__x0001__x0001_B370)_x0001__x0001__x0001_=RiskData('Risk S_x0001__x0002_ummary'!J$48,$A370)/1000_x0001__x0001__x0001__x0001__x0001__x0001__x0001__x0001__x0001__x0001__x0001__x0001__x0004__x0001__x0001__x0001_C370)_x0001__x0001__x0001_=RiskData('Risk Summary'!K$48,$A370)/1000_x0001__x0001__x0001__x0001__x0001__x0001__x0001__x0001__x0001__x0001__x0001__x0001__x0004__x0001__x0001__x0001_D370)_x0001__x0001__x0001_=RiskData('Risk Summary'!L$48,$A370)/1000_x0001__x0001__x0001__x0001__x0001__x0001__x0001__x0001__x"}},{"$cut":{"chars":91536,"head":"6fef4836961170e2e48b08766de4ac8a_x0001__x0002_)/1000_x0001__x0001__x0001__x0001__x0001__x0001__x0001__x0001__x0001__x0001__x0001__x0001__x0004__x0001__x0001__x0001_G449'_x0001__x0001__x0001_=(RiskData(NR_to_Cash!C$18,$A449))/1000_x0001__x0001__x0001__x0001__x0001__x0001__x0001__x0001__x0001__x0001__x0001__x0001__x0004__x0001__x0001__x0001_H449'_x0001__x0001__x0001_=(RiskData(NR_to_Cash!D$18,$A449))/1000_x0001__x0001__x0001__x0001__x0001__x0001__x0001__x0001__x0001__x0001__x0001__x0001__x0004__x0001__x0001__x0001_I449'_x0001__x0001__x0001_=(RiskData(NR_to_Cash!E$18,$A449))/1000_x0001__x0001__x0001__x0001__x0001__x0001__x0001__x0001__x0001__x0001__x0001__x0001__x0004__x0001__x0001__x0001_B450)_x0001__x0001__x0001_=RiskData('Risk Summary'!J$48,$A4_x0001__x0002_50)/1000_x0001__x0001__x0001__x0001__x0001__x0001__x0001__x0001__x0001__x0001__x0001__x0001__x0004__x0001__x0001__x0001_C450)_x0001__x0001__x0001_=RiskData('Risk Summary'!K$48,$A450)/1000_x0001__x0001__x0001__x0001__x0001__x0001__x0001__x0001__x0001__x0001__x0001__x0001__x0004__x0001__x0001__x0001_D450)_x0001__x0001__x0001_=RiskData('Risk Summary'!L$48,$A450)/1000_x0001__x0001__x0001__x0001__x0001__x0001__x0001__x0001__x0001__x0001__x0001__x0001__x0004__x0001__x0001__x0001_G450'_x0001__x0001__x0001_=(RiskData(NR_to_Cash!C$18,$A450))/1000_x0001__x0001__x0001__x0001__x0001__x0001__x0001__x0001__x0001__x0001__x0001__x0001__x0004__x0001__x0001__x0001_H450'_x0001__x0001__x0001_=(RiskData(NR_to_Cash!D$18,_x0001__x0002_$A450))/1000_x0001__x0001__x0001__x0001__x0001__x0001__x0001__x0001__x0001__x0001__x0001__x0001__x0004__x0001__x0001__x0001_I450'_x0001__x0001__x0001_=(RiskData(NR_to_Cash!E$18,$A450))/1000_x0001__x0001__x0001__x0001__x0001__x0001__x0001__x0001__x0001__x0001__x0001__x0001__x0004__x0001__x0001__x0001_B451)_x0001__x0001__x0001_=RiskData('Risk Summary'!J$48,$A451)/1000_x0001__x0001__x0001__x0001__x0001__x0001__x0001__x0001__x0001__x0001__x0001__x0001__x0004__x0001__x0001__x0001_C451)_x0001__x0001__x0001_=RiskData('Risk Summary'!K$48,$A451)/1000_x0001__x0001__x0001__x0001__x0001__x0001__x0001__x0001__x0001__x0001__x0001__x0001__x0004__x0001__x0001__x0001_D451)_x0001__x0001__x0001_=RiskData('Risk Summary_x0001__x0002_'!L$48,$A451)/1000_x0001__x0001__x0001__x0001__x0001__x0001__x0001__x0001__x0001__x0001__x0001__x0001__x0004__x0001__x0001__x0001_G451'_x0001__x0001__x0001_=(RiskData(NR_to_Cash!C$18,$A451))/1000_x0001__x0001__x0001__x0001__x0001__x0001__x0001__x0001__x0001__x0001__x0001__x0001__x0004__x0001__x0001__x0001_H451'_x0001__x0001__x0001_=(RiskData(NR_to_Cash!D$18,$A451))/1000_x0001__x0001__x0001__x0001__x0001__x0001__x0001__x0001__x0001__x0001__x0001__x0001__x0004__x0001__x0001__x0001_I451'_x0001__x0001__x0001_=(RiskData(NR_to_Cash!E$18,$A451))/1000_x0001__x0001__x0001__x0001__x0001__x0001__x0001__x0001__x0001__x0001__x0001__x0001__x0004__x0001__x0001__x0001_B452)_x0001__x0001__x0001_=RiskData('Risk Summa_x0001__x0002_ry'!J$48,$A452)/1000_x0001__x0001__x0001__x0001__x0001__x0001__x0001__x0001__x0001__x0001__x0001__x0001__x0004__x0001__x0001__x0001_C452)_x0001__x0001__x0001_=RiskData('Risk Summary'!K$48,$A452)/1000_x0001__x0001__x0001__x0001__x0001__x0001__x0001__x0001__x0001__x0001__x0001__x0001__x0004__x0001__x0001__x0001_D452)_x0001__x0001__x0001_=RiskData('Risk Summary'!L$48,$A452)/1000_x0001__x0001__x0001__x0001__x0001__x0001__x0001__x0001__x0001__x0001__x0001__x0001__x0004__x0001__x0001__x0001_G452'_x0001__x0001__x0001_=(RiskData(NR_to_Cash!C$18,$A452))/1000_x0001__x0001__x0001__x0001__x0001__x0001__x0001__x0001__x0001__x0001__x0001__x0001__x0004__x0001__x0001__x0001_H452'_x0001__x0001__x0001_=(RiskData(NR_t_x0001__x0002_o_Cash!D$18,$A452))/1000_x0001__x0001__x0001__x0001__x0001__x0001__x0001__x0001__x0001__x0001__x0001__x0001__x0004__x0001__x0001__x0001_I452'_x0001__x0001__x0001_=(RiskData(NR_to_Cash!E$18,$A452))/1000_x0001__x0001__x0001__x0001__x0001__x0001__x0001__x0001__x0001__x0001__x0001__x0001__x0004__x0001__x0001__x0001_B453)_x0001__x0001__x0001_=RiskData('Risk Summary'!J$48,$A453)/1000_x0001__x0001__x0001__x0001__x0001__x0001__x0001__x0001__x00"}},{"$cut":{"chars":92154,"head":"c7a17e655b43fbc48ec53dc3b858e26b_x0001__x0002_)/1000_x0001__x0001__x0001__x0001__x0001__x0001__x0001__x0001__x0001__x0001__x0001__x0001__x0004__x0001__x0001__x0001_G533'_x0001__x0001__x0001_=(RiskData(NR_to_Cash!C$18,$A533))/1000_x0001__x0001__x0001__x0001__x0001__x0001__x0001__x0001__x0001__x0001__x0001__x0001__x0004__x0001__x0001__x0001_H533'_x0001__x0001__x0001_=(RiskData(NR_to_Cash!D$18,$A533))/1000_x0001__x0001__x0001__x0001__x0001__x0001__x0001__x0001__x0001__x0001__x0001__x0001__x0004__x0001__x0001__x0001_I533'_x0001__x0001__x0001_=(RiskData(NR_to_Cash!E$18,$A533))/1000_x0001__x0001__x0001__x0001__x0001__x0001__x0001__x0001__x0001__x0001__x0001__x0001__x0004__x0001__x0001__x0001_B534)_x0001__x0001__x0001_=RiskData('Risk Summary'!J$48,$A5_x0001__x0002_34)/1000_x0001__x0001__x0001__x0001__x0001__x0001__x0001__x0001__x0001__x0001__x0001__x0001__x0004__x0001__x0001__x0001_C534)_x0001__x0001__x0001_=RiskData('Risk Summary'!K$48,$A534)/1000_x0001__x0001__x0001__x0001__x0001__x0001__x0001__x0001__x0001__x0001__x0001__x0001__x0004__x0001__x0001__x0001_D534)_x0001__x0001__x0001_=RiskData('Risk Summary'!L$48,$A534)/1000_x0001__x0001__x0001__x0001__x0001__x0001__x0001__x0001__x0001__x0001__x0001__x0001__x0004__x0001__x0001__x0001_G534'_x0001__x0001__x0001_=(RiskData(NR_to_Cash!C$18,$A534))/1000_x0001__x0001__x0001__x0001__x0001__x0001__x0001__x0001__x0001__x0001__x0001__x0001__x0004__x0001__x0001__x0001_H534'_x0001__x0001__x0001_=(RiskData(NR_to_Cash!D$18,_x0001__x0002_$A534))/1000_x0001__x0001__x0001__x0001__x0001__x0001__x0001__x0001__x0001__x0001__x0001__x0001__x0004__x0001__x0001__x0001_I534'_x0001__x0001__x0001_=(RiskData(NR_to_Cash!E$18,$A534))/1000_x0001__x0001__x0001__x0001__x0001__x0001__x0001__x0001__x0001__x0001__x0001__x0001__x0004__x0001__x0001__x0001_B535)_x0001__x0001__x0001_=RiskData('Risk Summary'!J$48,$A535)/1000_x0001__x0001__x0001__x0001__x0001__x0001__x0001__x0001__x0001__x0001__x0001__x0001__x0004__x0001__x0001__x0001_C535)_x0001__x0001__x0001_=RiskData('Risk Summary'!K$48,$A535)/1000_x0001__x0001__x0001__x0001__x0001__x0001__x0001__x0001__x0001__x0001__x0001__x0001__x0004__x0001__x0001__x0001_D535)_x0001__x0001__x0001_=RiskData('Risk Summary_x0001__x0002_'!L$48,$A535)/1000_x0001__x0001__x0001__x0001__x0001__x0001__x0001__x0001__x0001__x0001__x0001__x0001__x0004__x0001__x0001__x0001_G535'_x0001__x0001__x0001_=(RiskData(NR_to_Cash!C$18,$A535))/1000_x0001__x0001__x0001__x0001__x0001__x0001__x0001__x0001__x0001__x0001__x0001__x0001__x0004__x0001__x0001__x0001_H535'_x0001__x0001__x0001_=(RiskData(NR_to_Cash!D$18,$A535))/1000_x0001__x0001__x0001__x0001__x0001__x0001__x0001__x0001__x0001__x0001__x0001__x0001__x0004__x0001__x0001__x0001_I535'_x0001__x0001__x0001_=(RiskData(NR_to_Cash!E$18,$A535))/1000_x0001__x0001__x0001__x0001__x0001__x0001__x0001__x0001__x0001__x0001__x0001__x0001__x0004__x0001__x0001__x0001_B536)_x0001__x0001__x0001_=RiskData('Risk Summa_x0001__x0002_ry'!J$48,$A536)/1000_x0001__x0001__x0001__x0001__x0001__x0001__x0001__x0001__x0001__x0001__x0001__x0001__x0004__x0001__x0001__x0001_C536)_x0001__x0001__x0001_=RiskData('Risk Summary'!K$48,$A536)/1000_x0001__x0001__x0001__x0001__x0001__x0001__x0001__x0001__x0001__x0001__x0001__x0001__x0004__x0001__x0001__x0001_D536)_x0001__x0001__x0001_=RiskData('Risk Summary'!L$48,$A536)/1000_x0001__x0001__x0001__x0001__x0001__x0001__x0001__x0001__x0001__x0001__x0001__x0001__x0004__x0001__x0001__x0001_G536'_x0001__x0001__x0001_=(RiskData(NR_to_Cash!C$18,$A536))/1000_x0001__x0001__x0001__x0001__x0001__x0001__x0001__x0001__x0001__x0001__x0001__x0001__x0004__x0001__x0001__x0001_H536'_x0001__x0001__x0001_=(RiskData(NR_t_x0001__x0002_o_Cash!D$18,$A536))/1000_x0001__x0001__x0001__x0001__x0001__x0001__x0001__x0001__x0001__x0001__x0001__x0001__x0004__x0001__x0001__x0001_I536'_x0001__x0001__x0001_=(RiskData(NR_to_Cash!E$18,$A536))/1000_x0001__x0001__x0001__x0001__x0001__x0001__x0001__x0001__x0001__x0001__x0001__x0001__x0004__x0001__x0001__x0001_B537)_x0001__x0001__x0001_=RiskData('Risk Summary'!J$48,$A537)/1000_x0001__x0001__x0001__x0001__x0001__x0001__x0001__x0001__x00"}},{"$cut":{"chars":91536,"head":"2861e328318cd2b1059dc93c6de7105c_x0001__x0002_1000_x0001__x0001__x0001__x0001__x0001__x0001__x0001__x0001__x0001__x0001__x0001__x0001__x0004__x0001__x0001__x0001_C616)_x0001__x0001__x0001_=RiskData('Risk Summary'!K$48,$A616)/1000_x0001__x0001__x0001__x0001__x0001__x0001__x0001__x0001__x0001__x0001__x0001__x0001__x0004__x0001__x0001__x0001_D616)_x0001__x0001__x0001_=RiskData('Risk Summary'!L$48,$A616)/1000_x0001__x0001__x0001__x0001__x0001__x0001__x0001__x0001__x0001__x0001__x0001__x0001__x0004__x0001__x0001__x0001_G616'_x0001__x0001__x0001_=(RiskData(NR_to_Cash!C$18,$A616))/1000_x0001__x0001__x0001__x0001__x0001__x0001__x0001__x0001__x0001__x0001__x0001__x0001__x0004__x0001__x0001__x0001_H616'_x0001__x0001__x0001_=(RiskData(NR_to_Cash!D$18,$A61_x0001__x0002_6))/1000_x0001__x0001__x0001__x0001__x0001__x0001__x0001__x0001__x0001__x0001__x0001__x0001__x0004__x0001__x0001__x0001_I616'_x0001__x0001__x0001_=(RiskData(NR_to_Cash!E$18,$A616))/1000_x0001__x0001__x0001__x0001__x0001__x0001__x0001__x0001__x0001__x0001__x0001__x0001__x0004__x0001__x0001__x0001_B617)_x0001__x0001__x0001_=RiskData('Risk Summary'!J$48,$A617)/1000_x0001__x0001__x0001__x0001__x0001__x0001__x0001__x0001__x0001__x0001__x0001__x0001__x0004__x0001__x0001__x0001_C617)_x0001__x0001__x0001_=RiskData('Risk Summary'!K$48,$A617)/1000_x0001__x0001__x0001__x0001__x0001__x0001__x0001__x0001__x0001__x0001__x0001__x0001__x0004__x0001__x0001__x0001_D617)_x0001__x0001__x0001_=RiskData('Risk Summary'!L$_x0001__x0002_48,$A617)/1000_x0001__x0001__x0001__x0001__x0001__x0001__x0001__x0001__x0001__x0001__x0001__x0001__x0004__x0001__x0001__x0001_G617'_x0001__x0001__x0001_=(RiskData(NR_to_Cash!C$18,$A617))/1000_x0001__x0001__x0001__x0001__x0001__x0001__x0001__x0001__x0001__x0001__x0001__x0001__x0004__x0001__x0001__x0001_H617'_x0001__x0001__x0001_=(RiskData(NR_to_Cash!D$18,$A617))/1000_x0001__x0001__x0001__x0001__x0001__x0001__x0001__x0001__x0001__x0001__x0001__x0001__x0004__x0001__x0001__x0001_I617'_x0001__x0001__x0001_=(RiskData(NR_to_Cash!E$18,$A617))/1000_x0001__x0001__x0001__x0001__x0001__x0001__x0001__x0001__x0001__x0001__x0001__x0001__x0004__x0001__x0001__x0001_B618)_x0001__x0001__x0001_=RiskData('Risk Summary'!_x0001__x0002_J$48,$A618)/1000_x0001__x0001__x0001__x0001__x0001__x0001__x0001__x0001__x0001__x0001__x0001__x0001__x0004__x0001__x0001__x0001_C618)_x0001__x0001__x0001_=RiskData('Risk Summary'!K$48,$A618)/1000_x0001__x0001__x0001__x0001__x0001__x0001__x0001__x0001__x0001__x0001__x0001__x0001__x0004__x0001__x0001__x0001_D618)_x0001__x0001__x0001_=RiskData('Risk Summary'!L$48,$A618)/1000_x0001__x0001__x0001__x0001__x0001__x0001__x0001__x0001__x0001__x0001__x0001__x0001__x0004__x0001__x0001__x0001_G618'_x0001__x0001__x0001_=(RiskData(NR_to_Cash!C$18,$A618))/1000_x0001__x0001__x0001__x0001__x0001__x0001__x0001__x0001__x0001__x0001__x0001__x0001__x0004__x0001__x0001__x0001_H618'_x0001__x0001__x0001_=(RiskData(NR_to_Ca_x0001__x0002_sh!D$18,$A618))/1000_x0001__x0001__x0001__x0001__x0001__x0001__x0001__x0001__x0001__x0001__x0001__x0001__x0004__x0001__x0001__x0001_I618'_x0001__x0001__x0001_=(RiskData(NR_to_Cash!E$18,$A618))/1000_x0001__x0001__x0001__x0001__x0001__x0001__x0001__x0001__x0001__x0001__x0001__x0001__x0004__x0001__x0001__x0001_B619)_x0001__x0001__x0001_=RiskData('Risk Summary'!J$48,$A619)/1000_x0001__x0001__x0001__x0001__x0001__x0001__x0001__x0001__x0001__x0001__x0001__x0001__x0004__x0001__x0001__x0001_C619)_x0001__x0001__x0001_=RiskData('Risk Summary'!K$48,$A619)/1000_x0001__x0001__x0001__x0001__x0001__x0001__x0001__x0001__x0001__x0001__x0001__x0001__x0004__x0001__x0001__x0001_D619)_x0001__x0001__x0001_=RiskData('Risk_x0001__x0002_ Summary'!L$48,$A619)/1000_x0001__x0001__x0001__x0001__x0001__x0001__x0001__x0001__x0001__x0001__x0001__x0001__x0004__x0001__x0001__x0001_G619'_x0001__x0001__x0001_=(RiskData(NR_to_Cash!C$18,$A619))/1000_x0001__x0001__x0001__x0001__x0001__x0001__x0001__x0001__x0001__x0001__x0001__x0001__x0004__x0001__x0001__x0001_H619'_x0001__x0001__x0001_=(RiskData(NR_to_Cash!D$18,$A619))/1000_x0001__x0001__x0001__x0001__x0001__x0001__x0001__x0001__x00"}},{"$cut":{"chars":92310,"head":"2e8ac0ffe9cc641683d67cb51d7ced40_x0001__x0002_1000_x0001__x0001__x0001__x0001__x0001__x0001__x0001__x0001__x0001__x0001__x0001__x0001__x0004__x0001__x0001__x0001_C700)_x0001__x0001__x0001_=RiskData('Risk Summary'!K$48,$A700)/1000_x0001__x0001__x0001__x0001__x0001__x0001__x0001__x0001__x0001__x0001__x0001__x0001__x0004__x0001__x0001__x0001_D700)_x0001__x0001__x0001_=RiskData('Risk Summary'!L$48,$A700)/1000_x0001__x0001__x0001__x0001__x0001__x0001__x0001__x0001__x0001__x0001__x0001__x0001__x0004__x0001__x0001__x0001_G700'_x0001__x0001__x0001_=(RiskData(NR_to_Cash!C$18,$A700))/1000_x0001__x0001__x0001__x0001__x0001__x0001__x0001__x0001__x0001__x0001__x0001__x0001__x0004__x0001__x0001__x0001_H700'_x0001__x0001__x0001_=(RiskData(NR_to_Cash!D$18,$A70_x0001__x0002_0))/1000_x0001__x0001__x0001__x0001__x0001__x0001__x0001__x0001__x0001__x0001__x0001__x0001__x0004__x0001__x0001__x0001_I700'_x0001__x0001__x0001_=(RiskData(NR_to_Cash!E$18,$A700))/1000_x0001__x0001__x0001__x0001__x0001__x0001__x0001__x0001__x0001__x0001__x0001__x0001__x0004__x0001__x0001__x0001_B701)_x0001__x0001__x0001_=RiskData('Risk Summary'!J$48,$A701)/1000_x0001__x0001__x0001__x0001__x0001__x0001__x0001__x0001__x0001__x0001__x0001__x0001__x0004__x0001__x0001__x0001_C701)_x0001__x0001__x0001_=RiskData('Risk Summary'!K$48,$A701)/1000_x0001__x0001__x0001__x0001__x0001__x0001__x0001__x0001__x0001__x0001__x0001__x0001__x0004__x0001__x0001__x0001_D701)_x0001__x0001__x0001_=RiskData('Risk Summary'!L$_x0001__x0002_48,$A701)/1000_x0001__x0001__x0001__x0001__x0001__x0001__x0001__x0001__x0001__x0001__x0001__x0001__x0004__x0001__x0001__x0001_G701'_x0001__x0001__x0001_=(RiskData(NR_to_Cash!C$18,$A701))/1000_x0001__x0001__x0001__x0001__x0001__x0001__x0001__x0001__x0001__x0001__x0001__x0001__x0004__x0001__x0001__x0001_H701'_x0001__x0001__x0001_=(RiskData(NR_to_Cash!D$18,$A701))/1000_x0001__x0001__x0001__x0001__x0001__x0001__x0001__x0001__x0001__x0001__x0001__x0001__x0004__x0001__x0001__x0001_I701'_x0001__x0001__x0001_=(RiskData(NR_to_Cash!E$18,$A701))/1000_x0001__x0001__x0001__x0001__x0001__x0001__x0001__x0001__x0001__x0001__x0001__x0001__x0004__x0001__x0001__x0001_B702)_x0001__x0001__x0001_=RiskData('Risk Summary'!_x0001__x0002_J$48,$A702)/1000_x0001__x0001__x0001__x0001__x0001__x0001__x0001__x0001__x0001__x0001__x0001__x0001__x0004__x0001__x0001__x0001_C702)_x0001__x0001__x0001_=RiskData('Risk Summary'!K$48,$A702)/1000_x0001__x0001__x0001__x0001__x0001__x0001__x0001__x0001__x0001__x0001__x0001__x0001__x0004__x0001__x0001__x0001_D702)_x0001__x0001__x0001_=RiskData('Risk Summary'!L$48,$A702)/1000_x0001__x0001__x0001__x0001__x0001__x0001__x0001__x0001__x0001__x0001__x0001__x0001__x0004__x0001__x0001__x0001_G702'_x0001__x0001__x0001_=(RiskData(NR_to_Cash!C$18,$A702))/1000_x0001__x0001__x0001__x0001__x0001__x0001__x0001__x0001__x0001__x0001__x0001__x0001__x0004__x0001__x0001__x0001_H702'_x0001__x0001__x0001_=(RiskData(NR_to_Ca_x0001__x0002_sh!D$18,$A702))/1000_x0001__x0001__x0001__x0001__x0001__x0001__x0001__x0001__x0001__x0001__x0001__x0001__x0004__x0001__x0001__x0001_I702'_x0001__x0001__x0001_=(RiskData(NR_to_Cash!E$18,$A702))/1000_x0001__x0001__x0001__x0001__x0001__x0001__x0001__x0001__x0001__x0001__x0001__x0001__x0004__x0001__x0001__x0001_B703)_x0001__x0001__x0001_=RiskData('Risk Summary'!J$48,$A703)/1000_x0001__x0001__x0001__x0001__x0001__x0001__x0001__x0001__x0001__x0001__x0001__x0001__x0004__x0001__x0001__x0001_C703)_x0001__x0001__x0001_=RiskData('Risk Summary'!K$48,$A703)/1000_x0001__x0001__x0001__x0001__x0001__x0001__x0001__x0001__x0001__x0001__x0001__x0001__x0004__x0001__x0001__x0001_D703)_x0001__x0001__x0001_=RiskData('Risk_x0001__x0002_ Summary'!L$48,$A703)/1000_x0001__x0001__x0001__x0001__x0001__x0001__x0001__x0001__x0001__x0001__x0001__x0001__x0004__x0001__x0001__x0001_G703'_x0001__x0001__x0001_=(RiskData(NR_to_Cash!C$18,$A703))/1000_x0001__x0001__x0001__x0001__x0001__x0001__x0001__x0001__x0001__x0001__x0001__x0001__x0004__x0001__x0001__x0001_H703'_x0001__x0001__x0001_=(RiskData(NR_to_Cash!D$18,$A703))/1000_x0001__x0001__x0001__x0001__x0001__x0001__x0001__x0001__x00"}},{"$cut":{"chars":91536,"head":"d653cfda48314718d0e2083515d7ab04_x0001__x0002_1000_x0001__x0001__x0001__x0001__x0001__x0001__x0001__x0001__x0001__x0001__x0001__x0001__x0004__x0001__x0001__x0001_I782'_x0001__x0001__x0001_=(RiskData(NR_to_Cash!E$18,$A782))/1000_x0001__x0001__x0001__x0001__x0001__x0001__x0001__x0001__x0001__x0001__x0001__x0001__x0004__x0001__x0001__x0001_B783)_x0001__x0001__x0001_=RiskData('Risk Summary'!J$48,$A783)/1000_x0001__x0001__x0001__x0001__x0001__x0001__x0001__x0001__x0001__x0001__x0001__x0001__x0004__x0001__x0001__x0001_C783)_x0001__x0001__x0001_=RiskData('Risk Summary'!K$48,$A783)/1000_x0001__x0001__x0001__x0001__x0001__x0001__x0001__x0001__x0001__x0001__x0001__x0001__x0004__x0001__x0001__x0001_D783)_x0001__x0001__x0001_=RiskData('Risk Summary'!L$48,$_x0001__x0002_A783)/1000_x0001__x0001__x0001__x0001__x0001__x0001__x0001__x0001__x0001__x0001__x0001__x0001__x0004__x0001__x0001__x0001_G783'_x0001__x0001__x0001_=(RiskData(NR_to_Cash!C$18,$A783))/1000_x0001__x0001__x0001__x0001__x0001__x0001__x0001__x0001__x0001__x0001__x0001__x0001__x0004__x0001__x0001__x0001_H783'_x0001__x0001__x0001_=(RiskData(NR_to_Cash!D$18,$A783))/1000_x0001__x0001__x0001__x0001__x0001__x0001__x0001__x0001__x0001__x0001__x0001__x0001__x0004__x0001__x0001__x0001_I783'_x0001__x0001__x0001_=(RiskData(NR_to_Cash!E$18,$A783))/1000_x0001__x0001__x0001__x0001__x0001__x0001__x0001__x0001__x0001__x0001__x0001__x0001__x0004__x0001__x0001__x0001_B784)_x0001__x0001__x0001_=RiskData('Risk Summary'!J$48_x0001__x0002_,$A784)/1000_x0001__x0001__x0001__x0001__x0001__x0001__x0001__x0001__x0001__x0001__x0001__x0001__x0004__x0001__x0001__x0001_C784)_x0001__x0001__x0001_=RiskData('Risk Summary'!K$48,$A784)/1000_x0001__x0001__x0001__x0001__x0001__x0001__x0001__x0001__x0001__x0001__x0001__x0001__x0004__x0001__x0001__x0001_D784)_x0001__x0001__x0001_=RiskData('Risk Summary'!L$48,$A784)/1000_x0001__x0001__x0001__x0001__x0001__x0001__x0001__x0001__x0001__x0001__x0001__x0001__x0004__x0001__x0001__x0001_G784'_x0001__x0001__x0001_=(RiskData(NR_to_Cash!C$18,$A784))/1000_x0001__x0001__x0001__x0001__x0001__x0001__x0001__x0001__x0001__x0001__x0001__x0001__x0004__x0001__x0001__x0001_H784'_x0001__x0001__x0001_=(RiskData(NR_to_Cash!D_x0001__x0002_$18,$A784))/1000_x0001__x0001__x0001__x0001__x0001__x0001__x0001__x0001__x0001__x0001__x0001__x0001__x0004__x0001__x0001__x0001_I784'_x0001__x0001__x0001_=(RiskData(NR_to_Cash!E$18,$A784))/1000_x0001__x0001__x0001__x0001__x0001__x0001__x0001__x0001__x0001__x0001__x0001__x0001__x0004__x0001__x0001__x0001_B785)_x0001__x0001__x0001_=RiskData('Risk Summary'!J$48,$A785)/1000_x0001__x0001__x0001__x0001__x0001__x0001__x0001__x0001__x0001__x0001__x0001__x0001__x0004__x0001__x0001__x0001_C785)_x0001__x0001__x0001_=RiskData('Risk Summary'!K$48,$A785)/1000_x0001__x0001__x0001__x0001__x0001__x0001__x0001__x0001__x0001__x0001__x0001__x0001__x0004__x0001__x0001__x0001_D785)_x0001__x0001__x0001_=RiskData('Risk Sum_x0001__x0002_mary'!L$48,$A785)/1000_x0001__x0001__x0001__x0001__x0001__x0001__x0001__x0001__x0001__x0001__x0001__x0001__x0004__x0001__x0001__x0001_G785'_x0001__x0001__x0001_=(RiskData(NR_to_Cash!C$18,$A785))/1000_x0001__x0001__x0001__x0001__x0001__x0001__x0001__x0001__x0001__x0001__x0001__x0001__x0004__x0001__x0001__x0001_H785'_x0001__x0001__x0001_=(RiskData(NR_to_Cash!D$18,$A785))/1000_x0001__x0001__x0001__x0001__x0001__x0001__x0001__x0001__x0001__x0001__x0001__x0001__x0004__x0001__x0001__x0001_I785'_x0001__x0001__x0001_=(RiskData(NR_to_Cash!E$18,$A785))/1000_x0001__x0001__x0001__x0001__x0001__x0001__x0001__x0001__x0001__x0001__x0001__x0001__x0004__x0001__x0001__x0001_B786)_x0001__x0001__x0001_=RiskData('Risk S_x0001__x0002_ummary'!J$48,$A786)/1000_x0001__x0001__x0001__x0001__x0001__x0001__x0001__x0001__x0001__x0001__x0001__x0001__x0004__x0001__x0001__x0001_C786)_x0001__x0001__x0001_=RiskData('Risk Summary'!K$48,$A786)/1000_x0001__x0001__x0001__x0001__x0001__x0001__x0001__x0001__x0001__x0001__x0001__x0001__x0004__x0001__x0001__x0001_D786)_x0001__x0001__x0001_=RiskData('Risk Summary'!L$48,$A786)/1000_x0001__x0001__x0001__x0001__x0001__x0001__x0001__x0001__x"}},{"$cut":{"chars":92154,"head":"8cd9cbceb82d6ee422a2367ed9be3d37_x0001__x0002_1000_x0001__x0001__x0001__x0001__x0001__x0001__x0001__x0001__x0001__x0001__x0001__x0001__x0004__x0001__x0001__x0001_I866'_x0001__x0001__x0001_=(RiskData(NR_to_Cash!E$18,$A866))/1000_x0001__x0001__x0001__x0001__x0001__x0001__x0001__x0001__x0001__x0001__x0001__x0001__x0004__x0001__x0001__x0001_B867)_x0001__x0001__x0001_=RiskData('Risk Summary'!J$48,$A867)/1000_x0001__x0001__x0001__x0001__x0001__x0001__x0001__x0001__x0001__x0001__x0001__x0001__x0004__x0001__x0001__x0001_C867)_x0001__x0001__x0001_=RiskData('Risk Summary'!K$48,$A867)/1000_x0001__x0001__x0001__x0001__x0001__x0001__x0001__x0001__x0001__x0001__x0001__x0001__x0004__x0001__x0001__x0001_D867)_x0001__x0001__x0001_=RiskData('Risk Summary'!L$48,$_x0001__x0002_A867)/1000_x0001__x0001__x0001__x0001__x0001__x0001__x0001__x0001__x0001__x0001__x0001__x0001__x0004__x0001__x0001__x0001_G867'_x0001__x0001__x0001_=(RiskData(NR_to_Cash!C$18,$A867))/1000_x0001__x0001__x0001__x0001__x0001__x0001__x0001__x0001__x0001__x0001__x0001__x0001__x0004__x0001__x0001__x0001_H867'_x0001__x0001__x0001_=(RiskData(NR_to_Cash!D$18,$A867))/1000_x0001__x0001__x0001__x0001__x0001__x0001__x0001__x0001__x0001__x0001__x0001__x0001__x0004__x0001__x0001__x0001_I867'_x0001__x0001__x0001_=(RiskData(NR_to_Cash!E$18,$A867))/1000_x0001__x0001__x0001__x0001__x0001__x0001__x0001__x0001__x0001__x0001__x0001__x0001__x0004__x0001__x0001__x0001_B868)_x0001__x0001__x0001_=RiskData('Risk Summary'!J$48_x0001__x0002_,$A868)/1000_x0001__x0001__x0001__x0001__x0001__x0001__x0001__x0001__x0001__x0001__x0001__x0001__x0004__x0001__x0001__x0001_C868)_x0001__x0001__x0001_=RiskData('Risk Summary'!K$48,$A868)/1000_x0001__x0001__x0001__x0001__x0001__x0001__x0001__x0001__x0001__x0001__x0001__x0001__x0004__x0001__x0001__x0001_D868)_x0001__x0001__x0001_=RiskData('Risk Summary'!L$48,$A868)/1000_x0001__x0001__x0001__x0001__x0001__x0001__x0001__x0001__x0001__x0001__x0001__x0001__x0004__x0001__x0001__x0001_G868'_x0001__x0001__x0001_=(RiskData(NR_to_Cash!C$18,$A868))/1000_x0001__x0001__x0001__x0001__x0001__x0001__x0001__x0001__x0001__x0001__x0001__x0001__x0004__x0001__x0001__x0001_H868'_x0001__x0001__x0001_=(RiskData(NR_to_Cash!D_x0001__x0002_$18,$A868))/1000_x0001__x0001__x0001__x0001__x0001__x0001__x0001__x0001__x0001__x0001__x0001__x0001__x0004__x0001__x0001__x0001_I868'_x0001__x0001__x0001_=(RiskData(NR_to_Cash!E$18,$A868))/1000_x0001__x0001__x0001__x0001__x0001__x0001__x0001__x0001__x0001__x0001__x0001__x0001__x0004__x0001__x0001__x0001_B869)_x0001__x0001__x0001_=RiskData('Risk Summary'!J$48,$A869)/1000_x0001__x0001__x0001__x0001__x0001__x0001__x0001__x0001__x0001__x0001__x0001__x0001__x0004__x0001__x0001__x0001_C869)_x0001__x0001__x0001_=RiskData('Risk Summary'!K$48,$A869)/1000_x0001__x0001__x0001__x0001__x0001__x0001__x0001__x0001__x0001__x0001__x0001__x0001__x0004__x0001__x0001__x0001_D869)_x0001__x0001__x0001_=RiskData('Risk Sum_x0001__x0002_mary'!L$48,$A869)/1000_x0001__x0001__x0001__x0001__x0001__x0001__x0001__x0001__x0001__x0001__x0001__x0001__x0004__x0001__x0001__x0001_G869'_x0001__x0001__x0001_=(RiskData(NR_to_Cash!C$18,$A869))/1000_x0001__x0001__x0001__x0001__x0001__x0001__x0001__x0001__x0001__x0001__x0001__x0001__x0004__x0001__x0001__x0001_H869'_x0001__x0001__x0001_=(RiskData(NR_to_Cash!D$18,$A869))/1000_x0001__x0001__x0001__x0001__x0001__x0001__x0001__x0001__x0001__x0001__x0001__x0001__x0004__x0001__x0001__x0001_I869'_x0001__x0001__x0001_=(RiskData(NR_to_Cash!E$18,$A869))/1000_x0001__x0001__x0001__x0001__x0001__x0001__x0001__x0001__x0001__x0001__x0001__x0001__x0004__x0001__x0001__x0001_B870)_x0001__x0001__x0001_=RiskData('Risk S_x0001__x0002_ummary'!J$48,$A870)/1000_x0001__x0001__x0001__x0001__x0001__x0001__x0001__x0001__x0001__x0001__x0001__x0001__x0004__x0001__x0001__x0001_C870)_x0001__x0001__x0001_=RiskData('Risk Summary'!K$48,$A870)/1000_x0001__x0001__x0001__x0001__x0001__x0001__x0001__x0001__x0001__x0001__x0001__x0001__x0004__x0001__x0001__x0001_D870)_x0001__x0001__x0001_=RiskData('Risk Summary'!L$48,$A870)/1000_x0001__x0001__x0001__x0001__x0001__x0001__x0001__x0001__x"}},{"$cut":{"chars":90852,"head":"d19a822f961b64bdab9ed71a1254bb56_x0001__x0002_)/1000_x0001__x0001__x0001__x0001__x0001__x0001__x0001__x0001__x0001__x0001__x0001__x0001__x0004__x0001__x0001__x0001_G949'_x0001__x0001__x0001_=(RiskData(NR_to_Cash!C$18,$A949))/1000_x0001__x0001__x0001__x0001__x0001__x0001__x0001__x0001__x0001__x0001__x0001__x0001__x0004__x0001__x0001__x0001_H949'_x0001__x0001__x0001_=(RiskData(NR_to_Cash!D$18,$A949))/1000_x0001__x0001__x0001__x0001__x0001__x0001__x0001__x0001__x0001__x0001__x0001__x0001__x0004__x0001__x0001__x0001_I949'_x0001__x0001__x0001_=(RiskData(NR_to_Cash!E$18,$A949))/1000_x0001__x0001__x0001__x0001__x0001__x0001__x0001__x0001__x0001__x0001__x0001__x0001__x0004__x0001__x0001__x0001_B950)_x0001__x0001__x0001_=RiskData('Risk Summary'!J$48,$A9_x0001__x0002_50)/1000_x0001__x0001__x0001__x0001__x0001__x0001__x0001__x0001__x0001__x0001__x0001__x0001__x0004__x0001__x0001__x0001_C950)_x0001__x0001__x0001_=RiskData('Risk Summary'!K$48,$A950)/1000_x0001__x0001__x0001__x0001__x0001__x0001__x0001__x0001__x0001__x0001__x0001__x0001__x0004__x0001__x0001__x0001_D950)_x0001__x0001__x0001_=RiskData('Risk Summary'!L$48,$A950)/1000_x0001__x0001__x0001__x0001__x0001__x0001__x0001__x0001__x0001__x0001__x0001__x0001__x0004__x0001__x0001__x0001_G950'_x0001__x0001__x0001_=(RiskData(NR_to_Cash!C$18,$A950))/1000_x0001__x0001__x0001__x0001__x0001__x0001__x0001__x0001__x0001__x0001__x0001__x0001__x0004__x0001__x0001__x0001_H950'_x0001__x0001__x0001_=(RiskData(NR_to_Cash!D$18,_x0001__x0002_$A950))/1000_x0001__x0001__x0001__x0001__x0001__x0001__x0001__x0001__x0001__x0001__x0001__x0001__x0004__x0001__x0001__x0001_I950'_x0001__x0001__x0001_=(RiskData(NR_to_Cash!E$18,$A950))/1000_x0001__x0001__x0001__x0001__x0001__x0001__x0001__x0001__x0001__x0001__x0001__x0001__x0004__x0001__x0001__x0001_B951)_x0001__x0001__x0001_=RiskData('Risk Summary'!J$48,$A951)/1000_x0001__x0001__x0001__x0001__x0001__x0001__x0001__x0001__x0001__x0001__x0001__x0001__x0004__x0001__x0001__x0001_C951)_x0001__x0001__x0001_=RiskData('Risk Summary'!K$48,$A951)/1000_x0001__x0001__x0001__x0001__x0001__x0001__x0001__x0001__x0001__x0001__x0001__x0001__x0004__x0001__x0001__x0001_D951)_x0001__x0001__x0001_=RiskData('Risk Summary_x0001__x0002_'!L$48,$A951)/1000_x0001__x0001__x0001__x0001__x0001__x0001__x0001__x0001__x0001__x0001__x0001__x0001__x0004__x0001__x0001__x0001_G951'_x0001__x0001__x0001_=(RiskData(NR_to_Cash!C$18,$A951))/1000_x0001__x0001__x0001__x0001__x0001__x0001__x0001__x0001__x0001__x0001__x0001__x0001__x0004__x0001__x0001__x0001_H951'_x0001__x0001__x0001_=(RiskData(NR_to_Cash!D$18,$A951))/1000_x0001__x0001__x0001__x0001__x0001__x0001__x0001__x0001__x0001__x0001__x0001__x0001__x0004__x0001__x0001__x0001_I951'_x0001__x0001__x0001_=(RiskData(NR_to_Cash!E$18,$A951))/1000_x0001__x0001__x0001__x0001__x0001__x0001__x0001__x0001__x0001__x0001__x0001__x0001__x0004__x0001__x0001__x0001_B952)_x0001__x0001__x0001_=RiskData('Risk Summa_x0001__x0002_ry'!J$48,$A952)/1000_x0001__x0001__x0001__x0001__x0001__x0001__x0001__x0001__x0001__x0001__x0001__x0001__x0004__x0001__x0001__x0001_C952)_x0001__x0001__x0001_=RiskData('Risk Summary'!K$48,$A952)/1000_x0001__x0001__x0001__x0001__x0001__x0001__x0001__x0001__x0001__x0001__x0001__x0001__x0004__x0001__x0001__x0001_D952)_x0001__x0001__x0001_=RiskData('Risk Summary'!L$48,$A952)/1000_x0001__x0001__x0001__x0001__x0001__x0001__x0001__x0001__x0001__x0001__x0001__x0001__x0004__x0001__x0001__x0001_G952'_x0001__x0001__x0001_=(RiskData(NR_to_Cash!C$18,$A952))/1000_x0001__x0001__x0001__x0001__x0001__x0001__x0001__x0001__x0001__x0001__x0001__x0001__x0004__x0001__x0001__x0001_H952'_x0001__x0001__x0001_=(RiskData(NR_t_x0001__x0002_o_Cash!D$18,$A952))/1000_x0001__x0001__x0001__x0001__x0001__x0001__x0001__x0001__x0001__x0001__x0001__x0001__x0004__x0001__x0001__x0001_I952'_x0001__x0001__x0001_=(RiskData(NR_to_Cash!E$18,$A952))/1000_x0001__x0001__x0001__x0001__x0001__x0001__x0001__x0001__x0001__x0001__x0001__x0001__x0004__x0001__x0001__x0001_B953)_x0001__x0001__x0001_=RiskData('Risk Summary'!J$48,$A953)/1000_x0001__x0001__x0001__x0001__x0001__x0001__x0001__x0001__x00"}},{"$cut":{"chars":90600,"head":"73e3a71964bac12cd173bd09ce88282e_x0001__x0002_$A1032)/1000_x0001__x0001__x0001__x0001__x0001__x0001__x0001__x0001__x0001__x0001__x0001__x0001__x0005__x0001__x0001__x0001_G1032(_x0001__x0001__x0001_=(RiskData(NR_to_Cash!C$18,$A1032))/1000_x0001__x0001__x0001__x0001__x0001__x0001__x0001__x0001__x0001__x0001__x0001__x0001__x0005__x0001__x0001__x0001_H1032(_x0001__x0001__x0001_=(RiskData(NR_to_Cash!D$18,$A1032))/1000_x0001__x0001__x0001__x0001__x0001__x0001__x0001__x0001__x0001__x0001__x0001__x0001__x0005__x0001__x0001__x0001_I1032(_x0001__x0001__x0001_=(RiskData(NR_to_Cash!E$18,$A1032))/1000_x0001__x0001__x0001__x0001__x0001__x0001__x0001__x0001__x0001__x0001__x0001__x0001__x0005__x0001__x0001__x0001_B1033*_x0001__x0001__x0001_=RiskData('Risk Summ_x0001__x0002_ary'!J$48,$A1033)/1000_x0001__x0001__x0001__x0001__x0001__x0001__x0001__x0001__x0001__x0001__x0001__x0001__x0005__x0001__x0001__x0001_C1033*_x0001__x0001__x0001_=RiskData('Risk Summary'!K$48,$A1033)/1000_x0001__x0001__x0001__x0001__x0001__x0001__x0001__x0001__x0001__x0001__x0001__x0001__x0005__x0001__x0001__x0001_D1033*_x0001__x0001__x0001_=RiskData('Risk Summary'!L$48,$A1033)/1000_x0001__x0001__x0001__x0001__x0001__x0001__x0001__x0001__x0001__x0001__x0001__x0001__x0005__x0001__x0001__x0001_G1033(_x0001__x0001__x0001_=(RiskData(NR_to_Cash!C$18,$A1033))/1000_x0001__x0001__x0001__x0001__x0001__x0001__x0001__x0001__x0001__x0001__x0001__x0001__x0005__x0001__x0001__x0001_H1033(_x0001__x0001__x0001_=(Risk_x0001__x0002_Data(NR_to_Cash!D$18,$A1033))/1000_x0001__x0001__x0001__x0001__x0001__x0001__x0001__x0001__x0001__x0001__x0001__x0001__x0005__x0001__x0001__x0001_I1033(_x0001__x0001__x0001_=(RiskData(NR_to_Cash!E$18,$A1033))/1000_x0001__x0001__x0001__x0001__x0001__x0001__x0001__x0001__x0001__x0001__x0001__x0001__x0005__x0001__x0001__x0001_B1034*_x0001__x0001__x0001_=RiskData('Risk Summary'!J$48,$A1034)/1000_x0001__x0001__x0001__x0001__x0001__x0001__x0001__x0001__x0001__x0001__x0001__x0001__x0005__x0001__x0001__x0001_C1034*_x0001__x0001__x0001_=RiskData('Risk Summary'!K$48,$A1034)/1000_x0001__x0001__x0001__x0001__x0001__x0001__x0001__x0001__x0001__x0001__x0001__x0001__x0005__x0001__x0001__x0001_D10_x0001__x0002_34*_x0001__x0001__x0001_=RiskData('Risk Summary'!L$48,$A1034)/1000_x0001__x0001__x0001__x0001__x0001__x0001__x0001__x0001__x0001__x0001__x0001__x0001__x0005__x0001__x0001__x0001_G1034(_x0001__x0001__x0001_=(RiskData(NR_to_Cash!C$18,$A1034))/1000_x0001__x0001__x0001__x0001__x0001__x0001__x0001__x0001__x0001__x0001__x0001__x0001__x0005__x0001__x0001__x0001_H1034(_x0001__x0001__x0001_=(RiskData(NR_to_Cash!D$18,$A1034))/1000_x0001__x0001__x0001__x0001__x0001__x0001__x0001__x0001__x0001__x0001__x0001__x0001__x0005__x0001__x0001__x0001_I1034(_x0001__x0001__x0001_=(RiskData(NR_to_Cash!E$18,$A1034))/1000_x0001__x0001__x0001__x0001__x0001__x0001__x0001__x0001__x0001__x0001__x0002__x0001__x0001__x0001__x0005__x0001__x0001__x0001_B1035*_x0001__x0001__x0001_=RiskData('Risk Summary'!J$48,$A1035)/1000_x0001__x0001__x0001__x0001__x0001__x0001__x0001__x0001__x0001__x0001__x0001__x0001__x0005__x0001__x0001__x0001_C1035*_x0001__x0001__x0001_=RiskData('Risk Summary'!K$48,$A1035)/1000_x0001__x0001__x0001__x0001__x0001__x0001__x0001__x0001__x0001__x0001__x0001__x0001__x0005__x0001__x0001__x0001_D1035*_x0001__x0001__x0001_=RiskData('Risk Summary'!L$48,$A1035)/1000_x0001__x0001__x0001__x0001__x0001__x0001__x0001__x0001__x0001__x0001__x0001__x0001__x0005__x0001__x0001__x0001_G1035(_x0001__x0001__x0001_=(RiskData(NR_to_Cash!C$18,$A1035))_x0001__x0002_/1000_x0001__x0001__x0001__x0001__x0001__x0001__x0001__x0001__x0001__x0001__x0001__x0001__x0005__x0001__x0001__x0001_H1035(_x0001__x0001__x0001_=(RiskData(NR_to_Cash!D$18,$A1035))/1000_x0001__x0001__x0001__x0001__x0001__x0001__x0001__x0001__x0001__x0001__x0001__x0001__x0005__x0001__x0001__x0001_I1035(_x0001__x0001__x0001_=(RiskData(NR_to_Cash!E$18,$A1035))/1000_x0001__x0001__x0001__x0001__x0001__x0001__x0001__x0001__x0001__x0001__x0001__x0001__x0005__x0001__x0001__x0001_B1036*_x0001__x0001__x0001_=RiskData('Risk Summary'!J$48,$A1036)/1000_x0001__x0"}},{"$cut":{"chars":89826,"head":"2c0e630e115ec9cacea979d690f34d1a_x0001__x0002_$A1112))/1000_x0001__x0001__x0001__x0001__x0001__x0001__x0001__x0001__x0001__x0001__x0001__x0001__x0005__x0001__x0001__x0001_H1112(_x0001__x0001__x0001_=(RiskData(NR_to_Cash!D$18,$A1112))/1000_x0001__x0001__x0001__x0001__x0001__x0001__x0001__x0001__x0001__x0001__x0001__x0001__x0005__x0001__x0001__x0001_I1112(_x0001__x0001__x0001_=(RiskData(NR_to_Cash!E$18,$A1112))/1000_x0001__x0001__x0001__x0001__x0001__x0001__x0001__x0001__x0001__x0001__x0001__x0001__x0005__x0001__x0001__x0001_B1113*_x0001__x0001__x0001_=RiskData('Risk Summary'!J$48,$A1113)/1000_x0001__x0001__x0001__x0001__x0001__x0001__x0001__x0001__x0001__x0001__x0001__x0001__x0005__x0001__x0001__x0001_C1113*_x0001__x0001__x0001_=RiskData('Risk S_x0001__x0002_ummary'!K$48,$A1113)/1000_x0001__x0001__x0001__x0001__x0001__x0001__x0001__x0001__x0001__x0001__x0001__x0001__x0005__x0001__x0001__x0001_D1113*_x0001__x0001__x0001_=RiskData('Risk Summary'!L$48,$A1113)/1000_x0001__x0001__x0001__x0001__x0001__x0001__x0001__x0001__x0001__x0001__x0001__x0001__x0005__x0001__x0001__x0001_G1113(_x0001__x0001__x0001_=(RiskData(NR_to_Cash!C$18,$A1113))/1000_x0001__x0001__x0001__x0001__x0001__x0001__x0001__x0001__x0001__x0001__x0001__x0001__x0005__x0001__x0001__x0001_H1113(_x0001__x0001__x0001_=(RiskData(NR_to_Cash!D$18,$A1113))/1000_x0001__x0001__x0001__x0001__x0001__x0001__x0001__x0001__x0001__x0001__x0001__x0001__x0005__x0001__x0001__x0001_I1113(_x0001__x0001__x0001_=(Ris_x0001__x0002_kData(NR_to_Cash!E$18,$A1113))/1000_x0001__x0001__x0001__x0001__x0001__x0001__x0001__x0001__x0001__x0001__x0001__x0001__x0005__x0001__x0001__x0001_B1114*_x0001__x0001__x0001_=RiskData('Risk Summary'!J$48,$A1114)/1000_x0001__x0001__x0001__x0001__x0001__x0001__x0001__x0001__x0001__x0001__x0001__x0001__x0005__x0001__x0001__x0001_C1114*_x0001__x0001__x0001_=RiskData('Risk Summary'!K$48,$A1114)/1000_x0001__x0001__x0001__x0001__x0001__x0001__x0001__x0001__x0001__x0001__x0001__x0001__x0005__x0001__x0001__x0001_D1114*_x0001__x0001__x0001_=RiskData('Risk Summary'!L$48,$A1114)/1000_x0001__x0001__x0001__x0001__x0001__x0001__x0001__x0001__x0001__x0001__x0001__x0001__x0005__x0001__x0001__x0001__x0001__x0002_G1114(_x0001__x0001__x0001_=(RiskData(NR_to_Cash!C$18,$A1114))/1000_x0001__x0001__x0001__x0001__x0001__x0001__x0001__x0001__x0001__x0001__x0001__x0001__x0005__x0001__x0001__x0001_H1114(_x0001__x0001__x0001_=(RiskData(NR_to_Cash!D$18,$A1114))/1000_x0001__x0001__x0001__x0001__x0001__x0001__x0001__x0001__x0001__x0001__x0001__x0001__x0005__x0001__x0001__x0001_I1114(_x0001__x0001__x0001_=(RiskData(NR_to_Cash!E$18,$A1114))/1000_x0001__x0001__x0001__x0001__x0001__x0001__x0001__x0001__x0001__x0001__x0001__x0001__x0005__x0001__x0001__x0001_B1115*_x0001__x0001__x0001_=RiskData('Risk Summary'!J$48,$A1115)/1000_x0001__x0001__x0001__x0001__x0001__x0001__x0001__x0002__x0001__x0001__x0001__x0001__x0001__x0001__x0005__x0001__x0001__x0001_C1115*_x0001__x0001__x0001_=RiskData('Risk Summary'!K$48,$A1115)/1000_x0001__x0001__x0001__x0001__x0001__x0001__x0001__x0001__x0001__x0001__x0001__x0001__x0005__x0001__x0001__x0001_D1115*_x0001__x0001__x0001_=RiskData('Risk Summary'!L$48,$A1115)/1000_x0001__x0001__x0001__x0001__x0001__x0001__x0001__x0001__x0001__x0001__x0001__x0001__x0005__x0001__x0001__x0001_G1115(_x0001__x0001__x0001_=(RiskData(NR_to_Cash!C$18,$A1115))/1000_x0001__x0001__x0001__x0001__x0001__x0001__x0001__x0001__x0001__x0001__x0001__x0001__x0005__x0001__x0001__x0001_H1115(_x0001__x0001__x0001_=(RiskData(NR_to_Cash!D$18,$A1115)_x0001__x0002_)/1000_x0001__x0001__x0001__x0001__x0001__x0001__x0001__x0001__x0001__x0001__x0001__x0001__x0005__x0001__x0001__x0001_I1115(_x0001__x0001__x0001_=(RiskData(NR_to_Cash!E$18,$A1115))/1000_x0001__x0001__x0001__x0001__x0001__x0001__x0001__x0001__x0001__x0001__x0001__x0001__x0005__x0001__x0001__x0001_B1116*_x0001__x0001__x0001_=RiskData('Risk Summary'!J$48,$A1116)/1000_x0001__x0001__x0001__x0001__x0001__x0001__x0001__x0001__x0001__x0001__x0001__x0001__x0005__x0001__x0001__x0001_C1116*_x0001__x0001__x0001_=RiskData('Risk Summary'!K$48,$A1116)/1000_x0001_"}},{"$cut":{"chars":90444,"head":"c0142acc8e7c7e7393a9a1afcd7f353c_x0001__x0002_isk Summary'!J$48,$A1194)/1000_x0001__x0001__x0001__x0001__x0001__x0001__x0001__x0001__x0001__x0001__x0001__x0001__x0005__x0001__x0001__x0001_C1194*_x0001__x0001__x0001_=RiskData('Risk Summary'!K$48,$A1194)/1000_x0001__x0001__x0001__x0001__x0001__x0001__x0001__x0001__x0001__x0001__x0001__x0001__x0005__x0001__x0001__x0001_D1194*_x0001__x0001__x0001_=RiskData('Risk Summary'!L$48,$A1194)/1000_x0001__x0001__x0001__x0001__x0001__x0001__x0001__x0001__x0001__x0001__x0001__x0001__x0005__x0001__x0001__x0001_G1194(_x0001__x0001__x0001_=(RiskData(NR_to_Cash!C$18,$A1194))/1000_x0001__x0001__x0001__x0001__x0001__x0001__x0001__x0001__x0001__x0001__x0001__x0001__x0005__x0001__x0001__x0001_H1194(_x0001__x0001__x0002__x0001__x0001_=(RiskData(NR_to_Cash!D$18,$A1194))/1000_x0001__x0001__x0001__x0001__x0001__x0001__x0001__x0001__x0001__x0001__x0001__x0001__x0005__x0001__x0001__x0001_I1194(_x0001__x0001__x0001_=(RiskData(NR_to_Cash!E$18,$A1194))/1000_x0001__x0001__x0001__x0001__x0001__x0001__x0001__x0001__x0001__x0001__x0001__x0001__x0005__x0001__x0001__x0001_B1195*_x0001__x0001__x0001_=RiskData('Risk Summary'!J$48,$A1195)/1000_x0001__x0001__x0001__x0001__x0001__x0001__x0001__x0001__x0001__x0001__x0001__x0001__x0005__x0001__x0001__x0001_C1195*_x0001__x0001__x0001_=RiskData('Risk Summary'!K$48,$A1195)/1000_x0001__x0001__x0001__x0001__x0001__x0001__x0001__x0001__x0001__x0001__x0001__x0001__x0002__x0001__x0005__x0001__x0001__x0001_D1195*_x0001__x0001__x0001_=RiskData('Risk Summary'!L$48,$A1195)/1000_x0001__x0001__x0001__x0001__x0001__x0001__x0001__x0001__x0001__x0001__x0001__x0001__x0005__x0001__x0001__x0001_G1195(_x0001__x0001__x0001_=(RiskData(NR_to_Cash!C$18,$A1195))/1000_x0001__x0001__x0001__x0001__x0001__x0001__x0001__x0001__x0001__x0001__x0001__x0001__x0005__x0001__x0001__x0001_H1195(_x0001__x0001__x0001_=(RiskData(NR_to_Cash!D$18,$A1195))/1000_x0001__x0001__x0001__x0001__x0001__x0001__x0001__x0001__x0001__x0001__x0001__x0001__x0005__x0001__x0001__x0001_I1195(_x0001__x0001__x0001_=(RiskData(NR_to_Cash!E$18,$A1195))/1000_x0001__x0001__x0002__x0001__x0001__x0001__x0001__x0001__x0001__x0001__x0001__x0001__x0001__x0001__x0005__x0001__x0001__x0001_B1196*_x0001__x0001__x0001_=RiskData('Risk Summary'!J$48,$A1196)/1000_x0001__x0001__x0001__x0001__x0001__x0001__x0001__x0001__x0001__x0001__x0001__x0001__x0005__x0001__x0001__x0001_C1196*_x0001__x0001__x0001_=RiskData('Risk Summary'!K$48,$A1196)/1000_x0001__x0001__x0001__x0001__x0001__x0001__x0001__x0001__x0001__x0001__x0001__x0001__x0005__x0001__x0001__x0001_D1196*_x0001__x0001__x0001_=RiskData('Risk Summary'!L$48,$A1196)/1000_x0001__x0001__x0001__x0001__x0001__x0001__x0001__x0001__x0001__x0001__x0001__x0001__x0005__x0001__x0001__x0001_G1196(_x0001__x0001__x0001_=(RiskData(NR_to_Cash!C$18,_x0001__x0002_$A1196))/1000_x0001__x0001__x0001__x0001__x0001__x0001__x0001__x0001__x0001__x0001__x0001__x0001__x0005__x0001__x0001__x0001_H1196(_x0001__x0001__x0001_=(RiskData(NR_to_Cash!D$18,$A1196))/1000_x0001__x0001__x0001__x0001__x0001__x0001__x0001__x0001__x0001__x0001__x0001__x0001__x0005__x0001__x0001__x0001_I1196(_x0001__x0001__x0001_=(RiskData(NR_to_Cash!E$18,$A1196))/1000_x0001__x0001__x0001__x0001__x0001__x0001__x0001__x0001__x0001__x0001__x0001__x0001__x0005__x0001__x0001__x0001_B1197*_x0001__x0001__x0001_=RiskData('Risk Summary'!J$48,$A1197)/1000_x0001__x0001__x0001__x0001__x0001__x0001__x0001__x0001__x0001__x0001__x0001__x0001__x0005__x0001__x0001__x0001_C1197*_x0001__x0001__x0001_=RiskData('Risk S_x0001__x0002_ummary'!K$48,$A1197)/1000_x0001__x0001__x0001__x0001__x0001__x0001__x0001__x0001__x0001__x0001__x0001__x0001__x0005__x0001__x0001__x0001_D1197*_x0001__x0001__x0001_=RiskData('Risk Summary'!L$48,$A1197)/1000_x0001__x0001__x0001__x0001__x0001__x0001__x0001__x0001__x0001__x0001__x0001__x0001__x0005__x0001__x0001__x0001_G1197(_x0001__x0001__x0001_=(RiskData(NR_to_Cash!C$18,$A1197))/1000_x0001__x0001__x0001__x0001__x0001__x0001__x0001__x0001__x0001__x0001__x0001__x0001__x0005__x0001__x0001__x0001_H1197(_x0001__x0001__x0001_=(RiskData(NR_to_Cash!D$18,$A1"}},{"$cut":{"chars":89802,"head":"aae306b0936b3dfd7cec98121b706f34_x0001__x0002_('Risk Summary'!K$48,$A1274)/1000_x0001__x0001__x0001__x0001__x0001__x0001__x0001__x0001__x0001__x0001__x0001__x0001__x0005__x0001__x0001__x0001_D1274*_x0001__x0001__x0001_=RiskData('Risk Summary'!L$48,$A1274)/1000_x0001__x0001__x0001__x0001__x0001__x0001__x0001__x0001__x0001__x0001__x0001__x0001__x0005__x0001__x0001__x0001_G1274(_x0001__x0001__x0001_=(RiskData(NR_to_Cash!C$18,$A1274))/1000_x0001__x0001__x0001__x0001__x0001__x0001__x0001__x0001__x0001__x0001__x0001__x0001__x0005__x0001__x0001__x0001_H1274(_x0001__x0001__x0001_=(RiskData(NR_to_Cash!D$18,$A1274))/1000_x0001__x0001__x0001__x0001__x0001__x0001__x0001__x0001__x0001__x0001__x0001__x0001__x0005__x0001__x0001__x0001_I1274(_x0001__x0002__x0001__x0001__x0001_=(RiskData(NR_to_Cash!E$18,$A1274))/1000_x0001__x0001__x0001__x0001__x0001__x0001__x0001__x0001__x0001__x0001__x0001__x0001__x0005__x0001__x0001__x0001_B1275*_x0001__x0001__x0001_=RiskData('Risk Summary'!J$48,$A1275)/1000_x0001__x0001__x0001__x0001__x0001__x0001__x0001__x0001__x0001__x0001__x0001__x0001__x0005__x0001__x0001__x0001_C1275*_x0001__x0001__x0001_=RiskData('Risk Summary'!K$48,$A1275)/1000_x0001__x0001__x0001__x0001__x0001__x0001__x0001__x0001__x0001__x0001__x0001__x0001__x0005__x0001__x0001__x0001_D1275*_x0001__x0001__x0001_=RiskData('Risk Summary'!L$48,$A1275)/1000_x0001__x0001__x0001__x0001__x0001__x0001__x0001__x0001__x0001__x0002__x0001__x0001__x0001__x0001__x0005__x0001__x0001__x0001_G1275(_x0001__x0001__x0001_=(RiskData(NR_to_Cash!C$18,$A1275))/1000_x0001__x0001__x0001__x0001__x0001__x0001__x0001__x0001__x0001__x0001__x0001__x0001__x0005__x0001__x0001__x0001_H1275(_x0001__x0001__x0001_=(RiskData(NR_to_Cash!D$18,$A1275))/1000_x0001__x0001__x0001__x0001__x0001__x0001__x0001__x0001__x0001__x0001__x0001__x0001__x0005__x0001__x0001__x0001_I1275(_x0001__x0001__x0001_=(RiskData(NR_to_Cash!E$18,$A1275))/1000_x0001__x0001__x0001__x0001__x0001__x0001__x0001__x0001__x0001__x0001__x0001__x0001__x0005__x0001__x0001__x0001_B1276*_x0001__x0001__x0001_=RiskData('Risk Summary'!J$48,$A1276)/10_x0001__x0002_00_x0001__x0001__x0001__x0001__x0001__x0001__x0001__x0001__x0001__x0001__x0001__x0001__x0005__x0001__x0001__x0001_C1276*_x0001__x0001__x0001_=RiskData('Risk Summary'!K$48,$A1276)/1000_x0001__x0001__x0001__x0001__x0001__x0001__x0001__x0001__x0001__x0001__x0001__x0001__x0005__x0001__x0001__x0001_D1276*_x0001__x0001__x0001_=RiskData('Risk Summary'!L$48,$A1276)/1000_x0001__x0001__x0001__x0001__x0001__x0001__x0001__x0001__x0001__x0001__x0001__x0001__x0005__x0001__x0001__x0001_G1276(_x0001__x0001__x0001_=(RiskData(NR_to_Cash!C$18,$A1276))/1000_x0001__x0001__x0001__x0001__x0001__x0001__x0001__x0001__x0001__x0001__x0001__x0001__x0005__x0001__x0001__x0001_H1276(_x0001__x0001__x0001_=(RiskData(NR_to_Cash!D$18_x0001__x0002_,$A1276))/1000_x0001__x0001__x0001__x0001__x0001__x0001__x0001__x0001__x0001__x0001__x0001__x0001__x0005__x0001__x0001__x0001_I1276(_x0001__x0001__x0001_=(RiskData(NR_to_Cash!E$18,$A1276))/1000_x0001__x0001__x0001__x0001__x0001__x0001__x0001__x0001__x0001__x0001__x0001__x0001__x0005__x0001__x0001__x0001_B1277*_x0001__x0001__x0001_=RiskData('Risk Summary'!J$48,$A1277)/1000_x0001__x0001__x0001__x0001__x0001__x0001__x0001__x0001__x0001__x0001__x0001__x0001__x0005__x0001__x0001__x0001_C1277*_x0001__x0001__x0001_=RiskData('Risk Summary'!K$48,$A1277)/1000_x0001__x0001__x0001__x0001__x0001__x0001__x0001__x0001__x0001__x0001__x0001__x0001__x0005__x0001__x0001__x0001_D1277*_x0001__x0001__x0001_=RiskData('Ris_x0001__x0002_k Summary'!L$48,$A1277)/1000_x0001__x0001__x0001__x0001__x0001__x0001__x0001__x0001__x0001__x0001__x0001__x0001__x0005__x0001__x0001__x0001_G1277(_x0001__x0001__x0001_=(RiskData(NR_to_Cash!C$18,$A1277))/1000_x0001__x0001__x0001__x0001__x0001__x0001__x0001__x0001__x0001__x0001__x0001__x0001__x0005__x0001__x0001__x0001_H1277(_x0001__x0001__x0001_=(RiskData(NR_to_Cash!D$18,$A1277))/1000_x0001__x0001__x0001__x0001__x0001__x0001__x0001__x0001__x0001__x0001__x0001__x0001__x0005__x0001__x0001__x0001_I1277(_x0001__x0001__x0001_=(RiskData(NR_to_Cash!E$18,$A"}},{"$cut":{"chars":90606,"head":"c91bff034c0f617602063e516e491613_x0001__x0002__x0001_H1355(_x0001__x0001__x0001_=(RiskData(NR_to_Cash!D$18,$A1355))/1000_x0001__x0001__x0001__x0001__x0001__x0001__x0001__x0001__x0001__x0001__x0001__x0001__x0005__x0001__x0001__x0001_I1355(_x0001__x0001__x0001_=(RiskData(NR_to_Cash!E$18,$A1355))/1000_x0001__x0001__x0001__x0001__x0001__x0001__x0001__x0001__x0001__x0001__x0001__x0001__x0005__x0001__x0001__x0001_B1356*_x0001__x0001__x0001_=RiskData('Risk Summary'!J$48,$A1356)/1000_x0001__x0001__x0001__x0001__x0001__x0001__x0001__x0001__x0001__x0001__x0001__x0001__x0005__x0001__x0001__x0001_C1356*_x0001__x0001__x0001_=RiskData('Risk Summary'!K$48,$A1356)/1000_x0001__x0001__x0001__x0001__x0002__x0001__x0001__x0001__x0001__x0001__x0001__x0001__x0001__x0001__x0005__x0001__x0001__x0001_D1356*_x0001__x0001__x0001_=RiskData('Risk Summary'!L$48,$A1356)/1000_x0001__x0001__x0001__x0001__x0001__x0001__x0001__x0001__x0001__x0001__x0001__x0001__x0005__x0001__x0001__x0001_G1356(_x0001__x0001__x0001_=(RiskData(NR_to_Cash!C$18,$A1356))/1000_x0001__x0001__x0001__x0001__x0001__x0001__x0001__x0001__x0001__x0001__x0001__x0001__x0005__x0001__x0001__x0001_H1356(_x0001__x0001__x0001_=(RiskData(NR_to_Cash!D$18,$A1356))/1000_x0001__x0001__x0001__x0001__x0001__x0001__x0001__x0001__x0001__x0001__x0001__x0001__x0005__x0001__x0001__x0001_I1356(_x0001__x0001__x0001_=(RiskData(NR_to_Cash!E$18,$A1356_x0001__x0002_))/1000_x0001__x0001__x0001__x0001__x0001__x0001__x0001__x0001__x0001__x0001__x0001__x0001__x0005__x0001__x0001__x0001_B1357*_x0001__x0001__x0001_=RiskData('Risk Summary'!J$48,$A1357)/1000_x0001__x0001__x0001__x0001__x0001__x0001__x0001__x0001__x0001__x0001__x0001__x0001__x0005__x0001__x0001__x0001_C1357*_x0001__x0001__x0001_=RiskData('Risk Summary'!K$48,$A1357)/1000_x0001__x0001__x0001__x0001__x0001__x0001__x0001__x0001__x0001__x0001__x0001__x0001__x0005__x0001__x0001__x0001_D1357*_x0001__x0001__x0001_=RiskData('Risk Summary'!L$48,$A1357)/1000_x0001__x0001__x0001__x0001__x0001__x0001__x0001__x0001__x0001__x0001__x0001__x0001__x0005__x0001__x0001__x0001_G1357(_x0001__x0001__x0001_=(RiskData(NR_to_Ca_x0001__x0002_sh!C$18,$A1357))/1000_x0001__x0001__x0001__x0001__x0001__x0001__x0001__x0001__x0001__x0001__x0001__x0001__x0005__x0001__x0001__x0001_H1357(_x0001__x0001__x0001_=(RiskData(NR_to_Cash!D$18,$A1357))/1000_x0001__x0001__x0001__x0001__x0001__x0001__x0001__x0001__x0001__x0001__x0001__x0001__x0005__x0001__x0001__x0001_I1357(_x0001__x0001__x0001_=(RiskData(NR_to_Cash!E$18,$A1357))/1000_x0001__x0001__x0001__x0001__x0001__x0001__x0001__x0001__x0001__x0001__x0001__x0001__x0005__x0001__x0001__x0001_B1358*_x0001__x0001__x0001_=RiskData('Risk Summary'!J$48,$A1358)/1000_x0001__x0001__x0001__x0001__x0001__x0001__x0001__x0001__x0001__x0001__x0001__x0001__x0005__x0001__x0001__x0001_C1358*_x0001__x0001__x0001_=RiskData_x0001__x0002_('Risk Summary'!K$48,$A1358)/1000_x0001__x0001__x0001__x0001__x0001__x0001__x0001__x0001__x0001__x0001__x0001__x0001__x0005__x0001__x0001__x0001_D1358*_x0001__x0001__x0001_=RiskData('Risk Summary'!L$48,$A1358)/1000_x0001__x0001__x0001__x0001__x0001__x0001__x0001__x0001__x0001__x0001__x0001__x0001__x0005__x0001__x0001__x0001_G1358(_x0001__x0001__x0001_=(RiskData(NR_to_Cash!C$18,$A1358))/1000_x0001__x0001__x0001__x0001__x0001__x0001__x0001__x0001__x0001__x0001__x0001__x0001__x0005__x0001__x0001__x0001_H1358(_x0001__x0001__x0001_=(RiskData(NR_to_Cash!D$18,$A1358))/1000_x0001__x0001__x0001__x0001__x0001__x0001__x0001__x0001__x0001__x0001__x0001__x0001__x0005__x0001__x0001__x0001_I1358(_x0001__x0002__x0001__x0001__x0001_=(RiskData(NR_to_Cash!E$18,$A1358))/1000_x0001__x0001__x0001__x0001__x0001__x0001__x0001__x0001__x0001__x0001__x0001__x0001__x0005__x0001__x0001__x0001_B1359*_x0001__x0001__x0001_=RiskData('Risk Summary'!J$48,$A1359)/1000_x0001__x0001__x0001__x0001__x0001__x0001__x0001__x0001__x0001__x0001__x0001__x0001__x0005__x0001__x0001__x0001_C1359*_x0001__x0001__x0001_=RiskData('Risk Summary'!K$48,$A1359)/1000_x0001__x0001__x0001__x0001__x0001__x0001__x0001__x0001__x0001__x0001__x0001__x0001__x0005__x0001__x0001__x0001_D1359*_x0001_"}},{"$cut":{"chars":89742,"head":"72137c69c8fa7543665fe479c19243de_x0001__x0002__x0001__x0001_I1435(_x0001__x0001__x0001_=(RiskData(NR_to_Cash!E$18,$A1435))/1000_x0001__x0001__x0001__x0001__x0001__x0001__x0001__x0001__x0001__x0001__x0001__x0001__x0005__x0001__x0001__x0001_B1436*_x0001__x0001__x0001_=RiskData('Risk Summary'!J$48,$A1436)/1000_x0001__x0001__x0001__x0001__x0001__x0001__x0001__x0001__x0001__x0001__x0001__x0001__x0005__x0001__x0001__x0001_C1436*_x0001__x0001__x0001_=RiskData('Risk Summary'!K$48,$A1436)/1000_x0001__x0001__x0001__x0001__x0001__x0001__x0001__x0001__x0001__x0001__x0001__x0001__x0005__x0001__x0001__x0001_D1436*_x0001__x0001__x0001_=RiskData('Risk Summary'!L$48,$A1436)/1000_x0001__x0002__x0001__x0001__x0001__x0001__x0001__x0001__x0001__x0001__x0001__x0001__x0001__x0001__x0005__x0001__x0001__x0001_G1436(_x0001__x0001__x0001_=(RiskData(NR_to_Cash!C$18,$A1436))/1000_x0001__x0001__x0001__x0001__x0001__x0001__x0001__x0001__x0001__x0001__x0001__x0001__x0005__x0001__x0001__x0001_H1436(_x0001__x0001__x0001_=(RiskData(NR_to_Cash!D$18,$A1436))/1000_x0001__x0001__x0001__x0001__x0001__x0001__x0001__x0001__x0001__x0001__x0001__x0001__x0005__x0001__x0001__x0001_I1436(_x0001__x0001__x0001_=(RiskData(NR_to_Cash!E$18,$A1436))/1000_x0001__x0001__x0001__x0001__x0001__x0001__x0001__x0001__x0001__x0001__x0001__x0001__x0005__x0001__x0001__x0001_B1437*_x0001__x0001__x0001_=RiskData('Risk Summary'!J$48,$A_x0001__x0002_1437)/1000_x0001__x0001__x0001__x0001__x0001__x0001__x0001__x0001__x0001__x0001__x0001__x0001__x0005__x0001__x0001__x0001_C1437*_x0001__x0001__x0001_=RiskData('Risk Summary'!K$48,$A1437)/1000_x0001__x0001__x0001__x0001__x0001__x0001__x0001__x0001__x0001__x0001__x0001__x0001__x0005__x0001__x0001__x0001_D1437*_x0001__x0001__x0001_=RiskData('Risk Summary'!L$48,$A1437)/1000_x0001__x0001__x0001__x0001__x0001__x0001__x0001__x0001__x0001__x0001__x0001__x0001__x0005__x0001__x0001__x0001_G1437(_x0001__x0001__x0001_=(RiskData(NR_to_Cash!C$18,$A1437))/1000_x0001__x0001__x0001__x0001__x0001__x0001__x0001__x0001__x0001__x0001__x0001__x0001__x0005__x0001__x0001__x0001_H1437(_x0001__x0001__x0001_=(RiskData(NR_to_C_x0001__x0002_ash!D$18,$A1437))/1000_x0001__x0001__x0001__x0001__x0001__x0001__x0001__x0001__x0001__x0001__x0001__x0001__x0005__x0001__x0001__x0001_I1437(_x0001__x0001__x0001_=(RiskData(NR_to_Cash!E$18,$A1437))/1000_x0001__x0001__x0001__x0001__x0001__x0001__x0001__x0001__x0001__x0001__x0001__x0001__x0005__x0001__x0001__x0001_B1438*_x0001__x0001__x0001_=RiskData('Risk Summary'!J$48,$A1438)/1000_x0001__x0001__x0001__x0001__x0001__x0001__x0001__x0001__x0001__x0001__x0001__x0001__x0005__x0001__x0001__x0001_C1438*_x0001__x0001__x0001_=RiskData('Risk Summary'!K$48,$A1438)/1000_x0001__x0001__x0001__x0001__x0001__x0001__x0001__x0001__x0001__x0001__x0001__x0001__x0005__x0001__x0001__x0001_D1438*_x0001__x0001__x0001_=RiskD_x0001__x0002_ata('Risk Summary'!L$48,$A1438)/1000_x0001__x0001__x0001__x0001__x0001__x0001__x0001__x0001__x0001__x0001__x0001__x0001__x0005__x0001__x0001__x0001_G1438(_x0001__x0001__x0001_=(RiskData(NR_to_Cash!C$18,$A1438))/1000_x0001__x0001__x0001__x0001__x0001__x0001__x0001__x0001__x0001__x0001__x0001__x0001__x0005__x0001__x0001__x0001_H1438(_x0001__x0001__x0001_=(RiskData(NR_to_Cash!D$18,$A1438))/1000_x0001__x0001__x0001__x0001__x0001__x0001__x0001__x0001__x0001__x0001__x0001__x0001__x0005__x0001__x0001__x0001_I1438(_x0001__x0001__x0001_=(RiskData(NR_to_Cash!E$18,$A1438))/1000_x0001__x0001__x0001__x0001__x0001__x0001__x0001__x0001__x0001__x0001__x0001__x0001__x0005__x0001__x0001__x0001_B1439_x0001__x0002_*_x0001__x0001__x0001_=RiskData('Risk Summary'!J$48,$A1439)/1000_x0001__x0001__x0001__x0001__x0001__x0001__x0001__x0001__x0001__x0001__x0001__x0001__x0005__x0001__x0001__x0001_C1439*_x0001__x0001__x0001_=RiskData('Risk Summary'!K$48,$A1439)/1000_x0001__x0001__x0001__x0001__x0001__x0001__x0001__x0001__x0001__x0001__x0001__x0001__x0005__x0001__x0001__x0001_D1439*_x0001__x0001__x0001_=RiskData('Risk Summary'!L$48,$A1439)/1000_x0001__x0001__x0001__x0001__x0001__x0001__x0001__x0001__x0001__x0001__x0001__x0001__x0005__x0001__x0001__x0001_G143"}},{"$cut":{"chars":90444,"head":"095ef6e8e416c1e2759328d653645f3f_x0001__x0002_/1000_x0001__x0001__x0001__x0001__x0001__x0001__x0001__x0001__x0001__x0001__x0001__x0001__x0005__x0001__x0001__x0001_D1517*_x0001__x0001__x0001_=RiskData('Risk Summary'!L$48,$A1517)/1000_x0001__x0001__x0001__x0001__x0001__x0001__x0001__x0001__x0001__x0001__x0001__x0001__x0005__x0001__x0001__x0001_G1517(_x0001__x0001__x0001_=(RiskData(NR_to_Cash!C$18,$A1517))/1000_x0001__x0001__x0001__x0001__x0001__x0001__x0001__x0001__x0001__x0001__x0001__x0001__x0005__x0001__x0001__x0001_H1517(_x0001__x0001__x0001_=(RiskData(NR_to_Cash!D$18,$A1517))/1000_x0001__x0001__x0001__x0001__x0001__x0001__x0001__x0001__x0001__x0001__x0001__x0001__x0005__x0001__x0001__x0001_I1517(_x0001__x0001__x0001_=(RiskData(NR_to_Cash!E$1_x0001__x0002_8,$A1517))/1000_x0001__x0001__x0001__x0001__x0001__x0001__x0001__x0001__x0001__x0001__x0001__x0001__x0005__x0001__x0001__x0001_B1518*_x0001__x0001__x0001_=RiskData('Risk Summary'!J$48,$A1518)/1000_x0001__x0001__x0001__x0001__x0001__x0001__x0001__x0001__x0001__x0001__x0001__x0001__x0005__x0001__x0001__x0001_C1518*_x0001__x0001__x0001_=RiskData('Risk Summary'!K$48,$A1518)/1000_x0001__x0001__x0001__x0001__x0001__x0001__x0001__x0001__x0001__x0001__x0001__x0001__x0005__x0001__x0001__x0001_D1518*_x0001__x0001__x0001_=RiskData('Risk Summary'!L$48,$A1518)/1000_x0001__x0001__x0001__x0001__x0001__x0001__x0001__x0001__x0001__x0001__x0001__x0001__x0005__x0001__x0001__x0001_G1518(_x0001__x0001__x0001_=(RiskData(_x0001__x0002_NR_to_Cash!C$18,$A1518))/1000_x0001__x0001__x0001__x0001__x0001__x0001__x0001__x0001__x0001__x0001__x0001__x0001__x0005__x0001__x0001__x0001_H1518(_x0001__x0001__x0001_=(RiskData(NR_to_Cash!D$18,$A1518))/1000_x0001__x0001__x0001__x0001__x0001__x0001__x0001__x0001__x0001__x0001__x0001__x0001__x0005__x0001__x0001__x0001_I1518(_x0001__x0001__x0001_=(RiskData(NR_to_Cash!E$18,$A1518))/1000_x0001__x0001__x0001__x0001__x0001__x0001__x0001__x0001__x0001__x0001__x0001__x0001__x0005__x0001__x0001__x0001_B1519*_x0001__x0001__x0001_=RiskData('Risk Summary'!J$48,$A1519)/1000_x0001__x0001__x0001__x0001__x0001__x0001__x0001__x0001__x0001__x0001__x0001__x0001__x0005__x0001__x0001__x0001_C1519*_x0001__x0001__x0001_=_x0001__x0002_RiskData('Risk Summary'!K$48,$A1519)/1000_x0001__x0001__x0001__x0001__x0001__x0001__x0001__x0001__x0001__x0001__x0001__x0001__x0005__x0001__x0001__x0001_D1519*_x0001__x0001__x0001_=RiskData('Risk Summary'!L$48,$A1519)/1000_x0001__x0001__x0001__x0001__x0001__x0001__x0001__x0001__x0001__x0001__x0001__x0001__x0005__x0001__x0001__x0001_G1519(_x0001__x0001__x0001_=(RiskData(NR_to_Cash!C$18,$A1519))/1000_x0001__x0001__x0001__x0001__x0001__x0001__x0001__x0001__x0001__x0001__x0001__x0001__x0005__x0001__x0001__x0001_H1519(_x0001__x0001__x0001_=(RiskData(NR_to_Cash!D$18,$A1519))/1000_x0001__x0001__x0001__x0001__x0001__x0001__x0001__x0001__x0001__x0001__x0001__x0001__x0005__x0001__x0001__x0002__x0001__x0001_I1519(_x0001__x0001__x0001_=(RiskData(NR_to_Cash!E$18,$A1519))/1000_x0001__x0001__x0001__x0001__x0001__x0001__x0001__x0001__x0001__x0001__x0001__x0001__x0005__x0001__x0001__x0001_B1520*_x0001__x0001__x0001_=RiskData('Risk Summary'!J$48,$A1520)/1000_x0001__x0001__x0001__x0001__x0001__x0001__x0001__x0001__x0001__x0001__x0001__x0001__x0005__x0001__x0001__x0001_C1520*_x0001__x0001__x0001_=RiskData('Risk Summary'!K$48,$A1520)/1000_x0001__x0001__x0001__x0001__x0001__x0001__x0001__x0001__x0001__x0001__x0001__x0001__x0005__x0001__x0001__x0001_D1520*_x0001__x0001__x0001_=RiskData('Risk Summary'!L$48,$A1520)/1000_x0001__x0002__x0001__x0001__x0001__x0001__x0001__x0001__x0001__x0001__x0001__x0001__x0001__x0001__x0005__x0001__x0001__x0001_G1520(_x0001__x0001__x0001_=(RiskData(NR_to_Cash!C$18,$A1520))/1000_x0001__x0001__x0001__x0001__x0001__x0001__x0001__x0001__x0001__x0001__x0001__x0001__x0005__x0001__x0001__x0001_H1520(_x0001__x0001__x0001_=(RiskData(NR_to_Cash!D$18,$A1520))/1000_x0001__x0001__x0001__x0001__x0001__x0001__x0001__x0001__x0001__x0001__x0001__x0001__x0005__x0001__x0001__x0001_I1520(_x0001__x0001__x0001_=(RiskData(NR_to_Cash!E$18,$A1520))/1000_x0001__x0001__x0"}},{"$cut":{"chars":89826,"head":"46af1d613887c0342f498062d4be2a1b_x0001__x0002_97)/1000_x0001__x0001__x0001__x0001__x0001__x0001__x0001__x0001__x0001__x0001__x0001__x0001__x0005__x0001__x0001__x0001_G1597(_x0001__x0001__x0001_=(RiskData(NR_to_Cash!C$18,$A1597))/1000_x0001__x0001__x0001__x0001__x0001__x0001__x0001__x0001__x0001__x0001__x0001__x0001__x0005__x0001__x0001__x0001_H1597(_x0001__x0001__x0001_=(RiskData(NR_to_Cash!D$18,$A1597))/1000_x0001__x0001__x0001__x0001__x0001__x0001__x0001__x0001__x0001__x0001__x0001__x0001__x0005__x0001__x0001__x0001_I1597(_x0001__x0001__x0001_=(RiskData(NR_to_Cash!E$18,$A1597))/1000_x0001__x0001__x0001__x0001__x0001__x0001__x0001__x0001__x0001__x0001__x0001__x0001__x0005__x0001__x0001__x0001_B1598*_x0001__x0001__x0001_=RiskData('Risk Summary'_x0001__x0002_!J$48,$A1598)/1000_x0001__x0001__x0001__x0001__x0001__x0001__x0001__x0001__x0001__x0001__x0001__x0001__x0005__x0001__x0001__x0001_C1598*_x0001__x0001__x0001_=RiskData('Risk Summary'!K$48,$A1598)/1000_x0001__x0001__x0001__x0001__x0001__x0001__x0001__x0001__x0001__x0001__x0001__x0001__x0005__x0001__x0001__x0001_D1598*_x0001__x0001__x0001_=RiskData('Risk Summary'!L$48,$A1598)/1000_x0001__x0001__x0001__x0001__x0001__x0001__x0001__x0001__x0001__x0001__x0001__x0001__x0005__x0001__x0001__x0001_G1598(_x0001__x0001__x0001_=(RiskData(NR_to_Cash!C$18,$A1598))/1000_x0001__x0001__x0001__x0001__x0001__x0001__x0001__x0001__x0001__x0001__x0001__x0001__x0005__x0001__x0001__x0001_H1598(_x0001__x0001__x0001_=(RiskData_x0001__x0002_(NR_to_Cash!D$18,$A1598))/1000_x0001__x0001__x0001__x0001__x0001__x0001__x0001__x0001__x0001__x0001__x0001__x0001__x0005__x0001__x0001__x0001_I1598(_x0001__x0001__x0001_=(RiskData(NR_to_Cash!E$18,$A1598))/1000_x0001__x0001__x0001__x0001__x0001__x0001__x0001__x0001__x0001__x0001__x0001__x0001__x0005__x0001__x0001__x0001_B1599*_x0001__x0001__x0001_=RiskData('Risk Summary'!J$48,$A1599)/1000_x0001__x0001__x0001__x0001__x0001__x0001__x0001__x0001__x0001__x0001__x0001__x0001__x0005__x0001__x0001__x0001_C1599*_x0001__x0001__x0001_=RiskData('Risk Summary'!K$48,$A1599)/1000_x0001__x0001__x0001__x0001__x0001__x0001__x0001__x0001__x0001__x0001__x0001__x0001__x0005__x0001__x0001__x0001_D1599*_x0001__x0001__x0002__x0001__x0001_=RiskData('Risk Summary'!L$48,$A1599)/1000_x0001__x0001__x0001__x0001__x0001__x0001__x0001__x0001__x0001__x0001__x0001__x0001__x0005__x0001__x0001__x0001_G1599(_x0001__x0001__x0001_=(RiskData(NR_to_Cash!C$18,$A1599))/1000_x0001__x0001__x0001__x0001__x0001__x0001__x0001__x0001__x0001__x0001__x0001__x0001__x0005__x0001__x0001__x0001_H1599(_x0001__x0001__x0001_=(RiskData(NR_to_Cash!D$18,$A1599))/1000_x0001__x0001__x0001__x0001__x0001__x0001__x0001__x0001__x0001__x0001__x0001__x0001__x0005__x0001__x0001__x0001_I1599(_x0001__x0001__x0001_=(RiskData(NR_to_Cash!E$18,$A1599))/1000_x0001__x0001__x0001__x0001__x0001__x0001__x0001__x0001__x0001__x0001__x0001__x0001__x0005__x0001__x0002__x0001__x0001__x0001_B1600*_x0001__x0001__x0001_=RiskData('Risk Summary'!J$48,$A1600)/1000_x0001__x0001__x0001__x0001__x0001__x0001__x0001__x0001__x0001__x0001__x0001__x0001__x0005__x0001__x0001__x0001_C1600*_x0001__x0001__x0001_=RiskData('Risk Summary'!K$48,$A1600)/1000_x0001__x0001__x0001__x0001__x0001__x0001__x0001__x0001__x0001__x0001__x0001__x0001__x0005__x0001__x0001__x0001_D1600*_x0001__x0001__x0001_=RiskData('Risk Summary'!L$48,$A1600)/1000_x0001__x0001__x0001__x0001__x0001__x0001__x0001__x0001__x0001__x0001__x0001__x0001__x0005__x0001__x0001__x0001_G1600(_x0001__x0001__x0001_=(RiskData(NR_to_Cash!C$18,$A1600))/100_x0001__x0002_0_x0001__x0001__x0001__x0001__x0001__x0001__x0001__x0001__x0001__x0001__x0001__x0001__x0005__x0001__x0001__x0001_H1600(_x0001__x0001__x0001_=(RiskData(NR_to_Cash!D$18,$A1600))/1000_x0001__x0001__x0001__x0001__x0001__x0001__x0001__x0001__x0001__x0001__x0001__x0001__x0005__x0001__x0001__x0001_I1600(_x0001__x0001__x0001_=(RiskData(NR_to_Cash!E$18,$A1600))/1000_x0001__x0001__x0001__x0001__x0001__x0001__x0001__x0001__x0001__x0001__x0001__x0001__x0005__x0001__x0001__x0001_B1601*_x0001__x0001__x0001_=RiskData('Risk Summary'!J$48,$A1601)/1000_x0001__x0001_"}},{"$cut":{"chars":90612,"head":"c7130675695b9a8d1013be84234dc700_x0001__x0002_Cash!E$18,$A1678))/1000_x0001__x0001__x0001__x0001__x0001__x0001__x0001__x0001__x0001__x0001__x0001__x0001__x0005__x0001__x0001__x0001_B1679*_x0001__x0001__x0001_=RiskData('Risk Summary'!J$48,$A1679)/1000_x0001__x0001__x0001__x0001__x0001__x0001__x0001__x0001__x0001__x0001__x0001__x0001__x0005__x0001__x0001__x0001_C1679*_x0001__x0001__x0001_=RiskData('Risk Summary'!K$48,$A1679)/1000_x0001__x0001__x0001__x0001__x0001__x0001__x0001__x0001__x0001__x0001__x0001__x0001__x0005__x0001__x0001__x0001_D1679*_x0001__x0001__x0001_=RiskData('Risk Summary'!L$48,$A1679)/1000_x0001__x0001__x0001__x0001__x0001__x0001__x0001__x0001__x0001__x0001__x0001__x0001__x0005__x0001__x0001__x0001_G1679(_x0001__x0001__x0001_=(R_x0001__x0002_iskData(NR_to_Cash!C$18,$A1679))/1000_x0001__x0001__x0001__x0001__x0001__x0001__x0001__x0001__x0001__x0001__x0001__x0001__x0005__x0001__x0001__x0001_H1679(_x0001__x0001__x0001_=(RiskData(NR_to_Cash!D$18,$A1679))/1000_x0001__x0001__x0001__x0001__x0001__x0001__x0001__x0001__x0001__x0001__x0001__x0001__x0005__x0001__x0001__x0001_I1679(_x0001__x0001__x0001_=(RiskData(NR_to_Cash!E$18,$A1679))/1000_x0001__x0001__x0001__x0001__x0001__x0001__x0001__x0001__x0001__x0001__x0001__x0001__x0005__x0001__x0001__x0001_B1680*_x0001__x0001__x0001_=RiskData('Risk Summary'!J$48,$A1680)/1000_x0001__x0001__x0001__x0001__x0001__x0001__x0001__x0001__x0001__x0001__x0001__x0001__x0005__x0001__x0001__x0001_C1_x0001__x0002_680*_x0001__x0001__x0001_=RiskData('Risk Summary'!K$48,$A1680)/1000_x0001__x0001__x0001__x0001__x0001__x0001__x0001__x0001__x0001__x0001__x0001__x0001__x0005__x0001__x0001__x0001_D1680*_x0001__x0001__x0001_=RiskData('Risk Summary'!L$48,$A1680)/1000_x0001__x0001__x0001__x0001__x0001__x0001__x0001__x0001__x0001__x0001__x0001__x0001__x0005__x0001__x0001__x0001_G1680(_x0001__x0001__x0001_=(RiskData(NR_to_Cash!C$18,$A1680))/1000_x0001__x0001__x0001__x0001__x0001__x0001__x0001__x0001__x0001__x0001__x0001__x0001__x0005__x0001__x0001__x0001_H1680(_x0001__x0001__x0001_=(RiskData(NR_to_Cash!D$18,$A1680))/1000_x0001__x0001__x0001__x0001__x0001__x0001__x0001__x0002__x0001__x0001__x0001__x0001__x0001__x0001__x0005__x0001__x0001__x0001_I1680(_x0001__x0001__x0001_=(RiskData(NR_to_Cash!E$18,$A1680))/1000_x0001__x0001__x0001__x0001__x0001__x0001__x0001__x0001__x0001__x0001__x0001__x0001__x0005__x0001__x0001__x0001_B1681*_x0001__x0001__x0001_=RiskData('Risk Summary'!J$48,$A1681)/1000_x0001__x0001__x0001__x0001__x0001__x0001__x0001__x0001__x0001__x0001__x0001__x0001__x0005__x0001__x0001__x0001_C1681*_x0001__x0001__x0001_=RiskData('Risk Summary'!K$48,$A1681)/1000_x0001__x0001__x0001__x0001__x0001__x0001__x0001__x0001__x0001__x0001__x0001__x0001__x0005__x0001__x0001__x0001_D1681*_x0001__x0001__x0001_=RiskData('Risk Summary'!L$48,$A16_x0001__x0002_81)/1000_x0001__x0001__x0001__x0001__x0001__x0001__x0001__x0001__x0001__x0001__x0001__x0001__x0005__x0001__x0001__x0001_G1681(_x0001__x0001__x0001_=(RiskData(NR_to_Cash!C$18,$A1681))/1000_x0001__x0001__x0001__x0001__x0001__x0001__x0001__x0001__x0001__x0001__x0001__x0001__x0005__x0001__x0001__x0001_H1681(_x0001__x0001__x0001_=(RiskData(NR_to_Cash!D$18,$A1681))/1000_x0001__x0001__x0001__x0001__x0001__x0001__x0001__x0001__x0001__x0001__x0001__x0001__x0005__x0001__x0001__x0001_I1681(_x0001__x0001__x0001_=(RiskData(NR_to_Cash!E$18,$A1681))/1000_x0001__x0001__x0001__x0001__x0001__x0001__x0001__x0001__x0001__x0001__x0001__x0001__x0005__x0001__x0001__x0001_B1682*_x0001__x0001__x0001_=RiskData('Risk Summary'_x0001__x0002_!J$48,$A1682)/1000_x0001__x0001__x0001__x0001__x0001__x0001__x0001__x0001__x0001__x0001__x0001__x0001__x0005__x0001__x0001__x0001_C1682*_x0001__x0001__x0001_=RiskData('Risk Summary'!K$48,$A1682)/1000_x0001__x0001__x0001__x0001__x0001__x0001__x0001__x0001__x0001__x0001__x0001__x0001__x0005__x0001__x0001__x0001_D1682*_x0001__x0001__x0001_=RiskData('Risk Summary'!L$48,$A1682)/1000_x0001__x0001__x0001__x0001__x0001__x0001__x0001__x0001__x0001__x0001__x0001__x0001__x0005__x0001__x0001__x0001_G1682(_x0001__x0001__x0001_=(RiskData(NR_to_Cash!C$18,$A1682))"}},{"$cut":{"chars":89808,"head":"18e857e7763f751b1cd637894f7efcf0_x0001__x0002_Summary'!J$48,$A1759)/1000_x0001__x0001__x0001__x0001__x0001__x0001__x0001__x0001__x0001__x0001__x0001__x0001__x0005__x0001__x0001__x0001_C1759*_x0001__x0001__x0001_=RiskData('Risk Summary'!K$48,$A1759)/1000_x0001__x0001__x0001__x0001__x0001__x0001__x0001__x0001__x0001__x0001__x0001__x0001__x0005__x0001__x0001__x0001_D1759*_x0001__x0001__x0001_=RiskData('Risk Summary'!L$48,$A1759)/1000_x0001__x0001__x0001__x0001__x0001__x0001__x0001__x0001__x0001__x0001__x0001__x0001__x0005__x0001__x0001__x0001_G1759(_x0001__x0001__x0001_=(RiskData(NR_to_Cash!C$18,$A1759))/1000_x0001__x0001__x0001__x0001__x0001__x0001__x0001__x0001__x0001__x0001__x0001__x0001__x0005__x0001__x0001__x0001_H1759(_x0001__x0001__x0001_=(_x0001__x0002_RiskData(NR_to_Cash!D$18,$A1759))/1000_x0001__x0001__x0001__x0001__x0001__x0001__x0001__x0001__x0001__x0001__x0001__x0001__x0005__x0001__x0001__x0001_I1759(_x0001__x0001__x0001_=(RiskData(NR_to_Cash!E$18,$A1759))/1000_x0001__x0001__x0001__x0001__x0001__x0001__x0001__x0001__x0001__x0001__x0001__x0001__x0005__x0001__x0001__x0001_B1760*_x0001__x0001__x0001_=RiskData('Risk Summary'!J$48,$A1760)/1000_x0001__x0001__x0001__x0001__x0001__x0001__x0001__x0001__x0001__x0001__x0001__x0001__x0005__x0001__x0001__x0001_C1760*_x0001__x0001__x0001_=RiskData('Risk Summary'!K$48,$A1760)/1000_x0001__x0001__x0001__x0001__x0001__x0001__x0001__x0001__x0001__x0001__x0001__x0001__x0005__x0001__x0001__x0001__x0002__x0001_D1760*_x0001__x0001__x0001_=RiskData('Risk Summary'!L$48,$A1760)/1000_x0001__x0001__x0001__x0001__x0001__x0001__x0001__x0001__x0001__x0001__x0001__x0001__x0005__x0001__x0001__x0001_G1760(_x0001__x0001__x0001_=(RiskData(NR_to_Cash!C$18,$A1760))/1000_x0001__x0001__x0001__x0001__x0001__x0001__x0001__x0001__x0001__x0001__x0001__x0001__x0005__x0001__x0001__x0001_H1760(_x0001__x0001__x0001_=(RiskData(NR_to_Cash!D$18,$A1760))/1000_x0001__x0001__x0001__x0001__x0001__x0001__x0001__x0001__x0001__x0001__x0001__x0001__x0005__x0001__x0001__x0001_I1760(_x0001__x0001__x0001_=(RiskData(NR_to_Cash!E$18,$A1760))/1000_x0001__x0001__x0001__x0001__x0001__x0001__x0002__x0001__x0001__x0001__x0001__x0001__x0001__x0001__x0005__x0001__x0001__x0001_B1761*_x0001__x0001__x0001_=RiskData('Risk Summary'!J$48,$A1761)/1000_x0001__x0001__x0001__x0001__x0001__x0001__x0001__x0001__x0001__x0001__x0001__x0001__x0005__x0001__x0001__x0001_C1761*_x0001__x0001__x0001_=RiskData('Risk Summary'!K$48,$A1761)/1000_x0001__x0001__x0001__x0001__x0001__x0001__x0001__x0001__x0001__x0001__x0001__x0001__x0005__x0001__x0001__x0001_D1761*_x0001__x0001__x0001_=RiskData('Risk Summary'!L$48,$A1761)/1000_x0001__x0001__x0001__x0001__x0001__x0001__x0001__x0001__x0001__x0001__x0001__x0001__x0005__x0001__x0001__x0001_G1761(_x0001__x0001__x0001_=(RiskData(NR_to_Cash!C$18,$A17_x0001__x0002_61))/1000_x0001__x0001__x0001__x0001__x0001__x0001__x0001__x0001__x0001__x0001__x0001__x0001__x0005__x0001__x0001__x0001_H1761(_x0001__x0001__x0001_=(RiskData(NR_to_Cash!D$18,$A1761))/1000_x0001__x0001__x0001__x0001__x0001__x0001__x0001__x0001__x0001__x0001__x0001__x0001__x0005__x0001__x0001__x0001_I1761(_x0001__x0001__x0001_=(RiskData(NR_to_Cash!E$18,$A1761))/1000_x0001__x0001__x0001__x0001__x0001__x0001__x0001__x0001__x0001__x0001__x0001__x0001__x0005__x0001__x0001__x0001_B1762*_x0001__x0001__x0001_=RiskData('Risk Summary'!J$48,$A1762)/1000_x0001__x0001__x0001__x0001__x0001__x0001__x0001__x0001__x0001__x0001__x0001__x0001__x0005__x0001__x0001__x0001_C1762*_x0001__x0001__x0001_=RiskData('Risk Summa_x0001__x0002_ry'!K$48,$A1762)/1000_x0001__x0001__x0001__x0001__x0001__x0001__x0001__x0001__x0001__x0001__x0001__x0001__x0005__x0001__x0001__x0001_D1762*_x0001__x0001__x0001_=RiskData('Risk Summary'!L$48,$A1762)/1000_x0001__x0001__x0001__x0001__x0001__x0001__x0001__x0001__x0001__x0001__x0001__x0001__x0005__x0001__x0001__x0001_G1762(_x0001__x0001__x0001_=(RiskData(NR_to_Cash!C$18,$A1762))/1000_x0001__x0001__x0001__x0001__x0001__x0001__x0001__x0001__x0001__x0001__x0001__x0001__x0005__x0001__x0001__x0001_H1762(_x0001__x0001__x0001_=(RiskData(NR_to_Cash!D$18,$A1762)"}},{"$cut":{"chars":90444,"head":"de5d36688d3017c6a1b2d7d1335613fa_x0001__x0002_0(_x0001__x0001__x0001_=(RiskData(NR_to_Cash!C$18,$A1840))/1000_x0001__x0001__x0001__x0001__x0001__x0001__x0001__x0001__x0001__x0001__x0001__x0001__x0005__x0001__x0001__x0001_H1840(_x0001__x0001__x0001_=(RiskData(NR_to_Cash!D$18,$A1840))/1000_x0001__x0001__x0001__x0001__x0001__x0001__x0001__x0001__x0001__x0001__x0001__x0001__x0005__x0001__x0001__x0001_I1840(_x0001__x0001__x0001_=(RiskData(NR_to_Cash!E$18,$A1840))/1000_x0001__x0001__x0001__x0001__x0001__x0001__x0001__x0001__x0001__x0001__x0001__x0001__x0005__x0001__x0001__x0001_B1841*_x0001__x0001__x0001_=RiskData('Risk Summary'!J$48,$A1841)/1000_x0001__x0001__x0001__x0001__x0001__x0001__x0001__x0001__x0001__x0001__x0001__x0002__x0001__x0001__x0005__x0001__x0001__x0001_C1841*_x0001__x0001__x0001_=RiskData('Risk Summary'!K$48,$A1841)/1000_x0001__x0001__x0001__x0001__x0001__x0001__x0001__x0001__x0001__x0001__x0001__x0001__x0005__x0001__x0001__x0001_D1841*_x0001__x0001__x0001_=RiskData('Risk Summary'!L$48,$A1841)/1000_x0001__x0001__x0001__x0001__x0001__x0001__x0001__x0001__x0001__x0001__x0001__x0001__x0005__x0001__x0001__x0001_G1841(_x0001__x0001__x0001_=(RiskData(NR_to_Cash!C$18,$A1841))/1000_x0001__x0001__x0001__x0001__x0001__x0001__x0001__x0001__x0001__x0001__x0001__x0001__x0005__x0001__x0001__x0001_H1841(_x0001__x0001__x0001_=(RiskData(NR_to_Cash!D$18,$A1841))/10_x0001__x0002_00_x0001__x0001__x0001__x0001__x0001__x0001__x0001__x0001__x0001__x0001__x0001__x0001__x0005__x0001__x0001__x0001_I1841(_x0001__x0001__x0001_=(RiskData(NR_to_Cash!E$18,$A1841))/1000_x0001__x0001__x0001__x0001__x0001__x0001__x0001__x0001__x0001__x0001__x0001__x0001__x0005__x0001__x0001__x0001_B1842*_x0001__x0001__x0001_=RiskData('Risk Summary'!J$48,$A1842)/1000_x0001__x0001__x0001__x0001__x0001__x0001__x0001__x0001__x0001__x0001__x0001__x0001__x0005__x0001__x0001__x0001_C1842*_x0001__x0001__x0001_=RiskData('Risk Summary'!K$48,$A1842)/1000_x0001__x0001__x0001__x0001__x0001__x0001__x0001__x0001__x0001__x0001__x0001__x0001__x0005__x0001__x0001__x0001_D1842*_x0001__x0001__x0001_=RiskData('Risk Summary'!L_x0001__x0002_$48,$A1842)/1000_x0001__x0001__x0001__x0001__x0001__x0001__x0001__x0001__x0001__x0001__x0001__x0001__x0005__x0001__x0001__x0001_G1842(_x0001__x0001__x0001_=(RiskData(NR_to_Cash!C$18,$A1842))/1000_x0001__x0001__x0001__x0001__x0001__x0001__x0001__x0001__x0001__x0001__x0001__x0001__x0005__x0001__x0001__x0001_H1842(_x0001__x0001__x0001_=(RiskData(NR_to_Cash!D$18,$A1842))/1000_x0001__x0001__x0001__x0001__x0001__x0001__x0001__x0001__x0001__x0001__x0001__x0001__x0005__x0001__x0001__x0001_I1842(_x0001__x0001__x0001_=(RiskData(NR_to_Cash!E$18,$A1842))/1000_x0001__x0001__x0001__x0001__x0001__x0001__x0001__x0001__x0001__x0001__x0001__x0001__x0005__x0001__x0001__x0001_B1843*_x0001__x0001__x0001_=RiskData('Risk _x0001__x0002_Summary'!J$48,$A1843)/1000_x0001__x0001__x0001__x0001__x0001__x0001__x0001__x0001__x0001__x0001__x0001__x0001__x0005__x0001__x0001__x0001_C1843*_x0001__x0001__x0001_=RiskData('Risk Summary'!K$48,$A1843)/1000_x0001__x0001__x0001__x0001__x0001__x0001__x0001__x0001__x0001__x0001__x0001__x0001__x0005__x0001__x0001__x0001_D1843*_x0001__x0001__x0001_=RiskData('Risk Summary'!L$48,$A1843)/1000_x0001__x0001__x0001__x0001__x0001__x0001__x0001__x0001__x0001__x0001__x0001__x0001__x0005__x0001__x0001__x0001_G1843(_x0001__x0001__x0001_=(RiskData(NR_to_Cash!C$18,$A1843))/1000_x0001__x0001__x0001__x0001__x0001__x0001__x0001__x0001__x0001__x0001__x0001__x0001__x0005__x0001__x0001__x0001_H1843(_x0001__x0001__x0001_=(_x0001__x0002_RiskData(NR_to_Cash!D$18,$A1843))/1000_x0001__x0001__x0001__x0001__x0001__x0001__x0001__x0001__x0001__x0001__x0001__x0001__x0005__x0001__x0001__x0001_I1843(_x0001__x0001__x0001_=(RiskData(NR_to_Cash!E$18,$A1843))/1000_x0001__x0001__x0001__x0001__x0001__x0001__x0001__x0001__x0001__x0001__x0001__x0001__x0005__x0001__x0001__x0001_B1844*_x0001__x0001__x0001_=RiskData('Risk Summary'!J$48,$A1844)/1000_x0001__x0001__x0001__x0001__x0001__x0001__x0001__x0001__x0001__x0001__x0001__x0001__x0005__x0001__x0001__x0001_C1844*_x0001__x0001__x0001"}},{"$cut":{"chars":89742,"head":"96a2918ce9593a5e5097ca993443a2d5_x0001__x0002_20(_x0001__x0001__x0001_=(RiskData(NR_to_Cash!D$18,$A1920))/1000_x0001__x0001__x0001__x0001__x0001__x0001__x0001__x0001__x0001__x0001__x0001__x0001__x0005__x0001__x0001__x0001_I1920(_x0001__x0001__x0001_=(RiskData(NR_to_Cash!E$18,$A1920))/1000_x0001__x0001__x0001__x0001__x0001__x0001__x0001__x0001__x0001__x0001__x0001__x0001__x0005__x0001__x0001__x0001_B1921*_x0001__x0001__x0001_=RiskData('Risk Summary'!J$48,$A1921)/1000_x0001__x0001__x0001__x0001__x0001__x0001__x0001__x0001__x0001__x0001__x0001__x0001__x0005__x0001__x0001__x0001_C1921*_x0001__x0001__x0001_=RiskData('Risk Summary'!K$48,$A1921)/1000_x0001__x0001__x0001__x0001__x0001__x0001__x0001__x0001__x0002__x0001__x0001__x0001__x0001__x0001__x0005__x0001__x0001__x0001_D1921*_x0001__x0001__x0001_=RiskData('Risk Summary'!L$48,$A1921)/1000_x0001__x0001__x0001__x0001__x0001__x0001__x0001__x0001__x0001__x0001__x0001__x0001__x0005__x0001__x0001__x0001_G1921(_x0001__x0001__x0001_=(RiskData(NR_to_Cash!C$18,$A1921))/1000_x0001__x0001__x0001__x0001__x0001__x0001__x0001__x0001__x0001__x0001__x0001__x0001__x0005__x0001__x0001__x0001_H1921(_x0001__x0001__x0001_=(RiskData(NR_to_Cash!D$18,$A1921))/1000_x0001__x0001__x0001__x0001__x0001__x0001__x0001__x0001__x0001__x0001__x0001__x0001__x0005__x0001__x0001__x0001_I1921(_x0001__x0001__x0001_=(RiskData(NR_to_Cash!E$18,$A1921))/1_x0001__x0002_000_x0001__x0001__x0001__x0001__x0001__x0001__x0001__x0001__x0001__x0001__x0001__x0001__x0005__x0001__x0001__x0001_B1922*_x0001__x0001__x0001_=RiskData('Risk Summary'!J$48,$A1922)/1000_x0001__x0001__x0001__x0001__x0001__x0001__x0001__x0001__x0001__x0001__x0001__x0001__x0005__x0001__x0001__x0001_C1922*_x0001__x0001__x0001_=RiskData('Risk Summary'!K$48,$A1922)/1000_x0001__x0001__x0001__x0001__x0001__x0001__x0001__x0001__x0001__x0001__x0001__x0001__x0005__x0001__x0001__x0001_D1922*_x0001__x0001__x0001_=RiskData('Risk Summary'!L$48,$A1922)/1000_x0001__x0001__x0001__x0001__x0001__x0001__x0001__x0001__x0001__x0001__x0001__x0001__x0005__x0001__x0001__x0001_G1922(_x0001__x0001__x0001_=(RiskData(NR_to_Cash!C_x0001__x0002_$18,$A1922))/1000_x0001__x0001__x0001__x0001__x0001__x0001__x0001__x0001__x0001__x0001__x0001__x0001__x0005__x0001__x0001__x0001_H1922(_x0001__x0001__x0001_=(RiskData(NR_to_Cash!D$18,$A1922))/1000_x0001__x0001__x0001__x0001__x0001__x0001__x0001__x0001__x0001__x0001__x0001__x0001__x0005__x0001__x0001__x0001_I1922(_x0001__x0001__x0001_=(RiskData(NR_to_Cash!E$18,$A1922))/1000_x0001__x0001__x0001__x0001__x0001__x0001__x0001__x0001__x0001__x0001__x0001__x0001__x0005__x0001__x0001__x0001_B1923*_x0001__x0001__x0001_=RiskData('Risk Summary'!J$48,$A1923)/1000_x0001__x0001__x0001__x0001__x0001__x0001__x0001__x0001__x0001__x0001__x0001__x0001__x0005__x0001__x0001__x0001_C1923*_x0001__x0001__x0001_=RiskData('Ri_x0001__x0002_sk Summary'!K$48,$A1923)/1000_x0001__x0001__x0001__x0001__x0001__x0001__x0001__x0001__x0001__x0001__x0001__x0001__x0005__x0001__x0001__x0001_D1923*_x0001__x0001__x0001_=RiskData('Risk Summary'!L$48,$A1923)/1000_x0001__x0001__x0001__x0001__x0001__x0001__x0001__x0001__x0001__x0001__x0001__x0001__x0005__x0001__x0001__x0001_G1923(_x0001__x0001__x0001_=(RiskData(NR_to_Cash!C$18,$A1923))/1000_x0001__x0001__x0001__x0001__x0001__x0001__x0001__x0001__x0001__x0001__x0001__x0001__x0005__x0001__x0001__x0001_H1923(_x0001__x0001__x0001_=(RiskData(NR_to_Cash!D$18,$A1923))/1000_x0001__x0001__x0001__x0001__x0001__x0001__x0001__x0001__x0001__x0001__x0001__x0001__x0005__x0001__x0001__x0001_I1923(_x0001__x0001__x0001_=_x0001__x0002_(RiskData(NR_to_Cash!E$18,$A1923))/1000_x0001__x0001__x0001__x0001__x0001__x0001__x0001__x0001__x0001__x0001__x0001__x0001__x0005__x0001__x0001__x0001_B1924*_x0001__x0001__x0001_=RiskData('Risk Summary'!J$48,$A1924)/1000_x0001__x0001__x0001__x0001__x0001__x0001__x0001__x0001__x0001__x0001__x0001__x0001__x0005__x0001__x0001__x0001_C1924*_x0001__x0001__x0001_=RiskData('Risk Summary'!K$48,$A1924)/1000_x0001__x0001__x0001__x0001__x0001__x0001__x0001__x0001__x0001__x0001__x0001__x0001__x0005__x0001__x0001__x0001_D1924*_x0001__x0001__x0"}},{"$cut":{"chars":90594,"head":"e5ec30d66beeebca49f4b37afdbba5c4_x0001__x0002__x0001__x0001__x0001__x0001__x0001__x0001__x0001__x0001__x0001__x0001__x0005__x0001__x0001__x0001_C2002*_x0001__x0001__x0001_=RiskData('Risk Summary'!K$48,$A2002)/1000_x0001__x0001__x0001__x0001__x0001__x0001__x0001__x0001__x0001__x0001__x0001__x0001__x0005__x0001__x0001__x0001_D2002*_x0001__x0001__x0001_=RiskData('Risk Summary'!L$48,$A2002)/1000_x0001__x0001__x0001__x0001__x0001__x0001__x0001__x0001__x0001__x0001__x0001__x0001__x0005__x0001__x0001__x0001_G2002(_x0001__x0001__x0001_=(RiskData(NR_to_Cash!C$18,$A2002))/1000_x0001__x0001__x0001__x0001__x0001__x0001__x0001__x0001__x0001__x0001__x0001__x0001__x0005__x0001__x0001__x0001_H2002(_x0001__x0001__x0001_=(RiskData(NR_to_Cash!D$18,$A2_x0001__x0002_002))/1000_x0001__x0001__x0001__x0001__x0001__x0001__x0001__x0001__x0001__x0001__x0001__x0001__x0005__x0001__x0001__x0001_I2002(_x0001__x0001__x0001_=(RiskData(NR_to_Cash!E$18,$A2002))/1000_x0001__x0001__x0001__x0001__x0001__x0001__x0001__x0001__x0001__x0001__x0001__x0001__x0005__x0001__x0001__x0001_B2003*_x0001__x0001__x0001_=RiskData('Risk Summary'!J$48,$A2003)/1000_x0001__x0001__x0001__x0001__x0001__x0001__x0001__x0001__x0001__x0001__x0001__x0001__x0005__x0001__x0001__x0001_C2003*_x0001__x0001__x0001_=RiskData('Risk Summary'!K$48,$A2003)/1000_x0001__x0001__x0001__x0001__x0001__x0001__x0001__x0001__x0001__x0001__x0001__x0001__x0005__x0001__x0001__x0001_D2003*_x0001__x0001__x0001_=RiskData('Risk Su_x0001__x0002_mmary'!L$48,$A2003)/1000_x0001__x0001__x0001__x0001__x0001__x0001__x0001__x0001__x0001__x0001__x0001__x0001__x0005__x0001__x0001__x0001_G2003(_x0001__x0001__x0001_=(RiskData(NR_to_Cash!C$18,$A2003))/1000_x0001__x0001__x0001__x0001__x0001__x0001__x0001__x0001__x0001__x0001__x0001__x0001__x0005__x0001__x0001__x0001_H2003(_x0001__x0001__x0001_=(RiskData(NR_to_Cash!D$18,$A2003))/1000_x0001__x0001__x0001__x0001__x0001__x0001__x0001__x0001__x0001__x0001__x0001__x0001__x0005__x0001__x0001__x0001_I2003(_x0001__x0001__x0001_=(RiskData(NR_to_Cash!E$18,$A2003))/1000_x0001__x0001__x0001__x0001__x0001__x0001__x0001__x0001__x0001__x0001__x0001__x0001__x0005__x0001__x0001__x0001_B2004*_x0001__x0001__x0001_=RiskDat_x0001__x0002_a('Risk Summary'!J$48,$A2004)/1000_x0001__x0001__x0001__x0001__x0001__x0001__x0001__x0001__x0001__x0001__x0001__x0001__x0005__x0001__x0001__x0001_C2004*_x0001__x0001__x0001_=RiskData('Risk Summary'!K$48,$A2004)/1000_x0001__x0001__x0001__x0001__x0001__x0001__x0001__x0001__x0001__x0001__x0001__x0001__x0005__x0001__x0001__x0001_D2004*_x0001__x0001__x0001_=RiskData('Risk Summary'!L$48,$A2004)/1000_x0001__x0001__x0001__x0001__x0001__x0001__x0001__x0001__x0001__x0001__x0001__x0001__x0005__x0001__x0001__x0001_G2004(_x0001__x0001__x0001_=(RiskData(NR_to_Cash!C$18,$A2004))/1000_x0001__x0001__x0001__x0001__x0001__x0001__x0001__x0001__x0001__x0001__x0001__x0001__x0005__x0001__x0001__x0001_H20_x0001__x0002_04(_x0001__x0001__x0001_=(RiskData(NR_to_Cash!D$18,$A2004))/1000_x0001__x0001__x0001__x0001__x0001__x0001__x0001__x0001__x0001__x0001__x0001__x0001__x0005__x0001__x0001__x0001_I2004(_x0001__x0001__x0001_=(RiskData(NR_to_Cash!E$18,$A2004))/1000_x0001__x0001__x0001__x0001__x0001__x0001__x0001__x0001__x0001__x0001__x0001__x0001__x0005__x0001__x0001__x0001_B2005*_x0001__x0001__x0001_=RiskData('Risk Summary'!J$48,$A2005)/1000_x0001__x0001__x0001__x0001__x0001__x0001__x0001__x0001__x0001__x0001__x0001__x0001__x0005__x0001__x0001__x0001_C2005*_x0001__x0001__x0001_=RiskData('Risk Summary'!K$48,$A2005)/1000_x0001__x0001__x0001__x0001__x0001__x0001__x0001__x0001__x0002__x0001__x0001__x0001__x0001__x0001__x0005__x0001__x0001__x0001_D2005*_x0001__x0001__x0001_=RiskData('Risk Summary'!L$48,$A2005)/1000_x0001__x0001__x0001__x0001__x0001__x0001__x0001__x0001__x0001__x0001__x0001__x0001__x0005__x0001__x0001__x0001_G2005(_x0001__x0001__x0001_=(RiskData(NR_to_Cash!C$18,$A2005))/1000_x0001__x0001__x0001__x0001__x0001__x0001__x0001__x0001__x0001__x0001__x0001__x0001__x0005__x0001__x0001__x0001_H2005(_x0001__x0001__x0001_=(RiskData(NR_to_Cash!D$18,$A2005))/1000_x0001__x0001__x0001__x0001__x0001"}},{"$cut":{"chars":89826,"head":"28997331e8216693bd24c1af1b283e9b_x0001__x0002_0_x0001__x0001__x0001__x0001__x0001__x0001__x0001__x0001__x0001__x0001__x0001__x0001__x0005__x0001__x0001__x0001_D2082*_x0001__x0001__x0001_=RiskData('Risk Summary'!L$48,$A2082)/1000_x0001__x0001__x0001__x0001__x0001__x0001__x0001__x0001__x0001__x0001__x0001__x0001__x0005__x0001__x0001__x0001_G2082(_x0001__x0001__x0001_=(RiskData(NR_to_Cash!C$18,$A2082))/1000_x0001__x0001__x0001__x0001__x0001__x0001__x0001__x0001__x0001__x0001__x0001__x0001__x0005__x0001__x0001__x0001_H2082(_x0001__x0001__x0001_=(RiskData(NR_to_Cash!D$18,$A2082))/1000_x0001__x0001__x0001__x0001__x0001__x0001__x0001__x0001__x0001__x0001__x0001__x0001__x0005__x0001__x0001__x0001_I2082(_x0001__x0001__x0001_=(RiskData(NR_to_Cash!E$18,$A_x0001__x0002_2082))/1000_x0001__x0001__x0001__x0001__x0001__x0001__x0001__x0001__x0001__x0001__x0001__x0001__x0005__x0001__x0001__x0001_B2083*_x0001__x0001__x0001_=RiskData('Risk Summary'!J$48,$A2083)/1000_x0001__x0001__x0001__x0001__x0001__x0001__x0001__x0001__x0001__x0001__x0001__x0001__x0005__x0001__x0001__x0001_C2083*_x0001__x0001__x0001_=RiskData('Risk Summary'!K$48,$A2083)/1000_x0001__x0001__x0001__x0001__x0001__x0001__x0001__x0001__x0001__x0001__x0001__x0001__x0005__x0001__x0001__x0001_D2083*_x0001__x0001__x0001_=RiskData('Risk Summary'!L$48,$A2083)/1000_x0001__x0001__x0001__x0001__x0001__x0001__x0001__x0001__x0001__x0001__x0001__x0001__x0005__x0001__x0001__x0001_G2083(_x0001__x0001__x0001_=(RiskData(NR_t_x0001__x0002_o_Cash!C$18,$A2083))/1000_x0001__x0001__x0001__x0001__x0001__x0001__x0001__x0001__x0001__x0001__x0001__x0001__x0005__x0001__x0001__x0001_H2083(_x0001__x0001__x0001_=(RiskData(NR_to_Cash!D$18,$A2083))/1000_x0001__x0001__x0001__x0001__x0001__x0001__x0001__x0001__x0001__x0001__x0001__x0001__x0005__x0001__x0001__x0001_I2083(_x0001__x0001__x0001_=(RiskData(NR_to_Cash!E$18,$A2083))/1000_x0001__x0001__x0001__x0001__x0001__x0001__x0001__x0001__x0001__x0001__x0001__x0001__x0005__x0001__x0001__x0001_B2084*_x0001__x0001__x0001_=RiskData('Risk Summary'!J$48,$A2084)/1000_x0001__x0001__x0001__x0001__x0001__x0001__x0001__x0001__x0001__x0001__x0001__x0001__x0005__x0001__x0001__x0001_C2084*_x0001__x0001__x0001_=Risk_x0001__x0002_Data('Risk Summary'!K$48,$A2084)/1000_x0001__x0001__x0001__x0001__x0001__x0001__x0001__x0001__x0001__x0001__x0001__x0001__x0005__x0001__x0001__x0001_D2084*_x0001__x0001__x0001_=RiskData('Risk Summary'!L$48,$A2084)/1000_x0001__x0001__x0001__x0001__x0001__x0001__x0001__x0001__x0001__x0001__x0001__x0001__x0005__x0001__x0001__x0001_G2084(_x0001__x0001__x0001_=(RiskData(NR_to_Cash!C$18,$A2084))/1000_x0001__x0001__x0001__x0001__x0001__x0001__x0001__x0001__x0001__x0001__x0001__x0001__x0005__x0001__x0001__x0001_H2084(_x0001__x0001__x0001_=(RiskData(NR_to_Cash!D$18,$A2084))/1000_x0001__x0001__x0001__x0001__x0001__x0001__x0001__x0001__x0001__x0001__x0001__x0001__x0005__x0001__x0001__x0001_I2_x0001__x0002_084(_x0001__x0001__x0001_=(RiskData(NR_to_Cash!E$18,$A2084))/1000_x0001__x0001__x0001__x0001__x0001__x0001__x0001__x0001__x0001__x0001__x0001__x0001__x0005__x0001__x0001__x0001_B2085*_x0001__x0001__x0001_=RiskData('Risk Summary'!J$48,$A2085)/1000_x0001__x0001__x0001__x0001__x0001__x0001__x0001__x0001__x0001__x0001__x0001__x0001__x0005__x0001__x0001__x0001_C2085*_x0001__x0001__x0001_=RiskData('Risk Summary'!K$48,$A2085)/1000_x0001__x0001__x0001__x0001__x0001__x0001__x0001__x0001__x0001__x0001__x0001__x0001__x0005__x0001__x0001__x0001_D2085*_x0001__x0001__x0001_=RiskData('Risk Summary'!L$48,$A2085)/1000_x0001__x0001__x0001__x0001__x0001__x0002__x0001__x0001__x0001__x0001__x0001__x0001__x0001__x0001__x0005__x0001__x0001__x0001_G2085(_x0001__x0001__x0001_=(RiskData(NR_to_Cash!C$18,$A2085))/1000_x0001__x0001__x0001__x0001__x0001__x0001__x0001__x0001__x0001__x0001__x0001__x0001__x0005__x0001__x0001__x0001_H2085(_x0001__x0001__x0001_=(RiskData(NR_to_Cash!D$18,$A2085))/1000_x0001__x0001__x0001__x0001__x0001__x0001__x0001__x0001__x0001__x0001__x0001__x0001__x0005__x0001__x0001__x0001_I2085(_x0001__x0001__x0001_=(RiskData(NR_to_Cash!E$18,$A2085))/1000_x0001__x0001__x0001_"}},{"$cut":{"chars":90444,"head":"33b5298bfccd03fcdd68cb25ed85a9e4_x0001__x0002_D$18,$A2163))/1000_x0001__x0001__x0001__x0001__x0001__x0001__x0001__x0001__x0001__x0001__x0001__x0001__x0005__x0001__x0001__x0001_I2163(_x0001__x0001__x0001_=(RiskData(NR_to_Cash!E$18,$A2163))/1000_x0001__x0001__x0001__x0001__x0001__x0001__x0001__x0001__x0001__x0001__x0001__x0001__x0005__x0001__x0001__x0001_B2164*_x0001__x0001__x0001_=RiskData('Risk Summary'!J$48,$A2164)/1000_x0001__x0001__x0001__x0001__x0001__x0001__x0001__x0001__x0001__x0001__x0001__x0001__x0005__x0001__x0001__x0001_C2164*_x0001__x0001__x0001_=RiskData('Risk Summary'!K$48,$A2164)/1000_x0001__x0001__x0001__x0001__x0001__x0001__x0001__x0001__x0001__x0001__x0001__x0001__x0005__x0001__x0001__x0001_D2164*_x0001__x0001__x0001_=RiskData(_x0001__x0002_'Risk Summary'!L$48,$A2164)/1000_x0001__x0001__x0001__x0001__x0001__x0001__x0001__x0001__x0001__x0001__x0001__x0001__x0005__x0001__x0001__x0001_G2164(_x0001__x0001__x0001_=(RiskData(NR_to_Cash!C$18,$A2164))/1000_x0001__x0001__x0001__x0001__x0001__x0001__x0001__x0001__x0001__x0001__x0001__x0001__x0005__x0001__x0001__x0001_H2164(_x0001__x0001__x0001_=(RiskData(NR_to_Cash!D$18,$A2164))/1000_x0001__x0001__x0001__x0001__x0001__x0001__x0001__x0001__x0001__x0001__x0001__x0001__x0005__x0001__x0001__x0001_I2164(_x0001__x0001__x0001_=(RiskData(NR_to_Cash!E$18,$A2164))/1000_x0001__x0001__x0001__x0001__x0001__x0001__x0001__x0001__x0001__x0001__x0001__x0001__x0005__x0001__x0001__x0001_B2165*_x0001__x0001__x0001__x0001__x0002_=RiskData('Risk Summary'!J$48,$A2165)/1000_x0001__x0001__x0001__x0001__x0001__x0001__x0001__x0001__x0001__x0001__x0001__x0001__x0005__x0001__x0001__x0001_C2165*_x0001__x0001__x0001_=RiskData('Risk Summary'!K$48,$A2165)/1000_x0001__x0001__x0001__x0001__x0001__x0001__x0001__x0001__x0001__x0001__x0001__x0001__x0005__x0001__x0001__x0001_D2165*_x0001__x0001__x0001_=RiskData('Risk Summary'!L$48,$A2165)/1000_x0001__x0001__x0001__x0001__x0001__x0001__x0001__x0001__x0001__x0001__x0001__x0001__x0005__x0001__x0001__x0001_G2165(_x0001__x0001__x0001_=(RiskData(NR_to_Cash!C$18,$A2165))/1000_x0001__x0001__x0001__x0001__x0001__x0001__x0001__x0001__x0001__x0001__x0001__x0001__x0002__x0001__x0005__x0001__x0001__x0001_H2165(_x0001__x0001__x0001_=(RiskData(NR_to_Cash!D$18,$A2165))/1000_x0001__x0001__x0001__x0001__x0001__x0001__x0001__x0001__x0001__x0001__x0001__x0001__x0005__x0001__x0001__x0001_I2165(_x0001__x0001__x0001_=(RiskData(NR_to_Cash!E$18,$A2165))/1000_x0001__x0001__x0001__x0001__x0001__x0001__x0001__x0001__x0001__x0001__x0001__x0001__x0005__x0001__x0001__x0001_B2166*_x0001__x0001__x0001_=RiskData('Risk Summary'!J$48,$A2166)/1000_x0001__x0001__x0001__x0001__x0001__x0001__x0001__x0001__x0001__x0001__x0001__x0001__x0005__x0001__x0001__x0001_C2166*_x0001__x0001__x0001_=RiskData('Risk Summary'!K$48,$A2166)/100_x0001__x0002_0_x0001__x0001__x0001__x0001__x0001__x0001__x0001__x0001__x0001__x0001__x0001__x0001__x0005__x0001__x0001__x0001_D2166*_x0001__x0001__x0001_=RiskData('Risk Summary'!L$48,$A2166)/1000_x0001__x0001__x0001__x0001__x0001__x0001__x0001__x0001__x0001__x0001__x0001__x0001__x0005__x0001__x0001__x0001_G2166(_x0001__x0001__x0001_=(RiskData(NR_to_Cash!C$18,$A2166))/1000_x0001__x0001__x0001__x0001__x0001__x0001__x0001__x0001__x0001__x0001__x0001__x0001__x0005__x0001__x0001__x0001_H2166(_x0001__x0001__x0001_=(RiskData(NR_to_Cash!D$18,$A2166))/1000_x0001__x0001__x0001__x0001__x0001__x0001__x0001__x0001__x0001__x0001__x0001__x0001__x0005__x0001__x0001__x0001_I2166(_x0001__x0001__x0001_=(RiskData(NR_to_Cash!E$18,$A_x0001__x0002_2166))/1000_x0001__x0001__x0001__x0001__x0001__x0001__x0001__x0001__x0001__x0001__x0001__x0001__x0005__x0001__x0001__x0001_B2167*_x0001__x0001__x0001_=RiskData('Risk Summary'!J$48,$A2167)/1000_x0001__x0001__x0001__x0001__x0001__x0001__x0001__x0001__x0001__x0001__x0001__x0001__x0005__x0001__x0001__x0001_C2167*_x0001__x0001__x0001_=RiskData('Risk Summary'!K$48,$A2167)/1000_x0001__x0001__x0001__x0001__x0001__x0001__x0001__x0001__x0001__x0001__x0001__x0001__x0005__x0001__x0001__x0001_D2167*_x0001__x0001__x0001_=RiskData('Risk Summary'!L$48,$A2167)/1000"}},{"$cut":{"chars":89826,"head":"84963103cec2c70d30c1e31908946ac5_x0001__x0002_!E$18,$A2243))/1000_x0001__x0001__x0001__x0001__x0001__x0001__x0001__x0001__x0001__x0001__x0001__x0001__x0005__x0001__x0001__x0001_B2244*_x0001__x0001__x0001_=RiskData('Risk Summary'!J$48,$A2244)/1000_x0001__x0001__x0001__x0001__x0001__x0001__x0001__x0001__x0001__x0001__x0001__x0001__x0005__x0001__x0001__x0001_C2244*_x0001__x0001__x0001_=RiskData('Risk Summary'!K$48,$A2244)/1000_x0001__x0001__x0001__x0001__x0001__x0001__x0001__x0001__x0001__x0001__x0001__x0001__x0005__x0001__x0001__x0001_D2244*_x0001__x0001__x0001_=RiskData('Risk Summary'!L$48,$A2244)/1000_x0001__x0001__x0001__x0001__x0001__x0001__x0001__x0001__x0001__x0001__x0001__x0001__x0005__x0001__x0001__x0001_G2244(_x0001__x0001__x0001_=(RiskD_x0001__x0002_ata(NR_to_Cash!C$18,$A2244))/1000_x0001__x0001__x0001__x0001__x0001__x0001__x0001__x0001__x0001__x0001__x0001__x0001__x0005__x0001__x0001__x0001_H2244(_x0001__x0001__x0001_=(RiskData(NR_to_Cash!D$18,$A2244))/1000_x0001__x0001__x0001__x0001__x0001__x0001__x0001__x0001__x0001__x0001__x0001__x0001__x0005__x0001__x0001__x0001_I2244(_x0001__x0001__x0001_=(RiskData(NR_to_Cash!E$18,$A2244))/1000_x0001__x0001__x0001__x0001__x0001__x0001__x0001__x0001__x0001__x0001__x0001__x0001__x0005__x0001__x0001__x0001_B2245*_x0001__x0001__x0001_=RiskData('Risk Summary'!J$48,$A2245)/1000_x0001__x0001__x0001__x0001__x0001__x0001__x0001__x0001__x0001__x0001__x0001__x0001__x0005__x0001__x0001__x0001_C2245*_x0001__x0002__x0001__x0001__x0001_=RiskData('Risk Summary'!K$48,$A2245)/1000_x0001__x0001__x0001__x0001__x0001__x0001__x0001__x0001__x0001__x0001__x0001__x0001__x0005__x0001__x0001__x0001_D2245*_x0001__x0001__x0001_=RiskData('Risk Summary'!L$48,$A2245)/1000_x0001__x0001__x0001__x0001__x0001__x0001__x0001__x0001__x0001__x0001__x0001__x0001__x0005__x0001__x0001__x0001_G2245(_x0001__x0001__x0001_=(RiskData(NR_to_Cash!C$18,$A2245))/1000_x0001__x0001__x0001__x0001__x0001__x0001__x0001__x0001__x0001__x0001__x0001__x0001__x0005__x0001__x0001__x0001_H2245(_x0001__x0001__x0001_=(RiskData(NR_to_Cash!D$18,$A2245))/1000_x0001__x0001__x0001__x0001__x0001__x0001__x0001__x0001__x0001__x0001__x0001__x0002__x0001__x0001__x0005__x0001__x0001__x0001_I2245(_x0001__x0001__x0001_=(RiskData(NR_to_Cash!E$18,$A2245))/1000_x0001__x0001__x0001__x0001__x0001__x0001__x0001__x0001__x0001__x0001__x0001__x0001__x0005__x0001__x0001__x0001_B2246*_x0001__x0001__x0001_=RiskData('Risk Summary'!J$48,$A2246)/1000_x0001__x0001__x0001__x0001__x0001__x0001__x0001__x0001__x0001__x0001__x0001__x0001__x0005__x0001__x0001__x0001_C2246*_x0001__x0001__x0001_=RiskData('Risk Summary'!K$48,$A2246)/1000_x0001__x0001__x0001__x0001__x0001__x0001__x0001__x0001__x0001__x0001__x0001__x0001__x0005__x0001__x0001__x0001_D2246*_x0001__x0001__x0001_=RiskData('Risk Summary'!L$48,$A2246)/_x0001__x0002_1000_x0001__x0001__x0001__x0001__x0001__x0001__x0001__x0001__x0001__x0001__x0001__x0001__x0005__x0001__x0001__x0001_G2246(_x0001__x0001__x0001_=(RiskData(NR_to_Cash!C$18,$A2246))/1000_x0001__x0001__x0001__x0001__x0001__x0001__x0001__x0001__x0001__x0001__x0001__x0001__x0005__x0001__x0001__x0001_H2246(_x0001__x0001__x0001_=(RiskData(NR_to_Cash!D$18,$A2246))/1000_x0001__x0001__x0001__x0001__x0001__x0001__x0001__x0001__x0001__x0001__x0001__x0001__x0005__x0001__x0001__x0001_I2246(_x0001__x0001__x0001_=(RiskData(NR_to_Cash!E$18,$A2246))/1000_x0001__x0001__x0001__x0001__x0001__x0001__x0001__x0001__x0001__x0001__x0001__x0001__x0005__x0001__x0001__x0001_B2247*_x0001__x0001__x0001_=RiskData('Risk Summary'!J$4_x0001__x0002_8,$A2247)/1000_x0001__x0001__x0001__x0001__x0001__x0001__x0001__x0001__x0001__x0001__x0001__x0001__x0005__x0001__x0001__x0001_C2247*_x0001__x0001__x0001_=RiskData('Risk Summary'!K$48,$A2247)/1000_x0001__x0001__x0001__x0001__x0001__x0001__x0001__x0001__x0001__x0001__x0001__x0001__x0005__x0001__x0001__x0001_D2247*_x0001__x0001__x0001_=RiskData('Risk Summary'!L$48,$A2247)/1000_x0001__x0001__x0001__x0001__x0001__x0001__x0001__x0001__x0001__x0001__x0001__x0001__x0005__x0001__x0001__x0001_G2247(_x0001__x0001__x0001_=(RiskData(NR_to_Cash!C$18,$A2247))/100"}},{"$cut":{"chars":89772,"head":"679407fb61fec9afee52f06a8d3001b5_x0001__x0002_iskData('Risk Summary'!L$48,$A2325)/1000_x0001__x0001__x0001__x0001__x0001__x0001__x0001__x0001__x0001__x0001__x0001__x0001__x0005__x0001__x0001__x0001_G2325(_x0001__x0001__x0001_=(RiskData(NR_to_Cash!C$18,$A2325))/1000_x0001__x0001__x0001__x0001__x0001__x0001__x0001__x0001__x0001__x0001__x0001__x0001__x0005__x0001__x0001__x0001_H2325(_x0001__x0001__x0001_=(RiskData(NR_to_Cash!D$18,$A2325))/1000_x0001__x0001__x0001__x0001__x0001__x0001__x0001__x0001__x0001__x0001__x0001__x0001__x0005__x0001__x0001__x0001_I2325(_x0001__x0001__x0001_=(RiskData(NR_to_Cash!E$18,$A2325))/1000_x0001__x0001__x0001__x0001__x0001__x0001__x0001__x0001__x0001__x0001__x0001__x0001__x0005__x0001__x0001__x0001_B_x0001__x0002_2326*_x0001__x0001__x0001_=RiskData('Risk Summary'!J$48,$A2326)/1000_x0001__x0001__x0001__x0001__x0001__x0001__x0001__x0001__x0001__x0001__x0001__x0001__x0005__x0001__x0001__x0001_C2326*_x0001__x0001__x0001_=RiskData('Risk Summary'!K$48,$A2326)/1000_x0001__x0001__x0001__x0001__x0001__x0001__x0001__x0001__x0001__x0001__x0001__x0001__x0005__x0001__x0001__x0001_D2326*_x0001__x0001__x0001_=RiskData('Risk Summary'!L$48,$A2326)/1000_x0001__x0001__x0001__x0001__x0001__x0001__x0001__x0001__x0001__x0001__x0001__x0001__x0005__x0001__x0001__x0001_G2326(_x0001__x0001__x0001_=(RiskData(NR_to_Cash!C$18,$A2326))/1000_x0001__x0001__x0001__x0001__x0002__x0001__x0001__x0001__x0001__x0001__x0001__x0001__x0001__x0001__x0005__x0001__x0001__x0001_H2326(_x0001__x0001__x0001_=(RiskData(NR_to_Cash!D$18,$A2326))/1000_x0001__x0001__x0001__x0001__x0001__x0001__x0001__x0001__x0001__x0001__x0001__x0001__x0005__x0001__x0001__x0001_I2326(_x0001__x0001__x0001_=(RiskData(NR_to_Cash!E$18,$A2326))/1000_x0001__x0001__x0001__x0001__x0001__x0001__x0001__x0001__x0001__x0001__x0001__x0001__x0005__x0001__x0001__x0001_B2327*_x0001__x0001__x0001_=RiskData('Risk Summary'!J$48,$A2327)/1000_x0001__x0001__x0001__x0001__x0001__x0001__x0001__x0001__x0001__x0001__x0001__x0001__x0005__x0001__x0001__x0001_C2327*_x0001__x0001__x0001_=RiskData('Risk Summary'!K$48,$A2_x0001__x0002_327)/1000_x0001__x0001__x0001__x0001__x0001__x0001__x0001__x0001__x0001__x0001__x0001__x0001__x0005__x0001__x0001__x0001_D2327*_x0001__x0001__x0001_=RiskData('Risk Summary'!L$48,$A2327)/1000_x0001__x0001__x0001__x0001__x0001__x0001__x0001__x0001__x0001__x0001__x0001__x0001__x0005__x0001__x0001__x0001_G2327(_x0001__x0001__x0001_=(RiskData(NR_to_Cash!C$18,$A2327))/1000_x0001__x0001__x0001__x0001__x0001__x0001__x0001__x0001__x0001__x0001__x0001__x0001__x0005__x0001__x0001__x0001_H2327(_x0001__x0001__x0001_=(RiskData(NR_to_Cash!D$18,$A2327))/1000_x0001__x0001__x0001__x0001__x0001__x0001__x0001__x0001__x0001__x0001__x0001__x0001__x0005__x0001__x0001__x0001_I2327(_x0001__x0001__x0001_=(RiskData(NR_to_Cash_x0001__x0002_!E$18,$A2327))/1000_x0001__x0001__x0001__x0001__x0001__x0001__x0001__x0001__x0001__x0001__x0001__x0001__x0005__x0001__x0001__x0001_B2328*_x0001__x0001__x0001_=RiskData('Risk Summary'!J$48,$A2328)/1000_x0001__x0001__x0001__x0001__x0001__x0001__x0001__x0001__x0001__x0001__x0001__x0001__x0005__x0001__x0001__x0001_C2328*_x0001__x0001__x0001_=RiskData('Risk Summary'!K$48,$A2328)/1000_x0001__x0001__x0001__x0001__x0001__x0001__x0001__x0001__x0001__x0001__x0001__x0001__x0005__x0001__x0001__x0001_D2328*_x0001__x0001__x0001_=RiskData('Risk Summary'!L$48,$A2328)/1000_x0001__x0001__x0001__x0001__x0001__x0001__x0001__x0001__x0001__x0001__x0001__x0001__x0005__x0001__x0001__x0001_G2328(_x0001__x0001__x0001_=(RiskD_x0001__x0002_ata(NR_to_Cash!C$18,$A2328))/1000_x0001__x0001__x0001__x0001__x0001__x0001__x0001__x0001__x0001__x0001__x0001__x0001__x0005__x0001__x0001__x0001_H2328(_x0001__x0001__x0001_=(RiskData(NR_to_Cash!D$18,$A2328))/1000_x0001__x0001__x0001__x0001__x0001__x0001__x0001__x0001__x0001__x0001__x0001__x0001__x0005__x0001__x0001__x0001_I2328(_x0001__x0001__x0001_=(RiskData(NR_to_Cash!E$18,$A2328))/1000_x0001__x0001__x0001__x0001__x0001__x0001__x0001__x0001__x0001__x0001__x0001__x0001__x0005__x0001__x0001__x0001_B2329*_x0001__x0001__x0001_=RiskData('Risk Summary'"}},{"$cut":{"chars":90594,"head":"0d6e719ac40654211fa13993b89c52fa_x0001_@ýÿÿÿ_x0002_/_x0001__x0001__x0003_/_x0001__x0001__x0004_/_x0001__x0001__x0005_/_x0001__x0001__x0006_/_x0001__x0001__x0007_/_x0001__x0001__x0008_/_x0001__x0001_\t/_x0001__x0001_@/_x0001__x0001__x000B_/_x0001__x0001__x000C_/_x0001__x0001__x000D_/_x0001__x0001__x000E_/_x0001__x0001__x000F_/_x0001__x0001__x0010_/_x0001__x0001__x0011_/_x0001__x0001__x0012_/_x0001__x0001__x0013_/_x0001__x0001__x0014_/_x0001__x0001__x0015_/_x0001__x0001__x0016_/_x0001__x0001__x0017_/_x0001__x0001__x0018_/_x0001__x0001__x0019_/_x0001__x0001__x001A_/_x0001__x0001__x001B_/_x0001__x0001__x001C_/_x0001__x0001__x001D_/_x0001__x0001__x001E_/_x0001__x0001__x001F_/_x0001__x0001_ /_x0001__x0001_!/_x0001__x0001_\"/_x0001__x0001_#/_x0001__x0001_$/_x0001__x0001_%/_x0001__x0001_&/_x0001__x0001_'/_x0001__x0001_(/_x0001__x0001_)/_x0001__x0001_*/_x0001__x0001_+/_x0001__x0001_,/_x0001__x0001_-/_x0001__x0001_./_x0001__x0001_//_x0001__x0001_0/_x0001__x0001_1/_x0001__x0001_2/_x0001__x0001_3/_x0001__x0001_4/_x0001__x0001_5/_x0001__x0001_6/_x0001__x0001_7/_x0001__x0001_8/_x0001__x0001_9/_x0001__x0001_:/_x0001__x0001_;/_x0001__x0001_</_x0001__x0001_=/_x0001__x0001_>/_x0001__x0001_?/_x0001__x0001__x0001__x0002_@/_x0001__x0001_A/_x0001__x0001_B/_x0001__x0001_C/_x0001__x0001_D/_x0001__x0001_E/_x0001__x0001_F/_x0001__x0001_G/_x0001__x0001_H/_x0001__x0001_I/_x0001__x0001_J/_x0001__x0001_K/_x0001__x0001_L/_x0001__x0001_M/_x0001__x0001_N/_x0001__x0001_O/_x0001__x0001_P/_x0001__x0001_Q/_x0001__x0001_R/_x0001__x0001_S/_x0001__x0001_T/_x0001__x0001_U/_x0001__x0001_V/_x0001__x0001_W/_x0001__x0001_X/_x0001__x0001_Y/_x0001__x0001_Z/_x0001__x0001_[/_x0001__x0001_\\/_x0001__x0001_]/_x0001__x0001_^/_x0001__x0001__/_x0001__x0001_`/_x0001__x0001_a/_x0001__x0001_b/_x0001__x0001_c/_x0001__x0001_d/_x0001__x0001_e/_x0001__x0001_f/_x0001__x0001_g/_x0001__x0001_h/_x0001__x0001_i/_x0001__x0001_j/_x0001__x0001_k/_x0001__x0001_l/_x0001__x0001_m/_x0001__x0001_n/_x0001__x0001_o/_x0001__x0001_p/_x0001__x0001_q/_x0001__x0001_r/_x0001__x0001_s/_x0001__x0001_t/_x0001__x0001_u/_x0001__x0001_v/_x0001__x0001_w/_x0001__x0001_x/_x0001__x0001_y/_x0001__x0001_z/_x0001__x0001_{/_x0001__x0001_|/_x0001__x0001_}/_x0001__x0001_~/_x0001__x0001__x0001__x0002_\u007f/_x0001__x0001_\u0081/_x0001__x0001__x0001__x0001__x0005__x0001__x0001__x0001_I2406(_x0001__x0001__x0001_=(RiskData(NR_to_Cash!E$18,$A2406))/1000_x0001__x0001__x0001__x0001__x0001__x0001__x0001__x0001__x0001__x0001__x0001__x0001__x0005__x0001__x0001__x0001_B2407*_x0001__x0001__x0001_=RiskData('Risk Summary'!J$48,$A2407)/1000_x0001__x0001__x0001__x0001__x0001__x0001__x0001__x0001__x0001__x0001__x0001__x0001__x0005__x0001__x0001__x0001_C2407*_x0001__x0001__x0001_=RiskData('Risk Summary'!K$48,$A2407)/1000_x0001__x0001__x0001__x0001__x0001__x0001__x0001__x0001__x0001__x0001__x0001__x0001__x0005__x0001__x0001__x0001_D2407*_x0001__x0001__x0001_=RiskData('Risk Summary'!L$48,_x0001__x0002_$A2407)/1000_x0001__x0001__x0001__x0001__x0001__x0001__x0001__x0001__x0001__x0001__x0001__x0001__x0005__x0001__x0001__x0001_G2407(_x0001__x0001__x0001_=(RiskData(NR_to_Cash!C$18,$A2407))/1000_x0001__x0001__x0001__x0001__x0001__x0001__x0001__x0001__x0001__x0001__x0001__x0001__x0005__x0001__x0001__x0001_H2407(_x0001__x0001__x0001_=(RiskData(NR_to_Cash!D$18,$A2407))/1000_x0001__x0001__x0001__x0001__x0001__x0001__x0001__x0001__x0001__x0001__x0001__x0001__x0005__x0001__x0001__x0001_I2407(_x0001__x0001__x0001_=(RiskData(NR_to_Cash!E$18,$A2407))/1000_x0001__x0001__x0001__x0001__x0001__x0001__x0001__x0001__x0001__x0001__x0001__x0001__x0005__x0001__x0001__x0001_B2408*_x0001__x0001__x0001_=RiskData('Risk Summ_x0001__x0002_ary'!J$48,$A2408)/1000_x0001__x0001__x0001__x0001__x0001__x0001__x0001__x0001__x0001__x0001__x0001__x0001__x0005__x0001__x0001__x0001_C2408*_x0001__x0001__x0001_=RiskData('Risk Summary'!K$48,$A2408)/1000_x0001__x0001__x0001__x0001__x0001__x0001__x0001__x0001__x0001__x0001__x0001__x0001__x0005__x0001__x0001__x0001_D2408*_x0001__x0001__x0001_=RiskData('Risk Summary'!L$48,$A2408)/1000_x0001__x0001__x0001__x0001__x0001__x0001__x0001__x0001__x0001__"}},{"$cut":{"chars":89772,"head":"950793478e41e903679665513268997b_x0001__x0002__x0001__x0001__x0001__x0005__x0001__x0001__x0001_B2487*_x0001__x0001__x0001_=RiskData('Risk Summary'!J$48,$A2487)/1000_x0001__x0001__x0001__x0001__x0001__x0001__x0001__x0001__x0001__x0001__x0001__x0001__x0005__x0001__x0001__x0001_C2487*_x0001__x0001__x0001_=RiskData('Risk Summary'!K$48,$A2487)/1000_x0001__x0001__x0001__x0001__x0001__x0001__x0001__x0001__x0001__x0001__x0001__x0001__x0005__x0001__x0001__x0001_D2487*_x0001__x0001__x0001_=RiskData('Risk Summary'!L$48,$A2487)/1000_x0001__x0001__x0001__x0001__x0001__x0001__x0001__x0001__x0001__x0001__x0001__x0001__x0005__x0001__x0001__x0001_G2487(_x0001__x0001__x0001_=(RiskData(NR_to_Cash!C$18,$A2487))_x0001__x0002_/1000_x0001__x0001__x0001__x0001__x0001__x0001__x0001__x0001__x0001__x0001__x0001__x0001__x0005__x0001__x0001__x0001_H2487(_x0001__x0001__x0001_=(RiskData(NR_to_Cash!D$18,$A2487))/1000_x0001__x0001__x0001__x0001__x0001__x0001__x0001__x0001__x0001__x0001__x0001__x0001__x0005__x0001__x0001__x0001_I2487(_x0001__x0001__x0001_=(RiskData(NR_to_Cash!E$18,$A2487))/1000_x0001__x0001__x0001__x0001__x0001__x0001__x0001__x0001__x0001__x0001__x0001__x0001__x0005__x0001__x0001__x0001_B2488*_x0001__x0001__x0001_=RiskData('Risk Summary'!J$48,$A2488)/1000_x0001__x0001__x0001__x0001__x0001__x0001__x0001__x0001__x0001__x0001__x0001__x0001__x0005__x0001__x0001__x0001_C2488*_x0001__x0001__x0001_=RiskData('Risk Summary'!_x0001__x0002_K$48,$A2488)/1000_x0001__x0001__x0001__x0001__x0001__x0001__x0001__x0001__x0001__x0001__x0001__x0001__x0005__x0001__x0001__x0001_D2488*_x0001__x0001__x0001_=RiskData('Risk Summary'!L$48,$A2488)/1000_x0001__x0001__x0001__x0001__x0001__x0001__x0001__x0001__x0001__x0001__x0001__x0001__x0005__x0001__x0001__x0001_G2488(_x0001__x0001__x0001_=(RiskData(NR_to_Cash!C$18,$A2488))/1000_x0001__x0001__x0001__x0001__x0001__x0001__x0001__x0001__x0001__x0001__x0001__x0001__x0005__x0001__x0001__x0001_H2488(_x0001__x0001__x0001_=(RiskData(NR_to_Cash!D$18,$A2488))/1000_x0001__x0001__x0001__x0001__x0001__x0001__x0001__x0001__x0001__x0001__x0001__x0001__x0005__x0001__x0001__x0001_I2488(_x0001__x0001__x0001_=(RiskData(NR_x0001__x0002__to_Cash!E$18,$A2488))/1000_x0001__x0001__x0001__x0001__x0001__x0001__x0001__x0001__x0001__x0001__x0001__x0001__x0005__x0001__x0001__x0001_B2489*_x0001__x0001__x0001_=RiskData('Risk Summary'!J$48,$A2489)/1000_x0001__x0001__x0001__x0001__x0001__x0001__x0001__x0001__x0001__x0001__x0001__x0001__x0005__x0001__x0001__x0001_C2489*_x0001__x0001__x0001_=RiskData('Risk Summary'!K$48,$A2489)/1000_x0001__x0001__x0001__x0001__x0001__x0001__x0001__x0001__x0001__x0001__x0001__x0001__x0005__x0001__x0001__x0001_D2489*_x0001__x0001__x0001_=RiskData('Risk Summary'!L$48,$A2489)/1000_x0001__x0001__x0001__x0001__x0001__x0001__x0001__x0001__x0001__x0001__x0001__x0001__x0005__x0001__x0001__x0001_G2489(_x0001__x0001__x0001__x0002__x0001_=(RiskData(NR_to_Cash!C$18,$A2489))/1000_x0001__x0001__x0001__x0001__x0001__x0001__x0001__x0001__x0001__x0001__x0001__x0001__x0005__x0001__x0001__x0001_H2489(_x0001__x0001__x0001_=(RiskData(NR_to_Cash!D$18,$A2489))/1000_x0001__x0001__x0001__x0001__x0001__x0001__x0001__x0001__x0001__x0001__x0001__x0001__x0005__x0001__x0001__x0001_I2489(_x0001__x0001__x0001_=(RiskData(NR_to_Cash!E$18,$A2489))/1000_x0001__x0001__x0001__x0001__x0001__x0001__x0001__x0001__x0001__x0001__x0001__x0001__x0005__x0001__x0001__x0001_B2490*_x0001__x0001__x0001_=RiskData('Risk Summary'!J$48,$A2490)/1000_x0001__x0001__x0001__x0001__x0001__x0001__x0001__x0001__x0001__x0001__x0001__x0001__x0005__x0001__x0001__x0002__x0001__x0001_C2490*_x0001__x0001__x0001_=RiskData('Risk Summary'!K$48,$A2490)/1000_x0001__x0001__x0001__x0001__x0001__x0001__x0001__x0001__x0001__x0001__x0001__x0001__x0005__x0001__x0001__x0001_D2490*_x0001__x0001__x0001_=RiskData('Risk Summary'!L$48,$A2490)/1000_x0001__x0001__x0001__x0001__x0001__x0001__x0001__x0001__x0001__x0001__x0001__x0001__x0005__x0001__x0001__x0001_G2490(_x0001__x0001__x0001_=(RiskData(NR_to_Cash!C$18,$A2490))/1000_x0001__x0001__x0001__x0001__x0001__x0001__x0001__x0001__x0001__x0001__x0001__x00"}},{"$cut":{"chars":90444,"head":"26db8dd5b488b31738f1db9915c15036_x0001__x0002_$A2568)/1000_x0001__x0001__x0001__x0001__x0001__x0001__x0001__x0001__x0001__x0001__x0001__x0001__x0005__x0001__x0001__x0001_G2568(_x0001__x0001__x0001_=(RiskData(NR_to_Cash!C$18,$A2568))/1000_x0001__x0001__x0001__x0001__x0001__x0001__x0001__x0001__x0001__x0001__x0001__x0001__x0005__x0001__x0001__x0001_H2568(_x0001__x0001__x0001_=(RiskData(NR_to_Cash!D$18,$A2568))/1000_x0001__x0001__x0001__x0001__x0001__x0001__x0001__x0001__x0001__x0001__x0001__x0001__x0005__x0001__x0001__x0001_I2568(_x0001__x0001__x0001_=(RiskData(NR_to_Cash!E$18,$A2568))/1000_x0001__x0001__x0001__x0001__x0001__x0001__x0001__x0001__x0001__x0001__x0001__x0001__x0005__x0001__x0001__x0001_B2569*_x0001__x0001__x0001_=RiskData('Risk Summ_x0001__x0002_ary'!J$48,$A2569)/1000_x0001__x0001__x0001__x0001__x0001__x0001__x0001__x0001__x0001__x0001__x0001__x0001__x0005__x0001__x0001__x0001_C2569*_x0001__x0001__x0001_=RiskData('Risk Summary'!K$48,$A2569)/1000_x0001__x0001__x0001__x0001__x0001__x0001__x0001__x0001__x0001__x0001__x0001__x0001__x0005__x0001__x0001__x0001_D2569*_x0001__x0001__x0001_=RiskData('Risk Summary'!L$48,$A2569)/1000_x0001__x0001__x0001__x0001__x0001__x0001__x0001__x0001__x0001__x0001__x0001__x0001__x0005__x0001__x0001__x0001_G2569(_x0001__x0001__x0001_=(RiskData(NR_to_Cash!C$18,$A2569))/1000_x0001__x0001__x0001__x0001__x0001__x0001__x0001__x0001__x0001__x0001__x0001__x0001__x0005__x0001__x0001__x0001_H2569(_x0001__x0001__x0001_=(Risk_x0001__x0002_Data(NR_to_Cash!D$18,$A2569))/1000_x0001__x0001__x0001__x0001__x0001__x0001__x0001__x0001__x0001__x0001__x0001__x0001__x0005__x0001__x0001__x0001_I2569(_x0001__x0001__x0001_=(RiskData(NR_to_Cash!E$18,$A2569))/1000_x0001__x0001__x0001__x0001__x0001__x0001__x0001__x0001__x0001__x0001__x0001__x0001__x0005__x0001__x0001__x0001_B2570*_x0001__x0001__x0001_=RiskData('Risk Summary'!J$48,$A2570)/1000_x0001__x0001__x0001__x0001__x0001__x0001__x0001__x0001__x0001__x0001__x0001__x0001__x0005__x0001__x0001__x0001_C2570*_x0001__x0001__x0001_=RiskData('Risk Summary'!K$48,$A2570)/1000_x0001__x0001__x0001__x0001__x0001__x0001__x0001__x0001__x0001__x0001__x0001__x0001__x0005__x0001__x0001__x0001_D25_x0001__x0002_70*_x0001__x0001__x0001_=RiskData('Risk Summary'!L$48,$A2570)/1000_x0001__x0001__x0001__x0001__x0001__x0001__x0001__x0001__x0001__x0001__x0001__x0001__x0005__x0001__x0001__x0001_G2570(_x0001__x0001__x0001_=(RiskData(NR_to_Cash!C$18,$A2570))/1000_x0001__x0001__x0001__x0001__x0001__x0001__x0001__x0001__x0001__x0001__x0001__x0001__x0005__x0001__x0001__x0001_H2570(_x0001__x0001__x0001_=(RiskData(NR_to_Cash!D$18,$A2570))/1000_x0001__x0001__x0001__x0001__x0001__x0001__x0001__x0001__x0001__x0001__x0001__x0001__x0005__x0001__x0001__x0001_I2570(_x0001__x0001__x0001_=(RiskData(NR_to_Cash!E$18,$A2570))/1000_x0001__x0001__x0001__x0001__x0001__x0001__x0001__x0001__x0001__x0001__x0002__x0001__x0001__x0001__x0005__x0001__x0001__x0001_B2571*_x0001__x0001__x0001_ýÿÿÿ\u0082/_x0001__x0001_\u0083/_x0001__x0001_\u0084/_x0001__x0001_\u0085/_x0001__x0001_\u0086/_x0001__x0001_\u0087/_x0001__x0001_\u0088/_x0001__x0001_\u0089/_x0001__x0001_\u008a/_x0001__x0001_\u008b/_x0001__x0001_\u008c/_x0001__x0001_\u008d/_x0001__x0001_\u008e/_x0001__x0001_\u008f/_x0001__x0001_\u0090/_x0001__x0001_\u0091/_x0001__x0001_\u0092/_x0001__x0001_\u0093/_x0001__x0001_\u0094/_x0001__x0001_\u0095/_x0001__x0001_\u0096/_x0001__x0001_\u0097/_x0001__x0001_\u0098/_x0001__x0001_\u0099/_x0001__x0001_\u009a/_x0001__x0001_\u009b/_x0001__x0001_\u009c/_x0001__x0001_\u009d/_x0001__x0001_\u009e/_x0001__x0001_\u009f/_x0001__x0001_ /_x0001__x0001_¡/_x0001__x0001_¢/_x0001__x0001_£/_x0001__x0001_¤/_x0001__x0001_¥/_x0001__x0001_¦/_x0001__x0001_§/_x0001__x0001_¨/_x0001__x0001_©/_x0001__x0001_ª/_x0001__x0001_«/_x0001__x0001_¬/_x0001__x0001_­/_x0001__x0001_®/_x0001__x0001_¯/_x0001__x0001_°/_x0001__x0001_±/_x0001__x0001_²/_x0001__x0001_³/_x0001__x0001_´/_x0001__x0001_µ/_x0001__x0001_¶/_x0001__x0001_·/_x0001__x0001_¸/_x0001__x0001_¹/_x0001__x0001_º/_x0001__x0001_»/_x0001__x0001__x0001__x0002_¼/_x0001__x0001_½/_x0001__x0001_¾/_x0001__x0001_¿/_x0001__x0001_À/_x0001__x0001_Á/_x0001__x0001_Â/_x0001__x0001_Ã/_x0001__x0001_Ä/_x0001__x0001_Å/_x0001__x0001_Æ/_x0001__x0001_Ç/_x0001__x0001_È/_x0001"}},{"$cut":{"chars":89826,"head":"1b7fdd4c1412fbbf10446d0d22772b58_x0001__x0002_$A2648))/1000_x0001__x0001__x0001__x0001__x0001__x0001__x0001__x0001__x0001__x0001__x0001__x0001__x0005__x0001__x0001__x0001_H2648(_x0001__x0001__x0001_=(RiskData(NR_to_Cash!D$18,$A2648))/1000_x0001__x0001__x0001__x0001__x0001__x0001__x0001__x0001__x0001__x0001__x0001__x0001__x0005__x0001__x0001__x0001_I2648(_x0001__x0001__x0001_=(RiskData(NR_to_Cash!E$18,$A2648))/1000_x0001__x0001__x0001__x0001__x0001__x0001__x0001__x0001__x0001__x0001__x0001__x0001__x0005__x0001__x0001__x0001_B2649*_x0001__x0001__x0001_=RiskData('Risk Summary'!J$48,$A2649)/1000_x0001__x0001__x0001__x0001__x0001__x0001__x0001__x0001__x0001__x0001__x0001__x0001__x0005__x0001__x0001__x0001_C2649*_x0001__x0001__x0001_=RiskData('Risk S_x0001__x0002_ummary'!K$48,$A2649)/1000_x0001__x0001__x0001__x0001__x0001__x0001__x0001__x0001__x0001__x0001__x0001__x0001__x0005__x0001__x0001__x0001_D2649*_x0001__x0001__x0001_=RiskData('Risk Summary'!L$48,$A2649)/1000_x0001__x0001__x0001__x0001__x0001__x0001__x0001__x0001__x0001__x0001__x0001__x0001__x0005__x0001__x0001__x0001_G2649(_x0001__x0001__x0001_=(RiskData(NR_to_Cash!C$18,$A2649))/1000_x0001__x0001__x0001__x0001__x0001__x0001__x0001__x0001__x0001__x0001__x0001__x0001__x0005__x0001__x0001__x0001_H2649(_x0001__x0001__x0001_=(RiskData(NR_to_Cash!D$18,$A2649))/1000_x0001__x0001__x0001__x0001__x0001__x0001__x0001__x0001__x0001__x0001__x0001__x0001__x0005__x0001__x0001__x0001_I2649(_x0001__x0001__x0001_=(Ris_x0001__x0002_kData(NR_to_Cash!E$18,$A2649))/1000_x0001__x0001__x0001__x0001__x0001__x0001__x0001__x0001__x0001__x0001__x0001__x0001__x0005__x0001__x0001__x0001_B2650*_x0001__x0001__x0001_=RiskData('Risk Summary'!J$48,$A2650)/1000_x0001__x0001__x0001__x0001__x0001__x0001__x0001__x0001__x0001__x0001__x0001__x0001__x0005__x0001__x0001__x0001_C2650*_x0001__x0001__x0001_=RiskData('Risk Summary'!K$48,$A2650)/1000_x0001__x0001__x0001__x0001__x0001__x0001__x0001__x0001__x0001__x0001__x0001__x0001__x0005__x0001__x0001__x0001_D2650*_x0001__x0001__x0001_=RiskData('Risk Summary'!L$48,$A2650)/1000_x0001__x0001__x0001__x0001__x0001__x0001__x0001__x0001__x0001__x0001__x0001__x0001__x0005__x0001__x0001__x0001__x0001__x0002_G2650(_x0001__x0001__x0001_=(RiskData(NR_to_Cash!C$18,$A2650))/1000_x0001__x0001__x0001__x0001__x0001__x0001__x0001__x0001__x0001__x0001__x0001__x0001__x0005__x0001__x0001__x0001_H2650(_x0001__x0001__x0001_=(RiskData(NR_to_Cash!D$18,$A2650))/1000_x0001__x0001__x0001__x0001__x0001__x0001__x0001__x0001__x0001__x0001__x0001__x0001__x0005__x0001__x0001__x0001_I2650(_x0001__x0001__x0001_=(RiskData(NR_to_Cash!E$18,$A2650))/1000_x0001__x0001__x0001__x0001__x0001__x0001__x0001__x0001__x0001__x0001__x0001__x0001__x0005__x0001__x0001__x0001_B2651*_x0001__x0001__x0001_=RiskData('Risk Summary'!J$48,$A2651)/1000_x0001__x0001__x0001__x0001__x0001__x0001__x0001__x0002__x0001__x0001__x0001__x0001__x0001__x0001__x0005__x0001__x0001__x0001_C2651*_x0001__x0001__x0001_=RiskData('Risk Summary'!K$48,$A2651)/1000_x0001__x0001__x0001__x0001__x0001__x0001__x0001__x0001__x0001__x0001__x0001__x0001__x0005__x0001__x0001__x0001_D2651*_x0001__x0001__x0001_=RiskData('Risk Summary'!L$48,$A2651)/1000_x0001__x0001__x0001__x0001__x0001__x0001__x0001__x0001__x0001__x0001__x0001__x0001__x0005__x0001__x0001__x0001_G2651(_x0001__x0001__x0001_=(RiskData(NR_to_Cash!C$18,$A2651))/1000_x0001__x0001__x0001__x0001__x0001__x0001__x0001__x0001__x0001__x0001__x0001__x0001__x0005__x0001__x0001__x0001_H2651(_x0001__x0001__x0001_=(RiskData(NR_to_Cash!D$18,$A2651)_x0001__x0002_)/1000_x0001__x0001__x0001__x0001__x0001__x0001__x0001__x0001__x0001__x0001__x0001__x0001__x0005__x0001__x0001__x0001_I2651(_x0001__x0001__x0001_=(RiskData(NR_to_Cash!E$18,$A2651))/1000_x0001__x0001__x0001__x0001__x0001__x0001__x0001__x0001__x0001__x0001__x0001__x0001__x0005__x0001__x0001__x0001_B2652*_x0001__x0001__x0001_=RiskData('Risk Summary'!J$48,$A2652)/1000_x0001__x0001__x0001__x0001__x0001__x0001__x0001__x0001__x0001__x0001__x0001__x0001__x0005__x0001__x0001__x0001_C2652*_x0001__x0001__x0001_=RiskData('Risk Summary'!K$48,$A2652)/1000_x0001_"}},{"$cut":{"chars":90600,"head":"5667b155669e65d37a4b551f1445b951_x0001__x0002_isk Summary'!J$48,$A2730)/1000_x0001__x0001__x0001__x0001__x0001__x0001__x0001__x0001__x0001__x0001__x0001__x0001__x0005__x0001__x0001__x0001_C2730*_x0001__x0001__x0001_=RiskData('Risk Summary'!K$48,$A2730)/1000_x0001__x0001__x0001__x0001__x0001__x0001__x0001__x0001__x0001__x0001__x0001__x0001__x0005__x0001__x0001__x0001_D2730*_x0001__x0001__x0001_=RiskData('Risk Summary'!L$48,$A2730)/1000_x0001__x0001__x0001__x0001__x0001__x0001__x0001__x0001__x0001__x0001__x0001__x0001__x0005__x0001__x0001__x0001_G2730(_x0001__x0001__x0001_=(RiskData(NR_to_Cash!C$18,$A2730))/1000_x0001__x0001__x0001__x0001__x0001__x0001__x0001__x0001__x0001__x0001__x0001__x0001__x0005__x0001__x0001__x0001_H2730(_x0001__x0001__x0002__x0001__x0001_=(RiskData(NR_to_Cash!D$18,$A2730))/1000_x0001__x0001__x0001__x0001__x0001__x0001__x0001__x0001__x0001__x0001__x0001__x0001__x0005__x0001__x0001__x0001_I2730(_x0001__x0001__x0001_=(RiskData(NR_to_Cash!E$18,$A2730))/1000_x0001__x0001__x0001__x0001__x0001__x0001__x0001__x0001__x0001__x0001__x0001__x0001__x0005__x0001__x0001__x0001_B2731*_x0001__x0001__x0001_=RiskData('Risk Summary'!J$48,$A2731)/1000_x0001__x0001__x0001__x0001__x0001__x0001__x0001__x0001__x0001__x0001__x0001__x0001__x0005__x0001__x0001__x0001_C2731*_x0001__x0001__x0001_=RiskData('Risk Summary'!K$48,$A2731)/1000_x0001__x0001__x0001__x0001__x0001__x0001__x0001__x0001__x0001__x0001__x0001__x0001__x0002__x0001__x0005__x0001__x0001__x0001_D2731*_x0001__x0001__x0001_=RiskData('Risk Summary'!L$48,$A2731)/1000_x0001__x0001__x0001__x0001__x0001__x0001__x0001__x0001__x0001__x0001__x0001__x0001__x0005__x0001__x0001__x0001_G2731(_x0001__x0001__x0001_=(RiskData(NR_to_Cash!C$18,$A2731))/1000_x0001__x0001__x0001__x0001__x0001__x0001__x0001__x0001__x0001__x0001__x0001__x0001__x0005__x0001__x0001__x0001_H2731(_x0001__x0001__x0001_=(RiskData(NR_to_Cash!D$18,$A2731))/1000_x0001__x0001__x0001__x0001__x0001__x0001__x0001__x0001__x0001__x0001__x0001__x0001__x0005__x0001__x0001__x0001_I2731(_x0001__x0001__x0001_=(RiskData(NR_to_Cash!E$18,$A2731))/1000_x0001__x0001__x0002__x0001__x0001__x0001__x0001__x0001__x0001__x0001__x0001__x0001__x0001__x0001__x0005__x0001__x0001__x0001_B2732*_x0001__x0001__x0001_=RiskData('Risk Summary'!J$48,$A2732)/1000_x0001__x0001__x0001__x0001__x0001__x0001__x0001__x0001__x0001__x0001__x0001__x0001__x0005__x0001__x0001__x0001_C2732*_x0001__x0001__x0001_=RiskData('Risk Summary'!K$48,$A2732)/1000_x0001__x0001__x0001__x0001__x0001__x0001__x0001__x0001__x0001__x0001__x0001__x0001__x0005__x0001__x0001__x0001_D2732*_x0001__x0001__x0001_=RiskData('Risk Summary'!L$48,$A2732)/1000_x0001__x0001__x0001__x0001__x0001__x0001__x0001__x0001__x0001__x0001__x0001__x0001__x0005__x0001__x0001__x0001_G2732(_x0001__x0001__x0001_=(RiskData(NR_to_Cash!C$18,_x0001__x0002_$A2732))/1000_x0001__x0001__x0001__x0001__x0001__x0001__x0001__x0001__x0001__x0001__x0001__x0001__x0005__x0001__x0001__x0001_H2732(_x0001__x0001__x0001_=(RiskData(NR_to_Cash!D$18,$A2732))/1000_x0001__x0001__x0001__x0001__x0001__x0001__x0001__x0001__x0001__x0001__x0001__x0001__x0005__x0001__x0001__x0001_I2732(_x0001__x0001__x0001_=(RiskData(NR_to_Cash!E$18,$A2732))/1000_x0001__x0001__x0001__x0001__x0001__x0001__x0001__x0001__x0001__x0001__x0001__x0001__x0005__x0001__x0001__x0001_B2733*_x0001__x0001__x0001_=RiskData('Risk Summary'!J$48,$A2733)/1000_x0001__x0001__x0001__x0001__x0001__x0001__x0001__x0001__x0001__x0001__x0001__x0001__x0005__x0001__x0001__x0001_C2733*_x0001__x0001__x0001_=RiskData('Risk S_x0001__x0002_ummary'!K$48,$A2733)/1000_x0001__x0001__x0001__x0001__x0001__x0001__x0001__x0001__x0001__x0001__x0001__x0001__x0005__x0001__x0001__x0001_D2733*_x0001__x0001__x0001_=RiskData('Risk Summary'!L$48,$A2733)/1000_x0001__x0001__x0001__x0001__x0001__x0001__x0001__x0001__x0001__x0001__x0001__x0001__x0005__x0001__x0001__x0001_G2733(_x0001__x0001__x0001_=(RiskData(NR_to_Cash!C$18,$A2733))/1000_x0001__x0001__x0001__x0001__x0001__x0001__x0001__x0001__x0001__x0001__x0001__x0001__x0005__x0001__x0001__x0001_H2733(_x0001__x0001__x0001_=(RiskData(NR_to_Cash!D$18,$A2"}},{"$cut":{"chars":89802,"head":"98f25639e2c5ab1d5fa34bd5a88f92c9_x0001__x0002_('Risk Summary'!K$48,$A2810)/1000_x0001__x0001__x0001__x0001__x0001__x0001__x0001__x0001__x0001__x0001__x0001__x0001__x0005__x0001__x0001__x0001_D2810*_x0001__x0001__x0001_=RiskData('Risk Summary'!L$48,$A2810)/1000_x0001__x0001__x0001__x0001__x0001__x0001__x0001__x0001__x0001__x0001__x0001__x0001__x0005__x0001__x0001__x0001_G2810(_x0001__x0001__x0001_=(RiskData(NR_to_Cash!C$18,$A2810))/1000_x0001__x0001__x0001__x0001__x0001__x0001__x0001__x0001__x0001__x0001__x0001__x0001__x0005__x0001__x0001__x0001_H2810(_x0001__x0001__x0001_=(RiskData(NR_to_Cash!D$18,$A2810))/1000_x0001__x0001__x0001__x0001__x0001__x0001__x0001__x0001__x0001__x0001__x0001__x0001__x0005__x0001__x0001__x0001_I2810(_x0001__x0002__x0001__x0001__x0001_=(RiskData(NR_to_Cash!E$18,$A2810))/1000_x0001__x0001__x0001__x0001__x0001__x0001__x0001__x0001__x0001__x0001__x0001__x0001__x0005__x0001__x0001__x0001_B2811*_x0001__x0001__x0001_=RiskData('Risk Summary'!J$48,$A2811)/1000_x0001__x0001__x0001__x0001__x0001__x0001__x0001__x0001__x0001__x0001__x0001__x0001__x0005__x0001__x0001__x0001_C2811*_x0001__x0001__x0001_=RiskData('Risk Summary'!K$48,$A2811)/1000_x0001__x0001__x0001__x0001__x0001__x0001__x0001__x0001__x0001__x0001__x0001__x0001__x0005__x0001__x0001__x0001_D2811*_x0001__x0001__x0001_=RiskData('Risk Summary'!L$48,$A2811)/1000_x0001__x0001__x0001__x0001__x0001__x0001__x0001__x0001__x0001__x0002__x0001__x0001__x0001__x0001__x0005__x0001__x0001__x0001_G2811(_x0001__x0001__x0001_=(RiskData(NR_to_Cash!C$18,$A2811))/1000_x0001__x0001__x0001__x0001__x0001__x0001__x0001__x0001__x0001__x0001__x0001__x0001__x0005__x0001__x0001__x0001_H2811(_x0001__x0001__x0001_=(RiskData(NR_to_Cash!D$18,$A2811))/1000_x0001__x0001__x0001__x0001__x0001__x0001__x0001__x0001__x0001__x0001__x0001__x0001__x0005__x0001__x0001__x0001_I2811(_x0001__x0001__x0001_=(RiskData(NR_to_Cash!E$18,$A2811))/1000_x0001__x0001__x0001__x0001__x0001__x0001__x0001__x0001__x0001__x0001__x0001__x0001__x0005__x0001__x0001__x0001_B2812*_x0001__x0001__x0001_=RiskData('Risk Summary'!J$48,$A2812)/10_x0001__x0002_00_x0001__x0001__x0001__x0001__x0001__x0001__x0001__x0001__x0001__x0001__x0001__x0001__x0005__x0001__x0001__x0001_C2812*_x0001__x0001__x0001_=RiskData('Risk Summary'!K$48,$A2812)/1000_x0001__x0001__x0001__x0001__x0001__x0001__x0001__x0001__x0001__x0001__x0001__x0001__x0005__x0001__x0001__x0001_D2812*_x0001__x0001__x0001_=RiskData('Risk Summary'!L$48,$A2812)/1000_x0001__x0001__x0001__x0001__x0001__x0001__x0001__x0001__x0001__x0001__x0001__x0001__x0005__x0001__x0001__x0001_G2812(_x0001__x0001__x0001_=(RiskData(NR_to_Cash!C$18,$A2812))/1000_x0001__x0001__x0001__x0001__x0001__x0001__x0001__x0001__x0001__x0001__x0001__x0001__x0005__x0001__x0001__x0001_H2812(_x0001__x0001__x0001_=(RiskData(NR_to_Cash!D$18_x0001__x0002_,$A2812))/1000_x0001__x0001__x0001__x0001__x0001__x0001__x0001__x0001__x0001__x0001__x0001__x0001__x0005__x0001__x0001__x0001_I2812(_x0001__x0001__x0001_=(RiskData(NR_to_Cash!E$18,$A2812))/1000_x0001__x0001__x0001__x0001__x0001__x0001__x0001__x0001__x0001__x0001__x0001__x0001__x0005__x0001__x0001__x0001_B2813*_x0001__x0001__x0001_=RiskData('Risk Summary'!J$48,$A2813)/1000_x0001__x0001__x0001__x0001__x0001__x0001__x0001__x0001__x0001__x0001__x0001__x0001__x0005__x0001__x0001__x0001_C2813*_x0001__x0001__x0001_=RiskData('Risk Summary'!K$48,$A2813)/1000_x0001__x0001__x0001__x0001__x0001__x0001__x0001__x0001__x0001__x0001__x0001__x0001__x0005__x0001__x0001__x0001_D2813*_x0001__x0001__x0001_=RiskData('Ris_x0001__x0002_k Summary'!L$48,$A2813)/1000_x0001__x0001__x0001__x0001__x0001__x0001__x0001__x0001__x0001__x0001__x0001__x0001__x0005__x0001__x0001__x0001_G2813(_x0001__x0001__x0001_=(RiskData(NR_to_Cash!C$18,$A2813))/1000_x0001__x0001__x0001__x0001__x0001__x0001__x0001__x0001__x0001__x0001__x0001__x0001__x0005__x0001__x0001__x0001_H2813(_x0001__x0001__x0001_=(RiskData(NR_to_Cash!D$18,$A2813))/1000_x0001__x0001__x0001__x0001__x0001__x0001__x0001__x0001__x0001__x0001__x0001__x0001__x0005__x0001__x0001__x0001_I2813(_x0001__x0001__x0001_=(RiskData(NR_to_Cash!E$18,$A"}},{"$cut":{"chars":90438,"head":"11ab99ae32c659bf6358176864620c15_x0001__x0002__x0001_H2891(_x0001__x0001__x0001_=(RiskData(NR_to_Cash!D$18,$A2891))/1000_x0001__x0001__x0001__x0001__x0001__x0001__x0001__x0001__x0001__x0001__x0001__x0001__x0005__x0001__x0001__x0001_I2891(_x0001__x0001__x0001_=(RiskData(NR_to_Cash!E$18,$A2891))/1000_x0001__x0001__x0001__x0001__x0001__x0001__x0001__x0001__x0001__x0001__x0001__x0001__x0005__x0001__x0001__x0001_B2892*_x0001__x0001__x0001_=RiskData('Risk Summary'!J$48,$A2892)/1000_x0001__x0001__x0001__x0001__x0001__x0001__x0001__x0001__x0001__x0001__x0001__x0001__x0005__x0001__x0001__x0001_C2892*_x0001__x0001__x0001_=RiskData('Risk Summary'!K$48,$A2892)/1000_x0001__x0001__x0001__x0001__x0002__x0001__x0001__x0001__x0001__x0001__x0001__x0001__x0001__x0001__x0005__x0001__x0001__x0001_D2892*_x0001__x0001__x0001_=RiskData('Risk Summary'!L$48,$A2892)/1000_x0001__x0001__x0001__x0001__x0001__x0001__x0001__x0001__x0001__x0001__x0001__x0001__x0005__x0001__x0001__x0001_G2892(_x0001__x0001__x0001_=(RiskData(NR_to_Cash!C$18,$A2892))/1000_x0001__x0001__x0001__x0001__x0001__x0001__x0001__x0001__x0001__x0001__x0001__x0001__x0005__x0001__x0001__x0001_H2892(_x0001__x0001__x0001_=(RiskData(NR_to_Cash!D$18,$A2892))/1000_x0001__x0001__x0001__x0001__x0001__x0001__x0001__x0001__x0001__x0001__x0001__x0001__x0005__x0001__x0001__x0001_I2892(_x0001__x0001__x0001_=(RiskData(NR_to_Cash!E$18,$A2892_x0001__x0002_))/1000_x0001__x0001__x0001__x0001__x0001__x0001__x0001__x0001__x0001__x0001__x0001__x0001__x0005__x0001__x0001__x0001_B2893*_x0001__x0001__x0001_=RiskData('Risk Summary'!J$48,$A2893)/1000_x0001__x0001__x0001__x0001__x0001__x0001__x0001__x0001__x0001__x0001__x0001__x0001__x0005__x0001__x0001__x0001_C2893*_x0001__x0001__x0001_=RiskData('Risk Summary'!K$48,$A2893)/1000_x0001__x0001__x0001__x0001__x0001__x0001__x0001__x0001__x0001__x0001__x0001__x0001__x0005__x0001__x0001__x0001_D2893*_x0001__x0001__x0001_=RiskData('Risk Summary'!L$48,$A2893)/1000_x0001__x0001__x0001__x0001__x0001__x0001__x0001__x0001__x0001__x0001__x0001__x0001__x0005__x0001__x0001__x0001_G2893(_x0001__x0001__x0001_=(RiskData(NR_to_Ca_x0001__x0002_sh!C$18,$A2893))/1000_x0001__x0001__x0001__x0001__x0001__x0001__x0001__x0001__x0001__x0001__x0001__x0001__x0005__x0001__x0001__x0001_H2893(_x0001__x0001__x0001_=(RiskData(NR_to_Cash!D$18,$A2893))/1000_x0001__x0001__x0001__x0001__x0001__x0001__x0001__x0001__x0001__x0001__x0001__x0001__x0005__x0001__x0001__x0001_I2893(_x0001__x0001__x0001_=(RiskData(NR_to_Cash!E$18,$A2893))/1000_x0001__x0001__x0001__x0001__x0001__x0001__x0001__x0001__x0001__x0001__x0001__x0001__x0005__x0001__x0001__x0001_B2894*_x0001__x0001__x0001_=RiskData('Risk Summary'!J$48,$A2894)/1000_x0001__x0001__x0001__x0001__x0001__x0001__x0001__x0001__x0001__x0001__x0001__x0001__x0005__x0001__x0001__x0001_C2894*_x0001__x0001__x0001_=RiskData_x0001__x0002_('Risk Summary'!K$48,$A2894)/1000_x0001__x0001__x0001__x0001__x0001__x0001__x0001__x0001__x0001__x0001__x0001__x0001__x0005__x0001__x0001__x0001_D2894*_x0001__x0001__x0001_=RiskData('Risk Summary'!L$48,$A2894)/1000_x0001__x0001__x0001__x0001__x0001__x0001__x0001__x0001__x0001__x0001__x0001__x0001__x0005__x0001__x0001__x0001_G2894(_x0001__x0001__x0001_=(RiskData(NR_to_Cash!C$18,$A2894))/1000_x0001__x0001__x0001__x0001__x0001__x0001__x0001__x0001__x0001__x0001__x0001__x0001__x0005__x0001__x0001__x0001_H2894(_x0001__x0001__x0001_=(RiskData(NR_to_Cash!D$18,$A2894))/1000_x0001__x0001__x0001__x0001__x0001__x0001__x0001__x0001__x0001__x0001__x0001__x0001__x0005__x0001__x0001__x0001_I2894(_x0001__x0002__x0001__x0001__x0001_=(RiskData(NR_to_Cash!E$18,$A2894))/1000_x0001__x0001__x0001__x0001__x0001__x0001__x0001__x0001__x0001__x0001__x0001__x0001__x0005__x0001__x0001__x0001_B2895*_x0001__x0001__x0001_=RiskData('Risk Summary'!J$48,$A2895)/1000_x0001__x0001__x0001__x0001__x0001__x0001__x0001__x0001__x0001__x0001__x0001__x0001__x0005__x0001__x0001__x0001_C2895*_x0001__x0001__x0001_=RiskData('Risk Summary'!K$48,$A2895)/1000_x0001__x0001__x0001__x0001__x0001__x0001__x0001__x0001__x0001__x0001__x0001__x0001__x0005__x0001__x0001__x0001_D2895*_x0001_"}},{"$cut":{"chars":89742,"head":"7d41555b936161d89ee50189ab26c1b3_x0001__x0002__x0001__x0001_I2971(_x0001__x0001__x0001_=(RiskData(NR_to_Cash!E$18,$A2971))/1000_x0001__x0001__x0001__x0001__x0001__x0001__x0001__x0001__x0001__x0001__x0001__x0001__x0005__x0001__x0001__x0001_B2972*_x0001__x0001__x0001_=RiskData('Risk Summary'!J$48,$A2972)/1000_x0001__x0001__x0001__x0001__x0001__x0001__x0001__x0001__x0001__x0001__x0001__x0001__x0005__x0001__x0001__x0001_C2972*_x0001__x0001__x0001_=RiskData('Risk Summary'!K$48,$A2972)/1000_x0001__x0001__x0001__x0001__x0001__x0001__x0001__x0001__x0001__x0001__x0001__x0001__x0005__x0001__x0001__x0001_D2972*_x0001__x0001__x0001_=RiskData('Risk Summary'!L$48,$A2972)/1000_x0001__x0002__x0001__x0001__x0001__x0001__x0001__x0001__x0001__x0001__x0001__x0001__x0001__x0001__x0005__x0001__x0001__x0001_G2972(_x0001__x0001__x0001_=(RiskData(NR_to_Cash!C$18,$A2972))/1000_x0001__x0001__x0001__x0001__x0001__x0001__x0001__x0001__x0001__x0001__x0001__x0001__x0005__x0001__x0001__x0001_H2972(_x0001__x0001__x0001_=(RiskData(NR_to_Cash!D$18,$A2972))/1000_x0001__x0001__x0001__x0001__x0001__x0001__x0001__x0001__x0001__x0001__x0001__x0001__x0005__x0001__x0001__x0001_I2972(_x0001__x0001__x0001_=(RiskData(NR_to_Cash!E$18,$A2972))/1000_x0001__x0001__x0001__x0001__x0001__x0001__x0001__x0001__x0001__x0001__x0001__x0001__x0005__x0001__x0001__x0001_B2973*_x0001__x0001__x0001_=RiskData('Risk Summary'!J$48,$A_x0001__x0002_2973)/1000_x0001__x0001__x0001__x0001__x0001__x0001__x0001__x0001__x0001__x0001__x0001__x0001__x0005__x0001__x0001__x0001_C2973*_x0001__x0001__x0001_=RiskData('Risk Summary'!K$48,$A2973)/1000_x0001__x0001__x0001__x0001__x0001__x0001__x0001__x0001__x0001__x0001__x0001__x0001__x0005__x0001__x0001__x0001_D2973*_x0001__x0001__x0001_=RiskData('Risk Summary'!L$48,$A2973)/1000_x0001__x0001__x0001__x0001__x0001__x0001__x0001__x0001__x0001__x0001__x0001__x0001__x0005__x0001__x0001__x0001_G2973(_x0001__x0001__x0001_=(RiskData(NR_to_Cash!C$18,$A2973))/1000_x0001__x0001__x0001__x0001__x0001__x0001__x0001__x0001__x0001__x0001__x0001__x0001__x0005__x0001__x0001__x0001_H2973(_x0001__x0001__x0001_=(RiskData(NR_to_C_x0001__x0002_ash!D$18,$A2973))/1000_x0001__x0001__x0001__x0001__x0001__x0001__x0001__x0001__x0001__x0001__x0001__x0001__x0005__x0001__x0001__x0001_I2973(_x0001__x0001__x0001_=(RiskData(NR_to_Cash!E$18,$A2973))/1000_x0001__x0001__x0001__x0001__x0001__x0001__x0001__x0001__x0001__x0001__x0001__x0001__x0005__x0001__x0001__x0001_B2974*_x0001__x0001__x0001_=RiskData('Risk Summary'!J$48,$A2974)/1000_x0001__x0001__x0001__x0001__x0001__x0001__x0001__x0001__x0001__x0001__x0001__x0001__x0005__x0001__x0001__x0001_C2974*_x0001__x0001__x0001_=RiskData('Risk Summary'!K$48,$A2974)/1000_x0001__x0001__x0001__x0001__x0001__x0001__x0001__x0001__x0001__x0001__x0001__x0001__x0005__x0001__x0001__x0001_D2974*_x0001__x0001__x0001_=RiskD_x0001__x0002_ata('Risk Summary'!L$48,$A2974)/1000_x0001__x0001__x0001__x0001__x0001__x0001__x0001__x0001__x0001__x0001__x0001__x0001__x0005__x0001__x0001__x0001_G2974(_x0001__x0001__x0001_=(RiskData(NR_to_Cash!C$18,$A2974))/1000_x0001__x0001__x0001__x0001__x0001__x0001__x0001__x0001__x0001__x0001__x0001__x0001__x0005__x0001__x0001__x0001_H2974(_x0001__x0001__x0001_=(RiskData(NR_to_Cash!D$18,$A2974))/1000_x0001__x0001__x0001__x0001__x0001__x0001__x0001__x0001__x0001__x0001__x0001__x0001__x0005__x0001__x0001__x0001_I2974(_x0001__x0001__x0001_=(RiskData(NR_to_Cash!E$18,$A2974))/1000_x0001__x0001__x0001__x0001__x0001__x0001__x0001__x0001__x0001__x0001__x0001__x0001__x0005__x0001__x0001__x0001_B2975_x0001__x0002_*_x0001__x0001__x0001_=RiskData('Risk Summary'!J$48,$A2975)/1000_x0001__x0001__x0001__x0001__x0001__x0001__x0001__x0001__x0001__x0001__x0001__x0001__x0005__x0001__x0001__x0001_C2975*_x0001__x0001__x0001_=RiskData('Risk Summary'!K$48,$A2975)/1000_x0001__x0001__x0001__x0001__x0001__x0001__x0001__x0001__x0001__x0001__x0001__x0001__x0005__x0001__x0001__x0001_D2975*_x0001__x0001__x0001_=RiskData('Risk Summary'!L$48,$A2975)/1000_x0001__x0001__x0001__x0001__x0001__x0001__x0001__x0001__x0001__x0001__x0001__x0001__x0005__x0001__x0001__x0001_G297"}},{"$cut":{"chars":90588,"head":"60f2269650275f3a70da5c0e360a3b3d_x0001__x0002_/1000_x0001__x0001__x0001__x0001__x0001__x0001__x0001__x0001__x0001__x0001__x0001__x0001__x0005__x0001__x0001__x0001_D3053*_x0001__x0001__x0001_=RiskData('Risk Summary'!L$48,$A3053)/1000_x0001__x0001__x0001__x0001__x0001__x0001__x0001__x0001__x0001__x0001__x0001__x0001__x0005__x0001__x0001__x0001_G3053(_x0001__x0001__x0001_=(RiskData(NR_to_Cash!C$18,$A3053))/1000_x0001__x0001__x0001__x0001__x0001__x0001__x0001__x0001__x0001__x0001__x0001__x0001__x0005__x0001__x0001__x0001_H3053(_x0001__x0001__x0001_=(RiskData(NR_to_Cash!D$18,$A3053))/1000_x0001__x0001__x0001__x0001__x0001__x0001__x0001__x0001__x0001__x0001__x0001__x0001__x0005__x0001__x0001__x0001_I3053(_x0001__x0001__x0001_=(RiskData(NR_to_Cash!E$1_x0001__x0002_8,$A3053))/1000_x0001__x0001__x0001__x0001__x0001__x0001__x0001__x0001__x0001__x0001__x0001__x0001__x0005__x0001__x0001__x0001_B3054*_x0001__x0001__x0001_=RiskData('Risk Summary'!J$48,$A3054)/1000_x0001__x0001__x0001__x0001__x0001__x0001__x0001__x0001__x0001__x0001__x0001__x0001__x0005__x0001__x0001__x0001_C3054*_x0001__x0001__x0001_=RiskData('Risk Summary'!K$48,$A3054)/1000_x0001__x0001__x0001__x0001__x0001__x0001__x0001__x0001__x0001__x0001__x0001__x0001__x0005__x0001__x0001__x0001_D3054*_x0001__x0001__x0001_=RiskData('Risk Summary'!L$48,$A3054)/1000_x0001__x0001__x0001__x0001__x0001__x0001__x0001__x0001__x0001__x0001__x0001__x0001__x0005__x0001__x0001__x0001_G3054(_x0001__x0001__x0001_=(RiskData(_x0001__x0002_NR_to_Cash!C$18,$A3054))/1000_x0001__x0001__x0001__x0001__x0001__x0001__x0001__x0001__x0001__x0001__x0001__x0001__x0005__x0001__x0001__x0001_H3054(_x0001__x0001__x0001_=(RiskData(NR_to_Cash!D$18,$A3054))/1000_x0001__x0001__x0001__x0001__x0001__x0001__x0001__x0001__x0001__x0001__x0001__x0001__x0005__x0001__x0001__x0001_I3054(_x0001__x0001__x0001_=(RiskData(NR_to_Cash!E$18,$A3054))/1000_x0001__x0001__x0001__x0001__x0001__x0001__x0001__x0001__x0001__x0001__x0001__x0001__x0005__x0001__x0001__x0001_B3055*_x0001__x0001__x0001_=RiskData('Risk Summary'!J$48,$A3055)/1000_x0001__x0001__x0001__x0001__x0001__x0001__x0001__x0001__x0001__x0001__x0001__x0001__x0005__x0001__x0001__x0001_C3055*_x0001__x0001__x0001_=_x0001__x0002_RiskData('Risk Summary'!K$48,$A3055)/1000_x0001__x0001__x0001__x0001__x0001__x0001__x0001__x0001__x0001__x0001__x0001__x0001__x0005__x0001__x0001__x0001_D3055*_x0001__x0001__x0001_=RiskData('Risk Summary'!L$48,$A3055)/1000_x0001__x0001__x0001__x0001__x0001__x0001__x0001__x0001__x0001__x0001__x0001__x0001__x0005__x0001__x0001__x0001_G3055(_x0001__x0001__x0001_=(RiskData(NR_to_Cash!C$18,$A3055))/1000_x0001__x0001__x0001__x0001__x0001__x0001__x0001__x0001__x0001__x0001__x0001__x0001__x0005__x0001__x0001__x0001_H3055(_x0001__x0001__x0001_=(RiskData(NR_to_Cash!D$18,$A3055))/1000_x0001__x0001__x0001__x0001__x0001__x0001__x0001__x0001__x0001__x0001__x0001__x0001__x0005__x0001__x0001__x0002__x0001__x0001_I3055(_x0001__x0001__x0001_=(RiskData(NR_to_Cash!E$18,$A3055))/1000_x0001__x0001__x0001__x0001__x0001__x0001__x0001__x0001__x0001__x0001__x0001__x0001__x0005__x0001__x0001__x0001_B3056*_x0001__x0001__x0001_=RiskData('Risk Summary'!J$48,$A3056)/1000_x0001__x0001__x0001__x0001__x0001__x0001__x0001__x0001__x0001__x0001__x0001__x0001__x0005__x0001__x0001__x0001_C3056*_x0001__x0001__x0001_=RiskData('Risk Summary'!K$48,$A3056)/1000_x0001__x0001__x0001__x0001__x0001__x0001__x0001__x0001__x0001__x0001__x0001__x0001__x0005__x0001__x0001__x0001_D3056*_x0001__x0001__x0001_=RiskData('Risk Summary'!L$48,$A3056)/1000_x0001__x0002__x0001__x0001__x0001__x0001__x0001__x0001__x0001__x0001__x0001__x0001__x0001__x0001__x0005__x0001__x0001__x0001_G3056(_x0001__x0001__x0001_=(RiskData(NR_to_Cash!C$18,$A3056))/1000_x0001__x0001__x0001__x0001__x0001__x0001__x0001__x0001__x0001__x0001__x0001__x0001__x0005__x0001__x0001__x0001_H3056(_x0001__x0001__x0001_=(RiskData(NR_to_Cash!D$18,$A3056))/1000_x0001__x0001__x0001__x0001__x0001__x0001__x0001__x0001__x0001__x0001__x0001__x0001__x0005__x0001__x0001__x0001_I3056(_x0001__x0001__x0001_=(RiskData(NR_to_Cash!E$18,$A3056))/1000_x0001__x0001__x0"}},{"$cut":{"chars":91842,"head":"cb3d2b4e5ebf3e5389060a35fe0089df_x0001__x0002_33)/1000_x0001__x0001__x0001__x0001__x0001__x0001__x0001__x0001__x0001__x0001__x0001__x0001__x0005__x0001__x0001__x0001_G3133(_x0001__x0001__x0001_=(RiskData(NR_to_Cash!C$18,$A3133))/1000_x0001__x0001__x0001__x0001__x0001__x0001__x0001__x0001__x0001__x0001__x0001__x0001__x0005__x0001__x0001__x0001_H3133(_x0001__x0001__x0001_=(RiskData(NR_to_Cash!D$18,$A3133))/1000_x0001__x0001__x0001__x0001__x0001__x0001__x0001__x0001__x0001__x0001__x0001__x0001__x0005__x0001__x0001__x0001_I3133(_x0001__x0001__x0001_=(RiskData(NR_to_Cash!E$18,$A3133))/1000_x0001__x0001__x0001__x0001__x0001__x0001__x0001__x0001__x0001__x0001__x0001__x0001__x0005__x0001__x0001__x0001_B3134*_x0001__x0001__x0001_=RiskData('Risk Summary'_x0001__x0002_!J$48,$A3134)/1000_x0001__x0001__x0001__x0001__x0001__x0001__x0001__x0001__x0001__x0001__x0001__x0001__x0005__x0001__x0001__x0001_C3134*_x0001__x0001__x0001_=RiskData('Risk Summary'!K$48,$A3134)/1000_x0001__x0001__x0001__x0001__x0001__x0001__x0001__x0001__x0001__x0001__x0001__x0001__x0005__x0001__x0001__x0001_D3134*_x0001__x0001__x0001_=RiskData('Risk Summary'!L$48,$A3134)/1000_x0001__x0001__x0001__x0001__x0001__x0001__x0001__x0001__x0001__x0001__x0001__x0001__x0005__x0001__x0001__x0001_G3134(_x0001__x0001__x0001_=(RiskData(NR_to_Cash!C$18,$A3134))/1000_x0001__x0001__x0001__x0001__x0001__x0001__x0001__x0001__x0001__x0001__x0001__x0001__x0005__x0001__x0001__x0001_H3134(_x0001__x0001__x0001_=(RiskData_x0001__x0002_(NR_to_Cash!D$18,$A3134))/1000_x0001__x0001__x0001__x0001__x0001__x0001__x0001__x0001__x0001__x0001__x0001__x0001__x0005__x0001__x0001__x0001_I3134(_x0001__x0001__x0001_=(RiskData(NR_to_Cash!E$18,$A3134))/1000_x0001__x0001__x0001__x0001__x0001__x0001__x0001__x0001__x0001__x0001__x0001__x0001__x0005__x0001__x0001__x0001_B3135*_x0001__x0001__x0001_=RiskData('Risk Summary'!J$48,$A3135)/1000_x0001__x0001__x0001__x0001__x0001__x0001__x0001__x0001__x0001__x0001__x0001__x0001__x0005__x0001__x0001__x0001_C3135*_x0001__x0001__x0001_=RiskData('Risk Summary'!K$48,$A3135)/1000_x0001__x0001__x0001__x0001__x0001__x0001__x0001__x0001__x0001__x0001__x0001__x0001__x0005__x0001__x0001__x0001_D3135*_x0001__x0001__x0002__x0001__x0001_=RiskData('Risk Summary'!L$48,$A3135)/1000_x0001__x0001__x0001__x0001__x0001__x0001__x0001__x0001__x0001__x0001__x0001__x0001__x0005__x0001__x0001__x0001_G3135(_x0001__x0001__x0001_=(RiskData(NR_to_Cash!C$18,$A3135))/1000_x0001__x0001__x0001__x0001__x0001__x0001__x0001__x0001__x0001__x0001__x0001__x0001__x0005__x0001__x0001__x0001_H3135(_x0001__x0001__x0001_=(RiskData(NR_to_Cash!D$18,$A3135))/1000_x0001__x0001__x0001__x0001__x0001__x0001__x0001__x0001__x0001__x0001__x0001__x0001__x0005__x0001__x0001__x0001_I3135(_x0001__x0001__x0001_=(RiskData(NR_to_Cash!E$18,$A3135))/1000_x0001__x0001__x0001__x0001__x0001__x0001__x0001__x0001__x0001__x0001__x0001__x0001__x0005__x0001__x0002__x0001__x0001__x0001_B3136*_x0001__x0001__x0001_=RiskData('Risk Summary'!J$48,$A3136)/1000_x0001__x0001__x0001__x0001__x0001__x0001__x0001__x0001__x0001__x0001__x0001__x0001__x0005__x0001__x0001__x0001_C3136*_x0001__x0001__x0001_=RiskData('Risk Summary'!K$48,$A3136)/1000_x0001__x0001__x0001__x0001__x0001__x0001__x0001__x0001__x0001__x0001__x0001__x0001__x0005__x0001__x0001__x0001_D3136*_x0001__x0001__x0001_=RiskData('Risk Summary'!L$48,$A3136)/1000_x0001__x0001__x0001__x0001__x0001__x0001__x0001__x0001__x0001__x0001__x0001__x0001__x0005__x0001__x0001__x0001_G3136(_x0001__x0001__x0001_=(RiskData(NR_to_Cash!C$18,$A3136))/100_x0001__x0002_0_x0001__x0001__x0001__x0001__x0001__x0001__x0001__x0001__x0001__x0001__x0001__x0001__x0005__x0001__x0001__x0001_H3136(_x0001__x0001__x0001_=(RiskData(NR_to_Cash!D$18,$A3136))/1000_x0001__x0001__x0001__x0001__x0001__x0001__x0001__x0001__x0001__x0001__x0001__x0001__x0005__x0001__x0001__x0001_I3136(_x0001__x0001__x0001_=(RiskData(NR_to_Cash!E$18,$A3136))/1000_x0001__x0001__x0001__x0001__x0001__x0001__x0001__x0001__x0001__x0001__x0001__x0001__x0005__x0001__x0001__x0001_B3137*_x0001__x0001__x0001_=RiskData('Risk Summary'!J$48,$A3137)/1000_x0001__x0001_"}},{"$cut":{"chars":208296,"head":"bb1ea7071e9676ed0aa7ca1466574aad_x0001__x0002__x0001__x0001__x0001__x0001__x0001__x0003__x0001__x0001__x0001_H22_x001E__x0001__x0001__x0001_=RiskPercentile($K22,95%)/1000_x0001__x0001__x0001__x0001__x0001__x0001__x0001__x0001__x0001__x0001__x0001__x0001__x0003__x0001__x0001__x0001_F23_x001D__x0001__x0001__x0001_=RiskPercentile($K23,5%)/1000_x0001__x0001__x0001__x0001__x0001__x0001__x0001__x0001__x0001__x0001__x0001__x0001__x0003__x0001__x0001__x0001_G23_x0014__x0001__x0001__x0001_=RiskMean($K23)/1000_x0001__x0001__x0001__x0001__x0001__x0001__x0001__x0001__x0001__x0001__x0001__x0001__x0003__x0001__x0001__x0001_H23_x001E__x0001__x0001__x0001_=RiskPercentile($K23,95%)/1000_x0001__x0001__x0001__x0001__x0001__x0001__x0001__x0001__x0001__x0001__x0001__x0001__x0003__x0001__x0001__x0001_F24_x001D__x0001__x0001__x0001_=RiskPercentile($K24,5%)/1000_x0001__x0001__x0001__x0001__x0001__x0001__x0001__x0002__x0001__x0001__x0001__x0001__x0001__x0001__x0003__x0001__x0001__x0001_G24_x0014__x0001__x0001__x0001_=RiskMean($K24)/1000_x0001__x0001__x0001__x0001__x0001__x0001__x0001__x0001__x0001__x0001__x0001__x0001__x0003__x0001__x0001__x0001_H24_x001E__x0001__x0001__x0001_=RiskPercentile($K24,95%)/1000_x0001__x0001__x0001__x0001__x0001__x0001__x0001__x0001__x0001__x0001__x0001__x0001__x0003__x0001__x0001__x0001_F25_x001D__x0001__x0001__x0001_=RiskPercentile($K25,5%)/1000_x0001__x0001__x0001__x0001__x0001__x0001__x0001__x0001__x0001__x0001__x0001__x0001__x0003__x0001__x0001__x0001_G25_x0014__x0001__x0001__x0001_=RiskMean($K25)/1000_x0001__x0001__x0001__x0001__x0001__x0001__x0001__x0001__x0001__x0001__x0001__x0001__x0003__x0001__x0001__x0001_H25_x001E__x0001__x0001__x0001_=RiskPercentile($K25,95%)/1000_x0001__x0001__x0001__x0001__x0001__x0001__x0001__x0001__x0001__x0001__x0001__x0001__x0003__x0001__x0001__x0002__x0001__x0001_F26_x001D__x0001__x0001__x0001_=RiskPercentile($K26,5%)/1000_x0001__x0001__x0001__x0001__x0001__x0001__x0001__x0001__x0001__x0001__x0001__x0001__x0003__x0001__x0001__x0001_G26_x0014__x0001__x0001__x0001_=RiskMean($K26)/1000_x0001__x0001__x0001__x0001__x0001__x0001__x0001__x0001__x0001__x0001__x0001__x0001__x0003__x0001__x0001__x0001_H26_x001E__x0001__x0001__x0001_=RiskPercentile($K26,95%)/1000_x0001__x0001__x0001__x0001__x0001__x0001__x0001__x0001__x0001__x0001__x0001__x0001__x0003__x0001__x0001__x0001_F27_x001D__x0001__x0001__x0001_=RiskPercentile($K27,5%)/1000_x0001__x0001__x0001__x0001__x0001__x0001__x0001__x0001__x0001__x0001__x0001__x0001__x0003__x0001__x0001__x0001_G27_x0014__x0001__x0001__x0001_=RiskMean($K27)/1000_x0001__x0001__x0001__x0001__x0001__x0001__x0001__x0001__x0001__x0001__x0001__x0001__x0003__x0001__x0001__x0001_H27_x001E__x0001__x0001__x0001__x0001__x0002_=RiskPercentile($K27,95%)/1000_x0001__x0001__x0001__x0001__x0001__x0001__x0001__x0001__x0001__x0001__x0001__x0001__x0003__x0001__x0001__x0001_F28_x001D__x0001__x0001__x0001_=RiskPercentile($K28,5%)/1000_x0001__x0001__x0001__x0001__x0001__x0001__x0001__x0001__x0001__x0001__x0001__x0001__x0003__x0001__x0001__x0001_G28_x0014__x0001__x0001__x0001_=RiskMean($K28)/1000_x0001__x0001__x0001__x0001__x0001__x0001__x0001__x0001__x0001__x0001__x0001__x0001__x0003__x0001__x0001__x0001_H28_x001E__x0001__x0001__x0001_=RiskPercentile($K28,95%)/1000_x0001__x0001__x0001__x0001__x0001__x0001__x0001__x0001__x0001__x0001__x0001__x0001__x0003__x0001__x0001__x0001_F29_x001D__x0001__x0001__x0001_=RiskPercentile($K29,5%)/1000_x0001__x0001__x0001__x0001__x0001__x0001__x0001__x0001__x0001__x0001__x0001__x0001__x0003__x0001__x0001__x0001_G29_x0014__x0001__x0001__x0001__x0002__x0001_=RiskMean($K29)/1000_x0001__x0001__x0001__x0001__x0001__x0001__x0001__x0001__x0001__x0001__x0001__x0001__x0003__x0001__x0001__x0001_H29_x001E__x0001__x0001__x0001_=RiskPercentile($K29,95%)/1000_x0001__x0001__x0001__x0001__x0001__x0001__x0001__x0001__x0001__x0001__x0001__x0001__x0003__x0001__x0001__x0001_F30_x001D__x0001__x0001__x0001_=RiskPercentile($K30,5%)/1000_x0001__x0001__x0001__x0001__x0001__x0001__x0001__x0001__x0001__x0001__x0001__x0001__x0003__x0001__x0001__x0001_G30_x0014__x0001__x0001__x0001"}},{"$cut":{"chars":139476,"head":"c87cd30bbdd6b7a139ff1a217dfa6cfa_x0001__x0002__x0001__x0001__x0001__x0001__x0001__x0001__x0001__x0001__x0001__x0001__x0001__x0001__x0001__x0001__x0001__x0001__x0001__x0001__x0001__x0001__x0001__x0001__x0001__x0001__x0001__x0001__x0001__x0001__x0001__x0001__x0001__x0001__x0001__x0001__x0001__x0001__x0001__x0001__x0001__x0001__x0001__x0001__x0001__x0001__x0001__x0001__x0001__x0001__x0001__x0001__x0001__x0001__x0001__x0001__x0001__x0001__x0001__x0001__x0001__x0001__x0001__x0001__x0001__x0001__x0001__x0001__x0001__x0001__x0001__x0001__x0001__x0001__x0001__x0001__x0001__x0001__x0001__x0001__x0001__x0001__x0001__x0001__x0001__x0001__x0001__x0001__x0001__x0001__x0001__x0001__x0001__x0001__x0001__x0001__x0001__x0001__x0001__x0001__x0001__x0001__x0001__x0001__x0001__x0001__x0001__x0001__x0001__x0001__x0001__x0001__x0001__x0001__x0001__x0001__x0001__x0001__x0001__x0001__x0001__x0001__x0001__x0001__x0001__x0001__x0001__x0001__x0001__x0001__x0001__x0001__x0001__x0001__x0001__x0001__x0001__x0001__x0001__x0001__x0001__x0001__x0001__x0001__x0001__x0001__x0001__x0001__x0001__x0001__x0001__x0001__x0001__x0001__x0001__x0001__x0001__x0001__x0001__x0001__x0001__x0001__x0001__x0001__x0001__x0001__x0001__x0001__x0001__x0001__x0001__x0001__x0001__x0001__x0001__x0001__x0001__x0001__x0001__x0001__x0001__x0001__x0001__x0001__x0001__x0001__x0001__x0001__x0001__x0001__x0001__x0001__x0001__x0001__x0001__x0001__x0001__x0001__x0001__x0001__x0001__x0001__x0001__x0001__x0001__x0001__x0001__x0001__x0001__x0001__x0001__x0001__x0001__x0001__x0001__x0001__x0001__x0001__x0001__x0001__x0001__x0001__x0001__x0001__x0001__x0001__x0001__x0001__x0001__x0001__x0001__x0001__x0001__x0001__x0001__x0001__x0001__x0001__x0001__x0001__x0001__x0001__x0001__x0001__x0001__x0001__x0001__x0001__x0001__x0001__x0001__x0001__x0001__x0001__x0001__x0002__x0001__x0001__x0001__x0001__x0001__x0001__x0001__x0001__x0001__x0001__x0001__x0001__x0001__x0001__x0001__x0001__x0001__x0001__x0001__x0001__x0001__x0001__x0001__x0001__x0001__x0001__x0001__x0001__x0001__x0001__x0001__x0001__x0001__x0001__x0001__x0001__x0001__x0001__x0001__x0001__x0001__x0001__x0001__x0001__x0001__x0001__x0001__x0001__x0001__x0001__x0001__x0001__x0001__x0001__x0001__x0001__x0001__x0001__x0001__x0001__x0001__x0001__x0001__x0001__x0001__x0001__x0001__x0001__x0001__x0001__x0001__x0001__x0001__x0001__x0001__x0001__x0001__x0001__x0001__x0001__x0001__x0001__x0001__x0001__x0001__x0001__x0001__x0001__x0001__x0001__x0001__x0001__x0001__x0001__x0001__x0001__x0001__x0001__x0001__x0001__x0001__x0001__x0001__x0001__x0001__x0001__x0001__x0001__x0001__x0001__x0001__x0001__x0001__x0001__x0001__x0001__x0001__x0001__x0001__x0001__x0001__x0001__x0001__x0001__x0001__x0001__x0001__x0001__x0001__x0001__x0001__x0001__x0001__x0001__x0001__x0001__x0001__x0001__x0001__x0001__x0001__x0001__x0001__x0001__x0001__x0001__x0001__x0001__x0001__x0001__x0001__x0001__x0001__x0001__x0001__x0001__x0001__x0001__x0001__x0001__x0001__x0001__x0001__x0001__x0001__x0001__x0001__x0001__x0001__x0001__x0001__x0001__x0001__x0001__x0001__x0001__x0001__x0001__x0001__x0001__x0001__x0001__x0001__x0001__x0001__x0001__x0001__x0001__x0001__x0001__x0001__x0001__x0001__x0001__x0001__x0001__x0001__x0001__x0001__x0001__x0001__x0001__x0001__x0001__x0001__x0001__x0001__x0001__x0001__x0001__x0001__x0001__x0001__x0001__x0001__x0001__x0001__x0001__x0001__x0001__x0001__x0001__x0001__x0001__x0001__x0001__x0001__x0001__x0001__x0001__x0001__x0001__x0001__x0001__x0001__x0001__x0001__x0001__x0001__x0001__x0001__x0001__x0001__x0001__x0001__x0001__x0001__x0001__x0001__x0001__x0001__x0001__x0001__x0002__x0001__x0001__x0001__x0001__x0001__x0001__x0001__x0001__x0001__x0001__x0001__x0001__x0001__x0001__x0001__x0001__x0001__x0001__x0001__x0001__x0001__x0001__x0001__x0001__x0001__x0001__x0001__x0001__x0001__x0001__x0001__x0001__x0001__x0001__x0001__x0001__x0001__x0001__x0001__x0001__x0001__x0001__x0001__x0001__x0001__x0001__x0001__x0001__x0001__x0001__x0001__x0001__x0001__x0001__x0001__x0001__x0001__x0001__x0001__x0001__x0001__x0001__x0001__x0001__x0001__x0001__x0001__x0001__x0001__x0001__x00"}},{"$cut":{"chars":97200,"head":"7882c095b2628763dcb85dc8883fb2db_x0002__x0004__x0002__x0002__x0002_\u0080_x0002__x0002__x0002_\u0080_x0002__x0002__x0002_\u0080_x0002__x0002__x0002_\u0080_x0002__x0002__x0002__x0002__x0002__x0004__x0002__x0002__x0002__x0005__x0002__x001E__x0002__x0002_\u0080=RiskDiscrete(F12:H12,F13:H13)_x0015__x0002__x0002_\u0080discrete_x0001_E11_x0001_F4_x0001_FY 17_x0002__x0001__x0002__x0002__x0002__x0002_1_x0002__x0002__x0002__x0001__x0002__x0002__x0002__x001E__x0002__x0002__x0002__x0002__x0002__x0002_\u0080_x0001__x0002_ÿÿÿÿ_x0002__x0002__x0002_\u0080_x0002__x0002__x0002_\u0080_x0002__x0002__x0002_\u0080_x0002__x0002__x0002_\u0080_x0002__x0002__x0002__x0002__x0002__x0008__x0002__x0002_\u0080Salaries_x0003__x0002__x0002__x0002__x0002__x001A__x0002__x0002__x0002__x0001__x0002_V_x0002__x0002_\u0080=RiskOutput(,\"=Staffing Cost Delta\",1)+RiskPertAlt(5%,B23*B26,50%,B24*B26,95%,B25*B26)_x0017__x0002__x0002_\u0080_x0003__x0004_Cost Delta_x0001_A27_x0001_B4_x0001_FY 17_x0003__x0001__x0003__x0003__x0003__x0003_2_x0003__x0003__x0003_'_x0003__x0003__x0003_V_x0003__x0003__x0003__x0003__x0003__x0003_\u0080_x0001__x0003_ÿÿÿÿ_x0003__x0003__x0003_\u0080_x0003__x0003__x0003_\u0080_x0003__x0003__x0003_\u0080_x0003__x0003__x0003_\u0080_x0001__x0003__x0003__x0003__x0003__x0003__x0003__x0003__x0003__x0001__x0003__x0003__x0003_&_x0003__x0003__x0003__x0001__x0003__x0003__x0003__x0003_\u0080_x0014__x0003__x0003_\u0080=Staffing Cost Delta_x0001__x0003__x0003__x0003__x0001_ÿÿÿÿÿÿÿÿÿÿÿÿÿÿÿÿÿÿÿÿÿÿÿÿÿÿÿÿÿÿÿÿÿÿÿÿÿÿÿÿÿÿ_x0003_ÿÿ_x0003__x001A__x0003__x0003__x0003__x0002__x0003_V_x0003__x0003_\u0080=RiskOutput(,\"=Staffing Cost Delta\",1)+RiskPertAlt(5%,C23*C26,50%,C24*C26,95%_x0002__x0004_,C25*C26)_x0017__x0002__x0002_\u0080Cost Delta_x0001_A27_x0001_C4_x0001_FY 18_x0002__x0001__x0002__x0002__x0002__x0002_3_x0002__x0002__x0002_'_x0002__x0002__x0002_V_x0002__x0002__x0002__x0002__x0002__x0002_\u0080_x0001__x0002_ÿÿÿÿ_x0002__x0002__x0002_\u0080_x0002__x0002__x0002_\u0080_x0002__x0002__x0002_\u0080_x0002__x0002__x0002_\u0080_x0001__x0002__x0002__x0002__x0002__x0001__x0002__x0002__x0002__x0001__x0002__x0002__x0002_&_x0002__x0002__x0002__x0001__x0002__x0002__x0002__x0002_\u0080_x0014__x0002__x0002_\u0080=Staffing Cost Delta_x0001__x0002__x0002__x0002__x0001_ÿÿÿÿÿÿÿÿÿÿÿÿÿÿÿÿÿÿÿÿÿÿÿÿÿÿÿÿÿÿÿÿÿÿÿÿÿÿÿÿÿÿ_x0002_ÿÿ_x0002__x001A__x0002__x0002__x0002__x0003__x0002_V_x0002__x0002_\u0080=RiskOutput(,\"=Staffing Cost Delta\",1)+RiskPertAlt(5%,D23*D26,50_x0003__x0004_%,D24*D26,95%,D25*D26)_x0017__x0003__x0003_\u0080Cost Delta_x0001_A27_x0001_D4_x0001_FY 19_x0003__x0001__x0003__x0003__x0003__x0003_4_x0003__x0003__x0003_'_x0003__x0003__x0003_V_x0003__x0003__x0003__x0003__x0003__x0003_\u0080_x0001__x0003_ÿÿÿÿ_x0003__x0003__x0003_\u0080_x0003__x0003__x0003_\u0080_x0003__x0003__x0003_\u0080_x0003__x0003__x0003_\u0080_x0001__x0003__x0003__x0003__x0003__x0002__x0003__x0003__x0003__x0001__x0003__x0003__x0003_&_x0003__x0003__x0003__x0001__x0003__x0003__x0003__x0003_\u0080_x0014__x0003__x0003_\u0080=Staffing Cost Delta_x0001__x0003__x0003__x0003__x0001_ÿÿÿÿÿÿÿÿÿÿÿÿÿÿÿÿÿÿÿÿÿÿÿÿÿÿÿÿÿÿÿÿÿÿÿÿÿÿÿÿÿÿ_x0003_ÿÿ_x0003__x000B__x0003__x0003_\u0080F&W Expense_x0010__x0003__x0003__x0003__x0003__x0008__x0003__x0003__x0003__x0006__x0003__x0016__x0003__x0003_\u0080=RiskPert(F10,F11,F12)#_x0003__x0003_\u0080F&W D_x0002__x0003_irect Program Cost_x0001_E9_x0001_G5_x0001_FY 17_x0002__x0001__x0002__x0002__x0002__x0002_5_x0002__x0002__x0002__x0001__x0002__x0002__x0002__x0016__x0002__x0002__x0002__x0002__x0002__x0002_\u0080_x0001__x0002_ÿÿÿÿ_x0002__x0002__x0002_\u0080_x0002__x0002__x0002_\u0080_x0002__x0002__x0002_\u0080_x0002__x0002__x0002_\u0080_x0002__x0002__x0002__x0002__x0002__x0008__x0002__x0002__x0002__x0008__x0002__x0016__x0002__x0002_\u0080=RiskPert(H10,H11,H12)#_x0002__x0002_\u0080F&W Direct Program Cost_x0001_E9_x0001_I5_x0001_FY 18_x0002__x0001__x0002__x0002__x0002__x0002_6_x0002__x0002__x0002__x0001__x0002__x0002__x0002__x0016__x0002__x0002__x0002__x0002__x0002__x0002_\u0080_x0001__x0002_ÿÿÿÿ_x0002__x0002__x0002_\u0080_x0002__x0002__x0002_\u0080_x0002__x0002__x0002_\u0080_x0002__x0002__x0002_\u0080_x0002__x0002__x0002__x0002__x0002__x0008__x0002__x0002__x0002__x0003__x0002__x0016__x0002__x0002_\u0080=RiskPert(J10,J11,J12)#_x0002__x0002_\u0080F&W Direct Progra_x0002__x0003_m Cost_x0001_E9_x0001_K5_x0001_FY 19_x0002__x0001__x0002__x0002__x0002__x0002_7_x0002__x0002__x0002__x0001__x0"}},{"$cut":{"chars":94800,"head":"977cf85187d8920bfcafc66707415e91_x0004__x0005_to_Cash!D$18,$A78))/1000_x0004__x0004__x0004_\u0080_x0004__x0004__x0004__x0004__x0004__x0004__x0004__x0004__x0004__x0004_M_x0004__x0004__x0004__x0008__x0004_&_x0004__x0004_\u0080=(RiskData(NR_to_Cash!E$18,$A78))/1000_x0004__x0004__x0004_\u0080_x0004__x0004__x0004__x0004__x0004__x0004__x0004__x0004__x0004__x0004_N_x0004__x0004__x0004__x0001__x0004_(_x0004__x0004_\u0080=RiskData('Risk Summary'!J$48,$A79)/1000_x0004__x0004__x0004_\u0080_x0004__x0004__x0004__x0004__x0004__x0004__x0004__x0004__x0004__x0004_N_x0004__x0004__x0004__x0002__x0004_(_x0004__x0004_\u0080=RiskData('Risk Summary'!K$48,$A79)/1000_x0004__x0004__x0004_\u0080_x0004__x0004__x0004__x0004__x0004__x0004__x0004__x0004__x0004__x0004_N_x0004__x0004__x0004__x0003__x0004_(_x0004__x0004_\u0080=RiskData('Ris_x0002__x0003_k Summary'!L$48,$A79)/1000_x0002__x0002__x0002_\u0080_x0002__x0002__x0002__x0002__x0002__x0002__x0002__x0002__x0002__x0002_N_x0002__x0002__x0002__x0006__x0002_&_x0002__x0002_\u0080=(RiskData(NR_to_Cash!C$18,$A79))/1000_x0002__x0002__x0002_\u0080_x0002__x0002__x0002__x0002__x0002__x0002__x0002__x0002__x0002__x0002_N_x0002__x0002__x0002__x0007__x0002_&_x0002__x0002_\u0080=(RiskData(NR_to_Cash!D$18,$A79))/1000_x0002__x0002__x0002_\u0080_x0002__x0002__x0002__x0002__x0002__x0002__x0002__x0002__x0002__x0002_N_x0002__x0002__x0002__x0008__x0002_&_x0002__x0002_\u0080=(RiskData(NR_to_Cash!E$18,$A79))/1000_x0002__x0002__x0002_\u0080_x0002__x0002__x0002__x0002__x0002__x0002__x0002__x0002__x0002__x0002_O_x0002__x0002__x0002__x0001__x0002_(_x0002__x0002_\u0080=RiskData('Risk _x0001__x0004_Summary'!J$48,$A80)/1000_x0001__x0001__x0001_\u0080_x0001__x0001__x0001__x0001__x0001__x0001__x0001__x0001__x0001__x0001_O_x0001__x0001__x0001__x0002__x0001_(_x0001__x0001_\u0080=RiskData('Risk Summary'!K$48,$A80)/1000_x0001__x0001__x0001_\u0080_x0001__x0001__x0001__x0001__x0001__x0001__x0001__x0001__x0001__x0001_O_x0001__x0001__x0001__x0003__x0001_(_x0001__x0001_\u0080=RiskData('Risk Summary'!L$48,$A80)/1000_x0001__x0001__x0001_\u0080_x0001__x0001__x0001__x0001__x0001__x0001__x0001__x0001__x0001__x0001_O_x0001__x0001__x0001__x0006__x0001_&_x0001__x0001_\u0080=(RiskData(NR_to_Cash!C$18,$A80))/1000_x0001__x0001__x0001_\u0080_x0001__x0001__x0001__x0001__x0001__x0001__x0001__x0001__x0001__x0001_O_x0001__x0001__x0001__x0007__x0001_&_x0001__x0001_\u0080=(RiskData(NR__x0004__x0005_to_Cash!D$18,$A80))/1000_x0004__x0004__x0004_\u0080_x0004__x0004__x0004__x0004__x0004__x0004__x0004__x0004__x0004__x0004_O_x0004__x0004__x0004__x0008__x0004_&_x0004__x0004_\u0080=(RiskData(NR_to_Cash!E$18,$A80))/1000_x0004__x0004__x0004_\u0080_x0004__x0004__x0004__x0004__x0004__x0004__x0004__x0004__x0004__x0004_P_x0004__x0004__x0004__x0001__x0004_(_x0004__x0004_\u0080=RiskData('Risk Summary'!J$48,$A81)/1000_x0004__x0004__x0004_\u0080_x0004__x0004__x0004__x0004__x0004__x0004__x0004__x0004__x0004__x0004_P_x0004__x0004__x0004__x0002__x0004_(_x0004__x0004_\u0080=RiskData('Risk Summary'!K$48,$A81)/1000_x0004__x0004__x0004_\u0080_x0004__x0004__x0004__x0004__x0004__x0004__x0004__x0004__x0004__x0004_P_x0004__x0004__x0004__x0003__x0004_(_x0004__x0004_\u0080=RiskData('Ris_x0002__x0003_k Summary'!L$48,$A81)/1000_x0002__x0002__x0002_\u0080_x0002__x0002__x0002__x0002__x0002__x0002__x0002__x0002__x0002__x0002_P_x0002__x0002__x0002__x0006__x0002_&_x0002__x0002_\u0080=(RiskData(NR_to_Cash!C$18,$A81))/1000_x0002__x0002__x0002_\u0080_x0002__x0002__x0002__x0002__x0002__x0002__x0002__x0002__x0002__x0002_P_x0002__x0002__x0002__x0007__x0002_&_x0002__x0002_\u0080=(RiskData(NR_to_Cash!D$18,$A81))/1000_x0002__x0002__x0002_\u0080_x0002__x0002__x0002__x0002__x0002__x0002__x0002__x0002__x0002__x0002_P_x0002__x0002__x0002__x0008__x0002_&_x0002__x0002_\u0080=(RiskData(NR_to_Cash!E$18,$A81))/1000_x0002__x0002__x0002_\u0080_x0002__x0002__x0002__x0002__x0002__x0002__x0002__x0002__x0002__x0002_Q_x0002__x0002__x0002__x0001__x0002_(_x0002__x0002_\u0080=RiskData('Risk _x0001__x0004_Summary'!J$48,$A82)/1000_x0001__x0001__x0001_\u0080_x0001__x0001__x0001__x0001__x0001__x0001__x0001__x0001__x0001__x0001_Q_x0001__x0001__x0001__x0002__x0001_(_x0001__x0001_\u0080=RiskData('Risk Summary'!K$48,$A82)/1000_x0001__x0001__x0001_\u0080_x0001__x0001__x0001__x0001__x0001__x0001__x0001__x0001__x0001__x0001_Q_x0001__x0001__x000"}},{"$cut":{"chars":95130,"head":"4adb7938199c9f2f6301c71ba4a42a87_x0001__x0004_Summary'!J$48,$A163)/1000_x0001__x0001__x0001_\u0080_x0001__x0001__x0001__x0001__x0001__x0001__x0001__x0001__x0001__x0001_¢_x0001__x0001__x0001__x0002__x0001_)_x0001__x0001_\u0080=RiskData('Risk Summary'!K$48,$A163)/1000_x0001__x0001__x0001_\u0080_x0001__x0001__x0001__x0001__x0001__x0001__x0001__x0001__x0001__x0001_¢_x0001__x0001__x0001__x0003__x0001_)_x0001__x0001_\u0080=RiskData('Risk Summary'!L$48,$A163)/1000_x0001__x0001__x0001_\u0080_x0001__x0001__x0001__x0001__x0001__x0001__x0001__x0001__x0001__x0001_¢_x0001__x0001__x0001__x0006__x0001_'_x0001__x0001_\u0080=(RiskData(NR_to_Cash!C$18,$A163))/1000_x0001__x0001__x0001_\u0080_x0001__x0001__x0001__x0001__x0001__x0001__x0001__x0001__x0001__x0001_¢_x0001__x0001__x0001__x0007__x0001_'_x0001__x0001_\u0080=(RiskData_x0004__x0005_(NR_to_Cash!D$18,$A163))/1000_x0004__x0004__x0004_\u0080_x0004__x0004__x0004__x0004__x0004__x0004__x0004__x0004__x0004__x0004_¢_x0004__x0004__x0004__x0008__x0004_'_x0004__x0004_\u0080=(RiskData(NR_to_Cash!E$18,$A163))/1000_x0004__x0004__x0004_\u0080_x0004__x0004__x0004__x0004__x0004__x0004__x0004__x0004__x0004__x0004_£_x0004__x0004__x0004__x0001__x0004_)_x0004__x0004_\u0080=RiskData('Risk Summary'!J$48,$A164)/1000_x0004__x0004__x0004_\u0080_x0004__x0004__x0004__x0004__x0004__x0004__x0004__x0004__x0004__x0004_£_x0004__x0004__x0004__x0002__x0004_)_x0004__x0004_\u0080=RiskData('Risk Summary'!K$48,$A164)/1000_x0004__x0004__x0004_\u0080_x0004__x0004__x0004__x0004__x0004__x0004__x0004__x0004__x0004__x0004_£_x0004__x0004__x0004__x0003__x0004_)_x0004__x0004_\u0080=RiskD_x0002__x0003_ata('Risk Summary'!L$48,$A164)/1000_x0002__x0002__x0002_\u0080_x0002__x0002__x0002__x0002__x0002__x0002__x0002__x0002__x0002__x0002_£_x0002__x0002__x0002__x0006__x0002_'_x0002__x0002_\u0080=(RiskData(NR_to_Cash!C$18,$A164))/1000_x0002__x0002__x0002_\u0080_x0002__x0002__x0002__x0002__x0002__x0002__x0002__x0002__x0002__x0002_£_x0002__x0002__x0002__x0007__x0002_'_x0002__x0002_\u0080=(RiskData(NR_to_Cash!D$18,$A164))/1000_x0002__x0002__x0002_\u0080_x0002__x0002__x0002__x0002__x0002__x0002__x0002__x0002__x0002__x0002_£_x0002__x0002__x0002__x0008__x0002_'_x0002__x0002_\u0080=(RiskData(NR_to_Cash!E$18,$A164))/1000_x0002__x0002__x0002_\u0080_x0002__x0002__x0002__x0002__x0002__x0002__x0002__x0002__x0002__x0002_¤_x0002__x0002__x0002__x0001__x0002_)_x0002__x0002_\u0080=Ris_x0001__x0004_kData('Risk Summary'!J$48,$A165)/1000_x0001__x0001__x0001_\u0080_x0001__x0001__x0001__x0001__x0001__x0001__x0001__x0001__x0001__x0001_¤_x0001__x0001__x0001__x0002__x0001_)_x0001__x0001_\u0080=RiskData('Risk Summary'!K$48,$A165)/1000_x0001__x0001__x0001_\u0080_x0001__x0001__x0001__x0001__x0001__x0001__x0001__x0001__x0001__x0001_¤_x0001__x0001__x0001__x0003__x0001_)_x0001__x0001_\u0080=RiskData('Risk Summary'!L$48,$A165)/1000_x0001__x0001__x0001_\u0080_x0001__x0001__x0001__x0001__x0001__x0001__x0001__x0001__x0001__x0001_¤_x0001__x0001__x0001__x0006__x0001_'_x0001__x0001_\u0080=(RiskData(NR_to_Cash!C$18,$A165))/1000_x0001__x0001__x0001_\u0080_x0001__x0001__x0001__x0001__x0001__x0001__x0001__x0001__x0001__x0001_¤_x0001__x0001__x0001__x0007__x0001_'_x0001__x0003__x0004__x0003_\u0080=(RiskData(NR_to_Cash!D$18,$A165))/1000_x0003__x0003__x0003_\u0080_x0003__x0003__x0003__x0003__x0003__x0003__x0003__x0003__x0003__x0003_¤_x0003__x0003__x0003__x0008__x0003_'_x0003__x0003_\u0080=(RiskData(NR_to_Cash!E$18,$A165))/1000_x0003__x0003__x0003_\u0080_x0003__x0003__x0003__x0003__x0003__x0003__x0003__x0003__x0003__x0003_¥_x0003__x0003__x0003__x0001__x0003_)_x0003__x0003_\u0080=RiskData('Risk Summary'!J$48,$A166)/1000_x0003__x0003__x0003_\u0080_x0003__x0003__x0003__x0003__x0003__x0003__x0003__x0003__x0003__x0003_¥_x0003__x0003__x0003__x0002__x0003_)_x0003__x0003_\u0080=RiskData('Risk Summary'!K$48,$A166)/1000_x0003__x0003__x0003_\u0080_x0003__x0003__x0003__x0003__x0003__x0003__x0003__x0003__x0003__x0003_¥_x0003__x0003__x0003__x0001__x0002__x0003__x0001_)_x0001__x0001_\u0080=RiskData('Risk Summary'!L$48,$A166)/1000_x0001__x0001__x0001_\u0080_x0001__x0001__x0001__x0001__x0001__x0001__x0001__x0001__x0001__x0001_¥_x0001__x0001__x0001__x0006__x0001_'_x0001__x0001_\u0080=(RiskData(NR_to_Cash!C$18,$A166))/1000_x0001__x0001__x0001_\u0080_x0001__x0001__x0001__x0001__x0001__x0001__x0001__x0001__x0001__x000"}},{"$cut":{"chars":95676,"head":"9fb1781d3b8cf7b1cf7537df02d749cc_x0004__x0005_to_Cash!D$18,$A245))/1000_x0004__x0004__x0004_\u0080_x0004__x0004__x0004__x0004__x0004__x0004__x0004__x0004__x0004__x0004_ô_x0004__x0004__x0004__x0008__x0004_'_x0004__x0004_\u0080=(RiskData(NR_to_Cash!E$18,$A245))/1000_x0004__x0004__x0004_\u0080_x0004__x0004__x0004__x0004__x0004__x0004__x0004__x0004__x0004__x0004_õ_x0004__x0004__x0004__x0001__x0004_)_x0004__x0004_\u0080=RiskData('Risk Summary'!J$48,$A246)/1000_x0004__x0004__x0004_\u0080_x0004__x0004__x0004__x0004__x0004__x0004__x0004__x0004__x0004__x0004_õ_x0004__x0004__x0004__x0002__x0004_)_x0004__x0004_\u0080=RiskData('Risk Summary'!K$48,$A246)/1000_x0004__x0004__x0004_\u0080_x0004__x0004__x0004__x0004__x0004__x0004__x0004__x0004__x0004__x0004_õ_x0004__x0004__x0004__x0003__x0004_)_x0004__x0004_\u0080=RiskData(_x0002__x0003_'Risk Summary'!L$48,$A246)/1000_x0002__x0002__x0002_\u0080_x0002__x0002__x0002__x0002__x0002__x0002__x0002__x0002__x0002__x0002_õ_x0002__x0002__x0002__x0006__x0002_'_x0002__x0002_\u0080=(RiskData(NR_to_Cash!C$18,$A246))/1000_x0002__x0002__x0002_\u0080_x0002__x0002__x0002__x0002__x0002__x0002__x0002__x0002__x0002__x0002_õ_x0002__x0002__x0002__x0007__x0002_'_x0002__x0002_\u0080=(RiskData(NR_to_Cash!D$18,$A246))/1000_x0002__x0002__x0002_\u0080_x0002__x0002__x0002__x0002__x0002__x0002__x0002__x0002__x0002__x0002_õ_x0002__x0002__x0002__x0008__x0002_'_x0002__x0002_\u0080=(RiskData(NR_to_Cash!E$18,$A246))/1000_x0002__x0002__x0002_\u0080_x0002__x0002__x0002__x0002__x0002__x0002__x0002__x0002__x0002__x0002_ö_x0002__x0002__x0002__x0001__x0002_)_x0002__x0002_\u0080=RiskDat_x0001__x0004_a('Risk Summary'!J$48,$A247)/1000_x0001__x0001__x0001_\u0080_x0001__x0001__x0001__x0001__x0001__x0001__x0001__x0001__x0001__x0001_ö_x0001__x0001__x0001__x0002__x0001_)_x0001__x0001_\u0080=RiskData('Risk Summary'!K$48,$A247)/1000_x0001__x0001__x0001_\u0080_x0001__x0001__x0001__x0001__x0001__x0001__x0001__x0001__x0001__x0001_ö_x0001__x0001__x0001__x0003__x0001_)_x0001__x0001_\u0080=RiskData('Risk Summary'!L$48,$A247)/1000_x0001__x0001__x0001_\u0080_x0001__x0001__x0001__x0001__x0001__x0001__x0001__x0001__x0001__x0001_ö_x0001__x0001__x0001__x0006__x0001_'_x0001__x0001_\u0080=(RiskData(NR_to_Cash!C$18,$A247))/1000_x0001__x0001__x0001_\u0080_x0001__x0001__x0001__x0001__x0001__x0001__x0001__x0001__x0001__x0001_ö_x0001__x0001__x0001__x0007__x0001_'_x0001__x0001_\u0080=(_x0004__x0005_RiskData(NR_to_Cash!D$18,$A247))/1000_x0004__x0004__x0004_\u0080_x0004__x0004__x0004__x0004__x0004__x0004__x0004__x0004__x0004__x0004_ö_x0004__x0004__x0004__x0008__x0004_'_x0004__x0004_\u0080=(RiskData(NR_to_Cash!E$18,$A247))/1000_x0004__x0004__x0004_\u0080_x0004__x0004__x0004__x0004__x0004__x0004__x0004__x0004__x0004__x0004_÷_x0004__x0004__x0004__x0001__x0004_)_x0004__x0004_\u0080=RiskData('Risk Summary'!J$48,$A248)/1000_x0004__x0004__x0004_\u0080_x0004__x0004__x0004__x0004__x0004__x0004__x0004__x0004__x0004__x0004_÷_x0004__x0004__x0004__x0002__x0004_)_x0004__x0004_\u0080=RiskData('Risk Summary'!K$48,$A248)/1000_x0004__x0004__x0004_\u0080_x0004__x0004__x0004__x0004__x0004__x0004__x0004__x0004__x0004__x0004_÷_x0004__x0004__x0004__x0003__x0004_)_x0004__x0002__x0003__x0002_\u0080=RiskData('Risk Summary'!L$48,$A248)/1000_x0002__x0002__x0002_\u0080_x0002__x0002__x0002__x0002__x0002__x0002__x0002__x0002__x0002__x0002_÷_x0002__x0002__x0002__x0006__x0002_'_x0002__x0002_\u0080=(RiskData(NR_to_Cash!C$18,$A248))/1000_x0002__x0002__x0002_\u0080_x0002__x0002__x0002__x0002__x0002__x0002__x0002__x0002__x0002__x0002_÷_x0002__x0002__x0002__x0007__x0002_'_x0002__x0002_\u0080=(RiskData(NR_to_Cash!D$18,$A248))/1000_x0002__x0002__x0002_\u0080_x0002__x0002__x0002__x0002__x0002__x0002__x0002__x0002__x0002__x0002_÷_x0002__x0002__x0002__x0008__x0002_'_x0002__x0002_\u0080=(RiskData(NR_to_Cash!E$18,$A248))/1000_x0002__x0002__x0002_\u0080_x0002__x0002__x0002__x0002__x0002__x0002__x0002__x0002__x0002__x0002_ø_x0002__x0002__x0002__x0001__x0002__x0001__x0004_)_x0001__x0001_\u0080=RiskData('Risk Summary'!J$48,$A249)/1000_x0001__x0001__x0001_\u0080_x0001__x0001__x0001__x0001__x0001__x0001__x0001__x0001__x0001__x0001_ø_x0001__x0001__x0001__x0002__x0001_)_x0001__x0001_\u0080=RiskData('Risk Summary'!K$48,$A249)/1000_x0001__x0001__x0001_\u0080_x0001__x0001__x0001__x0001__x0001__x0001__x0001__x0001__x0001__x000"}},{"$cut":{"chars":94704,"head":"c6b81de2edd804cc2a9351c3a41970cd_x0004__x0005_to_Cash!D$18,$A329))/1000_x0004__x0004__x0004_\u0080_x0004__x0004__x0004__x0004__x0004__x0004__x0004__x0004__x0004__x0004_H_x0001__x0004__x0004__x0008__x0004_'_x0004__x0004_\u0080=(RiskData(NR_to_Cash!E$18,$A329))/1000_x0004__x0004__x0004_\u0080_x0004__x0004__x0004__x0004__x0004__x0004__x0004__x0004__x0004__x0004_I_x0001__x0004__x0004__x0001__x0004_)_x0004__x0004_\u0080=RiskData('Risk Summary'!J$48,$A330)/1000_x0004__x0004__x0004_\u0080_x0004__x0004__x0004__x0004__x0004__x0004__x0004__x0004__x0004__x0004_I_x0001__x0004__x0004__x0002__x0004_)_x0004__x0004_\u0080=RiskData('Risk Summary'!K$48,$A330)/1000_x0004__x0004__x0004_\u0080_x0004__x0004__x0004__x0004__x0004__x0004__x0004__x0004__x0004__x0004_I_x0001__x0004__x0004__x0003__x0004_)_x0004__x0004_\u0080=RiskData(_x0002__x0003_'Risk Summary'!L$48,$A330)/1000_x0002__x0002__x0002_\u0080_x0002__x0002__x0002__x0002__x0002__x0002__x0002__x0002__x0002__x0002_I_x0001__x0002__x0002__x0006__x0002_'_x0002__x0002_\u0080=(RiskData(NR_to_Cash!C$18,$A330))/1000_x0002__x0002__x0002_\u0080_x0002__x0002__x0002__x0002__x0002__x0002__x0002__x0002__x0002__x0002_I_x0001__x0002__x0002__x0007__x0002_'_x0002__x0002_\u0080=(RiskData(NR_to_Cash!D$18,$A330))/1000_x0002__x0002__x0002_\u0080_x0002__x0002__x0002__x0002__x0002__x0002__x0002__x0002__x0002__x0002_I_x0001__x0002__x0002__x0008__x0002_'_x0002__x0002_\u0080=(RiskData(NR_to_Cash!E$18,$A330))/1000_x0002__x0002__x0002_\u0080_x0002__x0002__x0002__x0002__x0002__x0002__x0002__x0002__x0002__x0002_J_x0001__x0002__x0002__x0001__x0002_)_x0002__x0002_\u0080=RiskDat_x0004__x0005_a('Risk Summary'!J$48,$A331)/1000_x0004__x0004__x0004_\u0080_x0004__x0004__x0004__x0004__x0004__x0004__x0004__x0004__x0004__x0004_J_x0001__x0004__x0004__x0002__x0004_)_x0004__x0004_\u0080=RiskData('Risk Summary'!K$48,$A331)/1000_x0004__x0004__x0004_\u0080_x0004__x0004__x0004__x0004__x0004__x0004__x0004__x0004__x0004__x0004_J_x0001__x0004__x0004__x0003__x0004_)_x0004__x0004_\u0080=RiskData('Risk Summary'!L$48,$A331)/1000_x0004__x0004__x0004_\u0080_x0004__x0004__x0004__x0004__x0004__x0004__x0004__x0004__x0004__x0004_J_x0001__x0004__x0004__x0006__x0004_'_x0004__x0004_\u0080=(RiskData(NR_to_Cash!C$18,$A331))/1000_x0004__x0004__x0004_\u0080_x0004__x0004__x0004__x0004__x0004__x0004__x0004__x0004__x0004__x0004_J_x0001__x0004__x0004__x0007__x0004_'_x0004__x0004_\u0080=(_x0004__x0005_RiskData(NR_to_Cash!D$18,$A331))/1000_x0004__x0004__x0004_\u0080_x0004__x0004__x0004__x0004__x0004__x0004__x0004__x0004__x0004__x0004_J_x0001__x0004__x0004__x0008__x0004_'_x0004__x0004_\u0080=(RiskData(NR_to_Cash!E$18,$A331))/1000_x0004__x0004__x0004_\u0080_x0004__x0004__x0004__x0004__x0004__x0004__x0004__x0004__x0004__x0004_K_x0001__x0004__x0004__x0001__x0004_)_x0004__x0004_\u0080=RiskData('Risk Summary'!J$48,$A332)/1000_x0004__x0004__x0004_\u0080_x0004__x0004__x0004__x0004__x0004__x0004__x0004__x0004__x0004__x0004_K_x0001__x0004__x0004__x0002__x0004_)_x0004__x0004_\u0080=RiskData('Risk Summary'!K$48,$A332)/1000_x0004__x0004__x0004_\u0080_x0004__x0004__x0004__x0004__x0004__x0004__x0004__x0004__x0004__x0004_K_x0001__x0004__x0004__x0003__x0004_)_x0004__x0002__x0003__x0002_\u0080=RiskData('Risk Summary'!L$48,$A332)/1000_x0002__x0002__x0002_\u0080_x0002__x0002__x0002__x0002__x0002__x0002__x0002__x0002__x0002__x0002_K_x0001__x0002__x0002__x0006__x0002_'_x0002__x0002_\u0080=(RiskData(NR_to_Cash!C$18,$A332))/1000_x0002__x0002__x0002_\u0080_x0002__x0002__x0002__x0002__x0002__x0002__x0002__x0002__x0002__x0002_K_x0001__x0002__x0002__x0007__x0002_'_x0002__x0002_\u0080=(RiskData(NR_to_Cash!D$18,$A332))/1000_x0002__x0002__x0002_\u0080_x0002__x0002__x0002__x0002__x0002__x0002__x0002__x0002__x0002__x0002_K_x0001__x0002__x0002__x0008__x0002_'_x0002__x0002_\u0080=(RiskData(NR_to_Cash!E$18,$A332))/1000_x0002__x0002__x0002_\u0080_x0002__x0002__x0002__x0002__x0002__x0002__x0002__x0002__x0002__x0002_L_x0001__x0002__x0002__x0001__x0002__x0004__x0005_)_x0004__x0004_\u0080=RiskData('Risk Summary'!J$48,$A333)/1000_x0004__x0004__x0004_\u0080_x0004__x0004__x0004__x0004__x0004__x0004__x0004__x0004__x0004__x0004_L_x0001__x0004__x0004__x0002__x0004_)_x0004__x0004_\u0080=RiskData('Risk Summary'!K$48,$A333)/1000_x0004__x0004__x0004_\u0080_x0004__x0004__x0004__x0004__x0004__x0004__x0004__x0004__x0004__x000"}},{"$cut":{"chars":94560,"head":"2e92f86918e551fb814aa4d1e3bfec4d_x0002__x0003_k Summary'!L$48,$A412)/1000_x0002__x0002__x0002_\u0080_x0002__x0002__x0002__x0002__x0002__x0002__x0002__x0002__x0002__x0002_\u009b_x0001__x0002__x0002__x0006__x0002_'_x0002__x0002_\u0080=(RiskData(NR_to_Cash!C$18,$A412))/1000_x0002__x0002__x0002_\u0080_x0002__x0002__x0002__x0002__x0002__x0002__x0002__x0002__x0002__x0002_\u009b_x0001__x0002__x0002__x0007__x0002_'_x0002__x0002_\u0080=(RiskData(NR_to_Cash!D$18,$A412))/1000_x0002__x0002__x0002_\u0080_x0002__x0002__x0002__x0002__x0002__x0002__x0002__x0002__x0002__x0002_\u009b_x0001__x0002__x0002__x0008__x0002_'_x0002__x0002_\u0080=(RiskData(NR_to_Cash!E$18,$A412))/1000_x0002__x0002__x0002_\u0080_x0002__x0002__x0002__x0002__x0002__x0002__x0002__x0002__x0002__x0002_\u009c_x0001__x0002__x0002__x0001__x0002_)_x0002__x0002_\u0080=RiskData('R_x0004__x0005_isk Summary'!J$48,$A413)/1000_x0004__x0004__x0004_\u0080_x0004__x0004__x0004__x0004__x0004__x0004__x0004__x0004__x0004__x0004_\u009c_x0001__x0004__x0004__x0002__x0004_)_x0004__x0004_\u0080=RiskData('Risk Summary'!K$48,$A413)/1000_x0004__x0004__x0004_\u0080_x0004__x0004__x0004__x0004__x0004__x0004__x0004__x0004__x0004__x0004_\u009c_x0001__x0004__x0004__x0003__x0004_)_x0004__x0004_\u0080=RiskData('Risk Summary'!L$48,$A413)/1000_x0004__x0004__x0004_\u0080_x0004__x0004__x0004__x0004__x0004__x0004__x0004__x0004__x0004__x0004_\u009c_x0001__x0004__x0004__x0006__x0004_'_x0004__x0004_\u0080=(RiskData(NR_to_Cash!C$18,$A413))/1000_x0004__x0004__x0004_\u0080_x0004__x0004__x0004__x0004__x0004__x0004__x0004__x0004__x0004__x0004_\u009c_x0001__x0004__x0004__x0007__x0004_'_x0004__x0004_\u0080=(Risk_x0004__x0005_Data(NR_to_Cash!D$18,$A413))/1000_x0004__x0004__x0004_\u0080_x0004__x0004__x0004__x0004__x0004__x0004__x0004__x0004__x0004__x0004_\u009c_x0001__x0004__x0004__x0008__x0004_'_x0004__x0004_\u0080=(RiskData(NR_to_Cash!E$18,$A413))/1000_x0004__x0004__x0004_\u0080_x0004__x0004__x0004__x0004__x0004__x0004__x0004__x0004__x0004__x0004_\u009d_x0001__x0004__x0004__x0001__x0004_)_x0004__x0004_\u0080=RiskData('Risk Summary'!J$48,$A414)/1000_x0004__x0004__x0004_\u0080_x0004__x0004__x0004__x0004__x0004__x0004__x0004__x0004__x0004__x0004_\u009d_x0001__x0004__x0004__x0002__x0004_)_x0004__x0004_\u0080=RiskData('Risk Summary'!K$48,$A414)/1000_x0004__x0004__x0004_\u0080_x0004__x0004__x0004__x0004__x0004__x0004__x0004__x0004__x0004__x0004_\u009d_x0001__x0004__x0004__x0003__x0004_)_x0004__x0004_\u0080=R_x0002__x0003_iskData('Risk Summary'!L$48,$A414)/1000_x0002__x0002__x0002_\u0080_x0002__x0002__x0002__x0002__x0002__x0002__x0002__x0002__x0002__x0002_\u009d_x0001__x0002__x0002__x0006__x0002_'_x0002__x0002_\u0080=(RiskData(NR_to_Cash!C$18,$A414))/1000_x0002__x0002__x0002_\u0080_x0002__x0002__x0002__x0002__x0002__x0002__x0002__x0002__x0002__x0002_\u009d_x0001__x0002__x0002__x0007__x0002_'_x0002__x0002_\u0080=(RiskData(NR_to_Cash!D$18,$A414))/1000_x0002__x0002__x0002_\u0080_x0002__x0002__x0002__x0002__x0002__x0002__x0002__x0002__x0002__x0002_\u009d_x0001__x0002__x0002__x0008__x0002_'_x0002__x0002_\u0080=(RiskData(NR_to_Cash!E$18,$A414))/1000_x0002__x0002__x0002_\u0080_x0002__x0002__x0002__x0002__x0002__x0002__x0002__x0002__x0002__x0002_\u009e_x0001__x0002__x0002__x0001__x0002_)_x0002__x0002_\u0080_x0004__x0005_=RiskData('Risk Summary'!J$48,$A415)/1000_x0004__x0004__x0004_\u0080_x0004__x0004__x0004__x0004__x0004__x0004__x0004__x0004__x0004__x0004_\u009e_x0001__x0004__x0004__x0002__x0004_)_x0004__x0004_\u0080=RiskData('Risk Summary'!K$48,$A415)/1000_x0004__x0004__x0004_\u0080_x0004__x0004__x0004__x0004__x0004__x0004__x0004__x0004__x0004__x0004_\u009e_x0001__x0004__x0004__x0003__x0004_)_x0004__x0004_\u0080=RiskData('Risk Summary'!L$48,$A415)/1000_x0004__x0004__x0004_\u0080_x0004__x0004__x0004__x0004__x0004__x0004__x0004__x0004__x0004__x0004_\u009e_x0001__x0004__x0004__x0006__x0004_'_x0004__x0004_\u0080=(RiskData(NR_to_Cash!C$18,$A415))/1000_x0004__x0004__x0004_\u0080_x0004__x0004__x0004__x0004__x0004__x0004__x0004__x0004__x0004__x0004_\u009e_x0001__x0004__x0004__x0003__x0004__x0007__x0003_'_x0003__x0003_\u0080=(RiskData(NR_to_Cash!D$18,$A415))/1000_x0003__x0003__x0003_\u0080_x0003__x0003__x0003__x0003__x0003__x0003__x0003__x0003__x0003__x0003_\u009e_x0001__x0003__x0003__x0008__x0003_'_x0003__x0003_\u0080=(RiskData(NR_to_Cash!E$18,$A415))/1000_x0003__x0003__x0003_\u0080_x0003__x0003__x0003__x0003__x0003__x0003__x0003__x0003__x0003__x0003_"}},{"$cut":{"chars":96240,"head":"d4efe1d73c4189f8b92f85a2aae43b32_x0002__x0003_k Summary'!L$48,$A496)/1000_x0002__x0002__x0002_\u0080_x0002__x0002__x0002__x0002__x0002__x0002__x0002__x0002__x0002__x0002_ï_x0001__x0002__x0002__x0006__x0002_'_x0002__x0002_\u0080=(RiskData(NR_to_Cash!C$18,$A496))/1000_x0002__x0002__x0002_\u0080_x0002__x0002__x0002__x0002__x0002__x0002__x0002__x0002__x0002__x0002_ï_x0001__x0002__x0002__x0007__x0002_'_x0002__x0002_\u0080=(RiskData(NR_to_Cash!D$18,$A496))/1000_x0002__x0002__x0002_\u0080_x0002__x0002__x0002__x0002__x0002__x0002__x0002__x0002__x0002__x0002_ï_x0001__x0002__x0002__x0008__x0002_'_x0002__x0002_\u0080=(RiskData(NR_to_Cash!E$18,$A496))/1000_x0002__x0002__x0002_\u0080_x0002__x0002__x0002__x0002__x0002__x0002__x0002__x0002__x0002__x0002_ð_x0001__x0002__x0002__x0001__x0002_)_x0002__x0002_\u0080=RiskData('R_x0004__x0005_isk Summary'!J$48,$A497)/1000_x0004__x0004__x0004_\u0080_x0004__x0004__x0004__x0004__x0004__x0004__x0004__x0004__x0004__x0004_ð_x0001__x0004__x0004__x0002__x0004_)_x0004__x0004_\u0080=RiskData('Risk Summary'!K$48,$A497)/1000_x0004__x0004__x0004_\u0080_x0004__x0004__x0004__x0004__x0004__x0004__x0004__x0004__x0004__x0004_ð_x0001__x0004__x0004__x0003__x0004_)_x0004__x0004_\u0080=RiskData('Risk Summary'!L$48,$A497)/1000_x0004__x0004__x0004_\u0080_x0004__x0004__x0004__x0004__x0004__x0004__x0004__x0004__x0004__x0004_ð_x0001__x0004__x0004__x0006__x0004_'_x0004__x0004_\u0080=(RiskData(NR_to_Cash!C$18,$A497))/1000_x0004__x0004__x0004_\u0080_x0004__x0004__x0004__x0004__x0004__x0004__x0004__x0004__x0004__x0004_ð_x0001__x0004__x0004__x0007__x0004_'_x0004__x0004_\u0080=(Risk_x0004__x0005_Data(NR_to_Cash!D$18,$A497))/1000_x0004__x0004__x0004_\u0080_x0004__x0004__x0004__x0004__x0004__x0004__x0004__x0004__x0004__x0004_ð_x0001__x0004__x0004__x0008__x0004_'_x0004__x0004_\u0080=(RiskData(NR_to_Cash!E$18,$A497))/1000_x0004__x0004__x0004_\u0080_x0004__x0004__x0004__x0004__x0004__x0004__x0004__x0004__x0004__x0004_ñ_x0001__x0004__x0004__x0001__x0004_)_x0004__x0004_\u0080=RiskData('Risk Summary'!J$48,$A498)/1000_x0004__x0004__x0004_\u0080_x0004__x0004__x0004__x0004__x0004__x0004__x0004__x0004__x0004__x0004_ñ_x0001__x0004__x0004__x0002__x0004_)_x0004__x0004_\u0080=RiskData('Risk Summary'!K$48,$A498)/1000_x0004__x0004__x0004_\u0080_x0004__x0004__x0004__x0004__x0004__x0004__x0004__x0004__x0004__x0004_ñ_x0001__x0004__x0004__x0003__x0004_)_x0004__x0004_\u0080=R_x0002__x0003_iskData('Risk Summary'!L$48,$A498)/1000_x0002__x0002__x0002_\u0080_x0002__x0002__x0002__x0002__x0002__x0002__x0002__x0002__x0002__x0002_ñ_x0001__x0002__x0002__x0006__x0002_'_x0002__x0002_\u0080=(RiskData(NR_to_Cash!C$18,$A498))/1000_x0002__x0002__x0002_\u0080_x0002__x0002__x0002__x0002__x0002__x0002__x0002__x0002__x0002__x0002_ñ_x0001__x0002__x0002__x0007__x0002_'_x0002__x0002_\u0080=(RiskData(NR_to_Cash!D$18,$A498))/1000_x0002__x0002__x0002_\u0080_x0002__x0002__x0002__x0002__x0002__x0002__x0002__x0002__x0002__x0002_ñ_x0001__x0002__x0002__x0008__x0002_'_x0002__x0002_\u0080=(RiskData(NR_to_Cash!E$18,$A498))/1000_x0002__x0002__x0002_\u0080_x0002__x0002__x0002__x0002__x0002__x0002__x0002__x0002__x0002__x0002_ò_x0001__x0002__x0002__x0001__x0002_)_x0002__x0002_\u0080_x0004__x0005_=RiskData('Risk Summary'!J$48,$A499)/1000_x0004__x0004__x0004_\u0080_x0004__x0004__x0004__x0004__x0004__x0004__x0004__x0004__x0004__x0004_ò_x0001__x0004__x0004__x0002__x0004_)_x0004__x0004_\u0080=RiskData('Risk Summary'!K$48,$A499)/1000_x0004__x0004__x0004_\u0080_x0004__x0004__x0004__x0004__x0004__x0004__x0004__x0004__x0004__x0004_ò_x0001__x0004__x0004__x0003__x0004_)_x0004__x0004_\u0080=RiskData('Risk Summary'!L$48,$A499)/1000_x0004__x0004__x0004_\u0080_x0004__x0004__x0004__x0004__x0004__x0004__x0004__x0004__x0004__x0004_ò_x0001__x0004__x0004__x0006__x0004_'_x0004__x0004_\u0080=(RiskData(NR_to_Cash!C$18,$A499))/1000_x0004__x0004__x0004_\u0080_x0004__x0004__x0004__x0004__x0004__x0004__x0004__x0004__x0004__x0004_ò_x0001__x0004__x0004__x0003__x0004__x0007__x0003_'_x0003__x0003_\u0080=(RiskData(NR_to_Cash!D$18,$A499))/1000_x0003__x0003__x0003_\u0080_x0003__x0003__x0003__x0003__x0003__x0003__x0003__x0003__x0003__x0003_ò_x0001__x0003__x0003__x0008__x0003_'_x0003__x0003_\u0080=(RiskData(NR_to_Cash!E$18,$A499))/1000_x0003__x0003__x0003_\u0080_x0003__x0003__x0003__x0003__x0003__x0003__x0003__x0003__x0003__x0003_"}},{"$cut":{"chars":94560,"head":"f258f544b3c1ccd994d857b1a17ba6ad_x0001__x0004_Summary'!J$48,$A579)/1000_x0001__x0001__x0001_\u0080_x0001__x0001__x0001__x0001__x0001__x0001__x0001__x0001__x0001__x0001_B_x0002__x0001__x0001__x0002__x0001_)_x0001__x0001_\u0080=RiskData('Risk Summary'!K$48,$A579)/1000_x0001__x0001__x0001_\u0080_x0001__x0001__x0001__x0001__x0001__x0001__x0001__x0001__x0001__x0001_B_x0002__x0001__x0001__x0003__x0001_)_x0001__x0001_\u0080=RiskData('Risk Summary'!L$48,$A579)/1000_x0001__x0001__x0001_\u0080_x0001__x0001__x0001__x0001__x0001__x0001__x0001__x0001__x0001__x0001_B_x0002__x0001__x0001__x0006__x0001_'_x0001__x0001_\u0080=(RiskData(NR_to_Cash!C$18,$A579))/1000_x0001__x0001__x0001_\u0080_x0001__x0001__x0001__x0001__x0001__x0001__x0001__x0001__x0001__x0001_B_x0002__x0001__x0001__x0007__x0001_'_x0001__x0001_\u0080=(RiskData_x0004__x0005_(NR_to_Cash!D$18,$A579))/1000_x0004__x0004__x0004_\u0080_x0004__x0004__x0004__x0004__x0004__x0004__x0004__x0004__x0004__x0004_B_x0002__x0004__x0004__x0008__x0004_'_x0004__x0004_\u0080=(RiskData(NR_to_Cash!E$18,$A579))/1000_x0004__x0004__x0004_\u0080_x0004__x0004__x0004__x0004__x0004__x0004__x0004__x0004__x0004__x0004_C_x0002__x0004__x0004__x0001__x0004_)_x0004__x0004_\u0080=RiskData('Risk Summary'!J$48,$A580)/1000_x0004__x0004__x0004_\u0080_x0004__x0004__x0004__x0004__x0004__x0004__x0004__x0004__x0004__x0004_C_x0002__x0004__x0004__x0002__x0004_)_x0004__x0004_\u0080=RiskData('Risk Summary'!K$48,$A580)/1000_x0004__x0004__x0004_\u0080_x0004__x0004__x0004__x0004__x0004__x0004__x0004__x0004__x0004__x0004_C_x0002__x0004__x0004__x0003__x0004_)_x0004__x0004_\u0080=RiskD_x0003__x0004_ata('Risk Summary'!L$48,$A580)/1000_x0003__x0003__x0003_\u0080_x0003__x0003__x0003__x0003__x0003__x0003__x0003__x0003__x0003__x0003_C_x0002__x0003__x0003__x0006__x0003_'_x0003__x0003_\u0080=(RiskData(NR_to_Cash!C$18,$A580))/1000_x0003__x0003__x0003_\u0080_x0003__x0003__x0003__x0003__x0003__x0003__x0003__x0003__x0003__x0003_C_x0002__x0003__x0003__x0007__x0003_'_x0003__x0003_\u0080=(RiskData(NR_to_Cash!D$18,$A580))/1000_x0003__x0003__x0003_\u0080_x0003__x0003__x0003__x0003__x0003__x0003__x0003__x0003__x0003__x0003_C_x0002__x0003__x0003__x0008__x0003_'_x0003__x0003_\u0080=(RiskData(NR_to_Cash!E$18,$A580))/1000_x0003__x0003__x0003_\u0080_x0003__x0003__x0003__x0003__x0003__x0003__x0003__x0003__x0003__x0003_D_x0002__x0003__x0003__x0001__x0003_)_x0003__x0003_\u0080=Ris_x0001__x0004_kData('Risk Summary'!J$48,$A581)/1000_x0001__x0001__x0001_\u0080_x0001__x0001__x0001__x0001__x0001__x0001__x0001__x0001__x0001__x0001_D_x0002__x0001__x0001__x0002__x0001_)_x0001__x0001_\u0080=RiskData('Risk Summary'!K$48,$A581)/1000_x0001__x0001__x0001_\u0080_x0001__x0001__x0001__x0001__x0001__x0001__x0001__x0001__x0001__x0001_D_x0002__x0001__x0001__x0003__x0001_)_x0001__x0001_\u0080=RiskData('Risk Summary'!L$48,$A581)/1000_x0001__x0001__x0001_\u0080_x0001__x0001__x0001__x0001__x0001__x0001__x0001__x0001__x0001__x0001_D_x0002__x0001__x0001__x0006__x0001_'_x0001__x0001_\u0080=(RiskData(NR_to_Cash!C$18,$A581))/1000_x0001__x0001__x0001_\u0080_x0001__x0001__x0001__x0001__x0001__x0001__x0001__x0001__x0001__x0001_D_x0002__x0001__x0001__x0007__x0001_'_x0001__x0003__x0004__x0003_\u0080=(RiskData(NR_to_Cash!D$18,$A581))/1000_x0003__x0003__x0003_\u0080_x0003__x0003__x0003__x0003__x0003__x0003__x0003__x0003__x0003__x0003_D_x0002__x0003__x0003__x0008__x0003_'_x0003__x0003_\u0080=(RiskData(NR_to_Cash!E$18,$A581))/1000_x0003__x0003__x0003_\u0080_x0003__x0003__x0003__x0003__x0003__x0003__x0003__x0003__x0003__x0003_E_x0002__x0003__x0003__x0001__x0003_)_x0003__x0003_\u0080=RiskData('Risk Summary'!J$48,$A582)/1000_x0003__x0003__x0003_\u0080_x0003__x0003__x0003__x0003__x0003__x0003__x0003__x0003__x0003__x0003_E_x0002__x0003__x0003__x0002__x0003_)_x0003__x0003_\u0080=RiskData('Risk Summary'!K$48,$A582)/1000_x0003__x0003__x0003_\u0080_x0003__x0003__x0003__x0003__x0003__x0003__x0003__x0003__x0003__x0003_E_x0002__x0003__x0003__x0001__x0004__x0003__x0001_)_x0001__x0001_\u0080=RiskData('Risk Summary'!L$48,$A582)/1000_x0001__x0001__x0001_\u0080_x0001__x0001__x0001__x0001__x0001__x0001__x0001__x0001__x0001__x0001_E_x0002__x0001__x0001__x0006__x0001_'_x0001__x0001_\u0080=(RiskData(NR_to_Cash!C$18,$A582))/1000_x0001__x0001__x0001_\u0080_x0001__x0001__x0001__x0001__x0001__x0001__x0001__x0001__x0001__x000"}},{"$cut":{"chars":95298,"head":"6b162cf4ad21af18b0797877f8d38cd9_x0001__x0004_Summary'!J$48,$A663)/1000_x0001__x0001__x0001_\u0080_x0001__x0001__x0001__x0001__x0001__x0001__x0001__x0001__x0001__x0001_\u0096_x0002__x0001__x0001__x0002__x0001_)_x0001__x0001_\u0080=RiskData('Risk Summary'!K$48,$A663)/1000_x0001__x0001__x0001_\u0080_x0001__x0001__x0001__x0001__x0001__x0001__x0001__x0001__x0001__x0001_\u0096_x0002__x0001__x0001__x0003__x0001_)_x0001__x0001_\u0080=RiskData('Risk Summary'!L$48,$A663)/1000_x0001__x0001__x0001_\u0080_x0001__x0001__x0001__x0001__x0001__x0001__x0001__x0001__x0001__x0001_\u0096_x0002__x0001__x0001__x0006__x0001_'_x0001__x0001_\u0080=(RiskData(NR_to_Cash!C$18,$A663))/1000_x0001__x0001__x0001_\u0080_x0001__x0001__x0001__x0001__x0001__x0001__x0001__x0001__x0001__x0001_\u0096_x0002__x0001__x0001__x0007__x0001_'_x0001__x0001_\u0080=(RiskData_x0004__x0005_(NR_to_Cash!D$18,$A663))/1000_x0004__x0004__x0004_\u0080_x0004__x0004__x0004__x0004__x0004__x0004__x0004__x0004__x0004__x0004_\u0096_x0002__x0004__x0004__x0008__x0004_'_x0004__x0004_\u0080=(RiskData(NR_to_Cash!E$18,$A663))/1000_x0004__x0004__x0004_\u0080_x0004__x0004__x0004__x0004__x0004__x0004__x0004__x0004__x0004__x0004_\u0097_x0002__x0004__x0004__x0001__x0004_)_x0004__x0004_\u0080=RiskData('Risk Summary'!J$48,$A664)/1000_x0004__x0004__x0004_\u0080_x0004__x0004__x0004__x0004__x0004__x0004__x0004__x0004__x0004__x0004_\u0097_x0002__x0004__x0004__x0002__x0004_)_x0004__x0004_\u0080=RiskData('Risk Summary'!K$48,$A664)/1000_x0004__x0004__x0004_\u0080_x0004__x0004__x0004__x0004__x0004__x0004__x0004__x0004__x0004__x0004_\u0097_x0002__x0004__x0004__x0003__x0004_)_x0004__x0004_\u0080=RiskD_x0003__x0004_ata('Risk Summary'!L$48,$A664)/1000_x0003__x0003__x0003_\u0080_x0003__x0003__x0003__x0003__x0003__x0003__x0003__x0003__x0003__x0003_\u0097_x0002__x0003__x0003__x0006__x0003_'_x0003__x0003_\u0080=(RiskData(NR_to_Cash!C$18,$A664))/1000_x0003__x0003__x0003_\u0080_x0003__x0003__x0003__x0003__x0003__x0003__x0003__x0003__x0003__x0003_\u0097_x0002__x0003__x0003__x0007__x0003_'_x0003__x0003_\u0080=(RiskData(NR_to_Cash!D$18,$A664))/1000_x0003__x0003__x0003_\u0080_x0003__x0003__x0003__x0003__x0003__x0003__x0003__x0003__x0003__x0003_\u0097_x0002__x0003__x0003__x0008__x0003_'_x0003__x0003_\u0080=(RiskData(NR_to_Cash!E$18,$A664))/1000_x0003__x0003__x0003_\u0080_x0003__x0003__x0003__x0003__x0003__x0003__x0003__x0003__x0003__x0003_\u0098_x0002__x0003__x0003__x0001__x0003_)_x0003__x0003_\u0080=Ris_x0001__x0004_kData('Risk Summary'!J$48,$A665)/1000_x0001__x0001__x0001_\u0080_x0001__x0001__x0001__x0001__x0001__x0001__x0001__x0001__x0001__x0001_\u0098_x0002__x0001__x0001__x0002__x0001_)_x0001__x0001_\u0080=RiskData('Risk Summary'!K$48,$A665)/1000_x0001__x0001__x0001_\u0080_x0001__x0001__x0001__x0001__x0001__x0001__x0001__x0001__x0001__x0001_\u0098_x0002__x0001__x0001__x0003__x0001_)_x0001__x0001_\u0080=RiskData('Risk Summary'!L$48,$A665)/1000_x0001__x0001__x0001_\u0080_x0001__x0001__x0001__x0001__x0001__x0001__x0001__x0001__x0001__x0001_\u0098_x0002__x0001__x0001__x0006__x0001_'_x0001__x0001_\u0080=(RiskData(NR_to_Cash!C$18,$A665))/1000_x0001__x0001__x0001_\u0080_x0001__x0001__x0001__x0001__x0001__x0001__x0001__x0001__x0001__x0001_\u0098_x0002__x0001__x0001__x0007__x0001_'_x0001__x0003__x0004__x0003_\u0080=(RiskData(NR_to_Cash!D$18,$A665))/1000_x0003__x0003__x0003_\u0080_x0003__x0003__x0003__x0003__x0003__x0003__x0003__x0003__x0003__x0003_\u0098_x0002__x0003__x0003__x0008__x0003_'_x0003__x0003_\u0080=(RiskData(NR_to_Cash!E$18,$A665))/1000_x0003__x0003__x0003_\u0080_x0003__x0003__x0003__x0003__x0003__x0003__x0003__x0003__x0003__x0003_\u0099_x0002__x0003__x0003__x0001__x0003_)_x0003__x0003_\u0080=RiskData('Risk Summary'!J$48,$A666)/1000_x0003__x0003__x0003_\u0080_x0003__x0003__x0003__x0003__x0003__x0003__x0003__x0003__x0003__x0003_\u0099_x0002__x0003__x0003__x0002__x0003_)_x0003__x0003_\u0080=RiskData('Risk Summary'!K$48,$A666)/1000_x0003__x0003__x0003_\u0080_x0003__x0003__x0003__x0003__x0003__x0003__x0003__x0003__x0003__x0003_\u0099_x0002__x0003__x0003__x0001__x0004__x0003__x0001_)_x0001__x0001_\u0080=RiskData('Risk Summary'!L$48,$A666)/1000_x0001__x0001__x0001_\u0080_x0001__x0001__x0001__x0001__x0001__x0001__x0001__x0001__x0001__x0001_\u0099_x0002__x0001__x0001__x0006__x0001_'_x0001__x0001_\u0080=(RiskData(NR_to_Cash!C$18,$A666))/1000_x0001__x0001__x0001_\u0080_x0001__x0001__x0001__x0001__x0001__x0001__x0001__x0001__x0001__x000"}},{"$cut":{"chars":95670,"head":"7ec546a3ea47525906accc24b5085ae9_x0004__x0005_to_Cash!D$18,$A745))/1000_x0004__x0004__x0004_\u0080_x0004__x0004__x0004__x0004__x0004__x0004__x0004__x0004__x0004__x0004_è_x0002__x0004__x0004__x0008__x0004_'_x0004__x0004_\u0080=(RiskData(NR_to_Cash!E$18,$A745))/1000_x0004__x0004__x0004_\u0080_x0004__x0004__x0004__x0004__x0004__x0004__x0004__x0004__x0004__x0004_é_x0002__x0004__x0004__x0001__x0004_)_x0004__x0004_\u0080=RiskData('Risk Summary'!J$48,$A746)/1000_x0004__x0004__x0004_\u0080_x0004__x0004__x0004__x0004__x0004__x0004__x0004__x0004__x0004__x0004_é_x0002__x0004__x0004__x0002__x0004_)_x0004__x0004_\u0080=RiskData('Risk Summary'!K$48,$A746)/1000_x0004__x0004__x0004_\u0080_x0004__x0004__x0004__x0004__x0004__x0004__x0004__x0004__x0004__x0004_é_x0002__x0004__x0004__x0003__x0004_)_x0004__x0004_\u0080=RiskData(_x0003__x0004_'Risk Summary'!L$48,$A746)/1000_x0003__x0003__x0003_\u0080_x0003__x0003__x0003__x0003__x0003__x0003__x0003__x0003__x0003__x0003_é_x0002__x0003__x0003__x0006__x0003_'_x0003__x0003_\u0080=(RiskData(NR_to_Cash!C$18,$A746))/1000_x0003__x0003__x0003_\u0080_x0003__x0003__x0003__x0003__x0003__x0003__x0003__x0003__x0003__x0003_é_x0002__x0003__x0003__x0007__x0003_'_x0003__x0003_\u0080=(RiskData(NR_to_Cash!D$18,$A746))/1000_x0003__x0003__x0003_\u0080_x0003__x0003__x0003__x0003__x0003__x0003__x0003__x0003__x0003__x0003_é_x0002__x0003__x0003__x0008__x0003_'_x0003__x0003_\u0080=(RiskData(NR_to_Cash!E$18,$A746))/1000_x0003__x0003__x0003_\u0080_x0003__x0003__x0003__x0003__x0003__x0003__x0003__x0003__x0003__x0003_ê_x0002__x0003__x0003__x0001__x0003_)_x0003__x0003_\u0080=RiskDat_x0001__x0004_a('Risk Summary'!J$48,$A747)/1000_x0001__x0001__x0001_\u0080_x0001__x0001__x0001__x0001__x0001__x0001__x0001__x0001__x0001__x0001_ê_x0002__x0001__x0001__x0002__x0001_)_x0001__x0001_\u0080=RiskData('Risk Summary'!K$48,$A747)/1000_x0001__x0001__x0001_\u0080_x0001__x0001__x0001__x0001__x0001__x0001__x0001__x0001__x0001__x0001_ê_x0002__x0001__x0001__x0003__x0001_)_x0001__x0001_\u0080=RiskData('Risk Summary'!L$48,$A747)/1000_x0001__x0001__x0001_\u0080_x0001__x0001__x0001__x0001__x0001__x0001__x0001__x0001__x0001__x0001_ê_x0002__x0001__x0001__x0006__x0001_'_x0001__x0001_\u0080=(RiskData(NR_to_Cash!C$18,$A747))/1000_x0001__x0001__x0001_\u0080_x0001__x0001__x0001__x0001__x0001__x0001__x0001__x0001__x0001__x0001_ê_x0002__x0001__x0001__x0007__x0001_'_x0001__x0001_\u0080=(_x0004__x0005_RiskData(NR_to_Cash!D$18,$A747))/1000_x0004__x0004__x0004_\u0080_x0004__x0004__x0004__x0004__x0004__x0004__x0004__x0004__x0004__x0004_ê_x0002__x0004__x0004__x0008__x0004_'_x0004__x0004_\u0080=(RiskData(NR_to_Cash!E$18,$A747))/1000_x0004__x0004__x0004_\u0080_x0004__x0004__x0004__x0004__x0004__x0004__x0004__x0004__x0004__x0004_ë_x0002__x0004__x0004__x0001__x0004_)_x0004__x0004_\u0080=RiskData('Risk Summary'!J$48,$A748)/1000_x0004__x0004__x0004_\u0080_x0004__x0004__x0004__x0004__x0004__x0004__x0004__x0004__x0004__x0004_ë_x0002__x0004__x0004__x0002__x0004_)_x0004__x0004_\u0080=RiskData('Risk Summary'!K$48,$A748)/1000_x0004__x0004__x0004_\u0080_x0004__x0004__x0004__x0004__x0004__x0004__x0004__x0004__x0004__x0004_ë_x0002__x0004__x0004__x0003__x0004_)_x0004__x0003__x0004__x0003_\u0080=RiskData('Risk Summary'!L$48,$A748)/1000_x0003__x0003__x0003_\u0080_x0003__x0003__x0003__x0003__x0003__x0003__x0003__x0003__x0003__x0003_ë_x0002__x0003__x0003__x0006__x0003_'_x0003__x0003_\u0080=(RiskData(NR_to_Cash!C$18,$A748))/1000_x0003__x0003__x0003_\u0080_x0003__x0003__x0003__x0003__x0003__x0003__x0003__x0003__x0003__x0003_ë_x0002__x0003__x0003__x0007__x0003_'_x0003__x0003_\u0080=(RiskData(NR_to_Cash!D$18,$A748))/1000_x0003__x0003__x0003_\u0080_x0003__x0003__x0003__x0003__x0003__x0003__x0003__x0003__x0003__x0003_ë_x0002__x0003__x0003__x0008__x0003_'_x0003__x0003_\u0080=(RiskData(NR_to_Cash!E$18,$A748))/1000_x0003__x0003__x0003_\u0080_x0003__x0003__x0003__x0003__x0003__x0003__x0003__x0003__x0003__x0003_ì_x0002__x0003__x0003__x0001__x0003__x0001__x0004_)_x0001__x0001_\u0080=RiskData('Risk Summary'!J$48,$A749)/1000_x0001__x0001__x0001_\u0080_x0001__x0001__x0001__x0001__x0001__x0001__x0001__x0001__x0001__x0001_ì_x0002__x0001__x0001__x0002__x0001_)_x0001__x0001_\u0080=RiskData('Risk Summary'!K$48,$A749)/1000_x0001__x0001__x0001_\u0080_x0001__x0001__x0001__x0001__x0001__x0001__x0001__x0001__x0001__x000"}},{"$cut":{"chars":95130,"head":"27fef1ef99bbda9786d0965aaa24d886_x0004__x0005_to_Cash!D$18,$A829))/1000_x0004__x0004__x0004_\u0080_x0004__x0004__x0004__x0004__x0004__x0004__x0004__x0004__x0004__x0004_<_x0003__x0004__x0004__x0008__x0004_'_x0004__x0004_\u0080=(RiskData(NR_to_Cash!E$18,$A829))/1000_x0004__x0004__x0004_\u0080_x0004__x0004__x0004__x0004__x0004__x0004__x0004__x0004__x0004__x0004_=_x0003__x0004__x0004__x0001__x0004_)_x0004__x0004_\u0080=RiskData('Risk Summary'!J$48,$A830)/1000_x0004__x0004__x0004_\u0080_x0004__x0004__x0004__x0004__x0004__x0004__x0004__x0004__x0004__x0004_=_x0003__x0004__x0004__x0002__x0004_)_x0004__x0004_\u0080=RiskData('Risk Summary'!K$48,$A830)/1000_x0004__x0004__x0004_\u0080_x0004__x0004__x0004__x0004__x0004__x0004__x0004__x0004__x0004__x0004_=_x0003__x0004__x0004__x0003__x0004_)_x0004__x0004_\u0080=RiskData(_x0002__x0004_'Risk Summary'!L$48,$A830)/1000_x0002__x0002__x0002_\u0080_x0002__x0002__x0002__x0002__x0002__x0002__x0002__x0002__x0002__x0002_=_x0003__x0002__x0002__x0006__x0002_'_x0002__x0002_\u0080=(RiskData(NR_to_Cash!C$18,$A830))/1000_x0002__x0002__x0002_\u0080_x0002__x0002__x0002__x0002__x0002__x0002__x0002__x0002__x0002__x0002_=_x0003__x0002__x0002__x0007__x0002_'_x0002__x0002_\u0080=(RiskData(NR_to_Cash!D$18,$A830))/1000_x0002__x0002__x0002_\u0080_x0002__x0002__x0002__x0002__x0002__x0002__x0002__x0002__x0002__x0002_=_x0003__x0002__x0002__x0008__x0002_'_x0002__x0002_\u0080=(RiskData(NR_to_Cash!E$18,$A830))/1000_x0002__x0002__x0002_\u0080_x0002__x0002__x0002__x0002__x0002__x0002__x0002__x0002__x0002__x0002_>_x0003__x0002__x0002__x0001__x0002_)_x0002__x0002_\u0080=RiskDat_x0001__x0004_a('Risk Summary'!J$48,$A831)/1000_x0001__x0001__x0001_\u0080_x0001__x0001__x0001__x0001__x0001__x0001__x0001__x0001__x0001__x0001_>_x0003__x0001__x0001__x0002__x0001_)_x0001__x0001_\u0080=RiskData('Risk Summary'!K$48,$A831)/1000_x0001__x0001__x0001_\u0080_x0001__x0001__x0001__x0001__x0001__x0001__x0001__x0001__x0001__x0001_>_x0003__x0001__x0001__x0003__x0001_)_x0001__x0001_\u0080=RiskData('Risk Summary'!L$48,$A831)/1000_x0001__x0001__x0001_\u0080_x0001__x0001__x0001__x0001__x0001__x0001__x0001__x0001__x0001__x0001_>_x0003__x0001__x0001__x0006__x0001_'_x0001__x0001_\u0080=(RiskData(NR_to_Cash!C$18,$A831))/1000_x0001__x0001__x0001_\u0080_x0001__x0001__x0001__x0001__x0001__x0001__x0001__x0001__x0001__x0001_>_x0003__x0001__x0001__x0007__x0001_'_x0001__x0001_\u0080=(_x0004__x0005_RiskData(NR_to_Cash!D$18,$A831))/1000_x0004__x0004__x0004_\u0080_x0004__x0004__x0004__x0004__x0004__x0004__x0004__x0004__x0004__x0004_>_x0003__x0004__x0004__x0008__x0004_'_x0004__x0004_\u0080=(RiskData(NR_to_Cash!E$18,$A831))/1000_x0004__x0004__x0004_\u0080_x0004__x0004__x0004__x0004__x0004__x0004__x0004__x0004__x0004__x0004_?_x0003__x0004__x0004__x0001__x0004_)_x0004__x0004_\u0080=RiskData('Risk Summary'!J$48,$A832)/1000_x0004__x0004__x0004_\u0080_x0004__x0004__x0004__x0004__x0004__x0004__x0004__x0004__x0004__x0004_?_x0003__x0004__x0004__x0002__x0004_)_x0004__x0004_\u0080=RiskData('Risk Summary'!K$48,$A832)/1000_x0004__x0004__x0004_\u0080_x0004__x0004__x0004__x0004__x0004__x0004__x0004__x0004__x0004__x0004_?_x0003__x0004__x0004__x0003__x0004_)_x0004__x0002__x0004__x0002_\u0080=RiskData('Risk Summary'!L$48,$A832)/1000_x0002__x0002__x0002_\u0080_x0002__x0002__x0002__x0002__x0002__x0002__x0002__x0002__x0002__x0002_?_x0003__x0002__x0002__x0006__x0002_'_x0002__x0002_\u0080=(RiskData(NR_to_Cash!C$18,$A832))/1000_x0002__x0002__x0002_\u0080_x0002__x0002__x0002__x0002__x0002__x0002__x0002__x0002__x0002__x0002_?_x0003__x0002__x0002__x0007__x0002_'_x0002__x0002_\u0080=(RiskData(NR_to_Cash!D$18,$A832))/1000_x0002__x0002__x0002_\u0080_x0002__x0002__x0002__x0002__x0002__x0002__x0002__x0002__x0002__x0002_?_x0003__x0002__x0002__x0008__x0002_'_x0002__x0002_\u0080=(RiskData(NR_to_Cash!E$18,$A832))/1000_x0002__x0002__x0002_\u0080_x0002__x0002__x0002__x0002__x0002__x0002__x0002__x0002__x0002__x0002_@_x0003__x0002__x0002__x0001__x0002__x0001__x0004_)_x0001__x0001_\u0080=RiskData('Risk Summary'!J$48,$A833)/1000_x0001__x0001__x0001_\u0080_x0001__x0001__x0001__x0001__x0001__x0001__x0001__x0001__x0001__x0001_@_x0003__x0001__x0001__x0002__x0001_)_x0001__x0001_\u0080=RiskData('Risk Summary'!K$48,$A833)/1000_x0001__x0001__x0001_\u0080_x0001__x0001__x0001__x0001__x0001__x0001__x0001__x0001__x0001__x000"}},{"$cut":{"chars":94560,"head":"10f823dd595f859aa307abcb021ffc77_x0002__x0004_k Summary'!L$48,$A912)/1000_x0002__x0002__x0002_\u0080_x0002__x0002__x0002__x0002__x0002__x0002__x0002__x0002__x0002__x0002_\u008f_x0003__x0002__x0002__x0006__x0002_'_x0002__x0002_\u0080=(RiskData(NR_to_Cash!C$18,$A912))/1000_x0002__x0002__x0002_\u0080_x0002__x0002__x0002__x0002__x0002__x0002__x0002__x0002__x0002__x0002_\u008f_x0003__x0002__x0002__x0007__x0002_'_x0002__x0002_\u0080=(RiskData(NR_to_Cash!D$18,$A912))/1000_x0002__x0002__x0002_\u0080_x0002__x0002__x0002__x0002__x0002__x0002__x0002__x0002__x0002__x0002_\u008f_x0003__x0002__x0002__x0008__x0002_'_x0002__x0002_\u0080=(RiskData(NR_to_Cash!E$18,$A912))/1000_x0002__x0002__x0002_\u0080_x0002__x0002__x0002__x0002__x0002__x0002__x0002__x0002__x0002__x0002_\u0090_x0003__x0002__x0002__x0001__x0002_)_x0002__x0002_\u0080=RiskData('R_x0001__x0004_isk Summary'!J$48,$A913)/1000_x0001__x0001__x0001_\u0080_x0001__x0001__x0001__x0001__x0001__x0001__x0001__x0001__x0001__x0001_\u0090_x0003__x0001__x0001__x0002__x0001_)_x0001__x0001_\u0080=RiskData('Risk Summary'!K$48,$A913)/1000_x0001__x0001__x0001_\u0080_x0001__x0001__x0001__x0001__x0001__x0001__x0001__x0001__x0001__x0001_\u0090_x0003__x0001__x0001__x0003__x0001_)_x0001__x0001_\u0080=RiskData('Risk Summary'!L$48,$A913)/1000_x0001__x0001__x0001_\u0080_x0001__x0001__x0001__x0001__x0001__x0001__x0001__x0001__x0001__x0001_\u0090_x0003__x0001__x0001__x0006__x0001_'_x0001__x0001_\u0080=(RiskData(NR_to_Cash!C$18,$A913))/1000_x0001__x0001__x0001_\u0080_x0001__x0001__x0001__x0001__x0001__x0001__x0001__x0001__x0001__x0001_\u0090_x0003__x0001__x0001__x0007__x0001_'_x0001__x0001_\u0080=(Risk_x0004__x0005_Data(NR_to_Cash!D$18,$A913))/1000_x0004__x0004__x0004_\u0080_x0004__x0004__x0004__x0004__x0004__x0004__x0004__x0004__x0004__x0004_\u0090_x0003__x0004__x0004__x0008__x0004_'_x0004__x0004_\u0080=(RiskData(NR_to_Cash!E$18,$A913))/1000_x0004__x0004__x0004_\u0080_x0004__x0004__x0004__x0004__x0004__x0004__x0004__x0004__x0004__x0004_\u0091_x0003__x0004__x0004__x0001__x0004_)_x0004__x0004_\u0080=RiskData('Risk Summary'!J$48,$A914)/1000_x0004__x0004__x0004_\u0080_x0004__x0004__x0004__x0004__x0004__x0004__x0004__x0004__x0004__x0004_\u0091_x0003__x0004__x0004__x0002__x0004_)_x0004__x0004_\u0080=RiskData('Risk Summary'!K$48,$A914)/1000_x0004__x0004__x0004_\u0080_x0004__x0004__x0004__x0004__x0004__x0004__x0004__x0004__x0004__x0004_\u0091_x0003__x0004__x0004__x0003__x0004_)_x0004__x0004_\u0080=R_x0002__x0004_iskData('Risk Summary'!L$48,$A914)/1000_x0002__x0002__x0002_\u0080_x0002__x0002__x0002__x0002__x0002__x0002__x0002__x0002__x0002__x0002_\u0091_x0003__x0002__x0002__x0006__x0002_'_x0002__x0002_\u0080=(RiskData(NR_to_Cash!C$18,$A914))/1000_x0002__x0002__x0002_\u0080_x0002__x0002__x0002__x0002__x0002__x0002__x0002__x0002__x0002__x0002_\u0091_x0003__x0002__x0002__x0007__x0002_'_x0002__x0002_\u0080=(RiskData(NR_to_Cash!D$18,$A914))/1000_x0002__x0002__x0002_\u0080_x0002__x0002__x0002__x0002__x0002__x0002__x0002__x0002__x0002__x0002_\u0091_x0003__x0002__x0002__x0008__x0002_'_x0002__x0002_\u0080=(RiskData(NR_to_Cash!E$18,$A914))/1000_x0002__x0002__x0002_\u0080_x0002__x0002__x0002__x0002__x0002__x0002__x0002__x0002__x0002__x0002_\u0092_x0003__x0002__x0002__x0001__x0002_)_x0002__x0002_\u0080_x0001__x0004_=RiskData('Risk Summary'!J$48,$A915)/1000_x0001__x0001__x0001_\u0080_x0001__x0001__x0001__x0001__x0001__x0001__x0001__x0001__x0001__x0001_\u0092_x0003__x0001__x0001__x0002__x0001_)_x0001__x0001_\u0080=RiskData('Risk Summary'!K$48,$A915)/1000_x0001__x0001__x0001_\u0080_x0001__x0001__x0001__x0001__x0001__x0001__x0001__x0001__x0001__x0001_\u0092_x0003__x0001__x0001__x0003__x0001_)_x0001__x0001_\u0080=RiskData('Risk Summary'!L$48,$A915)/1000_x0001__x0001__x0001_\u0080_x0001__x0001__x0001__x0001__x0001__x0001__x0001__x0001__x0001__x0001_\u0092_x0003__x0001__x0001__x0006__x0001_'_x0001__x0001_\u0080=(RiskData(NR_to_Cash!C$18,$A915))/1000_x0001__x0001__x0001_\u0080_x0001__x0001__x0001__x0001__x0001__x0001__x0001__x0001__x0001__x0001_\u0092_x0003__x0001__x0001__x0004__x0005__x0007__x0004_'_x0004__x0004_\u0080=(RiskData(NR_to_Cash!D$18,$A915))/1000_x0004__x0004__x0004_\u0080_x0004__x0004__x0004__x0004__x0004__x0004__x0004__x0004__x0004__x0004_\u0092_x0003__x0004__x0004__x0008__x0004_'_x0004__x0004_\u0080=(RiskData(NR_to_Cash!E$18,$A915))/1000_x0004__x0004__x0004_\u0080_x0004__x0004__x0004__x0004__x0004__x0004__x0004__x0004__x0004__x0004_"}},{"$cut":{"chars":95556,"head":"f45360eb2b2d4149177e1107c314d7f2_x0002__x0004_k Summary'!L$48,$A996)/1000_x0002__x0002__x0002_\u0080_x0002__x0002__x0002__x0002__x0002__x0002__x0002__x0002__x0002__x0002_ã_x0003__x0002__x0002__x0006__x0002_'_x0002__x0002_\u0080=(RiskData(NR_to_Cash!C$18,$A996))/1000_x0002__x0002__x0002_\u0080_x0002__x0002__x0002__x0002__x0002__x0002__x0002__x0002__x0002__x0002_ã_x0003__x0002__x0002__x0007__x0002_'_x0002__x0002_\u0080=(RiskData(NR_to_Cash!D$18,$A996))/1000_x0002__x0002__x0002_\u0080_x0002__x0002__x0002__x0002__x0002__x0002__x0002__x0002__x0002__x0002_ã_x0003__x0002__x0002__x0008__x0002_'_x0002__x0002_\u0080=(RiskData(NR_to_Cash!E$18,$A996))/1000_x0002__x0002__x0002_\u0080_x0002__x0002__x0002__x0002__x0002__x0002__x0002__x0002__x0002__x0002_ä_x0003__x0002__x0002__x0001__x0002_)_x0002__x0002_\u0080=RiskData('R_x0001__x0004_isk Summary'!J$48,$A997)/1000_x0001__x0001__x0001_\u0080_x0001__x0001__x0001__x0001__x0001__x0001__x0001__x0001__x0001__x0001_ä_x0003__x0001__x0001__x0002__x0001_)_x0001__x0001_\u0080=RiskData('Risk Summary'!K$48,$A997)/1000_x0001__x0001__x0001_\u0080_x0001__x0001__x0001__x0001__x0001__x0001__x0001__x0001__x0001__x0001_ä_x0003__x0001__x0001__x0003__x0001_)_x0001__x0001_\u0080=RiskData('Risk Summary'!L$48,$A997)/1000_x0001__x0001__x0001_\u0080_x0001__x0001__x0001__x0001__x0001__x0001__x0001__x0001__x0001__x0001_ä_x0003__x0001__x0001__x0006__x0001_'_x0001__x0001_\u0080=(RiskData(NR_to_Cash!C$18,$A997))/1000_x0001__x0001__x0001_\u0080_x0001__x0001__x0001__x0001__x0001__x0001__x0001__x0001__x0001__x0001_ä_x0003__x0001__x0001__x0007__x0001_'_x0001__x0001_\u0080=(Risk_x0004__x0005_Data(NR_to_Cash!D$18,$A997))/1000_x0004__x0004__x0004_\u0080_x0004__x0004__x0004__x0004__x0004__x0004__x0004__x0004__x0004__x0004_ä_x0003__x0004__x0004__x0008__x0004_'_x0004__x0004_\u0080=(RiskData(NR_to_Cash!E$18,$A997))/1000_x0004__x0004__x0004_\u0080_x0004__x0004__x0004__x0004__x0004__x0004__x0004__x0004__x0004__x0004_å_x0003__x0004__x0004__x0001__x0004_)_x0004__x0004_\u0080=RiskData('Risk Summary'!J$48,$A998)/1000_x0004__x0004__x0004_\u0080_x0004__x0004__x0004__x0004__x0004__x0004__x0004__x0004__x0004__x0004_å_x0003__x0004__x0004__x0002__x0004_)_x0004__x0004_\u0080=RiskData('Risk Summary'!K$48,$A998)/1000_x0004__x0004__x0004_\u0080_x0004__x0004__x0004__x0004__x0004__x0004__x0004__x0004__x0004__x0004_å_x0003__x0004__x0004__x0003__x0004_)_x0004__x0004_\u0080=R_x0002__x0004_iskData('Risk Summary'!L$48,$A998)/1000_x0002__x0002__x0002_\u0080_x0002__x0002__x0002__x0002__x0002__x0002__x0002__x0002__x0002__x0002_å_x0003__x0002__x0002__x0006__x0002_'_x0002__x0002_\u0080=(RiskData(NR_to_Cash!C$18,$A998))/1000_x0002__x0002__x0002_\u0080_x0002__x0002__x0002__x0002__x0002__x0002__x0002__x0002__x0002__x0002_å_x0003__x0002__x0002__x0007__x0002_'_x0002__x0002_\u0080=(RiskData(NR_to_Cash!D$18,$A998))/1000_x0002__x0002__x0002_\u0080_x0002__x0002__x0002__x0002__x0002__x0002__x0002__x0002__x0002__x0002_å_x0003__x0002__x0002__x0008__x0002_'_x0002__x0002_\u0080=(RiskData(NR_to_Cash!E$18,$A998))/1000_x0002__x0002__x0002_\u0080_x0002__x0002__x0002__x0002__x0002__x0002__x0002__x0002__x0002__x0002_æ_x0003__x0002__x0002__x0001__x0002_)_x0002__x0002_\u0080_x0001__x0004_=RiskData('Risk Summary'!J$48,$A999)/1000_x0001__x0001__x0001_\u0080_x0001__x0001__x0001__x0001__x0001__x0001__x0001__x0001__x0001__x0001_æ_x0003__x0001__x0001__x0002__x0001_)_x0001__x0001_\u0080=RiskData('Risk Summary'!K$48,$A999)/1000_x0001__x0001__x0001_\u0080_x0001__x0001__x0001__x0001__x0001__x0001__x0001__x0001__x0001__x0001_æ_x0003__x0001__x0001__x0003__x0001_)_x0001__x0001_\u0080=RiskData('Risk Summary'!L$48,$A999)/1000_x0001__x0001__x0001_\u0080_x0001__x0001__x0001__x0001__x0001__x0001__x0001__x0001__x0001__x0001_æ_x0003__x0001__x0001__x0006__x0001_'_x0001__x0001_\u0080=(RiskData(NR_to_Cash!C$18,$A999))/1000_x0001__x0001__x0001_\u0080_x0001__x0001__x0001__x0001__x0001__x0001__x0001__x0001__x0001__x0001_æ_x0003__x0001__x0001__x0004__x0005__x0007__x0004_'_x0004__x0004_\u0080=(RiskData(NR_to_Cash!D$18,$A999))/1000_x0004__x0004__x0004_\u0080_x0004__x0004__x0004__x0004__x0004__x0004__x0004__x0004__x0004__x0004_æ_x0003__x0004__x0004__x0008__x0004_'_x0004__x0004_\u0080=(RiskData(NR_to_Cash!E$18,$A999))/1000_x0004__x0004__x0004_\u0080_x0004__x0004__x0004__x0004__x0004__x0004__x0004__x0004__x0004__x0004_"}},{"$cut":{"chars":93612,"head":"a23586d2748f1187aaab8c4251f1492f_x0005__x0006_(_x0005__x0005_\u0080=(RiskData(NR_to_Cash!E$18,$A1077))/1000_x0005__x0005__x0005_\u0080_x0005__x0005__x0005__x0005__x0005__x0005__x0005__x0005__x0005__x0005_5_x0004__x0005__x0005__x0001__x0005_*_x0005__x0005_\u0080=RiskData('Risk Summary'!J$48,$A1078)/1000_x0005__x0005__x0005_\u0080_x0005__x0005__x0005__x0005__x0005__x0005__x0005__x0005__x0005__x0005_5_x0004__x0005__x0005__x0002__x0005_*_x0005__x0005_\u0080=RiskData('Risk Summary'!K$48,$A1078)/1000_x0005__x0005__x0005_\u0080_x0005__x0005__x0005__x0005__x0005__x0005__x0005__x0005__x0005__x0005_5_x0004__x0005__x0005__x0003__x0005_*_x0005__x0005_\u0080=RiskData('Risk Summary'!L$48,$A1078)/1000_x0005__x0005__x0005_\u0080_x0005__x0005__x0005__x0005__x0005__x0005__x0002__x0003__x0002__x0002__x0002__x0002_5_x0004__x0002__x0002__x0006__x0002_(_x0002__x0002_\u0080=(RiskData(NR_to_Cash!C$18,$A1078))/1000_x0002__x0002__x0002_\u0080_x0002__x0002__x0002__x0002__x0002__x0002__x0002__x0002__x0002__x0002_5_x0004__x0002__x0002__x0007__x0002_(_x0002__x0002_\u0080=(RiskData(NR_to_Cash!D$18,$A1078))/1000_x0002__x0002__x0002_\u0080_x0002__x0002__x0002__x0002__x0002__x0002__x0002__x0002__x0002__x0002_5_x0004__x0002__x0002__x0008__x0002_(_x0002__x0002_\u0080=(RiskData(NR_to_Cash!E$18,$A1078))/1000_x0002__x0002__x0002_\u0080_x0002__x0002__x0002__x0002__x0002__x0002__x0002__x0002__x0002__x0002_6_x0004__x0002__x0002__x0001__x0002_*_x0002__x0002_\u0080=RiskData('Risk Summary'!J$48,$A1079)/1000_x0002__x0002__x0002_\u0080_x0001__x0005__x0001__x0001__x0001__x0001__x0001__x0001__x0001__x0001__x0001__x0001_6_x0004__x0001__x0001__x0002__x0001_*_x0001__x0001_\u0080=RiskData('Risk Summary'!K$48,$A1079)/1000_x0001__x0001__x0001_\u0080_x0001__x0001__x0001__x0001__x0001__x0001__x0001__x0001__x0001__x0001_6_x0004__x0001__x0001__x0003__x0001_*_x0001__x0001_\u0080=RiskData('Risk Summary'!L$48,$A1079)/1000_x0001__x0001__x0001_\u0080_x0001__x0001__x0001__x0001__x0001__x0001__x0001__x0001__x0001__x0001_6_x0004__x0001__x0001__x0006__x0001_(_x0001__x0001_\u0080=(RiskData(NR_to_Cash!C$18,$A1079))/1000_x0001__x0001__x0001_\u0080_x0001__x0001__x0001__x0001__x0001__x0001__x0001__x0001__x0001__x0001_6_x0004__x0001__x0001__x0007__x0001_(_x0001__x0001_\u0080=(RiskData(NR_to_Cash!D$18,$A1079))/_x0005__x0006_1000_x0005__x0005__x0005_\u0080_x0005__x0005__x0005__x0005__x0005__x0005__x0005__x0005__x0005__x0005_6_x0004__x0005__x0005__x0008__x0005_(_x0005__x0005_\u0080=(RiskData(NR_to_Cash!E$18,$A1079))/1000_x0005__x0005__x0005_\u0080_x0005__x0005__x0005__x0005__x0005__x0005__x0005__x0005__x0005__x0005_7_x0004__x0005__x0005__x0001__x0005_*_x0005__x0005_\u0080=RiskData('Risk Summary'!J$48,$A1080)/1000_x0005__x0005__x0005_\u0080_x0005__x0005__x0005__x0005__x0005__x0005__x0005__x0005__x0005__x0005_7_x0004__x0005__x0005__x0002__x0005_*_x0005__x0005_\u0080=RiskData('Risk Summary'!K$48,$A1080)/1000_x0005__x0005__x0005_\u0080_x0005__x0005__x0005__x0005__x0005__x0005__x0005__x0005__x0005__x0005_7_x0004__x0005__x0005__x0003__x0005_*_x0005__x0005_\u0080=RiskData('Risk Summary'!L$4_x0002__x0003_8,$A1080)/1000_x0002__x0002__x0002_\u0080_x0002__x0002__x0002__x0002__x0002__x0002__x0002__x0002__x0002__x0002_7_x0004__x0002__x0002__x0006__x0002_(_x0002__x0002_\u0080=(RiskData(NR_to_Cash!C$18,$A1080))/1000_x0002__x0002__x0002_\u0080_x0002__x0002__x0002__x0002__x0002__x0002__x0002__x0002__x0002__x0002_7_x0004__x0002__x0002__x0007__x0002_(_x0002__x0002_\u0080=(RiskData(NR_to_Cash!D$18,$A1080))/1000_x0002__x0002__x0002_\u0080_x0002__x0002__x0002__x0002__x0002__x0002__x0002__x0002__x0002__x0002_7_x0004__x0002__x0002__x0008__x0002_(_x0002__x0002_\u0080=(RiskData(NR_to_Cash!E$18,$A1080))/1000_x0002__x0002__x0002_\u0080_x0002__x0002__x0002__x0002__x0002__x0002__x0002__x0002__x0002__x0002_8_x0004__x0002__x0002__x0001__x0002_*_x0002__x0002_\u0080=RiskData('Risk Summar_x0001__x0005_y'!J$48,$A1081)/1000_x0001__x0001__x0001_\u0080_x0001__x0001__x0001__x0001__x0001__x0001__x0001__x0001__x0001__x0001_8_x0004__x0001__x0001__x0002__x0001_*_x0001__x0001_\u0080=RiskData('Risk Summary'!K$48,$A1081)/1000_x0001__x0001__x0001_\u0080_x0001__x0001__x0001__x0001__x0001__x0001__x0001__x0001__x0001__x0001_8_x0004__x0001__x0001__x0003__x0001_*_x0001__x0001_\u0080=RiskData('Risk Summary'!L$48,$A1081)/1000_x0001__x0001__x0001_\u0080_x0001__x0001_"}},{"$cut":{"chars":94170,"head":"5169658623da69a8c6003ee1eb37b8da_x0003__x0005_(NR_to_Cash!C$18,$A1160))/1000_x0003__x0003__x0003_\u0080_x0003__x0003__x0003__x0003__x0003__x0003__x0003__x0003__x0003__x0003_\u0087_x0004__x0003__x0003__x0007__x0003_(_x0003__x0003_\u0080=(RiskData(NR_to_Cash!D$18,$A1160))/1000_x0003__x0003__x0003_\u0080_x0003__x0003__x0003__x0003__x0003__x0003__x0003__x0003__x0003__x0003_\u0087_x0004__x0003__x0003__x0008__x0003_(_x0003__x0003_\u0080=(RiskData(NR_to_Cash!E$18,$A1160))/1000_x0003__x0003__x0003_\u0080_x0003__x0003__x0003__x0003__x0003__x0003__x0003__x0003__x0003__x0003_\u0088_x0004__x0003__x0003__x0001__x0003_*_x0003__x0003_\u0080=RiskData('Risk Summary'!J$48,$A1161)/1000_x0003__x0003__x0003_\u0080_x0003__x0003__x0003__x0003__x0003__x0003__x0003__x0003__x0003__x0003_\u0088_x0004__x0003__x0003__x0002__x0003_*_x0003__x0003_\u0080=Ris_x0001__x0002_kData('Risk Summary'!K$48,$A1161)/1000_x0001__x0001__x0001_\u0080_x0001__x0001__x0001__x0001__x0001__x0001__x0001__x0001__x0001__x0001_\u0088_x0004__x0001__x0001__x0003__x0001_*_x0001__x0001_\u0080=RiskData('Risk Summary'!L$48,$A1161)/1000_x0001__x0001__x0001_\u0080_x0001__x0001__x0001__x0001__x0001__x0001__x0001__x0001__x0001__x0001_\u0088_x0004__x0001__x0001__x0006__x0001_(_x0001__x0001_\u0080=(RiskData(NR_to_Cash!C$18,$A1161))/1000_x0001__x0001__x0001_\u0080_x0001__x0001__x0001__x0001__x0001__x0001__x0001__x0001__x0001__x0001_\u0088_x0004__x0001__x0001__x0007__x0001_(_x0001__x0001_\u0080=(RiskData(NR_to_Cash!D$18,$A1161))/1000_x0001__x0001__x0001_\u0080_x0001__x0001__x0001__x0001__x0001__x0001__x0001__x0001__x0001__x0001_\u0088_x0004__x0001__x0001__x0008__x0001__x0005__x0006_(_x0005__x0005_\u0080=(RiskData(NR_to_Cash!E$18,$A1161))/1000_x0005__x0005__x0005_\u0080_x0005__x0005__x0005__x0005__x0005__x0005__x0005__x0005__x0005__x0005_\u0089_x0004__x0005__x0005__x0001__x0005_*_x0005__x0005_\u0080=RiskData('Risk Summary'!J$48,$A1162)/1000_x0005__x0005__x0005_\u0080_x0005__x0005__x0005__x0005__x0005__x0005__x0005__x0005__x0005__x0005_\u0089_x0004__x0005__x0005__x0002__x0005_*_x0005__x0005_\u0080=RiskData('Risk Summary'!K$48,$A1162)/1000_x0005__x0005__x0005_\u0080_x0005__x0005__x0005__x0005__x0005__x0005__x0005__x0005__x0005__x0005_\u0089_x0004__x0005__x0005__x0003__x0005_*_x0005__x0005_\u0080=RiskData('Risk Summary'!L$48,$A1162)/1000_x0005__x0005__x0005_\u0080_x0005__x0005__x0005__x0005__x0005__x0005__x0002__x0003__x0002__x0002__x0002__x0002_\u0089_x0004__x0002__x0002__x0006__x0002_(_x0002__x0002_\u0080=(RiskData(NR_to_Cash!C$18,$A1162))/1000_x0002__x0002__x0002_\u0080_x0002__x0002__x0002__x0002__x0002__x0002__x0002__x0002__x0002__x0002_\u0089_x0004__x0002__x0002__x0007__x0002_(_x0002__x0002_\u0080=(RiskData(NR_to_Cash!D$18,$A1162))/1000_x0002__x0002__x0002_\u0080_x0002__x0002__x0002__x0002__x0002__x0002__x0002__x0002__x0002__x0002_\u0089_x0004__x0002__x0002__x0008__x0002_(_x0002__x0002_\u0080=(RiskData(NR_to_Cash!E$18,$A1162))/1000_x0002__x0002__x0002_\u0080_x0002__x0002__x0002__x0002__x0002__x0002__x0002__x0002__x0002__x0002_\u008a_x0004__x0002__x0002__x0001__x0002_*_x0002__x0002_\u0080=RiskData('Risk Summary'!J$48,$A1163)/1000_x0002__x0002__x0002_\u0080_x0001__x0005__x0001__x0001__x0001__x0001__x0001__x0001__x0001__x0001__x0001__x0001_\u008a_x0004__x0001__x0001__x0002__x0001_*_x0001__x0001_\u0080=RiskData('Risk Summary'!K$48,$A1163)/1000_x0001__x0001__x0001_\u0080_x0001__x0001__x0001__x0001__x0001__x0001__x0001__x0001__x0001__x0001_\u008a_x0004__x0001__x0001__x0003__x0001_*_x0001__x0001_\u0080=RiskData('Risk Summary'!L$48,$A1163)/1000_x0001__x0001__x0001_\u0080_x0001__x0001__x0001__x0001__x0001__x0001__x0001__x0001__x0001__x0001_\u008a_x0004__x0001__x0001__x0006__x0001_(_x0001__x0001_\u0080=(RiskData(NR_to_Cash!C$18,$A1163))/1000_x0001__x0001__x0001_\u0080_x0001__x0001__x0001__x0001__x0001__x0001__x0001__x0001__x0001__x0001_\u008a_x0004__x0001__x0001__x0007__x0001_(_x0001__x0001_\u0080=(RiskData(NR_to_Cash!D$18,$A1163))/_x0005__x0006_1000_x0005__x0005__x0005_\u0080_x0005__x0005__x0005__x0005__x0005__x0005__x0005__x0005__x0005__x0005_\u008a_x0004__x0005__x0005__x0008__x0005_(_x0005__x0005_\u0080=(RiskData(NR_to_Cash!E$18,$A1163))/1000_x0005__x0005__x0005_\u0080_x0005__x0005__x0005__x0005__x0005__x0005__x0005__x0005__x0005__x0005_\u008b_x0004__x0005__x0005__x0001__x0005_*_x0005__x0005_\u0080=RiskData('Risk Summary'!J$48,$A1164)/1000_x0005__x0005__x0005_\u0080_x0005__x0005__x0005__x0005__x0005__x0005__x"}},{"$cut":{"chars":94758,"head":"b5fdf7b76120eeab96f472f1d3e50c10_x0005__x0007_1000_x0005__x0005__x0005_\u0080_x0005__x0005__x0005__x0005__x0005__x0005__x0005__x0005__x0005__x0005_Ù_x0004__x0005__x0005__x0001__x0005_*_x0005__x0005_\u0080=RiskData('Risk Summary'!J$48,$A1242)/1000_x0005__x0005__x0005_\u0080_x0005__x0005__x0005__x0005__x0005__x0005__x0005__x0005__x0005__x0005_Ù_x0004__x0005__x0005__x0002__x0005_*_x0005__x0005_\u0080=RiskData('Risk Summary'!K$48,$A1242)/1000_x0005__x0005__x0005_\u0080_x0005__x0005__x0005__x0005__x0005__x0005__x0005__x0005__x0005__x0005_Ù_x0004__x0005__x0005__x0003__x0005_*_x0005__x0005_\u0080=RiskData('Risk Summary'!L$48,$A1242)/1000_x0005__x0005__x0005_\u0080_x0005__x0005__x0005__x0005__x0005__x0005__x0005__x0005__x0005__x0005_Ù_x0004__x0005__x0005__x0006__x0005_(_x0005__x0005_\u0080=(RiskData(NR_to_Cash!C$18_x0003__x0005_,$A1242))/1000_x0003__x0003__x0003_\u0080_x0003__x0003__x0003__x0003__x0003__x0003__x0003__x0003__x0003__x0003_Ù_x0004__x0003__x0003__x0007__x0003_(_x0003__x0003_\u0080=(RiskData(NR_to_Cash!D$18,$A1242))/1000_x0003__x0003__x0003_\u0080_x0003__x0003__x0003__x0003__x0003__x0003__x0003__x0003__x0003__x0003_Ù_x0004__x0003__x0003__x0008__x0003_(_x0003__x0003_\u0080=(RiskData(NR_to_Cash!E$18,$A1242))/1000_x0003__x0003__x0003_\u0080_x0003__x0003__x0003__x0003__x0003__x0003__x0003__x0003__x0003__x0003_Ú_x0004__x0003__x0003__x0001__x0003_*_x0003__x0003_\u0080=RiskData('Risk Summary'!J$48,$A1243)/1000_x0003__x0003__x0003_\u0080_x0003__x0003__x0003__x0003__x0003__x0003__x0003__x0003__x0003__x0003_Ú_x0004__x0003__x0003__x0002__x0003_*_x0003__x0003_\u0080=RiskData('Risk Summ_x0001__x0002_ary'!K$48,$A1243)/1000_x0001__x0001__x0001_\u0080_x0001__x0001__x0001__x0001__x0001__x0001__x0001__x0001__x0001__x0001_Ú_x0004__x0001__x0001__x0003__x0001_*_x0001__x0001_\u0080=RiskData('Risk Summary'!L$48,$A1243)/1000_x0001__x0001__x0001_\u0080_x0001__x0001__x0001__x0001__x0001__x0001__x0001__x0001__x0001__x0001_Ú_x0004__x0001__x0001__x0006__x0001_(_x0001__x0001_\u0080=(RiskData(NR_to_Cash!C$18,$A1243))/1000_x0001__x0001__x0001_\u0080_x0001__x0001__x0001__x0001__x0001__x0001__x0001__x0001__x0001__x0001_Ú_x0004__x0001__x0001__x0007__x0001_(_x0001__x0001_\u0080=(RiskData(NR_to_Cash!D$18,$A1243))/1000_x0001__x0001__x0001_\u0080_x0001__x0001__x0001__x0001__x0001__x0001__x0001__x0001__x0001__x0001_Ú_x0004__x0001__x0001__x0008__x0001_(_x0001__x0001_\u0080=(RiskData(N_x0005__x0007_R_to_Cash!E$18,$A1243))/1000_x0005__x0005__x0005_\u0080_x0005__x0005__x0005__x0005__x0005__x0005__x0005__x0005__x0005__x0005_Û_x0004__x0005__x0005__x0001__x0005_*_x0005__x0005_\u0080=RiskData('Risk Summary'!J$48,$A1244)/1000_x0005__x0005__x0005_\u0080_x0005__x0005__x0005__x0005__x0005__x0005__x0005__x0005__x0005__x0005_Û_x0004__x0005__x0005__x0002__x0005_*_x0005__x0005_\u0080=RiskData('Risk Summary'!K$48,$A1244)/1000_x0005__x0005__x0005_\u0080_x0005__x0005__x0005__x0005__x0005__x0005__x0005__x0005__x0005__x0005_Û_x0004__x0005__x0005__x0003__x0005_*_x0005__x0005_\u0080=RiskData('Risk Summary'!L$48,$A1244)/1000_x0005__x0005__x0005_\u0080_x0005__x0005__x0005__x0005__x0005__x0005__x0005__x0005__x0005__x0005_Û_x0004__x0005__x0005__x0006__x0005_(_x0005__x0005_\u0080=(_x0003__x0005_RiskData(NR_to_Cash!C$18,$A1244))/1000_x0003__x0003__x0003_\u0080_x0003__x0003__x0003__x0003__x0003__x0003__x0003__x0003__x0003__x0003_Û_x0004__x0003__x0003__x0007__x0003_(_x0003__x0003_\u0080=(RiskData(NR_to_Cash!D$18,$A1244))/1000_x0003__x0003__x0003_\u0080_x0003__x0003__x0003__x0003__x0003__x0003__x0003__x0003__x0003__x0003_Û_x0004__x0003__x0003__x0008__x0003_(_x0003__x0003_\u0080=(RiskData(NR_to_Cash!E$18,$A1244))/1000_x0003__x0003__x0003_\u0080_x0003__x0003__x0003__x0003__x0003__x0003__x0003__x0003__x0003__x0003_Ü_x0004__x0003__x0003__x0001__x0003_*_x0003__x0003_\u0080=RiskData('Risk Summary'!J$48,$A1245)/1000_x0003__x0003__x0003_\u0080_x0003__x0003__x0003__x0003__x0003__x0003__x0003__x0003__x0003__x0003_Ü_x0004__x0003__x0003__x0002__x0003__x0001__x0002_*_x0001__x0001_\u0080=RiskData('Risk Summary'!K$48,$A1245)/1000_x0001__x0001__x0001_\u0080_x0001__x0001__x0001__x0001__x0001__x0001__x0001__x0001__x0001__x0001_Ü_x0004__x0001__x0001__x0003__x0001_*_x0001__x0001_\u0080=RiskData('Risk Summary'!L$48,$A1245)/1000_x0001__x0001__x0001_\u0080_x0001__x0001__x0001__x0001__x0001__x0001__x0001__x0001__x0001__x0"}},{"$cut":{"chars":93984,"head":"597d9f93d167a3bea84c3c9f183e3dad_x0003__x0004__x0003__x0003__x0003__x0003_+_x0005__x0003__x0003__x0007__x0003_(_x0003__x0003_\u0080=(RiskData(NR_to_Cash!D$18,$A1324))/1000_x0003__x0003__x0003_\u0080_x0003__x0003__x0003__x0003__x0003__x0003__x0003__x0003__x0003__x0003_+_x0005__x0003__x0003__x0008__x0003_(_x0003__x0003_\u0080=(RiskData(NR_to_Cash!E$18,$A1324))/1000_x0003__x0003__x0003_\u0080_x0003__x0003__x0003__x0003__x0003__x0003__x0003__x0003__x0003__x0003_,_x0005__x0003__x0003__x0001__x0003_*_x0003__x0003_\u0080=RiskData('Risk Summary'!J$48,$A1325)/1000_x0003__x0003__x0003_\u0080_x0003__x0003__x0003__x0003__x0003__x0003__x0003__x0003__x0003__x0003_,_x0005__x0003__x0003__x0002__x0003_*_x0003__x0003_\u0080=RiskData('Risk Summary'!K$48,$A1325)/1000_x0003__x0003__x0001__x0002__x0001_\u0080_x0001__x0001__x0001__x0001__x0001__x0001__x0001__x0001__x0001__x0001_,_x0005__x0001__x0001__x0003__x0001_*_x0001__x0001_\u0080=RiskData('Risk Summary'!L$48,$A1325)/1000_x0001__x0001__x0001_\u0080_x0001__x0001__x0001__x0001__x0001__x0001__x0001__x0001__x0001__x0001_,_x0005__x0001__x0001__x0006__x0001_(_x0001__x0001_\u0080=(RiskData(NR_to_Cash!C$18,$A1325))/1000_x0001__x0001__x0001_\u0080_x0001__x0001__x0001__x0001__x0001__x0001__x0001__x0001__x0001__x0001_,_x0005__x0001__x0001__x0007__x0001_(_x0001__x0001_\u0080=(RiskData(NR_to_Cash!D$18,$A1325))/1000_x0001__x0001__x0001_\u0080_x0001__x0001__x0001__x0001__x0001__x0001__x0001__x0001__x0001__x0001_,_x0005__x0001__x0001__x0008__x0001_(_x0001__x0001_\u0080=(RiskData(NR_to_Cash!E$18,$A1325))/_x0004__x0007_1000_x0004__x0004__x0004_\u0080_x0004__x0004__x0004__x0004__x0004__x0004__x0004__x0004__x0004__x0004_-_x0005__x0004__x0004__x0001__x0004_*_x0004__x0004_\u0080=RiskData('Risk Summary'!J$48,$A1326)/1000_x0004__x0004__x0004_\u0080_x0004__x0004__x0004__x0004__x0004__x0004__x0004__x0004__x0004__x0004_-_x0005__x0004__x0004__x0002__x0004_*_x0004__x0004_\u0080=RiskData('Risk Summary'!K$48,$A1326)/1000_x0004__x0004__x0004_\u0080_x0004__x0004__x0004__x0004__x0004__x0004__x0004__x0004__x0004__x0004_-_x0005__x0004__x0004__x0003__x0004_*_x0004__x0004_\u0080=RiskData('Risk Summary'!L$48,$A1326)/1000_x0004__x0004__x0004_\u0080_x0004__x0004__x0004__x0004__x0004__x0004__x0004__x0004__x0004__x0004_-_x0005__x0004__x0004__x0006__x0004_(_x0004__x0004_\u0080=(RiskData(NR_to_Cash!C$18_x0003__x0004_,$A1326))/1000_x0003__x0003__x0003_\u0080_x0003__x0003__x0003__x0003__x0003__x0003__x0003__x0003__x0003__x0003_-_x0005__x0003__x0003__x0007__x0003_(_x0003__x0003_\u0080=(RiskData(NR_to_Cash!D$18,$A1326))/1000_x0003__x0003__x0003_\u0080_x0003__x0003__x0003__x0003__x0003__x0003__x0003__x0003__x0003__x0003_-_x0005__x0003__x0003__x0008__x0003_(_x0003__x0003_\u0080=(RiskData(NR_to_Cash!E$18,$A1326))/1000_x0003__x0003__x0003_\u0080_x0003__x0003__x0003__x0003__x0003__x0003__x0003__x0003__x0003__x0003_._x0005__x0003__x0003__x0001__x0003_*_x0003__x0003_\u0080=RiskData('Risk Summary'!J$48,$A1327)/1000_x0003__x0003__x0003_\u0080_x0003__x0003__x0003__x0003__x0003__x0003__x0003__x0003__x0003__x0003_._x0005__x0003__x0003__x0002__x0003_*_x0003__x0003_\u0080=RiskData('Risk Summ_x0001__x0002_ary'!K$48,$A1327)/1000_x0001__x0001__x0001_\u0080_x0001__x0001__x0001__x0001__x0001__x0001__x0001__x0001__x0001__x0001_._x0005__x0001__x0001__x0003__x0001_*_x0001__x0001_\u0080=RiskData('Risk Summary'!L$48,$A1327)/1000_x0001__x0001__x0001_\u0080_x0001__x0001__x0001__x0001__x0001__x0001__x0001__x0001__x0001__x0001_._x0005__x0001__x0001__x0006__x0001_(_x0001__x0001_\u0080=(RiskData(NR_to_Cash!C$18,$A1327))/1000_x0001__x0001__x0001_\u0080_x0001__x0001__x0001__x0001__x0001__x0001__x0001__x0001__x0001__x0001_._x0005__x0001__x0001__x0007__x0001_(_x0001__x0001_\u0080=(RiskData(NR_to_Cash!D$18,$A1327))/1000_x0001__x0001__x0001_\u0080_x0001__x0001__x0001__x0001__x0001__x0001__x0001__x0001__x0001__x0001_._x0005__x0001__x0001__x0008__x0001_(_x0001__x0001_\u0080=(RiskData(N_x0004__x0007_R_to_Cash!E$18,$A1327))/1000_x0004__x0004__x0004_\u0080_x0004__x0004__x0004__x0004__x0004__x0004__x0004__x0004__x0004__x0004_/_x0005__x0004__x0004__x0001__x0004_*_x0004__x0004_\u0080=RiskData('Risk Summary'!J$48,$A1328)/1000_x0004__x0004__x0004_\u0080_x0004__x0004__x0004__x0004__x0004__x0004__x0004__x0004__x0004__x0004_/_x0005__x0004__x0004__x0002__x0004_*_x0004__x0004_\u0080=RiskData('Risk "}},{"$cut":{"chars":93600,"head":"beed8d6347db27a8ca1ed317f98385e1_x0001__x0004_isk Summary'!J$48,$A1406)/1000_x0001__x0001__x0001_\u0080_x0001__x0001__x0001__x0001__x0001__x0001__x0001__x0001__x0001__x0001_}_x0005__x0001__x0001__x0002__x0001_*_x0001__x0001_\u0080=RiskData('Risk Summary'!K$48,$A1406)/1000_x0001__x0001__x0001_\u0080_x0001__x0001__x0001__x0001__x0001__x0001__x0001__x0001__x0001__x0001_}_x0005__x0001__x0001__x0003__x0001_*_x0001__x0001_\u0080=RiskData('Risk Summary'!L$48,$A1406)/1000_x0001__x0001__x0001_\u0080_x0001__x0001__x0001__x0001__x0001__x0001__x0001__x0001__x0001__x0001_}_x0005__x0001__x0001__x0006__x0001_(_x0001__x0001_\u0080=(RiskData(NR_to_Cash!C$18,$A1406))/1000_x0001__x0001__x0001_\u0080_x0001__x0001__x0001__x0001__x0001__x0001__x0001__x0001__x0001__x0001_}_x0005__x0001__x0001__x0007__x0001_(_x0001__x0001_\u0080=(_x0003__x0004_RiskData(NR_to_Cash!D$18,$A1406))/1000_x0003__x0003__x0003_\u0080_x0003__x0003__x0003__x0003__x0003__x0003__x0003__x0003__x0003__x0003_}_x0005__x0003__x0003__x0008__x0003_(_x0003__x0003_\u0080=(RiskData(NR_to_Cash!E$18,$A1406))/1000_x0003__x0003__x0003_\u0080_x0003__x0003__x0003__x0003__x0003__x0003__x0003__x0003__x0003__x0003_~_x0005__x0003__x0003__x0001__x0003_*_x0003__x0003_\u0080=RiskData('Risk Summary'!J$48,$A1407)/1000_x0003__x0003__x0003_\u0080_x0003__x0003__x0003__x0003__x0003__x0003__x0003__x0003__x0003__x0003_~_x0005__x0003__x0003__x0002__x0003_*_x0003__x0003_\u0080=RiskData('Risk Summary'!K$48,$A1407)/1000_x0003__x0003__x0003_\u0080_x0003__x0003__x0003__x0003__x0003__x0003__x0003__x0003__x0003__x0003_~_x0005__x0003__x0003__x0001__x0002__x0003__x0001_*_x0001__x0001_\u0080=RiskData('Risk Summary'!L$48,$A1407)/1000_x0001__x0001__x0001_\u0080_x0001__x0001__x0001__x0001__x0001__x0001__x0001__x0001__x0001__x0001_~_x0005__x0001__x0001__x0006__x0001_(_x0001__x0001_\u0080=(RiskData(NR_to_Cash!C$18,$A1407))/1000_x0001__x0001__x0001_\u0080_x0001__x0001__x0001__x0001__x0001__x0001__x0001__x0001__x0001__x0001_~_x0005__x0001__x0001__x0007__x0001_(_x0001__x0001_\u0080=(RiskData(NR_to_Cash!D$18,$A1407))/1000_x0001__x0001__x0001_\u0080_x0001__x0001__x0001__x0001__x0001__x0001__x0001__x0001__x0001__x0001_~_x0005__x0001__x0001__x0008__x0001_(_x0001__x0001_\u0080=(RiskData(NR_to_Cash!E$18,$A1407))/1000_x0001__x0001__x0001_\u0080_x0001__x0001__x0001__x0001__x0001__x0001__x0001__x0001__x0004__x0007__x0004__x0004_\u007f_x0005__x0004__x0004__x0001__x0004_*_x0004__x0004_\u0080=RiskData('Risk Summary'!J$48,$A1408)/1000_x0004__x0004__x0004_\u0080_x0004__x0004__x0004__x0004__x0004__x0004__x0004__x0004__x0004__x0004_\u007f_x0005__x0004__x0004__x0002__x0004_*_x0004__x0004_\u0080=RiskData('Risk Summary'!K$48,$A1408)/1000_x0004__x0004__x0004_\u0080_x0004__x0004__x0004__x0004__x0004__x0004__x0004__x0004__x0004__x0004_\u007f_x0005__x0004__x0004__x0003__x0004_*_x0004__x0004_\u0080=RiskData('Risk Summary'!L$48,$A1408)/1000_x0004__x0004__x0004_\u0080_x0004__x0004__x0004__x0004__x0004__x0004__x0004__x0004__x0004__x0004_\u007f_x0005__x0004__x0004__x0006__x0004_(_x0004__x0004_\u0080=(RiskData(NR_to_Cash!C$18,$A1408))/1000_x0004__x0004__x0003__x0004__x0003_\u0080_x0003__x0003__x0003__x0003__x0003__x0003__x0003__x0003__x0003__x0003_\u007f_x0005__x0003__x0003__x0007__x0003_(_x0003__x0003_\u0080=(RiskData(NR_to_Cash!D$18,$A1408))/1000_x0003__x0003__x0003_\u0080_x0003__x0003__x0003__x0003__x0003__x0003__x0003__x0003__x0003__x0003_\u007f_x0005__x0003__x0003__x0008__x0003_(_x0003__x0003_\u0080=(RiskData(NR_to_Cash!E$18,$A1408))/1000_x0003__x0003__x0003_\u0080_x0003__x0003__x0003__x0003__x0003__x0003__x0003__x0003__x0003__x0003_\u0080_x0005__x0003__x0003__x0001__x0003_*_x0003__x0003_\u0080=RiskData('Risk Summary'!J$48,$A1409)/1000_x0003__x0003__x0003_\u0080_x0003__x0003__x0003__x0003__x0003__x0003__x0003__x0003__x0003__x0003_\u0080_x0005__x0003__x0003__x0002__x0003_*_x0003__x0003_\u0080=RiskData('Risk Summary'!K$48,$A1409_x0001__x0002_)/1000_x0001__x0001__x0001_\u0080_x0001__x0001__x0001__x0001__x0001__x0001__x0001__x0001__x0001__x0001_\u0080_x0005__x0001__x0001__x0003__x0001_*_x0001__x0001_\u0080=RiskData('Risk Summary'!L$48,$A1409)/1000_x0001__x0001__x0001_\u0080_x0001__x0001__x0001__x0001__x0001__x0001__x0001__x0001__x0001__x0001_\u0080_x0005__x0001__x0001__x0006__x0001_(_x0001__x0001_\u0080=(RiskData(NR_to_Cash!C$18,$A1409))/1000_x0001__x0001__x0001_\u0080_x0001__x0001__x0001__x0001__x0001__x0001_"}},{"$cut":{"chars":94566,"head":"61863ec3407750141484926c3a1e68c8_x0004__x0006_,$A1488))/1000_x0004__x0004__x0004_\u0080_x0004__x0004__x0004__x0004__x0004__x0004__x0004__x0004__x0004__x0004_Ï_x0005__x0004__x0004__x0008__x0004_(_x0004__x0004_\u0080=(RiskData(NR_to_Cash!E$18,$A1488))/1000_x0004__x0004__x0004_\u0080_x0004__x0004__x0004__x0004__x0004__x0004__x0004__x0004__x0004__x0004_Ð_x0005__x0004__x0004__x0001__x0004_*_x0004__x0004_\u0080=RiskData('Risk Summary'!J$48,$A1489)/1000_x0004__x0004__x0004_\u0080_x0004__x0004__x0004__x0004__x0004__x0004__x0004__x0004__x0004__x0004_Ð_x0005__x0004__x0004__x0002__x0004_*_x0004__x0004_\u0080=RiskData('Risk Summary'!K$48,$A1489)/1000_x0004__x0004__x0004_\u0080_x0004__x0004__x0004__x0004__x0004__x0004__x0004__x0004__x0004__x0004_Ð_x0005__x0004__x0004__x0003__x0004_*_x0004__x0004_\u0080=RiskData('Risk Su_x0002__x0003_mmary'!L$48,$A1489)/1000_x0002__x0002__x0002_\u0080_x0002__x0002__x0002__x0002__x0002__x0002__x0002__x0002__x0002__x0002_Ð_x0005__x0002__x0002__x0006__x0002_(_x0002__x0002_\u0080=(RiskData(NR_to_Cash!C$18,$A1489))/1000_x0002__x0002__x0002_\u0080_x0002__x0002__x0002__x0002__x0002__x0002__x0002__x0002__x0002__x0002_Ð_x0005__x0002__x0002__x0007__x0002_(_x0002__x0002_\u0080=(RiskData(NR_to_Cash!D$18,$A1489))/1000_x0002__x0002__x0002_\u0080_x0002__x0002__x0002__x0002__x0002__x0002__x0002__x0002__x0002__x0002_Ð_x0005__x0002__x0002__x0008__x0002_(_x0002__x0002_\u0080=(RiskData(NR_to_Cash!E$18,$A1489))/1000_x0002__x0002__x0002_\u0080_x0002__x0002__x0002__x0002__x0002__x0002__x0002__x0002__x0002__x0002_Ñ_x0005__x0002__x0002__x0001__x0002_*_x0002__x0002_\u0080=RiskData('R_x0001__x0004_isk Summary'!J$48,$A1490)/1000_x0001__x0001__x0001_\u0080_x0001__x0001__x0001__x0001__x0001__x0001__x0001__x0001__x0001__x0001_Ñ_x0005__x0001__x0001__x0002__x0001_*_x0001__x0001_\u0080=RiskData('Risk Summary'!K$48,$A1490)/1000_x0001__x0001__x0001_\u0080_x0001__x0001__x0001__x0001__x0001__x0001__x0001__x0001__x0001__x0001_Ñ_x0005__x0001__x0001__x0003__x0001_*_x0001__x0001_\u0080=RiskData('Risk Summary'!L$48,$A1490)/1000_x0001__x0001__x0001_\u0080_x0001__x0001__x0001__x0001__x0001__x0001__x0001__x0001__x0001__x0001_Ñ_x0005__x0001__x0001__x0006__x0001_(_x0001__x0001_\u0080=(RiskData(NR_to_Cash!C$18,$A1490))/1000_x0001__x0001__x0001_\u0080_x0001__x0001__x0001__x0001__x0001__x0001__x0001__x0001__x0001__x0001_Ñ_x0005__x0001__x0001__x0007__x0001_(_x0001__x0001_\u0080=(_x0003__x0004_RiskData(NR_to_Cash!D$18,$A1490))/1000_x0003__x0003__x0003_\u0080_x0003__x0003__x0003__x0003__x0003__x0003__x0003__x0003__x0003__x0003_Ñ_x0005__x0003__x0003__x0008__x0003_(_x0003__x0003_\u0080=(RiskData(NR_to_Cash!E$18,$A1490))/1000_x0003__x0003__x0003_\u0080_x0003__x0003__x0003__x0003__x0003__x0003__x0003__x0003__x0003__x0003_Ò_x0005__x0003__x0003__x0001__x0003_*_x0003__x0003_\u0080=RiskData('Risk Summary'!J$48,$A1491)/1000_x0003__x0003__x0003_\u0080_x0003__x0003__x0003__x0003__x0003__x0003__x0003__x0003__x0003__x0003_Ò_x0005__x0003__x0003__x0002__x0003_*_x0003__x0003_\u0080=RiskData('Risk Summary'!K$48,$A1491)/1000_x0003__x0003__x0003_\u0080_x0003__x0003__x0003__x0003__x0003__x0003__x0003__x0003__x0003__x0003_Ò_x0005__x0003__x0003__x0001__x0002__x0003__x0001_*_x0001__x0001_\u0080=RiskData('Risk Summary'!L$48,$A1491)/1000_x0001__x0001__x0001_\u0080_x0001__x0001__x0001__x0001__x0001__x0001__x0001__x0001__x0001__x0001_Ò_x0005__x0001__x0001__x0006__x0001_(_x0001__x0001_\u0080=(RiskData(NR_to_Cash!C$18,$A1491))/1000_x0001__x0001__x0001_\u0080_x0001__x0001__x0001__x0001__x0001__x0001__x0001__x0001__x0001__x0001_Ò_x0005__x0001__x0001__x0007__x0001_(_x0001__x0001_\u0080=(RiskData(NR_to_Cash!D$18,$A1491))/1000_x0001__x0001__x0001_\u0080_x0001__x0001__x0001__x0001__x0001__x0001__x0001__x0001__x0001__x0001_Ò_x0005__x0001__x0001__x0008__x0001_(_x0001__x0001_\u0080=(RiskData(NR_to_Cash!E$18,$A1491))/1000_x0001__x0001__x0001_\u0080_x0001__x0001__x0001__x0001__x0001__x0001__x0001__x0001__x0004__x0007__x0004__x0004_Ó_x0005__x0004__x0004__x0001__x0004_*_x0004__x0004_\u0080=RiskData('Risk Summary'!J$48,$A1492)/1000_x0004__x0004__x0004_\u0080_x0004__x0004__x0004__x0004__x0004__x0004__x0004__x0004__x0004__x0004_Ó_x0005__x0004__x0004__x0002__x0004_*_x0004__x0004_\u0080=RiskData('Risk Summary'!K$48,$A1492)/1000_x0004__x0004__x0004_\u0080_x0004__x0004__x0004__x0004__x0004__x0004__x0004__x0004__x"}},{"$cut":{"chars":93624,"head":"c6104c4973edf00c8091a76780755734_x0004__x0005__x0008__x0004_(_x0004__x0004_\u0080=(RiskData(NR_to_Cash!E$18,$A1568))/1000_x0004__x0004__x0004_\u0080_x0004__x0004__x0004__x0004__x0004__x0004__x0004__x0004__x0004__x0004_ _x0006__x0004__x0004__x0001__x0004_*_x0004__x0004_\u0080=RiskData('Risk Summary'!J$48,$A1569)/1000_x0004__x0004__x0004_\u0080_x0004__x0004__x0004__x0004__x0004__x0004__x0004__x0004__x0004__x0004_ _x0006__x0004__x0004__x0002__x0004_*_x0004__x0004_\u0080=RiskData('Risk Summary'!K$48,$A1569)/1000_x0004__x0004__x0004_\u0080_x0004__x0004__x0004__x0004__x0004__x0004__x0004__x0004__x0004__x0004_ _x0006__x0004__x0004__x0003__x0004_*_x0004__x0004_\u0080=RiskData('Risk Summary'!L$48,$A1569)/1000_x0004__x0004__x0004_\u0080_x0004__x0004__x0004__x0004__x0002__x0003__x0002__x0002__x0002__x0002__x0002__x0002_ _x0006__x0002__x0002__x0006__x0002_(_x0002__x0002_\u0080=(RiskData(NR_to_Cash!C$18,$A1569))/1000_x0002__x0002__x0002_\u0080_x0002__x0002__x0002__x0002__x0002__x0002__x0002__x0002__x0002__x0002_ _x0006__x0002__x0002__x0007__x0002_(_x0002__x0002_\u0080=(RiskData(NR_to_Cash!D$18,$A1569))/1000_x0002__x0002__x0002_\u0080_x0002__x0002__x0002__x0002__x0002__x0002__x0002__x0002__x0002__x0002_ _x0006__x0002__x0002__x0008__x0002_(_x0002__x0002_\u0080=(RiskData(NR_to_Cash!E$18,$A1569))/1000_x0002__x0002__x0002_\u0080_x0002__x0002__x0002__x0002__x0002__x0002__x0002__x0002__x0002__x0002_!_x0006__x0002__x0002__x0001__x0002_*_x0002__x0002_\u0080=RiskData('Risk Summary'!J$48,$A1570)/1000_x0002__x0002__x0001__x0004__x0001_\u0080_x0001__x0001__x0001__x0001__x0001__x0001__x0001__x0001__x0001__x0001_!_x0006__x0001__x0001__x0002__x0001_*_x0001__x0001_\u0080=RiskData('Risk Summary'!K$48,$A1570)/1000_x0001__x0001__x0001_\u0080_x0001__x0001__x0001__x0001__x0001__x0001__x0001__x0001__x0001__x0001_!_x0006__x0001__x0001__x0003__x0001_*_x0001__x0001_\u0080=RiskData('Risk Summary'!L$48,$A1570)/1000_x0001__x0001__x0001_\u0080_x0001__x0001__x0001__x0001__x0001__x0001__x0001__x0001__x0001__x0001_!_x0006__x0001__x0001__x0006__x0001_(_x0001__x0001_\u0080=(RiskData(NR_to_Cash!C$18,$A1570))/1000_x0001__x0001__x0001_\u0080_x0001__x0001__x0001__x0001__x0001__x0001__x0001__x0001__x0001__x0001_!_x0006__x0001__x0001__x0007__x0001_(_x0001__x0001_\u0080=(RiskData(NR_to_Cash!D$18,$A1570)_x0004__x0005_)/1000_x0004__x0004__x0004_\u0080_x0004__x0004__x0004__x0004__x0004__x0004__x0004__x0004__x0004__x0004_!_x0006__x0004__x0004__x0008__x0004_(_x0004__x0004_\u0080=(RiskData(NR_to_Cash!E$18,$A1570))/1000_x0004__x0004__x0004_\u0080_x0004__x0004__x0004__x0004__x0004__x0004__x0004__x0004__x0004__x0004_\"_x0006__x0004__x0004__x0001__x0004_*_x0004__x0004_\u0080=RiskData('Risk Summary'!J$48,$A1571)/1000_x0004__x0004__x0004_\u0080_x0004__x0004__x0004__x0004__x0004__x0004__x0004__x0004__x0004__x0004_\"_x0006__x0004__x0004__x0002__x0004_*_x0004__x0004_\u0080=RiskData('Risk Summary'!K$48,$A1571)/1000_x0004__x0004__x0004_\u0080_x0004__x0004__x0004__x0004__x0004__x0004__x0004__x0004__x0004__x0004_\"_x0006__x0004__x0004__x0003__x0004_*_x0004__x0004_\u0080=RiskData('Risk Summary'!L_x0002__x0003_$48,$A1571)/1000_x0002__x0002__x0002_\u0080_x0002__x0002__x0002__x0002__x0002__x0002__x0002__x0002__x0002__x0002_\"_x0006__x0002__x0002__x0006__x0002_(_x0002__x0002_\u0080=(RiskData(NR_to_Cash!C$18,$A1571))/1000_x0002__x0002__x0002_\u0080_x0002__x0002__x0002__x0002__x0002__x0002__x0002__x0002__x0002__x0002_\"_x0006__x0002__x0002__x0007__x0002_(_x0002__x0002_\u0080=(RiskData(NR_to_Cash!D$18,$A1571))/1000_x0002__x0002__x0002_\u0080_x0002__x0002__x0002__x0002__x0002__x0002__x0002__x0002__x0002__x0002_\"_x0006__x0002__x0002__x0008__x0002_(_x0002__x0002_\u0080=(RiskData(NR_to_Cash!E$18,$A1571))/1000_x0002__x0002__x0002_\u0080_x0002__x0002__x0002__x0002__x0002__x0002__x0002__x0002__x0002__x0002_#_x0006__x0002__x0002__x0001__x0002_*_x0002__x0002_\u0080=RiskData('Risk Summ_x0001__x0004_ary'!J$48,$A1572)/1000_x0001__x0001__x0001_\u0080_x0001__x0001__x0001__x0001__x0001__x0001__x0001__x0001__x0001__x0001_#_x0006__x0001__x0001__x0002__x0001_*_x0001__x0001_\u0080=RiskData('Risk Summary'!K$48,$A1572)/1000_x0001__x0001__x0001_\u0080_x0001__x0001__x0001__x0001__x0001__x0001__x0001__x0001__x0001__x0001_#_x0006__x0001__x0001__x0003__x0001_*_x0001__x0001_\u0080=RiskData('Risk Summary'!L$48,$A1572)/1000_x0001__x0001__x0001_\u0080"}},{"$cut":{"chars":94326,"head":"4088ec3cbfe5720b9d257947c6709fe0_x0003__x0004_ta(NR_to_Cash!C$18,$A1651))/1000_x0003__x0003__x0003_\u0080_x0003__x0003__x0003__x0003__x0003__x0003__x0003__x0003__x0003__x0003_r_x0006__x0003__x0003__x0007__x0003_(_x0003__x0003_\u0080=(RiskData(NR_to_Cash!D$18,$A1651))/1000_x0003__x0003__x0003_\u0080_x0003__x0003__x0003__x0003__x0003__x0003__x0003__x0003__x0003__x0003_r_x0006__x0003__x0003__x0008__x0003_(_x0003__x0003_\u0080=(RiskData(NR_to_Cash!E$18,$A1651))/1000_x0003__x0003__x0003_\u0080_x0003__x0003__x0003__x0003__x0003__x0003__x0003__x0003__x0003__x0003_s_x0006__x0003__x0003__x0001__x0003_*_x0003__x0003_\u0080=RiskData('Risk Summary'!J$48,$A1652)/1000_x0003__x0003__x0003_\u0080_x0003__x0003__x0003__x0003__x0003__x0003__x0003__x0003__x0003__x0003_s_x0006__x0003__x0003__x0002__x0003_*_x0003__x0003_\u0080=R_x0001__x0002_iskData('Risk Summary'!K$48,$A1652)/1000_x0001__x0001__x0001_\u0080_x0001__x0001__x0001__x0001__x0001__x0001__x0001__x0001__x0001__x0001_s_x0006__x0001__x0001__x0003__x0001_*_x0001__x0001_\u0080=RiskData('Risk Summary'!L$48,$A1652)/1000_x0001__x0001__x0001_\u0080_x0001__x0001__x0001__x0001__x0001__x0001__x0001__x0001__x0001__x0001_s_x0006__x0001__x0001__x0006__x0001_(_x0001__x0001_\u0080=(RiskData(NR_to_Cash!C$18,$A1652))/1000_x0001__x0001__x0001_\u0080_x0001__x0001__x0001__x0001__x0001__x0001__x0001__x0001__x0001__x0001_s_x0006__x0001__x0001__x0007__x0001_(_x0001__x0001_\u0080=(RiskData(NR_to_Cash!D$18,$A1652))/1000_x0001__x0001__x0001_\u0080_x0001__x0001__x0001__x0001__x0001__x0001__x0001__x0001__x0001__x0001_s_x0006__x0001__x0001__x0004__x0005__x0008__x0004_(_x0004__x0004_\u0080=(RiskData(NR_to_Cash!E$18,$A1652))/1000_x0004__x0004__x0004_\u0080_x0004__x0004__x0004__x0004__x0004__x0004__x0004__x0004__x0004__x0004_t_x0006__x0004__x0004__x0001__x0004_*_x0004__x0004_\u0080=RiskData('Risk Summary'!J$48,$A1653)/1000_x0004__x0004__x0004_\u0080_x0004__x0004__x0004__x0004__x0004__x0004__x0004__x0004__x0004__x0004_t_x0006__x0004__x0004__x0002__x0004_*_x0004__x0004_\u0080=RiskData('Risk Summary'!K$48,$A1653)/1000_x0004__x0004__x0004_\u0080_x0004__x0004__x0004__x0004__x0004__x0004__x0004__x0004__x0004__x0004_t_x0006__x0004__x0004__x0003__x0004_*_x0004__x0004_\u0080=RiskData('Risk Summary'!L$48,$A1653)/1000_x0004__x0004__x0004_\u0080_x0004__x0004__x0004__x0004__x0002__x0003__x0002__x0002__x0002__x0002__x0002__x0002_t_x0006__x0002__x0002__x0006__x0002_(_x0002__x0002_\u0080=(RiskData(NR_to_Cash!C$18,$A1653))/1000_x0002__x0002__x0002_\u0080_x0002__x0002__x0002__x0002__x0002__x0002__x0002__x0002__x0002__x0002_t_x0006__x0002__x0002__x0007__x0002_(_x0002__x0002_\u0080=(RiskData(NR_to_Cash!D$18,$A1653))/1000_x0002__x0002__x0002_\u0080_x0002__x0002__x0002__x0002__x0002__x0002__x0002__x0002__x0002__x0002_t_x0006__x0002__x0002__x0008__x0002_(_x0002__x0002_\u0080=(RiskData(NR_to_Cash!E$18,$A1653))/1000_x0002__x0002__x0002_\u0080_x0002__x0002__x0002__x0002__x0002__x0002__x0002__x0002__x0002__x0002_u_x0006__x0002__x0002__x0001__x0002_*_x0002__x0002_\u0080=RiskData('Risk Summary'!J$48,$A1654)/1000_x0002__x0002__x0001__x0004__x0001_\u0080_x0001__x0001__x0001__x0001__x0001__x0001__x0001__x0001__x0001__x0001_u_x0006__x0001__x0001__x0002__x0001_*_x0001__x0001_\u0080=RiskData('Risk Summary'!K$48,$A1654)/1000_x0001__x0001__x0001_\u0080_x0001__x0001__x0001__x0001__x0001__x0001__x0001__x0001__x0001__x0001_u_x0006__x0001__x0001__x0003__x0001_*_x0001__x0001_\u0080=RiskData('Risk Summary'!L$48,$A1654)/1000_x0001__x0001__x0001_\u0080_x0001__x0001__x0001__x0001__x0001__x0001__x0001__x0001__x0001__x0001_u_x0006__x0001__x0001__x0006__x0001_(_x0001__x0001_\u0080=(RiskData(NR_to_Cash!C$18,$A1654))/1000_x0001__x0001__x0001_\u0080_x0001__x0001__x0001__x0001__x0001__x0001__x0001__x0001__x0001__x0001_u_x0006__x0001__x0001__x0007__x0001_(_x0001__x0001_\u0080=(RiskData(NR_to_Cash!D$18,$A1654)_x0004__x0005_)/1000_x0004__x0004__x0004_\u0080_x0004__x0004__x0004__x0004__x0004__x0004__x0004__x0004__x0004__x0004_u_x0006__x0004__x0004__x0008__x0004_(_x0004__x0004_\u0080=(RiskData(NR_to_Cash!E$18,$A1654))/1000_x0004__x0004__x0004_\u0080_x0004__x0004__x0004__x0004__x0004__x0004__x0004__x0004__x0004__x0004_v_x0006__x0004__x0004__x0001__x0004_*_x0004__x0004_\u0080=RiskData('Risk Summary'!J$48,$A1655)/1000_x0004__x0004__x0004_\u0080_x0004__x0004__x0004__x0004__x0004__x0004_"}},{"$cut":{"chars":94422,"head":"30e2c7339813eace3ec3ae629ab42e69_x0004__x0005_)/1000_x0004__x0004__x0004_\u0080_x0004__x0004__x0004__x0004__x0004__x0004__x0004__x0004__x0004__x0004_Ä_x0006__x0004__x0004__x0001__x0004_*_x0004__x0004_\u0080=RiskData('Risk Summary'!J$48,$A1733)/1000_x0004__x0004__x0004_\u0080_x0004__x0004__x0004__x0004__x0004__x0004__x0004__x0004__x0004__x0004_Ä_x0006__x0004__x0004__x0002__x0004_*_x0004__x0004_\u0080=RiskData('Risk Summary'!K$48,$A1733)/1000_x0004__x0004__x0004_\u0080_x0004__x0004__x0004__x0004__x0004__x0004__x0004__x0004__x0004__x0004_Ä_x0006__x0004__x0004__x0003__x0004_*_x0004__x0004_\u0080=RiskData('Risk Summary'!L$48,$A1733)/1000_x0004__x0004__x0004_\u0080_x0004__x0004__x0004__x0004__x0004__x0004__x0004__x0004__x0004__x0004_Ä_x0006__x0004__x0004__x0006__x0004_(_x0004__x0004_\u0080=(RiskData(NR_to_Cash!C$_x0003__x0004_18,$A1733))/1000_x0003__x0003__x0003_\u0080_x0003__x0003__x0003__x0003__x0003__x0003__x0003__x0003__x0003__x0003_Ä_x0006__x0003__x0003__x0007__x0003_(_x0003__x0003_\u0080=(RiskData(NR_to_Cash!D$18,$A1733))/1000_x0003__x0003__x0003_\u0080_x0003__x0003__x0003__x0003__x0003__x0003__x0003__x0003__x0003__x0003_Ä_x0006__x0003__x0003__x0008__x0003_(_x0003__x0003_\u0080=(RiskData(NR_to_Cash!E$18,$A1733))/1000_x0003__x0003__x0003_\u0080_x0003__x0003__x0003__x0003__x0003__x0003__x0003__x0003__x0003__x0003_Å_x0006__x0003__x0003__x0001__x0003_*_x0003__x0003_\u0080=RiskData('Risk Summary'!J$48,$A1734)/1000_x0003__x0003__x0003_\u0080_x0003__x0003__x0003__x0003__x0003__x0003__x0003__x0003__x0003__x0003_Å_x0006__x0003__x0003__x0002__x0003_*_x0003__x0003_\u0080=RiskData('Risk Su_x0001__x0002_mmary'!K$48,$A1734)/1000_x0001__x0001__x0001_\u0080_x0001__x0001__x0001__x0001__x0001__x0001__x0001__x0001__x0001__x0001_Å_x0006__x0001__x0001__x0003__x0001_*_x0001__x0001_\u0080=RiskData('Risk Summary'!L$48,$A1734)/1000_x0001__x0001__x0001_\u0080_x0001__x0001__x0001__x0001__x0001__x0001__x0001__x0001__x0001__x0001_Å_x0006__x0001__x0001__x0006__x0001_(_x0001__x0001_\u0080=(RiskData(NR_to_Cash!C$18,$A1734))/1000_x0001__x0001__x0001_\u0080_x0001__x0001__x0001__x0001__x0001__x0001__x0001__x0001__x0001__x0001_Å_x0006__x0001__x0001__x0007__x0001_(_x0001__x0001_\u0080=(RiskData(NR_to_Cash!D$18,$A1734))/1000_x0001__x0001__x0001_\u0080_x0001__x0001__x0001__x0001__x0001__x0001__x0001__x0001__x0001__x0001_Å_x0006__x0001__x0001__x0008__x0001_(_x0001__x0001_\u0080=(RiskData_x0004__x0005_(NR_to_Cash!E$18,$A1734))/1000_x0004__x0004__x0004_\u0080_x0004__x0004__x0004__x0004__x0004__x0004__x0004__x0004__x0004__x0004_Æ_x0006__x0004__x0004__x0001__x0004_*_x0004__x0004_\u0080=RiskData('Risk Summary'!J$48,$A1735)/1000_x0004__x0004__x0004_\u0080_x0004__x0004__x0004__x0004__x0004__x0004__x0004__x0004__x0004__x0004_Æ_x0006__x0004__x0004__x0002__x0004_*_x0004__x0004_\u0080=RiskData('Risk Summary'!K$48,$A1735)/1000_x0004__x0004__x0004_\u0080_x0004__x0004__x0004__x0004__x0004__x0004__x0004__x0004__x0004__x0004_Æ_x0006__x0004__x0004__x0003__x0004_*_x0004__x0004_\u0080=RiskData('Risk Summary'!L$48,$A1735)/1000_x0004__x0004__x0004_\u0080_x0004__x0004__x0004__x0004__x0004__x0004__x0004__x0004__x0004__x0004_Æ_x0006__x0004__x0004__x0006__x0004_(_x0004__x0004_\u0080_x0002__x0003_=(RiskData(NR_to_Cash!C$18,$A1735))/1000_x0002__x0002__x0002_\u0080_x0002__x0002__x0002__x0002__x0002__x0002__x0002__x0002__x0002__x0002_Æ_x0006__x0002__x0002__x0007__x0002_(_x0002__x0002_\u0080=(RiskData(NR_to_Cash!D$18,$A1735))/1000_x0002__x0002__x0002_\u0080_x0002__x0002__x0002__x0002__x0002__x0002__x0002__x0002__x0002__x0002_Æ_x0006__x0002__x0002__x0008__x0002_(_x0002__x0002_\u0080=(RiskData(NR_to_Cash!E$18,$A1735))/1000_x0002__x0002__x0002_\u0080_x0002__x0002__x0002__x0002__x0002__x0002__x0002__x0002__x0002__x0002_Ç_x0006__x0002__x0002__x0001__x0002_*_x0002__x0002_\u0080=RiskData('Risk Summary'!J$48,$A1736)/1000_x0002__x0002__x0002_\u0080_x0002__x0002__x0002__x0002__x0002__x0002__x0002__x0002__x0002__x0002_Ç_x0006__x0002__x0002__x0001__x0004__x0002__x0001_*_x0001__x0001_\u0080=RiskData('Risk Summary'!K$48,$A1736)/1000_x0001__x0001__x0001_\u0080_x0001__x0001__x0001__x0001__x0001__x0001__x0001__x0001__x0001__x0001_Ç_x0006__x0001__x0001__x0003__x0001_*_x0001__x0001_\u0080=RiskData('Risk Summary'!L$48,$A1736)/1000_x0001__x0001__x0001_\u0080_x0001__x0001__x0001__x0001__x0001__x0001__x0001__x0001__x0001__"}},{"$cut":{"chars":94584,"head":"8d2a426b85e59ace8b975a75650c62ef_x0003__x0004__x0003__x0003__x0003__x0003__x0003__x0003__x0016__x0007__x0003__x0003__x0007__x0003_(_x0003__x0003_\u0080=(RiskData(NR_to_Cash!D$18,$A1815))/1000_x0003__x0003__x0003_\u0080_x0003__x0003__x0003__x0003__x0003__x0003__x0003__x0003__x0003__x0003__x0016__x0007__x0003__x0003__x0008__x0003_(_x0003__x0003_\u0080=(RiskData(NR_to_Cash!E$18,$A1815))/1000_x0003__x0003__x0003_\u0080_x0003__x0003__x0003__x0003__x0003__x0003__x0003__x0003__x0003__x0003__x0017__x0007__x0003__x0003__x0001__x0003_*_x0003__x0003_\u0080=RiskData('Risk Summary'!J$48,$A1816)/1000_x0003__x0003__x0003_\u0080_x0003__x0003__x0003__x0003__x0003__x0003__x0003__x0003__x0003__x0003__x0017__x0007__x0003__x0003__x0002__x0003_*_x0003__x0003_\u0080=RiskData('Risk Summary'!K$48,$A1816)/1000_x0001__x0002__x0001__x0001__x0001_\u0080_x0001__x0001__x0001__x0001__x0001__x0001__x0001__x0001__x0001__x0001__x0017__x0007__x0001__x0001__x0003__x0001_*_x0001__x0001_\u0080=RiskData('Risk Summary'!L$48,$A1816)/1000_x0001__x0001__x0001_\u0080_x0001__x0001__x0001__x0001__x0001__x0001__x0001__x0001__x0001__x0001__x0017__x0007__x0001__x0001__x0006__x0001_(_x0001__x0001_\u0080=(RiskData(NR_to_Cash!C$18,$A1816))/1000_x0001__x0001__x0001_\u0080_x0001__x0001__x0001__x0001__x0001__x0001__x0001__x0001__x0001__x0001__x0017__x0007__x0001__x0001__x0007__x0001_(_x0001__x0001_\u0080=(RiskData(NR_to_Cash!D$18,$A1816))/1000_x0001__x0001__x0001_\u0080_x0001__x0001__x0001__x0001__x0001__x0001__x0001__x0001__x0001__x0001__x0017__x0007__x0001__x0001__x0008__x0001_(_x0001__x0001_\u0080=(RiskData(NR_to_Cash!E$18,$A1816)_x0004__x0005_)/1000_x0004__x0004__x0004_\u0080_x0004__x0004__x0004__x0004__x0004__x0004__x0004__x0004__x0004__x0004__x0018__x0007__x0004__x0004__x0001__x0004_*_x0004__x0004_\u0080=RiskData('Risk Summary'!J$48,$A1817)/1000_x0004__x0004__x0004_\u0080_x0004__x0004__x0004__x0004__x0004__x0004__x0004__x0004__x0004__x0004__x0018__x0007__x0004__x0004__x0002__x0004_*_x0004__x0004_\u0080=RiskData('Risk Summary'!K$48,$A1817)/1000_x0004__x0004__x0004_\u0080_x0004__x0004__x0004__x0004__x0004__x0004__x0004__x0004__x0004__x0004__x0018__x0007__x0004__x0004__x0003__x0004_*_x0004__x0004_\u0080=RiskData('Risk Summary'!L$48,$A1817)/1000_x0004__x0004__x0004_\u0080_x0004__x0004__x0004__x0004__x0004__x0004__x0004__x0004__x0004__x0004__x0018__x0007__x0004__x0004__x0006__x0004_(_x0004__x0004_\u0080=(RiskData(NR_to_Cash!C$_x0003__x0004_18,$A1817))/1000_x0003__x0003__x0003_\u0080_x0003__x0003__x0003__x0003__x0003__x0003__x0003__x0003__x0003__x0003__x0018__x0007__x0003__x0003__x0007__x0003_(_x0003__x0003_\u0080=(RiskData(NR_to_Cash!D$18,$A1817))/1000_x0003__x0003__x0003_\u0080_x0003__x0003__x0003__x0003__x0003__x0003__x0003__x0003__x0003__x0003__x0018__x0007__x0003__x0003__x0008__x0003_(_x0003__x0003_\u0080=(RiskData(NR_to_Cash!E$18,$A1817))/1000_x0003__x0003__x0003_\u0080_x0003__x0003__x0003__x0003__x0003__x0003__x0003__x0003__x0003__x0003__x0019__x0007__x0003__x0003__x0001__x0003_*_x0003__x0003_\u0080=RiskData('Risk Summary'!J$48,$A1818)/1000_x0003__x0003__x0003_\u0080_x0003__x0003__x0003__x0003__x0003__x0003__x0003__x0003__x0003__x0003__x0019__x0007__x0003__x0003__x0002__x0003_*_x0003__x0003_\u0080=RiskData('Risk Su_x0001__x0002_mmary'!K$48,$A1818)/1000_x0001__x0001__x0001_\u0080_x0001__x0001__x0001__x0001__x0001__x0001__x0001__x0001__x0001__x0001__x0019__x0007__x0001__x0001__x0003__x0001_*_x0001__x0001_\u0080=RiskData('Risk Summary'!L$48,$A1818)/1000_x0001__x0001__x0001_\u0080_x0001__x0001__x0001__x0001__x0001__x0001__x0001__x0001__x0001__x0001__x0019__x0007__x0001__x0001__x0006__x0001_(_x0001__x0001_\u0080=(RiskData(NR_to_Cash!C$18,$A1818))/1000_x0001__x0001__x0001_\u0080_x0001__x0001__x0001__x0001__x0001__x0001__x0001__x0001__x0001__x0001__x0019__x0007__x0001__x0001__x0007__x0001_(_x0001__x0001_\u0080=(RiskData(NR_to_Cash!D$18,$A1818))/1000_x0001__x0001__x0001_\u0080_x0001__x0001__x0001__x0001__x0001__x0001__x0001__x0001__x0001__x0001__x0019__x0007__x0001__x0001__x0008__x0001_(_x0001__x0001_\u0080=(RiskData_x0004__x0005_(NR_to_Cash!E$18,$A1818))/1000_x0004__x0004__x0004_\u0080_x0004__x0004__x0004__x0004__x0004__x0004__x0004__x0004__x0004__x0004__x001A__x0007__x0004__x0004__x0001__x0004_*_x0004__x0004_\u0080=RiskData('Risk Summary'!J$48,$A1819)/1000_x0004__x0004__x0004"}},{"$cut":{"chars":93600,"head":"93d5d86b934d4c82a2577c94bcf9b36b_x0001__x0004_'Risk Summary'!J$48,$A1897)/1000_x0001__x0001__x0001_\u0080_x0001__x0001__x0001__x0001__x0001__x0001__x0001__x0001__x0001__x0001_h_x0007__x0001__x0001__x0002__x0001_*_x0001__x0001_\u0080=RiskData('Risk Summary'!K$48,$A1897)/1000_x0001__x0001__x0001_\u0080_x0001__x0001__x0001__x0001__x0001__x0001__x0001__x0001__x0001__x0001_h_x0007__x0001__x0001__x0003__x0001_*_x0001__x0001_\u0080=RiskData('Risk Summary'!L$48,$A1897)/1000_x0001__x0001__x0001_\u0080_x0001__x0001__x0001__x0001__x0001__x0001__x0001__x0001__x0001__x0001_h_x0007__x0001__x0001__x0006__x0001_(_x0001__x0001_\u0080=(RiskData(NR_to_Cash!C$18,$A1897))/1000_x0001__x0001__x0001_\u0080_x0001__x0001__x0001__x0001__x0001__x0001__x0001__x0001__x0001__x0001_h_x0007__x0001__x0001__x0007__x0001_(_x0001__x0001_\u0080_x0003__x0004_=(RiskData(NR_to_Cash!D$18,$A1897))/1000_x0003__x0003__x0003_\u0080_x0003__x0003__x0003__x0003__x0003__x0003__x0003__x0003__x0003__x0003_h_x0007__x0003__x0003__x0008__x0003_(_x0003__x0003_\u0080=(RiskData(NR_to_Cash!E$18,$A1897))/1000_x0003__x0003__x0003_\u0080_x0003__x0003__x0003__x0003__x0003__x0003__x0003__x0003__x0003__x0003_i_x0007__x0003__x0003__x0001__x0003_*_x0003__x0003_\u0080=RiskData('Risk Summary'!J$48,$A1898)/1000_x0003__x0003__x0003_\u0080_x0003__x0003__x0003__x0003__x0003__x0003__x0003__x0003__x0003__x0003_i_x0007__x0003__x0003__x0002__x0003_*_x0003__x0003_\u0080=RiskData('Risk Summary'!K$48,$A1898)/1000_x0003__x0003__x0003_\u0080_x0003__x0003__x0003__x0003__x0003__x0003__x0003__x0003__x0003__x0003_i_x0007__x0001__x0002__x0001__x0001__x0003__x0001_*_x0001__x0001_\u0080=RiskData('Risk Summary'!L$48,$A1898)/1000_x0001__x0001__x0001_\u0080_x0001__x0001__x0001__x0001__x0001__x0001__x0001__x0001__x0001__x0001_i_x0007__x0001__x0001__x0006__x0001_(_x0001__x0001_\u0080=(RiskData(NR_to_Cash!C$18,$A1898))/1000_x0001__x0001__x0001_\u0080_x0001__x0001__x0001__x0001__x0001__x0001__x0001__x0001__x0001__x0001_i_x0007__x0001__x0001__x0007__x0001_(_x0001__x0001_\u0080=(RiskData(NR_to_Cash!D$18,$A1898))/1000_x0001__x0001__x0001_\u0080_x0001__x0001__x0001__x0001__x0001__x0001__x0001__x0001__x0001__x0001_i_x0007__x0001__x0001__x0008__x0001_(_x0001__x0001_\u0080=(RiskData(NR_to_Cash!E$18,$A1898))/1000_x0001__x0001__x0001_\u0080_x0001__x0001__x0001__x0001__x0001__x0001__x0004__x0005__x0004__x0004__x0004__x0004_j_x0007__x0004__x0004__x0001__x0004_*_x0004__x0004_\u0080=RiskData('Risk Summary'!J$48,$A1899)/1000_x0004__x0004__x0004_\u0080_x0004__x0004__x0004__x0004__x0004__x0004__x0004__x0004__x0004__x0004_j_x0007__x0004__x0004__x0002__x0004_*_x0004__x0004_\u0080=RiskData('Risk Summary'!K$48,$A1899)/1000_x0004__x0004__x0004_\u0080_x0004__x0004__x0004__x0004__x0004__x0004__x0004__x0004__x0004__x0004_j_x0007__x0004__x0004__x0003__x0004_*_x0004__x0004_\u0080=RiskData('Risk Summary'!L$48,$A1899)/1000_x0004__x0004__x0004_\u0080_x0004__x0004__x0004__x0004__x0004__x0004__x0004__x0004__x0004__x0004_j_x0007__x0004__x0004__x0006__x0004_(_x0004__x0004_\u0080=(RiskData(NR_to_Cash!C$18,$A1899))/1000_x0003__x0004__x0003__x0003__x0003_\u0080_x0003__x0003__x0003__x0003__x0003__x0003__x0003__x0003__x0003__x0003_j_x0007__x0003__x0003__x0007__x0003_(_x0003__x0003_\u0080=(RiskData(NR_to_Cash!D$18,$A1899))/1000_x0003__x0003__x0003_\u0080_x0003__x0003__x0003__x0003__x0003__x0003__x0003__x0003__x0003__x0003_j_x0007__x0003__x0003__x0008__x0003_(_x0003__x0003_\u0080=(RiskData(NR_to_Cash!E$18,$A1899))/1000_x0003__x0003__x0003_\u0080_x0003__x0003__x0003__x0003__x0003__x0003__x0003__x0003__x0003__x0003_k_x0007__x0003__x0003__x0001__x0003_*_x0003__x0003_\u0080=RiskData('Risk Summary'!J$48,$A1900)/1000_x0003__x0003__x0003_\u0080_x0003__x0003__x0003__x0003__x0003__x0003__x0003__x0003__x0003__x0003_k_x0007__x0003__x0003__x0002__x0003_*_x0003__x0003_\u0080=RiskData('Risk Summary'!K$48,$A19_x0001__x0002_00)/1000_x0001__x0001__x0001_\u0080_x0001__x0001__x0001__x0001__x0001__x0001__x0001__x0001__x0001__x0001_k_x0007__x0001__x0001__x0003__x0001_*_x0001__x0001_\u0080=RiskData('Risk Summary'!L$48,$A1900)/1000_x0001__x0001__x0001_\u0080_x0001__x0001__x0001__x0001__x0001__x0001__x0001__x0001__x0001__x0001_k_x0007__x0001__x0001__x0006__x0001_(_x0001__x0001_\u0080=(RiskData(NR_to_Cash!C$18,$A1900))/1000_x0001__x0001__x0001_\u0080_x0001__x0001__x0001__x0001__x0001__x000"}},{"$cut":{"chars":94026,"head":"1b7f8e4fde3d6aad014fd2514f265472_x0004__x0005_18,$A1979))/1000_x0004__x0004__x0004_\u0080_x0004__x0004__x0004__x0004__x0004__x0004__x0004__x0004__x0004__x0004_º_x0007__x0004__x0004__x0008__x0004_(_x0004__x0004_\u0080=(RiskData(NR_to_Cash!E$18,$A1979))/1000_x0004__x0004__x0004_\u0080_x0004__x0004__x0004__x0004__x0004__x0004__x0004__x0004__x0004__x0004_»_x0007__x0004__x0004__x0001__x0004_*_x0004__x0004_\u0080=RiskData('Risk Summary'!J$48,$A1980)/1000_x0004__x0004__x0004_\u0080_x0004__x0004__x0004__x0004__x0004__x0004__x0004__x0004__x0004__x0004_»_x0007__x0004__x0004__x0002__x0004_*_x0004__x0004_\u0080=RiskData('Risk Summary'!K$48,$A1980)/1000_x0004__x0004__x0004_\u0080_x0004__x0004__x0004__x0004__x0004__x0004__x0004__x0004__x0004__x0004_»_x0007__x0004__x0004__x0003__x0004_*_x0004__x0004_\u0080=RiskData('Risk _x0002__x0003_Summary'!L$48,$A1980)/1000_x0002__x0002__x0002_\u0080_x0002__x0002__x0002__x0002__x0002__x0002__x0002__x0002__x0002__x0002_»_x0007__x0002__x0002__x0006__x0002_(_x0002__x0002_\u0080=(RiskData(NR_to_Cash!C$18,$A1980))/1000_x0002__x0002__x0002_\u0080_x0002__x0002__x0002__x0002__x0002__x0002__x0002__x0002__x0002__x0002_»_x0007__x0002__x0002__x0007__x0002_(_x0002__x0002_\u0080=(RiskData(NR_to_Cash!D$18,$A1980))/1000_x0002__x0002__x0002_\u0080_x0002__x0002__x0002__x0002__x0002__x0002__x0002__x0002__x0002__x0002_»_x0007__x0002__x0002__x0008__x0002_(_x0002__x0002_\u0080=(RiskData(NR_to_Cash!E$18,$A1980))/1000_x0002__x0002__x0002_\u0080_x0002__x0002__x0002__x0002__x0002__x0002__x0002__x0002__x0002__x0002_¼_x0007__x0002__x0002__x0001__x0002_*_x0002__x0002_\u0080=RiskData(_x0001__x0004_'Risk Summary'!J$48,$A1981)/1000_x0001__x0001__x0001_\u0080_x0001__x0001__x0001__x0001__x0001__x0001__x0001__x0001__x0001__x0001_¼_x0007__x0001__x0001__x0002__x0001_*_x0001__x0001_\u0080=RiskData('Risk Summary'!K$48,$A1981)/1000_x0001__x0001__x0001_\u0080_x0001__x0001__x0001__x0001__x0001__x0001__x0001__x0001__x0001__x0001_¼_x0007__x0001__x0001__x0003__x0001_*_x0001__x0001_\u0080=RiskData('Risk Summary'!L$48,$A1981)/1000_x0001__x0001__x0001_\u0080_x0001__x0001__x0001__x0001__x0001__x0001__x0001__x0001__x0001__x0001_¼_x0007__x0001__x0001__x0006__x0001_(_x0001__x0001_\u0080=(RiskData(NR_to_Cash!C$18,$A1981))/1000_x0001__x0001__x0001_\u0080_x0001__x0001__x0001__x0001__x0001__x0001__x0001__x0001__x0001__x0001_¼_x0007__x0001__x0001__x0007__x0001_(_x0001__x0001_\u0080_x0003__x0004_=(RiskData(NR_to_Cash!D$18,$A1981))/1000_x0003__x0003__x0003_\u0080_x0003__x0003__x0003__x0003__x0003__x0003__x0003__x0003__x0003__x0003_¼_x0007__x0003__x0003__x0008__x0003_(_x0003__x0003_\u0080=(RiskData(NR_to_Cash!E$18,$A1981))/1000_x0003__x0003__x0003_\u0080_x0003__x0003__x0003__x0003__x0003__x0003__x0003__x0003__x0003__x0003_½_x0007__x0003__x0003__x0001__x0003_*_x0003__x0003_\u0080=RiskData('Risk Summary'!J$48,$A1982)/1000_x0003__x0003__x0003_\u0080_x0003__x0003__x0003__x0003__x0003__x0003__x0003__x0003__x0003__x0003_½_x0007__x0003__x0003__x0002__x0003_*_x0003__x0003_\u0080=RiskData('Risk Summary'!K$48,$A1982)/1000_x0003__x0003__x0003_\u0080_x0003__x0003__x0003__x0003__x0003__x0003__x0003__x0003__x0003__x0003_½_x0007__x0001__x0002__x0001__x0001__x0003__x0001_*_x0001__x0001_\u0080=RiskData('Risk Summary'!L$48,$A1982)/1000_x0001__x0001__x0001_\u0080_x0001__x0001__x0001__x0001__x0001__x0001__x0001__x0001__x0001__x0001_½_x0007__x0001__x0001__x0006__x0001_(_x0001__x0001_\u0080=(RiskData(NR_to_Cash!C$18,$A1982))/1000_x0001__x0001__x0001_\u0080_x0001__x0001__x0001__x0001__x0001__x0001__x0001__x0001__x0001__x0001_½_x0007__x0001__x0001__x0007__x0001_(_x0001__x0001_\u0080=(RiskData(NR_to_Cash!D$18,$A1982))/1000_x0001__x0001__x0001_\u0080_x0001__x0001__x0001__x0001__x0001__x0001__x0001__x0001__x0001__x0001_½_x0007__x0001__x0001__x0008__x0001_(_x0001__x0001_\u0080=(RiskData(NR_to_Cash!E$18,$A1982))/1000_x0001__x0001__x0001_\u0080_x0001__x0001__x0001__x0001__x0001__x0001__x0004__x0005__x0004__x0004__x0004__x0004_¾_x0007__x0004__x0004__x0001__x0004_*_x0004__x0004_\u0080=RiskData('Risk Summary'!J$48,$A1983)/1000_x0004__x0004__x0004_\u0080_x0004__x0004__x0004__x0004__x0004__x0004__x0004__x0004__x0004__x0004_¾_x0007__x0004__x0004__x0002__x0004_*_x0004__x0004_\u0080=RiskData('Risk Summary'!K$48,$A1983)/1000_x0004__x0004__x0004_\u0080_x0004__x0004__x0004__x0004__x0004__x0004__x0004__x0004_"}},{"$cut":{"chars":94392,"head":"f6725749f257a12d5bdc44749bc78351_x0001__x0004__x0001__x0001__x0001__x0001__x0001__x0001__x000C__x0008__x0001__x0001__x0002__x0001_*_x0001__x0001_\u0080=RiskData('Risk Summary'!K$48,$A2061)/1000_x0001__x0001__x0001_\u0080_x0001__x0001__x0001__x0001__x0001__x0001__x0001__x0001__x0001__x0001__x000C__x0008__x0001__x0001__x0003__x0001_*_x0001__x0001_\u0080=RiskData('Risk Summary'!L$48,$A2061)/1000_x0001__x0001__x0001_\u0080_x0001__x0001__x0001__x0001__x0001__x0001__x0001__x0001__x0001__x0001__x000C__x0008__x0001__x0001__x0006__x0001_(_x0001__x0001_\u0080=(RiskData(NR_to_Cash!C$18,$A2061))/1000_x0001__x0001__x0001_\u0080_x0001__x0001__x0001__x0001__x0001__x0001__x0001__x0001__x0001__x0001__x000C__x0008__x0001__x0001__x0007__x0001_(_x0001__x0001_\u0080=(RiskData(NR_to_Cash!D$18,$A2061))/1000_x0004__x0005__x0004__x0004__x0004_\u0080_x0004__x0004__x0004__x0004__x0004__x0004__x0004__x0004__x0004__x0004__x000C__x0008__x0004__x0004__x0008__x0004_(_x0004__x0004_\u0080=(RiskData(NR_to_Cash!E$18,$A2061))/1000_x0004__x0004__x0004_\u0080_x0004__x0004__x0004__x0004__x0004__x0004__x0004__x0004__x0004__x0004__x000D__x0008__x0004__x0004__x0001__x0004_*_x0004__x0004_\u0080=RiskData('Risk Summary'!J$48,$A2062)/1000_x0004__x0004__x0004_\u0080_x0004__x0004__x0004__x0004__x0004__x0004__x0004__x0004__x0004__x0004__x000D__x0008__x0004__x0004__x0002__x0004_*_x0004__x0004_\u0080=RiskData('Risk Summary'!K$48,$A2062)/1000_x0004__x0004__x0004_\u0080_x0004__x0004__x0004__x0004__x0004__x0004__x0004__x0004__x0004__x0004__x000D__x0008__x0004__x0004__x0003__x0004_*_x0004__x0004_\u0080=RiskData('Risk Summary'!L$48,$A_x0002__x0003_2062)/1000_x0002__x0002__x0002_\u0080_x0002__x0002__x0002__x0002__x0002__x0002__x0002__x0002__x0002__x0002__x000D__x0008__x0002__x0002__x0006__x0002_(_x0002__x0002_\u0080=(RiskData(NR_to_Cash!C$18,$A2062))/1000_x0002__x0002__x0002_\u0080_x0002__x0002__x0002__x0002__x0002__x0002__x0002__x0002__x0002__x0002__x000D__x0008__x0002__x0002__x0007__x0002_(_x0002__x0002_\u0080=(RiskData(NR_to_Cash!D$18,$A2062))/1000_x0002__x0002__x0002_\u0080_x0002__x0002__x0002__x0002__x0002__x0002__x0002__x0002__x0002__x0002__x000D__x0008__x0002__x0002__x0008__x0002_(_x0002__x0002_\u0080=(RiskData(NR_to_Cash!E$18,$A2062))/1000_x0002__x0002__x0002_\u0080_x0002__x0002__x0002__x0002__x0002__x0002__x0002__x0002__x0002__x0002__x000E__x0008__x0002__x0002__x0001__x0002_*_x0002__x0002_\u0080=RiskData('Risk Summary'!J_x0001__x0004_$48,$A2063)/1000_x0001__x0001__x0001_\u0080_x0001__x0001__x0001__x0001__x0001__x0001__x0001__x0001__x0001__x0001__x000E__x0008__x0001__x0001__x0002__x0001_*_x0001__x0001_\u0080=RiskData('Risk Summary'!K$48,$A2063)/1000_x0001__x0001__x0001_\u0080_x0001__x0001__x0001__x0001__x0001__x0001__x0001__x0001__x0001__x0001__x000E__x0008__x0001__x0001__x0003__x0001_*_x0001__x0001_\u0080=RiskData('Risk Summary'!L$48,$A2063)/1000_x0001__x0001__x0001_\u0080_x0001__x0001__x0001__x0001__x0001__x0001__x0001__x0001__x0001__x0001__x000E__x0008__x0001__x0001__x0006__x0001_(_x0001__x0001_\u0080=(RiskData(NR_to_Cash!C$18,$A2063))/1000_x0001__x0001__x0001_\u0080_x0001__x0001__x0001__x0001__x0001__x0001__x0001__x0001__x0001__x0001__x000E__x0008__x0001__x0001__x0007__x0001_(_x0001__x0001_\u0080=(RiskData(NR_to_x0004__x0005__Cash!D$18,$A2063))/1000_x0004__x0004__x0004_\u0080_x0004__x0004__x0004__x0004__x0004__x0004__x0004__x0004__x0004__x0004__x000E__x0008__x0004__x0004__x0008__x0004_(_x0004__x0004_\u0080=(RiskData(NR_to_Cash!E$18,$A2063))/1000_x0004__x0004__x0004_\u0080_x0004__x0004__x0004__x0004__x0004__x0004__x0004__x0004__x0004__x0004__x000F__x0008__x0004__x0004__x0001__x0004_*_x0004__x0004_\u0080=RiskData('Risk Summary'!J$48,$A2064)/1000_x0004__x0004__x0004_\u0080_x0004__x0004__x0004__x0004__x0004__x0004__x0004__x0004__x0004__x0004__x000F__x0008__x0004__x0004__x0002__x0004_*_x0004__x0004_\u0080=RiskData('Risk Summary'!K$48,$A2064)/1000_x0004__x0004__x0004_\u0080_x0004__x0004__x0004__x0004__x0004__x0004__x0004__x0004__x0004__x0004__x000F__x0008__x0004__x0004__x0003__x0004_*_x0004__x0004_\u0080=RiskDat_x0002__x0003_a('Risk Summary'!L$48,$A2064)/1000_x0002__x0002__x0002_\u0080_x0002__x0002__x0002__x0002__x0002__x0002__x0002__x0002__x0002__x0002__x000F__x0008__x0002__x0002__x0006__x0002_(_x0002__x0002_\u0080=(RiskData(NR_to_Cash!C$18,$A2064))/1000_x0002__x0002__x00"}},{"$cut":{"chars":94170,"head":"e768e9698fafba2f7aadacff57210ed2_x0004__x0005_=(RiskData(NR_to_Cash!E$18,$A2143))/1000_x0004__x0004__x0004_\u0080_x0004__x0004__x0004__x0004__x0004__x0004__x0004__x0004__x0004__x0004___x0008__x0004__x0004__x0001__x0004_*_x0004__x0004_\u0080=RiskData('Risk Summary'!J$48,$A2144)/1000_x0004__x0004__x0004_\u0080_x0004__x0004__x0004__x0004__x0004__x0004__x0004__x0004__x0004__x0004___x0008__x0004__x0004__x0002__x0004_*_x0004__x0004_\u0080=RiskData('Risk Summary'!K$48,$A2144)/1000_x0004__x0004__x0004_\u0080_x0004__x0004__x0004__x0004__x0004__x0004__x0004__x0004__x0004__x0004___x0008__x0004__x0004__x0003__x0004_*_x0004__x0004_\u0080=RiskData('Risk Summary'!L$48,$A2144)/1000_x0004__x0004__x0004_\u0080_x0004__x0004__x0004__x0004__x0004__x0004__x0004__x0004__x0004__x0004__x0002__x0003___x0008__x0002__x0002__x0006__x0002_(_x0002__x0002_\u0080=(RiskData(NR_to_Cash!C$18,$A2144))/1000_x0002__x0002__x0002_\u0080_x0002__x0002__x0002__x0002__x0002__x0002__x0002__x0002__x0002__x0002___x0008__x0002__x0002__x0007__x0002_(_x0002__x0002_\u0080=(RiskData(NR_to_Cash!D$18,$A2144))/1000_x0002__x0002__x0002_\u0080_x0002__x0002__x0002__x0002__x0002__x0002__x0002__x0002__x0002__x0002___x0008__x0002__x0002__x0008__x0002_(_x0002__x0002_\u0080=(RiskData(NR_to_Cash!E$18,$A2144))/1000_x0002__x0002__x0002_\u0080_x0002__x0002__x0002__x0002__x0002__x0002__x0002__x0002__x0002__x0002_`_x0008__x0002__x0002__x0001__x0002_*_x0002__x0002_\u0080=RiskData('Risk Summary'!J$48,$A2145)/1000_x0002__x0002__x0002_\u0080_x0002__x0002__x0002__x0002__x0001__x0004__x0001__x0001__x0001__x0001__x0001__x0001_`_x0008__x0001__x0001__x0002__x0001_*_x0001__x0001_\u0080=RiskData('Risk Summary'!K$48,$A2145)/1000_x0001__x0001__x0001_\u0080_x0001__x0001__x0001__x0001__x0001__x0001__x0001__x0001__x0001__x0001_`_x0008__x0001__x0001__x0003__x0001_*_x0001__x0001_\u0080=RiskData('Risk Summary'!L$48,$A2145)/1000_x0001__x0001__x0001_\u0080_x0001__x0001__x0001__x0001__x0001__x0001__x0001__x0001__x0001__x0001_`_x0008__x0001__x0001__x0006__x0001_(_x0001__x0001_\u0080=(RiskData(NR_to_Cash!C$18,$A2145))/1000_x0001__x0001__x0001_\u0080_x0001__x0001__x0001__x0001__x0001__x0001__x0001__x0001__x0001__x0001_`_x0008__x0001__x0001__x0007__x0001_(_x0001__x0001_\u0080=(RiskData(NR_to_Cash!D$18,$A2145))/1000_x0004__x0005__x0004__x0004__x0004_\u0080_x0004__x0004__x0004__x0004__x0004__x0004__x0004__x0004__x0004__x0004_`_x0008__x0004__x0004__x0008__x0004_(_x0004__x0004_\u0080=(RiskData(NR_to_Cash!E$18,$A2145))/1000_x0004__x0004__x0004_\u0080_x0004__x0004__x0004__x0004__x0004__x0004__x0004__x0004__x0004__x0004_a_x0008__x0004__x0004__x0001__x0004_*_x0004__x0004_\u0080=RiskData('Risk Summary'!J$48,$A2146)/1000_x0004__x0004__x0004_\u0080_x0004__x0004__x0004__x0004__x0004__x0004__x0004__x0004__x0004__x0004_a_x0008__x0004__x0004__x0002__x0004_*_x0004__x0004_\u0080=RiskData('Risk Summary'!K$48,$A2146)/1000_x0004__x0004__x0004_\u0080_x0004__x0004__x0004__x0004__x0004__x0004__x0004__x0004__x0004__x0004_a_x0008__x0004__x0004__x0003__x0004_*_x0004__x0004_\u0080=RiskData('Risk Summary'!L$48,$A_x0002__x0003_2146)/1000_x0002__x0002__x0002_\u0080_x0002__x0002__x0002__x0002__x0002__x0002__x0002__x0002__x0002__x0002_a_x0008__x0002__x0002__x0006__x0002_(_x0002__x0002_\u0080=(RiskData(NR_to_Cash!C$18,$A2146))/1000_x0002__x0002__x0002_\u0080_x0002__x0002__x0002__x0002__x0002__x0002__x0002__x0002__x0002__x0002_a_x0008__x0002__x0002__x0007__x0002_(_x0002__x0002_\u0080=(RiskData(NR_to_Cash!D$18,$A2146))/1000_x0002__x0002__x0002_\u0080_x0002__x0002__x0002__x0002__x0002__x0002__x0002__x0002__x0002__x0002_a_x0008__x0002__x0002__x0008__x0002_(_x0002__x0002_\u0080=(RiskData(NR_to_Cash!E$18,$A2146))/1000_x0002__x0002__x0002_\u0080_x0002__x0002__x0002__x0002__x0002__x0002__x0002__x0002__x0002__x0002_b_x0008__x0002__x0002__x0001__x0002_*_x0002__x0002_\u0080=RiskData('Risk Summary'!J_x0001__x0004_$48,$A2147)/1000_x0001__x0001__x0001_\u0080_x0001__x0001__x0001__x0001__x0001__x0001__x0001__x0001__x0001__x0001_b_x0008__x0001__x0001__x0002__x0001_*_x0001__x0001_\u0080=RiskData('Risk Summary'!K$48,$A2147)/1000_x0001__x0001__x0001_\u0080_x0001__x0001__x0001__x0001__x0001__x0001__x0001__x0001__x0001__x0001_b_x0008__x0001__x0001__x0003__x0001_*_x0001__x0001_\u0080=RiskData('Risk Summary'!L$48,$A2147)/1000_x0001__x0001__x0001_\u0080_x0001__x0001__x0001__x0001__x"}},{"$cut":{"chars":93600,"head":"853c575b89c3996bb52be2cffd8510ba_x0001__x0002_!K$48,$A2225)/1000_x0001__x0001__x0001_\u0080_x0001__x0001__x0001__x0001__x0001__x0001__x0001__x0001__x0001__x0001_°_x0008__x0001__x0001__x0003__x0001_*_x0001__x0001_\u0080=RiskData('Risk Summary'!L$48,$A2225)/1000_x0001__x0001__x0001_\u0080_x0001__x0001__x0001__x0001__x0001__x0001__x0001__x0001__x0001__x0001_°_x0008__x0001__x0001__x0006__x0001_(_x0001__x0001_\u0080=(RiskData(NR_to_Cash!C$18,$A2225))/1000_x0001__x0001__x0001_\u0080_x0001__x0001__x0001__x0001__x0001__x0001__x0001__x0001__x0001__x0001_°_x0008__x0001__x0001__x0007__x0001_(_x0001__x0001_\u0080=(RiskData(NR_to_Cash!D$18,$A2225))/1000_x0001__x0001__x0001_\u0080_x0001__x0001__x0001__x0001__x0001__x0001__x0001__x0001__x0001__x0001_°_x0008__x0001__x0001__x0008__x0001_(_x0001__x0001_\u0080=(RiskData(NR_to_x0004__x0005__Cash!E$18,$A2225))/1000_x0004__x0004__x0004_\u0080_x0004__x0004__x0004__x0004__x0004__x0004__x0004__x0004__x0004__x0004_±_x0008__x0004__x0004__x0001__x0004_*_x0004__x0004_\u0080=RiskData('Risk Summary'!J$48,$A2226)/1000_x0004__x0004__x0004_\u0080_x0004__x0004__x0004__x0004__x0004__x0004__x0004__x0004__x0004__x0004_±_x0008__x0004__x0004__x0002__x0004_*_x0004__x0004_\u0080=RiskData('Risk Summary'!K$48,$A2226)/1000_x0004__x0004__x0004_\u0080_x0004__x0004__x0004__x0004__x0004__x0004__x0004__x0004__x0004__x0004_±_x0008__x0004__x0004__x0003__x0004_*_x0004__x0004_\u0080=RiskData('Risk Summary'!L$48,$A2226)/1000_x0004__x0004__x0004_\u0080_x0004__x0004__x0004__x0004__x0004__x0004__x0004__x0004__x0004__x0004_±_x0008__x0004__x0004__x0006__x0004_(_x0004__x0004_\u0080=(Risk_x0003__x0004_Data(NR_to_Cash!C$18,$A2226))/1000_x0003__x0003__x0003_\u0080_x0003__x0003__x0003__x0003__x0003__x0003__x0003__x0003__x0003__x0003_±_x0008__x0003__x0003__x0007__x0003_(_x0003__x0003_\u0080=(RiskData(NR_to_Cash!D$18,$A2226))/1000_x0003__x0003__x0003_\u0080_x0003__x0003__x0003__x0003__x0003__x0003__x0003__x0003__x0003__x0003_±_x0008__x0003__x0003__x0008__x0003_(_x0003__x0003_\u0080=(RiskData(NR_to_Cash!E$18,$A2226))/1000_x0003__x0003__x0003_\u0080_x0003__x0003__x0003__x0003__x0003__x0003__x0003__x0003__x0003__x0003_²_x0008__x0003__x0003__x0001__x0003_*_x0003__x0003_\u0080=RiskData('Risk Summary'!J$48,$A2227)/1000_x0003__x0003__x0003_\u0080_x0003__x0003__x0003__x0003__x0003__x0003__x0003__x0003__x0003__x0003_²_x0008__x0003__x0003__x0002__x0003_*_x0003__x0003_\u0080_x0001__x0002_=RiskData('Risk Summary'!K$48,$A2227)/1000_x0001__x0001__x0001_\u0080_x0001__x0001__x0001__x0001__x0001__x0001__x0001__x0001__x0001__x0001_²_x0008__x0001__x0001__x0003__x0001_*_x0001__x0001_\u0080=RiskData('Risk Summary'!L$48,$A2227)/1000_x0001__x0001__x0001_\u0080_x0001__x0001__x0001__x0001__x0001__x0001__x0001__x0001__x0001__x0001_²_x0008__x0001__x0001__x0006__x0001_(_x0001__x0001_\u0080=(RiskData(NR_to_Cash!C$18,$A2227))/1000_x0001__x0001__x0001_\u0080_x0001__x0001__x0001__x0001__x0001__x0001__x0001__x0001__x0001__x0001_²_x0008__x0001__x0001__x0007__x0001_(_x0001__x0001_\u0080=(RiskData(NR_to_Cash!D$18,$A2227))/1000_x0001__x0001__x0001_\u0080_x0001__x0001__x0001__x0001__x0001__x0001__x0001__x0001__x0001__x0001_²_x0008__x0004__x0005__x0004__x0004__x0008__x0004_(_x0004__x0004_\u0080=(RiskData(NR_to_Cash!E$18,$A2227))/1000_x0004__x0004__x0004_\u0080_x0004__x0004__x0004__x0004__x0004__x0004__x0004__x0004__x0004__x0004_³_x0008__x0004__x0004__x0001__x0004_*_x0004__x0004_\u0080=RiskData('Risk Summary'!J$48,$A2228)/1000_x0004__x0004__x0004_\u0080_x0004__x0004__x0004__x0004__x0004__x0004__x0004__x0004__x0004__x0004_³_x0008__x0004__x0004__x0002__x0004_*_x0004__x0004_\u0080=RiskData('Risk Summary'!K$48,$A2228)/1000_x0004__x0004__x0004_\u0080_x0004__x0004__x0004__x0004__x0004__x0004__x0004__x0004__x0004__x0004_³_x0008__x0004__x0004__x0003__x0004_*_x0004__x0004_\u0080=RiskData('Risk Summary'!L$48,$A2228)/1000_x0004__x0004__x0004_\u0080_x0004__x0004__x0002__x0003__x0002__x0002__x0002__x0002__x0002__x0002__x0002__x0002_³_x0008__x0002__x0002__x0006__x0002_(_x0002__x0002_\u0080=(RiskData(NR_to_Cash!C$18,$A2228))/1000_x0002__x0002__x0002_\u0080_x0002__x0002__x0002__x0002__x0002__x0002__x0002__x0002__x0002__x0002_³_x0008__x0002__x0002__x0007__x0002_(_x0002__x0002_\u0080=(RiskData(NR_to_Cash!D$18,$A2228))/1000_x0002__x0002__x0002_\u0080_x0002__x0002__x0002__x0002__x0002__x0002__x0002__x0002_"}},{"$cut":{"chars":92514,"head":"08c114be54abf85dc0019b75c747268d_x0004__x0005__x0004__x0004__x0004_\u0080_x0004__x0004__x0004__x0004__x0004__x0004__x0004__x0004__x0004__x0004__x0003_\t_x0004__x0004__x0001__x0004_*_x0004__x0004_\u0080=RiskData('Risk Summary'!J$48,$A2308)/1000_x0004__x0004__x0004_\u0080_x0004__x0004__x0004__x0004__x0004__x0004__x0004__x0004__x0004__x0004__x0003_\t_x0004__x0004__x0002__x0004_*_x0004__x0004_\u0080=RiskData('Risk Summary'!K$48,$A2308)/1000_x0004__x0004__x0004_\u0080_x0004__x0004__x0004__x0004__x0004__x0004__x0004__x0004__x0004__x0004__x0003_\t_x0004__x0004__x0003__x0004_*_x0004__x0004_\u0080=RiskData('Risk Summary'!L$48,$A2308)/1000_x0004__x0004__x0004_\u0080_x0004__x0004__x0004__x0004__x0004__x0004__x0004__x0004__x0004__x0004__x0003_\t_x0004__x0004__x0006__x0004_(_x0004__x0004_\u0080=(RiskData(NR_to_Cash!C$18,$A2_x0005__x0006_308))/1000_x0005__x0005__x0005_\u0080_x0005__x0005__x0005__x0005__x0005__x0005__x0005__x0005__x0005__x0005__x0003_\t_x0005__x0005__x0007__x0005_(_x0005__x0005_\u0080=(RiskData(NR_to_Cash!D$18,$A2308))/1000_x0005__x0005__x0005_\u0080_x0005__x0005__x0005__x0005__x0005__x0005__x0005__x0005__x0005__x0005__x0003_\t_x0005__x0005__x0008__x0005_(_x0005__x0005_\u0080=(RiskData(NR_to_Cash!E$18,$A2308))/1000_x0005__x0005__x0005_\u0080_x0005__x0005__x0005__x0005__x0005__x0005__x0005__x0005__x0005__x0005__x0004_\t_x0005__x0005__x0001__x0005_*_x0005__x0005_\u0080=RiskData('Risk Summary'!J$48,$A2309)/1000_x0005__x0005__x0005_\u0080_x0005__x0005__x0005__x0005__x0005__x0005__x0005__x0005__x0005__x0005__x0004_\t_x0005__x0005__x0002__x0005_*_x0005__x0005_\u0080=RiskData('Risk Summary'_x0001__x0002_!K$48,$A2309)/1000_x0001__x0001__x0001_\u0080_x0001__x0001__x0001__x0001__x0001__x0001__x0001__x0001__x0001__x0001__x0004_\t_x0001__x0001__x0003__x0001_*_x0001__x0001_\u0080=RiskData('Risk Summary'!L$48,$A2309)/1000_x0001__x0001__x0001_\u0080_x0001__x0001__x0001__x0001__x0001__x0001__x0001__x0001__x0001__x0001__x0004_\t_x0001__x0001__x0006__x0001_(_x0001__x0001_\u0080=(RiskData(NR_to_Cash!C$18,$A2309))/1000_x0001__x0001__x0001_\u0080_x0001__x0001__x0001__x0001__x0001__x0001__x0001__x0001__x0001__x0001__x0004_\t_x0001__x0001__x0007__x0001_(_x0001__x0001_\u0080=(RiskData(NR_to_Cash!D$18,$A2309))/1000_x0001__x0001__x0001_\u0080_x0001__x0001__x0001__x0001__x0001__x0001__x0001__x0001__x0001__x0001__x0004_\t_x0001__x0001__x0008__x0001_(_x0001__x0001_\u0080=(RiskData(NR_to_x0004__x0007__Cash!E$18,$A2309))/1000_x0004__x0004__x0004_\u0080_x0004__x0004__x0004__x0004__x0004__x0004__x0004__x0004__x0004__x0004__x0005_\t_x0004__x0004__x0001__x0004_*_x0004__x0004_\u0080=RiskData('Risk Summary'!J$48,$A2310)/1000_x0004__x0004__x0004_\u0080_x0004__x0004__x0004__x0004__x0004__x0004__x0004__x0004__x0004__x0004__x0005_\t_x0004__x0004__x0002__x0004_*_x0004__x0004_\u0080=RiskData('Risk Summary'!K$48,$A2310)/1000_x0004__x0004__x0004_\u0080_x0004__x0004__x0004__x0004__x0004__x0004__x0004__x0004__x0004__x0004__x0005_\t_x0004__x0004__x0003__x0004_*_x0004__x0004_\u0080=RiskData('Risk Summary'!L$48,$A2310)/1000_x0004__x0004__x0004_\u0080_x0004__x0004__x0004__x0004__x0004__x0004__x0004__x0004__x0004__x0004__x0005_\t_x0004__x0004__x0006__x0004_(_x0004__x0004_\u0080=(Risk_x0003__x0004_Data(NR_to_Cash!C$18,$A2310))/1000_x0003__x0003__x0003_\u0080_x0003__x0003__x0003__x0003__x0003__x0003__x0003__x0003__x0003__x0003__x0005_\t_x0003__x0003__x0007__x0003_(_x0003__x0003_\u0080=(RiskData(NR_to_Cash!D$18,$A2310))/1000_x0003__x0003__x0003_\u0080_x0003__x0003__x0003__x0003__x0003__x0003__x0003__x0003__x0003__x0003__x0005_\t_x0003__x0003__x0008__x0003_(_x0003__x0003_\u0080=(RiskData(NR_to_Cash!E$18,$A2310))/1000_x0003__x0003__x0003_\u0080_x0003__x0003__x0003__x0003__x0003__x0003__x0003__x0003__x0003__x0003__x0006_\t_x0003__x0003__x0001__x0003_*_x0003__x0003_\u0080=RiskData('Risk Summary'!J$48,$A2311)/1000_x0003__x0003__x0003_\u0080_x0003__x0003__x0003__x0003__x0003__x0003__x0003__x0003__x0003__x0003__x0006_\t_x0003__x0003__x0002__x0003_*_x0003__x0003_\u0080_x0001__x0002_=RiskData('Risk Summary'!K$48,$A2311)/1000_x0001__x0001__x0001_\u0080_x0001__x0001__x0001__x0001__x0001__x0001__x0001__x0001__x0001__x0001__x0006_\t_x0001__x0001__x0003__x0001_*_x0001__x0001_\u0080=RiskData('Risk Summary'!L$48,$A2311)/1000_x0001__x0001__x0001_\u0080_x0001__x0001__x0001__x0001__x0001__x0001__x0001__x0001__x0001__x0001_"}},{"$cut":{"chars":90630,"head":"91d34dfa689a9ab91e60fc49d81c10be_x0001__x0002__x0001_\u0080=RiskData('Risk Summary'!L$48,$A2389)/1000_x0001__x0001__x0001_\u0080_x0001__x0001__x0001__x0001__x0001__x0001__x0001__x0001__x0001__x0001_T\t_x0001__x0001__x0006__x0001_(_x0001__x0001_\u0080=(RiskData(NR_to_Cash!C$18,$A2389))/1000_x0001__x0001__x0001_\u0080_x0001__x0001__x0001__x0001__x0001__x0001__x0001__x0001__x0001__x0001_T\t_x0001__x0001__x0007__x0001_(_x0001__x0001_\u0080=(RiskData(NR_to_Cash!D$18,$A2389))/1000_x0001__x0001__x0001_\u0080_x0001__x0001__x0001__x0001__x0001__x0001__x0001__x0001__x0001__x0001_T\t_x0001__x0001__x0008__x0001_(_x0001__x0001_\u0080=(RiskData(NR_to_Cash!E$18,$A2389))/1000_x0001__x0001__x0001_\u0080_x0001__x0001__x0001__x0001__x0001__x0001__x0001__x0001__x0001__x0001_U\t_x0004__x0005__x0004__x0004__x0001__x0004_*_x0004__x0004_\u0080=RiskData('Risk Summary'!J$48,$A2390)/1000_x0004__x0004__x0004_\u0080_x0004__x0004__x0004__x0004__x0004__x0004__x0004__x0004__x0004__x0004_U\t_x0004__x0004__x0002__x0004_*_x0004__x0004_\u0080=RiskData('Risk Summary'!K$48,$A2390)/1000_x0004__x0004__x0004_\u0080_x0004__x0004__x0004__x0004__x0004__x0004__x0004__x0004__x0004__x0004_U\t_x0004__x0004__x0003__x0004_*_x0004__x0004_\u0080=RiskData('Risk Summary'!L$48,$A2390)/1000_x0004__x0004__x0004_\u0080_x0004__x0004__x0004__x0004__x0004__x0004__x0004__x0004__x0004__x0004_U\t_x0004__x0004__x0006__x0004_(_x0004__x0004_\u0080=(RiskData(NR_to_Cash!C$18,$A2390))/1000_x0004__x0004__x0004_\u0080_x0004__x0004__x0003__x0004__x0003__x0003__x0003__x0003__x0003__x0003__x0003__x0003_U\t_x0003__x0003__x0007__x0003_(_x0003__x0003_\u0080=(RiskData(NR_to_Cash!D$18,$A2390))/1000_x0003__x0003__x0003_\u0080_x0003__x0003__x0003__x0003__x0003__x0003__x0003__x0003__x0003__x0003_U\t_x0003__x0003__x0008__x0003_(_x0003__x0003_\u0080=(RiskData(NR_to_Cash!E$18,$A2390))/1000_x0003__x0003__x0003_\u0080_x0003__x0003__x0003__x0003__x0003__x0003__x0003__x0003__x0003__x0003_V\t_x0003__x0003__x0001__x0003_*_x0003__x0003_\u0080=RiskData('Risk Summary'!J$48,$A2391)/1000_x0003__x0003__x0003_\u0080_x0003__x0003__x0003__x0003__x0003__x0003__x0003__x0003__x0003__x0003_V\t_x0003__x0003__x0002__x0003_*_x0003__x0003_\u0080=RiskData('Risk Summary'!K$48,$A2391)/10_x0001__x0002_00_x0001__x0001__x0001_\u0080_x0001__x0001__x0001__x0001__x0001__x0001__x0001__x0001__x0001__x0001_V\t_x0001__x0001__x0003__x0001_*_x0001__x0001_\u0080=RiskData('Risk Summary'!L$48,$A2391)/1000_x0001__x0001__x0001_\u0080_x0001__x0001__x0001__x0001__x0001__x0001__x0001__x0001__x0001__x0001_V\t_x0001__x0001__x0006__x0001_(_x0001__x0001_\u0080=(RiskData(NR_to_Cash!C$18,$A2391))/1000_x0001__x0001__x0001_\u0080_x0001__x0001__x0001__x0001__x0001__x0001__x0001__x0001__x0001__x0001_V\t_x0001__x0001__x0007__x0001_(_x0001__x0001_\u0080=(RiskData(NR_to_Cash!D$18,$A2391))/1000_x0001__x0001__x0001_\u0080_x0001__x0001__x0001__x0001__x0001__x0001__x0001__x0001__x0001__x0001_V\t_x0001__x0001__x0008__x0001_(_x0001__x0001_\u0080=(RiskData(NR_to_Cash!E$18,$A239_x0004__x0005_1))/1000_x0004__x0004__x0004_\u0080_x0004__x0004__x0004__x0004__x0004__x0004__x0004__x0004__x0004__x0004_W\t_x0004__x0004__x0001__x0004_*_x0004__x0004_\u0080=RiskData('Risk Summary'!J$48,$A2392)/1000_x0004__x0004__x0004_\u0080_x0004__x0004__x0004__x0004__x0004__x0004__x0004__x0004__x0004__x0004_W\t_x0004__x0004__x0002__x0004_*_x0004__x0004_\u0080=RiskData('Risk Summary'!K$48,$A2392)/1000_x0004__x0004__x0004_\u0080_x0004__x0004__x0004__x0004__x0004__x0004__x0004__x0004__x0004__x0004_W\t_x0004__x0004__x0003__x0004_*_x0004__x0004_\u0080=RiskData('Risk Summary'!L$48,$A2392)/1000_x0004__x0004__x0004_\u0080_x0004__x0004__x0004__x0004__x0004__x0004__x0004__x0004__x0004__x0004_W\t_x0004__x0004__x0006__x0004_(_x0004__x0004_\u0080=(RiskData(NR_to_Cash!_x0003__x0004_C$18,$A2392))/1000_x0003__x0003__x0003_\u0080_x0003__x0003__x0003__x0003__x0003__x0003__x0003__x0003__x0003__x0003_W\t_x0003__x0003__x0007__x0003_(_x0003__x0003_\u0080=(RiskData(NR_to_Cash!D$18,$A2392))/1000_x0003__x0003__x0003_\u0080_x0003__x0003__x0003__x0003__x0003__x0003__x0003__x0003__x0003__x0003_W\t_x0003__x0003__x0008__x0003_(_x0003__x0003_\u0080=(RiskData(NR_to_Cash!E$18,$A2392))/1000_x0003__x0003__x0003_\u0080_x0003__x0003__x0003__x0003__x0003__x0003__x0003__x0003__x0003__x0003_X\t_x0003__x0003__x0001__x0003_*_x0003__x0003_\u0080=RiskData('Risk Summary'!J$48,$A2393"}},{"$cut":{"chars":91242,"head":"5d38cf0a75243df024f6870e4daa65bf_x0001__x0004_Summary'!J$48,$A2472)/1000_x0001__x0001__x0001_\u0080_x0001__x0001__x0001__x0001__x0001__x0001__x0001__x0001__x0001__x0001_§\t_x0001__x0001__x0002__x0001_*_x0001__x0001_\u0080=RiskData('Risk Summary'!K$48,$A2472)/1000_x0001__x0001__x0001_\u0080_x0001__x0001__x0001__x0001__x0001__x0001__x0001__x0001__x0001__x0001_§\t_x0001__x0001__x0003__x0001_*_x0001__x0001_\u0080=RiskData('Risk Summary'!L$48,$A2472)/1000_x0001__x0001__x0001_\u0080_x0001__x0001__x0001__x0001__x0001__x0001__x0001__x0001__x0001__x0001_§\t_x0001__x0001__x0006__x0001_(_x0001__x0001_\u0080=(RiskData(NR_to_Cash!C$18,$A2472))/1000_x0001__x0001__x0001_\u0080_x0001__x0001__x0001__x0001__x0001__x0001__x0001__x0001__x0001__x0001_§\t_x0001__x0001__x0007__x0001_(_x0001__x0001_\u0080=(Risk_x0004__x0005_Data(NR_to_Cash!D$18,$A2472))/1000_x0004__x0004__x0004_\u0080_x0004__x0004__x0004__x0004__x0004__x0004__x0004__x0004__x0004__x0004_§\t_x0004__x0004__x0008__x0004_(_x0004__x0004_\u0080=(RiskData(NR_to_Cash!E$18,$A2472))/1000_x0004__x0004__x0004_\u0080_x0004__x0004__x0004__x0004__x0004__x0004__x0004__x0004__x0004__x0004_¨\t_x0004__x0004__x0001__x0004_*_x0004__x0004_\u0080=RiskData('Risk Summary'!J$48,$A2473)/1000_x0004__x0004__x0004_\u0080_x0004__x0004__x0004__x0004__x0004__x0004__x0004__x0004__x0004__x0004_¨\t_x0004__x0004__x0002__x0004_*_x0004__x0004_\u0080=RiskData('Risk Summary'!K$48,$A2473)/1000_x0004__x0004__x0004_\u0080_x0004__x0004__x0004__x0004__x0004__x0004__x0004__x0004__x0004__x0004_¨\t_x0004__x0004__x0003__x0004_*_x0004__x0001__x0002__x0001_\u0080=RiskData('Risk Summary'!L$48,$A2473)/1000_x0001__x0001__x0001_\u0080_x0001__x0001__x0001__x0001__x0001__x0001__x0001__x0001__x0001__x0001_¨\t_x0001__x0001__x0006__x0001_(_x0001__x0001_\u0080=(RiskData(NR_to_Cash!C$18,$A2473))/1000_x0001__x0001__x0001_\u0080_x0001__x0001__x0001__x0001__x0001__x0001__x0001__x0001__x0001__x0001_¨\t_x0001__x0001__x0007__x0001_(_x0001__x0001_\u0080=(RiskData(NR_to_Cash!D$18,$A2473))/1000_x0001__x0001__x0001_\u0080_x0001__x0001__x0001__x0001__x0001__x0001__x0001__x0001__x0001__x0001_¨\t_x0001__x0001__x0008__x0001_(_x0001__x0001_\u0080=(RiskData(NR_to_Cash!E$18,$A2473))/1000_x0001__x0001__x0001_\u0080_x0001__x0001__x0001__x0001__x0001__x0001__x0001__x0001__x0001__x0001_©\t_x0004__x0005__x0004__x0004__x0001__x0004_*_x0004__x0004_\u0080=RiskData('Risk Summary'!J$48,$A2474)/1000_x0004__x0004__x0004_\u0080_x0004__x0004__x0004__x0004__x0004__x0004__x0004__x0004__x0004__x0004_©\t_x0004__x0004__x0002__x0004_*_x0004__x0004_\u0080=RiskData('Risk Summary'!K$48,$A2474)/1000_x0004__x0004__x0004_\u0080_x0004__x0004__x0004__x0004__x0004__x0004__x0004__x0004__x0004__x0004_©\t_x0004__x0004__x0003__x0004_*_x0004__x0004_\u0080=RiskData('Risk Summary'!L$48,$A2474)/1000_x0004__x0004__x0004_\u0080_x0004__x0004__x0004__x0004__x0004__x0004__x0004__x0004__x0004__x0004_©\t_x0004__x0004__x0006__x0004_(_x0004__x0004_\u0080=(RiskData(NR_to_Cash!C$18,$A2474))/1000_x0004__x0004__x0004_\u0080_x0004__x0004__x0003__x0004__x0003__x0003__x0003__x0003__x0003__x0003__x0003__x0003_©\t_x0003__x0003__x0007__x0003_(_x0003__x0003_\u0080=(RiskData(NR_to_Cash!D$18,$A2474))/1000_x0003__x0003__x0003_\u0080_x0003__x0003__x0003__x0003__x0003__x0003__x0003__x0003__x0003__x0003_©\t_x0003__x0003__x0008__x0003_(_x0003__x0003_\u0080=(RiskData(NR_to_Cash!E$18,$A2474))/1000_x0003__x0003__x0003_\u0080_x0003__x0003__x0003__x0003__x0003__x0003__x0003__x0003__x0003__x0003_ª\t_x0003__x0003__x0001__x0003_*_x0003__x0003_\u0080=RiskData('Risk Summary'!J$48,$A2475)/1000_x0003__x0003__x0003_\u0080_x0003__x0003__x0003__x0003__x0003__x0003__x0003__x0003__x0003__x0003_ª\t_x0003__x0003__x0002__x0003_*_x0003__x0003_\u0080=RiskData('Risk Summary'!K$48,$A2475)/10_x0001__x0002_00_x0001__x0001__x0001_\u0080_x0001__x0001__x0001__x0001__x0001__x0001__x0001__x0001__x0001__x0001_ª\t_x0001__x0001__x0003__x0001_*_x0001__x0001_\u0080=RiskData('Risk Summary'!L$48,$A2475)/1000_x0001__x0001__x0001_\u0080_x0001__x0001__x0001__x0001__x0001__x0001__x0001__x0001__x0001__x0001_ª\t_x0001__x0001__x0006__x0001_(_x0001__x0001_\u0080=(RiskData(NR_to_Cash!C$18,$A2475))/1000_x0001__x0001__x0001_\u0080_x0001__x0001__x0001__x0001__x0001__x0001__x0001__x0001__x0001__x0001_ª\t_x0001__x0001__x0007__x0001_(_x0001__x0001_\u0080=(RiskData(NR_to_Cash!D$18,$A2475))/1000_x0001__x0001__x"}},{"$cut":{"chars":94524,"head":"e94e51b5a647b0de5249e8a5a5f54b8d_x0002__x0003_1000_x0002__x0002__x0002_\u0080_x0002__x0002__x0002__x0002__x0002__x0002__x0002__x0002__x0002__x0002_ø\t_x0002__x0002__x0006__x0002_(_x0002__x0002_\u0080=(RiskData(NR_to_Cash!C$18,$A2553))/1000_x0002__x0002__x0002_\u0080_x0002__x0002__x0002__x0002__x0002__x0002__x0002__x0002__x0002__x0002_ø\t_x0002__x0002__x0007__x0002_(_x0002__x0002_\u0080=(RiskData(NR_to_Cash!D$18,$A2553))/1000_x0002__x0002__x0002_\u0080_x0002__x0002__x0002__x0002__x0002__x0002__x0002__x0002__x0002__x0002_ø\t_x0002__x0002__x0008__x0002_(_x0002__x0002_\u0080=(RiskData(NR_to_Cash!E$18,$A2553))/1000_x0002__x0002__x0002_\u0080_x0002__x0002__x0002__x0002__x0002__x0002__x0002__x0002__x0002__x0002_ù\t_x0002__x0002__x0001__x0002_*_x0002__x0002_\u0080=RiskData('Risk Summary'!J$48,$A_x0001__x0004_2554)/1000_x0001__x0001__x0001_\u0080_x0001__x0001__x0001__x0001__x0001__x0001__x0001__x0001__x0001__x0001_ù\t_x0001__x0001__x0002__x0001_*_x0001__x0001_\u0080=RiskData('Risk Summary'!K$48,$A2554)/1000_x0001__x0001__x0001_\u0080_x0001__x0001__x0001__x0001__x0001__x0001__x0001__x0001__x0001__x0001_ù\t_x0001__x0001__x0003__x0001_*_x0001__x0001_\u0080=RiskData('Risk Summary'!L$48,$A2554)/1000_x0001__x0001__x0001_\u0080_x0001__x0001__x0001__x0001__x0001__x0001__x0001__x0001__x0001__x0001_ù\t_x0001__x0001__x0006__x0001_(_x0001__x0001_\u0080=(RiskData(NR_to_Cash!C$18,$A2554))/1000_x0001__x0001__x0001_\u0080_x0001__x0001__x0001__x0001__x0001__x0001__x0001__x0001__x0001__x0001_ù\t_x0001__x0001__x0007__x0001_(_x0001__x0001_\u0080=(RiskData(NR_to_Cash!_x0004__x0005_D$18,$A2554))/1000_x0004__x0004__x0004_\u0080_x0004__x0004__x0004__x0004__x0004__x0004__x0004__x0004__x0004__x0004_ù\t_x0004__x0004__x0008__x0004_(_x0004__x0004_\u0080=(RiskData(NR_to_Cash!E$18,$A2554))/1000_x0004__x0004__x0004_\u0080_x0004__x0004__x0004__x0004__x0004__x0004__x0004__x0004__x0004__x0004_ú\t_x0004__x0004__x0001__x0004_*_x0004__x0004_\u0080=RiskData('Risk Summary'!J$48,$A2555)/1000_x0004__x0004__x0004_\u0080_x0004__x0004__x0004__x0004__x0004__x0004__x0004__x0004__x0004__x0004_ú\t_x0004__x0004__x0002__x0004_*_x0004__x0004_\u0080=RiskData('Risk Summary'!K$48,$A2555)/1000_x0004__x0004__x0004_\u0080_x0004__x0004__x0004__x0004__x0004__x0004__x0004__x0004__x0004__x0004_ú\t_x0004__x0004__x0003__x0004_*_x0004__x0004_\u0080=RiskData('Ris_x0002__x0003_k Summary'!L$48,$A2555)/1000_x0002__x0002__x0002_\u0080_x0002__x0002__x0002__x0002__x0002__x0002__x0002__x0002__x0002__x0002_ú\t_x0002__x0002__x0006__x0002_(_x0002__x0002_\u0080=(RiskData(NR_to_Cash!C$18,$A2555))/1000_x0002__x0002__x0002_\u0080_x0002__x0002__x0002__x0002__x0002__x0002__x0002__x0002__x0002__x0002_ú\t_x0002__x0002__x0007__x0002_(_x0002__x0002_\u0080=(RiskData(NR_to_Cash!D$18,$A2555))/1000_x0002__x0002__x0002_\u0080_x0002__x0002__x0002__x0002__x0002__x0002__x0002__x0002__x0002__x0002_ú\t_x0002__x0002__x0008__x0002_(_x0002__x0002_\u0080=(RiskData(NR_to_Cash!E$18,$A2555))/1000_x0002__x0002__x0002_\u0080_x0002__x0002__x0002__x0002__x0002__x0002__x0002__x0002__x0002__x0002_û\t_x0002__x0002__x0001__x0002_*_x0002__x0002_\u0080=RiskDat_x0001__x0004_a('Risk Summary'!J$48,$A2556)/1000_x0001__x0001__x0001_\u0080_x0001__x0001__x0001__x0001__x0001__x0001__x0001__x0001__x0001__x0001_û\t_x0001__x0001__x0002__x0001_*_x0001__x0001_\u0080=RiskData('Risk Summary'!K$48,$A2556)/1000_x0001__x0001__x0001_\u0080_x0001__x0001__x0001__x0001__x0001__x0001__x0001__x0001__x0001__x0001_û\t_x0001__x0001__x0003__x0001_*_x0001__x0001_\u0080=RiskData('Risk Summary'!L$48,$A2556)/1000_x0001__x0001__x0001_\u0080_x0001__x0001__x0001__x0001__x0001__x0001__x0001__x0001__x0001__x0001_û\t_x0001__x0001__x0006__x0001_(_x0001__x0001_\u0080=(RiskData(NR_to_Cash!C$18,$A2556))/1000_x0001__x0001__x0001_\u0080_x0001__x0001__x0001__x0001__x0001__x0001__x0001__x0001__x0001__x0001_û\t_x0001__x0001__x0007__x0001_(_x0001__x0003__x0004__x0003_\u0080=(RiskData(NR_to_Cash!D$18,$A2556))/1000_x0003__x0003__x0003_\u0080_x0003__x0003__x0003__x0003__x0003__x0003__x0003__x0003__x0003__x0003_û\t_x0003__x0003__x0008__x0003_(_x0003__x0003_\u0080=(RiskData(NR_to_Cash!E$18,$A2556))/1000_x0003__x0003__x0003_\u0080_x0003__x0003__x0003__x0003__x0003__x0003__x0003__x0003__x0003__x0003_ü\t_x0003__x0003__x0001__x0003_*_x0003__x0003_\u0080=RiskData('Risk Summary'!J$48,$A2557)/1000_x0003__x0003__x0003_\u0080_x0003__x0003__x00"}},{"$cut":{"chars":94362,"head":"e88a8abc8b1d3ce06c4e0c2216d8e528_x0001__x0004_K_x0004__x0001__x0001__x0002__x0001_*_x0001__x0001_\u0080=RiskData('Risk Summary'!K$48,$A2636)/1000_x0001__x0001__x0001_\u0080_x0001__x0001__x0001__x0001__x0001__x0001__x0001__x0001__x0001__x0001_K_x0004__x0001__x0001__x0003__x0001_*_x0001__x0001_\u0080=RiskData('Risk Summary'!L$48,$A2636)/1000_x0001__x0001__x0001_\u0080_x0001__x0001__x0001__x0001__x0001__x0001__x0001__x0001__x0001__x0001_K_x0004__x0001__x0001__x0006__x0001_(_x0001__x0001_\u0080=(RiskData(NR_to_Cash!C$18,$A2636))/1000_x0001__x0001__x0001_\u0080_x0001__x0001__x0001__x0001__x0001__x0001__x0001__x0001__x0001__x0001_K_x0004__x0001__x0001__x0007__x0001_(_x0001__x0001_\u0080=(RiskData(NR_to_Cash!D$18,$A2636))/1000_x0001__x0001__x0001_\u0080_x0001__x0001__x0004__x0005__x0004__x0004__x0004__x0004__x0004__x0004__x0004__x0004_K_x0005__x0004__x0004__x0008__x0004_(_x0004__x0004_\u0080=(RiskData(NR_to_Cash!E$18,$A2636))/1000_x0004__x0004__x0004_\u0080_x0004__x0004__x0004__x0004__x0004__x0004__x0004__x0004__x0004__x0004_L_x0005__x0004__x0004__x0001__x0004_*_x0004__x0004_\u0080=RiskData('Risk Summary'!J$48,$A2637)/1000_x0004__x0004__x0004_\u0080_x0004__x0004__x0004__x0004__x0004__x0004__x0004__x0004__x0004__x0004_L_x0005__x0004__x0004__x0002__x0004_*_x0004__x0004_\u0080=RiskData('Risk Summary'!K$48,$A2637)/1000_x0004__x0004__x0004_\u0080_x0004__x0004__x0004__x0004__x0004__x0004__x0004__x0004__x0004__x0004_L_x0005__x0004__x0004__x0003__x0004_*_x0004__x0004_\u0080=RiskData('Risk Summary'!L$48,$A2637)/_x0002__x0003_1000_x0002__x0002__x0002_\u0080_x0002__x0002__x0002__x0002__x0002__x0002__x0002__x0002__x0002__x0002_L_x0003__x0002__x0002__x0006__x0002_(_x0002__x0002_\u0080=(RiskData(NR_to_Cash!C$18,$A2637))/1000_x0002__x0002__x0002_\u0080_x0002__x0002__x0002__x0002__x0002__x0002__x0002__x0002__x0002__x0002_L_x0003__x0002__x0002__x0007__x0002_(_x0002__x0002_\u0080=(RiskData(NR_to_Cash!D$18,$A2637))/1000_x0002__x0002__x0002_\u0080_x0002__x0002__x0002__x0002__x0002__x0002__x0002__x0002__x0002__x0002_L_x0003__x0002__x0002__x0008__x0002_(_x0002__x0002_\u0080=(RiskData(NR_to_Cash!E$18,$A2637))/1000_x0002__x0002__x0002_\u0080_x0002__x0002__x0002__x0002__x0002__x0002__x0002__x0002__x0002__x0002_M_x0003__x0002__x0002__x0001__x0002_*_x0002__x0002_\u0080=RiskData('Risk Summary'!J$48,$A_x0001__x0004_2638)/1000_x0001__x0001__x0001_\u0080_x0001__x0001__x0001__x0001__x0001__x0001__x0001__x0001__x0001__x0001_M_x0004__x0001__x0001__x0002__x0001_*_x0001__x0001_\u0080=RiskData('Risk Summary'!K$48,$A2638)/1000_x0001__x0001__x0001_\u0080_x0001__x0001__x0001__x0001__x0001__x0001__x0001__x0001__x0001__x0001_M_x0004__x0001__x0001__x0003__x0001_*_x0001__x0001_\u0080=RiskData('Risk Summary'!L$48,$A2638)/1000_x0001__x0001__x0001_\u0080_x0001__x0001__x0001__x0001__x0001__x0001__x0001__x0001__x0001__x0001_M_x0004__x0001__x0001__x0006__x0001_(_x0001__x0001_\u0080=(RiskData(NR_to_Cash!C$18,$A2638))/1000_x0001__x0001__x0001_\u0080_x0001__x0001__x0001__x0001__x0001__x0001__x0001__x0001__x0001__x0001_M_x0004__x0001__x0001__x0007__x0001_(_x0001__x0001_\u0080=(RiskData(NR_to_Cash!_x0004__x0005_D$18,$A2638))/1000_x0004__x0004__x0004_\u0080_x0004__x0004__x0004__x0004__x0004__x0004__x0004__x0004__x0004__x0004_M_x0005__x0004__x0004__x0008__x0004_(_x0004__x0004_\u0080=(RiskData(NR_to_Cash!E$18,$A2638))/1000_x0004__x0004__x0004_\u0080_x0004__x0004__x0004__x0004__x0004__x0004__x0004__x0004__x0004__x0004_N_x0005__x0004__x0004__x0001__x0004_*_x0004__x0004_\u0080=RiskData('Risk Summary'!J$48,$A2639)/1000_x0004__x0004__x0004_\u0080_x0004__x0004__x0004__x0004__x0004__x0004__x0004__x0004__x0004__x0004_N_x0005__x0004__x0004__x0002__x0004_*_x0004__x0004_\u0080=RiskData('Risk Summary'!K$48,$A2639)/1000_x0004__x0004__x0004_\u0080_x0004__x0004__x0004__x0004__x0004__x0004__x0004__x0004__x0004__x0004_N_x0005__x0004__x0004__x0003__x0004_*_x0004__x0004_\u0080=RiskData('Ris_x0002__x0003_k Summary'!L$48,$A2639)/1000_x0002__x0002__x0002_\u0080_x0002__x0002__x0002__x0002__x0002__x0002__x0002__x0002__x0002__x0002_N_x0003__x0002__x0002__x0006__x0002_(_x0002__x0002_\u0080=(RiskData(NR_to_Cash!C$18,$A2639))/1000_x0002__x0002__x0002_\u0080_x0002__x0002__x0002__x0002__x0002__x0002__x0002__x0002__x0002__x0002_N_x0003__x0002__x0002__x0007__x0002_(_x0002__x0002_\u0080=(RiskData(NR_to_Cash!D$18,$A2639))/1000_x"}},{"$cut":{"chars":93600,"head":"0c51467d1fd25da23853de465514cd01_x0003__x0004_R_to_Cash!C$18,$A2717))/1000_x0003__x0003__x0003_\u0080_x0003__x0003__x0003__x0003__x0003__x0003__x0003__x0003__x0003__x0003_\u009c_x0004__x0003__x0003__x0007__x0003_(_x0003__x0003_\u0080=(RiskData(NR_to_Cash!D$18,$A2717))/1000_x0003__x0003__x0003_\u0080_x0003__x0003__x0003__x0003__x0003__x0003__x0003__x0003__x0003__x0003_\u009c_x0004__x0003__x0003__x0008__x0003_(_x0003__x0003_\u0080=(RiskData(NR_to_Cash!E$18,$A2717))/1000_x0003__x0003__x0003_\u0080_x0003__x0003__x0003__x0003__x0003__x0003__x0003__x0003__x0003__x0003_\u009d_x0004__x0003__x0003__x0001__x0003_*_x0003__x0003_\u0080=RiskData('Risk Summary'!J$48,$A2718)/1000_x0003__x0003__x0003_\u0080_x0003__x0003__x0003__x0003__x0003__x0003__x0003__x0003__x0003__x0003_\u009d_x0004__x0003__x0003__x0002__x0003_*_x0003__x0003_\u0080=RiskD_x0001__x0002_ata('Risk Summary'!K$48,$A2718)/1000_x0001__x0001__x0001_\u0080_x0001__x0001__x0001__x0001__x0001__x0001__x0001__x0001__x0001__x0001_\u009d_x0002__x0001__x0001__x0003__x0001_*_x0001__x0001_\u0080=RiskData('Risk Summary'!L$48,$A2718)/1000_x0001__x0001__x0001_\u0080_x0001__x0001__x0001__x0001__x0001__x0001__x0001__x0001__x0001__x0001_\u009d_x0002__x0001__x0001__x0006__x0001_(_x0001__x0001_\u0080=(RiskData(NR_to_Cash!C$18,$A2718))/1000_x0001__x0001__x0001_\u0080_x0001__x0001__x0001__x0001__x0001__x0001__x0001__x0001__x0001__x0001_\u009d_x0002__x0001__x0001__x0007__x0001_(_x0001__x0001_\u0080=(RiskData(NR_to_Cash!D$18,$A2718))/1000_x0001__x0001__x0001_\u0080_x0001__x0001__x0001__x0001__x0001__x0001__x0001__x0001__x0001__x0001_\u009d_x0002__x0001__x0001__x0008__x0001_(_x0001__x0004__x0005__x0004_\u0080=(RiskData(NR_to_Cash!E$18,$A2718))/1000_x0004__x0004__x0004_\u0080_x0004__x0004__x0004__x0004__x0004__x0004__x0004__x0004__x0004__x0004_\u009e_x0005__x0004__x0004__x0001__x0004_*_x0004__x0004_\u0080=RiskData('Risk Summary'!J$48,$A2719)/1000_x0004__x0004__x0004_\u0080_x0004__x0004__x0004__x0004__x0004__x0004__x0004__x0004__x0004__x0004_\u009e_x0005__x0004__x0004__x0002__x0004_*_x0004__x0004_\u0080=RiskData('Risk Summary'!K$48,$A2719)/1000_x0004__x0004__x0004_\u0080_x0004__x0004__x0004__x0004__x0004__x0004__x0004__x0004__x0004__x0004_\u009e_x0005__x0004__x0004__x0003__x0004_*_x0004__x0004_\u0080=RiskData('Risk Summary'!L$48,$A2719)/1000_x0004__x0004__x0004_\u0080_x0004__x0004__x0004__x0004__x0004__x0004__x0004__x0004__x0002__x0003__x0002__x0002_\u009e_x0003__x0002__x0002__x0006__x0002_(_x0002__x0002_\u0080=(RiskData(NR_to_Cash!C$18,$A2719))/1000_x0002__x0002__x0002_\u0080_x0002__x0002__x0002__x0002__x0002__x0002__x0002__x0002__x0002__x0002_\u009e_x0003__x0002__x0002__x0007__x0002_(_x0002__x0002_\u0080=(RiskData(NR_to_Cash!D$18,$A2719))/1000_x0002__x0002__x0002_\u0080_x0002__x0002__x0002__x0002__x0002__x0002__x0002__x0002__x0002__x0002_\u009e_x0003__x0002__x0002__x0008__x0002_(_x0002__x0002_\u0080=(RiskData(NR_to_Cash!E$18,$A2719))/1000_x0002__x0002__x0002_\u0080_x0002__x0002__x0002__x0002__x0002__x0002__x0002__x0002__x0002__x0002_\u009f_x0003__x0002__x0002__x0001__x0002_*_x0002__x0002_\u0080=RiskData('Risk Summary'!J$48,$A2720)/1000_x0002__x0002__x0002_\u0080_x0002__x0002__x0001__x0004__x0001__x0001__x0001__x0001__x0001__x0001__x0001__x0001_\u009f_x0004__x0001__x0001__x0002__x0001_*_x0001__x0001_\u0080=RiskData('Risk Summary'!K$48,$A2720)/1000_x0001__x0001__x0001_\u0080_x0001__x0001__x0001__x0001__x0001__x0001__x0001__x0001__x0001__x0001_\u009f_x0004__x0001__x0001__x0003__x0001_*_x0001__x0001_\u0080=RiskData('Risk Summary'!L$48,$A2720)/1000_x0001__x0001__x0001_\u0080_x0001__x0001__x0001__x0001__x0001__x0001__x0001__x0001__x0001__x0001_\u009f_x0004__x0001__x0001__x0006__x0001_(_x0001__x0001_\u0080=(RiskData(NR_to_Cash!C$18,$A2720))/1000_x0001__x0001__x0001_\u0080_x0001__x0001__x0001__x0001__x0001__x0001__x0001__x0001__x0001__x0001_\u009f_x0004__x0001__x0001__x0007__x0001_(_x0001__x0001_\u0080=(RiskData(NR_to_Cash!D$18,$A2720))/10_x0004__x0005_00_x0004__x0004__x0004_\u0080_x0004__x0004__x0004__x0004__x0004__x0004__x0004__x0004__x0004__x0004_\u009f_x0005__x0004__x0004__x0008__x0004_(_x0004__x0004_\u0080=(RiskData(NR_to_Cash!E$18,$A2720))/1000_x0004__x0004__x0004_\u0080_x0004__x0004__x0004__x0004__x0004__x0004__x0004__x0004__x0004__x0004_ _x0005__x0004__x0004__x0001__x0004_*_x0004__x0004_\u0080=RiskData('Risk Summary'!J$48,$A2721)/1000_x0004__x0004__x0004_\u0080_x0004__x0004__x0004__x0004__x0004__x0004__x00"}},{"$cut":{"chars":95352,"head":"06ed7830ac75d77bc7ba3170f178306a_x0001__x0002_$A2800)/1000_x0001__x0001__x0001_\u0080_x0001__x0001__x0001__x0001__x0001__x0001__x0001__x0001__x0001__x0001_ï_x0002__x0001__x0001__x0003__x0001_*_x0001__x0001_\u0080=RiskData('Risk Summary'!L$48,$A2800)/1000_x0001__x0001__x0001_\u0080_x0001__x0001__x0001__x0001__x0001__x0001__x0001__x0001__x0001__x0001_ï_x0002__x0001__x0001__x0006__x0001_(_x0001__x0001_\u0080=(RiskData(NR_to_Cash!C$18,$A2800))/1000_x0001__x0001__x0001_\u0080_x0001__x0001__x0001__x0001__x0001__x0001__x0001__x0001__x0001__x0001_ï_x0002__x0001__x0001__x0007__x0001_(_x0001__x0001_\u0080=(RiskData(NR_to_Cash!D$18,$A2800))/1000_x0001__x0001__x0001_\u0080_x0001__x0001__x0001__x0001__x0001__x0001__x0001__x0001__x0001__x0001_ï_x0002__x0001__x0001__x0008__x0001_(_x0001__x0001_\u0080=(RiskData(NR_to_Cash!_x0004__x0005_E$18,$A2800))/1000_x0004__x0004__x0004_\u0080_x0004__x0004__x0004__x0004__x0004__x0004__x0004__x0004__x0004__x0004_ð_x0005__x0004__x0004__x0001__x0004_*_x0004__x0004_\u0080=RiskData('Risk Summary'!J$48,$A2801)/1000_x0004__x0004__x0004_\u0080_x0004__x0004__x0004__x0004__x0004__x0004__x0004__x0004__x0004__x0004_ð_x0005__x0004__x0004__x0002__x0004_*_x0004__x0004_\u0080=RiskData('Risk Summary'!K$48,$A2801)/1000_x0004__x0004__x0004_\u0080_x0004__x0004__x0004__x0004__x0004__x0004__x0004__x0004__x0004__x0004_ð_x0005__x0004__x0004__x0003__x0004_*_x0004__x0004_\u0080=RiskData('Risk Summary'!L$48,$A2801)/1000_x0004__x0004__x0004_\u0080_x0004__x0004__x0004__x0004__x0004__x0004__x0004__x0004__x0004__x0004_ð_x0005__x0004__x0004__x0006__x0004_(_x0004__x0004_\u0080=(RiskData(N_x0003__x0004_R_to_Cash!C$18,$A2801))/1000_x0003__x0003__x0003_\u0080_x0003__x0003__x0003__x0003__x0003__x0003__x0003__x0003__x0003__x0003_ð_x0004__x0003__x0003__x0007__x0003_(_x0003__x0003_\u0080=(RiskData(NR_to_Cash!D$18,$A2801))/1000_x0003__x0003__x0003_\u0080_x0003__x0003__x0003__x0003__x0003__x0003__x0003__x0003__x0003__x0003_ð_x0004__x0003__x0003__x0008__x0003_(_x0003__x0003_\u0080=(RiskData(NR_to_Cash!E$18,$A2801))/1000_x0003__x0003__x0003_\u0080_x0003__x0003__x0003__x0003__x0003__x0003__x0003__x0003__x0003__x0003_ñ_x0004__x0003__x0003__x0001__x0003_*_x0003__x0003_\u0080=RiskData('Risk Summary'!J$48,$A2802)/1000_x0003__x0003__x0003_\u0080_x0003__x0003__x0003__x0003__x0003__x0003__x0003__x0003__x0003__x0003_ñ_x0004__x0003__x0003__x0002__x0003_*_x0003__x0003_\u0080=RiskD_x0001__x0002_ata('Risk Summary'!K$48,$A2802)/1000_x0001__x0001__x0001_\u0080_x0001__x0001__x0001__x0001__x0001__x0001__x0001__x0001__x0001__x0001_ñ_x0002__x0001__x0001__x0003__x0001_*_x0001__x0001_\u0080=RiskData('Risk Summary'!L$48,$A2802)/1000_x0001__x0001__x0001_\u0080_x0001__x0001__x0001__x0001__x0001__x0001__x0001__x0001__x0001__x0001_ñ_x0002__x0001__x0001__x0006__x0001_(_x0001__x0001_\u0080=(RiskData(NR_to_Cash!C$18,$A2802))/1000_x0001__x0001__x0001_\u0080_x0001__x0001__x0001__x0001__x0001__x0001__x0001__x0001__x0001__x0001_ñ_x0002__x0001__x0001__x0007__x0001_(_x0001__x0001_\u0080=(RiskData(NR_to_Cash!D$18,$A2802))/1000_x0001__x0001__x0001_\u0080_x0001__x0001__x0001__x0001__x0001__x0001__x0001__x0001__x0001__x0001_ñ_x0002__x0001__x0001__x0008__x0001_(_x0001__x0004__x0005__x0004_\u0080=(RiskData(NR_to_Cash!E$18,$A2802))/1000_x0004__x0004__x0004_\u0080_x0004__x0004__x0004__x0004__x0004__x0004__x0004__x0004__x0004__x0004_ò_x0005__x0004__x0004__x0001__x0004_*_x0004__x0004_\u0080=RiskData('Risk Summary'!J$48,$A2803)/1000_x0004__x0004__x0004_\u0080_x0004__x0004__x0004__x0004__x0004__x0004__x0004__x0004__x0004__x0004_ò_x0005__x0004__x0004__x0002__x0004_*_x0004__x0004_\u0080=RiskData('Risk Summary'!K$48,$A2803)/1000_x0004__x0004__x0004_\u0080_x0004__x0004__x0004__x0004__x0004__x0004__x0004__x0004__x0004__x0004_ò_x0005__x0004__x0004__x0003__x0004_*_x0004__x0004_\u0080=RiskData('Risk Summary'!L$48,$A2803)/1000_x0004__x0004__x0004_\u0080_x0004__x0004__x0004__x0004__x0004__x0004__x0004__x0004__x0002__x0003__x0002__x0002_ò_x0003__x0002__x0002__x0006__x0002_(_x0002__x0002_\u0080=(RiskData(NR_to_Cash!C$18,$A2803))/1000_x0002__x0002__x0002_\u0080_x0002__x0002__x0002__x0002__x0002__x0002__x0002__x0002__x0002__x0002_ò_x0003__x0002__x0002__x0007__x0002_(_x0002__x0002_\u0080=(RiskData(NR_to_Cash!D$18,$A2803))/1000_x0002__x0002__x0002_\u0080_x0002__x0002__x0002__x0002__x0002__x0002__x0002__x0002__x0002"}},{"$cut":{"chars":93654,"head":"764d2543b0ea11ff10e5c5e65f4935b0_x0003__x0004__x0003__x0003_@_x000B__x0003__x0003__x0007__x0003_(_x0003__x0003_\u0080=(RiskData(NR_to_Cash!D$18,$A2881))/1000_x0003__x0003__x0003_\u0080_x0003__x0003__x0003__x0003__x0003__x0003__x0003__x0003__x0003__x0003_@_x000B__x0003__x0003__x0008__x0003_(_x0003__x0003_\u0080=(RiskData(NR_to_Cash!E$18,$A2881))/1000_x0003__x0003__x0003_\u0080_x0003__x0003__x0003__x0003__x0003__x0003__x0003__x0003__x0003__x0003_A_x000B__x0003__x0003__x0001__x0003_*_x0003__x0003_\u0080=RiskData('Risk Summary'!J$48,$A2882)/1000_x0003__x0003__x0003_\u0080_x0003__x0003__x0003__x0003__x0003__x0003__x0003__x0003__x0003__x0003_A_x000B__x0003__x0003__x0002__x0003_*_x0003__x0003_\u0080=RiskData('Risk Summary'!K$48,$A2882)/1000_x0003__x0003__x0003_\u0080_x0001__x0002__x0001__x0001__x0001__x0001__x0001__x0001__x0001__x0001__x0001__x0001_A_x000B__x0001__x0001__x0003__x0001_*_x0001__x0001_\u0080=RiskData('Risk Summary'!L$48,$A2882)/1000_x0001__x0001__x0001_\u0080_x0001__x0001__x0001__x0001__x0001__x0001__x0001__x0001__x0001__x0001_A_x000B__x0001__x0001__x0006__x0001_(_x0001__x0001_\u0080=(RiskData(NR_to_Cash!C$18,$A2882))/1000_x0001__x0001__x0001_\u0080_x0001__x0001__x0001__x0001__x0001__x0001__x0001__x0001__x0001__x0001_A_x000B__x0001__x0001__x0007__x0001_(_x0001__x0001_\u0080=(RiskData(NR_to_Cash!D$18,$A2882))/1000_x0001__x0001__x0001_\u0080_x0001__x0001__x0001__x0001__x0001__x0001__x0001__x0001__x0001__x0001_A_x000B__x0001__x0001__x0008__x0001_(_x0001__x0001_\u0080=(RiskData(NR_to_Cash!E$18,$A2882))/10_x0004__x0005_00_x0004__x0004__x0004_\u0080_x0004__x0004__x0004__x0004__x0004__x0004__x0004__x0004__x0004__x0004_B_x000B__x0004__x0004__x0001__x0004_*_x0004__x0004_\u0080=RiskData('Risk Summary'!J$48,$A2883)/1000_x0004__x0004__x0004_\u0080_x0004__x0004__x0004__x0004__x0004__x0004__x0004__x0004__x0004__x0004_B_x000B__x0004__x0004__x0002__x0004_*_x0004__x0004_\u0080=RiskData('Risk Summary'!K$48,$A2883)/1000_x0004__x0004__x0004_\u0080_x0004__x0004__x0004__x0004__x0004__x0004__x0004__x0004__x0004__x0004_B_x000B__x0004__x0004__x0003__x0004_*_x0004__x0004_\u0080=RiskData('Risk Summary'!L$48,$A2883)/1000_x0004__x0004__x0004_\u0080_x0004__x0004__x0004__x0004__x0004__x0004__x0004__x0004__x0004__x0004_B_x000B__x0004__x0004__x0006__x0004_(_x0004__x0004_\u0080=(RiskData(NR_to_Cash!C$18,$_x0003__x0004_A2883))/1000_x0003__x0003__x0003_\u0080_x0003__x0003__x0003__x0003__x0003__x0003__x0003__x0003__x0003__x0003_B_x000B__x0003__x0003__x0007__x0003_(_x0003__x0003_\u0080=(RiskData(NR_to_Cash!D$18,$A2883))/1000_x0003__x0003__x0003_\u0080_x0003__x0003__x0003__x0003__x0003__x0003__x0003__x0003__x0003__x0003_B_x000B__x0003__x0003__x0008__x0003_(_x0003__x0003_\u0080=(RiskData(NR_to_Cash!E$18,$A2883))/1000_x0003__x0003__x0003_\u0080_x0003__x0003__x0003__x0003__x0003__x0003__x0003__x0003__x0003__x0003_C_x000B__x0003__x0003__x0001__x0003_*_x0003__x0003_\u0080=RiskData('Risk Summary'!J$48,$A2884)/1000_x0003__x0003__x0003_\u0080_x0003__x0003__x0003__x0003__x0003__x0003__x0003__x0003__x0003__x0003_C_x000B__x0003__x0003__x0002__x0003_*_x0003__x0003_\u0080=RiskData('Risk Summar_x0001__x0002_y'!K$48,$A2884)/1000_x0001__x0001__x0001_\u0080_x0001__x0001__x0001__x0001__x0001__x0001__x0001__x0001__x0001__x0001_C_x000B__x0001__x0001__x0003__x0001_*_x0001__x0001_\u0080=RiskData('Risk Summary'!L$48,$A2884)/1000_x0001__x0001__x0001_\u0080_x0001__x0001__x0001__x0001__x0001__x0001__x0001__x0001__x0001__x0001_C_x000B__x0001__x0001__x0006__x0001_(_x0001__x0001_\u0080=(RiskData(NR_to_Cash!C$18,$A2884))/1000_x0001__x0001__x0001_\u0080_x0001__x0001__x0001__x0001__x0001__x0001__x0001__x0001__x0001__x0001_C_x000B__x0001__x0001__x0007__x0001_(_x0001__x0001_\u0080=(RiskData(NR_to_Cash!D$18,$A2884))/1000_x0001__x0001__x0001_\u0080_x0001__x0001__x0001__x0001__x0001__x0001__x0001__x0001__x0001__x0001_C_x000B__x0001__x0001__x0008__x0001_(_x0001__x0001_\u0080=(RiskData(NR__x0004__x0005_to_Cash!E$18,$A2884))/1000_x0004__x0004__x0004_\u0080_x0004__x0004__x0004__x0004__x0004__x0004__x0004__x0004__x0004__x0004_D_x000B__x0004__x0004__x0001__x0004_*_x0004__x0004_\u0080=RiskData('Risk Summary'!J$48,$A2885)/1000_x0004__x0004__x0004_\u0080_x0004__x0004__x0004__x0004__x0004__x0004__x0004__x0004__x0004__x0004_D_x000B__x0004__x0004__x0002__x0004_*_x0004__x0004_\u0080=RiskData('Risk Summary'!K$48,"}},{"$cut":{"chars":94338,"head":"54781509855db4a595a0171d31acef8e_x0002__x0003_kData('Risk Summary'!L$48,$A2964)/1000_x0002__x0002__x0002_\u0080_x0002__x0002__x0002__x0002__x0002__x0002__x0002__x0002__x0002__x0002_\u0093_x000B__x0002__x0002__x0006__x0002_(_x0002__x0002_\u0080=(RiskData(NR_to_Cash!C$18,$A2964))/1000_x0002__x0002__x0002_\u0080_x0002__x0002__x0002__x0002__x0002__x0002__x0002__x0002__x0002__x0002_\u0093_x000B__x0002__x0002__x0007__x0002_(_x0002__x0002_\u0080=(RiskData(NR_to_Cash!D$18,$A2964))/1000_x0002__x0002__x0002_\u0080_x0002__x0002__x0002__x0002__x0002__x0002__x0002__x0002__x0002__x0002_\u0093_x000B__x0002__x0002__x0008__x0002_(_x0002__x0002_\u0080=(RiskData(NR_to_Cash!E$18,$A2964))/1000_x0002__x0002__x0002_\u0080_x0002__x0002__x0002__x0002__x0002__x0002__x0002__x0002__x0002__x0002_\u0094_x000B__x0002__x0002__x0001__x0002_*_x0002__x0001__x0004__x0001_\u0080=RiskData('Risk Summary'!J$48,$A2965)/1000_x0001__x0001__x0001_\u0080_x0001__x0001__x0001__x0001__x0001__x0001__x0001__x0001__x0001__x0001_\u0094_x000B__x0001__x0001__x0002__x0001_*_x0001__x0001_\u0080=RiskData('Risk Summary'!K$48,$A2965)/1000_x0001__x0001__x0001_\u0080_x0001__x0001__x0001__x0001__x0001__x0001__x0001__x0001__x0001__x0001_\u0094_x000B__x0001__x0001__x0003__x0001_*_x0001__x0001_\u0080=RiskData('Risk Summary'!L$48,$A2965)/1000_x0001__x0001__x0001_\u0080_x0001__x0001__x0001__x0001__x0001__x0001__x0001__x0001__x0001__x0001_\u0094_x000B__x0001__x0001__x0006__x0001_(_x0001__x0001_\u0080=(RiskData(NR_to_Cash!C$18,$A2965))/1000_x0001__x0001__x0001_\u0080_x0001__x0001__x0001__x0001__x0001__x0001__x0001__x0001__x0003__x0004__x0003__x0003_\u0094_x000B__x0003__x0003__x0007__x0003_(_x0003__x0003_\u0080=(RiskData(NR_to_Cash!D$18,$A2965))/1000_x0003__x0003__x0003_\u0080_x0003__x0003__x0003__x0003__x0003__x0003__x0003__x0003__x0003__x0003_\u0094_x000B__x0003__x0003__x0008__x0003_(_x0003__x0003_\u0080=(RiskData(NR_to_Cash!E$18,$A2965))/1000_x0003__x0003__x0003_\u0080_x0003__x0003__x0003__x0003__x0003__x0003__x0003__x0003__x0003__x0003_\u0095_x000B__x0003__x0003__x0001__x0003_*_x0003__x0003_\u0080=RiskData('Risk Summary'!J$48,$A2966)/1000_x0003__x0003__x0003_\u0080_x0003__x0003__x0003__x0003__x0003__x0003__x0003__x0003__x0003__x0003_\u0095_x000B__x0003__x0003__x0002__x0003_*_x0003__x0003_\u0080=RiskData('Risk Summary'!K$48,$A2966)/1000_x0003__x0003__x0003_\u0080_x0001__x0002__x0001__x0001__x0001__x0001__x0001__x0001__x0001__x0001__x0001__x0001_\u0095_x000B__x0001__x0001__x0003__x0001_*_x0001__x0001_\u0080=RiskData('Risk Summary'!L$48,$A2966)/1000_x0001__x0001__x0001_\u0080_x0001__x0001__x0001__x0001__x0001__x0001__x0001__x0001__x0001__x0001_\u0095_x000B__x0001__x0001__x0006__x0001_(_x0001__x0001_\u0080=(RiskData(NR_to_Cash!C$18,$A2966))/1000_x0001__x0001__x0001_\u0080_x0001__x0001__x0001__x0001__x0001__x0001__x0001__x0001__x0001__x0001_\u0095_x000B__x0001__x0001__x0007__x0001_(_x0001__x0001_\u0080=(RiskData(NR_to_Cash!D$18,$A2966))/1000_x0001__x0001__x0001_\u0080_x0001__x0001__x0001__x0001__x0001__x0001__x0001__x0001__x0001__x0001_\u0095_x000B__x0001__x0001__x0008__x0001_(_x0001__x0001_\u0080=(RiskData(NR_to_Cash!E$18,$A2966))/10_x0004__x0005_00_x0004__x0004__x0004_\u0080_x0004__x0004__x0004__x0004__x0004__x0004__x0004__x0004__x0004__x0004_\u0096_x000B__x0004__x0004__x0001__x0004_*_x0004__x0004_\u0080=RiskData('Risk Summary'!J$48,$A2967)/1000_x0004__x0004__x0004_\u0080_x0004__x0004__x0004__x0004__x0004__x0004__x0004__x0004__x0004__x0004_\u0096_x000B__x0004__x0004__x0002__x0004_*_x0004__x0004_\u0080=RiskData('Risk Summary'!K$48,$A2967)/1000_x0004__x0004__x0004_\u0080_x0004__x0004__x0004__x0004__x0004__x0004__x0004__x0004__x0004__x0004_\u0096_x000B__x0004__x0004__x0003__x0004_*_x0004__x0004_\u0080=RiskData('Risk Summary'!L$48,$A2967)/1000_x0004__x0004__x0004_\u0080_x0004__x0004__x0004__x0004__x0004__x0004__x0004__x0004__x0004__x0004_\u0096_x000B__x0004__x0004__x0006__x0004_(_x0004__x0004_\u0080=(RiskData(NR_to_Cash!C$18,$_x0003__x0004_A2967))/1000_x0003__x0003__x0003_\u0080_x0003__x0003__x0003__x0003__x0003__x0003__x0003__x0003__x0003__x0003_\u0096_x000B__x0003__x0003__x0007__x0003_(_x0003__x0003_\u0080=(RiskData(NR_to_Cash!D$18,$A2967))/1000_x0003__x0003__x0003_\u0080_x0003__x0003__x0003__x0003__x0003__x0003__x0003__x0003__x0003__x0003_\u0096_x000B__x0003__x0003__x0008__x0003_(_x0003__x0003_\u0080=(RiskData(NR_to_Cash!E$18,$A2967))/1000_x0003__x0003__x0003_\u0080_x0003__x0003__x0003__x0003__x0003__x0"}},{"$cut":{"chars":94728,"head":"72b074563adeccca19c5d9109c57c5f1_x0004__x0005_A3045))/1000_x0004__x0004__x0004_\u0080_x0004__x0004__x0004__x0004__x0004__x0004__x0004__x0004__x0004__x0004_ä_x000B__x0004__x0004__x0008__x0004_(_x0004__x0004_\u0080=(RiskData(NR_to_Cash!E$18,$A3045))/1000_x0004__x0004__x0004_\u0080_x0004__x0004__x0004__x0004__x0004__x0004__x0004__x0004__x0004__x0004_å_x000B__x0004__x0004__x0001__x0004_*_x0004__x0004_\u0080=RiskData('Risk Summary'!J$48,$A3046)/1000_x0004__x0004__x0004_\u0080_x0004__x0004__x0004__x0004__x0004__x0004__x0004__x0004__x0004__x0004_å_x000B__x0004__x0004__x0002__x0004_*_x0004__x0004_\u0080=RiskData('Risk Summary'!K$48,$A3046)/1000_x0004__x0004__x0004_\u0080_x0004__x0004__x0004__x0004__x0004__x0004__x0004__x0004__x0004__x0004_å_x000B__x0004__x0004__x0003__x0004_*_x0004__x0004_\u0080=RiskData('Risk Summ_x0002__x0003_ary'!L$48,$A3046)/1000_x0002__x0002__x0002_\u0080_x0002__x0002__x0002__x0002__x0002__x0002__x0002__x0002__x0002__x0002_å_x000B__x0002__x0002__x0006__x0002_(_x0002__x0002_\u0080=(RiskData(NR_to_Cash!C$18,$A3046))/1000_x0002__x0002__x0002_\u0080_x0002__x0002__x0002__x0002__x0002__x0002__x0002__x0002__x0002__x0002_å_x000B__x0002__x0002__x0007__x0002_(_x0002__x0002_\u0080=(RiskData(NR_to_Cash!D$18,$A3046))/1000_x0002__x0002__x0002_\u0080_x0002__x0002__x0002__x0002__x0002__x0002__x0002__x0002__x0002__x0002_å_x000B__x0002__x0002__x0008__x0002_(_x0002__x0002_\u0080=(RiskData(NR_to_Cash!E$18,$A3046))/1000_x0002__x0002__x0002_\u0080_x0002__x0002__x0002__x0002__x0002__x0002__x0002__x0002__x0002__x0002_æ_x000B__x0002__x0002__x0001__x0002_*_x0002__x0002_\u0080=RiskData('Ris_x0001__x0004_k Summary'!J$48,$A3047)/1000_x0001__x0001__x0001_\u0080_x0001__x0001__x0001__x0001__x0001__x0001__x0001__x0001__x0001__x0001_æ_x000B__x0001__x0001__x0002__x0001_*_x0001__x0001_\u0080=RiskData('Risk Summary'!K$48,$A3047)/1000_x0001__x0001__x0001_\u0080_x0001__x0001__x0001__x0001__x0001__x0001__x0001__x0001__x0001__x0001_æ_x000B__x0001__x0001__x0003__x0001_*_x0001__x0001_\u0080=RiskData('Risk Summary'!L$48,$A3047)/1000_x0001__x0001__x0001_\u0080_x0001__x0001__x0001__x0001__x0001__x0001__x0001__x0001__x0001__x0001_æ_x000B__x0001__x0001__x0006__x0001_(_x0001__x0001_\u0080=(RiskData(NR_to_Cash!C$18,$A3047))/1000_x0001__x0001__x0001_\u0080_x0001__x0001__x0001__x0001__x0001__x0001__x0001__x0001__x0001__x0001_æ_x000B__x0001__x0001__x0007__x0001_(_x0001__x0001_\u0080=(Ri_x0004__x0005_skData(NR_to_Cash!D$18,$A3047))/1000_x0004__x0004__x0004_\u0080_x0004__x0004__x0004__x0004__x0004__x0004__x0004__x0004__x0004__x0004_æ_x000B__x0004__x0004__x0008__x0004_(_x0004__x0004_\u0080=(RiskData(NR_to_Cash!E$18,$A3047))/1000_x0004__x0004__x0004_\u0080_x0004__x0004__x0004__x0004__x0004__x0004__x0004__x0004__x0004__x0004_ç_x000B__x0004__x0004__x0001__x0004_*_x0004__x0004_\u0080=RiskData('Risk Summary'!J$48,$A3048)/1000_x0004__x0004__x0004_\u0080_x0004__x0004__x0004__x0004__x0004__x0004__x0004__x0004__x0004__x0004_ç_x000B__x0004__x0004__x0002__x0004_*_x0004__x0004_\u0080=RiskData('Risk Summary'!K$48,$A3048)/1000_x0004__x0004__x0004_\u0080_x0004__x0004__x0004__x0004__x0004__x0004__x0004__x0004__x0004__x0004_ç_x000B__x0004__x0004__x0003__x0004__x0001__x0002_*_x0001__x0001_\u0080=RiskData('Risk Summary'!L$48,$A3048)/1000_x0001__x0001__x0001_\u0080_x0001__x0001__x0001__x0001__x0001__x0001__x0001__x0001__x0001__x0001_ç_x000B__x0001__x0001__x0006__x0001_(_x0001__x0001_\u0080=(RiskData(NR_to_Cash!C$18,$A3048))/1000_x0001__x0001__x0001_\u0080_x0001__x0001__x0001__x0001__x0001__x0001__x0001__x0001__x0001__x0001_ç_x000B__x0001__x0001__x0007__x0001_(_x0001__x0001_\u0080=(RiskData(NR_to_Cash!D$18,$A3048))/1000_x0001__x0001__x0001_\u0080_x0001__x0001__x0001__x0001__x0001__x0001__x0001__x0001__x0001__x0001_ç_x000B__x0001__x0001__x0008__x0001_(_x0001__x0001_\u0080=(RiskData(NR_to_Cash!E$18,$A3048))/1000_x0001__x0001__x0001_\u0080_x0001__x0001__x0001__x0001__x0001__x0001__x0001__x0001__x0001__x0001__x0004__x0005_è_x000B__x0004__x0004__x0001__x0004_*_x0004__x0004_\u0080=RiskData('Risk Summary'!J$48,$A3049)/1000_x0004__x0004__x0004_\u0080_x0004__x0004__x0004__x0004__x0004__x0004__x0004__x0004__x0004__x0004_è_x000B__x0004__x0004__x0002__x0004_*_x0004__x0004_\u0080=RiskData('Risk Summary'!K$48,$A3049)/1000_x0004__x0004__x0004_\u0080_x0004__x0004__x0004__x0004__x0004__x0004__x0004__x0004__x00"}},{"$cut":{"chars":93618,"head":"4428cb7c48f7f2781647c2f7184d81d4_x0002__x0003__x0002_\u0080_x0002__x0002__x0002__x0002__x0002__x0002__x0002__x0002__x0002__x0002_7_x000C__x0002__x0002__x0006__x0002_(_x0002__x0002_\u0080=(RiskData(NR_to_Cash!C$18,$A3128))/1000_x0002__x0002__x0002_\u0080_x0002__x0002__x0002__x0002__x0002__x0002__x0002__x0002__x0002__x0002_7_x000C__x0002__x0002__x0007__x0002_(_x0002__x0002_\u0080=(RiskData(NR_to_Cash!D$18,$A3128))/1000_x0002__x0002__x0002_\u0080_x0002__x0002__x0002__x0002__x0002__x0002__x0002__x0002__x0002__x0002_7_x000C__x0002__x0002__x0008__x0002_(_x0002__x0002_\u0080=(RiskData(NR_to_Cash!E$18,$A3128))/1000_x0002__x0002__x0002_\u0080_x0002__x0002__x0002__x0002__x0002__x0002__x0002__x0002__x0002__x0002_8_x000C__x0002__x0002__x0001__x0002_*_x0002__x0002_\u0080=RiskData('Risk Summary'!J$48,$A3129)/_x0001__x0004_1000_x0001__x0001__x0001_\u0080_x0001__x0001__x0001__x0001__x0001__x0001__x0001__x0001__x0001__x0001_8_x000C__x0001__x0001__x0002__x0001_*_x0001__x0001_\u0080=RiskData('Risk Summary'!K$48,$A3129)/1000_x0001__x0001__x0001_\u0080_x0001__x0001__x0001__x0001__x0001__x0001__x0001__x0001__x0001__x0001_8_x000C__x0001__x0001__x0003__x0001_*_x0001__x0001_\u0080=RiskData('Risk Summary'!L$48,$A3129)/1000_x0001__x0001__x0001_\u0080_x0001__x0001__x0001__x0001__x0001__x0001__x0001__x0001__x0001__x0001_8_x000C__x0001__x0001__x0006__x0001_(_x0001__x0001_\u0080=(RiskData(NR_to_Cash!C$18,$A3129))/1000_x0001__x0001__x0001_\u0080_x0001__x0001__x0001__x0001__x0001__x0001__x0001__x0001__x0001__x0001_8_x000C__x0001__x0001__x0007__x0001_(_x0001__x0001_\u0080=(RiskData(NR_to_Cash!D$18,$_x0004__x0005_A3129))/1000_x0004__x0004__x0004_\u0080_x0004__x0004__x0004__x0004__x0004__x0004__x0004__x0004__x0004__x0004_8_x000C__x0004__x0004__x0008__x0004_(_x0004__x0004_\u0080=(RiskData(NR_to_Cash!E$18,$A3129))/1000_x0004__x0004__x0004_\u0080_x0004__x0004__x0004__x0004__x0004__x0004__x0004__x0004__x0004__x0004_9_x000C__x0004__x0004__x0001__x0004_*_x0004__x0004_\u0080=RiskData('Risk Summary'!J$48,$A3130)/1000_x0004__x0004__x0004_\u0080_x0004__x0004__x0004__x0004__x0004__x0004__x0004__x0004__x0004__x0004_9_x000C__x0004__x0004__x0002__x0004_*_x0004__x0004_\u0080=RiskData('Risk Summary'!K$48,$A3130)/1000_x0004__x0004__x0004_\u0080_x0004__x0004__x0004__x0004__x0004__x0004__x0004__x0004__x0004__x0004_9_x000C__x0004__x0004__x0003__x0004_*_x0004__x0004_\u0080=RiskData('Risk Summ_x0002__x0003_ary'!L$48,$A3130)/1000_x0002__x0002__x0002_\u0080_x0002__x0002__x0002__x0002__x0002__x0002__x0002__x0002__x0002__x0002_9_x000C__x0002__x0002__x0006__x0002_(_x0002__x0002_\u0080=(RiskData(NR_to_Cash!C$18,$A3130))/1000_x0002__x0002__x0002_\u0080_x0002__x0002__x0002__x0002__x0002__x0002__x0002__x0002__x0002__x0002_9_x000C__x0002__x0002__x0007__x0002_(_x0002__x0002_\u0080=(RiskData(NR_to_Cash!D$18,$A3130))/1000_x0002__x0002__x0002_\u0080_x0002__x0002__x0002__x0002__x0002__x0002__x0002__x0002__x0002__x0002_9_x000C__x0002__x0002__x0008__x0002_(_x0002__x0002_\u0080=(RiskData(NR_to_Cash!E$18,$A3130))/1000_x0002__x0002__x0002_\u0080_x0002__x0002__x0002__x0002__x0002__x0002__x0002__x0002__x0002__x0002_:_x000C__x0002__x0002__x0001__x0002_*_x0002__x0002_\u0080=RiskData('Ris_x0001__x0004_k Summary'!J$48,$A3131)/1000_x0001__x0001__x0001_\u0080_x0001__x0001__x0001__x0001__x0001__x0001__x0001__x0001__x0001__x0001_:_x000C__x0001__x0001__x0002__x0001_*_x0001__x0001_\u0080=RiskData('Risk Summary'!K$48,$A3131)/1000_x0001__x0001__x0001_\u0080_x0001__x0001__x0001__x0001__x0001__x0001__x0001__x0001__x0001__x0001_:_x000C__x0001__x0001__x0003__x0001_*_x0001__x0001_\u0080=RiskData('Risk Summary'!L$48,$A3131)/1000_x0001__x0001__x0001_\u0080_x0001__x0001__x0001__x0001__x0001__x0001__x0001__x0001__x0001__x0001_:_x000C__x0001__x0001__x0006__x0001_(_x0001__x0001_\u0080=(RiskData(NR_to_Cash!C$18,$A3131))/1000_x0001__x0001__x0001_\u0080_x0001__x0001__x0001__x0001__x0001__x0001__x0001__x0001__x0001__x0001_:_x000C__x0001__x0001__x0007__x0001_(_x0001__x0001_\u0080=(Ri_x0004__x0005_skData(NR_to_Cash!D$18,$A3131))/1000_x0004__x0004__x0004_\u0080_x0004__x0004__x0004__x0004__x0004__x0004__x0004__x0004__x0004__x0004_:_x000C__x0004__x0004__x0008__x0004_(_x0004__x0004_\u0080=(RiskData(NR_to_Cash!E$18,$A3131))/1000_x0004__x0004__x0004_\u0080_x0004__x0004__x0004__x0004__x0004__x0004__x0004__x0004__x0004__x0004_;_x000C__x0004__x000"}},{"$cut":{"chars":27785,"head":"29db739aa126fa6d16733ca132128b42_x0001__x0002_le($K8,95%)/1000_x0001__x0001__x0001_\u0080_x0001__x0001__x0001__x0001__x0001__x0001__x0001__x0001__x0001__x0001__x0008__x0001__x0001__x0001__x0005__x0001__x001C__x0001__x0001_\u0080=RiskPercentile($K9,5%)/1000_x0001__x0001__x0001_\u0080_x0001__x0001__x0001__x0001__x0001__x0001__x0001__x0001__x0001__x0001__x0008__x0001__x0001__x0001__x0006__x0001__x0013__x0001__x0001_\u0080=RiskMean($K9)/1000_x0001__x0001__x0001_\u0080_x0001__x0001__x0001__x0001__x0001__x0001__x0001__x0001__x0001__x0001__x0008__x0001__x0001__x0001__x0007__x0001__x001D__x0001__x0001_\u0080=RiskPercentile($K9,95%)/1000_x0001__x0001__x0001_\u0080_x0001__x0001__x0001__x0001__x0001__x0001__x0001__x0001__x0001__x0001_\t_x0001__x0001__x0001__x0005__x0001__x001D__x0001__x0001_\u0080=RiskPercentile($K10,5%)/1000_x0001__x0001__x0001_\u0080_x0001__x0001__x0001__x0001__x0001__x0001__x0001__x0001__x0001__x0001_\t_x0001__x0001__x0001__x0006__x0001__x0014__x0001__x0001_\u0080=RiskMean($_x0001__x0002_K10)/1000_x0001__x0001__x0001_\u0080_x0001__x0001__x0001__x0001__x0001__x0001__x0001__x0001__x0001__x0001_\t_x0001__x0001__x0001__x0007__x0001__x001E__x0001__x0001_\u0080=RiskPercentile($K10,95%)/1000_x0001__x0001__x0001_\u0080_x0001__x0001__x0001__x0001__x0001__x0001__x0001__x0001__x0001__x0001__x0002__x0001__x0001__x0001__x0005__x0001__x001D__x0001__x0001_\u0080=RiskPercentile($K11,5%)/1000_x0001__x0001__x0001_\u0080_x0001__x0001__x0001__x0001__x0001__x0001__x0001__x0001__x0001__x0001__x0002__x0001__x0001__x0001__x0006__x0001__x0014__x0001__x0001_\u0080=RiskMean($K11)/1000_x0001__x0001__x0001_\u0080_x0001__x0001__x0001__x0001__x0001__x0001__x0001__x0001__x0001__x0001__x0002__x0001__x0001__x0001__x0007__x0001__x001E__x0001__x0001_\u0080=RiskPercentile($K11,95%)/1000_x0001__x0001__x0001_\u0080_x0001__x0001__x0001__x0001__x0001__x0001__x0001__x0001__x0001__x0001__x000B__x0001__x0001__x0001__x0005__x0001__x001D__x0001__x0001_\u0080=RiskPercentil_x0001__x0002_e($K12,5%)/1000_x0001__x0001__x0001_\u0080_x0001__x0001__x0001__x0001__x0001__x0001__x0001__x0001__x0001__x0001__x000B__x0001__x0001__x0001__x0006__x0001__x0014__x0001__x0001_\u0080=RiskMean($K12)/1000_x0001__x0001__x0001_\u0080_x0001__x0001__x0001__x0001__x0001__x0001__x0001__x0001__x0001__x0001__x000B__x0001__x0001__x0001__x0007__x0001__x001E__x0001__x0001_\u0080=RiskPercentile($K12,95%)/1000_x0001__x0001__x0001_\u0080_x0001__x0001__x0001__x0001__x0001__x0001__x0001__x0001__x0001__x0001__x000C__x0001__x0001__x0001__x0005__x0001__x001D__x0001__x0001_\u0080=RiskPercentile($K13,5%)/1000_x0001__x0001__x0001_\u0080_x0001__x0001__x0001__x0001__x0001__x0001__x0001__x0001__x0001__x0001__x000C__x0001__x0001__x0001__x0006__x0001__x0014__x0001__x0001_\u0080=RiskMean($K13)/1000_x0001__x0001__x0001_\u0080_x0001__x0001__x0001__x0001__x0001__x0001__x0001__x0001__x0001__x0001__x000C__x0001__x0001__x0001__x0007__x0001__x001E__x0001__x0001_\u0080=RiskPercentile($K_x0001__x0002_13,95%)/1000_x0001__x0001__x0001_\u0080_x0001__x0001__x0001__x0001__x0001__x0001__x0001__x0001__x0001__x0001__x000D__x0001__x0001__x0001__x0005__x0001__x001D__x0001__x0001_\u0080=RiskPercentile($K14,5%)/1000_x0001__x0001__x0001_\u0080_x0001__x0001__x0001__x0001__x0001__x0001__x0001__x0001__x0001__x0001__x000D__x0001__x0001__x0001__x0006__x0001__x0014__x0001__x0001_\u0080=RiskMean($K14)/1000_x0001__x0001__x0001_\u0080_x0001__x0001__x0001__x0001__x0001__x0001__x0001__x0001__x0001__x0001__x000D__x0001__x0001__x0001__x0007__x0001__x001E__x0001__x0001_\u0080=RiskPercentile($K14,95%)/1000_x0001__x0001__x0001_\u0080_x0001__x0001__x0001__x0001__x0001__x0001__x0001__x0001__x0001__x0001__x000E__x0001__x0001__x0001__x0005__x0001__x001D__x0001__x0001_\u0080=RiskPercentile($K15,5%)/1000_x0001__x0001__x0001_\u0080_x0001__x0001__x0001__x0001__x0001__x0001__x0001__x0001__x0001__x0001__x000E__x0001__x0001__x0001__x0006__x0001__x0014__x0001__x0001_\u0080=RiskMean($K_x0001__x0002_15)/1000_x0001__x0001__x0001_\u0080_x0001__x0001__x0001__x0001__x0001__x0001__x0001__x0001__x0001__x0001__x000E__x0001__x0001__x0001__x0007__x0001__x001E__x0001__x0001_\u0080=RiskPercentile($K15,95%)/1000_x0001__x0001__x0001_\u0080_x0001__x0001__x0001__x0001__x0001__x0001__x0001__x0001__x0001__x0001__x000F__x0001__x0001__x0001__x0005__x0001__x001D__x0001__x0001_\u0080=RiskPercentil"}}]

{"sheet":"Output","index":15,"n_rows":3214,"n_cols":10,"rows_kept":3214,"cut":false,"hidden":false,"merged":[[5,1,5,3],[5,6,5,8]]}
[]
[]
[]
[]
[]
[null,"Net Revenue ($M)",null,null,null,null,"ATC ($M)"]
["Game",2017,2018,2019,null,null,2017,2018,2019]
[1,{"$f":"_xll.RiskData('Risk Summary'!J$48,$A8)/1000","v":{"$error":"#NAME?"}},{"$f":"_xll.RiskData('Risk Summary'!K$48,$A8)/1000","v":{"$error":"#NAME?"}},{"$f":"_xll.RiskData('Risk Summary'!L$48,$A8)/1000","v":{"$error":"#NAME?"}},null,null,{"$f":"(_xll.RiskData(NR_to_Cash!C$18,$A8))/1000","v":{"$error":"#NAME?"}},{"$f":"(_xll.RiskData(NR_to_Cash!D$18,$A8))/1000","v":{"$error":"#NAME?"}},{"$f":"(_xll.RiskData(NR_to_Cash!E$18,$A8))/1000","v":{"$error":"#NAME?"}}]
[2,{"$f":"_xll.RiskData('Risk Summary'!J$48,$A9)/1000","v":{"$error":"#NAME?"}},{"$f":"_xll.RiskData('Risk Summary'!K$48,$A9)/1000","v":{"$error":"#NAME?"}},{"$f":"_xll.RiskData('Risk Summary'!L$48,$A9)/1000","v":{"$error":"#NAME?"}},null,null,{"$f":"(_xll.RiskData(NR_to_Cash!C$18,$A9))/1000","v":{"$error":"#NAME?"}},{"$f":"(_xll.RiskData(NR_to_Cash!D$18,$A9))/1000","v":{"$error":"#NAME?"}},{"$f":"(_xll.RiskData(NR_to_Cash!E$18,$A9))/1000","v":{"$error":"#NAME?"}}]
[3,{"$f":"_xll.RiskData('Risk Summary'!J$48,$A10)/1000","v":{"$error":"#NAME?"}},{"$f":"_xll.RiskData('Risk Summary'!K$48,$A10)/1000","v":{"$error":"#NAME?"}},{"$f":"_xll.RiskData('Risk Summary'!L$48,$A10)/1000","v":{"$error":"#NAME?"}},null,null,{"$f":"(_xll.RiskData(NR_to_Cash!C$18,$A10))/1000","v":{"$error":"#NAME?"}},{"$f":"(_xll.RiskData(NR_to_Cash!D$18,$A10))/1000","v":{"$error":"#NAME?"}},{"$f":"(_xll.RiskData(NR_to_Cash!E$18,$A10))/1000","v":{"$error":"#NAME?"}}]
[4,{"$f":"_xll.RiskData('Risk Summary'!J$48,$A11)/1000","v":{"$error":"#NAME?"}},{"$f":"_xll.RiskData('Risk Summary'!K$48,$A11)/1000","v":{"$error":"#NAME?"}},{"$f":"_xll.RiskData('Risk Summary'!L$48,$A11)/1000","v":{"$error":"#NAME?"}},null,null,{"$f":"(_xll.RiskData(NR_to_Cash!C$18,$A11))/1000","v":{"$error":"#NAME?"}},{"$f":"(_xll.RiskData(NR_to_Cash!D$18,$A11))/1000","v":{"$error":"#NAME?"}},{"$f":"(_xll.RiskData(NR_to_Cash!E$18,$A11))/1000","v":{"$error":"#NAME?"}}]
[5,{"$f":"_xll.RiskData('Risk Summary'!J$48,$A12)/1000","v":{"$error":"#NAME?"}},{"$f":"_xll.RiskData('Risk Summary'!K$48,$A12)/1000","v":{"$error":"#NAME?"}},{"$f":"_xll.RiskData('Risk Summary'!L$48,$A12)/1000","v":{"$error":"#NAME?"}},null,null,{"$f":"(_xll.RiskData(NR_to_Cash!C$18,$A12))/1000","v":{"$error":"#NAME?"}},{"$f":"(_xll.RiskData(NR_to_Cash!D$18,$A12))/1000","v":{"$error":"#NAME?"}},{"$f":"(_xll.RiskData(NR_to_Cash!E$18,$A12))/1000","v":{"$error":"#NAME?"}}]
[6,{"$f":"_xll.RiskData('Risk Summary'!J$48,$A13)/1000","v":{"$error":"#NAME?"}},{"$f":"_xll.RiskData('Risk Summary'!K$48,$A13)/1000","v":{"$error":"#NAME?"}},{"$f":"_xll.RiskData('Risk Summary'!L$48,$A13)/1000","v":{"$error":"#NAME?"}},null,null,{"$f":"(_xll.RiskData(NR_to_Cash!C$18,$A13))/1000","v":{"$error":"#NAME?"}},{"$f":"(_xll.RiskData(NR_to_Cash!D$18,$A13))/1000","v":{"$error":"#NAME?"}},{"$f":"(_xll.RiskData(NR_to_Cash!E$18,$A13))/1000","v":{"$error":"#NAME?"}}]
[7,{"$f":"_xll.RiskData('Risk Summary'!J$48,$A14)/1000","v":{"$error":"#NAME?"}},{"$f":"_xll.RiskData('Risk Summary'!K$48,$A14)/1000","v":{"$error":"#NAME?"}},{"$f":"_xll.RiskData('Risk Summary'!L$48,$A14)/1000","v":{"$error":"#NAME?"}},null,null,{"$f":"(_xll.RiskData(NR_to_Cash!C$18,$A14))/1000","v":{"$error":"#NAME?"}},{"$f":"(_xll.RiskData(NR_to_Cash!D$18,$A14))/1000","v":{"$error":"#NAME?"}},{"$f":"(_xll.RiskData(NR_to_Cash!E$18,$A14))/1000","v":{"$error":"#NAME?"}}]
[8,{"$f":"_xll.RiskData('Risk Summary'!J$48,$A15)/1000","v":{"$error":"#NAME?"}},{"$f":"_xll.RiskData('Risk Summary'!K$48,$A15)/1000","v":{"$error":"#NAME?"}},{"$f":"_xll.RiskData('Risk Summary'!L$48,$A15)/1000","v":{"$error":"#NAME?"}},null,null,{"$f":"(_xll.RiskData(NR_to_Cash!C$18,$A15))/1000","v":{"$error":"#NAME?"}},{"$f":"(_xll.RiskData(NR_to_Cash!D$18,$A15))/1000","v":{"$error":"#NAME?"}},{"$f":"(_xll.RiskData(NR_to_Cash!E$18,$A15))/1000","v":{"$error":"#NAME?"}}]
[9,{"$f":"_xll.RiskData('Risk Summary'!J$48,$A16)/1000","v":{"$error":"#NAME?"}},{"$f":"_xll.RiskData('Risk Summary'!K$48,$A16)/1000","v":{"$error":"#NAME?"}},{"$f":"_xll.RiskData('Risk Summary'!L$48,$A16)/1000","v":{"$error":"#NAME?"}},null,null,{"$f":"(_xll.RiskData(NR_to_Cash!C$18,$A16))/1000","v":{"$error":"#NAME?"}},{"$f":"(_xll.RiskData(NR_to_Cash!D$18,$A16))/1000","v":{"$error":"#NAME?"}},{"$f":"(_xll.RiskData(NR_to_Cash!E$18,$A16))/1000","v":{"$error":"#NAME?"}}]
[10,{"$f":"_xll.RiskData('Risk Summary'!J$48,$A17)/1000","v":{"$error":"#NAME?"}},{"$f":"_xll.RiskData('Risk Summary'!K$48,$A17)/1000","v":{"$error":"#NAME?"}},{"$f":"_xll.RiskData('Risk Summary'!L$48,$A17)/1000","v":{"$error":"#NAME?"}},null,null,{"$f":"(_xll.RiskData(NR_to_Cash!C$18,$A17))/1000","v":{"$error":"#NAME?"}},{"$f":"(_xll.RiskData(NR_to_Cash!D$18,$A17))/1000","v":{"$error":"#NAME?"}},{"$f":"(_xll.RiskData(NR_to_Cash!E$18,$A17))/1000","v":{"$error":"#NAME?"}}]
[11,{"$f":"_xll.RiskData('Risk Summary'!J$48,$A18)/1000","v":{"$error":"#NAME?"}},{"$f":"_xll.RiskData('Risk Summary'!K$48,$A18)/1000","v":{"$error":"#NAME?"}},{"$f":"_xll.RiskData('Risk Summary'!L$48,$A18)/1000","v":{"$error":"#NAME?"}},null,null,{"$f":"(_xll.RiskData(NR_to_Cash!C$18,$A18))/1000","v":{"$error":"#NAME?"}},{"$f":"(_xll.RiskData(NR_to_Cash!D$18,$A18))/1000","v":{"$error":"#NAME?"}},{"$f":"(_xll.RiskData(NR_to_Cash!E$18,$A18))/1000","v":{"$error":"#NAME?"}}]
[12,{"$f":"_xll.RiskData('Risk Summary'!J$48,$A19)/1000","v":{"$error":"#NAME?"}},{"$f":"_xll.RiskData('Risk Summary'!K$48,$A19)/1000","v":{"$error":"#NAME?"}},{"$f":"_xll.RiskData('Risk Summary'!L$48,$A19)/1000","v":{"$error":"#NAME?"}},null,null,{"$f":"(_xll.RiskData(NR_to_Cash!C$18,$A19))/1000","v":{"$error":"#NAME?"}},{"$f":"(_xll.RiskData(NR_to_Cash!D$18,$A19))/1000","v":{"$error":"#NAME?"}},{"$f":"(_xll.RiskData(NR_to_Cash!E$18,$A19))/1000","v":{"$error":"#NAME?"}}]
[13,{"$f":"_xll.RiskData('Risk Summary'!J$48,$A20)/1000","v":{"$error":"#NAME?"}},{"$f":"_xll.RiskData('Risk Summary'!K$48,$A20)/1000","v":{"$error":"#NAME?"}},{"$f":"_xll.RiskData('Risk Summary'!L$48,$A20)/1000","v":{"$error":"#NAME?"}},null,null,{"$f":"(_xll.RiskData(NR_to_Cash!C$18,$A20))/1000","v":{"$error":"#NAME?"}},{"$f":"(_xll.RiskData(NR_to_Cash!D$18,$A20))/1000","v":{"$error":"#NAME?"}},{"$f":"(_xll.RiskData(NR_to_Cash!E$18,$A20))/1000","v":{"$error":"#NAME?"}}]
[14,{"$f":"_xll.RiskData('Risk Summary'!J$48,$A21)/1000","v":{"$error":"#NAME?"}},{"$f":"_xll.RiskData('Risk Summary'!K$48,$A21)/1000","v":{"$error":"#NAME?"}},{"$f":"_xll.RiskData('Risk Summary'!L$48,$A21)/1000","v":{"$error":"#NAME?"}},null,null,{"$f":"(_xll.RiskData(NR_to_Cash!C$18,$A21))/1000","v":{"$error":"#NAME?"}},{"$f":"(_xll.RiskData(NR_to_Cash!D$18,$A21))/1000","v":{"$error":"#NAME?"}},{"$f":"(_xll.RiskData(NR_to_Cash!E$18,$A21))/1000","v":{"$error":"#NAME?"}}]
[15,{"$f":"_xll.RiskData('Risk Summary'!J$48,$A22)/1000","v":{"$error":"#NAME?"}},{"$f":"_xll.RiskData('Risk Summary'!K$48,$A22)/1000","v":{"$error":"#NAME?"}},{"$f":"_xll.RiskData('Risk Summary'!L$48,$A22)/1000","v":{"$error":"#NAME?"}},null,null,{"$f":"(_xll.RiskData(NR_to_Cash!C$18,$A22))/1000","v":{"$error":"#NAME?"}},{"$f":"(_xll.RiskData(NR_to_Cash!D$18,$A22))/1000","v":{"$error":"#NAME?"}},{"$f":"(_xll.RiskData(NR_to_Cash!E$18,$A22))/1000","v":{"$error":"#NAME?"}}]
[16,{"$f":"_xll.RiskData('Risk Summary'!J$48,$A23)/1000","v":{"$error":"#NAME?"}},{"$f":"_xll.RiskData('Risk Summary'!K$48,$A23)/1000","v":{"$error":"#NAME?"}},{"$f":"_xll.RiskData('Risk Summary'!L$48,$A23)/1000","v":{"$error":"#NAME?"}},null,null,{"$f":"(_xll.RiskData(NR_to_Cash!C$18,$A23))/1000","v":{"$error":"#NAME?"}},{"$f":"(_xll.RiskData(NR_to_Cash!D$18,$A23))/1000","v":{"$error":"#NAME?"}},{"$f":"(_xll.RiskData(NR_to_Cash!E$18,$A23))/1000","v":{"$error":"#NAME?"}}]
[17,{"$f":"_xll.RiskData('Risk Summary'!J$48,$A24)/1000","v":{"$error":"#NAME?"}},{"$f":"_xll.RiskData('Risk Summary'!K$48,$A24)/1000","v":{"$error":"#NAME?"}},{"$f":"_xll.RiskData('Risk Summary'!L$48,$A24)/1000","v":{"$error":"#NAME?"}},null,null,{"$f":"(_xll.RiskData(NR_to_Cash!C$18,$A24))/1000","v":{"$error":"#NAME?"}},{"$f":"(_xll.RiskData(NR_to_Cash!D$18,$A24))/1000","v":{"$error":"#NAME?"}},{"$f":"(_xll.RiskData(NR_to_Cash!E$18,$A24))/1000","v":{"$error":"#NAME?"}}]
[18,{"$f":"_xll.RiskData('Risk Summary'!J$48,$A25)/1000","v":{"$error":"#NAME?"}},{"$f":"_xll.RiskData('Risk Summary'!K$48,$A25)/1000","v":{"$error":"#NAME?"}},{"$f":"_xll.RiskData('Risk Summary'!L$48,$A25)/1000","v":{"$error":"#NAME?"}},null,null,{"$f":"(_xll.RiskData(NR_to_Cash!C$18,$A25))/1000","v":{"$error":"#NAME?"}},{"$f":"(_xll.RiskData(NR_to_Cash!D$18,$A25))/1000","v":{"$error":"#NAME?"}},{"$f":"(_xll.RiskData(NR_to_Cash!E$18,$A25))/1000","v":{"$error":"#NAME?"}}]
[19,{"$f":"_xll.RiskData('Risk Summary'!J$48,$A26)/1000","v":{"$error":"#NAME?"}},{"$f":"_xll.RiskData('Risk Summary'!K$48,$A26)/1000","v":{"$error":"#NAME?"}},{"$f":"_xll.RiskData('Risk Summary'!L$48,$A26)/1000","v":{"$error":"#NAME?"}},null,null,{"$f":"(_xll.RiskData(NR_to_Cash!C$18,$A26))/1000","v":{"$error":"#NAME?"}},{"$f":"(_xll.RiskData(NR_to_Cash!D$18,$A26))/1000","v":{"$error":"#NAME?"}},{"$f":"(_xll.RiskData(NR_to_Cash!E$18,$A26))/1000","v":{"$error":"#NAME?"}}]
[20,{"$f":"_xll.RiskData('Risk Summary'!J$48,$A27)/1000","v":{"$error":"#NAME?"}},{"$f":"_xll.RiskData('Risk Summary'!K$48,$A27)/1000","v":{"$error":"#NAME?"}},{"$f":"_xll.RiskData('Risk Summary'!L$48,$A27)/1000","v":{"$error":"#NAME?"}},null,null,{"$f":"(_xll.RiskData(NR_to_Cash!C$18,$A27))/1000","v":{"$error":"#NAME?"}},{"$f":"(_xll.RiskData(NR_to_Cash!D$18,$A27))/1000","v":{"$error":"#NAME?"}},{"$f":"(_xll.RiskData(NR_to_Cash!E$18,$A27))/1000","v":{"$error":"#NAME?"}}]
[21,{"$f":"_xll.RiskData('Risk Summary'!J$48,$A28)/1000","v":{"$error":"#NAME?"}},{"$f":"_xll.RiskData('Risk Summary'!K$48,$A28)/1000","v":{"$error":"#NAME?"}},{"$f":"_xll.RiskData('Risk Summary'!L$48,$A28)/1000","v":{"$error":"#NAME?"}},null,null,{"$f":"(_xll.RiskData(NR_to_Cash!C$18,$A28))/1000","v":{"$error":"#NAME?"}},{"$f":"(_xll.RiskData(NR_to_Cash!D$18,$A28))/1000","v":{"$error":"#NAME?"}},{"$f":"(_xll.RiskData(NR_to_Cash!E$18,$A28))/1000","v":{"$error":"#NAME?"}}]
[22,{"$f":"_xll.RiskData('Risk Summary'!J$48,$A29)/1000","v":{"$error":"#NAME?"}},{"$f":"_xll.RiskData('Risk Summary'!K$48,$A29)/1000","v":{"$error":"#NAME?"}},{"$f":"_xll.RiskData('Risk Summary'!L$48,$A29)/1000","v":{"$error":"#NAME?"}},null,null,{"$f":"(_xll.RiskData(NR_to_Cash!C$18,$A29))/1000","v":{"$error":"#NAME?"}},{"$f":"(_xll.RiskData(NR_to_Cash!D$18,$A29))/1000","v":{"$error":"#NAME?"}},{"$f":"(_xll.RiskData(NR_to_Cash!E$18,$A29))/1000","v":{"$error":"#NAME?"}}]
[23,{"$f":"_xll.RiskData('Risk Summary'!J$48,$A30)/1000","v":{"$error":"#NAME?"}},{"$f":"_xll.RiskData('Risk Summary'!K$48,$A30)/1000","v":{"$error":"#NAME?"}},{"$f":"_xll.RiskData('Risk Summary'!L$48,$A30)/1000","v":{"$error":"#NAME?"}},null,null,{"$f":"(_xll.RiskData(NR_to_Cash!C$18,$A30))/1000","v":{"$error":"#NAME?"}},{"$f":"(_xll.RiskData(NR_to_Cash!D$18,$A30))/1000","v":{"$error":"#NAME?"}},{"$f":"(_xll.RiskData(NR_to_Cash!E$18,$A30))/1000","v":{"$error":"#NAME?"}}]
[24,{"$f":"_xll.RiskData('Risk Summary'!J$48,$A31)/1000","v":{"$error":"#NAME?"}},{"$f":"_xll.RiskData('Risk Summary'!K$48,$A31)/1000","v":{"$error":"#NAME?"}},{"$f":"_xll.RiskData('Risk Summary'!L$48,$A31)/1000","v":{"$error":"#NAME?"}},null,null,{"$f":"(_xll.RiskData(NR_to_Cash!C$18,$A31))/1000","v":{"$error":"#NAME?"}},{"$f":"(_xll.RiskData(NR_to_Cash!D$18,$A31))/1000","v":{"$error":"#NAME?"}},{"$f":"(_xll.RiskData(NR_to_Cash!E$18,$A31))/1000","v":{"$error":"#NAME?"}}]
[25,{"$f":"_xll.RiskData('Risk Summary'!J$48,$A32)/1000","v":{"$error":"#NAME?"}},{"$f":"_xll.RiskData('Risk Summary'!K$48,$A32)/1000","v":{"$error":"#NAME?"}},{"$f":"_xll.RiskData('Risk Summary'!L$48,$A32)/1000","v":{"$error":"#NAME?"}},null,null,{"$f":"(_xll.RiskData(NR_to_Cash!C$18,$A32))/1000","v":{"$error":"#NAME?"}},{"$f":"(_xll.RiskData(NR_to_Cash!D$18,$A32))/1000","v":{"$error":"#NAME?"}},{"$f":"(_xll.RiskData(NR_to_Cash!E$18,$A32))/1000","v":{"$error":"#NAME?"}}]
[26,{"$f":"_xll.RiskData('Risk Summary'!J$48,$A33)/1000","v":{"$error":"#NAME?"}},{"$f":"_xll.RiskData('Risk Summary'!K$48,$A33)/1000","v":{"$error":"#NAME?"}},{"$f":"_xll.RiskData('Risk Summary'!L$48,$A33)/1000","v":{"$error":"#NAME?"}},null,null,{"$f":"(_xll.RiskData(NR_to_Cash!C$18,$A33))/1000","v":{"$error":"#NAME?"}},{"$f":"(_xll.RiskData(NR_to_Cash!D$18,$A33))/1000","v":{"$error":"#NAME?"}},{"$f":"(_xll.RiskData(NR_to_Cash!E$18,$A33))/1000","v":{"$error":"#NAME?"}}]
[27,{"$f":"_xll.RiskData('Risk Summary'!J$48,$A34)/1000","v":{"$error":"#NAME?"}},{"$f":"_xll.RiskData('Risk Summary'!K$48,$A34)/1000","v":{"$error":"#NAME?"}},{"$f":"_xll.RiskData('Risk Summary'!L$48,$A34)/1000","v":{"$error":"#NAME?"}},null,null,{"$f":"(_xll.RiskData(NR_to_Cash!C$18,$A34))/1000","v":{"$error":"#NAME?"}},{"$f":"(_xll.RiskData(NR_to_Cash!D$18,$A34))/1000","v":{"$error":"#NAME?"}},{"$f":"(_xll.RiskData(NR_to_Cash!E$18,$A34))/1000","v":{"$error":"#NAME?"}}]
[28,{"$f":"_xll.RiskData('Risk Summary'!J$48,$A35)/1000","v":{"$error":"#NAME?"}},{"$f":"_xll.RiskData('Risk Summary'!K$48,$A35)/1000","v":{"$error":"#NAME?"}},{"$f":"_xll.RiskData('Risk Summary'!L$48,$A35)/1000","v":{"$error":"#NAME?"}},null,null,{"$f":"(_xll.RiskData(NR_to_Cash!C$18,$A35))/1000","v":{"$error":"#NAME?"}},{"$f":"(_xll.RiskData(NR_to_Cash!D$18,$A35))/1000","v":{"$error":"#NAME?"}},{"$f":"(_xll.RiskData(NR_to_Cash!E$18,$A35))/1000","v":{"$error":"#NAME?"}}]
[29,{"$f":"_xll.RiskData('Risk Summary'!J$48,$A36)/1000","v":{"$error":"#NAME?"}},{"$f":"_xll.RiskData('Risk Summary'!K$48,$A36)/1000","v":{"$error":"#NAME?"}},{"$f":"_xll.RiskData('Risk Summary'!L$48,$A36)/1000","v":{"$error":"#NAME?"}},null,null,{"$f":"(_xll.RiskData(NR_to_Cash!C$18,$A36))/1000","v":{"$error":"#NAME?"}},{"$f":"(_xll.RiskData(NR_to_Cash!D$18,$A36))/1000","v":{"$error":"#NAME?"}},{"$f":"(_xll.RiskData(NR_to_Cash!E$18,$A36))/1000","v":{"$error":"#NAME?"}}]
[30,{"$f":"_xll.RiskData('Risk Summary'!J$48,$A37)/1000","v":{"$error":"#NAME?"}},{"$f":"_xll.RiskData('Risk Summary'!K$48,$A37)/1000","v":{"$error":"#NAME?"}},{"$f":"_xll.RiskData('Risk Summary'!L$48,$A37)/1000","v":{"$error":"#NAME?"}},null,null,{"$f":"(_xll.RiskData(NR_to_Cash!C$18,$A37))/1000","v":{"$error":"#NAME?"}},{"$f":"(_xll.RiskData(NR_to_Cash!D$18,$A37))/1000","v":{"$error":"#NAME?"}},{"$f":"(_xll.RiskData(NR_to_Cash!E$18,$A37))/1000","v":{"$error":"#NAME?"}}]
[31,{"$f":"_xll.RiskData('Risk Summary'!J$48,$A38)/1000","v":{"$error":"#NAME?"}},{"$f":"_xll.RiskData('Risk Summary'!K$48,$A38)/1000","v":{"$error":"#NAME?"}},{"$f":"_xll.RiskData('Risk Summary'!L$48,$A38)/1000","v":{"$error":"#NAME?"}},null,null,{"$f":"(_xll.RiskData(NR_to_Cash!C$18,$A38))/1000","v":{"$error":"#NAME?"}},{"$f":"(_xll.RiskData(NR_to_Cash!D$18,$A38))/1000","v":{"$error":"#NAME?"}},{"$f":"(_xll.RiskData(NR_to_Cash!E$18,$A38))/1000","v":{"$error":"#NAME?"}}]
[32,{"$f":"_xll.RiskData('Risk Summary'!J$48,$A39)/1000","v":{"$error":"#NAME?"}},{"$f":"_xll.RiskData('Risk Summary'!K$48,$A39)/1000","v":{"$error":"#NAME?"}},{"$f":"_xll.RiskData('Risk Summary'!L$48,$A39)/1000","v":{"$error":"#NAME?"}},null,null,{"$f":"(_xll.RiskData(NR_to_Cash!C$18,$A39))/1000","v":{"$error":"#NAME?"}},{"$f":"(_xll.RiskData(NR_to_Cash!D$18,$A39))/1000","v":{"$error":"#NAME?"}},{"$f":"(_xll.RiskData(NR_to_Cash!E$18,$A39))/1000","v":{"$error":"#NAME?"}}]
[33,{"$f":"_xll.RiskData('Risk Summary'!J$48,$A40)/1000","v":{"$error":"#NAME?"}},{"$f":"_xll.RiskData('Risk Summary'!K$48,$A40)/1000","v":{"$error":"#NAME?"}},{"$f":"_xll.RiskData('Risk Summary'!L$48,$A40)/1000","v":{"$error":"#NAME?"}},null,null,{"$f":"(_xll.RiskData(NR_to_Cash!C$18,$A40))/1000","v":{"$error":"#NAME?"}},{"$f":"(_xll.RiskData(NR_to_Cash!D$18,$A40))/1000","v":{"$error":"#NAME?"}},{"$f":"(_xll.RiskData(NR_to_Cash!E$18,$A40))/1000","v":{"$error":"#NAME?"}}]
[34,{"$f":"_xll.RiskData('Risk Summary'!J$48,$A41)/1000","v":{"$error":"#NAME?"}},{"$f":"_xll.RiskData('Risk Summary'!K$48,$A41)/1000","v":{"$error":"#NAME?"}},{"$f":"_xll.RiskData('Risk Summary'!L$48,$A41)/1000","v":{"$error":"#NAME?"}},null,null,{"$f":"(_xll.RiskData(NR_to_Cash!C$18,$A41))/1000","v":{"$error":"#NAME?"}},{"$f":"(_xll.RiskData(NR_to_Cash!D$18,$A41))/1000","v":{"$error":"#NAME?"}},{"$f":"(_xll.RiskData(NR_to_Cash!E$18,$A41))/1000","v":{"$error":"#NAME?"}}]
[35,{"$f":"_xll.RiskData('Risk Summary'!J$48,$A42)/1000","v":{"$error":"#NAME?"}},{"$f":"_xll.RiskData('Risk Summary'!K$48,$A42)/1000","v":{"$error":"#NAME?"}},{"$f":"_xll.RiskData('Risk Summary'!L$48,$A42)/1000","v":{"$error":"#NAME?"}},null,null,{"$f":"(_xll.RiskData(NR_to_Cash!C$18,$A42))/1000","v":{"$error":"#NAME?"}},{"$f":"(_xll.RiskData(NR_to_Cash!D$18,$A42))/1000","v":{"$error":"#NAME?"}},{"$f":"(_xll.RiskData(NR_to_Cash!E$18,$A42))/1000","v":{"$error":"#NAME?"}}]
[36,{"$f":"_xll.RiskData('Risk Summary'!J$48,$A43)/1000","v":{"$error":"#NAME?"}},{"$f":"_xll.RiskData('Risk Summary'!K$48,$A43)/1000","v":{"$error":"#NAME?"}},{"$f":"_xll.RiskData('Risk Summary'!L$48,$A43)/1000","v":{"$error":"#NAME?"}},null,null,{"$f":"(_xll.RiskData(NR_to_Cash!C$18,$A43))/1000","v":{"$error":"#NAME?"}},{"$f":"(_xll.RiskData(NR_to_Cash!D$18,$A43))/1000","v":{"$error":"#NAME?"}},{"$f":"(_xll.RiskData(NR_to_Cash!E$18,$A43))/1000","v":{"$error":"#NAME?"}}]
[37,{"$f":"_xll.RiskData('Risk Summary'!J$48,$A44)/1000","v":{"$error":"#NAME?"}},{"$f":"_xll.RiskData('Risk Summary'!K$48,$A44)/1000","v":{"$error":"#NAME?"}},{"$f":"_xll.RiskData('Risk Summary'!L$48,$A44)/1000","v":{"$error":"#NAME?"}},null,null,{"$f":"(_xll.RiskData(NR_to_Cash!C$18,$A44))/1000","v":{"$error":"#NAME?"}},{"$f":"(_xll.RiskData(NR_to_Cash!D$18,$A44))/1000","v":{"$error":"#NAME?"}},{"$f":"(_xll.RiskData(NR_to_Cash!E$18,$A44))/1000","v":{"$error":"#NAME?"}}]
[38,{"$f":"_xll.RiskData('Risk Summary'!J$48,$A45)/1000","v":{"$error":"#NAME?"}},{"$f":"_xll.RiskData('Risk Summary'!K$48,$A45)/1000","v":{"$error":"#NAME?"}},{"$f":"_xll.RiskData('Risk Summary'!L$48,$A45)/1000","v":{"$error":"#NAME?"}},null,null,{"$f":"(_xll.RiskData(NR_to_Cash!C$18,$A45))/1000","v":{"$error":"#NAME?"}},{"$f":"(_xll.RiskData(NR_to_Cash!D$18,$A45))/1000","v":{"$error":"#NAME?"}},{"$f":"(_xll.RiskData(NR_to_Cash!E$18,$A45))/1000","v":{"$error":"#NAME?"}}]
[39,{"$f":"_xll.RiskData('Risk Summary'!J$48,$A46)/1000","v":{"$error":"#NAME?"}},{"$f":"_xll.RiskData('Risk Summary'!K$48,$A46)/1000","v":{"$error":"#NAME?"}},{"$f":"_xll.RiskData('Risk Summary'!L$48,$A46)/1000","v":{"$error":"#NAME?"}},null,null,{"$f":"(_xll.RiskData(NR_to_Cash!C$18,$A46))/1000","v":{"$error":"#NAME?"}},{"$f":"(_xll.RiskData(NR_to_Cash!D$18,$A46))/1000","v":{"$error":"#NAME?"}},{"$f":"(_xll.RiskData(NR_to_Cash!E$18,$A46))/1000","v":{"$error":"#NAME?"}}]
[40,{"$f":"_xll.RiskData('Risk Summary'!J$48,$A47)/1000","v":{"$error":"#NAME?"}},{"$f":"_xll.RiskData('Risk Summary'!K$48,$A47)/1000","v":{"$error":"#NAME?"}},{"$f":"_xll.RiskData('Risk Summary'!L$48,$A47)/1000","v":{"$error":"#NAME?"}},null,null,{"$f":"(_xll.RiskData(NR_to_Cash!C$18,$A47))/1000","v":{"$error":"#NAME?"}},{"$f":"(_xll.RiskData(NR_to_Cash!D$18,$A47))/1000","v":{"$error":"#NAME?"}},{"$f":"(_xll.RiskData(NR_to_Cash!E$18,$A47))/1000","v":{"$error":"#NAME?"}}]
[41,{"$f":"_xll.RiskData('Risk Summary'!J$48,$A48)/1000","v":{"$error":"#NAME?"}},{"$f":"_xll.RiskData('Risk Summary'!K$48,$A48)/1000","v":{"$error":"#NAME?"}},{"$f":"_xll.RiskData('Risk Summary'!L$48,$A48)/1000","v":{"$error":"#NAME?"}},null,null,{"$f":"(_xll.RiskData(NR_to_Cash!C$18,$A48))/1000","v":{"$error":"#NAME?"}},{"$f":"(_xll.RiskData(NR_to_Cash!D$18,$A48))/1000","v":{"$error":"#NAME?"}},{"$f":"(_xll.RiskData(NR_to_Cash!E$18,$A48))/1000","v":{"$error":"#NAME?"}}]
[42,{"$f":"_xll.RiskData('Risk Summary'!J$48,$A49)/1000","v":{"$error":"#NAME?"}},{"$f":"_xll.RiskData('Risk Summary'!K$48,$A49)/1000","v":{"$error":"#NAME?"}},{"$f":"_xll.RiskData('Risk Summary'!L$48,$A49)/1000","v":{"$error":"#NAME?"}},null,null,{"$f":"(_xll.RiskData(NR_to_Cash!C$18,$A49))/1000","v":{"$error":"#NAME?"}},{"$f":"(_xll.RiskData(NR_to_Cash!D$18,$A49))/1000","v":{"$error":"#NAME?"}},{"$f":"(_xll.RiskData(NR_to_Cash!E$18,$A49))/1000","v":{"$error":"#NAME?"}}]
[43,{"$f":"_xll.RiskData('Risk Summary'!J$48,$A50)/1000","v":{"$error":"#NAME?"}},{"$f":"_xll.RiskData('Risk Summary'!K$48,$A50)/1000","v":{"$error":"#NAME?"}},{"$f":"_xll.RiskData('Risk Summary'!L$48,$A50)/1000","v":{"$error":"#NAME?"}},null,null,{"$f":"(_xll.RiskData(NR_to_Cash!C$18,$A50))/1000","v":{"$error":"#NAME?"}},{"$f":"(_xll.RiskData(NR_to_Cash!D$18,$A50))/1000","v":{"$error":"#NAME?"}},{"$f":"(_xll.RiskData(NR_to_Cash!E$18,$A50))/1000","v":{"$error":"#NAME?"}}]
[44,{"$f":"_xll.RiskData('Risk Summary'!J$48,$A51)/1000","v":{"$error":"#NAME?"}},{"$f":"_xll.RiskData('Risk Summary'!K$48,$A51)/1000","v":{"$error":"#NAME?"}},{"$f":"_xll.RiskData('Risk Summary'!L$48,$A51)/1000","v":{"$error":"#NAME?"}},null,null,{"$f":"(_xll.RiskData(NR_to_Cash!C$18,$A51))/1000","v":{"$error":"#NAME?"}},{"$f":"(_xll.RiskData(NR_to_Cash!D$18,$A51))/1000","v":{"$error":"#NAME?"}},{"$f":"(_xll.RiskData(NR_to_Cash!E$18,$A51))/1000","v":{"$error":"#NAME?"}}]
[45,{"$f":"_xll.RiskData('Risk Summary'!J$48,$A52)/1000","v":{"$error":"#NAME?"}},{"$f":"_xll.RiskData('Risk Summary'!K$48,$A52)/1000","v":{"$error":"#NAME?"}},{"$f":"_xll.RiskData('Risk Summary'!L$48,$A52)/1000","v":{"$error":"#NAME?"}},null,null,{"$f":"(_xll.RiskData(NR_to_Cash!C$18,$A52))/1000","v":{"$error":"#NAME?"}},{"$f":"(_xll.RiskData(NR_to_Cash!D$18,$A52))/1000","v":{"$error":"#NAME?"}},{"$f":"(_xll.RiskData(NR_to_Cash!E$18,$A52))/1000","v":{"$error":"#NAME?"}}]
[46,{"$f":"_xll.RiskData('Risk Summary'!J$48,$A53)/1000","v":{"$error":"#NAME?"}},{"$f":"_xll.RiskData('Risk Summary'!K$48,$A53)/1000","v":{"$error":"#NAME?"}},{"$f":"_xll.RiskData('Risk Summary'!L$48,$A53)/1000","v":{"$error":"#NAME?"}},null,null,{"$f":"(_xll.RiskData(NR_to_Cash!C$18,$A53))/1000","v":{"$error":"#NAME?"}},{"$f":"(_xll.RiskData(NR_to_Cash!D$18,$A53))/1000","v":{"$error":"#NAME?"}},{"$f":"(_xll.RiskData(NR_to_Cash!E$18,$A53))/1000","v":{"$error":"#NAME?"}}]
[47,{"$f":"_xll.RiskData('Risk Summary'!J$48,$A54)/1000","v":{"$error":"#NAME?"}},{"$f":"_xll.RiskData('Risk Summary'!K$48,$A54)/1000","v":{"$error":"#NAME?"}},{"$f":"_xll.RiskData('Risk Summary'!L$48,$A54)/1000","v":{"$error":"#NAME?"}},null,null,{"$f":"(_xll.RiskData(NR_to_Cash!C$18,$A54))/1000","v":{"$error":"#NAME?"}},{"$f":"(_xll.RiskData(NR_to_Cash!D$18,$A54))/1000","v":{"$error":"#NAME?"}},{"$f":"(_xll.RiskData(NR_to_Cash!E$18,$A54))/1000","v":{"$error":"#NAME?"}}]
[48,{"$f":"_xll.RiskData('Risk Summary'!J$48,$A55)/1000","v":{"$error":"#NAME?"}},{"$f":"_xll.RiskData('Risk Summary'!K$48,$A55)/1000","v":{"$error":"#NAME?"}},{"$f":"_xll.RiskData('Risk Summary'!L$48,$A55)/1000","v":{"$error":"#NAME?"}},null,null,{"$f":"(_xll.RiskData(NR_to_Cash!C$18,$A55))/1000","v":{"$error":"#NAME?"}},{"$f":"(_xll.RiskData(NR_to_Cash!D$18,$A55))/1000","v":{"$error":"#NAME?"}},{"$f":"(_xll.RiskData(NR_to_Cash!E$18,$A55))/1000","v":{"$error":"#NAME?"}}]
[49,{"$f":"_xll.RiskData('Risk Summary'!J$48,$A56)/1000","v":{"$error":"#NAME?"}},{"$f":"_xll.RiskData('Risk Summary'!K$48,$A56)/1000","v":{"$error":"#NAME?"}},{"$f":"_xll.RiskData('Risk Summary'!L$48,$A56)/1000","v":{"$error":"#NAME?"}},null,null,{"$f":"(_xll.RiskData(NR_to_Cash!C$18,$A56))/1000","v":{"$error":"#NAME?"}},{"$f":"(_xll.RiskData(NR_to_Cash!D$18,$A56))/1000","v":{"$error":"#NAME?"}},{"$f":"(_xll.RiskData(NR_to_Cash!E$18,$A56))/1000","v":{"$error":"#NAME?"}}]
[50,{"$f":"_xll.RiskData('Risk Summary'!J$48,$A57)/1000","v":{"$error":"#NAME?"}},{"$f":"_xll.RiskData('Risk Summary'!K$48,$A57)/1000","v":{"$error":"#NAME?"}},{"$f":"_xll.RiskData('Risk Summary'!L$48,$A57)/1000","v":{"$error":"#NAME?"}},null,null,{"$f":"(_xll.RiskData(NR_to_Cash!C$18,$A57))/1000","v":{"$error":"#NAME?"}},{"$f":"(_xll.RiskData(NR_to_Cash!D$18,$A57))/1000","v":{"$error":"#NAME?"}},{"$f":"(_xll.RiskData(NR_to_Cash!E$18,$A57))/1000","v":{"$error":"#NAME?"}}]
[51,{"$f":"_xll.RiskData('Risk Summary'!J$48,$A58)/1000","v":{"$error":"#NAME?"}},{"$f":"_xll.RiskData('Risk Summary'!K$48,$A58)/1000","v":{"$error":"#NAME?"}},{"$f":"_xll.RiskData('Risk Summary'!L$48,$A58)/1000","v":{"$error":"#NAME?"}},null,null,{"$f":"(_xll.RiskData(NR_to_Cash!C$18,$A58))/1000","v":{"$error":"#NAME?"}},{"$f":"(_xll.RiskData(NR_to_Cash!D$18,$A58))/1000","v":{"$error":"#NAME?"}},{"$f":"(_xll.RiskData(NR_to_Cash!E$18,$A58))/1000","v":{"$error":"#NAME?"}}]
[52,{"$f":"_xll.RiskData('Risk Summary'!J$48,$A59)/1000","v":{"$error":"#NAME?"}},{"$f":"_xll.RiskData('Risk Summary'!K$48,$A59)/1000","v":{"$error":"#NAME?"}},{"$f":"_xll.RiskData('Risk Summary'!L$48,$A59)/1000","v":{"$error":"#NAME?"}},null,null,{"$f":"(_xll.RiskData(NR_to_Cash!C$18,$A59))/1000","v":{"$error":"#NAME?"}},{"$f":"(_xll.RiskData(NR_to_Cash!D$18,$A59))/1000","v":{"$error":"#NAME?"}},{"$f":"(_xll.RiskData(NR_to_Cash!E$18,$A59))/1000","v":{"$error":"#NAME?"}}]
[53,{"$f":"_xll.RiskData('Risk Summary'!J$48,$A60)/1000","v":{"$error":"#NAME?"}},{"$f":"_xll.RiskData('Risk Summary'!K$48,$A60)/1000","v":{"$error":"#NAME?"}},{"$f":"_xll.RiskData('Risk Summary'!L$48,$A60)/1000","v":{"$error":"#NAME?"}},null,null,{"$f":"(_xll.RiskData(NR_to_Cash!C$18,$A60))/1000","v":{"$error":"#NAME?"}},{"$f":"(_xll.RiskData(NR_to_Cash!D$18,$A60))/1000","v":{"$error":"#NAME?"}},{"$f":"(_xll.RiskData(NR_to_Cash!E$18,$A60))/1000","v":{"$error":"#NAME?"}}]
[54,{"$f":"_xll.RiskData('Risk Summary'!J$48,$A61)/1000","v":{"$error":"#NAME?"}},{"$f":"_xll.RiskData('Risk Summary'!K$48,$A61)/1000","v":{"$error":"#NAME?"}},{"$f":"_xll.RiskData('Risk Summary'!L$48,$A61)/1000","v":{"$error":"#NAME?"}},null,null,{"$f":"(_xll.RiskData(NR_to_Cash!C$18,$A61))/1000","v":{"$error":"#NAME?"}},{"$f":"(_xll.RiskData(NR_to_Cash!D$18,$A61))/1000","v":{"$error":"#NAME?"}},{"$f":"(_xll.RiskData(NR_to_Cash!E$18,$A61))/1000","v":{"$error":"#NAME?"}}]
[55,{"$f":"_xll.RiskData('Risk Summary'!J$48,$A62)/1000","v":{"$error":"#NAME?"}},{"$f":"_xll.RiskData('Risk Summary'!K$48,$A62)/1000","v":{"$error":"#NAME?"}},{"$f":"_xll.RiskData('Risk Summary'!L$48,$A62)/1000","v":{"$error":"#NAME?"}},null,null,{"$f":"(_xll.RiskData(NR_to_Cash!C$18,$A62))/1000","v":{"$error":"#NAME?"}},{"$f":"(_xll.RiskData(NR_to_Cash!D$18,$A62))/1000","v":{"$error":"#NAME?"}},{"$f":"(_xll.RiskData(NR_to_Cash!E$18,$A62))/1000","v":{"$error":"#NAME?"}}]
[56,{"$f":"_xll.RiskData('Risk Summary'!J$48,$A63)/1000","v":{"$error":"#NAME?"}},{"$f":"_xll.RiskData('Risk Summary'!K$48,$A63)/1000","v":{"$error":"#NAME?"}},{"$f":"_xll.RiskData('Risk Summary'!L$48,$A63)/1000","v":{"$error":"#NAME?"}},null,null,{"$f":"(_xll.RiskData(NR_to_Cash!C$18,$A63))/1000","v":{"$error":"#NAME?"}},{"$f":"(_xll.RiskData(NR_to_Cash!D$18,$A63))/1000","v":{"$error":"#NAME?"}},{"$f":"(_xll.RiskData(NR_to_Cash!E$18,$A63))/1000","v":{"$error":"#NAME?"}}]
[57,{"$f":"_xll.RiskData('Risk Summary'!J$48,$A64)/1000","v":{"$error":"#NAME?"}},{"$f":"_xll.RiskData('Risk Summary'!K$48,$A64)/1000","v":{"$error":"#NAME?"}},{"$f":"_xll.RiskData('Risk Summary'!L$48,$A64)/1000","v":{"$error":"#NAME?"}},null,null,{"$f":"(_xll.RiskData(NR_to_Cash!C$18,$A64))/1000","v":{"$error":"#NAME?"}},{"$f":"(_xll.RiskData(NR_to_Cash!D$18,$A64))/1000","v":{"$error":"#NAME?"}},{"$f":"(_xll.RiskData(NR_to_Cash!E$18,$A64))/1000","v":{"$error":"#NAME?"}}]
[58,{"$f":"_xll.RiskData('Risk Summary'!J$48,$A65)/1000","v":{"$error":"#NAME?"}},{"$f":"_xll.RiskData('Risk Summary'!K$48,$A65)/1000","v":{"$error":"#NAME?"}},{"$f":"_xll.RiskData('Risk Summary'!L$48,$A65)/1000","v":{"$error":"#NAME?"}},null,null,{"$f":"(_xll.RiskData(NR_to_Cash!C$18,$A65))/1000","v":{"$error":"#NAME?"}},{"$f":"(_xll.RiskData(NR_to_Cash!D$18,$A65))/1000","v":{"$error":"#NAME?"}},{"$f":"(_xll.RiskData(NR_to_Cash!E$18,$A65))/1000","v":{"$error":"#NAME?"}}]
[59,{"$f":"_xll.RiskData('Risk Summary'!J$48,$A66)/1000","v":{"$error":"#NAME?"}},{"$f":"_xll.RiskData('Risk Summary'!K$48,$A66)/1000","v":{"$error":"#NAME?"}},{"$f":"_xll.RiskData('Risk Summary'!L$48,$A66)/1000","v":{"$error":"#NAME?"}},null,null,{"$f":"(_xll.RiskData(NR_to_Cash!C$18,$A66))/1000","v":{"$error":"#NAME?"}},{"$f":"(_xll.RiskData(NR_to_Cash!D$18,$A66))/1000","v":{"$error":"#NAME?"}},{"$f":"(_xll.RiskData(NR_to_Cash!E$18,$A66))/1000","v":{"$error":"#NAME?"}}]
[60,{"$f":"_xll.RiskData('Risk Summary'!J$48,$A67)/1000","v":{"$error":"#NAME?"}},{"$f":"_xll.RiskData('Risk Summary'!K$48,$A67)/1000","v":{"$error":"#NAME?"}},{"$f":"_xll.RiskData('Risk Summary'!L$48,$A67)/1000","v":{"$error":"#NAME?"}},null,null,{"$f":"(_xll.RiskData(NR_to_Cash!C$18,$A67))/1000","v":{"$error":"#NAME?"}},{"$f":"(_xll.RiskData(NR_to_Cash!D$18,$A67))/1000","v":{"$error":"#NAME?"}},{"$f":"(_xll.RiskData(NR_to_Cash!E$18,$A67))/1000","v":{"$error":"#NAME?"}}]
[61,{"$f":"_xll.RiskData('Risk Summary'!J$48,$A68)/1000","v":{"$error":"#NAME?"}},{"$f":"_xll.RiskData('Risk Summary'!K$48,$A68)/1000","v":{"$error":"#NAME?"}},{"$f":"_xll.RiskData('Risk Summary'!L$48,$A68)/1000","v":{"$error":"#NAME?"}},null,null,{"$f":"(_xll.RiskData(NR_to_Cash!C$18,$A68))/1000","v":{"$error":"#NAME?"}},{"$f":"(_xll.RiskData(NR_to_Cash!D$18,$A68))/1000","v":{"$error":"#NAME?"}},{"$f":"(_xll.RiskData(NR_to_Cash!E$18,$A68))/1000","v":{"$error":"#NAME?"}}]
[62,{"$f":"_xll.RiskData('Risk Summary'!J$48,$A69)/1000","v":{"$error":"#NAME?"}},{"$f":"_xll.RiskData('Risk Summary'!K$48,$A69)/1000","v":{"$error":"#NAME?"}},{"$f":"_xll.RiskData('Risk Summary'!L$48,$A69)/1000","v":{"$error":"#NAME?"}},null,null,{"$f":"(_xll.RiskData(NR_to_Cash!C$18,$A69))/1000","v":{"$error":"#NAME?"}},{"$f":"(_xll.RiskData(NR_to_Cash!D$18,$A69))/1000","v":{"$error":"#NAME?"}},{"$f":"(_xll.RiskData(NR_to_Cash!E$18,$A69))/1000","v":{"$error":"#NAME?"}}]
[63,{"$f":"_xll.RiskData('Risk Summary'!J$48,$A70)/1000","v":{"$error":"#NAME?"}},{"$f":"_xll.RiskData('Risk Summary'!K$48,$A70)/1000","v":{"$error":"#NAME?"}},{"$f":"_xll.RiskData('Risk Summary'!L$48,$A70)/1000","v":{"$error":"#NAME?"}},null,null,{"$f":"(_xll.RiskData(NR_to_Cash!C$18,$A70))/1000","v":{"$error":"#NAME?"}},{"$f":"(_xll.RiskData(NR_to_Cash!D$18,$A70))/1000","v":{"$error":"#NAME?"}},{"$f":"(_xll.RiskData(NR_to_Cash!E$18,$A70))/1000","v":{"$error":"#NAME?"}}]
[64,{"$f":"_xll.RiskData('Risk Summary'!J$48,$A71)/1000","v":{"$error":"#NAME?"}},{"$f":"_xll.RiskData('Risk Summary'!K$48,$A71)/1000","v":{"$error":"#NAME?"}},{"$f":"_xll.RiskData('Risk Summary'!L$48,$A71)/1000","v":{"$error":"#NAME?"}},null,null,{"$f":"(_xll.RiskData(NR_to_Cash!C$18,$A71))/1000","v":{"$error":"#NAME?"}},{"$f":"(_xll.RiskData(NR_to_Cash!D$18,$A71))/1000","v":{"$error":"#NAME?"}},{"$f":"(_xll.RiskData(NR_to_Cash!E$18,$A71))/1000","v":{"$error":"#NAME?"}}]
[65,{"$f":"_xll.RiskData('Risk Summary'!J$48,$A72)/1000","v":{"$error":"#NAME?"}},{"$f":"_xll.RiskData('Risk Summary'!K$48,$A72)/1000","v":{"$error":"#NAME?"}},{"$f":"_xll.RiskData('Risk Summary'!L$48,$A72)/1000","v":{"$error":"#NAME?"}},null,null,{"$f":"(_xll.RiskData(NR_to_Cash!C$18,$A72))/1000","v":{"$error":"#NAME?"}},{"$f":"(_xll.RiskData(NR_to_Cash!D$18,$A72))/1000","v":{"$error":"#NAME?"}},{"$f":"(_xll.RiskData(NR_to_Cash!E$18,$A72))/1000","v":{"$error":"#NAME?"}}]
[66,{"$f":"_xll.RiskData('Risk Summary'!J$48,$A73)/1000","v":{"$error":"#NAME?"}},{"$f":"_xll.RiskData('Risk Summary'!K$48,$A73)/1000","v":{"$error":"#NAME?"}},{"$f":"_xll.RiskData('Risk Summary'!L$48,$A73)/1000","v":{"$error":"#NAME?"}},null,null,{"$f":"(_xll.RiskData(NR_to_Cash!C$18,$A73))/1000","v":{"$error":"#NAME?"}},{"$f":"(_xll.RiskData(NR_to_Cash!D$18,$A73))/1000","v":{"$error":"#NAME?"}},{"$f":"(_xll.RiskData(NR_to_Cash!E$18,$A73))/1000","v":{"$error":"#NAME?"}}]
[67,{"$f":"_xll.RiskData('Risk Summary'!J$48,$A74)/1000","v":{"$error":"#NAME?"}},{"$f":"_xll.RiskData('Risk Summary'!K$48,$A74)/1000","v":{"$error":"#NAME?"}},{"$f":"_xll.RiskData('Risk Summary'!L$48,$A74)/1000","v":{"$error":"#NAME?"}},null,null,{"$f":"(_xll.RiskData(NR_to_Cash!C$18,$A74))/1000","v":{"$error":"#NAME?"}},{"$f":"(_xll.RiskData(NR_to_Cash!D$18,$A74))/1000","v":{"$error":"#NAME?"}},{"$f":"(_xll.RiskData(NR_to_Cash!E$18,$A74))/1000","v":{"$error":"#NAME?"}}]
[68,{"$f":"_xll.RiskData('Risk Summary'!J$48,$A75)/1000","v":{"$error":"#NAME?"}},{"$f":"_xll.RiskData('Risk Summary'!K$48,$A75)/1000","v":{"$error":"#NAME?"}},{"$f":"_xll.RiskData('Risk Summary'!L$48,$A75)/1000","v":{"$error":"#NAME?"}},null,null,{"$f":"(_xll.RiskData(NR_to_Cash!C$18,$A75))/1000","v":{"$error":"#NAME?"}},{"$f":"(_xll.RiskData(NR_to_Cash!D$18,$A75))/1000","v":{"$error":"#NAME?"}},{"$f":"(_xll.RiskData(NR_to_Cash!E$18,$A75))/1000","v":{"$error":"#NAME?"}}]
[69,{"$f":"_xll.RiskData('Risk Summary'!J$48,$A76)/1000","v":{"$error":"#NAME?"}},{"$f":"_xll.RiskData('Risk Summary'!K$48,$A76)/1000","v":{"$error":"#NAME?"}},{"$f":"_xll.RiskData('Risk Summary'!L$48,$A76)/1000","v":{"$error":"#NAME?"}},null,null,{"$f":"(_xll.RiskData(NR_to_Cash!C$18,$A76))/1000","v":{"$error":"#NAME?"}},{"$f":"(_xll.RiskData(NR_to_Cash!D$18,$A76))/1000","v":{"$error":"#NAME?"}},{"$f":"(_xll.RiskData(NR_to_Cash!E$18,$A76))/1000","v":{"$error":"#NAME?"}}]
[70,{"$f":"_xll.RiskData('Risk Summary'!J$48,$A77)/1000","v":{"$error":"#NAME?"}},{"$f":"_xll.RiskData('Risk Summary'!K$48,$A77)/1000","v":{"$error":"#NAME?"}},{"$f":"_xll.RiskData('Risk Summary'!L$48,$A77)/1000","v":{"$error":"#NAME?"}},null,null,{"$f":"(_xll.RiskData(NR_to_Cash!C$18,$A77))/1000","v":{"$error":"#NAME?"}},{"$f":"(_xll.RiskData(NR_to_Cash!D$18,$A77))/1000","v":{"$error":"#NAME?"}},{"$f":"(_xll.RiskData(NR_to_Cash!E$18,$A77))/1000","v":{"$error":"#NAME?"}}]
[71,{"$f":"_xll.RiskData('Risk Summary'!J$48,$A78)/1000","v":{"$error":"#NAME?"}},{"$f":"_xll.RiskData('Risk Summary'!K$48,$A78)/1000","v":{"$error":"#NAME?"}},{"$f":"_xll.RiskData('Risk Summary'!L$48,$A78)/1000","v":{"$error":"#NAME?"}},null,null,{"$f":"(_xll.RiskData(NR_to_Cash!C$18,$A78))/1000","v":{"$error":"#NAME?"}},{"$f":"(_xll.RiskData(NR_to_Cash!D$18,$A78))/1000","v":{"$error":"#NAME?"}},{"$f":"(_xll.RiskData(NR_to_Cash!E$18,$A78))/1000","v":{"$error":"#NAME?"}}]
[72,{"$f":"_xll.RiskData('Risk Summary'!J$48,$A79)/1000","v":{"$error":"#NAME?"}},{"$f":"_xll.RiskData('Risk Summary'!K$48,$A79)/1000","v":{"$error":"#NAME?"}},{"$f":"_xll.RiskData('Risk Summary'!L$48,$A79)/1000","v":{"$error":"#NAME?"}},null,null,{"$f":"(_xll.RiskData(NR_to_Cash!C$18,$A79))/1000","v":{"$error":"#NAME?"}},{"$f":"(_xll.RiskData(NR_to_Cash!D$18,$A79))/1000","v":{"$error":"#NAME?"}},{"$f":"(_xll.RiskData(NR_to_Cash!E$18,$A79))/1000","v":{"$error":"#NAME?"}}]
[73,{"$f":"_xll.RiskData('Risk Summary'!J$48,$A80)/1000","v":{"$error":"#NAME?"}},{"$f":"_xll.RiskData('Risk Summary'!K$48,$A80)/1000","v":{"$error":"#NAME?"}},{"$f":"_xll.RiskData('Risk Summary'!L$48,$A80)/1000","v":{"$error":"#NAME?"}},null,null,{"$f":"(_xll.RiskData(NR_to_Cash!C$18,$A80))/1000","v":{"$error":"#NAME?"}},{"$f":"(_xll.RiskData(NR_to_Cash!D$18,$A80))/1000","v":{"$error":"#NAME?"}},{"$f":"(_xll.RiskData(NR_to_Cash!E$18,$A80))/1000","v":{"$error":"#NAME?"}}]
[74,{"$f":"_xll.RiskData('Risk Summary'!J$48,$A81)/1000","v":{"$error":"#NAME?"}},{"$f":"_xll.RiskData('Risk Summary'!K$48,$A81)/1000","v":{"$error":"#NAME?"}},{"$f":"_xll.RiskData('Risk Summary'!L$48,$A81)/1000","v":{"$error":"#NAME?"}},null,null,{"$f":"(_xll.RiskData(NR_to_Cash!C$18,$A81))/1000","v":{"$error":"#NAME?"}},{"$f":"(_xll.RiskData(NR_to_Cash!D$18,$A81))/1000","v":{"$error":"#NAME?"}},{"$f":"(_xll.RiskData(NR_to_Cash!E$18,$A81))/1000","v":{"$error":"#NAME?"}}]
[75,{"$f":"_xll.RiskData('Risk Summary'!J$48,$A82)/1000","v":{"$error":"#NAME?"}},{"$f":"_xll.RiskData('Risk Summary'!K$48,$A82)/1000","v":{"$error":"#NAME?"}},{"$f":"_xll.RiskData('Risk Summary'!L$48,$A82)/1000","v":{"$error":"#NAME?"}},null,null,{"$f":"(_xll.RiskData(NR_to_Cash!C$18,$A82))/1000","v":{"$error":"#NAME?"}},{"$f":"(_xll.RiskData(NR_to_Cash!D$18,$A82))/1000","v":{"$error":"#NAME?"}},{"$f":"(_xll.RiskData(NR_to_Cash!E$18,$A82))/1000","v":{"$error":"#NAME?"}}]
[76,{"$f":"_xll.RiskData('Risk Summary'!J$48,$A83)/1000","v":{"$error":"#NAME?"}},{"$f":"_xll.RiskData('Risk Summary'!K$48,$A83)/1000","v":{"$error":"#NAME?"}},{"$f":"_xll.RiskData('Risk Summary'!L$48,$A83)/1000","v":{"$error":"#NAME?"}},null,null,{"$f":"(_xll.RiskData(NR_to_Cash!C$18,$A83))/1000","v":{"$error":"#NAME?"}},{"$f":"(_xll.RiskData(NR_to_Cash!D$18,$A83))/1000","v":{"$error":"#NAME?"}},{"$f":"(_xll.RiskData(NR_to_Cash!E$18,$A83))/1000","v":{"$error":"#NAME?"}}]
[77,{"$f":"_xll.RiskData('Risk Summary'!J$48,$A84)/1000","v":{"$error":"#NAME?"}},{"$f":"_xll.RiskData('Risk Summary'!K$48,$A84)/1000","v":{"$error":"#NAME?"}},{"$f":"_xll.RiskData('Risk Summary'!L$48,$A84)/1000","v":{"$error":"#NAME?"}},null,null,{"$f":"(_xll.RiskData(NR_to_Cash!C$18,$A84))/1000","v":{"$error":"#NAME?"}},{"$f":"(_xll.RiskData(NR_to_Cash!D$18,$A84))/1000","v":{"$error":"#NAME?"}},{"$f":"(_xll.RiskData(NR_to_Cash!E$18,$A84))/1000","v":{"$error":"#NAME?"}}]
[78,{"$f":"_xll.RiskData('Risk Summary'!J$48,$A85)/1000","v":{"$error":"#NAME?"}},{"$f":"_xll.RiskData('Risk Summary'!K$48,$A85)/1000","v":{"$error":"#NAME?"}},{"$f":"_xll.RiskData('Risk Summary'!L$48,$A85)/1000","v":{"$error":"#NAME?"}},null,null,{"$f":"(_xll.RiskData(NR_to_Cash!C$18,$A85))/1000","v":{"$error":"#NAME?"}},{"$f":"(_xll.RiskData(NR_to_Cash!D$18,$A85))/1000","v":{"$error":"#NAME?"}},{"$f":"(_xll.RiskData(NR_to_Cash!E$18,$A85))/1000","v":{"$error":"#NAME?"}}]
[79,{"$f":"_xll.RiskData('Risk Summary'!J$48,$A86)/1000","v":{"$error":"#NAME?"}},{"$f":"_xll.RiskData('Risk Summary'!K$48,$A86)/1000","v":{"$error":"#NAME?"}},{"$f":"_xll.RiskData('Risk Summary'!L$48,$A86)/1000","v":{"$error":"#NAME?"}},null,null,{"$f":"(_xll.RiskData(NR_to_Cash!C$18,$A86))/1000","v":{"$error":"#NAME?"}},{"$f":"(_xll.RiskData(NR_to_Cash!D$18,$A86))/1000","v":{"$error":"#NAME?"}},{"$f":"(_xll.RiskData(NR_to_Cash!E$18,$A86))/1000","v":{"$error":"#NAME?"}}]
[80,{"$f":"_xll.RiskData('Risk Summary'!J$48,$A87)/1000","v":{"$error":"#NAME?"}},{"$f":"_xll.RiskData('Risk Summary'!K$48,$A87)/1000","v":{"$error":"#NAME?"}},{"$f":"_xll.RiskData('Risk Summary'!L$48,$A87)/1000","v":{"$error":"#NAME?"}},null,null,{"$f":"(_xll.RiskData(NR_to_Cash!C$18,$A87))/1000","v":{"$error":"#NAME?"}},{"$f":"(_xll.RiskData(NR_to_Cash!D$18,$A87))/1000","v":{"$error":"#NAME?"}},{"$f":"(_xll.RiskData(NR_to_Cash!E$18,$A87))/1000","v":{"$error":"#NAME?"}}]
[81,{"$f":"_xll.RiskData('Risk Summary'!J$48,$A88)/1000","v":{"$error":"#NAME?"}},{"$f":"_xll.RiskData('Risk Summary'!K$48,$A88)/1000","v":{"$error":"#NAME?"}},{"$f":"_xll.RiskData('Risk Summary'!L$48,$A88)/1000","v":{"$error":"#NAME?"}},null,null,{"$f":"(_xll.RiskData(NR_to_Cash!C$18,$A88))/1000","v":{"$error":"#NAME?"}},{"$f":"(_xll.RiskData(NR_to_Cash!D$18,$A88))/1000","v":{"$error":"#NAME?"}},{"$f":"(_xll.RiskData(NR_to_Cash!E$18,$A88))/1000","v":{"$error":"#NAME?"}}]
[82,{"$f":"_xll.RiskData('Risk Summary'!J$48,$A89)/1000","v":{"$error":"#NAME?"}},{"$f":"_xll.RiskData('Risk Summary'!K$48,$A89)/1000","v":{"$error":"#NAME?"}},{"$f":"_xll.RiskData('Risk Summary'!L$48,$A89)/1000","v":{"$error":"#NAME?"}},null,null,{"$f":"(_xll.RiskData(NR_to_Cash!C$18,$A89))/1000","v":{"$error":"#NAME?"}},{"$f":"(_xll.RiskData(NR_to_Cash!D$18,$A89))/1000","v":{"$error":"#NAME?"}},{"$f":"(_xll.RiskData(NR_to_Cash!E$18,$A89))/1000","v":{"$error":"#NAME?"}}]
[83,{"$f":"_xll.RiskData('Risk Summary'!J$48,$A90)/1000","v":{"$error":"#NAME?"}},{"$f":"_xll.RiskData('Risk Summary'!K$48,$A90)/1000","v":{"$error":"#NAME?"}},{"$f":"_xll.RiskData('Risk Summary'!L$48,$A90)/1000","v":{"$error":"#NAME?"}},null,null,{"$f":"(_xll.RiskData(NR_to_Cash!C$18,$A90))/1000","v":{"$error":"#NAME?"}},{"$f":"(_xll.RiskData(NR_to_Cash!D$18,$A90))/1000","v":{"$error":"#NAME?"}},{"$f":"(_xll.RiskData(NR_to_Cash!E$18,$A90))/1000","v":{"$error":"#NAME?"}}]
[84,{"$f":"_xll.RiskData('Risk Summary'!J$48,$A91)/1000","v":{"$error":"#NAME?"}},{"$f":"_xll.RiskData('Risk Summary'!K$48,$A91)/1000","v":{"$error":"#NAME?"}},{"$f":"_xll.RiskData('Risk Summary'!L$48,$A91)/1000","v":{"$error":"#NAME?"}},null,null,{"$f":"(_xll.RiskData(NR_to_Cash!C$18,$A91))/1000","v":{"$error":"#NAME?"}},{"$f":"(_xll.RiskData(NR_to_Cash!D$18,$A91))/1000","v":{"$error":"#NAME?"}},{"$f":"(_xll.RiskData(NR_to_Cash!E$18,$A91))/1000","v":{"$error":"#NAME?"}}]
[85,{"$f":"_xll.RiskData('Risk Summary'!J$48,$A92)/1000","v":{"$error":"#NAME?"}},{"$f":"_xll.RiskData('Risk Summary'!K$48,$A92)/1000","v":{"$error":"#NAME?"}},{"$f":"_xll.RiskData('Risk Summary'!L$48,$A92)/1000","v":{"$error":"#NAME?"}},null,null,{"$f":"(_xll.RiskData(NR_to_Cash!C$18,$A92))/1000","v":{"$error":"#NAME?"}},{"$f":"(_xll.RiskData(NR_to_Cash!D$18,$A92))/1000","v":{"$error":"#NAME?"}},{"$f":"(_xll.RiskData(NR_to_Cash!E$18,$A92))/1000","v":{"$error":"#NAME?"}}]
[86,{"$f":"_xll.RiskData('Risk Summary'!J$48,$A93)/1000","v":{"$error":"#NAME?"}},{"$f":"_xll.RiskData('Risk Summary'!K$48,$A93)/1000","v":{"$error":"#NAME?"}},{"$f":"_xll.RiskData('Risk Summary'!L$48,$A93)/1000","v":{"$error":"#NAME?"}},null,null,{"$f":"(_xll.RiskData(NR_to_Cash!C$18,$A93))/1000","v":{"$error":"#NAME?"}},{"$f":"(_xll.RiskData(NR_to_Cash!D$18,$A93))/1000","v":{"$error":"#NAME?"}},{"$f":"(_xll.RiskData(NR_to_Cash!E$18,$A93))/1000","v":{"$error":"#NAME?"}}]
[87,{"$f":"_xll.RiskData('Risk Summary'!J$48,$A94)/1000","v":{"$error":"#NAME?"}},{"$f":"_xll.RiskData('Risk Summary'!K$48,$A94)/1000","v":{"$error":"#NAME?"}},{"$f":"_xll.RiskData('Risk Summary'!L$48,$A94)/1000","v":{"$error":"#NAME?"}},null,null,{"$f":"(_xll.RiskData(NR_to_Cash!C$18,$A94))/1000","v":{"$error":"#NAME?"}},{"$f":"(_xll.RiskData(NR_to_Cash!D$18,$A94))/1000","v":{"$error":"#NAME?"}},{"$f":"(_xll.RiskData(NR_to_Cash!E$18,$A94))/1000","v":{"$error":"#NAME?"}}]
[88,{"$f":"_xll.RiskData('Risk Summary'!J$48,$A95)/1000","v":{"$error":"#NAME?"}},{"$f":"_xll.RiskData('Risk Summary'!K$48,$A95)/1000","v":{"$error":"#NAME?"}},{"$f":"_xll.RiskData('Risk Summary'!L$48,$A95)/1000","v":{"$error":"#NAME?"}},null,null,{"$f":"(_xll.RiskData(NR_to_Cash!C$18,$A95))/1000","v":{"$error":"#NAME?"}},{"$f":"(_xll.RiskData(NR_to_Cash!D$18,$A95))/1000","v":{"$error":"#NAME?"}},{"$f":"(_xll.RiskData(NR_to_Cash!E$18,$A95))/1000","v":{"$error":"#NAME?"}}]
[89,{"$f":"_xll.RiskData('Risk Summary'!J$48,$A96)/1000","v":{"$error":"#NAME?"}},{"$f":"_xll.RiskData('Risk Summary'!K$48,$A96)/1000","v":{"$error":"#NAME?"}},{"$f":"_xll.RiskData('Risk Summary'!L$48,$A96)/1000","v":{"$error":"#NAME?"}},null,null,{"$f":"(_xll.RiskData(NR_to_Cash!C$18,$A96))/1000","v":{"$error":"#NAME?"}},{"$f":"(_xll.RiskData(NR_to_Cash!D$18,$A96))/1000","v":{"$error":"#NAME?"}},{"$f":"(_xll.RiskData(NR_to_Cash!E$18,$A96))/1000","v":{"$error":"#NAME?"}}]
[90,{"$f":"_xll.RiskData('Risk Summary'!J$48,$A97)/1000","v":{"$error":"#NAME?"}},{"$f":"_xll.RiskData('Risk Summary'!K$48,$A97)/1000","v":{"$error":"#NAME?"}},{"$f":"_xll.RiskData('Risk Summary'!L$48,$A97)/1000","v":{"$error":"#NAME?"}},null,null,{"$f":"(_xll.RiskData(NR_to_Cash!C$18,$A97))/1000","v":{"$error":"#NAME?"}},{"$f":"(_xll.RiskData(NR_to_Cash!D$18,$A97))/1000","v":{"$error":"#NAME?"}},{"$f":"(_xll.RiskData(NR_to_Cash!E$18,$A97))/1000","v":{"$error":"#NAME?"}}]
[91,{"$f":"_xll.RiskData('Risk Summary'!J$48,$A98)/1000","v":{"$error":"#NAME?"}},{"$f":"_xll.RiskData('Risk Summary'!K$48,$A98)/1000","v":{"$error":"#NAME?"}},{"$f":"_xll.RiskData('Risk Summary'!L$48,$A98)/1000","v":{"$error":"#NAME?"}},null,null,{"$f":"(_xll.RiskData(NR_to_Cash!C$18,$A98))/1000","v":{"$error":"#NAME?"}},{"$f":"(_xll.RiskData(NR_to_Cash!D$18,$A98))/1000","v":{"$error":"#NAME?"}},{"$f":"(_xll.RiskData(NR_to_Cash!E$18,$A98))/1000","v":{"$error":"#NAME?"}}]
[92,{"$f":"_xll.RiskData('Risk Summary'!J$48,$A99)/1000","v":{"$error":"#NAME?"}},{"$f":"_xll.RiskData('Risk Summary'!K$48,$A99)/1000","v":{"$error":"#NAME?"}},{"$f":"_xll.RiskData('Risk Summary'!L$48,$A99)/1000","v":{"$error":"#NAME?"}},null,null,{"$f":"(_xll.RiskData(NR_to_Cash!C$18,$A99))/1000","v":{"$error":"#NAME?"}},{"$f":"(_xll.RiskData(NR_to_Cash!D$18,$A99))/1000","v":{"$error":"#NAME?"}},{"$f":"(_xll.RiskData(NR_to_Cash!E$18,$A99))/1000","v":{"$error":"#NAME?"}}]
[93,{"$f":"_xll.RiskData('Risk Summary'!J$48,$A100)/1000","v":{"$error":"#NAME?"}},{"$f":"_xll.RiskData('Risk Summary'!K$48,$A100)/1000","v":{"$error":"#NAME?"}},{"$f":"_xll.RiskData('Risk Summary'!L$48,$A100)/1000","v":{"$error":"#NAME?"}},null,null,{"$f":"(_xll.RiskData(NR_to_Cash!C$18,$A100))/1000","v":{"$error":"#NAME?"}},{"$f":"(_xll.RiskData(NR_to_Cash!D$18,$A100))/1000","v":{"$error":"#NAME?"}},{"$f":"(_xll.RiskData(NR_to_Cash!E$18,$A100))/1000","v":{"$error":"#NAME?"}}]
[94,{"$f":"_xll.RiskData('Risk Summary'!J$48,$A101)/1000","v":{"$error":"#NAME?"}},{"$f":"_xll.RiskData('Risk Summary'!K$48,$A101)/1000","v":{"$error":"#NAME?"}},{"$f":"_xll.RiskData('Risk Summary'!L$48,$A101)/1000","v":{"$error":"#NAME?"}},null,null,{"$f":"(_xll.RiskData(NR_to_Cash!C$18,$A101))/1000","v":{"$error":"#NAME?"}},{"$f":"(_xll.RiskData(NR_to_Cash!D$18,$A101))/1000","v":{"$error":"#NAME?"}},{"$f":"(_xll.RiskData(NR_to_Cash!E$18,$A101))/1000","v":{"$error":"#NAME?"}}]
[95,{"$f":"_xll.RiskData('Risk Summary'!J$48,$A102)/1000","v":{"$error":"#NAME?"}},{"$f":"_xll.RiskData('Risk Summary'!K$48,$A102)/1000","v":{"$error":"#NAME?"}},{"$f":"_xll.RiskData('Risk Summary'!L$48,$A102)/1000","v":{"$error":"#NAME?"}},null,null,{"$f":"(_xll.RiskData(NR_to_Cash!C$18,$A102))/1000","v":{"$error":"#NAME?"}},{"$f":"(_xll.RiskData(NR_to_Cash!D$18,$A102))/1000","v":{"$error":"#NAME?"}},{"$f":"(_xll.RiskData(NR_to_Cash!E$18,$A102))/1000","v":{"$error":"#NAME?"}}]
[96,{"$f":"_xll.RiskData('Risk Summary'!J$48,$A103)/1000","v":{"$error":"#NAME?"}},{"$f":"_xll.RiskData('Risk Summary'!K$48,$A103)/1000","v":{"$error":"#NAME?"}},{"$f":"_xll.RiskData('Risk Summary'!L$48,$A103)/1000","v":{"$error":"#NAME?"}},null,null,{"$f":"(_xll.RiskData(NR_to_Cash!C$18,$A103))/1000","v":{"$error":"#NAME?"}},{"$f":"(_xll.RiskData(NR_to_Cash!D$18,$A103))/1000","v":{"$error":"#NAME?"}},{"$f":"(_xll.RiskData(NR_to_Cash!E$18,$A103))/1000","v":{"$error":"#NAME?"}}]
[97,{"$f":"_xll.RiskData('Risk Summary'!J$48,$A104)/1000","v":{"$error":"#NAME?"}},{"$f":"_xll.RiskData('Risk Summary'!K$48,$A104)/1000","v":{"$error":"#NAME?"}},{"$f":"_xll.RiskData('Risk Summary'!L$48,$A104)/1000","v":{"$error":"#NAME?"}},null,null,{"$f":"(_xll.RiskData(NR_to_Cash!C$18,$A104))/1000","v":{"$error":"#NAME?"}},{"$f":"(_xll.RiskData(NR_to_Cash!D$18,$A104))/1000","v":{"$error":"#NAME?"}},{"$f":"(_xll.RiskData(NR_to_Cash!E$18,$A104))/1000","v":{"$error":"#NAME?"}}]
[98,{"$f":"_xll.RiskData('Risk Summary'!J$48,$A105)/1000","v":{"$error":"#NAME?"}},{"$f":"_xll.RiskData('Risk Summary'!K$48,$A105)/1000","v":{"$error":"#NAME?"}},{"$f":"_xll.RiskData('Risk Summary'!L$48,$A105)/1000","v":{"$error":"#NAME?"}},null,null,{"$f":"(_xll.RiskData(NR_to_Cash!C$18,$A105))/1000","v":{"$error":"#NAME?"}},{"$f":"(_xll.RiskData(NR_to_Cash!D$18,$A105))/1000","v":{"$error":"#NAME?"}},{"$f":"(_xll.RiskData(NR_to_Cash!E$18,$A105))/1000","v":{"$error":"#NAME?"}}]
[99,{"$f":"_xll.RiskData('Risk Summary'!J$48,$A106)/1000","v":{"$error":"#NAME?"}},{"$f":"_xll.RiskData('Risk Summary'!K$48,$A106)/1000","v":{"$error":"#NAME?"}},{"$f":"_xll.RiskData('Risk Summary'!L$48,$A106)/1000","v":{"$error":"#NAME?"}},null,null,{"$f":"(_xll.RiskData(NR_to_Cash!C$18,$A106))/1000","v":{"$error":"#NAME?"}},{"$f":"(_xll.RiskData(NR_to_Cash!D$18,$A106))/1000","v":{"$error":"#NAME?"}},{"$f":"(_xll.RiskData(NR_to_Cash!E$18,$A106))/1000","v":{"$error":"#NAME?"}}]
[100,{"$f":"_xll.RiskData('Risk Summary'!J$48,$A107)/1000","v":{"$error":"#NAME?"}},{"$f":"_xll.RiskData('Risk Summary'!K$48,$A107)/1000","v":{"$error":"#NAME?"}},{"$f":"_xll.RiskData('Risk Summary'!L$48,$A107)/1000","v":{"$error":"#NAME?"}},null,null,{"$f":"(_xll.RiskData(NR_to_Cash!C$18,$A107))/1000","v":{"$error":"#NAME?"}},{"$f":"(_xll.RiskData(NR_to_Cash!D$18,$A107))/1000","v":{"$error":"#NAME?"}},{"$f":"(_xll.RiskData(NR_to_Cash!E$18,$A107))/1000","v":{"$error":"#NAME?"}}]
[101,{"$f":"_xll.RiskData('Risk Summary'!J$48,$A108)/1000","v":{"$error":"#NAME?"}},{"$f":"_xll.RiskData('Risk Summary'!K$48,$A108)/1000","v":{"$error":"#NAME?"}},{"$f":"_xll.RiskData('Risk Summary'!L$48,$A108)/1000","v":{"$error":"#NAME?"}},null,null,{"$f":"(_xll.RiskData(NR_to_Cash!C$18,$A108))/1000","v":{"$error":"#NAME?"}},{"$f":"(_xll.RiskData(NR_to_Cash!D$18,$A108))/1000","v":{"$error":"#NAME?"}},{"$f":"(_xll.RiskData(NR_to_Cash!E$18,$A108))/1000","v":{"$error":"#NAME?"}}]
[102,{"$f":"_xll.RiskData('Risk Summary'!J$48,$A109)/1000","v":{"$error":"#NAME?"}},{"$f":"_xll.RiskData('Risk Summary'!K$48,$A109)/1000","v":{"$error":"#NAME?"}},{"$f":"_xll.RiskData('Risk Summary'!L$48,$A109)/1000","v":{"$error":"#NAME?"}},null,null,{"$f":"(_xll.RiskData(NR_to_Cash!C$18,$A109))/1000","v":{"$error":"#NAME?"}},{"$f":"(_xll.RiskData(NR_to_Cash!D$18,$A109))/1000","v":{"$error":"#NAME?"}},{"$f":"(_xll.RiskData(NR_to_Cash!E$18,$A109))/1000","v":{"$error":"#NAME?"}}]
[103,{"$f":"_xll.RiskData('Risk Summary'!J$48,$A110)/1000","v":{"$error":"#NAME?"}},{"$f":"_xll.RiskData('Risk Summary'!K$48,$A110)/1000","v":{"$error":"#NAME?"}},{"$f":"_xll.RiskData('Risk Summary'!L$48,$A110)/1000","v":{"$error":"#NAME?"}},null,null,{"$f":"(_xll.RiskData(NR_to_Cash!C$18,$A110))/1000","v":{"$error":"#NAME?"}},{"$f":"(_xll.RiskData(NR_to_Cash!D$18,$A110))/1000","v":{"$error":"#NAME?"}},{"$f":"(_xll.RiskData(NR_to_Cash!E$18,$A110))/1000","v":{"$error":"#NAME?"}}]
[104,{"$f":"_xll.RiskData('Risk Summary'!J$48,$A111)/1000","v":{"$error":"#NAME?"}},{"$f":"_xll.RiskData('Risk Summary'!K$48,$A111)/1000","v":{"$error":"#NAME?"}},{"$f":"_xll.RiskData('Risk Summary'!L$48,$A111)/1000","v":{"$error":"#NAME?"}},null,null,{"$f":"(_xll.RiskData(NR_to_Cash!C$18,$A111))/1000","v":{"$error":"#NAME?"}},{"$f":"(_xll.RiskData(NR_to_Cash!D$18,$A111))/1000","v":{"$error":"#NAME?"}},{"$f":"(_xll.RiskData(NR_to_Cash!E$18,$A111))/1000","v":{"$error":"#NAME?"}}]
[105,{"$f":"_xll.RiskData('Risk Summary'!J$48,$A112)/1000","v":{"$error":"#NAME?"}},{"$f":"_xll.RiskData('Risk Summary'!K$48,$A112)/1000","v":{"$error":"#NAME?"}},{"$f":"_xll.RiskData('Risk Summary'!L$48,$A112)/1000","v":{"$error":"#NAME?"}},null,null,{"$f":"(_xll.RiskData(NR_to_Cash!C$18,$A112))/1000","v":{"$error":"#NAME?"}},{"$f":"(_xll.RiskData(NR_to_Cash!D$18,$A112))/1000","v":{"$error":"#NAME?"}},{"$f":"(_xll.RiskData(NR_to_Cash!E$18,$A112))/1000","v":{"$error":"#NAME?"}}]
[106,{"$f":"_xll.RiskData('Risk Summary'!J$48,$A113)/1000","v":{"$error":"#NAME?"}},{"$f":"_xll.RiskData('Risk Summary'!K$48,$A113)/1000","v":{"$error":"#NAME?"}},{"$f":"_xll.RiskData('Risk Summary'!L$48,$A113)/1000","v":{"$error":"#NAME?"}},null,null,{"$f":"(_xll.RiskData(NR_to_Cash!C$18,$A113))/1000","v":{"$error":"#NAME?"}},{"$f":"(_xll.RiskData(NR_to_Cash!D$18,$A113))/1000","v":{"$error":"#NAME?"}},{"$f":"(_xll.RiskData(NR_to_Cash!E$18,$A113))/1000","v":{"$error":"#NAME?"}}]
[107,{"$f":"_xll.RiskData('Risk Summary'!J$48,$A114)/1000","v":{"$error":"#NAME?"}},{"$f":"_xll.RiskData('Risk Summary'!K$48,$A114)/1000","v":{"$error":"#NAME?"}},{"$f":"_xll.RiskData('Risk Summary'!L$48,$A114)/1000","v":{"$error":"#NAME?"}},null,null,{"$f":"(_xll.RiskData(NR_to_Cash!C$18,$A114))/1000","v":{"$error":"#NAME?"}},{"$f":"(_xll.RiskData(NR_to_Cash!D$18,$A114))/1000","v":{"$error":"#NAME?"}},{"$f":"(_xll.RiskData(NR_to_Cash!E$18,$A114))/1000","v":{"$error":"#NAME?"}}]
[108,{"$f":"_xll.RiskData('Risk Summary'!J$48,$A115)/1000","v":{"$error":"#NAME?"}},{"$f":"_xll.RiskData('Risk Summary'!K$48,$A115)/1000","v":{"$error":"#NAME?"}},{"$f":"_xll.RiskData('Risk Summary'!L$48,$A115)/1000","v":{"$error":"#NAME?"}},null,null,{"$f":"(_xll.RiskData(NR_to_Cash!C$18,$A115))/1000","v":{"$error":"#NAME?"}},{"$f":"(_xll.RiskData(NR_to_Cash!D$18,$A115))/1000","v":{"$error":"#NAME?"}},{"$f":"(_xll.RiskData(NR_to_Cash!E$18,$A115))/1000","v":{"$error":"#NAME?"}}]
[109,{"$f":"_xll.RiskData('Risk Summary'!J$48,$A116)/1000","v":{"$error":"#NAME?"}},{"$f":"_xll.RiskData('Risk Summary'!K$48,$A116)/1000","v":{"$error":"#NAME?"}},{"$f":"_xll.RiskData('Risk Summary'!L$48,$A116)/1000","v":{"$error":"#NAME?"}},null,null,{"$f":"(_xll.RiskData(NR_to_Cash!C$18,$A116))/1000","v":{"$error":"#NAME?"}},{"$f":"(_xll.RiskData(NR_to_Cash!D$18,$A116))/1000","v":{"$error":"#NAME?"}},{"$f":"(_xll.RiskData(NR_to_Cash!E$18,$A116))/1000","v":{"$error":"#NAME?"}}]
[110,{"$f":"_xll.RiskData('Risk Summary'!J$48,$A117)/1000","v":{"$error":"#NAME?"}},{"$f":"_xll.RiskData('Risk Summary'!K$48,$A117)/1000","v":{"$error":"#NAME?"}},{"$f":"_xll.RiskData('Risk Summary'!L$48,$A117)/1000","v":{"$error":"#NAME?"}},null,null,{"$f":"(_xll.RiskData(NR_to_Cash!C$18,$A117))/1000","v":{"$error":"#NAME?"}},{"$f":"(_xll.RiskData(NR_to_Cash!D$18,$A117))/1000","v":{"$error":"#NAME?"}},{"$f":"(_xll.RiskData(NR_to_Cash!E$18,$A117))/1000","v":{"$error":"#NAME?"}}]
[111,{"$f":"_xll.RiskData('Risk Summary'!J$48,$A118)/1000","v":{"$error":"#NAME?"}},{"$f":"_xll.RiskData('Risk Summary'!K$48,$A118)/1000","v":{"$error":"#NAME?"}},{"$f":"_xll.RiskData('Risk Summary'!L$48,$A118)/1000","v":{"$error":"#NAME?"}},null,null,{"$f":"(_xll.RiskData(NR_to_Cash!C$18,$A118))/1000","v":{"$error":"#NAME?"}},{"$f":"(_xll.RiskData(NR_to_Cash!D$18,$A118))/1000","v":{"$error":"#NAME?"}},{"$f":"(_xll.RiskData(NR_to_Cash!E$18,$A118))/1000","v":{"$error":"#NAME?"}}]
[112,{"$f":"_xll.RiskData('Risk Summary'!J$48,$A119)/1000","v":{"$error":"#NAME?"}},{"$f":"_xll.RiskData('Risk Summary'!K$48,$A119)/1000","v":{"$error":"#NAME?"}},{"$f":"_xll.RiskData('Risk Summary'!L$48,$A119)/1000","v":{"$error":"#NAME?"}},null,null,{"$f":"(_xll.RiskData(NR_to_Cash!C$18,$A119))/1000","v":{"$error":"#NAME?"}},{"$f":"(_xll.RiskData(NR_to_Cash!D$18,$A119))/1000","v":{"$error":"#NAME?"}},{"$f":"(_xll.RiskData(NR_to_Cash!E$18,$A119))/1000","v":{"$error":"#NAME?"}}]
[113,{"$f":"_xll.RiskData('Risk Summary'!J$48,$A120)/1000","v":{"$error":"#NAME?"}},{"$f":"_xll.RiskData('Risk Summary'!K$48,$A120)/1000","v":{"$error":"#NAME?"}},{"$f":"_xll.RiskData('Risk Summary'!L$48,$A120)/1000","v":{"$error":"#NAME?"}},null,null,{"$f":"(_xll.RiskData(NR_to_Cash!C$18,$A120))/1000","v":{"$error":"#NAME?"}},{"$f":"(_xll.RiskData(NR_to_Cash!D$18,$A120))/1000","v":{"$error":"#NAME?"}},{"$f":"(_xll.RiskData(NR_to_Cash!E$18,$A120))/1000","v":{"$error":"#NAME?"}}]
[114,{"$f":"_xll.RiskData('Risk Summary'!J$48,$A121)/1000","v":{"$error":"#NAME?"}},{"$f":"_xll.RiskData('Risk Summary'!K$48,$A121)/1000","v":{"$error":"#NAME?"}},{"$f":"_xll.RiskData('Risk Summary'!L$48,$A121)/1000","v":{"$error":"#NAME?"}},null,null,{"$f":"(_xll.RiskData(NR_to_Cash!C$18,$A121))/1000","v":{"$error":"#NAME?"}},{"$f":"(_xll.RiskData(NR_to_Cash!D$18,$A121))/1000","v":{"$error":"#NAME?"}},{"$f":"(_xll.RiskData(NR_to_Cash!E$18,$A121))/1000","v":{"$error":"#NAME?"}}]
[115,{"$f":"_xll.RiskData('Risk Summary'!J$48,$A122)/1000","v":{"$error":"#NAME?"}},{"$f":"_xll.RiskData('Risk Summary'!K$48,$A122)/1000","v":{"$error":"#NAME?"}},{"$f":"_xll.RiskData('Risk Summary'!L$48,$A122)/1000","v":{"$error":"#NAME?"}},null,null,{"$f":"(_xll.RiskData(NR_to_Cash!C$18,$A122))/1000","v":{"$error":"#NAME?"}},{"$f":"(_xll.RiskData(NR_to_Cash!D$18,$A122))/1000","v":{"$error":"#NAME?"}},{"$f":"(_xll.RiskData(NR_to_Cash!E$18,$A122))/1000","v":{"$error":"#NAME?"}}]
[116,{"$f":"_xll.RiskData('Risk Summary'!J$48,$A123)/1000","v":{"$error":"#NAME?"}},{"$f":"_xll.RiskData('Risk Summary'!K$48,$A123)/1000","v":{"$error":"#NAME?"}},{"$f":"_xll.RiskData('Risk Summary'!L$48,$A123)/1000","v":{"$error":"#NAME?"}},null,null,{"$f":"(_xll.RiskData(NR_to_Cash!C$18,$A123))/1000","v":{"$error":"#NAME?"}},{"$f":"(_xll.RiskData(NR_to_Cash!D$18,$A123))/1000","v":{"$error":"#NAME?"}},{"$f":"(_xll.RiskData(NR_to_Cash!E$18,$A123))/1000","v":{"$error":"#NAME?"}}]
[117,{"$f":"_xll.RiskData('Risk Summary'!J$48,$A124)/1000","v":{"$error":"#NAME?"}},{"$f":"_xll.RiskData('Risk Summary'!K$48,$A124)/1000","v":{"$error":"#NAME?"}},{"$f":"_xll.RiskData('Risk Summary'!L$48,$A124)/1000","v":{"$error":"#NAME?"}},null,null,{"$f":"(_xll.RiskData(NR_to_Cash!C$18,$A124))/1000","v":{"$error":"#NAME?"}},{"$f":"(_xll.RiskData(NR_to_Cash!D$18,$A124))/1000","v":{"$error":"#NAME?"}},{"$f":"(_xll.RiskData(NR_to_Cash!E$18,$A124))/1000","v":{"$error":"#NAME?"}}]
[118,{"$f":"_xll.RiskData('Risk Summary'!J$48,$A125)/1000","v":{"$error":"#NAME?"}},{"$f":"_xll.RiskData('Risk Summary'!K$48,$A125)/1000","v":{"$error":"#NAME?"}},{"$f":"_xll.RiskData('Risk Summary'!L$48,$A125)/1000","v":{"$error":"#NAME?"}},null,null,{"$f":"(_xll.RiskData(NR_to_Cash!C$18,$A125))/1000","v":{"$error":"#NAME?"}},{"$f":"(_xll.RiskData(NR_to_Cash!D$18,$A125))/1000","v":{"$error":"#NAME?"}},{"$f":"(_xll.RiskData(NR_to_Cash!E$18,$A125))/1000","v":{"$error":"#NAME?"}}]
[119,{"$f":"_xll.RiskData('Risk Summary'!J$48,$A126)/1000","v":{"$error":"#NAME?"}},{"$f":"_xll.RiskData('Risk Summary'!K$48,$A126)/1000","v":{"$error":"#NAME?"}},{"$f":"_xll.RiskData('Risk Summary'!L$48,$A126)/1000","v":{"$error":"#NAME?"}},null,null,{"$f":"(_xll.RiskData(NR_to_Cash!C$18,$A126))/1000","v":{"$error":"#NAME?"}},{"$f":"(_xll.RiskData(NR_to_Cash!D$18,$A126))/1000","v":{"$error":"#NAME?"}},{"$f":"(_xll.RiskData(NR_to_Cash!E$18,$A126))/1000","v":{"$error":"#NAME?"}}]
[120,{"$f":"_xll.RiskData('Risk Summary'!J$48,$A127)/1000","v":{"$error":"#NAME?"}},{"$f":"_xll.RiskData('Risk Summary'!K$48,$A127)/1000","v":{"$error":"#NAME?"}},{"$f":"_xll.RiskData('Risk Summary'!L$48,$A127)/1000","v":{"$error":"#NAME?"}},null,null,{"$f":"(_xll.RiskData(NR_to_Cash!C$18,$A127))/1000","v":{"$error":"#NAME?"}},{"$f":"(_xll.RiskData(NR_to_Cash!D$18,$A127))/1000","v":{"$error":"#NAME?"}},{"$f":"(_xll.RiskData(NR_to_Cash!E$18,$A127))/1000","v":{"$error":"#NAME?"}}]
[121,{"$f":"_xll.RiskData('Risk Summary'!J$48,$A128)/1000","v":{"$error":"#NAME?"}},{"$f":"_xll.RiskData('Risk Summary'!K$48,$A128)/1000","v":{"$error":"#NAME?"}},{"$f":"_xll.RiskData('Risk Summary'!L$48,$A128)/1000","v":{"$error":"#NAME?"}},null,null,{"$f":"(_xll.RiskData(NR_to_Cash!C$18,$A128))/1000","v":{"$error":"#NAME?"}},{"$f":"(_xll.RiskData(NR_to_Cash!D$18,$A128))/1000","v":{"$error":"#NAME?"}},{"$f":"(_xll.RiskData(NR_to_Cash!E$18,$A128))/1000","v":{"$error":"#NAME?"}}]
[122,{"$f":"_xll.RiskData('Risk Summary'!J$48,$A129)/1000","v":{"$error":"#NAME?"}},{"$f":"_xll.RiskData('Risk Summary'!K$48,$A129)/1000","v":{"$error":"#NAME?"}},{"$f":"_xll.RiskData('Risk Summary'!L$48,$A129)/1000","v":{"$error":"#NAME?"}},null,null,{"$f":"(_xll.RiskData(NR_to_Cash!C$18,$A129))/1000","v":{"$error":"#NAME?"}},{"$f":"(_xll.RiskData(NR_to_Cash!D$18,$A129))/1000","v":{"$error":"#NAME?"}},{"$f":"(_xll.RiskData(NR_to_Cash!E$18,$A129))/1000","v":{"$error":"#NAME?"}}]
[123,{"$f":"_xll.RiskData('Risk Summary'!J$48,$A130)/1000","v":{"$error":"#NAME?"}},{"$f":"_xll.RiskData('Risk Summary'!K$48,$A130)/1000","v":{"$error":"#NAME?"}},{"$f":"_xll.RiskData('Risk Summary'!L$48,$A130)/1000","v":{"$error":"#NAME?"}},null,null,{"$f":"(_xll.RiskData(NR_to_Cash!C$18,$A130))/1000","v":{"$error":"#NAME?"}},{"$f":"(_xll.RiskData(NR_to_Cash!D$18,$A130))/1000","v":{"$error":"#NAME?"}},{"$f":"(_xll.RiskData(NR_to_Cash!E$18,$A130))/1000","v":{"$error":"#NAME?"}}]
[124,{"$f":"_xll.RiskData('Risk Summary'!J$48,$A131)/1000","v":{"$error":"#NAME?"}},{"$f":"_xll.RiskData('Risk Summary'!K$48,$A131)/1000","v":{"$error":"#NAME?"}},{"$f":"_xll.RiskData('Risk Summary'!L$48,$A131)/1000","v":{"$error":"#NAME?"}},null,null,{"$f":"(_xll.RiskData(NR_to_Cash!C$18,$A131))/1000","v":{"$error":"#NAME?"}},{"$f":"(_xll.RiskData(NR_to_Cash!D$18,$A131))/1000","v":{"$error":"#NAME?"}},{"$f":"(_xll.RiskData(NR_to_Cash!E$18,$A131))/1000","v":{"$error":"#NAME?"}}]
[125,{"$f":"_xll.RiskData('Risk Summary'!J$48,$A132)/1000","v":{"$error":"#NAME?"}},{"$f":"_xll.RiskData('Risk Summary'!K$48,$A132)/1000","v":{"$error":"#NAME?"}},{"$f":"_xll.RiskData('Risk Summary'!L$48,$A132)/1000","v":{"$error":"#NAME?"}},null,null,{"$f":"(_xll.RiskData(NR_to_Cash!C$18,$A132))/1000","v":{"$error":"#NAME?"}},{"$f":"(_xll.RiskData(NR_to_Cash!D$18,$A132))/1000","v":{"$error":"#NAME?"}},{"$f":"(_xll.RiskData(NR_to_Cash!E$18,$A132))/1000","v":{"$error":"#NAME?"}}]
[126,{"$f":"_xll.RiskData('Risk Summary'!J$48,$A133)/1000","v":{"$error":"#NAME?"}},{"$f":"_xll.RiskData('Risk Summary'!K$48,$A133)/1000","v":{"$error":"#NAME?"}},{"$f":"_xll.RiskData('Risk Summary'!L$48,$A133)/1000","v":{"$error":"#NAME?"}},null,null,{"$f":"(_xll.RiskData(NR_to_Cash!C$18,$A133))/1000","v":{"$error":"#NAME?"}},{"$f":"(_xll.RiskData(NR_to_Cash!D$18,$A133))/1000","v":{"$error":"#NAME?"}},{"$f":"(_xll.RiskData(NR_to_Cash!E$18,$A133))/1000","v":{"$error":"#NAME?"}}]
[127,{"$f":"_xll.RiskData('Risk Summary'!J$48,$A134)/1000","v":{"$error":"#NAME?"}},{"$f":"_xll.RiskData('Risk Summary'!K$48,$A134)/1000","v":{"$error":"#NAME?"}},{"$f":"_xll.RiskData('Risk Summary'!L$48,$A134)/1000","v":{"$error":"#NAME?"}},null,null,{"$f":"(_xll.RiskData(NR_to_Cash!C$18,$A134))/1000","v":{"$error":"#NAME?"}},{"$f":"(_xll.RiskData(NR_to_Cash!D$18,$A134))/1000","v":{"$error":"#NAME?"}},{"$f":"(_xll.RiskData(NR_to_Cash!E$18,$A134))/1000","v":{"$error":"#NAME?"}}]
[128,{"$f":"_xll.RiskData('Risk Summary'!J$48,$A135)/1000","v":{"$error":"#NAME?"}},{"$f":"_xll.RiskData('Risk Summary'!K$48,$A135)/1000","v":{"$error":"#NAME?"}},{"$f":"_xll.RiskData('Risk Summary'!L$48,$A135)/1000","v":{"$error":"#NAME?"}},null,null,{"$f":"(_xll.RiskData(NR_to_Cash!C$18,$A135))/1000","v":{"$error":"#NAME?"}},{"$f":"(_xll.RiskData(NR_to_Cash!D$18,$A135))/1000","v":{"$error":"#NAME?"}},{"$f":"(_xll.RiskData(NR_to_Cash!E$18,$A135))/1000","v":{"$error":"#NAME?"}}]
[129,{"$f":"_xll.RiskData('Risk Summary'!J$48,$A136)/1000","v":{"$error":"#NAME?"}},{"$f":"_xll.RiskData('Risk Summary'!K$48,$A136)/1000","v":{"$error":"#NAME?"}},{"$f":"_xll.RiskData('Risk Summary'!L$48,$A136)/1000","v":{"$error":"#NAME?"}},null,null,{"$f":"(_xll.RiskData(NR_to_Cash!C$18,$A136))/1000","v":{"$error":"#NAME?"}},{"$f":"(_xll.RiskData(NR_to_Cash!D$18,$A136))/1000","v":{"$error":"#NAME?"}},{"$f":"(_xll.RiskData(NR_to_Cash!E$18,$A136))/1000","v":{"$error":"#NAME?"}}]
[130,{"$f":"_xll.RiskData('Risk Summary'!J$48,$A137)/1000","v":{"$error":"#NAME?"}},{"$f":"_xll.RiskData('Risk Summary'!K$48,$A137)/1000","v":{"$error":"#NAME?"}},{"$f":"_xll.RiskData('Risk Summary'!L$48,$A137)/1000","v":{"$error":"#NAME?"}},null,null,{"$f":"(_xll.RiskData(NR_to_Cash!C$18,$A137))/1000","v":{"$error":"#NAME?"}},{"$f":"(_xll.RiskData(NR_to_Cash!D$18,$A137))/1000","v":{"$error":"#NAME?"}},{"$f":"(_xll.RiskData(NR_to_Cash!E$18,$A137))/1000","v":{"$error":"#NAME?"}}]
[131,{"$f":"_xll.RiskData('Risk Summary'!J$48,$A138)/1000","v":{"$error":"#NAME?"}},{"$f":"_xll.RiskData('Risk Summary'!K$48,$A138)/1000","v":{"$error":"#NAME?"}},{"$f":"_xll.RiskData('Risk Summary'!L$48,$A138)/1000","v":{"$error":"#NAME?"}},null,null,{"$f":"(_xll.RiskData(NR_to_Cash!C$18,$A138))/1000","v":{"$error":"#NAME?"}},{"$f":"(_xll.RiskData(NR_to_Cash!D$18,$A138))/1000","v":{"$error":"#NAME?"}},{"$f":"(_xll.RiskData(NR_to_Cash!E$18,$A138))/1000","v":{"$error":"#NAME?"}}]
[132,{"$f":"_xll.RiskData('Risk Summary'!J$48,$A139)/1000","v":{"$error":"#NAME?"}},{"$f":"_xll.RiskData('Risk Summary'!K$48,$A139)/1000","v":{"$error":"#NAME?"}},{"$f":"_xll.RiskData('Risk Summary'!L$48,$A139)/1000","v":{"$error":"#NAME?"}},null,null,{"$f":"(_xll.RiskData(NR_to_Cash!C$18,$A139))/1000","v":{"$error":"#NAME?"}},{"$f":"(_xll.RiskData(NR_to_Cash!D$18,$A139))/1000","v":{"$error":"#NAME?"}},{"$f":"(_xll.RiskData(NR_to_Cash!E$18,$A139))/1000","v":{"$error":"#NAME?"}}]
[133,{"$f":"_xll.RiskData('Risk Summary'!J$48,$A140)/1000","v":{"$error":"#NAME?"}},{"$f":"_xll.RiskData('Risk Summary'!K$48,$A140)/1000","v":{"$error":"#NAME?"}},{"$f":"_xll.RiskData('Risk Summary'!L$48,$A140)/1000","v":{"$error":"#NAME?"}},null,null,{"$f":"(_xll.RiskData(NR_to_Cash!C$18,$A140))/1000","v":{"$error":"#NAME?"}},{"$f":"(_xll.RiskData(NR_to_Cash!D$18,$A140))/1000","v":{"$error":"#NAME?"}},{"$f":"(_xll.RiskData(NR_to_Cash!E$18,$A140))/1000","v":{"$error":"#NAME?"}}]
[134,{"$f":"_xll.RiskData('Risk Summary'!J$48,$A141)/1000","v":{"$error":"#NAME?"}},{"$f":"_xll.RiskData('Risk Summary'!K$48,$A141)/1000","v":{"$error":"#NAME?"}},{"$f":"_xll.RiskData('Risk Summary'!L$48,$A141)/1000","v":{"$error":"#NAME?"}},null,null,{"$f":"(_xll.RiskData(NR_to_Cash!C$18,$A141))/1000","v":{"$error":"#NAME?"}},{"$f":"(_xll.RiskData(NR_to_Cash!D$18,$A141))/1000","v":{"$error":"#NAME?"}},{"$f":"(_xll.RiskData(NR_to_Cash!E$18,$A141))/1000","v":{"$error":"#NAME?"}}]
[135,{"$f":"_xll.RiskData('Risk Summary'!J$48,$A142)/1000","v":{"$error":"#NAME?"}},{"$f":"_xll.RiskData('Risk Summary'!K$48,$A142)/1000","v":{"$error":"#NAME?"}},{"$f":"_xll.RiskData('Risk Summary'!L$48,$A142)/1000","v":{"$error":"#NAME?"}},null,null,{"$f":"(_xll.RiskData(NR_to_Cash!C$18,$A142))/1000","v":{"$error":"#NAME?"}},{"$f":"(_xll.RiskData(NR_to_Cash!D$18,$A142))/1000","v":{"$error":"#NAME?"}},{"$f":"(_xll.RiskData(NR_to_Cash!E$18,$A142))/1000","v":{"$error":"#NAME?"}}]
[136,{"$f":"_xll.RiskData('Risk Summary'!J$48,$A143)/1000","v":{"$error":"#NAME?"}},{"$f":"_xll.RiskData('Risk Summary'!K$48,$A143)/1000","v":{"$error":"#NAME?"}},{"$f":"_xll.RiskData('Risk Summary'!L$48,$A143)/1000","v":{"$error":"#NAME?"}},null,null,{"$f":"(_xll.RiskData(NR_to_Cash!C$18,$A143))/1000","v":{"$error":"#NAME?"}},{"$f":"(_xll.RiskData(NR_to_Cash!D$18,$A143))/1000","v":{"$error":"#NAME?"}},{"$f":"(_xll.RiskData(NR_to_Cash!E$18,$A143))/1000","v":{"$error":"#NAME?"}}]
[137,{"$f":"_xll.RiskData('Risk Summary'!J$48,$A144)/1000","v":{"$error":"#NAME?"}},{"$f":"_xll.RiskData('Risk Summary'!K$48,$A144)/1000","v":{"$error":"#NAME?"}},{"$f":"_xll.RiskData('Risk Summary'!L$48,$A144)/1000","v":{"$error":"#NAME?"}},null,null,{"$f":"(_xll.RiskData(NR_to_Cash!C$18,$A144))/1000","v":{"$error":"#NAME?"}},{"$f":"(_xll.RiskData(NR_to_Cash!D$18,$A144))/1000","v":{"$error":"#NAME?"}},{"$f":"(_xll.RiskData(NR_to_Cash!E$18,$A144))/1000","v":{"$error":"#NAME?"}}]
[138,{"$f":"_xll.RiskData('Risk Summary'!J$48,$A145)/1000","v":{"$error":"#NAME?"}},{"$f":"_xll.RiskData('Risk Summary'!K$48,$A145)/1000","v":{"$error":"#NAME?"}},{"$f":"_xll.RiskData('Risk Summary'!L$48,$A145)/1000","v":{"$error":"#NAME?"}},null,null,{"$f":"(_xll.RiskData(NR_to_Cash!C$18,$A145))/1000","v":{"$error":"#NAME?"}},{"$f":"(_xll.RiskData(NR_to_Cash!D$18,$A145))/1000","v":{"$error":"#NAME?"}},{"$f":"(_xll.RiskData(NR_to_Cash!E$18,$A145))/1000","v":{"$error":"#NAME?"}}]
[139,{"$f":"_xll.RiskData('Risk Summary'!J$48,$A146)/1000","v":{"$error":"#NAME?"}},{"$f":"_xll.RiskData('Risk Summary'!K$48,$A146)/1000","v":{"$error":"#NAME?"}},{"$f":"_xll.RiskData('Risk Summary'!L$48,$A146)/1000","v":{"$error":"#NAME?"}},null,null,{"$f":"(_xll.RiskData(NR_to_Cash!C$18,$A146))/1000","v":{"$error":"#NAME?"}},{"$f":"(_xll.RiskData(NR_to_Cash!D$18,$A146))/1000","v":{"$error":"#NAME?"}},{"$f":"(_xll.RiskData(NR_to_Cash!E$18,$A146))/1000","v":{"$error":"#NAME?"}}]
[140,{"$f":"_xll.RiskData('Risk Summary'!J$48,$A147)/1000","v":{"$error":"#NAME?"}},{"$f":"_xll.RiskData('Risk Summary'!K$48,$A147)/1000","v":{"$error":"#NAME?"}},{"$f":"_xll.RiskData('Risk Summary'!L$48,$A147)/1000","v":{"$error":"#NAME?"}},null,null,{"$f":"(_xll.RiskData(NR_to_Cash!C$18,$A147))/1000","v":{"$error":"#NAME?"}},{"$f":"(_xll.RiskData(NR_to_Cash!D$18,$A147))/1000","v":{"$error":"#NAME?"}},{"$f":"(_xll.RiskData(NR_to_Cash!E$18,$A147))/1000","v":{"$error":"#NAME?"}}]
[141,{"$f":"_xll.RiskData('Risk Summary'!J$48,$A148)/1000","v":{"$error":"#NAME?"}},{"$f":"_xll.RiskData('Risk Summary'!K$48,$A148)/1000","v":{"$error":"#NAME?"}},{"$f":"_xll.RiskData('Risk Summary'!L$48,$A148)/1000","v":{"$error":"#NAME?"}},null,null,{"$f":"(_xll.RiskData(NR_to_Cash!C$18,$A148))/1000","v":{"$error":"#NAME?"}},{"$f":"(_xll.RiskData(NR_to_Cash!D$18,$A148))/1000","v":{"$error":"#NAME?"}},{"$f":"(_xll.RiskData(NR_to_Cash!E$18,$A148))/1000","v":{"$error":"#NAME?"}}]
[142,{"$f":"_xll.RiskData('Risk Summary'!J$48,$A149)/1000","v":{"$error":"#NAME?"}},{"$f":"_xll.RiskData('Risk Summary'!K$48,$A149)/1000","v":{"$error":"#NAME?"}},{"$f":"_xll.RiskData('Risk Summary'!L$48,$A149)/1000","v":{"$error":"#NAME?"}},null,null,{"$f":"(_xll.RiskData(NR_to_Cash!C$18,$A149))/1000","v":{"$error":"#NAME?"}},{"$f":"(_xll.RiskData(NR_to_Cash!D$18,$A149))/1000","v":{"$error":"#NAME?"}},{"$f":"(_xll.RiskData(NR_to_Cash!E$18,$A149))/1000","v":{"$error":"#NAME?"}}]
[143,{"$f":"_xll.RiskData('Risk Summary'!J$48,$A150)/1000","v":{"$error":"#NAME?"}},{"$f":"_xll.RiskData('Risk Summary'!K$48,$A150)/1000","v":{"$error":"#NAME?"}},{"$f":"_xll.RiskData('Risk Summary'!L$48,$A150)/1000","v":{"$error":"#NAME?"}},null,null,{"$f":"(_xll.RiskData(NR_to_Cash!C$18,$A150))/1000","v":{"$error":"#NAME?"}},{"$f":"(_xll.RiskData(NR_to_Cash!D$18,$A150))/1000","v":{"$error":"#NAME?"}},{"$f":"(_xll.RiskData(NR_to_Cash!E$18,$A150))/1000","v":{"$error":"#NAME?"}}]
[144,{"$f":"_xll.RiskData('Risk Summary'!J$48,$A151)/1000","v":{"$error":"#NAME?"}},{"$f":"_xll.RiskData('Risk Summary'!K$48,$A151)/1000","v":{"$error":"#NAME?"}},{"$f":"_xll.RiskData('Risk Summary'!L$48,$A151)/1000","v":{"$error":"#NAME?"}},null,null,{"$f":"(_xll.RiskData(NR_to_Cash!C$18,$A151))/1000","v":{"$error":"#NAME?"}},{"$f":"(_xll.RiskData(NR_to_Cash!D$18,$A151))/1000","v":{"$error":"#NAME?"}},{"$f":"(_xll.RiskData(NR_to_Cash!E$18,$A151))/1000","v":{"$error":"#NAME?"}}]
[145,{"$f":"_xll.RiskData('Risk Summary'!J$48,$A152)/1000","v":{"$error":"#NAME?"}},{"$f":"_xll.RiskData('Risk Summary'!K$48,$A152)/1000","v":{"$error":"#NAME?"}},{"$f":"_xll.RiskData('Risk Summary'!L$48,$A152)/1000","v":{"$error":"#NAME?"}},null,null,{"$f":"(_xll.RiskData(NR_to_Cash!C$18,$A152))/1000","v":{"$error":"#NAME?"}},{"$f":"(_xll.RiskData(NR_to_Cash!D$18,$A152))/1000","v":{"$error":"#NAME?"}},{"$f":"(_xll.RiskData(NR_to_Cash!E$18,$A152))/1000","v":{"$error":"#NAME?"}}]
[146,{"$f":"_xll.RiskData('Risk Summary'!J$48,$A153)/1000","v":{"$error":"#NAME?"}},{"$f":"_xll.RiskData('Risk Summary'!K$48,$A153)/1000","v":{"$error":"#NAME?"}},{"$f":"_xll.RiskData('Risk Summary'!L$48,$A153)/1000","v":{"$error":"#NAME?"}},null,null,{"$f":"(_xll.RiskData(NR_to_Cash!C$18,$A153))/1000","v":{"$error":"#NAME?"}},{"$f":"(_xll.RiskData(NR_to_Cash!D$18,$A153))/1000","v":{"$error":"#NAME?"}},{"$f":"(_xll.RiskData(NR_to_Cash!E$18,$A153))/1000","v":{"$error":"#NAME?"}}]
[147,{"$f":"_xll.RiskData('Risk Summary'!J$48,$A154)/1000","v":{"$error":"#NAME?"}},{"$f":"_xll.RiskData('Risk Summary'!K$48,$A154)/1000","v":{"$error":"#NAME?"}},{"$f":"_xll.RiskData('Risk Summary'!L$48,$A154)/1000","v":{"$error":"#NAME?"}},null,null,{"$f":"(_xll.RiskData(NR_to_Cash!C$18,$A154))/1000","v":{"$error":"#NAME?"}},{"$f":"(_xll.RiskData(NR_to_Cash!D$18,$A154))/1000","v":{"$error":"#NAME?"}},{"$f":"(_xll.RiskData(NR_to_Cash!E$18,$A154))/1000","v":{"$error":"#NAME?"}}]
[148,{"$f":"_xll.RiskData('Risk Summary'!J$48,$A155)/1000","v":{"$error":"#NAME?"}},{"$f":"_xll.RiskData('Risk Summary'!K$48,$A155)/1000","v":{"$error":"#NAME?"}},{"$f":"_xll.RiskData('Risk Summary'!L$48,$A155)/1000","v":{"$error":"#NAME?"}},null,null,{"$f":"(_xll.RiskData(NR_to_Cash!C$18,$A155))/1000","v":{"$error":"#NAME?"}},{"$f":"(_xll.RiskData(NR_to_Cash!D$18,$A155))/1000","v":{"$error":"#NAME?"}},{"$f":"(_xll.RiskData(NR_to_Cash!E$18,$A155))/1000","v":{"$error":"#NAME?"}}]
[149,{"$f":"_xll.RiskData('Risk Summary'!J$48,$A156)/1000","v":{"$error":"#NAME?"}},{"$f":"_xll.RiskData('Risk Summary'!K$48,$A156)/1000","v":{"$error":"#NAME?"}},{"$f":"_xll.RiskData('Risk Summary'!L$48,$A156)/1000","v":{"$error":"#NAME?"}},null,null,{"$f":"(_xll.RiskData(NR_to_Cash!C$18,$A156))/1000","v":{"$error":"#NAME?"}},{"$f":"(_xll.RiskData(NR_to_Cash!D$18,$A156))/1000","v":{"$error":"#NAME?"}},{"$f":"(_xll.RiskData(NR_to_Cash!E$18,$A156))/1000","v":{"$error":"#NAME?"}}]
[150,{"$f":"_xll.RiskData('Risk Summary'!J$48,$A157)/1000","v":{"$error":"#NAME?"}},{"$f":"_xll.RiskData('Risk Summary'!K$48,$A157)/1000","v":{"$error":"#NAME?"}},{"$f":"_xll.RiskData('Risk Summary'!L$48,$A157)/1000","v":{"$error":"#NAME?"}},null,null,{"$f":"(_xll.RiskData(NR_to_Cash!C$18,$A157))/1000","v":{"$error":"#NAME?"}},{"$f":"(_xll.RiskData(NR_to_Cash!D$18,$A157))/1000","v":{"$error":"#NAME?"}},{"$f":"(_xll.RiskData(NR_to_Cash!E$18,$A157))/1000","v":{"$error":"#NAME?"}}]
[151,{"$f":"_xll.RiskData('Risk Summary'!J$48,$A158)/1000","v":{"$error":"#NAME?"}},{"$f":"_xll.RiskData('Risk Summary'!K$48,$A158)/1000","v":{"$error":"#NAME?"}},{"$f":"_xll.RiskData('Risk Summary'!L$48,$A158)/1000","v":{"$error":"#NAME?"}},null,null,{"$f":"(_xll.RiskData(NR_to_Cash!C$18,$A158))/1000","v":{"$error":"#NAME?"}},{"$f":"(_xll.RiskData(NR_to_Cash!D$18,$A158))/1000","v":{"$error":"#NAME?"}},{"$f":"(_xll.RiskData(NR_to_Cash!E$18,$A158))/1000","v":{"$error":"#NAME?"}}]
[152,{"$f":"_xll.RiskData('Risk Summary'!J$48,$A159)/1000","v":{"$error":"#NAME?"}},{"$f":"_xll.RiskData('Risk Summary'!K$48,$A159)/1000","v":{"$error":"#NAME?"}},{"$f":"_xll.RiskData('Risk Summary'!L$48,$A159)/1000","v":{"$error":"#NAME?"}},null,null,{"$f":"(_xll.RiskData(NR_to_Cash!C$18,$A159))/1000","v":{"$error":"#NAME?"}},{"$f":"(_xll.RiskData(NR_to_Cash!D$18,$A159))/1000","v":{"$error":"#NAME?"}},{"$f":"(_xll.RiskData(NR_to_Cash!E$18,$A159))/1000","v":{"$error":"#NAME?"}}]
[153,{"$f":"_xll.RiskData('Risk Summary'!J$48,$A160)/1000","v":{"$error":"#NAME?"}},{"$f":"_xll.RiskData('Risk Summary'!K$48,$A160)/1000","v":{"$error":"#NAME?"}},{"$f":"_xll.RiskData('Risk Summary'!L$48,$A160)/1000","v":{"$error":"#NAME?"}},null,null,{"$f":"(_xll.RiskData(NR_to_Cash!C$18,$A160))/1000","v":{"$error":"#NAME?"}},{"$f":"(_xll.RiskData(NR_to_Cash!D$18,$A160))/1000","v":{"$error":"#NAME?"}},{"$f":"(_xll.RiskData(NR_to_Cash!E$18,$A160))/1000","v":{"$error":"#NAME?"}}]
[154,{"$f":"_xll.RiskData('Risk Summary'!J$48,$A161)/1000","v":{"$error":"#NAME?"}},{"$f":"_xll.RiskData('Risk Summary'!K$48,$A161)/1000","v":{"$error":"#NAME?"}},{"$f":"_xll.RiskData('Risk Summary'!L$48,$A161)/1000","v":{"$error":"#NAME?"}},null,null,{"$f":"(_xll.RiskData(NR_to_Cash!C$18,$A161))/1000","v":{"$error":"#NAME?"}},{"$f":"(_xll.RiskData(NR_to_Cash!D$18,$A161))/1000","v":{"$error":"#NAME?"}},{"$f":"(_xll.RiskData(NR_to_Cash!E$18,$A161))/1000","v":{"$error":"#NAME?"}}]
[155,{"$f":"_xll.RiskData('Risk Summary'!J$48,$A162)/1000","v":{"$error":"#NAME?"}},{"$f":"_xll.RiskData('Risk Summary'!K$48,$A162)/1000","v":{"$error":"#NAME?"}},{"$f":"_xll.RiskData('Risk Summary'!L$48,$A162)/1000","v":{"$error":"#NAME?"}},null,null,{"$f":"(_xll.RiskData(NR_to_Cash!C$18,$A162))/1000","v":{"$error":"#NAME?"}},{"$f":"(_xll.RiskData(NR_to_Cash!D$18,$A162))/1000","v":{"$error":"#NAME?"}},{"$f":"(_xll.RiskData(NR_to_Cash!E$18,$A162))/1000","v":{"$error":"#NAME?"}}]
[156,{"$f":"_xll.RiskData('Risk Summary'!J$48,$A163)/1000","v":{"$error":"#NAME?"}},{"$f":"_xll.RiskData('Risk Summary'!K$48,$A163)/1000","v":{"$error":"#NAME?"}},{"$f":"_xll.RiskData('Risk Summary'!L$48,$A163)/1000","v":{"$error":"#NAME?"}},null,null,{"$f":"(_xll.RiskData(NR_to_Cash!C$18,$A163))/1000","v":{"$error":"#NAME?"}},{"$f":"(_xll.RiskData(NR_to_Cash!D$18,$A163))/1000","v":{"$error":"#NAME?"}},{"$f":"(_xll.RiskData(NR_to_Cash!E$18,$A163))/1000","v":{"$error":"#NAME?"}}]
[157,{"$f":"_xll.RiskData('Risk Summary'!J$48,$A164)/1000","v":{"$error":"#NAME?"}},{"$f":"_xll.RiskData('Risk Summary'!K$48,$A164)/1000","v":{"$error":"#NAME?"}},{"$f":"_xll.RiskData('Risk Summary'!L$48,$A164)/1000","v":{"$error":"#NAME?"}},null,null,{"$f":"(_xll.RiskData(NR_to_Cash!C$18,$A164))/1000","v":{"$error":"#NAME?"}},{"$f":"(_xll.RiskData(NR_to_Cash!D$18,$A164))/1000","v":{"$error":"#NAME?"}},{"$f":"(_xll.RiskData(NR_to_Cash!E$18,$A164))/1000","v":{"$error":"#NAME?"}}]
[158,{"$f":"_xll.RiskData('Risk Summary'!J$48,$A165)/1000","v":{"$error":"#NAME?"}},{"$f":"_xll.RiskData('Risk Summary'!K$48,$A165)/1000","v":{"$error":"#NAME?"}},{"$f":"_xll.RiskData('Risk Summary'!L$48,$A165)/1000","v":{"$error":"#NAME?"}},null,null,{"$f":"(_xll.RiskData(NR_to_Cash!C$18,$A165))/1000","v":{"$error":"#NAME?"}},{"$f":"(_xll.RiskData(NR_to_Cash!D$18,$A165))/1000","v":{"$error":"#NAME?"}},{"$f":"(_xll.RiskData(NR_to_Cash!E$18,$A165))/1000","v":{"$error":"#NAME?"}}]
[159,{"$f":"_xll.RiskData('Risk Summary'!J$48,$A166)/1000","v":{"$error":"#NAME?"}},{"$f":"_xll.RiskData('Risk Summary'!K$48,$A166)/1000","v":{"$error":"#NAME?"}},{"$f":"_xll.RiskData('Risk Summary'!L$48,$A166)/1000","v":{"$error":"#NAME?"}},null,null,{"$f":"(_xll.RiskData(NR_to_Cash!C$18,$A166))/1000","v":{"$error":"#NAME?"}},{"$f":"(_xll.RiskData(NR_to_Cash!D$18,$A166))/1000","v":{"$error":"#NAME?"}},{"$f":"(_xll.RiskData(NR_to_Cash!E$18,$A166))/1000","v":{"$error":"#NAME?"}}]
[160,{"$f":"_xll.RiskData('Risk Summary'!J$48,$A167)/1000","v":{"$error":"#NAME?"}},{"$f":"_xll.RiskData('Risk Summary'!K$48,$A167)/1000","v":{"$error":"#NAME?"}},{"$f":"_xll.RiskData('Risk Summary'!L$48,$A167)/1000","v":{"$error":"#NAME?"}},null,null,{"$f":"(_xll.RiskData(NR_to_Cash!C$18,$A167))/1000","v":{"$error":"#NAME?"}},{"$f":"(_xll.RiskData(NR_to_Cash!D$18,$A167))/1000","v":{"$error":"#NAME?"}},{"$f":"(_xll.RiskData(NR_to_Cash!E$18,$A167))/1000","v":{"$error":"#NAME?"}}]
[161,{"$f":"_xll.RiskData('Risk Summary'!J$48,$A168)/1000","v":{"$error":"#NAME?"}},{"$f":"_xll.RiskData('Risk Summary'!K$48,$A168)/1000","v":{"$error":"#NAME?"}},{"$f":"_xll.RiskData('Risk Summary'!L$48,$A168)/1000","v":{"$error":"#NAME?"}},null,null,{"$f":"(_xll.RiskData(NR_to_Cash!C$18,$A168))/1000","v":{"$error":"#NAME?"}},{"$f":"(_xll.RiskData(NR_to_Cash!D$18,$A168))/1000","v":{"$error":"#NAME?"}},{"$f":"(_xll.RiskData(NR_to_Cash!E$18,$A168))/1000","v":{"$error":"#NAME?"}}]
[162,{"$f":"_xll.RiskData('Risk Summary'!J$48,$A169)/1000","v":{"$error":"#NAME?"}},{"$f":"_xll.RiskData('Risk Summary'!K$48,$A169)/1000","v":{"$error":"#NAME?"}},{"$f":"_xll.RiskData('Risk Summary'!L$48,$A169)/1000","v":{"$error":"#NAME?"}},null,null,{"$f":"(_xll.RiskData(NR_to_Cash!C$18,$A169))/1000","v":{"$error":"#NAME?"}},{"$f":"(_xll.RiskData(NR_to_Cash!D$18,$A169))/1000","v":{"$error":"#NAME?"}},{"$f":"(_xll.RiskData(NR_to_Cash!E$18,$A169))/1000","v":{"$error":"#NAME?"}}]
[163,{"$f":"_xll.RiskData('Risk Summary'!J$48,$A170)/1000","v":{"$error":"#NAME?"}},{"$f":"_xll.RiskData('Risk Summary'!K$48,$A170)/1000","v":{"$error":"#NAME?"}},{"$f":"_xll.RiskData('Risk Summary'!L$48,$A170)/1000","v":{"$error":"#NAME?"}},null,null,{"$f":"(_xll.RiskData(NR_to_Cash!C$18,$A170))/1000","v":{"$error":"#NAME?"}},{"$f":"(_xll.RiskData(NR_to_Cash!D$18,$A170))/1000","v":{"$error":"#NAME?"}},{"$f":"(_xll.RiskData(NR_to_Cash!E$18,$A170))/1000","v":{"$error":"#NAME?"}}]
[164,{"$f":"_xll.RiskData('Risk Summary'!J$48,$A171)/1000","v":{"$error":"#NAME?"}},{"$f":"_xll.RiskData('Risk Summary'!K$48,$A171)/1000","v":{"$error":"#NAME?"}},{"$f":"_xll.RiskData('Risk Summary'!L$48,$A171)/1000","v":{"$error":"#NAME?"}},null,null,{"$f":"(_xll.RiskData(NR_to_Cash!C$18,$A171))/1000","v":{"$error":"#NAME?"}},{"$f":"(_xll.RiskData(NR_to_Cash!D$18,$A171))/1000","v":{"$error":"#NAME?"}},{"$f":"(_xll.RiskData(NR_to_Cash!E$18,$A171))/1000","v":{"$error":"#NAME?"}}]
[165,{"$f":"_xll.RiskData('Risk Summary'!J$48,$A172)/1000","v":{"$error":"#NAME?"}},{"$f":"_xll.RiskData('Risk Summary'!K$48,$A172)/1000","v":{"$error":"#NAME?"}},{"$f":"_xll.RiskData('Risk Summary'!L$48,$A172)/1000","v":{"$error":"#NAME?"}},null,null,{"$f":"(_xll.RiskData(NR_to_Cash!C$18,$A172))/1000","v":{"$error":"#NAME?"}},{"$f":"(_xll.RiskData(NR_to_Cash!D$18,$A172))/1000","v":{"$error":"#NAME?"}},{"$f":"(_xll.RiskData(NR_to_Cash!E$18,$A172))/1000","v":{"$error":"#NAME?"}}]
[166,{"$f":"_xll.RiskData('Risk Summary'!J$48,$A173)/1000","v":{"$error":"#NAME?"}},{"$f":"_xll.RiskData('Risk Summary'!K$48,$A173)/1000","v":{"$error":"#NAME?"}},{"$f":"_xll.RiskData('Risk Summary'!L$48,$A173)/1000","v":{"$error":"#NAME?"}},null,null,{"$f":"(_xll.RiskData(NR_to_Cash!C$18,$A173))/1000","v":{"$error":"#NAME?"}},{"$f":"(_xll.RiskData(NR_to_Cash!D$18,$A173))/1000","v":{"$error":"#NAME?"}},{"$f":"(_xll.RiskData(NR_to_Cash!E$18,$A173))/1000","v":{"$error":"#NAME?"}}]
[167,{"$f":"_xll.RiskData('Risk Summary'!J$48,$A174)/1000","v":{"$error":"#NAME?"}},{"$f":"_xll.RiskData('Risk Summary'!K$48,$A174)/1000","v":{"$error":"#NAME?"}},{"$f":"_xll.RiskData('Risk Summary'!L$48,$A174)/1000","v":{"$error":"#NAME?"}},null,null,{"$f":"(_xll.RiskData(NR_to_Cash!C$18,$A174))/1000","v":{"$error":"#NAME?"}},{"$f":"(_xll.RiskData(NR_to_Cash!D$18,$A174))/1000","v":{"$error":"#NAME?"}},{"$f":"(_xll.RiskData(NR_to_Cash!E$18,$A174))/1000","v":{"$error":"#NAME?"}}]
[168,{"$f":"_xll.RiskData('Risk Summary'!J$48,$A175)/1000","v":{"$error":"#NAME?"}},{"$f":"_xll.RiskData('Risk Summary'!K$48,$A175)/1000","v":{"$error":"#NAME?"}},{"$f":"_xll.RiskData('Risk Summary'!L$48,$A175)/1000","v":{"$error":"#NAME?"}},null,null,{"$f":"(_xll.RiskData(NR_to_Cash!C$18,$A175))/1000","v":{"$error":"#NAME?"}},{"$f":"(_xll.RiskData(NR_to_Cash!D$18,$A175))/1000","v":{"$error":"#NAME?"}},{"$f":"(_xll.RiskData(NR_to_Cash!E$18,$A175))/1000","v":{"$error":"#NAME?"}}]
[169,{"$f":"_xll.RiskData('Risk Summary'!J$48,$A176)/1000","v":{"$error":"#NAME?"}},{"$f":"_xll.RiskData('Risk Summary'!K$48,$A176)/1000","v":{"$error":"#NAME?"}},{"$f":"_xll.RiskData('Risk Summary'!L$48,$A176)/1000","v":{"$error":"#NAME?"}},null,null,{"$f":"(_xll.RiskData(NR_to_Cash!C$18,$A176))/1000","v":{"$error":"#NAME?"}},{"$f":"(_xll.RiskData(NR_to_Cash!D$18,$A176))/1000","v":{"$error":"#NAME?"}},{"$f":"(_xll.RiskData(NR_to_Cash!E$18,$A176))/1000","v":{"$error":"#NAME?"}}]
[170,{"$f":"_xll.RiskData('Risk Summary'!J$48,$A177)/1000","v":{"$error":"#NAME?"}},{"$f":"_xll.RiskData('Risk Summary'!K$48,$A177)/1000","v":{"$error":"#NAME?"}},{"$f":"_xll.RiskData('Risk Summary'!L$48,$A177)/1000","v":{"$error":"#NAME?"}},null,null,{"$f":"(_xll.RiskData(NR_to_Cash!C$18,$A177))/1000","v":{"$error":"#NAME?"}},{"$f":"(_xll.RiskData(NR_to_Cash!D$18,$A177))/1000","v":{"$error":"#NAME?"}},{"$f":"(_xll.RiskData(NR_to_Cash!E$18,$A177))/1000","v":{"$error":"#NAME?"}}]
[171,{"$f":"_xll.RiskData('Risk Summary'!J$48,$A178)/1000","v":{"$error":"#NAME?"}},{"$f":"_xll.RiskData('Risk Summary'!K$48,$A178)/1000","v":{"$error":"#NAME?"}},{"$f":"_xll.RiskData('Risk Summary'!L$48,$A178)/1000","v":{"$error":"#NAME?"}},null,null,{"$f":"(_xll.RiskData(NR_to_Cash!C$18,$A178))/1000","v":{"$error":"#NAME?"}},{"$f":"(_xll.RiskData(NR_to_Cash!D$18,$A178))/1000","v":{"$error":"#NAME?"}},{"$f":"(_xll.RiskData(NR_to_Cash!E$18,$A178))/1000","v":{"$error":"#NAME?"}}]
[172,{"$f":"_xll.RiskData('Risk Summary'!J$48,$A179)/1000","v":{"$error":"#NAME?"}},{"$f":"_xll.RiskData('Risk Summary'!K$48,$A179)/1000","v":{"$error":"#NAME?"}},{"$f":"_xll.RiskData('Risk Summary'!L$48,$A179)/1000","v":{"$error":"#NAME?"}},null,null,{"$f":"(_xll.RiskData(NR_to_Cash!C$18,$A179))/1000","v":{"$error":"#NAME?"}},{"$f":"(_xll.RiskData(NR_to_Cash!D$18,$A179))/1000","v":{"$error":"#NAME?"}},{"$f":"(_xll.RiskData(NR_to_Cash!E$18,$A179))/1000","v":{"$error":"#NAME?"}}]
[173,{"$f":"_xll.RiskData('Risk Summary'!J$48,$A180)/1000","v":{"$error":"#NAME?"}},{"$f":"_xll.RiskData('Risk Summary'!K$48,$A180)/1000","v":{"$error":"#NAME?"}},{"$f":"_xll.RiskData('Risk Summary'!L$48,$A180)/1000","v":{"$error":"#NAME?"}},null,null,{"$f":"(_xll.RiskData(NR_to_Cash!C$18,$A180))/1000","v":{"$error":"#NAME?"}},{"$f":"(_xll.RiskData(NR_to_Cash!D$18,$A180))/1000","v":{"$error":"#NAME?"}},{"$f":"(_xll.RiskData(NR_to_Cash!E$18,$A180))/1000","v":{"$error":"#NAME?"}}]
[174,{"$f":"_xll.RiskData('Risk Summary'!J$48,$A181)/1000","v":{"$error":"#NAME?"}},{"$f":"_xll.RiskData('Risk Summary'!K$48,$A181)/1000","v":{"$error":"#NAME?"}},{"$f":"_xll.RiskData('Risk Summary'!L$48,$A181)/1000","v":{"$error":"#NAME?"}},null,null,{"$f":"(_xll.RiskData(NR_to_Cash!C$18,$A181))/1000","v":{"$error":"#NAME?"}},{"$f":"(_xll.RiskData(NR_to_Cash!D$18,$A181))/1000","v":{"$error":"#NAME?"}},{"$f":"(_xll.RiskData(NR_to_Cash!E$18,$A181))/1000","v":{"$error":"#NAME?"}}]
[175,{"$f":"_xll.RiskData('Risk Summary'!J$48,$A182)/1000","v":{"$error":"#NAME?"}},{"$f":"_xll.RiskData('Risk Summary'!K$48,$A182)/1000","v":{"$error":"#NAME?"}},{"$f":"_xll.RiskData('Risk Summary'!L$48,$A182)/1000","v":{"$error":"#NAME?"}},null,null,{"$f":"(_xll.RiskData(NR_to_Cash!C$18,$A182))/1000","v":{"$error":"#NAME?"}},{"$f":"(_xll.RiskData(NR_to_Cash!D$18,$A182))/1000","v":{"$error":"#NAME?"}},{"$f":"(_xll.RiskData(NR_to_Cash!E$18,$A182))/1000","v":{"$error":"#NAME?"}}]
[176,{"$f":"_xll.RiskData('Risk Summary'!J$48,$A183)/1000","v":{"$error":"#NAME?"}},{"$f":"_xll.RiskData('Risk Summary'!K$48,$A183)/1000","v":{"$error":"#NAME?"}},{"$f":"_xll.RiskData('Risk Summary'!L$48,$A183)/1000","v":{"$error":"#NAME?"}},null,null,{"$f":"(_xll.RiskData(NR_to_Cash!C$18,$A183))/1000","v":{"$error":"#NAME?"}},{"$f":"(_xll.RiskData(NR_to_Cash!D$18,$A183))/1000","v":{"$error":"#NAME?"}},{"$f":"(_xll.RiskData(NR_to_Cash!E$18,$A183))/1000","v":{"$error":"#NAME?"}}]
[177,{"$f":"_xll.RiskData('Risk Summary'!J$48,$A184)/1000","v":{"$error":"#NAME?"}},{"$f":"_xll.RiskData('Risk Summary'!K$48,$A184)/1000","v":{"$error":"#NAME?"}},{"$f":"_xll.RiskData('Risk Summary'!L$48,$A184)/1000","v":{"$error":"#NAME?"}},null,null,{"$f":"(_xll.RiskData(NR_to_Cash!C$18,$A184))/1000","v":{"$error":"#NAME?"}},{"$f":"(_xll.RiskData(NR_to_Cash!D$18,$A184))/1000","v":{"$error":"#NAME?"}},{"$f":"(_xll.RiskData(NR_to_Cash!E$18,$A184))/1000","v":{"$error":"#NAME?"}}]
[178,{"$f":"_xll.RiskData('Risk Summary'!J$48,$A185)/1000","v":{"$error":"#NAME?"}},{"$f":"_xll.RiskData('Risk Summary'!K$48,$A185)/1000","v":{"$error":"#NAME?"}},{"$f":"_xll.RiskData('Risk Summary'!L$48,$A185)/1000","v":{"$error":"#NAME?"}},null,null,{"$f":"(_xll.RiskData(NR_to_Cash!C$18,$A185))/1000","v":{"$error":"#NAME?"}},{"$f":"(_xll.RiskData(NR_to_Cash!D$18,$A185))/1000","v":{"$error":"#NAME?"}},{"$f":"(_xll.RiskData(NR_to_Cash!E$18,$A185))/1000","v":{"$error":"#NAME?"}}]
[179,{"$f":"_xll.RiskData('Risk Summary'!J$48,$A186)/1000","v":{"$error":"#NAME?"}},{"$f":"_xll.RiskData('Risk Summary'!K$48,$A186)/1000","v":{"$error":"#NAME?"}},{"$f":"_xll.RiskData('Risk Summary'!L$48,$A186)/1000","v":{"$error":"#NAME?"}},null,null,{"$f":"(_xll.RiskData(NR_to_Cash!C$18,$A186))/1000","v":{"$error":"#NAME?"}},{"$f":"(_xll.RiskData(NR_to_Cash!D$18,$A186))/1000","v":{"$error":"#NAME?"}},{"$f":"(_xll.RiskData(NR_to_Cash!E$18,$A186))/1000","v":{"$error":"#NAME?"}}]
[180,{"$f":"_xll.RiskData('Risk Summary'!J$48,$A187)/1000","v":{"$error":"#NAME?"}},{"$f":"_xll.RiskData('Risk Summary'!K$48,$A187)/1000","v":{"$error":"#NAME?"}},{"$f":"_xll.RiskData('Risk Summary'!L$48,$A187)/1000","v":{"$error":"#NAME?"}},null,null,{"$f":"(_xll.RiskData(NR_to_Cash!C$18,$A187))/1000","v":{"$error":"#NAME?"}},{"$f":"(_xll.RiskData(NR_to_Cash!D$18,$A187))/1000","v":{"$error":"#NAME?"}},{"$f":"(_xll.RiskData(NR_to_Cash!E$18,$A187))/1000","v":{"$error":"#NAME?"}}]
[181,{"$f":"_xll.RiskData('Risk Summary'!J$48,$A188)/1000","v":{"$error":"#NAME?"}},{"$f":"_xll.RiskData('Risk Summary'!K$48,$A188)/1000","v":{"$error":"#NAME?"}},{"$f":"_xll.RiskData('Risk Summary'!L$48,$A188)/1000","v":{"$error":"#NAME?"}},null,null,{"$f":"(_xll.RiskData(NR_to_Cash!C$18,$A188))/1000","v":{"$error":"#NAME?"}},{"$f":"(_xll.RiskData(NR_to_Cash!D$18,$A188))/1000","v":{"$error":"#NAME?"}},{"$f":"(_xll.RiskData(NR_to_Cash!E$18,$A188))/1000","v":{"$error":"#NAME?"}}]
[182,{"$f":"_xll.RiskData('Risk Summary'!J$48,$A189)/1000","v":{"$error":"#NAME?"}},{"$f":"_xll.RiskData('Risk Summary'!K$48,$A189)/1000","v":{"$error":"#NAME?"}},{"$f":"_xll.RiskData('Risk Summary'!L$48,$A189)/1000","v":{"$error":"#NAME?"}},null,null,{"$f":"(_xll.RiskData(NR_to_Cash!C$18,$A189))/1000","v":{"$error":"#NAME?"}},{"$f":"(_xll.RiskData(NR_to_Cash!D$18,$A189))/1000","v":{"$error":"#NAME?"}},{"$f":"(_xll.RiskData(NR_to_Cash!E$18,$A189))/1000","v":{"$error":"#NAME?"}}]
[183,{"$f":"_xll.RiskData('Risk Summary'!J$48,$A190)/1000","v":{"$error":"#NAME?"}},{"$f":"_xll.RiskData('Risk Summary'!K$48,$A190)/1000","v":{"$error":"#NAME?"}},{"$f":"_xll.RiskData('Risk Summary'!L$48,$A190)/1000","v":{"$error":"#NAME?"}},null,null,{"$f":"(_xll.RiskData(NR_to_Cash!C$18,$A190))/1000","v":{"$error":"#NAME?"}},{"$f":"(_xll.RiskData(NR_to_Cash!D$18,$A190))/1000","v":{"$error":"#NAME?"}},{"$f":"(_xll.RiskData(NR_to_Cash!E$18,$A190))/1000","v":{"$error":"#NAME?"}}]
[184,{"$f":"_xll.RiskData('Risk Summary'!J$48,$A191)/1000","v":{"$error":"#NAME?"}},{"$f":"_xll.RiskData('Risk Summary'!K$48,$A191)/1000","v":{"$error":"#NAME?"}},{"$f":"_xll.RiskData('Risk Summary'!L$48,$A191)/1000","v":{"$error":"#NAME?"}},null,null,{"$f":"(_xll.RiskData(NR_to_Cash!C$18,$A191))/1000","v":{"$error":"#NAME?"}},{"$f":"(_xll.RiskData(NR_to_Cash!D$18,$A191))/1000","v":{"$error":"#NAME?"}},{"$f":"(_xll.RiskData(NR_to_Cash!E$18,$A191))/1000","v":{"$error":"#NAME?"}}]
[185,{"$f":"_xll.RiskData('Risk Summary'!J$48,$A192)/1000","v":{"$error":"#NAME?"}},{"$f":"_xll.RiskData('Risk Summary'!K$48,$A192)/1000","v":{"$error":"#NAME?"}},{"$f":"_xll.RiskData('Risk Summary'!L$48,$A192)/1000","v":{"$error":"#NAME?"}},null,null,{"$f":"(_xll.RiskData(NR_to_Cash!C$18,$A192))/1000","v":{"$error":"#NAME?"}},{"$f":"(_xll.RiskData(NR_to_Cash!D$18,$A192))/1000","v":{"$error":"#NAME?"}},{"$f":"(_xll.RiskData(NR_to_Cash!E$18,$A192))/1000","v":{"$error":"#NAME?"}}]
[186,{"$f":"_xll.RiskData('Risk Summary'!J$48,$A193)/1000","v":{"$error":"#NAME?"}},{"$f":"_xll.RiskData('Risk Summary'!K$48,$A193)/1000","v":{"$error":"#NAME?"}},{"$f":"_xll.RiskData('Risk Summary'!L$48,$A193)/1000","v":{"$error":"#NAME?"}},null,null,{"$f":"(_xll.RiskData(NR_to_Cash!C$18,$A193))/1000","v":{"$error":"#NAME?"}},{"$f":"(_xll.RiskData(NR_to_Cash!D$18,$A193))/1000","v":{"$error":"#NAME?"}},{"$f":"(_xll.RiskData(NR_to_Cash!E$18,$A193))/1000","v":{"$error":"#NAME?"}}]
[187,{"$f":"_xll.RiskData('Risk Summary'!J$48,$A194)/1000","v":{"$error":"#NAME?"}},{"$f":"_xll.RiskData('Risk Summary'!K$48,$A194)/1000","v":{"$error":"#NAME?"}},{"$f":"_xll.RiskData('Risk Summary'!L$48,$A194)/1000","v":{"$error":"#NAME?"}},null,null,{"$f":"(_xll.RiskData(NR_to_Cash!C$18,$A194))/1000","v":{"$error":"#NAME?"}},{"$f":"(_xll.RiskData(NR_to_Cash!D$18,$A194))/1000","v":{"$error":"#NAME?"}},{"$f":"(_xll.RiskData(NR_to_Cash!E$18,$A194))/1000","v":{"$error":"#NAME?"}}]
[188,{"$f":"_xll.RiskData('Risk Summary'!J$48,$A195)/1000","v":{"$error":"#NAME?"}},{"$f":"_xll.RiskData('Risk Summary'!K$48,$A195)/1000","v":{"$error":"#NAME?"}},{"$f":"_xll.RiskData('Risk Summary'!L$48,$A195)/1000","v":{"$error":"#NAME?"}},null,null,{"$f":"(_xll.RiskData(NR_to_Cash!C$18,$A195))/1000","v":{"$error":"#NAME?"}},{"$f":"(_xll.RiskData(NR_to_Cash!D$18,$A195))/1000","v":{"$error":"#NAME?"}},{"$f":"(_xll.RiskData(NR_to_Cash!E$18,$A195))/1000","v":{"$error":"#NAME?"}}]
[189,{"$f":"_xll.RiskData('Risk Summary'!J$48,$A196)/1000","v":{"$error":"#NAME?"}},{"$f":"_xll.RiskData('Risk Summary'!K$48,$A196)/1000","v":{"$error":"#NAME?"}},{"$f":"_xll.RiskData('Risk Summary'!L$48,$A196)/1000","v":{"$error":"#NAME?"}},null,null,{"$f":"(_xll.RiskData(NR_to_Cash!C$18,$A196))/1000","v":{"$error":"#NAME?"}},{"$f":"(_xll.RiskData(NR_to_Cash!D$18,$A196))/1000","v":{"$error":"#NAME?"}},{"$f":"(_xll.RiskData(NR_to_Cash!E$18,$A196))/1000","v":{"$error":"#NAME?"}}]
[190,{"$f":"_xll.RiskData('Risk Summary'!J$48,$A197)/1000","v":{"$error":"#NAME?"}},{"$f":"_xll.RiskData('Risk Summary'!K$48,$A197)/1000","v":{"$error":"#NAME?"}},{"$f":"_xll.RiskData('Risk Summary'!L$48,$A197)/1000","v":{"$error":"#NAME?"}},null,null,{"$f":"(_xll.RiskData(NR_to_Cash!C$18,$A197))/1000","v":{"$error":"#NAME?"}},{"$f":"(_xll.RiskData(NR_to_Cash!D$18,$A197))/1000","v":{"$error":"#NAME?"}},{"$f":"(_xll.RiskData(NR_to_Cash!E$18,$A197))/1000","v":{"$error":"#NAME?"}}]
[191,{"$f":"_xll.RiskData('Risk Summary'!J$48,$A198)/1000","v":{"$error":"#NAME?"}},{"$f":"_xll.RiskData('Risk Summary'!K$48,$A198)/1000","v":{"$error":"#NAME?"}},{"$f":"_xll.RiskData('Risk Summary'!L$48,$A198)/1000","v":{"$error":"#NAME?"}},null,null,{"$f":"(_xll.RiskData(NR_to_Cash!C$18,$A198))/1000","v":{"$error":"#NAME?"}},{"$f":"(_xll.RiskData(NR_to_Cash!D$18,$A198))/1000","v":{"$error":"#NAME?"}},{"$f":"(_xll.RiskData(NR_to_Cash!E$18,$A198))/1000","v":{"$error":"#NAME?"}}]
[192,{"$f":"_xll.RiskData('Risk Summary'!J$48,$A199)/1000","v":{"$error":"#NAME?"}},{"$f":"_xll.RiskData('Risk Summary'!K$48,$A199)/1000","v":{"$error":"#NAME?"}},{"$f":"_xll.RiskData('Risk Summary'!L$48,$A199)/1000","v":{"$error":"#NAME?"}},null,null,{"$f":"(_xll.RiskData(NR_to_Cash!C$18,$A199))/1000","v":{"$error":"#NAME?"}},{"$f":"(_xll.RiskData(NR_to_Cash!D$18,$A199))/1000","v":{"$error":"#NAME?"}},{"$f":"(_xll.RiskData(NR_to_Cash!E$18,$A199))/1000","v":{"$error":"#NAME?"}}]
[193,{"$f":"_xll.RiskData('Risk Summary'!J$48,$A200)/1000","v":{"$error":"#NAME?"}},{"$f":"_xll.RiskData('Risk Summary'!K$48,$A200)/1000","v":{"$error":"#NAME?"}},{"$f":"_xll.RiskData('Risk Summary'!L$48,$A200)/1000","v":{"$error":"#NAME?"}},null,null,{"$f":"(_xll.RiskData(NR_to_Cash!C$18,$A200))/1000","v":{"$error":"#NAME?"}},{"$f":"(_xll.RiskData(NR_to_Cash!D$18,$A200))/1000","v":{"$error":"#NAME?"}},{"$f":"(_xll.RiskData(NR_to_Cash!E$18,$A200))/1000","v":{"$error":"#NAME?"}}]
[194,{"$f":"_xll.RiskData('Risk Summary'!J$48,$A201)/1000","v":{"$error":"#NAME?"}},{"$f":"_xll.RiskData('Risk Summary'!K$48,$A201)/1000","v":{"$error":"#NAME?"}},{"$f":"_xll.RiskData('Risk Summary'!L$48,$A201)/1000","v":{"$error":"#NAME?"}},null,null,{"$f":"(_xll.RiskData(NR_to_Cash!C$18,$A201))/1000","v":{"$error":"#NAME?"}},{"$f":"(_xll.RiskData(NR_to_Cash!D$18,$A201))/1000","v":{"$error":"#NAME?"}},{"$f":"(_xll.RiskData(NR_to_Cash!E$18,$A201))/1000","v":{"$error":"#NAME?"}}]
[195,{"$f":"_xll.RiskData('Risk Summary'!J$48,$A202)/1000","v":{"$error":"#NAME?"}},{"$f":"_xll.RiskData('Risk Summary'!K$48,$A202)/1000","v":{"$error":"#NAME?"}},{"$f":"_xll.RiskData('Risk Summary'!L$48,$A202)/1000","v":{"$error":"#NAME?"}},null,null,{"$f":"(_xll.RiskData(NR_to_Cash!C$18,$A202))/1000","v":{"$error":"#NAME?"}},{"$f":"(_xll.RiskData(NR_to_Cash!D$18,$A202))/1000","v":{"$error":"#NAME?"}},{"$f":"(_xll.RiskData(NR_to_Cash!E$18,$A202))/1000","v":{"$error":"#NAME?"}}]
[196,{"$f":"_xll.RiskData('Risk Summary'!J$48,$A203)/1000","v":{"$error":"#NAME?"}},{"$f":"_xll.RiskData('Risk Summary'!K$48,$A203)/1000","v":{"$error":"#NAME?"}},{"$f":"_xll.RiskData('Risk Summary'!L$48,$A203)/1000","v":{"$error":"#NAME?"}},null,null,{"$f":"(_xll.RiskData(NR_to_Cash!C$18,$A203))/1000","v":{"$error":"#NAME?"}},{"$f":"(_xll.RiskData(NR_to_Cash!D$18,$A203))/1000","v":{"$error":"#NAME?"}},{"$f":"(_xll.RiskData(NR_to_Cash!E$18,$A203))/1000","v":{"$error":"#NAME?"}}]
[197,{"$f":"_xll.RiskData('Risk Summary'!J$48,$A204)/1000","v":{"$error":"#NAME?"}},{"$f":"_xll.RiskData('Risk Summary'!K$48,$A204)/1000","v":{"$error":"#NAME?"}},{"$f":"_xll.RiskData('Risk Summary'!L$48,$A204)/1000","v":{"$error":"#NAME?"}},null,null,{"$f":"(_xll.RiskData(NR_to_Cash!C$18,$A204))/1000","v":{"$error":"#NAME?"}},{"$f":"(_xll.RiskData(NR_to_Cash!D$18,$A204))/1000","v":{"$error":"#NAME?"}},{"$f":"(_xll.RiskData(NR_to_Cash!E$18,$A204))/1000","v":{"$error":"#NAME?"}}]
[198,{"$f":"_xll.RiskData('Risk Summary'!J$48,$A205)/1000","v":{"$error":"#NAME?"}},{"$f":"_xll.RiskData('Risk Summary'!K$48,$A205)/1000","v":{"$error":"#NAME?"}},{"$f":"_xll.RiskData('Risk Summary'!L$48,$A205)/1000","v":{"$error":"#NAME?"}},null,null,{"$f":"(_xll.RiskData(NR_to_Cash!C$18,$A205))/1000","v":{"$error":"#NAME?"}},{"$f":"(_xll.RiskData(NR_to_Cash!D$18,$A205))/1000","v":{"$error":"#NAME?"}},{"$f":"(_xll.RiskData(NR_to_Cash!E$18,$A205))/1000","v":{"$error":"#NAME?"}}]
[199,{"$f":"_xll.RiskData('Risk Summary'!J$48,$A206)/1000","v":{"$error":"#NAME?"}},{"$f":"_xll.RiskData('Risk Summary'!K$48,$A206)/1000","v":{"$error":"#NAME?"}},{"$f":"_xll.RiskData('Risk Summary'!L$48,$A206)/1000","v":{"$error":"#NAME?"}},null,null,{"$f":"(_xll.RiskData(NR_to_Cash!C$18,$A206))/1000","v":{"$error":"#NAME?"}},{"$f":"(_xll.RiskData(NR_to_Cash!D$18,$A206))/1000","v":{"$error":"#NAME?"}},{"$f":"(_xll.RiskData(NR_to_Cash!E$18,$A206))/1000","v":{"$error":"#NAME?"}}]
[200,{"$f":"_xll.RiskData('Risk Summary'!J$48,$A207)/1000","v":{"$error":"#NAME?"}},{"$f":"_xll.RiskData('Risk Summary'!K$48,$A207)/1000","v":{"$error":"#NAME?"}},{"$f":"_xll.RiskData('Risk Summary'!L$48,$A207)/1000","v":{"$error":"#NAME?"}},null,null,{"$f":"(_xll.RiskData(NR_to_Cash!C$18,$A207))/1000","v":{"$error":"#NAME?"}},{"$f":"(_xll.RiskData(NR_to_Cash!D$18,$A207))/1000","v":{"$error":"#NAME?"}},{"$f":"(_xll.RiskData(NR_to_Cash!E$18,$A207))/1000","v":{"$error":"#NAME?"}}]
[201,{"$f":"_xll.RiskData('Risk Summary'!J$48,$A208)/1000","v":{"$error":"#NAME?"}},{"$f":"_xll.RiskData('Risk Summary'!K$48,$A208)/1000","v":{"$error":"#NAME?"}},{"$f":"_xll.RiskData('Risk Summary'!L$48,$A208)/1000","v":{"$error":"#NAME?"}},null,null,{"$f":"(_xll.RiskData(NR_to_Cash!C$18,$A208))/1000","v":{"$error":"#NAME?"}},{"$f":"(_xll.RiskData(NR_to_Cash!D$18,$A208))/1000","v":{"$error":"#NAME?"}},{"$f":"(_xll.RiskData(NR_to_Cash!E$18,$A208))/1000","v":{"$error":"#NAME?"}}]
[202,{"$f":"_xll.RiskData('Risk Summary'!J$48,$A209)/1000","v":{"$error":"#NAME?"}},{"$f":"_xll.RiskData('Risk Summary'!K$48,$A209)/1000","v":{"$error":"#NAME?"}},{"$f":"_xll.RiskData('Risk Summary'!L$48,$A209)/1000","v":{"$error":"#NAME?"}},null,null,{"$f":"(_xll.RiskData(NR_to_Cash!C$18,$A209))/1000","v":{"$error":"#NAME?"}},{"$f":"(_xll.RiskData(NR_to_Cash!D$18,$A209))/1000","v":{"$error":"#NAME?"}},{"$f":"(_xll.RiskData(NR_to_Cash!E$18,$A209))/1000","v":{"$error":"#NAME?"}}]
[203,{"$f":"_xll.RiskData('Risk Summary'!J$48,$A210)/1000","v":{"$error":"#NAME?"}},{"$f":"_xll.RiskData('Risk Summary'!K$48,$A210)/1000","v":{"$error":"#NAME?"}},{"$f":"_xll.RiskData('Risk Summary'!L$48,$A210)/1000","v":{"$error":"#NAME?"}},null,null,{"$f":"(_xll.RiskData(NR_to_Cash!C$18,$A210))/1000","v":{"$error":"#NAME?"}},{"$f":"(_xll.RiskData(NR_to_Cash!D$18,$A210))/1000","v":{"$error":"#NAME?"}},{"$f":"(_xll.RiskData(NR_to_Cash!E$18,$A210))/1000","v":{"$error":"#NAME?"}}]
[204,{"$f":"_xll.RiskData('Risk Summary'!J$48,$A211)/1000","v":{"$error":"#NAME?"}},{"$f":"_xll.RiskData('Risk Summary'!K$48,$A211)/1000","v":{"$error":"#NAME?"}},{"$f":"_xll.RiskData('Risk Summary'!L$48,$A211)/1000","v":{"$error":"#NAME?"}},null,null,{"$f":"(_xll.RiskData(NR_to_Cash!C$18,$A211))/1000","v":{"$error":"#NAME?"}},{"$f":"(_xll.RiskData(NR_to_Cash!D$18,$A211))/1000","v":{"$error":"#NAME?"}},{"$f":"(_xll.RiskData(NR_to_Cash!E$18,$A211))/1000","v":{"$error":"#NAME?"}}]
[205,{"$f":"_xll.RiskData('Risk Summary'!J$48,$A212)/1000","v":{"$error":"#NAME?"}},{"$f":"_xll.RiskData('Risk Summary'!K$48,$A212)/1000","v":{"$error":"#NAME?"}},{"$f":"_xll.RiskData('Risk Summary'!L$48,$A212)/1000","v":{"$error":"#NAME?"}},null,null,{"$f":"(_xll.RiskData(NR_to_Cash!C$18,$A212))/1000","v":{"$error":"#NAME?"}},{"$f":"(_xll.RiskData(NR_to_Cash!D$18,$A212))/1000","v":{"$error":"#NAME?"}},{"$f":"(_xll.RiskData(NR_to_Cash!E$18,$A212))/1000","v":{"$error":"#NAME?"}}]
[206,{"$f":"_xll.RiskData('Risk Summary'!J$48,$A213)/1000","v":{"$error":"#NAME?"}},{"$f":"_xll.RiskData('Risk Summary'!K$48,$A213)/1000","v":{"$error":"#NAME?"}},{"$f":"_xll.RiskData('Risk Summary'!L$48,$A213)/1000","v":{"$error":"#NAME?"}},null,null,{"$f":"(_xll.RiskData(NR_to_Cash!C$18,$A213))/1000","v":{"$error":"#NAME?"}},{"$f":"(_xll.RiskData(NR_to_Cash!D$18,$A213))/1000","v":{"$error":"#NAME?"}},{"$f":"(_xll.RiskData(NR_to_Cash!E$18,$A213))/1000","v":{"$error":"#NAME?"}}]
[207,{"$f":"_xll.RiskData('Risk Summary'!J$48,$A214)/1000","v":{"$error":"#NAME?"}},{"$f":"_xll.RiskData('Risk Summary'!K$48,$A214)/1000","v":{"$error":"#NAME?"}},{"$f":"_xll.RiskData('Risk Summary'!L$48,$A214)/1000","v":{"$error":"#NAME?"}},null,null,{"$f":"(_xll.RiskData(NR_to_Cash!C$18,$A214))/1000","v":{"$error":"#NAME?"}},{"$f":"(_xll.RiskData(NR_to_Cash!D$18,$A214))/1000","v":{"$error":"#NAME?"}},{"$f":"(_xll.RiskData(NR_to_Cash!E$18,$A214))/1000","v":{"$error":"#NAME?"}}]
[208,{"$f":"_xll.RiskData('Risk Summary'!J$48,$A215)/1000","v":{"$error":"#NAME?"}},{"$f":"_xll.RiskData('Risk Summary'!K$48,$A215)/1000","v":{"$error":"#NAME?"}},{"$f":"_xll.RiskData('Risk Summary'!L$48,$A215)/1000","v":{"$error":"#NAME?"}},null,null,{"$f":"(_xll.RiskData(NR_to_Cash!C$18,$A215))/1000","v":{"$error":"#NAME?"}},{"$f":"(_xll.RiskData(NR_to_Cash!D$18,$A215))/1000","v":{"$error":"#NAME?"}},{"$f":"(_xll.RiskData(NR_to_Cash!E$18,$A215))/1000","v":{"$error":"#NAME?"}}]
[209,{"$f":"_xll.RiskData('Risk Summary'!J$48,$A216)/1000","v":{"$error":"#NAME?"}},{"$f":"_xll.RiskData('Risk Summary'!K$48,$A216)/1000","v":{"$error":"#NAME?"}},{"$f":"_xll.RiskData('Risk Summary'!L$48,$A216)/1000","v":{"$error":"#NAME?"}},null,null,{"$f":"(_xll.RiskData(NR_to_Cash!C$18,$A216))/1000","v":{"$error":"#NAME?"}},{"$f":"(_xll.RiskData(NR_to_Cash!D$18,$A216))/1000","v":{"$error":"#NAME?"}},{"$f":"(_xll.RiskData(NR_to_Cash!E$18,$A216))/1000","v":{"$error":"#NAME?"}}]
[210,{"$f":"_xll.RiskData('Risk Summary'!J$48,$A217)/1000","v":{"$error":"#NAME?"}},{"$f":"_xll.RiskData('Risk Summary'!K$48,$A217)/1000","v":{"$error":"#NAME?"}},{"$f":"_xll.RiskData('Risk Summary'!L$48,$A217)/1000","v":{"$error":"#NAME?"}},null,null,{"$f":"(_xll.RiskData(NR_to_Cash!C$18,$A217))/1000","v":{"$error":"#NAME?"}},{"$f":"(_xll.RiskData(NR_to_Cash!D$18,$A217))/1000","v":{"$error":"#NAME?"}},{"$f":"(_xll.RiskData(NR_to_Cash!E$18,$A217))/1000","v":{"$error":"#NAME?"}}]
[211,{"$f":"_xll.RiskData('Risk Summary'!J$48,$A218)/1000","v":{"$error":"#NAME?"}},{"$f":"_xll.RiskData('Risk Summary'!K$48,$A218)/1000","v":{"$error":"#NAME?"}},{"$f":"_xll.RiskData('Risk Summary'!L$48,$A218)/1000","v":{"$error":"#NAME?"}},null,null,{"$f":"(_xll.RiskData(NR_to_Cash!C$18,$A218))/1000","v":{"$error":"#NAME?"}},{"$f":"(_xll.RiskData(NR_to_Cash!D$18,$A218))/1000","v":{"$error":"#NAME?"}},{"$f":"(_xll.RiskData(NR_to_Cash!E$18,$A218))/1000","v":{"$error":"#NAME?"}}]
[212,{"$f":"_xll.RiskData('Risk Summary'!J$48,$A219)/1000","v":{"$error":"#NAME?"}},{"$f":"_xll.RiskData('Risk Summary'!K$48,$A219)/1000","v":{"$error":"#NAME?"}},{"$f":"_xll.RiskData('Risk Summary'!L$48,$A219)/1000","v":{"$error":"#NAME?"}},null,null,{"$f":"(_xll.RiskData(NR_to_Cash!C$18,$A219))/1000","v":{"$error":"#NAME?"}},{"$f":"(_xll.RiskData(NR_to_Cash!D$18,$A219))/1000","v":{"$error":"#NAME?"}},{"$f":"(_xll.RiskData(NR_to_Cash!E$18,$A219))/1000","v":{"$error":"#NAME?"}}]
[213,{"$f":"_xll.RiskData('Risk Summary'!J$48,$A220)/1000","v":{"$error":"#NAME?"}},{"$f":"_xll.RiskData('Risk Summary'!K$48,$A220)/1000","v":{"$error":"#NAME?"}},{"$f":"_xll.RiskData('Risk Summary'!L$48,$A220)/1000","v":{"$error":"#NAME?"}},null,null,{"$f":"(_xll.RiskData(NR_to_Cash!C$18,$A220))/1000","v":{"$error":"#NAME?"}},{"$f":"(_xll.RiskData(NR_to_Cash!D$18,$A220))/1000","v":{"$error":"#NAME?"}},{"$f":"(_xll.RiskData(NR_to_Cash!E$18,$A220))/1000","v":{"$error":"#NAME?"}}]
[214,{"$f":"_xll.RiskData('Risk Summary'!J$48,$A221)/1000","v":{"$error":"#NAME?"}},{"$f":"_xll.RiskData('Risk Summary'!K$48,$A221)/1000","v":{"$error":"#NAME?"}},{"$f":"_xll.RiskData('Risk Summary'!L$48,$A221)/1000","v":{"$error":"#NAME?"}},null,null,{"$f":"(_xll.RiskData(NR_to_Cash!C$18,$A221))/1000","v":{"$error":"#NAME?"}},{"$f":"(_xll.RiskData(NR_to_Cash!D$18,$A221))/1000","v":{"$error":"#NAME?"}},{"$f":"(_xll.RiskData(NR_to_Cash!E$18,$A221))/1000","v":{"$error":"#NAME?"}}]
[215,{"$f":"_xll.RiskData('Risk Summary'!J$48,$A222)/1000","v":{"$error":"#NAME?"}},{"$f":"_xll.RiskData('Risk Summary'!K$48,$A222)/1000","v":{"$error":"#NAME?"}},{"$f":"_xll.RiskData('Risk Summary'!L$48,$A222)/1000","v":{"$error":"#NAME?"}},null,null,{"$f":"(_xll.RiskData(NR_to_Cash!C$18,$A222))/1000","v":{"$error":"#NAME?"}},{"$f":"(_xll.RiskData(NR_to_Cash!D$18,$A222))/1000","v":{"$error":"#NAME?"}},{"$f":"(_xll.RiskData(NR_to_Cash!E$18,$A222))/1000","v":{"$error":"#NAME?"}}]
[216,{"$f":"_xll.RiskData('Risk Summary'!J$48,$A223)/1000","v":{"$error":"#NAME?"}},{"$f":"_xll.RiskData('Risk Summary'!K$48,$A223)/1000","v":{"$error":"#NAME?"}},{"$f":"_xll.RiskData('Risk Summary'!L$48,$A223)/1000","v":{"$error":"#NAME?"}},null,null,{"$f":"(_xll.RiskData(NR_to_Cash!C$18,$A223))/1000","v":{"$error":"#NAME?"}},{"$f":"(_xll.RiskData(NR_to_Cash!D$18,$A223))/1000","v":{"$error":"#NAME?"}},{"$f":"(_xll.RiskData(NR_to_Cash!E$18,$A223))/1000","v":{"$error":"#NAME?"}}]
[217,{"$f":"_xll.RiskData('Risk Summary'!J$48,$A224)/1000","v":{"$error":"#NAME?"}},{"$f":"_xll.RiskData('Risk Summary'!K$48,$A224)/1000","v":{"$error":"#NAME?"}},{"$f":"_xll.RiskData('Risk Summary'!L$48,$A224)/1000","v":{"$error":"#NAME?"}},null,null,{"$f":"(_xll.RiskData(NR_to_Cash!C$18,$A224))/1000","v":{"$error":"#NAME?"}},{"$f":"(_xll.RiskData(NR_to_Cash!D$18,$A224))/1000","v":{"$error":"#NAME?"}},{"$f":"(_xll.RiskData(NR_to_Cash!E$18,$A224))/1000","v":{"$error":"#NAME?"}}]
[218,{"$f":"_xll.RiskData('Risk Summary'!J$48,$A225)/1000","v":{"$error":"#NAME?"}},{"$f":"_xll.RiskData('Risk Summary'!K$48,$A225)/1000","v":{"$error":"#NAME?"}},{"$f":"_xll.RiskData('Risk Summary'!L$48,$A225)/1000","v":{"$error":"#NAME?"}},null,null,{"$f":"(_xll.RiskData(NR_to_Cash!C$18,$A225))/1000","v":{"$error":"#NAME?"}},{"$f":"(_xll.RiskData(NR_to_Cash!D$18,$A225))/1000","v":{"$error":"#NAME?"}},{"$f":"(_xll.RiskData(NR_to_Cash!E$18,$A225))/1000","v":{"$error":"#NAME?"}}]
[219,{"$f":"_xll.RiskData('Risk Summary'!J$48,$A226)/1000","v":{"$error":"#NAME?"}},{"$f":"_xll.RiskData('Risk Summary'!K$48,$A226)/1000","v":{"$error":"#NAME?"}},{"$f":"_xll.RiskData('Risk Summary'!L$48,$A226)/1000","v":{"$error":"#NAME?"}},null,null,{"$f":"(_xll.RiskData(NR_to_Cash!C$18,$A226))/1000","v":{"$error":"#NAME?"}},{"$f":"(_xll.RiskData(NR_to_Cash!D$18,$A226))/1000","v":{"$error":"#NAME?"}},{"$f":"(_xll.RiskData(NR_to_Cash!E$18,$A226))/1000","v":{"$error":"#NAME?"}}]
[220,{"$f":"_xll.RiskData('Risk Summary'!J$48,$A227)/1000","v":{"$error":"#NAME?"}},{"$f":"_xll.RiskData('Risk Summary'!K$48,$A227)/1000","v":{"$error":"#NAME?"}},{"$f":"_xll.RiskData('Risk Summary'!L$48,$A227)/1000","v":{"$error":"#NAME?"}},null,null,{"$f":"(_xll.RiskData(NR_to_Cash!C$18,$A227))/1000","v":{"$error":"#NAME?"}},{"$f":"(_xll.RiskData(NR_to_Cash!D$18,$A227))/1000","v":{"$error":"#NAME?"}},{"$f":"(_xll.RiskData(NR_to_Cash!E$18,$A227))/1000","v":{"$error":"#NAME?"}}]
[221,{"$f":"_xll.RiskData('Risk Summary'!J$48,$A228)/1000","v":{"$error":"#NAME?"}},{"$f":"_xll.RiskData('Risk Summary'!K$48,$A228)/1000","v":{"$error":"#NAME?"}},{"$f":"_xll.RiskData('Risk Summary'!L$48,$A228)/1000","v":{"$error":"#NAME?"}},null,null,{"$f":"(_xll.RiskData(NR_to_Cash!C$18,$A228))/1000","v":{"$error":"#NAME?"}},{"$f":"(_xll.RiskData(NR_to_Cash!D$18,$A228))/1000","v":{"$error":"#NAME?"}},{"$f":"(_xll.RiskData(NR_to_Cash!E$18,$A228))/1000","v":{"$error":"#NAME?"}}]
[222,{"$f":"_xll.RiskData('Risk Summary'!J$48,$A229)/1000","v":{"$error":"#NAME?"}},{"$f":"_xll.RiskData('Risk Summary'!K$48,$A229)/1000","v":{"$error":"#NAME?"}},{"$f":"_xll.RiskData('Risk Summary'!L$48,$A229)/1000","v":{"$error":"#NAME?"}},null,null,{"$f":"(_xll.RiskData(NR_to_Cash!C$18,$A229))/1000","v":{"$error":"#NAME?"}},{"$f":"(_xll.RiskData(NR_to_Cash!D$18,$A229))/1000","v":{"$error":"#NAME?"}},{"$f":"(_xll.RiskData(NR_to_Cash!E$18,$A229))/1000","v":{"$error":"#NAME?"}}]
[223,{"$f":"_xll.RiskData('Risk Summary'!J$48,$A230)/1000","v":{"$error":"#NAME?"}},{"$f":"_xll.RiskData('Risk Summary'!K$48,$A230)/1000","v":{"$error":"#NAME?"}},{"$f":"_xll.RiskData('Risk Summary'!L$48,$A230)/1000","v":{"$error":"#NAME?"}},null,null,{"$f":"(_xll.RiskData(NR_to_Cash!C$18,$A230))/1000","v":{"$error":"#NAME?"}},{"$f":"(_xll.RiskData(NR_to_Cash!D$18,$A230))/1000","v":{"$error":"#NAME?"}},{"$f":"(_xll.RiskData(NR_to_Cash!E$18,$A230))/1000","v":{"$error":"#NAME?"}}]
[224,{"$f":"_xll.RiskData('Risk Summary'!J$48,$A231)/1000","v":{"$error":"#NAME?"}},{"$f":"_xll.RiskData('Risk Summary'!K$48,$A231)/1000","v":{"$error":"#NAME?"}},{"$f":"_xll.RiskData('Risk Summary'!L$48,$A231)/1000","v":{"$error":"#NAME?"}},null,null,{"$f":"(_xll.RiskData(NR_to_Cash!C$18,$A231))/1000","v":{"$error":"#NAME?"}},{"$f":"(_xll.RiskData(NR_to_Cash!D$18,$A231))/1000","v":{"$error":"#NAME?"}},{"$f":"(_xll.RiskData(NR_to_Cash!E$18,$A231))/1000","v":{"$error":"#NAME?"}}]
[225,{"$f":"_xll.RiskData('Risk Summary'!J$48,$A232)/1000","v":{"$error":"#NAME?"}},{"$f":"_xll.RiskData('Risk Summary'!K$48,$A232)/1000","v":{"$error":"#NAME?"}},{"$f":"_xll.RiskData('Risk Summary'!L$48,$A232)/1000","v":{"$error":"#NAME?"}},null,null,{"$f":"(_xll.RiskData(NR_to_Cash!C$18,$A232))/1000","v":{"$error":"#NAME?"}},{"$f":"(_xll.RiskData(NR_to_Cash!D$18,$A232))/1000","v":{"$error":"#NAME?"}},{"$f":"(_xll.RiskData(NR_to_Cash!E$18,$A232))/1000","v":{"$error":"#NAME?"}}]
[226,{"$f":"_xll.RiskData('Risk Summary'!J$48,$A233)/1000","v":{"$error":"#NAME?"}},{"$f":"_xll.RiskData('Risk Summary'!K$48,$A233)/1000","v":{"$error":"#NAME?"}},{"$f":"_xll.RiskData('Risk Summary'!L$48,$A233)/1000","v":{"$error":"#NAME?"}},null,null,{"$f":"(_xll.RiskData(NR_to_Cash!C$18,$A233))/1000","v":{"$error":"#NAME?"}},{"$f":"(_xll.RiskData(NR_to_Cash!D$18,$A233))/1000","v":{"$error":"#NAME?"}},{"$f":"(_xll.RiskData(NR_to_Cash!E$18,$A233))/1000","v":{"$error":"#NAME?"}}]
[227,{"$f":"_xll.RiskData('Risk Summary'!J$48,$A234)/1000","v":{"$error":"#NAME?"}},{"$f":"_xll.RiskData('Risk Summary'!K$48,$A234)/1000","v":{"$error":"#NAME?"}},{"$f":"_xll.RiskData('Risk Summary'!L$48,$A234)/1000","v":{"$error":"#NAME?"}},null,null,{"$f":"(_xll.RiskData(NR_to_Cash!C$18,$A234))/1000","v":{"$error":"#NAME?"}},{"$f":"(_xll.RiskData(NR_to_Cash!D$18,$A234))/1000","v":{"$error":"#NAME?"}},{"$f":"(_xll.RiskData(NR_to_Cash!E$18,$A234))/1000","v":{"$error":"#NAME?"}}]
[228,{"$f":"_xll.RiskData('Risk Summary'!J$48,$A235)/1000","v":{"$error":"#NAME?"}},{"$f":"_xll.RiskData('Risk Summary'!K$48,$A235)/1000","v":{"$error":"#NAME?"}},{"$f":"_xll.RiskData('Risk Summary'!L$48,$A235)/1000","v":{"$error":"#NAME?"}},null,null,{"$f":"(_xll.RiskData(NR_to_Cash!C$18,$A235))/1000","v":{"$error":"#NAME?"}},{"$f":"(_xll.RiskData(NR_to_Cash!D$18,$A235))/1000","v":{"$error":"#NAME?"}},{"$f":"(_xll.RiskData(NR_to_Cash!E$18,$A235))/1000","v":{"$error":"#NAME?"}}]
[229,{"$f":"_xll.RiskData('Risk Summary'!J$48,$A236)/1000","v":{"$error":"#NAME?"}},{"$f":"_xll.RiskData('Risk Summary'!K$48,$A236)/1000","v":{"$error":"#NAME?"}},{"$f":"_xll.RiskData('Risk Summary'!L$48,$A236)/1000","v":{"$error":"#NAME?"}},null,null,{"$f":"(_xll.RiskData(NR_to_Cash!C$18,$A236))/1000","v":{"$error":"#NAME?"}},{"$f":"(_xll.RiskData(NR_to_Cash!D$18,$A236))/1000","v":{"$error":"#NAME?"}},{"$f":"(_xll.RiskData(NR_to_Cash!E$18,$A236))/1000","v":{"$error":"#NAME?"}}]
[230,{"$f":"_xll.RiskData('Risk Summary'!J$48,$A237)/1000","v":{"$error":"#NAME?"}},{"$f":"_xll.RiskData('Risk Summary'!K$48,$A237)/1000","v":{"$error":"#NAME?"}},{"$f":"_xll.RiskData('Risk Summary'!L$48,$A237)/1000","v":{"$error":"#NAME?"}},null,null,{"$f":"(_xll.RiskData(NR_to_Cash!C$18,$A237))/1000","v":{"$error":"#NAME?"}},{"$f":"(_xll.RiskData(NR_to_Cash!D$18,$A237))/1000","v":{"$error":"#NAME?"}},{"$f":"(_xll.RiskData(NR_to_Cash!E$18,$A237))/1000","v":{"$error":"#NAME?"}}]
[231,{"$f":"_xll.RiskData('Risk Summary'!J$48,$A238)/1000","v":{"$error":"#NAME?"}},{"$f":"_xll.RiskData('Risk Summary'!K$48,$A238)/1000","v":{"$error":"#NAME?"}},{"$f":"_xll.RiskData('Risk Summary'!L$48,$A238)/1000","v":{"$error":"#NAME?"}},null,null,{"$f":"(_xll.RiskData(NR_to_Cash!C$18,$A238))/1000","v":{"$error":"#NAME?"}},{"$f":"(_xll.RiskData(NR_to_Cash!D$18,$A238))/1000","v":{"$error":"#NAME?"}},{"$f":"(_xll.RiskData(NR_to_Cash!E$18,$A238))/1000","v":{"$error":"#NAME?"}}]
[232,{"$f":"_xll.RiskData('Risk Summary'!J$48,$A239)/1000","v":{"$error":"#NAME?"}},{"$f":"_xll.RiskData('Risk Summary'!K$48,$A239)/1000","v":{"$error":"#NAME?"}},{"$f":"_xll.RiskData('Risk Summary'!L$48,$A239)/1000","v":{"$error":"#NAME?"}},null,null,{"$f":"(_xll.RiskData(NR_to_Cash!C$18,$A239))/1000","v":{"$error":"#NAME?"}},{"$f":"(_xll.RiskData(NR_to_Cash!D$18,$A239))/1000","v":{"$error":"#NAME?"}},{"$f":"(_xll.RiskData(NR_to_Cash!E$18,$A239))/1000","v":{"$error":"#NAME?"}}]
[233,{"$f":"_xll.RiskData('Risk Summary'!J$48,$A240)/1000","v":{"$error":"#NAME?"}},{"$f":"_xll.RiskData('Risk Summary'!K$48,$A240)/1000","v":{"$error":"#NAME?"}},{"$f":"_xll.RiskData('Risk Summary'!L$48,$A240)/1000","v":{"$error":"#NAME?"}},null,null,{"$f":"(_xll.RiskData(NR_to_Cash!C$18,$A240))/1000","v":{"$error":"#NAME?"}},{"$f":"(_xll.RiskData(NR_to_Cash!D$18,$A240))/1000","v":{"$error":"#NAME?"}},{"$f":"(_xll.RiskData(NR_to_Cash!E$18,$A240))/1000","v":{"$error":"#NAME?"}}]
[234,{"$f":"_xll.RiskData('Risk Summary'!J$48,$A241)/1000","v":{"$error":"#NAME?"}},{"$f":"_xll.RiskData('Risk Summary'!K$48,$A241)/1000","v":{"$error":"#NAME?"}},{"$f":"_xll.RiskData('Risk Summary'!L$48,$A241)/1000","v":{"$error":"#NAME?"}},null,null,{"$f":"(_xll.RiskData(NR_to_Cash!C$18,$A241))/1000","v":{"$error":"#NAME?"}},{"$f":"(_xll.RiskData(NR_to_Cash!D$18,$A241))/1000","v":{"$error":"#NAME?"}},{"$f":"(_xll.RiskData(NR_to_Cash!E$18,$A241))/1000","v":{"$error":"#NAME?"}}]
[235,{"$f":"_xll.RiskData('Risk Summary'!J$48,$A242)/1000","v":{"$error":"#NAME?"}},{"$f":"_xll.RiskData('Risk Summary'!K$48,$A242)/1000","v":{"$error":"#NAME?"}},{"$f":"_xll.RiskData('Risk Summary'!L$48,$A242)/1000","v":{"$error":"#NAME?"}},null,null,{"$f":"(_xll.RiskData(NR_to_Cash!C$18,$A242))/1000","v":{"$error":"#NAME?"}},{"$f":"(_xll.RiskData(NR_to_Cash!D$18,$A242))/1000","v":{"$error":"#NAME?"}},{"$f":"(_xll.RiskData(NR_to_Cash!E$18,$A242))/1000","v":{"$error":"#NAME?"}}]
[236,{"$f":"_xll.RiskData('Risk Summary'!J$48,$A243)/1000","v":{"$error":"#NAME?"}},{"$f":"_xll.RiskData('Risk Summary'!K$48,$A243)/1000","v":{"$error":"#NAME?"}},{"$f":"_xll.RiskData('Risk Summary'!L$48,$A243)/1000","v":{"$error":"#NAME?"}},null,null,{"$f":"(_xll.RiskData(NR_to_Cash!C$18,$A243))/1000","v":{"$error":"#NAME?"}},{"$f":"(_xll.RiskData(NR_to_Cash!D$18,$A243))/1000","v":{"$error":"#NAME?"}},{"$f":"(_xll.RiskData(NR_to_Cash!E$18,$A243))/1000","v":{"$error":"#NAME?"}}]
[237,{"$f":"_xll.RiskData('Risk Summary'!J$48,$A244)/1000","v":{"$error":"#NAME?"}},{"$f":"_xll.RiskData('Risk Summary'!K$48,$A244)/1000","v":{"$error":"#NAME?"}},{"$f":"_xll.RiskData('Risk Summary'!L$48,$A244)/1000","v":{"$error":"#NAME?"}},null,null,{"$f":"(_xll.RiskData(NR_to_Cash!C$18,$A244))/1000","v":{"$error":"#NAME?"}},{"$f":"(_xll.RiskData(NR_to_Cash!D$18,$A244))/1000","v":{"$error":"#NAME?"}},{"$f":"(_xll.RiskData(NR_to_Cash!E$18,$A244))/1000","v":{"$error":"#NAME?"}}]
[238,{"$f":"_xll.RiskData('Risk Summary'!J$48,$A245)/1000","v":{"$error":"#NAME?"}},{"$f":"_xll.RiskData('Risk Summary'!K$48,$A245)/1000","v":{"$error":"#NAME?"}},{"$f":"_xll.RiskData('Risk Summary'!L$48,$A245)/1000","v":{"$error":"#NAME?"}},null,null,{"$f":"(_xll.RiskData(NR_to_Cash!C$18,$A245))/1000","v":{"$error":"#NAME?"}},{"$f":"(_xll.RiskData(NR_to_Cash!D$18,$A245))/1000","v":{"$error":"#NAME?"}},{"$f":"(_xll.RiskData(NR_to_Cash!E$18,$A245))/1000","v":{"$error":"#NAME?"}}]
[239,{"$f":"_xll.RiskData('Risk Summary'!J$48,$A246)/1000","v":{"$error":"#NAME?"}},{"$f":"_xll.RiskData('Risk Summary'!K$48,$A246)/1000","v":{"$error":"#NAME?"}},{"$f":"_xll.RiskData('Risk Summary'!L$48,$A246)/1000","v":{"$error":"#NAME?"}},null,null,{"$f":"(_xll.RiskData(NR_to_Cash!C$18,$A246))/1000","v":{"$error":"#NAME?"}},{"$f":"(_xll.RiskData(NR_to_Cash!D$18,$A246))/1000","v":{"$error":"#NAME?"}},{"$f":"(_xll.RiskData(NR_to_Cash!E$18,$A246))/1000","v":{"$error":"#NAME?"}}]
[240,{"$f":"_xll.RiskData('Risk Summary'!J$48,$A247)/1000","v":{"$error":"#NAME?"}},{"$f":"_xll.RiskData('Risk Summary'!K$48,$A247)/1000","v":{"$error":"#NAME?"}},{"$f":"_xll.RiskData('Risk Summary'!L$48,$A247)/1000","v":{"$error":"#NAME?"}},null,null,{"$f":"(_xll.RiskData(NR_to_Cash!C$18,$A247))/1000","v":{"$error":"#NAME?"}},{"$f":"(_xll.RiskData(NR_to_Cash!D$18,$A247))/1000","v":{"$error":"#NAME?"}},{"$f":"(_xll.RiskData(NR_to_Cash!E$18,$A247))/1000","v":{"$error":"#NAME?"}}]
[241,{"$f":"_xll.RiskData('Risk Summary'!J$48,$A248)/1000","v":{"$error":"#NAME?"}},{"$f":"_xll.RiskData('Risk Summary'!K$48,$A248)/1000","v":{"$error":"#NAME?"}},{"$f":"_xll.RiskData('Risk Summary'!L$48,$A248)/1000","v":{"$error":"#NAME?"}},null,null,{"$f":"(_xll.RiskData(NR_to_Cash!C$18,$A248))/1000","v":{"$error":"#NAME?"}},{"$f":"(_xll.RiskData(NR_to_Cash!D$18,$A248))/1000","v":{"$error":"#NAME?"}},{"$f":"(_xll.RiskData(NR_to_Cash!E$18,$A248))/1000","v":{"$error":"#NAME?"}}]
[242,{"$f":"_xll.RiskData('Risk Summary'!J$48,$A249)/1000","v":{"$error":"#NAME?"}},{"$f":"_xll.RiskData('Risk Summary'!K$48,$A249)/1000","v":{"$error":"#NAME?"}},{"$f":"_xll.RiskData('Risk Summary'!L$48,$A249)/1000","v":{"$error":"#NAME?"}},null,null,{"$f":"(_xll.RiskData(NR_to_Cash!C$18,$A249))/1000","v":{"$error":"#NAME?"}},{"$f":"(_xll.RiskData(NR_to_Cash!D$18,$A249))/1000","v":{"$error":"#NAME?"}},{"$f":"(_xll.RiskData(NR_to_Cash!E$18,$A249))/1000","v":{"$error":"#NAME?"}}]
[243,{"$f":"_xll.RiskData('Risk Summary'!J$48,$A250)/1000","v":{"$error":"#NAME?"}},{"$f":"_xll.RiskData('Risk Summary'!K$48,$A250)/1000","v":{"$error":"#NAME?"}},{"$f":"_xll.RiskData('Risk Summary'!L$48,$A250)/1000","v":{"$error":"#NAME?"}},null,null,{"$f":"(_xll.RiskData(NR_to_Cash!C$18,$A250))/1000","v":{"$error":"#NAME?"}},{"$f":"(_xll.RiskData(NR_to_Cash!D$18,$A250))/1000","v":{"$error":"#NAME?"}},{"$f":"(_xll.RiskData(NR_to_Cash!E$18,$A250))/1000","v":{"$error":"#NAME?"}}]
[244,{"$f":"_xll.RiskData('Risk Summary'!J$48,$A251)/1000","v":{"$error":"#NAME?"}},{"$f":"_xll.RiskData('Risk Summary'!K$48,$A251)/1000","v":{"$error":"#NAME?"}},{"$f":"_xll.RiskData('Risk Summary'!L$48,$A251)/1000","v":{"$error":"#NAME?"}},null,null,{"$f":"(_xll.RiskData(NR_to_Cash!C$18,$A251))/1000","v":{"$error":"#NAME?"}},{"$f":"(_xll.RiskData(NR_to_Cash!D$18,$A251))/1000","v":{"$error":"#NAME?"}},{"$f":"(_xll.RiskData(NR_to_Cash!E$18,$A251))/1000","v":{"$error":"#NAME?"}}]
[245,{"$f":"_xll.RiskData('Risk Summary'!J$48,$A252)/1000","v":{"$error":"#NAME?"}},{"$f":"_xll.RiskData('Risk Summary'!K$48,$A252)/1000","v":{"$error":"#NAME?"}},{"$f":"_xll.RiskData('Risk Summary'!L$48,$A252)/1000","v":{"$error":"#NAME?"}},null,null,{"$f":"(_xll.RiskData(NR_to_Cash!C$18,$A252))/1000","v":{"$error":"#NAME?"}},{"$f":"(_xll.RiskData(NR_to_Cash!D$18,$A252))/1000","v":{"$error":"#NAME?"}},{"$f":"(_xll.RiskData(NR_to_Cash!E$18,$A252))/1000","v":{"$error":"#NAME?"}}]
[246,{"$f":"_xll.RiskData('Risk Summary'!J$48,$A253)/1000","v":{"$error":"#NAME?"}},{"$f":"_xll.RiskData('Risk Summary'!K$48,$A253)/1000","v":{"$error":"#NAME?"}},{"$f":"_xll.RiskData('Risk Summary'!L$48,$A253)/1000","v":{"$error":"#NAME?"}},null,null,{"$f":"(_xll.RiskData(NR_to_Cash!C$18,$A253))/1000","v":{"$error":"#NAME?"}},{"$f":"(_xll.RiskData(NR_to_Cash!D$18,$A253))/1000","v":{"$error":"#NAME?"}},{"$f":"(_xll.RiskData(NR_to_Cash!E$18,$A253))/1000","v":{"$error":"#NAME?"}}]
[247,{"$f":"_xll.RiskData('Risk Summary'!J$48,$A254)/1000","v":{"$error":"#NAME?"}},{"$f":"_xll.RiskData('Risk Summary'!K$48,$A254)/1000","v":{"$error":"#NAME?"}},{"$f":"_xll.RiskData('Risk Summary'!L$48,$A254)/1000","v":{"$error":"#NAME?"}},null,null,{"$f":"(_xll.RiskData(NR_to_Cash!C$18,$A254))/1000","v":{"$error":"#NAME?"}},{"$f":"(_xll.RiskData(NR_to_Cash!D$18,$A254))/1000","v":{"$error":"#NAME?"}},{"$f":"(_xll.RiskData(NR_to_Cash!E$18,$A254))/1000","v":{"$error":"#NAME?"}}]
[248,{"$f":"_xll.RiskData('Risk Summary'!J$48,$A255)/1000","v":{"$error":"#NAME?"}},{"$f":"_xll.RiskData('Risk Summary'!K$48,$A255)/1000","v":{"$error":"#NAME?"}},{"$f":"_xll.RiskData('Risk Summary'!L$48,$A255)/1000","v":{"$error":"#NAME?"}},null,null,{"$f":"(_xll.RiskData(NR_to_Cash!C$18,$A255))/1000","v":{"$error":"#NAME?"}},{"$f":"(_xll.RiskData(NR_to_Cash!D$18,$A255))/1000","v":{"$error":"#NAME?"}},{"$f":"(_xll.RiskData(NR_to_Cash!E$18,$A255))/1000","v":{"$error":"#NAME?"}}]
[249,{"$f":"_xll.RiskData('Risk Summary'!J$48,$A256)/1000","v":{"$error":"#NAME?"}},{"$f":"_xll.RiskData('Risk Summary'!K$48,$A256)/1000","v":{"$error":"#NAME?"}},{"$f":"_xll.RiskData('Risk Summary'!L$48,$A256)/1000","v":{"$error":"#NAME?"}},null,null,{"$f":"(_xll.RiskData(NR_to_Cash!C$18,$A256))/1000","v":{"$error":"#NAME?"}},{"$f":"(_xll.RiskData(NR_to_Cash!D$18,$A256))/1000","v":{"$error":"#NAME?"}},{"$f":"(_xll.RiskData(NR_to_Cash!E$18,$A256))/1000","v":{"$error":"#NAME?"}}]
[250,{"$f":"_xll.RiskData('Risk Summary'!J$48,$A257)/1000","v":{"$error":"#NAME?"}},{"$f":"_xll.RiskData('Risk Summary'!K$48,$A257)/1000","v":{"$error":"#NAME?"}},{"$f":"_xll.RiskData('Risk Summary'!L$48,$A257)/1000","v":{"$error":"#NAME?"}},null,null,{"$f":"(_xll.RiskData(NR_to_Cash!C$18,$A257))/1000","v":{"$error":"#NAME?"}},{"$f":"(_xll.RiskData(NR_to_Cash!D$18,$A257))/1000","v":{"$error":"#NAME?"}},{"$f":"(_xll.RiskData(NR_to_Cash!E$18,$A257))/1000","v":{"$error":"#NAME?"}}]
[251,{"$f":"_xll.RiskData('Risk Summary'!J$48,$A258)/1000","v":{"$error":"#NAME?"}},{"$f":"_xll.RiskData('Risk Summary'!K$48,$A258)/1000","v":{"$error":"#NAME?"}},{"$f":"_xll.RiskData('Risk Summary'!L$48,$A258)/1000","v":{"$error":"#NAME?"}},null,null,{"$f":"(_xll.RiskData(NR_to_Cash!C$18,$A258))/1000","v":{"$error":"#NAME?"}},{"$f":"(_xll.RiskData(NR_to_Cash!D$18,$A258))/1000","v":{"$error":"#NAME?"}},{"$f":"(_xll.RiskData(NR_to_Cash!E$18,$A258))/1000","v":{"$error":"#NAME?"}}]
[252,{"$f":"_xll.RiskData('Risk Summary'!J$48,$A259)/1000","v":{"$error":"#NAME?"}},{"$f":"_xll.RiskData('Risk Summary'!K$48,$A259)/1000","v":{"$error":"#NAME?"}},{"$f":"_xll.RiskData('Risk Summary'!L$48,$A259)/1000","v":{"$error":"#NAME?"}},null,null,{"$f":"(_xll.RiskData(NR_to_Cash!C$18,$A259))/1000","v":{"$error":"#NAME?"}},{"$f":"(_xll.RiskData(NR_to_Cash!D$18,$A259))/1000","v":{"$error":"#NAME?"}},{"$f":"(_xll.RiskData(NR_to_Cash!E$18,$A259))/1000","v":{"$error":"#NAME?"}}]
[253,{"$f":"_xll.RiskData('Risk Summary'!J$48,$A260)/1000","v":{"$error":"#NAME?"}},{"$f":"_xll.RiskData('Risk Summary'!K$48,$A260)/1000","v":{"$error":"#NAME?"}},{"$f":"_xll.RiskData('Risk Summary'!L$48,$A260)/1000","v":{"$error":"#NAME?"}},null,null,{"$f":"(_xll.RiskData(NR_to_Cash!C$18,$A260))/1000","v":{"$error":"#NAME?"}},{"$f":"(_xll.RiskData(NR_to_Cash!D$18,$A260))/1000","v":{"$error":"#NAME?"}},{"$f":"(_xll.RiskData(NR_to_Cash!E$18,$A260))/1000","v":{"$error":"#NAME?"}}]
[254,{"$f":"_xll.RiskData('Risk Summary'!J$48,$A261)/1000","v":{"$error":"#NAME?"}},{"$f":"_xll.RiskData('Risk Summary'!K$48,$A261)/1000","v":{"$error":"#NAME?"}},{"$f":"_xll.RiskData('Risk Summary'!L$48,$A261)/1000","v":{"$error":"#NAME?"}},null,null,{"$f":"(_xll.RiskData(NR_to_Cash!C$18,$A261))/1000","v":{"$error":"#NAME?"}},{"$f":"(_xll.RiskData(NR_to_Cash!D$18,$A261))/1000","v":{"$error":"#NAME?"}},{"$f":"(_xll.RiskData(NR_to_Cash!E$18,$A261))/1000","v":{"$error":"#NAME?"}}]
[255,{"$f":"_xll.RiskData('Risk Summary'!J$48,$A262)/1000","v":{"$error":"#NAME?"}},{"$f":"_xll.RiskData('Risk Summary'!K$48,$A262)/1000","v":{"$error":"#NAME?"}},{"$f":"_xll.RiskData('Risk Summary'!L$48,$A262)/1000","v":{"$error":"#NAME?"}},null,null,{"$f":"(_xll.RiskData(NR_to_Cash!C$18,$A262))/1000","v":{"$error":"#NAME?"}},{"$f":"(_xll.RiskData(NR_to_Cash!D$18,$A262))/1000","v":{"$error":"#NAME?"}},{"$f":"(_xll.RiskData(NR_to_Cash!E$18,$A262))/1000","v":{"$error":"#NAME?"}}]
[256,{"$f":"_xll.RiskData('Risk Summary'!J$48,$A263)/1000","v":{"$error":"#NAME?"}},{"$f":"_xll.RiskData('Risk Summary'!K$48,$A263)/1000","v":{"$error":"#NAME?"}},{"$f":"_xll.RiskData('Risk Summary'!L$48,$A263)/1000","v":{"$error":"#NAME?"}},null,null,{"$f":"(_xll.RiskData(NR_to_Cash!C$18,$A263))/1000","v":{"$error":"#NAME?"}},{"$f":"(_xll.RiskData(NR_to_Cash!D$18,$A263))/1000","v":{"$error":"#NAME?"}},{"$f":"(_xll.RiskData(NR_to_Cash!E$18,$A263))/1000","v":{"$error":"#NAME?"}}]
[257,{"$f":"_xll.RiskData('Risk Summary'!J$48,$A264)/1000","v":{"$error":"#NAME?"}},{"$f":"_xll.RiskData('Risk Summary'!K$48,$A264)/1000","v":{"$error":"#NAME?"}},{"$f":"_xll.RiskData('Risk Summary'!L$48,$A264)/1000","v":{"$error":"#NAME?"}},null,null,{"$f":"(_xll.RiskData(NR_to_Cash!C$18,$A264))/1000","v":{"$error":"#NAME?"}},{"$f":"(_xll.RiskData(NR_to_Cash!D$18,$A264))/1000","v":{"$error":"#NAME?"}},{"$f":"(_xll.RiskData(NR_to_Cash!E$18,$A264))/1000","v":{"$error":"#NAME?"}}]
[258,{"$f":"_xll.RiskData('Risk Summary'!J$48,$A265)/1000","v":{"$error":"#NAME?"}},{"$f":"_xll.RiskData('Risk Summary'!K$48,$A265)/1000","v":{"$error":"#NAME?"}},{"$f":"_xll.RiskData('Risk Summary'!L$48,$A265)/1000","v":{"$error":"#NAME?"}},null,null,{"$f":"(_xll.RiskData(NR_to_Cash!C$18,$A265))/1000","v":{"$error":"#NAME?"}},{"$f":"(_xll.RiskData(NR_to_Cash!D$18,$A265))/1000","v":{"$error":"#NAME?"}},{"$f":"(_xll.RiskData(NR_to_Cash!E$18,$A265))/1000","v":{"$error":"#NAME?"}}]
[259,{"$f":"_xll.RiskData('Risk Summary'!J$48,$A266)/1000","v":{"$error":"#NAME?"}},{"$f":"_xll.RiskData('Risk Summary'!K$48,$A266)/1000","v":{"$error":"#NAME?"}},{"$f":"_xll.RiskData('Risk Summary'!L$48,$A266)/1000","v":{"$error":"#NAME?"}},null,null,{"$f":"(_xll.RiskData(NR_to_Cash!C$18,$A266))/1000","v":{"$error":"#NAME?"}},{"$f":"(_xll.RiskData(NR_to_Cash!D$18,$A266))/1000","v":{"$error":"#NAME?"}},{"$f":"(_xll.RiskData(NR_to_Cash!E$18,$A266))/1000","v":{"$error":"#NAME?"}}]
[260,{"$f":"_xll.RiskData('Risk Summary'!J$48,$A267)/1000","v":{"$error":"#NAME?"}},{"$f":"_xll.RiskData('Risk Summary'!K$48,$A267)/1000","v":{"$error":"#NAME?"}},{"$f":"_xll.RiskData('Risk Summary'!L$48,$A267)/1000","v":{"$error":"#NAME?"}},null,null,{"$f":"(_xll.RiskData(NR_to_Cash!C$18,$A267))/1000","v":{"$error":"#NAME?"}},{"$f":"(_xll.RiskData(NR_to_Cash!D$18,$A267))/1000","v":{"$error":"#NAME?"}},{"$f":"(_xll.RiskData(NR_to_Cash!E$18,$A267))/1000","v":{"$error":"#NAME?"}}]
[261,{"$f":"_xll.RiskData('Risk Summary'!J$48,$A268)/1000","v":{"$error":"#NAME?"}},{"$f":"_xll.RiskData('Risk Summary'!K$48,$A268)/1000","v":{"$error":"#NAME?"}},{"$f":"_xll.RiskData('Risk Summary'!L$48,$A268)/1000","v":{"$error":"#NAME?"}},null,null,{"$f":"(_xll.RiskData(NR_to_Cash!C$18,$A268))/1000","v":{"$error":"#NAME?"}},{"$f":"(_xll.RiskData(NR_to_Cash!D$18,$A268))/1000","v":{"$error":"#NAME?"}},{"$f":"(_xll.RiskData(NR_to_Cash!E$18,$A268))/1000","v":{"$error":"#NAME?"}}]
[262,{"$f":"_xll.RiskData('Risk Summary'!J$48,$A269)/1000","v":{"$error":"#NAME?"}},{"$f":"_xll.RiskData('Risk Summary'!K$48,$A269)/1000","v":{"$error":"#NAME?"}},{"$f":"_xll.RiskData('Risk Summary'!L$48,$A269)/1000","v":{"$error":"#NAME?"}},null,null,{"$f":"(_xll.RiskData(NR_to_Cash!C$18,$A269))/1000","v":{"$error":"#NAME?"}},{"$f":"(_xll.RiskData(NR_to_Cash!D$18,$A269))/1000","v":{"$error":"#NAME?"}},{"$f":"(_xll.RiskData(NR_to_Cash!E$18,$A269))/1000","v":{"$error":"#NAME?"}}]
[263,{"$f":"_xll.RiskData('Risk Summary'!J$48,$A270)/1000","v":{"$error":"#NAME?"}},{"$f":"_xll.RiskData('Risk Summary'!K$48,$A270)/1000","v":{"$error":"#NAME?"}},{"$f":"_xll.RiskData('Risk Summary'!L$48,$A270)/1000","v":{"$error":"#NAME?"}},null,null,{"$f":"(_xll.RiskData(NR_to_Cash!C$18,$A270))/1000","v":{"$error":"#NAME?"}},{"$f":"(_xll.RiskData(NR_to_Cash!D$18,$A270))/1000","v":{"$error":"#NAME?"}},{"$f":"(_xll.RiskData(NR_to_Cash!E$18,$A270))/1000","v":{"$error":"#NAME?"}}]
[264,{"$f":"_xll.RiskData('Risk Summary'!J$48,$A271)/1000","v":{"$error":"#NAME?"}},{"$f":"_xll.RiskData('Risk Summary'!K$48,$A271)/1000","v":{"$error":"#NAME?"}},{"$f":"_xll.RiskData('Risk Summary'!L$48,$A271)/1000","v":{"$error":"#NAME?"}},null,null,{"$f":"(_xll.RiskData(NR_to_Cash!C$18,$A271))/1000","v":{"$error":"#NAME?"}},{"$f":"(_xll.RiskData(NR_to_Cash!D$18,$A271))/1000","v":{"$error":"#NAME?"}},{"$f":"(_xll.RiskData(NR_to_Cash!E$18,$A271))/1000","v":{"$error":"#NAME?"}}]
[265,{"$f":"_xll.RiskData('Risk Summary'!J$48,$A272)/1000","v":{"$error":"#NAME?"}},{"$f":"_xll.RiskData('Risk Summary'!K$48,$A272)/1000","v":{"$error":"#NAME?"}},{"$f":"_xll.RiskData('Risk Summary'!L$48,$A272)/1000","v":{"$error":"#NAME?"}},null,null,{"$f":"(_xll.RiskData(NR_to_Cash!C$18,$A272))/1000","v":{"$error":"#NAME?"}},{"$f":"(_xll.RiskData(NR_to_Cash!D$18,$A272))/1000","v":{"$error":"#NAME?"}},{"$f":"(_xll.RiskData(NR_to_Cash!E$18,$A272))/1000","v":{"$error":"#NAME?"}}]
[266,{"$f":"_xll.RiskData('Risk Summary'!J$48,$A273)/1000","v":{"$error":"#NAME?"}},{"$f":"_xll.RiskData('Risk Summary'!K$48,$A273)/1000","v":{"$error":"#NAME?"}},{"$f":"_xll.RiskData('Risk Summary'!L$48,$A273)/1000","v":{"$error":"#NAME?"}},null,null,{"$f":"(_xll.RiskData(NR_to_Cash!C$18,$A273))/1000","v":{"$error":"#NAME?"}},{"$f":"(_xll.RiskData(NR_to_Cash!D$18,$A273))/1000","v":{"$error":"#NAME?"}},{"$f":"(_xll.RiskData(NR_to_Cash!E$18,$A273))/1000","v":{"$error":"#NAME?"}}]
[267,{"$f":"_xll.RiskData('Risk Summary'!J$48,$A274)/1000","v":{"$error":"#NAME?"}},{"$f":"_xll.RiskData('Risk Summary'!K$48,$A274)/1000","v":{"$error":"#NAME?"}},{"$f":"_xll.RiskData('Risk Summary'!L$48,$A274)/1000","v":{"$error":"#NAME?"}},null,null,{"$f":"(_xll.RiskData(NR_to_Cash!C$18,$A274))/1000","v":{"$error":"#NAME?"}},{"$f":"(_xll.RiskData(NR_to_Cash!D$18,$A274))/1000","v":{"$error":"#NAME?"}},{"$f":"(_xll.RiskData(NR_to_Cash!E$18,$A274))/1000","v":{"$error":"#NAME?"}}]
[268,{"$f":"_xll.RiskData('Risk Summary'!J$48,$A275)/1000","v":{"$error":"#NAME?"}},{"$f":"_xll.RiskData('Risk Summary'!K$48,$A275)/1000","v":{"$error":"#NAME?"}},{"$f":"_xll.RiskData('Risk Summary'!L$48,$A275)/1000","v":{"$error":"#NAME?"}},null,null,{"$f":"(_xll.RiskData(NR_to_Cash!C$18,$A275))/1000","v":{"$error":"#NAME?"}},{"$f":"(_xll.RiskData(NR_to_Cash!D$18,$A275))/1000","v":{"$error":"#NAME?"}},{"$f":"(_xll.RiskData(NR_to_Cash!E$18,$A275))/1000","v":{"$error":"#NAME?"}}]
[269,{"$f":"_xll.RiskData('Risk Summary'!J$48,$A276)/1000","v":{"$error":"#NAME?"}},{"$f":"_xll.RiskData('Risk Summary'!K$48,$A276)/1000","v":{"$error":"#NAME?"}},{"$f":"_xll.RiskData('Risk Summary'!L$48,$A276)/1000","v":{"$error":"#NAME?"}},null,null,{"$f":"(_xll.RiskData(NR_to_Cash!C$18,$A276))/1000","v":{"$error":"#NAME?"}},{"$f":"(_xll.RiskData(NR_to_Cash!D$18,$A276))/1000","v":{"$error":"#NAME?"}},{"$f":"(_xll.RiskData(NR_to_Cash!E$18,$A276))/1000","v":{"$error":"#NAME?"}}]
[270,{"$f":"_xll.RiskData('Risk Summary'!J$48,$A277)/1000","v":{"$error":"#NAME?"}},{"$f":"_xll.RiskData('Risk Summary'!K$48,$A277)/1000","v":{"$error":"#NAME?"}},{"$f":"_xll.RiskData('Risk Summary'!L$48,$A277)/1000","v":{"$error":"#NAME?"}},null,null,{"$f":"(_xll.RiskData(NR_to_Cash!C$18,$A277))/1000","v":{"$error":"#NAME?"}},{"$f":"(_xll.RiskData(NR_to_Cash!D$18,$A277))/1000","v":{"$error":"#NAME?"}},{"$f":"(_xll.RiskData(NR_to_Cash!E$18,$A277))/1000","v":{"$error":"#NAME?"}}]
[271,{"$f":"_xll.RiskData('Risk Summary'!J$48,$A278)/1000","v":{"$error":"#NAME?"}},{"$f":"_xll.RiskData('Risk Summary'!K$48,$A278)/1000","v":{"$error":"#NAME?"}},{"$f":"_xll.RiskData('Risk Summary'!L$48,$A278)/1000","v":{"$error":"#NAME?"}},null,null,{"$f":"(_xll.RiskData(NR_to_Cash!C$18,$A278))/1000","v":{"$error":"#NAME?"}},{"$f":"(_xll.RiskData(NR_to_Cash!D$18,$A278))/1000","v":{"$error":"#NAME?"}},{"$f":"(_xll.RiskData(NR_to_Cash!E$18,$A278))/1000","v":{"$error":"#NAME?"}}]
[272,{"$f":"_xll.RiskData('Risk Summary'!J$48,$A279)/1000","v":{"$error":"#NAME?"}},{"$f":"_xll.RiskData('Risk Summary'!K$48,$A279)/1000","v":{"$error":"#NAME?"}},{"$f":"_xll.RiskData('Risk Summary'!L$48,$A279)/1000","v":{"$error":"#NAME?"}},null,null,{"$f":"(_xll.RiskData(NR_to_Cash!C$18,$A279))/1000","v":{"$error":"#NAME?"}},{"$f":"(_xll.RiskData(NR_to_Cash!D$18,$A279))/1000","v":{"$error":"#NAME?"}},{"$f":"(_xll.RiskData(NR_to_Cash!E$18,$A279))/1000","v":{"$error":"#NAME?"}}]
[273,{"$f":"_xll.RiskData('Risk Summary'!J$48,$A280)/1000","v":{"$error":"#NAME?"}},{"$f":"_xll.RiskData('Risk Summary'!K$48,$A280)/1000","v":{"$error":"#NAME?"}},{"$f":"_xll.RiskData('Risk Summary'!L$48,$A280)/1000","v":{"$error":"#NAME?"}},null,null,{"$f":"(_xll.RiskData(NR_to_Cash!C$18,$A280))/1000","v":{"$error":"#NAME?"}},{"$f":"(_xll.RiskData(NR_to_Cash!D$18,$A280))/1000","v":{"$error":"#NAME?"}},{"$f":"(_xll.RiskData(NR_to_Cash!E$18,$A280))/1000","v":{"$error":"#NAME?"}}]
[274,{"$f":"_xll.RiskData('Risk Summary'!J$48,$A281)/1000","v":{"$error":"#NAME?"}},{"$f":"_xll.RiskData('Risk Summary'!K$48,$A281)/1000","v":{"$error":"#NAME?"}},{"$f":"_xll.RiskData('Risk Summary'!L$48,$A281)/1000","v":{"$error":"#NAME?"}},null,null,{"$f":"(_xll.RiskData(NR_to_Cash!C$18,$A281))/1000","v":{"$error":"#NAME?"}},{"$f":"(_xll.RiskData(NR_to_Cash!D$18,$A281))/1000","v":{"$error":"#NAME?"}},{"$f":"(_xll.RiskData(NR_to_Cash!E$18,$A281))/1000","v":{"$error":"#NAME?"}}]
[275,{"$f":"_xll.RiskData('Risk Summary'!J$48,$A282)/1000","v":{"$error":"#NAME?"}},{"$f":"_xll.RiskData('Risk Summary'!K$48,$A282)/1000","v":{"$error":"#NAME?"}},{"$f":"_xll.RiskData('Risk Summary'!L$48,$A282)/1000","v":{"$error":"#NAME?"}},null,null,{"$f":"(_xll.RiskData(NR_to_Cash!C$18,$A282))/1000","v":{"$error":"#NAME?"}},{"$f":"(_xll.RiskData(NR_to_Cash!D$18,$A282))/1000","v":{"$error":"#NAME?"}},{"$f":"(_xll.RiskData(NR_to_Cash!E$18,$A282))/1000","v":{"$error":"#NAME?"}}]
[276,{"$f":"_xll.RiskData('Risk Summary'!J$48,$A283)/1000","v":{"$error":"#NAME?"}},{"$f":"_xll.RiskData('Risk Summary'!K$48,$A283)/1000","v":{"$error":"#NAME?"}},{"$f":"_xll.RiskData('Risk Summary'!L$48,$A283)/1000","v":{"$error":"#NAME?"}},null,null,{"$f":"(_xll.RiskData(NR_to_Cash!C$18,$A283))/1000","v":{"$error":"#NAME?"}},{"$f":"(_xll.RiskData(NR_to_Cash!D$18,$A283))/1000","v":{"$error":"#NAME?"}},{"$f":"(_xll.RiskData(NR_to_Cash!E$18,$A283))/1000","v":{"$error":"#NAME?"}}]
[277,{"$f":"_xll.RiskData('Risk Summary'!J$48,$A284)/1000","v":{"$error":"#NAME?"}},{"$f":"_xll.RiskData('Risk Summary'!K$48,$A284)/1000","v":{"$error":"#NAME?"}},{"$f":"_xll.RiskData('Risk Summary'!L$48,$A284)/1000","v":{"$error":"#NAME?"}},null,null,{"$f":"(_xll.RiskData(NR_to_Cash!C$18,$A284))/1000","v":{"$error":"#NAME?"}},{"$f":"(_xll.RiskData(NR_to_Cash!D$18,$A284))/1000","v":{"$error":"#NAME?"}},{"$f":"(_xll.RiskData(NR_to_Cash!E$18,$A284))/1000","v":{"$error":"#NAME?"}}]
[278,{"$f":"_xll.RiskData('Risk Summary'!J$48,$A285)/1000","v":{"$error":"#NAME?"}},{"$f":"_xll.RiskData('Risk Summary'!K$48,$A285)/1000","v":{"$error":"#NAME?"}},{"$f":"_xll.RiskData('Risk Summary'!L$48,$A285)/1000","v":{"$error":"#NAME?"}},null,null,{"$f":"(_xll.RiskData(NR_to_Cash!C$18,$A285))/1000","v":{"$error":"#NAME?"}},{"$f":"(_xll.RiskData(NR_to_Cash!D$18,$A285))/1000","v":{"$error":"#NAME?"}},{"$f":"(_xll.RiskData(NR_to_Cash!E$18,$A285))/1000","v":{"$error":"#NAME?"}}]
[279,{"$f":"_xll.RiskData('Risk Summary'!J$48,$A286)/1000","v":{"$error":"#NAME?"}},{"$f":"_xll.RiskData('Risk Summary'!K$48,$A286)/1000","v":{"$error":"#NAME?"}},{"$f":"_xll.RiskData('Risk Summary'!L$48,$A286)/1000","v":{"$error":"#NAME?"}},null,null,{"$f":"(_xll.RiskData(NR_to_Cash!C$18,$A286))/1000","v":{"$error":"#NAME?"}},{"$f":"(_xll.RiskData(NR_to_Cash!D$18,$A286))/1000","v":{"$error":"#NAME?"}},{"$f":"(_xll.RiskData(NR_to_Cash!E$18,$A286))/1000","v":{"$error":"#NAME?"}}]
[280,{"$f":"_xll.RiskData('Risk Summary'!J$48,$A287)/1000","v":{"$error":"#NAME?"}},{"$f":"_xll.RiskData('Risk Summary'!K$48,$A287)/1000","v":{"$error":"#NAME?"}},{"$f":"_xll.RiskData('Risk Summary'!L$48,$A287)/1000","v":{"$error":"#NAME?"}},null,null,{"$f":"(_xll.RiskData(NR_to_Cash!C$18,$A287))/1000","v":{"$error":"#NAME?"}},{"$f":"(_xll.RiskData(NR_to_Cash!D$18,$A287))/1000","v":{"$error":"#NAME?"}},{"$f":"(_xll.RiskData(NR_to_Cash!E$18,$A287))/1000","v":{"$error":"#NAME?"}}]
[281,{"$f":"_xll.RiskData('Risk Summary'!J$48,$A288)/1000","v":{"$error":"#NAME?"}},{"$f":"_xll.RiskData('Risk Summary'!K$48,$A288)/1000","v":{"$error":"#NAME?"}},{"$f":"_xll.RiskData('Risk Summary'!L$48,$A288)/1000","v":{"$error":"#NAME?"}},null,null,{"$f":"(_xll.RiskData(NR_to_Cash!C$18,$A288))/1000","v":{"$error":"#NAME?"}},{"$f":"(_xll.RiskData(NR_to_Cash!D$18,$A288))/1000","v":{"$error":"#NAME?"}},{"$f":"(_xll.RiskData(NR_to_Cash!E$18,$A288))/1000","v":{"$error":"#NAME?"}}]
[282,{"$f":"_xll.RiskData('Risk Summary'!J$48,$A289)/1000","v":{"$error":"#NAME?"}},{"$f":"_xll.RiskData('Risk Summary'!K$48,$A289)/1000","v":{"$error":"#NAME?"}},{"$f":"_xll.RiskData('Risk Summary'!L$48,$A289)/1000","v":{"$error":"#NAME?"}},null,null,{"$f":"(_xll.RiskData(NR_to_Cash!C$18,$A289))/1000","v":{"$error":"#NAME?"}},{"$f":"(_xll.RiskData(NR_to_Cash!D$18,$A289))/1000","v":{"$error":"#NAME?"}},{"$f":"(_xll.RiskData(NR_to_Cash!E$18,$A289))/1000","v":{"$error":"#NAME?"}}]
[283,{"$f":"_xll.RiskData('Risk Summary'!J$48,$A290)/1000","v":{"$error":"#NAME?"}},{"$f":"_xll.RiskData('Risk Summary'!K$48,$A290)/1000","v":{"$error":"#NAME?"}},{"$f":"_xll.RiskData('Risk Summary'!L$48,$A290)/1000","v":{"$error":"#NAME?"}},null,null,{"$f":"(_xll.RiskData(NR_to_Cash!C$18,$A290))/1000","v":{"$error":"#NAME?"}},{"$f":"(_xll.RiskData(NR_to_Cash!D$18,$A290))/1000","v":{"$error":"#NAME?"}},{"$f":"(_xll.RiskData(NR_to_Cash!E$18,$A290))/1000","v":{"$error":"#NAME?"}}]
[284,{"$f":"_xll.RiskData('Risk Summary'!J$48,$A291)/1000","v":{"$error":"#NAME?"}},{"$f":"_xll.RiskData('Risk Summary'!K$48,$A291)/1000","v":{"$error":"#NAME?"}},{"$f":"_xll.RiskData('Risk Summary'!L$48,$A291)/1000","v":{"$error":"#NAME?"}},null,null,{"$f":"(_xll.RiskData(NR_to_Cash!C$18,$A291))/1000","v":{"$error":"#NAME?"}},{"$f":"(_xll.RiskData(NR_to_Cash!D$18,$A291))/1000","v":{"$error":"#NAME?"}},{"$f":"(_xll.RiskData(NR_to_Cash!E$18,$A291))/1000","v":{"$error":"#NAME?"}}]
[285,{"$f":"_xll.RiskData('Risk Summary'!J$48,$A292)/1000","v":{"$error":"#NAME?"}},{"$f":"_xll.RiskData('Risk Summary'!K$48,$A292)/1000","v":{"$error":"#NAME?"}},{"$f":"_xll.RiskData('Risk Summary'!L$48,$A292)/1000","v":{"$error":"#NAME?"}},null,null,{"$f":"(_xll.RiskData(NR_to_Cash!C$18,$A292))/1000","v":{"$error":"#NAME?"}},{"$f":"(_xll.RiskData(NR_to_Cash!D$18,$A292))/1000","v":{"$error":"#NAME?"}},{"$f":"(_xll.RiskData(NR_to_Cash!E$18,$A292))/1000","v":{"$error":"#NAME?"}}]
[286,{"$f":"_xll.RiskData('Risk Summary'!J$48,$A293)/1000","v":{"$error":"#NAME?"}},{"$f":"_xll.RiskData('Risk Summary'!K$48,$A293)/1000","v":{"$error":"#NAME?"}},{"$f":"_xll.RiskData('Risk Summary'!L$48,$A293)/1000","v":{"$error":"#NAME?"}},null,null,{"$f":"(_xll.RiskData(NR_to_Cash!C$18,$A293))/1000","v":{"$error":"#NAME?"}},{"$f":"(_xll.RiskData(NR_to_Cash!D$18,$A293))/1000","v":{"$error":"#NAME?"}},{"$f":"(_xll.RiskData(NR_to_Cash!E$18,$A293))/1000","v":{"$error":"#NAME?"}}]
[287,{"$f":"_xll.RiskData('Risk Summary'!J$48,$A294)/1000","v":{"$error":"#NAME?"}},{"$f":"_xll.RiskData('Risk Summary'!K$48,$A294)/1000","v":{"$error":"#NAME?"}},{"$f":"_xll.RiskData('Risk Summary'!L$48,$A294)/1000","v":{"$error":"#NAME?"}},null,null,{"$f":"(_xll.RiskData(NR_to_Cash!C$18,$A294))/1000","v":{"$error":"#NAME?"}},{"$f":"(_xll.RiskData(NR_to_Cash!D$18,$A294))/1000","v":{"$error":"#NAME?"}},{"$f":"(_xll.RiskData(NR_to_Cash!E$18,$A294))/1000","v":{"$error":"#NAME?"}}]
[288,{"$f":"_xll.RiskData('Risk Summary'!J$48,$A295)/1000","v":{"$error":"#NAME?"}},{"$f":"_xll.RiskData('Risk Summary'!K$48,$A295)/1000","v":{"$error":"#NAME?"}},{"$f":"_xll.RiskData('Risk Summary'!L$48,$A295)/1000","v":{"$error":"#NAME?"}},null,null,{"$f":"(_xll.RiskData(NR_to_Cash!C$18,$A295))/1000","v":{"$error":"#NAME?"}},{"$f":"(_xll.RiskData(NR_to_Cash!D$18,$A295))/1000","v":{"$error":"#NAME?"}},{"$f":"(_xll.RiskData(NR_to_Cash!E$18,$A295))/1000","v":{"$error":"#NAME?"}}]
[289,{"$f":"_xll.RiskData('Risk Summary'!J$48,$A296)/1000","v":{"$error":"#NAME?"}},{"$f":"_xll.RiskData('Risk Summary'!K$48,$A296)/1000","v":{"$error":"#NAME?"}},{"$f":"_xll.RiskData('Risk Summary'!L$48,$A296)/1000","v":{"$error":"#NAME?"}},null,null,{"$f":"(_xll.RiskData(NR_to_Cash!C$18,$A296))/1000","v":{"$error":"#NAME?"}},{"$f":"(_xll.RiskData(NR_to_Cash!D$18,$A296))/1000","v":{"$error":"#NAME?"}},{"$f":"(_xll.RiskData(NR_to_Cash!E$18,$A296))/1000","v":{"$error":"#NAME?"}}]
[290,{"$f":"_xll.RiskData('Risk Summary'!J$48,$A297)/1000","v":{"$error":"#NAME?"}},{"$f":"_xll.RiskData('Risk Summary'!K$48,$A297)/1000","v":{"$error":"#NAME?"}},{"$f":"_xll.RiskData('Risk Summary'!L$48,$A297)/1000","v":{"$error":"#NAME?"}},null,null,{"$f":"(_xll.RiskData(NR_to_Cash!C$18,$A297))/1000","v":{"$error":"#NAME?"}},{"$f":"(_xll.RiskData(NR_to_Cash!D$18,$A297))/1000","v":{"$error":"#NAME?"}},{"$f":"(_xll.RiskData(NR_to_Cash!E$18,$A297))/1000","v":{"$error":"#NAME?"}}]
[291,{"$f":"_xll.RiskData('Risk Summary'!J$48,$A298)/1000","v":{"$error":"#NAME?"}},{"$f":"_xll.RiskData('Risk Summary'!K$48,$A298)/1000","v":{"$error":"#NAME?"}},{"$f":"_xll.RiskData('Risk Summary'!L$48,$A298)/1000","v":{"$error":"#NAME?"}},null,null,{"$f":"(_xll.RiskData(NR_to_Cash!C$18,$A298))/1000","v":{"$error":"#NAME?"}},{"$f":"(_xll.RiskData(NR_to_Cash!D$18,$A298))/1000","v":{"$error":"#NAME?"}},{"$f":"(_xll.RiskData(NR_to_Cash!E$18,$A298))/1000","v":{"$error":"#NAME?"}}]
[292,{"$f":"_xll.RiskData('Risk Summary'!J$48,$A299)/1000","v":{"$error":"#NAME?"}},{"$f":"_xll.RiskData('Risk Summary'!K$48,$A299)/1000","v":{"$error":"#NAME?"}},{"$f":"_xll.RiskData('Risk Summary'!L$48,$A299)/1000","v":{"$error":"#NAME?"}},null,null,{"$f":"(_xll.RiskData(NR_to_Cash!C$18,$A299))/1000","v":{"$error":"#NAME?"}},{"$f":"(_xll.RiskData(NR_to_Cash!D$18,$A299))/1000","v":{"$error":"#NAME?"}},{"$f":"(_xll.RiskData(NR_to_Cash!E$18,$A299))/1000","v":{"$error":"#NAME?"}}]
[293,{"$f":"_xll.RiskData('Risk Summary'!J$48,$A300)/1000","v":{"$error":"#NAME?"}},{"$f":"_xll.RiskData('Risk Summary'!K$48,$A300)/1000","v":{"$error":"#NAME?"}},{"$f":"_xll.RiskData('Risk Summary'!L$48,$A300)/1000","v":{"$error":"#NAME?"}},null,null,{"$f":"(_xll.RiskData(NR_to_Cash!C$18,$A300))/1000","v":{"$error":"#NAME?"}},{"$f":"(_xll.RiskData(NR_to_Cash!D$18,$A300))/1000","v":{"$error":"#NAME?"}},{"$f":"(_xll.RiskData(NR_to_Cash!E$18,$A300))/1000","v":{"$error":"#NAME?"}}]
[294,{"$f":"_xll.RiskData('Risk Summary'!J$48,$A301)/1000","v":{"$error":"#NAME?"}},{"$f":"_xll.RiskData('Risk Summary'!K$48,$A301)/1000","v":{"$error":"#NAME?"}},{"$f":"_xll.RiskData('Risk Summary'!L$48,$A301)/1000","v":{"$error":"#NAME?"}},null,null,{"$f":"(_xll.RiskData(NR_to_Cash!C$18,$A301))/1000","v":{"$error":"#NAME?"}},{"$f":"(_xll.RiskData(NR_to_Cash!D$18,$A301))/1000","v":{"$error":"#NAME?"}},{"$f":"(_xll.RiskData(NR_to_Cash!E$18,$A301))/1000","v":{"$error":"#NAME?"}}]
[295,{"$f":"_xll.RiskData('Risk Summary'!J$48,$A302)/1000","v":{"$error":"#NAME?"}},{"$f":"_xll.RiskData('Risk Summary'!K$48,$A302)/1000","v":{"$error":"#NAME?"}},{"$f":"_xll.RiskData('Risk Summary'!L$48,$A302)/1000","v":{"$error":"#NAME?"}},null,null,{"$f":"(_xll.RiskData(NR_to_Cash!C$18,$A302))/1000","v":{"$error":"#NAME?"}},{"$f":"(_xll.RiskData(NR_to_Cash!D$18,$A302))/1000","v":{"$error":"#NAME?"}},{"$f":"(_xll.RiskData(NR_to_Cash!E$18,$A302))/1000","v":{"$error":"#NAME?"}}]
[296,{"$f":"_xll.RiskData('Risk Summary'!J$48,$A303)/1000","v":{"$error":"#NAME?"}},{"$f":"_xll.RiskData('Risk Summary'!K$48,$A303)/1000","v":{"$error":"#NAME?"}},{"$f":"_xll.RiskData('Risk Summary'!L$48,$A303)/1000","v":{"$error":"#NAME?"}},null,null,{"$f":"(_xll.RiskData(NR_to_Cash!C$18,$A303))/1000","v":{"$error":"#NAME?"}},{"$f":"(_xll.RiskData(NR_to_Cash!D$18,$A303))/1000","v":{"$error":"#NAME?"}},{"$f":"(_xll.RiskData(NR_to_Cash!E$18,$A303))/1000","v":{"$error":"#NAME?"}}]
[297,{"$f":"_xll.RiskData('Risk Summary'!J$48,$A304)/1000","v":{"$error":"#NAME?"}},{"$f":"_xll.RiskData('Risk Summary'!K$48,$A304)/1000","v":{"$error":"#NAME?"}},{"$f":"_xll.RiskData('Risk Summary'!L$48,$A304)/1000","v":{"$error":"#NAME?"}},null,null,{"$f":"(_xll.RiskData(NR_to_Cash!C$18,$A304))/1000","v":{"$error":"#NAME?"}},{"$f":"(_xll.RiskData(NR_to_Cash!D$18,$A304))/1000","v":{"$error":"#NAME?"}},{"$f":"(_xll.RiskData(NR_to_Cash!E$18,$A304))/1000","v":{"$error":"#NAME?"}}]
[298,{"$f":"_xll.RiskData('Risk Summary'!J$48,$A305)/1000","v":{"$error":"#NAME?"}},{"$f":"_xll.RiskData('Risk Summary'!K$48,$A305)/1000","v":{"$error":"#NAME?"}},{"$f":"_xll.RiskData('Risk Summary'!L$48,$A305)/1000","v":{"$error":"#NAME?"}},null,null,{"$f":"(_xll.RiskData(NR_to_Cash!C$18,$A305))/1000","v":{"$error":"#NAME?"}},{"$f":"(_xll.RiskData(NR_to_Cash!D$18,$A305))/1000","v":{"$error":"#NAME?"}},{"$f":"(_xll.RiskData(NR_to_Cash!E$18,$A305))/1000","v":{"$error":"#NAME?"}}]
[299,{"$f":"_xll.RiskData('Risk Summary'!J$48,$A306)/1000","v":{"$error":"#NAME?"}},{"$f":"_xll.RiskData('Risk Summary'!K$48,$A306)/1000","v":{"$error":"#NAME?"}},{"$f":"_xll.RiskData('Risk Summary'!L$48,$A306)/1000","v":{"$error":"#NAME?"}},null,null,{"$f":"(_xll.RiskData(NR_to_Cash!C$18,$A306))/1000","v":{"$error":"#NAME?"}},{"$f":"(_xll.RiskData(NR_to_Cash!D$18,$A306))/1000","v":{"$error":"#NAME?"}},{"$f":"(_xll.RiskData(NR_to_Cash!E$18,$A306))/1000","v":{"$error":"#NAME?"}}]
[300,{"$f":"_xll.RiskData('Risk Summary'!J$48,$A307)/1000","v":{"$error":"#NAME?"}},{"$f":"_xll.RiskData('Risk Summary'!K$48,$A307)/1000","v":{"$error":"#NAME?"}},{"$f":"_xll.RiskData('Risk Summary'!L$48,$A307)/1000","v":{"$error":"#NAME?"}},null,null,{"$f":"(_xll.RiskData(NR_to_Cash!C$18,$A307))/1000","v":{"$error":"#NAME?"}},{"$f":"(_xll.RiskData(NR_to_Cash!D$18,$A307))/1000","v":{"$error":"#NAME?"}},{"$f":"(_xll.RiskData(NR_to_Cash!E$18,$A307))/1000","v":{"$error":"#NAME?"}}]
[301,{"$f":"_xll.RiskData('Risk Summary'!J$48,$A308)/1000","v":{"$error":"#NAME?"}},{"$f":"_xll.RiskData('Risk Summary'!K$48,$A308)/1000","v":{"$error":"#NAME?"}},{"$f":"_xll.RiskData('Risk Summary'!L$48,$A308)/1000","v":{"$error":"#NAME?"}},null,null,{"$f":"(_xll.RiskData(NR_to_Cash!C$18,$A308))/1000","v":{"$error":"#NAME?"}},{"$f":"(_xll.RiskData(NR_to_Cash!D$18,$A308))/1000","v":{"$error":"#NAME?"}},{"$f":"(_xll.RiskData(NR_to_Cash!E$18,$A308))/1000","v":{"$error":"#NAME?"}}]
[302,{"$f":"_xll.RiskData('Risk Summary'!J$48,$A309)/1000","v":{"$error":"#NAME?"}},{"$f":"_xll.RiskData('Risk Summary'!K$48,$A309)/1000","v":{"$error":"#NAME?"}},{"$f":"_xll.RiskData('Risk Summary'!L$48,$A309)/1000","v":{"$error":"#NAME?"}},null,null,{"$f":"(_xll.RiskData(NR_to_Cash!C$18,$A309))/1000","v":{"$error":"#NAME?"}},{"$f":"(_xll.RiskData(NR_to_Cash!D$18,$A309))/1000","v":{"$error":"#NAME?"}},{"$f":"(_xll.RiskData(NR_to_Cash!E$18,$A309))/1000","v":{"$error":"#NAME?"}}]
[303,{"$f":"_xll.RiskData('Risk Summary'!J$48,$A310)/1000","v":{"$error":"#NAME?"}},{"$f":"_xll.RiskData('Risk Summary'!K$48,$A310)/1000","v":{"$error":"#NAME?"}},{"$f":"_xll.RiskData('Risk Summary'!L$48,$A310)/1000","v":{"$error":"#NAME?"}},null,null,{"$f":"(_xll.RiskData(NR_to_Cash!C$18,$A310))/1000","v":{"$error":"#NAME?"}},{"$f":"(_xll.RiskData(NR_to_Cash!D$18,$A310))/1000","v":{"$error":"#NAME?"}},{"$f":"(_xll.RiskData(NR_to_Cash!E$18,$A310))/1000","v":{"$error":"#NAME?"}}]
[304,{"$f":"_xll.RiskData('Risk Summary'!J$48,$A311)/1000","v":{"$error":"#NAME?"}},{"$f":"_xll.RiskData('Risk Summary'!K$48,$A311)/1000","v":{"$error":"#NAME?"}},{"$f":"_xll.RiskData('Risk Summary'!L$48,$A311)/1000","v":{"$error":"#NAME?"}},null,null,{"$f":"(_xll.RiskData(NR_to_Cash!C$18,$A311))/1000","v":{"$error":"#NAME?"}},{"$f":"(_xll.RiskData(NR_to_Cash!D$18,$A311))/1000","v":{"$error":"#NAME?"}},{"$f":"(_xll.RiskData(NR_to_Cash!E$18,$A311))/1000","v":{"$error":"#NAME?"}}]
[305,{"$f":"_xll.RiskData('Risk Summary'!J$48,$A312)/1000","v":{"$error":"#NAME?"}},{"$f":"_xll.RiskData('Risk Summary'!K$48,$A312)/1000","v":{"$error":"#NAME?"}},{"$f":"_xll.RiskData('Risk Summary'!L$48,$A312)/1000","v":{"$error":"#NAME?"}},null,null,{"$f":"(_xll.RiskData(NR_to_Cash!C$18,$A312))/1000","v":{"$error":"#NAME?"}},{"$f":"(_xll.RiskData(NR_to_Cash!D$18,$A312))/1000","v":{"$error":"#NAME?"}},{"$f":"(_xll.RiskData(NR_to_Cash!E$18,$A312))/1000","v":{"$error":"#NAME?"}}]
[306,{"$f":"_xll.RiskData('Risk Summary'!J$48,$A313)/1000","v":{"$error":"#NAME?"}},{"$f":"_xll.RiskData('Risk Summary'!K$48,$A313)/1000","v":{"$error":"#NAME?"}},{"$f":"_xll.RiskData('Risk Summary'!L$48,$A313)/1000","v":{"$error":"#NAME?"}},null,null,{"$f":"(_xll.RiskData(NR_to_Cash!C$18,$A313))/1000","v":{"$error":"#NAME?"}},{"$f":"(_xll.RiskData(NR_to_Cash!D$18,$A313))/1000","v":{"$error":"#NAME?"}},{"$f":"(_xll.RiskData(NR_to_Cash!E$18,$A313))/1000","v":{"$error":"#NAME?"}}]
[307,{"$f":"_xll.RiskData('Risk Summary'!J$48,$A314)/1000","v":{"$error":"#NAME?"}},{"$f":"_xll.RiskData('Risk Summary'!K$48,$A314)/1000","v":{"$error":"#NAME?"}},{"$f":"_xll.RiskData('Risk Summary'!L$48,$A314)/1000","v":{"$error":"#NAME?"}},null,null,{"$f":"(_xll.RiskData(NR_to_Cash!C$18,$A314))/1000","v":{"$error":"#NAME?"}},{"$f":"(_xll.RiskData(NR_to_Cash!D$18,$A314))/1000","v":{"$error":"#NAME?"}},{"$f":"(_xll.RiskData(NR_to_Cash!E$18,$A314))/1000","v":{"$error":"#NAME?"}}]
[308,{"$f":"_xll.RiskData('Risk Summary'!J$48,$A315)/1000","v":{"$error":"#NAME?"}},{"$f":"_xll.RiskData('Risk Summary'!K$48,$A315)/1000","v":{"$error":"#NAME?"}},{"$f":"_xll.RiskData('Risk Summary'!L$48,$A315)/1000","v":{"$error":"#NAME?"}},null,null,{"$f":"(_xll.RiskData(NR_to_Cash!C$18,$A315))/1000","v":{"$error":"#NAME?"}},{"$f":"(_xll.RiskData(NR_to_Cash!D$18,$A315))/1000","v":{"$error":"#NAME?"}},{"$f":"(_xll.RiskData(NR_to_Cash!E$18,$A315))/1000","v":{"$error":"#NAME?"}}]
[309,{"$f":"_xll.RiskData('Risk Summary'!J$48,$A316)/1000","v":{"$error":"#NAME?"}},{"$f":"_xll.RiskData('Risk Summary'!K$48,$A316)/1000","v":{"$error":"#NAME?"}},{"$f":"_xll.RiskData('Risk Summary'!L$48,$A316)/1000","v":{"$error":"#NAME?"}},null,null,{"$f":"(_xll.RiskData(NR_to_Cash!C$18,$A316))/1000","v":{"$error":"#NAME?"}},{"$f":"(_xll.RiskData(NR_to_Cash!D$18,$A316))/1000","v":{"$error":"#NAME?"}},{"$f":"(_xll.RiskData(NR_to_Cash!E$18,$A316))/1000","v":{"$error":"#NAME?"}}]
[310,{"$f":"_xll.RiskData('Risk Summary'!J$48,$A317)/1000","v":{"$error":"#NAME?"}},{"$f":"_xll.RiskData('Risk Summary'!K$48,$A317)/1000","v":{"$error":"#NAME?"}},{"$f":"_xll.RiskData('Risk Summary'!L$48,$A317)/1000","v":{"$error":"#NAME?"}},null,null,{"$f":"(_xll.RiskData(NR_to_Cash!C$18,$A317))/1000","v":{"$error":"#NAME?"}},{"$f":"(_xll.RiskData(NR_to_Cash!D$18,$A317))/1000","v":{"$error":"#NAME?"}},{"$f":"(_xll.RiskData(NR_to_Cash!E$18,$A317))/1000","v":{"$error":"#NAME?"}}]
[311,{"$f":"_xll.RiskData('Risk Summary'!J$48,$A318)/1000","v":{"$error":"#NAME?"}},{"$f":"_xll.RiskData('Risk Summary'!K$48,$A318)/1000","v":{"$error":"#NAME?"}},{"$f":"_xll.RiskData('Risk Summary'!L$48,$A318)/1000","v":{"$error":"#NAME?"}},null,null,{"$f":"(_xll.RiskData(NR_to_Cash!C$18,$A318))/1000","v":{"$error":"#NAME?"}},{"$f":"(_xll.RiskData(NR_to_Cash!D$18,$A318))/1000","v":{"$error":"#NAME?"}},{"$f":"(_xll.RiskData(NR_to_Cash!E$18,$A318))/1000","v":{"$error":"#NAME?"}}]
[312,{"$f":"_xll.RiskData('Risk Summary'!J$48,$A319)/1000","v":{"$error":"#NAME?"}},{"$f":"_xll.RiskData('Risk Summary'!K$48,$A319)/1000","v":{"$error":"#NAME?"}},{"$f":"_xll.RiskData('Risk Summary'!L$48,$A319)/1000","v":{"$error":"#NAME?"}},null,null,{"$f":"(_xll.RiskData(NR_to_Cash!C$18,$A319))/1000","v":{"$error":"#NAME?"}},{"$f":"(_xll.RiskData(NR_to_Cash!D$18,$A319))/1000","v":{"$error":"#NAME?"}},{"$f":"(_xll.RiskData(NR_to_Cash!E$18,$A319))/1000","v":{"$error":"#NAME?"}}]
[313,{"$f":"_xll.RiskData('Risk Summary'!J$48,$A320)/1000","v":{"$error":"#NAME?"}},{"$f":"_xll.RiskData('Risk Summary'!K$48,$A320)/1000","v":{"$error":"#NAME?"}},{"$f":"_xll.RiskData('Risk Summary'!L$48,$A320)/1000","v":{"$error":"#NAME?"}},null,null,{"$f":"(_xll.RiskData(NR_to_Cash!C$18,$A320))/1000","v":{"$error":"#NAME?"}},{"$f":"(_xll.RiskData(NR_to_Cash!D$18,$A320))/1000","v":{"$error":"#NAME?"}},{"$f":"(_xll.RiskData(NR_to_Cash!E$18,$A320))/1000","v":{"$error":"#NAME?"}}]
[314,{"$f":"_xll.RiskData('Risk Summary'!J$48,$A321)/1000","v":{"$error":"#NAME?"}},{"$f":"_xll.RiskData('Risk Summary'!K$48,$A321)/1000","v":{"$error":"#NAME?"}},{"$f":"_xll.RiskData('Risk Summary'!L$48,$A321)/1000","v":{"$error":"#NAME?"}},null,null,{"$f":"(_xll.RiskData(NR_to_Cash!C$18,$A321))/1000","v":{"$error":"#NAME?"}},{"$f":"(_xll.RiskData(NR_to_Cash!D$18,$A321))/1000","v":{"$error":"#NAME?"}},{"$f":"(_xll.RiskData(NR_to_Cash!E$18,$A321))/1000","v":{"$error":"#NAME?"}}]
[315,{"$f":"_xll.RiskData('Risk Summary'!J$48,$A322)/1000","v":{"$error":"#NAME?"}},{"$f":"_xll.RiskData('Risk Summary'!K$48,$A322)/1000","v":{"$error":"#NAME?"}},{"$f":"_xll.RiskData('Risk Summary'!L$48,$A322)/1000","v":{"$error":"#NAME?"}},null,null,{"$f":"(_xll.RiskData(NR_to_Cash!C$18,$A322))/1000","v":{"$error":"#NAME?"}},{"$f":"(_xll.RiskData(NR_to_Cash!D$18,$A322))/1000","v":{"$error":"#NAME?"}},{"$f":"(_xll.RiskData(NR_to_Cash!E$18,$A322))/1000","v":{"$error":"#NAME?"}}]
[316,{"$f":"_xll.RiskData('Risk Summary'!J$48,$A323)/1000","v":{"$error":"#NAME?"}},{"$f":"_xll.RiskData('Risk Summary'!K$48,$A323)/1000","v":{"$error":"#NAME?"}},{"$f":"_xll.RiskData('Risk Summary'!L$48,$A323)/1000","v":{"$error":"#NAME?"}},null,null,{"$f":"(_xll.RiskData(NR_to_Cash!C$18,$A323))/1000","v":{"$error":"#NAME?"}},{"$f":"(_xll.RiskData(NR_to_Cash!D$18,$A323))/1000","v":{"$error":"#NAME?"}},{"$f":"(_xll.RiskData(NR_to_Cash!E$18,$A323))/1000","v":{"$error":"#NAME?"}}]
[317,{"$f":"_xll.RiskData('Risk Summary'!J$48,$A324)/1000","v":{"$error":"#NAME?"}},{"$f":"_xll.RiskData('Risk Summary'!K$48,$A324)/1000","v":{"$error":"#NAME?"}},{"$f":"_xll.RiskData('Risk Summary'!L$48,$A324)/1000","v":{"$error":"#NAME?"}},null,null,{"$f":"(_xll.RiskData(NR_to_Cash!C$18,$A324))/1000","v":{"$error":"#NAME?"}},{"$f":"(_xll.RiskData(NR_to_Cash!D$18,$A324))/1000","v":{"$error":"#NAME?"}},{"$f":"(_xll.RiskData(NR_to_Cash!E$18,$A324))/1000","v":{"$error":"#NAME?"}}]
[318,{"$f":"_xll.RiskData('Risk Summary'!J$48,$A325)/1000","v":{"$error":"#NAME?"}},{"$f":"_xll.RiskData('Risk Summary'!K$48,$A325)/1000","v":{"$error":"#NAME?"}},{"$f":"_xll.RiskData('Risk Summary'!L$48,$A325)/1000","v":{"$error":"#NAME?"}},null,null,{"$f":"(_xll.RiskData(NR_to_Cash!C$18,$A325))/1000","v":{"$error":"#NAME?"}},{"$f":"(_xll.RiskData(NR_to_Cash!D$18,$A325))/1000","v":{"$error":"#NAME?"}},{"$f":"(_xll.RiskData(NR_to_Cash!E$18,$A325))/1000","v":{"$error":"#NAME?"}}]
[319,{"$f":"_xll.RiskData('Risk Summary'!J$48,$A326)/1000","v":{"$error":"#NAME?"}},{"$f":"_xll.RiskData('Risk Summary'!K$48,$A326)/1000","v":{"$error":"#NAME?"}},{"$f":"_xll.RiskData('Risk Summary'!L$48,$A326)/1000","v":{"$error":"#NAME?"}},null,null,{"$f":"(_xll.RiskData(NR_to_Cash!C$18,$A326))/1000","v":{"$error":"#NAME?"}},{"$f":"(_xll.RiskData(NR_to_Cash!D$18,$A326))/1000","v":{"$error":"#NAME?"}},{"$f":"(_xll.RiskData(NR_to_Cash!E$18,$A326))/1000","v":{"$error":"#NAME?"}}]
[320,{"$f":"_xll.RiskData('Risk Summary'!J$48,$A327)/1000","v":{"$error":"#NAME?"}},{"$f":"_xll.RiskData('Risk Summary'!K$48,$A327)/1000","v":{"$error":"#NAME?"}},{"$f":"_xll.RiskData('Risk Summary'!L$48,$A327)/1000","v":{"$error":"#NAME?"}},null,null,{"$f":"(_xll.RiskData(NR_to_Cash!C$18,$A327))/1000","v":{"$error":"#NAME?"}},{"$f":"(_xll.RiskData(NR_to_Cash!D$18,$A327))/1000","v":{"$error":"#NAME?"}},{"$f":"(_xll.RiskData(NR_to_Cash!E$18,$A327))/1000","v":{"$error":"#NAME?"}}]
[321,{"$f":"_xll.RiskData('Risk Summary'!J$48,$A328)/1000","v":{"$error":"#NAME?"}},{"$f":"_xll.RiskData('Risk Summary'!K$48,$A328)/1000","v":{"$error":"#NAME?"}},{"$f":"_xll.RiskData('Risk Summary'!L$48,$A328)/1000","v":{"$error":"#NAME?"}},null,null,{"$f":"(_xll.RiskData(NR_to_Cash!C$18,$A328))/1000","v":{"$error":"#NAME?"}},{"$f":"(_xll.RiskData(NR_to_Cash!D$18,$A328))/1000","v":{"$error":"#NAME?"}},{"$f":"(_xll.RiskData(NR_to_Cash!E$18,$A328))/1000","v":{"$error":"#NAME?"}}]
[322,{"$f":"_xll.RiskData('Risk Summary'!J$48,$A329)/1000","v":{"$error":"#NAME?"}},{"$f":"_xll.RiskData('Risk Summary'!K$48,$A329)/1000","v":{"$error":"#NAME?"}},{"$f":"_xll.RiskData('Risk Summary'!L$48,$A329)/1000","v":{"$error":"#NAME?"}},null,null,{"$f":"(_xll.RiskData(NR_to_Cash!C$18,$A329))/1000","v":{"$error":"#NAME?"}},{"$f":"(_xll.RiskData(NR_to_Cash!D$18,$A329))/1000","v":{"$error":"#NAME?"}},{"$f":"(_xll.RiskData(NR_to_Cash!E$18,$A329))/1000","v":{"$error":"#NAME?"}}]
[323,{"$f":"_xll.RiskData('Risk Summary'!J$48,$A330)/1000","v":{"$error":"#NAME?"}},{"$f":"_xll.RiskData('Risk Summary'!K$48,$A330)/1000","v":{"$error":"#NAME?"}},{"$f":"_xll.RiskData('Risk Summary'!L$48,$A330)/1000","v":{"$error":"#NAME?"}},null,null,{"$f":"(_xll.RiskData(NR_to_Cash!C$18,$A330))/1000","v":{"$error":"#NAME?"}},{"$f":"(_xll.RiskData(NR_to_Cash!D$18,$A330))/1000","v":{"$error":"#NAME?"}},{"$f":"(_xll.RiskData(NR_to_Cash!E$18,$A330))/1000","v":{"$error":"#NAME?"}}]
[324,{"$f":"_xll.RiskData('Risk Summary'!J$48,$A331)/1000","v":{"$error":"#NAME?"}},{"$f":"_xll.RiskData('Risk Summary'!K$48,$A331)/1000","v":{"$error":"#NAME?"}},{"$f":"_xll.RiskData('Risk Summary'!L$48,$A331)/1000","v":{"$error":"#NAME?"}},null,null,{"$f":"(_xll.RiskData(NR_to_Cash!C$18,$A331))/1000","v":{"$error":"#NAME?"}},{"$f":"(_xll.RiskData(NR_to_Cash!D$18,$A331))/1000","v":{"$error":"#NAME?"}},{"$f":"(_xll.RiskData(NR_to_Cash!E$18,$A331))/1000","v":{"$error":"#NAME?"}}]
[325,{"$f":"_xll.RiskData('Risk Summary'!J$48,$A332)/1000","v":{"$error":"#NAME?"}},{"$f":"_xll.RiskData('Risk Summary'!K$48,$A332)/1000","v":{"$error":"#NAME?"}},{"$f":"_xll.RiskData('Risk Summary'!L$48,$A332)/1000","v":{"$error":"#NAME?"}},null,null,{"$f":"(_xll.RiskData(NR_to_Cash!C$18,$A332))/1000","v":{"$error":"#NAME?"}},{"$f":"(_xll.RiskData(NR_to_Cash!D$18,$A332))/1000","v":{"$error":"#NAME?"}},{"$f":"(_xll.RiskData(NR_to_Cash!E$18,$A332))/1000","v":{"$error":"#NAME?"}}]
[326,{"$f":"_xll.RiskData('Risk Summary'!J$48,$A333)/1000","v":{"$error":"#NAME?"}},{"$f":"_xll.RiskData('Risk Summary'!K$48,$A333)/1000","v":{"$error":"#NAME?"}},{"$f":"_xll.RiskData('Risk Summary'!L$48,$A333)/1000","v":{"$error":"#NAME?"}},null,null,{"$f":"(_xll.RiskData(NR_to_Cash!C$18,$A333))/1000","v":{"$error":"#NAME?"}},{"$f":"(_xll.RiskData(NR_to_Cash!D$18,$A333))/1000","v":{"$error":"#NAME?"}},{"$f":"(_xll.RiskData(NR_to_Cash!E$18,$A333))/1000","v":{"$error":"#NAME?"}}]
[327,{"$f":"_xll.RiskData('Risk Summary'!J$48,$A334)/1000","v":{"$error":"#NAME?"}},{"$f":"_xll.RiskData('Risk Summary'!K$48,$A334)/1000","v":{"$error":"#NAME?"}},{"$f":"_xll.RiskData('Risk Summary'!L$48,$A334)/1000","v":{"$error":"#NAME?"}},null,null,{"$f":"(_xll.RiskData(NR_to_Cash!C$18,$A334))/1000","v":{"$error":"#NAME?"}},{"$f":"(_xll.RiskData(NR_to_Cash!D$18,$A334))/1000","v":{"$error":"#NAME?"}},{"$f":"(_xll.RiskData(NR_to_Cash!E$18,$A334))/1000","v":{"$error":"#NAME?"}}]
[328,{"$f":"_xll.RiskData('Risk Summary'!J$48,$A335)/1000","v":{"$error":"#NAME?"}},{"$f":"_xll.RiskData('Risk Summary'!K$48,$A335)/1000","v":{"$error":"#NAME?"}},{"$f":"_xll.RiskData('Risk Summary'!L$48,$A335)/1000","v":{"$error":"#NAME?"}},null,null,{"$f":"(_xll.RiskData(NR_to_Cash!C$18,$A335))/1000","v":{"$error":"#NAME?"}},{"$f":"(_xll.RiskData(NR_to_Cash!D$18,$A335))/1000","v":{"$error":"#NAME?"}},{"$f":"(_xll.RiskData(NR_to_Cash!E$18,$A335))/1000","v":{"$error":"#NAME?"}}]
[329,{"$f":"_xll.RiskData('Risk Summary'!J$48,$A336)/1000","v":{"$error":"#NAME?"}},{"$f":"_xll.RiskData('Risk Summary'!K$48,$A336)/1000","v":{"$error":"#NAME?"}},{"$f":"_xll.RiskData('Risk Summary'!L$48,$A336)/1000","v":{"$error":"#NAME?"}},null,null,{"$f":"(_xll.RiskData(NR_to_Cash!C$18,$A336))/1000","v":{"$error":"#NAME?"}},{"$f":"(_xll.RiskData(NR_to_Cash!D$18,$A336))/1000","v":{"$error":"#NAME?"}},{"$f":"(_xll.RiskData(NR_to_Cash!E$18,$A336))/1000","v":{"$error":"#NAME?"}}]
[330,{"$f":"_xll.RiskData('Risk Summary'!J$48,$A337)/1000","v":{"$error":"#NAME?"}},{"$f":"_xll.RiskData('Risk Summary'!K$48,$A337)/1000","v":{"$error":"#NAME?"}},{"$f":"_xll.RiskData('Risk Summary'!L$48,$A337)/1000","v":{"$error":"#NAME?"}},null,null,{"$f":"(_xll.RiskData(NR_to_Cash!C$18,$A337))/1000","v":{"$error":"#NAME?"}},{"$f":"(_xll.RiskData(NR_to_Cash!D$18,$A337))/1000","v":{"$error":"#NAME?"}},{"$f":"(_xll.RiskData(NR_to_Cash!E$18,$A337))/1000","v":{"$error":"#NAME?"}}]
[331,{"$f":"_xll.RiskData('Risk Summary'!J$48,$A338)/1000","v":{"$error":"#NAME?"}},{"$f":"_xll.RiskData('Risk Summary'!K$48,$A338)/1000","v":{"$error":"#NAME?"}},{"$f":"_xll.RiskData('Risk Summary'!L$48,$A338)/1000","v":{"$error":"#NAME?"}},null,null,{"$f":"(_xll.RiskData(NR_to_Cash!C$18,$A338))/1000","v":{"$error":"#NAME?"}},{"$f":"(_xll.RiskData(NR_to_Cash!D$18,$A338))/1000","v":{"$error":"#NAME?"}},{"$f":"(_xll.RiskData(NR_to_Cash!E$18,$A338))/1000","v":{"$error":"#NAME?"}}]
[332,{"$f":"_xll.RiskData('Risk Summary'!J$48,$A339)/1000","v":{"$error":"#NAME?"}},{"$f":"_xll.RiskData('Risk Summary'!K$48,$A339)/1000","v":{"$error":"#NAME?"}},{"$f":"_xll.RiskData('Risk Summary'!L$48,$A339)/1000","v":{"$error":"#NAME?"}},null,null,{"$f":"(_xll.RiskData(NR_to_Cash!C$18,$A339))/1000","v":{"$error":"#NAME?"}},{"$f":"(_xll.RiskData(NR_to_Cash!D$18,$A339))/1000","v":{"$error":"#NAME?"}},{"$f":"(_xll.RiskData(NR_to_Cash!E$18,$A339))/1000","v":{"$error":"#NAME?"}}]
[333,{"$f":"_xll.RiskData('Risk Summary'!J$48,$A340)/1000","v":{"$error":"#NAME?"}},{"$f":"_xll.RiskData('Risk Summary'!K$48,$A340)/1000","v":{"$error":"#NAME?"}},{"$f":"_xll.RiskData('Risk Summary'!L$48,$A340)/1000","v":{"$error":"#NAME?"}},null,null,{"$f":"(_xll.RiskData(NR_to_Cash!C$18,$A340))/1000","v":{"$error":"#NAME?"}},{"$f":"(_xll.RiskData(NR_to_Cash!D$18,$A340))/1000","v":{"$error":"#NAME?"}},{"$f":"(_xll.RiskData(NR_to_Cash!E$18,$A340))/1000","v":{"$error":"#NAME?"}}]
[334,{"$f":"_xll.RiskData('Risk Summary'!J$48,$A341)/1000","v":{"$error":"#NAME?"}},{"$f":"_xll.RiskData('Risk Summary'!K$48,$A341)/1000","v":{"$error":"#NAME?"}},{"$f":"_xll.RiskData('Risk Summary'!L$48,$A341)/1000","v":{"$error":"#NAME?"}},null,null,{"$f":"(_xll.RiskData(NR_to_Cash!C$18,$A341))/1000","v":{"$error":"#NAME?"}},{"$f":"(_xll.RiskData(NR_to_Cash!D$18,$A341))/1000","v":{"$error":"#NAME?"}},{"$f":"(_xll.RiskData(NR_to_Cash!E$18,$A341))/1000","v":{"$error":"#NAME?"}}]
[335,{"$f":"_xll.RiskData('Risk Summary'!J$48,$A342)/1000","v":{"$error":"#NAME?"}},{"$f":"_xll.RiskData('Risk Summary'!K$48,$A342)/1000","v":{"$error":"#NAME?"}},{"$f":"_xll.RiskData('Risk Summary'!L$48,$A342)/1000","v":{"$error":"#NAME?"}},null,null,{"$f":"(_xll.RiskData(NR_to_Cash!C$18,$A342))/1000","v":{"$error":"#NAME?"}},{"$f":"(_xll.RiskData(NR_to_Cash!D$18,$A342))/1000","v":{"$error":"#NAME?"}},{"$f":"(_xll.RiskData(NR_to_Cash!E$18,$A342))/1000","v":{"$error":"#NAME?"}}]
[336,{"$f":"_xll.RiskData('Risk Summary'!J$48,$A343)/1000","v":{"$error":"#NAME?"}},{"$f":"_xll.RiskData('Risk Summary'!K$48,$A343)/1000","v":{"$error":"#NAME?"}},{"$f":"_xll.RiskData('Risk Summary'!L$48,$A343)/1000","v":{"$error":"#NAME?"}},null,null,{"$f":"(_xll.RiskData(NR_to_Cash!C$18,$A343))/1000","v":{"$error":"#NAME?"}},{"$f":"(_xll.RiskData(NR_to_Cash!D$18,$A343))/1000","v":{"$error":"#NAME?"}},{"$f":"(_xll.RiskData(NR_to_Cash!E$18,$A343))/1000","v":{"$error":"#NAME?"}}]
[337,{"$f":"_xll.RiskData('Risk Summary'!J$48,$A344)/1000","v":{"$error":"#NAME?"}},{"$f":"_xll.RiskData('Risk Summary'!K$48,$A344)/1000","v":{"$error":"#NAME?"}},{"$f":"_xll.RiskData('Risk Summary'!L$48,$A344)/1000","v":{"$error":"#NAME?"}},null,null,{"$f":"(_xll.RiskData(NR_to_Cash!C$18,$A344))/1000","v":{"$error":"#NAME?"}},{"$f":"(_xll.RiskData(NR_to_Cash!D$18,$A344))/1000","v":{"$error":"#NAME?"}},{"$f":"(_xll.RiskData(NR_to_Cash!E$18,$A344))/1000","v":{"$error":"#NAME?"}}]
[338,{"$f":"_xll.RiskData('Risk Summary'!J$48,$A345)/1000","v":{"$error":"#NAME?"}},{"$f":"_xll.RiskData('Risk Summary'!K$48,$A345)/1000","v":{"$error":"#NAME?"}},{"$f":"_xll.RiskData('Risk Summary'!L$48,$A345)/1000","v":{"$error":"#NAME?"}},null,null,{"$f":"(_xll.RiskData(NR_to_Cash!C$18,$A345))/1000","v":{"$error":"#NAME?"}},{"$f":"(_xll.RiskData(NR_to_Cash!D$18,$A345))/1000","v":{"$error":"#NAME?"}},{"$f":"(_xll.RiskData(NR_to_Cash!E$18,$A345))/1000","v":{"$error":"#NAME?"}}]
[339,{"$f":"_xll.RiskData('Risk Summary'!J$48,$A346)/1000","v":{"$error":"#NAME?"}},{"$f":"_xll.RiskData('Risk Summary'!K$48,$A346)/1000","v":{"$error":"#NAME?"}},{"$f":"_xll.RiskData('Risk Summary'!L$48,$A346)/1000","v":{"$error":"#NAME?"}},null,null,{"$f":"(_xll.RiskData(NR_to_Cash!C$18,$A346))/1000","v":{"$error":"#NAME?"}},{"$f":"(_xll.RiskData(NR_to_Cash!D$18,$A346))/1000","v":{"$error":"#NAME?"}},{"$f":"(_xll.RiskData(NR_to_Cash!E$18,$A346))/1000","v":{"$error":"#NAME?"}}]
[340,{"$f":"_xll.RiskData('Risk Summary'!J$48,$A347)/1000","v":{"$error":"#NAME?"}},{"$f":"_xll.RiskData('Risk Summary'!K$48,$A347)/1000","v":{"$error":"#NAME?"}},{"$f":"_xll.RiskData('Risk Summary'!L$48,$A347)/1000","v":{"$error":"#NAME?"}},null,null,{"$f":"(_xll.RiskData(NR_to_Cash!C$18,$A347))/1000","v":{"$error":"#NAME?"}},{"$f":"(_xll.RiskData(NR_to_Cash!D$18,$A347))/1000","v":{"$error":"#NAME?"}},{"$f":"(_xll.RiskData(NR_to_Cash!E$18,$A347))/1000","v":{"$error":"#NAME?"}}]
[341,{"$f":"_xll.RiskData('Risk Summary'!J$48,$A348)/1000","v":{"$error":"#NAME?"}},{"$f":"_xll.RiskData('Risk Summary'!K$48,$A348)/1000","v":{"$error":"#NAME?"}},{"$f":"_xll.RiskData('Risk Summary'!L$48,$A348)/1000","v":{"$error":"#NAME?"}},null,null,{"$f":"(_xll.RiskData(NR_to_Cash!C$18,$A348))/1000","v":{"$error":"#NAME?"}},{"$f":"(_xll.RiskData(NR_to_Cash!D$18,$A348))/1000","v":{"$error":"#NAME?"}},{"$f":"(_xll.RiskData(NR_to_Cash!E$18,$A348))/1000","v":{"$error":"#NAME?"}}]
[342,{"$f":"_xll.RiskData('Risk Summary'!J$48,$A349)/1000","v":{"$error":"#NAME?"}},{"$f":"_xll.RiskData('Risk Summary'!K$48,$A349)/1000","v":{"$error":"#NAME?"}},{"$f":"_xll.RiskData('Risk Summary'!L$48,$A349)/1000","v":{"$error":"#NAME?"}},null,null,{"$f":"(_xll.RiskData(NR_to_Cash!C$18,$A349))/1000","v":{"$error":"#NAME?"}},{"$f":"(_xll.RiskData(NR_to_Cash!D$18,$A349))/1000","v":{"$error":"#NAME?"}},{"$f":"(_xll.RiskData(NR_to_Cash!E$18,$A349))/1000","v":{"$error":"#NAME?"}}]
[343,{"$f":"_xll.RiskData('Risk Summary'!J$48,$A350)/1000","v":{"$error":"#NAME?"}},{"$f":"_xll.RiskData('Risk Summary'!K$48,$A350)/1000","v":{"$error":"#NAME?"}},{"$f":"_xll.RiskData('Risk Summary'!L$48,$A350)/1000","v":{"$error":"#NAME?"}},null,null,{"$f":"(_xll.RiskData(NR_to_Cash!C$18,$A350))/1000","v":{"$error":"#NAME?"}},{"$f":"(_xll.RiskData(NR_to_Cash!D$18,$A350))/1000","v":{"$error":"#NAME?"}},{"$f":"(_xll.RiskData(NR_to_Cash!E$18,$A350))/1000","v":{"$error":"#NAME?"}}]
[344,{"$f":"_xll.RiskData('Risk Summary'!J$48,$A351)/1000","v":{"$error":"#NAME?"}},{"$f":"_xll.RiskData('Risk Summary'!K$48,$A351)/1000","v":{"$error":"#NAME?"}},{"$f":"_xll.RiskData('Risk Summary'!L$48,$A351)/1000","v":{"$error":"#NAME?"}},null,null,{"$f":"(_xll.RiskData(NR_to_Cash!C$18,$A351))/1000","v":{"$error":"#NAME?"}},{"$f":"(_xll.RiskData(NR_to_Cash!D$18,$A351))/1000","v":{"$error":"#NAME?"}},{"$f":"(_xll.RiskData(NR_to_Cash!E$18,$A351))/1000","v":{"$error":"#NAME?"}}]
[345,{"$f":"_xll.RiskData('Risk Summary'!J$48,$A352)/1000","v":{"$error":"#NAME?"}},{"$f":"_xll.RiskData('Risk Summary'!K$48,$A352)/1000","v":{"$error":"#NAME?"}},{"$f":"_xll.RiskData('Risk Summary'!L$48,$A352)/1000","v":{"$error":"#NAME?"}},null,null,{"$f":"(_xll.RiskData(NR_to_Cash!C$18,$A352))/1000","v":{"$error":"#NAME?"}},{"$f":"(_xll.RiskData(NR_to_Cash!D$18,$A352))/1000","v":{"$error":"#NAME?"}},{"$f":"(_xll.RiskData(NR_to_Cash!E$18,$A352))/1000","v":{"$error":"#NAME?"}}]
[346,{"$f":"_xll.RiskData('Risk Summary'!J$48,$A353)/1000","v":{"$error":"#NAME?"}},{"$f":"_xll.RiskData('Risk Summary'!K$48,$A353)/1000","v":{"$error":"#NAME?"}},{"$f":"_xll.RiskData('Risk Summary'!L$48,$A353)/1000","v":{"$error":"#NAME?"}},null,null,{"$f":"(_xll.RiskData(NR_to_Cash!C$18,$A353))/1000","v":{"$error":"#NAME?"}},{"$f":"(_xll.RiskData(NR_to_Cash!D$18,$A353))/1000","v":{"$error":"#NAME?"}},{"$f":"(_xll.RiskData(NR_to_Cash!E$18,$A353))/1000","v":{"$error":"#NAME?"}}]
[347,{"$f":"_xll.RiskData('Risk Summary'!J$48,$A354)/1000","v":{"$error":"#NAME?"}},{"$f":"_xll.RiskData('Risk Summary'!K$48,$A354)/1000","v":{"$error":"#NAME?"}},{"$f":"_xll.RiskData('Risk Summary'!L$48,$A354)/1000","v":{"$error":"#NAME?"}},null,null,{"$f":"(_xll.RiskData(NR_to_Cash!C$18,$A354))/1000","v":{"$error":"#NAME?"}},{"$f":"(_xll.RiskData(NR_to_Cash!D$18,$A354))/1000","v":{"$error":"#NAME?"}},{"$f":"(_xll.RiskData(NR_to_Cash!E$18,$A354))/1000","v":{"$error":"#NAME?"}}]
[348,{"$f":"_xll.RiskData('Risk Summary'!J$48,$A355)/1000","v":{"$error":"#NAME?"}},{"$f":"_xll.RiskData('Risk Summary'!K$48,$A355)/1000","v":{"$error":"#NAME?"}},{"$f":"_xll.RiskData('Risk Summary'!L$48,$A355)/1000","v":{"$error":"#NAME?"}},null,null,{"$f":"(_xll.RiskData(NR_to_Cash!C$18,$A355))/1000","v":{"$error":"#NAME?"}},{"$f":"(_xll.RiskData(NR_to_Cash!D$18,$A355))/1000","v":{"$error":"#NAME?"}},{"$f":"(_xll.RiskData(NR_to_Cash!E$18,$A355))/1000","v":{"$error":"#NAME?"}}]
[349,{"$f":"_xll.RiskData('Risk Summary'!J$48,$A356)/1000","v":{"$error":"#NAME?"}},{"$f":"_xll.RiskData('Risk Summary'!K$48,$A356)/1000","v":{"$error":"#NAME?"}},{"$f":"_xll.RiskData('Risk Summary'!L$48,$A356)/1000","v":{"$error":"#NAME?"}},null,null,{"$f":"(_xll.RiskData(NR_to_Cash!C$18,$A356))/1000","v":{"$error":"#NAME?"}},{"$f":"(_xll.RiskData(NR_to_Cash!D$18,$A356))/1000","v":{"$error":"#NAME?"}},{"$f":"(_xll.RiskData(NR_to_Cash!E$18,$A356))/1000","v":{"$error":"#NAME?"}}]
[350,{"$f":"_xll.RiskData('Risk Summary'!J$48,$A357)/1000","v":{"$error":"#NAME?"}},{"$f":"_xll.RiskData('Risk Summary'!K$48,$A357)/1000","v":{"$error":"#NAME?"}},{"$f":"_xll.RiskData('Risk Summary'!L$48,$A357)/1000","v":{"$error":"#NAME?"}},null,null,{"$f":"(_xll.RiskData(NR_to_Cash!C$18,$A357))/1000","v":{"$error":"#NAME?"}},{"$f":"(_xll.RiskData(NR_to_Cash!D$18,$A357))/1000","v":{"$error":"#NAME?"}},{"$f":"(_xll.RiskData(NR_to_Cash!E$18,$A357))/1000","v":{"$error":"#NAME?"}}]
[351,{"$f":"_xll.RiskData('Risk Summary'!J$48,$A358)/1000","v":{"$error":"#NAME?"}},{"$f":"_xll.RiskData('Risk Summary'!K$48,$A358)/1000","v":{"$error":"#NAME?"}},{"$f":"_xll.RiskData('Risk Summary'!L$48,$A358)/1000","v":{"$error":"#NAME?"}},null,null,{"$f":"(_xll.RiskData(NR_to_Cash!C$18,$A358))/1000","v":{"$error":"#NAME?"}},{"$f":"(_xll.RiskData(NR_to_Cash!D$18,$A358))/1000","v":{"$error":"#NAME?"}},{"$f":"(_xll.RiskData(NR_to_Cash!E$18,$A358))/1000","v":{"$error":"#NAME?"}}]
[352,{"$f":"_xll.RiskData('Risk Summary'!J$48,$A359)/1000","v":{"$error":"#NAME?"}},{"$f":"_xll.RiskData('Risk Summary'!K$48,$A359)/1000","v":{"$error":"#NAME?"}},{"$f":"_xll.RiskData('Risk Summary'!L$48,$A359)/1000","v":{"$error":"#NAME?"}},null,null,{"$f":"(_xll.RiskData(NR_to_Cash!C$18,$A359))/1000","v":{"$error":"#NAME?"}},{"$f":"(_xll.RiskData(NR_to_Cash!D$18,$A359))/1000","v":{"$error":"#NAME?"}},{"$f":"(_xll.RiskData(NR_to_Cash!E$18,$A359))/1000","v":{"$error":"#NAME?"}}]
[353,{"$f":"_xll.RiskData('Risk Summary'!J$48,$A360)/1000","v":{"$error":"#NAME?"}},{"$f":"_xll.RiskData('Risk Summary'!K$48,$A360)/1000","v":{"$error":"#NAME?"}},{"$f":"_xll.RiskData('Risk Summary'!L$48,$A360)/1000","v":{"$error":"#NAME?"}},null,null,{"$f":"(_xll.RiskData(NR_to_Cash!C$18,$A360))/1000","v":{"$error":"#NAME?"}},{"$f":"(_xll.RiskData(NR_to_Cash!D$18,$A360))/1000","v":{"$error":"#NAME?"}},{"$f":"(_xll.RiskData(NR_to_Cash!E$18,$A360))/1000","v":{"$error":"#NAME?"}}]
[354,{"$f":"_xll.RiskData('Risk Summary'!J$48,$A361)/1000","v":{"$error":"#NAME?"}},{"$f":"_xll.RiskData('Risk Summary'!K$48,$A361)/1000","v":{"$error":"#NAME?"}},{"$f":"_xll.RiskData('Risk Summary'!L$48,$A361)/1000","v":{"$error":"#NAME?"}},null,null,{"$f":"(_xll.RiskData(NR_to_Cash!C$18,$A361))/1000","v":{"$error":"#NAME?"}},{"$f":"(_xll.RiskData(NR_to_Cash!D$18,$A361))/1000","v":{"$error":"#NAME?"}},{"$f":"(_xll.RiskData(NR_to_Cash!E$18,$A361))/1000","v":{"$error":"#NAME?"}}]
[355,{"$f":"_xll.RiskData('Risk Summary'!J$48,$A362)/1000","v":{"$error":"#NAME?"}},{"$f":"_xll.RiskData('Risk Summary'!K$48,$A362)/1000","v":{"$error":"#NAME?"}},{"$f":"_xll.RiskData('Risk Summary'!L$48,$A362)/1000","v":{"$error":"#NAME?"}},null,null,{"$f":"(_xll.RiskData(NR_to_Cash!C$18,$A362))/1000","v":{"$error":"#NAME?"}},{"$f":"(_xll.RiskData(NR_to_Cash!D$18,$A362))/1000","v":{"$error":"#NAME?"}},{"$f":"(_xll.RiskData(NR_to_Cash!E$18,$A362))/1000","v":{"$error":"#NAME?"}}]
[356,{"$f":"_xll.RiskData('Risk Summary'!J$48,$A363)/1000","v":{"$error":"#NAME?"}},{"$f":"_xll.RiskData('Risk Summary'!K$48,$A363)/1000","v":{"$error":"#NAME?"}},{"$f":"_xll.RiskData('Risk Summary'!L$48,$A363)/1000","v":{"$error":"#NAME?"}},null,null,{"$f":"(_xll.RiskData(NR_to_Cash!C$18,$A363))/1000","v":{"$error":"#NAME?"}},{"$f":"(_xll.RiskData(NR_to_Cash!D$18,$A363))/1000","v":{"$error":"#NAME?"}},{"$f":"(_xll.RiskData(NR_to_Cash!E$18,$A363))/1000","v":{"$error":"#NAME?"}}]
[357,{"$f":"_xll.RiskData('Risk Summary'!J$48,$A364)/1000","v":{"$error":"#NAME?"}},{"$f":"_xll.RiskData('Risk Summary'!K$48,$A364)/1000","v":{"$error":"#NAME?"}},{"$f":"_xll.RiskData('Risk Summary'!L$48,$A364)/1000","v":{"$error":"#NAME?"}},null,null,{"$f":"(_xll.RiskData(NR_to_Cash!C$18,$A364))/1000","v":{"$error":"#NAME?"}},{"$f":"(_xll.RiskData(NR_to_Cash!D$18,$A364))/1000","v":{"$error":"#NAME?"}},{"$f":"(_xll.RiskData(NR_to_Cash!E$18,$A364))/1000","v":{"$error":"#NAME?"}}]
[358,{"$f":"_xll.RiskData('Risk Summary'!J$48,$A365)/1000","v":{"$error":"#NAME?"}},{"$f":"_xll.RiskData('Risk Summary'!K$48,$A365)/1000","v":{"$error":"#NAME?"}},{"$f":"_xll.RiskData('Risk Summary'!L$48,$A365)/1000","v":{"$error":"#NAME?"}},null,null,{"$f":"(_xll.RiskData(NR_to_Cash!C$18,$A365))/1000","v":{"$error":"#NAME?"}},{"$f":"(_xll.RiskData(NR_to_Cash!D$18,$A365))/1000","v":{"$error":"#NAME?"}},{"$f":"(_xll.RiskData(NR_to_Cash!E$18,$A365))/1000","v":{"$error":"#NAME?"}}]
[359,{"$f":"_xll.RiskData('Risk Summary'!J$48,$A366)/1000","v":{"$error":"#NAME?"}},{"$f":"_xll.RiskData('Risk Summary'!K$48,$A366)/1000","v":{"$error":"#NAME?"}},{"$f":"_xll.RiskData('Risk Summary'!L$48,$A366)/1000","v":{"$error":"#NAME?"}},null,null,{"$f":"(_xll.RiskData(NR_to_Cash!C$18,$A366))/1000","v":{"$error":"#NAME?"}},{"$f":"(_xll.RiskData(NR_to_Cash!D$18,$A366))/1000","v":{"$error":"#NAME?"}},{"$f":"(_xll.RiskData(NR_to_Cash!E$18,$A366))/1000","v":{"$error":"#NAME?"}}]
[360,{"$f":"_xll.RiskData('Risk Summary'!J$48,$A367)/1000","v":{"$error":"#NAME?"}},{"$f":"_xll.RiskData('Risk Summary'!K$48,$A367)/1000","v":{"$error":"#NAME?"}},{"$f":"_xll.RiskData('Risk Summary'!L$48,$A367)/1000","v":{"$error":"#NAME?"}},null,null,{"$f":"(_xll.RiskData(NR_to_Cash!C$18,$A367))/1000","v":{"$error":"#NAME?"}},{"$f":"(_xll.RiskData(NR_to_Cash!D$18,$A367))/1000","v":{"$error":"#NAME?"}},{"$f":"(_xll.RiskData(NR_to_Cash!E$18,$A367))/1000","v":{"$error":"#NAME?"}}]
[361,{"$f":"_xll.RiskData('Risk Summary'!J$48,$A368)/1000","v":{"$error":"#NAME?"}},{"$f":"_xll.RiskData('Risk Summary'!K$48,$A368)/1000","v":{"$error":"#NAME?"}},{"$f":"_xll.RiskData('Risk Summary'!L$48,$A368)/1000","v":{"$error":"#NAME?"}},null,null,{"$f":"(_xll.RiskData(NR_to_Cash!C$18,$A368))/1000","v":{"$error":"#NAME?"}},{"$f":"(_xll.RiskData(NR_to_Cash!D$18,$A368))/1000","v":{"$error":"#NAME?"}},{"$f":"(_xll.RiskData(NR_to_Cash!E$18,$A368))/1000","v":{"$error":"#NAME?"}}]
[362,{"$f":"_xll.RiskData('Risk Summary'!J$48,$A369)/1000","v":{"$error":"#NAME?"}},{"$f":"_xll.RiskData('Risk Summary'!K$48,$A369)/1000","v":{"$error":"#NAME?"}},{"$f":"_xll.RiskData('Risk Summary'!L$48,$A369)/1000","v":{"$error":"#NAME?"}},null,null,{"$f":"(_xll.RiskData(NR_to_Cash!C$18,$A369))/1000","v":{"$error":"#NAME?"}},{"$f":"(_xll.RiskData(NR_to_Cash!D$18,$A369))/1000","v":{"$error":"#NAME?"}},{"$f":"(_xll.RiskData(NR_to_Cash!E$18,$A369))/1000","v":{"$error":"#NAME?"}}]
[363,{"$f":"_xll.RiskData('Risk Summary'!J$48,$A370)/1000","v":{"$error":"#NAME?"}},{"$f":"_xll.RiskData('Risk Summary'!K$48,$A370)/1000","v":{"$error":"#NAME?"}},{"$f":"_xll.RiskData('Risk Summary'!L$48,$A370)/1000","v":{"$error":"#NAME?"}},null,null,{"$f":"(_xll.RiskData(NR_to_Cash!C$18,$A370))/1000","v":{"$error":"#NAME?"}},{"$f":"(_xll.RiskData(NR_to_Cash!D$18,$A370))/1000","v":{"$error":"#NAME?"}},{"$f":"(_xll.RiskData(NR_to_Cash!E$18,$A370))/1000","v":{"$error":"#NAME?"}}]
[364,{"$f":"_xll.RiskData('Risk Summary'!J$48,$A371)/1000","v":{"$error":"#NAME?"}},{"$f":"_xll.RiskData('Risk Summary'!K$48,$A371)/1000","v":{"$error":"#NAME?"}},{"$f":"_xll.RiskData('Risk Summary'!L$48,$A371)/1000","v":{"$error":"#NAME?"}},null,null,{"$f":"(_xll.RiskData(NR_to_Cash!C$18,$A371))/1000","v":{"$error":"#NAME?"}},{"$f":"(_xll.RiskData(NR_to_Cash!D$18,$A371))/1000","v":{"$error":"#NAME?"}},{"$f":"(_xll.RiskData(NR_to_Cash!E$18,$A371))/1000","v":{"$error":"#NAME?"}}]
[365,{"$f":"_xll.RiskData('Risk Summary'!J$48,$A372)/1000","v":{"$error":"#NAME?"}},{"$f":"_xll.RiskData('Risk Summary'!K$48,$A372)/1000","v":{"$error":"#NAME?"}},{"$f":"_xll.RiskData('Risk Summary'!L$48,$A372)/1000","v":{"$error":"#NAME?"}},null,null,{"$f":"(_xll.RiskData(NR_to_Cash!C$18,$A372))/1000","v":{"$error":"#NAME?"}},{"$f":"(_xll.RiskData(NR_to_Cash!D$18,$A372))/1000","v":{"$error":"#NAME?"}},{"$f":"(_xll.RiskData(NR_to_Cash!E$18,$A372))/1000","v":{"$error":"#NAME?"}}]
[366,{"$f":"_xll.RiskData('Risk Summary'!J$48,$A373)/1000","v":{"$error":"#NAME?"}},{"$f":"_xll.RiskData('Risk Summary'!K$48,$A373)/1000","v":{"$error":"#NAME?"}},{"$f":"_xll.RiskData('Risk Summary'!L$48,$A373)/1000","v":{"$error":"#NAME?"}},null,null,{"$f":"(_xll.RiskData(NR_to_Cash!C$18,$A373))/1000","v":{"$error":"#NAME?"}},{"$f":"(_xll.RiskData(NR_to_Cash!D$18,$A373))/1000","v":{"$error":"#NAME?"}},{"$f":"(_xll.RiskData(NR_to_Cash!E$18,$A373))/1000","v":{"$error":"#NAME?"}}]
[367,{"$f":"_xll.RiskData('Risk Summary'!J$48,$A374)/1000","v":{"$error":"#NAME?"}},{"$f":"_xll.RiskData('Risk Summary'!K$48,$A374)/1000","v":{"$error":"#NAME?"}},{"$f":"_xll.RiskData('Risk Summary'!L$48,$A374)/1000","v":{"$error":"#NAME?"}},null,null,{"$f":"(_xll.RiskData(NR_to_Cash!C$18,$A374))/1000","v":{"$error":"#NAME?"}},{"$f":"(_xll.RiskData(NR_to_Cash!D$18,$A374))/1000","v":{"$error":"#NAME?"}},{"$f":"(_xll.RiskData(NR_to_Cash!E$18,$A374))/1000","v":{"$error":"#NAME?"}}]
[368,{"$f":"_xll.RiskData('Risk Summary'!J$48,$A375)/1000","v":{"$error":"#NAME?"}},{"$f":"_xll.RiskData('Risk Summary'!K$48,$A375)/1000","v":{"$error":"#NAME?"}},{"$f":"_xll.RiskData('Risk Summary'!L$48,$A375)/1000","v":{"$error":"#NAME?"}},null,null,{"$f":"(_xll.RiskData(NR_to_Cash!C$18,$A375))/1000","v":{"$error":"#NAME?"}},{"$f":"(_xll.RiskData(NR_to_Cash!D$18,$A375))/1000","v":{"$error":"#NAME?"}},{"$f":"(_xll.RiskData(NR_to_Cash!E$18,$A375))/1000","v":{"$error":"#NAME?"}}]
[369,{"$f":"_xll.RiskData('Risk Summary'!J$48,$A376)/1000","v":{"$error":"#NAME?"}},{"$f":"_xll.RiskData('Risk Summary'!K$48,$A376)/1000","v":{"$error":"#NAME?"}},{"$f":"_xll.RiskData('Risk Summary'!L$48,$A376)/1000","v":{"$error":"#NAME?"}},null,null,{"$f":"(_xll.RiskData(NR_to_Cash!C$18,$A376))/1000","v":{"$error":"#NAME?"}},{"$f":"(_xll.RiskData(NR_to_Cash!D$18,$A376))/1000","v":{"$error":"#NAME?"}},{"$f":"(_xll.RiskData(NR_to_Cash!E$18,$A376))/1000","v":{"$error":"#NAME?"}}]
[370,{"$f":"_xll.RiskData('Risk Summary'!J$48,$A377)/1000","v":{"$error":"#NAME?"}},{"$f":"_xll.RiskData('Risk Summary'!K$48,$A377)/1000","v":{"$error":"#NAME?"}},{"$f":"_xll.RiskData('Risk Summary'!L$48,$A377)/1000","v":{"$error":"#NAME?"}},null,null,{"$f":"(_xll.RiskData(NR_to_Cash!C$18,$A377))/1000","v":{"$error":"#NAME?"}},{"$f":"(_xll.RiskData(NR_to_Cash!D$18,$A377))/1000","v":{"$error":"#NAME?"}},{"$f":"(_xll.RiskData(NR_to_Cash!E$18,$A377))/1000","v":{"$error":"#NAME?"}}]
[371,{"$f":"_xll.RiskData('Risk Summary'!J$48,$A378)/1000","v":{"$error":"#NAME?"}},{"$f":"_xll.RiskData('Risk Summary'!K$48,$A378)/1000","v":{"$error":"#NAME?"}},{"$f":"_xll.RiskData('Risk Summary'!L$48,$A378)/1000","v":{"$error":"#NAME?"}},null,null,{"$f":"(_xll.RiskData(NR_to_Cash!C$18,$A378))/1000","v":{"$error":"#NAME?"}},{"$f":"(_xll.RiskData(NR_to_Cash!D$18,$A378))/1000","v":{"$error":"#NAME?"}},{"$f":"(_xll.RiskData(NR_to_Cash!E$18,$A378))/1000","v":{"$error":"#NAME?"}}]
[372,{"$f":"_xll.RiskData('Risk Summary'!J$48,$A379)/1000","v":{"$error":"#NAME?"}},{"$f":"_xll.RiskData('Risk Summary'!K$48,$A379)/1000","v":{"$error":"#NAME?"}},{"$f":"_xll.RiskData('Risk Summary'!L$48,$A379)/1000","v":{"$error":"#NAME?"}},null,null,{"$f":"(_xll.RiskData(NR_to_Cash!C$18,$A379))/1000","v":{"$error":"#NAME?"}},{"$f":"(_xll.RiskData(NR_to_Cash!D$18,$A379))/1000","v":{"$error":"#NAME?"}},{"$f":"(_xll.RiskData(NR_to_Cash!E$18,$A379))/1000","v":{"$error":"#NAME?"}}]
[373,{"$f":"_xll.RiskData('Risk Summary'!J$48,$A380)/1000","v":{"$error":"#NAME?"}},{"$f":"_xll.RiskData('Risk Summary'!K$48,$A380)/1000","v":{"$error":"#NAME?"}},{"$f":"_xll.RiskData('Risk Summary'!L$48,$A380)/1000","v":{"$error":"#NAME?"}},null,null,{"$f":"(_xll.RiskData(NR_to_Cash!C$18,$A380))/1000","v":{"$error":"#NAME?"}},{"$f":"(_xll.RiskData(NR_to_Cash!D$18,$A380))/1000","v":{"$error":"#NAME?"}},{"$f":"(_xll.RiskData(NR_to_Cash!E$18,$A380))/1000","v":{"$error":"#NAME?"}}]
[374,{"$f":"_xll.RiskData('Risk Summary'!J$48,$A381)/1000","v":{"$error":"#NAME?"}},{"$f":"_xll.RiskData('Risk Summary'!K$48,$A381)/1000","v":{"$error":"#NAME?"}},{"$f":"_xll.RiskData('Risk Summary'!L$48,$A381)/1000","v":{"$error":"#NAME?"}},null,null,{"$f":"(_xll.RiskData(NR_to_Cash!C$18,$A381))/1000","v":{"$error":"#NAME?"}},{"$f":"(_xll.RiskData(NR_to_Cash!D$18,$A381))/1000","v":{"$error":"#NAME?"}},{"$f":"(_xll.RiskData(NR_to_Cash!E$18,$A381))/1000","v":{"$error":"#NAME?"}}]
[375,{"$f":"_xll.RiskData('Risk Summary'!J$48,$A382)/1000","v":{"$error":"#NAME?"}},{"$f":"_xll.RiskData('Risk Summary'!K$48,$A382)/1000","v":{"$error":"#NAME?"}},{"$f":"_xll.RiskData('Risk Summary'!L$48,$A382)/1000","v":{"$error":"#NAME?"}},null,null,{"$f":"(_xll.RiskData(NR_to_Cash!C$18,$A382))/1000","v":{"$error":"#NAME?"}},{"$f":"(_xll.RiskData(NR_to_Cash!D$18,$A382))/1000","v":{"$error":"#NAME?"}},{"$f":"(_xll.RiskData(NR_to_Cash!E$18,$A382))/1000","v":{"$error":"#NAME?"}}]
[376,{"$f":"_xll.RiskData('Risk Summary'!J$48,$A383)/1000","v":{"$error":"#NAME?"}},{"$f":"_xll.RiskData('Risk Summary'!K$48,$A383)/1000","v":{"$error":"#NAME?"}},{"$f":"_xll.RiskData('Risk Summary'!L$48,$A383)/1000","v":{"$error":"#NAME?"}},null,null,{"$f":"(_xll.RiskData(NR_to_Cash!C$18,$A383))/1000","v":{"$error":"#NAME?"}},{"$f":"(_xll.RiskData(NR_to_Cash!D$18,$A383))/1000","v":{"$error":"#NAME?"}},{"$f":"(_xll.RiskData(NR_to_Cash!E$18,$A383))/1000","v":{"$error":"#NAME?"}}]
[377,{"$f":"_xll.RiskData('Risk Summary'!J$48,$A384)/1000","v":{"$error":"#NAME?"}},{"$f":"_xll.RiskData('Risk Summary'!K$48,$A384)/1000","v":{"$error":"#NAME?"}},{"$f":"_xll.RiskData('Risk Summary'!L$48,$A384)/1000","v":{"$error":"#NAME?"}},null,null,{"$f":"(_xll.RiskData(NR_to_Cash!C$18,$A384))/1000","v":{"$error":"#NAME?"}},{"$f":"(_xll.RiskData(NR_to_Cash!D$18,$A384))/1000","v":{"$error":"#NAME?"}},{"$f":"(_xll.RiskData(NR_to_Cash!E$18,$A384))/1000","v":{"$error":"#NAME?"}}]
[378,{"$f":"_xll.RiskData('Risk Summary'!J$48,$A385)/1000","v":{"$error":"#NAME?"}},{"$f":"_xll.RiskData('Risk Summary'!K$48,$A385)/1000","v":{"$error":"#NAME?"}},{"$f":"_xll.RiskData('Risk Summary'!L$48,$A385)/1000","v":{"$error":"#NAME?"}},null,null,{"$f":"(_xll.RiskData(NR_to_Cash!C$18,$A385))/1000","v":{"$error":"#NAME?"}},{"$f":"(_xll.RiskData(NR_to_Cash!D$18,$A385))/1000","v":{"$error":"#NAME?"}},{"$f":"(_xll.RiskData(NR_to_Cash!E$18,$A385))/1000","v":{"$error":"#NAME?"}}]
[379,{"$f":"_xll.RiskData('Risk Summary'!J$48,$A386)/1000","v":{"$error":"#NAME?"}},{"$f":"_xll.RiskData('Risk Summary'!K$48,$A386)/1000","v":{"$error":"#NAME?"}},{"$f":"_xll.RiskData('Risk Summary'!L$48,$A386)/1000","v":{"$error":"#NAME?"}},null,null,{"$f":"(_xll.RiskData(NR_to_Cash!C$18,$A386))/1000","v":{"$error":"#NAME?"}},{"$f":"(_xll.RiskData(NR_to_Cash!D$18,$A386))/1000","v":{"$error":"#NAME?"}},{"$f":"(_xll.RiskData(NR_to_Cash!E$18,$A386))/1000","v":{"$error":"#NAME?"}}]
[380,{"$f":"_xll.RiskData('Risk Summary'!J$48,$A387)/1000","v":{"$error":"#NAME?"}},{"$f":"_xll.RiskData('Risk Summary'!K$48,$A387)/1000","v":{"$error":"#NAME?"}},{"$f":"_xll.RiskData('Risk Summary'!L$48,$A387)/1000","v":{"$error":"#NAME?"}},null,null,{"$f":"(_xll.RiskData(NR_to_Cash!C$18,$A387))/1000","v":{"$error":"#NAME?"}},{"$f":"(_xll.RiskData(NR_to_Cash!D$18,$A387))/1000","v":{"$error":"#NAME?"}},{"$f":"(_xll.RiskData(NR_to_Cash!E$18,$A387))/1000","v":{"$error":"#NAME?"}}]
[381,{"$f":"_xll.RiskData('Risk Summary'!J$48,$A388)/1000","v":{"$error":"#NAME?"}},{"$f":"_xll.RiskData('Risk Summary'!K$48,$A388)/1000","v":{"$error":"#NAME?"}},{"$f":"_xll.RiskData('Risk Summary'!L$48,$A388)/1000","v":{"$error":"#NAME?"}},null,null,{"$f":"(_xll.RiskData(NR_to_Cash!C$18,$A388))/1000","v":{"$error":"#NAME?"}},{"$f":"(_xll.RiskData(NR_to_Cash!D$18,$A388))/1000","v":{"$error":"#NAME?"}},{"$f":"(_xll.RiskData(NR_to_Cash!E$18,$A388))/1000","v":{"$error":"#NAME?"}}]
[382,{"$f":"_xll.RiskData('Risk Summary'!J$48,$A389)/1000","v":{"$error":"#NAME?"}},{"$f":"_xll.RiskData('Risk Summary'!K$48,$A389)/1000","v":{"$error":"#NAME?"}},{"$f":"_xll.RiskData('Risk Summary'!L$48,$A389)/1000","v":{"$error":"#NAME?"}},null,null,{"$f":"(_xll.RiskData(NR_to_Cash!C$18,$A389))/1000","v":{"$error":"#NAME?"}},{"$f":"(_xll.RiskData(NR_to_Cash!D$18,$A389))/1000","v":{"$error":"#NAME?"}},{"$f":"(_xll.RiskData(NR_to_Cash!E$18,$A389))/1000","v":{"$error":"#NAME?"}}]
[383,{"$f":"_xll.RiskData('Risk Summary'!J$48,$A390)/1000","v":{"$error":"#NAME?"}},{"$f":"_xll.RiskData('Risk Summary'!K$48,$A390)/1000","v":{"$error":"#NAME?"}},{"$f":"_xll.RiskData('Risk Summary'!L$48,$A390)/1000","v":{"$error":"#NAME?"}},null,null,{"$f":"(_xll.RiskData(NR_to_Cash!C$18,$A390))/1000","v":{"$error":"#NAME?"}},{"$f":"(_xll.RiskData(NR_to_Cash!D$18,$A390))/1000","v":{"$error":"#NAME?"}},{"$f":"(_xll.RiskData(NR_to_Cash!E$18,$A390))/1000","v":{"$error":"#NAME?"}}]
[384,{"$f":"_xll.RiskData('Risk Summary'!J$48,$A391)/1000","v":{"$error":"#NAME?"}},{"$f":"_xll.RiskData('Risk Summary'!K$48,$A391)/1000","v":{"$error":"#NAME?"}},{"$f":"_xll.RiskData('Risk Summary'!L$48,$A391)/1000","v":{"$error":"#NAME?"}},null,null,{"$f":"(_xll.RiskData(NR_to_Cash!C$18,$A391))/1000","v":{"$error":"#NAME?"}},{"$f":"(_xll.RiskData(NR_to_Cash!D$18,$A391))/1000","v":{"$error":"#NAME?"}},{"$f":"(_xll.RiskData(NR_to_Cash!E$18,$A391))/1000","v":{"$error":"#NAME?"}}]
[385,{"$f":"_xll.RiskData('Risk Summary'!J$48,$A392)/1000","v":{"$error":"#NAME?"}},{"$f":"_xll.RiskData('Risk Summary'!K$48,$A392)/1000","v":{"$error":"#NAME?"}},{"$f":"_xll.RiskData('Risk Summary'!L$48,$A392)/1000","v":{"$error":"#NAME?"}},null,null,{"$f":"(_xll.RiskData(NR_to_Cash!C$18,$A392))/1000","v":{"$error":"#NAME?"}},{"$f":"(_xll.RiskData(NR_to_Cash!D$18,$A392))/1000","v":{"$error":"#NAME?"}},{"$f":"(_xll.RiskData(NR_to_Cash!E$18,$A392))/1000","v":{"$error":"#NAME?"}}]
[386,{"$f":"_xll.RiskData('Risk Summary'!J$48,$A393)/1000","v":{"$error":"#NAME?"}},{"$f":"_xll.RiskData('Risk Summary'!K$48,$A393)/1000","v":{"$error":"#NAME?"}},{"$f":"_xll.RiskData('Risk Summary'!L$48,$A393)/1000","v":{"$error":"#NAME?"}},null,null,{"$f":"(_xll.RiskData(NR_to_Cash!C$18,$A393))/1000","v":{"$error":"#NAME?"}},{"$f":"(_xll.RiskData(NR_to_Cash!D$18,$A393))/1000","v":{"$error":"#NAME?"}},{"$f":"(_xll.RiskData(NR_to_Cash!E$18,$A393))/1000","v":{"$error":"#NAME?"}}]
[387,{"$f":"_xll.RiskData('Risk Summary'!J$48,$A394)/1000","v":{"$error":"#NAME?"}},{"$f":"_xll.RiskData('Risk Summary'!K$48,$A394)/1000","v":{"$error":"#NAME?"}},{"$f":"_xll.RiskData('Risk Summary'!L$48,$A394)/1000","v":{"$error":"#NAME?"}},null,null,{"$f":"(_xll.RiskData(NR_to_Cash!C$18,$A394))/1000","v":{"$error":"#NAME?"}},{"$f":"(_xll.RiskData(NR_to_Cash!D$18,$A394))/1000","v":{"$error":"#NAME?"}},{"$f":"(_xll.RiskData(NR_to_Cash!E$18,$A394))/1000","v":{"$error":"#NAME?"}}]
[388,{"$f":"_xll.RiskData('Risk Summary'!J$48,$A395)/1000","v":{"$error":"#NAME?"}},{"$f":"_xll.RiskData('Risk Summary'!K$48,$A395)/1000","v":{"$error":"#NAME?"}},{"$f":"_xll.RiskData('Risk Summary'!L$48,$A395)/1000","v":{"$error":"#NAME?"}},null,null,{"$f":"(_xll.RiskData(NR_to_Cash!C$18,$A395))/1000","v":{"$error":"#NAME?"}},{"$f":"(_xll.RiskData(NR_to_Cash!D$18,$A395))/1000","v":{"$error":"#NAME?"}},{"$f":"(_xll.RiskData(NR_to_Cash!E$18,$A395))/1000","v":{"$error":"#NAME?"}}]
[389,{"$f":"_xll.RiskData('Risk Summary'!J$48,$A396)/1000","v":{"$error":"#NAME?"}},{"$f":"_xll.RiskData('Risk Summary'!K$48,$A396)/1000","v":{"$error":"#NAME?"}},{"$f":"_xll.RiskData('Risk Summary'!L$48,$A396)/1000","v":{"$error":"#NAME?"}},null,null,{"$f":"(_xll.RiskData(NR_to_Cash!C$18,$A396))/1000","v":{"$error":"#NAME?"}},{"$f":"(_xll.RiskData(NR_to_Cash!D$18,$A396))/1000","v":{"$error":"#NAME?"}},{"$f":"(_xll.RiskData(NR_to_Cash!E$18,$A396))/1000","v":{"$error":"#NAME?"}}]
[390,{"$f":"_xll.RiskData('Risk Summary'!J$48,$A397)/1000","v":{"$error":"#NAME?"}},{"$f":"_xll.RiskData('Risk Summary'!K$48,$A397)/1000","v":{"$error":"#NAME?"}},{"$f":"_xll.RiskData('Risk Summary'!L$48,$A397)/1000","v":{"$error":"#NAME?"}},null,null,{"$f":"(_xll.RiskData(NR_to_Cash!C$18,$A397))/1000","v":{"$error":"#NAME?"}},{"$f":"(_xll.RiskData(NR_to_Cash!D$18,$A397))/1000","v":{"$error":"#NAME?"}},{"$f":"(_xll.RiskData(NR_to_Cash!E$18,$A397))/1000","v":{"$error":"#NAME?"}}]
[391,{"$f":"_xll.RiskData('Risk Summary'!J$48,$A398)/1000","v":{"$error":"#NAME?"}},{"$f":"_xll.RiskData('Risk Summary'!K$48,$A398)/1000","v":{"$error":"#NAME?"}},{"$f":"_xll.RiskData('Risk Summary'!L$48,$A398)/1000","v":{"$error":"#NAME?"}},null,null,{"$f":"(_xll.RiskData(NR_to_Cash!C$18,$A398))/1000","v":{"$error":"#NAME?"}},{"$f":"(_xll.RiskData(NR_to_Cash!D$18,$A398))/1000","v":{"$error":"#NAME?"}},{"$f":"(_xll.RiskData(NR_to_Cash!E$18,$A398))/1000","v":{"$error":"#NAME?"}}]
[392,{"$f":"_xll.RiskData('Risk Summary'!J$48,$A399)/1000","v":{"$error":"#NAME?"}},{"$f":"_xll.RiskData('Risk Summary'!K$48,$A399)/1000","v":{"$error":"#NAME?"}},{"$f":"_xll.RiskData('Risk Summary'!L$48,$A399)/1000","v":{"$error":"#NAME?"}},null,null,{"$f":"(_xll.RiskData(NR_to_Cash!C$18,$A399))/1000","v":{"$error":"#NAME?"}},{"$f":"(_xll.RiskData(NR_to_Cash!D$18,$A399))/1000","v":{"$error":"#NAME?"}},{"$f":"(_xll.RiskData(NR_to_Cash!E$18,$A399))/1000","v":{"$error":"#NAME?"}}]
[393,{"$f":"_xll.RiskData('Risk Summary'!J$48,$A400)/1000","v":{"$error":"#NAME?"}},{"$f":"_xll.RiskData('Risk Summary'!K$48,$A400)/1000","v":{"$error":"#NAME?"}},{"$f":"_xll.RiskData('Risk Summary'!L$48,$A400)/1000","v":{"$error":"#NAME?"}},null,null,{"$f":"(_xll.RiskData(NR_to_Cash!C$18,$A400))/1000","v":{"$error":"#NAME?"}},{"$f":"(_xll.RiskData(NR_to_Cash!D$18,$A400))/1000","v":{"$error":"#NAME?"}},{"$f":"(_xll.RiskData(NR_to_Cash!E$18,$A400))/1000","v":{"$error":"#NAME?"}}]
[394,{"$f":"_xll.RiskData('Risk Summary'!J$48,$A401)/1000","v":{"$error":"#NAME?"}},{"$f":"_xll.RiskData('Risk Summary'!K$48,$A401)/1000","v":{"$error":"#NAME?"}},{"$f":"_xll.RiskData('Risk Summary'!L$48,$A401)/1000","v":{"$error":"#NAME?"}},null,null,{"$f":"(_xll.RiskData(NR_to_Cash!C$18,$A401))/1000","v":{"$error":"#NAME?"}},{"$f":"(_xll.RiskData(NR_to_Cash!D$18,$A401))/1000","v":{"$error":"#NAME?"}},{"$f":"(_xll.RiskData(NR_to_Cash!E$18,$A401))/1000","v":{"$error":"#NAME?"}}]
[395,{"$f":"_xll.RiskData('Risk Summary'!J$48,$A402)/1000","v":{"$error":"#NAME?"}},{"$f":"_xll.RiskData('Risk Summary'!K$48,$A402)/1000","v":{"$error":"#NAME?"}},{"$f":"_xll.RiskData('Risk Summary'!L$48,$A402)/1000","v":{"$error":"#NAME?"}},null,null,{"$f":"(_xll.RiskData(NR_to_Cash!C$18,$A402))/1000","v":{"$error":"#NAME?"}},{"$f":"(_xll.RiskData(NR_to_Cash!D$18,$A402))/1000","v":{"$error":"#NAME?"}},{"$f":"(_xll.RiskData(NR_to_Cash!E$18,$A402))/1000","v":{"$error":"#NAME?"}}]
[396,{"$f":"_xll.RiskData('Risk Summary'!J$48,$A403)/1000","v":{"$error":"#NAME?"}},{"$f":"_xll.RiskData('Risk Summary'!K$48,$A403)/1000","v":{"$error":"#NAME?"}},{"$f":"_xll.RiskData('Risk Summary'!L$48,$A403)/1000","v":{"$error":"#NAME?"}},null,null,{"$f":"(_xll.RiskData(NR_to_Cash!C$18,$A403))/1000","v":{"$error":"#NAME?"}},{"$f":"(_xll.RiskData(NR_to_Cash!D$18,$A403))/1000","v":{"$error":"#NAME?"}},{"$f":"(_xll.RiskData(NR_to_Cash!E$18,$A403))/1000","v":{"$error":"#NAME?"}}]
[397,{"$f":"_xll.RiskData('Risk Summary'!J$48,$A404)/1000","v":{"$error":"#NAME?"}},{"$f":"_xll.RiskData('Risk Summary'!K$48,$A404)/1000","v":{"$error":"#NAME?"}},{"$f":"_xll.RiskData('Risk Summary'!L$48,$A404)/1000","v":{"$error":"#NAME?"}},null,null,{"$f":"(_xll.RiskData(NR_to_Cash!C$18,$A404))/1000","v":{"$error":"#NAME?"}},{"$f":"(_xll.RiskData(NR_to_Cash!D$18,$A404))/1000","v":{"$error":"#NAME?"}},{"$f":"(_xll.RiskData(NR_to_Cash!E$18,$A404))/1000","v":{"$error":"#NAME?"}}]
[398,{"$f":"_xll.RiskData('Risk Summary'!J$48,$A405)/1000","v":{"$error":"#NAME?"}},{"$f":"_xll.RiskData('Risk Summary'!K$48,$A405)/1000","v":{"$error":"#NAME?"}},{"$f":"_xll.RiskData('Risk Summary'!L$48,$A405)/1000","v":{"$error":"#NAME?"}},null,null,{"$f":"(_xll.RiskData(NR_to_Cash!C$18,$A405))/1000","v":{"$error":"#NAME?"}},{"$f":"(_xll.RiskData(NR_to_Cash!D$18,$A405))/1000","v":{"$error":"#NAME?"}},{"$f":"(_xll.RiskData(NR_to_Cash!E$18,$A405))/1000","v":{"$error":"#NAME?"}}]
[399,{"$f":"_xll.RiskData('Risk Summary'!J$48,$A406)/1000","v":{"$error":"#NAME?"}},{"$f":"_xll.RiskData('Risk Summary'!K$48,$A406)/1000","v":{"$error":"#NAME?"}},{"$f":"_xll.RiskData('Risk Summary'!L$48,$A406)/1000","v":{"$error":"#NAME?"}},null,null,{"$f":"(_xll.RiskData(NR_to_Cash!C$18,$A406))/1000","v":{"$error":"#NAME?"}},{"$f":"(_xll.RiskData(NR_to_Cash!D$18,$A406))/1000","v":{"$error":"#NAME?"}},{"$f":"(_xll.RiskData(NR_to_Cash!E$18,$A406))/1000","v":{"$error":"#NAME?"}}]
[400,{"$f":"_xll.RiskData('Risk Summary'!J$48,$A407)/1000","v":{"$error":"#NAME?"}},{"$f":"_xll.RiskData('Risk Summary'!K$48,$A407)/1000","v":{"$error":"#NAME?"}},{"$f":"_xll.RiskData('Risk Summary'!L$48,$A407)/1000","v":{"$error":"#NAME?"}},null,null,{"$f":"(_xll.RiskData(NR_to_Cash!C$18,$A407))/1000","v":{"$error":"#NAME?"}},{"$f":"(_xll.RiskData(NR_to_Cash!D$18,$A407))/1000","v":{"$error":"#NAME?"}},{"$f":"(_xll.RiskData(NR_to_Cash!E$18,$A407))/1000","v":{"$error":"#NAME?"}}]
[401,{"$f":"_xll.RiskData('Risk Summary'!J$48,$A408)/1000","v":{"$error":"#NAME?"}},{"$f":"_xll.RiskData('Risk Summary'!K$48,$A408)/1000","v":{"$error":"#NAME?"}},{"$f":"_xll.RiskData('Risk Summary'!L$48,$A408)/1000","v":{"$error":"#NAME?"}},null,null,{"$f":"(_xll.RiskData(NR_to_Cash!C$18,$A408))/1000","v":{"$error":"#NAME?"}},{"$f":"(_xll.RiskData(NR_to_Cash!D$18,$A408))/1000","v":{"$error":"#NAME?"}},{"$f":"(_xll.RiskData(NR_to_Cash!E$18,$A408))/1000","v":{"$error":"#NAME?"}}]
[402,{"$f":"_xll.RiskData('Risk Summary'!J$48,$A409)/1000","v":{"$error":"#NAME?"}},{"$f":"_xll.RiskData('Risk Summary'!K$48,$A409)/1000","v":{"$error":"#NAME?"}},{"$f":"_xll.RiskData('Risk Summary'!L$48,$A409)/1000","v":{"$error":"#NAME?"}},null,null,{"$f":"(_xll.RiskData(NR_to_Cash!C$18,$A409))/1000","v":{"$error":"#NAME?"}},{"$f":"(_xll.RiskData(NR_to_Cash!D$18,$A409))/1000","v":{"$error":"#NAME?"}},{"$f":"(_xll.RiskData(NR_to_Cash!E$18,$A409))/1000","v":{"$error":"#NAME?"}}]
[403,{"$f":"_xll.RiskData('Risk Summary'!J$48,$A410)/1000","v":{"$error":"#NAME?"}},{"$f":"_xll.RiskData('Risk Summary'!K$48,$A410)/1000","v":{"$error":"#NAME?"}},{"$f":"_xll.RiskData('Risk Summary'!L$48,$A410)/1000","v":{"$error":"#NAME?"}},null,null,{"$f":"(_xll.RiskData(NR_to_Cash!C$18,$A410))/1000","v":{"$error":"#NAME?"}},{"$f":"(_xll.RiskData(NR_to_Cash!D$18,$A410))/1000","v":{"$error":"#NAME?"}},{"$f":"(_xll.RiskData(NR_to_Cash!E$18,$A410))/1000","v":{"$error":"#NAME?"}}]
[404,{"$f":"_xll.RiskData('Risk Summary'!J$48,$A411)/1000","v":{"$error":"#NAME?"}},{"$f":"_xll.RiskData('Risk Summary'!K$48,$A411)/1000","v":{"$error":"#NAME?"}},{"$f":"_xll.RiskData('Risk Summary'!L$48,$A411)/1000","v":{"$error":"#NAME?"}},null,null,{"$f":"(_xll.RiskData(NR_to_Cash!C$18,$A411))/1000","v":{"$error":"#NAME?"}},{"$f":"(_xll.RiskData(NR_to_Cash!D$18,$A411))/1000","v":{"$error":"#NAME?"}},{"$f":"(_xll.RiskData(NR_to_Cash!E$18,$A411))/1000","v":{"$error":"#NAME?"}}]
[405,{"$f":"_xll.RiskData('Risk Summary'!J$48,$A412)/1000","v":{"$error":"#NAME?"}},{"$f":"_xll.RiskData('Risk Summary'!K$48,$A412)/1000","v":{"$error":"#NAME?"}},{"$f":"_xll.RiskData('Risk Summary'!L$48,$A412)/1000","v":{"$error":"#NAME?"}},null,null,{"$f":"(_xll.RiskData(NR_to_Cash!C$18,$A412))/1000","v":{"$error":"#NAME?"}},{"$f":"(_xll.RiskData(NR_to_Cash!D$18,$A412))/1000","v":{"$error":"#NAME?"}},{"$f":"(_xll.RiskData(NR_to_Cash!E$18,$A412))/1000","v":{"$error":"#NAME?"}}]
[406,{"$f":"_xll.RiskData('Risk Summary'!J$48,$A413)/1000","v":{"$error":"#NAME?"}},{"$f":"_xll.RiskData('Risk Summary'!K$48,$A413)/1000","v":{"$error":"#NAME?"}},{"$f":"_xll.RiskData('Risk Summary'!L$48,$A413)/1000","v":{"$error":"#NAME?"}},null,null,{"$f":"(_xll.RiskData(NR_to_Cash!C$18,$A413))/1000","v":{"$error":"#NAME?"}},{"$f":"(_xll.RiskData(NR_to_Cash!D$18,$A413))/1000","v":{"$error":"#NAME?"}},{"$f":"(_xll.RiskData(NR_to_Cash!E$18,$A413))/1000","v":{"$error":"#NAME?"}}]
[407,{"$f":"_xll.RiskData('Risk Summary'!J$48,$A414)/1000","v":{"$error":"#NAME?"}},{"$f":"_xll.RiskData('Risk Summary'!K$48,$A414)/1000","v":{"$error":"#NAME?"}},{"$f":"_xll.RiskData('Risk Summary'!L$48,$A414)/1000","v":{"$error":"#NAME?"}},null,null,{"$f":"(_xll.RiskData(NR_to_Cash!C$18,$A414))/1000","v":{"$error":"#NAME?"}},{"$f":"(_xll.RiskData(NR_to_Cash!D$18,$A414))/1000","v":{"$error":"#NAME?"}},{"$f":"(_xll.RiskData(NR_to_Cash!E$18,$A414))/1000","v":{"$error":"#NAME?"}}]
[408,{"$f":"_xll.RiskData('Risk Summary'!J$48,$A415)/1000","v":{"$error":"#NAME?"}},{"$f":"_xll.RiskData('Risk Summary'!K$48,$A415)/1000","v":{"$error":"#NAME?"}},{"$f":"_xll.RiskData('Risk Summary'!L$48,$A415)/1000","v":{"$error":"#NAME?"}},null,null,{"$f":"(_xll.RiskData(NR_to_Cash!C$18,$A415))/1000","v":{"$error":"#NAME?"}},{"$f":"(_xll.RiskData(NR_to_Cash!D$18,$A415))/1000","v":{"$error":"#NAME?"}},{"$f":"(_xll.RiskData(NR_to_Cash!E$18,$A415))/1000","v":{"$error":"#NAME?"}}]
[409,{"$f":"_xll.RiskData('Risk Summary'!J$48,$A416)/1000","v":{"$error":"#NAME?"}},{"$f":"_xll.RiskData('Risk Summary'!K$48,$A416)/1000","v":{"$error":"#NAME?"}},{"$f":"_xll.RiskData('Risk Summary'!L$48,$A416)/1000","v":{"$error":"#NAME?"}},null,null,{"$f":"(_xll.RiskData(NR_to_Cash!C$18,$A416))/1000","v":{"$error":"#NAME?"}},{"$f":"(_xll.RiskData(NR_to_Cash!D$18,$A416))/1000","v":{"$error":"#NAME?"}},{"$f":"(_xll.RiskData(NR_to_Cash!E$18,$A416))/1000","v":{"$error":"#NAME?"}}]
[410,{"$f":"_xll.RiskData('Risk Summary'!J$48,$A417)/1000","v":{"$error":"#NAME?"}},{"$f":"_xll.RiskData('Risk Summary'!K$48,$A417)/1000","v":{"$error":"#NAME?"}},{"$f":"_xll.RiskData('Risk Summary'!L$48,$A417)/1000","v":{"$error":"#NAME?"}},null,null,{"$f":"(_xll.RiskData(NR_to_Cash!C$18,$A417))/1000","v":{"$error":"#NAME?"}},{"$f":"(_xll.RiskData(NR_to_Cash!D$18,$A417))/1000","v":{"$error":"#NAME?"}},{"$f":"(_xll.RiskData(NR_to_Cash!E$18,$A417))/1000","v":{"$error":"#NAME?"}}]
[411,{"$f":"_xll.RiskData('Risk Summary'!J$48,$A418)/1000","v":{"$error":"#NAME?"}},{"$f":"_xll.RiskData('Risk Summary'!K$48,$A418)/1000","v":{"$error":"#NAME?"}},{"$f":"_xll.RiskData('Risk Summary'!L$48,$A418)/1000","v":{"$error":"#NAME?"}},null,null,{"$f":"(_xll.RiskData(NR_to_Cash!C$18,$A418))/1000","v":{"$error":"#NAME?"}},{"$f":"(_xll.RiskData(NR_to_Cash!D$18,$A418))/1000","v":{"$error":"#NAME?"}},{"$f":"(_xll.RiskData(NR_to_Cash!E$18,$A418))/1000","v":{"$error":"#NAME?"}}]
[412,{"$f":"_xll.RiskData('Risk Summary'!J$48,$A419)/1000","v":{"$error":"#NAME?"}},{"$f":"_xll.RiskData('Risk Summary'!K$48,$A419)/1000","v":{"$error":"#NAME?"}},{"$f":"_xll.RiskData('Risk Summary'!L$48,$A419)/1000","v":{"$error":"#NAME?"}},null,null,{"$f":"(_xll.RiskData(NR_to_Cash!C$18,$A419))/1000","v":{"$error":"#NAME?"}},{"$f":"(_xll.RiskData(NR_to_Cash!D$18,$A419))/1000","v":{"$error":"#NAME?"}},{"$f":"(_xll.RiskData(NR_to_Cash!E$18,$A419))/1000","v":{"$error":"#NAME?"}}]
[413,{"$f":"_xll.RiskData('Risk Summary'!J$48,$A420)/1000","v":{"$error":"#NAME?"}},{"$f":"_xll.RiskData('Risk Summary'!K$48,$A420)/1000","v":{"$error":"#NAME?"}},{"$f":"_xll.RiskData('Risk Summary'!L$48,$A420)/1000","v":{"$error":"#NAME?"}},null,null,{"$f":"(_xll.RiskData(NR_to_Cash!C$18,$A420))/1000","v":{"$error":"#NAME?"}},{"$f":"(_xll.RiskData(NR_to_Cash!D$18,$A420))/1000","v":{"$error":"#NAME?"}},{"$f":"(_xll.RiskData(NR_to_Cash!E$18,$A420))/1000","v":{"$error":"#NAME?"}}]
[414,{"$f":"_xll.RiskData('Risk Summary'!J$48,$A421)/1000","v":{"$error":"#NAME?"}},{"$f":"_xll.RiskData('Risk Summary'!K$48,$A421)/1000","v":{"$error":"#NAME?"}},{"$f":"_xll.RiskData('Risk Summary'!L$48,$A421)/1000","v":{"$error":"#NAME?"}},null,null,{"$f":"(_xll.RiskData(NR_to_Cash!C$18,$A421))/1000","v":{"$error":"#NAME?"}},{"$f":"(_xll.RiskData(NR_to_Cash!D$18,$A421))/1000","v":{"$error":"#NAME?"}},{"$f":"(_xll.RiskData(NR_to_Cash!E$18,$A421))/1000","v":{"$error":"#NAME?"}}]
[415,{"$f":"_xll.RiskData('Risk Summary'!J$48,$A422)/1000","v":{"$error":"#NAME?"}},{"$f":"_xll.RiskData('Risk Summary'!K$48,$A422)/1000","v":{"$error":"#NAME?"}},{"$f":"_xll.RiskData('Risk Summary'!L$48,$A422)/1000","v":{"$error":"#NAME?"}},null,null,{"$f":"(_xll.RiskData(NR_to_Cash!C$18,$A422))/1000","v":{"$error":"#NAME?"}},{"$f":"(_xll.RiskData(NR_to_Cash!D$18,$A422))/1000","v":{"$error":"#NAME?"}},{"$f":"(_xll.RiskData(NR_to_Cash!E$18,$A422))/1000","v":{"$error":"#NAME?"}}]
[416,{"$f":"_xll.RiskData('Risk Summary'!J$48,$A423)/1000","v":{"$error":"#NAME?"}},{"$f":"_xll.RiskData('Risk Summary'!K$48,$A423)/1000","v":{"$error":"#NAME?"}},{"$f":"_xll.RiskData('Risk Summary'!L$48,$A423)/1000","v":{"$error":"#NAME?"}},null,null,{"$f":"(_xll.RiskData(NR_to_Cash!C$18,$A423))/1000","v":{"$error":"#NAME?"}},{"$f":"(_xll.RiskData(NR_to_Cash!D$18,$A423))/1000","v":{"$error":"#NAME?"}},{"$f":"(_xll.RiskData(NR_to_Cash!E$18,$A423))/1000","v":{"$error":"#NAME?"}}]
[417,{"$f":"_xll.RiskData('Risk Summary'!J$48,$A424)/1000","v":{"$error":"#NAME?"}},{"$f":"_xll.RiskData('Risk Summary'!K$48,$A424)/1000","v":{"$error":"#NAME?"}},{"$f":"_xll.RiskData('Risk Summary'!L$48,$A424)/1000","v":{"$error":"#NAME?"}},null,null,{"$f":"(_xll.RiskData(NR_to_Cash!C$18,$A424))/1000","v":{"$error":"#NAME?"}},{"$f":"(_xll.RiskData(NR_to_Cash!D$18,$A424))/1000","v":{"$error":"#NAME?"}},{"$f":"(_xll.RiskData(NR_to_Cash!E$18,$A424))/1000","v":{"$error":"#NAME?"}}]
[418,{"$f":"_xll.RiskData('Risk Summary'!J$48,$A425)/1000","v":{"$error":"#NAME?"}},{"$f":"_xll.RiskData('Risk Summary'!K$48,$A425)/1000","v":{"$error":"#NAME?"}},{"$f":"_xll.RiskData('Risk Summary'!L$48,$A425)/1000","v":{"$error":"#NAME?"}},null,null,{"$f":"(_xll.RiskData(NR_to_Cash!C$18,$A425))/1000","v":{"$error":"#NAME?"}},{"$f":"(_xll.RiskData(NR_to_Cash!D$18,$A425))/1000","v":{"$error":"#NAME?"}},{"$f":"(_xll.RiskData(NR_to_Cash!E$18,$A425))/1000","v":{"$error":"#NAME?"}}]
[419,{"$f":"_xll.RiskData('Risk Summary'!J$48,$A426)/1000","v":{"$error":"#NAME?"}},{"$f":"_xll.RiskData('Risk Summary'!K$48,$A426)/1000","v":{"$error":"#NAME?"}},{"$f":"_xll.RiskData('Risk Summary'!L$48,$A426)/1000","v":{"$error":"#NAME?"}},null,null,{"$f":"(_xll.RiskData(NR_to_Cash!C$18,$A426))/1000","v":{"$error":"#NAME?"}},{"$f":"(_xll.RiskData(NR_to_Cash!D$18,$A426))/1000","v":{"$error":"#NAME?"}},{"$f":"(_xll.RiskData(NR_to_Cash!E$18,$A426))/1000","v":{"$error":"#NAME?"}}]
[420,{"$f":"_xll.RiskData('Risk Summary'!J$48,$A427)/1000","v":{"$error":"#NAME?"}},{"$f":"_xll.RiskData('Risk Summary'!K$48,$A427)/1000","v":{"$error":"#NAME?"}},{"$f":"_xll.RiskData('Risk Summary'!L$48,$A427)/1000","v":{"$error":"#NAME?"}},null,null,{"$f":"(_xll.RiskData(NR_to_Cash!C$18,$A427))/1000","v":{"$error":"#NAME?"}},{"$f":"(_xll.RiskData(NR_to_Cash!D$18,$A427))/1000","v":{"$error":"#NAME?"}},{"$f":"(_xll.RiskData(NR_to_Cash!E$18,$A427))/1000","v":{"$error":"#NAME?"}}]
[421,{"$f":"_xll.RiskData('Risk Summary'!J$48,$A428)/1000","v":{"$error":"#NAME?"}},{"$f":"_xll.RiskData('Risk Summary'!K$48,$A428)/1000","v":{"$error":"#NAME?"}},{"$f":"_xll.RiskData('Risk Summary'!L$48,$A428)/1000","v":{"$error":"#NAME?"}},null,null,{"$f":"(_xll.RiskData(NR_to_Cash!C$18,$A428))/1000","v":{"$error":"#NAME?"}},{"$f":"(_xll.RiskData(NR_to_Cash!D$18,$A428))/1000","v":{"$error":"#NAME?"}},{"$f":"(_xll.RiskData(NR_to_Cash!E$18,$A428))/1000","v":{"$error":"#NAME?"}}]
[422,{"$f":"_xll.RiskData('Risk Summary'!J$48,$A429)/1000","v":{"$error":"#NAME?"}},{"$f":"_xll.RiskData('Risk Summary'!K$48,$A429)/1000","v":{"$error":"#NAME?"}},{"$f":"_xll.RiskData('Risk Summary'!L$48,$A429)/1000","v":{"$error":"#NAME?"}},null,null,{"$f":"(_xll.RiskData(NR_to_Cash!C$18,$A429))/1000","v":{"$error":"#NAME?"}},{"$f":"(_xll.RiskData(NR_to_Cash!D$18,$A429))/1000","v":{"$error":"#NAME?"}},{"$f":"(_xll.RiskData(NR_to_Cash!E$18,$A429))/1000","v":{"$error":"#NAME?"}}]
[423,{"$f":"_xll.RiskData('Risk Summary'!J$48,$A430)/1000","v":{"$error":"#NAME?"}},{"$f":"_xll.RiskData('Risk Summary'!K$48,$A430)/1000","v":{"$error":"#NAME?"}},{"$f":"_xll.RiskData('Risk Summary'!L$48,$A430)/1000","v":{"$error":"#NAME?"}},null,null,{"$f":"(_xll.RiskData(NR_to_Cash!C$18,$A430))/1000","v":{"$error":"#NAME?"}},{"$f":"(_xll.RiskData(NR_to_Cash!D$18,$A430))/1000","v":{"$error":"#NAME?"}},{"$f":"(_xll.RiskData(NR_to_Cash!E$18,$A430))/1000","v":{"$error":"#NAME?"}}]
[424,{"$f":"_xll.RiskData('Risk Summary'!J$48,$A431)/1000","v":{"$error":"#NAME?"}},{"$f":"_xll.RiskData('Risk Summary'!K$48,$A431)/1000","v":{"$error":"#NAME?"}},{"$f":"_xll.RiskData('Risk Summary'!L$48,$A431)/1000","v":{"$error":"#NAME?"}},null,null,{"$f":"(_xll.RiskData(NR_to_Cash!C$18,$A431))/1000","v":{"$error":"#NAME?"}},{"$f":"(_xll.RiskData(NR_to_Cash!D$18,$A431))/1000","v":{"$error":"#NAME?"}},{"$f":"(_xll.RiskData(NR_to_Cash!E$18,$A431))/1000","v":{"$error":"#NAME?"}}]
[425,{"$f":"_xll.RiskData('Risk Summary'!J$48,$A432)/1000","v":{"$error":"#NAME?"}},{"$f":"_xll.RiskData('Risk Summary'!K$48,$A432)/1000","v":{"$error":"#NAME?"}},{"$f":"_xll.RiskData('Risk Summary'!L$48,$A432)/1000","v":{"$error":"#NAME?"}},null,null,{"$f":"(_xll.RiskData(NR_to_Cash!C$18,$A432))/1000","v":{"$error":"#NAME?"}},{"$f":"(_xll.RiskData(NR_to_Cash!D$18,$A432))/1000","v":{"$error":"#NAME?"}},{"$f":"(_xll.RiskData(NR_to_Cash!E$18,$A432))/1000","v":{"$error":"#NAME?"}}]
[426,{"$f":"_xll.RiskData('Risk Summary'!J$48,$A433)/1000","v":{"$error":"#NAME?"}},{"$f":"_xll.RiskData('Risk Summary'!K$48,$A433)/1000","v":{"$error":"#NAME?"}},{"$f":"_xll.RiskData('Risk Summary'!L$48,$A433)/1000","v":{"$error":"#NAME?"}},null,null,{"$f":"(_xll.RiskData(NR_to_Cash!C$18,$A433))/1000","v":{"$error":"#NAME?"}},{"$f":"(_xll.RiskData(NR_to_Cash!D$18,$A433))/1000","v":{"$error":"#NAME?"}},{"$f":"(_xll.RiskData(NR_to_Cash!E$18,$A433))/1000","v":{"$error":"#NAME?"}}]
[427,{"$f":"_xll.RiskData('Risk Summary'!J$48,$A434)/1000","v":{"$error":"#NAME?"}},{"$f":"_xll.RiskData('Risk Summary'!K$48,$A434)/1000","v":{"$error":"#NAME?"}},{"$f":"_xll.RiskData('Risk Summary'!L$48,$A434)/1000","v":{"$error":"#NAME?"}},null,null,{"$f":"(_xll.RiskData(NR_to_Cash!C$18,$A434))/1000","v":{"$error":"#NAME?"}},{"$f":"(_xll.RiskData(NR_to_Cash!D$18,$A434))/1000","v":{"$error":"#NAME?"}},{"$f":"(_xll.RiskData(NR_to_Cash!E$18,$A434))/1000","v":{"$error":"#NAME?"}}]
[428,{"$f":"_xll.RiskData('Risk Summary'!J$48,$A435)/1000","v":{"$error":"#NAME?"}},{"$f":"_xll.RiskData('Risk Summary'!K$48,$A435)/1000","v":{"$error":"#NAME?"}},{"$f":"_xll.RiskData('Risk Summary'!L$48,$A435)/1000","v":{"$error":"#NAME?"}},null,null,{"$f":"(_xll.RiskData(NR_to_Cash!C$18,$A435))/1000","v":{"$error":"#NAME?"}},{"$f":"(_xll.RiskData(NR_to_Cash!D$18,$A435))/1000","v":{"$error":"#NAME?"}},{"$f":"(_xll.RiskData(NR_to_Cash!E$18,$A435))/1000","v":{"$error":"#NAME?"}}]
[429,{"$f":"_xll.RiskData('Risk Summary'!J$48,$A436)/1000","v":{"$error":"#NAME?"}},{"$f":"_xll.RiskData('Risk Summary'!K$48,$A436)/1000","v":{"$error":"#NAME?"}},{"$f":"_xll.RiskData('Risk Summary'!L$48,$A436)/1000","v":{"$error":"#NAME?"}},null,null,{"$f":"(_xll.RiskData(NR_to_Cash!C$18,$A436))/1000","v":{"$error":"#NAME?"}},{"$f":"(_xll.RiskData(NR_to_Cash!D$18,$A436))/1000","v":{"$error":"#NAME?"}},{"$f":"(_xll.RiskData(NR_to_Cash!E$18,$A436))/1000","v":{"$error":"#NAME?"}}]
[430,{"$f":"_xll.RiskData('Risk Summary'!J$48,$A437)/1000","v":{"$error":"#NAME?"}},{"$f":"_xll.RiskData('Risk Summary'!K$48,$A437)/1000","v":{"$error":"#NAME?"}},{"$f":"_xll.RiskData('Risk Summary'!L$48,$A437)/1000","v":{"$error":"#NAME?"}},null,null,{"$f":"(_xll.RiskData(NR_to_Cash!C$18,$A437))/1000","v":{"$error":"#NAME?"}},{"$f":"(_xll.RiskData(NR_to_Cash!D$18,$A437))/1000","v":{"$error":"#NAME?"}},{"$f":"(_xll.RiskData(NR_to_Cash!E$18,$A437))/1000","v":{"$error":"#NAME?"}}]
[431,{"$f":"_xll.RiskData('Risk Summary'!J$48,$A438)/1000","v":{"$error":"#NAME?"}},{"$f":"_xll.RiskData('Risk Summary'!K$48,$A438)/1000","v":{"$error":"#NAME?"}},{"$f":"_xll.RiskData('Risk Summary'!L$48,$A438)/1000","v":{"$error":"#NAME?"}},null,null,{"$f":"(_xll.RiskData(NR_to_Cash!C$18,$A438))/1000","v":{"$error":"#NAME?"}},{"$f":"(_xll.RiskData(NR_to_Cash!D$18,$A438))/1000","v":{"$error":"#NAME?"}},{"$f":"(_xll.RiskData(NR_to_Cash!E$18,$A438))/1000","v":{"$error":"#NAME?"}}]
[432,{"$f":"_xll.RiskData('Risk Summary'!J$48,$A439)/1000","v":{"$error":"#NAME?"}},{"$f":"_xll.RiskData('Risk Summary'!K$48,$A439)/1000","v":{"$error":"#NAME?"}},{"$f":"_xll.RiskData('Risk Summary'!L$48,$A439)/1000","v":{"$error":"#NAME?"}},null,null,{"$f":"(_xll.RiskData(NR_to_Cash!C$18,$A439))/1000","v":{"$error":"#NAME?"}},{"$f":"(_xll.RiskData(NR_to_Cash!D$18,$A439))/1000","v":{"$error":"#NAME?"}},{"$f":"(_xll.RiskData(NR_to_Cash!E$18,$A439))/1000","v":{"$error":"#NAME?"}}]
[433,{"$f":"_xll.RiskData('Risk Summary'!J$48,$A440)/1000","v":{"$error":"#NAME?"}},{"$f":"_xll.RiskData('Risk Summary'!K$48,$A440)/1000","v":{"$error":"#NAME?"}},{"$f":"_xll.RiskData('Risk Summary'!L$48,$A440)/1000","v":{"$error":"#NAME?"}},null,null,{"$f":"(_xll.RiskData(NR_to_Cash!C$18,$A440))/1000","v":{"$error":"#NAME?"}},{"$f":"(_xll.RiskData(NR_to_Cash!D$18,$A440))/1000","v":{"$error":"#NAME?"}},{"$f":"(_xll.RiskData(NR_to_Cash!E$18,$A440))/1000","v":{"$error":"#NAME?"}}]
[434,{"$f":"_xll.RiskData('Risk Summary'!J$48,$A441)/1000","v":{"$error":"#NAME?"}},{"$f":"_xll.RiskData('Risk Summary'!K$48,$A441)/1000","v":{"$error":"#NAME?"}},{"$f":"_xll.RiskData('Risk Summary'!L$48,$A441)/1000","v":{"$error":"#NAME?"}},null,null,{"$f":"(_xll.RiskData(NR_to_Cash!C$18,$A441))/1000","v":{"$error":"#NAME?"}},{"$f":"(_xll.RiskData(NR_to_Cash!D$18,$A441))/1000","v":{"$error":"#NAME?"}},{"$f":"(_xll.RiskData(NR_to_Cash!E$18,$A441))/1000","v":{"$error":"#NAME?"}}]
[435,{"$f":"_xll.RiskData('Risk Summary'!J$48,$A442)/1000","v":{"$error":"#NAME?"}},{"$f":"_xll.RiskData('Risk Summary'!K$48,$A442)/1000","v":{"$error":"#NAME?"}},{"$f":"_xll.RiskData('Risk Summary'!L$48,$A442)/1000","v":{"$error":"#NAME?"}},null,null,{"$f":"(_xll.RiskData(NR_to_Cash!C$18,$A442))/1000","v":{"$error":"#NAME?"}},{"$f":"(_xll.RiskData(NR_to_Cash!D$18,$A442))/1000","v":{"$error":"#NAME?"}},{"$f":"(_xll.RiskData(NR_to_Cash!E$18,$A442))/1000","v":{"$error":"#NAME?"}}]
[436,{"$f":"_xll.RiskData('Risk Summary'!J$48,$A443)/1000","v":{"$error":"#NAME?"}},{"$f":"_xll.RiskData('Risk Summary'!K$48,$A443)/1000","v":{"$error":"#NAME?"}},{"$f":"_xll.RiskData('Risk Summary'!L$48,$A443)/1000","v":{"$error":"#NAME?"}},null,null,{"$f":"(_xll.RiskData(NR_to_Cash!C$18,$A443))/1000","v":{"$error":"#NAME?"}},{"$f":"(_xll.RiskData(NR_to_Cash!D$18,$A443))/1000","v":{"$error":"#NAME?"}},{"$f":"(_xll.RiskData(NR_to_Cash!E$18,$A443))/1000","v":{"$error":"#NAME?"}}]
[437,{"$f":"_xll.RiskData('Risk Summary'!J$48,$A444)/1000","v":{"$error":"#NAME?"}},{"$f":"_xll.RiskData('Risk Summary'!K$48,$A444)/1000","v":{"$error":"#NAME?"}},{"$f":"_xll.RiskData('Risk Summary'!L$48,$A444)/1000","v":{"$error":"#NAME?"}},null,null,{"$f":"(_xll.RiskData(NR_to_Cash!C$18,$A444))/1000","v":{"$error":"#NAME?"}},{"$f":"(_xll.RiskData(NR_to_Cash!D$18,$A444))/1000","v":{"$error":"#NAME?"}},{"$f":"(_xll.RiskData(NR_to_Cash!E$18,$A444))/1000","v":{"$error":"#NAME?"}}]
[438,{"$f":"_xll.RiskData('Risk Summary'!J$48,$A445)/1000","v":{"$error":"#NAME?"}},{"$f":"_xll.RiskData('Risk Summary'!K$48,$A445)/1000","v":{"$error":"#NAME?"}},{"$f":"_xll.RiskData('Risk Summary'!L$48,$A445)/1000","v":{"$error":"#NAME?"}},null,null,{"$f":"(_xll.RiskData(NR_to_Cash!C$18,$A445))/1000","v":{"$error":"#NAME?"}},{"$f":"(_xll.RiskData(NR_to_Cash!D$18,$A445))/1000","v":{"$error":"#NAME?"}},{"$f":"(_xll.RiskData(NR_to_Cash!E$18,$A445))/1000","v":{"$error":"#NAME?"}}]
[439,{"$f":"_xll.RiskData('Risk Summary'!J$48,$A446)/1000","v":{"$error":"#NAME?"}},{"$f":"_xll.RiskData('Risk Summary'!K$48,$A446)/1000","v":{"$error":"#NAME?"}},{"$f":"_xll.RiskData('Risk Summary'!L$48,$A446)/1000","v":{"$error":"#NAME?"}},null,null,{"$f":"(_xll.RiskData(NR_to_Cash!C$18,$A446))/1000","v":{"$error":"#NAME?"}},{"$f":"(_xll.RiskData(NR_to_Cash!D$18,$A446))/1000","v":{"$error":"#NAME?"}},{"$f":"(_xll.RiskData(NR_to_Cash!E$18,$A446))/1000","v":{"$error":"#NAME?"}}]
[440,{"$f":"_xll.RiskData('Risk Summary'!J$48,$A447)/1000","v":{"$error":"#NAME?"}},{"$f":"_xll.RiskData('Risk Summary'!K$48,$A447)/1000","v":{"$error":"#NAME?"}},{"$f":"_xll.RiskData('Risk Summary'!L$48,$A447)/1000","v":{"$error":"#NAME?"}},null,null,{"$f":"(_xll.RiskData(NR_to_Cash!C$18,$A447))/1000","v":{"$error":"#NAME?"}},{"$f":"(_xll.RiskData(NR_to_Cash!D$18,$A447))/1000","v":{"$error":"#NAME?"}},{"$f":"(_xll.RiskData(NR_to_Cash!E$18,$A447))/1000","v":{"$error":"#NAME?"}}]
[441,{"$f":"_xll.RiskData('Risk Summary'!J$48,$A448)/1000","v":{"$error":"#NAME?"}},{"$f":"_xll.RiskData('Risk Summary'!K$48,$A448)/1000","v":{"$error":"#NAME?"}},{"$f":"_xll.RiskData('Risk Summary'!L$48,$A448)/1000","v":{"$error":"#NAME?"}},null,null,{"$f":"(_xll.RiskData(NR_to_Cash!C$18,$A448))/1000","v":{"$error":"#NAME?"}},{"$f":"(_xll.RiskData(NR_to_Cash!D$18,$A448))/1000","v":{"$error":"#NAME?"}},{"$f":"(_xll.RiskData(NR_to_Cash!E$18,$A448))/1000","v":{"$error":"#NAME?"}}]
[442,{"$f":"_xll.RiskData('Risk Summary'!J$48,$A449)/1000","v":{"$error":"#NAME?"}},{"$f":"_xll.RiskData('Risk Summary'!K$48,$A449)/1000","v":{"$error":"#NAME?"}},{"$f":"_xll.RiskData('Risk Summary'!L$48,$A449)/1000","v":{"$error":"#NAME?"}},null,null,{"$f":"(_xll.RiskData(NR_to_Cash!C$18,$A449))/1000","v":{"$error":"#NAME?"}},{"$f":"(_xll.RiskData(NR_to_Cash!D$18,$A449))/1000","v":{"$error":"#NAME?"}},{"$f":"(_xll.RiskData(NR_to_Cash!E$18,$A449))/1000","v":{"$error":"#NAME?"}}]
[443,{"$f":"_xll.RiskData('Risk Summary'!J$48,$A450)/1000","v":{"$error":"#NAME?"}},{"$f":"_xll.RiskData('Risk Summary'!K$48,$A450)/1000","v":{"$error":"#NAME?"}},{"$f":"_xll.RiskData('Risk Summary'!L$48,$A450)/1000","v":{"$error":"#NAME?"}},null,null,{"$f":"(_xll.RiskData(NR_to_Cash!C$18,$A450))/1000","v":{"$error":"#NAME?"}},{"$f":"(_xll.RiskData(NR_to_Cash!D$18,$A450))/1000","v":{"$error":"#NAME?"}},{"$f":"(_xll.RiskData(NR_to_Cash!E$18,$A450))/1000","v":{"$error":"#NAME?"}}]
[444,{"$f":"_xll.RiskData('Risk Summary'!J$48,$A451)/1000","v":{"$error":"#NAME?"}},{"$f":"_xll.RiskData('Risk Summary'!K$48,$A451)/1000","v":{"$error":"#NAME?"}},{"$f":"_xll.RiskData('Risk Summary'!L$48,$A451)/1000","v":{"$error":"#NAME?"}},null,null,{"$f":"(_xll.RiskData(NR_to_Cash!C$18,$A451))/1000","v":{"$error":"#NAME?"}},{"$f":"(_xll.RiskData(NR_to_Cash!D$18,$A451))/1000","v":{"$error":"#NAME?"}},{"$f":"(_xll.RiskData(NR_to_Cash!E$18,$A451))/1000","v":{"$error":"#NAME?"}}]
[445,{"$f":"_xll.RiskData('Risk Summary'!J$48,$A452)/1000","v":{"$error":"#NAME?"}},{"$f":"_xll.RiskData('Risk Summary'!K$48,$A452)/1000","v":{"$error":"#NAME?"}},{"$f":"_xll.RiskData('Risk Summary'!L$48,$A452)/1000","v":{"$error":"#NAME?"}},null,null,{"$f":"(_xll.RiskData(NR_to_Cash!C$18,$A452))/1000","v":{"$error":"#NAME?"}},{"$f":"(_xll.RiskData(NR_to_Cash!D$18,$A452))/1000","v":{"$error":"#NAME?"}},{"$f":"(_xll.RiskData(NR_to_Cash!E$18,$A452))/1000","v":{"$error":"#NAME?"}}]
[446,{"$f":"_xll.RiskData('Risk Summary'!J$48,$A453)/1000","v":{"$error":"#NAME?"}},{"$f":"_xll.RiskData('Risk Summary'!K$48,$A453)/1000","v":{"$error":"#NAME?"}},{"$f":"_xll.RiskData('Risk Summary'!L$48,$A453)/1000","v":{"$error":"#NAME?"}},null,null,{"$f":"(_xll.RiskData(NR_to_Cash!C$18,$A453))/1000","v":{"$error":"#NAME?"}},{"$f":"(_xll.RiskData(NR_to_Cash!D$18,$A453))/1000","v":{"$error":"#NAME?"}},{"$f":"(_xll.RiskData(NR_to_Cash!E$18,$A453))/1000","v":{"$error":"#NAME?"}}]
[447,{"$f":"_xll.RiskData('Risk Summary'!J$48,$A454)/1000","v":{"$error":"#NAME?"}},{"$f":"_xll.RiskData('Risk Summary'!K$48,$A454)/1000","v":{"$error":"#NAME?"}},{"$f":"_xll.RiskData('Risk Summary'!L$48,$A454)/1000","v":{"$error":"#NAME?"}},null,null,{"$f":"(_xll.RiskData(NR_to_Cash!C$18,$A454))/1000","v":{"$error":"#NAME?"}},{"$f":"(_xll.RiskData(NR_to_Cash!D$18,$A454))/1000","v":{"$error":"#NAME?"}},{"$f":"(_xll.RiskData(NR_to_Cash!E$18,$A454))/1000","v":{"$error":"#NAME?"}}]
[448,{"$f":"_xll.RiskData('Risk Summary'!J$48,$A455)/1000","v":{"$error":"#NAME?"}},{"$f":"_xll.RiskData('Risk Summary'!K$48,$A455)/1000","v":{"$error":"#NAME?"}},{"$f":"_xll.RiskData('Risk Summary'!L$48,$A455)/1000","v":{"$error":"#NAME?"}},null,null,{"$f":"(_xll.RiskData(NR_to_Cash!C$18,$A455))/1000","v":{"$error":"#NAME?"}},{"$f":"(_xll.RiskData(NR_to_Cash!D$18,$A455))/1000","v":{"$error":"#NAME?"}},{"$f":"(_xll.RiskData(NR_to_Cash!E$18,$A455))/1000","v":{"$error":"#NAME?"}}]
[449,{"$f":"_xll.RiskData('Risk Summary'!J$48,$A456)/1000","v":{"$error":"#NAME?"}},{"$f":"_xll.RiskData('Risk Summary'!K$48,$A456)/1000","v":{"$error":"#NAME?"}},{"$f":"_xll.RiskData('Risk Summary'!L$48,$A456)/1000","v":{"$error":"#NAME?"}},null,null,{"$f":"(_xll.RiskData(NR_to_Cash!C$18,$A456))/1000","v":{"$error":"#NAME?"}},{"$f":"(_xll.RiskData(NR_to_Cash!D$18,$A456))/1000","v":{"$error":"#NAME?"}},{"$f":"(_xll.RiskData(NR_to_Cash!E$18,$A456))/1000","v":{"$error":"#NAME?"}}]
[450,{"$f":"_xll.RiskData('Risk Summary'!J$48,$A457)/1000","v":{"$error":"#NAME?"}},{"$f":"_xll.RiskData('Risk Summary'!K$48,$A457)/1000","v":{"$error":"#NAME?"}},{"$f":"_xll.RiskData('Risk Summary'!L$48,$A457)/1000","v":{"$error":"#NAME?"}},null,null,{"$f":"(_xll.RiskData(NR_to_Cash!C$18,$A457))/1000","v":{"$error":"#NAME?"}},{"$f":"(_xll.RiskData(NR_to_Cash!D$18,$A457))/1000","v":{"$error":"#NAME?"}},{"$f":"(_xll.RiskData(NR_to_Cash!E$18,$A457))/1000","v":{"$error":"#NAME?"}}]
[451,{"$f":"_xll.RiskData('Risk Summary'!J$48,$A458)/1000","v":{"$error":"#NAME?"}},{"$f":"_xll.RiskData('Risk Summary'!K$48,$A458)/1000","v":{"$error":"#NAME?"}},{"$f":"_xll.RiskData('Risk Summary'!L$48,$A458)/1000","v":{"$error":"#NAME?"}},null,null,{"$f":"(_xll.RiskData(NR_to_Cash!C$18,$A458))/1000","v":{"$error":"#NAME?"}},{"$f":"(_xll.RiskData(NR_to_Cash!D$18,$A458))/1000","v":{"$error":"#NAME?"}},{"$f":"(_xll.RiskData(NR_to_Cash!E$18,$A458))/1000","v":{"$error":"#NAME?"}}]
[452,{"$f":"_xll.RiskData('Risk Summary'!J$48,$A459)/1000","v":{"$error":"#NAME?"}},{"$f":"_xll.RiskData('Risk Summary'!K$48,$A459)/1000","v":{"$error":"#NAME?"}},{"$f":"_xll.RiskData('Risk Summary'!L$48,$A459)/1000","v":{"$error":"#NAME?"}},null,null,{"$f":"(_xll.RiskData(NR_to_Cash!C$18,$A459))/1000","v":{"$error":"#NAME?"}},{"$f":"(_xll.RiskData(NR_to_Cash!D$18,$A459))/1000","v":{"$error":"#NAME?"}},{"$f":"(_xll.RiskData(NR_to_Cash!E$18,$A459))/1000","v":{"$error":"#NAME?"}}]
[453,{"$f":"_xll.RiskData('Risk Summary'!J$48,$A460)/1000","v":{"$error":"#NAME?"}},{"$f":"_xll.RiskData('Risk Summary'!K$48,$A460)/1000","v":{"$error":"#NAME?"}},{"$f":"_xll.RiskData('Risk Summary'!L$48,$A460)/1000","v":{"$error":"#NAME?"}},null,null,{"$f":"(_xll.RiskData(NR_to_Cash!C$18,$A460))/1000","v":{"$error":"#NAME?"}},{"$f":"(_xll.RiskData(NR_to_Cash!D$18,$A460))/1000","v":{"$error":"#NAME?"}},{"$f":"(_xll.RiskData(NR_to_Cash!E$18,$A460))/1000","v":{"$error":"#NAME?"}}]
[454,{"$f":"_xll.RiskData('Risk Summary'!J$48,$A461)/1000","v":{"$error":"#NAME?"}},{"$f":"_xll.RiskData('Risk Summary'!K$48,$A461)/1000","v":{"$error":"#NAME?"}},{"$f":"_xll.RiskData('Risk Summary'!L$48,$A461)/1000","v":{"$error":"#NAME?"}},null,null,{"$f":"(_xll.RiskData(NR_to_Cash!C$18,$A461))/1000","v":{"$error":"#NAME?"}},{"$f":"(_xll.RiskData(NR_to_Cash!D$18,$A461))/1000","v":{"$error":"#NAME?"}},{"$f":"(_xll.RiskData(NR_to_Cash!E$18,$A461))/1000","v":{"$error":"#NAME?"}}]
[455,{"$f":"_xll.RiskData('Risk Summary'!J$48,$A462)/1000","v":{"$error":"#NAME?"}},{"$f":"_xll.RiskData('Risk Summary'!K$48,$A462)/1000","v":{"$error":"#NAME?"}},{"$f":"_xll.RiskData('Risk Summary'!L$48,$A462)/1000","v":{"$error":"#NAME?"}},null,null,{"$f":"(_xll.RiskData(NR_to_Cash!C$18,$A462))/1000","v":{"$error":"#NAME?"}},{"$f":"(_xll.RiskData(NR_to_Cash!D$18,$A462))/1000","v":{"$error":"#NAME?"}},{"$f":"(_xll.RiskData(NR_to_Cash!E$18,$A462))/1000","v":{"$error":"#NAME?"}}]
[456,{"$f":"_xll.RiskData('Risk Summary'!J$48,$A463)/1000","v":{"$error":"#NAME?"}},{"$f":"_xll.RiskData('Risk Summary'!K$48,$A463)/1000","v":{"$error":"#NAME?"}},{"$f":"_xll.RiskData('Risk Summary'!L$48,$A463)/1000","v":{"$error":"#NAME?"}},null,null,{"$f":"(_xll.RiskData(NR_to_Cash!C$18,$A463))/1000","v":{"$error":"#NAME?"}},{"$f":"(_xll.RiskData(NR_to_Cash!D$18,$A463))/1000","v":{"$error":"#NAME?"}},{"$f":"(_xll.RiskData(NR_to_Cash!E$18,$A463))/1000","v":{"$error":"#NAME?"}}]
[457,{"$f":"_xll.RiskData('Risk Summary'!J$48,$A464)/1000","v":{"$error":"#NAME?"}},{"$f":"_xll.RiskData('Risk Summary'!K$48,$A464)/1000","v":{"$error":"#NAME?"}},{"$f":"_xll.RiskData('Risk Summary'!L$48,$A464)/1000","v":{"$error":"#NAME?"}},null,null,{"$f":"(_xll.RiskData(NR_to_Cash!C$18,$A464))/1000","v":{"$error":"#NAME?"}},{"$f":"(_xll.RiskData(NR_to_Cash!D$18,$A464))/1000","v":{"$error":"#NAME?"}},{"$f":"(_xll.RiskData(NR_to_Cash!E$18,$A464))/1000","v":{"$error":"#NAME?"}}]
[458,{"$f":"_xll.RiskData('Risk Summary'!J$48,$A465)/1000","v":{"$error":"#NAME?"}},{"$f":"_xll.RiskData('Risk Summary'!K$48,$A465)/1000","v":{"$error":"#NAME?"}},{"$f":"_xll.RiskData('Risk Summary'!L$48,$A465)/1000","v":{"$error":"#NAME?"}},null,null,{"$f":"(_xll.RiskData(NR_to_Cash!C$18,$A465))/1000","v":{"$error":"#NAME?"}},{"$f":"(_xll.RiskData(NR_to_Cash!D$18,$A465))/1000","v":{"$error":"#NAME?"}},{"$f":"(_xll.RiskData(NR_to_Cash!E$18,$A465))/1000","v":{"$error":"#NAME?"}}]
[459,{"$f":"_xll.RiskData('Risk Summary'!J$48,$A466)/1000","v":{"$error":"#NAME?"}},{"$f":"_xll.RiskData('Risk Summary'!K$48,$A466)/1000","v":{"$error":"#NAME?"}},{"$f":"_xll.RiskData('Risk Summary'!L$48,$A466)/1000","v":{"$error":"#NAME?"}},null,null,{"$f":"(_xll.RiskData(NR_to_Cash!C$18,$A466))/1000","v":{"$error":"#NAME?"}},{"$f":"(_xll.RiskData(NR_to_Cash!D$18,$A466))/1000","v":{"$error":"#NAME?"}},{"$f":"(_xll.RiskData(NR_to_Cash!E$18,$A466))/1000","v":{"$error":"#NAME?"}}]
[460,{"$f":"_xll.RiskData('Risk Summary'!J$48,$A467)/1000","v":{"$error":"#NAME?"}},{"$f":"_xll.RiskData('Risk Summary'!K$48,$A467)/1000","v":{"$error":"#NAME?"}},{"$f":"_xll.RiskData('Risk Summary'!L$48,$A467)/1000","v":{"$error":"#NAME?"}},null,null,{"$f":"(_xll.RiskData(NR_to_Cash!C$18,$A467))/1000","v":{"$error":"#NAME?"}},{"$f":"(_xll.RiskData(NR_to_Cash!D$18,$A467))/1000","v":{"$error":"#NAME?"}},{"$f":"(_xll.RiskData(NR_to_Cash!E$18,$A467))/1000","v":{"$error":"#NAME?"}}]
[461,{"$f":"_xll.RiskData('Risk Summary'!J$48,$A468)/1000","v":{"$error":"#NAME?"}},{"$f":"_xll.RiskData('Risk Summary'!K$48,$A468)/1000","v":{"$error":"#NAME?"}},{"$f":"_xll.RiskData('Risk Summary'!L$48,$A468)/1000","v":{"$error":"#NAME?"}},null,null,{"$f":"(_xll.RiskData(NR_to_Cash!C$18,$A468))/1000","v":{"$error":"#NAME?"}},{"$f":"(_xll.RiskData(NR_to_Cash!D$18,$A468))/1000","v":{"$error":"#NAME?"}},{"$f":"(_xll.RiskData(NR_to_Cash!E$18,$A468))/1000","v":{"$error":"#NAME?"}}]
[462,{"$f":"_xll.RiskData('Risk Summary'!J$48,$A469)/1000","v":{"$error":"#NAME?"}},{"$f":"_xll.RiskData('Risk Summary'!K$48,$A469)/1000","v":{"$error":"#NAME?"}},{"$f":"_xll.RiskData('Risk Summary'!L$48,$A469)/1000","v":{"$error":"#NAME?"}},null,null,{"$f":"(_xll.RiskData(NR_to_Cash!C$18,$A469))/1000","v":{"$error":"#NAME?"}},{"$f":"(_xll.RiskData(NR_to_Cash!D$18,$A469))/1000","v":{"$error":"#NAME?"}},{"$f":"(_xll.RiskData(NR_to_Cash!E$18,$A469))/1000","v":{"$error":"#NAME?"}}]
[463,{"$f":"_xll.RiskData('Risk Summary'!J$48,$A470)/1000","v":{"$error":"#NAME?"}},{"$f":"_xll.RiskData('Risk Summary'!K$48,$A470)/1000","v":{"$error":"#NAME?"}},{"$f":"_xll.RiskData('Risk Summary'!L$48,$A470)/1000","v":{"$error":"#NAME?"}},null,null,{"$f":"(_xll.RiskData(NR_to_Cash!C$18,$A470))/1000","v":{"$error":"#NAME?"}},{"$f":"(_xll.RiskData(NR_to_Cash!D$18,$A470))/1000","v":{"$error":"#NAME?"}},{"$f":"(_xll.RiskData(NR_to_Cash!E$18,$A470))/1000","v":{"$error":"#NAME?"}}]
[464,{"$f":"_xll.RiskData('Risk Summary'!J$48,$A471)/1000","v":{"$error":"#NAME?"}},{"$f":"_xll.RiskData('Risk Summary'!K$48,$A471)/1000","v":{"$error":"#NAME?"}},{"$f":"_xll.RiskData('Risk Summary'!L$48,$A471)/1000","v":{"$error":"#NAME?"}},null,null,{"$f":"(_xll.RiskData(NR_to_Cash!C$18,$A471))/1000","v":{"$error":"#NAME?"}},{"$f":"(_xll.RiskData(NR_to_Cash!D$18,$A471))/1000","v":{"$error":"#NAME?"}},{"$f":"(_xll.RiskData(NR_to_Cash!E$18,$A471))/1000","v":{"$error":"#NAME?"}}]
[465,{"$f":"_xll.RiskData('Risk Summary'!J$48,$A472)/1000","v":{"$error":"#NAME?"}},{"$f":"_xll.RiskData('Risk Summary'!K$48,$A472)/1000","v":{"$error":"#NAME?"}},{"$f":"_xll.RiskData('Risk Summary'!L$48,$A472)/1000","v":{"$error":"#NAME?"}},null,null,{"$f":"(_xll.RiskData(NR_to_Cash!C$18,$A472))/1000","v":{"$error":"#NAME?"}},{"$f":"(_xll.RiskData(NR_to_Cash!D$18,$A472))/1000","v":{"$error":"#NAME?"}},{"$f":"(_xll.RiskData(NR_to_Cash!E$18,$A472))/1000","v":{"$error":"#NAME?"}}]
[466,{"$f":"_xll.RiskData('Risk Summary'!J$48,$A473)/1000","v":{"$error":"#NAME?"}},{"$f":"_xll.RiskData('Risk Summary'!K$48,$A473)/1000","v":{"$error":"#NAME?"}},{"$f":"_xll.RiskData('Risk Summary'!L$48,$A473)/1000","v":{"$error":"#NAME?"}},null,null,{"$f":"(_xll.RiskData(NR_to_Cash!C$18,$A473))/1000","v":{"$error":"#NAME?"}},{"$f":"(_xll.RiskData(NR_to_Cash!D$18,$A473))/1000","v":{"$error":"#NAME?"}},{"$f":"(_xll.RiskData(NR_to_Cash!E$18,$A473))/1000","v":{"$error":"#NAME?"}}]
[467,{"$f":"_xll.RiskData('Risk Summary'!J$48,$A474)/1000","v":{"$error":"#NAME?"}},{"$f":"_xll.RiskData('Risk Summary'!K$48,$A474)/1000","v":{"$error":"#NAME?"}},{"$f":"_xll.RiskData('Risk Summary'!L$48,$A474)/1000","v":{"$error":"#NAME?"}},null,null,{"$f":"(_xll.RiskData(NR_to_Cash!C$18,$A474))/1000","v":{"$error":"#NAME?"}},{"$f":"(_xll.RiskData(NR_to_Cash!D$18,$A474))/1000","v":{"$error":"#NAME?"}},{"$f":"(_xll.RiskData(NR_to_Cash!E$18,$A474))/1000","v":{"$error":"#NAME?"}}]
[468,{"$f":"_xll.RiskData('Risk Summary'!J$48,$A475)/1000","v":{"$error":"#NAME?"}},{"$f":"_xll.RiskData('Risk Summary'!K$48,$A475)/1000","v":{"$error":"#NAME?"}},{"$f":"_xll.RiskData('Risk Summary'!L$48,$A475)/1000","v":{"$error":"#NAME?"}},null,null,{"$f":"(_xll.RiskData(NR_to_Cash!C$18,$A475))/1000","v":{"$error":"#NAME?"}},{"$f":"(_xll.RiskData(NR_to_Cash!D$18,$A475))/1000","v":{"$error":"#NAME?"}},{"$f":"(_xll.RiskData(NR_to_Cash!E$18,$A475))/1000","v":{"$error":"#NAME?"}}]
[469,{"$f":"_xll.RiskData('Risk Summary'!J$48,$A476)/1000","v":{"$error":"#NAME?"}},{"$f":"_xll.RiskData('Risk Summary'!K$48,$A476)/1000","v":{"$error":"#NAME?"}},{"$f":"_xll.RiskData('Risk Summary'!L$48,$A476)/1000","v":{"$error":"#NAME?"}},null,null,{"$f":"(_xll.RiskData(NR_to_Cash!C$18,$A476))/1000","v":{"$error":"#NAME?"}},{"$f":"(_xll.RiskData(NR_to_Cash!D$18,$A476))/1000","v":{"$error":"#NAME?"}},{"$f":"(_xll.RiskData(NR_to_Cash!E$18,$A476))/1000","v":{"$error":"#NAME?"}}]
[470,{"$f":"_xll.RiskData('Risk Summary'!J$48,$A477)/1000","v":{"$error":"#NAME?"}},{"$f":"_xll.RiskData('Risk Summary'!K$48,$A477)/1000","v":{"$error":"#NAME?"}},{"$f":"_xll.RiskData('Risk Summary'!L$48,$A477)/1000","v":{"$error":"#NAME?"}},null,null,{"$f":"(_xll.RiskData(NR_to_Cash!C$18,$A477))/1000","v":{"$error":"#NAME?"}},{"$f":"(_xll.RiskData(NR_to_Cash!D$18,$A477))/1000","v":{"$error":"#NAME?"}},{"$f":"(_xll.RiskData(NR_to_Cash!E$18,$A477))/1000","v":{"$error":"#NAME?"}}]
[471,{"$f":"_xll.RiskData('Risk Summary'!J$48,$A478)/1000","v":{"$error":"#NAME?"}},{"$f":"_xll.RiskData('Risk Summary'!K$48,$A478)/1000","v":{"$error":"#NAME?"}},{"$f":"_xll.RiskData('Risk Summary'!L$48,$A478)/1000","v":{"$error":"#NAME?"}},null,null,{"$f":"(_xll.RiskData(NR_to_Cash!C$18,$A478))/1000","v":{"$error":"#NAME?"}},{"$f":"(_xll.RiskData(NR_to_Cash!D$18,$A478))/1000","v":{"$error":"#NAME?"}},{"$f":"(_xll.RiskData(NR_to_Cash!E$18,$A478))/1000","v":{"$error":"#NAME?"}}]
[472,{"$f":"_xll.RiskData('Risk Summary'!J$48,$A479)/1000","v":{"$error":"#NAME?"}},{"$f":"_xll.RiskData('Risk Summary'!K$48,$A479)/1000","v":{"$error":"#NAME?"}},{"$f":"_xll.RiskData('Risk Summary'!L$48,$A479)/1000","v":{"$error":"#NAME?"}},null,null,{"$f":"(_xll.RiskData(NR_to_Cash!C$18,$A479))/1000","v":{"$error":"#NAME?"}},{"$f":"(_xll.RiskData(NR_to_Cash!D$18,$A479))/1000","v":{"$error":"#NAME?"}},{"$f":"(_xll.RiskData(NR_to_Cash!E$18,$A479))/1000","v":{"$error":"#NAME?"}}]
[473,{"$f":"_xll.RiskData('Risk Summary'!J$48,$A480)/1000","v":{"$error":"#NAME?"}},{"$f":"_xll.RiskData('Risk Summary'!K$48,$A480)/1000","v":{"$error":"#NAME?"}},{"$f":"_xll.RiskData('Risk Summary'!L$48,$A480)/1000","v":{"$error":"#NAME?"}},null,null,{"$f":"(_xll.RiskData(NR_to_Cash!C$18,$A480))/1000","v":{"$error":"#NAME?"}},{"$f":"(_xll.RiskData(NR_to_Cash!D$18,$A480))/1000","v":{"$error":"#NAME?"}},{"$f":"(_xll.RiskData(NR_to_Cash!E$18,$A480))/1000","v":{"$error":"#NAME?"}}]
[474,{"$f":"_xll.RiskData('Risk Summary'!J$48,$A481)/1000","v":{"$error":"#NAME?"}},{"$f":"_xll.RiskData('Risk Summary'!K$48,$A481)/1000","v":{"$error":"#NAME?"}},{"$f":"_xll.RiskData('Risk Summary'!L$48,$A481)/1000","v":{"$error":"#NAME?"}},null,null,{"$f":"(_xll.RiskData(NR_to_Cash!C$18,$A481))/1000","v":{"$error":"#NAME?"}},{"$f":"(_xll.RiskData(NR_to_Cash!D$18,$A481))/1000","v":{"$error":"#NAME?"}},{"$f":"(_xll.RiskData(NR_to_Cash!E$18,$A481))/1000","v":{"$error":"#NAME?"}}]
[475,{"$f":"_xll.RiskData('Risk Summary'!J$48,$A482)/1000","v":{"$error":"#NAME?"}},{"$f":"_xll.RiskData('Risk Summary'!K$48,$A482)/1000","v":{"$error":"#NAME?"}},{"$f":"_xll.RiskData('Risk Summary'!L$48,$A482)/1000","v":{"$error":"#NAME?"}},null,null,{"$f":"(_xll.RiskData(NR_to_Cash!C$18,$A482))/1000","v":{"$error":"#NAME?"}},{"$f":"(_xll.RiskData(NR_to_Cash!D$18,$A482))/1000","v":{"$error":"#NAME?"}},{"$f":"(_xll.RiskData(NR_to_Cash!E$18,$A482))/1000","v":{"$error":"#NAME?"}}]
[476,{"$f":"_xll.RiskData('Risk Summary'!J$48,$A483)/1000","v":{"$error":"#NAME?"}},{"$f":"_xll.RiskData('Risk Summary'!K$48,$A483)/1000","v":{"$error":"#NAME?"}},{"$f":"_xll.RiskData('Risk Summary'!L$48,$A483)/1000","v":{"$error":"#NAME?"}},null,null,{"$f":"(_xll.RiskData(NR_to_Cash!C$18,$A483))/1000","v":{"$error":"#NAME?"}},{"$f":"(_xll.RiskData(NR_to_Cash!D$18,$A483))/1000","v":{"$error":"#NAME?"}},{"$f":"(_xll.RiskData(NR_to_Cash!E$18,$A483))/1000","v":{"$error":"#NAME?"}}]
[477,{"$f":"_xll.RiskData('Risk Summary'!J$48,$A484)/1000","v":{"$error":"#NAME?"}},{"$f":"_xll.RiskData('Risk Summary'!K$48,$A484)/1000","v":{"$error":"#NAME?"}},{"$f":"_xll.RiskData('Risk Summary'!L$48,$A484)/1000","v":{"$error":"#NAME?"}},null,null,{"$f":"(_xll.RiskData(NR_to_Cash!C$18,$A484))/1000","v":{"$error":"#NAME?"}},{"$f":"(_xll.RiskData(NR_to_Cash!D$18,$A484))/1000","v":{"$error":"#NAME?"}},{"$f":"(_xll.RiskData(NR_to_Cash!E$18,$A484))/1000","v":{"$error":"#NAME?"}}]
[478,{"$f":"_xll.RiskData('Risk Summary'!J$48,$A485)/1000","v":{"$error":"#NAME?"}},{"$f":"_xll.RiskData('Risk Summary'!K$48,$A485)/1000","v":{"$error":"#NAME?"}},{"$f":"_xll.RiskData('Risk Summary'!L$48,$A485)/1000","v":{"$error":"#NAME?"}},null,null,{"$f":"(_xll.RiskData(NR_to_Cash!C$18,$A485))/1000","v":{"$error":"#NAME?"}},{"$f":"(_xll.RiskData(NR_to_Cash!D$18,$A485))/1000","v":{"$error":"#NAME?"}},{"$f":"(_xll.RiskData(NR_to_Cash!E$18,$A485))/1000","v":{"$error":"#NAME?"}}]
[479,{"$f":"_xll.RiskData('Risk Summary'!J$48,$A486)/1000","v":{"$error":"#NAME?"}},{"$f":"_xll.RiskData('Risk Summary'!K$48,$A486)/1000","v":{"$error":"#NAME?"}},{"$f":"_xll.RiskData('Risk Summary'!L$48,$A486)/1000","v":{"$error":"#NAME?"}},null,null,{"$f":"(_xll.RiskData(NR_to_Cash!C$18,$A486))/1000","v":{"$error":"#NAME?"}},{"$f":"(_xll.RiskData(NR_to_Cash!D$18,$A486))/1000","v":{"$error":"#NAME?"}},{"$f":"(_xll.RiskData(NR_to_Cash!E$18,$A486))/1000","v":{"$error":"#NAME?"}}]
[480,{"$f":"_xll.RiskData('Risk Summary'!J$48,$A487)/1000","v":{"$error":"#NAME?"}},{"$f":"_xll.RiskData('Risk Summary'!K$48,$A487)/1000","v":{"$error":"#NAME?"}},{"$f":"_xll.RiskData('Risk Summary'!L$48,$A487)/1000","v":{"$error":"#NAME?"}},null,null,{"$f":"(_xll.RiskData(NR_to_Cash!C$18,$A487))/1000","v":{"$error":"#NAME?"}},{"$f":"(_xll.RiskData(NR_to_Cash!D$18,$A487))/1000","v":{"$error":"#NAME?"}},{"$f":"(_xll.RiskData(NR_to_Cash!E$18,$A487))/1000","v":{"$error":"#NAME?"}}]
[481,{"$f":"_xll.RiskData('Risk Summary'!J$48,$A488)/1000","v":{"$error":"#NAME?"}},{"$f":"_xll.RiskData('Risk Summary'!K$48,$A488)/1000","v":{"$error":"#NAME?"}},{"$f":"_xll.RiskData('Risk Summary'!L$48,$A488)/1000","v":{"$error":"#NAME?"}},null,null,{"$f":"(_xll.RiskData(NR_to_Cash!C$18,$A488))/1000","v":{"$error":"#NAME?"}},{"$f":"(_xll.RiskData(NR_to_Cash!D$18,$A488))/1000","v":{"$error":"#NAME?"}},{"$f":"(_xll.RiskData(NR_to_Cash!E$18,$A488))/1000","v":{"$error":"#NAME?"}}]
[482,{"$f":"_xll.RiskData('Risk Summary'!J$48,$A489)/1000","v":{"$error":"#NAME?"}},{"$f":"_xll.RiskData('Risk Summary'!K$48,$A489)/1000","v":{"$error":"#NAME?"}},{"$f":"_xll.RiskData('Risk Summary'!L$48,$A489)/1000","v":{"$error":"#NAME?"}},null,null,{"$f":"(_xll.RiskData(NR_to_Cash!C$18,$A489))/1000","v":{"$error":"#NAME?"}},{"$f":"(_xll.RiskData(NR_to_Cash!D$18,$A489))/1000","v":{"$error":"#NAME?"}},{"$f":"(_xll.RiskData(NR_to_Cash!E$18,$A489))/1000","v":{"$error":"#NAME?"}}]
[483,{"$f":"_xll.RiskData('Risk Summary'!J$48,$A490)/1000","v":{"$error":"#NAME?"}},{"$f":"_xll.RiskData('Risk Summary'!K$48,$A490)/1000","v":{"$error":"#NAME?"}},{"$f":"_xll.RiskData('Risk Summary'!L$48,$A490)/1000","v":{"$error":"#NAME?"}},null,null,{"$f":"(_xll.RiskData(NR_to_Cash!C$18,$A490))/1000","v":{"$error":"#NAME?"}},{"$f":"(_xll.RiskData(NR_to_Cash!D$18,$A490))/1000","v":{"$error":"#NAME?"}},{"$f":"(_xll.RiskData(NR_to_Cash!E$18,$A490))/1000","v":{"$error":"#NAME?"}}]
[484,{"$f":"_xll.RiskData('Risk Summary'!J$48,$A491)/1000","v":{"$error":"#NAME?"}},{"$f":"_xll.RiskData('Risk Summary'!K$48,$A491)/1000","v":{"$error":"#NAME?"}},{"$f":"_xll.RiskData('Risk Summary'!L$48,$A491)/1000","v":{"$error":"#NAME?"}},null,null,{"$f":"(_xll.RiskData(NR_to_Cash!C$18,$A491))/1000","v":{"$error":"#NAME?"}},{"$f":"(_xll.RiskData(NR_to_Cash!D$18,$A491))/1000","v":{"$error":"#NAME?"}},{"$f":"(_xll.RiskData(NR_to_Cash!E$18,$A491))/1000","v":{"$error":"#NAME?"}}]
[485,{"$f":"_xll.RiskData('Risk Summary'!J$48,$A492)/1000","v":{"$error":"#NAME?"}},{"$f":"_xll.RiskData('Risk Summary'!K$48,$A492)/1000","v":{"$error":"#NAME?"}},{"$f":"_xll.RiskData('Risk Summary'!L$48,$A492)/1000","v":{"$error":"#NAME?"}},null,null,{"$f":"(_xll.RiskData(NR_to_Cash!C$18,$A492))/1000","v":{"$error":"#NAME?"}},{"$f":"(_xll.RiskData(NR_to_Cash!D$18,$A492))/1000","v":{"$error":"#NAME?"}},{"$f":"(_xll.RiskData(NR_to_Cash!E$18,$A492))/1000","v":{"$error":"#NAME?"}}]
[486,{"$f":"_xll.RiskData('Risk Summary'!J$48,$A493)/1000","v":{"$error":"#NAME?"}},{"$f":"_xll.RiskData('Risk Summary'!K$48,$A493)/1000","v":{"$error":"#NAME?"}},{"$f":"_xll.RiskData('Risk Summary'!L$48,$A493)/1000","v":{"$error":"#NAME?"}},null,null,{"$f":"(_xll.RiskData(NR_to_Cash!C$18,$A493))/1000","v":{"$error":"#NAME?"}},{"$f":"(_xll.RiskData(NR_to_Cash!D$18,$A493))/1000","v":{"$error":"#NAME?"}},{"$f":"(_xll.RiskData(NR_to_Cash!E$18,$A493))/1000","v":{"$error":"#NAME?"}}]
[487,{"$f":"_xll.RiskData('Risk Summary'!J$48,$A494)/1000","v":{"$error":"#NAME?"}},{"$f":"_xll.RiskData('Risk Summary'!K$48,$A494)/1000","v":{"$error":"#NAME?"}},{"$f":"_xll.RiskData('Risk Summary'!L$48,$A494)/1000","v":{"$error":"#NAME?"}},null,null,{"$f":"(_xll.RiskData(NR_to_Cash!C$18,$A494))/1000","v":{"$error":"#NAME?"}},{"$f":"(_xll.RiskData(NR_to_Cash!D$18,$A494))/1000","v":{"$error":"#NAME?"}},{"$f":"(_xll.RiskData(NR_to_Cash!E$18,$A494))/1000","v":{"$error":"#NAME?"}}]
[488,{"$f":"_xll.RiskData('Risk Summary'!J$48,$A495)/1000","v":{"$error":"#NAME?"}},{"$f":"_xll.RiskData('Risk Summary'!K$48,$A495)/1000","v":{"$error":"#NAME?"}},{"$f":"_xll.RiskData('Risk Summary'!L$48,$A495)/1000","v":{"$error":"#NAME?"}},null,null,{"$f":"(_xll.RiskData(NR_to_Cash!C$18,$A495))/1000","v":{"$error":"#NAME?"}},{"$f":"(_xll.RiskData(NR_to_Cash!D$18,$A495))/1000","v":{"$error":"#NAME?"}},{"$f":"(_xll.RiskData(NR_to_Cash!E$18,$A495))/1000","v":{"$error":"#NAME?"}}]
[489,{"$f":"_xll.RiskData('Risk Summary'!J$48,$A496)/1000","v":{"$error":"#NAME?"}},{"$f":"_xll.RiskData('Risk Summary'!K$48,$A496)/1000","v":{"$error":"#NAME?"}},{"$f":"_xll.RiskData('Risk Summary'!L$48,$A496)/1000","v":{"$error":"#NAME?"}},null,null,{"$f":"(_xll.RiskData(NR_to_Cash!C$18,$A496))/1000","v":{"$error":"#NAME?"}},{"$f":"(_xll.RiskData(NR_to_Cash!D$18,$A496))/1000","v":{"$error":"#NAME?"}},{"$f":"(_xll.RiskData(NR_to_Cash!E$18,$A496))/1000","v":{"$error":"#NAME?"}}]
[490,{"$f":"_xll.RiskData('Risk Summary'!J$48,$A497)/1000","v":{"$error":"#NAME?"}},{"$f":"_xll.RiskData('Risk Summary'!K$48,$A497)/1000","v":{"$error":"#NAME?"}},{"$f":"_xll.RiskData('Risk Summary'!L$48,$A497)/1000","v":{"$error":"#NAME?"}},null,null,{"$f":"(_xll.RiskData(NR_to_Cash!C$18,$A497))/1000","v":{"$error":"#NAME?"}},{"$f":"(_xll.RiskData(NR_to_Cash!D$18,$A497))/1000","v":{"$error":"#NAME?"}},{"$f":"(_xll.RiskData(NR_to_Cash!E$18,$A497))/1000","v":{"$error":"#NAME?"}}]
[491,{"$f":"_xll.RiskData('Risk Summary'!J$48,$A498)/1000","v":{"$error":"#NAME?"}},{"$f":"_xll.RiskData('Risk Summary'!K$48,$A498)/1000","v":{"$error":"#NAME?"}},{"$f":"_xll.RiskData('Risk Summary'!L$48,$A498)/1000","v":{"$error":"#NAME?"}},null,null,{"$f":"(_xll.RiskData(NR_to_Cash!C$18,$A498))/1000","v":{"$error":"#NAME?"}},{"$f":"(_xll.RiskData(NR_to_Cash!D$18,$A498))/1000","v":{"$error":"#NAME?"}},{"$f":"(_xll.RiskData(NR_to_Cash!E$18,$A498))/1000","v":{"$error":"#NAME?"}}]
[492,{"$f":"_xll.RiskData('Risk Summary'!J$48,$A499)/1000","v":{"$error":"#NAME?"}},{"$f":"_xll.RiskData('Risk Summary'!K$48,$A499)/1000","v":{"$error":"#NAME?"}},{"$f":"_xll.RiskData('Risk Summary'!L$48,$A499)/1000","v":{"$error":"#NAME?"}},null,null,{"$f":"(_xll.RiskData(NR_to_Cash!C$18,$A499))/1000","v":{"$error":"#NAME?"}},{"$f":"(_xll.RiskData(NR_to_Cash!D$18,$A499))/1000","v":{"$error":"#NAME?"}},{"$f":"(_xll.RiskData(NR_to_Cash!E$18,$A499))/1000","v":{"$error":"#NAME?"}}]
[493,{"$f":"_xll.RiskData('Risk Summary'!J$48,$A500)/1000","v":{"$error":"#NAME?"}},{"$f":"_xll.RiskData('Risk Summary'!K$48,$A500)/1000","v":{"$error":"#NAME?"}},{"$f":"_xll.RiskData('Risk Summary'!L$48,$A500)/1000","v":{"$error":"#NAME?"}},null,null,{"$f":"(_xll.RiskData(NR_to_Cash!C$18,$A500))/1000","v":{"$error":"#NAME?"}},{"$f":"(_xll.RiskData(NR_to_Cash!D$18,$A500))/1000","v":{"$error":"#NAME?"}},{"$f":"(_xll.RiskData(NR_to_Cash!E$18,$A500))/1000","v":{"$error":"#NAME?"}}]
[494,{"$f":"_xll.RiskData('Risk Summary'!J$48,$A501)/1000","v":{"$error":"#NAME?"}},{"$f":"_xll.RiskData('Risk Summary'!K$48,$A501)/1000","v":{"$error":"#NAME?"}},{"$f":"_xll.RiskData('Risk Summary'!L$48,$A501)/1000","v":{"$error":"#NAME?"}},null,null,{"$f":"(_xll.RiskData(NR_to_Cash!C$18,$A501))/1000","v":{"$error":"#NAME?"}},{"$f":"(_xll.RiskData(NR_to_Cash!D$18,$A501))/1000","v":{"$error":"#NAME?"}},{"$f":"(_xll.RiskData(NR_to_Cash!E$18,$A501))/1000","v":{"$error":"#NAME?"}}]
[495,{"$f":"_xll.RiskData('Risk Summary'!J$48,$A502)/1000","v":{"$error":"#NAME?"}},{"$f":"_xll.RiskData('Risk Summary'!K$48,$A502)/1000","v":{"$error":"#NAME?"}},{"$f":"_xll.RiskData('Risk Summary'!L$48,$A502)/1000","v":{"$error":"#NAME?"}},null,null,{"$f":"(_xll.RiskData(NR_to_Cash!C$18,$A502))/1000","v":{"$error":"#NAME?"}},{"$f":"(_xll.RiskData(NR_to_Cash!D$18,$A502))/1000","v":{"$error":"#NAME?"}},{"$f":"(_xll.RiskData(NR_to_Cash!E$18,$A502))/1000","v":{"$error":"#NAME?"}}]
[496,{"$f":"_xll.RiskData('Risk Summary'!J$48,$A503)/1000","v":{"$error":"#NAME?"}},{"$f":"_xll.RiskData('Risk Summary'!K$48,$A503)/1000","v":{"$error":"#NAME?"}},{"$f":"_xll.RiskData('Risk Summary'!L$48,$A503)/1000","v":{"$error":"#NAME?"}},null,null,{"$f":"(_xll.RiskData(NR_to_Cash!C$18,$A503))/1000","v":{"$error":"#NAME?"}},{"$f":"(_xll.RiskData(NR_to_Cash!D$18,$A503))/1000","v":{"$error":"#NAME?"}},{"$f":"(_xll.RiskData(NR_to_Cash!E$18,$A503))/1000","v":{"$error":"#NAME?"}}]
[497,{"$f":"_xll.RiskData('Risk Summary'!J$48,$A504)/1000","v":{"$error":"#NAME?"}},{"$f":"_xll.RiskData('Risk Summary'!K$48,$A504)/1000","v":{"$error":"#NAME?"}},{"$f":"_xll.RiskData('Risk Summary'!L$48,$A504)/1000","v":{"$error":"#NAME?"}},null,null,{"$f":"(_xll.RiskData(NR_to_Cash!C$18,$A504))/1000","v":{"$error":"#NAME?"}},{"$f":"(_xll.RiskData(NR_to_Cash!D$18,$A504))/1000","v":{"$error":"#NAME?"}},{"$f":"(_xll.RiskData(NR_to_Cash!E$18,$A504))/1000","v":{"$error":"#NAME?"}}]
[498,{"$f":"_xll.RiskData('Risk Summary'!J$48,$A505)/1000","v":{"$error":"#NAME?"}},{"$f":"_xll.RiskData('Risk Summary'!K$48,$A505)/1000","v":{"$error":"#NAME?"}},{"$f":"_xll.RiskData('Risk Summary'!L$48,$A505)/1000","v":{"$error":"#NAME?"}},null,null,{"$f":"(_xll.RiskData(NR_to_Cash!C$18,$A505))/1000","v":{"$error":"#NAME?"}},{"$f":"(_xll.RiskData(NR_to_Cash!D$18,$A505))/1000","v":{"$error":"#NAME?"}},{"$f":"(_xll.RiskData(NR_to_Cash!E$18,$A505))/1000","v":{"$error":"#NAME?"}}]
[499,{"$f":"_xll.RiskData('Risk Summary'!J$48,$A506)/1000","v":{"$error":"#NAME?"}},{"$f":"_xll.RiskData('Risk Summary'!K$48,$A506)/1000","v":{"$error":"#NAME?"}},{"$f":"_xll.RiskData('Risk Summary'!L$48,$A506)/1000","v":{"$error":"#NAME?"}},null,null,{"$f":"(_xll.RiskData(NR_to_Cash!C$18,$A506))/1000","v":{"$error":"#NAME?"}},{"$f":"(_xll.RiskData(NR_to_Cash!D$18,$A506))/1000","v":{"$error":"#NAME?"}},{"$f":"(_xll.RiskData(NR_to_Cash!E$18,$A506))/1000","v":{"$error":"#NAME?"}}]
[500,{"$f":"_xll.RiskData('Risk Summary'!J$48,$A507)/1000","v":{"$error":"#NAME?"}},{"$f":"_xll.RiskData('Risk Summary'!K$48,$A507)/1000","v":{"$error":"#NAME?"}},{"$f":"_xll.RiskData('Risk Summary'!L$48,$A507)/1000","v":{"$error":"#NAME?"}},null,null,{"$f":"(_xll.RiskData(NR_to_Cash!C$18,$A507))/1000","v":{"$error":"#NAME?"}},{"$f":"(_xll.RiskData(NR_to_Cash!D$18,$A507))/1000","v":{"$error":"#NAME?"}},{"$f":"(_xll.RiskData(NR_to_Cash!E$18,$A507))/1000","v":{"$error":"#NAME?"}}]
[501,{"$f":"_xll.RiskData('Risk Summary'!J$48,$A508)/1000","v":{"$error":"#NAME?"}},{"$f":"_xll.RiskData('Risk Summary'!K$48,$A508)/1000","v":{"$error":"#NAME?"}},{"$f":"_xll.RiskData('Risk Summary'!L$48,$A508)/1000","v":{"$error":"#NAME?"}},null,null,{"$f":"(_xll.RiskData(NR_to_Cash!C$18,$A508))/1000","v":{"$error":"#NAME?"}},{"$f":"(_xll.RiskData(NR_to_Cash!D$18,$A508))/1000","v":{"$error":"#NAME?"}},{"$f":"(_xll.RiskData(NR_to_Cash!E$18,$A508))/1000","v":{"$error":"#NAME?"}}]
[502,{"$f":"_xll.RiskData('Risk Summary'!J$48,$A509)/1000","v":{"$error":"#NAME?"}},{"$f":"_xll.RiskData('Risk Summary'!K$48,$A509)/1000","v":{"$error":"#NAME?"}},{"$f":"_xll.RiskData('Risk Summary'!L$48,$A509)/1000","v":{"$error":"#NAME?"}},null,null,{"$f":"(_xll.RiskData(NR_to_Cash!C$18,$A509))/1000","v":{"$error":"#NAME?"}},{"$f":"(_xll.RiskData(NR_to_Cash!D$18,$A509))/1000","v":{"$error":"#NAME?"}},{"$f":"(_xll.RiskData(NR_to_Cash!E$18,$A509))/1000","v":{"$error":"#NAME?"}}]
[503,{"$f":"_xll.RiskData('Risk Summary'!J$48,$A510)/1000","v":{"$error":"#NAME?"}},{"$f":"_xll.RiskData('Risk Summary'!K$48,$A510)/1000","v":{"$error":"#NAME?"}},{"$f":"_xll.RiskData('Risk Summary'!L$48,$A510)/1000","v":{"$error":"#NAME?"}},null,null,{"$f":"(_xll.RiskData(NR_to_Cash!C$18,$A510))/1000","v":{"$error":"#NAME?"}},{"$f":"(_xll.RiskData(NR_to_Cash!D$18,$A510))/1000","v":{"$error":"#NAME?"}},{"$f":"(_xll.RiskData(NR_to_Cash!E$18,$A510))/1000","v":{"$error":"#NAME?"}}]
[504,{"$f":"_xll.RiskData('Risk Summary'!J$48,$A511)/1000","v":{"$error":"#NAME?"}},{"$f":"_xll.RiskData('Risk Summary'!K$48,$A511)/1000","v":{"$error":"#NAME?"}},{"$f":"_xll.RiskData('Risk Summary'!L$48,$A511)/1000","v":{"$error":"#NAME?"}},null,null,{"$f":"(_xll.RiskData(NR_to_Cash!C$18,$A511))/1000","v":{"$error":"#NAME?"}},{"$f":"(_xll.RiskData(NR_to_Cash!D$18,$A511))/1000","v":{"$error":"#NAME?"}},{"$f":"(_xll.RiskData(NR_to_Cash!E$18,$A511))/1000","v":{"$error":"#NAME?"}}]
[505,{"$f":"_xll.RiskData('Risk Summary'!J$48,$A512)/1000","v":{"$error":"#NAME?"}},{"$f":"_xll.RiskData('Risk Summary'!K$48,$A512)/1000","v":{"$error":"#NAME?"}},{"$f":"_xll.RiskData('Risk Summary'!L$48,$A512)/1000","v":{"$error":"#NAME?"}},null,null,{"$f":"(_xll.RiskData(NR_to_Cash!C$18,$A512))/1000","v":{"$error":"#NAME?"}},{"$f":"(_xll.RiskData(NR_to_Cash!D$18,$A512))/1000","v":{"$error":"#NAME?"}},{"$f":"(_xll.RiskData(NR_to_Cash!E$18,$A512))/1000","v":{"$error":"#NAME?"}}]
[506,{"$f":"_xll.RiskData('Risk Summary'!J$48,$A513)/1000","v":{"$error":"#NAME?"}},{"$f":"_xll.RiskData('Risk Summary'!K$48,$A513)/1000","v":{"$error":"#NAME?"}},{"$f":"_xll.RiskData('Risk Summary'!L$48,$A513)/1000","v":{"$error":"#NAME?"}},null,null,{"$f":"(_xll.RiskData(NR_to_Cash!C$18,$A513))/1000","v":{"$error":"#NAME?"}},{"$f":"(_xll.RiskData(NR_to_Cash!D$18,$A513))/1000","v":{"$error":"#NAME?"}},{"$f":"(_xll.RiskData(NR_to_Cash!E$18,$A513))/1000","v":{"$error":"#NAME?"}}]
[507,{"$f":"_xll.RiskData('Risk Summary'!J$48,$A514)/1000","v":{"$error":"#NAME?"}},{"$f":"_xll.RiskData('Risk Summary'!K$48,$A514)/1000","v":{"$error":"#NAME?"}},{"$f":"_xll.RiskData('Risk Summary'!L$48,$A514)/1000","v":{"$error":"#NAME?"}},null,null,{"$f":"(_xll.RiskData(NR_to_Cash!C$18,$A514))/1000","v":{"$error":"#NAME?"}},{"$f":"(_xll.RiskData(NR_to_Cash!D$18,$A514))/1000","v":{"$error":"#NAME?"}},{"$f":"(_xll.RiskData(NR_to_Cash!E$18,$A514))/1000","v":{"$error":"#NAME?"}}]
[508,{"$f":"_xll.RiskData('Risk Summary'!J$48,$A515)/1000","v":{"$error":"#NAME?"}},{"$f":"_xll.RiskData('Risk Summary'!K$48,$A515)/1000","v":{"$error":"#NAME?"}},{"$f":"_xll.RiskData('Risk Summary'!L$48,$A515)/1000","v":{"$error":"#NAME?"}},null,null,{"$f":"(_xll.RiskData(NR_to_Cash!C$18,$A515))/1000","v":{"$error":"#NAME?"}},{"$f":"(_xll.RiskData(NR_to_Cash!D$18,$A515))/1000","v":{"$error":"#NAME?"}},{"$f":"(_xll.RiskData(NR_to_Cash!E$18,$A515))/1000","v":{"$error":"#NAME?"}}]
[509,{"$f":"_xll.RiskData('Risk Summary'!J$48,$A516)/1000","v":{"$error":"#NAME?"}},{"$f":"_xll.RiskData('Risk Summary'!K$48,$A516)/1000","v":{"$error":"#NAME?"}},{"$f":"_xll.RiskData('Risk Summary'!L$48,$A516)/1000","v":{"$error":"#NAME?"}},null,null,{"$f":"(_xll.RiskData(NR_to_Cash!C$18,$A516))/1000","v":{"$error":"#NAME?"}},{"$f":"(_xll.RiskData(NR_to_Cash!D$18,$A516))/1000","v":{"$error":"#NAME?"}},{"$f":"(_xll.RiskData(NR_to_Cash!E$18,$A516))/1000","v":{"$error":"#NAME?"}}]
[510,{"$f":"_xll.RiskData('Risk Summary'!J$48,$A517)/1000","v":{"$error":"#NAME?"}},{"$f":"_xll.RiskData('Risk Summary'!K$48,$A517)/1000","v":{"$error":"#NAME?"}},{"$f":"_xll.RiskData('Risk Summary'!L$48,$A517)/1000","v":{"$error":"#NAME?"}},null,null,{"$f":"(_xll.RiskData(NR_to_Cash!C$18,$A517))/1000","v":{"$error":"#NAME?"}},{"$f":"(_xll.RiskData(NR_to_Cash!D$18,$A517))/1000","v":{"$error":"#NAME?"}},{"$f":"(_xll.RiskData(NR_to_Cash!E$18,$A517))/1000","v":{"$error":"#NAME?"}}]
[511,{"$f":"_xll.RiskData('Risk Summary'!J$48,$A518)/1000","v":{"$error":"#NAME?"}},{"$f":"_xll.RiskData('Risk Summary'!K$48,$A518)/1000","v":{"$error":"#NAME?"}},{"$f":"_xll.RiskData('Risk Summary'!L$48,$A518)/1000","v":{"$error":"#NAME?"}},null,null,{"$f":"(_xll.RiskData(NR_to_Cash!C$18,$A518))/1000","v":{"$error":"#NAME?"}},{"$f":"(_xll.RiskData(NR_to_Cash!D$18,$A518))/1000","v":{"$error":"#NAME?"}},{"$f":"(_xll.RiskData(NR_to_Cash!E$18,$A518))/1000","v":{"$error":"#NAME?"}}]
[512,{"$f":"_xll.RiskData('Risk Summary'!J$48,$A519)/1000","v":{"$error":"#NAME?"}},{"$f":"_xll.RiskData('Risk Summary'!K$48,$A519)/1000","v":{"$error":"#NAME?"}},{"$f":"_xll.RiskData('Risk Summary'!L$48,$A519)/1000","v":{"$error":"#NAME?"}},null,null,{"$f":"(_xll.RiskData(NR_to_Cash!C$18,$A519))/1000","v":{"$error":"#NAME?"}},{"$f":"(_xll.RiskData(NR_to_Cash!D$18,$A519))/1000","v":{"$error":"#NAME?"}},{"$f":"(_xll.RiskData(NR_to_Cash!E$18,$A519))/1000","v":{"$error":"#NAME?"}}]
[513,{"$f":"_xll.RiskData('Risk Summary'!J$48,$A520)/1000","v":{"$error":"#NAME?"}},{"$f":"_xll.RiskData('Risk Summary'!K$48,$A520)/1000","v":{"$error":"#NAME?"}},{"$f":"_xll.RiskData('Risk Summary'!L$48,$A520)/1000","v":{"$error":"#NAME?"}},null,null,{"$f":"(_xll.RiskData(NR_to_Cash!C$18,$A520))/1000","v":{"$error":"#NAME?"}},{"$f":"(_xll.RiskData(NR_to_Cash!D$18,$A520))/1000","v":{"$error":"#NAME?"}},{"$f":"(_xll.RiskData(NR_to_Cash!E$18,$A520))/1000","v":{"$error":"#NAME?"}}]
[514,{"$f":"_xll.RiskData('Risk Summary'!J$48,$A521)/1000","v":{"$error":"#NAME?"}},{"$f":"_xll.RiskData('Risk Summary'!K$48,$A521)/1000","v":{"$error":"#NAME?"}},{"$f":"_xll.RiskData('Risk Summary'!L$48,$A521)/1000","v":{"$error":"#NAME?"}},null,null,{"$f":"(_xll.RiskData(NR_to_Cash!C$18,$A521))/1000","v":{"$error":"#NAME?"}},{"$f":"(_xll.RiskData(NR_to_Cash!D$18,$A521))/1000","v":{"$error":"#NAME?"}},{"$f":"(_xll.RiskData(NR_to_Cash!E$18,$A521))/1000","v":{"$error":"#NAME?"}}]
[515,{"$f":"_xll.RiskData('Risk Summary'!J$48,$A522)/1000","v":{"$error":"#NAME?"}},{"$f":"_xll.RiskData('Risk Summary'!K$48,$A522)/1000","v":{"$error":"#NAME?"}},{"$f":"_xll.RiskData('Risk Summary'!L$48,$A522)/1000","v":{"$error":"#NAME?"}},null,null,{"$f":"(_xll.RiskData(NR_to_Cash!C$18,$A522))/1000","v":{"$error":"#NAME?"}},{"$f":"(_xll.RiskData(NR_to_Cash!D$18,$A522))/1000","v":{"$error":"#NAME?"}},{"$f":"(_xll.RiskData(NR_to_Cash!E$18,$A522))/1000","v":{"$error":"#NAME?"}}]
[516,{"$f":"_xll.RiskData('Risk Summary'!J$48,$A523)/1000","v":{"$error":"#NAME?"}},{"$f":"_xll.RiskData('Risk Summary'!K$48,$A523)/1000","v":{"$error":"#NAME?"}},{"$f":"_xll.RiskData('Risk Summary'!L$48,$A523)/1000","v":{"$error":"#NAME?"}},null,null,{"$f":"(_xll.RiskData(NR_to_Cash!C$18,$A523))/1000","v":{"$error":"#NAME?"}},{"$f":"(_xll.RiskData(NR_to_Cash!D$18,$A523))/1000","v":{"$error":"#NAME?"}},{"$f":"(_xll.RiskData(NR_to_Cash!E$18,$A523))/1000","v":{"$error":"#NAME?"}}]
[517,{"$f":"_xll.RiskData('Risk Summary'!J$48,$A524)/1000","v":{"$error":"#NAME?"}},{"$f":"_xll.RiskData('Risk Summary'!K$48,$A524)/1000","v":{"$error":"#NAME?"}},{"$f":"_xll.RiskData('Risk Summary'!L$48,$A524)/1000","v":{"$error":"#NAME?"}},null,null,{"$f":"(_xll.RiskData(NR_to_Cash!C$18,$A524))/1000","v":{"$error":"#NAME?"}},{"$f":"(_xll.RiskData(NR_to_Cash!D$18,$A524))/1000","v":{"$error":"#NAME?"}},{"$f":"(_xll.RiskData(NR_to_Cash!E$18,$A524))/1000","v":{"$error":"#NAME?"}}]
[518,{"$f":"_xll.RiskData('Risk Summary'!J$48,$A525)/1000","v":{"$error":"#NAME?"}},{"$f":"_xll.RiskData('Risk Summary'!K$48,$A525)/1000","v":{"$error":"#NAME?"}},{"$f":"_xll.RiskData('Risk Summary'!L$48,$A525)/1000","v":{"$error":"#NAME?"}},null,null,{"$f":"(_xll.RiskData(NR_to_Cash!C$18,$A525))/1000","v":{"$error":"#NAME?"}},{"$f":"(_xll.RiskData(NR_to_Cash!D$18,$A525))/1000","v":{"$error":"#NAME?"}},{"$f":"(_xll.RiskData(NR_to_Cash!E$18,$A525))/1000","v":{"$error":"#NAME?"}}]
[519,{"$f":"_xll.RiskData('Risk Summary'!J$48,$A526)/1000","v":{"$error":"#NAME?"}},{"$f":"_xll.RiskData('Risk Summary'!K$48,$A526)/1000","v":{"$error":"#NAME?"}},{"$f":"_xll.RiskData('Risk Summary'!L$48,$A526)/1000","v":{"$error":"#NAME?"}},null,null,{"$f":"(_xll.RiskData(NR_to_Cash!C$18,$A526))/1000","v":{"$error":"#NAME?"}},{"$f":"(_xll.RiskData(NR_to_Cash!D$18,$A526))/1000","v":{"$error":"#NAME?"}},{"$f":"(_xll.RiskData(NR_to_Cash!E$18,$A526))/1000","v":{"$error":"#NAME?"}}]
[520,{"$f":"_xll.RiskData('Risk Summary'!J$48,$A527)/1000","v":{"$error":"#NAME?"}},{"$f":"_xll.RiskData('Risk Summary'!K$48,$A527)/1000","v":{"$error":"#NAME?"}},{"$f":"_xll.RiskData('Risk Summary'!L$48,$A527)/1000","v":{"$error":"#NAME?"}},null,null,{"$f":"(_xll.RiskData(NR_to_Cash!C$18,$A527))/1000","v":{"$error":"#NAME?"}},{"$f":"(_xll.RiskData(NR_to_Cash!D$18,$A527))/1000","v":{"$error":"#NAME?"}},{"$f":"(_xll.RiskData(NR_to_Cash!E$18,$A527))/1000","v":{"$error":"#NAME?"}}]
[521,{"$f":"_xll.RiskData('Risk Summary'!J$48,$A528)/1000","v":{"$error":"#NAME?"}},{"$f":"_xll.RiskData('Risk Summary'!K$48,$A528)/1000","v":{"$error":"#NAME?"}},{"$f":"_xll.RiskData('Risk Summary'!L$48,$A528)/1000","v":{"$error":"#NAME?"}},null,null,{"$f":"(_xll.RiskData(NR_to_Cash!C$18,$A528))/1000","v":{"$error":"#NAME?"}},{"$f":"(_xll.RiskData(NR_to_Cash!D$18,$A528))/1000","v":{"$error":"#NAME?"}},{"$f":"(_xll.RiskData(NR_to_Cash!E$18,$A528))/1000","v":{"$error":"#NAME?"}}]
[522,{"$f":"_xll.RiskData('Risk Summary'!J$48,$A529)/1000","v":{"$error":"#NAME?"}},{"$f":"_xll.RiskData('Risk Summary'!K$48,$A529)/1000","v":{"$error":"#NAME?"}},{"$f":"_xll.RiskData('Risk Summary'!L$48,$A529)/1000","v":{"$error":"#NAME?"}},null,null,{"$f":"(_xll.RiskData(NR_to_Cash!C$18,$A529))/1000","v":{"$error":"#NAME?"}},{"$f":"(_xll.RiskData(NR_to_Cash!D$18,$A529))/1000","v":{"$error":"#NAME?"}},{"$f":"(_xll.RiskData(NR_to_Cash!E$18,$A529))/1000","v":{"$error":"#NAME?"}}]
[523,{"$f":"_xll.RiskData('Risk Summary'!J$48,$A530)/1000","v":{"$error":"#NAME?"}},{"$f":"_xll.RiskData('Risk Summary'!K$48,$A530)/1000","v":{"$error":"#NAME?"}},{"$f":"_xll.RiskData('Risk Summary'!L$48,$A530)/1000","v":{"$error":"#NAME?"}},null,null,{"$f":"(_xll.RiskData(NR_to_Cash!C$18,$A530))/1000","v":{"$error":"#NAME?"}},{"$f":"(_xll.RiskData(NR_to_Cash!D$18,$A530))/1000","v":{"$error":"#NAME?"}},{"$f":"(_xll.RiskData(NR_to_Cash!E$18,$A530))/1000","v":{"$error":"#NAME?"}}]
[524,{"$f":"_xll.RiskData('Risk Summary'!J$48,$A531)/1000","v":{"$error":"#NAME?"}},{"$f":"_xll.RiskData('Risk Summary'!K$48,$A531)/1000","v":{"$error":"#NAME?"}},{"$f":"_xll.RiskData('Risk Summary'!L$48,$A531)/1000","v":{"$error":"#NAME?"}},null,null,{"$f":"(_xll.RiskData(NR_to_Cash!C$18,$A531))/1000","v":{"$error":"#NAME?"}},{"$f":"(_xll.RiskData(NR_to_Cash!D$18,$A531))/1000","v":{"$error":"#NAME?"}},{"$f":"(_xll.RiskData(NR_to_Cash!E$18,$A531))/1000","v":{"$error":"#NAME?"}}]
[525,{"$f":"_xll.RiskData('Risk Summary'!J$48,$A532)/1000","v":{"$error":"#NAME?"}},{"$f":"_xll.RiskData('Risk Summary'!K$48,$A532)/1000","v":{"$error":"#NAME?"}},{"$f":"_xll.RiskData('Risk Summary'!L$48,$A532)/1000","v":{"$error":"#NAME?"}},null,null,{"$f":"(_xll.RiskData(NR_to_Cash!C$18,$A532))/1000","v":{"$error":"#NAME?"}},{"$f":"(_xll.RiskData(NR_to_Cash!D$18,$A532))/1000","v":{"$error":"#NAME?"}},{"$f":"(_xll.RiskData(NR_to_Cash!E$18,$A532))/1000","v":{"$error":"#NAME?"}}]
[526,{"$f":"_xll.RiskData('Risk Summary'!J$48,$A533)/1000","v":{"$error":"#NAME?"}},{"$f":"_xll.RiskData('Risk Summary'!K$48,$A533)/1000","v":{"$error":"#NAME?"}},{"$f":"_xll.RiskData('Risk Summary'!L$48,$A533)/1000","v":{"$error":"#NAME?"}},null,null,{"$f":"(_xll.RiskData(NR_to_Cash!C$18,$A533))/1000","v":{"$error":"#NAME?"}},{"$f":"(_xll.RiskData(NR_to_Cash!D$18,$A533))/1000","v":{"$error":"#NAME?"}},{"$f":"(_xll.RiskData(NR_to_Cash!E$18,$A533))/1000","v":{"$error":"#NAME?"}}]
[527,{"$f":"_xll.RiskData('Risk Summary'!J$48,$A534)/1000","v":{"$error":"#NAME?"}},{"$f":"_xll.RiskData('Risk Summary'!K$48,$A534)/1000","v":{"$error":"#NAME?"}},{"$f":"_xll.RiskData('Risk Summary'!L$48,$A534)/1000","v":{"$error":"#NAME?"}},null,null,{"$f":"(_xll.RiskData(NR_to_Cash!C$18,$A534))/1000","v":{"$error":"#NAME?"}},{"$f":"(_xll.RiskData(NR_to_Cash!D$18,$A534))/1000","v":{"$error":"#NAME?"}},{"$f":"(_xll.RiskData(NR_to_Cash!E$18,$A534))/1000","v":{"$error":"#NAME?"}}]
[528,{"$f":"_xll.RiskData('Risk Summary'!J$48,$A535)/1000","v":{"$error":"#NAME?"}},{"$f":"_xll.RiskData('Risk Summary'!K$48,$A535)/1000","v":{"$error":"#NAME?"}},{"$f":"_xll.RiskData('Risk Summary'!L$48,$A535)/1000","v":{"$error":"#NAME?"}},null,null,{"$f":"(_xll.RiskData(NR_to_Cash!C$18,$A535))/1000","v":{"$error":"#NAME?"}},{"$f":"(_xll.RiskData(NR_to_Cash!D$18,$A535))/1000","v":{"$error":"#NAME?"}},{"$f":"(_xll.RiskData(NR_to_Cash!E$18,$A535))/1000","v":{"$error":"#NAME?"}}]
[529,{"$f":"_xll.RiskData('Risk Summary'!J$48,$A536)/1000","v":{"$error":"#NAME?"}},{"$f":"_xll.RiskData('Risk Summary'!K$48,$A536)/1000","v":{"$error":"#NAME?"}},{"$f":"_xll.RiskData('Risk Summary'!L$48,$A536)/1000","v":{"$error":"#NAME?"}},null,null,{"$f":"(_xll.RiskData(NR_to_Cash!C$18,$A536))/1000","v":{"$error":"#NAME?"}},{"$f":"(_xll.RiskData(NR_to_Cash!D$18,$A536))/1000","v":{"$error":"#NAME?"}},{"$f":"(_xll.RiskData(NR_to_Cash!E$18,$A536))/1000","v":{"$error":"#NAME?"}}]
[530,{"$f":"_xll.RiskData('Risk Summary'!J$48,$A537)/1000","v":{"$error":"#NAME?"}},{"$f":"_xll.RiskData('Risk Summary'!K$48,$A537)/1000","v":{"$error":"#NAME?"}},{"$f":"_xll.RiskData('Risk Summary'!L$48,$A537)/1000","v":{"$error":"#NAME?"}},null,null,{"$f":"(_xll.RiskData(NR_to_Cash!C$18,$A537))/1000","v":{"$error":"#NAME?"}},{"$f":"(_xll.RiskData(NR_to_Cash!D$18,$A537))/1000","v":{"$error":"#NAME?"}},{"$f":"(_xll.RiskData(NR_to_Cash!E$18,$A537))/1000","v":{"$error":"#NAME?"}}]
[531,{"$f":"_xll.RiskData('Risk Summary'!J$48,$A538)/1000","v":{"$error":"#NAME?"}},{"$f":"_xll.RiskData('Risk Summary'!K$48,$A538)/1000","v":{"$error":"#NAME?"}},{"$f":"_xll.RiskData('Risk Summary'!L$48,$A538)/1000","v":{"$error":"#NAME?"}},null,null,{"$f":"(_xll.RiskData(NR_to_Cash!C$18,$A538))/1000","v":{"$error":"#NAME?"}},{"$f":"(_xll.RiskData(NR_to_Cash!D$18,$A538))/1000","v":{"$error":"#NAME?"}},{"$f":"(_xll.RiskData(NR_to_Cash!E$18,$A538))/1000","v":{"$error":"#NAME?"}}]
[532,{"$f":"_xll.RiskData('Risk Summary'!J$48,$A539)/1000","v":{"$error":"#NAME?"}},{"$f":"_xll.RiskData('Risk Summary'!K$48,$A539)/1000","v":{"$error":"#NAME?"}},{"$f":"_xll.RiskData('Risk Summary'!L$48,$A539)/1000","v":{"$error":"#NAME?"}},null,null,{"$f":"(_xll.RiskData(NR_to_Cash!C$18,$A539))/1000","v":{"$error":"#NAME?"}},{"$f":"(_xll.RiskData(NR_to_Cash!D$18,$A539))/1000","v":{"$error":"#NAME?"}},{"$f":"(_xll.RiskData(NR_to_Cash!E$18,$A539))/1000","v":{"$error":"#NAME?"}}]
[533,{"$f":"_xll.RiskData('Risk Summary'!J$48,$A540)/1000","v":{"$error":"#NAME?"}},{"$f":"_xll.RiskData('Risk Summary'!K$48,$A540)/1000","v":{"$error":"#NAME?"}},{"$f":"_xll.RiskData('Risk Summary'!L$48,$A540)/1000","v":{"$error":"#NAME?"}},null,null,{"$f":"(_xll.RiskData(NR_to_Cash!C$18,$A540))/1000","v":{"$error":"#NAME?"}},{"$f":"(_xll.RiskData(NR_to_Cash!D$18,$A540))/1000","v":{"$error":"#NAME?"}},{"$f":"(_xll.RiskData(NR_to_Cash!E$18,$A540))/1000","v":{"$error":"#NAME?"}}]
[534,{"$f":"_xll.RiskData('Risk Summary'!J$48,$A541)/1000","v":{"$error":"#NAME?"}},{"$f":"_xll.RiskData('Risk Summary'!K$48,$A541)/1000","v":{"$error":"#NAME?"}},{"$f":"_xll.RiskData('Risk Summary'!L$48,$A541)/1000","v":{"$error":"#NAME?"}},null,null,{"$f":"(_xll.RiskData(NR_to_Cash!C$18,$A541))/1000","v":{"$error":"#NAME?"}},{"$f":"(_xll.RiskData(NR_to_Cash!D$18,$A541))/1000","v":{"$error":"#NAME?"}},{"$f":"(_xll.RiskData(NR_to_Cash!E$18,$A541))/1000","v":{"$error":"#NAME?"}}]
[535,{"$f":"_xll.RiskData('Risk Summary'!J$48,$A542)/1000","v":{"$error":"#NAME?"}},{"$f":"_xll.RiskData('Risk Summary'!K$48,$A542)/1000","v":{"$error":"#NAME?"}},{"$f":"_xll.RiskData('Risk Summary'!L$48,$A542)/1000","v":{"$error":"#NAME?"}},null,null,{"$f":"(_xll.RiskData(NR_to_Cash!C$18,$A542))/1000","v":{"$error":"#NAME?"}},{"$f":"(_xll.RiskData(NR_to_Cash!D$18,$A542))/1000","v":{"$error":"#NAME?"}},{"$f":"(_xll.RiskData(NR_to_Cash!E$18,$A542))/1000","v":{"$error":"#NAME?"}}]
[536,{"$f":"_xll.RiskData('Risk Summary'!J$48,$A543)/1000","v":{"$error":"#NAME?"}},{"$f":"_xll.RiskData('Risk Summary'!K$48,$A543)/1000","v":{"$error":"#NAME?"}},{"$f":"_xll.RiskData('Risk Summary'!L$48,$A543)/1000","v":{"$error":"#NAME?"}},null,null,{"$f":"(_xll.RiskData(NR_to_Cash!C$18,$A543))/1000","v":{"$error":"#NAME?"}},{"$f":"(_xll.RiskData(NR_to_Cash!D$18,$A543))/1000","v":{"$error":"#NAME?"}},{"$f":"(_xll.RiskData(NR_to_Cash!E$18,$A543))/1000","v":{"$error":"#NAME?"}}]
[537,{"$f":"_xll.RiskData('Risk Summary'!J$48,$A544)/1000","v":{"$error":"#NAME?"}},{"$f":"_xll.RiskData('Risk Summary'!K$48,$A544)/1000","v":{"$error":"#NAME?"}},{"$f":"_xll.RiskData('Risk Summary'!L$48,$A544)/1000","v":{"$error":"#NAME?"}},null,null,{"$f":"(_xll.RiskData(NR_to_Cash!C$18,$A544))/1000","v":{"$error":"#NAME?"}},{"$f":"(_xll.RiskData(NR_to_Cash!D$18,$A544))/1000","v":{"$error":"#NAME?"}},{"$f":"(_xll.RiskData(NR_to_Cash!E$18,$A544))/1000","v":{"$error":"#NAME?"}}]
[538,{"$f":"_xll.RiskData('Risk Summary'!J$48,$A545)/1000","v":{"$error":"#NAME?"}},{"$f":"_xll.RiskData('Risk Summary'!K$48,$A545)/1000","v":{"$error":"#NAME?"}},{"$f":"_xll.RiskData('Risk Summary'!L$48,$A545)/1000","v":{"$error":"#NAME?"}},null,null,{"$f":"(_xll.RiskData(NR_to_Cash!C$18,$A545))/1000","v":{"$error":"#NAME?"}},{"$f":"(_xll.RiskData(NR_to_Cash!D$18,$A545))/1000","v":{"$error":"#NAME?"}},{"$f":"(_xll.RiskData(NR_to_Cash!E$18,$A545))/1000","v":{"$error":"#NAME?"}}]
[539,{"$f":"_xll.RiskData('Risk Summary'!J$48,$A546)/1000","v":{"$error":"#NAME?"}},{"$f":"_xll.RiskData('Risk Summary'!K$48,$A546)/1000","v":{"$error":"#NAME?"}},{"$f":"_xll.RiskData('Risk Summary'!L$48,$A546)/1000","v":{"$error":"#NAME?"}},null,null,{"$f":"(_xll.RiskData(NR_to_Cash!C$18,$A546))/1000","v":{"$error":"#NAME?"}},{"$f":"(_xll.RiskData(NR_to_Cash!D$18,$A546))/1000","v":{"$error":"#NAME?"}},{"$f":"(_xll.RiskData(NR_to_Cash!E$18,$A546))/1000","v":{"$error":"#NAME?"}}]
[540,{"$f":"_xll.RiskData('Risk Summary'!J$48,$A547)/1000","v":{"$error":"#NAME?"}},{"$f":"_xll.RiskData('Risk Summary'!K$48,$A547)/1000","v":{"$error":"#NAME?"}},{"$f":"_xll.RiskData('Risk Summary'!L$48,$A547)/1000","v":{"$error":"#NAME?"}},null,null,{"$f":"(_xll.RiskData(NR_to_Cash!C$18,$A547))/1000","v":{"$error":"#NAME?"}},{"$f":"(_xll.RiskData(NR_to_Cash!D$18,$A547))/1000","v":{"$error":"#NAME?"}},{"$f":"(_xll.RiskData(NR_to_Cash!E$18,$A547))/1000","v":{"$error":"#NAME?"}}]
[541,{"$f":"_xll.RiskData('Risk Summary'!J$48,$A548)/1000","v":{"$error":"#NAME?"}},{"$f":"_xll.RiskData('Risk Summary'!K$48,$A548)/1000","v":{"$error":"#NAME?"}},{"$f":"_xll.RiskData('Risk Summary'!L$48,$A548)/1000","v":{"$error":"#NAME?"}},null,null,{"$f":"(_xll.RiskData(NR_to_Cash!C$18,$A548))/1000","v":{"$error":"#NAME?"}},{"$f":"(_xll.RiskData(NR_to_Cash!D$18,$A548))/1000","v":{"$error":"#NAME?"}},{"$f":"(_xll.RiskData(NR_to_Cash!E$18,$A548))/1000","v":{"$error":"#NAME?"}}]
[542,{"$f":"_xll.RiskData('Risk Summary'!J$48,$A549)/1000","v":{"$error":"#NAME?"}},{"$f":"_xll.RiskData('Risk Summary'!K$48,$A549)/1000","v":{"$error":"#NAME?"}},{"$f":"_xll.RiskData('Risk Summary'!L$48,$A549)/1000","v":{"$error":"#NAME?"}},null,null,{"$f":"(_xll.RiskData(NR_to_Cash!C$18,$A549))/1000","v":{"$error":"#NAME?"}},{"$f":"(_xll.RiskData(NR_to_Cash!D$18,$A549))/1000","v":{"$error":"#NAME?"}},{"$f":"(_xll.RiskData(NR_to_Cash!E$18,$A549))/1000","v":{"$error":"#NAME?"}}]
[543,{"$f":"_xll.RiskData('Risk Summary'!J$48,$A550)/1000","v":{"$error":"#NAME?"}},{"$f":"_xll.RiskData('Risk Summary'!K$48,$A550)/1000","v":{"$error":"#NAME?"}},{"$f":"_xll.RiskData('Risk Summary'!L$48,$A550)/1000","v":{"$error":"#NAME?"}},null,null,{"$f":"(_xll.RiskData(NR_to_Cash!C$18,$A550))/1000","v":{"$error":"#NAME?"}},{"$f":"(_xll.RiskData(NR_to_Cash!D$18,$A550))/1000","v":{"$error":"#NAME?"}},{"$f":"(_xll.RiskData(NR_to_Cash!E$18,$A550))/1000","v":{"$error":"#NAME?"}}]
[544,{"$f":"_xll.RiskData('Risk Summary'!J$48,$A551)/1000","v":{"$error":"#NAME?"}},{"$f":"_xll.RiskData('Risk Summary'!K$48,$A551)/1000","v":{"$error":"#NAME?"}},{"$f":"_xll.RiskData('Risk Summary'!L$48,$A551)/1000","v":{"$error":"#NAME?"}},null,null,{"$f":"(_xll.RiskData(NR_to_Cash!C$18,$A551))/1000","v":{"$error":"#NAME?"}},{"$f":"(_xll.RiskData(NR_to_Cash!D$18,$A551))/1000","v":{"$error":"#NAME?"}},{"$f":"(_xll.RiskData(NR_to_Cash!E$18,$A551))/1000","v":{"$error":"#NAME?"}}]
[545,{"$f":"_xll.RiskData('Risk Summary'!J$48,$A552)/1000","v":{"$error":"#NAME?"}},{"$f":"_xll.RiskData('Risk Summary'!K$48,$A552)/1000","v":{"$error":"#NAME?"}},{"$f":"_xll.RiskData('Risk Summary'!L$48,$A552)/1000","v":{"$error":"#NAME?"}},null,null,{"$f":"(_xll.RiskData(NR_to_Cash!C$18,$A552))/1000","v":{"$error":"#NAME?"}},{"$f":"(_xll.RiskData(NR_to_Cash!D$18,$A552))/1000","v":{"$error":"#NAME?"}},{"$f":"(_xll.RiskData(NR_to_Cash!E$18,$A552))/1000","v":{"$error":"#NAME?"}}]
[546,{"$f":"_xll.RiskData('Risk Summary'!J$48,$A553)/1000","v":{"$error":"#NAME?"}},{"$f":"_xll.RiskData('Risk Summary'!K$48,$A553)/1000","v":{"$error":"#NAME?"}},{"$f":"_xll.RiskData('Risk Summary'!L$48,$A553)/1000","v":{"$error":"#NAME?"}},null,null,{"$f":"(_xll.RiskData(NR_to_Cash!C$18,$A553))/1000","v":{"$error":"#NAME?"}},{"$f":"(_xll.RiskData(NR_to_Cash!D$18,$A553))/1000","v":{"$error":"#NAME?"}},{"$f":"(_xll.RiskData(NR_to_Cash!E$18,$A553))/1000","v":{"$error":"#NAME?"}}]
[547,{"$f":"_xll.RiskData('Risk Summary'!J$48,$A554)/1000","v":{"$error":"#NAME?"}},{"$f":"_xll.RiskData('Risk Summary'!K$48,$A554)/1000","v":{"$error":"#NAME?"}},{"$f":"_xll.RiskData('Risk Summary'!L$48,$A554)/1000","v":{"$error":"#NAME?"}},null,null,{"$f":"(_xll.RiskData(NR_to_Cash!C$18,$A554))/1000","v":{"$error":"#NAME?"}},{"$f":"(_xll.RiskData(NR_to_Cash!D$18,$A554))/1000","v":{"$error":"#NAME?"}},{"$f":"(_xll.RiskData(NR_to_Cash!E$18,$A554))/1000","v":{"$error":"#NAME?"}}]
[548,{"$f":"_xll.RiskData('Risk Summary'!J$48,$A555)/1000","v":{"$error":"#NAME?"}},{"$f":"_xll.RiskData('Risk Summary'!K$48,$A555)/1000","v":{"$error":"#NAME?"}},{"$f":"_xll.RiskData('Risk Summary'!L$48,$A555)/1000","v":{"$error":"#NAME?"}},null,null,{"$f":"(_xll.RiskData(NR_to_Cash!C$18,$A555))/1000","v":{"$error":"#NAME?"}},{"$f":"(_xll.RiskData(NR_to_Cash!D$18,$A555))/1000","v":{"$error":"#NAME?"}},{"$f":"(_xll.RiskData(NR_to_Cash!E$18,$A555))/1000","v":{"$error":"#NAME?"}}]
[549,{"$f":"_xll.RiskData('Risk Summary'!J$48,$A556)/1000","v":{"$error":"#NAME?"}},{"$f":"_xll.RiskData('Risk Summary'!K$48,$A556)/1000","v":{"$error":"#NAME?"}},{"$f":"_xll.RiskData('Risk Summary'!L$48,$A556)/1000","v":{"$error":"#NAME?"}},null,null,{"$f":"(_xll.RiskData(NR_to_Cash!C$18,$A556))/1000","v":{"$error":"#NAME?"}},{"$f":"(_xll.RiskData(NR_to_Cash!D$18,$A556))/1000","v":{"$error":"#NAME?"}},{"$f":"(_xll.RiskData(NR_to_Cash!E$18,$A556))/1000","v":{"$error":"#NAME?"}}]
[550,{"$f":"_xll.RiskData('Risk Summary'!J$48,$A557)/1000","v":{"$error":"#NAME?"}},{"$f":"_xll.RiskData('Risk Summary'!K$48,$A557)/1000","v":{"$error":"#NAME?"}},{"$f":"_xll.RiskData('Risk Summary'!L$48,$A557)/1000","v":{"$error":"#NAME?"}},null,null,{"$f":"(_xll.RiskData(NR_to_Cash!C$18,$A557))/1000","v":{"$error":"#NAME?"}},{"$f":"(_xll.RiskData(NR_to_Cash!D$18,$A557))/1000","v":{"$error":"#NAME?"}},{"$f":"(_xll.RiskData(NR_to_Cash!E$18,$A557))/1000","v":{"$error":"#NAME?"}}]
[551,{"$f":"_xll.RiskData('Risk Summary'!J$48,$A558)/1000","v":{"$error":"#NAME?"}},{"$f":"_xll.RiskData('Risk Summary'!K$48,$A558)/1000","v":{"$error":"#NAME?"}},{"$f":"_xll.RiskData('Risk Summary'!L$48,$A558)/1000","v":{"$error":"#NAME?"}},null,null,{"$f":"(_xll.RiskData(NR_to_Cash!C$18,$A558))/1000","v":{"$error":"#NAME?"}},{"$f":"(_xll.RiskData(NR_to_Cash!D$18,$A558))/1000","v":{"$error":"#NAME?"}},{"$f":"(_xll.RiskData(NR_to_Cash!E$18,$A558))/1000","v":{"$error":"#NAME?"}}]
[552,{"$f":"_xll.RiskData('Risk Summary'!J$48,$A559)/1000","v":{"$error":"#NAME?"}},{"$f":"_xll.RiskData('Risk Summary'!K$48,$A559)/1000","v":{"$error":"#NAME?"}},{"$f":"_xll.RiskData('Risk Summary'!L$48,$A559)/1000","v":{"$error":"#NAME?"}},null,null,{"$f":"(_xll.RiskData(NR_to_Cash!C$18,$A559))/1000","v":{"$error":"#NAME?"}},{"$f":"(_xll.RiskData(NR_to_Cash!D$18,$A559))/1000","v":{"$error":"#NAME?"}},{"$f":"(_xll.RiskData(NR_to_Cash!E$18,$A559))/1000","v":{"$error":"#NAME?"}}]
[553,{"$f":"_xll.RiskData('Risk Summary'!J$48,$A560)/1000","v":{"$error":"#NAME?"}},{"$f":"_xll.RiskData('Risk Summary'!K$48,$A560)/1000","v":{"$error":"#NAME?"}},{"$f":"_xll.RiskData('Risk Summary'!L$48,$A560)/1000","v":{"$error":"#NAME?"}},null,null,{"$f":"(_xll.RiskData(NR_to_Cash!C$18,$A560))/1000","v":{"$error":"#NAME?"}},{"$f":"(_xll.RiskData(NR_to_Cash!D$18,$A560))/1000","v":{"$error":"#NAME?"}},{"$f":"(_xll.RiskData(NR_to_Cash!E$18,$A560))/1000","v":{"$error":"#NAME?"}}]
[554,{"$f":"_xll.RiskData('Risk Summary'!J$48,$A561)/1000","v":{"$error":"#NAME?"}},{"$f":"_xll.RiskData('Risk Summary'!K$48,$A561)/1000","v":{"$error":"#NAME?"}},{"$f":"_xll.RiskData('Risk Summary'!L$48,$A561)/1000","v":{"$error":"#NAME?"}},null,null,{"$f":"(_xll.RiskData(NR_to_Cash!C$18,$A561))/1000","v":{"$error":"#NAME?"}},{"$f":"(_xll.RiskData(NR_to_Cash!D$18,$A561))/1000","v":{"$error":"#NAME?"}},{"$f":"(_xll.RiskData(NR_to_Cash!E$18,$A561))/1000","v":{"$error":"#NAME?"}}]
[555,{"$f":"_xll.RiskData('Risk Summary'!J$48,$A562)/1000","v":{"$error":"#NAME?"}},{"$f":"_xll.RiskData('Risk Summary'!K$48,$A562)/1000","v":{"$error":"#NAME?"}},{"$f":"_xll.RiskData('Risk Summary'!L$48,$A562)/1000","v":{"$error":"#NAME?"}},null,null,{"$f":"(_xll.RiskData(NR_to_Cash!C$18,$A562))/1000","v":{"$error":"#NAME?"}},{"$f":"(_xll.RiskData(NR_to_Cash!D$18,$A562))/1000","v":{"$error":"#NAME?"}},{"$f":"(_xll.RiskData(NR_to_Cash!E$18,$A562))/1000","v":{"$error":"#NAME?"}}]
[556,{"$f":"_xll.RiskData('Risk Summary'!J$48,$A563)/1000","v":{"$error":"#NAME?"}},{"$f":"_xll.RiskData('Risk Summary'!K$48,$A563)/1000","v":{"$error":"#NAME?"}},{"$f":"_xll.RiskData('Risk Summary'!L$48,$A563)/1000","v":{"$error":"#NAME?"}},null,null,{"$f":"(_xll.RiskData(NR_to_Cash!C$18,$A563))/1000","v":{"$error":"#NAME?"}},{"$f":"(_xll.RiskData(NR_to_Cash!D$18,$A563))/1000","v":{"$error":"#NAME?"}},{"$f":"(_xll.RiskData(NR_to_Cash!E$18,$A563))/1000","v":{"$error":"#NAME?"}}]
[557,{"$f":"_xll.RiskData('Risk Summary'!J$48,$A564)/1000","v":{"$error":"#NAME?"}},{"$f":"_xll.RiskData('Risk Summary'!K$48,$A564)/1000","v":{"$error":"#NAME?"}},{"$f":"_xll.RiskData('Risk Summary'!L$48,$A564)/1000","v":{"$error":"#NAME?"}},null,null,{"$f":"(_xll.RiskData(NR_to_Cash!C$18,$A564))/1000","v":{"$error":"#NAME?"}},{"$f":"(_xll.RiskData(NR_to_Cash!D$18,$A564))/1000","v":{"$error":"#NAME?"}},{"$f":"(_xll.RiskData(NR_to_Cash!E$18,$A564))/1000","v":{"$error":"#NAME?"}}]
[558,{"$f":"_xll.RiskData('Risk Summary'!J$48,$A565)/1000","v":{"$error":"#NAME?"}},{"$f":"_xll.RiskData('Risk Summary'!K$48,$A565)/1000","v":{"$error":"#NAME?"}},{"$f":"_xll.RiskData('Risk Summary'!L$48,$A565)/1000","v":{"$error":"#NAME?"}},null,null,{"$f":"(_xll.RiskData(NR_to_Cash!C$18,$A565))/1000","v":{"$error":"#NAME?"}},{"$f":"(_xll.RiskData(NR_to_Cash!D$18,$A565))/1000","v":{"$error":"#NAME?"}},{"$f":"(_xll.RiskData(NR_to_Cash!E$18,$A565))/1000","v":{"$error":"#NAME?"}}]
[559,{"$f":"_xll.RiskData('Risk Summary'!J$48,$A566)/1000","v":{"$error":"#NAME?"}},{"$f":"_xll.RiskData('Risk Summary'!K$48,$A566)/1000","v":{"$error":"#NAME?"}},{"$f":"_xll.RiskData('Risk Summary'!L$48,$A566)/1000","v":{"$error":"#NAME?"}},null,null,{"$f":"(_xll.RiskData(NR_to_Cash!C$18,$A566))/1000","v":{"$error":"#NAME?"}},{"$f":"(_xll.RiskData(NR_to_Cash!D$18,$A566))/1000","v":{"$error":"#NAME?"}},{"$f":"(_xll.RiskData(NR_to_Cash!E$18,$A566))/1000","v":{"$error":"#NAME?"}}]
[560,{"$f":"_xll.RiskData('Risk Summary'!J$48,$A567)/1000","v":{"$error":"#NAME?"}},{"$f":"_xll.RiskData('Risk Summary'!K$48,$A567)/1000","v":{"$error":"#NAME?"}},{"$f":"_xll.RiskData('Risk Summary'!L$48,$A567)/1000","v":{"$error":"#NAME?"}},null,null,{"$f":"(_xll.RiskData(NR_to_Cash!C$18,$A567))/1000","v":{"$error":"#NAME?"}},{"$f":"(_xll.RiskData(NR_to_Cash!D$18,$A567))/1000","v":{"$error":"#NAME?"}},{"$f":"(_xll.RiskData(NR_to_Cash!E$18,$A567))/1000","v":{"$error":"#NAME?"}}]
[561,{"$f":"_xll.RiskData('Risk Summary'!J$48,$A568)/1000","v":{"$error":"#NAME?"}},{"$f":"_xll.RiskData('Risk Summary'!K$48,$A568)/1000","v":{"$error":"#NAME?"}},{"$f":"_xll.RiskData('Risk Summary'!L$48,$A568)/1000","v":{"$error":"#NAME?"}},null,null,{"$f":"(_xll.RiskData(NR_to_Cash!C$18,$A568))/1000","v":{"$error":"#NAME?"}},{"$f":"(_xll.RiskData(NR_to_Cash!D$18,$A568))/1000","v":{"$error":"#NAME?"}},{"$f":"(_xll.RiskData(NR_to_Cash!E$18,$A568))/1000","v":{"$error":"#NAME?"}}]
[562,{"$f":"_xll.RiskData('Risk Summary'!J$48,$A569)/1000","v":{"$error":"#NAME?"}},{"$f":"_xll.RiskData('Risk Summary'!K$48,$A569)/1000","v":{"$error":"#NAME?"}},{"$f":"_xll.RiskData('Risk Summary'!L$48,$A569)/1000","v":{"$error":"#NAME?"}},null,null,{"$f":"(_xll.RiskData(NR_to_Cash!C$18,$A569))/1000","v":{"$error":"#NAME?"}},{"$f":"(_xll.RiskData(NR_to_Cash!D$18,$A569))/1000","v":{"$error":"#NAME?"}},{"$f":"(_xll.RiskData(NR_to_Cash!E$18,$A569))/1000","v":{"$error":"#NAME?"}}]
[563,{"$f":"_xll.RiskData('Risk Summary'!J$48,$A570)/1000","v":{"$error":"#NAME?"}},{"$f":"_xll.RiskData('Risk Summary'!K$48,$A570)/1000","v":{"$error":"#NAME?"}},{"$f":"_xll.RiskData('Risk Summary'!L$48,$A570)/1000","v":{"$error":"#NAME?"}},null,null,{"$f":"(_xll.RiskData(NR_to_Cash!C$18,$A570))/1000","v":{"$error":"#NAME?"}},{"$f":"(_xll.RiskData(NR_to_Cash!D$18,$A570))/1000","v":{"$error":"#NAME?"}},{"$f":"(_xll.RiskData(NR_to_Cash!E$18,$A570))/1000","v":{"$error":"#NAME?"}}]
[564,{"$f":"_xll.RiskData('Risk Summary'!J$48,$A571)/1000","v":{"$error":"#NAME?"}},{"$f":"_xll.RiskData('Risk Summary'!K$48,$A571)/1000","v":{"$error":"#NAME?"}},{"$f":"_xll.RiskData('Risk Summary'!L$48,$A571)/1000","v":{"$error":"#NAME?"}},null,null,{"$f":"(_xll.RiskData(NR_to_Cash!C$18,$A571))/1000","v":{"$error":"#NAME?"}},{"$f":"(_xll.RiskData(NR_to_Cash!D$18,$A571))/1000","v":{"$error":"#NAME?"}},{"$f":"(_xll.RiskData(NR_to_Cash!E$18,$A571))/1000","v":{"$error":"#NAME?"}}]
[565,{"$f":"_xll.RiskData('Risk Summary'!J$48,$A572)/1000","v":{"$error":"#NAME?"}},{"$f":"_xll.RiskData('Risk Summary'!K$48,$A572)/1000","v":{"$error":"#NAME?"}},{"$f":"_xll.RiskData('Risk Summary'!L$48,$A572)/1000","v":{"$error":"#NAME?"}},null,null,{"$f":"(_xll.RiskData(NR_to_Cash!C$18,$A572))/1000","v":{"$error":"#NAME?"}},{"$f":"(_xll.RiskData(NR_to_Cash!D$18,$A572))/1000","v":{"$error":"#NAME?"}},{"$f":"(_xll.RiskData(NR_to_Cash!E$18,$A572))/1000","v":{"$error":"#NAME?"}}]
[566,{"$f":"_xll.RiskData('Risk Summary'!J$48,$A573)/1000","v":{"$error":"#NAME?"}},{"$f":"_xll.RiskData('Risk Summary'!K$48,$A573)/1000","v":{"$error":"#NAME?"}},{"$f":"_xll.RiskData('Risk Summary'!L$48,$A573)/1000","v":{"$error":"#NAME?"}},null,null,{"$f":"(_xll.RiskData(NR_to_Cash!C$18,$A573))/1000","v":{"$error":"#NAME?"}},{"$f":"(_xll.RiskData(NR_to_Cash!D$18,$A573))/1000","v":{"$error":"#NAME?"}},{"$f":"(_xll.RiskData(NR_to_Cash!E$18,$A573))/1000","v":{"$error":"#NAME?"}}]
[567,{"$f":"_xll.RiskData('Risk Summary'!J$48,$A574)/1000","v":{"$error":"#NAME?"}},{"$f":"_xll.RiskData('Risk Summary'!K$48,$A574)/1000","v":{"$error":"#NAME?"}},{"$f":"_xll.RiskData('Risk Summary'!L$48,$A574)/1000","v":{"$error":"#NAME?"}},null,null,{"$f":"(_xll.RiskData(NR_to_Cash!C$18,$A574))/1000","v":{"$error":"#NAME?"}},{"$f":"(_xll.RiskData(NR_to_Cash!D$18,$A574))/1000","v":{"$error":"#NAME?"}},{"$f":"(_xll.RiskData(NR_to_Cash!E$18,$A574))/1000","v":{"$error":"#NAME?"}}]
[568,{"$f":"_xll.RiskData('Risk Summary'!J$48,$A575)/1000","v":{"$error":"#NAME?"}},{"$f":"_xll.RiskData('Risk Summary'!K$48,$A575)/1000","v":{"$error":"#NAME?"}},{"$f":"_xll.RiskData('Risk Summary'!L$48,$A575)/1000","v":{"$error":"#NAME?"}},null,null,{"$f":"(_xll.RiskData(NR_to_Cash!C$18,$A575))/1000","v":{"$error":"#NAME?"}},{"$f":"(_xll.RiskData(NR_to_Cash!D$18,$A575))/1000","v":{"$error":"#NAME?"}},{"$f":"(_xll.RiskData(NR_to_Cash!E$18,$A575))/1000","v":{"$error":"#NAME?"}}]
[569,{"$f":"_xll.RiskData('Risk Summary'!J$48,$A576)/1000","v":{"$error":"#NAME?"}},{"$f":"_xll.RiskData('Risk Summary'!K$48,$A576)/1000","v":{"$error":"#NAME?"}},{"$f":"_xll.RiskData('Risk Summary'!L$48,$A576)/1000","v":{"$error":"#NAME?"}},null,null,{"$f":"(_xll.RiskData(NR_to_Cash!C$18,$A576))/1000","v":{"$error":"#NAME?"}},{"$f":"(_xll.RiskData(NR_to_Cash!D$18,$A576))/1000","v":{"$error":"#NAME?"}},{"$f":"(_xll.RiskData(NR_to_Cash!E$18,$A576))/1000","v":{"$error":"#NAME?"}}]
[570,{"$f":"_xll.RiskData('Risk Summary'!J$48,$A577)/1000","v":{"$error":"#NAME?"}},{"$f":"_xll.RiskData('Risk Summary'!K$48,$A577)/1000","v":{"$error":"#NAME?"}},{"$f":"_xll.RiskData('Risk Summary'!L$48,$A577)/1000","v":{"$error":"#NAME?"}},null,null,{"$f":"(_xll.RiskData(NR_to_Cash!C$18,$A577))/1000","v":{"$error":"#NAME?"}},{"$f":"(_xll.RiskData(NR_to_Cash!D$18,$A577))/1000","v":{"$error":"#NAME?"}},{"$f":"(_xll.RiskData(NR_to_Cash!E$18,$A577))/1000","v":{"$error":"#NAME?"}}]
[571,{"$f":"_xll.RiskData('Risk Summary'!J$48,$A578)/1000","v":{"$error":"#NAME?"}},{"$f":"_xll.RiskData('Risk Summary'!K$48,$A578)/1000","v":{"$error":"#NAME?"}},{"$f":"_xll.RiskData('Risk Summary'!L$48,$A578)/1000","v":{"$error":"#NAME?"}},null,null,{"$f":"(_xll.RiskData(NR_to_Cash!C$18,$A578))/1000","v":{"$error":"#NAME?"}},{"$f":"(_xll.RiskData(NR_to_Cash!D$18,$A578))/1000","v":{"$error":"#NAME?"}},{"$f":"(_xll.RiskData(NR_to_Cash!E$18,$A578))/1000","v":{"$error":"#NAME?"}}]
[572,{"$f":"_xll.RiskData('Risk Summary'!J$48,$A579)/1000","v":{"$error":"#NAME?"}},{"$f":"_xll.RiskData('Risk Summary'!K$48,$A579)/1000","v":{"$error":"#NAME?"}},{"$f":"_xll.RiskData('Risk Summary'!L$48,$A579)/1000","v":{"$error":"#NAME?"}},null,null,{"$f":"(_xll.RiskData(NR_to_Cash!C$18,$A579))/1000","v":{"$error":"#NAME?"}},{"$f":"(_xll.RiskData(NR_to_Cash!D$18,$A579))/1000","v":{"$error":"#NAME?"}},{"$f":"(_xll.RiskData(NR_to_Cash!E$18,$A579))/1000","v":{"$error":"#NAME?"}}]
[573,{"$f":"_xll.RiskData('Risk Summary'!J$48,$A580)/1000","v":{"$error":"#NAME?"}},{"$f":"_xll.RiskData('Risk Summary'!K$48,$A580)/1000","v":{"$error":"#NAME?"}},{"$f":"_xll.RiskData('Risk Summary'!L$48,$A580)/1000","v":{"$error":"#NAME?"}},null,null,{"$f":"(_xll.RiskData(NR_to_Cash!C$18,$A580))/1000","v":{"$error":"#NAME?"}},{"$f":"(_xll.RiskData(NR_to_Cash!D$18,$A580))/1000","v":{"$error":"#NAME?"}},{"$f":"(_xll.RiskData(NR_to_Cash!E$18,$A580))/1000","v":{"$error":"#NAME?"}}]
[574,{"$f":"_xll.RiskData('Risk Summary'!J$48,$A581)/1000","v":{"$error":"#NAME?"}},{"$f":"_xll.RiskData('Risk Summary'!K$48,$A581)/1000","v":{"$error":"#NAME?"}},{"$f":"_xll.RiskData('Risk Summary'!L$48,$A581)/1000","v":{"$error":"#NAME?"}},null,null,{"$f":"(_xll.RiskData(NR_to_Cash!C$18,$A581))/1000","v":{"$error":"#NAME?"}},{"$f":"(_xll.RiskData(NR_to_Cash!D$18,$A581))/1000","v":{"$error":"#NAME?"}},{"$f":"(_xll.RiskData(NR_to_Cash!E$18,$A581))/1000","v":{"$error":"#NAME?"}}]
[575,{"$f":"_xll.RiskData('Risk Summary'!J$48,$A582)/1000","v":{"$error":"#NAME?"}},{"$f":"_xll.RiskData('Risk Summary'!K$48,$A582)/1000","v":{"$error":"#NAME?"}},{"$f":"_xll.RiskData('Risk Summary'!L$48,$A582)/1000","v":{"$error":"#NAME?"}},null,null,{"$f":"(_xll.RiskData(NR_to_Cash!C$18,$A582))/1000","v":{"$error":"#NAME?"}},{"$f":"(_xll.RiskData(NR_to_Cash!D$18,$A582))/1000","v":{"$error":"#NAME?"}},{"$f":"(_xll.RiskData(NR_to_Cash!E$18,$A582))/1000","v":{"$error":"#NAME?"}}]
[576,{"$f":"_xll.RiskData('Risk Summary'!J$48,$A583)/1000","v":{"$error":"#NAME?"}},{"$f":"_xll.RiskData('Risk Summary'!K$48,$A583)/1000","v":{"$error":"#NAME?"}},{"$f":"_xll.RiskData('Risk Summary'!L$48,$A583)/1000","v":{"$error":"#NAME?"}},null,null,{"$f":"(_xll.RiskData(NR_to_Cash!C$18,$A583))/1000","v":{"$error":"#NAME?"}},{"$f":"(_xll.RiskData(NR_to_Cash!D$18,$A583))/1000","v":{"$error":"#NAME?"}},{"$f":"(_xll.RiskData(NR_to_Cash!E$18,$A583))/1000","v":{"$error":"#NAME?"}}]
[577,{"$f":"_xll.RiskData('Risk Summary'!J$48,$A584)/1000","v":{"$error":"#NAME?"}},{"$f":"_xll.RiskData('Risk Summary'!K$48,$A584)/1000","v":{"$error":"#NAME?"}},{"$f":"_xll.RiskData('Risk Summary'!L$48,$A584)/1000","v":{"$error":"#NAME?"}},null,null,{"$f":"(_xll.RiskData(NR_to_Cash!C$18,$A584))/1000","v":{"$error":"#NAME?"}},{"$f":"(_xll.RiskData(NR_to_Cash!D$18,$A584))/1000","v":{"$error":"#NAME?"}},{"$f":"(_xll.RiskData(NR_to_Cash!E$18,$A584))/1000","v":{"$error":"#NAME?"}}]
[578,{"$f":"_xll.RiskData('Risk Summary'!J$48,$A585)/1000","v":{"$error":"#NAME?"}},{"$f":"_xll.RiskData('Risk Summary'!K$48,$A585)/1000","v":{"$error":"#NAME?"}},{"$f":"_xll.RiskData('Risk Summary'!L$48,$A585)/1000","v":{"$error":"#NAME?"}},null,null,{"$f":"(_xll.RiskData(NR_to_Cash!C$18,$A585))/1000","v":{"$error":"#NAME?"}},{"$f":"(_xll.RiskData(NR_to_Cash!D$18,$A585))/1000","v":{"$error":"#NAME?"}},{"$f":"(_xll.RiskData(NR_to_Cash!E$18,$A585))/1000","v":{"$error":"#NAME?"}}]
[579,{"$f":"_xll.RiskData('Risk Summary'!J$48,$A586)/1000","v":{"$error":"#NAME?"}},{"$f":"_xll.RiskData('Risk Summary'!K$48,$A586)/1000","v":{"$error":"#NAME?"}},{"$f":"_xll.RiskData('Risk Summary'!L$48,$A586)/1000","v":{"$error":"#NAME?"}},null,null,{"$f":"(_xll.RiskData(NR_to_Cash!C$18,$A586))/1000","v":{"$error":"#NAME?"}},{"$f":"(_xll.RiskData(NR_to_Cash!D$18,$A586))/1000","v":{"$error":"#NAME?"}},{"$f":"(_xll.RiskData(NR_to_Cash!E$18,$A586))/1000","v":{"$error":"#NAME?"}}]
[580,{"$f":"_xll.RiskData('Risk Summary'!J$48,$A587)/1000","v":{"$error":"#NAME?"}},{"$f":"_xll.RiskData('Risk Summary'!K$48,$A587)/1000","v":{"$error":"#NAME?"}},{"$f":"_xll.RiskData('Risk Summary'!L$48,$A587)/1000","v":{"$error":"#NAME?"}},null,null,{"$f":"(_xll.RiskData(NR_to_Cash!C$18,$A587))/1000","v":{"$error":"#NAME?"}},{"$f":"(_xll.RiskData(NR_to_Cash!D$18,$A587))/1000","v":{"$error":"#NAME?"}},{"$f":"(_xll.RiskData(NR_to_Cash!E$18,$A587))/1000","v":{"$error":"#NAME?"}}]
[581,{"$f":"_xll.RiskData('Risk Summary'!J$48,$A588)/1000","v":{"$error":"#NAME?"}},{"$f":"_xll.RiskData('Risk Summary'!K$48,$A588)/1000","v":{"$error":"#NAME?"}},{"$f":"_xll.RiskData('Risk Summary'!L$48,$A588)/1000","v":{"$error":"#NAME?"}},null,null,{"$f":"(_xll.RiskData(NR_to_Cash!C$18,$A588))/1000","v":{"$error":"#NAME?"}},{"$f":"(_xll.RiskData(NR_to_Cash!D$18,$A588))/1000","v":{"$error":"#NAME?"}},{"$f":"(_xll.RiskData(NR_to_Cash!E$18,$A588))/1000","v":{"$error":"#NAME?"}}]
[582,{"$f":"_xll.RiskData('Risk Summary'!J$48,$A589)/1000","v":{"$error":"#NAME?"}},{"$f":"_xll.RiskData('Risk Summary'!K$48,$A589)/1000","v":{"$error":"#NAME?"}},{"$f":"_xll.RiskData('Risk Summary'!L$48,$A589)/1000","v":{"$error":"#NAME?"}},null,null,{"$f":"(_xll.RiskData(NR_to_Cash!C$18,$A589))/1000","v":{"$error":"#NAME?"}},{"$f":"(_xll.RiskData(NR_to_Cash!D$18,$A589))/1000","v":{"$error":"#NAME?"}},{"$f":"(_xll.RiskData(NR_to_Cash!E$18,$A589))/1000","v":{"$error":"#NAME?"}}]
[583,{"$f":"_xll.RiskData('Risk Summary'!J$48,$A590)/1000","v":{"$error":"#NAME?"}},{"$f":"_xll.RiskData('Risk Summary'!K$48,$A590)/1000","v":{"$error":"#NAME?"}},{"$f":"_xll.RiskData('Risk Summary'!L$48,$A590)/1000","v":{"$error":"#NAME?"}},null,null,{"$f":"(_xll.RiskData(NR_to_Cash!C$18,$A590))/1000","v":{"$error":"#NAME?"}},{"$f":"(_xll.RiskData(NR_to_Cash!D$18,$A590))/1000","v":{"$error":"#NAME?"}},{"$f":"(_xll.RiskData(NR_to_Cash!E$18,$A590))/1000","v":{"$error":"#NAME?"}}]
[584,{"$f":"_xll.RiskData('Risk Summary'!J$48,$A591)/1000","v":{"$error":"#NAME?"}},{"$f":"_xll.RiskData('Risk Summary'!K$48,$A591)/1000","v":{"$error":"#NAME?"}},{"$f":"_xll.RiskData('Risk Summary'!L$48,$A591)/1000","v":{"$error":"#NAME?"}},null,null,{"$f":"(_xll.RiskData(NR_to_Cash!C$18,$A591))/1000","v":{"$error":"#NAME?"}},{"$f":"(_xll.RiskData(NR_to_Cash!D$18,$A591))/1000","v":{"$error":"#NAME?"}},{"$f":"(_xll.RiskData(NR_to_Cash!E$18,$A591))/1000","v":{"$error":"#NAME?"}}]
[585,{"$f":"_xll.RiskData('Risk Summary'!J$48,$A592)/1000","v":{"$error":"#NAME?"}},{"$f":"_xll.RiskData('Risk Summary'!K$48,$A592)/1000","v":{"$error":"#NAME?"}},{"$f":"_xll.RiskData('Risk Summary'!L$48,$A592)/1000","v":{"$error":"#NAME?"}},null,null,{"$f":"(_xll.RiskData(NR_to_Cash!C$18,$A592))/1000","v":{"$error":"#NAME?"}},{"$f":"(_xll.RiskData(NR_to_Cash!D$18,$A592))/1000","v":{"$error":"#NAME?"}},{"$f":"(_xll.RiskData(NR_to_Cash!E$18,$A592))/1000","v":{"$error":"#NAME?"}}]
[586,{"$f":"_xll.RiskData('Risk Summary'!J$48,$A593)/1000","v":{"$error":"#NAME?"}},{"$f":"_xll.RiskData('Risk Summary'!K$48,$A593)/1000","v":{"$error":"#NAME?"}},{"$f":"_xll.RiskData('Risk Summary'!L$48,$A593)/1000","v":{"$error":"#NAME?"}},null,null,{"$f":"(_xll.RiskData(NR_to_Cash!C$18,$A593))/1000","v":{"$error":"#NAME?"}},{"$f":"(_xll.RiskData(NR_to_Cash!D$18,$A593))/1000","v":{"$error":"#NAME?"}},{"$f":"(_xll.RiskData(NR_to_Cash!E$18,$A593))/1000","v":{"$error":"#NAME?"}}]
[587,{"$f":"_xll.RiskData('Risk Summary'!J$48,$A594)/1000","v":{"$error":"#NAME?"}},{"$f":"_xll.RiskData('Risk Summary'!K$48,$A594)/1000","v":{"$error":"#NAME?"}},{"$f":"_xll.RiskData('Risk Summary'!L$48,$A594)/1000","v":{"$error":"#NAME?"}},null,null,{"$f":"(_xll.RiskData(NR_to_Cash!C$18,$A594))/1000","v":{"$error":"#NAME?"}},{"$f":"(_xll.RiskData(NR_to_Cash!D$18,$A594))/1000","v":{"$error":"#NAME?"}},{"$f":"(_xll.RiskData(NR_to_Cash!E$18,$A594))/1000","v":{"$error":"#NAME?"}}]
[588,{"$f":"_xll.RiskData('Risk Summary'!J$48,$A595)/1000","v":{"$error":"#NAME?"}},{"$f":"_xll.RiskData('Risk Summary'!K$48,$A595)/1000","v":{"$error":"#NAME?"}},{"$f":"_xll.RiskData('Risk Summary'!L$48,$A595)/1000","v":{"$error":"#NAME?"}},null,null,{"$f":"(_xll.RiskData(NR_to_Cash!C$18,$A595))/1000","v":{"$error":"#NAME?"}},{"$f":"(_xll.RiskData(NR_to_Cash!D$18,$A595))/1000","v":{"$error":"#NAME?"}},{"$f":"(_xll.RiskData(NR_to_Cash!E$18,$A595))/1000","v":{"$error":"#NAME?"}}]
[589,{"$f":"_xll.RiskData('Risk Summary'!J$48,$A596)/1000","v":{"$error":"#NAME?"}},{"$f":"_xll.RiskData('Risk Summary'!K$48,$A596)/1000","v":{"$error":"#NAME?"}},{"$f":"_xll.RiskData('Risk Summary'!L$48,$A596)/1000","v":{"$error":"#NAME?"}},null,null,{"$f":"(_xll.RiskData(NR_to_Cash!C$18,$A596))/1000","v":{"$error":"#NAME?"}},{"$f":"(_xll.RiskData(NR_to_Cash!D$18,$A596))/1000","v":{"$error":"#NAME?"}},{"$f":"(_xll.RiskData(NR_to_Cash!E$18,$A596))/1000","v":{"$error":"#NAME?"}}]
[590,{"$f":"_xll.RiskData('Risk Summary'!J$48,$A597)/1000","v":{"$error":"#NAME?"}},{"$f":"_xll.RiskData('Risk Summary'!K$48,$A597)/1000","v":{"$error":"#NAME?"}},{"$f":"_xll.RiskData('Risk Summary'!L$48,$A597)/1000","v":{"$error":"#NAME?"}},null,null,{"$f":"(_xll.RiskData(NR_to_Cash!C$18,$A597))/1000","v":{"$error":"#NAME?"}},{"$f":"(_xll.RiskData(NR_to_Cash!D$18,$A597))/1000","v":{"$error":"#NAME?"}},{"$f":"(_xll.RiskData(NR_to_Cash!E$18,$A597))/1000","v":{"$error":"#NAME?"}}]
[591,{"$f":"_xll.RiskData('Risk Summary'!J$48,$A598)/1000","v":{"$error":"#NAME?"}},{"$f":"_xll.RiskData('Risk Summary'!K$48,$A598)/1000","v":{"$error":"#NAME?"}},{"$f":"_xll.RiskData('Risk Summary'!L$48,$A598)/1000","v":{"$error":"#NAME?"}},null,null,{"$f":"(_xll.RiskData(NR_to_Cash!C$18,$A598))/1000","v":{"$error":"#NAME?"}},{"$f":"(_xll.RiskData(NR_to_Cash!D$18,$A598))/1000","v":{"$error":"#NAME?"}},{"$f":"(_xll.RiskData(NR_to_Cash!E$18,$A598))/1000","v":{"$error":"#NAME?"}}]
[592,{"$f":"_xll.RiskData('Risk Summary'!J$48,$A599)/1000","v":{"$error":"#NAME?"}},{"$f":"_xll.RiskData('Risk Summary'!K$48,$A599)/1000","v":{"$error":"#NAME?"}},{"$f":"_xll.RiskData('Risk Summary'!L$48,$A599)/1000","v":{"$error":"#NAME?"}},null,null,{"$f":"(_xll.RiskData(NR_to_Cash!C$18,$A599))/1000","v":{"$error":"#NAME?"}},{"$f":"(_xll.RiskData(NR_to_Cash!D$18,$A599))/1000","v":{"$error":"#NAME?"}},{"$f":"(_xll.RiskData(NR_to_Cash!E$18,$A599))/1000","v":{"$error":"#NAME?"}}]
[593,{"$f":"_xll.RiskData('Risk Summary'!J$48,$A600)/1000","v":{"$error":"#NAME?"}},{"$f":"_xll.RiskData('Risk Summary'!K$48,$A600)/1000","v":{"$error":"#NAME?"}},{"$f":"_xll.RiskData('Risk Summary'!L$48,$A600)/1000","v":{"$error":"#NAME?"}},null,null,{"$f":"(_xll.RiskData(NR_to_Cash!C$18,$A600))/1000","v":{"$error":"#NAME?"}},{"$f":"(_xll.RiskData(NR_to_Cash!D$18,$A600))/1000","v":{"$error":"#NAME?"}},{"$f":"(_xll.RiskData(NR_to_Cash!E$18,$A600))/1000","v":{"$error":"#NAME?"}}]
[594,{"$f":"_xll.RiskData('Risk Summary'!J$48,$A601)/1000","v":{"$error":"#NAME?"}},{"$f":"_xll.RiskData('Risk Summary'!K$48,$A601)/1000","v":{"$error":"#NAME?"}},{"$f":"_xll.RiskData('Risk Summary'!L$48,$A601)/1000","v":{"$error":"#NAME?"}},null,null,{"$f":"(_xll.RiskData(NR_to_Cash!C$18,$A601))/1000","v":{"$error":"#NAME?"}},{"$f":"(_xll.RiskData(NR_to_Cash!D$18,$A601))/1000","v":{"$error":"#NAME?"}},{"$f":"(_xll.RiskData(NR_to_Cash!E$18,$A601))/1000","v":{"$error":"#NAME?"}}]
[595,{"$f":"_xll.RiskData('Risk Summary'!J$48,$A602)/1000","v":{"$error":"#NAME?"}},{"$f":"_xll.RiskData('Risk Summary'!K$48,$A602)/1000","v":{"$error":"#NAME?"}},{"$f":"_xll.RiskData('Risk Summary'!L$48,$A602)/1000","v":{"$error":"#NAME?"}},null,null,{"$f":"(_xll.RiskData(NR_to_Cash!C$18,$A602))/1000","v":{"$error":"#NAME?"}},{"$f":"(_xll.RiskData(NR_to_Cash!D$18,$A602))/1000","v":{"$error":"#NAME?"}},{"$f":"(_xll.RiskData(NR_to_Cash!E$18,$A602))/1000","v":{"$error":"#NAME?"}}]
[596,{"$f":"_xll.RiskData('Risk Summary'!J$48,$A603)/1000","v":{"$error":"#NAME?"}},{"$f":"_xll.RiskData('Risk Summary'!K$48,$A603)/1000","v":{"$error":"#NAME?"}},{"$f":"_xll.RiskData('Risk Summary'!L$48,$A603)/1000","v":{"$error":"#NAME?"}},null,null,{"$f":"(_xll.RiskData(NR_to_Cash!C$18,$A603))/1000","v":{"$error":"#NAME?"}},{"$f":"(_xll.RiskData(NR_to_Cash!D$18,$A603))/1000","v":{"$error":"#NAME?"}},{"$f":"(_xll.RiskData(NR_to_Cash!E$18,$A603))/1000","v":{"$error":"#NAME?"}}]
[597,{"$f":"_xll.RiskData('Risk Summary'!J$48,$A604)/1000","v":{"$error":"#NAME?"}},{"$f":"_xll.RiskData('Risk Summary'!K$48,$A604)/1000","v":{"$error":"#NAME?"}},{"$f":"_xll.RiskData('Risk Summary'!L$48,$A604)/1000","v":{"$error":"#NAME?"}},null,null,{"$f":"(_xll.RiskData(NR_to_Cash!C$18,$A604))/1000","v":{"$error":"#NAME?"}},{"$f":"(_xll.RiskData(NR_to_Cash!D$18,$A604))/1000","v":{"$error":"#NAME?"}},{"$f":"(_xll.RiskData(NR_to_Cash!E$18,$A604))/1000","v":{"$error":"#NAME?"}}]
[598,{"$f":"_xll.RiskData('Risk Summary'!J$48,$A605)/1000","v":{"$error":"#NAME?"}},{"$f":"_xll.RiskData('Risk Summary'!K$48,$A605)/1000","v":{"$error":"#NAME?"}},{"$f":"_xll.RiskData('Risk Summary'!L$48,$A605)/1000","v":{"$error":"#NAME?"}},null,null,{"$f":"(_xll.RiskData(NR_to_Cash!C$18,$A605))/1000","v":{"$error":"#NAME?"}},{"$f":"(_xll.RiskData(NR_to_Cash!D$18,$A605))/1000","v":{"$error":"#NAME?"}},{"$f":"(_xll.RiskData(NR_to_Cash!E$18,$A605))/1000","v":{"$error":"#NAME?"}}]
[599,{"$f":"_xll.RiskData('Risk Summary'!J$48,$A606)/1000","v":{"$error":"#NAME?"}},{"$f":"_xll.RiskData('Risk Summary'!K$48,$A606)/1000","v":{"$error":"#NAME?"}},{"$f":"_xll.RiskData('Risk Summary'!L$48,$A606)/1000","v":{"$error":"#NAME?"}},null,null,{"$f":"(_xll.RiskData(NR_to_Cash!C$18,$A606))/1000","v":{"$error":"#NAME?"}},{"$f":"(_xll.RiskData(NR_to_Cash!D$18,$A606))/1000","v":{"$error":"#NAME?"}},{"$f":"(_xll.RiskData(NR_to_Cash!E$18,$A606))/1000","v":{"$error":"#NAME?"}}]
[600,{"$f":"_xll.RiskData('Risk Summary'!J$48,$A607)/1000","v":{"$error":"#NAME?"}},{"$f":"_xll.RiskData('Risk Summary'!K$48,$A607)/1000","v":{"$error":"#NAME?"}},{"$f":"_xll.RiskData('Risk Summary'!L$48,$A607)/1000","v":{"$error":"#NAME?"}},null,null,{"$f":"(_xll.RiskData(NR_to_Cash!C$18,$A607))/1000","v":{"$error":"#NAME?"}},{"$f":"(_xll.RiskData(NR_to_Cash!D$18,$A607))/1000","v":{"$error":"#NAME?"}},{"$f":"(_xll.RiskData(NR_to_Cash!E$18,$A607))/1000","v":{"$error":"#NAME?"}}]
[601,{"$f":"_xll.RiskData('Risk Summary'!J$48,$A608)/1000","v":{"$error":"#NAME?"}},{"$f":"_xll.RiskData('Risk Summary'!K$48,$A608)/1000","v":{"$error":"#NAME?"}},{"$f":"_xll.RiskData('Risk Summary'!L$48,$A608)/1000","v":{"$error":"#NAME?"}},null,null,{"$f":"(_xll.RiskData(NR_to_Cash!C$18,$A608))/1000","v":{"$error":"#NAME?"}},{"$f":"(_xll.RiskData(NR_to_Cash!D$18,$A608))/1000","v":{"$error":"#NAME?"}},{"$f":"(_xll.RiskData(NR_to_Cash!E$18,$A608))/1000","v":{"$error":"#NAME?"}}]
[602,{"$f":"_xll.RiskData('Risk Summary'!J$48,$A609)/1000","v":{"$error":"#NAME?"}},{"$f":"_xll.RiskData('Risk Summary'!K$48,$A609)/1000","v":{"$error":"#NAME?"}},{"$f":"_xll.RiskData('Risk Summary'!L$48,$A609)/1000","v":{"$error":"#NAME?"}},null,null,{"$f":"(_xll.RiskData(NR_to_Cash!C$18,$A609))/1000","v":{"$error":"#NAME?"}},{"$f":"(_xll.RiskData(NR_to_Cash!D$18,$A609))/1000","v":{"$error":"#NAME?"}},{"$f":"(_xll.RiskData(NR_to_Cash!E$18,$A609))/1000","v":{"$error":"#NAME?"}}]
[603,{"$f":"_xll.RiskData('Risk Summary'!J$48,$A610)/1000","v":{"$error":"#NAME?"}},{"$f":"_xll.RiskData('Risk Summary'!K$48,$A610)/1000","v":{"$error":"#NAME?"}},{"$f":"_xll.RiskData('Risk Summary'!L$48,$A610)/1000","v":{"$error":"#NAME?"}},null,null,{"$f":"(_xll.RiskData(NR_to_Cash!C$18,$A610))/1000","v":{"$error":"#NAME?"}},{"$f":"(_xll.RiskData(NR_to_Cash!D$18,$A610))/1000","v":{"$error":"#NAME?"}},{"$f":"(_xll.RiskData(NR_to_Cash!E$18,$A610))/1000","v":{"$error":"#NAME?"}}]
[604,{"$f":"_xll.RiskData('Risk Summary'!J$48,$A611)/1000","v":{"$error":"#NAME?"}},{"$f":"_xll.RiskData('Risk Summary'!K$48,$A611)/1000","v":{"$error":"#NAME?"}},{"$f":"_xll.RiskData('Risk Summary'!L$48,$A611)/1000","v":{"$error":"#NAME?"}},null,null,{"$f":"(_xll.RiskData(NR_to_Cash!C$18,$A611))/1000","v":{"$error":"#NAME?"}},{"$f":"(_xll.RiskData(NR_to_Cash!D$18,$A611))/1000","v":{"$error":"#NAME?"}},{"$f":"(_xll.RiskData(NR_to_Cash!E$18,$A611))/1000","v":{"$error":"#NAME?"}}]
[605,{"$f":"_xll.RiskData('Risk Summary'!J$48,$A612)/1000","v":{"$error":"#NAME?"}},{"$f":"_xll.RiskData('Risk Summary'!K$48,$A612)/1000","v":{"$error":"#NAME?"}},{"$f":"_xll.RiskData('Risk Summary'!L$48,$A612)/1000","v":{"$error":"#NAME?"}},null,null,{"$f":"(_xll.RiskData(NR_to_Cash!C$18,$A612))/1000","v":{"$error":"#NAME?"}},{"$f":"(_xll.RiskData(NR_to_Cash!D$18,$A612))/1000","v":{"$error":"#NAME?"}},{"$f":"(_xll.RiskData(NR_to_Cash!E$18,$A612))/1000","v":{"$error":"#NAME?"}}]
[606,{"$f":"_xll.RiskData('Risk Summary'!J$48,$A613)/1000","v":{"$error":"#NAME?"}},{"$f":"_xll.RiskData('Risk Summary'!K$48,$A613)/1000","v":{"$error":"#NAME?"}},{"$f":"_xll.RiskData('Risk Summary'!L$48,$A613)/1000","v":{"$error":"#NAME?"}},null,null,{"$f":"(_xll.RiskData(NR_to_Cash!C$18,$A613))/1000","v":{"$error":"#NAME?"}},{"$f":"(_xll.RiskData(NR_to_Cash!D$18,$A613))/1000","v":{"$error":"#NAME?"}},{"$f":"(_xll.RiskData(NR_to_Cash!E$18,$A613))/1000","v":{"$error":"#NAME?"}}]
[607,{"$f":"_xll.RiskData('Risk Summary'!J$48,$A614)/1000","v":{"$error":"#NAME?"}},{"$f":"_xll.RiskData('Risk Summary'!K$48,$A614)/1000","v":{"$error":"#NAME?"}},{"$f":"_xll.RiskData('Risk Summary'!L$48,$A614)/1000","v":{"$error":"#NAME?"}},null,null,{"$f":"(_xll.RiskData(NR_to_Cash!C$18,$A614))/1000","v":{"$error":"#NAME?"}},{"$f":"(_xll.RiskData(NR_to_Cash!D$18,$A614))/1000","v":{"$error":"#NAME?"}},{"$f":"(_xll.RiskData(NR_to_Cash!E$18,$A614))/1000","v":{"$error":"#NAME?"}}]
[608,{"$f":"_xll.RiskData('Risk Summary'!J$48,$A615)/1000","v":{"$error":"#NAME?"}},{"$f":"_xll.RiskData('Risk Summary'!K$48,$A615)/1000","v":{"$error":"#NAME?"}},{"$f":"_xll.RiskData('Risk Summary'!L$48,$A615)/1000","v":{"$error":"#NAME?"}},null,null,{"$f":"(_xll.RiskData(NR_to_Cash!C$18,$A615))/1000","v":{"$error":"#NAME?"}},{"$f":"(_xll.RiskData(NR_to_Cash!D$18,$A615))/1000","v":{"$error":"#NAME?"}},{"$f":"(_xll.RiskData(NR_to_Cash!E$18,$A615))/1000","v":{"$error":"#NAME?"}}]
[609,{"$f":"_xll.RiskData('Risk Summary'!J$48,$A616)/1000","v":{"$error":"#NAME?"}},{"$f":"_xll.RiskData('Risk Summary'!K$48,$A616)/1000","v":{"$error":"#NAME?"}},{"$f":"_xll.RiskData('Risk Summary'!L$48,$A616)/1000","v":{"$error":"#NAME?"}},null,null,{"$f":"(_xll.RiskData(NR_to_Cash!C$18,$A616))/1000","v":{"$error":"#NAME?"}},{"$f":"(_xll.RiskData(NR_to_Cash!D$18,$A616))/1000","v":{"$error":"#NAME?"}},{"$f":"(_xll.RiskData(NR_to_Cash!E$18,$A616))/1000","v":{"$error":"#NAME?"}}]
[610,{"$f":"_xll.RiskData('Risk Summary'!J$48,$A617)/1000","v":{"$error":"#NAME?"}},{"$f":"_xll.RiskData('Risk Summary'!K$48,$A617)/1000","v":{"$error":"#NAME?"}},{"$f":"_xll.RiskData('Risk Summary'!L$48,$A617)/1000","v":{"$error":"#NAME?"}},null,null,{"$f":"(_xll.RiskData(NR_to_Cash!C$18,$A617))/1000","v":{"$error":"#NAME?"}},{"$f":"(_xll.RiskData(NR_to_Cash!D$18,$A617))/1000","v":{"$error":"#NAME?"}},{"$f":"(_xll.RiskData(NR_to_Cash!E$18,$A617))/1000","v":{"$error":"#NAME?"}}]
[611,{"$f":"_xll.RiskData('Risk Summary'!J$48,$A618)/1000","v":{"$error":"#NAME?"}},{"$f":"_xll.RiskData('Risk Summary'!K$48,$A618)/1000","v":{"$error":"#NAME?"}},{"$f":"_xll.RiskData('Risk Summary'!L$48,$A618)/1000","v":{"$error":"#NAME?"}},null,null,{"$f":"(_xll.RiskData(NR_to_Cash!C$18,$A618))/1000","v":{"$error":"#NAME?"}},{"$f":"(_xll.RiskData(NR_to_Cash!D$18,$A618))/1000","v":{"$error":"#NAME?"}},{"$f":"(_xll.RiskData(NR_to_Cash!E$18,$A618))/1000","v":{"$error":"#NAME?"}}]
[612,{"$f":"_xll.RiskData('Risk Summary'!J$48,$A619)/1000","v":{"$error":"#NAME?"}},{"$f":"_xll.RiskData('Risk Summary'!K$48,$A619)/1000","v":{"$error":"#NAME?"}},{"$f":"_xll.RiskData('Risk Summary'!L$48,$A619)/1000","v":{"$error":"#NAME?"}},null,null,{"$f":"(_xll.RiskData(NR_to_Cash!C$18,$A619))/1000","v":{"$error":"#NAME?"}},{"$f":"(_xll.RiskData(NR_to_Cash!D$18,$A619))/1000","v":{"$error":"#NAME?"}},{"$f":"(_xll.RiskData(NR_to_Cash!E$18,$A619))/1000","v":{"$error":"#NAME?"}}]
[613,{"$f":"_xll.RiskData('Risk Summary'!J$48,$A620)/1000","v":{"$error":"#NAME?"}},{"$f":"_xll.RiskData('Risk Summary'!K$48,$A620)/1000","v":{"$error":"#NAME?"}},{"$f":"_xll.RiskData('Risk Summary'!L$48,$A620)/1000","v":{"$error":"#NAME?"}},null,null,{"$f":"(_xll.RiskData(NR_to_Cash!C$18,$A620))/1000","v":{"$error":"#NAME?"}},{"$f":"(_xll.RiskData(NR_to_Cash!D$18,$A620))/1000","v":{"$error":"#NAME?"}},{"$f":"(_xll.RiskData(NR_to_Cash!E$18,$A620))/1000","v":{"$error":"#NAME?"}}]
[614,{"$f":"_xll.RiskData('Risk Summary'!J$48,$A621)/1000","v":{"$error":"#NAME?"}},{"$f":"_xll.RiskData('Risk Summary'!K$48,$A621)/1000","v":{"$error":"#NAME?"}},{"$f":"_xll.RiskData('Risk Summary'!L$48,$A621)/1000","v":{"$error":"#NAME?"}},null,null,{"$f":"(_xll.RiskData(NR_to_Cash!C$18,$A621))/1000","v":{"$error":"#NAME?"}},{"$f":"(_xll.RiskData(NR_to_Cash!D$18,$A621))/1000","v":{"$error":"#NAME?"}},{"$f":"(_xll.RiskData(NR_to_Cash!E$18,$A621))/1000","v":{"$error":"#NAME?"}}]
[615,{"$f":"_xll.RiskData('Risk Summary'!J$48,$A622)/1000","v":{"$error":"#NAME?"}},{"$f":"_xll.RiskData('Risk Summary'!K$48,$A622)/1000","v":{"$error":"#NAME?"}},{"$f":"_xll.RiskData('Risk Summary'!L$48,$A622)/1000","v":{"$error":"#NAME?"}},null,null,{"$f":"(_xll.RiskData(NR_to_Cash!C$18,$A622))/1000","v":{"$error":"#NAME?"}},{"$f":"(_xll.RiskData(NR_to_Cash!D$18,$A622))/1000","v":{"$error":"#NAME?"}},{"$f":"(_xll.RiskData(NR_to_Cash!E$18,$A622))/1000","v":{"$error":"#NAME?"}}]
[616,{"$f":"_xll.RiskData('Risk Summary'!J$48,$A623)/1000","v":{"$error":"#NAME?"}},{"$f":"_xll.RiskData('Risk Summary'!K$48,$A623)/1000","v":{"$error":"#NAME?"}},{"$f":"_xll.RiskData('Risk Summary'!L$48,$A623)/1000","v":{"$error":"#NAME?"}},null,null,{"$f":"(_xll.RiskData(NR_to_Cash!C$18,$A623))/1000","v":{"$error":"#NAME?"}},{"$f":"(_xll.RiskData(NR_to_Cash!D$18,$A623))/1000","v":{"$error":"#NAME?"}},{"$f":"(_xll.RiskData(NR_to_Cash!E$18,$A623))/1000","v":{"$error":"#NAME?"}}]
[617,{"$f":"_xll.RiskData('Risk Summary'!J$48,$A624)/1000","v":{"$error":"#NAME?"}},{"$f":"_xll.RiskData('Risk Summary'!K$48,$A624)/1000","v":{"$error":"#NAME?"}},{"$f":"_xll.RiskData('Risk Summary'!L$48,$A624)/1000","v":{"$error":"#NAME?"}},null,null,{"$f":"(_xll.RiskData(NR_to_Cash!C$18,$A624))/1000","v":{"$error":"#NAME?"}},{"$f":"(_xll.RiskData(NR_to_Cash!D$18,$A624))/1000","v":{"$error":"#NAME?"}},{"$f":"(_xll.RiskData(NR_to_Cash!E$18,$A624))/1000","v":{"$error":"#NAME?"}}]
[618,{"$f":"_xll.RiskData('Risk Summary'!J$48,$A625)/1000","v":{"$error":"#NAME?"}},{"$f":"_xll.RiskData('Risk Summary'!K$48,$A625)/1000","v":{"$error":"#NAME?"}},{"$f":"_xll.RiskData('Risk Summary'!L$48,$A625)/1000","v":{"$error":"#NAME?"}},null,null,{"$f":"(_xll.RiskData(NR_to_Cash!C$18,$A625))/1000","v":{"$error":"#NAME?"}},{"$f":"(_xll.RiskData(NR_to_Cash!D$18,$A625))/1000","v":{"$error":"#NAME?"}},{"$f":"(_xll.RiskData(NR_to_Cash!E$18,$A625))/1000","v":{"$error":"#NAME?"}}]
[619,{"$f":"_xll.RiskData('Risk Summary'!J$48,$A626)/1000","v":{"$error":"#NAME?"}},{"$f":"_xll.RiskData('Risk Summary'!K$48,$A626)/1000","v":{"$error":"#NAME?"}},{"$f":"_xll.RiskData('Risk Summary'!L$48,$A626)/1000","v":{"$error":"#NAME?"}},null,null,{"$f":"(_xll.RiskData(NR_to_Cash!C$18,$A626))/1000","v":{"$error":"#NAME?"}},{"$f":"(_xll.RiskData(NR_to_Cash!D$18,$A626))/1000","v":{"$error":"#NAME?"}},{"$f":"(_xll.RiskData(NR_to_Cash!E$18,$A626))/1000","v":{"$error":"#NAME?"}}]
[620,{"$f":"_xll.RiskData('Risk Summary'!J$48,$A627)/1000","v":{"$error":"#NAME?"}},{"$f":"_xll.RiskData('Risk Summary'!K$48,$A627)/1000","v":{"$error":"#NAME?"}},{"$f":"_xll.RiskData('Risk Summary'!L$48,$A627)/1000","v":{"$error":"#NAME?"}},null,null,{"$f":"(_xll.RiskData(NR_to_Cash!C$18,$A627))/1000","v":{"$error":"#NAME?"}},{"$f":"(_xll.RiskData(NR_to_Cash!D$18,$A627))/1000","v":{"$error":"#NAME?"}},{"$f":"(_xll.RiskData(NR_to_Cash!E$18,$A627))/1000","v":{"$error":"#NAME?"}}]
[621,{"$f":"_xll.RiskData('Risk Summary'!J$48,$A628)/1000","v":{"$error":"#NAME?"}},{"$f":"_xll.RiskData('Risk Summary'!K$48,$A628)/1000","v":{"$error":"#NAME?"}},{"$f":"_xll.RiskData('Risk Summary'!L$48,$A628)/1000","v":{"$error":"#NAME?"}},null,null,{"$f":"(_xll.RiskData(NR_to_Cash!C$18,$A628))/1000","v":{"$error":"#NAME?"}},{"$f":"(_xll.RiskData(NR_to_Cash!D$18,$A628))/1000","v":{"$error":"#NAME?"}},{"$f":"(_xll.RiskData(NR_to_Cash!E$18,$A628))/1000","v":{"$error":"#NAME?"}}]
[622,{"$f":"_xll.RiskData('Risk Summary'!J$48,$A629)/1000","v":{"$error":"#NAME?"}},{"$f":"_xll.RiskData('Risk Summary'!K$48,$A629)/1000","v":{"$error":"#NAME?"}},{"$f":"_xll.RiskData('Risk Summary'!L$48,$A629)/1000","v":{"$error":"#NAME?"}},null,null,{"$f":"(_xll.RiskData(NR_to_Cash!C$18,$A629))/1000","v":{"$error":"#NAME?"}},{"$f":"(_xll.RiskData(NR_to_Cash!D$18,$A629))/1000","v":{"$error":"#NAME?"}},{"$f":"(_xll.RiskData(NR_to_Cash!E$18,$A629))/1000","v":{"$error":"#NAME?"}}]
[623,{"$f":"_xll.RiskData('Risk Summary'!J$48,$A630)/1000","v":{"$error":"#NAME?"}},{"$f":"_xll.RiskData('Risk Summary'!K$48,$A630)/1000","v":{"$error":"#NAME?"}},{"$f":"_xll.RiskData('Risk Summary'!L$48,$A630)/1000","v":{"$error":"#NAME?"}},null,null,{"$f":"(_xll.RiskData(NR_to_Cash!C$18,$A630))/1000","v":{"$error":"#NAME?"}},{"$f":"(_xll.RiskData(NR_to_Cash!D$18,$A630))/1000","v":{"$error":"#NAME?"}},{"$f":"(_xll.RiskData(NR_to_Cash!E$18,$A630))/1000","v":{"$error":"#NAME?"}}]
[624,{"$f":"_xll.RiskData('Risk Summary'!J$48,$A631)/1000","v":{"$error":"#NAME?"}},{"$f":"_xll.RiskData('Risk Summary'!K$48,$A631)/1000","v":{"$error":"#NAME?"}},{"$f":"_xll.RiskData('Risk Summary'!L$48,$A631)/1000","v":{"$error":"#NAME?"}},null,null,{"$f":"(_xll.RiskData(NR_to_Cash!C$18,$A631))/1000","v":{"$error":"#NAME?"}},{"$f":"(_xll.RiskData(NR_to_Cash!D$18,$A631))/1000","v":{"$error":"#NAME?"}},{"$f":"(_xll.RiskData(NR_to_Cash!E$18,$A631))/1000","v":{"$error":"#NAME?"}}]
[625,{"$f":"_xll.RiskData('Risk Summary'!J$48,$A632)/1000","v":{"$error":"#NAME?"}},{"$f":"_xll.RiskData('Risk Summary'!K$48,$A632)/1000","v":{"$error":"#NAME?"}},{"$f":"_xll.RiskData('Risk Summary'!L$48,$A632)/1000","v":{"$error":"#NAME?"}},null,null,{"$f":"(_xll.RiskData(NR_to_Cash!C$18,$A632))/1000","v":{"$error":"#NAME?"}},{"$f":"(_xll.RiskData(NR_to_Cash!D$18,$A632))/1000","v":{"$error":"#NAME?"}},{"$f":"(_xll.RiskData(NR_to_Cash!E$18,$A632))/1000","v":{"$error":"#NAME?"}}]
[626,{"$f":"_xll.RiskData('Risk Summary'!J$48,$A633)/1000","v":{"$error":"#NAME?"}},{"$f":"_xll.RiskData('Risk Summary'!K$48,$A633)/1000","v":{"$error":"#NAME?"}},{"$f":"_xll.RiskData('Risk Summary'!L$48,$A633)/1000","v":{"$error":"#NAME?"}},null,null,{"$f":"(_xll.RiskData(NR_to_Cash!C$18,$A633))/1000","v":{"$error":"#NAME?"}},{"$f":"(_xll.RiskData(NR_to_Cash!D$18,$A633))/1000","v":{"$error":"#NAME?"}},{"$f":"(_xll.RiskData(NR_to_Cash!E$18,$A633))/1000","v":{"$error":"#NAME?"}}]
[627,{"$f":"_xll.RiskData('Risk Summary'!J$48,$A634)/1000","v":{"$error":"#NAME?"}},{"$f":"_xll.RiskData('Risk Summary'!K$48,$A634)/1000","v":{"$error":"#NAME?"}},{"$f":"_xll.RiskData('Risk Summary'!L$48,$A634)/1000","v":{"$error":"#NAME?"}},null,null,{"$f":"(_xll.RiskData(NR_to_Cash!C$18,$A634))/1000","v":{"$error":"#NAME?"}},{"$f":"(_xll.RiskData(NR_to_Cash!D$18,$A634))/1000","v":{"$error":"#NAME?"}},{"$f":"(_xll.RiskData(NR_to_Cash!E$18,$A634))/1000","v":{"$error":"#NAME?"}}]
[628,{"$f":"_xll.RiskData('Risk Summary'!J$48,$A635)/1000","v":{"$error":"#NAME?"}},{"$f":"_xll.RiskData('Risk Summary'!K$48,$A635)/1000","v":{"$error":"#NAME?"}},{"$f":"_xll.RiskData('Risk Summary'!L$48,$A635)/1000","v":{"$error":"#NAME?"}},null,null,{"$f":"(_xll.RiskData(NR_to_Cash!C$18,$A635))/1000","v":{"$error":"#NAME?"}},{"$f":"(_xll.RiskData(NR_to_Cash!D$18,$A635))/1000","v":{"$error":"#NAME?"}},{"$f":"(_xll.RiskData(NR_to_Cash!E$18,$A635))/1000","v":{"$error":"#NAME?"}}]
[629,{"$f":"_xll.RiskData('Risk Summary'!J$48,$A636)/1000","v":{"$error":"#NAME?"}},{"$f":"_xll.RiskData('Risk Summary'!K$48,$A636)/1000","v":{"$error":"#NAME?"}},{"$f":"_xll.RiskData('Risk Summary'!L$48,$A636)/1000","v":{"$error":"#NAME?"}},null,null,{"$f":"(_xll.RiskData(NR_to_Cash!C$18,$A636))/1000","v":{"$error":"#NAME?"}},{"$f":"(_xll.RiskData(NR_to_Cash!D$18,$A636))/1000","v":{"$error":"#NAME?"}},{"$f":"(_xll.RiskData(NR_to_Cash!E$18,$A636))/1000","v":{"$error":"#NAME?"}}]
[630,{"$f":"_xll.RiskData('Risk Summary'!J$48,$A637)/1000","v":{"$error":"#NAME?"}},{"$f":"_xll.RiskData('Risk Summary'!K$48,$A637)/1000","v":{"$error":"#NAME?"}},{"$f":"_xll.RiskData('Risk Summary'!L$48,$A637)/1000","v":{"$error":"#NAME?"}},null,null,{"$f":"(_xll.RiskData(NR_to_Cash!C$18,$A637))/1000","v":{"$error":"#NAME?"}},{"$f":"(_xll.RiskData(NR_to_Cash!D$18,$A637))/1000","v":{"$error":"#NAME?"}},{"$f":"(_xll.RiskData(NR_to_Cash!E$18,$A637))/1000","v":{"$error":"#NAME?"}}]
[631,{"$f":"_xll.RiskData('Risk Summary'!J$48,$A638)/1000","v":{"$error":"#NAME?"}},{"$f":"_xll.RiskData('Risk Summary'!K$48,$A638)/1000","v":{"$error":"#NAME?"}},{"$f":"_xll.RiskData('Risk Summary'!L$48,$A638)/1000","v":{"$error":"#NAME?"}},null,null,{"$f":"(_xll.RiskData(NR_to_Cash!C$18,$A638))/1000","v":{"$error":"#NAME?"}},{"$f":"(_xll.RiskData(NR_to_Cash!D$18,$A638))/1000","v":{"$error":"#NAME?"}},{"$f":"(_xll.RiskData(NR_to_Cash!E$18,$A638))/1000","v":{"$error":"#NAME?"}}]
[632,{"$f":"_xll.RiskData('Risk Summary'!J$48,$A639)/1000","v":{"$error":"#NAME?"}},{"$f":"_xll.RiskData('Risk Summary'!K$48,$A639)/1000","v":{"$error":"#NAME?"}},{"$f":"_xll.RiskData('Risk Summary'!L$48,$A639)/1000","v":{"$error":"#NAME?"}},null,null,{"$f":"(_xll.RiskData(NR_to_Cash!C$18,$A639))/1000","v":{"$error":"#NAME?"}},{"$f":"(_xll.RiskData(NR_to_Cash!D$18,$A639))/1000","v":{"$error":"#NAME?"}},{"$f":"(_xll.RiskData(NR_to_Cash!E$18,$A639))/1000","v":{"$error":"#NAME?"}}]
[633,{"$f":"_xll.RiskData('Risk Summary'!J$48,$A640)/1000","v":{"$error":"#NAME?"}},{"$f":"_xll.RiskData('Risk Summary'!K$48,$A640)/1000","v":{"$error":"#NAME?"}},{"$f":"_xll.RiskData('Risk Summary'!L$48,$A640)/1000","v":{"$error":"#NAME?"}},null,null,{"$f":"(_xll.RiskData(NR_to_Cash!C$18,$A640))/1000","v":{"$error":"#NAME?"}},{"$f":"(_xll.RiskData(NR_to_Cash!D$18,$A640))/1000","v":{"$error":"#NAME?"}},{"$f":"(_xll.RiskData(NR_to_Cash!E$18,$A640))/1000","v":{"$error":"#NAME?"}}]
[634,{"$f":"_xll.RiskData('Risk Summary'!J$48,$A641)/1000","v":{"$error":"#NAME?"}},{"$f":"_xll.RiskData('Risk Summary'!K$48,$A641)/1000","v":{"$error":"#NAME?"}},{"$f":"_xll.RiskData('Risk Summary'!L$48,$A641)/1000","v":{"$error":"#NAME?"}},null,null,{"$f":"(_xll.RiskData(NR_to_Cash!C$18,$A641))/1000","v":{"$error":"#NAME?"}},{"$f":"(_xll.RiskData(NR_to_Cash!D$18,$A641))/1000","v":{"$error":"#NAME?"}},{"$f":"(_xll.RiskData(NR_to_Cash!E$18,$A641))/1000","v":{"$error":"#NAME?"}}]
[635,{"$f":"_xll.RiskData('Risk Summary'!J$48,$A642)/1000","v":{"$error":"#NAME?"}},{"$f":"_xll.RiskData('Risk Summary'!K$48,$A642)/1000","v":{"$error":"#NAME?"}},{"$f":"_xll.RiskData('Risk Summary'!L$48,$A642)/1000","v":{"$error":"#NAME?"}},null,null,{"$f":"(_xll.RiskData(NR_to_Cash!C$18,$A642))/1000","v":{"$error":"#NAME?"}},{"$f":"(_xll.RiskData(NR_to_Cash!D$18,$A642))/1000","v":{"$error":"#NAME?"}},{"$f":"(_xll.RiskData(NR_to_Cash!E$18,$A642))/1000","v":{"$error":"#NAME?"}}]
[636,{"$f":"_xll.RiskData('Risk Summary'!J$48,$A643)/1000","v":{"$error":"#NAME?"}},{"$f":"_xll.RiskData('Risk Summary'!K$48,$A643)/1000","v":{"$error":"#NAME?"}},{"$f":"_xll.RiskData('Risk Summary'!L$48,$A643)/1000","v":{"$error":"#NAME?"}},null,null,{"$f":"(_xll.RiskData(NR_to_Cash!C$18,$A643))/1000","v":{"$error":"#NAME?"}},{"$f":"(_xll.RiskData(NR_to_Cash!D$18,$A643))/1000","v":{"$error":"#NAME?"}},{"$f":"(_xll.RiskData(NR_to_Cash!E$18,$A643))/1000","v":{"$error":"#NAME?"}}]
[637,{"$f":"_xll.RiskData('Risk Summary'!J$48,$A644)/1000","v":{"$error":"#NAME?"}},{"$f":"_xll.RiskData('Risk Summary'!K$48,$A644)/1000","v":{"$error":"#NAME?"}},{"$f":"_xll.RiskData('Risk Summary'!L$48,$A644)/1000","v":{"$error":"#NAME?"}},null,null,{"$f":"(_xll.RiskData(NR_to_Cash!C$18,$A644))/1000","v":{"$error":"#NAME?"}},{"$f":"(_xll.RiskData(NR_to_Cash!D$18,$A644))/1000","v":{"$error":"#NAME?"}},{"$f":"(_xll.RiskData(NR_to_Cash!E$18,$A644))/1000","v":{"$error":"#NAME?"}}]
[638,{"$f":"_xll.RiskData('Risk Summary'!J$48,$A645)/1000","v":{"$error":"#NAME?"}},{"$f":"_xll.RiskData('Risk Summary'!K$48,$A645)/1000","v":{"$error":"#NAME?"}},{"$f":"_xll.RiskData('Risk Summary'!L$48,$A645)/1000","v":{"$error":"#NAME?"}},null,null,{"$f":"(_xll.RiskData(NR_to_Cash!C$18,$A645))/1000","v":{"$error":"#NAME?"}},{"$f":"(_xll.RiskData(NR_to_Cash!D$18,$A645))/1000","v":{"$error":"#NAME?"}},{"$f":"(_xll.RiskData(NR_to_Cash!E$18,$A645))/1000","v":{"$error":"#NAME?"}}]
[639,{"$f":"_xll.RiskData('Risk Summary'!J$48,$A646)/1000","v":{"$error":"#NAME?"}},{"$f":"_xll.RiskData('Risk Summary'!K$48,$A646)/1000","v":{"$error":"#NAME?"}},{"$f":"_xll.RiskData('Risk Summary'!L$48,$A646)/1000","v":{"$error":"#NAME?"}},null,null,{"$f":"(_xll.RiskData(NR_to_Cash!C$18,$A646))/1000","v":{"$error":"#NAME?"}},{"$f":"(_xll.RiskData(NR_to_Cash!D$18,$A646))/1000","v":{"$error":"#NAME?"}},{"$f":"(_xll.RiskData(NR_to_Cash!E$18,$A646))/1000","v":{"$error":"#NAME?"}}]
[640,{"$f":"_xll.RiskData('Risk Summary'!J$48,$A647)/1000","v":{"$error":"#NAME?"}},{"$f":"_xll.RiskData('Risk Summary'!K$48,$A647)/1000","v":{"$error":"#NAME?"}},{"$f":"_xll.RiskData('Risk Summary'!L$48,$A647)/1000","v":{"$error":"#NAME?"}},null,null,{"$f":"(_xll.RiskData(NR_to_Cash!C$18,$A647))/1000","v":{"$error":"#NAME?"}},{"$f":"(_xll.RiskData(NR_to_Cash!D$18,$A647))/1000","v":{"$error":"#NAME?"}},{"$f":"(_xll.RiskData(NR_to_Cash!E$18,$A647))/1000","v":{"$error":"#NAME?"}}]
[641,{"$f":"_xll.RiskData('Risk Summary'!J$48,$A648)/1000","v":{"$error":"#NAME?"}},{"$f":"_xll.RiskData('Risk Summary'!K$48,$A648)/1000","v":{"$error":"#NAME?"}},{"$f":"_xll.RiskData('Risk Summary'!L$48,$A648)/1000","v":{"$error":"#NAME?"}},null,null,{"$f":"(_xll.RiskData(NR_to_Cash!C$18,$A648))/1000","v":{"$error":"#NAME?"}},{"$f":"(_xll.RiskData(NR_to_Cash!D$18,$A648))/1000","v":{"$error":"#NAME?"}},{"$f":"(_xll.RiskData(NR_to_Cash!E$18,$A648))/1000","v":{"$error":"#NAME?"}}]
[642,{"$f":"_xll.RiskData('Risk Summary'!J$48,$A649)/1000","v":{"$error":"#NAME?"}},{"$f":"_xll.RiskData('Risk Summary'!K$48,$A649)/1000","v":{"$error":"#NAME?"}},{"$f":"_xll.RiskData('Risk Summary'!L$48,$A649)/1000","v":{"$error":"#NAME?"}},null,null,{"$f":"(_xll.RiskData(NR_to_Cash!C$18,$A649))/1000","v":{"$error":"#NAME?"}},{"$f":"(_xll.RiskData(NR_to_Cash!D$18,$A649))/1000","v":{"$error":"#NAME?"}},{"$f":"(_xll.RiskData(NR_to_Cash!E$18,$A649))/1000","v":{"$error":"#NAME?"}}]
[643,{"$f":"_xll.RiskData('Risk Summary'!J$48,$A650)/1000","v":{"$error":"#NAME?"}},{"$f":"_xll.RiskData('Risk Summary'!K$48,$A650)/1000","v":{"$error":"#NAME?"}},{"$f":"_xll.RiskData('Risk Summary'!L$48,$A650)/1000","v":{"$error":"#NAME?"}},null,null,{"$f":"(_xll.RiskData(NR_to_Cash!C$18,$A650))/1000","v":{"$error":"#NAME?"}},{"$f":"(_xll.RiskData(NR_to_Cash!D$18,$A650))/1000","v":{"$error":"#NAME?"}},{"$f":"(_xll.RiskData(NR_to_Cash!E$18,$A650))/1000","v":{"$error":"#NAME?"}}]
[644,{"$f":"_xll.RiskData('Risk Summary'!J$48,$A651)/1000","v":{"$error":"#NAME?"}},{"$f":"_xll.RiskData('Risk Summary'!K$48,$A651)/1000","v":{"$error":"#NAME?"}},{"$f":"_xll.RiskData('Risk Summary'!L$48,$A651)/1000","v":{"$error":"#NAME?"}},null,null,{"$f":"(_xll.RiskData(NR_to_Cash!C$18,$A651))/1000","v":{"$error":"#NAME?"}},{"$f":"(_xll.RiskData(NR_to_Cash!D$18,$A651))/1000","v":{"$error":"#NAME?"}},{"$f":"(_xll.RiskData(NR_to_Cash!E$18,$A651))/1000","v":{"$error":"#NAME?"}}]
[645,{"$f":"_xll.RiskData('Risk Summary'!J$48,$A652)/1000","v":{"$error":"#NAME?"}},{"$f":"_xll.RiskData('Risk Summary'!K$48,$A652)/1000","v":{"$error":"#NAME?"}},{"$f":"_xll.RiskData('Risk Summary'!L$48,$A652)/1000","v":{"$error":"#NAME?"}},null,null,{"$f":"(_xll.RiskData(NR_to_Cash!C$18,$A652))/1000","v":{"$error":"#NAME?"}},{"$f":"(_xll.RiskData(NR_to_Cash!D$18,$A652))/1000","v":{"$error":"#NAME?"}},{"$f":"(_xll.RiskData(NR_to_Cash!E$18,$A652))/1000","v":{"$error":"#NAME?"}}]
[646,{"$f":"_xll.RiskData('Risk Summary'!J$48,$A653)/1000","v":{"$error":"#NAME?"}},{"$f":"_xll.RiskData('Risk Summary'!K$48,$A653)/1000","v":{"$error":"#NAME?"}},{"$f":"_xll.RiskData('Risk Summary'!L$48,$A653)/1000","v":{"$error":"#NAME?"}},null,null,{"$f":"(_xll.RiskData(NR_to_Cash!C$18,$A653))/1000","v":{"$error":"#NAME?"}},{"$f":"(_xll.RiskData(NR_to_Cash!D$18,$A653))/1000","v":{"$error":"#NAME?"}},{"$f":"(_xll.RiskData(NR_to_Cash!E$18,$A653))/1000","v":{"$error":"#NAME?"}}]
[647,{"$f":"_xll.RiskData('Risk Summary'!J$48,$A654)/1000","v":{"$error":"#NAME?"}},{"$f":"_xll.RiskData('Risk Summary'!K$48,$A654)/1000","v":{"$error":"#NAME?"}},{"$f":"_xll.RiskData('Risk Summary'!L$48,$A654)/1000","v":{"$error":"#NAME?"}},null,null,{"$f":"(_xll.RiskData(NR_to_Cash!C$18,$A654))/1000","v":{"$error":"#NAME?"}},{"$f":"(_xll.RiskData(NR_to_Cash!D$18,$A654))/1000","v":{"$error":"#NAME?"}},{"$f":"(_xll.RiskData(NR_to_Cash!E$18,$A654))/1000","v":{"$error":"#NAME?"}}]
[648,{"$f":"_xll.RiskData('Risk Summary'!J$48,$A655)/1000","v":{"$error":"#NAME?"}},{"$f":"_xll.RiskData('Risk Summary'!K$48,$A655)/1000","v":{"$error":"#NAME?"}},{"$f":"_xll.RiskData('Risk Summary'!L$48,$A655)/1000","v":{"$error":"#NAME?"}},null,null,{"$f":"(_xll.RiskData(NR_to_Cash!C$18,$A655))/1000","v":{"$error":"#NAME?"}},{"$f":"(_xll.RiskData(NR_to_Cash!D$18,$A655))/1000","v":{"$error":"#NAME?"}},{"$f":"(_xll.RiskData(NR_to_Cash!E$18,$A655))/1000","v":{"$error":"#NAME?"}}]
[649,{"$f":"_xll.RiskData('Risk Summary'!J$48,$A656)/1000","v":{"$error":"#NAME?"}},{"$f":"_xll.RiskData('Risk Summary'!K$48,$A656)/1000","v":{"$error":"#NAME?"}},{"$f":"_xll.RiskData('Risk Summary'!L$48,$A656)/1000","v":{"$error":"#NAME?"}},null,null,{"$f":"(_xll.RiskData(NR_to_Cash!C$18,$A656))/1000","v":{"$error":"#NAME?"}},{"$f":"(_xll.RiskData(NR_to_Cash!D$18,$A656))/1000","v":{"$error":"#NAME?"}},{"$f":"(_xll.RiskData(NR_to_Cash!E$18,$A656))/1000","v":{"$error":"#NAME?"}}]
[650,{"$f":"_xll.RiskData('Risk Summary'!J$48,$A657)/1000","v":{"$error":"#NAME?"}},{"$f":"_xll.RiskData('Risk Summary'!K$48,$A657)/1000","v":{"$error":"#NAME?"}},{"$f":"_xll.RiskData('Risk Summary'!L$48,$A657)/1000","v":{"$error":"#NAME?"}},null,null,{"$f":"(_xll.RiskData(NR_to_Cash!C$18,$A657))/1000","v":{"$error":"#NAME?"}},{"$f":"(_xll.RiskData(NR_to_Cash!D$18,$A657))/1000","v":{"$error":"#NAME?"}},{"$f":"(_xll.RiskData(NR_to_Cash!E$18,$A657))/1000","v":{"$error":"#NAME?"}}]
[651,{"$f":"_xll.RiskData('Risk Summary'!J$48,$A658)/1000","v":{"$error":"#NAME?"}},{"$f":"_xll.RiskData('Risk Summary'!K$48,$A658)/1000","v":{"$error":"#NAME?"}},{"$f":"_xll.RiskData('Risk Summary'!L$48,$A658)/1000","v":{"$error":"#NAME?"}},null,null,{"$f":"(_xll.RiskData(NR_to_Cash!C$18,$A658))/1000","v":{"$error":"#NAME?"}},{"$f":"(_xll.RiskData(NR_to_Cash!D$18,$A658))/1000","v":{"$error":"#NAME?"}},{"$f":"(_xll.RiskData(NR_to_Cash!E$18,$A658))/1000","v":{"$error":"#NAME?"}}]
[652,{"$f":"_xll.RiskData('Risk Summary'!J$48,$A659)/1000","v":{"$error":"#NAME?"}},{"$f":"_xll.RiskData('Risk Summary'!K$48,$A659)/1000","v":{"$error":"#NAME?"}},{"$f":"_xll.RiskData('Risk Summary'!L$48,$A659)/1000","v":{"$error":"#NAME?"}},null,null,{"$f":"(_xll.RiskData(NR_to_Cash!C$18,$A659))/1000","v":{"$error":"#NAME?"}},{"$f":"(_xll.RiskData(NR_to_Cash!D$18,$A659))/1000","v":{"$error":"#NAME?"}},{"$f":"(_xll.RiskData(NR_to_Cash!E$18,$A659))/1000","v":{"$error":"#NAME?"}}]
[653,{"$f":"_xll.RiskData('Risk Summary'!J$48,$A660)/1000","v":{"$error":"#NAME?"}},{"$f":"_xll.RiskData('Risk Summary'!K$48,$A660)/1000","v":{"$error":"#NAME?"}},{"$f":"_xll.RiskData('Risk Summary'!L$48,$A660)/1000","v":{"$error":"#NAME?"}},null,null,{"$f":"(_xll.RiskData(NR_to_Cash!C$18,$A660))/1000","v":{"$error":"#NAME?"}},{"$f":"(_xll.RiskData(NR_to_Cash!D$18,$A660))/1000","v":{"$error":"#NAME?"}},{"$f":"(_xll.RiskData(NR_to_Cash!E$18,$A660))/1000","v":{"$error":"#NAME?"}}]
[654,{"$f":"_xll.RiskData('Risk Summary'!J$48,$A661)/1000","v":{"$error":"#NAME?"}},{"$f":"_xll.RiskData('Risk Summary'!K$48,$A661)/1000","v":{"$error":"#NAME?"}},{"$f":"_xll.RiskData('Risk Summary'!L$48,$A661)/1000","v":{"$error":"#NAME?"}},null,null,{"$f":"(_xll.RiskData(NR_to_Cash!C$18,$A661))/1000","v":{"$error":"#NAME?"}},{"$f":"(_xll.RiskData(NR_to_Cash!D$18,$A661))/1000","v":{"$error":"#NAME?"}},{"$f":"(_xll.RiskData(NR_to_Cash!E$18,$A661))/1000","v":{"$error":"#NAME?"}}]
[655,{"$f":"_xll.RiskData('Risk Summary'!J$48,$A662)/1000","v":{"$error":"#NAME?"}},{"$f":"_xll.RiskData('Risk Summary'!K$48,$A662)/1000","v":{"$error":"#NAME?"}},{"$f":"_xll.RiskData('Risk Summary'!L$48,$A662)/1000","v":{"$error":"#NAME?"}},null,null,{"$f":"(_xll.RiskData(NR_to_Cash!C$18,$A662))/1000","v":{"$error":"#NAME?"}},{"$f":"(_xll.RiskData(NR_to_Cash!D$18,$A662))/1000","v":{"$error":"#NAME?"}},{"$f":"(_xll.RiskData(NR_to_Cash!E$18,$A662))/1000","v":{"$error":"#NAME?"}}]
[656,{"$f":"_xll.RiskData('Risk Summary'!J$48,$A663)/1000","v":{"$error":"#NAME?"}},{"$f":"_xll.RiskData('Risk Summary'!K$48,$A663)/1000","v":{"$error":"#NAME?"}},{"$f":"_xll.RiskData('Risk Summary'!L$48,$A663)/1000","v":{"$error":"#NAME?"}},null,null,{"$f":"(_xll.RiskData(NR_to_Cash!C$18,$A663))/1000","v":{"$error":"#NAME?"}},{"$f":"(_xll.RiskData(NR_to_Cash!D$18,$A663))/1000","v":{"$error":"#NAME?"}},{"$f":"(_xll.RiskData(NR_to_Cash!E$18,$A663))/1000","v":{"$error":"#NAME?"}}]
[657,{"$f":"_xll.RiskData('Risk Summary'!J$48,$A664)/1000","v":{"$error":"#NAME?"}},{"$f":"_xll.RiskData('Risk Summary'!K$48,$A664)/1000","v":{"$error":"#NAME?"}},{"$f":"_xll.RiskData('Risk Summary'!L$48,$A664)/1000","v":{"$error":"#NAME?"}},null,null,{"$f":"(_xll.RiskData(NR_to_Cash!C$18,$A664))/1000","v":{"$error":"#NAME?"}},{"$f":"(_xll.RiskData(NR_to_Cash!D$18,$A664))/1000","v":{"$error":"#NAME?"}},{"$f":"(_xll.RiskData(NR_to_Cash!E$18,$A664))/1000","v":{"$error":"#NAME?"}}]
[658,{"$f":"_xll.RiskData('Risk Summary'!J$48,$A665)/1000","v":{"$error":"#NAME?"}},{"$f":"_xll.RiskData('Risk Summary'!K$48,$A665)/1000","v":{"$error":"#NAME?"}},{"$f":"_xll.RiskData('Risk Summary'!L$48,$A665)/1000","v":{"$error":"#NAME?"}},null,null,{"$f":"(_xll.RiskData(NR_to_Cash!C$18,$A665))/1000","v":{"$error":"#NAME?"}},{"$f":"(_xll.RiskData(NR_to_Cash!D$18,$A665))/1000","v":{"$error":"#NAME?"}},{"$f":"(_xll.RiskData(NR_to_Cash!E$18,$A665))/1000","v":{"$error":"#NAME?"}}]
[659,{"$f":"_xll.RiskData('Risk Summary'!J$48,$A666)/1000","v":{"$error":"#NAME?"}},{"$f":"_xll.RiskData('Risk Summary'!K$48,$A666)/1000","v":{"$error":"#NAME?"}},{"$f":"_xll.RiskData('Risk Summary'!L$48,$A666)/1000","v":{"$error":"#NAME?"}},null,null,{"$f":"(_xll.RiskData(NR_to_Cash!C$18,$A666))/1000","v":{"$error":"#NAME?"}},{"$f":"(_xll.RiskData(NR_to_Cash!D$18,$A666))/1000","v":{"$error":"#NAME?"}},{"$f":"(_xll.RiskData(NR_to_Cash!E$18,$A666))/1000","v":{"$error":"#NAME?"}}]
[660,{"$f":"_xll.RiskData('Risk Summary'!J$48,$A667)/1000","v":{"$error":"#NAME?"}},{"$f":"_xll.RiskData('Risk Summary'!K$48,$A667)/1000","v":{"$error":"#NAME?"}},{"$f":"_xll.RiskData('Risk Summary'!L$48,$A667)/1000","v":{"$error":"#NAME?"}},null,null,{"$f":"(_xll.RiskData(NR_to_Cash!C$18,$A667))/1000","v":{"$error":"#NAME?"}},{"$f":"(_xll.RiskData(NR_to_Cash!D$18,$A667))/1000","v":{"$error":"#NAME?"}},{"$f":"(_xll.RiskData(NR_to_Cash!E$18,$A667))/1000","v":{"$error":"#NAME?"}}]
[661,{"$f":"_xll.RiskData('Risk Summary'!J$48,$A668)/1000","v":{"$error":"#NAME?"}},{"$f":"_xll.RiskData('Risk Summary'!K$48,$A668)/1000","v":{"$error":"#NAME?"}},{"$f":"_xll.RiskData('Risk Summary'!L$48,$A668)/1000","v":{"$error":"#NAME?"}},null,null,{"$f":"(_xll.RiskData(NR_to_Cash!C$18,$A668))/1000","v":{"$error":"#NAME?"}},{"$f":"(_xll.RiskData(NR_to_Cash!D$18,$A668))/1000","v":{"$error":"#NAME?"}},{"$f":"(_xll.RiskData(NR_to_Cash!E$18,$A668))/1000","v":{"$error":"#NAME?"}}]
[662,{"$f":"_xll.RiskData('Risk Summary'!J$48,$A669)/1000","v":{"$error":"#NAME?"}},{"$f":"_xll.RiskData('Risk Summary'!K$48,$A669)/1000","v":{"$error":"#NAME?"}},{"$f":"_xll.RiskData('Risk Summary'!L$48,$A669)/1000","v":{"$error":"#NAME?"}},null,null,{"$f":"(_xll.RiskData(NR_to_Cash!C$18,$A669))/1000","v":{"$error":"#NAME?"}},{"$f":"(_xll.RiskData(NR_to_Cash!D$18,$A669))/1000","v":{"$error":"#NAME?"}},{"$f":"(_xll.RiskData(NR_to_Cash!E$18,$A669))/1000","v":{"$error":"#NAME?"}}]
[663,{"$f":"_xll.RiskData('Risk Summary'!J$48,$A670)/1000","v":{"$error":"#NAME?"}},{"$f":"_xll.RiskData('Risk Summary'!K$48,$A670)/1000","v":{"$error":"#NAME?"}},{"$f":"_xll.RiskData('Risk Summary'!L$48,$A670)/1000","v":{"$error":"#NAME?"}},null,null,{"$f":"(_xll.RiskData(NR_to_Cash!C$18,$A670))/1000","v":{"$error":"#NAME?"}},{"$f":"(_xll.RiskData(NR_to_Cash!D$18,$A670))/1000","v":{"$error":"#NAME?"}},{"$f":"(_xll.RiskData(NR_to_Cash!E$18,$A670))/1000","v":{"$error":"#NAME?"}}]
[664,{"$f":"_xll.RiskData('Risk Summary'!J$48,$A671)/1000","v":{"$error":"#NAME?"}},{"$f":"_xll.RiskData('Risk Summary'!K$48,$A671)/1000","v":{"$error":"#NAME?"}},{"$f":"_xll.RiskData('Risk Summary'!L$48,$A671)/1000","v":{"$error":"#NAME?"}},null,null,{"$f":"(_xll.RiskData(NR_to_Cash!C$18,$A671))/1000","v":{"$error":"#NAME?"}},{"$f":"(_xll.RiskData(NR_to_Cash!D$18,$A671))/1000","v":{"$error":"#NAME?"}},{"$f":"(_xll.RiskData(NR_to_Cash!E$18,$A671))/1000","v":{"$error":"#NAME?"}}]
[665,{"$f":"_xll.RiskData('Risk Summary'!J$48,$A672)/1000","v":{"$error":"#NAME?"}},{"$f":"_xll.RiskData('Risk Summary'!K$48,$A672)/1000","v":{"$error":"#NAME?"}},{"$f":"_xll.RiskData('Risk Summary'!L$48,$A672)/1000","v":{"$error":"#NAME?"}},null,null,{"$f":"(_xll.RiskData(NR_to_Cash!C$18,$A672))/1000","v":{"$error":"#NAME?"}},{"$f":"(_xll.RiskData(NR_to_Cash!D$18,$A672))/1000","v":{"$error":"#NAME?"}},{"$f":"(_xll.RiskData(NR_to_Cash!E$18,$A672))/1000","v":{"$error":"#NAME?"}}]
[666,{"$f":"_xll.RiskData('Risk Summary'!J$48,$A673)/1000","v":{"$error":"#NAME?"}},{"$f":"_xll.RiskData('Risk Summary'!K$48,$A673)/1000","v":{"$error":"#NAME?"}},{"$f":"_xll.RiskData('Risk Summary'!L$48,$A673)/1000","v":{"$error":"#NAME?"}},null,null,{"$f":"(_xll.RiskData(NR_to_Cash!C$18,$A673))/1000","v":{"$error":"#NAME?"}},{"$f":"(_xll.RiskData(NR_to_Cash!D$18,$A673))/1000","v":{"$error":"#NAME?"}},{"$f":"(_xll.RiskData(NR_to_Cash!E$18,$A673))/1000","v":{"$error":"#NAME?"}}]
[667,{"$f":"_xll.RiskData('Risk Summary'!J$48,$A674)/1000","v":{"$error":"#NAME?"}},{"$f":"_xll.RiskData('Risk Summary'!K$48,$A674)/1000","v":{"$error":"#NAME?"}},{"$f":"_xll.RiskData('Risk Summary'!L$48,$A674)/1000","v":{"$error":"#NAME?"}},null,null,{"$f":"(_xll.RiskData(NR_to_Cash!C$18,$A674))/1000","v":{"$error":"#NAME?"}},{"$f":"(_xll.RiskData(NR_to_Cash!D$18,$A674))/1000","v":{"$error":"#NAME?"}},{"$f":"(_xll.RiskData(NR_to_Cash!E$18,$A674))/1000","v":{"$error":"#NAME?"}}]
[668,{"$f":"_xll.RiskData('Risk Summary'!J$48,$A675)/1000","v":{"$error":"#NAME?"}},{"$f":"_xll.RiskData('Risk Summary'!K$48,$A675)/1000","v":{"$error":"#NAME?"}},{"$f":"_xll.RiskData('Risk Summary'!L$48,$A675)/1000","v":{"$error":"#NAME?"}},null,null,{"$f":"(_xll.RiskData(NR_to_Cash!C$18,$A675))/1000","v":{"$error":"#NAME?"}},{"$f":"(_xll.RiskData(NR_to_Cash!D$18,$A675))/1000","v":{"$error":"#NAME?"}},{"$f":"(_xll.RiskData(NR_to_Cash!E$18,$A675))/1000","v":{"$error":"#NAME?"}}]
[669,{"$f":"_xll.RiskData('Risk Summary'!J$48,$A676)/1000","v":{"$error":"#NAME?"}},{"$f":"_xll.RiskData('Risk Summary'!K$48,$A676)/1000","v":{"$error":"#NAME?"}},{"$f":"_xll.RiskData('Risk Summary'!L$48,$A676)/1000","v":{"$error":"#NAME?"}},null,null,{"$f":"(_xll.RiskData(NR_to_Cash!C$18,$A676))/1000","v":{"$error":"#NAME?"}},{"$f":"(_xll.RiskData(NR_to_Cash!D$18,$A676))/1000","v":{"$error":"#NAME?"}},{"$f":"(_xll.RiskData(NR_to_Cash!E$18,$A676))/1000","v":{"$error":"#NAME?"}}]
[670,{"$f":"_xll.RiskData('Risk Summary'!J$48,$A677)/1000","v":{"$error":"#NAME?"}},{"$f":"_xll.RiskData('Risk Summary'!K$48,$A677)/1000","v":{"$error":"#NAME?"}},{"$f":"_xll.RiskData('Risk Summary'!L$48,$A677)/1000","v":{"$error":"#NAME?"}},null,null,{"$f":"(_xll.RiskData(NR_to_Cash!C$18,$A677))/1000","v":{"$error":"#NAME?"}},{"$f":"(_xll.RiskData(NR_to_Cash!D$18,$A677))/1000","v":{"$error":"#NAME?"}},{"$f":"(_xll.RiskData(NR_to_Cash!E$18,$A677))/1000","v":{"$error":"#NAME?"}}]
[671,{"$f":"_xll.RiskData('Risk Summary'!J$48,$A678)/1000","v":{"$error":"#NAME?"}},{"$f":"_xll.RiskData('Risk Summary'!K$48,$A678)/1000","v":{"$error":"#NAME?"}},{"$f":"_xll.RiskData('Risk Summary'!L$48,$A678)/1000","v":{"$error":"#NAME?"}},null,null,{"$f":"(_xll.RiskData(NR_to_Cash!C$18,$A678))/1000","v":{"$error":"#NAME?"}},{"$f":"(_xll.RiskData(NR_to_Cash!D$18,$A678))/1000","v":{"$error":"#NAME?"}},{"$f":"(_xll.RiskData(NR_to_Cash!E$18,$A678))/1000","v":{"$error":"#NAME?"}}]
[672,{"$f":"_xll.RiskData('Risk Summary'!J$48,$A679)/1000","v":{"$error":"#NAME?"}},{"$f":"_xll.RiskData('Risk Summary'!K$48,$A679)/1000","v":{"$error":"#NAME?"}},{"$f":"_xll.RiskData('Risk Summary'!L$48,$A679)/1000","v":{"$error":"#NAME?"}},null,null,{"$f":"(_xll.RiskData(NR_to_Cash!C$18,$A679))/1000","v":{"$error":"#NAME?"}},{"$f":"(_xll.RiskData(NR_to_Cash!D$18,$A679))/1000","v":{"$error":"#NAME?"}},{"$f":"(_xll.RiskData(NR_to_Cash!E$18,$A679))/1000","v":{"$error":"#NAME?"}}]
[673,{"$f":"_xll.RiskData('Risk Summary'!J$48,$A680)/1000","v":{"$error":"#NAME?"}},{"$f":"_xll.RiskData('Risk Summary'!K$48,$A680)/1000","v":{"$error":"#NAME?"}},{"$f":"_xll.RiskData('Risk Summary'!L$48,$A680)/1000","v":{"$error":"#NAME?"}},null,null,{"$f":"(_xll.RiskData(NR_to_Cash!C$18,$A680))/1000","v":{"$error":"#NAME?"}},{"$f":"(_xll.RiskData(NR_to_Cash!D$18,$A680))/1000","v":{"$error":"#NAME?"}},{"$f":"(_xll.RiskData(NR_to_Cash!E$18,$A680))/1000","v":{"$error":"#NAME?"}}]
[674,{"$f":"_xll.RiskData('Risk Summary'!J$48,$A681)/1000","v":{"$error":"#NAME?"}},{"$f":"_xll.RiskData('Risk Summary'!K$48,$A681)/1000","v":{"$error":"#NAME?"}},{"$f":"_xll.RiskData('Risk Summary'!L$48,$A681)/1000","v":{"$error":"#NAME?"}},null,null,{"$f":"(_xll.RiskData(NR_to_Cash!C$18,$A681))/1000","v":{"$error":"#NAME?"}},{"$f":"(_xll.RiskData(NR_to_Cash!D$18,$A681))/1000","v":{"$error":"#NAME?"}},{"$f":"(_xll.RiskData(NR_to_Cash!E$18,$A681))/1000","v":{"$error":"#NAME?"}}]
[675,{"$f":"_xll.RiskData('Risk Summary'!J$48,$A682)/1000","v":{"$error":"#NAME?"}},{"$f":"_xll.RiskData('Risk Summary'!K$48,$A682)/1000","v":{"$error":"#NAME?"}},{"$f":"_xll.RiskData('Risk Summary'!L$48,$A682)/1000","v":{"$error":"#NAME?"}},null,null,{"$f":"(_xll.RiskData(NR_to_Cash!C$18,$A682))/1000","v":{"$error":"#NAME?"}},{"$f":"(_xll.RiskData(NR_to_Cash!D$18,$A682))/1000","v":{"$error":"#NAME?"}},{"$f":"(_xll.RiskData(NR_to_Cash!E$18,$A682))/1000","v":{"$error":"#NAME?"}}]
[676,{"$f":"_xll.RiskData('Risk Summary'!J$48,$A683)/1000","v":{"$error":"#NAME?"}},{"$f":"_xll.RiskData('Risk Summary'!K$48,$A683)/1000","v":{"$error":"#NAME?"}},{"$f":"_xll.RiskData('Risk Summary'!L$48,$A683)/1000","v":{"$error":"#NAME?"}},null,null,{"$f":"(_xll.RiskData(NR_to_Cash!C$18,$A683))/1000","v":{"$error":"#NAME?"}},{"$f":"(_xll.RiskData(NR_to_Cash!D$18,$A683))/1000","v":{"$error":"#NAME?"}},{"$f":"(_xll.RiskData(NR_to_Cash!E$18,$A683))/1000","v":{"$error":"#NAME?"}}]
[677,{"$f":"_xll.RiskData('Risk Summary'!J$48,$A684)/1000","v":{"$error":"#NAME?"}},{"$f":"_xll.RiskData('Risk Summary'!K$48,$A684)/1000","v":{"$error":"#NAME?"}},{"$f":"_xll.RiskData('Risk Summary'!L$48,$A684)/1000","v":{"$error":"#NAME?"}},null,null,{"$f":"(_xll.RiskData(NR_to_Cash!C$18,$A684))/1000","v":{"$error":"#NAME?"}},{"$f":"(_xll.RiskData(NR_to_Cash!D$18,$A684))/1000","v":{"$error":"#NAME?"}},{"$f":"(_xll.RiskData(NR_to_Cash!E$18,$A684))/1000","v":{"$error":"#NAME?"}}]
[678,{"$f":"_xll.RiskData('Risk Summary'!J$48,$A685)/1000","v":{"$error":"#NAME?"}},{"$f":"_xll.RiskData('Risk Summary'!K$48,$A685)/1000","v":{"$error":"#NAME?"}},{"$f":"_xll.RiskData('Risk Summary'!L$48,$A685)/1000","v":{"$error":"#NAME?"}},null,null,{"$f":"(_xll.RiskData(NR_to_Cash!C$18,$A685))/1000","v":{"$error":"#NAME?"}},{"$f":"(_xll.RiskData(NR_to_Cash!D$18,$A685))/1000","v":{"$error":"#NAME?"}},{"$f":"(_xll.RiskData(NR_to_Cash!E$18,$A685))/1000","v":{"$error":"#NAME?"}}]
[679,{"$f":"_xll.RiskData('Risk Summary'!J$48,$A686)/1000","v":{"$error":"#NAME?"}},{"$f":"_xll.RiskData('Risk Summary'!K$48,$A686)/1000","v":{"$error":"#NAME?"}},{"$f":"_xll.RiskData('Risk Summary'!L$48,$A686)/1000","v":{"$error":"#NAME?"}},null,null,{"$f":"(_xll.RiskData(NR_to_Cash!C$18,$A686))/1000","v":{"$error":"#NAME?"}},{"$f":"(_xll.RiskData(NR_to_Cash!D$18,$A686))/1000","v":{"$error":"#NAME?"}},{"$f":"(_xll.RiskData(NR_to_Cash!E$18,$A686))/1000","v":{"$error":"#NAME?"}}]
[680,{"$f":"_xll.RiskData('Risk Summary'!J$48,$A687)/1000","v":{"$error":"#NAME?"}},{"$f":"_xll.RiskData('Risk Summary'!K$48,$A687)/1000","v":{"$error":"#NAME?"}},{"$f":"_xll.RiskData('Risk Summary'!L$48,$A687)/1000","v":{"$error":"#NAME?"}},null,null,{"$f":"(_xll.RiskData(NR_to_Cash!C$18,$A687))/1000","v":{"$error":"#NAME?"}},{"$f":"(_xll.RiskData(NR_to_Cash!D$18,$A687))/1000","v":{"$error":"#NAME?"}},{"$f":"(_xll.RiskData(NR_to_Cash!E$18,$A687))/1000","v":{"$error":"#NAME?"}}]
[681,{"$f":"_xll.RiskData('Risk Summary'!J$48,$A688)/1000","v":{"$error":"#NAME?"}},{"$f":"_xll.RiskData('Risk Summary'!K$48,$A688)/1000","v":{"$error":"#NAME?"}},{"$f":"_xll.RiskData('Risk Summary'!L$48,$A688)/1000","v":{"$error":"#NAME?"}},null,null,{"$f":"(_xll.RiskData(NR_to_Cash!C$18,$A688))/1000","v":{"$error":"#NAME?"}},{"$f":"(_xll.RiskData(NR_to_Cash!D$18,$A688))/1000","v":{"$error":"#NAME?"}},{"$f":"(_xll.RiskData(NR_to_Cash!E$18,$A688))/1000","v":{"$error":"#NAME?"}}]
[682,{"$f":"_xll.RiskData('Risk Summary'!J$48,$A689)/1000","v":{"$error":"#NAME?"}},{"$f":"_xll.RiskData('Risk Summary'!K$48,$A689)/1000","v":{"$error":"#NAME?"}},{"$f":"_xll.RiskData('Risk Summary'!L$48,$A689)/1000","v":{"$error":"#NAME?"}},null,null,{"$f":"(_xll.RiskData(NR_to_Cash!C$18,$A689))/1000","v":{"$error":"#NAME?"}},{"$f":"(_xll.RiskData(NR_to_Cash!D$18,$A689))/1000","v":{"$error":"#NAME?"}},{"$f":"(_xll.RiskData(NR_to_Cash!E$18,$A689))/1000","v":{"$error":"#NAME?"}}]
[683,{"$f":"_xll.RiskData('Risk Summary'!J$48,$A690)/1000","v":{"$error":"#NAME?"}},{"$f":"_xll.RiskData('Risk Summary'!K$48,$A690)/1000","v":{"$error":"#NAME?"}},{"$f":"_xll.RiskData('Risk Summary'!L$48,$A690)/1000","v":{"$error":"#NAME?"}},null,null,{"$f":"(_xll.RiskData(NR_to_Cash!C$18,$A690))/1000","v":{"$error":"#NAME?"}},{"$f":"(_xll.RiskData(NR_to_Cash!D$18,$A690))/1000","v":{"$error":"#NAME?"}},{"$f":"(_xll.RiskData(NR_to_Cash!E$18,$A690))/1000","v":{"$error":"#NAME?"}}]
[684,{"$f":"_xll.RiskData('Risk Summary'!J$48,$A691)/1000","v":{"$error":"#NAME?"}},{"$f":"_xll.RiskData('Risk Summary'!K$48,$A691)/1000","v":{"$error":"#NAME?"}},{"$f":"_xll.RiskData('Risk Summary'!L$48,$A691)/1000","v":{"$error":"#NAME?"}},null,null,{"$f":"(_xll.RiskData(NR_to_Cash!C$18,$A691))/1000","v":{"$error":"#NAME?"}},{"$f":"(_xll.RiskData(NR_to_Cash!D$18,$A691))/1000","v":{"$error":"#NAME?"}},{"$f":"(_xll.RiskData(NR_to_Cash!E$18,$A691))/1000","v":{"$error":"#NAME?"}}]
[685,{"$f":"_xll.RiskData('Risk Summary'!J$48,$A692)/1000","v":{"$error":"#NAME?"}},{"$f":"_xll.RiskData('Risk Summary'!K$48,$A692)/1000","v":{"$error":"#NAME?"}},{"$f":"_xll.RiskData('Risk Summary'!L$48,$A692)/1000","v":{"$error":"#NAME?"}},null,null,{"$f":"(_xll.RiskData(NR_to_Cash!C$18,$A692))/1000","v":{"$error":"#NAME?"}},{"$f":"(_xll.RiskData(NR_to_Cash!D$18,$A692))/1000","v":{"$error":"#NAME?"}},{"$f":"(_xll.RiskData(NR_to_Cash!E$18,$A692))/1000","v":{"$error":"#NAME?"}}]
[686,{"$f":"_xll.RiskData('Risk Summary'!J$48,$A693)/1000","v":{"$error":"#NAME?"}},{"$f":"_xll.RiskData('Risk Summary'!K$48,$A693)/1000","v":{"$error":"#NAME?"}},{"$f":"_xll.RiskData('Risk Summary'!L$48,$A693)/1000","v":{"$error":"#NAME?"}},null,null,{"$f":"(_xll.RiskData(NR_to_Cash!C$18,$A693))/1000","v":{"$error":"#NAME?"}},{"$f":"(_xll.RiskData(NR_to_Cash!D$18,$A693))/1000","v":{"$error":"#NAME?"}},{"$f":"(_xll.RiskData(NR_to_Cash!E$18,$A693))/1000","v":{"$error":"#NAME?"}}]
[687,{"$f":"_xll.RiskData('Risk Summary'!J$48,$A694)/1000","v":{"$error":"#NAME?"}},{"$f":"_xll.RiskData('Risk Summary'!K$48,$A694)/1000","v":{"$error":"#NAME?"}},{"$f":"_xll.RiskData('Risk Summary'!L$48,$A694)/1000","v":{"$error":"#NAME?"}},null,null,{"$f":"(_xll.RiskData(NR_to_Cash!C$18,$A694))/1000","v":{"$error":"#NAME?"}},{"$f":"(_xll.RiskData(NR_to_Cash!D$18,$A694))/1000","v":{"$error":"#NAME?"}},{"$f":"(_xll.RiskData(NR_to_Cash!E$18,$A694))/1000","v":{"$error":"#NAME?"}}]
[688,{"$f":"_xll.RiskData('Risk Summary'!J$48,$A695)/1000","v":{"$error":"#NAME?"}},{"$f":"_xll.RiskData('Risk Summary'!K$48,$A695)/1000","v":{"$error":"#NAME?"}},{"$f":"_xll.RiskData('Risk Summary'!L$48,$A695)/1000","v":{"$error":"#NAME?"}},null,null,{"$f":"(_xll.RiskData(NR_to_Cash!C$18,$A695))/1000","v":{"$error":"#NAME?"}},{"$f":"(_xll.RiskData(NR_to_Cash!D$18,$A695))/1000","v":{"$error":"#NAME?"}},{"$f":"(_xll.RiskData(NR_to_Cash!E$18,$A695))/1000","v":{"$error":"#NAME?"}}]
[689,{"$f":"_xll.RiskData('Risk Summary'!J$48,$A696)/1000","v":{"$error":"#NAME?"}},{"$f":"_xll.RiskData('Risk Summary'!K$48,$A696)/1000","v":{"$error":"#NAME?"}},{"$f":"_xll.RiskData('Risk Summary'!L$48,$A696)/1000","v":{"$error":"#NAME?"}},null,null,{"$f":"(_xll.RiskData(NR_to_Cash!C$18,$A696))/1000","v":{"$error":"#NAME?"}},{"$f":"(_xll.RiskData(NR_to_Cash!D$18,$A696))/1000","v":{"$error":"#NAME?"}},{"$f":"(_xll.RiskData(NR_to_Cash!E$18,$A696))/1000","v":{"$error":"#NAME?"}}]
[690,{"$f":"_xll.RiskData('Risk Summary'!J$48,$A697)/1000","v":{"$error":"#NAME?"}},{"$f":"_xll.RiskData('Risk Summary'!K$48,$A697)/1000","v":{"$error":"#NAME?"}},{"$f":"_xll.RiskData('Risk Summary'!L$48,$A697)/1000","v":{"$error":"#NAME?"}},null,null,{"$f":"(_xll.RiskData(NR_to_Cash!C$18,$A697))/1000","v":{"$error":"#NAME?"}},{"$f":"(_xll.RiskData(NR_to_Cash!D$18,$A697))/1000","v":{"$error":"#NAME?"}},{"$f":"(_xll.RiskData(NR_to_Cash!E$18,$A697))/1000","v":{"$error":"#NAME?"}}]
[691,{"$f":"_xll.RiskData('Risk Summary'!J$48,$A698)/1000","v":{"$error":"#NAME?"}},{"$f":"_xll.RiskData('Risk Summary'!K$48,$A698)/1000","v":{"$error":"#NAME?"}},{"$f":"_xll.RiskData('Risk Summary'!L$48,$A698)/1000","v":{"$error":"#NAME?"}},null,null,{"$f":"(_xll.RiskData(NR_to_Cash!C$18,$A698))/1000","v":{"$error":"#NAME?"}},{"$f":"(_xll.RiskData(NR_to_Cash!D$18,$A698))/1000","v":{"$error":"#NAME?"}},{"$f":"(_xll.RiskData(NR_to_Cash!E$18,$A698))/1000","v":{"$error":"#NAME?"}}]
[692,{"$f":"_xll.RiskData('Risk Summary'!J$48,$A699)/1000","v":{"$error":"#NAME?"}},{"$f":"_xll.RiskData('Risk Summary'!K$48,$A699)/1000","v":{"$error":"#NAME?"}},{"$f":"_xll.RiskData('Risk Summary'!L$48,$A699)/1000","v":{"$error":"#NAME?"}},null,null,{"$f":"(_xll.RiskData(NR_to_Cash!C$18,$A699))/1000","v":{"$error":"#NAME?"}},{"$f":"(_xll.RiskData(NR_to_Cash!D$18,$A699))/1000","v":{"$error":"#NAME?"}},{"$f":"(_xll.RiskData(NR_to_Cash!E$18,$A699))/1000","v":{"$error":"#NAME?"}}]
[693,{"$f":"_xll.RiskData('Risk Summary'!J$48,$A700)/1000","v":{"$error":"#NAME?"}},{"$f":"_xll.RiskData('Risk Summary'!K$48,$A700)/1000","v":{"$error":"#NAME?"}},{"$f":"_xll.RiskData('Risk Summary'!L$48,$A700)/1000","v":{"$error":"#NAME?"}},null,null,{"$f":"(_xll.RiskData(NR_to_Cash!C$18,$A700))/1000","v":{"$error":"#NAME?"}},{"$f":"(_xll.RiskData(NR_to_Cash!D$18,$A700))/1000","v":{"$error":"#NAME?"}},{"$f":"(_xll.RiskData(NR_to_Cash!E$18,$A700))/1000","v":{"$error":"#NAME?"}}]
[694,{"$f":"_xll.RiskData('Risk Summary'!J$48,$A701)/1000","v":{"$error":"#NAME?"}},{"$f":"_xll.RiskData('Risk Summary'!K$48,$A701)/1000","v":{"$error":"#NAME?"}},{"$f":"_xll.RiskData('Risk Summary'!L$48,$A701)/1000","v":{"$error":"#NAME?"}},null,null,{"$f":"(_xll.RiskData(NR_to_Cash!C$18,$A701))/1000","v":{"$error":"#NAME?"}},{"$f":"(_xll.RiskData(NR_to_Cash!D$18,$A701))/1000","v":{"$error":"#NAME?"}},{"$f":"(_xll.RiskData(NR_to_Cash!E$18,$A701))/1000","v":{"$error":"#NAME?"}}]
[695,{"$f":"_xll.RiskData('Risk Summary'!J$48,$A702)/1000","v":{"$error":"#NAME?"}},{"$f":"_xll.RiskData('Risk Summary'!K$48,$A702)/1000","v":{"$error":"#NAME?"}},{"$f":"_xll.RiskData('Risk Summary'!L$48,$A702)/1000","v":{"$error":"#NAME?"}},null,null,{"$f":"(_xll.RiskData(NR_to_Cash!C$18,$A702))/1000","v":{"$error":"#NAME?"}},{"$f":"(_xll.RiskData(NR_to_Cash!D$18,$A702))/1000","v":{"$error":"#NAME?"}},{"$f":"(_xll.RiskData(NR_to_Cash!E$18,$A702))/1000","v":{"$error":"#NAME?"}}]
[696,{"$f":"_xll.RiskData('Risk Summary'!J$48,$A703)/1000","v":{"$error":"#NAME?"}},{"$f":"_xll.RiskData('Risk Summary'!K$48,$A703)/1000","v":{"$error":"#NAME?"}},{"$f":"_xll.RiskData('Risk Summary'!L$48,$A703)/1000","v":{"$error":"#NAME?"}},null,null,{"$f":"(_xll.RiskData(NR_to_Cash!C$18,$A703))/1000","v":{"$error":"#NAME?"}},{"$f":"(_xll.RiskData(NR_to_Cash!D$18,$A703))/1000","v":{"$error":"#NAME?"}},{"$f":"(_xll.RiskData(NR_to_Cash!E$18,$A703))/1000","v":{"$error":"#NAME?"}}]
[697,{"$f":"_xll.RiskData('Risk Summary'!J$48,$A704)/1000","v":{"$error":"#NAME?"}},{"$f":"_xll.RiskData('Risk Summary'!K$48,$A704)/1000","v":{"$error":"#NAME?"}},{"$f":"_xll.RiskData('Risk Summary'!L$48,$A704)/1000","v":{"$error":"#NAME?"}},null,null,{"$f":"(_xll.RiskData(NR_to_Cash!C$18,$A704))/1000","v":{"$error":"#NAME?"}},{"$f":"(_xll.RiskData(NR_to_Cash!D$18,$A704))/1000","v":{"$error":"#NAME?"}},{"$f":"(_xll.RiskData(NR_to_Cash!E$18,$A704))/1000","v":{"$error":"#NAME?"}}]
[698,{"$f":"_xll.RiskData('Risk Summary'!J$48,$A705)/1000","v":{"$error":"#NAME?"}},{"$f":"_xll.RiskData('Risk Summary'!K$48,$A705)/1000","v":{"$error":"#NAME?"}},{"$f":"_xll.RiskData('Risk Summary'!L$48,$A705)/1000","v":{"$error":"#NAME?"}},null,null,{"$f":"(_xll.RiskData(NR_to_Cash!C$18,$A705))/1000","v":{"$error":"#NAME?"}},{"$f":"(_xll.RiskData(NR_to_Cash!D$18,$A705))/1000","v":{"$error":"#NAME?"}},{"$f":"(_xll.RiskData(NR_to_Cash!E$18,$A705))/1000","v":{"$error":"#NAME?"}}]
[699,{"$f":"_xll.RiskData('Risk Summary'!J$48,$A706)/1000","v":{"$error":"#NAME?"}},{"$f":"_xll.RiskData('Risk Summary'!K$48,$A706)/1000","v":{"$error":"#NAME?"}},{"$f":"_xll.RiskData('Risk Summary'!L$48,$A706)/1000","v":{"$error":"#NAME?"}},null,null,{"$f":"(_xll.RiskData(NR_to_Cash!C$18,$A706))/1000","v":{"$error":"#NAME?"}},{"$f":"(_xll.RiskData(NR_to_Cash!D$18,$A706))/1000","v":{"$error":"#NAME?"}},{"$f":"(_xll.RiskData(NR_to_Cash!E$18,$A706))/1000","v":{"$error":"#NAME?"}}]
[700,{"$f":"_xll.RiskData('Risk Summary'!J$48,$A707)/1000","v":{"$error":"#NAME?"}},{"$f":"_xll.RiskData('Risk Summary'!K$48,$A707)/1000","v":{"$error":"#NAME?"}},{"$f":"_xll.RiskData('Risk Summary'!L$48,$A707)/1000","v":{"$error":"#NAME?"}},null,null,{"$f":"(_xll.RiskData(NR_to_Cash!C$18,$A707))/1000","v":{"$error":"#NAME?"}},{"$f":"(_xll.RiskData(NR_to_Cash!D$18,$A707))/1000","v":{"$error":"#NAME?"}},{"$f":"(_xll.RiskData(NR_to_Cash!E$18,$A707))/1000","v":{"$error":"#NAME?"}}]
[701,{"$f":"_xll.RiskData('Risk Summary'!J$48,$A708)/1000","v":{"$error":"#NAME?"}},{"$f":"_xll.RiskData('Risk Summary'!K$48,$A708)/1000","v":{"$error":"#NAME?"}},{"$f":"_xll.RiskData('Risk Summary'!L$48,$A708)/1000","v":{"$error":"#NAME?"}},null,null,{"$f":"(_xll.RiskData(NR_to_Cash!C$18,$A708))/1000","v":{"$error":"#NAME?"}},{"$f":"(_xll.RiskData(NR_to_Cash!D$18,$A708))/1000","v":{"$error":"#NAME?"}},{"$f":"(_xll.RiskData(NR_to_Cash!E$18,$A708))/1000","v":{"$error":"#NAME?"}}]
[702,{"$f":"_xll.RiskData('Risk Summary'!J$48,$A709)/1000","v":{"$error":"#NAME?"}},{"$f":"_xll.RiskData('Risk Summary'!K$48,$A709)/1000","v":{"$error":"#NAME?"}},{"$f":"_xll.RiskData('Risk Summary'!L$48,$A709)/1000","v":{"$error":"#NAME?"}},null,null,{"$f":"(_xll.RiskData(NR_to_Cash!C$18,$A709))/1000","v":{"$error":"#NAME?"}},{"$f":"(_xll.RiskData(NR_to_Cash!D$18,$A709))/1000","v":{"$error":"#NAME?"}},{"$f":"(_xll.RiskData(NR_to_Cash!E$18,$A709))/1000","v":{"$error":"#NAME?"}}]
[703,{"$f":"_xll.RiskData('Risk Summary'!J$48,$A710)/1000","v":{"$error":"#NAME?"}},{"$f":"_xll.RiskData('Risk Summary'!K$48,$A710)/1000","v":{"$error":"#NAME?"}},{"$f":"_xll.RiskData('Risk Summary'!L$48,$A710)/1000","v":{"$error":"#NAME?"}},null,null,{"$f":"(_xll.RiskData(NR_to_Cash!C$18,$A710))/1000","v":{"$error":"#NAME?"}},{"$f":"(_xll.RiskData(NR_to_Cash!D$18,$A710))/1000","v":{"$error":"#NAME?"}},{"$f":"(_xll.RiskData(NR_to_Cash!E$18,$A710))/1000","v":{"$error":"#NAME?"}}]
[704,{"$f":"_xll.RiskData('Risk Summary'!J$48,$A711)/1000","v":{"$error":"#NAME?"}},{"$f":"_xll.RiskData('Risk Summary'!K$48,$A711)/1000","v":{"$error":"#NAME?"}},{"$f":"_xll.RiskData('Risk Summary'!L$48,$A711)/1000","v":{"$error":"#NAME?"}},null,null,{"$f":"(_xll.RiskData(NR_to_Cash!C$18,$A711))/1000","v":{"$error":"#NAME?"}},{"$f":"(_xll.RiskData(NR_to_Cash!D$18,$A711))/1000","v":{"$error":"#NAME?"}},{"$f":"(_xll.RiskData(NR_to_Cash!E$18,$A711))/1000","v":{"$error":"#NAME?"}}]
[705,{"$f":"_xll.RiskData('Risk Summary'!J$48,$A712)/1000","v":{"$error":"#NAME?"}},{"$f":"_xll.RiskData('Risk Summary'!K$48,$A712)/1000","v":{"$error":"#NAME?"}},{"$f":"_xll.RiskData('Risk Summary'!L$48,$A712)/1000","v":{"$error":"#NAME?"}},null,null,{"$f":"(_xll.RiskData(NR_to_Cash!C$18,$A712))/1000","v":{"$error":"#NAME?"}},{"$f":"(_xll.RiskData(NR_to_Cash!D$18,$A712))/1000","v":{"$error":"#NAME?"}},{"$f":"(_xll.RiskData(NR_to_Cash!E$18,$A712))/1000","v":{"$error":"#NAME?"}}]
[706,{"$f":"_xll.RiskData('Risk Summary'!J$48,$A713)/1000","v":{"$error":"#NAME?"}},{"$f":"_xll.RiskData('Risk Summary'!K$48,$A713)/1000","v":{"$error":"#NAME?"}},{"$f":"_xll.RiskData('Risk Summary'!L$48,$A713)/1000","v":{"$error":"#NAME?"}},null,null,{"$f":"(_xll.RiskData(NR_to_Cash!C$18,$A713))/1000","v":{"$error":"#NAME?"}},{"$f":"(_xll.RiskData(NR_to_Cash!D$18,$A713))/1000","v":{"$error":"#NAME?"}},{"$f":"(_xll.RiskData(NR_to_Cash!E$18,$A713))/1000","v":{"$error":"#NAME?"}}]
[707,{"$f":"_xll.RiskData('Risk Summary'!J$48,$A714)/1000","v":{"$error":"#NAME?"}},{"$f":"_xll.RiskData('Risk Summary'!K$48,$A714)/1000","v":{"$error":"#NAME?"}},{"$f":"_xll.RiskData('Risk Summary'!L$48,$A714)/1000","v":{"$error":"#NAME?"}},null,null,{"$f":"(_xll.RiskData(NR_to_Cash!C$18,$A714))/1000","v":{"$error":"#NAME?"}},{"$f":"(_xll.RiskData(NR_to_Cash!D$18,$A714))/1000","v":{"$error":"#NAME?"}},{"$f":"(_xll.RiskData(NR_to_Cash!E$18,$A714))/1000","v":{"$error":"#NAME?"}}]
[708,{"$f":"_xll.RiskData('Risk Summary'!J$48,$A715)/1000","v":{"$error":"#NAME?"}},{"$f":"_xll.RiskData('Risk Summary'!K$48,$A715)/1000","v":{"$error":"#NAME?"}},{"$f":"_xll.RiskData('Risk Summary'!L$48,$A715)/1000","v":{"$error":"#NAME?"}},null,null,{"$f":"(_xll.RiskData(NR_to_Cash!C$18,$A715))/1000","v":{"$error":"#NAME?"}},{"$f":"(_xll.RiskData(NR_to_Cash!D$18,$A715))/1000","v":{"$error":"#NAME?"}},{"$f":"(_xll.RiskData(NR_to_Cash!E$18,$A715))/1000","v":{"$error":"#NAME?"}}]
[709,{"$f":"_xll.RiskData('Risk Summary'!J$48,$A716)/1000","v":{"$error":"#NAME?"}},{"$f":"_xll.RiskData('Risk Summary'!K$48,$A716)/1000","v":{"$error":"#NAME?"}},{"$f":"_xll.RiskData('Risk Summary'!L$48,$A716)/1000","v":{"$error":"#NAME?"}},null,null,{"$f":"(_xll.RiskData(NR_to_Cash!C$18,$A716))/1000","v":{"$error":"#NAME?"}},{"$f":"(_xll.RiskData(NR_to_Cash!D$18,$A716))/1000","v":{"$error":"#NAME?"}},{"$f":"(_xll.RiskData(NR_to_Cash!E$18,$A716))/1000","v":{"$error":"#NAME?"}}]
[710,{"$f":"_xll.RiskData('Risk Summary'!J$48,$A717)/1000","v":{"$error":"#NAME?"}},{"$f":"_xll.RiskData('Risk Summary'!K$48,$A717)/1000","v":{"$error":"#NAME?"}},{"$f":"_xll.RiskData('Risk Summary'!L$48,$A717)/1000","v":{"$error":"#NAME?"}},null,null,{"$f":"(_xll.RiskData(NR_to_Cash!C$18,$A717))/1000","v":{"$error":"#NAME?"}},{"$f":"(_xll.RiskData(NR_to_Cash!D$18,$A717))/1000","v":{"$error":"#NAME?"}},{"$f":"(_xll.RiskData(NR_to_Cash!E$18,$A717))/1000","v":{"$error":"#NAME?"}}]
[711,{"$f":"_xll.RiskData('Risk Summary'!J$48,$A718)/1000","v":{"$error":"#NAME?"}},{"$f":"_xll.RiskData('Risk Summary'!K$48,$A718)/1000","v":{"$error":"#NAME?"}},{"$f":"_xll.RiskData('Risk Summary'!L$48,$A718)/1000","v":{"$error":"#NAME?"}},null,null,{"$f":"(_xll.RiskData(NR_to_Cash!C$18,$A718))/1000","v":{"$error":"#NAME?"}},{"$f":"(_xll.RiskData(NR_to_Cash!D$18,$A718))/1000","v":{"$error":"#NAME?"}},{"$f":"(_xll.RiskData(NR_to_Cash!E$18,$A718))/1000","v":{"$error":"#NAME?"}}]
[712,{"$f":"_xll.RiskData('Risk Summary'!J$48,$A719)/1000","v":{"$error":"#NAME?"}},{"$f":"_xll.RiskData('Risk Summary'!K$48,$A719)/1000","v":{"$error":"#NAME?"}},{"$f":"_xll.RiskData('Risk Summary'!L$48,$A719)/1000","v":{"$error":"#NAME?"}},null,null,{"$f":"(_xll.RiskData(NR_to_Cash!C$18,$A719))/1000","v":{"$error":"#NAME?"}},{"$f":"(_xll.RiskData(NR_to_Cash!D$18,$A719))/1000","v":{"$error":"#NAME?"}},{"$f":"(_xll.RiskData(NR_to_Cash!E$18,$A719))/1000","v":{"$error":"#NAME?"}}]
[713,{"$f":"_xll.RiskData('Risk Summary'!J$48,$A720)/1000","v":{"$error":"#NAME?"}},{"$f":"_xll.RiskData('Risk Summary'!K$48,$A720)/1000","v":{"$error":"#NAME?"}},{"$f":"_xll.RiskData('Risk Summary'!L$48,$A720)/1000","v":{"$error":"#NAME?"}},null,null,{"$f":"(_xll.RiskData(NR_to_Cash!C$18,$A720))/1000","v":{"$error":"#NAME?"}},{"$f":"(_xll.RiskData(NR_to_Cash!D$18,$A720))/1000","v":{"$error":"#NAME?"}},{"$f":"(_xll.RiskData(NR_to_Cash!E$18,$A720))/1000","v":{"$error":"#NAME?"}}]
[714,{"$f":"_xll.RiskData('Risk Summary'!J$48,$A721)/1000","v":{"$error":"#NAME?"}},{"$f":"_xll.RiskData('Risk Summary'!K$48,$A721)/1000","v":{"$error":"#NAME?"}},{"$f":"_xll.RiskData('Risk Summary'!L$48,$A721)/1000","v":{"$error":"#NAME?"}},null,null,{"$f":"(_xll.RiskData(NR_to_Cash!C$18,$A721))/1000","v":{"$error":"#NAME?"}},{"$f":"(_xll.RiskData(NR_to_Cash!D$18,$A721))/1000","v":{"$error":"#NAME?"}},{"$f":"(_xll.RiskData(NR_to_Cash!E$18,$A721))/1000","v":{"$error":"#NAME?"}}]
[715,{"$f":"_xll.RiskData('Risk Summary'!J$48,$A722)/1000","v":{"$error":"#NAME?"}},{"$f":"_xll.RiskData('Risk Summary'!K$48,$A722)/1000","v":{"$error":"#NAME?"}},{"$f":"_xll.RiskData('Risk Summary'!L$48,$A722)/1000","v":{"$error":"#NAME?"}},null,null,{"$f":"(_xll.RiskData(NR_to_Cash!C$18,$A722))/1000","v":{"$error":"#NAME?"}},{"$f":"(_xll.RiskData(NR_to_Cash!D$18,$A722))/1000","v":{"$error":"#NAME?"}},{"$f":"(_xll.RiskData(NR_to_Cash!E$18,$A722))/1000","v":{"$error":"#NAME?"}}]
[716,{"$f":"_xll.RiskData('Risk Summary'!J$48,$A723)/1000","v":{"$error":"#NAME?"}},{"$f":"_xll.RiskData('Risk Summary'!K$48,$A723)/1000","v":{"$error":"#NAME?"}},{"$f":"_xll.RiskData('Risk Summary'!L$48,$A723)/1000","v":{"$error":"#NAME?"}},null,null,{"$f":"(_xll.RiskData(NR_to_Cash!C$18,$A723))/1000","v":{"$error":"#NAME?"}},{"$f":"(_xll.RiskData(NR_to_Cash!D$18,$A723))/1000","v":{"$error":"#NAME?"}},{"$f":"(_xll.RiskData(NR_to_Cash!E$18,$A723))/1000","v":{"$error":"#NAME?"}}]
[717,{"$f":"_xll.RiskData('Risk Summary'!J$48,$A724)/1000","v":{"$error":"#NAME?"}},{"$f":"_xll.RiskData('Risk Summary'!K$48,$A724)/1000","v":{"$error":"#NAME?"}},{"$f":"_xll.RiskData('Risk Summary'!L$48,$A724)/1000","v":{"$error":"#NAME?"}},null,null,{"$f":"(_xll.RiskData(NR_to_Cash!C$18,$A724))/1000","v":{"$error":"#NAME?"}},{"$f":"(_xll.RiskData(NR_to_Cash!D$18,$A724))/1000","v":{"$error":"#NAME?"}},{"$f":"(_xll.RiskData(NR_to_Cash!E$18,$A724))/1000","v":{"$error":"#NAME?"}}]
[718,{"$f":"_xll.RiskData('Risk Summary'!J$48,$A725)/1000","v":{"$error":"#NAME?"}},{"$f":"_xll.RiskData('Risk Summary'!K$48,$A725)/1000","v":{"$error":"#NAME?"}},{"$f":"_xll.RiskData('Risk Summary'!L$48,$A725)/1000","v":{"$error":"#NAME?"}},null,null,{"$f":"(_xll.RiskData(NR_to_Cash!C$18,$A725))/1000","v":{"$error":"#NAME?"}},{"$f":"(_xll.RiskData(NR_to_Cash!D$18,$A725))/1000","v":{"$error":"#NAME?"}},{"$f":"(_xll.RiskData(NR_to_Cash!E$18,$A725))/1000","v":{"$error":"#NAME?"}}]
[719,{"$f":"_xll.RiskData('Risk Summary'!J$48,$A726)/1000","v":{"$error":"#NAME?"}},{"$f":"_xll.RiskData('Risk Summary'!K$48,$A726)/1000","v":{"$error":"#NAME?"}},{"$f":"_xll.RiskData('Risk Summary'!L$48,$A726)/1000","v":{"$error":"#NAME?"}},null,null,{"$f":"(_xll.RiskData(NR_to_Cash!C$18,$A726))/1000","v":{"$error":"#NAME?"}},{"$f":"(_xll.RiskData(NR_to_Cash!D$18,$A726))/1000","v":{"$error":"#NAME?"}},{"$f":"(_xll.RiskData(NR_to_Cash!E$18,$A726))/1000","v":{"$error":"#NAME?"}}]
[720,{"$f":"_xll.RiskData('Risk Summary'!J$48,$A727)/1000","v":{"$error":"#NAME?"}},{"$f":"_xll.RiskData('Risk Summary'!K$48,$A727)/1000","v":{"$error":"#NAME?"}},{"$f":"_xll.RiskData('Risk Summary'!L$48,$A727)/1000","v":{"$error":"#NAME?"}},null,null,{"$f":"(_xll.RiskData(NR_to_Cash!C$18,$A727))/1000","v":{"$error":"#NAME?"}},{"$f":"(_xll.RiskData(NR_to_Cash!D$18,$A727))/1000","v":{"$error":"#NAME?"}},{"$f":"(_xll.RiskData(NR_to_Cash!E$18,$A727))/1000","v":{"$error":"#NAME?"}}]
[721,{"$f":"_xll.RiskData('Risk Summary'!J$48,$A728)/1000","v":{"$error":"#NAME?"}},{"$f":"_xll.RiskData('Risk Summary'!K$48,$A728)/1000","v":{"$error":"#NAME?"}},{"$f":"_xll.RiskData('Risk Summary'!L$48,$A728)/1000","v":{"$error":"#NAME?"}},null,null,{"$f":"(_xll.RiskData(NR_to_Cash!C$18,$A728))/1000","v":{"$error":"#NAME?"}},{"$f":"(_xll.RiskData(NR_to_Cash!D$18,$A728))/1000","v":{"$error":"#NAME?"}},{"$f":"(_xll.RiskData(NR_to_Cash!E$18,$A728))/1000","v":{"$error":"#NAME?"}}]
[722,{"$f":"_xll.RiskData('Risk Summary'!J$48,$A729)/1000","v":{"$error":"#NAME?"}},{"$f":"_xll.RiskData('Risk Summary'!K$48,$A729)/1000","v":{"$error":"#NAME?"}},{"$f":"_xll.RiskData('Risk Summary'!L$48,$A729)/1000","v":{"$error":"#NAME?"}},null,null,{"$f":"(_xll.RiskData(NR_to_Cash!C$18,$A729))/1000","v":{"$error":"#NAME?"}},{"$f":"(_xll.RiskData(NR_to_Cash!D$18,$A729))/1000","v":{"$error":"#NAME?"}},{"$f":"(_xll.RiskData(NR_to_Cash!E$18,$A729))/1000","v":{"$error":"#NAME?"}}]
[723,{"$f":"_xll.RiskData('Risk Summary'!J$48,$A730)/1000","v":{"$error":"#NAME?"}},{"$f":"_xll.RiskData('Risk Summary'!K$48,$A730)/1000","v":{"$error":"#NAME?"}},{"$f":"_xll.RiskData('Risk Summary'!L$48,$A730)/1000","v":{"$error":"#NAME?"}},null,null,{"$f":"(_xll.RiskData(NR_to_Cash!C$18,$A730))/1000","v":{"$error":"#NAME?"}},{"$f":"(_xll.RiskData(NR_to_Cash!D$18,$A730))/1000","v":{"$error":"#NAME?"}},{"$f":"(_xll.RiskData(NR_to_Cash!E$18,$A730))/1000","v":{"$error":"#NAME?"}}]
[724,{"$f":"_xll.RiskData('Risk Summary'!J$48,$A731)/1000","v":{"$error":"#NAME?"}},{"$f":"_xll.RiskData('Risk Summary'!K$48,$A731)/1000","v":{"$error":"#NAME?"}},{"$f":"_xll.RiskData('Risk Summary'!L$48,$A731)/1000","v":{"$error":"#NAME?"}},null,null,{"$f":"(_xll.RiskData(NR_to_Cash!C$18,$A731))/1000","v":{"$error":"#NAME?"}},{"$f":"(_xll.RiskData(NR_to_Cash!D$18,$A731))/1000","v":{"$error":"#NAME?"}},{"$f":"(_xll.RiskData(NR_to_Cash!E$18,$A731))/1000","v":{"$error":"#NAME?"}}]
[725,{"$f":"_xll.RiskData('Risk Summary'!J$48,$A732)/1000","v":{"$error":"#NAME?"}},{"$f":"_xll.RiskData('Risk Summary'!K$48,$A732)/1000","v":{"$error":"#NAME?"}},{"$f":"_xll.RiskData('Risk Summary'!L$48,$A732)/1000","v":{"$error":"#NAME?"}},null,null,{"$f":"(_xll.RiskData(NR_to_Cash!C$18,$A732))/1000","v":{"$error":"#NAME?"}},{"$f":"(_xll.RiskData(NR_to_Cash!D$18,$A732))/1000","v":{"$error":"#NAME?"}},{"$f":"(_xll.RiskData(NR_to_Cash!E$18,$A732))/1000","v":{"$error":"#NAME?"}}]
[726,{"$f":"_xll.RiskData('Risk Summary'!J$48,$A733)/1000","v":{"$error":"#NAME?"}},{"$f":"_xll.RiskData('Risk Summary'!K$48,$A733)/1000","v":{"$error":"#NAME?"}},{"$f":"_xll.RiskData('Risk Summary'!L$48,$A733)/1000","v":{"$error":"#NAME?"}},null,null,{"$f":"(_xll.RiskData(NR_to_Cash!C$18,$A733))/1000","v":{"$error":"#NAME?"}},{"$f":"(_xll.RiskData(NR_to_Cash!D$18,$A733))/1000","v":{"$error":"#NAME?"}},{"$f":"(_xll.RiskData(NR_to_Cash!E$18,$A733))/1000","v":{"$error":"#NAME?"}}]
[727,{"$f":"_xll.RiskData('Risk Summary'!J$48,$A734)/1000","v":{"$error":"#NAME?"}},{"$f":"_xll.RiskData('Risk Summary'!K$48,$A734)/1000","v":{"$error":"#NAME?"}},{"$f":"_xll.RiskData('Risk Summary'!L$48,$A734)/1000","v":{"$error":"#NAME?"}},null,null,{"$f":"(_xll.RiskData(NR_to_Cash!C$18,$A734))/1000","v":{"$error":"#NAME?"}},{"$f":"(_xll.RiskData(NR_to_Cash!D$18,$A734))/1000","v":{"$error":"#NAME?"}},{"$f":"(_xll.RiskData(NR_to_Cash!E$18,$A734))/1000","v":{"$error":"#NAME?"}}]
[728,{"$f":"_xll.RiskData('Risk Summary'!J$48,$A735)/1000","v":{"$error":"#NAME?"}},{"$f":"_xll.RiskData('Risk Summary'!K$48,$A735)/1000","v":{"$error":"#NAME?"}},{"$f":"_xll.RiskData('Risk Summary'!L$48,$A735)/1000","v":{"$error":"#NAME?"}},null,null,{"$f":"(_xll.RiskData(NR_to_Cash!C$18,$A735))/1000","v":{"$error":"#NAME?"}},{"$f":"(_xll.RiskData(NR_to_Cash!D$18,$A735))/1000","v":{"$error":"#NAME?"}},{"$f":"(_xll.RiskData(NR_to_Cash!E$18,$A735))/1000","v":{"$error":"#NAME?"}}]
[729,{"$f":"_xll.RiskData('Risk Summary'!J$48,$A736)/1000","v":{"$error":"#NAME?"}},{"$f":"_xll.RiskData('Risk Summary'!K$48,$A736)/1000","v":{"$error":"#NAME?"}},{"$f":"_xll.RiskData('Risk Summary'!L$48,$A736)/1000","v":{"$error":"#NAME?"}},null,null,{"$f":"(_xll.RiskData(NR_to_Cash!C$18,$A736))/1000","v":{"$error":"#NAME?"}},{"$f":"(_xll.RiskData(NR_to_Cash!D$18,$A736))/1000","v":{"$error":"#NAME?"}},{"$f":"(_xll.RiskData(NR_to_Cash!E$18,$A736))/1000","v":{"$error":"#NAME?"}}]
[730,{"$f":"_xll.RiskData('Risk Summary'!J$48,$A737)/1000","v":{"$error":"#NAME?"}},{"$f":"_xll.RiskData('Risk Summary'!K$48,$A737)/1000","v":{"$error":"#NAME?"}},{"$f":"_xll.RiskData('Risk Summary'!L$48,$A737)/1000","v":{"$error":"#NAME?"}},null,null,{"$f":"(_xll.RiskData(NR_to_Cash!C$18,$A737))/1000","v":{"$error":"#NAME?"}},{"$f":"(_xll.RiskData(NR_to_Cash!D$18,$A737))/1000","v":{"$error":"#NAME?"}},{"$f":"(_xll.RiskData(NR_to_Cash!E$18,$A737))/1000","v":{"$error":"#NAME?"}}]
[731,{"$f":"_xll.RiskData('Risk Summary'!J$48,$A738)/1000","v":{"$error":"#NAME?"}},{"$f":"_xll.RiskData('Risk Summary'!K$48,$A738)/1000","v":{"$error":"#NAME?"}},{"$f":"_xll.RiskData('Risk Summary'!L$48,$A738)/1000","v":{"$error":"#NAME?"}},null,null,{"$f":"(_xll.RiskData(NR_to_Cash!C$18,$A738))/1000","v":{"$error":"#NAME?"}},{"$f":"(_xll.RiskData(NR_to_Cash!D$18,$A738))/1000","v":{"$error":"#NAME?"}},{"$f":"(_xll.RiskData(NR_to_Cash!E$18,$A738))/1000","v":{"$error":"#NAME?"}}]
[732,{"$f":"_xll.RiskData('Risk Summary'!J$48,$A739)/1000","v":{"$error":"#NAME?"}},{"$f":"_xll.RiskData('Risk Summary'!K$48,$A739)/1000","v":{"$error":"#NAME?"}},{"$f":"_xll.RiskData('Risk Summary'!L$48,$A739)/1000","v":{"$error":"#NAME?"}},null,null,{"$f":"(_xll.RiskData(NR_to_Cash!C$18,$A739))/1000","v":{"$error":"#NAME?"}},{"$f":"(_xll.RiskData(NR_to_Cash!D$18,$A739))/1000","v":{"$error":"#NAME?"}},{"$f":"(_xll.RiskData(NR_to_Cash!E$18,$A739))/1000","v":{"$error":"#NAME?"}}]
[733,{"$f":"_xll.RiskData('Risk Summary'!J$48,$A740)/1000","v":{"$error":"#NAME?"}},{"$f":"_xll.RiskData('Risk Summary'!K$48,$A740)/1000","v":{"$error":"#NAME?"}},{"$f":"_xll.RiskData('Risk Summary'!L$48,$A740)/1000","v":{"$error":"#NAME?"}},null,null,{"$f":"(_xll.RiskData(NR_to_Cash!C$18,$A740))/1000","v":{"$error":"#NAME?"}},{"$f":"(_xll.RiskData(NR_to_Cash!D$18,$A740))/1000","v":{"$error":"#NAME?"}},{"$f":"(_xll.RiskData(NR_to_Cash!E$18,$A740))/1000","v":{"$error":"#NAME?"}}]
[734,{"$f":"_xll.RiskData('Risk Summary'!J$48,$A741)/1000","v":{"$error":"#NAME?"}},{"$f":"_xll.RiskData('Risk Summary'!K$48,$A741)/1000","v":{"$error":"#NAME?"}},{"$f":"_xll.RiskData('Risk Summary'!L$48,$A741)/1000","v":{"$error":"#NAME?"}},null,null,{"$f":"(_xll.RiskData(NR_to_Cash!C$18,$A741))/1000","v":{"$error":"#NAME?"}},{"$f":"(_xll.RiskData(NR_to_Cash!D$18,$A741))/1000","v":{"$error":"#NAME?"}},{"$f":"(_xll.RiskData(NR_to_Cash!E$18,$A741))/1000","v":{"$error":"#NAME?"}}]
[735,{"$f":"_xll.RiskData('Risk Summary'!J$48,$A742)/1000","v":{"$error":"#NAME?"}},{"$f":"_xll.RiskData('Risk Summary'!K$48,$A742)/1000","v":{"$error":"#NAME?"}},{"$f":"_xll.RiskData('Risk Summary'!L$48,$A742)/1000","v":{"$error":"#NAME?"}},null,null,{"$f":"(_xll.RiskData(NR_to_Cash!C$18,$A742))/1000","v":{"$error":"#NAME?"}},{"$f":"(_xll.RiskData(NR_to_Cash!D$18,$A742))/1000","v":{"$error":"#NAME?"}},{"$f":"(_xll.RiskData(NR_to_Cash!E$18,$A742))/1000","v":{"$error":"#NAME?"}}]
[736,{"$f":"_xll.RiskData('Risk Summary'!J$48,$A743)/1000","v":{"$error":"#NAME?"}},{"$f":"_xll.RiskData('Risk Summary'!K$48,$A743)/1000","v":{"$error":"#NAME?"}},{"$f":"_xll.RiskData('Risk Summary'!L$48,$A743)/1000","v":{"$error":"#NAME?"}},null,null,{"$f":"(_xll.RiskData(NR_to_Cash!C$18,$A743))/1000","v":{"$error":"#NAME?"}},{"$f":"(_xll.RiskData(NR_to_Cash!D$18,$A743))/1000","v":{"$error":"#NAME?"}},{"$f":"(_xll.RiskData(NR_to_Cash!E$18,$A743))/1000","v":{"$error":"#NAME?"}}]
[737,{"$f":"_xll.RiskData('Risk Summary'!J$48,$A744)/1000","v":{"$error":"#NAME?"}},{"$f":"_xll.RiskData('Risk Summary'!K$48,$A744)/1000","v":{"$error":"#NAME?"}},{"$f":"_xll.RiskData('Risk Summary'!L$48,$A744)/1000","v":{"$error":"#NAME?"}},null,null,{"$f":"(_xll.RiskData(NR_to_Cash!C$18,$A744))/1000","v":{"$error":"#NAME?"}},{"$f":"(_xll.RiskData(NR_to_Cash!D$18,$A744))/1000","v":{"$error":"#NAME?"}},{"$f":"(_xll.RiskData(NR_to_Cash!E$18,$A744))/1000","v":{"$error":"#NAME?"}}]
[738,{"$f":"_xll.RiskData('Risk Summary'!J$48,$A745)/1000","v":{"$error":"#NAME?"}},{"$f":"_xll.RiskData('Risk Summary'!K$48,$A745)/1000","v":{"$error":"#NAME?"}},{"$f":"_xll.RiskData('Risk Summary'!L$48,$A745)/1000","v":{"$error":"#NAME?"}},null,null,{"$f":"(_xll.RiskData(NR_to_Cash!C$18,$A745))/1000","v":{"$error":"#NAME?"}},{"$f":"(_xll.RiskData(NR_to_Cash!D$18,$A745))/1000","v":{"$error":"#NAME?"}},{"$f":"(_xll.RiskData(NR_to_Cash!E$18,$A745))/1000","v":{"$error":"#NAME?"}}]
[739,{"$f":"_xll.RiskData('Risk Summary'!J$48,$A746)/1000","v":{"$error":"#NAME?"}},{"$f":"_xll.RiskData('Risk Summary'!K$48,$A746)/1000","v":{"$error":"#NAME?"}},{"$f":"_xll.RiskData('Risk Summary'!L$48,$A746)/1000","v":{"$error":"#NAME?"}},null,null,{"$f":"(_xll.RiskData(NR_to_Cash!C$18,$A746))/1000","v":{"$error":"#NAME?"}},{"$f":"(_xll.RiskData(NR_to_Cash!D$18,$A746))/1000","v":{"$error":"#NAME?"}},{"$f":"(_xll.RiskData(NR_to_Cash!E$18,$A746))/1000","v":{"$error":"#NAME?"}}]
[740,{"$f":"_xll.RiskData('Risk Summary'!J$48,$A747)/1000","v":{"$error":"#NAME?"}},{"$f":"_xll.RiskData('Risk Summary'!K$48,$A747)/1000","v":{"$error":"#NAME?"}},{"$f":"_xll.RiskData('Risk Summary'!L$48,$A747)/1000","v":{"$error":"#NAME?"}},null,null,{"$f":"(_xll.RiskData(NR_to_Cash!C$18,$A747))/1000","v":{"$error":"#NAME?"}},{"$f":"(_xll.RiskData(NR_to_Cash!D$18,$A747))/1000","v":{"$error":"#NAME?"}},{"$f":"(_xll.RiskData(NR_to_Cash!E$18,$A747))/1000","v":{"$error":"#NAME?"}}]
[741,{"$f":"_xll.RiskData('Risk Summary'!J$48,$A748)/1000","v":{"$error":"#NAME?"}},{"$f":"_xll.RiskData('Risk Summary'!K$48,$A748)/1000","v":{"$error":"#NAME?"}},{"$f":"_xll.RiskData('Risk Summary'!L$48,$A748)/1000","v":{"$error":"#NAME?"}},null,null,{"$f":"(_xll.RiskData(NR_to_Cash!C$18,$A748))/1000","v":{"$error":"#NAME?"}},{"$f":"(_xll.RiskData(NR_to_Cash!D$18,$A748))/1000","v":{"$error":"#NAME?"}},{"$f":"(_xll.RiskData(NR_to_Cash!E$18,$A748))/1000","v":{"$error":"#NAME?"}}]
[742,{"$f":"_xll.RiskData('Risk Summary'!J$48,$A749)/1000","v":{"$error":"#NAME?"}},{"$f":"_xll.RiskData('Risk Summary'!K$48,$A749)/1000","v":{"$error":"#NAME?"}},{"$f":"_xll.RiskData('Risk Summary'!L$48,$A749)/1000","v":{"$error":"#NAME?"}},null,null,{"$f":"(_xll.RiskData(NR_to_Cash!C$18,$A749))/1000","v":{"$error":"#NAME?"}},{"$f":"(_xll.RiskData(NR_to_Cash!D$18,$A749))/1000","v":{"$error":"#NAME?"}},{"$f":"(_xll.RiskData(NR_to_Cash!E$18,$A749))/1000","v":{"$error":"#NAME?"}}]
[743,{"$f":"_xll.RiskData('Risk Summary'!J$48,$A750)/1000","v":{"$error":"#NAME?"}},{"$f":"_xll.RiskData('Risk Summary'!K$48,$A750)/1000","v":{"$error":"#NAME?"}},{"$f":"_xll.RiskData('Risk Summary'!L$48,$A750)/1000","v":{"$error":"#NAME?"}},null,null,{"$f":"(_xll.RiskData(NR_to_Cash!C$18,$A750))/1000","v":{"$error":"#NAME?"}},{"$f":"(_xll.RiskData(NR_to_Cash!D$18,$A750))/1000","v":{"$error":"#NAME?"}},{"$f":"(_xll.RiskData(NR_to_Cash!E$18,$A750))/1000","v":{"$error":"#NAME?"}}]
[744,{"$f":"_xll.RiskData('Risk Summary'!J$48,$A751)/1000","v":{"$error":"#NAME?"}},{"$f":"_xll.RiskData('Risk Summary'!K$48,$A751)/1000","v":{"$error":"#NAME?"}},{"$f":"_xll.RiskData('Risk Summary'!L$48,$A751)/1000","v":{"$error":"#NAME?"}},null,null,{"$f":"(_xll.RiskData(NR_to_Cash!C$18,$A751))/1000","v":{"$error":"#NAME?"}},{"$f":"(_xll.RiskData(NR_to_Cash!D$18,$A751))/1000","v":{"$error":"#NAME?"}},{"$f":"(_xll.RiskData(NR_to_Cash!E$18,$A751))/1000","v":{"$error":"#NAME?"}}]
[745,{"$f":"_xll.RiskData('Risk Summary'!J$48,$A752)/1000","v":{"$error":"#NAME?"}},{"$f":"_xll.RiskData('Risk Summary'!K$48,$A752)/1000","v":{"$error":"#NAME?"}},{"$f":"_xll.RiskData('Risk Summary'!L$48,$A752)/1000","v":{"$error":"#NAME?"}},null,null,{"$f":"(_xll.RiskData(NR_to_Cash!C$18,$A752))/1000","v":{"$error":"#NAME?"}},{"$f":"(_xll.RiskData(NR_to_Cash!D$18,$A752))/1000","v":{"$error":"#NAME?"}},{"$f":"(_xll.RiskData(NR_to_Cash!E$18,$A752))/1000","v":{"$error":"#NAME?"}}]
[746,{"$f":"_xll.RiskData('Risk Summary'!J$48,$A753)/1000","v":{"$error":"#NAME?"}},{"$f":"_xll.RiskData('Risk Summary'!K$48,$A753)/1000","v":{"$error":"#NAME?"}},{"$f":"_xll.RiskData('Risk Summary'!L$48,$A753)/1000","v":{"$error":"#NAME?"}},null,null,{"$f":"(_xll.RiskData(NR_to_Cash!C$18,$A753))/1000","v":{"$error":"#NAME?"}},{"$f":"(_xll.RiskData(NR_to_Cash!D$18,$A753))/1000","v":{"$error":"#NAME?"}},{"$f":"(_xll.RiskData(NR_to_Cash!E$18,$A753))/1000","v":{"$error":"#NAME?"}}]
[747,{"$f":"_xll.RiskData('Risk Summary'!J$48,$A754)/1000","v":{"$error":"#NAME?"}},{"$f":"_xll.RiskData('Risk Summary'!K$48,$A754)/1000","v":{"$error":"#NAME?"}},{"$f":"_xll.RiskData('Risk Summary'!L$48,$A754)/1000","v":{"$error":"#NAME?"}},null,null,{"$f":"(_xll.RiskData(NR_to_Cash!C$18,$A754))/1000","v":{"$error":"#NAME?"}},{"$f":"(_xll.RiskData(NR_to_Cash!D$18,$A754))/1000","v":{"$error":"#NAME?"}},{"$f":"(_xll.RiskData(NR_to_Cash!E$18,$A754))/1000","v":{"$error":"#NAME?"}}]
[748,{"$f":"_xll.RiskData('Risk Summary'!J$48,$A755)/1000","v":{"$error":"#NAME?"}},{"$f":"_xll.RiskData('Risk Summary'!K$48,$A755)/1000","v":{"$error":"#NAME?"}},{"$f":"_xll.RiskData('Risk Summary'!L$48,$A755)/1000","v":{"$error":"#NAME?"}},null,null,{"$f":"(_xll.RiskData(NR_to_Cash!C$18,$A755))/1000","v":{"$error":"#NAME?"}},{"$f":"(_xll.RiskData(NR_to_Cash!D$18,$A755))/1000","v":{"$error":"#NAME?"}},{"$f":"(_xll.RiskData(NR_to_Cash!E$18,$A755))/1000","v":{"$error":"#NAME?"}}]
[749,{"$f":"_xll.RiskData('Risk Summary'!J$48,$A756)/1000","v":{"$error":"#NAME?"}},{"$f":"_xll.RiskData('Risk Summary'!K$48,$A756)/1000","v":{"$error":"#NAME?"}},{"$f":"_xll.RiskData('Risk Summary'!L$48,$A756)/1000","v":{"$error":"#NAME?"}},null,null,{"$f":"(_xll.RiskData(NR_to_Cash!C$18,$A756))/1000","v":{"$error":"#NAME?"}},{"$f":"(_xll.RiskData(NR_to_Cash!D$18,$A756))/1000","v":{"$error":"#NAME?"}},{"$f":"(_xll.RiskData(NR_to_Cash!E$18,$A756))/1000","v":{"$error":"#NAME?"}}]
[750,{"$f":"_xll.RiskData('Risk Summary'!J$48,$A757)/1000","v":{"$error":"#NAME?"}},{"$f":"_xll.RiskData('Risk Summary'!K$48,$A757)/1000","v":{"$error":"#NAME?"}},{"$f":"_xll.RiskData('Risk Summary'!L$48,$A757)/1000","v":{"$error":"#NAME?"}},null,null,{"$f":"(_xll.RiskData(NR_to_Cash!C$18,$A757))/1000","v":{"$error":"#NAME?"}},{"$f":"(_xll.RiskData(NR_to_Cash!D$18,$A757))/1000","v":{"$error":"#NAME?"}},{"$f":"(_xll.RiskData(NR_to_Cash!E$18,$A757))/1000","v":{"$error":"#NAME?"}}]
[751,{"$f":"_xll.RiskData('Risk Summary'!J$48,$A758)/1000","v":{"$error":"#NAME?"}},{"$f":"_xll.RiskData('Risk Summary'!K$48,$A758)/1000","v":{"$error":"#NAME?"}},{"$f":"_xll.RiskData('Risk Summary'!L$48,$A758)/1000","v":{"$error":"#NAME?"}},null,null,{"$f":"(_xll.RiskData(NR_to_Cash!C$18,$A758))/1000","v":{"$error":"#NAME?"}},{"$f":"(_xll.RiskData(NR_to_Cash!D$18,$A758))/1000","v":{"$error":"#NAME?"}},{"$f":"(_xll.RiskData(NR_to_Cash!E$18,$A758))/1000","v":{"$error":"#NAME?"}}]
[752,{"$f":"_xll.RiskData('Risk Summary'!J$48,$A759)/1000","v":{"$error":"#NAME?"}},{"$f":"_xll.RiskData('Risk Summary'!K$48,$A759)/1000","v":{"$error":"#NAME?"}},{"$f":"_xll.RiskData('Risk Summary'!L$48,$A759)/1000","v":{"$error":"#NAME?"}},null,null,{"$f":"(_xll.RiskData(NR_to_Cash!C$18,$A759))/1000","v":{"$error":"#NAME?"}},{"$f":"(_xll.RiskData(NR_to_Cash!D$18,$A759))/1000","v":{"$error":"#NAME?"}},{"$f":"(_xll.RiskData(NR_to_Cash!E$18,$A759))/1000","v":{"$error":"#NAME?"}}]
[753,{"$f":"_xll.RiskData('Risk Summary'!J$48,$A760)/1000","v":{"$error":"#NAME?"}},{"$f":"_xll.RiskData('Risk Summary'!K$48,$A760)/1000","v":{"$error":"#NAME?"}},{"$f":"_xll.RiskData('Risk Summary'!L$48,$A760)/1000","v":{"$error":"#NAME?"}},null,null,{"$f":"(_xll.RiskData(NR_to_Cash!C$18,$A760))/1000","v":{"$error":"#NAME?"}},{"$f":"(_xll.RiskData(NR_to_Cash!D$18,$A760))/1000","v":{"$error":"#NAME?"}},{"$f":"(_xll.RiskData(NR_to_Cash!E$18,$A760))/1000","v":{"$error":"#NAME?"}}]
[754,{"$f":"_xll.RiskData('Risk Summary'!J$48,$A761)/1000","v":{"$error":"#NAME?"}},{"$f":"_xll.RiskData('Risk Summary'!K$48,$A761)/1000","v":{"$error":"#NAME?"}},{"$f":"_xll.RiskData('Risk Summary'!L$48,$A761)/1000","v":{"$error":"#NAME?"}},null,null,{"$f":"(_xll.RiskData(NR_to_Cash!C$18,$A761))/1000","v":{"$error":"#NAME?"}},{"$f":"(_xll.RiskData(NR_to_Cash!D$18,$A761))/1000","v":{"$error":"#NAME?"}},{"$f":"(_xll.RiskData(NR_to_Cash!E$18,$A761))/1000","v":{"$error":"#NAME?"}}]
[755,{"$f":"_xll.RiskData('Risk Summary'!J$48,$A762)/1000","v":{"$error":"#NAME?"}},{"$f":"_xll.RiskData('Risk Summary'!K$48,$A762)/1000","v":{"$error":"#NAME?"}},{"$f":"_xll.RiskData('Risk Summary'!L$48,$A762)/1000","v":{"$error":"#NAME?"}},null,null,{"$f":"(_xll.RiskData(NR_to_Cash!C$18,$A762))/1000","v":{"$error":"#NAME?"}},{"$f":"(_xll.RiskData(NR_to_Cash!D$18,$A762))/1000","v":{"$error":"#NAME?"}},{"$f":"(_xll.RiskData(NR_to_Cash!E$18,$A762))/1000","v":{"$error":"#NAME?"}}]
[756,{"$f":"_xll.RiskData('Risk Summary'!J$48,$A763)/1000","v":{"$error":"#NAME?"}},{"$f":"_xll.RiskData('Risk Summary'!K$48,$A763)/1000","v":{"$error":"#NAME?"}},{"$f":"_xll.RiskData('Risk Summary'!L$48,$A763)/1000","v":{"$error":"#NAME?"}},null,null,{"$f":"(_xll.RiskData(NR_to_Cash!C$18,$A763))/1000","v":{"$error":"#NAME?"}},{"$f":"(_xll.RiskData(NR_to_Cash!D$18,$A763))/1000","v":{"$error":"#NAME?"}},{"$f":"(_xll.RiskData(NR_to_Cash!E$18,$A763))/1000","v":{"$error":"#NAME?"}}]
[757,{"$f":"_xll.RiskData('Risk Summary'!J$48,$A764)/1000","v":{"$error":"#NAME?"}},{"$f":"_xll.RiskData('Risk Summary'!K$48,$A764)/1000","v":{"$error":"#NAME?"}},{"$f":"_xll.RiskData('Risk Summary'!L$48,$A764)/1000","v":{"$error":"#NAME?"}},null,null,{"$f":"(_xll.RiskData(NR_to_Cash!C$18,$A764))/1000","v":{"$error":"#NAME?"}},{"$f":"(_xll.RiskData(NR_to_Cash!D$18,$A764))/1000","v":{"$error":"#NAME?"}},{"$f":"(_xll.RiskData(NR_to_Cash!E$18,$A764))/1000","v":{"$error":"#NAME?"}}]
[758,{"$f":"_xll.RiskData('Risk Summary'!J$48,$A765)/1000","v":{"$error":"#NAME?"}},{"$f":"_xll.RiskData('Risk Summary'!K$48,$A765)/1000","v":{"$error":"#NAME?"}},{"$f":"_xll.RiskData('Risk Summary'!L$48,$A765)/1000","v":{"$error":"#NAME?"}},null,null,{"$f":"(_xll.RiskData(NR_to_Cash!C$18,$A765))/1000","v":{"$error":"#NAME?"}},{"$f":"(_xll.RiskData(NR_to_Cash!D$18,$A765))/1000","v":{"$error":"#NAME?"}},{"$f":"(_xll.RiskData(NR_to_Cash!E$18,$A765))/1000","v":{"$error":"#NAME?"}}]
[759,{"$f":"_xll.RiskData('Risk Summary'!J$48,$A766)/1000","v":{"$error":"#NAME?"}},{"$f":"_xll.RiskData('Risk Summary'!K$48,$A766)/1000","v":{"$error":"#NAME?"}},{"$f":"_xll.RiskData('Risk Summary'!L$48,$A766)/1000","v":{"$error":"#NAME?"}},null,null,{"$f":"(_xll.RiskData(NR_to_Cash!C$18,$A766))/1000","v":{"$error":"#NAME?"}},{"$f":"(_xll.RiskData(NR_to_Cash!D$18,$A766))/1000","v":{"$error":"#NAME?"}},{"$f":"(_xll.RiskData(NR_to_Cash!E$18,$A766))/1000","v":{"$error":"#NAME?"}}]
[760,{"$f":"_xll.RiskData('Risk Summary'!J$48,$A767)/1000","v":{"$error":"#NAME?"}},{"$f":"_xll.RiskData('Risk Summary'!K$48,$A767)/1000","v":{"$error":"#NAME?"}},{"$f":"_xll.RiskData('Risk Summary'!L$48,$A767)/1000","v":{"$error":"#NAME?"}},null,null,{"$f":"(_xll.RiskData(NR_to_Cash!C$18,$A767))/1000","v":{"$error":"#NAME?"}},{"$f":"(_xll.RiskData(NR_to_Cash!D$18,$A767))/1000","v":{"$error":"#NAME?"}},{"$f":"(_xll.RiskData(NR_to_Cash!E$18,$A767))/1000","v":{"$error":"#NAME?"}}]
[761,{"$f":"_xll.RiskData('Risk Summary'!J$48,$A768)/1000","v":{"$error":"#NAME?"}},{"$f":"_xll.RiskData('Risk Summary'!K$48,$A768)/1000","v":{"$error":"#NAME?"}},{"$f":"_xll.RiskData('Risk Summary'!L$48,$A768)/1000","v":{"$error":"#NAME?"}},null,null,{"$f":"(_xll.RiskData(NR_to_Cash!C$18,$A768))/1000","v":{"$error":"#NAME?"}},{"$f":"(_xll.RiskData(NR_to_Cash!D$18,$A768))/1000","v":{"$error":"#NAME?"}},{"$f":"(_xll.RiskData(NR_to_Cash!E$18,$A768))/1000","v":{"$error":"#NAME?"}}]
[762,{"$f":"_xll.RiskData('Risk Summary'!J$48,$A769)/1000","v":{"$error":"#NAME?"}},{"$f":"_xll.RiskData('Risk Summary'!K$48,$A769)/1000","v":{"$error":"#NAME?"}},{"$f":"_xll.RiskData('Risk Summary'!L$48,$A769)/1000","v":{"$error":"#NAME?"}},null,null,{"$f":"(_xll.RiskData(NR_to_Cash!C$18,$A769))/1000","v":{"$error":"#NAME?"}},{"$f":"(_xll.RiskData(NR_to_Cash!D$18,$A769))/1000","v":{"$error":"#NAME?"}},{"$f":"(_xll.RiskData(NR_to_Cash!E$18,$A769))/1000","v":{"$error":"#NAME?"}}]
[763,{"$f":"_xll.RiskData('Risk Summary'!J$48,$A770)/1000","v":{"$error":"#NAME?"}},{"$f":"_xll.RiskData('Risk Summary'!K$48,$A770)/1000","v":{"$error":"#NAME?"}},{"$f":"_xll.RiskData('Risk Summary'!L$48,$A770)/1000","v":{"$error":"#NAME?"}},null,null,{"$f":"(_xll.RiskData(NR_to_Cash!C$18,$A770))/1000","v":{"$error":"#NAME?"}},{"$f":"(_xll.RiskData(NR_to_Cash!D$18,$A770))/1000","v":{"$error":"#NAME?"}},{"$f":"(_xll.RiskData(NR_to_Cash!E$18,$A770))/1000","v":{"$error":"#NAME?"}}]
[764,{"$f":"_xll.RiskData('Risk Summary'!J$48,$A771)/1000","v":{"$error":"#NAME?"}},{"$f":"_xll.RiskData('Risk Summary'!K$48,$A771)/1000","v":{"$error":"#NAME?"}},{"$f":"_xll.RiskData('Risk Summary'!L$48,$A771)/1000","v":{"$error":"#NAME?"}},null,null,{"$f":"(_xll.RiskData(NR_to_Cash!C$18,$A771))/1000","v":{"$error":"#NAME?"}},{"$f":"(_xll.RiskData(NR_to_Cash!D$18,$A771))/1000","v":{"$error":"#NAME?"}},{"$f":"(_xll.RiskData(NR_to_Cash!E$18,$A771))/1000","v":{"$error":"#NAME?"}}]
[765,{"$f":"_xll.RiskData('Risk Summary'!J$48,$A772)/1000","v":{"$error":"#NAME?"}},{"$f":"_xll.RiskData('Risk Summary'!K$48,$A772)/1000","v":{"$error":"#NAME?"}},{"$f":"_xll.RiskData('Risk Summary'!L$48,$A772)/1000","v":{"$error":"#NAME?"}},null,null,{"$f":"(_xll.RiskData(NR_to_Cash!C$18,$A772))/1000","v":{"$error":"#NAME?"}},{"$f":"(_xll.RiskData(NR_to_Cash!D$18,$A772))/1000","v":{"$error":"#NAME?"}},{"$f":"(_xll.RiskData(NR_to_Cash!E$18,$A772))/1000","v":{"$error":"#NAME?"}}]
[766,{"$f":"_xll.RiskData('Risk Summary'!J$48,$A773)/1000","v":{"$error":"#NAME?"}},{"$f":"_xll.RiskData('Risk Summary'!K$48,$A773)/1000","v":{"$error":"#NAME?"}},{"$f":"_xll.RiskData('Risk Summary'!L$48,$A773)/1000","v":{"$error":"#NAME?"}},null,null,{"$f":"(_xll.RiskData(NR_to_Cash!C$18,$A773))/1000","v":{"$error":"#NAME?"}},{"$f":"(_xll.RiskData(NR_to_Cash!D$18,$A773))/1000","v":{"$error":"#NAME?"}},{"$f":"(_xll.RiskData(NR_to_Cash!E$18,$A773))/1000","v":{"$error":"#NAME?"}}]
[767,{"$f":"_xll.RiskData('Risk Summary'!J$48,$A774)/1000","v":{"$error":"#NAME?"}},{"$f":"_xll.RiskData('Risk Summary'!K$48,$A774)/1000","v":{"$error":"#NAME?"}},{"$f":"_xll.RiskData('Risk Summary'!L$48,$A774)/1000","v":{"$error":"#NAME?"}},null,null,{"$f":"(_xll.RiskData(NR_to_Cash!C$18,$A774))/1000","v":{"$error":"#NAME?"}},{"$f":"(_xll.RiskData(NR_to_Cash!D$18,$A774))/1000","v":{"$error":"#NAME?"}},{"$f":"(_xll.RiskData(NR_to_Cash!E$18,$A774))/1000","v":{"$error":"#NAME?"}}]
[768,{"$f":"_xll.RiskData('Risk Summary'!J$48,$A775)/1000","v":{"$error":"#NAME?"}},{"$f":"_xll.RiskData('Risk Summary'!K$48,$A775)/1000","v":{"$error":"#NAME?"}},{"$f":"_xll.RiskData('Risk Summary'!L$48,$A775)/1000","v":{"$error":"#NAME?"}},null,null,{"$f":"(_xll.RiskData(NR_to_Cash!C$18,$A775))/1000","v":{"$error":"#NAME?"}},{"$f":"(_xll.RiskData(NR_to_Cash!D$18,$A775))/1000","v":{"$error":"#NAME?"}},{"$f":"(_xll.RiskData(NR_to_Cash!E$18,$A775))/1000","v":{"$error":"#NAME?"}}]
[769,{"$f":"_xll.RiskData('Risk Summary'!J$48,$A776)/1000","v":{"$error":"#NAME?"}},{"$f":"_xll.RiskData('Risk Summary'!K$48,$A776)/1000","v":{"$error":"#NAME?"}},{"$f":"_xll.RiskData('Risk Summary'!L$48,$A776)/1000","v":{"$error":"#NAME?"}},null,null,{"$f":"(_xll.RiskData(NR_to_Cash!C$18,$A776))/1000","v":{"$error":"#NAME?"}},{"$f":"(_xll.RiskData(NR_to_Cash!D$18,$A776))/1000","v":{"$error":"#NAME?"}},{"$f":"(_xll.RiskData(NR_to_Cash!E$18,$A776))/1000","v":{"$error":"#NAME?"}}]
[770,{"$f":"_xll.RiskData('Risk Summary'!J$48,$A777)/1000","v":{"$error":"#NAME?"}},{"$f":"_xll.RiskData('Risk Summary'!K$48,$A777)/1000","v":{"$error":"#NAME?"}},{"$f":"_xll.RiskData('Risk Summary'!L$48,$A777)/1000","v":{"$error":"#NAME?"}},null,null,{"$f":"(_xll.RiskData(NR_to_Cash!C$18,$A777))/1000","v":{"$error":"#NAME?"}},{"$f":"(_xll.RiskData(NR_to_Cash!D$18,$A777))/1000","v":{"$error":"#NAME?"}},{"$f":"(_xll.RiskData(NR_to_Cash!E$18,$A777))/1000","v":{"$error":"#NAME?"}}]
[771,{"$f":"_xll.RiskData('Risk Summary'!J$48,$A778)/1000","v":{"$error":"#NAME?"}},{"$f":"_xll.RiskData('Risk Summary'!K$48,$A778)/1000","v":{"$error":"#NAME?"}},{"$f":"_xll.RiskData('Risk Summary'!L$48,$A778)/1000","v":{"$error":"#NAME?"}},null,null,{"$f":"(_xll.RiskData(NR_to_Cash!C$18,$A778))/1000","v":{"$error":"#NAME?"}},{"$f":"(_xll.RiskData(NR_to_Cash!D$18,$A778))/1000","v":{"$error":"#NAME?"}},{"$f":"(_xll.RiskData(NR_to_Cash!E$18,$A778))/1000","v":{"$error":"#NAME?"}}]
[772,{"$f":"_xll.RiskData('Risk Summary'!J$48,$A779)/1000","v":{"$error":"#NAME?"}},{"$f":"_xll.RiskData('Risk Summary'!K$48,$A779)/1000","v":{"$error":"#NAME?"}},{"$f":"_xll.RiskData('Risk Summary'!L$48,$A779)/1000","v":{"$error":"#NAME?"}},null,null,{"$f":"(_xll.RiskData(NR_to_Cash!C$18,$A779))/1000","v":{"$error":"#NAME?"}},{"$f":"(_xll.RiskData(NR_to_Cash!D$18,$A779))/1000","v":{"$error":"#NAME?"}},{"$f":"(_xll.RiskData(NR_to_Cash!E$18,$A779))/1000","v":{"$error":"#NAME?"}}]
[773,{"$f":"_xll.RiskData('Risk Summary'!J$48,$A780)/1000","v":{"$error":"#NAME?"}},{"$f":"_xll.RiskData('Risk Summary'!K$48,$A780)/1000","v":{"$error":"#NAME?"}},{"$f":"_xll.RiskData('Risk Summary'!L$48,$A780)/1000","v":{"$error":"#NAME?"}},null,null,{"$f":"(_xll.RiskData(NR_to_Cash!C$18,$A780))/1000","v":{"$error":"#NAME?"}},{"$f":"(_xll.RiskData(NR_to_Cash!D$18,$A780))/1000","v":{"$error":"#NAME?"}},{"$f":"(_xll.RiskData(NR_to_Cash!E$18,$A780))/1000","v":{"$error":"#NAME?"}}]
[774,{"$f":"_xll.RiskData('Risk Summary'!J$48,$A781)/1000","v":{"$error":"#NAME?"}},{"$f":"_xll.RiskData('Risk Summary'!K$48,$A781)/1000","v":{"$error":"#NAME?"}},{"$f":"_xll.RiskData('Risk Summary'!L$48,$A781)/1000","v":{"$error":"#NAME?"}},null,null,{"$f":"(_xll.RiskData(NR_to_Cash!C$18,$A781))/1000","v":{"$error":"#NAME?"}},{"$f":"(_xll.RiskData(NR_to_Cash!D$18,$A781))/1000","v":{"$error":"#NAME?"}},{"$f":"(_xll.RiskData(NR_to_Cash!E$18,$A781))/1000","v":{"$error":"#NAME?"}}]
[775,{"$f":"_xll.RiskData('Risk Summary'!J$48,$A782)/1000","v":{"$error":"#NAME?"}},{"$f":"_xll.RiskData('Risk Summary'!K$48,$A782)/1000","v":{"$error":"#NAME?"}},{"$f":"_xll.RiskData('Risk Summary'!L$48,$A782)/1000","v":{"$error":"#NAME?"}},null,null,{"$f":"(_xll.RiskData(NR_to_Cash!C$18,$A782))/1000","v":{"$error":"#NAME?"}},{"$f":"(_xll.RiskData(NR_to_Cash!D$18,$A782))/1000","v":{"$error":"#NAME?"}},{"$f":"(_xll.RiskData(NR_to_Cash!E$18,$A782))/1000","v":{"$error":"#NAME?"}}]
[776,{"$f":"_xll.RiskData('Risk Summary'!J$48,$A783)/1000","v":{"$error":"#NAME?"}},{"$f":"_xll.RiskData('Risk Summary'!K$48,$A783)/1000","v":{"$error":"#NAME?"}},{"$f":"_xll.RiskData('Risk Summary'!L$48,$A783)/1000","v":{"$error":"#NAME?"}},null,null,{"$f":"(_xll.RiskData(NR_to_Cash!C$18,$A783))/1000","v":{"$error":"#NAME?"}},{"$f":"(_xll.RiskData(NR_to_Cash!D$18,$A783))/1000","v":{"$error":"#NAME?"}},{"$f":"(_xll.RiskData(NR_to_Cash!E$18,$A783))/1000","v":{"$error":"#NAME?"}}]
[777,{"$f":"_xll.RiskData('Risk Summary'!J$48,$A784)/1000","v":{"$error":"#NAME?"}},{"$f":"_xll.RiskData('Risk Summary'!K$48,$A784)/1000","v":{"$error":"#NAME?"}},{"$f":"_xll.RiskData('Risk Summary'!L$48,$A784)/1000","v":{"$error":"#NAME?"}},null,null,{"$f":"(_xll.RiskData(NR_to_Cash!C$18,$A784))/1000","v":{"$error":"#NAME?"}},{"$f":"(_xll.RiskData(NR_to_Cash!D$18,$A784))/1000","v":{"$error":"#NAME?"}},{"$f":"(_xll.RiskData(NR_to_Cash!E$18,$A784))/1000","v":{"$error":"#NAME?"}}]
[778,{"$f":"_xll.RiskData('Risk Summary'!J$48,$A785)/1000","v":{"$error":"#NAME?"}},{"$f":"_xll.RiskData('Risk Summary'!K$48,$A785)/1000","v":{"$error":"#NAME?"}},{"$f":"_xll.RiskData('Risk Summary'!L$48,$A785)/1000","v":{"$error":"#NAME?"}},null,null,{"$f":"(_xll.RiskData(NR_to_Cash!C$18,$A785))/1000","v":{"$error":"#NAME?"}},{"$f":"(_xll.RiskData(NR_to_Cash!D$18,$A785))/1000","v":{"$error":"#NAME?"}},{"$f":"(_xll.RiskData(NR_to_Cash!E$18,$A785))/1000","v":{"$error":"#NAME?"}}]
[779,{"$f":"_xll.RiskData('Risk Summary'!J$48,$A786)/1000","v":{"$error":"#NAME?"}},{"$f":"_xll.RiskData('Risk Summary'!K$48,$A786)/1000","v":{"$error":"#NAME?"}},{"$f":"_xll.RiskData('Risk Summary'!L$48,$A786)/1000","v":{"$error":"#NAME?"}},null,null,{"$f":"(_xll.RiskData(NR_to_Cash!C$18,$A786))/1000","v":{"$error":"#NAME?"}},{"$f":"(_xll.RiskData(NR_to_Cash!D$18,$A786))/1000","v":{"$error":"#NAME?"}},{"$f":"(_xll.RiskData(NR_to_Cash!E$18,$A786))/1000","v":{"$error":"#NAME?"}}]
[780,{"$f":"_xll.RiskData('Risk Summary'!J$48,$A787)/1000","v":{"$error":"#NAME?"}},{"$f":"_xll.RiskData('Risk Summary'!K$48,$A787)/1000","v":{"$error":"#NAME?"}},{"$f":"_xll.RiskData('Risk Summary'!L$48,$A787)/1000","v":{"$error":"#NAME?"}},null,null,{"$f":"(_xll.RiskData(NR_to_Cash!C$18,$A787))/1000","v":{"$error":"#NAME?"}},{"$f":"(_xll.RiskData(NR_to_Cash!D$18,$A787))/1000","v":{"$error":"#NAME?"}},{"$f":"(_xll.RiskData(NR_to_Cash!E$18,$A787))/1000","v":{"$error":"#NAME?"}}]
[781,{"$f":"_xll.RiskData('Risk Summary'!J$48,$A788)/1000","v":{"$error":"#NAME?"}},{"$f":"_xll.RiskData('Risk Summary'!K$48,$A788)/1000","v":{"$error":"#NAME?"}},{"$f":"_xll.RiskData('Risk Summary'!L$48,$A788)/1000","v":{"$error":"#NAME?"}},null,null,{"$f":"(_xll.RiskData(NR_to_Cash!C$18,$A788))/1000","v":{"$error":"#NAME?"}},{"$f":"(_xll.RiskData(NR_to_Cash!D$18,$A788))/1000","v":{"$error":"#NAME?"}},{"$f":"(_xll.RiskData(NR_to_Cash!E$18,$A788))/1000","v":{"$error":"#NAME?"}}]
[782,{"$f":"_xll.RiskData('Risk Summary'!J$48,$A789)/1000","v":{"$error":"#NAME?"}},{"$f":"_xll.RiskData('Risk Summary'!K$48,$A789)/1000","v":{"$error":"#NAME?"}},{"$f":"_xll.RiskData('Risk Summary'!L$48,$A789)/1000","v":{"$error":"#NAME?"}},null,null,{"$f":"(_xll.RiskData(NR_to_Cash!C$18,$A789))/1000","v":{"$error":"#NAME?"}},{"$f":"(_xll.RiskData(NR_to_Cash!D$18,$A789))/1000","v":{"$error":"#NAME?"}},{"$f":"(_xll.RiskData(NR_to_Cash!E$18,$A789))/1000","v":{"$error":"#NAME?"}}]
[783,{"$f":"_xll.RiskData('Risk Summary'!J$48,$A790)/1000","v":{"$error":"#NAME?"}},{"$f":"_xll.RiskData('Risk Summary'!K$48,$A790)/1000","v":{"$error":"#NAME?"}},{"$f":"_xll.RiskData('Risk Summary'!L$48,$A790)/1000","v":{"$error":"#NAME?"}},null,null,{"$f":"(_xll.RiskData(NR_to_Cash!C$18,$A790))/1000","v":{"$error":"#NAME?"}},{"$f":"(_xll.RiskData(NR_to_Cash!D$18,$A790))/1000","v":{"$error":"#NAME?"}},{"$f":"(_xll.RiskData(NR_to_Cash!E$18,$A790))/1000","v":{"$error":"#NAME?"}}]
[784,{"$f":"_xll.RiskData('Risk Summary'!J$48,$A791)/1000","v":{"$error":"#NAME?"}},{"$f":"_xll.RiskData('Risk Summary'!K$48,$A791)/1000","v":{"$error":"#NAME?"}},{"$f":"_xll.RiskData('Risk Summary'!L$48,$A791)/1000","v":{"$error":"#NAME?"}},null,null,{"$f":"(_xll.RiskData(NR_to_Cash!C$18,$A791))/1000","v":{"$error":"#NAME?"}},{"$f":"(_xll.RiskData(NR_to_Cash!D$18,$A791))/1000","v":{"$error":"#NAME?"}},{"$f":"(_xll.RiskData(NR_to_Cash!E$18,$A791))/1000","v":{"$error":"#NAME?"}}]
[785,{"$f":"_xll.RiskData('Risk Summary'!J$48,$A792)/1000","v":{"$error":"#NAME?"}},{"$f":"_xll.RiskData('Risk Summary'!K$48,$A792)/1000","v":{"$error":"#NAME?"}},{"$f":"_xll.RiskData('Risk Summary'!L$48,$A792)/1000","v":{"$error":"#NAME?"}},null,null,{"$f":"(_xll.RiskData(NR_to_Cash!C$18,$A792))/1000","v":{"$error":"#NAME?"}},{"$f":"(_xll.RiskData(NR_to_Cash!D$18,$A792))/1000","v":{"$error":"#NAME?"}},{"$f":"(_xll.RiskData(NR_to_Cash!E$18,$A792))/1000","v":{"$error":"#NAME?"}}]
[786,{"$f":"_xll.RiskData('Risk Summary'!J$48,$A793)/1000","v":{"$error":"#NAME?"}},{"$f":"_xll.RiskData('Risk Summary'!K$48,$A793)/1000","v":{"$error":"#NAME?"}},{"$f":"_xll.RiskData('Risk Summary'!L$48,$A793)/1000","v":{"$error":"#NAME?"}},null,null,{"$f":"(_xll.RiskData(NR_to_Cash!C$18,$A793))/1000","v":{"$error":"#NAME?"}},{"$f":"(_xll.RiskData(NR_to_Cash!D$18,$A793))/1000","v":{"$error":"#NAME?"}},{"$f":"(_xll.RiskData(NR_to_Cash!E$18,$A793))/1000","v":{"$error":"#NAME?"}}]
[787,{"$f":"_xll.RiskData('Risk Summary'!J$48,$A794)/1000","v":{"$error":"#NAME?"}},{"$f":"_xll.RiskData('Risk Summary'!K$48,$A794)/1000","v":{"$error":"#NAME?"}},{"$f":"_xll.RiskData('Risk Summary'!L$48,$A794)/1000","v":{"$error":"#NAME?"}},null,null,{"$f":"(_xll.RiskData(NR_to_Cash!C$18,$A794))/1000","v":{"$error":"#NAME?"}},{"$f":"(_xll.RiskData(NR_to_Cash!D$18,$A794))/1000","v":{"$error":"#NAME?"}},{"$f":"(_xll.RiskData(NR_to_Cash!E$18,$A794))/1000","v":{"$error":"#NAME?"}}]
[788,{"$f":"_xll.RiskData('Risk Summary'!J$48,$A795)/1000","v":{"$error":"#NAME?"}},{"$f":"_xll.RiskData('Risk Summary'!K$48,$A795)/1000","v":{"$error":"#NAME?"}},{"$f":"_xll.RiskData('Risk Summary'!L$48,$A795)/1000","v":{"$error":"#NAME?"}},null,null,{"$f":"(_xll.RiskData(NR_to_Cash!C$18,$A795))/1000","v":{"$error":"#NAME?"}},{"$f":"(_xll.RiskData(NR_to_Cash!D$18,$A795))/1000","v":{"$error":"#NAME?"}},{"$f":"(_xll.RiskData(NR_to_Cash!E$18,$A795))/1000","v":{"$error":"#NAME?"}}]
[789,{"$f":"_xll.RiskData('Risk Summary'!J$48,$A796)/1000","v":{"$error":"#NAME?"}},{"$f":"_xll.RiskData('Risk Summary'!K$48,$A796)/1000","v":{"$error":"#NAME?"}},{"$f":"_xll.RiskData('Risk Summary'!L$48,$A796)/1000","v":{"$error":"#NAME?"}},null,null,{"$f":"(_xll.RiskData(NR_to_Cash!C$18,$A796))/1000","v":{"$error":"#NAME?"}},{"$f":"(_xll.RiskData(NR_to_Cash!D$18,$A796))/1000","v":{"$error":"#NAME?"}},{"$f":"(_xll.RiskData(NR_to_Cash!E$18,$A796))/1000","v":{"$error":"#NAME?"}}]
[790,{"$f":"_xll.RiskData('Risk Summary'!J$48,$A797)/1000","v":{"$error":"#NAME?"}},{"$f":"_xll.RiskData('Risk Summary'!K$48,$A797)/1000","v":{"$error":"#NAME?"}},{"$f":"_xll.RiskData('Risk Summary'!L$48,$A797)/1000","v":{"$error":"#NAME?"}},null,null,{"$f":"(_xll.RiskData(NR_to_Cash!C$18,$A797))/1000","v":{"$error":"#NAME?"}},{"$f":"(_xll.RiskData(NR_to_Cash!D$18,$A797))/1000","v":{"$error":"#NAME?"}},{"$f":"(_xll.RiskData(NR_to_Cash!E$18,$A797))/1000","v":{"$error":"#NAME?"}}]
[791,{"$f":"_xll.RiskData('Risk Summary'!J$48,$A798)/1000","v":{"$error":"#NAME?"}},{"$f":"_xll.RiskData('Risk Summary'!K$48,$A798)/1000","v":{"$error":"#NAME?"}},{"$f":"_xll.RiskData('Risk Summary'!L$48,$A798)/1000","v":{"$error":"#NAME?"}},null,null,{"$f":"(_xll.RiskData(NR_to_Cash!C$18,$A798))/1000","v":{"$error":"#NAME?"}},{"$f":"(_xll.RiskData(NR_to_Cash!D$18,$A798))/1000","v":{"$error":"#NAME?"}},{"$f":"(_xll.RiskData(NR_to_Cash!E$18,$A798))/1000","v":{"$error":"#NAME?"}}]
[792,{"$f":"_xll.RiskData('Risk Summary'!J$48,$A799)/1000","v":{"$error":"#NAME?"}},{"$f":"_xll.RiskData('Risk Summary'!K$48,$A799)/1000","v":{"$error":"#NAME?"}},{"$f":"_xll.RiskData('Risk Summary'!L$48,$A799)/1000","v":{"$error":"#NAME?"}},null,null,{"$f":"(_xll.RiskData(NR_to_Cash!C$18,$A799))/1000","v":{"$error":"#NAME?"}},{"$f":"(_xll.RiskData(NR_to_Cash!D$18,$A799))/1000","v":{"$error":"#NAME?"}},{"$f":"(_xll.RiskData(NR_to_Cash!E$18,$A799))/1000","v":{"$error":"#NAME?"}}]
[793,{"$f":"_xll.RiskData('Risk Summary'!J$48,$A800)/1000","v":{"$error":"#NAME?"}},{"$f":"_xll.RiskData('Risk Summary'!K$48,$A800)/1000","v":{"$error":"#NAME?"}},{"$f":"_xll.RiskData('Risk Summary'!L$48,$A800)/1000","v":{"$error":"#NAME?"}},null,null,{"$f":"(_xll.RiskData(NR_to_Cash!C$18,$A800))/1000","v":{"$error":"#NAME?"}},{"$f":"(_xll.RiskData(NR_to_Cash!D$18,$A800))/1000","v":{"$error":"#NAME?"}},{"$f":"(_xll.RiskData(NR_to_Cash!E$18,$A800))/1000","v":{"$error":"#NAME?"}}]
[794,{"$f":"_xll.RiskData('Risk Summary'!J$48,$A801)/1000","v":{"$error":"#NAME?"}},{"$f":"_xll.RiskData('Risk Summary'!K$48,$A801)/1000","v":{"$error":"#NAME?"}},{"$f":"_xll.RiskData('Risk Summary'!L$48,$A801)/1000","v":{"$error":"#NAME?"}},null,null,{"$f":"(_xll.RiskData(NR_to_Cash!C$18,$A801))/1000","v":{"$error":"#NAME?"}},{"$f":"(_xll.RiskData(NR_to_Cash!D$18,$A801))/1000","v":{"$error":"#NAME?"}},{"$f":"(_xll.RiskData(NR_to_Cash!E$18,$A801))/1000","v":{"$error":"#NAME?"}}]
[795,{"$f":"_xll.RiskData('Risk Summary'!J$48,$A802)/1000","v":{"$error":"#NAME?"}},{"$f":"_xll.RiskData('Risk Summary'!K$48,$A802)/1000","v":{"$error":"#NAME?"}},{"$f":"_xll.RiskData('Risk Summary'!L$48,$A802)/1000","v":{"$error":"#NAME?"}},null,null,{"$f":"(_xll.RiskData(NR_to_Cash!C$18,$A802))/1000","v":{"$error":"#NAME?"}},{"$f":"(_xll.RiskData(NR_to_Cash!D$18,$A802))/1000","v":{"$error":"#NAME?"}},{"$f":"(_xll.RiskData(NR_to_Cash!E$18,$A802))/1000","v":{"$error":"#NAME?"}}]
[796,{"$f":"_xll.RiskData('Risk Summary'!J$48,$A803)/1000","v":{"$error":"#NAME?"}},{"$f":"_xll.RiskData('Risk Summary'!K$48,$A803)/1000","v":{"$error":"#NAME?"}},{"$f":"_xll.RiskData('Risk Summary'!L$48,$A803)/1000","v":{"$error":"#NAME?"}},null,null,{"$f":"(_xll.RiskData(NR_to_Cash!C$18,$A803))/1000","v":{"$error":"#NAME?"}},{"$f":"(_xll.RiskData(NR_to_Cash!D$18,$A803))/1000","v":{"$error":"#NAME?"}},{"$f":"(_xll.RiskData(NR_to_Cash!E$18,$A803))/1000","v":{"$error":"#NAME?"}}]
[797,{"$f":"_xll.RiskData('Risk Summary'!J$48,$A804)/1000","v":{"$error":"#NAME?"}},{"$f":"_xll.RiskData('Risk Summary'!K$48,$A804)/1000","v":{"$error":"#NAME?"}},{"$f":"_xll.RiskData('Risk Summary'!L$48,$A804)/1000","v":{"$error":"#NAME?"}},null,null,{"$f":"(_xll.RiskData(NR_to_Cash!C$18,$A804))/1000","v":{"$error":"#NAME?"}},{"$f":"(_xll.RiskData(NR_to_Cash!D$18,$A804))/1000","v":{"$error":"#NAME?"}},{"$f":"(_xll.RiskData(NR_to_Cash!E$18,$A804))/1000","v":{"$error":"#NAME?"}}]
[798,{"$f":"_xll.RiskData('Risk Summary'!J$48,$A805)/1000","v":{"$error":"#NAME?"}},{"$f":"_xll.RiskData('Risk Summary'!K$48,$A805)/1000","v":{"$error":"#NAME?"}},{"$f":"_xll.RiskData('Risk Summary'!L$48,$A805)/1000","v":{"$error":"#NAME?"}},null,null,{"$f":"(_xll.RiskData(NR_to_Cash!C$18,$A805))/1000","v":{"$error":"#NAME?"}},{"$f":"(_xll.RiskData(NR_to_Cash!D$18,$A805))/1000","v":{"$error":"#NAME?"}},{"$f":"(_xll.RiskData(NR_to_Cash!E$18,$A805))/1000","v":{"$error":"#NAME?"}}]
[799,{"$f":"_xll.RiskData('Risk Summary'!J$48,$A806)/1000","v":{"$error":"#NAME?"}},{"$f":"_xll.RiskData('Risk Summary'!K$48,$A806)/1000","v":{"$error":"#NAME?"}},{"$f":"_xll.RiskData('Risk Summary'!L$48,$A806)/1000","v":{"$error":"#NAME?"}},null,null,{"$f":"(_xll.RiskData(NR_to_Cash!C$18,$A806))/1000","v":{"$error":"#NAME?"}},{"$f":"(_xll.RiskData(NR_to_Cash!D$18,$A806))/1000","v":{"$error":"#NAME?"}},{"$f":"(_xll.RiskData(NR_to_Cash!E$18,$A806))/1000","v":{"$error":"#NAME?"}}]
[800,{"$f":"_xll.RiskData('Risk Summary'!J$48,$A807)/1000","v":{"$error":"#NAME?"}},{"$f":"_xll.RiskData('Risk Summary'!K$48,$A807)/1000","v":{"$error":"#NAME?"}},{"$f":"_xll.RiskData('Risk Summary'!L$48,$A807)/1000","v":{"$error":"#NAME?"}},null,null,{"$f":"(_xll.RiskData(NR_to_Cash!C$18,$A807))/1000","v":{"$error":"#NAME?"}},{"$f":"(_xll.RiskData(NR_to_Cash!D$18,$A807))/1000","v":{"$error":"#NAME?"}},{"$f":"(_xll.RiskData(NR_to_Cash!E$18,$A807))/1000","v":{"$error":"#NAME?"}}]
[801,{"$f":"_xll.RiskData('Risk Summary'!J$48,$A808)/1000","v":{"$error":"#NAME?"}},{"$f":"_xll.RiskData('Risk Summary'!K$48,$A808)/1000","v":{"$error":"#NAME?"}},{"$f":"_xll.RiskData('Risk Summary'!L$48,$A808)/1000","v":{"$error":"#NAME?"}},null,null,{"$f":"(_xll.RiskData(NR_to_Cash!C$18,$A808))/1000","v":{"$error":"#NAME?"}},{"$f":"(_xll.RiskData(NR_to_Cash!D$18,$A808))/1000","v":{"$error":"#NAME?"}},{"$f":"(_xll.RiskData(NR_to_Cash!E$18,$A808))/1000","v":{"$error":"#NAME?"}}]
[802,{"$f":"_xll.RiskData('Risk Summary'!J$48,$A809)/1000","v":{"$error":"#NAME?"}},{"$f":"_xll.RiskData('Risk Summary'!K$48,$A809)/1000","v":{"$error":"#NAME?"}},{"$f":"_xll.RiskData('Risk Summary'!L$48,$A809)/1000","v":{"$error":"#NAME?"}},null,null,{"$f":"(_xll.RiskData(NR_to_Cash!C$18,$A809))/1000","v":{"$error":"#NAME?"}},{"$f":"(_xll.RiskData(NR_to_Cash!D$18,$A809))/1000","v":{"$error":"#NAME?"}},{"$f":"(_xll.RiskData(NR_to_Cash!E$18,$A809))/1000","v":{"$error":"#NAME?"}}]
[803,{"$f":"_xll.RiskData('Risk Summary'!J$48,$A810)/1000","v":{"$error":"#NAME?"}},{"$f":"_xll.RiskData('Risk Summary'!K$48,$A810)/1000","v":{"$error":"#NAME?"}},{"$f":"_xll.RiskData('Risk Summary'!L$48,$A810)/1000","v":{"$error":"#NAME?"}},null,null,{"$f":"(_xll.RiskData(NR_to_Cash!C$18,$A810))/1000","v":{"$error":"#NAME?"}},{"$f":"(_xll.RiskData(NR_to_Cash!D$18,$A810))/1000","v":{"$error":"#NAME?"}},{"$f":"(_xll.RiskData(NR_to_Cash!E$18,$A810))/1000","v":{"$error":"#NAME?"}}]
[804,{"$f":"_xll.RiskData('Risk Summary'!J$48,$A811)/1000","v":{"$error":"#NAME?"}},{"$f":"_xll.RiskData('Risk Summary'!K$48,$A811)/1000","v":{"$error":"#NAME?"}},{"$f":"_xll.RiskData('Risk Summary'!L$48,$A811)/1000","v":{"$error":"#NAME?"}},null,null,{"$f":"(_xll.RiskData(NR_to_Cash!C$18,$A811))/1000","v":{"$error":"#NAME?"}},{"$f":"(_xll.RiskData(NR_to_Cash!D$18,$A811))/1000","v":{"$error":"#NAME?"}},{"$f":"(_xll.RiskData(NR_to_Cash!E$18,$A811))/1000","v":{"$error":"#NAME?"}}]
[805,{"$f":"_xll.RiskData('Risk Summary'!J$48,$A812)/1000","v":{"$error":"#NAME?"}},{"$f":"_xll.RiskData('Risk Summary'!K$48,$A812)/1000","v":{"$error":"#NAME?"}},{"$f":"_xll.RiskData('Risk Summary'!L$48,$A812)/1000","v":{"$error":"#NAME?"}},null,null,{"$f":"(_xll.RiskData(NR_to_Cash!C$18,$A812))/1000","v":{"$error":"#NAME?"}},{"$f":"(_xll.RiskData(NR_to_Cash!D$18,$A812))/1000","v":{"$error":"#NAME?"}},{"$f":"(_xll.RiskData(NR_to_Cash!E$18,$A812))/1000","v":{"$error":"#NAME?"}}]
[806,{"$f":"_xll.RiskData('Risk Summary'!J$48,$A813)/1000","v":{"$error":"#NAME?"}},{"$f":"_xll.RiskData('Risk Summary'!K$48,$A813)/1000","v":{"$error":"#NAME?"}},{"$f":"_xll.RiskData('Risk Summary'!L$48,$A813)/1000","v":{"$error":"#NAME?"}},null,null,{"$f":"(_xll.RiskData(NR_to_Cash!C$18,$A813))/1000","v":{"$error":"#NAME?"}},{"$f":"(_xll.RiskData(NR_to_Cash!D$18,$A813))/1000","v":{"$error":"#NAME?"}},{"$f":"(_xll.RiskData(NR_to_Cash!E$18,$A813))/1000","v":{"$error":"#NAME?"}}]
[807,{"$f":"_xll.RiskData('Risk Summary'!J$48,$A814)/1000","v":{"$error":"#NAME?"}},{"$f":"_xll.RiskData('Risk Summary'!K$48,$A814)/1000","v":{"$error":"#NAME?"}},{"$f":"_xll.RiskData('Risk Summary'!L$48,$A814)/1000","v":{"$error":"#NAME?"}},null,null,{"$f":"(_xll.RiskData(NR_to_Cash!C$18,$A814))/1000","v":{"$error":"#NAME?"}},{"$f":"(_xll.RiskData(NR_to_Cash!D$18,$A814))/1000","v":{"$error":"#NAME?"}},{"$f":"(_xll.RiskData(NR_to_Cash!E$18,$A814))/1000","v":{"$error":"#NAME?"}}]
[808,{"$f":"_xll.RiskData('Risk Summary'!J$48,$A815)/1000","v":{"$error":"#NAME?"}},{"$f":"_xll.RiskData('Risk Summary'!K$48,$A815)/1000","v":{"$error":"#NAME?"}},{"$f":"_xll.RiskData('Risk Summary'!L$48,$A815)/1000","v":{"$error":"#NAME?"}},null,null,{"$f":"(_xll.RiskData(NR_to_Cash!C$18,$A815))/1000","v":{"$error":"#NAME?"}},{"$f":"(_xll.RiskData(NR_to_Cash!D$18,$A815))/1000","v":{"$error":"#NAME?"}},{"$f":"(_xll.RiskData(NR_to_Cash!E$18,$A815))/1000","v":{"$error":"#NAME?"}}]
[809,{"$f":"_xll.RiskData('Risk Summary'!J$48,$A816)/1000","v":{"$error":"#NAME?"}},{"$f":"_xll.RiskData('Risk Summary'!K$48,$A816)/1000","v":{"$error":"#NAME?"}},{"$f":"_xll.RiskData('Risk Summary'!L$48,$A816)/1000","v":{"$error":"#NAME?"}},null,null,{"$f":"(_xll.RiskData(NR_to_Cash!C$18,$A816))/1000","v":{"$error":"#NAME?"}},{"$f":"(_xll.RiskData(NR_to_Cash!D$18,$A816))/1000","v":{"$error":"#NAME?"}},{"$f":"(_xll.RiskData(NR_to_Cash!E$18,$A816))/1000","v":{"$error":"#NAME?"}}]
[810,{"$f":"_xll.RiskData('Risk Summary'!J$48,$A817)/1000","v":{"$error":"#NAME?"}},{"$f":"_xll.RiskData('Risk Summary'!K$48,$A817)/1000","v":{"$error":"#NAME?"}},{"$f":"_xll.RiskData('Risk Summary'!L$48,$A817)/1000","v":{"$error":"#NAME?"}},null,null,{"$f":"(_xll.RiskData(NR_to_Cash!C$18,$A817))/1000","v":{"$error":"#NAME?"}},{"$f":"(_xll.RiskData(NR_to_Cash!D$18,$A817))/1000","v":{"$error":"#NAME?"}},{"$f":"(_xll.RiskData(NR_to_Cash!E$18,$A817))/1000","v":{"$error":"#NAME?"}}]
[811,{"$f":"_xll.RiskData('Risk Summary'!J$48,$A818)/1000","v":{"$error":"#NAME?"}},{"$f":"_xll.RiskData('Risk Summary'!K$48,$A818)/1000","v":{"$error":"#NAME?"}},{"$f":"_xll.RiskData('Risk Summary'!L$48,$A818)/1000","v":{"$error":"#NAME?"}},null,null,{"$f":"(_xll.RiskData(NR_to_Cash!C$18,$A818))/1000","v":{"$error":"#NAME?"}},{"$f":"(_xll.RiskData(NR_to_Cash!D$18,$A818))/1000","v":{"$error":"#NAME?"}},{"$f":"(_xll.RiskData(NR_to_Cash!E$18,$A818))/1000","v":{"$error":"#NAME?"}}]
[812,{"$f":"_xll.RiskData('Risk Summary'!J$48,$A819)/1000","v":{"$error":"#NAME?"}},{"$f":"_xll.RiskData('Risk Summary'!K$48,$A819)/1000","v":{"$error":"#NAME?"}},{"$f":"_xll.RiskData('Risk Summary'!L$48,$A819)/1000","v":{"$error":"#NAME?"}},null,null,{"$f":"(_xll.RiskData(NR_to_Cash!C$18,$A819))/1000","v":{"$error":"#NAME?"}},{"$f":"(_xll.RiskData(NR_to_Cash!D$18,$A819))/1000","v":{"$error":"#NAME?"}},{"$f":"(_xll.RiskData(NR_to_Cash!E$18,$A819))/1000","v":{"$error":"#NAME?"}}]
[813,{"$f":"_xll.RiskData('Risk Summary'!J$48,$A820)/1000","v":{"$error":"#NAME?"}},{"$f":"_xll.RiskData('Risk Summary'!K$48,$A820)/1000","v":{"$error":"#NAME?"}},{"$f":"_xll.RiskData('Risk Summary'!L$48,$A820)/1000","v":{"$error":"#NAME?"}},null,null,{"$f":"(_xll.RiskData(NR_to_Cash!C$18,$A820))/1000","v":{"$error":"#NAME?"}},{"$f":"(_xll.RiskData(NR_to_Cash!D$18,$A820))/1000","v":{"$error":"#NAME?"}},{"$f":"(_xll.RiskData(NR_to_Cash!E$18,$A820))/1000","v":{"$error":"#NAME?"}}]
[814,{"$f":"_xll.RiskData('Risk Summary'!J$48,$A821)/1000","v":{"$error":"#NAME?"}},{"$f":"_xll.RiskData('Risk Summary'!K$48,$A821)/1000","v":{"$error":"#NAME?"}},{"$f":"_xll.RiskData('Risk Summary'!L$48,$A821)/1000","v":{"$error":"#NAME?"}},null,null,{"$f":"(_xll.RiskData(NR_to_Cash!C$18,$A821))/1000","v":{"$error":"#NAME?"}},{"$f":"(_xll.RiskData(NR_to_Cash!D$18,$A821))/1000","v":{"$error":"#NAME?"}},{"$f":"(_xll.RiskData(NR_to_Cash!E$18,$A821))/1000","v":{"$error":"#NAME?"}}]
[815,{"$f":"_xll.RiskData('Risk Summary'!J$48,$A822)/1000","v":{"$error":"#NAME?"}},{"$f":"_xll.RiskData('Risk Summary'!K$48,$A822)/1000","v":{"$error":"#NAME?"}},{"$f":"_xll.RiskData('Risk Summary'!L$48,$A822)/1000","v":{"$error":"#NAME?"}},null,null,{"$f":"(_xll.RiskData(NR_to_Cash!C$18,$A822))/1000","v":{"$error":"#NAME?"}},{"$f":"(_xll.RiskData(NR_to_Cash!D$18,$A822))/1000","v":{"$error":"#NAME?"}},{"$f":"(_xll.RiskData(NR_to_Cash!E$18,$A822))/1000","v":{"$error":"#NAME?"}}]
[816,{"$f":"_xll.RiskData('Risk Summary'!J$48,$A823)/1000","v":{"$error":"#NAME?"}},{"$f":"_xll.RiskData('Risk Summary'!K$48,$A823)/1000","v":{"$error":"#NAME?"}},{"$f":"_xll.RiskData('Risk Summary'!L$48,$A823)/1000","v":{"$error":"#NAME?"}},null,null,{"$f":"(_xll.RiskData(NR_to_Cash!C$18,$A823))/1000","v":{"$error":"#NAME?"}},{"$f":"(_xll.RiskData(NR_to_Cash!D$18,$A823))/1000","v":{"$error":"#NAME?"}},{"$f":"(_xll.RiskData(NR_to_Cash!E$18,$A823))/1000","v":{"$error":"#NAME?"}}]
[817,{"$f":"_xll.RiskData('Risk Summary'!J$48,$A824)/1000","v":{"$error":"#NAME?"}},{"$f":"_xll.RiskData('Risk Summary'!K$48,$A824)/1000","v":{"$error":"#NAME?"}},{"$f":"_xll.RiskData('Risk Summary'!L$48,$A824)/1000","v":{"$error":"#NAME?"}},null,null,{"$f":"(_xll.RiskData(NR_to_Cash!C$18,$A824))/1000","v":{"$error":"#NAME?"}},{"$f":"(_xll.RiskData(NR_to_Cash!D$18,$A824))/1000","v":{"$error":"#NAME?"}},{"$f":"(_xll.RiskData(NR_to_Cash!E$18,$A824))/1000","v":{"$error":"#NAME?"}}]
[818,{"$f":"_xll.RiskData('Risk Summary'!J$48,$A825)/1000","v":{"$error":"#NAME?"}},{"$f":"_xll.RiskData('Risk Summary'!K$48,$A825)/1000","v":{"$error":"#NAME?"}},{"$f":"_xll.RiskData('Risk Summary'!L$48,$A825)/1000","v":{"$error":"#NAME?"}},null,null,{"$f":"(_xll.RiskData(NR_to_Cash!C$18,$A825))/1000","v":{"$error":"#NAME?"}},{"$f":"(_xll.RiskData(NR_to_Cash!D$18,$A825))/1000","v":{"$error":"#NAME?"}},{"$f":"(_xll.RiskData(NR_to_Cash!E$18,$A825))/1000","v":{"$error":"#NAME?"}}]
[819,{"$f":"_xll.RiskData('Risk Summary'!J$48,$A826)/1000","v":{"$error":"#NAME?"}},{"$f":"_xll.RiskData('Risk Summary'!K$48,$A826)/1000","v":{"$error":"#NAME?"}},{"$f":"_xll.RiskData('Risk Summary'!L$48,$A826)/1000","v":{"$error":"#NAME?"}},null,null,{"$f":"(_xll.RiskData(NR_to_Cash!C$18,$A826))/1000","v":{"$error":"#NAME?"}},{"$f":"(_xll.RiskData(NR_to_Cash!D$18,$A826))/1000","v":{"$error":"#NAME?"}},{"$f":"(_xll.RiskData(NR_to_Cash!E$18,$A826))/1000","v":{"$error":"#NAME?"}}]
[820,{"$f":"_xll.RiskData('Risk Summary'!J$48,$A827)/1000","v":{"$error":"#NAME?"}},{"$f":"_xll.RiskData('Risk Summary'!K$48,$A827)/1000","v":{"$error":"#NAME?"}},{"$f":"_xll.RiskData('Risk Summary'!L$48,$A827)/1000","v":{"$error":"#NAME?"}},null,null,{"$f":"(_xll.RiskData(NR_to_Cash!C$18,$A827))/1000","v":{"$error":"#NAME?"}},{"$f":"(_xll.RiskData(NR_to_Cash!D$18,$A827))/1000","v":{"$error":"#NAME?"}},{"$f":"(_xll.RiskData(NR_to_Cash!E$18,$A827))/1000","v":{"$error":"#NAME?"}}]
[821,{"$f":"_xll.RiskData('Risk Summary'!J$48,$A828)/1000","v":{"$error":"#NAME?"}},{"$f":"_xll.RiskData('Risk Summary'!K$48,$A828)/1000","v":{"$error":"#NAME?"}},{"$f":"_xll.RiskData('Risk Summary'!L$48,$A828)/1000","v":{"$error":"#NAME?"}},null,null,{"$f":"(_xll.RiskData(NR_to_Cash!C$18,$A828))/1000","v":{"$error":"#NAME?"}},{"$f":"(_xll.RiskData(NR_to_Cash!D$18,$A828))/1000","v":{"$error":"#NAME?"}},{"$f":"(_xll.RiskData(NR_to_Cash!E$18,$A828))/1000","v":{"$error":"#NAME?"}}]
[822,{"$f":"_xll.RiskData('Risk Summary'!J$48,$A829)/1000","v":{"$error":"#NAME?"}},{"$f":"_xll.RiskData('Risk Summary'!K$48,$A829)/1000","v":{"$error":"#NAME?"}},{"$f":"_xll.RiskData('Risk Summary'!L$48,$A829)/1000","v":{"$error":"#NAME?"}},null,null,{"$f":"(_xll.RiskData(NR_to_Cash!C$18,$A829))/1000","v":{"$error":"#NAME?"}},{"$f":"(_xll.RiskData(NR_to_Cash!D$18,$A829))/1000","v":{"$error":"#NAME?"}},{"$f":"(_xll.RiskData(NR_to_Cash!E$18,$A829))/1000","v":{"$error":"#NAME?"}}]
[823,{"$f":"_xll.RiskData('Risk Summary'!J$48,$A830)/1000","v":{"$error":"#NAME?"}},{"$f":"_xll.RiskData('Risk Summary'!K$48,$A830)/1000","v":{"$error":"#NAME?"}},{"$f":"_xll.RiskData('Risk Summary'!L$48,$A830)/1000","v":{"$error":"#NAME?"}},null,null,{"$f":"(_xll.RiskData(NR_to_Cash!C$18,$A830))/1000","v":{"$error":"#NAME?"}},{"$f":"(_xll.RiskData(NR_to_Cash!D$18,$A830))/1000","v":{"$error":"#NAME?"}},{"$f":"(_xll.RiskData(NR_to_Cash!E$18,$A830))/1000","v":{"$error":"#NAME?"}}]
[824,{"$f":"_xll.RiskData('Risk Summary'!J$48,$A831)/1000","v":{"$error":"#NAME?"}},{"$f":"_xll.RiskData('Risk Summary'!K$48,$A831)/1000","v":{"$error":"#NAME?"}},{"$f":"_xll.RiskData('Risk Summary'!L$48,$A831)/1000","v":{"$error":"#NAME?"}},null,null,{"$f":"(_xll.RiskData(NR_to_Cash!C$18,$A831))/1000","v":{"$error":"#NAME?"}},{"$f":"(_xll.RiskData(NR_to_Cash!D$18,$A831))/1000","v":{"$error":"#NAME?"}},{"$f":"(_xll.RiskData(NR_to_Cash!E$18,$A831))/1000","v":{"$error":"#NAME?"}}]
[825,{"$f":"_xll.RiskData('Risk Summary'!J$48,$A832)/1000","v":{"$error":"#NAME?"}},{"$f":"_xll.RiskData('Risk Summary'!K$48,$A832)/1000","v":{"$error":"#NAME?"}},{"$f":"_xll.RiskData('Risk Summary'!L$48,$A832)/1000","v":{"$error":"#NAME?"}},null,null,{"$f":"(_xll.RiskData(NR_to_Cash!C$18,$A832))/1000","v":{"$error":"#NAME?"}},{"$f":"(_xll.RiskData(NR_to_Cash!D$18,$A832))/1000","v":{"$error":"#NAME?"}},{"$f":"(_xll.RiskData(NR_to_Cash!E$18,$A832))/1000","v":{"$error":"#NAME?"}}]
[826,{"$f":"_xll.RiskData('Risk Summary'!J$48,$A833)/1000","v":{"$error":"#NAME?"}},{"$f":"_xll.RiskData('Risk Summary'!K$48,$A833)/1000","v":{"$error":"#NAME?"}},{"$f":"_xll.RiskData('Risk Summary'!L$48,$A833)/1000","v":{"$error":"#NAME?"}},null,null,{"$f":"(_xll.RiskData(NR_to_Cash!C$18,$A833))/1000","v":{"$error":"#NAME?"}},{"$f":"(_xll.RiskData(NR_to_Cash!D$18,$A833))/1000","v":{"$error":"#NAME?"}},{"$f":"(_xll.RiskData(NR_to_Cash!E$18,$A833))/1000","v":{"$error":"#NAME?"}}]
[827,{"$f":"_xll.RiskData('Risk Summary'!J$48,$A834)/1000","v":{"$error":"#NAME?"}},{"$f":"_xll.RiskData('Risk Summary'!K$48,$A834)/1000","v":{"$error":"#NAME?"}},{"$f":"_xll.RiskData('Risk Summary'!L$48,$A834)/1000","v":{"$error":"#NAME?"}},null,null,{"$f":"(_xll.RiskData(NR_to_Cash!C$18,$A834))/1000","v":{"$error":"#NAME?"}},{"$f":"(_xll.RiskData(NR_to_Cash!D$18,$A834))/1000","v":{"$error":"#NAME?"}},{"$f":"(_xll.RiskData(NR_to_Cash!E$18,$A834))/1000","v":{"$error":"#NAME?"}}]
[828,{"$f":"_xll.RiskData('Risk Summary'!J$48,$A835)/1000","v":{"$error":"#NAME?"}},{"$f":"_xll.RiskData('Risk Summary'!K$48,$A835)/1000","v":{"$error":"#NAME?"}},{"$f":"_xll.RiskData('Risk Summary'!L$48,$A835)/1000","v":{"$error":"#NAME?"}},null,null,{"$f":"(_xll.RiskData(NR_to_Cash!C$18,$A835))/1000","v":{"$error":"#NAME?"}},{"$f":"(_xll.RiskData(NR_to_Cash!D$18,$A835))/1000","v":{"$error":"#NAME?"}},{"$f":"(_xll.RiskData(NR_to_Cash!E$18,$A835))/1000","v":{"$error":"#NAME?"}}]
[829,{"$f":"_xll.RiskData('Risk Summary'!J$48,$A836)/1000","v":{"$error":"#NAME?"}},{"$f":"_xll.RiskData('Risk Summary'!K$48,$A836)/1000","v":{"$error":"#NAME?"}},{"$f":"_xll.RiskData('Risk Summary'!L$48,$A836)/1000","v":{"$error":"#NAME?"}},null,null,{"$f":"(_xll.RiskData(NR_to_Cash!C$18,$A836))/1000","v":{"$error":"#NAME?"}},{"$f":"(_xll.RiskData(NR_to_Cash!D$18,$A836))/1000","v":{"$error":"#NAME?"}},{"$f":"(_xll.RiskData(NR_to_Cash!E$18,$A836))/1000","v":{"$error":"#NAME?"}}]
[830,{"$f":"_xll.RiskData('Risk Summary'!J$48,$A837)/1000","v":{"$error":"#NAME?"}},{"$f":"_xll.RiskData('Risk Summary'!K$48,$A837)/1000","v":{"$error":"#NAME?"}},{"$f":"_xll.RiskData('Risk Summary'!L$48,$A837)/1000","v":{"$error":"#NAME?"}},null,null,{"$f":"(_xll.RiskData(NR_to_Cash!C$18,$A837))/1000","v":{"$error":"#NAME?"}},{"$f":"(_xll.RiskData(NR_to_Cash!D$18,$A837))/1000","v":{"$error":"#NAME?"}},{"$f":"(_xll.RiskData(NR_to_Cash!E$18,$A837))/1000","v":{"$error":"#NAME?"}}]
[831,{"$f":"_xll.RiskData('Risk Summary'!J$48,$A838)/1000","v":{"$error":"#NAME?"}},{"$f":"_xll.RiskData('Risk Summary'!K$48,$A838)/1000","v":{"$error":"#NAME?"}},{"$f":"_xll.RiskData('Risk Summary'!L$48,$A838)/1000","v":{"$error":"#NAME?"}},null,null,{"$f":"(_xll.RiskData(NR_to_Cash!C$18,$A838))/1000","v":{"$error":"#NAME?"}},{"$f":"(_xll.RiskData(NR_to_Cash!D$18,$A838))/1000","v":{"$error":"#NAME?"}},{"$f":"(_xll.RiskData(NR_to_Cash!E$18,$A838))/1000","v":{"$error":"#NAME?"}}]
[832,{"$f":"_xll.RiskData('Risk Summary'!J$48,$A839)/1000","v":{"$error":"#NAME?"}},{"$f":"_xll.RiskData('Risk Summary'!K$48,$A839)/1000","v":{"$error":"#NAME?"}},{"$f":"_xll.RiskData('Risk Summary'!L$48,$A839)/1000","v":{"$error":"#NAME?"}},null,null,{"$f":"(_xll.RiskData(NR_to_Cash!C$18,$A839))/1000","v":{"$error":"#NAME?"}},{"$f":"(_xll.RiskData(NR_to_Cash!D$18,$A839))/1000","v":{"$error":"#NAME?"}},{"$f":"(_xll.RiskData(NR_to_Cash!E$18,$A839))/1000","v":{"$error":"#NAME?"}}]
[833,{"$f":"_xll.RiskData('Risk Summary'!J$48,$A840)/1000","v":{"$error":"#NAME?"}},{"$f":"_xll.RiskData('Risk Summary'!K$48,$A840)/1000","v":{"$error":"#NAME?"}},{"$f":"_xll.RiskData('Risk Summary'!L$48,$A840)/1000","v":{"$error":"#NAME?"}},null,null,{"$f":"(_xll.RiskData(NR_to_Cash!C$18,$A840))/1000","v":{"$error":"#NAME?"}},{"$f":"(_xll.RiskData(NR_to_Cash!D$18,$A840))/1000","v":{"$error":"#NAME?"}},{"$f":"(_xll.RiskData(NR_to_Cash!E$18,$A840))/1000","v":{"$error":"#NAME?"}}]
[834,{"$f":"_xll.RiskData('Risk Summary'!J$48,$A841)/1000","v":{"$error":"#NAME?"}},{"$f":"_xll.RiskData('Risk Summary'!K$48,$A841)/1000","v":{"$error":"#NAME?"}},{"$f":"_xll.RiskData('Risk Summary'!L$48,$A841)/1000","v":{"$error":"#NAME?"}},null,null,{"$f":"(_xll.RiskData(NR_to_Cash!C$18,$A841))/1000","v":{"$error":"#NAME?"}},{"$f":"(_xll.RiskData(NR_to_Cash!D$18,$A841))/1000","v":{"$error":"#NAME?"}},{"$f":"(_xll.RiskData(NR_to_Cash!E$18,$A841))/1000","v":{"$error":"#NAME?"}}]
[835,{"$f":"_xll.RiskData('Risk Summary'!J$48,$A842)/1000","v":{"$error":"#NAME?"}},{"$f":"_xll.RiskData('Risk Summary'!K$48,$A842)/1000","v":{"$error":"#NAME?"}},{"$f":"_xll.RiskData('Risk Summary'!L$48,$A842)/1000","v":{"$error":"#NAME?"}},null,null,{"$f":"(_xll.RiskData(NR_to_Cash!C$18,$A842))/1000","v":{"$error":"#NAME?"}},{"$f":"(_xll.RiskData(NR_to_Cash!D$18,$A842))/1000","v":{"$error":"#NAME?"}},{"$f":"(_xll.RiskData(NR_to_Cash!E$18,$A842))/1000","v":{"$error":"#NAME?"}}]
[836,{"$f":"_xll.RiskData('Risk Summary'!J$48,$A843)/1000","v":{"$error":"#NAME?"}},{"$f":"_xll.RiskData('Risk Summary'!K$48,$A843)/1000","v":{"$error":"#NAME?"}},{"$f":"_xll.RiskData('Risk Summary'!L$48,$A843)/1000","v":{"$error":"#NAME?"}},null,null,{"$f":"(_xll.RiskData(NR_to_Cash!C$18,$A843))/1000","v":{"$error":"#NAME?"}},{"$f":"(_xll.RiskData(NR_to_Cash!D$18,$A843))/1000","v":{"$error":"#NAME?"}},{"$f":"(_xll.RiskData(NR_to_Cash!E$18,$A843))/1000","v":{"$error":"#NAME?"}}]
[837,{"$f":"_xll.RiskData('Risk Summary'!J$48,$A844)/1000","v":{"$error":"#NAME?"}},{"$f":"_xll.RiskData('Risk Summary'!K$48,$A844)/1000","v":{"$error":"#NAME?"}},{"$f":"_xll.RiskData('Risk Summary'!L$48,$A844)/1000","v":{"$error":"#NAME?"}},null,null,{"$f":"(_xll.RiskData(NR_to_Cash!C$18,$A844))/1000","v":{"$error":"#NAME?"}},{"$f":"(_xll.RiskData(NR_to_Cash!D$18,$A844))/1000","v":{"$error":"#NAME?"}},{"$f":"(_xll.RiskData(NR_to_Cash!E$18,$A844))/1000","v":{"$error":"#NAME?"}}]
[838,{"$f":"_xll.RiskData('Risk Summary'!J$48,$A845)/1000","v":{"$error":"#NAME?"}},{"$f":"_xll.RiskData('Risk Summary'!K$48,$A845)/1000","v":{"$error":"#NAME?"}},{"$f":"_xll.RiskData('Risk Summary'!L$48,$A845)/1000","v":{"$error":"#NAME?"}},null,null,{"$f":"(_xll.RiskData(NR_to_Cash!C$18,$A845))/1000","v":{"$error":"#NAME?"}},{"$f":"(_xll.RiskData(NR_to_Cash!D$18,$A845))/1000","v":{"$error":"#NAME?"}},{"$f":"(_xll.RiskData(NR_to_Cash!E$18,$A845))/1000","v":{"$error":"#NAME?"}}]
[839,{"$f":"_xll.RiskData('Risk Summary'!J$48,$A846)/1000","v":{"$error":"#NAME?"}},{"$f":"_xll.RiskData('Risk Summary'!K$48,$A846)/1000","v":{"$error":"#NAME?"}},{"$f":"_xll.RiskData('Risk Summary'!L$48,$A846)/1000","v":{"$error":"#NAME?"}},null,null,{"$f":"(_xll.RiskData(NR_to_Cash!C$18,$A846))/1000","v":{"$error":"#NAME?"}},{"$f":"(_xll.RiskData(NR_to_Cash!D$18,$A846))/1000","v":{"$error":"#NAME?"}},{"$f":"(_xll.RiskData(NR_to_Cash!E$18,$A846))/1000","v":{"$error":"#NAME?"}}]
[840,{"$f":"_xll.RiskData('Risk Summary'!J$48,$A847)/1000","v":{"$error":"#NAME?"}},{"$f":"_xll.RiskData('Risk Summary'!K$48,$A847)/1000","v":{"$error":"#NAME?"}},{"$f":"_xll.RiskData('Risk Summary'!L$48,$A847)/1000","v":{"$error":"#NAME?"}},null,null,{"$f":"(_xll.RiskData(NR_to_Cash!C$18,$A847))/1000","v":{"$error":"#NAME?"}},{"$f":"(_xll.RiskData(NR_to_Cash!D$18,$A847))/1000","v":{"$error":"#NAME?"}},{"$f":"(_xll.RiskData(NR_to_Cash!E$18,$A847))/1000","v":{"$error":"#NAME?"}}]
[841,{"$f":"_xll.RiskData('Risk Summary'!J$48,$A848)/1000","v":{"$error":"#NAME?"}},{"$f":"_xll.RiskData('Risk Summary'!K$48,$A848)/1000","v":{"$error":"#NAME?"}},{"$f":"_xll.RiskData('Risk Summary'!L$48,$A848)/1000","v":{"$error":"#NAME?"}},null,null,{"$f":"(_xll.RiskData(NR_to_Cash!C$18,$A848))/1000","v":{"$error":"#NAME?"}},{"$f":"(_xll.RiskData(NR_to_Cash!D$18,$A848))/1000","v":{"$error":"#NAME?"}},{"$f":"(_xll.RiskData(NR_to_Cash!E$18,$A848))/1000","v":{"$error":"#NAME?"}}]
[842,{"$f":"_xll.RiskData('Risk Summary'!J$48,$A849)/1000","v":{"$error":"#NAME?"}},{"$f":"_xll.RiskData('Risk Summary'!K$48,$A849)/1000","v":{"$error":"#NAME?"}},{"$f":"_xll.RiskData('Risk Summary'!L$48,$A849)/1000","v":{"$error":"#NAME?"}},null,null,{"$f":"(_xll.RiskData(NR_to_Cash!C$18,$A849))/1000","v":{"$error":"#NAME?"}},{"$f":"(_xll.RiskData(NR_to_Cash!D$18,$A849))/1000","v":{"$error":"#NAME?"}},{"$f":"(_xll.RiskData(NR_to_Cash!E$18,$A849))/1000","v":{"$error":"#NAME?"}}]
[843,{"$f":"_xll.RiskData('Risk Summary'!J$48,$A850)/1000","v":{"$error":"#NAME?"}},{"$f":"_xll.RiskData('Risk Summary'!K$48,$A850)/1000","v":{"$error":"#NAME?"}},{"$f":"_xll.RiskData('Risk Summary'!L$48,$A850)/1000","v":{"$error":"#NAME?"}},null,null,{"$f":"(_xll.RiskData(NR_to_Cash!C$18,$A850))/1000","v":{"$error":"#NAME?"}},{"$f":"(_xll.RiskData(NR_to_Cash!D$18,$A850))/1000","v":{"$error":"#NAME?"}},{"$f":"(_xll.RiskData(NR_to_Cash!E$18,$A850))/1000","v":{"$error":"#NAME?"}}]
[844,{"$f":"_xll.RiskData('Risk Summary'!J$48,$A851)/1000","v":{"$error":"#NAME?"}},{"$f":"_xll.RiskData('Risk Summary'!K$48,$A851)/1000","v":{"$error":"#NAME?"}},{"$f":"_xll.RiskData('Risk Summary'!L$48,$A851)/1000","v":{"$error":"#NAME?"}},null,null,{"$f":"(_xll.RiskData(NR_to_Cash!C$18,$A851))/1000","v":{"$error":"#NAME?"}},{"$f":"(_xll.RiskData(NR_to_Cash!D$18,$A851))/1000","v":{"$error":"#NAME?"}},{"$f":"(_xll.RiskData(NR_to_Cash!E$18,$A851))/1000","v":{"$error":"#NAME?"}}]
[845,{"$f":"_xll.RiskData('Risk Summary'!J$48,$A852)/1000","v":{"$error":"#NAME?"}},{"$f":"_xll.RiskData('Risk Summary'!K$48,$A852)/1000","v":{"$error":"#NAME?"}},{"$f":"_xll.RiskData('Risk Summary'!L$48,$A852)/1000","v":{"$error":"#NAME?"}},null,null,{"$f":"(_xll.RiskData(NR_to_Cash!C$18,$A852))/1000","v":{"$error":"#NAME?"}},{"$f":"(_xll.RiskData(NR_to_Cash!D$18,$A852))/1000","v":{"$error":"#NAME?"}},{"$f":"(_xll.RiskData(NR_to_Cash!E$18,$A852))/1000","v":{"$error":"#NAME?"}}]
[846,{"$f":"_xll.RiskData('Risk Summary'!J$48,$A853)/1000","v":{"$error":"#NAME?"}},{"$f":"_xll.RiskData('Risk Summary'!K$48,$A853)/1000","v":{"$error":"#NAME?"}},{"$f":"_xll.RiskData('Risk Summary'!L$48,$A853)/1000","v":{"$error":"#NAME?"}},null,null,{"$f":"(_xll.RiskData(NR_to_Cash!C$18,$A853))/1000","v":{"$error":"#NAME?"}},{"$f":"(_xll.RiskData(NR_to_Cash!D$18,$A853))/1000","v":{"$error":"#NAME?"}},{"$f":"(_xll.RiskData(NR_to_Cash!E$18,$A853))/1000","v":{"$error":"#NAME?"}}]
[847,{"$f":"_xll.RiskData('Risk Summary'!J$48,$A854)/1000","v":{"$error":"#NAME?"}},{"$f":"_xll.RiskData('Risk Summary'!K$48,$A854)/1000","v":{"$error":"#NAME?"}},{"$f":"_xll.RiskData('Risk Summary'!L$48,$A854)/1000","v":{"$error":"#NAME?"}},null,null,{"$f":"(_xll.RiskData(NR_to_Cash!C$18,$A854))/1000","v":{"$error":"#NAME?"}},{"$f":"(_xll.RiskData(NR_to_Cash!D$18,$A854))/1000","v":{"$error":"#NAME?"}},{"$f":"(_xll.RiskData(NR_to_Cash!E$18,$A854))/1000","v":{"$error":"#NAME?"}}]
[848,{"$f":"_xll.RiskData('Risk Summary'!J$48,$A855)/1000","v":{"$error":"#NAME?"}},{"$f":"_xll.RiskData('Risk Summary'!K$48,$A855)/1000","v":{"$error":"#NAME?"}},{"$f":"_xll.RiskData('Risk Summary'!L$48,$A855)/1000","v":{"$error":"#NAME?"}},null,null,{"$f":"(_xll.RiskData(NR_to_Cash!C$18,$A855))/1000","v":{"$error":"#NAME?"}},{"$f":"(_xll.RiskData(NR_to_Cash!D$18,$A855))/1000","v":{"$error":"#NAME?"}},{"$f":"(_xll.RiskData(NR_to_Cash!E$18,$A855))/1000","v":{"$error":"#NAME?"}}]
[849,{"$f":"_xll.RiskData('Risk Summary'!J$48,$A856)/1000","v":{"$error":"#NAME?"}},{"$f":"_xll.RiskData('Risk Summary'!K$48,$A856)/1000","v":{"$error":"#NAME?"}},{"$f":"_xll.RiskData('Risk Summary'!L$48,$A856)/1000","v":{"$error":"#NAME?"}},null,null,{"$f":"(_xll.RiskData(NR_to_Cash!C$18,$A856))/1000","v":{"$error":"#NAME?"}},{"$f":"(_xll.RiskData(NR_to_Cash!D$18,$A856))/1000","v":{"$error":"#NAME?"}},{"$f":"(_xll.RiskData(NR_to_Cash!E$18,$A856))/1000","v":{"$error":"#NAME?"}}]
[850,{"$f":"_xll.RiskData('Risk Summary'!J$48,$A857)/1000","v":{"$error":"#NAME?"}},{"$f":"_xll.RiskData('Risk Summary'!K$48,$A857)/1000","v":{"$error":"#NAME?"}},{"$f":"_xll.RiskData('Risk Summary'!L$48,$A857)/1000","v":{"$error":"#NAME?"}},null,null,{"$f":"(_xll.RiskData(NR_to_Cash!C$18,$A857))/1000","v":{"$error":"#NAME?"}},{"$f":"(_xll.RiskData(NR_to_Cash!D$18,$A857))/1000","v":{"$error":"#NAME?"}},{"$f":"(_xll.RiskData(NR_to_Cash!E$18,$A857))/1000","v":{"$error":"#NAME?"}}]
[851,{"$f":"_xll.RiskData('Risk Summary'!J$48,$A858)/1000","v":{"$error":"#NAME?"}},{"$f":"_xll.RiskData('Risk Summary'!K$48,$A858)/1000","v":{"$error":"#NAME?"}},{"$f":"_xll.RiskData('Risk Summary'!L$48,$A858)/1000","v":{"$error":"#NAME?"}},null,null,{"$f":"(_xll.RiskData(NR_to_Cash!C$18,$A858))/1000","v":{"$error":"#NAME?"}},{"$f":"(_xll.RiskData(NR_to_Cash!D$18,$A858))/1000","v":{"$error":"#NAME?"}},{"$f":"(_xll.RiskData(NR_to_Cash!E$18,$A858))/1000","v":{"$error":"#NAME?"}}]
[852,{"$f":"_xll.RiskData('Risk Summary'!J$48,$A859)/1000","v":{"$error":"#NAME?"}},{"$f":"_xll.RiskData('Risk Summary'!K$48,$A859)/1000","v":{"$error":"#NAME?"}},{"$f":"_xll.RiskData('Risk Summary'!L$48,$A859)/1000","v":{"$error":"#NAME?"}},null,null,{"$f":"(_xll.RiskData(NR_to_Cash!C$18,$A859))/1000","v":{"$error":"#NAME?"}},{"$f":"(_xll.RiskData(NR_to_Cash!D$18,$A859))/1000","v":{"$error":"#NAME?"}},{"$f":"(_xll.RiskData(NR_to_Cash!E$18,$A859))/1000","v":{"$error":"#NAME?"}}]
[853,{"$f":"_xll.RiskData('Risk Summary'!J$48,$A860)/1000","v":{"$error":"#NAME?"}},{"$f":"_xll.RiskData('Risk Summary'!K$48,$A860)/1000","v":{"$error":"#NAME?"}},{"$f":"_xll.RiskData('Risk Summary'!L$48,$A860)/1000","v":{"$error":"#NAME?"}},null,null,{"$f":"(_xll.RiskData(NR_to_Cash!C$18,$A860))/1000","v":{"$error":"#NAME?"}},{"$f":"(_xll.RiskData(NR_to_Cash!D$18,$A860))/1000","v":{"$error":"#NAME?"}},{"$f":"(_xll.RiskData(NR_to_Cash!E$18,$A860))/1000","v":{"$error":"#NAME?"}}]
[854,{"$f":"_xll.RiskData('Risk Summary'!J$48,$A861)/1000","v":{"$error":"#NAME?"}},{"$f":"_xll.RiskData('Risk Summary'!K$48,$A861)/1000","v":{"$error":"#NAME?"}},{"$f":"_xll.RiskData('Risk Summary'!L$48,$A861)/1000","v":{"$error":"#NAME?"}},null,null,{"$f":"(_xll.RiskData(NR_to_Cash!C$18,$A861))/1000","v":{"$error":"#NAME?"}},{"$f":"(_xll.RiskData(NR_to_Cash!D$18,$A861))/1000","v":{"$error":"#NAME?"}},{"$f":"(_xll.RiskData(NR_to_Cash!E$18,$A861))/1000","v":{"$error":"#NAME?"}}]
[855,{"$f":"_xll.RiskData('Risk Summary'!J$48,$A862)/1000","v":{"$error":"#NAME?"}},{"$f":"_xll.RiskData('Risk Summary'!K$48,$A862)/1000","v":{"$error":"#NAME?"}},{"$f":"_xll.RiskData('Risk Summary'!L$48,$A862)/1000","v":{"$error":"#NAME?"}},null,null,{"$f":"(_xll.RiskData(NR_to_Cash!C$18,$A862))/1000","v":{"$error":"#NAME?"}},{"$f":"(_xll.RiskData(NR_to_Cash!D$18,$A862))/1000","v":{"$error":"#NAME?"}},{"$f":"(_xll.RiskData(NR_to_Cash!E$18,$A862))/1000","v":{"$error":"#NAME?"}}]
[856,{"$f":"_xll.RiskData('Risk Summary'!J$48,$A863)/1000","v":{"$error":"#NAME?"}},{"$f":"_xll.RiskData('Risk Summary'!K$48,$A863)/1000","v":{"$error":"#NAME?"}},{"$f":"_xll.RiskData('Risk Summary'!L$48,$A863)/1000","v":{"$error":"#NAME?"}},null,null,{"$f":"(_xll.RiskData(NR_to_Cash!C$18,$A863))/1000","v":{"$error":"#NAME?"}},{"$f":"(_xll.RiskData(NR_to_Cash!D$18,$A863))/1000","v":{"$error":"#NAME?"}},{"$f":"(_xll.RiskData(NR_to_Cash!E$18,$A863))/1000","v":{"$error":"#NAME?"}}]
[857,{"$f":"_xll.RiskData('Risk Summary'!J$48,$A864)/1000","v":{"$error":"#NAME?"}},{"$f":"_xll.RiskData('Risk Summary'!K$48,$A864)/1000","v":{"$error":"#NAME?"}},{"$f":"_xll.RiskData('Risk Summary'!L$48,$A864)/1000","v":{"$error":"#NAME?"}},null,null,{"$f":"(_xll.RiskData(NR_to_Cash!C$18,$A864))/1000","v":{"$error":"#NAME?"}},{"$f":"(_xll.RiskData(NR_to_Cash!D$18,$A864))/1000","v":{"$error":"#NAME?"}},{"$f":"(_xll.RiskData(NR_to_Cash!E$18,$A864))/1000","v":{"$error":"#NAME?"}}]
[858,{"$f":"_xll.RiskData('Risk Summary'!J$48,$A865)/1000","v":{"$error":"#NAME?"}},{"$f":"_xll.RiskData('Risk Summary'!K$48,$A865)/1000","v":{"$error":"#NAME?"}},{"$f":"_xll.RiskData('Risk Summary'!L$48,$A865)/1000","v":{"$error":"#NAME?"}},null,null,{"$f":"(_xll.RiskData(NR_to_Cash!C$18,$A865))/1000","v":{"$error":"#NAME?"}},{"$f":"(_xll.RiskData(NR_to_Cash!D$18,$A865))/1000","v":{"$error":"#NAME?"}},{"$f":"(_xll.RiskData(NR_to_Cash!E$18,$A865))/1000","v":{"$error":"#NAME?"}}]
[859,{"$f":"_xll.RiskData('Risk Summary'!J$48,$A866)/1000","v":{"$error":"#NAME?"}},{"$f":"_xll.RiskData('Risk Summary'!K$48,$A866)/1000","v":{"$error":"#NAME?"}},{"$f":"_xll.RiskData('Risk Summary'!L$48,$A866)/1000","v":{"$error":"#NAME?"}},null,null,{"$f":"(_xll.RiskData(NR_to_Cash!C$18,$A866))/1000","v":{"$error":"#NAME?"}},{"$f":"(_xll.RiskData(NR_to_Cash!D$18,$A866))/1000","v":{"$error":"#NAME?"}},{"$f":"(_xll.RiskData(NR_to_Cash!E$18,$A866))/1000","v":{"$error":"#NAME?"}}]
[860,{"$f":"_xll.RiskData('Risk Summary'!J$48,$A867)/1000","v":{"$error":"#NAME?"}},{"$f":"_xll.RiskData('Risk Summary'!K$48,$A867)/1000","v":{"$error":"#NAME?"}},{"$f":"_xll.RiskData('Risk Summary'!L$48,$A867)/1000","v":{"$error":"#NAME?"}},null,null,{"$f":"(_xll.RiskData(NR_to_Cash!C$18,$A867))/1000","v":{"$error":"#NAME?"}},{"$f":"(_xll.RiskData(NR_to_Cash!D$18,$A867))/1000","v":{"$error":"#NAME?"}},{"$f":"(_xll.RiskData(NR_to_Cash!E$18,$A867))/1000","v":{"$error":"#NAME?"}}]
[861,{"$f":"_xll.RiskData('Risk Summary'!J$48,$A868)/1000","v":{"$error":"#NAME?"}},{"$f":"_xll.RiskData('Risk Summary'!K$48,$A868)/1000","v":{"$error":"#NAME?"}},{"$f":"_xll.RiskData('Risk Summary'!L$48,$A868)/1000","v":{"$error":"#NAME?"}},null,null,{"$f":"(_xll.RiskData(NR_to_Cash!C$18,$A868))/1000","v":{"$error":"#NAME?"}},{"$f":"(_xll.RiskData(NR_to_Cash!D$18,$A868))/1000","v":{"$error":"#NAME?"}},{"$f":"(_xll.RiskData(NR_to_Cash!E$18,$A868))/1000","v":{"$error":"#NAME?"}}]
[862,{"$f":"_xll.RiskData('Risk Summary'!J$48,$A869)/1000","v":{"$error":"#NAME?"}},{"$f":"_xll.RiskData('Risk Summary'!K$48,$A869)/1000","v":{"$error":"#NAME?"}},{"$f":"_xll.RiskData('Risk Summary'!L$48,$A869)/1000","v":{"$error":"#NAME?"}},null,null,{"$f":"(_xll.RiskData(NR_to_Cash!C$18,$A869))/1000","v":{"$error":"#NAME?"}},{"$f":"(_xll.RiskData(NR_to_Cash!D$18,$A869))/1000","v":{"$error":"#NAME?"}},{"$f":"(_xll.RiskData(NR_to_Cash!E$18,$A869))/1000","v":{"$error":"#NAME?"}}]
[863,{"$f":"_xll.RiskData('Risk Summary'!J$48,$A870)/1000","v":{"$error":"#NAME?"}},{"$f":"_xll.RiskData('Risk Summary'!K$48,$A870)/1000","v":{"$error":"#NAME?"}},{"$f":"_xll.RiskData('Risk Summary'!L$48,$A870)/1000","v":{"$error":"#NAME?"}},null,null,{"$f":"(_xll.RiskData(NR_to_Cash!C$18,$A870))/1000","v":{"$error":"#NAME?"}},{"$f":"(_xll.RiskData(NR_to_Cash!D$18,$A870))/1000","v":{"$error":"#NAME?"}},{"$f":"(_xll.RiskData(NR_to_Cash!E$18,$A870))/1000","v":{"$error":"#NAME?"}}]
[864,{"$f":"_xll.RiskData('Risk Summary'!J$48,$A871)/1000","v":{"$error":"#NAME?"}},{"$f":"_xll.RiskData('Risk Summary'!K$48,$A871)/1000","v":{"$error":"#NAME?"}},{"$f":"_xll.RiskData('Risk Summary'!L$48,$A871)/1000","v":{"$error":"#NAME?"}},null,null,{"$f":"(_xll.RiskData(NR_to_Cash!C$18,$A871))/1000","v":{"$error":"#NAME?"}},{"$f":"(_xll.RiskData(NR_to_Cash!D$18,$A871))/1000","v":{"$error":"#NAME?"}},{"$f":"(_xll.RiskData(NR_to_Cash!E$18,$A871))/1000","v":{"$error":"#NAME?"}}]
[865,{"$f":"_xll.RiskData('Risk Summary'!J$48,$A872)/1000","v":{"$error":"#NAME?"}},{"$f":"_xll.RiskData('Risk Summary'!K$48,$A872)/1000","v":{"$error":"#NAME?"}},{"$f":"_xll.RiskData('Risk Summary'!L$48,$A872)/1000","v":{"$error":"#NAME?"}},null,null,{"$f":"(_xll.RiskData(NR_to_Cash!C$18,$A872))/1000","v":{"$error":"#NAME?"}},{"$f":"(_xll.RiskData(NR_to_Cash!D$18,$A872))/1000","v":{"$error":"#NAME?"}},{"$f":"(_xll.RiskData(NR_to_Cash!E$18,$A872))/1000","v":{"$error":"#NAME?"}}]
[866,{"$f":"_xll.RiskData('Risk Summary'!J$48,$A873)/1000","v":{"$error":"#NAME?"}},{"$f":"_xll.RiskData('Risk Summary'!K$48,$A873)/1000","v":{"$error":"#NAME?"}},{"$f":"_xll.RiskData('Risk Summary'!L$48,$A873)/1000","v":{"$error":"#NAME?"}},null,null,{"$f":"(_xll.RiskData(NR_to_Cash!C$18,$A873))/1000","v":{"$error":"#NAME?"}},{"$f":"(_xll.RiskData(NR_to_Cash!D$18,$A873))/1000","v":{"$error":"#NAME?"}},{"$f":"(_xll.RiskData(NR_to_Cash!E$18,$A873))/1000","v":{"$error":"#NAME?"}}]
[867,{"$f":"_xll.RiskData('Risk Summary'!J$48,$A874)/1000","v":{"$error":"#NAME?"}},{"$f":"_xll.RiskData('Risk Summary'!K$48,$A874)/1000","v":{"$error":"#NAME?"}},{"$f":"_xll.RiskData('Risk Summary'!L$48,$A874)/1000","v":{"$error":"#NAME?"}},null,null,{"$f":"(_xll.RiskData(NR_to_Cash!C$18,$A874))/1000","v":{"$error":"#NAME?"}},{"$f":"(_xll.RiskData(NR_to_Cash!D$18,$A874))/1000","v":{"$error":"#NAME?"}},{"$f":"(_xll.RiskData(NR_to_Cash!E$18,$A874))/1000","v":{"$error":"#NAME?"}}]
[868,{"$f":"_xll.RiskData('Risk Summary'!J$48,$A875)/1000","v":{"$error":"#NAME?"}},{"$f":"_xll.RiskData('Risk Summary'!K$48,$A875)/1000","v":{"$error":"#NAME?"}},{"$f":"_xll.RiskData('Risk Summary'!L$48,$A875)/1000","v":{"$error":"#NAME?"}},null,null,{"$f":"(_xll.RiskData(NR_to_Cash!C$18,$A875))/1000","v":{"$error":"#NAME?"}},{"$f":"(_xll.RiskData(NR_to_Cash!D$18,$A875))/1000","v":{"$error":"#NAME?"}},{"$f":"(_xll.RiskData(NR_to_Cash!E$18,$A875))/1000","v":{"$error":"#NAME?"}}]
[869,{"$f":"_xll.RiskData('Risk Summary'!J$48,$A876)/1000","v":{"$error":"#NAME?"}},{"$f":"_xll.RiskData('Risk Summary'!K$48,$A876)/1000","v":{"$error":"#NAME?"}},{"$f":"_xll.RiskData('Risk Summary'!L$48,$A876)/1000","v":{"$error":"#NAME?"}},null,null,{"$f":"(_xll.RiskData(NR_to_Cash!C$18,$A876))/1000","v":{"$error":"#NAME?"}},{"$f":"(_xll.RiskData(NR_to_Cash!D$18,$A876))/1000","v":{"$error":"#NAME?"}},{"$f":"(_xll.RiskData(NR_to_Cash!E$18,$A876))/1000","v":{"$error":"#NAME?"}}]
[870,{"$f":"_xll.RiskData('Risk Summary'!J$48,$A877)/1000","v":{"$error":"#NAME?"}},{"$f":"_xll.RiskData('Risk Summary'!K$48,$A877)/1000","v":{"$error":"#NAME?"}},{"$f":"_xll.RiskData('Risk Summary'!L$48,$A877)/1000","v":{"$error":"#NAME?"}},null,null,{"$f":"(_xll.RiskData(NR_to_Cash!C$18,$A877))/1000","v":{"$error":"#NAME?"}},{"$f":"(_xll.RiskData(NR_to_Cash!D$18,$A877))/1000","v":{"$error":"#NAME?"}},{"$f":"(_xll.RiskData(NR_to_Cash!E$18,$A877))/1000","v":{"$error":"#NAME?"}}]
[871,{"$f":"_xll.RiskData('Risk Summary'!J$48,$A878)/1000","v":{"$error":"#NAME?"}},{"$f":"_xll.RiskData('Risk Summary'!K$48,$A878)/1000","v":{"$error":"#NAME?"}},{"$f":"_xll.RiskData('Risk Summary'!L$48,$A878)/1000","v":{"$error":"#NAME?"}},null,null,{"$f":"(_xll.RiskData(NR_to_Cash!C$18,$A878))/1000","v":{"$error":"#NAME?"}},{"$f":"(_xll.RiskData(NR_to_Cash!D$18,$A878))/1000","v":{"$error":"#NAME?"}},{"$f":"(_xll.RiskData(NR_to_Cash!E$18,$A878))/1000","v":{"$error":"#NAME?"}}]
[872,{"$f":"_xll.RiskData('Risk Summary'!J$48,$A879)/1000","v":{"$error":"#NAME?"}},{"$f":"_xll.RiskData('Risk Summary'!K$48,$A879)/1000","v":{"$error":"#NAME?"}},{"$f":"_xll.RiskData('Risk Summary'!L$48,$A879)/1000","v":{"$error":"#NAME?"}},null,null,{"$f":"(_xll.RiskData(NR_to_Cash!C$18,$A879))/1000","v":{"$error":"#NAME?"}},{"$f":"(_xll.RiskData(NR_to_Cash!D$18,$A879))/1000","v":{"$error":"#NAME?"}},{"$f":"(_xll.RiskData(NR_to_Cash!E$18,$A879))/1000","v":{"$error":"#NAME?"}}]
[873,{"$f":"_xll.RiskData('Risk Summary'!J$48,$A880)/1000","v":{"$error":"#NAME?"}},{"$f":"_xll.RiskData('Risk Summary'!K$48,$A880)/1000","v":{"$error":"#NAME?"}},{"$f":"_xll.RiskData('Risk Summary'!L$48,$A880)/1000","v":{"$error":"#NAME?"}},null,null,{"$f":"(_xll.RiskData(NR_to_Cash!C$18,$A880))/1000","v":{"$error":"#NAME?"}},{"$f":"(_xll.RiskData(NR_to_Cash!D$18,$A880))/1000","v":{"$error":"#NAME?"}},{"$f":"(_xll.RiskData(NR_to_Cash!E$18,$A880))/1000","v":{"$error":"#NAME?"}}]
[874,{"$f":"_xll.RiskData('Risk Summary'!J$48,$A881)/1000","v":{"$error":"#NAME?"}},{"$f":"_xll.RiskData('Risk Summary'!K$48,$A881)/1000","v":{"$error":"#NAME?"}},{"$f":"_xll.RiskData('Risk Summary'!L$48,$A881)/1000","v":{"$error":"#NAME?"}},null,null,{"$f":"(_xll.RiskData(NR_to_Cash!C$18,$A881))/1000","v":{"$error":"#NAME?"}},{"$f":"(_xll.RiskData(NR_to_Cash!D$18,$A881))/1000","v":{"$error":"#NAME?"}},{"$f":"(_xll.RiskData(NR_to_Cash!E$18,$A881))/1000","v":{"$error":"#NAME?"}}]
[875,{"$f":"_xll.RiskData('Risk Summary'!J$48,$A882)/1000","v":{"$error":"#NAME?"}},{"$f":"_xll.RiskData('Risk Summary'!K$48,$A882)/1000","v":{"$error":"#NAME?"}},{"$f":"_xll.RiskData('Risk Summary'!L$48,$A882)/1000","v":{"$error":"#NAME?"}},null,null,{"$f":"(_xll.RiskData(NR_to_Cash!C$18,$A882))/1000","v":{"$error":"#NAME?"}},{"$f":"(_xll.RiskData(NR_to_Cash!D$18,$A882))/1000","v":{"$error":"#NAME?"}},{"$f":"(_xll.RiskData(NR_to_Cash!E$18,$A882))/1000","v":{"$error":"#NAME?"}}]
[876,{"$f":"_xll.RiskData('Risk Summary'!J$48,$A883)/1000","v":{"$error":"#NAME?"}},{"$f":"_xll.RiskData('Risk Summary'!K$48,$A883)/1000","v":{"$error":"#NAME?"}},{"$f":"_xll.RiskData('Risk Summary'!L$48,$A883)/1000","v":{"$error":"#NAME?"}},null,null,{"$f":"(_xll.RiskData(NR_to_Cash!C$18,$A883))/1000","v":{"$error":"#NAME?"}},{"$f":"(_xll.RiskData(NR_to_Cash!D$18,$A883))/1000","v":{"$error":"#NAME?"}},{"$f":"(_xll.RiskData(NR_to_Cash!E$18,$A883))/1000","v":{"$error":"#NAME?"}}]
[877,{"$f":"_xll.RiskData('Risk Summary'!J$48,$A884)/1000","v":{"$error":"#NAME?"}},{"$f":"_xll.RiskData('Risk Summary'!K$48,$A884)/1000","v":{"$error":"#NAME?"}},{"$f":"_xll.RiskData('Risk Summary'!L$48,$A884)/1000","v":{"$error":"#NAME?"}},null,null,{"$f":"(_xll.RiskData(NR_to_Cash!C$18,$A884))/1000","v":{"$error":"#NAME?"}},{"$f":"(_xll.RiskData(NR_to_Cash!D$18,$A884))/1000","v":{"$error":"#NAME?"}},{"$f":"(_xll.RiskData(NR_to_Cash!E$18,$A884))/1000","v":{"$error":"#NAME?"}}]
[878,{"$f":"_xll.RiskData('Risk Summary'!J$48,$A885)/1000","v":{"$error":"#NAME?"}},{"$f":"_xll.RiskData('Risk Summary'!K$48,$A885)/1000","v":{"$error":"#NAME?"}},{"$f":"_xll.RiskData('Risk Summary'!L$48,$A885)/1000","v":{"$error":"#NAME?"}},null,null,{"$f":"(_xll.RiskData(NR_to_Cash!C$18,$A885))/1000","v":{"$error":"#NAME?"}},{"$f":"(_xll.RiskData(NR_to_Cash!D$18,$A885))/1000","v":{"$error":"#NAME?"}},{"$f":"(_xll.RiskData(NR_to_Cash!E$18,$A885))/1000","v":{"$error":"#NAME?"}}]
[879,{"$f":"_xll.RiskData('Risk Summary'!J$48,$A886)/1000","v":{"$error":"#NAME?"}},{"$f":"_xll.RiskData('Risk Summary'!K$48,$A886)/1000","v":{"$error":"#NAME?"}},{"$f":"_xll.RiskData('Risk Summary'!L$48,$A886)/1000","v":{"$error":"#NAME?"}},null,null,{"$f":"(_xll.RiskData(NR_to_Cash!C$18,$A886))/1000","v":{"$error":"#NAME?"}},{"$f":"(_xll.RiskData(NR_to_Cash!D$18,$A886))/1000","v":{"$error":"#NAME?"}},{"$f":"(_xll.RiskData(NR_to_Cash!E$18,$A886))/1000","v":{"$error":"#NAME?"}}]
[880,{"$f":"_xll.RiskData('Risk Summary'!J$48,$A887)/1000","v":{"$error":"#NAME?"}},{"$f":"_xll.RiskData('Risk Summary'!K$48,$A887)/1000","v":{"$error":"#NAME?"}},{"$f":"_xll.RiskData('Risk Summary'!L$48,$A887)/1000","v":{"$error":"#NAME?"}},null,null,{"$f":"(_xll.RiskData(NR_to_Cash!C$18,$A887))/1000","v":{"$error":"#NAME?"}},{"$f":"(_xll.RiskData(NR_to_Cash!D$18,$A887))/1000","v":{"$error":"#NAME?"}},{"$f":"(_xll.RiskData(NR_to_Cash!E$18,$A887))/1000","v":{"$error":"#NAME?"}}]
[881,{"$f":"_xll.RiskData('Risk Summary'!J$48,$A888)/1000","v":{"$error":"#NAME?"}},{"$f":"_xll.RiskData('Risk Summary'!K$48,$A888)/1000","v":{"$error":"#NAME?"}},{"$f":"_xll.RiskData('Risk Summary'!L$48,$A888)/1000","v":{"$error":"#NAME?"}},null,null,{"$f":"(_xll.RiskData(NR_to_Cash!C$18,$A888))/1000","v":{"$error":"#NAME?"}},{"$f":"(_xll.RiskData(NR_to_Cash!D$18,$A888))/1000","v":{"$error":"#NAME?"}},{"$f":"(_xll.RiskData(NR_to_Cash!E$18,$A888))/1000","v":{"$error":"#NAME?"}}]
[882,{"$f":"_xll.RiskData('Risk Summary'!J$48,$A889)/1000","v":{"$error":"#NAME?"}},{"$f":"_xll.RiskData('Risk Summary'!K$48,$A889)/1000","v":{"$error":"#NAME?"}},{"$f":"_xll.RiskData('Risk Summary'!L$48,$A889)/1000","v":{"$error":"#NAME?"}},null,null,{"$f":"(_xll.RiskData(NR_to_Cash!C$18,$A889))/1000","v":{"$error":"#NAME?"}},{"$f":"(_xll.RiskData(NR_to_Cash!D$18,$A889))/1000","v":{"$error":"#NAME?"}},{"$f":"(_xll.RiskData(NR_to_Cash!E$18,$A889))/1000","v":{"$error":"#NAME?"}}]
[883,{"$f":"_xll.RiskData('Risk Summary'!J$48,$A890)/1000","v":{"$error":"#NAME?"}},{"$f":"_xll.RiskData('Risk Summary'!K$48,$A890)/1000","v":{"$error":"#NAME?"}},{"$f":"_xll.RiskData('Risk Summary'!L$48,$A890)/1000","v":{"$error":"#NAME?"}},null,null,{"$f":"(_xll.RiskData(NR_to_Cash!C$18,$A890))/1000","v":{"$error":"#NAME?"}},{"$f":"(_xll.RiskData(NR_to_Cash!D$18,$A890))/1000","v":{"$error":"#NAME?"}},{"$f":"(_xll.RiskData(NR_to_Cash!E$18,$A890))/1000","v":{"$error":"#NAME?"}}]
[884,{"$f":"_xll.RiskData('Risk Summary'!J$48,$A891)/1000","v":{"$error":"#NAME?"}},{"$f":"_xll.RiskData('Risk Summary'!K$48,$A891)/1000","v":{"$error":"#NAME?"}},{"$f":"_xll.RiskData('Risk Summary'!L$48,$A891)/1000","v":{"$error":"#NAME?"}},null,null,{"$f":"(_xll.RiskData(NR_to_Cash!C$18,$A891))/1000","v":{"$error":"#NAME?"}},{"$f":"(_xll.RiskData(NR_to_Cash!D$18,$A891))/1000","v":{"$error":"#NAME?"}},{"$f":"(_xll.RiskData(NR_to_Cash!E$18,$A891))/1000","v":{"$error":"#NAME?"}}]
[885,{"$f":"_xll.RiskData('Risk Summary'!J$48,$A892)/1000","v":{"$error":"#NAME?"}},{"$f":"_xll.RiskData('Risk Summary'!K$48,$A892)/1000","v":{"$error":"#NAME?"}},{"$f":"_xll.RiskData('Risk Summary'!L$48,$A892)/1000","v":{"$error":"#NAME?"}},null,null,{"$f":"(_xll.RiskData(NR_to_Cash!C$18,$A892))/1000","v":{"$error":"#NAME?"}},{"$f":"(_xll.RiskData(NR_to_Cash!D$18,$A892))/1000","v":{"$error":"#NAME?"}},{"$f":"(_xll.RiskData(NR_to_Cash!E$18,$A892))/1000","v":{"$error":"#NAME?"}}]
[886,{"$f":"_xll.RiskData('Risk Summary'!J$48,$A893)/1000","v":{"$error":"#NAME?"}},{"$f":"_xll.RiskData('Risk Summary'!K$48,$A893)/1000","v":{"$error":"#NAME?"}},{"$f":"_xll.RiskData('Risk Summary'!L$48,$A893)/1000","v":{"$error":"#NAME?"}},null,null,{"$f":"(_xll.RiskData(NR_to_Cash!C$18,$A893))/1000","v":{"$error":"#NAME?"}},{"$f":"(_xll.RiskData(NR_to_Cash!D$18,$A893))/1000","v":{"$error":"#NAME?"}},{"$f":"(_xll.RiskData(NR_to_Cash!E$18,$A893))/1000","v":{"$error":"#NAME?"}}]
[887,{"$f":"_xll.RiskData('Risk Summary'!J$48,$A894)/1000","v":{"$error":"#NAME?"}},{"$f":"_xll.RiskData('Risk Summary'!K$48,$A894)/1000","v":{"$error":"#NAME?"}},{"$f":"_xll.RiskData('Risk Summary'!L$48,$A894)/1000","v":{"$error":"#NAME?"}},null,null,{"$f":"(_xll.RiskData(NR_to_Cash!C$18,$A894))/1000","v":{"$error":"#NAME?"}},{"$f":"(_xll.RiskData(NR_to_Cash!D$18,$A894))/1000","v":{"$error":"#NAME?"}},{"$f":"(_xll.RiskData(NR_to_Cash!E$18,$A894))/1000","v":{"$error":"#NAME?"}}]
[888,{"$f":"_xll.RiskData('Risk Summary'!J$48,$A895)/1000","v":{"$error":"#NAME?"}},{"$f":"_xll.RiskData('Risk Summary'!K$48,$A895)/1000","v":{"$error":"#NAME?"}},{"$f":"_xll.RiskData('Risk Summary'!L$48,$A895)/1000","v":{"$error":"#NAME?"}},null,null,{"$f":"(_xll.RiskData(NR_to_Cash!C$18,$A895))/1000","v":{"$error":"#NAME?"}},{"$f":"(_xll.RiskData(NR_to_Cash!D$18,$A895))/1000","v":{"$error":"#NAME?"}},{"$f":"(_xll.RiskData(NR_to_Cash!E$18,$A895))/1000","v":{"$error":"#NAME?"}}]
[889,{"$f":"_xll.RiskData('Risk Summary'!J$48,$A896)/1000","v":{"$error":"#NAME?"}},{"$f":"_xll.RiskData('Risk Summary'!K$48,$A896)/1000","v":{"$error":"#NAME?"}},{"$f":"_xll.RiskData('Risk Summary'!L$48,$A896)/1000","v":{"$error":"#NAME?"}},null,null,{"$f":"(_xll.RiskData(NR_to_Cash!C$18,$A896))/1000","v":{"$error":"#NAME?"}},{"$f":"(_xll.RiskData(NR_to_Cash!D$18,$A896))/1000","v":{"$error":"#NAME?"}},{"$f":"(_xll.RiskData(NR_to_Cash!E$18,$A896))/1000","v":{"$error":"#NAME?"}}]
[890,{"$f":"_xll.RiskData('Risk Summary'!J$48,$A897)/1000","v":{"$error":"#NAME?"}},{"$f":"_xll.RiskData('Risk Summary'!K$48,$A897)/1000","v":{"$error":"#NAME?"}},{"$f":"_xll.RiskData('Risk Summary'!L$48,$A897)/1000","v":{"$error":"#NAME?"}},null,null,{"$f":"(_xll.RiskData(NR_to_Cash!C$18,$A897))/1000","v":{"$error":"#NAME?"}},{"$f":"(_xll.RiskData(NR_to_Cash!D$18,$A897))/1000","v":{"$error":"#NAME?"}},{"$f":"(_xll.RiskData(NR_to_Cash!E$18,$A897))/1000","v":{"$error":"#NAME?"}}]
[891,{"$f":"_xll.RiskData('Risk Summary'!J$48,$A898)/1000","v":{"$error":"#NAME?"}},{"$f":"_xll.RiskData('Risk Summary'!K$48,$A898)/1000","v":{"$error":"#NAME?"}},{"$f":"_xll.RiskData('Risk Summary'!L$48,$A898)/1000","v":{"$error":"#NAME?"}},null,null,{"$f":"(_xll.RiskData(NR_to_Cash!C$18,$A898))/1000","v":{"$error":"#NAME?"}},{"$f":"(_xll.RiskData(NR_to_Cash!D$18,$A898))/1000","v":{"$error":"#NAME?"}},{"$f":"(_xll.RiskData(NR_to_Cash!E$18,$A898))/1000","v":{"$error":"#NAME?"}}]
[892,{"$f":"_xll.RiskData('Risk Summary'!J$48,$A899)/1000","v":{"$error":"#NAME?"}},{"$f":"_xll.RiskData('Risk Summary'!K$48,$A899)/1000","v":{"$error":"#NAME?"}},{"$f":"_xll.RiskData('Risk Summary'!L$48,$A899)/1000","v":{"$error":"#NAME?"}},null,null,{"$f":"(_xll.RiskData(NR_to_Cash!C$18,$A899))/1000","v":{"$error":"#NAME?"}},{"$f":"(_xll.RiskData(NR_to_Cash!D$18,$A899))/1000","v":{"$error":"#NAME?"}},{"$f":"(_xll.RiskData(NR_to_Cash!E$18,$A899))/1000","v":{"$error":"#NAME?"}}]
[893,{"$f":"_xll.RiskData('Risk Summary'!J$48,$A900)/1000","v":{"$error":"#NAME?"}},{"$f":"_xll.RiskData('Risk Summary'!K$48,$A900)/1000","v":{"$error":"#NAME?"}},{"$f":"_xll.RiskData('Risk Summary'!L$48,$A900)/1000","v":{"$error":"#NAME?"}},null,null,{"$f":"(_xll.RiskData(NR_to_Cash!C$18,$A900))/1000","v":{"$error":"#NAME?"}},{"$f":"(_xll.RiskData(NR_to_Cash!D$18,$A900))/1000","v":{"$error":"#NAME?"}},{"$f":"(_xll.RiskData(NR_to_Cash!E$18,$A900))/1000","v":{"$error":"#NAME?"}}]
[894,{"$f":"_xll.RiskData('Risk Summary'!J$48,$A901)/1000","v":{"$error":"#NAME?"}},{"$f":"_xll.RiskData('Risk Summary'!K$48,$A901)/1000","v":{"$error":"#NAME?"}},{"$f":"_xll.RiskData('Risk Summary'!L$48,$A901)/1000","v":{"$error":"#NAME?"}},null,null,{"$f":"(_xll.RiskData(NR_to_Cash!C$18,$A901))/1000","v":{"$error":"#NAME?"}},{"$f":"(_xll.RiskData(NR_to_Cash!D$18,$A901))/1000","v":{"$error":"#NAME?"}},{"$f":"(_xll.RiskData(NR_to_Cash!E$18,$A901))/1000","v":{"$error":"#NAME?"}}]
[895,{"$f":"_xll.RiskData('Risk Summary'!J$48,$A902)/1000","v":{"$error":"#NAME?"}},{"$f":"_xll.RiskData('Risk Summary'!K$48,$A902)/1000","v":{"$error":"#NAME?"}},{"$f":"_xll.RiskData('Risk Summary'!L$48,$A902)/1000","v":{"$error":"#NAME?"}},null,null,{"$f":"(_xll.RiskData(NR_to_Cash!C$18,$A902))/1000","v":{"$error":"#NAME?"}},{"$f":"(_xll.RiskData(NR_to_Cash!D$18,$A902))/1000","v":{"$error":"#NAME?"}},{"$f":"(_xll.RiskData(NR_to_Cash!E$18,$A902))/1000","v":{"$error":"#NAME?"}}]
[896,{"$f":"_xll.RiskData('Risk Summary'!J$48,$A903)/1000","v":{"$error":"#NAME?"}},{"$f":"_xll.RiskData('Risk Summary'!K$48,$A903)/1000","v":{"$error":"#NAME?"}},{"$f":"_xll.RiskData('Risk Summary'!L$48,$A903)/1000","v":{"$error":"#NAME?"}},null,null,{"$f":"(_xll.RiskData(NR_to_Cash!C$18,$A903))/1000","v":{"$error":"#NAME?"}},{"$f":"(_xll.RiskData(NR_to_Cash!D$18,$A903))/1000","v":{"$error":"#NAME?"}},{"$f":"(_xll.RiskData(NR_to_Cash!E$18,$A903))/1000","v":{"$error":"#NAME?"}}]
[897,{"$f":"_xll.RiskData('Risk Summary'!J$48,$A904)/1000","v":{"$error":"#NAME?"}},{"$f":"_xll.RiskData('Risk Summary'!K$48,$A904)/1000","v":{"$error":"#NAME?"}},{"$f":"_xll.RiskData('Risk Summary'!L$48,$A904)/1000","v":{"$error":"#NAME?"}},null,null,{"$f":"(_xll.RiskData(NR_to_Cash!C$18,$A904))/1000","v":{"$error":"#NAME?"}},{"$f":"(_xll.RiskData(NR_to_Cash!D$18,$A904))/1000","v":{"$error":"#NAME?"}},{"$f":"(_xll.RiskData(NR_to_Cash!E$18,$A904))/1000","v":{"$error":"#NAME?"}}]
[898,{"$f":"_xll.RiskData('Risk Summary'!J$48,$A905)/1000","v":{"$error":"#NAME?"}},{"$f":"_xll.RiskData('Risk Summary'!K$48,$A905)/1000","v":{"$error":"#NAME?"}},{"$f":"_xll.RiskData('Risk Summary'!L$48,$A905)/1000","v":{"$error":"#NAME?"}},null,null,{"$f":"(_xll.RiskData(NR_to_Cash!C$18,$A905))/1000","v":{"$error":"#NAME?"}},{"$f":"(_xll.RiskData(NR_to_Cash!D$18,$A905))/1000","v":{"$error":"#NAME?"}},{"$f":"(_xll.RiskData(NR_to_Cash!E$18,$A905))/1000","v":{"$error":"#NAME?"}}]
[899,{"$f":"_xll.RiskData('Risk Summary'!J$48,$A906)/1000","v":{"$error":"#NAME?"}},{"$f":"_xll.RiskData('Risk Summary'!K$48,$A906)/1000","v":{"$error":"#NAME?"}},{"$f":"_xll.RiskData('Risk Summary'!L$48,$A906)/1000","v":{"$error":"#NAME?"}},null,null,{"$f":"(_xll.RiskData(NR_to_Cash!C$18,$A906))/1000","v":{"$error":"#NAME?"}},{"$f":"(_xll.RiskData(NR_to_Cash!D$18,$A906))/1000","v":{"$error":"#NAME?"}},{"$f":"(_xll.RiskData(NR_to_Cash!E$18,$A906))/1000","v":{"$error":"#NAME?"}}]
[900,{"$f":"_xll.RiskData('Risk Summary'!J$48,$A907)/1000","v":{"$error":"#NAME?"}},{"$f":"_xll.RiskData('Risk Summary'!K$48,$A907)/1000","v":{"$error":"#NAME?"}},{"$f":"_xll.RiskData('Risk Summary'!L$48,$A907)/1000","v":{"$error":"#NAME?"}},null,null,{"$f":"(_xll.RiskData(NR_to_Cash!C$18,$A907))/1000","v":{"$error":"#NAME?"}},{"$f":"(_xll.RiskData(NR_to_Cash!D$18,$A907))/1000","v":{"$error":"#NAME?"}},{"$f":"(_xll.RiskData(NR_to_Cash!E$18,$A907))/1000","v":{"$error":"#NAME?"}}]
[901,{"$f":"_xll.RiskData('Risk Summary'!J$48,$A908)/1000","v":{"$error":"#NAME?"}},{"$f":"_xll.RiskData('Risk Summary'!K$48,$A908)/1000","v":{"$error":"#NAME?"}},{"$f":"_xll.RiskData('Risk Summary'!L$48,$A908)/1000","v":{"$error":"#NAME?"}},null,null,{"$f":"(_xll.RiskData(NR_to_Cash!C$18,$A908))/1000","v":{"$error":"#NAME?"}},{"$f":"(_xll.RiskData(NR_to_Cash!D$18,$A908))/1000","v":{"$error":"#NAME?"}},{"$f":"(_xll.RiskData(NR_to_Cash!E$18,$A908))/1000","v":{"$error":"#NAME?"}}]
[902,{"$f":"_xll.RiskData('Risk Summary'!J$48,$A909)/1000","v":{"$error":"#NAME?"}},{"$f":"_xll.RiskData('Risk Summary'!K$48,$A909)/1000","v":{"$error":"#NAME?"}},{"$f":"_xll.RiskData('Risk Summary'!L$48,$A909)/1000","v":{"$error":"#NAME?"}},null,null,{"$f":"(_xll.RiskData(NR_to_Cash!C$18,$A909))/1000","v":{"$error":"#NAME?"}},{"$f":"(_xll.RiskData(NR_to_Cash!D$18,$A909))/1000","v":{"$error":"#NAME?"}},{"$f":"(_xll.RiskData(NR_to_Cash!E$18,$A909))/1000","v":{"$error":"#NAME?"}}]
[903,{"$f":"_xll.RiskData('Risk Summary'!J$48,$A910)/1000","v":{"$error":"#NAME?"}},{"$f":"_xll.RiskData('Risk Summary'!K$48,$A910)/1000","v":{"$error":"#NAME?"}},{"$f":"_xll.RiskData('Risk Summary'!L$48,$A910)/1000","v":{"$error":"#NAME?"}},null,null,{"$f":"(_xll.RiskData(NR_to_Cash!C$18,$A910))/1000","v":{"$error":"#NAME?"}},{"$f":"(_xll.RiskData(NR_to_Cash!D$18,$A910))/1000","v":{"$error":"#NAME?"}},{"$f":"(_xll.RiskData(NR_to_Cash!E$18,$A910))/1000","v":{"$error":"#NAME?"}}]
[904,{"$f":"_xll.RiskData('Risk Summary'!J$48,$A911)/1000","v":{"$error":"#NAME?"}},{"$f":"_xll.RiskData('Risk Summary'!K$48,$A911)/1000","v":{"$error":"#NAME?"}},{"$f":"_xll.RiskData('Risk Summary'!L$48,$A911)/1000","v":{"$error":"#NAME?"}},null,null,{"$f":"(_xll.RiskData(NR_to_Cash!C$18,$A911))/1000","v":{"$error":"#NAME?"}},{"$f":"(_xll.RiskData(NR_to_Cash!D$18,$A911))/1000","v":{"$error":"#NAME?"}},{"$f":"(_xll.RiskData(NR_to_Cash!E$18,$A911))/1000","v":{"$error":"#NAME?"}}]
[905,{"$f":"_xll.RiskData('Risk Summary'!J$48,$A912)/1000","v":{"$error":"#NAME?"}},{"$f":"_xll.RiskData('Risk Summary'!K$48,$A912)/1000","v":{"$error":"#NAME?"}},{"$f":"_xll.RiskData('Risk Summary'!L$48,$A912)/1000","v":{"$error":"#NAME?"}},null,null,{"$f":"(_xll.RiskData(NR_to_Cash!C$18,$A912))/1000","v":{"$error":"#NAME?"}},{"$f":"(_xll.RiskData(NR_to_Cash!D$18,$A912))/1000","v":{"$error":"#NAME?"}},{"$f":"(_xll.RiskData(NR_to_Cash!E$18,$A912))/1000","v":{"$error":"#NAME?"}}]
[906,{"$f":"_xll.RiskData('Risk Summary'!J$48,$A913)/1000","v":{"$error":"#NAME?"}},{"$f":"_xll.RiskData('Risk Summary'!K$48,$A913)/1000","v":{"$error":"#NAME?"}},{"$f":"_xll.RiskData('Risk Summary'!L$48,$A913)/1000","v":{"$error":"#NAME?"}},null,null,{"$f":"(_xll.RiskData(NR_to_Cash!C$18,$A913))/1000","v":{"$error":"#NAME?"}},{"$f":"(_xll.RiskData(NR_to_Cash!D$18,$A913))/1000","v":{"$error":"#NAME?"}},{"$f":"(_xll.RiskData(NR_to_Cash!E$18,$A913))/1000","v":{"$error":"#NAME?"}}]
[907,{"$f":"_xll.RiskData('Risk Summary'!J$48,$A914)/1000","v":{"$error":"#NAME?"}},{"$f":"_xll.RiskData('Risk Summary'!K$48,$A914)/1000","v":{"$error":"#NAME?"}},{"$f":"_xll.RiskData('Risk Summary'!L$48,$A914)/1000","v":{"$error":"#NAME?"}},null,null,{"$f":"(_xll.RiskData(NR_to_Cash!C$18,$A914))/1000","v":{"$error":"#NAME?"}},{"$f":"(_xll.RiskData(NR_to_Cash!D$18,$A914))/1000","v":{"$error":"#NAME?"}},{"$f":"(_xll.RiskData(NR_to_Cash!E$18,$A914))/1000","v":{"$error":"#NAME?"}}]
[908,{"$f":"_xll.RiskData('Risk Summary'!J$48,$A915)/1000","v":{"$error":"#NAME?"}},{"$f":"_xll.RiskData('Risk Summary'!K$48,$A915)/1000","v":{"$error":"#NAME?"}},{"$f":"_xll.RiskData('Risk Summary'!L$48,$A915)/1000","v":{"$error":"#NAME?"}},null,null,{"$f":"(_xll.RiskData(NR_to_Cash!C$18,$A915))/1000","v":{"$error":"#NAME?"}},{"$f":"(_xll.RiskData(NR_to_Cash!D$18,$A915))/1000","v":{"$error":"#NAME?"}},{"$f":"(_xll.RiskData(NR_to_Cash!E$18,$A915))/1000","v":{"$error":"#NAME?"}}]
[909,{"$f":"_xll.RiskData('Risk Summary'!J$48,$A916)/1000","v":{"$error":"#NAME?"}},{"$f":"_xll.RiskData('Risk Summary'!K$48,$A916)/1000","v":{"$error":"#NAME?"}},{"$f":"_xll.RiskData('Risk Summary'!L$48,$A916)/1000","v":{"$error":"#NAME?"}},null,null,{"$f":"(_xll.RiskData(NR_to_Cash!C$18,$A916))/1000","v":{"$error":"#NAME?"}},{"$f":"(_xll.RiskData(NR_to_Cash!D$18,$A916))/1000","v":{"$error":"#NAME?"}},{"$f":"(_xll.RiskData(NR_to_Cash!E$18,$A916))/1000","v":{"$error":"#NAME?"}}]
[910,{"$f":"_xll.RiskData('Risk Summary'!J$48,$A917)/1000","v":{"$error":"#NAME?"}},{"$f":"_xll.RiskData('Risk Summary'!K$48,$A917)/1000","v":{"$error":"#NAME?"}},{"$f":"_xll.RiskData('Risk Summary'!L$48,$A917)/1000","v":{"$error":"#NAME?"}},null,null,{"$f":"(_xll.RiskData(NR_to_Cash!C$18,$A917))/1000","v":{"$error":"#NAME?"}},{"$f":"(_xll.RiskData(NR_to_Cash!D$18,$A917))/1000","v":{"$error":"#NAME?"}},{"$f":"(_xll.RiskData(NR_to_Cash!E$18,$A917))/1000","v":{"$error":"#NAME?"}}]
[911,{"$f":"_xll.RiskData('Risk Summary'!J$48,$A918)/1000","v":{"$error":"#NAME?"}},{"$f":"_xll.RiskData('Risk Summary'!K$48,$A918)/1000","v":{"$error":"#NAME?"}},{"$f":"_xll.RiskData('Risk Summary'!L$48,$A918)/1000","v":{"$error":"#NAME?"}},null,null,{"$f":"(_xll.RiskData(NR_to_Cash!C$18,$A918))/1000","v":{"$error":"#NAME?"}},{"$f":"(_xll.RiskData(NR_to_Cash!D$18,$A918))/1000","v":{"$error":"#NAME?"}},{"$f":"(_xll.RiskData(NR_to_Cash!E$18,$A918))/1000","v":{"$error":"#NAME?"}}]
[912,{"$f":"_xll.RiskData('Risk Summary'!J$48,$A919)/1000","v":{"$error":"#NAME?"}},{"$f":"_xll.RiskData('Risk Summary'!K$48,$A919)/1000","v":{"$error":"#NAME?"}},{"$f":"_xll.RiskData('Risk Summary'!L$48,$A919)/1000","v":{"$error":"#NAME?"}},null,null,{"$f":"(_xll.RiskData(NR_to_Cash!C$18,$A919))/1000","v":{"$error":"#NAME?"}},{"$f":"(_xll.RiskData(NR_to_Cash!D$18,$A919))/1000","v":{"$error":"#NAME?"}},{"$f":"(_xll.RiskData(NR_to_Cash!E$18,$A919))/1000","v":{"$error":"#NAME?"}}]
[913,{"$f":"_xll.RiskData('Risk Summary'!J$48,$A920)/1000","v":{"$error":"#NAME?"}},{"$f":"_xll.RiskData('Risk Summary'!K$48,$A920)/1000","v":{"$error":"#NAME?"}},{"$f":"_xll.RiskData('Risk Summary'!L$48,$A920)/1000","v":{"$error":"#NAME?"}},null,null,{"$f":"(_xll.RiskData(NR_to_Cash!C$18,$A920))/1000","v":{"$error":"#NAME?"}},{"$f":"(_xll.RiskData(NR_to_Cash!D$18,$A920))/1000","v":{"$error":"#NAME?"}},{"$f":"(_xll.RiskData(NR_to_Cash!E$18,$A920))/1000","v":{"$error":"#NAME?"}}]
[914,{"$f":"_xll.RiskData('Risk Summary'!J$48,$A921)/1000","v":{"$error":"#NAME?"}},{"$f":"_xll.RiskData('Risk Summary'!K$48,$A921)/1000","v":{"$error":"#NAME?"}},{"$f":"_xll.RiskData('Risk Summary'!L$48,$A921)/1000","v":{"$error":"#NAME?"}},null,null,{"$f":"(_xll.RiskData(NR_to_Cash!C$18,$A921))/1000","v":{"$error":"#NAME?"}},{"$f":"(_xll.RiskData(NR_to_Cash!D$18,$A921))/1000","v":{"$error":"#NAME?"}},{"$f":"(_xll.RiskData(NR_to_Cash!E$18,$A921))/1000","v":{"$error":"#NAME?"}}]
[915,{"$f":"_xll.RiskData('Risk Summary'!J$48,$A922)/1000","v":{"$error":"#NAME?"}},{"$f":"_xll.RiskData('Risk Summary'!K$48,$A922)/1000","v":{"$error":"#NAME?"}},{"$f":"_xll.RiskData('Risk Summary'!L$48,$A922)/1000","v":{"$error":"#NAME?"}},null,null,{"$f":"(_xll.RiskData(NR_to_Cash!C$18,$A922))/1000","v":{"$error":"#NAME?"}},{"$f":"(_xll.RiskData(NR_to_Cash!D$18,$A922))/1000","v":{"$error":"#NAME?"}},{"$f":"(_xll.RiskData(NR_to_Cash!E$18,$A922))/1000","v":{"$error":"#NAME?"}}]
[916,{"$f":"_xll.RiskData('Risk Summary'!J$48,$A923)/1000","v":{"$error":"#NAME?"}},{"$f":"_xll.RiskData('Risk Summary'!K$48,$A923)/1000","v":{"$error":"#NAME?"}},{"$f":"_xll.RiskData('Risk Summary'!L$48,$A923)/1000","v":{"$error":"#NAME?"}},null,null,{"$f":"(_xll.RiskData(NR_to_Cash!C$18,$A923))/1000","v":{"$error":"#NAME?"}},{"$f":"(_xll.RiskData(NR_to_Cash!D$18,$A923))/1000","v":{"$error":"#NAME?"}},{"$f":"(_xll.RiskData(NR_to_Cash!E$18,$A923))/1000","v":{"$error":"#NAME?"}}]
[917,{"$f":"_xll.RiskData('Risk Summary'!J$48,$A924)/1000","v":{"$error":"#NAME?"}},{"$f":"_xll.RiskData('Risk Summary'!K$48,$A924)/1000","v":{"$error":"#NAME?"}},{"$f":"_xll.RiskData('Risk Summary'!L$48,$A924)/1000","v":{"$error":"#NAME?"}},null,null,{"$f":"(_xll.RiskData(NR_to_Cash!C$18,$A924))/1000","v":{"$error":"#NAME?"}},{"$f":"(_xll.RiskData(NR_to_Cash!D$18,$A924))/1000","v":{"$error":"#NAME?"}},{"$f":"(_xll.RiskData(NR_to_Cash!E$18,$A924))/1000","v":{"$error":"#NAME?"}}]
[918,{"$f":"_xll.RiskData('Risk Summary'!J$48,$A925)/1000","v":{"$error":"#NAME?"}},{"$f":"_xll.RiskData('Risk Summary'!K$48,$A925)/1000","v":{"$error":"#NAME?"}},{"$f":"_xll.RiskData('Risk Summary'!L$48,$A925)/1000","v":{"$error":"#NAME?"}},null,null,{"$f":"(_xll.RiskData(NR_to_Cash!C$18,$A925))/1000","v":{"$error":"#NAME?"}},{"$f":"(_xll.RiskData(NR_to_Cash!D$18,$A925))/1000","v":{"$error":"#NAME?"}},{"$f":"(_xll.RiskData(NR_to_Cash!E$18,$A925))/1000","v":{"$error":"#NAME?"}}]
[919,{"$f":"_xll.RiskData('Risk Summary'!J$48,$A926)/1000","v":{"$error":"#NAME?"}},{"$f":"_xll.RiskData('Risk Summary'!K$48,$A926)/1000","v":{"$error":"#NAME?"}},{"$f":"_xll.RiskData('Risk Summary'!L$48,$A926)/1000","v":{"$error":"#NAME?"}},null,null,{"$f":"(_xll.RiskData(NR_to_Cash!C$18,$A926))/1000","v":{"$error":"#NAME?"}},{"$f":"(_xll.RiskData(NR_to_Cash!D$18,$A926))/1000","v":{"$error":"#NAME?"}},{"$f":"(_xll.RiskData(NR_to_Cash!E$18,$A926))/1000","v":{"$error":"#NAME?"}}]
[920,{"$f":"_xll.RiskData('Risk Summary'!J$48,$A927)/1000","v":{"$error":"#NAME?"}},{"$f":"_xll.RiskData('Risk Summary'!K$48,$A927)/1000","v":{"$error":"#NAME?"}},{"$f":"_xll.RiskData('Risk Summary'!L$48,$A927)/1000","v":{"$error":"#NAME?"}},null,null,{"$f":"(_xll.RiskData(NR_to_Cash!C$18,$A927))/1000","v":{"$error":"#NAME?"}},{"$f":"(_xll.RiskData(NR_to_Cash!D$18,$A927))/1000","v":{"$error":"#NAME?"}},{"$f":"(_xll.RiskData(NR_to_Cash!E$18,$A927))/1000","v":{"$error":"#NAME?"}}]
[921,{"$f":"_xll.RiskData('Risk Summary'!J$48,$A928)/1000","v":{"$error":"#NAME?"}},{"$f":"_xll.RiskData('Risk Summary'!K$48,$A928)/1000","v":{"$error":"#NAME?"}},{"$f":"_xll.RiskData('Risk Summary'!L$48,$A928)/1000","v":{"$error":"#NAME?"}},null,null,{"$f":"(_xll.RiskData(NR_to_Cash!C$18,$A928))/1000","v":{"$error":"#NAME?"}},{"$f":"(_xll.RiskData(NR_to_Cash!D$18,$A928))/1000","v":{"$error":"#NAME?"}},{"$f":"(_xll.RiskData(NR_to_Cash!E$18,$A928))/1000","v":{"$error":"#NAME?"}}]
[922,{"$f":"_xll.RiskData('Risk Summary'!J$48,$A929)/1000","v":{"$error":"#NAME?"}},{"$f":"_xll.RiskData('Risk Summary'!K$48,$A929)/1000","v":{"$error":"#NAME?"}},{"$f":"_xll.RiskData('Risk Summary'!L$48,$A929)/1000","v":{"$error":"#NAME?"}},null,null,{"$f":"(_xll.RiskData(NR_to_Cash!C$18,$A929))/1000","v":{"$error":"#NAME?"}},{"$f":"(_xll.RiskData(NR_to_Cash!D$18,$A929))/1000","v":{"$error":"#NAME?"}},{"$f":"(_xll.RiskData(NR_to_Cash!E$18,$A929))/1000","v":{"$error":"#NAME?"}}]
[923,{"$f":"_xll.RiskData('Risk Summary'!J$48,$A930)/1000","v":{"$error":"#NAME?"}},{"$f":"_xll.RiskData('Risk Summary'!K$48,$A930)/1000","v":{"$error":"#NAME?"}},{"$f":"_xll.RiskData('Risk Summary'!L$48,$A930)/1000","v":{"$error":"#NAME?"}},null,null,{"$f":"(_xll.RiskData(NR_to_Cash!C$18,$A930))/1000","v":{"$error":"#NAME?"}},{"$f":"(_xll.RiskData(NR_to_Cash!D$18,$A930))/1000","v":{"$error":"#NAME?"}},{"$f":"(_xll.RiskData(NR_to_Cash!E$18,$A930))/1000","v":{"$error":"#NAME?"}}]
[924,{"$f":"_xll.RiskData('Risk Summary'!J$48,$A931)/1000","v":{"$error":"#NAME?"}},{"$f":"_xll.RiskData('Risk Summary'!K$48,$A931)/1000","v":{"$error":"#NAME?"}},{"$f":"_xll.RiskData('Risk Summary'!L$48,$A931)/1000","v":{"$error":"#NAME?"}},null,null,{"$f":"(_xll.RiskData(NR_to_Cash!C$18,$A931))/1000","v":{"$error":"#NAME?"}},{"$f":"(_xll.RiskData(NR_to_Cash!D$18,$A931))/1000","v":{"$error":"#NAME?"}},{"$f":"(_xll.RiskData(NR_to_Cash!E$18,$A931))/1000","v":{"$error":"#NAME?"}}]
[925,{"$f":"_xll.RiskData('Risk Summary'!J$48,$A932)/1000","v":{"$error":"#NAME?"}},{"$f":"_xll.RiskData('Risk Summary'!K$48,$A932)/1000","v":{"$error":"#NAME?"}},{"$f":"_xll.RiskData('Risk Summary'!L$48,$A932)/1000","v":{"$error":"#NAME?"}},null,null,{"$f":"(_xll.RiskData(NR_to_Cash!C$18,$A932))/1000","v":{"$error":"#NAME?"}},{"$f":"(_xll.RiskData(NR_to_Cash!D$18,$A932))/1000","v":{"$error":"#NAME?"}},{"$f":"(_xll.RiskData(NR_to_Cash!E$18,$A932))/1000","v":{"$error":"#NAME?"}}]
[926,{"$f":"_xll.RiskData('Risk Summary'!J$48,$A933)/1000","v":{"$error":"#NAME?"}},{"$f":"_xll.RiskData('Risk Summary'!K$48,$A933)/1000","v":{"$error":"#NAME?"}},{"$f":"_xll.RiskData('Risk Summary'!L$48,$A933)/1000","v":{"$error":"#NAME?"}},null,null,{"$f":"(_xll.RiskData(NR_to_Cash!C$18,$A933))/1000","v":{"$error":"#NAME?"}},{"$f":"(_xll.RiskData(NR_to_Cash!D$18,$A933))/1000","v":{"$error":"#NAME?"}},{"$f":"(_xll.RiskData(NR_to_Cash!E$18,$A933))/1000","v":{"$error":"#NAME?"}}]
[927,{"$f":"_xll.RiskData('Risk Summary'!J$48,$A934)/1000","v":{"$error":"#NAME?"}},{"$f":"_xll.RiskData('Risk Summary'!K$48,$A934)/1000","v":{"$error":"#NAME?"}},{"$f":"_xll.RiskData('Risk Summary'!L$48,$A934)/1000","v":{"$error":"#NAME?"}},null,null,{"$f":"(_xll.RiskData(NR_to_Cash!C$18,$A934))/1000","v":{"$error":"#NAME?"}},{"$f":"(_xll.RiskData(NR_to_Cash!D$18,$A934))/1000","v":{"$error":"#NAME?"}},{"$f":"(_xll.RiskData(NR_to_Cash!E$18,$A934))/1000","v":{"$error":"#NAME?"}}]
[928,{"$f":"_xll.RiskData('Risk Summary'!J$48,$A935)/1000","v":{"$error":"#NAME?"}},{"$f":"_xll.RiskData('Risk Summary'!K$48,$A935)/1000","v":{"$error":"#NAME?"}},{"$f":"_xll.RiskData('Risk Summary'!L$48,$A935)/1000","v":{"$error":"#NAME?"}},null,null,{"$f":"(_xll.RiskData(NR_to_Cash!C$18,$A935))/1000","v":{"$error":"#NAME?"}},{"$f":"(_xll.RiskData(NR_to_Cash!D$18,$A935))/1000","v":{"$error":"#NAME?"}},{"$f":"(_xll.RiskData(NR_to_Cash!E$18,$A935))/1000","v":{"$error":"#NAME?"}}]
[929,{"$f":"_xll.RiskData('Risk Summary'!J$48,$A936)/1000","v":{"$error":"#NAME?"}},{"$f":"_xll.RiskData('Risk Summary'!K$48,$A936)/1000","v":{"$error":"#NAME?"}},{"$f":"_xll.RiskData('Risk Summary'!L$48,$A936)/1000","v":{"$error":"#NAME?"}},null,null,{"$f":"(_xll.RiskData(NR_to_Cash!C$18,$A936))/1000","v":{"$error":"#NAME?"}},{"$f":"(_xll.RiskData(NR_to_Cash!D$18,$A936))/1000","v":{"$error":"#NAME?"}},{"$f":"(_xll.RiskData(NR_to_Cash!E$18,$A936))/1000","v":{"$error":"#NAME?"}}]
[930,{"$f":"_xll.RiskData('Risk Summary'!J$48,$A937)/1000","v":{"$error":"#NAME?"}},{"$f":"_xll.RiskData('Risk Summary'!K$48,$A937)/1000","v":{"$error":"#NAME?"}},{"$f":"_xll.RiskData('Risk Summary'!L$48,$A937)/1000","v":{"$error":"#NAME?"}},null,null,{"$f":"(_xll.RiskData(NR_to_Cash!C$18,$A937))/1000","v":{"$error":"#NAME?"}},{"$f":"(_xll.RiskData(NR_to_Cash!D$18,$A937))/1000","v":{"$error":"#NAME?"}},{"$f":"(_xll.RiskData(NR_to_Cash!E$18,$A937))/1000","v":{"$error":"#NAME?"}}]
[931,{"$f":"_xll.RiskData('Risk Summary'!J$48,$A938)/1000","v":{"$error":"#NAME?"}},{"$f":"_xll.RiskData('Risk Summary'!K$48,$A938)/1000","v":{"$error":"#NAME?"}},{"$f":"_xll.RiskData('Risk Summary'!L$48,$A938)/1000","v":{"$error":"#NAME?"}},null,null,{"$f":"(_xll.RiskData(NR_to_Cash!C$18,$A938))/1000","v":{"$error":"#NAME?"}},{"$f":"(_xll.RiskData(NR_to_Cash!D$18,$A938))/1000","v":{"$error":"#NAME?"}},{"$f":"(_xll.RiskData(NR_to_Cash!E$18,$A938))/1000","v":{"$error":"#NAME?"}}]
[932,{"$f":"_xll.RiskData('Risk Summary'!J$48,$A939)/1000","v":{"$error":"#NAME?"}},{"$f":"_xll.RiskData('Risk Summary'!K$48,$A939)/1000","v":{"$error":"#NAME?"}},{"$f":"_xll.RiskData('Risk Summary'!L$48,$A939)/1000","v":{"$error":"#NAME?"}},null,null,{"$f":"(_xll.RiskData(NR_to_Cash!C$18,$A939))/1000","v":{"$error":"#NAME?"}},{"$f":"(_xll.RiskData(NR_to_Cash!D$18,$A939))/1000","v":{"$error":"#NAME?"}},{"$f":"(_xll.RiskData(NR_to_Cash!E$18,$A939))/1000","v":{"$error":"#NAME?"}}]
[933,{"$f":"_xll.RiskData('Risk Summary'!J$48,$A940)/1000","v":{"$error":"#NAME?"}},{"$f":"_xll.RiskData('Risk Summary'!K$48,$A940)/1000","v":{"$error":"#NAME?"}},{"$f":"_xll.RiskData('Risk Summary'!L$48,$A940)/1000","v":{"$error":"#NAME?"}},null,null,{"$f":"(_xll.RiskData(NR_to_Cash!C$18,$A940))/1000","v":{"$error":"#NAME?"}},{"$f":"(_xll.RiskData(NR_to_Cash!D$18,$A940))/1000","v":{"$error":"#NAME?"}},{"$f":"(_xll.RiskData(NR_to_Cash!E$18,$A940))/1000","v":{"$error":"#NAME?"}}]
[934,{"$f":"_xll.RiskData('Risk Summary'!J$48,$A941)/1000","v":{"$error":"#NAME?"}},{"$f":"_xll.RiskData('Risk Summary'!K$48,$A941)/1000","v":{"$error":"#NAME?"}},{"$f":"_xll.RiskData('Risk Summary'!L$48,$A941)/1000","v":{"$error":"#NAME?"}},null,null,{"$f":"(_xll.RiskData(NR_to_Cash!C$18,$A941))/1000","v":{"$error":"#NAME?"}},{"$f":"(_xll.RiskData(NR_to_Cash!D$18,$A941))/1000","v":{"$error":"#NAME?"}},{"$f":"(_xll.RiskData(NR_to_Cash!E$18,$A941))/1000","v":{"$error":"#NAME?"}}]
[935,{"$f":"_xll.RiskData('Risk Summary'!J$48,$A942)/1000","v":{"$error":"#NAME?"}},{"$f":"_xll.RiskData('Risk Summary'!K$48,$A942)/1000","v":{"$error":"#NAME?"}},{"$f":"_xll.RiskData('Risk Summary'!L$48,$A942)/1000","v":{"$error":"#NAME?"}},null,null,{"$f":"(_xll.RiskData(NR_to_Cash!C$18,$A942))/1000","v":{"$error":"#NAME?"}},{"$f":"(_xll.RiskData(NR_to_Cash!D$18,$A942))/1000","v":{"$error":"#NAME?"}},{"$f":"(_xll.RiskData(NR_to_Cash!E$18,$A942))/1000","v":{"$error":"#NAME?"}}]
[936,{"$f":"_xll.RiskData('Risk Summary'!J$48,$A943)/1000","v":{"$error":"#NAME?"}},{"$f":"_xll.RiskData('Risk Summary'!K$48,$A943)/1000","v":{"$error":"#NAME?"}},{"$f":"_xll.RiskData('Risk Summary'!L$48,$A943)/1000","v":{"$error":"#NAME?"}},null,null,{"$f":"(_xll.RiskData(NR_to_Cash!C$18,$A943))/1000","v":{"$error":"#NAME?"}},{"$f":"(_xll.RiskData(NR_to_Cash!D$18,$A943))/1000","v":{"$error":"#NAME?"}},{"$f":"(_xll.RiskData(NR_to_Cash!E$18,$A943))/1000","v":{"$error":"#NAME?"}}]
[937,{"$f":"_xll.RiskData('Risk Summary'!J$48,$A944)/1000","v":{"$error":"#NAME?"}},{"$f":"_xll.RiskData('Risk Summary'!K$48,$A944)/1000","v":{"$error":"#NAME?"}},{"$f":"_xll.RiskData('Risk Summary'!L$48,$A944)/1000","v":{"$error":"#NAME?"}},null,null,{"$f":"(_xll.RiskData(NR_to_Cash!C$18,$A944))/1000","v":{"$error":"#NAME?"}},{"$f":"(_xll.RiskData(NR_to_Cash!D$18,$A944))/1000","v":{"$error":"#NAME?"}},{"$f":"(_xll.RiskData(NR_to_Cash!E$18,$A944))/1000","v":{"$error":"#NAME?"}}]
[938,{"$f":"_xll.RiskData('Risk Summary'!J$48,$A945)/1000","v":{"$error":"#NAME?"}},{"$f":"_xll.RiskData('Risk Summary'!K$48,$A945)/1000","v":{"$error":"#NAME?"}},{"$f":"_xll.RiskData('Risk Summary'!L$48,$A945)/1000","v":{"$error":"#NAME?"}},null,null,{"$f":"(_xll.RiskData(NR_to_Cash!C$18,$A945))/1000","v":{"$error":"#NAME?"}},{"$f":"(_xll.RiskData(NR_to_Cash!D$18,$A945))/1000","v":{"$error":"#NAME?"}},{"$f":"(_xll.RiskData(NR_to_Cash!E$18,$A945))/1000","v":{"$error":"#NAME?"}}]
[939,{"$f":"_xll.RiskData('Risk Summary'!J$48,$A946)/1000","v":{"$error":"#NAME?"}},{"$f":"_xll.RiskData('Risk Summary'!K$48,$A946)/1000","v":{"$error":"#NAME?"}},{"$f":"_xll.RiskData('Risk Summary'!L$48,$A946)/1000","v":{"$error":"#NAME?"}},null,null,{"$f":"(_xll.RiskData(NR_to_Cash!C$18,$A946))/1000","v":{"$error":"#NAME?"}},{"$f":"(_xll.RiskData(NR_to_Cash!D$18,$A946))/1000","v":{"$error":"#NAME?"}},{"$f":"(_xll.RiskData(NR_to_Cash!E$18,$A946))/1000","v":{"$error":"#NAME?"}}]
[940,{"$f":"_xll.RiskData('Risk Summary'!J$48,$A947)/1000","v":{"$error":"#NAME?"}},{"$f":"_xll.RiskData('Risk Summary'!K$48,$A947)/1000","v":{"$error":"#NAME?"}},{"$f":"_xll.RiskData('Risk Summary'!L$48,$A947)/1000","v":{"$error":"#NAME?"}},null,null,{"$f":"(_xll.RiskData(NR_to_Cash!C$18,$A947))/1000","v":{"$error":"#NAME?"}},{"$f":"(_xll.RiskData(NR_to_Cash!D$18,$A947))/1000","v":{"$error":"#NAME?"}},{"$f":"(_xll.RiskData(NR_to_Cash!E$18,$A947))/1000","v":{"$error":"#NAME?"}}]
[941,{"$f":"_xll.RiskData('Risk Summary'!J$48,$A948)/1000","v":{"$error":"#NAME?"}},{"$f":"_xll.RiskData('Risk Summary'!K$48,$A948)/1000","v":{"$error":"#NAME?"}},{"$f":"_xll.RiskData('Risk Summary'!L$48,$A948)/1000","v":{"$error":"#NAME?"}},null,null,{"$f":"(_xll.RiskData(NR_to_Cash!C$18,$A948))/1000","v":{"$error":"#NAME?"}},{"$f":"(_xll.RiskData(NR_to_Cash!D$18,$A948))/1000","v":{"$error":"#NAME?"}},{"$f":"(_xll.RiskData(NR_to_Cash!E$18,$A948))/1000","v":{"$error":"#NAME?"}}]
[942,{"$f":"_xll.RiskData('Risk Summary'!J$48,$A949)/1000","v":{"$error":"#NAME?"}},{"$f":"_xll.RiskData('Risk Summary'!K$48,$A949)/1000","v":{"$error":"#NAME?"}},{"$f":"_xll.RiskData('Risk Summary'!L$48,$A949)/1000","v":{"$error":"#NAME?"}},null,null,{"$f":"(_xll.RiskData(NR_to_Cash!C$18,$A949))/1000","v":{"$error":"#NAME?"}},{"$f":"(_xll.RiskData(NR_to_Cash!D$18,$A949))/1000","v":{"$error":"#NAME?"}},{"$f":"(_xll.RiskData(NR_to_Cash!E$18,$A949))/1000","v":{"$error":"#NAME?"}}]
[943,{"$f":"_xll.RiskData('Risk Summary'!J$48,$A950)/1000","v":{"$error":"#NAME?"}},{"$f":"_xll.RiskData('Risk Summary'!K$48,$A950)/1000","v":{"$error":"#NAME?"}},{"$f":"_xll.RiskData('Risk Summary'!L$48,$A950)/1000","v":{"$error":"#NAME?"}},null,null,{"$f":"(_xll.RiskData(NR_to_Cash!C$18,$A950))/1000","v":{"$error":"#NAME?"}},{"$f":"(_xll.RiskData(NR_to_Cash!D$18,$A950))/1000","v":{"$error":"#NAME?"}},{"$f":"(_xll.RiskData(NR_to_Cash!E$18,$A950))/1000","v":{"$error":"#NAME?"}}]
[944,{"$f":"_xll.RiskData('Risk Summary'!J$48,$A951)/1000","v":{"$error":"#NAME?"}},{"$f":"_xll.RiskData('Risk Summary'!K$48,$A951)/1000","v":{"$error":"#NAME?"}},{"$f":"_xll.RiskData('Risk Summary'!L$48,$A951)/1000","v":{"$error":"#NAME?"}},null,null,{"$f":"(_xll.RiskData(NR_to_Cash!C$18,$A951))/1000","v":{"$error":"#NAME?"}},{"$f":"(_xll.RiskData(NR_to_Cash!D$18,$A951))/1000","v":{"$error":"#NAME?"}},{"$f":"(_xll.RiskData(NR_to_Cash!E$18,$A951))/1000","v":{"$error":"#NAME?"}}]
[945,{"$f":"_xll.RiskData('Risk Summary'!J$48,$A952)/1000","v":{"$error":"#NAME?"}},{"$f":"_xll.RiskData('Risk Summary'!K$48,$A952)/1000","v":{"$error":"#NAME?"}},{"$f":"_xll.RiskData('Risk Summary'!L$48,$A952)/1000","v":{"$error":"#NAME?"}},null,null,{"$f":"(_xll.RiskData(NR_to_Cash!C$18,$A952))/1000","v":{"$error":"#NAME?"}},{"$f":"(_xll.RiskData(NR_to_Cash!D$18,$A952))/1000","v":{"$error":"#NAME?"}},{"$f":"(_xll.RiskData(NR_to_Cash!E$18,$A952))/1000","v":{"$error":"#NAME?"}}]
[946,{"$f":"_xll.RiskData('Risk Summary'!J$48,$A953)/1000","v":{"$error":"#NAME?"}},{"$f":"_xll.RiskData('Risk Summary'!K$48,$A953)/1000","v":{"$error":"#NAME?"}},{"$f":"_xll.RiskData('Risk Summary'!L$48,$A953)/1000","v":{"$error":"#NAME?"}},null,null,{"$f":"(_xll.RiskData(NR_to_Cash!C$18,$A953))/1000","v":{"$error":"#NAME?"}},{"$f":"(_xll.RiskData(NR_to_Cash!D$18,$A953))/1000","v":{"$error":"#NAME?"}},{"$f":"(_xll.RiskData(NR_to_Cash!E$18,$A953))/1000","v":{"$error":"#NAME?"}}]
[947,{"$f":"_xll.RiskData('Risk Summary'!J$48,$A954)/1000","v":{"$error":"#NAME?"}},{"$f":"_xll.RiskData('Risk Summary'!K$48,$A954)/1000","v":{"$error":"#NAME?"}},{"$f":"_xll.RiskData('Risk Summary'!L$48,$A954)/1000","v":{"$error":"#NAME?"}},null,null,{"$f":"(_xll.RiskData(NR_to_Cash!C$18,$A954))/1000","v":{"$error":"#NAME?"}},{"$f":"(_xll.RiskData(NR_to_Cash!D$18,$A954))/1000","v":{"$error":"#NAME?"}},{"$f":"(_xll.RiskData(NR_to_Cash!E$18,$A954))/1000","v":{"$error":"#NAME?"}}]
[948,{"$f":"_xll.RiskData('Risk Summary'!J$48,$A955)/1000","v":{"$error":"#NAME?"}},{"$f":"_xll.RiskData('Risk Summary'!K$48,$A955)/1000","v":{"$error":"#NAME?"}},{"$f":"_xll.RiskData('Risk Summary'!L$48,$A955)/1000","v":{"$error":"#NAME?"}},null,null,{"$f":"(_xll.RiskData(NR_to_Cash!C$18,$A955))/1000","v":{"$error":"#NAME?"}},{"$f":"(_xll.RiskData(NR_to_Cash!D$18,$A955))/1000","v":{"$error":"#NAME?"}},{"$f":"(_xll.RiskData(NR_to_Cash!E$18,$A955))/1000","v":{"$error":"#NAME?"}}]
[949,{"$f":"_xll.RiskData('Risk Summary'!J$48,$A956)/1000","v":{"$error":"#NAME?"}},{"$f":"_xll.RiskData('Risk Summary'!K$48,$A956)/1000","v":{"$error":"#NAME?"}},{"$f":"_xll.RiskData('Risk Summary'!L$48,$A956)/1000","v":{"$error":"#NAME?"}},null,null,{"$f":"(_xll.RiskData(NR_to_Cash!C$18,$A956))/1000","v":{"$error":"#NAME?"}},{"$f":"(_xll.RiskData(NR_to_Cash!D$18,$A956))/1000","v":{"$error":"#NAME?"}},{"$f":"(_xll.RiskData(NR_to_Cash!E$18,$A956))/1000","v":{"$error":"#NAME?"}}]
[950,{"$f":"_xll.RiskData('Risk Summary'!J$48,$A957)/1000","v":{"$error":"#NAME?"}},{"$f":"_xll.RiskData('Risk Summary'!K$48,$A957)/1000","v":{"$error":"#NAME?"}},{"$f":"_xll.RiskData('Risk Summary'!L$48,$A957)/1000","v":{"$error":"#NAME?"}},null,null,{"$f":"(_xll.RiskData(NR_to_Cash!C$18,$A957))/1000","v":{"$error":"#NAME?"}},{"$f":"(_xll.RiskData(NR_to_Cash!D$18,$A957))/1000","v":{"$error":"#NAME?"}},{"$f":"(_xll.RiskData(NR_to_Cash!E$18,$A957))/1000","v":{"$error":"#NAME?"}}]
[951,{"$f":"_xll.RiskData('Risk Summary'!J$48,$A958)/1000","v":{"$error":"#NAME?"}},{"$f":"_xll.RiskData('Risk Summary'!K$48,$A958)/1000","v":{"$error":"#NAME?"}},{"$f":"_xll.RiskData('Risk Summary'!L$48,$A958)/1000","v":{"$error":"#NAME?"}},null,null,{"$f":"(_xll.RiskData(NR_to_Cash!C$18,$A958))/1000","v":{"$error":"#NAME?"}},{"$f":"(_xll.RiskData(NR_to_Cash!D$18,$A958))/1000","v":{"$error":"#NAME?"}},{"$f":"(_xll.RiskData(NR_to_Cash!E$18,$A958))/1000","v":{"$error":"#NAME?"}}]
[952,{"$f":"_xll.RiskData('Risk Summary'!J$48,$A959)/1000","v":{"$error":"#NAME?"}},{"$f":"_xll.RiskData('Risk Summary'!K$48,$A959)/1000","v":{"$error":"#NAME?"}},{"$f":"_xll.RiskData('Risk Summary'!L$48,$A959)/1000","v":{"$error":"#NAME?"}},null,null,{"$f":"(_xll.RiskData(NR_to_Cash!C$18,$A959))/1000","v":{"$error":"#NAME?"}},{"$f":"(_xll.RiskData(NR_to_Cash!D$18,$A959))/1000","v":{"$error":"#NAME?"}},{"$f":"(_xll.RiskData(NR_to_Cash!E$18,$A959))/1000","v":{"$error":"#NAME?"}}]
[953,{"$f":"_xll.RiskData('Risk Summary'!J$48,$A960)/1000","v":{"$error":"#NAME?"}},{"$f":"_xll.RiskData('Risk Summary'!K$48,$A960)/1000","v":{"$error":"#NAME?"}},{"$f":"_xll.RiskData('Risk Summary'!L$48,$A960)/1000","v":{"$error":"#NAME?"}},null,null,{"$f":"(_xll.RiskData(NR_to_Cash!C$18,$A960))/1000","v":{"$error":"#NAME?"}},{"$f":"(_xll.RiskData(NR_to_Cash!D$18,$A960))/1000","v":{"$error":"#NAME?"}},{"$f":"(_xll.RiskData(NR_to_Cash!E$18,$A960))/1000","v":{"$error":"#NAME?"}}]
[954,{"$f":"_xll.RiskData('Risk Summary'!J$48,$A961)/1000","v":{"$error":"#NAME?"}},{"$f":"_xll.RiskData('Risk Summary'!K$48,$A961)/1000","v":{"$error":"#NAME?"}},{"$f":"_xll.RiskData('Risk Summary'!L$48,$A961)/1000","v":{"$error":"#NAME?"}},null,null,{"$f":"(_xll.RiskData(NR_to_Cash!C$18,$A961))/1000","v":{"$error":"#NAME?"}},{"$f":"(_xll.RiskData(NR_to_Cash!D$18,$A961))/1000","v":{"$error":"#NAME?"}},{"$f":"(_xll.RiskData(NR_to_Cash!E$18,$A961))/1000","v":{"$error":"#NAME?"}}]
[955,{"$f":"_xll.RiskData('Risk Summary'!J$48,$A962)/1000","v":{"$error":"#NAME?"}},{"$f":"_xll.RiskData('Risk Summary'!K$48,$A962)/1000","v":{"$error":"#NAME?"}},{"$f":"_xll.RiskData('Risk Summary'!L$48,$A962)/1000","v":{"$error":"#NAME?"}},null,null,{"$f":"(_xll.RiskData(NR_to_Cash!C$18,$A962))/1000","v":{"$error":"#NAME?"}},{"$f":"(_xll.RiskData(NR_to_Cash!D$18,$A962))/1000","v":{"$error":"#NAME?"}},{"$f":"(_xll.RiskData(NR_to_Cash!E$18,$A962))/1000","v":{"$error":"#NAME?"}}]
[956,{"$f":"_xll.RiskData('Risk Summary'!J$48,$A963)/1000","v":{"$error":"#NAME?"}},{"$f":"_xll.RiskData('Risk Summary'!K$48,$A963)/1000","v":{"$error":"#NAME?"}},{"$f":"_xll.RiskData('Risk Summary'!L$48,$A963)/1000","v":{"$error":"#NAME?"}},null,null,{"$f":"(_xll.RiskData(NR_to_Cash!C$18,$A963))/1000","v":{"$error":"#NAME?"}},{"$f":"(_xll.RiskData(NR_to_Cash!D$18,$A963))/1000","v":{"$error":"#NAME?"}},{"$f":"(_xll.RiskData(NR_to_Cash!E$18,$A963))/1000","v":{"$error":"#NAME?"}}]
[957,{"$f":"_xll.RiskData('Risk Summary'!J$48,$A964)/1000","v":{"$error":"#NAME?"}},{"$f":"_xll.RiskData('Risk Summary'!K$48,$A964)/1000","v":{"$error":"#NAME?"}},{"$f":"_xll.RiskData('Risk Summary'!L$48,$A964)/1000","v":{"$error":"#NAME?"}},null,null,{"$f":"(_xll.RiskData(NR_to_Cash!C$18,$A964))/1000","v":{"$error":"#NAME?"}},{"$f":"(_xll.RiskData(NR_to_Cash!D$18,$A964))/1000","v":{"$error":"#NAME?"}},{"$f":"(_xll.RiskData(NR_to_Cash!E$18,$A964))/1000","v":{"$error":"#NAME?"}}]
[958,{"$f":"_xll.RiskData('Risk Summary'!J$48,$A965)/1000","v":{"$error":"#NAME?"}},{"$f":"_xll.RiskData('Risk Summary'!K$48,$A965)/1000","v":{"$error":"#NAME?"}},{"$f":"_xll.RiskData('Risk Summary'!L$48,$A965)/1000","v":{"$error":"#NAME?"}},null,null,{"$f":"(_xll.RiskData(NR_to_Cash!C$18,$A965))/1000","v":{"$error":"#NAME?"}},{"$f":"(_xll.RiskData(NR_to_Cash!D$18,$A965))/1000","v":{"$error":"#NAME?"}},{"$f":"(_xll.RiskData(NR_to_Cash!E$18,$A965))/1000","v":{"$error":"#NAME?"}}]
[959,{"$f":"_xll.RiskData('Risk Summary'!J$48,$A966)/1000","v":{"$error":"#NAME?"}},{"$f":"_xll.RiskData('Risk Summary'!K$48,$A966)/1000","v":{"$error":"#NAME?"}},{"$f":"_xll.RiskData('Risk Summary'!L$48,$A966)/1000","v":{"$error":"#NAME?"}},null,null,{"$f":"(_xll.RiskData(NR_to_Cash!C$18,$A966))/1000","v":{"$error":"#NAME?"}},{"$f":"(_xll.RiskData(NR_to_Cash!D$18,$A966))/1000","v":{"$error":"#NAME?"}},{"$f":"(_xll.RiskData(NR_to_Cash!E$18,$A966))/1000","v":{"$error":"#NAME?"}}]
[960,{"$f":"_xll.RiskData('Risk Summary'!J$48,$A967)/1000","v":{"$error":"#NAME?"}},{"$f":"_xll.RiskData('Risk Summary'!K$48,$A967)/1000","v":{"$error":"#NAME?"}},{"$f":"_xll.RiskData('Risk Summary'!L$48,$A967)/1000","v":{"$error":"#NAME?"}},null,null,{"$f":"(_xll.RiskData(NR_to_Cash!C$18,$A967))/1000","v":{"$error":"#NAME?"}},{"$f":"(_xll.RiskData(NR_to_Cash!D$18,$A967))/1000","v":{"$error":"#NAME?"}},{"$f":"(_xll.RiskData(NR_to_Cash!E$18,$A967))/1000","v":{"$error":"#NAME?"}}]
[961,{"$f":"_xll.RiskData('Risk Summary'!J$48,$A968)/1000","v":{"$error":"#NAME?"}},{"$f":"_xll.RiskData('Risk Summary'!K$48,$A968)/1000","v":{"$error":"#NAME?"}},{"$f":"_xll.RiskData('Risk Summary'!L$48,$A968)/1000","v":{"$error":"#NAME?"}},null,null,{"$f":"(_xll.RiskData(NR_to_Cash!C$18,$A968))/1000","v":{"$error":"#NAME?"}},{"$f":"(_xll.RiskData(NR_to_Cash!D$18,$A968))/1000","v":{"$error":"#NAME?"}},{"$f":"(_xll.RiskData(NR_to_Cash!E$18,$A968))/1000","v":{"$error":"#NAME?"}}]
[962,{"$f":"_xll.RiskData('Risk Summary'!J$48,$A969)/1000","v":{"$error":"#NAME?"}},{"$f":"_xll.RiskData('Risk Summary'!K$48,$A969)/1000","v":{"$error":"#NAME?"}},{"$f":"_xll.RiskData('Risk Summary'!L$48,$A969)/1000","v":{"$error":"#NAME?"}},null,null,{"$f":"(_xll.RiskData(NR_to_Cash!C$18,$A969))/1000","v":{"$error":"#NAME?"}},{"$f":"(_xll.RiskData(NR_to_Cash!D$18,$A969))/1000","v":{"$error":"#NAME?"}},{"$f":"(_xll.RiskData(NR_to_Cash!E$18,$A969))/1000","v":{"$error":"#NAME?"}}]
[963,{"$f":"_xll.RiskData('Risk Summary'!J$48,$A970)/1000","v":{"$error":"#NAME?"}},{"$f":"_xll.RiskData('Risk Summary'!K$48,$A970)/1000","v":{"$error":"#NAME?"}},{"$f":"_xll.RiskData('Risk Summary'!L$48,$A970)/1000","v":{"$error":"#NAME?"}},null,null,{"$f":"(_xll.RiskData(NR_to_Cash!C$18,$A970))/1000","v":{"$error":"#NAME?"}},{"$f":"(_xll.RiskData(NR_to_Cash!D$18,$A970))/1000","v":{"$error":"#NAME?"}},{"$f":"(_xll.RiskData(NR_to_Cash!E$18,$A970))/1000","v":{"$error":"#NAME?"}}]
[964,{"$f":"_xll.RiskData('Risk Summary'!J$48,$A971)/1000","v":{"$error":"#NAME?"}},{"$f":"_xll.RiskData('Risk Summary'!K$48,$A971)/1000","v":{"$error":"#NAME?"}},{"$f":"_xll.RiskData('Risk Summary'!L$48,$A971)/1000","v":{"$error":"#NAME?"}},null,null,{"$f":"(_xll.RiskData(NR_to_Cash!C$18,$A971))/1000","v":{"$error":"#NAME?"}},{"$f":"(_xll.RiskData(NR_to_Cash!D$18,$A971))/1000","v":{"$error":"#NAME?"}},{"$f":"(_xll.RiskData(NR_to_Cash!E$18,$A971))/1000","v":{"$error":"#NAME?"}}]
[965,{"$f":"_xll.RiskData('Risk Summary'!J$48,$A972)/1000","v":{"$error":"#NAME?"}},{"$f":"_xll.RiskData('Risk Summary'!K$48,$A972)/1000","v":{"$error":"#NAME?"}},{"$f":"_xll.RiskData('Risk Summary'!L$48,$A972)/1000","v":{"$error":"#NAME?"}},null,null,{"$f":"(_xll.RiskData(NR_to_Cash!C$18,$A972))/1000","v":{"$error":"#NAME?"}},{"$f":"(_xll.RiskData(NR_to_Cash!D$18,$A972))/1000","v":{"$error":"#NAME?"}},{"$f":"(_xll.RiskData(NR_to_Cash!E$18,$A972))/1000","v":{"$error":"#NAME?"}}]
[966,{"$f":"_xll.RiskData('Risk Summary'!J$48,$A973)/1000","v":{"$error":"#NAME?"}},{"$f":"_xll.RiskData('Risk Summary'!K$48,$A973)/1000","v":{"$error":"#NAME?"}},{"$f":"_xll.RiskData('Risk Summary'!L$48,$A973)/1000","v":{"$error":"#NAME?"}},null,null,{"$f":"(_xll.RiskData(NR_to_Cash!C$18,$A973))/1000","v":{"$error":"#NAME?"}},{"$f":"(_xll.RiskData(NR_to_Cash!D$18,$A973))/1000","v":{"$error":"#NAME?"}},{"$f":"(_xll.RiskData(NR_to_Cash!E$18,$A973))/1000","v":{"$error":"#NAME?"}}]
[967,{"$f":"_xll.RiskData('Risk Summary'!J$48,$A974)/1000","v":{"$error":"#NAME?"}},{"$f":"_xll.RiskData('Risk Summary'!K$48,$A974)/1000","v":{"$error":"#NAME?"}},{"$f":"_xll.RiskData('Risk Summary'!L$48,$A974)/1000","v":{"$error":"#NAME?"}},null,null,{"$f":"(_xll.RiskData(NR_to_Cash!C$18,$A974))/1000","v":{"$error":"#NAME?"}},{"$f":"(_xll.RiskData(NR_to_Cash!D$18,$A974))/1000","v":{"$error":"#NAME?"}},{"$f":"(_xll.RiskData(NR_to_Cash!E$18,$A974))/1000","v":{"$error":"#NAME?"}}]
[968,{"$f":"_xll.RiskData('Risk Summary'!J$48,$A975)/1000","v":{"$error":"#NAME?"}},{"$f":"_xll.RiskData('Risk Summary'!K$48,$A975)/1000","v":{"$error":"#NAME?"}},{"$f":"_xll.RiskData('Risk Summary'!L$48,$A975)/1000","v":{"$error":"#NAME?"}},null,null,{"$f":"(_xll.RiskData(NR_to_Cash!C$18,$A975))/1000","v":{"$error":"#NAME?"}},{"$f":"(_xll.RiskData(NR_to_Cash!D$18,$A975))/1000","v":{"$error":"#NAME?"}},{"$f":"(_xll.RiskData(NR_to_Cash!E$18,$A975))/1000","v":{"$error":"#NAME?"}}]
[969,{"$f":"_xll.RiskData('Risk Summary'!J$48,$A976)/1000","v":{"$error":"#NAME?"}},{"$f":"_xll.RiskData('Risk Summary'!K$48,$A976)/1000","v":{"$error":"#NAME?"}},{"$f":"_xll.RiskData('Risk Summary'!L$48,$A976)/1000","v":{"$error":"#NAME?"}},null,null,{"$f":"(_xll.RiskData(NR_to_Cash!C$18,$A976))/1000","v":{"$error":"#NAME?"}},{"$f":"(_xll.RiskData(NR_to_Cash!D$18,$A976))/1000","v":{"$error":"#NAME?"}},{"$f":"(_xll.RiskData(NR_to_Cash!E$18,$A976))/1000","v":{"$error":"#NAME?"}}]
[970,{"$f":"_xll.RiskData('Risk Summary'!J$48,$A977)/1000","v":{"$error":"#NAME?"}},{"$f":"_xll.RiskData('Risk Summary'!K$48,$A977)/1000","v":{"$error":"#NAME?"}},{"$f":"_xll.RiskData('Risk Summary'!L$48,$A977)/1000","v":{"$error":"#NAME?"}},null,null,{"$f":"(_xll.RiskData(NR_to_Cash!C$18,$A977))/1000","v":{"$error":"#NAME?"}},{"$f":"(_xll.RiskData(NR_to_Cash!D$18,$A977))/1000","v":{"$error":"#NAME?"}},{"$f":"(_xll.RiskData(NR_to_Cash!E$18,$A977))/1000","v":{"$error":"#NAME?"}}]
[971,{"$f":"_xll.RiskData('Risk Summary'!J$48,$A978)/1000","v":{"$error":"#NAME?"}},{"$f":"_xll.RiskData('Risk Summary'!K$48,$A978)/1000","v":{"$error":"#NAME?"}},{"$f":"_xll.RiskData('Risk Summary'!L$48,$A978)/1000","v":{"$error":"#NAME?"}},null,null,{"$f":"(_xll.RiskData(NR_to_Cash!C$18,$A978))/1000","v":{"$error":"#NAME?"}},{"$f":"(_xll.RiskData(NR_to_Cash!D$18,$A978))/1000","v":{"$error":"#NAME?"}},{"$f":"(_xll.RiskData(NR_to_Cash!E$18,$A978))/1000","v":{"$error":"#NAME?"}}]
[972,{"$f":"_xll.RiskData('Risk Summary'!J$48,$A979)/1000","v":{"$error":"#NAME?"}},{"$f":"_xll.RiskData('Risk Summary'!K$48,$A979)/1000","v":{"$error":"#NAME?"}},{"$f":"_xll.RiskData('Risk Summary'!L$48,$A979)/1000","v":{"$error":"#NAME?"}},null,null,{"$f":"(_xll.RiskData(NR_to_Cash!C$18,$A979))/1000","v":{"$error":"#NAME?"}},{"$f":"(_xll.RiskData(NR_to_Cash!D$18,$A979))/1000","v":{"$error":"#NAME?"}},{"$f":"(_xll.RiskData(NR_to_Cash!E$18,$A979))/1000","v":{"$error":"#NAME?"}}]
[973,{"$f":"_xll.RiskData('Risk Summary'!J$48,$A980)/1000","v":{"$error":"#NAME?"}},{"$f":"_xll.RiskData('Risk Summary'!K$48,$A980)/1000","v":{"$error":"#NAME?"}},{"$f":"_xll.RiskData('Risk Summary'!L$48,$A980)/1000","v":{"$error":"#NAME?"}},null,null,{"$f":"(_xll.RiskData(NR_to_Cash!C$18,$A980))/1000","v":{"$error":"#NAME?"}},{"$f":"(_xll.RiskData(NR_to_Cash!D$18,$A980))/1000","v":{"$error":"#NAME?"}},{"$f":"(_xll.RiskData(NR_to_Cash!E$18,$A980))/1000","v":{"$error":"#NAME?"}}]
[974,{"$f":"_xll.RiskData('Risk Summary'!J$48,$A981)/1000","v":{"$error":"#NAME?"}},{"$f":"_xll.RiskData('Risk Summary'!K$48,$A981)/1000","v":{"$error":"#NAME?"}},{"$f":"_xll.RiskData('Risk Summary'!L$48,$A981)/1000","v":{"$error":"#NAME?"}},null,null,{"$f":"(_xll.RiskData(NR_to_Cash!C$18,$A981))/1000","v":{"$error":"#NAME?"}},{"$f":"(_xll.RiskData(NR_to_Cash!D$18,$A981))/1000","v":{"$error":"#NAME?"}},{"$f":"(_xll.RiskData(NR_to_Cash!E$18,$A981))/1000","v":{"$error":"#NAME?"}}]
[975,{"$f":"_xll.RiskData('Risk Summary'!J$48,$A982)/1000","v":{"$error":"#NAME?"}},{"$f":"_xll.RiskData('Risk Summary'!K$48,$A982)/1000","v":{"$error":"#NAME?"}},{"$f":"_xll.RiskData('Risk Summary'!L$48,$A982)/1000","v":{"$error":"#NAME?"}},null,null,{"$f":"(_xll.RiskData(NR_to_Cash!C$18,$A982))/1000","v":{"$error":"#NAME?"}},{"$f":"(_xll.RiskData(NR_to_Cash!D$18,$A982))/1000","v":{"$error":"#NAME?"}},{"$f":"(_xll.RiskData(NR_to_Cash!E$18,$A982))/1000","v":{"$error":"#NAME?"}}]
[976,{"$f":"_xll.RiskData('Risk Summary'!J$48,$A983)/1000","v":{"$error":"#NAME?"}},{"$f":"_xll.RiskData('Risk Summary'!K$48,$A983)/1000","v":{"$error":"#NAME?"}},{"$f":"_xll.RiskData('Risk Summary'!L$48,$A983)/1000","v":{"$error":"#NAME?"}},null,null,{"$f":"(_xll.RiskData(NR_to_Cash!C$18,$A983))/1000","v":{"$error":"#NAME?"}},{"$f":"(_xll.RiskData(NR_to_Cash!D$18,$A983))/1000","v":{"$error":"#NAME?"}},{"$f":"(_xll.RiskData(NR_to_Cash!E$18,$A983))/1000","v":{"$error":"#NAME?"}}]
[977,{"$f":"_xll.RiskData('Risk Summary'!J$48,$A984)/1000","v":{"$error":"#NAME?"}},{"$f":"_xll.RiskData('Risk Summary'!K$48,$A984)/1000","v":{"$error":"#NAME?"}},{"$f":"_xll.RiskData('Risk Summary'!L$48,$A984)/1000","v":{"$error":"#NAME?"}},null,null,{"$f":"(_xll.RiskData(NR_to_Cash!C$18,$A984))/1000","v":{"$error":"#NAME?"}},{"$f":"(_xll.RiskData(NR_to_Cash!D$18,$A984))/1000","v":{"$error":"#NAME?"}},{"$f":"(_xll.RiskData(NR_to_Cash!E$18,$A984))/1000","v":{"$error":"#NAME?"}}]
[978,{"$f":"_xll.RiskData('Risk Summary'!J$48,$A985)/1000","v":{"$error":"#NAME?"}},{"$f":"_xll.RiskData('Risk Summary'!K$48,$A985)/1000","v":{"$error":"#NAME?"}},{"$f":"_xll.RiskData('Risk Summary'!L$48,$A985)/1000","v":{"$error":"#NAME?"}},null,null,{"$f":"(_xll.RiskData(NR_to_Cash!C$18,$A985))/1000","v":{"$error":"#NAME?"}},{"$f":"(_xll.RiskData(NR_to_Cash!D$18,$A985))/1000","v":{"$error":"#NAME?"}},{"$f":"(_xll.RiskData(NR_to_Cash!E$18,$A985))/1000","v":{"$error":"#NAME?"}}]
[979,{"$f":"_xll.RiskData('Risk Summary'!J$48,$A986)/1000","v":{"$error":"#NAME?"}},{"$f":"_xll.RiskData('Risk Summary'!K$48,$A986)/1000","v":{"$error":"#NAME?"}},{"$f":"_xll.RiskData('Risk Summary'!L$48,$A986)/1000","v":{"$error":"#NAME?"}},null,null,{"$f":"(_xll.RiskData(NR_to_Cash!C$18,$A986))/1000","v":{"$error":"#NAME?"}},{"$f":"(_xll.RiskData(NR_to_Cash!D$18,$A986))/1000","v":{"$error":"#NAME?"}},{"$f":"(_xll.RiskData(NR_to_Cash!E$18,$A986))/1000","v":{"$error":"#NAME?"}}]
[980,{"$f":"_xll.RiskData('Risk Summary'!J$48,$A987)/1000","v":{"$error":"#NAME?"}},{"$f":"_xll.RiskData('Risk Summary'!K$48,$A987)/1000","v":{"$error":"#NAME?"}},{"$f":"_xll.RiskData('Risk Summary'!L$48,$A987)/1000","v":{"$error":"#NAME?"}},null,null,{"$f":"(_xll.RiskData(NR_to_Cash!C$18,$A987))/1000","v":{"$error":"#NAME?"}},{"$f":"(_xll.RiskData(NR_to_Cash!D$18,$A987))/1000","v":{"$error":"#NAME?"}},{"$f":"(_xll.RiskData(NR_to_Cash!E$18,$A987))/1000","v":{"$error":"#NAME?"}}]
[981,{"$f":"_xll.RiskData('Risk Summary'!J$48,$A988)/1000","v":{"$error":"#NAME?"}},{"$f":"_xll.RiskData('Risk Summary'!K$48,$A988)/1000","v":{"$error":"#NAME?"}},{"$f":"_xll.RiskData('Risk Summary'!L$48,$A988)/1000","v":{"$error":"#NAME?"}},null,null,{"$f":"(_xll.RiskData(NR_to_Cash!C$18,$A988))/1000","v":{"$error":"#NAME?"}},{"$f":"(_xll.RiskData(NR_to_Cash!D$18,$A988))/1000","v":{"$error":"#NAME?"}},{"$f":"(_xll.RiskData(NR_to_Cash!E$18,$A988))/1000","v":{"$error":"#NAME?"}}]
[982,{"$f":"_xll.RiskData('Risk Summary'!J$48,$A989)/1000","v":{"$error":"#NAME?"}},{"$f":"_xll.RiskData('Risk Summary'!K$48,$A989)/1000","v":{"$error":"#NAME?"}},{"$f":"_xll.RiskData('Risk Summary'!L$48,$A989)/1000","v":{"$error":"#NAME?"}},null,null,{"$f":"(_xll.RiskData(NR_to_Cash!C$18,$A989))/1000","v":{"$error":"#NAME?"}},{"$f":"(_xll.RiskData(NR_to_Cash!D$18,$A989))/1000","v":{"$error":"#NAME?"}},{"$f":"(_xll.RiskData(NR_to_Cash!E$18,$A989))/1000","v":{"$error":"#NAME?"}}]
[983,{"$f":"_xll.RiskData('Risk Summary'!J$48,$A990)/1000","v":{"$error":"#NAME?"}},{"$f":"_xll.RiskData('Risk Summary'!K$48,$A990)/1000","v":{"$error":"#NAME?"}},{"$f":"_xll.RiskData('Risk Summary'!L$48,$A990)/1000","v":{"$error":"#NAME?"}},null,null,{"$f":"(_xll.RiskData(NR_to_Cash!C$18,$A990))/1000","v":{"$error":"#NAME?"}},{"$f":"(_xll.RiskData(NR_to_Cash!D$18,$A990))/1000","v":{"$error":"#NAME?"}},{"$f":"(_xll.RiskData(NR_to_Cash!E$18,$A990))/1000","v":{"$error":"#NAME?"}}]
[984,{"$f":"_xll.RiskData('Risk Summary'!J$48,$A991)/1000","v":{"$error":"#NAME?"}},{"$f":"_xll.RiskData('Risk Summary'!K$48,$A991)/1000","v":{"$error":"#NAME?"}},{"$f":"_xll.RiskData('Risk Summary'!L$48,$A991)/1000","v":{"$error":"#NAME?"}},null,null,{"$f":"(_xll.RiskData(NR_to_Cash!C$18,$A991))/1000","v":{"$error":"#NAME?"}},{"$f":"(_xll.RiskData(NR_to_Cash!D$18,$A991))/1000","v":{"$error":"#NAME?"}},{"$f":"(_xll.RiskData(NR_to_Cash!E$18,$A991))/1000","v":{"$error":"#NAME?"}}]
[985,{"$f":"_xll.RiskData('Risk Summary'!J$48,$A992)/1000","v":{"$error":"#NAME?"}},{"$f":"_xll.RiskData('Risk Summary'!K$48,$A992)/1000","v":{"$error":"#NAME?"}},{"$f":"_xll.RiskData('Risk Summary'!L$48,$A992)/1000","v":{"$error":"#NAME?"}},null,null,{"$f":"(_xll.RiskData(NR_to_Cash!C$18,$A992))/1000","v":{"$error":"#NAME?"}},{"$f":"(_xll.RiskData(NR_to_Cash!D$18,$A992))/1000","v":{"$error":"#NAME?"}},{"$f":"(_xll.RiskData(NR_to_Cash!E$18,$A992))/1000","v":{"$error":"#NAME?"}}]
[986,{"$f":"_xll.RiskData('Risk Summary'!J$48,$A993)/1000","v":{"$error":"#NAME?"}},{"$f":"_xll.RiskData('Risk Summary'!K$48,$A993)/1000","v":{"$error":"#NAME?"}},{"$f":"_xll.RiskData('Risk Summary'!L$48,$A993)/1000","v":{"$error":"#NAME?"}},null,null,{"$f":"(_xll.RiskData(NR_to_Cash!C$18,$A993))/1000","v":{"$error":"#NAME?"}},{"$f":"(_xll.RiskData(NR_to_Cash!D$18,$A993))/1000","v":{"$error":"#NAME?"}},{"$f":"(_xll.RiskData(NR_to_Cash!E$18,$A993))/1000","v":{"$error":"#NAME?"}}]
[987,{"$f":"_xll.RiskData('Risk Summary'!J$48,$A994)/1000","v":{"$error":"#NAME?"}},{"$f":"_xll.RiskData('Risk Summary'!K$48,$A994)/1000","v":{"$error":"#NAME?"}},{"$f":"_xll.RiskData('Risk Summary'!L$48,$A994)/1000","v":{"$error":"#NAME?"}},null,null,{"$f":"(_xll.RiskData(NR_to_Cash!C$18,$A994))/1000","v":{"$error":"#NAME?"}},{"$f":"(_xll.RiskData(NR_to_Cash!D$18,$A994))/1000","v":{"$error":"#NAME?"}},{"$f":"(_xll.RiskData(NR_to_Cash!E$18,$A994))/1000","v":{"$error":"#NAME?"}}]
[988,{"$f":"_xll.RiskData('Risk Summary'!J$48,$A995)/1000","v":{"$error":"#NAME?"}},{"$f":"_xll.RiskData('Risk Summary'!K$48,$A995)/1000","v":{"$error":"#NAME?"}},{"$f":"_xll.RiskData('Risk Summary'!L$48,$A995)/1000","v":{"$error":"#NAME?"}},null,null,{"$f":"(_xll.RiskData(NR_to_Cash!C$18,$A995))/1000","v":{"$error":"#NAME?"}},{"$f":"(_xll.RiskData(NR_to_Cash!D$18,$A995))/1000","v":{"$error":"#NAME?"}},{"$f":"(_xll.RiskData(NR_to_Cash!E$18,$A995))/1000","v":{"$error":"#NAME?"}}]
[989,{"$f":"_xll.RiskData('Risk Summary'!J$48,$A996)/1000","v":{"$error":"#NAME?"}},{"$f":"_xll.RiskData('Risk Summary'!K$48,$A996)/1000","v":{"$error":"#NAME?"}},{"$f":"_xll.RiskData('Risk Summary'!L$48,$A996)/1000","v":{"$error":"#NAME?"}},null,null,{"$f":"(_xll.RiskData(NR_to_Cash!C$18,$A996))/1000","v":{"$error":"#NAME?"}},{"$f":"(_xll.RiskData(NR_to_Cash!D$18,$A996))/1000","v":{"$error":"#NAME?"}},{"$f":"(_xll.RiskData(NR_to_Cash!E$18,$A996))/1000","v":{"$error":"#NAME?"}}]
[990,{"$f":"_xll.RiskData('Risk Summary'!J$48,$A997)/1000","v":{"$error":"#NAME?"}},{"$f":"_xll.RiskData('Risk Summary'!K$48,$A997)/1000","v":{"$error":"#NAME?"}},{"$f":"_xll.RiskData('Risk Summary'!L$48,$A997)/1000","v":{"$error":"#NAME?"}},null,null,{"$f":"(_xll.RiskData(NR_to_Cash!C$18,$A997))/1000","v":{"$error":"#NAME?"}},{"$f":"(_xll.RiskData(NR_to_Cash!D$18,$A997))/1000","v":{"$error":"#NAME?"}},{"$f":"(_xll.RiskData(NR_to_Cash!E$18,$A997))/1000","v":{"$error":"#NAME?"}}]
[991,{"$f":"_xll.RiskData('Risk Summary'!J$48,$A998)/1000","v":{"$error":"#NAME?"}},{"$f":"_xll.RiskData('Risk Summary'!K$48,$A998)/1000","v":{"$error":"#NAME?"}},{"$f":"_xll.RiskData('Risk Summary'!L$48,$A998)/1000","v":{"$error":"#NAME?"}},null,null,{"$f":"(_xll.RiskData(NR_to_Cash!C$18,$A998))/1000","v":{"$error":"#NAME?"}},{"$f":"(_xll.RiskData(NR_to_Cash!D$18,$A998))/1000","v":{"$error":"#NAME?"}},{"$f":"(_xll.RiskData(NR_to_Cash!E$18,$A998))/1000","v":{"$error":"#NAME?"}}]
[992,{"$f":"_xll.RiskData('Risk Summary'!J$48,$A999)/1000","v":{"$error":"#NAME?"}},{"$f":"_xll.RiskData('Risk Summary'!K$48,$A999)/1000","v":{"$error":"#NAME?"}},{"$f":"_xll.RiskData('Risk Summary'!L$48,$A999)/1000","v":{"$error":"#NAME?"}},null,null,{"$f":"(_xll.RiskData(NR_to_Cash!C$18,$A999))/1000","v":{"$error":"#NAME?"}},{"$f":"(_xll.RiskData(NR_to_Cash!D$18,$A999))/1000","v":{"$error":"#NAME?"}},{"$f":"(_xll.RiskData(NR_to_Cash!E$18,$A999))/1000","v":{"$error":"#NAME?"}}]
[993,{"$f":"_xll.RiskData('Risk Summary'!J$48,$A1000)/1000","v":{"$error":"#NAME?"}},{"$f":"_xll.RiskData('Risk Summary'!K$48,$A1000)/1000","v":{"$error":"#NAME?"}},{"$f":"_xll.RiskData('Risk Summary'!L$48,$A1000)/1000","v":{"$error":"#NAME?"}},null,null,{"$f":"(_xll.RiskData(NR_to_Cash!C$18,$A1000))/1000","v":{"$error":"#NAME?"}},{"$f":"(_xll.RiskData(NR_to_Cash!D$18,$A1000))/1000","v":{"$error":"#NAME?"}},{"$f":"(_xll.RiskData(NR_to_Cash!E$18,$A1000))/1000","v":{"$error":"#NAME?"}}]
[994,{"$f":"_xll.RiskData('Risk Summary'!J$48,$A1001)/1000","v":{"$error":"#NAME?"}},{"$f":"_xll.RiskData('Risk Summary'!K$48,$A1001)/1000","v":{"$error":"#NAME?"}},{"$f":"_xll.RiskData('Risk Summary'!L$48,$A1001)/1000","v":{"$error":"#NAME?"}},null,null,{"$f":"(_xll.RiskData(NR_to_Cash!C$18,$A1001))/1000","v":{"$error":"#NAME?"}},{"$f":"(_xll.RiskData(NR_to_Cash!D$18,$A1001))/1000","v":{"$error":"#NAME?"}},{"$f":"(_xll.RiskData(NR_to_Cash!E$18,$A1001))/1000","v":{"$error":"#NAME?"}}]
[995,{"$f":"_xll.RiskData('Risk Summary'!J$48,$A1002)/1000","v":{"$error":"#NAME?"}},{"$f":"_xll.RiskData('Risk Summary'!K$48,$A1002)/1000","v":{"$error":"#NAME?"}},{"$f":"_xll.RiskData('Risk Summary'!L$48,$A1002)/1000","v":{"$error":"#NAME?"}},null,null,{"$f":"(_xll.RiskData(NR_to_Cash!C$18,$A1002))/1000","v":{"$error":"#NAME?"}},{"$f":"(_xll.RiskData(NR_to_Cash!D$18,$A1002))/1000","v":{"$error":"#NAME?"}},{"$f":"(_xll.RiskData(NR_to_Cash!E$18,$A1002))/1000","v":{"$error":"#NAME?"}}]
[996,{"$f":"_xll.RiskData('Risk Summary'!J$48,$A1003)/1000","v":{"$error":"#NAME?"}},{"$f":"_xll.RiskData('Risk Summary'!K$48,$A1003)/1000","v":{"$error":"#NAME?"}},{"$f":"_xll.RiskData('Risk Summary'!L$48,$A1003)/1000","v":{"$error":"#NAME?"}},null,null,{"$f":"(_xll.RiskData(NR_to_Cash!C$18,$A1003))/1000","v":{"$error":"#NAME?"}},{"$f":"(_xll.RiskData(NR_to_Cash!D$18,$A1003))/1000","v":{"$error":"#NAME?"}},{"$f":"(_xll.RiskData(NR_to_Cash!E$18,$A1003))/1000","v":{"$error":"#NAME?"}}]
[997,{"$f":"_xll.RiskData('Risk Summary'!J$48,$A1004)/1000","v":{"$error":"#NAME?"}},{"$f":"_xll.RiskData('Risk Summary'!K$48,$A1004)/1000","v":{"$error":"#NAME?"}},{"$f":"_xll.RiskData('Risk Summary'!L$48,$A1004)/1000","v":{"$error":"#NAME?"}},null,null,{"$f":"(_xll.RiskData(NR_to_Cash!C$18,$A1004))/1000","v":{"$error":"#NAME?"}},{"$f":"(_xll.RiskData(NR_to_Cash!D$18,$A1004))/1000","v":{"$error":"#NAME?"}},{"$f":"(_xll.RiskData(NR_to_Cash!E$18,$A1004))/1000","v":{"$error":"#NAME?"}}]
[998,{"$f":"_xll.RiskData('Risk Summary'!J$48,$A1005)/1000","v":{"$error":"#NAME?"}},{"$f":"_xll.RiskData('Risk Summary'!K$48,$A1005)/1000","v":{"$error":"#NAME?"}},{"$f":"_xll.RiskData('Risk Summary'!L$48,$A1005)/1000","v":{"$error":"#NAME?"}},null,null,{"$f":"(_xll.RiskData(NR_to_Cash!C$18,$A1005))/1000","v":{"$error":"#NAME?"}},{"$f":"(_xll.RiskData(NR_to_Cash!D$18,$A1005))/1000","v":{"$error":"#NAME?"}},{"$f":"(_xll.RiskData(NR_to_Cash!E$18,$A1005))/1000","v":{"$error":"#NAME?"}}]
[999,{"$f":"_xll.RiskData('Risk Summary'!J$48,$A1006)/1000","v":{"$error":"#NAME?"}},{"$f":"_xll.RiskData('Risk Summary'!K$48,$A1006)/1000","v":{"$error":"#NAME?"}},{"$f":"_xll.RiskData('Risk Summary'!L$48,$A1006)/1000","v":{"$error":"#NAME?"}},null,null,{"$f":"(_xll.RiskData(NR_to_Cash!C$18,$A1006))/1000","v":{"$error":"#NAME?"}},{"$f":"(_xll.RiskData(NR_to_Cash!D$18,$A1006))/1000","v":{"$error":"#NAME?"}},{"$f":"(_xll.RiskData(NR_to_Cash!E$18,$A1006))/1000","v":{"$error":"#NAME?"}}]
[1000,{"$f":"_xll.RiskData('Risk Summary'!J$48,$A1007)/1000","v":{"$error":"#NAME?"}},{"$f":"_xll.RiskData('Risk Summary'!K$48,$A1007)/1000","v":{"$error":"#NAME?"}},{"$f":"_xll.RiskData('Risk Summary'!L$48,$A1007)/1000","v":{"$error":"#NAME?"}},null,null,{"$f":"(_xll.RiskData(NR_to_Cash!C$18,$A1007))/1000","v":{"$error":"#NAME?"}},{"$f":"(_xll.RiskData(NR_to_Cash!D$18,$A1007))/1000","v":{"$error":"#NAME?"}},{"$f":"(_xll.RiskData(NR_to_Cash!E$18,$A1007))/1000","v":{"$error":"#NAME?"}}]
[1001,{"$f":"_xll.RiskData('Risk Summary'!J$48,$A1008)/1000","v":{"$error":"#NAME?"}},{"$f":"_xll.RiskData('Risk Summary'!K$48,$A1008)/1000","v":{"$error":"#NAME?"}},{"$f":"_xll.RiskData('Risk Summary'!L$48,$A1008)/1000","v":{"$error":"#NAME?"}},null,null,{"$f":"(_xll.RiskData(NR_to_Cash!C$18,$A1008))/1000","v":{"$error":"#NAME?"}},{"$f":"(_xll.RiskData(NR_to_Cash!D$18,$A1008))/1000","v":{"$error":"#NAME?"}},{"$f":"(_xll.RiskData(NR_to_Cash!E$18,$A1008))/1000","v":{"$error":"#NAME?"}}]
[1002,{"$f":"_xll.RiskData('Risk Summary'!J$48,$A1009)/1000","v":{"$error":"#NAME?"}},{"$f":"_xll.RiskData('Risk Summary'!K$48,$A1009)/1000","v":{"$error":"#NAME?"}},{"$f":"_xll.RiskData('Risk Summary'!L$48,$A1009)/1000","v":{"$error":"#NAME?"}},null,null,{"$f":"(_xll.RiskData(NR_to_Cash!C$18,$A1009))/1000","v":{"$error":"#NAME?"}},{"$f":"(_xll.RiskData(NR_to_Cash!D$18,$A1009))/1000","v":{"$error":"#NAME?"}},{"$f":"(_xll.RiskData(NR_to_Cash!E$18,$A1009))/1000","v":{"$error":"#NAME?"}}]
[1003,{"$f":"_xll.RiskData('Risk Summary'!J$48,$A1010)/1000","v":{"$error":"#NAME?"}},{"$f":"_xll.RiskData('Risk Summary'!K$48,$A1010)/1000","v":{"$error":"#NAME?"}},{"$f":"_xll.RiskData('Risk Summary'!L$48,$A1010)/1000","v":{"$error":"#NAME?"}},null,null,{"$f":"(_xll.RiskData(NR_to_Cash!C$18,$A1010))/1000","v":{"$error":"#NAME?"}},{"$f":"(_xll.RiskData(NR_to_Cash!D$18,$A1010))/1000","v":{"$error":"#NAME?"}},{"$f":"(_xll.RiskData(NR_to_Cash!E$18,$A1010))/1000","v":{"$error":"#NAME?"}}]
[1004,{"$f":"_xll.RiskData('Risk Summary'!J$48,$A1011)/1000","v":{"$error":"#NAME?"}},{"$f":"_xll.RiskData('Risk Summary'!K$48,$A1011)/1000","v":{"$error":"#NAME?"}},{"$f":"_xll.RiskData('Risk Summary'!L$48,$A1011)/1000","v":{"$error":"#NAME?"}},null,null,{"$f":"(_xll.RiskData(NR_to_Cash!C$18,$A1011))/1000","v":{"$error":"#NAME?"}},{"$f":"(_xll.RiskData(NR_to_Cash!D$18,$A1011))/1000","v":{"$error":"#NAME?"}},{"$f":"(_xll.RiskData(NR_to_Cash!E$18,$A1011))/1000","v":{"$error":"#NAME?"}}]
[1005,{"$f":"_xll.RiskData('Risk Summary'!J$48,$A1012)/1000","v":{"$error":"#NAME?"}},{"$f":"_xll.RiskData('Risk Summary'!K$48,$A1012)/1000","v":{"$error":"#NAME?"}},{"$f":"_xll.RiskData('Risk Summary'!L$48,$A1012)/1000","v":{"$error":"#NAME?"}},null,null,{"$f":"(_xll.RiskData(NR_to_Cash!C$18,$A1012))/1000","v":{"$error":"#NAME?"}},{"$f":"(_xll.RiskData(NR_to_Cash!D$18,$A1012))/1000","v":{"$error":"#NAME?"}},{"$f":"(_xll.RiskData(NR_to_Cash!E$18,$A1012))/1000","v":{"$error":"#NAME?"}}]
[1006,{"$f":"_xll.RiskData('Risk Summary'!J$48,$A1013)/1000","v":{"$error":"#NAME?"}},{"$f":"_xll.RiskData('Risk Summary'!K$48,$A1013)/1000","v":{"$error":"#NAME?"}},{"$f":"_xll.RiskData('Risk Summary'!L$48,$A1013)/1000","v":{"$error":"#NAME?"}},null,null,{"$f":"(_xll.RiskData(NR_to_Cash!C$18,$A1013))/1000","v":{"$error":"#NAME?"}},{"$f":"(_xll.RiskData(NR_to_Cash!D$18,$A1013))/1000","v":{"$error":"#NAME?"}},{"$f":"(_xll.RiskData(NR_to_Cash!E$18,$A1013))/1000","v":{"$error":"#NAME?"}}]
[1007,{"$f":"_xll.RiskData('Risk Summary'!J$48,$A1014)/1000","v":{"$error":"#NAME?"}},{"$f":"_xll.RiskData('Risk Summary'!K$48,$A1014)/1000","v":{"$error":"#NAME?"}},{"$f":"_xll.RiskData('Risk Summary'!L$48,$A1014)/1000","v":{"$error":"#NAME?"}},null,null,{"$f":"(_xll.RiskData(NR_to_Cash!C$18,$A1014))/1000","v":{"$error":"#NAME?"}},{"$f":"(_xll.RiskData(NR_to_Cash!D$18,$A1014))/1000","v":{"$error":"#NAME?"}},{"$f":"(_xll.RiskData(NR_to_Cash!E$18,$A1014))/1000","v":{"$error":"#NAME?"}}]
[1008,{"$f":"_xll.RiskData('Risk Summary'!J$48,$A1015)/1000","v":{"$error":"#NAME?"}},{"$f":"_xll.RiskData('Risk Summary'!K$48,$A1015)/1000","v":{"$error":"#NAME?"}},{"$f":"_xll.RiskData('Risk Summary'!L$48,$A1015)/1000","v":{"$error":"#NAME?"}},null,null,{"$f":"(_xll.RiskData(NR_to_Cash!C$18,$A1015))/1000","v":{"$error":"#NAME?"}},{"$f":"(_xll.RiskData(NR_to_Cash!D$18,$A1015))/1000","v":{"$error":"#NAME?"}},{"$f":"(_xll.RiskData(NR_to_Cash!E$18,$A1015))/1000","v":{"$error":"#NAME?"}}]
[1009,{"$f":"_xll.RiskData('Risk Summary'!J$48,$A1016)/1000","v":{"$error":"#NAME?"}},{"$f":"_xll.RiskData('Risk Summary'!K$48,$A1016)/1000","v":{"$error":"#NAME?"}},{"$f":"_xll.RiskData('Risk Summary'!L$48,$A1016)/1000","v":{"$error":"#NAME?"}},null,null,{"$f":"(_xll.RiskData(NR_to_Cash!C$18,$A1016))/1000","v":{"$error":"#NAME?"}},{"$f":"(_xll.RiskData(NR_to_Cash!D$18,$A1016))/1000","v":{"$error":"#NAME?"}},{"$f":"(_xll.RiskData(NR_to_Cash!E$18,$A1016))/1000","v":{"$error":"#NAME?"}}]
[1010,{"$f":"_xll.RiskData('Risk Summary'!J$48,$A1017)/1000","v":{"$error":"#NAME?"}},{"$f":"_xll.RiskData('Risk Summary'!K$48,$A1017)/1000","v":{"$error":"#NAME?"}},{"$f":"_xll.RiskData('Risk Summary'!L$48,$A1017)/1000","v":{"$error":"#NAME?"}},null,null,{"$f":"(_xll.RiskData(NR_to_Cash!C$18,$A1017))/1000","v":{"$error":"#NAME?"}},{"$f":"(_xll.RiskData(NR_to_Cash!D$18,$A1017))/1000","v":{"$error":"#NAME?"}},{"$f":"(_xll.RiskData(NR_to_Cash!E$18,$A1017))/1000","v":{"$error":"#NAME?"}}]
[1011,{"$f":"_xll.RiskData('Risk Summary'!J$48,$A1018)/1000","v":{"$error":"#NAME?"}},{"$f":"_xll.RiskData('Risk Summary'!K$48,$A1018)/1000","v":{"$error":"#NAME?"}},{"$f":"_xll.RiskData('Risk Summary'!L$48,$A1018)/1000","v":{"$error":"#NAME?"}},null,null,{"$f":"(_xll.RiskData(NR_to_Cash!C$18,$A1018))/1000","v":{"$error":"#NAME?"}},{"$f":"(_xll.RiskData(NR_to_Cash!D$18,$A1018))/1000","v":{"$error":"#NAME?"}},{"$f":"(_xll.RiskData(NR_to_Cash!E$18,$A1018))/1000","v":{"$error":"#NAME?"}}]
[1012,{"$f":"_xll.RiskData('Risk Summary'!J$48,$A1019)/1000","v":{"$error":"#NAME?"}},{"$f":"_xll.RiskData('Risk Summary'!K$48,$A1019)/1000","v":{"$error":"#NAME?"}},{"$f":"_xll.RiskData('Risk Summary'!L$48,$A1019)/1000","v":{"$error":"#NAME?"}},null,null,{"$f":"(_xll.RiskData(NR_to_Cash!C$18,$A1019))/1000","v":{"$error":"#NAME?"}},{"$f":"(_xll.RiskData(NR_to_Cash!D$18,$A1019))/1000","v":{"$error":"#NAME?"}},{"$f":"(_xll.RiskData(NR_to_Cash!E$18,$A1019))/1000","v":{"$error":"#NAME?"}}]
[1013,{"$f":"_xll.RiskData('Risk Summary'!J$48,$A1020)/1000","v":{"$error":"#NAME?"}},{"$f":"_xll.RiskData('Risk Summary'!K$48,$A1020)/1000","v":{"$error":"#NAME?"}},{"$f":"_xll.RiskData('Risk Summary'!L$48,$A1020)/1000","v":{"$error":"#NAME?"}},null,null,{"$f":"(_xll.RiskData(NR_to_Cash!C$18,$A1020))/1000","v":{"$error":"#NAME?"}},{"$f":"(_xll.RiskData(NR_to_Cash!D$18,$A1020))/1000","v":{"$error":"#NAME?"}},{"$f":"(_xll.RiskData(NR_to_Cash!E$18,$A1020))/1000","v":{"$error":"#NAME?"}}]
[1014,{"$f":"_xll.RiskData('Risk Summary'!J$48,$A1021)/1000","v":{"$error":"#NAME?"}},{"$f":"_xll.RiskData('Risk Summary'!K$48,$A1021)/1000","v":{"$error":"#NAME?"}},{"$f":"_xll.RiskData('Risk Summary'!L$48,$A1021)/1000","v":{"$error":"#NAME?"}},null,null,{"$f":"(_xll.RiskData(NR_to_Cash!C$18,$A1021))/1000","v":{"$error":"#NAME?"}},{"$f":"(_xll.RiskData(NR_to_Cash!D$18,$A1021))/1000","v":{"$error":"#NAME?"}},{"$f":"(_xll.RiskData(NR_to_Cash!E$18,$A1021))/1000","v":{"$error":"#NAME?"}}]
[1015,{"$f":"_xll.RiskData('Risk Summary'!J$48,$A1022)/1000","v":{"$error":"#NAME?"}},{"$f":"_xll.RiskData('Risk Summary'!K$48,$A1022)/1000","v":{"$error":"#NAME?"}},{"$f":"_xll.RiskData('Risk Summary'!L$48,$A1022)/1000","v":{"$error":"#NAME?"}},null,null,{"$f":"(_xll.RiskData(NR_to_Cash!C$18,$A1022))/1000","v":{"$error":"#NAME?"}},{"$f":"(_xll.RiskData(NR_to_Cash!D$18,$A1022))/1000","v":{"$error":"#NAME?"}},{"$f":"(_xll.RiskData(NR_to_Cash!E$18,$A1022))/1000","v":{"$error":"#NAME?"}}]
[1016,{"$f":"_xll.RiskData('Risk Summary'!J$48,$A1023)/1000","v":{"$error":"#NAME?"}},{"$f":"_xll.RiskData('Risk Summary'!K$48,$A1023)/1000","v":{"$error":"#NAME?"}},{"$f":"_xll.RiskData('Risk Summary'!L$48,$A1023)/1000","v":{"$error":"#NAME?"}},null,null,{"$f":"(_xll.RiskData(NR_to_Cash!C$18,$A1023))/1000","v":{"$error":"#NAME?"}},{"$f":"(_xll.RiskData(NR_to_Cash!D$18,$A1023))/1000","v":{"$error":"#NAME?"}},{"$f":"(_xll.RiskData(NR_to_Cash!E$18,$A1023))/1000","v":{"$error":"#NAME?"}}]
[1017,{"$f":"_xll.RiskData('Risk Summary'!J$48,$A1024)/1000","v":{"$error":"#NAME?"}},{"$f":"_xll.RiskData('Risk Summary'!K$48,$A1024)/1000","v":{"$error":"#NAME?"}},{"$f":"_xll.RiskData('Risk Summary'!L$48,$A1024)/1000","v":{"$error":"#NAME?"}},null,null,{"$f":"(_xll.RiskData(NR_to_Cash!C$18,$A1024))/1000","v":{"$error":"#NAME?"}},{"$f":"(_xll.RiskData(NR_to_Cash!D$18,$A1024))/1000","v":{"$error":"#NAME?"}},{"$f":"(_xll.RiskData(NR_to_Cash!E$18,$A1024))/1000","v":{"$error":"#NAME?"}}]
[1018,{"$f":"_xll.RiskData('Risk Summary'!J$48,$A1025)/1000","v":{"$error":"#NAME?"}},{"$f":"_xll.RiskData('Risk Summary'!K$48,$A1025)/1000","v":{"$error":"#NAME?"}},{"$f":"_xll.RiskData('Risk Summary'!L$48,$A1025)/1000","v":{"$error":"#NAME?"}},null,null,{"$f":"(_xll.RiskData(NR_to_Cash!C$18,$A1025))/1000","v":{"$error":"#NAME?"}},{"$f":"(_xll.RiskData(NR_to_Cash!D$18,$A1025))/1000","v":{"$error":"#NAME?"}},{"$f":"(_xll.RiskData(NR_to_Cash!E$18,$A1025))/1000","v":{"$error":"#NAME?"}}]
[1019,{"$f":"_xll.RiskData('Risk Summary'!J$48,$A1026)/1000","v":{"$error":"#NAME?"}},{"$f":"_xll.RiskData('Risk Summary'!K$48,$A1026)/1000","v":{"$error":"#NAME?"}},{"$f":"_xll.RiskData('Risk Summary'!L$48,$A1026)/1000","v":{"$error":"#NAME?"}},null,null,{"$f":"(_xll.RiskData(NR_to_Cash!C$18,$A1026))/1000","v":{"$error":"#NAME?"}},{"$f":"(_xll.RiskData(NR_to_Cash!D$18,$A1026))/1000","v":{"$error":"#NAME?"}},{"$f":"(_xll.RiskData(NR_to_Cash!E$18,$A1026))/1000","v":{"$error":"#NAME?"}}]
[1020,{"$f":"_xll.RiskData('Risk Summary'!J$48,$A1027)/1000","v":{"$error":"#NAME?"}},{"$f":"_xll.RiskData('Risk Summary'!K$48,$A1027)/1000","v":{"$error":"#NAME?"}},{"$f":"_xll.RiskData('Risk Summary'!L$48,$A1027)/1000","v":{"$error":"#NAME?"}},null,null,{"$f":"(_xll.RiskData(NR_to_Cash!C$18,$A1027))/1000","v":{"$error":"#NAME?"}},{"$f":"(_xll.RiskData(NR_to_Cash!D$18,$A1027))/1000","v":{"$error":"#NAME?"}},{"$f":"(_xll.RiskData(NR_to_Cash!E$18,$A1027))/1000","v":{"$error":"#NAME?"}}]
[1021,{"$f":"_xll.RiskData('Risk Summary'!J$48,$A1028)/1000","v":{"$error":"#NAME?"}},{"$f":"_xll.RiskData('Risk Summary'!K$48,$A1028)/1000","v":{"$error":"#NAME?"}},{"$f":"_xll.RiskData('Risk Summary'!L$48,$A1028)/1000","v":{"$error":"#NAME?"}},null,null,{"$f":"(_xll.RiskData(NR_to_Cash!C$18,$A1028))/1000","v":{"$error":"#NAME?"}},{"$f":"(_xll.RiskData(NR_to_Cash!D$18,$A1028))/1000","v":{"$error":"#NAME?"}},{"$f":"(_xll.RiskData(NR_to_Cash!E$18,$A1028))/1000","v":{"$error":"#NAME?"}}]
[1022,{"$f":"_xll.RiskData('Risk Summary'!J$48,$A1029)/1000","v":{"$error":"#NAME?"}},{"$f":"_xll.RiskData('Risk Summary'!K$48,$A1029)/1000","v":{"$error":"#NAME?"}},{"$f":"_xll.RiskData('Risk Summary'!L$48,$A1029)/1000","v":{"$error":"#NAME?"}},null,null,{"$f":"(_xll.RiskData(NR_to_Cash!C$18,$A1029))/1000","v":{"$error":"#NAME?"}},{"$f":"(_xll.RiskData(NR_to_Cash!D$18,$A1029))/1000","v":{"$error":"#NAME?"}},{"$f":"(_xll.RiskData(NR_to_Cash!E$18,$A1029))/1000","v":{"$error":"#NAME?"}}]
[1023,{"$f":"_xll.RiskData('Risk Summary'!J$48,$A1030)/1000","v":{"$error":"#NAME?"}},{"$f":"_xll.RiskData('Risk Summary'!K$48,$A1030)/1000","v":{"$error":"#NAME?"}},{"$f":"_xll.RiskData('Risk Summary'!L$48,$A1030)/1000","v":{"$error":"#NAME?"}},null,null,{"$f":"(_xll.RiskData(NR_to_Cash!C$18,$A1030))/1000","v":{"$error":"#NAME?"}},{"$f":"(_xll.RiskData(NR_to_Cash!D$18,$A1030))/1000","v":{"$error":"#NAME?"}},{"$f":"(_xll.RiskData(NR_to_Cash!E$18,$A1030))/1000","v":{"$error":"#NAME?"}}]
[1024,{"$f":"_xll.RiskData('Risk Summary'!J$48,$A1031)/1000","v":{"$error":"#NAME?"}},{"$f":"_xll.RiskData('Risk Summary'!K$48,$A1031)/1000","v":{"$error":"#NAME?"}},{"$f":"_xll.RiskData('Risk Summary'!L$48,$A1031)/1000","v":{"$error":"#NAME?"}},null,null,{"$f":"(_xll.RiskData(NR_to_Cash!C$18,$A1031))/1000","v":{"$error":"#NAME?"}},{"$f":"(_xll.RiskData(NR_to_Cash!D$18,$A1031))/1000","v":{"$error":"#NAME?"}},{"$f":"(_xll.RiskData(NR_to_Cash!E$18,$A1031))/1000","v":{"$error":"#NAME?"}}]
[1025,{"$f":"_xll.RiskData('Risk Summary'!J$48,$A1032)/1000","v":{"$error":"#NAME?"}},{"$f":"_xll.RiskData('Risk Summary'!K$48,$A1032)/1000","v":{"$error":"#NAME?"}},{"$f":"_xll.RiskData('Risk Summary'!L$48,$A1032)/1000","v":{"$error":"#NAME?"}},null,null,{"$f":"(_xll.RiskData(NR_to_Cash!C$18,$A1032))/1000","v":{"$error":"#NAME?"}},{"$f":"(_xll.RiskData(NR_to_Cash!D$18,$A1032))/1000","v":{"$error":"#NAME?"}},{"$f":"(_xll.RiskData(NR_to_Cash!E$18,$A1032))/1000","v":{"$error":"#NAME?"}}]
[1026,{"$f":"_xll.RiskData('Risk Summary'!J$48,$A1033)/1000","v":{"$error":"#NAME?"}},{"$f":"_xll.RiskData('Risk Summary'!K$48,$A1033)/1000","v":{"$error":"#NAME?"}},{"$f":"_xll.RiskData('Risk Summary'!L$48,$A1033)/1000","v":{"$error":"#NAME?"}},null,null,{"$f":"(_xll.RiskData(NR_to_Cash!C$18,$A1033))/1000","v":{"$error":"#NAME?"}},{"$f":"(_xll.RiskData(NR_to_Cash!D$18,$A1033))/1000","v":{"$error":"#NAME?"}},{"$f":"(_xll.RiskData(NR_to_Cash!E$18,$A1033))/1000","v":{"$error":"#NAME?"}}]
[1027,{"$f":"_xll.RiskData('Risk Summary'!J$48,$A1034)/1000","v":{"$error":"#NAME?"}},{"$f":"_xll.RiskData('Risk Summary'!K$48,$A1034)/1000","v":{"$error":"#NAME?"}},{"$f":"_xll.RiskData('Risk Summary'!L$48,$A1034)/1000","v":{"$error":"#NAME?"}},null,null,{"$f":"(_xll.RiskData(NR_to_Cash!C$18,$A1034))/1000","v":{"$error":"#NAME?"}},{"$f":"(_xll.RiskData(NR_to_Cash!D$18,$A1034))/1000","v":{"$error":"#NAME?"}},{"$f":"(_xll.RiskData(NR_to_Cash!E$18,$A1034))/1000","v":{"$error":"#NAME?"}}]
[1028,{"$f":"_xll.RiskData('Risk Summary'!J$48,$A1035)/1000","v":{"$error":"#NAME?"}},{"$f":"_xll.RiskData('Risk Summary'!K$48,$A1035)/1000","v":{"$error":"#NAME?"}},{"$f":"_xll.RiskData('Risk Summary'!L$48,$A1035)/1000","v":{"$error":"#NAME?"}},null,null,{"$f":"(_xll.RiskData(NR_to_Cash!C$18,$A1035))/1000","v":{"$error":"#NAME?"}},{"$f":"(_xll.RiskData(NR_to_Cash!D$18,$A1035))/1000","v":{"$error":"#NAME?"}},{"$f":"(_xll.RiskData(NR_to_Cash!E$18,$A1035))/1000","v":{"$error":"#NAME?"}}]
[1029,{"$f":"_xll.RiskData('Risk Summary'!J$48,$A1036)/1000","v":{"$error":"#NAME?"}},{"$f":"_xll.RiskData('Risk Summary'!K$48,$A1036)/1000","v":{"$error":"#NAME?"}},{"$f":"_xll.RiskData('Risk Summary'!L$48,$A1036)/1000","v":{"$error":"#NAME?"}},null,null,{"$f":"(_xll.RiskData(NR_to_Cash!C$18,$A1036))/1000","v":{"$error":"#NAME?"}},{"$f":"(_xll.RiskData(NR_to_Cash!D$18,$A1036))/1000","v":{"$error":"#NAME?"}},{"$f":"(_xll.RiskData(NR_to_Cash!E$18,$A1036))/1000","v":{"$error":"#NAME?"}}]
[1030,{"$f":"_xll.RiskData('Risk Summary'!J$48,$A1037)/1000","v":{"$error":"#NAME?"}},{"$f":"_xll.RiskData('Risk Summary'!K$48,$A1037)/1000","v":{"$error":"#NAME?"}},{"$f":"_xll.RiskData('Risk Summary'!L$48,$A1037)/1000","v":{"$error":"#NAME?"}},null,null,{"$f":"(_xll.RiskData(NR_to_Cash!C$18,$A1037))/1000","v":{"$error":"#NAME?"}},{"$f":"(_xll.RiskData(NR_to_Cash!D$18,$A1037))/1000","v":{"$error":"#NAME?"}},{"$f":"(_xll.RiskData(NR_to_Cash!E$18,$A1037))/1000","v":{"$error":"#NAME?"}}]
[1031,{"$f":"_xll.RiskData('Risk Summary'!J$48,$A1038)/1000","v":{"$error":"#NAME?"}},{"$f":"_xll.RiskData('Risk Summary'!K$48,$A1038)/1000","v":{"$error":"#NAME?"}},{"$f":"_xll.RiskData('Risk Summary'!L$48,$A1038)/1000","v":{"$error":"#NAME?"}},null,null,{"$f":"(_xll.RiskData(NR_to_Cash!C$18,$A1038))/1000","v":{"$error":"#NAME?"}},{"$f":"(_xll.RiskData(NR_to_Cash!D$18,$A1038))/1000","v":{"$error":"#NAME?"}},{"$f":"(_xll.RiskData(NR_to_Cash!E$18,$A1038))/1000","v":{"$error":"#NAME?"}}]
[1032,{"$f":"_xll.RiskData('Risk Summary'!J$48,$A1039)/1000","v":{"$error":"#NAME?"}},{"$f":"_xll.RiskData('Risk Summary'!K$48,$A1039)/1000","v":{"$error":"#NAME?"}},{"$f":"_xll.RiskData('Risk Summary'!L$48,$A1039)/1000","v":{"$error":"#NAME?"}},null,null,{"$f":"(_xll.RiskData(NR_to_Cash!C$18,$A1039))/1000","v":{"$error":"#NAME?"}},{"$f":"(_xll.RiskData(NR_to_Cash!D$18,$A1039))/1000","v":{"$error":"#NAME?"}},{"$f":"(_xll.RiskData(NR_to_Cash!E$18,$A1039))/1000","v":{"$error":"#NAME?"}}]
[1033,{"$f":"_xll.RiskData('Risk Summary'!J$48,$A1040)/1000","v":{"$error":"#NAME?"}},{"$f":"_xll.RiskData('Risk Summary'!K$48,$A1040)/1000","v":{"$error":"#NAME?"}},{"$f":"_xll.RiskData('Risk Summary'!L$48,$A1040)/1000","v":{"$error":"#NAME?"}},null,null,{"$f":"(_xll.RiskData(NR_to_Cash!C$18,$A1040))/1000","v":{"$error":"#NAME?"}},{"$f":"(_xll.RiskData(NR_to_Cash!D$18,$A1040))/1000","v":{"$error":"#NAME?"}},{"$f":"(_xll.RiskData(NR_to_Cash!E$18,$A1040))/1000","v":{"$error":"#NAME?"}}]
[1034,{"$f":"_xll.RiskData('Risk Summary'!J$48,$A1041)/1000","v":{"$error":"#NAME?"}},{"$f":"_xll.RiskData('Risk Summary'!K$48,$A1041)/1000","v":{"$error":"#NAME?"}},{"$f":"_xll.RiskData('Risk Summary'!L$48,$A1041)/1000","v":{"$error":"#NAME?"}},null,null,{"$f":"(_xll.RiskData(NR_to_Cash!C$18,$A1041))/1000","v":{"$error":"#NAME?"}},{"$f":"(_xll.RiskData(NR_to_Cash!D$18,$A1041))/1000","v":{"$error":"#NAME?"}},{"$f":"(_xll.RiskData(NR_to_Cash!E$18,$A1041))/1000","v":{"$error":"#NAME?"}}]
[1035,{"$f":"_xll.RiskData('Risk Summary'!J$48,$A1042)/1000","v":{"$error":"#NAME?"}},{"$f":"_xll.RiskData('Risk Summary'!K$48,$A1042)/1000","v":{"$error":"#NAME?"}},{"$f":"_xll.RiskData('Risk Summary'!L$48,$A1042)/1000","v":{"$error":"#NAME?"}},null,null,{"$f":"(_xll.RiskData(NR_to_Cash!C$18,$A1042))/1000","v":{"$error":"#NAME?"}},{"$f":"(_xll.RiskData(NR_to_Cash!D$18,$A1042))/1000","v":{"$error":"#NAME?"}},{"$f":"(_xll.RiskData(NR_to_Cash!E$18,$A1042))/1000","v":{"$error":"#NAME?"}}]
[1036,{"$f":"_xll.RiskData('Risk Summary'!J$48,$A1043)/1000","v":{"$error":"#NAME?"}},{"$f":"_xll.RiskData('Risk Summary'!K$48,$A1043)/1000","v":{"$error":"#NAME?"}},{"$f":"_xll.RiskData('Risk Summary'!L$48,$A1043)/1000","v":{"$error":"#NAME?"}},null,null,{"$f":"(_xll.RiskData(NR_to_Cash!C$18,$A1043))/1000","v":{"$error":"#NAME?"}},{"$f":"(_xll.RiskData(NR_to_Cash!D$18,$A1043))/1000","v":{"$error":"#NAME?"}},{"$f":"(_xll.RiskData(NR_to_Cash!E$18,$A1043))/1000","v":{"$error":"#NAME?"}}]
[1037,{"$f":"_xll.RiskData('Risk Summary'!J$48,$A1044)/1000","v":{"$error":"#NAME?"}},{"$f":"_xll.RiskData('Risk Summary'!K$48,$A1044)/1000","v":{"$error":"#NAME?"}},{"$f":"_xll.RiskData('Risk Summary'!L$48,$A1044)/1000","v":{"$error":"#NAME?"}},null,null,{"$f":"(_xll.RiskData(NR_to_Cash!C$18,$A1044))/1000","v":{"$error":"#NAME?"}},{"$f":"(_xll.RiskData(NR_to_Cash!D$18,$A1044))/1000","v":{"$error":"#NAME?"}},{"$f":"(_xll.RiskData(NR_to_Cash!E$18,$A1044))/1000","v":{"$error":"#NAME?"}}]
[1038,{"$f":"_xll.RiskData('Risk Summary'!J$48,$A1045)/1000","v":{"$error":"#NAME?"}},{"$f":"_xll.RiskData('Risk Summary'!K$48,$A1045)/1000","v":{"$error":"#NAME?"}},{"$f":"_xll.RiskData('Risk Summary'!L$48,$A1045)/1000","v":{"$error":"#NAME?"}},null,null,{"$f":"(_xll.RiskData(NR_to_Cash!C$18,$A1045))/1000","v":{"$error":"#NAME?"}},{"$f":"(_xll.RiskData(NR_to_Cash!D$18,$A1045))/1000","v":{"$error":"#NAME?"}},{"$f":"(_xll.RiskData(NR_to_Cash!E$18,$A1045))/1000","v":{"$error":"#NAME?"}}]
[1039,{"$f":"_xll.RiskData('Risk Summary'!J$48,$A1046)/1000","v":{"$error":"#NAME?"}},{"$f":"_xll.RiskData('Risk Summary'!K$48,$A1046)/1000","v":{"$error":"#NAME?"}},{"$f":"_xll.RiskData('Risk Summary'!L$48,$A1046)/1000","v":{"$error":"#NAME?"}},null,null,{"$f":"(_xll.RiskData(NR_to_Cash!C$18,$A1046))/1000","v":{"$error":"#NAME?"}},{"$f":"(_xll.RiskData(NR_to_Cash!D$18,$A1046))/1000","v":{"$error":"#NAME?"}},{"$f":"(_xll.RiskData(NR_to_Cash!E$18,$A1046))/1000","v":{"$error":"#NAME?"}}]
[1040,{"$f":"_xll.RiskData('Risk Summary'!J$48,$A1047)/1000","v":{"$error":"#NAME?"}},{"$f":"_xll.RiskData('Risk Summary'!K$48,$A1047)/1000","v":{"$error":"#NAME?"}},{"$f":"_xll.RiskData('Risk Summary'!L$48,$A1047)/1000","v":{"$error":"#NAME?"}},null,null,{"$f":"(_xll.RiskData(NR_to_Cash!C$18,$A1047))/1000","v":{"$error":"#NAME?"}},{"$f":"(_xll.RiskData(NR_to_Cash!D$18,$A1047))/1000","v":{"$error":"#NAME?"}},{"$f":"(_xll.RiskData(NR_to_Cash!E$18,$A1047))/1000","v":{"$error":"#NAME?"}}]
[1041,{"$f":"_xll.RiskData('Risk Summary'!J$48,$A1048)/1000","v":{"$error":"#NAME?"}},{"$f":"_xll.RiskData('Risk Summary'!K$48,$A1048)/1000","v":{"$error":"#NAME?"}},{"$f":"_xll.RiskData('Risk Summary'!L$48,$A1048)/1000","v":{"$error":"#NAME?"}},null,null,{"$f":"(_xll.RiskData(NR_to_Cash!C$18,$A1048))/1000","v":{"$error":"#NAME?"}},{"$f":"(_xll.RiskData(NR_to_Cash!D$18,$A1048))/1000","v":{"$error":"#NAME?"}},{"$f":"(_xll.RiskData(NR_to_Cash!E$18,$A1048))/1000","v":{"$error":"#NAME?"}}]
[1042,{"$f":"_xll.RiskData('Risk Summary'!J$48,$A1049)/1000","v":{"$error":"#NAME?"}},{"$f":"_xll.RiskData('Risk Summary'!K$48,$A1049)/1000","v":{"$error":"#NAME?"}},{"$f":"_xll.RiskData('Risk Summary'!L$48,$A1049)/1000","v":{"$error":"#NAME?"}},null,null,{"$f":"(_xll.RiskData(NR_to_Cash!C$18,$A1049))/1000","v":{"$error":"#NAME?"}},{"$f":"(_xll.RiskData(NR_to_Cash!D$18,$A1049))/1000","v":{"$error":"#NAME?"}},{"$f":"(_xll.RiskData(NR_to_Cash!E$18,$A1049))/1000","v":{"$error":"#NAME?"}}]
[1043,{"$f":"_xll.RiskData('Risk Summary'!J$48,$A1050)/1000","v":{"$error":"#NAME?"}},{"$f":"_xll.RiskData('Risk Summary'!K$48,$A1050)/1000","v":{"$error":"#NAME?"}},{"$f":"_xll.RiskData('Risk Summary'!L$48,$A1050)/1000","v":{"$error":"#NAME?"}},null,null,{"$f":"(_xll.RiskData(NR_to_Cash!C$18,$A1050))/1000","v":{"$error":"#NAME?"}},{"$f":"(_xll.RiskData(NR_to_Cash!D$18,$A1050))/1000","v":{"$error":"#NAME?"}},{"$f":"(_xll.RiskData(NR_to_Cash!E$18,$A1050))/1000","v":{"$error":"#NAME?"}}]
[1044,{"$f":"_xll.RiskData('Risk Summary'!J$48,$A1051)/1000","v":{"$error":"#NAME?"}},{"$f":"_xll.RiskData('Risk Summary'!K$48,$A1051)/1000","v":{"$error":"#NAME?"}},{"$f":"_xll.RiskData('Risk Summary'!L$48,$A1051)/1000","v":{"$error":"#NAME?"}},null,null,{"$f":"(_xll.RiskData(NR_to_Cash!C$18,$A1051))/1000","v":{"$error":"#NAME?"}},{"$f":"(_xll.RiskData(NR_to_Cash!D$18,$A1051))/1000","v":{"$error":"#NAME?"}},{"$f":"(_xll.RiskData(NR_to_Cash!E$18,$A1051))/1000","v":{"$error":"#NAME?"}}]
[1045,{"$f":"_xll.RiskData('Risk Summary'!J$48,$A1052)/1000","v":{"$error":"#NAME?"}},{"$f":"_xll.RiskData('Risk Summary'!K$48,$A1052)/1000","v":{"$error":"#NAME?"}},{"$f":"_xll.RiskData('Risk Summary'!L$48,$A1052)/1000","v":{"$error":"#NAME?"}},null,null,{"$f":"(_xll.RiskData(NR_to_Cash!C$18,$A1052))/1000","v":{"$error":"#NAME?"}},{"$f":"(_xll.RiskData(NR_to_Cash!D$18,$A1052))/1000","v":{"$error":"#NAME?"}},{"$f":"(_xll.RiskData(NR_to_Cash!E$18,$A1052))/1000","v":{"$error":"#NAME?"}}]
[1046,{"$f":"_xll.RiskData('Risk Summary'!J$48,$A1053)/1000","v":{"$error":"#NAME?"}},{"$f":"_xll.RiskData('Risk Summary'!K$48,$A1053)/1000","v":{"$error":"#NAME?"}},{"$f":"_xll.RiskData('Risk Summary'!L$48,$A1053)/1000","v":{"$error":"#NAME?"}},null,null,{"$f":"(_xll.RiskData(NR_to_Cash!C$18,$A1053))/1000","v":{"$error":"#NAME?"}},{"$f":"(_xll.RiskData(NR_to_Cash!D$18,$A1053))/1000","v":{"$error":"#NAME?"}},{"$f":"(_xll.RiskData(NR_to_Cash!E$18,$A1053))/1000","v":{"$error":"#NAME?"}}]
[1047,{"$f":"_xll.RiskData('Risk Summary'!J$48,$A1054)/1000","v":{"$error":"#NAME?"}},{"$f":"_xll.RiskData('Risk Summary'!K$48,$A1054)/1000","v":{"$error":"#NAME?"}},{"$f":"_xll.RiskData('Risk Summary'!L$48,$A1054)/1000","v":{"$error":"#NAME?"}},null,null,{"$f":"(_xll.RiskData(NR_to_Cash!C$18,$A1054))/1000","v":{"$error":"#NAME?"}},{"$f":"(_xll.RiskData(NR_to_Cash!D$18,$A1054))/1000","v":{"$error":"#NAME?"}},{"$f":"(_xll.RiskData(NR_to_Cash!E$18,$A1054))/1000","v":{"$error":"#NAME?"}}]
[1048,{"$f":"_xll.RiskData('Risk Summary'!J$48,$A1055)/1000","v":{"$error":"#NAME?"}},{"$f":"_xll.RiskData('Risk Summary'!K$48,$A1055)/1000","v":{"$error":"#NAME?"}},{"$f":"_xll.RiskData('Risk Summary'!L$48,$A1055)/1000","v":{"$error":"#NAME?"}},null,null,{"$f":"(_xll.RiskData(NR_to_Cash!C$18,$A1055))/1000","v":{"$error":"#NAME?"}},{"$f":"(_xll.RiskData(NR_to_Cash!D$18,$A1055))/1000","v":{"$error":"#NAME?"}},{"$f":"(_xll.RiskData(NR_to_Cash!E$18,$A1055))/1000","v":{"$error":"#NAME?"}}]
[1049,{"$f":"_xll.RiskData('Risk Summary'!J$48,$A1056)/1000","v":{"$error":"#NAME?"}},{"$f":"_xll.RiskData('Risk Summary'!K$48,$A1056)/1000","v":{"$error":"#NAME?"}},{"$f":"_xll.RiskData('Risk Summary'!L$48,$A1056)/1000","v":{"$error":"#NAME?"}},null,null,{"$f":"(_xll.RiskData(NR_to_Cash!C$18,$A1056))/1000","v":{"$error":"#NAME?"}},{"$f":"(_xll.RiskData(NR_to_Cash!D$18,$A1056))/1000","v":{"$error":"#NAME?"}},{"$f":"(_xll.RiskData(NR_to_Cash!E$18,$A1056))/1000","v":{"$error":"#NAME?"}}]
[1050,{"$f":"_xll.RiskData('Risk Summary'!J$48,$A1057)/1000","v":{"$error":"#NAME?"}},{"$f":"_xll.RiskData('Risk Summary'!K$48,$A1057)/1000","v":{"$error":"#NAME?"}},{"$f":"_xll.RiskData('Risk Summary'!L$48,$A1057)/1000","v":{"$error":"#NAME?"}},null,null,{"$f":"(_xll.RiskData(NR_to_Cash!C$18,$A1057))/1000","v":{"$error":"#NAME?"}},{"$f":"(_xll.RiskData(NR_to_Cash!D$18,$A1057))/1000","v":{"$error":"#NAME?"}},{"$f":"(_xll.RiskData(NR_to_Cash!E$18,$A1057))/1000","v":{"$error":"#NAME?"}}]
[1051,{"$f":"_xll.RiskData('Risk Summary'!J$48,$A1058)/1000","v":{"$error":"#NAME?"}},{"$f":"_xll.RiskData('Risk Summary'!K$48,$A1058)/1000","v":{"$error":"#NAME?"}},{"$f":"_xll.RiskData('Risk Summary'!L$48,$A1058)/1000","v":{"$error":"#NAME?"}},null,null,{"$f":"(_xll.RiskData(NR_to_Cash!C$18,$A1058))/1000","v":{"$error":"#NAME?"}},{"$f":"(_xll.RiskData(NR_to_Cash!D$18,$A1058))/1000","v":{"$error":"#NAME?"}},{"$f":"(_xll.RiskData(NR_to_Cash!E$18,$A1058))/1000","v":{"$error":"#NAME?"}}]
[1052,{"$f":"_xll.RiskData('Risk Summary'!J$48,$A1059)/1000","v":{"$error":"#NAME?"}},{"$f":"_xll.RiskData('Risk Summary'!K$48,$A1059)/1000","v":{"$error":"#NAME?"}},{"$f":"_xll.RiskData('Risk Summary'!L$48,$A1059)/1000","v":{"$error":"#NAME?"}},null,null,{"$f":"(_xll.RiskData(NR_to_Cash!C$18,$A1059))/1000","v":{"$error":"#NAME?"}},{"$f":"(_xll.RiskData(NR_to_Cash!D$18,$A1059))/1000","v":{"$error":"#NAME?"}},{"$f":"(_xll.RiskData(NR_to_Cash!E$18,$A1059))/1000","v":{"$error":"#NAME?"}}]
[1053,{"$f":"_xll.RiskData('Risk Summary'!J$48,$A1060)/1000","v":{"$error":"#NAME?"}},{"$f":"_xll.RiskData('Risk Summary'!K$48,$A1060)/1000","v":{"$error":"#NAME?"}},{"$f":"_xll.RiskData('Risk Summary'!L$48,$A1060)/1000","v":{"$error":"#NAME?"}},null,null,{"$f":"(_xll.RiskData(NR_to_Cash!C$18,$A1060))/1000","v":{"$error":"#NAME?"}},{"$f":"(_xll.RiskData(NR_to_Cash!D$18,$A1060))/1000","v":{"$error":"#NAME?"}},{"$f":"(_xll.RiskData(NR_to_Cash!E$18,$A1060))/1000","v":{"$error":"#NAME?"}}]
[1054,{"$f":"_xll.RiskData('Risk Summary'!J$48,$A1061)/1000","v":{"$error":"#NAME?"}},{"$f":"_xll.RiskData('Risk Summary'!K$48,$A1061)/1000","v":{"$error":"#NAME?"}},{"$f":"_xll.RiskData('Risk Summary'!L$48,$A1061)/1000","v":{"$error":"#NAME?"}},null,null,{"$f":"(_xll.RiskData(NR_to_Cash!C$18,$A1061))/1000","v":{"$error":"#NAME?"}},{"$f":"(_xll.RiskData(NR_to_Cash!D$18,$A1061))/1000","v":{"$error":"#NAME?"}},{"$f":"(_xll.RiskData(NR_to_Cash!E$18,$A1061))/1000","v":{"$error":"#NAME?"}}]
[1055,{"$f":"_xll.RiskData('Risk Summary'!J$48,$A1062)/1000","v":{"$error":"#NAME?"}},{"$f":"_xll.RiskData('Risk Summary'!K$48,$A1062)/1000","v":{"$error":"#NAME?"}},{"$f":"_xll.RiskData('Risk Summary'!L$48,$A1062)/1000","v":{"$error":"#NAME?"}},null,null,{"$f":"(_xll.RiskData(NR_to_Cash!C$18,$A1062))/1000","v":{"$error":"#NAME?"}},{"$f":"(_xll.RiskData(NR_to_Cash!D$18,$A1062))/1000","v":{"$error":"#NAME?"}},{"$f":"(_xll.RiskData(NR_to_Cash!E$18,$A1062))/1000","v":{"$error":"#NAME?"}}]
[1056,{"$f":"_xll.RiskData('Risk Summary'!J$48,$A1063)/1000","v":{"$error":"#NAME?"}},{"$f":"_xll.RiskData('Risk Summary'!K$48,$A1063)/1000","v":{"$error":"#NAME?"}},{"$f":"_xll.RiskData('Risk Summary'!L$48,$A1063)/1000","v":{"$error":"#NAME?"}},null,null,{"$f":"(_xll.RiskData(NR_to_Cash!C$18,$A1063))/1000","v":{"$error":"#NAME?"}},{"$f":"(_xll.RiskData(NR_to_Cash!D$18,$A1063))/1000","v":{"$error":"#NAME?"}},{"$f":"(_xll.RiskData(NR_to_Cash!E$18,$A1063))/1000","v":{"$error":"#NAME?"}}]
[1057,{"$f":"_xll.RiskData('Risk Summary'!J$48,$A1064)/1000","v":{"$error":"#NAME?"}},{"$f":"_xll.RiskData('Risk Summary'!K$48,$A1064)/1000","v":{"$error":"#NAME?"}},{"$f":"_xll.RiskData('Risk Summary'!L$48,$A1064)/1000","v":{"$error":"#NAME?"}},null,null,{"$f":"(_xll.RiskData(NR_to_Cash!C$18,$A1064))/1000","v":{"$error":"#NAME?"}},{"$f":"(_xll.RiskData(NR_to_Cash!D$18,$A1064))/1000","v":{"$error":"#NAME?"}},{"$f":"(_xll.RiskData(NR_to_Cash!E$18,$A1064))/1000","v":{"$error":"#NAME?"}}]
[1058,{"$f":"_xll.RiskData('Risk Summary'!J$48,$A1065)/1000","v":{"$error":"#NAME?"}},{"$f":"_xll.RiskData('Risk Summary'!K$48,$A1065)/1000","v":{"$error":"#NAME?"}},{"$f":"_xll.RiskData('Risk Summary'!L$48,$A1065)/1000","v":{"$error":"#NAME?"}},null,null,{"$f":"(_xll.RiskData(NR_to_Cash!C$18,$A1065))/1000","v":{"$error":"#NAME?"}},{"$f":"(_xll.RiskData(NR_to_Cash!D$18,$A1065))/1000","v":{"$error":"#NAME?"}},{"$f":"(_xll.RiskData(NR_to_Cash!E$18,$A1065))/1000","v":{"$error":"#NAME?"}}]
[1059,{"$f":"_xll.RiskData('Risk Summary'!J$48,$A1066)/1000","v":{"$error":"#NAME?"}},{"$f":"_xll.RiskData('Risk Summary'!K$48,$A1066)/1000","v":{"$error":"#NAME?"}},{"$f":"_xll.RiskData('Risk Summary'!L$48,$A1066)/1000","v":{"$error":"#NAME?"}},null,null,{"$f":"(_xll.RiskData(NR_to_Cash!C$18,$A1066))/1000","v":{"$error":"#NAME?"}},{"$f":"(_xll.RiskData(NR_to_Cash!D$18,$A1066))/1000","v":{"$error":"#NAME?"}},{"$f":"(_xll.RiskData(NR_to_Cash!E$18,$A1066))/1000","v":{"$error":"#NAME?"}}]
[1060,{"$f":"_xll.RiskData('Risk Summary'!J$48,$A1067)/1000","v":{"$error":"#NAME?"}},{"$f":"_xll.RiskData('Risk Summary'!K$48,$A1067)/1000","v":{"$error":"#NAME?"}},{"$f":"_xll.RiskData('Risk Summary'!L$48,$A1067)/1000","v":{"$error":"#NAME?"}},null,null,{"$f":"(_xll.RiskData(NR_to_Cash!C$18,$A1067))/1000","v":{"$error":"#NAME?"}},{"$f":"(_xll.RiskData(NR_to_Cash!D$18,$A1067))/1000","v":{"$error":"#NAME?"}},{"$f":"(_xll.RiskData(NR_to_Cash!E$18,$A1067))/1000","v":{"$error":"#NAME?"}}]
[1061,{"$f":"_xll.RiskData('Risk Summary'!J$48,$A1068)/1000","v":{"$error":"#NAME?"}},{"$f":"_xll.RiskData('Risk Summary'!K$48,$A1068)/1000","v":{"$error":"#NAME?"}},{"$f":"_xll.RiskData('Risk Summary'!L$48,$A1068)/1000","v":{"$error":"#NAME?"}},null,null,{"$f":"(_xll.RiskData(NR_to_Cash!C$18,$A1068))/1000","v":{"$error":"#NAME?"}},{"$f":"(_xll.RiskData(NR_to_Cash!D$18,$A1068))/1000","v":{"$error":"#NAME?"}},{"$f":"(_xll.RiskData(NR_to_Cash!E$18,$A1068))/1000","v":{"$error":"#NAME?"}}]
[1062,{"$f":"_xll.RiskData('Risk Summary'!J$48,$A1069)/1000","v":{"$error":"#NAME?"}},{"$f":"_xll.RiskData('Risk Summary'!K$48,$A1069)/1000","v":{"$error":"#NAME?"}},{"$f":"_xll.RiskData('Risk Summary'!L$48,$A1069)/1000","v":{"$error":"#NAME?"}},null,null,{"$f":"(_xll.RiskData(NR_to_Cash!C$18,$A1069))/1000","v":{"$error":"#NAME?"}},{"$f":"(_xll.RiskData(NR_to_Cash!D$18,$A1069))/1000","v":{"$error":"#NAME?"}},{"$f":"(_xll.RiskData(NR_to_Cash!E$18,$A1069))/1000","v":{"$error":"#NAME?"}}]
[1063,{"$f":"_xll.RiskData('Risk Summary'!J$48,$A1070)/1000","v":{"$error":"#NAME?"}},{"$f":"_xll.RiskData('Risk Summary'!K$48,$A1070)/1000","v":{"$error":"#NAME?"}},{"$f":"_xll.RiskData('Risk Summary'!L$48,$A1070)/1000","v":{"$error":"#NAME?"}},null,null,{"$f":"(_xll.RiskData(NR_to_Cash!C$18,$A1070))/1000","v":{"$error":"#NAME?"}},{"$f":"(_xll.RiskData(NR_to_Cash!D$18,$A1070))/1000","v":{"$error":"#NAME?"}},{"$f":"(_xll.RiskData(NR_to_Cash!E$18,$A1070))/1000","v":{"$error":"#NAME?"}}]
[1064,{"$f":"_xll.RiskData('Risk Summary'!J$48,$A1071)/1000","v":{"$error":"#NAME?"}},{"$f":"_xll.RiskData('Risk Summary'!K$48,$A1071)/1000","v":{"$error":"#NAME?"}},{"$f":"_xll.RiskData('Risk Summary'!L$48,$A1071)/1000","v":{"$error":"#NAME?"}},null,null,{"$f":"(_xll.RiskData(NR_to_Cash!C$18,$A1071))/1000","v":{"$error":"#NAME?"}},{"$f":"(_xll.RiskData(NR_to_Cash!D$18,$A1071))/1000","v":{"$error":"#NAME?"}},{"$f":"(_xll.RiskData(NR_to_Cash!E$18,$A1071))/1000","v":{"$error":"#NAME?"}}]
[1065,{"$f":"_xll.RiskData('Risk Summary'!J$48,$A1072)/1000","v":{"$error":"#NAME?"}},{"$f":"_xll.RiskData('Risk Summary'!K$48,$A1072)/1000","v":{"$error":"#NAME?"}},{"$f":"_xll.RiskData('Risk Summary'!L$48,$A1072)/1000","v":{"$error":"#NAME?"}},null,null,{"$f":"(_xll.RiskData(NR_to_Cash!C$18,$A1072))/1000","v":{"$error":"#NAME?"}},{"$f":"(_xll.RiskData(NR_to_Cash!D$18,$A1072))/1000","v":{"$error":"#NAME?"}},{"$f":"(_xll.RiskData(NR_to_Cash!E$18,$A1072))/1000","v":{"$error":"#NAME?"}}]
[1066,{"$f":"_xll.RiskData('Risk Summary'!J$48,$A1073)/1000","v":{"$error":"#NAME?"}},{"$f":"_xll.RiskData('Risk Summary'!K$48,$A1073)/1000","v":{"$error":"#NAME?"}},{"$f":"_xll.RiskData('Risk Summary'!L$48,$A1073)/1000","v":{"$error":"#NAME?"}},null,null,{"$f":"(_xll.RiskData(NR_to_Cash!C$18,$A1073))/1000","v":{"$error":"#NAME?"}},{"$f":"(_xll.RiskData(NR_to_Cash!D$18,$A1073))/1000","v":{"$error":"#NAME?"}},{"$f":"(_xll.RiskData(NR_to_Cash!E$18,$A1073))/1000","v":{"$error":"#NAME?"}}]
[1067,{"$f":"_xll.RiskData('Risk Summary'!J$48,$A1074)/1000","v":{"$error":"#NAME?"}},{"$f":"_xll.RiskData('Risk Summary'!K$48,$A1074)/1000","v":{"$error":"#NAME?"}},{"$f":"_xll.RiskData('Risk Summary'!L$48,$A1074)/1000","v":{"$error":"#NAME?"}},null,null,{"$f":"(_xll.RiskData(NR_to_Cash!C$18,$A1074))/1000","v":{"$error":"#NAME?"}},{"$f":"(_xll.RiskData(NR_to_Cash!D$18,$A1074))/1000","v":{"$error":"#NAME?"}},{"$f":"(_xll.RiskData(NR_to_Cash!E$18,$A1074))/1000","v":{"$error":"#NAME?"}}]
[1068,{"$f":"_xll.RiskData('Risk Summary'!J$48,$A1075)/1000","v":{"$error":"#NAME?"}},{"$f":"_xll.RiskData('Risk Summary'!K$48,$A1075)/1000","v":{"$error":"#NAME?"}},{"$f":"_xll.RiskData('Risk Summary'!L$48,$A1075)/1000","v":{"$error":"#NAME?"}},null,null,{"$f":"(_xll.RiskData(NR_to_Cash!C$18,$A1075))/1000","v":{"$error":"#NAME?"}},{"$f":"(_xll.RiskData(NR_to_Cash!D$18,$A1075))/1000","v":{"$error":"#NAME?"}},{"$f":"(_xll.RiskData(NR_to_Cash!E$18,$A1075))/1000","v":{"$error":"#NAME?"}}]
[1069,{"$f":"_xll.RiskData('Risk Summary'!J$48,$A1076)/1000","v":{"$error":"#NAME?"}},{"$f":"_xll.RiskData('Risk Summary'!K$48,$A1076)/1000","v":{"$error":"#NAME?"}},{"$f":"_xll.RiskData('Risk Summary'!L$48,$A1076)/1000","v":{"$error":"#NAME?"}},null,null,{"$f":"(_xll.RiskData(NR_to_Cash!C$18,$A1076))/1000","v":{"$error":"#NAME?"}},{"$f":"(_xll.RiskData(NR_to_Cash!D$18,$A1076))/1000","v":{"$error":"#NAME?"}},{"$f":"(_xll.RiskData(NR_to_Cash!E$18,$A1076))/1000","v":{"$error":"#NAME?"}}]
[1070,{"$f":"_xll.RiskData('Risk Summary'!J$48,$A1077)/1000","v":{"$error":"#NAME?"}},{"$f":"_xll.RiskData('Risk Summary'!K$48,$A1077)/1000","v":{"$error":"#NAME?"}},{"$f":"_xll.RiskData('Risk Summary'!L$48,$A1077)/1000","v":{"$error":"#NAME?"}},null,null,{"$f":"(_xll.RiskData(NR_to_Cash!C$18,$A1077))/1000","v":{"$error":"#NAME?"}},{"$f":"(_xll.RiskData(NR_to_Cash!D$18,$A1077))/1000","v":{"$error":"#NAME?"}},{"$f":"(_xll.RiskData(NR_to_Cash!E$18,$A1077))/1000","v":{"$error":"#NAME?"}}]
[1071,{"$f":"_xll.RiskData('Risk Summary'!J$48,$A1078)/1000","v":{"$error":"#NAME?"}},{"$f":"_xll.RiskData('Risk Summary'!K$48,$A1078)/1000","v":{"$error":"#NAME?"}},{"$f":"_xll.RiskData('Risk Summary'!L$48,$A1078)/1000","v":{"$error":"#NAME?"}},null,null,{"$f":"(_xll.RiskData(NR_to_Cash!C$18,$A1078))/1000","v":{"$error":"#NAME?"}},{"$f":"(_xll.RiskData(NR_to_Cash!D$18,$A1078))/1000","v":{"$error":"#NAME?"}},{"$f":"(_xll.RiskData(NR_to_Cash!E$18,$A1078))/1000","v":{"$error":"#NAME?"}}]
[1072,{"$f":"_xll.RiskData('Risk Summary'!J$48,$A1079)/1000","v":{"$error":"#NAME?"}},{"$f":"_xll.RiskData('Risk Summary'!K$48,$A1079)/1000","v":{"$error":"#NAME?"}},{"$f":"_xll.RiskData('Risk Summary'!L$48,$A1079)/1000","v":{"$error":"#NAME?"}},null,null,{"$f":"(_xll.RiskData(NR_to_Cash!C$18,$A1079))/1000","v":{"$error":"#NAME?"}},{"$f":"(_xll.RiskData(NR_to_Cash!D$18,$A1079))/1000","v":{"$error":"#NAME?"}},{"$f":"(_xll.RiskData(NR_to_Cash!E$18,$A1079))/1000","v":{"$error":"#NAME?"}}]
[1073,{"$f":"_xll.RiskData('Risk Summary'!J$48,$A1080)/1000","v":{"$error":"#NAME?"}},{"$f":"_xll.RiskData('Risk Summary'!K$48,$A1080)/1000","v":{"$error":"#NAME?"}},{"$f":"_xll.RiskData('Risk Summary'!L$48,$A1080)/1000","v":{"$error":"#NAME?"}},null,null,{"$f":"(_xll.RiskData(NR_to_Cash!C$18,$A1080))/1000","v":{"$error":"#NAME?"}},{"$f":"(_xll.RiskData(NR_to_Cash!D$18,$A1080))/1000","v":{"$error":"#NAME?"}},{"$f":"(_xll.RiskData(NR_to_Cash!E$18,$A1080))/1000","v":{"$error":"#NAME?"}}]
[1074,{"$f":"_xll.RiskData('Risk Summary'!J$48,$A1081)/1000","v":{"$error":"#NAME?"}},{"$f":"_xll.RiskData('Risk Summary'!K$48,$A1081)/1000","v":{"$error":"#NAME?"}},{"$f":"_xll.RiskData('Risk Summary'!L$48,$A1081)/1000","v":{"$error":"#NAME?"}},null,null,{"$f":"(_xll.RiskData(NR_to_Cash!C$18,$A1081))/1000","v":{"$error":"#NAME?"}},{"$f":"(_xll.RiskData(NR_to_Cash!D$18,$A1081))/1000","v":{"$error":"#NAME?"}},{"$f":"(_xll.RiskData(NR_to_Cash!E$18,$A1081))/1000","v":{"$error":"#NAME?"}}]
[1075,{"$f":"_xll.RiskData('Risk Summary'!J$48,$A1082)/1000","v":{"$error":"#NAME?"}},{"$f":"_xll.RiskData('Risk Summary'!K$48,$A1082)/1000","v":{"$error":"#NAME?"}},{"$f":"_xll.RiskData('Risk Summary'!L$48,$A1082)/1000","v":{"$error":"#NAME?"}},null,null,{"$f":"(_xll.RiskData(NR_to_Cash!C$18,$A1082))/1000","v":{"$error":"#NAME?"}},{"$f":"(_xll.RiskData(NR_to_Cash!D$18,$A1082))/1000","v":{"$error":"#NAME?"}},{"$f":"(_xll.RiskData(NR_to_Cash!E$18,$A1082))/1000","v":{"$error":"#NAME?"}}]
[1076,{"$f":"_xll.RiskData('Risk Summary'!J$48,$A1083)/1000","v":{"$error":"#NAME?"}},{"$f":"_xll.RiskData('Risk Summary'!K$48,$A1083)/1000","v":{"$error":"#NAME?"}},{"$f":"_xll.RiskData('Risk Summary'!L$48,$A1083)/1000","v":{"$error":"#NAME?"}},null,null,{"$f":"(_xll.RiskData(NR_to_Cash!C$18,$A1083))/1000","v":{"$error":"#NAME?"}},{"$f":"(_xll.RiskData(NR_to_Cash!D$18,$A1083))/1000","v":{"$error":"#NAME?"}},{"$f":"(_xll.RiskData(NR_to_Cash!E$18,$A1083))/1000","v":{"$error":"#NAME?"}}]
[1077,{"$f":"_xll.RiskData('Risk Summary'!J$48,$A1084)/1000","v":{"$error":"#NAME?"}},{"$f":"_xll.RiskData('Risk Summary'!K$48,$A1084)/1000","v":{"$error":"#NAME?"}},{"$f":"_xll.RiskData('Risk Summary'!L$48,$A1084)/1000","v":{"$error":"#NAME?"}},null,null,{"$f":"(_xll.RiskData(NR_to_Cash!C$18,$A1084))/1000","v":{"$error":"#NAME?"}},{"$f":"(_xll.RiskData(NR_to_Cash!D$18,$A1084))/1000","v":{"$error":"#NAME?"}},{"$f":"(_xll.RiskData(NR_to_Cash!E$18,$A1084))/1000","v":{"$error":"#NAME?"}}]
[1078,{"$f":"_xll.RiskData('Risk Summary'!J$48,$A1085)/1000","v":{"$error":"#NAME?"}},{"$f":"_xll.RiskData('Risk Summary'!K$48,$A1085)/1000","v":{"$error":"#NAME?"}},{"$f":"_xll.RiskData('Risk Summary'!L$48,$A1085)/1000","v":{"$error":"#NAME?"}},null,null,{"$f":"(_xll.RiskData(NR_to_Cash!C$18,$A1085))/1000","v":{"$error":"#NAME?"}},{"$f":"(_xll.RiskData(NR_to_Cash!D$18,$A1085))/1000","v":{"$error":"#NAME?"}},{"$f":"(_xll.RiskData(NR_to_Cash!E$18,$A1085))/1000","v":{"$error":"#NAME?"}}]
[1079,{"$f":"_xll.RiskData('Risk Summary'!J$48,$A1086)/1000","v":{"$error":"#NAME?"}},{"$f":"_xll.RiskData('Risk Summary'!K$48,$A1086)/1000","v":{"$error":"#NAME?"}},{"$f":"_xll.RiskData('Risk Summary'!L$48,$A1086)/1000","v":{"$error":"#NAME?"}},null,null,{"$f":"(_xll.RiskData(NR_to_Cash!C$18,$A1086))/1000","v":{"$error":"#NAME?"}},{"$f":"(_xll.RiskData(NR_to_Cash!D$18,$A1086))/1000","v":{"$error":"#NAME?"}},{"$f":"(_xll.RiskData(NR_to_Cash!E$18,$A1086))/1000","v":{"$error":"#NAME?"}}]
[1080,{"$f":"_xll.RiskData('Risk Summary'!J$48,$A1087)/1000","v":{"$error":"#NAME?"}},{"$f":"_xll.RiskData('Risk Summary'!K$48,$A1087)/1000","v":{"$error":"#NAME?"}},{"$f":"_xll.RiskData('Risk Summary'!L$48,$A1087)/1000","v":{"$error":"#NAME?"}},null,null,{"$f":"(_xll.RiskData(NR_to_Cash!C$18,$A1087))/1000","v":{"$error":"#NAME?"}},{"$f":"(_xll.RiskData(NR_to_Cash!D$18,$A1087))/1000","v":{"$error":"#NAME?"}},{"$f":"(_xll.RiskData(NR_to_Cash!E$18,$A1087))/1000","v":{"$error":"#NAME?"}}]
[1081,{"$f":"_xll.RiskData('Risk Summary'!J$48,$A1088)/1000","v":{"$error":"#NAME?"}},{"$f":"_xll.RiskData('Risk Summary'!K$48,$A1088)/1000","v":{"$error":"#NAME?"}},{"$f":"_xll.RiskData('Risk Summary'!L$48,$A1088)/1000","v":{"$error":"#NAME?"}},null,null,{"$f":"(_xll.RiskData(NR_to_Cash!C$18,$A1088))/1000","v":{"$error":"#NAME?"}},{"$f":"(_xll.RiskData(NR_to_Cash!D$18,$A1088))/1000","v":{"$error":"#NAME?"}},{"$f":"(_xll.RiskData(NR_to_Cash!E$18,$A1088))/1000","v":{"$error":"#NAME?"}}]
[1082,{"$f":"_xll.RiskData('Risk Summary'!J$48,$A1089)/1000","v":{"$error":"#NAME?"}},{"$f":"_xll.RiskData('Risk Summary'!K$48,$A1089)/1000","v":{"$error":"#NAME?"}},{"$f":"_xll.RiskData('Risk Summary'!L$48,$A1089)/1000","v":{"$error":"#NAME?"}},null,null,{"$f":"(_xll.RiskData(NR_to_Cash!C$18,$A1089))/1000","v":{"$error":"#NAME?"}},{"$f":"(_xll.RiskData(NR_to_Cash!D$18,$A1089))/1000","v":{"$error":"#NAME?"}},{"$f":"(_xll.RiskData(NR_to_Cash!E$18,$A1089))/1000","v":{"$error":"#NAME?"}}]
[1083,{"$f":"_xll.RiskData('Risk Summary'!J$48,$A1090)/1000","v":{"$error":"#NAME?"}},{"$f":"_xll.RiskData('Risk Summary'!K$48,$A1090)/1000","v":{"$error":"#NAME?"}},{"$f":"_xll.RiskData('Risk Summary'!L$48,$A1090)/1000","v":{"$error":"#NAME?"}},null,null,{"$f":"(_xll.RiskData(NR_to_Cash!C$18,$A1090))/1000","v":{"$error":"#NAME?"}},{"$f":"(_xll.RiskData(NR_to_Cash!D$18,$A1090))/1000","v":{"$error":"#NAME?"}},{"$f":"(_xll.RiskData(NR_to_Cash!E$18,$A1090))/1000","v":{"$error":"#NAME?"}}]
[1084,{"$f":"_xll.RiskData('Risk Summary'!J$48,$A1091)/1000","v":{"$error":"#NAME?"}},{"$f":"_xll.RiskData('Risk Summary'!K$48,$A1091)/1000","v":{"$error":"#NAME?"}},{"$f":"_xll.RiskData('Risk Summary'!L$48,$A1091)/1000","v":{"$error":"#NAME?"}},null,null,{"$f":"(_xll.RiskData(NR_to_Cash!C$18,$A1091))/1000","v":{"$error":"#NAME?"}},{"$f":"(_xll.RiskData(NR_to_Cash!D$18,$A1091))/1000","v":{"$error":"#NAME?"}},{"$f":"(_xll.RiskData(NR_to_Cash!E$18,$A1091))/1000","v":{"$error":"#NAME?"}}]
[1085,{"$f":"_xll.RiskData('Risk Summary'!J$48,$A1092)/1000","v":{"$error":"#NAME?"}},{"$f":"_xll.RiskData('Risk Summary'!K$48,$A1092)/1000","v":{"$error":"#NAME?"}},{"$f":"_xll.RiskData('Risk Summary'!L$48,$A1092)/1000","v":{"$error":"#NAME?"}},null,null,{"$f":"(_xll.RiskData(NR_to_Cash!C$18,$A1092))/1000","v":{"$error":"#NAME?"}},{"$f":"(_xll.RiskData(NR_to_Cash!D$18,$A1092))/1000","v":{"$error":"#NAME?"}},{"$f":"(_xll.RiskData(NR_to_Cash!E$18,$A1092))/1000","v":{"$error":"#NAME?"}}]
[1086,{"$f":"_xll.RiskData('Risk Summary'!J$48,$A1093)/1000","v":{"$error":"#NAME?"}},{"$f":"_xll.RiskData('Risk Summary'!K$48,$A1093)/1000","v":{"$error":"#NAME?"}},{"$f":"_xll.RiskData('Risk Summary'!L$48,$A1093)/1000","v":{"$error":"#NAME?"}},null,null,{"$f":"(_xll.RiskData(NR_to_Cash!C$18,$A1093))/1000","v":{"$error":"#NAME?"}},{"$f":"(_xll.RiskData(NR_to_Cash!D$18,$A1093))/1000","v":{"$error":"#NAME?"}},{"$f":"(_xll.RiskData(NR_to_Cash!E$18,$A1093))/1000","v":{"$error":"#NAME?"}}]
[1087,{"$f":"_xll.RiskData('Risk Summary'!J$48,$A1094)/1000","v":{"$error":"#NAME?"}},{"$f":"_xll.RiskData('Risk Summary'!K$48,$A1094)/1000","v":{"$error":"#NAME?"}},{"$f":"_xll.RiskData('Risk Summary'!L$48,$A1094)/1000","v":{"$error":"#NAME?"}},null,null,{"$f":"(_xll.RiskData(NR_to_Cash!C$18,$A1094))/1000","v":{"$error":"#NAME?"}},{"$f":"(_xll.RiskData(NR_to_Cash!D$18,$A1094))/1000","v":{"$error":"#NAME?"}},{"$f":"(_xll.RiskData(NR_to_Cash!E$18,$A1094))/1000","v":{"$error":"#NAME?"}}]
[1088,{"$f":"_xll.RiskData('Risk Summary'!J$48,$A1095)/1000","v":{"$error":"#NAME?"}},{"$f":"_xll.RiskData('Risk Summary'!K$48,$A1095)/1000","v":{"$error":"#NAME?"}},{"$f":"_xll.RiskData('Risk Summary'!L$48,$A1095)/1000","v":{"$error":"#NAME?"}},null,null,{"$f":"(_xll.RiskData(NR_to_Cash!C$18,$A1095))/1000","v":{"$error":"#NAME?"}},{"$f":"(_xll.RiskData(NR_to_Cash!D$18,$A1095))/1000","v":{"$error":"#NAME?"}},{"$f":"(_xll.RiskData(NR_to_Cash!E$18,$A1095))/1000","v":{"$error":"#NAME?"}}]
[1089,{"$f":"_xll.RiskData('Risk Summary'!J$48,$A1096)/1000","v":{"$error":"#NAME?"}},{"$f":"_xll.RiskData('Risk Summary'!K$48,$A1096)/1000","v":{"$error":"#NAME?"}},{"$f":"_xll.RiskData('Risk Summary'!L$48,$A1096)/1000","v":{"$error":"#NAME?"}},null,null,{"$f":"(_xll.RiskData(NR_to_Cash!C$18,$A1096))/1000","v":{"$error":"#NAME?"}},{"$f":"(_xll.RiskData(NR_to_Cash!D$18,$A1096))/1000","v":{"$error":"#NAME?"}},{"$f":"(_xll.RiskData(NR_to_Cash!E$18,$A1096))/1000","v":{"$error":"#NAME?"}}]
[1090,{"$f":"_xll.RiskData('Risk Summary'!J$48,$A1097)/1000","v":{"$error":"#NAME?"}},{"$f":"_xll.RiskData('Risk Summary'!K$48,$A1097)/1000","v":{"$error":"#NAME?"}},{"$f":"_xll.RiskData('Risk Summary'!L$48,$A1097)/1000","v":{"$error":"#NAME?"}},null,null,{"$f":"(_xll.RiskData(NR_to_Cash!C$18,$A1097))/1000","v":{"$error":"#NAME?"}},{"$f":"(_xll.RiskData(NR_to_Cash!D$18,$A1097))/1000","v":{"$error":"#NAME?"}},{"$f":"(_xll.RiskData(NR_to_Cash!E$18,$A1097))/1000","v":{"$error":"#NAME?"}}]
[1091,{"$f":"_xll.RiskData('Risk Summary'!J$48,$A1098)/1000","v":{"$error":"#NAME?"}},{"$f":"_xll.RiskData('Risk Summary'!K$48,$A1098)/1000","v":{"$error":"#NAME?"}},{"$f":"_xll.RiskData('Risk Summary'!L$48,$A1098)/1000","v":{"$error":"#NAME?"}},null,null,{"$f":"(_xll.RiskData(NR_to_Cash!C$18,$A1098))/1000","v":{"$error":"#NAME?"}},{"$f":"(_xll.RiskData(NR_to_Cash!D$18,$A1098))/1000","v":{"$error":"#NAME?"}},{"$f":"(_xll.RiskData(NR_to_Cash!E$18,$A1098))/1000","v":{"$error":"#NAME?"}}]
[1092,{"$f":"_xll.RiskData('Risk Summary'!J$48,$A1099)/1000","v":{"$error":"#NAME?"}},{"$f":"_xll.RiskData('Risk Summary'!K$48,$A1099)/1000","v":{"$error":"#NAME?"}},{"$f":"_xll.RiskData('Risk Summary'!L$48,$A1099)/1000","v":{"$error":"#NAME?"}},null,null,{"$f":"(_xll.RiskData(NR_to_Cash!C$18,$A1099))/1000","v":{"$error":"#NAME?"}},{"$f":"(_xll.RiskData(NR_to_Cash!D$18,$A1099))/1000","v":{"$error":"#NAME?"}},{"$f":"(_xll.RiskData(NR_to_Cash!E$18,$A1099))/1000","v":{"$error":"#NAME?"}}]
[1093,{"$f":"_xll.RiskData('Risk Summary'!J$48,$A1100)/1000","v":{"$error":"#NAME?"}},{"$f":"_xll.RiskData('Risk Summary'!K$48,$A1100)/1000","v":{"$error":"#NAME?"}},{"$f":"_xll.RiskData('Risk Summary'!L$48,$A1100)/1000","v":{"$error":"#NAME?"}},null,null,{"$f":"(_xll.RiskData(NR_to_Cash!C$18,$A1100))/1000","v":{"$error":"#NAME?"}},{"$f":"(_xll.RiskData(NR_to_Cash!D$18,$A1100))/1000","v":{"$error":"#NAME?"}},{"$f":"(_xll.RiskData(NR_to_Cash!E$18,$A1100))/1000","v":{"$error":"#NAME?"}}]
[1094,{"$f":"_xll.RiskData('Risk Summary'!J$48,$A1101)/1000","v":{"$error":"#NAME?"}},{"$f":"_xll.RiskData('Risk Summary'!K$48,$A1101)/1000","v":{"$error":"#NAME?"}},{"$f":"_xll.RiskData('Risk Summary'!L$48,$A1101)/1000","v":{"$error":"#NAME?"}},null,null,{"$f":"(_xll.RiskData(NR_to_Cash!C$18,$A1101))/1000","v":{"$error":"#NAME?"}},{"$f":"(_xll.RiskData(NR_to_Cash!D$18,$A1101))/1000","v":{"$error":"#NAME?"}},{"$f":"(_xll.RiskData(NR_to_Cash!E$18,$A1101))/1000","v":{"$error":"#NAME?"}}]
[1095,{"$f":"_xll.RiskData('Risk Summary'!J$48,$A1102)/1000","v":{"$error":"#NAME?"}},{"$f":"_xll.RiskData('Risk Summary'!K$48,$A1102)/1000","v":{"$error":"#NAME?"}},{"$f":"_xll.RiskData('Risk Summary'!L$48,$A1102)/1000","v":{"$error":"#NAME?"}},null,null,{"$f":"(_xll.RiskData(NR_to_Cash!C$18,$A1102))/1000","v":{"$error":"#NAME?"}},{"$f":"(_xll.RiskData(NR_to_Cash!D$18,$A1102))/1000","v":{"$error":"#NAME?"}},{"$f":"(_xll.RiskData(NR_to_Cash!E$18,$A1102))/1000","v":{"$error":"#NAME?"}}]
[1096,{"$f":"_xll.RiskData('Risk Summary'!J$48,$A1103)/1000","v":{"$error":"#NAME?"}},{"$f":"_xll.RiskData('Risk Summary'!K$48,$A1103)/1000","v":{"$error":"#NAME?"}},{"$f":"_xll.RiskData('Risk Summary'!L$48,$A1103)/1000","v":{"$error":"#NAME?"}},null,null,{"$f":"(_xll.RiskData(NR_to_Cash!C$18,$A1103))/1000","v":{"$error":"#NAME?"}},{"$f":"(_xll.RiskData(NR_to_Cash!D$18,$A1103))/1000","v":{"$error":"#NAME?"}},{"$f":"(_xll.RiskData(NR_to_Cash!E$18,$A1103))/1000","v":{"$error":"#NAME?"}}]
[1097,{"$f":"_xll.RiskData('Risk Summary'!J$48,$A1104)/1000","v":{"$error":"#NAME?"}},{"$f":"_xll.RiskData('Risk Summary'!K$48,$A1104)/1000","v":{"$error":"#NAME?"}},{"$f":"_xll.RiskData('Risk Summary'!L$48,$A1104)/1000","v":{"$error":"#NAME?"}},null,null,{"$f":"(_xll.RiskData(NR_to_Cash!C$18,$A1104))/1000","v":{"$error":"#NAME?"}},{"$f":"(_xll.RiskData(NR_to_Cash!D$18,$A1104))/1000","v":{"$error":"#NAME?"}},{"$f":"(_xll.RiskData(NR_to_Cash!E$18,$A1104))/1000","v":{"$error":"#NAME?"}}]
[1098,{"$f":"_xll.RiskData('Risk Summary'!J$48,$A1105)/1000","v":{"$error":"#NAME?"}},{"$f":"_xll.RiskData('Risk Summary'!K$48,$A1105)/1000","v":{"$error":"#NAME?"}},{"$f":"_xll.RiskData('Risk Summary'!L$48,$A1105)/1000","v":{"$error":"#NAME?"}},null,null,{"$f":"(_xll.RiskData(NR_to_Cash!C$18,$A1105))/1000","v":{"$error":"#NAME?"}},{"$f":"(_xll.RiskData(NR_to_Cash!D$18,$A1105))/1000","v":{"$error":"#NAME?"}},{"$f":"(_xll.RiskData(NR_to_Cash!E$18,$A1105))/1000","v":{"$error":"#NAME?"}}]
[1099,{"$f":"_xll.RiskData('Risk Summary'!J$48,$A1106)/1000","v":{"$error":"#NAME?"}},{"$f":"_xll.RiskData('Risk Summary'!K$48,$A1106)/1000","v":{"$error":"#NAME?"}},{"$f":"_xll.RiskData('Risk Summary'!L$48,$A1106)/1000","v":{"$error":"#NAME?"}},null,null,{"$f":"(_xll.RiskData(NR_to_Cash!C$18,$A1106))/1000","v":{"$error":"#NAME?"}},{"$f":"(_xll.RiskData(NR_to_Cash!D$18,$A1106))/1000","v":{"$error":"#NAME?"}},{"$f":"(_xll.RiskData(NR_to_Cash!E$18,$A1106))/1000","v":{"$error":"#NAME?"}}]
[1100,{"$f":"_xll.RiskData('Risk Summary'!J$48,$A1107)/1000","v":{"$error":"#NAME?"}},{"$f":"_xll.RiskData('Risk Summary'!K$48,$A1107)/1000","v":{"$error":"#NAME?"}},{"$f":"_xll.RiskData('Risk Summary'!L$48,$A1107)/1000","v":{"$error":"#NAME?"}},null,null,{"$f":"(_xll.RiskData(NR_to_Cash!C$18,$A1107))/1000","v":{"$error":"#NAME?"}},{"$f":"(_xll.RiskData(NR_to_Cash!D$18,$A1107))/1000","v":{"$error":"#NAME?"}},{"$f":"(_xll.RiskData(NR_to_Cash!E$18,$A1107))/1000","v":{"$error":"#NAME?"}}]
[1101,{"$f":"_xll.RiskData('Risk Summary'!J$48,$A1108)/1000","v":{"$error":"#NAME?"}},{"$f":"_xll.RiskData('Risk Summary'!K$48,$A1108)/1000","v":{"$error":"#NAME?"}},{"$f":"_xll.RiskData('Risk Summary'!L$48,$A1108)/1000","v":{"$error":"#NAME?"}},null,null,{"$f":"(_xll.RiskData(NR_to_Cash!C$18,$A1108))/1000","v":{"$error":"#NAME?"}},{"$f":"(_xll.RiskData(NR_to_Cash!D$18,$A1108))/1000","v":{"$error":"#NAME?"}},{"$f":"(_xll.RiskData(NR_to_Cash!E$18,$A1108))/1000","v":{"$error":"#NAME?"}}]
[1102,{"$f":"_xll.RiskData('Risk Summary'!J$48,$A1109)/1000","v":{"$error":"#NAME?"}},{"$f":"_xll.RiskData('Risk Summary'!K$48,$A1109)/1000","v":{"$error":"#NAME?"}},{"$f":"_xll.RiskData('Risk Summary'!L$48,$A1109)/1000","v":{"$error":"#NAME?"}},null,null,{"$f":"(_xll.RiskData(NR_to_Cash!C$18,$A1109))/1000","v":{"$error":"#NAME?"}},{"$f":"(_xll.RiskData(NR_to_Cash!D$18,$A1109))/1000","v":{"$error":"#NAME?"}},{"$f":"(_xll.RiskData(NR_to_Cash!E$18,$A1109))/1000","v":{"$error":"#NAME?"}}]
[1103,{"$f":"_xll.RiskData('Risk Summary'!J$48,$A1110)/1000","v":{"$error":"#NAME?"}},{"$f":"_xll.RiskData('Risk Summary'!K$48,$A1110)/1000","v":{"$error":"#NAME?"}},{"$f":"_xll.RiskData('Risk Summary'!L$48,$A1110)/1000","v":{"$error":"#NAME?"}},null,null,{"$f":"(_xll.RiskData(NR_to_Cash!C$18,$A1110))/1000","v":{"$error":"#NAME?"}},{"$f":"(_xll.RiskData(NR_to_Cash!D$18,$A1110))/1000","v":{"$error":"#NAME?"}},{"$f":"(_xll.RiskData(NR_to_Cash!E$18,$A1110))/1000","v":{"$error":"#NAME?"}}]
[1104,{"$f":"_xll.RiskData('Risk Summary'!J$48,$A1111)/1000","v":{"$error":"#NAME?"}},{"$f":"_xll.RiskData('Risk Summary'!K$48,$A1111)/1000","v":{"$error":"#NAME?"}},{"$f":"_xll.RiskData('Risk Summary'!L$48,$A1111)/1000","v":{"$error":"#NAME?"}},null,null,{"$f":"(_xll.RiskData(NR_to_Cash!C$18,$A1111))/1000","v":{"$error":"#NAME?"}},{"$f":"(_xll.RiskData(NR_to_Cash!D$18,$A1111))/1000","v":{"$error":"#NAME?"}},{"$f":"(_xll.RiskData(NR_to_Cash!E$18,$A1111))/1000","v":{"$error":"#NAME?"}}]
[1105,{"$f":"_xll.RiskData('Risk Summary'!J$48,$A1112)/1000","v":{"$error":"#NAME?"}},{"$f":"_xll.RiskData('Risk Summary'!K$48,$A1112)/1000","v":{"$error":"#NAME?"}},{"$f":"_xll.RiskData('Risk Summary'!L$48,$A1112)/1000","v":{"$error":"#NAME?"}},null,null,{"$f":"(_xll.RiskData(NR_to_Cash!C$18,$A1112))/1000","v":{"$error":"#NAME?"}},{"$f":"(_xll.RiskData(NR_to_Cash!D$18,$A1112))/1000","v":{"$error":"#NAME?"}},{"$f":"(_xll.RiskData(NR_to_Cash!E$18,$A1112))/1000","v":{"$error":"#NAME?"}}]
[1106,{"$f":"_xll.RiskData('Risk Summary'!J$48,$A1113)/1000","v":{"$error":"#NAME?"}},{"$f":"_xll.RiskData('Risk Summary'!K$48,$A1113)/1000","v":{"$error":"#NAME?"}},{"$f":"_xll.RiskData('Risk Summary'!L$48,$A1113)/1000","v":{"$error":"#NAME?"}},null,null,{"$f":"(_xll.RiskData(NR_to_Cash!C$18,$A1113))/1000","v":{"$error":"#NAME?"}},{"$f":"(_xll.RiskData(NR_to_Cash!D$18,$A1113))/1000","v":{"$error":"#NAME?"}},{"$f":"(_xll.RiskData(NR_to_Cash!E$18,$A1113))/1000","v":{"$error":"#NAME?"}}]
[1107,{"$f":"_xll.RiskData('Risk Summary'!J$48,$A1114)/1000","v":{"$error":"#NAME?"}},{"$f":"_xll.RiskData('Risk Summary'!K$48,$A1114)/1000","v":{"$error":"#NAME?"}},{"$f":"_xll.RiskData('Risk Summary'!L$48,$A1114)/1000","v":{"$error":"#NAME?"}},null,null,{"$f":"(_xll.RiskData(NR_to_Cash!C$18,$A1114))/1000","v":{"$error":"#NAME?"}},{"$f":"(_xll.RiskData(NR_to_Cash!D$18,$A1114))/1000","v":{"$error":"#NAME?"}},{"$f":"(_xll.RiskData(NR_to_Cash!E$18,$A1114))/1000","v":{"$error":"#NAME?"}}]
[1108,{"$f":"_xll.RiskData('Risk Summary'!J$48,$A1115)/1000","v":{"$error":"#NAME?"}},{"$f":"_xll.RiskData('Risk Summary'!K$48,$A1115)/1000","v":{"$error":"#NAME?"}},{"$f":"_xll.RiskData('Risk Summary'!L$48,$A1115)/1000","v":{"$error":"#NAME?"}},null,null,{"$f":"(_xll.RiskData(NR_to_Cash!C$18,$A1115))/1000","v":{"$error":"#NAME?"}},{"$f":"(_xll.RiskData(NR_to_Cash!D$18,$A1115))/1000","v":{"$error":"#NAME?"}},{"$f":"(_xll.RiskData(NR_to_Cash!E$18,$A1115))/1000","v":{"$error":"#NAME?"}}]
[1109,{"$f":"_xll.RiskData('Risk Summary'!J$48,$A1116)/1000","v":{"$error":"#NAME?"}},{"$f":"_xll.RiskData('Risk Summary'!K$48,$A1116)/1000","v":{"$error":"#NAME?"}},{"$f":"_xll.RiskData('Risk Summary'!L$48,$A1116)/1000","v":{"$error":"#NAME?"}},null,null,{"$f":"(_xll.RiskData(NR_to_Cash!C$18,$A1116))/1000","v":{"$error":"#NAME?"}},{"$f":"(_xll.RiskData(NR_to_Cash!D$18,$A1116))/1000","v":{"$error":"#NAME?"}},{"$f":"(_xll.RiskData(NR_to_Cash!E$18,$A1116))/1000","v":{"$error":"#NAME?"}}]
[1110,{"$f":"_xll.RiskData('Risk Summary'!J$48,$A1117)/1000","v":{"$error":"#NAME?"}},{"$f":"_xll.RiskData('Risk Summary'!K$48,$A1117)/1000","v":{"$error":"#NAME?"}},{"$f":"_xll.RiskData('Risk Summary'!L$48,$A1117)/1000","v":{"$error":"#NAME?"}},null,null,{"$f":"(_xll.RiskData(NR_to_Cash!C$18,$A1117))/1000","v":{"$error":"#NAME?"}},{"$f":"(_xll.RiskData(NR_to_Cash!D$18,$A1117))/1000","v":{"$error":"#NAME?"}},{"$f":"(_xll.RiskData(NR_to_Cash!E$18,$A1117))/1000","v":{"$error":"#NAME?"}}]
[1111,{"$f":"_xll.RiskData('Risk Summary'!J$48,$A1118)/1000","v":{"$error":"#NAME?"}},{"$f":"_xll.RiskData('Risk Summary'!K$48,$A1118)/1000","v":{"$error":"#NAME?"}},{"$f":"_xll.RiskData('Risk Summary'!L$48,$A1118)/1000","v":{"$error":"#NAME?"}},null,null,{"$f":"(_xll.RiskData(NR_to_Cash!C$18,$A1118))/1000","v":{"$error":"#NAME?"}},{"$f":"(_xll.RiskData(NR_to_Cash!D$18,$A1118))/1000","v":{"$error":"#NAME?"}},{"$f":"(_xll.RiskData(NR_to_Cash!E$18,$A1118))/1000","v":{"$error":"#NAME?"}}]
[1112,{"$f":"_xll.RiskData('Risk Summary'!J$48,$A1119)/1000","v":{"$error":"#NAME?"}},{"$f":"_xll.RiskData('Risk Summary'!K$48,$A1119)/1000","v":{"$error":"#NAME?"}},{"$f":"_xll.RiskData('Risk Summary'!L$48,$A1119)/1000","v":{"$error":"#NAME?"}},null,null,{"$f":"(_xll.RiskData(NR_to_Cash!C$18,$A1119))/1000","v":{"$error":"#NAME?"}},{"$f":"(_xll.RiskData(NR_to_Cash!D$18,$A1119))/1000","v":{"$error":"#NAME?"}},{"$f":"(_xll.RiskData(NR_to_Cash!E$18,$A1119))/1000","v":{"$error":"#NAME?"}}]
[1113,{"$f":"_xll.RiskData('Risk Summary'!J$48,$A1120)/1000","v":{"$error":"#NAME?"}},{"$f":"_xll.RiskData('Risk Summary'!K$48,$A1120)/1000","v":{"$error":"#NAME?"}},{"$f":"_xll.RiskData('Risk Summary'!L$48,$A1120)/1000","v":{"$error":"#NAME?"}},null,null,{"$f":"(_xll.RiskData(NR_to_Cash!C$18,$A1120))/1000","v":{"$error":"#NAME?"}},{"$f":"(_xll.RiskData(NR_to_Cash!D$18,$A1120))/1000","v":{"$error":"#NAME?"}},{"$f":"(_xll.RiskData(NR_to_Cash!E$18,$A1120))/1000","v":{"$error":"#NAME?"}}]
[1114,{"$f":"_xll.RiskData('Risk Summary'!J$48,$A1121)/1000","v":{"$error":"#NAME?"}},{"$f":"_xll.RiskData('Risk Summary'!K$48,$A1121)/1000","v":{"$error":"#NAME?"}},{"$f":"_xll.RiskData('Risk Summary'!L$48,$A1121)/1000","v":{"$error":"#NAME?"}},null,null,{"$f":"(_xll.RiskData(NR_to_Cash!C$18,$A1121))/1000","v":{"$error":"#NAME?"}},{"$f":"(_xll.RiskData(NR_to_Cash!D$18,$A1121))/1000","v":{"$error":"#NAME?"}},{"$f":"(_xll.RiskData(NR_to_Cash!E$18,$A1121))/1000","v":{"$error":"#NAME?"}}]
[1115,{"$f":"_xll.RiskData('Risk Summary'!J$48,$A1122)/1000","v":{"$error":"#NAME?"}},{"$f":"_xll.RiskData('Risk Summary'!K$48,$A1122)/1000","v":{"$error":"#NAME?"}},{"$f":"_xll.RiskData('Risk Summary'!L$48,$A1122)/1000","v":{"$error":"#NAME?"}},null,null,{"$f":"(_xll.RiskData(NR_to_Cash!C$18,$A1122))/1000","v":{"$error":"#NAME?"}},{"$f":"(_xll.RiskData(NR_to_Cash!D$18,$A1122))/1000","v":{"$error":"#NAME?"}},{"$f":"(_xll.RiskData(NR_to_Cash!E$18,$A1122))/1000","v":{"$error":"#NAME?"}}]
[1116,{"$f":"_xll.RiskData('Risk Summary'!J$48,$A1123)/1000","v":{"$error":"#NAME?"}},{"$f":"_xll.RiskData('Risk Summary'!K$48,$A1123)/1000","v":{"$error":"#NAME?"}},{"$f":"_xll.RiskData('Risk Summary'!L$48,$A1123)/1000","v":{"$error":"#NAME?"}},null,null,{"$f":"(_xll.RiskData(NR_to_Cash!C$18,$A1123))/1000","v":{"$error":"#NAME?"}},{"$f":"(_xll.RiskData(NR_to_Cash!D$18,$A1123))/1000","v":{"$error":"#NAME?"}},{"$f":"(_xll.RiskData(NR_to_Cash!E$18,$A1123))/1000","v":{"$error":"#NAME?"}}]
[1117,{"$f":"_xll.RiskData('Risk Summary'!J$48,$A1124)/1000","v":{"$error":"#NAME?"}},{"$f":"_xll.RiskData('Risk Summary'!K$48,$A1124)/1000","v":{"$error":"#NAME?"}},{"$f":"_xll.RiskData('Risk Summary'!L$48,$A1124)/1000","v":{"$error":"#NAME?"}},null,null,{"$f":"(_xll.RiskData(NR_to_Cash!C$18,$A1124))/1000","v":{"$error":"#NAME?"}},{"$f":"(_xll.RiskData(NR_to_Cash!D$18,$A1124))/1000","v":{"$error":"#NAME?"}},{"$f":"(_xll.RiskData(NR_to_Cash!E$18,$A1124))/1000","v":{"$error":"#NAME?"}}]
[1118,{"$f":"_xll.RiskData('Risk Summary'!J$48,$A1125)/1000","v":{"$error":"#NAME?"}},{"$f":"_xll.RiskData('Risk Summary'!K$48,$A1125)/1000","v":{"$error":"#NAME?"}},{"$f":"_xll.RiskData('Risk Summary'!L$48,$A1125)/1000","v":{"$error":"#NAME?"}},null,null,{"$f":"(_xll.RiskData(NR_to_Cash!C$18,$A1125))/1000","v":{"$error":"#NAME?"}},{"$f":"(_xll.RiskData(NR_to_Cash!D$18,$A1125))/1000","v":{"$error":"#NAME?"}},{"$f":"(_xll.RiskData(NR_to_Cash!E$18,$A1125))/1000","v":{"$error":"#NAME?"}}]
[1119,{"$f":"_xll.RiskData('Risk Summary'!J$48,$A1126)/1000","v":{"$error":"#NAME?"}},{"$f":"_xll.RiskData('Risk Summary'!K$48,$A1126)/1000","v":{"$error":"#NAME?"}},{"$f":"_xll.RiskData('Risk Summary'!L$48,$A1126)/1000","v":{"$error":"#NAME?"}},null,null,{"$f":"(_xll.RiskData(NR_to_Cash!C$18,$A1126))/1000","v":{"$error":"#NAME?"}},{"$f":"(_xll.RiskData(NR_to_Cash!D$18,$A1126))/1000","v":{"$error":"#NAME?"}},{"$f":"(_xll.RiskData(NR_to_Cash!E$18,$A1126))/1000","v":{"$error":"#NAME?"}}]
[1120,{"$f":"_xll.RiskData('Risk Summary'!J$48,$A1127)/1000","v":{"$error":"#NAME?"}},{"$f":"_xll.RiskData('Risk Summary'!K$48,$A1127)/1000","v":{"$error":"#NAME?"}},{"$f":"_xll.RiskData('Risk Summary'!L$48,$A1127)/1000","v":{"$error":"#NAME?"}},null,null,{"$f":"(_xll.RiskData(NR_to_Cash!C$18,$A1127))/1000","v":{"$error":"#NAME?"}},{"$f":"(_xll.RiskData(NR_to_Cash!D$18,$A1127))/1000","v":{"$error":"#NAME?"}},{"$f":"(_xll.RiskData(NR_to_Cash!E$18,$A1127))/1000","v":{"$error":"#NAME?"}}]
[1121,{"$f":"_xll.RiskData('Risk Summary'!J$48,$A1128)/1000","v":{"$error":"#NAME?"}},{"$f":"_xll.RiskData('Risk Summary'!K$48,$A1128)/1000","v":{"$error":"#NAME?"}},{"$f":"_xll.RiskData('Risk Summary'!L$48,$A1128)/1000","v":{"$error":"#NAME?"}},null,null,{"$f":"(_xll.RiskData(NR_to_Cash!C$18,$A1128))/1000","v":{"$error":"#NAME?"}},{"$f":"(_xll.RiskData(NR_to_Cash!D$18,$A1128))/1000","v":{"$error":"#NAME?"}},{"$f":"(_xll.RiskData(NR_to_Cash!E$18,$A1128))/1000","v":{"$error":"#NAME?"}}]
[1122,{"$f":"_xll.RiskData('Risk Summary'!J$48,$A1129)/1000","v":{"$error":"#NAME?"}},{"$f":"_xll.RiskData('Risk Summary'!K$48,$A1129)/1000","v":{"$error":"#NAME?"}},{"$f":"_xll.RiskData('Risk Summary'!L$48,$A1129)/1000","v":{"$error":"#NAME?"}},null,null,{"$f":"(_xll.RiskData(NR_to_Cash!C$18,$A1129))/1000","v":{"$error":"#NAME?"}},{"$f":"(_xll.RiskData(NR_to_Cash!D$18,$A1129))/1000","v":{"$error":"#NAME?"}},{"$f":"(_xll.RiskData(NR_to_Cash!E$18,$A1129))/1000","v":{"$error":"#NAME?"}}]
[1123,{"$f":"_xll.RiskData('Risk Summary'!J$48,$A1130)/1000","v":{"$error":"#NAME?"}},{"$f":"_xll.RiskData('Risk Summary'!K$48,$A1130)/1000","v":{"$error":"#NAME?"}},{"$f":"_xll.RiskData('Risk Summary'!L$48,$A1130)/1000","v":{"$error":"#NAME?"}},null,null,{"$f":"(_xll.RiskData(NR_to_Cash!C$18,$A1130))/1000","v":{"$error":"#NAME?"}},{"$f":"(_xll.RiskData(NR_to_Cash!D$18,$A1130))/1000","v":{"$error":"#NAME?"}},{"$f":"(_xll.RiskData(NR_to_Cash!E$18,$A1130))/1000","v":{"$error":"#NAME?"}}]
[1124,{"$f":"_xll.RiskData('Risk Summary'!J$48,$A1131)/1000","v":{"$error":"#NAME?"}},{"$f":"_xll.RiskData('Risk Summary'!K$48,$A1131)/1000","v":{"$error":"#NAME?"}},{"$f":"_xll.RiskData('Risk Summary'!L$48,$A1131)/1000","v":{"$error":"#NAME?"}},null,null,{"$f":"(_xll.RiskData(NR_to_Cash!C$18,$A1131))/1000","v":{"$error":"#NAME?"}},{"$f":"(_xll.RiskData(NR_to_Cash!D$18,$A1131))/1000","v":{"$error":"#NAME?"}},{"$f":"(_xll.RiskData(NR_to_Cash!E$18,$A1131))/1000","v":{"$error":"#NAME?"}}]
[1125,{"$f":"_xll.RiskData('Risk Summary'!J$48,$A1132)/1000","v":{"$error":"#NAME?"}},{"$f":"_xll.RiskData('Risk Summary'!K$48,$A1132)/1000","v":{"$error":"#NAME?"}},{"$f":"_xll.RiskData('Risk Summary'!L$48,$A1132)/1000","v":{"$error":"#NAME?"}},null,null,{"$f":"(_xll.RiskData(NR_to_Cash!C$18,$A1132))/1000","v":{"$error":"#NAME?"}},{"$f":"(_xll.RiskData(NR_to_Cash!D$18,$A1132))/1000","v":{"$error":"#NAME?"}},{"$f":"(_xll.RiskData(NR_to_Cash!E$18,$A1132))/1000","v":{"$error":"#NAME?"}}]
[1126,{"$f":"_xll.RiskData('Risk Summary'!J$48,$A1133)/1000","v":{"$error":"#NAME?"}},{"$f":"_xll.RiskData('Risk Summary'!K$48,$A1133)/1000","v":{"$error":"#NAME?"}},{"$f":"_xll.RiskData('Risk Summary'!L$48,$A1133)/1000","v":{"$error":"#NAME?"}},null,null,{"$f":"(_xll.RiskData(NR_to_Cash!C$18,$A1133))/1000","v":{"$error":"#NAME?"}},{"$f":"(_xll.RiskData(NR_to_Cash!D$18,$A1133))/1000","v":{"$error":"#NAME?"}},{"$f":"(_xll.RiskData(NR_to_Cash!E$18,$A1133))/1000","v":{"$error":"#NAME?"}}]
[1127,{"$f":"_xll.RiskData('Risk Summary'!J$48,$A1134)/1000","v":{"$error":"#NAME?"}},{"$f":"_xll.RiskData('Risk Summary'!K$48,$A1134)/1000","v":{"$error":"#NAME?"}},{"$f":"_xll.RiskData('Risk Summary'!L$48,$A1134)/1000","v":{"$error":"#NAME?"}},null,null,{"$f":"(_xll.RiskData(NR_to_Cash!C$18,$A1134))/1000","v":{"$error":"#NAME?"}},{"$f":"(_xll.RiskData(NR_to_Cash!D$18,$A1134))/1000","v":{"$error":"#NAME?"}},{"$f":"(_xll.RiskData(NR_to_Cash!E$18,$A1134))/1000","v":{"$error":"#NAME?"}}]
[1128,{"$f":"_xll.RiskData('Risk Summary'!J$48,$A1135)/1000","v":{"$error":"#NAME?"}},{"$f":"_xll.RiskData('Risk Summary'!K$48,$A1135)/1000","v":{"$error":"#NAME?"}},{"$f":"_xll.RiskData('Risk Summary'!L$48,$A1135)/1000","v":{"$error":"#NAME?"}},null,null,{"$f":"(_xll.RiskData(NR_to_Cash!C$18,$A1135))/1000","v":{"$error":"#NAME?"}},{"$f":"(_xll.RiskData(NR_to_Cash!D$18,$A1135))/1000","v":{"$error":"#NAME?"}},{"$f":"(_xll.RiskData(NR_to_Cash!E$18,$A1135))/1000","v":{"$error":"#NAME?"}}]
[1129,{"$f":"_xll.RiskData('Risk Summary'!J$48,$A1136)/1000","v":{"$error":"#NAME?"}},{"$f":"_xll.RiskData('Risk Summary'!K$48,$A1136)/1000","v":{"$error":"#NAME?"}},{"$f":"_xll.RiskData('Risk Summary'!L$48,$A1136)/1000","v":{"$error":"#NAME?"}},null,null,{"$f":"(_xll.RiskData(NR_to_Cash!C$18,$A1136))/1000","v":{"$error":"#NAME?"}},{"$f":"(_xll.RiskData(NR_to_Cash!D$18,$A1136))/1000","v":{"$error":"#NAME?"}},{"$f":"(_xll.RiskData(NR_to_Cash!E$18,$A1136))/1000","v":{"$error":"#NAME?"}}]
[1130,{"$f":"_xll.RiskData('Risk Summary'!J$48,$A1137)/1000","v":{"$error":"#NAME?"}},{"$f":"_xll.RiskData('Risk Summary'!K$48,$A1137)/1000","v":{"$error":"#NAME?"}},{"$f":"_xll.RiskData('Risk Summary'!L$48,$A1137)/1000","v":{"$error":"#NAME?"}},null,null,{"$f":"(_xll.RiskData(NR_to_Cash!C$18,$A1137))/1000","v":{"$error":"#NAME?"}},{"$f":"(_xll.RiskData(NR_to_Cash!D$18,$A1137))/1000","v":{"$error":"#NAME?"}},{"$f":"(_xll.RiskData(NR_to_Cash!E$18,$A1137))/1000","v":{"$error":"#NAME?"}}]
[1131,{"$f":"_xll.RiskData('Risk Summary'!J$48,$A1138)/1000","v":{"$error":"#NAME?"}},{"$f":"_xll.RiskData('Risk Summary'!K$48,$A1138)/1000","v":{"$error":"#NAME?"}},{"$f":"_xll.RiskData('Risk Summary'!L$48,$A1138)/1000","v":{"$error":"#NAME?"}},null,null,{"$f":"(_xll.RiskData(NR_to_Cash!C$18,$A1138))/1000","v":{"$error":"#NAME?"}},{"$f":"(_xll.RiskData(NR_to_Cash!D$18,$A1138))/1000","v":{"$error":"#NAME?"}},{"$f":"(_xll.RiskData(NR_to_Cash!E$18,$A1138))/1000","v":{"$error":"#NAME?"}}]
[1132,{"$f":"_xll.RiskData('Risk Summary'!J$48,$A1139)/1000","v":{"$error":"#NAME?"}},{"$f":"_xll.RiskData('Risk Summary'!K$48,$A1139)/1000","v":{"$error":"#NAME?"}},{"$f":"_xll.RiskData('Risk Summary'!L$48,$A1139)/1000","v":{"$error":"#NAME?"}},null,null,{"$f":"(_xll.RiskData(NR_to_Cash!C$18,$A1139))/1000","v":{"$error":"#NAME?"}},{"$f":"(_xll.RiskData(NR_to_Cash!D$18,$A1139))/1000","v":{"$error":"#NAME?"}},{"$f":"(_xll.RiskData(NR_to_Cash!E$18,$A1139))/1000","v":{"$error":"#NAME?"}}]
[1133,{"$f":"_xll.RiskData('Risk Summary'!J$48,$A1140)/1000","v":{"$error":"#NAME?"}},{"$f":"_xll.RiskData('Risk Summary'!K$48,$A1140)/1000","v":{"$error":"#NAME?"}},{"$f":"_xll.RiskData('Risk Summary'!L$48,$A1140)/1000","v":{"$error":"#NAME?"}},null,null,{"$f":"(_xll.RiskData(NR_to_Cash!C$18,$A1140))/1000","v":{"$error":"#NAME?"}},{"$f":"(_xll.RiskData(NR_to_Cash!D$18,$A1140))/1000","v":{"$error":"#NAME?"}},{"$f":"(_xll.RiskData(NR_to_Cash!E$18,$A1140))/1000","v":{"$error":"#NAME?"}}]
[1134,{"$f":"_xll.RiskData('Risk Summary'!J$48,$A1141)/1000","v":{"$error":"#NAME?"}},{"$f":"_xll.RiskData('Risk Summary'!K$48,$A1141)/1000","v":{"$error":"#NAME?"}},{"$f":"_xll.RiskData('Risk Summary'!L$48,$A1141)/1000","v":{"$error":"#NAME?"}},null,null,{"$f":"(_xll.RiskData(NR_to_Cash!C$18,$A1141))/1000","v":{"$error":"#NAME?"}},{"$f":"(_xll.RiskData(NR_to_Cash!D$18,$A1141))/1000","v":{"$error":"#NAME?"}},{"$f":"(_xll.RiskData(NR_to_Cash!E$18,$A1141))/1000","v":{"$error":"#NAME?"}}]
[1135,{"$f":"_xll.RiskData('Risk Summary'!J$48,$A1142)/1000","v":{"$error":"#NAME?"}},{"$f":"_xll.RiskData('Risk Summary'!K$48,$A1142)/1000","v":{"$error":"#NAME?"}},{"$f":"_xll.RiskData('Risk Summary'!L$48,$A1142)/1000","v":{"$error":"#NAME?"}},null,null,{"$f":"(_xll.RiskData(NR_to_Cash!C$18,$A1142))/1000","v":{"$error":"#NAME?"}},{"$f":"(_xll.RiskData(NR_to_Cash!D$18,$A1142))/1000","v":{"$error":"#NAME?"}},{"$f":"(_xll.RiskData(NR_to_Cash!E$18,$A1142))/1000","v":{"$error":"#NAME?"}}]
[1136,{"$f":"_xll.RiskData('Risk Summary'!J$48,$A1143)/1000","v":{"$error":"#NAME?"}},{"$f":"_xll.RiskData('Risk Summary'!K$48,$A1143)/1000","v":{"$error":"#NAME?"}},{"$f":"_xll.RiskData('Risk Summary'!L$48,$A1143)/1000","v":{"$error":"#NAME?"}},null,null,{"$f":"(_xll.RiskData(NR_to_Cash!C$18,$A1143))/1000","v":{"$error":"#NAME?"}},{"$f":"(_xll.RiskData(NR_to_Cash!D$18,$A1143))/1000","v":{"$error":"#NAME?"}},{"$f":"(_xll.RiskData(NR_to_Cash!E$18,$A1143))/1000","v":{"$error":"#NAME?"}}]
[1137,{"$f":"_xll.RiskData('Risk Summary'!J$48,$A1144)/1000","v":{"$error":"#NAME?"}},{"$f":"_xll.RiskData('Risk Summary'!K$48,$A1144)/1000","v":{"$error":"#NAME?"}},{"$f":"_xll.RiskData('Risk Summary'!L$48,$A1144)/1000","v":{"$error":"#NAME?"}},null,null,{"$f":"(_xll.RiskData(NR_to_Cash!C$18,$A1144))/1000","v":{"$error":"#NAME?"}},{"$f":"(_xll.RiskData(NR_to_Cash!D$18,$A1144))/1000","v":{"$error":"#NAME?"}},{"$f":"(_xll.RiskData(NR_to_Cash!E$18,$A1144))/1000","v":{"$error":"#NAME?"}}]
[1138,{"$f":"_xll.RiskData('Risk Summary'!J$48,$A1145)/1000","v":{"$error":"#NAME?"}},{"$f":"_xll.RiskData('Risk Summary'!K$48,$A1145)/1000","v":{"$error":"#NAME?"}},{"$f":"_xll.RiskData('Risk Summary'!L$48,$A1145)/1000","v":{"$error":"#NAME?"}},null,null,{"$f":"(_xll.RiskData(NR_to_Cash!C$18,$A1145))/1000","v":{"$error":"#NAME?"}},{"$f":"(_xll.RiskData(NR_to_Cash!D$18,$A1145))/1000","v":{"$error":"#NAME?"}},{"$f":"(_xll.RiskData(NR_to_Cash!E$18,$A1145))/1000","v":{"$error":"#NAME?"}}]
[1139,{"$f":"_xll.RiskData('Risk Summary'!J$48,$A1146)/1000","v":{"$error":"#NAME?"}},{"$f":"_xll.RiskData('Risk Summary'!K$48,$A1146)/1000","v":{"$error":"#NAME?"}},{"$f":"_xll.RiskData('Risk Summary'!L$48,$A1146)/1000","v":{"$error":"#NAME?"}},null,null,{"$f":"(_xll.RiskData(NR_to_Cash!C$18,$A1146))/1000","v":{"$error":"#NAME?"}},{"$f":"(_xll.RiskData(NR_to_Cash!D$18,$A1146))/1000","v":{"$error":"#NAME?"}},{"$f":"(_xll.RiskData(NR_to_Cash!E$18,$A1146))/1000","v":{"$error":"#NAME?"}}]
[1140,{"$f":"_xll.RiskData('Risk Summary'!J$48,$A1147)/1000","v":{"$error":"#NAME?"}},{"$f":"_xll.RiskData('Risk Summary'!K$48,$A1147)/1000","v":{"$error":"#NAME?"}},{"$f":"_xll.RiskData('Risk Summary'!L$48,$A1147)/1000","v":{"$error":"#NAME?"}},null,null,{"$f":"(_xll.RiskData(NR_to_Cash!C$18,$A1147))/1000","v":{"$error":"#NAME?"}},{"$f":"(_xll.RiskData(NR_to_Cash!D$18,$A1147))/1000","v":{"$error":"#NAME?"}},{"$f":"(_xll.RiskData(NR_to_Cash!E$18,$A1147))/1000","v":{"$error":"#NAME?"}}]
[1141,{"$f":"_xll.RiskData('Risk Summary'!J$48,$A1148)/1000","v":{"$error":"#NAME?"}},{"$f":"_xll.RiskData('Risk Summary'!K$48,$A1148)/1000","v":{"$error":"#NAME?"}},{"$f":"_xll.RiskData('Risk Summary'!L$48,$A1148)/1000","v":{"$error":"#NAME?"}},null,null,{"$f":"(_xll.RiskData(NR_to_Cash!C$18,$A1148))/1000","v":{"$error":"#NAME?"}},{"$f":"(_xll.RiskData(NR_to_Cash!D$18,$A1148))/1000","v":{"$error":"#NAME?"}},{"$f":"(_xll.RiskData(NR_to_Cash!E$18,$A1148))/1000","v":{"$error":"#NAME?"}}]
[1142,{"$f":"_xll.RiskData('Risk Summary'!J$48,$A1149)/1000","v":{"$error":"#NAME?"}},{"$f":"_xll.RiskData('Risk Summary'!K$48,$A1149)/1000","v":{"$error":"#NAME?"}},{"$f":"_xll.RiskData('Risk Summary'!L$48,$A1149)/1000","v":{"$error":"#NAME?"}},null,null,{"$f":"(_xll.RiskData(NR_to_Cash!C$18,$A1149))/1000","v":{"$error":"#NAME?"}},{"$f":"(_xll.RiskData(NR_to_Cash!D$18,$A1149))/1000","v":{"$error":"#NAME?"}},{"$f":"(_xll.RiskData(NR_to_Cash!E$18,$A1149))/1000","v":{"$error":"#NAME?"}}]
[1143,{"$f":"_xll.RiskData('Risk Summary'!J$48,$A1150)/1000","v":{"$error":"#NAME?"}},{"$f":"_xll.RiskData('Risk Summary'!K$48,$A1150)/1000","v":{"$error":"#NAME?"}},{"$f":"_xll.RiskData('Risk Summary'!L$48,$A1150)/1000","v":{"$error":"#NAME?"}},null,null,{"$f":"(_xll.RiskData(NR_to_Cash!C$18,$A1150))/1000","v":{"$error":"#NAME?"}},{"$f":"(_xll.RiskData(NR_to_Cash!D$18,$A1150))/1000","v":{"$error":"#NAME?"}},{"$f":"(_xll.RiskData(NR_to_Cash!E$18,$A1150))/1000","v":{"$error":"#NAME?"}}]
[1144,{"$f":"_xll.RiskData('Risk Summary'!J$48,$A1151)/1000","v":{"$error":"#NAME?"}},{"$f":"_xll.RiskData('Risk Summary'!K$48,$A1151)/1000","v":{"$error":"#NAME?"}},{"$f":"_xll.RiskData('Risk Summary'!L$48,$A1151)/1000","v":{"$error":"#NAME?"}},null,null,{"$f":"(_xll.RiskData(NR_to_Cash!C$18,$A1151))/1000","v":{"$error":"#NAME?"}},{"$f":"(_xll.RiskData(NR_to_Cash!D$18,$A1151))/1000","v":{"$error":"#NAME?"}},{"$f":"(_xll.RiskData(NR_to_Cash!E$18,$A1151))/1000","v":{"$error":"#NAME?"}}]
[1145,{"$f":"_xll.RiskData('Risk Summary'!J$48,$A1152)/1000","v":{"$error":"#NAME?"}},{"$f":"_xll.RiskData('Risk Summary'!K$48,$A1152)/1000","v":{"$error":"#NAME?"}},{"$f":"_xll.RiskData('Risk Summary'!L$48,$A1152)/1000","v":{"$error":"#NAME?"}},null,null,{"$f":"(_xll.RiskData(NR_to_Cash!C$18,$A1152))/1000","v":{"$error":"#NAME?"}},{"$f":"(_xll.RiskData(NR_to_Cash!D$18,$A1152))/1000","v":{"$error":"#NAME?"}},{"$f":"(_xll.RiskData(NR_to_Cash!E$18,$A1152))/1000","v":{"$error":"#NAME?"}}]
[1146,{"$f":"_xll.RiskData('Risk Summary'!J$48,$A1153)/1000","v":{"$error":"#NAME?"}},{"$f":"_xll.RiskData('Risk Summary'!K$48,$A1153)/1000","v":{"$error":"#NAME?"}},{"$f":"_xll.RiskData('Risk Summary'!L$48,$A1153)/1000","v":{"$error":"#NAME?"}},null,null,{"$f":"(_xll.RiskData(NR_to_Cash!C$18,$A1153))/1000","v":{"$error":"#NAME?"}},{"$f":"(_xll.RiskData(NR_to_Cash!D$18,$A1153))/1000","v":{"$error":"#NAME?"}},{"$f":"(_xll.RiskData(NR_to_Cash!E$18,$A1153))/1000","v":{"$error":"#NAME?"}}]
[1147,{"$f":"_xll.RiskData('Risk Summary'!J$48,$A1154)/1000","v":{"$error":"#NAME?"}},{"$f":"_xll.RiskData('Risk Summary'!K$48,$A1154)/1000","v":{"$error":"#NAME?"}},{"$f":"_xll.RiskData('Risk Summary'!L$48,$A1154)/1000","v":{"$error":"#NAME?"}},null,null,{"$f":"(_xll.RiskData(NR_to_Cash!C$18,$A1154))/1000","v":{"$error":"#NAME?"}},{"$f":"(_xll.RiskData(NR_to_Cash!D$18,$A1154))/1000","v":{"$error":"#NAME?"}},{"$f":"(_xll.RiskData(NR_to_Cash!E$18,$A1154))/1000","v":{"$error":"#NAME?"}}]
[1148,{"$f":"_xll.RiskData('Risk Summary'!J$48,$A1155)/1000","v":{"$error":"#NAME?"}},{"$f":"_xll.RiskData('Risk Summary'!K$48,$A1155)/1000","v":{"$error":"#NAME?"}},{"$f":"_xll.RiskData('Risk Summary'!L$48,$A1155)/1000","v":{"$error":"#NAME?"}},null,null,{"$f":"(_xll.RiskData(NR_to_Cash!C$18,$A1155))/1000","v":{"$error":"#NAME?"}},{"$f":"(_xll.RiskData(NR_to_Cash!D$18,$A1155))/1000","v":{"$error":"#NAME?"}},{"$f":"(_xll.RiskData(NR_to_Cash!E$18,$A1155))/1000","v":{"$error":"#NAME?"}}]
[1149,{"$f":"_xll.RiskData('Risk Summary'!J$48,$A1156)/1000","v":{"$error":"#NAME?"}},{"$f":"_xll.RiskData('Risk Summary'!K$48,$A1156)/1000","v":{"$error":"#NAME?"}},{"$f":"_xll.RiskData('Risk Summary'!L$48,$A1156)/1000","v":{"$error":"#NAME?"}},null,null,{"$f":"(_xll.RiskData(NR_to_Cash!C$18,$A1156))/1000","v":{"$error":"#NAME?"}},{"$f":"(_xll.RiskData(NR_to_Cash!D$18,$A1156))/1000","v":{"$error":"#NAME?"}},{"$f":"(_xll.RiskData(NR_to_Cash!E$18,$A1156))/1000","v":{"$error":"#NAME?"}}]
[1150,{"$f":"_xll.RiskData('Risk Summary'!J$48,$A1157)/1000","v":{"$error":"#NAME?"}},{"$f":"_xll.RiskData('Risk Summary'!K$48,$A1157)/1000","v":{"$error":"#NAME?"}},{"$f":"_xll.RiskData('Risk Summary'!L$48,$A1157)/1000","v":{"$error":"#NAME?"}},null,null,{"$f":"(_xll.RiskData(NR_to_Cash!C$18,$A1157))/1000","v":{"$error":"#NAME?"}},{"$f":"(_xll.RiskData(NR_to_Cash!D$18,$A1157))/1000","v":{"$error":"#NAME?"}},{"$f":"(_xll.RiskData(NR_to_Cash!E$18,$A1157))/1000","v":{"$error":"#NAME?"}}]
[1151,{"$f":"_xll.RiskData('Risk Summary'!J$48,$A1158)/1000","v":{"$error":"#NAME?"}},{"$f":"_xll.RiskData('Risk Summary'!K$48,$A1158)/1000","v":{"$error":"#NAME?"}},{"$f":"_xll.RiskData('Risk Summary'!L$48,$A1158)/1000","v":{"$error":"#NAME?"}},null,null,{"$f":"(_xll.RiskData(NR_to_Cash!C$18,$A1158))/1000","v":{"$error":"#NAME?"}},{"$f":"(_xll.RiskData(NR_to_Cash!D$18,$A1158))/1000","v":{"$error":"#NAME?"}},{"$f":"(_xll.RiskData(NR_to_Cash!E$18,$A1158))/1000","v":{"$error":"#NAME?"}}]
[1152,{"$f":"_xll.RiskData('Risk Summary'!J$48,$A1159)/1000","v":{"$error":"#NAME?"}},{"$f":"_xll.RiskData('Risk Summary'!K$48,$A1159)/1000","v":{"$error":"#NAME?"}},{"$f":"_xll.RiskData('Risk Summary'!L$48,$A1159)/1000","v":{"$error":"#NAME?"}},null,null,{"$f":"(_xll.RiskData(NR_to_Cash!C$18,$A1159))/1000","v":{"$error":"#NAME?"}},{"$f":"(_xll.RiskData(NR_to_Cash!D$18,$A1159))/1000","v":{"$error":"#NAME?"}},{"$f":"(_xll.RiskData(NR_to_Cash!E$18,$A1159))/1000","v":{"$error":"#NAME?"}}]
[1153,{"$f":"_xll.RiskData('Risk Summary'!J$48,$A1160)/1000","v":{"$error":"#NAME?"}},{"$f":"_xll.RiskData('Risk Summary'!K$48,$A1160)/1000","v":{"$error":"#NAME?"}},{"$f":"_xll.RiskData('Risk Summary'!L$48,$A1160)/1000","v":{"$error":"#NAME?"}},null,null,{"$f":"(_xll.RiskData(NR_to_Cash!C$18,$A1160))/1000","v":{"$error":"#NAME?"}},{"$f":"(_xll.RiskData(NR_to_Cash!D$18,$A1160))/1000","v":{"$error":"#NAME?"}},{"$f":"(_xll.RiskData(NR_to_Cash!E$18,$A1160))/1000","v":{"$error":"#NAME?"}}]
[1154,{"$f":"_xll.RiskData('Risk Summary'!J$48,$A1161)/1000","v":{"$error":"#NAME?"}},{"$f":"_xll.RiskData('Risk Summary'!K$48,$A1161)/1000","v":{"$error":"#NAME?"}},{"$f":"_xll.RiskData('Risk Summary'!L$48,$A1161)/1000","v":{"$error":"#NAME?"}},null,null,{"$f":"(_xll.RiskData(NR_to_Cash!C$18,$A1161))/1000","v":{"$error":"#NAME?"}},{"$f":"(_xll.RiskData(NR_to_Cash!D$18,$A1161))/1000","v":{"$error":"#NAME?"}},{"$f":"(_xll.RiskData(NR_to_Cash!E$18,$A1161))/1000","v":{"$error":"#NAME?"}}]
[1155,{"$f":"_xll.RiskData('Risk Summary'!J$48,$A1162)/1000","v":{"$error":"#NAME?"}},{"$f":"_xll.RiskData('Risk Summary'!K$48,$A1162)/1000","v":{"$error":"#NAME?"}},{"$f":"_xll.RiskData('Risk Summary'!L$48,$A1162)/1000","v":{"$error":"#NAME?"}},null,null,{"$f":"(_xll.RiskData(NR_to_Cash!C$18,$A1162))/1000","v":{"$error":"#NAME?"}},{"$f":"(_xll.RiskData(NR_to_Cash!D$18,$A1162))/1000","v":{"$error":"#NAME?"}},{"$f":"(_xll.RiskData(NR_to_Cash!E$18,$A1162))/1000","v":{"$error":"#NAME?"}}]
[1156,{"$f":"_xll.RiskData('Risk Summary'!J$48,$A1163)/1000","v":{"$error":"#NAME?"}},{"$f":"_xll.RiskData('Risk Summary'!K$48,$A1163)/1000","v":{"$error":"#NAME?"}},{"$f":"_xll.RiskData('Risk Summary'!L$48,$A1163)/1000","v":{"$error":"#NAME?"}},null,null,{"$f":"(_xll.RiskData(NR_to_Cash!C$18,$A1163))/1000","v":{"$error":"#NAME?"}},{"$f":"(_xll.RiskData(NR_to_Cash!D$18,$A1163))/1000","v":{"$error":"#NAME?"}},{"$f":"(_xll.RiskData(NR_to_Cash!E$18,$A1163))/1000","v":{"$error":"#NAME?"}}]
[1157,{"$f":"_xll.RiskData('Risk Summary'!J$48,$A1164)/1000","v":{"$error":"#NAME?"}},{"$f":"_xll.RiskData('Risk Summary'!K$48,$A1164)/1000","v":{"$error":"#NAME?"}},{"$f":"_xll.RiskData('Risk Summary'!L$48,$A1164)/1000","v":{"$error":"#NAME?"}},null,null,{"$f":"(_xll.RiskData(NR_to_Cash!C$18,$A1164))/1000","v":{"$error":"#NAME?"}},{"$f":"(_xll.RiskData(NR_to_Cash!D$18,$A1164))/1000","v":{"$error":"#NAME?"}},{"$f":"(_xll.RiskData(NR_to_Cash!E$18,$A1164))/1000","v":{"$error":"#NAME?"}}]
[1158,{"$f":"_xll.RiskData('Risk Summary'!J$48,$A1165)/1000","v":{"$error":"#NAME?"}},{"$f":"_xll.RiskData('Risk Summary'!K$48,$A1165)/1000","v":{"$error":"#NAME?"}},{"$f":"_xll.RiskData('Risk Summary'!L$48,$A1165)/1000","v":{"$error":"#NAME?"}},null,null,{"$f":"(_xll.RiskData(NR_to_Cash!C$18,$A1165))/1000","v":{"$error":"#NAME?"}},{"$f":"(_xll.RiskData(NR_to_Cash!D$18,$A1165))/1000","v":{"$error":"#NAME?"}},{"$f":"(_xll.RiskData(NR_to_Cash!E$18,$A1165))/1000","v":{"$error":"#NAME?"}}]
[1159,{"$f":"_xll.RiskData('Risk Summary'!J$48,$A1166)/1000","v":{"$error":"#NAME?"}},{"$f":"_xll.RiskData('Risk Summary'!K$48,$A1166)/1000","v":{"$error":"#NAME?"}},{"$f":"_xll.RiskData('Risk Summary'!L$48,$A1166)/1000","v":{"$error":"#NAME?"}},null,null,{"$f":"(_xll.RiskData(NR_to_Cash!C$18,$A1166))/1000","v":{"$error":"#NAME?"}},{"$f":"(_xll.RiskData(NR_to_Cash!D$18,$A1166))/1000","v":{"$error":"#NAME?"}},{"$f":"(_xll.RiskData(NR_to_Cash!E$18,$A1166))/1000","v":{"$error":"#NAME?"}}]
[1160,{"$f":"_xll.RiskData('Risk Summary'!J$48,$A1167)/1000","v":{"$error":"#NAME?"}},{"$f":"_xll.RiskData('Risk Summary'!K$48,$A1167)/1000","v":{"$error":"#NAME?"}},{"$f":"_xll.RiskData('Risk Summary'!L$48,$A1167)/1000","v":{"$error":"#NAME?"}},null,null,{"$f":"(_xll.RiskData(NR_to_Cash!C$18,$A1167))/1000","v":{"$error":"#NAME?"}},{"$f":"(_xll.RiskData(NR_to_Cash!D$18,$A1167))/1000","v":{"$error":"#NAME?"}},{"$f":"(_xll.RiskData(NR_to_Cash!E$18,$A1167))/1000","v":{"$error":"#NAME?"}}]
[1161,{"$f":"_xll.RiskData('Risk Summary'!J$48,$A1168)/1000","v":{"$error":"#NAME?"}},{"$f":"_xll.RiskData('Risk Summary'!K$48,$A1168)/1000","v":{"$error":"#NAME?"}},{"$f":"_xll.RiskData('Risk Summary'!L$48,$A1168)/1000","v":{"$error":"#NAME?"}},null,null,{"$f":"(_xll.RiskData(NR_to_Cash!C$18,$A1168))/1000","v":{"$error":"#NAME?"}},{"$f":"(_xll.RiskData(NR_to_Cash!D$18,$A1168))/1000","v":{"$error":"#NAME?"}},{"$f":"(_xll.RiskData(NR_to_Cash!E$18,$A1168))/1000","v":{"$error":"#NAME?"}}]
[1162,{"$f":"_xll.RiskData('Risk Summary'!J$48,$A1169)/1000","v":{"$error":"#NAME?"}},{"$f":"_xll.RiskData('Risk Summary'!K$48,$A1169)/1000","v":{"$error":"#NAME?"}},{"$f":"_xll.RiskData('Risk Summary'!L$48,$A1169)/1000","v":{"$error":"#NAME?"}},null,null,{"$f":"(_xll.RiskData(NR_to_Cash!C$18,$A1169))/1000","v":{"$error":"#NAME?"}},{"$f":"(_xll.RiskData(NR_to_Cash!D$18,$A1169))/1000","v":{"$error":"#NAME?"}},{"$f":"(_xll.RiskData(NR_to_Cash!E$18,$A1169))/1000","v":{"$error":"#NAME?"}}]
[1163,{"$f":"_xll.RiskData('Risk Summary'!J$48,$A1170)/1000","v":{"$error":"#NAME?"}},{"$f":"_xll.RiskData('Risk Summary'!K$48,$A1170)/1000","v":{"$error":"#NAME?"}},{"$f":"_xll.RiskData('Risk Summary'!L$48,$A1170)/1000","v":{"$error":"#NAME?"}},null,null,{"$f":"(_xll.RiskData(NR_to_Cash!C$18,$A1170))/1000","v":{"$error":"#NAME?"}},{"$f":"(_xll.RiskData(NR_to_Cash!D$18,$A1170))/1000","v":{"$error":"#NAME?"}},{"$f":"(_xll.RiskData(NR_to_Cash!E$18,$A1170))/1000","v":{"$error":"#NAME?"}}]
[1164,{"$f":"_xll.RiskData('Risk Summary'!J$48,$A1171)/1000","v":{"$error":"#NAME?"}},{"$f":"_xll.RiskData('Risk Summary'!K$48,$A1171)/1000","v":{"$error":"#NAME?"}},{"$f":"_xll.RiskData('Risk Summary'!L$48,$A1171)/1000","v":{"$error":"#NAME?"}},null,null,{"$f":"(_xll.RiskData(NR_to_Cash!C$18,$A1171))/1000","v":{"$error":"#NAME?"}},{"$f":"(_xll.RiskData(NR_to_Cash!D$18,$A1171))/1000","v":{"$error":"#NAME?"}},{"$f":"(_xll.RiskData(NR_to_Cash!E$18,$A1171))/1000","v":{"$error":"#NAME?"}}]
[1165,{"$f":"_xll.RiskData('Risk Summary'!J$48,$A1172)/1000","v":{"$error":"#NAME?"}},{"$f":"_xll.RiskData('Risk Summary'!K$48,$A1172)/1000","v":{"$error":"#NAME?"}},{"$f":"_xll.RiskData('Risk Summary'!L$48,$A1172)/1000","v":{"$error":"#NAME?"}},null,null,{"$f":"(_xll.RiskData(NR_to_Cash!C$18,$A1172))/1000","v":{"$error":"#NAME?"}},{"$f":"(_xll.RiskData(NR_to_Cash!D$18,$A1172))/1000","v":{"$error":"#NAME?"}},{"$f":"(_xll.RiskData(NR_to_Cash!E$18,$A1172))/1000","v":{"$error":"#NAME?"}}]
[1166,{"$f":"_xll.RiskData('Risk Summary'!J$48,$A1173)/1000","v":{"$error":"#NAME?"}},{"$f":"_xll.RiskData('Risk Summary'!K$48,$A1173)/1000","v":{"$error":"#NAME?"}},{"$f":"_xll.RiskData('Risk Summary'!L$48,$A1173)/1000","v":{"$error":"#NAME?"}},null,null,{"$f":"(_xll.RiskData(NR_to_Cash!C$18,$A1173))/1000","v":{"$error":"#NAME?"}},{"$f":"(_xll.RiskData(NR_to_Cash!D$18,$A1173))/1000","v":{"$error":"#NAME?"}},{"$f":"(_xll.RiskData(NR_to_Cash!E$18,$A1173))/1000","v":{"$error":"#NAME?"}}]
[1167,{"$f":"_xll.RiskData('Risk Summary'!J$48,$A1174)/1000","v":{"$error":"#NAME?"}},{"$f":"_xll.RiskData('Risk Summary'!K$48,$A1174)/1000","v":{"$error":"#NAME?"}},{"$f":"_xll.RiskData('Risk Summary'!L$48,$A1174)/1000","v":{"$error":"#NAME?"}},null,null,{"$f":"(_xll.RiskData(NR_to_Cash!C$18,$A1174))/1000","v":{"$error":"#NAME?"}},{"$f":"(_xll.RiskData(NR_to_Cash!D$18,$A1174))/1000","v":{"$error":"#NAME?"}},{"$f":"(_xll.RiskData(NR_to_Cash!E$18,$A1174))/1000","v":{"$error":"#NAME?"}}]
[1168,{"$f":"_xll.RiskData('Risk Summary'!J$48,$A1175)/1000","v":{"$error":"#NAME?"}},{"$f":"_xll.RiskData('Risk Summary'!K$48,$A1175)/1000","v":{"$error":"#NAME?"}},{"$f":"_xll.RiskData('Risk Summary'!L$48,$A1175)/1000","v":{"$error":"#NAME?"}},null,null,{"$f":"(_xll.RiskData(NR_to_Cash!C$18,$A1175))/1000","v":{"$error":"#NAME?"}},{"$f":"(_xll.RiskData(NR_to_Cash!D$18,$A1175))/1000","v":{"$error":"#NAME?"}},{"$f":"(_xll.RiskData(NR_to_Cash!E$18,$A1175))/1000","v":{"$error":"#NAME?"}}]
[1169,{"$f":"_xll.RiskData('Risk Summary'!J$48,$A1176)/1000","v":{"$error":"#NAME?"}},{"$f":"_xll.RiskData('Risk Summary'!K$48,$A1176)/1000","v":{"$error":"#NAME?"}},{"$f":"_xll.RiskData('Risk Summary'!L$48,$A1176)/1000","v":{"$error":"#NAME?"}},null,null,{"$f":"(_xll.RiskData(NR_to_Cash!C$18,$A1176))/1000","v":{"$error":"#NAME?"}},{"$f":"(_xll.RiskData(NR_to_Cash!D$18,$A1176))/1000","v":{"$error":"#NAME?"}},{"$f":"(_xll.RiskData(NR_to_Cash!E$18,$A1176))/1000","v":{"$error":"#NAME?"}}]
[1170,{"$f":"_xll.RiskData('Risk Summary'!J$48,$A1177)/1000","v":{"$error":"#NAME?"}},{"$f":"_xll.RiskData('Risk Summary'!K$48,$A1177)/1000","v":{"$error":"#NAME?"}},{"$f":"_xll.RiskData('Risk Summary'!L$48,$A1177)/1000","v":{"$error":"#NAME?"}},null,null,{"$f":"(_xll.RiskData(NR_to_Cash!C$18,$A1177))/1000","v":{"$error":"#NAME?"}},{"$f":"(_xll.RiskData(NR_to_Cash!D$18,$A1177))/1000","v":{"$error":"#NAME?"}},{"$f":"(_xll.RiskData(NR_to_Cash!E$18,$A1177))/1000","v":{"$error":"#NAME?"}}]
[1171,{"$f":"_xll.RiskData('Risk Summary'!J$48,$A1178)/1000","v":{"$error":"#NAME?"}},{"$f":"_xll.RiskData('Risk Summary'!K$48,$A1178)/1000","v":{"$error":"#NAME?"}},{"$f":"_xll.RiskData('Risk Summary'!L$48,$A1178)/1000","v":{"$error":"#NAME?"}},null,null,{"$f":"(_xll.RiskData(NR_to_Cash!C$18,$A1178))/1000","v":{"$error":"#NAME?"}},{"$f":"(_xll.RiskData(NR_to_Cash!D$18,$A1178))/1000","v":{"$error":"#NAME?"}},{"$f":"(_xll.RiskData(NR_to_Cash!E$18,$A1178))/1000","v":{"$error":"#NAME?"}}]
[1172,{"$f":"_xll.RiskData('Risk Summary'!J$48,$A1179)/1000","v":{"$error":"#NAME?"}},{"$f":"_xll.RiskData('Risk Summary'!K$48,$A1179)/1000","v":{"$error":"#NAME?"}},{"$f":"_xll.RiskData('Risk Summary'!L$48,$A1179)/1000","v":{"$error":"#NAME?"}},null,null,{"$f":"(_xll.RiskData(NR_to_Cash!C$18,$A1179))/1000","v":{"$error":"#NAME?"}},{"$f":"(_xll.RiskData(NR_to_Cash!D$18,$A1179))/1000","v":{"$error":"#NAME?"}},{"$f":"(_xll.RiskData(NR_to_Cash!E$18,$A1179))/1000","v":{"$error":"#NAME?"}}]
[1173,{"$f":"_xll.RiskData('Risk Summary'!J$48,$A1180)/1000","v":{"$error":"#NAME?"}},{"$f":"_xll.RiskData('Risk Summary'!K$48,$A1180)/1000","v":{"$error":"#NAME?"}},{"$f":"_xll.RiskData('Risk Summary'!L$48,$A1180)/1000","v":{"$error":"#NAME?"}},null,null,{"$f":"(_xll.RiskData(NR_to_Cash!C$18,$A1180))/1000","v":{"$error":"#NAME?"}},{"$f":"(_xll.RiskData(NR_to_Cash!D$18,$A1180))/1000","v":{"$error":"#NAME?"}},{"$f":"(_xll.RiskData(NR_to_Cash!E$18,$A1180))/1000","v":{"$error":"#NAME?"}}]
[1174,{"$f":"_xll.RiskData('Risk Summary'!J$48,$A1181)/1000","v":{"$error":"#NAME?"}},{"$f":"_xll.RiskData('Risk Summary'!K$48,$A1181)/1000","v":{"$error":"#NAME?"}},{"$f":"_xll.RiskData('Risk Summary'!L$48,$A1181)/1000","v":{"$error":"#NAME?"}},null,null,{"$f":"(_xll.RiskData(NR_to_Cash!C$18,$A1181))/1000","v":{"$error":"#NAME?"}},{"$f":"(_xll.RiskData(NR_to_Cash!D$18,$A1181))/1000","v":{"$error":"#NAME?"}},{"$f":"(_xll.RiskData(NR_to_Cash!E$18,$A1181))/1000","v":{"$error":"#NAME?"}}]
[1175,{"$f":"_xll.RiskData('Risk Summary'!J$48,$A1182)/1000","v":{"$error":"#NAME?"}},{"$f":"_xll.RiskData('Risk Summary'!K$48,$A1182)/1000","v":{"$error":"#NAME?"}},{"$f":"_xll.RiskData('Risk Summary'!L$48,$A1182)/1000","v":{"$error":"#NAME?"}},null,null,{"$f":"(_xll.RiskData(NR_to_Cash!C$18,$A1182))/1000","v":{"$error":"#NAME?"}},{"$f":"(_xll.RiskData(NR_to_Cash!D$18,$A1182))/1000","v":{"$error":"#NAME?"}},{"$f":"(_xll.RiskData(NR_to_Cash!E$18,$A1182))/1000","v":{"$error":"#NAME?"}}]
[1176,{"$f":"_xll.RiskData('Risk Summary'!J$48,$A1183)/1000","v":{"$error":"#NAME?"}},{"$f":"_xll.RiskData('Risk Summary'!K$48,$A1183)/1000","v":{"$error":"#NAME?"}},{"$f":"_xll.RiskData('Risk Summary'!L$48,$A1183)/1000","v":{"$error":"#NAME?"}},null,null,{"$f":"(_xll.RiskData(NR_to_Cash!C$18,$A1183))/1000","v":{"$error":"#NAME?"}},{"$f":"(_xll.RiskData(NR_to_Cash!D$18,$A1183))/1000","v":{"$error":"#NAME?"}},{"$f":"(_xll.RiskData(NR_to_Cash!E$18,$A1183))/1000","v":{"$error":"#NAME?"}}]
[1177,{"$f":"_xll.RiskData('Risk Summary'!J$48,$A1184)/1000","v":{"$error":"#NAME?"}},{"$f":"_xll.RiskData('Risk Summary'!K$48,$A1184)/1000","v":{"$error":"#NAME?"}},{"$f":"_xll.RiskData('Risk Summary'!L$48,$A1184)/1000","v":{"$error":"#NAME?"}},null,null,{"$f":"(_xll.RiskData(NR_to_Cash!C$18,$A1184))/1000","v":{"$error":"#NAME?"}},{"$f":"(_xll.RiskData(NR_to_Cash!D$18,$A1184))/1000","v":{"$error":"#NAME?"}},{"$f":"(_xll.RiskData(NR_to_Cash!E$18,$A1184))/1000","v":{"$error":"#NAME?"}}]
[1178,{"$f":"_xll.RiskData('Risk Summary'!J$48,$A1185)/1000","v":{"$error":"#NAME?"}},{"$f":"_xll.RiskData('Risk Summary'!K$48,$A1185)/1000","v":{"$error":"#NAME?"}},{"$f":"_xll.RiskData('Risk Summary'!L$48,$A1185)/1000","v":{"$error":"#NAME?"}},null,null,{"$f":"(_xll.RiskData(NR_to_Cash!C$18,$A1185))/1000","v":{"$error":"#NAME?"}},{"$f":"(_xll.RiskData(NR_to_Cash!D$18,$A1185))/1000","v":{"$error":"#NAME?"}},{"$f":"(_xll.RiskData(NR_to_Cash!E$18,$A1185))/1000","v":{"$error":"#NAME?"}}]
[1179,{"$f":"_xll.RiskData('Risk Summary'!J$48,$A1186)/1000","v":{"$error":"#NAME?"}},{"$f":"_xll.RiskData('Risk Summary'!K$48,$A1186)/1000","v":{"$error":"#NAME?"}},{"$f":"_xll.RiskData('Risk Summary'!L$48,$A1186)/1000","v":{"$error":"#NAME?"}},null,null,{"$f":"(_xll.RiskData(NR_to_Cash!C$18,$A1186))/1000","v":{"$error":"#NAME?"}},{"$f":"(_xll.RiskData(NR_to_Cash!D$18,$A1186))/1000","v":{"$error":"#NAME?"}},{"$f":"(_xll.RiskData(NR_to_Cash!E$18,$A1186))/1000","v":{"$error":"#NAME?"}}]
[1180,{"$f":"_xll.RiskData('Risk Summary'!J$48,$A1187)/1000","v":{"$error":"#NAME?"}},{"$f":"_xll.RiskData('Risk Summary'!K$48,$A1187)/1000","v":{"$error":"#NAME?"}},{"$f":"_xll.RiskData('Risk Summary'!L$48,$A1187)/1000","v":{"$error":"#NAME?"}},null,null,{"$f":"(_xll.RiskData(NR_to_Cash!C$18,$A1187))/1000","v":{"$error":"#NAME?"}},{"$f":"(_xll.RiskData(NR_to_Cash!D$18,$A1187))/1000","v":{"$error":"#NAME?"}},{"$f":"(_xll.RiskData(NR_to_Cash!E$18,$A1187))/1000","v":{"$error":"#NAME?"}}]
[1181,{"$f":"_xll.RiskData('Risk Summary'!J$48,$A1188)/1000","v":{"$error":"#NAME?"}},{"$f":"_xll.RiskData('Risk Summary'!K$48,$A1188)/1000","v":{"$error":"#NAME?"}},{"$f":"_xll.RiskData('Risk Summary'!L$48,$A1188)/1000","v":{"$error":"#NAME?"}},null,null,{"$f":"(_xll.RiskData(NR_to_Cash!C$18,$A1188))/1000","v":{"$error":"#NAME?"}},{"$f":"(_xll.RiskData(NR_to_Cash!D$18,$A1188))/1000","v":{"$error":"#NAME?"}},{"$f":"(_xll.RiskData(NR_to_Cash!E$18,$A1188))/1000","v":{"$error":"#NAME?"}}]
[1182,{"$f":"_xll.RiskData('Risk Summary'!J$48,$A1189)/1000","v":{"$error":"#NAME?"}},{"$f":"_xll.RiskData('Risk Summary'!K$48,$A1189)/1000","v":{"$error":"#NAME?"}},{"$f":"_xll.RiskData('Risk Summary'!L$48,$A1189)/1000","v":{"$error":"#NAME?"}},null,null,{"$f":"(_xll.RiskData(NR_to_Cash!C$18,$A1189))/1000","v":{"$error":"#NAME?"}},{"$f":"(_xll.RiskData(NR_to_Cash!D$18,$A1189))/1000","v":{"$error":"#NAME?"}},{"$f":"(_xll.RiskData(NR_to_Cash!E$18,$A1189))/1000","v":{"$error":"#NAME?"}}]
[1183,{"$f":"_xll.RiskData('Risk Summary'!J$48,$A1190)/1000","v":{"$error":"#NAME?"}},{"$f":"_xll.RiskData('Risk Summary'!K$48,$A1190)/1000","v":{"$error":"#NAME?"}},{"$f":"_xll.RiskData('Risk Summary'!L$48,$A1190)/1000","v":{"$error":"#NAME?"}},null,null,{"$f":"(_xll.RiskData(NR_to_Cash!C$18,$A1190))/1000","v":{"$error":"#NAME?"}},{"$f":"(_xll.RiskData(NR_to_Cash!D$18,$A1190))/1000","v":{"$error":"#NAME?"}},{"$f":"(_xll.RiskData(NR_to_Cash!E$18,$A1190))/1000","v":{"$error":"#NAME?"}}]
[1184,{"$f":"_xll.RiskData('Risk Summary'!J$48,$A1191)/1000","v":{"$error":"#NAME?"}},{"$f":"_xll.RiskData('Risk Summary'!K$48,$A1191)/1000","v":{"$error":"#NAME?"}},{"$f":"_xll.RiskData('Risk Summary'!L$48,$A1191)/1000","v":{"$error":"#NAME?"}},null,null,{"$f":"(_xll.RiskData(NR_to_Cash!C$18,$A1191))/1000","v":{"$error":"#NAME?"}},{"$f":"(_xll.RiskData(NR_to_Cash!D$18,$A1191))/1000","v":{"$error":"#NAME?"}},{"$f":"(_xll.RiskData(NR_to_Cash!E$18,$A1191))/1000","v":{"$error":"#NAME?"}}]
[1185,{"$f":"_xll.RiskData('Risk Summary'!J$48,$A1192)/1000","v":{"$error":"#NAME?"}},{"$f":"_xll.RiskData('Risk Summary'!K$48,$A1192)/1000","v":{"$error":"#NAME?"}},{"$f":"_xll.RiskData('Risk Summary'!L$48,$A1192)/1000","v":{"$error":"#NAME?"}},null,null,{"$f":"(_xll.RiskData(NR_to_Cash!C$18,$A1192))/1000","v":{"$error":"#NAME?"}},{"$f":"(_xll.RiskData(NR_to_Cash!D$18,$A1192))/1000","v":{"$error":"#NAME?"}},{"$f":"(_xll.RiskData(NR_to_Cash!E$18,$A1192))/1000","v":{"$error":"#NAME?"}}]
[1186,{"$f":"_xll.RiskData('Risk Summary'!J$48,$A1193)/1000","v":{"$error":"#NAME?"}},{"$f":"_xll.RiskData('Risk Summary'!K$48,$A1193)/1000","v":{"$error":"#NAME?"}},{"$f":"_xll.RiskData('Risk Summary'!L$48,$A1193)/1000","v":{"$error":"#NAME?"}},null,null,{"$f":"(_xll.RiskData(NR_to_Cash!C$18,$A1193))/1000","v":{"$error":"#NAME?"}},{"$f":"(_xll.RiskData(NR_to_Cash!D$18,$A1193))/1000","v":{"$error":"#NAME?"}},{"$f":"(_xll.RiskData(NR_to_Cash!E$18,$A1193))/1000","v":{"$error":"#NAME?"}}]
[1187,{"$f":"_xll.RiskData('Risk Summary'!J$48,$A1194)/1000","v":{"$error":"#NAME?"}},{"$f":"_xll.RiskData('Risk Summary'!K$48,$A1194)/1000","v":{"$error":"#NAME?"}},{"$f":"_xll.RiskData('Risk Summary'!L$48,$A1194)/1000","v":{"$error":"#NAME?"}},null,null,{"$f":"(_xll.RiskData(NR_to_Cash!C$18,$A1194))/1000","v":{"$error":"#NAME?"}},{"$f":"(_xll.RiskData(NR_to_Cash!D$18,$A1194))/1000","v":{"$error":"#NAME?"}},{"$f":"(_xll.RiskData(NR_to_Cash!E$18,$A1194))/1000","v":{"$error":"#NAME?"}}]
[1188,{"$f":"_xll.RiskData('Risk Summary'!J$48,$A1195)/1000","v":{"$error":"#NAME?"}},{"$f":"_xll.RiskData('Risk Summary'!K$48,$A1195)/1000","v":{"$error":"#NAME?"}},{"$f":"_xll.RiskData('Risk Summary'!L$48,$A1195)/1000","v":{"$error":"#NAME?"}},null,null,{"$f":"(_xll.RiskData(NR_to_Cash!C$18,$A1195))/1000","v":{"$error":"#NAME?"}},{"$f":"(_xll.RiskData(NR_to_Cash!D$18,$A1195))/1000","v":{"$error":"#NAME?"}},{"$f":"(_xll.RiskData(NR_to_Cash!E$18,$A1195))/1000","v":{"$error":"#NAME?"}}]
[1189,{"$f":"_xll.RiskData('Risk Summary'!J$48,$A1196)/1000","v":{"$error":"#NAME?"}},{"$f":"_xll.RiskData('Risk Summary'!K$48,$A1196)/1000","v":{"$error":"#NAME?"}},{"$f":"_xll.RiskData('Risk Summary'!L$48,$A1196)/1000","v":{"$error":"#NAME?"}},null,null,{"$f":"(_xll.RiskData(NR_to_Cash!C$18,$A1196))/1000","v":{"$error":"#NAME?"}},{"$f":"(_xll.RiskData(NR_to_Cash!D$18,$A1196))/1000","v":{"$error":"#NAME?"}},{"$f":"(_xll.RiskData(NR_to_Cash!E$18,$A1196))/1000","v":{"$error":"#NAME?"}}]
[1190,{"$f":"_xll.RiskData('Risk Summary'!J$48,$A1197)/1000","v":{"$error":"#NAME?"}},{"$f":"_xll.RiskData('Risk Summary'!K$48,$A1197)/1000","v":{"$error":"#NAME?"}},{"$f":"_xll.RiskData('Risk Summary'!L$48,$A1197)/1000","v":{"$error":"#NAME?"}},null,null,{"$f":"(_xll.RiskData(NR_to_Cash!C$18,$A1197))/1000","v":{"$error":"#NAME?"}},{"$f":"(_xll.RiskData(NR_to_Cash!D$18,$A1197))/1000","v":{"$error":"#NAME?"}},{"$f":"(_xll.RiskData(NR_to_Cash!E$18,$A1197))/1000","v":{"$error":"#NAME?"}}]
[1191,{"$f":"_xll.RiskData('Risk Summary'!J$48,$A1198)/1000","v":{"$error":"#NAME?"}},{"$f":"_xll.RiskData('Risk Summary'!K$48,$A1198)/1000","v":{"$error":"#NAME?"}},{"$f":"_xll.RiskData('Risk Summary'!L$48,$A1198)/1000","v":{"$error":"#NAME?"}},null,null,{"$f":"(_xll.RiskData(NR_to_Cash!C$18,$A1198))/1000","v":{"$error":"#NAME?"}},{"$f":"(_xll.RiskData(NR_to_Cash!D$18,$A1198))/1000","v":{"$error":"#NAME?"}},{"$f":"(_xll.RiskData(NR_to_Cash!E$18,$A1198))/1000","v":{"$error":"#NAME?"}}]
[1192,{"$f":"_xll.RiskData('Risk Summary'!J$48,$A1199)/1000","v":{"$error":"#NAME?"}},{"$f":"_xll.RiskData('Risk Summary'!K$48,$A1199)/1000","v":{"$error":"#NAME?"}},{"$f":"_xll.RiskData('Risk Summary'!L$48,$A1199)/1000","v":{"$error":"#NAME?"}},null,null,{"$f":"(_xll.RiskData(NR_to_Cash!C$18,$A1199))/1000","v":{"$error":"#NAME?"}},{"$f":"(_xll.RiskData(NR_to_Cash!D$18,$A1199))/1000","v":{"$error":"#NAME?"}},{"$f":"(_xll.RiskData(NR_to_Cash!E$18,$A1199))/1000","v":{"$error":"#NAME?"}}]
[1193,{"$f":"_xll.RiskData('Risk Summary'!J$48,$A1200)/1000","v":{"$error":"#NAME?"}},{"$f":"_xll.RiskData('Risk Summary'!K$48,$A1200)/1000","v":{"$error":"#NAME?"}},{"$f":"_xll.RiskData('Risk Summary'!L$48,$A1200)/1000","v":{"$error":"#NAME?"}},null,null,{"$f":"(_xll.RiskData(NR_to_Cash!C$18,$A1200))/1000","v":{"$error":"#NAME?"}},{"$f":"(_xll.RiskData(NR_to_Cash!D$18,$A1200))/1000","v":{"$error":"#NAME?"}},{"$f":"(_xll.RiskData(NR_to_Cash!E$18,$A1200))/1000","v":{"$error":"#NAME?"}}]
[1194,{"$f":"_xll.RiskData('Risk Summary'!J$48,$A1201)/1000","v":{"$error":"#NAME?"}},{"$f":"_xll.RiskData('Risk Summary'!K$48,$A1201)/1000","v":{"$error":"#NAME?"}},{"$f":"_xll.RiskData('Risk Summary'!L$48,$A1201)/1000","v":{"$error":"#NAME?"}},null,null,{"$f":"(_xll.RiskData(NR_to_Cash!C$18,$A1201))/1000","v":{"$error":"#NAME?"}},{"$f":"(_xll.RiskData(NR_to_Cash!D$18,$A1201))/1000","v":{"$error":"#NAME?"}},{"$f":"(_xll.RiskData(NR_to_Cash!E$18,$A1201))/1000","v":{"$error":"#NAME?"}}]
[1195,{"$f":"_xll.RiskData('Risk Summary'!J$48,$A1202)/1000","v":{"$error":"#NAME?"}},{"$f":"_xll.RiskData('Risk Summary'!K$48,$A1202)/1000","v":{"$error":"#NAME?"}},{"$f":"_xll.RiskData('Risk Summary'!L$48,$A1202)/1000","v":{"$error":"#NAME?"}},null,null,{"$f":"(_xll.RiskData(NR_to_Cash!C$18,$A1202))/1000","v":{"$error":"#NAME?"}},{"$f":"(_xll.RiskData(NR_to_Cash!D$18,$A1202))/1000","v":{"$error":"#NAME?"}},{"$f":"(_xll.RiskData(NR_to_Cash!E$18,$A1202))/1000","v":{"$error":"#NAME?"}}]
[1196,{"$f":"_xll.RiskData('Risk Summary'!J$48,$A1203)/1000","v":{"$error":"#NAME?"}},{"$f":"_xll.RiskData('Risk Summary'!K$48,$A1203)/1000","v":{"$error":"#NAME?"}},{"$f":"_xll.RiskData('Risk Summary'!L$48,$A1203)/1000","v":{"$error":"#NAME?"}},null,null,{"$f":"(_xll.RiskData(NR_to_Cash!C$18,$A1203))/1000","v":{"$error":"#NAME?"}},{"$f":"(_xll.RiskData(NR_to_Cash!D$18,$A1203))/1000","v":{"$error":"#NAME?"}},{"$f":"(_xll.RiskData(NR_to_Cash!E$18,$A1203))/1000","v":{"$error":"#NAME?"}}]
[1197,{"$f":"_xll.RiskData('Risk Summary'!J$48,$A1204)/1000","v":{"$error":"#NAME?"}},{"$f":"_xll.RiskData('Risk Summary'!K$48,$A1204)/1000","v":{"$error":"#NAME?"}},{"$f":"_xll.RiskData('Risk Summary'!L$48,$A1204)/1000","v":{"$error":"#NAME?"}},null,null,{"$f":"(_xll.RiskData(NR_to_Cash!C$18,$A1204))/1000","v":{"$error":"#NAME?"}},{"$f":"(_xll.RiskData(NR_to_Cash!D$18,$A1204))/1000","v":{"$error":"#NAME?"}},{"$f":"(_xll.RiskData(NR_to_Cash!E$18,$A1204))/1000","v":{"$error":"#NAME?"}}]
[1198,{"$f":"_xll.RiskData('Risk Summary'!J$48,$A1205)/1000","v":{"$error":"#NAME?"}},{"$f":"_xll.RiskData('Risk Summary'!K$48,$A1205)/1000","v":{"$error":"#NAME?"}},{"$f":"_xll.RiskData('Risk Summary'!L$48,$A1205)/1000","v":{"$error":"#NAME?"}},null,null,{"$f":"(_xll.RiskData(NR_to_Cash!C$18,$A1205))/1000","v":{"$error":"#NAME?"}},{"$f":"(_xll.RiskData(NR_to_Cash!D$18,$A1205))/1000","v":{"$error":"#NAME?"}},{"$f":"(_xll.RiskData(NR_to_Cash!E$18,$A1205))/1000","v":{"$error":"#NAME?"}}]
[1199,{"$f":"_xll.RiskData('Risk Summary'!J$48,$A1206)/1000","v":{"$error":"#NAME?"}},{"$f":"_xll.RiskData('Risk Summary'!K$48,$A1206)/1000","v":{"$error":"#NAME?"}},{"$f":"_xll.RiskData('Risk Summary'!L$48,$A1206)/1000","v":{"$error":"#NAME?"}},null,null,{"$f":"(_xll.RiskData(NR_to_Cash!C$18,$A1206))/1000","v":{"$error":"#NAME?"}},{"$f":"(_xll.RiskData(NR_to_Cash!D$18,$A1206))/1000","v":{"$error":"#NAME?"}},{"$f":"(_xll.RiskData(NR_to_Cash!E$18,$A1206))/1000","v":{"$error":"#NAME?"}}]
[1200,{"$f":"_xll.RiskData('Risk Summary'!J$48,$A1207)/1000","v":{"$error":"#NAME?"}},{"$f":"_xll.RiskData('Risk Summary'!K$48,$A1207)/1000","v":{"$error":"#NAME?"}},{"$f":"_xll.RiskData('Risk Summary'!L$48,$A1207)/1000","v":{"$error":"#NAME?"}},null,null,{"$f":"(_xll.RiskData(NR_to_Cash!C$18,$A1207))/1000","v":{"$error":"#NAME?"}},{"$f":"(_xll.RiskData(NR_to_Cash!D$18,$A1207))/1000","v":{"$error":"#NAME?"}},{"$f":"(_xll.RiskData(NR_to_Cash!E$18,$A1207))/1000","v":{"$error":"#NAME?"}}]
[1201,{"$f":"_xll.RiskData('Risk Summary'!J$48,$A1208)/1000","v":{"$error":"#NAME?"}},{"$f":"_xll.RiskData('Risk Summary'!K$48,$A1208)/1000","v":{"$error":"#NAME?"}},{"$f":"_xll.RiskData('Risk Summary'!L$48,$A1208)/1000","v":{"$error":"#NAME?"}},null,null,{"$f":"(_xll.RiskData(NR_to_Cash!C$18,$A1208))/1000","v":{"$error":"#NAME?"}},{"$f":"(_xll.RiskData(NR_to_Cash!D$18,$A1208))/1000","v":{"$error":"#NAME?"}},{"$f":"(_xll.RiskData(NR_to_Cash!E$18,$A1208))/1000","v":{"$error":"#NAME?"}}]
[1202,{"$f":"_xll.RiskData('Risk Summary'!J$48,$A1209)/1000","v":{"$error":"#NAME?"}},{"$f":"_xll.RiskData('Risk Summary'!K$48,$A1209)/1000","v":{"$error":"#NAME?"}},{"$f":"_xll.RiskData('Risk Summary'!L$48,$A1209)/1000","v":{"$error":"#NAME?"}},null,null,{"$f":"(_xll.RiskData(NR_to_Cash!C$18,$A1209))/1000","v":{"$error":"#NAME?"}},{"$f":"(_xll.RiskData(NR_to_Cash!D$18,$A1209))/1000","v":{"$error":"#NAME?"}},{"$f":"(_xll.RiskData(NR_to_Cash!E$18,$A1209))/1000","v":{"$error":"#NAME?"}}]
[1203,{"$f":"_xll.RiskData('Risk Summary'!J$48,$A1210)/1000","v":{"$error":"#NAME?"}},{"$f":"_xll.RiskData('Risk Summary'!K$48,$A1210)/1000","v":{"$error":"#NAME?"}},{"$f":"_xll.RiskData('Risk Summary'!L$48,$A1210)/1000","v":{"$error":"#NAME?"}},null,null,{"$f":"(_xll.RiskData(NR_to_Cash!C$18,$A1210))/1000","v":{"$error":"#NAME?"}},{"$f":"(_xll.RiskData(NR_to_Cash!D$18,$A1210))/1000","v":{"$error":"#NAME?"}},{"$f":"(_xll.RiskData(NR_to_Cash!E$18,$A1210))/1000","v":{"$error":"#NAME?"}}]
[1204,{"$f":"_xll.RiskData('Risk Summary'!J$48,$A1211)/1000","v":{"$error":"#NAME?"}},{"$f":"_xll.RiskData('Risk Summary'!K$48,$A1211)/1000","v":{"$error":"#NAME?"}},{"$f":"_xll.RiskData('Risk Summary'!L$48,$A1211)/1000","v":{"$error":"#NAME?"}},null,null,{"$f":"(_xll.RiskData(NR_to_Cash!C$18,$A1211))/1000","v":{"$error":"#NAME?"}},{"$f":"(_xll.RiskData(NR_to_Cash!D$18,$A1211))/1000","v":{"$error":"#NAME?"}},{"$f":"(_xll.RiskData(NR_to_Cash!E$18,$A1211))/1000","v":{"$error":"#NAME?"}}]
[1205,{"$f":"_xll.RiskData('Risk Summary'!J$48,$A1212)/1000","v":{"$error":"#NAME?"}},{"$f":"_xll.RiskData('Risk Summary'!K$48,$A1212)/1000","v":{"$error":"#NAME?"}},{"$f":"_xll.RiskData('Risk Summary'!L$48,$A1212)/1000","v":{"$error":"#NAME?"}},null,null,{"$f":"(_xll.RiskData(NR_to_Cash!C$18,$A1212))/1000","v":{"$error":"#NAME?"}},{"$f":"(_xll.RiskData(NR_to_Cash!D$18,$A1212))/1000","v":{"$error":"#NAME?"}},{"$f":"(_xll.RiskData(NR_to_Cash!E$18,$A1212))/1000","v":{"$error":"#NAME?"}}]
[1206,{"$f":"_xll.RiskData('Risk Summary'!J$48,$A1213)/1000","v":{"$error":"#NAME?"}},{"$f":"_xll.RiskData('Risk Summary'!K$48,$A1213)/1000","v":{"$error":"#NAME?"}},{"$f":"_xll.RiskData('Risk Summary'!L$48,$A1213)/1000","v":{"$error":"#NAME?"}},null,null,{"$f":"(_xll.RiskData(NR_to_Cash!C$18,$A1213))/1000","v":{"$error":"#NAME?"}},{"$f":"(_xll.RiskData(NR_to_Cash!D$18,$A1213))/1000","v":{"$error":"#NAME?"}},{"$f":"(_xll.RiskData(NR_to_Cash!E$18,$A1213))/1000","v":{"$error":"#NAME?"}}]
[1207,{"$f":"_xll.RiskData('Risk Summary'!J$48,$A1214)/1000","v":{"$error":"#NAME?"}},{"$f":"_xll.RiskData('Risk Summary'!K$48,$A1214)/1000","v":{"$error":"#NAME?"}},{"$f":"_xll.RiskData('Risk Summary'!L$48,$A1214)/1000","v":{"$error":"#NAME?"}},null,null,{"$f":"(_xll.RiskData(NR_to_Cash!C$18,$A1214))/1000","v":{"$error":"#NAME?"}},{"$f":"(_xll.RiskData(NR_to_Cash!D$18,$A1214))/1000","v":{"$error":"#NAME?"}},{"$f":"(_xll.RiskData(NR_to_Cash!E$18,$A1214))/1000","v":{"$error":"#NAME?"}}]
[1208,{"$f":"_xll.RiskData('Risk Summary'!J$48,$A1215)/1000","v":{"$error":"#NAME?"}},{"$f":"_xll.RiskData('Risk Summary'!K$48,$A1215)/1000","v":{"$error":"#NAME?"}},{"$f":"_xll.RiskData('Risk Summary'!L$48,$A1215)/1000","v":{"$error":"#NAME?"}},null,null,{"$f":"(_xll.RiskData(NR_to_Cash!C$18,$A1215))/1000","v":{"$error":"#NAME?"}},{"$f":"(_xll.RiskData(NR_to_Cash!D$18,$A1215))/1000","v":{"$error":"#NAME?"}},{"$f":"(_xll.RiskData(NR_to_Cash!E$18,$A1215))/1000","v":{"$error":"#NAME?"}}]
[1209,{"$f":"_xll.RiskData('Risk Summary'!J$48,$A1216)/1000","v":{"$error":"#NAME?"}},{"$f":"_xll.RiskData('Risk Summary'!K$48,$A1216)/1000","v":{"$error":"#NAME?"}},{"$f":"_xll.RiskData('Risk Summary'!L$48,$A1216)/1000","v":{"$error":"#NAME?"}},null,null,{"$f":"(_xll.RiskData(NR_to_Cash!C$18,$A1216))/1000","v":{"$error":"#NAME?"}},{"$f":"(_xll.RiskData(NR_to_Cash!D$18,$A1216))/1000","v":{"$error":"#NAME?"}},{"$f":"(_xll.RiskData(NR_to_Cash!E$18,$A1216))/1000","v":{"$error":"#NAME?"}}]
[1210,{"$f":"_xll.RiskData('Risk Summary'!J$48,$A1217)/1000","v":{"$error":"#NAME?"}},{"$f":"_xll.RiskData('Risk Summary'!K$48,$A1217)/1000","v":{"$error":"#NAME?"}},{"$f":"_xll.RiskData('Risk Summary'!L$48,$A1217)/1000","v":{"$error":"#NAME?"}},null,null,{"$f":"(_xll.RiskData(NR_to_Cash!C$18,$A1217))/1000","v":{"$error":"#NAME?"}},{"$f":"(_xll.RiskData(NR_to_Cash!D$18,$A1217))/1000","v":{"$error":"#NAME?"}},{"$f":"(_xll.RiskData(NR_to_Cash!E$18,$A1217))/1000","v":{"$error":"#NAME?"}}]
[1211,{"$f":"_xll.RiskData('Risk Summary'!J$48,$A1218)/1000","v":{"$error":"#NAME?"}},{"$f":"_xll.RiskData('Risk Summary'!K$48,$A1218)/1000","v":{"$error":"#NAME?"}},{"$f":"_xll.RiskData('Risk Summary'!L$48,$A1218)/1000","v":{"$error":"#NAME?"}},null,null,{"$f":"(_xll.RiskData(NR_to_Cash!C$18,$A1218))/1000","v":{"$error":"#NAME?"}},{"$f":"(_xll.RiskData(NR_to_Cash!D$18,$A1218))/1000","v":{"$error":"#NAME?"}},{"$f":"(_xll.RiskData(NR_to_Cash!E$18,$A1218))/1000","v":{"$error":"#NAME?"}}]
[1212,{"$f":"_xll.RiskData('Risk Summary'!J$48,$A1219)/1000","v":{"$error":"#NAME?"}},{"$f":"_xll.RiskData('Risk Summary'!K$48,$A1219)/1000","v":{"$error":"#NAME?"}},{"$f":"_xll.RiskData('Risk Summary'!L$48,$A1219)/1000","v":{"$error":"#NAME?"}},null,null,{"$f":"(_xll.RiskData(NR_to_Cash!C$18,$A1219))/1000","v":{"$error":"#NAME?"}},{"$f":"(_xll.RiskData(NR_to_Cash!D$18,$A1219))/1000","v":{"$error":"#NAME?"}},{"$f":"(_xll.RiskData(NR_to_Cash!E$18,$A1219))/1000","v":{"$error":"#NAME?"}}]
[1213,{"$f":"_xll.RiskData('Risk Summary'!J$48,$A1220)/1000","v":{"$error":"#NAME?"}},{"$f":"_xll.RiskData('Risk Summary'!K$48,$A1220)/1000","v":{"$error":"#NAME?"}},{"$f":"_xll.RiskData('Risk Summary'!L$48,$A1220)/1000","v":{"$error":"#NAME?"}},null,null,{"$f":"(_xll.RiskData(NR_to_Cash!C$18,$A1220))/1000","v":{"$error":"#NAME?"}},{"$f":"(_xll.RiskData(NR_to_Cash!D$18,$A1220))/1000","v":{"$error":"#NAME?"}},{"$f":"(_xll.RiskData(NR_to_Cash!E$18,$A1220))/1000","v":{"$error":"#NAME?"}}]
[1214,{"$f":"_xll.RiskData('Risk Summary'!J$48,$A1221)/1000","v":{"$error":"#NAME?"}},{"$f":"_xll.RiskData('Risk Summary'!K$48,$A1221)/1000","v":{"$error":"#NAME?"}},{"$f":"_xll.RiskData('Risk Summary'!L$48,$A1221)/1000","v":{"$error":"#NAME?"}},null,null,{"$f":"(_xll.RiskData(NR_to_Cash!C$18,$A1221))/1000","v":{"$error":"#NAME?"}},{"$f":"(_xll.RiskData(NR_to_Cash!D$18,$A1221))/1000","v":{"$error":"#NAME?"}},{"$f":"(_xll.RiskData(NR_to_Cash!E$18,$A1221))/1000","v":{"$error":"#NAME?"}}]
[1215,{"$f":"_xll.RiskData('Risk Summary'!J$48,$A1222)/1000","v":{"$error":"#NAME?"}},{"$f":"_xll.RiskData('Risk Summary'!K$48,$A1222)/1000","v":{"$error":"#NAME?"}},{"$f":"_xll.RiskData('Risk Summary'!L$48,$A1222)/1000","v":{"$error":"#NAME?"}},null,null,{"$f":"(_xll.RiskData(NR_to_Cash!C$18,$A1222))/1000","v":{"$error":"#NAME?"}},{"$f":"(_xll.RiskData(NR_to_Cash!D$18,$A1222))/1000","v":{"$error":"#NAME?"}},{"$f":"(_xll.RiskData(NR_to_Cash!E$18,$A1222))/1000","v":{"$error":"#NAME?"}}]
[1216,{"$f":"_xll.RiskData('Risk Summary'!J$48,$A1223)/1000","v":{"$error":"#NAME?"}},{"$f":"_xll.RiskData('Risk Summary'!K$48,$A1223)/1000","v":{"$error":"#NAME?"}},{"$f":"_xll.RiskData('Risk Summary'!L$48,$A1223)/1000","v":{"$error":"#NAME?"}},null,null,{"$f":"(_xll.RiskData(NR_to_Cash!C$18,$A1223))/1000","v":{"$error":"#NAME?"}},{"$f":"(_xll.RiskData(NR_to_Cash!D$18,$A1223))/1000","v":{"$error":"#NAME?"}},{"$f":"(_xll.RiskData(NR_to_Cash!E$18,$A1223))/1000","v":{"$error":"#NAME?"}}]
[1217,{"$f":"_xll.RiskData('Risk Summary'!J$48,$A1224)/1000","v":{"$error":"#NAME?"}},{"$f":"_xll.RiskData('Risk Summary'!K$48,$A1224)/1000","v":{"$error":"#NAME?"}},{"$f":"_xll.RiskData('Risk Summary'!L$48,$A1224)/1000","v":{"$error":"#NAME?"}},null,null,{"$f":"(_xll.RiskData(NR_to_Cash!C$18,$A1224))/1000","v":{"$error":"#NAME?"}},{"$f":"(_xll.RiskData(NR_to_Cash!D$18,$A1224))/1000","v":{"$error":"#NAME?"}},{"$f":"(_xll.RiskData(NR_to_Cash!E$18,$A1224))/1000","v":{"$error":"#NAME?"}}]
[1218,{"$f":"_xll.RiskData('Risk Summary'!J$48,$A1225)/1000","v":{"$error":"#NAME?"}},{"$f":"_xll.RiskData('Risk Summary'!K$48,$A1225)/1000","v":{"$error":"#NAME?"}},{"$f":"_xll.RiskData('Risk Summary'!L$48,$A1225)/1000","v":{"$error":"#NAME?"}},null,null,{"$f":"(_xll.RiskData(NR_to_Cash!C$18,$A1225))/1000","v":{"$error":"#NAME?"}},{"$f":"(_xll.RiskData(NR_to_Cash!D$18,$A1225))/1000","v":{"$error":"#NAME?"}},{"$f":"(_xll.RiskData(NR_to_Cash!E$18,$A1225))/1000","v":{"$error":"#NAME?"}}]
[1219,{"$f":"_xll.RiskData('Risk Summary'!J$48,$A1226)/1000","v":{"$error":"#NAME?"}},{"$f":"_xll.RiskData('Risk Summary'!K$48,$A1226)/1000","v":{"$error":"#NAME?"}},{"$f":"_xll.RiskData('Risk Summary'!L$48,$A1226)/1000","v":{"$error":"#NAME?"}},null,null,{"$f":"(_xll.RiskData(NR_to_Cash!C$18,$A1226))/1000","v":{"$error":"#NAME?"}},{"$f":"(_xll.RiskData(NR_to_Cash!D$18,$A1226))/1000","v":{"$error":"#NAME?"}},{"$f":"(_xll.RiskData(NR_to_Cash!E$18,$A1226))/1000","v":{"$error":"#NAME?"}}]
[1220,{"$f":"_xll.RiskData('Risk Summary'!J$48,$A1227)/1000","v":{"$error":"#NAME?"}},{"$f":"_xll.RiskData('Risk Summary'!K$48,$A1227)/1000","v":{"$error":"#NAME?"}},{"$f":"_xll.RiskData('Risk Summary'!L$48,$A1227)/1000","v":{"$error":"#NAME?"}},null,null,{"$f":"(_xll.RiskData(NR_to_Cash!C$18,$A1227))/1000","v":{"$error":"#NAME?"}},{"$f":"(_xll.RiskData(NR_to_Cash!D$18,$A1227))/1000","v":{"$error":"#NAME?"}},{"$f":"(_xll.RiskData(NR_to_Cash!E$18,$A1227))/1000","v":{"$error":"#NAME?"}}]
[1221,{"$f":"_xll.RiskData('Risk Summary'!J$48,$A1228)/1000","v":{"$error":"#NAME?"}},{"$f":"_xll.RiskData('Risk Summary'!K$48,$A1228)/1000","v":{"$error":"#NAME?"}},{"$f":"_xll.RiskData('Risk Summary'!L$48,$A1228)/1000","v":{"$error":"#NAME?"}},null,null,{"$f":"(_xll.RiskData(NR_to_Cash!C$18,$A1228))/1000","v":{"$error":"#NAME?"}},{"$f":"(_xll.RiskData(NR_to_Cash!D$18,$A1228))/1000","v":{"$error":"#NAME?"}},{"$f":"(_xll.RiskData(NR_to_Cash!E$18,$A1228))/1000","v":{"$error":"#NAME?"}}]
[1222,{"$f":"_xll.RiskData('Risk Summary'!J$48,$A1229)/1000","v":{"$error":"#NAME?"}},{"$f":"_xll.RiskData('Risk Summary'!K$48,$A1229)/1000","v":{"$error":"#NAME?"}},{"$f":"_xll.RiskData('Risk Summary'!L$48,$A1229)/1000","v":{"$error":"#NAME?"}},null,null,{"$f":"(_xll.RiskData(NR_to_Cash!C$18,$A1229))/1000","v":{"$error":"#NAME?"}},{"$f":"(_xll.RiskData(NR_to_Cash!D$18,$A1229))/1000","v":{"$error":"#NAME?"}},{"$f":"(_xll.RiskData(NR_to_Cash!E$18,$A1229))/1000","v":{"$error":"#NAME?"}}]
[1223,{"$f":"_xll.RiskData('Risk Summary'!J$48,$A1230)/1000","v":{"$error":"#NAME?"}},{"$f":"_xll.RiskData('Risk Summary'!K$48,$A1230)/1000","v":{"$error":"#NAME?"}},{"$f":"_xll.RiskData('Risk Summary'!L$48,$A1230)/1000","v":{"$error":"#NAME?"}},null,null,{"$f":"(_xll.RiskData(NR_to_Cash!C$18,$A1230))/1000","v":{"$error":"#NAME?"}},{"$f":"(_xll.RiskData(NR_to_Cash!D$18,$A1230))/1000","v":{"$error":"#NAME?"}},{"$f":"(_xll.RiskData(NR_to_Cash!E$18,$A1230))/1000","v":{"$error":"#NAME?"}}]
[1224,{"$f":"_xll.RiskData('Risk Summary'!J$48,$A1231)/1000","v":{"$error":"#NAME?"}},{"$f":"_xll.RiskData('Risk Summary'!K$48,$A1231)/1000","v":{"$error":"#NAME?"}},{"$f":"_xll.RiskData('Risk Summary'!L$48,$A1231)/1000","v":{"$error":"#NAME?"}},null,null,{"$f":"(_xll.RiskData(NR_to_Cash!C$18,$A1231))/1000","v":{"$error":"#NAME?"}},{"$f":"(_xll.RiskData(NR_to_Cash!D$18,$A1231))/1000","v":{"$error":"#NAME?"}},{"$f":"(_xll.RiskData(NR_to_Cash!E$18,$A1231))/1000","v":{"$error":"#NAME?"}}]
[1225,{"$f":"_xll.RiskData('Risk Summary'!J$48,$A1232)/1000","v":{"$error":"#NAME?"}},{"$f":"_xll.RiskData('Risk Summary'!K$48,$A1232)/1000","v":{"$error":"#NAME?"}},{"$f":"_xll.RiskData('Risk Summary'!L$48,$A1232)/1000","v":{"$error":"#NAME?"}},null,null,{"$f":"(_xll.RiskData(NR_to_Cash!C$18,$A1232))/1000","v":{"$error":"#NAME?"}},{"$f":"(_xll.RiskData(NR_to_Cash!D$18,$A1232))/1000","v":{"$error":"#NAME?"}},{"$f":"(_xll.RiskData(NR_to_Cash!E$18,$A1232))/1000","v":{"$error":"#NAME?"}}]
[1226,{"$f":"_xll.RiskData('Risk Summary'!J$48,$A1233)/1000","v":{"$error":"#NAME?"}},{"$f":"_xll.RiskData('Risk Summary'!K$48,$A1233)/1000","v":{"$error":"#NAME?"}},{"$f":"_xll.RiskData('Risk Summary'!L$48,$A1233)/1000","v":{"$error":"#NAME?"}},null,null,{"$f":"(_xll.RiskData(NR_to_Cash!C$18,$A1233))/1000","v":{"$error":"#NAME?"}},{"$f":"(_xll.RiskData(NR_to_Cash!D$18,$A1233))/1000","v":{"$error":"#NAME?"}},{"$f":"(_xll.RiskData(NR_to_Cash!E$18,$A1233))/1000","v":{"$error":"#NAME?"}}]
[1227,{"$f":"_xll.RiskData('Risk Summary'!J$48,$A1234)/1000","v":{"$error":"#NAME?"}},{"$f":"_xll.RiskData('Risk Summary'!K$48,$A1234)/1000","v":{"$error":"#NAME?"}},{"$f":"_xll.RiskData('Risk Summary'!L$48,$A1234)/1000","v":{"$error":"#NAME?"}},null,null,{"$f":"(_xll.RiskData(NR_to_Cash!C$18,$A1234))/1000","v":{"$error":"#NAME?"}},{"$f":"(_xll.RiskData(NR_to_Cash!D$18,$A1234))/1000","v":{"$error":"#NAME?"}},{"$f":"(_xll.RiskData(NR_to_Cash!E$18,$A1234))/1000","v":{"$error":"#NAME?"}}]
[1228,{"$f":"_xll.RiskData('Risk Summary'!J$48,$A1235)/1000","v":{"$error":"#NAME?"}},{"$f":"_xll.RiskData('Risk Summary'!K$48,$A1235)/1000","v":{"$error":"#NAME?"}},{"$f":"_xll.RiskData('Risk Summary'!L$48,$A1235)/1000","v":{"$error":"#NAME?"}},null,null,{"$f":"(_xll.RiskData(NR_to_Cash!C$18,$A1235))/1000","v":{"$error":"#NAME?"}},{"$f":"(_xll.RiskData(NR_to_Cash!D$18,$A1235))/1000","v":{"$error":"#NAME?"}},{"$f":"(_xll.RiskData(NR_to_Cash!E$18,$A1235))/1000","v":{"$error":"#NAME?"}}]
[1229,{"$f":"_xll.RiskData('Risk Summary'!J$48,$A1236)/1000","v":{"$error":"#NAME?"}},{"$f":"_xll.RiskData('Risk Summary'!K$48,$A1236)/1000","v":{"$error":"#NAME?"}},{"$f":"_xll.RiskData('Risk Summary'!L$48,$A1236)/1000","v":{"$error":"#NAME?"}},null,null,{"$f":"(_xll.RiskData(NR_to_Cash!C$18,$A1236))/1000","v":{"$error":"#NAME?"}},{"$f":"(_xll.RiskData(NR_to_Cash!D$18,$A1236))/1000","v":{"$error":"#NAME?"}},{"$f":"(_xll.RiskData(NR_to_Cash!E$18,$A1236))/1000","v":{"$error":"#NAME?"}}]
[1230,{"$f":"_xll.RiskData('Risk Summary'!J$48,$A1237)/1000","v":{"$error":"#NAME?"}},{"$f":"_xll.RiskData('Risk Summary'!K$48,$A1237)/1000","v":{"$error":"#NAME?"}},{"$f":"_xll.RiskData('Risk Summary'!L$48,$A1237)/1000","v":{"$error":"#NAME?"}},null,null,{"$f":"(_xll.RiskData(NR_to_Cash!C$18,$A1237))/1000","v":{"$error":"#NAME?"}},{"$f":"(_xll.RiskData(NR_to_Cash!D$18,$A1237))/1000","v":{"$error":"#NAME?"}},{"$f":"(_xll.RiskData(NR_to_Cash!E$18,$A1237))/1000","v":{"$error":"#NAME?"}}]
[1231,{"$f":"_xll.RiskData('Risk Summary'!J$48,$A1238)/1000","v":{"$error":"#NAME?"}},{"$f":"_xll.RiskData('Risk Summary'!K$48,$A1238)/1000","v":{"$error":"#NAME?"}},{"$f":"_xll.RiskData('Risk Summary'!L$48,$A1238)/1000","v":{"$error":"#NAME?"}},null,null,{"$f":"(_xll.RiskData(NR_to_Cash!C$18,$A1238))/1000","v":{"$error":"#NAME?"}},{"$f":"(_xll.RiskData(NR_to_Cash!D$18,$A1238))/1000","v":{"$error":"#NAME?"}},{"$f":"(_xll.RiskData(NR_to_Cash!E$18,$A1238))/1000","v":{"$error":"#NAME?"}}]
[1232,{"$f":"_xll.RiskData('Risk Summary'!J$48,$A1239)/1000","v":{"$error":"#NAME?"}},{"$f":"_xll.RiskData('Risk Summary'!K$48,$A1239)/1000","v":{"$error":"#NAME?"}},{"$f":"_xll.RiskData('Risk Summary'!L$48,$A1239)/1000","v":{"$error":"#NAME?"}},null,null,{"$f":"(_xll.RiskData(NR_to_Cash!C$18,$A1239))/1000","v":{"$error":"#NAME?"}},{"$f":"(_xll.RiskData(NR_to_Cash!D$18,$A1239))/1000","v":{"$error":"#NAME?"}},{"$f":"(_xll.RiskData(NR_to_Cash!E$18,$A1239))/1000","v":{"$error":"#NAME?"}}]
[1233,{"$f":"_xll.RiskData('Risk Summary'!J$48,$A1240)/1000","v":{"$error":"#NAME?"}},{"$f":"_xll.RiskData('Risk Summary'!K$48,$A1240)/1000","v":{"$error":"#NAME?"}},{"$f":"_xll.RiskData('Risk Summary'!L$48,$A1240)/1000","v":{"$error":"#NAME?"}},null,null,{"$f":"(_xll.RiskData(NR_to_Cash!C$18,$A1240))/1000","v":{"$error":"#NAME?"}},{"$f":"(_xll.RiskData(NR_to_Cash!D$18,$A1240))/1000","v":{"$error":"#NAME?"}},{"$f":"(_xll.RiskData(NR_to_Cash!E$18,$A1240))/1000","v":{"$error":"#NAME?"}}]
[1234,{"$f":"_xll.RiskData('Risk Summary'!J$48,$A1241)/1000","v":{"$error":"#NAME?"}},{"$f":"_xll.RiskData('Risk Summary'!K$48,$A1241)/1000","v":{"$error":"#NAME?"}},{"$f":"_xll.RiskData('Risk Summary'!L$48,$A1241)/1000","v":{"$error":"#NAME?"}},null,null,{"$f":"(_xll.RiskData(NR_to_Cash!C$18,$A1241))/1000","v":{"$error":"#NAME?"}},{"$f":"(_xll.RiskData(NR_to_Cash!D$18,$A1241))/1000","v":{"$error":"#NAME?"}},{"$f":"(_xll.RiskData(NR_to_Cash!E$18,$A1241))/1000","v":{"$error":"#NAME?"}}]
[1235,{"$f":"_xll.RiskData('Risk Summary'!J$48,$A1242)/1000","v":{"$error":"#NAME?"}},{"$f":"_xll.RiskData('Risk Summary'!K$48,$A1242)/1000","v":{"$error":"#NAME?"}},{"$f":"_xll.RiskData('Risk Summary'!L$48,$A1242)/1000","v":{"$error":"#NAME?"}},null,null,{"$f":"(_xll.RiskData(NR_to_Cash!C$18,$A1242))/1000","v":{"$error":"#NAME?"}},{"$f":"(_xll.RiskData(NR_to_Cash!D$18,$A1242))/1000","v":{"$error":"#NAME?"}},{"$f":"(_xll.RiskData(NR_to_Cash!E$18,$A1242))/1000","v":{"$error":"#NAME?"}}]
[1236,{"$f":"_xll.RiskData('Risk Summary'!J$48,$A1243)/1000","v":{"$error":"#NAME?"}},{"$f":"_xll.RiskData('Risk Summary'!K$48,$A1243)/1000","v":{"$error":"#NAME?"}},{"$f":"_xll.RiskData('Risk Summary'!L$48,$A1243)/1000","v":{"$error":"#NAME?"}},null,null,{"$f":"(_xll.RiskData(NR_to_Cash!C$18,$A1243))/1000","v":{"$error":"#NAME?"}},{"$f":"(_xll.RiskData(NR_to_Cash!D$18,$A1243))/1000","v":{"$error":"#NAME?"}},{"$f":"(_xll.RiskData(NR_to_Cash!E$18,$A1243))/1000","v":{"$error":"#NAME?"}}]
[1237,{"$f":"_xll.RiskData('Risk Summary'!J$48,$A1244)/1000","v":{"$error":"#NAME?"}},{"$f":"_xll.RiskData('Risk Summary'!K$48,$A1244)/1000","v":{"$error":"#NAME?"}},{"$f":"_xll.RiskData('Risk Summary'!L$48,$A1244)/1000","v":{"$error":"#NAME?"}},null,null,{"$f":"(_xll.RiskData(NR_to_Cash!C$18,$A1244))/1000","v":{"$error":"#NAME?"}},{"$f":"(_xll.RiskData(NR_to_Cash!D$18,$A1244))/1000","v":{"$error":"#NAME?"}},{"$f":"(_xll.RiskData(NR_to_Cash!E$18,$A1244))/1000","v":{"$error":"#NAME?"}}]
[1238,{"$f":"_xll.RiskData('Risk Summary'!J$48,$A1245)/1000","v":{"$error":"#NAME?"}},{"$f":"_xll.RiskData('Risk Summary'!K$48,$A1245)/1000","v":{"$error":"#NAME?"}},{"$f":"_xll.RiskData('Risk Summary'!L$48,$A1245)/1000","v":{"$error":"#NAME?"}},null,null,{"$f":"(_xll.RiskData(NR_to_Cash!C$18,$A1245))/1000","v":{"$error":"#NAME?"}},{"$f":"(_xll.RiskData(NR_to_Cash!D$18,$A1245))/1000","v":{"$error":"#NAME?"}},{"$f":"(_xll.RiskData(NR_to_Cash!E$18,$A1245))/1000","v":{"$error":"#NAME?"}}]
[1239,{"$f":"_xll.RiskData('Risk Summary'!J$48,$A1246)/1000","v":{"$error":"#NAME?"}},{"$f":"_xll.RiskData('Risk Summary'!K$48,$A1246)/1000","v":{"$error":"#NAME?"}},{"$f":"_xll.RiskData('Risk Summary'!L$48,$A1246)/1000","v":{"$error":"#NAME?"}},null,null,{"$f":"(_xll.RiskData(NR_to_Cash!C$18,$A1246))/1000","v":{"$error":"#NAME?"}},{"$f":"(_xll.RiskData(NR_to_Cash!D$18,$A1246))/1000","v":{"$error":"#NAME?"}},{"$f":"(_xll.RiskData(NR_to_Cash!E$18,$A1246))/1000","v":{"$error":"#NAME?"}}]
[1240,{"$f":"_xll.RiskData('Risk Summary'!J$48,$A1247)/1000","v":{"$error":"#NAME?"}},{"$f":"_xll.RiskData('Risk Summary'!K$48,$A1247)/1000","v":{"$error":"#NAME?"}},{"$f":"_xll.RiskData('Risk Summary'!L$48,$A1247)/1000","v":{"$error":"#NAME?"}},null,null,{"$f":"(_xll.RiskData(NR_to_Cash!C$18,$A1247))/1000","v":{"$error":"#NAME?"}},{"$f":"(_xll.RiskData(NR_to_Cash!D$18,$A1247))/1000","v":{"$error":"#NAME?"}},{"$f":"(_xll.RiskData(NR_to_Cash!E$18,$A1247))/1000","v":{"$error":"#NAME?"}}]
[1241,{"$f":"_xll.RiskData('Risk Summary'!J$48,$A1248)/1000","v":{"$error":"#NAME?"}},{"$f":"_xll.RiskData('Risk Summary'!K$48,$A1248)/1000","v":{"$error":"#NAME?"}},{"$f":"_xll.RiskData('Risk Summary'!L$48,$A1248)/1000","v":{"$error":"#NAME?"}},null,null,{"$f":"(_xll.RiskData(NR_to_Cash!C$18,$A1248))/1000","v":{"$error":"#NAME?"}},{"$f":"(_xll.RiskData(NR_to_Cash!D$18,$A1248))/1000","v":{"$error":"#NAME?"}},{"$f":"(_xll.RiskData(NR_to_Cash!E$18,$A1248))/1000","v":{"$error":"#NAME?"}}]
[1242,{"$f":"_xll.RiskData('Risk Summary'!J$48,$A1249)/1000","v":{"$error":"#NAME?"}},{"$f":"_xll.RiskData('Risk Summary'!K$48,$A1249)/1000","v":{"$error":"#NAME?"}},{"$f":"_xll.RiskData('Risk Summary'!L$48,$A1249)/1000","v":{"$error":"#NAME?"}},null,null,{"$f":"(_xll.RiskData(NR_to_Cash!C$18,$A1249))/1000","v":{"$error":"#NAME?"}},{"$f":"(_xll.RiskData(NR_to_Cash!D$18,$A1249))/1000","v":{"$error":"#NAME?"}},{"$f":"(_xll.RiskData(NR_to_Cash!E$18,$A1249))/1000","v":{"$error":"#NAME?"}}]
[1243,{"$f":"_xll.RiskData('Risk Summary'!J$48,$A1250)/1000","v":{"$error":"#NAME?"}},{"$f":"_xll.RiskData('Risk Summary'!K$48,$A1250)/1000","v":{"$error":"#NAME?"}},{"$f":"_xll.RiskData('Risk Summary'!L$48,$A1250)/1000","v":{"$error":"#NAME?"}},null,null,{"$f":"(_xll.RiskData(NR_to_Cash!C$18,$A1250))/1000","v":{"$error":"#NAME?"}},{"$f":"(_xll.RiskData(NR_to_Cash!D$18,$A1250))/1000","v":{"$error":"#NAME?"}},{"$f":"(_xll.RiskData(NR_to_Cash!E$18,$A1250))/1000","v":{"$error":"#NAME?"}}]
[1244,{"$f":"_xll.RiskData('Risk Summary'!J$48,$A1251)/1000","v":{"$error":"#NAME?"}},{"$f":"_xll.RiskData('Risk Summary'!K$48,$A1251)/1000","v":{"$error":"#NAME?"}},{"$f":"_xll.RiskData('Risk Summary'!L$48,$A1251)/1000","v":{"$error":"#NAME?"}},null,null,{"$f":"(_xll.RiskData(NR_to_Cash!C$18,$A1251))/1000","v":{"$error":"#NAME?"}},{"$f":"(_xll.RiskData(NR_to_Cash!D$18,$A1251))/1000","v":{"$error":"#NAME?"}},{"$f":"(_xll.RiskData(NR_to_Cash!E$18,$A1251))/1000","v":{"$error":"#NAME?"}}]
[1245,{"$f":"_xll.RiskData('Risk Summary'!J$48,$A1252)/1000","v":{"$error":"#NAME?"}},{"$f":"_xll.RiskData('Risk Summary'!K$48,$A1252)/1000","v":{"$error":"#NAME?"}},{"$f":"_xll.RiskData('Risk Summary'!L$48,$A1252)/1000","v":{"$error":"#NAME?"}},null,null,{"$f":"(_xll.RiskData(NR_to_Cash!C$18,$A1252))/1000","v":{"$error":"#NAME?"}},{"$f":"(_xll.RiskData(NR_to_Cash!D$18,$A1252))/1000","v":{"$error":"#NAME?"}},{"$f":"(_xll.RiskData(NR_to_Cash!E$18,$A1252))/1000","v":{"$error":"#NAME?"}}]
[1246,{"$f":"_xll.RiskData('Risk Summary'!J$48,$A1253)/1000","v":{"$error":"#NAME?"}},{"$f":"_xll.RiskData('Risk Summary'!K$48,$A1253)/1000","v":{"$error":"#NAME?"}},{"$f":"_xll.RiskData('Risk Summary'!L$48,$A1253)/1000","v":{"$error":"#NAME?"}},null,null,{"$f":"(_xll.RiskData(NR_to_Cash!C$18,$A1253))/1000","v":{"$error":"#NAME?"}},{"$f":"(_xll.RiskData(NR_to_Cash!D$18,$A1253))/1000","v":{"$error":"#NAME?"}},{"$f":"(_xll.RiskData(NR_to_Cash!E$18,$A1253))/1000","v":{"$error":"#NAME?"}}]
[1247,{"$f":"_xll.RiskData('Risk Summary'!J$48,$A1254)/1000","v":{"$error":"#NAME?"}},{"$f":"_xll.RiskData('Risk Summary'!K$48,$A1254)/1000","v":{"$error":"#NAME?"}},{"$f":"_xll.RiskData('Risk Summary'!L$48,$A1254)/1000","v":{"$error":"#NAME?"}},null,null,{"$f":"(_xll.RiskData(NR_to_Cash!C$18,$A1254))/1000","v":{"$error":"#NAME?"}},{"$f":"(_xll.RiskData(NR_to_Cash!D$18,$A1254))/1000","v":{"$error":"#NAME?"}},{"$f":"(_xll.RiskData(NR_to_Cash!E$18,$A1254))/1000","v":{"$error":"#NAME?"}}]
[1248,{"$f":"_xll.RiskData('Risk Summary'!J$48,$A1255)/1000","v":{"$error":"#NAME?"}},{"$f":"_xll.RiskData('Risk Summary'!K$48,$A1255)/1000","v":{"$error":"#NAME?"}},{"$f":"_xll.RiskData('Risk Summary'!L$48,$A1255)/1000","v":{"$error":"#NAME?"}},null,null,{"$f":"(_xll.RiskData(NR_to_Cash!C$18,$A1255))/1000","v":{"$error":"#NAME?"}},{"$f":"(_xll.RiskData(NR_to_Cash!D$18,$A1255))/1000","v":{"$error":"#NAME?"}},{"$f":"(_xll.RiskData(NR_to_Cash!E$18,$A1255))/1000","v":{"$error":"#NAME?"}}]
[1249,{"$f":"_xll.RiskData('Risk Summary'!J$48,$A1256)/1000","v":{"$error":"#NAME?"}},{"$f":"_xll.RiskData('Risk Summary'!K$48,$A1256)/1000","v":{"$error":"#NAME?"}},{"$f":"_xll.RiskData('Risk Summary'!L$48,$A1256)/1000","v":{"$error":"#NAME?"}},null,null,{"$f":"(_xll.RiskData(NR_to_Cash!C$18,$A1256))/1000","v":{"$error":"#NAME?"}},{"$f":"(_xll.RiskData(NR_to_Cash!D$18,$A1256))/1000","v":{"$error":"#NAME?"}},{"$f":"(_xll.RiskData(NR_to_Cash!E$18,$A1256))/1000","v":{"$error":"#NAME?"}}]
[1250,{"$f":"_xll.RiskData('Risk Summary'!J$48,$A1257)/1000","v":{"$error":"#NAME?"}},{"$f":"_xll.RiskData('Risk Summary'!K$48,$A1257)/1000","v":{"$error":"#NAME?"}},{"$f":"_xll.RiskData('Risk Summary'!L$48,$A1257)/1000","v":{"$error":"#NAME?"}},null,null,{"$f":"(_xll.RiskData(NR_to_Cash!C$18,$A1257))/1000","v":{"$error":"#NAME?"}},{"$f":"(_xll.RiskData(NR_to_Cash!D$18,$A1257))/1000","v":{"$error":"#NAME?"}},{"$f":"(_xll.RiskData(NR_to_Cash!E$18,$A1257))/1000","v":{"$error":"#NAME?"}}]
[1251,{"$f":"_xll.RiskData('Risk Summary'!J$48,$A1258)/1000","v":{"$error":"#NAME?"}},{"$f":"_xll.RiskData('Risk Summary'!K$48,$A1258)/1000","v":{"$error":"#NAME?"}},{"$f":"_xll.RiskData('Risk Summary'!L$48,$A1258)/1000","v":{"$error":"#NAME?"}},null,null,{"$f":"(_xll.RiskData(NR_to_Cash!C$18,$A1258))/1000","v":{"$error":"#NAME?"}},{"$f":"(_xll.RiskData(NR_to_Cash!D$18,$A1258))/1000","v":{"$error":"#NAME?"}},{"$f":"(_xll.RiskData(NR_to_Cash!E$18,$A1258))/1000","v":{"$error":"#NAME?"}}]
[1252,{"$f":"_xll.RiskData('Risk Summary'!J$48,$A1259)/1000","v":{"$error":"#NAME?"}},{"$f":"_xll.RiskData('Risk Summary'!K$48,$A1259)/1000","v":{"$error":"#NAME?"}},{"$f":"_xll.RiskData('Risk Summary'!L$48,$A1259)/1000","v":{"$error":"#NAME?"}},null,null,{"$f":"(_xll.RiskData(NR_to_Cash!C$18,$A1259))/1000","v":{"$error":"#NAME?"}},{"$f":"(_xll.RiskData(NR_to_Cash!D$18,$A1259))/1000","v":{"$error":"#NAME?"}},{"$f":"(_xll.RiskData(NR_to_Cash!E$18,$A1259))/1000","v":{"$error":"#NAME?"}}]
[1253,{"$f":"_xll.RiskData('Risk Summary'!J$48,$A1260)/1000","v":{"$error":"#NAME?"}},{"$f":"_xll.RiskData('Risk Summary'!K$48,$A1260)/1000","v":{"$error":"#NAME?"}},{"$f":"_xll.RiskData('Risk Summary'!L$48,$A1260)/1000","v":{"$error":"#NAME?"}},null,null,{"$f":"(_xll.RiskData(NR_to_Cash!C$18,$A1260))/1000","v":{"$error":"#NAME?"}},{"$f":"(_xll.RiskData(NR_to_Cash!D$18,$A1260))/1000","v":{"$error":"#NAME?"}},{"$f":"(_xll.RiskData(NR_to_Cash!E$18,$A1260))/1000","v":{"$error":"#NAME?"}}]
[1254,{"$f":"_xll.RiskData('Risk Summary'!J$48,$A1261)/1000","v":{"$error":"#NAME?"}},{"$f":"_xll.RiskData('Risk Summary'!K$48,$A1261)/1000","v":{"$error":"#NAME?"}},{"$f":"_xll.RiskData('Risk Summary'!L$48,$A1261)/1000","v":{"$error":"#NAME?"}},null,null,{"$f":"(_xll.RiskData(NR_to_Cash!C$18,$A1261))/1000","v":{"$error":"#NAME?"}},{"$f":"(_xll.RiskData(NR_to_Cash!D$18,$A1261))/1000","v":{"$error":"#NAME?"}},{"$f":"(_xll.RiskData(NR_to_Cash!E$18,$A1261))/1000","v":{"$error":"#NAME?"}}]
[1255,{"$f":"_xll.RiskData('Risk Summary'!J$48,$A1262)/1000","v":{"$error":"#NAME?"}},{"$f":"_xll.RiskData('Risk Summary'!K$48,$A1262)/1000","v":{"$error":"#NAME?"}},{"$f":"_xll.RiskData('Risk Summary'!L$48,$A1262)/1000","v":{"$error":"#NAME?"}},null,null,{"$f":"(_xll.RiskData(NR_to_Cash!C$18,$A1262))/1000","v":{"$error":"#NAME?"}},{"$f":"(_xll.RiskData(NR_to_Cash!D$18,$A1262))/1000","v":{"$error":"#NAME?"}},{"$f":"(_xll.RiskData(NR_to_Cash!E$18,$A1262))/1000","v":{"$error":"#NAME?"}}]
[1256,{"$f":"_xll.RiskData('Risk Summary'!J$48,$A1263)/1000","v":{"$error":"#NAME?"}},{"$f":"_xll.RiskData('Risk Summary'!K$48,$A1263)/1000","v":{"$error":"#NAME?"}},{"$f":"_xll.RiskData('Risk Summary'!L$48,$A1263)/1000","v":{"$error":"#NAME?"}},null,null,{"$f":"(_xll.RiskData(NR_to_Cash!C$18,$A1263))/1000","v":{"$error":"#NAME?"}},{"$f":"(_xll.RiskData(NR_to_Cash!D$18,$A1263))/1000","v":{"$error":"#NAME?"}},{"$f":"(_xll.RiskData(NR_to_Cash!E$18,$A1263))/1000","v":{"$error":"#NAME?"}}]
[1257,{"$f":"_xll.RiskData('Risk Summary'!J$48,$A1264)/1000","v":{"$error":"#NAME?"}},{"$f":"_xll.RiskData('Risk Summary'!K$48,$A1264)/1000","v":{"$error":"#NAME?"}},{"$f":"_xll.RiskData('Risk Summary'!L$48,$A1264)/1000","v":{"$error":"#NAME?"}},null,null,{"$f":"(_xll.RiskData(NR_to_Cash!C$18,$A1264))/1000","v":{"$error":"#NAME?"}},{"$f":"(_xll.RiskData(NR_to_Cash!D$18,$A1264))/1000","v":{"$error":"#NAME?"}},{"$f":"(_xll.RiskData(NR_to_Cash!E$18,$A1264))/1000","v":{"$error":"#NAME?"}}]
[1258,{"$f":"_xll.RiskData('Risk Summary'!J$48,$A1265)/1000","v":{"$error":"#NAME?"}},{"$f":"_xll.RiskData('Risk Summary'!K$48,$A1265)/1000","v":{"$error":"#NAME?"}},{"$f":"_xll.RiskData('Risk Summary'!L$48,$A1265)/1000","v":{"$error":"#NAME?"}},null,null,{"$f":"(_xll.RiskData(NR_to_Cash!C$18,$A1265))/1000","v":{"$error":"#NAME?"}},{"$f":"(_xll.RiskData(NR_to_Cash!D$18,$A1265))/1000","v":{"$error":"#NAME?"}},{"$f":"(_xll.RiskData(NR_to_Cash!E$18,$A1265))/1000","v":{"$error":"#NAME?"}}]
[1259,{"$f":"_xll.RiskData('Risk Summary'!J$48,$A1266)/1000","v":{"$error":"#NAME?"}},{"$f":"_xll.RiskData('Risk Summary'!K$48,$A1266)/1000","v":{"$error":"#NAME?"}},{"$f":"_xll.RiskData('Risk Summary'!L$48,$A1266)/1000","v":{"$error":"#NAME?"}},null,null,{"$f":"(_xll.RiskData(NR_to_Cash!C$18,$A1266))/1000","v":{"$error":"#NAME?"}},{"$f":"(_xll.RiskData(NR_to_Cash!D$18,$A1266))/1000","v":{"$error":"#NAME?"}},{"$f":"(_xll.RiskData(NR_to_Cash!E$18,$A1266))/1000","v":{"$error":"#NAME?"}}]
[1260,{"$f":"_xll.RiskData('Risk Summary'!J$48,$A1267)/1000","v":{"$error":"#NAME?"}},{"$f":"_xll.RiskData('Risk Summary'!K$48,$A1267)/1000","v":{"$error":"#NAME?"}},{"$f":"_xll.RiskData('Risk Summary'!L$48,$A1267)/1000","v":{"$error":"#NAME?"}},null,null,{"$f":"(_xll.RiskData(NR_to_Cash!C$18,$A1267))/1000","v":{"$error":"#NAME?"}},{"$f":"(_xll.RiskData(NR_to_Cash!D$18,$A1267))/1000","v":{"$error":"#NAME?"}},{"$f":"(_xll.RiskData(NR_to_Cash!E$18,$A1267))/1000","v":{"$error":"#NAME?"}}]
[1261,{"$f":"_xll.RiskData('Risk Summary'!J$48,$A1268)/1000","v":{"$error":"#NAME?"}},{"$f":"_xll.RiskData('Risk Summary'!K$48,$A1268)/1000","v":{"$error":"#NAME?"}},{"$f":"_xll.RiskData('Risk Summary'!L$48,$A1268)/1000","v":{"$error":"#NAME?"}},null,null,{"$f":"(_xll.RiskData(NR_to_Cash!C$18,$A1268))/1000","v":{"$error":"#NAME?"}},{"$f":"(_xll.RiskData(NR_to_Cash!D$18,$A1268))/1000","v":{"$error":"#NAME?"}},{"$f":"(_xll.RiskData(NR_to_Cash!E$18,$A1268))/1000","v":{"$error":"#NAME?"}}]
[1262,{"$f":"_xll.RiskData('Risk Summary'!J$48,$A1269)/1000","v":{"$error":"#NAME?"}},{"$f":"_xll.RiskData('Risk Summary'!K$48,$A1269)/1000","v":{"$error":"#NAME?"}},{"$f":"_xll.RiskData('Risk Summary'!L$48,$A1269)/1000","v":{"$error":"#NAME?"}},null,null,{"$f":"(_xll.RiskData(NR_to_Cash!C$18,$A1269))/1000","v":{"$error":"#NAME?"}},{"$f":"(_xll.RiskData(NR_to_Cash!D$18,$A1269))/1000","v":{"$error":"#NAME?"}},{"$f":"(_xll.RiskData(NR_to_Cash!E$18,$A1269))/1000","v":{"$error":"#NAME?"}}]
[1263,{"$f":"_xll.RiskData('Risk Summary'!J$48,$A1270)/1000","v":{"$error":"#NAME?"}},{"$f":"_xll.RiskData('Risk Summary'!K$48,$A1270)/1000","v":{"$error":"#NAME?"}},{"$f":"_xll.RiskData('Risk Summary'!L$48,$A1270)/1000","v":{"$error":"#NAME?"}},null,null,{"$f":"(_xll.RiskData(NR_to_Cash!C$18,$A1270))/1000","v":{"$error":"#NAME?"}},{"$f":"(_xll.RiskData(NR_to_Cash!D$18,$A1270))/1000","v":{"$error":"#NAME?"}},{"$f":"(_xll.RiskData(NR_to_Cash!E$18,$A1270))/1000","v":{"$error":"#NAME?"}}]
[1264,{"$f":"_xll.RiskData('Risk Summary'!J$48,$A1271)/1000","v":{"$error":"#NAME?"}},{"$f":"_xll.RiskData('Risk Summary'!K$48,$A1271)/1000","v":{"$error":"#NAME?"}},{"$f":"_xll.RiskData('Risk Summary'!L$48,$A1271)/1000","v":{"$error":"#NAME?"}},null,null,{"$f":"(_xll.RiskData(NR_to_Cash!C$18,$A1271))/1000","v":{"$error":"#NAME?"}},{"$f":"(_xll.RiskData(NR_to_Cash!D$18,$A1271))/1000","v":{"$error":"#NAME?"}},{"$f":"(_xll.RiskData(NR_to_Cash!E$18,$A1271))/1000","v":{"$error":"#NAME?"}}]
[1265,{"$f":"_xll.RiskData('Risk Summary'!J$48,$A1272)/1000","v":{"$error":"#NAME?"}},{"$f":"_xll.RiskData('Risk Summary'!K$48,$A1272)/1000","v":{"$error":"#NAME?"}},{"$f":"_xll.RiskData('Risk Summary'!L$48,$A1272)/1000","v":{"$error":"#NAME?"}},null,null,{"$f":"(_xll.RiskData(NR_to_Cash!C$18,$A1272))/1000","v":{"$error":"#NAME?"}},{"$f":"(_xll.RiskData(NR_to_Cash!D$18,$A1272))/1000","v":{"$error":"#NAME?"}},{"$f":"(_xll.RiskData(NR_to_Cash!E$18,$A1272))/1000","v":{"$error":"#NAME?"}}]
[1266,{"$f":"_xll.RiskData('Risk Summary'!J$48,$A1273)/1000","v":{"$error":"#NAME?"}},{"$f":"_xll.RiskData('Risk Summary'!K$48,$A1273)/1000","v":{"$error":"#NAME?"}},{"$f":"_xll.RiskData('Risk Summary'!L$48,$A1273)/1000","v":{"$error":"#NAME?"}},null,null,{"$f":"(_xll.RiskData(NR_to_Cash!C$18,$A1273))/1000","v":{"$error":"#NAME?"}},{"$f":"(_xll.RiskData(NR_to_Cash!D$18,$A1273))/1000","v":{"$error":"#NAME?"}},{"$f":"(_xll.RiskData(NR_to_Cash!E$18,$A1273))/1000","v":{"$error":"#NAME?"}}]
[1267,{"$f":"_xll.RiskData('Risk Summary'!J$48,$A1274)/1000","v":{"$error":"#NAME?"}},{"$f":"_xll.RiskData('Risk Summary'!K$48,$A1274)/1000","v":{"$error":"#NAME?"}},{"$f":"_xll.RiskData('Risk Summary'!L$48,$A1274)/1000","v":{"$error":"#NAME?"}},null,null,{"$f":"(_xll.RiskData(NR_to_Cash!C$18,$A1274))/1000","v":{"$error":"#NAME?"}},{"$f":"(_xll.RiskData(NR_to_Cash!D$18,$A1274))/1000","v":{"$error":"#NAME?"}},{"$f":"(_xll.RiskData(NR_to_Cash!E$18,$A1274))/1000","v":{"$error":"#NAME?"}}]
[1268,{"$f":"_xll.RiskData('Risk Summary'!J$48,$A1275)/1000","v":{"$error":"#NAME?"}},{"$f":"_xll.RiskData('Risk Summary'!K$48,$A1275)/1000","v":{"$error":"#NAME?"}},{"$f":"_xll.RiskData('Risk Summary'!L$48,$A1275)/1000","v":{"$error":"#NAME?"}},null,null,{"$f":"(_xll.RiskData(NR_to_Cash!C$18,$A1275))/1000","v":{"$error":"#NAME?"}},{"$f":"(_xll.RiskData(NR_to_Cash!D$18,$A1275))/1000","v":{"$error":"#NAME?"}},{"$f":"(_xll.RiskData(NR_to_Cash!E$18,$A1275))/1000","v":{"$error":"#NAME?"}}]
[1269,{"$f":"_xll.RiskData('Risk Summary'!J$48,$A1276)/1000","v":{"$error":"#NAME?"}},{"$f":"_xll.RiskData('Risk Summary'!K$48,$A1276)/1000","v":{"$error":"#NAME?"}},{"$f":"_xll.RiskData('Risk Summary'!L$48,$A1276)/1000","v":{"$error":"#NAME?"}},null,null,{"$f":"(_xll.RiskData(NR_to_Cash!C$18,$A1276))/1000","v":{"$error":"#NAME?"}},{"$f":"(_xll.RiskData(NR_to_Cash!D$18,$A1276))/1000","v":{"$error":"#NAME?"}},{"$f":"(_xll.RiskData(NR_to_Cash!E$18,$A1276))/1000","v":{"$error":"#NAME?"}}]
[1270,{"$f":"_xll.RiskData('Risk Summary'!J$48,$A1277)/1000","v":{"$error":"#NAME?"}},{"$f":"_xll.RiskData('Risk Summary'!K$48,$A1277)/1000","v":{"$error":"#NAME?"}},{"$f":"_xll.RiskData('Risk Summary'!L$48,$A1277)/1000","v":{"$error":"#NAME?"}},null,null,{"$f":"(_xll.RiskData(NR_to_Cash!C$18,$A1277))/1000","v":{"$error":"#NAME?"}},{"$f":"(_xll.RiskData(NR_to_Cash!D$18,$A1277))/1000","v":{"$error":"#NAME?"}},{"$f":"(_xll.RiskData(NR_to_Cash!E$18,$A1277))/1000","v":{"$error":"#NAME?"}}]
[1271,{"$f":"_xll.RiskData('Risk Summary'!J$48,$A1278)/1000","v":{"$error":"#NAME?"}},{"$f":"_xll.RiskData('Risk Summary'!K$48,$A1278)/1000","v":{"$error":"#NAME?"}},{"$f":"_xll.RiskData('Risk Summary'!L$48,$A1278)/1000","v":{"$error":"#NAME?"}},null,null,{"$f":"(_xll.RiskData(NR_to_Cash!C$18,$A1278))/1000","v":{"$error":"#NAME?"}},{"$f":"(_xll.RiskData(NR_to_Cash!D$18,$A1278))/1000","v":{"$error":"#NAME?"}},{"$f":"(_xll.RiskData(NR_to_Cash!E$18,$A1278))/1000","v":{"$error":"#NAME?"}}]
[1272,{"$f":"_xll.RiskData('Risk Summary'!J$48,$A1279)/1000","v":{"$error":"#NAME?"}},{"$f":"_xll.RiskData('Risk Summary'!K$48,$A1279)/1000","v":{"$error":"#NAME?"}},{"$f":"_xll.RiskData('Risk Summary'!L$48,$A1279)/1000","v":{"$error":"#NAME?"}},null,null,{"$f":"(_xll.RiskData(NR_to_Cash!C$18,$A1279))/1000","v":{"$error":"#NAME?"}},{"$f":"(_xll.RiskData(NR_to_Cash!D$18,$A1279))/1000","v":{"$error":"#NAME?"}},{"$f":"(_xll.RiskData(NR_to_Cash!E$18,$A1279))/1000","v":{"$error":"#NAME?"}}]
[1273,{"$f":"_xll.RiskData('Risk Summary'!J$48,$A1280)/1000","v":{"$error":"#NAME?"}},{"$f":"_xll.RiskData('Risk Summary'!K$48,$A1280)/1000","v":{"$error":"#NAME?"}},{"$f":"_xll.RiskData('Risk Summary'!L$48,$A1280)/1000","v":{"$error":"#NAME?"}},null,null,{"$f":"(_xll.RiskData(NR_to_Cash!C$18,$A1280))/1000","v":{"$error":"#NAME?"}},{"$f":"(_xll.RiskData(NR_to_Cash!D$18,$A1280))/1000","v":{"$error":"#NAME?"}},{"$f":"(_xll.RiskData(NR_to_Cash!E$18,$A1280))/1000","v":{"$error":"#NAME?"}}]
[1274,{"$f":"_xll.RiskData('Risk Summary'!J$48,$A1281)/1000","v":{"$error":"#NAME?"}},{"$f":"_xll.RiskData('Risk Summary'!K$48,$A1281)/1000","v":{"$error":"#NAME?"}},{"$f":"_xll.RiskData('Risk Summary'!L$48,$A1281)/1000","v":{"$error":"#NAME?"}},null,null,{"$f":"(_xll.RiskData(NR_to_Cash!C$18,$A1281))/1000","v":{"$error":"#NAME?"}},{"$f":"(_xll.RiskData(NR_to_Cash!D$18,$A1281))/1000","v":{"$error":"#NAME?"}},{"$f":"(_xll.RiskData(NR_to_Cash!E$18,$A1281))/1000","v":{"$error":"#NAME?"}}]
[1275,{"$f":"_xll.RiskData('Risk Summary'!J$48,$A1282)/1000","v":{"$error":"#NAME?"}},{"$f":"_xll.RiskData('Risk Summary'!K$48,$A1282)/1000","v":{"$error":"#NAME?"}},{"$f":"_xll.RiskData('Risk Summary'!L$48,$A1282)/1000","v":{"$error":"#NAME?"}},null,null,{"$f":"(_xll.RiskData(NR_to_Cash!C$18,$A1282))/1000","v":{"$error":"#NAME?"}},{"$f":"(_xll.RiskData(NR_to_Cash!D$18,$A1282))/1000","v":{"$error":"#NAME?"}},{"$f":"(_xll.RiskData(NR_to_Cash!E$18,$A1282))/1000","v":{"$error":"#NAME?"}}]
[1276,{"$f":"_xll.RiskData('Risk Summary'!J$48,$A1283)/1000","v":{"$error":"#NAME?"}},{"$f":"_xll.RiskData('Risk Summary'!K$48,$A1283)/1000","v":{"$error":"#NAME?"}},{"$f":"_xll.RiskData('Risk Summary'!L$48,$A1283)/1000","v":{"$error":"#NAME?"}},null,null,{"$f":"(_xll.RiskData(NR_to_Cash!C$18,$A1283))/1000","v":{"$error":"#NAME?"}},{"$f":"(_xll.RiskData(NR_to_Cash!D$18,$A1283))/1000","v":{"$error":"#NAME?"}},{"$f":"(_xll.RiskData(NR_to_Cash!E$18,$A1283))/1000","v":{"$error":"#NAME?"}}]
[1277,{"$f":"_xll.RiskData('Risk Summary'!J$48,$A1284)/1000","v":{"$error":"#NAME?"}},{"$f":"_xll.RiskData('Risk Summary'!K$48,$A1284)/1000","v":{"$error":"#NAME?"}},{"$f":"_xll.RiskData('Risk Summary'!L$48,$A1284)/1000","v":{"$error":"#NAME?"}},null,null,{"$f":"(_xll.RiskData(NR_to_Cash!C$18,$A1284))/1000","v":{"$error":"#NAME?"}},{"$f":"(_xll.RiskData(NR_to_Cash!D$18,$A1284))/1000","v":{"$error":"#NAME?"}},{"$f":"(_xll.RiskData(NR_to_Cash!E$18,$A1284))/1000","v":{"$error":"#NAME?"}}]
[1278,{"$f":"_xll.RiskData('Risk Summary'!J$48,$A1285)/1000","v":{"$error":"#NAME?"}},{"$f":"_xll.RiskData('Risk Summary'!K$48,$A1285)/1000","v":{"$error":"#NAME?"}},{"$f":"_xll.RiskData('Risk Summary'!L$48,$A1285)/1000","v":{"$error":"#NAME?"}},null,null,{"$f":"(_xll.RiskData(NR_to_Cash!C$18,$A1285))/1000","v":{"$error":"#NAME?"}},{"$f":"(_xll.RiskData(NR_to_Cash!D$18,$A1285))/1000","v":{"$error":"#NAME?"}},{"$f":"(_xll.RiskData(NR_to_Cash!E$18,$A1285))/1000","v":{"$error":"#NAME?"}}]
[1279,{"$f":"_xll.RiskData('Risk Summary'!J$48,$A1286)/1000","v":{"$error":"#NAME?"}},{"$f":"_xll.RiskData('Risk Summary'!K$48,$A1286)/1000","v":{"$error":"#NAME?"}},{"$f":"_xll.RiskData('Risk Summary'!L$48,$A1286)/1000","v":{"$error":"#NAME?"}},null,null,{"$f":"(_xll.RiskData(NR_to_Cash!C$18,$A1286))/1000","v":{"$error":"#NAME?"}},{"$f":"(_xll.RiskData(NR_to_Cash!D$18,$A1286))/1000","v":{"$error":"#NAME?"}},{"$f":"(_xll.RiskData(NR_to_Cash!E$18,$A1286))/1000","v":{"$error":"#NAME?"}}]
[1280,{"$f":"_xll.RiskData('Risk Summary'!J$48,$A1287)/1000","v":{"$error":"#NAME?"}},{"$f":"_xll.RiskData('Risk Summary'!K$48,$A1287)/1000","v":{"$error":"#NAME?"}},{"$f":"_xll.RiskData('Risk Summary'!L$48,$A1287)/1000","v":{"$error":"#NAME?"}},null,null,{"$f":"(_xll.RiskData(NR_to_Cash!C$18,$A1287))/1000","v":{"$error":"#NAME?"}},{"$f":"(_xll.RiskData(NR_to_Cash!D$18,$A1287))/1000","v":{"$error":"#NAME?"}},{"$f":"(_xll.RiskData(NR_to_Cash!E$18,$A1287))/1000","v":{"$error":"#NAME?"}}]
[1281,{"$f":"_xll.RiskData('Risk Summary'!J$48,$A1288)/1000","v":{"$error":"#NAME?"}},{"$f":"_xll.RiskData('Risk Summary'!K$48,$A1288)/1000","v":{"$error":"#NAME?"}},{"$f":"_xll.RiskData('Risk Summary'!L$48,$A1288)/1000","v":{"$error":"#NAME?"}},null,null,{"$f":"(_xll.RiskData(NR_to_Cash!C$18,$A1288))/1000","v":{"$error":"#NAME?"}},{"$f":"(_xll.RiskData(NR_to_Cash!D$18,$A1288))/1000","v":{"$error":"#NAME?"}},{"$f":"(_xll.RiskData(NR_to_Cash!E$18,$A1288))/1000","v":{"$error":"#NAME?"}}]
[1282,{"$f":"_xll.RiskData('Risk Summary'!J$48,$A1289)/1000","v":{"$error":"#NAME?"}},{"$f":"_xll.RiskData('Risk Summary'!K$48,$A1289)/1000","v":{"$error":"#NAME?"}},{"$f":"_xll.RiskData('Risk Summary'!L$48,$A1289)/1000","v":{"$error":"#NAME?"}},null,null,{"$f":"(_xll.RiskData(NR_to_Cash!C$18,$A1289))/1000","v":{"$error":"#NAME?"}},{"$f":"(_xll.RiskData(NR_to_Cash!D$18,$A1289))/1000","v":{"$error":"#NAME?"}},{"$f":"(_xll.RiskData(NR_to_Cash!E$18,$A1289))/1000","v":{"$error":"#NAME?"}}]
[1283,{"$f":"_xll.RiskData('Risk Summary'!J$48,$A1290)/1000","v":{"$error":"#NAME?"}},{"$f":"_xll.RiskData('Risk Summary'!K$48,$A1290)/1000","v":{"$error":"#NAME?"}},{"$f":"_xll.RiskData('Risk Summary'!L$48,$A1290)/1000","v":{"$error":"#NAME?"}},null,null,{"$f":"(_xll.RiskData(NR_to_Cash!C$18,$A1290))/1000","v":{"$error":"#NAME?"}},{"$f":"(_xll.RiskData(NR_to_Cash!D$18,$A1290))/1000","v":{"$error":"#NAME?"}},{"$f":"(_xll.RiskData(NR_to_Cash!E$18,$A1290))/1000","v":{"$error":"#NAME?"}}]
[1284,{"$f":"_xll.RiskData('Risk Summary'!J$48,$A1291)/1000","v":{"$error":"#NAME?"}},{"$f":"_xll.RiskData('Risk Summary'!K$48,$A1291)/1000","v":{"$error":"#NAME?"}},{"$f":"_xll.RiskData('Risk Summary'!L$48,$A1291)/1000","v":{"$error":"#NAME?"}},null,null,{"$f":"(_xll.RiskData(NR_to_Cash!C$18,$A1291))/1000","v":{"$error":"#NAME?"}},{"$f":"(_xll.RiskData(NR_to_Cash!D$18,$A1291))/1000","v":{"$error":"#NAME?"}},{"$f":"(_xll.RiskData(NR_to_Cash!E$18,$A1291))/1000","v":{"$error":"#NAME?"}}]
[1285,{"$f":"_xll.RiskData('Risk Summary'!J$48,$A1292)/1000","v":{"$error":"#NAME?"}},{"$f":"_xll.RiskData('Risk Summary'!K$48,$A1292)/1000","v":{"$error":"#NAME?"}},{"$f":"_xll.RiskData('Risk Summary'!L$48,$A1292)/1000","v":{"$error":"#NAME?"}},null,null,{"$f":"(_xll.RiskData(NR_to_Cash!C$18,$A1292))/1000","v":{"$error":"#NAME?"}},{"$f":"(_xll.RiskData(NR_to_Cash!D$18,$A1292))/1000","v":{"$error":"#NAME?"}},{"$f":"(_xll.RiskData(NR_to_Cash!E$18,$A1292))/1000","v":{"$error":"#NAME?"}}]
[1286,{"$f":"_xll.RiskData('Risk Summary'!J$48,$A1293)/1000","v":{"$error":"#NAME?"}},{"$f":"_xll.RiskData('Risk Summary'!K$48,$A1293)/1000","v":{"$error":"#NAME?"}},{"$f":"_xll.RiskData('Risk Summary'!L$48,$A1293)/1000","v":{"$error":"#NAME?"}},null,null,{"$f":"(_xll.RiskData(NR_to_Cash!C$18,$A1293))/1000","v":{"$error":"#NAME?"}},{"$f":"(_xll.RiskData(NR_to_Cash!D$18,$A1293))/1000","v":{"$error":"#NAME?"}},{"$f":"(_xll.RiskData(NR_to_Cash!E$18,$A1293))/1000","v":{"$error":"#NAME?"}}]
[1287,{"$f":"_xll.RiskData('Risk Summary'!J$48,$A1294)/1000","v":{"$error":"#NAME?"}},{"$f":"_xll.RiskData('Risk Summary'!K$48,$A1294)/1000","v":{"$error":"#NAME?"}},{"$f":"_xll.RiskData('Risk Summary'!L$48,$A1294)/1000","v":{"$error":"#NAME?"}},null,null,{"$f":"(_xll.RiskData(NR_to_Cash!C$18,$A1294))/1000","v":{"$error":"#NAME?"}},{"$f":"(_xll.RiskData(NR_to_Cash!D$18,$A1294))/1000","v":{"$error":"#NAME?"}},{"$f":"(_xll.RiskData(NR_to_Cash!E$18,$A1294))/1000","v":{"$error":"#NAME?"}}]
[1288,{"$f":"_xll.RiskData('Risk Summary'!J$48,$A1295)/1000","v":{"$error":"#NAME?"}},{"$f":"_xll.RiskData('Risk Summary'!K$48,$A1295)/1000","v":{"$error":"#NAME?"}},{"$f":"_xll.RiskData('Risk Summary'!L$48,$A1295)/1000","v":{"$error":"#NAME?"}},null,null,{"$f":"(_xll.RiskData(NR_to_Cash!C$18,$A1295))/1000","v":{"$error":"#NAME?"}},{"$f":"(_xll.RiskData(NR_to_Cash!D$18,$A1295))/1000","v":{"$error":"#NAME?"}},{"$f":"(_xll.RiskData(NR_to_Cash!E$18,$A1295))/1000","v":{"$error":"#NAME?"}}]
[1289,{"$f":"_xll.RiskData('Risk Summary'!J$48,$A1296)/1000","v":{"$error":"#NAME?"}},{"$f":"_xll.RiskData('Risk Summary'!K$48,$A1296)/1000","v":{"$error":"#NAME?"}},{"$f":"_xll.RiskData('Risk Summary'!L$48,$A1296)/1000","v":{"$error":"#NAME?"}},null,null,{"$f":"(_xll.RiskData(NR_to_Cash!C$18,$A1296))/1000","v":{"$error":"#NAME?"}},{"$f":"(_xll.RiskData(NR_to_Cash!D$18,$A1296))/1000","v":{"$error":"#NAME?"}},{"$f":"(_xll.RiskData(NR_to_Cash!E$18,$A1296))/1000","v":{"$error":"#NAME?"}}]
[1290,{"$f":"_xll.RiskData('Risk Summary'!J$48,$A1297)/1000","v":{"$error":"#NAME?"}},{"$f":"_xll.RiskData('Risk Summary'!K$48,$A1297)/1000","v":{"$error":"#NAME?"}},{"$f":"_xll.RiskData('Risk Summary'!L$48,$A1297)/1000","v":{"$error":"#NAME?"}},null,null,{"$f":"(_xll.RiskData(NR_to_Cash!C$18,$A1297))/1000","v":{"$error":"#NAME?"}},{"$f":"(_xll.RiskData(NR_to_Cash!D$18,$A1297))/1000","v":{"$error":"#NAME?"}},{"$f":"(_xll.RiskData(NR_to_Cash!E$18,$A1297))/1000","v":{"$error":"#NAME?"}}]
[1291,{"$f":"_xll.RiskData('Risk Summary'!J$48,$A1298)/1000","v":{"$error":"#NAME?"}},{"$f":"_xll.RiskData('Risk Summary'!K$48,$A1298)/1000","v":{"$error":"#NAME?"}},{"$f":"_xll.RiskData('Risk Summary'!L$48,$A1298)/1000","v":{"$error":"#NAME?"}},null,null,{"$f":"(_xll.RiskData(NR_to_Cash!C$18,$A1298))/1000","v":{"$error":"#NAME?"}},{"$f":"(_xll.RiskData(NR_to_Cash!D$18,$A1298))/1000","v":{"$error":"#NAME?"}},{"$f":"(_xll.RiskData(NR_to_Cash!E$18,$A1298))/1000","v":{"$error":"#NAME?"}}]
[1292,{"$f":"_xll.RiskData('Risk Summary'!J$48,$A1299)/1000","v":{"$error":"#NAME?"}},{"$f":"_xll.RiskData('Risk Summary'!K$48,$A1299)/1000","v":{"$error":"#NAME?"}},{"$f":"_xll.RiskData('Risk Summary'!L$48,$A1299)/1000","v":{"$error":"#NAME?"}},null,null,{"$f":"(_xll.RiskData(NR_to_Cash!C$18,$A1299))/1000","v":{"$error":"#NAME?"}},{"$f":"(_xll.RiskData(NR_to_Cash!D$18,$A1299))/1000","v":{"$error":"#NAME?"}},{"$f":"(_xll.RiskData(NR_to_Cash!E$18,$A1299))/1000","v":{"$error":"#NAME?"}}]
[1293,{"$f":"_xll.RiskData('Risk Summary'!J$48,$A1300)/1000","v":{"$error":"#NAME?"}},{"$f":"_xll.RiskData('Risk Summary'!K$48,$A1300)/1000","v":{"$error":"#NAME?"}},{"$f":"_xll.RiskData('Risk Summary'!L$48,$A1300)/1000","v":{"$error":"#NAME?"}},null,null,{"$f":"(_xll.RiskData(NR_to_Cash!C$18,$A1300))/1000","v":{"$error":"#NAME?"}},{"$f":"(_xll.RiskData(NR_to_Cash!D$18,$A1300))/1000","v":{"$error":"#NAME?"}},{"$f":"(_xll.RiskData(NR_to_Cash!E$18,$A1300))/1000","v":{"$error":"#NAME?"}}]
[1294,{"$f":"_xll.RiskData('Risk Summary'!J$48,$A1301)/1000","v":{"$error":"#NAME?"}},{"$f":"_xll.RiskData('Risk Summary'!K$48,$A1301)/1000","v":{"$error":"#NAME?"}},{"$f":"_xll.RiskData('Risk Summary'!L$48,$A1301)/1000","v":{"$error":"#NAME?"}},null,null,{"$f":"(_xll.RiskData(NR_to_Cash!C$18,$A1301))/1000","v":{"$error":"#NAME?"}},{"$f":"(_xll.RiskData(NR_to_Cash!D$18,$A1301))/1000","v":{"$error":"#NAME?"}},{"$f":"(_xll.RiskData(NR_to_Cash!E$18,$A1301))/1000","v":{"$error":"#NAME?"}}]
[1295,{"$f":"_xll.RiskData('Risk Summary'!J$48,$A1302)/1000","v":{"$error":"#NAME?"}},{"$f":"_xll.RiskData('Risk Summary'!K$48,$A1302)/1000","v":{"$error":"#NAME?"}},{"$f":"_xll.RiskData('Risk Summary'!L$48,$A1302)/1000","v":{"$error":"#NAME?"}},null,null,{"$f":"(_xll.RiskData(NR_to_Cash!C$18,$A1302))/1000","v":{"$error":"#NAME?"}},{"$f":"(_xll.RiskData(NR_to_Cash!D$18,$A1302))/1000","v":{"$error":"#NAME?"}},{"$f":"(_xll.RiskData(NR_to_Cash!E$18,$A1302))/1000","v":{"$error":"#NAME?"}}]
[1296,{"$f":"_xll.RiskData('Risk Summary'!J$48,$A1303)/1000","v":{"$error":"#NAME?"}},{"$f":"_xll.RiskData('Risk Summary'!K$48,$A1303)/1000","v":{"$error":"#NAME?"}},{"$f":"_xll.RiskData('Risk Summary'!L$48,$A1303)/1000","v":{"$error":"#NAME?"}},null,null,{"$f":"(_xll.RiskData(NR_to_Cash!C$18,$A1303))/1000","v":{"$error":"#NAME?"}},{"$f":"(_xll.RiskData(NR_to_Cash!D$18,$A1303))/1000","v":{"$error":"#NAME?"}},{"$f":"(_xll.RiskData(NR_to_Cash!E$18,$A1303))/1000","v":{"$error":"#NAME?"}}]
[1297,{"$f":"_xll.RiskData('Risk Summary'!J$48,$A1304)/1000","v":{"$error":"#NAME?"}},{"$f":"_xll.RiskData('Risk Summary'!K$48,$A1304)/1000","v":{"$error":"#NAME?"}},{"$f":"_xll.RiskData('Risk Summary'!L$48,$A1304)/1000","v":{"$error":"#NAME?"}},null,null,{"$f":"(_xll.RiskData(NR_to_Cash!C$18,$A1304))/1000","v":{"$error":"#NAME?"}},{"$f":"(_xll.RiskData(NR_to_Cash!D$18,$A1304))/1000","v":{"$error":"#NAME?"}},{"$f":"(_xll.RiskData(NR_to_Cash!E$18,$A1304))/1000","v":{"$error":"#NAME?"}}]
[1298,{"$f":"_xll.RiskData('Risk Summary'!J$48,$A1305)/1000","v":{"$error":"#NAME?"}},{"$f":"_xll.RiskData('Risk Summary'!K$48,$A1305)/1000","v":{"$error":"#NAME?"}},{"$f":"_xll.RiskData('Risk Summary'!L$48,$A1305)/1000","v":{"$error":"#NAME?"}},null,null,{"$f":"(_xll.RiskData(NR_to_Cash!C$18,$A1305))/1000","v":{"$error":"#NAME?"}},{"$f":"(_xll.RiskData(NR_to_Cash!D$18,$A1305))/1000","v":{"$error":"#NAME?"}},{"$f":"(_xll.RiskData(NR_to_Cash!E$18,$A1305))/1000","v":{"$error":"#NAME?"}}]
[1299,{"$f":"_xll.RiskData('Risk Summary'!J$48,$A1306)/1000","v":{"$error":"#NAME?"}},{"$f":"_xll.RiskData('Risk Summary'!K$48,$A1306)/1000","v":{"$error":"#NAME?"}},{"$f":"_xll.RiskData('Risk Summary'!L$48,$A1306)/1000","v":{"$error":"#NAME?"}},null,null,{"$f":"(_xll.RiskData(NR_to_Cash!C$18,$A1306))/1000","v":{"$error":"#NAME?"}},{"$f":"(_xll.RiskData(NR_to_Cash!D$18,$A1306))/1000","v":{"$error":"#NAME?"}},{"$f":"(_xll.RiskData(NR_to_Cash!E$18,$A1306))/1000","v":{"$error":"#NAME?"}}]
[1300,{"$f":"_xll.RiskData('Risk Summary'!J$48,$A1307)/1000","v":{"$error":"#NAME?"}},{"$f":"_xll.RiskData('Risk Summary'!K$48,$A1307)/1000","v":{"$error":"#NAME?"}},{"$f":"_xll.RiskData('Risk Summary'!L$48,$A1307)/1000","v":{"$error":"#NAME?"}},null,null,{"$f":"(_xll.RiskData(NR_to_Cash!C$18,$A1307))/1000","v":{"$error":"#NAME?"}},{"$f":"(_xll.RiskData(NR_to_Cash!D$18,$A1307))/1000","v":{"$error":"#NAME?"}},{"$f":"(_xll.RiskData(NR_to_Cash!E$18,$A1307))/1000","v":{"$error":"#NAME?"}}]
[1301,{"$f":"_xll.RiskData('Risk Summary'!J$48,$A1308)/1000","v":{"$error":"#NAME?"}},{"$f":"_xll.RiskData('Risk Summary'!K$48,$A1308)/1000","v":{"$error":"#NAME?"}},{"$f":"_xll.RiskData('Risk Summary'!L$48,$A1308)/1000","v":{"$error":"#NAME?"}},null,null,{"$f":"(_xll.RiskData(NR_to_Cash!C$18,$A1308))/1000","v":{"$error":"#NAME?"}},{"$f":"(_xll.RiskData(NR_to_Cash!D$18,$A1308))/1000","v":{"$error":"#NAME?"}},{"$f":"(_xll.RiskData(NR_to_Cash!E$18,$A1308))/1000","v":{"$error":"#NAME?"}}]
[1302,{"$f":"_xll.RiskData('Risk Summary'!J$48,$A1309)/1000","v":{"$error":"#NAME?"}},{"$f":"_xll.RiskData('Risk Summary'!K$48,$A1309)/1000","v":{"$error":"#NAME?"}},{"$f":"_xll.RiskData('Risk Summary'!L$48,$A1309)/1000","v":{"$error":"#NAME?"}},null,null,{"$f":"(_xll.RiskData(NR_to_Cash!C$18,$A1309))/1000","v":{"$error":"#NAME?"}},{"$f":"(_xll.RiskData(NR_to_Cash!D$18,$A1309))/1000","v":{"$error":"#NAME?"}},{"$f":"(_xll.RiskData(NR_to_Cash!E$18,$A1309))/1000","v":{"$error":"#NAME?"}}]
[1303,{"$f":"_xll.RiskData('Risk Summary'!J$48,$A1310)/1000","v":{"$error":"#NAME?"}},{"$f":"_xll.RiskData('Risk Summary'!K$48,$A1310)/1000","v":{"$error":"#NAME?"}},{"$f":"_xll.RiskData('Risk Summary'!L$48,$A1310)/1000","v":{"$error":"#NAME?"}},null,null,{"$f":"(_xll.RiskData(NR_to_Cash!C$18,$A1310))/1000","v":{"$error":"#NAME?"}},{"$f":"(_xll.RiskData(NR_to_Cash!D$18,$A1310))/1000","v":{"$error":"#NAME?"}},{"$f":"(_xll.RiskData(NR_to_Cash!E$18,$A1310))/1000","v":{"$error":"#NAME?"}}]
[1304,{"$f":"_xll.RiskData('Risk Summary'!J$48,$A1311)/1000","v":{"$error":"#NAME?"}},{"$f":"_xll.RiskData('Risk Summary'!K$48,$A1311)/1000","v":{"$error":"#NAME?"}},{"$f":"_xll.RiskData('Risk Summary'!L$48,$A1311)/1000","v":{"$error":"#NAME?"}},null,null,{"$f":"(_xll.RiskData(NR_to_Cash!C$18,$A1311))/1000","v":{"$error":"#NAME?"}},{"$f":"(_xll.RiskData(NR_to_Cash!D$18,$A1311))/1000","v":{"$error":"#NAME?"}},{"$f":"(_xll.RiskData(NR_to_Cash!E$18,$A1311))/1000","v":{"$error":"#NAME?"}}]
[1305,{"$f":"_xll.RiskData('Risk Summary'!J$48,$A1312)/1000","v":{"$error":"#NAME?"}},{"$f":"_xll.RiskData('Risk Summary'!K$48,$A1312)/1000","v":{"$error":"#NAME?"}},{"$f":"_xll.RiskData('Risk Summary'!L$48,$A1312)/1000","v":{"$error":"#NAME?"}},null,null,{"$f":"(_xll.RiskData(NR_to_Cash!C$18,$A1312))/1000","v":{"$error":"#NAME?"}},{"$f":"(_xll.RiskData(NR_to_Cash!D$18,$A1312))/1000","v":{"$error":"#NAME?"}},{"$f":"(_xll.RiskData(NR_to_Cash!E$18,$A1312))/1000","v":{"$error":"#NAME?"}}]
[1306,{"$f":"_xll.RiskData('Risk Summary'!J$48,$A1313)/1000","v":{"$error":"#NAME?"}},{"$f":"_xll.RiskData('Risk Summary'!K$48,$A1313)/1000","v":{"$error":"#NAME?"}},{"$f":"_xll.RiskData('Risk Summary'!L$48,$A1313)/1000","v":{"$error":"#NAME?"}},null,null,{"$f":"(_xll.RiskData(NR_to_Cash!C$18,$A1313))/1000","v":{"$error":"#NAME?"}},{"$f":"(_xll.RiskData(NR_to_Cash!D$18,$A1313))/1000","v":{"$error":"#NAME?"}},{"$f":"(_xll.RiskData(NR_to_Cash!E$18,$A1313))/1000","v":{"$error":"#NAME?"}}]
[1307,{"$f":"_xll.RiskData('Risk Summary'!J$48,$A1314)/1000","v":{"$error":"#NAME?"}},{"$f":"_xll.RiskData('Risk Summary'!K$48,$A1314)/1000","v":{"$error":"#NAME?"}},{"$f":"_xll.RiskData('Risk Summary'!L$48,$A1314)/1000","v":{"$error":"#NAME?"}},null,null,{"$f":"(_xll.RiskData(NR_to_Cash!C$18,$A1314))/1000","v":{"$error":"#NAME?"}},{"$f":"(_xll.RiskData(NR_to_Cash!D$18,$A1314))/1000","v":{"$error":"#NAME?"}},{"$f":"(_xll.RiskData(NR_to_Cash!E$18,$A1314))/1000","v":{"$error":"#NAME?"}}]
[1308,{"$f":"_xll.RiskData('Risk Summary'!J$48,$A1315)/1000","v":{"$error":"#NAME?"}},{"$f":"_xll.RiskData('Risk Summary'!K$48,$A1315)/1000","v":{"$error":"#NAME?"}},{"$f":"_xll.RiskData('Risk Summary'!L$48,$A1315)/1000","v":{"$error":"#NAME?"}},null,null,{"$f":"(_xll.RiskData(NR_to_Cash!C$18,$A1315))/1000","v":{"$error":"#NAME?"}},{"$f":"(_xll.RiskData(NR_to_Cash!D$18,$A1315))/1000","v":{"$error":"#NAME?"}},{"$f":"(_xll.RiskData(NR_to_Cash!E$18,$A1315))/1000","v":{"$error":"#NAME?"}}]
[1309,{"$f":"_xll.RiskData('Risk Summary'!J$48,$A1316)/1000","v":{"$error":"#NAME?"}},{"$f":"_xll.RiskData('Risk Summary'!K$48,$A1316)/1000","v":{"$error":"#NAME?"}},{"$f":"_xll.RiskData('Risk Summary'!L$48,$A1316)/1000","v":{"$error":"#NAME?"}},null,null,{"$f":"(_xll.RiskData(NR_to_Cash!C$18,$A1316))/1000","v":{"$error":"#NAME?"}},{"$f":"(_xll.RiskData(NR_to_Cash!D$18,$A1316))/1000","v":{"$error":"#NAME?"}},{"$f":"(_xll.RiskData(NR_to_Cash!E$18,$A1316))/1000","v":{"$error":"#NAME?"}}]
[1310,{"$f":"_xll.RiskData('Risk Summary'!J$48,$A1317)/1000","v":{"$error":"#NAME?"}},{"$f":"_xll.RiskData('Risk Summary'!K$48,$A1317)/1000","v":{"$error":"#NAME?"}},{"$f":"_xll.RiskData('Risk Summary'!L$48,$A1317)/1000","v":{"$error":"#NAME?"}},null,null,{"$f":"(_xll.RiskData(NR_to_Cash!C$18,$A1317))/1000","v":{"$error":"#NAME?"}},{"$f":"(_xll.RiskData(NR_to_Cash!D$18,$A1317))/1000","v":{"$error":"#NAME?"}},{"$f":"(_xll.RiskData(NR_to_Cash!E$18,$A1317))/1000","v":{"$error":"#NAME?"}}]
[1311,{"$f":"_xll.RiskData('Risk Summary'!J$48,$A1318)/1000","v":{"$error":"#NAME?"}},{"$f":"_xll.RiskData('Risk Summary'!K$48,$A1318)/1000","v":{"$error":"#NAME?"}},{"$f":"_xll.RiskData('Risk Summary'!L$48,$A1318)/1000","v":{"$error":"#NAME?"}},null,null,{"$f":"(_xll.RiskData(NR_to_Cash!C$18,$A1318))/1000","v":{"$error":"#NAME?"}},{"$f":"(_xll.RiskData(NR_to_Cash!D$18,$A1318))/1000","v":{"$error":"#NAME?"}},{"$f":"(_xll.RiskData(NR_to_Cash!E$18,$A1318))/1000","v":{"$error":"#NAME?"}}]
[1312,{"$f":"_xll.RiskData('Risk Summary'!J$48,$A1319)/1000","v":{"$error":"#NAME?"}},{"$f":"_xll.RiskData('Risk Summary'!K$48,$A1319)/1000","v":{"$error":"#NAME?"}},{"$f":"_xll.RiskData('Risk Summary'!L$48,$A1319)/1000","v":{"$error":"#NAME?"}},null,null,{"$f":"(_xll.RiskData(NR_to_Cash!C$18,$A1319))/1000","v":{"$error":"#NAME?"}},{"$f":"(_xll.RiskData(NR_to_Cash!D$18,$A1319))/1000","v":{"$error":"#NAME?"}},{"$f":"(_xll.RiskData(NR_to_Cash!E$18,$A1319))/1000","v":{"$error":"#NAME?"}}]
[1313,{"$f":"_xll.RiskData('Risk Summary'!J$48,$A1320)/1000","v":{"$error":"#NAME?"}},{"$f":"_xll.RiskData('Risk Summary'!K$48,$A1320)/1000","v":{"$error":"#NAME?"}},{"$f":"_xll.RiskData('Risk Summary'!L$48,$A1320)/1000","v":{"$error":"#NAME?"}},null,null,{"$f":"(_xll.RiskData(NR_to_Cash!C$18,$A1320))/1000","v":{"$error":"#NAME?"}},{"$f":"(_xll.RiskData(NR_to_Cash!D$18,$A1320))/1000","v":{"$error":"#NAME?"}},{"$f":"(_xll.RiskData(NR_to_Cash!E$18,$A1320))/1000","v":{"$error":"#NAME?"}}]
[1314,{"$f":"_xll.RiskData('Risk Summary'!J$48,$A1321)/1000","v":{"$error":"#NAME?"}},{"$f":"_xll.RiskData('Risk Summary'!K$48,$A1321)/1000","v":{"$error":"#NAME?"}},{"$f":"_xll.RiskData('Risk Summary'!L$48,$A1321)/1000","v":{"$error":"#NAME?"}},null,null,{"$f":"(_xll.RiskData(NR_to_Cash!C$18,$A1321))/1000","v":{"$error":"#NAME?"}},{"$f":"(_xll.RiskData(NR_to_Cash!D$18,$A1321))/1000","v":{"$error":"#NAME?"}},{"$f":"(_xll.RiskData(NR_to_Cash!E$18,$A1321))/1000","v":{"$error":"#NAME?"}}]
[1315,{"$f":"_xll.RiskData('Risk Summary'!J$48,$A1322)/1000","v":{"$error":"#NAME?"}},{"$f":"_xll.RiskData('Risk Summary'!K$48,$A1322)/1000","v":{"$error":"#NAME?"}},{"$f":"_xll.RiskData('Risk Summary'!L$48,$A1322)/1000","v":{"$error":"#NAME?"}},null,null,{"$f":"(_xll.RiskData(NR_to_Cash!C$18,$A1322))/1000","v":{"$error":"#NAME?"}},{"$f":"(_xll.RiskData(NR_to_Cash!D$18,$A1322))/1000","v":{"$error":"#NAME?"}},{"$f":"(_xll.RiskData(NR_to_Cash!E$18,$A1322))/1000","v":{"$error":"#NAME?"}}]
[1316,{"$f":"_xll.RiskData('Risk Summary'!J$48,$A1323)/1000","v":{"$error":"#NAME?"}},{"$f":"_xll.RiskData('Risk Summary'!K$48,$A1323)/1000","v":{"$error":"#NAME?"}},{"$f":"_xll.RiskData('Risk Summary'!L$48,$A1323)/1000","v":{"$error":"#NAME?"}},null,null,{"$f":"(_xll.RiskData(NR_to_Cash!C$18,$A1323))/1000","v":{"$error":"#NAME?"}},{"$f":"(_xll.RiskData(NR_to_Cash!D$18,$A1323))/1000","v":{"$error":"#NAME?"}},{"$f":"(_xll.RiskData(NR_to_Cash!E$18,$A1323))/1000","v":{"$error":"#NAME?"}}]
[1317,{"$f":"_xll.RiskData('Risk Summary'!J$48,$A1324)/1000","v":{"$error":"#NAME?"}},{"$f":"_xll.RiskData('Risk Summary'!K$48,$A1324)/1000","v":{"$error":"#NAME?"}},{"$f":"_xll.RiskData('Risk Summary'!L$48,$A1324)/1000","v":{"$error":"#NAME?"}},null,null,{"$f":"(_xll.RiskData(NR_to_Cash!C$18,$A1324))/1000","v":{"$error":"#NAME?"}},{"$f":"(_xll.RiskData(NR_to_Cash!D$18,$A1324))/1000","v":{"$error":"#NAME?"}},{"$f":"(_xll.RiskData(NR_to_Cash!E$18,$A1324))/1000","v":{"$error":"#NAME?"}}]
[1318,{"$f":"_xll.RiskData('Risk Summary'!J$48,$A1325)/1000","v":{"$error":"#NAME?"}},{"$f":"_xll.RiskData('Risk Summary'!K$48,$A1325)/1000","v":{"$error":"#NAME?"}},{"$f":"_xll.RiskData('Risk Summary'!L$48,$A1325)/1000","v":{"$error":"#NAME?"}},null,null,{"$f":"(_xll.RiskData(NR_to_Cash!C$18,$A1325))/1000","v":{"$error":"#NAME?"}},{"$f":"(_xll.RiskData(NR_to_Cash!D$18,$A1325))/1000","v":{"$error":"#NAME?"}},{"$f":"(_xll.RiskData(NR_to_Cash!E$18,$A1325))/1000","v":{"$error":"#NAME?"}}]
[1319,{"$f":"_xll.RiskData('Risk Summary'!J$48,$A1326)/1000","v":{"$error":"#NAME?"}},{"$f":"_xll.RiskData('Risk Summary'!K$48,$A1326)/1000","v":{"$error":"#NAME?"}},{"$f":"_xll.RiskData('Risk Summary'!L$48,$A1326)/1000","v":{"$error":"#NAME?"}},null,null,{"$f":"(_xll.RiskData(NR_to_Cash!C$18,$A1326))/1000","v":{"$error":"#NAME?"}},{"$f":"(_xll.RiskData(NR_to_Cash!D$18,$A1326))/1000","v":{"$error":"#NAME?"}},{"$f":"(_xll.RiskData(NR_to_Cash!E$18,$A1326))/1000","v":{"$error":"#NAME?"}}]
[1320,{"$f":"_xll.RiskData('Risk Summary'!J$48,$A1327)/1000","v":{"$error":"#NAME?"}},{"$f":"_xll.RiskData('Risk Summary'!K$48,$A1327)/1000","v":{"$error":"#NAME?"}},{"$f":"_xll.RiskData('Risk Summary'!L$48,$A1327)/1000","v":{"$error":"#NAME?"}},null,null,{"$f":"(_xll.RiskData(NR_to_Cash!C$18,$A1327))/1000","v":{"$error":"#NAME?"}},{"$f":"(_xll.RiskData(NR_to_Cash!D$18,$A1327))/1000","v":{"$error":"#NAME?"}},{"$f":"(_xll.RiskData(NR_to_Cash!E$18,$A1327))/1000","v":{"$error":"#NAME?"}}]
[1321,{"$f":"_xll.RiskData('Risk Summary'!J$48,$A1328)/1000","v":{"$error":"#NAME?"}},{"$f":"_xll.RiskData('Risk Summary'!K$48,$A1328)/1000","v":{"$error":"#NAME?"}},{"$f":"_xll.RiskData('Risk Summary'!L$48,$A1328)/1000","v":{"$error":"#NAME?"}},null,null,{"$f":"(_xll.RiskData(NR_to_Cash!C$18,$A1328))/1000","v":{"$error":"#NAME?"}},{"$f":"(_xll.RiskData(NR_to_Cash!D$18,$A1328))/1000","v":{"$error":"#NAME?"}},{"$f":"(_xll.RiskData(NR_to_Cash!E$18,$A1328))/1000","v":{"$error":"#NAME?"}}]
[1322,{"$f":"_xll.RiskData('Risk Summary'!J$48,$A1329)/1000","v":{"$error":"#NAME?"}},{"$f":"_xll.RiskData('Risk Summary'!K$48,$A1329)/1000","v":{"$error":"#NAME?"}},{"$f":"_xll.RiskData('Risk Summary'!L$48,$A1329)/1000","v":{"$error":"#NAME?"}},null,null,{"$f":"(_xll.RiskData(NR_to_Cash!C$18,$A1329))/1000","v":{"$error":"#NAME?"}},{"$f":"(_xll.RiskData(NR_to_Cash!D$18,$A1329))/1000","v":{"$error":"#NAME?"}},{"$f":"(_xll.RiskData(NR_to_Cash!E$18,$A1329))/1000","v":{"$error":"#NAME?"}}]
[1323,{"$f":"_xll.RiskData('Risk Summary'!J$48,$A1330)/1000","v":{"$error":"#NAME?"}},{"$f":"_xll.RiskData('Risk Summary'!K$48,$A1330)/1000","v":{"$error":"#NAME?"}},{"$f":"_xll.RiskData('Risk Summary'!L$48,$A1330)/1000","v":{"$error":"#NAME?"}},null,null,{"$f":"(_xll.RiskData(NR_to_Cash!C$18,$A1330))/1000","v":{"$error":"#NAME?"}},{"$f":"(_xll.RiskData(NR_to_Cash!D$18,$A1330))/1000","v":{"$error":"#NAME?"}},{"$f":"(_xll.RiskData(NR_to_Cash!E$18,$A1330))/1000","v":{"$error":"#NAME?"}}]
[1324,{"$f":"_xll.RiskData('Risk Summary'!J$48,$A1331)/1000","v":{"$error":"#NAME?"}},{"$f":"_xll.RiskData('Risk Summary'!K$48,$A1331)/1000","v":{"$error":"#NAME?"}},{"$f":"_xll.RiskData('Risk Summary'!L$48,$A1331)/1000","v":{"$error":"#NAME?"}},null,null,{"$f":"(_xll.RiskData(NR_to_Cash!C$18,$A1331))/1000","v":{"$error":"#NAME?"}},{"$f":"(_xll.RiskData(NR_to_Cash!D$18,$A1331))/1000","v":{"$error":"#NAME?"}},{"$f":"(_xll.RiskData(NR_to_Cash!E$18,$A1331))/1000","v":{"$error":"#NAME?"}}]
[1325,{"$f":"_xll.RiskData('Risk Summary'!J$48,$A1332)/1000","v":{"$error":"#NAME?"}},{"$f":"_xll.RiskData('Risk Summary'!K$48,$A1332)/1000","v":{"$error":"#NAME?"}},{"$f":"_xll.RiskData('Risk Summary'!L$48,$A1332)/1000","v":{"$error":"#NAME?"}},null,null,{"$f":"(_xll.RiskData(NR_to_Cash!C$18,$A1332))/1000","v":{"$error":"#NAME?"}},{"$f":"(_xll.RiskData(NR_to_Cash!D$18,$A1332))/1000","v":{"$error":"#NAME?"}},{"$f":"(_xll.RiskData(NR_to_Cash!E$18,$A1332))/1000","v":{"$error":"#NAME?"}}]
[1326,{"$f":"_xll.RiskData('Risk Summary'!J$48,$A1333)/1000","v":{"$error":"#NAME?"}},{"$f":"_xll.RiskData('Risk Summary'!K$48,$A1333)/1000","v":{"$error":"#NAME?"}},{"$f":"_xll.RiskData('Risk Summary'!L$48,$A1333)/1000","v":{"$error":"#NAME?"}},null,null,{"$f":"(_xll.RiskData(NR_to_Cash!C$18,$A1333))/1000","v":{"$error":"#NAME?"}},{"$f":"(_xll.RiskData(NR_to_Cash!D$18,$A1333))/1000","v":{"$error":"#NAME?"}},{"$f":"(_xll.RiskData(NR_to_Cash!E$18,$A1333))/1000","v":{"$error":"#NAME?"}}]
[1327,{"$f":"_xll.RiskData('Risk Summary'!J$48,$A1334)/1000","v":{"$error":"#NAME?"}},{"$f":"_xll.RiskData('Risk Summary'!K$48,$A1334)/1000","v":{"$error":"#NAME?"}},{"$f":"_xll.RiskData('Risk Summary'!L$48,$A1334)/1000","v":{"$error":"#NAME?"}},null,null,{"$f":"(_xll.RiskData(NR_to_Cash!C$18,$A1334))/1000","v":{"$error":"#NAME?"}},{"$f":"(_xll.RiskData(NR_to_Cash!D$18,$A1334))/1000","v":{"$error":"#NAME?"}},{"$f":"(_xll.RiskData(NR_to_Cash!E$18,$A1334))/1000","v":{"$error":"#NAME?"}}]
[1328,{"$f":"_xll.RiskData('Risk Summary'!J$48,$A1335)/1000","v":{"$error":"#NAME?"}},{"$f":"_xll.RiskData('Risk Summary'!K$48,$A1335)/1000","v":{"$error":"#NAME?"}},{"$f":"_xll.RiskData('Risk Summary'!L$48,$A1335)/1000","v":{"$error":"#NAME?"}},null,null,{"$f":"(_xll.RiskData(NR_to_Cash!C$18,$A1335))/1000","v":{"$error":"#NAME?"}},{"$f":"(_xll.RiskData(NR_to_Cash!D$18,$A1335))/1000","v":{"$error":"#NAME?"}},{"$f":"(_xll.RiskData(NR_to_Cash!E$18,$A1335))/1000","v":{"$error":"#NAME?"}}]
[1329,{"$f":"_xll.RiskData('Risk Summary'!J$48,$A1336)/1000","v":{"$error":"#NAME?"}},{"$f":"_xll.RiskData('Risk Summary'!K$48,$A1336)/1000","v":{"$error":"#NAME?"}},{"$f":"_xll.RiskData('Risk Summary'!L$48,$A1336)/1000","v":{"$error":"#NAME?"}},null,null,{"$f":"(_xll.RiskData(NR_to_Cash!C$18,$A1336))/1000","v":{"$error":"#NAME?"}},{"$f":"(_xll.RiskData(NR_to_Cash!D$18,$A1336))/1000","v":{"$error":"#NAME?"}},{"$f":"(_xll.RiskData(NR_to_Cash!E$18,$A1336))/1000","v":{"$error":"#NAME?"}}]
[1330,{"$f":"_xll.RiskData('Risk Summary'!J$48,$A1337)/1000","v":{"$error":"#NAME?"}},{"$f":"_xll.RiskData('Risk Summary'!K$48,$A1337)/1000","v":{"$error":"#NAME?"}},{"$f":"_xll.RiskData('Risk Summary'!L$48,$A1337)/1000","v":{"$error":"#NAME?"}},null,null,{"$f":"(_xll.RiskData(NR_to_Cash!C$18,$A1337))/1000","v":{"$error":"#NAME?"}},{"$f":"(_xll.RiskData(NR_to_Cash!D$18,$A1337))/1000","v":{"$error":"#NAME?"}},{"$f":"(_xll.RiskData(NR_to_Cash!E$18,$A1337))/1000","v":{"$error":"#NAME?"}}]
[1331,{"$f":"_xll.RiskData('Risk Summary'!J$48,$A1338)/1000","v":{"$error":"#NAME?"}},{"$f":"_xll.RiskData('Risk Summary'!K$48,$A1338)/1000","v":{"$error":"#NAME?"}},{"$f":"_xll.RiskData('Risk Summary'!L$48,$A1338)/1000","v":{"$error":"#NAME?"}},null,null,{"$f":"(_xll.RiskData(NR_to_Cash!C$18,$A1338))/1000","v":{"$error":"#NAME?"}},{"$f":"(_xll.RiskData(NR_to_Cash!D$18,$A1338))/1000","v":{"$error":"#NAME?"}},{"$f":"(_xll.RiskData(NR_to_Cash!E$18,$A1338))/1000","v":{"$error":"#NAME?"}}]
[1332,{"$f":"_xll.RiskData('Risk Summary'!J$48,$A1339)/1000","v":{"$error":"#NAME?"}},{"$f":"_xll.RiskData('Risk Summary'!K$48,$A1339)/1000","v":{"$error":"#NAME?"}},{"$f":"_xll.RiskData('Risk Summary'!L$48,$A1339)/1000","v":{"$error":"#NAME?"}},null,null,{"$f":"(_xll.RiskData(NR_to_Cash!C$18,$A1339))/1000","v":{"$error":"#NAME?"}},{"$f":"(_xll.RiskData(NR_to_Cash!D$18,$A1339))/1000","v":{"$error":"#NAME?"}},{"$f":"(_xll.RiskData(NR_to_Cash!E$18,$A1339))/1000","v":{"$error":"#NAME?"}}]
[1333,{"$f":"_xll.RiskData('Risk Summary'!J$48,$A1340)/1000","v":{"$error":"#NAME?"}},{"$f":"_xll.RiskData('Risk Summary'!K$48,$A1340)/1000","v":{"$error":"#NAME?"}},{"$f":"_xll.RiskData('Risk Summary'!L$48,$A1340)/1000","v":{"$error":"#NAME?"}},null,null,{"$f":"(_xll.RiskData(NR_to_Cash!C$18,$A1340))/1000","v":{"$error":"#NAME?"}},{"$f":"(_xll.RiskData(NR_to_Cash!D$18,$A1340))/1000","v":{"$error":"#NAME?"}},{"$f":"(_xll.RiskData(NR_to_Cash!E$18,$A1340))/1000","v":{"$error":"#NAME?"}}]
[1334,{"$f":"_xll.RiskData('Risk Summary'!J$48,$A1341)/1000","v":{"$error":"#NAME?"}},{"$f":"_xll.RiskData('Risk Summary'!K$48,$A1341)/1000","v":{"$error":"#NAME?"}},{"$f":"_xll.RiskData('Risk Summary'!L$48,$A1341)/1000","v":{"$error":"#NAME?"}},null,null,{"$f":"(_xll.RiskData(NR_to_Cash!C$18,$A1341))/1000","v":{"$error":"#NAME?"}},{"$f":"(_xll.RiskData(NR_to_Cash!D$18,$A1341))/1000","v":{"$error":"#NAME?"}},{"$f":"(_xll.RiskData(NR_to_Cash!E$18,$A1341))/1000","v":{"$error":"#NAME?"}}]
[1335,{"$f":"_xll.RiskData('Risk Summary'!J$48,$A1342)/1000","v":{"$error":"#NAME?"}},{"$f":"_xll.RiskData('Risk Summary'!K$48,$A1342)/1000","v":{"$error":"#NAME?"}},{"$f":"_xll.RiskData('Risk Summary'!L$48,$A1342)/1000","v":{"$error":"#NAME?"}},null,null,{"$f":"(_xll.RiskData(NR_to_Cash!C$18,$A1342))/1000","v":{"$error":"#NAME?"}},{"$f":"(_xll.RiskData(NR_to_Cash!D$18,$A1342))/1000","v":{"$error":"#NAME?"}},{"$f":"(_xll.RiskData(NR_to_Cash!E$18,$A1342))/1000","v":{"$error":"#NAME?"}}]
[1336,{"$f":"_xll.RiskData('Risk Summary'!J$48,$A1343)/1000","v":{"$error":"#NAME?"}},{"$f":"_xll.RiskData('Risk Summary'!K$48,$A1343)/1000","v":{"$error":"#NAME?"}},{"$f":"_xll.RiskData('Risk Summary'!L$48,$A1343)/1000","v":{"$error":"#NAME?"}},null,null,{"$f":"(_xll.RiskData(NR_to_Cash!C$18,$A1343))/1000","v":{"$error":"#NAME?"}},{"$f":"(_xll.RiskData(NR_to_Cash!D$18,$A1343))/1000","v":{"$error":"#NAME?"}},{"$f":"(_xll.RiskData(NR_to_Cash!E$18,$A1343))/1000","v":{"$error":"#NAME?"}}]
[1337,{"$f":"_xll.RiskData('Risk Summary'!J$48,$A1344)/1000","v":{"$error":"#NAME?"}},{"$f":"_xll.RiskData('Risk Summary'!K$48,$A1344)/1000","v":{"$error":"#NAME?"}},{"$f":"_xll.RiskData('Risk Summary'!L$48,$A1344)/1000","v":{"$error":"#NAME?"}},null,null,{"$f":"(_xll.RiskData(NR_to_Cash!C$18,$A1344))/1000","v":{"$error":"#NAME?"}},{"$f":"(_xll.RiskData(NR_to_Cash!D$18,$A1344))/1000","v":{"$error":"#NAME?"}},{"$f":"(_xll.RiskData(NR_to_Cash!E$18,$A1344))/1000","v":{"$error":"#NAME?"}}]
[1338,{"$f":"_xll.RiskData('Risk Summary'!J$48,$A1345)/1000","v":{"$error":"#NAME?"}},{"$f":"_xll.RiskData('Risk Summary'!K$48,$A1345)/1000","v":{"$error":"#NAME?"}},{"$f":"_xll.RiskData('Risk Summary'!L$48,$A1345)/1000","v":{"$error":"#NAME?"}},null,null,{"$f":"(_xll.RiskData(NR_to_Cash!C$18,$A1345))/1000","v":{"$error":"#NAME?"}},{"$f":"(_xll.RiskData(NR_to_Cash!D$18,$A1345))/1000","v":{"$error":"#NAME?"}},{"$f":"(_xll.RiskData(NR_to_Cash!E$18,$A1345))/1000","v":{"$error":"#NAME?"}}]
[1339,{"$f":"_xll.RiskData('Risk Summary'!J$48,$A1346)/1000","v":{"$error":"#NAME?"}},{"$f":"_xll.RiskData('Risk Summary'!K$48,$A1346)/1000","v":{"$error":"#NAME?"}},{"$f":"_xll.RiskData('Risk Summary'!L$48,$A1346)/1000","v":{"$error":"#NAME?"}},null,null,{"$f":"(_xll.RiskData(NR_to_Cash!C$18,$A1346))/1000","v":{"$error":"#NAME?"}},{"$f":"(_xll.RiskData(NR_to_Cash!D$18,$A1346))/1000","v":{"$error":"#NAME?"}},{"$f":"(_xll.RiskData(NR_to_Cash!E$18,$A1346))/1000","v":{"$error":"#NAME?"}}]
[1340,{"$f":"_xll.RiskData('Risk Summary'!J$48,$A1347)/1000","v":{"$error":"#NAME?"}},{"$f":"_xll.RiskData('Risk Summary'!K$48,$A1347)/1000","v":{"$error":"#NAME?"}},{"$f":"_xll.RiskData('Risk Summary'!L$48,$A1347)/1000","v":{"$error":"#NAME?"}},null,null,{"$f":"(_xll.RiskData(NR_to_Cash!C$18,$A1347))/1000","v":{"$error":"#NAME?"}},{"$f":"(_xll.RiskData(NR_to_Cash!D$18,$A1347))/1000","v":{"$error":"#NAME?"}},{"$f":"(_xll.RiskData(NR_to_Cash!E$18,$A1347))/1000","v":{"$error":"#NAME?"}}]
[1341,{"$f":"_xll.RiskData('Risk Summary'!J$48,$A1348)/1000","v":{"$error":"#NAME?"}},{"$f":"_xll.RiskData('Risk Summary'!K$48,$A1348)/1000","v":{"$error":"#NAME?"}},{"$f":"_xll.RiskData('Risk Summary'!L$48,$A1348)/1000","v":{"$error":"#NAME?"}},null,null,{"$f":"(_xll.RiskData(NR_to_Cash!C$18,$A1348))/1000","v":{"$error":"#NAME?"}},{"$f":"(_xll.RiskData(NR_to_Cash!D$18,$A1348))/1000","v":{"$error":"#NAME?"}},{"$f":"(_xll.RiskData(NR_to_Cash!E$18,$A1348))/1000","v":{"$error":"#NAME?"}}]
[1342,{"$f":"_xll.RiskData('Risk Summary'!J$48,$A1349)/1000","v":{"$error":"#NAME?"}},{"$f":"_xll.RiskData('Risk Summary'!K$48,$A1349)/1000","v":{"$error":"#NAME?"}},{"$f":"_xll.RiskData('Risk Summary'!L$48,$A1349)/1000","v":{"$error":"#NAME?"}},null,null,{"$f":"(_xll.RiskData(NR_to_Cash!C$18,$A1349))/1000","v":{"$error":"#NAME?"}},{"$f":"(_xll.RiskData(NR_to_Cash!D$18,$A1349))/1000","v":{"$error":"#NAME?"}},{"$f":"(_xll.RiskData(NR_to_Cash!E$18,$A1349))/1000","v":{"$error":"#NAME?"}}]
[1343,{"$f":"_xll.RiskData('Risk Summary'!J$48,$A1350)/1000","v":{"$error":"#NAME?"}},{"$f":"_xll.RiskData('Risk Summary'!K$48,$A1350)/1000","v":{"$error":"#NAME?"}},{"$f":"_xll.RiskData('Risk Summary'!L$48,$A1350)/1000","v":{"$error":"#NAME?"}},null,null,{"$f":"(_xll.RiskData(NR_to_Cash!C$18,$A1350))/1000","v":{"$error":"#NAME?"}},{"$f":"(_xll.RiskData(NR_to_Cash!D$18,$A1350))/1000","v":{"$error":"#NAME?"}},{"$f":"(_xll.RiskData(NR_to_Cash!E$18,$A1350))/1000","v":{"$error":"#NAME?"}}]
[1344,{"$f":"_xll.RiskData('Risk Summary'!J$48,$A1351)/1000","v":{"$error":"#NAME?"}},{"$f":"_xll.RiskData('Risk Summary'!K$48,$A1351)/1000","v":{"$error":"#NAME?"}},{"$f":"_xll.RiskData('Risk Summary'!L$48,$A1351)/1000","v":{"$error":"#NAME?"}},null,null,{"$f":"(_xll.RiskData(NR_to_Cash!C$18,$A1351))/1000","v":{"$error":"#NAME?"}},{"$f":"(_xll.RiskData(NR_to_Cash!D$18,$A1351))/1000","v":{"$error":"#NAME?"}},{"$f":"(_xll.RiskData(NR_to_Cash!E$18,$A1351))/1000","v":{"$error":"#NAME?"}}]
[1345,{"$f":"_xll.RiskData('Risk Summary'!J$48,$A1352)/1000","v":{"$error":"#NAME?"}},{"$f":"_xll.RiskData('Risk Summary'!K$48,$A1352)/1000","v":{"$error":"#NAME?"}},{"$f":"_xll.RiskData('Risk Summary'!L$48,$A1352)/1000","v":{"$error":"#NAME?"}},null,null,{"$f":"(_xll.RiskData(NR_to_Cash!C$18,$A1352))/1000","v":{"$error":"#NAME?"}},{"$f":"(_xll.RiskData(NR_to_Cash!D$18,$A1352))/1000","v":{"$error":"#NAME?"}},{"$f":"(_xll.RiskData(NR_to_Cash!E$18,$A1352))/1000","v":{"$error":"#NAME?"}}]
[1346,{"$f":"_xll.RiskData('Risk Summary'!J$48,$A1353)/1000","v":{"$error":"#NAME?"}},{"$f":"_xll.RiskData('Risk Summary'!K$48,$A1353)/1000","v":{"$error":"#NAME?"}},{"$f":"_xll.RiskData('Risk Summary'!L$48,$A1353)/1000","v":{"$error":"#NAME?"}},null,null,{"$f":"(_xll.RiskData(NR_to_Cash!C$18,$A1353))/1000","v":{"$error":"#NAME?"}},{"$f":"(_xll.RiskData(NR_to_Cash!D$18,$A1353))/1000","v":{"$error":"#NAME?"}},{"$f":"(_xll.RiskData(NR_to_Cash!E$18,$A1353))/1000","v":{"$error":"#NAME?"}}]
[1347,{"$f":"_xll.RiskData('Risk Summary'!J$48,$A1354)/1000","v":{"$error":"#NAME?"}},{"$f":"_xll.RiskData('Risk Summary'!K$48,$A1354)/1000","v":{"$error":"#NAME?"}},{"$f":"_xll.RiskData('Risk Summary'!L$48,$A1354)/1000","v":{"$error":"#NAME?"}},null,null,{"$f":"(_xll.RiskData(NR_to_Cash!C$18,$A1354))/1000","v":{"$error":"#NAME?"}},{"$f":"(_xll.RiskData(NR_to_Cash!D$18,$A1354))/1000","v":{"$error":"#NAME?"}},{"$f":"(_xll.RiskData(NR_to_Cash!E$18,$A1354))/1000","v":{"$error":"#NAME?"}}]
[1348,{"$f":"_xll.RiskData('Risk Summary'!J$48,$A1355)/1000","v":{"$error":"#NAME?"}},{"$f":"_xll.RiskData('Risk Summary'!K$48,$A1355)/1000","v":{"$error":"#NAME?"}},{"$f":"_xll.RiskData('Risk Summary'!L$48,$A1355)/1000","v":{"$error":"#NAME?"}},null,null,{"$f":"(_xll.RiskData(NR_to_Cash!C$18,$A1355))/1000","v":{"$error":"#NAME?"}},{"$f":"(_xll.RiskData(NR_to_Cash!D$18,$A1355))/1000","v":{"$error":"#NAME?"}},{"$f":"(_xll.RiskData(NR_to_Cash!E$18,$A1355))/1000","v":{"$error":"#NAME?"}}]
[1349,{"$f":"_xll.RiskData('Risk Summary'!J$48,$A1356)/1000","v":{"$error":"#NAME?"}},{"$f":"_xll.RiskData('Risk Summary'!K$48,$A1356)/1000","v":{"$error":"#NAME?"}},{"$f":"_xll.RiskData('Risk Summary'!L$48,$A1356)/1000","v":{"$error":"#NAME?"}},null,null,{"$f":"(_xll.RiskData(NR_to_Cash!C$18,$A1356))/1000","v":{"$error":"#NAME?"}},{"$f":"(_xll.RiskData(NR_to_Cash!D$18,$A1356))/1000","v":{"$error":"#NAME?"}},{"$f":"(_xll.RiskData(NR_to_Cash!E$18,$A1356))/1000","v":{"$error":"#NAME?"}}]
[1350,{"$f":"_xll.RiskData('Risk Summary'!J$48,$A1357)/1000","v":{"$error":"#NAME?"}},{"$f":"_xll.RiskData('Risk Summary'!K$48,$A1357)/1000","v":{"$error":"#NAME?"}},{"$f":"_xll.RiskData('Risk Summary'!L$48,$A1357)/1000","v":{"$error":"#NAME?"}},null,null,{"$f":"(_xll.RiskData(NR_to_Cash!C$18,$A1357))/1000","v":{"$error":"#NAME?"}},{"$f":"(_xll.RiskData(NR_to_Cash!D$18,$A1357))/1000","v":{"$error":"#NAME?"}},{"$f":"(_xll.RiskData(NR_to_Cash!E$18,$A1357))/1000","v":{"$error":"#NAME?"}}]
[1351,{"$f":"_xll.RiskData('Risk Summary'!J$48,$A1358)/1000","v":{"$error":"#NAME?"}},{"$f":"_xll.RiskData('Risk Summary'!K$48,$A1358)/1000","v":{"$error":"#NAME?"}},{"$f":"_xll.RiskData('Risk Summary'!L$48,$A1358)/1000","v":{"$error":"#NAME?"}},null,null,{"$f":"(_xll.RiskData(NR_to_Cash!C$18,$A1358))/1000","v":{"$error":"#NAME?"}},{"$f":"(_xll.RiskData(NR_to_Cash!D$18,$A1358))/1000","v":{"$error":"#NAME?"}},{"$f":"(_xll.RiskData(NR_to_Cash!E$18,$A1358))/1000","v":{"$error":"#NAME?"}}]
[1352,{"$f":"_xll.RiskData('Risk Summary'!J$48,$A1359)/1000","v":{"$error":"#NAME?"}},{"$f":"_xll.RiskData('Risk Summary'!K$48,$A1359)/1000","v":{"$error":"#NAME?"}},{"$f":"_xll.RiskData('Risk Summary'!L$48,$A1359)/1000","v":{"$error":"#NAME?"}},null,null,{"$f":"(_xll.RiskData(NR_to_Cash!C$18,$A1359))/1000","v":{"$error":"#NAME?"}},{"$f":"(_xll.RiskData(NR_to_Cash!D$18,$A1359))/1000","v":{"$error":"#NAME?"}},{"$f":"(_xll.RiskData(NR_to_Cash!E$18,$A1359))/1000","v":{"$error":"#NAME?"}}]
[1353,{"$f":"_xll.RiskData('Risk Summary'!J$48,$A1360)/1000","v":{"$error":"#NAME?"}},{"$f":"_xll.RiskData('Risk Summary'!K$48,$A1360)/1000","v":{"$error":"#NAME?"}},{"$f":"_xll.RiskData('Risk Summary'!L$48,$A1360)/1000","v":{"$error":"#NAME?"}},null,null,{"$f":"(_xll.RiskData(NR_to_Cash!C$18,$A1360))/1000","v":{"$error":"#NAME?"}},{"$f":"(_xll.RiskData(NR_to_Cash!D$18,$A1360))/1000","v":{"$error":"#NAME?"}},{"$f":"(_xll.RiskData(NR_to_Cash!E$18,$A1360))/1000","v":{"$error":"#NAME?"}}]
[1354,{"$f":"_xll.RiskData('Risk Summary'!J$48,$A1361)/1000","v":{"$error":"#NAME?"}},{"$f":"_xll.RiskData('Risk Summary'!K$48,$A1361)/1000","v":{"$error":"#NAME?"}},{"$f":"_xll.RiskData('Risk Summary'!L$48,$A1361)/1000","v":{"$error":"#NAME?"}},null,null,{"$f":"(_xll.RiskData(NR_to_Cash!C$18,$A1361))/1000","v":{"$error":"#NAME?"}},{"$f":"(_xll.RiskData(NR_to_Cash!D$18,$A1361))/1000","v":{"$error":"#NAME?"}},{"$f":"(_xll.RiskData(NR_to_Cash!E$18,$A1361))/1000","v":{"$error":"#NAME?"}}]
[1355,{"$f":"_xll.RiskData('Risk Summary'!J$48,$A1362)/1000","v":{"$error":"#NAME?"}},{"$f":"_xll.RiskData('Risk Summary'!K$48,$A1362)/1000","v":{"$error":"#NAME?"}},{"$f":"_xll.RiskData('Risk Summary'!L$48,$A1362)/1000","v":{"$error":"#NAME?"}},null,null,{"$f":"(_xll.RiskData(NR_to_Cash!C$18,$A1362))/1000","v":{"$error":"#NAME?"}},{"$f":"(_xll.RiskData(NR_to_Cash!D$18,$A1362))/1000","v":{"$error":"#NAME?"}},{"$f":"(_xll.RiskData(NR_to_Cash!E$18,$A1362))/1000","v":{"$error":"#NAME?"}}]
[1356,{"$f":"_xll.RiskData('Risk Summary'!J$48,$A1363)/1000","v":{"$error":"#NAME?"}},{"$f":"_xll.RiskData('Risk Summary'!K$48,$A1363)/1000","v":{"$error":"#NAME?"}},{"$f":"_xll.RiskData('Risk Summary'!L$48,$A1363)/1000","v":{"$error":"#NAME?"}},null,null,{"$f":"(_xll.RiskData(NR_to_Cash!C$18,$A1363))/1000","v":{"$error":"#NAME?"}},{"$f":"(_xll.RiskData(NR_to_Cash!D$18,$A1363))/1000","v":{"$error":"#NAME?"}},{"$f":"(_xll.RiskData(NR_to_Cash!E$18,$A1363))/1000","v":{"$error":"#NAME?"}}]
[1357,{"$f":"_xll.RiskData('Risk Summary'!J$48,$A1364)/1000","v":{"$error":"#NAME?"}},{"$f":"_xll.RiskData('Risk Summary'!K$48,$A1364)/1000","v":{"$error":"#NAME?"}},{"$f":"_xll.RiskData('Risk Summary'!L$48,$A1364)/1000","v":{"$error":"#NAME?"}},null,null,{"$f":"(_xll.RiskData(NR_to_Cash!C$18,$A1364))/1000","v":{"$error":"#NAME?"}},{"$f":"(_xll.RiskData(NR_to_Cash!D$18,$A1364))/1000","v":{"$error":"#NAME?"}},{"$f":"(_xll.RiskData(NR_to_Cash!E$18,$A1364))/1000","v":{"$error":"#NAME?"}}]
[1358,{"$f":"_xll.RiskData('Risk Summary'!J$48,$A1365)/1000","v":{"$error":"#NAME?"}},{"$f":"_xll.RiskData('Risk Summary'!K$48,$A1365)/1000","v":{"$error":"#NAME?"}},{"$f":"_xll.RiskData('Risk Summary'!L$48,$A1365)/1000","v":{"$error":"#NAME?"}},null,null,{"$f":"(_xll.RiskData(NR_to_Cash!C$18,$A1365))/1000","v":{"$error":"#NAME?"}},{"$f":"(_xll.RiskData(NR_to_Cash!D$18,$A1365))/1000","v":{"$error":"#NAME?"}},{"$f":"(_xll.RiskData(NR_to_Cash!E$18,$A1365))/1000","v":{"$error":"#NAME?"}}]
[1359,{"$f":"_xll.RiskData('Risk Summary'!J$48,$A1366)/1000","v":{"$error":"#NAME?"}},{"$f":"_xll.RiskData('Risk Summary'!K$48,$A1366)/1000","v":{"$error":"#NAME?"}},{"$f":"_xll.RiskData('Risk Summary'!L$48,$A1366)/1000","v":{"$error":"#NAME?"}},null,null,{"$f":"(_xll.RiskData(NR_to_Cash!C$18,$A1366))/1000","v":{"$error":"#NAME?"}},{"$f":"(_xll.RiskData(NR_to_Cash!D$18,$A1366))/1000","v":{"$error":"#NAME?"}},{"$f":"(_xll.RiskData(NR_to_Cash!E$18,$A1366))/1000","v":{"$error":"#NAME?"}}]
[1360,{"$f":"_xll.RiskData('Risk Summary'!J$48,$A1367)/1000","v":{"$error":"#NAME?"}},{"$f":"_xll.RiskData('Risk Summary'!K$48,$A1367)/1000","v":{"$error":"#NAME?"}},{"$f":"_xll.RiskData('Risk Summary'!L$48,$A1367)/1000","v":{"$error":"#NAME?"}},null,null,{"$f":"(_xll.RiskData(NR_to_Cash!C$18,$A1367))/1000","v":{"$error":"#NAME?"}},{"$f":"(_xll.RiskData(NR_to_Cash!D$18,$A1367))/1000","v":{"$error":"#NAME?"}},{"$f":"(_xll.RiskData(NR_to_Cash!E$18,$A1367))/1000","v":{"$error":"#NAME?"}}]
[1361,{"$f":"_xll.RiskData('Risk Summary'!J$48,$A1368)/1000","v":{"$error":"#NAME?"}},{"$f":"_xll.RiskData('Risk Summary'!K$48,$A1368)/1000","v":{"$error":"#NAME?"}},{"$f":"_xll.RiskData('Risk Summary'!L$48,$A1368)/1000","v":{"$error":"#NAME?"}},null,null,{"$f":"(_xll.RiskData(NR_to_Cash!C$18,$A1368))/1000","v":{"$error":"#NAME?"}},{"$f":"(_xll.RiskData(NR_to_Cash!D$18,$A1368))/1000","v":{"$error":"#NAME?"}},{"$f":"(_xll.RiskData(NR_to_Cash!E$18,$A1368))/1000","v":{"$error":"#NAME?"}}]
[1362,{"$f":"_xll.RiskData('Risk Summary'!J$48,$A1369)/1000","v":{"$error":"#NAME?"}},{"$f":"_xll.RiskData('Risk Summary'!K$48,$A1369)/1000","v":{"$error":"#NAME?"}},{"$f":"_xll.RiskData('Risk Summary'!L$48,$A1369)/1000","v":{"$error":"#NAME?"}},null,null,{"$f":"(_xll.RiskData(NR_to_Cash!C$18,$A1369))/1000","v":{"$error":"#NAME?"}},{"$f":"(_xll.RiskData(NR_to_Cash!D$18,$A1369))/1000","v":{"$error":"#NAME?"}},{"$f":"(_xll.RiskData(NR_to_Cash!E$18,$A1369))/1000","v":{"$error":"#NAME?"}}]
[1363,{"$f":"_xll.RiskData('Risk Summary'!J$48,$A1370)/1000","v":{"$error":"#NAME?"}},{"$f":"_xll.RiskData('Risk Summary'!K$48,$A1370)/1000","v":{"$error":"#NAME?"}},{"$f":"_xll.RiskData('Risk Summary'!L$48,$A1370)/1000","v":{"$error":"#NAME?"}},null,null,{"$f":"(_xll.RiskData(NR_to_Cash!C$18,$A1370))/1000","v":{"$error":"#NAME?"}},{"$f":"(_xll.RiskData(NR_to_Cash!D$18,$A1370))/1000","v":{"$error":"#NAME?"}},{"$f":"(_xll.RiskData(NR_to_Cash!E$18,$A1370))/1000","v":{"$error":"#NAME?"}}]
[1364,{"$f":"_xll.RiskData('Risk Summary'!J$48,$A1371)/1000","v":{"$error":"#NAME?"}},{"$f":"_xll.RiskData('Risk Summary'!K$48,$A1371)/1000","v":{"$error":"#NAME?"}},{"$f":"_xll.RiskData('Risk Summary'!L$48,$A1371)/1000","v":{"$error":"#NAME?"}},null,null,{"$f":"(_xll.RiskData(NR_to_Cash!C$18,$A1371))/1000","v":{"$error":"#NAME?"}},{"$f":"(_xll.RiskData(NR_to_Cash!D$18,$A1371))/1000","v":{"$error":"#NAME?"}},{"$f":"(_xll.RiskData(NR_to_Cash!E$18,$A1371))/1000","v":{"$error":"#NAME?"}}]
[1365,{"$f":"_xll.RiskData('Risk Summary'!J$48,$A1372)/1000","v":{"$error":"#NAME?"}},{"$f":"_xll.RiskData('Risk Summary'!K$48,$A1372)/1000","v":{"$error":"#NAME?"}},{"$f":"_xll.RiskData('Risk Summary'!L$48,$A1372)/1000","v":{"$error":"#NAME?"}},null,null,{"$f":"(_xll.RiskData(NR_to_Cash!C$18,$A1372))/1000","v":{"$error":"#NAME?"}},{"$f":"(_xll.RiskData(NR_to_Cash!D$18,$A1372))/1000","v":{"$error":"#NAME?"}},{"$f":"(_xll.RiskData(NR_to_Cash!E$18,$A1372))/1000","v":{"$error":"#NAME?"}}]
[1366,{"$f":"_xll.RiskData('Risk Summary'!J$48,$A1373)/1000","v":{"$error":"#NAME?"}},{"$f":"_xll.RiskData('Risk Summary'!K$48,$A1373)/1000","v":{"$error":"#NAME?"}},{"$f":"_xll.RiskData('Risk Summary'!L$48,$A1373)/1000","v":{"$error":"#NAME?"}},null,null,{"$f":"(_xll.RiskData(NR_to_Cash!C$18,$A1373))/1000","v":{"$error":"#NAME?"}},{"$f":"(_xll.RiskData(NR_to_Cash!D$18,$A1373))/1000","v":{"$error":"#NAME?"}},{"$f":"(_xll.RiskData(NR_to_Cash!E$18,$A1373))/1000","v":{"$error":"#NAME?"}}]
[1367,{"$f":"_xll.RiskData('Risk Summary'!J$48,$A1374)/1000","v":{"$error":"#NAME?"}},{"$f":"_xll.RiskData('Risk Summary'!K$48,$A1374)/1000","v":{"$error":"#NAME?"}},{"$f":"_xll.RiskData('Risk Summary'!L$48,$A1374)/1000","v":{"$error":"#NAME?"}},null,null,{"$f":"(_xll.RiskData(NR_to_Cash!C$18,$A1374))/1000","v":{"$error":"#NAME?"}},{"$f":"(_xll.RiskData(NR_to_Cash!D$18,$A1374))/1000","v":{"$error":"#NAME?"}},{"$f":"(_xll.RiskData(NR_to_Cash!E$18,$A1374))/1000","v":{"$error":"#NAME?"}}]
[1368,{"$f":"_xll.RiskData('Risk Summary'!J$48,$A1375)/1000","v":{"$error":"#NAME?"}},{"$f":"_xll.RiskData('Risk Summary'!K$48,$A1375)/1000","v":{"$error":"#NAME?"}},{"$f":"_xll.RiskData('Risk Summary'!L$48,$A1375)/1000","v":{"$error":"#NAME?"}},null,null,{"$f":"(_xll.RiskData(NR_to_Cash!C$18,$A1375))/1000","v":{"$error":"#NAME?"}},{"$f":"(_xll.RiskData(NR_to_Cash!D$18,$A1375))/1000","v":{"$error":"#NAME?"}},{"$f":"(_xll.RiskData(NR_to_Cash!E$18,$A1375))/1000","v":{"$error":"#NAME?"}}]
[1369,{"$f":"_xll.RiskData('Risk Summary'!J$48,$A1376)/1000","v":{"$error":"#NAME?"}},{"$f":"_xll.RiskData('Risk Summary'!K$48,$A1376)/1000","v":{"$error":"#NAME?"}},{"$f":"_xll.RiskData('Risk Summary'!L$48,$A1376)/1000","v":{"$error":"#NAME?"}},null,null,{"$f":"(_xll.RiskData(NR_to_Cash!C$18,$A1376))/1000","v":{"$error":"#NAME?"}},{"$f":"(_xll.RiskData(NR_to_Cash!D$18,$A1376))/1000","v":{"$error":"#NAME?"}},{"$f":"(_xll.RiskData(NR_to_Cash!E$18,$A1376))/1000","v":{"$error":"#NAME?"}}]
[1370,{"$f":"_xll.RiskData('Risk Summary'!J$48,$A1377)/1000","v":{"$error":"#NAME?"}},{"$f":"_xll.RiskData('Risk Summary'!K$48,$A1377)/1000","v":{"$error":"#NAME?"}},{"$f":"_xll.RiskData('Risk Summary'!L$48,$A1377)/1000","v":{"$error":"#NAME?"}},null,null,{"$f":"(_xll.RiskData(NR_to_Cash!C$18,$A1377))/1000","v":{"$error":"#NAME?"}},{"$f":"(_xll.RiskData(NR_to_Cash!D$18,$A1377))/1000","v":{"$error":"#NAME?"}},{"$f":"(_xll.RiskData(NR_to_Cash!E$18,$A1377))/1000","v":{"$error":"#NAME?"}}]
[1371,{"$f":"_xll.RiskData('Risk Summary'!J$48,$A1378)/1000","v":{"$error":"#NAME?"}},{"$f":"_xll.RiskData('Risk Summary'!K$48,$A1378)/1000","v":{"$error":"#NAME?"}},{"$f":"_xll.RiskData('Risk Summary'!L$48,$A1378)/1000","v":{"$error":"#NAME?"}},null,null,{"$f":"(_xll.RiskData(NR_to_Cash!C$18,$A1378))/1000","v":{"$error":"#NAME?"}},{"$f":"(_xll.RiskData(NR_to_Cash!D$18,$A1378))/1000","v":{"$error":"#NAME?"}},{"$f":"(_xll.RiskData(NR_to_Cash!E$18,$A1378))/1000","v":{"$error":"#NAME?"}}]
[1372,{"$f":"_xll.RiskData('Risk Summary'!J$48,$A1379)/1000","v":{"$error":"#NAME?"}},{"$f":"_xll.RiskData('Risk Summary'!K$48,$A1379)/1000","v":{"$error":"#NAME?"}},{"$f":"_xll.RiskData('Risk Summary'!L$48,$A1379)/1000","v":{"$error":"#NAME?"}},null,null,{"$f":"(_xll.RiskData(NR_to_Cash!C$18,$A1379))/1000","v":{"$error":"#NAME?"}},{"$f":"(_xll.RiskData(NR_to_Cash!D$18,$A1379))/1000","v":{"$error":"#NAME?"}},{"$f":"(_xll.RiskData(NR_to_Cash!E$18,$A1379))/1000","v":{"$error":"#NAME?"}}]
[1373,{"$f":"_xll.RiskData('Risk Summary'!J$48,$A1380)/1000","v":{"$error":"#NAME?"}},{"$f":"_xll.RiskData('Risk Summary'!K$48,$A1380)/1000","v":{"$error":"#NAME?"}},{"$f":"_xll.RiskData('Risk Summary'!L$48,$A1380)/1000","v":{"$error":"#NAME?"}},null,null,{"$f":"(_xll.RiskData(NR_to_Cash!C$18,$A1380))/1000","v":{"$error":"#NAME?"}},{"$f":"(_xll.RiskData(NR_to_Cash!D$18,$A1380))/1000","v":{"$error":"#NAME?"}},{"$f":"(_xll.RiskData(NR_to_Cash!E$18,$A1380))/1000","v":{"$error":"#NAME?"}}]
[1374,{"$f":"_xll.RiskData('Risk Summary'!J$48,$A1381)/1000","v":{"$error":"#NAME?"}},{"$f":"_xll.RiskData('Risk Summary'!K$48,$A1381)/1000","v":{"$error":"#NAME?"}},{"$f":"_xll.RiskData('Risk Summary'!L$48,$A1381)/1000","v":{"$error":"#NAME?"}},null,null,{"$f":"(_xll.RiskData(NR_to_Cash!C$18,$A1381))/1000","v":{"$error":"#NAME?"}},{"$f":"(_xll.RiskData(NR_to_Cash!D$18,$A1381))/1000","v":{"$error":"#NAME?"}},{"$f":"(_xll.RiskData(NR_to_Cash!E$18,$A1381))/1000","v":{"$error":"#NAME?"}}]
[1375,{"$f":"_xll.RiskData('Risk Summary'!J$48,$A1382)/1000","v":{"$error":"#NAME?"}},{"$f":"_xll.RiskData('Risk Summary'!K$48,$A1382)/1000","v":{"$error":"#NAME?"}},{"$f":"_xll.RiskData('Risk Summary'!L$48,$A1382)/1000","v":{"$error":"#NAME?"}},null,null,{"$f":"(_xll.RiskData(NR_to_Cash!C$18,$A1382))/1000","v":{"$error":"#NAME?"}},{"$f":"(_xll.RiskData(NR_to_Cash!D$18,$A1382))/1000","v":{"$error":"#NAME?"}},{"$f":"(_xll.RiskData(NR_to_Cash!E$18,$A1382))/1000","v":{"$error":"#NAME?"}}]
[1376,{"$f":"_xll.RiskData('Risk Summary'!J$48,$A1383)/1000","v":{"$error":"#NAME?"}},{"$f":"_xll.RiskData('Risk Summary'!K$48,$A1383)/1000","v":{"$error":"#NAME?"}},{"$f":"_xll.RiskData('Risk Summary'!L$48,$A1383)/1000","v":{"$error":"#NAME?"}},null,null,{"$f":"(_xll.RiskData(NR_to_Cash!C$18,$A1383))/1000","v":{"$error":"#NAME?"}},{"$f":"(_xll.RiskData(NR_to_Cash!D$18,$A1383))/1000","v":{"$error":"#NAME?"}},{"$f":"(_xll.RiskData(NR_to_Cash!E$18,$A1383))/1000","v":{"$error":"#NAME?"}}]
[1377,{"$f":"_xll.RiskData('Risk Summary'!J$48,$A1384)/1000","v":{"$error":"#NAME?"}},{"$f":"_xll.RiskData('Risk Summary'!K$48,$A1384)/1000","v":{"$error":"#NAME?"}},{"$f":"_xll.RiskData('Risk Summary'!L$48,$A1384)/1000","v":{"$error":"#NAME?"}},null,null,{"$f":"(_xll.RiskData(NR_to_Cash!C$18,$A1384))/1000","v":{"$error":"#NAME?"}},{"$f":"(_xll.RiskData(NR_to_Cash!D$18,$A1384))/1000","v":{"$error":"#NAME?"}},{"$f":"(_xll.RiskData(NR_to_Cash!E$18,$A1384))/1000","v":{"$error":"#NAME?"}}]
[1378,{"$f":"_xll.RiskData('Risk Summary'!J$48,$A1385)/1000","v":{"$error":"#NAME?"}},{"$f":"_xll.RiskData('Risk Summary'!K$48,$A1385)/1000","v":{"$error":"#NAME?"}},{"$f":"_xll.RiskData('Risk Summary'!L$48,$A1385)/1000","v":{"$error":"#NAME?"}},null,null,{"$f":"(_xll.RiskData(NR_to_Cash!C$18,$A1385))/1000","v":{"$error":"#NAME?"}},{"$f":"(_xll.RiskData(NR_to_Cash!D$18,$A1385))/1000","v":{"$error":"#NAME?"}},{"$f":"(_xll.RiskData(NR_to_Cash!E$18,$A1385))/1000","v":{"$error":"#NAME?"}}]
[1379,{"$f":"_xll.RiskData('Risk Summary'!J$48,$A1386)/1000","v":{"$error":"#NAME?"}},{"$f":"_xll.RiskData('Risk Summary'!K$48,$A1386)/1000","v":{"$error":"#NAME?"}},{"$f":"_xll.RiskData('Risk Summary'!L$48,$A1386)/1000","v":{"$error":"#NAME?"}},null,null,{"$f":"(_xll.RiskData(NR_to_Cash!C$18,$A1386))/1000","v":{"$error":"#NAME?"}},{"$f":"(_xll.RiskData(NR_to_Cash!D$18,$A1386))/1000","v":{"$error":"#NAME?"}},{"$f":"(_xll.RiskData(NR_to_Cash!E$18,$A1386))/1000","v":{"$error":"#NAME?"}}]
[1380,{"$f":"_xll.RiskData('Risk Summary'!J$48,$A1387)/1000","v":{"$error":"#NAME?"}},{"$f":"_xll.RiskData('Risk Summary'!K$48,$A1387)/1000","v":{"$error":"#NAME?"}},{"$f":"_xll.RiskData('Risk Summary'!L$48,$A1387)/1000","v":{"$error":"#NAME?"}},null,null,{"$f":"(_xll.RiskData(NR_to_Cash!C$18,$A1387))/1000","v":{"$error":"#NAME?"}},{"$f":"(_xll.RiskData(NR_to_Cash!D$18,$A1387))/1000","v":{"$error":"#NAME?"}},{"$f":"(_xll.RiskData(NR_to_Cash!E$18,$A1387))/1000","v":{"$error":"#NAME?"}}]
[1381,{"$f":"_xll.RiskData('Risk Summary'!J$48,$A1388)/1000","v":{"$error":"#NAME?"}},{"$f":"_xll.RiskData('Risk Summary'!K$48,$A1388)/1000","v":{"$error":"#NAME?"}},{"$f":"_xll.RiskData('Risk Summary'!L$48,$A1388)/1000","v":{"$error":"#NAME?"}},null,null,{"$f":"(_xll.RiskData(NR_to_Cash!C$18,$A1388))/1000","v":{"$error":"#NAME?"}},{"$f":"(_xll.RiskData(NR_to_Cash!D$18,$A1388))/1000","v":{"$error":"#NAME?"}},{"$f":"(_xll.RiskData(NR_to_Cash!E$18,$A1388))/1000","v":{"$error":"#NAME?"}}]
[1382,{"$f":"_xll.RiskData('Risk Summary'!J$48,$A1389)/1000","v":{"$error":"#NAME?"}},{"$f":"_xll.RiskData('Risk Summary'!K$48,$A1389)/1000","v":{"$error":"#NAME?"}},{"$f":"_xll.RiskData('Risk Summary'!L$48,$A1389)/1000","v":{"$error":"#NAME?"}},null,null,{"$f":"(_xll.RiskData(NR_to_Cash!C$18,$A1389))/1000","v":{"$error":"#NAME?"}},{"$f":"(_xll.RiskData(NR_to_Cash!D$18,$A1389))/1000","v":{"$error":"#NAME?"}},{"$f":"(_xll.RiskData(NR_to_Cash!E$18,$A1389))/1000","v":{"$error":"#NAME?"}}]
[1383,{"$f":"_xll.RiskData('Risk Summary'!J$48,$A1390)/1000","v":{"$error":"#NAME?"}},{"$f":"_xll.RiskData('Risk Summary'!K$48,$A1390)/1000","v":{"$error":"#NAME?"}},{"$f":"_xll.RiskData('Risk Summary'!L$48,$A1390)/1000","v":{"$error":"#NAME?"}},null,null,{"$f":"(_xll.RiskData(NR_to_Cash!C$18,$A1390))/1000","v":{"$error":"#NAME?"}},{"$f":"(_xll.RiskData(NR_to_Cash!D$18,$A1390))/1000","v":{"$error":"#NAME?"}},{"$f":"(_xll.RiskData(NR_to_Cash!E$18,$A1390))/1000","v":{"$error":"#NAME?"}}]
[1384,{"$f":"_xll.RiskData('Risk Summary'!J$48,$A1391)/1000","v":{"$error":"#NAME?"}},{"$f":"_xll.RiskData('Risk Summary'!K$48,$A1391)/1000","v":{"$error":"#NAME?"}},{"$f":"_xll.RiskData('Risk Summary'!L$48,$A1391)/1000","v":{"$error":"#NAME?"}},null,null,{"$f":"(_xll.RiskData(NR_to_Cash!C$18,$A1391))/1000","v":{"$error":"#NAME?"}},{"$f":"(_xll.RiskData(NR_to_Cash!D$18,$A1391))/1000","v":{"$error":"#NAME?"}},{"$f":"(_xll.RiskData(NR_to_Cash!E$18,$A1391))/1000","v":{"$error":"#NAME?"}}]
[1385,{"$f":"_xll.RiskData('Risk Summary'!J$48,$A1392)/1000","v":{"$error":"#NAME?"}},{"$f":"_xll.RiskData('Risk Summary'!K$48,$A1392)/1000","v":{"$error":"#NAME?"}},{"$f":"_xll.RiskData('Risk Summary'!L$48,$A1392)/1000","v":{"$error":"#NAME?"}},null,null,{"$f":"(_xll.RiskData(NR_to_Cash!C$18,$A1392))/1000","v":{"$error":"#NAME?"}},{"$f":"(_xll.RiskData(NR_to_Cash!D$18,$A1392))/1000","v":{"$error":"#NAME?"}},{"$f":"(_xll.RiskData(NR_to_Cash!E$18,$A1392))/1000","v":{"$error":"#NAME?"}}]
[1386,{"$f":"_xll.RiskData('Risk Summary'!J$48,$A1393)/1000","v":{"$error":"#NAME?"}},{"$f":"_xll.RiskData('Risk Summary'!K$48,$A1393)/1000","v":{"$error":"#NAME?"}},{"$f":"_xll.RiskData('Risk Summary'!L$48,$A1393)/1000","v":{"$error":"#NAME?"}},null,null,{"$f":"(_xll.RiskData(NR_to_Cash!C$18,$A1393))/1000","v":{"$error":"#NAME?"}},{"$f":"(_xll.RiskData(NR_to_Cash!D$18,$A1393))/1000","v":{"$error":"#NAME?"}},{"$f":"(_xll.RiskData(NR_to_Cash!E$18,$A1393))/1000","v":{"$error":"#NAME?"}}]
[1387,{"$f":"_xll.RiskData('Risk Summary'!J$48,$A1394)/1000","v":{"$error":"#NAME?"}},{"$f":"_xll.RiskData('Risk Summary'!K$48,$A1394)/1000","v":{"$error":"#NAME?"}},{"$f":"_xll.RiskData('Risk Summary'!L$48,$A1394)/1000","v":{"$error":"#NAME?"}},null,null,{"$f":"(_xll.RiskData(NR_to_Cash!C$18,$A1394))/1000","v":{"$error":"#NAME?"}},{"$f":"(_xll.RiskData(NR_to_Cash!D$18,$A1394))/1000","v":{"$error":"#NAME?"}},{"$f":"(_xll.RiskData(NR_to_Cash!E$18,$A1394))/1000","v":{"$error":"#NAME?"}}]
[1388,{"$f":"_xll.RiskData('Risk Summary'!J$48,$A1395)/1000","v":{"$error":"#NAME?"}},{"$f":"_xll.RiskData('Risk Summary'!K$48,$A1395)/1000","v":{"$error":"#NAME?"}},{"$f":"_xll.RiskData('Risk Summary'!L$48,$A1395)/1000","v":{"$error":"#NAME?"}},null,null,{"$f":"(_xll.RiskData(NR_to_Cash!C$18,$A1395))/1000","v":{"$error":"#NAME?"}},{"$f":"(_xll.RiskData(NR_to_Cash!D$18,$A1395))/1000","v":{"$error":"#NAME?"}},{"$f":"(_xll.RiskData(NR_to_Cash!E$18,$A1395))/1000","v":{"$error":"#NAME?"}}]
[1389,{"$f":"_xll.RiskData('Risk Summary'!J$48,$A1396)/1000","v":{"$error":"#NAME?"}},{"$f":"_xll.RiskData('Risk Summary'!K$48,$A1396)/1000","v":{"$error":"#NAME?"}},{"$f":"_xll.RiskData('Risk Summary'!L$48,$A1396)/1000","v":{"$error":"#NAME?"}},null,null,{"$f":"(_xll.RiskData(NR_to_Cash!C$18,$A1396))/1000","v":{"$error":"#NAME?"}},{"$f":"(_xll.RiskData(NR_to_Cash!D$18,$A1396))/1000","v":{"$error":"#NAME?"}},{"$f":"(_xll.RiskData(NR_to_Cash!E$18,$A1396))/1000","v":{"$error":"#NAME?"}}]
[1390,{"$f":"_xll.RiskData('Risk Summary'!J$48,$A1397)/1000","v":{"$error":"#NAME?"}},{"$f":"_xll.RiskData('Risk Summary'!K$48,$A1397)/1000","v":{"$error":"#NAME?"}},{"$f":"_xll.RiskData('Risk Summary'!L$48,$A1397)/1000","v":{"$error":"#NAME?"}},null,null,{"$f":"(_xll.RiskData(NR_to_Cash!C$18,$A1397))/1000","v":{"$error":"#NAME?"}},{"$f":"(_xll.RiskData(NR_to_Cash!D$18,$A1397))/1000","v":{"$error":"#NAME?"}},{"$f":"(_xll.RiskData(NR_to_Cash!E$18,$A1397))/1000","v":{"$error":"#NAME?"}}]
[1391,{"$f":"_xll.RiskData('Risk Summary'!J$48,$A1398)/1000","v":{"$error":"#NAME?"}},{"$f":"_xll.RiskData('Risk Summary'!K$48,$A1398)/1000","v":{"$error":"#NAME?"}},{"$f":"_xll.RiskData('Risk Summary'!L$48,$A1398)/1000","v":{"$error":"#NAME?"}},null,null,{"$f":"(_xll.RiskData(NR_to_Cash!C$18,$A1398))/1000","v":{"$error":"#NAME?"}},{"$f":"(_xll.RiskData(NR_to_Cash!D$18,$A1398))/1000","v":{"$error":"#NAME?"}},{"$f":"(_xll.RiskData(NR_to_Cash!E$18,$A1398))/1000","v":{"$error":"#NAME?"}}]
[1392,{"$f":"_xll.RiskData('Risk Summary'!J$48,$A1399)/1000","v":{"$error":"#NAME?"}},{"$f":"_xll.RiskData('Risk Summary'!K$48,$A1399)/1000","v":{"$error":"#NAME?"}},{"$f":"_xll.RiskData('Risk Summary'!L$48,$A1399)/1000","v":{"$error":"#NAME?"}},null,null,{"$f":"(_xll.RiskData(NR_to_Cash!C$18,$A1399))/1000","v":{"$error":"#NAME?"}},{"$f":"(_xll.RiskData(NR_to_Cash!D$18,$A1399))/1000","v":{"$error":"#NAME?"}},{"$f":"(_xll.RiskData(NR_to_Cash!E$18,$A1399))/1000","v":{"$error":"#NAME?"}}]
[1393,{"$f":"_xll.RiskData('Risk Summary'!J$48,$A1400)/1000","v":{"$error":"#NAME?"}},{"$f":"_xll.RiskData('Risk Summary'!K$48,$A1400)/1000","v":{"$error":"#NAME?"}},{"$f":"_xll.RiskData('Risk Summary'!L$48,$A1400)/1000","v":{"$error":"#NAME?"}},null,null,{"$f":"(_xll.RiskData(NR_to_Cash!C$18,$A1400))/1000","v":{"$error":"#NAME?"}},{"$f":"(_xll.RiskData(NR_to_Cash!D$18,$A1400))/1000","v":{"$error":"#NAME?"}},{"$f":"(_xll.RiskData(NR_to_Cash!E$18,$A1400))/1000","v":{"$error":"#NAME?"}}]
[1394,{"$f":"_xll.RiskData('Risk Summary'!J$48,$A1401)/1000","v":{"$error":"#NAME?"}},{"$f":"_xll.RiskData('Risk Summary'!K$48,$A1401)/1000","v":{"$error":"#NAME?"}},{"$f":"_xll.RiskData('Risk Summary'!L$48,$A1401)/1000","v":{"$error":"#NAME?"}},null,null,{"$f":"(_xll.RiskData(NR_to_Cash!C$18,$A1401))/1000","v":{"$error":"#NAME?"}},{"$f":"(_xll.RiskData(NR_to_Cash!D$18,$A1401))/1000","v":{"$error":"#NAME?"}},{"$f":"(_xll.RiskData(NR_to_Cash!E$18,$A1401))/1000","v":{"$error":"#NAME?"}}]
[1395,{"$f":"_xll.RiskData('Risk Summary'!J$48,$A1402)/1000","v":{"$error":"#NAME?"}},{"$f":"_xll.RiskData('Risk Summary'!K$48,$A1402)/1000","v":{"$error":"#NAME?"}},{"$f":"_xll.RiskData('Risk Summary'!L$48,$A1402)/1000","v":{"$error":"#NAME?"}},null,null,{"$f":"(_xll.RiskData(NR_to_Cash!C$18,$A1402))/1000","v":{"$error":"#NAME?"}},{"$f":"(_xll.RiskData(NR_to_Cash!D$18,$A1402))/1000","v":{"$error":"#NAME?"}},{"$f":"(_xll.RiskData(NR_to_Cash!E$18,$A1402))/1000","v":{"$error":"#NAME?"}}]
[1396,{"$f":"_xll.RiskData('Risk Summary'!J$48,$A1403)/1000","v":{"$error":"#NAME?"}},{"$f":"_xll.RiskData('Risk Summary'!K$48,$A1403)/1000","v":{"$error":"#NAME?"}},{"$f":"_xll.RiskData('Risk Summary'!L$48,$A1403)/1000","v":{"$error":"#NAME?"}},null,null,{"$f":"(_xll.RiskData(NR_to_Cash!C$18,$A1403))/1000","v":{"$error":"#NAME?"}},{"$f":"(_xll.RiskData(NR_to_Cash!D$18,$A1403))/1000","v":{"$error":"#NAME?"}},{"$f":"(_xll.RiskData(NR_to_Cash!E$18,$A1403))/1000","v":{"$error":"#NAME?"}}]
[1397,{"$f":"_xll.RiskData('Risk Summary'!J$48,$A1404)/1000","v":{"$error":"#NAME?"}},{"$f":"_xll.RiskData('Risk Summary'!K$48,$A1404)/1000","v":{"$error":"#NAME?"}},{"$f":"_xll.RiskData('Risk Summary'!L$48,$A1404)/1000","v":{"$error":"#NAME?"}},null,null,{"$f":"(_xll.RiskData(NR_to_Cash!C$18,$A1404))/1000","v":{"$error":"#NAME?"}},{"$f":"(_xll.RiskData(NR_to_Cash!D$18,$A1404))/1000","v":{"$error":"#NAME?"}},{"$f":"(_xll.RiskData(NR_to_Cash!E$18,$A1404))/1000","v":{"$error":"#NAME?"}}]
[1398,{"$f":"_xll.RiskData('Risk Summary'!J$48,$A1405)/1000","v":{"$error":"#NAME?"}},{"$f":"_xll.RiskData('Risk Summary'!K$48,$A1405)/1000","v":{"$error":"#NAME?"}},{"$f":"_xll.RiskData('Risk Summary'!L$48,$A1405)/1000","v":{"$error":"#NAME?"}},null,null,{"$f":"(_xll.RiskData(NR_to_Cash!C$18,$A1405))/1000","v":{"$error":"#NAME?"}},{"$f":"(_xll.RiskData(NR_to_Cash!D$18,$A1405))/1000","v":{"$error":"#NAME?"}},{"$f":"(_xll.RiskData(NR_to_Cash!E$18,$A1405))/1000","v":{"$error":"#NAME?"}}]
[1399,{"$f":"_xll.RiskData('Risk Summary'!J$48,$A1406)/1000","v":{"$error":"#NAME?"}},{"$f":"_xll.RiskData('Risk Summary'!K$48,$A1406)/1000","v":{"$error":"#NAME?"}},{"$f":"_xll.RiskData('Risk Summary'!L$48,$A1406)/1000","v":{"$error":"#NAME?"}},null,null,{"$f":"(_xll.RiskData(NR_to_Cash!C$18,$A1406))/1000","v":{"$error":"#NAME?"}},{"$f":"(_xll.RiskData(NR_to_Cash!D$18,$A1406))/1000","v":{"$error":"#NAME?"}},{"$f":"(_xll.RiskData(NR_to_Cash!E$18,$A1406))/1000","v":{"$error":"#NAME?"}}]
[1400,{"$f":"_xll.RiskData('Risk Summary'!J$48,$A1407)/1000","v":{"$error":"#NAME?"}},{"$f":"_xll.RiskData('Risk Summary'!K$48,$A1407)/1000","v":{"$error":"#NAME?"}},{"$f":"_xll.RiskData('Risk Summary'!L$48,$A1407)/1000","v":{"$error":"#NAME?"}},null,null,{"$f":"(_xll.RiskData(NR_to_Cash!C$18,$A1407))/1000","v":{"$error":"#NAME?"}},{"$f":"(_xll.RiskData(NR_to_Cash!D$18,$A1407))/1000","v":{"$error":"#NAME?"}},{"$f":"(_xll.RiskData(NR_to_Cash!E$18,$A1407))/1000","v":{"$error":"#NAME?"}}]
[1401,{"$f":"_xll.RiskData('Risk Summary'!J$48,$A1408)/1000","v":{"$error":"#NAME?"}},{"$f":"_xll.RiskData('Risk Summary'!K$48,$A1408)/1000","v":{"$error":"#NAME?"}},{"$f":"_xll.RiskData('Risk Summary'!L$48,$A1408)/1000","v":{"$error":"#NAME?"}},null,null,{"$f":"(_xll.RiskData(NR_to_Cash!C$18,$A1408))/1000","v":{"$error":"#NAME?"}},{"$f":"(_xll.RiskData(NR_to_Cash!D$18,$A1408))/1000","v":{"$error":"#NAME?"}},{"$f":"(_xll.RiskData(NR_to_Cash!E$18,$A1408))/1000","v":{"$error":"#NAME?"}}]
[1402,{"$f":"_xll.RiskData('Risk Summary'!J$48,$A1409)/1000","v":{"$error":"#NAME?"}},{"$f":"_xll.RiskData('Risk Summary'!K$48,$A1409)/1000","v":{"$error":"#NAME?"}},{"$f":"_xll.RiskData('Risk Summary'!L$48,$A1409)/1000","v":{"$error":"#NAME?"}},null,null,{"$f":"(_xll.RiskData(NR_to_Cash!C$18,$A1409))/1000","v":{"$error":"#NAME?"}},{"$f":"(_xll.RiskData(NR_to_Cash!D$18,$A1409))/1000","v":{"$error":"#NAME?"}},{"$f":"(_xll.RiskData(NR_to_Cash!E$18,$A1409))/1000","v":{"$error":"#NAME?"}}]
[1403,{"$f":"_xll.RiskData('Risk Summary'!J$48,$A1410)/1000","v":{"$error":"#NAME?"}},{"$f":"_xll.RiskData('Risk Summary'!K$48,$A1410)/1000","v":{"$error":"#NAME?"}},{"$f":"_xll.RiskData('Risk Summary'!L$48,$A1410)/1000","v":{"$error":"#NAME?"}},null,null,{"$f":"(_xll.RiskData(NR_to_Cash!C$18,$A1410))/1000","v":{"$error":"#NAME?"}},{"$f":"(_xll.RiskData(NR_to_Cash!D$18,$A1410))/1000","v":{"$error":"#NAME?"}},{"$f":"(_xll.RiskData(NR_to_Cash!E$18,$A1410))/1000","v":{"$error":"#NAME?"}}]
[1404,{"$f":"_xll.RiskData('Risk Summary'!J$48,$A1411)/1000","v":{"$error":"#NAME?"}},{"$f":"_xll.RiskData('Risk Summary'!K$48,$A1411)/1000","v":{"$error":"#NAME?"}},{"$f":"_xll.RiskData('Risk Summary'!L$48,$A1411)/1000","v":{"$error":"#NAME?"}},null,null,{"$f":"(_xll.RiskData(NR_to_Cash!C$18,$A1411))/1000","v":{"$error":"#NAME?"}},{"$f":"(_xll.RiskData(NR_to_Cash!D$18,$A1411))/1000","v":{"$error":"#NAME?"}},{"$f":"(_xll.RiskData(NR_to_Cash!E$18,$A1411))/1000","v":{"$error":"#NAME?"}}]
[1405,{"$f":"_xll.RiskData('Risk Summary'!J$48,$A1412)/1000","v":{"$error":"#NAME?"}},{"$f":"_xll.RiskData('Risk Summary'!K$48,$A1412)/1000","v":{"$error":"#NAME?"}},{"$f":"_xll.RiskData('Risk Summary'!L$48,$A1412)/1000","v":{"$error":"#NAME?"}},null,null,{"$f":"(_xll.RiskData(NR_to_Cash!C$18,$A1412))/1000","v":{"$error":"#NAME?"}},{"$f":"(_xll.RiskData(NR_to_Cash!D$18,$A1412))/1000","v":{"$error":"#NAME?"}},{"$f":"(_xll.RiskData(NR_to_Cash!E$18,$A1412))/1000","v":{"$error":"#NAME?"}}]
[1406,{"$f":"_xll.RiskData('Risk Summary'!J$48,$A1413)/1000","v":{"$error":"#NAME?"}},{"$f":"_xll.RiskData('Risk Summary'!K$48,$A1413)/1000","v":{"$error":"#NAME?"}},{"$f":"_xll.RiskData('Risk Summary'!L$48,$A1413)/1000","v":{"$error":"#NAME?"}},null,null,{"$f":"(_xll.RiskData(NR_to_Cash!C$18,$A1413))/1000","v":{"$error":"#NAME?"}},{"$f":"(_xll.RiskData(NR_to_Cash!D$18,$A1413))/1000","v":{"$error":"#NAME?"}},{"$f":"(_xll.RiskData(NR_to_Cash!E$18,$A1413))/1000","v":{"$error":"#NAME?"}}]
[1407,{"$f":"_xll.RiskData('Risk Summary'!J$48,$A1414)/1000","v":{"$error":"#NAME?"}},{"$f":"_xll.RiskData('Risk Summary'!K$48,$A1414)/1000","v":{"$error":"#NAME?"}},{"$f":"_xll.RiskData('Risk Summary'!L$48,$A1414)/1000","v":{"$error":"#NAME?"}},null,null,{"$f":"(_xll.RiskData(NR_to_Cash!C$18,$A1414))/1000","v":{"$error":"#NAME?"}},{"$f":"(_xll.RiskData(NR_to_Cash!D$18,$A1414))/1000","v":{"$error":"#NAME?"}},{"$f":"(_xll.RiskData(NR_to_Cash!E$18,$A1414))/1000","v":{"$error":"#NAME?"}}]
[1408,{"$f":"_xll.RiskData('Risk Summary'!J$48,$A1415)/1000","v":{"$error":"#NAME?"}},{"$f":"_xll.RiskData('Risk Summary'!K$48,$A1415)/1000","v":{"$error":"#NAME?"}},{"$f":"_xll.RiskData('Risk Summary'!L$48,$A1415)/1000","v":{"$error":"#NAME?"}},null,null,{"$f":"(_xll.RiskData(NR_to_Cash!C$18,$A1415))/1000","v":{"$error":"#NAME?"}},{"$f":"(_xll.RiskData(NR_to_Cash!D$18,$A1415))/1000","v":{"$error":"#NAME?"}},{"$f":"(_xll.RiskData(NR_to_Cash!E$18,$A1415))/1000","v":{"$error":"#NAME?"}}]
[1409,{"$f":"_xll.RiskData('Risk Summary'!J$48,$A1416)/1000","v":{"$error":"#NAME?"}},{"$f":"_xll.RiskData('Risk Summary'!K$48,$A1416)/1000","v":{"$error":"#NAME?"}},{"$f":"_xll.RiskData('Risk Summary'!L$48,$A1416)/1000","v":{"$error":"#NAME?"}},null,null,{"$f":"(_xll.RiskData(NR_to_Cash!C$18,$A1416))/1000","v":{"$error":"#NAME?"}},{"$f":"(_xll.RiskData(NR_to_Cash!D$18,$A1416))/1000","v":{"$error":"#NAME?"}},{"$f":"(_xll.RiskData(NR_to_Cash!E$18,$A1416))/1000","v":{"$error":"#NAME?"}}]
[1410,{"$f":"_xll.RiskData('Risk Summary'!J$48,$A1417)/1000","v":{"$error":"#NAME?"}},{"$f":"_xll.RiskData('Risk Summary'!K$48,$A1417)/1000","v":{"$error":"#NAME?"}},{"$f":"_xll.RiskData('Risk Summary'!L$48,$A1417)/1000","v":{"$error":"#NAME?"}},null,null,{"$f":"(_xll.RiskData(NR_to_Cash!C$18,$A1417))/1000","v":{"$error":"#NAME?"}},{"$f":"(_xll.RiskData(NR_to_Cash!D$18,$A1417))/1000","v":{"$error":"#NAME?"}},{"$f":"(_xll.RiskData(NR_to_Cash!E$18,$A1417))/1000","v":{"$error":"#NAME?"}}]
[1411,{"$f":"_xll.RiskData('Risk Summary'!J$48,$A1418)/1000","v":{"$error":"#NAME?"}},{"$f":"_xll.RiskData('Risk Summary'!K$48,$A1418)/1000","v":{"$error":"#NAME?"}},{"$f":"_xll.RiskData('Risk Summary'!L$48,$A1418)/1000","v":{"$error":"#NAME?"}},null,null,{"$f":"(_xll.RiskData(NR_to_Cash!C$18,$A1418))/1000","v":{"$error":"#NAME?"}},{"$f":"(_xll.RiskData(NR_to_Cash!D$18,$A1418))/1000","v":{"$error":"#NAME?"}},{"$f":"(_xll.RiskData(NR_to_Cash!E$18,$A1418))/1000","v":{"$error":"#NAME?"}}]
[1412,{"$f":"_xll.RiskData('Risk Summary'!J$48,$A1419)/1000","v":{"$error":"#NAME?"}},{"$f":"_xll.RiskData('Risk Summary'!K$48,$A1419)/1000","v":{"$error":"#NAME?"}},{"$f":"_xll.RiskData('Risk Summary'!L$48,$A1419)/1000","v":{"$error":"#NAME?"}},null,null,{"$f":"(_xll.RiskData(NR_to_Cash!C$18,$A1419))/1000","v":{"$error":"#NAME?"}},{"$f":"(_xll.RiskData(NR_to_Cash!D$18,$A1419))/1000","v":{"$error":"#NAME?"}},{"$f":"(_xll.RiskData(NR_to_Cash!E$18,$A1419))/1000","v":{"$error":"#NAME?"}}]
[1413,{"$f":"_xll.RiskData('Risk Summary'!J$48,$A1420)/1000","v":{"$error":"#NAME?"}},{"$f":"_xll.RiskData('Risk Summary'!K$48,$A1420)/1000","v":{"$error":"#NAME?"}},{"$f":"_xll.RiskData('Risk Summary'!L$48,$A1420)/1000","v":{"$error":"#NAME?"}},null,null,{"$f":"(_xll.RiskData(NR_to_Cash!C$18,$A1420))/1000","v":{"$error":"#NAME?"}},{"$f":"(_xll.RiskData(NR_to_Cash!D$18,$A1420))/1000","v":{"$error":"#NAME?"}},{"$f":"(_xll.RiskData(NR_to_Cash!E$18,$A1420))/1000","v":{"$error":"#NAME?"}}]
[1414,{"$f":"_xll.RiskData('Risk Summary'!J$48,$A1421)/1000","v":{"$error":"#NAME?"}},{"$f":"_xll.RiskData('Risk Summary'!K$48,$A1421)/1000","v":{"$error":"#NAME?"}},{"$f":"_xll.RiskData('Risk Summary'!L$48,$A1421)/1000","v":{"$error":"#NAME?"}},null,null,{"$f":"(_xll.RiskData(NR_to_Cash!C$18,$A1421))/1000","v":{"$error":"#NAME?"}},{"$f":"(_xll.RiskData(NR_to_Cash!D$18,$A1421))/1000","v":{"$error":"#NAME?"}},{"$f":"(_xll.RiskData(NR_to_Cash!E$18,$A1421))/1000","v":{"$error":"#NAME?"}}]
[1415,{"$f":"_xll.RiskData('Risk Summary'!J$48,$A1422)/1000","v":{"$error":"#NAME?"}},{"$f":"_xll.RiskData('Risk Summary'!K$48,$A1422)/1000","v":{"$error":"#NAME?"}},{"$f":"_xll.RiskData('Risk Summary'!L$48,$A1422)/1000","v":{"$error":"#NAME?"}},null,null,{"$f":"(_xll.RiskData(NR_to_Cash!C$18,$A1422))/1000","v":{"$error":"#NAME?"}},{"$f":"(_xll.RiskData(NR_to_Cash!D$18,$A1422))/1000","v":{"$error":"#NAME?"}},{"$f":"(_xll.RiskData(NR_to_Cash!E$18,$A1422))/1000","v":{"$error":"#NAME?"}}]
[1416,{"$f":"_xll.RiskData('Risk Summary'!J$48,$A1423)/1000","v":{"$error":"#NAME?"}},{"$f":"_xll.RiskData('Risk Summary'!K$48,$A1423)/1000","v":{"$error":"#NAME?"}},{"$f":"_xll.RiskData('Risk Summary'!L$48,$A1423)/1000","v":{"$error":"#NAME?"}},null,null,{"$f":"(_xll.RiskData(NR_to_Cash!C$18,$A1423))/1000","v":{"$error":"#NAME?"}},{"$f":"(_xll.RiskData(NR_to_Cash!D$18,$A1423))/1000","v":{"$error":"#NAME?"}},{"$f":"(_xll.RiskData(NR_to_Cash!E$18,$A1423))/1000","v":{"$error":"#NAME?"}}]
[1417,{"$f":"_xll.RiskData('Risk Summary'!J$48,$A1424)/1000","v":{"$error":"#NAME?"}},{"$f":"_xll.RiskData('Risk Summary'!K$48,$A1424)/1000","v":{"$error":"#NAME?"}},{"$f":"_xll.RiskData('Risk Summary'!L$48,$A1424)/1000","v":{"$error":"#NAME?"}},null,null,{"$f":"(_xll.RiskData(NR_to_Cash!C$18,$A1424))/1000","v":{"$error":"#NAME?"}},{"$f":"(_xll.RiskData(NR_to_Cash!D$18,$A1424))/1000","v":{"$error":"#NAME?"}},{"$f":"(_xll.RiskData(NR_to_Cash!E$18,$A1424))/1000","v":{"$error":"#NAME?"}}]
[1418,{"$f":"_xll.RiskData('Risk Summary'!J$48,$A1425)/1000","v":{"$error":"#NAME?"}},{"$f":"_xll.RiskData('Risk Summary'!K$48,$A1425)/1000","v":{"$error":"#NAME?"}},{"$f":"_xll.RiskData('Risk Summary'!L$48,$A1425)/1000","v":{"$error":"#NAME?"}},null,null,{"$f":"(_xll.RiskData(NR_to_Cash!C$18,$A1425))/1000","v":{"$error":"#NAME?"}},{"$f":"(_xll.RiskData(NR_to_Cash!D$18,$A1425))/1000","v":{"$error":"#NAME?"}},{"$f":"(_xll.RiskData(NR_to_Cash!E$18,$A1425))/1000","v":{"$error":"#NAME?"}}]
[1419,{"$f":"_xll.RiskData('Risk Summary'!J$48,$A1426)/1000","v":{"$error":"#NAME?"}},{"$f":"_xll.RiskData('Risk Summary'!K$48,$A1426)/1000","v":{"$error":"#NAME?"}},{"$f":"_xll.RiskData('Risk Summary'!L$48,$A1426)/1000","v":{"$error":"#NAME?"}},null,null,{"$f":"(_xll.RiskData(NR_to_Cash!C$18,$A1426))/1000","v":{"$error":"#NAME?"}},{"$f":"(_xll.RiskData(NR_to_Cash!D$18,$A1426))/1000","v":{"$error":"#NAME?"}},{"$f":"(_xll.RiskData(NR_to_Cash!E$18,$A1426))/1000","v":{"$error":"#NAME?"}}]
[1420,{"$f":"_xll.RiskData('Risk Summary'!J$48,$A1427)/1000","v":{"$error":"#NAME?"}},{"$f":"_xll.RiskData('Risk Summary'!K$48,$A1427)/1000","v":{"$error":"#NAME?"}},{"$f":"_xll.RiskData('Risk Summary'!L$48,$A1427)/1000","v":{"$error":"#NAME?"}},null,null,{"$f":"(_xll.RiskData(NR_to_Cash!C$18,$A1427))/1000","v":{"$error":"#NAME?"}},{"$f":"(_xll.RiskData(NR_to_Cash!D$18,$A1427))/1000","v":{"$error":"#NAME?"}},{"$f":"(_xll.RiskData(NR_to_Cash!E$18,$A1427))/1000","v":{"$error":"#NAME?"}}]
[1421,{"$f":"_xll.RiskData('Risk Summary'!J$48,$A1428)/1000","v":{"$error":"#NAME?"}},{"$f":"_xll.RiskData('Risk Summary'!K$48,$A1428)/1000","v":{"$error":"#NAME?"}},{"$f":"_xll.RiskData('Risk Summary'!L$48,$A1428)/1000","v":{"$error":"#NAME?"}},null,null,{"$f":"(_xll.RiskData(NR_to_Cash!C$18,$A1428))/1000","v":{"$error":"#NAME?"}},{"$f":"(_xll.RiskData(NR_to_Cash!D$18,$A1428))/1000","v":{"$error":"#NAME?"}},{"$f":"(_xll.RiskData(NR_to_Cash!E$18,$A1428))/1000","v":{"$error":"#NAME?"}}]
[1422,{"$f":"_xll.RiskData('Risk Summary'!J$48,$A1429)/1000","v":{"$error":"#NAME?"}},{"$f":"_xll.RiskData('Risk Summary'!K$48,$A1429)/1000","v":{"$error":"#NAME?"}},{"$f":"_xll.RiskData('Risk Summary'!L$48,$A1429)/1000","v":{"$error":"#NAME?"}},null,null,{"$f":"(_xll.RiskData(NR_to_Cash!C$18,$A1429))/1000","v":{"$error":"#NAME?"}},{"$f":"(_xll.RiskData(NR_to_Cash!D$18,$A1429))/1000","v":{"$error":"#NAME?"}},{"$f":"(_xll.RiskData(NR_to_Cash!E$18,$A1429))/1000","v":{"$error":"#NAME?"}}]
[1423,{"$f":"_xll.RiskData('Risk Summary'!J$48,$A1430)/1000","v":{"$error":"#NAME?"}},{"$f":"_xll.RiskData('Risk Summary'!K$48,$A1430)/1000","v":{"$error":"#NAME?"}},{"$f":"_xll.RiskData('Risk Summary'!L$48,$A1430)/1000","v":{"$error":"#NAME?"}},null,null,{"$f":"(_xll.RiskData(NR_to_Cash!C$18,$A1430))/1000","v":{"$error":"#NAME?"}},{"$f":"(_xll.RiskData(NR_to_Cash!D$18,$A1430))/1000","v":{"$error":"#NAME?"}},{"$f":"(_xll.RiskData(NR_to_Cash!E$18,$A1430))/1000","v":{"$error":"#NAME?"}}]
[1424,{"$f":"_xll.RiskData('Risk Summary'!J$48,$A1431)/1000","v":{"$error":"#NAME?"}},{"$f":"_xll.RiskData('Risk Summary'!K$48,$A1431)/1000","v":{"$error":"#NAME?"}},{"$f":"_xll.RiskData('Risk Summary'!L$48,$A1431)/1000","v":{"$error":"#NAME?"}},null,null,{"$f":"(_xll.RiskData(NR_to_Cash!C$18,$A1431))/1000","v":{"$error":"#NAME?"}},{"$f":"(_xll.RiskData(NR_to_Cash!D$18,$A1431))/1000","v":{"$error":"#NAME?"}},{"$f":"(_xll.RiskData(NR_to_Cash!E$18,$A1431))/1000","v":{"$error":"#NAME?"}}]
[1425,{"$f":"_xll.RiskData('Risk Summary'!J$48,$A1432)/1000","v":{"$error":"#NAME?"}},{"$f":"_xll.RiskData('Risk Summary'!K$48,$A1432)/1000","v":{"$error":"#NAME?"}},{"$f":"_xll.RiskData('Risk Summary'!L$48,$A1432)/1000","v":{"$error":"#NAME?"}},null,null,{"$f":"(_xll.RiskData(NR_to_Cash!C$18,$A1432))/1000","v":{"$error":"#NAME?"}},{"$f":"(_xll.RiskData(NR_to_Cash!D$18,$A1432))/1000","v":{"$error":"#NAME?"}},{"$f":"(_xll.RiskData(NR_to_Cash!E$18,$A1432))/1000","v":{"$error":"#NAME?"}}]
[1426,{"$f":"_xll.RiskData('Risk Summary'!J$48,$A1433)/1000","v":{"$error":"#NAME?"}},{"$f":"_xll.RiskData('Risk Summary'!K$48,$A1433)/1000","v":{"$error":"#NAME?"}},{"$f":"_xll.RiskData('Risk Summary'!L$48,$A1433)/1000","v":{"$error":"#NAME?"}},null,null,{"$f":"(_xll.RiskData(NR_to_Cash!C$18,$A1433))/1000","v":{"$error":"#NAME?"}},{"$f":"(_xll.RiskData(NR_to_Cash!D$18,$A1433))/1000","v":{"$error":"#NAME?"}},{"$f":"(_xll.RiskData(NR_to_Cash!E$18,$A1433))/1000","v":{"$error":"#NAME?"}}]
[1427,{"$f":"_xll.RiskData('Risk Summary'!J$48,$A1434)/1000","v":{"$error":"#NAME?"}},{"$f":"_xll.RiskData('Risk Summary'!K$48,$A1434)/1000","v":{"$error":"#NAME?"}},{"$f":"_xll.RiskData('Risk Summary'!L$48,$A1434)/1000","v":{"$error":"#NAME?"}},null,null,{"$f":"(_xll.RiskData(NR_to_Cash!C$18,$A1434))/1000","v":{"$error":"#NAME?"}},{"$f":"(_xll.RiskData(NR_to_Cash!D$18,$A1434))/1000","v":{"$error":"#NAME?"}},{"$f":"(_xll.RiskData(NR_to_Cash!E$18,$A1434))/1000","v":{"$error":"#NAME?"}}]
[1428,{"$f":"_xll.RiskData('Risk Summary'!J$48,$A1435)/1000","v":{"$error":"#NAME?"}},{"$f":"_xll.RiskData('Risk Summary'!K$48,$A1435)/1000","v":{"$error":"#NAME?"}},{"$f":"_xll.RiskData('Risk Summary'!L$48,$A1435)/1000","v":{"$error":"#NAME?"}},null,null,{"$f":"(_xll.RiskData(NR_to_Cash!C$18,$A1435))/1000","v":{"$error":"#NAME?"}},{"$f":"(_xll.RiskData(NR_to_Cash!D$18,$A1435))/1000","v":{"$error":"#NAME?"}},{"$f":"(_xll.RiskData(NR_to_Cash!E$18,$A1435))/1000","v":{"$error":"#NAME?"}}]
[1429,{"$f":"_xll.RiskData('Risk Summary'!J$48,$A1436)/1000","v":{"$error":"#NAME?"}},{"$f":"_xll.RiskData('Risk Summary'!K$48,$A1436)/1000","v":{"$error":"#NAME?"}},{"$f":"_xll.RiskData('Risk Summary'!L$48,$A1436)/1000","v":{"$error":"#NAME?"}},null,null,{"$f":"(_xll.RiskData(NR_to_Cash!C$18,$A1436))/1000","v":{"$error":"#NAME?"}},{"$f":"(_xll.RiskData(NR_to_Cash!D$18,$A1436))/1000","v":{"$error":"#NAME?"}},{"$f":"(_xll.RiskData(NR_to_Cash!E$18,$A1436))/1000","v":{"$error":"#NAME?"}}]
[1430,{"$f":"_xll.RiskData('Risk Summary'!J$48,$A1437)/1000","v":{"$error":"#NAME?"}},{"$f":"_xll.RiskData('Risk Summary'!K$48,$A1437)/1000","v":{"$error":"#NAME?"}},{"$f":"_xll.RiskData('Risk Summary'!L$48,$A1437)/1000","v":{"$error":"#NAME?"}},null,null,{"$f":"(_xll.RiskData(NR_to_Cash!C$18,$A1437))/1000","v":{"$error":"#NAME?"}},{"$f":"(_xll.RiskData(NR_to_Cash!D$18,$A1437))/1000","v":{"$error":"#NAME?"}},{"$f":"(_xll.RiskData(NR_to_Cash!E$18,$A1437))/1000","v":{"$error":"#NAME?"}}]
[1431,{"$f":"_xll.RiskData('Risk Summary'!J$48,$A1438)/1000","v":{"$error":"#NAME?"}},{"$f":"_xll.RiskData('Risk Summary'!K$48,$A1438)/1000","v":{"$error":"#NAME?"}},{"$f":"_xll.RiskData('Risk Summary'!L$48,$A1438)/1000","v":{"$error":"#NAME?"}},null,null,{"$f":"(_xll.RiskData(NR_to_Cash!C$18,$A1438))/1000","v":{"$error":"#NAME?"}},{"$f":"(_xll.RiskData(NR_to_Cash!D$18,$A1438))/1000","v":{"$error":"#NAME?"}},{"$f":"(_xll.RiskData(NR_to_Cash!E$18,$A1438))/1000","v":{"$error":"#NAME?"}}]
[1432,{"$f":"_xll.RiskData('Risk Summary'!J$48,$A1439)/1000","v":{"$error":"#NAME?"}},{"$f":"_xll.RiskData('Risk Summary'!K$48,$A1439)/1000","v":{"$error":"#NAME?"}},{"$f":"_xll.RiskData('Risk Summary'!L$48,$A1439)/1000","v":{"$error":"#NAME?"}},null,null,{"$f":"(_xll.RiskData(NR_to_Cash!C$18,$A1439))/1000","v":{"$error":"#NAME?"}},{"$f":"(_xll.RiskData(NR_to_Cash!D$18,$A1439))/1000","v":{"$error":"#NAME?"}},{"$f":"(_xll.RiskData(NR_to_Cash!E$18,$A1439))/1000","v":{"$error":"#NAME?"}}]
[1433,{"$f":"_xll.RiskData('Risk Summary'!J$48,$A1440)/1000","v":{"$error":"#NAME?"}},{"$f":"_xll.RiskData('Risk Summary'!K$48,$A1440)/1000","v":{"$error":"#NAME?"}},{"$f":"_xll.RiskData('Risk Summary'!L$48,$A1440)/1000","v":{"$error":"#NAME?"}},null,null,{"$f":"(_xll.RiskData(NR_to_Cash!C$18,$A1440))/1000","v":{"$error":"#NAME?"}},{"$f":"(_xll.RiskData(NR_to_Cash!D$18,$A1440))/1000","v":{"$error":"#NAME?"}},{"$f":"(_xll.RiskData(NR_to_Cash!E$18,$A1440))/1000","v":{"$error":"#NAME?"}}]
[1434,{"$f":"_xll.RiskData('Risk Summary'!J$48,$A1441)/1000","v":{"$error":"#NAME?"}},{"$f":"_xll.RiskData('Risk Summary'!K$48,$A1441)/1000","v":{"$error":"#NAME?"}},{"$f":"_xll.RiskData('Risk Summary'!L$48,$A1441)/1000","v":{"$error":"#NAME?"}},null,null,{"$f":"(_xll.RiskData(NR_to_Cash!C$18,$A1441))/1000","v":{"$error":"#NAME?"}},{"$f":"(_xll.RiskData(NR_to_Cash!D$18,$A1441))/1000","v":{"$error":"#NAME?"}},{"$f":"(_xll.RiskData(NR_to_Cash!E$18,$A1441))/1000","v":{"$error":"#NAME?"}}]
[1435,{"$f":"_xll.RiskData('Risk Summary'!J$48,$A1442)/1000","v":{"$error":"#NAME?"}},{"$f":"_xll.RiskData('Risk Summary'!K$48,$A1442)/1000","v":{"$error":"#NAME?"}},{"$f":"_xll.RiskData('Risk Summary'!L$48,$A1442)/1000","v":{"$error":"#NAME?"}},null,null,{"$f":"(_xll.RiskData(NR_to_Cash!C$18,$A1442))/1000","v":{"$error":"#NAME?"}},{"$f":"(_xll.RiskData(NR_to_Cash!D$18,$A1442))/1000","v":{"$error":"#NAME?"}},{"$f":"(_xll.RiskData(NR_to_Cash!E$18,$A1442))/1000","v":{"$error":"#NAME?"}}]
[1436,{"$f":"_xll.RiskData('Risk Summary'!J$48,$A1443)/1000","v":{"$error":"#NAME?"}},{"$f":"_xll.RiskData('Risk Summary'!K$48,$A1443)/1000","v":{"$error":"#NAME?"}},{"$f":"_xll.RiskData('Risk Summary'!L$48,$A1443)/1000","v":{"$error":"#NAME?"}},null,null,{"$f":"(_xll.RiskData(NR_to_Cash!C$18,$A1443))/1000","v":{"$error":"#NAME?"}},{"$f":"(_xll.RiskData(NR_to_Cash!D$18,$A1443))/1000","v":{"$error":"#NAME?"}},{"$f":"(_xll.RiskData(NR_to_Cash!E$18,$A1443))/1000","v":{"$error":"#NAME?"}}]
[1437,{"$f":"_xll.RiskData('Risk Summary'!J$48,$A1444)/1000","v":{"$error":"#NAME?"}},{"$f":"_xll.RiskData('Risk Summary'!K$48,$A1444)/1000","v":{"$error":"#NAME?"}},{"$f":"_xll.RiskData('Risk Summary'!L$48,$A1444)/1000","v":{"$error":"#NAME?"}},null,null,{"$f":"(_xll.RiskData(NR_to_Cash!C$18,$A1444))/1000","v":{"$error":"#NAME?"}},{"$f":"(_xll.RiskData(NR_to_Cash!D$18,$A1444))/1000","v":{"$error":"#NAME?"}},{"$f":"(_xll.RiskData(NR_to_Cash!E$18,$A1444))/1000","v":{"$error":"#NAME?"}}]
[1438,{"$f":"_xll.RiskData('Risk Summary'!J$48,$A1445)/1000","v":{"$error":"#NAME?"}},{"$f":"_xll.RiskData('Risk Summary'!K$48,$A1445)/1000","v":{"$error":"#NAME?"}},{"$f":"_xll.RiskData('Risk Summary'!L$48,$A1445)/1000","v":{"$error":"#NAME?"}},null,null,{"$f":"(_xll.RiskData(NR_to_Cash!C$18,$A1445))/1000","v":{"$error":"#NAME?"}},{"$f":"(_xll.RiskData(NR_to_Cash!D$18,$A1445))/1000","v":{"$error":"#NAME?"}},{"$f":"(_xll.RiskData(NR_to_Cash!E$18,$A1445))/1000","v":{"$error":"#NAME?"}}]
[1439,{"$f":"_xll.RiskData('Risk Summary'!J$48,$A1446)/1000","v":{"$error":"#NAME?"}},{"$f":"_xll.RiskData('Risk Summary'!K$48,$A1446)/1000","v":{"$error":"#NAME?"}},{"$f":"_xll.RiskData('Risk Summary'!L$48,$A1446)/1000","v":{"$error":"#NAME?"}},null,null,{"$f":"(_xll.RiskData(NR_to_Cash!C$18,$A1446))/1000","v":{"$error":"#NAME?"}},{"$f":"(_xll.RiskData(NR_to_Cash!D$18,$A1446))/1000","v":{"$error":"#NAME?"}},{"$f":"(_xll.RiskData(NR_to_Cash!E$18,$A1446))/1000","v":{"$error":"#NAME?"}}]
[1440,{"$f":"_xll.RiskData('Risk Summary'!J$48,$A1447)/1000","v":{"$error":"#NAME?"}},{"$f":"_xll.RiskData('Risk Summary'!K$48,$A1447)/1000","v":{"$error":"#NAME?"}},{"$f":"_xll.RiskData('Risk Summary'!L$48,$A1447)/1000","v":{"$error":"#NAME?"}},null,null,{"$f":"(_xll.RiskData(NR_to_Cash!C$18,$A1447))/1000","v":{"$error":"#NAME?"}},{"$f":"(_xll.RiskData(NR_to_Cash!D$18,$A1447))/1000","v":{"$error":"#NAME?"}},{"$f":"(_xll.RiskData(NR_to_Cash!E$18,$A1447))/1000","v":{"$error":"#NAME?"}}]
[1441,{"$f":"_xll.RiskData('Risk Summary'!J$48,$A1448)/1000","v":{"$error":"#NAME?"}},{"$f":"_xll.RiskData('Risk Summary'!K$48,$A1448)/1000","v":{"$error":"#NAME?"}},{"$f":"_xll.RiskData('Risk Summary'!L$48,$A1448)/1000","v":{"$error":"#NAME?"}},null,null,{"$f":"(_xll.RiskData(NR_to_Cash!C$18,$A1448))/1000","v":{"$error":"#NAME?"}},{"$f":"(_xll.RiskData(NR_to_Cash!D$18,$A1448))/1000","v":{"$error":"#NAME?"}},{"$f":"(_xll.RiskData(NR_to_Cash!E$18,$A1448))/1000","v":{"$error":"#NAME?"}}]
[1442,{"$f":"_xll.RiskData('Risk Summary'!J$48,$A1449)/1000","v":{"$error":"#NAME?"}},{"$f":"_xll.RiskData('Risk Summary'!K$48,$A1449)/1000","v":{"$error":"#NAME?"}},{"$f":"_xll.RiskData('Risk Summary'!L$48,$A1449)/1000","v":{"$error":"#NAME?"}},null,null,{"$f":"(_xll.RiskData(NR_to_Cash!C$18,$A1449))/1000","v":{"$error":"#NAME?"}},{"$f":"(_xll.RiskData(NR_to_Cash!D$18,$A1449))/1000","v":{"$error":"#NAME?"}},{"$f":"(_xll.RiskData(NR_to_Cash!E$18,$A1449))/1000","v":{"$error":"#NAME?"}}]
[1443,{"$f":"_xll.RiskData('Risk Summary'!J$48,$A1450)/1000","v":{"$error":"#NAME?"}},{"$f":"_xll.RiskData('Risk Summary'!K$48,$A1450)/1000","v":{"$error":"#NAME?"}},{"$f":"_xll.RiskData('Risk Summary'!L$48,$A1450)/1000","v":{"$error":"#NAME?"}},null,null,{"$f":"(_xll.RiskData(NR_to_Cash!C$18,$A1450))/1000","v":{"$error":"#NAME?"}},{"$f":"(_xll.RiskData(NR_to_Cash!D$18,$A1450))/1000","v":{"$error":"#NAME?"}},{"$f":"(_xll.RiskData(NR_to_Cash!E$18,$A1450))/1000","v":{"$error":"#NAME?"}}]
[1444,{"$f":"_xll.RiskData('Risk Summary'!J$48,$A1451)/1000","v":{"$error":"#NAME?"}},{"$f":"_xll.RiskData('Risk Summary'!K$48,$A1451)/1000","v":{"$error":"#NAME?"}},{"$f":"_xll.RiskData('Risk Summary'!L$48,$A1451)/1000","v":{"$error":"#NAME?"}},null,null,{"$f":"(_xll.RiskData(NR_to_Cash!C$18,$A1451))/1000","v":{"$error":"#NAME?"}},{"$f":"(_xll.RiskData(NR_to_Cash!D$18,$A1451))/1000","v":{"$error":"#NAME?"}},{"$f":"(_xll.RiskData(NR_to_Cash!E$18,$A1451))/1000","v":{"$error":"#NAME?"}}]
[1445,{"$f":"_xll.RiskData('Risk Summary'!J$48,$A1452)/1000","v":{"$error":"#NAME?"}},{"$f":"_xll.RiskData('Risk Summary'!K$48,$A1452)/1000","v":{"$error":"#NAME?"}},{"$f":"_xll.RiskData('Risk Summary'!L$48,$A1452)/1000","v":{"$error":"#NAME?"}},null,null,{"$f":"(_xll.RiskData(NR_to_Cash!C$18,$A1452))/1000","v":{"$error":"#NAME?"}},{"$f":"(_xll.RiskData(NR_to_Cash!D$18,$A1452))/1000","v":{"$error":"#NAME?"}},{"$f":"(_xll.RiskData(NR_to_Cash!E$18,$A1452))/1000","v":{"$error":"#NAME?"}}]
[1446,{"$f":"_xll.RiskData('Risk Summary'!J$48,$A1453)/1000","v":{"$error":"#NAME?"}},{"$f":"_xll.RiskData('Risk Summary'!K$48,$A1453)/1000","v":{"$error":"#NAME?"}},{"$f":"_xll.RiskData('Risk Summary'!L$48,$A1453)/1000","v":{"$error":"#NAME?"}},null,null,{"$f":"(_xll.RiskData(NR_to_Cash!C$18,$A1453))/1000","v":{"$error":"#NAME?"}},{"$f":"(_xll.RiskData(NR_to_Cash!D$18,$A1453))/1000","v":{"$error":"#NAME?"}},{"$f":"(_xll.RiskData(NR_to_Cash!E$18,$A1453))/1000","v":{"$error":"#NAME?"}}]
[1447,{"$f":"_xll.RiskData('Risk Summary'!J$48,$A1454)/1000","v":{"$error":"#NAME?"}},{"$f":"_xll.RiskData('Risk Summary'!K$48,$A1454)/1000","v":{"$error":"#NAME?"}},{"$f":"_xll.RiskData('Risk Summary'!L$48,$A1454)/1000","v":{"$error":"#NAME?"}},null,null,{"$f":"(_xll.RiskData(NR_to_Cash!C$18,$A1454))/1000","v":{"$error":"#NAME?"}},{"$f":"(_xll.RiskData(NR_to_Cash!D$18,$A1454))/1000","v":{"$error":"#NAME?"}},{"$f":"(_xll.RiskData(NR_to_Cash!E$18,$A1454))/1000","v":{"$error":"#NAME?"}}]
[1448,{"$f":"_xll.RiskData('Risk Summary'!J$48,$A1455)/1000","v":{"$error":"#NAME?"}},{"$f":"_xll.RiskData('Risk Summary'!K$48,$A1455)/1000","v":{"$error":"#NAME?"}},{"$f":"_xll.RiskData('Risk Summary'!L$48,$A1455)/1000","v":{"$error":"#NAME?"}},null,null,{"$f":"(_xll.RiskData(NR_to_Cash!C$18,$A1455))/1000","v":{"$error":"#NAME?"}},{"$f":"(_xll.RiskData(NR_to_Cash!D$18,$A1455))/1000","v":{"$error":"#NAME?"}},{"$f":"(_xll.RiskData(NR_to_Cash!E$18,$A1455))/1000","v":{"$error":"#NAME?"}}]
[1449,{"$f":"_xll.RiskData('Risk Summary'!J$48,$A1456)/1000","v":{"$error":"#NAME?"}},{"$f":"_xll.RiskData('Risk Summary'!K$48,$A1456)/1000","v":{"$error":"#NAME?"}},{"$f":"_xll.RiskData('Risk Summary'!L$48,$A1456)/1000","v":{"$error":"#NAME?"}},null,null,{"$f":"(_xll.RiskData(NR_to_Cash!C$18,$A1456))/1000","v":{"$error":"#NAME?"}},{"$f":"(_xll.RiskData(NR_to_Cash!D$18,$A1456))/1000","v":{"$error":"#NAME?"}},{"$f":"(_xll.RiskData(NR_to_Cash!E$18,$A1456))/1000","v":{"$error":"#NAME?"}}]
[1450,{"$f":"_xll.RiskData('Risk Summary'!J$48,$A1457)/1000","v":{"$error":"#NAME?"}},{"$f":"_xll.RiskData('Risk Summary'!K$48,$A1457)/1000","v":{"$error":"#NAME?"}},{"$f":"_xll.RiskData('Risk Summary'!L$48,$A1457)/1000","v":{"$error":"#NAME?"}},null,null,{"$f":"(_xll.RiskData(NR_to_Cash!C$18,$A1457))/1000","v":{"$error":"#NAME?"}},{"$f":"(_xll.RiskData(NR_to_Cash!D$18,$A1457))/1000","v":{"$error":"#NAME?"}},{"$f":"(_xll.RiskData(NR_to_Cash!E$18,$A1457))/1000","v":{"$error":"#NAME?"}}]
[1451,{"$f":"_xll.RiskData('Risk Summary'!J$48,$A1458)/1000","v":{"$error":"#NAME?"}},{"$f":"_xll.RiskData('Risk Summary'!K$48,$A1458)/1000","v":{"$error":"#NAME?"}},{"$f":"_xll.RiskData('Risk Summary'!L$48,$A1458)/1000","v":{"$error":"#NAME?"}},null,null,{"$f":"(_xll.RiskData(NR_to_Cash!C$18,$A1458))/1000","v":{"$error":"#NAME?"}},{"$f":"(_xll.RiskData(NR_to_Cash!D$18,$A1458))/1000","v":{"$error":"#NAME?"}},{"$f":"(_xll.RiskData(NR_to_Cash!E$18,$A1458))/1000","v":{"$error":"#NAME?"}}]
[1452,{"$f":"_xll.RiskData('Risk Summary'!J$48,$A1459)/1000","v":{"$error":"#NAME?"}},{"$f":"_xll.RiskData('Risk Summary'!K$48,$A1459)/1000","v":{"$error":"#NAME?"}},{"$f":"_xll.RiskData('Risk Summary'!L$48,$A1459)/1000","v":{"$error":"#NAME?"}},null,null,{"$f":"(_xll.RiskData(NR_to_Cash!C$18,$A1459))/1000","v":{"$error":"#NAME?"}},{"$f":"(_xll.RiskData(NR_to_Cash!D$18,$A1459))/1000","v":{"$error":"#NAME?"}},{"$f":"(_xll.RiskData(NR_to_Cash!E$18,$A1459))/1000","v":{"$error":"#NAME?"}}]
[1453,{"$f":"_xll.RiskData('Risk Summary'!J$48,$A1460)/1000","v":{"$error":"#NAME?"}},{"$f":"_xll.RiskData('Risk Summary'!K$48,$A1460)/1000","v":{"$error":"#NAME?"}},{"$f":"_xll.RiskData('Risk Summary'!L$48,$A1460)/1000","v":{"$error":"#NAME?"}},null,null,{"$f":"(_xll.RiskData(NR_to_Cash!C$18,$A1460))/1000","v":{"$error":"#NAME?"}},{"$f":"(_xll.RiskData(NR_to_Cash!D$18,$A1460))/1000","v":{"$error":"#NAME?"}},{"$f":"(_xll.RiskData(NR_to_Cash!E$18,$A1460))/1000","v":{"$error":"#NAME?"}}]
[1454,{"$f":"_xll.RiskData('Risk Summary'!J$48,$A1461)/1000","v":{"$error":"#NAME?"}},{"$f":"_xll.RiskData('Risk Summary'!K$48,$A1461)/1000","v":{"$error":"#NAME?"}},{"$f":"_xll.RiskData('Risk Summary'!L$48,$A1461)/1000","v":{"$error":"#NAME?"}},null,null,{"$f":"(_xll.RiskData(NR_to_Cash!C$18,$A1461))/1000","v":{"$error":"#NAME?"}},{"$f":"(_xll.RiskData(NR_to_Cash!D$18,$A1461))/1000","v":{"$error":"#NAME?"}},{"$f":"(_xll.RiskData(NR_to_Cash!E$18,$A1461))/1000","v":{"$error":"#NAME?"}}]
[1455,{"$f":"_xll.RiskData('Risk Summary'!J$48,$A1462)/1000","v":{"$error":"#NAME?"}},{"$f":"_xll.RiskData('Risk Summary'!K$48,$A1462)/1000","v":{"$error":"#NAME?"}},{"$f":"_xll.RiskData('Risk Summary'!L$48,$A1462)/1000","v":{"$error":"#NAME?"}},null,null,{"$f":"(_xll.RiskData(NR_to_Cash!C$18,$A1462))/1000","v":{"$error":"#NAME?"}},{"$f":"(_xll.RiskData(NR_to_Cash!D$18,$A1462))/1000","v":{"$error":"#NAME?"}},{"$f":"(_xll.RiskData(NR_to_Cash!E$18,$A1462))/1000","v":{"$error":"#NAME?"}}]
[1456,{"$f":"_xll.RiskData('Risk Summary'!J$48,$A1463)/1000","v":{"$error":"#NAME?"}},{"$f":"_xll.RiskData('Risk Summary'!K$48,$A1463)/1000","v":{"$error":"#NAME?"}},{"$f":"_xll.RiskData('Risk Summary'!L$48,$A1463)/1000","v":{"$error":"#NAME?"}},null,null,{"$f":"(_xll.RiskData(NR_to_Cash!C$18,$A1463))/1000","v":{"$error":"#NAME?"}},{"$f":"(_xll.RiskData(NR_to_Cash!D$18,$A1463))/1000","v":{"$error":"#NAME?"}},{"$f":"(_xll.RiskData(NR_to_Cash!E$18,$A1463))/1000","v":{"$error":"#NAME?"}}]
[1457,{"$f":"_xll.RiskData('Risk Summary'!J$48,$A1464)/1000","v":{"$error":"#NAME?"}},{"$f":"_xll.RiskData('Risk Summary'!K$48,$A1464)/1000","v":{"$error":"#NAME?"}},{"$f":"_xll.RiskData('Risk Summary'!L$48,$A1464)/1000","v":{"$error":"#NAME?"}},null,null,{"$f":"(_xll.RiskData(NR_to_Cash!C$18,$A1464))/1000","v":{"$error":"#NAME?"}},{"$f":"(_xll.RiskData(NR_to_Cash!D$18,$A1464))/1000","v":{"$error":"#NAME?"}},{"$f":"(_xll.RiskData(NR_to_Cash!E$18,$A1464))/1000","v":{"$error":"#NAME?"}}]
[1458,{"$f":"_xll.RiskData('Risk Summary'!J$48,$A1465)/1000","v":{"$error":"#NAME?"}},{"$f":"_xll.RiskData('Risk Summary'!K$48,$A1465)/1000","v":{"$error":"#NAME?"}},{"$f":"_xll.RiskData('Risk Summary'!L$48,$A1465)/1000","v":{"$error":"#NAME?"}},null,null,{"$f":"(_xll.RiskData(NR_to_Cash!C$18,$A1465))/1000","v":{"$error":"#NAME?"}},{"$f":"(_xll.RiskData(NR_to_Cash!D$18,$A1465))/1000","v":{"$error":"#NAME?"}},{"$f":"(_xll.RiskData(NR_to_Cash!E$18,$A1465))/1000","v":{"$error":"#NAME?"}}]
[1459,{"$f":"_xll.RiskData('Risk Summary'!J$48,$A1466)/1000","v":{"$error":"#NAME?"}},{"$f":"_xll.RiskData('Risk Summary'!K$48,$A1466)/1000","v":{"$error":"#NAME?"}},{"$f":"_xll.RiskData('Risk Summary'!L$48,$A1466)/1000","v":{"$error":"#NAME?"}},null,null,{"$f":"(_xll.RiskData(NR_to_Cash!C$18,$A1466))/1000","v":{"$error":"#NAME?"}},{"$f":"(_xll.RiskData(NR_to_Cash!D$18,$A1466))/1000","v":{"$error":"#NAME?"}},{"$f":"(_xll.RiskData(NR_to_Cash!E$18,$A1466))/1000","v":{"$error":"#NAME?"}}]
[1460,{"$f":"_xll.RiskData('Risk Summary'!J$48,$A1467)/1000","v":{"$error":"#NAME?"}},{"$f":"_xll.RiskData('Risk Summary'!K$48,$A1467)/1000","v":{"$error":"#NAME?"}},{"$f":"_xll.RiskData('Risk Summary'!L$48,$A1467)/1000","v":{"$error":"#NAME?"}},null,null,{"$f":"(_xll.RiskData(NR_to_Cash!C$18,$A1467))/1000","v":{"$error":"#NAME?"}},{"$f":"(_xll.RiskData(NR_to_Cash!D$18,$A1467))/1000","v":{"$error":"#NAME?"}},{"$f":"(_xll.RiskData(NR_to_Cash!E$18,$A1467))/1000","v":{"$error":"#NAME?"}}]
[1461,{"$f":"_xll.RiskData('Risk Summary'!J$48,$A1468)/1000","v":{"$error":"#NAME?"}},{"$f":"_xll.RiskData('Risk Summary'!K$48,$A1468)/1000","v":{"$error":"#NAME?"}},{"$f":"_xll.RiskData('Risk Summary'!L$48,$A1468)/1000","v":{"$error":"#NAME?"}},null,null,{"$f":"(_xll.RiskData(NR_to_Cash!C$18,$A1468))/1000","v":{"$error":"#NAME?"}},{"$f":"(_xll.RiskData(NR_to_Cash!D$18,$A1468))/1000","v":{"$error":"#NAME?"}},{"$f":"(_xll.RiskData(NR_to_Cash!E$18,$A1468))/1000","v":{"$error":"#NAME?"}}]
[1462,{"$f":"_xll.RiskData('Risk Summary'!J$48,$A1469)/1000","v":{"$error":"#NAME?"}},{"$f":"_xll.RiskData('Risk Summary'!K$48,$A1469)/1000","v":{"$error":"#NAME?"}},{"$f":"_xll.RiskData('Risk Summary'!L$48,$A1469)/1000","v":{"$error":"#NAME?"}},null,null,{"$f":"(_xll.RiskData(NR_to_Cash!C$18,$A1469))/1000","v":{"$error":"#NAME?"}},{"$f":"(_xll.RiskData(NR_to_Cash!D$18,$A1469))/1000","v":{"$error":"#NAME?"}},{"$f":"(_xll.RiskData(NR_to_Cash!E$18,$A1469))/1000","v":{"$error":"#NAME?"}}]
[1463,{"$f":"_xll.RiskData('Risk Summary'!J$48,$A1470)/1000","v":{"$error":"#NAME?"}},{"$f":"_xll.RiskData('Risk Summary'!K$48,$A1470)/1000","v":{"$error":"#NAME?"}},{"$f":"_xll.RiskData('Risk Summary'!L$48,$A1470)/1000","v":{"$error":"#NAME?"}},null,null,{"$f":"(_xll.RiskData(NR_to_Cash!C$18,$A1470))/1000","v":{"$error":"#NAME?"}},{"$f":"(_xll.RiskData(NR_to_Cash!D$18,$A1470))/1000","v":{"$error":"#NAME?"}},{"$f":"(_xll.RiskData(NR_to_Cash!E$18,$A1470))/1000","v":{"$error":"#NAME?"}}]
[1464,{"$f":"_xll.RiskData('Risk Summary'!J$48,$A1471)/1000","v":{"$error":"#NAME?"}},{"$f":"_xll.RiskData('Risk Summary'!K$48,$A1471)/1000","v":{"$error":"#NAME?"}},{"$f":"_xll.RiskData('Risk Summary'!L$48,$A1471)/1000","v":{"$error":"#NAME?"}},null,null,{"$f":"(_xll.RiskData(NR_to_Cash!C$18,$A1471))/1000","v":{"$error":"#NAME?"}},{"$f":"(_xll.RiskData(NR_to_Cash!D$18,$A1471))/1000","v":{"$error":"#NAME?"}},{"$f":"(_xll.RiskData(NR_to_Cash!E$18,$A1471))/1000","v":{"$error":"#NAME?"}}]
[1465,{"$f":"_xll.RiskData('Risk Summary'!J$48,$A1472)/1000","v":{"$error":"#NAME?"}},{"$f":"_xll.RiskData('Risk Summary'!K$48,$A1472)/1000","v":{"$error":"#NAME?"}},{"$f":"_xll.RiskData('Risk Summary'!L$48,$A1472)/1000","v":{"$error":"#NAME?"}},null,null,{"$f":"(_xll.RiskData(NR_to_Cash!C$18,$A1472))/1000","v":{"$error":"#NAME?"}},{"$f":"(_xll.RiskData(NR_to_Cash!D$18,$A1472))/1000","v":{"$error":"#NAME?"}},{"$f":"(_xll.RiskData(NR_to_Cash!E$18,$A1472))/1000","v":{"$error":"#NAME?"}}]
[1466,{"$f":"_xll.RiskData('Risk Summary'!J$48,$A1473)/1000","v":{"$error":"#NAME?"}},{"$f":"_xll.RiskData('Risk Summary'!K$48,$A1473)/1000","v":{"$error":"#NAME?"}},{"$f":"_xll.RiskData('Risk Summary'!L$48,$A1473)/1000","v":{"$error":"#NAME?"}},null,null,{"$f":"(_xll.RiskData(NR_to_Cash!C$18,$A1473))/1000","v":{"$error":"#NAME?"}},{"$f":"(_xll.RiskData(NR_to_Cash!D$18,$A1473))/1000","v":{"$error":"#NAME?"}},{"$f":"(_xll.RiskData(NR_to_Cash!E$18,$A1473))/1000","v":{"$error":"#NAME?"}}]
[1467,{"$f":"_xll.RiskData('Risk Summary'!J$48,$A1474)/1000","v":{"$error":"#NAME?"}},{"$f":"_xll.RiskData('Risk Summary'!K$48,$A1474)/1000","v":{"$error":"#NAME?"}},{"$f":"_xll.RiskData('Risk Summary'!L$48,$A1474)/1000","v":{"$error":"#NAME?"}},null,null,{"$f":"(_xll.RiskData(NR_to_Cash!C$18,$A1474))/1000","v":{"$error":"#NAME?"}},{"$f":"(_xll.RiskData(NR_to_Cash!D$18,$A1474))/1000","v":{"$error":"#NAME?"}},{"$f":"(_xll.RiskData(NR_to_Cash!E$18,$A1474))/1000","v":{"$error":"#NAME?"}}]
[1468,{"$f":"_xll.RiskData('Risk Summary'!J$48,$A1475)/1000","v":{"$error":"#NAME?"}},{"$f":"_xll.RiskData('Risk Summary'!K$48,$A1475)/1000","v":{"$error":"#NAME?"}},{"$f":"_xll.RiskData('Risk Summary'!L$48,$A1475)/1000","v":{"$error":"#NAME?"}},null,null,{"$f":"(_xll.RiskData(NR_to_Cash!C$18,$A1475))/1000","v":{"$error":"#NAME?"}},{"$f":"(_xll.RiskData(NR_to_Cash!D$18,$A1475))/1000","v":{"$error":"#NAME?"}},{"$f":"(_xll.RiskData(NR_to_Cash!E$18,$A1475))/1000","v":{"$error":"#NAME?"}}]
[1469,{"$f":"_xll.RiskData('Risk Summary'!J$48,$A1476)/1000","v":{"$error":"#NAME?"}},{"$f":"_xll.RiskData('Risk Summary'!K$48,$A1476)/1000","v":{"$error":"#NAME?"}},{"$f":"_xll.RiskData('Risk Summary'!L$48,$A1476)/1000","v":{"$error":"#NAME?"}},null,null,{"$f":"(_xll.RiskData(NR_to_Cash!C$18,$A1476))/1000","v":{"$error":"#NAME?"}},{"$f":"(_xll.RiskData(NR_to_Cash!D$18,$A1476))/1000","v":{"$error":"#NAME?"}},{"$f":"(_xll.RiskData(NR_to_Cash!E$18,$A1476))/1000","v":{"$error":"#NAME?"}}]
[1470,{"$f":"_xll.RiskData('Risk Summary'!J$48,$A1477)/1000","v":{"$error":"#NAME?"}},{"$f":"_xll.RiskData('Risk Summary'!K$48,$A1477)/1000","v":{"$error":"#NAME?"}},{"$f":"_xll.RiskData('Risk Summary'!L$48,$A1477)/1000","v":{"$error":"#NAME?"}},null,null,{"$f":"(_xll.RiskData(NR_to_Cash!C$18,$A1477))/1000","v":{"$error":"#NAME?"}},{"$f":"(_xll.RiskData(NR_to_Cash!D$18,$A1477))/1000","v":{"$error":"#NAME?"}},{"$f":"(_xll.RiskData(NR_to_Cash!E$18,$A1477))/1000","v":{"$error":"#NAME?"}}]
[1471,{"$f":"_xll.RiskData('Risk Summary'!J$48,$A1478)/1000","v":{"$error":"#NAME?"}},{"$f":"_xll.RiskData('Risk Summary'!K$48,$A1478)/1000","v":{"$error":"#NAME?"}},{"$f":"_xll.RiskData('Risk Summary'!L$48,$A1478)/1000","v":{"$error":"#NAME?"}},null,null,{"$f":"(_xll.RiskData(NR_to_Cash!C$18,$A1478))/1000","v":{"$error":"#NAME?"}},{"$f":"(_xll.RiskData(NR_to_Cash!D$18,$A1478))/1000","v":{"$error":"#NAME?"}},{"$f":"(_xll.RiskData(NR_to_Cash!E$18,$A1478))/1000","v":{"$error":"#NAME?"}}]
[1472,{"$f":"_xll.RiskData('Risk Summary'!J$48,$A1479)/1000","v":{"$error":"#NAME?"}},{"$f":"_xll.RiskData('Risk Summary'!K$48,$A1479)/1000","v":{"$error":"#NAME?"}},{"$f":"_xll.RiskData('Risk Summary'!L$48,$A1479)/1000","v":{"$error":"#NAME?"}},null,null,{"$f":"(_xll.RiskData(NR_to_Cash!C$18,$A1479))/1000","v":{"$error":"#NAME?"}},{"$f":"(_xll.RiskData(NR_to_Cash!D$18,$A1479))/1000","v":{"$error":"#NAME?"}},{"$f":"(_xll.RiskData(NR_to_Cash!E$18,$A1479))/1000","v":{"$error":"#NAME?"}}]
[1473,{"$f":"_xll.RiskData('Risk Summary'!J$48,$A1480)/1000","v":{"$error":"#NAME?"}},{"$f":"_xll.RiskData('Risk Summary'!K$48,$A1480)/1000","v":{"$error":"#NAME?"}},{"$f":"_xll.RiskData('Risk Summary'!L$48,$A1480)/1000","v":{"$error":"#NAME?"}},null,null,{"$f":"(_xll.RiskData(NR_to_Cash!C$18,$A1480))/1000","v":{"$error":"#NAME?"}},{"$f":"(_xll.RiskData(NR_to_Cash!D$18,$A1480))/1000","v":{"$error":"#NAME?"}},{"$f":"(_xll.RiskData(NR_to_Cash!E$18,$A1480))/1000","v":{"$error":"#NAME?"}}]
[1474,{"$f":"_xll.RiskData('Risk Summary'!J$48,$A1481)/1000","v":{"$error":"#NAME?"}},{"$f":"_xll.RiskData('Risk Summary'!K$48,$A1481)/1000","v":{"$error":"#NAME?"}},{"$f":"_xll.RiskData('Risk Summary'!L$48,$A1481)/1000","v":{"$error":"#NAME?"}},null,null,{"$f":"(_xll.RiskData(NR_to_Cash!C$18,$A1481))/1000","v":{"$error":"#NAME?"}},{"$f":"(_xll.RiskData(NR_to_Cash!D$18,$A1481))/1000","v":{"$error":"#NAME?"}},{"$f":"(_xll.RiskData(NR_to_Cash!E$18,$A1481))/1000","v":{"$error":"#NAME?"}}]
[1475,{"$f":"_xll.RiskData('Risk Summary'!J$48,$A1482)/1000","v":{"$error":"#NAME?"}},{"$f":"_xll.RiskData('Risk Summary'!K$48,$A1482)/1000","v":{"$error":"#NAME?"}},{"$f":"_xll.RiskData('Risk Summary'!L$48,$A1482)/1000","v":{"$error":"#NAME?"}},null,null,{"$f":"(_xll.RiskData(NR_to_Cash!C$18,$A1482))/1000","v":{"$error":"#NAME?"}},{"$f":"(_xll.RiskData(NR_to_Cash!D$18,$A1482))/1000","v":{"$error":"#NAME?"}},{"$f":"(_xll.RiskData(NR_to_Cash!E$18,$A1482))/1000","v":{"$error":"#NAME?"}}]
[1476,{"$f":"_xll.RiskData('Risk Summary'!J$48,$A1483)/1000","v":{"$error":"#NAME?"}},{"$f":"_xll.RiskData('Risk Summary'!K$48,$A1483)/1000","v":{"$error":"#NAME?"}},{"$f":"_xll.RiskData('Risk Summary'!L$48,$A1483)/1000","v":{"$error":"#NAME?"}},null,null,{"$f":"(_xll.RiskData(NR_to_Cash!C$18,$A1483))/1000","v":{"$error":"#NAME?"}},{"$f":"(_xll.RiskData(NR_to_Cash!D$18,$A1483))/1000","v":{"$error":"#NAME?"}},{"$f":"(_xll.RiskData(NR_to_Cash!E$18,$A1483))/1000","v":{"$error":"#NAME?"}}]
[1477,{"$f":"_xll.RiskData('Risk Summary'!J$48,$A1484)/1000","v":{"$error":"#NAME?"}},{"$f":"_xll.RiskData('Risk Summary'!K$48,$A1484)/1000","v":{"$error":"#NAME?"}},{"$f":"_xll.RiskData('Risk Summary'!L$48,$A1484)/1000","v":{"$error":"#NAME?"}},null,null,{"$f":"(_xll.RiskData(NR_to_Cash!C$18,$A1484))/1000","v":{"$error":"#NAME?"}},{"$f":"(_xll.RiskData(NR_to_Cash!D$18,$A1484))/1000","v":{"$error":"#NAME?"}},{"$f":"(_xll.RiskData(NR_to_Cash!E$18,$A1484))/1000","v":{"$error":"#NAME?"}}]
[1478,{"$f":"_xll.RiskData('Risk Summary'!J$48,$A1485)/1000","v":{"$error":"#NAME?"}},{"$f":"_xll.RiskData('Risk Summary'!K$48,$A1485)/1000","v":{"$error":"#NAME?"}},{"$f":"_xll.RiskData('Risk Summary'!L$48,$A1485)/1000","v":{"$error":"#NAME?"}},null,null,{"$f":"(_xll.RiskData(NR_to_Cash!C$18,$A1485))/1000","v":{"$error":"#NAME?"}},{"$f":"(_xll.RiskData(NR_to_Cash!D$18,$A1485))/1000","v":{"$error":"#NAME?"}},{"$f":"(_xll.RiskData(NR_to_Cash!E$18,$A1485))/1000","v":{"$error":"#NAME?"}}]
[1479,{"$f":"_xll.RiskData('Risk Summary'!J$48,$A1486)/1000","v":{"$error":"#NAME?"}},{"$f":"_xll.RiskData('Risk Summary'!K$48,$A1486)/1000","v":{"$error":"#NAME?"}},{"$f":"_xll.RiskData('Risk Summary'!L$48,$A1486)/1000","v":{"$error":"#NAME?"}},null,null,{"$f":"(_xll.RiskData(NR_to_Cash!C$18,$A1486))/1000","v":{"$error":"#NAME?"}},{"$f":"(_xll.RiskData(NR_to_Cash!D$18,$A1486))/1000","v":{"$error":"#NAME?"}},{"$f":"(_xll.RiskData(NR_to_Cash!E$18,$A1486))/1000","v":{"$error":"#NAME?"}}]
[1480,{"$f":"_xll.RiskData('Risk Summary'!J$48,$A1487)/1000","v":{"$error":"#NAME?"}},{"$f":"_xll.RiskData('Risk Summary'!K$48,$A1487)/1000","v":{"$error":"#NAME?"}},{"$f":"_xll.RiskData('Risk Summary'!L$48,$A1487)/1000","v":{"$error":"#NAME?"}},null,null,{"$f":"(_xll.RiskData(NR_to_Cash!C$18,$A1487))/1000","v":{"$error":"#NAME?"}},{"$f":"(_xll.RiskData(NR_to_Cash!D$18,$A1487))/1000","v":{"$error":"#NAME?"}},{"$f":"(_xll.RiskData(NR_to_Cash!E$18,$A1487))/1000","v":{"$error":"#NAME?"}}]
[1481,{"$f":"_xll.RiskData('Risk Summary'!J$48,$A1488)/1000","v":{"$error":"#NAME?"}},{"$f":"_xll.RiskData('Risk Summary'!K$48,$A1488)/1000","v":{"$error":"#NAME?"}},{"$f":"_xll.RiskData('Risk Summary'!L$48,$A1488)/1000","v":{"$error":"#NAME?"}},null,null,{"$f":"(_xll.RiskData(NR_to_Cash!C$18,$A1488))/1000","v":{"$error":"#NAME?"}},{"$f":"(_xll.RiskData(NR_to_Cash!D$18,$A1488))/1000","v":{"$error":"#NAME?"}},{"$f":"(_xll.RiskData(NR_to_Cash!E$18,$A1488))/1000","v":{"$error":"#NAME?"}}]
[1482,{"$f":"_xll.RiskData('Risk Summary'!J$48,$A1489)/1000","v":{"$error":"#NAME?"}},{"$f":"_xll.RiskData('Risk Summary'!K$48,$A1489)/1000","v":{"$error":"#NAME?"}},{"$f":"_xll.RiskData('Risk Summary'!L$48,$A1489)/1000","v":{"$error":"#NAME?"}},null,null,{"$f":"(_xll.RiskData(NR_to_Cash!C$18,$A1489))/1000","v":{"$error":"#NAME?"}},{"$f":"(_xll.RiskData(NR_to_Cash!D$18,$A1489))/1000","v":{"$error":"#NAME?"}},{"$f":"(_xll.RiskData(NR_to_Cash!E$18,$A1489))/1000","v":{"$error":"#NAME?"}}]
[1483,{"$f":"_xll.RiskData('Risk Summary'!J$48,$A1490)/1000","v":{"$error":"#NAME?"}},{"$f":"_xll.RiskData('Risk Summary'!K$48,$A1490)/1000","v":{"$error":"#NAME?"}},{"$f":"_xll.RiskData('Risk Summary'!L$48,$A1490)/1000","v":{"$error":"#NAME?"}},null,null,{"$f":"(_xll.RiskData(NR_to_Cash!C$18,$A1490))/1000","v":{"$error":"#NAME?"}},{"$f":"(_xll.RiskData(NR_to_Cash!D$18,$A1490))/1000","v":{"$error":"#NAME?"}},{"$f":"(_xll.RiskData(NR_to_Cash!E$18,$A1490))/1000","v":{"$error":"#NAME?"}}]
[1484,{"$f":"_xll.RiskData('Risk Summary'!J$48,$A1491)/1000","v":{"$error":"#NAME?"}},{"$f":"_xll.RiskData('Risk Summary'!K$48,$A1491)/1000","v":{"$error":"#NAME?"}},{"$f":"_xll.RiskData('Risk Summary'!L$48,$A1491)/1000","v":{"$error":"#NAME?"}},null,null,{"$f":"(_xll.RiskData(NR_to_Cash!C$18,$A1491))/1000","v":{"$error":"#NAME?"}},{"$f":"(_xll.RiskData(NR_to_Cash!D$18,$A1491))/1000","v":{"$error":"#NAME?"}},{"$f":"(_xll.RiskData(NR_to_Cash!E$18,$A1491))/1000","v":{"$error":"#NAME?"}}]
[1485,{"$f":"_xll.RiskData('Risk Summary'!J$48,$A1492)/1000","v":{"$error":"#NAME?"}},{"$f":"_xll.RiskData('Risk Summary'!K$48,$A1492)/1000","v":{"$error":"#NAME?"}},{"$f":"_xll.RiskData('Risk Summary'!L$48,$A1492)/1000","v":{"$error":"#NAME?"}},null,null,{"$f":"(_xll.RiskData(NR_to_Cash!C$18,$A1492))/1000","v":{"$error":"#NAME?"}},{"$f":"(_xll.RiskData(NR_to_Cash!D$18,$A1492))/1000","v":{"$error":"#NAME?"}},{"$f":"(_xll.RiskData(NR_to_Cash!E$18,$A1492))/1000","v":{"$error":"#NAME?"}}]
[1486,{"$f":"_xll.RiskData('Risk Summary'!J$48,$A1493)/1000","v":{"$error":"#NAME?"}},{"$f":"_xll.RiskData('Risk Summary'!K$48,$A1493)/1000","v":{"$error":"#NAME?"}},{"$f":"_xll.RiskData('Risk Summary'!L$48,$A1493)/1000","v":{"$error":"#NAME?"}},null,null,{"$f":"(_xll.RiskData(NR_to_Cash!C$18,$A1493))/1000","v":{"$error":"#NAME?"}},{"$f":"(_xll.RiskData(NR_to_Cash!D$18,$A1493))/1000","v":{"$error":"#NAME?"}},{"$f":"(_xll.RiskData(NR_to_Cash!E$18,$A1493))/1000","v":{"$error":"#NAME?"}}]
[1487,{"$f":"_xll.RiskData('Risk Summary'!J$48,$A1494)/1000","v":{"$error":"#NAME?"}},{"$f":"_xll.RiskData('Risk Summary'!K$48,$A1494)/1000","v":{"$error":"#NAME?"}},{"$f":"_xll.RiskData('Risk Summary'!L$48,$A1494)/1000","v":{"$error":"#NAME?"}},null,null,{"$f":"(_xll.RiskData(NR_to_Cash!C$18,$A1494))/1000","v":{"$error":"#NAME?"}},{"$f":"(_xll.RiskData(NR_to_Cash!D$18,$A1494))/1000","v":{"$error":"#NAME?"}},{"$f":"(_xll.RiskData(NR_to_Cash!E$18,$A1494))/1000","v":{"$error":"#NAME?"}}]
[1488,{"$f":"_xll.RiskData('Risk Summary'!J$48,$A1495)/1000","v":{"$error":"#NAME?"}},{"$f":"_xll.RiskData('Risk Summary'!K$48,$A1495)/1000","v":{"$error":"#NAME?"}},{"$f":"_xll.RiskData('Risk Summary'!L$48,$A1495)/1000","v":{"$error":"#NAME?"}},null,null,{"$f":"(_xll.RiskData(NR_to_Cash!C$18,$A1495))/1000","v":{"$error":"#NAME?"}},{"$f":"(_xll.RiskData(NR_to_Cash!D$18,$A1495))/1000","v":{"$error":"#NAME?"}},{"$f":"(_xll.RiskData(NR_to_Cash!E$18,$A1495))/1000","v":{"$error":"#NAME?"}}]
[1489,{"$f":"_xll.RiskData('Risk Summary'!J$48,$A1496)/1000","v":{"$error":"#NAME?"}},{"$f":"_xll.RiskData('Risk Summary'!K$48,$A1496)/1000","v":{"$error":"#NAME?"}},{"$f":"_xll.RiskData('Risk Summary'!L$48,$A1496)/1000","v":{"$error":"#NAME?"}},null,null,{"$f":"(_xll.RiskData(NR_to_Cash!C$18,$A1496))/1000","v":{"$error":"#NAME?"}},{"$f":"(_xll.RiskData(NR_to_Cash!D$18,$A1496))/1000","v":{"$error":"#NAME?"}},{"$f":"(_xll.RiskData(NR_to_Cash!E$18,$A1496))/1000","v":{"$error":"#NAME?"}}]
[1490,{"$f":"_xll.RiskData('Risk Summary'!J$48,$A1497)/1000","v":{"$error":"#NAME?"}},{"$f":"_xll.RiskData('Risk Summary'!K$48,$A1497)/1000","v":{"$error":"#NAME?"}},{"$f":"_xll.RiskData('Risk Summary'!L$48,$A1497)/1000","v":{"$error":"#NAME?"}},null,null,{"$f":"(_xll.RiskData(NR_to_Cash!C$18,$A1497))/1000","v":{"$error":"#NAME?"}},{"$f":"(_xll.RiskData(NR_to_Cash!D$18,$A1497))/1000","v":{"$error":"#NAME?"}},{"$f":"(_xll.RiskData(NR_to_Cash!E$18,$A1497))/1000","v":{"$error":"#NAME?"}}]
[1491,{"$f":"_xll.RiskData('Risk Summary'!J$48,$A1498)/1000","v":{"$error":"#NAME?"}},{"$f":"_xll.RiskData('Risk Summary'!K$48,$A1498)/1000","v":{"$error":"#NAME?"}},{"$f":"_xll.RiskData('Risk Summary'!L$48,$A1498)/1000","v":{"$error":"#NAME?"}},null,null,{"$f":"(_xll.RiskData(NR_to_Cash!C$18,$A1498))/1000","v":{"$error":"#NAME?"}},{"$f":"(_xll.RiskData(NR_to_Cash!D$18,$A1498))/1000","v":{"$error":"#NAME?"}},{"$f":"(_xll.RiskData(NR_to_Cash!E$18,$A1498))/1000","v":{"$error":"#NAME?"}}]
[1492,{"$f":"_xll.RiskData('Risk Summary'!J$48,$A1499)/1000","v":{"$error":"#NAME?"}},{"$f":"_xll.RiskData('Risk Summary'!K$48,$A1499)/1000","v":{"$error":"#NAME?"}},{"$f":"_xll.RiskData('Risk Summary'!L$48,$A1499)/1000","v":{"$error":"#NAME?"}},null,null,{"$f":"(_xll.RiskData(NR_to_Cash!C$18,$A1499))/1000","v":{"$error":"#NAME?"}},{"$f":"(_xll.RiskData(NR_to_Cash!D$18,$A1499))/1000","v":{"$error":"#NAME?"}},{"$f":"(_xll.RiskData(NR_to_Cash!E$18,$A1499))/1000","v":{"$error":"#NAME?"}}]
[1493,{"$f":"_xll.RiskData('Risk Summary'!J$48,$A1500)/1000","v":{"$error":"#NAME?"}},{"$f":"_xll.RiskData('Risk Summary'!K$48,$A1500)/1000","v":{"$error":"#NAME?"}},{"$f":"_xll.RiskData('Risk Summary'!L$48,$A1500)/1000","v":{"$error":"#NAME?"}},null,null,{"$f":"(_xll.RiskData(NR_to_Cash!C$18,$A1500))/1000","v":{"$error":"#NAME?"}},{"$f":"(_xll.RiskData(NR_to_Cash!D$18,$A1500))/1000","v":{"$error":"#NAME?"}},{"$f":"(_xll.RiskData(NR_to_Cash!E$18,$A1500))/1000","v":{"$error":"#NAME?"}}]
[1494,{"$f":"_xll.RiskData('Risk Summary'!J$48,$A1501)/1000","v":{"$error":"#NAME?"}},{"$f":"_xll.RiskData('Risk Summary'!K$48,$A1501)/1000","v":{"$error":"#NAME?"}},{"$f":"_xll.RiskData('Risk Summary'!L$48,$A1501)/1000","v":{"$error":"#NAME?"}},null,null,{"$f":"(_xll.RiskData(NR_to_Cash!C$18,$A1501))/1000","v":{"$error":"#NAME?"}},{"$f":"(_xll.RiskData(NR_to_Cash!D$18,$A1501))/1000","v":{"$error":"#NAME?"}},{"$f":"(_xll.RiskData(NR_to_Cash!E$18,$A1501))/1000","v":{"$error":"#NAME?"}}]
[1495,{"$f":"_xll.RiskData('Risk Summary'!J$48,$A1502)/1000","v":{"$error":"#NAME?"}},{"$f":"_xll.RiskData('Risk Summary'!K$48,$A1502)/1000","v":{"$error":"#NAME?"}},{"$f":"_xll.RiskData('Risk Summary'!L$48,$A1502)/1000","v":{"$error":"#NAME?"}},null,null,{"$f":"(_xll.RiskData(NR_to_Cash!C$18,$A1502))/1000","v":{"$error":"#NAME?"}},{"$f":"(_xll.RiskData(NR_to_Cash!D$18,$A1502))/1000","v":{"$error":"#NAME?"}},{"$f":"(_xll.RiskData(NR_to_Cash!E$18,$A1502))/1000","v":{"$error":"#NAME?"}}]
[1496,{"$f":"_xll.RiskData('Risk Summary'!J$48,$A1503)/1000","v":{"$error":"#NAME?"}},{"$f":"_xll.RiskData('Risk Summary'!K$48,$A1503)/1000","v":{"$error":"#NAME?"}},{"$f":"_xll.RiskData('Risk Summary'!L$48,$A1503)/1000","v":{"$error":"#NAME?"}},null,null,{"$f":"(_xll.RiskData(NR_to_Cash!C$18,$A1503))/1000","v":{"$error":"#NAME?"}},{"$f":"(_xll.RiskData(NR_to_Cash!D$18,$A1503))/1000","v":{"$error":"#NAME?"}},{"$f":"(_xll.RiskData(NR_to_Cash!E$18,$A1503))/1000","v":{"$error":"#NAME?"}}]
[1497,{"$f":"_xll.RiskData('Risk Summary'!J$48,$A1504)/1000","v":{"$error":"#NAME?"}},{"$f":"_xll.RiskData('Risk Summary'!K$48,$A1504)/1000","v":{"$error":"#NAME?"}},{"$f":"_xll.RiskData('Risk Summary'!L$48,$A1504)/1000","v":{"$error":"#NAME?"}},null,null,{"$f":"(_xll.RiskData(NR_to_Cash!C$18,$A1504))/1000","v":{"$error":"#NAME?"}},{"$f":"(_xll.RiskData(NR_to_Cash!D$18,$A1504))/1000","v":{"$error":"#NAME?"}},{"$f":"(_xll.RiskData(NR_to_Cash!E$18,$A1504))/1000","v":{"$error":"#NAME?"}}]
[1498,{"$f":"_xll.RiskData('Risk Summary'!J$48,$A1505)/1000","v":{"$error":"#NAME?"}},{"$f":"_xll.RiskData('Risk Summary'!K$48,$A1505)/1000","v":{"$error":"#NAME?"}},{"$f":"_xll.RiskData('Risk Summary'!L$48,$A1505)/1000","v":{"$error":"#NAME?"}},null,null,{"$f":"(_xll.RiskData(NR_to_Cash!C$18,$A1505))/1000","v":{"$error":"#NAME?"}},{"$f":"(_xll.RiskData(NR_to_Cash!D$18,$A1505))/1000","v":{"$error":"#NAME?"}},{"$f":"(_xll.RiskData(NR_to_Cash!E$18,$A1505))/1000","v":{"$error":"#NAME?"}}]
[1499,{"$f":"_xll.RiskData('Risk Summary'!J$48,$A1506)/1000","v":{"$error":"#NAME?"}},{"$f":"_xll.RiskData('Risk Summary'!K$48,$A1506)/1000","v":{"$error":"#NAME?"}},{"$f":"_xll.RiskData('Risk Summary'!L$48,$A1506)/1000","v":{"$error":"#NAME?"}},null,null,{"$f":"(_xll.RiskData(NR_to_Cash!C$18,$A1506))/1000","v":{"$error":"#NAME?"}},{"$f":"(_xll.RiskData(NR_to_Cash!D$18,$A1506))/1000","v":{"$error":"#NAME?"}},{"$f":"(_xll.RiskData(NR_to_Cash!E$18,$A1506))/1000","v":{"$error":"#NAME?"}}]
[1500,{"$f":"_xll.RiskData('Risk Summary'!J$48,$A1507)/1000","v":{"$error":"#NAME?"}},{"$f":"_xll.RiskData('Risk Summary'!K$48,$A1507)/1000","v":{"$error":"#NAME?"}},{"$f":"_xll.RiskData('Risk Summary'!L$48,$A1507)/1000","v":{"$error":"#NAME?"}},null,null,{"$f":"(_xll.RiskData(NR_to_Cash!C$18,$A1507))/1000","v":{"$error":"#NAME?"}},{"$f":"(_xll.RiskData(NR_to_Cash!D$18,$A1507))/1000","v":{"$error":"#NAME?"}},{"$f":"(_xll.RiskData(NR_to_Cash!E$18,$A1507))/1000","v":{"$error":"#NAME?"}}]
[1501,{"$f":"_xll.RiskData('Risk Summary'!J$48,$A1508)/1000","v":{"$error":"#NAME?"}},{"$f":"_xll.RiskData('Risk Summary'!K$48,$A1508)/1000","v":{"$error":"#NAME?"}},{"$f":"_xll.RiskData('Risk Summary'!L$48,$A1508)/1000","v":{"$error":"#NAME?"}},null,null,{"$f":"(_xll.RiskData(NR_to_Cash!C$18,$A1508))/1000","v":{"$error":"#NAME?"}},{"$f":"(_xll.RiskData(NR_to_Cash!D$18,$A1508))/1000","v":{"$error":"#NAME?"}},{"$f":"(_xll.RiskData(NR_to_Cash!E$18,$A1508))/1000","v":{"$error":"#NAME?"}}]
[1502,{"$f":"_xll.RiskData('Risk Summary'!J$48,$A1509)/1000","v":{"$error":"#NAME?"}},{"$f":"_xll.RiskData('Risk Summary'!K$48,$A1509)/1000","v":{"$error":"#NAME?"}},{"$f":"_xll.RiskData('Risk Summary'!L$48,$A1509)/1000","v":{"$error":"#NAME?"}},null,null,{"$f":"(_xll.RiskData(NR_to_Cash!C$18,$A1509))/1000","v":{"$error":"#NAME?"}},{"$f":"(_xll.RiskData(NR_to_Cash!D$18,$A1509))/1000","v":{"$error":"#NAME?"}},{"$f":"(_xll.RiskData(NR_to_Cash!E$18,$A1509))/1000","v":{"$error":"#NAME?"}}]
[1503,{"$f":"_xll.RiskData('Risk Summary'!J$48,$A1510)/1000","v":{"$error":"#NAME?"}},{"$f":"_xll.RiskData('Risk Summary'!K$48,$A1510)/1000","v":{"$error":"#NAME?"}},{"$f":"_xll.RiskData('Risk Summary'!L$48,$A1510)/1000","v":{"$error":"#NAME?"}},null,null,{"$f":"(_xll.RiskData(NR_to_Cash!C$18,$A1510))/1000","v":{"$error":"#NAME?"}},{"$f":"(_xll.RiskData(NR_to_Cash!D$18,$A1510))/1000","v":{"$error":"#NAME?"}},{"$f":"(_xll.RiskData(NR_to_Cash!E$18,$A1510))/1000","v":{"$error":"#NAME?"}}]
[1504,{"$f":"_xll.RiskData('Risk Summary'!J$48,$A1511)/1000","v":{"$error":"#NAME?"}},{"$f":"_xll.RiskData('Risk Summary'!K$48,$A1511)/1000","v":{"$error":"#NAME?"}},{"$f":"_xll.RiskData('Risk Summary'!L$48,$A1511)/1000","v":{"$error":"#NAME?"}},null,null,{"$f":"(_xll.RiskData(NR_to_Cash!C$18,$A1511))/1000","v":{"$error":"#NAME?"}},{"$f":"(_xll.RiskData(NR_to_Cash!D$18,$A1511))/1000","v":{"$error":"#NAME?"}},{"$f":"(_xll.RiskData(NR_to_Cash!E$18,$A1511))/1000","v":{"$error":"#NAME?"}}]
[1505,{"$f":"_xll.RiskData('Risk Summary'!J$48,$A1512)/1000","v":{"$error":"#NAME?"}},{"$f":"_xll.RiskData('Risk Summary'!K$48,$A1512)/1000","v":{"$error":"#NAME?"}},{"$f":"_xll.RiskData('Risk Summary'!L$48,$A1512)/1000","v":{"$error":"#NAME?"}},null,null,{"$f":"(_xll.RiskData(NR_to_Cash!C$18,$A1512))/1000","v":{"$error":"#NAME?"}},{"$f":"(_xll.RiskData(NR_to_Cash!D$18,$A1512))/1000","v":{"$error":"#NAME?"}},{"$f":"(_xll.RiskData(NR_to_Cash!E$18,$A1512))/1000","v":{"$error":"#NAME?"}}]
[1506,{"$f":"_xll.RiskData('Risk Summary'!J$48,$A1513)/1000","v":{"$error":"#NAME?"}},{"$f":"_xll.RiskData('Risk Summary'!K$48,$A1513)/1000","v":{"$error":"#NAME?"}},{"$f":"_xll.RiskData('Risk Summary'!L$48,$A1513)/1000","v":{"$error":"#NAME?"}},null,null,{"$f":"(_xll.RiskData(NR_to_Cash!C$18,$A1513))/1000","v":{"$error":"#NAME?"}},{"$f":"(_xll.RiskData(NR_to_Cash!D$18,$A1513))/1000","v":{"$error":"#NAME?"}},{"$f":"(_xll.RiskData(NR_to_Cash!E$18,$A1513))/1000","v":{"$error":"#NAME?"}}]
[1507,{"$f":"_xll.RiskData('Risk Summary'!J$48,$A1514)/1000","v":{"$error":"#NAME?"}},{"$f":"_xll.RiskData('Risk Summary'!K$48,$A1514)/1000","v":{"$error":"#NAME?"}},{"$f":"_xll.RiskData('Risk Summary'!L$48,$A1514)/1000","v":{"$error":"#NAME?"}},null,null,{"$f":"(_xll.RiskData(NR_to_Cash!C$18,$A1514))/1000","v":{"$error":"#NAME?"}},{"$f":"(_xll.RiskData(NR_to_Cash!D$18,$A1514))/1000","v":{"$error":"#NAME?"}},{"$f":"(_xll.RiskData(NR_to_Cash!E$18,$A1514))/1000","v":{"$error":"#NAME?"}}]
[1508,{"$f":"_xll.RiskData('Risk Summary'!J$48,$A1515)/1000","v":{"$error":"#NAME?"}},{"$f":"_xll.RiskData('Risk Summary'!K$48,$A1515)/1000","v":{"$error":"#NAME?"}},{"$f":"_xll.RiskData('Risk Summary'!L$48,$A1515)/1000","v":{"$error":"#NAME?"}},null,null,{"$f":"(_xll.RiskData(NR_to_Cash!C$18,$A1515))/1000","v":{"$error":"#NAME?"}},{"$f":"(_xll.RiskData(NR_to_Cash!D$18,$A1515))/1000","v":{"$error":"#NAME?"}},{"$f":"(_xll.RiskData(NR_to_Cash!E$18,$A1515))/1000","v":{"$error":"#NAME?"}}]
[1509,{"$f":"_xll.RiskData('Risk Summary'!J$48,$A1516)/1000","v":{"$error":"#NAME?"}},{"$f":"_xll.RiskData('Risk Summary'!K$48,$A1516)/1000","v":{"$error":"#NAME?"}},{"$f":"_xll.RiskData('Risk Summary'!L$48,$A1516)/1000","v":{"$error":"#NAME?"}},null,null,{"$f":"(_xll.RiskData(NR_to_Cash!C$18,$A1516))/1000","v":{"$error":"#NAME?"}},{"$f":"(_xll.RiskData(NR_to_Cash!D$18,$A1516))/1000","v":{"$error":"#NAME?"}},{"$f":"(_xll.RiskData(NR_to_Cash!E$18,$A1516))/1000","v":{"$error":"#NAME?"}}]
[1510,{"$f":"_xll.RiskData('Risk Summary'!J$48,$A1517)/1000","v":{"$error":"#NAME?"}},{"$f":"_xll.RiskData('Risk Summary'!K$48,$A1517)/1000","v":{"$error":"#NAME?"}},{"$f":"_xll.RiskData('Risk Summary'!L$48,$A1517)/1000","v":{"$error":"#NAME?"}},null,null,{"$f":"(_xll.RiskData(NR_to_Cash!C$18,$A1517))/1000","v":{"$error":"#NAME?"}},{"$f":"(_xll.RiskData(NR_to_Cash!D$18,$A1517))/1000","v":{"$error":"#NAME?"}},{"$f":"(_xll.RiskData(NR_to_Cash!E$18,$A1517))/1000","v":{"$error":"#NAME?"}}]
[1511,{"$f":"_xll.RiskData('Risk Summary'!J$48,$A1518)/1000","v":{"$error":"#NAME?"}},{"$f":"_xll.RiskData('Risk Summary'!K$48,$A1518)/1000","v":{"$error":"#NAME?"}},{"$f":"_xll.RiskData('Risk Summary'!L$48,$A1518)/1000","v":{"$error":"#NAME?"}},null,null,{"$f":"(_xll.RiskData(NR_to_Cash!C$18,$A1518))/1000","v":{"$error":"#NAME?"}},{"$f":"(_xll.RiskData(NR_to_Cash!D$18,$A1518))/1000","v":{"$error":"#NAME?"}},{"$f":"(_xll.RiskData(NR_to_Cash!E$18,$A1518))/1000","v":{"$error":"#NAME?"}}]
[1512,{"$f":"_xll.RiskData('Risk Summary'!J$48,$A1519)/1000","v":{"$error":"#NAME?"}},{"$f":"_xll.RiskData('Risk Summary'!K$48,$A1519)/1000","v":{"$error":"#NAME?"}},{"$f":"_xll.RiskData('Risk Summary'!L$48,$A1519)/1000","v":{"$error":"#NAME?"}},null,null,{"$f":"(_xll.RiskData(NR_to_Cash!C$18,$A1519))/1000","v":{"$error":"#NAME?"}},{"$f":"(_xll.RiskData(NR_to_Cash!D$18,$A1519))/1000","v":{"$error":"#NAME?"}},{"$f":"(_xll.RiskData(NR_to_Cash!E$18,$A1519))/1000","v":{"$error":"#NAME?"}}]
[1513,{"$f":"_xll.RiskData('Risk Summary'!J$48,$A1520)/1000","v":{"$error":"#NAME?"}},{"$f":"_xll.RiskData('Risk Summary'!K$48,$A1520)/1000","v":{"$error":"#NAME?"}},{"$f":"_xll.RiskData('Risk Summary'!L$48,$A1520)/1000","v":{"$error":"#NAME?"}},null,null,{"$f":"(_xll.RiskData(NR_to_Cash!C$18,$A1520))/1000","v":{"$error":"#NAME?"}},{"$f":"(_xll.RiskData(NR_to_Cash!D$18,$A1520))/1000","v":{"$error":"#NAME?"}},{"$f":"(_xll.RiskData(NR_to_Cash!E$18,$A1520))/1000","v":{"$error":"#NAME?"}}]
[1514,{"$f":"_xll.RiskData('Risk Summary'!J$48,$A1521)/1000","v":{"$error":"#NAME?"}},{"$f":"_xll.RiskData('Risk Summary'!K$48,$A1521)/1000","v":{"$error":"#NAME?"}},{"$f":"_xll.RiskData('Risk Summary'!L$48,$A1521)/1000","v":{"$error":"#NAME?"}},null,null,{"$f":"(_xll.RiskData(NR_to_Cash!C$18,$A1521))/1000","v":{"$error":"#NAME?"}},{"$f":"(_xll.RiskData(NR_to_Cash!D$18,$A1521))/1000","v":{"$error":"#NAME?"}},{"$f":"(_xll.RiskData(NR_to_Cash!E$18,$A1521))/1000","v":{"$error":"#NAME?"}}]
[1515,{"$f":"_xll.RiskData('Risk Summary'!J$48,$A1522)/1000","v":{"$error":"#NAME?"}},{"$f":"_xll.RiskData('Risk Summary'!K$48,$A1522)/1000","v":{"$error":"#NAME?"}},{"$f":"_xll.RiskData('Risk Summary'!L$48,$A1522)/1000","v":{"$error":"#NAME?"}},null,null,{"$f":"(_xll.RiskData(NR_to_Cash!C$18,$A1522))/1000","v":{"$error":"#NAME?"}},{"$f":"(_xll.RiskData(NR_to_Cash!D$18,$A1522))/1000","v":{"$error":"#NAME?"}},{"$f":"(_xll.RiskData(NR_to_Cash!E$18,$A1522))/1000","v":{"$error":"#NAME?"}}]
[1516,{"$f":"_xll.RiskData('Risk Summary'!J$48,$A1523)/1000","v":{"$error":"#NAME?"}},{"$f":"_xll.RiskData('Risk Summary'!K$48,$A1523)/1000","v":{"$error":"#NAME?"}},{"$f":"_xll.RiskData('Risk Summary'!L$48,$A1523)/1000","v":{"$error":"#NAME?"}},null,null,{"$f":"(_xll.RiskData(NR_to_Cash!C$18,$A1523))/1000","v":{"$error":"#NAME?"}},{"$f":"(_xll.RiskData(NR_to_Cash!D$18,$A1523))/1000","v":{"$error":"#NAME?"}},{"$f":"(_xll.RiskData(NR_to_Cash!E$18,$A1523))/1000","v":{"$error":"#NAME?"}}]
[1517,{"$f":"_xll.RiskData('Risk Summary'!J$48,$A1524)/1000","v":{"$error":"#NAME?"}},{"$f":"_xll.RiskData('Risk Summary'!K$48,$A1524)/1000","v":{"$error":"#NAME?"}},{"$f":"_xll.RiskData('Risk Summary'!L$48,$A1524)/1000","v":{"$error":"#NAME?"}},null,null,{"$f":"(_xll.RiskData(NR_to_Cash!C$18,$A1524))/1000","v":{"$error":"#NAME?"}},{"$f":"(_xll.RiskData(NR_to_Cash!D$18,$A1524))/1000","v":{"$error":"#NAME?"}},{"$f":"(_xll.RiskData(NR_to_Cash!E$18,$A1524))/1000","v":{"$error":"#NAME?"}}]
[1518,{"$f":"_xll.RiskData('Risk Summary'!J$48,$A1525)/1000","v":{"$error":"#NAME?"}},{"$f":"_xll.RiskData('Risk Summary'!K$48,$A1525)/1000","v":{"$error":"#NAME?"}},{"$f":"_xll.RiskData('Risk Summary'!L$48,$A1525)/1000","v":{"$error":"#NAME?"}},null,null,{"$f":"(_xll.RiskData(NR_to_Cash!C$18,$A1525))/1000","v":{"$error":"#NAME?"}},{"$f":"(_xll.RiskData(NR_to_Cash!D$18,$A1525))/1000","v":{"$error":"#NAME?"}},{"$f":"(_xll.RiskData(NR_to_Cash!E$18,$A1525))/1000","v":{"$error":"#NAME?"}}]
[1519,{"$f":"_xll.RiskData('Risk Summary'!J$48,$A1526)/1000","v":{"$error":"#NAME?"}},{"$f":"_xll.RiskData('Risk Summary'!K$48,$A1526)/1000","v":{"$error":"#NAME?"}},{"$f":"_xll.RiskData('Risk Summary'!L$48,$A1526)/1000","v":{"$error":"#NAME?"}},null,null,{"$f":"(_xll.RiskData(NR_to_Cash!C$18,$A1526))/1000","v":{"$error":"#NAME?"}},{"$f":"(_xll.RiskData(NR_to_Cash!D$18,$A1526))/1000","v":{"$error":"#NAME?"}},{"$f":"(_xll.RiskData(NR_to_Cash!E$18,$A1526))/1000","v":{"$error":"#NAME?"}}]
[1520,{"$f":"_xll.RiskData('Risk Summary'!J$48,$A1527)/1000","v":{"$error":"#NAME?"}},{"$f":"_xll.RiskData('Risk Summary'!K$48,$A1527)/1000","v":{"$error":"#NAME?"}},{"$f":"_xll.RiskData('Risk Summary'!L$48,$A1527)/1000","v":{"$error":"#NAME?"}},null,null,{"$f":"(_xll.RiskData(NR_to_Cash!C$18,$A1527))/1000","v":{"$error":"#NAME?"}},{"$f":"(_xll.RiskData(NR_to_Cash!D$18,$A1527))/1000","v":{"$error":"#NAME?"}},{"$f":"(_xll.RiskData(NR_to_Cash!E$18,$A1527))/1000","v":{"$error":"#NAME?"}}]
[1521,{"$f":"_xll.RiskData('Risk Summary'!J$48,$A1528)/1000","v":{"$error":"#NAME?"}},{"$f":"_xll.RiskData('Risk Summary'!K$48,$A1528)/1000","v":{"$error":"#NAME?"}},{"$f":"_xll.RiskData('Risk Summary'!L$48,$A1528)/1000","v":{"$error":"#NAME?"}},null,null,{"$f":"(_xll.RiskData(NR_to_Cash!C$18,$A1528))/1000","v":{"$error":"#NAME?"}},{"$f":"(_xll.RiskData(NR_to_Cash!D$18,$A1528))/1000","v":{"$error":"#NAME?"}},{"$f":"(_xll.RiskData(NR_to_Cash!E$18,$A1528))/1000","v":{"$error":"#NAME?"}}]
[1522,{"$f":"_xll.RiskData('Risk Summary'!J$48,$A1529)/1000","v":{"$error":"#NAME?"}},{"$f":"_xll.RiskData('Risk Summary'!K$48,$A1529)/1000","v":{"$error":"#NAME?"}},{"$f":"_xll.RiskData('Risk Summary'!L$48,$A1529)/1000","v":{"$error":"#NAME?"}},null,null,{"$f":"(_xll.RiskData(NR_to_Cash!C$18,$A1529))/1000","v":{"$error":"#NAME?"}},{"$f":"(_xll.RiskData(NR_to_Cash!D$18,$A1529))/1000","v":{"$error":"#NAME?"}},{"$f":"(_xll.RiskData(NR_to_Cash!E$18,$A1529))/1000","v":{"$error":"#NAME?"}}]
[1523,{"$f":"_xll.RiskData('Risk Summary'!J$48,$A1530)/1000","v":{"$error":"#NAME?"}},{"$f":"_xll.RiskData('Risk Summary'!K$48,$A1530)/1000","v":{"$error":"#NAME?"}},{"$f":"_xll.RiskData('Risk Summary'!L$48,$A1530)/1000","v":{"$error":"#NAME?"}},null,null,{"$f":"(_xll.RiskData(NR_to_Cash!C$18,$A1530))/1000","v":{"$error":"#NAME?"}},{"$f":"(_xll.RiskData(NR_to_Cash!D$18,$A1530))/1000","v":{"$error":"#NAME?"}},{"$f":"(_xll.RiskData(NR_to_Cash!E$18,$A1530))/1000","v":{"$error":"#NAME?"}}]
[1524,{"$f":"_xll.RiskData('Risk Summary'!J$48,$A1531)/1000","v":{"$error":"#NAME?"}},{"$f":"_xll.RiskData('Risk Summary'!K$48,$A1531)/1000","v":{"$error":"#NAME?"}},{"$f":"_xll.RiskData('Risk Summary'!L$48,$A1531)/1000","v":{"$error":"#NAME?"}},null,null,{"$f":"(_xll.RiskData(NR_to_Cash!C$18,$A1531))/1000","v":{"$error":"#NAME?"}},{"$f":"(_xll.RiskData(NR_to_Cash!D$18,$A1531))/1000","v":{"$error":"#NAME?"}},{"$f":"(_xll.RiskData(NR_to_Cash!E$18,$A1531))/1000","v":{"$error":"#NAME?"}}]
[1525,{"$f":"_xll.RiskData('Risk Summary'!J$48,$A1532)/1000","v":{"$error":"#NAME?"}},{"$f":"_xll.RiskData('Risk Summary'!K$48,$A1532)/1000","v":{"$error":"#NAME?"}},{"$f":"_xll.RiskData('Risk Summary'!L$48,$A1532)/1000","v":{"$error":"#NAME?"}},null,null,{"$f":"(_xll.RiskData(NR_to_Cash!C$18,$A1532))/1000","v":{"$error":"#NAME?"}},{"$f":"(_xll.RiskData(NR_to_Cash!D$18,$A1532))/1000","v":{"$error":"#NAME?"}},{"$f":"(_xll.RiskData(NR_to_Cash!E$18,$A1532))/1000","v":{"$error":"#NAME?"}}]
[1526,{"$f":"_xll.RiskData('Risk Summary'!J$48,$A1533)/1000","v":{"$error":"#NAME?"}},{"$f":"_xll.RiskData('Risk Summary'!K$48,$A1533)/1000","v":{"$error":"#NAME?"}},{"$f":"_xll.RiskData('Risk Summary'!L$48,$A1533)/1000","v":{"$error":"#NAME?"}},null,null,{"$f":"(_xll.RiskData(NR_to_Cash!C$18,$A1533))/1000","v":{"$error":"#NAME?"}},{"$f":"(_xll.RiskData(NR_to_Cash!D$18,$A1533))/1000","v":{"$error":"#NAME?"}},{"$f":"(_xll.RiskData(NR_to_Cash!E$18,$A1533))/1000","v":{"$error":"#NAME?"}}]
[1527,{"$f":"_xll.RiskData('Risk Summary'!J$48,$A1534)/1000","v":{"$error":"#NAME?"}},{"$f":"_xll.RiskData('Risk Summary'!K$48,$A1534)/1000","v":{"$error":"#NAME?"}},{"$f":"_xll.RiskData('Risk Summary'!L$48,$A1534)/1000","v":{"$error":"#NAME?"}},null,null,{"$f":"(_xll.RiskData(NR_to_Cash!C$18,$A1534))/1000","v":{"$error":"#NAME?"}},{"$f":"(_xll.RiskData(NR_to_Cash!D$18,$A1534))/1000","v":{"$error":"#NAME?"}},{"$f":"(_xll.RiskData(NR_to_Cash!E$18,$A1534))/1000","v":{"$error":"#NAME?"}}]
[1528,{"$f":"_xll.RiskData('Risk Summary'!J$48,$A1535)/1000","v":{"$error":"#NAME?"}},{"$f":"_xll.RiskData('Risk Summary'!K$48,$A1535)/1000","v":{"$error":"#NAME?"}},{"$f":"_xll.RiskData('Risk Summary'!L$48,$A1535)/1000","v":{"$error":"#NAME?"}},null,null,{"$f":"(_xll.RiskData(NR_to_Cash!C$18,$A1535))/1000","v":{"$error":"#NAME?"}},{"$f":"(_xll.RiskData(NR_to_Cash!D$18,$A1535))/1000","v":{"$error":"#NAME?"}},{"$f":"(_xll.RiskData(NR_to_Cash!E$18,$A1535))/1000","v":{"$error":"#NAME?"}}]
[1529,{"$f":"_xll.RiskData('Risk Summary'!J$48,$A1536)/1000","v":{"$error":"#NAME?"}},{"$f":"_xll.RiskData('Risk Summary'!K$48,$A1536)/1000","v":{"$error":"#NAME?"}},{"$f":"_xll.RiskData('Risk Summary'!L$48,$A1536)/1000","v":{"$error":"#NAME?"}},null,null,{"$f":"(_xll.RiskData(NR_to_Cash!C$18,$A1536))/1000","v":{"$error":"#NAME?"}},{"$f":"(_xll.RiskData(NR_to_Cash!D$18,$A1536))/1000","v":{"$error":"#NAME?"}},{"$f":"(_xll.RiskData(NR_to_Cash!E$18,$A1536))/1000","v":{"$error":"#NAME?"}}]
[1530,{"$f":"_xll.RiskData('Risk Summary'!J$48,$A1537)/1000","v":{"$error":"#NAME?"}},{"$f":"_xll.RiskData('Risk Summary'!K$48,$A1537)/1000","v":{"$error":"#NAME?"}},{"$f":"_xll.RiskData('Risk Summary'!L$48,$A1537)/1000","v":{"$error":"#NAME?"}},null,null,{"$f":"(_xll.RiskData(NR_to_Cash!C$18,$A1537))/1000","v":{"$error":"#NAME?"}},{"$f":"(_xll.RiskData(NR_to_Cash!D$18,$A1537))/1000","v":{"$error":"#NAME?"}},{"$f":"(_xll.RiskData(NR_to_Cash!E$18,$A1537))/1000","v":{"$error":"#NAME?"}}]
[1531,{"$f":"_xll.RiskData('Risk Summary'!J$48,$A1538)/1000","v":{"$error":"#NAME?"}},{"$f":"_xll.RiskData('Risk Summary'!K$48,$A1538)/1000","v":{"$error":"#NAME?"}},{"$f":"_xll.RiskData('Risk Summary'!L$48,$A1538)/1000","v":{"$error":"#NAME?"}},null,null,{"$f":"(_xll.RiskData(NR_to_Cash!C$18,$A1538))/1000","v":{"$error":"#NAME?"}},{"$f":"(_xll.RiskData(NR_to_Cash!D$18,$A1538))/1000","v":{"$error":"#NAME?"}},{"$f":"(_xll.RiskData(NR_to_Cash!E$18,$A1538))/1000","v":{"$error":"#NAME?"}}]
[1532,{"$f":"_xll.RiskData('Risk Summary'!J$48,$A1539)/1000","v":{"$error":"#NAME?"}},{"$f":"_xll.RiskData('Risk Summary'!K$48,$A1539)/1000","v":{"$error":"#NAME?"}},{"$f":"_xll.RiskData('Risk Summary'!L$48,$A1539)/1000","v":{"$error":"#NAME?"}},null,null,{"$f":"(_xll.RiskData(NR_to_Cash!C$18,$A1539))/1000","v":{"$error":"#NAME?"}},{"$f":"(_xll.RiskData(NR_to_Cash!D$18,$A1539))/1000","v":{"$error":"#NAME?"}},{"$f":"(_xll.RiskData(NR_to_Cash!E$18,$A1539))/1000","v":{"$error":"#NAME?"}}]
[1533,{"$f":"_xll.RiskData('Risk Summary'!J$48,$A1540)/1000","v":{"$error":"#NAME?"}},{"$f":"_xll.RiskData('Risk Summary'!K$48,$A1540)/1000","v":{"$error":"#NAME?"}},{"$f":"_xll.RiskData('Risk Summary'!L$48,$A1540)/1000","v":{"$error":"#NAME?"}},null,null,{"$f":"(_xll.RiskData(NR_to_Cash!C$18,$A1540))/1000","v":{"$error":"#NAME?"}},{"$f":"(_xll.RiskData(NR_to_Cash!D$18,$A1540))/1000","v":{"$error":"#NAME?"}},{"$f":"(_xll.RiskData(NR_to_Cash!E$18,$A1540))/1000","v":{"$error":"#NAME?"}}]
[1534,{"$f":"_xll.RiskData('Risk Summary'!J$48,$A1541)/1000","v":{"$error":"#NAME?"}},{"$f":"_xll.RiskData('Risk Summary'!K$48,$A1541)/1000","v":{"$error":"#NAME?"}},{"$f":"_xll.RiskData('Risk Summary'!L$48,$A1541)/1000","v":{"$error":"#NAME?"}},null,null,{"$f":"(_xll.RiskData(NR_to_Cash!C$18,$A1541))/1000","v":{"$error":"#NAME?"}},{"$f":"(_xll.RiskData(NR_to_Cash!D$18,$A1541))/1000","v":{"$error":"#NAME?"}},{"$f":"(_xll.RiskData(NR_to_Cash!E$18,$A1541))/1000","v":{"$error":"#NAME?"}}]
[1535,{"$f":"_xll.RiskData('Risk Summary'!J$48,$A1542)/1000","v":{"$error":"#NAME?"}},{"$f":"_xll.RiskData('Risk Summary'!K$48,$A1542)/1000","v":{"$error":"#NAME?"}},{"$f":"_xll.RiskData('Risk Summary'!L$48,$A1542)/1000","v":{"$error":"#NAME?"}},null,null,{"$f":"(_xll.RiskData(NR_to_Cash!C$18,$A1542))/1000","v":{"$error":"#NAME?"}},{"$f":"(_xll.RiskData(NR_to_Cash!D$18,$A1542))/1000","v":{"$error":"#NAME?"}},{"$f":"(_xll.RiskData(NR_to_Cash!E$18,$A1542))/1000","v":{"$error":"#NAME?"}}]
[1536,{"$f":"_xll.RiskData('Risk Summary'!J$48,$A1543)/1000","v":{"$error":"#NAME?"}},{"$f":"_xll.RiskData('Risk Summary'!K$48,$A1543)/1000","v":{"$error":"#NAME?"}},{"$f":"_xll.RiskData('Risk Summary'!L$48,$A1543)/1000","v":{"$error":"#NAME?"}},null,null,{"$f":"(_xll.RiskData(NR_to_Cash!C$18,$A1543))/1000","v":{"$error":"#NAME?"}},{"$f":"(_xll.RiskData(NR_to_Cash!D$18,$A1543))/1000","v":{"$error":"#NAME?"}},{"$f":"(_xll.RiskData(NR_to_Cash!E$18,$A1543))/1000","v":{"$error":"#NAME?"}}]
[1537,{"$f":"_xll.RiskData('Risk Summary'!J$48,$A1544)/1000","v":{"$error":"#NAME?"}},{"$f":"_xll.RiskData('Risk Summary'!K$48,$A1544)/1000","v":{"$error":"#NAME?"}},{"$f":"_xll.RiskData('Risk Summary'!L$48,$A1544)/1000","v":{"$error":"#NAME?"}},null,null,{"$f":"(_xll.RiskData(NR_to_Cash!C$18,$A1544))/1000","v":{"$error":"#NAME?"}},{"$f":"(_xll.RiskData(NR_to_Cash!D$18,$A1544))/1000","v":{"$error":"#NAME?"}},{"$f":"(_xll.RiskData(NR_to_Cash!E$18,$A1544))/1000","v":{"$error":"#NAME?"}}]
[1538,{"$f":"_xll.RiskData('Risk Summary'!J$48,$A1545)/1000","v":{"$error":"#NAME?"}},{"$f":"_xll.RiskData('Risk Summary'!K$48,$A1545)/1000","v":{"$error":"#NAME?"}},{"$f":"_xll.RiskData('Risk Summary'!L$48,$A1545)/1000","v":{"$error":"#NAME?"}},null,null,{"$f":"(_xll.RiskData(NR_to_Cash!C$18,$A1545))/1000","v":{"$error":"#NAME?"}},{"$f":"(_xll.RiskData(NR_to_Cash!D$18,$A1545))/1000","v":{"$error":"#NAME?"}},{"$f":"(_xll.RiskData(NR_to_Cash!E$18,$A1545))/1000","v":{"$error":"#NAME?"}}]
[1539,{"$f":"_xll.RiskData('Risk Summary'!J$48,$A1546)/1000","v":{"$error":"#NAME?"}},{"$f":"_xll.RiskData('Risk Summary'!K$48,$A1546)/1000","v":{"$error":"#NAME?"}},{"$f":"_xll.RiskData('Risk Summary'!L$48,$A1546)/1000","v":{"$error":"#NAME?"}},null,null,{"$f":"(_xll.RiskData(NR_to_Cash!C$18,$A1546))/1000","v":{"$error":"#NAME?"}},{"$f":"(_xll.RiskData(NR_to_Cash!D$18,$A1546))/1000","v":{"$error":"#NAME?"}},{"$f":"(_xll.RiskData(NR_to_Cash!E$18,$A1546))/1000","v":{"$error":"#NAME?"}}]
[1540,{"$f":"_xll.RiskData('Risk Summary'!J$48,$A1547)/1000","v":{"$error":"#NAME?"}},{"$f":"_xll.RiskData('Risk Summary'!K$48,$A1547)/1000","v":{"$error":"#NAME?"}},{"$f":"_xll.RiskData('Risk Summary'!L$48,$A1547)/1000","v":{"$error":"#NAME?"}},null,null,{"$f":"(_xll.RiskData(NR_to_Cash!C$18,$A1547))/1000","v":{"$error":"#NAME?"}},{"$f":"(_xll.RiskData(NR_to_Cash!D$18,$A1547))/1000","v":{"$error":"#NAME?"}},{"$f":"(_xll.RiskData(NR_to_Cash!E$18,$A1547))/1000","v":{"$error":"#NAME?"}}]
[1541,{"$f":"_xll.RiskData('Risk Summary'!J$48,$A1548)/1000","v":{"$error":"#NAME?"}},{"$f":"_xll.RiskData('Risk Summary'!K$48,$A1548)/1000","v":{"$error":"#NAME?"}},{"$f":"_xll.RiskData('Risk Summary'!L$48,$A1548)/1000","v":{"$error":"#NAME?"}},null,null,{"$f":"(_xll.RiskData(NR_to_Cash!C$18,$A1548))/1000","v":{"$error":"#NAME?"}},{"$f":"(_xll.RiskData(NR_to_Cash!D$18,$A1548))/1000","v":{"$error":"#NAME?"}},{"$f":"(_xll.RiskData(NR_to_Cash!E$18,$A1548))/1000","v":{"$error":"#NAME?"}}]
[1542,{"$f":"_xll.RiskData('Risk Summary'!J$48,$A1549)/1000","v":{"$error":"#NAME?"}},{"$f":"_xll.RiskData('Risk Summary'!K$48,$A1549)/1000","v":{"$error":"#NAME?"}},{"$f":"_xll.RiskData('Risk Summary'!L$48,$A1549)/1000","v":{"$error":"#NAME?"}},null,null,{"$f":"(_xll.RiskData(NR_to_Cash!C$18,$A1549))/1000","v":{"$error":"#NAME?"}},{"$f":"(_xll.RiskData(NR_to_Cash!D$18,$A1549))/1000","v":{"$error":"#NAME?"}},{"$f":"(_xll.RiskData(NR_to_Cash!E$18,$A1549))/1000","v":{"$error":"#NAME?"}}]
[1543,{"$f":"_xll.RiskData('Risk Summary'!J$48,$A1550)/1000","v":{"$error":"#NAME?"}},{"$f":"_xll.RiskData('Risk Summary'!K$48,$A1550)/1000","v":{"$error":"#NAME?"}},{"$f":"_xll.RiskData('Risk Summary'!L$48,$A1550)/1000","v":{"$error":"#NAME?"}},null,null,{"$f":"(_xll.RiskData(NR_to_Cash!C$18,$A1550))/1000","v":{"$error":"#NAME?"}},{"$f":"(_xll.RiskData(NR_to_Cash!D$18,$A1550))/1000","v":{"$error":"#NAME?"}},{"$f":"(_xll.RiskData(NR_to_Cash!E$18,$A1550))/1000","v":{"$error":"#NAME?"}}]
[1544,{"$f":"_xll.RiskData('Risk Summary'!J$48,$A1551)/1000","v":{"$error":"#NAME?"}},{"$f":"_xll.RiskData('Risk Summary'!K$48,$A1551)/1000","v":{"$error":"#NAME?"}},{"$f":"_xll.RiskData('Risk Summary'!L$48,$A1551)/1000","v":{"$error":"#NAME?"}},null,null,{"$f":"(_xll.RiskData(NR_to_Cash!C$18,$A1551))/1000","v":{"$error":"#NAME?"}},{"$f":"(_xll.RiskData(NR_to_Cash!D$18,$A1551))/1000","v":{"$error":"#NAME?"}},{"$f":"(_xll.RiskData(NR_to_Cash!E$18,$A1551))/1000","v":{"$error":"#NAME?"}}]
[1545,{"$f":"_xll.RiskData('Risk Summary'!J$48,$A1552)/1000","v":{"$error":"#NAME?"}},{"$f":"_xll.RiskData('Risk Summary'!K$48,$A1552)/1000","v":{"$error":"#NAME?"}},{"$f":"_xll.RiskData('Risk Summary'!L$48,$A1552)/1000","v":{"$error":"#NAME?"}},null,null,{"$f":"(_xll.RiskData(NR_to_Cash!C$18,$A1552))/1000","v":{"$error":"#NAME?"}},{"$f":"(_xll.RiskData(NR_to_Cash!D$18,$A1552))/1000","v":{"$error":"#NAME?"}},{"$f":"(_xll.RiskData(NR_to_Cash!E$18,$A1552))/1000","v":{"$error":"#NAME?"}}]
[1546,{"$f":"_xll.RiskData('Risk Summary'!J$48,$A1553)/1000","v":{"$error":"#NAME?"}},{"$f":"_xll.RiskData('Risk Summary'!K$48,$A1553)/1000","v":{"$error":"#NAME?"}},{"$f":"_xll.RiskData('Risk Summary'!L$48,$A1553)/1000","v":{"$error":"#NAME?"}},null,null,{"$f":"(_xll.RiskData(NR_to_Cash!C$18,$A1553))/1000","v":{"$error":"#NAME?"}},{"$f":"(_xll.RiskData(NR_to_Cash!D$18,$A1553))/1000","v":{"$error":"#NAME?"}},{"$f":"(_xll.RiskData(NR_to_Cash!E$18,$A1553))/1000","v":{"$error":"#NAME?"}}]
[1547,{"$f":"_xll.RiskData('Risk Summary'!J$48,$A1554)/1000","v":{"$error":"#NAME?"}},{"$f":"_xll.RiskData('Risk Summary'!K$48,$A1554)/1000","v":{"$error":"#NAME?"}},{"$f":"_xll.RiskData('Risk Summary'!L$48,$A1554)/1000","v":{"$error":"#NAME?"}},null,null,{"$f":"(_xll.RiskData(NR_to_Cash!C$18,$A1554))/1000","v":{"$error":"#NAME?"}},{"$f":"(_xll.RiskData(NR_to_Cash!D$18,$A1554))/1000","v":{"$error":"#NAME?"}},{"$f":"(_xll.RiskData(NR_to_Cash!E$18,$A1554))/1000","v":{"$error":"#NAME?"}}]
[1548,{"$f":"_xll.RiskData('Risk Summary'!J$48,$A1555)/1000","v":{"$error":"#NAME?"}},{"$f":"_xll.RiskData('Risk Summary'!K$48,$A1555)/1000","v":{"$error":"#NAME?"}},{"$f":"_xll.RiskData('Risk Summary'!L$48,$A1555)/1000","v":{"$error":"#NAME?"}},null,null,{"$f":"(_xll.RiskData(NR_to_Cash!C$18,$A1555))/1000","v":{"$error":"#NAME?"}},{"$f":"(_xll.RiskData(NR_to_Cash!D$18,$A1555))/1000","v":{"$error":"#NAME?"}},{"$f":"(_xll.RiskData(NR_to_Cash!E$18,$A1555))/1000","v":{"$error":"#NAME?"}}]
[1549,{"$f":"_xll.RiskData('Risk Summary'!J$48,$A1556)/1000","v":{"$error":"#NAME?"}},{"$f":"_xll.RiskData('Risk Summary'!K$48,$A1556)/1000","v":{"$error":"#NAME?"}},{"$f":"_xll.RiskData('Risk Summary'!L$48,$A1556)/1000","v":{"$error":"#NAME?"}},null,null,{"$f":"(_xll.RiskData(NR_to_Cash!C$18,$A1556))/1000","v":{"$error":"#NAME?"}},{"$f":"(_xll.RiskData(NR_to_Cash!D$18,$A1556))/1000","v":{"$error":"#NAME?"}},{"$f":"(_xll.RiskData(NR_to_Cash!E$18,$A1556))/1000","v":{"$error":"#NAME?"}}]
[1550,{"$f":"_xll.RiskData('Risk Summary'!J$48,$A1557)/1000","v":{"$error":"#NAME?"}},{"$f":"_xll.RiskData('Risk Summary'!K$48,$A1557)/1000","v":{"$error":"#NAME?"}},{"$f":"_xll.RiskData('Risk Summary'!L$48,$A1557)/1000","v":{"$error":"#NAME?"}},null,null,{"$f":"(_xll.RiskData(NR_to_Cash!C$18,$A1557))/1000","v":{"$error":"#NAME?"}},{"$f":"(_xll.RiskData(NR_to_Cash!D$18,$A1557))/1000","v":{"$error":"#NAME?"}},{"$f":"(_xll.RiskData(NR_to_Cash!E$18,$A1557))/1000","v":{"$error":"#NAME?"}}]
[1551,{"$f":"_xll.RiskData('Risk Summary'!J$48,$A1558)/1000","v":{"$error":"#NAME?"}},{"$f":"_xll.RiskData('Risk Summary'!K$48,$A1558)/1000","v":{"$error":"#NAME?"}},{"$f":"_xll.RiskData('Risk Summary'!L$48,$A1558)/1000","v":{"$error":"#NAME?"}},null,null,{"$f":"(_xll.RiskData(NR_to_Cash!C$18,$A1558))/1000","v":{"$error":"#NAME?"}},{"$f":"(_xll.RiskData(NR_to_Cash!D$18,$A1558))/1000","v":{"$error":"#NAME?"}},{"$f":"(_xll.RiskData(NR_to_Cash!E$18,$A1558))/1000","v":{"$error":"#NAME?"}}]
[1552,{"$f":"_xll.RiskData('Risk Summary'!J$48,$A1559)/1000","v":{"$error":"#NAME?"}},{"$f":"_xll.RiskData('Risk Summary'!K$48,$A1559)/1000","v":{"$error":"#NAME?"}},{"$f":"_xll.RiskData('Risk Summary'!L$48,$A1559)/1000","v":{"$error":"#NAME?"}},null,null,{"$f":"(_xll.RiskData(NR_to_Cash!C$18,$A1559))/1000","v":{"$error":"#NAME?"}},{"$f":"(_xll.RiskData(NR_to_Cash!D$18,$A1559))/1000","v":{"$error":"#NAME?"}},{"$f":"(_xll.RiskData(NR_to_Cash!E$18,$A1559))/1000","v":{"$error":"#NAME?"}}]
[1553,{"$f":"_xll.RiskData('Risk Summary'!J$48,$A1560)/1000","v":{"$error":"#NAME?"}},{"$f":"_xll.RiskData('Risk Summary'!K$48,$A1560)/1000","v":{"$error":"#NAME?"}},{"$f":"_xll.RiskData('Risk Summary'!L$48,$A1560)/1000","v":{"$error":"#NAME?"}},null,null,{"$f":"(_xll.RiskData(NR_to_Cash!C$18,$A1560))/1000","v":{"$error":"#NAME?"}},{"$f":"(_xll.RiskData(NR_to_Cash!D$18,$A1560))/1000","v":{"$error":"#NAME?"}},{"$f":"(_xll.RiskData(NR_to_Cash!E$18,$A1560))/1000","v":{"$error":"#NAME?"}}]
[1554,{"$f":"_xll.RiskData('Risk Summary'!J$48,$A1561)/1000","v":{"$error":"#NAME?"}},{"$f":"_xll.RiskData('Risk Summary'!K$48,$A1561)/1000","v":{"$error":"#NAME?"}},{"$f":"_xll.RiskData('Risk Summary'!L$48,$A1561)/1000","v":{"$error":"#NAME?"}},null,null,{"$f":"(_xll.RiskData(NR_to_Cash!C$18,$A1561))/1000","v":{"$error":"#NAME?"}},{"$f":"(_xll.RiskData(NR_to_Cash!D$18,$A1561))/1000","v":{"$error":"#NAME?"}},{"$f":"(_xll.RiskData(NR_to_Cash!E$18,$A1561))/1000","v":{"$error":"#NAME?"}}]
[1555,{"$f":"_xll.RiskData('Risk Summary'!J$48,$A1562)/1000","v":{"$error":"#NAME?"}},{"$f":"_xll.RiskData('Risk Summary'!K$48,$A1562)/1000","v":{"$error":"#NAME?"}},{"$f":"_xll.RiskData('Risk Summary'!L$48,$A1562)/1000","v":{"$error":"#NAME?"}},null,null,{"$f":"(_xll.RiskData(NR_to_Cash!C$18,$A1562))/1000","v":{"$error":"#NAME?"}},{"$f":"(_xll.RiskData(NR_to_Cash!D$18,$A1562))/1000","v":{"$error":"#NAME?"}},{"$f":"(_xll.RiskData(NR_to_Cash!E$18,$A1562))/1000","v":{"$error":"#NAME?"}}]
[1556,{"$f":"_xll.RiskData('Risk Summary'!J$48,$A1563)/1000","v":{"$error":"#NAME?"}},{"$f":"_xll.RiskData('Risk Summary'!K$48,$A1563)/1000","v":{"$error":"#NAME?"}},{"$f":"_xll.RiskData('Risk Summary'!L$48,$A1563)/1000","v":{"$error":"#NAME?"}},null,null,{"$f":"(_xll.RiskData(NR_to_Cash!C$18,$A1563))/1000","v":{"$error":"#NAME?"}},{"$f":"(_xll.RiskData(NR_to_Cash!D$18,$A1563))/1000","v":{"$error":"#NAME?"}},{"$f":"(_xll.RiskData(NR_to_Cash!E$18,$A1563))/1000","v":{"$error":"#NAME?"}}]
[1557,{"$f":"_xll.RiskData('Risk Summary'!J$48,$A1564)/1000","v":{"$error":"#NAME?"}},{"$f":"_xll.RiskData('Risk Summary'!K$48,$A1564)/1000","v":{"$error":"#NAME?"}},{"$f":"_xll.RiskData('Risk Summary'!L$48,$A1564)/1000","v":{"$error":"#NAME?"}},null,null,{"$f":"(_xll.RiskData(NR_to_Cash!C$18,$A1564))/1000","v":{"$error":"#NAME?"}},{"$f":"(_xll.RiskData(NR_to_Cash!D$18,$A1564))/1000","v":{"$error":"#NAME?"}},{"$f":"(_xll.RiskData(NR_to_Cash!E$18,$A1564))/1000","v":{"$error":"#NAME?"}}]
[1558,{"$f":"_xll.RiskData('Risk Summary'!J$48,$A1565)/1000","v":{"$error":"#NAME?"}},{"$f":"_xll.RiskData('Risk Summary'!K$48,$A1565)/1000","v":{"$error":"#NAME?"}},{"$f":"_xll.RiskData('Risk Summary'!L$48,$A1565)/1000","v":{"$error":"#NAME?"}},null,null,{"$f":"(_xll.RiskData(NR_to_Cash!C$18,$A1565))/1000","v":{"$error":"#NAME?"}},{"$f":"(_xll.RiskData(NR_to_Cash!D$18,$A1565))/1000","v":{"$error":"#NAME?"}},{"$f":"(_xll.RiskData(NR_to_Cash!E$18,$A1565))/1000","v":{"$error":"#NAME?"}}]
[1559,{"$f":"_xll.RiskData('Risk Summary'!J$48,$A1566)/1000","v":{"$error":"#NAME?"}},{"$f":"_xll.RiskData('Risk Summary'!K$48,$A1566)/1000","v":{"$error":"#NAME?"}},{"$f":"_xll.RiskData('Risk Summary'!L$48,$A1566)/1000","v":{"$error":"#NAME?"}},null,null,{"$f":"(_xll.RiskData(NR_to_Cash!C$18,$A1566))/1000","v":{"$error":"#NAME?"}},{"$f":"(_xll.RiskData(NR_to_Cash!D$18,$A1566))/1000","v":{"$error":"#NAME?"}},{"$f":"(_xll.RiskData(NR_to_Cash!E$18,$A1566))/1000","v":{"$error":"#NAME?"}}]
[1560,{"$f":"_xll.RiskData('Risk Summary'!J$48,$A1567)/1000","v":{"$error":"#NAME?"}},{"$f":"_xll.RiskData('Risk Summary'!K$48,$A1567)/1000","v":{"$error":"#NAME?"}},{"$f":"_xll.RiskData('Risk Summary'!L$48,$A1567)/1000","v":{"$error":"#NAME?"}},null,null,{"$f":"(_xll.RiskData(NR_to_Cash!C$18,$A1567))/1000","v":{"$error":"#NAME?"}},{"$f":"(_xll.RiskData(NR_to_Cash!D$18,$A1567))/1000","v":{"$error":"#NAME?"}},{"$f":"(_xll.RiskData(NR_to_Cash!E$18,$A1567))/1000","v":{"$error":"#NAME?"}}]
[1561,{"$f":"_xll.RiskData('Risk Summary'!J$48,$A1568)/1000","v":{"$error":"#NAME?"}},{"$f":"_xll.RiskData('Risk Summary'!K$48,$A1568)/1000","v":{"$error":"#NAME?"}},{"$f":"_xll.RiskData('Risk Summary'!L$48,$A1568)/1000","v":{"$error":"#NAME?"}},null,null,{"$f":"(_xll.RiskData(NR_to_Cash!C$18,$A1568))/1000","v":{"$error":"#NAME?"}},{"$f":"(_xll.RiskData(NR_to_Cash!D$18,$A1568))/1000","v":{"$error":"#NAME?"}},{"$f":"(_xll.RiskData(NR_to_Cash!E$18,$A1568))/1000","v":{"$error":"#NAME?"}}]
[1562,{"$f":"_xll.RiskData('Risk Summary'!J$48,$A1569)/1000","v":{"$error":"#NAME?"}},{"$f":"_xll.RiskData('Risk Summary'!K$48,$A1569)/1000","v":{"$error":"#NAME?"}},{"$f":"_xll.RiskData('Risk Summary'!L$48,$A1569)/1000","v":{"$error":"#NAME?"}},null,null,{"$f":"(_xll.RiskData(NR_to_Cash!C$18,$A1569))/1000","v":{"$error":"#NAME?"}},{"$f":"(_xll.RiskData(NR_to_Cash!D$18,$A1569))/1000","v":{"$error":"#NAME?"}},{"$f":"(_xll.RiskData(NR_to_Cash!E$18,$A1569))/1000","v":{"$error":"#NAME?"}}]
[1563,{"$f":"_xll.RiskData('Risk Summary'!J$48,$A1570)/1000","v":{"$error":"#NAME?"}},{"$f":"_xll.RiskData('Risk Summary'!K$48,$A1570)/1000","v":{"$error":"#NAME?"}},{"$f":"_xll.RiskData('Risk Summary'!L$48,$A1570)/1000","v":{"$error":"#NAME?"}},null,null,{"$f":"(_xll.RiskData(NR_to_Cash!C$18,$A1570))/1000","v":{"$error":"#NAME?"}},{"$f":"(_xll.RiskData(NR_to_Cash!D$18,$A1570))/1000","v":{"$error":"#NAME?"}},{"$f":"(_xll.RiskData(NR_to_Cash!E$18,$A1570))/1000","v":{"$error":"#NAME?"}}]
[1564,{"$f":"_xll.RiskData('Risk Summary'!J$48,$A1571)/1000","v":{"$error":"#NAME?"}},{"$f":"_xll.RiskData('Risk Summary'!K$48,$A1571)/1000","v":{"$error":"#NAME?"}},{"$f":"_xll.RiskData('Risk Summary'!L$48,$A1571)/1000","v":{"$error":"#NAME?"}},null,null,{"$f":"(_xll.RiskData(NR_to_Cash!C$18,$A1571))/1000","v":{"$error":"#NAME?"}},{"$f":"(_xll.RiskData(NR_to_Cash!D$18,$A1571))/1000","v":{"$error":"#NAME?"}},{"$f":"(_xll.RiskData(NR_to_Cash!E$18,$A1571))/1000","v":{"$error":"#NAME?"}}]
[1565,{"$f":"_xll.RiskData('Risk Summary'!J$48,$A1572)/1000","v":{"$error":"#NAME?"}},{"$f":"_xll.RiskData('Risk Summary'!K$48,$A1572)/1000","v":{"$error":"#NAME?"}},{"$f":"_xll.RiskData('Risk Summary'!L$48,$A1572)/1000","v":{"$error":"#NAME?"}},null,null,{"$f":"(_xll.RiskData(NR_to_Cash!C$18,$A1572))/1000","v":{"$error":"#NAME?"}},{"$f":"(_xll.RiskData(NR_to_Cash!D$18,$A1572))/1000","v":{"$error":"#NAME?"}},{"$f":"(_xll.RiskData(NR_to_Cash!E$18,$A1572))/1000","v":{"$error":"#NAME?"}}]
[1566,{"$f":"_xll.RiskData('Risk Summary'!J$48,$A1573)/1000","v":{"$error":"#NAME?"}},{"$f":"_xll.RiskData('Risk Summary'!K$48,$A1573)/1000","v":{"$error":"#NAME?"}},{"$f":"_xll.RiskData('Risk Summary'!L$48,$A1573)/1000","v":{"$error":"#NAME?"}},null,null,{"$f":"(_xll.RiskData(NR_to_Cash!C$18,$A1573))/1000","v":{"$error":"#NAME?"}},{"$f":"(_xll.RiskData(NR_to_Cash!D$18,$A1573))/1000","v":{"$error":"#NAME?"}},{"$f":"(_xll.RiskData(NR_to_Cash!E$18,$A1573))/1000","v":{"$error":"#NAME?"}}]
[1567,{"$f":"_xll.RiskData('Risk Summary'!J$48,$A1574)/1000","v":{"$error":"#NAME?"}},{"$f":"_xll.RiskData('Risk Summary'!K$48,$A1574)/1000","v":{"$error":"#NAME?"}},{"$f":"_xll.RiskData('Risk Summary'!L$48,$A1574)/1000","v":{"$error":"#NAME?"}},null,null,{"$f":"(_xll.RiskData(NR_to_Cash!C$18,$A1574))/1000","v":{"$error":"#NAME?"}},{"$f":"(_xll.RiskData(NR_to_Cash!D$18,$A1574))/1000","v":{"$error":"#NAME?"}},{"$f":"(_xll.RiskData(NR_to_Cash!E$18,$A1574))/1000","v":{"$error":"#NAME?"}}]
[1568,{"$f":"_xll.RiskData('Risk Summary'!J$48,$A1575)/1000","v":{"$error":"#NAME?"}},{"$f":"_xll.RiskData('Risk Summary'!K$48,$A1575)/1000","v":{"$error":"#NAME?"}},{"$f":"_xll.RiskData('Risk Summary'!L$48,$A1575)/1000","v":{"$error":"#NAME?"}},null,null,{"$f":"(_xll.RiskData(NR_to_Cash!C$18,$A1575))/1000","v":{"$error":"#NAME?"}},{"$f":"(_xll.RiskData(NR_to_Cash!D$18,$A1575))/1000","v":{"$error":"#NAME?"}},{"$f":"(_xll.RiskData(NR_to_Cash!E$18,$A1575))/1000","v":{"$error":"#NAME?"}}]
[1569,{"$f":"_xll.RiskData('Risk Summary'!J$48,$A1576)/1000","v":{"$error":"#NAME?"}},{"$f":"_xll.RiskData('Risk Summary'!K$48,$A1576)/1000","v":{"$error":"#NAME?"}},{"$f":"_xll.RiskData('Risk Summary'!L$48,$A1576)/1000","v":{"$error":"#NAME?"}},null,null,{"$f":"(_xll.RiskData(NR_to_Cash!C$18,$A1576))/1000","v":{"$error":"#NAME?"}},{"$f":"(_xll.RiskData(NR_to_Cash!D$18,$A1576))/1000","v":{"$error":"#NAME?"}},{"$f":"(_xll.RiskData(NR_to_Cash!E$18,$A1576))/1000","v":{"$error":"#NAME?"}}]
[1570,{"$f":"_xll.RiskData('Risk Summary'!J$48,$A1577)/1000","v":{"$error":"#NAME?"}},{"$f":"_xll.RiskData('Risk Summary'!K$48,$A1577)/1000","v":{"$error":"#NAME?"}},{"$f":"_xll.RiskData('Risk Summary'!L$48,$A1577)/1000","v":{"$error":"#NAME?"}},null,null,{"$f":"(_xll.RiskData(NR_to_Cash!C$18,$A1577))/1000","v":{"$error":"#NAME?"}},{"$f":"(_xll.RiskData(NR_to_Cash!D$18,$A1577))/1000","v":{"$error":"#NAME?"}},{"$f":"(_xll.RiskData(NR_to_Cash!E$18,$A1577))/1000","v":{"$error":"#NAME?"}}]
[1571,{"$f":"_xll.RiskData('Risk Summary'!J$48,$A1578)/1000","v":{"$error":"#NAME?"}},{"$f":"_xll.RiskData('Risk Summary'!K$48,$A1578)/1000","v":{"$error":"#NAME?"}},{"$f":"_xll.RiskData('Risk Summary'!L$48,$A1578)/1000","v":{"$error":"#NAME?"}},null,null,{"$f":"(_xll.RiskData(NR_to_Cash!C$18,$A1578))/1000","v":{"$error":"#NAME?"}},{"$f":"(_xll.RiskData(NR_to_Cash!D$18,$A1578))/1000","v":{"$error":"#NAME?"}},{"$f":"(_xll.RiskData(NR_to_Cash!E$18,$A1578))/1000","v":{"$error":"#NAME?"}}]
[1572,{"$f":"_xll.RiskData('Risk Summary'!J$48,$A1579)/1000","v":{"$error":"#NAME?"}},{"$f":"_xll.RiskData('Risk Summary'!K$48,$A1579)/1000","v":{"$error":"#NAME?"}},{"$f":"_xll.RiskData('Risk Summary'!L$48,$A1579)/1000","v":{"$error":"#NAME?"}},null,null,{"$f":"(_xll.RiskData(NR_to_Cash!C$18,$A1579))/1000","v":{"$error":"#NAME?"}},{"$f":"(_xll.RiskData(NR_to_Cash!D$18,$A1579))/1000","v":{"$error":"#NAME?"}},{"$f":"(_xll.RiskData(NR_to_Cash!E$18,$A1579))/1000","v":{"$error":"#NAME?"}}]
[1573,{"$f":"_xll.RiskData('Risk Summary'!J$48,$A1580)/1000","v":{"$error":"#NAME?"}},{"$f":"_xll.RiskData('Risk Summary'!K$48,$A1580)/1000","v":{"$error":"#NAME?"}},{"$f":"_xll.RiskData('Risk Summary'!L$48,$A1580)/1000","v":{"$error":"#NAME?"}},null,null,{"$f":"(_xll.RiskData(NR_to_Cash!C$18,$A1580))/1000","v":{"$error":"#NAME?"}},{"$f":"(_xll.RiskData(NR_to_Cash!D$18,$A1580))/1000","v":{"$error":"#NAME?"}},{"$f":"(_xll.RiskData(NR_to_Cash!E$18,$A1580))/1000","v":{"$error":"#NAME?"}}]
[1574,{"$f":"_xll.RiskData('Risk Summary'!J$48,$A1581)/1000","v":{"$error":"#NAME?"}},{"$f":"_xll.RiskData('Risk Summary'!K$48,$A1581)/1000","v":{"$error":"#NAME?"}},{"$f":"_xll.RiskData('Risk Summary'!L$48,$A1581)/1000","v":{"$error":"#NAME?"}},null,null,{"$f":"(_xll.RiskData(NR_to_Cash!C$18,$A1581))/1000","v":{"$error":"#NAME?"}},{"$f":"(_xll.RiskData(NR_to_Cash!D$18,$A1581))/1000","v":{"$error":"#NAME?"}},{"$f":"(_xll.RiskData(NR_to_Cash!E$18,$A1581))/1000","v":{"$error":"#NAME?"}}]
[1575,{"$f":"_xll.RiskData('Risk Summary'!J$48,$A1582)/1000","v":{"$error":"#NAME?"}},{"$f":"_xll.RiskData('Risk Summary'!K$48,$A1582)/1000","v":{"$error":"#NAME?"}},{"$f":"_xll.RiskData('Risk Summary'!L$48,$A1582)/1000","v":{"$error":"#NAME?"}},null,null,{"$f":"(_xll.RiskData(NR_to_Cash!C$18,$A1582))/1000","v":{"$error":"#NAME?"}},{"$f":"(_xll.RiskData(NR_to_Cash!D$18,$A1582))/1000","v":{"$error":"#NAME?"}},{"$f":"(_xll.RiskData(NR_to_Cash!E$18,$A1582))/1000","v":{"$error":"#NAME?"}}]
[1576,{"$f":"_xll.RiskData('Risk Summary'!J$48,$A1583)/1000","v":{"$error":"#NAME?"}},{"$f":"_xll.RiskData('Risk Summary'!K$48,$A1583)/1000","v":{"$error":"#NAME?"}},{"$f":"_xll.RiskData('Risk Summary'!L$48,$A1583)/1000","v":{"$error":"#NAME?"}},null,null,{"$f":"(_xll.RiskData(NR_to_Cash!C$18,$A1583))/1000","v":{"$error":"#NAME?"}},{"$f":"(_xll.RiskData(NR_to_Cash!D$18,$A1583))/1000","v":{"$error":"#NAME?"}},{"$f":"(_xll.RiskData(NR_to_Cash!E$18,$A1583))/1000","v":{"$error":"#NAME?"}}]
[1577,{"$f":"_xll.RiskData('Risk Summary'!J$48,$A1584)/1000","v":{"$error":"#NAME?"}},{"$f":"_xll.RiskData('Risk Summary'!K$48,$A1584)/1000","v":{"$error":"#NAME?"}},{"$f":"_xll.RiskData('Risk Summary'!L$48,$A1584)/1000","v":{"$error":"#NAME?"}},null,null,{"$f":"(_xll.RiskData(NR_to_Cash!C$18,$A1584))/1000","v":{"$error":"#NAME?"}},{"$f":"(_xll.RiskData(NR_to_Cash!D$18,$A1584))/1000","v":{"$error":"#NAME?"}},{"$f":"(_xll.RiskData(NR_to_Cash!E$18,$A1584))/1000","v":{"$error":"#NAME?"}}]
[1578,{"$f":"_xll.RiskData('Risk Summary'!J$48,$A1585)/1000","v":{"$error":"#NAME?"}},{"$f":"_xll.RiskData('Risk Summary'!K$48,$A1585)/1000","v":{"$error":"#NAME?"}},{"$f":"_xll.RiskData('Risk Summary'!L$48,$A1585)/1000","v":{"$error":"#NAME?"}},null,null,{"$f":"(_xll.RiskData(NR_to_Cash!C$18,$A1585))/1000","v":{"$error":"#NAME?"}},{"$f":"(_xll.RiskData(NR_to_Cash!D$18,$A1585))/1000","v":{"$error":"#NAME?"}},{"$f":"(_xll.RiskData(NR_to_Cash!E$18,$A1585))/1000","v":{"$error":"#NAME?"}}]
[1579,{"$f":"_xll.RiskData('Risk Summary'!J$48,$A1586)/1000","v":{"$error":"#NAME?"}},{"$f":"_xll.RiskData('Risk Summary'!K$48,$A1586)/1000","v":{"$error":"#NAME?"}},{"$f":"_xll.RiskData('Risk Summary'!L$48,$A1586)/1000","v":{"$error":"#NAME?"}},null,null,{"$f":"(_xll.RiskData(NR_to_Cash!C$18,$A1586))/1000","v":{"$error":"#NAME?"}},{"$f":"(_xll.RiskData(NR_to_Cash!D$18,$A1586))/1000","v":{"$error":"#NAME?"}},{"$f":"(_xll.RiskData(NR_to_Cash!E$18,$A1586))/1000","v":{"$error":"#NAME?"}}]
[1580,{"$f":"_xll.RiskData('Risk Summary'!J$48,$A1587)/1000","v":{"$error":"#NAME?"}},{"$f":"_xll.RiskData('Risk Summary'!K$48,$A1587)/1000","v":{"$error":"#NAME?"}},{"$f":"_xll.RiskData('Risk Summary'!L$48,$A1587)/1000","v":{"$error":"#NAME?"}},null,null,{"$f":"(_xll.RiskData(NR_to_Cash!C$18,$A1587))/1000","v":{"$error":"#NAME?"}},{"$f":"(_xll.RiskData(NR_to_Cash!D$18,$A1587))/1000","v":{"$error":"#NAME?"}},{"$f":"(_xll.RiskData(NR_to_Cash!E$18,$A1587))/1000","v":{"$error":"#NAME?"}}]
[1581,{"$f":"_xll.RiskData('Risk Summary'!J$48,$A1588)/1000","v":{"$error":"#NAME?"}},{"$f":"_xll.RiskData('Risk Summary'!K$48,$A1588)/1000","v":{"$error":"#NAME?"}},{"$f":"_xll.RiskData('Risk Summary'!L$48,$A1588)/1000","v":{"$error":"#NAME?"}},null,null,{"$f":"(_xll.RiskData(NR_to_Cash!C$18,$A1588))/1000","v":{"$error":"#NAME?"}},{"$f":"(_xll.RiskData(NR_to_Cash!D$18,$A1588))/1000","v":{"$error":"#NAME?"}},{"$f":"(_xll.RiskData(NR_to_Cash!E$18,$A1588))/1000","v":{"$error":"#NAME?"}}]
[1582,{"$f":"_xll.RiskData('Risk Summary'!J$48,$A1589)/1000","v":{"$error":"#NAME?"}},{"$f":"_xll.RiskData('Risk Summary'!K$48,$A1589)/1000","v":{"$error":"#NAME?"}},{"$f":"_xll.RiskData('Risk Summary'!L$48,$A1589)/1000","v":{"$error":"#NAME?"}},null,null,{"$f":"(_xll.RiskData(NR_to_Cash!C$18,$A1589))/1000","v":{"$error":"#NAME?"}},{"$f":"(_xll.RiskData(NR_to_Cash!D$18,$A1589))/1000","v":{"$error":"#NAME?"}},{"$f":"(_xll.RiskData(NR_to_Cash!E$18,$A1589))/1000","v":{"$error":"#NAME?"}}]
[1583,{"$f":"_xll.RiskData('Risk Summary'!J$48,$A1590)/1000","v":{"$error":"#NAME?"}},{"$f":"_xll.RiskData('Risk Summary'!K$48,$A1590)/1000","v":{"$error":"#NAME?"}},{"$f":"_xll.RiskData('Risk Summary'!L$48,$A1590)/1000","v":{"$error":"#NAME?"}},null,null,{"$f":"(_xll.RiskData(NR_to_Cash!C$18,$A1590))/1000","v":{"$error":"#NAME?"}},{"$f":"(_xll.RiskData(NR_to_Cash!D$18,$A1590))/1000","v":{"$error":"#NAME?"}},{"$f":"(_xll.RiskData(NR_to_Cash!E$18,$A1590))/1000","v":{"$error":"#NAME?"}}]
[1584,{"$f":"_xll.RiskData('Risk Summary'!J$48,$A1591)/1000","v":{"$error":"#NAME?"}},{"$f":"_xll.RiskData('Risk Summary'!K$48,$A1591)/1000","v":{"$error":"#NAME?"}},{"$f":"_xll.RiskData('Risk Summary'!L$48,$A1591)/1000","v":{"$error":"#NAME?"}},null,null,{"$f":"(_xll.RiskData(NR_to_Cash!C$18,$A1591))/1000","v":{"$error":"#NAME?"}},{"$f":"(_xll.RiskData(NR_to_Cash!D$18,$A1591))/1000","v":{"$error":"#NAME?"}},{"$f":"(_xll.RiskData(NR_to_Cash!E$18,$A1591))/1000","v":{"$error":"#NAME?"}}]
[1585,{"$f":"_xll.RiskData('Risk Summary'!J$48,$A1592)/1000","v":{"$error":"#NAME?"}},{"$f":"_xll.RiskData('Risk Summary'!K$48,$A1592)/1000","v":{"$error":"#NAME?"}},{"$f":"_xll.RiskData('Risk Summary'!L$48,$A1592)/1000","v":{"$error":"#NAME?"}},null,null,{"$f":"(_xll.RiskData(NR_to_Cash!C$18,$A1592))/1000","v":{"$error":"#NAME?"}},{"$f":"(_xll.RiskData(NR_to_Cash!D$18,$A1592))/1000","v":{"$error":"#NAME?"}},{"$f":"(_xll.RiskData(NR_to_Cash!E$18,$A1592))/1000","v":{"$error":"#NAME?"}}]
[1586,{"$f":"_xll.RiskData('Risk Summary'!J$48,$A1593)/1000","v":{"$error":"#NAME?"}},{"$f":"_xll.RiskData('Risk Summary'!K$48,$A1593)/1000","v":{"$error":"#NAME?"}},{"$f":"_xll.RiskData('Risk Summary'!L$48,$A1593)/1000","v":{"$error":"#NAME?"}},null,null,{"$f":"(_xll.RiskData(NR_to_Cash!C$18,$A1593))/1000","v":{"$error":"#NAME?"}},{"$f":"(_xll.RiskData(NR_to_Cash!D$18,$A1593))/1000","v":{"$error":"#NAME?"}},{"$f":"(_xll.RiskData(NR_to_Cash!E$18,$A1593))/1000","v":{"$error":"#NAME?"}}]
[1587,{"$f":"_xll.RiskData('Risk Summary'!J$48,$A1594)/1000","v":{"$error":"#NAME?"}},{"$f":"_xll.RiskData('Risk Summary'!K$48,$A1594)/1000","v":{"$error":"#NAME?"}},{"$f":"_xll.RiskData('Risk Summary'!L$48,$A1594)/1000","v":{"$error":"#NAME?"}},null,null,{"$f":"(_xll.RiskData(NR_to_Cash!C$18,$A1594))/1000","v":{"$error":"#NAME?"}},{"$f":"(_xll.RiskData(NR_to_Cash!D$18,$A1594))/1000","v":{"$error":"#NAME?"}},{"$f":"(_xll.RiskData(NR_to_Cash!E$18,$A1594))/1000","v":{"$error":"#NAME?"}}]
[1588,{"$f":"_xll.RiskData('Risk Summary'!J$48,$A1595)/1000","v":{"$error":"#NAME?"}},{"$f":"_xll.RiskData('Risk Summary'!K$48,$A1595)/1000","v":{"$error":"#NAME?"}},{"$f":"_xll.RiskData('Risk Summary'!L$48,$A1595)/1000","v":{"$error":"#NAME?"}},null,null,{"$f":"(_xll.RiskData(NR_to_Cash!C$18,$A1595))/1000","v":{"$error":"#NAME?"}},{"$f":"(_xll.RiskData(NR_to_Cash!D$18,$A1595))/1000","v":{"$error":"#NAME?"}},{"$f":"(_xll.RiskData(NR_to_Cash!E$18,$A1595))/1000","v":{"$error":"#NAME?"}}]
[1589,{"$f":"_xll.RiskData('Risk Summary'!J$48,$A1596)/1000","v":{"$error":"#NAME?"}},{"$f":"_xll.RiskData('Risk Summary'!K$48,$A1596)/1000","v":{"$error":"#NAME?"}},{"$f":"_xll.RiskData('Risk Summary'!L$48,$A1596)/1000","v":{"$error":"#NAME?"}},null,null,{"$f":"(_xll.RiskData(NR_to_Cash!C$18,$A1596))/1000","v":{"$error":"#NAME?"}},{"$f":"(_xll.RiskData(NR_to_Cash!D$18,$A1596))/1000","v":{"$error":"#NAME?"}},{"$f":"(_xll.RiskData(NR_to_Cash!E$18,$A1596))/1000","v":{"$error":"#NAME?"}}]
[1590,{"$f":"_xll.RiskData('Risk Summary'!J$48,$A1597)/1000","v":{"$error":"#NAME?"}},{"$f":"_xll.RiskData('Risk Summary'!K$48,$A1597)/1000","v":{"$error":"#NAME?"}},{"$f":"_xll.RiskData('Risk Summary'!L$48,$A1597)/1000","v":{"$error":"#NAME?"}},null,null,{"$f":"(_xll.RiskData(NR_to_Cash!C$18,$A1597))/1000","v":{"$error":"#NAME?"}},{"$f":"(_xll.RiskData(NR_to_Cash!D$18,$A1597))/1000","v":{"$error":"#NAME?"}},{"$f":"(_xll.RiskData(NR_to_Cash!E$18,$A1597))/1000","v":{"$error":"#NAME?"}}]
[1591,{"$f":"_xll.RiskData('Risk Summary'!J$48,$A1598)/1000","v":{"$error":"#NAME?"}},{"$f":"_xll.RiskData('Risk Summary'!K$48,$A1598)/1000","v":{"$error":"#NAME?"}},{"$f":"_xll.RiskData('Risk Summary'!L$48,$A1598)/1000","v":{"$error":"#NAME?"}},null,null,{"$f":"(_xll.RiskData(NR_to_Cash!C$18,$A1598))/1000","v":{"$error":"#NAME?"}},{"$f":"(_xll.RiskData(NR_to_Cash!D$18,$A1598))/1000","v":{"$error":"#NAME?"}},{"$f":"(_xll.RiskData(NR_to_Cash!E$18,$A1598))/1000","v":{"$error":"#NAME?"}}]
[1592,{"$f":"_xll.RiskData('Risk Summary'!J$48,$A1599)/1000","v":{"$error":"#NAME?"}},{"$f":"_xll.RiskData('Risk Summary'!K$48,$A1599)/1000","v":{"$error":"#NAME?"}},{"$f":"_xll.RiskData('Risk Summary'!L$48,$A1599)/1000","v":{"$error":"#NAME?"}},null,null,{"$f":"(_xll.RiskData(NR_to_Cash!C$18,$A1599))/1000","v":{"$error":"#NAME?"}},{"$f":"(_xll.RiskData(NR_to_Cash!D$18,$A1599))/1000","v":{"$error":"#NAME?"}},{"$f":"(_xll.RiskData(NR_to_Cash!E$18,$A1599))/1000","v":{"$error":"#NAME?"}}]
[1593,{"$f":"_xll.RiskData('Risk Summary'!J$48,$A1600)/1000","v":{"$error":"#NAME?"}},{"$f":"_xll.RiskData('Risk Summary'!K$48,$A1600)/1000","v":{"$error":"#NAME?"}},{"$f":"_xll.RiskData('Risk Summary'!L$48,$A1600)/1000","v":{"$error":"#NAME?"}},null,null,{"$f":"(_xll.RiskData(NR_to_Cash!C$18,$A1600))/1000","v":{"$error":"#NAME?"}},{"$f":"(_xll.RiskData(NR_to_Cash!D$18,$A1600))/1000","v":{"$error":"#NAME?"}},{"$f":"(_xll.RiskData(NR_to_Cash!E$18,$A1600))/1000","v":{"$error":"#NAME?"}}]
[1594,{"$f":"_xll.RiskData('Risk Summary'!J$48,$A1601)/1000","v":{"$error":"#NAME?"}},{"$f":"_xll.RiskData('Risk Summary'!K$48,$A1601)/1000","v":{"$error":"#NAME?"}},{"$f":"_xll.RiskData('Risk Summary'!L$48,$A1601)/1000","v":{"$error":"#NAME?"}},null,null,{"$f":"(_xll.RiskData(NR_to_Cash!C$18,$A1601))/1000","v":{"$error":"#NAME?"}},{"$f":"(_xll.RiskData(NR_to_Cash!D$18,$A1601))/1000","v":{"$error":"#NAME?"}},{"$f":"(_xll.RiskData(NR_to_Cash!E$18,$A1601))/1000","v":{"$error":"#NAME?"}}]
[1595,{"$f":"_xll.RiskData('Risk Summary'!J$48,$A1602)/1000","v":{"$error":"#NAME?"}},{"$f":"_xll.RiskData('Risk Summary'!K$48,$A1602)/1000","v":{"$error":"#NAME?"}},{"$f":"_xll.RiskData('Risk Summary'!L$48,$A1602)/1000","v":{"$error":"#NAME?"}},null,null,{"$f":"(_xll.RiskData(NR_to_Cash!C$18,$A1602))/1000","v":{"$error":"#NAME?"}},{"$f":"(_xll.RiskData(NR_to_Cash!D$18,$A1602))/1000","v":{"$error":"#NAME?"}},{"$f":"(_xll.RiskData(NR_to_Cash!E$18,$A1602))/1000","v":{"$error":"#NAME?"}}]
[1596,{"$f":"_xll.RiskData('Risk Summary'!J$48,$A1603)/1000","v":{"$error":"#NAME?"}},{"$f":"_xll.RiskData('Risk Summary'!K$48,$A1603)/1000","v":{"$error":"#NAME?"}},{"$f":"_xll.RiskData('Risk Summary'!L$48,$A1603)/1000","v":{"$error":"#NAME?"}},null,null,{"$f":"(_xll.RiskData(NR_to_Cash!C$18,$A1603))/1000","v":{"$error":"#NAME?"}},{"$f":"(_xll.RiskData(NR_to_Cash!D$18,$A1603))/1000","v":{"$error":"#NAME?"}},{"$f":"(_xll.RiskData(NR_to_Cash!E$18,$A1603))/1000","v":{"$error":"#NAME?"}}]
[1597,{"$f":"_xll.RiskData('Risk Summary'!J$48,$A1604)/1000","v":{"$error":"#NAME?"}},{"$f":"_xll.RiskData('Risk Summary'!K$48,$A1604)/1000","v":{"$error":"#NAME?"}},{"$f":"_xll.RiskData('Risk Summary'!L$48,$A1604)/1000","v":{"$error":"#NAME?"}},null,null,{"$f":"(_xll.RiskData(NR_to_Cash!C$18,$A1604))/1000","v":{"$error":"#NAME?"}},{"$f":"(_xll.RiskData(NR_to_Cash!D$18,$A1604))/1000","v":{"$error":"#NAME?"}},{"$f":"(_xll.RiskData(NR_to_Cash!E$18,$A1604))/1000","v":{"$error":"#NAME?"}}]
[1598,{"$f":"_xll.RiskData('Risk Summary'!J$48,$A1605)/1000","v":{"$error":"#NAME?"}},{"$f":"_xll.RiskData('Risk Summary'!K$48,$A1605)/1000","v":{"$error":"#NAME?"}},{"$f":"_xll.RiskData('Risk Summary'!L$48,$A1605)/1000","v":{"$error":"#NAME?"}},null,null,{"$f":"(_xll.RiskData(NR_to_Cash!C$18,$A1605))/1000","v":{"$error":"#NAME?"}},{"$f":"(_xll.RiskData(NR_to_Cash!D$18,$A1605))/1000","v":{"$error":"#NAME?"}},{"$f":"(_xll.RiskData(NR_to_Cash!E$18,$A1605))/1000","v":{"$error":"#NAME?"}}]
[1599,{"$f":"_xll.RiskData('Risk Summary'!J$48,$A1606)/1000","v":{"$error":"#NAME?"}},{"$f":"_xll.RiskData('Risk Summary'!K$48,$A1606)/1000","v":{"$error":"#NAME?"}},{"$f":"_xll.RiskData('Risk Summary'!L$48,$A1606)/1000","v":{"$error":"#NAME?"}},null,null,{"$f":"(_xll.RiskData(NR_to_Cash!C$18,$A1606))/1000","v":{"$error":"#NAME?"}},{"$f":"(_xll.RiskData(NR_to_Cash!D$18,$A1606))/1000","v":{"$error":"#NAME?"}},{"$f":"(_xll.RiskData(NR_to_Cash!E$18,$A1606))/1000","v":{"$error":"#NAME?"}}]
[1600,{"$f":"_xll.RiskData('Risk Summary'!J$48,$A1607)/1000","v":{"$error":"#NAME?"}},{"$f":"_xll.RiskData('Risk Summary'!K$48,$A1607)/1000","v":{"$error":"#NAME?"}},{"$f":"_xll.RiskData('Risk Summary'!L$48,$A1607)/1000","v":{"$error":"#NAME?"}},null,null,{"$f":"(_xll.RiskData(NR_to_Cash!C$18,$A1607))/1000","v":{"$error":"#NAME?"}},{"$f":"(_xll.RiskData(NR_to_Cash!D$18,$A1607))/1000","v":{"$error":"#NAME?"}},{"$f":"(_xll.RiskData(NR_to_Cash!E$18,$A1607))/1000","v":{"$error":"#NAME?"}}]
[1601,{"$f":"_xll.RiskData('Risk Summary'!J$48,$A1608)/1000","v":{"$error":"#NAME?"}},{"$f":"_xll.RiskData('Risk Summary'!K$48,$A1608)/1000","v":{"$error":"#NAME?"}},{"$f":"_xll.RiskData('Risk Summary'!L$48,$A1608)/1000","v":{"$error":"#NAME?"}},null,null,{"$f":"(_xll.RiskData(NR_to_Cash!C$18,$A1608))/1000","v":{"$error":"#NAME?"}},{"$f":"(_xll.RiskData(NR_to_Cash!D$18,$A1608))/1000","v":{"$error":"#NAME?"}},{"$f":"(_xll.RiskData(NR_to_Cash!E$18,$A1608))/1000","v":{"$error":"#NAME?"}}]
[1602,{"$f":"_xll.RiskData('Risk Summary'!J$48,$A1609)/1000","v":{"$error":"#NAME?"}},{"$f":"_xll.RiskData('Risk Summary'!K$48,$A1609)/1000","v":{"$error":"#NAME?"}},{"$f":"_xll.RiskData('Risk Summary'!L$48,$A1609)/1000","v":{"$error":"#NAME?"}},null,null,{"$f":"(_xll.RiskData(NR_to_Cash!C$18,$A1609))/1000","v":{"$error":"#NAME?"}},{"$f":"(_xll.RiskData(NR_to_Cash!D$18,$A1609))/1000","v":{"$error":"#NAME?"}},{"$f":"(_xll.RiskData(NR_to_Cash!E$18,$A1609))/1000","v":{"$error":"#NAME?"}}]
[1603,{"$f":"_xll.RiskData('Risk Summary'!J$48,$A1610)/1000","v":{"$error":"#NAME?"}},{"$f":"_xll.RiskData('Risk Summary'!K$48,$A1610)/1000","v":{"$error":"#NAME?"}},{"$f":"_xll.RiskData('Risk Summary'!L$48,$A1610)/1000","v":{"$error":"#NAME?"}},null,null,{"$f":"(_xll.RiskData(NR_to_Cash!C$18,$A1610))/1000","v":{"$error":"#NAME?"}},{"$f":"(_xll.RiskData(NR_to_Cash!D$18,$A1610))/1000","v":{"$error":"#NAME?"}},{"$f":"(_xll.RiskData(NR_to_Cash!E$18,$A1610))/1000","v":{"$error":"#NAME?"}}]
[1604,{"$f":"_xll.RiskData('Risk Summary'!J$48,$A1611)/1000","v":{"$error":"#NAME?"}},{"$f":"_xll.RiskData('Risk Summary'!K$48,$A1611)/1000","v":{"$error":"#NAME?"}},{"$f":"_xll.RiskData('Risk Summary'!L$48,$A1611)/1000","v":{"$error":"#NAME?"}},null,null,{"$f":"(_xll.RiskData(NR_to_Cash!C$18,$A1611))/1000","v":{"$error":"#NAME?"}},{"$f":"(_xll.RiskData(NR_to_Cash!D$18,$A1611))/1000","v":{"$error":"#NAME?"}},{"$f":"(_xll.RiskData(NR_to_Cash!E$18,$A1611))/1000","v":{"$error":"#NAME?"}}]
[1605,{"$f":"_xll.RiskData('Risk Summary'!J$48,$A1612)/1000","v":{"$error":"#NAME?"}},{"$f":"_xll.RiskData('Risk Summary'!K$48,$A1612)/1000","v":{"$error":"#NAME?"}},{"$f":"_xll.RiskData('Risk Summary'!L$48,$A1612)/1000","v":{"$error":"#NAME?"}},null,null,{"$f":"(_xll.RiskData(NR_to_Cash!C$18,$A1612))/1000","v":{"$error":"#NAME?"}},{"$f":"(_xll.RiskData(NR_to_Cash!D$18,$A1612))/1000","v":{"$error":"#NAME?"}},{"$f":"(_xll.RiskData(NR_to_Cash!E$18,$A1612))/1000","v":{"$error":"#NAME?"}}]
[1606,{"$f":"_xll.RiskData('Risk Summary'!J$48,$A1613)/1000","v":{"$error":"#NAME?"}},{"$f":"_xll.RiskData('Risk Summary'!K$48,$A1613)/1000","v":{"$error":"#NAME?"}},{"$f":"_xll.RiskData('Risk Summary'!L$48,$A1613)/1000","v":{"$error":"#NAME?"}},null,null,{"$f":"(_xll.RiskData(NR_to_Cash!C$18,$A1613))/1000","v":{"$error":"#NAME?"}},{"$f":"(_xll.RiskData(NR_to_Cash!D$18,$A1613))/1000","v":{"$error":"#NAME?"}},{"$f":"(_xll.RiskData(NR_to_Cash!E$18,$A1613))/1000","v":{"$error":"#NAME?"}}]
[1607,{"$f":"_xll.RiskData('Risk Summary'!J$48,$A1614)/1000","v":{"$error":"#NAME?"}},{"$f":"_xll.RiskData('Risk Summary'!K$48,$A1614)/1000","v":{"$error":"#NAME?"}},{"$f":"_xll.RiskData('Risk Summary'!L$48,$A1614)/1000","v":{"$error":"#NAME?"}},null,null,{"$f":"(_xll.RiskData(NR_to_Cash!C$18,$A1614))/1000","v":{"$error":"#NAME?"}},{"$f":"(_xll.RiskData(NR_to_Cash!D$18,$A1614))/1000","v":{"$error":"#NAME?"}},{"$f":"(_xll.RiskData(NR_to_Cash!E$18,$A1614))/1000","v":{"$error":"#NAME?"}}]
[1608,{"$f":"_xll.RiskData('Risk Summary'!J$48,$A1615)/1000","v":{"$error":"#NAME?"}},{"$f":"_xll.RiskData('Risk Summary'!K$48,$A1615)/1000","v":{"$error":"#NAME?"}},{"$f":"_xll.RiskData('Risk Summary'!L$48,$A1615)/1000","v":{"$error":"#NAME?"}},null,null,{"$f":"(_xll.RiskData(NR_to_Cash!C$18,$A1615))/1000","v":{"$error":"#NAME?"}},{"$f":"(_xll.RiskData(NR_to_Cash!D$18,$A1615))/1000","v":{"$error":"#NAME?"}},{"$f":"(_xll.RiskData(NR_to_Cash!E$18,$A1615))/1000","v":{"$error":"#NAME?"}}]
[1609,{"$f":"_xll.RiskData('Risk Summary'!J$48,$A1616)/1000","v":{"$error":"#NAME?"}},{"$f":"_xll.RiskData('Risk Summary'!K$48,$A1616)/1000","v":{"$error":"#NAME?"}},{"$f":"_xll.RiskData('Risk Summary'!L$48,$A1616)/1000","v":{"$error":"#NAME?"}},null,null,{"$f":"(_xll.RiskData(NR_to_Cash!C$18,$A1616))/1000","v":{"$error":"#NAME?"}},{"$f":"(_xll.RiskData(NR_to_Cash!D$18,$A1616))/1000","v":{"$error":"#NAME?"}},{"$f":"(_xll.RiskData(NR_to_Cash!E$18,$A1616))/1000","v":{"$error":"#NAME?"}}]
[1610,{"$f":"_xll.RiskData('Risk Summary'!J$48,$A1617)/1000","v":{"$error":"#NAME?"}},{"$f":"_xll.RiskData('Risk Summary'!K$48,$A1617)/1000","v":{"$error":"#NAME?"}},{"$f":"_xll.RiskData('Risk Summary'!L$48,$A1617)/1000","v":{"$error":"#NAME?"}},null,null,{"$f":"(_xll.RiskData(NR_to_Cash!C$18,$A1617))/1000","v":{"$error":"#NAME?"}},{"$f":"(_xll.RiskData(NR_to_Cash!D$18,$A1617))/1000","v":{"$error":"#NAME?"}},{"$f":"(_xll.RiskData(NR_to_Cash!E$18,$A1617))/1000","v":{"$error":"#NAME?"}}]
[1611,{"$f":"_xll.RiskData('Risk Summary'!J$48,$A1618)/1000","v":{"$error":"#NAME?"}},{"$f":"_xll.RiskData('Risk Summary'!K$48,$A1618)/1000","v":{"$error":"#NAME?"}},{"$f":"_xll.RiskData('Risk Summary'!L$48,$A1618)/1000","v":{"$error":"#NAME?"}},null,null,{"$f":"(_xll.RiskData(NR_to_Cash!C$18,$A1618))/1000","v":{"$error":"#NAME?"}},{"$f":"(_xll.RiskData(NR_to_Cash!D$18,$A1618))/1000","v":{"$error":"#NAME?"}},{"$f":"(_xll.RiskData(NR_to_Cash!E$18,$A1618))/1000","v":{"$error":"#NAME?"}}]
[1612,{"$f":"_xll.RiskData('Risk Summary'!J$48,$A1619)/1000","v":{"$error":"#NAME?"}},{"$f":"_xll.RiskData('Risk Summary'!K$48,$A1619)/1000","v":{"$error":"#NAME?"}},{"$f":"_xll.RiskData('Risk Summary'!L$48,$A1619)/1000","v":{"$error":"#NAME?"}},null,null,{"$f":"(_xll.RiskData(NR_to_Cash!C$18,$A1619))/1000","v":{"$error":"#NAME?"}},{"$f":"(_xll.RiskData(NR_to_Cash!D$18,$A1619))/1000","v":{"$error":"#NAME?"}},{"$f":"(_xll.RiskData(NR_to_Cash!E$18,$A1619))/1000","v":{"$error":"#NAME?"}}]
[1613,{"$f":"_xll.RiskData('Risk Summary'!J$48,$A1620)/1000","v":{"$error":"#NAME?"}},{"$f":"_xll.RiskData('Risk Summary'!K$48,$A1620)/1000","v":{"$error":"#NAME?"}},{"$f":"_xll.RiskData('Risk Summary'!L$48,$A1620)/1000","v":{"$error":"#NAME?"}},null,null,{"$f":"(_xll.RiskData(NR_to_Cash!C$18,$A1620))/1000","v":{"$error":"#NAME?"}},{"$f":"(_xll.RiskData(NR_to_Cash!D$18,$A1620))/1000","v":{"$error":"#NAME?"}},{"$f":"(_xll.RiskData(NR_to_Cash!E$18,$A1620))/1000","v":{"$error":"#NAME?"}}]
[1614,{"$f":"_xll.RiskData('Risk Summary'!J$48,$A1621)/1000","v":{"$error":"#NAME?"}},{"$f":"_xll.RiskData('Risk Summary'!K$48,$A1621)/1000","v":{"$error":"#NAME?"}},{"$f":"_xll.RiskData('Risk Summary'!L$48,$A1621)/1000","v":{"$error":"#NAME?"}},null,null,{"$f":"(_xll.RiskData(NR_to_Cash!C$18,$A1621))/1000","v":{"$error":"#NAME?"}},{"$f":"(_xll.RiskData(NR_to_Cash!D$18,$A1621))/1000","v":{"$error":"#NAME?"}},{"$f":"(_xll.RiskData(NR_to_Cash!E$18,$A1621))/1000","v":{"$error":"#NAME?"}}]
[1615,{"$f":"_xll.RiskData('Risk Summary'!J$48,$A1622)/1000","v":{"$error":"#NAME?"}},{"$f":"_xll.RiskData('Risk Summary'!K$48,$A1622)/1000","v":{"$error":"#NAME?"}},{"$f":"_xll.RiskData('Risk Summary'!L$48,$A1622)/1000","v":{"$error":"#NAME?"}},null,null,{"$f":"(_xll.RiskData(NR_to_Cash!C$18,$A1622))/1000","v":{"$error":"#NAME?"}},{"$f":"(_xll.RiskData(NR_to_Cash!D$18,$A1622))/1000","v":{"$error":"#NAME?"}},{"$f":"(_xll.RiskData(NR_to_Cash!E$18,$A1622))/1000","v":{"$error":"#NAME?"}}]
[1616,{"$f":"_xll.RiskData('Risk Summary'!J$48,$A1623)/1000","v":{"$error":"#NAME?"}},{"$f":"_xll.RiskData('Risk Summary'!K$48,$A1623)/1000","v":{"$error":"#NAME?"}},{"$f":"_xll.RiskData('Risk Summary'!L$48,$A1623)/1000","v":{"$error":"#NAME?"}},null,null,{"$f":"(_xll.RiskData(NR_to_Cash!C$18,$A1623))/1000","v":{"$error":"#NAME?"}},{"$f":"(_xll.RiskData(NR_to_Cash!D$18,$A1623))/1000","v":{"$error":"#NAME?"}},{"$f":"(_xll.RiskData(NR_to_Cash!E$18,$A1623))/1000","v":{"$error":"#NAME?"}}]
[1617,{"$f":"_xll.RiskData('Risk Summary'!J$48,$A1624)/1000","v":{"$error":"#NAME?"}},{"$f":"_xll.RiskData('Risk Summary'!K$48,$A1624)/1000","v":{"$error":"#NAME?"}},{"$f":"_xll.RiskData('Risk Summary'!L$48,$A1624)/1000","v":{"$error":"#NAME?"}},null,null,{"$f":"(_xll.RiskData(NR_to_Cash!C$18,$A1624))/1000","v":{"$error":"#NAME?"}},{"$f":"(_xll.RiskData(NR_to_Cash!D$18,$A1624))/1000","v":{"$error":"#NAME?"}},{"$f":"(_xll.RiskData(NR_to_Cash!E$18,$A1624))/1000","v":{"$error":"#NAME?"}}]
[1618,{"$f":"_xll.RiskData('Risk Summary'!J$48,$A1625)/1000","v":{"$error":"#NAME?"}},{"$f":"_xll.RiskData('Risk Summary'!K$48,$A1625)/1000","v":{"$error":"#NAME?"}},{"$f":"_xll.RiskData('Risk Summary'!L$48,$A1625)/1000","v":{"$error":"#NAME?"}},null,null,{"$f":"(_xll.RiskData(NR_to_Cash!C$18,$A1625))/1000","v":{"$error":"#NAME?"}},{"$f":"(_xll.RiskData(NR_to_Cash!D$18,$A1625))/1000","v":{"$error":"#NAME?"}},{"$f":"(_xll.RiskData(NR_to_Cash!E$18,$A1625))/1000","v":{"$error":"#NAME?"}}]
[1619,{"$f":"_xll.RiskData('Risk Summary'!J$48,$A1626)/1000","v":{"$error":"#NAME?"}},{"$f":"_xll.RiskData('Risk Summary'!K$48,$A1626)/1000","v":{"$error":"#NAME?"}},{"$f":"_xll.RiskData('Risk Summary'!L$48,$A1626)/1000","v":{"$error":"#NAME?"}},null,null,{"$f":"(_xll.RiskData(NR_to_Cash!C$18,$A1626))/1000","v":{"$error":"#NAME?"}},{"$f":"(_xll.RiskData(NR_to_Cash!D$18,$A1626))/1000","v":{"$error":"#NAME?"}},{"$f":"(_xll.RiskData(NR_to_Cash!E$18,$A1626))/1000","v":{"$error":"#NAME?"}}]
[1620,{"$f":"_xll.RiskData('Risk Summary'!J$48,$A1627)/1000","v":{"$error":"#NAME?"}},{"$f":"_xll.RiskData('Risk Summary'!K$48,$A1627)/1000","v":{"$error":"#NAME?"}},{"$f":"_xll.RiskData('Risk Summary'!L$48,$A1627)/1000","v":{"$error":"#NAME?"}},null,null,{"$f":"(_xll.RiskData(NR_to_Cash!C$18,$A1627))/1000","v":{"$error":"#NAME?"}},{"$f":"(_xll.RiskData(NR_to_Cash!D$18,$A1627))/1000","v":{"$error":"#NAME?"}},{"$f":"(_xll.RiskData(NR_to_Cash!E$18,$A1627))/1000","v":{"$error":"#NAME?"}}]
[1621,{"$f":"_xll.RiskData('Risk Summary'!J$48,$A1628)/1000","v":{"$error":"#NAME?"}},{"$f":"_xll.RiskData('Risk Summary'!K$48,$A1628)/1000","v":{"$error":"#NAME?"}},{"$f":"_xll.RiskData('Risk Summary'!L$48,$A1628)/1000","v":{"$error":"#NAME?"}},null,null,{"$f":"(_xll.RiskData(NR_to_Cash!C$18,$A1628))/1000","v":{"$error":"#NAME?"}},{"$f":"(_xll.RiskData(NR_to_Cash!D$18,$A1628))/1000","v":{"$error":"#NAME?"}},{"$f":"(_xll.RiskData(NR_to_Cash!E$18,$A1628))/1000","v":{"$error":"#NAME?"}}]
[1622,{"$f":"_xll.RiskData('Risk Summary'!J$48,$A1629)/1000","v":{"$error":"#NAME?"}},{"$f":"_xll.RiskData('Risk Summary'!K$48,$A1629)/1000","v":{"$error":"#NAME?"}},{"$f":"_xll.RiskData('Risk Summary'!L$48,$A1629)/1000","v":{"$error":"#NAME?"}},null,null,{"$f":"(_xll.RiskData(NR_to_Cash!C$18,$A1629))/1000","v":{"$error":"#NAME?"}},{"$f":"(_xll.RiskData(NR_to_Cash!D$18,$A1629))/1000","v":{"$error":"#NAME?"}},{"$f":"(_xll.RiskData(NR_to_Cash!E$18,$A1629))/1000","v":{"$error":"#NAME?"}}]
[1623,{"$f":"_xll.RiskData('Risk Summary'!J$48,$A1630)/1000","v":{"$error":"#NAME?"}},{"$f":"_xll.RiskData('Risk Summary'!K$48,$A1630)/1000","v":{"$error":"#NAME?"}},{"$f":"_xll.RiskData('Risk Summary'!L$48,$A1630)/1000","v":{"$error":"#NAME?"}},null,null,{"$f":"(_xll.RiskData(NR_to_Cash!C$18,$A1630))/1000","v":{"$error":"#NAME?"}},{"$f":"(_xll.RiskData(NR_to_Cash!D$18,$A1630))/1000","v":{"$error":"#NAME?"}},{"$f":"(_xll.RiskData(NR_to_Cash!E$18,$A1630))/1000","v":{"$error":"#NAME?"}}]
[1624,{"$f":"_xll.RiskData('Risk Summary'!J$48,$A1631)/1000","v":{"$error":"#NAME?"}},{"$f":"_xll.RiskData('Risk Summary'!K$48,$A1631)/1000","v":{"$error":"#NAME?"}},{"$f":"_xll.RiskData('Risk Summary'!L$48,$A1631)/1000","v":{"$error":"#NAME?"}},null,null,{"$f":"(_xll.RiskData(NR_to_Cash!C$18,$A1631))/1000","v":{"$error":"#NAME?"}},{"$f":"(_xll.RiskData(NR_to_Cash!D$18,$A1631))/1000","v":{"$error":"#NAME?"}},{"$f":"(_xll.RiskData(NR_to_Cash!E$18,$A1631))/1000","v":{"$error":"#NAME?"}}]
[1625,{"$f":"_xll.RiskData('Risk Summary'!J$48,$A1632)/1000","v":{"$error":"#NAME?"}},{"$f":"_xll.RiskData('Risk Summary'!K$48,$A1632)/1000","v":{"$error":"#NAME?"}},{"$f":"_xll.RiskData('Risk Summary'!L$48,$A1632)/1000","v":{"$error":"#NAME?"}},null,null,{"$f":"(_xll.RiskData(NR_to_Cash!C$18,$A1632))/1000","v":{"$error":"#NAME?"}},{"$f":"(_xll.RiskData(NR_to_Cash!D$18,$A1632))/1000","v":{"$error":"#NAME?"}},{"$f":"(_xll.RiskData(NR_to_Cash!E$18,$A1632))/1000","v":{"$error":"#NAME?"}}]
[1626,{"$f":"_xll.RiskData('Risk Summary'!J$48,$A1633)/1000","v":{"$error":"#NAME?"}},{"$f":"_xll.RiskData('Risk Summary'!K$48,$A1633)/1000","v":{"$error":"#NAME?"}},{"$f":"_xll.RiskData('Risk Summary'!L$48,$A1633)/1000","v":{"$error":"#NAME?"}},null,null,{"$f":"(_xll.RiskData(NR_to_Cash!C$18,$A1633))/1000","v":{"$error":"#NAME?"}},{"$f":"(_xll.RiskData(NR_to_Cash!D$18,$A1633))/1000","v":{"$error":"#NAME?"}},{"$f":"(_xll.RiskData(NR_to_Cash!E$18,$A1633))/1000","v":{"$error":"#NAME?"}}]
[1627,{"$f":"_xll.RiskData('Risk Summary'!J$48,$A1634)/1000","v":{"$error":"#NAME?"}},{"$f":"_xll.RiskData('Risk Summary'!K$48,$A1634)/1000","v":{"$error":"#NAME?"}},{"$f":"_xll.RiskData('Risk Summary'!L$48,$A1634)/1000","v":{"$error":"#NAME?"}},null,null,{"$f":"(_xll.RiskData(NR_to_Cash!C$18,$A1634))/1000","v":{"$error":"#NAME?"}},{"$f":"(_xll.RiskData(NR_to_Cash!D$18,$A1634))/1000","v":{"$error":"#NAME?"}},{"$f":"(_xll.RiskData(NR_to_Cash!E$18,$A1634))/1000","v":{"$error":"#NAME?"}}]
[1628,{"$f":"_xll.RiskData('Risk Summary'!J$48,$A1635)/1000","v":{"$error":"#NAME?"}},{"$f":"_xll.RiskData('Risk Summary'!K$48,$A1635)/1000","v":{"$error":"#NAME?"}},{"$f":"_xll.RiskData('Risk Summary'!L$48,$A1635)/1000","v":{"$error":"#NAME?"}},null,null,{"$f":"(_xll.RiskData(NR_to_Cash!C$18,$A1635))/1000","v":{"$error":"#NAME?"}},{"$f":"(_xll.RiskData(NR_to_Cash!D$18,$A1635))/1000","v":{"$error":"#NAME?"}},{"$f":"(_xll.RiskData(NR_to_Cash!E$18,$A1635))/1000","v":{"$error":"#NAME?"}}]
[1629,{"$f":"_xll.RiskData('Risk Summary'!J$48,$A1636)/1000","v":{"$error":"#NAME?"}},{"$f":"_xll.RiskData('Risk Summary'!K$48,$A1636)/1000","v":{"$error":"#NAME?"}},{"$f":"_xll.RiskData('Risk Summary'!L$48,$A1636)/1000","v":{"$error":"#NAME?"}},null,null,{"$f":"(_xll.RiskData(NR_to_Cash!C$18,$A1636))/1000","v":{"$error":"#NAME?"}},{"$f":"(_xll.RiskData(NR_to_Cash!D$18,$A1636))/1000","v":{"$error":"#NAME?"}},{"$f":"(_xll.RiskData(NR_to_Cash!E$18,$A1636))/1000","v":{"$error":"#NAME?"}}]
[1630,{"$f":"_xll.RiskData('Risk Summary'!J$48,$A1637)/1000","v":{"$error":"#NAME?"}},{"$f":"_xll.RiskData('Risk Summary'!K$48,$A1637)/1000","v":{"$error":"#NAME?"}},{"$f":"_xll.RiskData('Risk Summary'!L$48,$A1637)/1000","v":{"$error":"#NAME?"}},null,null,{"$f":"(_xll.RiskData(NR_to_Cash!C$18,$A1637))/1000","v":{"$error":"#NAME?"}},{"$f":"(_xll.RiskData(NR_to_Cash!D$18,$A1637))/1000","v":{"$error":"#NAME?"}},{"$f":"(_xll.RiskData(NR_to_Cash!E$18,$A1637))/1000","v":{"$error":"#NAME?"}}]
[1631,{"$f":"_xll.RiskData('Risk Summary'!J$48,$A1638)/1000","v":{"$error":"#NAME?"}},{"$f":"_xll.RiskData('Risk Summary'!K$48,$A1638)/1000","v":{"$error":"#NAME?"}},{"$f":"_xll.RiskData('Risk Summary'!L$48,$A1638)/1000","v":{"$error":"#NAME?"}},null,null,{"$f":"(_xll.RiskData(NR_to_Cash!C$18,$A1638))/1000","v":{"$error":"#NAME?"}},{"$f":"(_xll.RiskData(NR_to_Cash!D$18,$A1638))/1000","v":{"$error":"#NAME?"}},{"$f":"(_xll.RiskData(NR_to_Cash!E$18,$A1638))/1000","v":{"$error":"#NAME?"}}]
[1632,{"$f":"_xll.RiskData('Risk Summary'!J$48,$A1639)/1000","v":{"$error":"#NAME?"}},{"$f":"_xll.RiskData('Risk Summary'!K$48,$A1639)/1000","v":{"$error":"#NAME?"}},{"$f":"_xll.RiskData('Risk Summary'!L$48,$A1639)/1000","v":{"$error":"#NAME?"}},null,null,{"$f":"(_xll.RiskData(NR_to_Cash!C$18,$A1639))/1000","v":{"$error":"#NAME?"}},{"$f":"(_xll.RiskData(NR_to_Cash!D$18,$A1639))/1000","v":{"$error":"#NAME?"}},{"$f":"(_xll.RiskData(NR_to_Cash!E$18,$A1639))/1000","v":{"$error":"#NAME?"}}]
[1633,{"$f":"_xll.RiskData('Risk Summary'!J$48,$A1640)/1000","v":{"$error":"#NAME?"}},{"$f":"_xll.RiskData('Risk Summary'!K$48,$A1640)/1000","v":{"$error":"#NAME?"}},{"$f":"_xll.RiskData('Risk Summary'!L$48,$A1640)/1000","v":{"$error":"#NAME?"}},null,null,{"$f":"(_xll.RiskData(NR_to_Cash!C$18,$A1640))/1000","v":{"$error":"#NAME?"}},{"$f":"(_xll.RiskData(NR_to_Cash!D$18,$A1640))/1000","v":{"$error":"#NAME?"}},{"$f":"(_xll.RiskData(NR_to_Cash!E$18,$A1640))/1000","v":{"$error":"#NAME?"}}]
[1634,{"$f":"_xll.RiskData('Risk Summary'!J$48,$A1641)/1000","v":{"$error":"#NAME?"}},{"$f":"_xll.RiskData('Risk Summary'!K$48,$A1641)/1000","v":{"$error":"#NAME?"}},{"$f":"_xll.RiskData('Risk Summary'!L$48,$A1641)/1000","v":{"$error":"#NAME?"}},null,null,{"$f":"(_xll.RiskData(NR_to_Cash!C$18,$A1641))/1000","v":{"$error":"#NAME?"}},{"$f":"(_xll.RiskData(NR_to_Cash!D$18,$A1641))/1000","v":{"$error":"#NAME?"}},{"$f":"(_xll.RiskData(NR_to_Cash!E$18,$A1641))/1000","v":{"$error":"#NAME?"}}]
[1635,{"$f":"_xll.RiskData('Risk Summary'!J$48,$A1642)/1000","v":{"$error":"#NAME?"}},{"$f":"_xll.RiskData('Risk Summary'!K$48,$A1642)/1000","v":{"$error":"#NAME?"}},{"$f":"_xll.RiskData('Risk Summary'!L$48,$A1642)/1000","v":{"$error":"#NAME?"}},null,null,{"$f":"(_xll.RiskData(NR_to_Cash!C$18,$A1642))/1000","v":{"$error":"#NAME?"}},{"$f":"(_xll.RiskData(NR_to_Cash!D$18,$A1642))/1000","v":{"$error":"#NAME?"}},{"$f":"(_xll.RiskData(NR_to_Cash!E$18,$A1642))/1000","v":{"$error":"#NAME?"}}]
[1636,{"$f":"_xll.RiskData('Risk Summary'!J$48,$A1643)/1000","v":{"$error":"#NAME?"}},{"$f":"_xll.RiskData('Risk Summary'!K$48,$A1643)/1000","v":{"$error":"#NAME?"}},{"$f":"_xll.RiskData('Risk Summary'!L$48,$A1643)/1000","v":{"$error":"#NAME?"}},null,null,{"$f":"(_xll.RiskData(NR_to_Cash!C$18,$A1643))/1000","v":{"$error":"#NAME?"}},{"$f":"(_xll.RiskData(NR_to_Cash!D$18,$A1643))/1000","v":{"$error":"#NAME?"}},{"$f":"(_xll.RiskData(NR_to_Cash!E$18,$A1643))/1000","v":{"$error":"#NAME?"}}]
[1637,{"$f":"_xll.RiskData('Risk Summary'!J$48,$A1644)/1000","v":{"$error":"#NAME?"}},{"$f":"_xll.RiskData('Risk Summary'!K$48,$A1644)/1000","v":{"$error":"#NAME?"}},{"$f":"_xll.RiskData('Risk Summary'!L$48,$A1644)/1000","v":{"$error":"#NAME?"}},null,null,{"$f":"(_xll.RiskData(NR_to_Cash!C$18,$A1644))/1000","v":{"$error":"#NAME?"}},{"$f":"(_xll.RiskData(NR_to_Cash!D$18,$A1644))/1000","v":{"$error":"#NAME?"}},{"$f":"(_xll.RiskData(NR_to_Cash!E$18,$A1644))/1000","v":{"$error":"#NAME?"}}]
[1638,{"$f":"_xll.RiskData('Risk Summary'!J$48,$A1645)/1000","v":{"$error":"#NAME?"}},{"$f":"_xll.RiskData('Risk Summary'!K$48,$A1645)/1000","v":{"$error":"#NAME?"}},{"$f":"_xll.RiskData('Risk Summary'!L$48,$A1645)/1000","v":{"$error":"#NAME?"}},null,null,{"$f":"(_xll.RiskData(NR_to_Cash!C$18,$A1645))/1000","v":{"$error":"#NAME?"}},{"$f":"(_xll.RiskData(NR_to_Cash!D$18,$A1645))/1000","v":{"$error":"#NAME?"}},{"$f":"(_xll.RiskData(NR_to_Cash!E$18,$A1645))/1000","v":{"$error":"#NAME?"}}]
[1639,{"$f":"_xll.RiskData('Risk Summary'!J$48,$A1646)/1000","v":{"$error":"#NAME?"}},{"$f":"_xll.RiskData('Risk Summary'!K$48,$A1646)/1000","v":{"$error":"#NAME?"}},{"$f":"_xll.RiskData('Risk Summary'!L$48,$A1646)/1000","v":{"$error":"#NAME?"}},null,null,{"$f":"(_xll.RiskData(NR_to_Cash!C$18,$A1646))/1000","v":{"$error":"#NAME?"}},{"$f":"(_xll.RiskData(NR_to_Cash!D$18,$A1646))/1000","v":{"$error":"#NAME?"}},{"$f":"(_xll.RiskData(NR_to_Cash!E$18,$A1646))/1000","v":{"$error":"#NAME?"}}]
[1640,{"$f":"_xll.RiskData('Risk Summary'!J$48,$A1647)/1000","v":{"$error":"#NAME?"}},{"$f":"_xll.RiskData('Risk Summary'!K$48,$A1647)/1000","v":{"$error":"#NAME?"}},{"$f":"_xll.RiskData('Risk Summary'!L$48,$A1647)/1000","v":{"$error":"#NAME?"}},null,null,{"$f":"(_xll.RiskData(NR_to_Cash!C$18,$A1647))/1000","v":{"$error":"#NAME?"}},{"$f":"(_xll.RiskData(NR_to_Cash!D$18,$A1647))/1000","v":{"$error":"#NAME?"}},{"$f":"(_xll.RiskData(NR_to_Cash!E$18,$A1647))/1000","v":{"$error":"#NAME?"}}]
[1641,{"$f":"_xll.RiskData('Risk Summary'!J$48,$A1648)/1000","v":{"$error":"#NAME?"}},{"$f":"_xll.RiskData('Risk Summary'!K$48,$A1648)/1000","v":{"$error":"#NAME?"}},{"$f":"_xll.RiskData('Risk Summary'!L$48,$A1648)/1000","v":{"$error":"#NAME?"}},null,null,{"$f":"(_xll.RiskData(NR_to_Cash!C$18,$A1648))/1000","v":{"$error":"#NAME?"}},{"$f":"(_xll.RiskData(NR_to_Cash!D$18,$A1648))/1000","v":{"$error":"#NAME?"}},{"$f":"(_xll.RiskData(NR_to_Cash!E$18,$A1648))/1000","v":{"$error":"#NAME?"}}]
[1642,{"$f":"_xll.RiskData('Risk Summary'!J$48,$A1649)/1000","v":{"$error":"#NAME?"}},{"$f":"_xll.RiskData('Risk Summary'!K$48,$A1649)/1000","v":{"$error":"#NAME?"}},{"$f":"_xll.RiskData('Risk Summary'!L$48,$A1649)/1000","v":{"$error":"#NAME?"}},null,null,{"$f":"(_xll.RiskData(NR_to_Cash!C$18,$A1649))/1000","v":{"$error":"#NAME?"}},{"$f":"(_xll.RiskData(NR_to_Cash!D$18,$A1649))/1000","v":{"$error":"#NAME?"}},{"$f":"(_xll.RiskData(NR_to_Cash!E$18,$A1649))/1000","v":{"$error":"#NAME?"}}]
[1643,{"$f":"_xll.RiskData('Risk Summary'!J$48,$A1650)/1000","v":{"$error":"#NAME?"}},{"$f":"_xll.RiskData('Risk Summary'!K$48,$A1650)/1000","v":{"$error":"#NAME?"}},{"$f":"_xll.RiskData('Risk Summary'!L$48,$A1650)/1000","v":{"$error":"#NAME?"}},null,null,{"$f":"(_xll.RiskData(NR_to_Cash!C$18,$A1650))/1000","v":{"$error":"#NAME?"}},{"$f":"(_xll.RiskData(NR_to_Cash!D$18,$A1650))/1000","v":{"$error":"#NAME?"}},{"$f":"(_xll.RiskData(NR_to_Cash!E$18,$A1650))/1000","v":{"$error":"#NAME?"}}]
[1644,{"$f":"_xll.RiskData('Risk Summary'!J$48,$A1651)/1000","v":{"$error":"#NAME?"}},{"$f":"_xll.RiskData('Risk Summary'!K$48,$A1651)/1000","v":{"$error":"#NAME?"}},{"$f":"_xll.RiskData('Risk Summary'!L$48,$A1651)/1000","v":{"$error":"#NAME?"}},null,null,{"$f":"(_xll.RiskData(NR_to_Cash!C$18,$A1651))/1000","v":{"$error":"#NAME?"}},{"$f":"(_xll.RiskData(NR_to_Cash!D$18,$A1651))/1000","v":{"$error":"#NAME?"}},{"$f":"(_xll.RiskData(NR_to_Cash!E$18,$A1651))/1000","v":{"$error":"#NAME?"}}]
[1645,{"$f":"_xll.RiskData('Risk Summary'!J$48,$A1652)/1000","v":{"$error":"#NAME?"}},{"$f":"_xll.RiskData('Risk Summary'!K$48,$A1652)/1000","v":{"$error":"#NAME?"}},{"$f":"_xll.RiskData('Risk Summary'!L$48,$A1652)/1000","v":{"$error":"#NAME?"}},null,null,{"$f":"(_xll.RiskData(NR_to_Cash!C$18,$A1652))/1000","v":{"$error":"#NAME?"}},{"$f":"(_xll.RiskData(NR_to_Cash!D$18,$A1652))/1000","v":{"$error":"#NAME?"}},{"$f":"(_xll.RiskData(NR_to_Cash!E$18,$A1652))/1000","v":{"$error":"#NAME?"}}]
[1646,{"$f":"_xll.RiskData('Risk Summary'!J$48,$A1653)/1000","v":{"$error":"#NAME?"}},{"$f":"_xll.RiskData('Risk Summary'!K$48,$A1653)/1000","v":{"$error":"#NAME?"}},{"$f":"_xll.RiskData('Risk Summary'!L$48,$A1653)/1000","v":{"$error":"#NAME?"}},null,null,{"$f":"(_xll.RiskData(NR_to_Cash!C$18,$A1653))/1000","v":{"$error":"#NAME?"}},{"$f":"(_xll.RiskData(NR_to_Cash!D$18,$A1653))/1000","v":{"$error":"#NAME?"}},{"$f":"(_xll.RiskData(NR_to_Cash!E$18,$A1653))/1000","v":{"$error":"#NAME?"}}]
[1647,{"$f":"_xll.RiskData('Risk Summary'!J$48,$A1654)/1000","v":{"$error":"#NAME?"}},{"$f":"_xll.RiskData('Risk Summary'!K$48,$A1654)/1000","v":{"$error":"#NAME?"}},{"$f":"_xll.RiskData('Risk Summary'!L$48,$A1654)/1000","v":{"$error":"#NAME?"}},null,null,{"$f":"(_xll.RiskData(NR_to_Cash!C$18,$A1654))/1000","v":{"$error":"#NAME?"}},{"$f":"(_xll.RiskData(NR_to_Cash!D$18,$A1654))/1000","v":{"$error":"#NAME?"}},{"$f":"(_xll.RiskData(NR_to_Cash!E$18,$A1654))/1000","v":{"$error":"#NAME?"}}]
[1648,{"$f":"_xll.RiskData('Risk Summary'!J$48,$A1655)/1000","v":{"$error":"#NAME?"}},{"$f":"_xll.RiskData('Risk Summary'!K$48,$A1655)/1000","v":{"$error":"#NAME?"}},{"$f":"_xll.RiskData('Risk Summary'!L$48,$A1655)/1000","v":{"$error":"#NAME?"}},null,null,{"$f":"(_xll.RiskData(NR_to_Cash!C$18,$A1655))/1000","v":{"$error":"#NAME?"}},{"$f":"(_xll.RiskData(NR_to_Cash!D$18,$A1655))/1000","v":{"$error":"#NAME?"}},{"$f":"(_xll.RiskData(NR_to_Cash!E$18,$A1655))/1000","v":{"$error":"#NAME?"}}]
[1649,{"$f":"_xll.RiskData('Risk Summary'!J$48,$A1656)/1000","v":{"$error":"#NAME?"}},{"$f":"_xll.RiskData('Risk Summary'!K$48,$A1656)/1000","v":{"$error":"#NAME?"}},{"$f":"_xll.RiskData('Risk Summary'!L$48,$A1656)/1000","v":{"$error":"#NAME?"}},null,null,{"$f":"(_xll.RiskData(NR_to_Cash!C$18,$A1656))/1000","v":{"$error":"#NAME?"}},{"$f":"(_xll.RiskData(NR_to_Cash!D$18,$A1656))/1000","v":{"$error":"#NAME?"}},{"$f":"(_xll.RiskData(NR_to_Cash!E$18,$A1656))/1000","v":{"$error":"#NAME?"}}]
[1650,{"$f":"_xll.RiskData('Risk Summary'!J$48,$A1657)/1000","v":{"$error":"#NAME?"}},{"$f":"_xll.RiskData('Risk Summary'!K$48,$A1657)/1000","v":{"$error":"#NAME?"}},{"$f":"_xll.RiskData('Risk Summary'!L$48,$A1657)/1000","v":{"$error":"#NAME?"}},null,null,{"$f":"(_xll.RiskData(NR_to_Cash!C$18,$A1657))/1000","v":{"$error":"#NAME?"}},{"$f":"(_xll.RiskData(NR_to_Cash!D$18,$A1657))/1000","v":{"$error":"#NAME?"}},{"$f":"(_xll.RiskData(NR_to_Cash!E$18,$A1657))/1000","v":{"$error":"#NAME?"}}]
[1651,{"$f":"_xll.RiskData('Risk Summary'!J$48,$A1658)/1000","v":{"$error":"#NAME?"}},{"$f":"_xll.RiskData('Risk Summary'!K$48,$A1658)/1000","v":{"$error":"#NAME?"}},{"$f":"_xll.RiskData('Risk Summary'!L$48,$A1658)/1000","v":{"$error":"#NAME?"}},null,null,{"$f":"(_xll.RiskData(NR_to_Cash!C$18,$A1658))/1000","v":{"$error":"#NAME?"}},{"$f":"(_xll.RiskData(NR_to_Cash!D$18,$A1658))/1000","v":{"$error":"#NAME?"}},{"$f":"(_xll.RiskData(NR_to_Cash!E$18,$A1658))/1000","v":{"$error":"#NAME?"}}]
[1652,{"$f":"_xll.RiskData('Risk Summary'!J$48,$A1659)/1000","v":{"$error":"#NAME?"}},{"$f":"_xll.RiskData('Risk Summary'!K$48,$A1659)/1000","v":{"$error":"#NAME?"}},{"$f":"_xll.RiskData('Risk Summary'!L$48,$A1659)/1000","v":{"$error":"#NAME?"}},null,null,{"$f":"(_xll.RiskData(NR_to_Cash!C$18,$A1659))/1000","v":{"$error":"#NAME?"}},{"$f":"(_xll.RiskData(NR_to_Cash!D$18,$A1659))/1000","v":{"$error":"#NAME?"}},{"$f":"(_xll.RiskData(NR_to_Cash!E$18,$A1659))/1000","v":{"$error":"#NAME?"}}]
[1653,{"$f":"_xll.RiskData('Risk Summary'!J$48,$A1660)/1000","v":{"$error":"#NAME?"}},{"$f":"_xll.RiskData('Risk Summary'!K$48,$A1660)/1000","v":{"$error":"#NAME?"}},{"$f":"_xll.RiskData('Risk Summary'!L$48,$A1660)/1000","v":{"$error":"#NAME?"}},null,null,{"$f":"(_xll.RiskData(NR_to_Cash!C$18,$A1660))/1000","v":{"$error":"#NAME?"}},{"$f":"(_xll.RiskData(NR_to_Cash!D$18,$A1660))/1000","v":{"$error":"#NAME?"}},{"$f":"(_xll.RiskData(NR_to_Cash!E$18,$A1660))/1000","v":{"$error":"#NAME?"}}]
[1654,{"$f":"_xll.RiskData('Risk Summary'!J$48,$A1661)/1000","v":{"$error":"#NAME?"}},{"$f":"_xll.RiskData('Risk Summary'!K$48,$A1661)/1000","v":{"$error":"#NAME?"}},{"$f":"_xll.RiskData('Risk Summary'!L$48,$A1661)/1000","v":{"$error":"#NAME?"}},null,null,{"$f":"(_xll.RiskData(NR_to_Cash!C$18,$A1661))/1000","v":{"$error":"#NAME?"}},{"$f":"(_xll.RiskData(NR_to_Cash!D$18,$A1661))/1000","v":{"$error":"#NAME?"}},{"$f":"(_xll.RiskData(NR_to_Cash!E$18,$A1661))/1000","v":{"$error":"#NAME?"}}]
[1655,{"$f":"_xll.RiskData('Risk Summary'!J$48,$A1662)/1000","v":{"$error":"#NAME?"}},{"$f":"_xll.RiskData('Risk Summary'!K$48,$A1662)/1000","v":{"$error":"#NAME?"}},{"$f":"_xll.RiskData('Risk Summary'!L$48,$A1662)/1000","v":{"$error":"#NAME?"}},null,null,{"$f":"(_xll.RiskData(NR_to_Cash!C$18,$A1662))/1000","v":{"$error":"#NAME?"}},{"$f":"(_xll.RiskData(NR_to_Cash!D$18,$A1662))/1000","v":{"$error":"#NAME?"}},{"$f":"(_xll.RiskData(NR_to_Cash!E$18,$A1662))/1000","v":{"$error":"#NAME?"}}]
[1656,{"$f":"_xll.RiskData('Risk Summary'!J$48,$A1663)/1000","v":{"$error":"#NAME?"}},{"$f":"_xll.RiskData('Risk Summary'!K$48,$A1663)/1000","v":{"$error":"#NAME?"}},{"$f":"_xll.RiskData('Risk Summary'!L$48,$A1663)/1000","v":{"$error":"#NAME?"}},null,null,{"$f":"(_xll.RiskData(NR_to_Cash!C$18,$A1663))/1000","v":{"$error":"#NAME?"}},{"$f":"(_xll.RiskData(NR_to_Cash!D$18,$A1663))/1000","v":{"$error":"#NAME?"}},{"$f":"(_xll.RiskData(NR_to_Cash!E$18,$A1663))/1000","v":{"$error":"#NAME?"}}]
[1657,{"$f":"_xll.RiskData('Risk Summary'!J$48,$A1664)/1000","v":{"$error":"#NAME?"}},{"$f":"_xll.RiskData('Risk Summary'!K$48,$A1664)/1000","v":{"$error":"#NAME?"}},{"$f":"_xll.RiskData('Risk Summary'!L$48,$A1664)/1000","v":{"$error":"#NAME?"}},null,null,{"$f":"(_xll.RiskData(NR_to_Cash!C$18,$A1664))/1000","v":{"$error":"#NAME?"}},{"$f":"(_xll.RiskData(NR_to_Cash!D$18,$A1664))/1000","v":{"$error":"#NAME?"}},{"$f":"(_xll.RiskData(NR_to_Cash!E$18,$A1664))/1000","v":{"$error":"#NAME?"}}]
[1658,{"$f":"_xll.RiskData('Risk Summary'!J$48,$A1665)/1000","v":{"$error":"#NAME?"}},{"$f":"_xll.RiskData('Risk Summary'!K$48,$A1665)/1000","v":{"$error":"#NAME?"}},{"$f":"_xll.RiskData('Risk Summary'!L$48,$A1665)/1000","v":{"$error":"#NAME?"}},null,null,{"$f":"(_xll.RiskData(NR_to_Cash!C$18,$A1665))/1000","v":{"$error":"#NAME?"}},{"$f":"(_xll.RiskData(NR_to_Cash!D$18,$A1665))/1000","v":{"$error":"#NAME?"}},{"$f":"(_xll.RiskData(NR_to_Cash!E$18,$A1665))/1000","v":{"$error":"#NAME?"}}]
[1659,{"$f":"_xll.RiskData('Risk Summary'!J$48,$A1666)/1000","v":{"$error":"#NAME?"}},{"$f":"_xll.RiskData('Risk Summary'!K$48,$A1666)/1000","v":{"$error":"#NAME?"}},{"$f":"_xll.RiskData('Risk Summary'!L$48,$A1666)/1000","v":{"$error":"#NAME?"}},null,null,{"$f":"(_xll.RiskData(NR_to_Cash!C$18,$A1666))/1000","v":{"$error":"#NAME?"}},{"$f":"(_xll.RiskData(NR_to_Cash!D$18,$A1666))/1000","v":{"$error":"#NAME?"}},{"$f":"(_xll.RiskData(NR_to_Cash!E$18,$A1666))/1000","v":{"$error":"#NAME?"}}]
[1660,{"$f":"_xll.RiskData('Risk Summary'!J$48,$A1667)/1000","v":{"$error":"#NAME?"}},{"$f":"_xll.RiskData('Risk Summary'!K$48,$A1667)/1000","v":{"$error":"#NAME?"}},{"$f":"_xll.RiskData('Risk Summary'!L$48,$A1667)/1000","v":{"$error":"#NAME?"}},null,null,{"$f":"(_xll.RiskData(NR_to_Cash!C$18,$A1667))/1000","v":{"$error":"#NAME?"}},{"$f":"(_xll.RiskData(NR_to_Cash!D$18,$A1667))/1000","v":{"$error":"#NAME?"}},{"$f":"(_xll.RiskData(NR_to_Cash!E$18,$A1667))/1000","v":{"$error":"#NAME?"}}]
[1661,{"$f":"_xll.RiskData('Risk Summary'!J$48,$A1668)/1000","v":{"$error":"#NAME?"}},{"$f":"_xll.RiskData('Risk Summary'!K$48,$A1668)/1000","v":{"$error":"#NAME?"}},{"$f":"_xll.RiskData('Risk Summary'!L$48,$A1668)/1000","v":{"$error":"#NAME?"}},null,null,{"$f":"(_xll.RiskData(NR_to_Cash!C$18,$A1668))/1000","v":{"$error":"#NAME?"}},{"$f":"(_xll.RiskData(NR_to_Cash!D$18,$A1668))/1000","v":{"$error":"#NAME?"}},{"$f":"(_xll.RiskData(NR_to_Cash!E$18,$A1668))/1000","v":{"$error":"#NAME?"}}]
[1662,{"$f":"_xll.RiskData('Risk Summary'!J$48,$A1669)/1000","v":{"$error":"#NAME?"}},{"$f":"_xll.RiskData('Risk Summary'!K$48,$A1669)/1000","v":{"$error":"#NAME?"}},{"$f":"_xll.RiskData('Risk Summary'!L$48,$A1669)/1000","v":{"$error":"#NAME?"}},null,null,{"$f":"(_xll.RiskData(NR_to_Cash!C$18,$A1669))/1000","v":{"$error":"#NAME?"}},{"$f":"(_xll.RiskData(NR_to_Cash!D$18,$A1669))/1000","v":{"$error":"#NAME?"}},{"$f":"(_xll.RiskData(NR_to_Cash!E$18,$A1669))/1000","v":{"$error":"#NAME?"}}]
[1663,{"$f":"_xll.RiskData('Risk Summary'!J$48,$A1670)/1000","v":{"$error":"#NAME?"}},{"$f":"_xll.RiskData('Risk Summary'!K$48,$A1670)/1000","v":{"$error":"#NAME?"}},{"$f":"_xll.RiskData('Risk Summary'!L$48,$A1670)/1000","v":{"$error":"#NAME?"}},null,null,{"$f":"(_xll.RiskData(NR_to_Cash!C$18,$A1670))/1000","v":{"$error":"#NAME?"}},{"$f":"(_xll.RiskData(NR_to_Cash!D$18,$A1670))/1000","v":{"$error":"#NAME?"}},{"$f":"(_xll.RiskData(NR_to_Cash!E$18,$A1670))/1000","v":{"$error":"#NAME?"}}]
[1664,{"$f":"_xll.RiskData('Risk Summary'!J$48,$A1671)/1000","v":{"$error":"#NAME?"}},{"$f":"_xll.RiskData('Risk Summary'!K$48,$A1671)/1000","v":{"$error":"#NAME?"}},{"$f":"_xll.RiskData('Risk Summary'!L$48,$A1671)/1000","v":{"$error":"#NAME?"}},null,null,{"$f":"(_xll.RiskData(NR_to_Cash!C$18,$A1671))/1000","v":{"$error":"#NAME?"}},{"$f":"(_xll.RiskData(NR_to_Cash!D$18,$A1671))/1000","v":{"$error":"#NAME?"}},{"$f":"(_xll.RiskData(NR_to_Cash!E$18,$A1671))/1000","v":{"$error":"#NAME?"}}]
[1665,{"$f":"_xll.RiskData('Risk Summary'!J$48,$A1672)/1000","v":{"$error":"#NAME?"}},{"$f":"_xll.RiskData('Risk Summary'!K$48,$A1672)/1000","v":{"$error":"#NAME?"}},{"$f":"_xll.RiskData('Risk Summary'!L$48,$A1672)/1000","v":{"$error":"#NAME?"}},null,null,{"$f":"(_xll.RiskData(NR_to_Cash!C$18,$A1672))/1000","v":{"$error":"#NAME?"}},{"$f":"(_xll.RiskData(NR_to_Cash!D$18,$A1672))/1000","v":{"$error":"#NAME?"}},{"$f":"(_xll.RiskData(NR_to_Cash!E$18,$A1672))/1000","v":{"$error":"#NAME?"}}]
[1666,{"$f":"_xll.RiskData('Risk Summary'!J$48,$A1673)/1000","v":{"$error":"#NAME?"}},{"$f":"_xll.RiskData('Risk Summary'!K$48,$A1673)/1000","v":{"$error":"#NAME?"}},{"$f":"_xll.RiskData('Risk Summary'!L$48,$A1673)/1000","v":{"$error":"#NAME?"}},null,null,{"$f":"(_xll.RiskData(NR_to_Cash!C$18,$A1673))/1000","v":{"$error":"#NAME?"}},{"$f":"(_xll.RiskData(NR_to_Cash!D$18,$A1673))/1000","v":{"$error":"#NAME?"}},{"$f":"(_xll.RiskData(NR_to_Cash!E$18,$A1673))/1000","v":{"$error":"#NAME?"}}]
[1667,{"$f":"_xll.RiskData('Risk Summary'!J$48,$A1674)/1000","v":{"$error":"#NAME?"}},{"$f":"_xll.RiskData('Risk Summary'!K$48,$A1674)/1000","v":{"$error":"#NAME?"}},{"$f":"_xll.RiskData('Risk Summary'!L$48,$A1674)/1000","v":{"$error":"#NAME?"}},null,null,{"$f":"(_xll.RiskData(NR_to_Cash!C$18,$A1674))/1000","v":{"$error":"#NAME?"}},{"$f":"(_xll.RiskData(NR_to_Cash!D$18,$A1674))/1000","v":{"$error":"#NAME?"}},{"$f":"(_xll.RiskData(NR_to_Cash!E$18,$A1674))/1000","v":{"$error":"#NAME?"}}]
[1668,{"$f":"_xll.RiskData('Risk Summary'!J$48,$A1675)/1000","v":{"$error":"#NAME?"}},{"$f":"_xll.RiskData('Risk Summary'!K$48,$A1675)/1000","v":{"$error":"#NAME?"}},{"$f":"_xll.RiskData('Risk Summary'!L$48,$A1675)/1000","v":{"$error":"#NAME?"}},null,null,{"$f":"(_xll.RiskData(NR_to_Cash!C$18,$A1675))/1000","v":{"$error":"#NAME?"}},{"$f":"(_xll.RiskData(NR_to_Cash!D$18,$A1675))/1000","v":{"$error":"#NAME?"}},{"$f":"(_xll.RiskData(NR_to_Cash!E$18,$A1675))/1000","v":{"$error":"#NAME?"}}]
[1669,{"$f":"_xll.RiskData('Risk Summary'!J$48,$A1676)/1000","v":{"$error":"#NAME?"}},{"$f":"_xll.RiskData('Risk Summary'!K$48,$A1676)/1000","v":{"$error":"#NAME?"}},{"$f":"_xll.RiskData('Risk Summary'!L$48,$A1676)/1000","v":{"$error":"#NAME?"}},null,null,{"$f":"(_xll.RiskData(NR_to_Cash!C$18,$A1676))/1000","v":{"$error":"#NAME?"}},{"$f":"(_xll.RiskData(NR_to_Cash!D$18,$A1676))/1000","v":{"$error":"#NAME?"}},{"$f":"(_xll.RiskData(NR_to_Cash!E$18,$A1676))/1000","v":{"$error":"#NAME?"}}]
[1670,{"$f":"_xll.RiskData('Risk Summary'!J$48,$A1677)/1000","v":{"$error":"#NAME?"}},{"$f":"_xll.RiskData('Risk Summary'!K$48,$A1677)/1000","v":{"$error":"#NAME?"}},{"$f":"_xll.RiskData('Risk Summary'!L$48,$A1677)/1000","v":{"$error":"#NAME?"}},null,null,{"$f":"(_xll.RiskData(NR_to_Cash!C$18,$A1677))/1000","v":{"$error":"#NAME?"}},{"$f":"(_xll.RiskData(NR_to_Cash!D$18,$A1677))/1000","v":{"$error":"#NAME?"}},{"$f":"(_xll.RiskData(NR_to_Cash!E$18,$A1677))/1000","v":{"$error":"#NAME?"}}]
[1671,{"$f":"_xll.RiskData('Risk Summary'!J$48,$A1678)/1000","v":{"$error":"#NAME?"}},{"$f":"_xll.RiskData('Risk Summary'!K$48,$A1678)/1000","v":{"$error":"#NAME?"}},{"$f":"_xll.RiskData('Risk Summary'!L$48,$A1678)/1000","v":{"$error":"#NAME?"}},null,null,{"$f":"(_xll.RiskData(NR_to_Cash!C$18,$A1678))/1000","v":{"$error":"#NAME?"}},{"$f":"(_xll.RiskData(NR_to_Cash!D$18,$A1678))/1000","v":{"$error":"#NAME?"}},{"$f":"(_xll.RiskData(NR_to_Cash!E$18,$A1678))/1000","v":{"$error":"#NAME?"}}]
[1672,{"$f":"_xll.RiskData('Risk Summary'!J$48,$A1679)/1000","v":{"$error":"#NAME?"}},{"$f":"_xll.RiskData('Risk Summary'!K$48,$A1679)/1000","v":{"$error":"#NAME?"}},{"$f":"_xll.RiskData('Risk Summary'!L$48,$A1679)/1000","v":{"$error":"#NAME?"}},null,null,{"$f":"(_xll.RiskData(NR_to_Cash!C$18,$A1679))/1000","v":{"$error":"#NAME?"}},{"$f":"(_xll.RiskData(NR_to_Cash!D$18,$A1679))/1000","v":{"$error":"#NAME?"}},{"$f":"(_xll.RiskData(NR_to_Cash!E$18,$A1679))/1000","v":{"$error":"#NAME?"}}]
[1673,{"$f":"_xll.RiskData('Risk Summary'!J$48,$A1680)/1000","v":{"$error":"#NAME?"}},{"$f":"_xll.RiskData('Risk Summary'!K$48,$A1680)/1000","v":{"$error":"#NAME?"}},{"$f":"_xll.RiskData('Risk Summary'!L$48,$A1680)/1000","v":{"$error":"#NAME?"}},null,null,{"$f":"(_xll.RiskData(NR_to_Cash!C$18,$A1680))/1000","v":{"$error":"#NAME?"}},{"$f":"(_xll.RiskData(NR_to_Cash!D$18,$A1680))/1000","v":{"$error":"#NAME?"}},{"$f":"(_xll.RiskData(NR_to_Cash!E$18,$A1680))/1000","v":{"$error":"#NAME?"}}]
[1674,{"$f":"_xll.RiskData('Risk Summary'!J$48,$A1681)/1000","v":{"$error":"#NAME?"}},{"$f":"_xll.RiskData('Risk Summary'!K$48,$A1681)/1000","v":{"$error":"#NAME?"}},{"$f":"_xll.RiskData('Risk Summary'!L$48,$A1681)/1000","v":{"$error":"#NAME?"}},null,null,{"$f":"(_xll.RiskData(NR_to_Cash!C$18,$A1681))/1000","v":{"$error":"#NAME?"}},{"$f":"(_xll.RiskData(NR_to_Cash!D$18,$A1681))/1000","v":{"$error":"#NAME?"}},{"$f":"(_xll.RiskData(NR_to_Cash!E$18,$A1681))/1000","v":{"$error":"#NAME?"}}]
[1675,{"$f":"_xll.RiskData('Risk Summary'!J$48,$A1682)/1000","v":{"$error":"#NAME?"}},{"$f":"_xll.RiskData('Risk Summary'!K$48,$A1682)/1000","v":{"$error":"#NAME?"}},{"$f":"_xll.RiskData('Risk Summary'!L$48,$A1682)/1000","v":{"$error":"#NAME?"}},null,null,{"$f":"(_xll.RiskData(NR_to_Cash!C$18,$A1682))/1000","v":{"$error":"#NAME?"}},{"$f":"(_xll.RiskData(NR_to_Cash!D$18,$A1682))/1000","v":{"$error":"#NAME?"}},{"$f":"(_xll.RiskData(NR_to_Cash!E$18,$A1682))/1000","v":{"$error":"#NAME?"}}]
[1676,{"$f":"_xll.RiskData('Risk Summary'!J$48,$A1683)/1000","v":{"$error":"#NAME?"}},{"$f":"_xll.RiskData('Risk Summary'!K$48,$A1683)/1000","v":{"$error":"#NAME?"}},{"$f":"_xll.RiskData('Risk Summary'!L$48,$A1683)/1000","v":{"$error":"#NAME?"}},null,null,{"$f":"(_xll.RiskData(NR_to_Cash!C$18,$A1683))/1000","v":{"$error":"#NAME?"}},{"$f":"(_xll.RiskData(NR_to_Cash!D$18,$A1683))/1000","v":{"$error":"#NAME?"}},{"$f":"(_xll.RiskData(NR_to_Cash!E$18,$A1683))/1000","v":{"$error":"#NAME?"}}]
[1677,{"$f":"_xll.RiskData('Risk Summary'!J$48,$A1684)/1000","v":{"$error":"#NAME?"}},{"$f":"_xll.RiskData('Risk Summary'!K$48,$A1684)/1000","v":{"$error":"#NAME?"}},{"$f":"_xll.RiskData('Risk Summary'!L$48,$A1684)/1000","v":{"$error":"#NAME?"}},null,null,{"$f":"(_xll.RiskData(NR_to_Cash!C$18,$A1684))/1000","v":{"$error":"#NAME?"}},{"$f":"(_xll.RiskData(NR_to_Cash!D$18,$A1684))/1000","v":{"$error":"#NAME?"}},{"$f":"(_xll.RiskData(NR_to_Cash!E$18,$A1684))/1000","v":{"$error":"#NAME?"}}]
[1678,{"$f":"_xll.RiskData('Risk Summary'!J$48,$A1685)/1000","v":{"$error":"#NAME?"}},{"$f":"_xll.RiskData('Risk Summary'!K$48,$A1685)/1000","v":{"$error":"#NAME?"}},{"$f":"_xll.RiskData('Risk Summary'!L$48,$A1685)/1000","v":{"$error":"#NAME?"}},null,null,{"$f":"(_xll.RiskData(NR_to_Cash!C$18,$A1685))/1000","v":{"$error":"#NAME?"}},{"$f":"(_xll.RiskData(NR_to_Cash!D$18,$A1685))/1000","v":{"$error":"#NAME?"}},{"$f":"(_xll.RiskData(NR_to_Cash!E$18,$A1685))/1000","v":{"$error":"#NAME?"}}]
[1679,{"$f":"_xll.RiskData('Risk Summary'!J$48,$A1686)/1000","v":{"$error":"#NAME?"}},{"$f":"_xll.RiskData('Risk Summary'!K$48,$A1686)/1000","v":{"$error":"#NAME?"}},{"$f":"_xll.RiskData('Risk Summary'!L$48,$A1686)/1000","v":{"$error":"#NAME?"}},null,null,{"$f":"(_xll.RiskData(NR_to_Cash!C$18,$A1686))/1000","v":{"$error":"#NAME?"}},{"$f":"(_xll.RiskData(NR_to_Cash!D$18,$A1686))/1000","v":{"$error":"#NAME?"}},{"$f":"(_xll.RiskData(NR_to_Cash!E$18,$A1686))/1000","v":{"$error":"#NAME?"}}]
[1680,{"$f":"_xll.RiskData('Risk Summary'!J$48,$A1687)/1000","v":{"$error":"#NAME?"}},{"$f":"_xll.RiskData('Risk Summary'!K$48,$A1687)/1000","v":{"$error":"#NAME?"}},{"$f":"_xll.RiskData('Risk Summary'!L$48,$A1687)/1000","v":{"$error":"#NAME?"}},null,null,{"$f":"(_xll.RiskData(NR_to_Cash!C$18,$A1687))/1000","v":{"$error":"#NAME?"}},{"$f":"(_xll.RiskData(NR_to_Cash!D$18,$A1687))/1000","v":{"$error":"#NAME?"}},{"$f":"(_xll.RiskData(NR_to_Cash!E$18,$A1687))/1000","v":{"$error":"#NAME?"}}]
[1681,{"$f":"_xll.RiskData('Risk Summary'!J$48,$A1688)/1000","v":{"$error":"#NAME?"}},{"$f":"_xll.RiskData('Risk Summary'!K$48,$A1688)/1000","v":{"$error":"#NAME?"}},{"$f":"_xll.RiskData('Risk Summary'!L$48,$A1688)/1000","v":{"$error":"#NAME?"}},null,null,{"$f":"(_xll.RiskData(NR_to_Cash!C$18,$A1688))/1000","v":{"$error":"#NAME?"}},{"$f":"(_xll.RiskData(NR_to_Cash!D$18,$A1688))/1000","v":{"$error":"#NAME?"}},{"$f":"(_xll.RiskData(NR_to_Cash!E$18,$A1688))/1000","v":{"$error":"#NAME?"}}]
[1682,{"$f":"_xll.RiskData('Risk Summary'!J$48,$A1689)/1000","v":{"$error":"#NAME?"}},{"$f":"_xll.RiskData('Risk Summary'!K$48,$A1689)/1000","v":{"$error":"#NAME?"}},{"$f":"_xll.RiskData('Risk Summary'!L$48,$A1689)/1000","v":{"$error":"#NAME?"}},null,null,{"$f":"(_xll.RiskData(NR_to_Cash!C$18,$A1689))/1000","v":{"$error":"#NAME?"}},{"$f":"(_xll.RiskData(NR_to_Cash!D$18,$A1689))/1000","v":{"$error":"#NAME?"}},{"$f":"(_xll.RiskData(NR_to_Cash!E$18,$A1689))/1000","v":{"$error":"#NAME?"}}]
[1683,{"$f":"_xll.RiskData('Risk Summary'!J$48,$A1690)/1000","v":{"$error":"#NAME?"}},{"$f":"_xll.RiskData('Risk Summary'!K$48,$A1690)/1000","v":{"$error":"#NAME?"}},{"$f":"_xll.RiskData('Risk Summary'!L$48,$A1690)/1000","v":{"$error":"#NAME?"}},null,null,{"$f":"(_xll.RiskData(NR_to_Cash!C$18,$A1690))/1000","v":{"$error":"#NAME?"}},{"$f":"(_xll.RiskData(NR_to_Cash!D$18,$A1690))/1000","v":{"$error":"#NAME?"}},{"$f":"(_xll.RiskData(NR_to_Cash!E$18,$A1690))/1000","v":{"$error":"#NAME?"}}]
[1684,{"$f":"_xll.RiskData('Risk Summary'!J$48,$A1691)/1000","v":{"$error":"#NAME?"}},{"$f":"_xll.RiskData('Risk Summary'!K$48,$A1691)/1000","v":{"$error":"#NAME?"}},{"$f":"_xll.RiskData('Risk Summary'!L$48,$A1691)/1000","v":{"$error":"#NAME?"}},null,null,{"$f":"(_xll.RiskData(NR_to_Cash!C$18,$A1691))/1000","v":{"$error":"#NAME?"}},{"$f":"(_xll.RiskData(NR_to_Cash!D$18,$A1691))/1000","v":{"$error":"#NAME?"}},{"$f":"(_xll.RiskData(NR_to_Cash!E$18,$A1691))/1000","v":{"$error":"#NAME?"}}]
[1685,{"$f":"_xll.RiskData('Risk Summary'!J$48,$A1692)/1000","v":{"$error":"#NAME?"}},{"$f":"_xll.RiskData('Risk Summary'!K$48,$A1692)/1000","v":{"$error":"#NAME?"}},{"$f":"_xll.RiskData('Risk Summary'!L$48,$A1692)/1000","v":{"$error":"#NAME?"}},null,null,{"$f":"(_xll.RiskData(NR_to_Cash!C$18,$A1692))/1000","v":{"$error":"#NAME?"}},{"$f":"(_xll.RiskData(NR_to_Cash!D$18,$A1692))/1000","v":{"$error":"#NAME?"}},{"$f":"(_xll.RiskData(NR_to_Cash!E$18,$A1692))/1000","v":{"$error":"#NAME?"}}]
[1686,{"$f":"_xll.RiskData('Risk Summary'!J$48,$A1693)/1000","v":{"$error":"#NAME?"}},{"$f":"_xll.RiskData('Risk Summary'!K$48,$A1693)/1000","v":{"$error":"#NAME?"}},{"$f":"_xll.RiskData('Risk Summary'!L$48,$A1693)/1000","v":{"$error":"#NAME?"}},null,null,{"$f":"(_xll.RiskData(NR_to_Cash!C$18,$A1693))/1000","v":{"$error":"#NAME?"}},{"$f":"(_xll.RiskData(NR_to_Cash!D$18,$A1693))/1000","v":{"$error":"#NAME?"}},{"$f":"(_xll.RiskData(NR_to_Cash!E$18,$A1693))/1000","v":{"$error":"#NAME?"}}]
[1687,{"$f":"_xll.RiskData('Risk Summary'!J$48,$A1694)/1000","v":{"$error":"#NAME?"}},{"$f":"_xll.RiskData('Risk Summary'!K$48,$A1694)/1000","v":{"$error":"#NAME?"}},{"$f":"_xll.RiskData('Risk Summary'!L$48,$A1694)/1000","v":{"$error":"#NAME?"}},null,null,{"$f":"(_xll.RiskData(NR_to_Cash!C$18,$A1694))/1000","v":{"$error":"#NAME?"}},{"$f":"(_xll.RiskData(NR_to_Cash!D$18,$A1694))/1000","v":{"$error":"#NAME?"}},{"$f":"(_xll.RiskData(NR_to_Cash!E$18,$A1694))/1000","v":{"$error":"#NAME?"}}]
[1688,{"$f":"_xll.RiskData('Risk Summary'!J$48,$A1695)/1000","v":{"$error":"#NAME?"}},{"$f":"_xll.RiskData('Risk Summary'!K$48,$A1695)/1000","v":{"$error":"#NAME?"}},{"$f":"_xll.RiskData('Risk Summary'!L$48,$A1695)/1000","v":{"$error":"#NAME?"}},null,null,{"$f":"(_xll.RiskData(NR_to_Cash!C$18,$A1695))/1000","v":{"$error":"#NAME?"}},{"$f":"(_xll.RiskData(NR_to_Cash!D$18,$A1695))/1000","v":{"$error":"#NAME?"}},{"$f":"(_xll.RiskData(NR_to_Cash!E$18,$A1695))/1000","v":{"$error":"#NAME?"}}]
[1689,{"$f":"_xll.RiskData('Risk Summary'!J$48,$A1696)/1000","v":{"$error":"#NAME?"}},{"$f":"_xll.RiskData('Risk Summary'!K$48,$A1696)/1000","v":{"$error":"#NAME?"}},{"$f":"_xll.RiskData('Risk Summary'!L$48,$A1696)/1000","v":{"$error":"#NAME?"}},null,null,{"$f":"(_xll.RiskData(NR_to_Cash!C$18,$A1696))/1000","v":{"$error":"#NAME?"}},{"$f":"(_xll.RiskData(NR_to_Cash!D$18,$A1696))/1000","v":{"$error":"#NAME?"}},{"$f":"(_xll.RiskData(NR_to_Cash!E$18,$A1696))/1000","v":{"$error":"#NAME?"}}]
[1690,{"$f":"_xll.RiskData('Risk Summary'!J$48,$A1697)/1000","v":{"$error":"#NAME?"}},{"$f":"_xll.RiskData('Risk Summary'!K$48,$A1697)/1000","v":{"$error":"#NAME?"}},{"$f":"_xll.RiskData('Risk Summary'!L$48,$A1697)/1000","v":{"$error":"#NAME?"}},null,null,{"$f":"(_xll.RiskData(NR_to_Cash!C$18,$A1697))/1000","v":{"$error":"#NAME?"}},{"$f":"(_xll.RiskData(NR_to_Cash!D$18,$A1697))/1000","v":{"$error":"#NAME?"}},{"$f":"(_xll.RiskData(NR_to_Cash!E$18,$A1697))/1000","v":{"$error":"#NAME?"}}]
[1691,{"$f":"_xll.RiskData('Risk Summary'!J$48,$A1698)/1000","v":{"$error":"#NAME?"}},{"$f":"_xll.RiskData('Risk Summary'!K$48,$A1698)/1000","v":{"$error":"#NAME?"}},{"$f":"_xll.RiskData('Risk Summary'!L$48,$A1698)/1000","v":{"$error":"#NAME?"}},null,null,{"$f":"(_xll.RiskData(NR_to_Cash!C$18,$A1698))/1000","v":{"$error":"#NAME?"}},{"$f":"(_xll.RiskData(NR_to_Cash!D$18,$A1698))/1000","v":{"$error":"#NAME?"}},{"$f":"(_xll.RiskData(NR_to_Cash!E$18,$A1698))/1000","v":{"$error":"#NAME?"}}]
[1692,{"$f":"_xll.RiskData('Risk Summary'!J$48,$A1699)/1000","v":{"$error":"#NAME?"}},{"$f":"_xll.RiskData('Risk Summary'!K$48,$A1699)/1000","v":{"$error":"#NAME?"}},{"$f":"_xll.RiskData('Risk Summary'!L$48,$A1699)/1000","v":{"$error":"#NAME?"}},null,null,{"$f":"(_xll.RiskData(NR_to_Cash!C$18,$A1699))/1000","v":{"$error":"#NAME?"}},{"$f":"(_xll.RiskData(NR_to_Cash!D$18,$A1699))/1000","v":{"$error":"#NAME?"}},{"$f":"(_xll.RiskData(NR_to_Cash!E$18,$A1699))/1000","v":{"$error":"#NAME?"}}]
[1693,{"$f":"_xll.RiskData('Risk Summary'!J$48,$A1700)/1000","v":{"$error":"#NAME?"}},{"$f":"_xll.RiskData('Risk Summary'!K$48,$A1700)/1000","v":{"$error":"#NAME?"}},{"$f":"_xll.RiskData('Risk Summary'!L$48,$A1700)/1000","v":{"$error":"#NAME?"}},null,null,{"$f":"(_xll.RiskData(NR_to_Cash!C$18,$A1700))/1000","v":{"$error":"#NAME?"}},{"$f":"(_xll.RiskData(NR_to_Cash!D$18,$A1700))/1000","v":{"$error":"#NAME?"}},{"$f":"(_xll.RiskData(NR_to_Cash!E$18,$A1700))/1000","v":{"$error":"#NAME?"}}]
[1694,{"$f":"_xll.RiskData('Risk Summary'!J$48,$A1701)/1000","v":{"$error":"#NAME?"}},{"$f":"_xll.RiskData('Risk Summary'!K$48,$A1701)/1000","v":{"$error":"#NAME?"}},{"$f":"_xll.RiskData('Risk Summary'!L$48,$A1701)/1000","v":{"$error":"#NAME?"}},null,null,{"$f":"(_xll.RiskData(NR_to_Cash!C$18,$A1701))/1000","v":{"$error":"#NAME?"}},{"$f":"(_xll.RiskData(NR_to_Cash!D$18,$A1701))/1000","v":{"$error":"#NAME?"}},{"$f":"(_xll.RiskData(NR_to_Cash!E$18,$A1701))/1000","v":{"$error":"#NAME?"}}]
[1695,{"$f":"_xll.RiskData('Risk Summary'!J$48,$A1702)/1000","v":{"$error":"#NAME?"}},{"$f":"_xll.RiskData('Risk Summary'!K$48,$A1702)/1000","v":{"$error":"#NAME?"}},{"$f":"_xll.RiskData('Risk Summary'!L$48,$A1702)/1000","v":{"$error":"#NAME?"}},null,null,{"$f":"(_xll.RiskData(NR_to_Cash!C$18,$A1702))/1000","v":{"$error":"#NAME?"}},{"$f":"(_xll.RiskData(NR_to_Cash!D$18,$A1702))/1000","v":{"$error":"#NAME?"}},{"$f":"(_xll.RiskData(NR_to_Cash!E$18,$A1702))/1000","v":{"$error":"#NAME?"}}]
[1696,{"$f":"_xll.RiskData('Risk Summary'!J$48,$A1703)/1000","v":{"$error":"#NAME?"}},{"$f":"_xll.RiskData('Risk Summary'!K$48,$A1703)/1000","v":{"$error":"#NAME?"}},{"$f":"_xll.RiskData('Risk Summary'!L$48,$A1703)/1000","v":{"$error":"#NAME?"}},null,null,{"$f":"(_xll.RiskData(NR_to_Cash!C$18,$A1703))/1000","v":{"$error":"#NAME?"}},{"$f":"(_xll.RiskData(NR_to_Cash!D$18,$A1703))/1000","v":{"$error":"#NAME?"}},{"$f":"(_xll.RiskData(NR_to_Cash!E$18,$A1703))/1000","v":{"$error":"#NAME?"}}]
[1697,{"$f":"_xll.RiskData('Risk Summary'!J$48,$A1704)/1000","v":{"$error":"#NAME?"}},{"$f":"_xll.RiskData('Risk Summary'!K$48,$A1704)/1000","v":{"$error":"#NAME?"}},{"$f":"_xll.RiskData('Risk Summary'!L$48,$A1704)/1000","v":{"$error":"#NAME?"}},null,null,{"$f":"(_xll.RiskData(NR_to_Cash!C$18,$A1704))/1000","v":{"$error":"#NAME?"}},{"$f":"(_xll.RiskData(NR_to_Cash!D$18,$A1704))/1000","v":{"$error":"#NAME?"}},{"$f":"(_xll.RiskData(NR_to_Cash!E$18,$A1704))/1000","v":{"$error":"#NAME?"}}]
[1698,{"$f":"_xll.RiskData('Risk Summary'!J$48,$A1705)/1000","v":{"$error":"#NAME?"}},{"$f":"_xll.RiskData('Risk Summary'!K$48,$A1705)/1000","v":{"$error":"#NAME?"}},{"$f":"_xll.RiskData('Risk Summary'!L$48,$A1705)/1000","v":{"$error":"#NAME?"}},null,null,{"$f":"(_xll.RiskData(NR_to_Cash!C$18,$A1705))/1000","v":{"$error":"#NAME?"}},{"$f":"(_xll.RiskData(NR_to_Cash!D$18,$A1705))/1000","v":{"$error":"#NAME?"}},{"$f":"(_xll.RiskData(NR_to_Cash!E$18,$A1705))/1000","v":{"$error":"#NAME?"}}]
[1699,{"$f":"_xll.RiskData('Risk Summary'!J$48,$A1706)/1000","v":{"$error":"#NAME?"}},{"$f":"_xll.RiskData('Risk Summary'!K$48,$A1706)/1000","v":{"$error":"#NAME?"}},{"$f":"_xll.RiskData('Risk Summary'!L$48,$A1706)/1000","v":{"$error":"#NAME?"}},null,null,{"$f":"(_xll.RiskData(NR_to_Cash!C$18,$A1706))/1000","v":{"$error":"#NAME?"}},{"$f":"(_xll.RiskData(NR_to_Cash!D$18,$A1706))/1000","v":{"$error":"#NAME?"}},{"$f":"(_xll.RiskData(NR_to_Cash!E$18,$A1706))/1000","v":{"$error":"#NAME?"}}]
[1700,{"$f":"_xll.RiskData('Risk Summary'!J$48,$A1707)/1000","v":{"$error":"#NAME?"}},{"$f":"_xll.RiskData('Risk Summary'!K$48,$A1707)/1000","v":{"$error":"#NAME?"}},{"$f":"_xll.RiskData('Risk Summary'!L$48,$A1707)/1000","v":{"$error":"#NAME?"}},null,null,{"$f":"(_xll.RiskData(NR_to_Cash!C$18,$A1707))/1000","v":{"$error":"#NAME?"}},{"$f":"(_xll.RiskData(NR_to_Cash!D$18,$A1707))/1000","v":{"$error":"#NAME?"}},{"$f":"(_xll.RiskData(NR_to_Cash!E$18,$A1707))/1000","v":{"$error":"#NAME?"}}]
[1701,{"$f":"_xll.RiskData('Risk Summary'!J$48,$A1708)/1000","v":{"$error":"#NAME?"}},{"$f":"_xll.RiskData('Risk Summary'!K$48,$A1708)/1000","v":{"$error":"#NAME?"}},{"$f":"_xll.RiskData('Risk Summary'!L$48,$A1708)/1000","v":{"$error":"#NAME?"}},null,null,{"$f":"(_xll.RiskData(NR_to_Cash!C$18,$A1708))/1000","v":{"$error":"#NAME?"}},{"$f":"(_xll.RiskData(NR_to_Cash!D$18,$A1708))/1000","v":{"$error":"#NAME?"}},{"$f":"(_xll.RiskData(NR_to_Cash!E$18,$A1708))/1000","v":{"$error":"#NAME?"}}]
[1702,{"$f":"_xll.RiskData('Risk Summary'!J$48,$A1709)/1000","v":{"$error":"#NAME?"}},{"$f":"_xll.RiskData('Risk Summary'!K$48,$A1709)/1000","v":{"$error":"#NAME?"}},{"$f":"_xll.RiskData('Risk Summary'!L$48,$A1709)/1000","v":{"$error":"#NAME?"}},null,null,{"$f":"(_xll.RiskData(NR_to_Cash!C$18,$A1709))/1000","v":{"$error":"#NAME?"}},{"$f":"(_xll.RiskData(NR_to_Cash!D$18,$A1709))/1000","v":{"$error":"#NAME?"}},{"$f":"(_xll.RiskData(NR_to_Cash!E$18,$A1709))/1000","v":{"$error":"#NAME?"}}]
[1703,{"$f":"_xll.RiskData('Risk Summary'!J$48,$A1710)/1000","v":{"$error":"#NAME?"}},{"$f":"_xll.RiskData('Risk Summary'!K$48,$A1710)/1000","v":{"$error":"#NAME?"}},{"$f":"_xll.RiskData('Risk Summary'!L$48,$A1710)/1000","v":{"$error":"#NAME?"}},null,null,{"$f":"(_xll.RiskData(NR_to_Cash!C$18,$A1710))/1000","v":{"$error":"#NAME?"}},{"$f":"(_xll.RiskData(NR_to_Cash!D$18,$A1710))/1000","v":{"$error":"#NAME?"}},{"$f":"(_xll.RiskData(NR_to_Cash!E$18,$A1710))/1000","v":{"$error":"#NAME?"}}]
[1704,{"$f":"_xll.RiskData('Risk Summary'!J$48,$A1711)/1000","v":{"$error":"#NAME?"}},{"$f":"_xll.RiskData('Risk Summary'!K$48,$A1711)/1000","v":{"$error":"#NAME?"}},{"$f":"_xll.RiskData('Risk Summary'!L$48,$A1711)/1000","v":{"$error":"#NAME?"}},null,null,{"$f":"(_xll.RiskData(NR_to_Cash!C$18,$A1711))/1000","v":{"$error":"#NAME?"}},{"$f":"(_xll.RiskData(NR_to_Cash!D$18,$A1711))/1000","v":{"$error":"#NAME?"}},{"$f":"(_xll.RiskData(NR_to_Cash!E$18,$A1711))/1000","v":{"$error":"#NAME?"}}]
[1705,{"$f":"_xll.RiskData('Risk Summary'!J$48,$A1712)/1000","v":{"$error":"#NAME?"}},{"$f":"_xll.RiskData('Risk Summary'!K$48,$A1712)/1000","v":{"$error":"#NAME?"}},{"$f":"_xll.RiskData('Risk Summary'!L$48,$A1712)/1000","v":{"$error":"#NAME?"}},null,null,{"$f":"(_xll.RiskData(NR_to_Cash!C$18,$A1712))/1000","v":{"$error":"#NAME?"}},{"$f":"(_xll.RiskData(NR_to_Cash!D$18,$A1712))/1000","v":{"$error":"#NAME?"}},{"$f":"(_xll.RiskData(NR_to_Cash!E$18,$A1712))/1000","v":{"$error":"#NAME?"}}]
[1706,{"$f":"_xll.RiskData('Risk Summary'!J$48,$A1713)/1000","v":{"$error":"#NAME?"}},{"$f":"_xll.RiskData('Risk Summary'!K$48,$A1713)/1000","v":{"$error":"#NAME?"}},{"$f":"_xll.RiskData('Risk Summary'!L$48,$A1713)/1000","v":{"$error":"#NAME?"}},null,null,{"$f":"(_xll.RiskData(NR_to_Cash!C$18,$A1713))/1000","v":{"$error":"#NAME?"}},{"$f":"(_xll.RiskData(NR_to_Cash!D$18,$A1713))/1000","v":{"$error":"#NAME?"}},{"$f":"(_xll.RiskData(NR_to_Cash!E$18,$A1713))/1000","v":{"$error":"#NAME?"}}]
[1707,{"$f":"_xll.RiskData('Risk Summary'!J$48,$A1714)/1000","v":{"$error":"#NAME?"}},{"$f":"_xll.RiskData('Risk Summary'!K$48,$A1714)/1000","v":{"$error":"#NAME?"}},{"$f":"_xll.RiskData('Risk Summary'!L$48,$A1714)/1000","v":{"$error":"#NAME?"}},null,null,{"$f":"(_xll.RiskData(NR_to_Cash!C$18,$A1714))/1000","v":{"$error":"#NAME?"}},{"$f":"(_xll.RiskData(NR_to_Cash!D$18,$A1714))/1000","v":{"$error":"#NAME?"}},{"$f":"(_xll.RiskData(NR_to_Cash!E$18,$A1714))/1000","v":{"$error":"#NAME?"}}]
[1708,{"$f":"_xll.RiskData('Risk Summary'!J$48,$A1715)/1000","v":{"$error":"#NAME?"}},{"$f":"_xll.RiskData('Risk Summary'!K$48,$A1715)/1000","v":{"$error":"#NAME?"}},{"$f":"_xll.RiskData('Risk Summary'!L$48,$A1715)/1000","v":{"$error":"#NAME?"}},null,null,{"$f":"(_xll.RiskData(NR_to_Cash!C$18,$A1715))/1000","v":{"$error":"#NAME?"}},{"$f":"(_xll.RiskData(NR_to_Cash!D$18,$A1715))/1000","v":{"$error":"#NAME?"}},{"$f":"(_xll.RiskData(NR_to_Cash!E$18,$A1715))/1000","v":{"$error":"#NAME?"}}]
[1709,{"$f":"_xll.RiskData('Risk Summary'!J$48,$A1716)/1000","v":{"$error":"#NAME?"}},{"$f":"_xll.RiskData('Risk Summary'!K$48,$A1716)/1000","v":{"$error":"#NAME?"}},{"$f":"_xll.RiskData('Risk Summary'!L$48,$A1716)/1000","v":{"$error":"#NAME?"}},null,null,{"$f":"(_xll.RiskData(NR_to_Cash!C$18,$A1716))/1000","v":{"$error":"#NAME?"}},{"$f":"(_xll.RiskData(NR_to_Cash!D$18,$A1716))/1000","v":{"$error":"#NAME?"}},{"$f":"(_xll.RiskData(NR_to_Cash!E$18,$A1716))/1000","v":{"$error":"#NAME?"}}]
[1710,{"$f":"_xll.RiskData('Risk Summary'!J$48,$A1717)/1000","v":{"$error":"#NAME?"}},{"$f":"_xll.RiskData('Risk Summary'!K$48,$A1717)/1000","v":{"$error":"#NAME?"}},{"$f":"_xll.RiskData('Risk Summary'!L$48,$A1717)/1000","v":{"$error":"#NAME?"}},null,null,{"$f":"(_xll.RiskData(NR_to_Cash!C$18,$A1717))/1000","v":{"$error":"#NAME?"}},{"$f":"(_xll.RiskData(NR_to_Cash!D$18,$A1717))/1000","v":{"$error":"#NAME?"}},{"$f":"(_xll.RiskData(NR_to_Cash!E$18,$A1717))/1000","v":{"$error":"#NAME?"}}]
[1711,{"$f":"_xll.RiskData('Risk Summary'!J$48,$A1718)/1000","v":{"$error":"#NAME?"}},{"$f":"_xll.RiskData('Risk Summary'!K$48,$A1718)/1000","v":{"$error":"#NAME?"}},{"$f":"_xll.RiskData('Risk Summary'!L$48,$A1718)/1000","v":{"$error":"#NAME?"}},null,null,{"$f":"(_xll.RiskData(NR_to_Cash!C$18,$A1718))/1000","v":{"$error":"#NAME?"}},{"$f":"(_xll.RiskData(NR_to_Cash!D$18,$A1718))/1000","v":{"$error":"#NAME?"}},{"$f":"(_xll.RiskData(NR_to_Cash!E$18,$A1718))/1000","v":{"$error":"#NAME?"}}]
[1712,{"$f":"_xll.RiskData('Risk Summary'!J$48,$A1719)/1000","v":{"$error":"#NAME?"}},{"$f":"_xll.RiskData('Risk Summary'!K$48,$A1719)/1000","v":{"$error":"#NAME?"}},{"$f":"_xll.RiskData('Risk Summary'!L$48,$A1719)/1000","v":{"$error":"#NAME?"}},null,null,{"$f":"(_xll.RiskData(NR_to_Cash!C$18,$A1719))/1000","v":{"$error":"#NAME?"}},{"$f":"(_xll.RiskData(NR_to_Cash!D$18,$A1719))/1000","v":{"$error":"#NAME?"}},{"$f":"(_xll.RiskData(NR_to_Cash!E$18,$A1719))/1000","v":{"$error":"#NAME?"}}]
[1713,{"$f":"_xll.RiskData('Risk Summary'!J$48,$A1720)/1000","v":{"$error":"#NAME?"}},{"$f":"_xll.RiskData('Risk Summary'!K$48,$A1720)/1000","v":{"$error":"#NAME?"}},{"$f":"_xll.RiskData('Risk Summary'!L$48,$A1720)/1000","v":{"$error":"#NAME?"}},null,null,{"$f":"(_xll.RiskData(NR_to_Cash!C$18,$A1720))/1000","v":{"$error":"#NAME?"}},{"$f":"(_xll.RiskData(NR_to_Cash!D$18,$A1720))/1000","v":{"$error":"#NAME?"}},{"$f":"(_xll.RiskData(NR_to_Cash!E$18,$A1720))/1000","v":{"$error":"#NAME?"}}]
[1714,{"$f":"_xll.RiskData('Risk Summary'!J$48,$A1721)/1000","v":{"$error":"#NAME?"}},{"$f":"_xll.RiskData('Risk Summary'!K$48,$A1721)/1000","v":{"$error":"#NAME?"}},{"$f":"_xll.RiskData('Risk Summary'!L$48,$A1721)/1000","v":{"$error":"#NAME?"}},null,null,{"$f":"(_xll.RiskData(NR_to_Cash!C$18,$A1721))/1000","v":{"$error":"#NAME?"}},{"$f":"(_xll.RiskData(NR_to_Cash!D$18,$A1721))/1000","v":{"$error":"#NAME?"}},{"$f":"(_xll.RiskData(NR_to_Cash!E$18,$A1721))/1000","v":{"$error":"#NAME?"}}]
[1715,{"$f":"_xll.RiskData('Risk Summary'!J$48,$A1722)/1000","v":{"$error":"#NAME?"}},{"$f":"_xll.RiskData('Risk Summary'!K$48,$A1722)/1000","v":{"$error":"#NAME?"}},{"$f":"_xll.RiskData('Risk Summary'!L$48,$A1722)/1000","v":{"$error":"#NAME?"}},null,null,{"$f":"(_xll.RiskData(NR_to_Cash!C$18,$A1722))/1000","v":{"$error":"#NAME?"}},{"$f":"(_xll.RiskData(NR_to_Cash!D$18,$A1722))/1000","v":{"$error":"#NAME?"}},{"$f":"(_xll.RiskData(NR_to_Cash!E$18,$A1722))/1000","v":{"$error":"#NAME?"}}]
[1716,{"$f":"_xll.RiskData('Risk Summary'!J$48,$A1723)/1000","v":{"$error":"#NAME?"}},{"$f":"_xll.RiskData('Risk Summary'!K$48,$A1723)/1000","v":{"$error":"#NAME?"}},{"$f":"_xll.RiskData('Risk Summary'!L$48,$A1723)/1000","v":{"$error":"#NAME?"}},null,null,{"$f":"(_xll.RiskData(NR_to_Cash!C$18,$A1723))/1000","v":{"$error":"#NAME?"}},{"$f":"(_xll.RiskData(NR_to_Cash!D$18,$A1723))/1000","v":{"$error":"#NAME?"}},{"$f":"(_xll.RiskData(NR_to_Cash!E$18,$A1723))/1000","v":{"$error":"#NAME?"}}]
[1717,{"$f":"_xll.RiskData('Risk Summary'!J$48,$A1724)/1000","v":{"$error":"#NAME?"}},{"$f":"_xll.RiskData('Risk Summary'!K$48,$A1724)/1000","v":{"$error":"#NAME?"}},{"$f":"_xll.RiskData('Risk Summary'!L$48,$A1724)/1000","v":{"$error":"#NAME?"}},null,null,{"$f":"(_xll.RiskData(NR_to_Cash!C$18,$A1724))/1000","v":{"$error":"#NAME?"}},{"$f":"(_xll.RiskData(NR_to_Cash!D$18,$A1724))/1000","v":{"$error":"#NAME?"}},{"$f":"(_xll.RiskData(NR_to_Cash!E$18,$A1724))/1000","v":{"$error":"#NAME?"}}]
[1718,{"$f":"_xll.RiskData('Risk Summary'!J$48,$A1725)/1000","v":{"$error":"#NAME?"}},{"$f":"_xll.RiskData('Risk Summary'!K$48,$A1725)/1000","v":{"$error":"#NAME?"}},{"$f":"_xll.RiskData('Risk Summary'!L$48,$A1725)/1000","v":{"$error":"#NAME?"}},null,null,{"$f":"(_xll.RiskData(NR_to_Cash!C$18,$A1725))/1000","v":{"$error":"#NAME?"}},{"$f":"(_xll.RiskData(NR_to_Cash!D$18,$A1725))/1000","v":{"$error":"#NAME?"}},{"$f":"(_xll.RiskData(NR_to_Cash!E$18,$A1725))/1000","v":{"$error":"#NAME?"}}]
[1719,{"$f":"_xll.RiskData('Risk Summary'!J$48,$A1726)/1000","v":{"$error":"#NAME?"}},{"$f":"_xll.RiskData('Risk Summary'!K$48,$A1726)/1000","v":{"$error":"#NAME?"}},{"$f":"_xll.RiskData('Risk Summary'!L$48,$A1726)/1000","v":{"$error":"#NAME?"}},null,null,{"$f":"(_xll.RiskData(NR_to_Cash!C$18,$A1726))/1000","v":{"$error":"#NAME?"}},{"$f":"(_xll.RiskData(NR_to_Cash!D$18,$A1726))/1000","v":{"$error":"#NAME?"}},{"$f":"(_xll.RiskData(NR_to_Cash!E$18,$A1726))/1000","v":{"$error":"#NAME?"}}]
[1720,{"$f":"_xll.RiskData('Risk Summary'!J$48,$A1727)/1000","v":{"$error":"#NAME?"}},{"$f":"_xll.RiskData('Risk Summary'!K$48,$A1727)/1000","v":{"$error":"#NAME?"}},{"$f":"_xll.RiskData('Risk Summary'!L$48,$A1727)/1000","v":{"$error":"#NAME?"}},null,null,{"$f":"(_xll.RiskData(NR_to_Cash!C$18,$A1727))/1000","v":{"$error":"#NAME?"}},{"$f":"(_xll.RiskData(NR_to_Cash!D$18,$A1727))/1000","v":{"$error":"#NAME?"}},{"$f":"(_xll.RiskData(NR_to_Cash!E$18,$A1727))/1000","v":{"$error":"#NAME?"}}]
[1721,{"$f":"_xll.RiskData('Risk Summary'!J$48,$A1728)/1000","v":{"$error":"#NAME?"}},{"$f":"_xll.RiskData('Risk Summary'!K$48,$A1728)/1000","v":{"$error":"#NAME?"}},{"$f":"_xll.RiskData('Risk Summary'!L$48,$A1728)/1000","v":{"$error":"#NAME?"}},null,null,{"$f":"(_xll.RiskData(NR_to_Cash!C$18,$A1728))/1000","v":{"$error":"#NAME?"}},{"$f":"(_xll.RiskData(NR_to_Cash!D$18,$A1728))/1000","v":{"$error":"#NAME?"}},{"$f":"(_xll.RiskData(NR_to_Cash!E$18,$A1728))/1000","v":{"$error":"#NAME?"}}]
[1722,{"$f":"_xll.RiskData('Risk Summary'!J$48,$A1729)/1000","v":{"$error":"#NAME?"}},{"$f":"_xll.RiskData('Risk Summary'!K$48,$A1729)/1000","v":{"$error":"#NAME?"}},{"$f":"_xll.RiskData('Risk Summary'!L$48,$A1729)/1000","v":{"$error":"#NAME?"}},null,null,{"$f":"(_xll.RiskData(NR_to_Cash!C$18,$A1729))/1000","v":{"$error":"#NAME?"}},{"$f":"(_xll.RiskData(NR_to_Cash!D$18,$A1729))/1000","v":{"$error":"#NAME?"}},{"$f":"(_xll.RiskData(NR_to_Cash!E$18,$A1729))/1000","v":{"$error":"#NAME?"}}]
[1723,{"$f":"_xll.RiskData('Risk Summary'!J$48,$A1730)/1000","v":{"$error":"#NAME?"}},{"$f":"_xll.RiskData('Risk Summary'!K$48,$A1730)/1000","v":{"$error":"#NAME?"}},{"$f":"_xll.RiskData('Risk Summary'!L$48,$A1730)/1000","v":{"$error":"#NAME?"}},null,null,{"$f":"(_xll.RiskData(NR_to_Cash!C$18,$A1730))/1000","v":{"$error":"#NAME?"}},{"$f":"(_xll.RiskData(NR_to_Cash!D$18,$A1730))/1000","v":{"$error":"#NAME?"}},{"$f":"(_xll.RiskData(NR_to_Cash!E$18,$A1730))/1000","v":{"$error":"#NAME?"}}]
[1724,{"$f":"_xll.RiskData('Risk Summary'!J$48,$A1731)/1000","v":{"$error":"#NAME?"}},{"$f":"_xll.RiskData('Risk Summary'!K$48,$A1731)/1000","v":{"$error":"#NAME?"}},{"$f":"_xll.RiskData('Risk Summary'!L$48,$A1731)/1000","v":{"$error":"#NAME?"}},null,null,{"$f":"(_xll.RiskData(NR_to_Cash!C$18,$A1731))/1000","v":{"$error":"#NAME?"}},{"$f":"(_xll.RiskData(NR_to_Cash!D$18,$A1731))/1000","v":{"$error":"#NAME?"}},{"$f":"(_xll.RiskData(NR_to_Cash!E$18,$A1731))/1000","v":{"$error":"#NAME?"}}]
[1725,{"$f":"_xll.RiskData('Risk Summary'!J$48,$A1732)/1000","v":{"$error":"#NAME?"}},{"$f":"_xll.RiskData('Risk Summary'!K$48,$A1732)/1000","v":{"$error":"#NAME?"}},{"$f":"_xll.RiskData('Risk Summary'!L$48,$A1732)/1000","v":{"$error":"#NAME?"}},null,null,{"$f":"(_xll.RiskData(NR_to_Cash!C$18,$A1732))/1000","v":{"$error":"#NAME?"}},{"$f":"(_xll.RiskData(NR_to_Cash!D$18,$A1732))/1000","v":{"$error":"#NAME?"}},{"$f":"(_xll.RiskData(NR_to_Cash!E$18,$A1732))/1000","v":{"$error":"#NAME?"}}]
[1726,{"$f":"_xll.RiskData('Risk Summary'!J$48,$A1733)/1000","v":{"$error":"#NAME?"}},{"$f":"_xll.RiskData('Risk Summary'!K$48,$A1733)/1000","v":{"$error":"#NAME?"}},{"$f":"_xll.RiskData('Risk Summary'!L$48,$A1733)/1000","v":{"$error":"#NAME?"}},null,null,{"$f":"(_xll.RiskData(NR_to_Cash!C$18,$A1733))/1000","v":{"$error":"#NAME?"}},{"$f":"(_xll.RiskData(NR_to_Cash!D$18,$A1733))/1000","v":{"$error":"#NAME?"}},{"$f":"(_xll.RiskData(NR_to_Cash!E$18,$A1733))/1000","v":{"$error":"#NAME?"}}]
[1727,{"$f":"_xll.RiskData('Risk Summary'!J$48,$A1734)/1000","v":{"$error":"#NAME?"}},{"$f":"_xll.RiskData('Risk Summary'!K$48,$A1734)/1000","v":{"$error":"#NAME?"}},{"$f":"_xll.RiskData('Risk Summary'!L$48,$A1734)/1000","v":{"$error":"#NAME?"}},null,null,{"$f":"(_xll.RiskData(NR_to_Cash!C$18,$A1734))/1000","v":{"$error":"#NAME?"}},{"$f":"(_xll.RiskData(NR_to_Cash!D$18,$A1734))/1000","v":{"$error":"#NAME?"}},{"$f":"(_xll.RiskData(NR_to_Cash!E$18,$A1734))/1000","v":{"$error":"#NAME?"}}]
[1728,{"$f":"_xll.RiskData('Risk Summary'!J$48,$A1735)/1000","v":{"$error":"#NAME?"}},{"$f":"_xll.RiskData('Risk Summary'!K$48,$A1735)/1000","v":{"$error":"#NAME?"}},{"$f":"_xll.RiskData('Risk Summary'!L$48,$A1735)/1000","v":{"$error":"#NAME?"}},null,null,{"$f":"(_xll.RiskData(NR_to_Cash!C$18,$A1735))/1000","v":{"$error":"#NAME?"}},{"$f":"(_xll.RiskData(NR_to_Cash!D$18,$A1735))/1000","v":{"$error":"#NAME?"}},{"$f":"(_xll.RiskData(NR_to_Cash!E$18,$A1735))/1000","v":{"$error":"#NAME?"}}]
[1729,{"$f":"_xll.RiskData('Risk Summary'!J$48,$A1736)/1000","v":{"$error":"#NAME?"}},{"$f":"_xll.RiskData('Risk Summary'!K$48,$A1736)/1000","v":{"$error":"#NAME?"}},{"$f":"_xll.RiskData('Risk Summary'!L$48,$A1736)/1000","v":{"$error":"#NAME?"}},null,null,{"$f":"(_xll.RiskData(NR_to_Cash!C$18,$A1736))/1000","v":{"$error":"#NAME?"}},{"$f":"(_xll.RiskData(NR_to_Cash!D$18,$A1736))/1000","v":{"$error":"#NAME?"}},{"$f":"(_xll.RiskData(NR_to_Cash!E$18,$A1736))/1000","v":{"$error":"#NAME?"}}]
[1730,{"$f":"_xll.RiskData('Risk Summary'!J$48,$A1737)/1000","v":{"$error":"#NAME?"}},{"$f":"_xll.RiskData('Risk Summary'!K$48,$A1737)/1000","v":{"$error":"#NAME?"}},{"$f":"_xll.RiskData('Risk Summary'!L$48,$A1737)/1000","v":{"$error":"#NAME?"}},null,null,{"$f":"(_xll.RiskData(NR_to_Cash!C$18,$A1737))/1000","v":{"$error":"#NAME?"}},{"$f":"(_xll.RiskData(NR_to_Cash!D$18,$A1737))/1000","v":{"$error":"#NAME?"}},{"$f":"(_xll.RiskData(NR_to_Cash!E$18,$A1737))/1000","v":{"$error":"#NAME?"}}]
[1731,{"$f":"_xll.RiskData('Risk Summary'!J$48,$A1738)/1000","v":{"$error":"#NAME?"}},{"$f":"_xll.RiskData('Risk Summary'!K$48,$A1738)/1000","v":{"$error":"#NAME?"}},{"$f":"_xll.RiskData('Risk Summary'!L$48,$A1738)/1000","v":{"$error":"#NAME?"}},null,null,{"$f":"(_xll.RiskData(NR_to_Cash!C$18,$A1738))/1000","v":{"$error":"#NAME?"}},{"$f":"(_xll.RiskData(NR_to_Cash!D$18,$A1738))/1000","v":{"$error":"#NAME?"}},{"$f":"(_xll.RiskData(NR_to_Cash!E$18,$A1738))/1000","v":{"$error":"#NAME?"}}]
[1732,{"$f":"_xll.RiskData('Risk Summary'!J$48,$A1739)/1000","v":{"$error":"#NAME?"}},{"$f":"_xll.RiskData('Risk Summary'!K$48,$A1739)/1000","v":{"$error":"#NAME?"}},{"$f":"_xll.RiskData('Risk Summary'!L$48,$A1739)/1000","v":{"$error":"#NAME?"}},null,null,{"$f":"(_xll.RiskData(NR_to_Cash!C$18,$A1739))/1000","v":{"$error":"#NAME?"}},{"$f":"(_xll.RiskData(NR_to_Cash!D$18,$A1739))/1000","v":{"$error":"#NAME?"}},{"$f":"(_xll.RiskData(NR_to_Cash!E$18,$A1739))/1000","v":{"$error":"#NAME?"}}]
[1733,{"$f":"_xll.RiskData('Risk Summary'!J$48,$A1740)/1000","v":{"$error":"#NAME?"}},{"$f":"_xll.RiskData('Risk Summary'!K$48,$A1740)/1000","v":{"$error":"#NAME?"}},{"$f":"_xll.RiskData('Risk Summary'!L$48,$A1740)/1000","v":{"$error":"#NAME?"}},null,null,{"$f":"(_xll.RiskData(NR_to_Cash!C$18,$A1740))/1000","v":{"$error":"#NAME?"}},{"$f":"(_xll.RiskData(NR_to_Cash!D$18,$A1740))/1000","v":{"$error":"#NAME?"}},{"$f":"(_xll.RiskData(NR_to_Cash!E$18,$A1740))/1000","v":{"$error":"#NAME?"}}]
[1734,{"$f":"_xll.RiskData('Risk Summary'!J$48,$A1741)/1000","v":{"$error":"#NAME?"}},{"$f":"_xll.RiskData('Risk Summary'!K$48,$A1741)/1000","v":{"$error":"#NAME?"}},{"$f":"_xll.RiskData('Risk Summary'!L$48,$A1741)/1000","v":{"$error":"#NAME?"}},null,null,{"$f":"(_xll.RiskData(NR_to_Cash!C$18,$A1741))/1000","v":{"$error":"#NAME?"}},{"$f":"(_xll.RiskData(NR_to_Cash!D$18,$A1741))/1000","v":{"$error":"#NAME?"}},{"$f":"(_xll.RiskData(NR_to_Cash!E$18,$A1741))/1000","v":{"$error":"#NAME?"}}]
[1735,{"$f":"_xll.RiskData('Risk Summary'!J$48,$A1742)/1000","v":{"$error":"#NAME?"}},{"$f":"_xll.RiskData('Risk Summary'!K$48,$A1742)/1000","v":{"$error":"#NAME?"}},{"$f":"_xll.RiskData('Risk Summary'!L$48,$A1742)/1000","v":{"$error":"#NAME?"}},null,null,{"$f":"(_xll.RiskData(NR_to_Cash!C$18,$A1742))/1000","v":{"$error":"#NAME?"}},{"$f":"(_xll.RiskData(NR_to_Cash!D$18,$A1742))/1000","v":{"$error":"#NAME?"}},{"$f":"(_xll.RiskData(NR_to_Cash!E$18,$A1742))/1000","v":{"$error":"#NAME?"}}]
[1736,{"$f":"_xll.RiskData('Risk Summary'!J$48,$A1743)/1000","v":{"$error":"#NAME?"}},{"$f":"_xll.RiskData('Risk Summary'!K$48,$A1743)/1000","v":{"$error":"#NAME?"}},{"$f":"_xll.RiskData('Risk Summary'!L$48,$A1743)/1000","v":{"$error":"#NAME?"}},null,null,{"$f":"(_xll.RiskData(NR_to_Cash!C$18,$A1743))/1000","v":{"$error":"#NAME?"}},{"$f":"(_xll.RiskData(NR_to_Cash!D$18,$A1743))/1000","v":{"$error":"#NAME?"}},{"$f":"(_xll.RiskData(NR_to_Cash!E$18,$A1743))/1000","v":{"$error":"#NAME?"}}]
[1737,{"$f":"_xll.RiskData('Risk Summary'!J$48,$A1744)/1000","v":{"$error":"#NAME?"}},{"$f":"_xll.RiskData('Risk Summary'!K$48,$A1744)/1000","v":{"$error":"#NAME?"}},{"$f":"_xll.RiskData('Risk Summary'!L$48,$A1744)/1000","v":{"$error":"#NAME?"}},null,null,{"$f":"(_xll.RiskData(NR_to_Cash!C$18,$A1744))/1000","v":{"$error":"#NAME?"}},{"$f":"(_xll.RiskData(NR_to_Cash!D$18,$A1744))/1000","v":{"$error":"#NAME?"}},{"$f":"(_xll.RiskData(NR_to_Cash!E$18,$A1744))/1000","v":{"$error":"#NAME?"}}]
[1738,{"$f":"_xll.RiskData('Risk Summary'!J$48,$A1745)/1000","v":{"$error":"#NAME?"}},{"$f":"_xll.RiskData('Risk Summary'!K$48,$A1745)/1000","v":{"$error":"#NAME?"}},{"$f":"_xll.RiskData('Risk Summary'!L$48,$A1745)/1000","v":{"$error":"#NAME?"}},null,null,{"$f":"(_xll.RiskData(NR_to_Cash!C$18,$A1745))/1000","v":{"$error":"#NAME?"}},{"$f":"(_xll.RiskData(NR_to_Cash!D$18,$A1745))/1000","v":{"$error":"#NAME?"}},{"$f":"(_xll.RiskData(NR_to_Cash!E$18,$A1745))/1000","v":{"$error":"#NAME?"}}]
[1739,{"$f":"_xll.RiskData('Risk Summary'!J$48,$A1746)/1000","v":{"$error":"#NAME?"}},{"$f":"_xll.RiskData('Risk Summary'!K$48,$A1746)/1000","v":{"$error":"#NAME?"}},{"$f":"_xll.RiskData('Risk Summary'!L$48,$A1746)/1000","v":{"$error":"#NAME?"}},null,null,{"$f":"(_xll.RiskData(NR_to_Cash!C$18,$A1746))/1000","v":{"$error":"#NAME?"}},{"$f":"(_xll.RiskData(NR_to_Cash!D$18,$A1746))/1000","v":{"$error":"#NAME?"}},{"$f":"(_xll.RiskData(NR_to_Cash!E$18,$A1746))/1000","v":{"$error":"#NAME?"}}]
[1740,{"$f":"_xll.RiskData('Risk Summary'!J$48,$A1747)/1000","v":{"$error":"#NAME?"}},{"$f":"_xll.RiskData('Risk Summary'!K$48,$A1747)/1000","v":{"$error":"#NAME?"}},{"$f":"_xll.RiskData('Risk Summary'!L$48,$A1747)/1000","v":{"$error":"#NAME?"}},null,null,{"$f":"(_xll.RiskData(NR_to_Cash!C$18,$A1747))/1000","v":{"$error":"#NAME?"}},{"$f":"(_xll.RiskData(NR_to_Cash!D$18,$A1747))/1000","v":{"$error":"#NAME?"}},{"$f":"(_xll.RiskData(NR_to_Cash!E$18,$A1747))/1000","v":{"$error":"#NAME?"}}]
[1741,{"$f":"_xll.RiskData('Risk Summary'!J$48,$A1748)/1000","v":{"$error":"#NAME?"}},{"$f":"_xll.RiskData('Risk Summary'!K$48,$A1748)/1000","v":{"$error":"#NAME?"}},{"$f":"_xll.RiskData('Risk Summary'!L$48,$A1748)/1000","v":{"$error":"#NAME?"}},null,null,{"$f":"(_xll.RiskData(NR_to_Cash!C$18,$A1748))/1000","v":{"$error":"#NAME?"}},{"$f":"(_xll.RiskData(NR_to_Cash!D$18,$A1748))/1000","v":{"$error":"#NAME?"}},{"$f":"(_xll.RiskData(NR_to_Cash!E$18,$A1748))/1000","v":{"$error":"#NAME?"}}]
[1742,{"$f":"_xll.RiskData('Risk Summary'!J$48,$A1749)/1000","v":{"$error":"#NAME?"}},{"$f":"_xll.RiskData('Risk Summary'!K$48,$A1749)/1000","v":{"$error":"#NAME?"}},{"$f":"_xll.RiskData('Risk Summary'!L$48,$A1749)/1000","v":{"$error":"#NAME?"}},null,null,{"$f":"(_xll.RiskData(NR_to_Cash!C$18,$A1749))/1000","v":{"$error":"#NAME?"}},{"$f":"(_xll.RiskData(NR_to_Cash!D$18,$A1749))/1000","v":{"$error":"#NAME?"}},{"$f":"(_xll.RiskData(NR_to_Cash!E$18,$A1749))/1000","v":{"$error":"#NAME?"}}]
[1743,{"$f":"_xll.RiskData('Risk Summary'!J$48,$A1750)/1000","v":{"$error":"#NAME?"}},{"$f":"_xll.RiskData('Risk Summary'!K$48,$A1750)/1000","v":{"$error":"#NAME?"}},{"$f":"_xll.RiskData('Risk Summary'!L$48,$A1750)/1000","v":{"$error":"#NAME?"}},null,null,{"$f":"(_xll.RiskData(NR_to_Cash!C$18,$A1750))/1000","v":{"$error":"#NAME?"}},{"$f":"(_xll.RiskData(NR_to_Cash!D$18,$A1750))/1000","v":{"$error":"#NAME?"}},{"$f":"(_xll.RiskData(NR_to_Cash!E$18,$A1750))/1000","v":{"$error":"#NAME?"}}]
[1744,{"$f":"_xll.RiskData('Risk Summary'!J$48,$A1751)/1000","v":{"$error":"#NAME?"}},{"$f":"_xll.RiskData('Risk Summary'!K$48,$A1751)/1000","v":{"$error":"#NAME?"}},{"$f":"_xll.RiskData('Risk Summary'!L$48,$A1751)/1000","v":{"$error":"#NAME?"}},null,null,{"$f":"(_xll.RiskData(NR_to_Cash!C$18,$A1751))/1000","v":{"$error":"#NAME?"}},{"$f":"(_xll.RiskData(NR_to_Cash!D$18,$A1751))/1000","v":{"$error":"#NAME?"}},{"$f":"(_xll.RiskData(NR_to_Cash!E$18,$A1751))/1000","v":{"$error":"#NAME?"}}]
[1745,{"$f":"_xll.RiskData('Risk Summary'!J$48,$A1752)/1000","v":{"$error":"#NAME?"}},{"$f":"_xll.RiskData('Risk Summary'!K$48,$A1752)/1000","v":{"$error":"#NAME?"}},{"$f":"_xll.RiskData('Risk Summary'!L$48,$A1752)/1000","v":{"$error":"#NAME?"}},null,null,{"$f":"(_xll.RiskData(NR_to_Cash!C$18,$A1752))/1000","v":{"$error":"#NAME?"}},{"$f":"(_xll.RiskData(NR_to_Cash!D$18,$A1752))/1000","v":{"$error":"#NAME?"}},{"$f":"(_xll.RiskData(NR_to_Cash!E$18,$A1752))/1000","v":{"$error":"#NAME?"}}]
[1746,{"$f":"_xll.RiskData('Risk Summary'!J$48,$A1753)/1000","v":{"$error":"#NAME?"}},{"$f":"_xll.RiskData('Risk Summary'!K$48,$A1753)/1000","v":{"$error":"#NAME?"}},{"$f":"_xll.RiskData('Risk Summary'!L$48,$A1753)/1000","v":{"$error":"#NAME?"}},null,null,{"$f":"(_xll.RiskData(NR_to_Cash!C$18,$A1753))/1000","v":{"$error":"#NAME?"}},{"$f":"(_xll.RiskData(NR_to_Cash!D$18,$A1753))/1000","v":{"$error":"#NAME?"}},{"$f":"(_xll.RiskData(NR_to_Cash!E$18,$A1753))/1000","v":{"$error":"#NAME?"}}]
[1747,{"$f":"_xll.RiskData('Risk Summary'!J$48,$A1754)/1000","v":{"$error":"#NAME?"}},{"$f":"_xll.RiskData('Risk Summary'!K$48,$A1754)/1000","v":{"$error":"#NAME?"}},{"$f":"_xll.RiskData('Risk Summary'!L$48,$A1754)/1000","v":{"$error":"#NAME?"}},null,null,{"$f":"(_xll.RiskData(NR_to_Cash!C$18,$A1754))/1000","v":{"$error":"#NAME?"}},{"$f":"(_xll.RiskData(NR_to_Cash!D$18,$A1754))/1000","v":{"$error":"#NAME?"}},{"$f":"(_xll.RiskData(NR_to_Cash!E$18,$A1754))/1000","v":{"$error":"#NAME?"}}]
[1748,{"$f":"_xll.RiskData('Risk Summary'!J$48,$A1755)/1000","v":{"$error":"#NAME?"}},{"$f":"_xll.RiskData('Risk Summary'!K$48,$A1755)/1000","v":{"$error":"#NAME?"}},{"$f":"_xll.RiskData('Risk Summary'!L$48,$A1755)/1000","v":{"$error":"#NAME?"}},null,null,{"$f":"(_xll.RiskData(NR_to_Cash!C$18,$A1755))/1000","v":{"$error":"#NAME?"}},{"$f":"(_xll.RiskData(NR_to_Cash!D$18,$A1755))/1000","v":{"$error":"#NAME?"}},{"$f":"(_xll.RiskData(NR_to_Cash!E$18,$A1755))/1000","v":{"$error":"#NAME?"}}]
[1749,{"$f":"_xll.RiskData('Risk Summary'!J$48,$A1756)/1000","v":{"$error":"#NAME?"}},{"$f":"_xll.RiskData('Risk Summary'!K$48,$A1756)/1000","v":{"$error":"#NAME?"}},{"$f":"_xll.RiskData('Risk Summary'!L$48,$A1756)/1000","v":{"$error":"#NAME?"}},null,null,{"$f":"(_xll.RiskData(NR_to_Cash!C$18,$A1756))/1000","v":{"$error":"#NAME?"}},{"$f":"(_xll.RiskData(NR_to_Cash!D$18,$A1756))/1000","v":{"$error":"#NAME?"}},{"$f":"(_xll.RiskData(NR_to_Cash!E$18,$A1756))/1000","v":{"$error":"#NAME?"}}]
[1750,{"$f":"_xll.RiskData('Risk Summary'!J$48,$A1757)/1000","v":{"$error":"#NAME?"}},{"$f":"_xll.RiskData('Risk Summary'!K$48,$A1757)/1000","v":{"$error":"#NAME?"}},{"$f":"_xll.RiskData('Risk Summary'!L$48,$A1757)/1000","v":{"$error":"#NAME?"}},null,null,{"$f":"(_xll.RiskData(NR_to_Cash!C$18,$A1757))/1000","v":{"$error":"#NAME?"}},{"$f":"(_xll.RiskData(NR_to_Cash!D$18,$A1757))/1000","v":{"$error":"#NAME?"}},{"$f":"(_xll.RiskData(NR_to_Cash!E$18,$A1757))/1000","v":{"$error":"#NAME?"}}]
[1751,{"$f":"_xll.RiskData('Risk Summary'!J$48,$A1758)/1000","v":{"$error":"#NAME?"}},{"$f":"_xll.RiskData('Risk Summary'!K$48,$A1758)/1000","v":{"$error":"#NAME?"}},{"$f":"_xll.RiskData('Risk Summary'!L$48,$A1758)/1000","v":{"$error":"#NAME?"}},null,null,{"$f":"(_xll.RiskData(NR_to_Cash!C$18,$A1758))/1000","v":{"$error":"#NAME?"}},{"$f":"(_xll.RiskData(NR_to_Cash!D$18,$A1758))/1000","v":{"$error":"#NAME?"}},{"$f":"(_xll.RiskData(NR_to_Cash!E$18,$A1758))/1000","v":{"$error":"#NAME?"}}]
[1752,{"$f":"_xll.RiskData('Risk Summary'!J$48,$A1759)/1000","v":{"$error":"#NAME?"}},{"$f":"_xll.RiskData('Risk Summary'!K$48,$A1759)/1000","v":{"$error":"#NAME?"}},{"$f":"_xll.RiskData('Risk Summary'!L$48,$A1759)/1000","v":{"$error":"#NAME?"}},null,null,{"$f":"(_xll.RiskData(NR_to_Cash!C$18,$A1759))/1000","v":{"$error":"#NAME?"}},{"$f":"(_xll.RiskData(NR_to_Cash!D$18,$A1759))/1000","v":{"$error":"#NAME?"}},{"$f":"(_xll.RiskData(NR_to_Cash!E$18,$A1759))/1000","v":{"$error":"#NAME?"}}]
[1753,{"$f":"_xll.RiskData('Risk Summary'!J$48,$A1760)/1000","v":{"$error":"#NAME?"}},{"$f":"_xll.RiskData('Risk Summary'!K$48,$A1760)/1000","v":{"$error":"#NAME?"}},{"$f":"_xll.RiskData('Risk Summary'!L$48,$A1760)/1000","v":{"$error":"#NAME?"}},null,null,{"$f":"(_xll.RiskData(NR_to_Cash!C$18,$A1760))/1000","v":{"$error":"#NAME?"}},{"$f":"(_xll.RiskData(NR_to_Cash!D$18,$A1760))/1000","v":{"$error":"#NAME?"}},{"$f":"(_xll.RiskData(NR_to_Cash!E$18,$A1760))/1000","v":{"$error":"#NAME?"}}]
[1754,{"$f":"_xll.RiskData('Risk Summary'!J$48,$A1761)/1000","v":{"$error":"#NAME?"}},{"$f":"_xll.RiskData('Risk Summary'!K$48,$A1761)/1000","v":{"$error":"#NAME?"}},{"$f":"_xll.RiskData('Risk Summary'!L$48,$A1761)/1000","v":{"$error":"#NAME?"}},null,null,{"$f":"(_xll.RiskData(NR_to_Cash!C$18,$A1761))/1000","v":{"$error":"#NAME?"}},{"$f":"(_xll.RiskData(NR_to_Cash!D$18,$A1761))/1000","v":{"$error":"#NAME?"}},{"$f":"(_xll.RiskData(NR_to_Cash!E$18,$A1761))/1000","v":{"$error":"#NAME?"}}]
[1755,{"$f":"_xll.RiskData('Risk Summary'!J$48,$A1762)/1000","v":{"$error":"#NAME?"}},{"$f":"_xll.RiskData('Risk Summary'!K$48,$A1762)/1000","v":{"$error":"#NAME?"}},{"$f":"_xll.RiskData('Risk Summary'!L$48,$A1762)/1000","v":{"$error":"#NAME?"}},null,null,{"$f":"(_xll.RiskData(NR_to_Cash!C$18,$A1762))/1000","v":{"$error":"#NAME?"}},{"$f":"(_xll.RiskData(NR_to_Cash!D$18,$A1762))/1000","v":{"$error":"#NAME?"}},{"$f":"(_xll.RiskData(NR_to_Cash!E$18,$A1762))/1000","v":{"$error":"#NAME?"}}]
[1756,{"$f":"_xll.RiskData('Risk Summary'!J$48,$A1763)/1000","v":{"$error":"#NAME?"}},{"$f":"_xll.RiskData('Risk Summary'!K$48,$A1763)/1000","v":{"$error":"#NAME?"}},{"$f":"_xll.RiskData('Risk Summary'!L$48,$A1763)/1000","v":{"$error":"#NAME?"}},null,null,{"$f":"(_xll.RiskData(NR_to_Cash!C$18,$A1763))/1000","v":{"$error":"#NAME?"}},{"$f":"(_xll.RiskData(NR_to_Cash!D$18,$A1763))/1000","v":{"$error":"#NAME?"}},{"$f":"(_xll.RiskData(NR_to_Cash!E$18,$A1763))/1000","v":{"$error":"#NAME?"}}]
[1757,{"$f":"_xll.RiskData('Risk Summary'!J$48,$A1764)/1000","v":{"$error":"#NAME?"}},{"$f":"_xll.RiskData('Risk Summary'!K$48,$A1764)/1000","v":{"$error":"#NAME?"}},{"$f":"_xll.RiskData('Risk Summary'!L$48,$A1764)/1000","v":{"$error":"#NAME?"}},null,null,{"$f":"(_xll.RiskData(NR_to_Cash!C$18,$A1764))/1000","v":{"$error":"#NAME?"}},{"$f":"(_xll.RiskData(NR_to_Cash!D$18,$A1764))/1000","v":{"$error":"#NAME?"}},{"$f":"(_xll.RiskData(NR_to_Cash!E$18,$A1764))/1000","v":{"$error":"#NAME?"}}]
[1758,{"$f":"_xll.RiskData('Risk Summary'!J$48,$A1765)/1000","v":{"$error":"#NAME?"}},{"$f":"_xll.RiskData('Risk Summary'!K$48,$A1765)/1000","v":{"$error":"#NAME?"}},{"$f":"_xll.RiskData('Risk Summary'!L$48,$A1765)/1000","v":{"$error":"#NAME?"}},null,null,{"$f":"(_xll.RiskData(NR_to_Cash!C$18,$A1765))/1000","v":{"$error":"#NAME?"}},{"$f":"(_xll.RiskData(NR_to_Cash!D$18,$A1765))/1000","v":{"$error":"#NAME?"}},{"$f":"(_xll.RiskData(NR_to_Cash!E$18,$A1765))/1000","v":{"$error":"#NAME?"}}]
[1759,{"$f":"_xll.RiskData('Risk Summary'!J$48,$A1766)/1000","v":{"$error":"#NAME?"}},{"$f":"_xll.RiskData('Risk Summary'!K$48,$A1766)/1000","v":{"$error":"#NAME?"}},{"$f":"_xll.RiskData('Risk Summary'!L$48,$A1766)/1000","v":{"$error":"#NAME?"}},null,null,{"$f":"(_xll.RiskData(NR_to_Cash!C$18,$A1766))/1000","v":{"$error":"#NAME?"}},{"$f":"(_xll.RiskData(NR_to_Cash!D$18,$A1766))/1000","v":{"$error":"#NAME?"}},{"$f":"(_xll.RiskData(NR_to_Cash!E$18,$A1766))/1000","v":{"$error":"#NAME?"}}]
[1760,{"$f":"_xll.RiskData('Risk Summary'!J$48,$A1767)/1000","v":{"$error":"#NAME?"}},{"$f":"_xll.RiskData('Risk Summary'!K$48,$A1767)/1000","v":{"$error":"#NAME?"}},{"$f":"_xll.RiskData('Risk Summary'!L$48,$A1767)/1000","v":{"$error":"#NAME?"}},null,null,{"$f":"(_xll.RiskData(NR_to_Cash!C$18,$A1767))/1000","v":{"$error":"#NAME?"}},{"$f":"(_xll.RiskData(NR_to_Cash!D$18,$A1767))/1000","v":{"$error":"#NAME?"}},{"$f":"(_xll.RiskData(NR_to_Cash!E$18,$A1767))/1000","v":{"$error":"#NAME?"}}]
[1761,{"$f":"_xll.RiskData('Risk Summary'!J$48,$A1768)/1000","v":{"$error":"#NAME?"}},{"$f":"_xll.RiskData('Risk Summary'!K$48,$A1768)/1000","v":{"$error":"#NAME?"}},{"$f":"_xll.RiskData('Risk Summary'!L$48,$A1768)/1000","v":{"$error":"#NAME?"}},null,null,{"$f":"(_xll.RiskData(NR_to_Cash!C$18,$A1768))/1000","v":{"$error":"#NAME?"}},{"$f":"(_xll.RiskData(NR_to_Cash!D$18,$A1768))/1000","v":{"$error":"#NAME?"}},{"$f":"(_xll.RiskData(NR_to_Cash!E$18,$A1768))/1000","v":{"$error":"#NAME?"}}]
[1762,{"$f":"_xll.RiskData('Risk Summary'!J$48,$A1769)/1000","v":{"$error":"#NAME?"}},{"$f":"_xll.RiskData('Risk Summary'!K$48,$A1769)/1000","v":{"$error":"#NAME?"}},{"$f":"_xll.RiskData('Risk Summary'!L$48,$A1769)/1000","v":{"$error":"#NAME?"}},null,null,{"$f":"(_xll.RiskData(NR_to_Cash!C$18,$A1769))/1000","v":{"$error":"#NAME?"}},{"$f":"(_xll.RiskData(NR_to_Cash!D$18,$A1769))/1000","v":{"$error":"#NAME?"}},{"$f":"(_xll.RiskData(NR_to_Cash!E$18,$A1769))/1000","v":{"$error":"#NAME?"}}]
[1763,{"$f":"_xll.RiskData('Risk Summary'!J$48,$A1770)/1000","v":{"$error":"#NAME?"}},{"$f":"_xll.RiskData('Risk Summary'!K$48,$A1770)/1000","v":{"$error":"#NAME?"}},{"$f":"_xll.RiskData('Risk Summary'!L$48,$A1770)/1000","v":{"$error":"#NAME?"}},null,null,{"$f":"(_xll.RiskData(NR_to_Cash!C$18,$A1770))/1000","v":{"$error":"#NAME?"}},{"$f":"(_xll.RiskData(NR_to_Cash!D$18,$A1770))/1000","v":{"$error":"#NAME?"}},{"$f":"(_xll.RiskData(NR_to_Cash!E$18,$A1770))/1000","v":{"$error":"#NAME?"}}]
[1764,{"$f":"_xll.RiskData('Risk Summary'!J$48,$A1771)/1000","v":{"$error":"#NAME?"}},{"$f":"_xll.RiskData('Risk Summary'!K$48,$A1771)/1000","v":{"$error":"#NAME?"}},{"$f":"_xll.RiskData('Risk Summary'!L$48,$A1771)/1000","v":{"$error":"#NAME?"}},null,null,{"$f":"(_xll.RiskData(NR_to_Cash!C$18,$A1771))/1000","v":{"$error":"#NAME?"}},{"$f":"(_xll.RiskData(NR_to_Cash!D$18,$A1771))/1000","v":{"$error":"#NAME?"}},{"$f":"(_xll.RiskData(NR_to_Cash!E$18,$A1771))/1000","v":{"$error":"#NAME?"}}]
[1765,{"$f":"_xll.RiskData('Risk Summary'!J$48,$A1772)/1000","v":{"$error":"#NAME?"}},{"$f":"_xll.RiskData('Risk Summary'!K$48,$A1772)/1000","v":{"$error":"#NAME?"}},{"$f":"_xll.RiskData('Risk Summary'!L$48,$A1772)/1000","v":{"$error":"#NAME?"}},null,null,{"$f":"(_xll.RiskData(NR_to_Cash!C$18,$A1772))/1000","v":{"$error":"#NAME?"}},{"$f":"(_xll.RiskData(NR_to_Cash!D$18,$A1772))/1000","v":{"$error":"#NAME?"}},{"$f":"(_xll.RiskData(NR_to_Cash!E$18,$A1772))/1000","v":{"$error":"#NAME?"}}]
[1766,{"$f":"_xll.RiskData('Risk Summary'!J$48,$A1773)/1000","v":{"$error":"#NAME?"}},{"$f":"_xll.RiskData('Risk Summary'!K$48,$A1773)/1000","v":{"$error":"#NAME?"}},{"$f":"_xll.RiskData('Risk Summary'!L$48,$A1773)/1000","v":{"$error":"#NAME?"}},null,null,{"$f":"(_xll.RiskData(NR_to_Cash!C$18,$A1773))/1000","v":{"$error":"#NAME?"}},{"$f":"(_xll.RiskData(NR_to_Cash!D$18,$A1773))/1000","v":{"$error":"#NAME?"}},{"$f":"(_xll.RiskData(NR_to_Cash!E$18,$A1773))/1000","v":{"$error":"#NAME?"}}]
[1767,{"$f":"_xll.RiskData('Risk Summary'!J$48,$A1774)/1000","v":{"$error":"#NAME?"}},{"$f":"_xll.RiskData('Risk Summary'!K$48,$A1774)/1000","v":{"$error":"#NAME?"}},{"$f":"_xll.RiskData('Risk Summary'!L$48,$A1774)/1000","v":{"$error":"#NAME?"}},null,null,{"$f":"(_xll.RiskData(NR_to_Cash!C$18,$A1774))/1000","v":{"$error":"#NAME?"}},{"$f":"(_xll.RiskData(NR_to_Cash!D$18,$A1774))/1000","v":{"$error":"#NAME?"}},{"$f":"(_xll.RiskData(NR_to_Cash!E$18,$A1774))/1000","v":{"$error":"#NAME?"}}]
[1768,{"$f":"_xll.RiskData('Risk Summary'!J$48,$A1775)/1000","v":{"$error":"#NAME?"}},{"$f":"_xll.RiskData('Risk Summary'!K$48,$A1775)/1000","v":{"$error":"#NAME?"}},{"$f":"_xll.RiskData('Risk Summary'!L$48,$A1775)/1000","v":{"$error":"#NAME?"}},null,null,{"$f":"(_xll.RiskData(NR_to_Cash!C$18,$A1775))/1000","v":{"$error":"#NAME?"}},{"$f":"(_xll.RiskData(NR_to_Cash!D$18,$A1775))/1000","v":{"$error":"#NAME?"}},{"$f":"(_xll.RiskData(NR_to_Cash!E$18,$A1775))/1000","v":{"$error":"#NAME?"}}]
[1769,{"$f":"_xll.RiskData('Risk Summary'!J$48,$A1776)/1000","v":{"$error":"#NAME?"}},{"$f":"_xll.RiskData('Risk Summary'!K$48,$A1776)/1000","v":{"$error":"#NAME?"}},{"$f":"_xll.RiskData('Risk Summary'!L$48,$A1776)/1000","v":{"$error":"#NAME?"}},null,null,{"$f":"(_xll.RiskData(NR_to_Cash!C$18,$A1776))/1000","v":{"$error":"#NAME?"}},{"$f":"(_xll.RiskData(NR_to_Cash!D$18,$A1776))/1000","v":{"$error":"#NAME?"}},{"$f":"(_xll.RiskData(NR_to_Cash!E$18,$A1776))/1000","v":{"$error":"#NAME?"}}]
[1770,{"$f":"_xll.RiskData('Risk Summary'!J$48,$A1777)/1000","v":{"$error":"#NAME?"}},{"$f":"_xll.RiskData('Risk Summary'!K$48,$A1777)/1000","v":{"$error":"#NAME?"}},{"$f":"_xll.RiskData('Risk Summary'!L$48,$A1777)/1000","v":{"$error":"#NAME?"}},null,null,{"$f":"(_xll.RiskData(NR_to_Cash!C$18,$A1777))/1000","v":{"$error":"#NAME?"}},{"$f":"(_xll.RiskData(NR_to_Cash!D$18,$A1777))/1000","v":{"$error":"#NAME?"}},{"$f":"(_xll.RiskData(NR_to_Cash!E$18,$A1777))/1000","v":{"$error":"#NAME?"}}]
[1771,{"$f":"_xll.RiskData('Risk Summary'!J$48,$A1778)/1000","v":{"$error":"#NAME?"}},{"$f":"_xll.RiskData('Risk Summary'!K$48,$A1778)/1000","v":{"$error":"#NAME?"}},{"$f":"_xll.RiskData('Risk Summary'!L$48,$A1778)/1000","v":{"$error":"#NAME?"}},null,null,{"$f":"(_xll.RiskData(NR_to_Cash!C$18,$A1778))/1000","v":{"$error":"#NAME?"}},{"$f":"(_xll.RiskData(NR_to_Cash!D$18,$A1778))/1000","v":{"$error":"#NAME?"}},{"$f":"(_xll.RiskData(NR_to_Cash!E$18,$A1778))/1000","v":{"$error":"#NAME?"}}]
[1772,{"$f":"_xll.RiskData('Risk Summary'!J$48,$A1779)/1000","v":{"$error":"#NAME?"}},{"$f":"_xll.RiskData('Risk Summary'!K$48,$A1779)/1000","v":{"$error":"#NAME?"}},{"$f":"_xll.RiskData('Risk Summary'!L$48,$A1779)/1000","v":{"$error":"#NAME?"}},null,null,{"$f":"(_xll.RiskData(NR_to_Cash!C$18,$A1779))/1000","v":{"$error":"#NAME?"}},{"$f":"(_xll.RiskData(NR_to_Cash!D$18,$A1779))/1000","v":{"$error":"#NAME?"}},{"$f":"(_xll.RiskData(NR_to_Cash!E$18,$A1779))/1000","v":{"$error":"#NAME?"}}]
[1773,{"$f":"_xll.RiskData('Risk Summary'!J$48,$A1780)/1000","v":{"$error":"#NAME?"}},{"$f":"_xll.RiskData('Risk Summary'!K$48,$A1780)/1000","v":{"$error":"#NAME?"}},{"$f":"_xll.RiskData('Risk Summary'!L$48,$A1780)/1000","v":{"$error":"#NAME?"}},null,null,{"$f":"(_xll.RiskData(NR_to_Cash!C$18,$A1780))/1000","v":{"$error":"#NAME?"}},{"$f":"(_xll.RiskData(NR_to_Cash!D$18,$A1780))/1000","v":{"$error":"#NAME?"}},{"$f":"(_xll.RiskData(NR_to_Cash!E$18,$A1780))/1000","v":{"$error":"#NAME?"}}]
[1774,{"$f":"_xll.RiskData('Risk Summary'!J$48,$A1781)/1000","v":{"$error":"#NAME?"}},{"$f":"_xll.RiskData('Risk Summary'!K$48,$A1781)/1000","v":{"$error":"#NAME?"}},{"$f":"_xll.RiskData('Risk Summary'!L$48,$A1781)/1000","v":{"$error":"#NAME?"}},null,null,{"$f":"(_xll.RiskData(NR_to_Cash!C$18,$A1781))/1000","v":{"$error":"#NAME?"}},{"$f":"(_xll.RiskData(NR_to_Cash!D$18,$A1781))/1000","v":{"$error":"#NAME?"}},{"$f":"(_xll.RiskData(NR_to_Cash!E$18,$A1781))/1000","v":{"$error":"#NAME?"}}]
[1775,{"$f":"_xll.RiskData('Risk Summary'!J$48,$A1782)/1000","v":{"$error":"#NAME?"}},{"$f":"_xll.RiskData('Risk Summary'!K$48,$A1782)/1000","v":{"$error":"#NAME?"}},{"$f":"_xll.RiskData('Risk Summary'!L$48,$A1782)/1000","v":{"$error":"#NAME?"}},null,null,{"$f":"(_xll.RiskData(NR_to_Cash!C$18,$A1782))/1000","v":{"$error":"#NAME?"}},{"$f":"(_xll.RiskData(NR_to_Cash!D$18,$A1782))/1000","v":{"$error":"#NAME?"}},{"$f":"(_xll.RiskData(NR_to_Cash!E$18,$A1782))/1000","v":{"$error":"#NAME?"}}]
[1776,{"$f":"_xll.RiskData('Risk Summary'!J$48,$A1783)/1000","v":{"$error":"#NAME?"}},{"$f":"_xll.RiskData('Risk Summary'!K$48,$A1783)/1000","v":{"$error":"#NAME?"}},{"$f":"_xll.RiskData('Risk Summary'!L$48,$A1783)/1000","v":{"$error":"#NAME?"}},null,null,{"$f":"(_xll.RiskData(NR_to_Cash!C$18,$A1783))/1000","v":{"$error":"#NAME?"}},{"$f":"(_xll.RiskData(NR_to_Cash!D$18,$A1783))/1000","v":{"$error":"#NAME?"}},{"$f":"(_xll.RiskData(NR_to_Cash!E$18,$A1783))/1000","v":{"$error":"#NAME?"}}]
[1777,{"$f":"_xll.RiskData('Risk Summary'!J$48,$A1784)/1000","v":{"$error":"#NAME?"}},{"$f":"_xll.RiskData('Risk Summary'!K$48,$A1784)/1000","v":{"$error":"#NAME?"}},{"$f":"_xll.RiskData('Risk Summary'!L$48,$A1784)/1000","v":{"$error":"#NAME?"}},null,null,{"$f":"(_xll.RiskData(NR_to_Cash!C$18,$A1784))/1000","v":{"$error":"#NAME?"}},{"$f":"(_xll.RiskData(NR_to_Cash!D$18,$A1784))/1000","v":{"$error":"#NAME?"}},{"$f":"(_xll.RiskData(NR_to_Cash!E$18,$A1784))/1000","v":{"$error":"#NAME?"}}]
[1778,{"$f":"_xll.RiskData('Risk Summary'!J$48,$A1785)/1000","v":{"$error":"#NAME?"}},{"$f":"_xll.RiskData('Risk Summary'!K$48,$A1785)/1000","v":{"$error":"#NAME?"}},{"$f":"_xll.RiskData('Risk Summary'!L$48,$A1785)/1000","v":{"$error":"#NAME?"}},null,null,{"$f":"(_xll.RiskData(NR_to_Cash!C$18,$A1785))/1000","v":{"$error":"#NAME?"}},{"$f":"(_xll.RiskData(NR_to_Cash!D$18,$A1785))/1000","v":{"$error":"#NAME?"}},{"$f":"(_xll.RiskData(NR_to_Cash!E$18,$A1785))/1000","v":{"$error":"#NAME?"}}]
[1779,{"$f":"_xll.RiskData('Risk Summary'!J$48,$A1786)/1000","v":{"$error":"#NAME?"}},{"$f":"_xll.RiskData('Risk Summary'!K$48,$A1786)/1000","v":{"$error":"#NAME?"}},{"$f":"_xll.RiskData('Risk Summary'!L$48,$A1786)/1000","v":{"$error":"#NAME?"}},null,null,{"$f":"(_xll.RiskData(NR_to_Cash!C$18,$A1786))/1000","v":{"$error":"#NAME?"}},{"$f":"(_xll.RiskData(NR_to_Cash!D$18,$A1786))/1000","v":{"$error":"#NAME?"}},{"$f":"(_xll.RiskData(NR_to_Cash!E$18,$A1786))/1000","v":{"$error":"#NAME?"}}]
[1780,{"$f":"_xll.RiskData('Risk Summary'!J$48,$A1787)/1000","v":{"$error":"#NAME?"}},{"$f":"_xll.RiskData('Risk Summary'!K$48,$A1787)/1000","v":{"$error":"#NAME?"}},{"$f":"_xll.RiskData('Risk Summary'!L$48,$A1787)/1000","v":{"$error":"#NAME?"}},null,null,{"$f":"(_xll.RiskData(NR_to_Cash!C$18,$A1787))/1000","v":{"$error":"#NAME?"}},{"$f":"(_xll.RiskData(NR_to_Cash!D$18,$A1787))/1000","v":{"$error":"#NAME?"}},{"$f":"(_xll.RiskData(NR_to_Cash!E$18,$A1787))/1000","v":{"$error":"#NAME?"}}]
[1781,{"$f":"_xll.RiskData('Risk Summary'!J$48,$A1788)/1000","v":{"$error":"#NAME?"}},{"$f":"_xll.RiskData('Risk Summary'!K$48,$A1788)/1000","v":{"$error":"#NAME?"}},{"$f":"_xll.RiskData('Risk Summary'!L$48,$A1788)/1000","v":{"$error":"#NAME?"}},null,null,{"$f":"(_xll.RiskData(NR_to_Cash!C$18,$A1788))/1000","v":{"$error":"#NAME?"}},{"$f":"(_xll.RiskData(NR_to_Cash!D$18,$A1788))/1000","v":{"$error":"#NAME?"}},{"$f":"(_xll.RiskData(NR_to_Cash!E$18,$A1788))/1000","v":{"$error":"#NAME?"}}]
[1782,{"$f":"_xll.RiskData('Risk Summary'!J$48,$A1789)/1000","v":{"$error":"#NAME?"}},{"$f":"_xll.RiskData('Risk Summary'!K$48,$A1789)/1000","v":{"$error":"#NAME?"}},{"$f":"_xll.RiskData('Risk Summary'!L$48,$A1789)/1000","v":{"$error":"#NAME?"}},null,null,{"$f":"(_xll.RiskData(NR_to_Cash!C$18,$A1789))/1000","v":{"$error":"#NAME?"}},{"$f":"(_xll.RiskData(NR_to_Cash!D$18,$A1789))/1000","v":{"$error":"#NAME?"}},{"$f":"(_xll.RiskData(NR_to_Cash!E$18,$A1789))/1000","v":{"$error":"#NAME?"}}]
[1783,{"$f":"_xll.RiskData('Risk Summary'!J$48,$A1790)/1000","v":{"$error":"#NAME?"}},{"$f":"_xll.RiskData('Risk Summary'!K$48,$A1790)/1000","v":{"$error":"#NAME?"}},{"$f":"_xll.RiskData('Risk Summary'!L$48,$A1790)/1000","v":{"$error":"#NAME?"}},null,null,{"$f":"(_xll.RiskData(NR_to_Cash!C$18,$A1790))/1000","v":{"$error":"#NAME?"}},{"$f":"(_xll.RiskData(NR_to_Cash!D$18,$A1790))/1000","v":{"$error":"#NAME?"}},{"$f":"(_xll.RiskData(NR_to_Cash!E$18,$A1790))/1000","v":{"$error":"#NAME?"}}]
[1784,{"$f":"_xll.RiskData('Risk Summary'!J$48,$A1791)/1000","v":{"$error":"#NAME?"}},{"$f":"_xll.RiskData('Risk Summary'!K$48,$A1791)/1000","v":{"$error":"#NAME?"}},{"$f":"_xll.RiskData('Risk Summary'!L$48,$A1791)/1000","v":{"$error":"#NAME?"}},null,null,{"$f":"(_xll.RiskData(NR_to_Cash!C$18,$A1791))/1000","v":{"$error":"#NAME?"}},{"$f":"(_xll.RiskData(NR_to_Cash!D$18,$A1791))/1000","v":{"$error":"#NAME?"}},{"$f":"(_xll.RiskData(NR_to_Cash!E$18,$A1791))/1000","v":{"$error":"#NAME?"}}]
[1785,{"$f":"_xll.RiskData('Risk Summary'!J$48,$A1792)/1000","v":{"$error":"#NAME?"}},{"$f":"_xll.RiskData('Risk Summary'!K$48,$A1792)/1000","v":{"$error":"#NAME?"}},{"$f":"_xll.RiskData('Risk Summary'!L$48,$A1792)/1000","v":{"$error":"#NAME?"}},null,null,{"$f":"(_xll.RiskData(NR_to_Cash!C$18,$A1792))/1000","v":{"$error":"#NAME?"}},{"$f":"(_xll.RiskData(NR_to_Cash!D$18,$A1792))/1000","v":{"$error":"#NAME?"}},{"$f":"(_xll.RiskData(NR_to_Cash!E$18,$A1792))/1000","v":{"$error":"#NAME?"}}]
[1786,{"$f":"_xll.RiskData('Risk Summary'!J$48,$A1793)/1000","v":{"$error":"#NAME?"}},{"$f":"_xll.RiskData('Risk Summary'!K$48,$A1793)/1000","v":{"$error":"#NAME?"}},{"$f":"_xll.RiskData('Risk Summary'!L$48,$A1793)/1000","v":{"$error":"#NAME?"}},null,null,{"$f":"(_xll.RiskData(NR_to_Cash!C$18,$A1793))/1000","v":{"$error":"#NAME?"}},{"$f":"(_xll.RiskData(NR_to_Cash!D$18,$A1793))/1000","v":{"$error":"#NAME?"}},{"$f":"(_xll.RiskData(NR_to_Cash!E$18,$A1793))/1000","v":{"$error":"#NAME?"}}]
[1787,{"$f":"_xll.RiskData('Risk Summary'!J$48,$A1794)/1000","v":{"$error":"#NAME?"}},{"$f":"_xll.RiskData('Risk Summary'!K$48,$A1794)/1000","v":{"$error":"#NAME?"}},{"$f":"_xll.RiskData('Risk Summary'!L$48,$A1794)/1000","v":{"$error":"#NAME?"}},null,null,{"$f":"(_xll.RiskData(NR_to_Cash!C$18,$A1794))/1000","v":{"$error":"#NAME?"}},{"$f":"(_xll.RiskData(NR_to_Cash!D$18,$A1794))/1000","v":{"$error":"#NAME?"}},{"$f":"(_xll.RiskData(NR_to_Cash!E$18,$A1794))/1000","v":{"$error":"#NAME?"}}]
[1788,{"$f":"_xll.RiskData('Risk Summary'!J$48,$A1795)/1000","v":{"$error":"#NAME?"}},{"$f":"_xll.RiskData('Risk Summary'!K$48,$A1795)/1000","v":{"$error":"#NAME?"}},{"$f":"_xll.RiskData('Risk Summary'!L$48,$A1795)/1000","v":{"$error":"#NAME?"}},null,null,{"$f":"(_xll.RiskData(NR_to_Cash!C$18,$A1795))/1000","v":{"$error":"#NAME?"}},{"$f":"(_xll.RiskData(NR_to_Cash!D$18,$A1795))/1000","v":{"$error":"#NAME?"}},{"$f":"(_xll.RiskData(NR_to_Cash!E$18,$A1795))/1000","v":{"$error":"#NAME?"}}]
[1789,{"$f":"_xll.RiskData('Risk Summary'!J$48,$A1796)/1000","v":{"$error":"#NAME?"}},{"$f":"_xll.RiskData('Risk Summary'!K$48,$A1796)/1000","v":{"$error":"#NAME?"}},{"$f":"_xll.RiskData('Risk Summary'!L$48,$A1796)/1000","v":{"$error":"#NAME?"}},null,null,{"$f":"(_xll.RiskData(NR_to_Cash!C$18,$A1796))/1000","v":{"$error":"#NAME?"}},{"$f":"(_xll.RiskData(NR_to_Cash!D$18,$A1796))/1000","v":{"$error":"#NAME?"}},{"$f":"(_xll.RiskData(NR_to_Cash!E$18,$A1796))/1000","v":{"$error":"#NAME?"}}]
[1790,{"$f":"_xll.RiskData('Risk Summary'!J$48,$A1797)/1000","v":{"$error":"#NAME?"}},{"$f":"_xll.RiskData('Risk Summary'!K$48,$A1797)/1000","v":{"$error":"#NAME?"}},{"$f":"_xll.RiskData('Risk Summary'!L$48,$A1797)/1000","v":{"$error":"#NAME?"}},null,null,{"$f":"(_xll.RiskData(NR_to_Cash!C$18,$A1797))/1000","v":{"$error":"#NAME?"}},{"$f":"(_xll.RiskData(NR_to_Cash!D$18,$A1797))/1000","v":{"$error":"#NAME?"}},{"$f":"(_xll.RiskData(NR_to_Cash!E$18,$A1797))/1000","v":{"$error":"#NAME?"}}]
[1791,{"$f":"_xll.RiskData('Risk Summary'!J$48,$A1798)/1000","v":{"$error":"#NAME?"}},{"$f":"_xll.RiskData('Risk Summary'!K$48,$A1798)/1000","v":{"$error":"#NAME?"}},{"$f":"_xll.RiskData('Risk Summary'!L$48,$A1798)/1000","v":{"$error":"#NAME?"}},null,null,{"$f":"(_xll.RiskData(NR_to_Cash!C$18,$A1798))/1000","v":{"$error":"#NAME?"}},{"$f":"(_xll.RiskData(NR_to_Cash!D$18,$A1798))/1000","v":{"$error":"#NAME?"}},{"$f":"(_xll.RiskData(NR_to_Cash!E$18,$A1798))/1000","v":{"$error":"#NAME?"}}]
[1792,{"$f":"_xll.RiskData('Risk Summary'!J$48,$A1799)/1000","v":{"$error":"#NAME?"}},{"$f":"_xll.RiskData('Risk Summary'!K$48,$A1799)/1000","v":{"$error":"#NAME?"}},{"$f":"_xll.RiskData('Risk Summary'!L$48,$A1799)/1000","v":{"$error":"#NAME?"}},null,null,{"$f":"(_xll.RiskData(NR_to_Cash!C$18,$A1799))/1000","v":{"$error":"#NAME?"}},{"$f":"(_xll.RiskData(NR_to_Cash!D$18,$A1799))/1000","v":{"$error":"#NAME?"}},{"$f":"(_xll.RiskData(NR_to_Cash!E$18,$A1799))/1000","v":{"$error":"#NAME?"}}]
[1793,{"$f":"_xll.RiskData('Risk Summary'!J$48,$A1800)/1000","v":{"$error":"#NAME?"}},{"$f":"_xll.RiskData('Risk Summary'!K$48,$A1800)/1000","v":{"$error":"#NAME?"}},{"$f":"_xll.RiskData('Risk Summary'!L$48,$A1800)/1000","v":{"$error":"#NAME?"}},null,null,{"$f":"(_xll.RiskData(NR_to_Cash!C$18,$A1800))/1000","v":{"$error":"#NAME?"}},{"$f":"(_xll.RiskData(NR_to_Cash!D$18,$A1800))/1000","v":{"$error":"#NAME?"}},{"$f":"(_xll.RiskData(NR_to_Cash!E$18,$A1800))/1000","v":{"$error":"#NAME?"}}]
[1794,{"$f":"_xll.RiskData('Risk Summary'!J$48,$A1801)/1000","v":{"$error":"#NAME?"}},{"$f":"_xll.RiskData('Risk Summary'!K$48,$A1801)/1000","v":{"$error":"#NAME?"}},{"$f":"_xll.RiskData('Risk Summary'!L$48,$A1801)/1000","v":{"$error":"#NAME?"}},null,null,{"$f":"(_xll.RiskData(NR_to_Cash!C$18,$A1801))/1000","v":{"$error":"#NAME?"}},{"$f":"(_xll.RiskData(NR_to_Cash!D$18,$A1801))/1000","v":{"$error":"#NAME?"}},{"$f":"(_xll.RiskData(NR_to_Cash!E$18,$A1801))/1000","v":{"$error":"#NAME?"}}]
[1795,{"$f":"_xll.RiskData('Risk Summary'!J$48,$A1802)/1000","v":{"$error":"#NAME?"}},{"$f":"_xll.RiskData('Risk Summary'!K$48,$A1802)/1000","v":{"$error":"#NAME?"}},{"$f":"_xll.RiskData('Risk Summary'!L$48,$A1802)/1000","v":{"$error":"#NAME?"}},null,null,{"$f":"(_xll.RiskData(NR_to_Cash!C$18,$A1802))/1000","v":{"$error":"#NAME?"}},{"$f":"(_xll.RiskData(NR_to_Cash!D$18,$A1802))/1000","v":{"$error":"#NAME?"}},{"$f":"(_xll.RiskData(NR_to_Cash!E$18,$A1802))/1000","v":{"$error":"#NAME?"}}]
[1796,{"$f":"_xll.RiskData('Risk Summary'!J$48,$A1803)/1000","v":{"$error":"#NAME?"}},{"$f":"_xll.RiskData('Risk Summary'!K$48,$A1803)/1000","v":{"$error":"#NAME?"}},{"$f":"_xll.RiskData('Risk Summary'!L$48,$A1803)/1000","v":{"$error":"#NAME?"}},null,null,{"$f":"(_xll.RiskData(NR_to_Cash!C$18,$A1803))/1000","v":{"$error":"#NAME?"}},{"$f":"(_xll.RiskData(NR_to_Cash!D$18,$A1803))/1000","v":{"$error":"#NAME?"}},{"$f":"(_xll.RiskData(NR_to_Cash!E$18,$A1803))/1000","v":{"$error":"#NAME?"}}]
[1797,{"$f":"_xll.RiskData('Risk Summary'!J$48,$A1804)/1000","v":{"$error":"#NAME?"}},{"$f":"_xll.RiskData('Risk Summary'!K$48,$A1804)/1000","v":{"$error":"#NAME?"}},{"$f":"_xll.RiskData('Risk Summary'!L$48,$A1804)/1000","v":{"$error":"#NAME?"}},null,null,{"$f":"(_xll.RiskData(NR_to_Cash!C$18,$A1804))/1000","v":{"$error":"#NAME?"}},{"$f":"(_xll.RiskData(NR_to_Cash!D$18,$A1804))/1000","v":{"$error":"#NAME?"}},{"$f":"(_xll.RiskData(NR_to_Cash!E$18,$A1804))/1000","v":{"$error":"#NAME?"}}]
[1798,{"$f":"_xll.RiskData('Risk Summary'!J$48,$A1805)/1000","v":{"$error":"#NAME?"}},{"$f":"_xll.RiskData('Risk Summary'!K$48,$A1805)/1000","v":{"$error":"#NAME?"}},{"$f":"_xll.RiskData('Risk Summary'!L$48,$A1805)/1000","v":{"$error":"#NAME?"}},null,null,{"$f":"(_xll.RiskData(NR_to_Cash!C$18,$A1805))/1000","v":{"$error":"#NAME?"}},{"$f":"(_xll.RiskData(NR_to_Cash!D$18,$A1805))/1000","v":{"$error":"#NAME?"}},{"$f":"(_xll.RiskData(NR_to_Cash!E$18,$A1805))/1000","v":{"$error":"#NAME?"}}]
[1799,{"$f":"_xll.RiskData('Risk Summary'!J$48,$A1806)/1000","v":{"$error":"#NAME?"}},{"$f":"_xll.RiskData('Risk Summary'!K$48,$A1806)/1000","v":{"$error":"#NAME?"}},{"$f":"_xll.RiskData('Risk Summary'!L$48,$A1806)/1000","v":{"$error":"#NAME?"}},null,null,{"$f":"(_xll.RiskData(NR_to_Cash!C$18,$A1806))/1000","v":{"$error":"#NAME?"}},{"$f":"(_xll.RiskData(NR_to_Cash!D$18,$A1806))/1000","v":{"$error":"#NAME?"}},{"$f":"(_xll.RiskData(NR_to_Cash!E$18,$A1806))/1000","v":{"$error":"#NAME?"}}]
[1800,{"$f":"_xll.RiskData('Risk Summary'!J$48,$A1807)/1000","v":{"$error":"#NAME?"}},{"$f":"_xll.RiskData('Risk Summary'!K$48,$A1807)/1000","v":{"$error":"#NAME?"}},{"$f":"_xll.RiskData('Risk Summary'!L$48,$A1807)/1000","v":{"$error":"#NAME?"}},null,null,{"$f":"(_xll.RiskData(NR_to_Cash!C$18,$A1807))/1000","v":{"$error":"#NAME?"}},{"$f":"(_xll.RiskData(NR_to_Cash!D$18,$A1807))/1000","v":{"$error":"#NAME?"}},{"$f":"(_xll.RiskData(NR_to_Cash!E$18,$A1807))/1000","v":{"$error":"#NAME?"}}]
[1801,{"$f":"_xll.RiskData('Risk Summary'!J$48,$A1808)/1000","v":{"$error":"#NAME?"}},{"$f":"_xll.RiskData('Risk Summary'!K$48,$A1808)/1000","v":{"$error":"#NAME?"}},{"$f":"_xll.RiskData('Risk Summary'!L$48,$A1808)/1000","v":{"$error":"#NAME?"}},null,null,{"$f":"(_xll.RiskData(NR_to_Cash!C$18,$A1808))/1000","v":{"$error":"#NAME?"}},{"$f":"(_xll.RiskData(NR_to_Cash!D$18,$A1808))/1000","v":{"$error":"#NAME?"}},{"$f":"(_xll.RiskData(NR_to_Cash!E$18,$A1808))/1000","v":{"$error":"#NAME?"}}]
[1802,{"$f":"_xll.RiskData('Risk Summary'!J$48,$A1809)/1000","v":{"$error":"#NAME?"}},{"$f":"_xll.RiskData('Risk Summary'!K$48,$A1809)/1000","v":{"$error":"#NAME?"}},{"$f":"_xll.RiskData('Risk Summary'!L$48,$A1809)/1000","v":{"$error":"#NAME?"}},null,null,{"$f":"(_xll.RiskData(NR_to_Cash!C$18,$A1809))/1000","v":{"$error":"#NAME?"}},{"$f":"(_xll.RiskData(NR_to_Cash!D$18,$A1809))/1000","v":{"$error":"#NAME?"}},{"$f":"(_xll.RiskData(NR_to_Cash!E$18,$A1809))/1000","v":{"$error":"#NAME?"}}]
[1803,{"$f":"_xll.RiskData('Risk Summary'!J$48,$A1810)/1000","v":{"$error":"#NAME?"}},{"$f":"_xll.RiskData('Risk Summary'!K$48,$A1810)/1000","v":{"$error":"#NAME?"}},{"$f":"_xll.RiskData('Risk Summary'!L$48,$A1810)/1000","v":{"$error":"#NAME?"}},null,null,{"$f":"(_xll.RiskData(NR_to_Cash!C$18,$A1810))/1000","v":{"$error":"#NAME?"}},{"$f":"(_xll.RiskData(NR_to_Cash!D$18,$A1810))/1000","v":{"$error":"#NAME?"}},{"$f":"(_xll.RiskData(NR_to_Cash!E$18,$A1810))/1000","v":{"$error":"#NAME?"}}]
[1804,{"$f":"_xll.RiskData('Risk Summary'!J$48,$A1811)/1000","v":{"$error":"#NAME?"}},{"$f":"_xll.RiskData('Risk Summary'!K$48,$A1811)/1000","v":{"$error":"#NAME?"}},{"$f":"_xll.RiskData('Risk Summary'!L$48,$A1811)/1000","v":{"$error":"#NAME?"}},null,null,{"$f":"(_xll.RiskData(NR_to_Cash!C$18,$A1811))/1000","v":{"$error":"#NAME?"}},{"$f":"(_xll.RiskData(NR_to_Cash!D$18,$A1811))/1000","v":{"$error":"#NAME?"}},{"$f":"(_xll.RiskData(NR_to_Cash!E$18,$A1811))/1000","v":{"$error":"#NAME?"}}]
[1805,{"$f":"_xll.RiskData('Risk Summary'!J$48,$A1812)/1000","v":{"$error":"#NAME?"}},{"$f":"_xll.RiskData('Risk Summary'!K$48,$A1812)/1000","v":{"$error":"#NAME?"}},{"$f":"_xll.RiskData('Risk Summary'!L$48,$A1812)/1000","v":{"$error":"#NAME?"}},null,null,{"$f":"(_xll.RiskData(NR_to_Cash!C$18,$A1812))/1000","v":{"$error":"#NAME?"}},{"$f":"(_xll.RiskData(NR_to_Cash!D$18,$A1812))/1000","v":{"$error":"#NAME?"}},{"$f":"(_xll.RiskData(NR_to_Cash!E$18,$A1812))/1000","v":{"$error":"#NAME?"}}]
[1806,{"$f":"_xll.RiskData('Risk Summary'!J$48,$A1813)/1000","v":{"$error":"#NAME?"}},{"$f":"_xll.RiskData('Risk Summary'!K$48,$A1813)/1000","v":{"$error":"#NAME?"}},{"$f":"_xll.RiskData('Risk Summary'!L$48,$A1813)/1000","v":{"$error":"#NAME?"}},null,null,{"$f":"(_xll.RiskData(NR_to_Cash!C$18,$A1813))/1000","v":{"$error":"#NAME?"}},{"$f":"(_xll.RiskData(NR_to_Cash!D$18,$A1813))/1000","v":{"$error":"#NAME?"}},{"$f":"(_xll.RiskData(NR_to_Cash!E$18,$A1813))/1000","v":{"$error":"#NAME?"}}]
[1807,{"$f":"_xll.RiskData('Risk Summary'!J$48,$A1814)/1000","v":{"$error":"#NAME?"}},{"$f":"_xll.RiskData('Risk Summary'!K$48,$A1814)/1000","v":{"$error":"#NAME?"}},{"$f":"_xll.RiskData('Risk Summary'!L$48,$A1814)/1000","v":{"$error":"#NAME?"}},null,null,{"$f":"(_xll.RiskData(NR_to_Cash!C$18,$A1814))/1000","v":{"$error":"#NAME?"}},{"$f":"(_xll.RiskData(NR_to_Cash!D$18,$A1814))/1000","v":{"$error":"#NAME?"}},{"$f":"(_xll.RiskData(NR_to_Cash!E$18,$A1814))/1000","v":{"$error":"#NAME?"}}]
[1808,{"$f":"_xll.RiskData('Risk Summary'!J$48,$A1815)/1000","v":{"$error":"#NAME?"}},{"$f":"_xll.RiskData('Risk Summary'!K$48,$A1815)/1000","v":{"$error":"#NAME?"}},{"$f":"_xll.RiskData('Risk Summary'!L$48,$A1815)/1000","v":{"$error":"#NAME?"}},null,null,{"$f":"(_xll.RiskData(NR_to_Cash!C$18,$A1815))/1000","v":{"$error":"#NAME?"}},{"$f":"(_xll.RiskData(NR_to_Cash!D$18,$A1815))/1000","v":{"$error":"#NAME?"}},{"$f":"(_xll.RiskData(NR_to_Cash!E$18,$A1815))/1000","v":{"$error":"#NAME?"}}]
[1809,{"$f":"_xll.RiskData('Risk Summary'!J$48,$A1816)/1000","v":{"$error":"#NAME?"}},{"$f":"_xll.RiskData('Risk Summary'!K$48,$A1816)/1000","v":{"$error":"#NAME?"}},{"$f":"_xll.RiskData('Risk Summary'!L$48,$A1816)/1000","v":{"$error":"#NAME?"}},null,null,{"$f":"(_xll.RiskData(NR_to_Cash!C$18,$A1816))/1000","v":{"$error":"#NAME?"}},{"$f":"(_xll.RiskData(NR_to_Cash!D$18,$A1816))/1000","v":{"$error":"#NAME?"}},{"$f":"(_xll.RiskData(NR_to_Cash!E$18,$A1816))/1000","v":{"$error":"#NAME?"}}]
[1810,{"$f":"_xll.RiskData('Risk Summary'!J$48,$A1817)/1000","v":{"$error":"#NAME?"}},{"$f":"_xll.RiskData('Risk Summary'!K$48,$A1817)/1000","v":{"$error":"#NAME?"}},{"$f":"_xll.RiskData('Risk Summary'!L$48,$A1817)/1000","v":{"$error":"#NAME?"}},null,null,{"$f":"(_xll.RiskData(NR_to_Cash!C$18,$A1817))/1000","v":{"$error":"#NAME?"}},{"$f":"(_xll.RiskData(NR_to_Cash!D$18,$A1817))/1000","v":{"$error":"#NAME?"}},{"$f":"(_xll.RiskData(NR_to_Cash!E$18,$A1817))/1000","v":{"$error":"#NAME?"}}]
[1811,{"$f":"_xll.RiskData('Risk Summary'!J$48,$A1818)/1000","v":{"$error":"#NAME?"}},{"$f":"_xll.RiskData('Risk Summary'!K$48,$A1818)/1000","v":{"$error":"#NAME?"}},{"$f":"_xll.RiskData('Risk Summary'!L$48,$A1818)/1000","v":{"$error":"#NAME?"}},null,null,{"$f":"(_xll.RiskData(NR_to_Cash!C$18,$A1818))/1000","v":{"$error":"#NAME?"}},{"$f":"(_xll.RiskData(NR_to_Cash!D$18,$A1818))/1000","v":{"$error":"#NAME?"}},{"$f":"(_xll.RiskData(NR_to_Cash!E$18,$A1818))/1000","v":{"$error":"#NAME?"}}]
[1812,{"$f":"_xll.RiskData('Risk Summary'!J$48,$A1819)/1000","v":{"$error":"#NAME?"}},{"$f":"_xll.RiskData('Risk Summary'!K$48,$A1819)/1000","v":{"$error":"#NAME?"}},{"$f":"_xll.RiskData('Risk Summary'!L$48,$A1819)/1000","v":{"$error":"#NAME?"}},null,null,{"$f":"(_xll.RiskData(NR_to_Cash!C$18,$A1819))/1000","v":{"$error":"#NAME?"}},{"$f":"(_xll.RiskData(NR_to_Cash!D$18,$A1819))/1000","v":{"$error":"#NAME?"}},{"$f":"(_xll.RiskData(NR_to_Cash!E$18,$A1819))/1000","v":{"$error":"#NAME?"}}]
[1813,{"$f":"_xll.RiskData('Risk Summary'!J$48,$A1820)/1000","v":{"$error":"#NAME?"}},{"$f":"_xll.RiskData('Risk Summary'!K$48,$A1820)/1000","v":{"$error":"#NAME?"}},{"$f":"_xll.RiskData('Risk Summary'!L$48,$A1820)/1000","v":{"$error":"#NAME?"}},null,null,{"$f":"(_xll.RiskData(NR_to_Cash!C$18,$A1820))/1000","v":{"$error":"#NAME?"}},{"$f":"(_xll.RiskData(NR_to_Cash!D$18,$A1820))/1000","v":{"$error":"#NAME?"}},{"$f":"(_xll.RiskData(NR_to_Cash!E$18,$A1820))/1000","v":{"$error":"#NAME?"}}]
[1814,{"$f":"_xll.RiskData('Risk Summary'!J$48,$A1821)/1000","v":{"$error":"#NAME?"}},{"$f":"_xll.RiskData('Risk Summary'!K$48,$A1821)/1000","v":{"$error":"#NAME?"}},{"$f":"_xll.RiskData('Risk Summary'!L$48,$A1821)/1000","v":{"$error":"#NAME?"}},null,null,{"$f":"(_xll.RiskData(NR_to_Cash!C$18,$A1821))/1000","v":{"$error":"#NAME?"}},{"$f":"(_xll.RiskData(NR_to_Cash!D$18,$A1821))/1000","v":{"$error":"#NAME?"}},{"$f":"(_xll.RiskData(NR_to_Cash!E$18,$A1821))/1000","v":{"$error":"#NAME?"}}]
[1815,{"$f":"_xll.RiskData('Risk Summary'!J$48,$A1822)/1000","v":{"$error":"#NAME?"}},{"$f":"_xll.RiskData('Risk Summary'!K$48,$A1822)/1000","v":{"$error":"#NAME?"}},{"$f":"_xll.RiskData('Risk Summary'!L$48,$A1822)/1000","v":{"$error":"#NAME?"}},null,null,{"$f":"(_xll.RiskData(NR_to_Cash!C$18,$A1822))/1000","v":{"$error":"#NAME?"}},{"$f":"(_xll.RiskData(NR_to_Cash!D$18,$A1822))/1000","v":{"$error":"#NAME?"}},{"$f":"(_xll.RiskData(NR_to_Cash!E$18,$A1822))/1000","v":{"$error":"#NAME?"}}]
[1816,{"$f":"_xll.RiskData('Risk Summary'!J$48,$A1823)/1000","v":{"$error":"#NAME?"}},{"$f":"_xll.RiskData('Risk Summary'!K$48,$A1823)/1000","v":{"$error":"#NAME?"}},{"$f":"_xll.RiskData('Risk Summary'!L$48,$A1823)/1000","v":{"$error":"#NAME?"}},null,null,{"$f":"(_xll.RiskData(NR_to_Cash!C$18,$A1823))/1000","v":{"$error":"#NAME?"}},{"$f":"(_xll.RiskData(NR_to_Cash!D$18,$A1823))/1000","v":{"$error":"#NAME?"}},{"$f":"(_xll.RiskData(NR_to_Cash!E$18,$A1823))/1000","v":{"$error":"#NAME?"}}]
[1817,{"$f":"_xll.RiskData('Risk Summary'!J$48,$A1824)/1000","v":{"$error":"#NAME?"}},{"$f":"_xll.RiskData('Risk Summary'!K$48,$A1824)/1000","v":{"$error":"#NAME?"}},{"$f":"_xll.RiskData('Risk Summary'!L$48,$A1824)/1000","v":{"$error":"#NAME?"}},null,null,{"$f":"(_xll.RiskData(NR_to_Cash!C$18,$A1824))/1000","v":{"$error":"#NAME?"}},{"$f":"(_xll.RiskData(NR_to_Cash!D$18,$A1824))/1000","v":{"$error":"#NAME?"}},{"$f":"(_xll.RiskData(NR_to_Cash!E$18,$A1824))/1000","v":{"$error":"#NAME?"}}]
[1818,{"$f":"_xll.RiskData('Risk Summary'!J$48,$A1825)/1000","v":{"$error":"#NAME?"}},{"$f":"_xll.RiskData('Risk Summary'!K$48,$A1825)/1000","v":{"$error":"#NAME?"}},{"$f":"_xll.RiskData('Risk Summary'!L$48,$A1825)/1000","v":{"$error":"#NAME?"}},null,null,{"$f":"(_xll.RiskData(NR_to_Cash!C$18,$A1825))/1000","v":{"$error":"#NAME?"}},{"$f":"(_xll.RiskData(NR_to_Cash!D$18,$A1825))/1000","v":{"$error":"#NAME?"}},{"$f":"(_xll.RiskData(NR_to_Cash!E$18,$A1825))/1000","v":{"$error":"#NAME?"}}]
[1819,{"$f":"_xll.RiskData('Risk Summary'!J$48,$A1826)/1000","v":{"$error":"#NAME?"}},{"$f":"_xll.RiskData('Risk Summary'!K$48,$A1826)/1000","v":{"$error":"#NAME?"}},{"$f":"_xll.RiskData('Risk Summary'!L$48,$A1826)/1000","v":{"$error":"#NAME?"}},null,null,{"$f":"(_xll.RiskData(NR_to_Cash!C$18,$A1826))/1000","v":{"$error":"#NAME?"}},{"$f":"(_xll.RiskData(NR_to_Cash!D$18,$A1826))/1000","v":{"$error":"#NAME?"}},{"$f":"(_xll.RiskData(NR_to_Cash!E$18,$A1826))/1000","v":{"$error":"#NAME?"}}]
[1820,{"$f":"_xll.RiskData('Risk Summary'!J$48,$A1827)/1000","v":{"$error":"#NAME?"}},{"$f":"_xll.RiskData('Risk Summary'!K$48,$A1827)/1000","v":{"$error":"#NAME?"}},{"$f":"_xll.RiskData('Risk Summary'!L$48,$A1827)/1000","v":{"$error":"#NAME?"}},null,null,{"$f":"(_xll.RiskData(NR_to_Cash!C$18,$A1827))/1000","v":{"$error":"#NAME?"}},{"$f":"(_xll.RiskData(NR_to_Cash!D$18,$A1827))/1000","v":{"$error":"#NAME?"}},{"$f":"(_xll.RiskData(NR_to_Cash!E$18,$A1827))/1000","v":{"$error":"#NAME?"}}]
[1821,{"$f":"_xll.RiskData('Risk Summary'!J$48,$A1828)/1000","v":{"$error":"#NAME?"}},{"$f":"_xll.RiskData('Risk Summary'!K$48,$A1828)/1000","v":{"$error":"#NAME?"}},{"$f":"_xll.RiskData('Risk Summary'!L$48,$A1828)/1000","v":{"$error":"#NAME?"}},null,null,{"$f":"(_xll.RiskData(NR_to_Cash!C$18,$A1828))/1000","v":{"$error":"#NAME?"}},{"$f":"(_xll.RiskData(NR_to_Cash!D$18,$A1828))/1000","v":{"$error":"#NAME?"}},{"$f":"(_xll.RiskData(NR_to_Cash!E$18,$A1828))/1000","v":{"$error":"#NAME?"}}]
[1822,{"$f":"_xll.RiskData('Risk Summary'!J$48,$A1829)/1000","v":{"$error":"#NAME?"}},{"$f":"_xll.RiskData('Risk Summary'!K$48,$A1829)/1000","v":{"$error":"#NAME?"}},{"$f":"_xll.RiskData('Risk Summary'!L$48,$A1829)/1000","v":{"$error":"#NAME?"}},null,null,{"$f":"(_xll.RiskData(NR_to_Cash!C$18,$A1829))/1000","v":{"$error":"#NAME?"}},{"$f":"(_xll.RiskData(NR_to_Cash!D$18,$A1829))/1000","v":{"$error":"#NAME?"}},{"$f":"(_xll.RiskData(NR_to_Cash!E$18,$A1829))/1000","v":{"$error":"#NAME?"}}]
[1823,{"$f":"_xll.RiskData('Risk Summary'!J$48,$A1830)/1000","v":{"$error":"#NAME?"}},{"$f":"_xll.RiskData('Risk Summary'!K$48,$A1830)/1000","v":{"$error":"#NAME?"}},{"$f":"_xll.RiskData('Risk Summary'!L$48,$A1830)/1000","v":{"$error":"#NAME?"}},null,null,{"$f":"(_xll.RiskData(NR_to_Cash!C$18,$A1830))/1000","v":{"$error":"#NAME?"}},{"$f":"(_xll.RiskData(NR_to_Cash!D$18,$A1830))/1000","v":{"$error":"#NAME?"}},{"$f":"(_xll.RiskData(NR_to_Cash!E$18,$A1830))/1000","v":{"$error":"#NAME?"}}]
[1824,{"$f":"_xll.RiskData('Risk Summary'!J$48,$A1831)/1000","v":{"$error":"#NAME?"}},{"$f":"_xll.RiskData('Risk Summary'!K$48,$A1831)/1000","v":{"$error":"#NAME?"}},{"$f":"_xll.RiskData('Risk Summary'!L$48,$A1831)/1000","v":{"$error":"#NAME?"}},null,null,{"$f":"(_xll.RiskData(NR_to_Cash!C$18,$A1831))/1000","v":{"$error":"#NAME?"}},{"$f":"(_xll.RiskData(NR_to_Cash!D$18,$A1831))/1000","v":{"$error":"#NAME?"}},{"$f":"(_xll.RiskData(NR_to_Cash!E$18,$A1831))/1000","v":{"$error":"#NAME?"}}]
[1825,{"$f":"_xll.RiskData('Risk Summary'!J$48,$A1832)/1000","v":{"$error":"#NAME?"}},{"$f":"_xll.RiskData('Risk Summary'!K$48,$A1832)/1000","v":{"$error":"#NAME?"}},{"$f":"_xll.RiskData('Risk Summary'!L$48,$A1832)/1000","v":{"$error":"#NAME?"}},null,null,{"$f":"(_xll.RiskData(NR_to_Cash!C$18,$A1832))/1000","v":{"$error":"#NAME?"}},{"$f":"(_xll.RiskData(NR_to_Cash!D$18,$A1832))/1000","v":{"$error":"#NAME?"}},{"$f":"(_xll.RiskData(NR_to_Cash!E$18,$A1832))/1000","v":{"$error":"#NAME?"}}]
[1826,{"$f":"_xll.RiskData('Risk Summary'!J$48,$A1833)/1000","v":{"$error":"#NAME?"}},{"$f":"_xll.RiskData('Risk Summary'!K$48,$A1833)/1000","v":{"$error":"#NAME?"}},{"$f":"_xll.RiskData('Risk Summary'!L$48,$A1833)/1000","v":{"$error":"#NAME?"}},null,null,{"$f":"(_xll.RiskData(NR_to_Cash!C$18,$A1833))/1000","v":{"$error":"#NAME?"}},{"$f":"(_xll.RiskData(NR_to_Cash!D$18,$A1833))/1000","v":{"$error":"#NAME?"}},{"$f":"(_xll.RiskData(NR_to_Cash!E$18,$A1833))/1000","v":{"$error":"#NAME?"}}]
[1827,{"$f":"_xll.RiskData('Risk Summary'!J$48,$A1834)/1000","v":{"$error":"#NAME?"}},{"$f":"_xll.RiskData('Risk Summary'!K$48,$A1834)/1000","v":{"$error":"#NAME?"}},{"$f":"_xll.RiskData('Risk Summary'!L$48,$A1834)/1000","v":{"$error":"#NAME?"}},null,null,{"$f":"(_xll.RiskData(NR_to_Cash!C$18,$A1834))/1000","v":{"$error":"#NAME?"}},{"$f":"(_xll.RiskData(NR_to_Cash!D$18,$A1834))/1000","v":{"$error":"#NAME?"}},{"$f":"(_xll.RiskData(NR_to_Cash!E$18,$A1834))/1000","v":{"$error":"#NAME?"}}]
[1828,{"$f":"_xll.RiskData('Risk Summary'!J$48,$A1835)/1000","v":{"$error":"#NAME?"}},{"$f":"_xll.RiskData('Risk Summary'!K$48,$A1835)/1000","v":{"$error":"#NAME?"}},{"$f":"_xll.RiskData('Risk Summary'!L$48,$A1835)/1000","v":{"$error":"#NAME?"}},null,null,{"$f":"(_xll.RiskData(NR_to_Cash!C$18,$A1835))/1000","v":{"$error":"#NAME?"}},{"$f":"(_xll.RiskData(NR_to_Cash!D$18,$A1835))/1000","v":{"$error":"#NAME?"}},{"$f":"(_xll.RiskData(NR_to_Cash!E$18,$A1835))/1000","v":{"$error":"#NAME?"}}]
[1829,{"$f":"_xll.RiskData('Risk Summary'!J$48,$A1836)/1000","v":{"$error":"#NAME?"}},{"$f":"_xll.RiskData('Risk Summary'!K$48,$A1836)/1000","v":{"$error":"#NAME?"}},{"$f":"_xll.RiskData('Risk Summary'!L$48,$A1836)/1000","v":{"$error":"#NAME?"}},null,null,{"$f":"(_xll.RiskData(NR_to_Cash!C$18,$A1836))/1000","v":{"$error":"#NAME?"}},{"$f":"(_xll.RiskData(NR_to_Cash!D$18,$A1836))/1000","v":{"$error":"#NAME?"}},{"$f":"(_xll.RiskData(NR_to_Cash!E$18,$A1836))/1000","v":{"$error":"#NAME?"}}]
[1830,{"$f":"_xll.RiskData('Risk Summary'!J$48,$A1837)/1000","v":{"$error":"#NAME?"}},{"$f":"_xll.RiskData('Risk Summary'!K$48,$A1837)/1000","v":{"$error":"#NAME?"}},{"$f":"_xll.RiskData('Risk Summary'!L$48,$A1837)/1000","v":{"$error":"#NAME?"}},null,null,{"$f":"(_xll.RiskData(NR_to_Cash!C$18,$A1837))/1000","v":{"$error":"#NAME?"}},{"$f":"(_xll.RiskData(NR_to_Cash!D$18,$A1837))/1000","v":{"$error":"#NAME?"}},{"$f":"(_xll.RiskData(NR_to_Cash!E$18,$A1837))/1000","v":{"$error":"#NAME?"}}]
[1831,{"$f":"_xll.RiskData('Risk Summary'!J$48,$A1838)/1000","v":{"$error":"#NAME?"}},{"$f":"_xll.RiskData('Risk Summary'!K$48,$A1838)/1000","v":{"$error":"#NAME?"}},{"$f":"_xll.RiskData('Risk Summary'!L$48,$A1838)/1000","v":{"$error":"#NAME?"}},null,null,{"$f":"(_xll.RiskData(NR_to_Cash!C$18,$A1838))/1000","v":{"$error":"#NAME?"}},{"$f":"(_xll.RiskData(NR_to_Cash!D$18,$A1838))/1000","v":{"$error":"#NAME?"}},{"$f":"(_xll.RiskData(NR_to_Cash!E$18,$A1838))/1000","v":{"$error":"#NAME?"}}]
[1832,{"$f":"_xll.RiskData('Risk Summary'!J$48,$A1839)/1000","v":{"$error":"#NAME?"}},{"$f":"_xll.RiskData('Risk Summary'!K$48,$A1839)/1000","v":{"$error":"#NAME?"}},{"$f":"_xll.RiskData('Risk Summary'!L$48,$A1839)/1000","v":{"$error":"#NAME?"}},null,null,{"$f":"(_xll.RiskData(NR_to_Cash!C$18,$A1839))/1000","v":{"$error":"#NAME?"}},{"$f":"(_xll.RiskData(NR_to_Cash!D$18,$A1839))/1000","v":{"$error":"#NAME?"}},{"$f":"(_xll.RiskData(NR_to_Cash!E$18,$A1839))/1000","v":{"$error":"#NAME?"}}]
[1833,{"$f":"_xll.RiskData('Risk Summary'!J$48,$A1840)/1000","v":{"$error":"#NAME?"}},{"$f":"_xll.RiskData('Risk Summary'!K$48,$A1840)/1000","v":{"$error":"#NAME?"}},{"$f":"_xll.RiskData('Risk Summary'!L$48,$A1840)/1000","v":{"$error":"#NAME?"}},null,null,{"$f":"(_xll.RiskData(NR_to_Cash!C$18,$A1840))/1000","v":{"$error":"#NAME?"}},{"$f":"(_xll.RiskData(NR_to_Cash!D$18,$A1840))/1000","v":{"$error":"#NAME?"}},{"$f":"(_xll.RiskData(NR_to_Cash!E$18,$A1840))/1000","v":{"$error":"#NAME?"}}]
[1834,{"$f":"_xll.RiskData('Risk Summary'!J$48,$A1841)/1000","v":{"$error":"#NAME?"}},{"$f":"_xll.RiskData('Risk Summary'!K$48,$A1841)/1000","v":{"$error":"#NAME?"}},{"$f":"_xll.RiskData('Risk Summary'!L$48,$A1841)/1000","v":{"$error":"#NAME?"}},null,null,{"$f":"(_xll.RiskData(NR_to_Cash!C$18,$A1841))/1000","v":{"$error":"#NAME?"}},{"$f":"(_xll.RiskData(NR_to_Cash!D$18,$A1841))/1000","v":{"$error":"#NAME?"}},{"$f":"(_xll.RiskData(NR_to_Cash!E$18,$A1841))/1000","v":{"$error":"#NAME?"}}]
[1835,{"$f":"_xll.RiskData('Risk Summary'!J$48,$A1842)/1000","v":{"$error":"#NAME?"}},{"$f":"_xll.RiskData('Risk Summary'!K$48,$A1842)/1000","v":{"$error":"#NAME?"}},{"$f":"_xll.RiskData('Risk Summary'!L$48,$A1842)/1000","v":{"$error":"#NAME?"}},null,null,{"$f":"(_xll.RiskData(NR_to_Cash!C$18,$A1842))/1000","v":{"$error":"#NAME?"}},{"$f":"(_xll.RiskData(NR_to_Cash!D$18,$A1842))/1000","v":{"$error":"#NAME?"}},{"$f":"(_xll.RiskData(NR_to_Cash!E$18,$A1842))/1000","v":{"$error":"#NAME?"}}]
[1836,{"$f":"_xll.RiskData('Risk Summary'!J$48,$A1843)/1000","v":{"$error":"#NAME?"}},{"$f":"_xll.RiskData('Risk Summary'!K$48,$A1843)/1000","v":{"$error":"#NAME?"}},{"$f":"_xll.RiskData('Risk Summary'!L$48,$A1843)/1000","v":{"$error":"#NAME?"}},null,null,{"$f":"(_xll.RiskData(NR_to_Cash!C$18,$A1843))/1000","v":{"$error":"#NAME?"}},{"$f":"(_xll.RiskData(NR_to_Cash!D$18,$A1843))/1000","v":{"$error":"#NAME?"}},{"$f":"(_xll.RiskData(NR_to_Cash!E$18,$A1843))/1000","v":{"$error":"#NAME?"}}]
[1837,{"$f":"_xll.RiskData('Risk Summary'!J$48,$A1844)/1000","v":{"$error":"#NAME?"}},{"$f":"_xll.RiskData('Risk Summary'!K$48,$A1844)/1000","v":{"$error":"#NAME?"}},{"$f":"_xll.RiskData('Risk Summary'!L$48,$A1844)/1000","v":{"$error":"#NAME?"}},null,null,{"$f":"(_xll.RiskData(NR_to_Cash!C$18,$A1844))/1000","v":{"$error":"#NAME?"}},{"$f":"(_xll.RiskData(NR_to_Cash!D$18,$A1844))/1000","v":{"$error":"#NAME?"}},{"$f":"(_xll.RiskData(NR_to_Cash!E$18,$A1844))/1000","v":{"$error":"#NAME?"}}]
[1838,{"$f":"_xll.RiskData('Risk Summary'!J$48,$A1845)/1000","v":{"$error":"#NAME?"}},{"$f":"_xll.RiskData('Risk Summary'!K$48,$A1845)/1000","v":{"$error":"#NAME?"}},{"$f":"_xll.RiskData('Risk Summary'!L$48,$A1845)/1000","v":{"$error":"#NAME?"}},null,null,{"$f":"(_xll.RiskData(NR_to_Cash!C$18,$A1845))/1000","v":{"$error":"#NAME?"}},{"$f":"(_xll.RiskData(NR_to_Cash!D$18,$A1845))/1000","v":{"$error":"#NAME?"}},{"$f":"(_xll.RiskData(NR_to_Cash!E$18,$A1845))/1000","v":{"$error":"#NAME?"}}]
[1839,{"$f":"_xll.RiskData('Risk Summary'!J$48,$A1846)/1000","v":{"$error":"#NAME?"}},{"$f":"_xll.RiskData('Risk Summary'!K$48,$A1846)/1000","v":{"$error":"#NAME?"}},{"$f":"_xll.RiskData('Risk Summary'!L$48,$A1846)/1000","v":{"$error":"#NAME?"}},null,null,{"$f":"(_xll.RiskData(NR_to_Cash!C$18,$A1846))/1000","v":{"$error":"#NAME?"}},{"$f":"(_xll.RiskData(NR_to_Cash!D$18,$A1846))/1000","v":{"$error":"#NAME?"}},{"$f":"(_xll.RiskData(NR_to_Cash!E$18,$A1846))/1000","v":{"$error":"#NAME?"}}]
[1840,{"$f":"_xll.RiskData('Risk Summary'!J$48,$A1847)/1000","v":{"$error":"#NAME?"}},{"$f":"_xll.RiskData('Risk Summary'!K$48,$A1847)/1000","v":{"$error":"#NAME?"}},{"$f":"_xll.RiskData('Risk Summary'!L$48,$A1847)/1000","v":{"$error":"#NAME?"}},null,null,{"$f":"(_xll.RiskData(NR_to_Cash!C$18,$A1847))/1000","v":{"$error":"#NAME?"}},{"$f":"(_xll.RiskData(NR_to_Cash!D$18,$A1847))/1000","v":{"$error":"#NAME?"}},{"$f":"(_xll.RiskData(NR_to_Cash!E$18,$A1847))/1000","v":{"$error":"#NAME?"}}]
[1841,{"$f":"_xll.RiskData('Risk Summary'!J$48,$A1848)/1000","v":{"$error":"#NAME?"}},{"$f":"_xll.RiskData('Risk Summary'!K$48,$A1848)/1000","v":{"$error":"#NAME?"}},{"$f":"_xll.RiskData('Risk Summary'!L$48,$A1848)/1000","v":{"$error":"#NAME?"}},null,null,{"$f":"(_xll.RiskData(NR_to_Cash!C$18,$A1848))/1000","v":{"$error":"#NAME?"}},{"$f":"(_xll.RiskData(NR_to_Cash!D$18,$A1848))/1000","v":{"$error":"#NAME?"}},{"$f":"(_xll.RiskData(NR_to_Cash!E$18,$A1848))/1000","v":{"$error":"#NAME?"}}]
[1842,{"$f":"_xll.RiskData('Risk Summary'!J$48,$A1849)/1000","v":{"$error":"#NAME?"}},{"$f":"_xll.RiskData('Risk Summary'!K$48,$A1849)/1000","v":{"$error":"#NAME?"}},{"$f":"_xll.RiskData('Risk Summary'!L$48,$A1849)/1000","v":{"$error":"#NAME?"}},null,null,{"$f":"(_xll.RiskData(NR_to_Cash!C$18,$A1849))/1000","v":{"$error":"#NAME?"}},{"$f":"(_xll.RiskData(NR_to_Cash!D$18,$A1849))/1000","v":{"$error":"#NAME?"}},{"$f":"(_xll.RiskData(NR_to_Cash!E$18,$A1849))/1000","v":{"$error":"#NAME?"}}]
[1843,{"$f":"_xll.RiskData('Risk Summary'!J$48,$A1850)/1000","v":{"$error":"#NAME?"}},{"$f":"_xll.RiskData('Risk Summary'!K$48,$A1850)/1000","v":{"$error":"#NAME?"}},{"$f":"_xll.RiskData('Risk Summary'!L$48,$A1850)/1000","v":{"$error":"#NAME?"}},null,null,{"$f":"(_xll.RiskData(NR_to_Cash!C$18,$A1850))/1000","v":{"$error":"#NAME?"}},{"$f":"(_xll.RiskData(NR_to_Cash!D$18,$A1850))/1000","v":{"$error":"#NAME?"}},{"$f":"(_xll.RiskData(NR_to_Cash!E$18,$A1850))/1000","v":{"$error":"#NAME?"}}]
[1844,{"$f":"_xll.RiskData('Risk Summary'!J$48,$A1851)/1000","v":{"$error":"#NAME?"}},{"$f":"_xll.RiskData('Risk Summary'!K$48,$A1851)/1000","v":{"$error":"#NAME?"}},{"$f":"_xll.RiskData('Risk Summary'!L$48,$A1851)/1000","v":{"$error":"#NAME?"}},null,null,{"$f":"(_xll.RiskData(NR_to_Cash!C$18,$A1851))/1000","v":{"$error":"#NAME?"}},{"$f":"(_xll.RiskData(NR_to_Cash!D$18,$A1851))/1000","v":{"$error":"#NAME?"}},{"$f":"(_xll.RiskData(NR_to_Cash!E$18,$A1851))/1000","v":{"$error":"#NAME?"}}]
[1845,{"$f":"_xll.RiskData('Risk Summary'!J$48,$A1852)/1000","v":{"$error":"#NAME?"}},{"$f":"_xll.RiskData('Risk Summary'!K$48,$A1852)/1000","v":{"$error":"#NAME?"}},{"$f":"_xll.RiskData('Risk Summary'!L$48,$A1852)/1000","v":{"$error":"#NAME?"}},null,null,{"$f":"(_xll.RiskData(NR_to_Cash!C$18,$A1852))/1000","v":{"$error":"#NAME?"}},{"$f":"(_xll.RiskData(NR_to_Cash!D$18,$A1852))/1000","v":{"$error":"#NAME?"}},{"$f":"(_xll.RiskData(NR_to_Cash!E$18,$A1852))/1000","v":{"$error":"#NAME?"}}]
[1846,{"$f":"_xll.RiskData('Risk Summary'!J$48,$A1853)/1000","v":{"$error":"#NAME?"}},{"$f":"_xll.RiskData('Risk Summary'!K$48,$A1853)/1000","v":{"$error":"#NAME?"}},{"$f":"_xll.RiskData('Risk Summary'!L$48,$A1853)/1000","v":{"$error":"#NAME?"}},null,null,{"$f":"(_xll.RiskData(NR_to_Cash!C$18,$A1853))/1000","v":{"$error":"#NAME?"}},{"$f":"(_xll.RiskData(NR_to_Cash!D$18,$A1853))/1000","v":{"$error":"#NAME?"}},{"$f":"(_xll.RiskData(NR_to_Cash!E$18,$A1853))/1000","v":{"$error":"#NAME?"}}]
[1847,{"$f":"_xll.RiskData('Risk Summary'!J$48,$A1854)/1000","v":{"$error":"#NAME?"}},{"$f":"_xll.RiskData('Risk Summary'!K$48,$A1854)/1000","v":{"$error":"#NAME?"}},{"$f":"_xll.RiskData('Risk Summary'!L$48,$A1854)/1000","v":{"$error":"#NAME?"}},null,null,{"$f":"(_xll.RiskData(NR_to_Cash!C$18,$A1854))/1000","v":{"$error":"#NAME?"}},{"$f":"(_xll.RiskData(NR_to_Cash!D$18,$A1854))/1000","v":{"$error":"#NAME?"}},{"$f":"(_xll.RiskData(NR_to_Cash!E$18,$A1854))/1000","v":{"$error":"#NAME?"}}]
[1848,{"$f":"_xll.RiskData('Risk Summary'!J$48,$A1855)/1000","v":{"$error":"#NAME?"}},{"$f":"_xll.RiskData('Risk Summary'!K$48,$A1855)/1000","v":{"$error":"#NAME?"}},{"$f":"_xll.RiskData('Risk Summary'!L$48,$A1855)/1000","v":{"$error":"#NAME?"}},null,null,{"$f":"(_xll.RiskData(NR_to_Cash!C$18,$A1855))/1000","v":{"$error":"#NAME?"}},{"$f":"(_xll.RiskData(NR_to_Cash!D$18,$A1855))/1000","v":{"$error":"#NAME?"}},{"$f":"(_xll.RiskData(NR_to_Cash!E$18,$A1855))/1000","v":{"$error":"#NAME?"}}]
[1849,{"$f":"_xll.RiskData('Risk Summary'!J$48,$A1856)/1000","v":{"$error":"#NAME?"}},{"$f":"_xll.RiskData('Risk Summary'!K$48,$A1856)/1000","v":{"$error":"#NAME?"}},{"$f":"_xll.RiskData('Risk Summary'!L$48,$A1856)/1000","v":{"$error":"#NAME?"}},null,null,{"$f":"(_xll.RiskData(NR_to_Cash!C$18,$A1856))/1000","v":{"$error":"#NAME?"}},{"$f":"(_xll.RiskData(NR_to_Cash!D$18,$A1856))/1000","v":{"$error":"#NAME?"}},{"$f":"(_xll.RiskData(NR_to_Cash!E$18,$A1856))/1000","v":{"$error":"#NAME?"}}]
[1850,{"$f":"_xll.RiskData('Risk Summary'!J$48,$A1857)/1000","v":{"$error":"#NAME?"}},{"$f":"_xll.RiskData('Risk Summary'!K$48,$A1857)/1000","v":{"$error":"#NAME?"}},{"$f":"_xll.RiskData('Risk Summary'!L$48,$A1857)/1000","v":{"$error":"#NAME?"}},null,null,{"$f":"(_xll.RiskData(NR_to_Cash!C$18,$A1857))/1000","v":{"$error":"#NAME?"}},{"$f":"(_xll.RiskData(NR_to_Cash!D$18,$A1857))/1000","v":{"$error":"#NAME?"}},{"$f":"(_xll.RiskData(NR_to_Cash!E$18,$A1857))/1000","v":{"$error":"#NAME?"}}]
[1851,{"$f":"_xll.RiskData('Risk Summary'!J$48,$A1858)/1000","v":{"$error":"#NAME?"}},{"$f":"_xll.RiskData('Risk Summary'!K$48,$A1858)/1000","v":{"$error":"#NAME?"}},{"$f":"_xll.RiskData('Risk Summary'!L$48,$A1858)/1000","v":{"$error":"#NAME?"}},null,null,{"$f":"(_xll.RiskData(NR_to_Cash!C$18,$A1858))/1000","v":{"$error":"#NAME?"}},{"$f":"(_xll.RiskData(NR_to_Cash!D$18,$A1858))/1000","v":{"$error":"#NAME?"}},{"$f":"(_xll.RiskData(NR_to_Cash!E$18,$A1858))/1000","v":{"$error":"#NAME?"}}]
[1852,{"$f":"_xll.RiskData('Risk Summary'!J$48,$A1859)/1000","v":{"$error":"#NAME?"}},{"$f":"_xll.RiskData('Risk Summary'!K$48,$A1859)/1000","v":{"$error":"#NAME?"}},{"$f":"_xll.RiskData('Risk Summary'!L$48,$A1859)/1000","v":{"$error":"#NAME?"}},null,null,{"$f":"(_xll.RiskData(NR_to_Cash!C$18,$A1859))/1000","v":{"$error":"#NAME?"}},{"$f":"(_xll.RiskData(NR_to_Cash!D$18,$A1859))/1000","v":{"$error":"#NAME?"}},{"$f":"(_xll.RiskData(NR_to_Cash!E$18,$A1859))/1000","v":{"$error":"#NAME?"}}]
[1853,{"$f":"_xll.RiskData('Risk Summary'!J$48,$A1860)/1000","v":{"$error":"#NAME?"}},{"$f":"_xll.RiskData('Risk Summary'!K$48,$A1860)/1000","v":{"$error":"#NAME?"}},{"$f":"_xll.RiskData('Risk Summary'!L$48,$A1860)/1000","v":{"$error":"#NAME?"}},null,null,{"$f":"(_xll.RiskData(NR_to_Cash!C$18,$A1860))/1000","v":{"$error":"#NAME?"}},{"$f":"(_xll.RiskData(NR_to_Cash!D$18,$A1860))/1000","v":{"$error":"#NAME?"}},{"$f":"(_xll.RiskData(NR_to_Cash!E$18,$A1860))/1000","v":{"$error":"#NAME?"}}]
[1854,{"$f":"_xll.RiskData('Risk Summary'!J$48,$A1861)/1000","v":{"$error":"#NAME?"}},{"$f":"_xll.RiskData('Risk Summary'!K$48,$A1861)/1000","v":{"$error":"#NAME?"}},{"$f":"_xll.RiskData('Risk Summary'!L$48,$A1861)/1000","v":{"$error":"#NAME?"}},null,null,{"$f":"(_xll.RiskData(NR_to_Cash!C$18,$A1861))/1000","v":{"$error":"#NAME?"}},{"$f":"(_xll.RiskData(NR_to_Cash!D$18,$A1861))/1000","v":{"$error":"#NAME?"}},{"$f":"(_xll.RiskData(NR_to_Cash!E$18,$A1861))/1000","v":{"$error":"#NAME?"}}]
[1855,{"$f":"_xll.RiskData('Risk Summary'!J$48,$A1862)/1000","v":{"$error":"#NAME?"}},{"$f":"_xll.RiskData('Risk Summary'!K$48,$A1862)/1000","v":{"$error":"#NAME?"}},{"$f":"_xll.RiskData('Risk Summary'!L$48,$A1862)/1000","v":{"$error":"#NAME?"}},null,null,{"$f":"(_xll.RiskData(NR_to_Cash!C$18,$A1862))/1000","v":{"$error":"#NAME?"}},{"$f":"(_xll.RiskData(NR_to_Cash!D$18,$A1862))/1000","v":{"$error":"#NAME?"}},{"$f":"(_xll.RiskData(NR_to_Cash!E$18,$A1862))/1000","v":{"$error":"#NAME?"}}]
[1856,{"$f":"_xll.RiskData('Risk Summary'!J$48,$A1863)/1000","v":{"$error":"#NAME?"}},{"$f":"_xll.RiskData('Risk Summary'!K$48,$A1863)/1000","v":{"$error":"#NAME?"}},{"$f":"_xll.RiskData('Risk Summary'!L$48,$A1863)/1000","v":{"$error":"#NAME?"}},null,null,{"$f":"(_xll.RiskData(NR_to_Cash!C$18,$A1863))/1000","v":{"$error":"#NAME?"}},{"$f":"(_xll.RiskData(NR_to_Cash!D$18,$A1863))/1000","v":{"$error":"#NAME?"}},{"$f":"(_xll.RiskData(NR_to_Cash!E$18,$A1863))/1000","v":{"$error":"#NAME?"}}]
[1857,{"$f":"_xll.RiskData('Risk Summary'!J$48,$A1864)/1000","v":{"$error":"#NAME?"}},{"$f":"_xll.RiskData('Risk Summary'!K$48,$A1864)/1000","v":{"$error":"#NAME?"}},{"$f":"_xll.RiskData('Risk Summary'!L$48,$A1864)/1000","v":{"$error":"#NAME?"}},null,null,{"$f":"(_xll.RiskData(NR_to_Cash!C$18,$A1864))/1000","v":{"$error":"#NAME?"}},{"$f":"(_xll.RiskData(NR_to_Cash!D$18,$A1864))/1000","v":{"$error":"#NAME?"}},{"$f":"(_xll.RiskData(NR_to_Cash!E$18,$A1864))/1000","v":{"$error":"#NAME?"}}]
[1858,{"$f":"_xll.RiskData('Risk Summary'!J$48,$A1865)/1000","v":{"$error":"#NAME?"}},{"$f":"_xll.RiskData('Risk Summary'!K$48,$A1865)/1000","v":{"$error":"#NAME?"}},{"$f":"_xll.RiskData('Risk Summary'!L$48,$A1865)/1000","v":{"$error":"#NAME?"}},null,null,{"$f":"(_xll.RiskData(NR_to_Cash!C$18,$A1865))/1000","v":{"$error":"#NAME?"}},{"$f":"(_xll.RiskData(NR_to_Cash!D$18,$A1865))/1000","v":{"$error":"#NAME?"}},{"$f":"(_xll.RiskData(NR_to_Cash!E$18,$A1865))/1000","v":{"$error":"#NAME?"}}]
[1859,{"$f":"_xll.RiskData('Risk Summary'!J$48,$A1866)/1000","v":{"$error":"#NAME?"}},{"$f":"_xll.RiskData('Risk Summary'!K$48,$A1866)/1000","v":{"$error":"#NAME?"}},{"$f":"_xll.RiskData('Risk Summary'!L$48,$A1866)/1000","v":{"$error":"#NAME?"}},null,null,{"$f":"(_xll.RiskData(NR_to_Cash!C$18,$A1866))/1000","v":{"$error":"#NAME?"}},{"$f":"(_xll.RiskData(NR_to_Cash!D$18,$A1866))/1000","v":{"$error":"#NAME?"}},{"$f":"(_xll.RiskData(NR_to_Cash!E$18,$A1866))/1000","v":{"$error":"#NAME?"}}]
[1860,{"$f":"_xll.RiskData('Risk Summary'!J$48,$A1867)/1000","v":{"$error":"#NAME?"}},{"$f":"_xll.RiskData('Risk Summary'!K$48,$A1867)/1000","v":{"$error":"#NAME?"}},{"$f":"_xll.RiskData('Risk Summary'!L$48,$A1867)/1000","v":{"$error":"#NAME?"}},null,null,{"$f":"(_xll.RiskData(NR_to_Cash!C$18,$A1867))/1000","v":{"$error":"#NAME?"}},{"$f":"(_xll.RiskData(NR_to_Cash!D$18,$A1867))/1000","v":{"$error":"#NAME?"}},{"$f":"(_xll.RiskData(NR_to_Cash!E$18,$A1867))/1000","v":{"$error":"#NAME?"}}]
[1861,{"$f":"_xll.RiskData('Risk Summary'!J$48,$A1868)/1000","v":{"$error":"#NAME?"}},{"$f":"_xll.RiskData('Risk Summary'!K$48,$A1868)/1000","v":{"$error":"#NAME?"}},{"$f":"_xll.RiskData('Risk Summary'!L$48,$A1868)/1000","v":{"$error":"#NAME?"}},null,null,{"$f":"(_xll.RiskData(NR_to_Cash!C$18,$A1868))/1000","v":{"$error":"#NAME?"}},{"$f":"(_xll.RiskData(NR_to_Cash!D$18,$A1868))/1000","v":{"$error":"#NAME?"}},{"$f":"(_xll.RiskData(NR_to_Cash!E$18,$A1868))/1000","v":{"$error":"#NAME?"}}]
[1862,{"$f":"_xll.RiskData('Risk Summary'!J$48,$A1869)/1000","v":{"$error":"#NAME?"}},{"$f":"_xll.RiskData('Risk Summary'!K$48,$A1869)/1000","v":{"$error":"#NAME?"}},{"$f":"_xll.RiskData('Risk Summary'!L$48,$A1869)/1000","v":{"$error":"#NAME?"}},null,null,{"$f":"(_xll.RiskData(NR_to_Cash!C$18,$A1869))/1000","v":{"$error":"#NAME?"}},{"$f":"(_xll.RiskData(NR_to_Cash!D$18,$A1869))/1000","v":{"$error":"#NAME?"}},{"$f":"(_xll.RiskData(NR_to_Cash!E$18,$A1869))/1000","v":{"$error":"#NAME?"}}]
[1863,{"$f":"_xll.RiskData('Risk Summary'!J$48,$A1870)/1000","v":{"$error":"#NAME?"}},{"$f":"_xll.RiskData('Risk Summary'!K$48,$A1870)/1000","v":{"$error":"#NAME?"}},{"$f":"_xll.RiskData('Risk Summary'!L$48,$A1870)/1000","v":{"$error":"#NAME?"}},null,null,{"$f":"(_xll.RiskData(NR_to_Cash!C$18,$A1870))/1000","v":{"$error":"#NAME?"}},{"$f":"(_xll.RiskData(NR_to_Cash!D$18,$A1870))/1000","v":{"$error":"#NAME?"}},{"$f":"(_xll.RiskData(NR_to_Cash!E$18,$A1870))/1000","v":{"$error":"#NAME?"}}]
[1864,{"$f":"_xll.RiskData('Risk Summary'!J$48,$A1871)/1000","v":{"$error":"#NAME?"}},{"$f":"_xll.RiskData('Risk Summary'!K$48,$A1871)/1000","v":{"$error":"#NAME?"}},{"$f":"_xll.RiskData('Risk Summary'!L$48,$A1871)/1000","v":{"$error":"#NAME?"}},null,null,{"$f":"(_xll.RiskData(NR_to_Cash!C$18,$A1871))/1000","v":{"$error":"#NAME?"}},{"$f":"(_xll.RiskData(NR_to_Cash!D$18,$A1871))/1000","v":{"$error":"#NAME?"}},{"$f":"(_xll.RiskData(NR_to_Cash!E$18,$A1871))/1000","v":{"$error":"#NAME?"}}]
[1865,{"$f":"_xll.RiskData('Risk Summary'!J$48,$A1872)/1000","v":{"$error":"#NAME?"}},{"$f":"_xll.RiskData('Risk Summary'!K$48,$A1872)/1000","v":{"$error":"#NAME?"}},{"$f":"_xll.RiskData('Risk Summary'!L$48,$A1872)/1000","v":{"$error":"#NAME?"}},null,null,{"$f":"(_xll.RiskData(NR_to_Cash!C$18,$A1872))/1000","v":{"$error":"#NAME?"}},{"$f":"(_xll.RiskData(NR_to_Cash!D$18,$A1872))/1000","v":{"$error":"#NAME?"}},{"$f":"(_xll.RiskData(NR_to_Cash!E$18,$A1872))/1000","v":{"$error":"#NAME?"}}]
[1866,{"$f":"_xll.RiskData('Risk Summary'!J$48,$A1873)/1000","v":{"$error":"#NAME?"}},{"$f":"_xll.RiskData('Risk Summary'!K$48,$A1873)/1000","v":{"$error":"#NAME?"}},{"$f":"_xll.RiskData('Risk Summary'!L$48,$A1873)/1000","v":{"$error":"#NAME?"}},null,null,{"$f":"(_xll.RiskData(NR_to_Cash!C$18,$A1873))/1000","v":{"$error":"#NAME?"}},{"$f":"(_xll.RiskData(NR_to_Cash!D$18,$A1873))/1000","v":{"$error":"#NAME?"}},{"$f":"(_xll.RiskData(NR_to_Cash!E$18,$A1873))/1000","v":{"$error":"#NAME?"}}]
[1867,{"$f":"_xll.RiskData('Risk Summary'!J$48,$A1874)/1000","v":{"$error":"#NAME?"}},{"$f":"_xll.RiskData('Risk Summary'!K$48,$A1874)/1000","v":{"$error":"#NAME?"}},{"$f":"_xll.RiskData('Risk Summary'!L$48,$A1874)/1000","v":{"$error":"#NAME?"}},null,null,{"$f":"(_xll.RiskData(NR_to_Cash!C$18,$A1874))/1000","v":{"$error":"#NAME?"}},{"$f":"(_xll.RiskData(NR_to_Cash!D$18,$A1874))/1000","v":{"$error":"#NAME?"}},{"$f":"(_xll.RiskData(NR_to_Cash!E$18,$A1874))/1000","v":{"$error":"#NAME?"}}]
[1868,{"$f":"_xll.RiskData('Risk Summary'!J$48,$A1875)/1000","v":{"$error":"#NAME?"}},{"$f":"_xll.RiskData('Risk Summary'!K$48,$A1875)/1000","v":{"$error":"#NAME?"}},{"$f":"_xll.RiskData('Risk Summary'!L$48,$A1875)/1000","v":{"$error":"#NAME?"}},null,null,{"$f":"(_xll.RiskData(NR_to_Cash!C$18,$A1875))/1000","v":{"$error":"#NAME?"}},{"$f":"(_xll.RiskData(NR_to_Cash!D$18,$A1875))/1000","v":{"$error":"#NAME?"}},{"$f":"(_xll.RiskData(NR_to_Cash!E$18,$A1875))/1000","v":{"$error":"#NAME?"}}]
[1869,{"$f":"_xll.RiskData('Risk Summary'!J$48,$A1876)/1000","v":{"$error":"#NAME?"}},{"$f":"_xll.RiskData('Risk Summary'!K$48,$A1876)/1000","v":{"$error":"#NAME?"}},{"$f":"_xll.RiskData('Risk Summary'!L$48,$A1876)/1000","v":{"$error":"#NAME?"}},null,null,{"$f":"(_xll.RiskData(NR_to_Cash!C$18,$A1876))/1000","v":{"$error":"#NAME?"}},{"$f":"(_xll.RiskData(NR_to_Cash!D$18,$A1876))/1000","v":{"$error":"#NAME?"}},{"$f":"(_xll.RiskData(NR_to_Cash!E$18,$A1876))/1000","v":{"$error":"#NAME?"}}]
[1870,{"$f":"_xll.RiskData('Risk Summary'!J$48,$A1877)/1000","v":{"$error":"#NAME?"}},{"$f":"_xll.RiskData('Risk Summary'!K$48,$A1877)/1000","v":{"$error":"#NAME?"}},{"$f":"_xll.RiskData('Risk Summary'!L$48,$A1877)/1000","v":{"$error":"#NAME?"}},null,null,{"$f":"(_xll.RiskData(NR_to_Cash!C$18,$A1877))/1000","v":{"$error":"#NAME?"}},{"$f":"(_xll.RiskData(NR_to_Cash!D$18,$A1877))/1000","v":{"$error":"#NAME?"}},{"$f":"(_xll.RiskData(NR_to_Cash!E$18,$A1877))/1000","v":{"$error":"#NAME?"}}]
[1871,{"$f":"_xll.RiskData('Risk Summary'!J$48,$A1878)/1000","v":{"$error":"#NAME?"}},{"$f":"_xll.RiskData('Risk Summary'!K$48,$A1878)/1000","v":{"$error":"#NAME?"}},{"$f":"_xll.RiskData('Risk Summary'!L$48,$A1878)/1000","v":{"$error":"#NAME?"}},null,null,{"$f":"(_xll.RiskData(NR_to_Cash!C$18,$A1878))/1000","v":{"$error":"#NAME?"}},{"$f":"(_xll.RiskData(NR_to_Cash!D$18,$A1878))/1000","v":{"$error":"#NAME?"}},{"$f":"(_xll.RiskData(NR_to_Cash!E$18,$A1878))/1000","v":{"$error":"#NAME?"}}]
[1872,{"$f":"_xll.RiskData('Risk Summary'!J$48,$A1879)/1000","v":{"$error":"#NAME?"}},{"$f":"_xll.RiskData('Risk Summary'!K$48,$A1879)/1000","v":{"$error":"#NAME?"}},{"$f":"_xll.RiskData('Risk Summary'!L$48,$A1879)/1000","v":{"$error":"#NAME?"}},null,null,{"$f":"(_xll.RiskData(NR_to_Cash!C$18,$A1879))/1000","v":{"$error":"#NAME?"}},{"$f":"(_xll.RiskData(NR_to_Cash!D$18,$A1879))/1000","v":{"$error":"#NAME?"}},{"$f":"(_xll.RiskData(NR_to_Cash!E$18,$A1879))/1000","v":{"$error":"#NAME?"}}]
[1873,{"$f":"_xll.RiskData('Risk Summary'!J$48,$A1880)/1000","v":{"$error":"#NAME?"}},{"$f":"_xll.RiskData('Risk Summary'!K$48,$A1880)/1000","v":{"$error":"#NAME?"}},{"$f":"_xll.RiskData('Risk Summary'!L$48,$A1880)/1000","v":{"$error":"#NAME?"}},null,null,{"$f":"(_xll.RiskData(NR_to_Cash!C$18,$A1880))/1000","v":{"$error":"#NAME?"}},{"$f":"(_xll.RiskData(NR_to_Cash!D$18,$A1880))/1000","v":{"$error":"#NAME?"}},{"$f":"(_xll.RiskData(NR_to_Cash!E$18,$A1880))/1000","v":{"$error":"#NAME?"}}]
[1874,{"$f":"_xll.RiskData('Risk Summary'!J$48,$A1881)/1000","v":{"$error":"#NAME?"}},{"$f":"_xll.RiskData('Risk Summary'!K$48,$A1881)/1000","v":{"$error":"#NAME?"}},{"$f":"_xll.RiskData('Risk Summary'!L$48,$A1881)/1000","v":{"$error":"#NAME?"}},null,null,{"$f":"(_xll.RiskData(NR_to_Cash!C$18,$A1881))/1000","v":{"$error":"#NAME?"}},{"$f":"(_xll.RiskData(NR_to_Cash!D$18,$A1881))/1000","v":{"$error":"#NAME?"}},{"$f":"(_xll.RiskData(NR_to_Cash!E$18,$A1881))/1000","v":{"$error":"#NAME?"}}]
[1875,{"$f":"_xll.RiskData('Risk Summary'!J$48,$A1882)/1000","v":{"$error":"#NAME?"}},{"$f":"_xll.RiskData('Risk Summary'!K$48,$A1882)/1000","v":{"$error":"#NAME?"}},{"$f":"_xll.RiskData('Risk Summary'!L$48,$A1882)/1000","v":{"$error":"#NAME?"}},null,null,{"$f":"(_xll.RiskData(NR_to_Cash!C$18,$A1882))/1000","v":{"$error":"#NAME?"}},{"$f":"(_xll.RiskData(NR_to_Cash!D$18,$A1882))/1000","v":{"$error":"#NAME?"}},{"$f":"(_xll.RiskData(NR_to_Cash!E$18,$A1882))/1000","v":{"$error":"#NAME?"}}]
[1876,{"$f":"_xll.RiskData('Risk Summary'!J$48,$A1883)/1000","v":{"$error":"#NAME?"}},{"$f":"_xll.RiskData('Risk Summary'!K$48,$A1883)/1000","v":{"$error":"#NAME?"}},{"$f":"_xll.RiskData('Risk Summary'!L$48,$A1883)/1000","v":{"$error":"#NAME?"}},null,null,{"$f":"(_xll.RiskData(NR_to_Cash!C$18,$A1883))/1000","v":{"$error":"#NAME?"}},{"$f":"(_xll.RiskData(NR_to_Cash!D$18,$A1883))/1000","v":{"$error":"#NAME?"}},{"$f":"(_xll.RiskData(NR_to_Cash!E$18,$A1883))/1000","v":{"$error":"#NAME?"}}]
[1877,{"$f":"_xll.RiskData('Risk Summary'!J$48,$A1884)/1000","v":{"$error":"#NAME?"}},{"$f":"_xll.RiskData('Risk Summary'!K$48,$A1884)/1000","v":{"$error":"#NAME?"}},{"$f":"_xll.RiskData('Risk Summary'!L$48,$A1884)/1000","v":{"$error":"#NAME?"}},null,null,{"$f":"(_xll.RiskData(NR_to_Cash!C$18,$A1884))/1000","v":{"$error":"#NAME?"}},{"$f":"(_xll.RiskData(NR_to_Cash!D$18,$A1884))/1000","v":{"$error":"#NAME?"}},{"$f":"(_xll.RiskData(NR_to_Cash!E$18,$A1884))/1000","v":{"$error":"#NAME?"}}]
[1878,{"$f":"_xll.RiskData('Risk Summary'!J$48,$A1885)/1000","v":{"$error":"#NAME?"}},{"$f":"_xll.RiskData('Risk Summary'!K$48,$A1885)/1000","v":{"$error":"#NAME?"}},{"$f":"_xll.RiskData('Risk Summary'!L$48,$A1885)/1000","v":{"$error":"#NAME?"}},null,null,{"$f":"(_xll.RiskData(NR_to_Cash!C$18,$A1885))/1000","v":{"$error":"#NAME?"}},{"$f":"(_xll.RiskData(NR_to_Cash!D$18,$A1885))/1000","v":{"$error":"#NAME?"}},{"$f":"(_xll.RiskData(NR_to_Cash!E$18,$A1885))/1000","v":{"$error":"#NAME?"}}]
[1879,{"$f":"_xll.RiskData('Risk Summary'!J$48,$A1886)/1000","v":{"$error":"#NAME?"}},{"$f":"_xll.RiskData('Risk Summary'!K$48,$A1886)/1000","v":{"$error":"#NAME?"}},{"$f":"_xll.RiskData('Risk Summary'!L$48,$A1886)/1000","v":{"$error":"#NAME?"}},null,null,{"$f":"(_xll.RiskData(NR_to_Cash!C$18,$A1886))/1000","v":{"$error":"#NAME?"}},{"$f":"(_xll.RiskData(NR_to_Cash!D$18,$A1886))/1000","v":{"$error":"#NAME?"}},{"$f":"(_xll.RiskData(NR_to_Cash!E$18,$A1886))/1000","v":{"$error":"#NAME?"}}]
[1880,{"$f":"_xll.RiskData('Risk Summary'!J$48,$A1887)/1000","v":{"$error":"#NAME?"}},{"$f":"_xll.RiskData('Risk Summary'!K$48,$A1887)/1000","v":{"$error":"#NAME?"}},{"$f":"_xll.RiskData('Risk Summary'!L$48,$A1887)/1000","v":{"$error":"#NAME?"}},null,null,{"$f":"(_xll.RiskData(NR_to_Cash!C$18,$A1887))/1000","v":{"$error":"#NAME?"}},{"$f":"(_xll.RiskData(NR_to_Cash!D$18,$A1887))/1000","v":{"$error":"#NAME?"}},{"$f":"(_xll.RiskData(NR_to_Cash!E$18,$A1887))/1000","v":{"$error":"#NAME?"}}]
[1881,{"$f":"_xll.RiskData('Risk Summary'!J$48,$A1888)/1000","v":{"$error":"#NAME?"}},{"$f":"_xll.RiskData('Risk Summary'!K$48,$A1888)/1000","v":{"$error":"#NAME?"}},{"$f":"_xll.RiskData('Risk Summary'!L$48,$A1888)/1000","v":{"$error":"#NAME?"}},null,null,{"$f":"(_xll.RiskData(NR_to_Cash!C$18,$A1888))/1000","v":{"$error":"#NAME?"}},{"$f":"(_xll.RiskData(NR_to_Cash!D$18,$A1888))/1000","v":{"$error":"#NAME?"}},{"$f":"(_xll.RiskData(NR_to_Cash!E$18,$A1888))/1000","v":{"$error":"#NAME?"}}]
[1882,{"$f":"_xll.RiskData('Risk Summary'!J$48,$A1889)/1000","v":{"$error":"#NAME?"}},{"$f":"_xll.RiskData('Risk Summary'!K$48,$A1889)/1000","v":{"$error":"#NAME?"}},{"$f":"_xll.RiskData('Risk Summary'!L$48,$A1889)/1000","v":{"$error":"#NAME?"}},null,null,{"$f":"(_xll.RiskData(NR_to_Cash!C$18,$A1889))/1000","v":{"$error":"#NAME?"}},{"$f":"(_xll.RiskData(NR_to_Cash!D$18,$A1889))/1000","v":{"$error":"#NAME?"}},{"$f":"(_xll.RiskData(NR_to_Cash!E$18,$A1889))/1000","v":{"$error":"#NAME?"}}]
[1883,{"$f":"_xll.RiskData('Risk Summary'!J$48,$A1890)/1000","v":{"$error":"#NAME?"}},{"$f":"_xll.RiskData('Risk Summary'!K$48,$A1890)/1000","v":{"$error":"#NAME?"}},{"$f":"_xll.RiskData('Risk Summary'!L$48,$A1890)/1000","v":{"$error":"#NAME?"}},null,null,{"$f":"(_xll.RiskData(NR_to_Cash!C$18,$A1890))/1000","v":{"$error":"#NAME?"}},{"$f":"(_xll.RiskData(NR_to_Cash!D$18,$A1890))/1000","v":{"$error":"#NAME?"}},{"$f":"(_xll.RiskData(NR_to_Cash!E$18,$A1890))/1000","v":{"$error":"#NAME?"}}]
[1884,{"$f":"_xll.RiskData('Risk Summary'!J$48,$A1891)/1000","v":{"$error":"#NAME?"}},{"$f":"_xll.RiskData('Risk Summary'!K$48,$A1891)/1000","v":{"$error":"#NAME?"}},{"$f":"_xll.RiskData('Risk Summary'!L$48,$A1891)/1000","v":{"$error":"#NAME?"}},null,null,{"$f":"(_xll.RiskData(NR_to_Cash!C$18,$A1891))/1000","v":{"$error":"#NAME?"}},{"$f":"(_xll.RiskData(NR_to_Cash!D$18,$A1891))/1000","v":{"$error":"#NAME?"}},{"$f":"(_xll.RiskData(NR_to_Cash!E$18,$A1891))/1000","v":{"$error":"#NAME?"}}]
[1885,{"$f":"_xll.RiskData('Risk Summary'!J$48,$A1892)/1000","v":{"$error":"#NAME?"}},{"$f":"_xll.RiskData('Risk Summary'!K$48,$A1892)/1000","v":{"$error":"#NAME?"}},{"$f":"_xll.RiskData('Risk Summary'!L$48,$A1892)/1000","v":{"$error":"#NAME?"}},null,null,{"$f":"(_xll.RiskData(NR_to_Cash!C$18,$A1892))/1000","v":{"$error":"#NAME?"}},{"$f":"(_xll.RiskData(NR_to_Cash!D$18,$A1892))/1000","v":{"$error":"#NAME?"}},{"$f":"(_xll.RiskData(NR_to_Cash!E$18,$A1892))/1000","v":{"$error":"#NAME?"}}]
[1886,{"$f":"_xll.RiskData('Risk Summary'!J$48,$A1893)/1000","v":{"$error":"#NAME?"}},{"$f":"_xll.RiskData('Risk Summary'!K$48,$A1893)/1000","v":{"$error":"#NAME?"}},{"$f":"_xll.RiskData('Risk Summary'!L$48,$A1893)/1000","v":{"$error":"#NAME?"}},null,null,{"$f":"(_xll.RiskData(NR_to_Cash!C$18,$A1893))/1000","v":{"$error":"#NAME?"}},{"$f":"(_xll.RiskData(NR_to_Cash!D$18,$A1893))/1000","v":{"$error":"#NAME?"}},{"$f":"(_xll.RiskData(NR_to_Cash!E$18,$A1893))/1000","v":{"$error":"#NAME?"}}]
[1887,{"$f":"_xll.RiskData('Risk Summary'!J$48,$A1894)/1000","v":{"$error":"#NAME?"}},{"$f":"_xll.RiskData('Risk Summary'!K$48,$A1894)/1000","v":{"$error":"#NAME?"}},{"$f":"_xll.RiskData('Risk Summary'!L$48,$A1894)/1000","v":{"$error":"#NAME?"}},null,null,{"$f":"(_xll.RiskData(NR_to_Cash!C$18,$A1894))/1000","v":{"$error":"#NAME?"}},{"$f":"(_xll.RiskData(NR_to_Cash!D$18,$A1894))/1000","v":{"$error":"#NAME?"}},{"$f":"(_xll.RiskData(NR_to_Cash!E$18,$A1894))/1000","v":{"$error":"#NAME?"}}]
[1888,{"$f":"_xll.RiskData('Risk Summary'!J$48,$A1895)/1000","v":{"$error":"#NAME?"}},{"$f":"_xll.RiskData('Risk Summary'!K$48,$A1895)/1000","v":{"$error":"#NAME?"}},{"$f":"_xll.RiskData('Risk Summary'!L$48,$A1895)/1000","v":{"$error":"#NAME?"}},null,null,{"$f":"(_xll.RiskData(NR_to_Cash!C$18,$A1895))/1000","v":{"$error":"#NAME?"}},{"$f":"(_xll.RiskData(NR_to_Cash!D$18,$A1895))/1000","v":{"$error":"#NAME?"}},{"$f":"(_xll.RiskData(NR_to_Cash!E$18,$A1895))/1000","v":{"$error":"#NAME?"}}]
[1889,{"$f":"_xll.RiskData('Risk Summary'!J$48,$A1896)/1000","v":{"$error":"#NAME?"}},{"$f":"_xll.RiskData('Risk Summary'!K$48,$A1896)/1000","v":{"$error":"#NAME?"}},{"$f":"_xll.RiskData('Risk Summary'!L$48,$A1896)/1000","v":{"$error":"#NAME?"}},null,null,{"$f":"(_xll.RiskData(NR_to_Cash!C$18,$A1896))/1000","v":{"$error":"#NAME?"}},{"$f":"(_xll.RiskData(NR_to_Cash!D$18,$A1896))/1000","v":{"$error":"#NAME?"}},{"$f":"(_xll.RiskData(NR_to_Cash!E$18,$A1896))/1000","v":{"$error":"#NAME?"}}]
[1890,{"$f":"_xll.RiskData('Risk Summary'!J$48,$A1897)/1000","v":{"$error":"#NAME?"}},{"$f":"_xll.RiskData('Risk Summary'!K$48,$A1897)/1000","v":{"$error":"#NAME?"}},{"$f":"_xll.RiskData('Risk Summary'!L$48,$A1897)/1000","v":{"$error":"#NAME?"}},null,null,{"$f":"(_xll.RiskData(NR_to_Cash!C$18,$A1897))/1000","v":{"$error":"#NAME?"}},{"$f":"(_xll.RiskData(NR_to_Cash!D$18,$A1897))/1000","v":{"$error":"#NAME?"}},{"$f":"(_xll.RiskData(NR_to_Cash!E$18,$A1897))/1000","v":{"$error":"#NAME?"}}]
[1891,{"$f":"_xll.RiskData('Risk Summary'!J$48,$A1898)/1000","v":{"$error":"#NAME?"}},{"$f":"_xll.RiskData('Risk Summary'!K$48,$A1898)/1000","v":{"$error":"#NAME?"}},{"$f":"_xll.RiskData('Risk Summary'!L$48,$A1898)/1000","v":{"$error":"#NAME?"}},null,null,{"$f":"(_xll.RiskData(NR_to_Cash!C$18,$A1898))/1000","v":{"$error":"#NAME?"}},{"$f":"(_xll.RiskData(NR_to_Cash!D$18,$A1898))/1000","v":{"$error":"#NAME?"}},{"$f":"(_xll.RiskData(NR_to_Cash!E$18,$A1898))/1000","v":{"$error":"#NAME?"}}]
[1892,{"$f":"_xll.RiskData('Risk Summary'!J$48,$A1899)/1000","v":{"$error":"#NAME?"}},{"$f":"_xll.RiskData('Risk Summary'!K$48,$A1899)/1000","v":{"$error":"#NAME?"}},{"$f":"_xll.RiskData('Risk Summary'!L$48,$A1899)/1000","v":{"$error":"#NAME?"}},null,null,{"$f":"(_xll.RiskData(NR_to_Cash!C$18,$A1899))/1000","v":{"$error":"#NAME?"}},{"$f":"(_xll.RiskData(NR_to_Cash!D$18,$A1899))/1000","v":{"$error":"#NAME?"}},{"$f":"(_xll.RiskData(NR_to_Cash!E$18,$A1899))/1000","v":{"$error":"#NAME?"}}]
[1893,{"$f":"_xll.RiskData('Risk Summary'!J$48,$A1900)/1000","v":{"$error":"#NAME?"}},{"$f":"_xll.RiskData('Risk Summary'!K$48,$A1900)/1000","v":{"$error":"#NAME?"}},{"$f":"_xll.RiskData('Risk Summary'!L$48,$A1900)/1000","v":{"$error":"#NAME?"}},null,null,{"$f":"(_xll.RiskData(NR_to_Cash!C$18,$A1900))/1000","v":{"$error":"#NAME?"}},{"$f":"(_xll.RiskData(NR_to_Cash!D$18,$A1900))/1000","v":{"$error":"#NAME?"}},{"$f":"(_xll.RiskData(NR_to_Cash!E$18,$A1900))/1000","v":{"$error":"#NAME?"}}]
[1894,{"$f":"_xll.RiskData('Risk Summary'!J$48,$A1901)/1000","v":{"$error":"#NAME?"}},{"$f":"_xll.RiskData('Risk Summary'!K$48,$A1901)/1000","v":{"$error":"#NAME?"}},{"$f":"_xll.RiskData('Risk Summary'!L$48,$A1901)/1000","v":{"$error":"#NAME?"}},null,null,{"$f":"(_xll.RiskData(NR_to_Cash!C$18,$A1901))/1000","v":{"$error":"#NAME?"}},{"$f":"(_xll.RiskData(NR_to_Cash!D$18,$A1901))/1000","v":{"$error":"#NAME?"}},{"$f":"(_xll.RiskData(NR_to_Cash!E$18,$A1901))/1000","v":{"$error":"#NAME?"}}]
[1895,{"$f":"_xll.RiskData('Risk Summary'!J$48,$A1902)/1000","v":{"$error":"#NAME?"}},{"$f":"_xll.RiskData('Risk Summary'!K$48,$A1902)/1000","v":{"$error":"#NAME?"}},{"$f":"_xll.RiskData('Risk Summary'!L$48,$A1902)/1000","v":{"$error":"#NAME?"}},null,null,{"$f":"(_xll.RiskData(NR_to_Cash!C$18,$A1902))/1000","v":{"$error":"#NAME?"}},{"$f":"(_xll.RiskData(NR_to_Cash!D$18,$A1902))/1000","v":{"$error":"#NAME?"}},{"$f":"(_xll.RiskData(NR_to_Cash!E$18,$A1902))/1000","v":{"$error":"#NAME?"}}]
[1896,{"$f":"_xll.RiskData('Risk Summary'!J$48,$A1903)/1000","v":{"$error":"#NAME?"}},{"$f":"_xll.RiskData('Risk Summary'!K$48,$A1903)/1000","v":{"$error":"#NAME?"}},{"$f":"_xll.RiskData('Risk Summary'!L$48,$A1903)/1000","v":{"$error":"#NAME?"}},null,null,{"$f":"(_xll.RiskData(NR_to_Cash!C$18,$A1903))/1000","v":{"$error":"#NAME?"}},{"$f":"(_xll.RiskData(NR_to_Cash!D$18,$A1903))/1000","v":{"$error":"#NAME?"}},{"$f":"(_xll.RiskData(NR_to_Cash!E$18,$A1903))/1000","v":{"$error":"#NAME?"}}]
[1897,{"$f":"_xll.RiskData('Risk Summary'!J$48,$A1904)/1000","v":{"$error":"#NAME?"}},{"$f":"_xll.RiskData('Risk Summary'!K$48,$A1904)/1000","v":{"$error":"#NAME?"}},{"$f":"_xll.RiskData('Risk Summary'!L$48,$A1904)/1000","v":{"$error":"#NAME?"}},null,null,{"$f":"(_xll.RiskData(NR_to_Cash!C$18,$A1904))/1000","v":{"$error":"#NAME?"}},{"$f":"(_xll.RiskData(NR_to_Cash!D$18,$A1904))/1000","v":{"$error":"#NAME?"}},{"$f":"(_xll.RiskData(NR_to_Cash!E$18,$A1904))/1000","v":{"$error":"#NAME?"}}]
[1898,{"$f":"_xll.RiskData('Risk Summary'!J$48,$A1905)/1000","v":{"$error":"#NAME?"}},{"$f":"_xll.RiskData('Risk Summary'!K$48,$A1905)/1000","v":{"$error":"#NAME?"}},{"$f":"_xll.RiskData('Risk Summary'!L$48,$A1905)/1000","v":{"$error":"#NAME?"}},null,null,{"$f":"(_xll.RiskData(NR_to_Cash!C$18,$A1905))/1000","v":{"$error":"#NAME?"}},{"$f":"(_xll.RiskData(NR_to_Cash!D$18,$A1905))/1000","v":{"$error":"#NAME?"}},{"$f":"(_xll.RiskData(NR_to_Cash!E$18,$A1905))/1000","v":{"$error":"#NAME?"}}]
[1899,{"$f":"_xll.RiskData('Risk Summary'!J$48,$A1906)/1000","v":{"$error":"#NAME?"}},{"$f":"_xll.RiskData('Risk Summary'!K$48,$A1906)/1000","v":{"$error":"#NAME?"}},{"$f":"_xll.RiskData('Risk Summary'!L$48,$A1906)/1000","v":{"$error":"#NAME?"}},null,null,{"$f":"(_xll.RiskData(NR_to_Cash!C$18,$A1906))/1000","v":{"$error":"#NAME?"}},{"$f":"(_xll.RiskData(NR_to_Cash!D$18,$A1906))/1000","v":{"$error":"#NAME?"}},{"$f":"(_xll.RiskData(NR_to_Cash!E$18,$A1906))/1000","v":{"$error":"#NAME?"}}]
[1900,{"$f":"_xll.RiskData('Risk Summary'!J$48,$A1907)/1000","v":{"$error":"#NAME?"}},{"$f":"_xll.RiskData('Risk Summary'!K$48,$A1907)/1000","v":{"$error":"#NAME?"}},{"$f":"_xll.RiskData('Risk Summary'!L$48,$A1907)/1000","v":{"$error":"#NAME?"}},null,null,{"$f":"(_xll.RiskData(NR_to_Cash!C$18,$A1907))/1000","v":{"$error":"#NAME?"}},{"$f":"(_xll.RiskData(NR_to_Cash!D$18,$A1907))/1000","v":{"$error":"#NAME?"}},{"$f":"(_xll.RiskData(NR_to_Cash!E$18,$A1907))/1000","v":{"$error":"#NAME?"}}]
[1901,{"$f":"_xll.RiskData('Risk Summary'!J$48,$A1908)/1000","v":{"$error":"#NAME?"}},{"$f":"_xll.RiskData('Risk Summary'!K$48,$A1908)/1000","v":{"$error":"#NAME?"}},{"$f":"_xll.RiskData('Risk Summary'!L$48,$A1908)/1000","v":{"$error":"#NAME?"}},null,null,{"$f":"(_xll.RiskData(NR_to_Cash!C$18,$A1908))/1000","v":{"$error":"#NAME?"}},{"$f":"(_xll.RiskData(NR_to_Cash!D$18,$A1908))/1000","v":{"$error":"#NAME?"}},{"$f":"(_xll.RiskData(NR_to_Cash!E$18,$A1908))/1000","v":{"$error":"#NAME?"}}]
[1902,{"$f":"_xll.RiskData('Risk Summary'!J$48,$A1909)/1000","v":{"$error":"#NAME?"}},{"$f":"_xll.RiskData('Risk Summary'!K$48,$A1909)/1000","v":{"$error":"#NAME?"}},{"$f":"_xll.RiskData('Risk Summary'!L$48,$A1909)/1000","v":{"$error":"#NAME?"}},null,null,{"$f":"(_xll.RiskData(NR_to_Cash!C$18,$A1909))/1000","v":{"$error":"#NAME?"}},{"$f":"(_xll.RiskData(NR_to_Cash!D$18,$A1909))/1000","v":{"$error":"#NAME?"}},{"$f":"(_xll.RiskData(NR_to_Cash!E$18,$A1909))/1000","v":{"$error":"#NAME?"}}]
[1903,{"$f":"_xll.RiskData('Risk Summary'!J$48,$A1910)/1000","v":{"$error":"#NAME?"}},{"$f":"_xll.RiskData('Risk Summary'!K$48,$A1910)/1000","v":{"$error":"#NAME?"}},{"$f":"_xll.RiskData('Risk Summary'!L$48,$A1910)/1000","v":{"$error":"#NAME?"}},null,null,{"$f":"(_xll.RiskData(NR_to_Cash!C$18,$A1910))/1000","v":{"$error":"#NAME?"}},{"$f":"(_xll.RiskData(NR_to_Cash!D$18,$A1910))/1000","v":{"$error":"#NAME?"}},{"$f":"(_xll.RiskData(NR_to_Cash!E$18,$A1910))/1000","v":{"$error":"#NAME?"}}]
[1904,{"$f":"_xll.RiskData('Risk Summary'!J$48,$A1911)/1000","v":{"$error":"#NAME?"}},{"$f":"_xll.RiskData('Risk Summary'!K$48,$A1911)/1000","v":{"$error":"#NAME?"}},{"$f":"_xll.RiskData('Risk Summary'!L$48,$A1911)/1000","v":{"$error":"#NAME?"}},null,null,{"$f":"(_xll.RiskData(NR_to_Cash!C$18,$A1911))/1000","v":{"$error":"#NAME?"}},{"$f":"(_xll.RiskData(NR_to_Cash!D$18,$A1911))/1000","v":{"$error":"#NAME?"}},{"$f":"(_xll.RiskData(NR_to_Cash!E$18,$A1911))/1000","v":{"$error":"#NAME?"}}]
[1905,{"$f":"_xll.RiskData('Risk Summary'!J$48,$A1912)/1000","v":{"$error":"#NAME?"}},{"$f":"_xll.RiskData('Risk Summary'!K$48,$A1912)/1000","v":{"$error":"#NAME?"}},{"$f":"_xll.RiskData('Risk Summary'!L$48,$A1912)/1000","v":{"$error":"#NAME?"}},null,null,{"$f":"(_xll.RiskData(NR_to_Cash!C$18,$A1912))/1000","v":{"$error":"#NAME?"}},{"$f":"(_xll.RiskData(NR_to_Cash!D$18,$A1912))/1000","v":{"$error":"#NAME?"}},{"$f":"(_xll.RiskData(NR_to_Cash!E$18,$A1912))/1000","v":{"$error":"#NAME?"}}]
[1906,{"$f":"_xll.RiskData('Risk Summary'!J$48,$A1913)/1000","v":{"$error":"#NAME?"}},{"$f":"_xll.RiskData('Risk Summary'!K$48,$A1913)/1000","v":{"$error":"#NAME?"}},{"$f":"_xll.RiskData('Risk Summary'!L$48,$A1913)/1000","v":{"$error":"#NAME?"}},null,null,{"$f":"(_xll.RiskData(NR_to_Cash!C$18,$A1913))/1000","v":{"$error":"#NAME?"}},{"$f":"(_xll.RiskData(NR_to_Cash!D$18,$A1913))/1000","v":{"$error":"#NAME?"}},{"$f":"(_xll.RiskData(NR_to_Cash!E$18,$A1913))/1000","v":{"$error":"#NAME?"}}]
[1907,{"$f":"_xll.RiskData('Risk Summary'!J$48,$A1914)/1000","v":{"$error":"#NAME?"}},{"$f":"_xll.RiskData('Risk Summary'!K$48,$A1914)/1000","v":{"$error":"#NAME?"}},{"$f":"_xll.RiskData('Risk Summary'!L$48,$A1914)/1000","v":{"$error":"#NAME?"}},null,null,{"$f":"(_xll.RiskData(NR_to_Cash!C$18,$A1914))/1000","v":{"$error":"#NAME?"}},{"$f":"(_xll.RiskData(NR_to_Cash!D$18,$A1914))/1000","v":{"$error":"#NAME?"}},{"$f":"(_xll.RiskData(NR_to_Cash!E$18,$A1914))/1000","v":{"$error":"#NAME?"}}]
[1908,{"$f":"_xll.RiskData('Risk Summary'!J$48,$A1915)/1000","v":{"$error":"#NAME?"}},{"$f":"_xll.RiskData('Risk Summary'!K$48,$A1915)/1000","v":{"$error":"#NAME?"}},{"$f":"_xll.RiskData('Risk Summary'!L$48,$A1915)/1000","v":{"$error":"#NAME?"}},null,null,{"$f":"(_xll.RiskData(NR_to_Cash!C$18,$A1915))/1000","v":{"$error":"#NAME?"}},{"$f":"(_xll.RiskData(NR_to_Cash!D$18,$A1915))/1000","v":{"$error":"#NAME?"}},{"$f":"(_xll.RiskData(NR_to_Cash!E$18,$A1915))/1000","v":{"$error":"#NAME?"}}]
[1909,{"$f":"_xll.RiskData('Risk Summary'!J$48,$A1916)/1000","v":{"$error":"#NAME?"}},{"$f":"_xll.RiskData('Risk Summary'!K$48,$A1916)/1000","v":{"$error":"#NAME?"}},{"$f":"_xll.RiskData('Risk Summary'!L$48,$A1916)/1000","v":{"$error":"#NAME?"}},null,null,{"$f":"(_xll.RiskData(NR_to_Cash!C$18,$A1916))/1000","v":{"$error":"#NAME?"}},{"$f":"(_xll.RiskData(NR_to_Cash!D$18,$A1916))/1000","v":{"$error":"#NAME?"}},{"$f":"(_xll.RiskData(NR_to_Cash!E$18,$A1916))/1000","v":{"$error":"#NAME?"}}]
[1910,{"$f":"_xll.RiskData('Risk Summary'!J$48,$A1917)/1000","v":{"$error":"#NAME?"}},{"$f":"_xll.RiskData('Risk Summary'!K$48,$A1917)/1000","v":{"$error":"#NAME?"}},{"$f":"_xll.RiskData('Risk Summary'!L$48,$A1917)/1000","v":{"$error":"#NAME?"}},null,null,{"$f":"(_xll.RiskData(NR_to_Cash!C$18,$A1917))/1000","v":{"$error":"#NAME?"}},{"$f":"(_xll.RiskData(NR_to_Cash!D$18,$A1917))/1000","v":{"$error":"#NAME?"}},{"$f":"(_xll.RiskData(NR_to_Cash!E$18,$A1917))/1000","v":{"$error":"#NAME?"}}]
[1911,{"$f":"_xll.RiskData('Risk Summary'!J$48,$A1918)/1000","v":{"$error":"#NAME?"}},{"$f":"_xll.RiskData('Risk Summary'!K$48,$A1918)/1000","v":{"$error":"#NAME?"}},{"$f":"_xll.RiskData('Risk Summary'!L$48,$A1918)/1000","v":{"$error":"#NAME?"}},null,null,{"$f":"(_xll.RiskData(NR_to_Cash!C$18,$A1918))/1000","v":{"$error":"#NAME?"}},{"$f":"(_xll.RiskData(NR_to_Cash!D$18,$A1918))/1000","v":{"$error":"#NAME?"}},{"$f":"(_xll.RiskData(NR_to_Cash!E$18,$A1918))/1000","v":{"$error":"#NAME?"}}]
[1912,{"$f":"_xll.RiskData('Risk Summary'!J$48,$A1919)/1000","v":{"$error":"#NAME?"}},{"$f":"_xll.RiskData('Risk Summary'!K$48,$A1919)/1000","v":{"$error":"#NAME?"}},{"$f":"_xll.RiskData('Risk Summary'!L$48,$A1919)/1000","v":{"$error":"#NAME?"}},null,null,{"$f":"(_xll.RiskData(NR_to_Cash!C$18,$A1919))/1000","v":{"$error":"#NAME?"}},{"$f":"(_xll.RiskData(NR_to_Cash!D$18,$A1919))/1000","v":{"$error":"#NAME?"}},{"$f":"(_xll.RiskData(NR_to_Cash!E$18,$A1919))/1000","v":{"$error":"#NAME?"}}]
[1913,{"$f":"_xll.RiskData('Risk Summary'!J$48,$A1920)/1000","v":{"$error":"#NAME?"}},{"$f":"_xll.RiskData('Risk Summary'!K$48,$A1920)/1000","v":{"$error":"#NAME?"}},{"$f":"_xll.RiskData('Risk Summary'!L$48,$A1920)/1000","v":{"$error":"#NAME?"}},null,null,{"$f":"(_xll.RiskData(NR_to_Cash!C$18,$A1920))/1000","v":{"$error":"#NAME?"}},{"$f":"(_xll.RiskData(NR_to_Cash!D$18,$A1920))/1000","v":{"$error":"#NAME?"}},{"$f":"(_xll.RiskData(NR_to_Cash!E$18,$A1920))/1000","v":{"$error":"#NAME?"}}]
[1914,{"$f":"_xll.RiskData('Risk Summary'!J$48,$A1921)/1000","v":{"$error":"#NAME?"}},{"$f":"_xll.RiskData('Risk Summary'!K$48,$A1921)/1000","v":{"$error":"#NAME?"}},{"$f":"_xll.RiskData('Risk Summary'!L$48,$A1921)/1000","v":{"$error":"#NAME?"}},null,null,{"$f":"(_xll.RiskData(NR_to_Cash!C$18,$A1921))/1000","v":{"$error":"#NAME?"}},{"$f":"(_xll.RiskData(NR_to_Cash!D$18,$A1921))/1000","v":{"$error":"#NAME?"}},{"$f":"(_xll.RiskData(NR_to_Cash!E$18,$A1921))/1000","v":{"$error":"#NAME?"}}]
[1915,{"$f":"_xll.RiskData('Risk Summary'!J$48,$A1922)/1000","v":{"$error":"#NAME?"}},{"$f":"_xll.RiskData('Risk Summary'!K$48,$A1922)/1000","v":{"$error":"#NAME?"}},{"$f":"_xll.RiskData('Risk Summary'!L$48,$A1922)/1000","v":{"$error":"#NAME?"}},null,null,{"$f":"(_xll.RiskData(NR_to_Cash!C$18,$A1922))/1000","v":{"$error":"#NAME?"}},{"$f":"(_xll.RiskData(NR_to_Cash!D$18,$A1922))/1000","v":{"$error":"#NAME?"}},{"$f":"(_xll.RiskData(NR_to_Cash!E$18,$A1922))/1000","v":{"$error":"#NAME?"}}]
[1916,{"$f":"_xll.RiskData('Risk Summary'!J$48,$A1923)/1000","v":{"$error":"#NAME?"}},{"$f":"_xll.RiskData('Risk Summary'!K$48,$A1923)/1000","v":{"$error":"#NAME?"}},{"$f":"_xll.RiskData('Risk Summary'!L$48,$A1923)/1000","v":{"$error":"#NAME?"}},null,null,{"$f":"(_xll.RiskData(NR_to_Cash!C$18,$A1923))/1000","v":{"$error":"#NAME?"}},{"$f":"(_xll.RiskData(NR_to_Cash!D$18,$A1923))/1000","v":{"$error":"#NAME?"}},{"$f":"(_xll.RiskData(NR_to_Cash!E$18,$A1923))/1000","v":{"$error":"#NAME?"}}]
[1917,{"$f":"_xll.RiskData('Risk Summary'!J$48,$A1924)/1000","v":{"$error":"#NAME?"}},{"$f":"_xll.RiskData('Risk Summary'!K$48,$A1924)/1000","v":{"$error":"#NAME?"}},{"$f":"_xll.RiskData('Risk Summary'!L$48,$A1924)/1000","v":{"$error":"#NAME?"}},null,null,{"$f":"(_xll.RiskData(NR_to_Cash!C$18,$A1924))/1000","v":{"$error":"#NAME?"}},{"$f":"(_xll.RiskData(NR_to_Cash!D$18,$A1924))/1000","v":{"$error":"#NAME?"}},{"$f":"(_xll.RiskData(NR_to_Cash!E$18,$A1924))/1000","v":{"$error":"#NAME?"}}]
[1918,{"$f":"_xll.RiskData('Risk Summary'!J$48,$A1925)/1000","v":{"$error":"#NAME?"}},{"$f":"_xll.RiskData('Risk Summary'!K$48,$A1925)/1000","v":{"$error":"#NAME?"}},{"$f":"_xll.RiskData('Risk Summary'!L$48,$A1925)/1000","v":{"$error":"#NAME?"}},null,null,{"$f":"(_xll.RiskData(NR_to_Cash!C$18,$A1925))/1000","v":{"$error":"#NAME?"}},{"$f":"(_xll.RiskData(NR_to_Cash!D$18,$A1925))/1000","v":{"$error":"#NAME?"}},{"$f":"(_xll.RiskData(NR_to_Cash!E$18,$A1925))/1000","v":{"$error":"#NAME?"}}]
[1919,{"$f":"_xll.RiskData('Risk Summary'!J$48,$A1926)/1000","v":{"$error":"#NAME?"}},{"$f":"_xll.RiskData('Risk Summary'!K$48,$A1926)/1000","v":{"$error":"#NAME?"}},{"$f":"_xll.RiskData('Risk Summary'!L$48,$A1926)/1000","v":{"$error":"#NAME?"}},null,null,{"$f":"(_xll.RiskData(NR_to_Cash!C$18,$A1926))/1000","v":{"$error":"#NAME?"}},{"$f":"(_xll.RiskData(NR_to_Cash!D$18,$A1926))/1000","v":{"$error":"#NAME?"}},{"$f":"(_xll.RiskData(NR_to_Cash!E$18,$A1926))/1000","v":{"$error":"#NAME?"}}]
[1920,{"$f":"_xll.RiskData('Risk Summary'!J$48,$A1927)/1000","v":{"$error":"#NAME?"}},{"$f":"_xll.RiskData('Risk Summary'!K$48,$A1927)/1000","v":{"$error":"#NAME?"}},{"$f":"_xll.RiskData('Risk Summary'!L$48,$A1927)/1000","v":{"$error":"#NAME?"}},null,null,{"$f":"(_xll.RiskData(NR_to_Cash!C$18,$A1927))/1000","v":{"$error":"#NAME?"}},{"$f":"(_xll.RiskData(NR_to_Cash!D$18,$A1927))/1000","v":{"$error":"#NAME?"}},{"$f":"(_xll.RiskData(NR_to_Cash!E$18,$A1927))/1000","v":{"$error":"#NAME?"}}]
[1921,{"$f":"_xll.RiskData('Risk Summary'!J$48,$A1928)/1000","v":{"$error":"#NAME?"}},{"$f":"_xll.RiskData('Risk Summary'!K$48,$A1928)/1000","v":{"$error":"#NAME?"}},{"$f":"_xll.RiskData('Risk Summary'!L$48,$A1928)/1000","v":{"$error":"#NAME?"}},null,null,{"$f":"(_xll.RiskData(NR_to_Cash!C$18,$A1928))/1000","v":{"$error":"#NAME?"}},{"$f":"(_xll.RiskData(NR_to_Cash!D$18,$A1928))/1000","v":{"$error":"#NAME?"}},{"$f":"(_xll.RiskData(NR_to_Cash!E$18,$A1928))/1000","v":{"$error":"#NAME?"}}]
[1922,{"$f":"_xll.RiskData('Risk Summary'!J$48,$A1929)/1000","v":{"$error":"#NAME?"}},{"$f":"_xll.RiskData('Risk Summary'!K$48,$A1929)/1000","v":{"$error":"#NAME?"}},{"$f":"_xll.RiskData('Risk Summary'!L$48,$A1929)/1000","v":{"$error":"#NAME?"}},null,null,{"$f":"(_xll.RiskData(NR_to_Cash!C$18,$A1929))/1000","v":{"$error":"#NAME?"}},{"$f":"(_xll.RiskData(NR_to_Cash!D$18,$A1929))/1000","v":{"$error":"#NAME?"}},{"$f":"(_xll.RiskData(NR_to_Cash!E$18,$A1929))/1000","v":{"$error":"#NAME?"}}]
[1923,{"$f":"_xll.RiskData('Risk Summary'!J$48,$A1930)/1000","v":{"$error":"#NAME?"}},{"$f":"_xll.RiskData('Risk Summary'!K$48,$A1930)/1000","v":{"$error":"#NAME?"}},{"$f":"_xll.RiskData('Risk Summary'!L$48,$A1930)/1000","v":{"$error":"#NAME?"}},null,null,{"$f":"(_xll.RiskData(NR_to_Cash!C$18,$A1930))/1000","v":{"$error":"#NAME?"}},{"$f":"(_xll.RiskData(NR_to_Cash!D$18,$A1930))/1000","v":{"$error":"#NAME?"}},{"$f":"(_xll.RiskData(NR_to_Cash!E$18,$A1930))/1000","v":{"$error":"#NAME?"}}]
[1924,{"$f":"_xll.RiskData('Risk Summary'!J$48,$A1931)/1000","v":{"$error":"#NAME?"}},{"$f":"_xll.RiskData('Risk Summary'!K$48,$A1931)/1000","v":{"$error":"#NAME?"}},{"$f":"_xll.RiskData('Risk Summary'!L$48,$A1931)/1000","v":{"$error":"#NAME?"}},null,null,{"$f":"(_xll.RiskData(NR_to_Cash!C$18,$A1931))/1000","v":{"$error":"#NAME?"}},{"$f":"(_xll.RiskData(NR_to_Cash!D$18,$A1931))/1000","v":{"$error":"#NAME?"}},{"$f":"(_xll.RiskData(NR_to_Cash!E$18,$A1931))/1000","v":{"$error":"#NAME?"}}]
[1925,{"$f":"_xll.RiskData('Risk Summary'!J$48,$A1932)/1000","v":{"$error":"#NAME?"}},{"$f":"_xll.RiskData('Risk Summary'!K$48,$A1932)/1000","v":{"$error":"#NAME?"}},{"$f":"_xll.RiskData('Risk Summary'!L$48,$A1932)/1000","v":{"$error":"#NAME?"}},null,null,{"$f":"(_xll.RiskData(NR_to_Cash!C$18,$A1932))/1000","v":{"$error":"#NAME?"}},{"$f":"(_xll.RiskData(NR_to_Cash!D$18,$A1932))/1000","v":{"$error":"#NAME?"}},{"$f":"(_xll.RiskData(NR_to_Cash!E$18,$A1932))/1000","v":{"$error":"#NAME?"}}]
[1926,{"$f":"_xll.RiskData('Risk Summary'!J$48,$A1933)/1000","v":{"$error":"#NAME?"}},{"$f":"_xll.RiskData('Risk Summary'!K$48,$A1933)/1000","v":{"$error":"#NAME?"}},{"$f":"_xll.RiskData('Risk Summary'!L$48,$A1933)/1000","v":{"$error":"#NAME?"}},null,null,{"$f":"(_xll.RiskData(NR_to_Cash!C$18,$A1933))/1000","v":{"$error":"#NAME?"}},{"$f":"(_xll.RiskData(NR_to_Cash!D$18,$A1933))/1000","v":{"$error":"#NAME?"}},{"$f":"(_xll.RiskData(NR_to_Cash!E$18,$A1933))/1000","v":{"$error":"#NAME?"}}]
[1927,{"$f":"_xll.RiskData('Risk Summary'!J$48,$A1934)/1000","v":{"$error":"#NAME?"}},{"$f":"_xll.RiskData('Risk Summary'!K$48,$A1934)/1000","v":{"$error":"#NAME?"}},{"$f":"_xll.RiskData('Risk Summary'!L$48,$A1934)/1000","v":{"$error":"#NAME?"}},null,null,{"$f":"(_xll.RiskData(NR_to_Cash!C$18,$A1934))/1000","v":{"$error":"#NAME?"}},{"$f":"(_xll.RiskData(NR_to_Cash!D$18,$A1934))/1000","v":{"$error":"#NAME?"}},{"$f":"(_xll.RiskData(NR_to_Cash!E$18,$A1934))/1000","v":{"$error":"#NAME?"}}]
[1928,{"$f":"_xll.RiskData('Risk Summary'!J$48,$A1935)/1000","v":{"$error":"#NAME?"}},{"$f":"_xll.RiskData('Risk Summary'!K$48,$A1935)/1000","v":{"$error":"#NAME?"}},{"$f":"_xll.RiskData('Risk Summary'!L$48,$A1935)/1000","v":{"$error":"#NAME?"}},null,null,{"$f":"(_xll.RiskData(NR_to_Cash!C$18,$A1935))/1000","v":{"$error":"#NAME?"}},{"$f":"(_xll.RiskData(NR_to_Cash!D$18,$A1935))/1000","v":{"$error":"#NAME?"}},{"$f":"(_xll.RiskData(NR_to_Cash!E$18,$A1935))/1000","v":{"$error":"#NAME?"}}]
[1929,{"$f":"_xll.RiskData('Risk Summary'!J$48,$A1936)/1000","v":{"$error":"#NAME?"}},{"$f":"_xll.RiskData('Risk Summary'!K$48,$A1936)/1000","v":{"$error":"#NAME?"}},{"$f":"_xll.RiskData('Risk Summary'!L$48,$A1936)/1000","v":{"$error":"#NAME?"}},null,null,{"$f":"(_xll.RiskData(NR_to_Cash!C$18,$A1936))/1000","v":{"$error":"#NAME?"}},{"$f":"(_xll.RiskData(NR_to_Cash!D$18,$A1936))/1000","v":{"$error":"#NAME?"}},{"$f":"(_xll.RiskData(NR_to_Cash!E$18,$A1936))/1000","v":{"$error":"#NAME?"}}]
[1930,{"$f":"_xll.RiskData('Risk Summary'!J$48,$A1937)/1000","v":{"$error":"#NAME?"}},{"$f":"_xll.RiskData('Risk Summary'!K$48,$A1937)/1000","v":{"$error":"#NAME?"}},{"$f":"_xll.RiskData('Risk Summary'!L$48,$A1937)/1000","v":{"$error":"#NAME?"}},null,null,{"$f":"(_xll.RiskData(NR_to_Cash!C$18,$A1937))/1000","v":{"$error":"#NAME?"}},{"$f":"(_xll.RiskData(NR_to_Cash!D$18,$A1937))/1000","v":{"$error":"#NAME?"}},{"$f":"(_xll.RiskData(NR_to_Cash!E$18,$A1937))/1000","v":{"$error":"#NAME?"}}]
[1931,{"$f":"_xll.RiskData('Risk Summary'!J$48,$A1938)/1000","v":{"$error":"#NAME?"}},{"$f":"_xll.RiskData('Risk Summary'!K$48,$A1938)/1000","v":{"$error":"#NAME?"}},{"$f":"_xll.RiskData('Risk Summary'!L$48,$A1938)/1000","v":{"$error":"#NAME?"}},null,null,{"$f":"(_xll.RiskData(NR_to_Cash!C$18,$A1938))/1000","v":{"$error":"#NAME?"}},{"$f":"(_xll.RiskData(NR_to_Cash!D$18,$A1938))/1000","v":{"$error":"#NAME?"}},{"$f":"(_xll.RiskData(NR_to_Cash!E$18,$A1938))/1000","v":{"$error":"#NAME?"}}]
[1932,{"$f":"_xll.RiskData('Risk Summary'!J$48,$A1939)/1000","v":{"$error":"#NAME?"}},{"$f":"_xll.RiskData('Risk Summary'!K$48,$A1939)/1000","v":{"$error":"#NAME?"}},{"$f":"_xll.RiskData('Risk Summary'!L$48,$A1939)/1000","v":{"$error":"#NAME?"}},null,null,{"$f":"(_xll.RiskData(NR_to_Cash!C$18,$A1939))/1000","v":{"$error":"#NAME?"}},{"$f":"(_xll.RiskData(NR_to_Cash!D$18,$A1939))/1000","v":{"$error":"#NAME?"}},{"$f":"(_xll.RiskData(NR_to_Cash!E$18,$A1939))/1000","v":{"$error":"#NAME?"}}]
[1933,{"$f":"_xll.RiskData('Risk Summary'!J$48,$A1940)/1000","v":{"$error":"#NAME?"}},{"$f":"_xll.RiskData('Risk Summary'!K$48,$A1940)/1000","v":{"$error":"#NAME?"}},{"$f":"_xll.RiskData('Risk Summary'!L$48,$A1940)/1000","v":{"$error":"#NAME?"}},null,null,{"$f":"(_xll.RiskData(NR_to_Cash!C$18,$A1940))/1000","v":{"$error":"#NAME?"}},{"$f":"(_xll.RiskData(NR_to_Cash!D$18,$A1940))/1000","v":{"$error":"#NAME?"}},{"$f":"(_xll.RiskData(NR_to_Cash!E$18,$A1940))/1000","v":{"$error":"#NAME?"}}]
[1934,{"$f":"_xll.RiskData('Risk Summary'!J$48,$A1941)/1000","v":{"$error":"#NAME?"}},{"$f":"_xll.RiskData('Risk Summary'!K$48,$A1941)/1000","v":{"$error":"#NAME?"}},{"$f":"_xll.RiskData('Risk Summary'!L$48,$A1941)/1000","v":{"$error":"#NAME?"}},null,null,{"$f":"(_xll.RiskData(NR_to_Cash!C$18,$A1941))/1000","v":{"$error":"#NAME?"}},{"$f":"(_xll.RiskData(NR_to_Cash!D$18,$A1941))/1000","v":{"$error":"#NAME?"}},{"$f":"(_xll.RiskData(NR_to_Cash!E$18,$A1941))/1000","v":{"$error":"#NAME?"}}]
[1935,{"$f":"_xll.RiskData('Risk Summary'!J$48,$A1942)/1000","v":{"$error":"#NAME?"}},{"$f":"_xll.RiskData('Risk Summary'!K$48,$A1942)/1000","v":{"$error":"#NAME?"}},{"$f":"_xll.RiskData('Risk Summary'!L$48,$A1942)/1000","v":{"$error":"#NAME?"}},null,null,{"$f":"(_xll.RiskData(NR_to_Cash!C$18,$A1942))/1000","v":{"$error":"#NAME?"}},{"$f":"(_xll.RiskData(NR_to_Cash!D$18,$A1942))/1000","v":{"$error":"#NAME?"}},{"$f":"(_xll.RiskData(NR_to_Cash!E$18,$A1942))/1000","v":{"$error":"#NAME?"}}]
[1936,{"$f":"_xll.RiskData('Risk Summary'!J$48,$A1943)/1000","v":{"$error":"#NAME?"}},{"$f":"_xll.RiskData('Risk Summary'!K$48,$A1943)/1000","v":{"$error":"#NAME?"}},{"$f":"_xll.RiskData('Risk Summary'!L$48,$A1943)/1000","v":{"$error":"#NAME?"}},null,null,{"$f":"(_xll.RiskData(NR_to_Cash!C$18,$A1943))/1000","v":{"$error":"#NAME?"}},{"$f":"(_xll.RiskData(NR_to_Cash!D$18,$A1943))/1000","v":{"$error":"#NAME?"}},{"$f":"(_xll.RiskData(NR_to_Cash!E$18,$A1943))/1000","v":{"$error":"#NAME?"}}]
[1937,{"$f":"_xll.RiskData('Risk Summary'!J$48,$A1944)/1000","v":{"$error":"#NAME?"}},{"$f":"_xll.RiskData('Risk Summary'!K$48,$A1944)/1000","v":{"$error":"#NAME?"}},{"$f":"_xll.RiskData('Risk Summary'!L$48,$A1944)/1000","v":{"$error":"#NAME?"}},null,null,{"$f":"(_xll.RiskData(NR_to_Cash!C$18,$A1944))/1000","v":{"$error":"#NAME?"}},{"$f":"(_xll.RiskData(NR_to_Cash!D$18,$A1944))/1000","v":{"$error":"#NAME?"}},{"$f":"(_xll.RiskData(NR_to_Cash!E$18,$A1944))/1000","v":{"$error":"#NAME?"}}]
[1938,{"$f":"_xll.RiskData('Risk Summary'!J$48,$A1945)/1000","v":{"$error":"#NAME?"}},{"$f":"_xll.RiskData('Risk Summary'!K$48,$A1945)/1000","v":{"$error":"#NAME?"}},{"$f":"_xll.RiskData('Risk Summary'!L$48,$A1945)/1000","v":{"$error":"#NAME?"}},null,null,{"$f":"(_xll.RiskData(NR_to_Cash!C$18,$A1945))/1000","v":{"$error":"#NAME?"}},{"$f":"(_xll.RiskData(NR_to_Cash!D$18,$A1945))/1000","v":{"$error":"#NAME?"}},{"$f":"(_xll.RiskData(NR_to_Cash!E$18,$A1945))/1000","v":{"$error":"#NAME?"}}]
[1939,{"$f":"_xll.RiskData('Risk Summary'!J$48,$A1946)/1000","v":{"$error":"#NAME?"}},{"$f":"_xll.RiskData('Risk Summary'!K$48,$A1946)/1000","v":{"$error":"#NAME?"}},{"$f":"_xll.RiskData('Risk Summary'!L$48,$A1946)/1000","v":{"$error":"#NAME?"}},null,null,{"$f":"(_xll.RiskData(NR_to_Cash!C$18,$A1946))/1000","v":{"$error":"#NAME?"}},{"$f":"(_xll.RiskData(NR_to_Cash!D$18,$A1946))/1000","v":{"$error":"#NAME?"}},{"$f":"(_xll.RiskData(NR_to_Cash!E$18,$A1946))/1000","v":{"$error":"#NAME?"}}]
[1940,{"$f":"_xll.RiskData('Risk Summary'!J$48,$A1947)/1000","v":{"$error":"#NAME?"}},{"$f":"_xll.RiskData('Risk Summary'!K$48,$A1947)/1000","v":{"$error":"#NAME?"}},{"$f":"_xll.RiskData('Risk Summary'!L$48,$A1947)/1000","v":{"$error":"#NAME?"}},null,null,{"$f":"(_xll.RiskData(NR_to_Cash!C$18,$A1947))/1000","v":{"$error":"#NAME?"}},{"$f":"(_xll.RiskData(NR_to_Cash!D$18,$A1947))/1000","v":{"$error":"#NAME?"}},{"$f":"(_xll.RiskData(NR_to_Cash!E$18,$A1947))/1000","v":{"$error":"#NAME?"}}]
[1941,{"$f":"_xll.RiskData('Risk Summary'!J$48,$A1948)/1000","v":{"$error":"#NAME?"}},{"$f":"_xll.RiskData('Risk Summary'!K$48,$A1948)/1000","v":{"$error":"#NAME?"}},{"$f":"_xll.RiskData('Risk Summary'!L$48,$A1948)/1000","v":{"$error":"#NAME?"}},null,null,{"$f":"(_xll.RiskData(NR_to_Cash!C$18,$A1948))/1000","v":{"$error":"#NAME?"}},{"$f":"(_xll.RiskData(NR_to_Cash!D$18,$A1948))/1000","v":{"$error":"#NAME?"}},{"$f":"(_xll.RiskData(NR_to_Cash!E$18,$A1948))/1000","v":{"$error":"#NAME?"}}]
[1942,{"$f":"_xll.RiskData('Risk Summary'!J$48,$A1949)/1000","v":{"$error":"#NAME?"}},{"$f":"_xll.RiskData('Risk Summary'!K$48,$A1949)/1000","v":{"$error":"#NAME?"}},{"$f":"_xll.RiskData('Risk Summary'!L$48,$A1949)/1000","v":{"$error":"#NAME?"}},null,null,{"$f":"(_xll.RiskData(NR_to_Cash!C$18,$A1949))/1000","v":{"$error":"#NAME?"}},{"$f":"(_xll.RiskData(NR_to_Cash!D$18,$A1949))/1000","v":{"$error":"#NAME?"}},{"$f":"(_xll.RiskData(NR_to_Cash!E$18,$A1949))/1000","v":{"$error":"#NAME?"}}]
[1943,{"$f":"_xll.RiskData('Risk Summary'!J$48,$A1950)/1000","v":{"$error":"#NAME?"}},{"$f":"_xll.RiskData('Risk Summary'!K$48,$A1950)/1000","v":{"$error":"#NAME?"}},{"$f":"_xll.RiskData('Risk Summary'!L$48,$A1950)/1000","v":{"$error":"#NAME?"}},null,null,{"$f":"(_xll.RiskData(NR_to_Cash!C$18,$A1950))/1000","v":{"$error":"#NAME?"}},{"$f":"(_xll.RiskData(NR_to_Cash!D$18,$A1950))/1000","v":{"$error":"#NAME?"}},{"$f":"(_xll.RiskData(NR_to_Cash!E$18,$A1950))/1000","v":{"$error":"#NAME?"}}]
[1944,{"$f":"_xll.RiskData('Risk Summary'!J$48,$A1951)/1000","v":{"$error":"#NAME?"}},{"$f":"_xll.RiskData('Risk Summary'!K$48,$A1951)/1000","v":{"$error":"#NAME?"}},{"$f":"_xll.RiskData('Risk Summary'!L$48,$A1951)/1000","v":{"$error":"#NAME?"}},null,null,{"$f":"(_xll.RiskData(NR_to_Cash!C$18,$A1951))/1000","v":{"$error":"#NAME?"}},{"$f":"(_xll.RiskData(NR_to_Cash!D$18,$A1951))/1000","v":{"$error":"#NAME?"}},{"$f":"(_xll.RiskData(NR_to_Cash!E$18,$A1951))/1000","v":{"$error":"#NAME?"}}]
[1945,{"$f":"_xll.RiskData('Risk Summary'!J$48,$A1952)/1000","v":{"$error":"#NAME?"}},{"$f":"_xll.RiskData('Risk Summary'!K$48,$A1952)/1000","v":{"$error":"#NAME?"}},{"$f":"_xll.RiskData('Risk Summary'!L$48,$A1952)/1000","v":{"$error":"#NAME?"}},null,null,{"$f":"(_xll.RiskData(NR_to_Cash!C$18,$A1952))/1000","v":{"$error":"#NAME?"}},{"$f":"(_xll.RiskData(NR_to_Cash!D$18,$A1952))/1000","v":{"$error":"#NAME?"}},{"$f":"(_xll.RiskData(NR_to_Cash!E$18,$A1952))/1000","v":{"$error":"#NAME?"}}]
[1946,{"$f":"_xll.RiskData('Risk Summary'!J$48,$A1953)/1000","v":{"$error":"#NAME?"}},{"$f":"_xll.RiskData('Risk Summary'!K$48,$A1953)/1000","v":{"$error":"#NAME?"}},{"$f":"_xll.RiskData('Risk Summary'!L$48,$A1953)/1000","v":{"$error":"#NAME?"}},null,null,{"$f":"(_xll.RiskData(NR_to_Cash!C$18,$A1953))/1000","v":{"$error":"#NAME?"}},{"$f":"(_xll.RiskData(NR_to_Cash!D$18,$A1953))/1000","v":{"$error":"#NAME?"}},{"$f":"(_xll.RiskData(NR_to_Cash!E$18,$A1953))/1000","v":{"$error":"#NAME?"}}]
[1947,{"$f":"_xll.RiskData('Risk Summary'!J$48,$A1954)/1000","v":{"$error":"#NAME?"}},{"$f":"_xll.RiskData('Risk Summary'!K$48,$A1954)/1000","v":{"$error":"#NAME?"}},{"$f":"_xll.RiskData('Risk Summary'!L$48,$A1954)/1000","v":{"$error":"#NAME?"}},null,null,{"$f":"(_xll.RiskData(NR_to_Cash!C$18,$A1954))/1000","v":{"$error":"#NAME?"}},{"$f":"(_xll.RiskData(NR_to_Cash!D$18,$A1954))/1000","v":{"$error":"#NAME?"}},{"$f":"(_xll.RiskData(NR_to_Cash!E$18,$A1954))/1000","v":{"$error":"#NAME?"}}]
[1948,{"$f":"_xll.RiskData('Risk Summary'!J$48,$A1955)/1000","v":{"$error":"#NAME?"}},{"$f":"_xll.RiskData('Risk Summary'!K$48,$A1955)/1000","v":{"$error":"#NAME?"}},{"$f":"_xll.RiskData('Risk Summary'!L$48,$A1955)/1000","v":{"$error":"#NAME?"}},null,null,{"$f":"(_xll.RiskData(NR_to_Cash!C$18,$A1955))/1000","v":{"$error":"#NAME?"}},{"$f":"(_xll.RiskData(NR_to_Cash!D$18,$A1955))/1000","v":{"$error":"#NAME?"}},{"$f":"(_xll.RiskData(NR_to_Cash!E$18,$A1955))/1000","v":{"$error":"#NAME?"}}]
[1949,{"$f":"_xll.RiskData('Risk Summary'!J$48,$A1956)/1000","v":{"$error":"#NAME?"}},{"$f":"_xll.RiskData('Risk Summary'!K$48,$A1956)/1000","v":{"$error":"#NAME?"}},{"$f":"_xll.RiskData('Risk Summary'!L$48,$A1956)/1000","v":{"$error":"#NAME?"}},null,null,{"$f":"(_xll.RiskData(NR_to_Cash!C$18,$A1956))/1000","v":{"$error":"#NAME?"}},{"$f":"(_xll.RiskData(NR_to_Cash!D$18,$A1956))/1000","v":{"$error":"#NAME?"}},{"$f":"(_xll.RiskData(NR_to_Cash!E$18,$A1956))/1000","v":{"$error":"#NAME?"}}]
[1950,{"$f":"_xll.RiskData('Risk Summary'!J$48,$A1957)/1000","v":{"$error":"#NAME?"}},{"$f":"_xll.RiskData('Risk Summary'!K$48,$A1957)/1000","v":{"$error":"#NAME?"}},{"$f":"_xll.RiskData('Risk Summary'!L$48,$A1957)/1000","v":{"$error":"#NAME?"}},null,null,{"$f":"(_xll.RiskData(NR_to_Cash!C$18,$A1957))/1000","v":{"$error":"#NAME?"}},{"$f":"(_xll.RiskData(NR_to_Cash!D$18,$A1957))/1000","v":{"$error":"#NAME?"}},{"$f":"(_xll.RiskData(NR_to_Cash!E$18,$A1957))/1000","v":{"$error":"#NAME?"}}]
[1951,{"$f":"_xll.RiskData('Risk Summary'!J$48,$A1958)/1000","v":{"$error":"#NAME?"}},{"$f":"_xll.RiskData('Risk Summary'!K$48,$A1958)/1000","v":{"$error":"#NAME?"}},{"$f":"_xll.RiskData('Risk Summary'!L$48,$A1958)/1000","v":{"$error":"#NAME?"}},null,null,{"$f":"(_xll.RiskData(NR_to_Cash!C$18,$A1958))/1000","v":{"$error":"#NAME?"}},{"$f":"(_xll.RiskData(NR_to_Cash!D$18,$A1958))/1000","v":{"$error":"#NAME?"}},{"$f":"(_xll.RiskData(NR_to_Cash!E$18,$A1958))/1000","v":{"$error":"#NAME?"}}]
[1952,{"$f":"_xll.RiskData('Risk Summary'!J$48,$A1959)/1000","v":{"$error":"#NAME?"}},{"$f":"_xll.RiskData('Risk Summary'!K$48,$A1959)/1000","v":{"$error":"#NAME?"}},{"$f":"_xll.RiskData('Risk Summary'!L$48,$A1959)/1000","v":{"$error":"#NAME?"}},null,null,{"$f":"(_xll.RiskData(NR_to_Cash!C$18,$A1959))/1000","v":{"$error":"#NAME?"}},{"$f":"(_xll.RiskData(NR_to_Cash!D$18,$A1959))/1000","v":{"$error":"#NAME?"}},{"$f":"(_xll.RiskData(NR_to_Cash!E$18,$A1959))/1000","v":{"$error":"#NAME?"}}]
[1953,{"$f":"_xll.RiskData('Risk Summary'!J$48,$A1960)/1000","v":{"$error":"#NAME?"}},{"$f":"_xll.RiskData('Risk Summary'!K$48,$A1960)/1000","v":{"$error":"#NAME?"}},{"$f":"_xll.RiskData('Risk Summary'!L$48,$A1960)/1000","v":{"$error":"#NAME?"}},null,null,{"$f":"(_xll.RiskData(NR_to_Cash!C$18,$A1960))/1000","v":{"$error":"#NAME?"}},{"$f":"(_xll.RiskData(NR_to_Cash!D$18,$A1960))/1000","v":{"$error":"#NAME?"}},{"$f":"(_xll.RiskData(NR_to_Cash!E$18,$A1960))/1000","v":{"$error":"#NAME?"}}]
[1954,{"$f":"_xll.RiskData('Risk Summary'!J$48,$A1961)/1000","v":{"$error":"#NAME?"}},{"$f":"_xll.RiskData('Risk Summary'!K$48,$A1961)/1000","v":{"$error":"#NAME?"}},{"$f":"_xll.RiskData('Risk Summary'!L$48,$A1961)/1000","v":{"$error":"#NAME?"}},null,null,{"$f":"(_xll.RiskData(NR_to_Cash!C$18,$A1961))/1000","v":{"$error":"#NAME?"}},{"$f":"(_xll.RiskData(NR_to_Cash!D$18,$A1961))/1000","v":{"$error":"#NAME?"}},{"$f":"(_xll.RiskData(NR_to_Cash!E$18,$A1961))/1000","v":{"$error":"#NAME?"}}]
[1955,{"$f":"_xll.RiskData('Risk Summary'!J$48,$A1962)/1000","v":{"$error":"#NAME?"}},{"$f":"_xll.RiskData('Risk Summary'!K$48,$A1962)/1000","v":{"$error":"#NAME?"}},{"$f":"_xll.RiskData('Risk Summary'!L$48,$A1962)/1000","v":{"$error":"#NAME?"}},null,null,{"$f":"(_xll.RiskData(NR_to_Cash!C$18,$A1962))/1000","v":{"$error":"#NAME?"}},{"$f":"(_xll.RiskData(NR_to_Cash!D$18,$A1962))/1000","v":{"$error":"#NAME?"}},{"$f":"(_xll.RiskData(NR_to_Cash!E$18,$A1962))/1000","v":{"$error":"#NAME?"}}]
[1956,{"$f":"_xll.RiskData('Risk Summary'!J$48,$A1963)/1000","v":{"$error":"#NAME?"}},{"$f":"_xll.RiskData('Risk Summary'!K$48,$A1963)/1000","v":{"$error":"#NAME?"}},{"$f":"_xll.RiskData('Risk Summary'!L$48,$A1963)/1000","v":{"$error":"#NAME?"}},null,null,{"$f":"(_xll.RiskData(NR_to_Cash!C$18,$A1963))/1000","v":{"$error":"#NAME?"}},{"$f":"(_xll.RiskData(NR_to_Cash!D$18,$A1963))/1000","v":{"$error":"#NAME?"}},{"$f":"(_xll.RiskData(NR_to_Cash!E$18,$A1963))/1000","v":{"$error":"#NAME?"}}]
[1957,{"$f":"_xll.RiskData('Risk Summary'!J$48,$A1964)/1000","v":{"$error":"#NAME?"}},{"$f":"_xll.RiskData('Risk Summary'!K$48,$A1964)/1000","v":{"$error":"#NAME?"}},{"$f":"_xll.RiskData('Risk Summary'!L$48,$A1964)/1000","v":{"$error":"#NAME?"}},null,null,{"$f":"(_xll.RiskData(NR_to_Cash!C$18,$A1964))/1000","v":{"$error":"#NAME?"}},{"$f":"(_xll.RiskData(NR_to_Cash!D$18,$A1964))/1000","v":{"$error":"#NAME?"}},{"$f":"(_xll.RiskData(NR_to_Cash!E$18,$A1964))/1000","v":{"$error":"#NAME?"}}]
[1958,{"$f":"_xll.RiskData('Risk Summary'!J$48,$A1965)/1000","v":{"$error":"#NAME?"}},{"$f":"_xll.RiskData('Risk Summary'!K$48,$A1965)/1000","v":{"$error":"#NAME?"}},{"$f":"_xll.RiskData('Risk Summary'!L$48,$A1965)/1000","v":{"$error":"#NAME?"}},null,null,{"$f":"(_xll.RiskData(NR_to_Cash!C$18,$A1965))/1000","v":{"$error":"#NAME?"}},{"$f":"(_xll.RiskData(NR_to_Cash!D$18,$A1965))/1000","v":{"$error":"#NAME?"}},{"$f":"(_xll.RiskData(NR_to_Cash!E$18,$A1965))/1000","v":{"$error":"#NAME?"}}]
[1959,{"$f":"_xll.RiskData('Risk Summary'!J$48,$A1966)/1000","v":{"$error":"#NAME?"}},{"$f":"_xll.RiskData('Risk Summary'!K$48,$A1966)/1000","v":{"$error":"#NAME?"}},{"$f":"_xll.RiskData('Risk Summary'!L$48,$A1966)/1000","v":{"$error":"#NAME?"}},null,null,{"$f":"(_xll.RiskData(NR_to_Cash!C$18,$A1966))/1000","v":{"$error":"#NAME?"}},{"$f":"(_xll.RiskData(NR_to_Cash!D$18,$A1966))/1000","v":{"$error":"#NAME?"}},{"$f":"(_xll.RiskData(NR_to_Cash!E$18,$A1966))/1000","v":{"$error":"#NAME?"}}]
[1960,{"$f":"_xll.RiskData('Risk Summary'!J$48,$A1967)/1000","v":{"$error":"#NAME?"}},{"$f":"_xll.RiskData('Risk Summary'!K$48,$A1967)/1000","v":{"$error":"#NAME?"}},{"$f":"_xll.RiskData('Risk Summary'!L$48,$A1967)/1000","v":{"$error":"#NAME?"}},null,null,{"$f":"(_xll.RiskData(NR_to_Cash!C$18,$A1967))/1000","v":{"$error":"#NAME?"}},{"$f":"(_xll.RiskData(NR_to_Cash!D$18,$A1967))/1000","v":{"$error":"#NAME?"}},{"$f":"(_xll.RiskData(NR_to_Cash!E$18,$A1967))/1000","v":{"$error":"#NAME?"}}]
[1961,{"$f":"_xll.RiskData('Risk Summary'!J$48,$A1968)/1000","v":{"$error":"#NAME?"}},{"$f":"_xll.RiskData('Risk Summary'!K$48,$A1968)/1000","v":{"$error":"#NAME?"}},{"$f":"_xll.RiskData('Risk Summary'!L$48,$A1968)/1000","v":{"$error":"#NAME?"}},null,null,{"$f":"(_xll.RiskData(NR_to_Cash!C$18,$A1968))/1000","v":{"$error":"#NAME?"}},{"$f":"(_xll.RiskData(NR_to_Cash!D$18,$A1968))/1000","v":{"$error":"#NAME?"}},{"$f":"(_xll.RiskData(NR_to_Cash!E$18,$A1968))/1000","v":{"$error":"#NAME?"}}]
[1962,{"$f":"_xll.RiskData('Risk Summary'!J$48,$A1969)/1000","v":{"$error":"#NAME?"}},{"$f":"_xll.RiskData('Risk Summary'!K$48,$A1969)/1000","v":{"$error":"#NAME?"}},{"$f":"_xll.RiskData('Risk Summary'!L$48,$A1969)/1000","v":{"$error":"#NAME?"}},null,null,{"$f":"(_xll.RiskData(NR_to_Cash!C$18,$A1969))/1000","v":{"$error":"#NAME?"}},{"$f":"(_xll.RiskData(NR_to_Cash!D$18,$A1969))/1000","v":{"$error":"#NAME?"}},{"$f":"(_xll.RiskData(NR_to_Cash!E$18,$A1969))/1000","v":{"$error":"#NAME?"}}]
[1963,{"$f":"_xll.RiskData('Risk Summary'!J$48,$A1970)/1000","v":{"$error":"#NAME?"}},{"$f":"_xll.RiskData('Risk Summary'!K$48,$A1970)/1000","v":{"$error":"#NAME?"}},{"$f":"_xll.RiskData('Risk Summary'!L$48,$A1970)/1000","v":{"$error":"#NAME?"}},null,null,{"$f":"(_xll.RiskData(NR_to_Cash!C$18,$A1970))/1000","v":{"$error":"#NAME?"}},{"$f":"(_xll.RiskData(NR_to_Cash!D$18,$A1970))/1000","v":{"$error":"#NAME?"}},{"$f":"(_xll.RiskData(NR_to_Cash!E$18,$A1970))/1000","v":{"$error":"#NAME?"}}]
[1964,{"$f":"_xll.RiskData('Risk Summary'!J$48,$A1971)/1000","v":{"$error":"#NAME?"}},{"$f":"_xll.RiskData('Risk Summary'!K$48,$A1971)/1000","v":{"$error":"#NAME?"}},{"$f":"_xll.RiskData('Risk Summary'!L$48,$A1971)/1000","v":{"$error":"#NAME?"}},null,null,{"$f":"(_xll.RiskData(NR_to_Cash!C$18,$A1971))/1000","v":{"$error":"#NAME?"}},{"$f":"(_xll.RiskData(NR_to_Cash!D$18,$A1971))/1000","v":{"$error":"#NAME?"}},{"$f":"(_xll.RiskData(NR_to_Cash!E$18,$A1971))/1000","v":{"$error":"#NAME?"}}]
[1965,{"$f":"_xll.RiskData('Risk Summary'!J$48,$A1972)/1000","v":{"$error":"#NAME?"}},{"$f":"_xll.RiskData('Risk Summary'!K$48,$A1972)/1000","v":{"$error":"#NAME?"}},{"$f":"_xll.RiskData('Risk Summary'!L$48,$A1972)/1000","v":{"$error":"#NAME?"}},null,null,{"$f":"(_xll.RiskData(NR_to_Cash!C$18,$A1972))/1000","v":{"$error":"#NAME?"}},{"$f":"(_xll.RiskData(NR_to_Cash!D$18,$A1972))/1000","v":{"$error":"#NAME?"}},{"$f":"(_xll.RiskData(NR_to_Cash!E$18,$A1972))/1000","v":{"$error":"#NAME?"}}]
[1966,{"$f":"_xll.RiskData('Risk Summary'!J$48,$A1973)/1000","v":{"$error":"#NAME?"}},{"$f":"_xll.RiskData('Risk Summary'!K$48,$A1973)/1000","v":{"$error":"#NAME?"}},{"$f":"_xll.RiskData('Risk Summary'!L$48,$A1973)/1000","v":{"$error":"#NAME?"}},null,null,{"$f":"(_xll.RiskData(NR_to_Cash!C$18,$A1973))/1000","v":{"$error":"#NAME?"}},{"$f":"(_xll.RiskData(NR_to_Cash!D$18,$A1973))/1000","v":{"$error":"#NAME?"}},{"$f":"(_xll.RiskData(NR_to_Cash!E$18,$A1973))/1000","v":{"$error":"#NAME?"}}]
[1967,{"$f":"_xll.RiskData('Risk Summary'!J$48,$A1974)/1000","v":{"$error":"#NAME?"}},{"$f":"_xll.RiskData('Risk Summary'!K$48,$A1974)/1000","v":{"$error":"#NAME?"}},{"$f":"_xll.RiskData('Risk Summary'!L$48,$A1974)/1000","v":{"$error":"#NAME?"}},null,null,{"$f":"(_xll.RiskData(NR_to_Cash!C$18,$A1974))/1000","v":{"$error":"#NAME?"}},{"$f":"(_xll.RiskData(NR_to_Cash!D$18,$A1974))/1000","v":{"$error":"#NAME?"}},{"$f":"(_xll.RiskData(NR_to_Cash!E$18,$A1974))/1000","v":{"$error":"#NAME?"}}]
[1968,{"$f":"_xll.RiskData('Risk Summary'!J$48,$A1975)/1000","v":{"$error":"#NAME?"}},{"$f":"_xll.RiskData('Risk Summary'!K$48,$A1975)/1000","v":{"$error":"#NAME?"}},{"$f":"_xll.RiskData('Risk Summary'!L$48,$A1975)/1000","v":{"$error":"#NAME?"}},null,null,{"$f":"(_xll.RiskData(NR_to_Cash!C$18,$A1975))/1000","v":{"$error":"#NAME?"}},{"$f":"(_xll.RiskData(NR_to_Cash!D$18,$A1975))/1000","v":{"$error":"#NAME?"}},{"$f":"(_xll.RiskData(NR_to_Cash!E$18,$A1975))/1000","v":{"$error":"#NAME?"}}]
[1969,{"$f":"_xll.RiskData('Risk Summary'!J$48,$A1976)/1000","v":{"$error":"#NAME?"}},{"$f":"_xll.RiskData('Risk Summary'!K$48,$A1976)/1000","v":{"$error":"#NAME?"}},{"$f":"_xll.RiskData('Risk Summary'!L$48,$A1976)/1000","v":{"$error":"#NAME?"}},null,null,{"$f":"(_xll.RiskData(NR_to_Cash!C$18,$A1976))/1000","v":{"$error":"#NAME?"}},{"$f":"(_xll.RiskData(NR_to_Cash!D$18,$A1976))/1000","v":{"$error":"#NAME?"}},{"$f":"(_xll.RiskData(NR_to_Cash!E$18,$A1976))/1000","v":{"$error":"#NAME?"}}]
[1970,{"$f":"_xll.RiskData('Risk Summary'!J$48,$A1977)/1000","v":{"$error":"#NAME?"}},{"$f":"_xll.RiskData('Risk Summary'!K$48,$A1977)/1000","v":{"$error":"#NAME?"}},{"$f":"_xll.RiskData('Risk Summary'!L$48,$A1977)/1000","v":{"$error":"#NAME?"}},null,null,{"$f":"(_xll.RiskData(NR_to_Cash!C$18,$A1977))/1000","v":{"$error":"#NAME?"}},{"$f":"(_xll.RiskData(NR_to_Cash!D$18,$A1977))/1000","v":{"$error":"#NAME?"}},{"$f":"(_xll.RiskData(NR_to_Cash!E$18,$A1977))/1000","v":{"$error":"#NAME?"}}]
[1971,{"$f":"_xll.RiskData('Risk Summary'!J$48,$A1978)/1000","v":{"$error":"#NAME?"}},{"$f":"_xll.RiskData('Risk Summary'!K$48,$A1978)/1000","v":{"$error":"#NAME?"}},{"$f":"_xll.RiskData('Risk Summary'!L$48,$A1978)/1000","v":{"$error":"#NAME?"}},null,null,{"$f":"(_xll.RiskData(NR_to_Cash!C$18,$A1978))/1000","v":{"$error":"#NAME?"}},{"$f":"(_xll.RiskData(NR_to_Cash!D$18,$A1978))/1000","v":{"$error":"#NAME?"}},{"$f":"(_xll.RiskData(NR_to_Cash!E$18,$A1978))/1000","v":{"$error":"#NAME?"}}]
[1972,{"$f":"_xll.RiskData('Risk Summary'!J$48,$A1979)/1000","v":{"$error":"#NAME?"}},{"$f":"_xll.RiskData('Risk Summary'!K$48,$A1979)/1000","v":{"$error":"#NAME?"}},{"$f":"_xll.RiskData('Risk Summary'!L$48,$A1979)/1000","v":{"$error":"#NAME?"}},null,null,{"$f":"(_xll.RiskData(NR_to_Cash!C$18,$A1979))/1000","v":{"$error":"#NAME?"}},{"$f":"(_xll.RiskData(NR_to_Cash!D$18,$A1979))/1000","v":{"$error":"#NAME?"}},{"$f":"(_xll.RiskData(NR_to_Cash!E$18,$A1979))/1000","v":{"$error":"#NAME?"}}]
[1973,{"$f":"_xll.RiskData('Risk Summary'!J$48,$A1980)/1000","v":{"$error":"#NAME?"}},{"$f":"_xll.RiskData('Risk Summary'!K$48,$A1980)/1000","v":{"$error":"#NAME?"}},{"$f":"_xll.RiskData('Risk Summary'!L$48,$A1980)/1000","v":{"$error":"#NAME?"}},null,null,{"$f":"(_xll.RiskData(NR_to_Cash!C$18,$A1980))/1000","v":{"$error":"#NAME?"}},{"$f":"(_xll.RiskData(NR_to_Cash!D$18,$A1980))/1000","v":{"$error":"#NAME?"}},{"$f":"(_xll.RiskData(NR_to_Cash!E$18,$A1980))/1000","v":{"$error":"#NAME?"}}]
[1974,{"$f":"_xll.RiskData('Risk Summary'!J$48,$A1981)/1000","v":{"$error":"#NAME?"}},{"$f":"_xll.RiskData('Risk Summary'!K$48,$A1981)/1000","v":{"$error":"#NAME?"}},{"$f":"_xll.RiskData('Risk Summary'!L$48,$A1981)/1000","v":{"$error":"#NAME?"}},null,null,{"$f":"(_xll.RiskData(NR_to_Cash!C$18,$A1981))/1000","v":{"$error":"#NAME?"}},{"$f":"(_xll.RiskData(NR_to_Cash!D$18,$A1981))/1000","v":{"$error":"#NAME?"}},{"$f":"(_xll.RiskData(NR_to_Cash!E$18,$A1981))/1000","v":{"$error":"#NAME?"}}]
[1975,{"$f":"_xll.RiskData('Risk Summary'!J$48,$A1982)/1000","v":{"$error":"#NAME?"}},{"$f":"_xll.RiskData('Risk Summary'!K$48,$A1982)/1000","v":{"$error":"#NAME?"}},{"$f":"_xll.RiskData('Risk Summary'!L$48,$A1982)/1000","v":{"$error":"#NAME?"}},null,null,{"$f":"(_xll.RiskData(NR_to_Cash!C$18,$A1982))/1000","v":{"$error":"#NAME?"}},{"$f":"(_xll.RiskData(NR_to_Cash!D$18,$A1982))/1000","v":{"$error":"#NAME?"}},{"$f":"(_xll.RiskData(NR_to_Cash!E$18,$A1982))/1000","v":{"$error":"#NAME?"}}]
[1976,{"$f":"_xll.RiskData('Risk Summary'!J$48,$A1983)/1000","v":{"$error":"#NAME?"}},{"$f":"_xll.RiskData('Risk Summary'!K$48,$A1983)/1000","v":{"$error":"#NAME?"}},{"$f":"_xll.RiskData('Risk Summary'!L$48,$A1983)/1000","v":{"$error":"#NAME?"}},null,null,{"$f":"(_xll.RiskData(NR_to_Cash!C$18,$A1983))/1000","v":{"$error":"#NAME?"}},{"$f":"(_xll.RiskData(NR_to_Cash!D$18,$A1983))/1000","v":{"$error":"#NAME?"}},{"$f":"(_xll.RiskData(NR_to_Cash!E$18,$A1983))/1000","v":{"$error":"#NAME?"}}]
[1977,{"$f":"_xll.RiskData('Risk Summary'!J$48,$A1984)/1000","v":{"$error":"#NAME?"}},{"$f":"_xll.RiskData('Risk Summary'!K$48,$A1984)/1000","v":{"$error":"#NAME?"}},{"$f":"_xll.RiskData('Risk Summary'!L$48,$A1984)/1000","v":{"$error":"#NAME?"}},null,null,{"$f":"(_xll.RiskData(NR_to_Cash!C$18,$A1984))/1000","v":{"$error":"#NAME?"}},{"$f":"(_xll.RiskData(NR_to_Cash!D$18,$A1984))/1000","v":{"$error":"#NAME?"}},{"$f":"(_xll.RiskData(NR_to_Cash!E$18,$A1984))/1000","v":{"$error":"#NAME?"}}]
[1978,{"$f":"_xll.RiskData('Risk Summary'!J$48,$A1985)/1000","v":{"$error":"#NAME?"}},{"$f":"_xll.RiskData('Risk Summary'!K$48,$A1985)/1000","v":{"$error":"#NAME?"}},{"$f":"_xll.RiskData('Risk Summary'!L$48,$A1985)/1000","v":{"$error":"#NAME?"}},null,null,{"$f":"(_xll.RiskData(NR_to_Cash!C$18,$A1985))/1000","v":{"$error":"#NAME?"}},{"$f":"(_xll.RiskData(NR_to_Cash!D$18,$A1985))/1000","v":{"$error":"#NAME?"}},{"$f":"(_xll.RiskData(NR_to_Cash!E$18,$A1985))/1000","v":{"$error":"#NAME?"}}]
[1979,{"$f":"_xll.RiskData('Risk Summary'!J$48,$A1986)/1000","v":{"$error":"#NAME?"}},{"$f":"_xll.RiskData('Risk Summary'!K$48,$A1986)/1000","v":{"$error":"#NAME?"}},{"$f":"_xll.RiskData('Risk Summary'!L$48,$A1986)/1000","v":{"$error":"#NAME?"}},null,null,{"$f":"(_xll.RiskData(NR_to_Cash!C$18,$A1986))/1000","v":{"$error":"#NAME?"}},{"$f":"(_xll.RiskData(NR_to_Cash!D$18,$A1986))/1000","v":{"$error":"#NAME?"}},{"$f":"(_xll.RiskData(NR_to_Cash!E$18,$A1986))/1000","v":{"$error":"#NAME?"}}]
[1980,{"$f":"_xll.RiskData('Risk Summary'!J$48,$A1987)/1000","v":{"$error":"#NAME?"}},{"$f":"_xll.RiskData('Risk Summary'!K$48,$A1987)/1000","v":{"$error":"#NAME?"}},{"$f":"_xll.RiskData('Risk Summary'!L$48,$A1987)/1000","v":{"$error":"#NAME?"}},null,null,{"$f":"(_xll.RiskData(NR_to_Cash!C$18,$A1987))/1000","v":{"$error":"#NAME?"}},{"$f":"(_xll.RiskData(NR_to_Cash!D$18,$A1987))/1000","v":{"$error":"#NAME?"}},{"$f":"(_xll.RiskData(NR_to_Cash!E$18,$A1987))/1000","v":{"$error":"#NAME?"}}]
[1981,{"$f":"_xll.RiskData('Risk Summary'!J$48,$A1988)/1000","v":{"$error":"#NAME?"}},{"$f":"_xll.RiskData('Risk Summary'!K$48,$A1988)/1000","v":{"$error":"#NAME?"}},{"$f":"_xll.RiskData('Risk Summary'!L$48,$A1988)/1000","v":{"$error":"#NAME?"}},null,null,{"$f":"(_xll.RiskData(NR_to_Cash!C$18,$A1988))/1000","v":{"$error":"#NAME?"}},{"$f":"(_xll.RiskData(NR_to_Cash!D$18,$A1988))/1000","v":{"$error":"#NAME?"}},{"$f":"(_xll.RiskData(NR_to_Cash!E$18,$A1988))/1000","v":{"$error":"#NAME?"}}]
[1982,{"$f":"_xll.RiskData('Risk Summary'!J$48,$A1989)/1000","v":{"$error":"#NAME?"}},{"$f":"_xll.RiskData('Risk Summary'!K$48,$A1989)/1000","v":{"$error":"#NAME?"}},{"$f":"_xll.RiskData('Risk Summary'!L$48,$A1989)/1000","v":{"$error":"#NAME?"}},null,null,{"$f":"(_xll.RiskData(NR_to_Cash!C$18,$A1989))/1000","v":{"$error":"#NAME?"}},{"$f":"(_xll.RiskData(NR_to_Cash!D$18,$A1989))/1000","v":{"$error":"#NAME?"}},{"$f":"(_xll.RiskData(NR_to_Cash!E$18,$A1989))/1000","v":{"$error":"#NAME?"}}]
[1983,{"$f":"_xll.RiskData('Risk Summary'!J$48,$A1990)/1000","v":{"$error":"#NAME?"}},{"$f":"_xll.RiskData('Risk Summary'!K$48,$A1990)/1000","v":{"$error":"#NAME?"}},{"$f":"_xll.RiskData('Risk Summary'!L$48,$A1990)/1000","v":{"$error":"#NAME?"}},null,null,{"$f":"(_xll.RiskData(NR_to_Cash!C$18,$A1990))/1000","v":{"$error":"#NAME?"}},{"$f":"(_xll.RiskData(NR_to_Cash!D$18,$A1990))/1000","v":{"$error":"#NAME?"}},{"$f":"(_xll.RiskData(NR_to_Cash!E$18,$A1990))/1000","v":{"$error":"#NAME?"}}]
[1984,{"$f":"_xll.RiskData('Risk Summary'!J$48,$A1991)/1000","v":{"$error":"#NAME?"}},{"$f":"_xll.RiskData('Risk Summary'!K$48,$A1991)/1000","v":{"$error":"#NAME?"}},{"$f":"_xll.RiskData('Risk Summary'!L$48,$A1991)/1000","v":{"$error":"#NAME?"}},null,null,{"$f":"(_xll.RiskData(NR_to_Cash!C$18,$A1991))/1000","v":{"$error":"#NAME?"}},{"$f":"(_xll.RiskData(NR_to_Cash!D$18,$A1991))/1000","v":{"$error":"#NAME?"}},{"$f":"(_xll.RiskData(NR_to_Cash!E$18,$A1991))/1000","v":{"$error":"#NAME?"}}]
[1985,{"$f":"_xll.RiskData('Risk Summary'!J$48,$A1992)/1000","v":{"$error":"#NAME?"}},{"$f":"_xll.RiskData('Risk Summary'!K$48,$A1992)/1000","v":{"$error":"#NAME?"}},{"$f":"_xll.RiskData('Risk Summary'!L$48,$A1992)/1000","v":{"$error":"#NAME?"}},null,null,{"$f":"(_xll.RiskData(NR_to_Cash!C$18,$A1992))/1000","v":{"$error":"#NAME?"}},{"$f":"(_xll.RiskData(NR_to_Cash!D$18,$A1992))/1000","v":{"$error":"#NAME?"}},{"$f":"(_xll.RiskData(NR_to_Cash!E$18,$A1992))/1000","v":{"$error":"#NAME?"}}]
[1986,{"$f":"_xll.RiskData('Risk Summary'!J$48,$A1993)/1000","v":{"$error":"#NAME?"}},{"$f":"_xll.RiskData('Risk Summary'!K$48,$A1993)/1000","v":{"$error":"#NAME?"}},{"$f":"_xll.RiskData('Risk Summary'!L$48,$A1993)/1000","v":{"$error":"#NAME?"}},null,null,{"$f":"(_xll.RiskData(NR_to_Cash!C$18,$A1993))/1000","v":{"$error":"#NAME?"}},{"$f":"(_xll.RiskData(NR_to_Cash!D$18,$A1993))/1000","v":{"$error":"#NAME?"}},{"$f":"(_xll.RiskData(NR_to_Cash!E$18,$A1993))/1000","v":{"$error":"#NAME?"}}]
[1987,{"$f":"_xll.RiskData('Risk Summary'!J$48,$A1994)/1000","v":{"$error":"#NAME?"}},{"$f":"_xll.RiskData('Risk Summary'!K$48,$A1994)/1000","v":{"$error":"#NAME?"}},{"$f":"_xll.RiskData('Risk Summary'!L$48,$A1994)/1000","v":{"$error":"#NAME?"}},null,null,{"$f":"(_xll.RiskData(NR_to_Cash!C$18,$A1994))/1000","v":{"$error":"#NAME?"}},{"$f":"(_xll.RiskData(NR_to_Cash!D$18,$A1994))/1000","v":{"$error":"#NAME?"}},{"$f":"(_xll.RiskData(NR_to_Cash!E$18,$A1994))/1000","v":{"$error":"#NAME?"}}]
[1988,{"$f":"_xll.RiskData('Risk Summary'!J$48,$A1995)/1000","v":{"$error":"#NAME?"}},{"$f":"_xll.RiskData('Risk Summary'!K$48,$A1995)/1000","v":{"$error":"#NAME?"}},{"$f":"_xll.RiskData('Risk Summary'!L$48,$A1995)/1000","v":{"$error":"#NAME?"}},null,null,{"$f":"(_xll.RiskData(NR_to_Cash!C$18,$A1995))/1000","v":{"$error":"#NAME?"}},{"$f":"(_xll.RiskData(NR_to_Cash!D$18,$A1995))/1000","v":{"$error":"#NAME?"}},{"$f":"(_xll.RiskData(NR_to_Cash!E$18,$A1995))/1000","v":{"$error":"#NAME?"}}]
[1989,{"$f":"_xll.RiskData('Risk Summary'!J$48,$A1996)/1000","v":{"$error":"#NAME?"}},{"$f":"_xll.RiskData('Risk Summary'!K$48,$A1996)/1000","v":{"$error":"#NAME?"}},{"$f":"_xll.RiskData('Risk Summary'!L$48,$A1996)/1000","v":{"$error":"#NAME?"}},null,null,{"$f":"(_xll.RiskData(NR_to_Cash!C$18,$A1996))/1000","v":{"$error":"#NAME?"}},{"$f":"(_xll.RiskData(NR_to_Cash!D$18,$A1996))/1000","v":{"$error":"#NAME?"}},{"$f":"(_xll.RiskData(NR_to_Cash!E$18,$A1996))/1000","v":{"$error":"#NAME?"}}]
[1990,{"$f":"_xll.RiskData('Risk Summary'!J$48,$A1997)/1000","v":{"$error":"#NAME?"}},{"$f":"_xll.RiskData('Risk Summary'!K$48,$A1997)/1000","v":{"$error":"#NAME?"}},{"$f":"_xll.RiskData('Risk Summary'!L$48,$A1997)/1000","v":{"$error":"#NAME?"}},null,null,{"$f":"(_xll.RiskData(NR_to_Cash!C$18,$A1997))/1000","v":{"$error":"#NAME?"}},{"$f":"(_xll.RiskData(NR_to_Cash!D$18,$A1997))/1000","v":{"$error":"#NAME?"}},{"$f":"(_xll.RiskData(NR_to_Cash!E$18,$A1997))/1000","v":{"$error":"#NAME?"}}]
[1991,{"$f":"_xll.RiskData('Risk Summary'!J$48,$A1998)/1000","v":{"$error":"#NAME?"}},{"$f":"_xll.RiskData('Risk Summary'!K$48,$A1998)/1000","v":{"$error":"#NAME?"}},{"$f":"_xll.RiskData('Risk Summary'!L$48,$A1998)/1000","v":{"$error":"#NAME?"}},null,null,{"$f":"(_xll.RiskData(NR_to_Cash!C$18,$A1998))/1000","v":{"$error":"#NAME?"}},{"$f":"(_xll.RiskData(NR_to_Cash!D$18,$A1998))/1000","v":{"$error":"#NAME?"}},{"$f":"(_xll.RiskData(NR_to_Cash!E$18,$A1998))/1000","v":{"$error":"#NAME?"}}]
[1992,{"$f":"_xll.RiskData('Risk Summary'!J$48,$A1999)/1000","v":{"$error":"#NAME?"}},{"$f":"_xll.RiskData('Risk Summary'!K$48,$A1999)/1000","v":{"$error":"#NAME?"}},{"$f":"_xll.RiskData('Risk Summary'!L$48,$A1999)/1000","v":{"$error":"#NAME?"}},null,null,{"$f":"(_xll.RiskData(NR_to_Cash!C$18,$A1999))/1000","v":{"$error":"#NAME?"}},{"$f":"(_xll.RiskData(NR_to_Cash!D$18,$A1999))/1000","v":{"$error":"#NAME?"}},{"$f":"(_xll.RiskData(NR_to_Cash!E$18,$A1999))/1000","v":{"$error":"#NAME?"}}]
[1993,{"$f":"_xll.RiskData('Risk Summary'!J$48,$A2000)/1000","v":{"$error":"#NAME?"}},{"$f":"_xll.RiskData('Risk Summary'!K$48,$A2000)/1000","v":{"$error":"#NAME?"}},{"$f":"_xll.RiskData('Risk Summary'!L$48,$A2000)/1000","v":{"$error":"#NAME?"}},null,null,{"$f":"(_xll.RiskData(NR_to_Cash!C$18,$A2000))/1000","v":{"$error":"#NAME?"}},{"$f":"(_xll.RiskData(NR_to_Cash!D$18,$A2000))/1000","v":{"$error":"#NAME?"}},{"$f":"(_xll.RiskData(NR_to_Cash!E$18,$A2000))/1000","v":{"$error":"#NAME?"}}]
[1994,{"$f":"_xll.RiskData('Risk Summary'!J$48,$A2001)/1000","v":{"$error":"#NAME?"}},{"$f":"_xll.RiskData('Risk Summary'!K$48,$A2001)/1000","v":{"$error":"#NAME?"}},{"$f":"_xll.RiskData('Risk Summary'!L$48,$A2001)/1000","v":{"$error":"#NAME?"}},null,null,{"$f":"(_xll.RiskData(NR_to_Cash!C$18,$A2001))/1000","v":{"$error":"#NAME?"}},{"$f":"(_xll.RiskData(NR_to_Cash!D$18,$A2001))/1000","v":{"$error":"#NAME?"}},{"$f":"(_xll.RiskData(NR_to_Cash!E$18,$A2001))/1000","v":{"$error":"#NAME?"}}]
[1995,{"$f":"_xll.RiskData('Risk Summary'!J$48,$A2002)/1000","v":{"$error":"#NAME?"}},{"$f":"_xll.RiskData('Risk Summary'!K$48,$A2002)/1000","v":{"$error":"#NAME?"}},{"$f":"_xll.RiskData('Risk Summary'!L$48,$A2002)/1000","v":{"$error":"#NAME?"}},null,null,{"$f":"(_xll.RiskData(NR_to_Cash!C$18,$A2002))/1000","v":{"$error":"#NAME?"}},{"$f":"(_xll.RiskData(NR_to_Cash!D$18,$A2002))/1000","v":{"$error":"#NAME?"}},{"$f":"(_xll.RiskData(NR_to_Cash!E$18,$A2002))/1000","v":{"$error":"#NAME?"}}]
[1996,{"$f":"_xll.RiskData('Risk Summary'!J$48,$A2003)/1000","v":{"$error":"#NAME?"}},{"$f":"_xll.RiskData('Risk Summary'!K$48,$A2003)/1000","v":{"$error":"#NAME?"}},{"$f":"_xll.RiskData('Risk Summary'!L$48,$A2003)/1000","v":{"$error":"#NAME?"}},null,null,{"$f":"(_xll.RiskData(NR_to_Cash!C$18,$A2003))/1000","v":{"$error":"#NAME?"}},{"$f":"(_xll.RiskData(NR_to_Cash!D$18,$A2003))/1000","v":{"$error":"#NAME?"}},{"$f":"(_xll.RiskData(NR_to_Cash!E$18,$A2003))/1000","v":{"$error":"#NAME?"}}]
[1997,{"$f":"_xll.RiskData('Risk Summary'!J$48,$A2004)/1000","v":{"$error":"#NAME?"}},{"$f":"_xll.RiskData('Risk Summary'!K$48,$A2004)/1000","v":{"$error":"#NAME?"}},{"$f":"_xll.RiskData('Risk Summary'!L$48,$A2004)/1000","v":{"$error":"#NAME?"}},null,null,{"$f":"(_xll.RiskData(NR_to_Cash!C$18,$A2004))/1000","v":{"$error":"#NAME?"}},{"$f":"(_xll.RiskData(NR_to_Cash!D$18,$A2004))/1000","v":{"$error":"#NAME?"}},{"$f":"(_xll.RiskData(NR_to_Cash!E$18,$A2004))/1000","v":{"$error":"#NAME?"}}]
[1998,{"$f":"_xll.RiskData('Risk Summary'!J$48,$A2005)/1000","v":{"$error":"#NAME?"}},{"$f":"_xll.RiskData('Risk Summary'!K$48,$A2005)/1000","v":{"$error":"#NAME?"}},{"$f":"_xll.RiskData('Risk Summary'!L$48,$A2005)/1000","v":{"$error":"#NAME?"}},null,null,{"$f":"(_xll.RiskData(NR_to_Cash!C$18,$A2005))/1000","v":{"$error":"#NAME?"}},{"$f":"(_xll.RiskData(NR_to_Cash!D$18,$A2005))/1000","v":{"$error":"#NAME?"}},{"$f":"(_xll.RiskData(NR_to_Cash!E$18,$A2005))/1000","v":{"$error":"#NAME?"}}]
[1999,{"$f":"_xll.RiskData('Risk Summary'!J$48,$A2006)/1000","v":{"$error":"#NAME?"}},{"$f":"_xll.RiskData('Risk Summary'!K$48,$A2006)/1000","v":{"$error":"#NAME?"}},{"$f":"_xll.RiskData('Risk Summary'!L$48,$A2006)/1000","v":{"$error":"#NAME?"}},null,null,{"$f":"(_xll.RiskData(NR_to_Cash!C$18,$A2006))/1000","v":{"$error":"#NAME?"}},{"$f":"(_xll.RiskData(NR_to_Cash!D$18,$A2006))/1000","v":{"$error":"#NAME?"}},{"$f":"(_xll.RiskData(NR_to_Cash!E$18,$A2006))/1000","v":{"$error":"#NAME?"}}]
[2000,{"$f":"_xll.RiskData('Risk Summary'!J$48,$A2007)/1000","v":{"$error":"#NAME?"}},{"$f":"_xll.RiskData('Risk Summary'!K$48,$A2007)/1000","v":{"$error":"#NAME?"}},{"$f":"_xll.RiskData('Risk Summary'!L$48,$A2007)/1000","v":{"$error":"#NAME?"}},null,null,{"$f":"(_xll.RiskData(NR_to_Cash!C$18,$A2007))/1000","v":{"$error":"#NAME?"}},{"$f":"(_xll.RiskData(NR_to_Cash!D$18,$A2007))/1000","v":{"$error":"#NAME?"}},{"$f":"(_xll.RiskData(NR_to_Cash!E$18,$A2007))/1000","v":{"$error":"#NAME?"}}]
[2001,{"$f":"_xll.RiskData('Risk Summary'!J$48,$A2008)/1000","v":{"$error":"#NAME?"}},{"$f":"_xll.RiskData('Risk Summary'!K$48,$A2008)/1000","v":{"$error":"#NAME?"}},{"$f":"_xll.RiskData('Risk Summary'!L$48,$A2008)/1000","v":{"$error":"#NAME?"}},null,null,{"$f":"(_xll.RiskData(NR_to_Cash!C$18,$A2008))/1000","v":{"$error":"#NAME?"}},{"$f":"(_xll.RiskData(NR_to_Cash!D$18,$A2008))/1000","v":{"$error":"#NAME?"}},{"$f":"(_xll.RiskData(NR_to_Cash!E$18,$A2008))/1000","v":{"$error":"#NAME?"}}]
[2002,{"$f":"_xll.RiskData('Risk Summary'!J$48,$A2009)/1000","v":{"$error":"#NAME?"}},{"$f":"_xll.RiskData('Risk Summary'!K$48,$A2009)/1000","v":{"$error":"#NAME?"}},{"$f":"_xll.RiskData('Risk Summary'!L$48,$A2009)/1000","v":{"$error":"#NAME?"}},null,null,{"$f":"(_xll.RiskData(NR_to_Cash!C$18,$A2009))/1000","v":{"$error":"#NAME?"}},{"$f":"(_xll.RiskData(NR_to_Cash!D$18,$A2009))/1000","v":{"$error":"#NAME?"}},{"$f":"(_xll.RiskData(NR_to_Cash!E$18,$A2009))/1000","v":{"$error":"#NAME?"}}]
[2003,{"$f":"_xll.RiskData('Risk Summary'!J$48,$A2010)/1000","v":{"$error":"#NAME?"}},{"$f":"_xll.RiskData('Risk Summary'!K$48,$A2010)/1000","v":{"$error":"#NAME?"}},{"$f":"_xll.RiskData('Risk Summary'!L$48,$A2010)/1000","v":{"$error":"#NAME?"}},null,null,{"$f":"(_xll.RiskData(NR_to_Cash!C$18,$A2010))/1000","v":{"$error":"#NAME?"}},{"$f":"(_xll.RiskData(NR_to_Cash!D$18,$A2010))/1000","v":{"$error":"#NAME?"}},{"$f":"(_xll.RiskData(NR_to_Cash!E$18,$A2010))/1000","v":{"$error":"#NAME?"}}]
[2004,{"$f":"_xll.RiskData('Risk Summary'!J$48,$A2011)/1000","v":{"$error":"#NAME?"}},{"$f":"_xll.RiskData('Risk Summary'!K$48,$A2011)/1000","v":{"$error":"#NAME?"}},{"$f":"_xll.RiskData('Risk Summary'!L$48,$A2011)/1000","v":{"$error":"#NAME?"}},null,null,{"$f":"(_xll.RiskData(NR_to_Cash!C$18,$A2011))/1000","v":{"$error":"#NAME?"}},{"$f":"(_xll.RiskData(NR_to_Cash!D$18,$A2011))/1000","v":{"$error":"#NAME?"}},{"$f":"(_xll.RiskData(NR_to_Cash!E$18,$A2011))/1000","v":{"$error":"#NAME?"}}]
[2005,{"$f":"_xll.RiskData('Risk Summary'!J$48,$A2012)/1000","v":{"$error":"#NAME?"}},{"$f":"_xll.RiskData('Risk Summary'!K$48,$A2012)/1000","v":{"$error":"#NAME?"}},{"$f":"_xll.RiskData('Risk Summary'!L$48,$A2012)/1000","v":{"$error":"#NAME?"}},null,null,{"$f":"(_xll.RiskData(NR_to_Cash!C$18,$A2012))/1000","v":{"$error":"#NAME?"}},{"$f":"(_xll.RiskData(NR_to_Cash!D$18,$A2012))/1000","v":{"$error":"#NAME?"}},{"$f":"(_xll.RiskData(NR_to_Cash!E$18,$A2012))/1000","v":{"$error":"#NAME?"}}]
[2006,{"$f":"_xll.RiskData('Risk Summary'!J$48,$A2013)/1000","v":{"$error":"#NAME?"}},{"$f":"_xll.RiskData('Risk Summary'!K$48,$A2013)/1000","v":{"$error":"#NAME?"}},{"$f":"_xll.RiskData('Risk Summary'!L$48,$A2013)/1000","v":{"$error":"#NAME?"}},null,null,{"$f":"(_xll.RiskData(NR_to_Cash!C$18,$A2013))/1000","v":{"$error":"#NAME?"}},{"$f":"(_xll.RiskData(NR_to_Cash!D$18,$A2013))/1000","v":{"$error":"#NAME?"}},{"$f":"(_xll.RiskData(NR_to_Cash!E$18,$A2013))/1000","v":{"$error":"#NAME?"}}]
[2007,{"$f":"_xll.RiskData('Risk Summary'!J$48,$A2014)/1000","v":{"$error":"#NAME?"}},{"$f":"_xll.RiskData('Risk Summary'!K$48,$A2014)/1000","v":{"$error":"#NAME?"}},{"$f":"_xll.RiskData('Risk Summary'!L$48,$A2014)/1000","v":{"$error":"#NAME?"}},null,null,{"$f":"(_xll.RiskData(NR_to_Cash!C$18,$A2014))/1000","v":{"$error":"#NAME?"}},{"$f":"(_xll.RiskData(NR_to_Cash!D$18,$A2014))/1000","v":{"$error":"#NAME?"}},{"$f":"(_xll.RiskData(NR_to_Cash!E$18,$A2014))/1000","v":{"$error":"#NAME?"}}]
[2008,{"$f":"_xll.RiskData('Risk Summary'!J$48,$A2015)/1000","v":{"$error":"#NAME?"}},{"$f":"_xll.RiskData('Risk Summary'!K$48,$A2015)/1000","v":{"$error":"#NAME?"}},{"$f":"_xll.RiskData('Risk Summary'!L$48,$A2015)/1000","v":{"$error":"#NAME?"}},null,null,{"$f":"(_xll.RiskData(NR_to_Cash!C$18,$A2015))/1000","v":{"$error":"#NAME?"}},{"$f":"(_xll.RiskData(NR_to_Cash!D$18,$A2015))/1000","v":{"$error":"#NAME?"}},{"$f":"(_xll.RiskData(NR_to_Cash!E$18,$A2015))/1000","v":{"$error":"#NAME?"}}]
[2009,{"$f":"_xll.RiskData('Risk Summary'!J$48,$A2016)/1000","v":{"$error":"#NAME?"}},{"$f":"_xll.RiskData('Risk Summary'!K$48,$A2016)/1000","v":{"$error":"#NAME?"}},{"$f":"_xll.RiskData('Risk Summary'!L$48,$A2016)/1000","v":{"$error":"#NAME?"}},null,null,{"$f":"(_xll.RiskData(NR_to_Cash!C$18,$A2016))/1000","v":{"$error":"#NAME?"}},{"$f":"(_xll.RiskData(NR_to_Cash!D$18,$A2016))/1000","v":{"$error":"#NAME?"}},{"$f":"(_xll.RiskData(NR_to_Cash!E$18,$A2016))/1000","v":{"$error":"#NAME?"}}]
[2010,{"$f":"_xll.RiskData('Risk Summary'!J$48,$A2017)/1000","v":{"$error":"#NAME?"}},{"$f":"_xll.RiskData('Risk Summary'!K$48,$A2017)/1000","v":{"$error":"#NAME?"}},{"$f":"_xll.RiskData('Risk Summary'!L$48,$A2017)/1000","v":{"$error":"#NAME?"}},null,null,{"$f":"(_xll.RiskData(NR_to_Cash!C$18,$A2017))/1000","v":{"$error":"#NAME?"}},{"$f":"(_xll.RiskData(NR_to_Cash!D$18,$A2017))/1000","v":{"$error":"#NAME?"}},{"$f":"(_xll.RiskData(NR_to_Cash!E$18,$A2017))/1000","v":{"$error":"#NAME?"}}]
[2011,{"$f":"_xll.RiskData('Risk Summary'!J$48,$A2018)/1000","v":{"$error":"#NAME?"}},{"$f":"_xll.RiskData('Risk Summary'!K$48,$A2018)/1000","v":{"$error":"#NAME?"}},{"$f":"_xll.RiskData('Risk Summary'!L$48,$A2018)/1000","v":{"$error":"#NAME?"}},null,null,{"$f":"(_xll.RiskData(NR_to_Cash!C$18,$A2018))/1000","v":{"$error":"#NAME?"}},{"$f":"(_xll.RiskData(NR_to_Cash!D$18,$A2018))/1000","v":{"$error":"#NAME?"}},{"$f":"(_xll.RiskData(NR_to_Cash!E$18,$A2018))/1000","v":{"$error":"#NAME?"}}]
[2012,{"$f":"_xll.RiskData('Risk Summary'!J$48,$A2019)/1000","v":{"$error":"#NAME?"}},{"$f":"_xll.RiskData('Risk Summary'!K$48,$A2019)/1000","v":{"$error":"#NAME?"}},{"$f":"_xll.RiskData('Risk Summary'!L$48,$A2019)/1000","v":{"$error":"#NAME?"}},null,null,{"$f":"(_xll.RiskData(NR_to_Cash!C$18,$A2019))/1000","v":{"$error":"#NAME?"}},{"$f":"(_xll.RiskData(NR_to_Cash!D$18,$A2019))/1000","v":{"$error":"#NAME?"}},{"$f":"(_xll.RiskData(NR_to_Cash!E$18,$A2019))/1000","v":{"$error":"#NAME?"}}]
[2013,{"$f":"_xll.RiskData('Risk Summary'!J$48,$A2020)/1000","v":{"$error":"#NAME?"}},{"$f":"_xll.RiskData('Risk Summary'!K$48,$A2020)/1000","v":{"$error":"#NAME?"}},{"$f":"_xll.RiskData('Risk Summary'!L$48,$A2020)/1000","v":{"$error":"#NAME?"}},null,null,{"$f":"(_xll.RiskData(NR_to_Cash!C$18,$A2020))/1000","v":{"$error":"#NAME?"}},{"$f":"(_xll.RiskData(NR_to_Cash!D$18,$A2020))/1000","v":{"$error":"#NAME?"}},{"$f":"(_xll.RiskData(NR_to_Cash!E$18,$A2020))/1000","v":{"$error":"#NAME?"}}]
[2014,{"$f":"_xll.RiskData('Risk Summary'!J$48,$A2021)/1000","v":{"$error":"#NAME?"}},{"$f":"_xll.RiskData('Risk Summary'!K$48,$A2021)/1000","v":{"$error":"#NAME?"}},{"$f":"_xll.RiskData('Risk Summary'!L$48,$A2021)/1000","v":{"$error":"#NAME?"}},null,null,{"$f":"(_xll.RiskData(NR_to_Cash!C$18,$A2021))/1000","v":{"$error":"#NAME?"}},{"$f":"(_xll.RiskData(NR_to_Cash!D$18,$A2021))/1000","v":{"$error":"#NAME?"}},{"$f":"(_xll.RiskData(NR_to_Cash!E$18,$A2021))/1000","v":{"$error":"#NAME?"}}]
[2015,{"$f":"_xll.RiskData('Risk Summary'!J$48,$A2022)/1000","v":{"$error":"#NAME?"}},{"$f":"_xll.RiskData('Risk Summary'!K$48,$A2022)/1000","v":{"$error":"#NAME?"}},{"$f":"_xll.RiskData('Risk Summary'!L$48,$A2022)/1000","v":{"$error":"#NAME?"}},null,null,{"$f":"(_xll.RiskData(NR_to_Cash!C$18,$A2022))/1000","v":{"$error":"#NAME?"}},{"$f":"(_xll.RiskData(NR_to_Cash!D$18,$A2022))/1000","v":{"$error":"#NAME?"}},{"$f":"(_xll.RiskData(NR_to_Cash!E$18,$A2022))/1000","v":{"$error":"#NAME?"}}]
[2016,{"$f":"_xll.RiskData('Risk Summary'!J$48,$A2023)/1000","v":{"$error":"#NAME?"}},{"$f":"_xll.RiskData('Risk Summary'!K$48,$A2023)/1000","v":{"$error":"#NAME?"}},{"$f":"_xll.RiskData('Risk Summary'!L$48,$A2023)/1000","v":{"$error":"#NAME?"}},null,null,{"$f":"(_xll.RiskData(NR_to_Cash!C$18,$A2023))/1000","v":{"$error":"#NAME?"}},{"$f":"(_xll.RiskData(NR_to_Cash!D$18,$A2023))/1000","v":{"$error":"#NAME?"}},{"$f":"(_xll.RiskData(NR_to_Cash!E$18,$A2023))/1000","v":{"$error":"#NAME?"}}]
[2017,{"$f":"_xll.RiskData('Risk Summary'!J$48,$A2024)/1000","v":{"$error":"#NAME?"}},{"$f":"_xll.RiskData('Risk Summary'!K$48,$A2024)/1000","v":{"$error":"#NAME?"}},{"$f":"_xll.RiskData('Risk Summary'!L$48,$A2024)/1000","v":{"$error":"#NAME?"}},null,null,{"$f":"(_xll.RiskData(NR_to_Cash!C$18,$A2024))/1000","v":{"$error":"#NAME?"}},{"$f":"(_xll.RiskData(NR_to_Cash!D$18,$A2024))/1000","v":{"$error":"#NAME?"}},{"$f":"(_xll.RiskData(NR_to_Cash!E$18,$A2024))/1000","v":{"$error":"#NAME?"}}]
[2018,{"$f":"_xll.RiskData('Risk Summary'!J$48,$A2025)/1000","v":{"$error":"#NAME?"}},{"$f":"_xll.RiskData('Risk Summary'!K$48,$A2025)/1000","v":{"$error":"#NAME?"}},{"$f":"_xll.RiskData('Risk Summary'!L$48,$A2025)/1000","v":{"$error":"#NAME?"}},null,null,{"$f":"(_xll.RiskData(NR_to_Cash!C$18,$A2025))/1000","v":{"$error":"#NAME?"}},{"$f":"(_xll.RiskData(NR_to_Cash!D$18,$A2025))/1000","v":{"$error":"#NAME?"}},{"$f":"(_xll.RiskData(NR_to_Cash!E$18,$A2025))/1000","v":{"$error":"#NAME?"}}]
[2019,{"$f":"_xll.RiskData('Risk Summary'!J$48,$A2026)/1000","v":{"$error":"#NAME?"}},{"$f":"_xll.RiskData('Risk Summary'!K$48,$A2026)/1000","v":{"$error":"#NAME?"}},{"$f":"_xll.RiskData('Risk Summary'!L$48,$A2026)/1000","v":{"$error":"#NAME?"}},null,null,{"$f":"(_xll.RiskData(NR_to_Cash!C$18,$A2026))/1000","v":{"$error":"#NAME?"}},{"$f":"(_xll.RiskData(NR_to_Cash!D$18,$A2026))/1000","v":{"$error":"#NAME?"}},{"$f":"(_xll.RiskData(NR_to_Cash!E$18,$A2026))/1000","v":{"$error":"#NAME?"}}]
[2020,{"$f":"_xll.RiskData('Risk Summary'!J$48,$A2027)/1000","v":{"$error":"#NAME?"}},{"$f":"_xll.RiskData('Risk Summary'!K$48,$A2027)/1000","v":{"$error":"#NAME?"}},{"$f":"_xll.RiskData('Risk Summary'!L$48,$A2027)/1000","v":{"$error":"#NAME?"}},null,null,{"$f":"(_xll.RiskData(NR_to_Cash!C$18,$A2027))/1000","v":{"$error":"#NAME?"}},{"$f":"(_xll.RiskData(NR_to_Cash!D$18,$A2027))/1000","v":{"$error":"#NAME?"}},{"$f":"(_xll.RiskData(NR_to_Cash!E$18,$A2027))/1000","v":{"$error":"#NAME?"}}]
[2021,{"$f":"_xll.RiskData('Risk Summary'!J$48,$A2028)/1000","v":{"$error":"#NAME?"}},{"$f":"_xll.RiskData('Risk Summary'!K$48,$A2028)/1000","v":{"$error":"#NAME?"}},{"$f":"_xll.RiskData('Risk Summary'!L$48,$A2028)/1000","v":{"$error":"#NAME?"}},null,null,{"$f":"(_xll.RiskData(NR_to_Cash!C$18,$A2028))/1000","v":{"$error":"#NAME?"}},{"$f":"(_xll.RiskData(NR_to_Cash!D$18,$A2028))/1000","v":{"$error":"#NAME?"}},{"$f":"(_xll.RiskData(NR_to_Cash!E$18,$A2028))/1000","v":{"$error":"#NAME?"}}]
[2022,{"$f":"_xll.RiskData('Risk Summary'!J$48,$A2029)/1000","v":{"$error":"#NAME?"}},{"$f":"_xll.RiskData('Risk Summary'!K$48,$A2029)/1000","v":{"$error":"#NAME?"}},{"$f":"_xll.RiskData('Risk Summary'!L$48,$A2029)/1000","v":{"$error":"#NAME?"}},null,null,{"$f":"(_xll.RiskData(NR_to_Cash!C$18,$A2029))/1000","v":{"$error":"#NAME?"}},{"$f":"(_xll.RiskData(NR_to_Cash!D$18,$A2029))/1000","v":{"$error":"#NAME?"}},{"$f":"(_xll.RiskData(NR_to_Cash!E$18,$A2029))/1000","v":{"$error":"#NAME?"}}]
[2023,{"$f":"_xll.RiskData('Risk Summary'!J$48,$A2030)/1000","v":{"$error":"#NAME?"}},{"$f":"_xll.RiskData('Risk Summary'!K$48,$A2030)/1000","v":{"$error":"#NAME?"}},{"$f":"_xll.RiskData('Risk Summary'!L$48,$A2030)/1000","v":{"$error":"#NAME?"}},null,null,{"$f":"(_xll.RiskData(NR_to_Cash!C$18,$A2030))/1000","v":{"$error":"#NAME?"}},{"$f":"(_xll.RiskData(NR_to_Cash!D$18,$A2030))/1000","v":{"$error":"#NAME?"}},{"$f":"(_xll.RiskData(NR_to_Cash!E$18,$A2030))/1000","v":{"$error":"#NAME?"}}]
[2024,{"$f":"_xll.RiskData('Risk Summary'!J$48,$A2031)/1000","v":{"$error":"#NAME?"}},{"$f":"_xll.RiskData('Risk Summary'!K$48,$A2031)/1000","v":{"$error":"#NAME?"}},{"$f":"_xll.RiskData('Risk Summary'!L$48,$A2031)/1000","v":{"$error":"#NAME?"}},null,null,{"$f":"(_xll.RiskData(NR_to_Cash!C$18,$A2031))/1000","v":{"$error":"#NAME?"}},{"$f":"(_xll.RiskData(NR_to_Cash!D$18,$A2031))/1000","v":{"$error":"#NAME?"}},{"$f":"(_xll.RiskData(NR_to_Cash!E$18,$A2031))/1000","v":{"$error":"#NAME?"}}]
[2025,{"$f":"_xll.RiskData('Risk Summary'!J$48,$A2032)/1000","v":{"$error":"#NAME?"}},{"$f":"_xll.RiskData('Risk Summary'!K$48,$A2032)/1000","v":{"$error":"#NAME?"}},{"$f":"_xll.RiskData('Risk Summary'!L$48,$A2032)/1000","v":{"$error":"#NAME?"}},null,null,{"$f":"(_xll.RiskData(NR_to_Cash!C$18,$A2032))/1000","v":{"$error":"#NAME?"}},{"$f":"(_xll.RiskData(NR_to_Cash!D$18,$A2032))/1000","v":{"$error":"#NAME?"}},{"$f":"(_xll.RiskData(NR_to_Cash!E$18,$A2032))/1000","v":{"$error":"#NAME?"}}]
[2026,{"$f":"_xll.RiskData('Risk Summary'!J$48,$A2033)/1000","v":{"$error":"#NAME?"}},{"$f":"_xll.RiskData('Risk Summary'!K$48,$A2033)/1000","v":{"$error":"#NAME?"}},{"$f":"_xll.RiskData('Risk Summary'!L$48,$A2033)/1000","v":{"$error":"#NAME?"}},null,null,{"$f":"(_xll.RiskData(NR_to_Cash!C$18,$A2033))/1000","v":{"$error":"#NAME?"}},{"$f":"(_xll.RiskData(NR_to_Cash!D$18,$A2033))/1000","v":{"$error":"#NAME?"}},{"$f":"(_xll.RiskData(NR_to_Cash!E$18,$A2033))/1000","v":{"$error":"#NAME?"}}]
[2027,{"$f":"_xll.RiskData('Risk Summary'!J$48,$A2034)/1000","v":{"$error":"#NAME?"}},{"$f":"_xll.RiskData('Risk Summary'!K$48,$A2034)/1000","v":{"$error":"#NAME?"}},{"$f":"_xll.RiskData('Risk Summary'!L$48,$A2034)/1000","v":{"$error":"#NAME?"}},null,null,{"$f":"(_xll.RiskData(NR_to_Cash!C$18,$A2034))/1000","v":{"$error":"#NAME?"}},{"$f":"(_xll.RiskData(NR_to_Cash!D$18,$A2034))/1000","v":{"$error":"#NAME?"}},{"$f":"(_xll.RiskData(NR_to_Cash!E$18,$A2034))/1000","v":{"$error":"#NAME?"}}]
[2028,{"$f":"_xll.RiskData('Risk Summary'!J$48,$A2035)/1000","v":{"$error":"#NAME?"}},{"$f":"_xll.RiskData('Risk Summary'!K$48,$A2035)/1000","v":{"$error":"#NAME?"}},{"$f":"_xll.RiskData('Risk Summary'!L$48,$A2035)/1000","v":{"$error":"#NAME?"}},null,null,{"$f":"(_xll.RiskData(NR_to_Cash!C$18,$A2035))/1000","v":{"$error":"#NAME?"}},{"$f":"(_xll.RiskData(NR_to_Cash!D$18,$A2035))/1000","v":{"$error":"#NAME?"}},{"$f":"(_xll.RiskData(NR_to_Cash!E$18,$A2035))/1000","v":{"$error":"#NAME?"}}]
[2029,{"$f":"_xll.RiskData('Risk Summary'!J$48,$A2036)/1000","v":{"$error":"#NAME?"}},{"$f":"_xll.RiskData('Risk Summary'!K$48,$A2036)/1000","v":{"$error":"#NAME?"}},{"$f":"_xll.RiskData('Risk Summary'!L$48,$A2036)/1000","v":{"$error":"#NAME?"}},null,null,{"$f":"(_xll.RiskData(NR_to_Cash!C$18,$A2036))/1000","v":{"$error":"#NAME?"}},{"$f":"(_xll.RiskData(NR_to_Cash!D$18,$A2036))/1000","v":{"$error":"#NAME?"}},{"$f":"(_xll.RiskData(NR_to_Cash!E$18,$A2036))/1000","v":{"$error":"#NAME?"}}]
[2030,{"$f":"_xll.RiskData('Risk Summary'!J$48,$A2037)/1000","v":{"$error":"#NAME?"}},{"$f":"_xll.RiskData('Risk Summary'!K$48,$A2037)/1000","v":{"$error":"#NAME?"}},{"$f":"_xll.RiskData('Risk Summary'!L$48,$A2037)/1000","v":{"$error":"#NAME?"}},null,null,{"$f":"(_xll.RiskData(NR_to_Cash!C$18,$A2037))/1000","v":{"$error":"#NAME?"}},{"$f":"(_xll.RiskData(NR_to_Cash!D$18,$A2037))/1000","v":{"$error":"#NAME?"}},{"$f":"(_xll.RiskData(NR_to_Cash!E$18,$A2037))/1000","v":{"$error":"#NAME?"}}]
[2031,{"$f":"_xll.RiskData('Risk Summary'!J$48,$A2038)/1000","v":{"$error":"#NAME?"}},{"$f":"_xll.RiskData('Risk Summary'!K$48,$A2038)/1000","v":{"$error":"#NAME?"}},{"$f":"_xll.RiskData('Risk Summary'!L$48,$A2038)/1000","v":{"$error":"#NAME?"}},null,null,{"$f":"(_xll.RiskData(NR_to_Cash!C$18,$A2038))/1000","v":{"$error":"#NAME?"}},{"$f":"(_xll.RiskData(NR_to_Cash!D$18,$A2038))/1000","v":{"$error":"#NAME?"}},{"$f":"(_xll.RiskData(NR_to_Cash!E$18,$A2038))/1000","v":{"$error":"#NAME?"}}]
[2032,{"$f":"_xll.RiskData('Risk Summary'!J$48,$A2039)/1000","v":{"$error":"#NAME?"}},{"$f":"_xll.RiskData('Risk Summary'!K$48,$A2039)/1000","v":{"$error":"#NAME?"}},{"$f":"_xll.RiskData('Risk Summary'!L$48,$A2039)/1000","v":{"$error":"#NAME?"}},null,null,{"$f":"(_xll.RiskData(NR_to_Cash!C$18,$A2039))/1000","v":{"$error":"#NAME?"}},{"$f":"(_xll.RiskData(NR_to_Cash!D$18,$A2039))/1000","v":{"$error":"#NAME?"}},{"$f":"(_xll.RiskData(NR_to_Cash!E$18,$A2039))/1000","v":{"$error":"#NAME?"}}]
[2033,{"$f":"_xll.RiskData('Risk Summary'!J$48,$A2040)/1000","v":{"$error":"#NAME?"}},{"$f":"_xll.RiskData('Risk Summary'!K$48,$A2040)/1000","v":{"$error":"#NAME?"}},{"$f":"_xll.RiskData('Risk Summary'!L$48,$A2040)/1000","v":{"$error":"#NAME?"}},null,null,{"$f":"(_xll.RiskData(NR_to_Cash!C$18,$A2040))/1000","v":{"$error":"#NAME?"}},{"$f":"(_xll.RiskData(NR_to_Cash!D$18,$A2040))/1000","v":{"$error":"#NAME?"}},{"$f":"(_xll.RiskData(NR_to_Cash!E$18,$A2040))/1000","v":{"$error":"#NAME?"}}]
[2034,{"$f":"_xll.RiskData('Risk Summary'!J$48,$A2041)/1000","v":{"$error":"#NAME?"}},{"$f":"_xll.RiskData('Risk Summary'!K$48,$A2041)/1000","v":{"$error":"#NAME?"}},{"$f":"_xll.RiskData('Risk Summary'!L$48,$A2041)/1000","v":{"$error":"#NAME?"}},null,null,{"$f":"(_xll.RiskData(NR_to_Cash!C$18,$A2041))/1000","v":{"$error":"#NAME?"}},{"$f":"(_xll.RiskData(NR_to_Cash!D$18,$A2041))/1000","v":{"$error":"#NAME?"}},{"$f":"(_xll.RiskData(NR_to_Cash!E$18,$A2041))/1000","v":{"$error":"#NAME?"}}]
[2035,{"$f":"_xll.RiskData('Risk Summary'!J$48,$A2042)/1000","v":{"$error":"#NAME?"}},{"$f":"_xll.RiskData('Risk Summary'!K$48,$A2042)/1000","v":{"$error":"#NAME?"}},{"$f":"_xll.RiskData('Risk Summary'!L$48,$A2042)/1000","v":{"$error":"#NAME?"}},null,null,{"$f":"(_xll.RiskData(NR_to_Cash!C$18,$A2042))/1000","v":{"$error":"#NAME?"}},{"$f":"(_xll.RiskData(NR_to_Cash!D$18,$A2042))/1000","v":{"$error":"#NAME?"}},{"$f":"(_xll.RiskData(NR_to_Cash!E$18,$A2042))/1000","v":{"$error":"#NAME?"}}]
[2036,{"$f":"_xll.RiskData('Risk Summary'!J$48,$A2043)/1000","v":{"$error":"#NAME?"}},{"$f":"_xll.RiskData('Risk Summary'!K$48,$A2043)/1000","v":{"$error":"#NAME?"}},{"$f":"_xll.RiskData('Risk Summary'!L$48,$A2043)/1000","v":{"$error":"#NAME?"}},null,null,{"$f":"(_xll.RiskData(NR_to_Cash!C$18,$A2043))/1000","v":{"$error":"#NAME?"}},{"$f":"(_xll.RiskData(NR_to_Cash!D$18,$A2043))/1000","v":{"$error":"#NAME?"}},{"$f":"(_xll.RiskData(NR_to_Cash!E$18,$A2043))/1000","v":{"$error":"#NAME?"}}]
[2037,{"$f":"_xll.RiskData('Risk Summary'!J$48,$A2044)/1000","v":{"$error":"#NAME?"}},{"$f":"_xll.RiskData('Risk Summary'!K$48,$A2044)/1000","v":{"$error":"#NAME?"}},{"$f":"_xll.RiskData('Risk Summary'!L$48,$A2044)/1000","v":{"$error":"#NAME?"}},null,null,{"$f":"(_xll.RiskData(NR_to_Cash!C$18,$A2044))/1000","v":{"$error":"#NAME?"}},{"$f":"(_xll.RiskData(NR_to_Cash!D$18,$A2044))/1000","v":{"$error":"#NAME?"}},{"$f":"(_xll.RiskData(NR_to_Cash!E$18,$A2044))/1000","v":{"$error":"#NAME?"}}]
[2038,{"$f":"_xll.RiskData('Risk Summary'!J$48,$A2045)/1000","v":{"$error":"#NAME?"}},{"$f":"_xll.RiskData('Risk Summary'!K$48,$A2045)/1000","v":{"$error":"#NAME?"}},{"$f":"_xll.RiskData('Risk Summary'!L$48,$A2045)/1000","v":{"$error":"#NAME?"}},null,null,{"$f":"(_xll.RiskData(NR_to_Cash!C$18,$A2045))/1000","v":{"$error":"#NAME?"}},{"$f":"(_xll.RiskData(NR_to_Cash!D$18,$A2045))/1000","v":{"$error":"#NAME?"}},{"$f":"(_xll.RiskData(NR_to_Cash!E$18,$A2045))/1000","v":{"$error":"#NAME?"}}]
[2039,{"$f":"_xll.RiskData('Risk Summary'!J$48,$A2046)/1000","v":{"$error":"#NAME?"}},{"$f":"_xll.RiskData('Risk Summary'!K$48,$A2046)/1000","v":{"$error":"#NAME?"}},{"$f":"_xll.RiskData('Risk Summary'!L$48,$A2046)/1000","v":{"$error":"#NAME?"}},null,null,{"$f":"(_xll.RiskData(NR_to_Cash!C$18,$A2046))/1000","v":{"$error":"#NAME?"}},{"$f":"(_xll.RiskData(NR_to_Cash!D$18,$A2046))/1000","v":{"$error":"#NAME?"}},{"$f":"(_xll.RiskData(NR_to_Cash!E$18,$A2046))/1000","v":{"$error":"#NAME?"}}]
[2040,{"$f":"_xll.RiskData('Risk Summary'!J$48,$A2047)/1000","v":{"$error":"#NAME?"}},{"$f":"_xll.RiskData('Risk Summary'!K$48,$A2047)/1000","v":{"$error":"#NAME?"}},{"$f":"_xll.RiskData('Risk Summary'!L$48,$A2047)/1000","v":{"$error":"#NAME?"}},null,null,{"$f":"(_xll.RiskData(NR_to_Cash!C$18,$A2047))/1000","v":{"$error":"#NAME?"}},{"$f":"(_xll.RiskData(NR_to_Cash!D$18,$A2047))/1000","v":{"$error":"#NAME?"}},{"$f":"(_xll.RiskData(NR_to_Cash!E$18,$A2047))/1000","v":{"$error":"#NAME?"}}]
[2041,{"$f":"_xll.RiskData('Risk Summary'!J$48,$A2048)/1000","v":{"$error":"#NAME?"}},{"$f":"_xll.RiskData('Risk Summary'!K$48,$A2048)/1000","v":{"$error":"#NAME?"}},{"$f":"_xll.RiskData('Risk Summary'!L$48,$A2048)/1000","v":{"$error":"#NAME?"}},null,null,{"$f":"(_xll.RiskData(NR_to_Cash!C$18,$A2048))/1000","v":{"$error":"#NAME?"}},{"$f":"(_xll.RiskData(NR_to_Cash!D$18,$A2048))/1000","v":{"$error":"#NAME?"}},{"$f":"(_xll.RiskData(NR_to_Cash!E$18,$A2048))/1000","v":{"$error":"#NAME?"}}]
[2042,{"$f":"_xll.RiskData('Risk Summary'!J$48,$A2049)/1000","v":{"$error":"#NAME?"}},{"$f":"_xll.RiskData('Risk Summary'!K$48,$A2049)/1000","v":{"$error":"#NAME?"}},{"$f":"_xll.RiskData('Risk Summary'!L$48,$A2049)/1000","v":{"$error":"#NAME?"}},null,null,{"$f":"(_xll.RiskData(NR_to_Cash!C$18,$A2049))/1000","v":{"$error":"#NAME?"}},{"$f":"(_xll.RiskData(NR_to_Cash!D$18,$A2049))/1000","v":{"$error":"#NAME?"}},{"$f":"(_xll.RiskData(NR_to_Cash!E$18,$A2049))/1000","v":{"$error":"#NAME?"}}]
[2043,{"$f":"_xll.RiskData('Risk Summary'!J$48,$A2050)/1000","v":{"$error":"#NAME?"}},{"$f":"_xll.RiskData('Risk Summary'!K$48,$A2050)/1000","v":{"$error":"#NAME?"}},{"$f":"_xll.RiskData('Risk Summary'!L$48,$A2050)/1000","v":{"$error":"#NAME?"}},null,null,{"$f":"(_xll.RiskData(NR_to_Cash!C$18,$A2050))/1000","v":{"$error":"#NAME?"}},{"$f":"(_xll.RiskData(NR_to_Cash!D$18,$A2050))/1000","v":{"$error":"#NAME?"}},{"$f":"(_xll.RiskData(NR_to_Cash!E$18,$A2050))/1000","v":{"$error":"#NAME?"}}]
[2044,{"$f":"_xll.RiskData('Risk Summary'!J$48,$A2051)/1000","v":{"$error":"#NAME?"}},{"$f":"_xll.RiskData('Risk Summary'!K$48,$A2051)/1000","v":{"$error":"#NAME?"}},{"$f":"_xll.RiskData('Risk Summary'!L$48,$A2051)/1000","v":{"$error":"#NAME?"}},null,null,{"$f":"(_xll.RiskData(NR_to_Cash!C$18,$A2051))/1000","v":{"$error":"#NAME?"}},{"$f":"(_xll.RiskData(NR_to_Cash!D$18,$A2051))/1000","v":{"$error":"#NAME?"}},{"$f":"(_xll.RiskData(NR_to_Cash!E$18,$A2051))/1000","v":{"$error":"#NAME?"}}]
[2045,{"$f":"_xll.RiskData('Risk Summary'!J$48,$A2052)/1000","v":{"$error":"#NAME?"}},{"$f":"_xll.RiskData('Risk Summary'!K$48,$A2052)/1000","v":{"$error":"#NAME?"}},{"$f":"_xll.RiskData('Risk Summary'!L$48,$A2052)/1000","v":{"$error":"#NAME?"}},null,null,{"$f":"(_xll.RiskData(NR_to_Cash!C$18,$A2052))/1000","v":{"$error":"#NAME?"}},{"$f":"(_xll.RiskData(NR_to_Cash!D$18,$A2052))/1000","v":{"$error":"#NAME?"}},{"$f":"(_xll.RiskData(NR_to_Cash!E$18,$A2052))/1000","v":{"$error":"#NAME?"}}]
[2046,{"$f":"_xll.RiskData('Risk Summary'!J$48,$A2053)/1000","v":{"$error":"#NAME?"}},{"$f":"_xll.RiskData('Risk Summary'!K$48,$A2053)/1000","v":{"$error":"#NAME?"}},{"$f":"_xll.RiskData('Risk Summary'!L$48,$A2053)/1000","v":{"$error":"#NAME?"}},null,null,{"$f":"(_xll.RiskData(NR_to_Cash!C$18,$A2053))/1000","v":{"$error":"#NAME?"}},{"$f":"(_xll.RiskData(NR_to_Cash!D$18,$A2053))/1000","v":{"$error":"#NAME?"}},{"$f":"(_xll.RiskData(NR_to_Cash!E$18,$A2053))/1000","v":{"$error":"#NAME?"}}]
[2047,{"$f":"_xll.RiskData('Risk Summary'!J$48,$A2054)/1000","v":{"$error":"#NAME?"}},{"$f":"_xll.RiskData('Risk Summary'!K$48,$A2054)/1000","v":{"$error":"#NAME?"}},{"$f":"_xll.RiskData('Risk Summary'!L$48,$A2054)/1000","v":{"$error":"#NAME?"}},null,null,{"$f":"(_xll.RiskData(NR_to_Cash!C$18,$A2054))/1000","v":{"$error":"#NAME?"}},{"$f":"(_xll.RiskData(NR_to_Cash!D$18,$A2054))/1000","v":{"$error":"#NAME?"}},{"$f":"(_xll.RiskData(NR_to_Cash!E$18,$A2054))/1000","v":{"$error":"#NAME?"}}]
[2048,{"$f":"_xll.RiskData('Risk Summary'!J$48,$A2055)/1000","v":{"$error":"#NAME?"}},{"$f":"_xll.RiskData('Risk Summary'!K$48,$A2055)/1000","v":{"$error":"#NAME?"}},{"$f":"_xll.RiskData('Risk Summary'!L$48,$A2055)/1000","v":{"$error":"#NAME?"}},null,null,{"$f":"(_xll.RiskData(NR_to_Cash!C$18,$A2055))/1000","v":{"$error":"#NAME?"}},{"$f":"(_xll.RiskData(NR_to_Cash!D$18,$A2055))/1000","v":{"$error":"#NAME?"}},{"$f":"(_xll.RiskData(NR_to_Cash!E$18,$A2055))/1000","v":{"$error":"#NAME?"}}]
[2049,{"$f":"_xll.RiskData('Risk Summary'!J$48,$A2056)/1000","v":{"$error":"#NAME?"}},{"$f":"_xll.RiskData('Risk Summary'!K$48,$A2056)/1000","v":{"$error":"#NAME?"}},{"$f":"_xll.RiskData('Risk Summary'!L$48,$A2056)/1000","v":{"$error":"#NAME?"}},null,null,{"$f":"(_xll.RiskData(NR_to_Cash!C$18,$A2056))/1000","v":{"$error":"#NAME?"}},{"$f":"(_xll.RiskData(NR_to_Cash!D$18,$A2056))/1000","v":{"$error":"#NAME?"}},{"$f":"(_xll.RiskData(NR_to_Cash!E$18,$A2056))/1000","v":{"$error":"#NAME?"}}]
[2050,{"$f":"_xll.RiskData('Risk Summary'!J$48,$A2057)/1000","v":{"$error":"#NAME?"}},{"$f":"_xll.RiskData('Risk Summary'!K$48,$A2057)/1000","v":{"$error":"#NAME?"}},{"$f":"_xll.RiskData('Risk Summary'!L$48,$A2057)/1000","v":{"$error":"#NAME?"}},null,null,{"$f":"(_xll.RiskData(NR_to_Cash!C$18,$A2057))/1000","v":{"$error":"#NAME?"}},{"$f":"(_xll.RiskData(NR_to_Cash!D$18,$A2057))/1000","v":{"$error":"#NAME?"}},{"$f":"(_xll.RiskData(NR_to_Cash!E$18,$A2057))/1000","v":{"$error":"#NAME?"}}]
[2051,{"$f":"_xll.RiskData('Risk Summary'!J$48,$A2058)/1000","v":{"$error":"#NAME?"}},{"$f":"_xll.RiskData('Risk Summary'!K$48,$A2058)/1000","v":{"$error":"#NAME?"}},{"$f":"_xll.RiskData('Risk Summary'!L$48,$A2058)/1000","v":{"$error":"#NAME?"}},null,null,{"$f":"(_xll.RiskData(NR_to_Cash!C$18,$A2058))/1000","v":{"$error":"#NAME?"}},{"$f":"(_xll.RiskData(NR_to_Cash!D$18,$A2058))/1000","v":{"$error":"#NAME?"}},{"$f":"(_xll.RiskData(NR_to_Cash!E$18,$A2058))/1000","v":{"$error":"#NAME?"}}]
[2052,{"$f":"_xll.RiskData('Risk Summary'!J$48,$A2059)/1000","v":{"$error":"#NAME?"}},{"$f":"_xll.RiskData('Risk Summary'!K$48,$A2059)/1000","v":{"$error":"#NAME?"}},{"$f":"_xll.RiskData('Risk Summary'!L$48,$A2059)/1000","v":{"$error":"#NAME?"}},null,null,{"$f":"(_xll.RiskData(NR_to_Cash!C$18,$A2059))/1000","v":{"$error":"#NAME?"}},{"$f":"(_xll.RiskData(NR_to_Cash!D$18,$A2059))/1000","v":{"$error":"#NAME?"}},{"$f":"(_xll.RiskData(NR_to_Cash!E$18,$A2059))/1000","v":{"$error":"#NAME?"}}]
[2053,{"$f":"_xll.RiskData('Risk Summary'!J$48,$A2060)/1000","v":{"$error":"#NAME?"}},{"$f":"_xll.RiskData('Risk Summary'!K$48,$A2060)/1000","v":{"$error":"#NAME?"}},{"$f":"_xll.RiskData('Risk Summary'!L$48,$A2060)/1000","v":{"$error":"#NAME?"}},null,null,{"$f":"(_xll.RiskData(NR_to_Cash!C$18,$A2060))/1000","v":{"$error":"#NAME?"}},{"$f":"(_xll.RiskData(NR_to_Cash!D$18,$A2060))/1000","v":{"$error":"#NAME?"}},{"$f":"(_xll.RiskData(NR_to_Cash!E$18,$A2060))/1000","v":{"$error":"#NAME?"}}]
[2054,{"$f":"_xll.RiskData('Risk Summary'!J$48,$A2061)/1000","v":{"$error":"#NAME?"}},{"$f":"_xll.RiskData('Risk Summary'!K$48,$A2061)/1000","v":{"$error":"#NAME?"}},{"$f":"_xll.RiskData('Risk Summary'!L$48,$A2061)/1000","v":{"$error":"#NAME?"}},null,null,{"$f":"(_xll.RiskData(NR_to_Cash!C$18,$A2061))/1000","v":{"$error":"#NAME?"}},{"$f":"(_xll.RiskData(NR_to_Cash!D$18,$A2061))/1000","v":{"$error":"#NAME?"}},{"$f":"(_xll.RiskData(NR_to_Cash!E$18,$A2061))/1000","v":{"$error":"#NAME?"}}]
[2055,{"$f":"_xll.RiskData('Risk Summary'!J$48,$A2062)/1000","v":{"$error":"#NAME?"}},{"$f":"_xll.RiskData('Risk Summary'!K$48,$A2062)/1000","v":{"$error":"#NAME?"}},{"$f":"_xll.RiskData('Risk Summary'!L$48,$A2062)/1000","v":{"$error":"#NAME?"}},null,null,{"$f":"(_xll.RiskData(NR_to_Cash!C$18,$A2062))/1000","v":{"$error":"#NAME?"}},{"$f":"(_xll.RiskData(NR_to_Cash!D$18,$A2062))/1000","v":{"$error":"#NAME?"}},{"$f":"(_xll.RiskData(NR_to_Cash!E$18,$A2062))/1000","v":{"$error":"#NAME?"}}]
[2056,{"$f":"_xll.RiskData('Risk Summary'!J$48,$A2063)/1000","v":{"$error":"#NAME?"}},{"$f":"_xll.RiskData('Risk Summary'!K$48,$A2063)/1000","v":{"$error":"#NAME?"}},{"$f":"_xll.RiskData('Risk Summary'!L$48,$A2063)/1000","v":{"$error":"#NAME?"}},null,null,{"$f":"(_xll.RiskData(NR_to_Cash!C$18,$A2063))/1000","v":{"$error":"#NAME?"}},{"$f":"(_xll.RiskData(NR_to_Cash!D$18,$A2063))/1000","v":{"$error":"#NAME?"}},{"$f":"(_xll.RiskData(NR_to_Cash!E$18,$A2063))/1000","v":{"$error":"#NAME?"}}]
[2057,{"$f":"_xll.RiskData('Risk Summary'!J$48,$A2064)/1000","v":{"$error":"#NAME?"}},{"$f":"_xll.RiskData('Risk Summary'!K$48,$A2064)/1000","v":{"$error":"#NAME?"}},{"$f":"_xll.RiskData('Risk Summary'!L$48,$A2064)/1000","v":{"$error":"#NAME?"}},null,null,{"$f":"(_xll.RiskData(NR_to_Cash!C$18,$A2064))/1000","v":{"$error":"#NAME?"}},{"$f":"(_xll.RiskData(NR_to_Cash!D$18,$A2064))/1000","v":{"$error":"#NAME?"}},{"$f":"(_xll.RiskData(NR_to_Cash!E$18,$A2064))/1000","v":{"$error":"#NAME?"}}]
[2058,{"$f":"_xll.RiskData('Risk Summary'!J$48,$A2065)/1000","v":{"$error":"#NAME?"}},{"$f":"_xll.RiskData('Risk Summary'!K$48,$A2065)/1000","v":{"$error":"#NAME?"}},{"$f":"_xll.RiskData('Risk Summary'!L$48,$A2065)/1000","v":{"$error":"#NAME?"}},null,null,{"$f":"(_xll.RiskData(NR_to_Cash!C$18,$A2065))/1000","v":{"$error":"#NAME?"}},{"$f":"(_xll.RiskData(NR_to_Cash!D$18,$A2065))/1000","v":{"$error":"#NAME?"}},{"$f":"(_xll.RiskData(NR_to_Cash!E$18,$A2065))/1000","v":{"$error":"#NAME?"}}]
[2059,{"$f":"_xll.RiskData('Risk Summary'!J$48,$A2066)/1000","v":{"$error":"#NAME?"}},{"$f":"_xll.RiskData('Risk Summary'!K$48,$A2066)/1000","v":{"$error":"#NAME?"}},{"$f":"_xll.RiskData('Risk Summary'!L$48,$A2066)/1000","v":{"$error":"#NAME?"}},null,null,{"$f":"(_xll.RiskData(NR_to_Cash!C$18,$A2066))/1000","v":{"$error":"#NAME?"}},{"$f":"(_xll.RiskData(NR_to_Cash!D$18,$A2066))/1000","v":{"$error":"#NAME?"}},{"$f":"(_xll.RiskData(NR_to_Cash!E$18,$A2066))/1000","v":{"$error":"#NAME?"}}]
[2060,{"$f":"_xll.RiskData('Risk Summary'!J$48,$A2067)/1000","v":{"$error":"#NAME?"}},{"$f":"_xll.RiskData('Risk Summary'!K$48,$A2067)/1000","v":{"$error":"#NAME?"}},{"$f":"_xll.RiskData('Risk Summary'!L$48,$A2067)/1000","v":{"$error":"#NAME?"}},null,null,{"$f":"(_xll.RiskData(NR_to_Cash!C$18,$A2067))/1000","v":{"$error":"#NAME?"}},{"$f":"(_xll.RiskData(NR_to_Cash!D$18,$A2067))/1000","v":{"$error":"#NAME?"}},{"$f":"(_xll.RiskData(NR_to_Cash!E$18,$A2067))/1000","v":{"$error":"#NAME?"}}]
[2061,{"$f":"_xll.RiskData('Risk Summary'!J$48,$A2068)/1000","v":{"$error":"#NAME?"}},{"$f":"_xll.RiskData('Risk Summary'!K$48,$A2068)/1000","v":{"$error":"#NAME?"}},{"$f":"_xll.RiskData('Risk Summary'!L$48,$A2068)/1000","v":{"$error":"#NAME?"}},null,null,{"$f":"(_xll.RiskData(NR_to_Cash!C$18,$A2068))/1000","v":{"$error":"#NAME?"}},{"$f":"(_xll.RiskData(NR_to_Cash!D$18,$A2068))/1000","v":{"$error":"#NAME?"}},{"$f":"(_xll.RiskData(NR_to_Cash!E$18,$A2068))/1000","v":{"$error":"#NAME?"}}]
[2062,{"$f":"_xll.RiskData('Risk Summary'!J$48,$A2069)/1000","v":{"$error":"#NAME?"}},{"$f":"_xll.RiskData('Risk Summary'!K$48,$A2069)/1000","v":{"$error":"#NAME?"}},{"$f":"_xll.RiskData('Risk Summary'!L$48,$A2069)/1000","v":{"$error":"#NAME?"}},null,null,{"$f":"(_xll.RiskData(NR_to_Cash!C$18,$A2069))/1000","v":{"$error":"#NAME?"}},{"$f":"(_xll.RiskData(NR_to_Cash!D$18,$A2069))/1000","v":{"$error":"#NAME?"}},{"$f":"(_xll.RiskData(NR_to_Cash!E$18,$A2069))/1000","v":{"$error":"#NAME?"}}]
[2063,{"$f":"_xll.RiskData('Risk Summary'!J$48,$A2070)/1000","v":{"$error":"#NAME?"}},{"$f":"_xll.RiskData('Risk Summary'!K$48,$A2070)/1000","v":{"$error":"#NAME?"}},{"$f":"_xll.RiskData('Risk Summary'!L$48,$A2070)/1000","v":{"$error":"#NAME?"}},null,null,{"$f":"(_xll.RiskData(NR_to_Cash!C$18,$A2070))/1000","v":{"$error":"#NAME?"}},{"$f":"(_xll.RiskData(NR_to_Cash!D$18,$A2070))/1000","v":{"$error":"#NAME?"}},{"$f":"(_xll.RiskData(NR_to_Cash!E$18,$A2070))/1000","v":{"$error":"#NAME?"}}]
[2064,{"$f":"_xll.RiskData('Risk Summary'!J$48,$A2071)/1000","v":{"$error":"#NAME?"}},{"$f":"_xll.RiskData('Risk Summary'!K$48,$A2071)/1000","v":{"$error":"#NAME?"}},{"$f":"_xll.RiskData('Risk Summary'!L$48,$A2071)/1000","v":{"$error":"#NAME?"}},null,null,{"$f":"(_xll.RiskData(NR_to_Cash!C$18,$A2071))/1000","v":{"$error":"#NAME?"}},{"$f":"(_xll.RiskData(NR_to_Cash!D$18,$A2071))/1000","v":{"$error":"#NAME?"}},{"$f":"(_xll.RiskData(NR_to_Cash!E$18,$A2071))/1000","v":{"$error":"#NAME?"}}]
[2065,{"$f":"_xll.RiskData('Risk Summary'!J$48,$A2072)/1000","v":{"$error":"#NAME?"}},{"$f":"_xll.RiskData('Risk Summary'!K$48,$A2072)/1000","v":{"$error":"#NAME?"}},{"$f":"_xll.RiskData('Risk Summary'!L$48,$A2072)/1000","v":{"$error":"#NAME?"}},null,null,{"$f":"(_xll.RiskData(NR_to_Cash!C$18,$A2072))/1000","v":{"$error":"#NAME?"}},{"$f":"(_xll.RiskData(NR_to_Cash!D$18,$A2072))/1000","v":{"$error":"#NAME?"}},{"$f":"(_xll.RiskData(NR_to_Cash!E$18,$A2072))/1000","v":{"$error":"#NAME?"}}]
[2066,{"$f":"_xll.RiskData('Risk Summary'!J$48,$A2073)/1000","v":{"$error":"#NAME?"}},{"$f":"_xll.RiskData('Risk Summary'!K$48,$A2073)/1000","v":{"$error":"#NAME?"}},{"$f":"_xll.RiskData('Risk Summary'!L$48,$A2073)/1000","v":{"$error":"#NAME?"}},null,null,{"$f":"(_xll.RiskData(NR_to_Cash!C$18,$A2073))/1000","v":{"$error":"#NAME?"}},{"$f":"(_xll.RiskData(NR_to_Cash!D$18,$A2073))/1000","v":{"$error":"#NAME?"}},{"$f":"(_xll.RiskData(NR_to_Cash!E$18,$A2073))/1000","v":{"$error":"#NAME?"}}]
[2067,{"$f":"_xll.RiskData('Risk Summary'!J$48,$A2074)/1000","v":{"$error":"#NAME?"}},{"$f":"_xll.RiskData('Risk Summary'!K$48,$A2074)/1000","v":{"$error":"#NAME?"}},{"$f":"_xll.RiskData('Risk Summary'!L$48,$A2074)/1000","v":{"$error":"#NAME?"}},null,null,{"$f":"(_xll.RiskData(NR_to_Cash!C$18,$A2074))/1000","v":{"$error":"#NAME?"}},{"$f":"(_xll.RiskData(NR_to_Cash!D$18,$A2074))/1000","v":{"$error":"#NAME?"}},{"$f":"(_xll.RiskData(NR_to_Cash!E$18,$A2074))/1000","v":{"$error":"#NAME?"}}]
[2068,{"$f":"_xll.RiskData('Risk Summary'!J$48,$A2075)/1000","v":{"$error":"#NAME?"}},{"$f":"_xll.RiskData('Risk Summary'!K$48,$A2075)/1000","v":{"$error":"#NAME?"}},{"$f":"_xll.RiskData('Risk Summary'!L$48,$A2075)/1000","v":{"$error":"#NAME?"}},null,null,{"$f":"(_xll.RiskData(NR_to_Cash!C$18,$A2075))/1000","v":{"$error":"#NAME?"}},{"$f":"(_xll.RiskData(NR_to_Cash!D$18,$A2075))/1000","v":{"$error":"#NAME?"}},{"$f":"(_xll.RiskData(NR_to_Cash!E$18,$A2075))/1000","v":{"$error":"#NAME?"}}]
[2069,{"$f":"_xll.RiskData('Risk Summary'!J$48,$A2076)/1000","v":{"$error":"#NAME?"}},{"$f":"_xll.RiskData('Risk Summary'!K$48,$A2076)/1000","v":{"$error":"#NAME?"}},{"$f":"_xll.RiskData('Risk Summary'!L$48,$A2076)/1000","v":{"$error":"#NAME?"}},null,null,{"$f":"(_xll.RiskData(NR_to_Cash!C$18,$A2076))/1000","v":{"$error":"#NAME?"}},{"$f":"(_xll.RiskData(NR_to_Cash!D$18,$A2076))/1000","v":{"$error":"#NAME?"}},{"$f":"(_xll.RiskData(NR_to_Cash!E$18,$A2076))/1000","v":{"$error":"#NAME?"}}]
[2070,{"$f":"_xll.RiskData('Risk Summary'!J$48,$A2077)/1000","v":{"$error":"#NAME?"}},{"$f":"_xll.RiskData('Risk Summary'!K$48,$A2077)/1000","v":{"$error":"#NAME?"}},{"$f":"_xll.RiskData('Risk Summary'!L$48,$A2077)/1000","v":{"$error":"#NAME?"}},null,null,{"$f":"(_xll.RiskData(NR_to_Cash!C$18,$A2077))/1000","v":{"$error":"#NAME?"}},{"$f":"(_xll.RiskData(NR_to_Cash!D$18,$A2077))/1000","v":{"$error":"#NAME?"}},{"$f":"(_xll.RiskData(NR_to_Cash!E$18,$A2077))/1000","v":{"$error":"#NAME?"}}]
[2071,{"$f":"_xll.RiskData('Risk Summary'!J$48,$A2078)/1000","v":{"$error":"#NAME?"}},{"$f":"_xll.RiskData('Risk Summary'!K$48,$A2078)/1000","v":{"$error":"#NAME?"}},{"$f":"_xll.RiskData('Risk Summary'!L$48,$A2078)/1000","v":{"$error":"#NAME?"}},null,null,{"$f":"(_xll.RiskData(NR_to_Cash!C$18,$A2078))/1000","v":{"$error":"#NAME?"}},{"$f":"(_xll.RiskData(NR_to_Cash!D$18,$A2078))/1000","v":{"$error":"#NAME?"}},{"$f":"(_xll.RiskData(NR_to_Cash!E$18,$A2078))/1000","v":{"$error":"#NAME?"}}]
[2072,{"$f":"_xll.RiskData('Risk Summary'!J$48,$A2079)/1000","v":{"$error":"#NAME?"}},{"$f":"_xll.RiskData('Risk Summary'!K$48,$A2079)/1000","v":{"$error":"#NAME?"}},{"$f":"_xll.RiskData('Risk Summary'!L$48,$A2079)/1000","v":{"$error":"#NAME?"}},null,null,{"$f":"(_xll.RiskData(NR_to_Cash!C$18,$A2079))/1000","v":{"$error":"#NAME?"}},{"$f":"(_xll.RiskData(NR_to_Cash!D$18,$A2079))/1000","v":{"$error":"#NAME?"}},{"$f":"(_xll.RiskData(NR_to_Cash!E$18,$A2079))/1000","v":{"$error":"#NAME?"}}]
[2073,{"$f":"_xll.RiskData('Risk Summary'!J$48,$A2080)/1000","v":{"$error":"#NAME?"}},{"$f":"_xll.RiskData('Risk Summary'!K$48,$A2080)/1000","v":{"$error":"#NAME?"}},{"$f":"_xll.RiskData('Risk Summary'!L$48,$A2080)/1000","v":{"$error":"#NAME?"}},null,null,{"$f":"(_xll.RiskData(NR_to_Cash!C$18,$A2080))/1000","v":{"$error":"#NAME?"}},{"$f":"(_xll.RiskData(NR_to_Cash!D$18,$A2080))/1000","v":{"$error":"#NAME?"}},{"$f":"(_xll.RiskData(NR_to_Cash!E$18,$A2080))/1000","v":{"$error":"#NAME?"}}]
[2074,{"$f":"_xll.RiskData('Risk Summary'!J$48,$A2081)/1000","v":{"$error":"#NAME?"}},{"$f":"_xll.RiskData('Risk Summary'!K$48,$A2081)/1000","v":{"$error":"#NAME?"}},{"$f":"_xll.RiskData('Risk Summary'!L$48,$A2081)/1000","v":{"$error":"#NAME?"}},null,null,{"$f":"(_xll.RiskData(NR_to_Cash!C$18,$A2081))/1000","v":{"$error":"#NAME?"}},{"$f":"(_xll.RiskData(NR_to_Cash!D$18,$A2081))/1000","v":{"$error":"#NAME?"}},{"$f":"(_xll.RiskData(NR_to_Cash!E$18,$A2081))/1000","v":{"$error":"#NAME?"}}]
[2075,{"$f":"_xll.RiskData('Risk Summary'!J$48,$A2082)/1000","v":{"$error":"#NAME?"}},{"$f":"_xll.RiskData('Risk Summary'!K$48,$A2082)/1000","v":{"$error":"#NAME?"}},{"$f":"_xll.RiskData('Risk Summary'!L$48,$A2082)/1000","v":{"$error":"#NAME?"}},null,null,{"$f":"(_xll.RiskData(NR_to_Cash!C$18,$A2082))/1000","v":{"$error":"#NAME?"}},{"$f":"(_xll.RiskData(NR_to_Cash!D$18,$A2082))/1000","v":{"$error":"#NAME?"}},{"$f":"(_xll.RiskData(NR_to_Cash!E$18,$A2082))/1000","v":{"$error":"#NAME?"}}]
[2076,{"$f":"_xll.RiskData('Risk Summary'!J$48,$A2083)/1000","v":{"$error":"#NAME?"}},{"$f":"_xll.RiskData('Risk Summary'!K$48,$A2083)/1000","v":{"$error":"#NAME?"}},{"$f":"_xll.RiskData('Risk Summary'!L$48,$A2083)/1000","v":{"$error":"#NAME?"}},null,null,{"$f":"(_xll.RiskData(NR_to_Cash!C$18,$A2083))/1000","v":{"$error":"#NAME?"}},{"$f":"(_xll.RiskData(NR_to_Cash!D$18,$A2083))/1000","v":{"$error":"#NAME?"}},{"$f":"(_xll.RiskData(NR_to_Cash!E$18,$A2083))/1000","v":{"$error":"#NAME?"}}]
[2077,{"$f":"_xll.RiskData('Risk Summary'!J$48,$A2084)/1000","v":{"$error":"#NAME?"}},{"$f":"_xll.RiskData('Risk Summary'!K$48,$A2084)/1000","v":{"$error":"#NAME?"}},{"$f":"_xll.RiskData('Risk Summary'!L$48,$A2084)/1000","v":{"$error":"#NAME?"}},null,null,{"$f":"(_xll.RiskData(NR_to_Cash!C$18,$A2084))/1000","v":{"$error":"#NAME?"}},{"$f":"(_xll.RiskData(NR_to_Cash!D$18,$A2084))/1000","v":{"$error":"#NAME?"}},{"$f":"(_xll.RiskData(NR_to_Cash!E$18,$A2084))/1000","v":{"$error":"#NAME?"}}]
[2078,{"$f":"_xll.RiskData('Risk Summary'!J$48,$A2085)/1000","v":{"$error":"#NAME?"}},{"$f":"_xll.RiskData('Risk Summary'!K$48,$A2085)/1000","v":{"$error":"#NAME?"}},{"$f":"_xll.RiskData('Risk Summary'!L$48,$A2085)/1000","v":{"$error":"#NAME?"}},null,null,{"$f":"(_xll.RiskData(NR_to_Cash!C$18,$A2085))/1000","v":{"$error":"#NAME?"}},{"$f":"(_xll.RiskData(NR_to_Cash!D$18,$A2085))/1000","v":{"$error":"#NAME?"}},{"$f":"(_xll.RiskData(NR_to_Cash!E$18,$A2085))/1000","v":{"$error":"#NAME?"}}]
[2079,{"$f":"_xll.RiskData('Risk Summary'!J$48,$A2086)/1000","v":{"$error":"#NAME?"}},{"$f":"_xll.RiskData('Risk Summary'!K$48,$A2086)/1000","v":{"$error":"#NAME?"}},{"$f":"_xll.RiskData('Risk Summary'!L$48,$A2086)/1000","v":{"$error":"#NAME?"}},null,null,{"$f":"(_xll.RiskData(NR_to_Cash!C$18,$A2086))/1000","v":{"$error":"#NAME?"}},{"$f":"(_xll.RiskData(NR_to_Cash!D$18,$A2086))/1000","v":{"$error":"#NAME?"}},{"$f":"(_xll.RiskData(NR_to_Cash!E$18,$A2086))/1000","v":{"$error":"#NAME?"}}]
[2080,{"$f":"_xll.RiskData('Risk Summary'!J$48,$A2087)/1000","v":{"$error":"#NAME?"}},{"$f":"_xll.RiskData('Risk Summary'!K$48,$A2087)/1000","v":{"$error":"#NAME?"}},{"$f":"_xll.RiskData('Risk Summary'!L$48,$A2087)/1000","v":{"$error":"#NAME?"}},null,null,{"$f":"(_xll.RiskData(NR_to_Cash!C$18,$A2087))/1000","v":{"$error":"#NAME?"}},{"$f":"(_xll.RiskData(NR_to_Cash!D$18,$A2087))/1000","v":{"$error":"#NAME?"}},{"$f":"(_xll.RiskData(NR_to_Cash!E$18,$A2087))/1000","v":{"$error":"#NAME?"}}]
[2081,{"$f":"_xll.RiskData('Risk Summary'!J$48,$A2088)/1000","v":{"$error":"#NAME?"}},{"$f":"_xll.RiskData('Risk Summary'!K$48,$A2088)/1000","v":{"$error":"#NAME?"}},{"$f":"_xll.RiskData('Risk Summary'!L$48,$A2088)/1000","v":{"$error":"#NAME?"}},null,null,{"$f":"(_xll.RiskData(NR_to_Cash!C$18,$A2088))/1000","v":{"$error":"#NAME?"}},{"$f":"(_xll.RiskData(NR_to_Cash!D$18,$A2088))/1000","v":{"$error":"#NAME?"}},{"$f":"(_xll.RiskData(NR_to_Cash!E$18,$A2088))/1000","v":{"$error":"#NAME?"}}]
[2082,{"$f":"_xll.RiskData('Risk Summary'!J$48,$A2089)/1000","v":{"$error":"#NAME?"}},{"$f":"_xll.RiskData('Risk Summary'!K$48,$A2089)/1000","v":{"$error":"#NAME?"}},{"$f":"_xll.RiskData('Risk Summary'!L$48,$A2089)/1000","v":{"$error":"#NAME?"}},null,null,{"$f":"(_xll.RiskData(NR_to_Cash!C$18,$A2089))/1000","v":{"$error":"#NAME?"}},{"$f":"(_xll.RiskData(NR_to_Cash!D$18,$A2089))/1000","v":{"$error":"#NAME?"}},{"$f":"(_xll.RiskData(NR_to_Cash!E$18,$A2089))/1000","v":{"$error":"#NAME?"}}]
[2083,{"$f":"_xll.RiskData('Risk Summary'!J$48,$A2090)/1000","v":{"$error":"#NAME?"}},{"$f":"_xll.RiskData('Risk Summary'!K$48,$A2090)/1000","v":{"$error":"#NAME?"}},{"$f":"_xll.RiskData('Risk Summary'!L$48,$A2090)/1000","v":{"$error":"#NAME?"}},null,null,{"$f":"(_xll.RiskData(NR_to_Cash!C$18,$A2090))/1000","v":{"$error":"#NAME?"}},{"$f":"(_xll.RiskData(NR_to_Cash!D$18,$A2090))/1000","v":{"$error":"#NAME?"}},{"$f":"(_xll.RiskData(NR_to_Cash!E$18,$A2090))/1000","v":{"$error":"#NAME?"}}]
[2084,{"$f":"_xll.RiskData('Risk Summary'!J$48,$A2091)/1000","v":{"$error":"#NAME?"}},{"$f":"_xll.RiskData('Risk Summary'!K$48,$A2091)/1000","v":{"$error":"#NAME?"}},{"$f":"_xll.RiskData('Risk Summary'!L$48,$A2091)/1000","v":{"$error":"#NAME?"}},null,null,{"$f":"(_xll.RiskData(NR_to_Cash!C$18,$A2091))/1000","v":{"$error":"#NAME?"}},{"$f":"(_xll.RiskData(NR_to_Cash!D$18,$A2091))/1000","v":{"$error":"#NAME?"}},{"$f":"(_xll.RiskData(NR_to_Cash!E$18,$A2091))/1000","v":{"$error":"#NAME?"}}]
[2085,{"$f":"_xll.RiskData('Risk Summary'!J$48,$A2092)/1000","v":{"$error":"#NAME?"}},{"$f":"_xll.RiskData('Risk Summary'!K$48,$A2092)/1000","v":{"$error":"#NAME?"}},{"$f":"_xll.RiskData('Risk Summary'!L$48,$A2092)/1000","v":{"$error":"#NAME?"}},null,null,{"$f":"(_xll.RiskData(NR_to_Cash!C$18,$A2092))/1000","v":{"$error":"#NAME?"}},{"$f":"(_xll.RiskData(NR_to_Cash!D$18,$A2092))/1000","v":{"$error":"#NAME?"}},{"$f":"(_xll.RiskData(NR_to_Cash!E$18,$A2092))/1000","v":{"$error":"#NAME?"}}]
[2086,{"$f":"_xll.RiskData('Risk Summary'!J$48,$A2093)/1000","v":{"$error":"#NAME?"}},{"$f":"_xll.RiskData('Risk Summary'!K$48,$A2093)/1000","v":{"$error":"#NAME?"}},{"$f":"_xll.RiskData('Risk Summary'!L$48,$A2093)/1000","v":{"$error":"#NAME?"}},null,null,{"$f":"(_xll.RiskData(NR_to_Cash!C$18,$A2093))/1000","v":{"$error":"#NAME?"}},{"$f":"(_xll.RiskData(NR_to_Cash!D$18,$A2093))/1000","v":{"$error":"#NAME?"}},{"$f":"(_xll.RiskData(NR_to_Cash!E$18,$A2093))/1000","v":{"$error":"#NAME?"}}]
[2087,{"$f":"_xll.RiskData('Risk Summary'!J$48,$A2094)/1000","v":{"$error":"#NAME?"}},{"$f":"_xll.RiskData('Risk Summary'!K$48,$A2094)/1000","v":{"$error":"#NAME?"}},{"$f":"_xll.RiskData('Risk Summary'!L$48,$A2094)/1000","v":{"$error":"#NAME?"}},null,null,{"$f":"(_xll.RiskData(NR_to_Cash!C$18,$A2094))/1000","v":{"$error":"#NAME?"}},{"$f":"(_xll.RiskData(NR_to_Cash!D$18,$A2094))/1000","v":{"$error":"#NAME?"}},{"$f":"(_xll.RiskData(NR_to_Cash!E$18,$A2094))/1000","v":{"$error":"#NAME?"}}]
[2088,{"$f":"_xll.RiskData('Risk Summary'!J$48,$A2095)/1000","v":{"$error":"#NAME?"}},{"$f":"_xll.RiskData('Risk Summary'!K$48,$A2095)/1000","v":{"$error":"#NAME?"}},{"$f":"_xll.RiskData('Risk Summary'!L$48,$A2095)/1000","v":{"$error":"#NAME?"}},null,null,{"$f":"(_xll.RiskData(NR_to_Cash!C$18,$A2095))/1000","v":{"$error":"#NAME?"}},{"$f":"(_xll.RiskData(NR_to_Cash!D$18,$A2095))/1000","v":{"$error":"#NAME?"}},{"$f":"(_xll.RiskData(NR_to_Cash!E$18,$A2095))/1000","v":{"$error":"#NAME?"}}]
[2089,{"$f":"_xll.RiskData('Risk Summary'!J$48,$A2096)/1000","v":{"$error":"#NAME?"}},{"$f":"_xll.RiskData('Risk Summary'!K$48,$A2096)/1000","v":{"$error":"#NAME?"}},{"$f":"_xll.RiskData('Risk Summary'!L$48,$A2096)/1000","v":{"$error":"#NAME?"}},null,null,{"$f":"(_xll.RiskData(NR_to_Cash!C$18,$A2096))/1000","v":{"$error":"#NAME?"}},{"$f":"(_xll.RiskData(NR_to_Cash!D$18,$A2096))/1000","v":{"$error":"#NAME?"}},{"$f":"(_xll.RiskData(NR_to_Cash!E$18,$A2096))/1000","v":{"$error":"#NAME?"}}]
[2090,{"$f":"_xll.RiskData('Risk Summary'!J$48,$A2097)/1000","v":{"$error":"#NAME?"}},{"$f":"_xll.RiskData('Risk Summary'!K$48,$A2097)/1000","v":{"$error":"#NAME?"}},{"$f":"_xll.RiskData('Risk Summary'!L$48,$A2097)/1000","v":{"$error":"#NAME?"}},null,null,{"$f":"(_xll.RiskData(NR_to_Cash!C$18,$A2097))/1000","v":{"$error":"#NAME?"}},{"$f":"(_xll.RiskData(NR_to_Cash!D$18,$A2097))/1000","v":{"$error":"#NAME?"}},{"$f":"(_xll.RiskData(NR_to_Cash!E$18,$A2097))/1000","v":{"$error":"#NAME?"}}]
[2091,{"$f":"_xll.RiskData('Risk Summary'!J$48,$A2098)/1000","v":{"$error":"#NAME?"}},{"$f":"_xll.RiskData('Risk Summary'!K$48,$A2098)/1000","v":{"$error":"#NAME?"}},{"$f":"_xll.RiskData('Risk Summary'!L$48,$A2098)/1000","v":{"$error":"#NAME?"}},null,null,{"$f":"(_xll.RiskData(NR_to_Cash!C$18,$A2098))/1000","v":{"$error":"#NAME?"}},{"$f":"(_xll.RiskData(NR_to_Cash!D$18,$A2098))/1000","v":{"$error":"#NAME?"}},{"$f":"(_xll.RiskData(NR_to_Cash!E$18,$A2098))/1000","v":{"$error":"#NAME?"}}]
[2092,{"$f":"_xll.RiskData('Risk Summary'!J$48,$A2099)/1000","v":{"$error":"#NAME?"}},{"$f":"_xll.RiskData('Risk Summary'!K$48,$A2099)/1000","v":{"$error":"#NAME?"}},{"$f":"_xll.RiskData('Risk Summary'!L$48,$A2099)/1000","v":{"$error":"#NAME?"}},null,null,{"$f":"(_xll.RiskData(NR_to_Cash!C$18,$A2099))/1000","v":{"$error":"#NAME?"}},{"$f":"(_xll.RiskData(NR_to_Cash!D$18,$A2099))/1000","v":{"$error":"#NAME?"}},{"$f":"(_xll.RiskData(NR_to_Cash!E$18,$A2099))/1000","v":{"$error":"#NAME?"}}]
[2093,{"$f":"_xll.RiskData('Risk Summary'!J$48,$A2100)/1000","v":{"$error":"#NAME?"}},{"$f":"_xll.RiskData('Risk Summary'!K$48,$A2100)/1000","v":{"$error":"#NAME?"}},{"$f":"_xll.RiskData('Risk Summary'!L$48,$A2100)/1000","v":{"$error":"#NAME?"}},null,null,{"$f":"(_xll.RiskData(NR_to_Cash!C$18,$A2100))/1000","v":{"$error":"#NAME?"}},{"$f":"(_xll.RiskData(NR_to_Cash!D$18,$A2100))/1000","v":{"$error":"#NAME?"}},{"$f":"(_xll.RiskData(NR_to_Cash!E$18,$A2100))/1000","v":{"$error":"#NAME?"}}]
[2094,{"$f":"_xll.RiskData('Risk Summary'!J$48,$A2101)/1000","v":{"$error":"#NAME?"}},{"$f":"_xll.RiskData('Risk Summary'!K$48,$A2101)/1000","v":{"$error":"#NAME?"}},{"$f":"_xll.RiskData('Risk Summary'!L$48,$A2101)/1000","v":{"$error":"#NAME?"}},null,null,{"$f":"(_xll.RiskData(NR_to_Cash!C$18,$A2101))/1000","v":{"$error":"#NAME?"}},{"$f":"(_xll.RiskData(NR_to_Cash!D$18,$A2101))/1000","v":{"$error":"#NAME?"}},{"$f":"(_xll.RiskData(NR_to_Cash!E$18,$A2101))/1000","v":{"$error":"#NAME?"}}]
[2095,{"$f":"_xll.RiskData('Risk Summary'!J$48,$A2102)/1000","v":{"$error":"#NAME?"}},{"$f":"_xll.RiskData('Risk Summary'!K$48,$A2102)/1000","v":{"$error":"#NAME?"}},{"$f":"_xll.RiskData('Risk Summary'!L$48,$A2102)/1000","v":{"$error":"#NAME?"}},null,null,{"$f":"(_xll.RiskData(NR_to_Cash!C$18,$A2102))/1000","v":{"$error":"#NAME?"}},{"$f":"(_xll.RiskData(NR_to_Cash!D$18,$A2102))/1000","v":{"$error":"#NAME?"}},{"$f":"(_xll.RiskData(NR_to_Cash!E$18,$A2102))/1000","v":{"$error":"#NAME?"}}]
[2096,{"$f":"_xll.RiskData('Risk Summary'!J$48,$A2103)/1000","v":{"$error":"#NAME?"}},{"$f":"_xll.RiskData('Risk Summary'!K$48,$A2103)/1000","v":{"$error":"#NAME?"}},{"$f":"_xll.RiskData('Risk Summary'!L$48,$A2103)/1000","v":{"$error":"#NAME?"}},null,null,{"$f":"(_xll.RiskData(NR_to_Cash!C$18,$A2103))/1000","v":{"$error":"#NAME?"}},{"$f":"(_xll.RiskData(NR_to_Cash!D$18,$A2103))/1000","v":{"$error":"#NAME?"}},{"$f":"(_xll.RiskData(NR_to_Cash!E$18,$A2103))/1000","v":{"$error":"#NAME?"}}]
[2097,{"$f":"_xll.RiskData('Risk Summary'!J$48,$A2104)/1000","v":{"$error":"#NAME?"}},{"$f":"_xll.RiskData('Risk Summary'!K$48,$A2104)/1000","v":{"$error":"#NAME?"}},{"$f":"_xll.RiskData('Risk Summary'!L$48,$A2104)/1000","v":{"$error":"#NAME?"}},null,null,{"$f":"(_xll.RiskData(NR_to_Cash!C$18,$A2104))/1000","v":{"$error":"#NAME?"}},{"$f":"(_xll.RiskData(NR_to_Cash!D$18,$A2104))/1000","v":{"$error":"#NAME?"}},{"$f":"(_xll.RiskData(NR_to_Cash!E$18,$A2104))/1000","v":{"$error":"#NAME?"}}]
[2098,{"$f":"_xll.RiskData('Risk Summary'!J$48,$A2105)/1000","v":{"$error":"#NAME?"}},{"$f":"_xll.RiskData('Risk Summary'!K$48,$A2105)/1000","v":{"$error":"#NAME?"}},{"$f":"_xll.RiskData('Risk Summary'!L$48,$A2105)/1000","v":{"$error":"#NAME?"}},null,null,{"$f":"(_xll.RiskData(NR_to_Cash!C$18,$A2105))/1000","v":{"$error":"#NAME?"}},{"$f":"(_xll.RiskData(NR_to_Cash!D$18,$A2105))/1000","v":{"$error":"#NAME?"}},{"$f":"(_xll.RiskData(NR_to_Cash!E$18,$A2105))/1000","v":{"$error":"#NAME?"}}]
[2099,{"$f":"_xll.RiskData('Risk Summary'!J$48,$A2106)/1000","v":{"$error":"#NAME?"}},{"$f":"_xll.RiskData('Risk Summary'!K$48,$A2106)/1000","v":{"$error":"#NAME?"}},{"$f":"_xll.RiskData('Risk Summary'!L$48,$A2106)/1000","v":{"$error":"#NAME?"}},null,null,{"$f":"(_xll.RiskData(NR_to_Cash!C$18,$A2106))/1000","v":{"$error":"#NAME?"}},{"$f":"(_xll.RiskData(NR_to_Cash!D$18,$A2106))/1000","v":{"$error":"#NAME?"}},{"$f":"(_xll.RiskData(NR_to_Cash!E$18,$A2106))/1000","v":{"$error":"#NAME?"}}]
[2100,{"$f":"_xll.RiskData('Risk Summary'!J$48,$A2107)/1000","v":{"$error":"#NAME?"}},{"$f":"_xll.RiskData('Risk Summary'!K$48,$A2107)/1000","v":{"$error":"#NAME?"}},{"$f":"_xll.RiskData('Risk Summary'!L$48,$A2107)/1000","v":{"$error":"#NAME?"}},null,null,{"$f":"(_xll.RiskData(NR_to_Cash!C$18,$A2107))/1000","v":{"$error":"#NAME?"}},{"$f":"(_xll.RiskData(NR_to_Cash!D$18,$A2107))/1000","v":{"$error":"#NAME?"}},{"$f":"(_xll.RiskData(NR_to_Cash!E$18,$A2107))/1000","v":{"$error":"#NAME?"}}]
[2101,{"$f":"_xll.RiskData('Risk Summary'!J$48,$A2108)/1000","v":{"$error":"#NAME?"}},{"$f":"_xll.RiskData('Risk Summary'!K$48,$A2108)/1000","v":{"$error":"#NAME?"}},{"$f":"_xll.RiskData('Risk Summary'!L$48,$A2108)/1000","v":{"$error":"#NAME?"}},null,null,{"$f":"(_xll.RiskData(NR_to_Cash!C$18,$A2108))/1000","v":{"$error":"#NAME?"}},{"$f":"(_xll.RiskData(NR_to_Cash!D$18,$A2108))/1000","v":{"$error":"#NAME?"}},{"$f":"(_xll.RiskData(NR_to_Cash!E$18,$A2108))/1000","v":{"$error":"#NAME?"}}]
[2102,{"$f":"_xll.RiskData('Risk Summary'!J$48,$A2109)/1000","v":{"$error":"#NAME?"}},{"$f":"_xll.RiskData('Risk Summary'!K$48,$A2109)/1000","v":{"$error":"#NAME?"}},{"$f":"_xll.RiskData('Risk Summary'!L$48,$A2109)/1000","v":{"$error":"#NAME?"}},null,null,{"$f":"(_xll.RiskData(NR_to_Cash!C$18,$A2109))/1000","v":{"$error":"#NAME?"}},{"$f":"(_xll.RiskData(NR_to_Cash!D$18,$A2109))/1000","v":{"$error":"#NAME?"}},{"$f":"(_xll.RiskData(NR_to_Cash!E$18,$A2109))/1000","v":{"$error":"#NAME?"}}]
[2103,{"$f":"_xll.RiskData('Risk Summary'!J$48,$A2110)/1000","v":{"$error":"#NAME?"}},{"$f":"_xll.RiskData('Risk Summary'!K$48,$A2110)/1000","v":{"$error":"#NAME?"}},{"$f":"_xll.RiskData('Risk Summary'!L$48,$A2110)/1000","v":{"$error":"#NAME?"}},null,null,{"$f":"(_xll.RiskData(NR_to_Cash!C$18,$A2110))/1000","v":{"$error":"#NAME?"}},{"$f":"(_xll.RiskData(NR_to_Cash!D$18,$A2110))/1000","v":{"$error":"#NAME?"}},{"$f":"(_xll.RiskData(NR_to_Cash!E$18,$A2110))/1000","v":{"$error":"#NAME?"}}]
[2104,{"$f":"_xll.RiskData('Risk Summary'!J$48,$A2111)/1000","v":{"$error":"#NAME?"}},{"$f":"_xll.RiskData('Risk Summary'!K$48,$A2111)/1000","v":{"$error":"#NAME?"}},{"$f":"_xll.RiskData('Risk Summary'!L$48,$A2111)/1000","v":{"$error":"#NAME?"}},null,null,{"$f":"(_xll.RiskData(NR_to_Cash!C$18,$A2111))/1000","v":{"$error":"#NAME?"}},{"$f":"(_xll.RiskData(NR_to_Cash!D$18,$A2111))/1000","v":{"$error":"#NAME?"}},{"$f":"(_xll.RiskData(NR_to_Cash!E$18,$A2111))/1000","v":{"$error":"#NAME?"}}]
[2105,{"$f":"_xll.RiskData('Risk Summary'!J$48,$A2112)/1000","v":{"$error":"#NAME?"}},{"$f":"_xll.RiskData('Risk Summary'!K$48,$A2112)/1000","v":{"$error":"#NAME?"}},{"$f":"_xll.RiskData('Risk Summary'!L$48,$A2112)/1000","v":{"$error":"#NAME?"}},null,null,{"$f":"(_xll.RiskData(NR_to_Cash!C$18,$A2112))/1000","v":{"$error":"#NAME?"}},{"$f":"(_xll.RiskData(NR_to_Cash!D$18,$A2112))/1000","v":{"$error":"#NAME?"}},{"$f":"(_xll.RiskData(NR_to_Cash!E$18,$A2112))/1000","v":{"$error":"#NAME?"}}]
[2106,{"$f":"_xll.RiskData('Risk Summary'!J$48,$A2113)/1000","v":{"$error":"#NAME?"}},{"$f":"_xll.RiskData('Risk Summary'!K$48,$A2113)/1000","v":{"$error":"#NAME?"}},{"$f":"_xll.RiskData('Risk Summary'!L$48,$A2113)/1000","v":{"$error":"#NAME?"}},null,null,{"$f":"(_xll.RiskData(NR_to_Cash!C$18,$A2113))/1000","v":{"$error":"#NAME?"}},{"$f":"(_xll.RiskData(NR_to_Cash!D$18,$A2113))/1000","v":{"$error":"#NAME?"}},{"$f":"(_xll.RiskData(NR_to_Cash!E$18,$A2113))/1000","v":{"$error":"#NAME?"}}]
[2107,{"$f":"_xll.RiskData('Risk Summary'!J$48,$A2114)/1000","v":{"$error":"#NAME?"}},{"$f":"_xll.RiskData('Risk Summary'!K$48,$A2114)/1000","v":{"$error":"#NAME?"}},{"$f":"_xll.RiskData('Risk Summary'!L$48,$A2114)/1000","v":{"$error":"#NAME?"}},null,null,{"$f":"(_xll.RiskData(NR_to_Cash!C$18,$A2114))/1000","v":{"$error":"#NAME?"}},{"$f":"(_xll.RiskData(NR_to_Cash!D$18,$A2114))/1000","v":{"$error":"#NAME?"}},{"$f":"(_xll.RiskData(NR_to_Cash!E$18,$A2114))/1000","v":{"$error":"#NAME?"}}]
[2108,{"$f":"_xll.RiskData('Risk Summary'!J$48,$A2115)/1000","v":{"$error":"#NAME?"}},{"$f":"_xll.RiskData('Risk Summary'!K$48,$A2115)/1000","v":{"$error":"#NAME?"}},{"$f":"_xll.RiskData('Risk Summary'!L$48,$A2115)/1000","v":{"$error":"#NAME?"}},null,null,{"$f":"(_xll.RiskData(NR_to_Cash!C$18,$A2115))/1000","v":{"$error":"#NAME?"}},{"$f":"(_xll.RiskData(NR_to_Cash!D$18,$A2115))/1000","v":{"$error":"#NAME?"}},{"$f":"(_xll.RiskData(NR_to_Cash!E$18,$A2115))/1000","v":{"$error":"#NAME?"}}]
[2109,{"$f":"_xll.RiskData('Risk Summary'!J$48,$A2116)/1000","v":{"$error":"#NAME?"}},{"$f":"_xll.RiskData('Risk Summary'!K$48,$A2116)/1000","v":{"$error":"#NAME?"}},{"$f":"_xll.RiskData('Risk Summary'!L$48,$A2116)/1000","v":{"$error":"#NAME?"}},null,null,{"$f":"(_xll.RiskData(NR_to_Cash!C$18,$A2116))/1000","v":{"$error":"#NAME?"}},{"$f":"(_xll.RiskData(NR_to_Cash!D$18,$A2116))/1000","v":{"$error":"#NAME?"}},{"$f":"(_xll.RiskData(NR_to_Cash!E$18,$A2116))/1000","v":{"$error":"#NAME?"}}]
[2110,{"$f":"_xll.RiskData('Risk Summary'!J$48,$A2117)/1000","v":{"$error":"#NAME?"}},{"$f":"_xll.RiskData('Risk Summary'!K$48,$A2117)/1000","v":{"$error":"#NAME?"}},{"$f":"_xll.RiskData('Risk Summary'!L$48,$A2117)/1000","v":{"$error":"#NAME?"}},null,null,{"$f":"(_xll.RiskData(NR_to_Cash!C$18,$A2117))/1000","v":{"$error":"#NAME?"}},{"$f":"(_xll.RiskData(NR_to_Cash!D$18,$A2117))/1000","v":{"$error":"#NAME?"}},{"$f":"(_xll.RiskData(NR_to_Cash!E$18,$A2117))/1000","v":{"$error":"#NAME?"}}]
[2111,{"$f":"_xll.RiskData('Risk Summary'!J$48,$A2118)/1000","v":{"$error":"#NAME?"}},{"$f":"_xll.RiskData('Risk Summary'!K$48,$A2118)/1000","v":{"$error":"#NAME?"}},{"$f":"_xll.RiskData('Risk Summary'!L$48,$A2118)/1000","v":{"$error":"#NAME?"}},null,null,{"$f":"(_xll.RiskData(NR_to_Cash!C$18,$A2118))/1000","v":{"$error":"#NAME?"}},{"$f":"(_xll.RiskData(NR_to_Cash!D$18,$A2118))/1000","v":{"$error":"#NAME?"}},{"$f":"(_xll.RiskData(NR_to_Cash!E$18,$A2118))/1000","v":{"$error":"#NAME?"}}]
[2112,{"$f":"_xll.RiskData('Risk Summary'!J$48,$A2119)/1000","v":{"$error":"#NAME?"}},{"$f":"_xll.RiskData('Risk Summary'!K$48,$A2119)/1000","v":{"$error":"#NAME?"}},{"$f":"_xll.RiskData('Risk Summary'!L$48,$A2119)/1000","v":{"$error":"#NAME?"}},null,null,{"$f":"(_xll.RiskData(NR_to_Cash!C$18,$A2119))/1000","v":{"$error":"#NAME?"}},{"$f":"(_xll.RiskData(NR_to_Cash!D$18,$A2119))/1000","v":{"$error":"#NAME?"}},{"$f":"(_xll.RiskData(NR_to_Cash!E$18,$A2119))/1000","v":{"$error":"#NAME?"}}]
[2113,{"$f":"_xll.RiskData('Risk Summary'!J$48,$A2120)/1000","v":{"$error":"#NAME?"}},{"$f":"_xll.RiskData('Risk Summary'!K$48,$A2120)/1000","v":{"$error":"#NAME?"}},{"$f":"_xll.RiskData('Risk Summary'!L$48,$A2120)/1000","v":{"$error":"#NAME?"}},null,null,{"$f":"(_xll.RiskData(NR_to_Cash!C$18,$A2120))/1000","v":{"$error":"#NAME?"}},{"$f":"(_xll.RiskData(NR_to_Cash!D$18,$A2120))/1000","v":{"$error":"#NAME?"}},{"$f":"(_xll.RiskData(NR_to_Cash!E$18,$A2120))/1000","v":{"$error":"#NAME?"}}]
[2114,{"$f":"_xll.RiskData('Risk Summary'!J$48,$A2121)/1000","v":{"$error":"#NAME?"}},{"$f":"_xll.RiskData('Risk Summary'!K$48,$A2121)/1000","v":{"$error":"#NAME?"}},{"$f":"_xll.RiskData('Risk Summary'!L$48,$A2121)/1000","v":{"$error":"#NAME?"}},null,null,{"$f":"(_xll.RiskData(NR_to_Cash!C$18,$A2121))/1000","v":{"$error":"#NAME?"}},{"$f":"(_xll.RiskData(NR_to_Cash!D$18,$A2121))/1000","v":{"$error":"#NAME?"}},{"$f":"(_xll.RiskData(NR_to_Cash!E$18,$A2121))/1000","v":{"$error":"#NAME?"}}]
[2115,{"$f":"_xll.RiskData('Risk Summary'!J$48,$A2122)/1000","v":{"$error":"#NAME?"}},{"$f":"_xll.RiskData('Risk Summary'!K$48,$A2122)/1000","v":{"$error":"#NAME?"}},{"$f":"_xll.RiskData('Risk Summary'!L$48,$A2122)/1000","v":{"$error":"#NAME?"}},null,null,{"$f":"(_xll.RiskData(NR_to_Cash!C$18,$A2122))/1000","v":{"$error":"#NAME?"}},{"$f":"(_xll.RiskData(NR_to_Cash!D$18,$A2122))/1000","v":{"$error":"#NAME?"}},{"$f":"(_xll.RiskData(NR_to_Cash!E$18,$A2122))/1000","v":{"$error":"#NAME?"}}]
[2116,{"$f":"_xll.RiskData('Risk Summary'!J$48,$A2123)/1000","v":{"$error":"#NAME?"}},{"$f":"_xll.RiskData('Risk Summary'!K$48,$A2123)/1000","v":{"$error":"#NAME?"}},{"$f":"_xll.RiskData('Risk Summary'!L$48,$A2123)/1000","v":{"$error":"#NAME?"}},null,null,{"$f":"(_xll.RiskData(NR_to_Cash!C$18,$A2123))/1000","v":{"$error":"#NAME?"}},{"$f":"(_xll.RiskData(NR_to_Cash!D$18,$A2123))/1000","v":{"$error":"#NAME?"}},{"$f":"(_xll.RiskData(NR_to_Cash!E$18,$A2123))/1000","v":{"$error":"#NAME?"}}]
[2117,{"$f":"_xll.RiskData('Risk Summary'!J$48,$A2124)/1000","v":{"$error":"#NAME?"}},{"$f":"_xll.RiskData('Risk Summary'!K$48,$A2124)/1000","v":{"$error":"#NAME?"}},{"$f":"_xll.RiskData('Risk Summary'!L$48,$A2124)/1000","v":{"$error":"#NAME?"}},null,null,{"$f":"(_xll.RiskData(NR_to_Cash!C$18,$A2124))/1000","v":{"$error":"#NAME?"}},{"$f":"(_xll.RiskData(NR_to_Cash!D$18,$A2124))/1000","v":{"$error":"#NAME?"}},{"$f":"(_xll.RiskData(NR_to_Cash!E$18,$A2124))/1000","v":{"$error":"#NAME?"}}]
[2118,{"$f":"_xll.RiskData('Risk Summary'!J$48,$A2125)/1000","v":{"$error":"#NAME?"}},{"$f":"_xll.RiskData('Risk Summary'!K$48,$A2125)/1000","v":{"$error":"#NAME?"}},{"$f":"_xll.RiskData('Risk Summary'!L$48,$A2125)/1000","v":{"$error":"#NAME?"}},null,null,{"$f":"(_xll.RiskData(NR_to_Cash!C$18,$A2125))/1000","v":{"$error":"#NAME?"}},{"$f":"(_xll.RiskData(NR_to_Cash!D$18,$A2125))/1000","v":{"$error":"#NAME?"}},{"$f":"(_xll.RiskData(NR_to_Cash!E$18,$A2125))/1000","v":{"$error":"#NAME?"}}]
[2119,{"$f":"_xll.RiskData('Risk Summary'!J$48,$A2126)/1000","v":{"$error":"#NAME?"}},{"$f":"_xll.RiskData('Risk Summary'!K$48,$A2126)/1000","v":{"$error":"#NAME?"}},{"$f":"_xll.RiskData('Risk Summary'!L$48,$A2126)/1000","v":{"$error":"#NAME?"}},null,null,{"$f":"(_xll.RiskData(NR_to_Cash!C$18,$A2126))/1000","v":{"$error":"#NAME?"}},{"$f":"(_xll.RiskData(NR_to_Cash!D$18,$A2126))/1000","v":{"$error":"#NAME?"}},{"$f":"(_xll.RiskData(NR_to_Cash!E$18,$A2126))/1000","v":{"$error":"#NAME?"}}]
[2120,{"$f":"_xll.RiskData('Risk Summary'!J$48,$A2127)/1000","v":{"$error":"#NAME?"}},{"$f":"_xll.RiskData('Risk Summary'!K$48,$A2127)/1000","v":{"$error":"#NAME?"}},{"$f":"_xll.RiskData('Risk Summary'!L$48,$A2127)/1000","v":{"$error":"#NAME?"}},null,null,{"$f":"(_xll.RiskData(NR_to_Cash!C$18,$A2127))/1000","v":{"$error":"#NAME?"}},{"$f":"(_xll.RiskData(NR_to_Cash!D$18,$A2127))/1000","v":{"$error":"#NAME?"}},{"$f":"(_xll.RiskData(NR_to_Cash!E$18,$A2127))/1000","v":{"$error":"#NAME?"}}]
[2121,{"$f":"_xll.RiskData('Risk Summary'!J$48,$A2128)/1000","v":{"$error":"#NAME?"}},{"$f":"_xll.RiskData('Risk Summary'!K$48,$A2128)/1000","v":{"$error":"#NAME?"}},{"$f":"_xll.RiskData('Risk Summary'!L$48,$A2128)/1000","v":{"$error":"#NAME?"}},null,null,{"$f":"(_xll.RiskData(NR_to_Cash!C$18,$A2128))/1000","v":{"$error":"#NAME?"}},{"$f":"(_xll.RiskData(NR_to_Cash!D$18,$A2128))/1000","v":{"$error":"#NAME?"}},{"$f":"(_xll.RiskData(NR_to_Cash!E$18,$A2128))/1000","v":{"$error":"#NAME?"}}]
[2122,{"$f":"_xll.RiskData('Risk Summary'!J$48,$A2129)/1000","v":{"$error":"#NAME?"}},{"$f":"_xll.RiskData('Risk Summary'!K$48,$A2129)/1000","v":{"$error":"#NAME?"}},{"$f":"_xll.RiskData('Risk Summary'!L$48,$A2129)/1000","v":{"$error":"#NAME?"}},null,null,{"$f":"(_xll.RiskData(NR_to_Cash!C$18,$A2129))/1000","v":{"$error":"#NAME?"}},{"$f":"(_xll.RiskData(NR_to_Cash!D$18,$A2129))/1000","v":{"$error":"#NAME?"}},{"$f":"(_xll.RiskData(NR_to_Cash!E$18,$A2129))/1000","v":{"$error":"#NAME?"}}]
[2123,{"$f":"_xll.RiskData('Risk Summary'!J$48,$A2130)/1000","v":{"$error":"#NAME?"}},{"$f":"_xll.RiskData('Risk Summary'!K$48,$A2130)/1000","v":{"$error":"#NAME?"}},{"$f":"_xll.RiskData('Risk Summary'!L$48,$A2130)/1000","v":{"$error":"#NAME?"}},null,null,{"$f":"(_xll.RiskData(NR_to_Cash!C$18,$A2130))/1000","v":{"$error":"#NAME?"}},{"$f":"(_xll.RiskData(NR_to_Cash!D$18,$A2130))/1000","v":{"$error":"#NAME?"}},{"$f":"(_xll.RiskData(NR_to_Cash!E$18,$A2130))/1000","v":{"$error":"#NAME?"}}]
[2124,{"$f":"_xll.RiskData('Risk Summary'!J$48,$A2131)/1000","v":{"$error":"#NAME?"}},{"$f":"_xll.RiskData('Risk Summary'!K$48,$A2131)/1000","v":{"$error":"#NAME?"}},{"$f":"_xll.RiskData('Risk Summary'!L$48,$A2131)/1000","v":{"$error":"#NAME?"}},null,null,{"$f":"(_xll.RiskData(NR_to_Cash!C$18,$A2131))/1000","v":{"$error":"#NAME?"}},{"$f":"(_xll.RiskData(NR_to_Cash!D$18,$A2131))/1000","v":{"$error":"#NAME?"}},{"$f":"(_xll.RiskData(NR_to_Cash!E$18,$A2131))/1000","v":{"$error":"#NAME?"}}]
[2125,{"$f":"_xll.RiskData('Risk Summary'!J$48,$A2132)/1000","v":{"$error":"#NAME?"}},{"$f":"_xll.RiskData('Risk Summary'!K$48,$A2132)/1000","v":{"$error":"#NAME?"}},{"$f":"_xll.RiskData('Risk Summary'!L$48,$A2132)/1000","v":{"$error":"#NAME?"}},null,null,{"$f":"(_xll.RiskData(NR_to_Cash!C$18,$A2132))/1000","v":{"$error":"#NAME?"}},{"$f":"(_xll.RiskData(NR_to_Cash!D$18,$A2132))/1000","v":{"$error":"#NAME?"}},{"$f":"(_xll.RiskData(NR_to_Cash!E$18,$A2132))/1000","v":{"$error":"#NAME?"}}]
[2126,{"$f":"_xll.RiskData('Risk Summary'!J$48,$A2133)/1000","v":{"$error":"#NAME?"}},{"$f":"_xll.RiskData('Risk Summary'!K$48,$A2133)/1000","v":{"$error":"#NAME?"}},{"$f":"_xll.RiskData('Risk Summary'!L$48,$A2133)/1000","v":{"$error":"#NAME?"}},null,null,{"$f":"(_xll.RiskData(NR_to_Cash!C$18,$A2133))/1000","v":{"$error":"#NAME?"}},{"$f":"(_xll.RiskData(NR_to_Cash!D$18,$A2133))/1000","v":{"$error":"#NAME?"}},{"$f":"(_xll.RiskData(NR_to_Cash!E$18,$A2133))/1000","v":{"$error":"#NAME?"}}]
[2127,{"$f":"_xll.RiskData('Risk Summary'!J$48,$A2134)/1000","v":{"$error":"#NAME?"}},{"$f":"_xll.RiskData('Risk Summary'!K$48,$A2134)/1000","v":{"$error":"#NAME?"}},{"$f":"_xll.RiskData('Risk Summary'!L$48,$A2134)/1000","v":{"$error":"#NAME?"}},null,null,{"$f":"(_xll.RiskData(NR_to_Cash!C$18,$A2134))/1000","v":{"$error":"#NAME?"}},{"$f":"(_xll.RiskData(NR_to_Cash!D$18,$A2134))/1000","v":{"$error":"#NAME?"}},{"$f":"(_xll.RiskData(NR_to_Cash!E$18,$A2134))/1000","v":{"$error":"#NAME?"}}]
[2128,{"$f":"_xll.RiskData('Risk Summary'!J$48,$A2135)/1000","v":{"$error":"#NAME?"}},{"$f":"_xll.RiskData('Risk Summary'!K$48,$A2135)/1000","v":{"$error":"#NAME?"}},{"$f":"_xll.RiskData('Risk Summary'!L$48,$A2135)/1000","v":{"$error":"#NAME?"}},null,null,{"$f":"(_xll.RiskData(NR_to_Cash!C$18,$A2135))/1000","v":{"$error":"#NAME?"}},{"$f":"(_xll.RiskData(NR_to_Cash!D$18,$A2135))/1000","v":{"$error":"#NAME?"}},{"$f":"(_xll.RiskData(NR_to_Cash!E$18,$A2135))/1000","v":{"$error":"#NAME?"}}]
[2129,{"$f":"_xll.RiskData('Risk Summary'!J$48,$A2136)/1000","v":{"$error":"#NAME?"}},{"$f":"_xll.RiskData('Risk Summary'!K$48,$A2136)/1000","v":{"$error":"#NAME?"}},{"$f":"_xll.RiskData('Risk Summary'!L$48,$A2136)/1000","v":{"$error":"#NAME?"}},null,null,{"$f":"(_xll.RiskData(NR_to_Cash!C$18,$A2136))/1000","v":{"$error":"#NAME?"}},{"$f":"(_xll.RiskData(NR_to_Cash!D$18,$A2136))/1000","v":{"$error":"#NAME?"}},{"$f":"(_xll.RiskData(NR_to_Cash!E$18,$A2136))/1000","v":{"$error":"#NAME?"}}]
[2130,{"$f":"_xll.RiskData('Risk Summary'!J$48,$A2137)/1000","v":{"$error":"#NAME?"}},{"$f":"_xll.RiskData('Risk Summary'!K$48,$A2137)/1000","v":{"$error":"#NAME?"}},{"$f":"_xll.RiskData('Risk Summary'!L$48,$A2137)/1000","v":{"$error":"#NAME?"}},null,null,{"$f":"(_xll.RiskData(NR_to_Cash!C$18,$A2137))/1000","v":{"$error":"#NAME?"}},{"$f":"(_xll.RiskData(NR_to_Cash!D$18,$A2137))/1000","v":{"$error":"#NAME?"}},{"$f":"(_xll.RiskData(NR_to_Cash!E$18,$A2137))/1000","v":{"$error":"#NAME?"}}]
[2131,{"$f":"_xll.RiskData('Risk Summary'!J$48,$A2138)/1000","v":{"$error":"#NAME?"}},{"$f":"_xll.RiskData('Risk Summary'!K$48,$A2138)/1000","v":{"$error":"#NAME?"}},{"$f":"_xll.RiskData('Risk Summary'!L$48,$A2138)/1000","v":{"$error":"#NAME?"}},null,null,{"$f":"(_xll.RiskData(NR_to_Cash!C$18,$A2138))/1000","v":{"$error":"#NAME?"}},{"$f":"(_xll.RiskData(NR_to_Cash!D$18,$A2138))/1000","v":{"$error":"#NAME?"}},{"$f":"(_xll.RiskData(NR_to_Cash!E$18,$A2138))/1000","v":{"$error":"#NAME?"}}]
[2132,{"$f":"_xll.RiskData('Risk Summary'!J$48,$A2139)/1000","v":{"$error":"#NAME?"}},{"$f":"_xll.RiskData('Risk Summary'!K$48,$A2139)/1000","v":{"$error":"#NAME?"}},{"$f":"_xll.RiskData('Risk Summary'!L$48,$A2139)/1000","v":{"$error":"#NAME?"}},null,null,{"$f":"(_xll.RiskData(NR_to_Cash!C$18,$A2139))/1000","v":{"$error":"#NAME?"}},{"$f":"(_xll.RiskData(NR_to_Cash!D$18,$A2139))/1000","v":{"$error":"#NAME?"}},{"$f":"(_xll.RiskData(NR_to_Cash!E$18,$A2139))/1000","v":{"$error":"#NAME?"}}]
[2133,{"$f":"_xll.RiskData('Risk Summary'!J$48,$A2140)/1000","v":{"$error":"#NAME?"}},{"$f":"_xll.RiskData('Risk Summary'!K$48,$A2140)/1000","v":{"$error":"#NAME?"}},{"$f":"_xll.RiskData('Risk Summary'!L$48,$A2140)/1000","v":{"$error":"#NAME?"}},null,null,{"$f":"(_xll.RiskData(NR_to_Cash!C$18,$A2140))/1000","v":{"$error":"#NAME?"}},{"$f":"(_xll.RiskData(NR_to_Cash!D$18,$A2140))/1000","v":{"$error":"#NAME?"}},{"$f":"(_xll.RiskData(NR_to_Cash!E$18,$A2140))/1000","v":{"$error":"#NAME?"}}]
[2134,{"$f":"_xll.RiskData('Risk Summary'!J$48,$A2141)/1000","v":{"$error":"#NAME?"}},{"$f":"_xll.RiskData('Risk Summary'!K$48,$A2141)/1000","v":{"$error":"#NAME?"}},{"$f":"_xll.RiskData('Risk Summary'!L$48,$A2141)/1000","v":{"$error":"#NAME?"}},null,null,{"$f":"(_xll.RiskData(NR_to_Cash!C$18,$A2141))/1000","v":{"$error":"#NAME?"}},{"$f":"(_xll.RiskData(NR_to_Cash!D$18,$A2141))/1000","v":{"$error":"#NAME?"}},{"$f":"(_xll.RiskData(NR_to_Cash!E$18,$A2141))/1000","v":{"$error":"#NAME?"}}]
[2135,{"$f":"_xll.RiskData('Risk Summary'!J$48,$A2142)/1000","v":{"$error":"#NAME?"}},{"$f":"_xll.RiskData('Risk Summary'!K$48,$A2142)/1000","v":{"$error":"#NAME?"}},{"$f":"_xll.RiskData('Risk Summary'!L$48,$A2142)/1000","v":{"$error":"#NAME?"}},null,null,{"$f":"(_xll.RiskData(NR_to_Cash!C$18,$A2142))/1000","v":{"$error":"#NAME?"}},{"$f":"(_xll.RiskData(NR_to_Cash!D$18,$A2142))/1000","v":{"$error":"#NAME?"}},{"$f":"(_xll.RiskData(NR_to_Cash!E$18,$A2142))/1000","v":{"$error":"#NAME?"}}]
[2136,{"$f":"_xll.RiskData('Risk Summary'!J$48,$A2143)/1000","v":{"$error":"#NAME?"}},{"$f":"_xll.RiskData('Risk Summary'!K$48,$A2143)/1000","v":{"$error":"#NAME?"}},{"$f":"_xll.RiskData('Risk Summary'!L$48,$A2143)/1000","v":{"$error":"#NAME?"}},null,null,{"$f":"(_xll.RiskData(NR_to_Cash!C$18,$A2143))/1000","v":{"$error":"#NAME?"}},{"$f":"(_xll.RiskData(NR_to_Cash!D$18,$A2143))/1000","v":{"$error":"#NAME?"}},{"$f":"(_xll.RiskData(NR_to_Cash!E$18,$A2143))/1000","v":{"$error":"#NAME?"}}]
[2137,{"$f":"_xll.RiskData('Risk Summary'!J$48,$A2144)/1000","v":{"$error":"#NAME?"}},{"$f":"_xll.RiskData('Risk Summary'!K$48,$A2144)/1000","v":{"$error":"#NAME?"}},{"$f":"_xll.RiskData('Risk Summary'!L$48,$A2144)/1000","v":{"$error":"#NAME?"}},null,null,{"$f":"(_xll.RiskData(NR_to_Cash!C$18,$A2144))/1000","v":{"$error":"#NAME?"}},{"$f":"(_xll.RiskData(NR_to_Cash!D$18,$A2144))/1000","v":{"$error":"#NAME?"}},{"$f":"(_xll.RiskData(NR_to_Cash!E$18,$A2144))/1000","v":{"$error":"#NAME?"}}]
[2138,{"$f":"_xll.RiskData('Risk Summary'!J$48,$A2145)/1000","v":{"$error":"#NAME?"}},{"$f":"_xll.RiskData('Risk Summary'!K$48,$A2145)/1000","v":{"$error":"#NAME?"}},{"$f":"_xll.RiskData('Risk Summary'!L$48,$A2145)/1000","v":{"$error":"#NAME?"}},null,null,{"$f":"(_xll.RiskData(NR_to_Cash!C$18,$A2145))/1000","v":{"$error":"#NAME?"}},{"$f":"(_xll.RiskData(NR_to_Cash!D$18,$A2145))/1000","v":{"$error":"#NAME?"}},{"$f":"(_xll.RiskData(NR_to_Cash!E$18,$A2145))/1000","v":{"$error":"#NAME?"}}]
[2139,{"$f":"_xll.RiskData('Risk Summary'!J$48,$A2146)/1000","v":{"$error":"#NAME?"}},{"$f":"_xll.RiskData('Risk Summary'!K$48,$A2146)/1000","v":{"$error":"#NAME?"}},{"$f":"_xll.RiskData('Risk Summary'!L$48,$A2146)/1000","v":{"$error":"#NAME?"}},null,null,{"$f":"(_xll.RiskData(NR_to_Cash!C$18,$A2146))/1000","v":{"$error":"#NAME?"}},{"$f":"(_xll.RiskData(NR_to_Cash!D$18,$A2146))/1000","v":{"$error":"#NAME?"}},{"$f":"(_xll.RiskData(NR_to_Cash!E$18,$A2146))/1000","v":{"$error":"#NAME?"}}]
[2140,{"$f":"_xll.RiskData('Risk Summary'!J$48,$A2147)/1000","v":{"$error":"#NAME?"}},{"$f":"_xll.RiskData('Risk Summary'!K$48,$A2147)/1000","v":{"$error":"#NAME?"}},{"$f":"_xll.RiskData('Risk Summary'!L$48,$A2147)/1000","v":{"$error":"#NAME?"}},null,null,{"$f":"(_xll.RiskData(NR_to_Cash!C$18,$A2147))/1000","v":{"$error":"#NAME?"}},{"$f":"(_xll.RiskData(NR_to_Cash!D$18,$A2147))/1000","v":{"$error":"#NAME?"}},{"$f":"(_xll.RiskData(NR_to_Cash!E$18,$A2147))/1000","v":{"$error":"#NAME?"}}]
[2141,{"$f":"_xll.RiskData('Risk Summary'!J$48,$A2148)/1000","v":{"$error":"#NAME?"}},{"$f":"_xll.RiskData('Risk Summary'!K$48,$A2148)/1000","v":{"$error":"#NAME?"}},{"$f":"_xll.RiskData('Risk Summary'!L$48,$A2148)/1000","v":{"$error":"#NAME?"}},null,null,{"$f":"(_xll.RiskData(NR_to_Cash!C$18,$A2148))/1000","v":{"$error":"#NAME?"}},{"$f":"(_xll.RiskData(NR_to_Cash!D$18,$A2148))/1000","v":{"$error":"#NAME?"}},{"$f":"(_xll.RiskData(NR_to_Cash!E$18,$A2148))/1000","v":{"$error":"#NAME?"}}]
[2142,{"$f":"_xll.RiskData('Risk Summary'!J$48,$A2149)/1000","v":{"$error":"#NAME?"}},{"$f":"_xll.RiskData('Risk Summary'!K$48,$A2149)/1000","v":{"$error":"#NAME?"}},{"$f":"_xll.RiskData('Risk Summary'!L$48,$A2149)/1000","v":{"$error":"#NAME?"}},null,null,{"$f":"(_xll.RiskData(NR_to_Cash!C$18,$A2149))/1000","v":{"$error":"#NAME?"}},{"$f":"(_xll.RiskData(NR_to_Cash!D$18,$A2149))/1000","v":{"$error":"#NAME?"}},{"$f":"(_xll.RiskData(NR_to_Cash!E$18,$A2149))/1000","v":{"$error":"#NAME?"}}]
[2143,{"$f":"_xll.RiskData('Risk Summary'!J$48,$A2150)/1000","v":{"$error":"#NAME?"}},{"$f":"_xll.RiskData('Risk Summary'!K$48,$A2150)/1000","v":{"$error":"#NAME?"}},{"$f":"_xll.RiskData('Risk Summary'!L$48,$A2150)/1000","v":{"$error":"#NAME?"}},null,null,{"$f":"(_xll.RiskData(NR_to_Cash!C$18,$A2150))/1000","v":{"$error":"#NAME?"}},{"$f":"(_xll.RiskData(NR_to_Cash!D$18,$A2150))/1000","v":{"$error":"#NAME?"}},{"$f":"(_xll.RiskData(NR_to_Cash!E$18,$A2150))/1000","v":{"$error":"#NAME?"}}]
[2144,{"$f":"_xll.RiskData('Risk Summary'!J$48,$A2151)/1000","v":{"$error":"#NAME?"}},{"$f":"_xll.RiskData('Risk Summary'!K$48,$A2151)/1000","v":{"$error":"#NAME?"}},{"$f":"_xll.RiskData('Risk Summary'!L$48,$A2151)/1000","v":{"$error":"#NAME?"}},null,null,{"$f":"(_xll.RiskData(NR_to_Cash!C$18,$A2151))/1000","v":{"$error":"#NAME?"}},{"$f":"(_xll.RiskData(NR_to_Cash!D$18,$A2151))/1000","v":{"$error":"#NAME?"}},{"$f":"(_xll.RiskData(NR_to_Cash!E$18,$A2151))/1000","v":{"$error":"#NAME?"}}]
[2145,{"$f":"_xll.RiskData('Risk Summary'!J$48,$A2152)/1000","v":{"$error":"#NAME?"}},{"$f":"_xll.RiskData('Risk Summary'!K$48,$A2152)/1000","v":{"$error":"#NAME?"}},{"$f":"_xll.RiskData('Risk Summary'!L$48,$A2152)/1000","v":{"$error":"#NAME?"}},null,null,{"$f":"(_xll.RiskData(NR_to_Cash!C$18,$A2152))/1000","v":{"$error":"#NAME?"}},{"$f":"(_xll.RiskData(NR_to_Cash!D$18,$A2152))/1000","v":{"$error":"#NAME?"}},{"$f":"(_xll.RiskData(NR_to_Cash!E$18,$A2152))/1000","v":{"$error":"#NAME?"}}]
[2146,{"$f":"_xll.RiskData('Risk Summary'!J$48,$A2153)/1000","v":{"$error":"#NAME?"}},{"$f":"_xll.RiskData('Risk Summary'!K$48,$A2153)/1000","v":{"$error":"#NAME?"}},{"$f":"_xll.RiskData('Risk Summary'!L$48,$A2153)/1000","v":{"$error":"#NAME?"}},null,null,{"$f":"(_xll.RiskData(NR_to_Cash!C$18,$A2153))/1000","v":{"$error":"#NAME?"}},{"$f":"(_xll.RiskData(NR_to_Cash!D$18,$A2153))/1000","v":{"$error":"#NAME?"}},{"$f":"(_xll.RiskData(NR_to_Cash!E$18,$A2153))/1000","v":{"$error":"#NAME?"}}]
[2147,{"$f":"_xll.RiskData('Risk Summary'!J$48,$A2154)/1000","v":{"$error":"#NAME?"}},{"$f":"_xll.RiskData('Risk Summary'!K$48,$A2154)/1000","v":{"$error":"#NAME?"}},{"$f":"_xll.RiskData('Risk Summary'!L$48,$A2154)/1000","v":{"$error":"#NAME?"}},null,null,{"$f":"(_xll.RiskData(NR_to_Cash!C$18,$A2154))/1000","v":{"$error":"#NAME?"}},{"$f":"(_xll.RiskData(NR_to_Cash!D$18,$A2154))/1000","v":{"$error":"#NAME?"}},{"$f":"(_xll.RiskData(NR_to_Cash!E$18,$A2154))/1000","v":{"$error":"#NAME?"}}]
[2148,{"$f":"_xll.RiskData('Risk Summary'!J$48,$A2155)/1000","v":{"$error":"#NAME?"}},{"$f":"_xll.RiskData('Risk Summary'!K$48,$A2155)/1000","v":{"$error":"#NAME?"}},{"$f":"_xll.RiskData('Risk Summary'!L$48,$A2155)/1000","v":{"$error":"#NAME?"}},null,null,{"$f":"(_xll.RiskData(NR_to_Cash!C$18,$A2155))/1000","v":{"$error":"#NAME?"}},{"$f":"(_xll.RiskData(NR_to_Cash!D$18,$A2155))/1000","v":{"$error":"#NAME?"}},{"$f":"(_xll.RiskData(NR_to_Cash!E$18,$A2155))/1000","v":{"$error":"#NAME?"}}]
[2149,{"$f":"_xll.RiskData('Risk Summary'!J$48,$A2156)/1000","v":{"$error":"#NAME?"}},{"$f":"_xll.RiskData('Risk Summary'!K$48,$A2156)/1000","v":{"$error":"#NAME?"}},{"$f":"_xll.RiskData('Risk Summary'!L$48,$A2156)/1000","v":{"$error":"#NAME?"}},null,null,{"$f":"(_xll.RiskData(NR_to_Cash!C$18,$A2156))/1000","v":{"$error":"#NAME?"}},{"$f":"(_xll.RiskData(NR_to_Cash!D$18,$A2156))/1000","v":{"$error":"#NAME?"}},{"$f":"(_xll.RiskData(NR_to_Cash!E$18,$A2156))/1000","v":{"$error":"#NAME?"}}]
[2150,{"$f":"_xll.RiskData('Risk Summary'!J$48,$A2157)/1000","v":{"$error":"#NAME?"}},{"$f":"_xll.RiskData('Risk Summary'!K$48,$A2157)/1000","v":{"$error":"#NAME?"}},{"$f":"_xll.RiskData('Risk Summary'!L$48,$A2157)/1000","v":{"$error":"#NAME?"}},null,null,{"$f":"(_xll.RiskData(NR_to_Cash!C$18,$A2157))/1000","v":{"$error":"#NAME?"}},{"$f":"(_xll.RiskData(NR_to_Cash!D$18,$A2157))/1000","v":{"$error":"#NAME?"}},{"$f":"(_xll.RiskData(NR_to_Cash!E$18,$A2157))/1000","v":{"$error":"#NAME?"}}]
[2151,{"$f":"_xll.RiskData('Risk Summary'!J$48,$A2158)/1000","v":{"$error":"#NAME?"}},{"$f":"_xll.RiskData('Risk Summary'!K$48,$A2158)/1000","v":{"$error":"#NAME?"}},{"$f":"_xll.RiskData('Risk Summary'!L$48,$A2158)/1000","v":{"$error":"#NAME?"}},null,null,{"$f":"(_xll.RiskData(NR_to_Cash!C$18,$A2158))/1000","v":{"$error":"#NAME?"}},{"$f":"(_xll.RiskData(NR_to_Cash!D$18,$A2158))/1000","v":{"$error":"#NAME?"}},{"$f":"(_xll.RiskData(NR_to_Cash!E$18,$A2158))/1000","v":{"$error":"#NAME?"}}]
[2152,{"$f":"_xll.RiskData('Risk Summary'!J$48,$A2159)/1000","v":{"$error":"#NAME?"}},{"$f":"_xll.RiskData('Risk Summary'!K$48,$A2159)/1000","v":{"$error":"#NAME?"}},{"$f":"_xll.RiskData('Risk Summary'!L$48,$A2159)/1000","v":{"$error":"#NAME?"}},null,null,{"$f":"(_xll.RiskData(NR_to_Cash!C$18,$A2159))/1000","v":{"$error":"#NAME?"}},{"$f":"(_xll.RiskData(NR_to_Cash!D$18,$A2159))/1000","v":{"$error":"#NAME?"}},{"$f":"(_xll.RiskData(NR_to_Cash!E$18,$A2159))/1000","v":{"$error":"#NAME?"}}]
[2153,{"$f":"_xll.RiskData('Risk Summary'!J$48,$A2160)/1000","v":{"$error":"#NAME?"}},{"$f":"_xll.RiskData('Risk Summary'!K$48,$A2160)/1000","v":{"$error":"#NAME?"}},{"$f":"_xll.RiskData('Risk Summary'!L$48,$A2160)/1000","v":{"$error":"#NAME?"}},null,null,{"$f":"(_xll.RiskData(NR_to_Cash!C$18,$A2160))/1000","v":{"$error":"#NAME?"}},{"$f":"(_xll.RiskData(NR_to_Cash!D$18,$A2160))/1000","v":{"$error":"#NAME?"}},{"$f":"(_xll.RiskData(NR_to_Cash!E$18,$A2160))/1000","v":{"$error":"#NAME?"}}]
[2154,{"$f":"_xll.RiskData('Risk Summary'!J$48,$A2161)/1000","v":{"$error":"#NAME?"}},{"$f":"_xll.RiskData('Risk Summary'!K$48,$A2161)/1000","v":{"$error":"#NAME?"}},{"$f":"_xll.RiskData('Risk Summary'!L$48,$A2161)/1000","v":{"$error":"#NAME?"}},null,null,{"$f":"(_xll.RiskData(NR_to_Cash!C$18,$A2161))/1000","v":{"$error":"#NAME?"}},{"$f":"(_xll.RiskData(NR_to_Cash!D$18,$A2161))/1000","v":{"$error":"#NAME?"}},{"$f":"(_xll.RiskData(NR_to_Cash!E$18,$A2161))/1000","v":{"$error":"#NAME?"}}]
[2155,{"$f":"_xll.RiskData('Risk Summary'!J$48,$A2162)/1000","v":{"$error":"#NAME?"}},{"$f":"_xll.RiskData('Risk Summary'!K$48,$A2162)/1000","v":{"$error":"#NAME?"}},{"$f":"_xll.RiskData('Risk Summary'!L$48,$A2162)/1000","v":{"$error":"#NAME?"}},null,null,{"$f":"(_xll.RiskData(NR_to_Cash!C$18,$A2162))/1000","v":{"$error":"#NAME?"}},{"$f":"(_xll.RiskData(NR_to_Cash!D$18,$A2162))/1000","v":{"$error":"#NAME?"}},{"$f":"(_xll.RiskData(NR_to_Cash!E$18,$A2162))/1000","v":{"$error":"#NAME?"}}]
[2156,{"$f":"_xll.RiskData('Risk Summary'!J$48,$A2163)/1000","v":{"$error":"#NAME?"}},{"$f":"_xll.RiskData('Risk Summary'!K$48,$A2163)/1000","v":{"$error":"#NAME?"}},{"$f":"_xll.RiskData('Risk Summary'!L$48,$A2163)/1000","v":{"$error":"#NAME?"}},null,null,{"$f":"(_xll.RiskData(NR_to_Cash!C$18,$A2163))/1000","v":{"$error":"#NAME?"}},{"$f":"(_xll.RiskData(NR_to_Cash!D$18,$A2163))/1000","v":{"$error":"#NAME?"}},{"$f":"(_xll.RiskData(NR_to_Cash!E$18,$A2163))/1000","v":{"$error":"#NAME?"}}]
[2157,{"$f":"_xll.RiskData('Risk Summary'!J$48,$A2164)/1000","v":{"$error":"#NAME?"}},{"$f":"_xll.RiskData('Risk Summary'!K$48,$A2164)/1000","v":{"$error":"#NAME?"}},{"$f":"_xll.RiskData('Risk Summary'!L$48,$A2164)/1000","v":{"$error":"#NAME?"}},null,null,{"$f":"(_xll.RiskData(NR_to_Cash!C$18,$A2164))/1000","v":{"$error":"#NAME?"}},{"$f":"(_xll.RiskData(NR_to_Cash!D$18,$A2164))/1000","v":{"$error":"#NAME?"}},{"$f":"(_xll.RiskData(NR_to_Cash!E$18,$A2164))/1000","v":{"$error":"#NAME?"}}]
[2158,{"$f":"_xll.RiskData('Risk Summary'!J$48,$A2165)/1000","v":{"$error":"#NAME?"}},{"$f":"_xll.RiskData('Risk Summary'!K$48,$A2165)/1000","v":{"$error":"#NAME?"}},{"$f":"_xll.RiskData('Risk Summary'!L$48,$A2165)/1000","v":{"$error":"#NAME?"}},null,null,{"$f":"(_xll.RiskData(NR_to_Cash!C$18,$A2165))/1000","v":{"$error":"#NAME?"}},{"$f":"(_xll.RiskData(NR_to_Cash!D$18,$A2165))/1000","v":{"$error":"#NAME?"}},{"$f":"(_xll.RiskData(NR_to_Cash!E$18,$A2165))/1000","v":{"$error":"#NAME?"}}]
[2159,{"$f":"_xll.RiskData('Risk Summary'!J$48,$A2166)/1000","v":{"$error":"#NAME?"}},{"$f":"_xll.RiskData('Risk Summary'!K$48,$A2166)/1000","v":{"$error":"#NAME?"}},{"$f":"_xll.RiskData('Risk Summary'!L$48,$A2166)/1000","v":{"$error":"#NAME?"}},null,null,{"$f":"(_xll.RiskData(NR_to_Cash!C$18,$A2166))/1000","v":{"$error":"#NAME?"}},{"$f":"(_xll.RiskData(NR_to_Cash!D$18,$A2166))/1000","v":{"$error":"#NAME?"}},{"$f":"(_xll.RiskData(NR_to_Cash!E$18,$A2166))/1000","v":{"$error":"#NAME?"}}]
[2160,{"$f":"_xll.RiskData('Risk Summary'!J$48,$A2167)/1000","v":{"$error":"#NAME?"}},{"$f":"_xll.RiskData('Risk Summary'!K$48,$A2167)/1000","v":{"$error":"#NAME?"}},{"$f":"_xll.RiskData('Risk Summary'!L$48,$A2167)/1000","v":{"$error":"#NAME?"}},null,null,{"$f":"(_xll.RiskData(NR_to_Cash!C$18,$A2167))/1000","v":{"$error":"#NAME?"}},{"$f":"(_xll.RiskData(NR_to_Cash!D$18,$A2167))/1000","v":{"$error":"#NAME?"}},{"$f":"(_xll.RiskData(NR_to_Cash!E$18,$A2167))/1000","v":{"$error":"#NAME?"}}]
[2161,{"$f":"_xll.RiskData('Risk Summary'!J$48,$A2168)/1000","v":{"$error":"#NAME?"}},{"$f":"_xll.RiskData('Risk Summary'!K$48,$A2168)/1000","v":{"$error":"#NAME?"}},{"$f":"_xll.RiskData('Risk Summary'!L$48,$A2168)/1000","v":{"$error":"#NAME?"}},null,null,{"$f":"(_xll.RiskData(NR_to_Cash!C$18,$A2168))/1000","v":{"$error":"#NAME?"}},{"$f":"(_xll.RiskData(NR_to_Cash!D$18,$A2168))/1000","v":{"$error":"#NAME?"}},{"$f":"(_xll.RiskData(NR_to_Cash!E$18,$A2168))/1000","v":{"$error":"#NAME?"}}]
[2162,{"$f":"_xll.RiskData('Risk Summary'!J$48,$A2169)/1000","v":{"$error":"#NAME?"}},{"$f":"_xll.RiskData('Risk Summary'!K$48,$A2169)/1000","v":{"$error":"#NAME?"}},{"$f":"_xll.RiskData('Risk Summary'!L$48,$A2169)/1000","v":{"$error":"#NAME?"}},null,null,{"$f":"(_xll.RiskData(NR_to_Cash!C$18,$A2169))/1000","v":{"$error":"#NAME?"}},{"$f":"(_xll.RiskData(NR_to_Cash!D$18,$A2169))/1000","v":{"$error":"#NAME?"}},{"$f":"(_xll.RiskData(NR_to_Cash!E$18,$A2169))/1000","v":{"$error":"#NAME?"}}]
[2163,{"$f":"_xll.RiskData('Risk Summary'!J$48,$A2170)/1000","v":{"$error":"#NAME?"}},{"$f":"_xll.RiskData('Risk Summary'!K$48,$A2170)/1000","v":{"$error":"#NAME?"}},{"$f":"_xll.RiskData('Risk Summary'!L$48,$A2170)/1000","v":{"$error":"#NAME?"}},null,null,{"$f":"(_xll.RiskData(NR_to_Cash!C$18,$A2170))/1000","v":{"$error":"#NAME?"}},{"$f":"(_xll.RiskData(NR_to_Cash!D$18,$A2170))/1000","v":{"$error":"#NAME?"}},{"$f":"(_xll.RiskData(NR_to_Cash!E$18,$A2170))/1000","v":{"$error":"#NAME?"}}]
[2164,{"$f":"_xll.RiskData('Risk Summary'!J$48,$A2171)/1000","v":{"$error":"#NAME?"}},{"$f":"_xll.RiskData('Risk Summary'!K$48,$A2171)/1000","v":{"$error":"#NAME?"}},{"$f":"_xll.RiskData('Risk Summary'!L$48,$A2171)/1000","v":{"$error":"#NAME?"}},null,null,{"$f":"(_xll.RiskData(NR_to_Cash!C$18,$A2171))/1000","v":{"$error":"#NAME?"}},{"$f":"(_xll.RiskData(NR_to_Cash!D$18,$A2171))/1000","v":{"$error":"#NAME?"}},{"$f":"(_xll.RiskData(NR_to_Cash!E$18,$A2171))/1000","v":{"$error":"#NAME?"}}]
[2165,{"$f":"_xll.RiskData('Risk Summary'!J$48,$A2172)/1000","v":{"$error":"#NAME?"}},{"$f":"_xll.RiskData('Risk Summary'!K$48,$A2172)/1000","v":{"$error":"#NAME?"}},{"$f":"_xll.RiskData('Risk Summary'!L$48,$A2172)/1000","v":{"$error":"#NAME?"}},null,null,{"$f":"(_xll.RiskData(NR_to_Cash!C$18,$A2172))/1000","v":{"$error":"#NAME?"}},{"$f":"(_xll.RiskData(NR_to_Cash!D$18,$A2172))/1000","v":{"$error":"#NAME?"}},{"$f":"(_xll.RiskData(NR_to_Cash!E$18,$A2172))/1000","v":{"$error":"#NAME?"}}]
[2166,{"$f":"_xll.RiskData('Risk Summary'!J$48,$A2173)/1000","v":{"$error":"#NAME?"}},{"$f":"_xll.RiskData('Risk Summary'!K$48,$A2173)/1000","v":{"$error":"#NAME?"}},{"$f":"_xll.RiskData('Risk Summary'!L$48,$A2173)/1000","v":{"$error":"#NAME?"}},null,null,{"$f":"(_xll.RiskData(NR_to_Cash!C$18,$A2173))/1000","v":{"$error":"#NAME?"}},{"$f":"(_xll.RiskData(NR_to_Cash!D$18,$A2173))/1000","v":{"$error":"#NAME?"}},{"$f":"(_xll.RiskData(NR_to_Cash!E$18,$A2173))/1000","v":{"$error":"#NAME?"}}]
[2167,{"$f":"_xll.RiskData('Risk Summary'!J$48,$A2174)/1000","v":{"$error":"#NAME?"}},{"$f":"_xll.RiskData('Risk Summary'!K$48,$A2174)/1000","v":{"$error":"#NAME?"}},{"$f":"_xll.RiskData('Risk Summary'!L$48,$A2174)/1000","v":{"$error":"#NAME?"}},null,null,{"$f":"(_xll.RiskData(NR_to_Cash!C$18,$A2174))/1000","v":{"$error":"#NAME?"}},{"$f":"(_xll.RiskData(NR_to_Cash!D$18,$A2174))/1000","v":{"$error":"#NAME?"}},{"$f":"(_xll.RiskData(NR_to_Cash!E$18,$A2174))/1000","v":{"$error":"#NAME?"}}]
[2168,{"$f":"_xll.RiskData('Risk Summary'!J$48,$A2175)/1000","v":{"$error":"#NAME?"}},{"$f":"_xll.RiskData('Risk Summary'!K$48,$A2175)/1000","v":{"$error":"#NAME?"}},{"$f":"_xll.RiskData('Risk Summary'!L$48,$A2175)/1000","v":{"$error":"#NAME?"}},null,null,{"$f":"(_xll.RiskData(NR_to_Cash!C$18,$A2175))/1000","v":{"$error":"#NAME?"}},{"$f":"(_xll.RiskData(NR_to_Cash!D$18,$A2175))/1000","v":{"$error":"#NAME?"}},{"$f":"(_xll.RiskData(NR_to_Cash!E$18,$A2175))/1000","v":{"$error":"#NAME?"}}]
[2169,{"$f":"_xll.RiskData('Risk Summary'!J$48,$A2176)/1000","v":{"$error":"#NAME?"}},{"$f":"_xll.RiskData('Risk Summary'!K$48,$A2176)/1000","v":{"$error":"#NAME?"}},{"$f":"_xll.RiskData('Risk Summary'!L$48,$A2176)/1000","v":{"$error":"#NAME?"}},null,null,{"$f":"(_xll.RiskData(NR_to_Cash!C$18,$A2176))/1000","v":{"$error":"#NAME?"}},{"$f":"(_xll.RiskData(NR_to_Cash!D$18,$A2176))/1000","v":{"$error":"#NAME?"}},{"$f":"(_xll.RiskData(NR_to_Cash!E$18,$A2176))/1000","v":{"$error":"#NAME?"}}]
[2170,{"$f":"_xll.RiskData('Risk Summary'!J$48,$A2177)/1000","v":{"$error":"#NAME?"}},{"$f":"_xll.RiskData('Risk Summary'!K$48,$A2177)/1000","v":{"$error":"#NAME?"}},{"$f":"_xll.RiskData('Risk Summary'!L$48,$A2177)/1000","v":{"$error":"#NAME?"}},null,null,{"$f":"(_xll.RiskData(NR_to_Cash!C$18,$A2177))/1000","v":{"$error":"#NAME?"}},{"$f":"(_xll.RiskData(NR_to_Cash!D$18,$A2177))/1000","v":{"$error":"#NAME?"}},{"$f":"(_xll.RiskData(NR_to_Cash!E$18,$A2177))/1000","v":{"$error":"#NAME?"}}]
[2171,{"$f":"_xll.RiskData('Risk Summary'!J$48,$A2178)/1000","v":{"$error":"#NAME?"}},{"$f":"_xll.RiskData('Risk Summary'!K$48,$A2178)/1000","v":{"$error":"#NAME?"}},{"$f":"_xll.RiskData('Risk Summary'!L$48,$A2178)/1000","v":{"$error":"#NAME?"}},null,null,{"$f":"(_xll.RiskData(NR_to_Cash!C$18,$A2178))/1000","v":{"$error":"#NAME?"}},{"$f":"(_xll.RiskData(NR_to_Cash!D$18,$A2178))/1000","v":{"$error":"#NAME?"}},{"$f":"(_xll.RiskData(NR_to_Cash!E$18,$A2178))/1000","v":{"$error":"#NAME?"}}]
[2172,{"$f":"_xll.RiskData('Risk Summary'!J$48,$A2179)/1000","v":{"$error":"#NAME?"}},{"$f":"_xll.RiskData('Risk Summary'!K$48,$A2179)/1000","v":{"$error":"#NAME?"}},{"$f":"_xll.RiskData('Risk Summary'!L$48,$A2179)/1000","v":{"$error":"#NAME?"}},null,null,{"$f":"(_xll.RiskData(NR_to_Cash!C$18,$A2179))/1000","v":{"$error":"#NAME?"}},{"$f":"(_xll.RiskData(NR_to_Cash!D$18,$A2179))/1000","v":{"$error":"#NAME?"}},{"$f":"(_xll.RiskData(NR_to_Cash!E$18,$A2179))/1000","v":{"$error":"#NAME?"}}]
[2173,{"$f":"_xll.RiskData('Risk Summary'!J$48,$A2180)/1000","v":{"$error":"#NAME?"}},{"$f":"_xll.RiskData('Risk Summary'!K$48,$A2180)/1000","v":{"$error":"#NAME?"}},{"$f":"_xll.RiskData('Risk Summary'!L$48,$A2180)/1000","v":{"$error":"#NAME?"}},null,null,{"$f":"(_xll.RiskData(NR_to_Cash!C$18,$A2180))/1000","v":{"$error":"#NAME?"}},{"$f":"(_xll.RiskData(NR_to_Cash!D$18,$A2180))/1000","v":{"$error":"#NAME?"}},{"$f":"(_xll.RiskData(NR_to_Cash!E$18,$A2180))/1000","v":{"$error":"#NAME?"}}]
[2174,{"$f":"_xll.RiskData('Risk Summary'!J$48,$A2181)/1000","v":{"$error":"#NAME?"}},{"$f":"_xll.RiskData('Risk Summary'!K$48,$A2181)/1000","v":{"$error":"#NAME?"}},{"$f":"_xll.RiskData('Risk Summary'!L$48,$A2181)/1000","v":{"$error":"#NAME?"}},null,null,{"$f":"(_xll.RiskData(NR_to_Cash!C$18,$A2181))/1000","v":{"$error":"#NAME?"}},{"$f":"(_xll.RiskData(NR_to_Cash!D$18,$A2181))/1000","v":{"$error":"#NAME?"}},{"$f":"(_xll.RiskData(NR_to_Cash!E$18,$A2181))/1000","v":{"$error":"#NAME?"}}]
[2175,{"$f":"_xll.RiskData('Risk Summary'!J$48,$A2182)/1000","v":{"$error":"#NAME?"}},{"$f":"_xll.RiskData('Risk Summary'!K$48,$A2182)/1000","v":{"$error":"#NAME?"}},{"$f":"_xll.RiskData('Risk Summary'!L$48,$A2182)/1000","v":{"$error":"#NAME?"}},null,null,{"$f":"(_xll.RiskData(NR_to_Cash!C$18,$A2182))/1000","v":{"$error":"#NAME?"}},{"$f":"(_xll.RiskData(NR_to_Cash!D$18,$A2182))/1000","v":{"$error":"#NAME?"}},{"$f":"(_xll.RiskData(NR_to_Cash!E$18,$A2182))/1000","v":{"$error":"#NAME?"}}]
[2176,{"$f":"_xll.RiskData('Risk Summary'!J$48,$A2183)/1000","v":{"$error":"#NAME?"}},{"$f":"_xll.RiskData('Risk Summary'!K$48,$A2183)/1000","v":{"$error":"#NAME?"}},{"$f":"_xll.RiskData('Risk Summary'!L$48,$A2183)/1000","v":{"$error":"#NAME?"}},null,null,{"$f":"(_xll.RiskData(NR_to_Cash!C$18,$A2183))/1000","v":{"$error":"#NAME?"}},{"$f":"(_xll.RiskData(NR_to_Cash!D$18,$A2183))/1000","v":{"$error":"#NAME?"}},{"$f":"(_xll.RiskData(NR_to_Cash!E$18,$A2183))/1000","v":{"$error":"#NAME?"}}]
[2177,{"$f":"_xll.RiskData('Risk Summary'!J$48,$A2184)/1000","v":{"$error":"#NAME?"}},{"$f":"_xll.RiskData('Risk Summary'!K$48,$A2184)/1000","v":{"$error":"#NAME?"}},{"$f":"_xll.RiskData('Risk Summary'!L$48,$A2184)/1000","v":{"$error":"#NAME?"}},null,null,{"$f":"(_xll.RiskData(NR_to_Cash!C$18,$A2184))/1000","v":{"$error":"#NAME?"}},{"$f":"(_xll.RiskData(NR_to_Cash!D$18,$A2184))/1000","v":{"$error":"#NAME?"}},{"$f":"(_xll.RiskData(NR_to_Cash!E$18,$A2184))/1000","v":{"$error":"#NAME?"}}]
[2178,{"$f":"_xll.RiskData('Risk Summary'!J$48,$A2185)/1000","v":{"$error":"#NAME?"}},{"$f":"_xll.RiskData('Risk Summary'!K$48,$A2185)/1000","v":{"$error":"#NAME?"}},{"$f":"_xll.RiskData('Risk Summary'!L$48,$A2185)/1000","v":{"$error":"#NAME?"}},null,null,{"$f":"(_xll.RiskData(NR_to_Cash!C$18,$A2185))/1000","v":{"$error":"#NAME?"}},{"$f":"(_xll.RiskData(NR_to_Cash!D$18,$A2185))/1000","v":{"$error":"#NAME?"}},{"$f":"(_xll.RiskData(NR_to_Cash!E$18,$A2185))/1000","v":{"$error":"#NAME?"}}]
[2179,{"$f":"_xll.RiskData('Risk Summary'!J$48,$A2186)/1000","v":{"$error":"#NAME?"}},{"$f":"_xll.RiskData('Risk Summary'!K$48,$A2186)/1000","v":{"$error":"#NAME?"}},{"$f":"_xll.RiskData('Risk Summary'!L$48,$A2186)/1000","v":{"$error":"#NAME?"}},null,null,{"$f":"(_xll.RiskData(NR_to_Cash!C$18,$A2186))/1000","v":{"$error":"#NAME?"}},{"$f":"(_xll.RiskData(NR_to_Cash!D$18,$A2186))/1000","v":{"$error":"#NAME?"}},{"$f":"(_xll.RiskData(NR_to_Cash!E$18,$A2186))/1000","v":{"$error":"#NAME?"}}]
[2180,{"$f":"_xll.RiskData('Risk Summary'!J$48,$A2187)/1000","v":{"$error":"#NAME?"}},{"$f":"_xll.RiskData('Risk Summary'!K$48,$A2187)/1000","v":{"$error":"#NAME?"}},{"$f":"_xll.RiskData('Risk Summary'!L$48,$A2187)/1000","v":{"$error":"#NAME?"}},null,null,{"$f":"(_xll.RiskData(NR_to_Cash!C$18,$A2187))/1000","v":{"$error":"#NAME?"}},{"$f":"(_xll.RiskData(NR_to_Cash!D$18,$A2187))/1000","v":{"$error":"#NAME?"}},{"$f":"(_xll.RiskData(NR_to_Cash!E$18,$A2187))/1000","v":{"$error":"#NAME?"}}]
[2181,{"$f":"_xll.RiskData('Risk Summary'!J$48,$A2188)/1000","v":{"$error":"#NAME?"}},{"$f":"_xll.RiskData('Risk Summary'!K$48,$A2188)/1000","v":{"$error":"#NAME?"}},{"$f":"_xll.RiskData('Risk Summary'!L$48,$A2188)/1000","v":{"$error":"#NAME?"}},null,null,{"$f":"(_xll.RiskData(NR_to_Cash!C$18,$A2188))/1000","v":{"$error":"#NAME?"}},{"$f":"(_xll.RiskData(NR_to_Cash!D$18,$A2188))/1000","v":{"$error":"#NAME?"}},{"$f":"(_xll.RiskData(NR_to_Cash!E$18,$A2188))/1000","v":{"$error":"#NAME?"}}]
[2182,{"$f":"_xll.RiskData('Risk Summary'!J$48,$A2189)/1000","v":{"$error":"#NAME?"}},{"$f":"_xll.RiskData('Risk Summary'!K$48,$A2189)/1000","v":{"$error":"#NAME?"}},{"$f":"_xll.RiskData('Risk Summary'!L$48,$A2189)/1000","v":{"$error":"#NAME?"}},null,null,{"$f":"(_xll.RiskData(NR_to_Cash!C$18,$A2189))/1000","v":{"$error":"#NAME?"}},{"$f":"(_xll.RiskData(NR_to_Cash!D$18,$A2189))/1000","v":{"$error":"#NAME?"}},{"$f":"(_xll.RiskData(NR_to_Cash!E$18,$A2189))/1000","v":{"$error":"#NAME?"}}]
[2183,{"$f":"_xll.RiskData('Risk Summary'!J$48,$A2190)/1000","v":{"$error":"#NAME?"}},{"$f":"_xll.RiskData('Risk Summary'!K$48,$A2190)/1000","v":{"$error":"#NAME?"}},{"$f":"_xll.RiskData('Risk Summary'!L$48,$A2190)/1000","v":{"$error":"#NAME?"}},null,null,{"$f":"(_xll.RiskData(NR_to_Cash!C$18,$A2190))/1000","v":{"$error":"#NAME?"}},{"$f":"(_xll.RiskData(NR_to_Cash!D$18,$A2190))/1000","v":{"$error":"#NAME?"}},{"$f":"(_xll.RiskData(NR_to_Cash!E$18,$A2190))/1000","v":{"$error":"#NAME?"}}]
[2184,{"$f":"_xll.RiskData('Risk Summary'!J$48,$A2191)/1000","v":{"$error":"#NAME?"}},{"$f":"_xll.RiskData('Risk Summary'!K$48,$A2191)/1000","v":{"$error":"#NAME?"}},{"$f":"_xll.RiskData('Risk Summary'!L$48,$A2191)/1000","v":{"$error":"#NAME?"}},null,null,{"$f":"(_xll.RiskData(NR_to_Cash!C$18,$A2191))/1000","v":{"$error":"#NAME?"}},{"$f":"(_xll.RiskData(NR_to_Cash!D$18,$A2191))/1000","v":{"$error":"#NAME?"}},{"$f":"(_xll.RiskData(NR_to_Cash!E$18,$A2191))/1000","v":{"$error":"#NAME?"}}]
[2185,{"$f":"_xll.RiskData('Risk Summary'!J$48,$A2192)/1000","v":{"$error":"#NAME?"}},{"$f":"_xll.RiskData('Risk Summary'!K$48,$A2192)/1000","v":{"$error":"#NAME?"}},{"$f":"_xll.RiskData('Risk Summary'!L$48,$A2192)/1000","v":{"$error":"#NAME?"}},null,null,{"$f":"(_xll.RiskData(NR_to_Cash!C$18,$A2192))/1000","v":{"$error":"#NAME?"}},{"$f":"(_xll.RiskData(NR_to_Cash!D$18,$A2192))/1000","v":{"$error":"#NAME?"}},{"$f":"(_xll.RiskData(NR_to_Cash!E$18,$A2192))/1000","v":{"$error":"#NAME?"}}]
[2186,{"$f":"_xll.RiskData('Risk Summary'!J$48,$A2193)/1000","v":{"$error":"#NAME?"}},{"$f":"_xll.RiskData('Risk Summary'!K$48,$A2193)/1000","v":{"$error":"#NAME?"}},{"$f":"_xll.RiskData('Risk Summary'!L$48,$A2193)/1000","v":{"$error":"#NAME?"}},null,null,{"$f":"(_xll.RiskData(NR_to_Cash!C$18,$A2193))/1000","v":{"$error":"#NAME?"}},{"$f":"(_xll.RiskData(NR_to_Cash!D$18,$A2193))/1000","v":{"$error":"#NAME?"}},{"$f":"(_xll.RiskData(NR_to_Cash!E$18,$A2193))/1000","v":{"$error":"#NAME?"}}]
[2187,{"$f":"_xll.RiskData('Risk Summary'!J$48,$A2194)/1000","v":{"$error":"#NAME?"}},{"$f":"_xll.RiskData('Risk Summary'!K$48,$A2194)/1000","v":{"$error":"#NAME?"}},{"$f":"_xll.RiskData('Risk Summary'!L$48,$A2194)/1000","v":{"$error":"#NAME?"}},null,null,{"$f":"(_xll.RiskData(NR_to_Cash!C$18,$A2194))/1000","v":{"$error":"#NAME?"}},{"$f":"(_xll.RiskData(NR_to_Cash!D$18,$A2194))/1000","v":{"$error":"#NAME?"}},{"$f":"(_xll.RiskData(NR_to_Cash!E$18,$A2194))/1000","v":{"$error":"#NAME?"}}]
[2188,{"$f":"_xll.RiskData('Risk Summary'!J$48,$A2195)/1000","v":{"$error":"#NAME?"}},{"$f":"_xll.RiskData('Risk Summary'!K$48,$A2195)/1000","v":{"$error":"#NAME?"}},{"$f":"_xll.RiskData('Risk Summary'!L$48,$A2195)/1000","v":{"$error":"#NAME?"}},null,null,{"$f":"(_xll.RiskData(NR_to_Cash!C$18,$A2195))/1000","v":{"$error":"#NAME?"}},{"$f":"(_xll.RiskData(NR_to_Cash!D$18,$A2195))/1000","v":{"$error":"#NAME?"}},{"$f":"(_xll.RiskData(NR_to_Cash!E$18,$A2195))/1000","v":{"$error":"#NAME?"}}]
[2189,{"$f":"_xll.RiskData('Risk Summary'!J$48,$A2196)/1000","v":{"$error":"#NAME?"}},{"$f":"_xll.RiskData('Risk Summary'!K$48,$A2196)/1000","v":{"$error":"#NAME?"}},{"$f":"_xll.RiskData('Risk Summary'!L$48,$A2196)/1000","v":{"$error":"#NAME?"}},null,null,{"$f":"(_xll.RiskData(NR_to_Cash!C$18,$A2196))/1000","v":{"$error":"#NAME?"}},{"$f":"(_xll.RiskData(NR_to_Cash!D$18,$A2196))/1000","v":{"$error":"#NAME?"}},{"$f":"(_xll.RiskData(NR_to_Cash!E$18,$A2196))/1000","v":{"$error":"#NAME?"}}]
[2190,{"$f":"_xll.RiskData('Risk Summary'!J$48,$A2197)/1000","v":{"$error":"#NAME?"}},{"$f":"_xll.RiskData('Risk Summary'!K$48,$A2197)/1000","v":{"$error":"#NAME?"}},{"$f":"_xll.RiskData('Risk Summary'!L$48,$A2197)/1000","v":{"$error":"#NAME?"}},null,null,{"$f":"(_xll.RiskData(NR_to_Cash!C$18,$A2197))/1000","v":{"$error":"#NAME?"}},{"$f":"(_xll.RiskData(NR_to_Cash!D$18,$A2197))/1000","v":{"$error":"#NAME?"}},{"$f":"(_xll.RiskData(NR_to_Cash!E$18,$A2197))/1000","v":{"$error":"#NAME?"}}]
[2191,{"$f":"_xll.RiskData('Risk Summary'!J$48,$A2198)/1000","v":{"$error":"#NAME?"}},{"$f":"_xll.RiskData('Risk Summary'!K$48,$A2198)/1000","v":{"$error":"#NAME?"}},{"$f":"_xll.RiskData('Risk Summary'!L$48,$A2198)/1000","v":{"$error":"#NAME?"}},null,null,{"$f":"(_xll.RiskData(NR_to_Cash!C$18,$A2198))/1000","v":{"$error":"#NAME?"}},{"$f":"(_xll.RiskData(NR_to_Cash!D$18,$A2198))/1000","v":{"$error":"#NAME?"}},{"$f":"(_xll.RiskData(NR_to_Cash!E$18,$A2198))/1000","v":{"$error":"#NAME?"}}]
[2192,{"$f":"_xll.RiskData('Risk Summary'!J$48,$A2199)/1000","v":{"$error":"#NAME?"}},{"$f":"_xll.RiskData('Risk Summary'!K$48,$A2199)/1000","v":{"$error":"#NAME?"}},{"$f":"_xll.RiskData('Risk Summary'!L$48,$A2199)/1000","v":{"$error":"#NAME?"}},null,null,{"$f":"(_xll.RiskData(NR_to_Cash!C$18,$A2199))/1000","v":{"$error":"#NAME?"}},{"$f":"(_xll.RiskData(NR_to_Cash!D$18,$A2199))/1000","v":{"$error":"#NAME?"}},{"$f":"(_xll.RiskData(NR_to_Cash!E$18,$A2199))/1000","v":{"$error":"#NAME?"}}]
[2193,{"$f":"_xll.RiskData('Risk Summary'!J$48,$A2200)/1000","v":{"$error":"#NAME?"}},{"$f":"_xll.RiskData('Risk Summary'!K$48,$A2200)/1000","v":{"$error":"#NAME?"}},{"$f":"_xll.RiskData('Risk Summary'!L$48,$A2200)/1000","v":{"$error":"#NAME?"}},null,null,{"$f":"(_xll.RiskData(NR_to_Cash!C$18,$A2200))/1000","v":{"$error":"#NAME?"}},{"$f":"(_xll.RiskData(NR_to_Cash!D$18,$A2200))/1000","v":{"$error":"#NAME?"}},{"$f":"(_xll.RiskData(NR_to_Cash!E$18,$A2200))/1000","v":{"$error":"#NAME?"}}]
[2194,{"$f":"_xll.RiskData('Risk Summary'!J$48,$A2201)/1000","v":{"$error":"#NAME?"}},{"$f":"_xll.RiskData('Risk Summary'!K$48,$A2201)/1000","v":{"$error":"#NAME?"}},{"$f":"_xll.RiskData('Risk Summary'!L$48,$A2201)/1000","v":{"$error":"#NAME?"}},null,null,{"$f":"(_xll.RiskData(NR_to_Cash!C$18,$A2201))/1000","v":{"$error":"#NAME?"}},{"$f":"(_xll.RiskData(NR_to_Cash!D$18,$A2201))/1000","v":{"$error":"#NAME?"}},{"$f":"(_xll.RiskData(NR_to_Cash!E$18,$A2201))/1000","v":{"$error":"#NAME?"}}]
[2195,{"$f":"_xll.RiskData('Risk Summary'!J$48,$A2202)/1000","v":{"$error":"#NAME?"}},{"$f":"_xll.RiskData('Risk Summary'!K$48,$A2202)/1000","v":{"$error":"#NAME?"}},{"$f":"_xll.RiskData('Risk Summary'!L$48,$A2202)/1000","v":{"$error":"#NAME?"}},null,null,{"$f":"(_xll.RiskData(NR_to_Cash!C$18,$A2202))/1000","v":{"$error":"#NAME?"}},{"$f":"(_xll.RiskData(NR_to_Cash!D$18,$A2202))/1000","v":{"$error":"#NAME?"}},{"$f":"(_xll.RiskData(NR_to_Cash!E$18,$A2202))/1000","v":{"$error":"#NAME?"}}]
[2196,{"$f":"_xll.RiskData('Risk Summary'!J$48,$A2203)/1000","v":{"$error":"#NAME?"}},{"$f":"_xll.RiskData('Risk Summary'!K$48,$A2203)/1000","v":{"$error":"#NAME?"}},{"$f":"_xll.RiskData('Risk Summary'!L$48,$A2203)/1000","v":{"$error":"#NAME?"}},null,null,{"$f":"(_xll.RiskData(NR_to_Cash!C$18,$A2203))/1000","v":{"$error":"#NAME?"}},{"$f":"(_xll.RiskData(NR_to_Cash!D$18,$A2203))/1000","v":{"$error":"#NAME?"}},{"$f":"(_xll.RiskData(NR_to_Cash!E$18,$A2203))/1000","v":{"$error":"#NAME?"}}]
[2197,{"$f":"_xll.RiskData('Risk Summary'!J$48,$A2204)/1000","v":{"$error":"#NAME?"}},{"$f":"_xll.RiskData('Risk Summary'!K$48,$A2204)/1000","v":{"$error":"#NAME?"}},{"$f":"_xll.RiskData('Risk Summary'!L$48,$A2204)/1000","v":{"$error":"#NAME?"}},null,null,{"$f":"(_xll.RiskData(NR_to_Cash!C$18,$A2204))/1000","v":{"$error":"#NAME?"}},{"$f":"(_xll.RiskData(NR_to_Cash!D$18,$A2204))/1000","v":{"$error":"#NAME?"}},{"$f":"(_xll.RiskData(NR_to_Cash!E$18,$A2204))/1000","v":{"$error":"#NAME?"}}]
[2198,{"$f":"_xll.RiskData('Risk Summary'!J$48,$A2205)/1000","v":{"$error":"#NAME?"}},{"$f":"_xll.RiskData('Risk Summary'!K$48,$A2205)/1000","v":{"$error":"#NAME?"}},{"$f":"_xll.RiskData('Risk Summary'!L$48,$A2205)/1000","v":{"$error":"#NAME?"}},null,null,{"$f":"(_xll.RiskData(NR_to_Cash!C$18,$A2205))/1000","v":{"$error":"#NAME?"}},{"$f":"(_xll.RiskData(NR_to_Cash!D$18,$A2205))/1000","v":{"$error":"#NAME?"}},{"$f":"(_xll.RiskData(NR_to_Cash!E$18,$A2205))/1000","v":{"$error":"#NAME?"}}]
[2199,{"$f":"_xll.RiskData('Risk Summary'!J$48,$A2206)/1000","v":{"$error":"#NAME?"}},{"$f":"_xll.RiskData('Risk Summary'!K$48,$A2206)/1000","v":{"$error":"#NAME?"}},{"$f":"_xll.RiskData('Risk Summary'!L$48,$A2206)/1000","v":{"$error":"#NAME?"}},null,null,{"$f":"(_xll.RiskData(NR_to_Cash!C$18,$A2206))/1000","v":{"$error":"#NAME?"}},{"$f":"(_xll.RiskData(NR_to_Cash!D$18,$A2206))/1000","v":{"$error":"#NAME?"}},{"$f":"(_xll.RiskData(NR_to_Cash!E$18,$A2206))/1000","v":{"$error":"#NAME?"}}]
[2200,{"$f":"_xll.RiskData('Risk Summary'!J$48,$A2207)/1000","v":{"$error":"#NAME?"}},{"$f":"_xll.RiskData('Risk Summary'!K$48,$A2207)/1000","v":{"$error":"#NAME?"}},{"$f":"_xll.RiskData('Risk Summary'!L$48,$A2207)/1000","v":{"$error":"#NAME?"}},null,null,{"$f":"(_xll.RiskData(NR_to_Cash!C$18,$A2207))/1000","v":{"$error":"#NAME?"}},{"$f":"(_xll.RiskData(NR_to_Cash!D$18,$A2207))/1000","v":{"$error":"#NAME?"}},{"$f":"(_xll.RiskData(NR_to_Cash!E$18,$A2207))/1000","v":{"$error":"#NAME?"}}]
[2201,{"$f":"_xll.RiskData('Risk Summary'!J$48,$A2208)/1000","v":{"$error":"#NAME?"}},{"$f":"_xll.RiskData('Risk Summary'!K$48,$A2208)/1000","v":{"$error":"#NAME?"}},{"$f":"_xll.RiskData('Risk Summary'!L$48,$A2208)/1000","v":{"$error":"#NAME?"}},null,null,{"$f":"(_xll.RiskData(NR_to_Cash!C$18,$A2208))/1000","v":{"$error":"#NAME?"}},{"$f":"(_xll.RiskData(NR_to_Cash!D$18,$A2208))/1000","v":{"$error":"#NAME?"}},{"$f":"(_xll.RiskData(NR_to_Cash!E$18,$A2208))/1000","v":{"$error":"#NAME?"}}]
[2202,{"$f":"_xll.RiskData('Risk Summary'!J$48,$A2209)/1000","v":{"$error":"#NAME?"}},{"$f":"_xll.RiskData('Risk Summary'!K$48,$A2209)/1000","v":{"$error":"#NAME?"}},{"$f":"_xll.RiskData('Risk Summary'!L$48,$A2209)/1000","v":{"$error":"#NAME?"}},null,null,{"$f":"(_xll.RiskData(NR_to_Cash!C$18,$A2209))/1000","v":{"$error":"#NAME?"}},{"$f":"(_xll.RiskData(NR_to_Cash!D$18,$A2209))/1000","v":{"$error":"#NAME?"}},{"$f":"(_xll.RiskData(NR_to_Cash!E$18,$A2209))/1000","v":{"$error":"#NAME?"}}]
[2203,{"$f":"_xll.RiskData('Risk Summary'!J$48,$A2210)/1000","v":{"$error":"#NAME?"}},{"$f":"_xll.RiskData('Risk Summary'!K$48,$A2210)/1000","v":{"$error":"#NAME?"}},{"$f":"_xll.RiskData('Risk Summary'!L$48,$A2210)/1000","v":{"$error":"#NAME?"}},null,null,{"$f":"(_xll.RiskData(NR_to_Cash!C$18,$A2210))/1000","v":{"$error":"#NAME?"}},{"$f":"(_xll.RiskData(NR_to_Cash!D$18,$A2210))/1000","v":{"$error":"#NAME?"}},{"$f":"(_xll.RiskData(NR_to_Cash!E$18,$A2210))/1000","v":{"$error":"#NAME?"}}]
[2204,{"$f":"_xll.RiskData('Risk Summary'!J$48,$A2211)/1000","v":{"$error":"#NAME?"}},{"$f":"_xll.RiskData('Risk Summary'!K$48,$A2211)/1000","v":{"$error":"#NAME?"}},{"$f":"_xll.RiskData('Risk Summary'!L$48,$A2211)/1000","v":{"$error":"#NAME?"}},null,null,{"$f":"(_xll.RiskData(NR_to_Cash!C$18,$A2211))/1000","v":{"$error":"#NAME?"}},{"$f":"(_xll.RiskData(NR_to_Cash!D$18,$A2211))/1000","v":{"$error":"#NAME?"}},{"$f":"(_xll.RiskData(NR_to_Cash!E$18,$A2211))/1000","v":{"$error":"#NAME?"}}]
[2205,{"$f":"_xll.RiskData('Risk Summary'!J$48,$A2212)/1000","v":{"$error":"#NAME?"}},{"$f":"_xll.RiskData('Risk Summary'!K$48,$A2212)/1000","v":{"$error":"#NAME?"}},{"$f":"_xll.RiskData('Risk Summary'!L$48,$A2212)/1000","v":{"$error":"#NAME?"}},null,null,{"$f":"(_xll.RiskData(NR_to_Cash!C$18,$A2212))/1000","v":{"$error":"#NAME?"}},{"$f":"(_xll.RiskData(NR_to_Cash!D$18,$A2212))/1000","v":{"$error":"#NAME?"}},{"$f":"(_xll.RiskData(NR_to_Cash!E$18,$A2212))/1000","v":{"$error":"#NAME?"}}]
[2206,{"$f":"_xll.RiskData('Risk Summary'!J$48,$A2213)/1000","v":{"$error":"#NAME?"}},{"$f":"_xll.RiskData('Risk Summary'!K$48,$A2213)/1000","v":{"$error":"#NAME?"}},{"$f":"_xll.RiskData('Risk Summary'!L$48,$A2213)/1000","v":{"$error":"#NAME?"}},null,null,{"$f":"(_xll.RiskData(NR_to_Cash!C$18,$A2213))/1000","v":{"$error":"#NAME?"}},{"$f":"(_xll.RiskData(NR_to_Cash!D$18,$A2213))/1000","v":{"$error":"#NAME?"}},{"$f":"(_xll.RiskData(NR_to_Cash!E$18,$A2213))/1000","v":{"$error":"#NAME?"}}]
[2207,{"$f":"_xll.RiskData('Risk Summary'!J$48,$A2214)/1000","v":{"$error":"#NAME?"}},{"$f":"_xll.RiskData('Risk Summary'!K$48,$A2214)/1000","v":{"$error":"#NAME?"}},{"$f":"_xll.RiskData('Risk Summary'!L$48,$A2214)/1000","v":{"$error":"#NAME?"}},null,null,{"$f":"(_xll.RiskData(NR_to_Cash!C$18,$A2214))/1000","v":{"$error":"#NAME?"}},{"$f":"(_xll.RiskData(NR_to_Cash!D$18,$A2214))/1000","v":{"$error":"#NAME?"}},{"$f":"(_xll.RiskData(NR_to_Cash!E$18,$A2214))/1000","v":{"$error":"#NAME?"}}]
[2208,{"$f":"_xll.RiskData('Risk Summary'!J$48,$A2215)/1000","v":{"$error":"#NAME?"}},{"$f":"_xll.RiskData('Risk Summary'!K$48,$A2215)/1000","v":{"$error":"#NAME?"}},{"$f":"_xll.RiskData('Risk Summary'!L$48,$A2215)/1000","v":{"$error":"#NAME?"}},null,null,{"$f":"(_xll.RiskData(NR_to_Cash!C$18,$A2215))/1000","v":{"$error":"#NAME?"}},{"$f":"(_xll.RiskData(NR_to_Cash!D$18,$A2215))/1000","v":{"$error":"#NAME?"}},{"$f":"(_xll.RiskData(NR_to_Cash!E$18,$A2215))/1000","v":{"$error":"#NAME?"}}]
[2209,{"$f":"_xll.RiskData('Risk Summary'!J$48,$A2216)/1000","v":{"$error":"#NAME?"}},{"$f":"_xll.RiskData('Risk Summary'!K$48,$A2216)/1000","v":{"$error":"#NAME?"}},{"$f":"_xll.RiskData('Risk Summary'!L$48,$A2216)/1000","v":{"$error":"#NAME?"}},null,null,{"$f":"(_xll.RiskData(NR_to_Cash!C$18,$A2216))/1000","v":{"$error":"#NAME?"}},{"$f":"(_xll.RiskData(NR_to_Cash!D$18,$A2216))/1000","v":{"$error":"#NAME?"}},{"$f":"(_xll.RiskData(NR_to_Cash!E$18,$A2216))/1000","v":{"$error":"#NAME?"}}]
[2210,{"$f":"_xll.RiskData('Risk Summary'!J$48,$A2217)/1000","v":{"$error":"#NAME?"}},{"$f":"_xll.RiskData('Risk Summary'!K$48,$A2217)/1000","v":{"$error":"#NAME?"}},{"$f":"_xll.RiskData('Risk Summary'!L$48,$A2217)/1000","v":{"$error":"#NAME?"}},null,null,{"$f":"(_xll.RiskData(NR_to_Cash!C$18,$A2217))/1000","v":{"$error":"#NAME?"}},{"$f":"(_xll.RiskData(NR_to_Cash!D$18,$A2217))/1000","v":{"$error":"#NAME?"}},{"$f":"(_xll.RiskData(NR_to_Cash!E$18,$A2217))/1000","v":{"$error":"#NAME?"}}]
[2211,{"$f":"_xll.RiskData('Risk Summary'!J$48,$A2218)/1000","v":{"$error":"#NAME?"}},{"$f":"_xll.RiskData('Risk Summary'!K$48,$A2218)/1000","v":{"$error":"#NAME?"}},{"$f":"_xll.RiskData('Risk Summary'!L$48,$A2218)/1000","v":{"$error":"#NAME?"}},null,null,{"$f":"(_xll.RiskData(NR_to_Cash!C$18,$A2218))/1000","v":{"$error":"#NAME?"}},{"$f":"(_xll.RiskData(NR_to_Cash!D$18,$A2218))/1000","v":{"$error":"#NAME?"}},{"$f":"(_xll.RiskData(NR_to_Cash!E$18,$A2218))/1000","v":{"$error":"#NAME?"}}]
[2212,{"$f":"_xll.RiskData('Risk Summary'!J$48,$A2219)/1000","v":{"$error":"#NAME?"}},{"$f":"_xll.RiskData('Risk Summary'!K$48,$A2219)/1000","v":{"$error":"#NAME?"}},{"$f":"_xll.RiskData('Risk Summary'!L$48,$A2219)/1000","v":{"$error":"#NAME?"}},null,null,{"$f":"(_xll.RiskData(NR_to_Cash!C$18,$A2219))/1000","v":{"$error":"#NAME?"}},{"$f":"(_xll.RiskData(NR_to_Cash!D$18,$A2219))/1000","v":{"$error":"#NAME?"}},{"$f":"(_xll.RiskData(NR_to_Cash!E$18,$A2219))/1000","v":{"$error":"#NAME?"}}]
[2213,{"$f":"_xll.RiskData('Risk Summary'!J$48,$A2220)/1000","v":{"$error":"#NAME?"}},{"$f":"_xll.RiskData('Risk Summary'!K$48,$A2220)/1000","v":{"$error":"#NAME?"}},{"$f":"_xll.RiskData('Risk Summary'!L$48,$A2220)/1000","v":{"$error":"#NAME?"}},null,null,{"$f":"(_xll.RiskData(NR_to_Cash!C$18,$A2220))/1000","v":{"$error":"#NAME?"}},{"$f":"(_xll.RiskData(NR_to_Cash!D$18,$A2220))/1000","v":{"$error":"#NAME?"}},{"$f":"(_xll.RiskData(NR_to_Cash!E$18,$A2220))/1000","v":{"$error":"#NAME?"}}]
[2214,{"$f":"_xll.RiskData('Risk Summary'!J$48,$A2221)/1000","v":{"$error":"#NAME?"}},{"$f":"_xll.RiskData('Risk Summary'!K$48,$A2221)/1000","v":{"$error":"#NAME?"}},{"$f":"_xll.RiskData('Risk Summary'!L$48,$A2221)/1000","v":{"$error":"#NAME?"}},null,null,{"$f":"(_xll.RiskData(NR_to_Cash!C$18,$A2221))/1000","v":{"$error":"#NAME?"}},{"$f":"(_xll.RiskData(NR_to_Cash!D$18,$A2221))/1000","v":{"$error":"#NAME?"}},{"$f":"(_xll.RiskData(NR_to_Cash!E$18,$A2221))/1000","v":{"$error":"#NAME?"}}]
[2215,{"$f":"_xll.RiskData('Risk Summary'!J$48,$A2222)/1000","v":{"$error":"#NAME?"}},{"$f":"_xll.RiskData('Risk Summary'!K$48,$A2222)/1000","v":{"$error":"#NAME?"}},{"$f":"_xll.RiskData('Risk Summary'!L$48,$A2222)/1000","v":{"$error":"#NAME?"}},null,null,{"$f":"(_xll.RiskData(NR_to_Cash!C$18,$A2222))/1000","v":{"$error":"#NAME?"}},{"$f":"(_xll.RiskData(NR_to_Cash!D$18,$A2222))/1000","v":{"$error":"#NAME?"}},{"$f":"(_xll.RiskData(NR_to_Cash!E$18,$A2222))/1000","v":{"$error":"#NAME?"}}]
[2216,{"$f":"_xll.RiskData('Risk Summary'!J$48,$A2223)/1000","v":{"$error":"#NAME?"}},{"$f":"_xll.RiskData('Risk Summary'!K$48,$A2223)/1000","v":{"$error":"#NAME?"}},{"$f":"_xll.RiskData('Risk Summary'!L$48,$A2223)/1000","v":{"$error":"#NAME?"}},null,null,{"$f":"(_xll.RiskData(NR_to_Cash!C$18,$A2223))/1000","v":{"$error":"#NAME?"}},{"$f":"(_xll.RiskData(NR_to_Cash!D$18,$A2223))/1000","v":{"$error":"#NAME?"}},{"$f":"(_xll.RiskData(NR_to_Cash!E$18,$A2223))/1000","v":{"$error":"#NAME?"}}]
[2217,{"$f":"_xll.RiskData('Risk Summary'!J$48,$A2224)/1000","v":{"$error":"#NAME?"}},{"$f":"_xll.RiskData('Risk Summary'!K$48,$A2224)/1000","v":{"$error":"#NAME?"}},{"$f":"_xll.RiskData('Risk Summary'!L$48,$A2224)/1000","v":{"$error":"#NAME?"}},null,null,{"$f":"(_xll.RiskData(NR_to_Cash!C$18,$A2224))/1000","v":{"$error":"#NAME?"}},{"$f":"(_xll.RiskData(NR_to_Cash!D$18,$A2224))/1000","v":{"$error":"#NAME?"}},{"$f":"(_xll.RiskData(NR_to_Cash!E$18,$A2224))/1000","v":{"$error":"#NAME?"}}]
[2218,{"$f":"_xll.RiskData('Risk Summary'!J$48,$A2225)/1000","v":{"$error":"#NAME?"}},{"$f":"_xll.RiskData('Risk Summary'!K$48,$A2225)/1000","v":{"$error":"#NAME?"}},{"$f":"_xll.RiskData('Risk Summary'!L$48,$A2225)/1000","v":{"$error":"#NAME?"}},null,null,{"$f":"(_xll.RiskData(NR_to_Cash!C$18,$A2225))/1000","v":{"$error":"#NAME?"}},{"$f":"(_xll.RiskData(NR_to_Cash!D$18,$A2225))/1000","v":{"$error":"#NAME?"}},{"$f":"(_xll.RiskData(NR_to_Cash!E$18,$A2225))/1000","v":{"$error":"#NAME?"}}]
[2219,{"$f":"_xll.RiskData('Risk Summary'!J$48,$A2226)/1000","v":{"$error":"#NAME?"}},{"$f":"_xll.RiskData('Risk Summary'!K$48,$A2226)/1000","v":{"$error":"#NAME?"}},{"$f":"_xll.RiskData('Risk Summary'!L$48,$A2226)/1000","v":{"$error":"#NAME?"}},null,null,{"$f":"(_xll.RiskData(NR_to_Cash!C$18,$A2226))/1000","v":{"$error":"#NAME?"}},{"$f":"(_xll.RiskData(NR_to_Cash!D$18,$A2226))/1000","v":{"$error":"#NAME?"}},{"$f":"(_xll.RiskData(NR_to_Cash!E$18,$A2226))/1000","v":{"$error":"#NAME?"}}]
[2220,{"$f":"_xll.RiskData('Risk Summary'!J$48,$A2227)/1000","v":{"$error":"#NAME?"}},{"$f":"_xll.RiskData('Risk Summary'!K$48,$A2227)/1000","v":{"$error":"#NAME?"}},{"$f":"_xll.RiskData('Risk Summary'!L$48,$A2227)/1000","v":{"$error":"#NAME?"}},null,null,{"$f":"(_xll.RiskData(NR_to_Cash!C$18,$A2227))/1000","v":{"$error":"#NAME?"}},{"$f":"(_xll.RiskData(NR_to_Cash!D$18,$A2227))/1000","v":{"$error":"#NAME?"}},{"$f":"(_xll.RiskData(NR_to_Cash!E$18,$A2227))/1000","v":{"$error":"#NAME?"}}]
[2221,{"$f":"_xll.RiskData('Risk Summary'!J$48,$A2228)/1000","v":{"$error":"#NAME?"}},{"$f":"_xll.RiskData('Risk Summary'!K$48,$A2228)/1000","v":{"$error":"#NAME?"}},{"$f":"_xll.RiskData('Risk Summary'!L$48,$A2228)/1000","v":{"$error":"#NAME?"}},null,null,{"$f":"(_xll.RiskData(NR_to_Cash!C$18,$A2228))/1000","v":{"$error":"#NAME?"}},{"$f":"(_xll.RiskData(NR_to_Cash!D$18,$A2228))/1000","v":{"$error":"#NAME?"}},{"$f":"(_xll.RiskData(NR_to_Cash!E$18,$A2228))/1000","v":{"$error":"#NAME?"}}]
[2222,{"$f":"_xll.RiskData('Risk Summary'!J$48,$A2229)/1000","v":{"$error":"#NAME?"}},{"$f":"_xll.RiskData('Risk Summary'!K$48,$A2229)/1000","v":{"$error":"#NAME?"}},{"$f":"_xll.RiskData('Risk Summary'!L$48,$A2229)/1000","v":{"$error":"#NAME?"}},null,null,{"$f":"(_xll.RiskData(NR_to_Cash!C$18,$A2229))/1000","v":{"$error":"#NAME?"}},{"$f":"(_xll.RiskData(NR_to_Cash!D$18,$A2229))/1000","v":{"$error":"#NAME?"}},{"$f":"(_xll.RiskData(NR_to_Cash!E$18,$A2229))/1000","v":{"$error":"#NAME?"}}]
[2223,{"$f":"_xll.RiskData('Risk Summary'!J$48,$A2230)/1000","v":{"$error":"#NAME?"}},{"$f":"_xll.RiskData('Risk Summary'!K$48,$A2230)/1000","v":{"$error":"#NAME?"}},{"$f":"_xll.RiskData('Risk Summary'!L$48,$A2230)/1000","v":{"$error":"#NAME?"}},null,null,{"$f":"(_xll.RiskData(NR_to_Cash!C$18,$A2230))/1000","v":{"$error":"#NAME?"}},{"$f":"(_xll.RiskData(NR_to_Cash!D$18,$A2230))/1000","v":{"$error":"#NAME?"}},{"$f":"(_xll.RiskData(NR_to_Cash!E$18,$A2230))/1000","v":{"$error":"#NAME?"}}]
[2224,{"$f":"_xll.RiskData('Risk Summary'!J$48,$A2231)/1000","v":{"$error":"#NAME?"}},{"$f":"_xll.RiskData('Risk Summary'!K$48,$A2231)/1000","v":{"$error":"#NAME?"}},{"$f":"_xll.RiskData('Risk Summary'!L$48,$A2231)/1000","v":{"$error":"#NAME?"}},null,null,{"$f":"(_xll.RiskData(NR_to_Cash!C$18,$A2231))/1000","v":{"$error":"#NAME?"}},{"$f":"(_xll.RiskData(NR_to_Cash!D$18,$A2231))/1000","v":{"$error":"#NAME?"}},{"$f":"(_xll.RiskData(NR_to_Cash!E$18,$A2231))/1000","v":{"$error":"#NAME?"}}]
[2225,{"$f":"_xll.RiskData('Risk Summary'!J$48,$A2232)/1000","v":{"$error":"#NAME?"}},{"$f":"_xll.RiskData('Risk Summary'!K$48,$A2232)/1000","v":{"$error":"#NAME?"}},{"$f":"_xll.RiskData('Risk Summary'!L$48,$A2232)/1000","v":{"$error":"#NAME?"}},null,null,{"$f":"(_xll.RiskData(NR_to_Cash!C$18,$A2232))/1000","v":{"$error":"#NAME?"}},{"$f":"(_xll.RiskData(NR_to_Cash!D$18,$A2232))/1000","v":{"$error":"#NAME?"}},{"$f":"(_xll.RiskData(NR_to_Cash!E$18,$A2232))/1000","v":{"$error":"#NAME?"}}]
[2226,{"$f":"_xll.RiskData('Risk Summary'!J$48,$A2233)/1000","v":{"$error":"#NAME?"}},{"$f":"_xll.RiskData('Risk Summary'!K$48,$A2233)/1000","v":{"$error":"#NAME?"}},{"$f":"_xll.RiskData('Risk Summary'!L$48,$A2233)/1000","v":{"$error":"#NAME?"}},null,null,{"$f":"(_xll.RiskData(NR_to_Cash!C$18,$A2233))/1000","v":{"$error":"#NAME?"}},{"$f":"(_xll.RiskData(NR_to_Cash!D$18,$A2233))/1000","v":{"$error":"#NAME?"}},{"$f":"(_xll.RiskData(NR_to_Cash!E$18,$A2233))/1000","v":{"$error":"#NAME?"}}]
[2227,{"$f":"_xll.RiskData('Risk Summary'!J$48,$A2234)/1000","v":{"$error":"#NAME?"}},{"$f":"_xll.RiskData('Risk Summary'!K$48,$A2234)/1000","v":{"$error":"#NAME?"}},{"$f":"_xll.RiskData('Risk Summary'!L$48,$A2234)/1000","v":{"$error":"#NAME?"}},null,null,{"$f":"(_xll.RiskData(NR_to_Cash!C$18,$A2234))/1000","v":{"$error":"#NAME?"}},{"$f":"(_xll.RiskData(NR_to_Cash!D$18,$A2234))/1000","v":{"$error":"#NAME?"}},{"$f":"(_xll.RiskData(NR_to_Cash!E$18,$A2234))/1000","v":{"$error":"#NAME?"}}]
[2228,{"$f":"_xll.RiskData('Risk Summary'!J$48,$A2235)/1000","v":{"$error":"#NAME?"}},{"$f":"_xll.RiskData('Risk Summary'!K$48,$A2235)/1000","v":{"$error":"#NAME?"}},{"$f":"_xll.RiskData('Risk Summary'!L$48,$A2235)/1000","v":{"$error":"#NAME?"}},null,null,{"$f":"(_xll.RiskData(NR_to_Cash!C$18,$A2235))/1000","v":{"$error":"#NAME?"}},{"$f":"(_xll.RiskData(NR_to_Cash!D$18,$A2235))/1000","v":{"$error":"#NAME?"}},{"$f":"(_xll.RiskData(NR_to_Cash!E$18,$A2235))/1000","v":{"$error":"#NAME?"}}]
[2229,{"$f":"_xll.RiskData('Risk Summary'!J$48,$A2236)/1000","v":{"$error":"#NAME?"}},{"$f":"_xll.RiskData('Risk Summary'!K$48,$A2236)/1000","v":{"$error":"#NAME?"}},{"$f":"_xll.RiskData('Risk Summary'!L$48,$A2236)/1000","v":{"$error":"#NAME?"}},null,null,{"$f":"(_xll.RiskData(NR_to_Cash!C$18,$A2236))/1000","v":{"$error":"#NAME?"}},{"$f":"(_xll.RiskData(NR_to_Cash!D$18,$A2236))/1000","v":{"$error":"#NAME?"}},{"$f":"(_xll.RiskData(NR_to_Cash!E$18,$A2236))/1000","v":{"$error":"#NAME?"}}]
[2230,{"$f":"_xll.RiskData('Risk Summary'!J$48,$A2237)/1000","v":{"$error":"#NAME?"}},{"$f":"_xll.RiskData('Risk Summary'!K$48,$A2237)/1000","v":{"$error":"#NAME?"}},{"$f":"_xll.RiskData('Risk Summary'!L$48,$A2237)/1000","v":{"$error":"#NAME?"}},null,null,{"$f":"(_xll.RiskData(NR_to_Cash!C$18,$A2237))/1000","v":{"$error":"#NAME?"}},{"$f":"(_xll.RiskData(NR_to_Cash!D$18,$A2237))/1000","v":{"$error":"#NAME?"}},{"$f":"(_xll.RiskData(NR_to_Cash!E$18,$A2237))/1000","v":{"$error":"#NAME?"}}]
[2231,{"$f":"_xll.RiskData('Risk Summary'!J$48,$A2238)/1000","v":{"$error":"#NAME?"}},{"$f":"_xll.RiskData('Risk Summary'!K$48,$A2238)/1000","v":{"$error":"#NAME?"}},{"$f":"_xll.RiskData('Risk Summary'!L$48,$A2238)/1000","v":{"$error":"#NAME?"}},null,null,{"$f":"(_xll.RiskData(NR_to_Cash!C$18,$A2238))/1000","v":{"$error":"#NAME?"}},{"$f":"(_xll.RiskData(NR_to_Cash!D$18,$A2238))/1000","v":{"$error":"#NAME?"}},{"$f":"(_xll.RiskData(NR_to_Cash!E$18,$A2238))/1000","v":{"$error":"#NAME?"}}]
[2232,{"$f":"_xll.RiskData('Risk Summary'!J$48,$A2239)/1000","v":{"$error":"#NAME?"}},{"$f":"_xll.RiskData('Risk Summary'!K$48,$A2239)/1000","v":{"$error":"#NAME?"}},{"$f":"_xll.RiskData('Risk Summary'!L$48,$A2239)/1000","v":{"$error":"#NAME?"}},null,null,{"$f":"(_xll.RiskData(NR_to_Cash!C$18,$A2239))/1000","v":{"$error":"#NAME?"}},{"$f":"(_xll.RiskData(NR_to_Cash!D$18,$A2239))/1000","v":{"$error":"#NAME?"}},{"$f":"(_xll.RiskData(NR_to_Cash!E$18,$A2239))/1000","v":{"$error":"#NAME?"}}]
[2233,{"$f":"_xll.RiskData('Risk Summary'!J$48,$A2240)/1000","v":{"$error":"#NAME?"}},{"$f":"_xll.RiskData('Risk Summary'!K$48,$A2240)/1000","v":{"$error":"#NAME?"}},{"$f":"_xll.RiskData('Risk Summary'!L$48,$A2240)/1000","v":{"$error":"#NAME?"}},null,null,{"$f":"(_xll.RiskData(NR_to_Cash!C$18,$A2240))/1000","v":{"$error":"#NAME?"}},{"$f":"(_xll.RiskData(NR_to_Cash!D$18,$A2240))/1000","v":{"$error":"#NAME?"}},{"$f":"(_xll.RiskData(NR_to_Cash!E$18,$A2240))/1000","v":{"$error":"#NAME?"}}]
[2234,{"$f":"_xll.RiskData('Risk Summary'!J$48,$A2241)/1000","v":{"$error":"#NAME?"}},{"$f":"_xll.RiskData('Risk Summary'!K$48,$A2241)/1000","v":{"$error":"#NAME?"}},{"$f":"_xll.RiskData('Risk Summary'!L$48,$A2241)/1000","v":{"$error":"#NAME?"}},null,null,{"$f":"(_xll.RiskData(NR_to_Cash!C$18,$A2241))/1000","v":{"$error":"#NAME?"}},{"$f":"(_xll.RiskData(NR_to_Cash!D$18,$A2241))/1000","v":{"$error":"#NAME?"}},{"$f":"(_xll.RiskData(NR_to_Cash!E$18,$A2241))/1000","v":{"$error":"#NAME?"}}]
[2235,{"$f":"_xll.RiskData('Risk Summary'!J$48,$A2242)/1000","v":{"$error":"#NAME?"}},{"$f":"_xll.RiskData('Risk Summary'!K$48,$A2242)/1000","v":{"$error":"#NAME?"}},{"$f":"_xll.RiskData('Risk Summary'!L$48,$A2242)/1000","v":{"$error":"#NAME?"}},null,null,{"$f":"(_xll.RiskData(NR_to_Cash!C$18,$A2242))/1000","v":{"$error":"#NAME?"}},{"$f":"(_xll.RiskData(NR_to_Cash!D$18,$A2242))/1000","v":{"$error":"#NAME?"}},{"$f":"(_xll.RiskData(NR_to_Cash!E$18,$A2242))/1000","v":{"$error":"#NAME?"}}]
[2236,{"$f":"_xll.RiskData('Risk Summary'!J$48,$A2243)/1000","v":{"$error":"#NAME?"}},{"$f":"_xll.RiskData('Risk Summary'!K$48,$A2243)/1000","v":{"$error":"#NAME?"}},{"$f":"_xll.RiskData('Risk Summary'!L$48,$A2243)/1000","v":{"$error":"#NAME?"}},null,null,{"$f":"(_xll.RiskData(NR_to_Cash!C$18,$A2243))/1000","v":{"$error":"#NAME?"}},{"$f":"(_xll.RiskData(NR_to_Cash!D$18,$A2243))/1000","v":{"$error":"#NAME?"}},{"$f":"(_xll.RiskData(NR_to_Cash!E$18,$A2243))/1000","v":{"$error":"#NAME?"}}]
[2237,{"$f":"_xll.RiskData('Risk Summary'!J$48,$A2244)/1000","v":{"$error":"#NAME?"}},{"$f":"_xll.RiskData('Risk Summary'!K$48,$A2244)/1000","v":{"$error":"#NAME?"}},{"$f":"_xll.RiskData('Risk Summary'!L$48,$A2244)/1000","v":{"$error":"#NAME?"}},null,null,{"$f":"(_xll.RiskData(NR_to_Cash!C$18,$A2244))/1000","v":{"$error":"#NAME?"}},{"$f":"(_xll.RiskData(NR_to_Cash!D$18,$A2244))/1000","v":{"$error":"#NAME?"}},{"$f":"(_xll.RiskData(NR_to_Cash!E$18,$A2244))/1000","v":{"$error":"#NAME?"}}]
[2238,{"$f":"_xll.RiskData('Risk Summary'!J$48,$A2245)/1000","v":{"$error":"#NAME?"}},{"$f":"_xll.RiskData('Risk Summary'!K$48,$A2245)/1000","v":{"$error":"#NAME?"}},{"$f":"_xll.RiskData('Risk Summary'!L$48,$A2245)/1000","v":{"$error":"#NAME?"}},null,null,{"$f":"(_xll.RiskData(NR_to_Cash!C$18,$A2245))/1000","v":{"$error":"#NAME?"}},{"$f":"(_xll.RiskData(NR_to_Cash!D$18,$A2245))/1000","v":{"$error":"#NAME?"}},{"$f":"(_xll.RiskData(NR_to_Cash!E$18,$A2245))/1000","v":{"$error":"#NAME?"}}]
[2239,{"$f":"_xll.RiskData('Risk Summary'!J$48,$A2246)/1000","v":{"$error":"#NAME?"}},{"$f":"_xll.RiskData('Risk Summary'!K$48,$A2246)/1000","v":{"$error":"#NAME?"}},{"$f":"_xll.RiskData('Risk Summary'!L$48,$A2246)/1000","v":{"$error":"#NAME?"}},null,null,{"$f":"(_xll.RiskData(NR_to_Cash!C$18,$A2246))/1000","v":{"$error":"#NAME?"}},{"$f":"(_xll.RiskData(NR_to_Cash!D$18,$A2246))/1000","v":{"$error":"#NAME?"}},{"$f":"(_xll.RiskData(NR_to_Cash!E$18,$A2246))/1000","v":{"$error":"#NAME?"}}]
[2240,{"$f":"_xll.RiskData('Risk Summary'!J$48,$A2247)/1000","v":{"$error":"#NAME?"}},{"$f":"_xll.RiskData('Risk Summary'!K$48,$A2247)/1000","v":{"$error":"#NAME?"}},{"$f":"_xll.RiskData('Risk Summary'!L$48,$A2247)/1000","v":{"$error":"#NAME?"}},null,null,{"$f":"(_xll.RiskData(NR_to_Cash!C$18,$A2247))/1000","v":{"$error":"#NAME?"}},{"$f":"(_xll.RiskData(NR_to_Cash!D$18,$A2247))/1000","v":{"$error":"#NAME?"}},{"$f":"(_xll.RiskData(NR_to_Cash!E$18,$A2247))/1000","v":{"$error":"#NAME?"}}]
[2241,{"$f":"_xll.RiskData('Risk Summary'!J$48,$A2248)/1000","v":{"$error":"#NAME?"}},{"$f":"_xll.RiskData('Risk Summary'!K$48,$A2248)/1000","v":{"$error":"#NAME?"}},{"$f":"_xll.RiskData('Risk Summary'!L$48,$A2248)/1000","v":{"$error":"#NAME?"}},null,null,{"$f":"(_xll.RiskData(NR_to_Cash!C$18,$A2248))/1000","v":{"$error":"#NAME?"}},{"$f":"(_xll.RiskData(NR_to_Cash!D$18,$A2248))/1000","v":{"$error":"#NAME?"}},{"$f":"(_xll.RiskData(NR_to_Cash!E$18,$A2248))/1000","v":{"$error":"#NAME?"}}]
[2242,{"$f":"_xll.RiskData('Risk Summary'!J$48,$A2249)/1000","v":{"$error":"#NAME?"}},{"$f":"_xll.RiskData('Risk Summary'!K$48,$A2249)/1000","v":{"$error":"#NAME?"}},{"$f":"_xll.RiskData('Risk Summary'!L$48,$A2249)/1000","v":{"$error":"#NAME?"}},null,null,{"$f":"(_xll.RiskData(NR_to_Cash!C$18,$A2249))/1000","v":{"$error":"#NAME?"}},{"$f":"(_xll.RiskData(NR_to_Cash!D$18,$A2249))/1000","v":{"$error":"#NAME?"}},{"$f":"(_xll.RiskData(NR_to_Cash!E$18,$A2249))/1000","v":{"$error":"#NAME?"}}]
[2243,{"$f":"_xll.RiskData('Risk Summary'!J$48,$A2250)/1000","v":{"$error":"#NAME?"}},{"$f":"_xll.RiskData('Risk Summary'!K$48,$A2250)/1000","v":{"$error":"#NAME?"}},{"$f":"_xll.RiskData('Risk Summary'!L$48,$A2250)/1000","v":{"$error":"#NAME?"}},null,null,{"$f":"(_xll.RiskData(NR_to_Cash!C$18,$A2250))/1000","v":{"$error":"#NAME?"}},{"$f":"(_xll.RiskData(NR_to_Cash!D$18,$A2250))/1000","v":{"$error":"#NAME?"}},{"$f":"(_xll.RiskData(NR_to_Cash!E$18,$A2250))/1000","v":{"$error":"#NAME?"}}]
[2244,{"$f":"_xll.RiskData('Risk Summary'!J$48,$A2251)/1000","v":{"$error":"#NAME?"}},{"$f":"_xll.RiskData('Risk Summary'!K$48,$A2251)/1000","v":{"$error":"#NAME?"}},{"$f":"_xll.RiskData('Risk Summary'!L$48,$A2251)/1000","v":{"$error":"#NAME?"}},null,null,{"$f":"(_xll.RiskData(NR_to_Cash!C$18,$A2251))/1000","v":{"$error":"#NAME?"}},{"$f":"(_xll.RiskData(NR_to_Cash!D$18,$A2251))/1000","v":{"$error":"#NAME?"}},{"$f":"(_xll.RiskData(NR_to_Cash!E$18,$A2251))/1000","v":{"$error":"#NAME?"}}]
[2245,{"$f":"_xll.RiskData('Risk Summary'!J$48,$A2252)/1000","v":{"$error":"#NAME?"}},{"$f":"_xll.RiskData('Risk Summary'!K$48,$A2252)/1000","v":{"$error":"#NAME?"}},{"$f":"_xll.RiskData('Risk Summary'!L$48,$A2252)/1000","v":{"$error":"#NAME?"}},null,null,{"$f":"(_xll.RiskData(NR_to_Cash!C$18,$A2252))/1000","v":{"$error":"#NAME?"}},{"$f":"(_xll.RiskData(NR_to_Cash!D$18,$A2252))/1000","v":{"$error":"#NAME?"}},{"$f":"(_xll.RiskData(NR_to_Cash!E$18,$A2252))/1000","v":{"$error":"#NAME?"}}]
[2246,{"$f":"_xll.RiskData('Risk Summary'!J$48,$A2253)/1000","v":{"$error":"#NAME?"}},{"$f":"_xll.RiskData('Risk Summary'!K$48,$A2253)/1000","v":{"$error":"#NAME?"}},{"$f":"_xll.RiskData('Risk Summary'!L$48,$A2253)/1000","v":{"$error":"#NAME?"}},null,null,{"$f":"(_xll.RiskData(NR_to_Cash!C$18,$A2253))/1000","v":{"$error":"#NAME?"}},{"$f":"(_xll.RiskData(NR_to_Cash!D$18,$A2253))/1000","v":{"$error":"#NAME?"}},{"$f":"(_xll.RiskData(NR_to_Cash!E$18,$A2253))/1000","v":{"$error":"#NAME?"}}]
[2247,{"$f":"_xll.RiskData('Risk Summary'!J$48,$A2254)/1000","v":{"$error":"#NAME?"}},{"$f":"_xll.RiskData('Risk Summary'!K$48,$A2254)/1000","v":{"$error":"#NAME?"}},{"$f":"_xll.RiskData('Risk Summary'!L$48,$A2254)/1000","v":{"$error":"#NAME?"}},null,null,{"$f":"(_xll.RiskData(NR_to_Cash!C$18,$A2254))/1000","v":{"$error":"#NAME?"}},{"$f":"(_xll.RiskData(NR_to_Cash!D$18,$A2254))/1000","v":{"$error":"#NAME?"}},{"$f":"(_xll.RiskData(NR_to_Cash!E$18,$A2254))/1000","v":{"$error":"#NAME?"}}]
[2248,{"$f":"_xll.RiskData('Risk Summary'!J$48,$A2255)/1000","v":{"$error":"#NAME?"}},{"$f":"_xll.RiskData('Risk Summary'!K$48,$A2255)/1000","v":{"$error":"#NAME?"}},{"$f":"_xll.RiskData('Risk Summary'!L$48,$A2255)/1000","v":{"$error":"#NAME?"}},null,null,{"$f":"(_xll.RiskData(NR_to_Cash!C$18,$A2255))/1000","v":{"$error":"#NAME?"}},{"$f":"(_xll.RiskData(NR_to_Cash!D$18,$A2255))/1000","v":{"$error":"#NAME?"}},{"$f":"(_xll.RiskData(NR_to_Cash!E$18,$A2255))/1000","v":{"$error":"#NAME?"}}]
[2249,{"$f":"_xll.RiskData('Risk Summary'!J$48,$A2256)/1000","v":{"$error":"#NAME?"}},{"$f":"_xll.RiskData('Risk Summary'!K$48,$A2256)/1000","v":{"$error":"#NAME?"}},{"$f":"_xll.RiskData('Risk Summary'!L$48,$A2256)/1000","v":{"$error":"#NAME?"}},null,null,{"$f":"(_xll.RiskData(NR_to_Cash!C$18,$A2256))/1000","v":{"$error":"#NAME?"}},{"$f":"(_xll.RiskData(NR_to_Cash!D$18,$A2256))/1000","v":{"$error":"#NAME?"}},{"$f":"(_xll.RiskData(NR_to_Cash!E$18,$A2256))/1000","v":{"$error":"#NAME?"}}]
[2250,{"$f":"_xll.RiskData('Risk Summary'!J$48,$A2257)/1000","v":{"$error":"#NAME?"}},{"$f":"_xll.RiskData('Risk Summary'!K$48,$A2257)/1000","v":{"$error":"#NAME?"}},{"$f":"_xll.RiskData('Risk Summary'!L$48,$A2257)/1000","v":{"$error":"#NAME?"}},null,null,{"$f":"(_xll.RiskData(NR_to_Cash!C$18,$A2257))/1000","v":{"$error":"#NAME?"}},{"$f":"(_xll.RiskData(NR_to_Cash!D$18,$A2257))/1000","v":{"$error":"#NAME?"}},{"$f":"(_xll.RiskData(NR_to_Cash!E$18,$A2257))/1000","v":{"$error":"#NAME?"}}]
[2251,{"$f":"_xll.RiskData('Risk Summary'!J$48,$A2258)/1000","v":{"$error":"#NAME?"}},{"$f":"_xll.RiskData('Risk Summary'!K$48,$A2258)/1000","v":{"$error":"#NAME?"}},{"$f":"_xll.RiskData('Risk Summary'!L$48,$A2258)/1000","v":{"$error":"#NAME?"}},null,null,{"$f":"(_xll.RiskData(NR_to_Cash!C$18,$A2258))/1000","v":{"$error":"#NAME?"}},{"$f":"(_xll.RiskData(NR_to_Cash!D$18,$A2258))/1000","v":{"$error":"#NAME?"}},{"$f":"(_xll.RiskData(NR_to_Cash!E$18,$A2258))/1000","v":{"$error":"#NAME?"}}]
[2252,{"$f":"_xll.RiskData('Risk Summary'!J$48,$A2259)/1000","v":{"$error":"#NAME?"}},{"$f":"_xll.RiskData('Risk Summary'!K$48,$A2259)/1000","v":{"$error":"#NAME?"}},{"$f":"_xll.RiskData('Risk Summary'!L$48,$A2259)/1000","v":{"$error":"#NAME?"}},null,null,{"$f":"(_xll.RiskData(NR_to_Cash!C$18,$A2259))/1000","v":{"$error":"#NAME?"}},{"$f":"(_xll.RiskData(NR_to_Cash!D$18,$A2259))/1000","v":{"$error":"#NAME?"}},{"$f":"(_xll.RiskData(NR_to_Cash!E$18,$A2259))/1000","v":{"$error":"#NAME?"}}]
[2253,{"$f":"_xll.RiskData('Risk Summary'!J$48,$A2260)/1000","v":{"$error":"#NAME?"}},{"$f":"_xll.RiskData('Risk Summary'!K$48,$A2260)/1000","v":{"$error":"#NAME?"}},{"$f":"_xll.RiskData('Risk Summary'!L$48,$A2260)/1000","v":{"$error":"#NAME?"}},null,null,{"$f":"(_xll.RiskData(NR_to_Cash!C$18,$A2260))/1000","v":{"$error":"#NAME?"}},{"$f":"(_xll.RiskData(NR_to_Cash!D$18,$A2260))/1000","v":{"$error":"#NAME?"}},{"$f":"(_xll.RiskData(NR_to_Cash!E$18,$A2260))/1000","v":{"$error":"#NAME?"}}]
[2254,{"$f":"_xll.RiskData('Risk Summary'!J$48,$A2261)/1000","v":{"$error":"#NAME?"}},{"$f":"_xll.RiskData('Risk Summary'!K$48,$A2261)/1000","v":{"$error":"#NAME?"}},{"$f":"_xll.RiskData('Risk Summary'!L$48,$A2261)/1000","v":{"$error":"#NAME?"}},null,null,{"$f":"(_xll.RiskData(NR_to_Cash!C$18,$A2261))/1000","v":{"$error":"#NAME?"}},{"$f":"(_xll.RiskData(NR_to_Cash!D$18,$A2261))/1000","v":{"$error":"#NAME?"}},{"$f":"(_xll.RiskData(NR_to_Cash!E$18,$A2261))/1000","v":{"$error":"#NAME?"}}]
[2255,{"$f":"_xll.RiskData('Risk Summary'!J$48,$A2262)/1000","v":{"$error":"#NAME?"}},{"$f":"_xll.RiskData('Risk Summary'!K$48,$A2262)/1000","v":{"$error":"#NAME?"}},{"$f":"_xll.RiskData('Risk Summary'!L$48,$A2262)/1000","v":{"$error":"#NAME?"}},null,null,{"$f":"(_xll.RiskData(NR_to_Cash!C$18,$A2262))/1000","v":{"$error":"#NAME?"}},{"$f":"(_xll.RiskData(NR_to_Cash!D$18,$A2262))/1000","v":{"$error":"#NAME?"}},{"$f":"(_xll.RiskData(NR_to_Cash!E$18,$A2262))/1000","v":{"$error":"#NAME?"}}]
[2256,{"$f":"_xll.RiskData('Risk Summary'!J$48,$A2263)/1000","v":{"$error":"#NAME?"}},{"$f":"_xll.RiskData('Risk Summary'!K$48,$A2263)/1000","v":{"$error":"#NAME?"}},{"$f":"_xll.RiskData('Risk Summary'!L$48,$A2263)/1000","v":{"$error":"#NAME?"}},null,null,{"$f":"(_xll.RiskData(NR_to_Cash!C$18,$A2263))/1000","v":{"$error":"#NAME?"}},{"$f":"(_xll.RiskData(NR_to_Cash!D$18,$A2263))/1000","v":{"$error":"#NAME?"}},{"$f":"(_xll.RiskData(NR_to_Cash!E$18,$A2263))/1000","v":{"$error":"#NAME?"}}]
[2257,{"$f":"_xll.RiskData('Risk Summary'!J$48,$A2264)/1000","v":{"$error":"#NAME?"}},{"$f":"_xll.RiskData('Risk Summary'!K$48,$A2264)/1000","v":{"$error":"#NAME?"}},{"$f":"_xll.RiskData('Risk Summary'!L$48,$A2264)/1000","v":{"$error":"#NAME?"}},null,null,{"$f":"(_xll.RiskData(NR_to_Cash!C$18,$A2264))/1000","v":{"$error":"#NAME?"}},{"$f":"(_xll.RiskData(NR_to_Cash!D$18,$A2264))/1000","v":{"$error":"#NAME?"}},{"$f":"(_xll.RiskData(NR_to_Cash!E$18,$A2264))/1000","v":{"$error":"#NAME?"}}]
[2258,{"$f":"_xll.RiskData('Risk Summary'!J$48,$A2265)/1000","v":{"$error":"#NAME?"}},{"$f":"_xll.RiskData('Risk Summary'!K$48,$A2265)/1000","v":{"$error":"#NAME?"}},{"$f":"_xll.RiskData('Risk Summary'!L$48,$A2265)/1000","v":{"$error":"#NAME?"}},null,null,{"$f":"(_xll.RiskData(NR_to_Cash!C$18,$A2265))/1000","v":{"$error":"#NAME?"}},{"$f":"(_xll.RiskData(NR_to_Cash!D$18,$A2265))/1000","v":{"$error":"#NAME?"}},{"$f":"(_xll.RiskData(NR_to_Cash!E$18,$A2265))/1000","v":{"$error":"#NAME?"}}]
[2259,{"$f":"_xll.RiskData('Risk Summary'!J$48,$A2266)/1000","v":{"$error":"#NAME?"}},{"$f":"_xll.RiskData('Risk Summary'!K$48,$A2266)/1000","v":{"$error":"#NAME?"}},{"$f":"_xll.RiskData('Risk Summary'!L$48,$A2266)/1000","v":{"$error":"#NAME?"}},null,null,{"$f":"(_xll.RiskData(NR_to_Cash!C$18,$A2266))/1000","v":{"$error":"#NAME?"}},{"$f":"(_xll.RiskData(NR_to_Cash!D$18,$A2266))/1000","v":{"$error":"#NAME?"}},{"$f":"(_xll.RiskData(NR_to_Cash!E$18,$A2266))/1000","v":{"$error":"#NAME?"}}]
[2260,{"$f":"_xll.RiskData('Risk Summary'!J$48,$A2267)/1000","v":{"$error":"#NAME?"}},{"$f":"_xll.RiskData('Risk Summary'!K$48,$A2267)/1000","v":{"$error":"#NAME?"}},{"$f":"_xll.RiskData('Risk Summary'!L$48,$A2267)/1000","v":{"$error":"#NAME?"}},null,null,{"$f":"(_xll.RiskData(NR_to_Cash!C$18,$A2267))/1000","v":{"$error":"#NAME?"}},{"$f":"(_xll.RiskData(NR_to_Cash!D$18,$A2267))/1000","v":{"$error":"#NAME?"}},{"$f":"(_xll.RiskData(NR_to_Cash!E$18,$A2267))/1000","v":{"$error":"#NAME?"}}]
[2261,{"$f":"_xll.RiskData('Risk Summary'!J$48,$A2268)/1000","v":{"$error":"#NAME?"}},{"$f":"_xll.RiskData('Risk Summary'!K$48,$A2268)/1000","v":{"$error":"#NAME?"}},{"$f":"_xll.RiskData('Risk Summary'!L$48,$A2268)/1000","v":{"$error":"#NAME?"}},null,null,{"$f":"(_xll.RiskData(NR_to_Cash!C$18,$A2268))/1000","v":{"$error":"#NAME?"}},{"$f":"(_xll.RiskData(NR_to_Cash!D$18,$A2268))/1000","v":{"$error":"#NAME?"}},{"$f":"(_xll.RiskData(NR_to_Cash!E$18,$A2268))/1000","v":{"$error":"#NAME?"}}]
[2262,{"$f":"_xll.RiskData('Risk Summary'!J$48,$A2269)/1000","v":{"$error":"#NAME?"}},{"$f":"_xll.RiskData('Risk Summary'!K$48,$A2269)/1000","v":{"$error":"#NAME?"}},{"$f":"_xll.RiskData('Risk Summary'!L$48,$A2269)/1000","v":{"$error":"#NAME?"}},null,null,{"$f":"(_xll.RiskData(NR_to_Cash!C$18,$A2269))/1000","v":{"$error":"#NAME?"}},{"$f":"(_xll.RiskData(NR_to_Cash!D$18,$A2269))/1000","v":{"$error":"#NAME?"}},{"$f":"(_xll.RiskData(NR_to_Cash!E$18,$A2269))/1000","v":{"$error":"#NAME?"}}]
[2263,{"$f":"_xll.RiskData('Risk Summary'!J$48,$A2270)/1000","v":{"$error":"#NAME?"}},{"$f":"_xll.RiskData('Risk Summary'!K$48,$A2270)/1000","v":{"$error":"#NAME?"}},{"$f":"_xll.RiskData('Risk Summary'!L$48,$A2270)/1000","v":{"$error":"#NAME?"}},null,null,{"$f":"(_xll.RiskData(NR_to_Cash!C$18,$A2270))/1000","v":{"$error":"#NAME?"}},{"$f":"(_xll.RiskData(NR_to_Cash!D$18,$A2270))/1000","v":{"$error":"#NAME?"}},{"$f":"(_xll.RiskData(NR_to_Cash!E$18,$A2270))/1000","v":{"$error":"#NAME?"}}]
[2264,{"$f":"_xll.RiskData('Risk Summary'!J$48,$A2271)/1000","v":{"$error":"#NAME?"}},{"$f":"_xll.RiskData('Risk Summary'!K$48,$A2271)/1000","v":{"$error":"#NAME?"}},{"$f":"_xll.RiskData('Risk Summary'!L$48,$A2271)/1000","v":{"$error":"#NAME?"}},null,null,{"$f":"(_xll.RiskData(NR_to_Cash!C$18,$A2271))/1000","v":{"$error":"#NAME?"}},{"$f":"(_xll.RiskData(NR_to_Cash!D$18,$A2271))/1000","v":{"$error":"#NAME?"}},{"$f":"(_xll.RiskData(NR_to_Cash!E$18,$A2271))/1000","v":{"$error":"#NAME?"}}]
[2265,{"$f":"_xll.RiskData('Risk Summary'!J$48,$A2272)/1000","v":{"$error":"#NAME?"}},{"$f":"_xll.RiskData('Risk Summary'!K$48,$A2272)/1000","v":{"$error":"#NAME?"}},{"$f":"_xll.RiskData('Risk Summary'!L$48,$A2272)/1000","v":{"$error":"#NAME?"}},null,null,{"$f":"(_xll.RiskData(NR_to_Cash!C$18,$A2272))/1000","v":{"$error":"#NAME?"}},{"$f":"(_xll.RiskData(NR_to_Cash!D$18,$A2272))/1000","v":{"$error":"#NAME?"}},{"$f":"(_xll.RiskData(NR_to_Cash!E$18,$A2272))/1000","v":{"$error":"#NAME?"}}]
[2266,{"$f":"_xll.RiskData('Risk Summary'!J$48,$A2273)/1000","v":{"$error":"#NAME?"}},{"$f":"_xll.RiskData('Risk Summary'!K$48,$A2273)/1000","v":{"$error":"#NAME?"}},{"$f":"_xll.RiskData('Risk Summary'!L$48,$A2273)/1000","v":{"$error":"#NAME?"}},null,null,{"$f":"(_xll.RiskData(NR_to_Cash!C$18,$A2273))/1000","v":{"$error":"#NAME?"}},{"$f":"(_xll.RiskData(NR_to_Cash!D$18,$A2273))/1000","v":{"$error":"#NAME?"}},{"$f":"(_xll.RiskData(NR_to_Cash!E$18,$A2273))/1000","v":{"$error":"#NAME?"}}]
[2267,{"$f":"_xll.RiskData('Risk Summary'!J$48,$A2274)/1000","v":{"$error":"#NAME?"}},{"$f":"_xll.RiskData('Risk Summary'!K$48,$A2274)/1000","v":{"$error":"#NAME?"}},{"$f":"_xll.RiskData('Risk Summary'!L$48,$A2274)/1000","v":{"$error":"#NAME?"}},null,null,{"$f":"(_xll.RiskData(NR_to_Cash!C$18,$A2274))/1000","v":{"$error":"#NAME?"}},{"$f":"(_xll.RiskData(NR_to_Cash!D$18,$A2274))/1000","v":{"$error":"#NAME?"}},{"$f":"(_xll.RiskData(NR_to_Cash!E$18,$A2274))/1000","v":{"$error":"#NAME?"}}]
[2268,{"$f":"_xll.RiskData('Risk Summary'!J$48,$A2275)/1000","v":{"$error":"#NAME?"}},{"$f":"_xll.RiskData('Risk Summary'!K$48,$A2275)/1000","v":{"$error":"#NAME?"}},{"$f":"_xll.RiskData('Risk Summary'!L$48,$A2275)/1000","v":{"$error":"#NAME?"}},null,null,{"$f":"(_xll.RiskData(NR_to_Cash!C$18,$A2275))/1000","v":{"$error":"#NAME?"}},{"$f":"(_xll.RiskData(NR_to_Cash!D$18,$A2275))/1000","v":{"$error":"#NAME?"}},{"$f":"(_xll.RiskData(NR_to_Cash!E$18,$A2275))/1000","v":{"$error":"#NAME?"}}]
[2269,{"$f":"_xll.RiskData('Risk Summary'!J$48,$A2276)/1000","v":{"$error":"#NAME?"}},{"$f":"_xll.RiskData('Risk Summary'!K$48,$A2276)/1000","v":{"$error":"#NAME?"}},{"$f":"_xll.RiskData('Risk Summary'!L$48,$A2276)/1000","v":{"$error":"#NAME?"}},null,null,{"$f":"(_xll.RiskData(NR_to_Cash!C$18,$A2276))/1000","v":{"$error":"#NAME?"}},{"$f":"(_xll.RiskData(NR_to_Cash!D$18,$A2276))/1000","v":{"$error":"#NAME?"}},{"$f":"(_xll.RiskData(NR_to_Cash!E$18,$A2276))/1000","v":{"$error":"#NAME?"}}]
[2270,{"$f":"_xll.RiskData('Risk Summary'!J$48,$A2277)/1000","v":{"$error":"#NAME?"}},{"$f":"_xll.RiskData('Risk Summary'!K$48,$A2277)/1000","v":{"$error":"#NAME?"}},{"$f":"_xll.RiskData('Risk Summary'!L$48,$A2277)/1000","v":{"$error":"#NAME?"}},null,null,{"$f":"(_xll.RiskData(NR_to_Cash!C$18,$A2277))/1000","v":{"$error":"#NAME?"}},{"$f":"(_xll.RiskData(NR_to_Cash!D$18,$A2277))/1000","v":{"$error":"#NAME?"}},{"$f":"(_xll.RiskData(NR_to_Cash!E$18,$A2277))/1000","v":{"$error":"#NAME?"}}]
[2271,{"$f":"_xll.RiskData('Risk Summary'!J$48,$A2278)/1000","v":{"$error":"#NAME?"}},{"$f":"_xll.RiskData('Risk Summary'!K$48,$A2278)/1000","v":{"$error":"#NAME?"}},{"$f":"_xll.RiskData('Risk Summary'!L$48,$A2278)/1000","v":{"$error":"#NAME?"}},null,null,{"$f":"(_xll.RiskData(NR_to_Cash!C$18,$A2278))/1000","v":{"$error":"#NAME?"}},{"$f":"(_xll.RiskData(NR_to_Cash!D$18,$A2278))/1000","v":{"$error":"#NAME?"}},{"$f":"(_xll.RiskData(NR_to_Cash!E$18,$A2278))/1000","v":{"$error":"#NAME?"}}]
[2272,{"$f":"_xll.RiskData('Risk Summary'!J$48,$A2279)/1000","v":{"$error":"#NAME?"}},{"$f":"_xll.RiskData('Risk Summary'!K$48,$A2279)/1000","v":{"$error":"#NAME?"}},{"$f":"_xll.RiskData('Risk Summary'!L$48,$A2279)/1000","v":{"$error":"#NAME?"}},null,null,{"$f":"(_xll.RiskData(NR_to_Cash!C$18,$A2279))/1000","v":{"$error":"#NAME?"}},{"$f":"(_xll.RiskData(NR_to_Cash!D$18,$A2279))/1000","v":{"$error":"#NAME?"}},{"$f":"(_xll.RiskData(NR_to_Cash!E$18,$A2279))/1000","v":{"$error":"#NAME?"}}]
[2273,{"$f":"_xll.RiskData('Risk Summary'!J$48,$A2280)/1000","v":{"$error":"#NAME?"}},{"$f":"_xll.RiskData('Risk Summary'!K$48,$A2280)/1000","v":{"$error":"#NAME?"}},{"$f":"_xll.RiskData('Risk Summary'!L$48,$A2280)/1000","v":{"$error":"#NAME?"}},null,null,{"$f":"(_xll.RiskData(NR_to_Cash!C$18,$A2280))/1000","v":{"$error":"#NAME?"}},{"$f":"(_xll.RiskData(NR_to_Cash!D$18,$A2280))/1000","v":{"$error":"#NAME?"}},{"$f":"(_xll.RiskData(NR_to_Cash!E$18,$A2280))/1000","v":{"$error":"#NAME?"}}]
[2274,{"$f":"_xll.RiskData('Risk Summary'!J$48,$A2281)/1000","v":{"$error":"#NAME?"}},{"$f":"_xll.RiskData('Risk Summary'!K$48,$A2281)/1000","v":{"$error":"#NAME?"}},{"$f":"_xll.RiskData('Risk Summary'!L$48,$A2281)/1000","v":{"$error":"#NAME?"}},null,null,{"$f":"(_xll.RiskData(NR_to_Cash!C$18,$A2281))/1000","v":{"$error":"#NAME?"}},{"$f":"(_xll.RiskData(NR_to_Cash!D$18,$A2281))/1000","v":{"$error":"#NAME?"}},{"$f":"(_xll.RiskData(NR_to_Cash!E$18,$A2281))/1000","v":{"$error":"#NAME?"}}]
[2275,{"$f":"_xll.RiskData('Risk Summary'!J$48,$A2282)/1000","v":{"$error":"#NAME?"}},{"$f":"_xll.RiskData('Risk Summary'!K$48,$A2282)/1000","v":{"$error":"#NAME?"}},{"$f":"_xll.RiskData('Risk Summary'!L$48,$A2282)/1000","v":{"$error":"#NAME?"}},null,null,{"$f":"(_xll.RiskData(NR_to_Cash!C$18,$A2282))/1000","v":{"$error":"#NAME?"}},{"$f":"(_xll.RiskData(NR_to_Cash!D$18,$A2282))/1000","v":{"$error":"#NAME?"}},{"$f":"(_xll.RiskData(NR_to_Cash!E$18,$A2282))/1000","v":{"$error":"#NAME?"}}]
[2276,{"$f":"_xll.RiskData('Risk Summary'!J$48,$A2283)/1000","v":{"$error":"#NAME?"}},{"$f":"_xll.RiskData('Risk Summary'!K$48,$A2283)/1000","v":{"$error":"#NAME?"}},{"$f":"_xll.RiskData('Risk Summary'!L$48,$A2283)/1000","v":{"$error":"#NAME?"}},null,null,{"$f":"(_xll.RiskData(NR_to_Cash!C$18,$A2283))/1000","v":{"$error":"#NAME?"}},{"$f":"(_xll.RiskData(NR_to_Cash!D$18,$A2283))/1000","v":{"$error":"#NAME?"}},{"$f":"(_xll.RiskData(NR_to_Cash!E$18,$A2283))/1000","v":{"$error":"#NAME?"}}]
[2277,{"$f":"_xll.RiskData('Risk Summary'!J$48,$A2284)/1000","v":{"$error":"#NAME?"}},{"$f":"_xll.RiskData('Risk Summary'!K$48,$A2284)/1000","v":{"$error":"#NAME?"}},{"$f":"_xll.RiskData('Risk Summary'!L$48,$A2284)/1000","v":{"$error":"#NAME?"}},null,null,{"$f":"(_xll.RiskData(NR_to_Cash!C$18,$A2284))/1000","v":{"$error":"#NAME?"}},{"$f":"(_xll.RiskData(NR_to_Cash!D$18,$A2284))/1000","v":{"$error":"#NAME?"}},{"$f":"(_xll.RiskData(NR_to_Cash!E$18,$A2284))/1000","v":{"$error":"#NAME?"}}]
[2278,{"$f":"_xll.RiskData('Risk Summary'!J$48,$A2285)/1000","v":{"$error":"#NAME?"}},{"$f":"_xll.RiskData('Risk Summary'!K$48,$A2285)/1000","v":{"$error":"#NAME?"}},{"$f":"_xll.RiskData('Risk Summary'!L$48,$A2285)/1000","v":{"$error":"#NAME?"}},null,null,{"$f":"(_xll.RiskData(NR_to_Cash!C$18,$A2285))/1000","v":{"$error":"#NAME?"}},{"$f":"(_xll.RiskData(NR_to_Cash!D$18,$A2285))/1000","v":{"$error":"#NAME?"}},{"$f":"(_xll.RiskData(NR_to_Cash!E$18,$A2285))/1000","v":{"$error":"#NAME?"}}]
[2279,{"$f":"_xll.RiskData('Risk Summary'!J$48,$A2286)/1000","v":{"$error":"#NAME?"}},{"$f":"_xll.RiskData('Risk Summary'!K$48,$A2286)/1000","v":{"$error":"#NAME?"}},{"$f":"_xll.RiskData('Risk Summary'!L$48,$A2286)/1000","v":{"$error":"#NAME?"}},null,null,{"$f":"(_xll.RiskData(NR_to_Cash!C$18,$A2286))/1000","v":{"$error":"#NAME?"}},{"$f":"(_xll.RiskData(NR_to_Cash!D$18,$A2286))/1000","v":{"$error":"#NAME?"}},{"$f":"(_xll.RiskData(NR_to_Cash!E$18,$A2286))/1000","v":{"$error":"#NAME?"}}]
[2280,{"$f":"_xll.RiskData('Risk Summary'!J$48,$A2287)/1000","v":{"$error":"#NAME?"}},{"$f":"_xll.RiskData('Risk Summary'!K$48,$A2287)/1000","v":{"$error":"#NAME?"}},{"$f":"_xll.RiskData('Risk Summary'!L$48,$A2287)/1000","v":{"$error":"#NAME?"}},null,null,{"$f":"(_xll.RiskData(NR_to_Cash!C$18,$A2287))/1000","v":{"$error":"#NAME?"}},{"$f":"(_xll.RiskData(NR_to_Cash!D$18,$A2287))/1000","v":{"$error":"#NAME?"}},{"$f":"(_xll.RiskData(NR_to_Cash!E$18,$A2287))/1000","v":{"$error":"#NAME?"}}]
[2281,{"$f":"_xll.RiskData('Risk Summary'!J$48,$A2288)/1000","v":{"$error":"#NAME?"}},{"$f":"_xll.RiskData('Risk Summary'!K$48,$A2288)/1000","v":{"$error":"#NAME?"}},{"$f":"_xll.RiskData('Risk Summary'!L$48,$A2288)/1000","v":{"$error":"#NAME?"}},null,null,{"$f":"(_xll.RiskData(NR_to_Cash!C$18,$A2288))/1000","v":{"$error":"#NAME?"}},{"$f":"(_xll.RiskData(NR_to_Cash!D$18,$A2288))/1000","v":{"$error":"#NAME?"}},{"$f":"(_xll.RiskData(NR_to_Cash!E$18,$A2288))/1000","v":{"$error":"#NAME?"}}]
[2282,{"$f":"_xll.RiskData('Risk Summary'!J$48,$A2289)/1000","v":{"$error":"#NAME?"}},{"$f":"_xll.RiskData('Risk Summary'!K$48,$A2289)/1000","v":{"$error":"#NAME?"}},{"$f":"_xll.RiskData('Risk Summary'!L$48,$A2289)/1000","v":{"$error":"#NAME?"}},null,null,{"$f":"(_xll.RiskData(NR_to_Cash!C$18,$A2289))/1000","v":{"$error":"#NAME?"}},{"$f":"(_xll.RiskData(NR_to_Cash!D$18,$A2289))/1000","v":{"$error":"#NAME?"}},{"$f":"(_xll.RiskData(NR_to_Cash!E$18,$A2289))/1000","v":{"$error":"#NAME?"}}]
[2283,{"$f":"_xll.RiskData('Risk Summary'!J$48,$A2290)/1000","v":{"$error":"#NAME?"}},{"$f":"_xll.RiskData('Risk Summary'!K$48,$A2290)/1000","v":{"$error":"#NAME?"}},{"$f":"_xll.RiskData('Risk Summary'!L$48,$A2290)/1000","v":{"$error":"#NAME?"}},null,null,{"$f":"(_xll.RiskData(NR_to_Cash!C$18,$A2290))/1000","v":{"$error":"#NAME?"}},{"$f":"(_xll.RiskData(NR_to_Cash!D$18,$A2290))/1000","v":{"$error":"#NAME?"}},{"$f":"(_xll.RiskData(NR_to_Cash!E$18,$A2290))/1000","v":{"$error":"#NAME?"}}]
[2284,{"$f":"_xll.RiskData('Risk Summary'!J$48,$A2291)/1000","v":{"$error":"#NAME?"}},{"$f":"_xll.RiskData('Risk Summary'!K$48,$A2291)/1000","v":{"$error":"#NAME?"}},{"$f":"_xll.RiskData('Risk Summary'!L$48,$A2291)/1000","v":{"$error":"#NAME?"}},null,null,{"$f":"(_xll.RiskData(NR_to_Cash!C$18,$A2291))/1000","v":{"$error":"#NAME?"}},{"$f":"(_xll.RiskData(NR_to_Cash!D$18,$A2291))/1000","v":{"$error":"#NAME?"}},{"$f":"(_xll.RiskData(NR_to_Cash!E$18,$A2291))/1000","v":{"$error":"#NAME?"}}]
[2285,{"$f":"_xll.RiskData('Risk Summary'!J$48,$A2292)/1000","v":{"$error":"#NAME?"}},{"$f":"_xll.RiskData('Risk Summary'!K$48,$A2292)/1000","v":{"$error":"#NAME?"}},{"$f":"_xll.RiskData('Risk Summary'!L$48,$A2292)/1000","v":{"$error":"#NAME?"}},null,null,{"$f":"(_xll.RiskData(NR_to_Cash!C$18,$A2292))/1000","v":{"$error":"#NAME?"}},{"$f":"(_xll.RiskData(NR_to_Cash!D$18,$A2292))/1000","v":{"$error":"#NAME?"}},{"$f":"(_xll.RiskData(NR_to_Cash!E$18,$A2292))/1000","v":{"$error":"#NAME?"}}]
[2286,{"$f":"_xll.RiskData('Risk Summary'!J$48,$A2293)/1000","v":{"$error":"#NAME?"}},{"$f":"_xll.RiskData('Risk Summary'!K$48,$A2293)/1000","v":{"$error":"#NAME?"}},{"$f":"_xll.RiskData('Risk Summary'!L$48,$A2293)/1000","v":{"$error":"#NAME?"}},null,null,{"$f":"(_xll.RiskData(NR_to_Cash!C$18,$A2293))/1000","v":{"$error":"#NAME?"}},{"$f":"(_xll.RiskData(NR_to_Cash!D$18,$A2293))/1000","v":{"$error":"#NAME?"}},{"$f":"(_xll.RiskData(NR_to_Cash!E$18,$A2293))/1000","v":{"$error":"#NAME?"}}]
[2287,{"$f":"_xll.RiskData('Risk Summary'!J$48,$A2294)/1000","v":{"$error":"#NAME?"}},{"$f":"_xll.RiskData('Risk Summary'!K$48,$A2294)/1000","v":{"$error":"#NAME?"}},{"$f":"_xll.RiskData('Risk Summary'!L$48,$A2294)/1000","v":{"$error":"#NAME?"}},null,null,{"$f":"(_xll.RiskData(NR_to_Cash!C$18,$A2294))/1000","v":{"$error":"#NAME?"}},{"$f":"(_xll.RiskData(NR_to_Cash!D$18,$A2294))/1000","v":{"$error":"#NAME?"}},{"$f":"(_xll.RiskData(NR_to_Cash!E$18,$A2294))/1000","v":{"$error":"#NAME?"}}]
[2288,{"$f":"_xll.RiskData('Risk Summary'!J$48,$A2295)/1000","v":{"$error":"#NAME?"}},{"$f":"_xll.RiskData('Risk Summary'!K$48,$A2295)/1000","v":{"$error":"#NAME?"}},{"$f":"_xll.RiskData('Risk Summary'!L$48,$A2295)/1000","v":{"$error":"#NAME?"}},null,null,{"$f":"(_xll.RiskData(NR_to_Cash!C$18,$A2295))/1000","v":{"$error":"#NAME?"}},{"$f":"(_xll.RiskData(NR_to_Cash!D$18,$A2295))/1000","v":{"$error":"#NAME?"}},{"$f":"(_xll.RiskData(NR_to_Cash!E$18,$A2295))/1000","v":{"$error":"#NAME?"}}]
[2289,{"$f":"_xll.RiskData('Risk Summary'!J$48,$A2296)/1000","v":{"$error":"#NAME?"}},{"$f":"_xll.RiskData('Risk Summary'!K$48,$A2296)/1000","v":{"$error":"#NAME?"}},{"$f":"_xll.RiskData('Risk Summary'!L$48,$A2296)/1000","v":{"$error":"#NAME?"}},null,null,{"$f":"(_xll.RiskData(NR_to_Cash!C$18,$A2296))/1000","v":{"$error":"#NAME?"}},{"$f":"(_xll.RiskData(NR_to_Cash!D$18,$A2296))/1000","v":{"$error":"#NAME?"}},{"$f":"(_xll.RiskData(NR_to_Cash!E$18,$A2296))/1000","v":{"$error":"#NAME?"}}]
[2290,{"$f":"_xll.RiskData('Risk Summary'!J$48,$A2297)/1000","v":{"$error":"#NAME?"}},{"$f":"_xll.RiskData('Risk Summary'!K$48,$A2297)/1000","v":{"$error":"#NAME?"}},{"$f":"_xll.RiskData('Risk Summary'!L$48,$A2297)/1000","v":{"$error":"#NAME?"}},null,null,{"$f":"(_xll.RiskData(NR_to_Cash!C$18,$A2297))/1000","v":{"$error":"#NAME?"}},{"$f":"(_xll.RiskData(NR_to_Cash!D$18,$A2297))/1000","v":{"$error":"#NAME?"}},{"$f":"(_xll.RiskData(NR_to_Cash!E$18,$A2297))/1000","v":{"$error":"#NAME?"}}]
[2291,{"$f":"_xll.RiskData('Risk Summary'!J$48,$A2298)/1000","v":{"$error":"#NAME?"}},{"$f":"_xll.RiskData('Risk Summary'!K$48,$A2298)/1000","v":{"$error":"#NAME?"}},{"$f":"_xll.RiskData('Risk Summary'!L$48,$A2298)/1000","v":{"$error":"#NAME?"}},null,null,{"$f":"(_xll.RiskData(NR_to_Cash!C$18,$A2298))/1000","v":{"$error":"#NAME?"}},{"$f":"(_xll.RiskData(NR_to_Cash!D$18,$A2298))/1000","v":{"$error":"#NAME?"}},{"$f":"(_xll.RiskData(NR_to_Cash!E$18,$A2298))/1000","v":{"$error":"#NAME?"}}]
[2292,{"$f":"_xll.RiskData('Risk Summary'!J$48,$A2299)/1000","v":{"$error":"#NAME?"}},{"$f":"_xll.RiskData('Risk Summary'!K$48,$A2299)/1000","v":{"$error":"#NAME?"}},{"$f":"_xll.RiskData('Risk Summary'!L$48,$A2299)/1000","v":{"$error":"#NAME?"}},null,null,{"$f":"(_xll.RiskData(NR_to_Cash!C$18,$A2299))/1000","v":{"$error":"#NAME?"}},{"$f":"(_xll.RiskData(NR_to_Cash!D$18,$A2299))/1000","v":{"$error":"#NAME?"}},{"$f":"(_xll.RiskData(NR_to_Cash!E$18,$A2299))/1000","v":{"$error":"#NAME?"}}]
[2293,{"$f":"_xll.RiskData('Risk Summary'!J$48,$A2300)/1000","v":{"$error":"#NAME?"}},{"$f":"_xll.RiskData('Risk Summary'!K$48,$A2300)/1000","v":{"$error":"#NAME?"}},{"$f":"_xll.RiskData('Risk Summary'!L$48,$A2300)/1000","v":{"$error":"#NAME?"}},null,null,{"$f":"(_xll.RiskData(NR_to_Cash!C$18,$A2300))/1000","v":{"$error":"#NAME?"}},{"$f":"(_xll.RiskData(NR_to_Cash!D$18,$A2300))/1000","v":{"$error":"#NAME?"}},{"$f":"(_xll.RiskData(NR_to_Cash!E$18,$A2300))/1000","v":{"$error":"#NAME?"}}]
[2294,{"$f":"_xll.RiskData('Risk Summary'!J$48,$A2301)/1000","v":{"$error":"#NAME?"}},{"$f":"_xll.RiskData('Risk Summary'!K$48,$A2301)/1000","v":{"$error":"#NAME?"}},{"$f":"_xll.RiskData('Risk Summary'!L$48,$A2301)/1000","v":{"$error":"#NAME?"}},null,null,{"$f":"(_xll.RiskData(NR_to_Cash!C$18,$A2301))/1000","v":{"$error":"#NAME?"}},{"$f":"(_xll.RiskData(NR_to_Cash!D$18,$A2301))/1000","v":{"$error":"#NAME?"}},{"$f":"(_xll.RiskData(NR_to_Cash!E$18,$A2301))/1000","v":{"$error":"#NAME?"}}]
[2295,{"$f":"_xll.RiskData('Risk Summary'!J$48,$A2302)/1000","v":{"$error":"#NAME?"}},{"$f":"_xll.RiskData('Risk Summary'!K$48,$A2302)/1000","v":{"$error":"#NAME?"}},{"$f":"_xll.RiskData('Risk Summary'!L$48,$A2302)/1000","v":{"$error":"#NAME?"}},null,null,{"$f":"(_xll.RiskData(NR_to_Cash!C$18,$A2302))/1000","v":{"$error":"#NAME?"}},{"$f":"(_xll.RiskData(NR_to_Cash!D$18,$A2302))/1000","v":{"$error":"#NAME?"}},{"$f":"(_xll.RiskData(NR_to_Cash!E$18,$A2302))/1000","v":{"$error":"#NAME?"}}]
[2296,{"$f":"_xll.RiskData('Risk Summary'!J$48,$A2303)/1000","v":{"$error":"#NAME?"}},{"$f":"_xll.RiskData('Risk Summary'!K$48,$A2303)/1000","v":{"$error":"#NAME?"}},{"$f":"_xll.RiskData('Risk Summary'!L$48,$A2303)/1000","v":{"$error":"#NAME?"}},null,null,{"$f":"(_xll.RiskData(NR_to_Cash!C$18,$A2303))/1000","v":{"$error":"#NAME?"}},{"$f":"(_xll.RiskData(NR_to_Cash!D$18,$A2303))/1000","v":{"$error":"#NAME?"}},{"$f":"(_xll.RiskData(NR_to_Cash!E$18,$A2303))/1000","v":{"$error":"#NAME?"}}]
[2297,{"$f":"_xll.RiskData('Risk Summary'!J$48,$A2304)/1000","v":{"$error":"#NAME?"}},{"$f":"_xll.RiskData('Risk Summary'!K$48,$A2304)/1000","v":{"$error":"#NAME?"}},{"$f":"_xll.RiskData('Risk Summary'!L$48,$A2304)/1000","v":{"$error":"#NAME?"}},null,null,{"$f":"(_xll.RiskData(NR_to_Cash!C$18,$A2304))/1000","v":{"$error":"#NAME?"}},{"$f":"(_xll.RiskData(NR_to_Cash!D$18,$A2304))/1000","v":{"$error":"#NAME?"}},{"$f":"(_xll.RiskData(NR_to_Cash!E$18,$A2304))/1000","v":{"$error":"#NAME?"}}]
[2298,{"$f":"_xll.RiskData('Risk Summary'!J$48,$A2305)/1000","v":{"$error":"#NAME?"}},{"$f":"_xll.RiskData('Risk Summary'!K$48,$A2305)/1000","v":{"$error":"#NAME?"}},{"$f":"_xll.RiskData('Risk Summary'!L$48,$A2305)/1000","v":{"$error":"#NAME?"}},null,null,{"$f":"(_xll.RiskData(NR_to_Cash!C$18,$A2305))/1000","v":{"$error":"#NAME?"}},{"$f":"(_xll.RiskData(NR_to_Cash!D$18,$A2305))/1000","v":{"$error":"#NAME?"}},{"$f":"(_xll.RiskData(NR_to_Cash!E$18,$A2305))/1000","v":{"$error":"#NAME?"}}]
[2299,{"$f":"_xll.RiskData('Risk Summary'!J$48,$A2306)/1000","v":{"$error":"#NAME?"}},{"$f":"_xll.RiskData('Risk Summary'!K$48,$A2306)/1000","v":{"$error":"#NAME?"}},{"$f":"_xll.RiskData('Risk Summary'!L$48,$A2306)/1000","v":{"$error":"#NAME?"}},null,null,{"$f":"(_xll.RiskData(NR_to_Cash!C$18,$A2306))/1000","v":{"$error":"#NAME?"}},{"$f":"(_xll.RiskData(NR_to_Cash!D$18,$A2306))/1000","v":{"$error":"#NAME?"}},{"$f":"(_xll.RiskData(NR_to_Cash!E$18,$A2306))/1000","v":{"$error":"#NAME?"}}]
[2300,{"$f":"_xll.RiskData('Risk Summary'!J$48,$A2307)/1000","v":{"$error":"#NAME?"}},{"$f":"_xll.RiskData('Risk Summary'!K$48,$A2307)/1000","v":{"$error":"#NAME?"}},{"$f":"_xll.RiskData('Risk Summary'!L$48,$A2307)/1000","v":{"$error":"#NAME?"}},null,null,{"$f":"(_xll.RiskData(NR_to_Cash!C$18,$A2307))/1000","v":{"$error":"#NAME?"}},{"$f":"(_xll.RiskData(NR_to_Cash!D$18,$A2307))/1000","v":{"$error":"#NAME?"}},{"$f":"(_xll.RiskData(NR_to_Cash!E$18,$A2307))/1000","v":{"$error":"#NAME?"}}]
[2301,{"$f":"_xll.RiskData('Risk Summary'!J$48,$A2308)/1000","v":{"$error":"#NAME?"}},{"$f":"_xll.RiskData('Risk Summary'!K$48,$A2308)/1000","v":{"$error":"#NAME?"}},{"$f":"_xll.RiskData('Risk Summary'!L$48,$A2308)/1000","v":{"$error":"#NAME?"}},null,null,{"$f":"(_xll.RiskData(NR_to_Cash!C$18,$A2308))/1000","v":{"$error":"#NAME?"}},{"$f":"(_xll.RiskData(NR_to_Cash!D$18,$A2308))/1000","v":{"$error":"#NAME?"}},{"$f":"(_xll.RiskData(NR_to_Cash!E$18,$A2308))/1000","v":{"$error":"#NAME?"}}]
[2302,{"$f":"_xll.RiskData('Risk Summary'!J$48,$A2309)/1000","v":{"$error":"#NAME?"}},{"$f":"_xll.RiskData('Risk Summary'!K$48,$A2309)/1000","v":{"$error":"#NAME?"}},{"$f":"_xll.RiskData('Risk Summary'!L$48,$A2309)/1000","v":{"$error":"#NAME?"}},null,null,{"$f":"(_xll.RiskData(NR_to_Cash!C$18,$A2309))/1000","v":{"$error":"#NAME?"}},{"$f":"(_xll.RiskData(NR_to_Cash!D$18,$A2309))/1000","v":{"$error":"#NAME?"}},{"$f":"(_xll.RiskData(NR_to_Cash!E$18,$A2309))/1000","v":{"$error":"#NAME?"}}]
[2303,{"$f":"_xll.RiskData('Risk Summary'!J$48,$A2310)/1000","v":{"$error":"#NAME?"}},{"$f":"_xll.RiskData('Risk Summary'!K$48,$A2310)/1000","v":{"$error":"#NAME?"}},{"$f":"_xll.RiskData('Risk Summary'!L$48,$A2310)/1000","v":{"$error":"#NAME?"}},null,null,{"$f":"(_xll.RiskData(NR_to_Cash!C$18,$A2310))/1000","v":{"$error":"#NAME?"}},{"$f":"(_xll.RiskData(NR_to_Cash!D$18,$A2310))/1000","v":{"$error":"#NAME?"}},{"$f":"(_xll.RiskData(NR_to_Cash!E$18,$A2310))/1000","v":{"$error":"#NAME?"}}]
[2304,{"$f":"_xll.RiskData('Risk Summary'!J$48,$A2311)/1000","v":{"$error":"#NAME?"}},{"$f":"_xll.RiskData('Risk Summary'!K$48,$A2311)/1000","v":{"$error":"#NAME?"}},{"$f":"_xll.RiskData('Risk Summary'!L$48,$A2311)/1000","v":{"$error":"#NAME?"}},null,null,{"$f":"(_xll.RiskData(NR_to_Cash!C$18,$A2311))/1000","v":{"$error":"#NAME?"}},{"$f":"(_xll.RiskData(NR_to_Cash!D$18,$A2311))/1000","v":{"$error":"#NAME?"}},{"$f":"(_xll.RiskData(NR_to_Cash!E$18,$A2311))/1000","v":{"$error":"#NAME?"}}]
[2305,{"$f":"_xll.RiskData('Risk Summary'!J$48,$A2312)/1000","v":{"$error":"#NAME?"}},{"$f":"_xll.RiskData('Risk Summary'!K$48,$A2312)/1000","v":{"$error":"#NAME?"}},{"$f":"_xll.RiskData('Risk Summary'!L$48,$A2312)/1000","v":{"$error":"#NAME?"}},null,null,{"$f":"(_xll.RiskData(NR_to_Cash!C$18,$A2312))/1000","v":{"$error":"#NAME?"}},{"$f":"(_xll.RiskData(NR_to_Cash!D$18,$A2312))/1000","v":{"$error":"#NAME?"}},{"$f":"(_xll.RiskData(NR_to_Cash!E$18,$A2312))/1000","v":{"$error":"#NAME?"}}]
[2306,{"$f":"_xll.RiskData('Risk Summary'!J$48,$A2313)/1000","v":{"$error":"#NAME?"}},{"$f":"_xll.RiskData('Risk Summary'!K$48,$A2313)/1000","v":{"$error":"#NAME?"}},{"$f":"_xll.RiskData('Risk Summary'!L$48,$A2313)/1000","v":{"$error":"#NAME?"}},null,null,{"$f":"(_xll.RiskData(NR_to_Cash!C$18,$A2313))/1000","v":{"$error":"#NAME?"}},{"$f":"(_xll.RiskData(NR_to_Cash!D$18,$A2313))/1000","v":{"$error":"#NAME?"}},{"$f":"(_xll.RiskData(NR_to_Cash!E$18,$A2313))/1000","v":{"$error":"#NAME?"}}]
[2307,{"$f":"_xll.RiskData('Risk Summary'!J$48,$A2314)/1000","v":{"$error":"#NAME?"}},{"$f":"_xll.RiskData('Risk Summary'!K$48,$A2314)/1000","v":{"$error":"#NAME?"}},{"$f":"_xll.RiskData('Risk Summary'!L$48,$A2314)/1000","v":{"$error":"#NAME?"}},null,null,{"$f":"(_xll.RiskData(NR_to_Cash!C$18,$A2314))/1000","v":{"$error":"#NAME?"}},{"$f":"(_xll.RiskData(NR_to_Cash!D$18,$A2314))/1000","v":{"$error":"#NAME?"}},{"$f":"(_xll.RiskData(NR_to_Cash!E$18,$A2314))/1000","v":{"$error":"#NAME?"}}]
[2308,{"$f":"_xll.RiskData('Risk Summary'!J$48,$A2315)/1000","v":{"$error":"#NAME?"}},{"$f":"_xll.RiskData('Risk Summary'!K$48,$A2315)/1000","v":{"$error":"#NAME?"}},{"$f":"_xll.RiskData('Risk Summary'!L$48,$A2315)/1000","v":{"$error":"#NAME?"}},null,null,{"$f":"(_xll.RiskData(NR_to_Cash!C$18,$A2315))/1000","v":{"$error":"#NAME?"}},{"$f":"(_xll.RiskData(NR_to_Cash!D$18,$A2315))/1000","v":{"$error":"#NAME?"}},{"$f":"(_xll.RiskData(NR_to_Cash!E$18,$A2315))/1000","v":{"$error":"#NAME?"}}]
[2309,{"$f":"_xll.RiskData('Risk Summary'!J$48,$A2316)/1000","v":{"$error":"#NAME?"}},{"$f":"_xll.RiskData('Risk Summary'!K$48,$A2316)/1000","v":{"$error":"#NAME?"}},{"$f":"_xll.RiskData('Risk Summary'!L$48,$A2316)/1000","v":{"$error":"#NAME?"}},null,null,{"$f":"(_xll.RiskData(NR_to_Cash!C$18,$A2316))/1000","v":{"$error":"#NAME?"}},{"$f":"(_xll.RiskData(NR_to_Cash!D$18,$A2316))/1000","v":{"$error":"#NAME?"}},{"$f":"(_xll.RiskData(NR_to_Cash!E$18,$A2316))/1000","v":{"$error":"#NAME?"}}]
[2310,{"$f":"_xll.RiskData('Risk Summary'!J$48,$A2317)/1000","v":{"$error":"#NAME?"}},{"$f":"_xll.RiskData('Risk Summary'!K$48,$A2317)/1000","v":{"$error":"#NAME?"}},{"$f":"_xll.RiskData('Risk Summary'!L$48,$A2317)/1000","v":{"$error":"#NAME?"}},null,null,{"$f":"(_xll.RiskData(NR_to_Cash!C$18,$A2317))/1000","v":{"$error":"#NAME?"}},{"$f":"(_xll.RiskData(NR_to_Cash!D$18,$A2317))/1000","v":{"$error":"#NAME?"}},{"$f":"(_xll.RiskData(NR_to_Cash!E$18,$A2317))/1000","v":{"$error":"#NAME?"}}]
[2311,{"$f":"_xll.RiskData('Risk Summary'!J$48,$A2318)/1000","v":{"$error":"#NAME?"}},{"$f":"_xll.RiskData('Risk Summary'!K$48,$A2318)/1000","v":{"$error":"#NAME?"}},{"$f":"_xll.RiskData('Risk Summary'!L$48,$A2318)/1000","v":{"$error":"#NAME?"}},null,null,{"$f":"(_xll.RiskData(NR_to_Cash!C$18,$A2318))/1000","v":{"$error":"#NAME?"}},{"$f":"(_xll.RiskData(NR_to_Cash!D$18,$A2318))/1000","v":{"$error":"#NAME?"}},{"$f":"(_xll.RiskData(NR_to_Cash!E$18,$A2318))/1000","v":{"$error":"#NAME?"}}]
[2312,{"$f":"_xll.RiskData('Risk Summary'!J$48,$A2319)/1000","v":{"$error":"#NAME?"}},{"$f":"_xll.RiskData('Risk Summary'!K$48,$A2319)/1000","v":{"$error":"#NAME?"}},{"$f":"_xll.RiskData('Risk Summary'!L$48,$A2319)/1000","v":{"$error":"#NAME?"}},null,null,{"$f":"(_xll.RiskData(NR_to_Cash!C$18,$A2319))/1000","v":{"$error":"#NAME?"}},{"$f":"(_xll.RiskData(NR_to_Cash!D$18,$A2319))/1000","v":{"$error":"#NAME?"}},{"$f":"(_xll.RiskData(NR_to_Cash!E$18,$A2319))/1000","v":{"$error":"#NAME?"}}]
[2313,{"$f":"_xll.RiskData('Risk Summary'!J$48,$A2320)/1000","v":{"$error":"#NAME?"}},{"$f":"_xll.RiskData('Risk Summary'!K$48,$A2320)/1000","v":{"$error":"#NAME?"}},{"$f":"_xll.RiskData('Risk Summary'!L$48,$A2320)/1000","v":{"$error":"#NAME?"}},null,null,{"$f":"(_xll.RiskData(NR_to_Cash!C$18,$A2320))/1000","v":{"$error":"#NAME?"}},{"$f":"(_xll.RiskData(NR_to_Cash!D$18,$A2320))/1000","v":{"$error":"#NAME?"}},{"$f":"(_xll.RiskData(NR_to_Cash!E$18,$A2320))/1000","v":{"$error":"#NAME?"}}]
[2314,{"$f":"_xll.RiskData('Risk Summary'!J$48,$A2321)/1000","v":{"$error":"#NAME?"}},{"$f":"_xll.RiskData('Risk Summary'!K$48,$A2321)/1000","v":{"$error":"#NAME?"}},{"$f":"_xll.RiskData('Risk Summary'!L$48,$A2321)/1000","v":{"$error":"#NAME?"}},null,null,{"$f":"(_xll.RiskData(NR_to_Cash!C$18,$A2321))/1000","v":{"$error":"#NAME?"}},{"$f":"(_xll.RiskData(NR_to_Cash!D$18,$A2321))/1000","v":{"$error":"#NAME?"}},{"$f":"(_xll.RiskData(NR_to_Cash!E$18,$A2321))/1000","v":{"$error":"#NAME?"}}]
[2315,{"$f":"_xll.RiskData('Risk Summary'!J$48,$A2322)/1000","v":{"$error":"#NAME?"}},{"$f":"_xll.RiskData('Risk Summary'!K$48,$A2322)/1000","v":{"$error":"#NAME?"}},{"$f":"_xll.RiskData('Risk Summary'!L$48,$A2322)/1000","v":{"$error":"#NAME?"}},null,null,{"$f":"(_xll.RiskData(NR_to_Cash!C$18,$A2322))/1000","v":{"$error":"#NAME?"}},{"$f":"(_xll.RiskData(NR_to_Cash!D$18,$A2322))/1000","v":{"$error":"#NAME?"}},{"$f":"(_xll.RiskData(NR_to_Cash!E$18,$A2322))/1000","v":{"$error":"#NAME?"}}]
[2316,{"$f":"_xll.RiskData('Risk Summary'!J$48,$A2323)/1000","v":{"$error":"#NAME?"}},{"$f":"_xll.RiskData('Risk Summary'!K$48,$A2323)/1000","v":{"$error":"#NAME?"}},{"$f":"_xll.RiskData('Risk Summary'!L$48,$A2323)/1000","v":{"$error":"#NAME?"}},null,null,{"$f":"(_xll.RiskData(NR_to_Cash!C$18,$A2323))/1000","v":{"$error":"#NAME?"}},{"$f":"(_xll.RiskData(NR_to_Cash!D$18,$A2323))/1000","v":{"$error":"#NAME?"}},{"$f":"(_xll.RiskData(NR_to_Cash!E$18,$A2323))/1000","v":{"$error":"#NAME?"}}]
[2317,{"$f":"_xll.RiskData('Risk Summary'!J$48,$A2324)/1000","v":{"$error":"#NAME?"}},{"$f":"_xll.RiskData('Risk Summary'!K$48,$A2324)/1000","v":{"$error":"#NAME?"}},{"$f":"_xll.RiskData('Risk Summary'!L$48,$A2324)/1000","v":{"$error":"#NAME?"}},null,null,{"$f":"(_xll.RiskData(NR_to_Cash!C$18,$A2324))/1000","v":{"$error":"#NAME?"}},{"$f":"(_xll.RiskData(NR_to_Cash!D$18,$A2324))/1000","v":{"$error":"#NAME?"}},{"$f":"(_xll.RiskData(NR_to_Cash!E$18,$A2324))/1000","v":{"$error":"#NAME?"}}]
[2318,{"$f":"_xll.RiskData('Risk Summary'!J$48,$A2325)/1000","v":{"$error":"#NAME?"}},{"$f":"_xll.RiskData('Risk Summary'!K$48,$A2325)/1000","v":{"$error":"#NAME?"}},{"$f":"_xll.RiskData('Risk Summary'!L$48,$A2325)/1000","v":{"$error":"#NAME?"}},null,null,{"$f":"(_xll.RiskData(NR_to_Cash!C$18,$A2325))/1000","v":{"$error":"#NAME?"}},{"$f":"(_xll.RiskData(NR_to_Cash!D$18,$A2325))/1000","v":{"$error":"#NAME?"}},{"$f":"(_xll.RiskData(NR_to_Cash!E$18,$A2325))/1000","v":{"$error":"#NAME?"}}]
[2319,{"$f":"_xll.RiskData('Risk Summary'!J$48,$A2326)/1000","v":{"$error":"#NAME?"}},{"$f":"_xll.RiskData('Risk Summary'!K$48,$A2326)/1000","v":{"$error":"#NAME?"}},{"$f":"_xll.RiskData('Risk Summary'!L$48,$A2326)/1000","v":{"$error":"#NAME?"}},null,null,{"$f":"(_xll.RiskData(NR_to_Cash!C$18,$A2326))/1000","v":{"$error":"#NAME?"}},{"$f":"(_xll.RiskData(NR_to_Cash!D$18,$A2326))/1000","v":{"$error":"#NAME?"}},{"$f":"(_xll.RiskData(NR_to_Cash!E$18,$A2326))/1000","v":{"$error":"#NAME?"}}]
[2320,{"$f":"_xll.RiskData('Risk Summary'!J$48,$A2327)/1000","v":{"$error":"#NAME?"}},{"$f":"_xll.RiskData('Risk Summary'!K$48,$A2327)/1000","v":{"$error":"#NAME?"}},{"$f":"_xll.RiskData('Risk Summary'!L$48,$A2327)/1000","v":{"$error":"#NAME?"}},null,null,{"$f":"(_xll.RiskData(NR_to_Cash!C$18,$A2327))/1000","v":{"$error":"#NAME?"}},{"$f":"(_xll.RiskData(NR_to_Cash!D$18,$A2327))/1000","v":{"$error":"#NAME?"}},{"$f":"(_xll.RiskData(NR_to_Cash!E$18,$A2327))/1000","v":{"$error":"#NAME?"}}]
[2321,{"$f":"_xll.RiskData('Risk Summary'!J$48,$A2328)/1000","v":{"$error":"#NAME?"}},{"$f":"_xll.RiskData('Risk Summary'!K$48,$A2328)/1000","v":{"$error":"#NAME?"}},{"$f":"_xll.RiskData('Risk Summary'!L$48,$A2328)/1000","v":{"$error":"#NAME?"}},null,null,{"$f":"(_xll.RiskData(NR_to_Cash!C$18,$A2328))/1000","v":{"$error":"#NAME?"}},{"$f":"(_xll.RiskData(NR_to_Cash!D$18,$A2328))/1000","v":{"$error":"#NAME?"}},{"$f":"(_xll.RiskData(NR_to_Cash!E$18,$A2328))/1000","v":{"$error":"#NAME?"}}]
[2322,{"$f":"_xll.RiskData('Risk Summary'!J$48,$A2329)/1000","v":{"$error":"#NAME?"}},{"$f":"_xll.RiskData('Risk Summary'!K$48,$A2329)/1000","v":{"$error":"#NAME?"}},{"$f":"_xll.RiskData('Risk Summary'!L$48,$A2329)/1000","v":{"$error":"#NAME?"}},null,null,{"$f":"(_xll.RiskData(NR_to_Cash!C$18,$A2329))/1000","v":{"$error":"#NAME?"}},{"$f":"(_xll.RiskData(NR_to_Cash!D$18,$A2329))/1000","v":{"$error":"#NAME?"}},{"$f":"(_xll.RiskData(NR_to_Cash!E$18,$A2329))/1000","v":{"$error":"#NAME?"}}]
[2323,{"$f":"_xll.RiskData('Risk Summary'!J$48,$A2330)/1000","v":{"$error":"#NAME?"}},{"$f":"_xll.RiskData('Risk Summary'!K$48,$A2330)/1000","v":{"$error":"#NAME?"}},{"$f":"_xll.RiskData('Risk Summary'!L$48,$A2330)/1000","v":{"$error":"#NAME?"}},null,null,{"$f":"(_xll.RiskData(NR_to_Cash!C$18,$A2330))/1000","v":{"$error":"#NAME?"}},{"$f":"(_xll.RiskData(NR_to_Cash!D$18,$A2330))/1000","v":{"$error":"#NAME?"}},{"$f":"(_xll.RiskData(NR_to_Cash!E$18,$A2330))/1000","v":{"$error":"#NAME?"}}]
[2324,{"$f":"_xll.RiskData('Risk Summary'!J$48,$A2331)/1000","v":{"$error":"#NAME?"}},{"$f":"_xll.RiskData('Risk Summary'!K$48,$A2331)/1000","v":{"$error":"#NAME?"}},{"$f":"_xll.RiskData('Risk Summary'!L$48,$A2331)/1000","v":{"$error":"#NAME?"}},null,null,{"$f":"(_xll.RiskData(NR_to_Cash!C$18,$A2331))/1000","v":{"$error":"#NAME?"}},{"$f":"(_xll.RiskData(NR_to_Cash!D$18,$A2331))/1000","v":{"$error":"#NAME?"}},{"$f":"(_xll.RiskData(NR_to_Cash!E$18,$A2331))/1000","v":{"$error":"#NAME?"}}]
[2325,{"$f":"_xll.RiskData('Risk Summary'!J$48,$A2332)/1000","v":{"$error":"#NAME?"}},{"$f":"_xll.RiskData('Risk Summary'!K$48,$A2332)/1000","v":{"$error":"#NAME?"}},{"$f":"_xll.RiskData('Risk Summary'!L$48,$A2332)/1000","v":{"$error":"#NAME?"}},null,null,{"$f":"(_xll.RiskData(NR_to_Cash!C$18,$A2332))/1000","v":{"$error":"#NAME?"}},{"$f":"(_xll.RiskData(NR_to_Cash!D$18,$A2332))/1000","v":{"$error":"#NAME?"}},{"$f":"(_xll.RiskData(NR_to_Cash!E$18,$A2332))/1000","v":{"$error":"#NAME?"}}]
[2326,{"$f":"_xll.RiskData('Risk Summary'!J$48,$A2333)/1000","v":{"$error":"#NAME?"}},{"$f":"_xll.RiskData('Risk Summary'!K$48,$A2333)/1000","v":{"$error":"#NAME?"}},{"$f":"_xll.RiskData('Risk Summary'!L$48,$A2333)/1000","v":{"$error":"#NAME?"}},null,null,{"$f":"(_xll.RiskData(NR_to_Cash!C$18,$A2333))/1000","v":{"$error":"#NAME?"}},{"$f":"(_xll.RiskData(NR_to_Cash!D$18,$A2333))/1000","v":{"$error":"#NAME?"}},{"$f":"(_xll.RiskData(NR_to_Cash!E$18,$A2333))/1000","v":{"$error":"#NAME?"}}]
[2327,{"$f":"_xll.RiskData('Risk Summary'!J$48,$A2334)/1000","v":{"$error":"#NAME?"}},{"$f":"_xll.RiskData('Risk Summary'!K$48,$A2334)/1000","v":{"$error":"#NAME?"}},{"$f":"_xll.RiskData('Risk Summary'!L$48,$A2334)/1000","v":{"$error":"#NAME?"}},null,null,{"$f":"(_xll.RiskData(NR_to_Cash!C$18,$A2334))/1000","v":{"$error":"#NAME?"}},{"$f":"(_xll.RiskData(NR_to_Cash!D$18,$A2334))/1000","v":{"$error":"#NAME?"}},{"$f":"(_xll.RiskData(NR_to_Cash!E$18,$A2334))/1000","v":{"$error":"#NAME?"}}]
[2328,{"$f":"_xll.RiskData('Risk Summary'!J$48,$A2335)/1000","v":{"$error":"#NAME?"}},{"$f":"_xll.RiskData('Risk Summary'!K$48,$A2335)/1000","v":{"$error":"#NAME?"}},{"$f":"_xll.RiskData('Risk Summary'!L$48,$A2335)/1000","v":{"$error":"#NAME?"}},null,null,{"$f":"(_xll.RiskData(NR_to_Cash!C$18,$A2335))/1000","v":{"$error":"#NAME?"}},{"$f":"(_xll.RiskData(NR_to_Cash!D$18,$A2335))/1000","v":{"$error":"#NAME?"}},{"$f":"(_xll.RiskData(NR_to_Cash!E$18,$A2335))/1000","v":{"$error":"#NAME?"}}]
[2329,{"$f":"_xll.RiskData('Risk Summary'!J$48,$A2336)/1000","v":{"$error":"#NAME?"}},{"$f":"_xll.RiskData('Risk Summary'!K$48,$A2336)/1000","v":{"$error":"#NAME?"}},{"$f":"_xll.RiskData('Risk Summary'!L$48,$A2336)/1000","v":{"$error":"#NAME?"}},null,null,{"$f":"(_xll.RiskData(NR_to_Cash!C$18,$A2336))/1000","v":{"$error":"#NAME?"}},{"$f":"(_xll.RiskData(NR_to_Cash!D$18,$A2336))/1000","v":{"$error":"#NAME?"}},{"$f":"(_xll.RiskData(NR_to_Cash!E$18,$A2336))/1000","v":{"$error":"#NAME?"}}]
[2330,{"$f":"_xll.RiskData('Risk Summary'!J$48,$A2337)/1000","v":{"$error":"#NAME?"}},{"$f":"_xll.RiskData('Risk Summary'!K$48,$A2337)/1000","v":{"$error":"#NAME?"}},{"$f":"_xll.RiskData('Risk Summary'!L$48,$A2337)/1000","v":{"$error":"#NAME?"}},null,null,{"$f":"(_xll.RiskData(NR_to_Cash!C$18,$A2337))/1000","v":{"$error":"#NAME?"}},{"$f":"(_xll.RiskData(NR_to_Cash!D$18,$A2337))/1000","v":{"$error":"#NAME?"}},{"$f":"(_xll.RiskData(NR_to_Cash!E$18,$A2337))/1000","v":{"$error":"#NAME?"}}]
[2331,{"$f":"_xll.RiskData('Risk Summary'!J$48,$A2338)/1000","v":{"$error":"#NAME?"}},{"$f":"_xll.RiskData('Risk Summary'!K$48,$A2338)/1000","v":{"$error":"#NAME?"}},{"$f":"_xll.RiskData('Risk Summary'!L$48,$A2338)/1000","v":{"$error":"#NAME?"}},null,null,{"$f":"(_xll.RiskData(NR_to_Cash!C$18,$A2338))/1000","v":{"$error":"#NAME?"}},{"$f":"(_xll.RiskData(NR_to_Cash!D$18,$A2338))/1000","v":{"$error":"#NAME?"}},{"$f":"(_xll.RiskData(NR_to_Cash!E$18,$A2338))/1000","v":{"$error":"#NAME?"}}]
[2332,{"$f":"_xll.RiskData('Risk Summary'!J$48,$A2339)/1000","v":{"$error":"#NAME?"}},{"$f":"_xll.RiskData('Risk Summary'!K$48,$A2339)/1000","v":{"$error":"#NAME?"}},{"$f":"_xll.RiskData('Risk Summary'!L$48,$A2339)/1000","v":{"$error":"#NAME?"}},null,null,{"$f":"(_xll.RiskData(NR_to_Cash!C$18,$A2339))/1000","v":{"$error":"#NAME?"}},{"$f":"(_xll.RiskData(NR_to_Cash!D$18,$A2339))/1000","v":{"$error":"#NAME?"}},{"$f":"(_xll.RiskData(NR_to_Cash!E$18,$A2339))/1000","v":{"$error":"#NAME?"}}]
[2333,{"$f":"_xll.RiskData('Risk Summary'!J$48,$A2340)/1000","v":{"$error":"#NAME?"}},{"$f":"_xll.RiskData('Risk Summary'!K$48,$A2340)/1000","v":{"$error":"#NAME?"}},{"$f":"_xll.RiskData('Risk Summary'!L$48,$A2340)/1000","v":{"$error":"#NAME?"}},null,null,{"$f":"(_xll.RiskData(NR_to_Cash!C$18,$A2340))/1000","v":{"$error":"#NAME?"}},{"$f":"(_xll.RiskData(NR_to_Cash!D$18,$A2340))/1000","v":{"$error":"#NAME?"}},{"$f":"(_xll.RiskData(NR_to_Cash!E$18,$A2340))/1000","v":{"$error":"#NAME?"}}]
[2334,{"$f":"_xll.RiskData('Risk Summary'!J$48,$A2341)/1000","v":{"$error":"#NAME?"}},{"$f":"_xll.RiskData('Risk Summary'!K$48,$A2341)/1000","v":{"$error":"#NAME?"}},{"$f":"_xll.RiskData('Risk Summary'!L$48,$A2341)/1000","v":{"$error":"#NAME?"}},null,null,{"$f":"(_xll.RiskData(NR_to_Cash!C$18,$A2341))/1000","v":{"$error":"#NAME?"}},{"$f":"(_xll.RiskData(NR_to_Cash!D$18,$A2341))/1000","v":{"$error":"#NAME?"}},{"$f":"(_xll.RiskData(NR_to_Cash!E$18,$A2341))/1000","v":{"$error":"#NAME?"}}]
[2335,{"$f":"_xll.RiskData('Risk Summary'!J$48,$A2342)/1000","v":{"$error":"#NAME?"}},{"$f":"_xll.RiskData('Risk Summary'!K$48,$A2342)/1000","v":{"$error":"#NAME?"}},{"$f":"_xll.RiskData('Risk Summary'!L$48,$A2342)/1000","v":{"$error":"#NAME?"}},null,null,{"$f":"(_xll.RiskData(NR_to_Cash!C$18,$A2342))/1000","v":{"$error":"#NAME?"}},{"$f":"(_xll.RiskData(NR_to_Cash!D$18,$A2342))/1000","v":{"$error":"#NAME?"}},{"$f":"(_xll.RiskData(NR_to_Cash!E$18,$A2342))/1000","v":{"$error":"#NAME?"}}]
[2336,{"$f":"_xll.RiskData('Risk Summary'!J$48,$A2343)/1000","v":{"$error":"#NAME?"}},{"$f":"_xll.RiskData('Risk Summary'!K$48,$A2343)/1000","v":{"$error":"#NAME?"}},{"$f":"_xll.RiskData('Risk Summary'!L$48,$A2343)/1000","v":{"$error":"#NAME?"}},null,null,{"$f":"(_xll.RiskData(NR_to_Cash!C$18,$A2343))/1000","v":{"$error":"#NAME?"}},{"$f":"(_xll.RiskData(NR_to_Cash!D$18,$A2343))/1000","v":{"$error":"#NAME?"}},{"$f":"(_xll.RiskData(NR_to_Cash!E$18,$A2343))/1000","v":{"$error":"#NAME?"}}]
[2337,{"$f":"_xll.RiskData('Risk Summary'!J$48,$A2344)/1000","v":{"$error":"#NAME?"}},{"$f":"_xll.RiskData('Risk Summary'!K$48,$A2344)/1000","v":{"$error":"#NAME?"}},{"$f":"_xll.RiskData('Risk Summary'!L$48,$A2344)/1000","v":{"$error":"#NAME?"}},null,null,{"$f":"(_xll.RiskData(NR_to_Cash!C$18,$A2344))/1000","v":{"$error":"#NAME?"}},{"$f":"(_xll.RiskData(NR_to_Cash!D$18,$A2344))/1000","v":{"$error":"#NAME?"}},{"$f":"(_xll.RiskData(NR_to_Cash!E$18,$A2344))/1000","v":{"$error":"#NAME?"}}]
[2338,{"$f":"_xll.RiskData('Risk Summary'!J$48,$A2345)/1000","v":{"$error":"#NAME?"}},{"$f":"_xll.RiskData('Risk Summary'!K$48,$A2345)/1000","v":{"$error":"#NAME?"}},{"$f":"_xll.RiskData('Risk Summary'!L$48,$A2345)/1000","v":{"$error":"#NAME?"}},null,null,{"$f":"(_xll.RiskData(NR_to_Cash!C$18,$A2345))/1000","v":{"$error":"#NAME?"}},{"$f":"(_xll.RiskData(NR_to_Cash!D$18,$A2345))/1000","v":{"$error":"#NAME?"}},{"$f":"(_xll.RiskData(NR_to_Cash!E$18,$A2345))/1000","v":{"$error":"#NAME?"}}]
[2339,{"$f":"_xll.RiskData('Risk Summary'!J$48,$A2346)/1000","v":{"$error":"#NAME?"}},{"$f":"_xll.RiskData('Risk Summary'!K$48,$A2346)/1000","v":{"$error":"#NAME?"}},{"$f":"_xll.RiskData('Risk Summary'!L$48,$A2346)/1000","v":{"$error":"#NAME?"}},null,null,{"$f":"(_xll.RiskData(NR_to_Cash!C$18,$A2346))/1000","v":{"$error":"#NAME?"}},{"$f":"(_xll.RiskData(NR_to_Cash!D$18,$A2346))/1000","v":{"$error":"#NAME?"}},{"$f":"(_xll.RiskData(NR_to_Cash!E$18,$A2346))/1000","v":{"$error":"#NAME?"}}]
[2340,{"$f":"_xll.RiskData('Risk Summary'!J$48,$A2347)/1000","v":{"$error":"#NAME?"}},{"$f":"_xll.RiskData('Risk Summary'!K$48,$A2347)/1000","v":{"$error":"#NAME?"}},{"$f":"_xll.RiskData('Risk Summary'!L$48,$A2347)/1000","v":{"$error":"#NAME?"}},null,null,{"$f":"(_xll.RiskData(NR_to_Cash!C$18,$A2347))/1000","v":{"$error":"#NAME?"}},{"$f":"(_xll.RiskData(NR_to_Cash!D$18,$A2347))/1000","v":{"$error":"#NAME?"}},{"$f":"(_xll.RiskData(NR_to_Cash!E$18,$A2347))/1000","v":{"$error":"#NAME?"}}]
[2341,{"$f":"_xll.RiskData('Risk Summary'!J$48,$A2348)/1000","v":{"$error":"#NAME?"}},{"$f":"_xll.RiskData('Risk Summary'!K$48,$A2348)/1000","v":{"$error":"#NAME?"}},{"$f":"_xll.RiskData('Risk Summary'!L$48,$A2348)/1000","v":{"$error":"#NAME?"}},null,null,{"$f":"(_xll.RiskData(NR_to_Cash!C$18,$A2348))/1000","v":{"$error":"#NAME?"}},{"$f":"(_xll.RiskData(NR_to_Cash!D$18,$A2348))/1000","v":{"$error":"#NAME?"}},{"$f":"(_xll.RiskData(NR_to_Cash!E$18,$A2348))/1000","v":{"$error":"#NAME?"}}]
[2342,{"$f":"_xll.RiskData('Risk Summary'!J$48,$A2349)/1000","v":{"$error":"#NAME?"}},{"$f":"_xll.RiskData('Risk Summary'!K$48,$A2349)/1000","v":{"$error":"#NAME?"}},{"$f":"_xll.RiskData('Risk Summary'!L$48,$A2349)/1000","v":{"$error":"#NAME?"}},null,null,{"$f":"(_xll.RiskData(NR_to_Cash!C$18,$A2349))/1000","v":{"$error":"#NAME?"}},{"$f":"(_xll.RiskData(NR_to_Cash!D$18,$A2349))/1000","v":{"$error":"#NAME?"}},{"$f":"(_xll.RiskData(NR_to_Cash!E$18,$A2349))/1000","v":{"$error":"#NAME?"}}]
[2343,{"$f":"_xll.RiskData('Risk Summary'!J$48,$A2350)/1000","v":{"$error":"#NAME?"}},{"$f":"_xll.RiskData('Risk Summary'!K$48,$A2350)/1000","v":{"$error":"#NAME?"}},{"$f":"_xll.RiskData('Risk Summary'!L$48,$A2350)/1000","v":{"$error":"#NAME?"}},null,null,{"$f":"(_xll.RiskData(NR_to_Cash!C$18,$A2350))/1000","v":{"$error":"#NAME?"}},{"$f":"(_xll.RiskData(NR_to_Cash!D$18,$A2350))/1000","v":{"$error":"#NAME?"}},{"$f":"(_xll.RiskData(NR_to_Cash!E$18,$A2350))/1000","v":{"$error":"#NAME?"}}]
[2344,{"$f":"_xll.RiskData('Risk Summary'!J$48,$A2351)/1000","v":{"$error":"#NAME?"}},{"$f":"_xll.RiskData('Risk Summary'!K$48,$A2351)/1000","v":{"$error":"#NAME?"}},{"$f":"_xll.RiskData('Risk Summary'!L$48,$A2351)/1000","v":{"$error":"#NAME?"}},null,null,{"$f":"(_xll.RiskData(NR_to_Cash!C$18,$A2351))/1000","v":{"$error":"#NAME?"}},{"$f":"(_xll.RiskData(NR_to_Cash!D$18,$A2351))/1000","v":{"$error":"#NAME?"}},{"$f":"(_xll.RiskData(NR_to_Cash!E$18,$A2351))/1000","v":{"$error":"#NAME?"}}]
[2345,{"$f":"_xll.RiskData('Risk Summary'!J$48,$A2352)/1000","v":{"$error":"#NAME?"}},{"$f":"_xll.RiskData('Risk Summary'!K$48,$A2352)/1000","v":{"$error":"#NAME?"}},{"$f":"_xll.RiskData('Risk Summary'!L$48,$A2352)/1000","v":{"$error":"#NAME?"}},null,null,{"$f":"(_xll.RiskData(NR_to_Cash!C$18,$A2352))/1000","v":{"$error":"#NAME?"}},{"$f":"(_xll.RiskData(NR_to_Cash!D$18,$A2352))/1000","v":{"$error":"#NAME?"}},{"$f":"(_xll.RiskData(NR_to_Cash!E$18,$A2352))/1000","v":{"$error":"#NAME?"}}]
[2346,{"$f":"_xll.RiskData('Risk Summary'!J$48,$A2353)/1000","v":{"$error":"#NAME?"}},{"$f":"_xll.RiskData('Risk Summary'!K$48,$A2353)/1000","v":{"$error":"#NAME?"}},{"$f":"_xll.RiskData('Risk Summary'!L$48,$A2353)/1000","v":{"$error":"#NAME?"}},null,null,{"$f":"(_xll.RiskData(NR_to_Cash!C$18,$A2353))/1000","v":{"$error":"#NAME?"}},{"$f":"(_xll.RiskData(NR_to_Cash!D$18,$A2353))/1000","v":{"$error":"#NAME?"}},{"$f":"(_xll.RiskData(NR_to_Cash!E$18,$A2353))/1000","v":{"$error":"#NAME?"}}]
[2347,{"$f":"_xll.RiskData('Risk Summary'!J$48,$A2354)/1000","v":{"$error":"#NAME?"}},{"$f":"_xll.RiskData('Risk Summary'!K$48,$A2354)/1000","v":{"$error":"#NAME?"}},{"$f":"_xll.RiskData('Risk Summary'!L$48,$A2354)/1000","v":{"$error":"#NAME?"}},null,null,{"$f":"(_xll.RiskData(NR_to_Cash!C$18,$A2354))/1000","v":{"$error":"#NAME?"}},{"$f":"(_xll.RiskData(NR_to_Cash!D$18,$A2354))/1000","v":{"$error":"#NAME?"}},{"$f":"(_xll.RiskData(NR_to_Cash!E$18,$A2354))/1000","v":{"$error":"#NAME?"}}]
[2348,{"$f":"_xll.RiskData('Risk Summary'!J$48,$A2355)/1000","v":{"$error":"#NAME?"}},{"$f":"_xll.RiskData('Risk Summary'!K$48,$A2355)/1000","v":{"$error":"#NAME?"}},{"$f":"_xll.RiskData('Risk Summary'!L$48,$A2355)/1000","v":{"$error":"#NAME?"}},null,null,{"$f":"(_xll.RiskData(NR_to_Cash!C$18,$A2355))/1000","v":{"$error":"#NAME?"}},{"$f":"(_xll.RiskData(NR_to_Cash!D$18,$A2355))/1000","v":{"$error":"#NAME?"}},{"$f":"(_xll.RiskData(NR_to_Cash!E$18,$A2355))/1000","v":{"$error":"#NAME?"}}]
[2349,{"$f":"_xll.RiskData('Risk Summary'!J$48,$A2356)/1000","v":{"$error":"#NAME?"}},{"$f":"_xll.RiskData('Risk Summary'!K$48,$A2356)/1000","v":{"$error":"#NAME?"}},{"$f":"_xll.RiskData('Risk Summary'!L$48,$A2356)/1000","v":{"$error":"#NAME?"}},null,null,{"$f":"(_xll.RiskData(NR_to_Cash!C$18,$A2356))/1000","v":{"$error":"#NAME?"}},{"$f":"(_xll.RiskData(NR_to_Cash!D$18,$A2356))/1000","v":{"$error":"#NAME?"}},{"$f":"(_xll.RiskData(NR_to_Cash!E$18,$A2356))/1000","v":{"$error":"#NAME?"}}]
[2350,{"$f":"_xll.RiskData('Risk Summary'!J$48,$A2357)/1000","v":{"$error":"#NAME?"}},{"$f":"_xll.RiskData('Risk Summary'!K$48,$A2357)/1000","v":{"$error":"#NAME?"}},{"$f":"_xll.RiskData('Risk Summary'!L$48,$A2357)/1000","v":{"$error":"#NAME?"}},null,null,{"$f":"(_xll.RiskData(NR_to_Cash!C$18,$A2357))/1000","v":{"$error":"#NAME?"}},{"$f":"(_xll.RiskData(NR_to_Cash!D$18,$A2357))/1000","v":{"$error":"#NAME?"}},{"$f":"(_xll.RiskData(NR_to_Cash!E$18,$A2357))/1000","v":{"$error":"#NAME?"}}]
[2351,{"$f":"_xll.RiskData('Risk Summary'!J$48,$A2358)/1000","v":{"$error":"#NAME?"}},{"$f":"_xll.RiskData('Risk Summary'!K$48,$A2358)/1000","v":{"$error":"#NAME?"}},{"$f":"_xll.RiskData('Risk Summary'!L$48,$A2358)/1000","v":{"$error":"#NAME?"}},null,null,{"$f":"(_xll.RiskData(NR_to_Cash!C$18,$A2358))/1000","v":{"$error":"#NAME?"}},{"$f":"(_xll.RiskData(NR_to_Cash!D$18,$A2358))/1000","v":{"$error":"#NAME?"}},{"$f":"(_xll.RiskData(NR_to_Cash!E$18,$A2358))/1000","v":{"$error":"#NAME?"}}]
[2352,{"$f":"_xll.RiskData('Risk Summary'!J$48,$A2359)/1000","v":{"$error":"#NAME?"}},{"$f":"_xll.RiskData('Risk Summary'!K$48,$A2359)/1000","v":{"$error":"#NAME?"}},{"$f":"_xll.RiskData('Risk Summary'!L$48,$A2359)/1000","v":{"$error":"#NAME?"}},null,null,{"$f":"(_xll.RiskData(NR_to_Cash!C$18,$A2359))/1000","v":{"$error":"#NAME?"}},{"$f":"(_xll.RiskData(NR_to_Cash!D$18,$A2359))/1000","v":{"$error":"#NAME?"}},{"$f":"(_xll.RiskData(NR_to_Cash!E$18,$A2359))/1000","v":{"$error":"#NAME?"}}]
[2353,{"$f":"_xll.RiskData('Risk Summary'!J$48,$A2360)/1000","v":{"$error":"#NAME?"}},{"$f":"_xll.RiskData('Risk Summary'!K$48,$A2360)/1000","v":{"$error":"#NAME?"}},{"$f":"_xll.RiskData('Risk Summary'!L$48,$A2360)/1000","v":{"$error":"#NAME?"}},null,null,{"$f":"(_xll.RiskData(NR_to_Cash!C$18,$A2360))/1000","v":{"$error":"#NAME?"}},{"$f":"(_xll.RiskData(NR_to_Cash!D$18,$A2360))/1000","v":{"$error":"#NAME?"}},{"$f":"(_xll.RiskData(NR_to_Cash!E$18,$A2360))/1000","v":{"$error":"#NAME?"}}]
[2354,{"$f":"_xll.RiskData('Risk Summary'!J$48,$A2361)/1000","v":{"$error":"#NAME?"}},{"$f":"_xll.RiskData('Risk Summary'!K$48,$A2361)/1000","v":{"$error":"#NAME?"}},{"$f":"_xll.RiskData('Risk Summary'!L$48,$A2361)/1000","v":{"$error":"#NAME?"}},null,null,{"$f":"(_xll.RiskData(NR_to_Cash!C$18,$A2361))/1000","v":{"$error":"#NAME?"}},{"$f":"(_xll.RiskData(NR_to_Cash!D$18,$A2361))/1000","v":{"$error":"#NAME?"}},{"$f":"(_xll.RiskData(NR_to_Cash!E$18,$A2361))/1000","v":{"$error":"#NAME?"}}]
[2355,{"$f":"_xll.RiskData('Risk Summary'!J$48,$A2362)/1000","v":{"$error":"#NAME?"}},{"$f":"_xll.RiskData('Risk Summary'!K$48,$A2362)/1000","v":{"$error":"#NAME?"}},{"$f":"_xll.RiskData('Risk Summary'!L$48,$A2362)/1000","v":{"$error":"#NAME?"}},null,null,{"$f":"(_xll.RiskData(NR_to_Cash!C$18,$A2362))/1000","v":{"$error":"#NAME?"}},{"$f":"(_xll.RiskData(NR_to_Cash!D$18,$A2362))/1000","v":{"$error":"#NAME?"}},{"$f":"(_xll.RiskData(NR_to_Cash!E$18,$A2362))/1000","v":{"$error":"#NAME?"}}]
[2356,{"$f":"_xll.RiskData('Risk Summary'!J$48,$A2363)/1000","v":{"$error":"#NAME?"}},{"$f":"_xll.RiskData('Risk Summary'!K$48,$A2363)/1000","v":{"$error":"#NAME?"}},{"$f":"_xll.RiskData('Risk Summary'!L$48,$A2363)/1000","v":{"$error":"#NAME?"}},null,null,{"$f":"(_xll.RiskData(NR_to_Cash!C$18,$A2363))/1000","v":{"$error":"#NAME?"}},{"$f":"(_xll.RiskData(NR_to_Cash!D$18,$A2363))/1000","v":{"$error":"#NAME?"}},{"$f":"(_xll.RiskData(NR_to_Cash!E$18,$A2363))/1000","v":{"$error":"#NAME?"}}]
[2357,{"$f":"_xll.RiskData('Risk Summary'!J$48,$A2364)/1000","v":{"$error":"#NAME?"}},{"$f":"_xll.RiskData('Risk Summary'!K$48,$A2364)/1000","v":{"$error":"#NAME?"}},{"$f":"_xll.RiskData('Risk Summary'!L$48,$A2364)/1000","v":{"$error":"#NAME?"}},null,null,{"$f":"(_xll.RiskData(NR_to_Cash!C$18,$A2364))/1000","v":{"$error":"#NAME?"}},{"$f":"(_xll.RiskData(NR_to_Cash!D$18,$A2364))/1000","v":{"$error":"#NAME?"}},{"$f":"(_xll.RiskData(NR_to_Cash!E$18,$A2364))/1000","v":{"$error":"#NAME?"}}]
[2358,{"$f":"_xll.RiskData('Risk Summary'!J$48,$A2365)/1000","v":{"$error":"#NAME?"}},{"$f":"_xll.RiskData('Risk Summary'!K$48,$A2365)/1000","v":{"$error":"#NAME?"}},{"$f":"_xll.RiskData('Risk Summary'!L$48,$A2365)/1000","v":{"$error":"#NAME?"}},null,null,{"$f":"(_xll.RiskData(NR_to_Cash!C$18,$A2365))/1000","v":{"$error":"#NAME?"}},{"$f":"(_xll.RiskData(NR_to_Cash!D$18,$A2365))/1000","v":{"$error":"#NAME?"}},{"$f":"(_xll.RiskData(NR_to_Cash!E$18,$A2365))/1000","v":{"$error":"#NAME?"}}]
[2359,{"$f":"_xll.RiskData('Risk Summary'!J$48,$A2366)/1000","v":{"$error":"#NAME?"}},{"$f":"_xll.RiskData('Risk Summary'!K$48,$A2366)/1000","v":{"$error":"#NAME?"}},{"$f":"_xll.RiskData('Risk Summary'!L$48,$A2366)/1000","v":{"$error":"#NAME?"}},null,null,{"$f":"(_xll.RiskData(NR_to_Cash!C$18,$A2366))/1000","v":{"$error":"#NAME?"}},{"$f":"(_xll.RiskData(NR_to_Cash!D$18,$A2366))/1000","v":{"$error":"#NAME?"}},{"$f":"(_xll.RiskData(NR_to_Cash!E$18,$A2366))/1000","v":{"$error":"#NAME?"}}]
[2360,{"$f":"_xll.RiskData('Risk Summary'!J$48,$A2367)/1000","v":{"$error":"#NAME?"}},{"$f":"_xll.RiskData('Risk Summary'!K$48,$A2367)/1000","v":{"$error":"#NAME?"}},{"$f":"_xll.RiskData('Risk Summary'!L$48,$A2367)/1000","v":{"$error":"#NAME?"}},null,null,{"$f":"(_xll.RiskData(NR_to_Cash!C$18,$A2367))/1000","v":{"$error":"#NAME?"}},{"$f":"(_xll.RiskData(NR_to_Cash!D$18,$A2367))/1000","v":{"$error":"#NAME?"}},{"$f":"(_xll.RiskData(NR_to_Cash!E$18,$A2367))/1000","v":{"$error":"#NAME?"}}]
[2361,{"$f":"_xll.RiskData('Risk Summary'!J$48,$A2368)/1000","v":{"$error":"#NAME?"}},{"$f":"_xll.RiskData('Risk Summary'!K$48,$A2368)/1000","v":{"$error":"#NAME?"}},{"$f":"_xll.RiskData('Risk Summary'!L$48,$A2368)/1000","v":{"$error":"#NAME?"}},null,null,{"$f":"(_xll.RiskData(NR_to_Cash!C$18,$A2368))/1000","v":{"$error":"#NAME?"}},{"$f":"(_xll.RiskData(NR_to_Cash!D$18,$A2368))/1000","v":{"$error":"#NAME?"}},{"$f":"(_xll.RiskData(NR_to_Cash!E$18,$A2368))/1000","v":{"$error":"#NAME?"}}]
[2362,{"$f":"_xll.RiskData('Risk Summary'!J$48,$A2369)/1000","v":{"$error":"#NAME?"}},{"$f":"_xll.RiskData('Risk Summary'!K$48,$A2369)/1000","v":{"$error":"#NAME?"}},{"$f":"_xll.RiskData('Risk Summary'!L$48,$A2369)/1000","v":{"$error":"#NAME?"}},null,null,{"$f":"(_xll.RiskData(NR_to_Cash!C$18,$A2369))/1000","v":{"$error":"#NAME?"}},{"$f":"(_xll.RiskData(NR_to_Cash!D$18,$A2369))/1000","v":{"$error":"#NAME?"}},{"$f":"(_xll.RiskData(NR_to_Cash!E$18,$A2369))/1000","v":{"$error":"#NAME?"}}]
[2363,{"$f":"_xll.RiskData('Risk Summary'!J$48,$A2370)/1000","v":{"$error":"#NAME?"}},{"$f":"_xll.RiskData('Risk Summary'!K$48,$A2370)/1000","v":{"$error":"#NAME?"}},{"$f":"_xll.RiskData('Risk Summary'!L$48,$A2370)/1000","v":{"$error":"#NAME?"}},null,null,{"$f":"(_xll.RiskData(NR_to_Cash!C$18,$A2370))/1000","v":{"$error":"#NAME?"}},{"$f":"(_xll.RiskData(NR_to_Cash!D$18,$A2370))/1000","v":{"$error":"#NAME?"}},{"$f":"(_xll.RiskData(NR_to_Cash!E$18,$A2370))/1000","v":{"$error":"#NAME?"}}]
[2364,{"$f":"_xll.RiskData('Risk Summary'!J$48,$A2371)/1000","v":{"$error":"#NAME?"}},{"$f":"_xll.RiskData('Risk Summary'!K$48,$A2371)/1000","v":{"$error":"#NAME?"}},{"$f":"_xll.RiskData('Risk Summary'!L$48,$A2371)/1000","v":{"$error":"#NAME?"}},null,null,{"$f":"(_xll.RiskData(NR_to_Cash!C$18,$A2371))/1000","v":{"$error":"#NAME?"}},{"$f":"(_xll.RiskData(NR_to_Cash!D$18,$A2371))/1000","v":{"$error":"#NAME?"}},{"$f":"(_xll.RiskData(NR_to_Cash!E$18,$A2371))/1000","v":{"$error":"#NAME?"}}]
[2365,{"$f":"_xll.RiskData('Risk Summary'!J$48,$A2372)/1000","v":{"$error":"#NAME?"}},{"$f":"_xll.RiskData('Risk Summary'!K$48,$A2372)/1000","v":{"$error":"#NAME?"}},{"$f":"_xll.RiskData('Risk Summary'!L$48,$A2372)/1000","v":{"$error":"#NAME?"}},null,null,{"$f":"(_xll.RiskData(NR_to_Cash!C$18,$A2372))/1000","v":{"$error":"#NAME?"}},{"$f":"(_xll.RiskData(NR_to_Cash!D$18,$A2372))/1000","v":{"$error":"#NAME?"}},{"$f":"(_xll.RiskData(NR_to_Cash!E$18,$A2372))/1000","v":{"$error":"#NAME?"}}]
[2366,{"$f":"_xll.RiskData('Risk Summary'!J$48,$A2373)/1000","v":{"$error":"#NAME?"}},{"$f":"_xll.RiskData('Risk Summary'!K$48,$A2373)/1000","v":{"$error":"#NAME?"}},{"$f":"_xll.RiskData('Risk Summary'!L$48,$A2373)/1000","v":{"$error":"#NAME?"}},null,null,{"$f":"(_xll.RiskData(NR_to_Cash!C$18,$A2373))/1000","v":{"$error":"#NAME?"}},{"$f":"(_xll.RiskData(NR_to_Cash!D$18,$A2373))/1000","v":{"$error":"#NAME?"}},{"$f":"(_xll.RiskData(NR_to_Cash!E$18,$A2373))/1000","v":{"$error":"#NAME?"}}]
[2367,{"$f":"_xll.RiskData('Risk Summary'!J$48,$A2374)/1000","v":{"$error":"#NAME?"}},{"$f":"_xll.RiskData('Risk Summary'!K$48,$A2374)/1000","v":{"$error":"#NAME?"}},{"$f":"_xll.RiskData('Risk Summary'!L$48,$A2374)/1000","v":{"$error":"#NAME?"}},null,null,{"$f":"(_xll.RiskData(NR_to_Cash!C$18,$A2374))/1000","v":{"$error":"#NAME?"}},{"$f":"(_xll.RiskData(NR_to_Cash!D$18,$A2374))/1000","v":{"$error":"#NAME?"}},{"$f":"(_xll.RiskData(NR_to_Cash!E$18,$A2374))/1000","v":{"$error":"#NAME?"}}]
[2368,{"$f":"_xll.RiskData('Risk Summary'!J$48,$A2375)/1000","v":{"$error":"#NAME?"}},{"$f":"_xll.RiskData('Risk Summary'!K$48,$A2375)/1000","v":{"$error":"#NAME?"}},{"$f":"_xll.RiskData('Risk Summary'!L$48,$A2375)/1000","v":{"$error":"#NAME?"}},null,null,{"$f":"(_xll.RiskData(NR_to_Cash!C$18,$A2375))/1000","v":{"$error":"#NAME?"}},{"$f":"(_xll.RiskData(NR_to_Cash!D$18,$A2375))/1000","v":{"$error":"#NAME?"}},{"$f":"(_xll.RiskData(NR_to_Cash!E$18,$A2375))/1000","v":{"$error":"#NAME?"}}]
[2369,{"$f":"_xll.RiskData('Risk Summary'!J$48,$A2376)/1000","v":{"$error":"#NAME?"}},{"$f":"_xll.RiskData('Risk Summary'!K$48,$A2376)/1000","v":{"$error":"#NAME?"}},{"$f":"_xll.RiskData('Risk Summary'!L$48,$A2376)/1000","v":{"$error":"#NAME?"}},null,null,{"$f":"(_xll.RiskData(NR_to_Cash!C$18,$A2376))/1000","v":{"$error":"#NAME?"}},{"$f":"(_xll.RiskData(NR_to_Cash!D$18,$A2376))/1000","v":{"$error":"#NAME?"}},{"$f":"(_xll.RiskData(NR_to_Cash!E$18,$A2376))/1000","v":{"$error":"#NAME?"}}]
[2370,{"$f":"_xll.RiskData('Risk Summary'!J$48,$A2377)/1000","v":{"$error":"#NAME?"}},{"$f":"_xll.RiskData('Risk Summary'!K$48,$A2377)/1000","v":{"$error":"#NAME?"}},{"$f":"_xll.RiskData('Risk Summary'!L$48,$A2377)/1000","v":{"$error":"#NAME?"}},null,null,{"$f":"(_xll.RiskData(NR_to_Cash!C$18,$A2377))/1000","v":{"$error":"#NAME?"}},{"$f":"(_xll.RiskData(NR_to_Cash!D$18,$A2377))/1000","v":{"$error":"#NAME?"}},{"$f":"(_xll.RiskData(NR_to_Cash!E$18,$A2377))/1000","v":{"$error":"#NAME?"}}]
[2371,{"$f":"_xll.RiskData('Risk Summary'!J$48,$A2378)/1000","v":{"$error":"#NAME?"}},{"$f":"_xll.RiskData('Risk Summary'!K$48,$A2378)/1000","v":{"$error":"#NAME?"}},{"$f":"_xll.RiskData('Risk Summary'!L$48,$A2378)/1000","v":{"$error":"#NAME?"}},null,null,{"$f":"(_xll.RiskData(NR_to_Cash!C$18,$A2378))/1000","v":{"$error":"#NAME?"}},{"$f":"(_xll.RiskData(NR_to_Cash!D$18,$A2378))/1000","v":{"$error":"#NAME?"}},{"$f":"(_xll.RiskData(NR_to_Cash!E$18,$A2378))/1000","v":{"$error":"#NAME?"}}]
[2372,{"$f":"_xll.RiskData('Risk Summary'!J$48,$A2379)/1000","v":{"$error":"#NAME?"}},{"$f":"_xll.RiskData('Risk Summary'!K$48,$A2379)/1000","v":{"$error":"#NAME?"}},{"$f":"_xll.RiskData('Risk Summary'!L$48,$A2379)/1000","v":{"$error":"#NAME?"}},null,null,{"$f":"(_xll.RiskData(NR_to_Cash!C$18,$A2379))/1000","v":{"$error":"#NAME?"}},{"$f":"(_xll.RiskData(NR_to_Cash!D$18,$A2379))/1000","v":{"$error":"#NAME?"}},{"$f":"(_xll.RiskData(NR_to_Cash!E$18,$A2379))/1000","v":{"$error":"#NAME?"}}]
[2373,{"$f":"_xll.RiskData('Risk Summary'!J$48,$A2380)/1000","v":{"$error":"#NAME?"}},{"$f":"_xll.RiskData('Risk Summary'!K$48,$A2380)/1000","v":{"$error":"#NAME?"}},{"$f":"_xll.RiskData('Risk Summary'!L$48,$A2380)/1000","v":{"$error":"#NAME?"}},null,null,{"$f":"(_xll.RiskData(NR_to_Cash!C$18,$A2380))/1000","v":{"$error":"#NAME?"}},{"$f":"(_xll.RiskData(NR_to_Cash!D$18,$A2380))/1000","v":{"$error":"#NAME?"}},{"$f":"(_xll.RiskData(NR_to_Cash!E$18,$A2380))/1000","v":{"$error":"#NAME?"}}]
[2374,{"$f":"_xll.RiskData('Risk Summary'!J$48,$A2381)/1000","v":{"$error":"#NAME?"}},{"$f":"_xll.RiskData('Risk Summary'!K$48,$A2381)/1000","v":{"$error":"#NAME?"}},{"$f":"_xll.RiskData('Risk Summary'!L$48,$A2381)/1000","v":{"$error":"#NAME?"}},null,null,{"$f":"(_xll.RiskData(NR_to_Cash!C$18,$A2381))/1000","v":{"$error":"#NAME?"}},{"$f":"(_xll.RiskData(NR_to_Cash!D$18,$A2381))/1000","v":{"$error":"#NAME?"}},{"$f":"(_xll.RiskData(NR_to_Cash!E$18,$A2381))/1000","v":{"$error":"#NAME?"}}]
[2375,{"$f":"_xll.RiskData('Risk Summary'!J$48,$A2382)/1000","v":{"$error":"#NAME?"}},{"$f":"_xll.RiskData('Risk Summary'!K$48,$A2382)/1000","v":{"$error":"#NAME?"}},{"$f":"_xll.RiskData('Risk Summary'!L$48,$A2382)/1000","v":{"$error":"#NAME?"}},null,null,{"$f":"(_xll.RiskData(NR_to_Cash!C$18,$A2382))/1000","v":{"$error":"#NAME?"}},{"$f":"(_xll.RiskData(NR_to_Cash!D$18,$A2382))/1000","v":{"$error":"#NAME?"}},{"$f":"(_xll.RiskData(NR_to_Cash!E$18,$A2382))/1000","v":{"$error":"#NAME?"}}]
[2376,{"$f":"_xll.RiskData('Risk Summary'!J$48,$A2383)/1000","v":{"$error":"#NAME?"}},{"$f":"_xll.RiskData('Risk Summary'!K$48,$A2383)/1000","v":{"$error":"#NAME?"}},{"$f":"_xll.RiskData('Risk Summary'!L$48,$A2383)/1000","v":{"$error":"#NAME?"}},null,null,{"$f":"(_xll.RiskData(NR_to_Cash!C$18,$A2383))/1000","v":{"$error":"#NAME?"}},{"$f":"(_xll.RiskData(NR_to_Cash!D$18,$A2383))/1000","v":{"$error":"#NAME?"}},{"$f":"(_xll.RiskData(NR_to_Cash!E$18,$A2383))/1000","v":{"$error":"#NAME?"}}]
[2377,{"$f":"_xll.RiskData('Risk Summary'!J$48,$A2384)/1000","v":{"$error":"#NAME?"}},{"$f":"_xll.RiskData('Risk Summary'!K$48,$A2384)/1000","v":{"$error":"#NAME?"}},{"$f":"_xll.RiskData('Risk Summary'!L$48,$A2384)/1000","v":{"$error":"#NAME?"}},null,null,{"$f":"(_xll.RiskData(NR_to_Cash!C$18,$A2384))/1000","v":{"$error":"#NAME?"}},{"$f":"(_xll.RiskData(NR_to_Cash!D$18,$A2384))/1000","v":{"$error":"#NAME?"}},{"$f":"(_xll.RiskData(NR_to_Cash!E$18,$A2384))/1000","v":{"$error":"#NAME?"}}]
[2378,{"$f":"_xll.RiskData('Risk Summary'!J$48,$A2385)/1000","v":{"$error":"#NAME?"}},{"$f":"_xll.RiskData('Risk Summary'!K$48,$A2385)/1000","v":{"$error":"#NAME?"}},{"$f":"_xll.RiskData('Risk Summary'!L$48,$A2385)/1000","v":{"$error":"#NAME?"}},null,null,{"$f":"(_xll.RiskData(NR_to_Cash!C$18,$A2385))/1000","v":{"$error":"#NAME?"}},{"$f":"(_xll.RiskData(NR_to_Cash!D$18,$A2385))/1000","v":{"$error":"#NAME?"}},{"$f":"(_xll.RiskData(NR_to_Cash!E$18,$A2385))/1000","v":{"$error":"#NAME?"}}]
[2379,{"$f":"_xll.RiskData('Risk Summary'!J$48,$A2386)/1000","v":{"$error":"#NAME?"}},{"$f":"_xll.RiskData('Risk Summary'!K$48,$A2386)/1000","v":{"$error":"#NAME?"}},{"$f":"_xll.RiskData('Risk Summary'!L$48,$A2386)/1000","v":{"$error":"#NAME?"}},null,null,{"$f":"(_xll.RiskData(NR_to_Cash!C$18,$A2386))/1000","v":{"$error":"#NAME?"}},{"$f":"(_xll.RiskData(NR_to_Cash!D$18,$A2386))/1000","v":{"$error":"#NAME?"}},{"$f":"(_xll.RiskData(NR_to_Cash!E$18,$A2386))/1000","v":{"$error":"#NAME?"}}]
[2380,{"$f":"_xll.RiskData('Risk Summary'!J$48,$A2387)/1000","v":{"$error":"#NAME?"}},{"$f":"_xll.RiskData('Risk Summary'!K$48,$A2387)/1000","v":{"$error":"#NAME?"}},{"$f":"_xll.RiskData('Risk Summary'!L$48,$A2387)/1000","v":{"$error":"#NAME?"}},null,null,{"$f":"(_xll.RiskData(NR_to_Cash!C$18,$A2387))/1000","v":{"$error":"#NAME?"}},{"$f":"(_xll.RiskData(NR_to_Cash!D$18,$A2387))/1000","v":{"$error":"#NAME?"}},{"$f":"(_xll.RiskData(NR_to_Cash!E$18,$A2387))/1000","v":{"$error":"#NAME?"}}]
[2381,{"$f":"_xll.RiskData('Risk Summary'!J$48,$A2388)/1000","v":{"$error":"#NAME?"}},{"$f":"_xll.RiskData('Risk Summary'!K$48,$A2388)/1000","v":{"$error":"#NAME?"}},{"$f":"_xll.RiskData('Risk Summary'!L$48,$A2388)/1000","v":{"$error":"#NAME?"}},null,null,{"$f":"(_xll.RiskData(NR_to_Cash!C$18,$A2388))/1000","v":{"$error":"#NAME?"}},{"$f":"(_xll.RiskData(NR_to_Cash!D$18,$A2388))/1000","v":{"$error":"#NAME?"}},{"$f":"(_xll.RiskData(NR_to_Cash!E$18,$A2388))/1000","v":{"$error":"#NAME?"}}]
[2382,{"$f":"_xll.RiskData('Risk Summary'!J$48,$A2389)/1000","v":{"$error":"#NAME?"}},{"$f":"_xll.RiskData('Risk Summary'!K$48,$A2389)/1000","v":{"$error":"#NAME?"}},{"$f":"_xll.RiskData('Risk Summary'!L$48,$A2389)/1000","v":{"$error":"#NAME?"}},null,null,{"$f":"(_xll.RiskData(NR_to_Cash!C$18,$A2389))/1000","v":{"$error":"#NAME?"}},{"$f":"(_xll.RiskData(NR_to_Cash!D$18,$A2389))/1000","v":{"$error":"#NAME?"}},{"$f":"(_xll.RiskData(NR_to_Cash!E$18,$A2389))/1000","v":{"$error":"#NAME?"}}]
[2383,{"$f":"_xll.RiskData('Risk Summary'!J$48,$A2390)/1000","v":{"$error":"#NAME?"}},{"$f":"_xll.RiskData('Risk Summary'!K$48,$A2390)/1000","v":{"$error":"#NAME?"}},{"$f":"_xll.RiskData('Risk Summary'!L$48,$A2390)/1000","v":{"$error":"#NAME?"}},null,null,{"$f":"(_xll.RiskData(NR_to_Cash!C$18,$A2390))/1000","v":{"$error":"#NAME?"}},{"$f":"(_xll.RiskData(NR_to_Cash!D$18,$A2390))/1000","v":{"$error":"#NAME?"}},{"$f":"(_xll.RiskData(NR_to_Cash!E$18,$A2390))/1000","v":{"$error":"#NAME?"}}]
[2384,{"$f":"_xll.RiskData('Risk Summary'!J$48,$A2391)/1000","v":{"$error":"#NAME?"}},{"$f":"_xll.RiskData('Risk Summary'!K$48,$A2391)/1000","v":{"$error":"#NAME?"}},{"$f":"_xll.RiskData('Risk Summary'!L$48,$A2391)/1000","v":{"$error":"#NAME?"}},null,null,{"$f":"(_xll.RiskData(NR_to_Cash!C$18,$A2391))/1000","v":{"$error":"#NAME?"}},{"$f":"(_xll.RiskData(NR_to_Cash!D$18,$A2391))/1000","v":{"$error":"#NAME?"}},{"$f":"(_xll.RiskData(NR_to_Cash!E$18,$A2391))/1000","v":{"$error":"#NAME?"}}]
[2385,{"$f":"_xll.RiskData('Risk Summary'!J$48,$A2392)/1000","v":{"$error":"#NAME?"}},{"$f":"_xll.RiskData('Risk Summary'!K$48,$A2392)/1000","v":{"$error":"#NAME?"}},{"$f":"_xll.RiskData('Risk Summary'!L$48,$A2392)/1000","v":{"$error":"#NAME?"}},null,null,{"$f":"(_xll.RiskData(NR_to_Cash!C$18,$A2392))/1000","v":{"$error":"#NAME?"}},{"$f":"(_xll.RiskData(NR_to_Cash!D$18,$A2392))/1000","v":{"$error":"#NAME?"}},{"$f":"(_xll.RiskData(NR_to_Cash!E$18,$A2392))/1000","v":{"$error":"#NAME?"}}]
[2386,{"$f":"_xll.RiskData('Risk Summary'!J$48,$A2393)/1000","v":{"$error":"#NAME?"}},{"$f":"_xll.RiskData('Risk Summary'!K$48,$A2393)/1000","v":{"$error":"#NAME?"}},{"$f":"_xll.RiskData('Risk Summary'!L$48,$A2393)/1000","v":{"$error":"#NAME?"}},null,null,{"$f":"(_xll.RiskData(NR_to_Cash!C$18,$A2393))/1000","v":{"$error":"#NAME?"}},{"$f":"(_xll.RiskData(NR_to_Cash!D$18,$A2393))/1000","v":{"$error":"#NAME?"}},{"$f":"(_xll.RiskData(NR_to_Cash!E$18,$A2393))/1000","v":{"$error":"#NAME?"}}]
[2387,{"$f":"_xll.RiskData('Risk Summary'!J$48,$A2394)/1000","v":{"$error":"#NAME?"}},{"$f":"_xll.RiskData('Risk Summary'!K$48,$A2394)/1000","v":{"$error":"#NAME?"}},{"$f":"_xll.RiskData('Risk Summary'!L$48,$A2394)/1000","v":{"$error":"#NAME?"}},null,null,{"$f":"(_xll.RiskData(NR_to_Cash!C$18,$A2394))/1000","v":{"$error":"#NAME?"}},{"$f":"(_xll.RiskData(NR_to_Cash!D$18,$A2394))/1000","v":{"$error":"#NAME?"}},{"$f":"(_xll.RiskData(NR_to_Cash!E$18,$A2394))/1000","v":{"$error":"#NAME?"}}]
[2388,{"$f":"_xll.RiskData('Risk Summary'!J$48,$A2395)/1000","v":{"$error":"#NAME?"}},{"$f":"_xll.RiskData('Risk Summary'!K$48,$A2395)/1000","v":{"$error":"#NAME?"}},{"$f":"_xll.RiskData('Risk Summary'!L$48,$A2395)/1000","v":{"$error":"#NAME?"}},null,null,{"$f":"(_xll.RiskData(NR_to_Cash!C$18,$A2395))/1000","v":{"$error":"#NAME?"}},{"$f":"(_xll.RiskData(NR_to_Cash!D$18,$A2395))/1000","v":{"$error":"#NAME?"}},{"$f":"(_xll.RiskData(NR_to_Cash!E$18,$A2395))/1000","v":{"$error":"#NAME?"}}]
[2389,{"$f":"_xll.RiskData('Risk Summary'!J$48,$A2396)/1000","v":{"$error":"#NAME?"}},{"$f":"_xll.RiskData('Risk Summary'!K$48,$A2396)/1000","v":{"$error":"#NAME?"}},{"$f":"_xll.RiskData('Risk Summary'!L$48,$A2396)/1000","v":{"$error":"#NAME?"}},null,null,{"$f":"(_xll.RiskData(NR_to_Cash!C$18,$A2396))/1000","v":{"$error":"#NAME?"}},{"$f":"(_xll.RiskData(NR_to_Cash!D$18,$A2396))/1000","v":{"$error":"#NAME?"}},{"$f":"(_xll.RiskData(NR_to_Cash!E$18,$A2396))/1000","v":{"$error":"#NAME?"}}]
[2390,{"$f":"_xll.RiskData('Risk Summary'!J$48,$A2397)/1000","v":{"$error":"#NAME?"}},{"$f":"_xll.RiskData('Risk Summary'!K$48,$A2397)/1000","v":{"$error":"#NAME?"}},{"$f":"_xll.RiskData('Risk Summary'!L$48,$A2397)/1000","v":{"$error":"#NAME?"}},null,null,{"$f":"(_xll.RiskData(NR_to_Cash!C$18,$A2397))/1000","v":{"$error":"#NAME?"}},{"$f":"(_xll.RiskData(NR_to_Cash!D$18,$A2397))/1000","v":{"$error":"#NAME?"}},{"$f":"(_xll.RiskData(NR_to_Cash!E$18,$A2397))/1000","v":{"$error":"#NAME?"}}]
[2391,{"$f":"_xll.RiskData('Risk Summary'!J$48,$A2398)/1000","v":{"$error":"#NAME?"}},{"$f":"_xll.RiskData('Risk Summary'!K$48,$A2398)/1000","v":{"$error":"#NAME?"}},{"$f":"_xll.RiskData('Risk Summary'!L$48,$A2398)/1000","v":{"$error":"#NAME?"}},null,null,{"$f":"(_xll.RiskData(NR_to_Cash!C$18,$A2398))/1000","v":{"$error":"#NAME?"}},{"$f":"(_xll.RiskData(NR_to_Cash!D$18,$A2398))/1000","v":{"$error":"#NAME?"}},{"$f":"(_xll.RiskData(NR_to_Cash!E$18,$A2398))/1000","v":{"$error":"#NAME?"}}]
[2392,{"$f":"_xll.RiskData('Risk Summary'!J$48,$A2399)/1000","v":{"$error":"#NAME?"}},{"$f":"_xll.RiskData('Risk Summary'!K$48,$A2399)/1000","v":{"$error":"#NAME?"}},{"$f":"_xll.RiskData('Risk Summary'!L$48,$A2399)/1000","v":{"$error":"#NAME?"}},null,null,{"$f":"(_xll.RiskData(NR_to_Cash!C$18,$A2399))/1000","v":{"$error":"#NAME?"}},{"$f":"(_xll.RiskData(NR_to_Cash!D$18,$A2399))/1000","v":{"$error":"#NAME?"}},{"$f":"(_xll.RiskData(NR_to_Cash!E$18,$A2399))/1000","v":{"$error":"#NAME?"}}]
[2393,{"$f":"_xll.RiskData('Risk Summary'!J$48,$A2400)/1000","v":{"$error":"#NAME?"}},{"$f":"_xll.RiskData('Risk Summary'!K$48,$A2400)/1000","v":{"$error":"#NAME?"}},{"$f":"_xll.RiskData('Risk Summary'!L$48,$A2400)/1000","v":{"$error":"#NAME?"}},null,null,{"$f":"(_xll.RiskData(NR_to_Cash!C$18,$A2400))/1000","v":{"$error":"#NAME?"}},{"$f":"(_xll.RiskData(NR_to_Cash!D$18,$A2400))/1000","v":{"$error":"#NAME?"}},{"$f":"(_xll.RiskData(NR_to_Cash!E$18,$A2400))/1000","v":{"$error":"#NAME?"}}]
[2394,{"$f":"_xll.RiskData('Risk Summary'!J$48,$A2401)/1000","v":{"$error":"#NAME?"}},{"$f":"_xll.RiskData('Risk Summary'!K$48,$A2401)/1000","v":{"$error":"#NAME?"}},{"$f":"_xll.RiskData('Risk Summary'!L$48,$A2401)/1000","v":{"$error":"#NAME?"}},null,null,{"$f":"(_xll.RiskData(NR_to_Cash!C$18,$A2401))/1000","v":{"$error":"#NAME?"}},{"$f":"(_xll.RiskData(NR_to_Cash!D$18,$A2401))/1000","v":{"$error":"#NAME?"}},{"$f":"(_xll.RiskData(NR_to_Cash!E$18,$A2401))/1000","v":{"$error":"#NAME?"}}]
[2395,{"$f":"_xll.RiskData('Risk Summary'!J$48,$A2402)/1000","v":{"$error":"#NAME?"}},{"$f":"_xll.RiskData('Risk Summary'!K$48,$A2402)/1000","v":{"$error":"#NAME?"}},{"$f":"_xll.RiskData('Risk Summary'!L$48,$A2402)/1000","v":{"$error":"#NAME?"}},null,null,{"$f":"(_xll.RiskData(NR_to_Cash!C$18,$A2402))/1000","v":{"$error":"#NAME?"}},{"$f":"(_xll.RiskData(NR_to_Cash!D$18,$A2402))/1000","v":{"$error":"#NAME?"}},{"$f":"(_xll.RiskData(NR_to_Cash!E$18,$A2402))/1000","v":{"$error":"#NAME?"}}]
[2396,{"$f":"_xll.RiskData('Risk Summary'!J$48,$A2403)/1000","v":{"$error":"#NAME?"}},{"$f":"_xll.RiskData('Risk Summary'!K$48,$A2403)/1000","v":{"$error":"#NAME?"}},{"$f":"_xll.RiskData('Risk Summary'!L$48,$A2403)/1000","v":{"$error":"#NAME?"}},null,null,{"$f":"(_xll.RiskData(NR_to_Cash!C$18,$A2403))/1000","v":{"$error":"#NAME?"}},{"$f":"(_xll.RiskData(NR_to_Cash!D$18,$A2403))/1000","v":{"$error":"#NAME?"}},{"$f":"(_xll.RiskData(NR_to_Cash!E$18,$A2403))/1000","v":{"$error":"#NAME?"}}]
[2397,{"$f":"_xll.RiskData('Risk Summary'!J$48,$A2404)/1000","v":{"$error":"#NAME?"}},{"$f":"_xll.RiskData('Risk Summary'!K$48,$A2404)/1000","v":{"$error":"#NAME?"}},{"$f":"_xll.RiskData('Risk Summary'!L$48,$A2404)/1000","v":{"$error":"#NAME?"}},null,null,{"$f":"(_xll.RiskData(NR_to_Cash!C$18,$A2404))/1000","v":{"$error":"#NAME?"}},{"$f":"(_xll.RiskData(NR_to_Cash!D$18,$A2404))/1000","v":{"$error":"#NAME?"}},{"$f":"(_xll.RiskData(NR_to_Cash!E$18,$A2404))/1000","v":{"$error":"#NAME?"}}]
[2398,{"$f":"_xll.RiskData('Risk Summary'!J$48,$A2405)/1000","v":{"$error":"#NAME?"}},{"$f":"_xll.RiskData('Risk Summary'!K$48,$A2405)/1000","v":{"$error":"#NAME?"}},{"$f":"_xll.RiskData('Risk Summary'!L$48,$A2405)/1000","v":{"$error":"#NAME?"}},null,null,{"$f":"(_xll.RiskData(NR_to_Cash!C$18,$A2405))/1000","v":{"$error":"#NAME?"}},{"$f":"(_xll.RiskData(NR_to_Cash!D$18,$A2405))/1000","v":{"$error":"#NAME?"}},{"$f":"(_xll.RiskData(NR_to_Cash!E$18,$A2405))/1000","v":{"$error":"#NAME?"}}]
[2399,{"$f":"_xll.RiskData('Risk Summary'!J$48,$A2406)/1000","v":{"$error":"#NAME?"}},{"$f":"_xll.RiskData('Risk Summary'!K$48,$A2406)/1000","v":{"$error":"#NAME?"}},{"$f":"_xll.RiskData('Risk Summary'!L$48,$A2406)/1000","v":{"$error":"#NAME?"}},null,null,{"$f":"(_xll.RiskData(NR_to_Cash!C$18,$A2406))/1000","v":{"$error":"#NAME?"}},{"$f":"(_xll.RiskData(NR_to_Cash!D$18,$A2406))/1000","v":{"$error":"#NAME?"}},{"$f":"(_xll.RiskData(NR_to_Cash!E$18,$A2406))/1000","v":{"$error":"#NAME?"}}]
[2400,{"$f":"_xll.RiskData('Risk Summary'!J$48,$A2407)/1000","v":{"$error":"#NAME?"}},{"$f":"_xll.RiskData('Risk Summary'!K$48,$A2407)/1000","v":{"$error":"#NAME?"}},{"$f":"_xll.RiskData('Risk Summary'!L$48,$A2407)/1000","v":{"$error":"#NAME?"}},null,null,{"$f":"(_xll.RiskData(NR_to_Cash!C$18,$A2407))/1000","v":{"$error":"#NAME?"}},{"$f":"(_xll.RiskData(NR_to_Cash!D$18,$A2407))/1000","v":{"$error":"#NAME?"}},{"$f":"(_xll.RiskData(NR_to_Cash!E$18,$A2407))/1000","v":{"$error":"#NAME?"}}]
[2401,{"$f":"_xll.RiskData('Risk Summary'!J$48,$A2408)/1000","v":{"$error":"#NAME?"}},{"$f":"_xll.RiskData('Risk Summary'!K$48,$A2408)/1000","v":{"$error":"#NAME?"}},{"$f":"_xll.RiskData('Risk Summary'!L$48,$A2408)/1000","v":{"$error":"#NAME?"}},null,null,{"$f":"(_xll.RiskData(NR_to_Cash!C$18,$A2408))/1000","v":{"$error":"#NAME?"}},{"$f":"(_xll.RiskData(NR_to_Cash!D$18,$A2408))/1000","v":{"$error":"#NAME?"}},{"$f":"(_xll.RiskData(NR_to_Cash!E$18,$A2408))/1000","v":{"$error":"#NAME?"}}]
[2402,{"$f":"_xll.RiskData('Risk Summary'!J$48,$A2409)/1000","v":{"$error":"#NAME?"}},{"$f":"_xll.RiskData('Risk Summary'!K$48,$A2409)/1000","v":{"$error":"#NAME?"}},{"$f":"_xll.RiskData('Risk Summary'!L$48,$A2409)/1000","v":{"$error":"#NAME?"}},null,null,{"$f":"(_xll.RiskData(NR_to_Cash!C$18,$A2409))/1000","v":{"$error":"#NAME?"}},{"$f":"(_xll.RiskData(NR_to_Cash!D$18,$A2409))/1000","v":{"$error":"#NAME?"}},{"$f":"(_xll.RiskData(NR_to_Cash!E$18,$A2409))/1000","v":{"$error":"#NAME?"}}]
[2403,{"$f":"_xll.RiskData('Risk Summary'!J$48,$A2410)/1000","v":{"$error":"#NAME?"}},{"$f":"_xll.RiskData('Risk Summary'!K$48,$A2410)/1000","v":{"$error":"#NAME?"}},{"$f":"_xll.RiskData('Risk Summary'!L$48,$A2410)/1000","v":{"$error":"#NAME?"}},null,null,{"$f":"(_xll.RiskData(NR_to_Cash!C$18,$A2410))/1000","v":{"$error":"#NAME?"}},{"$f":"(_xll.RiskData(NR_to_Cash!D$18,$A2410))/1000","v":{"$error":"#NAME?"}},{"$f":"(_xll.RiskData(NR_to_Cash!E$18,$A2410))/1000","v":{"$error":"#NAME?"}}]
[2404,{"$f":"_xll.RiskData('Risk Summary'!J$48,$A2411)/1000","v":{"$error":"#NAME?"}},{"$f":"_xll.RiskData('Risk Summary'!K$48,$A2411)/1000","v":{"$error":"#NAME?"}},{"$f":"_xll.RiskData('Risk Summary'!L$48,$A2411)/1000","v":{"$error":"#NAME?"}},null,null,{"$f":"(_xll.RiskData(NR_to_Cash!C$18,$A2411))/1000","v":{"$error":"#NAME?"}},{"$f":"(_xll.RiskData(NR_to_Cash!D$18,$A2411))/1000","v":{"$error":"#NAME?"}},{"$f":"(_xll.RiskData(NR_to_Cash!E$18,$A2411))/1000","v":{"$error":"#NAME?"}}]
[2405,{"$f":"_xll.RiskData('Risk Summary'!J$48,$A2412)/1000","v":{"$error":"#NAME?"}},{"$f":"_xll.RiskData('Risk Summary'!K$48,$A2412)/1000","v":{"$error":"#NAME?"}},{"$f":"_xll.RiskData('Risk Summary'!L$48,$A2412)/1000","v":{"$error":"#NAME?"}},null,null,{"$f":"(_xll.RiskData(NR_to_Cash!C$18,$A2412))/1000","v":{"$error":"#NAME?"}},{"$f":"(_xll.RiskData(NR_to_Cash!D$18,$A2412))/1000","v":{"$error":"#NAME?"}},{"$f":"(_xll.RiskData(NR_to_Cash!E$18,$A2412))/1000","v":{"$error":"#NAME?"}}]
[2406,{"$f":"_xll.RiskData('Risk Summary'!J$48,$A2413)/1000","v":{"$error":"#NAME?"}},{"$f":"_xll.RiskData('Risk Summary'!K$48,$A2413)/1000","v":{"$error":"#NAME?"}},{"$f":"_xll.RiskData('Risk Summary'!L$48,$A2413)/1000","v":{"$error":"#NAME?"}},null,null,{"$f":"(_xll.RiskData(NR_to_Cash!C$18,$A2413))/1000","v":{"$error":"#NAME?"}},{"$f":"(_xll.RiskData(NR_to_Cash!D$18,$A2413))/1000","v":{"$error":"#NAME?"}},{"$f":"(_xll.RiskData(NR_to_Cash!E$18,$A2413))/1000","v":{"$error":"#NAME?"}}]
[2407,{"$f":"_xll.RiskData('Risk Summary'!J$48,$A2414)/1000","v":{"$error":"#NAME?"}},{"$f":"_xll.RiskData('Risk Summary'!K$48,$A2414)/1000","v":{"$error":"#NAME?"}},{"$f":"_xll.RiskData('Risk Summary'!L$48,$A2414)/1000","v":{"$error":"#NAME?"}},null,null,{"$f":"(_xll.RiskData(NR_to_Cash!C$18,$A2414))/1000","v":{"$error":"#NAME?"}},{"$f":"(_xll.RiskData(NR_to_Cash!D$18,$A2414))/1000","v":{"$error":"#NAME?"}},{"$f":"(_xll.RiskData(NR_to_Cash!E$18,$A2414))/1000","v":{"$error":"#NAME?"}}]
[2408,{"$f":"_xll.RiskData('Risk Summary'!J$48,$A2415)/1000","v":{"$error":"#NAME?"}},{"$f":"_xll.RiskData('Risk Summary'!K$48,$A2415)/1000","v":{"$error":"#NAME?"}},{"$f":"_xll.RiskData('Risk Summary'!L$48,$A2415)/1000","v":{"$error":"#NAME?"}},null,null,{"$f":"(_xll.RiskData(NR_to_Cash!C$18,$A2415))/1000","v":{"$error":"#NAME?"}},{"$f":"(_xll.RiskData(NR_to_Cash!D$18,$A2415))/1000","v":{"$error":"#NAME?"}},{"$f":"(_xll.RiskData(NR_to_Cash!E$18,$A2415))/1000","v":{"$error":"#NAME?"}}]
[2409,{"$f":"_xll.RiskData('Risk Summary'!J$48,$A2416)/1000","v":{"$error":"#NAME?"}},{"$f":"_xll.RiskData('Risk Summary'!K$48,$A2416)/1000","v":{"$error":"#NAME?"}},{"$f":"_xll.RiskData('Risk Summary'!L$48,$A2416)/1000","v":{"$error":"#NAME?"}},null,null,{"$f":"(_xll.RiskData(NR_to_Cash!C$18,$A2416))/1000","v":{"$error":"#NAME?"}},{"$f":"(_xll.RiskData(NR_to_Cash!D$18,$A2416))/1000","v":{"$error":"#NAME?"}},{"$f":"(_xll.RiskData(NR_to_Cash!E$18,$A2416))/1000","v":{"$error":"#NAME?"}}]
[2410,{"$f":"_xll.RiskData('Risk Summary'!J$48,$A2417)/1000","v":{"$error":"#NAME?"}},{"$f":"_xll.RiskData('Risk Summary'!K$48,$A2417)/1000","v":{"$error":"#NAME?"}},{"$f":"_xll.RiskData('Risk Summary'!L$48,$A2417)/1000","v":{"$error":"#NAME?"}},null,null,{"$f":"(_xll.RiskData(NR_to_Cash!C$18,$A2417))/1000","v":{"$error":"#NAME?"}},{"$f":"(_xll.RiskData(NR_to_Cash!D$18,$A2417))/1000","v":{"$error":"#NAME?"}},{"$f":"(_xll.RiskData(NR_to_Cash!E$18,$A2417))/1000","v":{"$error":"#NAME?"}}]
[2411,{"$f":"_xll.RiskData('Risk Summary'!J$48,$A2418)/1000","v":{"$error":"#NAME?"}},{"$f":"_xll.RiskData('Risk Summary'!K$48,$A2418)/1000","v":{"$error":"#NAME?"}},{"$f":"_xll.RiskData('Risk Summary'!L$48,$A2418)/1000","v":{"$error":"#NAME?"}},null,null,{"$f":"(_xll.RiskData(NR_to_Cash!C$18,$A2418))/1000","v":{"$error":"#NAME?"}},{"$f":"(_xll.RiskData(NR_to_Cash!D$18,$A2418))/1000","v":{"$error":"#NAME?"}},{"$f":"(_xll.RiskData(NR_to_Cash!E$18,$A2418))/1000","v":{"$error":"#NAME?"}}]
[2412,{"$f":"_xll.RiskData('Risk Summary'!J$48,$A2419)/1000","v":{"$error":"#NAME?"}},{"$f":"_xll.RiskData('Risk Summary'!K$48,$A2419)/1000","v":{"$error":"#NAME?"}},{"$f":"_xll.RiskData('Risk Summary'!L$48,$A2419)/1000","v":{"$error":"#NAME?"}},null,null,{"$f":"(_xll.RiskData(NR_to_Cash!C$18,$A2419))/1000","v":{"$error":"#NAME?"}},{"$f":"(_xll.RiskData(NR_to_Cash!D$18,$A2419))/1000","v":{"$error":"#NAME?"}},{"$f":"(_xll.RiskData(NR_to_Cash!E$18,$A2419))/1000","v":{"$error":"#NAME?"}}]
[2413,{"$f":"_xll.RiskData('Risk Summary'!J$48,$A2420)/1000","v":{"$error":"#NAME?"}},{"$f":"_xll.RiskData('Risk Summary'!K$48,$A2420)/1000","v":{"$error":"#NAME?"}},{"$f":"_xll.RiskData('Risk Summary'!L$48,$A2420)/1000","v":{"$error":"#NAME?"}},null,null,{"$f":"(_xll.RiskData(NR_to_Cash!C$18,$A2420))/1000","v":{"$error":"#NAME?"}},{"$f":"(_xll.RiskData(NR_to_Cash!D$18,$A2420))/1000","v":{"$error":"#NAME?"}},{"$f":"(_xll.RiskData(NR_to_Cash!E$18,$A2420))/1000","v":{"$error":"#NAME?"}}]
[2414,{"$f":"_xll.RiskData('Risk Summary'!J$48,$A2421)/1000","v":{"$error":"#NAME?"}},{"$f":"_xll.RiskData('Risk Summary'!K$48,$A2421)/1000","v":{"$error":"#NAME?"}},{"$f":"_xll.RiskData('Risk Summary'!L$48,$A2421)/1000","v":{"$error":"#NAME?"}},null,null,{"$f":"(_xll.RiskData(NR_to_Cash!C$18,$A2421))/1000","v":{"$error":"#NAME?"}},{"$f":"(_xll.RiskData(NR_to_Cash!D$18,$A2421))/1000","v":{"$error":"#NAME?"}},{"$f":"(_xll.RiskData(NR_to_Cash!E$18,$A2421))/1000","v":{"$error":"#NAME?"}}]
[2415,{"$f":"_xll.RiskData('Risk Summary'!J$48,$A2422)/1000","v":{"$error":"#NAME?"}},{"$f":"_xll.RiskData('Risk Summary'!K$48,$A2422)/1000","v":{"$error":"#NAME?"}},{"$f":"_xll.RiskData('Risk Summary'!L$48,$A2422)/1000","v":{"$error":"#NAME?"}},null,null,{"$f":"(_xll.RiskData(NR_to_Cash!C$18,$A2422))/1000","v":{"$error":"#NAME?"}},{"$f":"(_xll.RiskData(NR_to_Cash!D$18,$A2422))/1000","v":{"$error":"#NAME?"}},{"$f":"(_xll.RiskData(NR_to_Cash!E$18,$A2422))/1000","v":{"$error":"#NAME?"}}]
[2416,{"$f":"_xll.RiskData('Risk Summary'!J$48,$A2423)/1000","v":{"$error":"#NAME?"}},{"$f":"_xll.RiskData('Risk Summary'!K$48,$A2423)/1000","v":{"$error":"#NAME?"}},{"$f":"_xll.RiskData('Risk Summary'!L$48,$A2423)/1000","v":{"$error":"#NAME?"}},null,null,{"$f":"(_xll.RiskData(NR_to_Cash!C$18,$A2423))/1000","v":{"$error":"#NAME?"}},{"$f":"(_xll.RiskData(NR_to_Cash!D$18,$A2423))/1000","v":{"$error":"#NAME?"}},{"$f":"(_xll.RiskData(NR_to_Cash!E$18,$A2423))/1000","v":{"$error":"#NAME?"}}]
[2417,{"$f":"_xll.RiskData('Risk Summary'!J$48,$A2424)/1000","v":{"$error":"#NAME?"}},{"$f":"_xll.RiskData('Risk Summary'!K$48,$A2424)/1000","v":{"$error":"#NAME?"}},{"$f":"_xll.RiskData('Risk Summary'!L$48,$A2424)/1000","v":{"$error":"#NAME?"}},null,null,{"$f":"(_xll.RiskData(NR_to_Cash!C$18,$A2424))/1000","v":{"$error":"#NAME?"}},{"$f":"(_xll.RiskData(NR_to_Cash!D$18,$A2424))/1000","v":{"$error":"#NAME?"}},{"$f":"(_xll.RiskData(NR_to_Cash!E$18,$A2424))/1000","v":{"$error":"#NAME?"}}]
[2418,{"$f":"_xll.RiskData('Risk Summary'!J$48,$A2425)/1000","v":{"$error":"#NAME?"}},{"$f":"_xll.RiskData('Risk Summary'!K$48,$A2425)/1000","v":{"$error":"#NAME?"}},{"$f":"_xll.RiskData('Risk Summary'!L$48,$A2425)/1000","v":{"$error":"#NAME?"}},null,null,{"$f":"(_xll.RiskData(NR_to_Cash!C$18,$A2425))/1000","v":{"$error":"#NAME?"}},{"$f":"(_xll.RiskData(NR_to_Cash!D$18,$A2425))/1000","v":{"$error":"#NAME?"}},{"$f":"(_xll.RiskData(NR_to_Cash!E$18,$A2425))/1000","v":{"$error":"#NAME?"}}]
[2419,{"$f":"_xll.RiskData('Risk Summary'!J$48,$A2426)/1000","v":{"$error":"#NAME?"}},{"$f":"_xll.RiskData('Risk Summary'!K$48,$A2426)/1000","v":{"$error":"#NAME?"}},{"$f":"_xll.RiskData('Risk Summary'!L$48,$A2426)/1000","v":{"$error":"#NAME?"}},null,null,{"$f":"(_xll.RiskData(NR_to_Cash!C$18,$A2426))/1000","v":{"$error":"#NAME?"}},{"$f":"(_xll.RiskData(NR_to_Cash!D$18,$A2426))/1000","v":{"$error":"#NAME?"}},{"$f":"(_xll.RiskData(NR_to_Cash!E$18,$A2426))/1000","v":{"$error":"#NAME?"}}]
[2420,{"$f":"_xll.RiskData('Risk Summary'!J$48,$A2427)/1000","v":{"$error":"#NAME?"}},{"$f":"_xll.RiskData('Risk Summary'!K$48,$A2427)/1000","v":{"$error":"#NAME?"}},{"$f":"_xll.RiskData('Risk Summary'!L$48,$A2427)/1000","v":{"$error":"#NAME?"}},null,null,{"$f":"(_xll.RiskData(NR_to_Cash!C$18,$A2427))/1000","v":{"$error":"#NAME?"}},{"$f":"(_xll.RiskData(NR_to_Cash!D$18,$A2427))/1000","v":{"$error":"#NAME?"}},{"$f":"(_xll.RiskData(NR_to_Cash!E$18,$A2427))/1000","v":{"$error":"#NAME?"}}]
[2421,{"$f":"_xll.RiskData('Risk Summary'!J$48,$A2428)/1000","v":{"$error":"#NAME?"}},{"$f":"_xll.RiskData('Risk Summary'!K$48,$A2428)/1000","v":{"$error":"#NAME?"}},{"$f":"_xll.RiskData('Risk Summary'!L$48,$A2428)/1000","v":{"$error":"#NAME?"}},null,null,{"$f":"(_xll.RiskData(NR_to_Cash!C$18,$A2428))/1000","v":{"$error":"#NAME?"}},{"$f":"(_xll.RiskData(NR_to_Cash!D$18,$A2428))/1000","v":{"$error":"#NAME?"}},{"$f":"(_xll.RiskData(NR_to_Cash!E$18,$A2428))/1000","v":{"$error":"#NAME?"}}]
[2422,{"$f":"_xll.RiskData('Risk Summary'!J$48,$A2429)/1000","v":{"$error":"#NAME?"}},{"$f":"_xll.RiskData('Risk Summary'!K$48,$A2429)/1000","v":{"$error":"#NAME?"}},{"$f":"_xll.RiskData('Risk Summary'!L$48,$A2429)/1000","v":{"$error":"#NAME?"}},null,null,{"$f":"(_xll.RiskData(NR_to_Cash!C$18,$A2429))/1000","v":{"$error":"#NAME?"}},{"$f":"(_xll.RiskData(NR_to_Cash!D$18,$A2429))/1000","v":{"$error":"#NAME?"}},{"$f":"(_xll.RiskData(NR_to_Cash!E$18,$A2429))/1000","v":{"$error":"#NAME?"}}]
[2423,{"$f":"_xll.RiskData('Risk Summary'!J$48,$A2430)/1000","v":{"$error":"#NAME?"}},{"$f":"_xll.RiskData('Risk Summary'!K$48,$A2430)/1000","v":{"$error":"#NAME?"}},{"$f":"_xll.RiskData('Risk Summary'!L$48,$A2430)/1000","v":{"$error":"#NAME?"}},null,null,{"$f":"(_xll.RiskData(NR_to_Cash!C$18,$A2430))/1000","v":{"$error":"#NAME?"}},{"$f":"(_xll.RiskData(NR_to_Cash!D$18,$A2430))/1000","v":{"$error":"#NAME?"}},{"$f":"(_xll.RiskData(NR_to_Cash!E$18,$A2430))/1000","v":{"$error":"#NAME?"}}]
[2424,{"$f":"_xll.RiskData('Risk Summary'!J$48,$A2431)/1000","v":{"$error":"#NAME?"}},{"$f":"_xll.RiskData('Risk Summary'!K$48,$A2431)/1000","v":{"$error":"#NAME?"}},{"$f":"_xll.RiskData('Risk Summary'!L$48,$A2431)/1000","v":{"$error":"#NAME?"}},null,null,{"$f":"(_xll.RiskData(NR_to_Cash!C$18,$A2431))/1000","v":{"$error":"#NAME?"}},{"$f":"(_xll.RiskData(NR_to_Cash!D$18,$A2431))/1000","v":{"$error":"#NAME?"}},{"$f":"(_xll.RiskData(NR_to_Cash!E$18,$A2431))/1000","v":{"$error":"#NAME?"}}]
[2425,{"$f":"_xll.RiskData('Risk Summary'!J$48,$A2432)/1000","v":{"$error":"#NAME?"}},{"$f":"_xll.RiskData('Risk Summary'!K$48,$A2432)/1000","v":{"$error":"#NAME?"}},{"$f":"_xll.RiskData('Risk Summary'!L$48,$A2432)/1000","v":{"$error":"#NAME?"}},null,null,{"$f":"(_xll.RiskData(NR_to_Cash!C$18,$A2432))/1000","v":{"$error":"#NAME?"}},{"$f":"(_xll.RiskData(NR_to_Cash!D$18,$A2432))/1000","v":{"$error":"#NAME?"}},{"$f":"(_xll.RiskData(NR_to_Cash!E$18,$A2432))/1000","v":{"$error":"#NAME?"}}]
[2426,{"$f":"_xll.RiskData('Risk Summary'!J$48,$A2433)/1000","v":{"$error":"#NAME?"}},{"$f":"_xll.RiskData('Risk Summary'!K$48,$A2433)/1000","v":{"$error":"#NAME?"}},{"$f":"_xll.RiskData('Risk Summary'!L$48,$A2433)/1000","v":{"$error":"#NAME?"}},null,null,{"$f":"(_xll.RiskData(NR_to_Cash!C$18,$A2433))/1000","v":{"$error":"#NAME?"}},{"$f":"(_xll.RiskData(NR_to_Cash!D$18,$A2433))/1000","v":{"$error":"#NAME?"}},{"$f":"(_xll.RiskData(NR_to_Cash!E$18,$A2433))/1000","v":{"$error":"#NAME?"}}]
[2427,{"$f":"_xll.RiskData('Risk Summary'!J$48,$A2434)/1000","v":{"$error":"#NAME?"}},{"$f":"_xll.RiskData('Risk Summary'!K$48,$A2434)/1000","v":{"$error":"#NAME?"}},{"$f":"_xll.RiskData('Risk Summary'!L$48,$A2434)/1000","v":{"$error":"#NAME?"}},null,null,{"$f":"(_xll.RiskData(NR_to_Cash!C$18,$A2434))/1000","v":{"$error":"#NAME?"}},{"$f":"(_xll.RiskData(NR_to_Cash!D$18,$A2434))/1000","v":{"$error":"#NAME?"}},{"$f":"(_xll.RiskData(NR_to_Cash!E$18,$A2434))/1000","v":{"$error":"#NAME?"}}]
[2428,{"$f":"_xll.RiskData('Risk Summary'!J$48,$A2435)/1000","v":{"$error":"#NAME?"}},{"$f":"_xll.RiskData('Risk Summary'!K$48,$A2435)/1000","v":{"$error":"#NAME?"}},{"$f":"_xll.RiskData('Risk Summary'!L$48,$A2435)/1000","v":{"$error":"#NAME?"}},null,null,{"$f":"(_xll.RiskData(NR_to_Cash!C$18,$A2435))/1000","v":{"$error":"#NAME?"}},{"$f":"(_xll.RiskData(NR_to_Cash!D$18,$A2435))/1000","v":{"$error":"#NAME?"}},{"$f":"(_xll.RiskData(NR_to_Cash!E$18,$A2435))/1000","v":{"$error":"#NAME?"}}]
[2429,{"$f":"_xll.RiskData('Risk Summary'!J$48,$A2436)/1000","v":{"$error":"#NAME?"}},{"$f":"_xll.RiskData('Risk Summary'!K$48,$A2436)/1000","v":{"$error":"#NAME?"}},{"$f":"_xll.RiskData('Risk Summary'!L$48,$A2436)/1000","v":{"$error":"#NAME?"}},null,null,{"$f":"(_xll.RiskData(NR_to_Cash!C$18,$A2436))/1000","v":{"$error":"#NAME?"}},{"$f":"(_xll.RiskData(NR_to_Cash!D$18,$A2436))/1000","v":{"$error":"#NAME?"}},{"$f":"(_xll.RiskData(NR_to_Cash!E$18,$A2436))/1000","v":{"$error":"#NAME?"}}]
[2430,{"$f":"_xll.RiskData('Risk Summary'!J$48,$A2437)/1000","v":{"$error":"#NAME?"}},{"$f":"_xll.RiskData('Risk Summary'!K$48,$A2437)/1000","v":{"$error":"#NAME?"}},{"$f":"_xll.RiskData('Risk Summary'!L$48,$A2437)/1000","v":{"$error":"#NAME?"}},null,null,{"$f":"(_xll.RiskData(NR_to_Cash!C$18,$A2437))/1000","v":{"$error":"#NAME?"}},{"$f":"(_xll.RiskData(NR_to_Cash!D$18,$A2437))/1000","v":{"$error":"#NAME?"}},{"$f":"(_xll.RiskData(NR_to_Cash!E$18,$A2437))/1000","v":{"$error":"#NAME?"}}]
[2431,{"$f":"_xll.RiskData('Risk Summary'!J$48,$A2438)/1000","v":{"$error":"#NAME?"}},{"$f":"_xll.RiskData('Risk Summary'!K$48,$A2438)/1000","v":{"$error":"#NAME?"}},{"$f":"_xll.RiskData('Risk Summary'!L$48,$A2438)/1000","v":{"$error":"#NAME?"}},null,null,{"$f":"(_xll.RiskData(NR_to_Cash!C$18,$A2438))/1000","v":{"$error":"#NAME?"}},{"$f":"(_xll.RiskData(NR_to_Cash!D$18,$A2438))/1000","v":{"$error":"#NAME?"}},{"$f":"(_xll.RiskData(NR_to_Cash!E$18,$A2438))/1000","v":{"$error":"#NAME?"}}]
[2432,{"$f":"_xll.RiskData('Risk Summary'!J$48,$A2439)/1000","v":{"$error":"#NAME?"}},{"$f":"_xll.RiskData('Risk Summary'!K$48,$A2439)/1000","v":{"$error":"#NAME?"}},{"$f":"_xll.RiskData('Risk Summary'!L$48,$A2439)/1000","v":{"$error":"#NAME?"}},null,null,{"$f":"(_xll.RiskData(NR_to_Cash!C$18,$A2439))/1000","v":{"$error":"#NAME?"}},{"$f":"(_xll.RiskData(NR_to_Cash!D$18,$A2439))/1000","v":{"$error":"#NAME?"}},{"$f":"(_xll.RiskData(NR_to_Cash!E$18,$A2439))/1000","v":{"$error":"#NAME?"}}]
[2433,{"$f":"_xll.RiskData('Risk Summary'!J$48,$A2440)/1000","v":{"$error":"#NAME?"}},{"$f":"_xll.RiskData('Risk Summary'!K$48,$A2440)/1000","v":{"$error":"#NAME?"}},{"$f":"_xll.RiskData('Risk Summary'!L$48,$A2440)/1000","v":{"$error":"#NAME?"}},null,null,{"$f":"(_xll.RiskData(NR_to_Cash!C$18,$A2440))/1000","v":{"$error":"#NAME?"}},{"$f":"(_xll.RiskData(NR_to_Cash!D$18,$A2440))/1000","v":{"$error":"#NAME?"}},{"$f":"(_xll.RiskData(NR_to_Cash!E$18,$A2440))/1000","v":{"$error":"#NAME?"}}]
[2434,{"$f":"_xll.RiskData('Risk Summary'!J$48,$A2441)/1000","v":{"$error":"#NAME?"}},{"$f":"_xll.RiskData('Risk Summary'!K$48,$A2441)/1000","v":{"$error":"#NAME?"}},{"$f":"_xll.RiskData('Risk Summary'!L$48,$A2441)/1000","v":{"$error":"#NAME?"}},null,null,{"$f":"(_xll.RiskData(NR_to_Cash!C$18,$A2441))/1000","v":{"$error":"#NAME?"}},{"$f":"(_xll.RiskData(NR_to_Cash!D$18,$A2441))/1000","v":{"$error":"#NAME?"}},{"$f":"(_xll.RiskData(NR_to_Cash!E$18,$A2441))/1000","v":{"$error":"#NAME?"}}]
[2435,{"$f":"_xll.RiskData('Risk Summary'!J$48,$A2442)/1000","v":{"$error":"#NAME?"}},{"$f":"_xll.RiskData('Risk Summary'!K$48,$A2442)/1000","v":{"$error":"#NAME?"}},{"$f":"_xll.RiskData('Risk Summary'!L$48,$A2442)/1000","v":{"$error":"#NAME?"}},null,null,{"$f":"(_xll.RiskData(NR_to_Cash!C$18,$A2442))/1000","v":{"$error":"#NAME?"}},{"$f":"(_xll.RiskData(NR_to_Cash!D$18,$A2442))/1000","v":{"$error":"#NAME?"}},{"$f":"(_xll.RiskData(NR_to_Cash!E$18,$A2442))/1000","v":{"$error":"#NAME?"}}]
[2436,{"$f":"_xll.RiskData('Risk Summary'!J$48,$A2443)/1000","v":{"$error":"#NAME?"}},{"$f":"_xll.RiskData('Risk Summary'!K$48,$A2443)/1000","v":{"$error":"#NAME?"}},{"$f":"_xll.RiskData('Risk Summary'!L$48,$A2443)/1000","v":{"$error":"#NAME?"}},null,null,{"$f":"(_xll.RiskData(NR_to_Cash!C$18,$A2443))/1000","v":{"$error":"#NAME?"}},{"$f":"(_xll.RiskData(NR_to_Cash!D$18,$A2443))/1000","v":{"$error":"#NAME?"}},{"$f":"(_xll.RiskData(NR_to_Cash!E$18,$A2443))/1000","v":{"$error":"#NAME?"}}]
[2437,{"$f":"_xll.RiskData('Risk Summary'!J$48,$A2444)/1000","v":{"$error":"#NAME?"}},{"$f":"_xll.RiskData('Risk Summary'!K$48,$A2444)/1000","v":{"$error":"#NAME?"}},{"$f":"_xll.RiskData('Risk Summary'!L$48,$A2444)/1000","v":{"$error":"#NAME?"}},null,null,{"$f":"(_xll.RiskData(NR_to_Cash!C$18,$A2444))/1000","v":{"$error":"#NAME?"}},{"$f":"(_xll.RiskData(NR_to_Cash!D$18,$A2444))/1000","v":{"$error":"#NAME?"}},{"$f":"(_xll.RiskData(NR_to_Cash!E$18,$A2444))/1000","v":{"$error":"#NAME?"}}]
[2438,{"$f":"_xll.RiskData('Risk Summary'!J$48,$A2445)/1000","v":{"$error":"#NAME?"}},{"$f":"_xll.RiskData('Risk Summary'!K$48,$A2445)/1000","v":{"$error":"#NAME?"}},{"$f":"_xll.RiskData('Risk Summary'!L$48,$A2445)/1000","v":{"$error":"#NAME?"}},null,null,{"$f":"(_xll.RiskData(NR_to_Cash!C$18,$A2445))/1000","v":{"$error":"#NAME?"}},{"$f":"(_xll.RiskData(NR_to_Cash!D$18,$A2445))/1000","v":{"$error":"#NAME?"}},{"$f":"(_xll.RiskData(NR_to_Cash!E$18,$A2445))/1000","v":{"$error":"#NAME?"}}]
[2439,{"$f":"_xll.RiskData('Risk Summary'!J$48,$A2446)/1000","v":{"$error":"#NAME?"}},{"$f":"_xll.RiskData('Risk Summary'!K$48,$A2446)/1000","v":{"$error":"#NAME?"}},{"$f":"_xll.RiskData('Risk Summary'!L$48,$A2446)/1000","v":{"$error":"#NAME?"}},null,null,{"$f":"(_xll.RiskData(NR_to_Cash!C$18,$A2446))/1000","v":{"$error":"#NAME?"}},{"$f":"(_xll.RiskData(NR_to_Cash!D$18,$A2446))/1000","v":{"$error":"#NAME?"}},{"$f":"(_xll.RiskData(NR_to_Cash!E$18,$A2446))/1000","v":{"$error":"#NAME?"}}]
[2440,{"$f":"_xll.RiskData('Risk Summary'!J$48,$A2447)/1000","v":{"$error":"#NAME?"}},{"$f":"_xll.RiskData('Risk Summary'!K$48,$A2447)/1000","v":{"$error":"#NAME?"}},{"$f":"_xll.RiskData('Risk Summary'!L$48,$A2447)/1000","v":{"$error":"#NAME?"}},null,null,{"$f":"(_xll.RiskData(NR_to_Cash!C$18,$A2447))/1000","v":{"$error":"#NAME?"}},{"$f":"(_xll.RiskData(NR_to_Cash!D$18,$A2447))/1000","v":{"$error":"#NAME?"}},{"$f":"(_xll.RiskData(NR_to_Cash!E$18,$A2447))/1000","v":{"$error":"#NAME?"}}]
[2441,{"$f":"_xll.RiskData('Risk Summary'!J$48,$A2448)/1000","v":{"$error":"#NAME?"}},{"$f":"_xll.RiskData('Risk Summary'!K$48,$A2448)/1000","v":{"$error":"#NAME?"}},{"$f":"_xll.RiskData('Risk Summary'!L$48,$A2448)/1000","v":{"$error":"#NAME?"}},null,null,{"$f":"(_xll.RiskData(NR_to_Cash!C$18,$A2448))/1000","v":{"$error":"#NAME?"}},{"$f":"(_xll.RiskData(NR_to_Cash!D$18,$A2448))/1000","v":{"$error":"#NAME?"}},{"$f":"(_xll.RiskData(NR_to_Cash!E$18,$A2448))/1000","v":{"$error":"#NAME?"}}]
[2442,{"$f":"_xll.RiskData('Risk Summary'!J$48,$A2449)/1000","v":{"$error":"#NAME?"}},{"$f":"_xll.RiskData('Risk Summary'!K$48,$A2449)/1000","v":{"$error":"#NAME?"}},{"$f":"_xll.RiskData('Risk Summary'!L$48,$A2449)/1000","v":{"$error":"#NAME?"}},null,null,{"$f":"(_xll.RiskData(NR_to_Cash!C$18,$A2449))/1000","v":{"$error":"#NAME?"}},{"$f":"(_xll.RiskData(NR_to_Cash!D$18,$A2449))/1000","v":{"$error":"#NAME?"}},{"$f":"(_xll.RiskData(NR_to_Cash!E$18,$A2449))/1000","v":{"$error":"#NAME?"}}]
[2443,{"$f":"_xll.RiskData('Risk Summary'!J$48,$A2450)/1000","v":{"$error":"#NAME?"}},{"$f":"_xll.RiskData('Risk Summary'!K$48,$A2450)/1000","v":{"$error":"#NAME?"}},{"$f":"_xll.RiskData('Risk Summary'!L$48,$A2450)/1000","v":{"$error":"#NAME?"}},null,null,{"$f":"(_xll.RiskData(NR_to_Cash!C$18,$A2450))/1000","v":{"$error":"#NAME?"}},{"$f":"(_xll.RiskData(NR_to_Cash!D$18,$A2450))/1000","v":{"$error":"#NAME?"}},{"$f":"(_xll.RiskData(NR_to_Cash!E$18,$A2450))/1000","v":{"$error":"#NAME?"}}]
[2444,{"$f":"_xll.RiskData('Risk Summary'!J$48,$A2451)/1000","v":{"$error":"#NAME?"}},{"$f":"_xll.RiskData('Risk Summary'!K$48,$A2451)/1000","v":{"$error":"#NAME?"}},{"$f":"_xll.RiskData('Risk Summary'!L$48,$A2451)/1000","v":{"$error":"#NAME?"}},null,null,{"$f":"(_xll.RiskData(NR_to_Cash!C$18,$A2451))/1000","v":{"$error":"#NAME?"}},{"$f":"(_xll.RiskData(NR_to_Cash!D$18,$A2451))/1000","v":{"$error":"#NAME?"}},{"$f":"(_xll.RiskData(NR_to_Cash!E$18,$A2451))/1000","v":{"$error":"#NAME?"}}]
[2445,{"$f":"_xll.RiskData('Risk Summary'!J$48,$A2452)/1000","v":{"$error":"#NAME?"}},{"$f":"_xll.RiskData('Risk Summary'!K$48,$A2452)/1000","v":{"$error":"#NAME?"}},{"$f":"_xll.RiskData('Risk Summary'!L$48,$A2452)/1000","v":{"$error":"#NAME?"}},null,null,{"$f":"(_xll.RiskData(NR_to_Cash!C$18,$A2452))/1000","v":{"$error":"#NAME?"}},{"$f":"(_xll.RiskData(NR_to_Cash!D$18,$A2452))/1000","v":{"$error":"#NAME?"}},{"$f":"(_xll.RiskData(NR_to_Cash!E$18,$A2452))/1000","v":{"$error":"#NAME?"}}]
[2446,{"$f":"_xll.RiskData('Risk Summary'!J$48,$A2453)/1000","v":{"$error":"#NAME?"}},{"$f":"_xll.RiskData('Risk Summary'!K$48,$A2453)/1000","v":{"$error":"#NAME?"}},{"$f":"_xll.RiskData('Risk Summary'!L$48,$A2453)/1000","v":{"$error":"#NAME?"}},null,null,{"$f":"(_xll.RiskData(NR_to_Cash!C$18,$A2453))/1000","v":{"$error":"#NAME?"}},{"$f":"(_xll.RiskData(NR_to_Cash!D$18,$A2453))/1000","v":{"$error":"#NAME?"}},{"$f":"(_xll.RiskData(NR_to_Cash!E$18,$A2453))/1000","v":{"$error":"#NAME?"}}]
[2447,{"$f":"_xll.RiskData('Risk Summary'!J$48,$A2454)/1000","v":{"$error":"#NAME?"}},{"$f":"_xll.RiskData('Risk Summary'!K$48,$A2454)/1000","v":{"$error":"#NAME?"}},{"$f":"_xll.RiskData('Risk Summary'!L$48,$A2454)/1000","v":{"$error":"#NAME?"}},null,null,{"$f":"(_xll.RiskData(NR_to_Cash!C$18,$A2454))/1000","v":{"$error":"#NAME?"}},{"$f":"(_xll.RiskData(NR_to_Cash!D$18,$A2454))/1000","v":{"$error":"#NAME?"}},{"$f":"(_xll.RiskData(NR_to_Cash!E$18,$A2454))/1000","v":{"$error":"#NAME?"}}]
[2448,{"$f":"_xll.RiskData('Risk Summary'!J$48,$A2455)/1000","v":{"$error":"#NAME?"}},{"$f":"_xll.RiskData('Risk Summary'!K$48,$A2455)/1000","v":{"$error":"#NAME?"}},{"$f":"_xll.RiskData('Risk Summary'!L$48,$A2455)/1000","v":{"$error":"#NAME?"}},null,null,{"$f":"(_xll.RiskData(NR_to_Cash!C$18,$A2455))/1000","v":{"$error":"#NAME?"}},{"$f":"(_xll.RiskData(NR_to_Cash!D$18,$A2455))/1000","v":{"$error":"#NAME?"}},{"$f":"(_xll.RiskData(NR_to_Cash!E$18,$A2455))/1000","v":{"$error":"#NAME?"}}]
[2449,{"$f":"_xll.RiskData('Risk Summary'!J$48,$A2456)/1000","v":{"$error":"#NAME?"}},{"$f":"_xll.RiskData('Risk Summary'!K$48,$A2456)/1000","v":{"$error":"#NAME?"}},{"$f":"_xll.RiskData('Risk Summary'!L$48,$A2456)/1000","v":{"$error":"#NAME?"}},null,null,{"$f":"(_xll.RiskData(NR_to_Cash!C$18,$A2456))/1000","v":{"$error":"#NAME?"}},{"$f":"(_xll.RiskData(NR_to_Cash!D$18,$A2456))/1000","v":{"$error":"#NAME?"}},{"$f":"(_xll.RiskData(NR_to_Cash!E$18,$A2456))/1000","v":{"$error":"#NAME?"}}]
[2450,{"$f":"_xll.RiskData('Risk Summary'!J$48,$A2457)/1000","v":{"$error":"#NAME?"}},{"$f":"_xll.RiskData('Risk Summary'!K$48,$A2457)/1000","v":{"$error":"#NAME?"}},{"$f":"_xll.RiskData('Risk Summary'!L$48,$A2457)/1000","v":{"$error":"#NAME?"}},null,null,{"$f":"(_xll.RiskData(NR_to_Cash!C$18,$A2457))/1000","v":{"$error":"#NAME?"}},{"$f":"(_xll.RiskData(NR_to_Cash!D$18,$A2457))/1000","v":{"$error":"#NAME?"}},{"$f":"(_xll.RiskData(NR_to_Cash!E$18,$A2457))/1000","v":{"$error":"#NAME?"}}]
[2451,{"$f":"_xll.RiskData('Risk Summary'!J$48,$A2458)/1000","v":{"$error":"#NAME?"}},{"$f":"_xll.RiskData('Risk Summary'!K$48,$A2458)/1000","v":{"$error":"#NAME?"}},{"$f":"_xll.RiskData('Risk Summary'!L$48,$A2458)/1000","v":{"$error":"#NAME?"}},null,null,{"$f":"(_xll.RiskData(NR_to_Cash!C$18,$A2458))/1000","v":{"$error":"#NAME?"}},{"$f":"(_xll.RiskData(NR_to_Cash!D$18,$A2458))/1000","v":{"$error":"#NAME?"}},{"$f":"(_xll.RiskData(NR_to_Cash!E$18,$A2458))/1000","v":{"$error":"#NAME?"}}]
[2452,{"$f":"_xll.RiskData('Risk Summary'!J$48,$A2459)/1000","v":{"$error":"#NAME?"}},{"$f":"_xll.RiskData('Risk Summary'!K$48,$A2459)/1000","v":{"$error":"#NAME?"}},{"$f":"_xll.RiskData('Risk Summary'!L$48,$A2459)/1000","v":{"$error":"#NAME?"}},null,null,{"$f":"(_xll.RiskData(NR_to_Cash!C$18,$A2459))/1000","v":{"$error":"#NAME?"}},{"$f":"(_xll.RiskData(NR_to_Cash!D$18,$A2459))/1000","v":{"$error":"#NAME?"}},{"$f":"(_xll.RiskData(NR_to_Cash!E$18,$A2459))/1000","v":{"$error":"#NAME?"}}]
[2453,{"$f":"_xll.RiskData('Risk Summary'!J$48,$A2460)/1000","v":{"$error":"#NAME?"}},{"$f":"_xll.RiskData('Risk Summary'!K$48,$A2460)/1000","v":{"$error":"#NAME?"}},{"$f":"_xll.RiskData('Risk Summary'!L$48,$A2460)/1000","v":{"$error":"#NAME?"}},null,null,{"$f":"(_xll.RiskData(NR_to_Cash!C$18,$A2460))/1000","v":{"$error":"#NAME?"}},{"$f":"(_xll.RiskData(NR_to_Cash!D$18,$A2460))/1000","v":{"$error":"#NAME?"}},{"$f":"(_xll.RiskData(NR_to_Cash!E$18,$A2460))/1000","v":{"$error":"#NAME?"}}]
[2454,{"$f":"_xll.RiskData('Risk Summary'!J$48,$A2461)/1000","v":{"$error":"#NAME?"}},{"$f":"_xll.RiskData('Risk Summary'!K$48,$A2461)/1000","v":{"$error":"#NAME?"}},{"$f":"_xll.RiskData('Risk Summary'!L$48,$A2461)/1000","v":{"$error":"#NAME?"}},null,null,{"$f":"(_xll.RiskData(NR_to_Cash!C$18,$A2461))/1000","v":{"$error":"#NAME?"}},{"$f":"(_xll.RiskData(NR_to_Cash!D$18,$A2461))/1000","v":{"$error":"#NAME?"}},{"$f":"(_xll.RiskData(NR_to_Cash!E$18,$A2461))/1000","v":{"$error":"#NAME?"}}]
[2455,{"$f":"_xll.RiskData('Risk Summary'!J$48,$A2462)/1000","v":{"$error":"#NAME?"}},{"$f":"_xll.RiskData('Risk Summary'!K$48,$A2462)/1000","v":{"$error":"#NAME?"}},{"$f":"_xll.RiskData('Risk Summary'!L$48,$A2462)/1000","v":{"$error":"#NAME?"}},null,null,{"$f":"(_xll.RiskData(NR_to_Cash!C$18,$A2462))/1000","v":{"$error":"#NAME?"}},{"$f":"(_xll.RiskData(NR_to_Cash!D$18,$A2462))/1000","v":{"$error":"#NAME?"}},{"$f":"(_xll.RiskData(NR_to_Cash!E$18,$A2462))/1000","v":{"$error":"#NAME?"}}]
[2456,{"$f":"_xll.RiskData('Risk Summary'!J$48,$A2463)/1000","v":{"$error":"#NAME?"}},{"$f":"_xll.RiskData('Risk Summary'!K$48,$A2463)/1000","v":{"$error":"#NAME?"}},{"$f":"_xll.RiskData('Risk Summary'!L$48,$A2463)/1000","v":{"$error":"#NAME?"}},null,null,{"$f":"(_xll.RiskData(NR_to_Cash!C$18,$A2463))/1000","v":{"$error":"#NAME?"}},{"$f":"(_xll.RiskData(NR_to_Cash!D$18,$A2463))/1000","v":{"$error":"#NAME?"}},{"$f":"(_xll.RiskData(NR_to_Cash!E$18,$A2463))/1000","v":{"$error":"#NAME?"}}]
[2457,{"$f":"_xll.RiskData('Risk Summary'!J$48,$A2464)/1000","v":{"$error":"#NAME?"}},{"$f":"_xll.RiskData('Risk Summary'!K$48,$A2464)/1000","v":{"$error":"#NAME?"}},{"$f":"_xll.RiskData('Risk Summary'!L$48,$A2464)/1000","v":{"$error":"#NAME?"}},null,null,{"$f":"(_xll.RiskData(NR_to_Cash!C$18,$A2464))/1000","v":{"$error":"#NAME?"}},{"$f":"(_xll.RiskData(NR_to_Cash!D$18,$A2464))/1000","v":{"$error":"#NAME?"}},{"$f":"(_xll.RiskData(NR_to_Cash!E$18,$A2464))/1000","v":{"$error":"#NAME?"}}]
[2458,{"$f":"_xll.RiskData('Risk Summary'!J$48,$A2465)/1000","v":{"$error":"#NAME?"}},{"$f":"_xll.RiskData('Risk Summary'!K$48,$A2465)/1000","v":{"$error":"#NAME?"}},{"$f":"_xll.RiskData('Risk Summary'!L$48,$A2465)/1000","v":{"$error":"#NAME?"}},null,null,{"$f":"(_xll.RiskData(NR_to_Cash!C$18,$A2465))/1000","v":{"$error":"#NAME?"}},{"$f":"(_xll.RiskData(NR_to_Cash!D$18,$A2465))/1000","v":{"$error":"#NAME?"}},{"$f":"(_xll.RiskData(NR_to_Cash!E$18,$A2465))/1000","v":{"$error":"#NAME?"}}]
[2459,{"$f":"_xll.RiskData('Risk Summary'!J$48,$A2466)/1000","v":{"$error":"#NAME?"}},{"$f":"_xll.RiskData('Risk Summary'!K$48,$A2466)/1000","v":{"$error":"#NAME?"}},{"$f":"_xll.RiskData('Risk Summary'!L$48,$A2466)/1000","v":{"$error":"#NAME?"}},null,null,{"$f":"(_xll.RiskData(NR_to_Cash!C$18,$A2466))/1000","v":{"$error":"#NAME?"}},{"$f":"(_xll.RiskData(NR_to_Cash!D$18,$A2466))/1000","v":{"$error":"#NAME?"}},{"$f":"(_xll.RiskData(NR_to_Cash!E$18,$A2466))/1000","v":{"$error":"#NAME?"}}]
[2460,{"$f":"_xll.RiskData('Risk Summary'!J$48,$A2467)/1000","v":{"$error":"#NAME?"}},{"$f":"_xll.RiskData('Risk Summary'!K$48,$A2467)/1000","v":{"$error":"#NAME?"}},{"$f":"_xll.RiskData('Risk Summary'!L$48,$A2467)/1000","v":{"$error":"#NAME?"}},null,null,{"$f":"(_xll.RiskData(NR_to_Cash!C$18,$A2467))/1000","v":{"$error":"#NAME?"}},{"$f":"(_xll.RiskData(NR_to_Cash!D$18,$A2467))/1000","v":{"$error":"#NAME?"}},{"$f":"(_xll.RiskData(NR_to_Cash!E$18,$A2467))/1000","v":{"$error":"#NAME?"}}]
[2461,{"$f":"_xll.RiskData('Risk Summary'!J$48,$A2468)/1000","v":{"$error":"#NAME?"}},{"$f":"_xll.RiskData('Risk Summary'!K$48,$A2468)/1000","v":{"$error":"#NAME?"}},{"$f":"_xll.RiskData('Risk Summary'!L$48,$A2468)/1000","v":{"$error":"#NAME?"}},null,null,{"$f":"(_xll.RiskData(NR_to_Cash!C$18,$A2468))/1000","v":{"$error":"#NAME?"}},{"$f":"(_xll.RiskData(NR_to_Cash!D$18,$A2468))/1000","v":{"$error":"#NAME?"}},{"$f":"(_xll.RiskData(NR_to_Cash!E$18,$A2468))/1000","v":{"$error":"#NAME?"}}]
[2462,{"$f":"_xll.RiskData('Risk Summary'!J$48,$A2469)/1000","v":{"$error":"#NAME?"}},{"$f":"_xll.RiskData('Risk Summary'!K$48,$A2469)/1000","v":{"$error":"#NAME?"}},{"$f":"_xll.RiskData('Risk Summary'!L$48,$A2469)/1000","v":{"$error":"#NAME?"}},null,null,{"$f":"(_xll.RiskData(NR_to_Cash!C$18,$A2469))/1000","v":{"$error":"#NAME?"}},{"$f":"(_xll.RiskData(NR_to_Cash!D$18,$A2469))/1000","v":{"$error":"#NAME?"}},{"$f":"(_xll.RiskData(NR_to_Cash!E$18,$A2469))/1000","v":{"$error":"#NAME?"}}]
[2463,{"$f":"_xll.RiskData('Risk Summary'!J$48,$A2470)/1000","v":{"$error":"#NAME?"}},{"$f":"_xll.RiskData('Risk Summary'!K$48,$A2470)/1000","v":{"$error":"#NAME?"}},{"$f":"_xll.RiskData('Risk Summary'!L$48,$A2470)/1000","v":{"$error":"#NAME?"}},null,null,{"$f":"(_xll.RiskData(NR_to_Cash!C$18,$A2470))/1000","v":{"$error":"#NAME?"}},{"$f":"(_xll.RiskData(NR_to_Cash!D$18,$A2470))/1000","v":{"$error":"#NAME?"}},{"$f":"(_xll.RiskData(NR_to_Cash!E$18,$A2470))/1000","v":{"$error":"#NAME?"}}]
[2464,{"$f":"_xll.RiskData('Risk Summary'!J$48,$A2471)/1000","v":{"$error":"#NAME?"}},{"$f":"_xll.RiskData('Risk Summary'!K$48,$A2471)/1000","v":{"$error":"#NAME?"}},{"$f":"_xll.RiskData('Risk Summary'!L$48,$A2471)/1000","v":{"$error":"#NAME?"}},null,null,{"$f":"(_xll.RiskData(NR_to_Cash!C$18,$A2471))/1000","v":{"$error":"#NAME?"}},{"$f":"(_xll.RiskData(NR_to_Cash!D$18,$A2471))/1000","v":{"$error":"#NAME?"}},{"$f":"(_xll.RiskData(NR_to_Cash!E$18,$A2471))/1000","v":{"$error":"#NAME?"}}]
[2465,{"$f":"_xll.RiskData('Risk Summary'!J$48,$A2472)/1000","v":{"$error":"#NAME?"}},{"$f":"_xll.RiskData('Risk Summary'!K$48,$A2472)/1000","v":{"$error":"#NAME?"}},{"$f":"_xll.RiskData('Risk Summary'!L$48,$A2472)/1000","v":{"$error":"#NAME?"}},null,null,{"$f":"(_xll.RiskData(NR_to_Cash!C$18,$A2472))/1000","v":{"$error":"#NAME?"}},{"$f":"(_xll.RiskData(NR_to_Cash!D$18,$A2472))/1000","v":{"$error":"#NAME?"}},{"$f":"(_xll.RiskData(NR_to_Cash!E$18,$A2472))/1000","v":{"$error":"#NAME?"}}]
[2466,{"$f":"_xll.RiskData('Risk Summary'!J$48,$A2473)/1000","v":{"$error":"#NAME?"}},{"$f":"_xll.RiskData('Risk Summary'!K$48,$A2473)/1000","v":{"$error":"#NAME?"}},{"$f":"_xll.RiskData('Risk Summary'!L$48,$A2473)/1000","v":{"$error":"#NAME?"}},null,null,{"$f":"(_xll.RiskData(NR_to_Cash!C$18,$A2473))/1000","v":{"$error":"#NAME?"}},{"$f":"(_xll.RiskData(NR_to_Cash!D$18,$A2473))/1000","v":{"$error":"#NAME?"}},{"$f":"(_xll.RiskData(NR_to_Cash!E$18,$A2473))/1000","v":{"$error":"#NAME?"}}]
[2467,{"$f":"_xll.RiskData('Risk Summary'!J$48,$A2474)/1000","v":{"$error":"#NAME?"}},{"$f":"_xll.RiskData('Risk Summary'!K$48,$A2474)/1000","v":{"$error":"#NAME?"}},{"$f":"_xll.RiskData('Risk Summary'!L$48,$A2474)/1000","v":{"$error":"#NAME?"}},null,null,{"$f":"(_xll.RiskData(NR_to_Cash!C$18,$A2474))/1000","v":{"$error":"#NAME?"}},{"$f":"(_xll.RiskData(NR_to_Cash!D$18,$A2474))/1000","v":{"$error":"#NAME?"}},{"$f":"(_xll.RiskData(NR_to_Cash!E$18,$A2474))/1000","v":{"$error":"#NAME?"}}]
[2468,{"$f":"_xll.RiskData('Risk Summary'!J$48,$A2475)/1000","v":{"$error":"#NAME?"}},{"$f":"_xll.RiskData('Risk Summary'!K$48,$A2475)/1000","v":{"$error":"#NAME?"}},{"$f":"_xll.RiskData('Risk Summary'!L$48,$A2475)/1000","v":{"$error":"#NAME?"}},null,null,{"$f":"(_xll.RiskData(NR_to_Cash!C$18,$A2475))/1000","v":{"$error":"#NAME?"}},{"$f":"(_xll.RiskData(NR_to_Cash!D$18,$A2475))/1000","v":{"$error":"#NAME?"}},{"$f":"(_xll.RiskData(NR_to_Cash!E$18,$A2475))/1000","v":{"$error":"#NAME?"}}]
[2469,{"$f":"_xll.RiskData('Risk Summary'!J$48,$A2476)/1000","v":{"$error":"#NAME?"}},{"$f":"_xll.RiskData('Risk Summary'!K$48,$A2476)/1000","v":{"$error":"#NAME?"}},{"$f":"_xll.RiskData('Risk Summary'!L$48,$A2476)/1000","v":{"$error":"#NAME?"}},null,null,{"$f":"(_xll.RiskData(NR_to_Cash!C$18,$A2476))/1000","v":{"$error":"#NAME?"}},{"$f":"(_xll.RiskData(NR_to_Cash!D$18,$A2476))/1000","v":{"$error":"#NAME?"}},{"$f":"(_xll.RiskData(NR_to_Cash!E$18,$A2476))/1000","v":{"$error":"#NAME?"}}]
[2470,{"$f":"_xll.RiskData('Risk Summary'!J$48,$A2477)/1000","v":{"$error":"#NAME?"}},{"$f":"_xll.RiskData('Risk Summary'!K$48,$A2477)/1000","v":{"$error":"#NAME?"}},{"$f":"_xll.RiskData('Risk Summary'!L$48,$A2477)/1000","v":{"$error":"#NAME?"}},null,null,{"$f":"(_xll.RiskData(NR_to_Cash!C$18,$A2477))/1000","v":{"$error":"#NAME?"}},{"$f":"(_xll.RiskData(NR_to_Cash!D$18,$A2477))/1000","v":{"$error":"#NAME?"}},{"$f":"(_xll.RiskData(NR_to_Cash!E$18,$A2477))/1000","v":{"$error":"#NAME?"}}]
[2471,{"$f":"_xll.RiskData('Risk Summary'!J$48,$A2478)/1000","v":{"$error":"#NAME?"}},{"$f":"_xll.RiskData('Risk Summary'!K$48,$A2478)/1000","v":{"$error":"#NAME?"}},{"$f":"_xll.RiskData('Risk Summary'!L$48,$A2478)/1000","v":{"$error":"#NAME?"}},null,null,{"$f":"(_xll.RiskData(NR_to_Cash!C$18,$A2478))/1000","v":{"$error":"#NAME?"}},{"$f":"(_xll.RiskData(NR_to_Cash!D$18,$A2478))/1000","v":{"$error":"#NAME?"}},{"$f":"(_xll.RiskData(NR_to_Cash!E$18,$A2478))/1000","v":{"$error":"#NAME?"}}]
[2472,{"$f":"_xll.RiskData('Risk Summary'!J$48,$A2479)/1000","v":{"$error":"#NAME?"}},{"$f":"_xll.RiskData('Risk Summary'!K$48,$A2479)/1000","v":{"$error":"#NAME?"}},{"$f":"_xll.RiskData('Risk Summary'!L$48,$A2479)/1000","v":{"$error":"#NAME?"}},null,null,{"$f":"(_xll.RiskData(NR_to_Cash!C$18,$A2479))/1000","v":{"$error":"#NAME?"}},{"$f":"(_xll.RiskData(NR_to_Cash!D$18,$A2479))/1000","v":{"$error":"#NAME?"}},{"$f":"(_xll.RiskData(NR_to_Cash!E$18,$A2479))/1000","v":{"$error":"#NAME?"}}]
[2473,{"$f":"_xll.RiskData('Risk Summary'!J$48,$A2480)/1000","v":{"$error":"#NAME?"}},{"$f":"_xll.RiskData('Risk Summary'!K$48,$A2480)/1000","v":{"$error":"#NAME?"}},{"$f":"_xll.RiskData('Risk Summary'!L$48,$A2480)/1000","v":{"$error":"#NAME?"}},null,null,{"$f":"(_xll.RiskData(NR_to_Cash!C$18,$A2480))/1000","v":{"$error":"#NAME?"}},{"$f":"(_xll.RiskData(NR_to_Cash!D$18,$A2480))/1000","v":{"$error":"#NAME?"}},{"$f":"(_xll.RiskData(NR_to_Cash!E$18,$A2480))/1000","v":{"$error":"#NAME?"}}]
[2474,{"$f":"_xll.RiskData('Risk Summary'!J$48,$A2481)/1000","v":{"$error":"#NAME?"}},{"$f":"_xll.RiskData('Risk Summary'!K$48,$A2481)/1000","v":{"$error":"#NAME?"}},{"$f":"_xll.RiskData('Risk Summary'!L$48,$A2481)/1000","v":{"$error":"#NAME?"}},null,null,{"$f":"(_xll.RiskData(NR_to_Cash!C$18,$A2481))/1000","v":{"$error":"#NAME?"}},{"$f":"(_xll.RiskData(NR_to_Cash!D$18,$A2481))/1000","v":{"$error":"#NAME?"}},{"$f":"(_xll.RiskData(NR_to_Cash!E$18,$A2481))/1000","v":{"$error":"#NAME?"}}]
[2475,{"$f":"_xll.RiskData('Risk Summary'!J$48,$A2482)/1000","v":{"$error":"#NAME?"}},{"$f":"_xll.RiskData('Risk Summary'!K$48,$A2482)/1000","v":{"$error":"#NAME?"}},{"$f":"_xll.RiskData('Risk Summary'!L$48,$A2482)/1000","v":{"$error":"#NAME?"}},null,null,{"$f":"(_xll.RiskData(NR_to_Cash!C$18,$A2482))/1000","v":{"$error":"#NAME?"}},{"$f":"(_xll.RiskData(NR_to_Cash!D$18,$A2482))/1000","v":{"$error":"#NAME?"}},{"$f":"(_xll.RiskData(NR_to_Cash!E$18,$A2482))/1000","v":{"$error":"#NAME?"}}]
[2476,{"$f":"_xll.RiskData('Risk Summary'!J$48,$A2483)/1000","v":{"$error":"#NAME?"}},{"$f":"_xll.RiskData('Risk Summary'!K$48,$A2483)/1000","v":{"$error":"#NAME?"}},{"$f":"_xll.RiskData('Risk Summary'!L$48,$A2483)/1000","v":{"$error":"#NAME?"}},null,null,{"$f":"(_xll.RiskData(NR_to_Cash!C$18,$A2483))/1000","v":{"$error":"#NAME?"}},{"$f":"(_xll.RiskData(NR_to_Cash!D$18,$A2483))/1000","v":{"$error":"#NAME?"}},{"$f":"(_xll.RiskData(NR_to_Cash!E$18,$A2483))/1000","v":{"$error":"#NAME?"}}]
[2477,{"$f":"_xll.RiskData('Risk Summary'!J$48,$A2484)/1000","v":{"$error":"#NAME?"}},{"$f":"_xll.RiskData('Risk Summary'!K$48,$A2484)/1000","v":{"$error":"#NAME?"}},{"$f":"_xll.RiskData('Risk Summary'!L$48,$A2484)/1000","v":{"$error":"#NAME?"}},null,null,{"$f":"(_xll.RiskData(NR_to_Cash!C$18,$A2484))/1000","v":{"$error":"#NAME?"}},{"$f":"(_xll.RiskData(NR_to_Cash!D$18,$A2484))/1000","v":{"$error":"#NAME?"}},{"$f":"(_xll.RiskData(NR_to_Cash!E$18,$A2484))/1000","v":{"$error":"#NAME?"}}]
[2478,{"$f":"_xll.RiskData('Risk Summary'!J$48,$A2485)/1000","v":{"$error":"#NAME?"}},{"$f":"_xll.RiskData('Risk Summary'!K$48,$A2485)/1000","v":{"$error":"#NAME?"}},{"$f":"_xll.RiskData('Risk Summary'!L$48,$A2485)/1000","v":{"$error":"#NAME?"}},null,null,{"$f":"(_xll.RiskData(NR_to_Cash!C$18,$A2485))/1000","v":{"$error":"#NAME?"}},{"$f":"(_xll.RiskData(NR_to_Cash!D$18,$A2485))/1000","v":{"$error":"#NAME?"}},{"$f":"(_xll.RiskData(NR_to_Cash!E$18,$A2485))/1000","v":{"$error":"#NAME?"}}]
[2479,{"$f":"_xll.RiskData('Risk Summary'!J$48,$A2486)/1000","v":{"$error":"#NAME?"}},{"$f":"_xll.RiskData('Risk Summary'!K$48,$A2486)/1000","v":{"$error":"#NAME?"}},{"$f":"_xll.RiskData('Risk Summary'!L$48,$A2486)/1000","v":{"$error":"#NAME?"}},null,null,{"$f":"(_xll.RiskData(NR_to_Cash!C$18,$A2486))/1000","v":{"$error":"#NAME?"}},{"$f":"(_xll.RiskData(NR_to_Cash!D$18,$A2486))/1000","v":{"$error":"#NAME?"}},{"$f":"(_xll.RiskData(NR_to_Cash!E$18,$A2486))/1000","v":{"$error":"#NAME?"}}]
[2480,{"$f":"_xll.RiskData('Risk Summary'!J$48,$A2487)/1000","v":{"$error":"#NAME?"}},{"$f":"_xll.RiskData('Risk Summary'!K$48,$A2487)/1000","v":{"$error":"#NAME?"}},{"$f":"_xll.RiskData('Risk Summary'!L$48,$A2487)/1000","v":{"$error":"#NAME?"}},null,null,{"$f":"(_xll.RiskData(NR_to_Cash!C$18,$A2487))/1000","v":{"$error":"#NAME?"}},{"$f":"(_xll.RiskData(NR_to_Cash!D$18,$A2487))/1000","v":{"$error":"#NAME?"}},{"$f":"(_xll.RiskData(NR_to_Cash!E$18,$A2487))/1000","v":{"$error":"#NAME?"}}]
[2481,{"$f":"_xll.RiskData('Risk Summary'!J$48,$A2488)/1000","v":{"$error":"#NAME?"}},{"$f":"_xll.RiskData('Risk Summary'!K$48,$A2488)/1000","v":{"$error":"#NAME?"}},{"$f":"_xll.RiskData('Risk Summary'!L$48,$A2488)/1000","v":{"$error":"#NAME?"}},null,null,{"$f":"(_xll.RiskData(NR_to_Cash!C$18,$A2488))/1000","v":{"$error":"#NAME?"}},{"$f":"(_xll.RiskData(NR_to_Cash!D$18,$A2488))/1000","v":{"$error":"#NAME?"}},{"$f":"(_xll.RiskData(NR_to_Cash!E$18,$A2488))/1000","v":{"$error":"#NAME?"}}]
[2482,{"$f":"_xll.RiskData('Risk Summary'!J$48,$A2489)/1000","v":{"$error":"#NAME?"}},{"$f":"_xll.RiskData('Risk Summary'!K$48,$A2489)/1000","v":{"$error":"#NAME?"}},{"$f":"_xll.RiskData('Risk Summary'!L$48,$A2489)/1000","v":{"$error":"#NAME?"}},null,null,{"$f":"(_xll.RiskData(NR_to_Cash!C$18,$A2489))/1000","v":{"$error":"#NAME?"}},{"$f":"(_xll.RiskData(NR_to_Cash!D$18,$A2489))/1000","v":{"$error":"#NAME?"}},{"$f":"(_xll.RiskData(NR_to_Cash!E$18,$A2489))/1000","v":{"$error":"#NAME?"}}]
[2483,{"$f":"_xll.RiskData('Risk Summary'!J$48,$A2490)/1000","v":{"$error":"#NAME?"}},{"$f":"_xll.RiskData('Risk Summary'!K$48,$A2490)/1000","v":{"$error":"#NAME?"}},{"$f":"_xll.RiskData('Risk Summary'!L$48,$A2490)/1000","v":{"$error":"#NAME?"}},null,null,{"$f":"(_xll.RiskData(NR_to_Cash!C$18,$A2490))/1000","v":{"$error":"#NAME?"}},{"$f":"(_xll.RiskData(NR_to_Cash!D$18,$A2490))/1000","v":{"$error":"#NAME?"}},{"$f":"(_xll.RiskData(NR_to_Cash!E$18,$A2490))/1000","v":{"$error":"#NAME?"}}]
[2484,{"$f":"_xll.RiskData('Risk Summary'!J$48,$A2491)/1000","v":{"$error":"#NAME?"}},{"$f":"_xll.RiskData('Risk Summary'!K$48,$A2491)/1000","v":{"$error":"#NAME?"}},{"$f":"_xll.RiskData('Risk Summary'!L$48,$A2491)/1000","v":{"$error":"#NAME?"}},null,null,{"$f":"(_xll.RiskData(NR_to_Cash!C$18,$A2491))/1000","v":{"$error":"#NAME?"}},{"$f":"(_xll.RiskData(NR_to_Cash!D$18,$A2491))/1000","v":{"$error":"#NAME?"}},{"$f":"(_xll.RiskData(NR_to_Cash!E$18,$A2491))/1000","v":{"$error":"#NAME?"}}]
[2485,{"$f":"_xll.RiskData('Risk Summary'!J$48,$A2492)/1000","v":{"$error":"#NAME?"}},{"$f":"_xll.RiskData('Risk Summary'!K$48,$A2492)/1000","v":{"$error":"#NAME?"}},{"$f":"_xll.RiskData('Risk Summary'!L$48,$A2492)/1000","v":{"$error":"#NAME?"}},null,null,{"$f":"(_xll.RiskData(NR_to_Cash!C$18,$A2492))/1000","v":{"$error":"#NAME?"}},{"$f":"(_xll.RiskData(NR_to_Cash!D$18,$A2492))/1000","v":{"$error":"#NAME?"}},{"$f":"(_xll.RiskData(NR_to_Cash!E$18,$A2492))/1000","v":{"$error":"#NAME?"}}]
[2486,{"$f":"_xll.RiskData('Risk Summary'!J$48,$A2493)/1000","v":{"$error":"#NAME?"}},{"$f":"_xll.RiskData('Risk Summary'!K$48,$A2493)/1000","v":{"$error":"#NAME?"}},{"$f":"_xll.RiskData('Risk Summary'!L$48,$A2493)/1000","v":{"$error":"#NAME?"}},null,null,{"$f":"(_xll.RiskData(NR_to_Cash!C$18,$A2493))/1000","v":{"$error":"#NAME?"}},{"$f":"(_xll.RiskData(NR_to_Cash!D$18,$A2493))/1000","v":{"$error":"#NAME?"}},{"$f":"(_xll.RiskData(NR_to_Cash!E$18,$A2493))/1000","v":{"$error":"#NAME?"}}]
[2487,{"$f":"_xll.RiskData('Risk Summary'!J$48,$A2494)/1000","v":{"$error":"#NAME?"}},{"$f":"_xll.RiskData('Risk Summary'!K$48,$A2494)/1000","v":{"$error":"#NAME?"}},{"$f":"_xll.RiskData('Risk Summary'!L$48,$A2494)/1000","v":{"$error":"#NAME?"}},null,null,{"$f":"(_xll.RiskData(NR_to_Cash!C$18,$A2494))/1000","v":{"$error":"#NAME?"}},{"$f":"(_xll.RiskData(NR_to_Cash!D$18,$A2494))/1000","v":{"$error":"#NAME?"}},{"$f":"(_xll.RiskData(NR_to_Cash!E$18,$A2494))/1000","v":{"$error":"#NAME?"}}]
[2488,{"$f":"_xll.RiskData('Risk Summary'!J$48,$A2495)/1000","v":{"$error":"#NAME?"}},{"$f":"_xll.RiskData('Risk Summary'!K$48,$A2495)/1000","v":{"$error":"#NAME?"}},{"$f":"_xll.RiskData('Risk Summary'!L$48,$A2495)/1000","v":{"$error":"#NAME?"}},null,null,{"$f":"(_xll.RiskData(NR_to_Cash!C$18,$A2495))/1000","v":{"$error":"#NAME?"}},{"$f":"(_xll.RiskData(NR_to_Cash!D$18,$A2495))/1000","v":{"$error":"#NAME?"}},{"$f":"(_xll.RiskData(NR_to_Cash!E$18,$A2495))/1000","v":{"$error":"#NAME?"}}]
[2489,{"$f":"_xll.RiskData('Risk Summary'!J$48,$A2496)/1000","v":{"$error":"#NAME?"}},{"$f":"_xll.RiskData('Risk Summary'!K$48,$A2496)/1000","v":{"$error":"#NAME?"}},{"$f":"_xll.RiskData('Risk Summary'!L$48,$A2496)/1000","v":{"$error":"#NAME?"}},null,null,{"$f":"(_xll.RiskData(NR_to_Cash!C$18,$A2496))/1000","v":{"$error":"#NAME?"}},{"$f":"(_xll.RiskData(NR_to_Cash!D$18,$A2496))/1000","v":{"$error":"#NAME?"}},{"$f":"(_xll.RiskData(NR_to_Cash!E$18,$A2496))/1000","v":{"$error":"#NAME?"}}]
[2490,{"$f":"_xll.RiskData('Risk Summary'!J$48,$A2497)/1000","v":{"$error":"#NAME?"}},{"$f":"_xll.RiskData('Risk Summary'!K$48,$A2497)/1000","v":{"$error":"#NAME?"}},{"$f":"_xll.RiskData('Risk Summary'!L$48,$A2497)/1000","v":{"$error":"#NAME?"}},null,null,{"$f":"(_xll.RiskData(NR_to_Cash!C$18,$A2497))/1000","v":{"$error":"#NAME?"}},{"$f":"(_xll.RiskData(NR_to_Cash!D$18,$A2497))/1000","v":{"$error":"#NAME?"}},{"$f":"(_xll.RiskData(NR_to_Cash!E$18,$A2497))/1000","v":{"$error":"#NAME?"}}]
[2491,{"$f":"_xll.RiskData('Risk Summary'!J$48,$A2498)/1000","v":{"$error":"#NAME?"}},{"$f":"_xll.RiskData('Risk Summary'!K$48,$A2498)/1000","v":{"$error":"#NAME?"}},{"$f":"_xll.RiskData('Risk Summary'!L$48,$A2498)/1000","v":{"$error":"#NAME?"}},null,null,{"$f":"(_xll.RiskData(NR_to_Cash!C$18,$A2498))/1000","v":{"$error":"#NAME?"}},{"$f":"(_xll.RiskData(NR_to_Cash!D$18,$A2498))/1000","v":{"$error":"#NAME?"}},{"$f":"(_xll.RiskData(NR_to_Cash!E$18,$A2498))/1000","v":{"$error":"#NAME?"}}]
[2492,{"$f":"_xll.RiskData('Risk Summary'!J$48,$A2499)/1000","v":{"$error":"#NAME?"}},{"$f":"_xll.RiskData('Risk Summary'!K$48,$A2499)/1000","v":{"$error":"#NAME?"}},{"$f":"_xll.RiskData('Risk Summary'!L$48,$A2499)/1000","v":{"$error":"#NAME?"}},null,null,{"$f":"(_xll.RiskData(NR_to_Cash!C$18,$A2499))/1000","v":{"$error":"#NAME?"}},{"$f":"(_xll.RiskData(NR_to_Cash!D$18,$A2499))/1000","v":{"$error":"#NAME?"}},{"$f":"(_xll.RiskData(NR_to_Cash!E$18,$A2499))/1000","v":{"$error":"#NAME?"}}]
[2493,{"$f":"_xll.RiskData('Risk Summary'!J$48,$A2500)/1000","v":{"$error":"#NAME?"}},{"$f":"_xll.RiskData('Risk Summary'!K$48,$A2500)/1000","v":{"$error":"#NAME?"}},{"$f":"_xll.RiskData('Risk Summary'!L$48,$A2500)/1000","v":{"$error":"#NAME?"}},null,null,{"$f":"(_xll.RiskData(NR_to_Cash!C$18,$A2500))/1000","v":{"$error":"#NAME?"}},{"$f":"(_xll.RiskData(NR_to_Cash!D$18,$A2500))/1000","v":{"$error":"#NAME?"}},{"$f":"(_xll.RiskData(NR_to_Cash!E$18,$A2500))/1000","v":{"$error":"#NAME?"}}]
[2494,{"$f":"_xll.RiskData('Risk Summary'!J$48,$A2501)/1000","v":{"$error":"#NAME?"}},{"$f":"_xll.RiskData('Risk Summary'!K$48,$A2501)/1000","v":{"$error":"#NAME?"}},{"$f":"_xll.RiskData('Risk Summary'!L$48,$A2501)/1000","v":{"$error":"#NAME?"}},null,null,{"$f":"(_xll.RiskData(NR_to_Cash!C$18,$A2501))/1000","v":{"$error":"#NAME?"}},{"$f":"(_xll.RiskData(NR_to_Cash!D$18,$A2501))/1000","v":{"$error":"#NAME?"}},{"$f":"(_xll.RiskData(NR_to_Cash!E$18,$A2501))/1000","v":{"$error":"#NAME?"}}]
[2495,{"$f":"_xll.RiskData('Risk Summary'!J$48,$A2502)/1000","v":{"$error":"#NAME?"}},{"$f":"_xll.RiskData('Risk Summary'!K$48,$A2502)/1000","v":{"$error":"#NAME?"}},{"$f":"_xll.RiskData('Risk Summary'!L$48,$A2502)/1000","v":{"$error":"#NAME?"}},null,null,{"$f":"(_xll.RiskData(NR_to_Cash!C$18,$A2502))/1000","v":{"$error":"#NAME?"}},{"$f":"(_xll.RiskData(NR_to_Cash!D$18,$A2502))/1000","v":{"$error":"#NAME?"}},{"$f":"(_xll.RiskData(NR_to_Cash!E$18,$A2502))/1000","v":{"$error":"#NAME?"}}]
[2496,{"$f":"_xll.RiskData('Risk Summary'!J$48,$A2503)/1000","v":{"$error":"#NAME?"}},{"$f":"_xll.RiskData('Risk Summary'!K$48,$A2503)/1000","v":{"$error":"#NAME?"}},{"$f":"_xll.RiskData('Risk Summary'!L$48,$A2503)/1000","v":{"$error":"#NAME?"}},null,null,{"$f":"(_xll.RiskData(NR_to_Cash!C$18,$A2503))/1000","v":{"$error":"#NAME?"}},{"$f":"(_xll.RiskData(NR_to_Cash!D$18,$A2503))/1000","v":{"$error":"#NAME?"}},{"$f":"(_xll.RiskData(NR_to_Cash!E$18,$A2503))/1000","v":{"$error":"#NAME?"}}]
[2497,{"$f":"_xll.RiskData('Risk Summary'!J$48,$A2504)/1000","v":{"$error":"#NAME?"}},{"$f":"_xll.RiskData('Risk Summary'!K$48,$A2504)/1000","v":{"$error":"#NAME?"}},{"$f":"_xll.RiskData('Risk Summary'!L$48,$A2504)/1000","v":{"$error":"#NAME?"}},null,null,{"$f":"(_xll.RiskData(NR_to_Cash!C$18,$A2504))/1000","v":{"$error":"#NAME?"}},{"$f":"(_xll.RiskData(NR_to_Cash!D$18,$A2504))/1000","v":{"$error":"#NAME?"}},{"$f":"(_xll.RiskData(NR_to_Cash!E$18,$A2504))/1000","v":{"$error":"#NAME?"}}]
[2498,{"$f":"_xll.RiskData('Risk Summary'!J$48,$A2505)/1000","v":{"$error":"#NAME?"}},{"$f":"_xll.RiskData('Risk Summary'!K$48,$A2505)/1000","v":{"$error":"#NAME?"}},{"$f":"_xll.RiskData('Risk Summary'!L$48,$A2505)/1000","v":{"$error":"#NAME?"}},null,null,{"$f":"(_xll.RiskData(NR_to_Cash!C$18,$A2505))/1000","v":{"$error":"#NAME?"}},{"$f":"(_xll.RiskData(NR_to_Cash!D$18,$A2505))/1000","v":{"$error":"#NAME?"}},{"$f":"(_xll.RiskData(NR_to_Cash!E$18,$A2505))/1000","v":{"$error":"#NAME?"}}]
[2499,{"$f":"_xll.RiskData('Risk Summary'!J$48,$A2506)/1000","v":{"$error":"#NAME?"}},{"$f":"_xll.RiskData('Risk Summary'!K$48,$A2506)/1000","v":{"$error":"#NAME?"}},{"$f":"_xll.RiskData('Risk Summary'!L$48,$A2506)/1000","v":{"$error":"#NAME?"}},null,null,{"$f":"(_xll.RiskData(NR_to_Cash!C$18,$A2506))/1000","v":{"$error":"#NAME?"}},{"$f":"(_xll.RiskData(NR_to_Cash!D$18,$A2506))/1000","v":{"$error":"#NAME?"}},{"$f":"(_xll.RiskData(NR_to_Cash!E$18,$A2506))/1000","v":{"$error":"#NAME?"}}]
[2500,{"$f":"_xll.RiskData('Risk Summary'!J$48,$A2507)/1000","v":{"$error":"#NAME?"}},{"$f":"_xll.RiskData('Risk Summary'!K$48,$A2507)/1000","v":{"$error":"#NAME?"}},{"$f":"_xll.RiskData('Risk Summary'!L$48,$A2507)/1000","v":{"$error":"#NAME?"}},null,null,{"$f":"(_xll.RiskData(NR_to_Cash!C$18,$A2507))/1000","v":{"$error":"#NAME?"}},{"$f":"(_xll.RiskData(NR_to_Cash!D$18,$A2507))/1000","v":{"$error":"#NAME?"}},{"$f":"(_xll.RiskData(NR_to_Cash!E$18,$A2507))/1000","v":{"$error":"#NAME?"}}]
[2501,{"$f":"_xll.RiskData('Risk Summary'!J$48,$A2508)/1000","v":{"$error":"#NAME?"}},{"$f":"_xll.RiskData('Risk Summary'!K$48,$A2508)/1000","v":{"$error":"#NAME?"}},{"$f":"_xll.RiskData('Risk Summary'!L$48,$A2508)/1000","v":{"$error":"#NAME?"}},null,null,{"$f":"(_xll.RiskData(NR_to_Cash!C$18,$A2508))/1000","v":{"$error":"#NAME?"}},{"$f":"(_xll.RiskData(NR_to_Cash!D$18,$A2508))/1000","v":{"$error":"#NAME?"}},{"$f":"(_xll.RiskData(NR_to_Cash!E$18,$A2508))/1000","v":{"$error":"#NAME?"}}]
[2502,{"$f":"_xll.RiskData('Risk Summary'!J$48,$A2509)/1000","v":{"$error":"#NAME?"}},{"$f":"_xll.RiskData('Risk Summary'!K$48,$A2509)/1000","v":{"$error":"#NAME?"}},{"$f":"_xll.RiskData('Risk Summary'!L$48,$A2509)/1000","v":{"$error":"#NAME?"}},null,null,{"$f":"(_xll.RiskData(NR_to_Cash!C$18,$A2509))/1000","v":{"$error":"#NAME?"}},{"$f":"(_xll.RiskData(NR_to_Cash!D$18,$A2509))/1000","v":{"$error":"#NAME?"}},{"$f":"(_xll.RiskData(NR_to_Cash!E$18,$A2509))/1000","v":{"$error":"#NAME?"}}]
[2503,{"$f":"_xll.RiskData('Risk Summary'!J$48,$A2510)/1000","v":{"$error":"#NAME?"}},{"$f":"_xll.RiskData('Risk Summary'!K$48,$A2510)/1000","v":{"$error":"#NAME?"}},{"$f":"_xll.RiskData('Risk Summary'!L$48,$A2510)/1000","v":{"$error":"#NAME?"}},null,null,{"$f":"(_xll.RiskData(NR_to_Cash!C$18,$A2510))/1000","v":{"$error":"#NAME?"}},{"$f":"(_xll.RiskData(NR_to_Cash!D$18,$A2510))/1000","v":{"$error":"#NAME?"}},{"$f":"(_xll.RiskData(NR_to_Cash!E$18,$A2510))/1000","v":{"$error":"#NAME?"}}]
[2504,{"$f":"_xll.RiskData('Risk Summary'!J$48,$A2511)/1000","v":{"$error":"#NAME?"}},{"$f":"_xll.RiskData('Risk Summary'!K$48,$A2511)/1000","v":{"$error":"#NAME?"}},{"$f":"_xll.RiskData('Risk Summary'!L$48,$A2511)/1000","v":{"$error":"#NAME?"}},null,null,{"$f":"(_xll.RiskData(NR_to_Cash!C$18,$A2511))/1000","v":{"$error":"#NAME?"}},{"$f":"(_xll.RiskData(NR_to_Cash!D$18,$A2511))/1000","v":{"$error":"#NAME?"}},{"$f":"(_xll.RiskData(NR_to_Cash!E$18,$A2511))/1000","v":{"$error":"#NAME?"}}]
[2505,{"$f":"_xll.RiskData('Risk Summary'!J$48,$A2512)/1000","v":{"$error":"#NAME?"}},{"$f":"_xll.RiskData('Risk Summary'!K$48,$A2512)/1000","v":{"$error":"#NAME?"}},{"$f":"_xll.RiskData('Risk Summary'!L$48,$A2512)/1000","v":{"$error":"#NAME?"}},null,null,{"$f":"(_xll.RiskData(NR_to_Cash!C$18,$A2512))/1000","v":{"$error":"#NAME?"}},{"$f":"(_xll.RiskData(NR_to_Cash!D$18,$A2512))/1000","v":{"$error":"#NAME?"}},{"$f":"(_xll.RiskData(NR_to_Cash!E$18,$A2512))/1000","v":{"$error":"#NAME?"}}]
[2506,{"$f":"_xll.RiskData('Risk Summary'!J$48,$A2513)/1000","v":{"$error":"#NAME?"}},{"$f":"_xll.RiskData('Risk Summary'!K$48,$A2513)/1000","v":{"$error":"#NAME?"}},{"$f":"_xll.RiskData('Risk Summary'!L$48,$A2513)/1000","v":{"$error":"#NAME?"}},null,null,{"$f":"(_xll.RiskData(NR_to_Cash!C$18,$A2513))/1000","v":{"$error":"#NAME?"}},{"$f":"(_xll.RiskData(NR_to_Cash!D$18,$A2513))/1000","v":{"$error":"#NAME?"}},{"$f":"(_xll.RiskData(NR_to_Cash!E$18,$A2513))/1000","v":{"$error":"#NAME?"}}]
[2507,{"$f":"_xll.RiskData('Risk Summary'!J$48,$A2514)/1000","v":{"$error":"#NAME?"}},{"$f":"_xll.RiskData('Risk Summary'!K$48,$A2514)/1000","v":{"$error":"#NAME?"}},{"$f":"_xll.RiskData('Risk Summary'!L$48,$A2514)/1000","v":{"$error":"#NAME?"}},null,null,{"$f":"(_xll.RiskData(NR_to_Cash!C$18,$A2514))/1000","v":{"$error":"#NAME?"}},{"$f":"(_xll.RiskData(NR_to_Cash!D$18,$A2514))/1000","v":{"$error":"#NAME?"}},{"$f":"(_xll.RiskData(NR_to_Cash!E$18,$A2514))/1000","v":{"$error":"#NAME?"}}]
[2508,{"$f":"_xll.RiskData('Risk Summary'!J$48,$A2515)/1000","v":{"$error":"#NAME?"}},{"$f":"_xll.RiskData('Risk Summary'!K$48,$A2515)/1000","v":{"$error":"#NAME?"}},{"$f":"_xll.RiskData('Risk Summary'!L$48,$A2515)/1000","v":{"$error":"#NAME?"}},null,null,{"$f":"(_xll.RiskData(NR_to_Cash!C$18,$A2515))/1000","v":{"$error":"#NAME?"}},{"$f":"(_xll.RiskData(NR_to_Cash!D$18,$A2515))/1000","v":{"$error":"#NAME?"}},{"$f":"(_xll.RiskData(NR_to_Cash!E$18,$A2515))/1000","v":{"$error":"#NAME?"}}]
[2509,{"$f":"_xll.RiskData('Risk Summary'!J$48,$A2516)/1000","v":{"$error":"#NAME?"}},{"$f":"_xll.RiskData('Risk Summary'!K$48,$A2516)/1000","v":{"$error":"#NAME?"}},{"$f":"_xll.RiskData('Risk Summary'!L$48,$A2516)/1000","v":{"$error":"#NAME?"}},null,null,{"$f":"(_xll.RiskData(NR_to_Cash!C$18,$A2516))/1000","v":{"$error":"#NAME?"}},{"$f":"(_xll.RiskData(NR_to_Cash!D$18,$A2516))/1000","v":{"$error":"#NAME?"}},{"$f":"(_xll.RiskData(NR_to_Cash!E$18,$A2516))/1000","v":{"$error":"#NAME?"}}]
[2510,{"$f":"_xll.RiskData('Risk Summary'!J$48,$A2517)/1000","v":{"$error":"#NAME?"}},{"$f":"_xll.RiskData('Risk Summary'!K$48,$A2517)/1000","v":{"$error":"#NAME?"}},{"$f":"_xll.RiskData('Risk Summary'!L$48,$A2517)/1000","v":{"$error":"#NAME?"}},null,null,{"$f":"(_xll.RiskData(NR_to_Cash!C$18,$A2517))/1000","v":{"$error":"#NAME?"}},{"$f":"(_xll.RiskData(NR_to_Cash!D$18,$A2517))/1000","v":{"$error":"#NAME?"}},{"$f":"(_xll.RiskData(NR_to_Cash!E$18,$A2517))/1000","v":{"$error":"#NAME?"}}]
[2511,{"$f":"_xll.RiskData('Risk Summary'!J$48,$A2518)/1000","v":{"$error":"#NAME?"}},{"$f":"_xll.RiskData('Risk Summary'!K$48,$A2518)/1000","v":{"$error":"#NAME?"}},{"$f":"_xll.RiskData('Risk Summary'!L$48,$A2518)/1000","v":{"$error":"#NAME?"}},null,null,{"$f":"(_xll.RiskData(NR_to_Cash!C$18,$A2518))/1000","v":{"$error":"#NAME?"}},{"$f":"(_xll.RiskData(NR_to_Cash!D$18,$A2518))/1000","v":{"$error":"#NAME?"}},{"$f":"(_xll.RiskData(NR_to_Cash!E$18,$A2518))/1000","v":{"$error":"#NAME?"}}]
[2512,{"$f":"_xll.RiskData('Risk Summary'!J$48,$A2519)/1000","v":{"$error":"#NAME?"}},{"$f":"_xll.RiskData('Risk Summary'!K$48,$A2519)/1000","v":{"$error":"#NAME?"}},{"$f":"_xll.RiskData('Risk Summary'!L$48,$A2519)/1000","v":{"$error":"#NAME?"}},null,null,{"$f":"(_xll.RiskData(NR_to_Cash!C$18,$A2519))/1000","v":{"$error":"#NAME?"}},{"$f":"(_xll.RiskData(NR_to_Cash!D$18,$A2519))/1000","v":{"$error":"#NAME?"}},{"$f":"(_xll.RiskData(NR_to_Cash!E$18,$A2519))/1000","v":{"$error":"#NAME?"}}]
[2513,{"$f":"_xll.RiskData('Risk Summary'!J$48,$A2520)/1000","v":{"$error":"#NAME?"}},{"$f":"_xll.RiskData('Risk Summary'!K$48,$A2520)/1000","v":{"$error":"#NAME?"}},{"$f":"_xll.RiskData('Risk Summary'!L$48,$A2520)/1000","v":{"$error":"#NAME?"}},null,null,{"$f":"(_xll.RiskData(NR_to_Cash!C$18,$A2520))/1000","v":{"$error":"#NAME?"}},{"$f":"(_xll.RiskData(NR_to_Cash!D$18,$A2520))/1000","v":{"$error":"#NAME?"}},{"$f":"(_xll.RiskData(NR_to_Cash!E$18,$A2520))/1000","v":{"$error":"#NAME?"}}]
[2514,{"$f":"_xll.RiskData('Risk Summary'!J$48,$A2521)/1000","v":{"$error":"#NAME?"}},{"$f":"_xll.RiskData('Risk Summary'!K$48,$A2521)/1000","v":{"$error":"#NAME?"}},{"$f":"_xll.RiskData('Risk Summary'!L$48,$A2521)/1000","v":{"$error":"#NAME?"}},null,null,{"$f":"(_xll.RiskData(NR_to_Cash!C$18,$A2521))/1000","v":{"$error":"#NAME?"}},{"$f":"(_xll.RiskData(NR_to_Cash!D$18,$A2521))/1000","v":{"$error":"#NAME?"}},{"$f":"(_xll.RiskData(NR_to_Cash!E$18,$A2521))/1000","v":{"$error":"#NAME?"}}]
[2515,{"$f":"_xll.RiskData('Risk Summary'!J$48,$A2522)/1000","v":{"$error":"#NAME?"}},{"$f":"_xll.RiskData('Risk Summary'!K$48,$A2522)/1000","v":{"$error":"#NAME?"}},{"$f":"_xll.RiskData('Risk Summary'!L$48,$A2522)/1000","v":{"$error":"#NAME?"}},null,null,{"$f":"(_xll.RiskData(NR_to_Cash!C$18,$A2522))/1000","v":{"$error":"#NAME?"}},{"$f":"(_xll.RiskData(NR_to_Cash!D$18,$A2522))/1000","v":{"$error":"#NAME?"}},{"$f":"(_xll.RiskData(NR_to_Cash!E$18,$A2522))/1000","v":{"$error":"#NAME?"}}]
[2516,{"$f":"_xll.RiskData('Risk Summary'!J$48,$A2523)/1000","v":{"$error":"#NAME?"}},{"$f":"_xll.RiskData('Risk Summary'!K$48,$A2523)/1000","v":{"$error":"#NAME?"}},{"$f":"_xll.RiskData('Risk Summary'!L$48,$A2523)/1000","v":{"$error":"#NAME?"}},null,null,{"$f":"(_xll.RiskData(NR_to_Cash!C$18,$A2523))/1000","v":{"$error":"#NAME?"}},{"$f":"(_xll.RiskData(NR_to_Cash!D$18,$A2523))/1000","v":{"$error":"#NAME?"}},{"$f":"(_xll.RiskData(NR_to_Cash!E$18,$A2523))/1000","v":{"$error":"#NAME?"}}]
[2517,{"$f":"_xll.RiskData('Risk Summary'!J$48,$A2524)/1000","v":{"$error":"#NAME?"}},{"$f":"_xll.RiskData('Risk Summary'!K$48,$A2524)/1000","v":{"$error":"#NAME?"}},{"$f":"_xll.RiskData('Risk Summary'!L$48,$A2524)/1000","v":{"$error":"#NAME?"}},null,null,{"$f":"(_xll.RiskData(NR_to_Cash!C$18,$A2524))/1000","v":{"$error":"#NAME?"}},{"$f":"(_xll.RiskData(NR_to_Cash!D$18,$A2524))/1000","v":{"$error":"#NAME?"}},{"$f":"(_xll.RiskData(NR_to_Cash!E$18,$A2524))/1000","v":{"$error":"#NAME?"}}]
[2518,{"$f":"_xll.RiskData('Risk Summary'!J$48,$A2525)/1000","v":{"$error":"#NAME?"}},{"$f":"_xll.RiskData('Risk Summary'!K$48,$A2525)/1000","v":{"$error":"#NAME?"}},{"$f":"_xll.RiskData('Risk Summary'!L$48,$A2525)/1000","v":{"$error":"#NAME?"}},null,null,{"$f":"(_xll.RiskData(NR_to_Cash!C$18,$A2525))/1000","v":{"$error":"#NAME?"}},{"$f":"(_xll.RiskData(NR_to_Cash!D$18,$A2525))/1000","v":{"$error":"#NAME?"}},{"$f":"(_xll.RiskData(NR_to_Cash!E$18,$A2525))/1000","v":{"$error":"#NAME?"}}]
[2519,{"$f":"_xll.RiskData('Risk Summary'!J$48,$A2526)/1000","v":{"$error":"#NAME?"}},{"$f":"_xll.RiskData('Risk Summary'!K$48,$A2526)/1000","v":{"$error":"#NAME?"}},{"$f":"_xll.RiskData('Risk Summary'!L$48,$A2526)/1000","v":{"$error":"#NAME?"}},null,null,{"$f":"(_xll.RiskData(NR_to_Cash!C$18,$A2526))/1000","v":{"$error":"#NAME?"}},{"$f":"(_xll.RiskData(NR_to_Cash!D$18,$A2526))/1000","v":{"$error":"#NAME?"}},{"$f":"(_xll.RiskData(NR_to_Cash!E$18,$A2526))/1000","v":{"$error":"#NAME?"}}]
[2520,{"$f":"_xll.RiskData('Risk Summary'!J$48,$A2527)/1000","v":{"$error":"#NAME?"}},{"$f":"_xll.RiskData('Risk Summary'!K$48,$A2527)/1000","v":{"$error":"#NAME?"}},{"$f":"_xll.RiskData('Risk Summary'!L$48,$A2527)/1000","v":{"$error":"#NAME?"}},null,null,{"$f":"(_xll.RiskData(NR_to_Cash!C$18,$A2527))/1000","v":{"$error":"#NAME?"}},{"$f":"(_xll.RiskData(NR_to_Cash!D$18,$A2527))/1000","v":{"$error":"#NAME?"}},{"$f":"(_xll.RiskData(NR_to_Cash!E$18,$A2527))/1000","v":{"$error":"#NAME?"}}]
[2521,{"$f":"_xll.RiskData('Risk Summary'!J$48,$A2528)/1000","v":{"$error":"#NAME?"}},{"$f":"_xll.RiskData('Risk Summary'!K$48,$A2528)/1000","v":{"$error":"#NAME?"}},{"$f":"_xll.RiskData('Risk Summary'!L$48,$A2528)/1000","v":{"$error":"#NAME?"}},null,null,{"$f":"(_xll.RiskData(NR_to_Cash!C$18,$A2528))/1000","v":{"$error":"#NAME?"}},{"$f":"(_xll.RiskData(NR_to_Cash!D$18,$A2528))/1000","v":{"$error":"#NAME?"}},{"$f":"(_xll.RiskData(NR_to_Cash!E$18,$A2528))/1000","v":{"$error":"#NAME?"}}]
[2522,{"$f":"_xll.RiskData('Risk Summary'!J$48,$A2529)/1000","v":{"$error":"#NAME?"}},{"$f":"_xll.RiskData('Risk Summary'!K$48,$A2529)/1000","v":{"$error":"#NAME?"}},{"$f":"_xll.RiskData('Risk Summary'!L$48,$A2529)/1000","v":{"$error":"#NAME?"}},null,null,{"$f":"(_xll.RiskData(NR_to_Cash!C$18,$A2529))/1000","v":{"$error":"#NAME?"}},{"$f":"(_xll.RiskData(NR_to_Cash!D$18,$A2529))/1000","v":{"$error":"#NAME?"}},{"$f":"(_xll.RiskData(NR_to_Cash!E$18,$A2529))/1000","v":{"$error":"#NAME?"}}]
[2523,{"$f":"_xll.RiskData('Risk Summary'!J$48,$A2530)/1000","v":{"$error":"#NAME?"}},{"$f":"_xll.RiskData('Risk Summary'!K$48,$A2530)/1000","v":{"$error":"#NAME?"}},{"$f":"_xll.RiskData('Risk Summary'!L$48,$A2530)/1000","v":{"$error":"#NAME?"}},null,null,{"$f":"(_xll.RiskData(NR_to_Cash!C$18,$A2530))/1000","v":{"$error":"#NAME?"}},{"$f":"(_xll.RiskData(NR_to_Cash!D$18,$A2530))/1000","v":{"$error":"#NAME?"}},{"$f":"(_xll.RiskData(NR_to_Cash!E$18,$A2530))/1000","v":{"$error":"#NAME?"}}]
[2524,{"$f":"_xll.RiskData('Risk Summary'!J$48,$A2531)/1000","v":{"$error":"#NAME?"}},{"$f":"_xll.RiskData('Risk Summary'!K$48,$A2531)/1000","v":{"$error":"#NAME?"}},{"$f":"_xll.RiskData('Risk Summary'!L$48,$A2531)/1000","v":{"$error":"#NAME?"}},null,null,{"$f":"(_xll.RiskData(NR_to_Cash!C$18,$A2531))/1000","v":{"$error":"#NAME?"}},{"$f":"(_xll.RiskData(NR_to_Cash!D$18,$A2531))/1000","v":{"$error":"#NAME?"}},{"$f":"(_xll.RiskData(NR_to_Cash!E$18,$A2531))/1000","v":{"$error":"#NAME?"}}]
[2525,{"$f":"_xll.RiskData('Risk Summary'!J$48,$A2532)/1000","v":{"$error":"#NAME?"}},{"$f":"_xll.RiskData('Risk Summary'!K$48,$A2532)/1000","v":{"$error":"#NAME?"}},{"$f":"_xll.RiskData('Risk Summary'!L$48,$A2532)/1000","v":{"$error":"#NAME?"}},null,null,{"$f":"(_xll.RiskData(NR_to_Cash!C$18,$A2532))/1000","v":{"$error":"#NAME?"}},{"$f":"(_xll.RiskData(NR_to_Cash!D$18,$A2532))/1000","v":{"$error":"#NAME?"}},{"$f":"(_xll.RiskData(NR_to_Cash!E$18,$A2532))/1000","v":{"$error":"#NAME?"}}]
[2526,{"$f":"_xll.RiskData('Risk Summary'!J$48,$A2533)/1000","v":{"$error":"#NAME?"}},{"$f":"_xll.RiskData('Risk Summary'!K$48,$A2533)/1000","v":{"$error":"#NAME?"}},{"$f":"_xll.RiskData('Risk Summary'!L$48,$A2533)/1000","v":{"$error":"#NAME?"}},null,null,{"$f":"(_xll.RiskData(NR_to_Cash!C$18,$A2533))/1000","v":{"$error":"#NAME?"}},{"$f":"(_xll.RiskData(NR_to_Cash!D$18,$A2533))/1000","v":{"$error":"#NAME?"}},{"$f":"(_xll.RiskData(NR_to_Cash!E$18,$A2533))/1000","v":{"$error":"#NAME?"}}]
[2527,{"$f":"_xll.RiskData('Risk Summary'!J$48,$A2534)/1000","v":{"$error":"#NAME?"}},{"$f":"_xll.RiskData('Risk Summary'!K$48,$A2534)/1000","v":{"$error":"#NAME?"}},{"$f":"_xll.RiskData('Risk Summary'!L$48,$A2534)/1000","v":{"$error":"#NAME?"}},null,null,{"$f":"(_xll.RiskData(NR_to_Cash!C$18,$A2534))/1000","v":{"$error":"#NAME?"}},{"$f":"(_xll.RiskData(NR_to_Cash!D$18,$A2534))/1000","v":{"$error":"#NAME?"}},{"$f":"(_xll.RiskData(NR_to_Cash!E$18,$A2534))/1000","v":{"$error":"#NAME?"}}]
[2528,{"$f":"_xll.RiskData('Risk Summary'!J$48,$A2535)/1000","v":{"$error":"#NAME?"}},{"$f":"_xll.RiskData('Risk Summary'!K$48,$A2535)/1000","v":{"$error":"#NAME?"}},{"$f":"_xll.RiskData('Risk Summary'!L$48,$A2535)/1000","v":{"$error":"#NAME?"}},null,null,{"$f":"(_xll.RiskData(NR_to_Cash!C$18,$A2535))/1000","v":{"$error":"#NAME?"}},{"$f":"(_xll.RiskData(NR_to_Cash!D$18,$A2535))/1000","v":{"$error":"#NAME?"}},{"$f":"(_xll.RiskData(NR_to_Cash!E$18,$A2535))/1000","v":{"$error":"#NAME?"}}]
[2529,{"$f":"_xll.RiskData('Risk Summary'!J$48,$A2536)/1000","v":{"$error":"#NAME?"}},{"$f":"_xll.RiskData('Risk Summary'!K$48,$A2536)/1000","v":{"$error":"#NAME?"}},{"$f":"_xll.RiskData('Risk Summary'!L$48,$A2536)/1000","v":{"$error":"#NAME?"}},null,null,{"$f":"(_xll.RiskData(NR_to_Cash!C$18,$A2536))/1000","v":{"$error":"#NAME?"}},{"$f":"(_xll.RiskData(NR_to_Cash!D$18,$A2536))/1000","v":{"$error":"#NAME?"}},{"$f":"(_xll.RiskData(NR_to_Cash!E$18,$A2536))/1000","v":{"$error":"#NAME?"}}]
[2530,{"$f":"_xll.RiskData('Risk Summary'!J$48,$A2537)/1000","v":{"$error":"#NAME?"}},{"$f":"_xll.RiskData('Risk Summary'!K$48,$A2537)/1000","v":{"$error":"#NAME?"}},{"$f":"_xll.RiskData('Risk Summary'!L$48,$A2537)/1000","v":{"$error":"#NAME?"}},null,null,{"$f":"(_xll.RiskData(NR_to_Cash!C$18,$A2537))/1000","v":{"$error":"#NAME?"}},{"$f":"(_xll.RiskData(NR_to_Cash!D$18,$A2537))/1000","v":{"$error":"#NAME?"}},{"$f":"(_xll.RiskData(NR_to_Cash!E$18,$A2537))/1000","v":{"$error":"#NAME?"}}]
[2531,{"$f":"_xll.RiskData('Risk Summary'!J$48,$A2538)/1000","v":{"$error":"#NAME?"}},{"$f":"_xll.RiskData('Risk Summary'!K$48,$A2538)/1000","v":{"$error":"#NAME?"}},{"$f":"_xll.RiskData('Risk Summary'!L$48,$A2538)/1000","v":{"$error":"#NAME?"}},null,null,{"$f":"(_xll.RiskData(NR_to_Cash!C$18,$A2538))/1000","v":{"$error":"#NAME?"}},{"$f":"(_xll.RiskData(NR_to_Cash!D$18,$A2538))/1000","v":{"$error":"#NAME?"}},{"$f":"(_xll.RiskData(NR_to_Cash!E$18,$A2538))/1000","v":{"$error":"#NAME?"}}]
[2532,{"$f":"_xll.RiskData('Risk Summary'!J$48,$A2539)/1000","v":{"$error":"#NAME?"}},{"$f":"_xll.RiskData('Risk Summary'!K$48,$A2539)/1000","v":{"$error":"#NAME?"}},{"$f":"_xll.RiskData('Risk Summary'!L$48,$A2539)/1000","v":{"$error":"#NAME?"}},null,null,{"$f":"(_xll.RiskData(NR_to_Cash!C$18,$A2539))/1000","v":{"$error":"#NAME?"}},{"$f":"(_xll.RiskData(NR_to_Cash!D$18,$A2539))/1000","v":{"$error":"#NAME?"}},{"$f":"(_xll.RiskData(NR_to_Cash!E$18,$A2539))/1000","v":{"$error":"#NAME?"}}]
[2533,{"$f":"_xll.RiskData('Risk Summary'!J$48,$A2540)/1000","v":{"$error":"#NAME?"}},{"$f":"_xll.RiskData('Risk Summary'!K$48,$A2540)/1000","v":{"$error":"#NAME?"}},{"$f":"_xll.RiskData('Risk Summary'!L$48,$A2540)/1000","v":{"$error":"#NAME?"}},null,null,{"$f":"(_xll.RiskData(NR_to_Cash!C$18,$A2540))/1000","v":{"$error":"#NAME?"}},{"$f":"(_xll.RiskData(NR_to_Cash!D$18,$A2540))/1000","v":{"$error":"#NAME?"}},{"$f":"(_xll.RiskData(NR_to_Cash!E$18,$A2540))/1000","v":{"$error":"#NAME?"}}]
[2534,{"$f":"_xll.RiskData('Risk Summary'!J$48,$A2541)/1000","v":{"$error":"#NAME?"}},{"$f":"_xll.RiskData('Risk Summary'!K$48,$A2541)/1000","v":{"$error":"#NAME?"}},{"$f":"_xll.RiskData('Risk Summary'!L$48,$A2541)/1000","v":{"$error":"#NAME?"}},null,null,{"$f":"(_xll.RiskData(NR_to_Cash!C$18,$A2541))/1000","v":{"$error":"#NAME?"}},{"$f":"(_xll.RiskData(NR_to_Cash!D$18,$A2541))/1000","v":{"$error":"#NAME?"}},{"$f":"(_xll.RiskData(NR_to_Cash!E$18,$A2541))/1000","v":{"$error":"#NAME?"}}]
[2535,{"$f":"_xll.RiskData('Risk Summary'!J$48,$A2542)/1000","v":{"$error":"#NAME?"}},{"$f":"_xll.RiskData('Risk Summary'!K$48,$A2542)/1000","v":{"$error":"#NAME?"}},{"$f":"_xll.RiskData('Risk Summary'!L$48,$A2542)/1000","v":{"$error":"#NAME?"}},null,null,{"$f":"(_xll.RiskData(NR_to_Cash!C$18,$A2542))/1000","v":{"$error":"#NAME?"}},{"$f":"(_xll.RiskData(NR_to_Cash!D$18,$A2542))/1000","v":{"$error":"#NAME?"}},{"$f":"(_xll.RiskData(NR_to_Cash!E$18,$A2542))/1000","v":{"$error":"#NAME?"}}]
[2536,{"$f":"_xll.RiskData('Risk Summary'!J$48,$A2543)/1000","v":{"$error":"#NAME?"}},{"$f":"_xll.RiskData('Risk Summary'!K$48,$A2543)/1000","v":{"$error":"#NAME?"}},{"$f":"_xll.RiskData('Risk Summary'!L$48,$A2543)/1000","v":{"$error":"#NAME?"}},null,null,{"$f":"(_xll.RiskData(NR_to_Cash!C$18,$A2543))/1000","v":{"$error":"#NAME?"}},{"$f":"(_xll.RiskData(NR_to_Cash!D$18,$A2543))/1000","v":{"$error":"#NAME?"}},{"$f":"(_xll.RiskData(NR_to_Cash!E$18,$A2543))/1000","v":{"$error":"#NAME?"}}]
[2537,{"$f":"_xll.RiskData('Risk Summary'!J$48,$A2544)/1000","v":{"$error":"#NAME?"}},{"$f":"_xll.RiskData('Risk Summary'!K$48,$A2544)/1000","v":{"$error":"#NAME?"}},{"$f":"_xll.RiskData('Risk Summary'!L$48,$A2544)/1000","v":{"$error":"#NAME?"}},null,null,{"$f":"(_xll.RiskData(NR_to_Cash!C$18,$A2544))/1000","v":{"$error":"#NAME?"}},{"$f":"(_xll.RiskData(NR_to_Cash!D$18,$A2544))/1000","v":{"$error":"#NAME?"}},{"$f":"(_xll.RiskData(NR_to_Cash!E$18,$A2544))/1000","v":{"$error":"#NAME?"}}]
[2538,{"$f":"_xll.RiskData('Risk Summary'!J$48,$A2545)/1000","v":{"$error":"#NAME?"}},{"$f":"_xll.RiskData('Risk Summary'!K$48,$A2545)/1000","v":{"$error":"#NAME?"}},{"$f":"_xll.RiskData('Risk Summary'!L$48,$A2545)/1000","v":{"$error":"#NAME?"}},null,null,{"$f":"(_xll.RiskData(NR_to_Cash!C$18,$A2545))/1000","v":{"$error":"#NAME?"}},{"$f":"(_xll.RiskData(NR_to_Cash!D$18,$A2545))/1000","v":{"$error":"#NAME?"}},{"$f":"(_xll.RiskData(NR_to_Cash!E$18,$A2545))/1000","v":{"$error":"#NAME?"}}]
[2539,{"$f":"_xll.RiskData('Risk Summary'!J$48,$A2546)/1000","v":{"$error":"#NAME?"}},{"$f":"_xll.RiskData('Risk Summary'!K$48,$A2546)/1000","v":{"$error":"#NAME?"}},{"$f":"_xll.RiskData('Risk Summary'!L$48,$A2546)/1000","v":{"$error":"#NAME?"}},null,null,{"$f":"(_xll.RiskData(NR_to_Cash!C$18,$A2546))/1000","v":{"$error":"#NAME?"}},{"$f":"(_xll.RiskData(NR_to_Cash!D$18,$A2546))/1000","v":{"$error":"#NAME?"}},{"$f":"(_xll.RiskData(NR_to_Cash!E$18,$A2546))/1000","v":{"$error":"#NAME?"}}]
[2540,{"$f":"_xll.RiskData('Risk Summary'!J$48,$A2547)/1000","v":{"$error":"#NAME?"}},{"$f":"_xll.RiskData('Risk Summary'!K$48,$A2547)/1000","v":{"$error":"#NAME?"}},{"$f":"_xll.RiskData('Risk Summary'!L$48,$A2547)/1000","v":{"$error":"#NAME?"}},null,null,{"$f":"(_xll.RiskData(NR_to_Cash!C$18,$A2547))/1000","v":{"$error":"#NAME?"}},{"$f":"(_xll.RiskData(NR_to_Cash!D$18,$A2547))/1000","v":{"$error":"#NAME?"}},{"$f":"(_xll.RiskData(NR_to_Cash!E$18,$A2547))/1000","v":{"$error":"#NAME?"}}]
[2541,{"$f":"_xll.RiskData('Risk Summary'!J$48,$A2548)/1000","v":{"$error":"#NAME?"}},{"$f":"_xll.RiskData('Risk Summary'!K$48,$A2548)/1000","v":{"$error":"#NAME?"}},{"$f":"_xll.RiskData('Risk Summary'!L$48,$A2548)/1000","v":{"$error":"#NAME?"}},null,null,{"$f":"(_xll.RiskData(NR_to_Cash!C$18,$A2548))/1000","v":{"$error":"#NAME?"}},{"$f":"(_xll.RiskData(NR_to_Cash!D$18,$A2548))/1000","v":{"$error":"#NAME?"}},{"$f":"(_xll.RiskData(NR_to_Cash!E$18,$A2548))/1000","v":{"$error":"#NAME?"}}]
[2542,{"$f":"_xll.RiskData('Risk Summary'!J$48,$A2549)/1000","v":{"$error":"#NAME?"}},{"$f":"_xll.RiskData('Risk Summary'!K$48,$A2549)/1000","v":{"$error":"#NAME?"}},{"$f":"_xll.RiskData('Risk Summary'!L$48,$A2549)/1000","v":{"$error":"#NAME?"}},null,null,{"$f":"(_xll.RiskData(NR_to_Cash!C$18,$A2549))/1000","v":{"$error":"#NAME?"}},{"$f":"(_xll.RiskData(NR_to_Cash!D$18,$A2549))/1000","v":{"$error":"#NAME?"}},{"$f":"(_xll.RiskData(NR_to_Cash!E$18,$A2549))/1000","v":{"$error":"#NAME?"}}]
[2543,{"$f":"_xll.RiskData('Risk Summary'!J$48,$A2550)/1000","v":{"$error":"#NAME?"}},{"$f":"_xll.RiskData('Risk Summary'!K$48,$A2550)/1000","v":{"$error":"#NAME?"}},{"$f":"_xll.RiskData('Risk Summary'!L$48,$A2550)/1000","v":{"$error":"#NAME?"}},null,null,{"$f":"(_xll.RiskData(NR_to_Cash!C$18,$A2550))/1000","v":{"$error":"#NAME?"}},{"$f":"(_xll.RiskData(NR_to_Cash!D$18,$A2550))/1000","v":{"$error":"#NAME?"}},{"$f":"(_xll.RiskData(NR_to_Cash!E$18,$A2550))/1000","v":{"$error":"#NAME?"}}]
[2544,{"$f":"_xll.RiskData('Risk Summary'!J$48,$A2551)/1000","v":{"$error":"#NAME?"}},{"$f":"_xll.RiskData('Risk Summary'!K$48,$A2551)/1000","v":{"$error":"#NAME?"}},{"$f":"_xll.RiskData('Risk Summary'!L$48,$A2551)/1000","v":{"$error":"#NAME?"}},null,null,{"$f":"(_xll.RiskData(NR_to_Cash!C$18,$A2551))/1000","v":{"$error":"#NAME?"}},{"$f":"(_xll.RiskData(NR_to_Cash!D$18,$A2551))/1000","v":{"$error":"#NAME?"}},{"$f":"(_xll.RiskData(NR_to_Cash!E$18,$A2551))/1000","v":{"$error":"#NAME?"}}]
[2545,{"$f":"_xll.RiskData('Risk Summary'!J$48,$A2552)/1000","v":{"$error":"#NAME?"}},{"$f":"_xll.RiskData('Risk Summary'!K$48,$A2552)/1000","v":{"$error":"#NAME?"}},{"$f":"_xll.RiskData('Risk Summary'!L$48,$A2552)/1000","v":{"$error":"#NAME?"}},null,null,{"$f":"(_xll.RiskData(NR_to_Cash!C$18,$A2552))/1000","v":{"$error":"#NAME?"}},{"$f":"(_xll.RiskData(NR_to_Cash!D$18,$A2552))/1000","v":{"$error":"#NAME?"}},{"$f":"(_xll.RiskData(NR_to_Cash!E$18,$A2552))/1000","v":{"$error":"#NAME?"}}]
[2546,{"$f":"_xll.RiskData('Risk Summary'!J$48,$A2553)/1000","v":{"$error":"#NAME?"}},{"$f":"_xll.RiskData('Risk Summary'!K$48,$A2553)/1000","v":{"$error":"#NAME?"}},{"$f":"_xll.RiskData('Risk Summary'!L$48,$A2553)/1000","v":{"$error":"#NAME?"}},null,null,{"$f":"(_xll.RiskData(NR_to_Cash!C$18,$A2553))/1000","v":{"$error":"#NAME?"}},{"$f":"(_xll.RiskData(NR_to_Cash!D$18,$A2553))/1000","v":{"$error":"#NAME?"}},{"$f":"(_xll.RiskData(NR_to_Cash!E$18,$A2553))/1000","v":{"$error":"#NAME?"}}]
[2547,{"$f":"_xll.RiskData('Risk Summary'!J$48,$A2554)/1000","v":{"$error":"#NAME?"}},{"$f":"_xll.RiskData('Risk Summary'!K$48,$A2554)/1000","v":{"$error":"#NAME?"}},{"$f":"_xll.RiskData('Risk Summary'!L$48,$A2554)/1000","v":{"$error":"#NAME?"}},null,null,{"$f":"(_xll.RiskData(NR_to_Cash!C$18,$A2554))/1000","v":{"$error":"#NAME?"}},{"$f":"(_xll.RiskData(NR_to_Cash!D$18,$A2554))/1000","v":{"$error":"#NAME?"}},{"$f":"(_xll.RiskData(NR_to_Cash!E$18,$A2554))/1000","v":{"$error":"#NAME?"}}]
[2548,{"$f":"_xll.RiskData('Risk Summary'!J$48,$A2555)/1000","v":{"$error":"#NAME?"}},{"$f":"_xll.RiskData('Risk Summary'!K$48,$A2555)/1000","v":{"$error":"#NAME?"}},{"$f":"_xll.RiskData('Risk Summary'!L$48,$A2555)/1000","v":{"$error":"#NAME?"}},null,null,{"$f":"(_xll.RiskData(NR_to_Cash!C$18,$A2555))/1000","v":{"$error":"#NAME?"}},{"$f":"(_xll.RiskData(NR_to_Cash!D$18,$A2555))/1000","v":{"$error":"#NAME?"}},{"$f":"(_xll.RiskData(NR_to_Cash!E$18,$A2555))/1000","v":{"$error":"#NAME?"}}]
[2549,{"$f":"_xll.RiskData('Risk Summary'!J$48,$A2556)/1000","v":{"$error":"#NAME?"}},{"$f":"_xll.RiskData('Risk Summary'!K$48,$A2556)/1000","v":{"$error":"#NAME?"}},{"$f":"_xll.RiskData('Risk Summary'!L$48,$A2556)/1000","v":{"$error":"#NAME?"}},null,null,{"$f":"(_xll.RiskData(NR_to_Cash!C$18,$A2556))/1000","v":{"$error":"#NAME?"}},{"$f":"(_xll.RiskData(NR_to_Cash!D$18,$A2556))/1000","v":{"$error":"#NAME?"}},{"$f":"(_xll.RiskData(NR_to_Cash!E$18,$A2556))/1000","v":{"$error":"#NAME?"}}]
[2550,{"$f":"_xll.RiskData('Risk Summary'!J$48,$A2557)/1000","v":{"$error":"#NAME?"}},{"$f":"_xll.RiskData('Risk Summary'!K$48,$A2557)/1000","v":{"$error":"#NAME?"}},{"$f":"_xll.RiskData('Risk Summary'!L$48,$A2557)/1000","v":{"$error":"#NAME?"}},null,null,{"$f":"(_xll.RiskData(NR_to_Cash!C$18,$A2557))/1000","v":{"$error":"#NAME?"}},{"$f":"(_xll.RiskData(NR_to_Cash!D$18,$A2557))/1000","v":{"$error":"#NAME?"}},{"$f":"(_xll.RiskData(NR_to_Cash!E$18,$A2557))/1000","v":{"$error":"#NAME?"}}]
[2551,{"$f":"_xll.RiskData('Risk Summary'!J$48,$A2558)/1000","v":{"$error":"#NAME?"}},{"$f":"_xll.RiskData('Risk Summary'!K$48,$A2558)/1000","v":{"$error":"#NAME?"}},{"$f":"_xll.RiskData('Risk Summary'!L$48,$A2558)/1000","v":{"$error":"#NAME?"}},null,null,{"$f":"(_xll.RiskData(NR_to_Cash!C$18,$A2558))/1000","v":{"$error":"#NAME?"}},{"$f":"(_xll.RiskData(NR_to_Cash!D$18,$A2558))/1000","v":{"$error":"#NAME?"}},{"$f":"(_xll.RiskData(NR_to_Cash!E$18,$A2558))/1000","v":{"$error":"#NAME?"}}]
[2552,{"$f":"_xll.RiskData('Risk Summary'!J$48,$A2559)/1000","v":{"$error":"#NAME?"}},{"$f":"_xll.RiskData('Risk Summary'!K$48,$A2559)/1000","v":{"$error":"#NAME?"}},{"$f":"_xll.RiskData('Risk Summary'!L$48,$A2559)/1000","v":{"$error":"#NAME?"}},null,null,{"$f":"(_xll.RiskData(NR_to_Cash!C$18,$A2559))/1000","v":{"$error":"#NAME?"}},{"$f":"(_xll.RiskData(NR_to_Cash!D$18,$A2559))/1000","v":{"$error":"#NAME?"}},{"$f":"(_xll.RiskData(NR_to_Cash!E$18,$A2559))/1000","v":{"$error":"#NAME?"}}]
[2553,{"$f":"_xll.RiskData('Risk Summary'!J$48,$A2560)/1000","v":{"$error":"#NAME?"}},{"$f":"_xll.RiskData('Risk Summary'!K$48,$A2560)/1000","v":{"$error":"#NAME?"}},{"$f":"_xll.RiskData('Risk Summary'!L$48,$A2560)/1000","v":{"$error":"#NAME?"}},null,null,{"$f":"(_xll.RiskData(NR_to_Cash!C$18,$A2560))/1000","v":{"$error":"#NAME?"}},{"$f":"(_xll.RiskData(NR_to_Cash!D$18,$A2560))/1000","v":{"$error":"#NAME?"}},{"$f":"(_xll.RiskData(NR_to_Cash!E$18,$A2560))/1000","v":{"$error":"#NAME?"}}]
[2554,{"$f":"_xll.RiskData('Risk Summary'!J$48,$A2561)/1000","v":{"$error":"#NAME?"}},{"$f":"_xll.RiskData('Risk Summary'!K$48,$A2561)/1000","v":{"$error":"#NAME?"}},{"$f":"_xll.RiskData('Risk Summary'!L$48,$A2561)/1000","v":{"$error":"#NAME?"}},null,null,{"$f":"(_xll.RiskData(NR_to_Cash!C$18,$A2561))/1000","v":{"$error":"#NAME?"}},{"$f":"(_xll.RiskData(NR_to_Cash!D$18,$A2561))/1000","v":{"$error":"#NAME?"}},{"$f":"(_xll.RiskData(NR_to_Cash!E$18,$A2561))/1000","v":{"$error":"#NAME?"}}]
[2555,{"$f":"_xll.RiskData('Risk Summary'!J$48,$A2562)/1000","v":{"$error":"#NAME?"}},{"$f":"_xll.RiskData('Risk Summary'!K$48,$A2562)/1000","v":{"$error":"#NAME?"}},{"$f":"_xll.RiskData('Risk Summary'!L$48,$A2562)/1000","v":{"$error":"#NAME?"}},null,null,{"$f":"(_xll.RiskData(NR_to_Cash!C$18,$A2562))/1000","v":{"$error":"#NAME?"}},{"$f":"(_xll.RiskData(NR_to_Cash!D$18,$A2562))/1000","v":{"$error":"#NAME?"}},{"$f":"(_xll.RiskData(NR_to_Cash!E$18,$A2562))/1000","v":{"$error":"#NAME?"}}]
[2556,{"$f":"_xll.RiskData('Risk Summary'!J$48,$A2563)/1000","v":{"$error":"#NAME?"}},{"$f":"_xll.RiskData('Risk Summary'!K$48,$A2563)/1000","v":{"$error":"#NAME?"}},{"$f":"_xll.RiskData('Risk Summary'!L$48,$A2563)/1000","v":{"$error":"#NAME?"}},null,null,{"$f":"(_xll.RiskData(NR_to_Cash!C$18,$A2563))/1000","v":{"$error":"#NAME?"}},{"$f":"(_xll.RiskData(NR_to_Cash!D$18,$A2563))/1000","v":{"$error":"#NAME?"}},{"$f":"(_xll.RiskData(NR_to_Cash!E$18,$A2563))/1000","v":{"$error":"#NAME?"}}]
[2557,{"$f":"_xll.RiskData('Risk Summary'!J$48,$A2564)/1000","v":{"$error":"#NAME?"}},{"$f":"_xll.RiskData('Risk Summary'!K$48,$A2564)/1000","v":{"$error":"#NAME?"}},{"$f":"_xll.RiskData('Risk Summary'!L$48,$A2564)/1000","v":{"$error":"#NAME?"}},null,null,{"$f":"(_xll.RiskData(NR_to_Cash!C$18,$A2564))/1000","v":{"$error":"#NAME?"}},{"$f":"(_xll.RiskData(NR_to_Cash!D$18,$A2564))/1000","v":{"$error":"#NAME?"}},{"$f":"(_xll.RiskData(NR_to_Cash!E$18,$A2564))/1000","v":{"$error":"#NAME?"}}]
[2558,{"$f":"_xll.RiskData('Risk Summary'!J$48,$A2565)/1000","v":{"$error":"#NAME?"}},{"$f":"_xll.RiskData('Risk Summary'!K$48,$A2565)/1000","v":{"$error":"#NAME?"}},{"$f":"_xll.RiskData('Risk Summary'!L$48,$A2565)/1000","v":{"$error":"#NAME?"}},null,null,{"$f":"(_xll.RiskData(NR_to_Cash!C$18,$A2565))/1000","v":{"$error":"#NAME?"}},{"$f":"(_xll.RiskData(NR_to_Cash!D$18,$A2565))/1000","v":{"$error":"#NAME?"}},{"$f":"(_xll.RiskData(NR_to_Cash!E$18,$A2565))/1000","v":{"$error":"#NAME?"}}]
[2559,{"$f":"_xll.RiskData('Risk Summary'!J$48,$A2566)/1000","v":{"$error":"#NAME?"}},{"$f":"_xll.RiskData('Risk Summary'!K$48,$A2566)/1000","v":{"$error":"#NAME?"}},{"$f":"_xll.RiskData('Risk Summary'!L$48,$A2566)/1000","v":{"$error":"#NAME?"}},null,null,{"$f":"(_xll.RiskData(NR_to_Cash!C$18,$A2566))/1000","v":{"$error":"#NAME?"}},{"$f":"(_xll.RiskData(NR_to_Cash!D$18,$A2566))/1000","v":{"$error":"#NAME?"}},{"$f":"(_xll.RiskData(NR_to_Cash!E$18,$A2566))/1000","v":{"$error":"#NAME?"}}]
[2560,{"$f":"_xll.RiskData('Risk Summary'!J$48,$A2567)/1000","v":{"$error":"#NAME?"}},{"$f":"_xll.RiskData('Risk Summary'!K$48,$A2567)/1000","v":{"$error":"#NAME?"}},{"$f":"_xll.RiskData('Risk Summary'!L$48,$A2567)/1000","v":{"$error":"#NAME?"}},null,null,{"$f":"(_xll.RiskData(NR_to_Cash!C$18,$A2567))/1000","v":{"$error":"#NAME?"}},{"$f":"(_xll.RiskData(NR_to_Cash!D$18,$A2567))/1000","v":{"$error":"#NAME?"}},{"$f":"(_xll.RiskData(NR_to_Cash!E$18,$A2567))/1000","v":{"$error":"#NAME?"}}]
[2561,{"$f":"_xll.RiskData('Risk Summary'!J$48,$A2568)/1000","v":{"$error":"#NAME?"}},{"$f":"_xll.RiskData('Risk Summary'!K$48,$A2568)/1000","v":{"$error":"#NAME?"}},{"$f":"_xll.RiskData('Risk Summary'!L$48,$A2568)/1000","v":{"$error":"#NAME?"}},null,null,{"$f":"(_xll.RiskData(NR_to_Cash!C$18,$A2568))/1000","v":{"$error":"#NAME?"}},{"$f":"(_xll.RiskData(NR_to_Cash!D$18,$A2568))/1000","v":{"$error":"#NAME?"}},{"$f":"(_xll.RiskData(NR_to_Cash!E$18,$A2568))/1000","v":{"$error":"#NAME?"}}]
[2562,{"$f":"_xll.RiskData('Risk Summary'!J$48,$A2569)/1000","v":{"$error":"#NAME?"}},{"$f":"_xll.RiskData('Risk Summary'!K$48,$A2569)/1000","v":{"$error":"#NAME?"}},{"$f":"_xll.RiskData('Risk Summary'!L$48,$A2569)/1000","v":{"$error":"#NAME?"}},null,null,{"$f":"(_xll.RiskData(NR_to_Cash!C$18,$A2569))/1000","v":{"$error":"#NAME?"}},{"$f":"(_xll.RiskData(NR_to_Cash!D$18,$A2569))/1000","v":{"$error":"#NAME?"}},{"$f":"(_xll.RiskData(NR_to_Cash!E$18,$A2569))/1000","v":{"$error":"#NAME?"}}]
[2563,{"$f":"_xll.RiskData('Risk Summary'!J$48,$A2570)/1000","v":{"$error":"#NAME?"}},{"$f":"_xll.RiskData('Risk Summary'!K$48,$A2570)/1000","v":{"$error":"#NAME?"}},{"$f":"_xll.RiskData('Risk Summary'!L$48,$A2570)/1000","v":{"$error":"#NAME?"}},null,null,{"$f":"(_xll.RiskData(NR_to_Cash!C$18,$A2570))/1000","v":{"$error":"#NAME?"}},{"$f":"(_xll.RiskData(NR_to_Cash!D$18,$A2570))/1000","v":{"$error":"#NAME?"}},{"$f":"(_xll.RiskData(NR_to_Cash!E$18,$A2570))/1000","v":{"$error":"#NAME?"}}]
[2564,{"$f":"_xll.RiskData('Risk Summary'!J$48,$A2571)/1000","v":{"$error":"#NAME?"}},{"$f":"_xll.RiskData('Risk Summary'!K$48,$A2571)/1000","v":{"$error":"#NAME?"}},{"$f":"_xll.RiskData('Risk Summary'!L$48,$A2571)/1000","v":{"$error":"#NAME?"}},null,null,{"$f":"(_xll.RiskData(NR_to_Cash!C$18,$A2571))/1000","v":{"$error":"#NAME?"}},{"$f":"(_xll.RiskData(NR_to_Cash!D$18,$A2571))/1000","v":{"$error":"#NAME?"}},{"$f":"(_xll.RiskData(NR_to_Cash!E$18,$A2571))/1000","v":{"$error":"#NAME?"}}]
[2565,{"$f":"_xll.RiskData('Risk Summary'!J$48,$A2572)/1000","v":{"$error":"#NAME?"}},{"$f":"_xll.RiskData('Risk Summary'!K$48,$A2572)/1000","v":{"$error":"#NAME?"}},{"$f":"_xll.RiskData('Risk Summary'!L$48,$A2572)/1000","v":{"$error":"#NAME?"}},null,null,{"$f":"(_xll.RiskData(NR_to_Cash!C$18,$A2572))/1000","v":{"$error":"#NAME?"}},{"$f":"(_xll.RiskData(NR_to_Cash!D$18,$A2572))/1000","v":{"$error":"#NAME?"}},{"$f":"(_xll.RiskData(NR_to_Cash!E$18,$A2572))/1000","v":{"$error":"#NAME?"}}]
[2566,{"$f":"_xll.RiskData('Risk Summary'!J$48,$A2573)/1000","v":{"$error":"#NAME?"}},{"$f":"_xll.RiskData('Risk Summary'!K$48,$A2573)/1000","v":{"$error":"#NAME?"}},{"$f":"_xll.RiskData('Risk Summary'!L$48,$A2573)/1000","v":{"$error":"#NAME?"}},null,null,{"$f":"(_xll.RiskData(NR_to_Cash!C$18,$A2573))/1000","v":{"$error":"#NAME?"}},{"$f":"(_xll.RiskData(NR_to_Cash!D$18,$A2573))/1000","v":{"$error":"#NAME?"}},{"$f":"(_xll.RiskData(NR_to_Cash!E$18,$A2573))/1000","v":{"$error":"#NAME?"}}]
[2567,{"$f":"_xll.RiskData('Risk Summary'!J$48,$A2574)/1000","v":{"$error":"#NAME?"}},{"$f":"_xll.RiskData('Risk Summary'!K$48,$A2574)/1000","v":{"$error":"#NAME?"}},{"$f":"_xll.RiskData('Risk Summary'!L$48,$A2574)/1000","v":{"$error":"#NAME?"}},null,null,{"$f":"(_xll.RiskData(NR_to_Cash!C$18,$A2574))/1000","v":{"$error":"#NAME?"}},{"$f":"(_xll.RiskData(NR_to_Cash!D$18,$A2574))/1000","v":{"$error":"#NAME?"}},{"$f":"(_xll.RiskData(NR_to_Cash!E$18,$A2574))/1000","v":{"$error":"#NAME?"}}]
[2568,{"$f":"_xll.RiskData('Risk Summary'!J$48,$A2575)/1000","v":{"$error":"#NAME?"}},{"$f":"_xll.RiskData('Risk Summary'!K$48,$A2575)/1000","v":{"$error":"#NAME?"}},{"$f":"_xll.RiskData('Risk Summary'!L$48,$A2575)/1000","v":{"$error":"#NAME?"}},null,null,{"$f":"(_xll.RiskData(NR_to_Cash!C$18,$A2575))/1000","v":{"$error":"#NAME?"}},{"$f":"(_xll.RiskData(NR_to_Cash!D$18,$A2575))/1000","v":{"$error":"#NAME?"}},{"$f":"(_xll.RiskData(NR_to_Cash!E$18,$A2575))/1000","v":{"$error":"#NAME?"}}]
[2569,{"$f":"_xll.RiskData('Risk Summary'!J$48,$A2576)/1000","v":{"$error":"#NAME?"}},{"$f":"_xll.RiskData('Risk Summary'!K$48,$A2576)/1000","v":{"$error":"#NAME?"}},{"$f":"_xll.RiskData('Risk Summary'!L$48,$A2576)/1000","v":{"$error":"#NAME?"}},null,null,{"$f":"(_xll.RiskData(NR_to_Cash!C$18,$A2576))/1000","v":{"$error":"#NAME?"}},{"$f":"(_xll.RiskData(NR_to_Cash!D$18,$A2576))/1000","v":{"$error":"#NAME?"}},{"$f":"(_xll.RiskData(NR_to_Cash!E$18,$A2576))/1000","v":{"$error":"#NAME?"}}]
[2570,{"$f":"_xll.RiskData('Risk Summary'!J$48,$A2577)/1000","v":{"$error":"#NAME?"}},{"$f":"_xll.RiskData('Risk Summary'!K$48,$A2577)/1000","v":{"$error":"#NAME?"}},{"$f":"_xll.RiskData('Risk Summary'!L$48,$A2577)/1000","v":{"$error":"#NAME?"}},null,null,{"$f":"(_xll.RiskData(NR_to_Cash!C$18,$A2577))/1000","v":{"$error":"#NAME?"}},{"$f":"(_xll.RiskData(NR_to_Cash!D$18,$A2577))/1000","v":{"$error":"#NAME?"}},{"$f":"(_xll.RiskData(NR_to_Cash!E$18,$A2577))/1000","v":{"$error":"#NAME?"}}]
[2571,{"$f":"_xll.RiskData('Risk Summary'!J$48,$A2578)/1000","v":{"$error":"#NAME?"}},{"$f":"_xll.RiskData('Risk Summary'!K$48,$A2578)/1000","v":{"$error":"#NAME?"}},{"$f":"_xll.RiskData('Risk Summary'!L$48,$A2578)/1000","v":{"$error":"#NAME?"}},null,null,{"$f":"(_xll.RiskData(NR_to_Cash!C$18,$A2578))/1000","v":{"$error":"#NAME?"}},{"$f":"(_xll.RiskData(NR_to_Cash!D$18,$A2578))/1000","v":{"$error":"#NAME?"}},{"$f":"(_xll.RiskData(NR_to_Cash!E$18,$A2578))/1000","v":{"$error":"#NAME?"}}]
[2572,{"$f":"_xll.RiskData('Risk Summary'!J$48,$A2579)/1000","v":{"$error":"#NAME?"}},{"$f":"_xll.RiskData('Risk Summary'!K$48,$A2579)/1000","v":{"$error":"#NAME?"}},{"$f":"_xll.RiskData('Risk Summary'!L$48,$A2579)/1000","v":{"$error":"#NAME?"}},null,null,{"$f":"(_xll.RiskData(NR_to_Cash!C$18,$A2579))/1000","v":{"$error":"#NAME?"}},{"$f":"(_xll.RiskData(NR_to_Cash!D$18,$A2579))/1000","v":{"$error":"#NAME?"}},{"$f":"(_xll.RiskData(NR_to_Cash!E$18,$A2579))/1000","v":{"$error":"#NAME?"}}]
[2573,{"$f":"_xll.RiskData('Risk Summary'!J$48,$A2580)/1000","v":{"$error":"#NAME?"}},{"$f":"_xll.RiskData('Risk Summary'!K$48,$A2580)/1000","v":{"$error":"#NAME?"}},{"$f":"_xll.RiskData('Risk Summary'!L$48,$A2580)/1000","v":{"$error":"#NAME?"}},null,null,{"$f":"(_xll.RiskData(NR_to_Cash!C$18,$A2580))/1000","v":{"$error":"#NAME?"}},{"$f":"(_xll.RiskData(NR_to_Cash!D$18,$A2580))/1000","v":{"$error":"#NAME?"}},{"$f":"(_xll.RiskData(NR_to_Cash!E$18,$A2580))/1000","v":{"$error":"#NAME?"}}]
[2574,{"$f":"_xll.RiskData('Risk Summary'!J$48,$A2581)/1000","v":{"$error":"#NAME?"}},{"$f":"_xll.RiskData('Risk Summary'!K$48,$A2581)/1000","v":{"$error":"#NAME?"}},{"$f":"_xll.RiskData('Risk Summary'!L$48,$A2581)/1000","v":{"$error":"#NAME?"}},null,null,{"$f":"(_xll.RiskData(NR_to_Cash!C$18,$A2581))/1000","v":{"$error":"#NAME?"}},{"$f":"(_xll.RiskData(NR_to_Cash!D$18,$A2581))/1000","v":{"$error":"#NAME?"}},{"$f":"(_xll.RiskData(NR_to_Cash!E$18,$A2581))/1000","v":{"$error":"#NAME?"}}]
[2575,{"$f":"_xll.RiskData('Risk Summary'!J$48,$A2582)/1000","v":{"$error":"#NAME?"}},{"$f":"_xll.RiskData('Risk Summary'!K$48,$A2582)/1000","v":{"$error":"#NAME?"}},{"$f":"_xll.RiskData('Risk Summary'!L$48,$A2582)/1000","v":{"$error":"#NAME?"}},null,null,{"$f":"(_xll.RiskData(NR_to_Cash!C$18,$A2582))/1000","v":{"$error":"#NAME?"}},{"$f":"(_xll.RiskData(NR_to_Cash!D$18,$A2582))/1000","v":{"$error":"#NAME?"}},{"$f":"(_xll.RiskData(NR_to_Cash!E$18,$A2582))/1000","v":{"$error":"#NAME?"}}]
[2576,{"$f":"_xll.RiskData('Risk Summary'!J$48,$A2583)/1000","v":{"$error":"#NAME?"}},{"$f":"_xll.RiskData('Risk Summary'!K$48,$A2583)/1000","v":{"$error":"#NAME?"}},{"$f":"_xll.RiskData('Risk Summary'!L$48,$A2583)/1000","v":{"$error":"#NAME?"}},null,null,{"$f":"(_xll.RiskData(NR_to_Cash!C$18,$A2583))/1000","v":{"$error":"#NAME?"}},{"$f":"(_xll.RiskData(NR_to_Cash!D$18,$A2583))/1000","v":{"$error":"#NAME?"}},{"$f":"(_xll.RiskData(NR_to_Cash!E$18,$A2583))/1000","v":{"$error":"#NAME?"}}]
[2577,{"$f":"_xll.RiskData('Risk Summary'!J$48,$A2584)/1000","v":{"$error":"#NAME?"}},{"$f":"_xll.RiskData('Risk Summary'!K$48,$A2584)/1000","v":{"$error":"#NAME?"}},{"$f":"_xll.RiskData('Risk Summary'!L$48,$A2584)/1000","v":{"$error":"#NAME?"}},null,null,{"$f":"(_xll.RiskData(NR_to_Cash!C$18,$A2584))/1000","v":{"$error":"#NAME?"}},{"$f":"(_xll.RiskData(NR_to_Cash!D$18,$A2584))/1000","v":{"$error":"#NAME?"}},{"$f":"(_xll.RiskData(NR_to_Cash!E$18,$A2584))/1000","v":{"$error":"#NAME?"}}]
[2578,{"$f":"_xll.RiskData('Risk Summary'!J$48,$A2585)/1000","v":{"$error":"#NAME?"}},{"$f":"_xll.RiskData('Risk Summary'!K$48,$A2585)/1000","v":{"$error":"#NAME?"}},{"$f":"_xll.RiskData('Risk Summary'!L$48,$A2585)/1000","v":{"$error":"#NAME?"}},null,null,{"$f":"(_xll.RiskData(NR_to_Cash!C$18,$A2585))/1000","v":{"$error":"#NAME?"}},{"$f":"(_xll.RiskData(NR_to_Cash!D$18,$A2585))/1000","v":{"$error":"#NAME?"}},{"$f":"(_xll.RiskData(NR_to_Cash!E$18,$A2585))/1000","v":{"$error":"#NAME?"}}]
[2579,{"$f":"_xll.RiskData('Risk Summary'!J$48,$A2586)/1000","v":{"$error":"#NAME?"}},{"$f":"_xll.RiskData('Risk Summary'!K$48,$A2586)/1000","v":{"$error":"#NAME?"}},{"$f":"_xll.RiskData('Risk Summary'!L$48,$A2586)/1000","v":{"$error":"#NAME?"}},null,null,{"$f":"(_xll.RiskData(NR_to_Cash!C$18,$A2586))/1000","v":{"$error":"#NAME?"}},{"$f":"(_xll.RiskData(NR_to_Cash!D$18,$A2586))/1000","v":{"$error":"#NAME?"}},{"$f":"(_xll.RiskData(NR_to_Cash!E$18,$A2586))/1000","v":{"$error":"#NAME?"}}]
[2580,{"$f":"_xll.RiskData('Risk Summary'!J$48,$A2587)/1000","v":{"$error":"#NAME?"}},{"$f":"_xll.RiskData('Risk Summary'!K$48,$A2587)/1000","v":{"$error":"#NAME?"}},{"$f":"_xll.RiskData('Risk Summary'!L$48,$A2587)/1000","v":{"$error":"#NAME?"}},null,null,{"$f":"(_xll.RiskData(NR_to_Cash!C$18,$A2587))/1000","v":{"$error":"#NAME?"}},{"$f":"(_xll.RiskData(NR_to_Cash!D$18,$A2587))/1000","v":{"$error":"#NAME?"}},{"$f":"(_xll.RiskData(NR_to_Cash!E$18,$A2587))/1000","v":{"$error":"#NAME?"}}]
[2581,{"$f":"_xll.RiskData('Risk Summary'!J$48,$A2588)/1000","v":{"$error":"#NAME?"}},{"$f":"_xll.RiskData('Risk Summary'!K$48,$A2588)/1000","v":{"$error":"#NAME?"}},{"$f":"_xll.RiskData('Risk Summary'!L$48,$A2588)/1000","v":{"$error":"#NAME?"}},null,null,{"$f":"(_xll.RiskData(NR_to_Cash!C$18,$A2588))/1000","v":{"$error":"#NAME?"}},{"$f":"(_xll.RiskData(NR_to_Cash!D$18,$A2588))/1000","v":{"$error":"#NAME?"}},{"$f":"(_xll.RiskData(NR_to_Cash!E$18,$A2588))/1000","v":{"$error":"#NAME?"}}]
[2582,{"$f":"_xll.RiskData('Risk Summary'!J$48,$A2589)/1000","v":{"$error":"#NAME?"}},{"$f":"_xll.RiskData('Risk Summary'!K$48,$A2589)/1000","v":{"$error":"#NAME?"}},{"$f":"_xll.RiskData('Risk Summary'!L$48,$A2589)/1000","v":{"$error":"#NAME?"}},null,null,{"$f":"(_xll.RiskData(NR_to_Cash!C$18,$A2589))/1000","v":{"$error":"#NAME?"}},{"$f":"(_xll.RiskData(NR_to_Cash!D$18,$A2589))/1000","v":{"$error":"#NAME?"}},{"$f":"(_xll.RiskData(NR_to_Cash!E$18,$A2589))/1000","v":{"$error":"#NAME?"}}]
[2583,{"$f":"_xll.RiskData('Risk Summary'!J$48,$A2590)/1000","v":{"$error":"#NAME?"}},{"$f":"_xll.RiskData('Risk Summary'!K$48,$A2590)/1000","v":{"$error":"#NAME?"}},{"$f":"_xll.RiskData('Risk Summary'!L$48,$A2590)/1000","v":{"$error":"#NAME?"}},null,null,{"$f":"(_xll.RiskData(NR_to_Cash!C$18,$A2590))/1000","v":{"$error":"#NAME?"}},{"$f":"(_xll.RiskData(NR_to_Cash!D$18,$A2590))/1000","v":{"$error":"#NAME?"}},{"$f":"(_xll.RiskData(NR_to_Cash!E$18,$A2590))/1000","v":{"$error":"#NAME?"}}]
[2584,{"$f":"_xll.RiskData('Risk Summary'!J$48,$A2591)/1000","v":{"$error":"#NAME?"}},{"$f":"_xll.RiskData('Risk Summary'!K$48,$A2591)/1000","v":{"$error":"#NAME?"}},{"$f":"_xll.RiskData('Risk Summary'!L$48,$A2591)/1000","v":{"$error":"#NAME?"}},null,null,{"$f":"(_xll.RiskData(NR_to_Cash!C$18,$A2591))/1000","v":{"$error":"#NAME?"}},{"$f":"(_xll.RiskData(NR_to_Cash!D$18,$A2591))/1000","v":{"$error":"#NAME?"}},{"$f":"(_xll.RiskData(NR_to_Cash!E$18,$A2591))/1000","v":{"$error":"#NAME?"}}]
[2585,{"$f":"_xll.RiskData('Risk Summary'!J$48,$A2592)/1000","v":{"$error":"#NAME?"}},{"$f":"_xll.RiskData('Risk Summary'!K$48,$A2592)/1000","v":{"$error":"#NAME?"}},{"$f":"_xll.RiskData('Risk Summary'!L$48,$A2592)/1000","v":{"$error":"#NAME?"}},null,null,{"$f":"(_xll.RiskData(NR_to_Cash!C$18,$A2592))/1000","v":{"$error":"#NAME?"}},{"$f":"(_xll.RiskData(NR_to_Cash!D$18,$A2592))/1000","v":{"$error":"#NAME?"}},{"$f":"(_xll.RiskData(NR_to_Cash!E$18,$A2592))/1000","v":{"$error":"#NAME?"}}]
[2586,{"$f":"_xll.RiskData('Risk Summary'!J$48,$A2593)/1000","v":{"$error":"#NAME?"}},{"$f":"_xll.RiskData('Risk Summary'!K$48,$A2593)/1000","v":{"$error":"#NAME?"}},{"$f":"_xll.RiskData('Risk Summary'!L$48,$A2593)/1000","v":{"$error":"#NAME?"}},null,null,{"$f":"(_xll.RiskData(NR_to_Cash!C$18,$A2593))/1000","v":{"$error":"#NAME?"}},{"$f":"(_xll.RiskData(NR_to_Cash!D$18,$A2593))/1000","v":{"$error":"#NAME?"}},{"$f":"(_xll.RiskData(NR_to_Cash!E$18,$A2593))/1000","v":{"$error":"#NAME?"}}]
[2587,{"$f":"_xll.RiskData('Risk Summary'!J$48,$A2594)/1000","v":{"$error":"#NAME?"}},{"$f":"_xll.RiskData('Risk Summary'!K$48,$A2594)/1000","v":{"$error":"#NAME?"}},{"$f":"_xll.RiskData('Risk Summary'!L$48,$A2594)/1000","v":{"$error":"#NAME?"}},null,null,{"$f":"(_xll.RiskData(NR_to_Cash!C$18,$A2594))/1000","v":{"$error":"#NAME?"}},{"$f":"(_xll.RiskData(NR_to_Cash!D$18,$A2594))/1000","v":{"$error":"#NAME?"}},{"$f":"(_xll.RiskData(NR_to_Cash!E$18,$A2594))/1000","v":{"$error":"#NAME?"}}]
[2588,{"$f":"_xll.RiskData('Risk Summary'!J$48,$A2595)/1000","v":{"$error":"#NAME?"}},{"$f":"_xll.RiskData('Risk Summary'!K$48,$A2595)/1000","v":{"$error":"#NAME?"}},{"$f":"_xll.RiskData('Risk Summary'!L$48,$A2595)/1000","v":{"$error":"#NAME?"}},null,null,{"$f":"(_xll.RiskData(NR_to_Cash!C$18,$A2595))/1000","v":{"$error":"#NAME?"}},{"$f":"(_xll.RiskData(NR_to_Cash!D$18,$A2595))/1000","v":{"$error":"#NAME?"}},{"$f":"(_xll.RiskData(NR_to_Cash!E$18,$A2595))/1000","v":{"$error":"#NAME?"}}]
[2589,{"$f":"_xll.RiskData('Risk Summary'!J$48,$A2596)/1000","v":{"$error":"#NAME?"}},{"$f":"_xll.RiskData('Risk Summary'!K$48,$A2596)/1000","v":{"$error":"#NAME?"}},{"$f":"_xll.RiskData('Risk Summary'!L$48,$A2596)/1000","v":{"$error":"#NAME?"}},null,null,{"$f":"(_xll.RiskData(NR_to_Cash!C$18,$A2596))/1000","v":{"$error":"#NAME?"}},{"$f":"(_xll.RiskData(NR_to_Cash!D$18,$A2596))/1000","v":{"$error":"#NAME?"}},{"$f":"(_xll.RiskData(NR_to_Cash!E$18,$A2596))/1000","v":{"$error":"#NAME?"}}]
[2590,{"$f":"_xll.RiskData('Risk Summary'!J$48,$A2597)/1000","v":{"$error":"#NAME?"}},{"$f":"_xll.RiskData('Risk Summary'!K$48,$A2597)/1000","v":{"$error":"#NAME?"}},{"$f":"_xll.RiskData('Risk Summary'!L$48,$A2597)/1000","v":{"$error":"#NAME?"}},null,null,{"$f":"(_xll.RiskData(NR_to_Cash!C$18,$A2597))/1000","v":{"$error":"#NAME?"}},{"$f":"(_xll.RiskData(NR_to_Cash!D$18,$A2597))/1000","v":{"$error":"#NAME?"}},{"$f":"(_xll.RiskData(NR_to_Cash!E$18,$A2597))/1000","v":{"$error":"#NAME?"}}]
[2591,{"$f":"_xll.RiskData('Risk Summary'!J$48,$A2598)/1000","v":{"$error":"#NAME?"}},{"$f":"_xll.RiskData('Risk Summary'!K$48,$A2598)/1000","v":{"$error":"#NAME?"}},{"$f":"_xll.RiskData('Risk Summary'!L$48,$A2598)/1000","v":{"$error":"#NAME?"}},null,null,{"$f":"(_xll.RiskData(NR_to_Cash!C$18,$A2598))/1000","v":{"$error":"#NAME?"}},{"$f":"(_xll.RiskData(NR_to_Cash!D$18,$A2598))/1000","v":{"$error":"#NAME?"}},{"$f":"(_xll.RiskData(NR_to_Cash!E$18,$A2598))/1000","v":{"$error":"#NAME?"}}]
[2592,{"$f":"_xll.RiskData('Risk Summary'!J$48,$A2599)/1000","v":{"$error":"#NAME?"}},{"$f":"_xll.RiskData('Risk Summary'!K$48,$A2599)/1000","v":{"$error":"#NAME?"}},{"$f":"_xll.RiskData('Risk Summary'!L$48,$A2599)/1000","v":{"$error":"#NAME?"}},null,null,{"$f":"(_xll.RiskData(NR_to_Cash!C$18,$A2599))/1000","v":{"$error":"#NAME?"}},{"$f":"(_xll.RiskData(NR_to_Cash!D$18,$A2599))/1000","v":{"$error":"#NAME?"}},{"$f":"(_xll.RiskData(NR_to_Cash!E$18,$A2599))/1000","v":{"$error":"#NAME?"}}]
[2593,{"$f":"_xll.RiskData('Risk Summary'!J$48,$A2600)/1000","v":{"$error":"#NAME?"}},{"$f":"_xll.RiskData('Risk Summary'!K$48,$A2600)/1000","v":{"$error":"#NAME?"}},{"$f":"_xll.RiskData('Risk Summary'!L$48,$A2600)/1000","v":{"$error":"#NAME?"}},null,null,{"$f":"(_xll.RiskData(NR_to_Cash!C$18,$A2600))/1000","v":{"$error":"#NAME?"}},{"$f":"(_xll.RiskData(NR_to_Cash!D$18,$A2600))/1000","v":{"$error":"#NAME?"}},{"$f":"(_xll.RiskData(NR_to_Cash!E$18,$A2600))/1000","v":{"$error":"#NAME?"}}]
[2594,{"$f":"_xll.RiskData('Risk Summary'!J$48,$A2601)/1000","v":{"$error":"#NAME?"}},{"$f":"_xll.RiskData('Risk Summary'!K$48,$A2601)/1000","v":{"$error":"#NAME?"}},{"$f":"_xll.RiskData('Risk Summary'!L$48,$A2601)/1000","v":{"$error":"#NAME?"}},null,null,{"$f":"(_xll.RiskData(NR_to_Cash!C$18,$A2601))/1000","v":{"$error":"#NAME?"}},{"$f":"(_xll.RiskData(NR_to_Cash!D$18,$A2601))/1000","v":{"$error":"#NAME?"}},{"$f":"(_xll.RiskData(NR_to_Cash!E$18,$A2601))/1000","v":{"$error":"#NAME?"}}]
[2595,{"$f":"_xll.RiskData('Risk Summary'!J$48,$A2602)/1000","v":{"$error":"#NAME?"}},{"$f":"_xll.RiskData('Risk Summary'!K$48,$A2602)/1000","v":{"$error":"#NAME?"}},{"$f":"_xll.RiskData('Risk Summary'!L$48,$A2602)/1000","v":{"$error":"#NAME?"}},null,null,{"$f":"(_xll.RiskData(NR_to_Cash!C$18,$A2602))/1000","v":{"$error":"#NAME?"}},{"$f":"(_xll.RiskData(NR_to_Cash!D$18,$A2602))/1000","v":{"$error":"#NAME?"}},{"$f":"(_xll.RiskData(NR_to_Cash!E$18,$A2602))/1000","v":{"$error":"#NAME?"}}]
[2596,{"$f":"_xll.RiskData('Risk Summary'!J$48,$A2603)/1000","v":{"$error":"#NAME?"}},{"$f":"_xll.RiskData('Risk Summary'!K$48,$A2603)/1000","v":{"$error":"#NAME?"}},{"$f":"_xll.RiskData('Risk Summary'!L$48,$A2603)/1000","v":{"$error":"#NAME?"}},null,null,{"$f":"(_xll.RiskData(NR_to_Cash!C$18,$A2603))/1000","v":{"$error":"#NAME?"}},{"$f":"(_xll.RiskData(NR_to_Cash!D$18,$A2603))/1000","v":{"$error":"#NAME?"}},{"$f":"(_xll.RiskData(NR_to_Cash!E$18,$A2603))/1000","v":{"$error":"#NAME?"}}]
[2597,{"$f":"_xll.RiskData('Risk Summary'!J$48,$A2604)/1000","v":{"$error":"#NAME?"}},{"$f":"_xll.RiskData('Risk Summary'!K$48,$A2604)/1000","v":{"$error":"#NAME?"}},{"$f":"_xll.RiskData('Risk Summary'!L$48,$A2604)/1000","v":{"$error":"#NAME?"}},null,null,{"$f":"(_xll.RiskData(NR_to_Cash!C$18,$A2604))/1000","v":{"$error":"#NAME?"}},{"$f":"(_xll.RiskData(NR_to_Cash!D$18,$A2604))/1000","v":{"$error":"#NAME?"}},{"$f":"(_xll.RiskData(NR_to_Cash!E$18,$A2604))/1000","v":{"$error":"#NAME?"}}]
[2598,{"$f":"_xll.RiskData('Risk Summary'!J$48,$A2605)/1000","v":{"$error":"#NAME?"}},{"$f":"_xll.RiskData('Risk Summary'!K$48,$A2605)/1000","v":{"$error":"#NAME?"}},{"$f":"_xll.RiskData('Risk Summary'!L$48,$A2605)/1000","v":{"$error":"#NAME?"}},null,null,{"$f":"(_xll.RiskData(NR_to_Cash!C$18,$A2605))/1000","v":{"$error":"#NAME?"}},{"$f":"(_xll.RiskData(NR_to_Cash!D$18,$A2605))/1000","v":{"$error":"#NAME?"}},{"$f":"(_xll.RiskData(NR_to_Cash!E$18,$A2605))/1000","v":{"$error":"#NAME?"}}]
[2599,{"$f":"_xll.RiskData('Risk Summary'!J$48,$A2606)/1000","v":{"$error":"#NAME?"}},{"$f":"_xll.RiskData('Risk Summary'!K$48,$A2606)/1000","v":{"$error":"#NAME?"}},{"$f":"_xll.RiskData('Risk Summary'!L$48,$A2606)/1000","v":{"$error":"#NAME?"}},null,null,{"$f":"(_xll.RiskData(NR_to_Cash!C$18,$A2606))/1000","v":{"$error":"#NAME?"}},{"$f":"(_xll.RiskData(NR_to_Cash!D$18,$A2606))/1000","v":{"$error":"#NAME?"}},{"$f":"(_xll.RiskData(NR_to_Cash!E$18,$A2606))/1000","v":{"$error":"#NAME?"}}]
[2600,{"$f":"_xll.RiskData('Risk Summary'!J$48,$A2607)/1000","v":{"$error":"#NAME?"}},{"$f":"_xll.RiskData('Risk Summary'!K$48,$A2607)/1000","v":{"$error":"#NAME?"}},{"$f":"_xll.RiskData('Risk Summary'!L$48,$A2607)/1000","v":{"$error":"#NAME?"}},null,null,{"$f":"(_xll.RiskData(NR_to_Cash!C$18,$A2607))/1000","v":{"$error":"#NAME?"}},{"$f":"(_xll.RiskData(NR_to_Cash!D$18,$A2607))/1000","v":{"$error":"#NAME?"}},{"$f":"(_xll.RiskData(NR_to_Cash!E$18,$A2607))/1000","v":{"$error":"#NAME?"}}]
[2601,{"$f":"_xll.RiskData('Risk Summary'!J$48,$A2608)/1000","v":{"$error":"#NAME?"}},{"$f":"_xll.RiskData('Risk Summary'!K$48,$A2608)/1000","v":{"$error":"#NAME?"}},{"$f":"_xll.RiskData('Risk Summary'!L$48,$A2608)/1000","v":{"$error":"#NAME?"}},null,null,{"$f":"(_xll.RiskData(NR_to_Cash!C$18,$A2608))/1000","v":{"$error":"#NAME?"}},{"$f":"(_xll.RiskData(NR_to_Cash!D$18,$A2608))/1000","v":{"$error":"#NAME?"}},{"$f":"(_xll.RiskData(NR_to_Cash!E$18,$A2608))/1000","v":{"$error":"#NAME?"}}]
[2602,{"$f":"_xll.RiskData('Risk Summary'!J$48,$A2609)/1000","v":{"$error":"#NAME?"}},{"$f":"_xll.RiskData('Risk Summary'!K$48,$A2609)/1000","v":{"$error":"#NAME?"}},{"$f":"_xll.RiskData('Risk Summary'!L$48,$A2609)/1000","v":{"$error":"#NAME?"}},null,null,{"$f":"(_xll.RiskData(NR_to_Cash!C$18,$A2609))/1000","v":{"$error":"#NAME?"}},{"$f":"(_xll.RiskData(NR_to_Cash!D$18,$A2609))/1000","v":{"$error":"#NAME?"}},{"$f":"(_xll.RiskData(NR_to_Cash!E$18,$A2609))/1000","v":{"$error":"#NAME?"}}]
[2603,{"$f":"_xll.RiskData('Risk Summary'!J$48,$A2610)/1000","v":{"$error":"#NAME?"}},{"$f":"_xll.RiskData('Risk Summary'!K$48,$A2610)/1000","v":{"$error":"#NAME?"}},{"$f":"_xll.RiskData('Risk Summary'!L$48,$A2610)/1000","v":{"$error":"#NAME?"}},null,null,{"$f":"(_xll.RiskData(NR_to_Cash!C$18,$A2610))/1000","v":{"$error":"#NAME?"}},{"$f":"(_xll.RiskData(NR_to_Cash!D$18,$A2610))/1000","v":{"$error":"#NAME?"}},{"$f":"(_xll.RiskData(NR_to_Cash!E$18,$A2610))/1000","v":{"$error":"#NAME?"}}]
[2604,{"$f":"_xll.RiskData('Risk Summary'!J$48,$A2611)/1000","v":{"$error":"#NAME?"}},{"$f":"_xll.RiskData('Risk Summary'!K$48,$A2611)/1000","v":{"$error":"#NAME?"}},{"$f":"_xll.RiskData('Risk Summary'!L$48,$A2611)/1000","v":{"$error":"#NAME?"}},null,null,{"$f":"(_xll.RiskData(NR_to_Cash!C$18,$A2611))/1000","v":{"$error":"#NAME?"}},{"$f":"(_xll.RiskData(NR_to_Cash!D$18,$A2611))/1000","v":{"$error":"#NAME?"}},{"$f":"(_xll.RiskData(NR_to_Cash!E$18,$A2611))/1000","v":{"$error":"#NAME?"}}]
[2605,{"$f":"_xll.RiskData('Risk Summary'!J$48,$A2612)/1000","v":{"$error":"#NAME?"}},{"$f":"_xll.RiskData('Risk Summary'!K$48,$A2612)/1000","v":{"$error":"#NAME?"}},{"$f":"_xll.RiskData('Risk Summary'!L$48,$A2612)/1000","v":{"$error":"#NAME?"}},null,null,{"$f":"(_xll.RiskData(NR_to_Cash!C$18,$A2612))/1000","v":{"$error":"#NAME?"}},{"$f":"(_xll.RiskData(NR_to_Cash!D$18,$A2612))/1000","v":{"$error":"#NAME?"}},{"$f":"(_xll.RiskData(NR_to_Cash!E$18,$A2612))/1000","v":{"$error":"#NAME?"}}]
[2606,{"$f":"_xll.RiskData('Risk Summary'!J$48,$A2613)/1000","v":{"$error":"#NAME?"}},{"$f":"_xll.RiskData('Risk Summary'!K$48,$A2613)/1000","v":{"$error":"#NAME?"}},{"$f":"_xll.RiskData('Risk Summary'!L$48,$A2613)/1000","v":{"$error":"#NAME?"}},null,null,{"$f":"(_xll.RiskData(NR_to_Cash!C$18,$A2613))/1000","v":{"$error":"#NAME?"}},{"$f":"(_xll.RiskData(NR_to_Cash!D$18,$A2613))/1000","v":{"$error":"#NAME?"}},{"$f":"(_xll.RiskData(NR_to_Cash!E$18,$A2613))/1000","v":{"$error":"#NAME?"}}]
[2607,{"$f":"_xll.RiskData('Risk Summary'!J$48,$A2614)/1000","v":{"$error":"#NAME?"}},{"$f":"_xll.RiskData('Risk Summary'!K$48,$A2614)/1000","v":{"$error":"#NAME?"}},{"$f":"_xll.RiskData('Risk Summary'!L$48,$A2614)/1000","v":{"$error":"#NAME?"}},null,null,{"$f":"(_xll.RiskData(NR_to_Cash!C$18,$A2614))/1000","v":{"$error":"#NAME?"}},{"$f":"(_xll.RiskData(NR_to_Cash!D$18,$A2614))/1000","v":{"$error":"#NAME?"}},{"$f":"(_xll.RiskData(NR_to_Cash!E$18,$A2614))/1000","v":{"$error":"#NAME?"}}]
[2608,{"$f":"_xll.RiskData('Risk Summary'!J$48,$A2615)/1000","v":{"$error":"#NAME?"}},{"$f":"_xll.RiskData('Risk Summary'!K$48,$A2615)/1000","v":{"$error":"#NAME?"}},{"$f":"_xll.RiskData('Risk Summary'!L$48,$A2615)/1000","v":{"$error":"#NAME?"}},null,null,{"$f":"(_xll.RiskData(NR_to_Cash!C$18,$A2615))/1000","v":{"$error":"#NAME?"}},{"$f":"(_xll.RiskData(NR_to_Cash!D$18,$A2615))/1000","v":{"$error":"#NAME?"}},{"$f":"(_xll.RiskData(NR_to_Cash!E$18,$A2615))/1000","v":{"$error":"#NAME?"}}]
[2609,{"$f":"_xll.RiskData('Risk Summary'!J$48,$A2616)/1000","v":{"$error":"#NAME?"}},{"$f":"_xll.RiskData('Risk Summary'!K$48,$A2616)/1000","v":{"$error":"#NAME?"}},{"$f":"_xll.RiskData('Risk Summary'!L$48,$A2616)/1000","v":{"$error":"#NAME?"}},null,null,{"$f":"(_xll.RiskData(NR_to_Cash!C$18,$A2616))/1000","v":{"$error":"#NAME?"}},{"$f":"(_xll.RiskData(NR_to_Cash!D$18,$A2616))/1000","v":{"$error":"#NAME?"}},{"$f":"(_xll.RiskData(NR_to_Cash!E$18,$A2616))/1000","v":{"$error":"#NAME?"}}]
[2610,{"$f":"_xll.RiskData('Risk Summary'!J$48,$A2617)/1000","v":{"$error":"#NAME?"}},{"$f":"_xll.RiskData('Risk Summary'!K$48,$A2617)/1000","v":{"$error":"#NAME?"}},{"$f":"_xll.RiskData('Risk Summary'!L$48,$A2617)/1000","v":{"$error":"#NAME?"}},null,null,{"$f":"(_xll.RiskData(NR_to_Cash!C$18,$A2617))/1000","v":{"$error":"#NAME?"}},{"$f":"(_xll.RiskData(NR_to_Cash!D$18,$A2617))/1000","v":{"$error":"#NAME?"}},{"$f":"(_xll.RiskData(NR_to_Cash!E$18,$A2617))/1000","v":{"$error":"#NAME?"}}]
[2611,{"$f":"_xll.RiskData('Risk Summary'!J$48,$A2618)/1000","v":{"$error":"#NAME?"}},{"$f":"_xll.RiskData('Risk Summary'!K$48,$A2618)/1000","v":{"$error":"#NAME?"}},{"$f":"_xll.RiskData('Risk Summary'!L$48,$A2618)/1000","v":{"$error":"#NAME?"}},null,null,{"$f":"(_xll.RiskData(NR_to_Cash!C$18,$A2618))/1000","v":{"$error":"#NAME?"}},{"$f":"(_xll.RiskData(NR_to_Cash!D$18,$A2618))/1000","v":{"$error":"#NAME?"}},{"$f":"(_xll.RiskData(NR_to_Cash!E$18,$A2618))/1000","v":{"$error":"#NAME?"}}]
[2612,{"$f":"_xll.RiskData('Risk Summary'!J$48,$A2619)/1000","v":{"$error":"#NAME?"}},{"$f":"_xll.RiskData('Risk Summary'!K$48,$A2619)/1000","v":{"$error":"#NAME?"}},{"$f":"_xll.RiskData('Risk Summary'!L$48,$A2619)/1000","v":{"$error":"#NAME?"}},null,null,{"$f":"(_xll.RiskData(NR_to_Cash!C$18,$A2619))/1000","v":{"$error":"#NAME?"}},{"$f":"(_xll.RiskData(NR_to_Cash!D$18,$A2619))/1000","v":{"$error":"#NAME?"}},{"$f":"(_xll.RiskData(NR_to_Cash!E$18,$A2619))/1000","v":{"$error":"#NAME?"}}]
[2613,{"$f":"_xll.RiskData('Risk Summary'!J$48,$A2620)/1000","v":{"$error":"#NAME?"}},{"$f":"_xll.RiskData('Risk Summary'!K$48,$A2620)/1000","v":{"$error":"#NAME?"}},{"$f":"_xll.RiskData('Risk Summary'!L$48,$A2620)/1000","v":{"$error":"#NAME?"}},null,null,{"$f":"(_xll.RiskData(NR_to_Cash!C$18,$A2620))/1000","v":{"$error":"#NAME?"}},{"$f":"(_xll.RiskData(NR_to_Cash!D$18,$A2620))/1000","v":{"$error":"#NAME?"}},{"$f":"(_xll.RiskData(NR_to_Cash!E$18,$A2620))/1000","v":{"$error":"#NAME?"}}]
[2614,{"$f":"_xll.RiskData('Risk Summary'!J$48,$A2621)/1000","v":{"$error":"#NAME?"}},{"$f":"_xll.RiskData('Risk Summary'!K$48,$A2621)/1000","v":{"$error":"#NAME?"}},{"$f":"_xll.RiskData('Risk Summary'!L$48,$A2621)/1000","v":{"$error":"#NAME?"}},null,null,{"$f":"(_xll.RiskData(NR_to_Cash!C$18,$A2621))/1000","v":{"$error":"#NAME?"}},{"$f":"(_xll.RiskData(NR_to_Cash!D$18,$A2621))/1000","v":{"$error":"#NAME?"}},{"$f":"(_xll.RiskData(NR_to_Cash!E$18,$A2621))/1000","v":{"$error":"#NAME?"}}]
[2615,{"$f":"_xll.RiskData('Risk Summary'!J$48,$A2622)/1000","v":{"$error":"#NAME?"}},{"$f":"_xll.RiskData('Risk Summary'!K$48,$A2622)/1000","v":{"$error":"#NAME?"}},{"$f":"_xll.RiskData('Risk Summary'!L$48,$A2622)/1000","v":{"$error":"#NAME?"}},null,null,{"$f":"(_xll.RiskData(NR_to_Cash!C$18,$A2622))/1000","v":{"$error":"#NAME?"}},{"$f":"(_xll.RiskData(NR_to_Cash!D$18,$A2622))/1000","v":{"$error":"#NAME?"}},{"$f":"(_xll.RiskData(NR_to_Cash!E$18,$A2622))/1000","v":{"$error":"#NAME?"}}]
[2616,{"$f":"_xll.RiskData('Risk Summary'!J$48,$A2623)/1000","v":{"$error":"#NAME?"}},{"$f":"_xll.RiskData('Risk Summary'!K$48,$A2623)/1000","v":{"$error":"#NAME?"}},{"$f":"_xll.RiskData('Risk Summary'!L$48,$A2623)/1000","v":{"$error":"#NAME?"}},null,null,{"$f":"(_xll.RiskData(NR_to_Cash!C$18,$A2623))/1000","v":{"$error":"#NAME?"}},{"$f":"(_xll.RiskData(NR_to_Cash!D$18,$A2623))/1000","v":{"$error":"#NAME?"}},{"$f":"(_xll.RiskData(NR_to_Cash!E$18,$A2623))/1000","v":{"$error":"#NAME?"}}]
[2617,{"$f":"_xll.RiskData('Risk Summary'!J$48,$A2624)/1000","v":{"$error":"#NAME?"}},{"$f":"_xll.RiskData('Risk Summary'!K$48,$A2624)/1000","v":{"$error":"#NAME?"}},{"$f":"_xll.RiskData('Risk Summary'!L$48,$A2624)/1000","v":{"$error":"#NAME?"}},null,null,{"$f":"(_xll.RiskData(NR_to_Cash!C$18,$A2624))/1000","v":{"$error":"#NAME?"}},{"$f":"(_xll.RiskData(NR_to_Cash!D$18,$A2624))/1000","v":{"$error":"#NAME?"}},{"$f":"(_xll.RiskData(NR_to_Cash!E$18,$A2624))/1000","v":{"$error":"#NAME?"}}]
[2618,{"$f":"_xll.RiskData('Risk Summary'!J$48,$A2625)/1000","v":{"$error":"#NAME?"}},{"$f":"_xll.RiskData('Risk Summary'!K$48,$A2625)/1000","v":{"$error":"#NAME?"}},{"$f":"_xll.RiskData('Risk Summary'!L$48,$A2625)/1000","v":{"$error":"#NAME?"}},null,null,{"$f":"(_xll.RiskData(NR_to_Cash!C$18,$A2625))/1000","v":{"$error":"#NAME?"}},{"$f":"(_xll.RiskData(NR_to_Cash!D$18,$A2625))/1000","v":{"$error":"#NAME?"}},{"$f":"(_xll.RiskData(NR_to_Cash!E$18,$A2625))/1000","v":{"$error":"#NAME?"}}]
[2619,{"$f":"_xll.RiskData('Risk Summary'!J$48,$A2626)/1000","v":{"$error":"#NAME?"}},{"$f":"_xll.RiskData('Risk Summary'!K$48,$A2626)/1000","v":{"$error":"#NAME?"}},{"$f":"_xll.RiskData('Risk Summary'!L$48,$A2626)/1000","v":{"$error":"#NAME?"}},null,null,{"$f":"(_xll.RiskData(NR_to_Cash!C$18,$A2626))/1000","v":{"$error":"#NAME?"}},{"$f":"(_xll.RiskData(NR_to_Cash!D$18,$A2626))/1000","v":{"$error":"#NAME?"}},{"$f":"(_xll.RiskData(NR_to_Cash!E$18,$A2626))/1000","v":{"$error":"#NAME?"}}]
[2620,{"$f":"_xll.RiskData('Risk Summary'!J$48,$A2627)/1000","v":{"$error":"#NAME?"}},{"$f":"_xll.RiskData('Risk Summary'!K$48,$A2627)/1000","v":{"$error":"#NAME?"}},{"$f":"_xll.RiskData('Risk Summary'!L$48,$A2627)/1000","v":{"$error":"#NAME?"}},null,null,{"$f":"(_xll.RiskData(NR_to_Cash!C$18,$A2627))/1000","v":{"$error":"#NAME?"}},{"$f":"(_xll.RiskData(NR_to_Cash!D$18,$A2627))/1000","v":{"$error":"#NAME?"}},{"$f":"(_xll.RiskData(NR_to_Cash!E$18,$A2627))/1000","v":{"$error":"#NAME?"}}]
[2621,{"$f":"_xll.RiskData('Risk Summary'!J$48,$A2628)/1000","v":{"$error":"#NAME?"}},{"$f":"_xll.RiskData('Risk Summary'!K$48,$A2628)/1000","v":{"$error":"#NAME?"}},{"$f":"_xll.RiskData('Risk Summary'!L$48,$A2628)/1000","v":{"$error":"#NAME?"}},null,null,{"$f":"(_xll.RiskData(NR_to_Cash!C$18,$A2628))/1000","v":{"$error":"#NAME?"}},{"$f":"(_xll.RiskData(NR_to_Cash!D$18,$A2628))/1000","v":{"$error":"#NAME?"}},{"$f":"(_xll.RiskData(NR_to_Cash!E$18,$A2628))/1000","v":{"$error":"#NAME?"}}]
[2622,{"$f":"_xll.RiskData('Risk Summary'!J$48,$A2629)/1000","v":{"$error":"#NAME?"}},{"$f":"_xll.RiskData('Risk Summary'!K$48,$A2629)/1000","v":{"$error":"#NAME?"}},{"$f":"_xll.RiskData('Risk Summary'!L$48,$A2629)/1000","v":{"$error":"#NAME?"}},null,null,{"$f":"(_xll.RiskData(NR_to_Cash!C$18,$A2629))/1000","v":{"$error":"#NAME?"}},{"$f":"(_xll.RiskData(NR_to_Cash!D$18,$A2629))/1000","v":{"$error":"#NAME?"}},{"$f":"(_xll.RiskData(NR_to_Cash!E$18,$A2629))/1000","v":{"$error":"#NAME?"}}]
[2623,{"$f":"_xll.RiskData('Risk Summary'!J$48,$A2630)/1000","v":{"$error":"#NAME?"}},{"$f":"_xll.RiskData('Risk Summary'!K$48,$A2630)/1000","v":{"$error":"#NAME?"}},{"$f":"_xll.RiskData('Risk Summary'!L$48,$A2630)/1000","v":{"$error":"#NAME?"}},null,null,{"$f":"(_xll.RiskData(NR_to_Cash!C$18,$A2630))/1000","v":{"$error":"#NAME?"}},{"$f":"(_xll.RiskData(NR_to_Cash!D$18,$A2630))/1000","v":{"$error":"#NAME?"}},{"$f":"(_xll.RiskData(NR_to_Cash!E$18,$A2630))/1000","v":{"$error":"#NAME?"}}]
[2624,{"$f":"_xll.RiskData('Risk Summary'!J$48,$A2631)/1000","v":{"$error":"#NAME?"}},{"$f":"_xll.RiskData('Risk Summary'!K$48,$A2631)/1000","v":{"$error":"#NAME?"}},{"$f":"_xll.RiskData('Risk Summary'!L$48,$A2631)/1000","v":{"$error":"#NAME?"}},null,null,{"$f":"(_xll.RiskData(NR_to_Cash!C$18,$A2631))/1000","v":{"$error":"#NAME?"}},{"$f":"(_xll.RiskData(NR_to_Cash!D$18,$A2631))/1000","v":{"$error":"#NAME?"}},{"$f":"(_xll.RiskData(NR_to_Cash!E$18,$A2631))/1000","v":{"$error":"#NAME?"}}]
[2625,{"$f":"_xll.RiskData('Risk Summary'!J$48,$A2632)/1000","v":{"$error":"#NAME?"}},{"$f":"_xll.RiskData('Risk Summary'!K$48,$A2632)/1000","v":{"$error":"#NAME?"}},{"$f":"_xll.RiskData('Risk Summary'!L$48,$A2632)/1000","v":{"$error":"#NAME?"}},null,null,{"$f":"(_xll.RiskData(NR_to_Cash!C$18,$A2632))/1000","v":{"$error":"#NAME?"}},{"$f":"(_xll.RiskData(NR_to_Cash!D$18,$A2632))/1000","v":{"$error":"#NAME?"}},{"$f":"(_xll.RiskData(NR_to_Cash!E$18,$A2632))/1000","v":{"$error":"#NAME?"}}]
[2626,{"$f":"_xll.RiskData('Risk Summary'!J$48,$A2633)/1000","v":{"$error":"#NAME?"}},{"$f":"_xll.RiskData('Risk Summary'!K$48,$A2633)/1000","v":{"$error":"#NAME?"}},{"$f":"_xll.RiskData('Risk Summary'!L$48,$A2633)/1000","v":{"$error":"#NAME?"}},null,null,{"$f":"(_xll.RiskData(NR_to_Cash!C$18,$A2633))/1000","v":{"$error":"#NAME?"}},{"$f":"(_xll.RiskData(NR_to_Cash!D$18,$A2633))/1000","v":{"$error":"#NAME?"}},{"$f":"(_xll.RiskData(NR_to_Cash!E$18,$A2633))/1000","v":{"$error":"#NAME?"}}]
[2627,{"$f":"_xll.RiskData('Risk Summary'!J$48,$A2634)/1000","v":{"$error":"#NAME?"}},{"$f":"_xll.RiskData('Risk Summary'!K$48,$A2634)/1000","v":{"$error":"#NAME?"}},{"$f":"_xll.RiskData('Risk Summary'!L$48,$A2634)/1000","v":{"$error":"#NAME?"}},null,null,{"$f":"(_xll.RiskData(NR_to_Cash!C$18,$A2634))/1000","v":{"$error":"#NAME?"}},{"$f":"(_xll.RiskData(NR_to_Cash!D$18,$A2634))/1000","v":{"$error":"#NAME?"}},{"$f":"(_xll.RiskData(NR_to_Cash!E$18,$A2634))/1000","v":{"$error":"#NAME?"}}]
[2628,{"$f":"_xll.RiskData('Risk Summary'!J$48,$A2635)/1000","v":{"$error":"#NAME?"}},{"$f":"_xll.RiskData('Risk Summary'!K$48,$A2635)/1000","v":{"$error":"#NAME?"}},{"$f":"_xll.RiskData('Risk Summary'!L$48,$A2635)/1000","v":{"$error":"#NAME?"}},null,null,{"$f":"(_xll.RiskData(NR_to_Cash!C$18,$A2635))/1000","v":{"$error":"#NAME?"}},{"$f":"(_xll.RiskData(NR_to_Cash!D$18,$A2635))/1000","v":{"$error":"#NAME?"}},{"$f":"(_xll.RiskData(NR_to_Cash!E$18,$A2635))/1000","v":{"$error":"#NAME?"}}]
[2629,{"$f":"_xll.RiskData('Risk Summary'!J$48,$A2636)/1000","v":{"$error":"#NAME?"}},{"$f":"_xll.RiskData('Risk Summary'!K$48,$A2636)/1000","v":{"$error":"#NAME?"}},{"$f":"_xll.RiskData('Risk Summary'!L$48,$A2636)/1000","v":{"$error":"#NAME?"}},null,null,{"$f":"(_xll.RiskData(NR_to_Cash!C$18,$A2636))/1000","v":{"$error":"#NAME?"}},{"$f":"(_xll.RiskData(NR_to_Cash!D$18,$A2636))/1000","v":{"$error":"#NAME?"}},{"$f":"(_xll.RiskData(NR_to_Cash!E$18,$A2636))/1000","v":{"$error":"#NAME?"}}]
[2630,{"$f":"_xll.RiskData('Risk Summary'!J$48,$A2637)/1000","v":{"$error":"#NAME?"}},{"$f":"_xll.RiskData('Risk Summary'!K$48,$A2637)/1000","v":{"$error":"#NAME?"}},{"$f":"_xll.RiskData('Risk Summary'!L$48,$A2637)/1000","v":{"$error":"#NAME?"}},null,null,{"$f":"(_xll.RiskData(NR_to_Cash!C$18,$A2637))/1000","v":{"$error":"#NAME?"}},{"$f":"(_xll.RiskData(NR_to_Cash!D$18,$A2637))/1000","v":{"$error":"#NAME?"}},{"$f":"(_xll.RiskData(NR_to_Cash!E$18,$A2637))/1000","v":{"$error":"#NAME?"}}]
[2631,{"$f":"_xll.RiskData('Risk Summary'!J$48,$A2638)/1000","v":{"$error":"#NAME?"}},{"$f":"_xll.RiskData('Risk Summary'!K$48,$A2638)/1000","v":{"$error":"#NAME?"}},{"$f":"_xll.RiskData('Risk Summary'!L$48,$A2638)/1000","v":{"$error":"#NAME?"}},null,null,{"$f":"(_xll.RiskData(NR_to_Cash!C$18,$A2638))/1000","v":{"$error":"#NAME?"}},{"$f":"(_xll.RiskData(NR_to_Cash!D$18,$A2638))/1000","v":{"$error":"#NAME?"}},{"$f":"(_xll.RiskData(NR_to_Cash!E$18,$A2638))/1000","v":{"$error":"#NAME?"}}]
[2632,{"$f":"_xll.RiskData('Risk Summary'!J$48,$A2639)/1000","v":{"$error":"#NAME?"}},{"$f":"_xll.RiskData('Risk Summary'!K$48,$A2639)/1000","v":{"$error":"#NAME?"}},{"$f":"_xll.RiskData('Risk Summary'!L$48,$A2639)/1000","v":{"$error":"#NAME?"}},null,null,{"$f":"(_xll.RiskData(NR_to_Cash!C$18,$A2639))/1000","v":{"$error":"#NAME?"}},{"$f":"(_xll.RiskData(NR_to_Cash!D$18,$A2639))/1000","v":{"$error":"#NAME?"}},{"$f":"(_xll.RiskData(NR_to_Cash!E$18,$A2639))/1000","v":{"$error":"#NAME?"}}]
[2633,{"$f":"_xll.RiskData('Risk Summary'!J$48,$A2640)/1000","v":{"$error":"#NAME?"}},{"$f":"_xll.RiskData('Risk Summary'!K$48,$A2640)/1000","v":{"$error":"#NAME?"}},{"$f":"_xll.RiskData('Risk Summary'!L$48,$A2640)/1000","v":{"$error":"#NAME?"}},null,null,{"$f":"(_xll.RiskData(NR_to_Cash!C$18,$A2640))/1000","v":{"$error":"#NAME?"}},{"$f":"(_xll.RiskData(NR_to_Cash!D$18,$A2640))/1000","v":{"$error":"#NAME?"}},{"$f":"(_xll.RiskData(NR_to_Cash!E$18,$A2640))/1000","v":{"$error":"#NAME?"}}]
[2634,{"$f":"_xll.RiskData('Risk Summary'!J$48,$A2641)/1000","v":{"$error":"#NAME?"}},{"$f":"_xll.RiskData('Risk Summary'!K$48,$A2641)/1000","v":{"$error":"#NAME?"}},{"$f":"_xll.RiskData('Risk Summary'!L$48,$A2641)/1000","v":{"$error":"#NAME?"}},null,null,{"$f":"(_xll.RiskData(NR_to_Cash!C$18,$A2641))/1000","v":{"$error":"#NAME?"}},{"$f":"(_xll.RiskData(NR_to_Cash!D$18,$A2641))/1000","v":{"$error":"#NAME?"}},{"$f":"(_xll.RiskData(NR_to_Cash!E$18,$A2641))/1000","v":{"$error":"#NAME?"}}]
[2635,{"$f":"_xll.RiskData('Risk Summary'!J$48,$A2642)/1000","v":{"$error":"#NAME?"}},{"$f":"_xll.RiskData('Risk Summary'!K$48,$A2642)/1000","v":{"$error":"#NAME?"}},{"$f":"_xll.RiskData('Risk Summary'!L$48,$A2642)/1000","v":{"$error":"#NAME?"}},null,null,{"$f":"(_xll.RiskData(NR_to_Cash!C$18,$A2642))/1000","v":{"$error":"#NAME?"}},{"$f":"(_xll.RiskData(NR_to_Cash!D$18,$A2642))/1000","v":{"$error":"#NAME?"}},{"$f":"(_xll.RiskData(NR_to_Cash!E$18,$A2642))/1000","v":{"$error":"#NAME?"}}]
[2636,{"$f":"_xll.RiskData('Risk Summary'!J$48,$A2643)/1000","v":{"$error":"#NAME?"}},{"$f":"_xll.RiskData('Risk Summary'!K$48,$A2643)/1000","v":{"$error":"#NAME?"}},{"$f":"_xll.RiskData('Risk Summary'!L$48,$A2643)/1000","v":{"$error":"#NAME?"}},null,null,{"$f":"(_xll.RiskData(NR_to_Cash!C$18,$A2643))/1000","v":{"$error":"#NAME?"}},{"$f":"(_xll.RiskData(NR_to_Cash!D$18,$A2643))/1000","v":{"$error":"#NAME?"}},{"$f":"(_xll.RiskData(NR_to_Cash!E$18,$A2643))/1000","v":{"$error":"#NAME?"}}]
[2637,{"$f":"_xll.RiskData('Risk Summary'!J$48,$A2644)/1000","v":{"$error":"#NAME?"}},{"$f":"_xll.RiskData('Risk Summary'!K$48,$A2644)/1000","v":{"$error":"#NAME?"}},{"$f":"_xll.RiskData('Risk Summary'!L$48,$A2644)/1000","v":{"$error":"#NAME?"}},null,null,{"$f":"(_xll.RiskData(NR_to_Cash!C$18,$A2644))/1000","v":{"$error":"#NAME?"}},{"$f":"(_xll.RiskData(NR_to_Cash!D$18,$A2644))/1000","v":{"$error":"#NAME?"}},{"$f":"(_xll.RiskData(NR_to_Cash!E$18,$A2644))/1000","v":{"$error":"#NAME?"}}]
[2638,{"$f":"_xll.RiskData('Risk Summary'!J$48,$A2645)/1000","v":{"$error":"#NAME?"}},{"$f":"_xll.RiskData('Risk Summary'!K$48,$A2645)/1000","v":{"$error":"#NAME?"}},{"$f":"_xll.RiskData('Risk Summary'!L$48,$A2645)/1000","v":{"$error":"#NAME?"}},null,null,{"$f":"(_xll.RiskData(NR_to_Cash!C$18,$A2645))/1000","v":{"$error":"#NAME?"}},{"$f":"(_xll.RiskData(NR_to_Cash!D$18,$A2645))/1000","v":{"$error":"#NAME?"}},{"$f":"(_xll.RiskData(NR_to_Cash!E$18,$A2645))/1000","v":{"$error":"#NAME?"}}]
[2639,{"$f":"_xll.RiskData('Risk Summary'!J$48,$A2646)/1000","v":{"$error":"#NAME?"}},{"$f":"_xll.RiskData('Risk Summary'!K$48,$A2646)/1000","v":{"$error":"#NAME?"}},{"$f":"_xll.RiskData('Risk Summary'!L$48,$A2646)/1000","v":{"$error":"#NAME?"}},null,null,{"$f":"(_xll.RiskData(NR_to_Cash!C$18,$A2646))/1000","v":{"$error":"#NAME?"}},{"$f":"(_xll.RiskData(NR_to_Cash!D$18,$A2646))/1000","v":{"$error":"#NAME?"}},{"$f":"(_xll.RiskData(NR_to_Cash!E$18,$A2646))/1000","v":{"$error":"#NAME?"}}]
[2640,{"$f":"_xll.RiskData('Risk Summary'!J$48,$A2647)/1000","v":{"$error":"#NAME?"}},{"$f":"_xll.RiskData('Risk Summary'!K$48,$A2647)/1000","v":{"$error":"#NAME?"}},{"$f":"_xll.RiskData('Risk Summary'!L$48,$A2647)/1000","v":{"$error":"#NAME?"}},null,null,{"$f":"(_xll.RiskData(NR_to_Cash!C$18,$A2647))/1000","v":{"$error":"#NAME?"}},{"$f":"(_xll.RiskData(NR_to_Cash!D$18,$A2647))/1000","v":{"$error":"#NAME?"}},{"$f":"(_xll.RiskData(NR_to_Cash!E$18,$A2647))/1000","v":{"$error":"#NAME?"}}]
[2641,{"$f":"_xll.RiskData('Risk Summary'!J$48,$A2648)/1000","v":{"$error":"#NAME?"}},{"$f":"_xll.RiskData('Risk Summary'!K$48,$A2648)/1000","v":{"$error":"#NAME?"}},{"$f":"_xll.RiskData('Risk Summary'!L$48,$A2648)/1000","v":{"$error":"#NAME?"}},null,null,{"$f":"(_xll.RiskData(NR_to_Cash!C$18,$A2648))/1000","v":{"$error":"#NAME?"}},{"$f":"(_xll.RiskData(NR_to_Cash!D$18,$A2648))/1000","v":{"$error":"#NAME?"}},{"$f":"(_xll.RiskData(NR_to_Cash!E$18,$A2648))/1000","v":{"$error":"#NAME?"}}]
[2642,{"$f":"_xll.RiskData('Risk Summary'!J$48,$A2649)/1000","v":{"$error":"#NAME?"}},{"$f":"_xll.RiskData('Risk Summary'!K$48,$A2649)/1000","v":{"$error":"#NAME?"}},{"$f":"_xll.RiskData('Risk Summary'!L$48,$A2649)/1000","v":{"$error":"#NAME?"}},null,null,{"$f":"(_xll.RiskData(NR_to_Cash!C$18,$A2649))/1000","v":{"$error":"#NAME?"}},{"$f":"(_xll.RiskData(NR_to_Cash!D$18,$A2649))/1000","v":{"$error":"#NAME?"}},{"$f":"(_xll.RiskData(NR_to_Cash!E$18,$A2649))/1000","v":{"$error":"#NAME?"}}]
[2643,{"$f":"_xll.RiskData('Risk Summary'!J$48,$A2650)/1000","v":{"$error":"#NAME?"}},{"$f":"_xll.RiskData('Risk Summary'!K$48,$A2650)/1000","v":{"$error":"#NAME?"}},{"$f":"_xll.RiskData('Risk Summary'!L$48,$A2650)/1000","v":{"$error":"#NAME?"}},null,null,{"$f":"(_xll.RiskData(NR_to_Cash!C$18,$A2650))/1000","v":{"$error":"#NAME?"}},{"$f":"(_xll.RiskData(NR_to_Cash!D$18,$A2650))/1000","v":{"$error":"#NAME?"}},{"$f":"(_xll.RiskData(NR_to_Cash!E$18,$A2650))/1000","v":{"$error":"#NAME?"}}]
[2644,{"$f":"_xll.RiskData('Risk Summary'!J$48,$A2651)/1000","v":{"$error":"#NAME?"}},{"$f":"_xll.RiskData('Risk Summary'!K$48,$A2651)/1000","v":{"$error":"#NAME?"}},{"$f":"_xll.RiskData('Risk Summary'!L$48,$A2651)/1000","v":{"$error":"#NAME?"}},null,null,{"$f":"(_xll.RiskData(NR_to_Cash!C$18,$A2651))/1000","v":{"$error":"#NAME?"}},{"$f":"(_xll.RiskData(NR_to_Cash!D$18,$A2651))/1000","v":{"$error":"#NAME?"}},{"$f":"(_xll.RiskData(NR_to_Cash!E$18,$A2651))/1000","v":{"$error":"#NAME?"}}]
[2645,{"$f":"_xll.RiskData('Risk Summary'!J$48,$A2652)/1000","v":{"$error":"#NAME?"}},{"$f":"_xll.RiskData('Risk Summary'!K$48,$A2652)/1000","v":{"$error":"#NAME?"}},{"$f":"_xll.RiskData('Risk Summary'!L$48,$A2652)/1000","v":{"$error":"#NAME?"}},null,null,{"$f":"(_xll.RiskData(NR_to_Cash!C$18,$A2652))/1000","v":{"$error":"#NAME?"}},{"$f":"(_xll.RiskData(NR_to_Cash!D$18,$A2652))/1000","v":{"$error":"#NAME?"}},{"$f":"(_xll.RiskData(NR_to_Cash!E$18,$A2652))/1000","v":{"$error":"#NAME?"}}]
[2646,{"$f":"_xll.RiskData('Risk Summary'!J$48,$A2653)/1000","v":{"$error":"#NAME?"}},{"$f":"_xll.RiskData('Risk Summary'!K$48,$A2653)/1000","v":{"$error":"#NAME?"}},{"$f":"_xll.RiskData('Risk Summary'!L$48,$A2653)/1000","v":{"$error":"#NAME?"}},null,null,{"$f":"(_xll.RiskData(NR_to_Cash!C$18,$A2653))/1000","v":{"$error":"#NAME?"}},{"$f":"(_xll.RiskData(NR_to_Cash!D$18,$A2653))/1000","v":{"$error":"#NAME?"}},{"$f":"(_xll.RiskData(NR_to_Cash!E$18,$A2653))/1000","v":{"$error":"#NAME?"}}]
[2647,{"$f":"_xll.RiskData('Risk Summary'!J$48,$A2654)/1000","v":{"$error":"#NAME?"}},{"$f":"_xll.RiskData('Risk Summary'!K$48,$A2654)/1000","v":{"$error":"#NAME?"}},{"$f":"_xll.RiskData('Risk Summary'!L$48,$A2654)/1000","v":{"$error":"#NAME?"}},null,null,{"$f":"(_xll.RiskData(NR_to_Cash!C$18,$A2654))/1000","v":{"$error":"#NAME?"}},{"$f":"(_xll.RiskData(NR_to_Cash!D$18,$A2654))/1000","v":{"$error":"#NAME?"}},{"$f":"(_xll.RiskData(NR_to_Cash!E$18,$A2654))/1000","v":{"$error":"#NAME?"}}]
[2648,{"$f":"_xll.RiskData('Risk Summary'!J$48,$A2655)/1000","v":{"$error":"#NAME?"}},{"$f":"_xll.RiskData('Risk Summary'!K$48,$A2655)/1000","v":{"$error":"#NAME?"}},{"$f":"_xll.RiskData('Risk Summary'!L$48,$A2655)/1000","v":{"$error":"#NAME?"}},null,null,{"$f":"(_xll.RiskData(NR_to_Cash!C$18,$A2655))/1000","v":{"$error":"#NAME?"}},{"$f":"(_xll.RiskData(NR_to_Cash!D$18,$A2655))/1000","v":{"$error":"#NAME?"}},{"$f":"(_xll.RiskData(NR_to_Cash!E$18,$A2655))/1000","v":{"$error":"#NAME?"}}]
[2649,{"$f":"_xll.RiskData('Risk Summary'!J$48,$A2656)/1000","v":{"$error":"#NAME?"}},{"$f":"_xll.RiskData('Risk Summary'!K$48,$A2656)/1000","v":{"$error":"#NAME?"}},{"$f":"_xll.RiskData('Risk Summary'!L$48,$A2656)/1000","v":{"$error":"#NAME?"}},null,null,{"$f":"(_xll.RiskData(NR_to_Cash!C$18,$A2656))/1000","v":{"$error":"#NAME?"}},{"$f":"(_xll.RiskData(NR_to_Cash!D$18,$A2656))/1000","v":{"$error":"#NAME?"}},{"$f":"(_xll.RiskData(NR_to_Cash!E$18,$A2656))/1000","v":{"$error":"#NAME?"}}]
[2650,{"$f":"_xll.RiskData('Risk Summary'!J$48,$A2657)/1000","v":{"$error":"#NAME?"}},{"$f":"_xll.RiskData('Risk Summary'!K$48,$A2657)/1000","v":{"$error":"#NAME?"}},{"$f":"_xll.RiskData('Risk Summary'!L$48,$A2657)/1000","v":{"$error":"#NAME?"}},null,null,{"$f":"(_xll.RiskData(NR_to_Cash!C$18,$A2657))/1000","v":{"$error":"#NAME?"}},{"$f":"(_xll.RiskData(NR_to_Cash!D$18,$A2657))/1000","v":{"$error":"#NAME?"}},{"$f":"(_xll.RiskData(NR_to_Cash!E$18,$A2657))/1000","v":{"$error":"#NAME?"}}]
[2651,{"$f":"_xll.RiskData('Risk Summary'!J$48,$A2658)/1000","v":{"$error":"#NAME?"}},{"$f":"_xll.RiskData('Risk Summary'!K$48,$A2658)/1000","v":{"$error":"#NAME?"}},{"$f":"_xll.RiskData('Risk Summary'!L$48,$A2658)/1000","v":{"$error":"#NAME?"}},null,null,{"$f":"(_xll.RiskData(NR_to_Cash!C$18,$A2658))/1000","v":{"$error":"#NAME?"}},{"$f":"(_xll.RiskData(NR_to_Cash!D$18,$A2658))/1000","v":{"$error":"#NAME?"}},{"$f":"(_xll.RiskData(NR_to_Cash!E$18,$A2658))/1000","v":{"$error":"#NAME?"}}]
[2652,{"$f":"_xll.RiskData('Risk Summary'!J$48,$A2659)/1000","v":{"$error":"#NAME?"}},{"$f":"_xll.RiskData('Risk Summary'!K$48,$A2659)/1000","v":{"$error":"#NAME?"}},{"$f":"_xll.RiskData('Risk Summary'!L$48,$A2659)/1000","v":{"$error":"#NAME?"}},null,null,{"$f":"(_xll.RiskData(NR_to_Cash!C$18,$A2659))/1000","v":{"$error":"#NAME?"}},{"$f":"(_xll.RiskData(NR_to_Cash!D$18,$A2659))/1000","v":{"$error":"#NAME?"}},{"$f":"(_xll.RiskData(NR_to_Cash!E$18,$A2659))/1000","v":{"$error":"#NAME?"}}]
[2653,{"$f":"_xll.RiskData('Risk Summary'!J$48,$A2660)/1000","v":{"$error":"#NAME?"}},{"$f":"_xll.RiskData('Risk Summary'!K$48,$A2660)/1000","v":{"$error":"#NAME?"}},{"$f":"_xll.RiskData('Risk Summary'!L$48,$A2660)/1000","v":{"$error":"#NAME?"}},null,null,{"$f":"(_xll.RiskData(NR_to_Cash!C$18,$A2660))/1000","v":{"$error":"#NAME?"}},{"$f":"(_xll.RiskData(NR_to_Cash!D$18,$A2660))/1000","v":{"$error":"#NAME?"}},{"$f":"(_xll.RiskData(NR_to_Cash!E$18,$A2660))/1000","v":{"$error":"#NAME?"}}]
[2654,{"$f":"_xll.RiskData('Risk Summary'!J$48,$A2661)/1000","v":{"$error":"#NAME?"}},{"$f":"_xll.RiskData('Risk Summary'!K$48,$A2661)/1000","v":{"$error":"#NAME?"}},{"$f":"_xll.RiskData('Risk Summary'!L$48,$A2661)/1000","v":{"$error":"#NAME?"}},null,null,{"$f":"(_xll.RiskData(NR_to_Cash!C$18,$A2661))/1000","v":{"$error":"#NAME?"}},{"$f":"(_xll.RiskData(NR_to_Cash!D$18,$A2661))/1000","v":{"$error":"#NAME?"}},{"$f":"(_xll.RiskData(NR_to_Cash!E$18,$A2661))/1000","v":{"$error":"#NAME?"}}]
[2655,{"$f":"_xll.RiskData('Risk Summary'!J$48,$A2662)/1000","v":{"$error":"#NAME?"}},{"$f":"_xll.RiskData('Risk Summary'!K$48,$A2662)/1000","v":{"$error":"#NAME?"}},{"$f":"_xll.RiskData('Risk Summary'!L$48,$A2662)/1000","v":{"$error":"#NAME?"}},null,null,{"$f":"(_xll.RiskData(NR_to_Cash!C$18,$A2662))/1000","v":{"$error":"#NAME?"}},{"$f":"(_xll.RiskData(NR_to_Cash!D$18,$A2662))/1000","v":{"$error":"#NAME?"}},{"$f":"(_xll.RiskData(NR_to_Cash!E$18,$A2662))/1000","v":{"$error":"#NAME?"}}]
[2656,{"$f":"_xll.RiskData('Risk Summary'!J$48,$A2663)/1000","v":{"$error":"#NAME?"}},{"$f":"_xll.RiskData('Risk Summary'!K$48,$A2663)/1000","v":{"$error":"#NAME?"}},{"$f":"_xll.RiskData('Risk Summary'!L$48,$A2663)/1000","v":{"$error":"#NAME?"}},null,null,{"$f":"(_xll.RiskData(NR_to_Cash!C$18,$A2663))/1000","v":{"$error":"#NAME?"}},{"$f":"(_xll.RiskData(NR_to_Cash!D$18,$A2663))/1000","v":{"$error":"#NAME?"}},{"$f":"(_xll.RiskData(NR_to_Cash!E$18,$A2663))/1000","v":{"$error":"#NAME?"}}]
[2657,{"$f":"_xll.RiskData('Risk Summary'!J$48,$A2664)/1000","v":{"$error":"#NAME?"}},{"$f":"_xll.RiskData('Risk Summary'!K$48,$A2664)/1000","v":{"$error":"#NAME?"}},{"$f":"_xll.RiskData('Risk Summary'!L$48,$A2664)/1000","v":{"$error":"#NAME?"}},null,null,{"$f":"(_xll.RiskData(NR_to_Cash!C$18,$A2664))/1000","v":{"$error":"#NAME?"}},{"$f":"(_xll.RiskData(NR_to_Cash!D$18,$A2664))/1000","v":{"$error":"#NAME?"}},{"$f":"(_xll.RiskData(NR_to_Cash!E$18,$A2664))/1000","v":{"$error":"#NAME?"}}]
[2658,{"$f":"_xll.RiskData('Risk Summary'!J$48,$A2665)/1000","v":{"$error":"#NAME?"}},{"$f":"_xll.RiskData('Risk Summary'!K$48,$A2665)/1000","v":{"$error":"#NAME?"}},{"$f":"_xll.RiskData('Risk Summary'!L$48,$A2665)/1000","v":{"$error":"#NAME?"}},null,null,{"$f":"(_xll.RiskData(NR_to_Cash!C$18,$A2665))/1000","v":{"$error":"#NAME?"}},{"$f":"(_xll.RiskData(NR_to_Cash!D$18,$A2665))/1000","v":{"$error":"#NAME?"}},{"$f":"(_xll.RiskData(NR_to_Cash!E$18,$A2665))/1000","v":{"$error":"#NAME?"}}]
[2659,{"$f":"_xll.RiskData('Risk Summary'!J$48,$A2666)/1000","v":{"$error":"#NAME?"}},{"$f":"_xll.RiskData('Risk Summary'!K$48,$A2666)/1000","v":{"$error":"#NAME?"}},{"$f":"_xll.RiskData('Risk Summary'!L$48,$A2666)/1000","v":{"$error":"#NAME?"}},null,null,{"$f":"(_xll.RiskData(NR_to_Cash!C$18,$A2666))/1000","v":{"$error":"#NAME?"}},{"$f":"(_xll.RiskData(NR_to_Cash!D$18,$A2666))/1000","v":{"$error":"#NAME?"}},{"$f":"(_xll.RiskData(NR_to_Cash!E$18,$A2666))/1000","v":{"$error":"#NAME?"}}]
[2660,{"$f":"_xll.RiskData('Risk Summary'!J$48,$A2667)/1000","v":{"$error":"#NAME?"}},{"$f":"_xll.RiskData('Risk Summary'!K$48,$A2667)/1000","v":{"$error":"#NAME?"}},{"$f":"_xll.RiskData('Risk Summary'!L$48,$A2667)/1000","v":{"$error":"#NAME?"}},null,null,{"$f":"(_xll.RiskData(NR_to_Cash!C$18,$A2667))/1000","v":{"$error":"#NAME?"}},{"$f":"(_xll.RiskData(NR_to_Cash!D$18,$A2667))/1000","v":{"$error":"#NAME?"}},{"$f":"(_xll.RiskData(NR_to_Cash!E$18,$A2667))/1000","v":{"$error":"#NAME?"}}]
[2661,{"$f":"_xll.RiskData('Risk Summary'!J$48,$A2668)/1000","v":{"$error":"#NAME?"}},{"$f":"_xll.RiskData('Risk Summary'!K$48,$A2668)/1000","v":{"$error":"#NAME?"}},{"$f":"_xll.RiskData('Risk Summary'!L$48,$A2668)/1000","v":{"$error":"#NAME?"}},null,null,{"$f":"(_xll.RiskData(NR_to_Cash!C$18,$A2668))/1000","v":{"$error":"#NAME?"}},{"$f":"(_xll.RiskData(NR_to_Cash!D$18,$A2668))/1000","v":{"$error":"#NAME?"}},{"$f":"(_xll.RiskData(NR_to_Cash!E$18,$A2668))/1000","v":{"$error":"#NAME?"}}]
[2662,{"$f":"_xll.RiskData('Risk Summary'!J$48,$A2669)/1000","v":{"$error":"#NAME?"}},{"$f":"_xll.RiskData('Risk Summary'!K$48,$A2669)/1000","v":{"$error":"#NAME?"}},{"$f":"_xll.RiskData('Risk Summary'!L$48,$A2669)/1000","v":{"$error":"#NAME?"}},null,null,{"$f":"(_xll.RiskData(NR_to_Cash!C$18,$A2669))/1000","v":{"$error":"#NAME?"}},{"$f":"(_xll.RiskData(NR_to_Cash!D$18,$A2669))/1000","v":{"$error":"#NAME?"}},{"$f":"(_xll.RiskData(NR_to_Cash!E$18,$A2669))/1000","v":{"$error":"#NAME?"}}]
[2663,{"$f":"_xll.RiskData('Risk Summary'!J$48,$A2670)/1000","v":{"$error":"#NAME?"}},{"$f":"_xll.RiskData('Risk Summary'!K$48,$A2670)/1000","v":{"$error":"#NAME?"}},{"$f":"_xll.RiskData('Risk Summary'!L$48,$A2670)/1000","v":{"$error":"#NAME?"}},null,null,{"$f":"(_xll.RiskData(NR_to_Cash!C$18,$A2670))/1000","v":{"$error":"#NAME?"}},{"$f":"(_xll.RiskData(NR_to_Cash!D$18,$A2670))/1000","v":{"$error":"#NAME?"}},{"$f":"(_xll.RiskData(NR_to_Cash!E$18,$A2670))/1000","v":{"$error":"#NAME?"}}]
[2664,{"$f":"_xll.RiskData('Risk Summary'!J$48,$A2671)/1000","v":{"$error":"#NAME?"}},{"$f":"_xll.RiskData('Risk Summary'!K$48,$A2671)/1000","v":{"$error":"#NAME?"}},{"$f":"_xll.RiskData('Risk Summary'!L$48,$A2671)/1000","v":{"$error":"#NAME?"}},null,null,{"$f":"(_xll.RiskData(NR_to_Cash!C$18,$A2671))/1000","v":{"$error":"#NAME?"}},{"$f":"(_xll.RiskData(NR_to_Cash!D$18,$A2671))/1000","v":{"$error":"#NAME?"}},{"$f":"(_xll.RiskData(NR_to_Cash!E$18,$A2671))/1000","v":{"$error":"#NAME?"}}]
[2665,{"$f":"_xll.RiskData('Risk Summary'!J$48,$A2672)/1000","v":{"$error":"#NAME?"}},{"$f":"_xll.RiskData('Risk Summary'!K$48,$A2672)/1000","v":{"$error":"#NAME?"}},{"$f":"_xll.RiskData('Risk Summary'!L$48,$A2672)/1000","v":{"$error":"#NAME?"}},null,null,{"$f":"(_xll.RiskData(NR_to_Cash!C$18,$A2672))/1000","v":{"$error":"#NAME?"}},{"$f":"(_xll.RiskData(NR_to_Cash!D$18,$A2672))/1000","v":{"$error":"#NAME?"}},{"$f":"(_xll.RiskData(NR_to_Cash!E$18,$A2672))/1000","v":{"$error":"#NAME?"}}]
[2666,{"$f":"_xll.RiskData('Risk Summary'!J$48,$A2673)/1000","v":{"$error":"#NAME?"}},{"$f":"_xll.RiskData('Risk Summary'!K$48,$A2673)/1000","v":{"$error":"#NAME?"}},{"$f":"_xll.RiskData('Risk Summary'!L$48,$A2673)/1000","v":{"$error":"#NAME?"}},null,null,{"$f":"(_xll.RiskData(NR_to_Cash!C$18,$A2673))/1000","v":{"$error":"#NAME?"}},{"$f":"(_xll.RiskData(NR_to_Cash!D$18,$A2673))/1000","v":{"$error":"#NAME?"}},{"$f":"(_xll.RiskData(NR_to_Cash!E$18,$A2673))/1000","v":{"$error":"#NAME?"}}]
[2667,{"$f":"_xll.RiskData('Risk Summary'!J$48,$A2674)/1000","v":{"$error":"#NAME?"}},{"$f":"_xll.RiskData('Risk Summary'!K$48,$A2674)/1000","v":{"$error":"#NAME?"}},{"$f":"_xll.RiskData('Risk Summary'!L$48,$A2674)/1000","v":{"$error":"#NAME?"}},null,null,{"$f":"(_xll.RiskData(NR_to_Cash!C$18,$A2674))/1000","v":{"$error":"#NAME?"}},{"$f":"(_xll.RiskData(NR_to_Cash!D$18,$A2674))/1000","v":{"$error":"#NAME?"}},{"$f":"(_xll.RiskData(NR_to_Cash!E$18,$A2674))/1000","v":{"$error":"#NAME?"}}]
[2668,{"$f":"_xll.RiskData('Risk Summary'!J$48,$A2675)/1000","v":{"$error":"#NAME?"}},{"$f":"_xll.RiskData('Risk Summary'!K$48,$A2675)/1000","v":{"$error":"#NAME?"}},{"$f":"_xll.RiskData('Risk Summary'!L$48,$A2675)/1000","v":{"$error":"#NAME?"}},null,null,{"$f":"(_xll.RiskData(NR_to_Cash!C$18,$A2675))/1000","v":{"$error":"#NAME?"}},{"$f":"(_xll.RiskData(NR_to_Cash!D$18,$A2675))/1000","v":{"$error":"#NAME?"}},{"$f":"(_xll.RiskData(NR_to_Cash!E$18,$A2675))/1000","v":{"$error":"#NAME?"}}]
[2669,{"$f":"_xll.RiskData('Risk Summary'!J$48,$A2676)/1000","v":{"$error":"#NAME?"}},{"$f":"_xll.RiskData('Risk Summary'!K$48,$A2676)/1000","v":{"$error":"#NAME?"}},{"$f":"_xll.RiskData('Risk Summary'!L$48,$A2676)/1000","v":{"$error":"#NAME?"}},null,null,{"$f":"(_xll.RiskData(NR_to_Cash!C$18,$A2676))/1000","v":{"$error":"#NAME?"}},{"$f":"(_xll.RiskData(NR_to_Cash!D$18,$A2676))/1000","v":{"$error":"#NAME?"}},{"$f":"(_xll.RiskData(NR_to_Cash!E$18,$A2676))/1000","v":{"$error":"#NAME?"}}]
[2670,{"$f":"_xll.RiskData('Risk Summary'!J$48,$A2677)/1000","v":{"$error":"#NAME?"}},{"$f":"_xll.RiskData('Risk Summary'!K$48,$A2677)/1000","v":{"$error":"#NAME?"}},{"$f":"_xll.RiskData('Risk Summary'!L$48,$A2677)/1000","v":{"$error":"#NAME?"}},null,null,{"$f":"(_xll.RiskData(NR_to_Cash!C$18,$A2677))/1000","v":{"$error":"#NAME?"}},{"$f":"(_xll.RiskData(NR_to_Cash!D$18,$A2677))/1000","v":{"$error":"#NAME?"}},{"$f":"(_xll.RiskData(NR_to_Cash!E$18,$A2677))/1000","v":{"$error":"#NAME?"}}]
[2671,{"$f":"_xll.RiskData('Risk Summary'!J$48,$A2678)/1000","v":{"$error":"#NAME?"}},{"$f":"_xll.RiskData('Risk Summary'!K$48,$A2678)/1000","v":{"$error":"#NAME?"}},{"$f":"_xll.RiskData('Risk Summary'!L$48,$A2678)/1000","v":{"$error":"#NAME?"}},null,null,{"$f":"(_xll.RiskData(NR_to_Cash!C$18,$A2678))/1000","v":{"$error":"#NAME?"}},{"$f":"(_xll.RiskData(NR_to_Cash!D$18,$A2678))/1000","v":{"$error":"#NAME?"}},{"$f":"(_xll.RiskData(NR_to_Cash!E$18,$A2678))/1000","v":{"$error":"#NAME?"}}]
[2672,{"$f":"_xll.RiskData('Risk Summary'!J$48,$A2679)/1000","v":{"$error":"#NAME?"}},{"$f":"_xll.RiskData('Risk Summary'!K$48,$A2679)/1000","v":{"$error":"#NAME?"}},{"$f":"_xll.RiskData('Risk Summary'!L$48,$A2679)/1000","v":{"$error":"#NAME?"}},null,null,{"$f":"(_xll.RiskData(NR_to_Cash!C$18,$A2679))/1000","v":{"$error":"#NAME?"}},{"$f":"(_xll.RiskData(NR_to_Cash!D$18,$A2679))/1000","v":{"$error":"#NAME?"}},{"$f":"(_xll.RiskData(NR_to_Cash!E$18,$A2679))/1000","v":{"$error":"#NAME?"}}]
[2673,{"$f":"_xll.RiskData('Risk Summary'!J$48,$A2680)/1000","v":{"$error":"#NAME?"}},{"$f":"_xll.RiskData('Risk Summary'!K$48,$A2680)/1000","v":{"$error":"#NAME?"}},{"$f":"_xll.RiskData('Risk Summary'!L$48,$A2680)/1000","v":{"$error":"#NAME?"}},null,null,{"$f":"(_xll.RiskData(NR_to_Cash!C$18,$A2680))/1000","v":{"$error":"#NAME?"}},{"$f":"(_xll.RiskData(NR_to_Cash!D$18,$A2680))/1000","v":{"$error":"#NAME?"}},{"$f":"(_xll.RiskData(NR_to_Cash!E$18,$A2680))/1000","v":{"$error":"#NAME?"}}]
[2674,{"$f":"_xll.RiskData('Risk Summary'!J$48,$A2681)/1000","v":{"$error":"#NAME?"}},{"$f":"_xll.RiskData('Risk Summary'!K$48,$A2681)/1000","v":{"$error":"#NAME?"}},{"$f":"_xll.RiskData('Risk Summary'!L$48,$A2681)/1000","v":{"$error":"#NAME?"}},null,null,{"$f":"(_xll.RiskData(NR_to_Cash!C$18,$A2681))/1000","v":{"$error":"#NAME?"}},{"$f":"(_xll.RiskData(NR_to_Cash!D$18,$A2681))/1000","v":{"$error":"#NAME?"}},{"$f":"(_xll.RiskData(NR_to_Cash!E$18,$A2681))/1000","v":{"$error":"#NAME?"}}]
[2675,{"$f":"_xll.RiskData('Risk Summary'!J$48,$A2682)/1000","v":{"$error":"#NAME?"}},{"$f":"_xll.RiskData('Risk Summary'!K$48,$A2682)/1000","v":{"$error":"#NAME?"}},{"$f":"_xll.RiskData('Risk Summary'!L$48,$A2682)/1000","v":{"$error":"#NAME?"}},null,null,{"$f":"(_xll.RiskData(NR_to_Cash!C$18,$A2682))/1000","v":{"$error":"#NAME?"}},{"$f":"(_xll.RiskData(NR_to_Cash!D$18,$A2682))/1000","v":{"$error":"#NAME?"}},{"$f":"(_xll.RiskData(NR_to_Cash!E$18,$A2682))/1000","v":{"$error":"#NAME?"}}]
[2676,{"$f":"_xll.RiskData('Risk Summary'!J$48,$A2683)/1000","v":{"$error":"#NAME?"}},{"$f":"_xll.RiskData('Risk Summary'!K$48,$A2683)/1000","v":{"$error":"#NAME?"}},{"$f":"_xll.RiskData('Risk Summary'!L$48,$A2683)/1000","v":{"$error":"#NAME?"}},null,null,{"$f":"(_xll.RiskData(NR_to_Cash!C$18,$A2683))/1000","v":{"$error":"#NAME?"}},{"$f":"(_xll.RiskData(NR_to_Cash!D$18,$A2683))/1000","v":{"$error":"#NAME?"}},{"$f":"(_xll.RiskData(NR_to_Cash!E$18,$A2683))/1000","v":{"$error":"#NAME?"}}]
[2677,{"$f":"_xll.RiskData('Risk Summary'!J$48,$A2684)/1000","v":{"$error":"#NAME?"}},{"$f":"_xll.RiskData('Risk Summary'!K$48,$A2684)/1000","v":{"$error":"#NAME?"}},{"$f":"_xll.RiskData('Risk Summary'!L$48,$A2684)/1000","v":{"$error":"#NAME?"}},null,null,{"$f":"(_xll.RiskData(NR_to_Cash!C$18,$A2684))/1000","v":{"$error":"#NAME?"}},{"$f":"(_xll.RiskData(NR_to_Cash!D$18,$A2684))/1000","v":{"$error":"#NAME?"}},{"$f":"(_xll.RiskData(NR_to_Cash!E$18,$A2684))/1000","v":{"$error":"#NAME?"}}]
[2678,{"$f":"_xll.RiskData('Risk Summary'!J$48,$A2685)/1000","v":{"$error":"#NAME?"}},{"$f":"_xll.RiskData('Risk Summary'!K$48,$A2685)/1000","v":{"$error":"#NAME?"}},{"$f":"_xll.RiskData('Risk Summary'!L$48,$A2685)/1000","v":{"$error":"#NAME?"}},null,null,{"$f":"(_xll.RiskData(NR_to_Cash!C$18,$A2685))/1000","v":{"$error":"#NAME?"}},{"$f":"(_xll.RiskData(NR_to_Cash!D$18,$A2685))/1000","v":{"$error":"#NAME?"}},{"$f":"(_xll.RiskData(NR_to_Cash!E$18,$A2685))/1000","v":{"$error":"#NAME?"}}]
[2679,{"$f":"_xll.RiskData('Risk Summary'!J$48,$A2686)/1000","v":{"$error":"#NAME?"}},{"$f":"_xll.RiskData('Risk Summary'!K$48,$A2686)/1000","v":{"$error":"#NAME?"}},{"$f":"_xll.RiskData('Risk Summary'!L$48,$A2686)/1000","v":{"$error":"#NAME?"}},null,null,{"$f":"(_xll.RiskData(NR_to_Cash!C$18,$A2686))/1000","v":{"$error":"#NAME?"}},{"$f":"(_xll.RiskData(NR_to_Cash!D$18,$A2686))/1000","v":{"$error":"#NAME?"}},{"$f":"(_xll.RiskData(NR_to_Cash!E$18,$A2686))/1000","v":{"$error":"#NAME?"}}]
[2680,{"$f":"_xll.RiskData('Risk Summary'!J$48,$A2687)/1000","v":{"$error":"#NAME?"}},{"$f":"_xll.RiskData('Risk Summary'!K$48,$A2687)/1000","v":{"$error":"#NAME?"}},{"$f":"_xll.RiskData('Risk Summary'!L$48,$A2687)/1000","v":{"$error":"#NAME?"}},null,null,{"$f":"(_xll.RiskData(NR_to_Cash!C$18,$A2687))/1000","v":{"$error":"#NAME?"}},{"$f":"(_xll.RiskData(NR_to_Cash!D$18,$A2687))/1000","v":{"$error":"#NAME?"}},{"$f":"(_xll.RiskData(NR_to_Cash!E$18,$A2687))/1000","v":{"$error":"#NAME?"}}]
[2681,{"$f":"_xll.RiskData('Risk Summary'!J$48,$A2688)/1000","v":{"$error":"#NAME?"}},{"$f":"_xll.RiskData('Risk Summary'!K$48,$A2688)/1000","v":{"$error":"#NAME?"}},{"$f":"_xll.RiskData('Risk Summary'!L$48,$A2688)/1000","v":{"$error":"#NAME?"}},null,null,{"$f":"(_xll.RiskData(NR_to_Cash!C$18,$A2688))/1000","v":{"$error":"#NAME?"}},{"$f":"(_xll.RiskData(NR_to_Cash!D$18,$A2688))/1000","v":{"$error":"#NAME?"}},{"$f":"(_xll.RiskData(NR_to_Cash!E$18,$A2688))/1000","v":{"$error":"#NAME?"}}]
[2682,{"$f":"_xll.RiskData('Risk Summary'!J$48,$A2689)/1000","v":{"$error":"#NAME?"}},{"$f":"_xll.RiskData('Risk Summary'!K$48,$A2689)/1000","v":{"$error":"#NAME?"}},{"$f":"_xll.RiskData('Risk Summary'!L$48,$A2689)/1000","v":{"$error":"#NAME?"}},null,null,{"$f":"(_xll.RiskData(NR_to_Cash!C$18,$A2689))/1000","v":{"$error":"#NAME?"}},{"$f":"(_xll.RiskData(NR_to_Cash!D$18,$A2689))/1000","v":{"$error":"#NAME?"}},{"$f":"(_xll.RiskData(NR_to_Cash!E$18,$A2689))/1000","v":{"$error":"#NAME?"}}]
[2683,{"$f":"_xll.RiskData('Risk Summary'!J$48,$A2690)/1000","v":{"$error":"#NAME?"}},{"$f":"_xll.RiskData('Risk Summary'!K$48,$A2690)/1000","v":{"$error":"#NAME?"}},{"$f":"_xll.RiskData('Risk Summary'!L$48,$A2690)/1000","v":{"$error":"#NAME?"}},null,null,{"$f":"(_xll.RiskData(NR_to_Cash!C$18,$A2690))/1000","v":{"$error":"#NAME?"}},{"$f":"(_xll.RiskData(NR_to_Cash!D$18,$A2690))/1000","v":{"$error":"#NAME?"}},{"$f":"(_xll.RiskData(NR_to_Cash!E$18,$A2690))/1000","v":{"$error":"#NAME?"}}]
[2684,{"$f":"_xll.RiskData('Risk Summary'!J$48,$A2691)/1000","v":{"$error":"#NAME?"}},{"$f":"_xll.RiskData('Risk Summary'!K$48,$A2691)/1000","v":{"$error":"#NAME?"}},{"$f":"_xll.RiskData('Risk Summary'!L$48,$A2691)/1000","v":{"$error":"#NAME?"}},null,null,{"$f":"(_xll.RiskData(NR_to_Cash!C$18,$A2691))/1000","v":{"$error":"#NAME?"}},{"$f":"(_xll.RiskData(NR_to_Cash!D$18,$A2691))/1000","v":{"$error":"#NAME?"}},{"$f":"(_xll.RiskData(NR_to_Cash!E$18,$A2691))/1000","v":{"$error":"#NAME?"}}]
[2685,{"$f":"_xll.RiskData('Risk Summary'!J$48,$A2692)/1000","v":{"$error":"#NAME?"}},{"$f":"_xll.RiskData('Risk Summary'!K$48,$A2692)/1000","v":{"$error":"#NAME?"}},{"$f":"_xll.RiskData('Risk Summary'!L$48,$A2692)/1000","v":{"$error":"#NAME?"}},null,null,{"$f":"(_xll.RiskData(NR_to_Cash!C$18,$A2692))/1000","v":{"$error":"#NAME?"}},{"$f":"(_xll.RiskData(NR_to_Cash!D$18,$A2692))/1000","v":{"$error":"#NAME?"}},{"$f":"(_xll.RiskData(NR_to_Cash!E$18,$A2692))/1000","v":{"$error":"#NAME?"}}]
[2686,{"$f":"_xll.RiskData('Risk Summary'!J$48,$A2693)/1000","v":{"$error":"#NAME?"}},{"$f":"_xll.RiskData('Risk Summary'!K$48,$A2693)/1000","v":{"$error":"#NAME?"}},{"$f":"_xll.RiskData('Risk Summary'!L$48,$A2693)/1000","v":{"$error":"#NAME?"}},null,null,{"$f":"(_xll.RiskData(NR_to_Cash!C$18,$A2693))/1000","v":{"$error":"#NAME?"}},{"$f":"(_xll.RiskData(NR_to_Cash!D$18,$A2693))/1000","v":{"$error":"#NAME?"}},{"$f":"(_xll.RiskData(NR_to_Cash!E$18,$A2693))/1000","v":{"$error":"#NAME?"}}]
[2687,{"$f":"_xll.RiskData('Risk Summary'!J$48,$A2694)/1000","v":{"$error":"#NAME?"}},{"$f":"_xll.RiskData('Risk Summary'!K$48,$A2694)/1000","v":{"$error":"#NAME?"}},{"$f":"_xll.RiskData('Risk Summary'!L$48,$A2694)/1000","v":{"$error":"#NAME?"}},null,null,{"$f":"(_xll.RiskData(NR_to_Cash!C$18,$A2694))/1000","v":{"$error":"#NAME?"}},{"$f":"(_xll.RiskData(NR_to_Cash!D$18,$A2694))/1000","v":{"$error":"#NAME?"}},{"$f":"(_xll.RiskData(NR_to_Cash!E$18,$A2694))/1000","v":{"$error":"#NAME?"}}]
[2688,{"$f":"_xll.RiskData('Risk Summary'!J$48,$A2695)/1000","v":{"$error":"#NAME?"}},{"$f":"_xll.RiskData('Risk Summary'!K$48,$A2695)/1000","v":{"$error":"#NAME?"}},{"$f":"_xll.RiskData('Risk Summary'!L$48,$A2695)/1000","v":{"$error":"#NAME?"}},null,null,{"$f":"(_xll.RiskData(NR_to_Cash!C$18,$A2695))/1000","v":{"$error":"#NAME?"}},{"$f":"(_xll.RiskData(NR_to_Cash!D$18,$A2695))/1000","v":{"$error":"#NAME?"}},{"$f":"(_xll.RiskData(NR_to_Cash!E$18,$A2695))/1000","v":{"$error":"#NAME?"}}]
[2689,{"$f":"_xll.RiskData('Risk Summary'!J$48,$A2696)/1000","v":{"$error":"#NAME?"}},{"$f":"_xll.RiskData('Risk Summary'!K$48,$A2696)/1000","v":{"$error":"#NAME?"}},{"$f":"_xll.RiskData('Risk Summary'!L$48,$A2696)/1000","v":{"$error":"#NAME?"}},null,null,{"$f":"(_xll.RiskData(NR_to_Cash!C$18,$A2696))/1000","v":{"$error":"#NAME?"}},{"$f":"(_xll.RiskData(NR_to_Cash!D$18,$A2696))/1000","v":{"$error":"#NAME?"}},{"$f":"(_xll.RiskData(NR_to_Cash!E$18,$A2696))/1000","v":{"$error":"#NAME?"}}]
[2690,{"$f":"_xll.RiskData('Risk Summary'!J$48,$A2697)/1000","v":{"$error":"#NAME?"}},{"$f":"_xll.RiskData('Risk Summary'!K$48,$A2697)/1000","v":{"$error":"#NAME?"}},{"$f":"_xll.RiskData('Risk Summary'!L$48,$A2697)/1000","v":{"$error":"#NAME?"}},null,null,{"$f":"(_xll.RiskData(NR_to_Cash!C$18,$A2697))/1000","v":{"$error":"#NAME?"}},{"$f":"(_xll.RiskData(NR_to_Cash!D$18,$A2697))/1000","v":{"$error":"#NAME?"}},{"$f":"(_xll.RiskData(NR_to_Cash!E$18,$A2697))/1000","v":{"$error":"#NAME?"}}]
[2691,{"$f":"_xll.RiskData('Risk Summary'!J$48,$A2698)/1000","v":{"$error":"#NAME?"}},{"$f":"_xll.RiskData('Risk Summary'!K$48,$A2698)/1000","v":{"$error":"#NAME?"}},{"$f":"_xll.RiskData('Risk Summary'!L$48,$A2698)/1000","v":{"$error":"#NAME?"}},null,null,{"$f":"(_xll.RiskData(NR_to_Cash!C$18,$A2698))/1000","v":{"$error":"#NAME?"}},{"$f":"(_xll.RiskData(NR_to_Cash!D$18,$A2698))/1000","v":{"$error":"#NAME?"}},{"$f":"(_xll.RiskData(NR_to_Cash!E$18,$A2698))/1000","v":{"$error":"#NAME?"}}]
[2692,{"$f":"_xll.RiskData('Risk Summary'!J$48,$A2699)/1000","v":{"$error":"#NAME?"}},{"$f":"_xll.RiskData('Risk Summary'!K$48,$A2699)/1000","v":{"$error":"#NAME?"}},{"$f":"_xll.RiskData('Risk Summary'!L$48,$A2699)/1000","v":{"$error":"#NAME?"}},null,null,{"$f":"(_xll.RiskData(NR_to_Cash!C$18,$A2699))/1000","v":{"$error":"#NAME?"}},{"$f":"(_xll.RiskData(NR_to_Cash!D$18,$A2699))/1000","v":{"$error":"#NAME?"}},{"$f":"(_xll.RiskData(NR_to_Cash!E$18,$A2699))/1000","v":{"$error":"#NAME?"}}]
[2693,{"$f":"_xll.RiskData('Risk Summary'!J$48,$A2700)/1000","v":{"$error":"#NAME?"}},{"$f":"_xll.RiskData('Risk Summary'!K$48,$A2700)/1000","v":{"$error":"#NAME?"}},{"$f":"_xll.RiskData('Risk Summary'!L$48,$A2700)/1000","v":{"$error":"#NAME?"}},null,null,{"$f":"(_xll.RiskData(NR_to_Cash!C$18,$A2700))/1000","v":{"$error":"#NAME?"}},{"$f":"(_xll.RiskData(NR_to_Cash!D$18,$A2700))/1000","v":{"$error":"#NAME?"}},{"$f":"(_xll.RiskData(NR_to_Cash!E$18,$A2700))/1000","v":{"$error":"#NAME?"}}]
[2694,{"$f":"_xll.RiskData('Risk Summary'!J$48,$A2701)/1000","v":{"$error":"#NAME?"}},{"$f":"_xll.RiskData('Risk Summary'!K$48,$A2701)/1000","v":{"$error":"#NAME?"}},{"$f":"_xll.RiskData('Risk Summary'!L$48,$A2701)/1000","v":{"$error":"#NAME?"}},null,null,{"$f":"(_xll.RiskData(NR_to_Cash!C$18,$A2701))/1000","v":{"$error":"#NAME?"}},{"$f":"(_xll.RiskData(NR_to_Cash!D$18,$A2701))/1000","v":{"$error":"#NAME?"}},{"$f":"(_xll.RiskData(NR_to_Cash!E$18,$A2701))/1000","v":{"$error":"#NAME?"}}]
[2695,{"$f":"_xll.RiskData('Risk Summary'!J$48,$A2702)/1000","v":{"$error":"#NAME?"}},{"$f":"_xll.RiskData('Risk Summary'!K$48,$A2702)/1000","v":{"$error":"#NAME?"}},{"$f":"_xll.RiskData('Risk Summary'!L$48,$A2702)/1000","v":{"$error":"#NAME?"}},null,null,{"$f":"(_xll.RiskData(NR_to_Cash!C$18,$A2702))/1000","v":{"$error":"#NAME?"}},{"$f":"(_xll.RiskData(NR_to_Cash!D$18,$A2702))/1000","v":{"$error":"#NAME?"}},{"$f":"(_xll.RiskData(NR_to_Cash!E$18,$A2702))/1000","v":{"$error":"#NAME?"}}]
[2696,{"$f":"_xll.RiskData('Risk Summary'!J$48,$A2703)/1000","v":{"$error":"#NAME?"}},{"$f":"_xll.RiskData('Risk Summary'!K$48,$A2703)/1000","v":{"$error":"#NAME?"}},{"$f":"_xll.RiskData('Risk Summary'!L$48,$A2703)/1000","v":{"$error":"#NAME?"}},null,null,{"$f":"(_xll.RiskData(NR_to_Cash!C$18,$A2703))/1000","v":{"$error":"#NAME?"}},{"$f":"(_xll.RiskData(NR_to_Cash!D$18,$A2703))/1000","v":{"$error":"#NAME?"}},{"$f":"(_xll.RiskData(NR_to_Cash!E$18,$A2703))/1000","v":{"$error":"#NAME?"}}]
[2697,{"$f":"_xll.RiskData('Risk Summary'!J$48,$A2704)/1000","v":{"$error":"#NAME?"}},{"$f":"_xll.RiskData('Risk Summary'!K$48,$A2704)/1000","v":{"$error":"#NAME?"}},{"$f":"_xll.RiskData('Risk Summary'!L$48,$A2704)/1000","v":{"$error":"#NAME?"}},null,null,{"$f":"(_xll.RiskData(NR_to_Cash!C$18,$A2704))/1000","v":{"$error":"#NAME?"}},{"$f":"(_xll.RiskData(NR_to_Cash!D$18,$A2704))/1000","v":{"$error":"#NAME?"}},{"$f":"(_xll.RiskData(NR_to_Cash!E$18,$A2704))/1000","v":{"$error":"#NAME?"}}]
[2698,{"$f":"_xll.RiskData('Risk Summary'!J$48,$A2705)/1000","v":{"$error":"#NAME?"}},{"$f":"_xll.RiskData('Risk Summary'!K$48,$A2705)/1000","v":{"$error":"#NAME?"}},{"$f":"_xll.RiskData('Risk Summary'!L$48,$A2705)/1000","v":{"$error":"#NAME?"}},null,null,{"$f":"(_xll.RiskData(NR_to_Cash!C$18,$A2705))/1000","v":{"$error":"#NAME?"}},{"$f":"(_xll.RiskData(NR_to_Cash!D$18,$A2705))/1000","v":{"$error":"#NAME?"}},{"$f":"(_xll.RiskData(NR_to_Cash!E$18,$A2705))/1000","v":{"$error":"#NAME?"}}]
[2699,{"$f":"_xll.RiskData('Risk Summary'!J$48,$A2706)/1000","v":{"$error":"#NAME?"}},{"$f":"_xll.RiskData('Risk Summary'!K$48,$A2706)/1000","v":{"$error":"#NAME?"}},{"$f":"_xll.RiskData('Risk Summary'!L$48,$A2706)/1000","v":{"$error":"#NAME?"}},null,null,{"$f":"(_xll.RiskData(NR_to_Cash!C$18,$A2706))/1000","v":{"$error":"#NAME?"}},{"$f":"(_xll.RiskData(NR_to_Cash!D$18,$A2706))/1000","v":{"$error":"#NAME?"}},{"$f":"(_xll.RiskData(NR_to_Cash!E$18,$A2706))/1000","v":{"$error":"#NAME?"}}]
[2700,{"$f":"_xll.RiskData('Risk Summary'!J$48,$A2707)/1000","v":{"$error":"#NAME?"}},{"$f":"_xll.RiskData('Risk Summary'!K$48,$A2707)/1000","v":{"$error":"#NAME?"}},{"$f":"_xll.RiskData('Risk Summary'!L$48,$A2707)/1000","v":{"$error":"#NAME?"}},null,null,{"$f":"(_xll.RiskData(NR_to_Cash!C$18,$A2707))/1000","v":{"$error":"#NAME?"}},{"$f":"(_xll.RiskData(NR_to_Cash!D$18,$A2707))/1000","v":{"$error":"#NAME?"}},{"$f":"(_xll.RiskData(NR_to_Cash!E$18,$A2707))/1000","v":{"$error":"#NAME?"}}]
[2701,{"$f":"_xll.RiskData('Risk Summary'!J$48,$A2708)/1000","v":{"$error":"#NAME?"}},{"$f":"_xll.RiskData('Risk Summary'!K$48,$A2708)/1000","v":{"$error":"#NAME?"}},{"$f":"_xll.RiskData('Risk Summary'!L$48,$A2708)/1000","v":{"$error":"#NAME?"}},null,null,{"$f":"(_xll.RiskData(NR_to_Cash!C$18,$A2708))/1000","v":{"$error":"#NAME?"}},{"$f":"(_xll.RiskData(NR_to_Cash!D$18,$A2708))/1000","v":{"$error":"#NAME?"}},{"$f":"(_xll.RiskData(NR_to_Cash!E$18,$A2708))/1000","v":{"$error":"#NAME?"}}]
[2702,{"$f":"_xll.RiskData('Risk Summary'!J$48,$A2709)/1000","v":{"$error":"#NAME?"}},{"$f":"_xll.RiskData('Risk Summary'!K$48,$A2709)/1000","v":{"$error":"#NAME?"}},{"$f":"_xll.RiskData('Risk Summary'!L$48,$A2709)/1000","v":{"$error":"#NAME?"}},null,null,{"$f":"(_xll.RiskData(NR_to_Cash!C$18,$A2709))/1000","v":{"$error":"#NAME?"}},{"$f":"(_xll.RiskData(NR_to_Cash!D$18,$A2709))/1000","v":{"$error":"#NAME?"}},{"$f":"(_xll.RiskData(NR_to_Cash!E$18,$A2709))/1000","v":{"$error":"#NAME?"}}]
[2703,{"$f":"_xll.RiskData('Risk Summary'!J$48,$A2710)/1000","v":{"$error":"#NAME?"}},{"$f":"_xll.RiskData('Risk Summary'!K$48,$A2710)/1000","v":{"$error":"#NAME?"}},{"$f":"_xll.RiskData('Risk Summary'!L$48,$A2710)/1000","v":{"$error":"#NAME?"}},null,null,{"$f":"(_xll.RiskData(NR_to_Cash!C$18,$A2710))/1000","v":{"$error":"#NAME?"}},{"$f":"(_xll.RiskData(NR_to_Cash!D$18,$A2710))/1000","v":{"$error":"#NAME?"}},{"$f":"(_xll.RiskData(NR_to_Cash!E$18,$A2710))/1000","v":{"$error":"#NAME?"}}]
[2704,{"$f":"_xll.RiskData('Risk Summary'!J$48,$A2711)/1000","v":{"$error":"#NAME?"}},{"$f":"_xll.RiskData('Risk Summary'!K$48,$A2711)/1000","v":{"$error":"#NAME?"}},{"$f":"_xll.RiskData('Risk Summary'!L$48,$A2711)/1000","v":{"$error":"#NAME?"}},null,null,{"$f":"(_xll.RiskData(NR_to_Cash!C$18,$A2711))/1000","v":{"$error":"#NAME?"}},{"$f":"(_xll.RiskData(NR_to_Cash!D$18,$A2711))/1000","v":{"$error":"#NAME?"}},{"$f":"(_xll.RiskData(NR_to_Cash!E$18,$A2711))/1000","v":{"$error":"#NAME?"}}]
[2705,{"$f":"_xll.RiskData('Risk Summary'!J$48,$A2712)/1000","v":{"$error":"#NAME?"}},{"$f":"_xll.RiskData('Risk Summary'!K$48,$A2712)/1000","v":{"$error":"#NAME?"}},{"$f":"_xll.RiskData('Risk Summary'!L$48,$A2712)/1000","v":{"$error":"#NAME?"}},null,null,{"$f":"(_xll.RiskData(NR_to_Cash!C$18,$A2712))/1000","v":{"$error":"#NAME?"}},{"$f":"(_xll.RiskData(NR_to_Cash!D$18,$A2712))/1000","v":{"$error":"#NAME?"}},{"$f":"(_xll.RiskData(NR_to_Cash!E$18,$A2712))/1000","v":{"$error":"#NAME?"}}]
[2706,{"$f":"_xll.RiskData('Risk Summary'!J$48,$A2713)/1000","v":{"$error":"#NAME?"}},{"$f":"_xll.RiskData('Risk Summary'!K$48,$A2713)/1000","v":{"$error":"#NAME?"}},{"$f":"_xll.RiskData('Risk Summary'!L$48,$A2713)/1000","v":{"$error":"#NAME?"}},null,null,{"$f":"(_xll.RiskData(NR_to_Cash!C$18,$A2713))/1000","v":{"$error":"#NAME?"}},{"$f":"(_xll.RiskData(NR_to_Cash!D$18,$A2713))/1000","v":{"$error":"#NAME?"}},{"$f":"(_xll.RiskData(NR_to_Cash!E$18,$A2713))/1000","v":{"$error":"#NAME?"}}]
[2707,{"$f":"_xll.RiskData('Risk Summary'!J$48,$A2714)/1000","v":{"$error":"#NAME?"}},{"$f":"_xll.RiskData('Risk Summary'!K$48,$A2714)/1000","v":{"$error":"#NAME?"}},{"$f":"_xll.RiskData('Risk Summary'!L$48,$A2714)/1000","v":{"$error":"#NAME?"}},null,null,{"$f":"(_xll.RiskData(NR_to_Cash!C$18,$A2714))/1000","v":{"$error":"#NAME?"}},{"$f":"(_xll.RiskData(NR_to_Cash!D$18,$A2714))/1000","v":{"$error":"#NAME?"}},{"$f":"(_xll.RiskData(NR_to_Cash!E$18,$A2714))/1000","v":{"$error":"#NAME?"}}]
[2708,{"$f":"_xll.RiskData('Risk Summary'!J$48,$A2715)/1000","v":{"$error":"#NAME?"}},{"$f":"_xll.RiskData('Risk Summary'!K$48,$A2715)/1000","v":{"$error":"#NAME?"}},{"$f":"_xll.RiskData('Risk Summary'!L$48,$A2715)/1000","v":{"$error":"#NAME?"}},null,null,{"$f":"(_xll.RiskData(NR_to_Cash!C$18,$A2715))/1000","v":{"$error":"#NAME?"}},{"$f":"(_xll.RiskData(NR_to_Cash!D$18,$A2715))/1000","v":{"$error":"#NAME?"}},{"$f":"(_xll.RiskData(NR_to_Cash!E$18,$A2715))/1000","v":{"$error":"#NAME?"}}]
[2709,{"$f":"_xll.RiskData('Risk Summary'!J$48,$A2716)/1000","v":{"$error":"#NAME?"}},{"$f":"_xll.RiskData('Risk Summary'!K$48,$A2716)/1000","v":{"$error":"#NAME?"}},{"$f":"_xll.RiskData('Risk Summary'!L$48,$A2716)/1000","v":{"$error":"#NAME?"}},null,null,{"$f":"(_xll.RiskData(NR_to_Cash!C$18,$A2716))/1000","v":{"$error":"#NAME?"}},{"$f":"(_xll.RiskData(NR_to_Cash!D$18,$A2716))/1000","v":{"$error":"#NAME?"}},{"$f":"(_xll.RiskData(NR_to_Cash!E$18,$A2716))/1000","v":{"$error":"#NAME?"}}]
[2710,{"$f":"_xll.RiskData('Risk Summary'!J$48,$A2717)/1000","v":{"$error":"#NAME?"}},{"$f":"_xll.RiskData('Risk Summary'!K$48,$A2717)/1000","v":{"$error":"#NAME?"}},{"$f":"_xll.RiskData('Risk Summary'!L$48,$A2717)/1000","v":{"$error":"#NAME?"}},null,null,{"$f":"(_xll.RiskData(NR_to_Cash!C$18,$A2717))/1000","v":{"$error":"#NAME?"}},{"$f":"(_xll.RiskData(NR_to_Cash!D$18,$A2717))/1000","v":{"$error":"#NAME?"}},{"$f":"(_xll.RiskData(NR_to_Cash!E$18,$A2717))/1000","v":{"$error":"#NAME?"}}]
[2711,{"$f":"_xll.RiskData('Risk Summary'!J$48,$A2718)/1000","v":{"$error":"#NAME?"}},{"$f":"_xll.RiskData('Risk Summary'!K$48,$A2718)/1000","v":{"$error":"#NAME?"}},{"$f":"_xll.RiskData('Risk Summary'!L$48,$A2718)/1000","v":{"$error":"#NAME?"}},null,null,{"$f":"(_xll.RiskData(NR_to_Cash!C$18,$A2718))/1000","v":{"$error":"#NAME?"}},{"$f":"(_xll.RiskData(NR_to_Cash!D$18,$A2718))/1000","v":{"$error":"#NAME?"}},{"$f":"(_xll.RiskData(NR_to_Cash!E$18,$A2718))/1000","v":{"$error":"#NAME?"}}]
[2712,{"$f":"_xll.RiskData('Risk Summary'!J$48,$A2719)/1000","v":{"$error":"#NAME?"}},{"$f":"_xll.RiskData('Risk Summary'!K$48,$A2719)/1000","v":{"$error":"#NAME?"}},{"$f":"_xll.RiskData('Risk Summary'!L$48,$A2719)/1000","v":{"$error":"#NAME?"}},null,null,{"$f":"(_xll.RiskData(NR_to_Cash!C$18,$A2719))/1000","v":{"$error":"#NAME?"}},{"$f":"(_xll.RiskData(NR_to_Cash!D$18,$A2719))/1000","v":{"$error":"#NAME?"}},{"$f":"(_xll.RiskData(NR_to_Cash!E$18,$A2719))/1000","v":{"$error":"#NAME?"}}]
[2713,{"$f":"_xll.RiskData('Risk Summary'!J$48,$A2720)/1000","v":{"$error":"#NAME?"}},{"$f":"_xll.RiskData('Risk Summary'!K$48,$A2720)/1000","v":{"$error":"#NAME?"}},{"$f":"_xll.RiskData('Risk Summary'!L$48,$A2720)/1000","v":{"$error":"#NAME?"}},null,null,{"$f":"(_xll.RiskData(NR_to_Cash!C$18,$A2720))/1000","v":{"$error":"#NAME?"}},{"$f":"(_xll.RiskData(NR_to_Cash!D$18,$A2720))/1000","v":{"$error":"#NAME?"}},{"$f":"(_xll.RiskData(NR_to_Cash!E$18,$A2720))/1000","v":{"$error":"#NAME?"}}]
[2714,{"$f":"_xll.RiskData('Risk Summary'!J$48,$A2721)/1000","v":{"$error":"#NAME?"}},{"$f":"_xll.RiskData('Risk Summary'!K$48,$A2721)/1000","v":{"$error":"#NAME?"}},{"$f":"_xll.RiskData('Risk Summary'!L$48,$A2721)/1000","v":{"$error":"#NAME?"}},null,null,{"$f":"(_xll.RiskData(NR_to_Cash!C$18,$A2721))/1000","v":{"$error":"#NAME?"}},{"$f":"(_xll.RiskData(NR_to_Cash!D$18,$A2721))/1000","v":{"$error":"#NAME?"}},{"$f":"(_xll.RiskData(NR_to_Cash!E$18,$A2721))/1000","v":{"$error":"#NAME?"}}]
[2715,{"$f":"_xll.RiskData('Risk Summary'!J$48,$A2722)/1000","v":{"$error":"#NAME?"}},{"$f":"_xll.RiskData('Risk Summary'!K$48,$A2722)/1000","v":{"$error":"#NAME?"}},{"$f":"_xll.RiskData('Risk Summary'!L$48,$A2722)/1000","v":{"$error":"#NAME?"}},null,null,{"$f":"(_xll.RiskData(NR_to_Cash!C$18,$A2722))/1000","v":{"$error":"#NAME?"}},{"$f":"(_xll.RiskData(NR_to_Cash!D$18,$A2722))/1000","v":{"$error":"#NAME?"}},{"$f":"(_xll.RiskData(NR_to_Cash!E$18,$A2722))/1000","v":{"$error":"#NAME?"}}]
[2716,{"$f":"_xll.RiskData('Risk Summary'!J$48,$A2723)/1000","v":{"$error":"#NAME?"}},{"$f":"_xll.RiskData('Risk Summary'!K$48,$A2723)/1000","v":{"$error":"#NAME?"}},{"$f":"_xll.RiskData('Risk Summary'!L$48,$A2723)/1000","v":{"$error":"#NAME?"}},null,null,{"$f":"(_xll.RiskData(NR_to_Cash!C$18,$A2723))/1000","v":{"$error":"#NAME?"}},{"$f":"(_xll.RiskData(NR_to_Cash!D$18,$A2723))/1000","v":{"$error":"#NAME?"}},{"$f":"(_xll.RiskData(NR_to_Cash!E$18,$A2723))/1000","v":{"$error":"#NAME?"}}]
[2717,{"$f":"_xll.RiskData('Risk Summary'!J$48,$A2724)/1000","v":{"$error":"#NAME?"}},{"$f":"_xll.RiskData('Risk Summary'!K$48,$A2724)/1000","v":{"$error":"#NAME?"}},{"$f":"_xll.RiskData('Risk Summary'!L$48,$A2724)/1000","v":{"$error":"#NAME?"}},null,null,{"$f":"(_xll.RiskData(NR_to_Cash!C$18,$A2724))/1000","v":{"$error":"#NAME?"}},{"$f":"(_xll.RiskData(NR_to_Cash!D$18,$A2724))/1000","v":{"$error":"#NAME?"}},{"$f":"(_xll.RiskData(NR_to_Cash!E$18,$A2724))/1000","v":{"$error":"#NAME?"}}]
[2718,{"$f":"_xll.RiskData('Risk Summary'!J$48,$A2725)/1000","v":{"$error":"#NAME?"}},{"$f":"_xll.RiskData('Risk Summary'!K$48,$A2725)/1000","v":{"$error":"#NAME?"}},{"$f":"_xll.RiskData('Risk Summary'!L$48,$A2725)/1000","v":{"$error":"#NAME?"}},null,null,{"$f":"(_xll.RiskData(NR_to_Cash!C$18,$A2725))/1000","v":{"$error":"#NAME?"}},{"$f":"(_xll.RiskData(NR_to_Cash!D$18,$A2725))/1000","v":{"$error":"#NAME?"}},{"$f":"(_xll.RiskData(NR_to_Cash!E$18,$A2725))/1000","v":{"$error":"#NAME?"}}]
[2719,{"$f":"_xll.RiskData('Risk Summary'!J$48,$A2726)/1000","v":{"$error":"#NAME?"}},{"$f":"_xll.RiskData('Risk Summary'!K$48,$A2726)/1000","v":{"$error":"#NAME?"}},{"$f":"_xll.RiskData('Risk Summary'!L$48,$A2726)/1000","v":{"$error":"#NAME?"}},null,null,{"$f":"(_xll.RiskData(NR_to_Cash!C$18,$A2726))/1000","v":{"$error":"#NAME?"}},{"$f":"(_xll.RiskData(NR_to_Cash!D$18,$A2726))/1000","v":{"$error":"#NAME?"}},{"$f":"(_xll.RiskData(NR_to_Cash!E$18,$A2726))/1000","v":{"$error":"#NAME?"}}]
[2720,{"$f":"_xll.RiskData('Risk Summary'!J$48,$A2727)/1000","v":{"$error":"#NAME?"}},{"$f":"_xll.RiskData('Risk Summary'!K$48,$A2727)/1000","v":{"$error":"#NAME?"}},{"$f":"_xll.RiskData('Risk Summary'!L$48,$A2727)/1000","v":{"$error":"#NAME?"}},null,null,{"$f":"(_xll.RiskData(NR_to_Cash!C$18,$A2727))/1000","v":{"$error":"#NAME?"}},{"$f":"(_xll.RiskData(NR_to_Cash!D$18,$A2727))/1000","v":{"$error":"#NAME?"}},{"$f":"(_xll.RiskData(NR_to_Cash!E$18,$A2727))/1000","v":{"$error":"#NAME?"}}]
[2721,{"$f":"_xll.RiskData('Risk Summary'!J$48,$A2728)/1000","v":{"$error":"#NAME?"}},{"$f":"_xll.RiskData('Risk Summary'!K$48,$A2728)/1000","v":{"$error":"#NAME?"}},{"$f":"_xll.RiskData('Risk Summary'!L$48,$A2728)/1000","v":{"$error":"#NAME?"}},null,null,{"$f":"(_xll.RiskData(NR_to_Cash!C$18,$A2728))/1000","v":{"$error":"#NAME?"}},{"$f":"(_xll.RiskData(NR_to_Cash!D$18,$A2728))/1000","v":{"$error":"#NAME?"}},{"$f":"(_xll.RiskData(NR_to_Cash!E$18,$A2728))/1000","v":{"$error":"#NAME?"}}]
[2722,{"$f":"_xll.RiskData('Risk Summary'!J$48,$A2729)/1000","v":{"$error":"#NAME?"}},{"$f":"_xll.RiskData('Risk Summary'!K$48,$A2729)/1000","v":{"$error":"#NAME?"}},{"$f":"_xll.RiskData('Risk Summary'!L$48,$A2729)/1000","v":{"$error":"#NAME?"}},null,null,{"$f":"(_xll.RiskData(NR_to_Cash!C$18,$A2729))/1000","v":{"$error":"#NAME?"}},{"$f":"(_xll.RiskData(NR_to_Cash!D$18,$A2729))/1000","v":{"$error":"#NAME?"}},{"$f":"(_xll.RiskData(NR_to_Cash!E$18,$A2729))/1000","v":{"$error":"#NAME?"}}]
[2723,{"$f":"_xll.RiskData('Risk Summary'!J$48,$A2730)/1000","v":{"$error":"#NAME?"}},{"$f":"_xll.RiskData('Risk Summary'!K$48,$A2730)/1000","v":{"$error":"#NAME?"}},{"$f":"_xll.RiskData('Risk Summary'!L$48,$A2730)/1000","v":{"$error":"#NAME?"}},null,null,{"$f":"(_xll.RiskData(NR_to_Cash!C$18,$A2730))/1000","v":{"$error":"#NAME?"}},{"$f":"(_xll.RiskData(NR_to_Cash!D$18,$A2730))/1000","v":{"$error":"#NAME?"}},{"$f":"(_xll.RiskData(NR_to_Cash!E$18,$A2730))/1000","v":{"$error":"#NAME?"}}]
[2724,{"$f":"_xll.RiskData('Risk Summary'!J$48,$A2731)/1000","v":{"$error":"#NAME?"}},{"$f":"_xll.RiskData('Risk Summary'!K$48,$A2731)/1000","v":{"$error":"#NAME?"}},{"$f":"_xll.RiskData('Risk Summary'!L$48,$A2731)/1000","v":{"$error":"#NAME?"}},null,null,{"$f":"(_xll.RiskData(NR_to_Cash!C$18,$A2731))/1000","v":{"$error":"#NAME?"}},{"$f":"(_xll.RiskData(NR_to_Cash!D$18,$A2731))/1000","v":{"$error":"#NAME?"}},{"$f":"(_xll.RiskData(NR_to_Cash!E$18,$A2731))/1000","v":{"$error":"#NAME?"}}]
[2725,{"$f":"_xll.RiskData('Risk Summary'!J$48,$A2732)/1000","v":{"$error":"#NAME?"}},{"$f":"_xll.RiskData('Risk Summary'!K$48,$A2732)/1000","v":{"$error":"#NAME?"}},{"$f":"_xll.RiskData('Risk Summary'!L$48,$A2732)/1000","v":{"$error":"#NAME?"}},null,null,{"$f":"(_xll.RiskData(NR_to_Cash!C$18,$A2732))/1000","v":{"$error":"#NAME?"}},{"$f":"(_xll.RiskData(NR_to_Cash!D$18,$A2732))/1000","v":{"$error":"#NAME?"}},{"$f":"(_xll.RiskData(NR_to_Cash!E$18,$A2732))/1000","v":{"$error":"#NAME?"}}]
[2726,{"$f":"_xll.RiskData('Risk Summary'!J$48,$A2733)/1000","v":{"$error":"#NAME?"}},{"$f":"_xll.RiskData('Risk Summary'!K$48,$A2733)/1000","v":{"$error":"#NAME?"}},{"$f":"_xll.RiskData('Risk Summary'!L$48,$A2733)/1000","v":{"$error":"#NAME?"}},null,null,{"$f":"(_xll.RiskData(NR_to_Cash!C$18,$A2733))/1000","v":{"$error":"#NAME?"}},{"$f":"(_xll.RiskData(NR_to_Cash!D$18,$A2733))/1000","v":{"$error":"#NAME?"}},{"$f":"(_xll.RiskData(NR_to_Cash!E$18,$A2733))/1000","v":{"$error":"#NAME?"}}]
[2727,{"$f":"_xll.RiskData('Risk Summary'!J$48,$A2734)/1000","v":{"$error":"#NAME?"}},{"$f":"_xll.RiskData('Risk Summary'!K$48,$A2734)/1000","v":{"$error":"#NAME?"}},{"$f":"_xll.RiskData('Risk Summary'!L$48,$A2734)/1000","v":{"$error":"#NAME?"}},null,null,{"$f":"(_xll.RiskData(NR_to_Cash!C$18,$A2734))/1000","v":{"$error":"#NAME?"}},{"$f":"(_xll.RiskData(NR_to_Cash!D$18,$A2734))/1000","v":{"$error":"#NAME?"}},{"$f":"(_xll.RiskData(NR_to_Cash!E$18,$A2734))/1000","v":{"$error":"#NAME?"}}]
[2728,{"$f":"_xll.RiskData('Risk Summary'!J$48,$A2735)/1000","v":{"$error":"#NAME?"}},{"$f":"_xll.RiskData('Risk Summary'!K$48,$A2735)/1000","v":{"$error":"#NAME?"}},{"$f":"_xll.RiskData('Risk Summary'!L$48,$A2735)/1000","v":{"$error":"#NAME?"}},null,null,{"$f":"(_xll.RiskData(NR_to_Cash!C$18,$A2735))/1000","v":{"$error":"#NAME?"}},{"$f":"(_xll.RiskData(NR_to_Cash!D$18,$A2735))/1000","v":{"$error":"#NAME?"}},{"$f":"(_xll.RiskData(NR_to_Cash!E$18,$A2735))/1000","v":{"$error":"#NAME?"}}]
[2729,{"$f":"_xll.RiskData('Risk Summary'!J$48,$A2736)/1000","v":{"$error":"#NAME?"}},{"$f":"_xll.RiskData('Risk Summary'!K$48,$A2736)/1000","v":{"$error":"#NAME?"}},{"$f":"_xll.RiskData('Risk Summary'!L$48,$A2736)/1000","v":{"$error":"#NAME?"}},null,null,{"$f":"(_xll.RiskData(NR_to_Cash!C$18,$A2736))/1000","v":{"$error":"#NAME?"}},{"$f":"(_xll.RiskData(NR_to_Cash!D$18,$A2736))/1000","v":{"$error":"#NAME?"}},{"$f":"(_xll.RiskData(NR_to_Cash!E$18,$A2736))/1000","v":{"$error":"#NAME?"}}]
[2730,{"$f":"_xll.RiskData('Risk Summary'!J$48,$A2737)/1000","v":{"$error":"#NAME?"}},{"$f":"_xll.RiskData('Risk Summary'!K$48,$A2737)/1000","v":{"$error":"#NAME?"}},{"$f":"_xll.RiskData('Risk Summary'!L$48,$A2737)/1000","v":{"$error":"#NAME?"}},null,null,{"$f":"(_xll.RiskData(NR_to_Cash!C$18,$A2737))/1000","v":{"$error":"#NAME?"}},{"$f":"(_xll.RiskData(NR_to_Cash!D$18,$A2737))/1000","v":{"$error":"#NAME?"}},{"$f":"(_xll.RiskData(NR_to_Cash!E$18,$A2737))/1000","v":{"$error":"#NAME?"}}]
[2731,{"$f":"_xll.RiskData('Risk Summary'!J$48,$A2738)/1000","v":{"$error":"#NAME?"}},{"$f":"_xll.RiskData('Risk Summary'!K$48,$A2738)/1000","v":{"$error":"#NAME?"}},{"$f":"_xll.RiskData('Risk Summary'!L$48,$A2738)/1000","v":{"$error":"#NAME?"}},null,null,{"$f":"(_xll.RiskData(NR_to_Cash!C$18,$A2738))/1000","v":{"$error":"#NAME?"}},{"$f":"(_xll.RiskData(NR_to_Cash!D$18,$A2738))/1000","v":{"$error":"#NAME?"}},{"$f":"(_xll.RiskData(NR_to_Cash!E$18,$A2738))/1000","v":{"$error":"#NAME?"}}]
[2732,{"$f":"_xll.RiskData('Risk Summary'!J$48,$A2739)/1000","v":{"$error":"#NAME?"}},{"$f":"_xll.RiskData('Risk Summary'!K$48,$A2739)/1000","v":{"$error":"#NAME?"}},{"$f":"_xll.RiskData('Risk Summary'!L$48,$A2739)/1000","v":{"$error":"#NAME?"}},null,null,{"$f":"(_xll.RiskData(NR_to_Cash!C$18,$A2739))/1000","v":{"$error":"#NAME?"}},{"$f":"(_xll.RiskData(NR_to_Cash!D$18,$A2739))/1000","v":{"$error":"#NAME?"}},{"$f":"(_xll.RiskData(NR_to_Cash!E$18,$A2739))/1000","v":{"$error":"#NAME?"}}]
[2733,{"$f":"_xll.RiskData('Risk Summary'!J$48,$A2740)/1000","v":{"$error":"#NAME?"}},{"$f":"_xll.RiskData('Risk Summary'!K$48,$A2740)/1000","v":{"$error":"#NAME?"}},{"$f":"_xll.RiskData('Risk Summary'!L$48,$A2740)/1000","v":{"$error":"#NAME?"}},null,null,{"$f":"(_xll.RiskData(NR_to_Cash!C$18,$A2740))/1000","v":{"$error":"#NAME?"}},{"$f":"(_xll.RiskData(NR_to_Cash!D$18,$A2740))/1000","v":{"$error":"#NAME?"}},{"$f":"(_xll.RiskData(NR_to_Cash!E$18,$A2740))/1000","v":{"$error":"#NAME?"}}]
[2734,{"$f":"_xll.RiskData('Risk Summary'!J$48,$A2741)/1000","v":{"$error":"#NAME?"}},{"$f":"_xll.RiskData('Risk Summary'!K$48,$A2741)/1000","v":{"$error":"#NAME?"}},{"$f":"_xll.RiskData('Risk Summary'!L$48,$A2741)/1000","v":{"$error":"#NAME?"}},null,null,{"$f":"(_xll.RiskData(NR_to_Cash!C$18,$A2741))/1000","v":{"$error":"#NAME?"}},{"$f":"(_xll.RiskData(NR_to_Cash!D$18,$A2741))/1000","v":{"$error":"#NAME?"}},{"$f":"(_xll.RiskData(NR_to_Cash!E$18,$A2741))/1000","v":{"$error":"#NAME?"}}]
[2735,{"$f":"_xll.RiskData('Risk Summary'!J$48,$A2742)/1000","v":{"$error":"#NAME?"}},{"$f":"_xll.RiskData('Risk Summary'!K$48,$A2742)/1000","v":{"$error":"#NAME?"}},{"$f":"_xll.RiskData('Risk Summary'!L$48,$A2742)/1000","v":{"$error":"#NAME?"}},null,null,{"$f":"(_xll.RiskData(NR_to_Cash!C$18,$A2742))/1000","v":{"$error":"#NAME?"}},{"$f":"(_xll.RiskData(NR_to_Cash!D$18,$A2742))/1000","v":{"$error":"#NAME?"}},{"$f":"(_xll.RiskData(NR_to_Cash!E$18,$A2742))/1000","v":{"$error":"#NAME?"}}]
[2736,{"$f":"_xll.RiskData('Risk Summary'!J$48,$A2743)/1000","v":{"$error":"#NAME?"}},{"$f":"_xll.RiskData('Risk Summary'!K$48,$A2743)/1000","v":{"$error":"#NAME?"}},{"$f":"_xll.RiskData('Risk Summary'!L$48,$A2743)/1000","v":{"$error":"#NAME?"}},null,null,{"$f":"(_xll.RiskData(NR_to_Cash!C$18,$A2743))/1000","v":{"$error":"#NAME?"}},{"$f":"(_xll.RiskData(NR_to_Cash!D$18,$A2743))/1000","v":{"$error":"#NAME?"}},{"$f":"(_xll.RiskData(NR_to_Cash!E$18,$A2743))/1000","v":{"$error":"#NAME?"}}]
[2737,{"$f":"_xll.RiskData('Risk Summary'!J$48,$A2744)/1000","v":{"$error":"#NAME?"}},{"$f":"_xll.RiskData('Risk Summary'!K$48,$A2744)/1000","v":{"$error":"#NAME?"}},{"$f":"_xll.RiskData('Risk Summary'!L$48,$A2744)/1000","v":{"$error":"#NAME?"}},null,null,{"$f":"(_xll.RiskData(NR_to_Cash!C$18,$A2744))/1000","v":{"$error":"#NAME?"}},{"$f":"(_xll.RiskData(NR_to_Cash!D$18,$A2744))/1000","v":{"$error":"#NAME?"}},{"$f":"(_xll.RiskData(NR_to_Cash!E$18,$A2744))/1000","v":{"$error":"#NAME?"}}]
[2738,{"$f":"_xll.RiskData('Risk Summary'!J$48,$A2745)/1000","v":{"$error":"#NAME?"}},{"$f":"_xll.RiskData('Risk Summary'!K$48,$A2745)/1000","v":{"$error":"#NAME?"}},{"$f":"_xll.RiskData('Risk Summary'!L$48,$A2745)/1000","v":{"$error":"#NAME?"}},null,null,{"$f":"(_xll.RiskData(NR_to_Cash!C$18,$A2745))/1000","v":{"$error":"#NAME?"}},{"$f":"(_xll.RiskData(NR_to_Cash!D$18,$A2745))/1000","v":{"$error":"#NAME?"}},{"$f":"(_xll.RiskData(NR_to_Cash!E$18,$A2745))/1000","v":{"$error":"#NAME?"}}]
[2739,{"$f":"_xll.RiskData('Risk Summary'!J$48,$A2746)/1000","v":{"$error":"#NAME?"}},{"$f":"_xll.RiskData('Risk Summary'!K$48,$A2746)/1000","v":{"$error":"#NAME?"}},{"$f":"_xll.RiskData('Risk Summary'!L$48,$A2746)/1000","v":{"$error":"#NAME?"}},null,null,{"$f":"(_xll.RiskData(NR_to_Cash!C$18,$A2746))/1000","v":{"$error":"#NAME?"}},{"$f":"(_xll.RiskData(NR_to_Cash!D$18,$A2746))/1000","v":{"$error":"#NAME?"}},{"$f":"(_xll.RiskData(NR_to_Cash!E$18,$A2746))/1000","v":{"$error":"#NAME?"}}]
[2740,{"$f":"_xll.RiskData('Risk Summary'!J$48,$A2747)/1000","v":{"$error":"#NAME?"}},{"$f":"_xll.RiskData('Risk Summary'!K$48,$A2747)/1000","v":{"$error":"#NAME?"}},{"$f":"_xll.RiskData('Risk Summary'!L$48,$A2747)/1000","v":{"$error":"#NAME?"}},null,null,{"$f":"(_xll.RiskData(NR_to_Cash!C$18,$A2747))/1000","v":{"$error":"#NAME?"}},{"$f":"(_xll.RiskData(NR_to_Cash!D$18,$A2747))/1000","v":{"$error":"#NAME?"}},{"$f":"(_xll.RiskData(NR_to_Cash!E$18,$A2747))/1000","v":{"$error":"#NAME?"}}]
[2741,{"$f":"_xll.RiskData('Risk Summary'!J$48,$A2748)/1000","v":{"$error":"#NAME?"}},{"$f":"_xll.RiskData('Risk Summary'!K$48,$A2748)/1000","v":{"$error":"#NAME?"}},{"$f":"_xll.RiskData('Risk Summary'!L$48,$A2748)/1000","v":{"$error":"#NAME?"}},null,null,{"$f":"(_xll.RiskData(NR_to_Cash!C$18,$A2748))/1000","v":{"$error":"#NAME?"}},{"$f":"(_xll.RiskData(NR_to_Cash!D$18,$A2748))/1000","v":{"$error":"#NAME?"}},{"$f":"(_xll.RiskData(NR_to_Cash!E$18,$A2748))/1000","v":{"$error":"#NAME?"}}]
[2742,{"$f":"_xll.RiskData('Risk Summary'!J$48,$A2749)/1000","v":{"$error":"#NAME?"}},{"$f":"_xll.RiskData('Risk Summary'!K$48,$A2749)/1000","v":{"$error":"#NAME?"}},{"$f":"_xll.RiskData('Risk Summary'!L$48,$A2749)/1000","v":{"$error":"#NAME?"}},null,null,{"$f":"(_xll.RiskData(NR_to_Cash!C$18,$A2749))/1000","v":{"$error":"#NAME?"}},{"$f":"(_xll.RiskData(NR_to_Cash!D$18,$A2749))/1000","v":{"$error":"#NAME?"}},{"$f":"(_xll.RiskData(NR_to_Cash!E$18,$A2749))/1000","v":{"$error":"#NAME?"}}]
[2743,{"$f":"_xll.RiskData('Risk Summary'!J$48,$A2750)/1000","v":{"$error":"#NAME?"}},{"$f":"_xll.RiskData('Risk Summary'!K$48,$A2750)/1000","v":{"$error":"#NAME?"}},{"$f":"_xll.RiskData('Risk Summary'!L$48,$A2750)/1000","v":{"$error":"#NAME?"}},null,null,{"$f":"(_xll.RiskData(NR_to_Cash!C$18,$A2750))/1000","v":{"$error":"#NAME?"}},{"$f":"(_xll.RiskData(NR_to_Cash!D$18,$A2750))/1000","v":{"$error":"#NAME?"}},{"$f":"(_xll.RiskData(NR_to_Cash!E$18,$A2750))/1000","v":{"$error":"#NAME?"}}]
[2744,{"$f":"_xll.RiskData('Risk Summary'!J$48,$A2751)/1000","v":{"$error":"#NAME?"}},{"$f":"_xll.RiskData('Risk Summary'!K$48,$A2751)/1000","v":{"$error":"#NAME?"}},{"$f":"_xll.RiskData('Risk Summary'!L$48,$A2751)/1000","v":{"$error":"#NAME?"}},null,null,{"$f":"(_xll.RiskData(NR_to_Cash!C$18,$A2751))/1000","v":{"$error":"#NAME?"}},{"$f":"(_xll.RiskData(NR_to_Cash!D$18,$A2751))/1000","v":{"$error":"#NAME?"}},{"$f":"(_xll.RiskData(NR_to_Cash!E$18,$A2751))/1000","v":{"$error":"#NAME?"}}]
[2745,{"$f":"_xll.RiskData('Risk Summary'!J$48,$A2752)/1000","v":{"$error":"#NAME?"}},{"$f":"_xll.RiskData('Risk Summary'!K$48,$A2752)/1000","v":{"$error":"#NAME?"}},{"$f":"_xll.RiskData('Risk Summary'!L$48,$A2752)/1000","v":{"$error":"#NAME?"}},null,null,{"$f":"(_xll.RiskData(NR_to_Cash!C$18,$A2752))/1000","v":{"$error":"#NAME?"}},{"$f":"(_xll.RiskData(NR_to_Cash!D$18,$A2752))/1000","v":{"$error":"#NAME?"}},{"$f":"(_xll.RiskData(NR_to_Cash!E$18,$A2752))/1000","v":{"$error":"#NAME?"}}]
[2746,{"$f":"_xll.RiskData('Risk Summary'!J$48,$A2753)/1000","v":{"$error":"#NAME?"}},{"$f":"_xll.RiskData('Risk Summary'!K$48,$A2753)/1000","v":{"$error":"#NAME?"}},{"$f":"_xll.RiskData('Risk Summary'!L$48,$A2753)/1000","v":{"$error":"#NAME?"}},null,null,{"$f":"(_xll.RiskData(NR_to_Cash!C$18,$A2753))/1000","v":{"$error":"#NAME?"}},{"$f":"(_xll.RiskData(NR_to_Cash!D$18,$A2753))/1000","v":{"$error":"#NAME?"}},{"$f":"(_xll.RiskData(NR_to_Cash!E$18,$A2753))/1000","v":{"$error":"#NAME?"}}]
[2747,{"$f":"_xll.RiskData('Risk Summary'!J$48,$A2754)/1000","v":{"$error":"#NAME?"}},{"$f":"_xll.RiskData('Risk Summary'!K$48,$A2754)/1000","v":{"$error":"#NAME?"}},{"$f":"_xll.RiskData('Risk Summary'!L$48,$A2754)/1000","v":{"$error":"#NAME?"}},null,null,{"$f":"(_xll.RiskData(NR_to_Cash!C$18,$A2754))/1000","v":{"$error":"#NAME?"}},{"$f":"(_xll.RiskData(NR_to_Cash!D$18,$A2754))/1000","v":{"$error":"#NAME?"}},{"$f":"(_xll.RiskData(NR_to_Cash!E$18,$A2754))/1000","v":{"$error":"#NAME?"}}]
[2748,{"$f":"_xll.RiskData('Risk Summary'!J$48,$A2755)/1000","v":{"$error":"#NAME?"}},{"$f":"_xll.RiskData('Risk Summary'!K$48,$A2755)/1000","v":{"$error":"#NAME?"}},{"$f":"_xll.RiskData('Risk Summary'!L$48,$A2755)/1000","v":{"$error":"#NAME?"}},null,null,{"$f":"(_xll.RiskData(NR_to_Cash!C$18,$A2755))/1000","v":{"$error":"#NAME?"}},{"$f":"(_xll.RiskData(NR_to_Cash!D$18,$A2755))/1000","v":{"$error":"#NAME?"}},{"$f":"(_xll.RiskData(NR_to_Cash!E$18,$A2755))/1000","v":{"$error":"#NAME?"}}]
[2749,{"$f":"_xll.RiskData('Risk Summary'!J$48,$A2756)/1000","v":{"$error":"#NAME?"}},{"$f":"_xll.RiskData('Risk Summary'!K$48,$A2756)/1000","v":{"$error":"#NAME?"}},{"$f":"_xll.RiskData('Risk Summary'!L$48,$A2756)/1000","v":{"$error":"#NAME?"}},null,null,{"$f":"(_xll.RiskData(NR_to_Cash!C$18,$A2756))/1000","v":{"$error":"#NAME?"}},{"$f":"(_xll.RiskData(NR_to_Cash!D$18,$A2756))/1000","v":{"$error":"#NAME?"}},{"$f":"(_xll.RiskData(NR_to_Cash!E$18,$A2756))/1000","v":{"$error":"#NAME?"}}]
[2750,{"$f":"_xll.RiskData('Risk Summary'!J$48,$A2757)/1000","v":{"$error":"#NAME?"}},{"$f":"_xll.RiskData('Risk Summary'!K$48,$A2757)/1000","v":{"$error":"#NAME?"}},{"$f":"_xll.RiskData('Risk Summary'!L$48,$A2757)/1000","v":{"$error":"#NAME?"}},null,null,{"$f":"(_xll.RiskData(NR_to_Cash!C$18,$A2757))/1000","v":{"$error":"#NAME?"}},{"$f":"(_xll.RiskData(NR_to_Cash!D$18,$A2757))/1000","v":{"$error":"#NAME?"}},{"$f":"(_xll.RiskData(NR_to_Cash!E$18,$A2757))/1000","v":{"$error":"#NAME?"}}]
[2751,{"$f":"_xll.RiskData('Risk Summary'!J$48,$A2758)/1000","v":{"$error":"#NAME?"}},{"$f":"_xll.RiskData('Risk Summary'!K$48,$A2758)/1000","v":{"$error":"#NAME?"}},{"$f":"_xll.RiskData('Risk Summary'!L$48,$A2758)/1000","v":{"$error":"#NAME?"}},null,null,{"$f":"(_xll.RiskData(NR_to_Cash!C$18,$A2758))/1000","v":{"$error":"#NAME?"}},{"$f":"(_xll.RiskData(NR_to_Cash!D$18,$A2758))/1000","v":{"$error":"#NAME?"}},{"$f":"(_xll.RiskData(NR_to_Cash!E$18,$A2758))/1000","v":{"$error":"#NAME?"}}]
[2752,{"$f":"_xll.RiskData('Risk Summary'!J$48,$A2759)/1000","v":{"$error":"#NAME?"}},{"$f":"_xll.RiskData('Risk Summary'!K$48,$A2759)/1000","v":{"$error":"#NAME?"}},{"$f":"_xll.RiskData('Risk Summary'!L$48,$A2759)/1000","v":{"$error":"#NAME?"}},null,null,{"$f":"(_xll.RiskData(NR_to_Cash!C$18,$A2759))/1000","v":{"$error":"#NAME?"}},{"$f":"(_xll.RiskData(NR_to_Cash!D$18,$A2759))/1000","v":{"$error":"#NAME?"}},{"$f":"(_xll.RiskData(NR_to_Cash!E$18,$A2759))/1000","v":{"$error":"#NAME?"}}]
[2753,{"$f":"_xll.RiskData('Risk Summary'!J$48,$A2760)/1000","v":{"$error":"#NAME?"}},{"$f":"_xll.RiskData('Risk Summary'!K$48,$A2760)/1000","v":{"$error":"#NAME?"}},{"$f":"_xll.RiskData('Risk Summary'!L$48,$A2760)/1000","v":{"$error":"#NAME?"}},null,null,{"$f":"(_xll.RiskData(NR_to_Cash!C$18,$A2760))/1000","v":{"$error":"#NAME?"}},{"$f":"(_xll.RiskData(NR_to_Cash!D$18,$A2760))/1000","v":{"$error":"#NAME?"}},{"$f":"(_xll.RiskData(NR_to_Cash!E$18,$A2760))/1000","v":{"$error":"#NAME?"}}]
[2754,{"$f":"_xll.RiskData('Risk Summary'!J$48,$A2761)/1000","v":{"$error":"#NAME?"}},{"$f":"_xll.RiskData('Risk Summary'!K$48,$A2761)/1000","v":{"$error":"#NAME?"}},{"$f":"_xll.RiskData('Risk Summary'!L$48,$A2761)/1000","v":{"$error":"#NAME?"}},null,null,{"$f":"(_xll.RiskData(NR_to_Cash!C$18,$A2761))/1000","v":{"$error":"#NAME?"}},{"$f":"(_xll.RiskData(NR_to_Cash!D$18,$A2761))/1000","v":{"$error":"#NAME?"}},{"$f":"(_xll.RiskData(NR_to_Cash!E$18,$A2761))/1000","v":{"$error":"#NAME?"}}]
[2755,{"$f":"_xll.RiskData('Risk Summary'!J$48,$A2762)/1000","v":{"$error":"#NAME?"}},{"$f":"_xll.RiskData('Risk Summary'!K$48,$A2762)/1000","v":{"$error":"#NAME?"}},{"$f":"_xll.RiskData('Risk Summary'!L$48,$A2762)/1000","v":{"$error":"#NAME?"}},null,null,{"$f":"(_xll.RiskData(NR_to_Cash!C$18,$A2762))/1000","v":{"$error":"#NAME?"}},{"$f":"(_xll.RiskData(NR_to_Cash!D$18,$A2762))/1000","v":{"$error":"#NAME?"}},{"$f":"(_xll.RiskData(NR_to_Cash!E$18,$A2762))/1000","v":{"$error":"#NAME?"}}]
[2756,{"$f":"_xll.RiskData('Risk Summary'!J$48,$A2763)/1000","v":{"$error":"#NAME?"}},{"$f":"_xll.RiskData('Risk Summary'!K$48,$A2763)/1000","v":{"$error":"#NAME?"}},{"$f":"_xll.RiskData('Risk Summary'!L$48,$A2763)/1000","v":{"$error":"#NAME?"}},null,null,{"$f":"(_xll.RiskData(NR_to_Cash!C$18,$A2763))/1000","v":{"$error":"#NAME?"}},{"$f":"(_xll.RiskData(NR_to_Cash!D$18,$A2763))/1000","v":{"$error":"#NAME?"}},{"$f":"(_xll.RiskData(NR_to_Cash!E$18,$A2763))/1000","v":{"$error":"#NAME?"}}]
[2757,{"$f":"_xll.RiskData('Risk Summary'!J$48,$A2764)/1000","v":{"$error":"#NAME?"}},{"$f":"_xll.RiskData('Risk Summary'!K$48,$A2764)/1000","v":{"$error":"#NAME?"}},{"$f":"_xll.RiskData('Risk Summary'!L$48,$A2764)/1000","v":{"$error":"#NAME?"}},null,null,{"$f":"(_xll.RiskData(NR_to_Cash!C$18,$A2764))/1000","v":{"$error":"#NAME?"}},{"$f":"(_xll.RiskData(NR_to_Cash!D$18,$A2764))/1000","v":{"$error":"#NAME?"}},{"$f":"(_xll.RiskData(NR_to_Cash!E$18,$A2764))/1000","v":{"$error":"#NAME?"}}]
[2758,{"$f":"_xll.RiskData('Risk Summary'!J$48,$A2765)/1000","v":{"$error":"#NAME?"}},{"$f":"_xll.RiskData('Risk Summary'!K$48,$A2765)/1000","v":{"$error":"#NAME?"}},{"$f":"_xll.RiskData('Risk Summary'!L$48,$A2765)/1000","v":{"$error":"#NAME?"}},null,null,{"$f":"(_xll.RiskData(NR_to_Cash!C$18,$A2765))/1000","v":{"$error":"#NAME?"}},{"$f":"(_xll.RiskData(NR_to_Cash!D$18,$A2765))/1000","v":{"$error":"#NAME?"}},{"$f":"(_xll.RiskData(NR_to_Cash!E$18,$A2765))/1000","v":{"$error":"#NAME?"}}]
[2759,{"$f":"_xll.RiskData('Risk Summary'!J$48,$A2766)/1000","v":{"$error":"#NAME?"}},{"$f":"_xll.RiskData('Risk Summary'!K$48,$A2766)/1000","v":{"$error":"#NAME?"}},{"$f":"_xll.RiskData('Risk Summary'!L$48,$A2766)/1000","v":{"$error":"#NAME?"}},null,null,{"$f":"(_xll.RiskData(NR_to_Cash!C$18,$A2766))/1000","v":{"$error":"#NAME?"}},{"$f":"(_xll.RiskData(NR_to_Cash!D$18,$A2766))/1000","v":{"$error":"#NAME?"}},{"$f":"(_xll.RiskData(NR_to_Cash!E$18,$A2766))/1000","v":{"$error":"#NAME?"}}]
[2760,{"$f":"_xll.RiskData('Risk Summary'!J$48,$A2767)/1000","v":{"$error":"#NAME?"}},{"$f":"_xll.RiskData('Risk Summary'!K$48,$A2767)/1000","v":{"$error":"#NAME?"}},{"$f":"_xll.RiskData('Risk Summary'!L$48,$A2767)/1000","v":{"$error":"#NAME?"}},null,null,{"$f":"(_xll.RiskData(NR_to_Cash!C$18,$A2767))/1000","v":{"$error":"#NAME?"}},{"$f":"(_xll.RiskData(NR_to_Cash!D$18,$A2767))/1000","v":{"$error":"#NAME?"}},{"$f":"(_xll.RiskData(NR_to_Cash!E$18,$A2767))/1000","v":{"$error":"#NAME?"}}]
[2761,{"$f":"_xll.RiskData('Risk Summary'!J$48,$A2768)/1000","v":{"$error":"#NAME?"}},{"$f":"_xll.RiskData('Risk Summary'!K$48,$A2768)/1000","v":{"$error":"#NAME?"}},{"$f":"_xll.RiskData('Risk Summary'!L$48,$A2768)/1000","v":{"$error":"#NAME?"}},null,null,{"$f":"(_xll.RiskData(NR_to_Cash!C$18,$A2768))/1000","v":{"$error":"#NAME?"}},{"$f":"(_xll.RiskData(NR_to_Cash!D$18,$A2768))/1000","v":{"$error":"#NAME?"}},{"$f":"(_xll.RiskData(NR_to_Cash!E$18,$A2768))/1000","v":{"$error":"#NAME?"}}]
[2762,{"$f":"_xll.RiskData('Risk Summary'!J$48,$A2769)/1000","v":{"$error":"#NAME?"}},{"$f":"_xll.RiskData('Risk Summary'!K$48,$A2769)/1000","v":{"$error":"#NAME?"}},{"$f":"_xll.RiskData('Risk Summary'!L$48,$A2769)/1000","v":{"$error":"#NAME?"}},null,null,{"$f":"(_xll.RiskData(NR_to_Cash!C$18,$A2769))/1000","v":{"$error":"#NAME?"}},{"$f":"(_xll.RiskData(NR_to_Cash!D$18,$A2769))/1000","v":{"$error":"#NAME?"}},{"$f":"(_xll.RiskData(NR_to_Cash!E$18,$A2769))/1000","v":{"$error":"#NAME?"}}]
[2763,{"$f":"_xll.RiskData('Risk Summary'!J$48,$A2770)/1000","v":{"$error":"#NAME?"}},{"$f":"_xll.RiskData('Risk Summary'!K$48,$A2770)/1000","v":{"$error":"#NAME?"}},{"$f":"_xll.RiskData('Risk Summary'!L$48,$A2770)/1000","v":{"$error":"#NAME?"}},null,null,{"$f":"(_xll.RiskData(NR_to_Cash!C$18,$A2770))/1000","v":{"$error":"#NAME?"}},{"$f":"(_xll.RiskData(NR_to_Cash!D$18,$A2770))/1000","v":{"$error":"#NAME?"}},{"$f":"(_xll.RiskData(NR_to_Cash!E$18,$A2770))/1000","v":{"$error":"#NAME?"}}]
[2764,{"$f":"_xll.RiskData('Risk Summary'!J$48,$A2771)/1000","v":{"$error":"#NAME?"}},{"$f":"_xll.RiskData('Risk Summary'!K$48,$A2771)/1000","v":{"$error":"#NAME?"}},{"$f":"_xll.RiskData('Risk Summary'!L$48,$A2771)/1000","v":{"$error":"#NAME?"}},null,null,{"$f":"(_xll.RiskData(NR_to_Cash!C$18,$A2771))/1000","v":{"$error":"#NAME?"}},{"$f":"(_xll.RiskData(NR_to_Cash!D$18,$A2771))/1000","v":{"$error":"#NAME?"}},{"$f":"(_xll.RiskData(NR_to_Cash!E$18,$A2771))/1000","v":{"$error":"#NAME?"}}]
[2765,{"$f":"_xll.RiskData('Risk Summary'!J$48,$A2772)/1000","v":{"$error":"#NAME?"}},{"$f":"_xll.RiskData('Risk Summary'!K$48,$A2772)/1000","v":{"$error":"#NAME?"}},{"$f":"_xll.RiskData('Risk Summary'!L$48,$A2772)/1000","v":{"$error":"#NAME?"}},null,null,{"$f":"(_xll.RiskData(NR_to_Cash!C$18,$A2772))/1000","v":{"$error":"#NAME?"}},{"$f":"(_xll.RiskData(NR_to_Cash!D$18,$A2772))/1000","v":{"$error":"#NAME?"}},{"$f":"(_xll.RiskData(NR_to_Cash!E$18,$A2772))/1000","v":{"$error":"#NAME?"}}]
[2766,{"$f":"_xll.RiskData('Risk Summary'!J$48,$A2773)/1000","v":{"$error":"#NAME?"}},{"$f":"_xll.RiskData('Risk Summary'!K$48,$A2773)/1000","v":{"$error":"#NAME?"}},{"$f":"_xll.RiskData('Risk Summary'!L$48,$A2773)/1000","v":{"$error":"#NAME?"}},null,null,{"$f":"(_xll.RiskData(NR_to_Cash!C$18,$A2773))/1000","v":{"$error":"#NAME?"}},{"$f":"(_xll.RiskData(NR_to_Cash!D$18,$A2773))/1000","v":{"$error":"#NAME?"}},{"$f":"(_xll.RiskData(NR_to_Cash!E$18,$A2773))/1000","v":{"$error":"#NAME?"}}]
[2767,{"$f":"_xll.RiskData('Risk Summary'!J$48,$A2774)/1000","v":{"$error":"#NAME?"}},{"$f":"_xll.RiskData('Risk Summary'!K$48,$A2774)/1000","v":{"$error":"#NAME?"}},{"$f":"_xll.RiskData('Risk Summary'!L$48,$A2774)/1000","v":{"$error":"#NAME?"}},null,null,{"$f":"(_xll.RiskData(NR_to_Cash!C$18,$A2774))/1000","v":{"$error":"#NAME?"}},{"$f":"(_xll.RiskData(NR_to_Cash!D$18,$A2774))/1000","v":{"$error":"#NAME?"}},{"$f":"(_xll.RiskData(NR_to_Cash!E$18,$A2774))/1000","v":{"$error":"#NAME?"}}]
[2768,{"$f":"_xll.RiskData('Risk Summary'!J$48,$A2775)/1000","v":{"$error":"#NAME?"}},{"$f":"_xll.RiskData('Risk Summary'!K$48,$A2775)/1000","v":{"$error":"#NAME?"}},{"$f":"_xll.RiskData('Risk Summary'!L$48,$A2775)/1000","v":{"$error":"#NAME?"}},null,null,{"$f":"(_xll.RiskData(NR_to_Cash!C$18,$A2775))/1000","v":{"$error":"#NAME?"}},{"$f":"(_xll.RiskData(NR_to_Cash!D$18,$A2775))/1000","v":{"$error":"#NAME?"}},{"$f":"(_xll.RiskData(NR_to_Cash!E$18,$A2775))/1000","v":{"$error":"#NAME?"}}]
[2769,{"$f":"_xll.RiskData('Risk Summary'!J$48,$A2776)/1000","v":{"$error":"#NAME?"}},{"$f":"_xll.RiskData('Risk Summary'!K$48,$A2776)/1000","v":{"$error":"#NAME?"}},{"$f":"_xll.RiskData('Risk Summary'!L$48,$A2776)/1000","v":{"$error":"#NAME?"}},null,null,{"$f":"(_xll.RiskData(NR_to_Cash!C$18,$A2776))/1000","v":{"$error":"#NAME?"}},{"$f":"(_xll.RiskData(NR_to_Cash!D$18,$A2776))/1000","v":{"$error":"#NAME?"}},{"$f":"(_xll.RiskData(NR_to_Cash!E$18,$A2776))/1000","v":{"$error":"#NAME?"}}]
[2770,{"$f":"_xll.RiskData('Risk Summary'!J$48,$A2777)/1000","v":{"$error":"#NAME?"}},{"$f":"_xll.RiskData('Risk Summary'!K$48,$A2777)/1000","v":{"$error":"#NAME?"}},{"$f":"_xll.RiskData('Risk Summary'!L$48,$A2777)/1000","v":{"$error":"#NAME?"}},null,null,{"$f":"(_xll.RiskData(NR_to_Cash!C$18,$A2777))/1000","v":{"$error":"#NAME?"}},{"$f":"(_xll.RiskData(NR_to_Cash!D$18,$A2777))/1000","v":{"$error":"#NAME?"}},{"$f":"(_xll.RiskData(NR_to_Cash!E$18,$A2777))/1000","v":{"$error":"#NAME?"}}]
[2771,{"$f":"_xll.RiskData('Risk Summary'!J$48,$A2778)/1000","v":{"$error":"#NAME?"}},{"$f":"_xll.RiskData('Risk Summary'!K$48,$A2778)/1000","v":{"$error":"#NAME?"}},{"$f":"_xll.RiskData('Risk Summary'!L$48,$A2778)/1000","v":{"$error":"#NAME?"}},null,null,{"$f":"(_xll.RiskData(NR_to_Cash!C$18,$A2778))/1000","v":{"$error":"#NAME?"}},{"$f":"(_xll.RiskData(NR_to_Cash!D$18,$A2778))/1000","v":{"$error":"#NAME?"}},{"$f":"(_xll.RiskData(NR_to_Cash!E$18,$A2778))/1000","v":{"$error":"#NAME?"}}]
[2772,{"$f":"_xll.RiskData('Risk Summary'!J$48,$A2779)/1000","v":{"$error":"#NAME?"}},{"$f":"_xll.RiskData('Risk Summary'!K$48,$A2779)/1000","v":{"$error":"#NAME?"}},{"$f":"_xll.RiskData('Risk Summary'!L$48,$A2779)/1000","v":{"$error":"#NAME?"}},null,null,{"$f":"(_xll.RiskData(NR_to_Cash!C$18,$A2779))/1000","v":{"$error":"#NAME?"}},{"$f":"(_xll.RiskData(NR_to_Cash!D$18,$A2779))/1000","v":{"$error":"#NAME?"}},{"$f":"(_xll.RiskData(NR_to_Cash!E$18,$A2779))/1000","v":{"$error":"#NAME?"}}]
[2773,{"$f":"_xll.RiskData('Risk Summary'!J$48,$A2780)/1000","v":{"$error":"#NAME?"}},{"$f":"_xll.RiskData('Risk Summary'!K$48,$A2780)/1000","v":{"$error":"#NAME?"}},{"$f":"_xll.RiskData('Risk Summary'!L$48,$A2780)/1000","v":{"$error":"#NAME?"}},null,null,{"$f":"(_xll.RiskData(NR_to_Cash!C$18,$A2780))/1000","v":{"$error":"#NAME?"}},{"$f":"(_xll.RiskData(NR_to_Cash!D$18,$A2780))/1000","v":{"$error":"#NAME?"}},{"$f":"(_xll.RiskData(NR_to_Cash!E$18,$A2780))/1000","v":{"$error":"#NAME?"}}]
[2774,{"$f":"_xll.RiskData('Risk Summary'!J$48,$A2781)/1000","v":{"$error":"#NAME?"}},{"$f":"_xll.RiskData('Risk Summary'!K$48,$A2781)/1000","v":{"$error":"#NAME?"}},{"$f":"_xll.RiskData('Risk Summary'!L$48,$A2781)/1000","v":{"$error":"#NAME?"}},null,null,{"$f":"(_xll.RiskData(NR_to_Cash!C$18,$A2781))/1000","v":{"$error":"#NAME?"}},{"$f":"(_xll.RiskData(NR_to_Cash!D$18,$A2781))/1000","v":{"$error":"#NAME?"}},{"$f":"(_xll.RiskData(NR_to_Cash!E$18,$A2781))/1000","v":{"$error":"#NAME?"}}]
[2775,{"$f":"_xll.RiskData('Risk Summary'!J$48,$A2782)/1000","v":{"$error":"#NAME?"}},{"$f":"_xll.RiskData('Risk Summary'!K$48,$A2782)/1000","v":{"$error":"#NAME?"}},{"$f":"_xll.RiskData('Risk Summary'!L$48,$A2782)/1000","v":{"$error":"#NAME?"}},null,null,{"$f":"(_xll.RiskData(NR_to_Cash!C$18,$A2782))/1000","v":{"$error":"#NAME?"}},{"$f":"(_xll.RiskData(NR_to_Cash!D$18,$A2782))/1000","v":{"$error":"#NAME?"}},{"$f":"(_xll.RiskData(NR_to_Cash!E$18,$A2782))/1000","v":{"$error":"#NAME?"}}]
[2776,{"$f":"_xll.RiskData('Risk Summary'!J$48,$A2783)/1000","v":{"$error":"#NAME?"}},{"$f":"_xll.RiskData('Risk Summary'!K$48,$A2783)/1000","v":{"$error":"#NAME?"}},{"$f":"_xll.RiskData('Risk Summary'!L$48,$A2783)/1000","v":{"$error":"#NAME?"}},null,null,{"$f":"(_xll.RiskData(NR_to_Cash!C$18,$A2783))/1000","v":{"$error":"#NAME?"}},{"$f":"(_xll.RiskData(NR_to_Cash!D$18,$A2783))/1000","v":{"$error":"#NAME?"}},{"$f":"(_xll.RiskData(NR_to_Cash!E$18,$A2783))/1000","v":{"$error":"#NAME?"}}]
[2777,{"$f":"_xll.RiskData('Risk Summary'!J$48,$A2784)/1000","v":{"$error":"#NAME?"}},{"$f":"_xll.RiskData('Risk Summary'!K$48,$A2784)/1000","v":{"$error":"#NAME?"}},{"$f":"_xll.RiskData('Risk Summary'!L$48,$A2784)/1000","v":{"$error":"#NAME?"}},null,null,{"$f":"(_xll.RiskData(NR_to_Cash!C$18,$A2784))/1000","v":{"$error":"#NAME?"}},{"$f":"(_xll.RiskData(NR_to_Cash!D$18,$A2784))/1000","v":{"$error":"#NAME?"}},{"$f":"(_xll.RiskData(NR_to_Cash!E$18,$A2784))/1000","v":{"$error":"#NAME?"}}]
[2778,{"$f":"_xll.RiskData('Risk Summary'!J$48,$A2785)/1000","v":{"$error":"#NAME?"}},{"$f":"_xll.RiskData('Risk Summary'!K$48,$A2785)/1000","v":{"$error":"#NAME?"}},{"$f":"_xll.RiskData('Risk Summary'!L$48,$A2785)/1000","v":{"$error":"#NAME?"}},null,null,{"$f":"(_xll.RiskData(NR_to_Cash!C$18,$A2785))/1000","v":{"$error":"#NAME?"}},{"$f":"(_xll.RiskData(NR_to_Cash!D$18,$A2785))/1000","v":{"$error":"#NAME?"}},{"$f":"(_xll.RiskData(NR_to_Cash!E$18,$A2785))/1000","v":{"$error":"#NAME?"}}]
[2779,{"$f":"_xll.RiskData('Risk Summary'!J$48,$A2786)/1000","v":{"$error":"#NAME?"}},{"$f":"_xll.RiskData('Risk Summary'!K$48,$A2786)/1000","v":{"$error":"#NAME?"}},{"$f":"_xll.RiskData('Risk Summary'!L$48,$A2786)/1000","v":{"$error":"#NAME?"}},null,null,{"$f":"(_xll.RiskData(NR_to_Cash!C$18,$A2786))/1000","v":{"$error":"#NAME?"}},{"$f":"(_xll.RiskData(NR_to_Cash!D$18,$A2786))/1000","v":{"$error":"#NAME?"}},{"$f":"(_xll.RiskData(NR_to_Cash!E$18,$A2786))/1000","v":{"$error":"#NAME?"}}]
[2780,{"$f":"_xll.RiskData('Risk Summary'!J$48,$A2787)/1000","v":{"$error":"#NAME?"}},{"$f":"_xll.RiskData('Risk Summary'!K$48,$A2787)/1000","v":{"$error":"#NAME?"}},{"$f":"_xll.RiskData('Risk Summary'!L$48,$A2787)/1000","v":{"$error":"#NAME?"}},null,null,{"$f":"(_xll.RiskData(NR_to_Cash!C$18,$A2787))/1000","v":{"$error":"#NAME?"}},{"$f":"(_xll.RiskData(NR_to_Cash!D$18,$A2787))/1000","v":{"$error":"#NAME?"}},{"$f":"(_xll.RiskData(NR_to_Cash!E$18,$A2787))/1000","v":{"$error":"#NAME?"}}]
[2781,{"$f":"_xll.RiskData('Risk Summary'!J$48,$A2788)/1000","v":{"$error":"#NAME?"}},{"$f":"_xll.RiskData('Risk Summary'!K$48,$A2788)/1000","v":{"$error":"#NAME?"}},{"$f":"_xll.RiskData('Risk Summary'!L$48,$A2788)/1000","v":{"$error":"#NAME?"}},null,null,{"$f":"(_xll.RiskData(NR_to_Cash!C$18,$A2788))/1000","v":{"$error":"#NAME?"}},{"$f":"(_xll.RiskData(NR_to_Cash!D$18,$A2788))/1000","v":{"$error":"#NAME?"}},{"$f":"(_xll.RiskData(NR_to_Cash!E$18,$A2788))/1000","v":{"$error":"#NAME?"}}]
[2782,{"$f":"_xll.RiskData('Risk Summary'!J$48,$A2789)/1000","v":{"$error":"#NAME?"}},{"$f":"_xll.RiskData('Risk Summary'!K$48,$A2789)/1000","v":{"$error":"#NAME?"}},{"$f":"_xll.RiskData('Risk Summary'!L$48,$A2789)/1000","v":{"$error":"#NAME?"}},null,null,{"$f":"(_xll.RiskData(NR_to_Cash!C$18,$A2789))/1000","v":{"$error":"#NAME?"}},{"$f":"(_xll.RiskData(NR_to_Cash!D$18,$A2789))/1000","v":{"$error":"#NAME?"}},{"$f":"(_xll.RiskData(NR_to_Cash!E$18,$A2789))/1000","v":{"$error":"#NAME?"}}]
[2783,{"$f":"_xll.RiskData('Risk Summary'!J$48,$A2790)/1000","v":{"$error":"#NAME?"}},{"$f":"_xll.RiskData('Risk Summary'!K$48,$A2790)/1000","v":{"$error":"#NAME?"}},{"$f":"_xll.RiskData('Risk Summary'!L$48,$A2790)/1000","v":{"$error":"#NAME?"}},null,null,{"$f":"(_xll.RiskData(NR_to_Cash!C$18,$A2790))/1000","v":{"$error":"#NAME?"}},{"$f":"(_xll.RiskData(NR_to_Cash!D$18,$A2790))/1000","v":{"$error":"#NAME?"}},{"$f":"(_xll.RiskData(NR_to_Cash!E$18,$A2790))/1000","v":{"$error":"#NAME?"}}]
[2784,{"$f":"_xll.RiskData('Risk Summary'!J$48,$A2791)/1000","v":{"$error":"#NAME?"}},{"$f":"_xll.RiskData('Risk Summary'!K$48,$A2791)/1000","v":{"$error":"#NAME?"}},{"$f":"_xll.RiskData('Risk Summary'!L$48,$A2791)/1000","v":{"$error":"#NAME?"}},null,null,{"$f":"(_xll.RiskData(NR_to_Cash!C$18,$A2791))/1000","v":{"$error":"#NAME?"}},{"$f":"(_xll.RiskData(NR_to_Cash!D$18,$A2791))/1000","v":{"$error":"#NAME?"}},{"$f":"(_xll.RiskData(NR_to_Cash!E$18,$A2791))/1000","v":{"$error":"#NAME?"}}]
[2785,{"$f":"_xll.RiskData('Risk Summary'!J$48,$A2792)/1000","v":{"$error":"#NAME?"}},{"$f":"_xll.RiskData('Risk Summary'!K$48,$A2792)/1000","v":{"$error":"#NAME?"}},{"$f":"_xll.RiskData('Risk Summary'!L$48,$A2792)/1000","v":{"$error":"#NAME?"}},null,null,{"$f":"(_xll.RiskData(NR_to_Cash!C$18,$A2792))/1000","v":{"$error":"#NAME?"}},{"$f":"(_xll.RiskData(NR_to_Cash!D$18,$A2792))/1000","v":{"$error":"#NAME?"}},{"$f":"(_xll.RiskData(NR_to_Cash!E$18,$A2792))/1000","v":{"$error":"#NAME?"}}]
[2786,{"$f":"_xll.RiskData('Risk Summary'!J$48,$A2793)/1000","v":{"$error":"#NAME?"}},{"$f":"_xll.RiskData('Risk Summary'!K$48,$A2793)/1000","v":{"$error":"#NAME?"}},{"$f":"_xll.RiskData('Risk Summary'!L$48,$A2793)/1000","v":{"$error":"#NAME?"}},null,null,{"$f":"(_xll.RiskData(NR_to_Cash!C$18,$A2793))/1000","v":{"$error":"#NAME?"}},{"$f":"(_xll.RiskData(NR_to_Cash!D$18,$A2793))/1000","v":{"$error":"#NAME?"}},{"$f":"(_xll.RiskData(NR_to_Cash!E$18,$A2793))/1000","v":{"$error":"#NAME?"}}]
[2787,{"$f":"_xll.RiskData('Risk Summary'!J$48,$A2794)/1000","v":{"$error":"#NAME?"}},{"$f":"_xll.RiskData('Risk Summary'!K$48,$A2794)/1000","v":{"$error":"#NAME?"}},{"$f":"_xll.RiskData('Risk Summary'!L$48,$A2794)/1000","v":{"$error":"#NAME?"}},null,null,{"$f":"(_xll.RiskData(NR_to_Cash!C$18,$A2794))/1000","v":{"$error":"#NAME?"}},{"$f":"(_xll.RiskData(NR_to_Cash!D$18,$A2794))/1000","v":{"$error":"#NAME?"}},{"$f":"(_xll.RiskData(NR_to_Cash!E$18,$A2794))/1000","v":{"$error":"#NAME?"}}]
[2788,{"$f":"_xll.RiskData('Risk Summary'!J$48,$A2795)/1000","v":{"$error":"#NAME?"}},{"$f":"_xll.RiskData('Risk Summary'!K$48,$A2795)/1000","v":{"$error":"#NAME?"}},{"$f":"_xll.RiskData('Risk Summary'!L$48,$A2795)/1000","v":{"$error":"#NAME?"}},null,null,{"$f":"(_xll.RiskData(NR_to_Cash!C$18,$A2795))/1000","v":{"$error":"#NAME?"}},{"$f":"(_xll.RiskData(NR_to_Cash!D$18,$A2795))/1000","v":{"$error":"#NAME?"}},{"$f":"(_xll.RiskData(NR_to_Cash!E$18,$A2795))/1000","v":{"$error":"#NAME?"}}]
[2789,{"$f":"_xll.RiskData('Risk Summary'!J$48,$A2796)/1000","v":{"$error":"#NAME?"}},{"$f":"_xll.RiskData('Risk Summary'!K$48,$A2796)/1000","v":{"$error":"#NAME?"}},{"$f":"_xll.RiskData('Risk Summary'!L$48,$A2796)/1000","v":{"$error":"#NAME?"}},null,null,{"$f":"(_xll.RiskData(NR_to_Cash!C$18,$A2796))/1000","v":{"$error":"#NAME?"}},{"$f":"(_xll.RiskData(NR_to_Cash!D$18,$A2796))/1000","v":{"$error":"#NAME?"}},{"$f":"(_xll.RiskData(NR_to_Cash!E$18,$A2796))/1000","v":{"$error":"#NAME?"}}]
[2790,{"$f":"_xll.RiskData('Risk Summary'!J$48,$A2797)/1000","v":{"$error":"#NAME?"}},{"$f":"_xll.RiskData('Risk Summary'!K$48,$A2797)/1000","v":{"$error":"#NAME?"}},{"$f":"_xll.RiskData('Risk Summary'!L$48,$A2797)/1000","v":{"$error":"#NAME?"}},null,null,{"$f":"(_xll.RiskData(NR_to_Cash!C$18,$A2797))/1000","v":{"$error":"#NAME?"}},{"$f":"(_xll.RiskData(NR_to_Cash!D$18,$A2797))/1000","v":{"$error":"#NAME?"}},{"$f":"(_xll.RiskData(NR_to_Cash!E$18,$A2797))/1000","v":{"$error":"#NAME?"}}]
[2791,{"$f":"_xll.RiskData('Risk Summary'!J$48,$A2798)/1000","v":{"$error":"#NAME?"}},{"$f":"_xll.RiskData('Risk Summary'!K$48,$A2798)/1000","v":{"$error":"#NAME?"}},{"$f":"_xll.RiskData('Risk Summary'!L$48,$A2798)/1000","v":{"$error":"#NAME?"}},null,null,{"$f":"(_xll.RiskData(NR_to_Cash!C$18,$A2798))/1000","v":{"$error":"#NAME?"}},{"$f":"(_xll.RiskData(NR_to_Cash!D$18,$A2798))/1000","v":{"$error":"#NAME?"}},{"$f":"(_xll.RiskData(NR_to_Cash!E$18,$A2798))/1000","v":{"$error":"#NAME?"}}]
[2792,{"$f":"_xll.RiskData('Risk Summary'!J$48,$A2799)/1000","v":{"$error":"#NAME?"}},{"$f":"_xll.RiskData('Risk Summary'!K$48,$A2799)/1000","v":{"$error":"#NAME?"}},{"$f":"_xll.RiskData('Risk Summary'!L$48,$A2799)/1000","v":{"$error":"#NAME?"}},null,null,{"$f":"(_xll.RiskData(NR_to_Cash!C$18,$A2799))/1000","v":{"$error":"#NAME?"}},{"$f":"(_xll.RiskData(NR_to_Cash!D$18,$A2799))/1000","v":{"$error":"#NAME?"}},{"$f":"(_xll.RiskData(NR_to_Cash!E$18,$A2799))/1000","v":{"$error":"#NAME?"}}]
[2793,{"$f":"_xll.RiskData('Risk Summary'!J$48,$A2800)/1000","v":{"$error":"#NAME?"}},{"$f":"_xll.RiskData('Risk Summary'!K$48,$A2800)/1000","v":{"$error":"#NAME?"}},{"$f":"_xll.RiskData('Risk Summary'!L$48,$A2800)/1000","v":{"$error":"#NAME?"}},null,null,{"$f":"(_xll.RiskData(NR_to_Cash!C$18,$A2800))/1000","v":{"$error":"#NAME?"}},{"$f":"(_xll.RiskData(NR_to_Cash!D$18,$A2800))/1000","v":{"$error":"#NAME?"}},{"$f":"(_xll.RiskData(NR_to_Cash!E$18,$A2800))/1000","v":{"$error":"#NAME?"}}]
[2794,{"$f":"_xll.RiskData('Risk Summary'!J$48,$A2801)/1000","v":{"$error":"#NAME?"}},{"$f":"_xll.RiskData('Risk Summary'!K$48,$A2801)/1000","v":{"$error":"#NAME?"}},{"$f":"_xll.RiskData('Risk Summary'!L$48,$A2801)/1000","v":{"$error":"#NAME?"}},null,null,{"$f":"(_xll.RiskData(NR_to_Cash!C$18,$A2801))/1000","v":{"$error":"#NAME?"}},{"$f":"(_xll.RiskData(NR_to_Cash!D$18,$A2801))/1000","v":{"$error":"#NAME?"}},{"$f":"(_xll.RiskData(NR_to_Cash!E$18,$A2801))/1000","v":{"$error":"#NAME?"}}]
[2795,{"$f":"_xll.RiskData('Risk Summary'!J$48,$A2802)/1000","v":{"$error":"#NAME?"}},{"$f":"_xll.RiskData('Risk Summary'!K$48,$A2802)/1000","v":{"$error":"#NAME?"}},{"$f":"_xll.RiskData('Risk Summary'!L$48,$A2802)/1000","v":{"$error":"#NAME?"}},null,null,{"$f":"(_xll.RiskData(NR_to_Cash!C$18,$A2802))/1000","v":{"$error":"#NAME?"}},{"$f":"(_xll.RiskData(NR_to_Cash!D$18,$A2802))/1000","v":{"$error":"#NAME?"}},{"$f":"(_xll.RiskData(NR_to_Cash!E$18,$A2802))/1000","v":{"$error":"#NAME?"}}]
[2796,{"$f":"_xll.RiskData('Risk Summary'!J$48,$A2803)/1000","v":{"$error":"#NAME?"}},{"$f":"_xll.RiskData('Risk Summary'!K$48,$A2803)/1000","v":{"$error":"#NAME?"}},{"$f":"_xll.RiskData('Risk Summary'!L$48,$A2803)/1000","v":{"$error":"#NAME?"}},null,null,{"$f":"(_xll.RiskData(NR_to_Cash!C$18,$A2803))/1000","v":{"$error":"#NAME?"}},{"$f":"(_xll.RiskData(NR_to_Cash!D$18,$A2803))/1000","v":{"$error":"#NAME?"}},{"$f":"(_xll.RiskData(NR_to_Cash!E$18,$A2803))/1000","v":{"$error":"#NAME?"}}]
[2797,{"$f":"_xll.RiskData('Risk Summary'!J$48,$A2804)/1000","v":{"$error":"#NAME?"}},{"$f":"_xll.RiskData('Risk Summary'!K$48,$A2804)/1000","v":{"$error":"#NAME?"}},{"$f":"_xll.RiskData('Risk Summary'!L$48,$A2804)/1000","v":{"$error":"#NAME?"}},null,null,{"$f":"(_xll.RiskData(NR_to_Cash!C$18,$A2804))/1000","v":{"$error":"#NAME?"}},{"$f":"(_xll.RiskData(NR_to_Cash!D$18,$A2804))/1000","v":{"$error":"#NAME?"}},{"$f":"(_xll.RiskData(NR_to_Cash!E$18,$A2804))/1000","v":{"$error":"#NAME?"}}]
[2798,{"$f":"_xll.RiskData('Risk Summary'!J$48,$A2805)/1000","v":{"$error":"#NAME?"}},{"$f":"_xll.RiskData('Risk Summary'!K$48,$A2805)/1000","v":{"$error":"#NAME?"}},{"$f":"_xll.RiskData('Risk Summary'!L$48,$A2805)/1000","v":{"$error":"#NAME?"}},null,null,{"$f":"(_xll.RiskData(NR_to_Cash!C$18,$A2805))/1000","v":{"$error":"#NAME?"}},{"$f":"(_xll.RiskData(NR_to_Cash!D$18,$A2805))/1000","v":{"$error":"#NAME?"}},{"$f":"(_xll.RiskData(NR_to_Cash!E$18,$A2805))/1000","v":{"$error":"#NAME?"}}]
[2799,{"$f":"_xll.RiskData('Risk Summary'!J$48,$A2806)/1000","v":{"$error":"#NAME?"}},{"$f":"_xll.RiskData('Risk Summary'!K$48,$A2806)/1000","v":{"$error":"#NAME?"}},{"$f":"_xll.RiskData('Risk Summary'!L$48,$A2806)/1000","v":{"$error":"#NAME?"}},null,null,{"$f":"(_xll.RiskData(NR_to_Cash!C$18,$A2806))/1000","v":{"$error":"#NAME?"}},{"$f":"(_xll.RiskData(NR_to_Cash!D$18,$A2806))/1000","v":{"$error":"#NAME?"}},{"$f":"(_xll.RiskData(NR_to_Cash!E$18,$A2806))/1000","v":{"$error":"#NAME?"}}]
[2800,{"$f":"_xll.RiskData('Risk Summary'!J$48,$A2807)/1000","v":{"$error":"#NAME?"}},{"$f":"_xll.RiskData('Risk Summary'!K$48,$A2807)/1000","v":{"$error":"#NAME?"}},{"$f":"_xll.RiskData('Risk Summary'!L$48,$A2807)/1000","v":{"$error":"#NAME?"}},null,null,{"$f":"(_xll.RiskData(NR_to_Cash!C$18,$A2807))/1000","v":{"$error":"#NAME?"}},{"$f":"(_xll.RiskData(NR_to_Cash!D$18,$A2807))/1000","v":{"$error":"#NAME?"}},{"$f":"(_xll.RiskData(NR_to_Cash!E$18,$A2807))/1000","v":{"$error":"#NAME?"}}]
[2801,{"$f":"_xll.RiskData('Risk Summary'!J$48,$A2808)/1000","v":{"$error":"#NAME?"}},{"$f":"_xll.RiskData('Risk Summary'!K$48,$A2808)/1000","v":{"$error":"#NAME?"}},{"$f":"_xll.RiskData('Risk Summary'!L$48,$A2808)/1000","v":{"$error":"#NAME?"}},null,null,{"$f":"(_xll.RiskData(NR_to_Cash!C$18,$A2808))/1000","v":{"$error":"#NAME?"}},{"$f":"(_xll.RiskData(NR_to_Cash!D$18,$A2808))/1000","v":{"$error":"#NAME?"}},{"$f":"(_xll.RiskData(NR_to_Cash!E$18,$A2808))/1000","v":{"$error":"#NAME?"}}]
[2802,{"$f":"_xll.RiskData('Risk Summary'!J$48,$A2809)/1000","v":{"$error":"#NAME?"}},{"$f":"_xll.RiskData('Risk Summary'!K$48,$A2809)/1000","v":{"$error":"#NAME?"}},{"$f":"_xll.RiskData('Risk Summary'!L$48,$A2809)/1000","v":{"$error":"#NAME?"}},null,null,{"$f":"(_xll.RiskData(NR_to_Cash!C$18,$A2809))/1000","v":{"$error":"#NAME?"}},{"$f":"(_xll.RiskData(NR_to_Cash!D$18,$A2809))/1000","v":{"$error":"#NAME?"}},{"$f":"(_xll.RiskData(NR_to_Cash!E$18,$A2809))/1000","v":{"$error":"#NAME?"}}]
[2803,{"$f":"_xll.RiskData('Risk Summary'!J$48,$A2810)/1000","v":{"$error":"#NAME?"}},{"$f":"_xll.RiskData('Risk Summary'!K$48,$A2810)/1000","v":{"$error":"#NAME?"}},{"$f":"_xll.RiskData('Risk Summary'!L$48,$A2810)/1000","v":{"$error":"#NAME?"}},null,null,{"$f":"(_xll.RiskData(NR_to_Cash!C$18,$A2810))/1000","v":{"$error":"#NAME?"}},{"$f":"(_xll.RiskData(NR_to_Cash!D$18,$A2810))/1000","v":{"$error":"#NAME?"}},{"$f":"(_xll.RiskData(NR_to_Cash!E$18,$A2810))/1000","v":{"$error":"#NAME?"}}]
[2804,{"$f":"_xll.RiskData('Risk Summary'!J$48,$A2811)/1000","v":{"$error":"#NAME?"}},{"$f":"_xll.RiskData('Risk Summary'!K$48,$A2811)/1000","v":{"$error":"#NAME?"}},{"$f":"_xll.RiskData('Risk Summary'!L$48,$A2811)/1000","v":{"$error":"#NAME?"}},null,null,{"$f":"(_xll.RiskData(NR_to_Cash!C$18,$A2811))/1000","v":{"$error":"#NAME?"}},{"$f":"(_xll.RiskData(NR_to_Cash!D$18,$A2811))/1000","v":{"$error":"#NAME?"}},{"$f":"(_xll.RiskData(NR_to_Cash!E$18,$A2811))/1000","v":{"$error":"#NAME?"}}]
[2805,{"$f":"_xll.RiskData('Risk Summary'!J$48,$A2812)/1000","v":{"$error":"#NAME?"}},{"$f":"_xll.RiskData('Risk Summary'!K$48,$A2812)/1000","v":{"$error":"#NAME?"}},{"$f":"_xll.RiskData('Risk Summary'!L$48,$A2812)/1000","v":{"$error":"#NAME?"}},null,null,{"$f":"(_xll.RiskData(NR_to_Cash!C$18,$A2812))/1000","v":{"$error":"#NAME?"}},{"$f":"(_xll.RiskData(NR_to_Cash!D$18,$A2812))/1000","v":{"$error":"#NAME?"}},{"$f":"(_xll.RiskData(NR_to_Cash!E$18,$A2812))/1000","v":{"$error":"#NAME?"}}]
[2806,{"$f":"_xll.RiskData('Risk Summary'!J$48,$A2813)/1000","v":{"$error":"#NAME?"}},{"$f":"_xll.RiskData('Risk Summary'!K$48,$A2813)/1000","v":{"$error":"#NAME?"}},{"$f":"_xll.RiskData('Risk Summary'!L$48,$A2813)/1000","v":{"$error":"#NAME?"}},null,null,{"$f":"(_xll.RiskData(NR_to_Cash!C$18,$A2813))/1000","v":{"$error":"#NAME?"}},{"$f":"(_xll.RiskData(NR_to_Cash!D$18,$A2813))/1000","v":{"$error":"#NAME?"}},{"$f":"(_xll.RiskData(NR_to_Cash!E$18,$A2813))/1000","v":{"$error":"#NAME?"}}]
[2807,{"$f":"_xll.RiskData('Risk Summary'!J$48,$A2814)/1000","v":{"$error":"#NAME?"}},{"$f":"_xll.RiskData('Risk Summary'!K$48,$A2814)/1000","v":{"$error":"#NAME?"}},{"$f":"_xll.RiskData('Risk Summary'!L$48,$A2814)/1000","v":{"$error":"#NAME?"}},null,null,{"$f":"(_xll.RiskData(NR_to_Cash!C$18,$A2814))/1000","v":{"$error":"#NAME?"}},{"$f":"(_xll.RiskData(NR_to_Cash!D$18,$A2814))/1000","v":{"$error":"#NAME?"}},{"$f":"(_xll.RiskData(NR_to_Cash!E$18,$A2814))/1000","v":{"$error":"#NAME?"}}]
[2808,{"$f":"_xll.RiskData('Risk Summary'!J$48,$A2815)/1000","v":{"$error":"#NAME?"}},{"$f":"_xll.RiskData('Risk Summary'!K$48,$A2815)/1000","v":{"$error":"#NAME?"}},{"$f":"_xll.RiskData('Risk Summary'!L$48,$A2815)/1000","v":{"$error":"#NAME?"}},null,null,{"$f":"(_xll.RiskData(NR_to_Cash!C$18,$A2815))/1000","v":{"$error":"#NAME?"}},{"$f":"(_xll.RiskData(NR_to_Cash!D$18,$A2815))/1000","v":{"$error":"#NAME?"}},{"$f":"(_xll.RiskData(NR_to_Cash!E$18,$A2815))/1000","v":{"$error":"#NAME?"}}]
[2809,{"$f":"_xll.RiskData('Risk Summary'!J$48,$A2816)/1000","v":{"$error":"#NAME?"}},{"$f":"_xll.RiskData('Risk Summary'!K$48,$A2816)/1000","v":{"$error":"#NAME?"}},{"$f":"_xll.RiskData('Risk Summary'!L$48,$A2816)/1000","v":{"$error":"#NAME?"}},null,null,{"$f":"(_xll.RiskData(NR_to_Cash!C$18,$A2816))/1000","v":{"$error":"#NAME?"}},{"$f":"(_xll.RiskData(NR_to_Cash!D$18,$A2816))/1000","v":{"$error":"#NAME?"}},{"$f":"(_xll.RiskData(NR_to_Cash!E$18,$A2816))/1000","v":{"$error":"#NAME?"}}]
[2810,{"$f":"_xll.RiskData('Risk Summary'!J$48,$A2817)/1000","v":{"$error":"#NAME?"}},{"$f":"_xll.RiskData('Risk Summary'!K$48,$A2817)/1000","v":{"$error":"#NAME?"}},{"$f":"_xll.RiskData('Risk Summary'!L$48,$A2817)/1000","v":{"$error":"#NAME?"}},null,null,{"$f":"(_xll.RiskData(NR_to_Cash!C$18,$A2817))/1000","v":{"$error":"#NAME?"}},{"$f":"(_xll.RiskData(NR_to_Cash!D$18,$A2817))/1000","v":{"$error":"#NAME?"}},{"$f":"(_xll.RiskData(NR_to_Cash!E$18,$A2817))/1000","v":{"$error":"#NAME?"}}]
[2811,{"$f":"_xll.RiskData('Risk Summary'!J$48,$A2818)/1000","v":{"$error":"#NAME?"}},{"$f":"_xll.RiskData('Risk Summary'!K$48,$A2818)/1000","v":{"$error":"#NAME?"}},{"$f":"_xll.RiskData('Risk Summary'!L$48,$A2818)/1000","v":{"$error":"#NAME?"}},null,null,{"$f":"(_xll.RiskData(NR_to_Cash!C$18,$A2818))/1000","v":{"$error":"#NAME?"}},{"$f":"(_xll.RiskData(NR_to_Cash!D$18,$A2818))/1000","v":{"$error":"#NAME?"}},{"$f":"(_xll.RiskData(NR_to_Cash!E$18,$A2818))/1000","v":{"$error":"#NAME?"}}]
[2812,{"$f":"_xll.RiskData('Risk Summary'!J$48,$A2819)/1000","v":{"$error":"#NAME?"}},{"$f":"_xll.RiskData('Risk Summary'!K$48,$A2819)/1000","v":{"$error":"#NAME?"}},{"$f":"_xll.RiskData('Risk Summary'!L$48,$A2819)/1000","v":{"$error":"#NAME?"}},null,null,{"$f":"(_xll.RiskData(NR_to_Cash!C$18,$A2819))/1000","v":{"$error":"#NAME?"}},{"$f":"(_xll.RiskData(NR_to_Cash!D$18,$A2819))/1000","v":{"$error":"#NAME?"}},{"$f":"(_xll.RiskData(NR_to_Cash!E$18,$A2819))/1000","v":{"$error":"#NAME?"}}]
[2813,{"$f":"_xll.RiskData('Risk Summary'!J$48,$A2820)/1000","v":{"$error":"#NAME?"}},{"$f":"_xll.RiskData('Risk Summary'!K$48,$A2820)/1000","v":{"$error":"#NAME?"}},{"$f":"_xll.RiskData('Risk Summary'!L$48,$A2820)/1000","v":{"$error":"#NAME?"}},null,null,{"$f":"(_xll.RiskData(NR_to_Cash!C$18,$A2820))/1000","v":{"$error":"#NAME?"}},{"$f":"(_xll.RiskData(NR_to_Cash!D$18,$A2820))/1000","v":{"$error":"#NAME?"}},{"$f":"(_xll.RiskData(NR_to_Cash!E$18,$A2820))/1000","v":{"$error":"#NAME?"}}]
[2814,{"$f":"_xll.RiskData('Risk Summary'!J$48,$A2821)/1000","v":{"$error":"#NAME?"}},{"$f":"_xll.RiskData('Risk Summary'!K$48,$A2821)/1000","v":{"$error":"#NAME?"}},{"$f":"_xll.RiskData('Risk Summary'!L$48,$A2821)/1000","v":{"$error":"#NAME?"}},null,null,{"$f":"(_xll.RiskData(NR_to_Cash!C$18,$A2821))/1000","v":{"$error":"#NAME?"}},{"$f":"(_xll.RiskData(NR_to_Cash!D$18,$A2821))/1000","v":{"$error":"#NAME?"}},{"$f":"(_xll.RiskData(NR_to_Cash!E$18,$A2821))/1000","v":{"$error":"#NAME?"}}]
[2815,{"$f":"_xll.RiskData('Risk Summary'!J$48,$A2822)/1000","v":{"$error":"#NAME?"}},{"$f":"_xll.RiskData('Risk Summary'!K$48,$A2822)/1000","v":{"$error":"#NAME?"}},{"$f":"_xll.RiskData('Risk Summary'!L$48,$A2822)/1000","v":{"$error":"#NAME?"}},null,null,{"$f":"(_xll.RiskData(NR_to_Cash!C$18,$A2822))/1000","v":{"$error":"#NAME?"}},{"$f":"(_xll.RiskData(NR_to_Cash!D$18,$A2822))/1000","v":{"$error":"#NAME?"}},{"$f":"(_xll.RiskData(NR_to_Cash!E$18,$A2822))/1000","v":{"$error":"#NAME?"}}]
[2816,{"$f":"_xll.RiskData('Risk Summary'!J$48,$A2823)/1000","v":{"$error":"#NAME?"}},{"$f":"_xll.RiskData('Risk Summary'!K$48,$A2823)/1000","v":{"$error":"#NAME?"}},{"$f":"_xll.RiskData('Risk Summary'!L$48,$A2823)/1000","v":{"$error":"#NAME?"}},null,null,{"$f":"(_xll.RiskData(NR_to_Cash!C$18,$A2823))/1000","v":{"$error":"#NAME?"}},{"$f":"(_xll.RiskData(NR_to_Cash!D$18,$A2823))/1000","v":{"$error":"#NAME?"}},{"$f":"(_xll.RiskData(NR_to_Cash!E$18,$A2823))/1000","v":{"$error":"#NAME?"}}]
[2817,{"$f":"_xll.RiskData('Risk Summary'!J$48,$A2824)/1000","v":{"$error":"#NAME?"}},{"$f":"_xll.RiskData('Risk Summary'!K$48,$A2824)/1000","v":{"$error":"#NAME?"}},{"$f":"_xll.RiskData('Risk Summary'!L$48,$A2824)/1000","v":{"$error":"#NAME?"}},null,null,{"$f":"(_xll.RiskData(NR_to_Cash!C$18,$A2824))/1000","v":{"$error":"#NAME?"}},{"$f":"(_xll.RiskData(NR_to_Cash!D$18,$A2824))/1000","v":{"$error":"#NAME?"}},{"$f":"(_xll.RiskData(NR_to_Cash!E$18,$A2824))/1000","v":{"$error":"#NAME?"}}]
[2818,{"$f":"_xll.RiskData('Risk Summary'!J$48,$A2825)/1000","v":{"$error":"#NAME?"}},{"$f":"_xll.RiskData('Risk Summary'!K$48,$A2825)/1000","v":{"$error":"#NAME?"}},{"$f":"_xll.RiskData('Risk Summary'!L$48,$A2825)/1000","v":{"$error":"#NAME?"}},null,null,{"$f":"(_xll.RiskData(NR_to_Cash!C$18,$A2825))/1000","v":{"$error":"#NAME?"}},{"$f":"(_xll.RiskData(NR_to_Cash!D$18,$A2825))/1000","v":{"$error":"#NAME?"}},{"$f":"(_xll.RiskData(NR_to_Cash!E$18,$A2825))/1000","v":{"$error":"#NAME?"}}]
[2819,{"$f":"_xll.RiskData('Risk Summary'!J$48,$A2826)/1000","v":{"$error":"#NAME?"}},{"$f":"_xll.RiskData('Risk Summary'!K$48,$A2826)/1000","v":{"$error":"#NAME?"}},{"$f":"_xll.RiskData('Risk Summary'!L$48,$A2826)/1000","v":{"$error":"#NAME?"}},null,null,{"$f":"(_xll.RiskData(NR_to_Cash!C$18,$A2826))/1000","v":{"$error":"#NAME?"}},{"$f":"(_xll.RiskData(NR_to_Cash!D$18,$A2826))/1000","v":{"$error":"#NAME?"}},{"$f":"(_xll.RiskData(NR_to_Cash!E$18,$A2826))/1000","v":{"$error":"#NAME?"}}]
[2820,{"$f":"_xll.RiskData('Risk Summary'!J$48,$A2827)/1000","v":{"$error":"#NAME?"}},{"$f":"_xll.RiskData('Risk Summary'!K$48,$A2827)/1000","v":{"$error":"#NAME?"}},{"$f":"_xll.RiskData('Risk Summary'!L$48,$A2827)/1000","v":{"$error":"#NAME?"}},null,null,{"$f":"(_xll.RiskData(NR_to_Cash!C$18,$A2827))/1000","v":{"$error":"#NAME?"}},{"$f":"(_xll.RiskData(NR_to_Cash!D$18,$A2827))/1000","v":{"$error":"#NAME?"}},{"$f":"(_xll.RiskData(NR_to_Cash!E$18,$A2827))/1000","v":{"$error":"#NAME?"}}]
[2821,{"$f":"_xll.RiskData('Risk Summary'!J$48,$A2828)/1000","v":{"$error":"#NAME?"}},{"$f":"_xll.RiskData('Risk Summary'!K$48,$A2828)/1000","v":{"$error":"#NAME?"}},{"$f":"_xll.RiskData('Risk Summary'!L$48,$A2828)/1000","v":{"$error":"#NAME?"}},null,null,{"$f":"(_xll.RiskData(NR_to_Cash!C$18,$A2828))/1000","v":{"$error":"#NAME?"}},{"$f":"(_xll.RiskData(NR_to_Cash!D$18,$A2828))/1000","v":{"$error":"#NAME?"}},{"$f":"(_xll.RiskData(NR_to_Cash!E$18,$A2828))/1000","v":{"$error":"#NAME?"}}]
[2822,{"$f":"_xll.RiskData('Risk Summary'!J$48,$A2829)/1000","v":{"$error":"#NAME?"}},{"$f":"_xll.RiskData('Risk Summary'!K$48,$A2829)/1000","v":{"$error":"#NAME?"}},{"$f":"_xll.RiskData('Risk Summary'!L$48,$A2829)/1000","v":{"$error":"#NAME?"}},null,null,{"$f":"(_xll.RiskData(NR_to_Cash!C$18,$A2829))/1000","v":{"$error":"#NAME?"}},{"$f":"(_xll.RiskData(NR_to_Cash!D$18,$A2829))/1000","v":{"$error":"#NAME?"}},{"$f":"(_xll.RiskData(NR_to_Cash!E$18,$A2829))/1000","v":{"$error":"#NAME?"}}]
[2823,{"$f":"_xll.RiskData('Risk Summary'!J$48,$A2830)/1000","v":{"$error":"#NAME?"}},{"$f":"_xll.RiskData('Risk Summary'!K$48,$A2830)/1000","v":{"$error":"#NAME?"}},{"$f":"_xll.RiskData('Risk Summary'!L$48,$A2830)/1000","v":{"$error":"#NAME?"}},null,null,{"$f":"(_xll.RiskData(NR_to_Cash!C$18,$A2830))/1000","v":{"$error":"#NAME?"}},{"$f":"(_xll.RiskData(NR_to_Cash!D$18,$A2830))/1000","v":{"$error":"#NAME?"}},{"$f":"(_xll.RiskData(NR_to_Cash!E$18,$A2830))/1000","v":{"$error":"#NAME?"}}]
[2824,{"$f":"_xll.RiskData('Risk Summary'!J$48,$A2831)/1000","v":{"$error":"#NAME?"}},{"$f":"_xll.RiskData('Risk Summary'!K$48,$A2831)/1000","v":{"$error":"#NAME?"}},{"$f":"_xll.RiskData('Risk Summary'!L$48,$A2831)/1000","v":{"$error":"#NAME?"}},null,null,{"$f":"(_xll.RiskData(NR_to_Cash!C$18,$A2831))/1000","v":{"$error":"#NAME?"}},{"$f":"(_xll.RiskData(NR_to_Cash!D$18,$A2831))/1000","v":{"$error":"#NAME?"}},{"$f":"(_xll.RiskData(NR_to_Cash!E$18,$A2831))/1000","v":{"$error":"#NAME?"}}]
[2825,{"$f":"_xll.RiskData('Risk Summary'!J$48,$A2832)/1000","v":{"$error":"#NAME?"}},{"$f":"_xll.RiskData('Risk Summary'!K$48,$A2832)/1000","v":{"$error":"#NAME?"}},{"$f":"_xll.RiskData('Risk Summary'!L$48,$A2832)/1000","v":{"$error":"#NAME?"}},null,null,{"$f":"(_xll.RiskData(NR_to_Cash!C$18,$A2832))/1000","v":{"$error":"#NAME?"}},{"$f":"(_xll.RiskData(NR_to_Cash!D$18,$A2832))/1000","v":{"$error":"#NAME?"}},{"$f":"(_xll.RiskData(NR_to_Cash!E$18,$A2832))/1000","v":{"$error":"#NAME?"}}]
[2826,{"$f":"_xll.RiskData('Risk Summary'!J$48,$A2833)/1000","v":{"$error":"#NAME?"}},{"$f":"_xll.RiskData('Risk Summary'!K$48,$A2833)/1000","v":{"$error":"#NAME?"}},{"$f":"_xll.RiskData('Risk Summary'!L$48,$A2833)/1000","v":{"$error":"#NAME?"}},null,null,{"$f":"(_xll.RiskData(NR_to_Cash!C$18,$A2833))/1000","v":{"$error":"#NAME?"}},{"$f":"(_xll.RiskData(NR_to_Cash!D$18,$A2833))/1000","v":{"$error":"#NAME?"}},{"$f":"(_xll.RiskData(NR_to_Cash!E$18,$A2833))/1000","v":{"$error":"#NAME?"}}]
[2827,{"$f":"_xll.RiskData('Risk Summary'!J$48,$A2834)/1000","v":{"$error":"#NAME?"}},{"$f":"_xll.RiskData('Risk Summary'!K$48,$A2834)/1000","v":{"$error":"#NAME?"}},{"$f":"_xll.RiskData('Risk Summary'!L$48,$A2834)/1000","v":{"$error":"#NAME?"}},null,null,{"$f":"(_xll.RiskData(NR_to_Cash!C$18,$A2834))/1000","v":{"$error":"#NAME?"}},{"$f":"(_xll.RiskData(NR_to_Cash!D$18,$A2834))/1000","v":{"$error":"#NAME?"}},{"$f":"(_xll.RiskData(NR_to_Cash!E$18,$A2834))/1000","v":{"$error":"#NAME?"}}]
[2828,{"$f":"_xll.RiskData('Risk Summary'!J$48,$A2835)/1000","v":{"$error":"#NAME?"}},{"$f":"_xll.RiskData('Risk Summary'!K$48,$A2835)/1000","v":{"$error":"#NAME?"}},{"$f":"_xll.RiskData('Risk Summary'!L$48,$A2835)/1000","v":{"$error":"#NAME?"}},null,null,{"$f":"(_xll.RiskData(NR_to_Cash!C$18,$A2835))/1000","v":{"$error":"#NAME?"}},{"$f":"(_xll.RiskData(NR_to_Cash!D$18,$A2835))/1000","v":{"$error":"#NAME?"}},{"$f":"(_xll.RiskData(NR_to_Cash!E$18,$A2835))/1000","v":{"$error":"#NAME?"}}]
[2829,{"$f":"_xll.RiskData('Risk Summary'!J$48,$A2836)/1000","v":{"$error":"#NAME?"}},{"$f":"_xll.RiskData('Risk Summary'!K$48,$A2836)/1000","v":{"$error":"#NAME?"}},{"$f":"_xll.RiskData('Risk Summary'!L$48,$A2836)/1000","v":{"$error":"#NAME?"}},null,null,{"$f":"(_xll.RiskData(NR_to_Cash!C$18,$A2836))/1000","v":{"$error":"#NAME?"}},{"$f":"(_xll.RiskData(NR_to_Cash!D$18,$A2836))/1000","v":{"$error":"#NAME?"}},{"$f":"(_xll.RiskData(NR_to_Cash!E$18,$A2836))/1000","v":{"$error":"#NAME?"}}]
[2830,{"$f":"_xll.RiskData('Risk Summary'!J$48,$A2837)/1000","v":{"$error":"#NAME?"}},{"$f":"_xll.RiskData('Risk Summary'!K$48,$A2837)/1000","v":{"$error":"#NAME?"}},{"$f":"_xll.RiskData('Risk Summary'!L$48,$A2837)/1000","v":{"$error":"#NAME?"}},null,null,{"$f":"(_xll.RiskData(NR_to_Cash!C$18,$A2837))/1000","v":{"$error":"#NAME?"}},{"$f":"(_xll.RiskData(NR_to_Cash!D$18,$A2837))/1000","v":{"$error":"#NAME?"}},{"$f":"(_xll.RiskData(NR_to_Cash!E$18,$A2837))/1000","v":{"$error":"#NAME?"}}]
[2831,{"$f":"_xll.RiskData('Risk Summary'!J$48,$A2838)/1000","v":{"$error":"#NAME?"}},{"$f":"_xll.RiskData('Risk Summary'!K$48,$A2838)/1000","v":{"$error":"#NAME?"}},{"$f":"_xll.RiskData('Risk Summary'!L$48,$A2838)/1000","v":{"$error":"#NAME?"}},null,null,{"$f":"(_xll.RiskData(NR_to_Cash!C$18,$A2838))/1000","v":{"$error":"#NAME?"}},{"$f":"(_xll.RiskData(NR_to_Cash!D$18,$A2838))/1000","v":{"$error":"#NAME?"}},{"$f":"(_xll.RiskData(NR_to_Cash!E$18,$A2838))/1000","v":{"$error":"#NAME?"}}]
[2832,{"$f":"_xll.RiskData('Risk Summary'!J$48,$A2839)/1000","v":{"$error":"#NAME?"}},{"$f":"_xll.RiskData('Risk Summary'!K$48,$A2839)/1000","v":{"$error":"#NAME?"}},{"$f":"_xll.RiskData('Risk Summary'!L$48,$A2839)/1000","v":{"$error":"#NAME?"}},null,null,{"$f":"(_xll.RiskData(NR_to_Cash!C$18,$A2839))/1000","v":{"$error":"#NAME?"}},{"$f":"(_xll.RiskData(NR_to_Cash!D$18,$A2839))/1000","v":{"$error":"#NAME?"}},{"$f":"(_xll.RiskData(NR_to_Cash!E$18,$A2839))/1000","v":{"$error":"#NAME?"}}]
[2833,{"$f":"_xll.RiskData('Risk Summary'!J$48,$A2840)/1000","v":{"$error":"#NAME?"}},{"$f":"_xll.RiskData('Risk Summary'!K$48,$A2840)/1000","v":{"$error":"#NAME?"}},{"$f":"_xll.RiskData('Risk Summary'!L$48,$A2840)/1000","v":{"$error":"#NAME?"}},null,null,{"$f":"(_xll.RiskData(NR_to_Cash!C$18,$A2840))/1000","v":{"$error":"#NAME?"}},{"$f":"(_xll.RiskData(NR_to_Cash!D$18,$A2840))/1000","v":{"$error":"#NAME?"}},{"$f":"(_xll.RiskData(NR_to_Cash!E$18,$A2840))/1000","v":{"$error":"#NAME?"}}]
[2834,{"$f":"_xll.RiskData('Risk Summary'!J$48,$A2841)/1000","v":{"$error":"#NAME?"}},{"$f":"_xll.RiskData('Risk Summary'!K$48,$A2841)/1000","v":{"$error":"#NAME?"}},{"$f":"_xll.RiskData('Risk Summary'!L$48,$A2841)/1000","v":{"$error":"#NAME?"}},null,null,{"$f":"(_xll.RiskData(NR_to_Cash!C$18,$A2841))/1000","v":{"$error":"#NAME?"}},{"$f":"(_xll.RiskData(NR_to_Cash!D$18,$A2841))/1000","v":{"$error":"#NAME?"}},{"$f":"(_xll.RiskData(NR_to_Cash!E$18,$A2841))/1000","v":{"$error":"#NAME?"}}]
[2835,{"$f":"_xll.RiskData('Risk Summary'!J$48,$A2842)/1000","v":{"$error":"#NAME?"}},{"$f":"_xll.RiskData('Risk Summary'!K$48,$A2842)/1000","v":{"$error":"#NAME?"}},{"$f":"_xll.RiskData('Risk Summary'!L$48,$A2842)/1000","v":{"$error":"#NAME?"}},null,null,{"$f":"(_xll.RiskData(NR_to_Cash!C$18,$A2842))/1000","v":{"$error":"#NAME?"}},{"$f":"(_xll.RiskData(NR_to_Cash!D$18,$A2842))/1000","v":{"$error":"#NAME?"}},{"$f":"(_xll.RiskData(NR_to_Cash!E$18,$A2842))/1000","v":{"$error":"#NAME?"}}]
[2836,{"$f":"_xll.RiskData('Risk Summary'!J$48,$A2843)/1000","v":{"$error":"#NAME?"}},{"$f":"_xll.RiskData('Risk Summary'!K$48,$A2843)/1000","v":{"$error":"#NAME?"}},{"$f":"_xll.RiskData('Risk Summary'!L$48,$A2843)/1000","v":{"$error":"#NAME?"}},null,null,{"$f":"(_xll.RiskData(NR_to_Cash!C$18,$A2843))/1000","v":{"$error":"#NAME?"}},{"$f":"(_xll.RiskData(NR_to_Cash!D$18,$A2843))/1000","v":{"$error":"#NAME?"}},{"$f":"(_xll.RiskData(NR_to_Cash!E$18,$A2843))/1000","v":{"$error":"#NAME?"}}]
[2837,{"$f":"_xll.RiskData('Risk Summary'!J$48,$A2844)/1000","v":{"$error":"#NAME?"}},{"$f":"_xll.RiskData('Risk Summary'!K$48,$A2844)/1000","v":{"$error":"#NAME?"}},{"$f":"_xll.RiskData('Risk Summary'!L$48,$A2844)/1000","v":{"$error":"#NAME?"}},null,null,{"$f":"(_xll.RiskData(NR_to_Cash!C$18,$A2844))/1000","v":{"$error":"#NAME?"}},{"$f":"(_xll.RiskData(NR_to_Cash!D$18,$A2844))/1000","v":{"$error":"#NAME?"}},{"$f":"(_xll.RiskData(NR_to_Cash!E$18,$A2844))/1000","v":{"$error":"#NAME?"}}]
[2838,{"$f":"_xll.RiskData('Risk Summary'!J$48,$A2845)/1000","v":{"$error":"#NAME?"}},{"$f":"_xll.RiskData('Risk Summary'!K$48,$A2845)/1000","v":{"$error":"#NAME?"}},{"$f":"_xll.RiskData('Risk Summary'!L$48,$A2845)/1000","v":{"$error":"#NAME?"}},null,null,{"$f":"(_xll.RiskData(NR_to_Cash!C$18,$A2845))/1000","v":{"$error":"#NAME?"}},{"$f":"(_xll.RiskData(NR_to_Cash!D$18,$A2845))/1000","v":{"$error":"#NAME?"}},{"$f":"(_xll.RiskData(NR_to_Cash!E$18,$A2845))/1000","v":{"$error":"#NAME?"}}]
[2839,{"$f":"_xll.RiskData('Risk Summary'!J$48,$A2846)/1000","v":{"$error":"#NAME?"}},{"$f":"_xll.RiskData('Risk Summary'!K$48,$A2846)/1000","v":{"$error":"#NAME?"}},{"$f":"_xll.RiskData('Risk Summary'!L$48,$A2846)/1000","v":{"$error":"#NAME?"}},null,null,{"$f":"(_xll.RiskData(NR_to_Cash!C$18,$A2846))/1000","v":{"$error":"#NAME?"}},{"$f":"(_xll.RiskData(NR_to_Cash!D$18,$A2846))/1000","v":{"$error":"#NAME?"}},{"$f":"(_xll.RiskData(NR_to_Cash!E$18,$A2846))/1000","v":{"$error":"#NAME?"}}]
[2840,{"$f":"_xll.RiskData('Risk Summary'!J$48,$A2847)/1000","v":{"$error":"#NAME?"}},{"$f":"_xll.RiskData('Risk Summary'!K$48,$A2847)/1000","v":{"$error":"#NAME?"}},{"$f":"_xll.RiskData('Risk Summary'!L$48,$A2847)/1000","v":{"$error":"#NAME?"}},null,null,{"$f":"(_xll.RiskData(NR_to_Cash!C$18,$A2847))/1000","v":{"$error":"#NAME?"}},{"$f":"(_xll.RiskData(NR_to_Cash!D$18,$A2847))/1000","v":{"$error":"#NAME?"}},{"$f":"(_xll.RiskData(NR_to_Cash!E$18,$A2847))/1000","v":{"$error":"#NAME?"}}]
[2841,{"$f":"_xll.RiskData('Risk Summary'!J$48,$A2848)/1000","v":{"$error":"#NAME?"}},{"$f":"_xll.RiskData('Risk Summary'!K$48,$A2848)/1000","v":{"$error":"#NAME?"}},{"$f":"_xll.RiskData('Risk Summary'!L$48,$A2848)/1000","v":{"$error":"#NAME?"}},null,null,{"$f":"(_xll.RiskData(NR_to_Cash!C$18,$A2848))/1000","v":{"$error":"#NAME?"}},{"$f":"(_xll.RiskData(NR_to_Cash!D$18,$A2848))/1000","v":{"$error":"#NAME?"}},{"$f":"(_xll.RiskData(NR_to_Cash!E$18,$A2848))/1000","v":{"$error":"#NAME?"}}]
[2842,{"$f":"_xll.RiskData('Risk Summary'!J$48,$A2849)/1000","v":{"$error":"#NAME?"}},{"$f":"_xll.RiskData('Risk Summary'!K$48,$A2849)/1000","v":{"$error":"#NAME?"}},{"$f":"_xll.RiskData('Risk Summary'!L$48,$A2849)/1000","v":{"$error":"#NAME?"}},null,null,{"$f":"(_xll.RiskData(NR_to_Cash!C$18,$A2849))/1000","v":{"$error":"#NAME?"}},{"$f":"(_xll.RiskData(NR_to_Cash!D$18,$A2849))/1000","v":{"$error":"#NAME?"}},{"$f":"(_xll.RiskData(NR_to_Cash!E$18,$A2849))/1000","v":{"$error":"#NAME?"}}]
[2843,{"$f":"_xll.RiskData('Risk Summary'!J$48,$A2850)/1000","v":{"$error":"#NAME?"}},{"$f":"_xll.RiskData('Risk Summary'!K$48,$A2850)/1000","v":{"$error":"#NAME?"}},{"$f":"_xll.RiskData('Risk Summary'!L$48,$A2850)/1000","v":{"$error":"#NAME?"}},null,null,{"$f":"(_xll.RiskData(NR_to_Cash!C$18,$A2850))/1000","v":{"$error":"#NAME?"}},{"$f":"(_xll.RiskData(NR_to_Cash!D$18,$A2850))/1000","v":{"$error":"#NAME?"}},{"$f":"(_xll.RiskData(NR_to_Cash!E$18,$A2850))/1000","v":{"$error":"#NAME?"}}]
[2844,{"$f":"_xll.RiskData('Risk Summary'!J$48,$A2851)/1000","v":{"$error":"#NAME?"}},{"$f":"_xll.RiskData('Risk Summary'!K$48,$A2851)/1000","v":{"$error":"#NAME?"}},{"$f":"_xll.RiskData('Risk Summary'!L$48,$A2851)/1000","v":{"$error":"#NAME?"}},null,null,{"$f":"(_xll.RiskData(NR_to_Cash!C$18,$A2851))/1000","v":{"$error":"#NAME?"}},{"$f":"(_xll.RiskData(NR_to_Cash!D$18,$A2851))/1000","v":{"$error":"#NAME?"}},{"$f":"(_xll.RiskData(NR_to_Cash!E$18,$A2851))/1000","v":{"$error":"#NAME?"}}]
[2845,{"$f":"_xll.RiskData('Risk Summary'!J$48,$A2852)/1000","v":{"$error":"#NAME?"}},{"$f":"_xll.RiskData('Risk Summary'!K$48,$A2852)/1000","v":{"$error":"#NAME?"}},{"$f":"_xll.RiskData('Risk Summary'!L$48,$A2852)/1000","v":{"$error":"#NAME?"}},null,null,{"$f":"(_xll.RiskData(NR_to_Cash!C$18,$A2852))/1000","v":{"$error":"#NAME?"}},{"$f":"(_xll.RiskData(NR_to_Cash!D$18,$A2852))/1000","v":{"$error":"#NAME?"}},{"$f":"(_xll.RiskData(NR_to_Cash!E$18,$A2852))/1000","v":{"$error":"#NAME?"}}]
[2846,{"$f":"_xll.RiskData('Risk Summary'!J$48,$A2853)/1000","v":{"$error":"#NAME?"}},{"$f":"_xll.RiskData('Risk Summary'!K$48,$A2853)/1000","v":{"$error":"#NAME?"}},{"$f":"_xll.RiskData('Risk Summary'!L$48,$A2853)/1000","v":{"$error":"#NAME?"}},null,null,{"$f":"(_xll.RiskData(NR_to_Cash!C$18,$A2853))/1000","v":{"$error":"#NAME?"}},{"$f":"(_xll.RiskData(NR_to_Cash!D$18,$A2853))/1000","v":{"$error":"#NAME?"}},{"$f":"(_xll.RiskData(NR_to_Cash!E$18,$A2853))/1000","v":{"$error":"#NAME?"}}]
[2847,{"$f":"_xll.RiskData('Risk Summary'!J$48,$A2854)/1000","v":{"$error":"#NAME?"}},{"$f":"_xll.RiskData('Risk Summary'!K$48,$A2854)/1000","v":{"$error":"#NAME?"}},{"$f":"_xll.RiskData('Risk Summary'!L$48,$A2854)/1000","v":{"$error":"#NAME?"}},null,null,{"$f":"(_xll.RiskData(NR_to_Cash!C$18,$A2854))/1000","v":{"$error":"#NAME?"}},{"$f":"(_xll.RiskData(NR_to_Cash!D$18,$A2854))/1000","v":{"$error":"#NAME?"}},{"$f":"(_xll.RiskData(NR_to_Cash!E$18,$A2854))/1000","v":{"$error":"#NAME?"}}]
[2848,{"$f":"_xll.RiskData('Risk Summary'!J$48,$A2855)/1000","v":{"$error":"#NAME?"}},{"$f":"_xll.RiskData('Risk Summary'!K$48,$A2855)/1000","v":{"$error":"#NAME?"}},{"$f":"_xll.RiskData('Risk Summary'!L$48,$A2855)/1000","v":{"$error":"#NAME?"}},null,null,{"$f":"(_xll.RiskData(NR_to_Cash!C$18,$A2855))/1000","v":{"$error":"#NAME?"}},{"$f":"(_xll.RiskData(NR_to_Cash!D$18,$A2855))/1000","v":{"$error":"#NAME?"}},{"$f":"(_xll.RiskData(NR_to_Cash!E$18,$A2855))/1000","v":{"$error":"#NAME?"}}]
[2849,{"$f":"_xll.RiskData('Risk Summary'!J$48,$A2856)/1000","v":{"$error":"#NAME?"}},{"$f":"_xll.RiskData('Risk Summary'!K$48,$A2856)/1000","v":{"$error":"#NAME?"}},{"$f":"_xll.RiskData('Risk Summary'!L$48,$A2856)/1000","v":{"$error":"#NAME?"}},null,null,{"$f":"(_xll.RiskData(NR_to_Cash!C$18,$A2856))/1000","v":{"$error":"#NAME?"}},{"$f":"(_xll.RiskData(NR_to_Cash!D$18,$A2856))/1000","v":{"$error":"#NAME?"}},{"$f":"(_xll.RiskData(NR_to_Cash!E$18,$A2856))/1000","v":{"$error":"#NAME?"}}]
[2850,{"$f":"_xll.RiskData('Risk Summary'!J$48,$A2857)/1000","v":{"$error":"#NAME?"}},{"$f":"_xll.RiskData('Risk Summary'!K$48,$A2857)/1000","v":{"$error":"#NAME?"}},{"$f":"_xll.RiskData('Risk Summary'!L$48,$A2857)/1000","v":{"$error":"#NAME?"}},null,null,{"$f":"(_xll.RiskData(NR_to_Cash!C$18,$A2857))/1000","v":{"$error":"#NAME?"}},{"$f":"(_xll.RiskData(NR_to_Cash!D$18,$A2857))/1000","v":{"$error":"#NAME?"}},{"$f":"(_xll.RiskData(NR_to_Cash!E$18,$A2857))/1000","v":{"$error":"#NAME?"}}]
[2851,{"$f":"_xll.RiskData('Risk Summary'!J$48,$A2858)/1000","v":{"$error":"#NAME?"}},{"$f":"_xll.RiskData('Risk Summary'!K$48,$A2858)/1000","v":{"$error":"#NAME?"}},{"$f":"_xll.RiskData('Risk Summary'!L$48,$A2858)/1000","v":{"$error":"#NAME?"}},null,null,{"$f":"(_xll.RiskData(NR_to_Cash!C$18,$A2858))/1000","v":{"$error":"#NAME?"}},{"$f":"(_xll.RiskData(NR_to_Cash!D$18,$A2858))/1000","v":{"$error":"#NAME?"}},{"$f":"(_xll.RiskData(NR_to_Cash!E$18,$A2858))/1000","v":{"$error":"#NAME?"}}]
[2852,{"$f":"_xll.RiskData('Risk Summary'!J$48,$A2859)/1000","v":{"$error":"#NAME?"}},{"$f":"_xll.RiskData('Risk Summary'!K$48,$A2859)/1000","v":{"$error":"#NAME?"}},{"$f":"_xll.RiskData('Risk Summary'!L$48,$A2859)/1000","v":{"$error":"#NAME?"}},null,null,{"$f":"(_xll.RiskData(NR_to_Cash!C$18,$A2859))/1000","v":{"$error":"#NAME?"}},{"$f":"(_xll.RiskData(NR_to_Cash!D$18,$A2859))/1000","v":{"$error":"#NAME?"}},{"$f":"(_xll.RiskData(NR_to_Cash!E$18,$A2859))/1000","v":{"$error":"#NAME?"}}]
[2853,{"$f":"_xll.RiskData('Risk Summary'!J$48,$A2860)/1000","v":{"$error":"#NAME?"}},{"$f":"_xll.RiskData('Risk Summary'!K$48,$A2860)/1000","v":{"$error":"#NAME?"}},{"$f":"_xll.RiskData('Risk Summary'!L$48,$A2860)/1000","v":{"$error":"#NAME?"}},null,null,{"$f":"(_xll.RiskData(NR_to_Cash!C$18,$A2860))/1000","v":{"$error":"#NAME?"}},{"$f":"(_xll.RiskData(NR_to_Cash!D$18,$A2860))/1000","v":{"$error":"#NAME?"}},{"$f":"(_xll.RiskData(NR_to_Cash!E$18,$A2860))/1000","v":{"$error":"#NAME?"}}]
[2854,{"$f":"_xll.RiskData('Risk Summary'!J$48,$A2861)/1000","v":{"$error":"#NAME?"}},{"$f":"_xll.RiskData('Risk Summary'!K$48,$A2861)/1000","v":{"$error":"#NAME?"}},{"$f":"_xll.RiskData('Risk Summary'!L$48,$A2861)/1000","v":{"$error":"#NAME?"}},null,null,{"$f":"(_xll.RiskData(NR_to_Cash!C$18,$A2861))/1000","v":{"$error":"#NAME?"}},{"$f":"(_xll.RiskData(NR_to_Cash!D$18,$A2861))/1000","v":{"$error":"#NAME?"}},{"$f":"(_xll.RiskData(NR_to_Cash!E$18,$A2861))/1000","v":{"$error":"#NAME?"}}]
[2855,{"$f":"_xll.RiskData('Risk Summary'!J$48,$A2862)/1000","v":{"$error":"#NAME?"}},{"$f":"_xll.RiskData('Risk Summary'!K$48,$A2862)/1000","v":{"$error":"#NAME?"}},{"$f":"_xll.RiskData('Risk Summary'!L$48,$A2862)/1000","v":{"$error":"#NAME?"}},null,null,{"$f":"(_xll.RiskData(NR_to_Cash!C$18,$A2862))/1000","v":{"$error":"#NAME?"}},{"$f":"(_xll.RiskData(NR_to_Cash!D$18,$A2862))/1000","v":{"$error":"#NAME?"}},{"$f":"(_xll.RiskData(NR_to_Cash!E$18,$A2862))/1000","v":{"$error":"#NAME?"}}]
[2856,{"$f":"_xll.RiskData('Risk Summary'!J$48,$A2863)/1000","v":{"$error":"#NAME?"}},{"$f":"_xll.RiskData('Risk Summary'!K$48,$A2863)/1000","v":{"$error":"#NAME?"}},{"$f":"_xll.RiskData('Risk Summary'!L$48,$A2863)/1000","v":{"$error":"#NAME?"}},null,null,{"$f":"(_xll.RiskData(NR_to_Cash!C$18,$A2863))/1000","v":{"$error":"#NAME?"}},{"$f":"(_xll.RiskData(NR_to_Cash!D$18,$A2863))/1000","v":{"$error":"#NAME?"}},{"$f":"(_xll.RiskData(NR_to_Cash!E$18,$A2863))/1000","v":{"$error":"#NAME?"}}]
[2857,{"$f":"_xll.RiskData('Risk Summary'!J$48,$A2864)/1000","v":{"$error":"#NAME?"}},{"$f":"_xll.RiskData('Risk Summary'!K$48,$A2864)/1000","v":{"$error":"#NAME?"}},{"$f":"_xll.RiskData('Risk Summary'!L$48,$A2864)/1000","v":{"$error":"#NAME?"}},null,null,{"$f":"(_xll.RiskData(NR_to_Cash!C$18,$A2864))/1000","v":{"$error":"#NAME?"}},{"$f":"(_xll.RiskData(NR_to_Cash!D$18,$A2864))/1000","v":{"$error":"#NAME?"}},{"$f":"(_xll.RiskData(NR_to_Cash!E$18,$A2864))/1000","v":{"$error":"#NAME?"}}]
[2858,{"$f":"_xll.RiskData('Risk Summary'!J$48,$A2865)/1000","v":{"$error":"#NAME?"}},{"$f":"_xll.RiskData('Risk Summary'!K$48,$A2865)/1000","v":{"$error":"#NAME?"}},{"$f":"_xll.RiskData('Risk Summary'!L$48,$A2865)/1000","v":{"$error":"#NAME?"}},null,null,{"$f":"(_xll.RiskData(NR_to_Cash!C$18,$A2865))/1000","v":{"$error":"#NAME?"}},{"$f":"(_xll.RiskData(NR_to_Cash!D$18,$A2865))/1000","v":{"$error":"#NAME?"}},{"$f":"(_xll.RiskData(NR_to_Cash!E$18,$A2865))/1000","v":{"$error":"#NAME?"}}]
[2859,{"$f":"_xll.RiskData('Risk Summary'!J$48,$A2866)/1000","v":{"$error":"#NAME?"}},{"$f":"_xll.RiskData('Risk Summary'!K$48,$A2866)/1000","v":{"$error":"#NAME?"}},{"$f":"_xll.RiskData('Risk Summary'!L$48,$A2866)/1000","v":{"$error":"#NAME?"}},null,null,{"$f":"(_xll.RiskData(NR_to_Cash!C$18,$A2866))/1000","v":{"$error":"#NAME?"}},{"$f":"(_xll.RiskData(NR_to_Cash!D$18,$A2866))/1000","v":{"$error":"#NAME?"}},{"$f":"(_xll.RiskData(NR_to_Cash!E$18,$A2866))/1000","v":{"$error":"#NAME?"}}]
[2860,{"$f":"_xll.RiskData('Risk Summary'!J$48,$A2867)/1000","v":{"$error":"#NAME?"}},{"$f":"_xll.RiskData('Risk Summary'!K$48,$A2867)/1000","v":{"$error":"#NAME?"}},{"$f":"_xll.RiskData('Risk Summary'!L$48,$A2867)/1000","v":{"$error":"#NAME?"}},null,null,{"$f":"(_xll.RiskData(NR_to_Cash!C$18,$A2867))/1000","v":{"$error":"#NAME?"}},{"$f":"(_xll.RiskData(NR_to_Cash!D$18,$A2867))/1000","v":{"$error":"#NAME?"}},{"$f":"(_xll.RiskData(NR_to_Cash!E$18,$A2867))/1000","v":{"$error":"#NAME?"}}]
[2861,{"$f":"_xll.RiskData('Risk Summary'!J$48,$A2868)/1000","v":{"$error":"#NAME?"}},{"$f":"_xll.RiskData('Risk Summary'!K$48,$A2868)/1000","v":{"$error":"#NAME?"}},{"$f":"_xll.RiskData('Risk Summary'!L$48,$A2868)/1000","v":{"$error":"#NAME?"}},null,null,{"$f":"(_xll.RiskData(NR_to_Cash!C$18,$A2868))/1000","v":{"$error":"#NAME?"}},{"$f":"(_xll.RiskData(NR_to_Cash!D$18,$A2868))/1000","v":{"$error":"#NAME?"}},{"$f":"(_xll.RiskData(NR_to_Cash!E$18,$A2868))/1000","v":{"$error":"#NAME?"}}]
[2862,{"$f":"_xll.RiskData('Risk Summary'!J$48,$A2869)/1000","v":{"$error":"#NAME?"}},{"$f":"_xll.RiskData('Risk Summary'!K$48,$A2869)/1000","v":{"$error":"#NAME?"}},{"$f":"_xll.RiskData('Risk Summary'!L$48,$A2869)/1000","v":{"$error":"#NAME?"}},null,null,{"$f":"(_xll.RiskData(NR_to_Cash!C$18,$A2869))/1000","v":{"$error":"#NAME?"}},{"$f":"(_xll.RiskData(NR_to_Cash!D$18,$A2869))/1000","v":{"$error":"#NAME?"}},{"$f":"(_xll.RiskData(NR_to_Cash!E$18,$A2869))/1000","v":{"$error":"#NAME?"}}]
[2863,{"$f":"_xll.RiskData('Risk Summary'!J$48,$A2870)/1000","v":{"$error":"#NAME?"}},{"$f":"_xll.RiskData('Risk Summary'!K$48,$A2870)/1000","v":{"$error":"#NAME?"}},{"$f":"_xll.RiskData('Risk Summary'!L$48,$A2870)/1000","v":{"$error":"#NAME?"}},null,null,{"$f":"(_xll.RiskData(NR_to_Cash!C$18,$A2870))/1000","v":{"$error":"#NAME?"}},{"$f":"(_xll.RiskData(NR_to_Cash!D$18,$A2870))/1000","v":{"$error":"#NAME?"}},{"$f":"(_xll.RiskData(NR_to_Cash!E$18,$A2870))/1000","v":{"$error":"#NAME?"}}]
[2864,{"$f":"_xll.RiskData('Risk Summary'!J$48,$A2871)/1000","v":{"$error":"#NAME?"}},{"$f":"_xll.RiskData('Risk Summary'!K$48,$A2871)/1000","v":{"$error":"#NAME?"}},{"$f":"_xll.RiskData('Risk Summary'!L$48,$A2871)/1000","v":{"$error":"#NAME?"}},null,null,{"$f":"(_xll.RiskData(NR_to_Cash!C$18,$A2871))/1000","v":{"$error":"#NAME?"}},{"$f":"(_xll.RiskData(NR_to_Cash!D$18,$A2871))/1000","v":{"$error":"#NAME?"}},{"$f":"(_xll.RiskData(NR_to_Cash!E$18,$A2871))/1000","v":{"$error":"#NAME?"}}]
[2865,{"$f":"_xll.RiskData('Risk Summary'!J$48,$A2872)/1000","v":{"$error":"#NAME?"}},{"$f":"_xll.RiskData('Risk Summary'!K$48,$A2872)/1000","v":{"$error":"#NAME?"}},{"$f":"_xll.RiskData('Risk Summary'!L$48,$A2872)/1000","v":{"$error":"#NAME?"}},null,null,{"$f":"(_xll.RiskData(NR_to_Cash!C$18,$A2872))/1000","v":{"$error":"#NAME?"}},{"$f":"(_xll.RiskData(NR_to_Cash!D$18,$A2872))/1000","v":{"$error":"#NAME?"}},{"$f":"(_xll.RiskData(NR_to_Cash!E$18,$A2872))/1000","v":{"$error":"#NAME?"}}]
[2866,{"$f":"_xll.RiskData('Risk Summary'!J$48,$A2873)/1000","v":{"$error":"#NAME?"}},{"$f":"_xll.RiskData('Risk Summary'!K$48,$A2873)/1000","v":{"$error":"#NAME?"}},{"$f":"_xll.RiskData('Risk Summary'!L$48,$A2873)/1000","v":{"$error":"#NAME?"}},null,null,{"$f":"(_xll.RiskData(NR_to_Cash!C$18,$A2873))/1000","v":{"$error":"#NAME?"}},{"$f":"(_xll.RiskData(NR_to_Cash!D$18,$A2873))/1000","v":{"$error":"#NAME?"}},{"$f":"(_xll.RiskData(NR_to_Cash!E$18,$A2873))/1000","v":{"$error":"#NAME?"}}]
[2867,{"$f":"_xll.RiskData('Risk Summary'!J$48,$A2874)/1000","v":{"$error":"#NAME?"}},{"$f":"_xll.RiskData('Risk Summary'!K$48,$A2874)/1000","v":{"$error":"#NAME?"}},{"$f":"_xll.RiskData('Risk Summary'!L$48,$A2874)/1000","v":{"$error":"#NAME?"}},null,null,{"$f":"(_xll.RiskData(NR_to_Cash!C$18,$A2874))/1000","v":{"$error":"#NAME?"}},{"$f":"(_xll.RiskData(NR_to_Cash!D$18,$A2874))/1000","v":{"$error":"#NAME?"}},{"$f":"(_xll.RiskData(NR_to_Cash!E$18,$A2874))/1000","v":{"$error":"#NAME?"}}]
[2868,{"$f":"_xll.RiskData('Risk Summary'!J$48,$A2875)/1000","v":{"$error":"#NAME?"}},{"$f":"_xll.RiskData('Risk Summary'!K$48,$A2875)/1000","v":{"$error":"#NAME?"}},{"$f":"_xll.RiskData('Risk Summary'!L$48,$A2875)/1000","v":{"$error":"#NAME?"}},null,null,{"$f":"(_xll.RiskData(NR_to_Cash!C$18,$A2875))/1000","v":{"$error":"#NAME?"}},{"$f":"(_xll.RiskData(NR_to_Cash!D$18,$A2875))/1000","v":{"$error":"#NAME?"}},{"$f":"(_xll.RiskData(NR_to_Cash!E$18,$A2875))/1000","v":{"$error":"#NAME?"}}]
[2869,{"$f":"_xll.RiskData('Risk Summary'!J$48,$A2876)/1000","v":{"$error":"#NAME?"}},{"$f":"_xll.RiskData('Risk Summary'!K$48,$A2876)/1000","v":{"$error":"#NAME?"}},{"$f":"_xll.RiskData('Risk Summary'!L$48,$A2876)/1000","v":{"$error":"#NAME?"}},null,null,{"$f":"(_xll.RiskData(NR_to_Cash!C$18,$A2876))/1000","v":{"$error":"#NAME?"}},{"$f":"(_xll.RiskData(NR_to_Cash!D$18,$A2876))/1000","v":{"$error":"#NAME?"}},{"$f":"(_xll.RiskData(NR_to_Cash!E$18,$A2876))/1000","v":{"$error":"#NAME?"}}]
[2870,{"$f":"_xll.RiskData('Risk Summary'!J$48,$A2877)/1000","v":{"$error":"#NAME?"}},{"$f":"_xll.RiskData('Risk Summary'!K$48,$A2877)/1000","v":{"$error":"#NAME?"}},{"$f":"_xll.RiskData('Risk Summary'!L$48,$A2877)/1000","v":{"$error":"#NAME?"}},null,null,{"$f":"(_xll.RiskData(NR_to_Cash!C$18,$A2877))/1000","v":{"$error":"#NAME?"}},{"$f":"(_xll.RiskData(NR_to_Cash!D$18,$A2877))/1000","v":{"$error":"#NAME?"}},{"$f":"(_xll.RiskData(NR_to_Cash!E$18,$A2877))/1000","v":{"$error":"#NAME?"}}]
[2871,{"$f":"_xll.RiskData('Risk Summary'!J$48,$A2878)/1000","v":{"$error":"#NAME?"}},{"$f":"_xll.RiskData('Risk Summary'!K$48,$A2878)/1000","v":{"$error":"#NAME?"}},{"$f":"_xll.RiskData('Risk Summary'!L$48,$A2878)/1000","v":{"$error":"#NAME?"}},null,null,{"$f":"(_xll.RiskData(NR_to_Cash!C$18,$A2878))/1000","v":{"$error":"#NAME?"}},{"$f":"(_xll.RiskData(NR_to_Cash!D$18,$A2878))/1000","v":{"$error":"#NAME?"}},{"$f":"(_xll.RiskData(NR_to_Cash!E$18,$A2878))/1000","v":{"$error":"#NAME?"}}]
[2872,{"$f":"_xll.RiskData('Risk Summary'!J$48,$A2879)/1000","v":{"$error":"#NAME?"}},{"$f":"_xll.RiskData('Risk Summary'!K$48,$A2879)/1000","v":{"$error":"#NAME?"}},{"$f":"_xll.RiskData('Risk Summary'!L$48,$A2879)/1000","v":{"$error":"#NAME?"}},null,null,{"$f":"(_xll.RiskData(NR_to_Cash!C$18,$A2879))/1000","v":{"$error":"#NAME?"}},{"$f":"(_xll.RiskData(NR_to_Cash!D$18,$A2879))/1000","v":{"$error":"#NAME?"}},{"$f":"(_xll.RiskData(NR_to_Cash!E$18,$A2879))/1000","v":{"$error":"#NAME?"}}]
[2873,{"$f":"_xll.RiskData('Risk Summary'!J$48,$A2880)/1000","v":{"$error":"#NAME?"}},{"$f":"_xll.RiskData('Risk Summary'!K$48,$A2880)/1000","v":{"$error":"#NAME?"}},{"$f":"_xll.RiskData('Risk Summary'!L$48,$A2880)/1000","v":{"$error":"#NAME?"}},null,null,{"$f":"(_xll.RiskData(NR_to_Cash!C$18,$A2880))/1000","v":{"$error":"#NAME?"}},{"$f":"(_xll.RiskData(NR_to_Cash!D$18,$A2880))/1000","v":{"$error":"#NAME?"}},{"$f":"(_xll.RiskData(NR_to_Cash!E$18,$A2880))/1000","v":{"$error":"#NAME?"}}]
[2874,{"$f":"_xll.RiskData('Risk Summary'!J$48,$A2881)/1000","v":{"$error":"#NAME?"}},{"$f":"_xll.RiskData('Risk Summary'!K$48,$A2881)/1000","v":{"$error":"#NAME?"}},{"$f":"_xll.RiskData('Risk Summary'!L$48,$A2881)/1000","v":{"$error":"#NAME?"}},null,null,{"$f":"(_xll.RiskData(NR_to_Cash!C$18,$A2881))/1000","v":{"$error":"#NAME?"}},{"$f":"(_xll.RiskData(NR_to_Cash!D$18,$A2881))/1000","v":{"$error":"#NAME?"}},{"$f":"(_xll.RiskData(NR_to_Cash!E$18,$A2881))/1000","v":{"$error":"#NAME?"}}]
[2875,{"$f":"_xll.RiskData('Risk Summary'!J$48,$A2882)/1000","v":{"$error":"#NAME?"}},{"$f":"_xll.RiskData('Risk Summary'!K$48,$A2882)/1000","v":{"$error":"#NAME?"}},{"$f":"_xll.RiskData('Risk Summary'!L$48,$A2882)/1000","v":{"$error":"#NAME?"}},null,null,{"$f":"(_xll.RiskData(NR_to_Cash!C$18,$A2882))/1000","v":{"$error":"#NAME?"}},{"$f":"(_xll.RiskData(NR_to_Cash!D$18,$A2882))/1000","v":{"$error":"#NAME?"}},{"$f":"(_xll.RiskData(NR_to_Cash!E$18,$A2882))/1000","v":{"$error":"#NAME?"}}]
[2876,{"$f":"_xll.RiskData('Risk Summary'!J$48,$A2883)/1000","v":{"$error":"#NAME?"}},{"$f":"_xll.RiskData('Risk Summary'!K$48,$A2883)/1000","v":{"$error":"#NAME?"}},{"$f":"_xll.RiskData('Risk Summary'!L$48,$A2883)/1000","v":{"$error":"#NAME?"}},null,null,{"$f":"(_xll.RiskData(NR_to_Cash!C$18,$A2883))/1000","v":{"$error":"#NAME?"}},{"$f":"(_xll.RiskData(NR_to_Cash!D$18,$A2883))/1000","v":{"$error":"#NAME?"}},{"$f":"(_xll.RiskData(NR_to_Cash!E$18,$A2883))/1000","v":{"$error":"#NAME?"}}]
[2877,{"$f":"_xll.RiskData('Risk Summary'!J$48,$A2884)/1000","v":{"$error":"#NAME?"}},{"$f":"_xll.RiskData('Risk Summary'!K$48,$A2884)/1000","v":{"$error":"#NAME?"}},{"$f":"_xll.RiskData('Risk Summary'!L$48,$A2884)/1000","v":{"$error":"#NAME?"}},null,null,{"$f":"(_xll.RiskData(NR_to_Cash!C$18,$A2884))/1000","v":{"$error":"#NAME?"}},{"$f":"(_xll.RiskData(NR_to_Cash!D$18,$A2884))/1000","v":{"$error":"#NAME?"}},{"$f":"(_xll.RiskData(NR_to_Cash!E$18,$A2884))/1000","v":{"$error":"#NAME?"}}]
[2878,{"$f":"_xll.RiskData('Risk Summary'!J$48,$A2885)/1000","v":{"$error":"#NAME?"}},{"$f":"_xll.RiskData('Risk Summary'!K$48,$A2885)/1000","v":{"$error":"#NAME?"}},{"$f":"_xll.RiskData('Risk Summary'!L$48,$A2885)/1000","v":{"$error":"#NAME?"}},null,null,{"$f":"(_xll.RiskData(NR_to_Cash!C$18,$A2885))/1000","v":{"$error":"#NAME?"}},{"$f":"(_xll.RiskData(NR_to_Cash!D$18,$A2885))/1000","v":{"$error":"#NAME?"}},{"$f":"(_xll.RiskData(NR_to_Cash!E$18,$A2885))/1000","v":{"$error":"#NAME?"}}]
[2879,{"$f":"_xll.RiskData('Risk Summary'!J$48,$A2886)/1000","v":{"$error":"#NAME?"}},{"$f":"_xll.RiskData('Risk Summary'!K$48,$A2886)/1000","v":{"$error":"#NAME?"}},{"$f":"_xll.RiskData('Risk Summary'!L$48,$A2886)/1000","v":{"$error":"#NAME?"}},null,null,{"$f":"(_xll.RiskData(NR_to_Cash!C$18,$A2886))/1000","v":{"$error":"#NAME?"}},{"$f":"(_xll.RiskData(NR_to_Cash!D$18,$A2886))/1000","v":{"$error":"#NAME?"}},{"$f":"(_xll.RiskData(NR_to_Cash!E$18,$A2886))/1000","v":{"$error":"#NAME?"}}]
[2880,{"$f":"_xll.RiskData('Risk Summary'!J$48,$A2887)/1000","v":{"$error":"#NAME?"}},{"$f":"_xll.RiskData('Risk Summary'!K$48,$A2887)/1000","v":{"$error":"#NAME?"}},{"$f":"_xll.RiskData('Risk Summary'!L$48,$A2887)/1000","v":{"$error":"#NAME?"}},null,null,{"$f":"(_xll.RiskData(NR_to_Cash!C$18,$A2887))/1000","v":{"$error":"#NAME?"}},{"$f":"(_xll.RiskData(NR_to_Cash!D$18,$A2887))/1000","v":{"$error":"#NAME?"}},{"$f":"(_xll.RiskData(NR_to_Cash!E$18,$A2887))/1000","v":{"$error":"#NAME?"}}]
[2881,{"$f":"_xll.RiskData('Risk Summary'!J$48,$A2888)/1000","v":{"$error":"#NAME?"}},{"$f":"_xll.RiskData('Risk Summary'!K$48,$A2888)/1000","v":{"$error":"#NAME?"}},{"$f":"_xll.RiskData('Risk Summary'!L$48,$A2888)/1000","v":{"$error":"#NAME?"}},null,null,{"$f":"(_xll.RiskData(NR_to_Cash!C$18,$A2888))/1000","v":{"$error":"#NAME?"}},{"$f":"(_xll.RiskData(NR_to_Cash!D$18,$A2888))/1000","v":{"$error":"#NAME?"}},{"$f":"(_xll.RiskData(NR_to_Cash!E$18,$A2888))/1000","v":{"$error":"#NAME?"}}]
[2882,{"$f":"_xll.RiskData('Risk Summary'!J$48,$A2889)/1000","v":{"$error":"#NAME?"}},{"$f":"_xll.RiskData('Risk Summary'!K$48,$A2889)/1000","v":{"$error":"#NAME?"}},{"$f":"_xll.RiskData('Risk Summary'!L$48,$A2889)/1000","v":{"$error":"#NAME?"}},null,null,{"$f":"(_xll.RiskData(NR_to_Cash!C$18,$A2889))/1000","v":{"$error":"#NAME?"}},{"$f":"(_xll.RiskData(NR_to_Cash!D$18,$A2889))/1000","v":{"$error":"#NAME?"}},{"$f":"(_xll.RiskData(NR_to_Cash!E$18,$A2889))/1000","v":{"$error":"#NAME?"}}]
[2883,{"$f":"_xll.RiskData('Risk Summary'!J$48,$A2890)/1000","v":{"$error":"#NAME?"}},{"$f":"_xll.RiskData('Risk Summary'!K$48,$A2890)/1000","v":{"$error":"#NAME?"}},{"$f":"_xll.RiskData('Risk Summary'!L$48,$A2890)/1000","v":{"$error":"#NAME?"}},null,null,{"$f":"(_xll.RiskData(NR_to_Cash!C$18,$A2890))/1000","v":{"$error":"#NAME?"}},{"$f":"(_xll.RiskData(NR_to_Cash!D$18,$A2890))/1000","v":{"$error":"#NAME?"}},{"$f":"(_xll.RiskData(NR_to_Cash!E$18,$A2890))/1000","v":{"$error":"#NAME?"}}]
[2884,{"$f":"_xll.RiskData('Risk Summary'!J$48,$A2891)/1000","v":{"$error":"#NAME?"}},{"$f":"_xll.RiskData('Risk Summary'!K$48,$A2891)/1000","v":{"$error":"#NAME?"}},{"$f":"_xll.RiskData('Risk Summary'!L$48,$A2891)/1000","v":{"$error":"#NAME?"}},null,null,{"$f":"(_xll.RiskData(NR_to_Cash!C$18,$A2891))/1000","v":{"$error":"#NAME?"}},{"$f":"(_xll.RiskData(NR_to_Cash!D$18,$A2891))/1000","v":{"$error":"#NAME?"}},{"$f":"(_xll.RiskData(NR_to_Cash!E$18,$A2891))/1000","v":{"$error":"#NAME?"}}]
[2885,{"$f":"_xll.RiskData('Risk Summary'!J$48,$A2892)/1000","v":{"$error":"#NAME?"}},{"$f":"_xll.RiskData('Risk Summary'!K$48,$A2892)/1000","v":{"$error":"#NAME?"}},{"$f":"_xll.RiskData('Risk Summary'!L$48,$A2892)/1000","v":{"$error":"#NAME?"}},null,null,{"$f":"(_xll.RiskData(NR_to_Cash!C$18,$A2892))/1000","v":{"$error":"#NAME?"}},{"$f":"(_xll.RiskData(NR_to_Cash!D$18,$A2892))/1000","v":{"$error":"#NAME?"}},{"$f":"(_xll.RiskData(NR_to_Cash!E$18,$A2892))/1000","v":{"$error":"#NAME?"}}]
[2886,{"$f":"_xll.RiskData('Risk Summary'!J$48,$A2893)/1000","v":{"$error":"#NAME?"}},{"$f":"_xll.RiskData('Risk Summary'!K$48,$A2893)/1000","v":{"$error":"#NAME?"}},{"$f":"_xll.RiskData('Risk Summary'!L$48,$A2893)/1000","v":{"$error":"#NAME?"}},null,null,{"$f":"(_xll.RiskData(NR_to_Cash!C$18,$A2893))/1000","v":{"$error":"#NAME?"}},{"$f":"(_xll.RiskData(NR_to_Cash!D$18,$A2893))/1000","v":{"$error":"#NAME?"}},{"$f":"(_xll.RiskData(NR_to_Cash!E$18,$A2893))/1000","v":{"$error":"#NAME?"}}]
[2887,{"$f":"_xll.RiskData('Risk Summary'!J$48,$A2894)/1000","v":{"$error":"#NAME?"}},{"$f":"_xll.RiskData('Risk Summary'!K$48,$A2894)/1000","v":{"$error":"#NAME?"}},{"$f":"_xll.RiskData('Risk Summary'!L$48,$A2894)/1000","v":{"$error":"#NAME?"}},null,null,{"$f":"(_xll.RiskData(NR_to_Cash!C$18,$A2894))/1000","v":{"$error":"#NAME?"}},{"$f":"(_xll.RiskData(NR_to_Cash!D$18,$A2894))/1000","v":{"$error":"#NAME?"}},{"$f":"(_xll.RiskData(NR_to_Cash!E$18,$A2894))/1000","v":{"$error":"#NAME?"}}]
[2888,{"$f":"_xll.RiskData('Risk Summary'!J$48,$A2895)/1000","v":{"$error":"#NAME?"}},{"$f":"_xll.RiskData('Risk Summary'!K$48,$A2895)/1000","v":{"$error":"#NAME?"}},{"$f":"_xll.RiskData('Risk Summary'!L$48,$A2895)/1000","v":{"$error":"#NAME?"}},null,null,{"$f":"(_xll.RiskData(NR_to_Cash!C$18,$A2895))/1000","v":{"$error":"#NAME?"}},{"$f":"(_xll.RiskData(NR_to_Cash!D$18,$A2895))/1000","v":{"$error":"#NAME?"}},{"$f":"(_xll.RiskData(NR_to_Cash!E$18,$A2895))/1000","v":{"$error":"#NAME?"}}]
[2889,{"$f":"_xll.RiskData('Risk Summary'!J$48,$A2896)/1000","v":{"$error":"#NAME?"}},{"$f":"_xll.RiskData('Risk Summary'!K$48,$A2896)/1000","v":{"$error":"#NAME?"}},{"$f":"_xll.RiskData('Risk Summary'!L$48,$A2896)/1000","v":{"$error":"#NAME?"}},null,null,{"$f":"(_xll.RiskData(NR_to_Cash!C$18,$A2896))/1000","v":{"$error":"#NAME?"}},{"$f":"(_xll.RiskData(NR_to_Cash!D$18,$A2896))/1000","v":{"$error":"#NAME?"}},{"$f":"(_xll.RiskData(NR_to_Cash!E$18,$A2896))/1000","v":{"$error":"#NAME?"}}]
[2890,{"$f":"_xll.RiskData('Risk Summary'!J$48,$A2897)/1000","v":{"$error":"#NAME?"}},{"$f":"_xll.RiskData('Risk Summary'!K$48,$A2897)/1000","v":{"$error":"#NAME?"}},{"$f":"_xll.RiskData('Risk Summary'!L$48,$A2897)/1000","v":{"$error":"#NAME?"}},null,null,{"$f":"(_xll.RiskData(NR_to_Cash!C$18,$A2897))/1000","v":{"$error":"#NAME?"}},{"$f":"(_xll.RiskData(NR_to_Cash!D$18,$A2897))/1000","v":{"$error":"#NAME?"}},{"$f":"(_xll.RiskData(NR_to_Cash!E$18,$A2897))/1000","v":{"$error":"#NAME?"}}]
[2891,{"$f":"_xll.RiskData('Risk Summary'!J$48,$A2898)/1000","v":{"$error":"#NAME?"}},{"$f":"_xll.RiskData('Risk Summary'!K$48,$A2898)/1000","v":{"$error":"#NAME?"}},{"$f":"_xll.RiskData('Risk Summary'!L$48,$A2898)/1000","v":{"$error":"#NAME?"}},null,null,{"$f":"(_xll.RiskData(NR_to_Cash!C$18,$A2898))/1000","v":{"$error":"#NAME?"}},{"$f":"(_xll.RiskData(NR_to_Cash!D$18,$A2898))/1000","v":{"$error":"#NAME?"}},{"$f":"(_xll.RiskData(NR_to_Cash!E$18,$A2898))/1000","v":{"$error":"#NAME?"}}]
[2892,{"$f":"_xll.RiskData('Risk Summary'!J$48,$A2899)/1000","v":{"$error":"#NAME?"}},{"$f":"_xll.RiskData('Risk Summary'!K$48,$A2899)/1000","v":{"$error":"#NAME?"}},{"$f":"_xll.RiskData('Risk Summary'!L$48,$A2899)/1000","v":{"$error":"#NAME?"}},null,null,{"$f":"(_xll.RiskData(NR_to_Cash!C$18,$A2899))/1000","v":{"$error":"#NAME?"}},{"$f":"(_xll.RiskData(NR_to_Cash!D$18,$A2899))/1000","v":{"$error":"#NAME?"}},{"$f":"(_xll.RiskData(NR_to_Cash!E$18,$A2899))/1000","v":{"$error":"#NAME?"}}]
[2893,{"$f":"_xll.RiskData('Risk Summary'!J$48,$A2900)/1000","v":{"$error":"#NAME?"}},{"$f":"_xll.RiskData('Risk Summary'!K$48,$A2900)/1000","v":{"$error":"#NAME?"}},{"$f":"_xll.RiskData('Risk Summary'!L$48,$A2900)/1000","v":{"$error":"#NAME?"}},null,null,{"$f":"(_xll.RiskData(NR_to_Cash!C$18,$A2900))/1000","v":{"$error":"#NAME?"}},{"$f":"(_xll.RiskData(NR_to_Cash!D$18,$A2900))/1000","v":{"$error":"#NAME?"}},{"$f":"(_xll.RiskData(NR_to_Cash!E$18,$A2900))/1000","v":{"$error":"#NAME?"}}]
[2894,{"$f":"_xll.RiskData('Risk Summary'!J$48,$A2901)/1000","v":{"$error":"#NAME?"}},{"$f":"_xll.RiskData('Risk Summary'!K$48,$A2901)/1000","v":{"$error":"#NAME?"}},{"$f":"_xll.RiskData('Risk Summary'!L$48,$A2901)/1000","v":{"$error":"#NAME?"}},null,null,{"$f":"(_xll.RiskData(NR_to_Cash!C$18,$A2901))/1000","v":{"$error":"#NAME?"}},{"$f":"(_xll.RiskData(NR_to_Cash!D$18,$A2901))/1000","v":{"$error":"#NAME?"}},{"$f":"(_xll.RiskData(NR_to_Cash!E$18,$A2901))/1000","v":{"$error":"#NAME?"}}]
[2895,{"$f":"_xll.RiskData('Risk Summary'!J$48,$A2902)/1000","v":{"$error":"#NAME?"}},{"$f":"_xll.RiskData('Risk Summary'!K$48,$A2902)/1000","v":{"$error":"#NAME?"}},{"$f":"_xll.RiskData('Risk Summary'!L$48,$A2902)/1000","v":{"$error":"#NAME?"}},null,null,{"$f":"(_xll.RiskData(NR_to_Cash!C$18,$A2902))/1000","v":{"$error":"#NAME?"}},{"$f":"(_xll.RiskData(NR_to_Cash!D$18,$A2902))/1000","v":{"$error":"#NAME?"}},{"$f":"(_xll.RiskData(NR_to_Cash!E$18,$A2902))/1000","v":{"$error":"#NAME?"}}]
[2896,{"$f":"_xll.RiskData('Risk Summary'!J$48,$A2903)/1000","v":{"$error":"#NAME?"}},{"$f":"_xll.RiskData('Risk Summary'!K$48,$A2903)/1000","v":{"$error":"#NAME?"}},{"$f":"_xll.RiskData('Risk Summary'!L$48,$A2903)/1000","v":{"$error":"#NAME?"}},null,null,{"$f":"(_xll.RiskData(NR_to_Cash!C$18,$A2903))/1000","v":{"$error":"#NAME?"}},{"$f":"(_xll.RiskData(NR_to_Cash!D$18,$A2903))/1000","v":{"$error":"#NAME?"}},{"$f":"(_xll.RiskData(NR_to_Cash!E$18,$A2903))/1000","v":{"$error":"#NAME?"}}]
[2897,{"$f":"_xll.RiskData('Risk Summary'!J$48,$A2904)/1000","v":{"$error":"#NAME?"}},{"$f":"_xll.RiskData('Risk Summary'!K$48,$A2904)/1000","v":{"$error":"#NAME?"}},{"$f":"_xll.RiskData('Risk Summary'!L$48,$A2904)/1000","v":{"$error":"#NAME?"}},null,null,{"$f":"(_xll.RiskData(NR_to_Cash!C$18,$A2904))/1000","v":{"$error":"#NAME?"}},{"$f":"(_xll.RiskData(NR_to_Cash!D$18,$A2904))/1000","v":{"$error":"#NAME?"}},{"$f":"(_xll.RiskData(NR_to_Cash!E$18,$A2904))/1000","v":{"$error":"#NAME?"}}]
[2898,{"$f":"_xll.RiskData('Risk Summary'!J$48,$A2905)/1000","v":{"$error":"#NAME?"}},{"$f":"_xll.RiskData('Risk Summary'!K$48,$A2905)/1000","v":{"$error":"#NAME?"}},{"$f":"_xll.RiskData('Risk Summary'!L$48,$A2905)/1000","v":{"$error":"#NAME?"}},null,null,{"$f":"(_xll.RiskData(NR_to_Cash!C$18,$A2905))/1000","v":{"$error":"#NAME?"}},{"$f":"(_xll.RiskData(NR_to_Cash!D$18,$A2905))/1000","v":{"$error":"#NAME?"}},{"$f":"(_xll.RiskData(NR_to_Cash!E$18,$A2905))/1000","v":{"$error":"#NAME?"}}]
[2899,{"$f":"_xll.RiskData('Risk Summary'!J$48,$A2906)/1000","v":{"$error":"#NAME?"}},{"$f":"_xll.RiskData('Risk Summary'!K$48,$A2906)/1000","v":{"$error":"#NAME?"}},{"$f":"_xll.RiskData('Risk Summary'!L$48,$A2906)/1000","v":{"$error":"#NAME?"}},null,null,{"$f":"(_xll.RiskData(NR_to_Cash!C$18,$A2906))/1000","v":{"$error":"#NAME?"}},{"$f":"(_xll.RiskData(NR_to_Cash!D$18,$A2906))/1000","v":{"$error":"#NAME?"}},{"$f":"(_xll.RiskData(NR_to_Cash!E$18,$A2906))/1000","v":{"$error":"#NAME?"}}]
[2900,{"$f":"_xll.RiskData('Risk Summary'!J$48,$A2907)/1000","v":{"$error":"#NAME?"}},{"$f":"_xll.RiskData('Risk Summary'!K$48,$A2907)/1000","v":{"$error":"#NAME?"}},{"$f":"_xll.RiskData('Risk Summary'!L$48,$A2907)/1000","v":{"$error":"#NAME?"}},null,null,{"$f":"(_xll.RiskData(NR_to_Cash!C$18,$A2907))/1000","v":{"$error":"#NAME?"}},{"$f":"(_xll.RiskData(NR_to_Cash!D$18,$A2907))/1000","v":{"$error":"#NAME?"}},{"$f":"(_xll.RiskData(NR_to_Cash!E$18,$A2907))/1000","v":{"$error":"#NAME?"}}]
[2901,{"$f":"_xll.RiskData('Risk Summary'!J$48,$A2908)/1000","v":{"$error":"#NAME?"}},{"$f":"_xll.RiskData('Risk Summary'!K$48,$A2908)/1000","v":{"$error":"#NAME?"}},{"$f":"_xll.RiskData('Risk Summary'!L$48,$A2908)/1000","v":{"$error":"#NAME?"}},null,null,{"$f":"(_xll.RiskData(NR_to_Cash!C$18,$A2908))/1000","v":{"$error":"#NAME?"}},{"$f":"(_xll.RiskData(NR_to_Cash!D$18,$A2908))/1000","v":{"$error":"#NAME?"}},{"$f":"(_xll.RiskData(NR_to_Cash!E$18,$A2908))/1000","v":{"$error":"#NAME?"}}]
[2902,{"$f":"_xll.RiskData('Risk Summary'!J$48,$A2909)/1000","v":{"$error":"#NAME?"}},{"$f":"_xll.RiskData('Risk Summary'!K$48,$A2909)/1000","v":{"$error":"#NAME?"}},{"$f":"_xll.RiskData('Risk Summary'!L$48,$A2909)/1000","v":{"$error":"#NAME?"}},null,null,{"$f":"(_xll.RiskData(NR_to_Cash!C$18,$A2909))/1000","v":{"$error":"#NAME?"}},{"$f":"(_xll.RiskData(NR_to_Cash!D$18,$A2909))/1000","v":{"$error":"#NAME?"}},{"$f":"(_xll.RiskData(NR_to_Cash!E$18,$A2909))/1000","v":{"$error":"#NAME?"}}]
[2903,{"$f":"_xll.RiskData('Risk Summary'!J$48,$A2910)/1000","v":{"$error":"#NAME?"}},{"$f":"_xll.RiskData('Risk Summary'!K$48,$A2910)/1000","v":{"$error":"#NAME?"}},{"$f":"_xll.RiskData('Risk Summary'!L$48,$A2910)/1000","v":{"$error":"#NAME?"}},null,null,{"$f":"(_xll.RiskData(NR_to_Cash!C$18,$A2910))/1000","v":{"$error":"#NAME?"}},{"$f":"(_xll.RiskData(NR_to_Cash!D$18,$A2910))/1000","v":{"$error":"#NAME?"}},{"$f":"(_xll.RiskData(NR_to_Cash!E$18,$A2910))/1000","v":{"$error":"#NAME?"}}]
[2904,{"$f":"_xll.RiskData('Risk Summary'!J$48,$A2911)/1000","v":{"$error":"#NAME?"}},{"$f":"_xll.RiskData('Risk Summary'!K$48,$A2911)/1000","v":{"$error":"#NAME?"}},{"$f":"_xll.RiskData('Risk Summary'!L$48,$A2911)/1000","v":{"$error":"#NAME?"}},null,null,{"$f":"(_xll.RiskData(NR_to_Cash!C$18,$A2911))/1000","v":{"$error":"#NAME?"}},{"$f":"(_xll.RiskData(NR_to_Cash!D$18,$A2911))/1000","v":{"$error":"#NAME?"}},{"$f":"(_xll.RiskData(NR_to_Cash!E$18,$A2911))/1000","v":{"$error":"#NAME?"}}]
[2905,{"$f":"_xll.RiskData('Risk Summary'!J$48,$A2912)/1000","v":{"$error":"#NAME?"}},{"$f":"_xll.RiskData('Risk Summary'!K$48,$A2912)/1000","v":{"$error":"#NAME?"}},{"$f":"_xll.RiskData('Risk Summary'!L$48,$A2912)/1000","v":{"$error":"#NAME?"}},null,null,{"$f":"(_xll.RiskData(NR_to_Cash!C$18,$A2912))/1000","v":{"$error":"#NAME?"}},{"$f":"(_xll.RiskData(NR_to_Cash!D$18,$A2912))/1000","v":{"$error":"#NAME?"}},{"$f":"(_xll.RiskData(NR_to_Cash!E$18,$A2912))/1000","v":{"$error":"#NAME?"}}]
[2906,{"$f":"_xll.RiskData('Risk Summary'!J$48,$A2913)/1000","v":{"$error":"#NAME?"}},{"$f":"_xll.RiskData('Risk Summary'!K$48,$A2913)/1000","v":{"$error":"#NAME?"}},{"$f":"_xll.RiskData('Risk Summary'!L$48,$A2913)/1000","v":{"$error":"#NAME?"}},null,null,{"$f":"(_xll.RiskData(NR_to_Cash!C$18,$A2913))/1000","v":{"$error":"#NAME?"}},{"$f":"(_xll.RiskData(NR_to_Cash!D$18,$A2913))/1000","v":{"$error":"#NAME?"}},{"$f":"(_xll.RiskData(NR_to_Cash!E$18,$A2913))/1000","v":{"$error":"#NAME?"}}]
[2907,{"$f":"_xll.RiskData('Risk Summary'!J$48,$A2914)/1000","v":{"$error":"#NAME?"}},{"$f":"_xll.RiskData('Risk Summary'!K$48,$A2914)/1000","v":{"$error":"#NAME?"}},{"$f":"_xll.RiskData('Risk Summary'!L$48,$A2914)/1000","v":{"$error":"#NAME?"}},null,null,{"$f":"(_xll.RiskData(NR_to_Cash!C$18,$A2914))/1000","v":{"$error":"#NAME?"}},{"$f":"(_xll.RiskData(NR_to_Cash!D$18,$A2914))/1000","v":{"$error":"#NAME?"}},{"$f":"(_xll.RiskData(NR_to_Cash!E$18,$A2914))/1000","v":{"$error":"#NAME?"}}]
[2908,{"$f":"_xll.RiskData('Risk Summary'!J$48,$A2915)/1000","v":{"$error":"#NAME?"}},{"$f":"_xll.RiskData('Risk Summary'!K$48,$A2915)/1000","v":{"$error":"#NAME?"}},{"$f":"_xll.RiskData('Risk Summary'!L$48,$A2915)/1000","v":{"$error":"#NAME?"}},null,null,{"$f":"(_xll.RiskData(NR_to_Cash!C$18,$A2915))/1000","v":{"$error":"#NAME?"}},{"$f":"(_xll.RiskData(NR_to_Cash!D$18,$A2915))/1000","v":{"$error":"#NAME?"}},{"$f":"(_xll.RiskData(NR_to_Cash!E$18,$A2915))/1000","v":{"$error":"#NAME?"}}]
[2909,{"$f":"_xll.RiskData('Risk Summary'!J$48,$A2916)/1000","v":{"$error":"#NAME?"}},{"$f":"_xll.RiskData('Risk Summary'!K$48,$A2916)/1000","v":{"$error":"#NAME?"}},{"$f":"_xll.RiskData('Risk Summary'!L$48,$A2916)/1000","v":{"$error":"#NAME?"}},null,null,{"$f":"(_xll.RiskData(NR_to_Cash!C$18,$A2916))/1000","v":{"$error":"#NAME?"}},{"$f":"(_xll.RiskData(NR_to_Cash!D$18,$A2916))/1000","v":{"$error":"#NAME?"}},{"$f":"(_xll.RiskData(NR_to_Cash!E$18,$A2916))/1000","v":{"$error":"#NAME?"}}]
[2910,{"$f":"_xll.RiskData('Risk Summary'!J$48,$A2917)/1000","v":{"$error":"#NAME?"}},{"$f":"_xll.RiskData('Risk Summary'!K$48,$A2917)/1000","v":{"$error":"#NAME?"}},{"$f":"_xll.RiskData('Risk Summary'!L$48,$A2917)/1000","v":{"$error":"#NAME?"}},null,null,{"$f":"(_xll.RiskData(NR_to_Cash!C$18,$A2917))/1000","v":{"$error":"#NAME?"}},{"$f":"(_xll.RiskData(NR_to_Cash!D$18,$A2917))/1000","v":{"$error":"#NAME?"}},{"$f":"(_xll.RiskData(NR_to_Cash!E$18,$A2917))/1000","v":{"$error":"#NAME?"}}]
[2911,{"$f":"_xll.RiskData('Risk Summary'!J$48,$A2918)/1000","v":{"$error":"#NAME?"}},{"$f":"_xll.RiskData('Risk Summary'!K$48,$A2918)/1000","v":{"$error":"#NAME?"}},{"$f":"_xll.RiskData('Risk Summary'!L$48,$A2918)/1000","v":{"$error":"#NAME?"}},null,null,{"$f":"(_xll.RiskData(NR_to_Cash!C$18,$A2918))/1000","v":{"$error":"#NAME?"}},{"$f":"(_xll.RiskData(NR_to_Cash!D$18,$A2918))/1000","v":{"$error":"#NAME?"}},{"$f":"(_xll.RiskData(NR_to_Cash!E$18,$A2918))/1000","v":{"$error":"#NAME?"}}]
[2912,{"$f":"_xll.RiskData('Risk Summary'!J$48,$A2919)/1000","v":{"$error":"#NAME?"}},{"$f":"_xll.RiskData('Risk Summary'!K$48,$A2919)/1000","v":{"$error":"#NAME?"}},{"$f":"_xll.RiskData('Risk Summary'!L$48,$A2919)/1000","v":{"$error":"#NAME?"}},null,null,{"$f":"(_xll.RiskData(NR_to_Cash!C$18,$A2919))/1000","v":{"$error":"#NAME?"}},{"$f":"(_xll.RiskData(NR_to_Cash!D$18,$A2919))/1000","v":{"$error":"#NAME?"}},{"$f":"(_xll.RiskData(NR_to_Cash!E$18,$A2919))/1000","v":{"$error":"#NAME?"}}]
[2913,{"$f":"_xll.RiskData('Risk Summary'!J$48,$A2920)/1000","v":{"$error":"#NAME?"}},{"$f":"_xll.RiskData('Risk Summary'!K$48,$A2920)/1000","v":{"$error":"#NAME?"}},{"$f":"_xll.RiskData('Risk Summary'!L$48,$A2920)/1000","v":{"$error":"#NAME?"}},null,null,{"$f":"(_xll.RiskData(NR_to_Cash!C$18,$A2920))/1000","v":{"$error":"#NAME?"}},{"$f":"(_xll.RiskData(NR_to_Cash!D$18,$A2920))/1000","v":{"$error":"#NAME?"}},{"$f":"(_xll.RiskData(NR_to_Cash!E$18,$A2920))/1000","v":{"$error":"#NAME?"}}]
[2914,{"$f":"_xll.RiskData('Risk Summary'!J$48,$A2921)/1000","v":{"$error":"#NAME?"}},{"$f":"_xll.RiskData('Risk Summary'!K$48,$A2921)/1000","v":{"$error":"#NAME?"}},{"$f":"_xll.RiskData('Risk Summary'!L$48,$A2921)/1000","v":{"$error":"#NAME?"}},null,null,{"$f":"(_xll.RiskData(NR_to_Cash!C$18,$A2921))/1000","v":{"$error":"#NAME?"}},{"$f":"(_xll.RiskData(NR_to_Cash!D$18,$A2921))/1000","v":{"$error":"#NAME?"}},{"$f":"(_xll.RiskData(NR_to_Cash!E$18,$A2921))/1000","v":{"$error":"#NAME?"}}]
[2915,{"$f":"_xll.RiskData('Risk Summary'!J$48,$A2922)/1000","v":{"$error":"#NAME?"}},{"$f":"_xll.RiskData('Risk Summary'!K$48,$A2922)/1000","v":{"$error":"#NAME?"}},{"$f":"_xll.RiskData('Risk Summary'!L$48,$A2922)/1000","v":{"$error":"#NAME?"}},null,null,{"$f":"(_xll.RiskData(NR_to_Cash!C$18,$A2922))/1000","v":{"$error":"#NAME?"}},{"$f":"(_xll.RiskData(NR_to_Cash!D$18,$A2922))/1000","v":{"$error":"#NAME?"}},{"$f":"(_xll.RiskData(NR_to_Cash!E$18,$A2922))/1000","v":{"$error":"#NAME?"}}]
[2916,{"$f":"_xll.RiskData('Risk Summary'!J$48,$A2923)/1000","v":{"$error":"#NAME?"}},{"$f":"_xll.RiskData('Risk Summary'!K$48,$A2923)/1000","v":{"$error":"#NAME?"}},{"$f":"_xll.RiskData('Risk Summary'!L$48,$A2923)/1000","v":{"$error":"#NAME?"}},null,null,{"$f":"(_xll.RiskData(NR_to_Cash!C$18,$A2923))/1000","v":{"$error":"#NAME?"}},{"$f":"(_xll.RiskData(NR_to_Cash!D$18,$A2923))/1000","v":{"$error":"#NAME?"}},{"$f":"(_xll.RiskData(NR_to_Cash!E$18,$A2923))/1000","v":{"$error":"#NAME?"}}]
[2917,{"$f":"_xll.RiskData('Risk Summary'!J$48,$A2924)/1000","v":{"$error":"#NAME?"}},{"$f":"_xll.RiskData('Risk Summary'!K$48,$A2924)/1000","v":{"$error":"#NAME?"}},{"$f":"_xll.RiskData('Risk Summary'!L$48,$A2924)/1000","v":{"$error":"#NAME?"}},null,null,{"$f":"(_xll.RiskData(NR_to_Cash!C$18,$A2924))/1000","v":{"$error":"#NAME?"}},{"$f":"(_xll.RiskData(NR_to_Cash!D$18,$A2924))/1000","v":{"$error":"#NAME?"}},{"$f":"(_xll.RiskData(NR_to_Cash!E$18,$A2924))/1000","v":{"$error":"#NAME?"}}]
[2918,{"$f":"_xll.RiskData('Risk Summary'!J$48,$A2925)/1000","v":{"$error":"#NAME?"}},{"$f":"_xll.RiskData('Risk Summary'!K$48,$A2925)/1000","v":{"$error":"#NAME?"}},{"$f":"_xll.RiskData('Risk Summary'!L$48,$A2925)/1000","v":{"$error":"#NAME?"}},null,null,{"$f":"(_xll.RiskData(NR_to_Cash!C$18,$A2925))/1000","v":{"$error":"#NAME?"}},{"$f":"(_xll.RiskData(NR_to_Cash!D$18,$A2925))/1000","v":{"$error":"#NAME?"}},{"$f":"(_xll.RiskData(NR_to_Cash!E$18,$A2925))/1000","v":{"$error":"#NAME?"}}]
[2919,{"$f":"_xll.RiskData('Risk Summary'!J$48,$A2926)/1000","v":{"$error":"#NAME?"}},{"$f":"_xll.RiskData('Risk Summary'!K$48,$A2926)/1000","v":{"$error":"#NAME?"}},{"$f":"_xll.RiskData('Risk Summary'!L$48,$A2926)/1000","v":{"$error":"#NAME?"}},null,null,{"$f":"(_xll.RiskData(NR_to_Cash!C$18,$A2926))/1000","v":{"$error":"#NAME?"}},{"$f":"(_xll.RiskData(NR_to_Cash!D$18,$A2926))/1000","v":{"$error":"#NAME?"}},{"$f":"(_xll.RiskData(NR_to_Cash!E$18,$A2926))/1000","v":{"$error":"#NAME?"}}]
[2920,{"$f":"_xll.RiskData('Risk Summary'!J$48,$A2927)/1000","v":{"$error":"#NAME?"}},{"$f":"_xll.RiskData('Risk Summary'!K$48,$A2927)/1000","v":{"$error":"#NAME?"}},{"$f":"_xll.RiskData('Risk Summary'!L$48,$A2927)/1000","v":{"$error":"#NAME?"}},null,null,{"$f":"(_xll.RiskData(NR_to_Cash!C$18,$A2927))/1000","v":{"$error":"#NAME?"}},{"$f":"(_xll.RiskData(NR_to_Cash!D$18,$A2927))/1000","v":{"$error":"#NAME?"}},{"$f":"(_xll.RiskData(NR_to_Cash!E$18,$A2927))/1000","v":{"$error":"#NAME?"}}]
[2921,{"$f":"_xll.RiskData('Risk Summary'!J$48,$A2928)/1000","v":{"$error":"#NAME?"}},{"$f":"_xll.RiskData('Risk Summary'!K$48,$A2928)/1000","v":{"$error":"#NAME?"}},{"$f":"_xll.RiskData('Risk Summary'!L$48,$A2928)/1000","v":{"$error":"#NAME?"}},null,null,{"$f":"(_xll.RiskData(NR_to_Cash!C$18,$A2928))/1000","v":{"$error":"#NAME?"}},{"$f":"(_xll.RiskData(NR_to_Cash!D$18,$A2928))/1000","v":{"$error":"#NAME?"}},{"$f":"(_xll.RiskData(NR_to_Cash!E$18,$A2928))/1000","v":{"$error":"#NAME?"}}]
[2922,{"$f":"_xll.RiskData('Risk Summary'!J$48,$A2929)/1000","v":{"$error":"#NAME?"}},{"$f":"_xll.RiskData('Risk Summary'!K$48,$A2929)/1000","v":{"$error":"#NAME?"}},{"$f":"_xll.RiskData('Risk Summary'!L$48,$A2929)/1000","v":{"$error":"#NAME?"}},null,null,{"$f":"(_xll.RiskData(NR_to_Cash!C$18,$A2929))/1000","v":{"$error":"#NAME?"}},{"$f":"(_xll.RiskData(NR_to_Cash!D$18,$A2929))/1000","v":{"$error":"#NAME?"}},{"$f":"(_xll.RiskData(NR_to_Cash!E$18,$A2929))/1000","v":{"$error":"#NAME?"}}]
[2923,{"$f":"_xll.RiskData('Risk Summary'!J$48,$A2930)/1000","v":{"$error":"#NAME?"}},{"$f":"_xll.RiskData('Risk Summary'!K$48,$A2930)/1000","v":{"$error":"#NAME?"}},{"$f":"_xll.RiskData('Risk Summary'!L$48,$A2930)/1000","v":{"$error":"#NAME?"}},null,null,{"$f":"(_xll.RiskData(NR_to_Cash!C$18,$A2930))/1000","v":{"$error":"#NAME?"}},{"$f":"(_xll.RiskData(NR_to_Cash!D$18,$A2930))/1000","v":{"$error":"#NAME?"}},{"$f":"(_xll.RiskData(NR_to_Cash!E$18,$A2930))/1000","v":{"$error":"#NAME?"}}]
[2924,{"$f":"_xll.RiskData('Risk Summary'!J$48,$A2931)/1000","v":{"$error":"#NAME?"}},{"$f":"_xll.RiskData('Risk Summary'!K$48,$A2931)/1000","v":{"$error":"#NAME?"}},{"$f":"_xll.RiskData('Risk Summary'!L$48,$A2931)/1000","v":{"$error":"#NAME?"}},null,null,{"$f":"(_xll.RiskData(NR_to_Cash!C$18,$A2931))/1000","v":{"$error":"#NAME?"}},{"$f":"(_xll.RiskData(NR_to_Cash!D$18,$A2931))/1000","v":{"$error":"#NAME?"}},{"$f":"(_xll.RiskData(NR_to_Cash!E$18,$A2931))/1000","v":{"$error":"#NAME?"}}]
[2925,{"$f":"_xll.RiskData('Risk Summary'!J$48,$A2932)/1000","v":{"$error":"#NAME?"}},{"$f":"_xll.RiskData('Risk Summary'!K$48,$A2932)/1000","v":{"$error":"#NAME?"}},{"$f":"_xll.RiskData('Risk Summary'!L$48,$A2932)/1000","v":{"$error":"#NAME?"}},null,null,{"$f":"(_xll.RiskData(NR_to_Cash!C$18,$A2932))/1000","v":{"$error":"#NAME?"}},{"$f":"(_xll.RiskData(NR_to_Cash!D$18,$A2932))/1000","v":{"$error":"#NAME?"}},{"$f":"(_xll.RiskData(NR_to_Cash!E$18,$A2932))/1000","v":{"$error":"#NAME?"}}]
[2926,{"$f":"_xll.RiskData('Risk Summary'!J$48,$A2933)/1000","v":{"$error":"#NAME?"}},{"$f":"_xll.RiskData('Risk Summary'!K$48,$A2933)/1000","v":{"$error":"#NAME?"}},{"$f":"_xll.RiskData('Risk Summary'!L$48,$A2933)/1000","v":{"$error":"#NAME?"}},null,null,{"$f":"(_xll.RiskData(NR_to_Cash!C$18,$A2933))/1000","v":{"$error":"#NAME?"}},{"$f":"(_xll.RiskData(NR_to_Cash!D$18,$A2933))/1000","v":{"$error":"#NAME?"}},{"$f":"(_xll.RiskData(NR_to_Cash!E$18,$A2933))/1000","v":{"$error":"#NAME?"}}]
[2927,{"$f":"_xll.RiskData('Risk Summary'!J$48,$A2934)/1000","v":{"$error":"#NAME?"}},{"$f":"_xll.RiskData('Risk Summary'!K$48,$A2934)/1000","v":{"$error":"#NAME?"}},{"$f":"_xll.RiskData('Risk Summary'!L$48,$A2934)/1000","v":{"$error":"#NAME?"}},null,null,{"$f":"(_xll.RiskData(NR_to_Cash!C$18,$A2934))/1000","v":{"$error":"#NAME?"}},{"$f":"(_xll.RiskData(NR_to_Cash!D$18,$A2934))/1000","v":{"$error":"#NAME?"}},{"$f":"(_xll.RiskData(NR_to_Cash!E$18,$A2934))/1000","v":{"$error":"#NAME?"}}]
[2928,{"$f":"_xll.RiskData('Risk Summary'!J$48,$A2935)/1000","v":{"$error":"#NAME?"}},{"$f":"_xll.RiskData('Risk Summary'!K$48,$A2935)/1000","v":{"$error":"#NAME?"}},{"$f":"_xll.RiskData('Risk Summary'!L$48,$A2935)/1000","v":{"$error":"#NAME?"}},null,null,{"$f":"(_xll.RiskData(NR_to_Cash!C$18,$A2935))/1000","v":{"$error":"#NAME?"}},{"$f":"(_xll.RiskData(NR_to_Cash!D$18,$A2935))/1000","v":{"$error":"#NAME?"}},{"$f":"(_xll.RiskData(NR_to_Cash!E$18,$A2935))/1000","v":{"$error":"#NAME?"}}]
[2929,{"$f":"_xll.RiskData('Risk Summary'!J$48,$A2936)/1000","v":{"$error":"#NAME?"}},{"$f":"_xll.RiskData('Risk Summary'!K$48,$A2936)/1000","v":{"$error":"#NAME?"}},{"$f":"_xll.RiskData('Risk Summary'!L$48,$A2936)/1000","v":{"$error":"#NAME?"}},null,null,{"$f":"(_xll.RiskData(NR_to_Cash!C$18,$A2936))/1000","v":{"$error":"#NAME?"}},{"$f":"(_xll.RiskData(NR_to_Cash!D$18,$A2936))/1000","v":{"$error":"#NAME?"}},{"$f":"(_xll.RiskData(NR_to_Cash!E$18,$A2936))/1000","v":{"$error":"#NAME?"}}]
[2930,{"$f":"_xll.RiskData('Risk Summary'!J$48,$A2937)/1000","v":{"$error":"#NAME?"}},{"$f":"_xll.RiskData('Risk Summary'!K$48,$A2937)/1000","v":{"$error":"#NAME?"}},{"$f":"_xll.RiskData('Risk Summary'!L$48,$A2937)/1000","v":{"$error":"#NAME?"}},null,null,{"$f":"(_xll.RiskData(NR_to_Cash!C$18,$A2937))/1000","v":{"$error":"#NAME?"}},{"$f":"(_xll.RiskData(NR_to_Cash!D$18,$A2937))/1000","v":{"$error":"#NAME?"}},{"$f":"(_xll.RiskData(NR_to_Cash!E$18,$A2937))/1000","v":{"$error":"#NAME?"}}]
[2931,{"$f":"_xll.RiskData('Risk Summary'!J$48,$A2938)/1000","v":{"$error":"#NAME?"}},{"$f":"_xll.RiskData('Risk Summary'!K$48,$A2938)/1000","v":{"$error":"#NAME?"}},{"$f":"_xll.RiskData('Risk Summary'!L$48,$A2938)/1000","v":{"$error":"#NAME?"}},null,null,{"$f":"(_xll.RiskData(NR_to_Cash!C$18,$A2938))/1000","v":{"$error":"#NAME?"}},{"$f":"(_xll.RiskData(NR_to_Cash!D$18,$A2938))/1000","v":{"$error":"#NAME?"}},{"$f":"(_xll.RiskData(NR_to_Cash!E$18,$A2938))/1000","v":{"$error":"#NAME?"}}]
[2932,{"$f":"_xll.RiskData('Risk Summary'!J$48,$A2939)/1000","v":{"$error":"#NAME?"}},{"$f":"_xll.RiskData('Risk Summary'!K$48,$A2939)/1000","v":{"$error":"#NAME?"}},{"$f":"_xll.RiskData('Risk Summary'!L$48,$A2939)/1000","v":{"$error":"#NAME?"}},null,null,{"$f":"(_xll.RiskData(NR_to_Cash!C$18,$A2939))/1000","v":{"$error":"#NAME?"}},{"$f":"(_xll.RiskData(NR_to_Cash!D$18,$A2939))/1000","v":{"$error":"#NAME?"}},{"$f":"(_xll.RiskData(NR_to_Cash!E$18,$A2939))/1000","v":{"$error":"#NAME?"}}]
[2933,{"$f":"_xll.RiskData('Risk Summary'!J$48,$A2940)/1000","v":{"$error":"#NAME?"}},{"$f":"_xll.RiskData('Risk Summary'!K$48,$A2940)/1000","v":{"$error":"#NAME?"}},{"$f":"_xll.RiskData('Risk Summary'!L$48,$A2940)/1000","v":{"$error":"#NAME?"}},null,null,{"$f":"(_xll.RiskData(NR_to_Cash!C$18,$A2940))/1000","v":{"$error":"#NAME?"}},{"$f":"(_xll.RiskData(NR_to_Cash!D$18,$A2940))/1000","v":{"$error":"#NAME?"}},{"$f":"(_xll.RiskData(NR_to_Cash!E$18,$A2940))/1000","v":{"$error":"#NAME?"}}]
[2934,{"$f":"_xll.RiskData('Risk Summary'!J$48,$A2941)/1000","v":{"$error":"#NAME?"}},{"$f":"_xll.RiskData('Risk Summary'!K$48,$A2941)/1000","v":{"$error":"#NAME?"}},{"$f":"_xll.RiskData('Risk Summary'!L$48,$A2941)/1000","v":{"$error":"#NAME?"}},null,null,{"$f":"(_xll.RiskData(NR_to_Cash!C$18,$A2941))/1000","v":{"$error":"#NAME?"}},{"$f":"(_xll.RiskData(NR_to_Cash!D$18,$A2941))/1000","v":{"$error":"#NAME?"}},{"$f":"(_xll.RiskData(NR_to_Cash!E$18,$A2941))/1000","v":{"$error":"#NAME?"}}]
[2935,{"$f":"_xll.RiskData('Risk Summary'!J$48,$A2942)/1000","v":{"$error":"#NAME?"}},{"$f":"_xll.RiskData('Risk Summary'!K$48,$A2942)/1000","v":{"$error":"#NAME?"}},{"$f":"_xll.RiskData('Risk Summary'!L$48,$A2942)/1000","v":{"$error":"#NAME?"}},null,null,{"$f":"(_xll.RiskData(NR_to_Cash!C$18,$A2942))/1000","v":{"$error":"#NAME?"}},{"$f":"(_xll.RiskData(NR_to_Cash!D$18,$A2942))/1000","v":{"$error":"#NAME?"}},{"$f":"(_xll.RiskData(NR_to_Cash!E$18,$A2942))/1000","v":{"$error":"#NAME?"}}]
[2936,{"$f":"_xll.RiskData('Risk Summary'!J$48,$A2943)/1000","v":{"$error":"#NAME?"}},{"$f":"_xll.RiskData('Risk Summary'!K$48,$A2943)/1000","v":{"$error":"#NAME?"}},{"$f":"_xll.RiskData('Risk Summary'!L$48,$A2943)/1000","v":{"$error":"#NAME?"}},null,null,{"$f":"(_xll.RiskData(NR_to_Cash!C$18,$A2943))/1000","v":{"$error":"#NAME?"}},{"$f":"(_xll.RiskData(NR_to_Cash!D$18,$A2943))/1000","v":{"$error":"#NAME?"}},{"$f":"(_xll.RiskData(NR_to_Cash!E$18,$A2943))/1000","v":{"$error":"#NAME?"}}]
[2937,{"$f":"_xll.RiskData('Risk Summary'!J$48,$A2944)/1000","v":{"$error":"#NAME?"}},{"$f":"_xll.RiskData('Risk Summary'!K$48,$A2944)/1000","v":{"$error":"#NAME?"}},{"$f":"_xll.RiskData('Risk Summary'!L$48,$A2944)/1000","v":{"$error":"#NAME?"}},null,null,{"$f":"(_xll.RiskData(NR_to_Cash!C$18,$A2944))/1000","v":{"$error":"#NAME?"}},{"$f":"(_xll.RiskData(NR_to_Cash!D$18,$A2944))/1000","v":{"$error":"#NAME?"}},{"$f":"(_xll.RiskData(NR_to_Cash!E$18,$A2944))/1000","v":{"$error":"#NAME?"}}]
[2938,{"$f":"_xll.RiskData('Risk Summary'!J$48,$A2945)/1000","v":{"$error":"#NAME?"}},{"$f":"_xll.RiskData('Risk Summary'!K$48,$A2945)/1000","v":{"$error":"#NAME?"}},{"$f":"_xll.RiskData('Risk Summary'!L$48,$A2945)/1000","v":{"$error":"#NAME?"}},null,null,{"$f":"(_xll.RiskData(NR_to_Cash!C$18,$A2945))/1000","v":{"$error":"#NAME?"}},{"$f":"(_xll.RiskData(NR_to_Cash!D$18,$A2945))/1000","v":{"$error":"#NAME?"}},{"$f":"(_xll.RiskData(NR_to_Cash!E$18,$A2945))/1000","v":{"$error":"#NAME?"}}]
[2939,{"$f":"_xll.RiskData('Risk Summary'!J$48,$A2946)/1000","v":{"$error":"#NAME?"}},{"$f":"_xll.RiskData('Risk Summary'!K$48,$A2946)/1000","v":{"$error":"#NAME?"}},{"$f":"_xll.RiskData('Risk Summary'!L$48,$A2946)/1000","v":{"$error":"#NAME?"}},null,null,{"$f":"(_xll.RiskData(NR_to_Cash!C$18,$A2946))/1000","v":{"$error":"#NAME?"}},{"$f":"(_xll.RiskData(NR_to_Cash!D$18,$A2946))/1000","v":{"$error":"#NAME?"}},{"$f":"(_xll.RiskData(NR_to_Cash!E$18,$A2946))/1000","v":{"$error":"#NAME?"}}]
[2940,{"$f":"_xll.RiskData('Risk Summary'!J$48,$A2947)/1000","v":{"$error":"#NAME?"}},{"$f":"_xll.RiskData('Risk Summary'!K$48,$A2947)/1000","v":{"$error":"#NAME?"}},{"$f":"_xll.RiskData('Risk Summary'!L$48,$A2947)/1000","v":{"$error":"#NAME?"}},null,null,{"$f":"(_xll.RiskData(NR_to_Cash!C$18,$A2947))/1000","v":{"$error":"#NAME?"}},{"$f":"(_xll.RiskData(NR_to_Cash!D$18,$A2947))/1000","v":{"$error":"#NAME?"}},{"$f":"(_xll.RiskData(NR_to_Cash!E$18,$A2947))/1000","v":{"$error":"#NAME?"}}]
[2941,{"$f":"_xll.RiskData('Risk Summary'!J$48,$A2948)/1000","v":{"$error":"#NAME?"}},{"$f":"_xll.RiskData('Risk Summary'!K$48,$A2948)/1000","v":{"$error":"#NAME?"}},{"$f":"_xll.RiskData('Risk Summary'!L$48,$A2948)/1000","v":{"$error":"#NAME?"}},null,null,{"$f":"(_xll.RiskData(NR_to_Cash!C$18,$A2948))/1000","v":{"$error":"#NAME?"}},{"$f":"(_xll.RiskData(NR_to_Cash!D$18,$A2948))/1000","v":{"$error":"#NAME?"}},{"$f":"(_xll.RiskData(NR_to_Cash!E$18,$A2948))/1000","v":{"$error":"#NAME?"}}]
[2942,{"$f":"_xll.RiskData('Risk Summary'!J$48,$A2949)/1000","v":{"$error":"#NAME?"}},{"$f":"_xll.RiskData('Risk Summary'!K$48,$A2949)/1000","v":{"$error":"#NAME?"}},{"$f":"_xll.RiskData('Risk Summary'!L$48,$A2949)/1000","v":{"$error":"#NAME?"}},null,null,{"$f":"(_xll.RiskData(NR_to_Cash!C$18,$A2949))/1000","v":{"$error":"#NAME?"}},{"$f":"(_xll.RiskData(NR_to_Cash!D$18,$A2949))/1000","v":{"$error":"#NAME?"}},{"$f":"(_xll.RiskData(NR_to_Cash!E$18,$A2949))/1000","v":{"$error":"#NAME?"}}]
[2943,{"$f":"_xll.RiskData('Risk Summary'!J$48,$A2950)/1000","v":{"$error":"#NAME?"}},{"$f":"_xll.RiskData('Risk Summary'!K$48,$A2950)/1000","v":{"$error":"#NAME?"}},{"$f":"_xll.RiskData('Risk Summary'!L$48,$A2950)/1000","v":{"$error":"#NAME?"}},null,null,{"$f":"(_xll.RiskData(NR_to_Cash!C$18,$A2950))/1000","v":{"$error":"#NAME?"}},{"$f":"(_xll.RiskData(NR_to_Cash!D$18,$A2950))/1000","v":{"$error":"#NAME?"}},{"$f":"(_xll.RiskData(NR_to_Cash!E$18,$A2950))/1000","v":{"$error":"#NAME?"}}]
[2944,{"$f":"_xll.RiskData('Risk Summary'!J$48,$A2951)/1000","v":{"$error":"#NAME?"}},{"$f":"_xll.RiskData('Risk Summary'!K$48,$A2951)/1000","v":{"$error":"#NAME?"}},{"$f":"_xll.RiskData('Risk Summary'!L$48,$A2951)/1000","v":{"$error":"#NAME?"}},null,null,{"$f":"(_xll.RiskData(NR_to_Cash!C$18,$A2951))/1000","v":{"$error":"#NAME?"}},{"$f":"(_xll.RiskData(NR_to_Cash!D$18,$A2951))/1000","v":{"$error":"#NAME?"}},{"$f":"(_xll.RiskData(NR_to_Cash!E$18,$A2951))/1000","v":{"$error":"#NAME?"}}]
[2945,{"$f":"_xll.RiskData('Risk Summary'!J$48,$A2952)/1000","v":{"$error":"#NAME?"}},{"$f":"_xll.RiskData('Risk Summary'!K$48,$A2952)/1000","v":{"$error":"#NAME?"}},{"$f":"_xll.RiskData('Risk Summary'!L$48,$A2952)/1000","v":{"$error":"#NAME?"}},null,null,{"$f":"(_xll.RiskData(NR_to_Cash!C$18,$A2952))/1000","v":{"$error":"#NAME?"}},{"$f":"(_xll.RiskData(NR_to_Cash!D$18,$A2952))/1000","v":{"$error":"#NAME?"}},{"$f":"(_xll.RiskData(NR_to_Cash!E$18,$A2952))/1000","v":{"$error":"#NAME?"}}]
[2946,{"$f":"_xll.RiskData('Risk Summary'!J$48,$A2953)/1000","v":{"$error":"#NAME?"}},{"$f":"_xll.RiskData('Risk Summary'!K$48,$A2953)/1000","v":{"$error":"#NAME?"}},{"$f":"_xll.RiskData('Risk Summary'!L$48,$A2953)/1000","v":{"$error":"#NAME?"}},null,null,{"$f":"(_xll.RiskData(NR_to_Cash!C$18,$A2953))/1000","v":{"$error":"#NAME?"}},{"$f":"(_xll.RiskData(NR_to_Cash!D$18,$A2953))/1000","v":{"$error":"#NAME?"}},{"$f":"(_xll.RiskData(NR_to_Cash!E$18,$A2953))/1000","v":{"$error":"#NAME?"}}]
[2947,{"$f":"_xll.RiskData('Risk Summary'!J$48,$A2954)/1000","v":{"$error":"#NAME?"}},{"$f":"_xll.RiskData('Risk Summary'!K$48,$A2954)/1000","v":{"$error":"#NAME?"}},{"$f":"_xll.RiskData('Risk Summary'!L$48,$A2954)/1000","v":{"$error":"#NAME?"}},null,null,{"$f":"(_xll.RiskData(NR_to_Cash!C$18,$A2954))/1000","v":{"$error":"#NAME?"}},{"$f":"(_xll.RiskData(NR_to_Cash!D$18,$A2954))/1000","v":{"$error":"#NAME?"}},{"$f":"(_xll.RiskData(NR_to_Cash!E$18,$A2954))/1000","v":{"$error":"#NAME?"}}]
[2948,{"$f":"_xll.RiskData('Risk Summary'!J$48,$A2955)/1000","v":{"$error":"#NAME?"}},{"$f":"_xll.RiskData('Risk Summary'!K$48,$A2955)/1000","v":{"$error":"#NAME?"}},{"$f":"_xll.RiskData('Risk Summary'!L$48,$A2955)/1000","v":{"$error":"#NAME?"}},null,null,{"$f":"(_xll.RiskData(NR_to_Cash!C$18,$A2955))/1000","v":{"$error":"#NAME?"}},{"$f":"(_xll.RiskData(NR_to_Cash!D$18,$A2955))/1000","v":{"$error":"#NAME?"}},{"$f":"(_xll.RiskData(NR_to_Cash!E$18,$A2955))/1000","v":{"$error":"#NAME?"}}]
[2949,{"$f":"_xll.RiskData('Risk Summary'!J$48,$A2956)/1000","v":{"$error":"#NAME?"}},{"$f":"_xll.RiskData('Risk Summary'!K$48,$A2956)/1000","v":{"$error":"#NAME?"}},{"$f":"_xll.RiskData('Risk Summary'!L$48,$A2956)/1000","v":{"$error":"#NAME?"}},null,null,{"$f":"(_xll.RiskData(NR_to_Cash!C$18,$A2956))/1000","v":{"$error":"#NAME?"}},{"$f":"(_xll.RiskData(NR_to_Cash!D$18,$A2956))/1000","v":{"$error":"#NAME?"}},{"$f":"(_xll.RiskData(NR_to_Cash!E$18,$A2956))/1000","v":{"$error":"#NAME?"}}]
[2950,{"$f":"_xll.RiskData('Risk Summary'!J$48,$A2957)/1000","v":{"$error":"#NAME?"}},{"$f":"_xll.RiskData('Risk Summary'!K$48,$A2957)/1000","v":{"$error":"#NAME?"}},{"$f":"_xll.RiskData('Risk Summary'!L$48,$A2957)/1000","v":{"$error":"#NAME?"}},null,null,{"$f":"(_xll.RiskData(NR_to_Cash!C$18,$A2957))/1000","v":{"$error":"#NAME?"}},{"$f":"(_xll.RiskData(NR_to_Cash!D$18,$A2957))/1000","v":{"$error":"#NAME?"}},{"$f":"(_xll.RiskData(NR_to_Cash!E$18,$A2957))/1000","v":{"$error":"#NAME?"}}]
[2951,{"$f":"_xll.RiskData('Risk Summary'!J$48,$A2958)/1000","v":{"$error":"#NAME?"}},{"$f":"_xll.RiskData('Risk Summary'!K$48,$A2958)/1000","v":{"$error":"#NAME?"}},{"$f":"_xll.RiskData('Risk Summary'!L$48,$A2958)/1000","v":{"$error":"#NAME?"}},null,null,{"$f":"(_xll.RiskData(NR_to_Cash!C$18,$A2958))/1000","v":{"$error":"#NAME?"}},{"$f":"(_xll.RiskData(NR_to_Cash!D$18,$A2958))/1000","v":{"$error":"#NAME?"}},{"$f":"(_xll.RiskData(NR_to_Cash!E$18,$A2958))/1000","v":{"$error":"#NAME?"}}]
[2952,{"$f":"_xll.RiskData('Risk Summary'!J$48,$A2959)/1000","v":{"$error":"#NAME?"}},{"$f":"_xll.RiskData('Risk Summary'!K$48,$A2959)/1000","v":{"$error":"#NAME?"}},{"$f":"_xll.RiskData('Risk Summary'!L$48,$A2959)/1000","v":{"$error":"#NAME?"}},null,null,{"$f":"(_xll.RiskData(NR_to_Cash!C$18,$A2959))/1000","v":{"$error":"#NAME?"}},{"$f":"(_xll.RiskData(NR_to_Cash!D$18,$A2959))/1000","v":{"$error":"#NAME?"}},{"$f":"(_xll.RiskData(NR_to_Cash!E$18,$A2959))/1000","v":{"$error":"#NAME?"}}]
[2953,{"$f":"_xll.RiskData('Risk Summary'!J$48,$A2960)/1000","v":{"$error":"#NAME?"}},{"$f":"_xll.RiskData('Risk Summary'!K$48,$A2960)/1000","v":{"$error":"#NAME?"}},{"$f":"_xll.RiskData('Risk Summary'!L$48,$A2960)/1000","v":{"$error":"#NAME?"}},null,null,{"$f":"(_xll.RiskData(NR_to_Cash!C$18,$A2960))/1000","v":{"$error":"#NAME?"}},{"$f":"(_xll.RiskData(NR_to_Cash!D$18,$A2960))/1000","v":{"$error":"#NAME?"}},{"$f":"(_xll.RiskData(NR_to_Cash!E$18,$A2960))/1000","v":{"$error":"#NAME?"}}]
[2954,{"$f":"_xll.RiskData('Risk Summary'!J$48,$A2961)/1000","v":{"$error":"#NAME?"}},{"$f":"_xll.RiskData('Risk Summary'!K$48,$A2961)/1000","v":{"$error":"#NAME?"}},{"$f":"_xll.RiskData('Risk Summary'!L$48,$A2961)/1000","v":{"$error":"#NAME?"}},null,null,{"$f":"(_xll.RiskData(NR_to_Cash!C$18,$A2961))/1000","v":{"$error":"#NAME?"}},{"$f":"(_xll.RiskData(NR_to_Cash!D$18,$A2961))/1000","v":{"$error":"#NAME?"}},{"$f":"(_xll.RiskData(NR_to_Cash!E$18,$A2961))/1000","v":{"$error":"#NAME?"}}]
[2955,{"$f":"_xll.RiskData('Risk Summary'!J$48,$A2962)/1000","v":{"$error":"#NAME?"}},{"$f":"_xll.RiskData('Risk Summary'!K$48,$A2962)/1000","v":{"$error":"#NAME?"}},{"$f":"_xll.RiskData('Risk Summary'!L$48,$A2962)/1000","v":{"$error":"#NAME?"}},null,null,{"$f":"(_xll.RiskData(NR_to_Cash!C$18,$A2962))/1000","v":{"$error":"#NAME?"}},{"$f":"(_xll.RiskData(NR_to_Cash!D$18,$A2962))/1000","v":{"$error":"#NAME?"}},{"$f":"(_xll.RiskData(NR_to_Cash!E$18,$A2962))/1000","v":{"$error":"#NAME?"}}]
[2956,{"$f":"_xll.RiskData('Risk Summary'!J$48,$A2963)/1000","v":{"$error":"#NAME?"}},{"$f":"_xll.RiskData('Risk Summary'!K$48,$A2963)/1000","v":{"$error":"#NAME?"}},{"$f":"_xll.RiskData('Risk Summary'!L$48,$A2963)/1000","v":{"$error":"#NAME?"}},null,null,{"$f":"(_xll.RiskData(NR_to_Cash!C$18,$A2963))/1000","v":{"$error":"#NAME?"}},{"$f":"(_xll.RiskData(NR_to_Cash!D$18,$A2963))/1000","v":{"$error":"#NAME?"}},{"$f":"(_xll.RiskData(NR_to_Cash!E$18,$A2963))/1000","v":{"$error":"#NAME?"}}]
[2957,{"$f":"_xll.RiskData('Risk Summary'!J$48,$A2964)/1000","v":{"$error":"#NAME?"}},{"$f":"_xll.RiskData('Risk Summary'!K$48,$A2964)/1000","v":{"$error":"#NAME?"}},{"$f":"_xll.RiskData('Risk Summary'!L$48,$A2964)/1000","v":{"$error":"#NAME?"}},null,null,{"$f":"(_xll.RiskData(NR_to_Cash!C$18,$A2964))/1000","v":{"$error":"#NAME?"}},{"$f":"(_xll.RiskData(NR_to_Cash!D$18,$A2964))/1000","v":{"$error":"#NAME?"}},{"$f":"(_xll.RiskData(NR_to_Cash!E$18,$A2964))/1000","v":{"$error":"#NAME?"}}]
[2958,{"$f":"_xll.RiskData('Risk Summary'!J$48,$A2965)/1000","v":{"$error":"#NAME?"}},{"$f":"_xll.RiskData('Risk Summary'!K$48,$A2965)/1000","v":{"$error":"#NAME?"}},{"$f":"_xll.RiskData('Risk Summary'!L$48,$A2965)/1000","v":{"$error":"#NAME?"}},null,null,{"$f":"(_xll.RiskData(NR_to_Cash!C$18,$A2965))/1000","v":{"$error":"#NAME?"}},{"$f":"(_xll.RiskData(NR_to_Cash!D$18,$A2965))/1000","v":{"$error":"#NAME?"}},{"$f":"(_xll.RiskData(NR_to_Cash!E$18,$A2965))/1000","v":{"$error":"#NAME?"}}]
[2959,{"$f":"_xll.RiskData('Risk Summary'!J$48,$A2966)/1000","v":{"$error":"#NAME?"}},{"$f":"_xll.RiskData('Risk Summary'!K$48,$A2966)/1000","v":{"$error":"#NAME?"}},{"$f":"_xll.RiskData('Risk Summary'!L$48,$A2966)/1000","v":{"$error":"#NAME?"}},null,null,{"$f":"(_xll.RiskData(NR_to_Cash!C$18,$A2966))/1000","v":{"$error":"#NAME?"}},{"$f":"(_xll.RiskData(NR_to_Cash!D$18,$A2966))/1000","v":{"$error":"#NAME?"}},{"$f":"(_xll.RiskData(NR_to_Cash!E$18,$A2966))/1000","v":{"$error":"#NAME?"}}]
[2960,{"$f":"_xll.RiskData('Risk Summary'!J$48,$A2967)/1000","v":{"$error":"#NAME?"}},{"$f":"_xll.RiskData('Risk Summary'!K$48,$A2967)/1000","v":{"$error":"#NAME?"}},{"$f":"_xll.RiskData('Risk Summary'!L$48,$A2967)/1000","v":{"$error":"#NAME?"}},null,null,{"$f":"(_xll.RiskData(NR_to_Cash!C$18,$A2967))/1000","v":{"$error":"#NAME?"}},{"$f":"(_xll.RiskData(NR_to_Cash!D$18,$A2967))/1000","v":{"$error":"#NAME?"}},{"$f":"(_xll.RiskData(NR_to_Cash!E$18,$A2967))/1000","v":{"$error":"#NAME?"}}]
[2961,{"$f":"_xll.RiskData('Risk Summary'!J$48,$A2968)/1000","v":{"$error":"#NAME?"}},{"$f":"_xll.RiskData('Risk Summary'!K$48,$A2968)/1000","v":{"$error":"#NAME?"}},{"$f":"_xll.RiskData('Risk Summary'!L$48,$A2968)/1000","v":{"$error":"#NAME?"}},null,null,{"$f":"(_xll.RiskData(NR_to_Cash!C$18,$A2968))/1000","v":{"$error":"#NAME?"}},{"$f":"(_xll.RiskData(NR_to_Cash!D$18,$A2968))/1000","v":{"$error":"#NAME?"}},{"$f":"(_xll.RiskData(NR_to_Cash!E$18,$A2968))/1000","v":{"$error":"#NAME?"}}]
[2962,{"$f":"_xll.RiskData('Risk Summary'!J$48,$A2969)/1000","v":{"$error":"#NAME?"}},{"$f":"_xll.RiskData('Risk Summary'!K$48,$A2969)/1000","v":{"$error":"#NAME?"}},{"$f":"_xll.RiskData('Risk Summary'!L$48,$A2969)/1000","v":{"$error":"#NAME?"}},null,null,{"$f":"(_xll.RiskData(NR_to_Cash!C$18,$A2969))/1000","v":{"$error":"#NAME?"}},{"$f":"(_xll.RiskData(NR_to_Cash!D$18,$A2969))/1000","v":{"$error":"#NAME?"}},{"$f":"(_xll.RiskData(NR_to_Cash!E$18,$A2969))/1000","v":{"$error":"#NAME?"}}]
[2963,{"$f":"_xll.RiskData('Risk Summary'!J$48,$A2970)/1000","v":{"$error":"#NAME?"}},{"$f":"_xll.RiskData('Risk Summary'!K$48,$A2970)/1000","v":{"$error":"#NAME?"}},{"$f":"_xll.RiskData('Risk Summary'!L$48,$A2970)/1000","v":{"$error":"#NAME?"}},null,null,{"$f":"(_xll.RiskData(NR_to_Cash!C$18,$A2970))/1000","v":{"$error":"#NAME?"}},{"$f":"(_xll.RiskData(NR_to_Cash!D$18,$A2970))/1000","v":{"$error":"#NAME?"}},{"$f":"(_xll.RiskData(NR_to_Cash!E$18,$A2970))/1000","v":{"$error":"#NAME?"}}]
[2964,{"$f":"_xll.RiskData('Risk Summary'!J$48,$A2971)/1000","v":{"$error":"#NAME?"}},{"$f":"_xll.RiskData('Risk Summary'!K$48,$A2971)/1000","v":{"$error":"#NAME?"}},{"$f":"_xll.RiskData('Risk Summary'!L$48,$A2971)/1000","v":{"$error":"#NAME?"}},null,null,{"$f":"(_xll.RiskData(NR_to_Cash!C$18,$A2971))/1000","v":{"$error":"#NAME?"}},{"$f":"(_xll.RiskData(NR_to_Cash!D$18,$A2971))/1000","v":{"$error":"#NAME?"}},{"$f":"(_xll.RiskData(NR_to_Cash!E$18,$A2971))/1000","v":{"$error":"#NAME?"}}]
[2965,{"$f":"_xll.RiskData('Risk Summary'!J$48,$A2972)/1000","v":{"$error":"#NAME?"}},{"$f":"_xll.RiskData('Risk Summary'!K$48,$A2972)/1000","v":{"$error":"#NAME?"}},{"$f":"_xll.RiskData('Risk Summary'!L$48,$A2972)/1000","v":{"$error":"#NAME?"}},null,null,{"$f":"(_xll.RiskData(NR_to_Cash!C$18,$A2972))/1000","v":{"$error":"#NAME?"}},{"$f":"(_xll.RiskData(NR_to_Cash!D$18,$A2972))/1000","v":{"$error":"#NAME?"}},{"$f":"(_xll.RiskData(NR_to_Cash!E$18,$A2972))/1000","v":{"$error":"#NAME?"}}]
[2966,{"$f":"_xll.RiskData('Risk Summary'!J$48,$A2973)/1000","v":{"$error":"#NAME?"}},{"$f":"_xll.RiskData('Risk Summary'!K$48,$A2973)/1000","v":{"$error":"#NAME?"}},{"$f":"_xll.RiskData('Risk Summary'!L$48,$A2973)/1000","v":{"$error":"#NAME?"}},null,null,{"$f":"(_xll.RiskData(NR_to_Cash!C$18,$A2973))/1000","v":{"$error":"#NAME?"}},{"$f":"(_xll.RiskData(NR_to_Cash!D$18,$A2973))/1000","v":{"$error":"#NAME?"}},{"$f":"(_xll.RiskData(NR_to_Cash!E$18,$A2973))/1000","v":{"$error":"#NAME?"}}]
[2967,{"$f":"_xll.RiskData('Risk Summary'!J$48,$A2974)/1000","v":{"$error":"#NAME?"}},{"$f":"_xll.RiskData('Risk Summary'!K$48,$A2974)/1000","v":{"$error":"#NAME?"}},{"$f":"_xll.RiskData('Risk Summary'!L$48,$A2974)/1000","v":{"$error":"#NAME?"}},null,null,{"$f":"(_xll.RiskData(NR_to_Cash!C$18,$A2974))/1000","v":{"$error":"#NAME?"}},{"$f":"(_xll.RiskData(NR_to_Cash!D$18,$A2974))/1000","v":{"$error":"#NAME?"}},{"$f":"(_xll.RiskData(NR_to_Cash!E$18,$A2974))/1000","v":{"$error":"#NAME?"}}]
[2968,{"$f":"_xll.RiskData('Risk Summary'!J$48,$A2975)/1000","v":{"$error":"#NAME?"}},{"$f":"_xll.RiskData('Risk Summary'!K$48,$A2975)/1000","v":{"$error":"#NAME?"}},{"$f":"_xll.RiskData('Risk Summary'!L$48,$A2975)/1000","v":{"$error":"#NAME?"}},null,null,{"$f":"(_xll.RiskData(NR_to_Cash!C$18,$A2975))/1000","v":{"$error":"#NAME?"}},{"$f":"(_xll.RiskData(NR_to_Cash!D$18,$A2975))/1000","v":{"$error":"#NAME?"}},{"$f":"(_xll.RiskData(NR_to_Cash!E$18,$A2975))/1000","v":{"$error":"#NAME?"}}]
[2969,{"$f":"_xll.RiskData('Risk Summary'!J$48,$A2976)/1000","v":{"$error":"#NAME?"}},{"$f":"_xll.RiskData('Risk Summary'!K$48,$A2976)/1000","v":{"$error":"#NAME?"}},{"$f":"_xll.RiskData('Risk Summary'!L$48,$A2976)/1000","v":{"$error":"#NAME?"}},null,null,{"$f":"(_xll.RiskData(NR_to_Cash!C$18,$A2976))/1000","v":{"$error":"#NAME?"}},{"$f":"(_xll.RiskData(NR_to_Cash!D$18,$A2976))/1000","v":{"$error":"#NAME?"}},{"$f":"(_xll.RiskData(NR_to_Cash!E$18,$A2976))/1000","v":{"$error":"#NAME?"}}]
[2970,{"$f":"_xll.RiskData('Risk Summary'!J$48,$A2977)/1000","v":{"$error":"#NAME?"}},{"$f":"_xll.RiskData('Risk Summary'!K$48,$A2977)/1000","v":{"$error":"#NAME?"}},{"$f":"_xll.RiskData('Risk Summary'!L$48,$A2977)/1000","v":{"$error":"#NAME?"}},null,null,{"$f":"(_xll.RiskData(NR_to_Cash!C$18,$A2977))/1000","v":{"$error":"#NAME?"}},{"$f":"(_xll.RiskData(NR_to_Cash!D$18,$A2977))/1000","v":{"$error":"#NAME?"}},{"$f":"(_xll.RiskData(NR_to_Cash!E$18,$A2977))/1000","v":{"$error":"#NAME?"}}]
[2971,{"$f":"_xll.RiskData('Risk Summary'!J$48,$A2978)/1000","v":{"$error":"#NAME?"}},{"$f":"_xll.RiskData('Risk Summary'!K$48,$A2978)/1000","v":{"$error":"#NAME?"}},{"$f":"_xll.RiskData('Risk Summary'!L$48,$A2978)/1000","v":{"$error":"#NAME?"}},null,null,{"$f":"(_xll.RiskData(NR_to_Cash!C$18,$A2978))/1000","v":{"$error":"#NAME?"}},{"$f":"(_xll.RiskData(NR_to_Cash!D$18,$A2978))/1000","v":{"$error":"#NAME?"}},{"$f":"(_xll.RiskData(NR_to_Cash!E$18,$A2978))/1000","v":{"$error":"#NAME?"}}]
[2972,{"$f":"_xll.RiskData('Risk Summary'!J$48,$A2979)/1000","v":{"$error":"#NAME?"}},{"$f":"_xll.RiskData('Risk Summary'!K$48,$A2979)/1000","v":{"$error":"#NAME?"}},{"$f":"_xll.RiskData('Risk Summary'!L$48,$A2979)/1000","v":{"$error":"#NAME?"}},null,null,{"$f":"(_xll.RiskData(NR_to_Cash!C$18,$A2979))/1000","v":{"$error":"#NAME?"}},{"$f":"(_xll.RiskData(NR_to_Cash!D$18,$A2979))/1000","v":{"$error":"#NAME?"}},{"$f":"(_xll.RiskData(NR_to_Cash!E$18,$A2979))/1000","v":{"$error":"#NAME?"}}]
[2973,{"$f":"_xll.RiskData('Risk Summary'!J$48,$A2980)/1000","v":{"$error":"#NAME?"}},{"$f":"_xll.RiskData('Risk Summary'!K$48,$A2980)/1000","v":{"$error":"#NAME?"}},{"$f":"_xll.RiskData('Risk Summary'!L$48,$A2980)/1000","v":{"$error":"#NAME?"}},null,null,{"$f":"(_xll.RiskData(NR_to_Cash!C$18,$A2980))/1000","v":{"$error":"#NAME?"}},{"$f":"(_xll.RiskData(NR_to_Cash!D$18,$A2980))/1000","v":{"$error":"#NAME?"}},{"$f":"(_xll.RiskData(NR_to_Cash!E$18,$A2980))/1000","v":{"$error":"#NAME?"}}]
[2974,{"$f":"_xll.RiskData('Risk Summary'!J$48,$A2981)/1000","v":{"$error":"#NAME?"}},{"$f":"_xll.RiskData('Risk Summary'!K$48,$A2981)/1000","v":{"$error":"#NAME?"}},{"$f":"_xll.RiskData('Risk Summary'!L$48,$A2981)/1000","v":{"$error":"#NAME?"}},null,null,{"$f":"(_xll.RiskData(NR_to_Cash!C$18,$A2981))/1000","v":{"$error":"#NAME?"}},{"$f":"(_xll.RiskData(NR_to_Cash!D$18,$A2981))/1000","v":{"$error":"#NAME?"}},{"$f":"(_xll.RiskData(NR_to_Cash!E$18,$A2981))/1000","v":{"$error":"#NAME?"}}]
[2975,{"$f":"_xll.RiskData('Risk Summary'!J$48,$A2982)/1000","v":{"$error":"#NAME?"}},{"$f":"_xll.RiskData('Risk Summary'!K$48,$A2982)/1000","v":{"$error":"#NAME?"}},{"$f":"_xll.RiskData('Risk Summary'!L$48,$A2982)/1000","v":{"$error":"#NAME?"}},null,null,{"$f":"(_xll.RiskData(NR_to_Cash!C$18,$A2982))/1000","v":{"$error":"#NAME?"}},{"$f":"(_xll.RiskData(NR_to_Cash!D$18,$A2982))/1000","v":{"$error":"#NAME?"}},{"$f":"(_xll.RiskData(NR_to_Cash!E$18,$A2982))/1000","v":{"$error":"#NAME?"}}]
[2976,{"$f":"_xll.RiskData('Risk Summary'!J$48,$A2983)/1000","v":{"$error":"#NAME?"}},{"$f":"_xll.RiskData('Risk Summary'!K$48,$A2983)/1000","v":{"$error":"#NAME?"}},{"$f":"_xll.RiskData('Risk Summary'!L$48,$A2983)/1000","v":{"$error":"#NAME?"}},null,null,{"$f":"(_xll.RiskData(NR_to_Cash!C$18,$A2983))/1000","v":{"$error":"#NAME?"}},{"$f":"(_xll.RiskData(NR_to_Cash!D$18,$A2983))/1000","v":{"$error":"#NAME?"}},{"$f":"(_xll.RiskData(NR_to_Cash!E$18,$A2983))/1000","v":{"$error":"#NAME?"}}]
[2977,{"$f":"_xll.RiskData('Risk Summary'!J$48,$A2984)/1000","v":{"$error":"#NAME?"}},{"$f":"_xll.RiskData('Risk Summary'!K$48,$A2984)/1000","v":{"$error":"#NAME?"}},{"$f":"_xll.RiskData('Risk Summary'!L$48,$A2984)/1000","v":{"$error":"#NAME?"}},null,null,{"$f":"(_xll.RiskData(NR_to_Cash!C$18,$A2984))/1000","v":{"$error":"#NAME?"}},{"$f":"(_xll.RiskData(NR_to_Cash!D$18,$A2984))/1000","v":{"$error":"#NAME?"}},{"$f":"(_xll.RiskData(NR_to_Cash!E$18,$A2984))/1000","v":{"$error":"#NAME?"}}]
[2978,{"$f":"_xll.RiskData('Risk Summary'!J$48,$A2985)/1000","v":{"$error":"#NAME?"}},{"$f":"_xll.RiskData('Risk Summary'!K$48,$A2985)/1000","v":{"$error":"#NAME?"}},{"$f":"_xll.RiskData('Risk Summary'!L$48,$A2985)/1000","v":{"$error":"#NAME?"}},null,null,{"$f":"(_xll.RiskData(NR_to_Cash!C$18,$A2985))/1000","v":{"$error":"#NAME?"}},{"$f":"(_xll.RiskData(NR_to_Cash!D$18,$A2985))/1000","v":{"$error":"#NAME?"}},{"$f":"(_xll.RiskData(NR_to_Cash!E$18,$A2985))/1000","v":{"$error":"#NAME?"}}]
[2979,{"$f":"_xll.RiskData('Risk Summary'!J$48,$A2986)/1000","v":{"$error":"#NAME?"}},{"$f":"_xll.RiskData('Risk Summary'!K$48,$A2986)/1000","v":{"$error":"#NAME?"}},{"$f":"_xll.RiskData('Risk Summary'!L$48,$A2986)/1000","v":{"$error":"#NAME?"}},null,null,{"$f":"(_xll.RiskData(NR_to_Cash!C$18,$A2986))/1000","v":{"$error":"#NAME?"}},{"$f":"(_xll.RiskData(NR_to_Cash!D$18,$A2986))/1000","v":{"$error":"#NAME?"}},{"$f":"(_xll.RiskData(NR_to_Cash!E$18,$A2986))/1000","v":{"$error":"#NAME?"}}]
[2980,{"$f":"_xll.RiskData('Risk Summary'!J$48,$A2987)/1000","v":{"$error":"#NAME?"}},{"$f":"_xll.RiskData('Risk Summary'!K$48,$A2987)/1000","v":{"$error":"#NAME?"}},{"$f":"_xll.RiskData('Risk Summary'!L$48,$A2987)/1000","v":{"$error":"#NAME?"}},null,null,{"$f":"(_xll.RiskData(NR_to_Cash!C$18,$A2987))/1000","v":{"$error":"#NAME?"}},{"$f":"(_xll.RiskData(NR_to_Cash!D$18,$A2987))/1000","v":{"$error":"#NAME?"}},{"$f":"(_xll.RiskData(NR_to_Cash!E$18,$A2987))/1000","v":{"$error":"#NAME?"}}]
[2981,{"$f":"_xll.RiskData('Risk Summary'!J$48,$A2988)/1000","v":{"$error":"#NAME?"}},{"$f":"_xll.RiskData('Risk Summary'!K$48,$A2988)/1000","v":{"$error":"#NAME?"}},{"$f":"_xll.RiskData('Risk Summary'!L$48,$A2988)/1000","v":{"$error":"#NAME?"}},null,null,{"$f":"(_xll.RiskData(NR_to_Cash!C$18,$A2988))/1000","v":{"$error":"#NAME?"}},{"$f":"(_xll.RiskData(NR_to_Cash!D$18,$A2988))/1000","v":{"$error":"#NAME?"}},{"$f":"(_xll.RiskData(NR_to_Cash!E$18,$A2988))/1000","v":{"$error":"#NAME?"}}]
[2982,{"$f":"_xll.RiskData('Risk Summary'!J$48,$A2989)/1000","v":{"$error":"#NAME?"}},{"$f":"_xll.RiskData('Risk Summary'!K$48,$A2989)/1000","v":{"$error":"#NAME?"}},{"$f":"_xll.RiskData('Risk Summary'!L$48,$A2989)/1000","v":{"$error":"#NAME?"}},null,null,{"$f":"(_xll.RiskData(NR_to_Cash!C$18,$A2989))/1000","v":{"$error":"#NAME?"}},{"$f":"(_xll.RiskData(NR_to_Cash!D$18,$A2989))/1000","v":{"$error":"#NAME?"}},{"$f":"(_xll.RiskData(NR_to_Cash!E$18,$A2989))/1000","v":{"$error":"#NAME?"}}]
[2983,{"$f":"_xll.RiskData('Risk Summary'!J$48,$A2990)/1000","v":{"$error":"#NAME?"}},{"$f":"_xll.RiskData('Risk Summary'!K$48,$A2990)/1000","v":{"$error":"#NAME?"}},{"$f":"_xll.RiskData('Risk Summary'!L$48,$A2990)/1000","v":{"$error":"#NAME?"}},null,null,{"$f":"(_xll.RiskData(NR_to_Cash!C$18,$A2990))/1000","v":{"$error":"#NAME?"}},{"$f":"(_xll.RiskData(NR_to_Cash!D$18,$A2990))/1000","v":{"$error":"#NAME?"}},{"$f":"(_xll.RiskData(NR_to_Cash!E$18,$A2990))/1000","v":{"$error":"#NAME?"}}]
[2984,{"$f":"_xll.RiskData('Risk Summary'!J$48,$A2991)/1000","v":{"$error":"#NAME?"}},{"$f":"_xll.RiskData('Risk Summary'!K$48,$A2991)/1000","v":{"$error":"#NAME?"}},{"$f":"_xll.RiskData('Risk Summary'!L$48,$A2991)/1000","v":{"$error":"#NAME?"}},null,null,{"$f":"(_xll.RiskData(NR_to_Cash!C$18,$A2991))/1000","v":{"$error":"#NAME?"}},{"$f":"(_xll.RiskData(NR_to_Cash!D$18,$A2991))/1000","v":{"$error":"#NAME?"}},{"$f":"(_xll.RiskData(NR_to_Cash!E$18,$A2991))/1000","v":{"$error":"#NAME?"}}]
[2985,{"$f":"_xll.RiskData('Risk Summary'!J$48,$A2992)/1000","v":{"$error":"#NAME?"}},{"$f":"_xll.RiskData('Risk Summary'!K$48,$A2992)/1000","v":{"$error":"#NAME?"}},{"$f":"_xll.RiskData('Risk Summary'!L$48,$A2992)/1000","v":{"$error":"#NAME?"}},null,null,{"$f":"(_xll.RiskData(NR_to_Cash!C$18,$A2992))/1000","v":{"$error":"#NAME?"}},{"$f":"(_xll.RiskData(NR_to_Cash!D$18,$A2992))/1000","v":{"$error":"#NAME?"}},{"$f":"(_xll.RiskData(NR_to_Cash!E$18,$A2992))/1000","v":{"$error":"#NAME?"}}]
[2986,{"$f":"_xll.RiskData('Risk Summary'!J$48,$A2993)/1000","v":{"$error":"#NAME?"}},{"$f":"_xll.RiskData('Risk Summary'!K$48,$A2993)/1000","v":{"$error":"#NAME?"}},{"$f":"_xll.RiskData('Risk Summary'!L$48,$A2993)/1000","v":{"$error":"#NAME?"}},null,null,{"$f":"(_xll.RiskData(NR_to_Cash!C$18,$A2993))/1000","v":{"$error":"#NAME?"}},{"$f":"(_xll.RiskData(NR_to_Cash!D$18,$A2993))/1000","v":{"$error":"#NAME?"}},{"$f":"(_xll.RiskData(NR_to_Cash!E$18,$A2993))/1000","v":{"$error":"#NAME?"}}]
[2987,{"$f":"_xll.RiskData('Risk Summary'!J$48,$A2994)/1000","v":{"$error":"#NAME?"}},{"$f":"_xll.RiskData('Risk Summary'!K$48,$A2994)/1000","v":{"$error":"#NAME?"}},{"$f":"_xll.RiskData('Risk Summary'!L$48,$A2994)/1000","v":{"$error":"#NAME?"}},null,null,{"$f":"(_xll.RiskData(NR_to_Cash!C$18,$A2994))/1000","v":{"$error":"#NAME?"}},{"$f":"(_xll.RiskData(NR_to_Cash!D$18,$A2994))/1000","v":{"$error":"#NAME?"}},{"$f":"(_xll.RiskData(NR_to_Cash!E$18,$A2994))/1000","v":{"$error":"#NAME?"}}]
[2988,{"$f":"_xll.RiskData('Risk Summary'!J$48,$A2995)/1000","v":{"$error":"#NAME?"}},{"$f":"_xll.RiskData('Risk Summary'!K$48,$A2995)/1000","v":{"$error":"#NAME?"}},{"$f":"_xll.RiskData('Risk Summary'!L$48,$A2995)/1000","v":{"$error":"#NAME?"}},null,null,{"$f":"(_xll.RiskData(NR_to_Cash!C$18,$A2995))/1000","v":{"$error":"#NAME?"}},{"$f":"(_xll.RiskData(NR_to_Cash!D$18,$A2995))/1000","v":{"$error":"#NAME?"}},{"$f":"(_xll.RiskData(NR_to_Cash!E$18,$A2995))/1000","v":{"$error":"#NAME?"}}]
[2989,{"$f":"_xll.RiskData('Risk Summary'!J$48,$A2996)/1000","v":{"$error":"#NAME?"}},{"$f":"_xll.RiskData('Risk Summary'!K$48,$A2996)/1000","v":{"$error":"#NAME?"}},{"$f":"_xll.RiskData('Risk Summary'!L$48,$A2996)/1000","v":{"$error":"#NAME?"}},null,null,{"$f":"(_xll.RiskData(NR_to_Cash!C$18,$A2996))/1000","v":{"$error":"#NAME?"}},{"$f":"(_xll.RiskData(NR_to_Cash!D$18,$A2996))/1000","v":{"$error":"#NAME?"}},{"$f":"(_xll.RiskData(NR_to_Cash!E$18,$A2996))/1000","v":{"$error":"#NAME?"}}]
[2990,{"$f":"_xll.RiskData('Risk Summary'!J$48,$A2997)/1000","v":{"$error":"#NAME?"}},{"$f":"_xll.RiskData('Risk Summary'!K$48,$A2997)/1000","v":{"$error":"#NAME?"}},{"$f":"_xll.RiskData('Risk Summary'!L$48,$A2997)/1000","v":{"$error":"#NAME?"}},null,null,{"$f":"(_xll.RiskData(NR_to_Cash!C$18,$A2997))/1000","v":{"$error":"#NAME?"}},{"$f":"(_xll.RiskData(NR_to_Cash!D$18,$A2997))/1000","v":{"$error":"#NAME?"}},{"$f":"(_xll.RiskData(NR_to_Cash!E$18,$A2997))/1000","v":{"$error":"#NAME?"}}]
[2991,{"$f":"_xll.RiskData('Risk Summary'!J$48,$A2998)/1000","v":{"$error":"#NAME?"}},{"$f":"_xll.RiskData('Risk Summary'!K$48,$A2998)/1000","v":{"$error":"#NAME?"}},{"$f":"_xll.RiskData('Risk Summary'!L$48,$A2998)/1000","v":{"$error":"#NAME?"}},null,null,{"$f":"(_xll.RiskData(NR_to_Cash!C$18,$A2998))/1000","v":{"$error":"#NAME?"}},{"$f":"(_xll.RiskData(NR_to_Cash!D$18,$A2998))/1000","v":{"$error":"#NAME?"}},{"$f":"(_xll.RiskData(NR_to_Cash!E$18,$A2998))/1000","v":{"$error":"#NAME?"}}]
[2992,{"$f":"_xll.RiskData('Risk Summary'!J$48,$A2999)/1000","v":{"$error":"#NAME?"}},{"$f":"_xll.RiskData('Risk Summary'!K$48,$A2999)/1000","v":{"$error":"#NAME?"}},{"$f":"_xll.RiskData('Risk Summary'!L$48,$A2999)/1000","v":{"$error":"#NAME?"}},null,null,{"$f":"(_xll.RiskData(NR_to_Cash!C$18,$A2999))/1000","v":{"$error":"#NAME?"}},{"$f":"(_xll.RiskData(NR_to_Cash!D$18,$A2999))/1000","v":{"$error":"#NAME?"}},{"$f":"(_xll.RiskData(NR_to_Cash!E$18,$A2999))/1000","v":{"$error":"#NAME?"}}]
[2993,{"$f":"_xll.RiskData('Risk Summary'!J$48,$A3000)/1000","v":{"$error":"#NAME?"}},{"$f":"_xll.RiskData('Risk Summary'!K$48,$A3000)/1000","v":{"$error":"#NAME?"}},{"$f":"_xll.RiskData('Risk Summary'!L$48,$A3000)/1000","v":{"$error":"#NAME?"}},null,null,{"$f":"(_xll.RiskData(NR_to_Cash!C$18,$A3000))/1000","v":{"$error":"#NAME?"}},{"$f":"(_xll.RiskData(NR_to_Cash!D$18,$A3000))/1000","v":{"$error":"#NAME?"}},{"$f":"(_xll.RiskData(NR_to_Cash!E$18,$A3000))/1000","v":{"$error":"#NAME?"}}]
[2994,{"$f":"_xll.RiskData('Risk Summary'!J$48,$A3001)/1000","v":{"$error":"#NAME?"}},{"$f":"_xll.RiskData('Risk Summary'!K$48,$A3001)/1000","v":{"$error":"#NAME?"}},{"$f":"_xll.RiskData('Risk Summary'!L$48,$A3001)/1000","v":{"$error":"#NAME?"}},null,null,{"$f":"(_xll.RiskData(NR_to_Cash!C$18,$A3001))/1000","v":{"$error":"#NAME?"}},{"$f":"(_xll.RiskData(NR_to_Cash!D$18,$A3001))/1000","v":{"$error":"#NAME?"}},{"$f":"(_xll.RiskData(NR_to_Cash!E$18,$A3001))/1000","v":{"$error":"#NAME?"}}]
[2995,{"$f":"_xll.RiskData('Risk Summary'!J$48,$A3002)/1000","v":{"$error":"#NAME?"}},{"$f":"_xll.RiskData('Risk Summary'!K$48,$A3002)/1000","v":{"$error":"#NAME?"}},{"$f":"_xll.RiskData('Risk Summary'!L$48,$A3002)/1000","v":{"$error":"#NAME?"}},null,null,{"$f":"(_xll.RiskData(NR_to_Cash!C$18,$A3002))/1000","v":{"$error":"#NAME?"}},{"$f":"(_xll.RiskData(NR_to_Cash!D$18,$A3002))/1000","v":{"$error":"#NAME?"}},{"$f":"(_xll.RiskData(NR_to_Cash!E$18,$A3002))/1000","v":{"$error":"#NAME?"}}]
[2996,{"$f":"_xll.RiskData('Risk Summary'!J$48,$A3003)/1000","v":{"$error":"#NAME?"}},{"$f":"_xll.RiskData('Risk Summary'!K$48,$A3003)/1000","v":{"$error":"#NAME?"}},{"$f":"_xll.RiskData('Risk Summary'!L$48,$A3003)/1000","v":{"$error":"#NAME?"}},null,null,{"$f":"(_xll.RiskData(NR_to_Cash!C$18,$A3003))/1000","v":{"$error":"#NAME?"}},{"$f":"(_xll.RiskData(NR_to_Cash!D$18,$A3003))/1000","v":{"$error":"#NAME?"}},{"$f":"(_xll.RiskData(NR_to_Cash!E$18,$A3003))/1000","v":{"$error":"#NAME?"}}]
[2997,{"$f":"_xll.RiskData('Risk Summary'!J$48,$A3004)/1000","v":{"$error":"#NAME?"}},{"$f":"_xll.RiskData('Risk Summary'!K$48,$A3004)/1000","v":{"$error":"#NAME?"}},{"$f":"_xll.RiskData('Risk Summary'!L$48,$A3004)/1000","v":{"$error":"#NAME?"}},null,null,{"$f":"(_xll.RiskData(NR_to_Cash!C$18,$A3004))/1000","v":{"$error":"#NAME?"}},{"$f":"(_xll.RiskData(NR_to_Cash!D$18,$A3004))/1000","v":{"$error":"#NAME?"}},{"$f":"(_xll.RiskData(NR_to_Cash!E$18,$A3004))/1000","v":{"$error":"#NAME?"}}]
[2998,{"$f":"_xll.RiskData('Risk Summary'!J$48,$A3005)/1000","v":{"$error":"#NAME?"}},{"$f":"_xll.RiskData('Risk Summary'!K$48,$A3005)/1000","v":{"$error":"#NAME?"}},{"$f":"_xll.RiskData('Risk Summary'!L$48,$A3005)/1000","v":{"$error":"#NAME?"}},null,null,{"$f":"(_xll.RiskData(NR_to_Cash!C$18,$A3005))/1000","v":{"$error":"#NAME?"}},{"$f":"(_xll.RiskData(NR_to_Cash!D$18,$A3005))/1000","v":{"$error":"#NAME?"}},{"$f":"(_xll.RiskData(NR_to_Cash!E$18,$A3005))/1000","v":{"$error":"#NAME?"}}]
[2999,{"$f":"_xll.RiskData('Risk Summary'!J$48,$A3006)/1000","v":{"$error":"#NAME?"}},{"$f":"_xll.RiskData('Risk Summary'!K$48,$A3006)/1000","v":{"$error":"#NAME?"}},{"$f":"_xll.RiskData('Risk Summary'!L$48,$A3006)/1000","v":{"$error":"#NAME?"}},null,null,{"$f":"(_xll.RiskData(NR_to_Cash!C$18,$A3006))/1000","v":{"$error":"#NAME?"}},{"$f":"(_xll.RiskData(NR_to_Cash!D$18,$A3006))/1000","v":{"$error":"#NAME?"}},{"$f":"(_xll.RiskData(NR_to_Cash!E$18,$A3006))/1000","v":{"$error":"#NAME?"}}]
[3000,{"$f":"_xll.RiskData('Risk Summary'!J$48,$A3007)/1000","v":{"$error":"#NAME?"}},{"$f":"_xll.RiskData('Risk Summary'!K$48,$A3007)/1000","v":{"$error":"#NAME?"}},{"$f":"_xll.RiskData('Risk Summary'!L$48,$A3007)/1000","v":{"$error":"#NAME?"}},null,null,{"$f":"(_xll.RiskData(NR_to_Cash!C$18,$A3007))/1000","v":{"$error":"#NAME?"}},{"$f":"(_xll.RiskData(NR_to_Cash!D$18,$A3007))/1000","v":{"$error":"#NAME?"}},{"$f":"(_xll.RiskData(NR_to_Cash!E$18,$A3007))/1000","v":{"$error":"#NAME?"}}]
[3001,{"$f":"_xll.RiskData('Risk Summary'!J$48,$A3008)/1000","v":{"$error":"#NAME?"}},{"$f":"_xll.RiskData('Risk Summary'!K$48,$A3008)/1000","v":{"$error":"#NAME?"}},{"$f":"_xll.RiskData('Risk Summary'!L$48,$A3008)/1000","v":{"$error":"#NAME?"}},null,null,{"$f":"(_xll.RiskData(NR_to_Cash!C$18,$A3008))/1000","v":{"$error":"#NAME?"}},{"$f":"(_xll.RiskData(NR_to_Cash!D$18,$A3008))/1000","v":{"$error":"#NAME?"}},{"$f":"(_xll.RiskData(NR_to_Cash!E$18,$A3008))/1000","v":{"$error":"#NAME?"}}]
[3002,{"$f":"_xll.RiskData('Risk Summary'!J$48,$A3009)/1000","v":{"$error":"#NAME?"}},{"$f":"_xll.RiskData('Risk Summary'!K$48,$A3009)/1000","v":{"$error":"#NAME?"}},{"$f":"_xll.RiskData('Risk Summary'!L$48,$A3009)/1000","v":{"$error":"#NAME?"}},null,null,{"$f":"(_xll.RiskData(NR_to_Cash!C$18,$A3009))/1000","v":{"$error":"#NAME?"}},{"$f":"(_xll.RiskData(NR_to_Cash!D$18,$A3009))/1000","v":{"$error":"#NAME?"}},{"$f":"(_xll.RiskData(NR_to_Cash!E$18,$A3009))/1000","v":{"$error":"#NAME?"}}]
[3003,{"$f":"_xll.RiskData('Risk Summary'!J$48,$A3010)/1000","v":{"$error":"#NAME?"}},{"$f":"_xll.RiskData('Risk Summary'!K$48,$A3010)/1000","v":{"$error":"#NAME?"}},{"$f":"_xll.RiskData('Risk Summary'!L$48,$A3010)/1000","v":{"$error":"#NAME?"}},null,null,{"$f":"(_xll.RiskData(NR_to_Cash!C$18,$A3010))/1000","v":{"$error":"#NAME?"}},{"$f":"(_xll.RiskData(NR_to_Cash!D$18,$A3010))/1000","v":{"$error":"#NAME?"}},{"$f":"(_xll.RiskData(NR_to_Cash!E$18,$A3010))/1000","v":{"$error":"#NAME?"}}]
[3004,{"$f":"_xll.RiskData('Risk Summary'!J$48,$A3011)/1000","v":{"$error":"#NAME?"}},{"$f":"_xll.RiskData('Risk Summary'!K$48,$A3011)/1000","v":{"$error":"#NAME?"}},{"$f":"_xll.RiskData('Risk Summary'!L$48,$A3011)/1000","v":{"$error":"#NAME?"}},null,null,{"$f":"(_xll.RiskData(NR_to_Cash!C$18,$A3011))/1000","v":{"$error":"#NAME?"}},{"$f":"(_xll.RiskData(NR_to_Cash!D$18,$A3011))/1000","v":{"$error":"#NAME?"}},{"$f":"(_xll.RiskData(NR_to_Cash!E$18,$A3011))/1000","v":{"$error":"#NAME?"}}]
[3005,{"$f":"_xll.RiskData('Risk Summary'!J$48,$A3012)/1000","v":{"$error":"#NAME?"}},{"$f":"_xll.RiskData('Risk Summary'!K$48,$A3012)/1000","v":{"$error":"#NAME?"}},{"$f":"_xll.RiskData('Risk Summary'!L$48,$A3012)/1000","v":{"$error":"#NAME?"}},null,null,{"$f":"(_xll.RiskData(NR_to_Cash!C$18,$A3012))/1000","v":{"$error":"#NAME?"}},{"$f":"(_xll.RiskData(NR_to_Cash!D$18,$A3012))/1000","v":{"$error":"#NAME?"}},{"$f":"(_xll.RiskData(NR_to_Cash!E$18,$A3012))/1000","v":{"$error":"#NAME?"}}]
[3006,{"$f":"_xll.RiskData('Risk Summary'!J$48,$A3013)/1000","v":{"$error":"#NAME?"}},{"$f":"_xll.RiskData('Risk Summary'!K$48,$A3013)/1000","v":{"$error":"#NAME?"}},{"$f":"_xll.RiskData('Risk Summary'!L$48,$A3013)/1000","v":{"$error":"#NAME?"}},null,null,{"$f":"(_xll.RiskData(NR_to_Cash!C$18,$A3013))/1000","v":{"$error":"#NAME?"}},{"$f":"(_xll.RiskData(NR_to_Cash!D$18,$A3013))/1000","v":{"$error":"#NAME?"}},{"$f":"(_xll.RiskData(NR_to_Cash!E$18,$A3013))/1000","v":{"$error":"#NAME?"}}]
[3007,{"$f":"_xll.RiskData('Risk Summary'!J$48,$A3014)/1000","v":{"$error":"#NAME?"}},{"$f":"_xll.RiskData('Risk Summary'!K$48,$A3014)/1000","v":{"$error":"#NAME?"}},{"$f":"_xll.RiskData('Risk Summary'!L$48,$A3014)/1000","v":{"$error":"#NAME?"}},null,null,{"$f":"(_xll.RiskData(NR_to_Cash!C$18,$A3014))/1000","v":{"$error":"#NAME?"}},{"$f":"(_xll.RiskData(NR_to_Cash!D$18,$A3014))/1000","v":{"$error":"#NAME?"}},{"$f":"(_xll.RiskData(NR_to_Cash!E$18,$A3014))/1000","v":{"$error":"#NAME?"}}]
[3008,{"$f":"_xll.RiskData('Risk Summary'!J$48,$A3015)/1000","v":{"$error":"#NAME?"}},{"$f":"_xll.RiskData('Risk Summary'!K$48,$A3015)/1000","v":{"$error":"#NAME?"}},{"$f":"_xll.RiskData('Risk Summary'!L$48,$A3015)/1000","v":{"$error":"#NAME?"}},null,null,{"$f":"(_xll.RiskData(NR_to_Cash!C$18,$A3015))/1000","v":{"$error":"#NAME?"}},{"$f":"(_xll.RiskData(NR_to_Cash!D$18,$A3015))/1000","v":{"$error":"#NAME?"}},{"$f":"(_xll.RiskData(NR_to_Cash!E$18,$A3015))/1000","v":{"$error":"#NAME?"}}]
[3009,{"$f":"_xll.RiskData('Risk Summary'!J$48,$A3016)/1000","v":{"$error":"#NAME?"}},{"$f":"_xll.RiskData('Risk Summary'!K$48,$A3016)/1000","v":{"$error":"#NAME?"}},{"$f":"_xll.RiskData('Risk Summary'!L$48,$A3016)/1000","v":{"$error":"#NAME?"}},null,null,{"$f":"(_xll.RiskData(NR_to_Cash!C$18,$A3016))/1000","v":{"$error":"#NAME?"}},{"$f":"(_xll.RiskData(NR_to_Cash!D$18,$A3016))/1000","v":{"$error":"#NAME?"}},{"$f":"(_xll.RiskData(NR_to_Cash!E$18,$A3016))/1000","v":{"$error":"#NAME?"}}]
[3010,{"$f":"_xll.RiskData('Risk Summary'!J$48,$A3017)/1000","v":{"$error":"#NAME?"}},{"$f":"_xll.RiskData('Risk Summary'!K$48,$A3017)/1000","v":{"$error":"#NAME?"}},{"$f":"_xll.RiskData('Risk Summary'!L$48,$A3017)/1000","v":{"$error":"#NAME?"}},null,null,{"$f":"(_xll.RiskData(NR_to_Cash!C$18,$A3017))/1000","v":{"$error":"#NAME?"}},{"$f":"(_xll.RiskData(NR_to_Cash!D$18,$A3017))/1000","v":{"$error":"#NAME?"}},{"$f":"(_xll.RiskData(NR_to_Cash!E$18,$A3017))/1000","v":{"$error":"#NAME?"}}]
[3011,{"$f":"_xll.RiskData('Risk Summary'!J$48,$A3018)/1000","v":{"$error":"#NAME?"}},{"$f":"_xll.RiskData('Risk Summary'!K$48,$A3018)/1000","v":{"$error":"#NAME?"}},{"$f":"_xll.RiskData('Risk Summary'!L$48,$A3018)/1000","v":{"$error":"#NAME?"}},null,null,{"$f":"(_xll.RiskData(NR_to_Cash!C$18,$A3018))/1000","v":{"$error":"#NAME?"}},{"$f":"(_xll.RiskData(NR_to_Cash!D$18,$A3018))/1000","v":{"$error":"#NAME?"}},{"$f":"(_xll.RiskData(NR_to_Cash!E$18,$A3018))/1000","v":{"$error":"#NAME?"}}]
[3012,{"$f":"_xll.RiskData('Risk Summary'!J$48,$A3019)/1000","v":{"$error":"#NAME?"}},{"$f":"_xll.RiskData('Risk Summary'!K$48,$A3019)/1000","v":{"$error":"#NAME?"}},{"$f":"_xll.RiskData('Risk Summary'!L$48,$A3019)/1000","v":{"$error":"#NAME?"}},null,null,{"$f":"(_xll.RiskData(NR_to_Cash!C$18,$A3019))/1000","v":{"$error":"#NAME?"}},{"$f":"(_xll.RiskData(NR_to_Cash!D$18,$A3019))/1000","v":{"$error":"#NAME?"}},{"$f":"(_xll.RiskData(NR_to_Cash!E$18,$A3019))/1000","v":{"$error":"#NAME?"}}]
[3013,{"$f":"_xll.RiskData('Risk Summary'!J$48,$A3020)/1000","v":{"$error":"#NAME?"}},{"$f":"_xll.RiskData('Risk Summary'!K$48,$A3020)/1000","v":{"$error":"#NAME?"}},{"$f":"_xll.RiskData('Risk Summary'!L$48,$A3020)/1000","v":{"$error":"#NAME?"}},null,null,{"$f":"(_xll.RiskData(NR_to_Cash!C$18,$A3020))/1000","v":{"$error":"#NAME?"}},{"$f":"(_xll.RiskData(NR_to_Cash!D$18,$A3020))/1000","v":{"$error":"#NAME?"}},{"$f":"(_xll.RiskData(NR_to_Cash!E$18,$A3020))/1000","v":{"$error":"#NAME?"}}]
[3014,{"$f":"_xll.RiskData('Risk Summary'!J$48,$A3021)/1000","v":{"$error":"#NAME?"}},{"$f":"_xll.RiskData('Risk Summary'!K$48,$A3021)/1000","v":{"$error":"#NAME?"}},{"$f":"_xll.RiskData('Risk Summary'!L$48,$A3021)/1000","v":{"$error":"#NAME?"}},null,null,{"$f":"(_xll.RiskData(NR_to_Cash!C$18,$A3021))/1000","v":{"$error":"#NAME?"}},{"$f":"(_xll.RiskData(NR_to_Cash!D$18,$A3021))/1000","v":{"$error":"#NAME?"}},{"$f":"(_xll.RiskData(NR_to_Cash!E$18,$A3021))/1000","v":{"$error":"#NAME?"}}]
[3015,{"$f":"_xll.RiskData('Risk Summary'!J$48,$A3022)/1000","v":{"$error":"#NAME?"}},{"$f":"_xll.RiskData('Risk Summary'!K$48,$A3022)/1000","v":{"$error":"#NAME?"}},{"$f":"_xll.RiskData('Risk Summary'!L$48,$A3022)/1000","v":{"$error":"#NAME?"}},null,null,{"$f":"(_xll.RiskData(NR_to_Cash!C$18,$A3022))/1000","v":{"$error":"#NAME?"}},{"$f":"(_xll.RiskData(NR_to_Cash!D$18,$A3022))/1000","v":{"$error":"#NAME?"}},{"$f":"(_xll.RiskData(NR_to_Cash!E$18,$A3022))/1000","v":{"$error":"#NAME?"}}]
[3016,{"$f":"_xll.RiskData('Risk Summary'!J$48,$A3023)/1000","v":{"$error":"#NAME?"}},{"$f":"_xll.RiskData('Risk Summary'!K$48,$A3023)/1000","v":{"$error":"#NAME?"}},{"$f":"_xll.RiskData('Risk Summary'!L$48,$A3023)/1000","v":{"$error":"#NAME?"}},null,null,{"$f":"(_xll.RiskData(NR_to_Cash!C$18,$A3023))/1000","v":{"$error":"#NAME?"}},{"$f":"(_xll.RiskData(NR_to_Cash!D$18,$A3023))/1000","v":{"$error":"#NAME?"}},{"$f":"(_xll.RiskData(NR_to_Cash!E$18,$A3023))/1000","v":{"$error":"#NAME?"}}]
[3017,{"$f":"_xll.RiskData('Risk Summary'!J$48,$A3024)/1000","v":{"$error":"#NAME?"}},{"$f":"_xll.RiskData('Risk Summary'!K$48,$A3024)/1000","v":{"$error":"#NAME?"}},{"$f":"_xll.RiskData('Risk Summary'!L$48,$A3024)/1000","v":{"$error":"#NAME?"}},null,null,{"$f":"(_xll.RiskData(NR_to_Cash!C$18,$A3024))/1000","v":{"$error":"#NAME?"}},{"$f":"(_xll.RiskData(NR_to_Cash!D$18,$A3024))/1000","v":{"$error":"#NAME?"}},{"$f":"(_xll.RiskData(NR_to_Cash!E$18,$A3024))/1000","v":{"$error":"#NAME?"}}]
[3018,{"$f":"_xll.RiskData('Risk Summary'!J$48,$A3025)/1000","v":{"$error":"#NAME?"}},{"$f":"_xll.RiskData('Risk Summary'!K$48,$A3025)/1000","v":{"$error":"#NAME?"}},{"$f":"_xll.RiskData('Risk Summary'!L$48,$A3025)/1000","v":{"$error":"#NAME?"}},null,null,{"$f":"(_xll.RiskData(NR_to_Cash!C$18,$A3025))/1000","v":{"$error":"#NAME?"}},{"$f":"(_xll.RiskData(NR_to_Cash!D$18,$A3025))/1000","v":{"$error":"#NAME?"}},{"$f":"(_xll.RiskData(NR_to_Cash!E$18,$A3025))/1000","v":{"$error":"#NAME?"}}]
[3019,{"$f":"_xll.RiskData('Risk Summary'!J$48,$A3026)/1000","v":{"$error":"#NAME?"}},{"$f":"_xll.RiskData('Risk Summary'!K$48,$A3026)/1000","v":{"$error":"#NAME?"}},{"$f":"_xll.RiskData('Risk Summary'!L$48,$A3026)/1000","v":{"$error":"#NAME?"}},null,null,{"$f":"(_xll.RiskData(NR_to_Cash!C$18,$A3026))/1000","v":{"$error":"#NAME?"}},{"$f":"(_xll.RiskData(NR_to_Cash!D$18,$A3026))/1000","v":{"$error":"#NAME?"}},{"$f":"(_xll.RiskData(NR_to_Cash!E$18,$A3026))/1000","v":{"$error":"#NAME?"}}]
[3020,{"$f":"_xll.RiskData('Risk Summary'!J$48,$A3027)/1000","v":{"$error":"#NAME?"}},{"$f":"_xll.RiskData('Risk Summary'!K$48,$A3027)/1000","v":{"$error":"#NAME?"}},{"$f":"_xll.RiskData('Risk Summary'!L$48,$A3027)/1000","v":{"$error":"#NAME?"}},null,null,{"$f":"(_xll.RiskData(NR_to_Cash!C$18,$A3027))/1000","v":{"$error":"#NAME?"}},{"$f":"(_xll.RiskData(NR_to_Cash!D$18,$A3027))/1000","v":{"$error":"#NAME?"}},{"$f":"(_xll.RiskData(NR_to_Cash!E$18,$A3027))/1000","v":{"$error":"#NAME?"}}]
[3021,{"$f":"_xll.RiskData('Risk Summary'!J$48,$A3028)/1000","v":{"$error":"#NAME?"}},{"$f":"_xll.RiskData('Risk Summary'!K$48,$A3028)/1000","v":{"$error":"#NAME?"}},{"$f":"_xll.RiskData('Risk Summary'!L$48,$A3028)/1000","v":{"$error":"#NAME?"}},null,null,{"$f":"(_xll.RiskData(NR_to_Cash!C$18,$A3028))/1000","v":{"$error":"#NAME?"}},{"$f":"(_xll.RiskData(NR_to_Cash!D$18,$A3028))/1000","v":{"$error":"#NAME?"}},{"$f":"(_xll.RiskData(NR_to_Cash!E$18,$A3028))/1000","v":{"$error":"#NAME?"}}]
[3022,{"$f":"_xll.RiskData('Risk Summary'!J$48,$A3029)/1000","v":{"$error":"#NAME?"}},{"$f":"_xll.RiskData('Risk Summary'!K$48,$A3029)/1000","v":{"$error":"#NAME?"}},{"$f":"_xll.RiskData('Risk Summary'!L$48,$A3029)/1000","v":{"$error":"#NAME?"}},null,null,{"$f":"(_xll.RiskData(NR_to_Cash!C$18,$A3029))/1000","v":{"$error":"#NAME?"}},{"$f":"(_xll.RiskData(NR_to_Cash!D$18,$A3029))/1000","v":{"$error":"#NAME?"}},{"$f":"(_xll.RiskData(NR_to_Cash!E$18,$A3029))/1000","v":{"$error":"#NAME?"}}]
[3023,{"$f":"_xll.RiskData('Risk Summary'!J$48,$A3030)/1000","v":{"$error":"#NAME?"}},{"$f":"_xll.RiskData('Risk Summary'!K$48,$A3030)/1000","v":{"$error":"#NAME?"}},{"$f":"_xll.RiskData('Risk Summary'!L$48,$A3030)/1000","v":{"$error":"#NAME?"}},null,null,{"$f":"(_xll.RiskData(NR_to_Cash!C$18,$A3030))/1000","v":{"$error":"#NAME?"}},{"$f":"(_xll.RiskData(NR_to_Cash!D$18,$A3030))/1000","v":{"$error":"#NAME?"}},{"$f":"(_xll.RiskData(NR_to_Cash!E$18,$A3030))/1000","v":{"$error":"#NAME?"}}]
[3024,{"$f":"_xll.RiskData('Risk Summary'!J$48,$A3031)/1000","v":{"$error":"#NAME?"}},{"$f":"_xll.RiskData('Risk Summary'!K$48,$A3031)/1000","v":{"$error":"#NAME?"}},{"$f":"_xll.RiskData('Risk Summary'!L$48,$A3031)/1000","v":{"$error":"#NAME?"}},null,null,{"$f":"(_xll.RiskData(NR_to_Cash!C$18,$A3031))/1000","v":{"$error":"#NAME?"}},{"$f":"(_xll.RiskData(NR_to_Cash!D$18,$A3031))/1000","v":{"$error":"#NAME?"}},{"$f":"(_xll.RiskData(NR_to_Cash!E$18,$A3031))/1000","v":{"$error":"#NAME?"}}]
[3025,{"$f":"_xll.RiskData('Risk Summary'!J$48,$A3032)/1000","v":{"$error":"#NAME?"}},{"$f":"_xll.RiskData('Risk Summary'!K$48,$A3032)/1000","v":{"$error":"#NAME?"}},{"$f":"_xll.RiskData('Risk Summary'!L$48,$A3032)/1000","v":{"$error":"#NAME?"}},null,null,{"$f":"(_xll.RiskData(NR_to_Cash!C$18,$A3032))/1000","v":{"$error":"#NAME?"}},{"$f":"(_xll.RiskData(NR_to_Cash!D$18,$A3032))/1000","v":{"$error":"#NAME?"}},{"$f":"(_xll.RiskData(NR_to_Cash!E$18,$A3032))/1000","v":{"$error":"#NAME?"}}]
[3026,{"$f":"_xll.RiskData('Risk Summary'!J$48,$A3033)/1000","v":{"$error":"#NAME?"}},{"$f":"_xll.RiskData('Risk Summary'!K$48,$A3033)/1000","v":{"$error":"#NAME?"}},{"$f":"_xll.RiskData('Risk Summary'!L$48,$A3033)/1000","v":{"$error":"#NAME?"}},null,null,{"$f":"(_xll.RiskData(NR_to_Cash!C$18,$A3033))/1000","v":{"$error":"#NAME?"}},{"$f":"(_xll.RiskData(NR_to_Cash!D$18,$A3033))/1000","v":{"$error":"#NAME?"}},{"$f":"(_xll.RiskData(NR_to_Cash!E$18,$A3033))/1000","v":{"$error":"#NAME?"}}]
[3027,{"$f":"_xll.RiskData('Risk Summary'!J$48,$A3034)/1000","v":{"$error":"#NAME?"}},{"$f":"_xll.RiskData('Risk Summary'!K$48,$A3034)/1000","v":{"$error":"#NAME?"}},{"$f":"_xll.RiskData('Risk Summary'!L$48,$A3034)/1000","v":{"$error":"#NAME?"}},null,null,{"$f":"(_xll.RiskData(NR_to_Cash!C$18,$A3034))/1000","v":{"$error":"#NAME?"}},{"$f":"(_xll.RiskData(NR_to_Cash!D$18,$A3034))/1000","v":{"$error":"#NAME?"}},{"$f":"(_xll.RiskData(NR_to_Cash!E$18,$A3034))/1000","v":{"$error":"#NAME?"}}]
[3028,{"$f":"_xll.RiskData('Risk Summary'!J$48,$A3035)/1000","v":{"$error":"#NAME?"}},{"$f":"_xll.RiskData('Risk Summary'!K$48,$A3035)/1000","v":{"$error":"#NAME?"}},{"$f":"_xll.RiskData('Risk Summary'!L$48,$A3035)/1000","v":{"$error":"#NAME?"}},null,null,{"$f":"(_xll.RiskData(NR_to_Cash!C$18,$A3035))/1000","v":{"$error":"#NAME?"}},{"$f":"(_xll.RiskData(NR_to_Cash!D$18,$A3035))/1000","v":{"$error":"#NAME?"}},{"$f":"(_xll.RiskData(NR_to_Cash!E$18,$A3035))/1000","v":{"$error":"#NAME?"}}]
[3029,{"$f":"_xll.RiskData('Risk Summary'!J$48,$A3036)/1000","v":{"$error":"#NAME?"}},{"$f":"_xll.RiskData('Risk Summary'!K$48,$A3036)/1000","v":{"$error":"#NAME?"}},{"$f":"_xll.RiskData('Risk Summary'!L$48,$A3036)/1000","v":{"$error":"#NAME?"}},null,null,{"$f":"(_xll.RiskData(NR_to_Cash!C$18,$A3036))/1000","v":{"$error":"#NAME?"}},{"$f":"(_xll.RiskData(NR_to_Cash!D$18,$A3036))/1000","v":{"$error":"#NAME?"}},{"$f":"(_xll.RiskData(NR_to_Cash!E$18,$A3036))/1000","v":{"$error":"#NAME?"}}]
[3030,{"$f":"_xll.RiskData('Risk Summary'!J$48,$A3037)/1000","v":{"$error":"#NAME?"}},{"$f":"_xll.RiskData('Risk Summary'!K$48,$A3037)/1000","v":{"$error":"#NAME?"}},{"$f":"_xll.RiskData('Risk Summary'!L$48,$A3037)/1000","v":{"$error":"#NAME?"}},null,null,{"$f":"(_xll.RiskData(NR_to_Cash!C$18,$A3037))/1000","v":{"$error":"#NAME?"}},{"$f":"(_xll.RiskData(NR_to_Cash!D$18,$A3037))/1000","v":{"$error":"#NAME?"}},{"$f":"(_xll.RiskData(NR_to_Cash!E$18,$A3037))/1000","v":{"$error":"#NAME?"}}]
[3031,{"$f":"_xll.RiskData('Risk Summary'!J$48,$A3038)/1000","v":{"$error":"#NAME?"}},{"$f":"_xll.RiskData('Risk Summary'!K$48,$A3038)/1000","v":{"$error":"#NAME?"}},{"$f":"_xll.RiskData('Risk Summary'!L$48,$A3038)/1000","v":{"$error":"#NAME?"}},null,null,{"$f":"(_xll.RiskData(NR_to_Cash!C$18,$A3038))/1000","v":{"$error":"#NAME?"}},{"$f":"(_xll.RiskData(NR_to_Cash!D$18,$A3038))/1000","v":{"$error":"#NAME?"}},{"$f":"(_xll.RiskData(NR_to_Cash!E$18,$A3038))/1000","v":{"$error":"#NAME?"}}]
[3032,{"$f":"_xll.RiskData('Risk Summary'!J$48,$A3039)/1000","v":{"$error":"#NAME?"}},{"$f":"_xll.RiskData('Risk Summary'!K$48,$A3039)/1000","v":{"$error":"#NAME?"}},{"$f":"_xll.RiskData('Risk Summary'!L$48,$A3039)/1000","v":{"$error":"#NAME?"}},null,null,{"$f":"(_xll.RiskData(NR_to_Cash!C$18,$A3039))/1000","v":{"$error":"#NAME?"}},{"$f":"(_xll.RiskData(NR_to_Cash!D$18,$A3039))/1000","v":{"$error":"#NAME?"}},{"$f":"(_xll.RiskData(NR_to_Cash!E$18,$A3039))/1000","v":{"$error":"#NAME?"}}]
[3033,{"$f":"_xll.RiskData('Risk Summary'!J$48,$A3040)/1000","v":{"$error":"#NAME?"}},{"$f":"_xll.RiskData('Risk Summary'!K$48,$A3040)/1000","v":{"$error":"#NAME?"}},{"$f":"_xll.RiskData('Risk Summary'!L$48,$A3040)/1000","v":{"$error":"#NAME?"}},null,null,{"$f":"(_xll.RiskData(NR_to_Cash!C$18,$A3040))/1000","v":{"$error":"#NAME?"}},{"$f":"(_xll.RiskData(NR_to_Cash!D$18,$A3040))/1000","v":{"$error":"#NAME?"}},{"$f":"(_xll.RiskData(NR_to_Cash!E$18,$A3040))/1000","v":{"$error":"#NAME?"}}]
[3034,{"$f":"_xll.RiskData('Risk Summary'!J$48,$A3041)/1000","v":{"$error":"#NAME?"}},{"$f":"_xll.RiskData('Risk Summary'!K$48,$A3041)/1000","v":{"$error":"#NAME?"}},{"$f":"_xll.RiskData('Risk Summary'!L$48,$A3041)/1000","v":{"$error":"#NAME?"}},null,null,{"$f":"(_xll.RiskData(NR_to_Cash!C$18,$A3041))/1000","v":{"$error":"#NAME?"}},{"$f":"(_xll.RiskData(NR_to_Cash!D$18,$A3041))/1000","v":{"$error":"#NAME?"}},{"$f":"(_xll.RiskData(NR_to_Cash!E$18,$A3041))/1000","v":{"$error":"#NAME?"}}]
[3035,{"$f":"_xll.RiskData('Risk Summary'!J$48,$A3042)/1000","v":{"$error":"#NAME?"}},{"$f":"_xll.RiskData('Risk Summary'!K$48,$A3042)/1000","v":{"$error":"#NAME?"}},{"$f":"_xll.RiskData('Risk Summary'!L$48,$A3042)/1000","v":{"$error":"#NAME?"}},null,null,{"$f":"(_xll.RiskData(NR_to_Cash!C$18,$A3042))/1000","v":{"$error":"#NAME?"}},{"$f":"(_xll.RiskData(NR_to_Cash!D$18,$A3042))/1000","v":{"$error":"#NAME?"}},{"$f":"(_xll.RiskData(NR_to_Cash!E$18,$A3042))/1000","v":{"$error":"#NAME?"}}]
[3036,{"$f":"_xll.RiskData('Risk Summary'!J$48,$A3043)/1000","v":{"$error":"#NAME?"}},{"$f":"_xll.RiskData('Risk Summary'!K$48,$A3043)/1000","v":{"$error":"#NAME?"}},{"$f":"_xll.RiskData('Risk Summary'!L$48,$A3043)/1000","v":{"$error":"#NAME?"}},null,null,{"$f":"(_xll.RiskData(NR_to_Cash!C$18,$A3043))/1000","v":{"$error":"#NAME?"}},{"$f":"(_xll.RiskData(NR_to_Cash!D$18,$A3043))/1000","v":{"$error":"#NAME?"}},{"$f":"(_xll.RiskData(NR_to_Cash!E$18,$A3043))/1000","v":{"$error":"#NAME?"}}]
[3037,{"$f":"_xll.RiskData('Risk Summary'!J$48,$A3044)/1000","v":{"$error":"#NAME?"}},{"$f":"_xll.RiskData('Risk Summary'!K$48,$A3044)/1000","v":{"$error":"#NAME?"}},{"$f":"_xll.RiskData('Risk Summary'!L$48,$A3044)/1000","v":{"$error":"#NAME?"}},null,null,{"$f":"(_xll.RiskData(NR_to_Cash!C$18,$A3044))/1000","v":{"$error":"#NAME?"}},{"$f":"(_xll.RiskData(NR_to_Cash!D$18,$A3044))/1000","v":{"$error":"#NAME?"}},{"$f":"(_xll.RiskData(NR_to_Cash!E$18,$A3044))/1000","v":{"$error":"#NAME?"}}]
[3038,{"$f":"_xll.RiskData('Risk Summary'!J$48,$A3045)/1000","v":{"$error":"#NAME?"}},{"$f":"_xll.RiskData('Risk Summary'!K$48,$A3045)/1000","v":{"$error":"#NAME?"}},{"$f":"_xll.RiskData('Risk Summary'!L$48,$A3045)/1000","v":{"$error":"#NAME?"}},null,null,{"$f":"(_xll.RiskData(NR_to_Cash!C$18,$A3045))/1000","v":{"$error":"#NAME?"}},{"$f":"(_xll.RiskData(NR_to_Cash!D$18,$A3045))/1000","v":{"$error":"#NAME?"}},{"$f":"(_xll.RiskData(NR_to_Cash!E$18,$A3045))/1000","v":{"$error":"#NAME?"}}]
[3039,{"$f":"_xll.RiskData('Risk Summary'!J$48,$A3046)/1000","v":{"$error":"#NAME?"}},{"$f":"_xll.RiskData('Risk Summary'!K$48,$A3046)/1000","v":{"$error":"#NAME?"}},{"$f":"_xll.RiskData('Risk Summary'!L$48,$A3046)/1000","v":{"$error":"#NAME?"}},null,null,{"$f":"(_xll.RiskData(NR_to_Cash!C$18,$A3046))/1000","v":{"$error":"#NAME?"}},{"$f":"(_xll.RiskData(NR_to_Cash!D$18,$A3046))/1000","v":{"$error":"#NAME?"}},{"$f":"(_xll.RiskData(NR_to_Cash!E$18,$A3046))/1000","v":{"$error":"#NAME?"}}]
[3040,{"$f":"_xll.RiskData('Risk Summary'!J$48,$A3047)/1000","v":{"$error":"#NAME?"}},{"$f":"_xll.RiskData('Risk Summary'!K$48,$A3047)/1000","v":{"$error":"#NAME?"}},{"$f":"_xll.RiskData('Risk Summary'!L$48,$A3047)/1000","v":{"$error":"#NAME?"}},null,null,{"$f":"(_xll.RiskData(NR_to_Cash!C$18,$A3047))/1000","v":{"$error":"#NAME?"}},{"$f":"(_xll.RiskData(NR_to_Cash!D$18,$A3047))/1000","v":{"$error":"#NAME?"}},{"$f":"(_xll.RiskData(NR_to_Cash!E$18,$A3047))/1000","v":{"$error":"#NAME?"}}]
[3041,{"$f":"_xll.RiskData('Risk Summary'!J$48,$A3048)/1000","v":{"$error":"#NAME?"}},{"$f":"_xll.RiskData('Risk Summary'!K$48,$A3048)/1000","v":{"$error":"#NAME?"}},{"$f":"_xll.RiskData('Risk Summary'!L$48,$A3048)/1000","v":{"$error":"#NAME?"}},null,null,{"$f":"(_xll.RiskData(NR_to_Cash!C$18,$A3048))/1000","v":{"$error":"#NAME?"}},{"$f":"(_xll.RiskData(NR_to_Cash!D$18,$A3048))/1000","v":{"$error":"#NAME?"}},{"$f":"(_xll.RiskData(NR_to_Cash!E$18,$A3048))/1000","v":{"$error":"#NAME?"}}]
[3042,{"$f":"_xll.RiskData('Risk Summary'!J$48,$A3049)/1000","v":{"$error":"#NAME?"}},{"$f":"_xll.RiskData('Risk Summary'!K$48,$A3049)/1000","v":{"$error":"#NAME?"}},{"$f":"_xll.RiskData('Risk Summary'!L$48,$A3049)/1000","v":{"$error":"#NAME?"}},null,null,{"$f":"(_xll.RiskData(NR_to_Cash!C$18,$A3049))/1000","v":{"$error":"#NAME?"}},{"$f":"(_xll.RiskData(NR_to_Cash!D$18,$A3049))/1000","v":{"$error":"#NAME?"}},{"$f":"(_xll.RiskData(NR_to_Cash!E$18,$A3049))/1000","v":{"$error":"#NAME?"}}]
[3043,{"$f":"_xll.RiskData('Risk Summary'!J$48,$A3050)/1000","v":{"$error":"#NAME?"}},{"$f":"_xll.RiskData('Risk Summary'!K$48,$A3050)/1000","v":{"$error":"#NAME?"}},{"$f":"_xll.RiskData('Risk Summary'!L$48,$A3050)/1000","v":{"$error":"#NAME?"}},null,null,{"$f":"(_xll.RiskData(NR_to_Cash!C$18,$A3050))/1000","v":{"$error":"#NAME?"}},{"$f":"(_xll.RiskData(NR_to_Cash!D$18,$A3050))/1000","v":{"$error":"#NAME?"}},{"$f":"(_xll.RiskData(NR_to_Cash!E$18,$A3050))/1000","v":{"$error":"#NAME?"}}]
[3044,{"$f":"_xll.RiskData('Risk Summary'!J$48,$A3051)/1000","v":{"$error":"#NAME?"}},{"$f":"_xll.RiskData('Risk Summary'!K$48,$A3051)/1000","v":{"$error":"#NAME?"}},{"$f":"_xll.RiskData('Risk Summary'!L$48,$A3051)/1000","v":{"$error":"#NAME?"}},null,null,{"$f":"(_xll.RiskData(NR_to_Cash!C$18,$A3051))/1000","v":{"$error":"#NAME?"}},{"$f":"(_xll.RiskData(NR_to_Cash!D$18,$A3051))/1000","v":{"$error":"#NAME?"}},{"$f":"(_xll.RiskData(NR_to_Cash!E$18,$A3051))/1000","v":{"$error":"#NAME?"}}]
[3045,{"$f":"_xll.RiskData('Risk Summary'!J$48,$A3052)/1000","v":{"$error":"#NAME?"}},{"$f":"_xll.RiskData('Risk Summary'!K$48,$A3052)/1000","v":{"$error":"#NAME?"}},{"$f":"_xll.RiskData('Risk Summary'!L$48,$A3052)/1000","v":{"$error":"#NAME?"}},null,null,{"$f":"(_xll.RiskData(NR_to_Cash!C$18,$A3052))/1000","v":{"$error":"#NAME?"}},{"$f":"(_xll.RiskData(NR_to_Cash!D$18,$A3052))/1000","v":{"$error":"#NAME?"}},{"$f":"(_xll.RiskData(NR_to_Cash!E$18,$A3052))/1000","v":{"$error":"#NAME?"}}]
[3046,{"$f":"_xll.RiskData('Risk Summary'!J$48,$A3053)/1000","v":{"$error":"#NAME?"}},{"$f":"_xll.RiskData('Risk Summary'!K$48,$A3053)/1000","v":{"$error":"#NAME?"}},{"$f":"_xll.RiskData('Risk Summary'!L$48,$A3053)/1000","v":{"$error":"#NAME?"}},null,null,{"$f":"(_xll.RiskData(NR_to_Cash!C$18,$A3053))/1000","v":{"$error":"#NAME?"}},{"$f":"(_xll.RiskData(NR_to_Cash!D$18,$A3053))/1000","v":{"$error":"#NAME?"}},{"$f":"(_xll.RiskData(NR_to_Cash!E$18,$A3053))/1000","v":{"$error":"#NAME?"}}]
[3047,{"$f":"_xll.RiskData('Risk Summary'!J$48,$A3054)/1000","v":{"$error":"#NAME?"}},{"$f":"_xll.RiskData('Risk Summary'!K$48,$A3054)/1000","v":{"$error":"#NAME?"}},{"$f":"_xll.RiskData('Risk Summary'!L$48,$A3054)/1000","v":{"$error":"#NAME?"}},null,null,{"$f":"(_xll.RiskData(NR_to_Cash!C$18,$A3054))/1000","v":{"$error":"#NAME?"}},{"$f":"(_xll.RiskData(NR_to_Cash!D$18,$A3054))/1000","v":{"$error":"#NAME?"}},{"$f":"(_xll.RiskData(NR_to_Cash!E$18,$A3054))/1000","v":{"$error":"#NAME?"}}]
[3048,{"$f":"_xll.RiskData('Risk Summary'!J$48,$A3055)/1000","v":{"$error":"#NAME?"}},{"$f":"_xll.RiskData('Risk Summary'!K$48,$A3055)/1000","v":{"$error":"#NAME?"}},{"$f":"_xll.RiskData('Risk Summary'!L$48,$A3055)/1000","v":{"$error":"#NAME?"}},null,null,{"$f":"(_xll.RiskData(NR_to_Cash!C$18,$A3055))/1000","v":{"$error":"#NAME?"}},{"$f":"(_xll.RiskData(NR_to_Cash!D$18,$A3055))/1000","v":{"$error":"#NAME?"}},{"$f":"(_xll.RiskData(NR_to_Cash!E$18,$A3055))/1000","v":{"$error":"#NAME?"}}]
[3049,{"$f":"_xll.RiskData('Risk Summary'!J$48,$A3056)/1000","v":{"$error":"#NAME?"}},{"$f":"_xll.RiskData('Risk Summary'!K$48,$A3056)/1000","v":{"$error":"#NAME?"}},{"$f":"_xll.RiskData('Risk Summary'!L$48,$A3056)/1000","v":{"$error":"#NAME?"}},null,null,{"$f":"(_xll.RiskData(NR_to_Cash!C$18,$A3056))/1000","v":{"$error":"#NAME?"}},{"$f":"(_xll.RiskData(NR_to_Cash!D$18,$A3056))/1000","v":{"$error":"#NAME?"}},{"$f":"(_xll.RiskData(NR_to_Cash!E$18,$A3056))/1000","v":{"$error":"#NAME?"}}]
[3050,{"$f":"_xll.RiskData('Risk Summary'!J$48,$A3057)/1000","v":{"$error":"#NAME?"}},{"$f":"_xll.RiskData('Risk Summary'!K$48,$A3057)/1000","v":{"$error":"#NAME?"}},{"$f":"_xll.RiskData('Risk Summary'!L$48,$A3057)/1000","v":{"$error":"#NAME?"}},null,null,{"$f":"(_xll.RiskData(NR_to_Cash!C$18,$A3057))/1000","v":{"$error":"#NAME?"}},{"$f":"(_xll.RiskData(NR_to_Cash!D$18,$A3057))/1000","v":{"$error":"#NAME?"}},{"$f":"(_xll.RiskData(NR_to_Cash!E$18,$A3057))/1000","v":{"$error":"#NAME?"}}]
[3051,{"$f":"_xll.RiskData('Risk Summary'!J$48,$A3058)/1000","v":{"$error":"#NAME?"}},{"$f":"_xll.RiskData('Risk Summary'!K$48,$A3058)/1000","v":{"$error":"#NAME?"}},{"$f":"_xll.RiskData('Risk Summary'!L$48,$A3058)/1000","v":{"$error":"#NAME?"}},null,null,{"$f":"(_xll.RiskData(NR_to_Cash!C$18,$A3058))/1000","v":{"$error":"#NAME?"}},{"$f":"(_xll.RiskData(NR_to_Cash!D$18,$A3058))/1000","v":{"$error":"#NAME?"}},{"$f":"(_xll.RiskData(NR_to_Cash!E$18,$A3058))/1000","v":{"$error":"#NAME?"}}]
[3052,{"$f":"_xll.RiskData('Risk Summary'!J$48,$A3059)/1000","v":{"$error":"#NAME?"}},{"$f":"_xll.RiskData('Risk Summary'!K$48,$A3059)/1000","v":{"$error":"#NAME?"}},{"$f":"_xll.RiskData('Risk Summary'!L$48,$A3059)/1000","v":{"$error":"#NAME?"}},null,null,{"$f":"(_xll.RiskData(NR_to_Cash!C$18,$A3059))/1000","v":{"$error":"#NAME?"}},{"$f":"(_xll.RiskData(NR_to_Cash!D$18,$A3059))/1000","v":{"$error":"#NAME?"}},{"$f":"(_xll.RiskData(NR_to_Cash!E$18,$A3059))/1000","v":{"$error":"#NAME?"}}]
[3053,{"$f":"_xll.RiskData('Risk Summary'!J$48,$A3060)/1000","v":{"$error":"#NAME?"}},{"$f":"_xll.RiskData('Risk Summary'!K$48,$A3060)/1000","v":{"$error":"#NAME?"}},{"$f":"_xll.RiskData('Risk Summary'!L$48,$A3060)/1000","v":{"$error":"#NAME?"}},null,null,{"$f":"(_xll.RiskData(NR_to_Cash!C$18,$A3060))/1000","v":{"$error":"#NAME?"}},{"$f":"(_xll.RiskData(NR_to_Cash!D$18,$A3060))/1000","v":{"$error":"#NAME?"}},{"$f":"(_xll.RiskData(NR_to_Cash!E$18,$A3060))/1000","v":{"$error":"#NAME?"}}]
[3054,{"$f":"_xll.RiskData('Risk Summary'!J$48,$A3061)/1000","v":{"$error":"#NAME?"}},{"$f":"_xll.RiskData('Risk Summary'!K$48,$A3061)/1000","v":{"$error":"#NAME?"}},{"$f":"_xll.RiskData('Risk Summary'!L$48,$A3061)/1000","v":{"$error":"#NAME?"}},null,null,{"$f":"(_xll.RiskData(NR_to_Cash!C$18,$A3061))/1000","v":{"$error":"#NAME?"}},{"$f":"(_xll.RiskData(NR_to_Cash!D$18,$A3061))/1000","v":{"$error":"#NAME?"}},{"$f":"(_xll.RiskData(NR_to_Cash!E$18,$A3061))/1000","v":{"$error":"#NAME?"}}]
[3055,{"$f":"_xll.RiskData('Risk Summary'!J$48,$A3062)/1000","v":{"$error":"#NAME?"}},{"$f":"_xll.RiskData('Risk Summary'!K$48,$A3062)/1000","v":{"$error":"#NAME?"}},{"$f":"_xll.RiskData('Risk Summary'!L$48,$A3062)/1000","v":{"$error":"#NAME?"}},null,null,{"$f":"(_xll.RiskData(NR_to_Cash!C$18,$A3062))/1000","v":{"$error":"#NAME?"}},{"$f":"(_xll.RiskData(NR_to_Cash!D$18,$A3062))/1000","v":{"$error":"#NAME?"}},{"$f":"(_xll.RiskData(NR_to_Cash!E$18,$A3062))/1000","v":{"$error":"#NAME?"}}]
[3056,{"$f":"_xll.RiskData('Risk Summary'!J$48,$A3063)/1000","v":{"$error":"#NAME?"}},{"$f":"_xll.RiskData('Risk Summary'!K$48,$A3063)/1000","v":{"$error":"#NAME?"}},{"$f":"_xll.RiskData('Risk Summary'!L$48,$A3063)/1000","v":{"$error":"#NAME?"}},null,null,{"$f":"(_xll.RiskData(NR_to_Cash!C$18,$A3063))/1000","v":{"$error":"#NAME?"}},{"$f":"(_xll.RiskData(NR_to_Cash!D$18,$A3063))/1000","v":{"$error":"#NAME?"}},{"$f":"(_xll.RiskData(NR_to_Cash!E$18,$A3063))/1000","v":{"$error":"#NAME?"}}]
[3057,{"$f":"_xll.RiskData('Risk Summary'!J$48,$A3064)/1000","v":{"$error":"#NAME?"}},{"$f":"_xll.RiskData('Risk Summary'!K$48,$A3064)/1000","v":{"$error":"#NAME?"}},{"$f":"_xll.RiskData('Risk Summary'!L$48,$A3064)/1000","v":{"$error":"#NAME?"}},null,null,{"$f":"(_xll.RiskData(NR_to_Cash!C$18,$A3064))/1000","v":{"$error":"#NAME?"}},{"$f":"(_xll.RiskData(NR_to_Cash!D$18,$A3064))/1000","v":{"$error":"#NAME?"}},{"$f":"(_xll.RiskData(NR_to_Cash!E$18,$A3064))/1000","v":{"$error":"#NAME?"}}]
[3058,{"$f":"_xll.RiskData('Risk Summary'!J$48,$A3065)/1000","v":{"$error":"#NAME?"}},{"$f":"_xll.RiskData('Risk Summary'!K$48,$A3065)/1000","v":{"$error":"#NAME?"}},{"$f":"_xll.RiskData('Risk Summary'!L$48,$A3065)/1000","v":{"$error":"#NAME?"}},null,null,{"$f":"(_xll.RiskData(NR_to_Cash!C$18,$A3065))/1000","v":{"$error":"#NAME?"}},{"$f":"(_xll.RiskData(NR_to_Cash!D$18,$A3065))/1000","v":{"$error":"#NAME?"}},{"$f":"(_xll.RiskData(NR_to_Cash!E$18,$A3065))/1000","v":{"$error":"#NAME?"}}]
[3059,{"$f":"_xll.RiskData('Risk Summary'!J$48,$A3066)/1000","v":{"$error":"#NAME?"}},{"$f":"_xll.RiskData('Risk Summary'!K$48,$A3066)/1000","v":{"$error":"#NAME?"}},{"$f":"_xll.RiskData('Risk Summary'!L$48,$A3066)/1000","v":{"$error":"#NAME?"}},null,null,{"$f":"(_xll.RiskData(NR_to_Cash!C$18,$A3066))/1000","v":{"$error":"#NAME?"}},{"$f":"(_xll.RiskData(NR_to_Cash!D$18,$A3066))/1000","v":{"$error":"#NAME?"}},{"$f":"(_xll.RiskData(NR_to_Cash!E$18,$A3066))/1000","v":{"$error":"#NAME?"}}]
[3060,{"$f":"_xll.RiskData('Risk Summary'!J$48,$A3067)/1000","v":{"$error":"#NAME?"}},{"$f":"_xll.RiskData('Risk Summary'!K$48,$A3067)/1000","v":{"$error":"#NAME?"}},{"$f":"_xll.RiskData('Risk Summary'!L$48,$A3067)/1000","v":{"$error":"#NAME?"}},null,null,{"$f":"(_xll.RiskData(NR_to_Cash!C$18,$A3067))/1000","v":{"$error":"#NAME?"}},{"$f":"(_xll.RiskData(NR_to_Cash!D$18,$A3067))/1000","v":{"$error":"#NAME?"}},{"$f":"(_xll.RiskData(NR_to_Cash!E$18,$A3067))/1000","v":{"$error":"#NAME?"}}]
[3061,{"$f":"_xll.RiskData('Risk Summary'!J$48,$A3068)/1000","v":{"$error":"#NAME?"}},{"$f":"_xll.RiskData('Risk Summary'!K$48,$A3068)/1000","v":{"$error":"#NAME?"}},{"$f":"_xll.RiskData('Risk Summary'!L$48,$A3068)/1000","v":{"$error":"#NAME?"}},null,null,{"$f":"(_xll.RiskData(NR_to_Cash!C$18,$A3068))/1000","v":{"$error":"#NAME?"}},{"$f":"(_xll.RiskData(NR_to_Cash!D$18,$A3068))/1000","v":{"$error":"#NAME?"}},{"$f":"(_xll.RiskData(NR_to_Cash!E$18,$A3068))/1000","v":{"$error":"#NAME?"}}]
[3062,{"$f":"_xll.RiskData('Risk Summary'!J$48,$A3069)/1000","v":{"$error":"#NAME?"}},{"$f":"_xll.RiskData('Risk Summary'!K$48,$A3069)/1000","v":{"$error":"#NAME?"}},{"$f":"_xll.RiskData('Risk Summary'!L$48,$A3069)/1000","v":{"$error":"#NAME?"}},null,null,{"$f":"(_xll.RiskData(NR_to_Cash!C$18,$A3069))/1000","v":{"$error":"#NAME?"}},{"$f":"(_xll.RiskData(NR_to_Cash!D$18,$A3069))/1000","v":{"$error":"#NAME?"}},{"$f":"(_xll.RiskData(NR_to_Cash!E$18,$A3069))/1000","v":{"$error":"#NAME?"}}]
[3063,{"$f":"_xll.RiskData('Risk Summary'!J$48,$A3070)/1000","v":{"$error":"#NAME?"}},{"$f":"_xll.RiskData('Risk Summary'!K$48,$A3070)/1000","v":{"$error":"#NAME?"}},{"$f":"_xll.RiskData('Risk Summary'!L$48,$A3070)/1000","v":{"$error":"#NAME?"}},null,null,{"$f":"(_xll.RiskData(NR_to_Cash!C$18,$A3070))/1000","v":{"$error":"#NAME?"}},{"$f":"(_xll.RiskData(NR_to_Cash!D$18,$A3070))/1000","v":{"$error":"#NAME?"}},{"$f":"(_xll.RiskData(NR_to_Cash!E$18,$A3070))/1000","v":{"$error":"#NAME?"}}]
[3064,{"$f":"_xll.RiskData('Risk Summary'!J$48,$A3071)/1000","v":{"$error":"#NAME?"}},{"$f":"_xll.RiskData('Risk Summary'!K$48,$A3071)/1000","v":{"$error":"#NAME?"}},{"$f":"_xll.RiskData('Risk Summary'!L$48,$A3071)/1000","v":{"$error":"#NAME?"}},null,null,{"$f":"(_xll.RiskData(NR_to_Cash!C$18,$A3071))/1000","v":{"$error":"#NAME?"}},{"$f":"(_xll.RiskData(NR_to_Cash!D$18,$A3071))/1000","v":{"$error":"#NAME?"}},{"$f":"(_xll.RiskData(NR_to_Cash!E$18,$A3071))/1000","v":{"$error":"#NAME?"}}]
[3065,{"$f":"_xll.RiskData('Risk Summary'!J$48,$A3072)/1000","v":{"$error":"#NAME?"}},{"$f":"_xll.RiskData('Risk Summary'!K$48,$A3072)/1000","v":{"$error":"#NAME?"}},{"$f":"_xll.RiskData('Risk Summary'!L$48,$A3072)/1000","v":{"$error":"#NAME?"}},null,null,{"$f":"(_xll.RiskData(NR_to_Cash!C$18,$A3072))/1000","v":{"$error":"#NAME?"}},{"$f":"(_xll.RiskData(NR_to_Cash!D$18,$A3072))/1000","v":{"$error":"#NAME?"}},{"$f":"(_xll.RiskData(NR_to_Cash!E$18,$A3072))/1000","v":{"$error":"#NAME?"}}]
[3066,{"$f":"_xll.RiskData('Risk Summary'!J$48,$A3073)/1000","v":{"$error":"#NAME?"}},{"$f":"_xll.RiskData('Risk Summary'!K$48,$A3073)/1000","v":{"$error":"#NAME?"}},{"$f":"_xll.RiskData('Risk Summary'!L$48,$A3073)/1000","v":{"$error":"#NAME?"}},null,null,{"$f":"(_xll.RiskData(NR_to_Cash!C$18,$A3073))/1000","v":{"$error":"#NAME?"}},{"$f":"(_xll.RiskData(NR_to_Cash!D$18,$A3073))/1000","v":{"$error":"#NAME?"}},{"$f":"(_xll.RiskData(NR_to_Cash!E$18,$A3073))/1000","v":{"$error":"#NAME?"}}]
[3067,{"$f":"_xll.RiskData('Risk Summary'!J$48,$A3074)/1000","v":{"$error":"#NAME?"}},{"$f":"_xll.RiskData('Risk Summary'!K$48,$A3074)/1000","v":{"$error":"#NAME?"}},{"$f":"_xll.RiskData('Risk Summary'!L$48,$A3074)/1000","v":{"$error":"#NAME?"}},null,null,{"$f":"(_xll.RiskData(NR_to_Cash!C$18,$A3074))/1000","v":{"$error":"#NAME?"}},{"$f":"(_xll.RiskData(NR_to_Cash!D$18,$A3074))/1000","v":{"$error":"#NAME?"}},{"$f":"(_xll.RiskData(NR_to_Cash!E$18,$A3074))/1000","v":{"$error":"#NAME?"}}]
[3068,{"$f":"_xll.RiskData('Risk Summary'!J$48,$A3075)/1000","v":{"$error":"#NAME?"}},{"$f":"_xll.RiskData('Risk Summary'!K$48,$A3075)/1000","v":{"$error":"#NAME?"}},{"$f":"_xll.RiskData('Risk Summary'!L$48,$A3075)/1000","v":{"$error":"#NAME?"}},null,null,{"$f":"(_xll.RiskData(NR_to_Cash!C$18,$A3075))/1000","v":{"$error":"#NAME?"}},{"$f":"(_xll.RiskData(NR_to_Cash!D$18,$A3075))/1000","v":{"$error":"#NAME?"}},{"$f":"(_xll.RiskData(NR_to_Cash!E$18,$A3075))/1000","v":{"$error":"#NAME?"}}]
[3069,{"$f":"_xll.RiskData('Risk Summary'!J$48,$A3076)/1000","v":{"$error":"#NAME?"}},{"$f":"_xll.RiskData('Risk Summary'!K$48,$A3076)/1000","v":{"$error":"#NAME?"}},{"$f":"_xll.RiskData('Risk Summary'!L$48,$A3076)/1000","v":{"$error":"#NAME?"}},null,null,{"$f":"(_xll.RiskData(NR_to_Cash!C$18,$A3076))/1000","v":{"$error":"#NAME?"}},{"$f":"(_xll.RiskData(NR_to_Cash!D$18,$A3076))/1000","v":{"$error":"#NAME?"}},{"$f":"(_xll.RiskData(NR_to_Cash!E$18,$A3076))/1000","v":{"$error":"#NAME?"}}]
[3070,{"$f":"_xll.RiskData('Risk Summary'!J$48,$A3077)/1000","v":{"$error":"#NAME?"}},{"$f":"_xll.RiskData('Risk Summary'!K$48,$A3077)/1000","v":{"$error":"#NAME?"}},{"$f":"_xll.RiskData('Risk Summary'!L$48,$A3077)/1000","v":{"$error":"#NAME?"}},null,null,{"$f":"(_xll.RiskData(NR_to_Cash!C$18,$A3077))/1000","v":{"$error":"#NAME?"}},{"$f":"(_xll.RiskData(NR_to_Cash!D$18,$A3077))/1000","v":{"$error":"#NAME?"}},{"$f":"(_xll.RiskData(NR_to_Cash!E$18,$A3077))/1000","v":{"$error":"#NAME?"}}]
[3071,{"$f":"_xll.RiskData('Risk Summary'!J$48,$A3078)/1000","v":{"$error":"#NAME?"}},{"$f":"_xll.RiskData('Risk Summary'!K$48,$A3078)/1000","v":{"$error":"#NAME?"}},{"$f":"_xll.RiskData('Risk Summary'!L$48,$A3078)/1000","v":{"$error":"#NAME?"}},null,null,{"$f":"(_xll.RiskData(NR_to_Cash!C$18,$A3078))/1000","v":{"$error":"#NAME?"}},{"$f":"(_xll.RiskData(NR_to_Cash!D$18,$A3078))/1000","v":{"$error":"#NAME?"}},{"$f":"(_xll.RiskData(NR_to_Cash!E$18,$A3078))/1000","v":{"$error":"#NAME?"}}]
[3072,{"$f":"_xll.RiskData('Risk Summary'!J$48,$A3079)/1000","v":{"$error":"#NAME?"}},{"$f":"_xll.RiskData('Risk Summary'!K$48,$A3079)/1000","v":{"$error":"#NAME?"}},{"$f":"_xll.RiskData('Risk Summary'!L$48,$A3079)/1000","v":{"$error":"#NAME?"}},null,null,{"$f":"(_xll.RiskData(NR_to_Cash!C$18,$A3079))/1000","v":{"$error":"#NAME?"}},{"$f":"(_xll.RiskData(NR_to_Cash!D$18,$A3079))/1000","v":{"$error":"#NAME?"}},{"$f":"(_xll.RiskData(NR_to_Cash!E$18,$A3079))/1000","v":{"$error":"#NAME?"}}]
[3073,{"$f":"_xll.RiskData('Risk Summary'!J$48,$A3080)/1000","v":{"$error":"#NAME?"}},{"$f":"_xll.RiskData('Risk Summary'!K$48,$A3080)/1000","v":{"$error":"#NAME?"}},{"$f":"_xll.RiskData('Risk Summary'!L$48,$A3080)/1000","v":{"$error":"#NAME?"}},null,null,{"$f":"(_xll.RiskData(NR_to_Cash!C$18,$A3080))/1000","v":{"$error":"#NAME?"}},{"$f":"(_xll.RiskData(NR_to_Cash!D$18,$A3080))/1000","v":{"$error":"#NAME?"}},{"$f":"(_xll.RiskData(NR_to_Cash!E$18,$A3080))/1000","v":{"$error":"#NAME?"}}]
[3074,{"$f":"_xll.RiskData('Risk Summary'!J$48,$A3081)/1000","v":{"$error":"#NAME?"}},{"$f":"_xll.RiskData('Risk Summary'!K$48,$A3081)/1000","v":{"$error":"#NAME?"}},{"$f":"_xll.RiskData('Risk Summary'!L$48,$A3081)/1000","v":{"$error":"#NAME?"}},null,null,{"$f":"(_xll.RiskData(NR_to_Cash!C$18,$A3081))/1000","v":{"$error":"#NAME?"}},{"$f":"(_xll.RiskData(NR_to_Cash!D$18,$A3081))/1000","v":{"$error":"#NAME?"}},{"$f":"(_xll.RiskData(NR_to_Cash!E$18,$A3081))/1000","v":{"$error":"#NAME?"}}]
[3075,{"$f":"_xll.RiskData('Risk Summary'!J$48,$A3082)/1000","v":{"$error":"#NAME?"}},{"$f":"_xll.RiskData('Risk Summary'!K$48,$A3082)/1000","v":{"$error":"#NAME?"}},{"$f":"_xll.RiskData('Risk Summary'!L$48,$A3082)/1000","v":{"$error":"#NAME?"}},null,null,{"$f":"(_xll.RiskData(NR_to_Cash!C$18,$A3082))/1000","v":{"$error":"#NAME?"}},{"$f":"(_xll.RiskData(NR_to_Cash!D$18,$A3082))/1000","v":{"$error":"#NAME?"}},{"$f":"(_xll.RiskData(NR_to_Cash!E$18,$A3082))/1000","v":{"$error":"#NAME?"}}]
[3076,{"$f":"_xll.RiskData('Risk Summary'!J$48,$A3083)/1000","v":{"$error":"#NAME?"}},{"$f":"_xll.RiskData('Risk Summary'!K$48,$A3083)/1000","v":{"$error":"#NAME?"}},{"$f":"_xll.RiskData('Risk Summary'!L$48,$A3083)/1000","v":{"$error":"#NAME?"}},null,null,{"$f":"(_xll.RiskData(NR_to_Cash!C$18,$A3083))/1000","v":{"$error":"#NAME?"}},{"$f":"(_xll.RiskData(NR_to_Cash!D$18,$A3083))/1000","v":{"$error":"#NAME?"}},{"$f":"(_xll.RiskData(NR_to_Cash!E$18,$A3083))/1000","v":{"$error":"#NAME?"}}]
[3077,{"$f":"_xll.RiskData('Risk Summary'!J$48,$A3084)/1000","v":{"$error":"#NAME?"}},{"$f":"_xll.RiskData('Risk Summary'!K$48,$A3084)/1000","v":{"$error":"#NAME?"}},{"$f":"_xll.RiskData('Risk Summary'!L$48,$A3084)/1000","v":{"$error":"#NAME?"}},null,null,{"$f":"(_xll.RiskData(NR_to_Cash!C$18,$A3084))/1000","v":{"$error":"#NAME?"}},{"$f":"(_xll.RiskData(NR_to_Cash!D$18,$A3084))/1000","v":{"$error":"#NAME?"}},{"$f":"(_xll.RiskData(NR_to_Cash!E$18,$A3084))/1000","v":{"$error":"#NAME?"}}]
[3078,{"$f":"_xll.RiskData('Risk Summary'!J$48,$A3085)/1000","v":{"$error":"#NAME?"}},{"$f":"_xll.RiskData('Risk Summary'!K$48,$A3085)/1000","v":{"$error":"#NAME?"}},{"$f":"_xll.RiskData('Risk Summary'!L$48,$A3085)/1000","v":{"$error":"#NAME?"}},null,null,{"$f":"(_xll.RiskData(NR_to_Cash!C$18,$A3085))/1000","v":{"$error":"#NAME?"}},{"$f":"(_xll.RiskData(NR_to_Cash!D$18,$A3085))/1000","v":{"$error":"#NAME?"}},{"$f":"(_xll.RiskData(NR_to_Cash!E$18,$A3085))/1000","v":{"$error":"#NAME?"}}]
[3079,{"$f":"_xll.RiskData('Risk Summary'!J$48,$A3086)/1000","v":{"$error":"#NAME?"}},{"$f":"_xll.RiskData('Risk Summary'!K$48,$A3086)/1000","v":{"$error":"#NAME?"}},{"$f":"_xll.RiskData('Risk Summary'!L$48,$A3086)/1000","v":{"$error":"#NAME?"}},null,null,{"$f":"(_xll.RiskData(NR_to_Cash!C$18,$A3086))/1000","v":{"$error":"#NAME?"}},{"$f":"(_xll.RiskData(NR_to_Cash!D$18,$A3086))/1000","v":{"$error":"#NAME?"}},{"$f":"(_xll.RiskData(NR_to_Cash!E$18,$A3086))/1000","v":{"$error":"#NAME?"}}]
[3080,{"$f":"_xll.RiskData('Risk Summary'!J$48,$A3087)/1000","v":{"$error":"#NAME?"}},{"$f":"_xll.RiskData('Risk Summary'!K$48,$A3087)/1000","v":{"$error":"#NAME?"}},{"$f":"_xll.RiskData('Risk Summary'!L$48,$A3087)/1000","v":{"$error":"#NAME?"}},null,null,{"$f":"(_xll.RiskData(NR_to_Cash!C$18,$A3087))/1000","v":{"$error":"#NAME?"}},{"$f":"(_xll.RiskData(NR_to_Cash!D$18,$A3087))/1000","v":{"$error":"#NAME?"}},{"$f":"(_xll.RiskData(NR_to_Cash!E$18,$A3087))/1000","v":{"$error":"#NAME?"}}]
[3081,{"$f":"_xll.RiskData('Risk Summary'!J$48,$A3088)/1000","v":{"$error":"#NAME?"}},{"$f":"_xll.RiskData('Risk Summary'!K$48,$A3088)/1000","v":{"$error":"#NAME?"}},{"$f":"_xll.RiskData('Risk Summary'!L$48,$A3088)/1000","v":{"$error":"#NAME?"}},null,null,{"$f":"(_xll.RiskData(NR_to_Cash!C$18,$A3088))/1000","v":{"$error":"#NAME?"}},{"$f":"(_xll.RiskData(NR_to_Cash!D$18,$A3088))/1000","v":{"$error":"#NAME?"}},{"$f":"(_xll.RiskData(NR_to_Cash!E$18,$A3088))/1000","v":{"$error":"#NAME?"}}]
[3082,{"$f":"_xll.RiskData('Risk Summary'!J$48,$A3089)/1000","v":{"$error":"#NAME?"}},{"$f":"_xll.RiskData('Risk Summary'!K$48,$A3089)/1000","v":{"$error":"#NAME?"}},{"$f":"_xll.RiskData('Risk Summary'!L$48,$A3089)/1000","v":{"$error":"#NAME?"}},null,null,{"$f":"(_xll.RiskData(NR_to_Cash!C$18,$A3089))/1000","v":{"$error":"#NAME?"}},{"$f":"(_xll.RiskData(NR_to_Cash!D$18,$A3089))/1000","v":{"$error":"#NAME?"}},{"$f":"(_xll.RiskData(NR_to_Cash!E$18,$A3089))/1000","v":{"$error":"#NAME?"}}]
[3083,{"$f":"_xll.RiskData('Risk Summary'!J$48,$A3090)/1000","v":{"$error":"#NAME?"}},{"$f":"_xll.RiskData('Risk Summary'!K$48,$A3090)/1000","v":{"$error":"#NAME?"}},{"$f":"_xll.RiskData('Risk Summary'!L$48,$A3090)/1000","v":{"$error":"#NAME?"}},null,null,{"$f":"(_xll.RiskData(NR_to_Cash!C$18,$A3090))/1000","v":{"$error":"#NAME?"}},{"$f":"(_xll.RiskData(NR_to_Cash!D$18,$A3090))/1000","v":{"$error":"#NAME?"}},{"$f":"(_xll.RiskData(NR_to_Cash!E$18,$A3090))/1000","v":{"$error":"#NAME?"}}]
[3084,{"$f":"_xll.RiskData('Risk Summary'!J$48,$A3091)/1000","v":{"$error":"#NAME?"}},{"$f":"_xll.RiskData('Risk Summary'!K$48,$A3091)/1000","v":{"$error":"#NAME?"}},{"$f":"_xll.RiskData('Risk Summary'!L$48,$A3091)/1000","v":{"$error":"#NAME?"}},null,null,{"$f":"(_xll.RiskData(NR_to_Cash!C$18,$A3091))/1000","v":{"$error":"#NAME?"}},{"$f":"(_xll.RiskData(NR_to_Cash!D$18,$A3091))/1000","v":{"$error":"#NAME?"}},{"$f":"(_xll.RiskData(NR_to_Cash!E$18,$A3091))/1000","v":{"$error":"#NAME?"}}]
[3085,{"$f":"_xll.RiskData('Risk Summary'!J$48,$A3092)/1000","v":{"$error":"#NAME?"}},{"$f":"_xll.RiskData('Risk Summary'!K$48,$A3092)/1000","v":{"$error":"#NAME?"}},{"$f":"_xll.RiskData('Risk Summary'!L$48,$A3092)/1000","v":{"$error":"#NAME?"}},null,null,{"$f":"(_xll.RiskData(NR_to_Cash!C$18,$A3092))/1000","v":{"$error":"#NAME?"}},{"$f":"(_xll.RiskData(NR_to_Cash!D$18,$A3092))/1000","v":{"$error":"#NAME?"}},{"$f":"(_xll.RiskData(NR_to_Cash!E$18,$A3092))/1000","v":{"$error":"#NAME?"}}]
[3086,{"$f":"_xll.RiskData('Risk Summary'!J$48,$A3093)/1000","v":{"$error":"#NAME?"}},{"$f":"_xll.RiskData('Risk Summary'!K$48,$A3093)/1000","v":{"$error":"#NAME?"}},{"$f":"_xll.RiskData('Risk Summary'!L$48,$A3093)/1000","v":{"$error":"#NAME?"}},null,null,{"$f":"(_xll.RiskData(NR_to_Cash!C$18,$A3093))/1000","v":{"$error":"#NAME?"}},{"$f":"(_xll.RiskData(NR_to_Cash!D$18,$A3093))/1000","v":{"$error":"#NAME?"}},{"$f":"(_xll.RiskData(NR_to_Cash!E$18,$A3093))/1000","v":{"$error":"#NAME?"}}]
[3087,{"$f":"_xll.RiskData('Risk Summary'!J$48,$A3094)/1000","v":{"$error":"#NAME?"}},{"$f":"_xll.RiskData('Risk Summary'!K$48,$A3094)/1000","v":{"$error":"#NAME?"}},{"$f":"_xll.RiskData('Risk Summary'!L$48,$A3094)/1000","v":{"$error":"#NAME?"}},null,null,{"$f":"(_xll.RiskData(NR_to_Cash!C$18,$A3094))/1000","v":{"$error":"#NAME?"}},{"$f":"(_xll.RiskData(NR_to_Cash!D$18,$A3094))/1000","v":{"$error":"#NAME?"}},{"$f":"(_xll.RiskData(NR_to_Cash!E$18,$A3094))/1000","v":{"$error":"#NAME?"}}]
[3088,{"$f":"_xll.RiskData('Risk Summary'!J$48,$A3095)/1000","v":{"$error":"#NAME?"}},{"$f":"_xll.RiskData('Risk Summary'!K$48,$A3095)/1000","v":{"$error":"#NAME?"}},{"$f":"_xll.RiskData('Risk Summary'!L$48,$A3095)/1000","v":{"$error":"#NAME?"}},null,null,{"$f":"(_xll.RiskData(NR_to_Cash!C$18,$A3095))/1000","v":{"$error":"#NAME?"}},{"$f":"(_xll.RiskData(NR_to_Cash!D$18,$A3095))/1000","v":{"$error":"#NAME?"}},{"$f":"(_xll.RiskData(NR_to_Cash!E$18,$A3095))/1000","v":{"$error":"#NAME?"}}]
[3089,{"$f":"_xll.RiskData('Risk Summary'!J$48,$A3096)/1000","v":{"$error":"#NAME?"}},{"$f":"_xll.RiskData('Risk Summary'!K$48,$A3096)/1000","v":{"$error":"#NAME?"}},{"$f":"_xll.RiskData('Risk Summary'!L$48,$A3096)/1000","v":{"$error":"#NAME?"}},null,null,{"$f":"(_xll.RiskData(NR_to_Cash!C$18,$A3096))/1000","v":{"$error":"#NAME?"}},{"$f":"(_xll.RiskData(NR_to_Cash!D$18,$A3096))/1000","v":{"$error":"#NAME?"}},{"$f":"(_xll.RiskData(NR_to_Cash!E$18,$A3096))/1000","v":{"$error":"#NAME?"}}]
[3090,{"$f":"_xll.RiskData('Risk Summary'!J$48,$A3097)/1000","v":{"$error":"#NAME?"}},{"$f":"_xll.RiskData('Risk Summary'!K$48,$A3097)/1000","v":{"$error":"#NAME?"}},{"$f":"_xll.RiskData('Risk Summary'!L$48,$A3097)/1000","v":{"$error":"#NAME?"}},null,null,{"$f":"(_xll.RiskData(NR_to_Cash!C$18,$A3097))/1000","v":{"$error":"#NAME?"}},{"$f":"(_xll.RiskData(NR_to_Cash!D$18,$A3097))/1000","v":{"$error":"#NAME?"}},{"$f":"(_xll.RiskData(NR_to_Cash!E$18,$A3097))/1000","v":{"$error":"#NAME?"}}]
[3091,{"$f":"_xll.RiskData('Risk Summary'!J$48,$A3098)/1000","v":{"$error":"#NAME?"}},{"$f":"_xll.RiskData('Risk Summary'!K$48,$A3098)/1000","v":{"$error":"#NAME?"}},{"$f":"_xll.RiskData('Risk Summary'!L$48,$A3098)/1000","v":{"$error":"#NAME?"}},null,null,{"$f":"(_xll.RiskData(NR_to_Cash!C$18,$A3098))/1000","v":{"$error":"#NAME?"}},{"$f":"(_xll.RiskData(NR_to_Cash!D$18,$A3098))/1000","v":{"$error":"#NAME?"}},{"$f":"(_xll.RiskData(NR_to_Cash!E$18,$A3098))/1000","v":{"$error":"#NAME?"}}]
[3092,{"$f":"_xll.RiskData('Risk Summary'!J$48,$A3099)/1000","v":{"$error":"#NAME?"}},{"$f":"_xll.RiskData('Risk Summary'!K$48,$A3099)/1000","v":{"$error":"#NAME?"}},{"$f":"_xll.RiskData('Risk Summary'!L$48,$A3099)/1000","v":{"$error":"#NAME?"}},null,null,{"$f":"(_xll.RiskData(NR_to_Cash!C$18,$A3099))/1000","v":{"$error":"#NAME?"}},{"$f":"(_xll.RiskData(NR_to_Cash!D$18,$A3099))/1000","v":{"$error":"#NAME?"}},{"$f":"(_xll.RiskData(NR_to_Cash!E$18,$A3099))/1000","v":{"$error":"#NAME?"}}]
[3093,{"$f":"_xll.RiskData('Risk Summary'!J$48,$A3100)/1000","v":{"$error":"#NAME?"}},{"$f":"_xll.RiskData('Risk Summary'!K$48,$A3100)/1000","v":{"$error":"#NAME?"}},{"$f":"_xll.RiskData('Risk Summary'!L$48,$A3100)/1000","v":{"$error":"#NAME?"}},null,null,{"$f":"(_xll.RiskData(NR_to_Cash!C$18,$A3100))/1000","v":{"$error":"#NAME?"}},{"$f":"(_xll.RiskData(NR_to_Cash!D$18,$A3100))/1000","v":{"$error":"#NAME?"}},{"$f":"(_xll.RiskData(NR_to_Cash!E$18,$A3100))/1000","v":{"$error":"#NAME?"}}]
[3094,{"$f":"_xll.RiskData('Risk Summary'!J$48,$A3101)/1000","v":{"$error":"#NAME?"}},{"$f":"_xll.RiskData('Risk Summary'!K$48,$A3101)/1000","v":{"$error":"#NAME?"}},{"$f":"_xll.RiskData('Risk Summary'!L$48,$A3101)/1000","v":{"$error":"#NAME?"}},null,null,{"$f":"(_xll.RiskData(NR_to_Cash!C$18,$A3101))/1000","v":{"$error":"#NAME?"}},{"$f":"(_xll.RiskData(NR_to_Cash!D$18,$A3101))/1000","v":{"$error":"#NAME?"}},{"$f":"(_xll.RiskData(NR_to_Cash!E$18,$A3101))/1000","v":{"$error":"#NAME?"}}]
[3095,{"$f":"_xll.RiskData('Risk Summary'!J$48,$A3102)/1000","v":{"$error":"#NAME?"}},{"$f":"_xll.RiskData('Risk Summary'!K$48,$A3102)/1000","v":{"$error":"#NAME?"}},{"$f":"_xll.RiskData('Risk Summary'!L$48,$A3102)/1000","v":{"$error":"#NAME?"}},null,null,{"$f":"(_xll.RiskData(NR_to_Cash!C$18,$A3102))/1000","v":{"$error":"#NAME?"}},{"$f":"(_xll.RiskData(NR_to_Cash!D$18,$A3102))/1000","v":{"$error":"#NAME?"}},{"$f":"(_xll.RiskData(NR_to_Cash!E$18,$A3102))/1000","v":{"$error":"#NAME?"}}]
[3096,{"$f":"_xll.RiskData('Risk Summary'!J$48,$A3103)/1000","v":{"$error":"#NAME?"}},{"$f":"_xll.RiskData('Risk Summary'!K$48,$A3103)/1000","v":{"$error":"#NAME?"}},{"$f":"_xll.RiskData('Risk Summary'!L$48,$A3103)/1000","v":{"$error":"#NAME?"}},null,null,{"$f":"(_xll.RiskData(NR_to_Cash!C$18,$A3103))/1000","v":{"$error":"#NAME?"}},{"$f":"(_xll.RiskData(NR_to_Cash!D$18,$A3103))/1000","v":{"$error":"#NAME?"}},{"$f":"(_xll.RiskData(NR_to_Cash!E$18,$A3103))/1000","v":{"$error":"#NAME?"}}]
[3097,{"$f":"_xll.RiskData('Risk Summary'!J$48,$A3104)/1000","v":{"$error":"#NAME?"}},{"$f":"_xll.RiskData('Risk Summary'!K$48,$A3104)/1000","v":{"$error":"#NAME?"}},{"$f":"_xll.RiskData('Risk Summary'!L$48,$A3104)/1000","v":{"$error":"#NAME?"}},null,null,{"$f":"(_xll.RiskData(NR_to_Cash!C$18,$A3104))/1000","v":{"$error":"#NAME?"}},{"$f":"(_xll.RiskData(NR_to_Cash!D$18,$A3104))/1000","v":{"$error":"#NAME?"}},{"$f":"(_xll.RiskData(NR_to_Cash!E$18,$A3104))/1000","v":{"$error":"#NAME?"}}]
[3098,{"$f":"_xll.RiskData('Risk Summary'!J$48,$A3105)/1000","v":{"$error":"#NAME?"}},{"$f":"_xll.RiskData('Risk Summary'!K$48,$A3105)/1000","v":{"$error":"#NAME?"}},{"$f":"_xll.RiskData('Risk Summary'!L$48,$A3105)/1000","v":{"$error":"#NAME?"}},null,null,{"$f":"(_xll.RiskData(NR_to_Cash!C$18,$A3105))/1000","v":{"$error":"#NAME?"}},{"$f":"(_xll.RiskData(NR_to_Cash!D$18,$A3105))/1000","v":{"$error":"#NAME?"}},{"$f":"(_xll.RiskData(NR_to_Cash!E$18,$A3105))/1000","v":{"$error":"#NAME?"}}]
[3099,{"$f":"_xll.RiskData('Risk Summary'!J$48,$A3106)/1000","v":{"$error":"#NAME?"}},{"$f":"_xll.RiskData('Risk Summary'!K$48,$A3106)/1000","v":{"$error":"#NAME?"}},{"$f":"_xll.RiskData('Risk Summary'!L$48,$A3106)/1000","v":{"$error":"#NAME?"}},null,null,{"$f":"(_xll.RiskData(NR_to_Cash!C$18,$A3106))/1000","v":{"$error":"#NAME?"}},{"$f":"(_xll.RiskData(NR_to_Cash!D$18,$A3106))/1000","v":{"$error":"#NAME?"}},{"$f":"(_xll.RiskData(NR_to_Cash!E$18,$A3106))/1000","v":{"$error":"#NAME?"}}]
[3100,{"$f":"_xll.RiskData('Risk Summary'!J$48,$A3107)/1000","v":{"$error":"#NAME?"}},{"$f":"_xll.RiskData('Risk Summary'!K$48,$A3107)/1000","v":{"$error":"#NAME?"}},{"$f":"_xll.RiskData('Risk Summary'!L$48,$A3107)/1000","v":{"$error":"#NAME?"}},null,null,{"$f":"(_xll.RiskData(NR_to_Cash!C$18,$A3107))/1000","v":{"$error":"#NAME?"}},{"$f":"(_xll.RiskData(NR_to_Cash!D$18,$A3107))/1000","v":{"$error":"#NAME?"}},{"$f":"(_xll.RiskData(NR_to_Cash!E$18,$A3107))/1000","v":{"$error":"#NAME?"}}]
[3101,{"$f":"_xll.RiskData('Risk Summary'!J$48,$A3108)/1000","v":{"$error":"#NAME?"}},{"$f":"_xll.RiskData('Risk Summary'!K$48,$A3108)/1000","v":{"$error":"#NAME?"}},{"$f":"_xll.RiskData('Risk Summary'!L$48,$A3108)/1000","v":{"$error":"#NAME?"}},null,null,{"$f":"(_xll.RiskData(NR_to_Cash!C$18,$A3108))/1000","v":{"$error":"#NAME?"}},{"$f":"(_xll.RiskData(NR_to_Cash!D$18,$A3108))/1000","v":{"$error":"#NAME?"}},{"$f":"(_xll.RiskData(NR_to_Cash!E$18,$A3108))/1000","v":{"$error":"#NAME?"}}]
[3102,{"$f":"_xll.RiskData('Risk Summary'!J$48,$A3109)/1000","v":{"$error":"#NAME?"}},{"$f":"_xll.RiskData('Risk Summary'!K$48,$A3109)/1000","v":{"$error":"#NAME?"}},{"$f":"_xll.RiskData('Risk Summary'!L$48,$A3109)/1000","v":{"$error":"#NAME?"}},null,null,{"$f":"(_xll.RiskData(NR_to_Cash!C$18,$A3109))/1000","v":{"$error":"#NAME?"}},{"$f":"(_xll.RiskData(NR_to_Cash!D$18,$A3109))/1000","v":{"$error":"#NAME?"}},{"$f":"(_xll.RiskData(NR_to_Cash!E$18,$A3109))/1000","v":{"$error":"#NAME?"}}]
[3103,{"$f":"_xll.RiskData('Risk Summary'!J$48,$A3110)/1000","v":{"$error":"#NAME?"}},{"$f":"_xll.RiskData('Risk Summary'!K$48,$A3110)/1000","v":{"$error":"#NAME?"}},{"$f":"_xll.RiskData('Risk Summary'!L$48,$A3110)/1000","v":{"$error":"#NAME?"}},null,null,{"$f":"(_xll.RiskData(NR_to_Cash!C$18,$A3110))/1000","v":{"$error":"#NAME?"}},{"$f":"(_xll.RiskData(NR_to_Cash!D$18,$A3110))/1000","v":{"$error":"#NAME?"}},{"$f":"(_xll.RiskData(NR_to_Cash!E$18,$A3110))/1000","v":{"$error":"#NAME?"}}]
[3104,{"$f":"_xll.RiskData('Risk Summary'!J$48,$A3111)/1000","v":{"$error":"#NAME?"}},{"$f":"_xll.RiskData('Risk Summary'!K$48,$A3111)/1000","v":{"$error":"#NAME?"}},{"$f":"_xll.RiskData('Risk Summary'!L$48,$A3111)/1000","v":{"$error":"#NAME?"}},null,null,{"$f":"(_xll.RiskData(NR_to_Cash!C$18,$A3111))/1000","v":{"$error":"#NAME?"}},{"$f":"(_xll.RiskData(NR_to_Cash!D$18,$A3111))/1000","v":{"$error":"#NAME?"}},{"$f":"(_xll.RiskData(NR_to_Cash!E$18,$A3111))/1000","v":{"$error":"#NAME?"}}]
[3105,{"$f":"_xll.RiskData('Risk Summary'!J$48,$A3112)/1000","v":{"$error":"#NAME?"}},{"$f":"_xll.RiskData('Risk Summary'!K$48,$A3112)/1000","v":{"$error":"#NAME?"}},{"$f":"_xll.RiskData('Risk Summary'!L$48,$A3112)/1000","v":{"$error":"#NAME?"}},null,null,{"$f":"(_xll.RiskData(NR_to_Cash!C$18,$A3112))/1000","v":{"$error":"#NAME?"}},{"$f":"(_xll.RiskData(NR_to_Cash!D$18,$A3112))/1000","v":{"$error":"#NAME?"}},{"$f":"(_xll.RiskData(NR_to_Cash!E$18,$A3112))/1000","v":{"$error":"#NAME?"}}]
[3106,{"$f":"_xll.RiskData('Risk Summary'!J$48,$A3113)/1000","v":{"$error":"#NAME?"}},{"$f":"_xll.RiskData('Risk Summary'!K$48,$A3113)/1000","v":{"$error":"#NAME?"}},{"$f":"_xll.RiskData('Risk Summary'!L$48,$A3113)/1000","v":{"$error":"#NAME?"}},null,null,{"$f":"(_xll.RiskData(NR_to_Cash!C$18,$A3113))/1000","v":{"$error":"#NAME?"}},{"$f":"(_xll.RiskData(NR_to_Cash!D$18,$A3113))/1000","v":{"$error":"#NAME?"}},{"$f":"(_xll.RiskData(NR_to_Cash!E$18,$A3113))/1000","v":{"$error":"#NAME?"}}]
[3107,{"$f":"_xll.RiskData('Risk Summary'!J$48,$A3114)/1000","v":{"$error":"#NAME?"}},{"$f":"_xll.RiskData('Risk Summary'!K$48,$A3114)/1000","v":{"$error":"#NAME?"}},{"$f":"_xll.RiskData('Risk Summary'!L$48,$A3114)/1000","v":{"$error":"#NAME?"}},null,null,{"$f":"(_xll.RiskData(NR_to_Cash!C$18,$A3114))/1000","v":{"$error":"#NAME?"}},{"$f":"(_xll.RiskData(NR_to_Cash!D$18,$A3114))/1000","v":{"$error":"#NAME?"}},{"$f":"(_xll.RiskData(NR_to_Cash!E$18,$A3114))/1000","v":{"$error":"#NAME?"}}]
[3108,{"$f":"_xll.RiskData('Risk Summary'!J$48,$A3115)/1000","v":{"$error":"#NAME?"}},{"$f":"_xll.RiskData('Risk Summary'!K$48,$A3115)/1000","v":{"$error":"#NAME?"}},{"$f":"_xll.RiskData('Risk Summary'!L$48,$A3115)/1000","v":{"$error":"#NAME?"}},null,null,{"$f":"(_xll.RiskData(NR_to_Cash!C$18,$A3115))/1000","v":{"$error":"#NAME?"}},{"$f":"(_xll.RiskData(NR_to_Cash!D$18,$A3115))/1000","v":{"$error":"#NAME?"}},{"$f":"(_xll.RiskData(NR_to_Cash!E$18,$A3115))/1000","v":{"$error":"#NAME?"}}]
[3109,{"$f":"_xll.RiskData('Risk Summary'!J$48,$A3116)/1000","v":{"$error":"#NAME?"}},{"$f":"_xll.RiskData('Risk Summary'!K$48,$A3116)/1000","v":{"$error":"#NAME?"}},{"$f":"_xll.RiskData('Risk Summary'!L$48,$A3116)/1000","v":{"$error":"#NAME?"}},null,null,{"$f":"(_xll.RiskData(NR_to_Cash!C$18,$A3116))/1000","v":{"$error":"#NAME?"}},{"$f":"(_xll.RiskData(NR_to_Cash!D$18,$A3116))/1000","v":{"$error":"#NAME?"}},{"$f":"(_xll.RiskData(NR_to_Cash!E$18,$A3116))/1000","v":{"$error":"#NAME?"}}]
[3110,{"$f":"_xll.RiskData('Risk Summary'!J$48,$A3117)/1000","v":{"$error":"#NAME?"}},{"$f":"_xll.RiskData('Risk Summary'!K$48,$A3117)/1000","v":{"$error":"#NAME?"}},{"$f":"_xll.RiskData('Risk Summary'!L$48,$A3117)/1000","v":{"$error":"#NAME?"}},null,null,{"$f":"(_xll.RiskData(NR_to_Cash!C$18,$A3117))/1000","v":{"$error":"#NAME?"}},{"$f":"(_xll.RiskData(NR_to_Cash!D$18,$A3117))/1000","v":{"$error":"#NAME?"}},{"$f":"(_xll.RiskData(NR_to_Cash!E$18,$A3117))/1000","v":{"$error":"#NAME?"}}]
[3111,{"$f":"_xll.RiskData('Risk Summary'!J$48,$A3118)/1000","v":{"$error":"#NAME?"}},{"$f":"_xll.RiskData('Risk Summary'!K$48,$A3118)/1000","v":{"$error":"#NAME?"}},{"$f":"_xll.RiskData('Risk Summary'!L$48,$A3118)/1000","v":{"$error":"#NAME?"}},null,null,{"$f":"(_xll.RiskData(NR_to_Cash!C$18,$A3118))/1000","v":{"$error":"#NAME?"}},{"$f":"(_xll.RiskData(NR_to_Cash!D$18,$A3118))/1000","v":{"$error":"#NAME?"}},{"$f":"(_xll.RiskData(NR_to_Cash!E$18,$A3118))/1000","v":{"$error":"#NAME?"}}]
[3112,{"$f":"_xll.RiskData('Risk Summary'!J$48,$A3119)/1000","v":{"$error":"#NAME?"}},{"$f":"_xll.RiskData('Risk Summary'!K$48,$A3119)/1000","v":{"$error":"#NAME?"}},{"$f":"_xll.RiskData('Risk Summary'!L$48,$A3119)/1000","v":{"$error":"#NAME?"}},null,null,{"$f":"(_xll.RiskData(NR_to_Cash!C$18,$A3119))/1000","v":{"$error":"#NAME?"}},{"$f":"(_xll.RiskData(NR_to_Cash!D$18,$A3119))/1000","v":{"$error":"#NAME?"}},{"$f":"(_xll.RiskData(NR_to_Cash!E$18,$A3119))/1000","v":{"$error":"#NAME?"}}]
[3113,{"$f":"_xll.RiskData('Risk Summary'!J$48,$A3120)/1000","v":{"$error":"#NAME?"}},{"$f":"_xll.RiskData('Risk Summary'!K$48,$A3120)/1000","v":{"$error":"#NAME?"}},{"$f":"_xll.RiskData('Risk Summary'!L$48,$A3120)/1000","v":{"$error":"#NAME?"}},null,null,{"$f":"(_xll.RiskData(NR_to_Cash!C$18,$A3120))/1000","v":{"$error":"#NAME?"}},{"$f":"(_xll.RiskData(NR_to_Cash!D$18,$A3120))/1000","v":{"$error":"#NAME?"}},{"$f":"(_xll.RiskData(NR_to_Cash!E$18,$A3120))/1000","v":{"$error":"#NAME?"}}]
[3114,{"$f":"_xll.RiskData('Risk Summary'!J$48,$A3121)/1000","v":{"$error":"#NAME?"}},{"$f":"_xll.RiskData('Risk Summary'!K$48,$A3121)/1000","v":{"$error":"#NAME?"}},{"$f":"_xll.RiskData('Risk Summary'!L$48,$A3121)/1000","v":{"$error":"#NAME?"}},null,null,{"$f":"(_xll.RiskData(NR_to_Cash!C$18,$A3121))/1000","v":{"$error":"#NAME?"}},{"$f":"(_xll.RiskData(NR_to_Cash!D$18,$A3121))/1000","v":{"$error":"#NAME?"}},{"$f":"(_xll.RiskData(NR_to_Cash!E$18,$A3121))/1000","v":{"$error":"#NAME?"}}]
[3115,{"$f":"_xll.RiskData('Risk Summary'!J$48,$A3122)/1000","v":{"$error":"#NAME?"}},{"$f":"_xll.RiskData('Risk Summary'!K$48,$A3122)/1000","v":{"$error":"#NAME?"}},{"$f":"_xll.RiskData('Risk Summary'!L$48,$A3122)/1000","v":{"$error":"#NAME?"}},null,null,{"$f":"(_xll.RiskData(NR_to_Cash!C$18,$A3122))/1000","v":{"$error":"#NAME?"}},{"$f":"(_xll.RiskData(NR_to_Cash!D$18,$A3122))/1000","v":{"$error":"#NAME?"}},{"$f":"(_xll.RiskData(NR_to_Cash!E$18,$A3122))/1000","v":{"$error":"#NAME?"}}]
[3116,{"$f":"_xll.RiskData('Risk Summary'!J$48,$A3123)/1000","v":{"$error":"#NAME?"}},{"$f":"_xll.RiskData('Risk Summary'!K$48,$A3123)/1000","v":{"$error":"#NAME?"}},{"$f":"_xll.RiskData('Risk Summary'!L$48,$A3123)/1000","v":{"$error":"#NAME?"}},null,null,{"$f":"(_xll.RiskData(NR_to_Cash!C$18,$A3123))/1000","v":{"$error":"#NAME?"}},{"$f":"(_xll.RiskData(NR_to_Cash!D$18,$A3123))/1000","v":{"$error":"#NAME?"}},{"$f":"(_xll.RiskData(NR_to_Cash!E$18,$A3123))/1000","v":{"$error":"#NAME?"}}]
[3117,{"$f":"_xll.RiskData('Risk Summary'!J$48,$A3124)/1000","v":{"$error":"#NAME?"}},{"$f":"_xll.RiskData('Risk Summary'!K$48,$A3124)/1000","v":{"$error":"#NAME?"}},{"$f":"_xll.RiskData('Risk Summary'!L$48,$A3124)/1000","v":{"$error":"#NAME?"}},null,null,{"$f":"(_xll.RiskData(NR_to_Cash!C$18,$A3124))/1000","v":{"$error":"#NAME?"}},{"$f":"(_xll.RiskData(NR_to_Cash!D$18,$A3124))/1000","v":{"$error":"#NAME?"}},{"$f":"(_xll.RiskData(NR_to_Cash!E$18,$A3124))/1000","v":{"$error":"#NAME?"}}]
[3118,{"$f":"_xll.RiskData('Risk Summary'!J$48,$A3125)/1000","v":{"$error":"#NAME?"}},{"$f":"_xll.RiskData('Risk Summary'!K$48,$A3125)/1000","v":{"$error":"#NAME?"}},{"$f":"_xll.RiskData('Risk Summary'!L$48,$A3125)/1000","v":{"$error":"#NAME?"}},null,null,{"$f":"(_xll.RiskData(NR_to_Cash!C$18,$A3125))/1000","v":{"$error":"#NAME?"}},{"$f":"(_xll.RiskData(NR_to_Cash!D$18,$A3125))/1000","v":{"$error":"#NAME?"}},{"$f":"(_xll.RiskData(NR_to_Cash!E$18,$A3125))/1000","v":{"$error":"#NAME?"}}]
[3119,{"$f":"_xll.RiskData('Risk Summary'!J$48,$A3126)/1000","v":{"$error":"#NAME?"}},{"$f":"_xll.RiskData('Risk Summary'!K$48,$A3126)/1000","v":{"$error":"#NAME?"}},{"$f":"_xll.RiskData('Risk Summary'!L$48,$A3126)/1000","v":{"$error":"#NAME?"}},null,null,{"$f":"(_xll.RiskData(NR_to_Cash!C$18,$A3126))/1000","v":{"$error":"#NAME?"}},{"$f":"(_xll.RiskData(NR_to_Cash!D$18,$A3126))/1000","v":{"$error":"#NAME?"}},{"$f":"(_xll.RiskData(NR_to_Cash!E$18,$A3126))/1000","v":{"$error":"#NAME?"}}]
[3120,{"$f":"_xll.RiskData('Risk Summary'!J$48,$A3127)/1000","v":{"$error":"#NAME?"}},{"$f":"_xll.RiskData('Risk Summary'!K$48,$A3127)/1000","v":{"$error":"#NAME?"}},{"$f":"_xll.RiskData('Risk Summary'!L$48,$A3127)/1000","v":{"$error":"#NAME?"}},null,null,{"$f":"(_xll.RiskData(NR_to_Cash!C$18,$A3127))/1000","v":{"$error":"#NAME?"}},{"$f":"(_xll.RiskData(NR_to_Cash!D$18,$A3127))/1000","v":{"$error":"#NAME?"}},{"$f":"(_xll.RiskData(NR_to_Cash!E$18,$A3127))/1000","v":{"$error":"#NAME?"}}]
[3121,{"$f":"_xll.RiskData('Risk Summary'!J$48,$A3128)/1000","v":{"$error":"#NAME?"}},{"$f":"_xll.RiskData('Risk Summary'!K$48,$A3128)/1000","v":{"$error":"#NAME?"}},{"$f":"_xll.RiskData('Risk Summary'!L$48,$A3128)/1000","v":{"$error":"#NAME?"}},null,null,{"$f":"(_xll.RiskData(NR_to_Cash!C$18,$A3128))/1000","v":{"$error":"#NAME?"}},{"$f":"(_xll.RiskData(NR_to_Cash!D$18,$A3128))/1000","v":{"$error":"#NAME?"}},{"$f":"(_xll.RiskData(NR_to_Cash!E$18,$A3128))/1000","v":{"$error":"#NAME?"}}]
[3122,{"$f":"_xll.RiskData('Risk Summary'!J$48,$A3129)/1000","v":{"$error":"#NAME?"}},{"$f":"_xll.RiskData('Risk Summary'!K$48,$A3129)/1000","v":{"$error":"#NAME?"}},{"$f":"_xll.RiskData('Risk Summary'!L$48,$A3129)/1000","v":{"$error":"#NAME?"}},null,null,{"$f":"(_xll.RiskData(NR_to_Cash!C$18,$A3129))/1000","v":{"$error":"#NAME?"}},{"$f":"(_xll.RiskData(NR_to_Cash!D$18,$A3129))/1000","v":{"$error":"#NAME?"}},{"$f":"(_xll.RiskData(NR_to_Cash!E$18,$A3129))/1000","v":{"$error":"#NAME?"}}]
[3123,{"$f":"_xll.RiskData('Risk Summary'!J$48,$A3130)/1000","v":{"$error":"#NAME?"}},{"$f":"_xll.RiskData('Risk Summary'!K$48,$A3130)/1000","v":{"$error":"#NAME?"}},{"$f":"_xll.RiskData('Risk Summary'!L$48,$A3130)/1000","v":{"$error":"#NAME?"}},null,null,{"$f":"(_xll.RiskData(NR_to_Cash!C$18,$A3130))/1000","v":{"$error":"#NAME?"}},{"$f":"(_xll.RiskData(NR_to_Cash!D$18,$A3130))/1000","v":{"$error":"#NAME?"}},{"$f":"(_xll.RiskData(NR_to_Cash!E$18,$A3130))/1000","v":{"$error":"#NAME?"}}]
[3124,{"$f":"_xll.RiskData('Risk Summary'!J$48,$A3131)/1000","v":{"$error":"#NAME?"}},{"$f":"_xll.RiskData('Risk Summary'!K$48,$A3131)/1000","v":{"$error":"#NAME?"}},{"$f":"_xll.RiskData('Risk Summary'!L$48,$A3131)/1000","v":{"$error":"#NAME?"}},null,null,{"$f":"(_xll.RiskData(NR_to_Cash!C$18,$A3131))/1000","v":{"$error":"#NAME?"}},{"$f":"(_xll.RiskData(NR_to_Cash!D$18,$A3131))/1000","v":{"$error":"#NAME?"}},{"$f":"(_xll.RiskData(NR_to_Cash!E$18,$A3131))/1000","v":{"$error":"#NAME?"}}]
[3125,{"$f":"_xll.RiskData('Risk Summary'!J$48,$A3132)/1000","v":{"$error":"#NAME?"}},{"$f":"_xll.RiskData('Risk Summary'!K$48,$A3132)/1000","v":{"$error":"#NAME?"}},{"$f":"_xll.RiskData('Risk Summary'!L$48,$A3132)/1000","v":{"$error":"#NAME?"}},null,null,{"$f":"(_xll.RiskData(NR_to_Cash!C$18,$A3132))/1000","v":{"$error":"#NAME?"}},{"$f":"(_xll.RiskData(NR_to_Cash!D$18,$A3132))/1000","v":{"$error":"#NAME?"}},{"$f":"(_xll.RiskData(NR_to_Cash!E$18,$A3132))/1000","v":{"$error":"#NAME?"}}]
[3126,{"$f":"_xll.RiskData('Risk Summary'!J$48,$A3133)/1000","v":{"$error":"#NAME?"}},{"$f":"_xll.RiskData('Risk Summary'!K$48,$A3133)/1000","v":{"$error":"#NAME?"}},{"$f":"_xll.RiskData('Risk Summary'!L$48,$A3133)/1000","v":{"$error":"#NAME?"}},null,null,{"$f":"(_xll.RiskData(NR_to_Cash!C$18,$A3133))/1000","v":{"$error":"#NAME?"}},{"$f":"(_xll.RiskData(NR_to_Cash!D$18,$A3133))/1000","v":{"$error":"#NAME?"}},{"$f":"(_xll.RiskData(NR_to_Cash!E$18,$A3133))/1000","v":{"$error":"#NAME?"}}]
[3127,{"$f":"_xll.RiskData('Risk Summary'!J$48,$A3134)/1000","v":{"$error":"#NAME?"}},{"$f":"_xll.RiskData('Risk Summary'!K$48,$A3134)/1000","v":{"$error":"#NAME?"}},{"$f":"_xll.RiskData('Risk Summary'!L$48,$A3134)/1000","v":{"$error":"#NAME?"}},null,null,{"$f":"(_xll.RiskData(NR_to_Cash!C$18,$A3134))/1000","v":{"$error":"#NAME?"}},{"$f":"(_xll.RiskData(NR_to_Cash!D$18,$A3134))/1000","v":{"$error":"#NAME?"}},{"$f":"(_xll.RiskData(NR_to_Cash!E$18,$A3134))/1000","v":{"$error":"#NAME?"}}]
[3128,{"$f":"_xll.RiskData('Risk Summary'!J$48,$A3135)/1000","v":{"$error":"#NAME?"}},{"$f":"_xll.RiskData('Risk Summary'!K$48,$A3135)/1000","v":{"$error":"#NAME?"}},{"$f":"_xll.RiskData('Risk Summary'!L$48,$A3135)/1000","v":{"$error":"#NAME?"}},null,null,{"$f":"(_xll.RiskData(NR_to_Cash!C$18,$A3135))/1000","v":{"$error":"#NAME?"}},{"$f":"(_xll.RiskData(NR_to_Cash!D$18,$A3135))/1000","v":{"$error":"#NAME?"}},{"$f":"(_xll.RiskData(NR_to_Cash!E$18,$A3135))/1000","v":{"$error":"#NAME?"}}]
[3129,{"$f":"_xll.RiskData('Risk Summary'!J$48,$A3136)/1000","v":{"$error":"#NAME?"}},{"$f":"_xll.RiskData('Risk Summary'!K$48,$A3136)/1000","v":{"$error":"#NAME?"}},{"$f":"_xll.RiskData('Risk Summary'!L$48,$A3136)/1000","v":{"$error":"#NAME?"}},null,null,{"$f":"(_xll.RiskData(NR_to_Cash!C$18,$A3136))/1000","v":{"$error":"#NAME?"}},{"$f":"(_xll.RiskData(NR_to_Cash!D$18,$A3136))/1000","v":{"$error":"#NAME?"}},{"$f":"(_xll.RiskData(NR_to_Cash!E$18,$A3136))/1000","v":{"$error":"#NAME?"}}]
[3130,{"$f":"_xll.RiskData('Risk Summary'!J$48,$A3137)/1000","v":{"$error":"#NAME?"}},{"$f":"_xll.RiskData('Risk Summary'!K$48,$A3137)/1000","v":{"$error":"#NAME?"}},{"$f":"_xll.RiskData('Risk Summary'!L$48,$A3137)/1000","v":{"$error":"#NAME?"}},null,null,{"$f":"(_xll.RiskData(NR_to_Cash!C$18,$A3137))/1000","v":{"$error":"#NAME?"}},{"$f":"(_xll.RiskData(NR_to_Cash!D$18,$A3137))/1000","v":{"$error":"#NAME?"}},{"$f":"(_xll.RiskData(NR_to_Cash!E$18,$A3137))/1000","v":{"$error":"#NAME?"}}]
[3131,{"$f":"_xll.RiskData('Risk Summary'!J$48,$A3138)/1000","v":{"$error":"#NAME?"}},{"$f":"_xll.RiskData('Risk Summary'!K$48,$A3138)/1000","v":{"$error":"#NAME?"}},{"$f":"_xll.RiskData('Risk Summary'!L$48,$A3138)/1000","v":{"$error":"#NAME?"}},null,null,{"$f":"(_xll.RiskData(NR_to_Cash!C$18,$A3138))/1000","v":{"$error":"#NAME?"}},{"$f":"(_xll.RiskData(NR_to_Cash!D$18,$A3138))/1000","v":{"$error":"#NAME?"}},{"$f":"(_xll.RiskData(NR_to_Cash!E$18,$A3138))/1000","v":{"$error":"#NAME?"}}]
[3132,{"$f":"_xll.RiskData('Risk Summary'!J$48,$A3139)/1000","v":{"$error":"#NAME?"}},{"$f":"_xll.RiskData('Risk Summary'!K$48,$A3139)/1000","v":{"$error":"#NAME?"}},{"$f":"_xll.RiskData('Risk Summary'!L$48,$A3139)/1000","v":{"$error":"#NAME?"}},null,null,{"$f":"(_xll.RiskData(NR_to_Cash!C$18,$A3139))/1000","v":{"$error":"#NAME?"}},{"$f":"(_xll.RiskData(NR_to_Cash!D$18,$A3139))/1000","v":{"$error":"#NAME?"}},{"$f":"(_xll.RiskData(NR_to_Cash!E$18,$A3139))/1000","v":{"$error":"#NAME?"}}]
[3133,{"$f":"_xll.RiskData('Risk Summary'!J$48,$A3140)/1000","v":{"$error":"#NAME?"}},{"$f":"_xll.RiskData('Risk Summary'!K$48,$A3140)/1000","v":{"$error":"#NAME?"}},{"$f":"_xll.RiskData('Risk Summary'!L$48,$A3140)/1000","v":{"$error":"#NAME?"}},null,null,{"$f":"(_xll.RiskData(NR_to_Cash!C$18,$A3140))/1000","v":{"$error":"#NAME?"}},{"$f":"(_xll.RiskData(NR_to_Cash!D$18,$A3140))/1000","v":{"$error":"#NAME?"}},{"$f":"(_xll.RiskData(NR_to_Cash!E$18,$A3140))/1000","v":{"$error":"#NAME?"}}]
[3134,{"$f":"_xll.RiskData('Risk Summary'!J$48,$A3141)/1000","v":{"$error":"#NAME?"}},{"$f":"_xll.RiskData('Risk Summary'!K$48,$A3141)/1000","v":{"$error":"#NAME?"}},{"$f":"_xll.RiskData('Risk Summary'!L$48,$A3141)/1000","v":{"$error":"#NAME?"}},null,null,{"$f":"(_xll.RiskData(NR_to_Cash!C$18,$A3141))/1000","v":{"$error":"#NAME?"}},{"$f":"(_xll.RiskData(NR_to_Cash!D$18,$A3141))/1000","v":{"$error":"#NAME?"}},{"$f":"(_xll.RiskData(NR_to_Cash!E$18,$A3141))/1000","v":{"$error":"#NAME?"}}]
[3135,{"$f":"_xll.RiskData('Risk Summary'!J$48,$A3142)/1000","v":{"$error":"#NAME?"}},{"$f":"_xll.RiskData('Risk Summary'!K$48,$A3142)/1000","v":{"$error":"#NAME?"}},{"$f":"_xll.RiskData('Risk Summary'!L$48,$A3142)/1000","v":{"$error":"#NAME?"}},null,null,{"$f":"(_xll.RiskData(NR_to_Cash!C$18,$A3142))/1000","v":{"$error":"#NAME?"}},{"$f":"(_xll.RiskData(NR_to_Cash!D$18,$A3142))/1000","v":{"$error":"#NAME?"}},{"$f":"(_xll.RiskData(NR_to_Cash!E$18,$A3142))/1000","v":{"$error":"#NAME?"}}]
[3136,{"$f":"_xll.RiskData('Risk Summary'!J$48,$A3143)/1000","v":{"$error":"#NAME?"}},{"$f":"_xll.RiskData('Risk Summary'!K$48,$A3143)/1000","v":{"$error":"#NAME?"}},{"$f":"_xll.RiskData('Risk Summary'!L$48,$A3143)/1000","v":{"$error":"#NAME?"}},null,null,{"$f":"(_xll.RiskData(NR_to_Cash!C$18,$A3143))/1000","v":{"$error":"#NAME?"}},{"$f":"(_xll.RiskData(NR_to_Cash!D$18,$A3143))/1000","v":{"$error":"#NAME?"}},{"$f":"(_xll.RiskData(NR_to_Cash!E$18,$A3143))/1000","v":{"$error":"#NAME?"}}]
[3137,{"$f":"_xll.RiskData('Risk Summary'!J$48,$A3144)/1000","v":{"$error":"#NAME?"}},{"$f":"_xll.RiskData('Risk Summary'!K$48,$A3144)/1000","v":{"$error":"#NAME?"}},{"$f":"_xll.RiskData('Risk Summary'!L$48,$A3144)/1000","v":{"$error":"#NAME?"}},null,null,{"$f":"(_xll.RiskData(NR_to_Cash!C$18,$A3144))/1000","v":{"$error":"#NAME?"}},{"$f":"(_xll.RiskData(NR_to_Cash!D$18,$A3144))/1000","v":{"$error":"#NAME?"}},{"$f":"(_xll.RiskData(NR_to_Cash!E$18,$A3144))/1000","v":{"$error":"#NAME?"}}]
[3138,{"$f":"_xll.RiskData('Risk Summary'!J$48,$A3145)/1000","v":{"$error":"#NAME?"}},{"$f":"_xll.RiskData('Risk Summary'!K$48,$A3145)/1000","v":{"$error":"#NAME?"}},{"$f":"_xll.RiskData('Risk Summary'!L$48,$A3145)/1000","v":{"$error":"#NAME?"}},null,null,{"$f":"(_xll.RiskData(NR_to_Cash!C$18,$A3145))/1000","v":{"$error":"#NAME?"}},{"$f":"(_xll.RiskData(NR_to_Cash!D$18,$A3145))/1000","v":{"$error":"#NAME?"}},{"$f":"(_xll.RiskData(NR_to_Cash!E$18,$A3145))/1000","v":{"$error":"#NAME?"}}]
[3139,{"$f":"_xll.RiskData('Risk Summary'!J$48,$A3146)/1000","v":{"$error":"#NAME?"}},{"$f":"_xll.RiskData('Risk Summary'!K$48,$A3146)/1000","v":{"$error":"#NAME?"}},{"$f":"_xll.RiskData('Risk Summary'!L$48,$A3146)/1000","v":{"$error":"#NAME?"}},null,null,{"$f":"(_xll.RiskData(NR_to_Cash!C$18,$A3146))/1000","v":{"$error":"#NAME?"}},{"$f":"(_xll.RiskData(NR_to_Cash!D$18,$A3146))/1000","v":{"$error":"#NAME?"}},{"$f":"(_xll.RiskData(NR_to_Cash!E$18,$A3146))/1000","v":{"$error":"#NAME?"}}]
[3140,{"$f":"_xll.RiskData('Risk Summary'!J$48,$A3147)/1000","v":{"$error":"#NAME?"}},{"$f":"_xll.RiskData('Risk Summary'!K$48,$A3147)/1000","v":{"$error":"#NAME?"}},{"$f":"_xll.RiskData('Risk Summary'!L$48,$A3147)/1000","v":{"$error":"#NAME?"}},null,null,{"$f":"(_xll.RiskData(NR_to_Cash!C$18,$A3147))/1000","v":{"$error":"#NAME?"}},{"$f":"(_xll.RiskData(NR_to_Cash!D$18,$A3147))/1000","v":{"$error":"#NAME?"}},{"$f":"(_xll.RiskData(NR_to_Cash!E$18,$A3147))/1000","v":{"$error":"#NAME?"}}]
[3141,{"$f":"_xll.RiskData('Risk Summary'!J$48,$A3148)/1000","v":{"$error":"#NAME?"}},{"$f":"_xll.RiskData('Risk Summary'!K$48,$A3148)/1000","v":{"$error":"#NAME?"}},{"$f":"_xll.RiskData('Risk Summary'!L$48,$A3148)/1000","v":{"$error":"#NAME?"}},null,null,{"$f":"(_xll.RiskData(NR_to_Cash!C$18,$A3148))/1000","v":{"$error":"#NAME?"}},{"$f":"(_xll.RiskData(NR_to_Cash!D$18,$A3148))/1000","v":{"$error":"#NAME?"}},{"$f":"(_xll.RiskData(NR_to_Cash!E$18,$A3148))/1000","v":{"$error":"#NAME?"}}]
[3142,{"$f":"_xll.RiskData('Risk Summary'!J$48,$A3149)/1000","v":{"$error":"#NAME?"}},{"$f":"_xll.RiskData('Risk Summary'!K$48,$A3149)/1000","v":{"$error":"#NAME?"}},{"$f":"_xll.RiskData('Risk Summary'!L$48,$A3149)/1000","v":{"$error":"#NAME?"}},null,null,{"$f":"(_xll.RiskData(NR_to_Cash!C$18,$A3149))/1000","v":{"$error":"#NAME?"}},{"$f":"(_xll.RiskData(NR_to_Cash!D$18,$A3149))/1000","v":{"$error":"#NAME?"}},{"$f":"(_xll.RiskData(NR_to_Cash!E$18,$A3149))/1000","v":{"$error":"#NAME?"}}]
[3143,{"$f":"_xll.RiskData('Risk Summary'!J$48,$A3150)/1000","v":{"$error":"#NAME?"}},{"$f":"_xll.RiskData('Risk Summary'!K$48,$A3150)/1000","v":{"$error":"#NAME?"}},{"$f":"_xll.RiskData('Risk Summary'!L$48,$A3150)/1000","v":{"$error":"#NAME?"}},null,null,{"$f":"(_xll.RiskData(NR_to_Cash!C$18,$A3150))/1000","v":{"$error":"#NAME?"}},{"$f":"(_xll.RiskData(NR_to_Cash!D$18,$A3150))/1000","v":{"$error":"#NAME?"}},{"$f":"(_xll.RiskData(NR_to_Cash!E$18,$A3150))/1000","v":{"$error":"#NAME?"}}]
[3144,{"$f":"_xll.RiskData('Risk Summary'!J$48,$A3151)/1000","v":{"$error":"#NAME?"}},{"$f":"_xll.RiskData('Risk Summary'!K$48,$A3151)/1000","v":{"$error":"#NAME?"}},{"$f":"_xll.RiskData('Risk Summary'!L$48,$A3151)/1000","v":{"$error":"#NAME?"}},null,null,{"$f":"(_xll.RiskData(NR_to_Cash!C$18,$A3151))/1000","v":{"$error":"#NAME?"}},{"$f":"(_xll.RiskData(NR_to_Cash!D$18,$A3151))/1000","v":{"$error":"#NAME?"}},{"$f":"(_xll.RiskData(NR_to_Cash!E$18,$A3151))/1000","v":{"$error":"#NAME?"}}]
[3145,{"$f":"_xll.RiskData('Risk Summary'!J$48,$A3152)/1000","v":{"$error":"#NAME?"}},{"$f":"_xll.RiskData('Risk Summary'!K$48,$A3152)/1000","v":{"$error":"#NAME?"}},{"$f":"_xll.RiskData('Risk Summary'!L$48,$A3152)/1000","v":{"$error":"#NAME?"}},null,null,{"$f":"(_xll.RiskData(NR_to_Cash!C$18,$A3152))/1000","v":{"$error":"#NAME?"}},{"$f":"(_xll.RiskData(NR_to_Cash!D$18,$A3152))/1000","v":{"$error":"#NAME?"}},{"$f":"(_xll.RiskData(NR_to_Cash!E$18,$A3152))/1000","v":{"$error":"#NAME?"}}]
[3146,{"$f":"_xll.RiskData('Risk Summary'!J$48,$A3153)/1000","v":{"$error":"#NAME?"}},{"$f":"_xll.RiskData('Risk Summary'!K$48,$A3153)/1000","v":{"$error":"#NAME?"}},{"$f":"_xll.RiskData('Risk Summary'!L$48,$A3153)/1000","v":{"$error":"#NAME?"}},null,null,{"$f":"(_xll.RiskData(NR_to_Cash!C$18,$A3153))/1000","v":{"$error":"#NAME?"}},{"$f":"(_xll.RiskData(NR_to_Cash!D$18,$A3153))/1000","v":{"$error":"#NAME?"}},{"$f":"(_xll.RiskData(NR_to_Cash!E$18,$A3153))/1000","v":{"$error":"#NAME?"}}]
[3147,{"$f":"_xll.RiskData('Risk Summary'!J$48,$A3154)/1000","v":{"$error":"#NAME?"}},{"$f":"_xll.RiskData('Risk Summary'!K$48,$A3154)/1000","v":{"$error":"#NAME?"}},{"$f":"_xll.RiskData('Risk Summary'!L$48,$A3154)/1000","v":{"$error":"#NAME?"}},null,null,{"$f":"(_xll.RiskData(NR_to_Cash!C$18,$A3154))/1000","v":{"$error":"#NAME?"}},{"$f":"(_xll.RiskData(NR_to_Cash!D$18,$A3154))/1000","v":{"$error":"#NAME?"}},{"$f":"(_xll.RiskData(NR_to_Cash!E$18,$A3154))/1000","v":{"$error":"#NAME?"}}]
[3148,{"$f":"_xll.RiskData('Risk Summary'!J$48,$A3155)/1000","v":{"$error":"#NAME?"}},{"$f":"_xll.RiskData('Risk Summary'!K$48,$A3155)/1000","v":{"$error":"#NAME?"}},{"$f":"_xll.RiskData('Risk Summary'!L$48,$A3155)/1000","v":{"$error":"#NAME?"}},null,null,{"$f":"(_xll.RiskData(NR_to_Cash!C$18,$A3155))/1000","v":{"$error":"#NAME?"}},{"$f":"(_xll.RiskData(NR_to_Cash!D$18,$A3155))/1000","v":{"$error":"#NAME?"}},{"$f":"(_xll.RiskData(NR_to_Cash!E$18,$A3155))/1000","v":{"$error":"#NAME?"}}]
[3149,{"$f":"_xll.RiskData('Risk Summary'!J$48,$A3156)/1000","v":{"$error":"#NAME?"}},{"$f":"_xll.RiskData('Risk Summary'!K$48,$A3156)/1000","v":{"$error":"#NAME?"}},{"$f":"_xll.RiskData('Risk Summary'!L$48,$A3156)/1000","v":{"$error":"#NAME?"}},null,null,{"$f":"(_xll.RiskData(NR_to_Cash!C$18,$A3156))/1000","v":{"$error":"#NAME?"}},{"$f":"(_xll.RiskData(NR_to_Cash!D$18,$A3156))/1000","v":{"$error":"#NAME?"}},{"$f":"(_xll.RiskData(NR_to_Cash!E$18,$A3156))/1000","v":{"$error":"#NAME?"}}]
[3150,{"$f":"_xll.RiskData('Risk Summary'!J$48,$A3157)/1000","v":{"$error":"#NAME?"}},{"$f":"_xll.RiskData('Risk Summary'!K$48,$A3157)/1000","v":{"$error":"#NAME?"}},{"$f":"_xll.RiskData('Risk Summary'!L$48,$A3157)/1000","v":{"$error":"#NAME?"}},null,null,{"$f":"(_xll.RiskData(NR_to_Cash!C$18,$A3157))/1000","v":{"$error":"#NAME?"}},{"$f":"(_xll.RiskData(NR_to_Cash!D$18,$A3157))/1000","v":{"$error":"#NAME?"}},{"$f":"(_xll.RiskData(NR_to_Cash!E$18,$A3157))/1000","v":{"$error":"#NAME?"}}]
[3151,{"$f":"_xll.RiskData('Risk Summary'!J$48,$A3158)/1000","v":{"$error":"#NAME?"}},{"$f":"_xll.RiskData('Risk Summary'!K$48,$A3158)/1000","v":{"$error":"#NAME?"}},{"$f":"_xll.RiskData('Risk Summary'!L$48,$A3158)/1000","v":{"$error":"#NAME?"}},null,null,{"$f":"(_xll.RiskData(NR_to_Cash!C$18,$A3158))/1000","v":{"$error":"#NAME?"}},{"$f":"(_xll.RiskData(NR_to_Cash!D$18,$A3158))/1000","v":{"$error":"#NAME?"}},{"$f":"(_xll.RiskData(NR_to_Cash!E$18,$A3158))/1000","v":{"$error":"#NAME?"}}]
[3152,{"$f":"_xll.RiskData('Risk Summary'!J$48,$A3159)/1000","v":{"$error":"#NAME?"}},{"$f":"_xll.RiskData('Risk Summary'!K$48,$A3159)/1000","v":{"$error":"#NAME?"}},{"$f":"_xll.RiskData('Risk Summary'!L$48,$A3159)/1000","v":{"$error":"#NAME?"}},null,null,{"$f":"(_xll.RiskData(NR_to_Cash!C$18,$A3159))/1000","v":{"$error":"#NAME?"}},{"$f":"(_xll.RiskData(NR_to_Cash!D$18,$A3159))/1000","v":{"$error":"#NAME?"}},{"$f":"(_xll.RiskData(NR_to_Cash!E$18,$A3159))/1000","v":{"$error":"#NAME?"}}]
[3153,{"$f":"_xll.RiskData('Risk Summary'!J$48,$A3160)/1000","v":{"$error":"#NAME?"}},{"$f":"_xll.RiskData('Risk Summary'!K$48,$A3160)/1000","v":{"$error":"#NAME?"}},{"$f":"_xll.RiskData('Risk Summary'!L$48,$A3160)/1000","v":{"$error":"#NAME?"}},null,null,{"$f":"(_xll.RiskData(NR_to_Cash!C$18,$A3160))/1000","v":{"$error":"#NAME?"}},{"$f":"(_xll.RiskData(NR_to_Cash!D$18,$A3160))/1000","v":{"$error":"#NAME?"}},{"$f":"(_xll.RiskData(NR_to_Cash!E$18,$A3160))/1000","v":{"$error":"#NAME?"}}]
[3154,{"$f":"_xll.RiskData('Risk Summary'!J$48,$A3161)/1000","v":{"$error":"#NAME?"}},{"$f":"_xll.RiskData('Risk Summary'!K$48,$A3161)/1000","v":{"$error":"#NAME?"}},{"$f":"_xll.RiskData('Risk Summary'!L$48,$A3161)/1000","v":{"$error":"#NAME?"}},null,null,{"$f":"(_xll.RiskData(NR_to_Cash!C$18,$A3161))/1000","v":{"$error":"#NAME?"}},{"$f":"(_xll.RiskData(NR_to_Cash!D$18,$A3161))/1000","v":{"$error":"#NAME?"}},{"$f":"(_xll.RiskData(NR_to_Cash!E$18,$A3161))/1000","v":{"$error":"#NAME?"}}]
[3155,{"$f":"_xll.RiskData('Risk Summary'!J$48,$A3162)/1000","v":{"$error":"#NAME?"}},{"$f":"_xll.RiskData('Risk Summary'!K$48,$A3162)/1000","v":{"$error":"#NAME?"}},{"$f":"_xll.RiskData('Risk Summary'!L$48,$A3162)/1000","v":{"$error":"#NAME?"}},null,null,{"$f":"(_xll.RiskData(NR_to_Cash!C$18,$A3162))/1000","v":{"$error":"#NAME?"}},{"$f":"(_xll.RiskData(NR_to_Cash!D$18,$A3162))/1000","v":{"$error":"#NAME?"}},{"$f":"(_xll.RiskData(NR_to_Cash!E$18,$A3162))/1000","v":{"$error":"#NAME?"}}]
[3156,{"$f":"_xll.RiskData('Risk Summary'!J$48,$A3163)/1000","v":{"$error":"#NAME?"}},{"$f":"_xll.RiskData('Risk Summary'!K$48,$A3163)/1000","v":{"$error":"#NAME?"}},{"$f":"_xll.RiskData('Risk Summary'!L$48,$A3163)/1000","v":{"$error":"#NAME?"}},null,null,{"$f":"(_xll.RiskData(NR_to_Cash!C$18,$A3163))/1000","v":{"$error":"#NAME?"}},{"$f":"(_xll.RiskData(NR_to_Cash!D$18,$A3163))/1000","v":{"$error":"#NAME?"}},{"$f":"(_xll.RiskData(NR_to_Cash!E$18,$A3163))/1000","v":{"$error":"#NAME?"}}]
[3157,{"$f":"_xll.RiskData('Risk Summary'!J$48,$A3164)/1000","v":{"$error":"#NAME?"}},{"$f":"_xll.RiskData('Risk Summary'!K$48,$A3164)/1000","v":{"$error":"#NAME?"}},{"$f":"_xll.RiskData('Risk Summary'!L$48,$A3164)/1000","v":{"$error":"#NAME?"}},null,null,{"$f":"(_xll.RiskData(NR_to_Cash!C$18,$A3164))/1000","v":{"$error":"#NAME?"}},{"$f":"(_xll.RiskData(NR_to_Cash!D$18,$A3164))/1000","v":{"$error":"#NAME?"}},{"$f":"(_xll.RiskData(NR_to_Cash!E$18,$A3164))/1000","v":{"$error":"#NAME?"}}]
[3158,{"$f":"_xll.RiskData('Risk Summary'!J$48,$A3165)/1000","v":{"$error":"#NAME?"}},{"$f":"_xll.RiskData('Risk Summary'!K$48,$A3165)/1000","v":{"$error":"#NAME?"}},{"$f":"_xll.RiskData('Risk Summary'!L$48,$A3165)/1000","v":{"$error":"#NAME?"}},null,null,{"$f":"(_xll.RiskData(NR_to_Cash!C$18,$A3165))/1000","v":{"$error":"#NAME?"}},{"$f":"(_xll.RiskData(NR_to_Cash!D$18,$A3165))/1000","v":{"$error":"#NAME?"}},{"$f":"(_xll.RiskData(NR_to_Cash!E$18,$A3165))/1000","v":{"$error":"#NAME?"}}]
[3159,{"$f":"_xll.RiskData('Risk Summary'!J$48,$A3166)/1000","v":{"$error":"#NAME?"}},{"$f":"_xll.RiskData('Risk Summary'!K$48,$A3166)/1000","v":{"$error":"#NAME?"}},{"$f":"_xll.RiskData('Risk Summary'!L$48,$A3166)/1000","v":{"$error":"#NAME?"}},null,null,{"$f":"(_xll.RiskData(NR_to_Cash!C$18,$A3166))/1000","v":{"$error":"#NAME?"}},{"$f":"(_xll.RiskData(NR_to_Cash!D$18,$A3166))/1000","v":{"$error":"#NAME?"}},{"$f":"(_xll.RiskData(NR_to_Cash!E$18,$A3166))/1000","v":{"$error":"#NAME?"}}]
[3160,{"$f":"_xll.RiskData('Risk Summary'!J$48,$A3167)/1000","v":{"$error":"#NAME?"}},{"$f":"_xll.RiskData('Risk Summary'!K$48,$A3167)/1000","v":{"$error":"#NAME?"}},{"$f":"_xll.RiskData('Risk Summary'!L$48,$A3167)/1000","v":{"$error":"#NAME?"}},null,null,{"$f":"(_xll.RiskData(NR_to_Cash!C$18,$A3167))/1000","v":{"$error":"#NAME?"}},{"$f":"(_xll.RiskData(NR_to_Cash!D$18,$A3167))/1000","v":{"$error":"#NAME?"}},{"$f":"(_xll.RiskData(NR_to_Cash!E$18,$A3167))/1000","v":{"$error":"#NAME?"}}]
[3161,{"$f":"_xll.RiskData('Risk Summary'!J$48,$A3168)/1000","v":{"$error":"#NAME?"}},{"$f":"_xll.RiskData('Risk Summary'!K$48,$A3168)/1000","v":{"$error":"#NAME?"}},{"$f":"_xll.RiskData('Risk Summary'!L$48,$A3168)/1000","v":{"$error":"#NAME?"}},null,null,{"$f":"(_xll.RiskData(NR_to_Cash!C$18,$A3168))/1000","v":{"$error":"#NAME?"}},{"$f":"(_xll.RiskData(NR_to_Cash!D$18,$A3168))/1000","v":{"$error":"#NAME?"}},{"$f":"(_xll.RiskData(NR_to_Cash!E$18,$A3168))/1000","v":{"$error":"#NAME?"}}]
[3162,{"$f":"_xll.RiskData('Risk Summary'!J$48,$A3169)/1000","v":{"$error":"#NAME?"}},{"$f":"_xll.RiskData('Risk Summary'!K$48,$A3169)/1000","v":{"$error":"#NAME?"}},{"$f":"_xll.RiskData('Risk Summary'!L$48,$A3169)/1000","v":{"$error":"#NAME?"}},null,null,{"$f":"(_xll.RiskData(NR_to_Cash!C$18,$A3169))/1000","v":{"$error":"#NAME?"}},{"$f":"(_xll.RiskData(NR_to_Cash!D$18,$A3169))/1000","v":{"$error":"#NAME?"}},{"$f":"(_xll.RiskData(NR_to_Cash!E$18,$A3169))/1000","v":{"$error":"#NAME?"}}]
[3163,{"$f":"_xll.RiskData('Risk Summary'!J$48,$A3170)/1000","v":{"$error":"#NAME?"}},{"$f":"_xll.RiskData('Risk Summary'!K$48,$A3170)/1000","v":{"$error":"#NAME?"}},{"$f":"_xll.RiskData('Risk Summary'!L$48,$A3170)/1000","v":{"$error":"#NAME?"}},null,null,{"$f":"(_xll.RiskData(NR_to_Cash!C$18,$A3170))/1000","v":{"$error":"#NAME?"}},{"$f":"(_xll.RiskData(NR_to_Cash!D$18,$A3170))/1000","v":{"$error":"#NAME?"}},{"$f":"(_xll.RiskData(NR_to_Cash!E$18,$A3170))/1000","v":{"$error":"#NAME?"}}]
[3164,{"$f":"_xll.RiskData('Risk Summary'!J$48,$A3171)/1000","v":{"$error":"#NAME?"}},{"$f":"_xll.RiskData('Risk Summary'!K$48,$A3171)/1000","v":{"$error":"#NAME?"}},{"$f":"_xll.RiskData('Risk Summary'!L$48,$A3171)/1000","v":{"$error":"#NAME?"}},null,null,{"$f":"(_xll.RiskData(NR_to_Cash!C$18,$A3171))/1000","v":{"$error":"#NAME?"}},{"$f":"(_xll.RiskData(NR_to_Cash!D$18,$A3171))/1000","v":{"$error":"#NAME?"}},{"$f":"(_xll.RiskData(NR_to_Cash!E$18,$A3171))/1000","v":{"$error":"#NAME?"}}]
[3165,{"$f":"_xll.RiskData('Risk Summary'!J$48,$A3172)/1000","v":{"$error":"#NAME?"}},{"$f":"_xll.RiskData('Risk Summary'!K$48,$A3172)/1000","v":{"$error":"#NAME?"}},{"$f":"_xll.RiskData('Risk Summary'!L$48,$A3172)/1000","v":{"$error":"#NAME?"}},null,null,{"$f":"(_xll.RiskData(NR_to_Cash!C$18,$A3172))/1000","v":{"$error":"#NAME?"}},{"$f":"(_xll.RiskData(NR_to_Cash!D$18,$A3172))/1000","v":{"$error":"#NAME?"}},{"$f":"(_xll.RiskData(NR_to_Cash!E$18,$A3172))/1000","v":{"$error":"#NAME?"}}]
[3166,{"$f":"_xll.RiskData('Risk Summary'!J$48,$A3173)/1000","v":{"$error":"#NAME?"}},{"$f":"_xll.RiskData('Risk Summary'!K$48,$A3173)/1000","v":{"$error":"#NAME?"}},{"$f":"_xll.RiskData('Risk Summary'!L$48,$A3173)/1000","v":{"$error":"#NAME?"}},null,null,{"$f":"(_xll.RiskData(NR_to_Cash!C$18,$A3173))/1000","v":{"$error":"#NAME?"}},{"$f":"(_xll.RiskData(NR_to_Cash!D$18,$A3173))/1000","v":{"$error":"#NAME?"}},{"$f":"(_xll.RiskData(NR_to_Cash!E$18,$A3173))/1000","v":{"$error":"#NAME?"}}]
[3167,{"$f":"_xll.RiskData('Risk Summary'!J$48,$A3174)/1000","v":{"$error":"#NAME?"}},{"$f":"_xll.RiskData('Risk Summary'!K$48,$A3174)/1000","v":{"$error":"#NAME?"}},{"$f":"_xll.RiskData('Risk Summary'!L$48,$A3174)/1000","v":{"$error":"#NAME?"}},null,null,{"$f":"(_xll.RiskData(NR_to_Cash!C$18,$A3174))/1000","v":{"$error":"#NAME?"}},{"$f":"(_xll.RiskData(NR_to_Cash!D$18,$A3174))/1000","v":{"$error":"#NAME?"}},{"$f":"(_xll.RiskData(NR_to_Cash!E$18,$A3174))/1000","v":{"$error":"#NAME?"}}]
[3168,{"$f":"_xll.RiskData('Risk Summary'!J$48,$A3175)/1000","v":{"$error":"#NAME?"}},{"$f":"_xll.RiskData('Risk Summary'!K$48,$A3175)/1000","v":{"$error":"#NAME?"}},{"$f":"_xll.RiskData('Risk Summary'!L$48,$A3175)/1000","v":{"$error":"#NAME?"}},null,null,{"$f":"(_xll.RiskData(NR_to_Cash!C$18,$A3175))/1000","v":{"$error":"#NAME?"}},{"$f":"(_xll.RiskData(NR_to_Cash!D$18,$A3175))/1000","v":{"$error":"#NAME?"}},{"$f":"(_xll.RiskData(NR_to_Cash!E$18,$A3175))/1000","v":{"$error":"#NAME?"}}]
[3169,{"$f":"_xll.RiskData('Risk Summary'!J$48,$A3176)/1000","v":{"$error":"#NAME?"}},{"$f":"_xll.RiskData('Risk Summary'!K$48,$A3176)/1000","v":{"$error":"#NAME?"}},{"$f":"_xll.RiskData('Risk Summary'!L$48,$A3176)/1000","v":{"$error":"#NAME?"}},null,null,{"$f":"(_xll.RiskData(NR_to_Cash!C$18,$A3176))/1000","v":{"$error":"#NAME?"}},{"$f":"(_xll.RiskData(NR_to_Cash!D$18,$A3176))/1000","v":{"$error":"#NAME?"}},{"$f":"(_xll.RiskData(NR_to_Cash!E$18,$A3176))/1000","v":{"$error":"#NAME?"}}]
[3170,{"$f":"_xll.RiskData('Risk Summary'!J$48,$A3177)/1000","v":{"$error":"#NAME?"}},{"$f":"_xll.RiskData('Risk Summary'!K$48,$A3177)/1000","v":{"$error":"#NAME?"}},{"$f":"_xll.RiskData('Risk Summary'!L$48,$A3177)/1000","v":{"$error":"#NAME?"}},null,null,{"$f":"(_xll.RiskData(NR_to_Cash!C$18,$A3177))/1000","v":{"$error":"#NAME?"}},{"$f":"(_xll.RiskData(NR_to_Cash!D$18,$A3177))/1000","v":{"$error":"#NAME?"}},{"$f":"(_xll.RiskData(NR_to_Cash!E$18,$A3177))/1000","v":{"$error":"#NAME?"}}]
[3171,{"$f":"_xll.RiskData('Risk Summary'!J$48,$A3178)/1000","v":{"$error":"#NAME?"}},{"$f":"_xll.RiskData('Risk Summary'!K$48,$A3178)/1000","v":{"$error":"#NAME?"}},{"$f":"_xll.RiskData('Risk Summary'!L$48,$A3178)/1000","v":{"$error":"#NAME?"}},null,null,{"$f":"(_xll.RiskData(NR_to_Cash!C$18,$A3178))/1000","v":{"$error":"#NAME?"}},{"$f":"(_xll.RiskData(NR_to_Cash!D$18,$A3178))/1000","v":{"$error":"#NAME?"}},{"$f":"(_xll.RiskData(NR_to_Cash!E$18,$A3178))/1000","v":{"$error":"#NAME?"}}]
[3172,{"$f":"_xll.RiskData('Risk Summary'!J$48,$A3179)/1000","v":{"$error":"#NAME?"}},{"$f":"_xll.RiskData('Risk Summary'!K$48,$A3179)/1000","v":{"$error":"#NAME?"}},{"$f":"_xll.RiskData('Risk Summary'!L$48,$A3179)/1000","v":{"$error":"#NAME?"}},null,null,{"$f":"(_xll.RiskData(NR_to_Cash!C$18,$A3179))/1000","v":{"$error":"#NAME?"}},{"$f":"(_xll.RiskData(NR_to_Cash!D$18,$A3179))/1000","v":{"$error":"#NAME?"}},{"$f":"(_xll.RiskData(NR_to_Cash!E$18,$A3179))/1000","v":{"$error":"#NAME?"}}]
[3173,{"$f":"_xll.RiskData('Risk Summary'!J$48,$A3180)/1000","v":{"$error":"#NAME?"}},{"$f":"_xll.RiskData('Risk Summary'!K$48,$A3180)/1000","v":{"$error":"#NAME?"}},{"$f":"_xll.RiskData('Risk Summary'!L$48,$A3180)/1000","v":{"$error":"#NAME?"}},null,null,{"$f":"(_xll.RiskData(NR_to_Cash!C$18,$A3180))/1000","v":{"$error":"#NAME?"}},{"$f":"(_xll.RiskData(NR_to_Cash!D$18,$A3180))/1000","v":{"$error":"#NAME?"}},{"$f":"(_xll.RiskData(NR_to_Cash!E$18,$A3180))/1000","v":{"$error":"#NAME?"}}]
[3174,{"$f":"_xll.RiskData('Risk Summary'!J$48,$A3181)/1000","v":{"$error":"#NAME?"}},{"$f":"_xll.RiskData('Risk Summary'!K$48,$A3181)/1000","v":{"$error":"#NAME?"}},{"$f":"_xll.RiskData('Risk Summary'!L$48,$A3181)/1000","v":{"$error":"#NAME?"}},null,null,{"$f":"(_xll.RiskData(NR_to_Cash!C$18,$A3181))/1000","v":{"$error":"#NAME?"}},{"$f":"(_xll.RiskData(NR_to_Cash!D$18,$A3181))/1000","v":{"$error":"#NAME?"}},{"$f":"(_xll.RiskData(NR_to_Cash!E$18,$A3181))/1000","v":{"$error":"#NAME?"}}]
[3175,{"$f":"_xll.RiskData('Risk Summary'!J$48,$A3182)/1000","v":{"$error":"#NAME?"}},{"$f":"_xll.RiskData('Risk Summary'!K$48,$A3182)/1000","v":{"$error":"#NAME?"}},{"$f":"_xll.RiskData('Risk Summary'!L$48,$A3182)/1000","v":{"$error":"#NAME?"}},null,null,{"$f":"(_xll.RiskData(NR_to_Cash!C$18,$A3182))/1000","v":{"$error":"#NAME?"}},{"$f":"(_xll.RiskData(NR_to_Cash!D$18,$A3182))/1000","v":{"$error":"#NAME?"}},{"$f":"(_xll.RiskData(NR_to_Cash!E$18,$A3182))/1000","v":{"$error":"#NAME?"}}]
[3176,{"$f":"_xll.RiskData('Risk Summary'!J$48,$A3183)/1000","v":{"$error":"#NAME?"}},{"$f":"_xll.RiskData('Risk Summary'!K$48,$A3183)/1000","v":{"$error":"#NAME?"}},{"$f":"_xll.RiskData('Risk Summary'!L$48,$A3183)/1000","v":{"$error":"#NAME?"}},null,null,{"$f":"(_xll.RiskData(NR_to_Cash!C$18,$A3183))/1000","v":{"$error":"#NAME?"}},{"$f":"(_xll.RiskData(NR_to_Cash!D$18,$A3183))/1000","v":{"$error":"#NAME?"}},{"$f":"(_xll.RiskData(NR_to_Cash!E$18,$A3183))/1000","v":{"$error":"#NAME?"}}]
[3177,{"$f":"_xll.RiskData('Risk Summary'!J$48,$A3184)/1000","v":{"$error":"#NAME?"}},{"$f":"_xll.RiskData('Risk Summary'!K$48,$A3184)/1000","v":{"$error":"#NAME?"}},{"$f":"_xll.RiskData('Risk Summary'!L$48,$A3184)/1000","v":{"$error":"#NAME?"}},null,null,{"$f":"(_xll.RiskData(NR_to_Cash!C$18,$A3184))/1000","v":{"$error":"#NAME?"}},{"$f":"(_xll.RiskData(NR_to_Cash!D$18,$A3184))/1000","v":{"$error":"#NAME?"}},{"$f":"(_xll.RiskData(NR_to_Cash!E$18,$A3184))/1000","v":{"$error":"#NAME?"}}]
[3178,{"$f":"_xll.RiskData('Risk Summary'!J$48,$A3185)/1000","v":{"$error":"#NAME?"}},{"$f":"_xll.RiskData('Risk Summary'!K$48,$A3185)/1000","v":{"$error":"#NAME?"}},{"$f":"_xll.RiskData('Risk Summary'!L$48,$A3185)/1000","v":{"$error":"#NAME?"}},null,null,{"$f":"(_xll.RiskData(NR_to_Cash!C$18,$A3185))/1000","v":{"$error":"#NAME?"}},{"$f":"(_xll.RiskData(NR_to_Cash!D$18,$A3185))/1000","v":{"$error":"#NAME?"}},{"$f":"(_xll.RiskData(NR_to_Cash!E$18,$A3185))/1000","v":{"$error":"#NAME?"}}]
[3179,{"$f":"_xll.RiskData('Risk Summary'!J$48,$A3186)/1000","v":{"$error":"#NAME?"}},{"$f":"_xll.RiskData('Risk Summary'!K$48,$A3186)/1000","v":{"$error":"#NAME?"}},{"$f":"_xll.RiskData('Risk Summary'!L$48,$A3186)/1000","v":{"$error":"#NAME?"}},null,null,{"$f":"(_xll.RiskData(NR_to_Cash!C$18,$A3186))/1000","v":{"$error":"#NAME?"}},{"$f":"(_xll.RiskData(NR_to_Cash!D$18,$A3186))/1000","v":{"$error":"#NAME?"}},{"$f":"(_xll.RiskData(NR_to_Cash!E$18,$A3186))/1000","v":{"$error":"#NAME?"}}]
[3180,{"$f":"_xll.RiskData('Risk Summary'!J$48,$A3187)/1000","v":{"$error":"#NAME?"}},{"$f":"_xll.RiskData('Risk Summary'!K$48,$A3187)/1000","v":{"$error":"#NAME?"}},{"$f":"_xll.RiskData('Risk Summary'!L$48,$A3187)/1000","v":{"$error":"#NAME?"}},null,null,{"$f":"(_xll.RiskData(NR_to_Cash!C$18,$A3187))/1000","v":{"$error":"#NAME?"}},{"$f":"(_xll.RiskData(NR_to_Cash!D$18,$A3187))/1000","v":{"$error":"#NAME?"}},{"$f":"(_xll.RiskData(NR_to_Cash!E$18,$A3187))/1000","v":{"$error":"#NAME?"}}]
[3181,{"$f":"_xll.RiskData('Risk Summary'!J$48,$A3188)/1000","v":{"$error":"#NAME?"}},{"$f":"_xll.RiskData('Risk Summary'!K$48,$A3188)/1000","v":{"$error":"#NAME?"}},{"$f":"_xll.RiskData('Risk Summary'!L$48,$A3188)/1000","v":{"$error":"#NAME?"}},null,null,{"$f":"(_xll.RiskData(NR_to_Cash!C$18,$A3188))/1000","v":{"$error":"#NAME?"}},{"$f":"(_xll.RiskData(NR_to_Cash!D$18,$A3188))/1000","v":{"$error":"#NAME?"}},{"$f":"(_xll.RiskData(NR_to_Cash!E$18,$A3188))/1000","v":{"$error":"#NAME?"}}]
[3182,{"$f":"_xll.RiskData('Risk Summary'!J$48,$A3189)/1000","v":{"$error":"#NAME?"}},{"$f":"_xll.RiskData('Risk Summary'!K$48,$A3189)/1000","v":{"$error":"#NAME?"}},{"$f":"_xll.RiskData('Risk Summary'!L$48,$A3189)/1000","v":{"$error":"#NAME?"}},null,null,{"$f":"(_xll.RiskData(NR_to_Cash!C$18,$A3189))/1000","v":{"$error":"#NAME?"}},{"$f":"(_xll.RiskData(NR_to_Cash!D$18,$A3189))/1000","v":{"$error":"#NAME?"}},{"$f":"(_xll.RiskData(NR_to_Cash!E$18,$A3189))/1000","v":{"$error":"#NAME?"}}]
[3183,{"$f":"_xll.RiskData('Risk Summary'!J$48,$A3190)/1000","v":{"$error":"#NAME?"}},{"$f":"_xll.RiskData('Risk Summary'!K$48,$A3190)/1000","v":{"$error":"#NAME?"}},{"$f":"_xll.RiskData('Risk Summary'!L$48,$A3190)/1000","v":{"$error":"#NAME?"}},null,null,{"$f":"(_xll.RiskData(NR_to_Cash!C$18,$A3190))/1000","v":{"$error":"#NAME?"}},{"$f":"(_xll.RiskData(NR_to_Cash!D$18,$A3190))/1000","v":{"$error":"#NAME?"}},{"$f":"(_xll.RiskData(NR_to_Cash!E$18,$A3190))/1000","v":{"$error":"#NAME?"}}]
[3184,{"$f":"_xll.RiskData('Risk Summary'!J$48,$A3191)/1000","v":{"$error":"#NAME?"}},{"$f":"_xll.RiskData('Risk Summary'!K$48,$A3191)/1000","v":{"$error":"#NAME?"}},{"$f":"_xll.RiskData('Risk Summary'!L$48,$A3191)/1000","v":{"$error":"#NAME?"}},null,null,{"$f":"(_xll.RiskData(NR_to_Cash!C$18,$A3191))/1000","v":{"$error":"#NAME?"}},{"$f":"(_xll.RiskData(NR_to_Cash!D$18,$A3191))/1000","v":{"$error":"#NAME?"}},{"$f":"(_xll.RiskData(NR_to_Cash!E$18,$A3191))/1000","v":{"$error":"#NAME?"}}]
[3185,{"$f":"_xll.RiskData('Risk Summary'!J$48,$A3192)/1000","v":{"$error":"#NAME?"}},{"$f":"_xll.RiskData('Risk Summary'!K$48,$A3192)/1000","v":{"$error":"#NAME?"}},{"$f":"_xll.RiskData('Risk Summary'!L$48,$A3192)/1000","v":{"$error":"#NAME?"}},null,null,{"$f":"(_xll.RiskData(NR_to_Cash!C$18,$A3192))/1000","v":{"$error":"#NAME?"}},{"$f":"(_xll.RiskData(NR_to_Cash!D$18,$A3192))/1000","v":{"$error":"#NAME?"}},{"$f":"(_xll.RiskData(NR_to_Cash!E$18,$A3192))/1000","v":{"$error":"#NAME?"}}]
[3186,{"$f":"_xll.RiskData('Risk Summary'!J$48,$A3193)/1000","v":{"$error":"#NAME?"}},{"$f":"_xll.RiskData('Risk Summary'!K$48,$A3193)/1000","v":{"$error":"#NAME?"}},{"$f":"_xll.RiskData('Risk Summary'!L$48,$A3193)/1000","v":{"$error":"#NAME?"}},null,null,{"$f":"(_xll.RiskData(NR_to_Cash!C$18,$A3193))/1000","v":{"$error":"#NAME?"}},{"$f":"(_xll.RiskData(NR_to_Cash!D$18,$A3193))/1000","v":{"$error":"#NAME?"}},{"$f":"(_xll.RiskData(NR_to_Cash!E$18,$A3193))/1000","v":{"$error":"#NAME?"}}]
[3187,{"$f":"_xll.RiskData('Risk Summary'!J$48,$A3194)/1000","v":{"$error":"#NAME?"}},{"$f":"_xll.RiskData('Risk Summary'!K$48,$A3194)/1000","v":{"$error":"#NAME?"}},{"$f":"_xll.RiskData('Risk Summary'!L$48,$A3194)/1000","v":{"$error":"#NAME?"}},null,null,{"$f":"(_xll.RiskData(NR_to_Cash!C$18,$A3194))/1000","v":{"$error":"#NAME?"}},{"$f":"(_xll.RiskData(NR_to_Cash!D$18,$A3194))/1000","v":{"$error":"#NAME?"}},{"$f":"(_xll.RiskData(NR_to_Cash!E$18,$A3194))/1000","v":{"$error":"#NAME?"}}]
[3188,{"$f":"_xll.RiskData('Risk Summary'!J$48,$A3195)/1000","v":{"$error":"#NAME?"}},{"$f":"_xll.RiskData('Risk Summary'!K$48,$A3195)/1000","v":{"$error":"#NAME?"}},{"$f":"_xll.RiskData('Risk Summary'!L$48,$A3195)/1000","v":{"$error":"#NAME?"}},null,null,{"$f":"(_xll.RiskData(NR_to_Cash!C$18,$A3195))/1000","v":{"$error":"#NAME?"}},{"$f":"(_xll.RiskData(NR_to_Cash!D$18,$A3195))/1000","v":{"$error":"#NAME?"}},{"$f":"(_xll.RiskData(NR_to_Cash!E$18,$A3195))/1000","v":{"$error":"#NAME?"}}]
[3189,{"$f":"_xll.RiskData('Risk Summary'!J$48,$A3196)/1000","v":{"$error":"#NAME?"}},{"$f":"_xll.RiskData('Risk Summary'!K$48,$A3196)/1000","v":{"$error":"#NAME?"}},{"$f":"_xll.RiskData('Risk Summary'!L$48,$A3196)/1000","v":{"$error":"#NAME?"}},null,null,{"$f":"(_xll.RiskData(NR_to_Cash!C$18,$A3196))/1000","v":{"$error":"#NAME?"}},{"$f":"(_xll.RiskData(NR_to_Cash!D$18,$A3196))/1000","v":{"$error":"#NAME?"}},{"$f":"(_xll.RiskData(NR_to_Cash!E$18,$A3196))/1000","v":{"$error":"#NAME?"}}]
[3190,{"$f":"_xll.RiskData('Risk Summary'!J$48,$A3197)/1000","v":{"$error":"#NAME?"}},{"$f":"_xll.RiskData('Risk Summary'!K$48,$A3197)/1000","v":{"$error":"#NAME?"}},{"$f":"_xll.RiskData('Risk Summary'!L$48,$A3197)/1000","v":{"$error":"#NAME?"}},null,null,{"$f":"(_xll.RiskData(NR_to_Cash!C$18,$A3197))/1000","v":{"$error":"#NAME?"}},{"$f":"(_xll.RiskData(NR_to_Cash!D$18,$A3197))/1000","v":{"$error":"#NAME?"}},{"$f":"(_xll.RiskData(NR_to_Cash!E$18,$A3197))/1000","v":{"$error":"#NAME?"}}]
[3191,{"$f":"_xll.RiskData('Risk Summary'!J$48,$A3198)/1000","v":{"$error":"#NAME?"}},{"$f":"_xll.RiskData('Risk Summary'!K$48,$A3198)/1000","v":{"$error":"#NAME?"}},{"$f":"_xll.RiskData('Risk Summary'!L$48,$A3198)/1000","v":{"$error":"#NAME?"}},null,null,{"$f":"(_xll.RiskData(NR_to_Cash!C$18,$A3198))/1000","v":{"$error":"#NAME?"}},{"$f":"(_xll.RiskData(NR_to_Cash!D$18,$A3198))/1000","v":{"$error":"#NAME?"}},{"$f":"(_xll.RiskData(NR_to_Cash!E$18,$A3198))/1000","v":{"$error":"#NAME?"}}]
[3192,{"$f":"_xll.RiskData('Risk Summary'!J$48,$A3199)/1000","v":{"$error":"#NAME?"}},{"$f":"_xll.RiskData('Risk Summary'!K$48,$A3199)/1000","v":{"$error":"#NAME?"}},{"$f":"_xll.RiskData('Risk Summary'!L$48,$A3199)/1000","v":{"$error":"#NAME?"}},null,null,{"$f":"(_xll.RiskData(NR_to_Cash!C$18,$A3199))/1000","v":{"$error":"#NAME?"}},{"$f":"(_xll.RiskData(NR_to_Cash!D$18,$A3199))/1000","v":{"$error":"#NAME?"}},{"$f":"(_xll.RiskData(NR_to_Cash!E$18,$A3199))/1000","v":{"$error":"#NAME?"}}]
[3193,{"$f":"_xll.RiskData('Risk Summary'!J$48,$A3200)/1000","v":{"$error":"#NAME?"}},{"$f":"_xll.RiskData('Risk Summary'!K$48,$A3200)/1000","v":{"$error":"#NAME?"}},{"$f":"_xll.RiskData('Risk Summary'!L$48,$A3200)/1000","v":{"$error":"#NAME?"}},null,null,{"$f":"(_xll.RiskData(NR_to_Cash!C$18,$A3200))/1000","v":{"$error":"#NAME?"}},{"$f":"(_xll.RiskData(NR_to_Cash!D$18,$A3200))/1000","v":{"$error":"#NAME?"}},{"$f":"(_xll.RiskData(NR_to_Cash!E$18,$A3200))/1000","v":{"$error":"#NAME?"}}]
[3194,{"$f":"_xll.RiskData('Risk Summary'!J$48,$A3201)/1000","v":{"$error":"#NAME?"}},{"$f":"_xll.RiskData('Risk Summary'!K$48,$A3201)/1000","v":{"$error":"#NAME?"}},{"$f":"_xll.RiskData('Risk Summary'!L$48,$A3201)/1000","v":{"$error":"#NAME?"}},null,null,{"$f":"(_xll.RiskData(NR_to_Cash!C$18,$A3201))/1000","v":{"$error":"#NAME?"}},{"$f":"(_xll.RiskData(NR_to_Cash!D$18,$A3201))/1000","v":{"$error":"#NAME?"}},{"$f":"(_xll.RiskData(NR_to_Cash!E$18,$A3201))/1000","v":{"$error":"#NAME?"}}]
[3195,{"$f":"_xll.RiskData('Risk Summary'!J$48,$A3202)/1000","v":{"$error":"#NAME?"}},{"$f":"_xll.RiskData('Risk Summary'!K$48,$A3202)/1000","v":{"$error":"#NAME?"}},{"$f":"_xll.RiskData('Risk Summary'!L$48,$A3202)/1000","v":{"$error":"#NAME?"}},null,null,{"$f":"(_xll.RiskData(NR_to_Cash!C$18,$A3202))/1000","v":{"$error":"#NAME?"}},{"$f":"(_xll.RiskData(NR_to_Cash!D$18,$A3202))/1000","v":{"$error":"#NAME?"}},{"$f":"(_xll.RiskData(NR_to_Cash!E$18,$A3202))/1000","v":{"$error":"#NAME?"}}]
[3196,{"$f":"_xll.RiskData('Risk Summary'!J$48,$A3203)/1000","v":{"$error":"#NAME?"}},{"$f":"_xll.RiskData('Risk Summary'!K$48,$A3203)/1000","v":{"$error":"#NAME?"}},{"$f":"_xll.RiskData('Risk Summary'!L$48,$A3203)/1000","v":{"$error":"#NAME?"}},null,null,{"$f":"(_xll.RiskData(NR_to_Cash!C$18,$A3203))/1000","v":{"$error":"#NAME?"}},{"$f":"(_xll.RiskData(NR_to_Cash!D$18,$A3203))/1000","v":{"$error":"#NAME?"}},{"$f":"(_xll.RiskData(NR_to_Cash!E$18,$A3203))/1000","v":{"$error":"#NAME?"}}]
[3197,{"$f":"_xll.RiskData('Risk Summary'!J$48,$A3204)/1000","v":{"$error":"#NAME?"}},{"$f":"_xll.RiskData('Risk Summary'!K$48,$A3204)/1000","v":{"$error":"#NAME?"}},{"$f":"_xll.RiskData('Risk Summary'!L$48,$A3204)/1000","v":{"$error":"#NAME?"}},null,null,{"$f":"(_xll.RiskData(NR_to_Cash!C$18,$A3204))/1000","v":{"$error":"#NAME?"}},{"$f":"(_xll.RiskData(NR_to_Cash!D$18,$A3204))/1000","v":{"$error":"#NAME?"}},{"$f":"(_xll.RiskData(NR_to_Cash!E$18,$A3204))/1000","v":{"$error":"#NAME?"}}]
[3198,{"$f":"_xll.RiskData('Risk Summary'!J$48,$A3205)/1000","v":{"$error":"#NAME?"}},{"$f":"_xll.RiskData('Risk Summary'!K$48,$A3205)/1000","v":{"$error":"#NAME?"}},{"$f":"_xll.RiskData('Risk Summary'!L$48,$A3205)/1000","v":{"$error":"#NAME?"}},null,null,{"$f":"(_xll.RiskData(NR_to_Cash!C$18,$A3205))/1000","v":{"$error":"#NAME?"}},{"$f":"(_xll.RiskData(NR_to_Cash!D$18,$A3205))/1000","v":{"$error":"#NAME?"}},{"$f":"(_xll.RiskData(NR_to_Cash!E$18,$A3205))/1000","v":{"$error":"#NAME?"}}]
[3199,{"$f":"_xll.RiskData('Risk Summary'!J$48,$A3206)/1000","v":{"$error":"#NAME?"}},{"$f":"_xll.RiskData('Risk Summary'!K$48,$A3206)/1000","v":{"$error":"#NAME?"}},{"$f":"_xll.RiskData('Risk Summary'!L$48,$A3206)/1000","v":{"$error":"#NAME?"}},null,null,{"$f":"(_xll.RiskData(NR_to_Cash!C$18,$A3206))/1000","v":{"$error":"#NAME?"}},{"$f":"(_xll.RiskData(NR_to_Cash!D$18,$A3206))/1000","v":{"$error":"#NAME?"}},{"$f":"(_xll.RiskData(NR_to_Cash!E$18,$A3206))/1000","v":{"$error":"#NAME?"}}]
[3200,{"$f":"_xll.RiskData('Risk Summary'!J$48,$A3207)/1000","v":{"$error":"#NAME?"}},{"$f":"_xll.RiskData('Risk Summary'!K$48,$A3207)/1000","v":{"$error":"#NAME?"}},{"$f":"_xll.RiskData('Risk Summary'!L$48,$A3207)/1000","v":{"$error":"#NAME?"}},null,null,{"$f":"(_xll.RiskData(NR_to_Cash!C$18,$A3207))/1000","v":{"$error":"#NAME?"}},{"$f":"(_xll.RiskData(NR_to_Cash!D$18,$A3207))/1000","v":{"$error":"#NAME?"}},{"$f":"(_xll.RiskData(NR_to_Cash!E$18,$A3207))/1000","v":{"$error":"#NAME?"}}]
[]
[null,{"$f":"MAX(B8:B3207)","v":{"$error":"#NAME?"}},{"$f":"MAX(C8:C3207)","v":{"$error":"#NAME?"}},{"$f":"MAX(D8:D3207)","v":{"$error":"#NAME?"}},"max",null,{"$f":"MAX(G8:G3207)","v":{"$error":"#NAME?"}},{"$f":"MAX(H8:H3207)","v":{"$error":"#NAME?"}},{"$f":"MAX(I8:I3207)","v":{"$error":"#NAME?"}},"max"]
[null,{"$f":"AVERAGE(B8:B3207)","v":{"$error":"#NAME?"}},{"$f":"AVERAGE(C8:C3207)","v":{"$error":"#NAME?"}},{"$f":"AVERAGE(D8:D3207)","v":{"$error":"#NAME?"}},"mean",null,{"$f":"AVERAGE(G8:G3207)","v":{"$error":"#NAME?"}},{"$f":"AVERAGE(H8:H3207)","v":{"$error":"#NAME?"}},{"$f":"AVERAGE(I8:I3207)","v":{"$error":"#NAME?"}},"mean"]
[null,{"$f":"MEDIAN(B8:B3207)","v":{"$error":"#NAME?"}},{"$f":"MEDIAN(C8:C3207)","v":{"$error":"#NAME?"}},{"$f":"MEDIAN(D8:D3207)","v":{"$error":"#NAME?"}},"median",null,{"$f":"MEDIAN(G8:G3207)","v":{"$error":"#NAME?"}},{"$f":"MEDIAN(H8:H3207)","v":{"$error":"#NAME?"}},{"$f":"MEDIAN(I8:I3207)","v":{"$error":"#NAME?"}},"median"]
[null,{"$f":"MIN(B8:B3207)","v":{"$error":"#NAME?"}},{"$f":"MIN(C8:C3207)","v":{"$error":"#NAME?"}},{"$f":"MIN(D8:D3207)","v":{"$error":"#NAME?"}},"min",null,{"$f":"MIN(G8:G3207)","v":{"$error":"#NAME?"}},{"$f":"MIN(H8:H3207)","v":{"$error":"#NAME?"}},{"$f":"MIN(I8:I3207)","v":{"$error":"#NAME?"}},"min"]
[null,{"$f":"B3209-B3212","v":{"$error":"#NAME?"}},{"$f":"C3209-C3212","v":{"$error":"#NAME?"}},{"$f":"D3209-D3212","v":{"$error":"#NAME?"}},"range",null,{"$f":"G3209-G3212","v":{"$error":"#NAME?"}},{"$f":"H3209-H3212","v":{"$error":"#NAME?"}},{"$f":"I3209-I3212","v":{"$error":"#NAME?"}},"range"]
[null,{"$f":"STDEV(B8:B3207)","v":{"$error":"#NAME?"}},{"$f":"STDEV(C8:C3207)","v":{"$error":"#NAME?"}},{"$f":"STDEV(D8:D3207)","v":{"$error":"#NAME?"}},"std dev",null,{"$f":"STDEV(G8:G3207)","v":{"$error":"#NAME?"}},{"$f":"STDEV(H8:H3207)","v":{"$error":"#NAME?"}},{"$f":"STDEV(I8:I3207)","v":{"$error":"#NAME?"}},"std dev"]

{"sheet":"Study Table","index":16,"n_rows":33,"n_cols":11,"rows_kept":33,"cut":false,"hidden":false,"merged":[[30,1,32,1],[30,2,32,2],[27,1,29,1],[27,2,29,2],[18,1,20,1],[18,2,20,2],[21,1,23,1],[21,2,23,2],[24,1,26,1],[24,2,26,2],[9,1,11,1],[9,2,11,2],[12,1,14,1],[12,2,14,2],[15,1,17,1],[15,2,17,2],[1,1,1,7],[3,1,5,1],[3,2,5,2],[6,1,8,1],[6,2,8,2]]}
[null,"A","B","C","D","E","F","G"]
[null,"P-NORM Risk Summary ($000,000)",null,null,null,null,null,null,null,"Source Data"]
[null,"Study Section","Risk Title","Fiscal Year","Pro Forma / Rev. Req.","5th Percentile","Mean","95th Percentile",null,"ProForma","Risk"]
[1,"4.1.2.1.1","CGS Operations and Maintenance (O&M)",2017,{"$f":"J4/1000","v":318.51371800000004},{"$f":"_xll.RiskPercentile($K4,5%)/1000","v":{"$error":"#NAME?"}},{"$f":"_xll.RiskMean($K4)/1000","v":{"$error":"#NAME?"}},{"$f":"_xll.RiskPercentile($K4,95%)/1000","v":{"$error":"#NAME?"}},null,{"$f":"'Risk Summary'!$C$8","v":318513.71800000005},{"$f":"'Risk Summary'!$D$8","v":{"$error":"#NAME?"}}]
[2,null,null,2018,270.14600000000002,{"$f":"_xll.RiskPercentile($K5,5%)/1000","v":{"$error":"#NAME?"}},{"$f":"_xll.RiskMean($K5)/1000","v":{"$error":"#NAME?"}},{"$f":"_xll.RiskPercentile($K5,95%)/1000","v":{"$error":"#NAME?"}},null,{"$f":"'Risk Summary'!$E$8","v":270146},{"$f":"'Risk Summary'!$F$8","v":{"$error":"#NAME?"}}]
[3,null,null,2019,327.35399999999998,{"$f":"_xll.RiskPercentile($K6,5%)/1000","v":{"$error":"#NAME?"}},{"$f":"_xll.RiskMean($K6)/1000","v":{"$error":"#NAME?"}},{"$f":"_xll.RiskPercentile($K6,95%)/1000","v":{"$error":"#NAME?"}},null,{"$f":"'Risk Summary'!$G$8","v":327354},{"$f":"'Risk Summary'!$H$8","v":{"$error":"#NAME?"}}]
[4,"4.1.2.1.2","U.S. Army Corps of Engineers (Corps) and Bureau of Reclamation (Reclamation) O&M",2017,401.60199999999998,{"$f":"_xll.RiskPercentile($K7,5%)/1000","v":{"$error":"#NAME?"}},{"$f":"_xll.RiskMean($K7)/1000","v":{"$error":"#NAME?"}},{"$f":"_xll.RiskPercentile($K7,95%)/1000","v":{"$error":"#NAME?"}},null,{"$f":"'Risk Summary'!$C$9+'Risk Summary'!$C$10","v":401602},{"$f":"'Risk Summary'!$D$9+'Risk Summary'!$D$10","v":{"$error":"#NAME?"}}]
[5,null,null,2018,420.666,{"$f":"_xll.RiskPercentile($K8,5%)/1000","v":{"$error":"#NAME?"}},{"$f":"_xll.RiskMean($K8)/1000","v":{"$error":"#NAME?"}},{"$f":"_xll.RiskPercentile($K8,95%)/1000","v":{"$error":"#NAME?"}},null,{"$f":"'Risk Summary'!$E$9+'Risk Summary'!$E$10","v":420666},{"$f":"'Risk Summary'!$F$9+'Risk Summary'!$F$10","v":{"$error":"#NAME?"}}]
[6,null,null,2019,418.68,{"$f":"_xll.RiskPercentile($K9,5%)/1000","v":{"$error":"#NAME?"}},{"$f":"_xll.RiskMean($K9)/1000","v":{"$error":"#NAME?"}},{"$f":"_xll.RiskPercentile($K9,95%)/1000","v":{"$error":"#NAME?"}},null,{"$f":"'Risk Summary'!$G$9+'Risk Summary'!$G$10","v":418680},{"$f":"'Risk Summary'!$H$9+'Risk Summary'!$H$10","v":{"$error":"#NAME?"}}]
[7,"4.1.2.1.3","Conservation Expense",2017,76.323449000000011,{"$f":"_xll.RiskPercentile($K10,5%)/1000","v":{"$error":"#NAME?"}},{"$f":"_xll.RiskMean($K10)/1000","v":{"$error":"#NAME?"}},{"$f":"_xll.RiskPercentile($K10,95%)/1000","v":{"$error":"#NAME?"}},null,{"$f":"'Risk Summary'!$C$13","v":76323.449000000008},{"$f":"'Risk Summary'!$D$13","v":{"$error":"#NAME?"}}]
[8,null,null,2018,71.784999999999997,{"$f":"_xll.RiskPercentile($K11,5%)/1000","v":{"$error":"#NAME?"}},{"$f":"_xll.RiskMean($K11)/1000","v":{"$error":"#NAME?"}},{"$f":"_xll.RiskPercentile($K11,95%)/1000","v":{"$error":"#NAME?"}},null,{"$f":"'Risk Summary'!$E$13","v":71785},{"$f":"'Risk Summary'!$F$13","v":{"$error":"#NAME?"}}]
[9,null,null,2019,71.784999999999997,{"$f":"_xll.RiskPercentile($K12,5%)/1000","v":{"$error":"#NAME?"}},{"$f":"_xll.RiskMean($K12)/1000","v":{"$error":"#NAME?"}},{"$f":"_xll.RiskPercentile($K12,95%)/1000","v":{"$error":"#NAME?"}},null,{"$f":"'Risk Summary'!$G$13","v":71785},{"$f":"'Risk Summary'!$H$13","v":{"$error":"#NAME?"}}]
[10,"4.1.2.1.4","Spokane Settlement",2017,16.666778000000001,{"$f":"_xll.RiskPercentile($K13,5%)/1000","v":{"$error":"#NAME?"}},{"$f":"_xll.RiskMean($K13)/1000","v":{"$error":"#NAME?"}},{"$f":"_xll.RiskPercentile($K13,95%)/1000","v":{"$error":"#NAME?"}},null,{"$f":"'Risk Summary'!$C$11","v":16666.778000000002},{"$f":"'Risk Summary'!$D$11","v":{"$error":"#NAME?"}}]
[11,null,null,2018,22.612477999999999,{"$f":"_xll.RiskPercentile($K14,5%)/1000","v":{"$error":"#NAME?"}},{"$f":"_xll.RiskMean($K14)/1000","v":{"$error":"#NAME?"}},{"$f":"_xll.RiskPercentile($K14,95%)/1000","v":{"$error":"#NAME?"}},null,{"$f":"'Risk Summary'!$E$11","v":22612.477999999999},{"$f":"'Risk Summary'!$F$11","v":{"$error":"#NAME?"}}]
[12,null,null,2019,22.99689,{"$f":"_xll.RiskPercentile($K15,5%)/1000","v":{"$error":"#NAME?"}},{"$f":"_xll.RiskMean($K15)/1000","v":{"$error":"#NAME?"}},{"$f":"_xll.RiskPercentile($K15,95%)/1000","v":{"$error":"#NAME?"}},null,{"$f":"'Risk Summary'!$G$11","v":22996.89},{"$f":"'Risk Summary'!$H$11","v":{"$error":"#NAME?"}}]
[13,"4.1.2.1.5","Power Services Transmission Acquisition and Ancillary Services",2017,95.182301999999993,{"$f":"_xll.RiskPercentile($K16,5%)/1000","v":{"$error":"#NAME?"}},{"$f":"_xll.RiskMean($K16)/1000","v":{"$error":"#NAME?"}},{"$f":"_xll.RiskPercentile($K16,95%)/1000","v":{"$error":"#NAME?"}},null,{"$f":"'Risk Summary'!$C$16+'Risk Summary'!$C$17","v":95182.301999999996},{"$f":"'Risk Summary'!$D$16+'Risk Summary'!$D$17","v":{"$error":"#NAME?"}}]
[14,null,null,2018,94.009344999999996,{"$f":"_xll.RiskPercentile($K17,5%)/1000","v":{"$error":"#NAME?"}},{"$f":"_xll.RiskMean($K17)/1000","v":{"$error":"#NAME?"}},{"$f":"_xll.RiskPercentile($K17,95%)/1000","v":{"$error":"#NAME?"}},null,{"$f":"'Risk Summary'!$E$16+'Risk Summary'!$E$17","v":94009.345000000001},{"$f":"'Risk Summary'!$F$16+'Risk Summary'!$F$17","v":{"$error":"#NAME?"}}]
[15,null,null,2019,94.807804000000004,{"$f":"_xll.RiskPercentile($K18,5%)/1000","v":{"$error":"#NAME?"}},{"$f":"_xll.RiskMean($K18)/1000","v":{"$error":"#NAME?"}},{"$f":"_xll.RiskPercentile($K18,95%)/1000","v":{"$error":"#NAME?"}},null,{"$f":"'Risk Summary'!$G$16+'Risk Summary'!$G$17","v":94807.804000000004},{"$f":"'Risk Summary'!$H$16+'Risk Summary'!$H$17","v":{"$error":"#NAME?"}}]
[16,"4.1.2.1.6","Power Services Internal Operations Expenses",2017,138.66928300000001,{"$f":"_xll.RiskPercentile($K19,5%)/1000","v":{"$error":"#NAME?"}},{"$f":"_xll.RiskMean($K19)/1000","v":{"$error":"#NAME?"}},{"$f":"_xll.RiskPercentile($K19,95%)/1000","v":{"$error":"#NAME?"}},null,{"$f":"SUM('Risk Summary'!$C$19:'Risk Summary'!$C$32)","v":138669.283},{"$f":"SUM('Risk Summary'!$D$19:'Risk Summary'!$D$32)","v":{"$error":"#NAME?"}}]
[17,null,null,2018,154.80268599999999,{"$f":"_xll.RiskPercentile($K20,5%)/1000","v":{"$error":"#NAME?"}},{"$f":"_xll.RiskMean($K20)/1000","v":{"$error":"#NAME?"}},{"$f":"_xll.RiskPercentile($K20,95%)/1000","v":{"$error":"#NAME?"}},null,{"$f":"SUM('Risk Summary'!$E$19:'Risk Summary'!$E$32)","v":154802.68599999999},{"$f":"SUM('Risk Summary'!$F$19:'Risk Summary'!$F$32)","v":{"$error":"#NAME?"}}]
[18,null,null,2019,160.11533499999999,{"$f":"_xll.RiskPercentile($K21,5%)/1000","v":{"$error":"#NAME?"}},{"$f":"_xll.RiskMean($K21)/1000","v":{"$error":"#NAME?"}},{"$f":"_xll.RiskPercentile($K21,95%)/1000","v":{"$error":"#NAME?"}},null,{"$f":"SUM('Risk Summary'!$G$19:'Risk Summary'!$G$32)","v":160115.33499999999},{"$f":"SUM('Risk Summary'!$H$19:'Risk Summary'!$H$32)","v":{"$error":"#NAME?"}}]
[19,"4.1.2.1.7","Fish & Wildlife Expenses",2017,{"$f":"J22/1000","v":295.81879700000002},{"$f":"_xll.RiskPercentile($K22,5%)/1000","v":{"$error":"#NAME?"}},{"$f":"_xll.RiskMean($K22)/1000","v":{"$error":"#NAME?"}},{"$f":"_xll.RiskPercentile($K22,95%)/1000","v":{"$error":"#NAME?"}},null,{"$f":"SUM('Risk Summary'!$C$34:'Risk Summary'!$C$35)","v":295818.79700000002},{"$f":"SUM('Risk Summary'!$D$34:'Risk Summary'!$D$35)","v":{"$error":"#NAME?"}}]
[20,null,null,2018,310.19653099999999,{"$f":"_xll.RiskPercentile($K23,5%)/1000","v":{"$error":"#NAME?"}},{"$f":"_xll.RiskMean($K23)/1000","v":{"$error":"#NAME?"}},{"$f":"_xll.RiskPercentile($K23,95%)/1000","v":{"$error":"#NAME?"}},null,{"$f":"SUM('Risk Summary'!$E$34:'Risk Summary'!$E$35)","v":310196.53100000002},{"$f":"SUM('Risk Summary'!$F$34:'Risk Summary'!$F$35)","v":{"$error":"#NAME?"}}]
[21,null,null,2019,310.18691699999999,{"$f":"_xll.RiskPercentile($K24,5%)/1000","v":{"$error":"#NAME?"}},{"$f":"_xll.RiskMean($K24)/1000","v":{"$error":"#NAME?"}},{"$f":"_xll.RiskPercentile($K24,95%)/1000","v":{"$error":"#NAME?"}},null,{"$f":"SUM('Risk Summary'!$G$34:'Risk Summary'!$G$35)","v":310186.91700000002},{"$f":"SUM('Risk Summary'!$H$34:'Risk Summary'!$H$35)","v":{"$error":"#NAME?"}}]
[22,"4.1.2.1.8","Interest Expense Risk",2017,392.30923799999999,{"$f":"_xll.RiskPercentile($K25,5%)/1000","v":{"$error":"#NAME?"}},{"$f":"_xll.RiskMean($K25)/1000","v":{"$error":"#NAME?"}},{"$f":"_xll.RiskPercentile($K25,95%)/1000","v":{"$error":"#NAME?"}},null,{"$f":"SUM('Risk Summary'!$C$37:'Risk Summary'!$C$39)","v":392309.23800000001},{"$f":"SUM('Risk Summary'!$D$37:'Risk Summary'!$D$39)","v":{"$error":"#NAME?"}}]
[23,null,null,2018,630.3048091259999,{"$f":"_xll.RiskPercentile($K26,5%)/1000","v":{"$error":"#NAME?"}},{"$f":"_xll.RiskMean($K26)/1000","v":{"$error":"#NAME?"}},{"$f":"_xll.RiskPercentile($K26,95%)/1000","v":{"$error":"#NAME?"}},null,{"$f":"SUM('Risk Summary'!$E$37:'Risk Summary'!$E$39)","v":630304.80912599992},{"$f":"SUM('Risk Summary'!$F$37:'Risk Summary'!$F$39)","v":{"$error":"#NAME?"}}]
[24,null,null,2019,566.69315749999998,{"$f":"_xll.RiskPercentile($K27,5%)/1000","v":{"$error":"#NAME?"}},{"$f":"_xll.RiskMean($K27)/1000","v":{"$error":"#NAME?"}},{"$f":"_xll.RiskPercentile($K27,95%)/1000","v":{"$error":"#NAME?"}},null,{"$f":"SUM('Risk Summary'!$G$37:'Risk Summary'!$G$39)","v":566693.15749999997},{"$f":"SUM('Risk Summary'!$H$37:'Risk Summary'!$H$39)","v":{"$error":"#NAME?"}}]
[25,"4.1.2.1.9","CGS Refueling Outage Risk",2017,"N/A",{"$f":"_xll.RiskPercentile($K28,5%)/1000","v":{"$error":"#NAME?"}},{"$f":"_xll.RiskMean($K28)/1000","v":{"$error":"#NAME?"}},{"$f":"_xll.RiskPercentile($K28,95%)/1000","v":{"$error":"#NAME?"}},null,null,{"$f":"'Risk Summary'!$D$6","v":{"$error":"#NAME?"}}]
[26,null,null,2018,"N/A",{"$f":"_xll.RiskPercentile($K29,5%)/1000","v":{"$error":"#NAME?"}},{"$f":"_xll.RiskMean($K29)/1000","v":{"$error":"#NAME?"}},{"$f":"_xll.RiskPercentile($K29,95%)/1000","v":{"$error":"#NAME?"}},null,null,{"$f":"'Risk Summary'!$F$6","v":{"$error":"#NAME?"}}]
[27,null,null,2019,"N/A",{"$f":"_xll.RiskPercentile($K30,5%)/1000","v":{"$error":"#NAME?"}},{"$f":"_xll.RiskMean($K30)/1000","v":{"$error":"#NAME?"}},{"$f":"_xll.RiskPercentile($K30,95%)/1000","v":{"$error":"#NAME?"}},null,null,{"$f":"'Risk Summary'!$H$6","v":{"$error":"#NAME?"}}]
[34,"4.1.2.1.12","Undistributed Reduction Risk",2017,0,{"$f":"_xll.RiskPercentile($K31,5%)/1000","v":{"$error":"#NAME?"}},{"$f":"_xll.RiskMean($K31)/1000","v":{"$error":"#NAME?"}},{"$f":"_xll.RiskPercentile($K31,95%)/1000","v":{"$error":"#NAME?"}}]
[35,null,null,2018,0,{"$f":"_xll.RiskPercentile($K32,5%)/1000","v":{"$error":"#NAME?"}},{"$f":"_xll.RiskMean($K32)/1000","v":{"$error":"#NAME?"}},{"$f":"_xll.RiskPercentile($K32,95%)/1000","v":{"$error":"#NAME?"}}]
[36,null,null,2019,0,{"$f":"_xll.RiskPercentile($K33,5%)/1000","v":{"$error":"#NAME?"}},{"$f":"_xll.RiskMean($K33)/1000","v":{"$error":"#NAME?"}},{"$f":"_xll.RiskPercentile($K33,95%)/1000","v":{"$error":"#NAME?"}}]